{"text_format":"1","workbook":"xlsx","n_sheets":63,"sheets":["Sheet1","Sheet2","Sheet3","Sheet4","Sheet5","Sheet6","Sheet7","Sheet8","Sheet9","Sheet10","Sheet11","Sheet12","Sheet13","Sheet14","Sheet15","Sheet16","Sheet17","Sheet18","START","Instructions","Template names","Lookup and lists","Org structure","Contacts","B1-Sum","B2-FinPerf SC","B2B","B3-FinPerf V","B3B","B4-FinPerf RE","B5-Capex","B5B","B6-FinPos","B7-CFlow","B8-ResRecon","B9-Asset","B10-SerDel","SB1","SB2","SB3","SB4","SB5","SB6","Chart2","SB7","SB8","SB9","Chart1","SB10","SB11","SB12","SB13","SB14","SB15","SB16","SB17","SB18a","SB18b","SB18c","SB18d","SB18e","SB19","SB20"],"not_rendered":{"charts":4,"images":19,"macros":1,"external_links":9,"defined_names":1167,"comments":1,"pivot_tables":0},"unopened":[{"sheet":"Chart2","index":43,"reason":"not_a_worksheet"},{"sheet":"Chart1","index":47,"reason":"not_a_worksheet"}],"bounds":{"document_bytes":16777216,"sheet_cells":100000,"rows_first":2000,"rows_last":500,"rows_between":2000,"halvings":0,"cell_chars":16384,"cell_head_chars":4096},"cells_cut":0,"cells_raw":0,"read":"whole","date_system":"1900"}

{"sheet":"Sheet1","index":0,"n_rows":4311,"n_cols":98,"rows_kept":562,"cut":true,"hidden":true,"merged":[],"bounds":{"rows_first":250,"rows_last":62,"rows_between":250,"halvings":3}}
["S71_Account","S71_AccountLink","S71_AccountExtAccount","S71_AccountExtensionID","S71_ItemSCOAAccount","S71_A4Code","S71_A4Description","S71_A4SubCode","S71_A4SubDescription","S71_SA1SubCode","S71_SA1SubDescription","S71_A2Code","S71_A2Description","S71_A2SubCode","S71_A2SubDescription","S71_A5CapexCode","S71_A5GCode","S71_A5GDescription","S71_ProjectType","S71_ItemType","S71_A6Code","S71_A6Description","S71_A6SubCode","S71_A6SubDescription","S71_A7Code","S71_A7Description","S71_A7SubCode","S71_A7SubDescription","S71_A7CodePayments","S71_A7DescriptionPayments","S71_A7SubCodePayments","S71_A7SubDescriptionPayments","S71_A9Code","S71_A9Description","S71_A9SubCode","S71_A9SubDescription","S71_SA3Code","S71_SA3Description","S71_SA3SubCode","S71_SA3SubDescription","S71_SA30FDSubCode","S71_SA30FDSubDescription","S71_CFCode","S71_SA34aCode","S71_SA34aDescription","S71_SA34aCode_2","S71_SA34aSubDescription","S71_SA34Code","S71_SA34Description","S71_SA34bSubCode","S71_SA34bSubDescription","S71_SA34cCode","S71_SA34cDescription","S71_SA34cSubCode","S71_SA34cSubDescription","S71_RepMaintCode","S71_SA34dCode","S71_SA34dDescription","S71_SA34dSubCode","S71_SA34dSubDescription","S71_DepCode","S71_SA34eCode","S71_SA34eDescription","S71_SA34eSubCode","S71_SA34eSubDescription","S71_StaffCode","S71_MasterVoteMunicipal","S71_SubMunicipalVoteNo","S71_MasterVoteDescription","S71_FxVoteDescription","S71_SA15Ref","S71_SA17Ref","S71_ConsDepositsCode","S71_NonCurrentInvCode","S71_NonCurrentRecCode","S71_WIPCode","S71_WIPOpBalance","S71_OriginalBudget","S71_SpecAdjustmentAmount","S71_SpecialAdjustedBudget","S71_AdjustmentAmount","S71_AdjustedBudget","S71_OY1AdjustedBudget","S71_OY2AdjustedBudget","S71_MonthlyOutcomeJul","S71_MonthlyOutcomeAug","S71_MonthlyOutcomeSep","S71_MonthlyOutcomeOct","S71_MonthlyOutcomeNov","S71_MonthlyOutcomeDec","S71_MonthlyOutcomeJan","S71_MonthlyOutcomeFeb","S71_MonthlyOutcomeMar","S71_MonthlyOutcomeApr","S71_MonthlyOutcomeMay","S71_MonthlyOutcomeJun"]
["C0003-2/IA06193/F0002/X047/R0073/001/FIN",2612,"C0003-2/IA06193/F0002/X047/R0073/001/FIN",52324,"Assets:Non-current Assets:Property, Plant and Equipment:Cost Model:Computer Equipment:In-use:Cost:Acquisitions"," _"," _"," _ "," _ "," _ "," _ ",1200,"Finance and administration",1202,"Asset Management","CE",2080,"Internally generated funds","C","IA",240," Property, plant and equipment",240,"Property, plant and equipment"," _ "," _ "," _ "," _ "," _ "," _ "," _ "," _ ",1470,"Computer Equipment",1470,"Computer Equipment",241,"PPE at cost/valuation (excl. finance leases)",241,"PPE at cost/valuation (excl. finance leases)","",null,null,1470,"Computer Equipment",1470,"Computer Equipment"," _ "," _ "," _ "," _ "," _ "," _ "," _ "," _ ","_"," _ "," _ "," _ "," _ ","_"," _ "," _ "," _ "," _ ",null,1,110,"Finance and Admin","Asset Management",null,null,"_","_","_",null,"_",0,0,0,0,0,0,0,0,0,0,0,0,0,0,0,0,0,0,0,{"$f":"INDEX([9]Sheet1!$H:$H,MATCH(CR:CR,[9]Sheet1!$AU:$AU,0))","v":{"$error":"#N/A"}},{"$f":"CS2=M2","v":{"$error":"#N/A"}}]
["C0003-2/IA06193/F0002/X060/R0073/001/FIN",2866,"C0003-2/IA06193/F0002/X060/R0073/001/FIN",52581,"Assets:Non-current Assets:Property, Plant and Equipment:Cost Model:Computer Equipment:In-use:Cost:Acquisitions"," _"," _"," _ "," _ "," _ "," _ ",1200,"Finance and administration",1202,"Asset Management","CE",2080,"Internally generated funds","C","IA",240," Property, plant and equipment",240,"Property, plant and equipment"," _ "," _ "," _ "," _ "," _ "," _ "," _ "," _ ",1470,"Computer Equipment",1470,"Computer Equipment",241,"PPE at cost/valuation (excl. finance leases)",241,"PPE at cost/valuation (excl. finance leases)","",null,null,1470,"Computer Equipment",1470,"Computer Equipment"," _ "," _ "," _ "," _ "," _ "," _ "," _ "," _ ","_"," _ "," _ "," _ "," _ ","_"," _ "," _ "," _ "," _ ",null,1,110,"Finance and Admin","Asset Management",null,null,"_","_","_",null,"_",300000,0,0,-150000,150000,209000,218405,0,0,17899,0,0,0,0,122391,0,0,0,0,{"$f":"INDEX([9]Sheet1!$H:$H,MATCH(CR:CR,[9]Sheet1!$AU:$AU,0))","v":{"$error":"#N/A"}}]
["C0004-1/IA06243/F0002/X047/R0072/001/FIN",2619,"C0004-1/IA06243/F0002/X047/R0072/001/FIN",52331,"Assets:Non-current Assets:Property, Plant and Equipment:Cost Model:Furniture and Office Equipment:In-use:Accumulated Depreciation:Depreciation"," _"," _"," _ "," _ "," _ "," _ ",1200,"Finance and administration",1202,"Asset Management","_",2080,"Internally generated funds","C","IA",240," Property, plant and equipment",240,"Property, plant and equipment"," _ "," _ "," _ "," _ "," _ "," _ "," _ "," _ ",1490,"Furniture and Office Equipment",1490,"Furniture and Office Equipment",243,"Less: Accumulated depreciation",243,"Less: Accumulated depreciation","",null,null,1490,"Furniture and Office Equipment",1490,"Furniture and Office Equipment"," _ "," _ "," _ "," _ "," _ "," _ "," _ "," _ ","_"," _ "," _ "," _ "," _ ","_"," _ "," _ "," _ "," _ ",null,1,110,"Finance and Admin","Asset Management",null,null,"_","_","_",null,"_",0,0,0,0,0,0,0,0,0,0,0,0,0,0,0,0,0,0,0,{"$f":"INDEX([9]Sheet1!$H:$H,MATCH(CR:CR,[9]Sheet1!$AU:$AU,0))","v":{"$error":"#N/A"}}]
["C0004-1/IA06253/F0002/X047/R0072/001/Corp",2621,"C0004-1/IA06253/F0002/X047/R0072/001/Corp",52333,"Assets:Non-current Assets:Property, Plant and Equipment:Cost Model:Furniture and Office Equipment:In-use:Cost:Acquisitions"," _"," _"," _ "," _ "," _ "," _ ",1200,"Finance and administration",1202,"Asset Management","CE",2080,"Internally generated funds","C","IA",240," Property, plant and equipment",240,"Property, plant and equipment"," _ "," _ "," _ "," _ "," _ "," _ "," _ "," _ ",1490,"Furniture and Office Equipment",1490,"Furniture and Office Equipment",241,"PPE at cost/valuation (excl. finance leases)",241,"PPE at cost/valuation (excl. finance leases)","",null,null,1490,"Furniture and Office Equipment",1490,"Furniture and Office Equipment"," _ "," _ "," _ "," _ "," _ "," _ "," _ "," _ ","_"," _ "," _ "," _ "," _ ","_"," _ "," _ "," _ "," _ ",null,1,110,"Finance and Admin","Asset Management",null,null,"_","_","_",null,"_",0,0,0,0,0,0,0,0,0,0,0,0,0,0,0,0,0,0,0,{"$f":"INDEX([9]Sheet1!$H:$H,MATCH(CR:CR,[9]Sheet1!$AU:$AU,0))","v":{"$error":"#N/A"}}]
["C0004-10/IA06253/F0002/X024/R2865/001/FIN",null,"C0004-10/IA06253/F0002/X024/R2865/001/FIN",85109,"Assets:Non-current Assets:Property, Plant and Equipment:Cost Model:Furniture and Office Equipment:In-use:Cost:Acquisitions"," _"," _"," _ "," _ "," _ "," _ ",2100,"Community and social services",2114,"Libraries and Archives","CE",2080,"Internally generated funds","C","IA",240," Property, plant and equipment",240,"Property, plant and equipment"," _ "," _ "," _ "," _ "," _ "," _ "," _ "," _ ",1490,"Furniture and Office Equipment",1490,"Furniture and Office Equipment",241,"PPE at cost/valuation (excl. finance leases)",241,"PPE at cost/valuation (excl. finance leases)","",null,null,1490,"Furniture and Office Equipment",1490,"Furniture and Office Equipment"," _ "," _ "," _ "," _ "," _ "," _ "," _ "," _ ","_"," _ "," _ "," _ "," _ ","_"," _ "," _ "," _ "," _ ",null,3,33,"Community and social services","Libraries and Archives",null,null,"_","_","_",null,"_",0,0,0,0,0,0,0,0,0,0,0,0,0,0,0,0,0,0,0,{"$f":"INDEX([9]Sheet1!$H:$H,MATCH(CR:CR,[9]Sheet1!$AU:$AU,0))","v":{"$error":"#N/A"}}]
["C0001-4/IA08310/F0002/X055/R0073/001/FIN",null,"C0001-4/IA08310/F0002/X055/R0073/001/FIN",53268,"Assets:Non-current Assets:Property, Plant and Equipment:Revaluation:Land:General Plant:In-use:Cost:Acquisitions"," _"," _"," _ "," _ "," _ "," _ ",1200,"Finance and administration",1210,"Property Services","CE",2080,"Internally generated funds","C","IA",240," Property, plant and equipment",240,"Property, plant and equipment"," _ "," _ "," _ "," _ "," _ "," _ "," _ "," _ ",1550,"Land",1550,"Land",241,"PPE at cost/valuation (excl. finance leases)",241,"PPE at cost/valuation (excl. finance leases)","",null,null,1550,"Land",1550,"Land"," _ "," _ "," _ "," _ "," _ "," _ "," _ "," _ ","_"," _ "," _ "," _ "," _ ","_"," _ "," _ "," _ "," _ ",null,1,19,"Finance and Admin","Property Services",null,null,"_","_","_",null,"_",0,0,0,0,0,0,0,0,0,0,0,0,0,0,0,0,0,0,0,{"$f":"INDEX([9]Sheet1!$H:$H,MATCH(CR:CR,[9]Sheet1!$AU:$AU,0))","v":{"$error":"#N/A"}}]
["C0004-12/IA06253/F0002/X153/R2864/001/FIN",null,"C0004-12/IA06253/F0002/X153/R2864/001/FIN",85104,"Assets:Non-current Assets:Property, Plant and Equipment:Cost Model:Furniture and Office Equipment:In-use:Cost:Acquisitions"," _"," _"," _ "," _ "," _ "," _ ",2300,"Public safety",2307,"Police Forces, Traffic and Street Parking Control","CE",2080,"Internally generated funds","C","IA",240," Property, plant and equipment",240,"Property, plant and equipment"," _ "," _ "," _ "," _ "," _ "," _ "," _ "," _ ",1490,"Furniture and Office Equipment",1490,"Furniture and Office Equipment",241,"PPE at cost/valuation (excl. finance leases)",241,"PPE at cost/valuation (excl. finance leases)","",null,null,1490,"Furniture and Office Equipment",1490,"Furniture and Office Equipment"," _ "," _ "," _ "," _ "," _ "," _ "," _ "," _ ","_"," _ "," _ "," _ "," _ ","_"," _ "," _ "," _ "," _ ",null,8,81,"Public Safety","Police Forces, Traffic and Street Parking Control",null,null,"_","_","_",null,"_",0,0,0,0,0,0,0,0,0,0,0,0,0,0,0,0,0,0,0,{"$f":"INDEX([9]Sheet1!$H:$H,MATCH(CR:CR,[9]Sheet1!$AU:$AU,0))","v":{"$error":"#N/A"}}]
["C0004-14/IA06253/F0002/X047/R2865/001/FIN",null,"C0004-14/IA06253/F0002/X047/R2865/001/FIN",85094,"Assets:Non-current Assets:Property, Plant and Equipment:Cost Model:Furniture and Office Equipment:In-use:Cost:Acquisitions"," _"," _"," _ "," _ "," _ "," _ ",1200,"Finance and administration",1202,"Asset Management","CE",2080,"Internally generated funds","C","IA",240," Property, plant and equipment",240,"Property, plant and equipment"," _ "," _ "," _ "," _ "," _ "," _ "," _ "," _ ",1490,"Furniture and Office Equipment",1490,"Furniture and Office Equipment",241,"PPE at cost/valuation (excl. finance leases)",241,"PPE at cost/valuation (excl. finance leases)","",null,null,1490,"Furniture and Office Equipment",1490,"Furniture and Office Equipment"," _ "," _ "," _ "," _ "," _ "," _ "," _ "," _ ","_"," _ "," _ "," _ "," _ ","_"," _ "," _ "," _ "," _ ",null,1,110,"Finance and Admin","Asset Management",null,null,"_","_","_",null,"_",0,0,0,0,0,0,0,0,0,0,0,0,0,0,0,0,0,0,0,{"$f":"INDEX([9]Sheet1!$H:$H,MATCH(CR:CR,[9]Sheet1!$AU:$AU,0))","v":{"$error":"#N/A"}}]
["C0004-6/IA06258/F0002/X047/R0072/001/CORP",15496,"C0004-6/IA06258/F0002/X047/R0072/001/CORP",63408,"Assets:Non-current Assets:Property, Plant and Equipment:Cost Model:Furniture and Office Equipment:In-use:Cost:Disposals"," _"," _"," _ "," _ "," _ "," _ ",1200,"Finance and administration",1202,"Asset Management","_",2080,"Internally generated funds","C","IA",240," Property, plant and equipment",240,"Property, plant and equipment"," _ "," _ "," _ "," _ "," _ "," _ "," _ "," _ ",1490,"Furniture and Office Equipment",1490,"Furniture and Office Equipment",241,"PPE at cost/valuation (excl. finance leases)",241,"PPE at cost/valuation (excl. finance leases)","",null,null,1490,"Furniture and Office Equipment",1490,"Furniture and Office Equipment"," _ "," _ "," _ "," _ "," _ "," _ "," _ "," _ ","_"," _ "," _ "," _ "," _ ","_"," _ "," _ "," _ "," _ ",null,1,110,"Finance and Admin","Asset Management",null,null,"_","_","_",null,"_",0,0,0,0,0,0,0,0,0,0,0,0,0,0,0,0,0,0,0,{"$f":"INDEX([9]Sheet1!$H:$H,MATCH(CR:CR,[9]Sheet1!$AU:$AU,0))","v":{"$error":"#N/A"}}]
["C0004-8/IA06193/F0002/X052/R0072/001/FIN",15768,"C0004-8/IA06193/F0002/X052/R0072/001/FIN",73662,"Assets:Non-current Assets:Property, Plant and Equipment:Cost Model:Computer Equipment:In-use:Cost:Acquisitions"," _"," _"," _ "," _ "," _ "," _ ",1200,"Finance and administration",1207,"Information Technology","CE",2080,"Internally generated funds","C","IA",240," Property, plant and equipment",240,"Property, plant and equipment"," _ "," _ "," _ "," _ "," _ "," _ "," _ "," _ ",1470,"Computer Equipment",1470,"Computer Equipment",241,"PPE at cost/valuation (excl. finance leases)",241,"PPE at cost/valuation (excl. finance leases)","",null,null,1490,"Furniture and Office Equipment",1490,"Furniture and Office Equipment"," _ "," _ "," _ "," _ "," _ "," _ "," _ "," _ ","_"," _ "," _ "," _ "," _ ","_"," _ "," _ "," _ "," _ ",null,1,15,"Finance and Admin","Information Technology",null,null,"_","_","_",null,"_",0,0,0,0,0,0,0,0,0,0,0,0,0,0,0,0,0,0,0,{"$f":"INDEX([9]Sheet1!$H:$H,MATCH(CR:CR,[9]Sheet1!$AU:$AU,0))","v":{"$error":"#N/A"}}]
["C0003-1/IA05101/F0002/X047/R0072/001/FIN",1481,"C0003-1/IA05101/F0002/X047/R0072/001/FIN",42193,"Assets:Non-current Assets:Intangible Assets:Cost:Other:In-use:Computer Software:Acquisitions"," _"," _"," _ "," _ "," _ "," _ ",1200,"Finance and administration",1202,"Asset Management","CE",2080,"Internally generated funds","C","IA",270," Intangible",270,"Intangible"," _ "," _ "," _ "," _ "," _ "," _ "," _ "," _ ",1370,"Intangible Assets",1370,"Intangible Assets"," _ "," _ "," _ "," _ ","",null,null,1470,"Computer Equipment",1470,"Computer Equipment"," _ "," _ "," _ "," _ "," _ "," _ "," _ "," _ ","_"," _ "," _ "," _ "," _ ","_"," _ "," _ "," _ "," _ ",null,1,110,"Finance and Admin","Asset Management",null,null,"_","_","_",null,"_",0,0,0,0,0,0,0,0,0,0,0,0,0,0,0,0,0,0,0,{"$f":"INDEX([9]Sheet1!$H:$H,MATCH(CR:CR,[9]Sheet1!$AU:$AU,0))","v":{"$error":"#N/A"}}]
["C0004-1/IA06243/F0002/X060/R0072/001/FIN",2864,"C0004-1/IA06243/F0002/X060/R0072/001/FIN",52579,"Assets:Non-current Assets:Property, Plant and Equipment:Cost Model:Furniture and Office Equipment:In-use:Accumulated Depreciation:Depreciation"," _"," _"," _ "," _ "," _ "," _ ",1200,"Finance and administration",1202,"Asset Management","_",2080,"Internally generated funds","C","IA",240," Property, plant and equipment",240,"Property, plant and equipment"," _ "," _ "," _ "," _ "," _ "," _ "," _ "," _ ",1490,"Furniture and Office Equipment",1490,"Furniture and Office Equipment",243,"Less: Accumulated depreciation",243,"Less: Accumulated depreciation","",null,null,1490,"Furniture and Office Equipment",1490,"Furniture and Office Equipment"," _ "," _ "," _ "," _ "," _ "," _ "," _ "," _ ","_"," _ "," _ "," _ "," _ ","_"," _ "," _ "," _ "," _ ",null,1,110,"Finance and Admin","Asset Management",null,null,"_","_","_",null,"_",0,0,0,0,0,0,0,0,0,0,0,0,0,0,0,0,0,0,0,{"$f":"INDEX([9]Sheet1!$H:$H,MATCH(CR:CR,[9]Sheet1!$AU:$AU,0))","v":{"$error":"#N/A"}}]
["C0004-2/IA06243/F0002/X024/R0073/001/LIB",6386,"C0004-2/IA06243/F0002/X024/R0073/001/LIB",63388,"Assets:Non-current Assets:Property, Plant and Equipment:Cost Model:Furniture and Office Equipment:In-use:Accumulated Depreciation:Depreciation"," _"," _"," _ "," _ "," _ "," _ ",2100,"Community and social services",2114,"Libraries and Archives","_",2080,"Internally generated funds","C","IA",240," Property, plant and equipment",240,"Property, plant and equipment"," _ "," _ "," _ "," _ "," _ "," _ "," _ "," _ ",1490,"Furniture and Office Equipment",1490,"Furniture and Office Equipment",243,"Less: Accumulated depreciation",243,"Less: Accumulated depreciation","",null,null,1490,"Furniture and Office Equipment",1490,"Furniture and Office Equipment"," _ "," _ "," _ "," _ "," _ "," _ "," _ "," _ ","_"," _ "," _ "," _ "," _ ","_"," _ "," _ "," _ "," _ ",null,3,33,"Community and social services","Libraries and Archives",null,null,"_","_","_",null,"_",0,0,0,0,0,0,0,0,0,0,0,0,0,0,0,0,0,0,0,{"$f":"INDEX([9]Sheet1!$H:$H,MATCH(CR:CR,[9]Sheet1!$AU:$AU,0))","v":{"$error":"#N/A"}}]
["C0004-7/IA10277/F0002/X024/R0073/001/LIB",15733,"C0004-7/IA10277/F0002/X024/R0073/001/LIB",63647,"Assets:Current Assets:Operating Lease - Straight Lining:Opening Balance"," _"," _"," _ "," _ "," _ "," _ ",2100,"Community and social services",2114,"Libraries and Archives","_",2080,"Internally generated funds","C","IA",150,"Other debtors",150,"Other debtors"," _ "," _ "," _ "," _ "," _ "," _ "," _ "," _ "," _ "," _ "," _ "," _ "," _ "," _ "," _ "," _ ","",null,null,1490,"Furniture and Office Equipment",1490,"Furniture and Office Equipment"," _ "," _ "," _ "," _ "," _ "," _ "," _ "," _ ","_"," _ "," _ "," _ "," _ ","_"," _ "," _ "," _ "," _ ",null,3,33,"Community and social services","Libraries and Archives",null,null,"_","_","_",null,"_",0,0,0,0,0,0,0,0,0,0,0,0,0,0,0,0,0,0,0,{"$f":"INDEX([9]Sheet1!$H:$H,MATCH(CR:CR,[9]Sheet1!$AU:$AU,0))","v":{"$error":"#N/A"}}]
["C0006-1/IA06313/F0002/X047/R0072/001/COMM",2614,"C0006-1/IA06313/F0002/X047/R0072/001/COMM",52326,"Assets:Non-current Assets:Property, Plant and Equipment:Cost Model:Machinery and Equipment:In-use:Cost:Acquisitions"," _"," _"," _ "," _ "," _ "," _ ",1200,"Finance and administration",1202,"Asset Management","CE",2080,"Internally generated funds","C","IA",240," Property, plant and equipment",240,"Property, plant and equipment"," _ "," _ "," _ "," _ "," _ "," _ "," _ "," _ ",1510,"Machinery and Equipment",1510,"Machinery and Equipment",241,"PPE at cost/valuation (excl. finance leases)",241,"PPE at cost/valuation (excl. finance leases)","",null,null,1510,"Machinery and Equipment",1510,"Machinery and Equipment"," _ "," _ "," _ "," _ "," _ "," _ "," _ "," _ ","_"," _ "," _ "," _ "," _ ","_"," _ "," _ "," _ "," _ ",null,1,110,"Finance and Admin","Asset Management",null,null,"_","_","_",null,"_",0,0,0,0,0,0,0,0,0,0,0,0,0,0,0,0,0,0,0,{"$f":"INDEX([9]Sheet1!$H:$H,MATCH(CR:CR,[9]Sheet1!$AU:$AU,0))","v":{"$error":"#N/A"}}]
["C0003-1/IA06199/F0002/X047/R0072/001/FIN",4802,"C0003-1/IA06199/F0002/X047/R0072/001/FIN",52766,"Assets:Non-current Assets:Property, Plant and Equipment:Cost Model:Computer Equipment:In-use:Cost:Opening Balance"," _"," _"," _ "," _ "," _ "," _ ",1200,"Finance and administration",1202,"Asset Management","_",2080,"Internally generated funds","C","IA",240," Property, plant and equipment",240,"Property, plant and equipment"," _ "," _ "," _ "," _ "," _ "," _ "," _ "," _ ",1470,"Computer Equipment",1470,"Computer Equipment",241,"PPE at cost/valuation (excl. finance leases)",241,"PPE at cost/valuation (excl. finance leases)","",null,null,1470,"Computer Equipment",1470,"Computer Equipment"," _ "," _ "," _ "," _ "," _ "," _ "," _ "," _ ","_"," _ "," _ "," _ "," _ ","_"," _ "," _ "," _ "," _ ",null,1,110,"Finance and Admin","Asset Management",null,null,"_","_","_",null,"_",0,0,0,0,0,0,0,0,0,0,0,0,0,0,0,0,0,0,0,{"$f":"INDEX([9]Sheet1!$H:$H,MATCH(CR:CR,[9]Sheet1!$AU:$AU,0))","v":{"$error":"#N/A"}}]
["C0003-1/IA09786/F0002/X047/R0073/001/FIN",18690,"C0003-1/IA09786/F0002/X047/R0073/001/FIN",85590,"Assets:Current Assets:Cash and Cash Equivalents:Cash at Bank:Bank Account:Specify (replace with account description):Withdrawals"," _"," _"," _ "," _ "," _ "," _ ",1200,"Finance and administration",1202,"Asset Management","_",2080,"Internally generated funds","C","IA",120,"Cash",120,"Cash"," _ "," _ "," _ "," _ ",310,"Other Cash Flows/Payments by Type / Capital assets",510,"Capital assets"," _ "," _ "," _ "," _ "," _ "," _ "," _ "," _ ","",null,"W",1470,"Computer Equipment",1470,"Computer Equipment"," _ "," _ "," _ "," _ "," _ "," _ "," _ "," _ ","_"," _ "," _ "," _ "," _ ","_"," _ "," _ "," _ "," _ ",null,1,110,"Finance and Admin","Asset Management",null,null,"_","_","_",null,"_",-11910068,0,0,0,-11910068,-4854913,-5073384,0,0,0,0,0,0,0,0,0,0,0,0,{"$f":"INDEX([9]Sheet1!$H:$H,MATCH(CR:CR,[9]Sheet1!$AU:$AU,0))","v":{"$error":"#N/A"}}]
["C0004-1/IA06253/F0002/X006/R0072/001/TRAF",2620,"C0004-1/IA06253/F0002/X006/R0072/001/TRAF",52332,"Assets:Non-current Assets:Property, Plant and Equipment:Cost Model:Furniture and Office Equipment:In-use:Cost:Acquisitions"," _"," _"," _ "," _ "," _ "," _ ",2100,"Community and social services",2106,"Community Halls and Facilities","CE",2080,"Internally generated funds","C","IA",240," Property, plant and equipment",240,"Property, plant and equipment"," _ "," _ "," _ "," _ "," _ "," _ "," _ "," _ ",1490,"Furniture and Office Equipment",1490,"Furniture and Office Equipment",241,"PPE at cost/valuation (excl. finance leases)",241,"PPE at cost/valuation (excl. finance leases)","",null,null,1490,"Furniture and Office Equipment",1490,"Furniture and Office Equipment"," _ "," _ "," _ "," _ "," _ "," _ "," _ "," _ ","_"," _ "," _ "," _ "," _ ","_"," _ "," _ "," _ "," _ ",null,3,32,"Community and social services","Community Halls and Facilities",null,null,"_","_","_",null,"_",0,0,0,0,0,0,0,0,0,0,0,0,0,0,0,0,0,0,0,{"$f":"INDEX([9]Sheet1!$H:$H,MATCH(CR:CR,[9]Sheet1!$AU:$AU,0))","v":{"$error":"#N/A"}}]
["C0004-1/IA06253/F0002/X047/R0072/001/FIN",2871,"C0004-1/IA06253/F0002/X047/R0072/001/FIN",52586,"Assets:Non-current Assets:Property, Plant and Equipment:Cost Model:Furniture and Office Equipment:In-use:Cost:Acquisitions"," _"," _"," _ "," _ "," _ "," _ ",1200,"Finance and administration",1202,"Asset Management","CE",2080,"Internally generated funds","C","IA",240," Property, plant and equipment",240,"Property, plant and equipment"," _ "," _ "," _ "," _ "," _ "," _ "," _ "," _ ",1490,"Furniture and Office Equipment",1490,"Furniture and Office Equipment",241,"PPE at cost/valuation (excl. finance leases)",241,"PPE at cost/valuation (excl. finance leases)","",null,null,1490,"Furniture and Office Equipment",1490,"Furniture and Office Equipment"," _ "," _ "," _ "," _ "," _ "," _ "," _ "," _ ","_"," _ "," _ "," _ "," _ ","_"," _ "," _ "," _ "," _ ",null,1,110,"Finance and Admin","Asset Management",null,null,"_","_","_",null,"_",0,0,0,0,0,0,0,0,0,0,0,0,0,0,0,0,0,0,0,{"$f":"INDEX([9]Sheet1!$H:$H,MATCH(CR:CR,[9]Sheet1!$AU:$AU,0))","v":{"$error":"#N/A"}}]
["C0004-11/IA06253/F0002/X024/R2867/001/FIN",null,"C0004-11/IA06253/F0002/X024/R2867/001/FIN",85114,"Assets:Non-current Assets:Property, Plant and Equipment:Cost Model:Furniture and Office Equipment:In-use:Cost:Acquisitions"," _"," _"," _ "," _ "," _ "," _ ",2100,"Community and social services",2114,"Libraries and Archives","CE",2080,"Internally generated funds","C","IA",240," Property, plant and equipment",240,"Property, plant and equipment"," _ "," _ "," _ "," _ "," _ "," _ "," _ "," _ ",1490,"Furniture and Office Equipment",1490,"Furniture and Office Equipment",241,"PPE at cost/valuation (excl. finance leases)",241,"PPE at cost/valuation (excl. finance leases)","",null,null,1490,"Furniture and Office Equipment",1490,"Furniture and Office Equipment"," _ "," _ "," _ "," _ "," _ "," _ "," _ "," _ ","_"," _ "," _ "," _ "," _ ","_"," _ "," _ "," _ "," _ ",null,3,33,"Community and social services","Libraries and Archives",null,null,"_","_","_",null,"_",0,0,0,0,0,0,0,0,0,0,0,0,0,0,0,0,0,0,0,{"$f":"INDEX([9]Sheet1!$H:$H,MATCH(CR:CR,[9]Sheet1!$AU:$AU,0))","v":{"$error":"#N/A"}}]
["C0004-2/IA06253/F0002/X024/R0073/001/LIB",6387,"C0004-2/IA06253/F0002/X024/R0073/001/LIB",63389,"Assets:Non-current Assets:Property, Plant and Equipment:Cost Model:Furniture and Office Equipment:In-use:Cost:Acquisitions"," _"," _"," _ "," _ "," _ "," _ ",2100,"Community and social services",2114,"Libraries and Archives","CE",2080,"Internally generated funds","C","IA",240," Property, plant and equipment",240,"Property, plant and equipment"," _ "," _ "," _ "," _ "," _ "," _ "," _ "," _ ",1490,"Furniture and Office Equipment",1490,"Furniture and Office Equipment",241,"PPE at cost/valuation (excl. finance leases)",241,"PPE at cost/valuation (excl. finance leases)","",null,null,1490,"Furniture and Office Equipment",1490,"Furniture and Office Equipment"," _ "," _ "," _ "," _ "," _ "," _ "," _ "," _ ","_"," _ "," _ "," _ "," _ ","_"," _ "," _ "," _ "," _ ",null,3,33,"Community and social services","Libraries and Archives",null,null,"_","_","_",null,"_",0,0,0,0,0,0,0,0,0,0,0,0,0,0,0,0,0,0,0,{"$f":"INDEX([9]Sheet1!$H:$H,MATCH(CR:CR,[9]Sheet1!$AU:$AU,0))","v":{"$error":"#N/A"}}]
["C0004-3/IA06253/F0002/X047/R0072/001/CORP",15490,"C0004-3/IA06253/F0002/X047/R0072/001/CORP",63406,"Assets:Non-current Assets:Property, Plant and Equipment:Cost Model:Furniture and Office Equipment:In-use:Cost:Acquisitions"," _"," _"," _ "," _ "," _ "," _ ",1200,"Finance and administration",1202,"Asset Management","CE",2080,"Internally generated funds","C","IA",240," Property, plant and equipment",240,"Property, plant and equipment"," _ "," _ "," _ "," _ "," _ "," _ "," _ "," _ ",1490,"Furniture and Office Equipment",1490,"Furniture and Office Equipment",241,"PPE at cost/valuation (excl. finance leases)",241,"PPE at cost/valuation (excl. finance leases)","",null,null,1490,"Furniture and Office Equipment",1490,"Furniture and Office Equipment"," _ "," _ "," _ "," _ "," _ "," _ "," _ "," _ ","_"," _ "," _ "," _ "," _ ","_"," _ "," _ "," _ "," _ ",null,1,110,"Finance and Admin","Asset Management",null,null,"_","_","_",null,"_",522500,0,0,-222500,300000,522500,546013,0,0,0,0,0,157000,0,0,0,0,0,0,{"$f":"INDEX([9]Sheet1!$H:$H,MATCH(CR:CR,[9]Sheet1!$AU:$AU,0))","v":{"$error":"#N/A"}}]
["C0006-1/IA06313/F0002/X060/R0073/001/FIN",2858,"C0006-1/IA06313/F0002/X060/R0073/001/FIN",52573,"Assets:Non-current Assets:Property, Plant and Equipment:Cost Model:Machinery and Equipment:In-use:Cost:Acquisitions"," _"," _"," _ "," _ "," _ "," _ ",1200,"Finance and administration",1202,"Asset Management","CE",2080,"Internally generated funds","C","IA",240," Property, plant and equipment",240,"Property, plant and equipment"," _ "," _ "," _ "," _ "," _ "," _ "," _ "," _ ",1510,"Machinery and Equipment",1510,"Machinery and Equipment",241,"PPE at cost/valuation (excl. finance leases)",241,"PPE at cost/valuation (excl. finance leases)","",null,null,1510,"Machinery and Equipment",1510,"Machinery and Equipment"," _ "," _ "," _ "," _ "," _ "," _ "," _ "," _ ","_"," _ "," _ "," _ "," _ ","_"," _ "," _ "," _ "," _ ",null,1,110,"Finance and Admin","Asset Management",null,null,"_","_","_",null,"_",1867500,0,0,-77500,1790000,1567500,1638038,0,0,0,0,0,1708210.87,0,0,0,0,0,0,{"$f":"INDEX([9]Sheet1!$H:$H,MATCH(CR:CR,[9]Sheet1!$AU:$AU,0))","v":{"$error":"#N/A"}}]
["C0006-10/IA06313/F0002/X153/R0073/001/FIN",null,"C0006-10/IA06313/F0002/X153/R0073/001/FIN",85049,"Assets:Non-current Assets:Property, Plant and Equipment:Cost Model:Machinery and Equipment:In-use:Cost:Acquisitions"," _"," _"," _ "," _ "," _ "," _ ",2300,"Public safety",2307,"Police Forces, Traffic and Street Parking Control","CE",2080,"Internally generated funds","C","IA",240," Property, plant and equipment",240,"Property, plant and equipment"," _ "," _ "," _ "," _ "," _ "," _ "," _ "," _ ",1510,"Machinery and Equipment",1510,"Machinery and Equipment",241,"PPE at cost/valuation (excl. finance leases)",241,"PPE at cost/valuation (excl. finance leases)","",null,null,1510,"Machinery and Equipment",1510,"Machinery and Equipment"," _ "," _ "," _ "," _ "," _ "," _ "," _ "," _ ","_"," _ "," _ "," _ "," _ ","_"," _ "," _ "," _ "," _ ",null,8,81,"Public Safety","Police Forces, Traffic and Street Parking Control",null,null,"_","_","_",null,"_",0,0,0,0,0,0,0,0,0,0,0,0,0,0,0,0,0,0,0,{"$f":"INDEX([9]Sheet1!$H:$H,MATCH(CR:CR,[9]Sheet1!$AU:$AU,0))","v":{"$error":"#N/A"}}]
["C0006-13/IA06313/F0002/X153/R0072/001/FIN",null,"C0006-13/IA06313/F0002/X153/R0072/001/FIN",85059,"Assets:Non-current Assets:Property, Plant and Equipment:Cost Model:Machinery and Equipment:In-use:Cost:Acquisitions"," _"," _"," _ "," _ "," _ "," _ ",2300,"Public safety",2307,"Police Forces, Traffic and Street Parking Control","CE",2080,"Internally generated funds","C","IA",240," Property, plant and equipment",240,"Property, plant and equipment"," _ "," _ "," _ "," _ "," _ "," _ "," _ "," _ ",1510,"Machinery and Equipment",1510,"Machinery and Equipment",241,"PPE at cost/valuation (excl. finance leases)",241,"PPE at cost/valuation (excl. finance leases)","",null,null,1510,"Machinery and Equipment",1510,"Machinery and Equipment"," _ "," _ "," _ "," _ "," _ "," _ "," _ "," _ ","_"," _ "," _ "," _ "," _ ","_"," _ "," _ "," _ "," _ ",null,8,81,"Public Safety","Police Forces, Traffic and Street Parking Control",null,null,"_","_","_",null,"_",0,0,0,0,0,0,0,0,0,0,0,0,0,0,0,0,0,0,0,{"$f":"INDEX([9]Sheet1!$H:$H,MATCH(CR:CR,[9]Sheet1!$AU:$AU,0))","v":{"$error":"#N/A"}}]
["C0006-6/IA06313/F09680/X019/R0072/001/TRAF",16866,"C0006-6/IA06313/F09680/X019/R0072/001/TRAF",83763,"Assets:Non-current Assets:Property, Plant and Equipment:Cost Model:Machinery and Equipment:In-use:Cost:Acquisitions"," _"," _"," _ "," _ "," _ "," _ ",2100,"Community and social services",2109,"Disaster Management","CE",2010,"National Government","C","IA",240," Property, plant and equipment",240,"Property, plant and equipment"," _ "," _ "," _ "," _ "," _ "," _ "," _ "," _ ",1510,"Machinery and Equipment",1510,"Machinery and Equipment",241,"PPE at cost/valuation (excl. finance leases)",241,"PPE at cost/valuation (excl. finance leases)","",null,null,1510,"Machinery and Equipment",1510,"Machinery and Equipment"," _ "," _ "," _ "," _ "," _ "," _ "," _ "," _ ","_"," _ "," _ "," _ "," _ ","_"," _ "," _ "," _ "," _ ",null,3,31,"Community and social services","Disaster Management",null,null,"_","_","_",null,"_",0,0,0,0,0,0,0,0,0,0,0,0,0,0,0,0,0,0,0,{"$f":"INDEX([9]Sheet1!$H:$H,MATCH(CR:CR,[9]Sheet1!$AU:$AU,0))","v":{"$error":"#N/A"}}]
["C0007-4/IA01367/F0002/X019/R0073/001/FIN",null,"C0007-4/IA01367/F0002/X019/R0073/001/FIN",85087,"Assets:Non-current Assets:Property, Plant and Equipment:Cost Model:Transport Assets:Owned and In-use:Cost:Acquisitions"," _"," _"," _ "," _ "," _ "," _ ",2100,"Community and social services",2109,"Disaster Management","CE",2080,"Internally generated funds","C","IA",240," Property, plant and equipment",240,"Property, plant and equipment"," _ "," _ "," _ "," _ "," _ "," _ "," _ "," _ ",1530,"Transport Assets",1530,"Transport Assets",241,"PPE at cost/valuation (excl. finance leases)",241,"PPE at cost/valuation (excl. finance leases)","",null,null,1530,"Transport Assets",1530,"Transport Assets"," _ "," _ "," _ "," _ "," _ "," _ "," _ "," _ ","_"," _ "," _ "," _ "," _ ","_"," _ "," _ "," _ "," _ ",null,3,31,"Community and social services","Disaster Management",null,null,"_","_","_",null,"_",0,0,0,0,0,0,0,0,0,0,0,0,0,0,0,0,0,0,0,{"$f":"INDEX([9]Sheet1!$H:$H,MATCH(CR:CR,[9]Sheet1!$AU:$AU,0))","v":{"$error":"#N/A"}}]
["C0019-24/IA01952/F0786/X035/R2869/001/Tech",15762,"C0019-24/IA01952/F0786/X035/R2869/001/Tech",63674,"Assets:Non-current Assets:Construction Work-in-progress:Acquisitions:Outsourced"," _"," _"," _ "," _ "," _ "," _ ",4100,"Energy sources",4101,"Electricity ","CE",2010,"National Government","C","IA",240," Property, plant and equipment",240,"Property, plant and equipment"," _ "," _ "," _ "," _ "," _ "," _ "," _ "," _ "," _ "," _ "," _ "," _ ",241,"PPE at cost/valuation (excl. finance leases)",241,"PPE at cost/valuation (excl. finance leases)","",null,null,280,"LV Networks",280,"LV Networks"," _ "," _ "," _ "," _ "," _ "," _ "," _ "," _ ","_"," _ "," _ "," _ "," _ ","_"," _ "," _ "," _ "," _ ",null,6,61,"Energy Sources","Electricity",null,null,"_","_","_",200,"_",0,0,0,0,0,0,0,0,0,0,0,0,0,0,0,0,0,0,0,{"$f":"INDEX([9]Sheet1!$H:$H,MATCH(CR:CR,[9]Sheet1!$AU:$AU,0))","v":{"$error":"#N/A"}}]
["C0019-26/IA01952/F0002/X101/R2861/001/Tech",15772,"C0019-26/IA01952/F0002/X101/R2861/001/Tech",73669,"Assets:Non-current Assets:Construction Work-in-progress:Acquisitions:Outsourced"," _"," _"," _ "," _ "," _ "," _ ",3100,"Planning and development",3107,"Town Planning, Building Regulations and Enforcement, and City Engineer","CE",2080,"Internally generated funds","C","IA",240," Property, plant and equipment",240,"Property, plant and equipment"," _ "," _ "," _ "," _ "," _ "," _ "," _ "," _ "," _ "," _ "," _ "," _ ",241,"PPE at cost/valuation (excl. finance leases)",241,"PPE at cost/valuation (excl. finance leases)","",null,null,280,"LV Networks",280,"LV Networks"," _ "," _ "," _ "," _ "," _ "," _ "," _ "," _ ","_"," _ "," _ "," _ "," _ ","_"," _ "," _ "," _ "," _ ",null,7,72,"Planning and Development","Town Planning, Building Regulations and Enforcement, and City Engineer",null,null,"_","_","_",200,"_",0,0,0,0,0,0,0,0,0,0,0,0,0,0,0,0,0,0,0,{"$f":"INDEX([9]Sheet1!$H:$H,MATCH(CR:CR,[9]Sheet1!$AU:$AU,0))","v":{"$error":"#N/A"}}]
["C0019-4/IA01952/F0786/X035/R2859/001/Tech",786,"C0019-4/IA01952/F0786/X035/R2859/001/Tech",31222,"Assets:Non-current Assets:Construction Work-in-progress:Acquisitions:Outsourced"," _"," _"," _ "," _ "," _ "," _ ",4100,"Energy sources",4101,"Electricity ","CE",2010,"National Government","C","IA",240," Property, plant and equipment",240,"Property, plant and equipment"," _ "," _ "," _ "," _ "," _ "," _ "," _ "," _ "," _ "," _ "," _ "," _ ",241,"PPE at cost/valuation (excl. finance leases)",241,"PPE at cost/valuation (excl. finance leases)","",null,null,280,"LV Networks",280,"LV Networks"," _ "," _ "," _ "," _ "," _ "," _ "," _ "," _ ","_"," _ "," _ "," _ "," _ ","_"," _ "," _ "," _ "," _ ",null,6,61,"Energy Sources","Electricity",null,null,"_","_","_",200,"_",0,0,0,0,0,0,0,0,0,0,0,0,0,0,0,0,0,0,0,{"$f":"INDEX([9]Sheet1!$H:$H,MATCH(CR:CR,[9]Sheet1!$AU:$AU,0))","v":{"$error":"#N/A"}}]
["C0006-11/IA06313/F0002/X047/R2865/001/FIN",null,"C0006-11/IA06313/F0002/X047/R2865/001/FIN",53247,"Assets:Non-current Assets:Property, Plant and Equipment:Cost Model:Machinery and Equipment:In-use:Cost:Acquisitions"," _"," _"," _ "," _ "," _ "," _ ",1200,"Finance and administration",1202,"Asset Management","CE",2080,"Internally generated funds","C","IA",240," Property, plant and equipment",240,"Property, plant and equipment"," _ "," _ "," _ "," _ "," _ "," _ "," _ "," _ ",1510,"Machinery and Equipment",1510,"Machinery and Equipment",241,"PPE at cost/valuation (excl. finance leases)",241,"PPE at cost/valuation (excl. finance leases)","",null,null,1510,"Machinery and Equipment",1510,"Machinery and Equipment"," _ "," _ "," _ "," _ "," _ "," _ "," _ "," _ ","_"," _ "," _ "," _ "," _ ","_"," _ "," _ "," _ "," _ ",null,1,110,"Finance and Admin","Asset Management",null,null,"_","_","_",null,"_",0,0,0,0,0,0,0,0,0,0,0,0,0,0,0,0,0,0,0,{"$f":"INDEX([9]Sheet1!$H:$H,MATCH(CR:CR,[9]Sheet1!$AU:$AU,0))","v":{"$error":"#N/A"}}]
["C0006-3/IA06313/F0002/X132/R0073/001/COMM",6385,"C0006-3/IA06313/F0002/X132/R0073/001/COMM",63387,"Assets:Non-current Assets:Property, Plant and Equipment:Cost Model:Machinery and Equipment:In-use:Cost:Acquisitions"," _"," _"," _ "," _ "," _ "," _ ",4400,"Waste management",4403,"Solid Waste Removal","CE",2080,"Internally generated funds","C","IA",240," Property, plant and equipment",240,"Property, plant and equipment"," _ "," _ "," _ "," _ "," _ "," _ "," _ "," _ ",1510,"Machinery and Equipment",1510,"Machinery and Equipment",241,"PPE at cost/valuation (excl. finance leases)",241,"PPE at cost/valuation (excl. finance leases)","",null,null,1510,"Machinery and Equipment",1510,"Machinery and Equipment"," _ "," _ "," _ "," _ "," _ "," _ "," _ "," _ ","_"," _ "," _ "," _ "," _ ","_"," _ "," _ "," _ "," _ ",null,5,51,"Waste Management","Solid Waste Removal",null,null,"_","_","_",null,"_",450000,0,0,-450000,0,0,0,0,0,0,0,0,0,0,0,0,0,0,0,{"$f":"INDEX([9]Sheet1!$H:$H,MATCH(CR:CR,[9]Sheet1!$AU:$AU,0))","v":{"$error":"#N/A"}}]
["C0006-7/IA06313/F0002/X060/R2864/001/FIN",null,"C0006-7/IA06313/F0002/X060/R2864/001/FIN",85064,"Assets:Non-current Assets:Property, Plant and Equipment:Cost Model:Machinery and Equipment:In-use:Cost:Acquisitions"," _"," _"," _ "," _ "," _ "," _ ",1200,"Finance and administration",1202,"Asset Management","CE",2080,"Internally generated funds","C","IA",240," Property, plant and equipment",240,"Property, plant and equipment"," _ "," _ "," _ "," _ "," _ "," _ "," _ "," _ ",1510,"Machinery and Equipment",1510,"Machinery and Equipment",241,"PPE at cost/valuation (excl. finance leases)",241,"PPE at cost/valuation (excl. finance leases)","",null,null,1510,"Machinery and Equipment",1510,"Machinery and Equipment"," _ "," _ "," _ "," _ "," _ "," _ "," _ "," _ ","_"," _ "," _ "," _ "," _ ","_"," _ "," _ "," _ "," _ ",null,1,110,"Finance and Admin","Asset Management",null,null,"_","_","_",null,"_",0,0,0,0,0,0,0,0,0,0,0,0,0,0,0,0,0,0,0,{"$f":"INDEX([9]Sheet1!$H:$H,MATCH(CR:CR,[9]Sheet1!$AU:$AU,0))","v":{"$error":"#N/A"}}]
["C0007-2/IA01367/F0002/X050/R0073/001/Tech",5360,"C0007-2/IA01367/F0002/X050/R0073/001/Tech",53363,"Assets:Non-current Assets:Property, Plant and Equipment:Cost Model:Transport Assets:Owned and In-use:Cost:Acquisitions"," _"," _"," _ "," _ "," _ "," _ ",1200,"Finance and administration",1205,"Fleet Management","CE",2080,"Internally generated funds","C","IA",240," Property, plant and equipment",240,"Property, plant and equipment"," _ "," _ "," _ "," _ "," _ "," _ "," _ "," _ ",1530,"Transport Assets",1530,"Transport Assets",241,"PPE at cost/valuation (excl. finance leases)",241,"PPE at cost/valuation (excl. finance leases)","",null,null,1530,"Transport Assets",1530,"Transport Assets"," _ "," _ "," _ "," _ "," _ "," _ "," _ "," _ ","_"," _ "," _ "," _ "," _ ","_"," _ "," _ "," _ "," _ ",null,1,13,"Finance and Admin","Fleet Management",null,null,"_","_","_",null,"_",0,0,0,0,0,0,0,0,0,0,0,0,0,0,0,0,0,0,0,{"$f":"INDEX([9]Sheet1!$H:$H,MATCH(CR:CR,[9]Sheet1!$AU:$AU,0))","v":{"$error":"#N/A"}}]
["C0007-7/IA01367/F0002/X132/R0073/001/FIN",null,"C0007-7/IA01367/F0002/X132/R0073/001/FIN",85074,"Assets:Non-current Assets:Property, Plant and Equipment:Cost Model:Transport Assets:Owned and In-use:Cost:Acquisitions"," _"," _"," _ "," _ "," _ "," _ ",4400,"Waste management",4403,"Solid Waste Removal","CE",2080,"Internally generated funds","C","IA",240," Property, plant and equipment",240,"Property, plant and equipment"," _ "," _ "," _ "," _ "," _ "," _ "," _ "," _ ",1530,"Transport Assets",1530,"Transport Assets",241,"PPE at cost/valuation (excl. finance leases)",241,"PPE at cost/valuation (excl. finance leases)","",null,null,1530,"Transport Assets",1530,"Transport Assets"," _ "," _ "," _ "," _ "," _ "," _ "," _ "," _ ","_"," _ "," _ "," _ "," _ ","_"," _ "," _ "," _ "," _ ",null,5,51,"Waste Management","Solid Waste Removal",null,null,"_","_","_",null,"_",0,0,0,0,0,0,0,0,0,0,0,0,0,0,0,0,0,0,0,{"$f":"INDEX([9]Sheet1!$H:$H,MATCH(CR:CR,[9]Sheet1!$AU:$AU,0))","v":{"$error":"#N/A"}}]
["C0006-11/IA06313/F0002/X044/R2865/001/FIN",null,"C0006-11/IA06313/F0002/X044/R2865/001/FIN",63559,"Assets:Non-current Assets:Property, Plant and Equipment:Cost Model:Machinery and Equipment:In-use:Cost:Acquisitions"," _"," _"," _ "," _ "," _ "," _ ",1100,"Executive and council",1110,"Mayor and Council","CE",2080,"Internally generated funds","C","IA",240," Property, plant and equipment",240,"Property, plant and equipment"," _ "," _ "," _ "," _ "," _ "," _ "," _ "," _ ",1510,"Machinery and Equipment",1510,"Machinery and Equipment",241,"PPE at cost/valuation (excl. finance leases)",241,"PPE at cost/valuation (excl. finance leases)","",null,null,1510,"Machinery and Equipment",1510,"Machinery and Equipment"," _ "," _ "," _ "," _ "," _ "," _ "," _ "," _ ","_"," _ "," _ "," _ "," _ ","_"," _ "," _ "," _ "," _ ",null,2,21,"Executive and council","Mayor and Council",null,null,"_","_","_",null,"_",0,0,0,150000,150000,209000,218405,0,0,0,0,0,0,0,0,0,0,0,0,{"$f":"INDEX([9]Sheet1!$H:$H,MATCH(CR:CR,[9]Sheet1!$AU:$AU,0))","v":{"$error":"#N/A"}}]
["C0006-14/IA05862/F0002/X153/R0072/001/TRAF",null,"C0006-14/IA05862/F0002/X153/R0072/001/TRAF",63486,"Assets:Non-current Assets:Property, Plant and Equipment:Leased Assets:Machinery and Equipment:In-use:Cost:Acquisitions"," _"," _"," _ "," _ "," _ "," _ ",2300,"Public safety",2307,"Police Forces, Traffic and Street Parking Control","CE",2080,"Internally generated funds","C","IA",240," Property, plant and equipment",240,"Property, plant and equipment"," _ "," _ "," _ "," _ "," _ "," _ "," _ "," _ ",1510,"Machinery and Equipment",1510,"Machinery and Equipment",242,"Leases recognised as PPE",242,"Leases recognised as PPE","",null,null,1510,"Machinery and Equipment",1510,"Machinery and Equipment"," _ "," _ "," _ "," _ "," _ "," _ "," _ "," _ ","_"," _ "," _ "," _ "," _ ","_"," _ "," _ "," _ "," _ ",null,8,81,"Public Safety","Police Forces, Traffic and Street Parking Control",null,null,"_","_","_",null,"_",0,0,0,0,0,0,0,0,0,0,0,0,0,0,0,0,0,0,0,{"$f":"INDEX([9]Sheet1!$H:$H,MATCH(CR:CR,[9]Sheet1!$AU:$AU,0))","v":{"$error":"#N/A"}}]
["C0006-8/IA06313/F0002/X006/R2865/001/FIN",null,"C0006-8/IA06313/F0002/X006/R2865/001/FIN",85054,"Assets:Non-current Assets:Property, Plant and Equipment:Cost Model:Machinery and Equipment:In-use:Cost:Acquisitions"," _"," _"," _ "," _ "," _ "," _ ",2100,"Community and social services",2106,"Community Halls and Facilities","CE",2080,"Internally generated funds","C","IA",240," Property, plant and equipment",240,"Property, plant and equipment"," _ "," _ "," _ "," _ "," _ "," _ "," _ "," _ ",1510,"Machinery and Equipment",1510,"Machinery and Equipment",241,"PPE at cost/valuation (excl. finance leases)",241,"PPE at cost/valuation (excl. finance leases)","",null,null,1510,"Machinery and Equipment",1510,"Machinery and Equipment"," _ "," _ "," _ "," _ "," _ "," _ "," _ "," _ ","_"," _ "," _ "," _ "," _ ","_"," _ "," _ "," _ "," _ ",null,3,32,"Community and social services","Community Halls and Facilities",null,null,"_","_","_",null,"_",0,0,0,0,0,0,0,0,0,0,0,0,0,0,0,0,0,0,0,{"$f":"INDEX([9]Sheet1!$H:$H,MATCH(CR:CR,[9]Sheet1!$AU:$AU,0))","v":{"$error":"#N/A"}}]
["C0007-1/IA01373/F0002/X047/R0072/001/FIN",2608,"C0007-1/IA01373/F0002/X047/R0072/001/FIN",52320,"Assets:Non-current Assets:Property, Plant and Equipment:Cost Model:Transport Assets:Owned and In-use:Cost:Opening Balance"," _"," _"," _ "," _ "," _ "," _ ",1200,"Finance and administration",1202,"Asset Management","_",2080,"Internally generated funds","C","IA",240," Property, plant and equipment",240,"Property, plant and equipment"," _ "," _ "," _ "," _ "," _ "," _ "," _ "," _ ",1530,"Transport Assets",1530,"Transport Assets",241,"PPE at cost/valuation (excl. finance leases)",241,"PPE at cost/valuation (excl. finance leases)","",null,null,1530,"Transport Assets",1530,"Transport Assets"," _ "," _ "," _ "," _ "," _ "," _ "," _ "," _ ","_"," _ "," _ "," _ "," _ ","_"," _ "," _ "," _ "," _ ",null,1,110,"Finance and Admin","Asset Management",null,null,"_","_","_",null,"_",0,0,0,0,0,0,0,0,0,0,0,0,0,0,0,0,0,0,0,{"$f":"INDEX([9]Sheet1!$H:$H,MATCH(CR:CR,[9]Sheet1!$AU:$AU,0))","v":{"$error":"#N/A"}}]
["C0019-13/IA09786/F0786/X035/R0073/001/FIN",18689,"C0019-13/IA09786/F0786/X035/R0073/001/FIN",85589,"Assets:Current Assets:Cash and Cash Equivalents:Cash at Bank:Bank Account:Specify (replace with account description):Withdrawals"," _"," _"," _ "," _ "," _ "," _ ",4100,"Energy sources",4101,"Electricity ","_",2010,"National Government","C","IA",120,"Cash",120,"Cash","0160W","Government - capital","0160W","Government - capital",310,"Other Cash Flows/Payments by Type / Capital assets",510,"Capital assets"," _ "," _ "," _ "," _ "," _ "," _ "," _ "," _ ","0290","Transfers and subsidies - capital (monetary allocations) (Nat / Prov Departm Agencies, Households, Non-profit Institutions, Private Enterprises, Public Corporatons, Higher Educ Institutions)","W",280,"LV Networks",280,"LV Networks"," _ "," _ "," _ "," _ "," _ "," _ "," _ "," _ ","_"," _ "," _ "," _ "," _ ","_"," _ "," _ "," _ "," _ ",null,6,61,"Energy Sources","Electricity",null,null,"_","_","_",null,"_",-12500000,0,0,0,-12500000,-11000000,-11000000,0,0,0,0,0,0,0,0,0,0,0,0,{"$f":"INDEX([9]Sheet1!$H:$H,MATCH(CR:CR,[9]Sheet1!$AU:$AU,0))","v":{"$error":"#N/A"}}]
["C0006-2/IA05832/F0002/X060/R0072/001/COMM",2868,"C0006-2/IA05832/F0002/X060/R0072/001/COMM",52583,"Assets:Non-current Assets:Property, Plant and Equipment:Leased Assets:Machinery and Equipment:Future Use:Accumulated Depreciation:Depreciation"," _"," _"," _ "," _ "," _ "," _ ",1200,"Finance and administration",1202,"Asset Management","_",2080,"Internally generated funds","C","IA",240," Property, plant and equipment",240,"Property, plant and equipment"," _ "," _ "," _ "," _ "," _ "," _ "," _ "," _ ",1510,"Machinery and Equipment",1510,"Machinery and Equipment",243,"Less: Accumulated depreciation",243,"Less: Accumulated depreciation","",null,null,1510,"Machinery and Equipment",1510,"Machinery and Equipment"," _ "," _ "," _ "," _ "," _ "," _ "," _ "," _ ","_"," _ "," _ "," _ "," _ ","_"," _ "," _ "," _ "," _ ",null,1,110,"Finance and Admin","Asset Management",null,null,"_","_","_",null,"_",0,0,0,0,0,0,0,0,0,0,0,0,0,0,0,0,0,0,0,{"$f":"INDEX([9]Sheet1!$H:$H,MATCH(CR:CR,[9]Sheet1!$AU:$AU,0))","v":{"$error":"#N/A"}}]
["C0006-2/IA05852/F0002/X047/R0072/001/COMM",2630,"C0006-2/IA05852/F0002/X047/R0072/001/COMM",52342,"Assets:Non-current Assets:Property, Plant and Equipment:Leased Assets:Machinery and Equipment:In-use:Accumulated Depreciation:Depreciation"," _"," _"," _ "," _ "," _ "," _ ",1200,"Finance and administration",1202,"Asset Management","_",2080,"Internally generated funds","C","IA",240," Property, plant and equipment",240,"Property, plant and equipment"," _ "," _ "," _ "," _ "," _ "," _ "," _ "," _ ",1510,"Machinery and Equipment",1510,"Machinery and Equipment",243,"Less: Accumulated depreciation",243,"Less: Accumulated depreciation","",null,null,1510,"Machinery and Equipment",1510,"Machinery and Equipment"," _ "," _ "," _ "," _ "," _ "," _ "," _ "," _ ","_"," _ "," _ "," _ "," _ ","_"," _ "," _ "," _ "," _ ",null,1,110,"Finance and Admin","Asset Management",null,null,"_","_","_",null,"_",0,0,0,0,0,0,0,0,0,0,0,0,0,0,0,0,0,0,0,{"$f":"INDEX([9]Sheet1!$H:$H,MATCH(CR:CR,[9]Sheet1!$AU:$AU,0))","v":{"$error":"#N/A"}}]
["C0006-5/IA06313/F0002/X006/R0072/001/COMM",15783,"C0006-5/IA06313/F0002/X006/R0072/001/COMM",73680,"Assets:Non-current Assets:Property, Plant and Equipment:Cost Model:Machinery and Equipment:In-use:Cost:Acquisitions"," _"," _"," _ "," _ "," _ "," _ ",2100,"Community and social services",2106,"Community Halls and Facilities","CE",2080,"Internally generated funds","C","IA",240," Property, plant and equipment",240,"Property, plant and equipment"," _ "," _ "," _ "," _ "," _ "," _ "," _ "," _ ",1510,"Machinery and Equipment",1510,"Machinery and Equipment",241,"PPE at cost/valuation (excl. finance leases)",241,"PPE at cost/valuation (excl. finance leases)","",null,null,1510,"Machinery and Equipment",1510,"Machinery and Equipment"," _ "," _ "," _ "," _ "," _ "," _ "," _ "," _ ","_"," _ "," _ "," _ "," _ ","_"," _ "," _ "," _ "," _ ",null,3,32,"Community and social services","Community Halls and Facilities",null,null,"_","_","_",null,"_",0,0,0,0,0,0,0,0,0,0,0,0,0,0,0,0,0,0,0,{"$f":"INDEX([9]Sheet1!$H:$H,MATCH(CR:CR,[9]Sheet1!$AU:$AU,0))","v":{"$error":"#N/A"}}]
["C0006-7/IA06313/F0002/X060/R2867/001/FIN",null,"C0006-7/IA06313/F0002/X060/R2867/001/FIN",85069,"Assets:Non-current Assets:Property, Plant and Equipment:Cost Model:Machinery and Equipment:In-use:Cost:Acquisitions"," _"," _"," _ "," _ "," _ "," _ ",1200,"Finance and administration",1202,"Asset Management","CE",2080,"Internally generated funds","C","IA",240," Property, plant and equipment",240,"Property, plant and equipment"," _ "," _ "," _ "," _ "," _ "," _ "," _ "," _ ",1510,"Machinery and Equipment",1510,"Machinery and Equipment",241,"PPE at cost/valuation (excl. finance leases)",241,"PPE at cost/valuation (excl. finance leases)","",null,null,1510,"Machinery and Equipment",1510,"Machinery and Equipment"," _ "," _ "," _ "," _ "," _ "," _ "," _ "," _ ","_"," _ "," _ "," _ "," _ ","_"," _ "," _ "," _ "," _ ",null,1,110,"Finance and Admin","Asset Management",null,null,"_","_","_",null,"_",0,0,0,0,0,0,0,0,0,0,0,0,0,0,0,0,0,0,0,{"$f":"INDEX([9]Sheet1!$H:$H,MATCH(CR:CR,[9]Sheet1!$AU:$AU,0))","v":{"$error":"#N/A"}}]
["C0007-1/IA01367/F0002/X047/R0072/001/FIN",2609,"C0007-1/IA01367/F0002/X047/R0072/001/FIN",52321,"Assets:Non-current Assets:Property, Plant and Equipment:Cost Model:Transport Assets:Owned and In-use:Cost:Acquisitions"," _"," _"," _ "," _ "," _ "," _ ",1200,"Finance and administration",1202,"Asset Management","CE",2080,"Internally generated funds","C","IA",240," Property, plant and equipment",240,"Property, plant and equipment"," _ "," _ "," _ "," _ "," _ "," _ "," _ "," _ ",1530,"Transport Assets",1530,"Transport Assets",241,"PPE at cost/valuation (excl. finance leases)",241,"PPE at cost/valuation (excl. finance leases)","",null,null,1530,"Transport Assets",1530,"Transport Assets"," _ "," _ "," _ "," _ "," _ "," _ "," _ "," _ ","_"," _ "," _ "," _ "," _ ","_"," _ "," _ "," _ "," _ ",null,1,110,"Finance and Admin","Asset Management",null,null,"_","_","_",null,"_",522500,0,0,880000,1402500,522500,546013,0,0,0,0,0,0,0,0,0,0,0,0,{"$f":"INDEX([9]Sheet1!$H:$H,MATCH(CR:CR,[9]Sheet1!$AU:$AU,0))","v":{"$error":"#N/A"}}]
["C0039-2/IA00132/F0791/X101/R2869/001/TECH",5356,"C0039-2/IA00132/F0791/X101/R2869/001/TECH",52931,"Assets:Non-current Assets:Property, Plant and Equipment:Cost Model:Roads Infrastructure:Cost:Acquisitions"," _"," _"," _ "," _ "," _ "," _ ",3100,"Planning and development",3107,"Town Planning, Building Regulations and Enforcement, and City Engineer","CE",2010,"National Government","C","IA",240," Property, plant and equipment",240,"Property, plant and equipment"," _ "," _ "," _ "," _ "," _ "," _ "," _ "," _ ",110,"Roads Infrastructure",110,"Roads Infrastructure",241,"PPE at cost/valuation (excl. finance leases)",241,"PPE at cost/valuation (excl. finance leases)","",null,null,130,"Road Structures",130,"Road Structures"," _ "," _ "," _ "," _ "," _ "," _ "," _ "," _ ","_"," _ "," _ "," _ "," _ ","_"," _ "," _ "," _ "," _ ",null,7,72,"Planning and Development","Town Planning, Building Regulations and Enforcement, and City Engineer",null,null,"_","_","_",null,"_",0,0,0,0,0,0,0,0,0,0,0,0,0,0,0,0,0,0,0,{"$f":"INDEX([9]Sheet1!$H:$H,MATCH(CR:CR,[9]Sheet1!$AU:$AU,0))","v":{"$error":"#N/A"}}]
["C0040-10/IA01952/F0791/X116/R2853/001/Tech",18027,"C0040-10/IA01952/F0791/X116/R2853/001/Tech",84924,"Assets:Non-current Assets:Construction Work-in-progress:Acquisitions:Outsourced"," _"," _"," _ "," _ "," _ "," _ ",3200,"Road transport",3205,"Roads","CE",2010,"National Government","C","IA",240," Property, plant and equipment",240,"Property, plant and equipment"," _ "," _ "," _ "," _ "," _ "," _ "," _ "," _ "," _ "," _ "," _ "," _ ",241,"PPE at cost/valuation (excl. finance leases)",241,"PPE at cost/valuation (excl. finance leases)","",null,null,120,"Roads",120,"Roads"," _ "," _ "," _ "," _ "," _ "," _ "," _ "," _ ","_"," _ "," _ "," _ "," _ ","_"," _ "," _ "," _ "," _ ",null,9,91,"Roads","Roads",null,null,"_","_","_",110,"_",0,0,0,0,0,0,0,0,0,0,0,0,0,0,0,0,0,0,0,{"$f":"INDEX([9]Sheet1!$H:$H,MATCH(CR:CR,[9]Sheet1!$AU:$AU,0))","v":{"$error":"#N/A"}}]
["C0040-21/IA01952/F0791/X116/R2853/001/Tech",15751,"C0040-21/IA01952/F0791/X116/R2853/001/Tech",63663,"Assets:Non-current Assets:Construction Work-in-progress:Acquisitions:Outsourced"," _"," _"," _ "," _ "," _ "," _ ",3200,"Road transport",3205,"Roads","CE",2010,"National Government","C","IA",240," Property, plant and equipment",240,"Property, plant and equipment"," _ "," _ "," _ "," _ "," _ "," _ "," _ "," _ "," _ "," _ "," _ "," _ ",241,"PPE at cost/valuation (excl. finance leases)",241,"PPE at cost/valuation (excl. finance leases)","",null,null,120,"Roads",120,"Roads"," _ "," _ "," _ "," _ "," _ "," _ "," _ "," _ ","_"," _ "," _ "," _ "," _ ","_"," _ "," _ "," _ "," _ ",null,9,91,"Roads","Roads",null,null,"_","_","_",110,"_",0,0,0,0,0,0,0,0,0,0,0,0,0,0,0,0,0,0,0,{"$f":"INDEX([9]Sheet1!$H:$H,MATCH(CR:CR,[9]Sheet1!$AU:$AU,0))","v":{"$error":"#N/A"}}]
["C0040-23/IA01952/F0791/X116/R2863/001/Tech",15753,"C0040-23/IA01952/F0791/X116/R2863/001/Tech",63665,"Assets:Non-current Assets:Construction Work-in-progress:Acquisitions:Outsourced"," _"," _"," _ "," _ "," _ "," _ ",3200,"Road transport",3205,"Roads","CE",2010,"National Government","C","IA",240," Property, plant and equipment",240,"Property, plant and equipment"," _ "," _ "," _ "," _ "," _ "," _ "," _ "," _ "," _ "," _ "," _ "," _ ",241,"PPE at cost/valuation (excl. finance leases)",241,"PPE at cost/valuation (excl. finance leases)","",null,null,120,"Roads",120,"Roads"," _ "," _ "," _ "," _ "," _ "," _ "," _ "," _ ","_"," _ "," _ "," _ "," _ ","_"," _ "," _ "," _ "," _ ",null,9,91,"Roads","Roads",null,null,"_","_","_",110,"_",5000000,0,0,698601,5698601,6270000,6552150,455307.63,482669.97,1262243.55,900601.78999999992,2408725.2599999998,0,0,0,0,0,0,0,{"$f":"INDEX([9]Sheet1!$H:$H,MATCH(CR:CR,[9]Sheet1!$AU:$AU,0))","v":{"$error":"#N/A"}}]
["C0040-40/IA01952/F0791/X116/R2865/001/Tech",18067,"C0040-40/IA01952/F0791/X116/R2865/001/Tech",84964,"Assets:Non-current Assets:Construction Work-in-progress:Acquisitions:Outsourced"," _"," _"," _ "," _ "," _ "," _ ",3200,"Road transport",3205,"Roads","CE",2010,"National Government","C","IA",240," Property, plant and equipment",240,"Property, plant and equipment"," _ "," _ "," _ "," _ "," _ "," _ "," _ "," _ "," _ "," _ "," _ "," _ ",241,"PPE at cost/valuation (excl. finance leases)",241,"PPE at cost/valuation (excl. finance leases)","",null,null,120,"Roads",120,"Roads"," _ "," _ "," _ "," _ "," _ "," _ "," _ "," _ ","_"," _ "," _ "," _ "," _ ","_"," _ "," _ "," _ "," _ ",null,9,91,"Roads","Roads",null,null,"_","_","_",110,"_",3869517,0,0,1490605,5360122,0,0,0,772083.8,0,0,0,261660.99000000002,0,0,0,0,0,0,{"$f":"INDEX([9]Sheet1!$H:$H,MATCH(CR:CR,[9]Sheet1!$AU:$AU,0))","v":{"$error":"#N/A"}}]
["C0040-43/IA01952/F0002/X116/R2865/001/Tech",18665,"C0040-43/IA01952/F0002/X116/R2865/001/Tech",85567,"Assets:Non-current Assets:Construction Work-in-progress:Acquisitions:Outsourced"," _"," _"," _ "," _ "," _ "," _ ",3200,"Road transport",3205,"Roads","CE",2080,"Internally generated funds","C","IA",240," Property, plant and equipment",240,"Property, plant and equipment"," _ "," _ "," _ "," _ "," _ "," _ "," _ "," _ "," _ "," _ "," _ "," _ ",241,"PPE at cost/valuation (excl. finance leases)",241,"PPE at cost/valuation (excl. finance leases)","",null,null,120,"Roads",120,"Roads"," _ "," _ "," _ "," _ "," _ "," _ "," _ "," _ ","_"," _ "," _ "," _ "," _ ","_"," _ "," _ "," _ "," _ ",null,9,91,"Roads","Roads",null,null,"_","_","_",110,"_",957191,0,0,-846941,110250,0,0,0,0,0,0,0,0,0,0,0,0,0,0,{"$f":"INDEX([9]Sheet1!$H:$H,MATCH(CR:CR,[9]Sheet1!$AU:$AU,0))","v":{"$error":"#N/A"}}]
["C0019-13/IA01952/F0002/X035/R2864/001/Tech",5318,"C0019-13/IA01952/F0002/X035/R2864/001/Tech",31037,"Assets:Non-current Assets:Construction Work-in-progress:Acquisitions:Outsourced"," _"," _"," _ "," _ "," _ "," _ ",4100,"Energy sources",4101,"Electricity ","CE",2080,"Internally generated funds","C","IA",240," Property, plant and equipment",240,"Property, plant and equipment"," _ "," _ "," _ "," _ "," _ "," _ "," _ "," _ "," _ "," _ "," _ "," _ ",241,"PPE at cost/valuation (excl. finance leases)",241,"PPE at cost/valuation (excl. finance leases)","",null,null,280,"LV Networks",280,"LV Networks"," _ "," _ "," _ "," _ "," _ "," _ "," _ "," _ ","_"," _ "," _ "," _ "," _ ","_"," _ "," _ "," _ "," _ ",null,6,61,"Energy Sources","Electricity",null,null,"_","_","_",200,"_",0,0,0,3000000,3000000,4180000,4368100,0,0,0,0,0,0,0,0,0,0,0,0,{"$f":"INDEX([9]Sheet1!$H:$H,MATCH(CR:CR,[9]Sheet1!$AU:$AU,0))","v":{"$error":"#N/A"}}]
["C0019-15/IA00122/F0002/X049/R0072/001/FIN",4952,"C0019-15/IA00122/F0002/X049/R0072/001/FIN",53120,"Assets:Non-current Assets:Property, Plant and Equipment:Cost Model:Roads Infrastructure:Accumulated Depreciation:Depreciation"," _"," _"," _ "," _ "," _ "," _ ",1200,"Finance and administration",1204,"Finance","_",2080,"Internally generated funds","C","IA",240," Property, plant and equipment",240,"Property, plant and equipment"," _ "," _ "," _ "," _ "," _ "," _ "," _ "," _ ",110,"Roads Infrastructure",110,"Roads Infrastructure",243,"Less: Accumulated depreciation",243,"Less: Accumulated depreciation","",null,null,280,"LV Networks",280,"LV Networks"," _ "," _ "," _ "," _ "," _ "," _ "," _ "," _ ","_"," _ "," _ "," _ "," _ ","_"," _ "," _ "," _ "," _ ",null,1,12,"Finance and Admin","Finance",null,null,"_","_","_",null,"_",0,0,0,0,0,0,0,0,0,0,0,0,0,0,0,0,0,0,0,{"$f":"INDEX([9]Sheet1!$H:$H,MATCH(CR:CR,[9]Sheet1!$AU:$AU,0))","v":{"$error":"#N/A"}}]
["C0019-25/IA01952/F0002/X035/R2868/001/Tech",15763,"C0019-25/IA01952/F0002/X035/R2868/001/Tech",73657,"Assets:Non-current Assets:Construction Work-in-progress:Acquisitions:Outsourced"," _"," _"," _ "," _ "," _ "," _ ",4100,"Energy sources",4101,"Electricity ","CE",2080,"Internally generated funds","C","IA",240," Property, plant and equipment",240,"Property, plant and equipment"," _ "," _ "," _ "," _ "," _ "," _ "," _ "," _ "," _ "," _ "," _ "," _ ",241,"PPE at cost/valuation (excl. finance leases)",241,"PPE at cost/valuation (excl. finance leases)","",null,null,280,"LV Networks",280,"LV Networks"," _ "," _ "," _ "," _ "," _ "," _ "," _ "," _ ","_"," _ "," _ "," _ "," _ ","_"," _ "," _ "," _ "," _ ",null,6,61,"Energy Sources","Electricity",null,null,"_","_","_",200,"_",0,0,0,0,0,0,0,0,0,0,0,0,0,0,0,0,0,0,0,{"$f":"INDEX([9]Sheet1!$H:$H,MATCH(CR:CR,[9]Sheet1!$AU:$AU,0))","v":{"$error":"#N/A"}}]
["C0039-3/IA01952/F0791/X116/R0072/001/TECH",4980,"C0039-3/IA01952/F0791/X116/R0072/001/TECH",53133,"Assets:Non-current Assets:Construction Work-in-progress:Acquisitions:Outsourced"," _"," _"," _ "," _ "," _ "," _ ",3200,"Road transport",3205,"Roads","CE",2010,"National Government","C","IA",240," Property, plant and equipment",240,"Property, plant and equipment"," _ "," _ "," _ "," _ "," _ "," _ "," _ "," _ "," _ "," _ "," _ "," _ ",241,"PPE at cost/valuation (excl. finance leases)",241,"PPE at cost/valuation (excl. finance leases)","",null,null,130,"Road Structures",130,"Road Structures"," _ "," _ "," _ "," _ "," _ "," _ "," _ "," _ ","_"," _ "," _ "," _ "," _ ","_"," _ "," _ "," _ "," _ ",null,9,91,"Roads","Roads",null,null,"_","_","_",110,"_",0,0,0,0,0,0,0,0,0,0,0,0,0,0,0,0,0,0,0,{"$f":"INDEX([9]Sheet1!$H:$H,MATCH(CR:CR,[9]Sheet1!$AU:$AU,0))","v":{"$error":"#N/A"}}]
["C0039-3/IA01952/F0791/X116/R2869/001/TECH",4976,"C0039-3/IA01952/F0791/X116/R2869/001/TECH",53129,"Assets:Non-current Assets:Construction Work-in-progress:Acquisitions:Outsourced"," _"," _"," _ "," _ "," _ "," _ ",3200,"Road transport",3205,"Roads","CE",2010,"National Government","C","IA",240," Property, plant and equipment",240,"Property, plant and equipment"," _ "," _ "," _ "," _ "," _ "," _ "," _ "," _ "," _ "," _ "," _ "," _ ",241,"PPE at cost/valuation (excl. finance leases)",241,"PPE at cost/valuation (excl. finance leases)","",null,null,130,"Road Structures",130,"Road Structures"," _ "," _ "," _ "," _ "," _ "," _ "," _ "," _ ","_"," _ "," _ "," _ "," _ ","_"," _ "," _ "," _ "," _ ",null,9,91,"Roads","Roads",null,null,"_","_","_",110,"_",0,0,0,0,0,0,0,0,0,0,0,0,0,0,0,0,0,0,0,{"$f":"INDEX([9]Sheet1!$H:$H,MATCH(CR:CR,[9]Sheet1!$AU:$AU,0))","v":{"$error":"#N/A"}}]
["C0040-10/IA01952/F0791/X116/R2864/001/Tech",5370,"C0040-10/IA01952/F0791/X116/R2864/001/Tech",58374,"Assets:Non-current Assets:Construction Work-in-progress:Acquisitions:Outsourced"," _"," _"," _ "," _ "," _ "," _ ",3200,"Road transport",3205,"Roads","CE",2010,"National Government","C","IA",240," Property, plant and equipment",240,"Property, plant and equipment"," _ "," _ "," _ "," _ "," _ "," _ "," _ "," _ "," _ "," _ "," _ "," _ ",241,"PPE at cost/valuation (excl. finance leases)",241,"PPE at cost/valuation (excl. finance leases)","",null,null,120,"Roads",120,"Roads"," _ "," _ "," _ "," _ "," _ "," _ "," _ "," _ ","_"," _ "," _ "," _ "," _ ","_"," _ "," _ "," _ "," _ ",null,9,91,"Roads","Roads",null,null,"_","_","_",110,"_",0,0,0,0,0,0,0,0,0,0,0,0,0,0,0,0,0,0,0,{"$f":"INDEX([9]Sheet1!$H:$H,MATCH(CR:CR,[9]Sheet1!$AU:$AU,0))","v":{"$error":"#N/A"}}]
["C0003-1/IA06193/F0002/X049/R0073/001/FIN",1480,"C0003-1/IA06193/F0002/X049/R0073/001/FIN",42192,"Assets:Non-current Assets:Property, Plant and Equipment:Cost Model:Computer Equipment:In-use:Cost:Acquisitions"," _"," _"," _ "," _ "," _ "," _ ",1200,"Finance and administration",1204,"Finance","CE",2080,"Internally generated funds","C","IA",240," Property, plant and equipment",240,"Property, plant and equipment"," _ "," _ "," _ "," _ "," _ "," _ "," _ "," _ ",1470,"Computer Equipment",1470,"Computer Equipment",241,"PPE at cost/valuation (excl. finance leases)",241,"PPE at cost/valuation (excl. finance leases)","",null,null,1470,"Computer Equipment",1470,"Computer Equipment"," _ "," _ "," _ "," _ "," _ "," _ "," _ "," _ ","_"," _ "," _ "," _ "," _ ","_"," _ "," _ "," _ "," _ ",null,1,12,"Finance and Admin","Finance",null,null,"_","_","_",null,"_",0,0,0,0,0,0,0,0,0,0,0,0,0,0,0,0,0,0,0,{"$f":"INDEX([9]Sheet1!$H:$H,MATCH(CR:CR,[9]Sheet1!$AU:$AU,0))","v":{"$error":"#N/A"}}]
["C0003-2/IA06183/F0002/X047/R0072/001/FIN",2611,"C0003-2/IA06183/F0002/X047/R0072/001/FIN",52323,"Assets:Non-current Assets:Property, Plant and Equipment:Cost Model:Computer Equipment:In-use:Accumulated Depreciation:Depreciation"," _"," _"," _ "," _ "," _ "," _ ",1200,"Finance and administration",1202,"Asset Management","_",2080,"Internally generated funds","C","IA",240," Property, plant and equipment",240,"Property, plant and equipment"," _ "," _ "," _ "," _ "," _ "," _ "," _ "," _ ",1470,"Computer Equipment",1470,"Computer Equipment",243,"Less: Accumulated depreciation",243,"Less: Accumulated depreciation","",null,null,1470,"Computer Equipment",1470,"Computer Equipment"," _ "," _ "," _ "," _ "," _ "," _ "," _ "," _ ","_"," _ "," _ "," _ "," _ ","_"," _ "," _ "," _ "," _ ",null,1,110,"Finance and Admin","Asset Management",null,null,"_","_","_",null,"_",0,0,0,0,0,0,0,0,0,0,0,0,0,0,0,0,0,0,0,{"$f":"INDEX([9]Sheet1!$H:$H,MATCH(CR:CR,[9]Sheet1!$AU:$AU,0))","v":{"$error":"#N/A"}}]
["C0003-2/IA06183/F0002/X060/R0072/001/FIN",2867,"C0003-2/IA06183/F0002/X060/R0072/001/FIN",52582,"Assets:Non-current Assets:Property, Plant and Equipment:Cost Model:Computer Equipment:In-use:Accumulated Depreciation:Depreciation"," _"," _"," _ "," _ "," _ "," _ ",1200,"Finance and administration",1202,"Asset Management","_",2080,"Internally generated funds","C","IA",240," Property, plant and equipment",240,"Property, plant and equipment"," _ "," _ "," _ "," _ "," _ "," _ "," _ "," _ ",1470,"Computer Equipment",1470,"Computer Equipment",243,"Less: Accumulated depreciation",243,"Less: Accumulated depreciation","",null,null,1470,"Computer Equipment",1470,"Computer Equipment"," _ "," _ "," _ "," _ "," _ "," _ "," _ "," _ ","_"," _ "," _ "," _ "," _ ","_"," _ "," _ "," _ "," _ ",null,1,110,"Finance and Admin","Asset Management",null,null,"_","_","_",null,"_",0,0,0,0,0,0,0,0,0,0,0,0,0,0,0,0,0,0,0,{"$f":"INDEX([9]Sheet1!$H:$H,MATCH(CR:CR,[9]Sheet1!$AU:$AU,0))","v":{"$error":"#N/A"}}]
["C0004-1/IA06253/F0002/X060/R0072/001/FIN",2865,"C0004-1/IA06253/F0002/X060/R0072/001/FIN",52580,"Assets:Non-current Assets:Property, Plant and Equipment:Cost Model:Furniture and Office Equipment:In-use:Cost:Acquisitions"," _"," _"," _ "," _ "," _ "," _ ",1200,"Finance and administration",1202,"Asset Management","CE",2080,"Internally generated funds","C","IA",240," Property, plant and equipment",240,"Property, plant and equipment"," _ "," _ "," _ "," _ "," _ "," _ "," _ "," _ ",1490,"Furniture and Office Equipment",1490,"Furniture and Office Equipment",241,"PPE at cost/valuation (excl. finance leases)",241,"PPE at cost/valuation (excl. finance leases)","",null,null,1490,"Furniture and Office Equipment",1490,"Furniture and Office Equipment"," _ "," _ "," _ "," _ "," _ "," _ "," _ "," _ ","_"," _ "," _ "," _ "," _ ","_"," _ "," _ "," _ "," _ ",null,1,110,"Finance and Admin","Asset Management",null,null,"_","_","_",null,"_",0,0,0,0,0,0,0,0,0,0,0,0,0,0,0,0,0,0,0,{"$f":"INDEX([9]Sheet1!$H:$H,MATCH(CR:CR,[9]Sheet1!$AU:$AU,0))","v":{"$error":"#N/A"}}]
["C0006-1/IA06319/F0002/X047/R0072/001/COMM",2613,"C0006-1/IA06319/F0002/X047/R0072/001/COMM",52325,"Assets:Non-current Assets:Property, Plant and Equipment:Cost Model:Machinery and Equipment:In-use:Cost:Opening Balance"," _"," _"," _ "," _ "," _ "," _ ",1200,"Finance and administration",1202,"Asset Management","_",2080,"Internally generated funds","C","IA",240," Property, plant and equipment",240,"Property, plant and equipment"," _ "," _ "," _ "," _ "," _ "," _ "," _ "," _ ",1510,"Machinery and Equipment",1510,"Machinery and Equipment",241,"PPE at cost/valuation (excl. finance leases)",241,"PPE at cost/valuation (excl. finance leases)","",null,null,1510,"Machinery and Equipment",1510,"Machinery and Equipment"," _ "," _ "," _ "," _ "," _ "," _ "," _ "," _ ","_"," _ "," _ "," _ "," _ ","_"," _ "," _ "," _ "," _ ",null,1,110,"Finance and Admin","Asset Management",null,null,"_","_","_",null,"_",0,0,0,0,0,0,0,0,0,0,0,0,0,0,0,0,0,0,0,{"$f":"INDEX([9]Sheet1!$H:$H,MATCH(CR:CR,[9]Sheet1!$AU:$AU,0))","v":{"$error":"#N/A"}}]
["C0019-20/IA01952/F0786/X035/R2854/001/Tech",15738,"C0019-20/IA01952/F0786/X035/R2854/001/Tech",63652,"Assets:Non-current Assets:Construction Work-in-progress:Acquisitions:Outsourced"," _"," _"," _ "," _ "," _ "," _ ",4100,"Energy sources",4101,"Electricity ","CE",2010,"National Government","C","IA",240," Property, plant and equipment",240,"Property, plant and equipment"," _ "," _ "," _ "," _ "," _ "," _ "," _ "," _ "," _ "," _ "," _ "," _ ",241,"PPE at cost/valuation (excl. finance leases)",241,"PPE at cost/valuation (excl. finance leases)","",null,null,280,"LV Networks",280,"LV Networks"," _ "," _ "," _ "," _ "," _ "," _ "," _ "," _ ","_"," _ "," _ "," _ "," _ ","_"," _ "," _ "," _ "," _ ",null,6,61,"Energy Sources","Electricity",null,null,"_","_","_",200,"_",0,0,0,0,0,0,0,0,0,0,0,0,0,0,0,0,0,0,0,{"$f":"INDEX([9]Sheet1!$H:$H,MATCH(CR:CR,[9]Sheet1!$AU:$AU,0))","v":{"$error":"#N/A"}}]
["C0038-1/IA06282/F0002/X119/R0073/001/TRAF",1250,"C0038-1/IA06282/F0002/X119/R0073/001/TRAF",52827,"Assets:Non-current Assets:Property, Plant and Equipment:Cost Model:Machinery and Equipment:Future Use:Cost:Acquisitions"," _"," _"," _ "," _ "," _ "," _ ",3200,"Road transport",3204,"Road and Traffic Regulation","CE",2080,"Internally generated funds","C","IA",240," Property, plant and equipment",240,"Property, plant and equipment"," _ "," _ "," _ "," _ "," _ "," _ "," _ "," _ ",1510,"Machinery and Equipment",1510,"Machinery and Equipment",241,"PPE at cost/valuation (excl. finance leases)",241,"PPE at cost/valuation (excl. finance leases)","",null,null,140,"Road Furniture",140,"Road Furniture"," _ "," _ "," _ "," _ "," _ "," _ "," _ "," _ ","_"," _ "," _ "," _ "," _ ","_"," _ "," _ "," _ "," _ ",null,null,0," _ ","Road and Traffic Regulation",null,null,"_","_","_",null,"_",0,0,0,0,0,0,0,0,0,0,0,0,0,0,0,0,0,0,0,{"$f":"INDEX([9]Sheet1!$H:$H,MATCH(CR:CR,[9]Sheet1!$AU:$AU,0))","v":{"$error":"#N/A"}}]
["C0040-11/IA01952/F0791/X116/R2864/001/Tech",5371,"C0040-11/IA01952/F0791/X116/R2864/001/Tech",58375,"Assets:Non-current Assets:Construction Work-in-progress:Acquisitions:Outsourced"," _"," _"," _ "," _ "," _ "," _ ",3200,"Road transport",3205,"Roads","CE",2010,"National Government","C","IA",240," Property, plant and equipment",240,"Property, plant and equipment"," _ "," _ "," _ "," _ "," _ "," _ "," _ "," _ "," _ "," _ "," _ "," _ ",241,"PPE at cost/valuation (excl. finance leases)",241,"PPE at cost/valuation (excl. finance leases)","",null,null,120,"Roads",120,"Roads"," _ "," _ "," _ "," _ "," _ "," _ "," _ "," _ ","_"," _ "," _ "," _ "," _ ","_"," _ "," _ "," _ "," _ ",null,9,91,"Roads","Roads",null,null,"_","_","_",110,"_",0,0,0,0,0,0,0,0,0,0,0,0,0,0,0,0,0,0,0,{"$f":"INDEX([9]Sheet1!$H:$H,MATCH(CR:CR,[9]Sheet1!$AU:$AU,0))","v":{"$error":"#N/A"}}]
["C0040-13/IA01952/F0791/X116/R2853/001/Tech",18657,"C0040-13/IA01952/F0791/X116/R2853/001/Tech",85559,"Assets:Non-current Assets:Construction Work-in-progress:Acquisitions:Outsourced"," _"," _"," _ "," _ "," _ "," _ ",3200,"Road transport",3205,"Roads","CE",2010,"National Government","C","IA",240," Property, plant and equipment",240,"Property, plant and equipment"," _ "," _ "," _ "," _ "," _ "," _ "," _ "," _ "," _ "," _ "," _ "," _ ",241,"PPE at cost/valuation (excl. finance leases)",241,"PPE at cost/valuation (excl. finance leases)","",null,null,120,"Roads",120,"Roads"," _ "," _ "," _ "," _ "," _ "," _ "," _ "," _ ","_"," _ "," _ "," _ "," _ ","_"," _ "," _ "," _ "," _ ",null,9,91,"Roads","Roads",null,null,"_","_","_",110,"_",0,0,0,0,0,0,0,0,0,0,0,0,0,0,0,0,0,0,0,{"$f":"INDEX([9]Sheet1!$H:$H,MATCH(CR:CR,[9]Sheet1!$AU:$AU,0))","v":{"$error":"#N/A"}}]
["C0040-23/IA010610/F0791/X116/R0072/001/FIN",18753,"C0040-23/IA010610/F0791/X116/R0072/001/FIN",85656,"Assets:Non-current Assets:Construction Work-in-progress:Transfer to PPE"," _"," _"," _ "," _ "," _ "," _ ",3200,"Road transport",3205,"Roads","_",2010,"National Government","C","IA",240," Property, plant and equipment",240,"Property, plant and equipment"," _ "," _ "," _ "," _ "," _ "," _ "," _ "," _ "," _ "," _ "," _ "," _ ",241,"PPE at cost/valuation (excl. finance leases)",241,"PPE at cost/valuation (excl. finance leases)","",null,null,120,"Roads",120,"Roads"," _ "," _ "," _ "," _ "," _ "," _ "," _ "," _ ","_"," _ "," _ "," _ "," _ ","_"," _ "," _ "," _ "," _ ",null,9,91,"Roads","Roads",null,null,"_","_","_",110,"_",0,0,0,0,0,0,0,0,0,0,0,-5509548.2000000002,0,0,0,0,0,0,0,{"$f":"INDEX([9]Sheet1!$H:$H,MATCH(CR:CR,[9]Sheet1!$AU:$AU,0))","v":{"$error":"#N/A"}}]
["C0040-26/IA01952/F0791/X116/R2858/001/Tech",15757,"C0040-26/IA01952/F0791/X116/R2858/001/Tech",63669,"Assets:Non-current Assets:Construction Work-in-progress:Acquisitions:Outsourced"," _"," _"," _ "," _ "," _ "," _ ",3200,"Road transport",3205,"Roads","CE",2010,"National Government","C","IA",240," Property, plant and equipment",240,"Property, plant and equipment"," _ "," _ "," _ "," _ "," _ "," _ "," _ "," _ "," _ "," _ "," _ "," _ ",241,"PPE at cost/valuation (excl. finance leases)",241,"PPE at cost/valuation (excl. finance leases)","",null,null,120,"Roads",120,"Roads"," _ "," _ "," _ "," _ "," _ "," _ "," _ "," _ ","_"," _ "," _ "," _ "," _ ","_"," _ "," _ "," _ "," _ ",null,9,91,"Roads","Roads",null,null,"_","_","_",110,"_",0,0,0,0,0,0,0,0,0,0,0,0,0,0,0,0,0,0,0,{"$f":"INDEX([9]Sheet1!$H:$H,MATCH(CR:CR,[9]Sheet1!$AU:$AU,0))","v":{"$error":"#N/A"}}]
["C0040-28/IA01952/F0791/X116/R2869/001/Tech",15759,"C0040-28/IA01952/F0791/X116/R2869/001/Tech",63671,"Assets:Non-current Assets:Construction Work-in-progress:Acquisitions:Outsourced"," _"," _"," _ "," _ "," _ "," _ ",3200,"Road transport",3205,"Roads","CE",2010,"National Government","C","IA",240," Property, plant and equipment",240,"Property, plant and equipment"," _ "," _ "," _ "," _ "," _ "," _ "," _ "," _ "," _ "," _ "," _ "," _ ",241,"PPE at cost/valuation (excl. finance leases)",241,"PPE at cost/valuation (excl. finance leases)","",null,null,120,"Roads",120,"Roads"," _ "," _ "," _ "," _ "," _ "," _ "," _ "," _ ","_"," _ "," _ "," _ "," _ ","_"," _ "," _ "," _ "," _ ",null,9,91,"Roads","Roads",null,null,"_","_","_",110,"_",0,0,0,0,0,0,0,0,0,0,0,0,0,0,0,0,0,0,0,{"$f":"INDEX([9]Sheet1!$H:$H,MATCH(CR:CR,[9]Sheet1!$AU:$AU,0))","v":{"$error":"#N/A"}}]
["C0040-3/IA01952/F0791/X116/R2861/001/TECH",5328,"C0040-3/IA01952/F0791/X116/R2861/001/TECH",32183,"Assets:Non-current Assets:Construction Work-in-progress:Acquisitions:Outsourced"," _"," _"," _ "," _ "," _ "," _ ",3200,"Road transport",3205,"Roads","CE",2010,"National Government","C","IA",240," Property, plant and equipment",240,"Property, plant and equipment"," _ "," _ "," _ "," _ "," _ "," _ "," _ "," _ "," _ "," _ "," _ "," _ ",241,"PPE at cost/valuation (excl. finance leases)",241,"PPE at cost/valuation (excl. finance leases)","",null,null,120,"Roads",120,"Roads"," _ "," _ "," _ "," _ "," _ "," _ "," _ "," _ ","_"," _ "," _ "," _ "," _ ","_"," _ "," _ "," _ "," _ ",null,9,91,"Roads","Roads",null,null,"_","_","_",110,"_",0,0,0,0,0,0,0,0,0,0,0,0,0,0,0,0,0,0,0,{"$f":"INDEX([9]Sheet1!$H:$H,MATCH(CR:CR,[9]Sheet1!$AU:$AU,0))","v":{"$error":"#N/A"}}]
["C0040-30/IA01952/F0791/X116/R2864/001/Tech",16786,"C0040-30/IA01952/F0791/X116/R2864/001/Tech",83683,"Assets:Non-current Assets:Construction Work-in-progress:Acquisitions:Outsourced"," _"," _"," _ "," _ "," _ "," _ ",3200,"Road transport",3205,"Roads","CE",2010,"National Government","C","IA",240," Property, plant and equipment",240,"Property, plant and equipment"," _ "," _ "," _ "," _ "," _ "," _ "," _ "," _ "," _ "," _ "," _ "," _ ",241,"PPE at cost/valuation (excl. finance leases)",241,"PPE at cost/valuation (excl. finance leases)","",null,null,120,"Roads",120,"Roads"," _ "," _ "," _ "," _ "," _ "," _ "," _ "," _ ","_"," _ "," _ "," _ "," _ ","_"," _ "," _ "," _ "," _ ",null,9,91,"Roads","Roads",null,null,"_","_","_",110,"_",0,0,0,0,0,0,0,0,0,0,0,0,0,0,0,0,0,0,0,{"$f":"INDEX([9]Sheet1!$H:$H,MATCH(CR:CR,[9]Sheet1!$AU:$AU,0))","v":{"$error":"#N/A"}}]
["C0040-34/IA01952/F0791/X116/R2865/001/Tech",16790,"C0040-34/IA01952/F0791/X116/R2865/001/Tech",83687,"Assets:Non-current Assets:Construction Work-in-progress:Acquisitions:Outsourced"," _"," _"," _ "," _ "," _ "," _ ",3200,"Road transport",3205,"Roads","CE",2010,"National Government","C","IA",240," Property, plant and equipment",240,"Property, plant and equipment"," _ "," _ "," _ "," _ "," _ "," _ "," _ "," _ "," _ "," _ "," _ "," _ ",241,"PPE at cost/valuation (excl. finance leases)",241,"PPE at cost/valuation (excl. finance leases)","",null,null,120,"Roads",120,"Roads"," _ "," _ "," _ "," _ "," _ "," _ "," _ "," _ ","_"," _ "," _ "," _ "," _ ","_"," _ "," _ "," _ "," _ ",null,9,91,"Roads","Roads",null,null,"_","_","_",110,"_",0,0,0,0,0,0,0,0,0,0,0,0,0,0,0,0,0,0,0,{"$f":"INDEX([9]Sheet1!$H:$H,MATCH(CR:CR,[9]Sheet1!$AU:$AU,0))","v":{"$error":"#N/A"}}]
["C0040-38/IA01952/F0791/X116/R2867/001/Tech",18066,"C0040-38/IA01952/F0791/X116/R2867/001/Tech",84941,"Assets:Non-current Assets:Construction Work-in-progress:Acquisitions:Outsourced"," _"," _"," _ "," _ "," _ "," _ ",3200,"Road transport",3205,"Roads","CE",2010,"National Government","C","IA",240," Property, plant and equipment",240,"Property, plant and equipment"," _ "," _ "," _ "," _ "," _ "," _ "," _ "," _ "," _ "," _ "," _ "," _ ",241,"PPE at cost/valuation (excl. finance leases)",241,"PPE at cost/valuation (excl. finance leases)","",null,null,120,"Roads",120,"Roads"," _ "," _ "," _ "," _ "," _ "," _ "," _ "," _ ","_"," _ "," _ "," _ "," _ ","_"," _ "," _ "," _ "," _ ",null,9,91,"Roads","Roads",null,null,"_","_","_",110,"_",0,0,0,0,0,0,0,0,0,0,0,0,0,0,0,0,0,0,0,{"$f":"INDEX([9]Sheet1!$H:$H,MATCH(CR:CR,[9]Sheet1!$AU:$AU,0))","v":{"$error":"#N/A"}}]
["C0040-5/IA01952/F0791/X116/R2863/001/TECH",5329,"C0040-5/IA01952/F0791/X116/R2863/001/TECH",32185,"Assets:Non-current Assets:Construction Work-in-progress:Acquisitions:Outsourced"," _"," _"," _ "," _ "," _ "," _ ",3200,"Road transport",3205,"Roads","CE",2010,"National Government","C","IA",240," Property, plant and equipment",240,"Property, plant and equipment"," _ "," _ "," _ "," _ "," _ "," _ "," _ "," _ "," _ "," _ "," _ "," _ ",241,"PPE at cost/valuation (excl. finance leases)",241,"PPE at cost/valuation (excl. finance leases)","",null,null,120,"Roads",120,"Roads"," _ "," _ "," _ "," _ "," _ "," _ "," _ "," _ ","_"," _ "," _ "," _ "," _ ","_"," _ "," _ "," _ "," _ ",null,9,91,"Roads","Roads",null,null,"_","_","_",110,"_",0,0,0,0,0,0,0,0,0,0,0,0,0,0,0,0,0,0,0,{"$f":"INDEX([9]Sheet1!$H:$H,MATCH(CR:CR,[9]Sheet1!$AU:$AU,0))","v":{"$error":"#N/A"}}]
["C0007-3/IA01367/F0002/X050/R0072/001/Tech",15782,"C0007-3/IA01367/F0002/X050/R0072/001/Tech",73679,"Assets:Non-current Assets:Property, Plant and Equipment:Cost Model:Transport Assets:Owned and In-use:Cost:Acquisitions"," _"," _"," _ "," _ "," _ "," _ ",1200,"Finance and administration",1205,"Fleet Management","CE",2080,"Internally generated funds","C","IA",240," Property, plant and equipment",240,"Property, plant and equipment"," _ "," _ "," _ "," _ "," _ "," _ "," _ "," _ ",1530,"Transport Assets",1530,"Transport Assets",241,"PPE at cost/valuation (excl. finance leases)",241,"PPE at cost/valuation (excl. finance leases)","",null,null,1530,"Transport Assets",1530,"Transport Assets"," _ "," _ "," _ "," _ "," _ "," _ "," _ "," _ ","_"," _ "," _ "," _ "," _ ","_"," _ "," _ "," _ "," _ ",null,1,13,"Finance and Admin","Fleet Management",null,null,"_","_","_",null,"_",0,0,0,0,0,0,0,479598,0,0,0,232537.99,0,0,0,0,0,0,0,{"$f":"INDEX([9]Sheet1!$H:$H,MATCH(CR:CR,[9]Sheet1!$AU:$AU,0))","v":{"$error":"#N/A"}}]
["C0019-15/IA06343/F0002/X049/R2853/001/FIN",4948,"C0019-15/IA06343/F0002/X049/R2853/001/FIN",53116,"Assets:Non-current Assets:Property, Plant and Equipment:Cost Model:Water Supply Infrastructure:Boreholes:Accumulated Depreciation:Depreciation"," _"," _"," _ "," _ "," _ "," _ ",1200,"Finance and administration",1204,"Finance","_",2080,"Internally generated funds","C","IA",240," Property, plant and equipment",240,"Property, plant and equipment"," _ "," _ "," _ "," _ "," _ "," _ "," _ "," _ ",300,"Water Supply Infrastructure",300,"Water Supply Infrastructure",243,"Less: Accumulated depreciation",243,"Less: Accumulated depreciation","",null,null,280,"LV Networks",280,"LV Networks"," _ "," _ "," _ "," _ "," _ "," _ "," _ "," _ ","_"," _ "," _ "," _ "," _ ","_"," _ "," _ "," _ "," _ ",null,1,12,"Finance and Admin","Finance",null,null,"_","_","_",null,"_",0,0,0,0,0,0,0,0,0,0,0,0,0,0,0,0,0,0,0,{"$f":"INDEX([9]Sheet1!$H:$H,MATCH(CR:CR,[9]Sheet1!$AU:$AU,0))","v":{"$error":"#N/A"}}]
["C0019-2/IA01952/F0786/X035/R2858/001/Tech",535,"C0019-2/IA01952/F0786/X035/R2858/001/Tech",30971,"Assets:Non-current Assets:Construction Work-in-progress:Acquisitions:Outsourced"," _"," _"," _ "," _ "," _ "," _ ",4100,"Energy sources",4101,"Electricity ","CE",2010,"National Government","C","IA",240," Property, plant and equipment",240,"Property, plant and equipment"," _ "," _ "," _ "," _ "," _ "," _ "," _ "," _ "," _ "," _ "," _ "," _ ",241,"PPE at cost/valuation (excl. finance leases)",241,"PPE at cost/valuation (excl. finance leases)","",null,null,280,"LV Networks",280,"LV Networks"," _ "," _ "," _ "," _ "," _ "," _ "," _ "," _ ","_"," _ "," _ "," _ "," _ ","_"," _ "," _ "," _ "," _ ",null,6,61,"Energy Sources","Electricity",null,null,"_","_","_",200,"_",0,0,0,0,0,0,0,0,0,0,0,0,0,0,0,0,0,0,0,{"$f":"INDEX([9]Sheet1!$H:$H,MATCH(CR:CR,[9]Sheet1!$AU:$AU,0))","v":{"$error":"#N/A"}}]
["C0019-23/IA01952/F0786/X035/R2861/001/Tech",15761,"C0019-23/IA01952/F0786/X035/R2861/001/Tech",63673,"Assets:Non-current Assets:Construction Work-in-progress:Acquisitions:Outsourced"," _"," _"," _ "," _ "," _ "," _ ",4100,"Energy sources",4101,"Electricity ","CE",2010,"National Government","C","IA",240," Property, plant and equipment",240,"Property, plant and equipment"," _ "," _ "," _ "," _ "," _ "," _ "," _ "," _ "," _ "," _ "," _ "," _ ",241,"PPE at cost/valuation (excl. finance leases)",241,"PPE at cost/valuation (excl. finance leases)","",null,null,280,"LV Networks",280,"LV Networks"," _ "," _ "," _ "," _ "," _ "," _ "," _ "," _ ","_"," _ "," _ "," _ "," _ ","_"," _ "," _ "," _ "," _ ",null,6,61,"Energy Sources","Electricity",null,null,"_","_","_",200,"_",0,0,0,0,0,0,0,0,0,0,0,0,0,0,0,0,0,0,0,{"$f":"INDEX([9]Sheet1!$H:$H,MATCH(CR:CR,[9]Sheet1!$AU:$AU,0))","v":{"$error":"#N/A"}}]
["C0038-1/IA06282/F0002/X112/R0073/001/COMM",5286,"C0038-1/IA06282/F0002/X112/R0073/001/COMM",31969,"Assets:Non-current Assets:Property, Plant and Equipment:Cost Model:Machinery and Equipment:Future Use:Cost:Acquisitions"," _"," _"," _ "," _ "," _ "," _ ",2300,"Public safety",2305,"Fire Fighting and Protection","CE",2080,"Internally generated funds","C","IA",240," Property, plant and equipment",240,"Property, plant and equipment"," _ "," _ "," _ "," _ "," _ "," _ "," _ "," _ ",1510,"Machinery and Equipment",1510,"Machinery and Equipment",241,"PPE at cost/valuation (excl. finance leases)",241,"PPE at cost/valuation (excl. finance leases)","",null,null,140,"Road Furniture",140,"Road Furniture"," _ "," _ "," _ "," _ "," _ "," _ "," _ "," _ ","_"," _ "," _ "," _ "," _ ","_"," _ "," _ "," _ "," _ ",null,null,0," _ ","Fire Fighting and Protection",null,null,"_","_","_",null,"_",0,0,0,0,0,0,0,0,0,0,0,0,0,0,0,0,0,0,0,{"$f":"INDEX([9]Sheet1!$H:$H,MATCH(CR:CR,[9]Sheet1!$AU:$AU,0))","v":{"$error":"#N/A"}}]
["C0038-1/IA06282/F0002/X119/R0073/001/COMM",5285,"C0038-1/IA06282/F0002/X119/R0073/001/COMM",31968,"Assets:Non-current Assets:Property, Plant and Equipment:Cost Model:Machinery and Equipment:Future Use:Cost:Acquisitions"," _"," _"," _ "," _ "," _ "," _ ",3200,"Road transport",3204,"Road and Traffic Regulation","CE",2080,"Internally generated funds","C","IA",240," Property, plant and equipment",240,"Property, plant and equipment"," _ "," _ "," _ "," _ "," _ "," _ "," _ "," _ ",1510,"Machinery and Equipment",1510,"Machinery and Equipment",241,"PPE at cost/valuation (excl. finance leases)",241,"PPE at cost/valuation (excl. finance leases)","",null,null,140,"Road Furniture",140,"Road Furniture"," _ "," _ "," _ "," _ "," _ "," _ "," _ "," _ ","_"," _ "," _ "," _ "," _ ","_"," _ "," _ "," _ "," _ ",null,null,0," _ ","Road and Traffic Regulation",null,null,"_","_","_",null,"_",0,0,0,0,0,0,0,0,0,0,0,0,0,0,0,0,0,0,0,{"$f":"INDEX([9]Sheet1!$H:$H,MATCH(CR:CR,[9]Sheet1!$AU:$AU,0))","v":{"$error":"#N/A"}}]
["C0039-3/IA01952/F0791/X116/R2865/001/TECH",4977,"C0039-3/IA01952/F0791/X116/R2865/001/TECH",53130,"Assets:Non-current Assets:Construction Work-in-progress:Acquisitions:Outsourced"," _"," _"," _ "," _ "," _ "," _ ",3200,"Road transport",3205,"Roads","CE",2010,"National Government","C","IA",240," Property, plant and equipment",240,"Property, plant and equipment"," _ "," _ "," _ "," _ "," _ "," _ "," _ "," _ "," _ "," _ "," _ "," _ ",241,"PPE at cost/valuation (excl. finance leases)",241,"PPE at cost/valuation (excl. finance leases)","",null,null,130,"Road Structures",130,"Road Structures"," _ "," _ "," _ "," _ "," _ "," _ "," _ "," _ ","_"," _ "," _ "," _ "," _ ","_"," _ "," _ "," _ "," _ ",null,9,91,"Roads","Roads",null,null,"_","_","_",110,"_",0,0,0,0,0,0,0,0,0,0,0,0,0,0,0,0,0,0,0,{"$f":"INDEX([9]Sheet1!$H:$H,MATCH(CR:CR,[9]Sheet1!$AU:$AU,0))","v":{"$error":"#N/A"}}]
["C0040-12/IA01952/F0791/X116/R2859/001/Tech",5372,"C0040-12/IA01952/F0791/X116/R2859/001/Tech",58376,"Assets:Non-current Assets:Construction Work-in-progress:Acquisitions:Outsourced"," _"," _"," _ "," _ "," _ "," _ ",3200,"Road transport",3205,"Roads","CE",2010,"National Government","C","IA",240," Property, plant and equipment",240,"Property, plant and equipment"," _ "," _ "," _ "," _ "," _ "," _ "," _ "," _ "," _ "," _ "," _ "," _ ",241,"PPE at cost/valuation (excl. finance leases)",241,"PPE at cost/valuation (excl. finance leases)","",null,null,120,"Roads",120,"Roads"," _ "," _ "," _ "," _ "," _ "," _ "," _ "," _ ","_"," _ "," _ "," _ "," _ ","_"," _ "," _ "," _ "," _ ",null,9,91,"Roads","Roads",null,null,"_","_","_",110,"_",0,0,0,0,0,0,0,0,0,0,0,0,0,0,0,0,0,0,0,{"$f":"INDEX([9]Sheet1!$H:$H,MATCH(CR:CR,[9]Sheet1!$AU:$AU,0))","v":{"$error":"#N/A"}}]
["C0040-13/IA00132/F0791/X101/R2853/001/COMM",5373,"C0040-13/IA00132/F0791/X101/R2853/001/COMM",58377,"Assets:Non-current Assets:Property, Plant and Equipment:Cost Model:Roads Infrastructure:Cost:Acquisitions"," _"," _"," _ "," _ "," _ "," _ ",3100,"Planning and development",3107,"Town Planning, Building Regulations and Enforcement, and City Engineer","CE",2010,"National Government","C","IA",240," Property, plant and equipment",240,"Property, plant and equipment"," _ "," _ "," _ "," _ "," _ "," _ "," _ "," _ ",110,"Roads Infrastructure",110,"Roads Infrastructure",241,"PPE at cost/valuation (excl. finance leases)",241,"PPE at cost/valuation (excl. finance leases)","",null,null,120,"Roads",120,"Roads"," _ "," _ "," _ "," _ "," _ "," _ "," _ "," _ ","_"," _ "," _ "," _ "," _ ","_"," _ "," _ "," _ "," _ ",null,7,72,"Planning and Development","Town Planning, Building Regulations and Enforcement, and City Engineer",null,null,"_","_","_",null,"_",0,0,0,0,0,0,0,0,0,0,0,0,0,0,0,0,0,0,0,{"$f":"INDEX([9]Sheet1!$H:$H,MATCH(CR:CR,[9]Sheet1!$AU:$AU,0))","v":{"$error":"#N/A"}}]
["C0040-14/IA00132/F0791/X101/R2866/001/Tech",5374,"C0040-14/IA00132/F0791/X101/R2866/001/Tech",58379,"Assets:Non-current Assets:Property, Plant and Equipment:Cost Model:Roads Infrastructure:Cost:Acquisitions"," _"," _"," _ "," _ "," _ "," _ ",3100,"Planning and development",3107,"Town Planning, Building Regulations and Enforcement, and City Engineer","CE",2010,"National Government","C","IA",240," Property, plant and equipment",240,"Property, plant and equipment"," _ "," _ "," _ "," _ "," _ "," _ "," _ "," _ ",110,"Roads Infrastructure",110,"Roads Infrastructure",241,"PPE at cost/valuation (excl. finance leases)",241,"PPE at cost/valuation (excl. finance leases)","",null,null,120,"Roads",120,"Roads"," _ "," _ "," _ "," _ "," _ "," _ "," _ "," _ ","_"," _ "," _ "," _ "," _ ","_"," _ "," _ "," _ "," _ ",null,7,72,"Planning and Development","Town Planning, Building Regulations and Enforcement, and City Engineer",null,null,"_","_","_",null,"_",0,0,0,0,0,0,0,0,0,0,0,0,0,0,0,0,0,0,0,{"$f":"INDEX([9]Sheet1!$H:$H,MATCH(CR:CR,[9]Sheet1!$AU:$AU,0))","v":{"$error":"#N/A"}}]
["C0040-50/IA00132/F0002/X116/R2859/001/FIN",null,"C0040-50/IA00132/F0002/X116/R2859/001/FIN",85272,"Assets:Non-current Assets:Property, Plant and Equipment:Cost Model:Roads Infrastructure:Cost:Acquisitions"," _"," _"," _ "," _ "," _ "," _ ",3200,"Road transport",3205,"Roads","CE",2080,"Internally generated funds","C","IA",240," Property, plant and equipment",240,"Property, plant and equipment"," _ "," _ "," _ "," _ "," _ "," _ "," _ "," _ ",110,"Roads Infrastructure",110,"Roads Infrastructure",241,"PPE at cost/valuation (excl. finance leases)",241,"PPE at cost/valuation (excl. finance leases)","",null,null,120,"Roads",120,"Roads"," _ "," _ "," _ "," _ "," _ "," _ "," _ "," _ ","_"," _ "," _ "," _ "," _ ","_"," _ "," _ "," _ "," _ ",null,9,91,"Roads","Roads",null,null,"_","_","_",null,"_",0,0,0,0,0,0,0,0,0,0,0,0,0,0,0,0,0,0,0,{"$f":"INDEX([9]Sheet1!$H:$H,MATCH(CR:CR,[9]Sheet1!$AU:$AU,0))","v":{"$error":"#N/A"}}]
["C0040-53/IA00132/F0002/X116/R2865/001/FIN",null,"C0040-53/IA00132/F0002/X116/R2865/001/FIN",85289,"Assets:Non-current Assets:Property, Plant and Equipment:Cost Model:Roads Infrastructure:Cost:Acquisitions"," _"," _"," _ "," _ "," _ "," _ ",3200,"Road transport",3205,"Roads","CE",2080,"Internally generated funds","C","IA",240," Property, plant and equipment",240,"Property, plant and equipment"," _ "," _ "," _ "," _ "," _ "," _ "," _ "," _ ",110,"Roads Infrastructure",110,"Roads Infrastructure",241,"PPE at cost/valuation (excl. finance leases)",241,"PPE at cost/valuation (excl. finance leases)","",null,null,120,"Roads",120,"Roads"," _ "," _ "," _ "," _ "," _ "," _ "," _ "," _ ","_"," _ "," _ "," _ "," _ ","_"," _ "," _ "," _ "," _ ",null,9,91,"Roads","Roads",null,null,"_","_","_",null,"_",0,0,0,0,0,0,0,0,0,0,0,0,0,0,0,0,0,0,0,{"$f":"INDEX([9]Sheet1!$H:$H,MATCH(CR:CR,[9]Sheet1!$AU:$AU,0))","v":{"$error":"#N/A"}}]
["C0049-1/IA01952/F0002/X131/R2867/001/Tech",18050,"C0049-1/IA01952/F0002/X131/R2867/001/Tech",84946,"Assets:Non-current Assets:Construction Work-in-progress:Acquisitions:Outsourced"," _"," _"," _ "," _ "," _ "," _ ",4400,"Waste management",4402,"Solid Waste Disposal (Landfill Sites)","CE",2080,"Internally generated funds","C","IA",240," Property, plant and equipment",240,"Property, plant and equipment"," _ "," _ "," _ "," _ "," _ "," _ "," _ "," _ "," _ "," _ "," _ "," _ ",241,"PPE at cost/valuation (excl. finance leases)",241,"PPE at cost/valuation (excl. finance leases)","",null,null,490,"Landfill Sites",490,"Landfill Sites"," _ "," _ "," _ "," _ "," _ "," _ "," _ "," _ ","_"," _ "," _ "," _ "," _ ","_"," _ "," _ "," _ "," _ ",null,5,53,"Waste Management","Solid Waste Disposal (Landfill Sites)",null,null,"_","_","_",480,"_",0,0,0,0,0,0,0,0,0,0,0,0,0,0,0,0,0,0,0,{"$f":"INDEX([9]Sheet1!$H:$H,MATCH(CR:CR,[9]Sheet1!$AU:$AU,0))","v":{"$error":"#N/A"}}]
["C0049-2/IA01952/F0002/X131/R2853/001/Tech",18049,"C0049-2/IA01952/F0002/X131/R2853/001/Tech",84947,"Assets:Non-current Assets:Construction Work-in-progress:Acquisitions:Outsourced"," _"," _"," _ "," _ "," _ "," _ ",4400,"Waste management",4402,"Solid Waste Disposal (Landfill Sites)","CE",2080,"Internally generated funds","C","IA",240," Property, plant and equipment",240,"Property, plant and equipment"," _ "," _ "," _ "," _ "," _ "," _ "," _ "," _ "," _ "," _ "," _ "," _ ",241,"PPE at cost/valuation (excl. finance leases)",241,"PPE at cost/valuation (excl. finance leases)","",null,null,490,"Landfill Sites",490,"Landfill Sites"," _ "," _ "," _ "," _ "," _ "," _ "," _ "," _ ","_"," _ "," _ "," _ "," _ ","_"," _ "," _ "," _ "," _ ",null,5,53,"Waste Management","Solid Waste Disposal (Landfill Sites)",null,null,"_","_","_",480,"_",0,0,0,0,0,0,0,0,0,0,0,0,0,0,0,0,0,0,0,{"$f":"INDEX([9]Sheet1!$H:$H,MATCH(CR:CR,[9]Sheet1!$AU:$AU,0))","v":{"$error":"#N/A"}}]
["C0049-4/IA00172/F0002/X131/R2864/001/FIN",null,"C0049-4/IA00172/F0002/X131/R2864/001/FIN",85149,"Assets:Non-current Assets:Property, Plant and Equipment:Cost Model:Solid Waste Infrastructure:Cost:Acquisitions"," _"," _"," _ "," _ "," _ "," _ ",4400,"Waste management",4402,"Solid Waste Disposal (Landfill Sites)","CE",2080,"Internally generated funds","C","IA",240," Property, plant and equipment",240,"Property, plant and equipment"," _ "," _ "," _ "," _ "," _ "," _ "," _ "," _ ",480,"Solid Waste Infrastructure",480,"Solid Waste Infrastructure",241,"PPE at cost/valuation (excl. finance leases)",241,"PPE at cost/valuation (excl. finance leases)","",null,null,490,"Landfill Sites",490,"Landfill Sites"," _ "," _ "," _ "," _ "," _ "," _ "," _ "," _ ","_"," _ "," _ "," _ "," _ ","_"," _ "," _ "," _ "," _ ",null,5,53,"Waste Management","Solid Waste Disposal (Landfill Sites)",null,null,"_","_","_",null,"_",0,0,0,0,0,0,0,0,0,0,0,0,0,0,0,0,0,0,0,{"$f":"INDEX([9]Sheet1!$H:$H,MATCH(CR:CR,[9]Sheet1!$AU:$AU,0))","v":{"$error":"#N/A"}}]
["C0068-10/IA06193/F0002/X044/R2865/001/FIN",null,"C0068-10/IA06193/F0002/X044/R2865/001/FIN",85124,"Assets:Non-current Assets:Property, Plant and Equipment:Cost Model:Computer Equipment:In-use:Cost:Acquisitions"," _"," _"," _ "," _ "," _ "," _ ",1100,"Executive and council",1110,"Mayor and Council","CE",2080,"Internally generated funds","C","IA",240," Property, plant and equipment",240,"Property, plant and equipment"," _ "," _ "," _ "," _ "," _ "," _ "," _ "," _ ",1470,"Computer Equipment",1470,"Computer Equipment",241,"PPE at cost/valuation (excl. finance leases)",241,"PPE at cost/valuation (excl. finance leases)","",null,null," _ "," _ "," _ "," _ ",1470,"Computer Equipment",1470,"Computer Equipment"," _ "," _ "," _ "," _ ","_"," _ "," _ "," _ "," _ ","_"," _ "," _ "," _ "," _ ",null,2,21,"Executive and council","Mayor and Council",null,null,"_","_","_",null,"_",0,0,0,0,0,0,0,0,0,0,0,0,0,0,0,0,0,0,0,{"$f":"INDEX([9]Sheet1!$H:$H,MATCH(CR:CR,[9]Sheet1!$AU:$AU,0))","v":{"$error":"#N/A"}}]
["C0068-7/IA06191/F0002/X046/R0072/001/COMM",15633,"C0068-7/IA06191/F0002/X046/R0072/001/COMM",63399,"Assets:Non-current Assets:Property, Plant and Equipment:Cost Model:Computer Equipment:In-use:Accumulated Impairment:Impairment"," _"," _"," _ "," _ "," _ "," _ ",1200,"Finance and administration",1201,"Administrative and Corporate Support","_",2080,"Internally generated funds","C","IA","_","_","_","_"," _ "," _ "," _ "," _ "," _ "," _ "," _ "," _ ",1470,"Computer Equipment",1470,"Computer Equipment",241,"PPE at cost/valuation (excl. finance leases)",241,"PPE at cost/valuation (excl. finance leases)","",null,null," _ "," _ "," _ "," _ ",1470,"Computer Equipment",1470,"Computer Equipment"," _ "," _ "," _ "," _ ","_"," _ "," _ "," _ "," _ ","_"," _ "," _ "," _ "," _ ",null,1,17,"Finance and Admin","Administrative and Corporate Support",null,null,"_","_","_",null,"_",0,0,0,0,0,0,0,0,0,0,0,0,0,0,0,0,0,0,0,{"$f":"INDEX([9]Sheet1!$H:$H,MATCH(CR:CR,[9]Sheet1!$AU:$AU,0))","v":{"$error":"#N/A"}}]
["C0068-9/IA06193/F0002/X047/R2865/001/FIN",null,"C0068-9/IA06193/F0002/X047/R2865/001/FIN",85119,"Assets:Non-current Assets:Property, Plant and Equipment:Cost Model:Computer Equipment:In-use:Cost:Acquisitions"," _"," _"," _ "," _ "," _ "," _ ",1200,"Finance and administration",1202,"Asset Management","CE",2080,"Internally generated funds","C","IA",240," Property, plant and equipment",240,"Property, plant and equipment"," _ "," _ "," _ "," _ "," _ "," _ "," _ "," _ ",1470,"Computer Equipment",1470,"Computer Equipment",241,"PPE at cost/valuation (excl. finance leases)",241,"PPE at cost/valuation (excl. finance leases)","",null,null," _ "," _ "," _ "," _ ",1470,"Computer Equipment",1470,"Computer Equipment"," _ "," _ "," _ "," _ ","_"," _ "," _ "," _ "," _ ","_"," _ "," _ "," _ "," _ ",null,1,110,"Finance and Admin","Asset Management",null,null,"_","_","_",null,"_",0,0,0,0,0,0,0,0,0,0,0,0,0,0,0,0,0,0,0,{"$f":"INDEX([9]Sheet1!$H:$H,MATCH(CR:CR,[9]Sheet1!$AU:$AU,0))","v":{"$error":"#N/A"}}]
["C0069-1/IA00122/F0002/X049/R0072/001/COMM",4907,"C0069-1/IA00122/F0002/X049/R0072/001/COMM",53054,"Assets:Non-current Assets:Property, Plant and Equipment:Cost Model:Roads Infrastructure:Accumulated Depreciation:Depreciation"," _"," _"," _ "," _ "," _ "," _ ",1200,"Finance and administration",1204,"Finance","_",2080,"Internally generated funds","C","IA",240," Property, plant and equipment",240,"Property, plant and equipment"," _ "," _ "," _ "," _ "," _ "," _ "," _ "," _ ",110,"Roads Infrastructure",110,"Roads Infrastructure",243,"Less: Accumulated depreciation",243,"Less: Accumulated depreciation","",null,null," _ "," _ "," _ "," _ ",1490,"Furniture and Office Equipment",1490,"Furniture and Office Equipment"," _ "," _ "," _ "," _ ","_"," _ "," _ "," _ "," _ ","_"," _ "," _ "," _ "," _ ",null,1,12,"Finance and Admin","Finance",null,null,"_","_","_",null,"_",0,0,0,0,0,0,0,0,0,0,0,0,0,0,0,0,0,0,0,{"$f":"INDEX([9]Sheet1!$H:$H,MATCH(CR:CR,[9]Sheet1!$AU:$AU,0))","v":{"$error":"#N/A"}}]
["C0069-1/IA01357/F0002/X049/R0072/001/COMM",4903,"C0069-1/IA01357/F0002/X049/R0072/001/COMM",53062,"Assets:Non-current Assets:Property, Plant and Equipment:Cost Model:Transport Assets:Owned and In-use:Accumulated Depreciation:Depreciation"," _"," _"," _ "," _ "," _ "," _ ",1200,"Finance and administration",1204,"Finance","_",2080,"Internally generated funds","C","IA",240," Property, plant and equipment",240,"Property, plant and equipment"," _ "," _ "," _ "," _ "," _ "," _ "," _ "," _ ",1530,"Transport Assets",1530,"Transport Assets",243,"Less: Accumulated depreciation",243,"Less: Accumulated depreciation","",null,null," _ "," _ "," _ "," _ ",1490,"Furniture and Office Equipment",1490,"Furniture and Office Equipment"," _ "," _ "," _ "," _ ","_"," _ "," _ "," _ "," _ ","_"," _ "," _ "," _ "," _ ",null,1,12,"Finance and Admin","Finance",null,null,"_","_","_",null,"_",0,0,0,0,0,0,0,0,0,0,0,0,0,0,0,0,0,0,0,{"$f":"INDEX([9]Sheet1!$H:$H,MATCH(CR:CR,[9]Sheet1!$AU:$AU,0))","v":{"$error":"#N/A"}}]
["C0069-1/IA06243/F0002/X049/R0073/001/COMM",4911,"C0069-1/IA06243/F0002/X049/R0073/001/COMM",53059,"Assets:Non-current Assets:Property, Plant and Equipment:Cost Model:Furniture and Office Equipment:In-use:Accumulated Depreciation:Depreciation"," _"," _"," _ "," _ "," _ "," _ ",1200,"Finance and administration",1204,"Finance","_",2080,"Internally generated funds","C","IA",240," Property, plant and equipment",240,"Property, plant and equipment"," _ "," _ "," _ "," _ "," _ "," _ "," _ "," _ ",1490,"Furniture and Office Equipment",1490,"Furniture and Office Equipment",243,"Less: Accumulated depreciation",243,"Less: Accumulated depreciation","",null,null," _ "," _ "," _ "," _ ",1490,"Furniture and Office Equipment",1490,"Furniture and Office Equipment"," _ "," _ "," _ "," _ ","_"," _ "," _ "," _ "," _ ","_"," _ "," _ "," _ "," _ ",null,1,12,"Finance and Admin","Finance",null,null,"_","_","_",null,"_",0,0,0,0,0,0,0,0,0,0,0,0,0,0,0,0,0,0,0,{"$f":"INDEX([9]Sheet1!$H:$H,MATCH(CR:CR,[9]Sheet1!$AU:$AU,0))","v":{"$error":"#N/A"}}]
["C0071-1/IA01357/F0002/X049/R0072/001/COMM",4912,"C0071-1/IA01357/F0002/X049/R0072/001/COMM",53067,"Assets:Non-current Assets:Property, Plant and Equipment:Cost Model:Transport Assets:Owned and In-use:Accumulated Depreciation:Depreciation"," _"," _"," _ "," _ "," _ "," _ ",1200,"Finance and administration",1204,"Finance","_",2080,"Internally generated funds","C","IA",240," Property, plant and equipment",240,"Property, plant and equipment"," _ "," _ "," _ "," _ "," _ "," _ "," _ "," _ ",1530,"Transport Assets",1530,"Transport Assets",243,"Less: Accumulated depreciation",243,"Less: Accumulated depreciation","",null,null," _ "," _ "," _ "," _ ",1510,"Machinery and Equipment",1510,"Machinery and Equipment"," _ "," _ "," _ "," _ ","_"," _ "," _ "," _ "," _ ","_"," _ "," _ "," _ "," _ ",null,1,12,"Finance and Admin","Finance",null,null,"_","_","_",null,"_",0,0,0,0,0,0,0,0,0,0,0,0,0,0,0,0,0,0,0,{"$f":"INDEX([9]Sheet1!$H:$H,MATCH(CR:CR,[9]Sheet1!$AU:$AU,0))","v":{"$error":"#N/A"}}]
["C0071-1/IA06305/F0002/X101/R0073/001/COMM",18119,"C0071-1/IA06305/F0002/X101/R0073/001/COMM",85020,"Assets:Non-current Assets:Property, Plant and Equipment:Cost Model:Machinery and Equipment:In-use:Accumulated Depreciation:Opening Balance"," _"," _"," _ "," _ "," _ "," _ ",3100,"Planning and development",3107,"Town Planning, Building Regulations and Enforcement, and City Engineer","_",2080,"Internally generated funds","C","IA",240," Property, plant and equipment",240,"Property, plant and equipment"," _ "," _ "," _ "," _ "," _ "," _ "," _ "," _ ",1510,"Machinery and Equipment",1510,"Machinery and Equipment",243,"Less: Accumulated depreciation",243,"Less: Accumulated depreciation","",null,null," _ "," _ "," _ "," _ ",1510,"Machinery and Equipment",1510,"Machinery and Equipment"," _ "," _ "," _ "," _ ","_"," _ "," _ "," _ "," _ ","_"," _ "," _ "," _ "," _ ",null,7,72,"Planning and Development","Town Planning, Building Regulations and Enforcement, and City Engineer",null,null,"_","_","_",null,"_",0,0,0,0,0,0,0,0,0,0,0,0,0,0,0,0,0,0,0,{"$f":"INDEX([9]Sheet1!$H:$H,MATCH(CR:CR,[9]Sheet1!$AU:$AU,0))","v":{"$error":"#N/A"}}]
["C0071-14/IA06303/F0002/X125/R0072/001/COMM",15508,"C0071-14/IA06303/F0002/X125/R0072/001/COMM",63555,"Assets:Non-current Assets:Property, Plant and Equipment:Cost Model:Machinery and Equipment:In-use:Accumulated Depreciation:Depreciation"," _"," _"," _ "," _ "," _ "," _ ",2200,"Sport and recreation",2205,"Sports Grounds and Stadiums","_",2080,"Internally generated funds","C","IA",240," Property, plant and equipment",240,"Property, plant and equipment"," _ "," _ "," _ "," _ "," _ "," _ "," _ "," _ ",1510,"Machinery and Equipment",1510,"Machinery and Equipment",243,"Less: Accumulated depreciation",243,"Less: Accumulated depreciation","",null,null," _ "," _ "," _ "," _ ",1510,"Machinery and Equipment",1510,"Machinery and Equipment"," _ "," _ "," _ "," _ ","_"," _ "," _ "," _ "," _ ","_"," _ "," _ "," _ "," _ ",null,null,0," _ ","Sports Grounds and Stadiums",null,null,"_","_","_",null,"_",0,0,0,0,0,0,0,0,0,0,0,0,0,0,0,0,0,0,0,{"$f":"INDEX([9]Sheet1!$H:$H,MATCH(CR:CR,[9]Sheet1!$AU:$AU,0))","v":{"$error":"#N/A"}}]
["C0071-15/IA06313/F0002/X047/R0072/001/Tech",15597,"C0071-15/IA06313/F0002/X047/R0072/001/Tech",63412,"Assets:Non-current Assets:Property, Plant and Equipment:Cost Model:Machinery and Equipment:In-use:Cost:Acquisitions"," _"," _"," _ "," _ "," _ "," _ ",1200,"Finance and administration",1202,"Asset Management","CE",2080,"Internally generated funds","C","IA",240," Property, plant and equipment",240,"Property, plant and equipment"," _ "," _ "," _ "," _ "," _ "," _ "," _ "," _ ",1510,"Machinery and Equipment",1510,"Machinery and Equipment",241,"PPE at cost/valuation (excl. finance leases)",241,"PPE at cost/valuation (excl. finance leases)","",null,null," _ "," _ "," _ "," _ ",1510,"Machinery and Equipment",1510,"Machinery and Equipment"," _ "," _ "," _ "," _ ","_"," _ "," _ "," _ "," _ ","_"," _ "," _ "," _ "," _ ",null,1,110,"Finance and Admin","Asset Management",null,null,"_","_","_",null,"_",0,0,0,0,0,0,0,0,0,0,0,0,0,0,17000,0,0,0,0,{"$f":"INDEX([9]Sheet1!$H:$H,MATCH(CR:CR,[9]Sheet1!$AU:$AU,0))","v":{"$error":"#N/A"}}]
["C0003-3/IA05101/F0002/X052/R2865/001/FIN",null,"C0003-3/IA05101/F0002/X052/R2865/001/FIN",85312,"Assets:Non-current Assets:Intangible Assets:Cost:Other:In-use:Computer Software:Acquisitions"," _"," _"," _ "," _ "," _ "," _ ",1200,"Finance and administration",1207,"Information Technology","CE",2080,"Internally generated funds","C","IA",270," Intangible",270,"Intangible"," _ "," _ "," _ "," _ "," _ "," _ "," _ "," _ ",1370,"Intangible Assets",1370,"Intangible Assets"," _ "," _ "," _ "," _ ","",null,null,1470,"Computer Equipment",1470,"Computer Equipment"," _ "," _ "," _ "," _ "," _ "," _ "," _ "," _ ","_"," _ "," _ "," _ "," _ ","_"," _ "," _ "," _ "," _ ",null,1,15,"Finance and Admin","Information Technology",null,null,"_","_","_",null,"_",0,0,0,0,0,0,0,0,0,0,0,0,0,0,0,0,0,0,0,{"$f":"INDEX([9]Sheet1!$H:$H,MATCH(CR:CR,[9]Sheet1!$AU:$AU,0))","v":{"$error":"#N/A"}}]
["C0004-1/IA06243/F0002/X047/R0072/001/Tech",2618,"C0004-1/IA06243/F0002/X047/R0072/001/Tech",52330,"Assets:Non-current Assets:Property, Plant and Equipment:Cost Model:Furniture and Office Equipment:In-use:Accumulated Depreciation:Depreciation"," _"," _"," _ "," _ "," _ "," _ ",1200,"Finance and administration",1202,"Asset Management","_",2080,"Internally generated funds","C","IA",240," Property, plant and equipment",240,"Property, plant and equipment"," _ "," _ "," _ "," _ "," _ "," _ "," _ "," _ ",1490,"Furniture and Office Equipment",1490,"Furniture and Office Equipment",243,"Less: Accumulated depreciation",243,"Less: Accumulated depreciation","",null,null,1490,"Furniture and Office Equipment",1490,"Furniture and Office Equipment"," _ "," _ "," _ "," _ "," _ "," _ "," _ "," _ ","_"," _ "," _ "," _ "," _ ","_"," _ "," _ "," _ "," _ ",null,1,110,"Finance and Admin","Asset Management",null,null,"_","_","_",null,"_",0,0,0,0,0,0,0,0,0,0,0,0,0,0,0,0,0,0,0,{"$f":"INDEX([9]Sheet1!$H:$H,MATCH(CR:CR,[9]Sheet1!$AU:$AU,0))","v":{"$error":"#N/A"}}]
["C0004-1/IA06259/F0002/X047/R0072/001/FIN",15489,"C0004-1/IA06259/F0002/X047/R0072/001/FIN",63404,"Assets:Non-current Assets:Property, Plant and Equipment:Cost Model:Furniture and Office Equipment:In-use:Cost:Opening Balance"," _"," _"," _ "," _ "," _ "," _ ",1200,"Finance and administration",1202,"Asset Management","_",2080,"Internally generated funds","C","IA",240," Property, plant and equipment",240,"Property, plant and equipment"," _ "," _ "," _ "," _ "," _ "," _ "," _ "," _ ",1490,"Furniture and Office Equipment",1490,"Furniture and Office Equipment",241,"PPE at cost/valuation (excl. finance leases)",241,"PPE at cost/valuation (excl. finance leases)","",null,null,1490,"Furniture and Office Equipment",1490,"Furniture and Office Equipment"," _ "," _ "," _ "," _ "," _ "," _ "," _ "," _ ","_"," _ "," _ "," _ "," _ ","_"," _ "," _ "," _ "," _ ",null,1,110,"Finance and Admin","Asset Management",null,null,"_","_","_",null,"_",0,0,0,0,0,0,0,0,0,0,0,0,0,0,0,0,0,0,0,{"$f":"INDEX([9]Sheet1!$H:$H,MATCH(CR:CR,[9]Sheet1!$AU:$AU,0))","v":{"$error":"#N/A"}}]
["C0004-13/IA06253/F0002/X044/R2865/001/FIN",null,"C0004-13/IA06253/F0002/X044/R2865/001/FIN",85099,"Assets:Non-current Assets:Property, Plant and Equipment:Cost Model:Furniture and Office Equipment:In-use:Cost:Acquisitions"," _"," _"," _ "," _ "," _ "," _ ",1100,"Executive and council",1110,"Mayor and Council","CE",2080,"Internally generated funds","C","IA",240," Property, plant and equipment",240,"Property, plant and equipment"," _ "," _ "," _ "," _ "," _ "," _ "," _ "," _ ",1490,"Furniture and Office Equipment",1490,"Furniture and Office Equipment",241,"PPE at cost/valuation (excl. finance leases)",241,"PPE at cost/valuation (excl. finance leases)","",null,null,1490,"Furniture and Office Equipment",1490,"Furniture and Office Equipment"," _ "," _ "," _ "," _ "," _ "," _ "," _ "," _ ","_"," _ "," _ "," _ "," _ ","_"," _ "," _ "," _ "," _ ",null,2,21,"Executive and council","Mayor and Council",null,null,"_","_","_",null,"_",0,0,0,0,0,0,0,0,0,0,0,0,0,0,0,0,0,0,0,{"$f":"INDEX([9]Sheet1!$H:$H,MATCH(CR:CR,[9]Sheet1!$AU:$AU,0))","v":{"$error":"#N/A"}}]
["C0004-4/IA06253/F0002/X047/R0072/001/CORP",15491,"C0004-4/IA06253/F0002/X047/R0072/001/CORP",63407,"Assets:Non-current Assets:Property, Plant and Equipment:Cost Model:Furniture and Office Equipment:In-use:Cost:Acquisitions"," _"," _"," _ "," _ "," _ "," _ ",1200,"Finance and administration",1202,"Asset Management","CE",2080,"Internally generated funds","C","IA",240," Property, plant and equipment",240,"Property, plant and equipment"," _ "," _ "," _ "," _ "," _ "," _ "," _ "," _ ",1490,"Furniture and Office Equipment",1490,"Furniture and Office Equipment",241,"PPE at cost/valuation (excl. finance leases)",241,"PPE at cost/valuation (excl. finance leases)","",null,null,1490,"Furniture and Office Equipment",1490,"Furniture and Office Equipment"," _ "," _ "," _ "," _ "," _ "," _ "," _ "," _ ","_"," _ "," _ "," _ "," _ ","_"," _ "," _ "," _ "," _ ",null,1,110,"Finance and Admin","Asset Management",null,null,"_","_","_",null,"_",0,0,0,0,0,0,0,0,0,0,0,0,0,0,0,0,0,0,0,{"$f":"INDEX([9]Sheet1!$H:$H,MATCH(CR:CR,[9]Sheet1!$AU:$AU,0))","v":{"$error":"#N/A"}}]
["C0040-17/IA00132/F0791/X101/R2853/001/Tech",5377,"C0040-17/IA00132/F0791/X101/R2853/001/Tech",58382,"Assets:Non-current Assets:Property, Plant and Equipment:Cost Model:Roads Infrastructure:Cost:Acquisitions"," _"," _"," _ "," _ "," _ "," _ ",3100,"Planning and development",3107,"Town Planning, Building Regulations and Enforcement, and City Engineer","CE",2010,"National Government","C","IA",240," Property, plant and equipment",240,"Property, plant and equipment"," _ "," _ "," _ "," _ "," _ "," _ "," _ "," _ ",110,"Roads Infrastructure",110,"Roads Infrastructure",241,"PPE at cost/valuation (excl. finance leases)",241,"PPE at cost/valuation (excl. finance leases)","",null,null,120,"Roads",120,"Roads"," _ "," _ "," _ "," _ "," _ "," _ "," _ "," _ ","_"," _ "," _ "," _ "," _ ","_"," _ "," _ "," _ "," _ ",null,7,72,"Planning and Development","Town Planning, Building Regulations and Enforcement, and City Engineer",null,null,"_","_","_",null,"_",0,0,0,0,0,0,0,0,0,0,0,0,0,0,0,0,0,0,0,{"$f":"INDEX([9]Sheet1!$H:$H,MATCH(CR:CR,[9]Sheet1!$AU:$AU,0))","v":{"$error":"#N/A"}}]
["C0040-18/IA00132/F0791/X101/R2869/001/Tech",6364,"C0040-18/IA00132/F0791/X101/R2869/001/Tech",58383,"Assets:Non-current Assets:Property, Plant and Equipment:Cost Model:Roads Infrastructure:Cost:Acquisitions"," _"," _"," _ "," _ "," _ "," _ ",3100,"Planning and development",3107,"Town Planning, Building Regulations and Enforcement, and City Engineer","CE",2010,"National Government","C","IA",240," Property, plant and equipment",240,"Property, plant and equipment"," _ "," _ "," _ "," _ "," _ "," _ "," _ "," _ ",110,"Roads Infrastructure",110,"Roads Infrastructure",241,"PPE at cost/valuation (excl. finance leases)",241,"PPE at cost/valuation (excl. finance leases)","",null,null,120,"Roads",120,"Roads"," _ "," _ "," _ "," _ "," _ "," _ "," _ "," _ ","_"," _ "," _ "," _ "," _ ","_"," _ "," _ "," _ "," _ ",null,7,72,"Planning and Development","Town Planning, Building Regulations and Enforcement, and City Engineer",null,null,"_","_","_",null,"_",0,0,0,0,0,0,0,0,0,0,0,0,0,0,0,0,0,0,0,{"$f":"INDEX([9]Sheet1!$H:$H,MATCH(CR:CR,[9]Sheet1!$AU:$AU,0))","v":{"$error":"#N/A"}}]
["C0040-27/IA01952/F0791/X116/R2865/001/Tech",15758,"C0040-27/IA01952/F0791/X116/R2865/001/Tech",63670,"Assets:Non-current Assets:Construction Work-in-progress:Acquisitions:Outsourced"," _"," _"," _ "," _ "," _ "," _ ",3200,"Road transport",3205,"Roads","CE",2010,"National Government","C","IA",240," Property, plant and equipment",240,"Property, plant and equipment"," _ "," _ "," _ "," _ "," _ "," _ "," _ "," _ "," _ "," _ "," _ "," _ ",241,"PPE at cost/valuation (excl. finance leases)",241,"PPE at cost/valuation (excl. finance leases)","",null,null,120,"Roads",120,"Roads"," _ "," _ "," _ "," _ "," _ "," _ "," _ "," _ ","_"," _ "," _ "," _ "," _ ","_"," _ "," _ "," _ "," _ ",null,9,91,"Roads","Roads",null,null,"_","_","_",110,"_",0,0,0,0,0,0,0,0,0,0,0,0,0,0,0,0,0,0,0,{"$f":"INDEX([9]Sheet1!$H:$H,MATCH(CR:CR,[9]Sheet1!$AU:$AU,0))","v":{"$error":"#N/A"}}]
["C0040-31/IA01952/F0791/X116/R2864/001/Tech",16787,"C0040-31/IA01952/F0791/X116/R2864/001/Tech",83684,"Assets:Non-current Assets:Construction Work-in-progress:Acquisitions:Outsourced"," _"," _"," _ "," _ "," _ "," _ ",3200,"Road transport",3205,"Roads","CE",2010,"National Government","C","IA",240," Property, plant and equipment",240,"Property, plant and equipment"," _ "," _ "," _ "," _ "," _ "," _ "," _ "," _ "," _ "," _ "," _ "," _ ",241,"PPE at cost/valuation (excl. finance leases)",241,"PPE at cost/valuation (excl. finance leases)","",null,null,120,"Roads",120,"Roads"," _ "," _ "," _ "," _ "," _ "," _ "," _ "," _ ","_"," _ "," _ "," _ "," _ ","_"," _ "," _ "," _ "," _ ",null,9,91,"Roads","Roads",null,null,"_","_","_",110,"_",0,0,0,0,0,0,0,0,0,0,0,0,0,0,0,0,0,0,0,{"$f":"INDEX([9]Sheet1!$H:$H,MATCH(CR:CR,[9]Sheet1!$AU:$AU,0))","v":{"$error":"#N/A"}}]
["C0040-35/IA01952/F0791/X116/R2863/001/Tech",18036,"C0040-35/IA01952/F0791/X116/R2863/001/Tech",84933,"Assets:Non-current Assets:Construction Work-in-progress:Acquisitions:Outsourced"," _"," _"," _ "," _ "," _ "," _ ",3200,"Road transport",3205,"Roads","CE",2010,"National Government","C","IA",240," Property, plant and equipment",240,"Property, plant and equipment"," _ "," _ "," _ "," _ "," _ "," _ "," _ "," _ "," _ "," _ "," _ "," _ ",241,"PPE at cost/valuation (excl. finance leases)",241,"PPE at cost/valuation (excl. finance leases)","",null,null,120,"Roads",120,"Roads"," _ "," _ "," _ "," _ "," _ "," _ "," _ "," _ ","_"," _ "," _ "," _ "," _ ","_"," _ "," _ "," _ "," _ ",null,9,91,"Roads","Roads",null,null,"_","_","_",110,"_",5000000,0,0,-89348,4910652,0,0,244880.93,161332.75,971082.91999999993,1127109.6399999999,52419.92,922269.95000000007,0,485525.79,0,0,0,0,{"$f":"INDEX([9]Sheet1!$H:$H,MATCH(CR:CR,[9]Sheet1!$AU:$AU,0))","v":{"$error":"#N/A"}}]
["C0006-12/IA06313/F0002/X101/R2865/001/FIN",null,"C0006-12/IA06313/F0002/X101/R2865/001/FIN",85037,"Assets:Non-current Assets:Property, Plant and Equipment:Cost Model:Machinery and Equipment:In-use:Cost:Acquisitions"," _"," _"," _ "," _ "," _ "," _ ",3100,"Planning and development",3107,"Town Planning, Building Regulations and Enforcement, and City Engineer","CE",2080,"Internally generated funds","C","IA",240," Property, plant and equipment",240,"Property, plant and equipment"," _ "," _ "," _ "," _ "," _ "," _ "," _ "," _ ",1510,"Machinery and Equipment",1510,"Machinery and Equipment",241,"PPE at cost/valuation (excl. finance leases)",241,"PPE at cost/valuation (excl. finance leases)","",null,null,1510,"Machinery and Equipment",1510,"Machinery and Equipment"," _ "," _ "," _ "," _ "," _ "," _ "," _ "," _ ","_"," _ "," _ "," _ "," _ ","_"," _ "," _ "," _ "," _ ",null,7,72,"Planning and Development","Town Planning, Building Regulations and Enforcement, and City Engineer",null,null,"_","_","_",null,"_",0,0,0,0,0,0,0,0,0,0,0,0,0,0,0,0,0,0,0,{"$f":"INDEX([9]Sheet1!$H:$H,MATCH(CR:CR,[9]Sheet1!$AU:$AU,0))","v":{"$error":"#N/A"}}]
["C0006-4/IA06303/F0002/X006/R0073/001/COMM",6388,"C0006-4/IA06303/F0002/X006/R0073/001/COMM",63390,"Assets:Non-current Assets:Property, Plant and Equipment:Cost Model:Machinery and Equipment:In-use:Accumulated Depreciation:Depreciation"," _"," _"," _ "," _ "," _ "," _ ",2100,"Community and social services",2106,"Community Halls and Facilities","_",2080,"Internally generated funds","C","IA",240," Property, plant and equipment",240,"Property, plant and equipment"," _ "," _ "," _ "," _ "," _ "," _ "," _ "," _ ",1510,"Machinery and Equipment",1510,"Machinery and Equipment",243,"Less: Accumulated depreciation",243,"Less: Accumulated depreciation","",null,null,1510,"Machinery and Equipment",1510,"Machinery and Equipment"," _ "," _ "," _ "," _ "," _ "," _ "," _ "," _ ","_"," _ "," _ "," _ "," _ ","_"," _ "," _ "," _ "," _ ",null,3,32,"Community and social services","Community Halls and Facilities",null,null,"_","_","_",null,"_",0,0,0,0,0,0,0,0,0,0,0,0,0,0,0,0,0,0,0,{"$f":"INDEX([9]Sheet1!$H:$H,MATCH(CR:CR,[9]Sheet1!$AU:$AU,0))","v":{"$error":"#N/A"}}]
["C0006-4/IA06313/F0002/X132/R0073/001/COMM",6389,"C0006-4/IA06313/F0002/X132/R0073/001/COMM",63391,"Assets:Non-current Assets:Property, Plant and Equipment:Cost Model:Machinery and Equipment:In-use:Cost:Acquisitions"," _"," _"," _ "," _ "," _ "," _ ",4400,"Waste management",4403,"Solid Waste Removal","CE",2080,"Internally generated funds","C","IA",240," Property, plant and equipment",240,"Property, plant and equipment"," _ "," _ "," _ "," _ "," _ "," _ "," _ "," _ ",1510,"Machinery and Equipment",1510,"Machinery and Equipment",241,"PPE at cost/valuation (excl. finance leases)",241,"PPE at cost/valuation (excl. finance leases)","",null,null,1510,"Machinery and Equipment",1510,"Machinery and Equipment"," _ "," _ "," _ "," _ "," _ "," _ "," _ "," _ ","_"," _ "," _ "," _ "," _ ","_"," _ "," _ "," _ "," _ ",null,5,51,"Waste Management","Solid Waste Removal",null,null,"_","_","_",null,"_",0,0,0,0,0,0,0,0,0,0,0,0,0,0,0,0,0,0,0,{"$f":"INDEX([9]Sheet1!$H:$H,MATCH(CR:CR,[9]Sheet1!$AU:$AU,0))","v":{"$error":"#N/A"}}]
["C0006-6/IA06313/F0002/X019/R0072/001/TRAF",16865,"C0006-6/IA06313/F0002/X019/R0072/001/TRAF",83762,"Assets:Non-current Assets:Property, Plant and Equipment:Cost Model:Machinery and Equipment:In-use:Cost:Acquisitions"," _"," _"," _ "," _ "," _ "," _ ",2100,"Community and social services",2109,"Disaster Management","CE",2080,"Internally generated funds","C","IA",240," Property, plant and equipment",240,"Property, plant and equipment"," _ "," _ "," _ "," _ "," _ "," _ "," _ "," _ ",1510,"Machinery and Equipment",1510,"Machinery and Equipment",241,"PPE at cost/valuation (excl. finance leases)",241,"PPE at cost/valuation (excl. finance leases)","",null,null,1510,"Machinery and Equipment",1510,"Machinery and Equipment"," _ "," _ "," _ "," _ "," _ "," _ "," _ "," _ ","_"," _ "," _ "," _ "," _ ","_"," _ "," _ "," _ "," _ ",null,3,31,"Community and social services","Disaster Management",null,null,"_","_","_",null,"_",0,0,0,0,0,0,0,0,0,0,167000,0,0,0,0,0,0,0,0,{"$f":"INDEX([9]Sheet1!$H:$H,MATCH(CR:CR,[9]Sheet1!$AU:$AU,0))","v":{"$error":"#N/A"}}]
["C0006-9/IA06313/F0002/X149/R0073/001/FIN",null,"C0006-9/IA06313/F0002/X149/R0073/001/FIN",85044,"Assets:Non-current Assets:Property, Plant and Equipment:Cost Model:Machinery and Equipment:In-use:Cost:Acquisitions"," _"," _"," _ "," _ "," _ "," _ ",4200,"Water management",4202,"Water Distribution","CE",2080,"Internally generated funds","C","IA",240," Property, plant and equipment",240,"Property, plant and equipment"," _ "," _ "," _ "," _ "," _ "," _ "," _ "," _ ",1510,"Machinery and Equipment",1510,"Machinery and Equipment",241,"PPE at cost/valuation (excl. finance leases)",241,"PPE at cost/valuation (excl. finance leases)","",null,null,1510,"Machinery and Equipment",1510,"Machinery and Equipment"," _ "," _ "," _ "," _ "," _ "," _ "," _ "," _ ","_"," _ "," _ "," _ "," _ ","_"," _ "," _ "," _ "," _ ",null,null,0," _ ","Water Distribution",null,null,"_","_","_",null,"_",0,0,0,0,0,0,0,0,0,0,0,0,0,0,0,0,0,0,0,{"$f":"INDEX([9]Sheet1!$H:$H,MATCH(CR:CR,[9]Sheet1!$AU:$AU,0))","v":{"$error":"#N/A"}}]
["C0004-5/IA06261/F0002/X047/R0072/001/CORP",15495,"C0004-5/IA06261/F0002/X047/R0072/001/CORP",63409,"Assets:Non-current Assets:Property, Plant and Equipment:Cost Model:Furniture and Office Equipment:In-use:Cost:Transfers Received"," _"," _"," _ "," _ "," _ "," _ ",1200,"Finance and administration",1202,"Asset Management","_",2080,"Internally generated funds","C","IA",240," Property, plant and equipment",240,"Property, plant and equipment"," _ "," _ "," _ "," _ "," _ "," _ "," _ "," _ ",1490,"Furniture and Office Equipment",1490,"Furniture and Office Equipment",241,"PPE at cost/valuation (excl. finance leases)",241,"PPE at cost/valuation (excl. finance leases)","",null,null,1490,"Furniture and Office Equipment",1490,"Furniture and Office Equipment"," _ "," _ "," _ "," _ "," _ "," _ "," _ "," _ ","_"," _ "," _ "," _ "," _ ","_"," _ "," _ "," _ "," _ ",null,1,110,"Finance and Admin","Asset Management",null,null,"_","_","_",null,"_",0,0,0,0,0,0,0,0,0,0,0,0,0,0,0,0,0,0,0,{"$f":"INDEX([9]Sheet1!$H:$H,MATCH(CR:CR,[9]Sheet1!$AU:$AU,0))","v":{"$error":"#N/A"}}]
["C0006-1/IA06303/F0002/X060/R0072/001/COMM",2857,"C0006-1/IA06303/F0002/X060/R0072/001/COMM",52572,"Assets:Non-current Assets:Property, Plant and Equipment:Cost Model:Machinery and Equipment:In-use:Accumulated Depreciation:Depreciation"," _"," _"," _ "," _ "," _ "," _ ",1200,"Finance and administration",1202,"Asset Management","_",2080,"Internally generated funds","C","IA",240," Property, plant and equipment",240,"Property, plant and equipment"," _ "," _ "," _ "," _ "," _ "," _ "," _ "," _ ",1510,"Machinery and Equipment",1510,"Machinery and Equipment",243,"Less: Accumulated depreciation",243,"Less: Accumulated depreciation","",null,null,1510,"Machinery and Equipment",1510,"Machinery and Equipment"," _ "," _ "," _ "," _ "," _ "," _ "," _ "," _ ","_"," _ "," _ "," _ "," _ ","_"," _ "," _ "," _ "," _ ",null,1,110,"Finance and Admin","Asset Management",null,null,"_","_","_",null,"_",0,0,0,0,0,0,0,0,0,0,0,0,0,0,0,0,0,0,0,{"$f":"INDEX([9]Sheet1!$H:$H,MATCH(CR:CR,[9]Sheet1!$AU:$AU,0))","v":{"$error":"#N/A"}}]
["C0007-1/IA01357/F0002/X047/R0072/001/FIN",2610,"C0007-1/IA01357/F0002/X047/R0072/001/FIN",52322,"Assets:Non-current Assets:Property, Plant and Equipment:Cost Model:Transport Assets:Owned and In-use:Accumulated Depreciation:Depreciation"," _"," _"," _ "," _ "," _ "," _ ",1200,"Finance and administration",1202,"Asset Management","_",2080,"Internally generated funds","C","IA",240," Property, plant and equipment",240,"Property, plant and equipment"," _ "," _ "," _ "," _ "," _ "," _ "," _ "," _ ",1530,"Transport Assets",1530,"Transport Assets",243,"Less: Accumulated depreciation",243,"Less: Accumulated depreciation","",null,null,1530,"Transport Assets",1530,"Transport Assets"," _ "," _ "," _ "," _ "," _ "," _ "," _ "," _ ","_"," _ "," _ "," _ "," _ ","_"," _ "," _ "," _ "," _ ",null,1,110,"Finance and Admin","Asset Management",null,null,"_","_","_",null,"_",0,0,0,0,0,0,0,0,0,0,0,0,0,0,0,0,0,0,0,{"$f":"INDEX([9]Sheet1!$H:$H,MATCH(CR:CR,[9]Sheet1!$AU:$AU,0))","v":{"$error":"#N/A"}}]
["C0007-1/IA01357/F0002/X060/R0072/001/FIN",2862,"C0007-1/IA01357/F0002/X060/R0072/001/FIN",52577,"Assets:Non-current Assets:Property, Plant and Equipment:Cost Model:Transport Assets:Owned and In-use:Accumulated Depreciation:Depreciation"," _"," _"," _ "," _ "," _ "," _ ",1200,"Finance and administration",1202,"Asset Management","_",2080,"Internally generated funds","C","IA",240," Property, plant and equipment",240,"Property, plant and equipment"," _ "," _ "," _ "," _ "," _ "," _ "," _ "," _ ",1530,"Transport Assets",1530,"Transport Assets",243,"Less: Accumulated depreciation",243,"Less: Accumulated depreciation","",null,null,1530,"Transport Assets",1530,"Transport Assets"," _ "," _ "," _ "," _ "," _ "," _ "," _ "," _ ","_"," _ "," _ "," _ "," _ ","_"," _ "," _ "," _ "," _ ",null,1,110,"Finance and Admin","Asset Management",null,null,"_","_","_",null,"_",0,0,0,0,0,0,0,0,0,0,0,0,0,0,0,0,0,0,0,{"$f":"INDEX([9]Sheet1!$H:$H,MATCH(CR:CR,[9]Sheet1!$AU:$AU,0))","v":{"$error":"#N/A"}}]
["C0038-1/IA06282/F0002/X112/R0072/001/TRAF",1251,"C0038-1/IA06282/F0002/X112/R0072/001/TRAF",52828,"Assets:Non-current Assets:Property, Plant and Equipment:Cost Model:Machinery and Equipment:Future Use:Cost:Acquisitions"," _"," _"," _ "," _ "," _ "," _ ",2300,"Public safety",2305,"Fire Fighting and Protection","CE",2080,"Internally generated funds","C","IA",240," Property, plant and equipment",240,"Property, plant and equipment"," _ "," _ "," _ "," _ "," _ "," _ "," _ "," _ ",1510,"Machinery and Equipment",1510,"Machinery and Equipment",241,"PPE at cost/valuation (excl. finance leases)",241,"PPE at cost/valuation (excl. finance leases)","",null,null,140,"Road Furniture",140,"Road Furniture"," _ "," _ "," _ "," _ "," _ "," _ "," _ "," _ ","_"," _ "," _ "," _ "," _ ","_"," _ "," _ "," _ "," _ ",null,null,0," _ ","Fire Fighting and Protection",null,null,"_","_","_",null,"_",0,0,0,0,0,0,0,0,0,0,0,0,0,0,0,0,0,0,0,{"$f":"INDEX([9]Sheet1!$H:$H,MATCH(CR:CR,[9]Sheet1!$AU:$AU,0))","v":{"$error":"#N/A"}}]
["C0040-52/IA00132/F0002/X116/R2861/001/FIN",null,"C0040-52/IA00132/F0002/X116/R2861/001/FIN",85271,"Assets:Non-current Assets:Property, Plant and Equipment:Cost Model:Roads Infrastructure:Cost:Acquisitions"," _"," _"," _ "," _ "," _ "," _ ",3200,"Road transport",3205,"Roads","CE",2080,"Internally generated funds","C","IA",240," Property, plant and equipment",240,"Property, plant and equipment"," _ "," _ "," _ "," _ "," _ "," _ "," _ "," _ ",110,"Roads Infrastructure",110,"Roads Infrastructure",241,"PPE at cost/valuation (excl. finance leases)",241,"PPE at cost/valuation (excl. finance leases)","",null,null,120,"Roads",120,"Roads"," _ "," _ "," _ "," _ "," _ "," _ "," _ "," _ ","_"," _ "," _ "," _ "," _ ","_"," _ "," _ "," _ "," _ ",null,9,91,"Roads","Roads",null,null,"_","_","_",null,"_",0,0,0,0,0,0,0,0,0,0,0,0,0,0,0,0,0,0,0,{"$f":"INDEX([9]Sheet1!$H:$H,MATCH(CR:CR,[9]Sheet1!$AU:$AU,0))","v":{"$error":"#N/A"}}]
["C0040-57/IA00132/F0002/X116/R2862/001/FIN",null,"C0040-57/IA00132/F0002/X116/R2862/001/FIN",85311,"Assets:Non-current Assets:Property, Plant and Equipment:Cost Model:Roads Infrastructure:Cost:Acquisitions"," _"," _"," _ "," _ "," _ "," _ ",3200,"Road transport",3205,"Roads","CE",2080,"Internally generated funds","C","IA",240," Property, plant and equipment",240,"Property, plant and equipment"," _ "," _ "," _ "," _ "," _ "," _ "," _ "," _ ",110,"Roads Infrastructure",110,"Roads Infrastructure",241,"PPE at cost/valuation (excl. finance leases)",241,"PPE at cost/valuation (excl. finance leases)","",null,null,120,"Roads",120,"Roads"," _ "," _ "," _ "," _ "," _ "," _ "," _ "," _ ","_"," _ "," _ "," _ "," _ ","_"," _ "," _ "," _ "," _ ",null,9,91,"Roads","Roads",null,null,"_","_","_",null,"_",0,0,0,0,0,0,0,0,0,0,0,0,0,0,0,0,0,0,0,{"$f":"INDEX([9]Sheet1!$H:$H,MATCH(CR:CR,[9]Sheet1!$AU:$AU,0))","v":{"$error":"#N/A"}}]
["C0040-6/IA01952/F0791/X116/R2869/001/Tech",5330,"C0040-6/IA01952/F0791/X116/R2869/001/Tech",32186,"Assets:Non-current Assets:Construction Work-in-progress:Acquisitions:Outsourced"," _"," _"," _ "," _ "," _ "," _ ",3200,"Road transport",3205,"Roads","CE",2010,"National Government","C","IA",240," Property, plant and equipment",240,"Property, plant and equipment"," _ "," _ "," _ "," _ "," _ "," _ "," _ "," _ "," _ "," _ "," _ "," _ ",241,"PPE at cost/valuation (excl. finance leases)",241,"PPE at cost/valuation (excl. finance leases)","",null,null,120,"Roads",120,"Roads"," _ "," _ "," _ "," _ "," _ "," _ "," _ "," _ ","_"," _ "," _ "," _ "," _ ","_"," _ "," _ "," _ "," _ ",null,9,91,"Roads","Roads",null,null,"_","_","_",110,"_",188969,0,0,0,188969,5225000,5460125,0,0,0,0,0,0,0,0,0,0,0,0,{"$f":"INDEX([9]Sheet1!$H:$H,MATCH(CR:CR,[9]Sheet1!$AU:$AU,0))","v":{"$error":"#N/A"}}]
["C0040-8/IA00122/F0002/X047/R0073/001/Tech",5333,"C0040-8/IA00122/F0002/X047/R0073/001/Tech",52327,"Assets:Non-current Assets:Property, Plant and Equipment:Cost Model:Roads Infrastructure:Accumulated Depreciation:Depreciation"," _"," _"," _ "," _ "," _ "," _ ",1200,"Finance and administration",1202,"Asset Management","_",2080,"Internally generated funds","C","IA",240," Property, plant and equipment",240,"Property, plant and equipment"," _ "," _ "," _ "," _ "," _ "," _ "," _ "," _ ",110,"Roads Infrastructure",110,"Roads Infrastructure",243,"Less: Accumulated depreciation",243,"Less: Accumulated depreciation","",null,null,120,"Roads",120,"Roads"," _ "," _ "," _ "," _ "," _ "," _ "," _ "," _ ","_"," _ "," _ "," _ "," _ ","_"," _ "," _ "," _ "," _ ",null,1,110,"Finance and Admin","Asset Management",null,null,"_","_","_",null,"_",0,0,0,0,0,0,0,0,0,0,0,0,0,0,0,0,0,0,0,{"$f":"INDEX([9]Sheet1!$H:$H,MATCH(CR:CR,[9]Sheet1!$AU:$AU,0))","v":{"$error":"#N/A"}}]
["C0040-8/IA00132/F0002/X060/R0073/001/Tech",2849,"C0040-8/IA00132/F0002/X060/R0073/001/Tech",52564,"Assets:Non-current Assets:Property, Plant and Equipment:Cost Model:Roads Infrastructure:Cost:Acquisitions"," _"," _"," _ "," _ "," _ "," _ ",1200,"Finance and administration",1202,"Asset Management","CE",2080,"Internally generated funds","C","IA",240," Property, plant and equipment",240,"Property, plant and equipment"," _ "," _ "," _ "," _ "," _ "," _ "," _ "," _ ",110,"Roads Infrastructure",110,"Roads Infrastructure",241,"PPE at cost/valuation (excl. finance leases)",241,"PPE at cost/valuation (excl. finance leases)","",null,null,120,"Roads",120,"Roads"," _ "," _ "," _ "," _ "," _ "," _ "," _ "," _ ","_"," _ "," _ "," _ "," _ ","_"," _ "," _ "," _ "," _ ",null,1,110,"Finance and Admin","Asset Management",null,null,"_","_","_",null,"_",0,0,0,0,0,0,0,0,0,0,0,0,0,0,0,0,0,0,0,{"$f":"INDEX([9]Sheet1!$H:$H,MATCH(CR:CR,[9]Sheet1!$AU:$AU,0))","v":{"$error":"#N/A"}}]
["C0040-45/IA09786/F0791/X116/R0073/001/FIN",18688,"C0040-45/IA09786/F0791/X116/R0073/001/FIN",85588,"Assets:Current Assets:Cash and Cash Equivalents:Cash at Bank:Bank Account:Specify (replace with account description):Withdrawals"," _"," _"," _ "," _ "," _ "," _ ",3200,"Road transport",3205,"Roads","_",2010,"National Government","C","IA",120,"Cash",120,"Cash","0160W","Government - capital","0160W","Government - capital",310,"Other Cash Flows/Payments by Type / Capital assets",510,"Capital assets"," _ "," _ "," _ "," _ "," _ "," _ "," _ "," _ ","0290","Transfers and subsidies - capital (monetary allocations) (Nat / Prov Departm Agencies, Households, Non-profit Institutions, Private Enterprises, Public Corporatons, Higher Educ Institutions)","W",120,"Roads",120,"Roads"," _ "," _ "," _ "," _ "," _ "," _ "," _ "," _ ","_"," _ "," _ "," _ "," _ ","_"," _ "," _ "," _ "," _ ",null,9,91,"Roads","Roads",null,null,"_","_","_",null,"_",-35297948,0,0,-782961,-36080909,-39523000,-41722000,0,0,0,0,0,0,0,0,0,0,0,0,{"$f":"INDEX([9]Sheet1!$H:$H,MATCH(CR:CR,[9]Sheet1!$AU:$AU,0))","v":{"$error":"#N/A"}}]
["C0040-49/IA00132/F0002/X116/R2854/001/FIN",null,"C0040-49/IA00132/F0002/X116/R2854/001/FIN",85261,"Assets:Non-current Assets:Property, Plant and Equipment:Cost Model:Roads Infrastructure:Cost:Acquisitions"," _"," _"," _ "," _ "," _ "," _ ",3200,"Road transport",3205,"Roads","CE",2080,"Internally generated funds","C","IA",240," Property, plant and equipment",240,"Property, plant and equipment"," _ "," _ "," _ "," _ "," _ "," _ "," _ "," _ ",110,"Roads Infrastructure",110,"Roads Infrastructure",241,"PPE at cost/valuation (excl. finance leases)",241,"PPE at cost/valuation (excl. finance leases)","",null,null,120,"Roads",120,"Roads"," _ "," _ "," _ "," _ "," _ "," _ "," _ "," _ ","_"," _ "," _ "," _ "," _ ","_"," _ "," _ "," _ "," _ ",null,9,91,"Roads","Roads",null,null,"_","_","_",null,"_",0,0,0,0,0,0,0,0,0,0,0,0,0,0,0,0,0,0,0,{"$f":"INDEX([9]Sheet1!$H:$H,MATCH(CR:CR,[9]Sheet1!$AU:$AU,0))","v":{"$error":"#N/A"}}]
["C0040-54/IA00132/F0002/X116/R2856/001/FIN",null,"C0040-54/IA00132/F0002/X116/R2856/001/FIN",85294,"Assets:Non-current Assets:Property, Plant and Equipment:Cost Model:Roads Infrastructure:Cost:Acquisitions"," _"," _"," _ "," _ "," _ "," _ ",3200,"Road transport",3205,"Roads","CE",2080,"Internally generated funds","C","IA",240," Property, plant and equipment",240,"Property, plant and equipment"," _ "," _ "," _ "," _ "," _ "," _ "," _ "," _ ",110,"Roads Infrastructure",110,"Roads Infrastructure",241,"PPE at cost/valuation (excl. finance leases)",241,"PPE at cost/valuation (excl. finance leases)","",null,null,120,"Roads",120,"Roads"," _ "," _ "," _ "," _ "," _ "," _ "," _ "," _ ","_"," _ "," _ "," _ "," _ ","_"," _ "," _ "," _ "," _ ",null,9,91,"Roads","Roads",null,null,"_","_","_",null,"_",0,0,0,0,0,0,0,0,0,0,0,0,0,0,0,0,0,0,0,{"$f":"INDEX([9]Sheet1!$H:$H,MATCH(CR:CR,[9]Sheet1!$AU:$AU,0))","v":{"$error":"#N/A"}}]
["C0040-55/IA00132/F0002/X116/R2855/001/FIN",null,"C0040-55/IA00132/F0002/X116/R2855/001/FIN",85302,"Assets:Non-current Assets:Property, Plant and Equipment:Cost Model:Roads Infrastructure:Cost:Acquisitions"," _"," _"," _ "," _ "," _ "," _ ",3200,"Road transport",3205,"Roads","CE",2080,"Internally generated funds","C","IA",240," Property, plant and equipment",240,"Property, plant and equipment"," _ "," _ "," _ "," _ "," _ "," _ "," _ "," _ ",110,"Roads Infrastructure",110,"Roads Infrastructure",241,"PPE at cost/valuation (excl. finance leases)",241,"PPE at cost/valuation (excl. finance leases)","",null,null,120,"Roads",120,"Roads"," _ "," _ "," _ "," _ "," _ "," _ "," _ "," _ ","_"," _ "," _ "," _ "," _ ","_"," _ "," _ "," _ "," _ ",null,9,91,"Roads","Roads",null,null,"_","_","_",null,"_",0,0,0,0,0,0,0,0,0,0,0,0,0,0,0,0,0,0,0,{"$f":"INDEX([9]Sheet1!$H:$H,MATCH(CR:CR,[9]Sheet1!$AU:$AU,0))","v":{"$error":"#N/A"}}]
["C0040-7/IA01952/F0791/X116/R2865/001/TECH",5331,"C0040-7/IA01952/F0791/X116/R2865/001/TECH",32188,"Assets:Non-current Assets:Construction Work-in-progress:Acquisitions:Outsourced"," _"," _"," _ "," _ "," _ "," _ ",3200,"Road transport",3205,"Roads","CE",2010,"National Government","C","IA",240," Property, plant and equipment",240,"Property, plant and equipment"," _ "," _ "," _ "," _ "," _ "," _ "," _ "," _ "," _ "," _ "," _ "," _ ",241,"PPE at cost/valuation (excl. finance leases)",241,"PPE at cost/valuation (excl. finance leases)","",null,null,120,"Roads",120,"Roads"," _ "," _ "," _ "," _ "," _ "," _ "," _ "," _ ","_"," _ "," _ "," _ "," _ ","_"," _ "," _ "," _ "," _ ",null,9,91,"Roads","Roads",null,null,"_","_","_",110,"_",0,0,0,0,0,0,0,0,0,0,0,0,0,0,0,0,0,0,0,{"$f":"INDEX([9]Sheet1!$H:$H,MATCH(CR:CR,[9]Sheet1!$AU:$AU,0))","v":{"$error":"#N/A"}}]
["C0007-1/IA01367/F0002/X060/R0072/001/FIN",2859,"C0007-1/IA01367/F0002/X060/R0072/001/FIN",52574,"Assets:Non-current Assets:Property, Plant and Equipment:Cost Model:Transport Assets:Owned and In-use:Cost:Acquisitions"," _"," _"," _ "," _ "," _ "," _ ",1200,"Finance and administration",1202,"Asset Management","CE",2080,"Internally generated funds","C","IA",240," Property, plant and equipment",240,"Property, plant and equipment"," _ "," _ "," _ "," _ "," _ "," _ "," _ "," _ ",1530,"Transport Assets",1530,"Transport Assets",241,"PPE at cost/valuation (excl. finance leases)",241,"PPE at cost/valuation (excl. finance leases)","",null,null,1530,"Transport Assets",1530,"Transport Assets"," _ "," _ "," _ "," _ "," _ "," _ "," _ "," _ ","_"," _ "," _ "," _ "," _ ","_"," _ "," _ "," _ "," _ ",null,1,110,"Finance and Admin","Asset Management",null,null,"_","_","_",null,"_",0,0,0,0,0,0,0,0,0,0,0,0,0,0,0,0,0,0,0,{"$f":"INDEX([9]Sheet1!$H:$H,MATCH(CR:CR,[9]Sheet1!$AU:$AU,0))","v":{"$error":"#N/A"}}]
["C0007-1/IA05922/F0002/X060/R0072/001/FIN",2869,"C0007-1/IA05922/F0002/X060/R0072/001/FIN",52584,"Assets:Non-current Assets:Property, Plant and Equipment:Leased Assets:Transport Assets:In-use:Cost:Acquisitions"," _"," _"," _ "," _ "," _ "," _ ",1200,"Finance and administration",1202,"Asset Management","CE",2080,"Internally generated funds","C","IA",240," Property, plant and equipment",240,"Property, plant and equipment"," _ "," _ "," _ "," _ "," _ "," _ "," _ "," _ ",1530,"Transport Assets",1530,"Transport Assets",242,"Leases recognised as PPE",242,"Leases recognised as PPE","",null,null,1530,"Transport Assets",1530,"Transport Assets"," _ "," _ "," _ "," _ "," _ "," _ "," _ "," _ ","_"," _ "," _ "," _ "," _ ","_"," _ "," _ "," _ "," _ ",null,1,110,"Finance and Admin","Asset Management",null,null,"_","_","_",null,"_",0,0,0,0,0,0,0,0,0,0,0,0,0,0,0,0,0,0,0,{"$f":"INDEX([9]Sheet1!$H:$H,MATCH(CR:CR,[9]Sheet1!$AU:$AU,0))","v":{"$error":"#N/A"}}]
["C0007-5/IA01367/F0002/X050/R0073/001/FIN",null,"C0007-5/IA01367/F0002/X050/R0073/001/FIN",85084,"Assets:Non-current Assets:Property, Plant and Equipment:Cost Model:Transport Assets:Owned and In-use:Cost:Acquisitions"," _"," _"," _ "," _ "," _ "," _ ",1200,"Finance and administration",1205,"Fleet Management","CE",2080,"Internally generated funds","C","IA",240," Property, plant and equipment",240,"Property, plant and equipment"," _ "," _ "," _ "," _ "," _ "," _ "," _ "," _ ",1530,"Transport Assets",1530,"Transport Assets",241,"PPE at cost/valuation (excl. finance leases)",241,"PPE at cost/valuation (excl. finance leases)","",null,null,1530,"Transport Assets",1530,"Transport Assets"," _ "," _ "," _ "," _ "," _ "," _ "," _ "," _ ","_"," _ "," _ "," _ "," _ ","_"," _ "," _ "," _ "," _ ",null,1,13,"Finance and Admin","Fleet Management",null,null,"_","_","_",null,"_",0,0,0,0,0,0,0,0,0,0,0,0,0,0,0,0,0,0,0,{"$f":"INDEX([9]Sheet1!$H:$H,MATCH(CR:CR,[9]Sheet1!$AU:$AU,0))","v":{"$error":"#N/A"}}]
["C0007-6/IA01367/F0002/X153/R0073/001/FIN",null,"C0007-6/IA01367/F0002/X153/R0073/001/FIN",85079,"Assets:Non-current Assets:Property, Plant and Equipment:Cost Model:Transport Assets:Owned and In-use:Cost:Acquisitions"," _"," _"," _ "," _ "," _ "," _ ",2300,"Public safety",2307,"Police Forces, Traffic and Street Parking Control","CE",2080,"Internally generated funds","C","IA",240," Property, plant and equipment",240,"Property, plant and equipment"," _ "," _ "," _ "," _ "," _ "," _ "," _ "," _ ",1530,"Transport Assets",1530,"Transport Assets",241,"PPE at cost/valuation (excl. finance leases)",241,"PPE at cost/valuation (excl. finance leases)","",null,null,1530,"Transport Assets",1530,"Transport Assets"," _ "," _ "," _ "," _ "," _ "," _ "," _ "," _ ","_"," _ "," _ "," _ "," _ ","_"," _ "," _ "," _ "," _ ",null,8,81,"Public Safety","Police Forces, Traffic and Street Parking Control",null,null,"_","_","_",null,"_",0,0,0,0,0,0,0,0,0,0,0,0,0,0,0,0,0,0,0,{"$f":"INDEX([9]Sheet1!$H:$H,MATCH(CR:CR,[9]Sheet1!$AU:$AU,0))","v":{"$error":"#N/A"}}]
["C0019-15/IA07278/F0002/X049/R0073/001/FIN",4954,"C0019-15/IA07278/F0002/X049/R0073/001/FIN",53122,"Assets:Non-current Assets:Property, Plant and Equipment:Cost Model:Electrical Infrastructure:In-use:LV Networks:Accumulated Impairment:Impairment"," _"," _"," _ "," _ "," _ "," _ ",1200,"Finance and administration",1204,"Finance","_",2080,"Internally generated funds","C","IA","_","_","_","_"," _ "," _ "," _ "," _ "," _ "," _ "," _ "," _ ",200,"Electrical Infrastructure",200,"Electrical Infrastructure",241,"PPE at cost/valuation (excl. finance leases)",241,"PPE at cost/valuation (excl. finance leases)","",null,null,280,"LV Networks",280,"LV Networks"," _ "," _ "," _ "," _ "," _ "," _ "," _ "," _ ","_"," _ "," _ "," _ "," _ ","_"," _ "," _ "," _ "," _ ",null,1,12,"Finance and Admin","Finance",null,null,"_","_","_",null,"_",0,0,0,0,0,0,0,0,0,0,0,0,0,0,0,0,0,0,0,{"$f":"INDEX([9]Sheet1!$H:$H,MATCH(CR:CR,[9]Sheet1!$AU:$AU,0))","v":{"$error":"#N/A"}}]
["C0040-8/IA01952/F0002/X060/R0073/001/Tech",2870,"C0040-8/IA01952/F0002/X060/R0073/001/Tech",52585,"Assets:Non-current Assets:Construction Work-in-progress:Acquisitions:Outsourced"," _"," _"," _ "," _ "," _ "," _ ",1200,"Finance and administration",1202,"Asset Management","CE",2080,"Internally generated funds","C","IA",240," Property, plant and equipment",240,"Property, plant and equipment"," _ "," _ "," _ "," _ "," _ "," _ "," _ "," _ "," _ "," _ "," _ "," _ ",241,"PPE at cost/valuation (excl. finance leases)",241,"PPE at cost/valuation (excl. finance leases)","",null,null,120,"Roads",120,"Roads"," _ "," _ "," _ "," _ "," _ "," _ "," _ "," _ ","_"," _ "," _ "," _ "," _ ","_"," _ "," _ "," _ "," _ ",null,1,110,"Finance and Admin","Asset Management",null,null,"_","_","_",110,"_",0,0,0,0,0,0,0,0,0,0,0,0,0,0,0,0,0,0,0,{"$f":"INDEX([9]Sheet1!$H:$H,MATCH(CR:CR,[9]Sheet1!$AU:$AU,0))","v":{"$error":"#N/A"}}]
["C0057-1/IA07278/F0002/X049/R0073/001/FIN",4955,"C0057-1/IA07278/F0002/X049/R0073/001/FIN",53123,"Assets:Non-current Assets:Property, Plant and Equipment:Cost Model:Electrical Infrastructure:In-use:LV Networks:Accumulated Impairment:Impairment"," _"," _"," _ "," _ "," _ "," _ ",1200,"Finance and administration",1204,"Finance","_",2080,"Internally generated funds","C","IA","_","_","_","_"," _ "," _ "," _ "," _ "," _ "," _ "," _ "," _ ",200,"Electrical Infrastructure",200,"Electrical Infrastructure",241,"PPE at cost/valuation (excl. finance leases)",241,"PPE at cost/valuation (excl. finance leases)","",null,null,320,"Boreholes",320,"Boreholes"," _ "," _ "," _ "," _ "," _ "," _ "," _ "," _ ","_"," _ "," _ "," _ "," _ ","_"," _ "," _ "," _ "," _ ",null,1,12,"Finance and Admin","Finance",null,null,"_","_","_",null,"_",0,0,0,0,0,0,0,0,0,0,0,0,0,0,0,0,0,0,0,{"$f":"INDEX([9]Sheet1!$H:$H,MATCH(CR:CR,[9]Sheet1!$AU:$AU,0))","v":{"$error":"#N/A"}}]
["C0068-1/IA00162/F0002/X049/R2853/001/COMM",4900,"C0068-1/IA00162/F0002/X049/R2853/001/COMM",53050,"Assets:Non-current Assets:Property, Plant and Equipment:Cost Model:Solid Waste Infrastructure:Accumulated Depreciation:Depreciation"," _"," _"," _ "," _ "," _ "," _ ",1200,"Finance and administration",1204,"Finance","_",2080,"Internally generated funds","C","IA",240," Property, plant and equipment",240,"Property, plant and equipment"," _ "," _ "," _ "," _ "," _ "," _ "," _ "," _ ",480,"Solid Waste Infrastructure",480,"Solid Waste Infrastructure",243,"Less: Accumulated depreciation",243,"Less: Accumulated depreciation","",null,null," _ "," _ "," _ "," _ ",1470,"Computer Equipment",1470,"Computer Equipment"," _ "," _ "," _ "," _ ","_"," _ "," _ "," _ "," _ ","_"," _ "," _ "," _ "," _ ",null,1,12,"Finance and Admin","Finance",null,null,"_","_","_",null,"_",0,0,0,0,0,0,0,0,0,0,0,0,0,0,0,0,0,0,0,{"$f":"INDEX([9]Sheet1!$H:$H,MATCH(CR:CR,[9]Sheet1!$AU:$AU,0))","v":{"$error":"#N/A"}}]
["C0068-3/IA06193/F0002/X046/R0072/001/CORP",15629,"C0068-3/IA06193/F0002/X046/R0072/001/CORP",63400,"Assets:Non-current Assets:Property, Plant and Equipment:Cost Model:Computer Equipment:In-use:Cost:Acquisitions"," _"," _"," _ "," _ "," _ "," _ ",1200,"Finance and administration",1201,"Administrative and Corporate Support","CE",2080,"Internally generated funds","C","IA",240," Property, plant and equipment",240,"Property, plant and equipment"," _ "," _ "," _ "," _ "," _ "," _ "," _ "," _ ",1470,"Computer Equipment",1470,"Computer Equipment",241,"PPE at cost/valuation (excl. finance leases)",241,"PPE at cost/valuation (excl. finance leases)","",null,null," _ "," _ "," _ "," _ ",1470,"Computer Equipment",1470,"Computer Equipment"," _ "," _ "," _ "," _ ","_"," _ "," _ "," _ "," _ ","_"," _ "," _ "," _ "," _ ",null,1,17,"Finance and Admin","Administrative and Corporate Support",null,null,"_","_","_",null,"_",0,0,0,0,0,0,0,0,0,0,0,0,0,0,0,0,0,0,0,{"$f":"INDEX([9]Sheet1!$H:$H,MATCH(CR:CR,[9]Sheet1!$AU:$AU,0))","v":{"$error":"#N/A"}}]
["C0068-6/IA06198/F0002/X046/R0072/001/CORP",15632,"C0068-6/IA06198/F0002/X046/R0072/001/CORP",63402,"Assets:Non-current Assets:Property, Plant and Equipment:Cost Model:Computer Equipment:In-use:Cost:Disposals"," _"," _"," _ "," _ "," _ "," _ ",1200,"Finance and administration",1201,"Administrative and Corporate Support","_",2080,"Internally generated funds","C","IA",240," Property, plant and equipment",240,"Property, plant and equipment"," _ "," _ "," _ "," _ "," _ "," _ "," _ "," _ ",1470,"Computer Equipment",1470,"Computer Equipment",241,"PPE at cost/valuation (excl. finance leases)",241,"PPE at cost/valuation (excl. finance leases)","",null,null," _ "," _ "," _ "," _ ",1470,"Computer Equipment",1470,"Computer Equipment"," _ "," _ "," _ "," _ ","_"," _ "," _ "," _ "," _ ","_"," _ "," _ "," _ "," _ ",null,1,17,"Finance and Admin","Administrative and Corporate Support",null,null,"_","_","_",null,"_",0,0,0,0,0,0,0,0,0,0,0,0,0,0,0,0,0,0,0,{"$f":"INDEX([9]Sheet1!$H:$H,MATCH(CR:CR,[9]Sheet1!$AU:$AU,0))","v":{"$error":"#N/A"}}]
["C0040-9/IA07278/F0002/X049/R0073/001/FIN",4953,"C0040-9/IA07278/F0002/X049/R0073/001/FIN",53121,"Assets:Non-current Assets:Property, Plant and Equipment:Cost Model:Electrical Infrastructure:In-use:LV Networks:Accumulated Impairment:Impairment"," _"," _"," _ "," _ "," _ "," _ ",1200,"Finance and administration",1204,"Finance","_",2080,"Internally generated funds","C","IA","_","_","_","_"," _ "," _ "," _ "," _ "," _ "," _ "," _ "," _ ",200,"Electrical Infrastructure",200,"Electrical Infrastructure",241,"PPE at cost/valuation (excl. finance leases)",241,"PPE at cost/valuation (excl. finance leases)","",null,null,120,"Roads",120,"Roads"," _ "," _ "," _ "," _ "," _ "," _ "," _ "," _ ","_"," _ "," _ "," _ "," _ ","_"," _ "," _ "," _ "," _ ",null,1,12,"Finance and Admin","Finance",null,null,"_","_","_",null,"_",0,0,0,0,0,0,0,0,0,0,0,0,0,0,0,0,0,0,0,{"$f":"INDEX([9]Sheet1!$H:$H,MATCH(CR:CR,[9]Sheet1!$AU:$AU,0))","v":{"$error":"#N/A"}}]
["C0049-3/IA01952/F0002/X131/R2868/001/Tech",18048,"C0049-3/IA01952/F0002/X131/R2868/001/Tech",84948,"Assets:Non-current Assets:Construction Work-in-progress:Acquisitions:Outsourced"," _"," _"," _ "," _ "," _ "," _ ",4400,"Waste management",4402,"Solid Waste Disposal (Landfill Sites)","CE",2080,"Internally generated funds","C","IA",240," Property, plant and equipment",240,"Property, plant and equipment"," _ "," _ "," _ "," _ "," _ "," _ "," _ "," _ "," _ "," _ "," _ "," _ ",241,"PPE at cost/valuation (excl. finance leases)",241,"PPE at cost/valuation (excl. finance leases)","",null,null,490,"Landfill Sites",490,"Landfill Sites"," _ "," _ "," _ "," _ "," _ "," _ "," _ "," _ ","_"," _ "," _ "," _ "," _ ","_"," _ "," _ "," _ "," _ ",null,5,53,"Waste Management","Solid Waste Disposal (Landfill Sites)",null,null,"_","_","_",480,"_",0,0,0,0,0,0,0,0,0,0,0,0,0,0,0,0,0,0,0,{"$f":"INDEX([9]Sheet1!$H:$H,MATCH(CR:CR,[9]Sheet1!$AU:$AU,0))","v":{"$error":"#N/A"}}]
["C0049-6/IA00172/F0002/X131/R2867/001/FIN",null,"C0049-6/IA00172/F0002/X131/R2867/001/FIN",85504,"Assets:Non-current Assets:Property, Plant and Equipment:Cost Model:Solid Waste Infrastructure:Cost:Acquisitions"," _"," _"," _ "," _ "," _ "," _ ",4400,"Waste management",4402,"Solid Waste Disposal (Landfill Sites)","CE",2080,"Internally generated funds","C","IA",240," Property, plant and equipment",240,"Property, plant and equipment"," _ "," _ "," _ "," _ "," _ "," _ "," _ "," _ ",480,"Solid Waste Infrastructure",480,"Solid Waste Infrastructure",241,"PPE at cost/valuation (excl. finance leases)",241,"PPE at cost/valuation (excl. finance leases)","",null,null,490,"Landfill Sites",490,"Landfill Sites"," _ "," _ "," _ "," _ "," _ "," _ "," _ "," _ ","_"," _ "," _ "," _ "," _ ","_"," _ "," _ "," _ "," _ ",null,5,53,"Waste Management","Solid Waste Disposal (Landfill Sites)",null,null,"_","_","_",null,"_",0,0,0,0,0,0,0,0,0,0,0,0,0,0,0,0,0,0,0,{"$f":"INDEX([9]Sheet1!$H:$H,MATCH(CR:CR,[9]Sheet1!$AU:$AU,0))","v":{"$error":"#N/A"}}]
["C0068-11/IA06193/F0002/X024/R2865/001/FIN",null,"C0068-11/IA06193/F0002/X024/R2865/001/FIN",85134,"Assets:Non-current Assets:Property, Plant and Equipment:Cost Model:Computer Equipment:In-use:Cost:Acquisitions"," _"," _"," _ "," _ "," _ "," _ ",2100,"Community and social services",2114,"Libraries and Archives","CE",2080,"Internally generated funds","C","IA",240," Property, plant and equipment",240,"Property, plant and equipment"," _ "," _ "," _ "," _ "," _ "," _ "," _ "," _ ",1470,"Computer Equipment",1470,"Computer Equipment",241,"PPE at cost/valuation (excl. finance leases)",241,"PPE at cost/valuation (excl. finance leases)","",null,null," _ "," _ "," _ "," _ ",1470,"Computer Equipment",1470,"Computer Equipment"," _ "," _ "," _ "," _ ","_"," _ "," _ "," _ "," _ ","_"," _ "," _ "," _ "," _ ",null,3,33,"Community and social services","Libraries and Archives",null,null,"_","_","_",null,"_",0,0,0,0,0,0,0,0,0,0,0,0,0,0,0,0,0,0,0,{"$f":"INDEX([9]Sheet1!$H:$H,MATCH(CR:CR,[9]Sheet1!$AU:$AU,0))","v":{"$error":"#N/A"}}]
["C0068-13/IA06193/F0002/X024/R2867/001/FIN",null,"C0068-13/IA06193/F0002/X024/R2867/001/FIN",85139,"Assets:Non-current Assets:Property, Plant and Equipment:Cost Model:Computer Equipment:In-use:Cost:Acquisitions"," _"," _"," _ "," _ "," _ "," _ ",2100,"Community and social services",2114,"Libraries and Archives","CE",2080,"Internally generated funds","C","IA",240," Property, plant and equipment",240,"Property, plant and equipment"," _ "," _ "," _ "," _ "," _ "," _ "," _ "," _ ",1470,"Computer Equipment",1470,"Computer Equipment",241,"PPE at cost/valuation (excl. finance leases)",241,"PPE at cost/valuation (excl. finance leases)","",null,null," _ "," _ "," _ "," _ ",1470,"Computer Equipment",1470,"Computer Equipment"," _ "," _ "," _ "," _ ","_"," _ "," _ "," _ "," _ ","_"," _ "," _ "," _ "," _ ",null,3,33,"Community and social services","Libraries and Archives",null,null,"_","_","_",null,"_",0,0,0,0,0,0,0,0,0,0,0,0,0,0,0,0,0,0,0,{"$f":"INDEX([9]Sheet1!$H:$H,MATCH(CR:CR,[9]Sheet1!$AU:$AU,0))","v":{"$error":"#N/A"}}]
["C0019-22/IA01952/F0786/X035/R2859/001/Tech",15760,"C0019-22/IA01952/F0786/X035/R2859/001/Tech",63672,"Assets:Non-current Assets:Construction Work-in-progress:Acquisitions:Outsourced"," _"," _"," _ "," _ "," _ "," _ ",4100,"Energy sources",4101,"Electricity ","CE",2010,"National Government","C","IA",240," Property, plant and equipment",240,"Property, plant and equipment"," _ "," _ "," _ "," _ "," _ "," _ "," _ "," _ "," _ "," _ "," _ "," _ ",241,"PPE at cost/valuation (excl. finance leases)",241,"PPE at cost/valuation (excl. finance leases)","",null,null,280,"LV Networks",280,"LV Networks"," _ "," _ "," _ "," _ "," _ "," _ "," _ "," _ ","_"," _ "," _ "," _ "," _ ","_"," _ "," _ "," _ "," _ ",null,6,61,"Energy Sources","Electricity",null,null,"_","_","_",200,"_",0,0,0,0,0,0,0,0,0,0,0,0,0,0,0,0,0,0,0,{"$f":"INDEX([9]Sheet1!$H:$H,MATCH(CR:CR,[9]Sheet1!$AU:$AU,0))","v":{"$error":"#N/A"}}]
["C0019-28/IA01952/F0786/X101/R2861/001/Tech",15775,"C0019-28/IA01952/F0786/X101/R2861/001/Tech",73672,"Assets:Non-current Assets:Construction Work-in-progress:Acquisitions:Outsourced"," _"," _"," _ "," _ "," _ "," _ ",3100,"Planning and development",3107,"Town Planning, Building Regulations and Enforcement, and City Engineer","CE",2010,"National Government","C","IA",240," Property, plant and equipment",240,"Property, plant and equipment"," _ "," _ "," _ "," _ "," _ "," _ "," _ "," _ "," _ "," _ "," _ "," _ ",241,"PPE at cost/valuation (excl. finance leases)",241,"PPE at cost/valuation (excl. finance leases)","",null,null,280,"LV Networks",280,"LV Networks"," _ "," _ "," _ "," _ "," _ "," _ "," _ "," _ ","_"," _ "," _ "," _ "," _ ","_"," _ "," _ "," _ "," _ ",null,7,72,"Planning and Development","Town Planning, Building Regulations and Enforcement, and City Engineer",null,null,"_","_","_",200,"_",0,0,0,0,0,0,0,0,0,0,0,0,0,0,0,0,0,0,0,{"$f":"INDEX([9]Sheet1!$H:$H,MATCH(CR:CR,[9]Sheet1!$AU:$AU,0))","v":{"$error":"#N/A"}}]
["C0019-29/IA00132/F09788/X101/R0072/001/Tech",4975,"C0019-29/IA00132/F09788/X101/R0072/001/Tech",53128,"Assets:Non-current Assets:Property, Plant and Equipment:Cost Model:Roads Infrastructure:Cost:Acquisitions"," _"," _"," _ "," _ "," _ "," _ ",3100,"Planning and development",3107,"Town Planning, Building Regulations and Enforcement, and City Engineer","CE",2020,"Provincial Government","C","IA",240," Property, plant and equipment",240,"Property, plant and equipment"," _ "," _ "," _ "," _ "," _ "," _ "," _ "," _ ",110,"Roads Infrastructure",110,"Roads Infrastructure",241,"PPE at cost/valuation (excl. finance leases)",241,"PPE at cost/valuation (excl. finance leases)","",null,null,280,"LV Networks",280,"LV Networks"," _ "," _ "," _ "," _ "," _ "," _ "," _ "," _ ","_"," _ "," _ "," _ "," _ ","_"," _ "," _ "," _ "," _ ",null,7,72,"Planning and Development","Town Planning, Building Regulations and Enforcement, and City Engineer",null,null,"_","_","_",null,"_",0,0,0,0,0,0,0,0,0,0,0,0,0,0,0,0,0,0,0,{"$f":"INDEX([9]Sheet1!$H:$H,MATCH(CR:CR,[9]Sheet1!$AU:$AU,0))","v":{"$error":"#N/A"}}]
["C0019-29/IA06305/F0002/X035/R2859/001/Tech",5323,"C0019-29/IA06305/F0002/X035/R2859/001/Tech",31223,"Assets:Non-current Assets:Property, Plant and Equipment:Cost Model:Machinery and Equipment:In-use:Accumulated Depreciation:Opening Balance"," _"," _"," _ "," _ "," _ "," _ ",4100,"Energy sources",4101,"Electricity ","_",2080,"Internally generated funds","C","IA",240," Property, plant and equipment",240,"Property, plant and equipment"," _ "," _ "," _ "," _ "," _ "," _ "," _ "," _ ",1510,"Machinery and Equipment",1510,"Machinery and Equipment",243,"Less: Accumulated depreciation",243,"Less: Accumulated depreciation","",null,null,280,"LV Networks",280,"LV Networks"," _ "," _ "," _ "," _ "," _ "," _ "," _ "," _ ","_"," _ "," _ "," _ "," _ ","_"," _ "," _ "," _ "," _ ",null,6,61,"Energy Sources","Electricity",null,null,"_","_","_",null,"_",0,0,0,0,0,0,0,0,0,0,0,0,0,0,0,0,0,0,0,{"$f":"INDEX([9]Sheet1!$H:$H,MATCH(CR:CR,[9]Sheet1!$AU:$AU,0))","v":{"$error":"#N/A"}}]
["C0019-5/IA01952/F0786/X035/R0072/001/Tech",15499,"C0019-5/IA01952/F0786/X035/R0072/001/Tech",63395,"Assets:Non-current Assets:Construction Work-in-progress:Acquisitions:Outsourced"," _"," _"," _ "," _ "," _ "," _ ",4100,"Energy sources",4101,"Electricity ","CE",2010,"National Government","C","IA",240," Property, plant and equipment",240,"Property, plant and equipment"," _ "," _ "," _ "," _ "," _ "," _ "," _ "," _ "," _ "," _ "," _ "," _ ",241,"PPE at cost/valuation (excl. finance leases)",241,"PPE at cost/valuation (excl. finance leases)","",null,null,280,"LV Networks",280,"LV Networks"," _ "," _ "," _ "," _ "," _ "," _ "," _ "," _ ","_"," _ "," _ "," _ "," _ ","_"," _ "," _ "," _ "," _ ",null,6,61,"Energy Sources","Electricity",null,null,"_","_","_",200,"_",0,0,0,0,0,0,0,0,0,0,0,0,0,0,0,0,0,0,0,{"$f":"INDEX([9]Sheet1!$H:$H,MATCH(CR:CR,[9]Sheet1!$AU:$AU,0))","v":{"$error":"#N/A"}}]
["C0071-1/IA00122/F0002/X049/R0072/001/COMM",4917,"C0071-1/IA00122/F0002/X049/R0072/001/COMM",53063,"Assets:Non-current Assets:Property, Plant and Equipment:Cost Model:Roads Infrastructure:Accumulated Depreciation:Depreciation"," _"," _"," _ "," _ "," _ "," _ ",1200,"Finance and administration",1204,"Finance","_",2080,"Internally generated funds","C","IA",240," Property, plant and equipment",240,"Property, plant and equipment"," _ "," _ "," _ "," _ "," _ "," _ "," _ "," _ ",110,"Roads Infrastructure",110,"Roads Infrastructure",243,"Less: Accumulated depreciation",243,"Less: Accumulated depreciation","",null,null," _ "," _ "," _ "," _ ",1510,"Machinery and Equipment",1510,"Machinery and Equipment"," _ "," _ "," _ "," _ ","_"," _ "," _ "," _ "," _ ","_"," _ "," _ "," _ "," _ ",null,1,12,"Finance and Admin","Finance",null,null,"_","_","_",null,"_",0,0,0,0,0,0,0,0,0,0,0,0,0,0,0,0,0,0,0,{"$f":"INDEX([9]Sheet1!$H:$H,MATCH(CR:CR,[9]Sheet1!$AU:$AU,0))","v":{"$error":"#N/A"}}]
["C0071-1/IA06183/F0002/X049/R0072/001/COMM",4915,"C0071-1/IA06183/F0002/X049/R0072/001/COMM",53074,"Assets:Non-current Assets:Property, Plant and Equipment:Cost Model:Computer Equipment:In-use:Accumulated Depreciation:Depreciation"," _"," _"," _ "," _ "," _ "," _ ",1200,"Finance and administration",1204,"Finance","_",2080,"Internally generated funds","C","IA",240," Property, plant and equipment",240,"Property, plant and equipment"," _ "," _ "," _ "," _ "," _ "," _ "," _ "," _ ",1470,"Computer Equipment",1470,"Computer Equipment",243,"Less: Accumulated depreciation",243,"Less: Accumulated depreciation","",null,null," _ "," _ "," _ "," _ ",1510,"Machinery and Equipment",1510,"Machinery and Equipment"," _ "," _ "," _ "," _ ","_"," _ "," _ "," _ "," _ ","_"," _ "," _ "," _ "," _ ",null,1,12,"Finance and Admin","Finance",null,null,"_","_","_",null,"_",0,0,0,0,0,0,0,0,0,0,0,0,0,0,0,0,0,0,0,{"$f":"INDEX([9]Sheet1!$H:$H,MATCH(CR:CR,[9]Sheet1!$AU:$AU,0))","v":{"$error":"#N/A"}}]
["C0071-1/IA06321/F0002/X101/R0073/001/COMM",18121,"C0071-1/IA06321/F0002/X101/R0073/001/COMM",85018,"Assets:Non-current Assets:Property, Plant and Equipment:Cost Model:Machinery and Equipment:In-use:Cost:Transfers Received"," _"," _"," _ "," _ "," _ "," _ ",3100,"Planning and development",3107,"Town Planning, Building Regulations and Enforcement, and City Engineer","_",2080,"Internally generated funds","C","IA",240," Property, plant and equipment",240,"Property, plant and equipment"," _ "," _ "," _ "," _ "," _ "," _ "," _ "," _ ",1510,"Machinery and Equipment",1510,"Machinery and Equipment",241,"PPE at cost/valuation (excl. finance leases)",241,"PPE at cost/valuation (excl. finance leases)","",null,null," _ "," _ "," _ "," _ ",1510,"Machinery and Equipment",1510,"Machinery and Equipment"," _ "," _ "," _ "," _ ","_"," _ "," _ "," _ "," _ ","_"," _ "," _ "," _ "," _ ",null,7,72,"Planning and Development","Town Planning, Building Regulations and Enforcement, and City Engineer",null,null,"_","_","_",null,"_",0,0,0,0,0,0,0,0,0,0,0,0,0,0,0,0,0,0,0,{"$f":"INDEX([9]Sheet1!$H:$H,MATCH(CR:CR,[9]Sheet1!$AU:$AU,0))","v":{"$error":"#N/A"}}]
["C0071-18/IA06318/F0002/X047/R0072/001/TECH",15600,"C0071-18/IA06318/F0002/X047/R0072/001/TECH",63414,"Assets:Non-current Assets:Property, Plant and Equipment:Cost Model:Machinery and Equipment:In-use:Cost:Disposals"," _"," _"," _ "," _ "," _ "," _ ",1200,"Finance and administration",1202,"Asset Management","_",2080,"Internally generated funds","C","IA",240," Property, plant and equipment",240,"Property, plant and equipment"," _ "," _ "," _ "," _ "," _ "," _ "," _ "," _ ",1510,"Machinery and Equipment",1510,"Machinery and Equipment",241,"PPE at cost/valuation (excl. finance leases)",241,"PPE at cost/valuation (excl. finance leases)","",null,null," _ "," _ "," _ "," _ ",1510,"Machinery and Equipment",1510,"Machinery and Equipment"," _ "," _ "," _ "," _ ","_"," _ "," _ "," _ "," _ ","_"," _ "," _ "," _ "," _ ",null,1,110,"Finance and Admin","Asset Management",null,null,"_","_","_",null,"_",0,0,0,0,0,0,0,0,0,0,0,0,0,0,0,0,0,0,0,{"$f":"INDEX([9]Sheet1!$H:$H,MATCH(CR:CR,[9]Sheet1!$AU:$AU,0))","v":{"$error":"#N/A"}}]
["C0071-20/IA06313/F0002/X153/R2864/001/FIN",null,"C0071-20/IA06313/F0002/X153/R2864/001/FIN",85021,"Assets:Non-current Assets:Property, Plant and Equipment:Cost Model:Machinery and Equipment:In-use:Cost:Acquisitions"," _"," _"," _ "," _ "," _ "," _ ",2300,"Public safety",2307,"Police Forces, Traffic and Street Parking Control","CE",2080,"Internally generated funds","C","IA",240," Property, plant and equipment",240,"Property, plant and equipment"," _ "," _ "," _ "," _ "," _ "," _ "," _ "," _ ",1510,"Machinery and Equipment",1510,"Machinery and Equipment",241,"PPE at cost/valuation (excl. finance leases)",241,"PPE at cost/valuation (excl. finance leases)","",null,null," _ "," _ "," _ "," _ ",1510,"Machinery and Equipment",1510,"Machinery and Equipment"," _ "," _ "," _ "," _ ","_"," _ "," _ "," _ "," _ ","_"," _ "," _ "," _ "," _ ",null,8,81,"Public Safety","Police Forces, Traffic and Street Parking Control",null,null,"_","_","_",null,"_",0,0,0,0,0,0,0,0,0,0,0,0,0,0,0,0,0,0,0,{"$f":"INDEX([9]Sheet1!$H:$H,MATCH(CR:CR,[9]Sheet1!$AU:$AU,0))","v":{"$error":"#N/A"}}]
["C0071-6/IA06321/F0002/X116/R0072/001/TRAF",15595,"C0071-6/IA06321/F0002/X116/R0072/001/TRAF",63488,"Assets:Non-current Assets:Property, Plant and Equipment:Cost Model:Machinery and Equipment:In-use:Cost:Transfers Received"," _"," _"," _ "," _ "," _ "," _ ",3200,"Road transport",3205,"Roads","_",2080,"Internally generated funds","C","IA",240," Property, plant and equipment",240,"Property, plant and equipment"," _ "," _ "," _ "," _ "," _ "," _ "," _ "," _ ",1510,"Machinery and Equipment",1510,"Machinery and Equipment",241,"PPE at cost/valuation (excl. finance leases)",241,"PPE at cost/valuation (excl. finance leases)","",null,null," _ "," _ "," _ "," _ ",1510,"Machinery and Equipment",1510,"Machinery and Equipment"," _ "," _ "," _ "," _ ","_"," _ "," _ "," _ "," _ ","_"," _ "," _ "," _ "," _ ",null,9,91,"Roads","Roads",null,null,"_","_","_",null,"_",0,0,0,0,0,0,0,0,0,0,0,0,0,0,0,0,0,0,0,{"$f":"INDEX([9]Sheet1!$H:$H,MATCH(CR:CR,[9]Sheet1!$AU:$AU,0))","v":{"$error":"#N/A"}}]
["C0071-7/IA06318/F0002/X116/R0072/001/TRAF",15596,"C0071-7/IA06318/F0002/X116/R0072/001/TRAF",63485,"Assets:Non-current Assets:Property, Plant and Equipment:Cost Model:Machinery and Equipment:In-use:Cost:Disposals"," _"," _"," _ "," _ "," _ "," _ ",3200,"Road transport",3205,"Roads","_",2080,"Internally generated funds","C","IA",240," Property, plant and equipment",240,"Property, plant and equipment"," _ "," _ "," _ "," _ "," _ "," _ "," _ "," _ ",1510,"Machinery and Equipment",1510,"Machinery and Equipment",241,"PPE at cost/valuation (excl. finance leases)",241,"PPE at cost/valuation (excl. finance leases)","",null,null," _ "," _ "," _ "," _ ",1510,"Machinery and Equipment",1510,"Machinery and Equipment"," _ "," _ "," _ "," _ ","_"," _ "," _ "," _ "," _ ","_"," _ "," _ "," _ "," _ ",null,9,91,"Roads","Roads",null,null,"_","_","_",null,"_",0,0,0,0,0,0,0,0,0,0,0,0,0,0,0,0,0,0,0,{"$f":"INDEX([9]Sheet1!$H:$H,MATCH(CR:CR,[9]Sheet1!$AU:$AU,0))","v":{"$error":"#N/A"}}]
["C0071-9/IA00032/F0002/X125/R0072/001/TECH",15504,"C0071-9/IA00032/F0002/X125/R0072/001/TECH",63560,"Assets:Non-current Assets:Property, Plant and Equipment:Cost Model:Community Assets:Cost:Acquisitions"," _"," _"," _ "," _ "," _ "," _ ",2200,"Sport and recreation",2205,"Sports Grounds and Stadiums","CE",2080,"Internally generated funds","C","IA",240," Property, plant and equipment",240,"Property, plant and equipment"," _ "," _ "," _ "," _ "," _ "," _ "," _ "," _ ",770,"Community Assets",770,"Community Assets",241,"PPE at cost/valuation (excl. finance leases)",241,"PPE at cost/valuation (excl. finance leases)","",null,null," _ "," _ "," _ "," _ ",1510,"Machinery and Equipment",1510,"Machinery and Equipment"," _ "," _ "," _ "," _ ","_"," _ "," _ "," _ "," _ ","_"," _ "," _ "," _ "," _ ",null,null,0," _ ","Sports Grounds and Stadiums",null,null,"_","_","_",null,"_",0,0,0,0,0,0,0,0,0,0,0,0,0,0,0,0,0,0,0,{"$f":"INDEX([9]Sheet1!$H:$H,MATCH(CR:CR,[9]Sheet1!$AU:$AU,0))","v":{"$error":"#N/A"}}]
["C0072-13/IA01357/F0002/X109/R0072/001/COMM",15580,"C0072-13/IA01357/F0002/X109/R0072/001/COMM",63465,"Assets:Non-current Assets:Property, Plant and Equipment:Cost Model:Transport Assets:Owned and In-use:Accumulated Depreciation:Depreciation"," _"," _"," _ "," _ "," _ "," _ ",2300,"Public safety",2305,"Fire Fighting and Protection","_",2080,"Internally generated funds","C","IA",240," Property, plant and equipment",240,"Property, plant and equipment"," _ "," _ "," _ "," _ "," _ "," _ "," _ "," _ ",1530,"Transport Assets",1530,"Transport Assets",243,"Less: Accumulated depreciation",243,"Less: Accumulated depreciation","",null,null," _ "," _ "," _ "," _ ",1530,"Transport Assets",1530,"Transport Assets"," _ "," _ "," _ "," _ ","_"," _ "," _ "," _ "," _ ","_"," _ "," _ "," _ "," _ ",null,null,0," _ ","Fire Fighting and Protection",null,null,"_","_","_",null,"_",0,0,0,0,0,0,0,0,0,0,0,0,0,0,0,0,0,0,0,{"$f":"INDEX([9]Sheet1!$H:$H,MATCH(CR:CR,[9]Sheet1!$AU:$AU,0))","v":{"$error":"#N/A"}}]
["C0072-2/IA01365/F0002/X047/R0072/001/COMM",5202,"C0072-2/IA01365/F0002/X047/R0072/001/COMM",53263,"Assets:Non-current Assets:Property, Plant and Equipment:Cost Model:Transport Assets:Owned and In-use:Accumulated Impairment:Impairment"," _"," _"," _ "," _ "," _ "," _ ",1200,"Finance and administration",1202,"Asset Management","_",2080,"Internally generated funds","C","IA","_","_","_","_"," _ "," _ "," _ "," _ "," _ "," _ "," _ "," _ ",1530,"Transport Assets",1530,"Transport Assets",241,"PPE at cost/valuation (excl. finance leases)",241,"PPE at cost/valuation (excl. finance leases)","",null,null," _ "," _ "," _ "," _ ",1530,"Transport Assets",1530,"Transport Assets"," _ "," _ "," _ "," _ ","_"," _ "," _ "," _ "," _ ","_"," _ "," _ "," _ "," _ ",null,1,110,"Finance and Admin","Asset Management",null,null,"_","_","_",null,"_",0,0,0,0,0,0,0,0,0,0,0,0,0,0,0,0,0,0,0,{"$f":"INDEX([9]Sheet1!$H:$H,MATCH(CR:CR,[9]Sheet1!$AU:$AU,0))","v":{"$error":"#N/A"}}]
["C0040-1/IA01952/F0002/X116/R2865/001/Tech",5303,"C0040-1/IA01952/F0002/X116/R2865/001/Tech",30875,"Assets:Non-current Assets:Construction Work-in-progress:Acquisitions:Outsourced"," _"," _"," _ "," _ "," _ "," _ ",3200,"Road transport",3205,"Roads","CE",2080,"Internally generated funds","C","IA",240," Property, plant and equipment",240,"Property, plant and equipment"," _ "," _ "," _ "," _ "," _ "," _ "," _ "," _ "," _ "," _ "," _ "," _ ",241,"PPE at cost/valuation (excl. finance leases)",241,"PPE at cost/valuation (excl. finance leases)","",null,null,120,"Roads",120,"Roads"," _ "," _ "," _ "," _ "," _ "," _ "," _ "," _ ","_"," _ "," _ "," _ "," _ ","_"," _ "," _ "," _ "," _ ",null,9,91,"Roads","Roads",null,null,"_","_","_",110,"_",0,0,0,0,0,0,0,0,0,0,0,0,0,0,0,0,0,0,0,{"$f":"INDEX([9]Sheet1!$H:$H,MATCH(CR:CR,[9]Sheet1!$AU:$AU,0))","v":{"$error":"#N/A"}}]
["C0040-2/IA01952/F0791/X116/R2864/001/TECH",453,"C0040-2/IA01952/F0791/X116/R2864/001/TECH",52771,"Assets:Non-current Assets:Construction Work-in-progress:Acquisitions:Outsourced"," _"," _"," _ "," _ "," _ "," _ ",3200,"Road transport",3205,"Roads","CE",2010,"National Government","C","IA",240," Property, plant and equipment",240,"Property, plant and equipment"," _ "," _ "," _ "," _ "," _ "," _ "," _ "," _ "," _ "," _ "," _ "," _ ",241,"PPE at cost/valuation (excl. finance leases)",241,"PPE at cost/valuation (excl. finance leases)","",null,null,120,"Roads",120,"Roads"," _ "," _ "," _ "," _ "," _ "," _ "," _ "," _ ","_"," _ "," _ "," _ "," _ ","_"," _ "," _ "," _ "," _ ",null,9,91,"Roads","Roads",null,null,"_","_","_",110,"_",500000,0,0,-500000,0,0,0,0,402494,0,0,0,0,0,0,0,0,0,0,{"$f":"INDEX([9]Sheet1!$H:$H,MATCH(CR:CR,[9]Sheet1!$AU:$AU,0))","v":{"$error":"#N/A"}}]
["C0040-20/IA01952/F0791/X101/R2864/001/Tech",15749,"C0040-20/IA01952/F0791/X101/R2864/001/Tech",63661,"Assets:Non-current Assets:Construction Work-in-progress:Acquisitions:Outsourced"," _"," _"," _ "," _ "," _ "," _ ",3100,"Planning and development",3107,"Town Planning, Building Regulations and Enforcement, and City Engineer","CE",2010,"National Government","C","IA",240," Property, plant and equipment",240,"Property, plant and equipment"," _ "," _ "," _ "," _ "," _ "," _ "," _ "," _ "," _ "," _ "," _ "," _ ",241,"PPE at cost/valuation (excl. finance leases)",241,"PPE at cost/valuation (excl. finance leases)","",null,null,120,"Roads",120,"Roads"," _ "," _ "," _ "," _ "," _ "," _ "," _ "," _ ","_"," _ "," _ "," _ "," _ ","_"," _ "," _ "," _ "," _ ",null,7,72,"Planning and Development","Town Planning, Building Regulations and Enforcement, and City Engineer",null,null,"_","_","_",110,"_",0,0,0,0,0,0,0,0,0,0,0,0,0,0,0,0,0,0,0,{"$f":"INDEX([9]Sheet1!$H:$H,MATCH(CR:CR,[9]Sheet1!$AU:$AU,0))","v":{"$error":"#N/A"}}]
["C0040-22/IA01952/F0791/X116/R2856/001/Tech",15752,"C0040-22/IA01952/F0791/X116/R2856/001/Tech",63664,"Assets:Non-current Assets:Construction Work-in-progress:Acquisitions:Outsourced"," _"," _"," _ "," _ "," _ "," _ ",3200,"Road transport",3205,"Roads","CE",2010,"National Government","C","IA",240," Property, plant and equipment",240,"Property, plant and equipment"," _ "," _ "," _ "," _ "," _ "," _ "," _ "," _ "," _ "," _ "," _ "," _ ",241,"PPE at cost/valuation (excl. finance leases)",241,"PPE at cost/valuation (excl. finance leases)","",null,null,120,"Roads",120,"Roads"," _ "," _ "," _ "," _ "," _ "," _ "," _ "," _ ","_"," _ "," _ "," _ "," _ ","_"," _ "," _ "," _ "," _ ",null,9,91,"Roads","Roads",null,null,"_","_","_",110,"_",877459,0,0,0,877459,0,0,0,0,0,0,0,0,0,0,0,0,0,0,{"$f":"INDEX([9]Sheet1!$H:$H,MATCH(CR:CR,[9]Sheet1!$AU:$AU,0))","v":{"$error":"#N/A"}}]
["C0040-3/IA01952/F0791/X116/R2853/001/TECH",5327,"C0040-3/IA01952/F0791/X116/R2853/001/TECH",32182,"Assets:Non-current Assets:Construction Work-in-progress:Acquisitions:Outsourced"," _"," _"," _ "," _ "," _ "," _ ",3200,"Road transport",3205,"Roads","CE",2010,"National Government","C","IA",240," Property, plant and equipment",240,"Property, plant and equipment"," _ "," _ "," _ "," _ "," _ "," _ "," _ "," _ "," _ "," _ "," _ "," _ ",241,"PPE at cost/valuation (excl. finance leases)",241,"PPE at cost/valuation (excl. finance leases)","",null,null,120,"Roads",120,"Roads"," _ "," _ "," _ "," _ "," _ "," _ "," _ "," _ ","_"," _ "," _ "," _ "," _ ","_"," _ "," _ "," _ "," _ ",null,9,91,"Roads","Roads",null,null,"_","_","_",110,"_",0,0,0,0,0,0,0,0,0,0,0,0,0,0,0,0,0,0,0,{"$f":"INDEX([9]Sheet1!$H:$H,MATCH(CR:CR,[9]Sheet1!$AU:$AU,0))","v":{"$error":"#N/A"}}]
["C0040-33/IA01952/F0791/X116/R2853/001/Tech",16789,"C0040-33/IA01952/F0791/X116/R2853/001/Tech",83686,"Assets:Non-current Assets:Construction Work-in-progress:Acquisitions:Outsourced"," _"," _"," _ "," _ "," _ "," _ ",3200,"Road transport",3205,"Roads","CE",2010,"National Government","C","IA",240," Property, plant and equipment",240,"Property, plant and equipment"," _ "," _ "," _ "," _ "," _ "," _ "," _ "," _ "," _ "," _ "," _ "," _ ",241,"PPE at cost/valuation (excl. finance leases)",241,"PPE at cost/valuation (excl. finance leases)","",null,null,120,"Roads",120,"Roads"," _ "," _ "," _ "," _ "," _ "," _ "," _ "," _ ","_"," _ "," _ "," _ "," _ ","_"," _ "," _ "," _ "," _ ",null,9,91,"Roads","Roads",null,null,"_","_","_",110,"_",0,0,0,0,0,0,0,0,0,0,0,0,0,0,0,0,0,0,0,{"$f":"INDEX([9]Sheet1!$H:$H,MATCH(CR:CR,[9]Sheet1!$AU:$AU,0))","v":{"$error":"#N/A"}}]
["C0071-4/IA06303/F0002/X116/R0072/001/COMM",15512,"C0071-4/IA06303/F0002/X116/R0072/001/COMM",63487,"Assets:Non-current Assets:Property, Plant and Equipment:Cost Model:Machinery and Equipment:In-use:Accumulated Depreciation:Depreciation"," _"," _"," _ "," _ "," _ "," _ ",3200,"Road transport",3205,"Roads","_",2080,"Internally generated funds","C","IA",240," Property, plant and equipment",240,"Property, plant and equipment"," _ "," _ "," _ "," _ "," _ "," _ "," _ "," _ ",1510,"Machinery and Equipment",1510,"Machinery and Equipment",243,"Less: Accumulated depreciation",243,"Less: Accumulated depreciation","",null,null," _ "," _ "," _ "," _ ",1510,"Machinery and Equipment",1510,"Machinery and Equipment"," _ "," _ "," _ "," _ ","_"," _ "," _ "," _ "," _ ","_"," _ "," _ "," _ "," _ ",null,9,91,"Roads","Roads",null,null,"_","_","_",null,"_",0,0,0,0,0,0,0,0,0,0,0,0,0,0,0,0,0,0,0,{"$f":"INDEX([9]Sheet1!$H:$H,MATCH(CR:CR,[9]Sheet1!$AU:$AU,0))","v":{"$error":"#N/A"}}]
["C0072-1/IA00022/F0002/X049/R0073/001/COMM",4928,"C0072-1/IA00022/F0002/X049/R0073/001/COMM",53072,"Assets:Non-current Assets:Property, Plant and Equipment:Cost Model:Community Assets:Accumulated Depreciation:Depreciation"," _"," _"," _ "," _ "," _ "," _ ",1200,"Finance and administration",1204,"Finance","_",2080,"Internally generated funds","C","IA",240," Property, plant and equipment",240,"Property, plant and equipment"," _ "," _ "," _ "," _ "," _ "," _ "," _ "," _ ",770,"Community Assets",770,"Community Assets",243,"Less: Accumulated depreciation",243,"Less: Accumulated depreciation","",null,null," _ "," _ "," _ "," _ ",1530,"Transport Assets",1530,"Transport Assets"," _ "," _ "," _ "," _ ","_"," _ "," _ "," _ "," _ ","_"," _ "," _ "," _ "," _ ",null,1,12,"Finance and Admin","Finance",null,null,"_","_","_",null,"_",0,0,0,0,0,0,0,0,0,0,0,0,0,0,0,0,0,0,0,{"$f":"INDEX([9]Sheet1!$H:$H,MATCH(CR:CR,[9]Sheet1!$AU:$AU,0))","v":{"$error":"#N/A"}}]
["C0072-1/IA06243/F0002/X049/R0073/001/COMM",4925,"C0072-1/IA06243/F0002/X049/R0073/001/COMM",53080,"Assets:Non-current Assets:Property, Plant and Equipment:Cost Model:Furniture and Office Equipment:In-use:Accumulated Depreciation:Depreciation"," _"," _"," _ "," _ "," _ "," _ ",1200,"Finance and administration",1204,"Finance","_",2080,"Internally generated funds","C","IA",240," Property, plant and equipment",240,"Property, plant and equipment"," _ "," _ "," _ "," _ "," _ "," _ "," _ "," _ ",1490,"Furniture and Office Equipment",1490,"Furniture and Office Equipment",243,"Less: Accumulated depreciation",243,"Less: Accumulated depreciation","",null,null," _ "," _ "," _ "," _ ",1530,"Transport Assets",1530,"Transport Assets"," _ "," _ "," _ "," _ ","_"," _ "," _ "," _ "," _ ","_"," _ "," _ "," _ "," _ ",null,1,12,"Finance and Admin","Finance",null,null,"_","_","_",null,"_",0,0,0,0,0,0,0,0,0,0,0,0,0,0,0,0,0,0,0,{"$f":"INDEX([9]Sheet1!$H:$H,MATCH(CR:CR,[9]Sheet1!$AU:$AU,0))","v":{"$error":"#N/A"}}]
["C0072-12/IA01365/F0002/X109/R0072/001/TRAF",15579,"C0072-12/IA01365/F0002/X109/R0072/001/TRAF",63466,"Assets:Non-current Assets:Property, Plant and Equipment:Cost Model:Transport Assets:Owned and In-use:Accumulated Impairment:Impairment"," _"," _"," _ "," _ "," _ "," _ ",2300,"Public safety",2305,"Fire Fighting and Protection","_",2080,"Internally generated funds","C","IA","_","_","_","_"," _ "," _ "," _ "," _ "," _ "," _ "," _ "," _ ",1530,"Transport Assets",1530,"Transport Assets",241,"PPE at cost/valuation (excl. finance leases)",241,"PPE at cost/valuation (excl. finance leases)","",null,null," _ "," _ "," _ "," _ ",1530,"Transport Assets",1530,"Transport Assets"," _ "," _ "," _ "," _ ","_"," _ "," _ "," _ "," _ ","_"," _ "," _ "," _ "," _ ",null,null,0," _ ","Fire Fighting and Protection",null,null,"_","_","_",null,"_",0,0,0,0,0,0,0,0,0,0,0,0,0,0,0,0,0,0,0,{"$f":"INDEX([9]Sheet1!$H:$H,MATCH(CR:CR,[9]Sheet1!$AU:$AU,0))","v":{"$error":"#N/A"}}]
["C0072-14/IA01367/F0002/X132/R0072/001/COMM",15581,"C0072-14/IA01367/F0002/X132/R0072/001/COMM",63497,"Assets:Non-current Assets:Property, Plant and Equipment:Cost Model:Transport Assets:Owned and In-use:Cost:Acquisitions"," _"," _"," _ "," _ "," _ "," _ ",4400,"Waste management",4403,"Solid Waste Removal","CE",2080,"Internally generated funds","C","IA",240," Property, plant and equipment",240,"Property, plant and equipment"," _ "," _ "," _ "," _ "," _ "," _ "," _ "," _ ",1530,"Transport Assets",1530,"Transport Assets",241,"PPE at cost/valuation (excl. finance leases)",241,"PPE at cost/valuation (excl. finance leases)","",null,null," _ "," _ "," _ "," _ ",1530,"Transport Assets",1530,"Transport Assets"," _ "," _ "," _ "," _ ","_"," _ "," _ "," _ "," _ ","_"," _ "," _ "," _ "," _ ",null,5,51,"Waste Management","Solid Waste Removal",null,null,"_","_","_",null,"_",0,0,0,0,0,0,0,0,0,0,0,0,0,0,0,0,0,0,0,{"$f":"INDEX([9]Sheet1!$H:$H,MATCH(CR:CR,[9]Sheet1!$AU:$AU,0))","v":{"$error":"#N/A"}}]
["C0069-1/IA00162/F0002/X049/R2853/001/COMM",4908,"C0069-1/IA00162/F0002/X049/R2853/001/COMM",53055,"Assets:Non-current Assets:Property, Plant and Equipment:Cost Model:Solid Waste Infrastructure:Accumulated Depreciation:Depreciation"," _"," _"," _ "," _ "," _ "," _ ",1200,"Finance and administration",1204,"Finance","_",2080,"Internally generated funds","C","IA",240," Property, plant and equipment",240,"Property, plant and equipment"," _ "," _ "," _ "," _ "," _ "," _ "," _ "," _ ",480,"Solid Waste Infrastructure",480,"Solid Waste Infrastructure",243,"Less: Accumulated depreciation",243,"Less: Accumulated depreciation","",null,null," _ "," _ "," _ "," _ ",1490,"Furniture and Office Equipment",1490,"Furniture and Office Equipment"," _ "," _ "," _ "," _ ","_"," _ "," _ "," _ "," _ ","_"," _ "," _ "," _ "," _ ",null,1,12,"Finance and Admin","Finance",null,null,"_","_","_",null,"_",0,0,0,0,0,0,0,0,0,0,0,0,0,0,0,0,0,0,0,{"$f":"INDEX([9]Sheet1!$H:$H,MATCH(CR:CR,[9]Sheet1!$AU:$AU,0))","v":{"$error":"#N/A"}}]
["C0069-1/IA06343/F0002/X049/R2853/001/COMM",4904,"C0069-1/IA06343/F0002/X049/R2853/001/COMM",53061,"Assets:Non-current Assets:Property, Plant and Equipment:Cost Model:Water Supply Infrastructure:Boreholes:Accumulated Depreciation:Depreciation"," _"," _"," _ "," _ "," _ "," _ ",1200,"Finance and administration",1204,"Finance","_",2080,"Internally generated funds","C","IA",240," Property, plant and equipment",240,"Property, plant and equipment"," _ "," _ "," _ "," _ "," _ "," _ "," _ "," _ ",300,"Water Supply Infrastructure",300,"Water Supply Infrastructure",243,"Less: Accumulated depreciation",243,"Less: Accumulated depreciation","",null,null," _ "," _ "," _ "," _ ",1490,"Furniture and Office Equipment",1490,"Furniture and Office Equipment"," _ "," _ "," _ "," _ ","_"," _ "," _ "," _ "," _ ","_"," _ "," _ "," _ "," _ ",null,1,12,"Finance and Admin","Finance",null,null,"_","_","_",null,"_",0,0,0,0,0,0,0,0,0,0,0,0,0,0,0,0,0,0,0,{"$f":"INDEX([9]Sheet1!$H:$H,MATCH(CR:CR,[9]Sheet1!$AU:$AU,0))","v":{"$error":"#N/A"}}]
["C0071-1/IA06303/F0002/X101/R0073/001/COMM",18123,"C0071-1/IA06303/F0002/X101/R0073/001/COMM",85019,"Assets:Non-current Assets:Property, Plant and Equipment:Cost Model:Machinery and Equipment:In-use:Accumulated Depreciation:Depreciation"," _"," _"," _ "," _ "," _ "," _ ",3100,"Planning and development",3107,"Town Planning, Building Regulations and Enforcement, and City Engineer","_",2080,"Internally generated funds","C","IA",240," Property, plant and equipment",240,"Property, plant and equipment"," _ "," _ "," _ "," _ "," _ "," _ "," _ "," _ ",1510,"Machinery and Equipment",1510,"Machinery and Equipment",243,"Less: Accumulated depreciation",243,"Less: Accumulated depreciation","",null,null," _ "," _ "," _ "," _ ",1510,"Machinery and Equipment",1510,"Machinery and Equipment"," _ "," _ "," _ "," _ ","_"," _ "," _ "," _ "," _ ","_"," _ "," _ "," _ "," _ ",null,7,72,"Planning and Development","Town Planning, Building Regulations and Enforcement, and City Engineer",null,null,"_","_","_",null,"_",0,0,0,0,0,0,0,0,0,0,0,0,0,0,0,0,0,0,0,{"$f":"INDEX([9]Sheet1!$H:$H,MATCH(CR:CR,[9]Sheet1!$AU:$AU,0))","v":{"$error":"#N/A"}}]
["C0071-12/IA06321/F0002/X125/R0072/001/TECH",15505,"C0071-12/IA06321/F0002/X125/R0072/001/TECH",63556,"Assets:Non-current Assets:Property, Plant and Equipment:Cost Model:Machinery and Equipment:In-use:Cost:Transfers Received"," _"," _"," _ "," _ "," _ "," _ ",2200,"Sport and recreation",2205,"Sports Grounds and Stadiums","_",2080,"Internally generated funds","C","IA",240," Property, plant and equipment",240,"Property, plant and equipment"," _ "," _ "," _ "," _ "," _ "," _ "," _ "," _ ",1510,"Machinery and Equipment",1510,"Machinery and Equipment",241,"PPE at cost/valuation (excl. finance leases)",241,"PPE at cost/valuation (excl. finance leases)","",null,null," _ "," _ "," _ "," _ ",1510,"Machinery and Equipment",1510,"Machinery and Equipment"," _ "," _ "," _ "," _ ","_"," _ "," _ "," _ "," _ ","_"," _ "," _ "," _ "," _ ",null,null,0," _ ","Sports Grounds and Stadiums",null,null,"_","_","_",null,"_",0,0,0,0,0,0,0,0,0,0,0,0,0,0,0,0,0,0,0,{"$f":"INDEX([9]Sheet1!$H:$H,MATCH(CR:CR,[9]Sheet1!$AU:$AU,0))","v":{"$error":"#N/A"}}]
["C0071-8/IA06313/F0002/X125/R0072/001/TECH",15503,"C0071-8/IA06313/F0002/X125/R0072/001/TECH",63558,"Assets:Non-current Assets:Property, Plant and Equipment:Cost Model:Machinery and Equipment:In-use:Cost:Acquisitions"," _"," _"," _ "," _ "," _ "," _ ",2200,"Sport and recreation",2205,"Sports Grounds and Stadiums","CE",2080,"Internally generated funds","C","IA",240," Property, plant and equipment",240,"Property, plant and equipment"," _ "," _ "," _ "," _ "," _ "," _ "," _ "," _ ",1510,"Machinery and Equipment",1510,"Machinery and Equipment",241,"PPE at cost/valuation (excl. finance leases)",241,"PPE at cost/valuation (excl. finance leases)","",null,null," _ "," _ "," _ "," _ ",1510,"Machinery and Equipment",1510,"Machinery and Equipment"," _ "," _ "," _ "," _ ","_"," _ "," _ "," _ "," _ ","_"," _ "," _ "," _ "," _ ",null,null,0," _ ","Sports Grounds and Stadiums",null,null,"_","_","_",null,"_",0,0,0,0,0,0,0,0,0,0,0,0,0,0,0,0,0,0,0,{"$f":"INDEX([9]Sheet1!$H:$H,MATCH(CR:CR,[9]Sheet1!$AU:$AU,0))","v":{"$error":"#N/A"}}]
["C0072-24/IA01365/F0002/X116/R0072/001/TRAF",15591,"C0072-24/IA01365/F0002/X116/R0072/001/TRAF",63473,"Assets:Non-current Assets:Property, Plant and Equipment:Cost Model:Transport Assets:Owned and In-use:Accumulated Impairment:Impairment"," _"," _"," _ "," _ "," _ "," _ ",3200,"Road transport",3205,"Roads","_",2080,"Internally generated funds","C","IA","_","_","_","_"," _ "," _ "," _ "," _ "," _ "," _ "," _ "," _ ",1530,"Transport Assets",1530,"Transport Assets",241,"PPE at cost/valuation (excl. finance leases)",241,"PPE at cost/valuation (excl. finance leases)","",null,null," _ "," _ "," _ "," _ ",1530,"Transport Assets",1530,"Transport Assets"," _ "," _ "," _ "," _ ","_"," _ "," _ "," _ "," _ ","_"," _ "," _ "," _ "," _ ",null,9,91,"Roads","Roads",null,null,"_","_","_",null,"_",0,0,0,0,0,0,0,0,0,0,0,0,0,0,0,0,0,0,0,{"$f":"INDEX([9]Sheet1!$H:$H,MATCH(CR:CR,[9]Sheet1!$AU:$AU,0))","v":{"$error":"#N/A"}}]
["C0072-3/IA05912/F0002/X047/R0072/001/COMM",5203,"C0072-3/IA05912/F0002/X047/R0072/001/COMM",53264,"Assets:Non-current Assets:Property, Plant and Equipment:Leased Assets:Transport Assets:In-use:Accumulated Depreciation:Depreciation"," _"," _"," _ "," _ "," _ "," _ ",1200,"Finance and administration",1202,"Asset Management","_",2080,"Internally generated funds","C","IA",240," Property, plant and equipment",240,"Property, plant and equipment"," _ "," _ "," _ "," _ "," _ "," _ "," _ "," _ ",1530,"Transport Assets",1530,"Transport Assets",243,"Less: Accumulated depreciation",243,"Less: Accumulated depreciation","",null,null," _ "," _ "," _ "," _ ",1530,"Transport Assets",1530,"Transport Assets"," _ "," _ "," _ "," _ ","_"," _ "," _ "," _ "," _ ","_"," _ "," _ "," _ "," _ ",null,1,110,"Finance and Admin","Asset Management",null,null,"_","_","_",null,"_",0,0,0,0,0,0,0,0,0,0,0,0,0,0,0,0,0,0,0,{"$f":"INDEX([9]Sheet1!$H:$H,MATCH(CR:CR,[9]Sheet1!$AU:$AU,0))","v":{"$error":"#N/A"}}]
["C0072-4/IA01375/F0002/X050/R0072/001/TECH",15571,"C0072-4/IA01375/F0002/X050/R0072/001/TECH",63425,"Assets:Non-current Assets:Property, Plant and Equipment:Cost Model:Transport Assets:Owned and In-use:Cost:Transfers Received"," _"," _"," _ "," _ "," _ "," _ ",1200,"Finance and administration",1205,"Fleet Management","_",2080,"Internally generated funds","C","IA",240," Property, plant and equipment",240,"Property, plant and equipment"," _ "," _ "," _ "," _ "," _ "," _ "," _ "," _ ",1530,"Transport Assets",1530,"Transport Assets",241,"PPE at cost/valuation (excl. finance leases)",241,"PPE at cost/valuation (excl. finance leases)","",null,null," _ "," _ "," _ "," _ ",1530,"Transport Assets",1530,"Transport Assets"," _ "," _ "," _ "," _ ","_"," _ "," _ "," _ "," _ ","_"," _ "," _ "," _ "," _ ",null,1,13,"Finance and Admin","Fleet Management",null,null,"_","_","_",null,"_",0,0,0,0,0,0,0,0,0,0,0,0,0,0,0,0,0,0,0,{"$f":"INDEX([9]Sheet1!$H:$H,MATCH(CR:CR,[9]Sheet1!$AU:$AU,0))","v":{"$error":"#N/A"}}]
["C0072-8/IA01367/F0002/X109/R0072/001/TRAF",15575,"C0072-8/IA01367/F0002/X109/R0072/001/TRAF",63467,"Assets:Non-current Assets:Property, Plant and Equipment:Cost Model:Transport Assets:Owned and In-use:Cost:Acquisitions"," _"," _"," _ "," _ "," _ "," _ ",2300,"Public safety",2305,"Fire Fighting and Protection","CE",2080,"Internally generated funds","C","IA",240," Property, plant and equipment",240,"Property, plant and equipment"," _ "," _ "," _ "," _ "," _ "," _ "," _ "," _ ",1530,"Transport Assets",1530,"Transport Assets",241,"PPE at cost/valuation (excl. finance leases)",241,"PPE at cost/valuation (excl. finance leases)","",null,null," _ "," _ "," _ "," _ ",1530,"Transport Assets",1530,"Transport Assets"," _ "," _ "," _ "," _ ","_"," _ "," _ "," _ "," _ ","_"," _ "," _ "," _ "," _ ",null,null,0," _ ","Fire Fighting and Protection",null,null,"_","_","_",null,"_",0,0,0,0,0,0,0,0,0,0,0,0,0,0,0,0,0,0,0,{"$f":"INDEX([9]Sheet1!$H:$H,MATCH(CR:CR,[9]Sheet1!$AU:$AU,0))","v":{"$error":"#N/A"}}]
["C0086-1/IA05091/F0002/X047/R0073/001/FIN",2606,"C0086-1/IA05091/F0002/X047/R0073/001/FIN",52318,"Assets:Non-current Assets:Intangible Assets:Cost:Other:In-use:Computer Software Accumulated Amortisation:Amortisation"," _"," _"," _ "," _ "," _ "," _ ",1200,"Finance and administration",1202,"Asset Management","_",2080,"Internally generated funds","C","IA",270," Intangible",270,"Intangible"," _ "," _ "," _ "," _ "," _ "," _ "," _ "," _ ",1370,"Intangible Assets",1370,"Intangible Assets"," _ "," _ "," _ "," _ ","",null,null,1430,"Computer Software and Applications",1430,"Computer Software and Applications"," _ "," _ "," _ "," _ "," _ "," _ "," _ "," _ ","_"," _ "," _ "," _ "," _ ","_"," _ "," _ "," _ "," _ ",null,1,110,"Finance and Admin","Asset Management",null,null,"_","_","_",null,"_",-512050,0,0,0,-512050,-534580,-558636,0,0,0,0,0,0,0,0,0,0,0,0,{"$f":"INDEX([9]Sheet1!$H:$H,MATCH(CR:CR,[9]Sheet1!$AU:$AU,0))","v":{"$error":"#N/A"}}]
["C0039-1/IA01952/F0791/X116/R2865/001/TECH",1465,"C0039-1/IA01952/F0791/X116/R2865/001/TECH",32187,"Assets:Non-current Assets:Construction Work-in-progress:Acquisitions:Outsourced"," _"," _"," _ "," _ "," _ "," _ ",3200,"Road transport",3205,"Roads","CE",2010,"National Government","C","IA",240," Property, plant and equipment",240,"Property, plant and equipment"," _ "," _ "," _ "," _ "," _ "," _ "," _ "," _ "," _ "," _ "," _ "," _ ",241,"PPE at cost/valuation (excl. finance leases)",241,"PPE at cost/valuation (excl. finance leases)","",null,null,130,"Road Structures",130,"Road Structures"," _ "," _ "," _ "," _ "," _ "," _ "," _ "," _ ","_"," _ "," _ "," _ "," _ ","_"," _ "," _ "," _ "," _ ",null,9,91,"Roads","Roads",null,null,"_","_","_",110,"_",0,0,0,0,0,0,0,0,0,0,0,0,0,0,0,0,0,0,0,{"$f":"INDEX([9]Sheet1!$H:$H,MATCH(CR:CR,[9]Sheet1!$AU:$AU,0))","v":{"$error":"#N/A"}}]
["C0040-1/IA01952/F0791/X116/R2865/001/TECH",444,"C0040-1/IA01952/F0791/X116/R2865/001/TECH",30877,"Assets:Non-current Assets:Construction Work-in-progress:Acquisitions:Outsourced"," _"," _"," _ "," _ "," _ "," _ ",3200,"Road transport",3205,"Roads","CE",2010,"National Government","C","IA",240," Property, plant and equipment",240,"Property, plant and equipment"," _ "," _ "," _ "," _ "," _ "," _ "," _ "," _ "," _ "," _ "," _ "," _ ",241,"PPE at cost/valuation (excl. finance leases)",241,"PPE at cost/valuation (excl. finance leases)","",null,null,120,"Roads",120,"Roads"," _ "," _ "," _ "," _ "," _ "," _ "," _ "," _ ","_"," _ "," _ "," _ "," _ ","_"," _ "," _ "," _ "," _ ",null,9,91,"Roads","Roads",null,null,"_","_","_",110,"_",0,0,0,0,0,0,0,0,0,0,0,0,0,0,0,0,0,0,0,{"$f":"INDEX([9]Sheet1!$H:$H,MATCH(CR:CR,[9]Sheet1!$AU:$AU,0))","v":{"$error":"#N/A"}}]
["C0040-16/IA00132/F0791/X101/R2853/001/Tech",5376,"C0040-16/IA00132/F0791/X101/R2853/001/Tech",58381,"Assets:Non-current Assets:Property, Plant and Equipment:Cost Model:Roads Infrastructure:Cost:Acquisitions"," _"," _"," _ "," _ "," _ "," _ ",3100,"Planning and development",3107,"Town Planning, Building Regulations and Enforcement, and City Engineer","CE",2010,"National Government","C","IA",240," Property, plant and equipment",240,"Property, plant and equipment"," _ "," _ "," _ "," _ "," _ "," _ "," _ "," _ ",110,"Roads Infrastructure",110,"Roads Infrastructure",241,"PPE at cost/valuation (excl. finance leases)",241,"PPE at cost/valuation (excl. finance leases)","",null,null,120,"Roads",120,"Roads"," _ "," _ "," _ "," _ "," _ "," _ "," _ "," _ ","_"," _ "," _ "," _ "," _ ","_"," _ "," _ "," _ "," _ ",null,7,72,"Planning and Development","Town Planning, Building Regulations and Enforcement, and City Engineer",null,null,"_","_","_",null,"_",0,0,0,0,0,0,0,0,0,0,0,0,0,0,0,0,0,0,0,{"$f":"INDEX([9]Sheet1!$H:$H,MATCH(CR:CR,[9]Sheet1!$AU:$AU,0))","v":{"$error":"#N/A"}}]
["C0040-24/IA01952/F0791/X116/R2866/001/Tech",15755,"C0040-24/IA01952/F0791/X116/R2866/001/Tech",63667,"Assets:Non-current Assets:Construction Work-in-progress:Acquisitions:Outsourced"," _"," _"," _ "," _ "," _ "," _ ",3200,"Road transport",3205,"Roads","CE",2010,"National Government","C","IA",240," Property, plant and equipment",240,"Property, plant and equipment"," _ "," _ "," _ "," _ "," _ "," _ "," _ "," _ "," _ "," _ "," _ "," _ ",241,"PPE at cost/valuation (excl. finance leases)",241,"PPE at cost/valuation (excl. finance leases)","",null,null,120,"Roads",120,"Roads"," _ "," _ "," _ "," _ "," _ "," _ "," _ "," _ ","_"," _ "," _ "," _ "," _ ","_"," _ "," _ "," _ "," _ ",null,9,91,"Roads","Roads",null,null,"_","_","_",110,"_",236725,0,0,-104657,132068,7315000,7644175,0,0,0,0,0,0,0,0,0,0,0,0,{"$f":"INDEX([9]Sheet1!$H:$H,MATCH(CR:CR,[9]Sheet1!$AU:$AU,0))","v":{"$error":"#N/A"}}]
["C0040-29/IA01952/F0791/X101/R2866/001/Tech",15771,"C0040-29/IA01952/F0791/X101/R2866/001/Tech",73668,"Assets:Non-current Assets:Construction Work-in-progress:Acquisitions:Outsourced"," _"," _"," _ "," _ "," _ "," _ ",3100,"Planning and development",3107,"Town Planning, Building Regulations and Enforcement, and City Engineer","CE",2010,"National Government","C","IA",240," Property, plant and equipment",240,"Property, plant and equipment"," _ "," _ "," _ "," _ "," _ "," _ "," _ "," _ "," _ "," _ "," _ "," _ ",241,"PPE at cost/valuation (excl. finance leases)",241,"PPE at cost/valuation (excl. finance leases)","",null,null,120,"Roads",120,"Roads"," _ "," _ "," _ "," _ "," _ "," _ "," _ "," _ ","_"," _ "," _ "," _ "," _ ","_"," _ "," _ "," _ "," _ ",null,7,72,"Planning and Development","Town Planning, Building Regulations and Enforcement, and City Engineer",null,null,"_","_","_",110,"_",0,0,0,0,0,0,0,0,0,0,0,0,0,0,0,0,0,0,0,{"$f":"INDEX([9]Sheet1!$H:$H,MATCH(CR:CR,[9]Sheet1!$AU:$AU,0))","v":{"$error":"#N/A"}}]
["C0040-37/IA01952/F0791/X116/R2861/001/Tech",18038,"C0040-37/IA01952/F0791/X116/R2861/001/Tech",84935,"Assets:Non-current Assets:Construction Work-in-progress:Acquisitions:Outsourced"," _"," _"," _ "," _ "," _ "," _ ",3200,"Road transport",3205,"Roads","CE",2010,"National Government","C","IA",240," Property, plant and equipment",240,"Property, plant and equipment"," _ "," _ "," _ "," _ "," _ "," _ "," _ "," _ "," _ "," _ "," _ "," _ ",241,"PPE at cost/valuation (excl. finance leases)",241,"PPE at cost/valuation (excl. finance leases)","",null,null,120,"Roads",120,"Roads"," _ "," _ "," _ "," _ "," _ "," _ "," _ "," _ ","_"," _ "," _ "," _ "," _ ","_"," _ "," _ "," _ "," _ ",null,9,91,"Roads","Roads",null,null,"_","_","_",110,"_",4000000,0,0,1430019,5430019,0,0,497453.31,274860,778783.73,923014.48999999987,560973.13,1031239.39,0,430815.47,0,0,0,0,{"$f":"INDEX([9]Sheet1!$H:$H,MATCH(CR:CR,[9]Sheet1!$AU:$AU,0))","v":{"$error":"#N/A"}}]
["C0040-39/IA01952/F0791/X116/R2864/001/Tech",18044,"C0040-39/IA01952/F0791/X116/R2864/001/Tech",84942,"Assets:Non-current Assets:Construction Work-in-progress:Acquisitions:Outsourced"," _"," _"," _ "," _ "," _ "," _ ",3200,"Road transport",3205,"Roads","CE",2010,"National Government","C","IA",240," Property, plant and equipment",240,"Property, plant and equipment"," _ "," _ "," _ "," _ "," _ "," _ "," _ "," _ "," _ "," _ "," _ "," _ ",241,"PPE at cost/valuation (excl. finance leases)",241,"PPE at cost/valuation (excl. finance leases)","",null,null,120,"Roads",120,"Roads"," _ "," _ "," _ "," _ "," _ "," _ "," _ "," _ ","_"," _ "," _ "," _ "," _ ","_"," _ "," _ "," _ "," _ ",null,9,91,"Roads","Roads",null,null,"_","_","_",110,"_",0,0,0,0,0,0,0,0,0,0,0,0,0,0,0,0,0,0,0,{"$f":"INDEX([9]Sheet1!$H:$H,MATCH(CR:CR,[9]Sheet1!$AU:$AU,0))","v":{"$error":"#N/A"}}]
["C0040-41/IA01952/F0002/X116/R2864/001/Tech",18666,"C0040-41/IA01952/F0002/X116/R2864/001/Tech",85564,"Assets:Non-current Assets:Construction Work-in-progress:Acquisitions:Outsourced"," _"," _"," _ "," _ "," _ "," _ ",3200,"Road transport",3205,"Roads","CE",2080,"Internally generated funds","C","IA",240," Property, plant and equipment",240,"Property, plant and equipment"," _ "," _ "," _ "," _ "," _ "," _ "," _ "," _ "," _ "," _ "," _ "," _ ",241,"PPE at cost/valuation (excl. finance leases)",241,"PPE at cost/valuation (excl. finance leases)","",null,null,120,"Roads",120,"Roads"," _ "," _ "," _ "," _ "," _ "," _ "," _ "," _ ","_"," _ "," _ "," _ "," _ ","_"," _ "," _ "," _ "," _ ",null,9,91,"Roads","Roads",null,null,"_","_","_",110,"_",957191,0,0,0,957191,3657500,3822088,0,0,0,0,0,0,0,0,0,0,0,0,{"$f":"INDEX([9]Sheet1!$H:$H,MATCH(CR:CR,[9]Sheet1!$AU:$AU,0))","v":{"$error":"#N/A"}}]
["C0040-45/IA01952/F0791/X116/R2868/001/Tech",18667,"C0040-45/IA01952/F0791/X116/R2868/001/Tech",85566,"Assets:Non-current Assets:Construction Work-in-progress:Acquisitions:Outsourced"," _"," _"," _ "," _ "," _ "," _ ",3200,"Road transport",3205,"Roads","CE",2010,"National Government","C","IA",240," Property, plant and equipment",240,"Property, plant and equipment"," _ "," _ "," _ "," _ "," _ "," _ "," _ "," _ "," _ "," _ "," _ "," _ ",241,"PPE at cost/valuation (excl. finance leases)",241,"PPE at cost/valuation (excl. finance leases)","",null,null,120,"Roads",120,"Roads"," _ "," _ "," _ "," _ "," _ "," _ "," _ "," _ ","_"," _ "," _ "," _ "," _ ","_"," _ "," _ "," _ "," _ ",null,9,91,"Roads","Roads",null,null,"_","_","_",110,"_",4800003,0,0,34226,4834229,6270000,6552150,0,0,191304.35,0,853325,859595.13,0,1159480.6200000001,0,0,0,0,{"$f":"INDEX([9]Sheet1!$H:$H,MATCH(CR:CR,[9]Sheet1!$AU:$AU,0))","v":{"$error":"#N/A"}}]
["C0040-46/IA00132/F0002/X116/R2866/001/FIN",null,"C0040-46/IA00132/F0002/X116/R2866/001/FIN",85592,"Assets:Non-current Assets:Property, Plant and Equipment:Cost Model:Roads Infrastructure:Cost:Acquisitions"," _"," _"," _ "," _ "," _ "," _ ",3200,"Road transport",3205,"Roads","CE",2080,"Internally generated funds","C","IA",240," Property, plant and equipment",240,"Property, plant and equipment"," _ "," _ "," _ "," _ "," _ "," _ "," _ "," _ ",110,"Roads Infrastructure",110,"Roads Infrastructure",241,"PPE at cost/valuation (excl. finance leases)",241,"PPE at cost/valuation (excl. finance leases)","",null,null,120,"Roads",120,"Roads"," _ "," _ "," _ "," _ "," _ "," _ "," _ "," _ ","_"," _ "," _ "," _ "," _ ","_"," _ "," _ "," _ "," _ ",null,9,91,"Roads","Roads",null,null,"_","_","_",null,"_",0,0,0,0,0,0,0,0,0,0,0,0,0,0,0,0,0,0,0,{"$f":"INDEX([9]Sheet1!$H:$H,MATCH(CR:CR,[9]Sheet1!$AU:$AU,0))","v":{"$error":"#N/A"}}]
["C0040-48/IA00132/F0002/X116/R2853/001/FIN",null,"C0040-48/IA00132/F0002/X116/R2853/001/FIN",85264,"Assets:Non-current Assets:Property, Plant and Equipment:Cost Model:Roads Infrastructure:Cost:Acquisitions"," _"," _"," _ "," _ "," _ "," _ ",3200,"Road transport",3205,"Roads","CE",2080,"Internally generated funds","C","IA",240," Property, plant and equipment",240,"Property, plant and equipment"," _ "," _ "," _ "," _ "," _ "," _ "," _ "," _ ",110,"Roads Infrastructure",110,"Roads Infrastructure",241,"PPE at cost/valuation (excl. finance leases)",241,"PPE at cost/valuation (excl. finance leases)","",null,null,120,"Roads",120,"Roads"," _ "," _ "," _ "," _ "," _ "," _ "," _ "," _ ","_"," _ "," _ "," _ "," _ ","_"," _ "," _ "," _ "," _ ",null,9,91,"Roads","Roads",null,null,"_","_","_",null,"_",0,0,0,0,0,0,0,0,0,0,0,0,0,0,0,0,0,0,0,{"$f":"INDEX([9]Sheet1!$H:$H,MATCH(CR:CR,[9]Sheet1!$AU:$AU,0))","v":{"$error":"#N/A"}}]
["C0072-2/IA01367/F0002/X047/R0072/001/FIN",5201,"C0072-2/IA01367/F0002/X047/R0072/001/FIN",53262,"Assets:Non-current Assets:Property, Plant and Equipment:Cost Model:Transport Assets:Owned and In-use:Cost:Acquisitions"," _"," _"," _ "," _ "," _ "," _ ",1200,"Finance and administration",1202,"Asset Management","CE",2080,"Internally generated funds","C","IA",240," Property, plant and equipment",240,"Property, plant and equipment"," _ "," _ "," _ "," _ "," _ "," _ "," _ "," _ ",1530,"Transport Assets",1530,"Transport Assets",241,"PPE at cost/valuation (excl. finance leases)",241,"PPE at cost/valuation (excl. finance leases)","",null,null," _ "," _ "," _ "," _ ",1530,"Transport Assets",1530,"Transport Assets"," _ "," _ "," _ "," _ ","_"," _ "," _ "," _ "," _ ","_"," _ "," _ "," _ "," _ ",null,1,110,"Finance and Admin","Asset Management",null,null,"_","_","_",null,"_",0,0,0,0,0,0,0,0,0,0,0,0,0,0,0,0,0,0,0,{"$f":"INDEX([9]Sheet1!$H:$H,MATCH(CR:CR,[9]Sheet1!$AU:$AU,0))","v":{"$error":"#N/A"}}]
["C0072-2/IA01367/F0002/X050/R0072/001/TECH",15594,"C0072-2/IA01367/F0002/X050/R0072/001/TECH",63428,"Assets:Non-current Assets:Property, Plant and Equipment:Cost Model:Transport Assets:Owned and In-use:Cost:Acquisitions"," _"," _"," _ "," _ "," _ "," _ ",1200,"Finance and administration",1205,"Fleet Management","CE",2080,"Internally generated funds","C","IA",240," Property, plant and equipment",240,"Property, plant and equipment"," _ "," _ "," _ "," _ "," _ "," _ "," _ "," _ ",1530,"Transport Assets",1530,"Transport Assets",241,"PPE at cost/valuation (excl. finance leases)",241,"PPE at cost/valuation (excl. finance leases)","",null,null," _ "," _ "," _ "," _ ",1530,"Transport Assets",1530,"Transport Assets"," _ "," _ "," _ "," _ ","_"," _ "," _ "," _ "," _ ","_"," _ "," _ "," _ "," _ ",null,1,13,"Finance and Admin","Fleet Management",null,null,"_","_","_",null,"_",0,0,0,0,0,0,0,0,0,0,0,0,0,0,0,0,0,0,0,{"$f":"INDEX([9]Sheet1!$H:$H,MATCH(CR:CR,[9]Sheet1!$AU:$AU,0))","v":{"$error":"#N/A"}}]
["C0072-3/IA05922/F0002/X047/R0072/001/FIN",5205,"C0072-3/IA05922/F0002/X047/R0072/001/FIN",53266,"Assets:Non-current Assets:Property, Plant and Equipment:Leased Assets:Transport Assets:In-use:Cost:Acquisitions"," _"," _"," _ "," _ "," _ "," _ ",1200,"Finance and administration",1202,"Asset Management","CE",2080,"Internally generated funds","C","IA",240," Property, plant and equipment",240,"Property, plant and equipment"," _ "," _ "," _ "," _ "," _ "," _ "," _ "," _ ",1530,"Transport Assets",1530,"Transport Assets",242,"Leases recognised as PPE",242,"Leases recognised as PPE","",null,null," _ "," _ "," _ "," _ ",1530,"Transport Assets",1530,"Transport Assets"," _ "," _ "," _ "," _ ","_"," _ "," _ "," _ "," _ ","_"," _ "," _ "," _ "," _ ",null,1,110,"Finance and Admin","Asset Management",null,null,"_","_","_",null,"_",0,0,0,0,0,0,0,0,0,0,0,0,0,0,0,0,0,0,0,{"$f":"INDEX([9]Sheet1!$H:$H,MATCH(CR:CR,[9]Sheet1!$AU:$AU,0))","v":{"$error":"#N/A"}}]
["C0072-7/IA01357/F0002/X050/R0072/001/COMM",15574,"C0072-7/IA01357/F0002/X050/R0072/001/COMM",63426,"Assets:Non-current Assets:Property, Plant and Equipment:Cost Model:Transport Assets:Owned and In-use:Accumulated Depreciation:Depreciation"," _"," _"," _ "," _ "," _ "," _ ",1200,"Finance and administration",1205,"Fleet Management","_",2080,"Internally generated funds","C","IA",240," Property, plant and equipment",240,"Property, plant and equipment"," _ "," _ "," _ "," _ "," _ "," _ "," _ "," _ ",1530,"Transport Assets",1530,"Transport Assets",243,"Less: Accumulated depreciation",243,"Less: Accumulated depreciation","",null,null," _ "," _ "," _ "," _ ",1530,"Transport Assets",1530,"Transport Assets"," _ "," _ "," _ "," _ ","_"," _ "," _ "," _ "," _ ","_"," _ "," _ "," _ "," _ ",null,1,13,"Finance and Admin","Fleet Management",null,null,"_","_","_",null,"_",0,0,0,0,0,0,0,0,0,0,0,0,0,0,0,0,0,0,0,{"$f":"INDEX([9]Sheet1!$H:$H,MATCH(CR:CR,[9]Sheet1!$AU:$AU,0))","v":{"$error":"#N/A"}}]
["C0100-1/IA07278/F0002/X035/R0072/001/Tech",5228,"C0100-1/IA07278/F0002/X035/R0072/001/Tech",53290,"Assets:Non-current Assets:Property, Plant and Equipment:Cost Model:Electrical Infrastructure:In-use:LV Networks:Accumulated Impairment:Impairment"," _"," _"," _ "," _ "," _ "," _ ",4100,"Energy sources",4101,"Electricity ","_",2080,"Internally generated funds","C","IA","_","_","_","_"," _ "," _ "," _ "," _ "," _ "," _ "," _ "," _ ",200,"Electrical Infrastructure",200,"Electrical Infrastructure",241,"PPE at cost/valuation (excl. finance leases)",241,"PPE at cost/valuation (excl. finance leases)","",null,null," _ "," _ "," _ "," _ ",270,"MV Networks",270,"MV Networks"," _ "," _ "," _ "," _ ","_"," _ "," _ "," _ "," _ ","_"," _ "," _ "," _ "," _ ",null,6,61,"Energy Sources","Electricity",null,null,"_","_","_",null,"_",0,0,0,0,0,0,0,0,0,0,0,0,0,0,0,0,0,0,0,{"$f":"INDEX([9]Sheet1!$H:$H,MATCH(CR:CR,[9]Sheet1!$AU:$AU,0))","v":{"$error":"#N/A"}}]
["C0072-15/IA01367/F0002/X132/R0072/001/COMM",15582,"C0072-15/IA01367/F0002/X132/R0072/001/COMM",63498,"Assets:Non-current Assets:Property, Plant and Equipment:Cost Model:Transport Assets:Owned and In-use:Cost:Acquisitions"," _"," _"," _ "," _ "," _ "," _ ",4400,"Waste management",4403,"Solid Waste Removal","CE",2080,"Internally generated funds","C","IA",240," Property, plant and equipment",240,"Property, plant and equipment"," _ "," _ "," _ "," _ "," _ "," _ "," _ "," _ ",1530,"Transport Assets",1530,"Transport Assets",241,"PPE at cost/valuation (excl. finance leases)",241,"PPE at cost/valuation (excl. finance leases)","",null,null," _ "," _ "," _ "," _ ",1530,"Transport Assets",1530,"Transport Assets"," _ "," _ "," _ "," _ ","_"," _ "," _ "," _ "," _ ","_"," _ "," _ "," _ "," _ ",null,5,51,"Waste Management","Solid Waste Removal",null,null,"_","_","_",null,"_",0,0,0,0,0,0,0,0,0,0,0,0,0,0,0,0,0,0,0,{"$f":"INDEX([9]Sheet1!$H:$H,MATCH(CR:CR,[9]Sheet1!$AU:$AU,0))","v":{"$error":"#N/A"}}]
["C0072-16/IA01375/F0002/X132/R0072/001/COMM",15583,"C0072-16/IA01375/F0002/X132/R0072/001/COMM",63494,"Assets:Non-current Assets:Property, Plant and Equipment:Cost Model:Transport Assets:Owned and In-use:Cost:Transfers Received"," _"," _"," _ "," _ "," _ "," _ ",4400,"Waste management",4403,"Solid Waste Removal","_",2080,"Internally generated funds","C","IA",240," Property, plant and equipment",240,"Property, plant and equipment"," _ "," _ "," _ "," _ "," _ "," _ "," _ "," _ ",1530,"Transport Assets",1530,"Transport Assets",241,"PPE at cost/valuation (excl. finance leases)",241,"PPE at cost/valuation (excl. finance leases)","",null,null," _ "," _ "," _ "," _ ",1530,"Transport Assets",1530,"Transport Assets"," _ "," _ "," _ "," _ ","_"," _ "," _ "," _ "," _ ","_"," _ "," _ "," _ "," _ ",null,5,51,"Waste Management","Solid Waste Removal",null,null,"_","_","_",null,"_",0,0,0,0,0,0,0,0,0,0,0,0,0,0,0,0,0,0,0,{"$f":"INDEX([9]Sheet1!$H:$H,MATCH(CR:CR,[9]Sheet1!$AU:$AU,0))","v":{"$error":"#N/A"}}]
["C0072-18/IA01365/F0002/X132/R0072/001/COMM",15585,"C0072-18/IA01365/F0002/X132/R0072/001/COMM",63495,"Assets:Non-current Assets:Property, Plant and Equipment:Cost Model:Transport Assets:Owned and In-use:Accumulated Impairment:Impairment"," _"," _"," _ "," _ "," _ "," _ ",4400,"Waste management",4403,"Solid Waste Removal","_",2080,"Internally generated funds","C","IA","_","_","_","_"," _ "," _ "," _ "," _ "," _ "," _ "," _ "," _ ",1530,"Transport Assets",1530,"Transport Assets",241,"PPE at cost/valuation (excl. finance leases)",241,"PPE at cost/valuation (excl. finance leases)","",null,null," _ "," _ "," _ "," _ ",1530,"Transport Assets",1530,"Transport Assets"," _ "," _ "," _ "," _ ","_"," _ "," _ "," _ "," _ ","_"," _ "," _ "," _ "," _ ",null,5,51,"Waste Management","Solid Waste Removal",null,null,"_","_","_",null,"_",0,0,0,0,0,0,0,0,0,0,0,0,0,0,0,0,0,0,0,{"$f":"INDEX([9]Sheet1!$H:$H,MATCH(CR:CR,[9]Sheet1!$AU:$AU,0))","v":{"$error":"#N/A"}}]
["C0072-2/IA01357/F0002/X047/R0072/001/COMM",5200,"C0072-2/IA01357/F0002/X047/R0072/001/COMM",53261,"Assets:Non-current Assets:Property, Plant and Equipment:Cost Model:Transport Assets:Owned and In-use:Accumulated Depreciation:Depreciation"," _"," _"," _ "," _ "," _ "," _ ",1200,"Finance and administration",1202,"Asset Management","_",2080,"Internally generated funds","C","IA",240," Property, plant and equipment",240,"Property, plant and equipment"," _ "," _ "," _ "," _ "," _ "," _ "," _ "," _ ",1530,"Transport Assets",1530,"Transport Assets",243,"Less: Accumulated depreciation",243,"Less: Accumulated depreciation","",null,null," _ "," _ "," _ "," _ ",1530,"Transport Assets",1530,"Transport Assets"," _ "," _ "," _ "," _ ","_"," _ "," _ "," _ "," _ ","_"," _ "," _ "," _ "," _ ",null,1,110,"Finance and Admin","Asset Management",null,null,"_","_","_",null,"_",0,0,0,0,0,0,0,0,0,0,0,0,0,0,0,0,0,0,0,{"$f":"INDEX([9]Sheet1!$H:$H,MATCH(CR:CR,[9]Sheet1!$AU:$AU,0))","v":{"$error":"#N/A"}}]
["C0072-25/IA01357/F0002/X116/R0072/001/COMM",15592,"C0072-25/IA01357/F0002/X116/R0072/001/COMM",63476,"Assets:Non-current Assets:Property, Plant and Equipment:Cost Model:Transport Assets:Owned and In-use:Accumulated Depreciation:Depreciation"," _"," _"," _ "," _ "," _ "," _ ",3200,"Road transport",3205,"Roads","_",2080,"Internally generated funds","C","IA",240," Property, plant and equipment",240,"Property, plant and equipment"," _ "," _ "," _ "," _ "," _ "," _ "," _ "," _ ",1530,"Transport Assets",1530,"Transport Assets",243,"Less: Accumulated depreciation",243,"Less: Accumulated depreciation","",null,null," _ "," _ "," _ "," _ ",1530,"Transport Assets",1530,"Transport Assets"," _ "," _ "," _ "," _ ","_"," _ "," _ "," _ "," _ ","_"," _ "," _ "," _ "," _ ",null,9,91,"Roads","Roads",null,null,"_","_","_",null,"_",0,0,0,0,0,0,0,0,0,0,0,0,0,0,0,0,0,0,0,{"$f":"INDEX([9]Sheet1!$H:$H,MATCH(CR:CR,[9]Sheet1!$AU:$AU,0))","v":{"$error":"#N/A"}}]
["C0040-44/IA01952/F0002/X116/R2869/001/Tech",18668,"C0040-44/IA01952/F0002/X116/R2869/001/Tech",85565,"Assets:Non-current Assets:Construction Work-in-progress:Acquisitions:Outsourced"," _"," _"," _ "," _ "," _ "," _ ",3200,"Road transport",3205,"Roads","CE",2080,"Internally generated funds","C","IA",240," Property, plant and equipment",240,"Property, plant and equipment"," _ "," _ "," _ "," _ "," _ "," _ "," _ "," _ "," _ "," _ "," _ "," _ ",241,"PPE at cost/valuation (excl. finance leases)",241,"PPE at cost/valuation (excl. finance leases)","",null,null,120,"Roads",120,"Roads"," _ "," _ "," _ "," _ "," _ "," _ "," _ "," _ ","_"," _ "," _ "," _ "," _ ","_"," _ "," _ "," _ "," _ ",null,9,91,"Roads","Roads",null,null,"_","_","_",110,"_",957191,0,0,-863366,93825,0,0,0,0,0,0,0,0,0,0,0,0,0,0,{"$f":"INDEX([9]Sheet1!$H:$H,MATCH(CR:CR,[9]Sheet1!$AU:$AU,0))","v":{"$error":"#N/A"}}]
["C0040-47/IA00132/F0002/X116/R2863/001/FIN",null,"C0040-47/IA00132/F0002/X116/R2863/001/FIN",85254,"Assets:Non-current Assets:Property, Plant and Equipment:Cost Model:Roads Infrastructure:Cost:Acquisitions"," _"," _"," _ "," _ "," _ "," _ ",3200,"Road transport",3205,"Roads","CE",2080,"Internally generated funds","C","IA",240," Property, plant and equipment",240,"Property, plant and equipment"," _ "," _ "," _ "," _ "," _ "," _ "," _ "," _ ",110,"Roads Infrastructure",110,"Roads Infrastructure",241,"PPE at cost/valuation (excl. finance leases)",241,"PPE at cost/valuation (excl. finance leases)","",null,null,120,"Roads",120,"Roads"," _ "," _ "," _ "," _ "," _ "," _ "," _ "," _ ","_"," _ "," _ "," _ "," _ ","_"," _ "," _ "," _ "," _ ",null,9,91,"Roads","Roads",null,null,"_","_","_",null,"_",0,0,0,0,0,0,0,0,0,0,0,0,0,0,0,0,0,0,0,{"$f":"INDEX([9]Sheet1!$H:$H,MATCH(CR:CR,[9]Sheet1!$AU:$AU,0))","v":{"$error":"#N/A"}}]
["C0040-8/IA00122/F0002/X060/R0072/001/Tech",2863,"C0040-8/IA00122/F0002/X060/R0072/001/Tech",52578,"Assets:Non-current Assets:Property, Plant and Equipment:Cost Model:Roads Infrastructure:Accumulated Depreciation:Depreciation"," _"," _"," _ "," _ "," _ "," _ ",1200,"Finance and administration",1202,"Asset Management","_",2080,"Internally generated funds","C","IA",240," Property, plant and equipment",240,"Property, plant and equipment"," _ "," _ "," _ "," _ "," _ "," _ "," _ "," _ ",110,"Roads Infrastructure",110,"Roads Infrastructure",243,"Less: Accumulated depreciation",243,"Less: Accumulated depreciation","",null,null,120,"Roads",120,"Roads"," _ "," _ "," _ "," _ "," _ "," _ "," _ "," _ ","_"," _ "," _ "," _ "," _ ","_"," _ "," _ "," _ "," _ ",null,1,110,"Finance and Admin","Asset Management",null,null,"_","_","_",null,"_",0,0,0,0,0,0,0,0,0,0,0,0,0,0,0,0,0,0,0,{"$f":"INDEX([9]Sheet1!$H:$H,MATCH(CR:CR,[9]Sheet1!$AU:$AU,0))","v":{"$error":"#N/A"}}]
["C0040-9/IA00122/F0002/X049/R0072/001/FIN",4951,"C0040-9/IA00122/F0002/X049/R0072/001/FIN",53119,"Assets:Non-current Assets:Property, Plant and Equipment:Cost Model:Roads Infrastructure:Accumulated Depreciation:Depreciation"," _"," _"," _ "," _ "," _ "," _ ",1200,"Finance and administration",1204,"Finance","_",2080,"Internally generated funds","C","IA",240," Property, plant and equipment",240,"Property, plant and equipment"," _ "," _ "," _ "," _ "," _ "," _ "," _ "," _ ",110,"Roads Infrastructure",110,"Roads Infrastructure",243,"Less: Accumulated depreciation",243,"Less: Accumulated depreciation","",null,null,120,"Roads",120,"Roads"," _ "," _ "," _ "," _ "," _ "," _ "," _ "," _ ","_"," _ "," _ "," _ "," _ ","_"," _ "," _ "," _ "," _ ",null,1,12,"Finance and Admin","Finance",null,null,"_","_","_",null,"_",0,0,0,0,0,0,0,0,0,0,0,0,0,0,0,0,0,0,0,{"$f":"INDEX([9]Sheet1!$H:$H,MATCH(CR:CR,[9]Sheet1!$AU:$AU,0))","v":{"$error":"#N/A"}}]
["C0068-1/IA06243/F0002/X049/R0073/001/COMM",4898,"C0068-1/IA06243/F0002/X049/R0073/001/COMM",53052,"Assets:Non-current Assets:Property, Plant and Equipment:Cost Model:Furniture and Office Equipment:In-use:Accumulated Depreciation:Depreciation"," _"," _"," _ "," _ "," _ "," _ ",1200,"Finance and administration",1204,"Finance","_",2080,"Internally generated funds","C","IA",240," Property, plant and equipment",240,"Property, plant and equipment"," _ "," _ "," _ "," _ "," _ "," _ "," _ "," _ ",1490,"Furniture and Office Equipment",1490,"Furniture and Office Equipment",243,"Less: Accumulated depreciation",243,"Less: Accumulated depreciation","",null,null," _ "," _ "," _ "," _ ",1470,"Computer Equipment",1470,"Computer Equipment"," _ "," _ "," _ "," _ ","_"," _ "," _ "," _ "," _ ","_"," _ "," _ "," _ "," _ ",null,1,12,"Finance and Admin","Finance",null,null,"_","_","_",null,"_",0,0,0,0,0,0,0,0,0,0,0,0,0,0,0,0,0,0,0,{"$f":"INDEX([9]Sheet1!$H:$H,MATCH(CR:CR,[9]Sheet1!$AU:$AU,0))","v":{"$error":"#N/A"}}]
["C0040-52/IA00132/F0002/X116/R2869/001/FIN",null,"C0040-52/IA00132/F0002/X116/R2869/001/FIN",85282,"Assets:Non-current Assets:Property, Plant and Equipment:Cost Model:Roads Infrastructure:Cost:Acquisitions"," _"," _"," _ "," _ "," _ "," _ ",3200,"Road transport",3205,"Roads","CE",2080,"Internally generated funds","C","IA",240," Property, plant and equipment",240,"Property, plant and equipment"," _ "," _ "," _ "," _ "," _ "," _ "," _ "," _ ",110,"Roads Infrastructure",110,"Roads Infrastructure",241,"PPE at cost/valuation (excl. finance leases)",241,"PPE at cost/valuation (excl. finance leases)","",null,null,120,"Roads",120,"Roads"," _ "," _ "," _ "," _ "," _ "," _ "," _ "," _ ","_"," _ "," _ "," _ "," _ ","_"," _ "," _ "," _ "," _ ",null,9,91,"Roads","Roads",null,null,"_","_","_",null,"_",0,0,0,0,0,0,0,0,0,0,0,0,0,0,0,0,0,0,0,{"$f":"INDEX([9]Sheet1!$H:$H,MATCH(CR:CR,[9]Sheet1!$AU:$AU,0))","v":{"$error":"#N/A"}}]
["C0040-53/IA00132/F0002/X116/R2864/001/FIN",null,"C0040-53/IA00132/F0002/X116/R2864/001/FIN",85280,"Assets:Non-current Assets:Property, Plant and Equipment:Cost Model:Roads Infrastructure:Cost:Acquisitions"," _"," _"," _ "," _ "," _ "," _ ",3200,"Road transport",3205,"Roads","CE",2080,"Internally generated funds","C","IA",240," Property, plant and equipment",240,"Property, plant and equipment"," _ "," _ "," _ "," _ "," _ "," _ "," _ "," _ ",110,"Roads Infrastructure",110,"Roads Infrastructure",241,"PPE at cost/valuation (excl. finance leases)",241,"PPE at cost/valuation (excl. finance leases)","",null,null,120,"Roads",120,"Roads"," _ "," _ "," _ "," _ "," _ "," _ "," _ "," _ ","_"," _ "," _ "," _ "," _ ","_"," _ "," _ "," _ "," _ ",null,9,91,"Roads","Roads",null,null,"_","_","_",null,"_",0,0,0,0,0,0,0,0,0,0,0,0,0,0,0,0,0,0,0,{"$f":"INDEX([9]Sheet1!$H:$H,MATCH(CR:CR,[9]Sheet1!$AU:$AU,0))","v":{"$error":"#N/A"}}]
["C0040-8/IA00132/F0791/X047/R0072/001/Tech",2616,"C0040-8/IA00132/F0791/X047/R0072/001/Tech",52328,"Assets:Non-current Assets:Property, Plant and Equipment:Cost Model:Roads Infrastructure:Cost:Acquisitions"," _"," _"," _ "," _ "," _ "," _ ",1200,"Finance and administration",1202,"Asset Management","CE",2010,"National Government","C","IA",240," Property, plant and equipment",240,"Property, plant and equipment"," _ "," _ "," _ "," _ "," _ "," _ "," _ "," _ ",110,"Roads Infrastructure",110,"Roads Infrastructure",241,"PPE at cost/valuation (excl. finance leases)",241,"PPE at cost/valuation (excl. finance leases)","",null,null,120,"Roads",120,"Roads"," _ "," _ "," _ "," _ "," _ "," _ "," _ "," _ ","_"," _ "," _ "," _ "," _ ","_"," _ "," _ "," _ "," _ ",null,1,110,"Finance and Admin","Asset Management",null,null,"_","_","_",null,"_",0,0,0,0,0,0,0,0,0,0,0,0,0,0,0,0,0,0,0,{"$f":"INDEX([9]Sheet1!$H:$H,MATCH(CR:CR,[9]Sheet1!$AU:$AU,0))","v":{"$error":"#N/A"}}]
["C0040-8/IA01952/F0791/X047/R0072/001/TECH",2632,"C0040-8/IA01952/F0791/X047/R0072/001/TECH",52344,"Assets:Non-current Assets:Construction Work-in-progress:Acquisitions:Outsourced"," _"," _"," _ "," _ "," _ "," _ ",1200,"Finance and administration",1202,"Asset Management","CE",2010,"National Government","C","IA",240," Property, plant and equipment",240,"Property, plant and equipment"," _ "," _ "," _ "," _ "," _ "," _ "," _ "," _ "," _ "," _ "," _ "," _ ",241,"PPE at cost/valuation (excl. finance leases)",241,"PPE at cost/valuation (excl. finance leases)","",null,null,120,"Roads",120,"Roads"," _ "," _ "," _ "," _ "," _ "," _ "," _ "," _ ","_"," _ "," _ "," _ "," _ ","_"," _ "," _ "," _ "," _ ",null,1,110,"Finance and Admin","Asset Management",null,null,"_","_","_",110,"_",0,0,0,0,0,0,0,0,0,0,0,0,0,0,0,0,0,0,0,{"$f":"INDEX([9]Sheet1!$H:$H,MATCH(CR:CR,[9]Sheet1!$AU:$AU,0))","v":{"$error":"#N/A"}}]
["C0057-1/IA06343/F0002/X049/R2853/001/FIN",4950,"C0057-1/IA06343/F0002/X049/R2853/001/FIN",53118,"Assets:Non-current Assets:Property, Plant and Equipment:Cost Model:Water Supply Infrastructure:Boreholes:Accumulated Depreciation:Depreciation"," _"," _"," _ "," _ "," _ "," _ ",1200,"Finance and administration",1204,"Finance","_",2080,"Internally generated funds","C","IA",240," Property, plant and equipment",240,"Property, plant and equipment"," _ "," _ "," _ "," _ "," _ "," _ "," _ "," _ ",300,"Water Supply Infrastructure",300,"Water Supply Infrastructure",243,"Less: Accumulated depreciation",243,"Less: Accumulated depreciation","",null,null,320,"Boreholes",320,"Boreholes"," _ "," _ "," _ "," _ "," _ "," _ "," _ "," _ ","_"," _ "," _ "," _ "," _ ","_"," _ "," _ "," _ "," _ ",null,1,12,"Finance and Admin","Finance",null,null,"_","_","_",null,"_",0,0,0,0,0,0,0,0,0,0,0,0,0,0,0,0,0,0,0,{"$f":"INDEX([9]Sheet1!$H:$H,MATCH(CR:CR,[9]Sheet1!$AU:$AU,0))","v":{"$error":"#N/A"}}]
["C0072-6/IA01365/F0002/X050/R0072/001/COMM",15573,"C0072-6/IA01365/F0002/X050/R0072/001/COMM",63429,"Assets:Non-current Assets:Property, Plant and Equipment:Cost Model:Transport Assets:Owned and In-use:Accumulated Impairment:Impairment"," _"," _"," _ "," _ "," _ "," _ ",1200,"Finance and administration",1205,"Fleet Management","_",2080,"Internally generated funds","C","IA","_","_","_","_"," _ "," _ "," _ "," _ "," _ "," _ "," _ "," _ ",1530,"Transport Assets",1530,"Transport Assets",241,"PPE at cost/valuation (excl. finance leases)",241,"PPE at cost/valuation (excl. finance leases)","",null,null," _ "," _ "," _ "," _ ",1530,"Transport Assets",1530,"Transport Assets"," _ "," _ "," _ "," _ ","_"," _ "," _ "," _ "," _ ","_"," _ "," _ "," _ "," _ ",null,1,13,"Finance and Admin","Fleet Management",null,null,"_","_","_",null,"_",0,0,0,0,0,0,0,0,0,0,0,0,0,0,0,0,0,0,0,{"$f":"INDEX([9]Sheet1!$H:$H,MATCH(CR:CR,[9]Sheet1!$AU:$AU,0))","v":{"$error":"#N/A"}}]
["C0086-1/IA05101/F0002/X060/R0072/001/FIN",2873,"C0086-1/IA05101/F0002/X060/R0072/001/FIN",52588,"Assets:Non-current Assets:Intangible Assets:Cost:Other:In-use:Computer Software:Acquisitions"," _"," _"," _ "," _ "," _ "," _ ",1200,"Finance and administration",1202,"Asset Management","CE",2080,"Internally generated funds","C","IA",270," Intangible",270,"Intangible"," _ "," _ "," _ "," _ "," _ "," _ "," _ "," _ ",1370,"Intangible Assets",1370,"Intangible Assets"," _ "," _ "," _ "," _ ","",null,null,1430,"Computer Software and Applications",1430,"Computer Software and Applications"," _ "," _ "," _ "," _ "," _ "," _ "," _ "," _ ","_"," _ "," _ "," _ "," _ ","_"," _ "," _ "," _ "," _ ",null,1,110,"Finance and Admin","Asset Management",null,null,"_","_","_",null,"_",0,0,0,0,0,0,0,0,0,0,0,0,0,0,0,0,0,0,0,{"$f":"INDEX([9]Sheet1!$H:$H,MATCH(CR:CR,[9]Sheet1!$AU:$AU,0))","v":{"$error":"#N/A"}}]
["C0100-1/IA07286/F0002/X035/R0073/001/FIN",5222,"C0100-1/IA07286/F0002/X035/R0073/001/FIN",53284,"Assets:Non-current Assets:Property, Plant and Equipment:Cost Model:Electrical Infrastructure:In-use:LV Networks:Cost:Opening Balance"," _"," _"," _ "," _ "," _ "," _ ",4100,"Energy sources",4101,"Electricity ","_",2080,"Internally generated funds","C","IA",240," Property, plant and equipment",240,"Property, plant and equipment"," _ "," _ "," _ "," _ "," _ "," _ "," _ "," _ ",200,"Electrical Infrastructure",200,"Electrical Infrastructure",241,"PPE at cost/valuation (excl. finance leases)",241,"PPE at cost/valuation (excl. finance leases)","",null,null," _ "," _ "," _ "," _ ",270,"MV Networks",270,"MV Networks"," _ "," _ "," _ "," _ ","_"," _ "," _ "," _ "," _ ","_"," _ "," _ "," _ "," _ ",null,6,61,"Energy Sources","Electricity",null,null,"_","_","_",null,"_",0,0,0,0,0,0,0,0,0,0,0,0,0,0,0,0,0,0,0,{"$f":"INDEX([9]Sheet1!$H:$H,MATCH(CR:CR,[9]Sheet1!$AU:$AU,0))","v":{"$error":"#N/A"}}]
["C0102-1/IA07270/F0002/X035/R0072/001/Tech",5226,"C0102-1/IA07270/F0002/X035/R0072/001/Tech",53288,"Assets:Non-current Assets:Property, Plant and Equipment:Cost Model:Electrical Infrastructure:In-use:LV Networks:Accumulated Depreciation:Depreciation"," _"," _"," _ "," _ "," _ "," _ ",4100,"Energy sources",4101,"Electricity ","_",2080,"Internally generated funds","C","IA",240," Property, plant and equipment",240,"Property, plant and equipment"," _ "," _ "," _ "," _ "," _ "," _ "," _ "," _ ",200,"Electrical Infrastructure",200,"Electrical Infrastructure",243,"Less: Accumulated depreciation",243,"Less: Accumulated depreciation","",null,null," _ "," _ "," _ "," _ ",260,"MV Switching Stations",260,"MV Switching Stations"," _ "," _ "," _ "," _ ","_"," _ "," _ "," _ "," _ ","_"," _ "," _ "," _ "," _ ",null,6,61,"Energy Sources","Electricity",null,null,"_","_","_",null,"_",0,0,0,0,0,0,0,0,0,0,0,0,0,0,0,0,0,0,0,{"$f":"INDEX([9]Sheet1!$H:$H,MATCH(CR:CR,[9]Sheet1!$AU:$AU,0))","v":{"$error":"#N/A"}}]
["C0102-1/IA07278/F0002/X035/R0073/001/Tech",5227,"C0102-1/IA07278/F0002/X035/R0073/001/Tech",53289,"Assets:Non-current Assets:Property, Plant and Equipment:Cost Model:Electrical Infrastructure:In-use:LV Networks:Accumulated Impairment:Impairment"," _"," _"," _ "," _ "," _ "," _ ",4100,"Energy sources",4101,"Electricity ","_",2080,"Internally generated funds","C","IA","_","_","_","_"," _ "," _ "," _ "," _ "," _ "," _ "," _ "," _ ",200,"Electrical Infrastructure",200,"Electrical Infrastructure",241,"PPE at cost/valuation (excl. finance leases)",241,"PPE at cost/valuation (excl. finance leases)","",null,null," _ "," _ "," _ "," _ ",260,"MV Switching Stations",260,"MV Switching Stations"," _ "," _ "," _ "," _ ","_"," _ "," _ "," _ "," _ ","_"," _ "," _ "," _ "," _ ",null,6,61,"Energy Sources","Electricity",null,null,"_","_","_",null,"_",0,0,0,0,0,0,0,0,0,0,0,0,0,0,0,0,0,0,0,{"$f":"INDEX([9]Sheet1!$H:$H,MATCH(CR:CR,[9]Sheet1!$AU:$AU,0))","v":{"$error":"#N/A"}}]
["C0068-1/IA00122/F0002/X049/R0072/001/COMM",4897,"C0068-1/IA00122/F0002/X049/R0072/001/COMM",53045,"Assets:Non-current Assets:Property, Plant and Equipment:Cost Model:Roads Infrastructure:Accumulated Depreciation:Depreciation"," _"," _"," _ "," _ "," _ "," _ ",1200,"Finance and administration",1204,"Finance","_",2080,"Internally generated funds","C","IA",240," Property, plant and equipment",240,"Property, plant and equipment"," _ "," _ "," _ "," _ "," _ "," _ "," _ "," _ ",110,"Roads Infrastructure",110,"Roads Infrastructure",243,"Less: Accumulated depreciation",243,"Less: Accumulated depreciation","",null,null," _ "," _ "," _ "," _ ",1470,"Computer Equipment",1470,"Computer Equipment"," _ "," _ "," _ "," _ ","_"," _ "," _ "," _ "," _ ","_"," _ "," _ "," _ "," _ ",null,1,12,"Finance and Admin","Finance",null,null,"_","_","_",null,"_",0,0,0,0,0,0,0,0,0,0,0,0,0,0,0,0,0,0,0,{"$f":"INDEX([9]Sheet1!$H:$H,MATCH(CR:CR,[9]Sheet1!$AU:$AU,0))","v":{"$error":"#N/A"}}]
["C0068-1/IA06183/F0002/X049/R0072/001/COMM",4899,"C0068-1/IA06183/F0002/X049/R0072/001/COMM",53051,"Assets:Non-current Assets:Property, Plant and Equipment:Cost Model:Computer Equipment:In-use:Accumulated Depreciation:Depreciation"," _"," _"," _ "," _ "," _ "," _ ",1200,"Finance and administration",1204,"Finance","_",2080,"Internally generated funds","C","IA",240," Property, plant and equipment",240,"Property, plant and equipment"," _ "," _ "," _ "," _ "," _ "," _ "," _ "," _ ",1470,"Computer Equipment",1470,"Computer Equipment",243,"Less: Accumulated depreciation",243,"Less: Accumulated depreciation","",null,null," _ "," _ "," _ "," _ ",1470,"Computer Equipment",1470,"Computer Equipment"," _ "," _ "," _ "," _ ","_"," _ "," _ "," _ "," _ ","_"," _ "," _ "," _ "," _ ",null,1,12,"Finance and Admin","Finance",null,null,"_","_","_",null,"_",0,0,0,0,0,0,0,0,0,0,0,0,0,0,0,0,0,0,0,{"$f":"INDEX([9]Sheet1!$H:$H,MATCH(CR:CR,[9]Sheet1!$AU:$AU,0))","v":{"$error":"#N/A"}}]
["C0068-2/IA06183/F0002/X047/R0072/001/COMM",5159,"C0068-2/IA06183/F0002/X047/R0072/001/COMM",53220,"Assets:Non-current Assets:Property, Plant and Equipment:Cost Model:Computer Equipment:In-use:Accumulated Depreciation:Depreciation"," _"," _"," _ "," _ "," _ "," _ ",1200,"Finance and administration",1202,"Asset Management","_",2080,"Internally generated funds","C","IA",240," Property, plant and equipment",240,"Property, plant and equipment"," _ "," _ "," _ "," _ "," _ "," _ "," _ "," _ ",1470,"Computer Equipment",1470,"Computer Equipment",243,"Less: Accumulated depreciation",243,"Less: Accumulated depreciation","",null,null," _ "," _ "," _ "," _ ",1470,"Computer Equipment",1470,"Computer Equipment"," _ "," _ "," _ "," _ ","_"," _ "," _ "," _ "," _ ","_"," _ "," _ "," _ "," _ ",null,1,110,"Finance and Admin","Asset Management",null,null,"_","_","_",null,"_",0,0,0,0,0,0,0,0,0,0,0,0,0,0,0,0,0,0,0,{"$f":"INDEX([9]Sheet1!$H:$H,MATCH(CR:CR,[9]Sheet1!$AU:$AU,0))","v":{"$error":"#N/A"}}]
["C0069-1/IA06183/F0002/X049/R0072/001/COMM",4906,"C0069-1/IA06183/F0002/X049/R0072/001/COMM",53058,"Assets:Non-current Assets:Property, Plant and Equipment:Cost Model:Computer Equipment:In-use:Accumulated Depreciation:Depreciation"," _"," _"," _ "," _ "," _ "," _ ",1200,"Finance and administration",1204,"Finance","_",2080,"Internally generated funds","C","IA",240," Property, plant and equipment",240,"Property, plant and equipment"," _ "," _ "," _ "," _ "," _ "," _ "," _ "," _ ",1470,"Computer Equipment",1470,"Computer Equipment",243,"Less: Accumulated depreciation",243,"Less: Accumulated depreciation","",null,null," _ "," _ "," _ "," _ ",1490,"Furniture and Office Equipment",1490,"Furniture and Office Equipment"," _ "," _ "," _ "," _ ","_"," _ "," _ "," _ "," _ ","_"," _ "," _ "," _ "," _ ",null,1,12,"Finance and Admin","Finance",null,null,"_","_","_",null,"_",0,0,0,0,0,0,0,0,0,0,0,0,0,0,0,0,0,0,0,{"$f":"INDEX([9]Sheet1!$H:$H,MATCH(CR:CR,[9]Sheet1!$AU:$AU,0))","v":{"$error":"#N/A"}}]
["C0069-1/IA06303/F0002/X049/R2853/001/COMM",4905,"C0069-1/IA06303/F0002/X049/R2853/001/COMM",53057,"Assets:Non-current Assets:Property, Plant and Equipment:Cost Model:Machinery and Equipment:In-use:Accumulated Depreciation:Depreciation"," _"," _"," _ "," _ "," _ "," _ ",1200,"Finance and administration",1204,"Finance","_",2080,"Internally generated funds","C","IA",240," Property, plant and equipment",240,"Property, plant and equipment"," _ "," _ "," _ "," _ "," _ "," _ "," _ "," _ ",1510,"Machinery and Equipment",1510,"Machinery and Equipment",243,"Less: Accumulated depreciation",243,"Less: Accumulated depreciation","",null,null," _ "," _ "," _ "," _ ",1490,"Furniture and Office Equipment",1490,"Furniture and Office Equipment"," _ "," _ "," _ "," _ ","_"," _ "," _ "," _ "," _ ","_"," _ "," _ "," _ "," _ ",null,1,12,"Finance and Admin","Finance",null,null,"_","_","_",null,"_",0,0,0,0,0,0,0,0,0,0,0,0,0,0,0,0,0,0,0,{"$f":"INDEX([9]Sheet1!$H:$H,MATCH(CR:CR,[9]Sheet1!$AU:$AU,0))","v":{"$error":"#N/A"}}]
["C0068-1/IA06303/F0002/X049/R2853/001/COMM",4894,"C0068-1/IA06303/F0002/X049/R2853/001/COMM",53049,"Assets:Non-current Assets:Property, Plant and Equipment:Cost Model:Machinery and Equipment:In-use:Accumulated Depreciation:Depreciation"," _"," _"," _ "," _ "," _ "," _ ",1200,"Finance and administration",1204,"Finance","_",2080,"Internally generated funds","C","IA",240," Property, plant and equipment",240,"Property, plant and equipment"," _ "," _ "," _ "," _ "," _ "," _ "," _ "," _ ",1510,"Machinery and Equipment",1510,"Machinery and Equipment",243,"Less: Accumulated depreciation",243,"Less: Accumulated depreciation","",null,null," _ "," _ "," _ "," _ ",1470,"Computer Equipment",1470,"Computer Equipment"," _ "," _ "," _ "," _ ","_"," _ "," _ "," _ "," _ ","_"," _ "," _ "," _ "," _ ",null,1,12,"Finance and Admin","Finance",null,null,"_","_","_",null,"_",0,0,0,0,0,0,0,0,0,0,0,0,0,0,0,0,0,0,0,{"$f":"INDEX([9]Sheet1!$H:$H,MATCH(CR:CR,[9]Sheet1!$AU:$AU,0))","v":{"$error":"#N/A"}}]
["C0068-1/IA06343/F0002/X049/R2853/001/COMM",4896,"C0068-1/IA06343/F0002/X049/R2853/001/COMM",53048,"Assets:Non-current Assets:Property, Plant and Equipment:Cost Model:Water Supply Infrastructure:Boreholes:Accumulated Depreciation:Depreciation"," _"," _"," _ "," _ "," _ "," _ ",1200,"Finance and administration",1204,"Finance","_",2080,"Internally generated funds","C","IA",240," Property, plant and equipment",240,"Property, plant and equipment"," _ "," _ "," _ "," _ "," _ "," _ "," _ "," _ ",300,"Water Supply Infrastructure",300,"Water Supply Infrastructure",243,"Less: Accumulated depreciation",243,"Less: Accumulated depreciation","",null,null," _ "," _ "," _ "," _ ",1470,"Computer Equipment",1470,"Computer Equipment"," _ "," _ "," _ "," _ ","_"," _ "," _ "," _ "," _ ","_"," _ "," _ "," _ "," _ ",null,1,12,"Finance and Admin","Finance",null,null,"_","_","_",null,"_",0,0,0,0,0,0,0,0,0,0,0,0,0,0,0,0,0,0,0,{"$f":"INDEX([9]Sheet1!$H:$H,MATCH(CR:CR,[9]Sheet1!$AU:$AU,0))","v":{"$error":"#N/A"}}]
["C0068-12/IA06193/F0002/X153/R2864/001/FIN",null,"C0068-12/IA06193/F0002/X153/R2864/001/FIN",85129,"Assets:Non-current Assets:Property, Plant and Equipment:Cost Model:Computer Equipment:In-use:Cost:Acquisitions"," _"," _"," _ "," _ "," _ "," _ ",2300,"Public safety",2307,"Police Forces, Traffic and Street Parking Control","CE",2080,"Internally generated funds","C","IA",240," Property, plant and equipment",240,"Property, plant and equipment"," _ "," _ "," _ "," _ "," _ "," _ "," _ "," _ ",1470,"Computer Equipment",1470,"Computer Equipment",241,"PPE at cost/valuation (excl. finance leases)",241,"PPE at cost/valuation (excl. finance leases)","",null,null," _ "," _ "," _ "," _ ",1470,"Computer Equipment",1470,"Computer Equipment"," _ "," _ "," _ "," _ ","_"," _ "," _ "," _ "," _ ","_"," _ "," _ "," _ "," _ ",null,8,81,"Public Safety","Police Forces, Traffic and Street Parking Control",null,null,"_","_","_",null,"_",0,0,0,0,0,0,0,0,0,0,0,0,0,0,0,0,0,0,0,{"$f":"INDEX([9]Sheet1!$H:$H,MATCH(CR:CR,[9]Sheet1!$AU:$AU,0))","v":{"$error":"#N/A"}}]
["C0068-2/IA06191/F0002/X047/R0072/001/COMM",5160,"C0068-2/IA06191/F0002/X047/R0072/001/COMM",53221,"Assets:Non-current Assets:Property, Plant and Equipment:Cost Model:Computer Equipment:In-use:Accumulated Impairment:Impairment"," _"," _"," _ "," _ "," _ "," _ ",1200,"Finance and administration",1202,"Asset Management","_",2080,"Internally generated funds","C","IA","_","_","_","_"," _ "," _ "," _ "," _ "," _ "," _ "," _ "," _ ",1470,"Computer Equipment",1470,"Computer Equipment",241,"PPE at cost/valuation (excl. finance leases)",241,"PPE at cost/valuation (excl. finance leases)","",null,null," _ "," _ "," _ "," _ ",1470,"Computer Equipment",1470,"Computer Equipment"," _ "," _ "," _ "," _ ","_"," _ "," _ "," _ "," _ ","_"," _ "," _ "," _ "," _ ",null,1,110,"Finance and Admin","Asset Management",null,null,"_","_","_",null,"_",0,0,0,0,0,0,0,0,0,0,0,0,0,0,0,0,0,0,0,{"$f":"INDEX([9]Sheet1!$H:$H,MATCH(CR:CR,[9]Sheet1!$AU:$AU,0))","v":{"$error":"#N/A"}}]
["C0068-4/IA06193/F0002/X046/R0072/001/CORP",15630,"C0068-4/IA06193/F0002/X046/R0072/001/CORP",63401,"Assets:Non-current Assets:Property, Plant and Equipment:Cost Model:Computer Equipment:In-use:Cost:Acquisitions"," _"," _"," _ "," _ "," _ "," _ ",1200,"Finance and administration",1201,"Administrative and Corporate Support","CE",2080,"Internally generated funds","C","IA",240," Property, plant and equipment",240,"Property, plant and equipment"," _ "," _ "," _ "," _ "," _ "," _ "," _ "," _ ",1470,"Computer Equipment",1470,"Computer Equipment",241,"PPE at cost/valuation (excl. finance leases)",241,"PPE at cost/valuation (excl. finance leases)","",null,null," _ "," _ "," _ "," _ ",1470,"Computer Equipment",1470,"Computer Equipment"," _ "," _ "," _ "," _ ","_"," _ "," _ "," _ "," _ ","_"," _ "," _ "," _ "," _ ",null,1,17,"Finance and Admin","Administrative and Corporate Support",null,null,"_","_","_",null,"_",0,0,0,0,0,0,0,0,0,0,0,0,0,0,0,0,0,0,0,{"$f":"INDEX([9]Sheet1!$H:$H,MATCH(CR:CR,[9]Sheet1!$AU:$AU,0))","v":{"$error":"#N/A"}}]
["C0104-1/IA00050/F0002/X052/R0073/001/FIN",5242,"C0104-1/IA00050/F0002/X052/R0073/001/FIN",53303,"Assets:Non-current Assets:Property, Plant and Equipment:Cost Model:Information and Communication Infrastructure:Accumulated Impairment:Impairment"," _"," _"," _ "," _ "," _ "," _ ",1200,"Finance and administration",1207,"Information Technology","_",2080,"Internally generated funds","C","IA","_","_","_","_"," _ "," _ "," _ "," _ "," _ "," _ "," _ "," _ ",720,"Information and Communication Infrastructure",720,"Information and Communication Infrastructure",241,"PPE at cost/valuation (excl. finance leases)",241,"PPE at cost/valuation (excl. finance leases)","",null,null," _ "," _ "," _ "," _ ",760,"Capital Spares",760,"Capital Spares"," _ "," _ "," _ "," _ ","_"," _ "," _ "," _ "," _ ","_"," _ "," _ "," _ "," _ ",null,1,15,"Finance and Admin","Information Technology",null,null,"_","_","_",null,"_",0,0,0,0,0,0,0,0,0,0,0,0,0,0,0,0,0,0,0,{"$f":"INDEX([9]Sheet1!$H:$H,MATCH(CR:CR,[9]Sheet1!$AU:$AU,0))","v":{"$error":"#N/A"}}]
["C0104-1/IA00052/F0791/X052/R0073/001/FIN",5239,"C0104-1/IA00052/F0791/X052/R0073/001/FIN",53300,"Assets:Non-current Assets:Property, Plant and Equipment:Cost Model:Information and Communication Infrastructure:Cost:Acquisitions"," _"," _"," _ "," _ "," _ "," _ ",1200,"Finance and administration",1207,"Information Technology","CE",2010,"National Government","C","IA",240," Property, plant and equipment",240,"Property, plant and equipment"," _ "," _ "," _ "," _ "," _ "," _ "," _ "," _ ",720,"Information and Communication Infrastructure",720,"Information and Communication Infrastructure",241,"PPE at cost/valuation (excl. finance leases)",241,"PPE at cost/valuation (excl. finance leases)","",null,null," _ "," _ "," _ "," _ ",760,"Capital Spares",760,"Capital Spares"," _ "," _ "," _ "," _ ","_"," _ "," _ "," _ "," _ ","_"," _ "," _ "," _ "," _ ",null,1,15,"Finance and Admin","Information Technology",null,null,"_","_","_",null,"_",0,0,0,0,0,0,0,0,0,0,0,0,0,0,0,0,0,0,0,{"$f":"INDEX([9]Sheet1!$H:$H,MATCH(CR:CR,[9]Sheet1!$AU:$AU,0))","v":{"$error":"#N/A"}}]
["C0106-1/IA00042/F0002/X052/R0073/001/FIN",5241,"C0106-1/IA00042/F0002/X052/R0073/001/FIN",53302,"Assets:Non-current Assets:Property, Plant and Equipment:Cost Model:Information and Communication Infrastructure:Accumulated Depreciation:Depreciation"," _"," _"," _ "," _ "," _ "," _ ",1200,"Finance and administration",1207,"Information Technology","_",2080,"Internally generated funds","C","IA",240," Property, plant and equipment",240,"Property, plant and equipment"," _ "," _ "," _ "," _ "," _ "," _ "," _ "," _ ",720,"Information and Communication Infrastructure",720,"Information and Communication Infrastructure",243,"Less: Accumulated depreciation",243,"Less: Accumulated depreciation","",null,null," _ "," _ "," _ "," _ ",730,"Data Centres",730,"Data Centres"," _ "," _ "," _ "," _ ","_"," _ "," _ "," _ "," _ ","_"," _ "," _ "," _ "," _ ",null,1,15,"Finance and Admin","Information Technology",null,null,"_","_","_",null,"_",0,0,0,0,0,0,0,0,0,0,0,0,0,0,0,0,0,0,0,{"$f":"INDEX([9]Sheet1!$H:$H,MATCH(CR:CR,[9]Sheet1!$AU:$AU,0))","v":{"$error":"#N/A"}}]
["C0106-1/IA00050/F0002/X052/R0073/001/FIN",5240,"C0106-1/IA00050/F0002/X052/R0073/001/FIN",53301,"Assets:Non-current Assets:Property, Plant and Equipment:Cost Model:Information and Communication Infrastructure:Accumulated Impairment:Impairment"," _"," _"," _ "," _ "," _ "," _ ",1200,"Finance and administration",1207,"Information Technology","_",2080,"Internally generated funds","C","IA","_","_","_","_"," _ "," _ "," _ "," _ "," _ "," _ "," _ "," _ ",720,"Information and Communication Infrastructure",720,"Information and Communication Infrastructure",241,"PPE at cost/valuation (excl. finance leases)",241,"PPE at cost/valuation (excl. finance leases)","",null,null," _ "," _ "," _ "," _ ",730,"Data Centres",730,"Data Centres"," _ "," _ "," _ "," _ ","_"," _ "," _ "," _ "," _ ","_"," _ "," _ "," _ "," _ ",null,1,15,"Finance and Admin","Information Technology",null,null,"_","_","_",null,"_",0,0,0,0,0,0,0,0,0,0,0,0,0,0,0,0,0,0,0,{"$f":"INDEX([9]Sheet1!$H:$H,MATCH(CR:CR,[9]Sheet1!$AU:$AU,0))","v":{"$error":"#N/A"}}]
["C0107-1/IA00050/F0002/X052/R0073/001/FIN",5244,"C0107-1/IA00050/F0002/X052/R0073/001/FIN",53305,"Assets:Non-current Assets:Property, Plant and Equipment:Cost Model:Information and Communication Infrastructure:Accumulated Impairment:Impairment"," _"," _"," _ "," _ "," _ "," _ ",1200,"Finance and administration",1207,"Information Technology","_",2080,"Internally generated funds","C","IA","_","_","_","_"," _ "," _ "," _ "," _ "," _ "," _ "," _ "," _ ",720,"Information and Communication Infrastructure",720,"Information and Communication Infrastructure",241,"PPE at cost/valuation (excl. finance leases)",241,"PPE at cost/valuation (excl. finance leases)","",null,null," _ "," _ "," _ "," _ ",750,"Distribution Layers",750,"Distribution Layers"," _ "," _ "," _ "," _ ","_"," _ "," _ "," _ "," _ ","_"," _ "," _ "," _ "," _ ",null,1,15,"Finance and Admin","Information Technology",null,null,"_","_","_",null,"_",0,0,0,0,0,0,0,0,0,0,0,0,0,0,0,0,0,0,0,{"$f":"INDEX([9]Sheet1!$H:$H,MATCH(CR:CR,[9]Sheet1!$AU:$AU,0))","v":{"$error":"#N/A"}}]
["C0104-1/IA00042/F0002/X052/R0073/001/FIN",5236,"C0104-1/IA00042/F0002/X052/R0073/001/FIN",53297,"Assets:Non-current Assets:Property, Plant and Equipment:Cost Model:Information and Communication Infrastructure:Accumulated Depreciation:Depreciation"," _"," _"," _ "," _ "," _ "," _ ",1200,"Finance and administration",1207,"Information Technology","_",2080,"Internally generated funds","C","IA",240," Property, plant and equipment",240,"Property, plant and equipment"," _ "," _ "," _ "," _ "," _ "," _ "," _ "," _ ",720,"Information and Communication Infrastructure",720,"Information and Communication Infrastructure",243,"Less: Accumulated depreciation",243,"Less: Accumulated depreciation","",null,null," _ "," _ "," _ "," _ ",760,"Capital Spares",760,"Capital Spares"," _ "," _ "," _ "," _ ","_"," _ "," _ "," _ "," _ ","_"," _ "," _ "," _ "," _ ",null,1,15,"Finance and Admin","Information Technology",null,null,"_","_","_",null,"_",0,0,0,0,0,0,0,0,0,0,0,0,0,0,0,0,0,0,0,{"$f":"INDEX([9]Sheet1!$H:$H,MATCH(CR:CR,[9]Sheet1!$AU:$AU,0))","v":{"$error":"#N/A"}}]
["C0106-1/IA00052/F0791/X052/R0073/001/FIN",5246,"C0106-1/IA00052/F0791/X052/R0073/001/FIN",53307,"Assets:Non-current Assets:Property, Plant and Equipment:Cost Model:Information and Communication Infrastructure:Cost:Acquisitions"," _"," _"," _ "," _ "," _ "," _ ",1200,"Finance and administration",1207,"Information Technology","CE",2010,"National Government","C","IA",240," Property, plant and equipment",240,"Property, plant and equipment"," _ "," _ "," _ "," _ "," _ "," _ "," _ "," _ ",720,"Information and Communication Infrastructure",720,"Information and Communication Infrastructure",241,"PPE at cost/valuation (excl. finance leases)",241,"PPE at cost/valuation (excl. finance leases)","",null,null," _ "," _ "," _ "," _ ",730,"Data Centres",730,"Data Centres"," _ "," _ "," _ "," _ ","_"," _ "," _ "," _ "," _ ","_"," _ "," _ "," _ "," _ ",null,1,15,"Finance and Admin","Information Technology",null,null,"_","_","_",null,"_",0,0,0,0,0,0,0,0,0,0,0,0,0,0,0,0,0,0,0,{"$f":"INDEX([9]Sheet1!$H:$H,MATCH(CR:CR,[9]Sheet1!$AU:$AU,0))","v":{"$error":"#N/A"}}]
["C0118-1/IA00132/F0791/X116/R0072/001/TECH",5249,"C0118-1/IA00132/F0791/X116/R0072/001/TECH",53310,"Assets:Non-current Assets:Property, Plant and Equipment:Cost Model:Roads Infrastructure:Cost:Acquisitions"," _"," _"," _ "," _ "," _ "," _ ",3200,"Road transport",3205,"Roads","CE",2010,"National Government","C","IA",240," Property, plant and equipment",240,"Property, plant and equipment"," _ "," _ "," _ "," _ "," _ "," _ "," _ "," _ ",110,"Roads Infrastructure",110,"Roads Infrastructure",241,"PPE at cost/valuation (excl. finance leases)",241,"PPE at cost/valuation (excl. finance leases)","",null,null," _ "," _ "," _ "," _ ",140,"Road Furniture",140,"Road Furniture"," _ "," _ "," _ "," _ ","_"," _ "," _ "," _ "," _ ","_"," _ "," _ "," _ "," _ ",null,9,91,"Roads","Roads",null,null,"_","_","_",null,"_",0,0,0,0,0,0,0,0,0,0,0,0,0,0,0,0,0,0,0,{"$f":"INDEX([9]Sheet1!$H:$H,MATCH(CR:CR,[9]Sheet1!$AU:$AU,0))","v":{"$error":"#N/A"}}]
["C0119-12/IA00130/F0002/X116/R0072/001/Tech",15648,"C0119-12/IA00130/F0002/X116/R0072/001/Tech",63522,"Assets:Non-current Assets:Property, Plant and Equipment:Cost Model:Roads Infrastructure:Accumulated Impairment:Impairment"," _"," _"," _ "," _ "," _ "," _ ",3200,"Road transport",3205,"Roads","_",2080,"Internally generated funds","C","IA","_","_","_","_"," _ "," _ "," _ "," _ "," _ "," _ "," _ "," _ ",110,"Roads Infrastructure",110,"Roads Infrastructure",241,"PPE at cost/valuation (excl. finance leases)",241,"PPE at cost/valuation (excl. finance leases)","",null,null," _ "," _ "," _ "," _ ",130,"Road Structures",130,"Road Structures"," _ "," _ "," _ "," _ ","_"," _ "," _ "," _ "," _ ","_"," _ "," _ "," _ "," _ ",null,9,91,"Roads","Roads",null,null,"_","_","_",null,"_",0,0,0,0,0,0,0,0,0,0,0,0,0,0,0,0,0,0,0,{"$f":"INDEX([9]Sheet1!$H:$H,MATCH(CR:CR,[9]Sheet1!$AU:$AU,0))","v":{"$error":"#N/A"}}]
["C0119-2/IA00132/F0002/X116/R0072/001/TECH",15635,"C0119-2/IA00132/F0002/X116/R0072/001/TECH",63526,"Assets:Non-current Assets:Property, Plant and Equipment:Cost Model:Roads Infrastructure:Cost:Acquisitions"," _"," _"," _ "," _ "," _ "," _ ",3200,"Road transport",3205,"Roads","CE",2080,"Internally generated funds","C","IA",240," Property, plant and equipment",240,"Property, plant and equipment"," _ "," _ "," _ "," _ "," _ "," _ "," _ "," _ ",110,"Roads Infrastructure",110,"Roads Infrastructure",241,"PPE at cost/valuation (excl. finance leases)",241,"PPE at cost/valuation (excl. finance leases)","",null,null," _ "," _ "," _ "," _ ",130,"Road Structures",130,"Road Structures"," _ "," _ "," _ "," _ ","_"," _ "," _ "," _ "," _ ","_"," _ "," _ "," _ "," _ ",null,9,91,"Roads","Roads",null,null,"_","_","_",null,"_",0,0,0,0,0,0,0,0,0,0,0,0,0,0,0,0,0,0,0,{"$f":"INDEX([9]Sheet1!$H:$H,MATCH(CR:CR,[9]Sheet1!$AU:$AU,0))","v":{"$error":"#N/A"}}]
["C0069-2/IA06243/F0002/X047/R0072/001/COMM",5156,"C0069-2/IA06243/F0002/X047/R0072/001/COMM",53217,"Assets:Non-current Assets:Property, Plant and Equipment:Cost Model:Furniture and Office Equipment:In-use:Accumulated Depreciation:Depreciation"," _"," _"," _ "," _ "," _ "," _ ",1200,"Finance and administration",1202,"Asset Management","_",2080,"Internally generated funds","C","IA",240," Property, plant and equipment",240,"Property, plant and equipment"," _ "," _ "," _ "," _ "," _ "," _ "," _ "," _ ",1490,"Furniture and Office Equipment",1490,"Furniture and Office Equipment",243,"Less: Accumulated depreciation",243,"Less: Accumulated depreciation","",null,null," _ "," _ "," _ "," _ ",1490,"Furniture and Office Equipment",1490,"Furniture and Office Equipment"," _ "," _ "," _ "," _ ","_"," _ "," _ "," _ "," _ ","_"," _ "," _ "," _ "," _ ",null,1,110,"Finance and Admin","Asset Management",null,null,"_","_","_",null,"_",0,0,0,0,0,0,0,0,0,0,0,0,0,0,0,0,0,0,0,{"$f":"INDEX([9]Sheet1!$H:$H,MATCH(CR:CR,[9]Sheet1!$AU:$AU,0))","v":{"$error":"#N/A"}}]
["C0069-2/IA06253/F0002/X047/R0072/001/FIN",5157,"C0069-2/IA06253/F0002/X047/R0072/001/FIN",53218,"Assets:Non-current Assets:Property, Plant and Equipment:Cost Model:Furniture and Office Equipment:In-use:Cost:Acquisitions"," _"," _"," _ "," _ "," _ "," _ ",1200,"Finance and administration",1202,"Asset Management","CE",2080,"Internally generated funds","C","IA",240," Property, plant and equipment",240,"Property, plant and equipment"," _ "," _ "," _ "," _ "," _ "," _ "," _ "," _ ",1490,"Furniture and Office Equipment",1490,"Furniture and Office Equipment",241,"PPE at cost/valuation (excl. finance leases)",241,"PPE at cost/valuation (excl. finance leases)","",null,null," _ "," _ "," _ "," _ ",1490,"Furniture and Office Equipment",1490,"Furniture and Office Equipment"," _ "," _ "," _ "," _ ","_"," _ "," _ "," _ "," _ ","_"," _ "," _ "," _ "," _ ",null,1,110,"Finance and Admin","Asset Management",null,null,"_","_","_",null,"_",0,0,0,0,0,0,0,0,0,0,0,0,0,0,0,0,0,0,0,{"$f":"INDEX([9]Sheet1!$H:$H,MATCH(CR:CR,[9]Sheet1!$AU:$AU,0))","v":{"$error":"#N/A"}}]
["C0071-1/IA00162/F0002/X049/R2853/001/COMM",4918,"C0071-1/IA00162/F0002/X049/R2853/001/COMM",53064,"Assets:Non-current Assets:Property, Plant and Equipment:Cost Model:Solid Waste Infrastructure:Accumulated Depreciation:Depreciation"," _"," _"," _ "," _ "," _ "," _ ",1200,"Finance and administration",1204,"Finance","_",2080,"Internally generated funds","C","IA",240," Property, plant and equipment",240,"Property, plant and equipment"," _ "," _ "," _ "," _ "," _ "," _ "," _ "," _ ",480,"Solid Waste Infrastructure",480,"Solid Waste Infrastructure",243,"Less: Accumulated depreciation",243,"Less: Accumulated depreciation","",null,null," _ "," _ "," _ "," _ ",1510,"Machinery and Equipment",1510,"Machinery and Equipment"," _ "," _ "," _ "," _ ","_"," _ "," _ "," _ "," _ ","_"," _ "," _ "," _ "," _ ",null,1,12,"Finance and Admin","Finance",null,null,"_","_","_",null,"_",0,0,0,0,0,0,0,0,0,0,0,0,0,0,0,0,0,0,0,{"$f":"INDEX([9]Sheet1!$H:$H,MATCH(CR:CR,[9]Sheet1!$AU:$AU,0))","v":{"$error":"#N/A"}}]
["C0071-1/IA06319/F0002/X101/R0073/001/COMM",18118,"C0071-1/IA06319/F0002/X101/R0073/001/COMM",85016,"Assets:Non-current Assets:Property, Plant and Equipment:Cost Model:Machinery and Equipment:In-use:Cost:Opening Balance"," _"," _"," _ "," _ "," _ "," _ ",3100,"Planning and development",3107,"Town Planning, Building Regulations and Enforcement, and City Engineer","_",2080,"Internally generated funds","C","IA",240," Property, plant and equipment",240,"Property, plant and equipment"," _ "," _ "," _ "," _ "," _ "," _ "," _ "," _ ",1510,"Machinery and Equipment",1510,"Machinery and Equipment",241,"PPE at cost/valuation (excl. finance leases)",241,"PPE at cost/valuation (excl. finance leases)","",null,null," _ "," _ "," _ "," _ ",1510,"Machinery and Equipment",1510,"Machinery and Equipment"," _ "," _ "," _ "," _ ","_"," _ "," _ "," _ "," _ ","_"," _ "," _ "," _ "," _ ",null,7,72,"Planning and Development","Town Planning, Building Regulations and Enforcement, and City Engineer",null,null,"_","_","_",null,"_",0,0,0,0,0,0,0,0,0,0,0,0,0,0,0,0,0,0,0,{"$f":"INDEX([9]Sheet1!$H:$H,MATCH(CR:CR,[9]Sheet1!$AU:$AU,0))","v":{"$error":"#N/A"}}]
["C0072-1/IA00162/F0002/X049/R2853/001/COMM",4927,"C0072-1/IA00162/F0002/X049/R2853/001/COMM",53071,"Assets:Non-current Assets:Property, Plant and Equipment:Cost Model:Solid Waste Infrastructure:Accumulated Depreciation:Depreciation"," _"," _"," _ "," _ "," _ "," _ ",1200,"Finance and administration",1204,"Finance","_",2080,"Internally generated funds","C","IA",240," Property, plant and equipment",240,"Property, plant and equipment"," _ "," _ "," _ "," _ "," _ "," _ "," _ "," _ ",480,"Solid Waste Infrastructure",480,"Solid Waste Infrastructure",243,"Less: Accumulated depreciation",243,"Less: Accumulated depreciation","",null,null," _ "," _ "," _ "," _ ",1530,"Transport Assets",1530,"Transport Assets"," _ "," _ "," _ "," _ ","_"," _ "," _ "," _ "," _ ","_"," _ "," _ "," _ "," _ ",null,1,12,"Finance and Admin","Finance",null,null,"_","_","_",null,"_",0,0,0,0,0,0,0,0,0,0,0,0,0,0,0,0,0,0,0,{"$f":"INDEX([9]Sheet1!$H:$H,MATCH(CR:CR,[9]Sheet1!$AU:$AU,0))","v":{"$error":"#N/A"}}]
["C0105-1/IA00050/F0002/X052/R0073/001/FIN",5235,"C0105-1/IA00050/F0002/X052/R0073/001/FIN",53296,"Assets:Non-current Assets:Property, Plant and Equipment:Cost Model:Information and Communication Infrastructure:Accumulated Impairment:Impairment"," _"," _"," _ "," _ "," _ "," _ ",1200,"Finance and administration",1207,"Information Technology","_",2080,"Internally generated funds","C","IA","_","_","_","_"," _ "," _ "," _ "," _ "," _ "," _ "," _ "," _ ",720,"Information and Communication Infrastructure",720,"Information and Communication Infrastructure",241,"PPE at cost/valuation (excl. finance leases)",241,"PPE at cost/valuation (excl. finance leases)","",null,null," _ "," _ "," _ "," _ ",740,"Core Layers",740,"Core Layers"," _ "," _ "," _ "," _ ","_"," _ "," _ "," _ "," _ ","_"," _ "," _ "," _ "," _ ",null,1,15,"Finance and Admin","Information Technology",null,null,"_","_","_",null,"_",0,0,0,0,0,0,0,0,0,0,0,0,0,0,0,0,0,0,0,{"$f":"INDEX([9]Sheet1!$H:$H,MATCH(CR:CR,[9]Sheet1!$AU:$AU,0))","v":{"$error":"#N/A"}}]
["C0119-11/IA00137/F0002/X116/R0072/001/TECH",15647,"C0119-11/IA00137/F0002/X116/R0072/001/TECH",63529,"Assets:Non-current Assets:Property, Plant and Equipment:Cost Model:Roads Infrastructure:Cost:Disposals"," _"," _"," _ "," _ "," _ "," _ ",3200,"Road transport",3205,"Roads","_",2080,"Internally generated funds","C","IA",240," Property, plant and equipment",240,"Property, plant and equipment"," _ "," _ "," _ "," _ "," _ "," _ "," _ "," _ ",110,"Roads Infrastructure",110,"Roads Infrastructure",241,"PPE at cost/valuation (excl. finance leases)",241,"PPE at cost/valuation (excl. finance leases)","",null,null," _ "," _ "," _ "," _ ",130,"Road Structures",130,"Road Structures"," _ "," _ "," _ "," _ ","_"," _ "," _ "," _ "," _ ","_"," _ "," _ "," _ "," _ ",null,9,91,"Roads","Roads",null,null,"_","_","_",null,"_",0,0,0,0,0,0,0,0,0,0,0,0,0,0,0,0,0,0,0,{"$f":"INDEX([9]Sheet1!$H:$H,MATCH(CR:CR,[9]Sheet1!$AU:$AU,0))","v":{"$error":"#N/A"}}]
["C0119-13/IA00122/F0002/X116/R0072/001/Tech",15649,"C0119-13/IA00122/F0002/X116/R0072/001/Tech",63521,"Assets:Non-current Assets:Property, Plant and Equipment:Cost Model:Roads Infrastructure:Accumulated Depreciation:Depreciation"," _"," _"," _ "," _ "," _ "," _ ",3200,"Road transport",3205,"Roads","_",2080,"Internally generated funds","C","IA",240," Property, plant and equipment",240,"Property, plant and equipment"," _ "," _ "," _ "," _ "," _ "," _ "," _ "," _ ",110,"Roads Infrastructure",110,"Roads Infrastructure",243,"Less: Accumulated depreciation",243,"Less: Accumulated depreciation","",null,null," _ "," _ "," _ "," _ ",130,"Road Structures",130,"Road Structures"," _ "," _ "," _ "," _ ","_"," _ "," _ "," _ "," _ ","_"," _ "," _ "," _ "," _ ",null,9,91,"Roads","Roads",null,null,"_","_","_",null,"_",0,0,0,0,0,0,0,0,0,0,0,0,0,0,0,0,0,0,0,{"$f":"INDEX([9]Sheet1!$H:$H,MATCH(CR:CR,[9]Sheet1!$AU:$AU,0))","v":{"$error":"#N/A"}}]
["C0119-6/IA00130/F0002/X116/R0072/001/Tech",15639,"C0119-6/IA00130/F0002/X116/R0072/001/Tech",63523,"Assets:Non-current Assets:Property, Plant and Equipment:Cost Model:Roads Infrastructure:Accumulated Impairment:Impairment"," _"," _"," _ "," _ "," _ "," _ ",3200,"Road transport",3205,"Roads","_",2080,"Internally generated funds","C","IA","_","_","_","_"," _ "," _ "," _ "," _ "," _ "," _ "," _ "," _ ",110,"Roads Infrastructure",110,"Roads Infrastructure",241,"PPE at cost/valuation (excl. finance leases)",241,"PPE at cost/valuation (excl. finance leases)","",null,null," _ "," _ "," _ "," _ ",130,"Road Structures",130,"Road Structures"," _ "," _ "," _ "," _ ","_"," _ "," _ "," _ "," _ ","_"," _ "," _ "," _ "," _ ",null,9,91,"Roads","Roads",null,null,"_","_","_",null,"_",0,0,0,0,0,0,0,0,0,0,0,0,0,0,0,0,0,0,0,{"$f":"INDEX([9]Sheet1!$H:$H,MATCH(CR:CR,[9]Sheet1!$AU:$AU,0))","v":{"$error":"#N/A"}}]
["C0119-8/IA00132/F0002/X116/R0072/001/TECH",15644,"C0119-8/IA00132/F0002/X116/R0072/001/TECH",63524,"Assets:Non-current Assets:Property, Plant and Equipment:Cost Model:Roads Infrastructure:Cost:Acquisitions"," _"," _"," _ "," _ "," _ "," _ ",3200,"Road transport",3205,"Roads","CE",2080,"Internally generated funds","C","IA",240," Property, plant and equipment",240,"Property, plant and equipment"," _ "," _ "," _ "," _ "," _ "," _ "," _ "," _ ",110,"Roads Infrastructure",110,"Roads Infrastructure",241,"PPE at cost/valuation (excl. finance leases)",241,"PPE at cost/valuation (excl. finance leases)","",null,null," _ "," _ "," _ "," _ ",130,"Road Structures",130,"Road Structures"," _ "," _ "," _ "," _ ","_"," _ "," _ "," _ "," _ ","_"," _ "," _ "," _ "," _ ",null,9,91,"Roads","Roads",null,null,"_","_","_",null,"_",0,0,0,0,0,0,0,0,0,0,0,0,0,0,0,0,0,0,0,{"$f":"INDEX([9]Sheet1!$H:$H,MATCH(CR:CR,[9]Sheet1!$AU:$AU,0))","v":{"$error":"#N/A"}}]
["C0068-8/IA06183/F0002/X046/R0072/001/COMM",15634,"C0068-8/IA06183/F0002/X046/R0072/001/COMM",63398,"Assets:Non-current Assets:Property, Plant and Equipment:Cost Model:Computer Equipment:In-use:Accumulated Depreciation:Depreciation"," _"," _"," _ "," _ "," _ "," _ ",1200,"Finance and administration",1201,"Administrative and Corporate Support","_",2080,"Internally generated funds","C","IA",240," Property, plant and equipment",240,"Property, plant and equipment"," _ "," _ "," _ "," _ "," _ "," _ "," _ "," _ ",1470,"Computer Equipment",1470,"Computer Equipment",243,"Less: Accumulated depreciation",243,"Less: Accumulated depreciation","",null,null," _ "," _ "," _ "," _ ",1470,"Computer Equipment",1470,"Computer Equipment"," _ "," _ "," _ "," _ ","_"," _ "," _ "," _ "," _ ","_"," _ "," _ "," _ "," _ ",null,1,17,"Finance and Admin","Administrative and Corporate Support",null,null,"_","_","_",null,"_",0,0,0,0,0,0,0,0,0,0,0,0,0,0,0,0,0,0,0,{"$f":"INDEX([9]Sheet1!$H:$H,MATCH(CR:CR,[9]Sheet1!$AU:$AU,0))","v":{"$error":"#N/A"}}]
["C0071-1/IA00022/F0002/X049/R0073/001/COMM",4919,"C0071-1/IA00022/F0002/X049/R0073/001/COMM",53066,"Assets:Non-current Assets:Property, Plant and Equipment:Cost Model:Community Assets:Accumulated Depreciation:Depreciation"," _"," _"," _ "," _ "," _ "," _ ",1200,"Finance and administration",1204,"Finance","_",2080,"Internally generated funds","C","IA",240," Property, plant and equipment",240,"Property, plant and equipment"," _ "," _ "," _ "," _ "," _ "," _ "," _ "," _ ",770,"Community Assets",770,"Community Assets",243,"Less: Accumulated depreciation",243,"Less: Accumulated depreciation","",null,null," _ "," _ "," _ "," _ ",1510,"Machinery and Equipment",1510,"Machinery and Equipment"," _ "," _ "," _ "," _ ","_"," _ "," _ "," _ "," _ ","_"," _ "," _ "," _ "," _ ",null,1,12,"Finance and Admin","Finance",null,null,"_","_","_",null,"_",0,0,0,0,0,0,0,0,0,0,0,0,0,0,0,0,0,0,0,{"$f":"INDEX([9]Sheet1!$H:$H,MATCH(CR:CR,[9]Sheet1!$AU:$AU,0))","v":{"$error":"#N/A"}}]
["C0071-1/IA05091/F0002/X049/R0073/001/COMM",4920,"C0071-1/IA05091/F0002/X049/R0073/001/COMM",53070,"Assets:Non-current Assets:Intangible Assets:Cost:Other:In-use:Computer Software Accumulated Amortisation:Amortisation"," _"," _"," _ "," _ "," _ "," _ ",1200,"Finance and administration",1204,"Finance","_",2080,"Internally generated funds","C","IA",270," Intangible",270,"Intangible"," _ "," _ "," _ "," _ "," _ "," _ "," _ "," _ ",1370,"Intangible Assets",1370,"Intangible Assets"," _ "," _ "," _ "," _ ","",null,null," _ "," _ "," _ "," _ ",1510,"Machinery and Equipment",1510,"Machinery and Equipment"," _ "," _ "," _ "," _ ","_"," _ "," _ "," _ "," _ ","_"," _ "," _ "," _ "," _ ",null,1,12,"Finance and Admin","Finance",null,null,"_","_","_",null,"_",0,0,0,0,0,0,0,0,0,0,0,0,0,0,0,0,0,0,0,{"$f":"INDEX([9]Sheet1!$H:$H,MATCH(CR:CR,[9]Sheet1!$AU:$AU,0))","v":{"$error":"#N/A"}}]
["C0071-1/IA06243/F0002/X049/R0073/001/COMM",4916,"C0071-1/IA06243/F0002/X049/R0073/001/COMM",53069,"Assets:Non-current Assets:Property, Plant and Equipment:Cost Model:Furniture and Office Equipment:In-use:Accumulated Depreciation:Depreciation"," _"," _"," _ "," _ "," _ "," _ ",1200,"Finance and administration",1204,"Finance","_",2080,"Internally generated funds","C","IA",240," Property, plant and equipment",240,"Property, plant and equipment"," _ "," _ "," _ "," _ "," _ "," _ "," _ "," _ ",1490,"Furniture and Office Equipment",1490,"Furniture and Office Equipment",243,"Less: Accumulated depreciation",243,"Less: Accumulated depreciation","",null,null," _ "," _ "," _ "," _ ",1510,"Machinery and Equipment",1510,"Machinery and Equipment"," _ "," _ "," _ "," _ ","_"," _ "," _ "," _ "," _ ","_"," _ "," _ "," _ "," _ ",null,1,12,"Finance and Admin","Finance",null,null,"_","_","_",null,"_",0,0,0,0,0,0,0,0,0,0,0,0,0,0,0,0,0,0,0,{"$f":"INDEX([9]Sheet1!$H:$H,MATCH(CR:CR,[9]Sheet1!$AU:$AU,0))","v":{"$error":"#N/A"}}]
["C0133-1/IA00162/F0002/X131/R0073/001/Tech",5266,"C0133-1/IA00162/F0002/X131/R0073/001/Tech",53327,"Assets:Non-current Assets:Property, Plant and Equipment:Cost Model:Solid Waste Infrastructure:Accumulated Depreciation:Depreciation"," _"," _"," _ "," _ "," _ "," _ ",4400,"Waste management",4402,"Solid Waste Disposal (Landfill Sites)","_",2080,"Internally generated funds","C","IA",240," Property, plant and equipment",240,"Property, plant and equipment"," _ "," _ "," _ "," _ "," _ "," _ "," _ "," _ ",480,"Solid Waste Infrastructure",480,"Solid Waste Infrastructure",243,"Less: Accumulated depreciation",243,"Less: Accumulated depreciation","",null,null," _ "," _ "," _ "," _ ",500,"Waste Transfer Stations",500,"Waste Transfer Stations"," _ "," _ "," _ "," _ ","_"," _ "," _ "," _ "," _ ","_"," _ "," _ "," _ "," _ ",null,5,53,"Waste Management","Solid Waste Disposal (Landfill Sites)",null,null,"_","_","_",null,"_",0,0,0,0,0,0,0,0,0,0,0,0,0,0,0,0,0,0,0,{"$f":"INDEX([9]Sheet1!$H:$H,MATCH(CR:CR,[9]Sheet1!$AU:$AU,0))","v":{"$error":"#N/A"}}]
["C0137-1/IA06463/F0002/X147/R0073/001/Tech",5270,"C0137-1/IA06463/F0002/X147/R0073/001/Tech",53331,"Assets:Non-current Assets:Property, Plant and Equipment:Cost Model:Water Supply Infrastructure:Pump Stations:Accumulated Depreciation:Depreciation"," _"," _"," _ "," _ "," _ "," _ ",4200,"Water management",4203,"Water Storage","_",2080,"Internally generated funds","C","IA",240," Property, plant and equipment",240,"Property, plant and equipment"," _ "," _ "," _ "," _ "," _ "," _ "," _ "," _ ",300,"Water Supply Infrastructure",300,"Water Supply Infrastructure",243,"Less: Accumulated depreciation",243,"Less: Accumulated depreciation","",null,null," _ "," _ "," _ "," _ ",320,"Boreholes",320,"Boreholes"," _ "," _ "," _ "," _ ","_"," _ "," _ "," _ "," _ ","_"," _ "," _ "," _ "," _ ",null,null,0," _ ","Water Storage",null,null,"_","_","_",null,"_",0,0,0,0,0,0,0,0,0,0,0,0,0,0,0,0,0,0,0,{"$f":"INDEX([9]Sheet1!$H:$H,MATCH(CR:CR,[9]Sheet1!$AU:$AU,0))","v":{"$error":"#N/A"}}]
["C0141-1/IA06463/F0002/X146/R0073/001/Tech",5278,"C0141-1/IA06463/F0002/X146/R0073/001/Tech",53339,"Assets:Non-current Assets:Property, Plant and Equipment:Cost Model:Water Supply Infrastructure:Pump Stations:Accumulated Depreciation:Depreciation"," _"," _"," _ "," _ "," _ "," _ ",4200,"Water management",4202,"Water Distribution","_",2080,"Internally generated funds","C","IA",240," Property, plant and equipment",240,"Property, plant and equipment"," _ "," _ "," _ "," _ "," _ "," _ "," _ "," _ ",300,"Water Supply Infrastructure",300,"Water Supply Infrastructure",243,"Less: Accumulated depreciation",243,"Less: Accumulated depreciation","",null,null," _ "," _ "," _ "," _ ",370,"Distribution",370,"Distribution"," _ "," _ "," _ "," _ ","_"," _ "," _ "," _ "," _ ","_"," _ "," _ "," _ "," _ ",null,null,0," _ ","Water Distribution",null,null,"_","_","_",null,"_",0,0,0,0,0,0,0,0,0,0,0,0,0,0,0,0,0,0,0,{"$f":"INDEX([9]Sheet1!$H:$H,MATCH(CR:CR,[9]Sheet1!$AU:$AU,0))","v":{"$error":"#N/A"}}]
["C0236-1/IA00032/F0002/X101/R2853/001/Tech",4958,"C0236-1/IA00032/F0002/X101/R2853/001/Tech",52932,"Assets:Non-current Assets:Property, Plant and Equipment:Cost Model:Community Assets:Cost:Acquisitions"," _"," _"," _ "," _ "," _ "," _ ",3100,"Planning and development",3107,"Town Planning, Building Regulations and Enforcement, and City Engineer","CE",2080,"Internally generated funds","C","IA",240," Property, plant and equipment",240,"Property, plant and equipment"," _ "," _ "," _ "," _ "," _ "," _ "," _ "," _ ",770,"Community Assets",770,"Community Assets",241,"PPE at cost/valuation (excl. finance leases)",241,"PPE at cost/valuation (excl. finance leases)","",null,null,940,"Public Ablution Facilities",940,"Public Ablution Facilities"," _ "," _ "," _ "," _ "," _ "," _ "," _ "," _ ","_"," _ "," _ "," _ "," _ ","_"," _ "," _ "," _ "," _ ",null,7,72,"Planning and Development","Town Planning, Building Regulations and Enforcement, and City Engineer",null,null,"_","_","_",null,"_",0,0,0,0,0,0,0,0,0,0,0,0,0,0,0,0,0,0,0,{"$f":"INDEX([9]Sheet1!$H:$H,MATCH(CR:CR,[9]Sheet1!$AU:$AU,0))","v":{"$error":"#N/A"}}]
["C0272-1/IA00030/F0002/X006/R0073/001/COMM",5171,"C0272-1/IA00030/F0002/X006/R0073/001/COMM",53232,"Assets:Non-current Assets:Property, Plant and Equipment:Cost Model:Community Assets:Accumulated Impairment:Impairment"," _"," _"," _ "," _ "," _ "," _ ",2100,"Community and social services",2106,"Community Halls and Facilities","_",2080,"Internally generated funds","C","IA","_","_","_","_"," _ "," _ "," _ "," _ "," _ "," _ "," _ "," _ ",770,"Community Assets",770,"Community Assets",241,"PPE at cost/valuation (excl. finance leases)",241,"PPE at cost/valuation (excl. finance leases)","",null,null," _ "," _ "," _ "," _ ",820,"Clinics/Care Centres",820,"Clinics/Care Centres"," _ "," _ "," _ "," _ ","_"," _ "," _ "," _ "," _ ","_"," _ "," _ "," _ "," _ ",null,3,32,"Community and social services","Community Halls and Facilities",null,null,"_","_","_",null,"_",0,0,0,0,0,0,0,0,0,0,0,0,0,0,0,0,0,0,0,{"$f":"INDEX([9]Sheet1!$H:$H,MATCH(CR:CR,[9]Sheet1!$AU:$AU,0))","v":{"$error":"#N/A"}}]
["C0245-7/IA00032/F0791/X101/R2855/001/Tech",6370,"C0245-7/IA00032/F0791/X101/R2855/001/Tech",63372,"Assets:Non-current Assets:Property, Plant and Equipment:Cost Model:Community Assets:Cost:Acquisitions"," _"," _"," _ "," _ "," _ "," _ ",3100,"Planning and development",3107,"Town Planning, Building Regulations and Enforcement, and City Engineer","CE",2010,"National Government","C","IA",240," Property, plant and equipment",240,"Property, plant and equipment"," _ "," _ "," _ "," _ "," _ "," _ "," _ "," _ ",770,"Community Assets",770,"Community Assets",241,"PPE at cost/valuation (excl. finance leases)",241,"PPE at cost/valuation (excl. finance leases)","",null,null,1030,"Outdoor Facilities",1030,"Outdoor Facilities"," _ "," _ "," _ "," _ "," _ "," _ "," _ "," _ ","_"," _ "," _ "," _ "," _ ","_"," _ "," _ "," _ "," _ ",null,7,72,"Planning and Development","Town Planning, Building Regulations and Enforcement, and City Engineer",null,null,"_","_","_",null,"_",0,0,0,0,0,0,0,0,0,0,0,0,0,0,0,0,0,0,0,{"$f":"INDEX([9]Sheet1!$H:$H,MATCH(CR:CR,[9]Sheet1!$AU:$AU,0))","v":{"$error":"#N/A"}}]
["C0256-1/IA00092/F0002/X044/R2865/001/FIN",null,"C0256-1/IA00092/F0002/X044/R2865/001/FIN",85004,"Assets:Non-current Assets:Property, Plant and Equipment:Cost Model:Other Assets:Cost:Acquisitions"," _"," _"," _ "," _ "," _ "," _ ",1100,"Executive and council",1110,"Mayor and Council","CE",2080,"Internally generated funds","C","IA",240," Property, plant and equipment",240,"Property, plant and equipment"," _ "," _ "," _ "," _ "," _ "," _ "," _ "," _ ",1180,"Other Assets",1180,"Other Assets",241,"PPE at cost/valuation (excl. finance leases)",241,"PPE at cost/valuation (excl. finance leases)","",null,null,1220,"Building Plan Offices",1220,"Building Plan Offices"," _ "," _ "," _ "," _ "," _ "," _ "," _ "," _ ","_"," _ "," _ "," _ "," _ ","_"," _ "," _ "," _ "," _ ",null,2,21,"Executive and council","Mayor and Council",null,null,"_","_","_",null,"_",0,0,0,0,0,0,0,0,0,0,0,0,0,0,0,0,0,0,0,{"$f":"INDEX([9]Sheet1!$H:$H,MATCH(CR:CR,[9]Sheet1!$AU:$AU,0))","v":{"$error":"#N/A"}}]
["C0278-8/IA00022/F0002/X086/R0072/001/COMM",15627,"C0278-8/IA00022/F0002/X086/R0072/001/COMM",63548,"Assets:Non-current Assets:Property, Plant and Equipment:Cost Model:Community Assets:Accumulated Depreciation:Depreciation"," _"," _"," _ "," _ "," _ "," _ ",5000,"Other",5005,"Markets","_",2080,"Internally generated funds","C","IA",240," Property, plant and equipment",240,"Property, plant and equipment"," _ "," _ "," _ "," _ "," _ "," _ "," _ "," _ ",770,"Community Assets",770,"Community Assets",243,"Less: Accumulated depreciation",243,"Less: Accumulated depreciation","",null,null," _ "," _ "," _ "," _ ",950,"Markets",950,"Markets"," _ "," _ "," _ "," _ ","_"," _ "," _ "," _ "," _ ","_"," _ "," _ "," _ "," _ ",null,null,0," _ ","Markets",null,null,"_","_","_",null,"_",0,0,0,0,0,0,0,0,0,0,0,0,0,0,0,0,0,0,0,{"$f":"INDEX([9]Sheet1!$H:$H,MATCH(CR:CR,[9]Sheet1!$AU:$AU,0))","v":{"$error":"#N/A"}}]
["C0310-1/IA00090/F0002/X055/R0073/001/FIN",5217,"C0310-1/IA00090/F0002/X055/R0073/001/FIN",53278,"Assets:Non-current Assets:Property, Plant and Equipment:Cost Model:Other Assets:Accumulated Impairment:Impairment"," _"," _"," _ "," _ "," _ "," _ ",1200,"Finance and administration",1210,"Property Services","_",2080,"Internally generated funds","C","IA","_","_","_","_"," _ "," _ "," _ "," _ "," _ "," _ "," _ "," _ ",1180,"Other Assets",1180,"Other Assets",241,"PPE at cost/valuation (excl. finance leases)",241,"PPE at cost/valuation (excl. finance leases)","",null,null," _ "," _ "," _ "," _ ",1230,"Workshops",1230,"Workshops"," _ "," _ "," _ "," _ ","_"," _ "," _ "," _ "," _ ","_"," _ "," _ "," _ "," _ ",null,1,19,"Finance and Admin","Property Services",null,null,"_","_","_",null,"_",0,0,0,0,0,0,0,0,0,0,0,0,0,0,0,0,0,0,0,{"$f":"INDEX([9]Sheet1!$H:$H,MATCH(CR:CR,[9]Sheet1!$AU:$AU,0))","v":{"$error":"#N/A"}}]
["C0276-1/IA01357/F0002/X049/R0072/001/COMM",4841,"C0276-1/IA01357/F0002/X049/R0072/001/COMM",53085,"Assets:Non-current Assets:Property, Plant and Equipment:Cost Model:Transport Assets:Owned and In-use:Accumulated Depreciation:Depreciation"," _"," _"," _ "," _ "," _ "," _ ",1200,"Finance and administration",1204,"Finance","_",2080,"Internally generated funds","C","IA",240," Property, plant and equipment",240,"Property, plant and equipment"," _ "," _ "," _ "," _ "," _ "," _ "," _ "," _ ",1530,"Transport Assets",1530,"Transport Assets",243,"Less: Accumulated depreciation",243,"Less: Accumulated depreciation","",null,null," _ "," _ "," _ "," _ ",790,"Halls",790,"Halls"," _ "," _ "," _ "," _ ","_"," _ "," _ "," _ "," _ ","_"," _ "," _ "," _ "," _ ",null,1,12,"Finance and Admin","Finance",null,null,"_","_","_",null,"_",0,0,0,0,0,0,0,0,0,0,0,0,0,0,0,0,0,0,0,{"$f":"INDEX([9]Sheet1!$H:$H,MATCH(CR:CR,[9]Sheet1!$AU:$AU,0))","v":{"$error":"#N/A"}}]
["C0278-6/IA00037/F0002/X086/R0072/001/COMM",15625,"C0278-6/IA00037/F0002/X086/R0072/001/COMM",63545,"Assets:Non-current Assets:Property, Plant and Equipment:Cost Model:Community Assets:Cost:Disposals"," _"," _"," _ "," _ "," _ "," _ ",5000,"Other",5005,"Markets","_",2080,"Internally generated funds","C","IA",240," Property, plant and equipment",240,"Property, plant and equipment"," _ "," _ "," _ "," _ "," _ "," _ "," _ "," _ ",770,"Community Assets",770,"Community Assets",241,"PPE at cost/valuation (excl. finance leases)",241,"PPE at cost/valuation (excl. finance leases)","",null,null," _ "," _ "," _ "," _ ",950,"Markets",950,"Markets"," _ "," _ "," _ "," _ ","_"," _ "," _ "," _ "," _ ","_"," _ "," _ "," _ "," _ ",null,null,0," _ ","Markets",null,null,"_","_","_",null,"_",0,0,0,0,0,0,0,0,0,0,0,0,0,0,0,0,0,0,0,{"$f":"INDEX([9]Sheet1!$H:$H,MATCH(CR:CR,[9]Sheet1!$AU:$AU,0))","v":{"$error":"#N/A"}}]
["C0291-14/IA00032/F0002/X129/R2864/001/FIN",null,"C0291-14/IA00032/F0002/X129/R2864/001/FIN",85239,"Assets:Non-current Assets:Property, Plant and Equipment:Cost Model:Community Assets:Cost:Acquisitions"," _"," _"," _ "," _ "," _ "," _ ",2200,"Sport and recreation",2205,"Sports Grounds and Stadiums","CE",2080,"Internally generated funds","C","IA",240," Property, plant and equipment",240,"Property, plant and equipment"," _ "," _ "," _ "," _ "," _ "," _ "," _ "," _ ",770,"Community Assets",770,"Community Assets",241,"PPE at cost/valuation (excl. finance leases)",241,"PPE at cost/valuation (excl. finance leases)","",null,null," _ "," _ "," _ "," _ ",1030,"Outdoor Facilities",1030,"Outdoor Facilities"," _ "," _ "," _ "," _ ","_"," _ "," _ "," _ "," _ ","_"," _ "," _ "," _ "," _ ",null,null,0," _ ","Sports Grounds and Stadiums",null,null,"_","_","_",null,"_",0,0,0,0,0,0,0,0,0,0,0,0,0,0,0,0,0,0,0,{"$f":"INDEX([9]Sheet1!$H:$H,MATCH(CR:CR,[9]Sheet1!$AU:$AU,0))","v":{"$error":"#N/A"}}]
["D0001/IA00031/F0001/X129/R2856/001/FIN",18420,"D0001/IA00031/F0001/X129/R2856/001/FIN",85319,"Assets:Non-current Assets:Property, Plant and Equipment:Cost Model:Community Assets:Accumulated Impairment:Opening Balance"," _"," _"," _ "," _ "," _ "," _ ",2200,"Sport and recreation",2205,"Sports Grounds and Stadiums","_"," _"," _","D","IA","_","_","_","_"," _ "," _ "," _ "," _ "," _ "," _ "," _ "," _ ",770,"Community Assets",770,"Community Assets",241,"PPE at cost/valuation (excl. finance leases)",241,"PPE at cost/valuation (excl. finance leases)","",null,null," _ "," _ "," _ "," _ "," _ "," _ "," _ "," _ "," _ "," _ "," _ "," _ ","_"," _ "," _ "," _ "," _ ","_"," _ "," _ "," _ "," _ ",null,null,0," _ ","Sports Grounds and Stadiums",null,null,"_","_","_",null,"_",0,0,0,0,0,0,0,0,0,0,0,0,0,0,0,0,0,0,0,{"$f":"INDEX([9]Sheet1!$H:$H,MATCH(CR:CR,[9]Sheet1!$AU:$AU,0))","v":{"$error":"#N/A"}}]
["C0292-2/IA05099/F0002/X052/R0073/001/FIN",5164,"C0292-2/IA05099/F0002/X052/R0073/001/FIN",53225,"Assets:Non-current Assets:Intangible Assets:Cost:Other:In-use:Computer Software Accumulated Impairment:Impairment"," _"," _"," _ "," _ "," _ "," _ ",1200,"Finance and administration",1207,"Information Technology","_",2080,"Internally generated funds","C","IA","_","_","_","_"," _ "," _ "," _ "," _ "," _ "," _ "," _ "," _ ",1370,"Intangible Assets",1370,"Intangible Assets"," _ "," _ "," _ "," _ ","",null,null," _ "," _ "," _ "," _ ",1430,"Computer Software and Applications",1430,"Computer Software and Applications"," _ "," _ "," _ "," _ ","_"," _ "," _ "," _ "," _ ","_"," _ "," _ "," _ "," _ ",null,1,15,"Finance and Admin","Information Technology",null,null,"_","_","_",null,"_",0,0,0,0,0,0,0,0,0,0,0,0,0,0,0,0,0,0,0,{"$f":"INDEX([9]Sheet1!$H:$H,MATCH(CR:CR,[9]Sheet1!$AU:$AU,0))","v":{"$error":"#N/A"}}]
["C0276-1/IA06183/F0002/X049/R0072/001/COMM",4848,"C0276-1/IA06183/F0002/X049/R0072/001/COMM",53087,"Assets:Non-current Assets:Property, Plant and Equipment:Cost Model:Computer Equipment:In-use:Accumulated Depreciation:Depreciation"," _"," _"," _ "," _ "," _ "," _ ",1200,"Finance and administration",1204,"Finance","_",2080,"Internally generated funds","C","IA",240," Property, plant and equipment",240,"Property, plant and equipment"," _ "," _ "," _ "," _ "," _ "," _ "," _ "," _ ",1470,"Computer Equipment",1470,"Computer Equipment",243,"Less: Accumulated depreciation",243,"Less: Accumulated depreciation","",null,null," _ "," _ "," _ "," _ ",790,"Halls",790,"Halls"," _ "," _ "," _ "," _ ","_"," _ "," _ "," _ "," _ ","_"," _ "," _ "," _ "," _ ",null,1,12,"Finance and Admin","Finance",null,null,"_","_","_",null,"_",0,0,0,0,0,0,0,0,0,0,0,0,0,0,0,0,0,0,0,{"$f":"INDEX([9]Sheet1!$H:$H,MATCH(CR:CR,[9]Sheet1!$AU:$AU,0))","v":{"$error":"#N/A"}}]
["D0001/IA00030/F0001/X006/R2869/001/FIN",18480,"D0001/IA00030/F0001/X006/R2869/001/FIN",85378,"Assets:Non-current Assets:Property, Plant and Equipment:Cost Model:Community Assets:Accumulated Impairment:Impairment"," _"," _"," _ "," _ "," _ "," _ ",2100,"Community and social services",2106,"Community Halls and Facilities","_"," _"," _","D","IA","_","_","_","_"," _ "," _ "," _ "," _ "," _ "," _ "," _ "," _ ",770,"Community Assets",770,"Community Assets",241,"PPE at cost/valuation (excl. finance leases)",241,"PPE at cost/valuation (excl. finance leases)","",null,null," _ "," _ "," _ "," _ "," _ "," _ "," _ "," _ "," _ "," _ "," _ "," _ ","_"," _ "," _ "," _ "," _ ","_"," _ "," _ "," _ "," _ ",null,3,32,"Community and social services","Community Halls and Facilities",null,null,"_","_","_",null,"_",0,0,0,0,0,0,0,0,0,0,0,0,0,0,0,0,0,0,0,{"$f":"INDEX([9]Sheet1!$H:$H,MATCH(CR:CR,[9]Sheet1!$AU:$AU,0))","v":{"$error":"#N/A"}}]
["D0001/IA00038/F0001/X006/R2863/001/FIN",18312,"D0001/IA00038/F0001/X006/R2863/001/FIN",85211,"Assets:Non-current Assets:Property, Plant and Equipment:Cost Model:Community Assets:Cost:Opening Balance"," _"," _"," _ "," _ "," _ "," _ ",2100,"Community and social services",2106,"Community Halls and Facilities","_"," _"," _","D","IA",240," Property, plant and equipment",240,"Property, plant and equipment"," _ "," _ "," _ "," _ "," _ "," _ "," _ "," _ ",770,"Community Assets",770,"Community Assets",241,"PPE at cost/valuation (excl. finance leases)",241,"PPE at cost/valuation (excl. finance leases)","",null,null," _ "," _ "," _ "," _ "," _ "," _ "," _ "," _ "," _ "," _ "," _ "," _ ","_"," _ "," _ "," _ "," _ ","_"," _ "," _ "," _ "," _ ",null,3,32,"Community and social services","Community Halls and Facilities",null,null,"_","_","_",null,"_",0,0,0,0,0,0,0,0,0,0,0,0,0,0,0,0,0,0,0,{"$f":"INDEX([9]Sheet1!$H:$H,MATCH(CR:CR,[9]Sheet1!$AU:$AU,0))","v":{"$error":"#N/A"}}]
["C0291-9/IA00032/F0002/X129/R2866/001/FIN",null,"C0291-9/IA00032/F0002/X129/R2866/001/FIN",85249,"Assets:Non-current Assets:Property, Plant and Equipment:Cost Model:Community Assets:Cost:Acquisitions"," _"," _"," _ "," _ "," _ "," _ ",2200,"Sport and recreation",2205,"Sports Grounds and Stadiums","CE",2080,"Internally generated funds","C","IA",240," Property, plant and equipment",240,"Property, plant and equipment"," _ "," _ "," _ "," _ "," _ "," _ "," _ "," _ ",770,"Community Assets",770,"Community Assets",241,"PPE at cost/valuation (excl. finance leases)",241,"PPE at cost/valuation (excl. finance leases)","",null,null," _ "," _ "," _ "," _ ",1030,"Outdoor Facilities",1030,"Outdoor Facilities"," _ "," _ "," _ "," _ ","_"," _ "," _ "," _ "," _ ","_"," _ "," _ "," _ "," _ ",null,null,0," _ ","Sports Grounds and Stadiums",null,null,"_","_","_",null,"_",0,0,0,0,0,0,0,0,0,0,0,0,0,0,0,0,0,0,0,{"$f":"INDEX([9]Sheet1!$H:$H,MATCH(CR:CR,[9]Sheet1!$AU:$AU,0))","v":{"$error":"#N/A"}}]
["D0001/IA00035/F0001/X006/R2853/001/FIN",18593,"D0001/IA00035/F0001/X006/R2853/001/FIN",85494,"Assets:Non-current Assets:Property, Plant and Equipment:Cost Model:Community Assets:Cost:Correction of Error"," _"," _"," _ "," _ "," _ "," _ ",2100,"Community and social services",2106,"Community Halls and Facilities","_"," _"," _","D","IA",240," Property, plant and equipment",240,"Property, plant and equipment"," _ "," _ "," _ "," _ "," _ "," _ "," _ "," _ ",770,"Community Assets",770,"Community Assets",241,"PPE at cost/valuation (excl. finance leases)",241,"PPE at cost/valuation (excl. finance leases)","",null,null," _ "," _ "," _ "," _ "," _ "," _ "," _ "," _ "," _ "," _ "," _ "," _ ","_"," _ "," _ "," _ "," _ ","_"," _ "," _ "," _ "," _ ",null,3,32,"Community and social services","Community Halls and Facilities",null,null,"_","_","_",null,"_",0,0,0,0,0,0,0,0,0,0,0,0,0,0,0,0,0,0,0,{"$f":"INDEX([9]Sheet1!$H:$H,MATCH(CR:CR,[9]Sheet1!$AU:$AU,0))","v":{"$error":"#N/A"}}]
["D0001/IA00040/F0001/X006/R2867/001/FIN",18491,"D0001/IA00040/F0001/X006/R2867/001/FIN",85387,"Assets:Non-current Assets:Property, Plant and Equipment:Cost Model:Community Assets:Cost:Transfers Received"," _"," _"," _ "," _ "," _ "," _ ",2100,"Community and social services",2106,"Community Halls and Facilities","_"," _"," _","D","IA",240," Property, plant and equipment",240,"Property, plant and equipment"," _ "," _ "," _ "," _ "," _ "," _ "," _ "," _ ",770,"Community Assets",770,"Community Assets",241,"PPE at cost/valuation (excl. finance leases)",241,"PPE at cost/valuation (excl. finance leases)","",null,null," _ "," _ "," _ "," _ "," _ "," _ "," _ "," _ "," _ "," _ "," _ "," _ ","_"," _ "," _ "," _ "," _ ","_"," _ "," _ "," _ "," _ ",null,3,32,"Community and social services","Community Halls and Facilities",null,null,"_","_","_",null,"_",0,0,0,0,0,0,0,0,0,0,0,0,0,0,0,0,0,0,0,{"$f":"INDEX([9]Sheet1!$H:$H,MATCH(CR:CR,[9]Sheet1!$AU:$AU,0))","v":{"$error":"#N/A"}}]
["C0292-2/IA05091/F0002/X052/R0073/001/FIN",5163,"C0292-2/IA05091/F0002/X052/R0073/001/FIN",53224,"Assets:Non-current Assets:Intangible Assets:Cost:Other:In-use:Computer Software Accumulated Amortisation:Amortisation"," _"," _"," _ "," _ "," _ "," _ ",1200,"Finance and administration",1207,"Information Technology","_",2080,"Internally generated funds","C","IA",270," Intangible",270,"Intangible"," _ "," _ "," _ "," _ "," _ "," _ "," _ "," _ ",1370,"Intangible Assets",1370,"Intangible Assets"," _ "," _ "," _ "," _ ","",null,null," _ "," _ "," _ "," _ ",1430,"Computer Software and Applications",1430,"Computer Software and Applications"," _ "," _ "," _ "," _ ","_"," _ "," _ "," _ "," _ ","_"," _ "," _ "," _ "," _ ",null,1,15,"Finance and Admin","Information Technology",null,null,"_","_","_",null,"_",0,0,0,0,0,0,0,0,0,0,0,0,0,0,0,0,0,0,0,{"$f":"INDEX([9]Sheet1!$H:$H,MATCH(CR:CR,[9]Sheet1!$AU:$AU,0))","v":{"$error":"#N/A"}}]
["D0001/IA00124/F0001/X116/R2868/001/FIN",18401,"D0001/IA00124/F0001/X116/R2868/001/FIN",85298,"Assets:Non-current Assets:Property, Plant and Equipment:Cost Model:Roads Infrastructure:Accumulated Depreciation:Opening Balance"," _"," _"," _ "," _ "," _ "," _ ",3200,"Road transport",3205,"Roads","_"," _"," _","D","IA",240," Property, plant and equipment",240,"Property, plant and equipment"," _ "," _ "," _ "," _ "," _ "," _ "," _ "," _ ",110,"Roads Infrastructure",110,"Roads Infrastructure",243,"Less: Accumulated depreciation",243,"Less: Accumulated depreciation","",null,null," _ "," _ "," _ "," _ "," _ "," _ "," _ "," _ "," _ "," _ "," _ "," _ ","_"," _ "," _ "," _ "," _ ","_"," _ "," _ "," _ "," _ ",null,9,91,"Roads","Roads",null,null,"_","_","_",null,"_",0,0,0,0,0,0,0,0,0,0,0,0,0,0,0,0,0,0,0,{"$f":"INDEX([9]Sheet1!$H:$H,MATCH(CR:CR,[9]Sheet1!$AU:$AU,0))","v":{"$error":"#N/A"}}]
["D0001/IA00129/F0001/X116/R2856/001/FIN",18574,"D0001/IA00129/F0001/X116/R2856/001/FIN",85468,"Assets:Non-current Assets:Property, Plant and Equipment:Cost Model:Roads Infrastructure:Accumulated Impairment:Disposals/Transfers Out"," _"," _"," _ "," _ "," _ "," _ ",3200,"Road transport",3205,"Roads","_"," _"," _","D","IA","_","_","_","_"," _ "," _ "," _ "," _ "," _ "," _ "," _ "," _ ",110,"Roads Infrastructure",110,"Roads Infrastructure",241,"PPE at cost/valuation (excl. finance leases)",241,"PPE at cost/valuation (excl. finance leases)","",null,null," _ "," _ "," _ "," _ "," _ "," _ "," _ "," _ "," _ "," _ "," _ "," _ ","_"," _ "," _ "," _ "," _ ","_"," _ "," _ "," _ "," _ ",null,9,91,"Roads","Roads",null,null,"_","_","_",null,"_",0,0,0,0,0,0,0,0,0,0,0,0,0,0,0,0,0,0,0,{"$f":"INDEX([9]Sheet1!$H:$H,MATCH(CR:CR,[9]Sheet1!$AU:$AU,0))","v":{"$error":"#N/A"}}]
["D0001/IA00030/F0001/X129/R2866/001/FIN",18450,"D0001/IA00030/F0001/X129/R2866/001/FIN",85348,"Assets:Non-current Assets:Property, Plant and Equipment:Cost Model:Community Assets:Accumulated Impairment:Impairment"," _"," _"," _ "," _ "," _ "," _ ",2200,"Sport and recreation",2205,"Sports Grounds and Stadiums","_"," _"," _","D","IA","_","_","_","_"," _ "," _ "," _ "," _ "," _ "," _ "," _ "," _ ",770,"Community Assets",770,"Community Assets",241,"PPE at cost/valuation (excl. finance leases)",241,"PPE at cost/valuation (excl. finance leases)","",null,null," _ "," _ "," _ "," _ "," _ "," _ "," _ "," _ "," _ "," _ "," _ "," _ ","_"," _ "," _ "," _ "," _ ","_"," _ "," _ "," _ "," _ ",null,null,0," _ ","Sports Grounds and Stadiums",null,null,"_","_","_",null,"_",0,0,0,0,0,0,0,0,0,0,0,0,0,0,0,0,0,0,0,{"$f":"INDEX([9]Sheet1!$H:$H,MATCH(CR:CR,[9]Sheet1!$AU:$AU,0))","v":{"$error":"#N/A"}}]
["D0001/IA00130/F0001/X116/R2862/001/FIN",18586,"D0001/IA00130/F0001/X116/R2862/001/FIN",85484,"Assets:Non-current Assets:Property, Plant and Equipment:Cost Model:Roads Infrastructure:Accumulated Impairment:Impairment"," _"," _"," _ "," _ "," _ "," _ ",3200,"Road transport",3205,"Roads","_"," _"," _","D","IA","_","_","_","_"," _ "," _ "," _ "," _ "," _ "," _ "," _ "," _ ",110,"Roads Infrastructure",110,"Roads Infrastructure",241,"PPE at cost/valuation (excl. finance leases)",241,"PPE at cost/valuation (excl. finance leases)","",null,null," _ "," _ "," _ "," _ "," _ "," _ "," _ "," _ "," _ "," _ "," _ "," _ ","_"," _ "," _ "," _ "," _ ","_"," _ "," _ "," _ "," _ ",null,9,91,"Roads","Roads",null,null,"_","_","_",null,"_",0,0,0,0,0,0,0,0,0,0,0,0,0,0,0,0,0,0,0,{"$f":"INDEX([9]Sheet1!$H:$H,MATCH(CR:CR,[9]Sheet1!$AU:$AU,0))","v":{"$error":"#N/A"}}]
["D0001/IA00178/F0001/X131/R2864/001/FIN",18245,"D0001/IA00178/F0001/X131/R2864/001/FIN",85151,"Assets:Non-current Assets:Property, Plant and Equipment:Cost Model:Solid Waste Infrastructure:Cost:Opening Balance"," _"," _"," _ "," _ "," _ "," _ ",4400,"Waste management",4402,"Solid Waste Disposal (Landfill Sites)","_"," _"," _","D","IA",240," Property, plant and equipment",240,"Property, plant and equipment"," _ "," _ "," _ "," _ "," _ "," _ "," _ "," _ ",480,"Solid Waste Infrastructure",480,"Solid Waste Infrastructure",241,"PPE at cost/valuation (excl. finance leases)",241,"PPE at cost/valuation (excl. finance leases)","",null,null," _ "," _ "," _ "," _ "," _ "," _ "," _ "," _ "," _ "," _ "," _ "," _ ","_"," _ "," _ "," _ "," _ ","_"," _ "," _ "," _ "," _ ",null,5,53,"Waste Management","Solid Waste Disposal (Landfill Sites)",null,null,"_","_","_",null,"_",0,0,0,0,0,0,0,164794.10999999999,0,0,0,0,0,0,0,0,0,0,0,{"$f":"INDEX([9]Sheet1!$H:$H,MATCH(CR:CR,[9]Sheet1!$AU:$AU,0))","v":{"$error":"#N/A"}}]
["D0001/IA02108/F0786/X049/R0072/001/FIN",1144,"D0001/IA02108/F0786/X049/R0072/001/FIN",31791,"Assets:Current Assets:Cash and Cash Equivalents:Cash at Bank:Bank Account:Specify (replace with account description):Withdrawals"," _"," _"," _ "," _ "," _ "," _ ",1200,"Finance and administration",1204,"Finance","_",2010,"National Government","D","IA",120,"Cash",120,"Cash","0160W","Government - capital","0160W","Government - capital"," _ "," _ "," _ "," _ "," _ "," _ "," _ "," _ "," _ "," _ "," _ "," _ ","0290","Transfers and subsidies - capital (monetary allocations) (Nat / Prov Departm Agencies, Households, Non-profit Institutions, Private Enterprises, Public Corporatons, Higher Educ Institutions)","W"," _ "," _ "," _ "," _ "," _ "," _ "," _ "," _ "," _ "," _ "," _ "," _ ","_"," _ "," _ "," _ "," _ ","_"," _ "," _ "," _ "," _ ",null,1,12,"Finance and Admin","Finance",null,null,"_","_","_",null,"_",0,0,0,0,0,0,0,0,0,0,0,0,0,0,0,0,0,0,0,{"$f":"INDEX([9]Sheet1!$H:$H,MATCH(CR:CR,[9]Sheet1!$AU:$AU,0))","v":{"$error":"#N/A"}}]
["D0001/IA00170/F0001/X131/R2856/001/FIN",18463,"D0001/IA00170/F0001/X131/R2856/001/FIN",85358,"Assets:Non-current Assets:Property, Plant and Equipment:Cost Model:Solid Waste Infrastructure:Accumulated Impairment:Impairment"," _"," _"," _ "," _ "," _ "," _ ",4400,"Waste management",4402,"Solid Waste Disposal (Landfill Sites)","_"," _"," _","D","IA","_","_","_","_"," _ "," _ "," _ "," _ "," _ "," _ "," _ "," _ ",480,"Solid Waste Infrastructure",480,"Solid Waste Infrastructure",241,"PPE at cost/valuation (excl. finance leases)",241,"PPE at cost/valuation (excl. finance leases)","",null,null," _ "," _ "," _ "," _ "," _ "," _ "," _ "," _ "," _ "," _ "," _ "," _ ","_"," _ "," _ "," _ "," _ ","_"," _ "," _ "," _ "," _ ",null,5,53,"Waste Management","Solid Waste Disposal (Landfill Sites)",null,null,"_","_","_",null,"_",0,0,0,0,0,0,0,0,0,0,0,0,0,0,0,0,0,0,0,{"$f":"INDEX([9]Sheet1!$H:$H,MATCH(CR:CR,[9]Sheet1!$AU:$AU,0))","v":{"$error":"#N/A"}}]
["D0001/IA00091/F0001/X049/R0072/001/FIN",17492,"D0001/IA00091/F0001/X049/R0072/001/FIN",84389,"Assets:Non-current Assets:Property, Plant and Equipment:Cost Model:Other Assets:Accumulated Impairment:Opening Balance"," _"," _"," _ "," _ "," _ "," _ ",1200,"Finance and administration",1204,"Finance","_"," _"," _","D","IA","_","_","_","_"," _ "," _ "," _ "," _ "," _ "," _ "," _ "," _ ",1180,"Other Assets",1180,"Other Assets",241,"PPE at cost/valuation (excl. finance leases)",241,"PPE at cost/valuation (excl. finance leases)","",null,null," _ "," _ "," _ "," _ "," _ "," _ "," _ "," _ "," _ "," _ "," _ "," _ ","_"," _ "," _ "," _ "," _ ","_"," _ "," _ "," _ "," _ ",null,1,12,"Finance and Admin","Finance",null,null,"_","_","_",null,"_",0,0,0,0,0,0,0,0,0,0,0,0,0,0,0,0,0,0,0,{"$f":"INDEX([9]Sheet1!$H:$H,MATCH(CR:CR,[9]Sheet1!$AU:$AU,0))","v":{"$error":"#N/A"}}]
["D0001/IA02686/F0001/X049/R0072/001/FIN",1534,"D0001/IA02686/F0001/X049/R0072/001/FIN",42246,"Assets:Current Assets:Receivables from Non-exchange Transactions:Property Rates:Public Service Infrastructure:Impairment:Recognised"," _"," _"," _ "," _ "," _ "," _ ",1200,"Finance and administration",1204,"Finance","_"," _"," _","D","IA","_","_","_","_"," _ "," _ "," _ "," _ "," _ "," _ "," _ "," _ "," _ "," _ "," _ "," _ ",146,"Contributions to the provision",146,"Contributions to the provision","",null,null," _ "," _ "," _ "," _ "," _ "," _ "," _ "," _ "," _ "," _ "," _ "," _ ","_"," _ "," _ "," _ "," _ ","_"," _ "," _ "," _ "," _ ",null,1,12,"Finance and Admin","Finance",null,null,"_","_","_",null,"_",0,0,0,0,0,0,0,0,0,0,0,0,0,0,0,0,0,0,0,{"$f":"INDEX([9]Sheet1!$H:$H,MATCH(CR:CR,[9]Sheet1!$AU:$AU,0))","v":{"$error":"#N/A"}}]
["D0001/IA01952/F0786/X032/R2856/001/Tech",18041,"D0001/IA01952/F0786/X032/R2856/001/Tech",84938,"Assets:Non-current Assets:Construction Work-in-progress:Acquisitions:Outsourced"," _"," _"," _ "," _ "," _ "," _ ",4100,"Energy sources",4101,"Electricity ","CE",2010,"National Government","D","IA",240," Property, plant and equipment",240,"Property, plant and equipment"," _ "," _ "," _ "," _ "," _ "," _ "," _ "," _ "," _ "," _ "," _ "," _ ",241,"PPE at cost/valuation (excl. finance leases)",241,"PPE at cost/valuation (excl. finance leases)","",null,null," _ "," _ "," _ "," _ "," _ "," _ "," _ "," _ "," _ "," _ "," _ "," _ ","_"," _ "," _ "," _ "," _ ","_"," _ "," _ "," _ "," _ ",null,6,61,"Energy Sources","Electricity",null,null,"_","_","_",null,"_",0,0,0,0,0,0,0,0,0,0,0,0,0,0,0,0,0,0,0,{"$f":"INDEX([9]Sheet1!$H:$H,MATCH(CR:CR,[9]Sheet1!$AU:$AU,0))","v":{"$error":"#N/A"}}]
["D0001/IA00130/F0001/X116/R2869/001/FIN",18563,"D0001/IA00130/F0001/X116/R2869/001/FIN",85460,"Assets:Non-current Assets:Property, Plant and Equipment:Cost Model:Roads Infrastructure:Accumulated Impairment:Impairment"," _"," _"," _ "," _ "," _ "," _ ",3200,"Road transport",3205,"Roads","_"," _"," _","D","IA","_","_","_","_"," _ "," _ "," _ "," _ "," _ "," _ "," _ "," _ ",110,"Roads Infrastructure",110,"Roads Infrastructure",241,"PPE at cost/valuation (excl. finance leases)",241,"PPE at cost/valuation (excl. finance leases)","",null,null," _ "," _ "," _ "," _ "," _ "," _ "," _ "," _ "," _ "," _ "," _ "," _ ","_"," _ "," _ "," _ "," _ ","_"," _ "," _ "," _ "," _ ",null,9,91,"Roads","Roads",null,null,"_","_","_",null,"_",0,0,0,0,0,0,0,0,0,0,0,0,0,0,0,0,0,0,0,{"$f":"INDEX([9]Sheet1!$H:$H,MATCH(CR:CR,[9]Sheet1!$AU:$AU,0))","v":{"$error":"#N/A"}}]
["D0001/IA00135/F0001/X116/R2859/001/FIN",18551,"D0001/IA00135/F0001/X116/R2859/001/FIN",85448,"Assets:Non-current Assets:Property, Plant and Equipment:Cost Model:Roads Infrastructure:Cost:Correction of Error"," _"," _"," _ "," _ "," _ "," _ ",3200,"Road transport",3205,"Roads","_"," _"," _","D","IA",240," Property, plant and equipment",240,"Property, plant and equipment"," _ "," _ "," _ "," _ "," _ "," _ "," _ "," _ ",110,"Roads Infrastructure",110,"Roads Infrastructure",241,"PPE at cost/valuation (excl. finance leases)",241,"PPE at cost/valuation (excl. finance leases)","",null,null," _ "," _ "," _ "," _ "," _ "," _ "," _ "," _ "," _ "," _ "," _ "," _ ","_"," _ "," _ "," _ "," _ ","_"," _ "," _ "," _ "," _ ",null,9,91,"Roads","Roads",null,null,"_","_","_",null,"_",0,0,0,0,0,0,0,0,0,0,0,0,0,0,0,0,0,0,0,{"$f":"INDEX([9]Sheet1!$H:$H,MATCH(CR:CR,[9]Sheet1!$AU:$AU,0))","v":{"$error":"#N/A"}}]
["D0001/IA05868/F0001/X049/R0072/001/FIN",16875,"D0001/IA05868/F0001/X049/R0072/001/FIN",83772,"Assets:Non-current Assets:Property, Plant and Equipment:Leased Assets:Machinery and Equipment:In-use:Cost:Opening Balance"," _"," _"," _ "," _ "," _ "," _ ",1200,"Finance and administration",1204,"Finance","_"," _"," _","D","IA",240," Property, plant and equipment",240,"Property, plant and equipment"," _ "," _ "," _ "," _ "," _ "," _ "," _ "," _ ",1510,"Machinery and Equipment",1510,"Machinery and Equipment",242,"Leases recognised as PPE",242,"Leases recognised as PPE","",null,null," _ "," _ "," _ "," _ "," _ "," _ "," _ "," _ "," _ "," _ "," _ "," _ ","_"," _ "," _ "," _ "," _ ","_"," _ "," _ "," _ "," _ ",null,1,12,"Finance and Admin","Finance",null,null,"_","_","_",null,"_",0,0,0,0,0,0,0,0,0,0,0,0,0,0,0,0,0,0,0,{"$f":"INDEX([9]Sheet1!$H:$H,MATCH(CR:CR,[9]Sheet1!$AU:$AU,0))","v":{"$error":"#N/A"}}]
["D0001/IA00038/F0001/X006/R2868/001/FIN",18258,"D0001/IA00038/F0001/X006/R2868/001/FIN",85156,"Assets:Non-current Assets:Property, Plant and Equipment:Cost Model:Community Assets:Cost:Opening Balance"," _"," _"," _ "," _ "," _ "," _ ",2100,"Community and social services",2106,"Community Halls and Facilities","_"," _"," _","D","IA",240," Property, plant and equipment",240,"Property, plant and equipment"," _ "," _ "," _ "," _ "," _ "," _ "," _ "," _ ",770,"Community Assets",770,"Community Assets",241,"PPE at cost/valuation (excl. finance leases)",241,"PPE at cost/valuation (excl. finance leases)","",null,null," _ "," _ "," _ "," _ "," _ "," _ "," _ "," _ "," _ "," _ "," _ "," _ ","_"," _ "," _ "," _ "," _ ","_"," _ "," _ "," _ "," _ ",null,3,32,"Community and social services","Community Halls and Facilities",null,null,"_","_","_",null,"_",0,0,0,0,0,0,0,17241246.800000001,0,0,0,0,0,0,0,0,0,0,0,{"$f":"INDEX([9]Sheet1!$H:$H,MATCH(CR:CR,[9]Sheet1!$AU:$AU,0))","v":{"$error":"#N/A"}}]
["D0001/IA06258/F0001/X047/R2865/001/FIN",18203,"D0001/IA06258/F0001/X047/R2865/001/FIN",85095,"Assets:Non-current Assets:Property, Plant and Equipment:Cost Model:Furniture and Office Equipment:In-use:Cost:Disposals"," _"," _"," _ "," _ "," _ "," _ ",1200,"Finance and administration",1202,"Asset Management","_"," _"," _","D","IA",240," Property, plant and equipment",240,"Property, plant and equipment"," _ "," _ "," _ "," _ "," _ "," _ "," _ "," _ ",1490,"Furniture and Office Equipment",1490,"Furniture and Office Equipment",241,"PPE at cost/valuation (excl. finance leases)",241,"PPE at cost/valuation (excl. finance leases)","",null,null," _ "," _ "," _ "," _ "," _ "," _ "," _ "," _ "," _ "," _ "," _ "," _ ","_"," _ "," _ "," _ "," _ ","_"," _ "," _ "," _ "," _ ",null,1,110,"Finance and Admin","Asset Management",null,null,"_","_","_",null,"_",0,0,0,0,0,0,0,0,0,0,0,0,0,0,0,0,0,0,0,{"$f":"INDEX([9]Sheet1!$H:$H,MATCH(CR:CR,[9]Sheet1!$AU:$AU,0))","v":{"$error":"#N/A"}}]
["D0001/IA08406/F2496/X049/R0072/001/FIN",1563,"D0001/IA08406/F2496/X049/R0072/001/FIN",42275,"Assets:Current Assets:Receivables from Non-exchange Transactions:Property Rates:Business  and Commercial:Interest Charge"," _"," _"," _ "," _ "," _ "," _ ",1200,"Finance and administration",1204,"Finance","_"," _"," _","D","IA",140,"Consumer debtors",140,"Consumer debtors"," _ "," _ "," _ "," _ "," _ "," _ "," _ "," _ "," _ "," _ "," _ "," _ ",141,"Consumer debtors",141,"Consumer debtors","",null,null," _ "," _ "," _ "," _ "," _ "," _ "," _ "," _ "," _ "," _ "," _ "," _ ","_"," _ "," _ "," _ "," _ ","_"," _ "," _ "," _ "," _ ",null,1,12,"Finance and Admin","Finance",null,null,"_","_","_",null,"_",0,0,0,0,0,0,0,0,0,0,0,0,0,0,0,0,0,0,0,{"$f":"INDEX([9]Sheet1!$H:$H,MATCH(CR:CR,[9]Sheet1!$AU:$AU,0))","v":{"$error":"#N/A"}}]
["D0001/IA01359/F0001/X049/R0405/001/FIN",17797,"D0001/IA01359/F0001/X049/R0405/001/FIN",84694,"Assets:Non-current Assets:Property, Plant and Equipment:Cost Model:Transport Assets:Owned and In-use:Accumulated Depreciation:Opening Balance"," _"," _"," _ "," _ "," _ "," _ ",1200,"Finance and administration",1204,"Finance","_"," _"," _","D","IA",240," Property, plant and equipment",240,"Property, plant and equipment"," _ "," _ "," _ "," _ "," _ "," _ "," _ "," _ ",1530,"Transport Assets",1530,"Transport Assets",243,"Less: Accumulated depreciation",243,"Less: Accumulated depreciation","",null,null," _ "," _ "," _ "," _ "," _ "," _ "," _ "," _ "," _ "," _ "," _ "," _ ","_"," _ "," _ "," _ "," _ ","_"," _ "," _ "," _ "," _ ",null,1,12,"Finance and Admin","Finance",null,null,"_","_","_",null,"_",0,0,0,0,0,0,0,0,0,0,0,0,0,0,0,0,0,0,0,{"$f":"INDEX([9]Sheet1!$H:$H,MATCH(CR:CR,[9]Sheet1!$AU:$AU,0))","v":{"$error":"#N/A"}}]
["D0001/IA01372/F0001/X153/R0073/001/FIN",18181,"D0001/IA01372/F0001/X153/R0073/001/FIN",85078,"Assets:Non-current Assets:Property, Plant and Equipment:Cost Model:Transport Assets:Owned and In-use:Cost:Disposals"," _"," _"," _ "," _ "," _ "," _ ",2300,"Public safety",2307,"Police Forces, Traffic and Street Parking Control","_"," _"," _","D","IA",240," Property, plant and equipment",240,"Property, plant and equipment"," _ "," _ "," _ "," _ "," _ "," _ "," _ "," _ ",1530,"Transport Assets",1530,"Transport Assets",241,"PPE at cost/valuation (excl. finance leases)",241,"PPE at cost/valuation (excl. finance leases)","",null,null," _ "," _ "," _ "," _ "," _ "," _ "," _ "," _ "," _ "," _ "," _ "," _ ","_"," _ "," _ "," _ "," _ ","_"," _ "," _ "," _ "," _ ",null,8,81,"Public Safety","Police Forces, Traffic and Street Parking Control",null,null,"_","_","_",null,"_",0,0,0,0,0,0,0,0,0,0,0,0,0,0,0,0,0,0,0,{"$f":"INDEX([9]Sheet1!$H:$H,MATCH(CR:CR,[9]Sheet1!$AU:$AU,0))","v":{"$error":"#N/A"}}]
["D0001/IA02125/F0042/X153/R0072/001/FIN",16861,"D0001/IA02125/F0042/X153/R0072/001/FIN",83758,"Assets:Current Assets:Receivables from Non-exchange Transactions:Fines:Impairment Fines:Opening Balance"," _"," _"," _ "," _ "," _ "," _ ",2300,"Public safety",2307,"Police Forces, Traffic and Street Parking Control","_"," _"," _","D","IA","_","_","_","_"," _ "," _ "," _ "," _ "," _ "," _ "," _ "," _ "," _ "," _ "," _ "," _ "," _ "," _ "," _ "," _ ","",null,null," _ "," _ "," _ "," _ "," _ "," _ "," _ "," _ "," _ "," _ "," _ "," _ ","_"," _ "," _ "," _ "," _ ","_"," _ "," _ "," _ "," _ ",null,8,81,"Public Safety","Police Forces, Traffic and Street Parking Control",null,null,"_","_","_",null,"_",-7692840,0,0,0,-7692840,-8757848,-9195740,0,0,0,0,0,0,0,0,0,0,0,0,{"$f":"INDEX([9]Sheet1!$H:$H,MATCH(CR:CR,[9]Sheet1!$AU:$AU,0))","v":{"$error":"#N/A"}}]
["D0001/IA06319/F0001/X060/R2867/001/FIN",18174,"D0001/IA06319/F0001/X060/R2867/001/FIN",85067,"Assets:Non-current Assets:Property, Plant and Equipment:Cost Model:Machinery and Equipment:In-use:Cost:Opening Balance"," _"," _"," _ "," _ "," _ "," _ ",1200,"Finance and administration",1202,"Asset Management","_"," _"," _","D","IA",240," Property, plant and equipment",240,"Property, plant and equipment"," _ "," _ "," _ "," _ "," _ "," _ "," _ "," _ ",1510,"Machinery and Equipment",1510,"Machinery and Equipment",241,"PPE at cost/valuation (excl. finance leases)",241,"PPE at cost/valuation (excl. finance leases)","",null,null," _ "," _ "," _ "," _ "," _ "," _ "," _ "," _ "," _ "," _ "," _ "," _ ","_"," _ "," _ "," _ "," _ ","_"," _ "," _ "," _ "," _ ",null,1,110,"Finance and Admin","Asset Management",null,null,"_","_","_",null,"_",0,0,0,0,0,0,0,0,0,0,0,0,0,0,0,0,0,0,0,{"$f":"INDEX([9]Sheet1!$H:$H,MATCH(CR:CR,[9]Sheet1!$AU:$AU,0))","v":{"$error":"#N/A"}}]
["D0001/IA09912/F2494/X049/R0072/001/FIN",18006,"D0001/IA09912/F2494/X049/R0072/001/FIN",84903,"Assets:Current Assets:Cash and Cash Equivalents:Cash at Bank:Savings Account:Specify (replace with account description):Interest Earned"," _"," _"," _ "," _ "," _ "," _ ",1200,"Finance and administration",1204,"Finance","_"," _"," _","D","IA",120,"Cash",120,"Cash","0170I","Interest","0170I","Interest"," _ "," _ "," _ "," _ "," _ "," _ "," _ "," _ "," _ "," _ "," _ "," _ ","",null,"I"," _ "," _ "," _ "," _ "," _ "," _ "," _ "," _ "," _ "," _ "," _ "," _ ","_"," _ "," _ "," _ "," _ ","_"," _ "," _ "," _ "," _ ",null,1,12,"Finance and Admin","Finance",null,null,"_","_","_",null,"_",0,0,0,0,0,0,0,0,0,0,0,0,0,0,0,0,0,0,0,{"$f":"INDEX([9]Sheet1!$H:$H,MATCH(CR:CR,[9]Sheet1!$AU:$AU,0))","v":{"$error":"#N/A"}}]
["D0001/IA09598/F2494/X049/R0072/001/FIN",18040,"D0001/IA09598/F2494/X049/R0072/001/FIN",84937,"Assets:Current Assets:Cash and Cash Equivalents:Cash at Bank:Bank Account:Specify (replace with account description):Deposits"," _"," _"," _ "," _ "," _ "," _ ",1200,"Finance and administration",1204,"Finance","_"," _"," _","D","IA",120,"Cash",120,"Cash","0170D","Interest","0170D","Interest",null,"Recepts - Cash and Cash Equivalents",null,"Recepts - Cash and Cash Equivalents"," _ "," _ "," _ "," _ "," _ "," _ "," _ "," _ ","",null,"D"," _ "," _ "," _ "," _ "," _ "," _ "," _ "," _ "," _ "," _ "," _ "," _ ","_"," _ "," _ "," _ "," _ ","_"," _ "," _ "," _ "," _ ",null,1,12,"Finance and Admin","Finance",null,null,"_","_","_",null,"_",0,0,0,0,0,0,0,0,0,0,0,0,0,0,0,0,0,0,0,{"$f":"INDEX([9]Sheet1!$H:$H,MATCH(CR:CR,[9]Sheet1!$AU:$AU,0))","v":{"$error":"#N/A"}}]
["D0001/IA10006/F0001/X049/R0072/001/FIN",17171,"D0001/IA10006/F0001/X049/R0072/001/FIN",84068,"Assets:Current Assets:Cash and Cash Equivalents:Cash at Bank:Bank Account:Specify (replace with account description):Opening Balance"," _"," _"," _ "," _ "," _ "," _ ",1200,"Finance and administration",1204,"Finance","_"," _"," _","D","IA",120,"Cash",120,"Cash"," _ "," _ "," _ "," _ ",420,"Cash/cash equivalents at the month/year begin:",560,"Cash/cash equivalents at the month/year begin:"," _ "," _ "," _ "," _ "," _ "," _ "," _ "," _ ","",null,null," _ "," _ "," _ "," _ "," _ "," _ "," _ "," _ "," _ "," _ "," _ "," _ ","_"," _ "," _ "," _ "," _ ","_"," _ "," _ "," _ "," _ ",null,1,12,"Finance and Admin","Finance",null,null,"_","_","_",null,"_",0,0,0,0,0,0,0,0,0,0,0,0,0,0,0,0,0,0,0,{"$f":"INDEX([9]Sheet1!$H:$H,MATCH(CR:CR,[9]Sheet1!$AU:$AU,0))","v":{"$error":"#N/A"}}]
["D0001/IA10024/F0001/X049/R0072/001/FIN",17347,"D0001/IA10024/F0001/X049/R0072/001/FIN",84244,"Assets:Current Assets:Cash and Cash Equivalents:Call Deposits and Investments:Short Term portion of Investments:Listed/Unlisted Bonds and Stocks:Opening Balance"," _"," _"," _ "," _ "," _ "," _ ",1200,"Finance and administration",1204,"Finance","_"," _"," _","D","IA",130,"Call deposits and investments",130,"Call deposits and investments"," _ "," _ "," _ "," _ ",420,"Cash/cash equivalents at the month/year begin:",560,"Cash/cash equivalents at the month/year begin:"," _ "," _ "," _ "," _ "," _ "," _ "," _ "," _ ","",null,null," _ "," _ "," _ "," _ "," _ "," _ "," _ "," _ "," _ "," _ "," _ "," _ ","_"," _ "," _ "," _ "," _ ","_"," _ "," _ "," _ "," _ ",null,1,12,"Finance and Admin","Finance",7,null,"_","_","_",null,"_",0,0,0,0,0,0,0,0,0,0,0,0,0,0,0,0,0,0,0,{"$f":"INDEX([9]Sheet1!$H:$H,MATCH(CR:CR,[9]Sheet1!$AU:$AU,0))","v":{"$error":"#N/A"}}]
["D0001/IA02700/F0001/X049/R0072/001/FIN",17438,"D0001/IA02700/F0001/X049/R0072/001/FIN",84335,"Assets:Current Assets:Receivables from Non-exchange Transactions:Property Rates:Residential Properties:Vacant Land:Opening Balance"," _"," _"," _ "," _ "," _ "," _ ",1200,"Finance and administration",1204,"Finance","_"," _"," _","D","IA",140,"Consumer debtors",140,"Consumer debtors"," _ "," _ "," _ "," _ "," _ "," _ "," _ "," _ "," _ "," _ "," _ "," _ ",141,"Consumer debtors",141,"Consumer debtors","",null,null," _ "," _ "," _ "," _ "," _ "," _ "," _ "," _ "," _ "," _ "," _ "," _ ","_"," _ "," _ "," _ "," _ ","_"," _ "," _ "," _ "," _ ",null,1,12,"Finance and Admin","Finance",null,null,"_","_","_",null,"_",0,0,0,0,0,0,0,0,0,0,0,0,0,0,0,0,0,0,0,{"$f":"INDEX([9]Sheet1!$H:$H,MATCH(CR:CR,[9]Sheet1!$AU:$AU,0))","v":{"$error":"#N/A"}}]
["D0001/IA10046/F0001/X049/R0072/001/FIN",17303,"D0001/IA10046/F0001/X049/R0072/001/FIN",84200,"Assets:Current Assets:Cash and Cash Equivalents:Call Deposits and Investments:Special Deposit for the Payment of Dividend:Specify (replace with account description):Opening Balance"," _"," _"," _ "," _ "," _ "," _ ",1200,"Finance and administration",1204,"Finance","_"," _"," _","D","IA",130,"Call deposits and investments",130,"Call deposits and investments"," _ "," _ "," _ "," _ ",420,"Cash/cash equivalents at the month/year begin:",560,"Cash/cash equivalents at the month/year begin:"," _ "," _ "," _ "," _ "," _ "," _ "," _ "," _ ","",null,null," _ "," _ "," _ "," _ "," _ "," _ "," _ "," _ "," _ "," _ "," _ "," _ ","_"," _ "," _ "," _ "," _ ","_"," _ "," _ "," _ "," _ ",null,1,12,"Finance and Admin","Finance",null,null,"_","_","_",null,"_",0,0,0,0,0,0,0,0,0,0,0,0,0,0,0,0,0,0,0,{"$f":"INDEX([9]Sheet1!$H:$H,MATCH(CR:CR,[9]Sheet1!$AU:$AU,0))","v":{"$error":"#N/A"}}]
["D0001/IA10156/F0001/X049/R0074/001/FIN",16902,"D0001/IA10156/F0001/X049/R0074/001/FIN",83799,"Assets:Current Assets:Cash and Cash Equivalents:Cash at Bank:Savings Account:Specify (replace with account description):Opening Balance"," _"," _"," _ "," _ "," _ "," _ ",1200,"Finance and administration",1204,"Finance","_"," _"," _","D","IA",120,"Cash",120,"Cash"," _ "," _ "," _ "," _ ",420,"Cash/cash equivalents at the month/year begin:",560,"Cash/cash equivalents at the month/year begin:"," _ "," _ "," _ "," _ "," _ "," _ "," _ "," _ ","",null,null," _ "," _ "," _ "," _ "," _ "," _ "," _ "," _ "," _ "," _ "," _ "," _ ","_"," _ "," _ "," _ "," _ ","_"," _ "," _ "," _ "," _ ",null,1,12,"Finance and Admin","Finance",null,null,"_","_","_",null,"_",0,0,0,0,0,0,0,0,0,0,0,0,0,0,0,0,0,0,0,{"$f":"INDEX([9]Sheet1!$H:$H,MATCH(CR:CR,[9]Sheet1!$AU:$AU,0))","v":{"$error":"#N/A"}}]
["D0001/IA00129/F0001/X116/R2859/001/FIN",18553,"D0001/IA00129/F0001/X116/R2859/001/FIN",85451,"Assets:Non-current Assets:Property, Plant and Equipment:Cost Model:Roads Infrastructure:Accumulated Impairment:Disposals/Transfers Out"," _"," _"," _ "," _ "," _ "," _ ",3200,"Road transport",3205,"Roads","_"," _"," _","D","IA","_","_","_","_"," _ "," _ "," _ "," _ "," _ "," _ "," _ "," _ ",110,"Roads Infrastructure",110,"Roads Infrastructure",241,"PPE at cost/valuation (excl. finance leases)",241,"PPE at cost/valuation (excl. finance leases)","",null,null," _ "," _ "," _ "," _ "," _ "," _ "," _ "," _ "," _ "," _ "," _ "," _ ","_"," _ "," _ "," _ "," _ ","_"," _ "," _ "," _ "," _ ",null,9,91,"Roads","Roads",null,null,"_","_","_",null,"_",0,0,0,0,0,0,0,0,0,0,0,0,0,0,0,0,0,0,0,{"$f":"INDEX([9]Sheet1!$H:$H,MATCH(CR:CR,[9]Sheet1!$AU:$AU,0))","v":{"$error":"#N/A"}}]
["D0001/IA10181/F0001/X049/R0072/001/FIN",17339,"D0001/IA10181/F0001/X049/R0072/001/FIN",84236,"Assets:Current Assets:Cash and Cash Equivalents:Call Deposits and Investments:Short Term portion of Investments:Deposit Taking Institutions:Opening Balance"," _"," _"," _ "," _ "," _ "," _ ",1200,"Finance and administration",1204,"Finance","_"," _"," _","D","IA",130,"Call deposits and investments",130,"Call deposits and investments"," _ "," _ "," _ "," _ ",420,"Cash/cash equivalents at the month/year begin:",560,"Cash/cash equivalents at the month/year begin:"," _ "," _ "," _ "," _ "," _ "," _ "," _ "," _ ","",null,null," _ "," _ "," _ "," _ "," _ "," _ "," _ "," _ "," _ "," _ "," _ "," _ ","_"," _ "," _ "," _ "," _ ","_"," _ "," _ "," _ "," _ ",null,1,12,"Finance and Admin","Finance",null,null,"_","_","_",null,"_",0,0,0,0,0,0,0,0,0,0,0,0,0,0,0,0,0,0,0,{"$f":"INDEX([9]Sheet1!$H:$H,MATCH(CR:CR,[9]Sheet1!$AU:$AU,0))","v":{"$error":"#N/A"}}]
["D0001/IA10215/F0045/X049/R0072/001/FIN",18602,"D0001/IA10215/F0045/X049/R0072/001/FIN",85499,"Assets:Current Assets:Cash and Cash Equivalents:Cash on Hand:Petty Cash:Advances to Petty Cash"," _"," _"," _ "," _ "," _ "," _ ",1200,"Finance and administration",1204,"Finance","_"," _"," _","D","IA",120,"Cash",120,"Cash"," _ "," _ "," _ "," _ "," _ "," _ "," _ "," _ "," _ "," _ "," _ "," _ "," _ "," _ "," _ "," _ ","0250","Other revenue",null," _ "," _ "," _ "," _ "," _ "," _ "," _ "," _ "," _ "," _ "," _ "," _ ","_"," _ "," _ "," _ "," _ ","_"," _ "," _ "," _ "," _ ",null,1,12,"Finance and Admin","Finance",null,null,"_","_","_",null,"_",0,0,0,0,0,0,0,0,0,0,0,0,0,0,0,0,0,0,0,{"$f":"INDEX([9]Sheet1!$H:$H,MATCH(CR:CR,[9]Sheet1!$AU:$AU,0))","v":{"$error":"#N/A"}}]
["D0001/IA10186/F0001/X049/R0072/001/FIN",17345,"D0001/IA10186/F0001/X049/R0072/001/FIN",84242,"Assets:Current Assets:Cash and Cash Equivalents:Call Deposits and Investments:Deposit taking Institutions:Specify (replace with account description):Opening Balance"," _"," _"," _ "," _ "," _ "," _ ",1200,"Finance and administration",1204,"Finance","_"," _"," _","D","IA",130,"Call deposits and investments",130,"Call deposits and investments"," _ "," _ "," _ "," _ ",420,"Cash/cash equivalents at the month/year begin:",560,"Cash/cash equivalents at the month/year begin:"," _ "," _ "," _ "," _ "," _ "," _ "," _ "," _ ","",null,null," _ "," _ "," _ "," _ "," _ "," _ "," _ "," _ "," _ "," _ "," _ "," _ ","_"," _ "," _ "," _ "," _ ","_"," _ "," _ "," _ "," _ ",null,1,12,"Finance and Admin","Finance",8,null,"_","_","_",null,"_",0,0,0,0,0,0,0,0,0,0,0,0,0,0,0,0,0,0,0,{"$f":"INDEX([9]Sheet1!$H:$H,MATCH(CR:CR,[9]Sheet1!$AU:$AU,0))","v":{"$error":"#N/A"}}]
["D0001/IA10045/F0001/X049/R0072/001/FIN",17302,"D0001/IA10045/F0001/X049/R0072/001/FIN",84199,"Assets:Current Assets:Cash and Cash Equivalents:Call Deposits and Investments:Special Deposit for the Payment of Dividend:Specify (replace with account description):Opening Balance"," _"," _"," _ "," _ "," _ "," _ ",1200,"Finance and administration",1204,"Finance","_"," _"," _","D","IA",130,"Call deposits and investments",130,"Call deposits and investments"," _ "," _ "," _ "," _ ",420,"Cash/cash equivalents at the month/year begin:",560,"Cash/cash equivalents at the month/year begin:"," _ "," _ "," _ "," _ "," _ "," _ "," _ "," _ ","",null,null," _ "," _ "," _ "," _ "," _ "," _ "," _ "," _ "," _ "," _ "," _ "," _ ","_"," _ "," _ "," _ "," _ ","_"," _ "," _ "," _ "," _ ",null,1,12,"Finance and Admin","Finance",null,null,"_","_","_",null,"_",0,0,0,0,0,0,0,0,0,0,0,0,0,0,0,0,0,0,0,{"$f":"INDEX([9]Sheet1!$H:$H,MATCH(CR:CR,[9]Sheet1!$AU:$AU,0))","v":{"$error":"#N/A"}}]
["D0001/IA10102/F0001/X049/R0072/001/FIN",17225,"D0001/IA10102/F0001/X049/R0072/001/FIN",84122,"Assets:Current Assets:Cash and Cash Equivalents:Cash at Bank:Bank Account:Specify (replace with account description):Opening Balance"," _"," _"," _ "," _ "," _ "," _ ",1200,"Finance and administration",1204,"Finance","_"," _"," _","D","IA",120,"Cash",120,"Cash"," _ "," _ "," _ "," _ ",420,"Cash/cash equivalents at the month/year begin:",560,"Cash/cash equivalents at the month/year begin:"," _ "," _ "," _ "," _ "," _ "," _ "," _ "," _ ","",null,null," _ "," _ "," _ "," _ "," _ "," _ "," _ "," _ "," _ "," _ "," _ "," _ ","_"," _ "," _ "," _ "," _ ","_"," _ "," _ "," _ "," _ ",null,1,12,"Finance and Admin","Finance",null,null,"_","_","_",null,"_",0,0,0,0,0,0,0,0,0,0,0,0,0,0,0,0,0,0,0,{"$f":"INDEX([9]Sheet1!$H:$H,MATCH(CR:CR,[9]Sheet1!$AU:$AU,0))","v":{"$error":"#N/A"}}]
["D0001/IA10104/F0001/X049/R0072/001/FIN",17226,"D0001/IA10104/F0001/X049/R0072/001/FIN",84123,"Assets:Current Assets:Cash and Cash Equivalents:Cash at Bank:Bank Account:Specify (replace with account description):Opening Balance"," _"," _"," _ "," _ "," _ "," _ ",1200,"Finance and administration",1204,"Finance","_"," _"," _","D","IA",120,"Cash",120,"Cash"," _ "," _ "," _ "," _ ",420,"Cash/cash equivalents at the month/year begin:",560,"Cash/cash equivalents at the month/year begin:"," _ "," _ "," _ "," _ "," _ "," _ "," _ "," _ ","",null,null," _ "," _ "," _ "," _ "," _ "," _ "," _ "," _ "," _ "," _ "," _ "," _ ","_"," _ "," _ "," _ "," _ ","_"," _ "," _ "," _ "," _ ",null,1,12,"Finance and Admin","Finance",null,null,"_","_","_",null,"_",0,0,0,0,0,0,0,0,0,0,0,0,0,0,0,0,0,0,0,{"$f":"INDEX([9]Sheet1!$H:$H,MATCH(CR:CR,[9]Sheet1!$AU:$AU,0))","v":{"$error":"#N/A"}}]
["D0001/IL076134/F13636/X101/R0073/001/Tech",16793,"D0001/IL076134/F13636/X101/R0073/001/Tech",83690,"Liabilities:Current Liabilities:Trade and Other Payable Non-exchange Transactions:Transfers and Subsidies Payable:Operational:Monetary Allocations:Provincial Government:KwaZulu-Natal:Capacity Building and Other:Specify (Add grant description):Transferred to Revenue/Capital Expenditure"," _"," _"," _ "," _ "," _ "," _ ",3100,"Planning and development",3107,"Town Planning, Building Regulations and Enforcement, and City Engineer","_"," _"," _","D","IL",360," Trade and other payables",360,"Trade and other payables"," _ "," _ "," _ "," _ ",220,"Cash Payments by Type / Transfers and grants - other",470,"Transfers and grants - other"," _ "," _ "," _ "," _ ",362," Other creditors",362," Other creditors","",null,null," _ "," _ "," _ "," _ "," _ "," _ "," _ "," _ "," _ "," _ "," _ "," _ ","_"," _ "," _ "," _ "," _ ","_"," _ "," _ "," _ "," _ ",null,7,72,"Planning and Development","Town Planning, Building Regulations and Enforcement, and City Engineer",null,null,"_","_","_",null,"_",0,0,0,0,0,0,0,0,0,0,0,0,0,0,0,0,0,0,0,{"$f":"INDEX([9]Sheet1!$H:$H,MATCH(CR:CR,[9]Sheet1!$AU:$AU,0))","v":{"$error":"#N/A"}}]
["D0001/IL093003/F0001/X049/R0072/001/FIN",17621,"D0001/IL093003/F0001/X049/R0072/001/FIN",84518,"Liabilities:Current Liabilities:Trade and Other Payable Non-exchange Transactions:Transfers and Subsidies Unspent:Operational:Monetary Allocations:Provincial Government:KwaZulu-Natal:Infrastructure:Specify (Add grant description):Opening Balance"," _"," _"," _ "," _ "," _ "," _ ",1200,"Finance and administration",1204,"Finance","_"," _"," _","D","IL",360," Trade and other payables",360,"Trade and other payables"," _ "," _ "," _ "," _ "," _ "," _ "," _ "," _ "," _ "," _ "," _ "," _ ",363,"Unspent conditional transfers",363,"Unspent conditional transfers","",null,null," _ "," _ "," _ "," _ "," _ "," _ "," _ "," _ "," _ "," _ "," _ "," _ ","_"," _ "," _ "," _ "," _ ","_"," _ "," _ "," _ "," _ ",null,1,12,"Finance and Admin","Finance",null,null,"_","_","_",null,"_",0,0,0,0,0,0,0,0,0,0,0,0,0,0,0,0,0,0,0,{"$f":"INDEX([9]Sheet1!$H:$H,MATCH(CR:CR,[9]Sheet1!$AU:$AU,0))","v":{"$error":"#N/A"}}]
["C0040-42/IA01952/F0791/X116/R2864/001/Tech",18669,"C0040-42/IA01952/F0791/X116/R2864/001/Tech",85569,"Assets:Non-current Assets:Construction Work-in-progress:Acquisitions:Outsourced"," _"," _"," _ "," _ "," _ "," _ ",3200,"Road transport",3205,"Roads","CE",2010,"National Government","C","IA",240," Property, plant and equipment",240,"Property, plant and equipment"," _ "," _ "," _ "," _ "," _ "," _ "," _ "," _ "," _ "," _ "," _ "," _ ",241,"PPE at cost/valuation (excl. finance leases)",241,"PPE at cost/valuation (excl. finance leases)","",null,null,120,"Roads",120,"Roads"," _ "," _ "," _ "," _ "," _ "," _ "," _ "," _ ","_"," _ "," _ "," _ "," _ ","_"," _ "," _ "," _ "," _ ",null,9,91,"Roads","Roads",null,null,"_","_","_",110,"_",0,0,0,462868,462868,0,0,0,0,0,0,0,0,0,0,0,0,0,0,{"$f":"INDEX([9]Sheet1!$H:$H,MATCH(CR:CR,[9]Sheet1!$AU:$AU,0))","v":{"$error":"#N/A"}}]
["D0001/IA00122/F0001/X116/R2865/001/FIN",18394,"D0001/IA00122/F0001/X116/R2865/001/FIN",85287,"Assets:Non-current Assets:Property, Plant and Equipment:Cost Model:Roads Infrastructure:Accumulated Depreciation:Depreciation"," _"," _"," _ "," _ "," _ "," _ ",3200,"Road transport",3205,"Roads","_"," _"," _","D","IA",240," Property, plant and equipment",240,"Property, plant and equipment"," _ "," _ "," _ "," _ "," _ "," _ "," _ "," _ ",110,"Roads Infrastructure",110,"Roads Infrastructure",243,"Less: Accumulated depreciation",243,"Less: Accumulated depreciation","",null,null," _ "," _ "," _ "," _ "," _ "," _ "," _ "," _ "," _ "," _ "," _ "," _ ","_"," _ "," _ "," _ "," _ ","_"," _ "," _ "," _ "," _ ",null,9,91,"Roads","Roads",null,null,"_","_","_",null,"_",0,0,0,0,0,0,0,-161698.44,-156308.49,-156308.48790000001,-161698.4357,-819272.07,-161698.44,-161698.44,0,0,0,0,0,{"$f":"INDEX([9]Sheet1!$H:$H,MATCH(CR:CR,[9]Sheet1!$AU:$AU,0))","v":{"$error":"#N/A"}}]
["D0001/IL080152/F0001/X049/R0072/001/FIN",17708,"D0001/IL080152/F0001/X049/R0072/001/FIN",84605,"Liabilities:Current Liabilities:Trade and Other Payable Non-exchange Transactions:Transfers and Subsidies Payable:Operational:Allocations In-kind:Provincial Governments:KwaZulu-Natal:Capacity Building and Other:Specify (Add grant description):Opening Balance"," _"," _"," _ "," _ "," _ "," _ ",1200,"Finance and administration",1204,"Finance","_"," _"," _","D","IL",360," Trade and other payables",360,"Trade and other payables"," _ "," _ "," _ "," _ "," _ "," _ "," _ "," _ "," _ "," _ "," _ "," _ ",362," Other creditors",362," Other creditors","",null,null," _ "," _ "," _ "," _ "," _ "," _ "," _ "," _ "," _ "," _ "," _ "," _ ","_"," _ "," _ "," _ "," _ ","_"," _ "," _ "," _ "," _ ",null,1,12,"Finance and Admin","Finance",null,null,"_","_","_",null,"_",0,0,0,0,0,0,0,0,0,0,0,0,0,0,0,0,0,0,0,{"$f":"INDEX([9]Sheet1!$H:$H,MATCH(CR:CR,[9]Sheet1!$AU:$AU,0))","v":{"$error":"#N/A"}}]
["D0001/IL112883/F0001/X049/R0072/001/FIN",17696,"D0001/IL112883/F0001/X049/R0072/001/FIN",84593,"Liabilities:Current Liabilities:Trade and Other Payable Non-exchange Transactions:Transfers and Subsidies Payable:Capital:Monetary Allocations:Provincial Government:KwaZulu-Natal:Capacity Building and Other:Specify (Add grant description):Opening Balance"," _"," _"," _ "," _ "," _ "," _ ",1200,"Finance and administration",1204,"Finance","_"," _"," _","D","IL",360," Trade and other payables",360,"Trade and other payables"," _ "," _ "," _ "," _ "," _ "," _ "," _ "," _ "," _ "," _ "," _ "," _ ",362," Other creditors",362," Other creditors","",null,null," _ "," _ "," _ "," _ "," _ "," _ "," _ "," _ "," _ "," _ "," _ "," _ ","_"," _ "," _ "," _ "," _ ","_"," _ "," _ "," _ "," _ ",null,1,12,"Finance and Admin","Finance",null,null,"_","_","_",null,"_",0,0,0,0,0,0,0,0,0,0,0,0,0,0,0,0,0,0,0,{"$f":"INDEX([9]Sheet1!$H:$H,MATCH(CR:CR,[9]Sheet1!$AU:$AU,0))","v":{"$error":"#N/A"}}]
["D0001/IL115889/F0001/X049/R0072/001/FIN",17936,"D0001/IL115889/F0001/X049/R0072/001/FIN",84833,"Liabilities:Current Liabilities:Trade and Other Payable Non-exchange Transactions:Transfers and Subsidies Unspent:Capital:Monetary Allocations:Provincial Government:KwaZulu-Natal:Capacity Building and Other:Specify (Add grant description):Opening Balance"," _"," _"," _ "," _ "," _ "," _ ",1200,"Finance and administration",1204,"Finance","_"," _"," _","D","IL",360," Trade and other payables",360,"Trade and other payables"," _ "," _ "," _ "," _ "," _ "," _ "," _ "," _ "," _ "," _ "," _ "," _ ",363,"Unspent conditional transfers",363,"Unspent conditional transfers","",null,null," _ "," _ "," _ "," _ "," _ "," _ "," _ "," _ "," _ "," _ "," _ "," _ ","_"," _ "," _ "," _ "," _ ","_"," _ "," _ "," _ "," _ ",null,1,12,"Finance and Admin","Finance",null,null,"_","_","_",null,"_",0,0,0,0,0,0,0,0,0,0,0,0,0,0,0,0,0,0,0,{"$f":"INDEX([9]Sheet1!$H:$H,MATCH(CR:CR,[9]Sheet1!$AU:$AU,0))","v":{"$error":"#N/A"}}]
["D0001/IL076156/F0001/X049/R0072/001/FIN",17964,"D0001/IL076156/F0001/X049/R0072/001/FIN",84861,"Liabilities:Current Liabilities:Trade and Other Payable Non-exchange Transactions:Transfers and Subsidies Payable:Operational:Monetary Allocations:Provincial Government:KwaZulu-Natal:Capacity Building and Other:Specify (Add grant description):Opening Balance"," _"," _"," _ "," _ "," _ "," _ ",1200,"Finance and administration",1204,"Finance","_"," _"," _","D","IL",360," Trade and other payables",360,"Trade and other payables"," _ "," _ "," _ "," _ "," _ "," _ "," _ "," _ "," _ "," _ "," _ "," _ ",362," Other creditors",362," Other creditors","",null,null," _ "," _ "," _ "," _ "," _ "," _ "," _ "," _ "," _ "," _ "," _ "," _ ","_"," _ "," _ "," _ "," _ ","_"," _ "," _ "," _ "," _ ",null,1,12,"Finance and Admin","Finance",null,null,"_","_","_",null,"_",0,0,0,0,0,0,0,0,0,0,0,0,0,0,0,0,0,0,0,{"$f":"INDEX([9]Sheet1!$H:$H,MATCH(CR:CR,[9]Sheet1!$AU:$AU,0))","v":{"$error":"#N/A"}}]
["D0001/IL53713/F0001/X049/R0072/001/FIN",17666,"D0001/IL53713/F0001/X049/R0072/001/FIN",84563,"Liabilities:Current Liabilities:Trade and Other Payable Exchange Transactions:Bonus:Opening Balance"," _"," _"," _ "," _ "," _ "," _ ",1200,"Finance and administration",1204,"Finance","_"," _"," _","D","IL",360," Trade and other payables",360,"Trade and other payables"," _ "," _ "," _ "," _ "," _ "," _ "," _ "," _ "," _ "," _ "," _ "," _ ",361,"Trade Payables",361,"Trade Payables","",null,null," _ "," _ "," _ "," _ "," _ "," _ "," _ "," _ "," _ "," _ "," _ "," _ ","_"," _ "," _ "," _ "," _ ","_"," _ "," _ "," _ "," _ ",null,1,12,"Finance and Admin","Finance",null,null,"_","_","_",null,"_",0,0,0,0,0,0,0,0,0,0,0,0,0,0,0,0,0,0,0,{"$f":"INDEX([9]Sheet1!$H:$H,MATCH(CR:CR,[9]Sheet1!$AU:$AU,0))","v":{"$error":"#N/A"}}]
["D0001/IR006972/F13636/X049/R0072/001/FIN",5337,"D0001/IR006972/F13636/X049/R0072/001/FIN",52421,"Revenue:Non-exchange Revenue:Transfers and Subsidies:Operational:Monetary Allocations:Provincial Government:KwaZulu-Natal:Capacity Building and Other:Specify (Add grant description)",1500,"Transfers and subsidies",1500,"Transfers and subsidies"," _ "," _ ",1200,"Finance and administration",1204,"Finance","_"," _"," _","D","IR"," _ "," _ "," _ "," _ "," _ "," _ "," _ "," _ "," _ "," _ "," _ "," _ "," _ "," _ "," _ "," _ "," _ "," _ "," _ "," _ ","",null,null," _ "," _ "," _ "," _ "," _ "," _ "," _ "," _ "," _ "," _ "," _ "," _ ","_"," _ "," _ "," _ "," _ ","_"," _ "," _ "," _ "," _ ",null,1,12,"Finance and Admin","Finance",null,null,"_","_","_",null,"_",0,0,0,0,0,0,0,0,0,0,0,0,0,0,0,0,0,0,0,{"$f":"INDEX([9]Sheet1!$H:$H,MATCH(CR:CR,[9]Sheet1!$AU:$AU,0))","v":{"$error":"#N/A"}}]
["D0001/IL115939/F09789/X096/R2861/001/LED",18720,"D0001/IL115939/F09789/X096/R2861/001/LED",85622,"Liabilities:Current Liabilities:Trade and Other Payable Non-exchange Transactions:Transfers and Subsidies Unspent:Capital:Monetary Allocations:Provincial Government:KwaZulu-Natal:Capacity Building and Other:Specify (Add grant description):Transferred to Revenue/Capital Expenditure"," _"," _"," _ "," _ "," _ "," _ ",3100,"Planning and development",3102,"Corporate Wide Strategic Planning (IDPs, LEDs)","_",2020,"Provincial Government","D","IL",360," Trade and other payables",360,"Trade and other payables"," _ "," _ "," _ "," _ "," _ "," _ "," _ "," _ "," _ "," _ "," _ "," _ ",363,"Unspent conditional transfers",363,"Unspent conditional transfers","",null,null," _ "," _ "," _ "," _ "," _ "," _ "," _ "," _ "," _ "," _ "," _ "," _ ","_"," _ "," _ "," _ "," _ ","_"," _ "," _ "," _ "," _ ",null,7,71,"Planning and Development","Corporate Wide Strategic Planning (IDPs, LEDs)",null,null,"_","_","_",null,"_",0,0,0,0,0,0,0,0,0,0,0,0,0,0,0,0,0,0,0,{"$f":"INDEX([9]Sheet1!$H:$H,MATCH(CR:CR,[9]Sheet1!$AU:$AU,0))","v":{"$error":"#N/A"}}]
["D0001/IL53938/F0001/X049/R0405/001/FIN",17810,"D0001/IL53938/F0001/X049/R0405/001/FIN",84707,"Liabilities:Current Liabilities:Trade and Other Payable Exchange Transactions:Affiliates, Related Parties and Associated Companies:Specify (Replace with the name of the Entity):Opening Balance"," _"," _"," _ "," _ "," _ "," _ ",1200,"Finance and administration",1204,"Finance","_"," _"," _","D","IL",360," Trade and other payables",360,"Trade and other payables"," _ "," _ "," _ "," _ "," _ "," _ "," _ "," _ "," _ "," _ "," _ "," _ ",361,"Trade Payables",361,"Trade Payables","",null,null," _ "," _ "," _ "," _ "," _ "," _ "," _ "," _ "," _ "," _ "," _ "," _ ","_"," _ "," _ "," _ "," _ ","_"," _ "," _ "," _ "," _ ",null,1,12,"Finance and Admin","Finance",null,null,"_","_","_",null,"_",0,0,0,0,0,0,0,0,0,0,0,0,0,0,0,0,0,0,0,{"$f":"INDEX([9]Sheet1!$H:$H,MATCH(CR:CR,[9]Sheet1!$AU:$AU,0))","v":{"$error":"#N/A"}}]
["D0001/IR01038/F2496/X049/R0073/001/FIN",1216,"D0001/IR01038/F2496/X049/R0073/001/FIN",31930,"Revenue:Non-exchange Revenue:Property Rates:Communal Land:Business and Commercial",200,"Property rates",200,"Rates"," _ "," _ ",1200,"Finance and administration",1204,"Finance","_"," _"," _","D","IR"," _ "," _ "," _ "," _ "," _ "," _ "," _ "," _ "," _ "," _ "," _ "," _ "," _ "," _ "," _ "," _ "," _ "," _ "," _ "," _ ","",null,null," _ "," _ "," _ "," _ "," _ "," _ "," _ "," _ "," _ "," _ "," _ "," _ ","_"," _ "," _ "," _ "," _ ","_"," _ "," _ "," _ "," _ ",null,1,12,"Finance and Admin","Finance",null,null,"_","_","_",null,"_",-4269695,0,0,2272966,-6542661,-4474640,-4689423,-545221.75,-545221.75,-545221.75,-545221.75,-545221.75,-545221.75,-545221.75,0,0,0,0,0,{"$f":"INDEX([9]Sheet1!$H:$H,MATCH(CR:CR,[9]Sheet1!$AU:$AU,0))","v":{"$error":"#N/A"}}]
["D0001/IR01113/F0930/X132/R0073/001/FIN",1281,"D0001/IR01113/F0930/X132/R0073/001/FIN",32001,"Revenue:Exchange Revenue:Sales of Goods and Rendering of Services:Sale of Goods:Publications:Tender Documents",1600,"Other revenue",1600,"Other Revenue"," _ "," _ ",4400,"Waste management",4403,"Solid Waste Removal","_"," _"," _","D","IR"," _ "," _ "," _ "," _ "," _ "," _ "," _ "," _ "," _ "," _ "," _ "," _ "," _ "," _ "," _ "," _ "," _ "," _ "," _ "," _ ","",null,null," _ "," _ "," _ "," _ "," _ "," _ "," _ "," _ "," _ "," _ "," _ "," _ ","_"," _ "," _ "," _ "," _ ","_"," _ "," _ "," _ "," _ ",null,5,51,"Waste Management","Solid Waste Removal",null,null,"_","_","_",null,"_",0,0,0,0,0,0,0,0,0,0,0,0,0,0,0,0,0,0,0,{"$f":"INDEX([9]Sheet1!$H:$H,MATCH(CR:CR,[9]Sheet1!$AU:$AU,0))","v":{"$error":"#N/A"}}]
["D0001/IR01482/F0045/X049/R0072/001/FIN",1151,"D0001/IR01482/F0045/X049/R0072/001/FIN",31798,"Revenue:Non-exchange Revenue:Property Rates:Business and Commercial Properties",200,"Property rates",200,"Rates"," _ "," _ ",1200,"Finance and administration",1204,"Finance","_"," _"," _","D","IR"," _ "," _ "," _ "," _ "," _ "," _ "," _ "," _ "," _ "," _ "," _ "," _ "," _ "," _ "," _ "," _ "," _ "," _ "," _ "," _ ","",null,null," _ "," _ "," _ "," _ "," _ "," _ "," _ "," _ "," _ "," _ "," _ "," _ ","_"," _ "," _ "," _ "," _ ","_"," _ "," _ "," _ "," _ ",null,1,12,"Finance and Admin","Finance",null,null,"_","_","_",null,"_",0,0,0,0,0,0,0,0,0,0,0,0,0,0,0,0,0,0,0,{"$f":"INDEX([9]Sheet1!$H:$H,MATCH(CR:CR,[9]Sheet1!$AU:$AU,0))","v":{"$error":"#N/A"}}]
["D0001/IR01482/F0045/X052/R0073/001/FIN",1197,"D0001/IR01482/F0045/X052/R0073/001/FIN",31867,"Revenue:Non-exchange Revenue:Property Rates:Business and Commercial Properties",200,"Property rates",200,"Rates"," _ "," _ ",1200,"Finance and administration",1207,"Information Technology","_"," _"," _","D","IR"," _ "," _ "," _ "," _ "," _ "," _ "," _ "," _ "," _ "," _ "," _ "," _ "," _ "," _ "," _ "," _ "," _ "," _ "," _ "," _ ","",null,null," _ "," _ "," _ "," _ "," _ "," _ "," _ "," _ "," _ "," _ "," _ "," _ ","_"," _ "," _ "," _ "," _ ","_"," _ "," _ "," _ "," _ ",null,1,15,"Finance and Admin","Information Technology",null,null,"_","_","_",null,"_",0,0,0,0,0,0,0,0,0,0,0,0,0,0,0,0,0,0,0,{"$f":"INDEX([9]Sheet1!$H:$H,MATCH(CR:CR,[9]Sheet1!$AU:$AU,0))","v":{"$error":"#N/A"}}]
["D0001/IR01524/F0044/X119/R0072/001/TRAF",4799,"D0001/IR01524/F0044/X119/R0072/001/TRAF",52762,"Revenue:Exchange Revenue:Licences or Permits:Road and Transport:Learners Certificate",1300,"Licences and permits",1300,"Licences and permits"," _ "," _ ",3200,"Road transport",3204,"Road and Traffic Regulation","_"," _"," _","D","IR"," _ "," _ "," _ "," _ "," _ "," _ "," _ "," _ "," _ "," _ "," _ "," _ "," _ "," _ "," _ "," _ "," _ "," _ "," _ "," _ ","",null,null," _ "," _ "," _ "," _ "," _ "," _ "," _ "," _ "," _ "," _ "," _ "," _ ","_"," _ "," _ "," _ "," _ ","_"," _ "," _ "," _ "," _ ",null,null,0," _ ","Road and Traffic Regulation",null,null,"_","_","_",null,"_",-128609,0,0,122140,-250749,-130603,-136872,-8460,-10760,-8620,-5760,-6400,-6640,-10520,0,0,0,0,0,{"$f":"INDEX([9]Sheet1!$H:$H,MATCH(CR:CR,[9]Sheet1!$AU:$AU,0))","v":{"$error":"#N/A"}}]
["D0001/IA00140/F0001/X116/R2867/001/FIN",18746,"D0001/IA00140/F0001/X116/R2867/001/FIN",85653,"Assets:Non-current Assets:Property, Plant and Equipment:Cost Model:Roads Infrastructure:Cost:Transfers Received"," _"," _"," _ "," _ "," _ "," _ ",3200,"Road transport",3205,"Roads","_"," _"," _","D","IA",240," Property, plant and equipment",240,"Property, plant and equipment"," _ "," _ "," _ "," _ "," _ "," _ "," _ "," _ ",110,"Roads Infrastructure",110,"Roads Infrastructure",241,"PPE at cost/valuation (excl. finance leases)",241,"PPE at cost/valuation (excl. finance leases)","",null,null," _ "," _ "," _ "," _ "," _ "," _ "," _ "," _ "," _ "," _ "," _ "," _ ","_"," _ "," _ "," _ "," _ ","_"," _ "," _ "," _ "," _ ",null,9,91,"Roads","Roads",null,null,"_","_","_",null,"_",0,0,0,0,0,0,0,0,0,0,0,5509548.2000000002,0,0,0,0,0,0,0,{"$f":"INDEX([9]Sheet1!$H:$H,MATCH(CR:CR,[9]Sheet1!$AU:$AU,0))","v":{"$error":"#N/A"}}]
["D0001/IA01357/F0001/X049/R0072/001/FIN",4943,"D0001/IA01357/F0001/X049/R0072/001/FIN",53111,"Assets:Non-current Assets:Property, Plant and Equipment:Cost Model:Transport Assets:Owned and In-use:Accumulated Depreciation:Depreciation"," _"," _"," _ "," _ "," _ "," _ ",1200,"Finance and administration",1204,"Finance","_"," _"," _","D","IA",240," Property, plant and equipment",240,"Property, plant and equipment"," _ "," _ "," _ "," _ "," _ "," _ "," _ "," _ ",1530,"Transport Assets",1530,"Transport Assets",243,"Less: Accumulated depreciation",243,"Less: Accumulated depreciation","",null,null," _ "," _ "," _ "," _ "," _ "," _ "," _ "," _ "," _ "," _ "," _ "," _ ","_"," _ "," _ "," _ "," _ ","_"," _ "," _ "," _ "," _ ",null,1,12,"Finance and Admin","Finance",null,null,"_","_","_",null,"_",0,0,0,0,0,0,0,0,0,0,0,0,0,0,0,0,0,0,0,{"$f":"INDEX([9]Sheet1!$H:$H,MATCH(CR:CR,[9]Sheet1!$AU:$AU,0))","v":{"$error":"#N/A"}}]
["D0001/IA02108/F0046/X049/R0072/001/FIN",1174,"D0001/IA02108/F0046/X049/R0072/001/FIN",31831,"Assets:Current Assets:Cash and Cash Equivalents:Cash at Bank:Bank Account:Specify (replace with account description):Withdrawals"," _"," _"," _ "," _ "," _ "," _ ",1200,"Finance and administration",1204,"Finance","_"," _"," _","D","IA",120,"Cash",120,"Cash","0140W","Other revenue","0140W","Other revenue"," _ "," _ "," _ "," _ "," _ "," _ "," _ "," _ "," _ "," _ "," _ "," _ ","0170","Rental of facilities and equipment","W"," _ "," _ "," _ "," _ "," _ "," _ "," _ "," _ "," _ "," _ "," _ "," _ ","_"," _ "," _ "," _ "," _ ","_"," _ "," _ "," _ "," _ ",null,1,12,"Finance and Admin","Finance",null,null,"_","_","_",null,"_",-236760,0,0,-109345,-346105,-247177,-258300,0,0,0,0,0,0,0,0,0,0,0,0]
["D0001/IA02607/F0001/X049/R0073/001/FIN",1577,"D0001/IA02607/F0001/X049/R0073/001/FIN",42289,"Assets:Current Assets:Receivables from Non-exchange Transactions:Property Rates:Farm Properties:Agricultural Purposes:Collections"," _"," _"," _ "," _ "," _ "," _ ",1200,"Finance and administration",1204,"Finance","_"," _"," _","D","IA",140,"Consumer debtors",140,"Consumer debtors"," _ "," _ "," _ "," _ "," _ "," _ "," _ "," _ "," _ "," _ "," _ "," _ ",141,"Consumer debtors",141,"Consumer debtors","",null,null," _ "," _ "," _ "," _ "," _ "," _ "," _ "," _ "," _ "," _ "," _ "," _ ","_"," _ "," _ "," _ "," _ ","_"," _ "," _ "," _ "," _ ",null,1,12,"Finance and Admin","Finance",null,null,"_","_","_",null,"_",0,0,0,0,0,0,0,0,0,0,0,0,0,0,0,0,0,0,0]
["D0001/IA010660/F0001/X049/R0072/001/FIN",17414,"D0001/IA010660/F0001/X049/R0072/001/FIN",84311,"Assets:Current Assets:Receivables from Non-exchange Transactions:Property Rates by Usage: Business and Commercial Properties: Impairment: Reversal"," _"," _"," _ "," _ "," _ "," _ ",1200,"Finance and administration",1204,"Finance","_"," _"," _","D","IA","_","_","_","_"," _ "," _ "," _ "," _ "," _ "," _ "," _ "," _ "," _ "," _ "," _ "," _ ",146,"Contributions to the provision",146,"Contributions to the provision","",null,null," _ "," _ "," _ "," _ "," _ "," _ "," _ "," _ "," _ "," _ "," _ "," _ ","_"," _ "," _ "," _ "," _ ","_"," _ "," _ "," _ "," _ ",null,1,12,"Finance and Admin","Finance",null,null,"_","_","_",null,"_",0,0,0,0,0,0,0,0,0,0,0,0,0,0,0,0,0,0,0]
["D0001/IA01373/F0001/X153/R0073/001/FIN",18180,"D0001/IA01373/F0001/X153/R0073/001/FIN",85077,"Assets:Non-current Assets:Property, Plant and Equipment:Cost Model:Transport Assets:Owned and In-use:Cost:Opening Balance"," _"," _"," _ "," _ "," _ "," _ ",2300,"Public safety",2307,"Police Forces, Traffic and Street Parking Control","_"," _"," _","D","IA",240," Property, plant and equipment",240,"Property, plant and equipment"," _ "," _ "," _ "," _ "," _ "," _ "," _ "," _ ",1530,"Transport Assets",1530,"Transport Assets",241,"PPE at cost/valuation (excl. finance leases)",241,"PPE at cost/valuation (excl. finance leases)","",null,null," _ "," _ "," _ "," _ "," _ "," _ "," _ "," _ "," _ "," _ "," _ "," _ ","_"," _ "," _ "," _ "," _ ","_"," _ "," _ "," _ "," _ ",null,8,81,"Public Safety","Police Forces, Traffic and Street Parking Control",null,null,"_","_","_",null,"_",0,0,0,0,0,0,0,0,0,0,0,0,0,0,0,0,0,0,0]
["D0001/IA02798/F0047/X049/R0072/001/FIN",16862,"D0001/IA02798/F0047/X049/R0072/001/FIN",83759,"Assets:Current Assets:Trade and other Receivables from Exchange Transactions:Trading Service and Customer Service Debtors:Property Rental Debtors:Impairment:Opening Balance"," _"," _"," _ "," _ "," _ "," _ ",1200,"Finance and administration",1204,"Finance","_"," _"," _","D","IA","_","_","_","_"," _ "," _ "," _ "," _ "," _ "," _ "," _ "," _ "," _ "," _ "," _ "," _ ",145,"Balance at the beginning of the year",145,"Balance at the beginning of the year","",null,null," _ "," _ "," _ "," _ "," _ "," _ "," _ "," _ "," _ "," _ "," _ "," _ ","_"," _ "," _ "," _ "," _ ","_"," _ "," _ "," _ "," _ ",null,1,12,"Finance and Admin","Finance",null,null,"_","_","_",null,"_",0,0,0,0,0,0,0,0,0,0,0,0,0,0,0,0,0,0,0]
["D0001/IA02282/F0001/X049/R0072/001/FIN",17450,"D0001/IA02282/F0001/X049/R0072/001/FIN",84347,"Assets:Current Assets:Trade and other Receivables from Exchange Transactions:Prepayments and Advances:Recoveries from Staff:Opening Balance"," _"," _"," _ "," _ "," _ "," _ ",1200,"Finance and administration",1204,"Finance","_"," _"," _","D","IA",150,"Other debtors",150,"Other debtors"," _ "," _ "," _ "," _ "," _ "," _ "," _ "," _ "," _ "," _ "," _ "," _ "," _ "," _ "," _ "," _ ","",null,null," _ "," _ "," _ "," _ "," _ "," _ "," _ "," _ "," _ "," _ "," _ "," _ ","_"," _ "," _ "," _ "," _ ","_"," _ "," _ "," _ "," _ ",null,1,12,"Finance and Admin","Finance",null,null,"_","_","_",null,"_",0,0,0,0,0,0,0,0,0,0,0,0,0,0,0,0,0,0,0]
["D0001/IA06191/F0001/X044/R2865/001/FIN",18708,"D0001/IA06191/F0001/X044/R2865/001/FIN",85612,"Assets:Non-current Assets:Property, Plant and Equipment:Cost Model:Computer Equipment:In-use:Accumulated Impairment:Impairment"," _"," _"," _ "," _ "," _ "," _ ",1100,"Executive and council",1110,"Mayor and Council","_"," _"," _","D","IA","_","_","_","_"," _ "," _ "," _ "," _ "," _ "," _ "," _ "," _ ",1470,"Computer Equipment",1470,"Computer Equipment",241,"PPE at cost/valuation (excl. finance leases)",241,"PPE at cost/valuation (excl. finance leases)","",null,null," _ "," _ "," _ "," _ "," _ "," _ "," _ "," _ "," _ "," _ "," _ "," _ ","_"," _ "," _ "," _ "," _ ","_"," _ "," _ "," _ "," _ ",null,2,21,"Executive and council","Mayor and Council",null,null,"_","_","_",null,"_",0,0,0,0,0,0,0,0,0,0,0,0,0,0,0,0,0,0,0]
["D0001/IA06318/F0001/X153/R2864/001/FIN",18125,"D0001/IA06318/F0001/X153/R2864/001/FIN",85022,"Assets:Non-current Assets:Property, Plant and Equipment:Cost Model:Machinery and Equipment:In-use:Cost:Disposals"," _"," _"," _ "," _ "," _ "," _ ",2300,"Public safety",2307,"Police Forces, Traffic and Street Parking Control","_"," _"," _","D","IA",240," Property, plant and equipment",240,"Property, plant and equipment"," _ "," _ "," _ "," _ "," _ "," _ "," _ "," _ ",1510,"Machinery and Equipment",1510,"Machinery and Equipment",241,"PPE at cost/valuation (excl. finance leases)",241,"PPE at cost/valuation (excl. finance leases)","",null,null," _ "," _ "," _ "," _ "," _ "," _ "," _ "," _ "," _ "," _ "," _ "," _ ","_"," _ "," _ "," _ "," _ ","_"," _ "," _ "," _ "," _ ",null,8,81,"Public Safety","Police Forces, Traffic and Street Parking Control",null,null,"_","_","_",null,"_",0,0,0,0,0,0,0,0,0,0,0,0,0,0,0,0,0,0,0]
["D0001/IA09885/F0001/X049/R0072/001/FIN",18009,"D0001/IA09885/F0001/X049/R0072/001/FIN",84906,"Assets:Current Assets:Cash and Cash Equivalents:Cash at Bank:Savings Account:Specify (replace with account description):Deposits"," _"," _"," _ "," _ "," _ "," _ ",1200,"Finance and administration",1204,"Finance","_"," _"," _","D","IA",120,"Cash",120,"Cash"," _ "," _ "," _ "," _ "," _ "," _ "," _ "," _ "," _ "," _ "," _ "," _ "," _ "," _ "," _ "," _ ","",null,"D"," _ "," _ "," _ "," _ "," _ "," _ "," _ "," _ "," _ "," _ "," _ "," _ ","_"," _ "," _ "," _ "," _ ","_"," _ "," _ "," _ "," _ ",null,1,12,"Finance and Admin","Finance",null,null,"_","_","_",null,"_",0,0,0,0,0,0,0,0,0,0,0,0,0,0,0,0,0,0,0]
["D0001/IA10031/F0001/X049/R0072/001/FIN",17287,"D0001/IA10031/F0001/X049/R0072/001/FIN",84184,"Assets:Current Assets:Cash and Cash Equivalents:Call Deposits and Investments:Special Deposit for the Payment of Interest:Specify (replace with account description):Opening Balance"," _"," _"," _ "," _ "," _ "," _ ",1200,"Finance and administration",1204,"Finance","_"," _"," _","D","IA",130,"Call deposits and investments",130,"Call deposits and investments"," _ "," _ "," _ "," _ ",420,"Cash/cash equivalents at the month/year begin:",560,"Cash/cash equivalents at the month/year begin:"," _ "," _ "," _ "," _ "," _ "," _ "," _ "," _ ","",null,null," _ "," _ "," _ "," _ "," _ "," _ "," _ "," _ "," _ "," _ "," _ "," _ ","_"," _ "," _ "," _ "," _ ","_"," _ "," _ "," _ "," _ ",null,1,12,"Finance and Admin","Finance",null,null,"_","_","_",null,"_",0,0,0,0,0,0,0,0,0,0,0,0,0,0,0,0,0,0,0]
["D0001/IL109315/F0001/X049/R0072/001/FIN",17688,"D0001/IL109315/F0001/X049/R0072/001/FIN",84585,"Liabilities:Current Liabilities:Trade and Other Payable Non-exchange Transactions:Transfers and Subsidies Payable:Capital:Monetary Allocations:District Municipalities:KwaZulu-Natal:DC 26 - Zululand:Capacity Building and Other:Specify (Add grant description):Opening Balance"," _"," _"," _ "," _ "," _ "," _ ",1200,"Finance and administration",1204,"Finance","_"," _"," _","D","IL",360," Trade and other payables",360,"Trade and other payables"," _ "," _ "," _ "," _ "," _ "," _ "," _ "," _ "," _ "," _ "," _ "," _ ",362," Other creditors",362," Other creditors","",null,null," _ "," _ "," _ "," _ "," _ "," _ "," _ "," _ "," _ "," _ "," _ "," _ ","_"," _ "," _ "," _ "," _ ","_"," _ "," _ "," _ "," _ ",null,1,12,"Finance and Admin","Finance",null,null,"_","_","_",null,"_",0,0,0,0,0,0,0,0,0,0,0,0,0,0,0,0,0,0,0]
["D0001/IL18142/F0001/X049/R0072/001/FIN",17628,"D0001/IL18142/F0001/X049/R0072/001/FIN",84525,"Liabilities:Current Liabilities:Trade and Other Payable Non-exchange Transactions:Transfers and Subsidies Unspent:Operational:Monetary Allocations:Public Corporations:Other Transfers Public Corporations:ESKOM:Opening Balance"," _"," _"," _ "," _ "," _ "," _ ",1200,"Finance and administration",1204,"Finance","_"," _"," _","D","IL",360," Trade and other payables",360,"Trade and other payables"," _ "," _ "," _ "," _ "," _ "," _ "," _ "," _ "," _ "," _ "," _ "," _ ",363,"Unspent conditional transfers",363,"Unspent conditional transfers","",null,null," _ "," _ "," _ "," _ "," _ "," _ "," _ "," _ "," _ "," _ "," _ "," _ ","_"," _ "," _ "," _ "," _ ","_"," _ "," _ "," _ "," _ ",null,1,12,"Finance and Admin","Finance",null,null,"_","_","_",null,"_",0,0,0,0,0,0,0,0,0,0,0,0,0,0,0,0,0,0,0]
["D0001/IL18143/F0001/X049/R0073/001/FIN",2886,"D0001/IL18143/F0001/X049/R0073/001/FIN",52602,"Liabilities:Current Liabilities:Trade and Other Payable Non-exchange Transactions:Transfers and Subsidies Unspent:Operational:Monetary Allocations:Public Corporations:Other Transfers Public Corporations:ESKOM:Receipts"," _"," _"," _ "," _ "," _ "," _ ",1200,"Finance and administration",1204,"Finance","_"," _"," _","D","IL",360," Trade and other payables",360,"Trade and other payables"," _ "," _ "," _ "," _ "," _ "," _ "," _ "," _ "," _ "," _ "," _ "," _ ",363,"Unspent conditional transfers",363,"Unspent conditional transfers","",null,null," _ "," _ "," _ "," _ "," _ "," _ "," _ "," _ "," _ "," _ "," _ "," _ ","_"," _ "," _ "," _ "," _ ","_"," _ "," _ "," _ "," _ ",null,1,12,"Finance and Admin","Finance",null,null,"_","_","_",null,"_",0,0,0,0,0,0,0,0,0,0,0,0,0,0,0,0,0,0,0]
["D0001/IR006972/F13636/X024/R0072/001/LIB",5349,"D0001/IR006972/F13636/X024/R0072/001/LIB",52909,"Revenue:Non-exchange Revenue:Transfers and Subsidies:Operational:Monetary Allocations:Provincial Government:KwaZulu-Natal:Capacity Building and Other:Specify (Add grant description)",1500,"Transfers and subsidies",1500,"Transfers and subsidies"," _ "," _ ",2100,"Community and social services",2114,"Libraries and Archives","_"," _"," _","D","IR"," _ "," _ "," _ "," _ "," _ "," _ "," _ "," _ "," _ "," _ "," _ "," _ "," _ "," _ "," _ "," _ "," _ "," _ "," _ "," _ ","",null,null," _ "," _ "," _ "," _ "," _ "," _ "," _ "," _ "," _ "," _ "," _ "," _ ","_"," _ "," _ "," _ "," _ ","_"," _ "," _ "," _ "," _ ",null,3,33,"Community and social services","Libraries and Archives",null,null,"_","_","_",null,"_",0,0,0,0,0,0,0,0,0,0,0,0,0,0,0,0,0,0,0]
["D0001/IA06192/F0001/X044/R2865/001/FIN",18712,"D0001/IA06192/F0001/X044/R2865/001/FIN",85607,"Assets:Non-current Assets:Property, Plant and Equipment:Cost Model:Computer Equipment:In-use:Accumulated Impairment:Opening Balance"," _"," _"," _ "," _ "," _ "," _ ",1100,"Executive and council",1110,"Mayor and Council","_"," _"," _","D","IA","_","_","_","_"," _ "," _ "," _ "," _ "," _ "," _ "," _ "," _ ",1470,"Computer Equipment",1470,"Computer Equipment",241,"PPE at cost/valuation (excl. finance leases)",241,"PPE at cost/valuation (excl. finance leases)","",null,null," _ "," _ "," _ "," _ "," _ "," _ "," _ "," _ "," _ "," _ "," _ "," _ ","_"," _ "," _ "," _ "," _ ","_"," _ "," _ "," _ "," _ ",null,2,21,"Executive and council","Mayor and Council",null,null,"_","_","_",null,"_",0,0,0,0,0,0,0,0,0,0,0,0,0,0,0,0,0,0,0]
["O0001/IE00033/F0001/X052/R0073/001/FIN",5141,"O0001/IE00033/F0001/X052/R0073/001/FIN",53202,"Expenditure:Depreciation and Amortisation:Amortisation:Intangible Assets:Servitudes",2300,"Depreciation & asset impairment","2300-001","Depreciation of Property, Plant & Equipment",2302,"7eb20c30-ee1f-475f-a757-8801dc77ab2d",1200,"Finance and administration",1207,"Information Technology","_"," _"," _","O","IE"," _ "," _ "," _ "," _ "," _ "," _ "," _ "," _ "," _ "," _ "," _ "," _ "," _ "," _ "," _ "," _ "," _ "," _ "," _ "," _ ","",null,null," _ "," _ "," _ "," _ "," _ "," _ "," _ "," _ "," _ "," _ "," _ "," _ ","_",1380,"Servitudes",1380,"Servitudes","DP"," _ "," _ "," _ "," _ ",null,1,15,"Finance and Admin","Information Technology",null,null,"_","_","_",null,"_",0,0,0,0,0,0,0,0,0,0,0,0,0,0,0,0,0,0,0]
["O0001/IE00043/F0041/X019/R0072/001/TRAF",88,"O0001/IE00043/F0041/X019/R0072/001/TRAF",52836,"Expenditure:Employee Related Cost:Municipal Staff:Social Contributions:Medical",2000,"Employee related costs","2000-003","Medical Aid Contributions",2003,"Medical Aid Contributions",2100,"Community and social services",2109,"Disaster Management","_"," _"," _","O","IE"," _ "," _ "," _ "," _ "," _ "," _ "," _ "," _ "," _ "," _ "," _ "," _ "," _ "," _ "," _ "," _ "," _ "," _ "," _ "," _ ","",null,null," _ "," _ "," _ "," _ "," _ "," _ "," _ "," _ "," _ "," _ "," _ "," _ ","_"," _ "," _ "," _ "," _ ","_"," _ "," _ "," _ "," _ ","MS",3,31,"Community and social services","Disaster Management",null,null,"_","_","_",null,"_",255867,0,0,0,255867,229587,239918,26685,26685,26685,29043.72,28504.799999999999,28504.799999999999,30419.4,0,0,0,0,0]
["C0146-1/IA06431/F0002/X148/R0073/001/Tech",5279,"C0146-1/IA06431/F0002/X148/R0073/001/Tech",53340,"Assets:Non-current Assets:Property, Plant and Equipment:Cost Model:Water Supply Infrastructure:Distribution:Accumulated Impairment:Impairment"," _"," _"," _ "," _ "," _ "," _ ",4200,"Water management",4201,"Water Treatment","_",2080,"Internally generated funds","C","IA","_","_","_","_"," _ "," _ "," _ "," _ "," _ "," _ "," _ "," _ ",300,"Water Supply Infrastructure",300,"Water Supply Infrastructure",241,"PPE at cost/valuation (excl. finance leases)",241,"PPE at cost/valuation (excl. finance leases)","",null,null," _ "," _ "," _ "," _ ",350,"Water Treatment Works",350,"Water Treatment Works"," _ "," _ "," _ "," _ ","_"," _ "," _ "," _ "," _ ","_"," _ "," _ "," _ "," _ ",null,null,0," _ ","Water Treatment",null,null,"_","_","_",null,"_",0,0,0,0,0,0,0,0,0,0,0,0,0,0,0,0,0,0,0]
["D0001/IA10081/F0001/X049/R0072/001/FIN",17204,"D0001/IA10081/F0001/X049/R0072/001/FIN",84101,"Assets:Current Assets:Cash and Cash Equivalents:Cash at Bank:Bank Account:Specify (replace with account description):Opening Balance"," _"," _"," _ "," _ "," _ "," _ ",1200,"Finance and administration",1204,"Finance","_"," _"," _","D","IA",120,"Cash",120,"Cash"," _ "," _ "," _ "," _ ",420,"Cash/cash equivalents at the month/year begin:",560,"Cash/cash equivalents at the month/year begin:"," _ "," _ "," _ "," _ "," _ "," _ "," _ "," _ ","",null,null," _ "," _ "," _ "," _ "," _ "," _ "," _ "," _ "," _ "," _ "," _ "," _ ","_"," _ "," _ "," _ "," _ ","_"," _ "," _ "," _ "," _ ",null,1,12,"Finance and Admin","Finance",null,null,"_","_","_",null,"_",0,0,0,0,0,0,0,0,0,0,0,0,0,0,0,0,0,0,0]
["D0001/IR01410/F0045/X132/R0073/001/FIN",1307,"D0001/IR01410/F0045/X132/R0073/001/FIN",32027,"Revenue:Exchange Revenue:Licences or Permits:Trading",1300,"Licences and permits",1300,"Licences and permits"," _ "," _ ",4400,"Waste management",4403,"Solid Waste Removal","_"," _"," _","D","IR"," _ "," _ "," _ "," _ "," _ "," _ "," _ "," _ "," _ "," _ "," _ "," _ "," _ "," _ "," _ "," _ "," _ "," _ "," _ "," _ ","",null,null," _ "," _ "," _ "," _ "," _ "," _ "," _ "," _ "," _ "," _ "," _ "," _ ","_"," _ "," _ "," _ "," _ ","_"," _ "," _ "," _ "," _ ",null,5,51,"Waste Management","Solid Waste Removal",null,null,"_","_","_",null,"_",0,0,0,0,0,0,0,0,0,0,0,0,0,0,0,0,0,0,0]
["D0001/IA06305/F0001/X149/R0073/001/FIN",18145,"D0001/IA06305/F0001/X149/R0073/001/FIN",85043,"Assets:Non-current Assets:Property, Plant and Equipment:Cost Model:Machinery and Equipment:In-use:Accumulated Depreciation:Opening Balance"," _"," _"," _ "," _ "," _ "," _ ",4200,"Water management",4202,"Water Distribution","_"," _"," _","D","IA",240," Property, plant and equipment",240,"Property, plant and equipment"," _ "," _ "," _ "," _ "," _ "," _ "," _ "," _ ",1510,"Machinery and Equipment",1510,"Machinery and Equipment",243,"Less: Accumulated depreciation",243,"Less: Accumulated depreciation","",null,null," _ "," _ "," _ "," _ "," _ "," _ "," _ "," _ "," _ "," _ "," _ "," _ ","_"," _ "," _ "," _ "," _ ","_"," _ "," _ "," _ "," _ ",null,null,0," _ ","Water Distribution",null,null,"_","_","_",null,"_",0,0,0,0,0,0,0,-156011.5,0,0,0,0,0,0,0,0,0,0,0]
["D0001/IR01671/F0791/X006/R0072/001/Tech",5136,"D0001/IR01671/F0791/X006/R0072/001/Tech",53197,"Revenue:Non-exchange Revenue:Transfers and Subsidies:Capital:Monetary Allocations:National Government:Municipal Infrastructure Grant",3300,"Transfers and subsidies - capital (monetary allocations) (National / Provincial and District)",3300,"Transfers and subsidies - capital (monetary allocations) (National / Provincial and District)"," _ "," _ ",2100,"Community and social services",2106,"Community Halls and Facilities","_",2010,"National Government","D","IR"," _ "," _ "," _ "," _ "," _ "," _ "," _ "," _ "," _ "," _ "," _ "," _ "," _ "," _ "," _ "," _ "," _ "," _ "," _ "," _ ","",null,null," _ "," _ "," _ "," _ "," _ "," _ "," _ "," _ "," _ "," _ "," _ "," _ ","_"," _ "," _ "," _ "," _ ","_"," _ "," _ "," _ "," _ ",null,3,32,"Community and social services","Community Halls and Facilities",null,null,"_","_","_",null,"_",-8000000,0,0,-4000000,-4000000,0,0,0,0,0,0,-266597.09000000003,0,0,0,0,0,0,0]
["D0001/IA09921/F0001/X049/R0072/001/FIN",18002,"D0001/IA09921/F0001/X049/R0072/001/FIN",84899,"Assets:Current Assets:Cash and Cash Equivalents:Cash at Bank:Savings Account:Specify (replace with account description):Withdrawals"," _"," _"," _ "," _ "," _ "," _ ",1200,"Finance and administration",1204,"Finance","_"," _"," _","D","IA",120,"Cash",120,"Cash"," _ "," _ "," _ "," _ "," _ "," _ "," _ "," _ "," _ "," _ "," _ "," _ "," _ "," _ "," _ "," _ ","",null,"W"," _ "," _ "," _ "," _ "," _ "," _ "," _ "," _ "," _ "," _ "," _ "," _ ","_"," _ "," _ "," _ "," _ ","_"," _ "," _ "," _ "," _ ",null,1,12,"Finance and Admin","Finance",null,null,"_","_","_",null,"_",0,0,0,0,0,0,0,0,0,0,0,0,0,0,0,0,0,0,0]
["O0001/IE00545/F0041/X046/R0072/001/CORP",767,"O0001/IE00545/F0041/X046/R0072/001/CORP",31203,"Expenditure:Operating Leases:Machinery and Equipment",2900,"Other expenditure","_","_",2904,"Other Expenditure",1200,"Finance and administration",1201,"Administrative and Corporate Support","_"," _"," _","O","IE"," _ "," _ "," _ "," _ "," _ "," _ "," _ "," _ "," _ "," _ "," _ "," _ "," _ "," _ "," _ "," _ "," _ "," _ "," _ "," _ ","",null,null," _ "," _ "," _ "," _ "," _ "," _ "," _ "," _ "," _ "," _ "," _ "," _ ","_"," _ "," _ "," _ "," _ ","_"," _ "," _ "," _ "," _ ",null,1,17,"Finance and Admin","Administrative and Corporate Support",null,null,"_","_","_",null,"_",0,0,0,0,0,0,0,148793.57,147921.87999999998,143364.42000000001,131347.33000000002,0,0,0,0,0,0,0,0]
["O0001/IE00663/F0041/X024/R0072/001/LIB",18060,"O0001/IE00663/F0041/X024/R0072/001/LIB",84958,"Expenditure:Contracted Services:Contractors:Safeguard and Security",2700,"Contracted services","2700-003","Contractors",2703,"Contractors",2100,"Community and social services",2114,"Libraries and Archives","_"," _"," _","O","IE"," _ "," _ "," _ "," _ "," _ "," _ "," _ "," _ "," _ "," _ "," _ "," _ "," _ "," _ "," _ "," _ "," _ "," _ "," _ "," _ ","",null,null," _ "," _ "," _ "," _ "," _ "," _ "," _ "," _ "," _ "," _ "," _ "," _ ","_"," _ "," _ "," _ "," _ ","_"," _ "," _ "," _ "," _ ",null,3,33,"Community and social services","Libraries and Archives",null,null,"_","_","_",null,"_",293680,0,0,0,293680,0,0,0,0,0,0,0,0,0,0,0,0,0,0]
["D0001/IR01492/F0045/X047/R0073/001/FIN",1192,"D0001/IR01492/F0045/X047/R0073/001/FIN",31849,"Revenue:Non-exchange Revenue:Property Rates:Public Benefit Organisations",200,"Property rates",200,"Rates"," _ "," _ ",1200,"Finance and administration",1202,"Asset Management","_"," _"," _","D","IR"," _ "," _ "," _ "," _ "," _ "," _ "," _ "," _ "," _ "," _ "," _ "," _ "," _ "," _ "," _ "," _ "," _ "," _ "," _ "," _ ","",null,null," _ "," _ "," _ "," _ "," _ "," _ "," _ "," _ "," _ "," _ "," _ "," _ ","_"," _ "," _ "," _ "," _ ","_"," _ "," _ "," _ "," _ ",null,1,110,"Finance and Admin","Asset Management",null,null,"_","_","_",null,"_",0,0,0,0,0,0,0,0,0,0,0,0,0,0,0,0,0,0,0]
["D0001/IA09982/F0001/X049/R0072/001/FIN",17143,"D0001/IA09982/F0001/X049/R0072/001/FIN",84040,"Assets:Current Assets:Cash and Cash Equivalents:Cash at Bank:Bank Account:Specify (replace with account description):Opening Balance"," _"," _"," _ "," _ "," _ "," _ ",1200,"Finance and administration",1204,"Finance","_"," _"," _","D","IA",120,"Cash",120,"Cash"," _ "," _ "," _ "," _ ",420,"Cash/cash equivalents at the month/year begin:",560,"Cash/cash equivalents at the month/year begin:"," _ "," _ "," _ "," _ "," _ "," _ "," _ "," _ ","",null,null," _ "," _ "," _ "," _ "," _ "," _ "," _ "," _ "," _ "," _ "," _ "," _ ","_"," _ "," _ "," _ "," _ ","_"," _ "," _ "," _ "," _ ",null,1,12,"Finance and Admin","Finance",null,null,"_","_","_",null,"_",0,0,0,0,0,0,0,0,0,0,0,0,0,0,0,0,0,0,0]
["O0001/IE00038/F0041/X096/R0072/001/TECH",5093,"O0001/IE00038/F0041/X096/R0072/001/TECH",30796,"Expenditure:Employee Related Cost:Municipal Staff:Salaries, Wages and Allowances:Bonuses",2000,"Employee related costs","2000-005","Performance Bonus",2005,"Performance Bonus",3100,"Planning and development",3102,"Corporate Wide Strategic Planning (IDPs, LEDs)","_"," _"," _","O","IE"," _ "," _ "," _ "," _ "," _ "," _ "," _ "," _ "," _ "," _ "," _ "," _ "," _ "," _ "," _ "," _ "," _ "," _ "," _ "," _ ","",null,null," _ "," _ "," _ "," _ "," _ "," _ "," _ "," _ "," _ "," _ "," _ "," _ ","_"," _ "," _ "," _ "," _ ","_"," _ "," _ "," _ "," _ ","MS",7,71,"Planning and Development","Corporate Wide Strategic Planning (IDPs, LEDs)",null,null,"_","_","_",null,"_",0,0,0,0,0,0,0,0,0,0,0,0,0,0,0,0,0,0,0]
["O0001/IE00038/F0041/X099/R0072/001/TECH",364,"O0001/IE00038/F0041/X099/R0072/001/TECH",30797,"Expenditure:Employee Related Cost:Municipal Staff:Salaries, Wages and Allowances:Bonuses",2000,"Employee related costs","2000-005","Performance Bonus",2005,"Performance Bonus",3100,"Planning and development",3108,"Project Management Unit","_"," _"," _","O","IE"," _ "," _ "," _ "," _ "," _ "," _ "," _ "," _ "," _ "," _ "," _ "," _ "," _ "," _ "," _ "," _ "," _ "," _ "," _ "," _ ","",null,null," _ "," _ "," _ "," _ "," _ "," _ "," _ "," _ "," _ "," _ "," _ "," _ ","_"," _ "," _ "," _ "," _ ","_"," _ "," _ "," _ "," _ ","MS",7,73,"Planning and Development","Project Management Unit",null,null,"_","_","_",null,"_",0,0,0,0,0,0,0,0,0,0,0,0,0,0,0,0,0,0,0]
["D0001/IA10033/F0001/X049/R0072/001/FIN",17289,"D0001/IA10033/F0001/X049/R0072/001/FIN",84186,"Assets:Current Assets:Cash and Cash Equivalents:Call Deposits and Investments:Special Deposit for the Payment of Interest:Specify (replace with account description):Opening Balance"," _"," _"," _ "," _ "," _ "," _ ",1200,"Finance and administration",1204,"Finance","_"," _"," _","D","IA",130,"Call deposits and investments",130,"Call deposits and investments"," _ "," _ "," _ "," _ ",420,"Cash/cash equivalents at the month/year begin:",560,"Cash/cash equivalents at the month/year begin:"," _ "," _ "," _ "," _ "," _ "," _ "," _ "," _ ","",null,null," _ "," _ "," _ "," _ "," _ "," _ "," _ "," _ "," _ "," _ "," _ "," _ ","_"," _ "," _ "," _ "," _ ","_"," _ "," _ "," _ "," _ ",null,1,12,"Finance and Admin","Finance",null,null,"_","_","_",null,"_",0,0,0,0,0,0,0,0,0,0,0,0,0,0,0,0,0,0,0]
["O0001/IE00735/F0041/X049/R0072/001/FIN",613,"O0001/IE00735/F0041/X049/R0072/001/FIN",31049,"Expenditure:Interest, Dividends and Rent on Land:Interest Paid:Overdue Accounts",2400,"Finance charges",2400,"Finance charges"," _ "," _ ",1200,"Finance and administration",1204,"Finance","_"," _"," _","O","IE"," _ "," _ "," _ "," _ "," _ "," _ "," _ "," _ "," _ "," _ "," _ "," _ "," _ "," _ "," _ "," _ "," _ "," _ "," _ "," _ ","",null,null," _ "," _ "," _ "," _ "," _ "," _ "," _ "," _ "," _ "," _ "," _ "," _ ","_"," _ "," _ "," _ "," _ ","_"," _ "," _ "," _ "," _ ",null,1,12,"Finance and Admin","Finance",null,null,"_","_","_",null,"_",6270,0,0,0,6270,6270,6552,585.46,42.04,600.85,592.27000000000021,20.930000000000007,138.02000000000001,530.17000000000007,0,0,0,0,0]
["D0001/IA10193/F0001/X049/R0072/001/FIN",17346,"D0001/IA10193/F0001/X049/R0072/001/FIN",84243,"Assets:Current Assets:Cash and Cash Equivalents:Call Deposits and Investments:Short Term portion of Investments:Guaranteed Endowment Policies (Sinking):Opening Balance"," _"," _"," _ "," _ "," _ "," _ ",1200,"Finance and administration",1204,"Finance","_"," _"," _","D","IA",130,"Call deposits and investments",130,"Call deposits and investments"," _ "," _ "," _ "," _ ",420,"Cash/cash equivalents at the month/year begin:",560,"Cash/cash equivalents at the month/year begin:"," _ "," _ "," _ "," _ "," _ "," _ "," _ "," _ ","",null,null," _ "," _ "," _ "," _ "," _ "," _ "," _ "," _ "," _ "," _ "," _ "," _ ","_"," _ "," _ "," _ "," _ ","_"," _ "," _ "," _ "," _ ",null,1,12,"Finance and Admin","Finance",null,null,"_","_","_",null,"_",0,0,0,0,0,0,0,0,0,0,0,0,0,0,0,0,0,0,0]
["O0001/IE00778/F0041/X051/R0072/001/CORP",720,"O0001/IE00778/F0041/X051/R0072/001/CORP",31156,"Expenditure:Operational Cost:Communication:Telephone, Fax, Telegraph and Telex",2900,"Other expenditure","_","_",2904,"Other Expenditure",1200,"Finance and administration",1206,"Human Resources","_"," _"," _","O","IE"," _ "," _ "," _ "," _ "," _ "," _ "," _ "," _ "," _ "," _ "," _ "," _ "," _ "," _ "," _ "," _ "," _ "," _ "," _ "," _ ","",null,null," _ "," _ "," _ "," _ "," _ "," _ "," _ "," _ "," _ "," _ "," _ "," _ ","_"," _ "," _ "," _ "," _ ","_"," _ "," _ "," _ "," _ ",null,1,16,"Finance and Admin","Human Resources",null,null,"_","_","_",null,"_",464400,0,0,359542,823942,467250,488411,0,0,0,0,0,0,105467.12,0,0,0,0,0]
["C0278-3/IA00032/F0002/X086/R0072/001/COMM",15493,"C0278-3/IA00032/F0002/X086/R0072/001/COMM",63547,"Assets:Non-current Assets:Property, Plant and Equipment:Cost Model:Community Assets:Cost:Acquisitions"," _"," _"," _ "," _ "," _ "," _ ",5000,"Other",5005,"Markets","CE",2080,"Internally generated funds","C","IA",240," Property, plant and equipment",240,"Property, plant and equipment"," _ "," _ "," _ "," _ "," _ "," _ "," _ "," _ ",770,"Community Assets",770,"Community Assets",241,"PPE at cost/valuation (excl. finance leases)",241,"PPE at cost/valuation (excl. finance leases)","",null,null," _ "," _ "," _ "," _ ",950,"Markets",950,"Markets"," _ "," _ "," _ "," _ ","_"," _ "," _ "," _ "," _ ","_"," _ "," _ "," _ "," _ ",null,null,0," _ ","Markets",null,null,"_","_","_",null,"_",0,0,0,0,0,0,0,0,0,0,0,0,0,0,0,0,0,0,0]
["D0001/IA00022/F0001/X006/R2856/001/FIN",18292,"D0001/IA00022/F0001/X006/R2856/001/FIN",85187,"Assets:Non-current Assets:Property, Plant and Equipment:Cost Model:Community Assets:Accumulated Depreciation:Depreciation"," _"," _"," _ "," _ "," _ "," _ ",2100,"Community and social services",2106,"Community Halls and Facilities","_"," _"," _","D","IA",240," Property, plant and equipment",240,"Property, plant and equipment"," _ "," _ "," _ "," _ "," _ "," _ "," _ "," _ ",770,"Community Assets",770,"Community Assets",243,"Less: Accumulated depreciation",243,"Less: Accumulated depreciation","",null,null," _ "," _ "," _ "," _ "," _ "," _ "," _ "," _ "," _ "," _ "," _ "," _ ","_"," _ "," _ "," _ "," _ ","_"," _ "," _ "," _ "," _ ",null,3,32,"Community and social services","Community Halls and Facilities",null,null,"_","_","_",null,"_",0,0,0,0,0,0,0,115089.75,-9992.82,-9992.8222249999999,-10337.4023,-52376.17,-10337.4,-10337.4,0,0,0,0,0]
["O0001/IE01521/F1177/X049/R0072/001/FIN",800,"O0001/IE01521/F1177/X049/R0072/001/FIN",31236,"Expenditure:Employee Related Cost:Municipal Staff:Salaries, Wages and Allowances:Allowances:Housing Benefits and Incidental:Housing Benefits",2000,"Employee related costs","2000-008","Housing Allowances",2008,"Housing Allowances",1200,"Finance and administration",1204,"Finance","_"," _"," _","O","IE"," _ "," _ "," _ "," _ "," _ "," _ "," _ "," _ "," _ "," _ "," _ "," _ "," _ "," _ "," _ "," _ "," _ "," _ "," _ "," _ ","",null,null," _ "," _ "," _ "," _ "," _ "," _ "," _ "," _ "," _ "," _ "," _ "," _ ","_"," _ "," _ "," _ "," _ ","_"," _ "," _ "," _ "," _ ","MS",1,12,"Finance and Admin","Finance",null,null,"_","_","_",null,"_",0,0,0,0,0,0,0,0,0,0,0,0,0,0,0,0,0,0,0]
["O0001/IE01523/F0041/X112/R0072/001/COMM",5032,"O0001/IE01523/F0041/X112/R0072/001/COMM",30336,"Expenditure:Employee Related Cost:Municipal Staff:Salaries, Wages and Allowances:Allowances:Housing Benefits and Incidental:Rental Subsidy",2000,"Employee related costs","2000-008","Housing Allowances",2008,"Housing Allowances",2300,"Public safety",2305,"Fire Fighting and Protection","_"," _"," _","O","IE"," _ "," _ "," _ "," _ "," _ "," _ "," _ "," _ "," _ "," _ "," _ "," _ "," _ "," _ "," _ "," _ "," _ "," _ "," _ "," _ ","",null,null," _ "," _ "," _ "," _ "," _ "," _ "," _ "," _ "," _ "," _ "," _ "," _ ","_"," _ "," _ "," _ "," _ ","_"," _ "," _ "," _ "," _ ","MS",null,0," _ ","Fire Fighting and Protection",null,null,"_","_","_",null,"_",0,0,0,0,0,0,0,0,0,0,0,0,0,0,0,0,0,0,0]
["O0001/IE00552/F0041/X116/R0072/001/TECH",3715,"O0001/IE00552/F0041/X116/R0072/001/TECH",52655,"Expenditure:Operational Cost:Bargaining Council",2900,"Other expenditure","_","_",2904,"Other Expenditure",3200,"Road transport",3205,"Roads","_"," _"," _","O","IE"," _ "," _ "," _ "," _ "," _ "," _ "," _ "," _ "," _ "," _ "," _ "," _ "," _ "," _ "," _ "," _ "," _ "," _ "," _ "," _ ","",null,null," _ "," _ "," _ "," _ "," _ "," _ "," _ "," _ "," _ "," _ "," _ "," _ ","_"," _ "," _ "," _ "," _ ","_"," _ "," _ "," _ "," _ ",null,9,91,"Roads","Roads",null,null,"_","_","_",null,"_",0,0,0,0,0,0,0,0,0,0,0,0,0,0,0,0,0,0,0]
["O0001/IE00583/F0041/X046/R0072/001/CORP",743,"O0001/IE00583/F0041/X046/R0072/001/CORP",31179,"Expenditure:Operational Cost:Printing, Publications and Books",2900,"Other expenditure","_","_",2904,"Other Expenditure",1200,"Finance and administration",1201,"Administrative and Corporate Support","_"," _"," _","O","IE"," _ "," _ "," _ "," _ "," _ "," _ "," _ "," _ "," _ "," _ "," _ "," _ "," _ "," _ "," _ "," _ "," _ "," _ "," _ "," _ ","",null,null," _ "," _ "," _ "," _ "," _ "," _ "," _ "," _ "," _ "," _ "," _ "," _ ","_"," _ "," _ "," _ "," _ ","_"," _ "," _ "," _ "," _ ",null,1,17,"Finance and Admin","Administrative and Corporate Support",null,null,"_","_","_",null,"_",0,0,0,0,0,0,0,0,0,0,0,0,0,0,0,0,0,0,0]
["O0001/IE00584/F0041/X055/R0072/001/CORP",749,"O0001/IE00584/F0041/X055/R0072/001/CORP",31185,"Expenditure:Operational Cost:Professional Bodies, Membership and Subscription",2900,"Other expenditure","_","_",2904,"Other Expenditure",1200,"Finance and administration",1210,"Property Services","_"," _"," _","O","IE"," _ "," _ "," _ "," _ "," _ "," _ "," _ "," _ "," _ "," _ "," _ "," _ "," _ "," _ "," _ "," _ "," _ "," _ "," _ "," _ ","",null,null," _ "," _ "," _ "," _ "," _ "," _ "," _ "," _ "," _ "," _ "," _ "," _ ","_"," _ "," _ "," _ "," _ ","_"," _ "," _ "," _ "," _ ",null,1,19,"Finance and Admin","Property Services",null,null,"_","_","_",null,"_",0,0,0,0,0,0,0,0,0,0,0,0,0,0,0,0,0,0,0]
["D0001/IA00024/F0001/X006/R2868/001/FIN",18255,"D0001/IA00024/F0001/X006/R2868/001/FIN",85153,"Assets:Non-current Assets:Property, Plant and Equipment:Cost Model:Community Assets:Accumulated Depreciation:Opening Balance"," _"," _"," _ "," _ "," _ "," _ ",2100,"Community and social services",2106,"Community Halls and Facilities","_"," _"," _","D","IA",240," Property, plant and equipment",240,"Property, plant and equipment"," _ "," _ "," _ "," _ "," _ "," _ "," _ "," _ ",770,"Community Assets",770,"Community Assets",243,"Less: Accumulated depreciation",243,"Less: Accumulated depreciation","",null,null," _ "," _ "," _ "," _ "," _ "," _ "," _ "," _ "," _ "," _ "," _ "," _ ","_"," _ "," _ "," _ "," _ ","_"," _ "," _ "," _ "," _ ",null,3,32,"Community and social services","Community Halls and Facilities",null,null,"_","_","_",null,"_",0,0,0,0,0,0,0,-143327.67000000001,0,0,0,0,0,0,0,0,0,0,0]
["O0001/IE03969/F0041/X006/R0072/001/COMM",104,"O0001/IE03969/F0041/X006/R0072/001/COMM",30308,"Expenditure:Employee Related Cost:Municipal Staff:Salaries, Wages and Allowances:Allowances:Service Related Benefits:Overtime:Non Structured",2000,"Employee related costs","2000-004","Overtime",2004,"Overtime",2100,"Community and social services",2106,"Community Halls and Facilities","_"," _"," _","O","IE"," _ "," _ "," _ "," _ "," _ "," _ "," _ "," _ "," _ "," _ "," _ "," _ "," _ "," _ "," _ "," _ "," _ "," _ "," _ "," _ ","",null,null," _ "," _ "," _ "," _ "," _ "," _ "," _ "," _ "," _ "," _ "," _ "," _ ","_"," _ "," _ "," _ "," _ ","_"," _ "," _ "," _ "," _ ","MS",3,32,"Community and social services","Community Halls and Facilities",null,null,"_","_","_",null,"_",845124,0,0,-368861,476263,113550,118660,25018.82,20822.87,2940.48,12502.2,10770.41,13330.2,82511.56,0,0,0,0,0]
["O0001/IE06236/F0041/X096/R0072/001/LED",288,"O0001/IE06236/F0041/X096/R0072/001/LED",52799,"Expenditure:Employee Related Cost:Senior Management:Designation:Social Contributions:Pension",2000,"Employee related costs","2000-002","Pension and UIF Contributions",2002,"Pension and UIF Contributions",3100,"Planning and development",3102,"Corporate Wide Strategic Planning (IDPs, LEDs)","_"," _"," _","O","IE"," _ "," _ "," _ "," _ "," _ "," _ "," _ "," _ "," _ "," _ "," _ "," _ "," _ "," _ "," _ "," _ "," _ "," _ "," _ "," _ ","",null,null," _ "," _ "," _ "," _ "," _ "," _ "," _ "," _ "," _ "," _ "," _ "," _ ","_"," _ "," _ "," _ "," _ ","_"," _ "," _ "," _ "," _ ","SM",7,71,"Planning and Development","Corporate Wide Strategic Planning (IDPs, LEDs)",null,null,"_","_","_",null,"_",162766,0,0,-6000,156766,133813,139834,0,0,0,0,0,0,0,0,0,0,0,0]
["O0001/IE00607/F0041/X101/R0072/001/TECH",2782,"O0001/IE00607/F0041/X101/R0072/001/TECH",52497,"Expenditure:Operational Cost:Wet Fuel",2900,"Other expenditure","_","_",2904,"Other Expenditure",3100,"Planning and development",3107,"Town Planning, Building Regulations and Enforcement, and City Engineer","_"," _"," _","O","IE"," _ "," _ "," _ "," _ "," _ "," _ "," _ "," _ "," _ "," _ "," _ "," _ "," _ "," _ "," _ "," _ "," _ "," _ "," _ "," _ ","",null,null," _ "," _ "," _ "," _ "," _ "," _ "," _ "," _ "," _ "," _ "," _ "," _ ","_"," _ "," _ "," _ "," _ ","_"," _ "," _ "," _ "," _ ",null,7,72,"Planning and Development","Town Planning, Building Regulations and Enforcement, and City Engineer",null,null,"_","_","_",null,"_",6753575,0,0,600000,7353575,2753575,2877486,0,0,0,0,0,0,0,0,0,0,0,0]
["D0001/IA00029/F0001/X006/R2868/001/FIN",18467,"D0001/IA00029/F0001/X006/R2868/001/FIN",85362,"Assets:Non-current Assets:Property, Plant and Equipment:Cost Model:Community Assets:Accumulated Impairment:Disposals/Transfers Out"," _"," _"," _ "," _ "," _ "," _ ",2100,"Community and social services",2106,"Community Halls and Facilities","_"," _"," _","D","IA","_","_","_","_"," _ "," _ "," _ "," _ "," _ "," _ "," _ "," _ ",770,"Community Assets",770,"Community Assets",241,"PPE at cost/valuation (excl. finance leases)",241,"PPE at cost/valuation (excl. finance leases)","",null,null," _ "," _ "," _ "," _ "," _ "," _ "," _ "," _ "," _ "," _ "," _ "," _ ","_"," _ "," _ "," _ "," _ ","_"," _ "," _ "," _ "," _ ",null,3,32,"Community and social services","Community Halls and Facilities",null,null,"_","_","_",null,"_",0,0,0,0,0,0,0,0,0,0,0,0,0,0,0,0,0,0,0]
["D0001/IL112869/F09788/X101/R0072/001/Tech",15739,"D0001/IL112869/F09788/X101/R0072/001/Tech",63653,"Liabilities:Current Liabilities:Trade and Other Payable Non-exchange Transactions:Transfers and Subsidies Payable:Capital:Monetary Allocations:Provincial Government:KwaZulu-Natal:Capacity Building and Other:Specify (Add grant description):Transferred to Revenue/Capital Expenditure"," _"," _"," _ "," _ "," _ "," _ ",3100,"Planning and development",3107,"Town Planning, Building Regulations and Enforcement, and City Engineer","_",2020,"Provincial Government","D","IL",360," Trade and other payables",360,"Trade and other payables"," _ "," _ "," _ "," _ "," _ "," _ "," _ "," _ "," _ "," _ "," _ "," _ ",362," Other creditors",362," Other creditors","",null,null," _ "," _ "," _ "," _ "," _ "," _ "," _ "," _ "," _ "," _ "," _ "," _ ","_"," _ "," _ "," _ "," _ ","_"," _ "," _ "," _ "," _ ",null,7,72,"Planning and Development","Town Planning, Building Regulations and Enforcement, and City Engineer",null,null,"_","_","_",null,"_",0,0,0,0,0,0,0,0,0,0,0,0,0,0,0,0,0,0,0]
["D0001/IL01044/F0001/X049/R0072/001/FIN",18679,"D0001/IL01044/F0001/X049/R0072/001/FIN",85577,"Liabilities:Non-current Liabilities:Provision and Impairment:Decommissioning, Restoration and Similar Liabilities:Landfill Sites:Opening Balance"," _"," _"," _ "," _ "," _ "," _ ",1200,"Finance and administration",1204,"Finance","_"," _"," _","D","IL",410,"  Provisions",410,"Provisions"," _ "," _ "," _ "," _ "," _ "," _ "," _ "," _ "," _ "," _ "," _ "," _ ",412,"Refuse landfill site rehabilitation",412,"Refuse landfill site rehabilitation","",null,null," _ "," _ "," _ "," _ "," _ "," _ "," _ "," _ "," _ "," _ "," _ "," _ ","_"," _ "," _ "," _ "," _ ","_"," _ "," _ "," _ "," _ ",null,1,12,"Finance and Admin","Finance",null,null,"_","_","_",null,"_",23014686,0,0,0,23014686,24003888,24503888,0,0,0,0,0,0,0,0,0,0,0,0]
["D0001/IL093036/F13637/X098/R0072/001/LED",15535,"D0001/IL093036/F13637/X098/R0072/001/LED",63460,"Liabilities:Current Liabilities:Trade and Other Payable Non-exchange Transactions:Transfers and Subsidies Unspent:Operational:Monetary Allocations:Provincial Government:KwaZulu-Natal:Capacity Building and Other:Specify (Add grant description):Receipts"," _"," _"," _ "," _ "," _ "," _ ",3100,"Planning and development",3105,"Economic Development/Planning","_"," _"," _","D","IL",360," Trade and other payables",360,"Trade and other payables"," _ "," _ "," _ "," _ "," _ "," _ "," _ "," _ "," _ "," _ "," _ "," _ ",363,"Unspent conditional transfers",363,"Unspent conditional transfers","",null,null," _ "," _ "," _ "," _ "," _ "," _ "," _ "," _ "," _ "," _ "," _ "," _ ","_"," _ "," _ "," _ "," _ ","_"," _ "," _ "," _ "," _ ",null,7,74,"Planning and Development","Economic Development/Planning",null,null,"_","_","_",null,"_",0,0,0,0,0,0,0,0,0,0,0,-1720000,0,0,0,0,0,0,0]
["O0001/IE07587/F0001/X049/R0072/001/FIN",1125,"O0001/IE07587/F0001/X049/R0072/001/FIN",31770,"Expenditure:Depreciation and Amortisation:Depreciation:Roads Infrastructure:Roads",2300,"Depreciation & asset impairment","2300-001","Depreciation of Property, Plant & Equipment",2301,"Depreciation of Property, Plant and Equipment",1200,"Finance and administration",1204,"Finance","_"," _"," _","O","IE"," _ "," _ "," _ "," _ "," _ "," _ "," _ "," _ "," _ "," _ "," _ "," _ "," _ "," _ "," _ "," _ "," _ "," _ "," _ "," _ ","",null,null," _ "," _ "," _ "," _ "," _ "," _ "," _ "," _ "," _ "," _ "," _ "," _ ","_",120,"Roads",120,"Roads","DP"," _ "," _ "," _ "," _ ",null,1,12,"Finance and Admin","Finance",null,null,"_","_","_",null,"_",9990298,0,0,5065731,15056029,17843513,20453564,1209260.31,1169625.8799999999,1170339.8899999999,1211453.9280000001,6141841.8499999996,1213002.3999999999,1213820.33,0,0,0,0,0]
["O0001/IE00771/F0041/X044/R0072/001/EXC",2795,"O0001/IE00771/F0041/X044/R0072/001/EXC",52510,"Expenditure:Operational Cost:Communication:Postage/Stamps/Franking Machines",2900,"Other expenditure","_","_",2904,"Other Expenditure",1100,"Executive and council",1110,"Mayor and Council","_"," _"," _","O","IE"," _ "," _ "," _ "," _ "," _ "," _ "," _ "," _ "," _ "," _ "," _ "," _ "," _ "," _ "," _ "," _ "," _ "," _ "," _ "," _ ","",null,null," _ "," _ "," _ "," _ "," _ "," _ "," _ "," _ "," _ "," _ "," _ "," _ ","_"," _ "," _ "," _ "," _ ","_"," _ "," _ "," _ "," _ ",null,2,21,"Executive and council","Mayor and Council",null,null,"_","_","_",null,"_",0,0,0,0,0,0,0,0,0,0,0,0,0,0,0,0,0,0,0]
["D0001/IZ00118/F0041/X101/R0072/001/FIN",15657,"D0001/IZ00118/F0041/X101/R0072/001/FIN",63571,"Gains and Losses:Disposal of Fixed and Intangible Assets:Property, Plant and Equipment:Transport Assets:Gains",1700,"Gains on disposal of PPE",1700,"Gains on disposal of PPE"," _ "," _ ",3100,"Planning and development",3107,"Town Planning, Building Regulations and Enforcement, and City Engineer","_"," _"," _","D","IR"," _ "," _ "," _ "," _ "," _ "," _ "," _ "," _ "," _ "," _ "," _ "," _ "," _ "," _ "," _ "," _ "," _ "," _ "," _ "," _ ","",null,null," _ "," _ "," _ "," _ "," _ "," _ "," _ "," _ "," _ "," _ "," _ "," _ ","_"," _ "," _ "," _ "," _ ","_"," _ "," _ "," _ "," _ ",null,7,72,"Planning and Development","Town Planning, Building Regulations and Enforcement, and City Engineer",null,null,"_","_","_",null,"_",0,0,0,0,0,0,0,0,0,0,0,0,0,0,0,0,0,0,0]
["O0001/IE00038/F0791/X099/R0072/001/Tech",3718,"O0001/IE00038/F0791/X099/R0072/001/Tech",52658,"Expenditure:Employee Related Cost:Municipal Staff:Salaries, Wages and Allowances:Bonuses",2000,"Employee related costs","2000-005","Performance Bonus",2005,"Performance Bonus",3100,"Planning and development",3108,"Project Management Unit","_",2010,"National Government","O","IE"," _ "," _ "," _ "," _ "," _ "," _ "," _ "," _ "," _ "," _ "," _ "," _ "," _ "," _ "," _ "," _ "," _ "," _ "," _ "," _ ","",null,null," _ "," _ "," _ "," _ "," _ "," _ "," _ "," _ "," _ "," _ "," _ "," _ ","_"," _ "," _ "," _ "," _ ","_"," _ "," _ "," _ "," _ ","MS",7,73,"Planning and Development","Project Management Unit",null,null,"_","_","_",null,"_",0,0,0,0,0,0,0,0,0,0,0,0,0,0,0,0,0,0,0]
["O0001/IE012300/F0041/X049/R0072/001/FIN",4803,"O0001/IE012300/F0041/X049/R0072/001/FIN",52768,"Expenditure:Transfers and Subsidies:Operational:Monetary Allocations:Provincial Government:KwaZulu-Natal:Capacity Building and Other:Specify (Add grant description)",2800,"Transfers and subsidies",28000203,"Non-Cash Transfers to other Organs of State  "," _ "," _ ",1200,"Finance and administration",1204,"Finance","_"," _"," _","O","IE"," _ "," _ "," _ "," _ "," _ "," _ "," _ "," _ "," _ "," _ "," _ "," _ "," _ "," _ "," _ "," _ "," _ "," _ "," _ "," _ ","",null,null," _ "," _ "," _ "," _ "," _ "," _ "," _ "," _ "," _ "," _ "," _ "," _ ","_"," _ "," _ "," _ "," _ ","_"," _ "," _ "," _ "," _ ",null,1,12,"Finance and Admin","Finance",null,null,"_","_","_",null,"_",0,0,0,0,0,0,0,0,0,0,0,0,0,0,0,0,0,0,0]
["D0001/IL112915/F0001/X049/R0405/001/FIN",17850,"D0001/IL112915/F0001/X049/R0405/001/FIN",84747,"Liabilities:Current Liabilities:Trade and Other Payable Non-exchange Transactions:Transfers and Subsidies Payable:Capital:Monetary Allocations:Provincial Government:KwaZulu-Natal:Capacity Building and Other:Specify (Add grant description):Opening Balance"," _"," _"," _ "," _ "," _ "," _ ",1200,"Finance and administration",1204,"Finance","_"," _"," _","D","IL",360," Trade and other payables",360,"Trade and other payables"," _ "," _ "," _ "," _ "," _ "," _ "," _ "," _ "," _ "," _ "," _ "," _ ",362," Other creditors",362," Other creditors","",null,null," _ "," _ "," _ "," _ "," _ "," _ "," _ "," _ "," _ "," _ "," _ "," _ ","_"," _ "," _ "," _ "," _ ","_"," _ "," _ "," _ "," _ ",null,1,12,"Finance and Admin","Finance",null,null,"_","_","_",null,"_",0,0,0,0,0,0,0,0,0,0,0,0,0,0,0,0,0,0,0]
["D0001/IL53986/F0001/X049/R0073/001/FIN",2888,"D0001/IL53986/F0001/X049/R0073/001/FIN",52604,"Liabilities:Current Liabilities:Trade and Other Payable Exchange Transactions:Retentions:Withdrawals"," _"," _"," _ "," _ "," _ "," _ ",1200,"Finance and administration",1204,"Finance","_"," _"," _","D","IL",360," Trade and other payables",360,"Trade and other payables"," _ "," _ "," _ "," _ "," _ "," _ "," _ "," _ "," _ "," _ "," _ "," _ ",361,"Trade Payables",361,"Trade Payables","",null,null," _ "," _ "," _ "," _ "," _ "," _ "," _ "," _ "," _ "," _ "," _ "," _ ","_"," _ "," _ "," _ "," _ ","_"," _ "," _ "," _ "," _ ",null,1,12,"Finance and Admin","Finance",null,null,"_","_","_",null,"_",5016840,0,0,0,5016840,5052300,5272200,0,0,0,0,0,0,0,0,0,0,0,0]
["O0001/IE01523/F0041/X049/R0072/001/FIN",256,"O0001/IE01523/F0041/X049/R0072/001/FIN",30545,"Expenditure:Employee Related Cost:Municipal Staff:Salaries, Wages and Allowances:Allowances:Housing Benefits and Incidental:Rental Subsidy",2000,"Employee related costs","2000-008","Housing Allowances",2008,"Housing Allowances",1200,"Finance and administration",1204,"Finance","_"," _"," _","O","IE"," _ "," _ "," _ "," _ "," _ "," _ "," _ "," _ "," _ "," _ "," _ "," _ "," _ "," _ "," _ "," _ "," _ "," _ "," _ "," _ ","",null,null," _ "," _ "," _ "," _ "," _ "," _ "," _ "," _ "," _ "," _ "," _ "," _ ","_"," _ "," _ "," _ "," _ ","_"," _ "," _ "," _ "," _ ","MS",1,12,"Finance and Admin","Finance",null,null,"_","_","_",null,"_",0,0,0,0,0,0,0,9066.51,9066.51,9066.51,9066.51,9066.51,9066.51,9066.51,0,0,0,0,0]
["D0001/IL30681/F0791/X116/R0072/001/Tech",18079,"D0001/IL30681/F0791/X116/R0072/001/Tech",84976,"Liabilities:Current Liabilities:Trade and Other Payable Non-exchange Transactions:Transfers and Subsidies Unspent:Capital:Monetary Allocations:National Government:Municipal Infrastructure Grant:Re-payment of Unspent Grant"," _"," _"," _ "," _ "," _ "," _ ",3200,"Road transport",3205,"Roads","_",2010,"National Government","D","IL",360," Trade and other payables",360,"Trade and other payables"," _ "," _ "," _ "," _ ",200,"Cash Payments by Type / Other expenditure",480,"Other expenditure"," _ "," _ "," _ "," _ ",363,"Unspent conditional transfers",363,"Unspent conditional transfers","",null,null," _ "," _ "," _ "," _ "," _ "," _ "," _ "," _ "," _ "," _ "," _ "," _ ","_"," _ "," _ "," _ "," _ ","_"," _ "," _ "," _ "," _ ",null,9,91,"Roads","Roads",null,null,"_","_","_",null,"_",0,0,0,1694448,1694448,0,0,0,0,0,0,0,0,0,0,0,0,0,0]
["O0001/IE01530/F0041/X052/R0072/001/CORP",34,"O0001/IE01530/F0041/X052/R0072/001/CORP",30238,"Expenditure:Employee Related Cost:Municipal Staff:Salaries, Wages and Allowances:Allowances:Service Related Benefits:Leave Pay",2000,"Employee related costs","2000-010","Payments in lieu of leave",2010,"Payments in lieu of leave",1200,"Finance and administration",1207,"Information Technology","_"," _"," _","O","IE"," _ "," _ "," _ "," _ "," _ "," _ "," _ "," _ "," _ "," _ "," _ "," _ "," _ "," _ "," _ "," _ "," _ "," _ "," _ "," _ ","",null,null," _ "," _ "," _ "," _ "," _ "," _ "," _ "," _ "," _ "," _ "," _ "," _ ","_"," _ "," _ "," _ "," _ ","_"," _ "," _ "," _ "," _ ","MS",1,15,"Finance and Admin","Information Technology",null,null,"_","_","_",null,"_",0,0,0,0,0,0,0,0,0,0,0,0,0,0,0,0,0,0,0]
["O1232-1/IE00830/F0041/X049/R0072/001/FIN",979,"O1232-1/IE00830/F0041/X049/R0072/001/FIN",31577,"Expenditure:Contracted Services:Consultants and Professional Services:Business and Advisory:Accounting and Auditing",2700,"Contracted services","2700-002","Consultants and Professional Services",2702,"Consultants and Professional Services",1200,"Finance and administration",1204,"Finance","_"," _"," _","O","IE"," _ "," _ "," _ "," _ "," _ "," _ "," _ "," _ "," _ "," _ "," _ "," _ "," _ "," _ "," _ "," _ "," _ "," _ "," _ "," _ ","",null,null," _ "," _ "," _ "," _ "," _ "," _ "," _ "," _ "," _ "," _ "," _ "," _ ","_"," _ "," _ "," _ "," _ ","_"," _ "," _ "," _ "," _ ",null,1,12,"Finance and Admin","Finance",null,null,"_","_","_",null,"_",0,0,0,0,0,0,0,0,0,0,0,0,0,0,0,0,0,0,0]
["D0001/IL54008/F0045/X049/R0072/001/FIN",1470,"D0001/IL54008/F0045/X049/R0072/001/FIN",32192,"Liabilities:Current Liabilities:Trade and Other Payable Exchange Transactions:Control, Clearing and Interface Accounts:Salary Clearing and Control:Group Life Control:Withdrawals"," _"," _"," _ "," _ "," _ "," _ ",1200,"Finance and administration",1204,"Finance","_"," _"," _","D","IL",360," Trade and other payables",360,"Trade and other payables"," _ "," _ "," _ "," _ ",200,"Cash Payments by Type / Employee related costs",390,"Employee related costs"," _ "," _ "," _ "," _ ",361,"Trade Payables",361,"Trade Payables","",null,null," _ "," _ "," _ "," _ "," _ "," _ "," _ "," _ "," _ "," _ "," _ "," _ ","_"," _ "," _ "," _ "," _ ","_"," _ "," _ "," _ "," _ ",null,1,12,"Finance and Admin","Finance",null,null,"_","_","_",null,"_",0,0,0,0,0,0,0,40480.99,40761.22,40660.589999999997,40761.22,42052.01,41143.129999999997,41263.97,0,0,0,0,0]
["D0001/IL54012/F0001/X049/R0072/001/FIN",17672,"D0001/IL54012/F0001/X049/R0072/001/FIN",84569,"Liabilities:Current Liabilities:Trade and Other Payable Exchange Transactions:Control, Clearing and Interface Accounts:Salary Clearing and Control:Employee Deductions FICS:Opening Balance"," _"," _"," _ "," _ "," _ "," _ ",1200,"Finance and administration",1204,"Finance","_"," _"," _","D","IL",360," Trade and other payables",360,"Trade and other payables"," _ "," _ "," _ "," _ "," _ "," _ "," _ "," _ "," _ "," _ "," _ "," _ ",361,"Trade Payables",361,"Trade Payables","",null,null," _ "," _ "," _ "," _ "," _ "," _ "," _ "," _ "," _ "," _ "," _ "," _ ","_"," _ "," _ "," _ "," _ ","_"," _ "," _ "," _ "," _ ",null,1,12,"Finance and Admin","Finance",null,null,"_","_","_",null,"_",0,0,0,0,0,0,0,0,0,0,0,0,0,0,0,0,0,0,0]
["D0001/IR01073/F2494/X049/R0073/001/FIN",1456,"D0001/IR01073/F2494/X049/R0073/001/FIN",32178,"Revenue:Exchange Revenue:Interest, Dividend and Rent on Land:Interest:Receivables:Waste Management",1000,"Interest earned - outstanding debtors",1000,"Interest earned - outstanding debtors"," _ "," _ ",1200,"Finance and administration",1204,"Finance","_"," _"," _","D","IR"," _ "," _ "," _ "," _ "," _ "," _ "," _ "," _ "," _ "," _ "," _ "," _ "," _ "," _ "," _ "," _ "," _ "," _ "," _ "," _ ","",null,null," _ "," _ "," _ "," _ "," _ "," _ "," _ "," _ "," _ "," _ "," _ "," _ ","_"," _ "," _ "," _ "," _ ","_"," _ "," _ "," _ "," _ ",null,1,12,"Finance and Admin","Finance",null,null,"_","_","_",null,"_",0,0,0,0,0,0,0,0,0,0,0,0,0,0,0,0,0,0,0]
["O0001/IE00060/F0044/X119/R0073/001/TRAF",1052,"O0001/IE00060/F0044/X119/R0073/001/TRAF",31673,"Expenditure:Operational Cost:Travel and Subsistence:Domestic:Accommodation",2900,"Other expenditure","_","_",2904,"Other Expenditure",3200,"Road transport",3204,"Road and Traffic Regulation","_"," _"," _","O","IE"," _ "," _ "," _ "," _ "," _ "," _ "," _ "," _ "," _ "," _ "," _ "," _ "," _ "," _ "," _ "," _ "," _ "," _ "," _ "," _ ","",null,null," _ "," _ "," _ "," _ "," _ "," _ "," _ "," _ "," _ "," _ "," _ "," _ ","_"," _ "," _ "," _ "," _ ","_"," _ "," _ "," _ "," _ ",null,null,0," _ ","Road and Traffic Regulation",null,null,"_","_","_",null,"_",50000,0,0,0,50000,156750,163804,0,0,19017.39,0,0,0,37422.370000000003,0,0,0,0,0]
["O0001/IE06853/F0041/X006/R0072/001/COMM",184,"O0001/IE06853/F0041/X006/R0072/001/COMM",30460,"Expenditure:Employee Related Cost:Senior Management:Designation:Salaries and Allowances:Allowance:Housing Benefits",2000,"Employee related costs","2000-008","Housing Allowances",2008,"Housing Allowances",2100,"Community and social services",2106,"Community Halls and Facilities","_"," _"," _","O","IE"," _ "," _ "," _ "," _ "," _ "," _ "," _ "," _ "," _ "," _ "," _ "," _ "," _ "," _ "," _ "," _ "," _ "," _ "," _ "," _ ","",null,null," _ "," _ "," _ "," _ "," _ "," _ "," _ "," _ "," _ "," _ "," _ "," _ ","_"," _ "," _ "," _ "," _ ","_"," _ "," _ "," _ "," _ ","SM",3,32,"Community and social services","Community Halls and Facilities",null,null,"_","_","_",null,"_",108801,0,0,82896,191697,0,0,16467.5,16071.45,16071.45,16071.45,15789.92,15675.4,15675.4,0,0,0,0,0]
["O0001/IE06975/F0041/X046/R0072/001/CORP",66,"O0001/IE06975/F0041/X046/R0072/001/CORP",30270,"Expenditure:Employee Related Cost:Senior Management:Designation:Salaries and Allowances:Service Related Benefits:Acting and Post Related Allowances",2000,"Employee related costs","2000-009","Other benefits and allowances",2001,"Basic Salaries and Wages",1200,"Finance and administration",1201,"Administrative and Corporate Support","_"," _"," _","O","IE"," _ "," _ "," _ "," _ "," _ "," _ "," _ "," _ "," _ "," _ "," _ "," _ "," _ "," _ "," _ "," _ "," _ "," _ "," _ "," _ ","",null,null," _ "," _ "," _ "," _ "," _ "," _ "," _ "," _ "," _ "," _ "," _ "," _ ","_"," _ "," _ "," _ "," _ ","_"," _ "," _ "," _ "," _ ","SM",1,17,"Finance and Admin","Administrative and Corporate Support",null,null,"_","_","_",null,"_",0,0,0,0,0,0,0,0,0,0,0,0,0,0,0,0,0,0,0]
["O0001/IE07226/F0041/X044/R0072/001/EXC",427,"O0001/IE07226/F0041/X044/R0072/001/EXC",30860,"Expenditure:Remuneration of Councillors:Executive Mayor:Allowances and Service Related Benefits:Travelling Allowance",2100,"Remuneration of councillors",210007,"Other benefits and allowances"," _ "," _ ",1100,"Executive and council",1110,"Mayor and Council","_"," _"," _","O","IE"," _ "," _ "," _ "," _ "," _ "," _ "," _ "," _ "," _ "," _ "," _ "," _ "," _ "," _ "," _ "," _ "," _ "," _ "," _ "," _ ","",null,null," _ "," _ "," _ "," _ "," _ "," _ "," _ "," _ "," _ "," _ "," _ "," _ ","_"," _ "," _ "," _ "," _ ","_"," _ "," _ "," _ "," _ ",null,2,21,"Executive and council","Mayor and Council",null,null,"_","_","_",null,"_",244054,0,0,-28840,215214,236144,246771,17934.560000000001,17934.560000000001,17934.560000000001,17934.560000000001,5185.8999999999996,25264.91,17934.560000000001,0,0,0,0,0]
["O0001/IE00126/F0041/X007/R0072/001/LIB",171,"O0001/IE00126/F0041/X007/R0072/001/LIB",52895,"Expenditure:Employee Related Cost:Municipal Staff:Salaries, Wages and Allowances:Allowances:Travel or Motor Vehicle",2000,"Employee related costs","2000-006","Motor Vehicle Allowance",2006,"Motor Vehicle Allowance",2100,"Community and social services",2114,"Libraries and Archives","_"," _"," _","O","IE"," _ "," _ "," _ "," _ "," _ "," _ "," _ "," _ "," _ "," _ "," _ "," _ "," _ "," _ "," _ "," _ "," _ "," _ "," _ "," _ ","",null,null," _ "," _ "," _ "," _ "," _ "," _ "," _ "," _ "," _ "," _ "," _ "," _ ","_"," _ "," _ "," _ "," _ ","_"," _ "," _ "," _ "," _ ","MS",3,33,"Community and social services","Libraries and Archives",null,null,"_","_","_",null,"_",96000,0,0,0,96000,100320,104834,8000,8000,8000,8000,8000,8000,8000,0,0,0,0,0]
["O0001/IE00545/F0041/X057/R0072/001/CORP",770,"O0001/IE00545/F0041/X057/R0072/001/CORP",31206,"Expenditure:Operating Leases:Machinery and Equipment",2900,"Other expenditure","_","_",2904,"Other Expenditure",1200,"Finance and administration",1212,"Security Services","_"," _"," _","O","IE"," _ "," _ "," _ "," _ "," _ "," _ "," _ "," _ "," _ "," _ "," _ "," _ "," _ "," _ "," _ "," _ "," _ "," _ "," _ "," _ ","",null,null," _ "," _ "," _ "," _ "," _ "," _ "," _ "," _ "," _ "," _ "," _ "," _ ","_"," _ "," _ "," _ "," _ ","_"," _ "," _ "," _ "," _ ",null,1,14,"Finance and Admin","Security Services",null,null,"_","_","_",null,"_",0,0,0,0,0,0,0,0,0,0,0,0,0,0,0,0,0,0,0]
["O0025-2/IE00001/F13636/X101/R0072/001/TECH",4969,"O0025-2/IE00001/F13636/X101/R0072/001/TECH",52943,"Expenditure:Contracted Services:Consultants and Professional Services:Infrastructure and Planning:Town Planner",2700,"Contracted services","2700-002","Consultants and Professional Services",2702,"Consultants and Professional Services",3100,"Planning and development",3107,"Town Planning, Building Regulations and Enforcement, and City Engineer","_"," _"," _","O","IE"," _ "," _ "," _ "," _ "," _ "," _ "," _ "," _ "," _ "," _ "," _ "," _ "," _ "," _ "," _ "," _ "," _ "," _ "," _ "," _ ","",null,null," _ "," _ "," _ "," _ "," _ "," _ "," _ "," _ "," _ "," _ "," _ "," _ ","_"," _ "," _ "," _ "," _ ","_"," _ "," _ "," _ "," _ ",null,7,72,"Planning and Development","Town Planning, Building Regulations and Enforcement, and City Engineer",null,null,"_","_","_",null,"_",0,0,0,0,0,0,0,0,0,0,0,0,0,0,0,0,0,0,0]
["D0001/IZ00095/F0041/X101/R0072/001/FIN",15656,"D0001/IZ00095/F0041/X101/R0072/001/FIN",63570,"Gains and Losses:Disposal of Fixed and Intangible Assets:Property, Plant and Equipment:Furniture and Office Equipment:Losses",3000,"Loss on disposal of PPE",3000,"Loss on disposal of PPE"," _ "," _ ",3100,"Planning and development",3107,"Town Planning, Building Regulations and Enforcement, and City Engineer","_"," _"," _","D","IE"," _ "," _ "," _ "," _ "," _ "," _ "," _ "," _ "," _ "," _ "," _ "," _ "," _ "," _ "," _ "," _ "," _ "," _ "," _ "," _ ","",null,null," _ "," _ "," _ "," _ "," _ "," _ "," _ "," _ "," _ "," _ "," _ "," _ ","_"," _ "," _ "," _ "," _ ","_"," _ "," _ "," _ "," _ ",null,7,72,"Planning and Development","Town Planning, Building Regulations and Enforcement, and City Engineer",null,null,"_","_","_",null,"_",0,0,0,0,0,0,0,0,0,0,0,0,0,0,0,0,0,0,0]
["O1232-2/IE00060/F0041/X045/R0072/001/MM",1082,"O1232-2/IE00060/F0041/X045/R0072/001/MM",31715,"Expenditure:Operational Cost:Travel and Subsistence:Domestic:Accommodation",2900,"Other expenditure","_","_",2904,"Other Expenditure",1100,"Executive and council",1120,"Municipal Manager, Town Secretary and Chief Executive","_"," _"," _","O","IE"," _ "," _ "," _ "," _ "," _ "," _ "," _ "," _ "," _ "," _ "," _ "," _ "," _ "," _ "," _ "," _ "," _ "," _ "," _ "," _ ","",null,null," _ "," _ "," _ "," _ "," _ "," _ "," _ "," _ "," _ "," _ "," _ "," _ ","_"," _ "," _ "," _ "," _ ","_"," _ "," _ "," _ "," _ ",null,2,22,"Executive and council","Municipal Manager, Town Secretary and Chief Executive",null,null,"_","_","_",null,"_",60000,0,0,0,60000,313500,327608,0,0,0,0,41242.530000000006,0,0,7208.7000000000007,0,0,0,0]
["D0001/IR01040/F0045/X049/R0072/001/FIN",1170,"D0001/IR01040/F0045/X049/R0072/001/FIN",31817,"Revenue:Non-exchange Revenue:Property Rates:Communal Land:Other",200,"Property rates",200,"Rates"," _ "," _ ",1200,"Finance and administration",1204,"Finance","_"," _"," _","D","IR"," _ "," _ "," _ "," _ "," _ "," _ "," _ "," _ "," _ "," _ "," _ "," _ "," _ "," _ "," _ "," _ "," _ "," _ "," _ "," _ ","",null,null," _ "," _ "," _ "," _ "," _ "," _ "," _ "," _ "," _ "," _ "," _ "," _ ","_"," _ "," _ "," _ "," _ ","_"," _ "," _ "," _ "," _ ",null,1,12,"Finance and Admin","Finance",null,null,"_","_","_",null,"_",0,0,0,0,0,0,0,0,0,0,0,0,0,0,0,0,0,0,0]
["O1235-3/IE00583/F0041/X006/R2864/001/COMM",5101,"O1235-3/IE00583/F0041/X006/R2864/001/COMM",53178,"Expenditure:Operational Cost:Printing, Publications and Books",2900,"Other expenditure","_","_",2904,"Other Expenditure",2100,"Community and social services",2106,"Community Halls and Facilities","_"," _"," _","O","IE"," _ "," _ "," _ "," _ "," _ "," _ "," _ "," _ "," _ "," _ "," _ "," _ "," _ "," _ "," _ "," _ "," _ "," _ "," _ "," _ ","",null,null," _ "," _ "," _ "," _ "," _ "," _ "," _ "," _ "," _ "," _ "," _ "," _ ","_"," _ "," _ "," _ "," _ ","_"," _ "," _ "," _ "," _ ",null,3,32,"Community and social services","Community Halls and Facilities",null,null,"_","_","_",null,"_",0,0,0,0,0,0,0,0,0,0,0,0,0,0,0,0,0,0,0]
["D0001/IR01410/F0930/X132/R0073/001/FIN",1305,"D0001/IR01410/F0930/X132/R0073/001/FIN",32025,"Revenue:Exchange Revenue:Licences or Permits:Trading",1300,"Licences and permits",1300,"Licences and permits"," _ "," _ ",4400,"Waste management",4403,"Solid Waste Removal","_"," _"," _","D","IR"," _ "," _ "," _ "," _ "," _ "," _ "," _ "," _ "," _ "," _ "," _ "," _ "," _ "," _ "," _ "," _ "," _ "," _ "," _ "," _ ","",null,null," _ "," _ "," _ "," _ "," _ "," _ "," _ "," _ "," _ "," _ "," _ "," _ ","_"," _ "," _ "," _ "," _ ","_"," _ "," _ "," _ "," _ ",null,5,51,"Waste Management","Solid Waste Removal",null,null,"_","_","_",null,"_",0,0,0,0,0,0,0,0,0,0,0,0,0,0,0,0,0,0,0]
["D0001/IR01666/F0786/X049/R0072/001/FIN",5338,"D0001/IR01666/F0786/X049/R0072/001/FIN",52424,"Revenue:Non-exchange Revenue:Transfers and Subsidies:Capital:Monetary Allocations:National Government:Integrated National Electrification Programme Grant",3300,"Transfers and subsidies - capital (monetary allocations) (National / Provincial and District)",3300,"Transfers and subsidies - capital (monetary allocations) (National / Provincial and District)"," _ "," _ ",1200,"Finance and administration",1204,"Finance","_",2010,"National Government","D","IR"," _ "," _ "," _ "," _ "," _ "," _ "," _ "," _ "," _ "," _ "," _ "," _ "," _ "," _ "," _ "," _ "," _ "," _ "," _ "," _ ","",null,null," _ "," _ "," _ "," _ "," _ "," _ "," _ "," _ "," _ "," _ "," _ "," _ ","_"," _ "," _ "," _ "," _ ","_"," _ "," _ "," _ "," _ ",null,1,12,"Finance and Admin","Finance",null,null,"_","_","_",null,"_",0,0,0,0,0,0,0,0,0,0,0,0,0,0,0,0,0,0,0]
["O0001/IE00738/F0041/X046/R0072/001/CORP",4770,"O0001/IE00738/F0041/X046/R0072/001/CORP",52733,"Expenditure:Inventory Consumed:Consumables:Standard Rated",2600,"Other materials",2600,"Other materials"," _ "," _ ",1200,"Finance and administration",1201,"Administrative and Corporate Support","_"," _"," _","O","IE"," _ "," _ "," _ "," _ "," _ "," _ "," _ "," _ "," _ "," _ "," _ "," _ "," _ "," _ "," _ "," _ "," _ "," _ "," _ "," _ ","",null,null," _ "," _ "," _ "," _ "," _ "," _ "," _ "," _ "," _ "," _ "," _ "," _ ","_"," _ "," _ "," _ "," _ ","_"," _ "," _ "," _ "," _ ",null,1,17,"Finance and Admin","Administrative and Corporate Support",null,null,"_","_","_",null,"_",355250,0,0,0,355250,365750,382209,0,6913.17,0,1446.5,26255.8,474.49,0,359641.1,0,0,0,0]
["O0001/IE00754/F0041/X044/R0073/001/EXC",16796,"O0001/IE00754/F0041/X044/R0073/001/EXC",83693,"Expenditure:Operational Cost:Advertising, Publicity and Marketing:Gifts and Promotional Items",2900,"Other expenditure","_","_",2904,"Other Expenditure",1100,"Executive and council",1110,"Mayor and Council","_"," _"," _","O","IE"," _ "," _ "," _ "," _ "," _ "," _ "," _ "," _ "," _ "," _ "," _ "," _ "," _ "," _ "," _ "," _ "," _ "," _ "," _ "," _ ","",null,null," _ "," _ "," _ "," _ "," _ "," _ "," _ "," _ "," _ "," _ "," _ "," _ ","_"," _ "," _ "," _ "," _ ","_"," _ "," _ "," _ "," _ ",null,2,21,"Executive and council","Mayor and Council",null,null,"_","_","_",null,"_",0,0,0,0,0,0,0,0,0,0,0,0,0,0,0,0,0,0,0]
["O0001/IE00803/F0041/X051/R0072/001/CORP",700,"O0001/IE00803/F0041/X051/R0072/001/CORP",31136,"Expenditure:Operational Cost:Insurance Underwriting:Insurance Brokers Fees",2900,"Other expenditure","_","_",2904,"Other Expenditure",1200,"Finance and administration",1206,"Human Resources","_"," _"," _","O","IE"," _ "," _ "," _ "," _ "," _ "," _ "," _ "," _ "," _ "," _ "," _ "," _ "," _ "," _ "," _ "," _ "," _ "," _ "," _ "," _ ","",null,null," _ "," _ "," _ "," _ "," _ "," _ "," _ "," _ "," _ "," _ "," _ "," _ ","_"," _ "," _ "," _ "," _ ","_"," _ "," _ "," _ "," _ ",null,1,16,"Finance and Admin","Human Resources",null,null,"_","_","_",null,"_",0,0,0,0,0,0,0,0,0,0,0,0,0,0,0,0,0,0,0]
["O0001/IE00043/F0041/X096/R0072/001/TECH",5080,"O0001/IE00043/F0041/X096/R0072/001/TECH",30757,"Expenditure:Employee Related Cost:Municipal Staff:Social Contributions:Medical",2000,"Employee related costs","2000-003","Medical Aid Contributions",2003,"Medical Aid Contributions",3100,"Planning and development",3102,"Corporate Wide Strategic Planning (IDPs, LEDs)","_"," _"," _","O","IE"," _ "," _ "," _ "," _ "," _ "," _ "," _ "," _ "," _ "," _ "," _ "," _ "," _ "," _ "," _ "," _ "," _ "," _ "," _ "," _ ","",null,null," _ "," _ "," _ "," _ "," _ "," _ "," _ "," _ "," _ "," _ "," _ "," _ ","_"," _ "," _ "," _ "," _ ","_"," _ "," _ "," _ "," _ ","MS",7,71,"Planning and Development","Corporate Wide Strategic Planning (IDPs, LEDs)",null,null,"_","_","_",null,"_",0,0,0,0,0,0,0,0,0,0,0,0,0,0,0,0,0,0,0]
["O1241-2/IE01321/F0041/X044/R0072/001/EXC",18758,"O1241-2/IE01321/F0041/X044/R0072/001/EXC",85665,"Expenditure:Transfers and Subsidies:Operational:Allocations In-kind:Households:Social Assistance:Social Relief",2800,"Transfers and subsidies",28000105,"Cash Transfers to Groups of Individuals  "," _ "," _ ",1100,"Executive and council",1110,"Mayor and Council","_"," _"," _","O","IE"," _ "," _ "," _ "," _ "," _ "," _ "," _ "," _ "," _ "," _ "," _ "," _ "," _ "," _ "," _ "," _ "," _ "," _ "," _ "," _ ","",null,null," _ "," _ "," _ "," _ "," _ "," _ "," _ "," _ "," _ "," _ "," _ "," _ ","_"," _ "," _ "," _ "," _ ","_"," _ "," _ "," _ "," _ ",null,2,21,"Executive and council","Mayor and Council",null,null,"_","_","_",null,"_",0,0,0,0,0,0,0,0,0,0,0,0,0,0,0,0,0,0,0]
["O1234-1/IE00686/F0041/X133/R0073/001/COMM",1113,"O1234-1/IE00686/F0041/X133/R0073/001/COMM",31746,"Expenditure:Contracted Services:Outsourced Services:Litter Picking and Street Cleaning",2700,"Contracted services","2700-001","Outsourced Services",2701,"Outsourced Services",4400,"Waste management",4404,"Street Cleaning","_"," _"," _","O","IE"," _ "," _ "," _ "," _ "," _ "," _ "," _ "," _ "," _ "," _ "," _ "," _ "," _ "," _ "," _ "," _ "," _ "," _ "," _ "," _ ","",null,null," _ "," _ "," _ "," _ "," _ "," _ "," _ "," _ "," _ "," _ "," _ "," _ ","_"," _ "," _ "," _ "," _ ","_"," _ "," _ "," _ "," _ ",null,5,52,"Waste Management","Street Cleaning",null,null,"_","_","_",null,"_",0,0,0,0,0,0,0,0,0,0,0,0,0,0,0,0,0,0,0]
["O1243-2/IE00573/F0041/X016/R2855/001/COMM",2798,"O1243-2/IE00573/F0041/X016/R2855/001/COMM",52513,"Expenditure:Operational Cost:Indigent Relief",2900,"Other expenditure","_","_",2904,"Other Expenditure",2100,"Community and social services",2106,"Community Halls and Facilities","_"," _"," _","O","IE"," _ "," _ "," _ "," _ "," _ "," _ "," _ "," _ "," _ "," _ "," _ "," _ "," _ "," _ "," _ "," _ "," _ "," _ "," _ "," _ ","",null,null," _ "," _ "," _ "," _ "," _ "," _ "," _ "," _ "," _ "," _ "," _ "," _ ","_"," _ "," _ "," _ "," _ ","_"," _ "," _ "," _ "," _ ",null,3,32,"Community and social services","Community Halls and Facilities",null,null,"_","_","_",null,"_",0,0,0,0,0,0,0,0,0,0,0,0,0,0,0,0,0,0,0]
["O0001/IE00126/F0041/X049/R0072/001/FIN",264,"O0001/IE00126/F0041/X049/R0072/001/FIN",30553,"Expenditure:Employee Related Cost:Municipal Staff:Salaries, Wages and Allowances:Allowances:Travel or Motor Vehicle",2000,"Employee related costs","2000-006","Motor Vehicle Allowance",2006,"Motor Vehicle Allowance",1200,"Finance and administration",1204,"Finance","_"," _"," _","O","IE"," _ "," _ "," _ "," _ "," _ "," _ "," _ "," _ "," _ "," _ "," _ "," _ "," _ "," _ "," _ "," _ "," _ "," _ "," _ "," _ ","",null,null," _ "," _ "," _ "," _ "," _ "," _ "," _ "," _ "," _ "," _ "," _ "," _ ","_"," _ "," _ "," _ "," _ ","_"," _ "," _ "," _ "," _ ","MS",1,12,"Finance and Admin","Finance",null,null,"_","_","_",null,"_",786000,0,0,-64000,722000,764940,799362,49500,49500,49500,49500,61000,61000,61000,0,0,0,0,0]
["O0001/IE00040/F0041/X019/R0072/001/COMM",5000,"O0001/IE00040/F0041/X019/R0072/001/COMM",30282,"Expenditure:Employee Related Cost:Municipal Staff:Social Contributions:Bargaining Council",2000,"Employee related costs","2000-009","Other benefits and allowances",2009,"Other benefits and allowances",2100,"Community and social services",2109,"Disaster Management","_"," _"," _","O","IE"," _ "," _ "," _ "," _ "," _ "," _ "," _ "," _ "," _ "," _ "," _ "," _ "," _ "," _ "," _ "," _ "," _ "," _ "," _ "," _ ","",null,null," _ "," _ "," _ "," _ "," _ "," _ "," _ "," _ "," _ "," _ "," _ "," _ ","_"," _ "," _ "," _ "," _ ","_"," _ "," _ "," _ "," _ ","MS",3,31,"Community and social services","Disaster Management",null,null,"_","_","_",null,"_",0,0,0,0,0,0,0,0,0,0,0,0,0,0,0,0,0,0,0]
["O1244-1/IE00571/F0041/X006/R2860/001/COMM",843,"O1244-1/IE00571/F0041/X006/R2860/001/COMM",31279,"Expenditure:Operational Cost:Hire Charges",2900,"Other expenditure","_","_",2904,"Other Expenditure",2100,"Community and social services",2106,"Community Halls and Facilities","_"," _"," _","O","IE"," _ "," _ "," _ "," _ "," _ "," _ "," _ "," _ "," _ "," _ "," _ "," _ "," _ "," _ "," _ "," _ "," _ "," _ "," _ "," _ ","",null,null," _ "," _ "," _ "," _ "," _ "," _ "," _ "," _ "," _ "," _ "," _ "," _ ","_"," _ "," _ "," _ "," _ ","_"," _ "," _ "," _ "," _ ",null,3,32,"Community and social services","Community Halls and Facilities",null,null,"_","_","_",null,"_",0,0,0,0,0,261250,273006,0,0,0,0,0,0,0,0,0,0,0,0]
["O1241-2/IE01321/F0041/X044/R2868/001/EXC",1368,"O1241-2/IE01321/F0041/X044/R2868/001/EXC",32088,"Expenditure:Transfers and Subsidies:Operational:Allocations In-kind:Households:Social Assistance:Social Relief",2800,"Transfers and subsidies",28000105,"Cash Transfers to Groups of Individuals  "," _ "," _ ",1100,"Executive and council",1110,"Mayor and Council","_"," _"," _","O","IE"," _ "," _ "," _ "," _ "," _ "," _ "," _ "," _ "," _ "," _ "," _ "," _ "," _ "," _ "," _ "," _ "," _ "," _ "," _ "," _ ","",null,null," _ "," _ "," _ "," _ "," _ "," _ "," _ "," _ "," _ "," _ "," _ "," _ ","_"," _ "," _ "," _ "," _ ","_"," _ "," _ "," _ "," _ ",null,2,21,"Executive and council","Mayor and Council",null,null,"_","_","_",null,"_",15000,0,0,10000,25000,15675,16380,0,5999.9999999999982,0,6000,0,0,0,0,0,0,0,0]
["O0001/IE00579/F13636/X024/R0072/001/LIB",625,"O0001/IE00579/F13636/X024/R0072/001/LIB",31061,"Expenditure:Operational Cost:Municipal Services",2900,"Other expenditure","_","_",2904,"Other Expenditure",2100,"Community and social services",2114,"Libraries and Archives","_"," _"," _","O","IE"," _ "," _ "," _ "," _ "," _ "," _ "," _ "," _ "," _ "," _ "," _ "," _ "," _ "," _ "," _ "," _ "," _ "," _ "," _ "," _ ","",null,null," _ "," _ "," _ "," _ "," _ "," _ "," _ "," _ "," _ "," _ "," _ "," _ ","_"," _ "," _ "," _ "," _ ","_"," _ "," _ "," _ "," _ ",null,3,33,"Community and social services","Libraries and Archives",null,null,"_","_","_",null,"_",0,0,0,0,0,0,0,0,5762.37,5395.34,5580.9,4893.2099999999991,0,5407.53,8495.2400000000016,0,0,0,0]
["O1244-1/IE00675/F0041/X006/R2863/001/COMM",864,"O1244-1/IE00675/F0041/X006/R2863/001/COMM",31300,"Expenditure:Contracted Services:Outsourced Services:Burial Services",2700,"Contracted services","2700-001","Outsourced Services",2701,"Outsourced Services",2100,"Community and social services",2106,"Community Halls and Facilities","_"," _"," _","O","IE"," _ "," _ "," _ "," _ "," _ "," _ "," _ "," _ "," _ "," _ "," _ "," _ "," _ "," _ "," _ "," _ "," _ "," _ "," _ "," _ ","",null,null," _ "," _ "," _ "," _ "," _ "," _ "," _ "," _ "," _ "," _ "," _ "," _ ","_"," _ "," _ "," _ "," _ ","_"," _ "," _ "," _ "," _ ",null,3,32,"Community and social services","Community Halls and Facilities",null,null,"_","_","_",null,"_",0,0,0,0,0,0,0,0,0,0,0,0,0,0,0,0,0,0,0]
["O1244-1/IE01321/F0041/X006/R2867/001/COMM",922,"O1244-1/IE01321/F0041/X006/R2867/001/COMM",31358,"Expenditure:Transfers and Subsidies:Operational:Allocations In-kind:Households:Social Assistance:Social Relief",2800,"Transfers and subsidies",28000105,"Cash Transfers to Groups of Individuals  "," _ "," _ ",2100,"Community and social services",2106,"Community Halls and Facilities","_"," _"," _","O","IE"," _ "," _ "," _ "," _ "," _ "," _ "," _ "," _ "," _ "," _ "," _ "," _ "," _ "," _ "," _ "," _ "," _ "," _ "," _ "," _ ","",null,null," _ "," _ "," _ "," _ "," _ "," _ "," _ "," _ "," _ "," _ "," _ "," _ ","_"," _ "," _ "," _ "," _ ","_"," _ "," _ "," _ "," _ ",null,3,32,"Community and social services","Community Halls and Facilities",null,null,"_","_","_",null,"_",330000,0,0,50000,380000,0,0,0,0,0,0,17500,33500,13500,0,0,0,0,0]
["O1264-1/IE00772/F0044/X112/R0073/001/COMM",5127,"O1264-1/IE00772/F0044/X112/R0073/001/COMM",31964,"Expenditure:Operational Cost:Communication:Radio and TV Transmissions",2900,"Other expenditure","_","_",2904,"Other Expenditure",2300,"Public safety",2305,"Fire Fighting and Protection","_"," _"," _","O","IE"," _ "," _ "," _ "," _ "," _ "," _ "," _ "," _ "," _ "," _ "," _ "," _ "," _ "," _ "," _ "," _ "," _ "," _ "," _ "," _ ","",null,null," _ "," _ "," _ "," _ "," _ "," _ "," _ "," _ "," _ "," _ "," _ "," _ ","_"," _ "," _ "," _ "," _ ","_"," _ "," _ "," _ "," _ ",null,null,0," _ ","Fire Fighting and Protection",null,null,"_","_","_",null,"_",0,0,0,0,0,0,0,0,0,0,0,0,0,0,0,0,0,0,0]
["O0001/IE01523/F0041/X006/R0072/001/COMM",134,"O0001/IE01523/F0041/X006/R0072/001/COMM",30338,"Expenditure:Employee Related Cost:Municipal Staff:Salaries, Wages and Allowances:Allowances:Housing Benefits and Incidental:Rental Subsidy",2000,"Employee related costs","2000-008","Housing Allowances",2008,"Housing Allowances",2100,"Community and social services",2106,"Community Halls and Facilities","_"," _"," _","O","IE"," _ "," _ "," _ "," _ "," _ "," _ "," _ "," _ "," _ "," _ "," _ "," _ "," _ "," _ "," _ "," _ "," _ "," _ "," _ "," _ ","",null,null," _ "," _ "," _ "," _ "," _ "," _ "," _ "," _ "," _ "," _ "," _ "," _ ","_"," _ "," _ "," _ "," _ ","_"," _ "," _ "," _ "," _ ","MS",3,32,"Community and social services","Community Halls and Facilities",null,null,"_","_","_",null,"_",0,0,0,0,0,0,0,0,0,0,0,0,0,0,0,0,0,0,0]
["O0001/IE00698/F0041/X051/R0072/001/CORP",776,"O0001/IE00698/F0041/X051/R0072/001/CORP",31212,"Expenditure:Contracted Services:Outsourced Services:Security Services",2700,"Contracted services","2700-001","Outsourced Services",2701,"Outsourced Services",1200,"Finance and administration",1206,"Human Resources","_"," _"," _","O","IE"," _ "," _ "," _ "," _ "," _ "," _ "," _ "," _ "," _ "," _ "," _ "," _ "," _ "," _ "," _ "," _ "," _ "," _ "," _ "," _ ","",null,null," _ "," _ "," _ "," _ "," _ "," _ "," _ "," _ "," _ "," _ "," _ "," _ ","_"," _ "," _ "," _ "," _ ","_"," _ "," _ "," _ "," _ ",null,1,16,"Finance and Admin","Human Resources",null,null,"_","_","_",null,"_",0,0,0,0,0,0,0,0,0,0,0,0,0,0,0,0,0,0,0]
["O0001/IE00701/F0044/X119/R0073/001/TRAF",4751,"O0001/IE00701/F0044/X119/R0073/001/TRAF",52704,"Expenditure:Contracted Services:Outsourced Services:Traffic Fines Management",2700,"Contracted services","2700-001","Outsourced Services",2701,"Outsourced Services",3200,"Road transport",3204,"Road and Traffic Regulation","_"," _"," _","O","IE"," _ "," _ "," _ "," _ "," _ "," _ "," _ "," _ "," _ "," _ "," _ "," _ "," _ "," _ "," _ "," _ "," _ "," _ "," _ "," _ ","",null,null," _ "," _ "," _ "," _ "," _ "," _ "," _ "," _ "," _ "," _ "," _ "," _ ","_"," _ "," _ "," _ "," _ ","_"," _ "," _ "," _ "," _ ",null,null,0," _ ","Road and Traffic Regulation",null,null,"_","_","_",null,"_",0,0,0,0,0,0,0,0,0,0,0,0,0,0,0,0,0,0,0]
["D0001/IA01359/F0001/X050/R0073/001/FIN",18185,"D0001/IA01359/F0001/X050/R0073/001/FIN",85083,"Assets:Non-current Assets:Property, Plant and Equipment:Cost Model:Transport Assets:Owned and In-use:Accumulated Depreciation:Opening Balance"," _"," _"," _ "," _ "," _ "," _ ",1200,"Finance and administration",1205,"Fleet Management","_"," _"," _","D","IA",240," Property, plant and equipment",240,"Property, plant and equipment"," _ "," _ "," _ "," _ "," _ "," _ "," _ "," _ ",1530,"Transport Assets",1530,"Transport Assets",243,"Less: Accumulated depreciation",243,"Less: Accumulated depreciation","",null,null," _ "," _ "," _ "," _ "," _ "," _ "," _ "," _ "," _ "," _ "," _ "," _ ","_"," _ "," _ "," _ "," _ ","_"," _ "," _ "," _ "," _ ",null,1,13,"Finance and Admin","Fleet Management",null,null,"_","_","_",null,"_",0,0,0,0,0,0,0,-418033.51,0,0,0,0,0,0,0,0,0,0,0]
["O0001/IE00738/F0041/X052/R0072/001/CORP",782,"O0001/IE00738/F0041/X052/R0072/001/CORP",31218,"Expenditure:Inventory Consumed:Consumables:Standard Rated",2600,"Other materials",2600,"Other materials"," _ "," _ ",1200,"Finance and administration",1207,"Information Technology","_"," _"," _","O","IE"," _ "," _ "," _ "," _ "," _ "," _ "," _ "," _ "," _ "," _ "," _ "," _ "," _ "," _ "," _ "," _ "," _ "," _ "," _ "," _ ","",null,null," _ "," _ "," _ "," _ "," _ "," _ "," _ "," _ "," _ "," _ "," _ "," _ ","_"," _ "," _ "," _ "," _ ","_"," _ "," _ "," _ "," _ ",null,1,15,"Finance and Admin","Information Technology",null,null,"_","_","_",null,"_",0,0,0,0,0,0,0,0,0,0,0,0,0,0,123064.98,0,0,0,0]
["O0001/IE00044/F0041/X058/R0072/001/FIN",225,"O0001/IE00044/F0041/X058/R0072/001/FIN",30514,"Expenditure:Employee Related Cost:Municipal Staff:Social Contributions:Pension",2000,"Employee related costs","2000-002","Pension and UIF Contributions",2002,"Pension and UIF Contributions",1200,"Finance and administration",1213,"Supply Chain Management ","_"," _"," _","O","IE"," _ "," _ "," _ "," _ "," _ "," _ "," _ "," _ "," _ "," _ "," _ "," _ "," _ "," _ "," _ "," _ "," _ "," _ "," _ "," _ ","",null,null," _ "," _ "," _ "," _ "," _ "," _ "," _ "," _ "," _ "," _ "," _ "," _ ","_"," _ "," _ "," _ "," _ ","_"," _ "," _ "," _ "," _ ","MS",1,11,"Finance and Admin","Supply Chain Management",null,null,"_","_","_",null,"_",0,0,0,0,0,0,0,0,0,0,0,0,0,0,0,0,0,0,0]
["D0001/IA01366/F0001/X049/R0072/001/FIN",17496,"D0001/IA01366/F0001/X049/R0072/001/FIN",84393,"Assets:Non-current Assets:Property, Plant and Equipment:Cost Model:Transport Assets:Owned and In-use:Accumulated Impairment:Opening Balance"," _"," _"," _ "," _ "," _ "," _ ",1200,"Finance and administration",1204,"Finance","_"," _"," _","D","IA","_","_","_","_"," _ "," _ "," _ "," _ "," _ "," _ "," _ "," _ ",1530,"Transport Assets",1530,"Transport Assets",241,"PPE at cost/valuation (excl. finance leases)",241,"PPE at cost/valuation (excl. finance leases)","",null,null," _ "," _ "," _ "," _ "," _ "," _ "," _ "," _ "," _ "," _ "," _ "," _ ","_"," _ "," _ "," _ "," _ ","_"," _ "," _ "," _ "," _ ",null,1,12,"Finance and Admin","Finance",null,null,"_","_","_",null,"_",0,0,0,0,0,0,0,0,0,0,0,0,0,0,0,0,0,0,0]
["D0001/IA02107/F0001/X049/R0072/001/FIN",17132,"D0001/IA02107/F0001/X049/R0072/001/FIN",84029,"Assets:Current Assets:Cash and Cash Equivalents:Cash at Bank:Bank Account:Specify (replace with account description):Opening Balance"," _"," _"," _ "," _ "," _ "," _ ",1200,"Finance and administration",1204,"Finance","_"," _"," _","D","IA",120,"Cash",120,"Cash"," _ "," _ "," _ "," _ ",420,"Cash/cash equivalents at the month/year begin:",560,"Cash/cash equivalents at the month/year begin:"," _ "," _ "," _ "," _ "," _ "," _ "," _ "," _ ","",null,null," _ "," _ "," _ "," _ "," _ "," _ "," _ "," _ "," _ "," _ "," _ "," _ ","_"," _ "," _ "," _ "," _ ","_"," _ "," _ "," _ "," _ ",null,1,12,"Finance and Admin","Finance",null,null,"_","_","_",null,"_",0,0,0,0,0,0,0,0,0,0,0,0,0,0,0,0,0,0,0]
["O0011-1/IE01320/F0041/X006/R2855/001/COMM",2635,"O0011-1/IE01320/F0041/X006/R2855/001/COMM",52347,"Expenditure:Transfers and Subsidies:Operational:Allocations In-kind:Households:Social Assistance:Poverty Relief",2800,"Transfers and subsidies",28000105,"Cash Transfers to Groups of Individuals  "," _ "," _ ",2100,"Community and social services",2106,"Community Halls and Facilities","_"," _"," _","O","IE"," _ "," _ "," _ "," _ "," _ "," _ "," _ "," _ "," _ "," _ "," _ "," _ "," _ "," _ "," _ "," _ "," _ "," _ "," _ "," _ ","",null,null," _ "," _ "," _ "," _ "," _ "," _ "," _ "," _ "," _ "," _ "," _ "," _ ","_"," _ "," _ "," _ "," _ ","_"," _ "," _ "," _ "," _ ",null,3,32,"Community and social services","Community Halls and Facilities",null,null,"_","_","_",null,"_",0,0,0,0,0,0,0,0,0,0,0,0,0,0,0,0,0,0,0]
["O0001/IE00063/F0041/X051/R0072/001/CORP",688,"O0001/IE00063/F0041/X051/R0072/001/CORP",31124,"Expenditure:Operational Cost:Travel and Subsistence:Domestic:Incidental Cost",2900,"Other expenditure","_","_",2904,"Other Expenditure",1200,"Finance and administration",1206,"Human Resources","_"," _"," _","O","IE"," _ "," _ "," _ "," _ "," _ "," _ "," _ "," _ "," _ "," _ "," _ "," _ "," _ "," _ "," _ "," _ "," _ "," _ "," _ "," _ ","",null,null," _ "," _ "," _ "," _ "," _ "," _ "," _ "," _ "," _ "," _ "," _ "," _ ","_"," _ "," _ "," _ "," _ ","_"," _ "," _ "," _ "," _ ",null,1,16,"Finance and Admin","Human Resources",null,null,"_","_","_",null,"_",0,0,0,0,0,0,0,0,0,0,0,0,0,0,0,0,0,0,0]
["O0001/IE00802/F0041/X046/R0072/001/CORP",671,"O0001/IE00802/F0041/X046/R0072/001/CORP",31107,"Expenditure:Operational Cost:Insurance Underwriting:Insurance Aggregation",2900,"Other expenditure","_","_",2904,"Other Expenditure",1200,"Finance and administration",1201,"Administrative and Corporate Support","_"," _"," _","O","IE"," _ "," _ "," _ "," _ "," _ "," _ "," _ "," _ "," _ "," _ "," _ "," _ "," _ "," _ "," _ "," _ "," _ "," _ "," _ "," _ ","",null,null," _ "," _ "," _ "," _ "," _ "," _ "," _ "," _ "," _ "," _ "," _ "," _ ","_"," _ "," _ "," _ "," _ ","_"," _ "," _ "," _ "," _ ",null,1,17,"Finance and Admin","Administrative and Corporate Support",null,null,"_","_","_",null,"_",0,0,0,0,0,0,0,0,0,0,0,0,0,0,0,0,0,0,0]
["O0001/IE00805/F0041/X055/R0072/001/CORP",709,"O0001/IE00805/F0041/X055/R0072/001/CORP",31145,"Expenditure:Operational Cost:Insurance Underwriting:Premiums",2900,"Other expenditure","_","_",2904,"Other Expenditure",1200,"Finance and administration",1210,"Property Services","_"," _"," _","O","IE"," _ "," _ "," _ "," _ "," _ "," _ "," _ "," _ "," _ "," _ "," _ "," _ "," _ "," _ "," _ "," _ "," _ "," _ "," _ "," _ ","",null,null," _ "," _ "," _ "," _ "," _ "," _ "," _ "," _ "," _ "," _ "," _ "," _ ","_"," _ "," _ "," _ "," _ ","_"," _ "," _ "," _ "," _ ",null,1,19,"Finance and Admin","Property Services",null,null,"_","_","_",null,"_",0,0,0,0,0,0,0,0,0,0,0,0,0,0,0,0,0,0,0]
["O0001/IE00559/F0041/X051/R0072/001/CORP",736,"O0001/IE00559/F0041/X051/R0072/001/CORP",31172,"Expenditure:Operational Cost:Courier and Delivery Services",2900,"Other expenditure","_","_",2904,"Other Expenditure",1200,"Finance and administration",1206,"Human Resources","_"," _"," _","O","IE"," _ "," _ "," _ "," _ "," _ "," _ "," _ "," _ "," _ "," _ "," _ "," _ "," _ "," _ "," _ "," _ "," _ "," _ "," _ "," _ ","",null,null," _ "," _ "," _ "," _ "," _ "," _ "," _ "," _ "," _ "," _ "," _ "," _ ","_"," _ "," _ "," _ "," _ ","_"," _ "," _ "," _ "," _ ",null,1,16,"Finance and Admin","Human Resources",null,null,"_","_","_",null,"_",0,0,0,0,0,0,0,0,0,0,0,0,0,0,0,0,0,0,0]
["O1285-1/IE00036/F1177/X049/R0072/001/FIN",1404,"O1285-1/IE00036/F1177/X049/R0072/001/FIN",32124,"Expenditure:Employee Related Cost:Municipal Staff:Salaries, Wages and Allowances:Basic Salary and Wages",2000,"Employee related costs","2000-001","Basic Salaries and Wages",2001,"Basic Salaries and Wages",1200,"Finance and administration",1204,"Finance","_"," _"," _","O","IE"," _ "," _ "," _ "," _ "," _ "," _ "," _ "," _ "," _ "," _ "," _ "," _ "," _ "," _ "," _ "," _ "," _ "," _ "," _ "," _ ","",null,null," _ "," _ "," _ "," _ "," _ "," _ "," _ "," _ "," _ "," _ "," _ "," _ ","_"," _ "," _ "," _ "," _ ","_"," _ "," _ "," _ "," _ ","MS",1,12,"Finance and Admin","Finance",null,null,"_","_","_",null,"_",0,0,0,0,0,0,0,0,0,0,0,0,0,0,0,0,0,0,0]
["O0001/IE00571/F0044/X098/R0072/001/LED",15744,"O0001/IE00571/F0044/X098/R0072/001/LED",63656,"Expenditure:Operational Cost:Hire Charges",2900,"Other expenditure","_","_",2904,"Other Expenditure",3100,"Planning and development",3105,"Economic Development/Planning","_"," _"," _","O","IE"," _ "," _ "," _ "," _ "," _ "," _ "," _ "," _ "," _ "," _ "," _ "," _ "," _ "," _ "," _ "," _ "," _ "," _ "," _ "," _ ","",null,null," _ "," _ "," _ "," _ "," _ "," _ "," _ "," _ "," _ "," _ "," _ "," _ ","_"," _ "," _ "," _ "," _ ","_"," _ "," _ "," _ "," _ ",null,7,74,"Planning and Development","Economic Development/Planning",null,null,"_","_","_",null,"_",10000,0,0,5860,15860,62700,65522,0,0,15860.01,0,0,0,0,0,0,0,0,0]
["O0011-1/IE01320/F0041/X006/R2867/001/COMM",2647,"O0011-1/IE01320/F0041/X006/R2867/001/COMM",52359,"Expenditure:Transfers and Subsidies:Operational:Allocations In-kind:Households:Social Assistance:Poverty Relief",2800,"Transfers and subsidies",28000105,"Cash Transfers to Groups of Individuals  "," _ "," _ ",2100,"Community and social services",2106,"Community Halls and Facilities","_"," _"," _","O","IE"," _ "," _ "," _ "," _ "," _ "," _ "," _ "," _ "," _ "," _ "," _ "," _ "," _ "," _ "," _ "," _ "," _ "," _ "," _ "," _ ","",null,null," _ "," _ "," _ "," _ "," _ "," _ "," _ "," _ "," _ "," _ "," _ "," _ ","_"," _ "," _ "," _ "," _ ","_"," _ "," _ "," _ "," _ ",null,3,32,"Community and social services","Community Halls and Facilities",null,null,"_","_","_",null,"_",0,0,0,0,0,0,0,0,0,0,0,0,0,0,0,0,0,0,0]
["O0001/IE01533/F0041/X112/R0072/001/COMM",5020,"O0001/IE01533/F0041/X112/R0072/001/COMM",30316,"Expenditure:Employee Related Cost:Municipal Staff:Salaries, Wages and Allowances:Allowances:Service Related Benefits:Long Service Award",2000,"Employee related costs","2000-011","Long service awards",2011,"Long service awards",2300,"Public safety",2305,"Fire Fighting and Protection","_"," _"," _","O","IE"," _ "," _ "," _ "," _ "," _ "," _ "," _ "," _ "," _ "," _ "," _ "," _ "," _ "," _ "," _ "," _ "," _ "," _ "," _ "," _ ","",null,null," _ "," _ "," _ "," _ "," _ "," _ "," _ "," _ "," _ "," _ "," _ "," _ ","_"," _ "," _ "," _ "," _ ","_"," _ "," _ "," _ "," _ ","MS",null,0," _ ","Fire Fighting and Protection",null,null,"_","_","_",null,"_",0,0,0,0,0,0,0,0,0,0,0,0,0,0,0,0,0,0,0]
["O0001/IE06107/F0041/X099/R0072/001/TECH",316,"O0001/IE06107/F0041/X099/R0072/001/TECH",30749,"Expenditure:Employee Related Cost:Senior Management:Designation:Salaries and Allowances:Bonuses",2000,"Employee related costs","2000-005","Performance Bonus",2005,"Performance Bonus",3100,"Planning and development",3108,"Project Management Unit","_"," _"," _","O","IE"," _ "," _ "," _ "," _ "," _ "," _ "," _ "," _ "," _ "," _ "," _ "," _ "," _ "," _ "," _ "," _ "," _ "," _ "," _ "," _ ","",null,null," _ "," _ "," _ "," _ "," _ "," _ "," _ "," _ "," _ "," _ "," _ "," _ ","_"," _ "," _ "," _ "," _ ","_"," _ "," _ "," _ "," _ ","SM",7,73,"Planning and Development","Project Management Unit",null,null,"_","_","_",null,"_",0,0,0,0,0,0,0,0,0,0,0,0,0,0,0,0,0,0,0]
["O0001/IE06112/F0041/X006/R0072/001/COMM",187,"O0001/IE06112/F0041/X006/R0072/001/COMM",30463,"Expenditure:Employee Related Cost:Senior Management:Designation:Salaries and Allowances:Bonuses",2000,"Employee related costs","2000-005","Performance Bonus",2005,"Performance Bonus",2100,"Community and social services",2106,"Community Halls and Facilities","_"," _"," _","O","IE"," _ "," _ "," _ "," _ "," _ "," _ "," _ "," _ "," _ "," _ "," _ "," _ "," _ "," _ "," _ "," _ "," _ "," _ "," _ "," _ ","",null,null," _ "," _ "," _ "," _ "," _ "," _ "," _ "," _ "," _ "," _ "," _ "," _ ","_"," _ "," _ "," _ "," _ ","_"," _ "," _ "," _ "," _ ","SM",3,32,"Community and social services","Community Halls and Facilities",null,null,"_","_","_",null,"_",99561,0,0,-1,99560,100667,105197,0,0,0,0,0,0,0,0,0,0,0,0]
["O1306-3/IE00667/F0041/X006/R0072/001/COMM",15720,"O1306-3/IE00667/F0041/X006/R0072/001/COMM",63634,"Expenditure:Contracted Services:Contractors:Stage and Sound Crew",2700,"Contracted services","2700-003","Contractors",2703,"Contractors",2100,"Community and social services",2106,"Community Halls and Facilities","_"," _"," _","O","IE"," _ "," _ "," _ "," _ "," _ "," _ "," _ "," _ "," _ "," _ "," _ "," _ "," _ "," _ "," _ "," _ "," _ "," _ "," _ "," _ ","",null,null," _ "," _ "," _ "," _ "," _ "," _ "," _ "," _ "," _ "," _ "," _ "," _ ","_"," _ "," _ "," _ "," _ ","_"," _ "," _ "," _ "," _ ",null,3,32,"Community and social services","Community Halls and Facilities",null,null,"_","_","_",null,"_",0,0,0,15000,15000,31350,32761,0,0,0,0,0,0,0,0,0,0,0,0]
["O1356-1/IE00583/F0041/X098/R2854/001/TECH",1384,"O1356-1/IE00583/F0041/X098/R2854/001/TECH",32104,"Expenditure:Operational Cost:Printing, Publications and Books",2900,"Other expenditure","_","_",2904,"Other Expenditure",3100,"Planning and development",3105,"Economic Development/Planning","_"," _"," _","O","IE"," _ "," _ "," _ "," _ "," _ "," _ "," _ "," _ "," _ "," _ "," _ "," _ "," _ "," _ "," _ "," _ "," _ "," _ "," _ "," _ ","",null,null," _ "," _ "," _ "," _ "," _ "," _ "," _ "," _ "," _ "," _ "," _ "," _ ","_"," _ "," _ "," _ "," _ ","_"," _ "," _ "," _ "," _ ",null,7,74,"Planning and Development","Economic Development/Planning",null,null,"_","_","_",null,"_",0,0,0,0,0,0,0,0,0,0,0,0,0,0,0,0,0,0,0]
["O1359-1/IE00586/F0041/X044/R2866/001/COMM",643,"O1359-1/IE00586/F0041/X044/R2866/001/COMM",31079,"Expenditure:Operational Cost:Remuneration to Ward Committees",2900,"Other expenditure","_","_",2904,"Other Expenditure",1100,"Executive and council",1110,"Mayor and Council","_"," _"," _","O","IE"," _ "," _ "," _ "," _ "," _ "," _ "," _ "," _ "," _ "," _ "," _ "," _ "," _ "," _ "," _ "," _ "," _ "," _ "," _ "," _ ","",null,null," _ "," _ "," _ "," _ "," _ "," _ "," _ "," _ "," _ "," _ "," _ "," _ ","_"," _ "," _ "," _ "," _ ","_"," _ "," _ "," _ "," _ ",null,2,21,"Executive and council","Mayor and Council",null,null,"_","_","_",null,"_",144000,0,0,-48000,96000,104500,109203,10800,12000,0,24000,0,0,0,0,0,0,0,0]
["O1232-1/IE00848/F0041/X047/R0073/001/FIN",990,"O1232-1/IE00848/F0041/X047/R0073/001/FIN",31588,"Expenditure:Contracted Services:Consultants and Professional Services:Business and Advisory:Valuer and Assessors",2700,"Contracted services","2700-002","Consultants and Professional Services",2702,"Consultants and Professional Services",1200,"Finance and administration",1202,"Asset Management","_"," _"," _","O","IE"," _ "," _ "," _ "," _ "," _ "," _ "," _ "," _ "," _ "," _ "," _ "," _ "," _ "," _ "," _ "," _ "," _ "," _ "," _ "," _ ","",null,null," _ "," _ "," _ "," _ "," _ "," _ "," _ "," _ "," _ "," _ "," _ "," _ ","_"," _ "," _ "," _ "," _ ","_"," _ "," _ "," _ "," _ ",null,1,110,"Finance and Admin","Asset Management",null,null,"_","_","_",null,"_",0,0,0,0,0,0,0,0,0,0,0,0,0,0,0,0,0,0,0]
["O0001/IE07230/F0041/X044/R2853/001/EXC",4825,"O0001/IE07230/F0041/X044/R2853/001/EXC",52916,"Expenditure:Remuneration of Councillors:Total for All Other Councillors:Allowances and Service Related Benefits:Basic Salary",2100,"Remuneration of councillors",210001,"Basic Salaries and Wages"," _ "," _ ",1100,"Executive and council",1110,"Mayor and Council","_"," _"," _","O","IE"," _ "," _ "," _ "," _ "," _ "," _ "," _ "," _ "," _ "," _ "," _ "," _ "," _ "," _ "," _ "," _ "," _ "," _ "," _ "," _ ","",null,null," _ "," _ "," _ "," _ "," _ "," _ "," _ "," _ "," _ "," _ "," _ "," _ ","_"," _ "," _ "," _ "," _ ","_"," _ "," _ "," _ "," _ ",null,2,21,"Executive and council","Mayor and Council",null,null,"_","_","_",null,"_",0,0,0,0,0,0,0,0,0,0,0,0,0,0,0,0,0,0,0]
["O0021-1/IE00059/F0041/X006/R0073/001/COMM",4763,"O0021-1/IE00059/F0041/X006/R0073/001/COMM",52723,"Expenditure:Operational Cost:Registration Fees:Seminars, Conferences, Workshops and Events:National",2900,"Other expenditure","_","_",2904,"Other Expenditure",2100,"Community and social services",2106,"Community Halls and Facilities","_"," _"," _","O","IE"," _ "," _ "," _ "," _ "," _ "," _ "," _ "," _ "," _ "," _ "," _ "," _ "," _ "," _ "," _ "," _ "," _ "," _ "," _ "," _ ","",null,null," _ "," _ "," _ "," _ "," _ "," _ "," _ "," _ "," _ "," _ "," _ "," _ ","_"," _ "," _ "," _ "," _ ","_"," _ "," _ "," _ "," _ ",null,3,32,"Community and social services","Community Halls and Facilities",null,null,"_","_","_",null,"_",0,0,0,0,0,0,0,0,0,0,0,0,0,0,0,0,0,0,0]
["O1368-3/IE00634/F0786/X060/R0073/001/Tech",2851,"O1368-3/IE00634/F0786/X060/R0073/001/Tech",52566,"Expenditure:Contracted Services:Contractors:Electrical",2700,"Contracted services","2700-003","Contractors",2703,"Contractors",1200,"Finance and administration",1202,"Asset Management","_",2010,"National Government","O","IE"," _ "," _ "," _ "," _ "," _ "," _ "," _ "," _ "," _ "," _ "," _ "," _ "," _ "," _ "," _ "," _ "," _ "," _ "," _ "," _ ","",null,null," _ "," _ "," _ "," _ "," _ "," _ "," _ "," _ "," _ "," _ "," _ "," _ ","_"," _ "," _ "," _ "," _ ","_"," _ "," _ "," _ "," _ ",null,1,110,"Finance and Admin","Asset Management",null,null,"_","_","_",null,"_",0,0,0,0,0,0,0,0,0,0,0,0,0,0,0,0,0,0,0]
["O1232-12/IE00017/F0041/X045/R0072/001/MM",6380,"O1232-12/IE00017/F0041/X045/R0072/001/MM",63382,"Expenditure:Contracted Services:Outsourced Services:Business and Advisory:Commissions and Committees",2700,"Contracted services","2700-001","Outsourced Services",2701,"Outsourced Services",1100,"Executive and council",1120,"Municipal Manager, Town Secretary and Chief Executive","_"," _"," _","O","IE"," _ "," _ "," _ "," _ "," _ "," _ "," _ "," _ "," _ "," _ "," _ "," _ "," _ "," _ "," _ "," _ "," _ "," _ "," _ "," _ ","",null,null," _ "," _ "," _ "," _ "," _ "," _ "," _ "," _ "," _ "," _ "," _ "," _ ","_"," _ "," _ "," _ "," _ ","_"," _ "," _ "," _ "," _ ",null,2,22,"Executive and council","Municipal Manager, Town Secretary and Chief Executive",null,null,"_","_","_",null,"_",164000,0,0,0,164000,171380,179092,0,0,24000,44020,0,0,0,0,0,0,0,0]
["O0021-1/IE00583/F0041/X006/R0073/001/COMM",618,"O0021-1/IE00583/F0041/X006/R0073/001/COMM",31054,"Expenditure:Operational Cost:Printing, Publications and Books",2900,"Other expenditure","_","_",2904,"Other Expenditure",2100,"Community and social services",2106,"Community Halls and Facilities","_"," _"," _","O","IE"," _ "," _ "," _ "," _ "," _ "," _ "," _ "," _ "," _ "," _ "," _ "," _ "," _ "," _ "," _ "," _ "," _ "," _ "," _ "," _ ","",null,null," _ "," _ "," _ "," _ "," _ "," _ "," _ "," _ "," _ "," _ "," _ "," _ ","_"," _ "," _ "," _ "," _ ","_"," _ "," _ "," _ "," _ ",null,3,32,"Community and social services","Community Halls and Facilities",null,null,"_","_","_",null,"_",0,0,0,0,0,0,0,0,0,0,0,0,0,0,0,0,0,0,0]
["O1232-11/IE00144/F0041/X051/R0073/001/CORP",189,"O1232-11/IE00144/F0041/X051/R0073/001/CORP",30470,"Expenditure:Operational Cost:Travel and Subsistence:Domestic:Transport without Operator:Own Transport",2900,"Other expenditure","_","_",2904,"Other Expenditure",1200,"Finance and administration",1206,"Human Resources","_"," _"," _","O","IE"," _ "," _ "," _ "," _ "," _ "," _ "," _ "," _ "," _ "," _ "," _ "," _ "," _ "," _ "," _ "," _ "," _ "," _ "," _ "," _ ","",null,null," _ "," _ "," _ "," _ "," _ "," _ "," _ "," _ "," _ "," _ "," _ "," _ ","_"," _ "," _ "," _ "," _ ","_"," _ "," _ "," _ "," _ ",null,1,16,"Finance and Admin","Human Resources",null,null,"_","_","_",null,"_",60000,0,0,74276,134276,104500,109203,0,0,0,0,0,0,0,0,0,0,0,0]
["O1390-2/IE00758/F0041/X116/R2865/001/TECH",443,"O1390-2/IE00758/F0041/X116/R2865/001/TECH",30876,"Expenditure:Operational Cost:Advertising, Publicity and Marketing:Tenders",2900,"Other expenditure","_","_",2904,"Other Expenditure",3200,"Road transport",3205,"Roads","_"," _"," _","O","IE"," _ "," _ "," _ "," _ "," _ "," _ "," _ "," _ "," _ "," _ "," _ "," _ "," _ "," _ "," _ "," _ "," _ "," _ "," _ "," _ ","",null,null," _ "," _ "," _ "," _ "," _ "," _ "," _ "," _ "," _ "," _ "," _ "," _ ","_"," _ "," _ "," _ "," _ ","_"," _ "," _ "," _ "," _ ",null,9,91,"Roads","Roads",null,null,"_","_","_",null,"_",0,0,0,0,0,0,0,0,0,0,0,0,0,0,0,0,0,0,0]
["O1234-1/IE00571/F0041/X133/R0073/001/COMM",1107,"O1234-1/IE00571/F0041/X133/R0073/001/COMM",31740,"Expenditure:Operational Cost:Hire Charges",2900,"Other expenditure","_","_",2904,"Other Expenditure",4400,"Waste management",4404,"Street Cleaning","_"," _"," _","O","IE"," _ "," _ "," _ "," _ "," _ "," _ "," _ "," _ "," _ "," _ "," _ "," _ "," _ "," _ "," _ "," _ "," _ "," _ "," _ "," _ ","",null,null," _ "," _ "," _ "," _ "," _ "," _ "," _ "," _ "," _ "," _ "," _ "," _ ","_"," _ "," _ "," _ "," _ ","_"," _ "," _ "," _ "," _ ",null,5,52,"Waste Management","Street Cleaning",null,null,"_","_","_",null,"_",0,0,0,0,0,0,0,0,0,0,0,0,0,0,0,0,0,0,0]
["O0001/IE01533/F0041/X058/R0072/001/FIN",241,"O0001/IE01533/F0041/X058/R0072/001/FIN",30530,"Expenditure:Employee Related Cost:Municipal Staff:Salaries, Wages and Allowances:Allowances:Service Related Benefits:Long Service Award",2000,"Employee related costs","2000-011","Long service awards",2011,"Long service awards",1200,"Finance and administration",1213,"Supply Chain Management ","_"," _"," _","O","IE"," _ "," _ "," _ "," _ "," _ "," _ "," _ "," _ "," _ "," _ "," _ "," _ "," _ "," _ "," _ "," _ "," _ "," _ "," _ "," _ ","",null,null," _ "," _ "," _ "," _ "," _ "," _ "," _ "," _ "," _ "," _ "," _ "," _ ","_"," _ "," _ "," _ "," _ ","_"," _ "," _ "," _ "," _ ","MS",1,11,"Finance and Admin","Supply Chain Management",null,null,"_","_","_",null,"_",0,0,0,0,0,0,0,0,0,0,0,0,0,0,0,0,0,0,0]
["O1232-8/IE00603/F0044/X119/R0073/001/TRAF",4759,"O1232-8/IE00603/F0044/X119/R0073/001/TRAF",52719,"Expenditure:Operational Cost:Travel Agency and Visa's",2900,"Other expenditure","_","_",2904,"Other Expenditure",3200,"Road transport",3204,"Road and Traffic Regulation","_"," _"," _","O","IE"," _ "," _ "," _ "," _ "," _ "," _ "," _ "," _ "," _ "," _ "," _ "," _ "," _ "," _ "," _ "," _ "," _ "," _ "," _ "," _ ","",null,null," _ "," _ "," _ "," _ "," _ "," _ "," _ "," _ "," _ "," _ "," _ "," _ ","_"," _ "," _ "," _ "," _ ","_"," _ "," _ "," _ "," _ ",null,null,0," _ ","Road and Traffic Regulation",null,null,"_","_","_",null,"_",0,0,0,0,0,0,0,0,0,0,0,0,0,0,0,0,0,0,0]
["O1236-1/IE00626/F2496/X049/R0072/001/FIN",15543,"O1236-1/IE00626/F2496/X049/R0072/001/FIN",63551,"Expenditure:Contracted Services:Contractors:Artists and Performers",2700,"Contracted services","2700-003","Contractors",2703,"Contractors",1200,"Finance and administration",1204,"Finance","_"," _"," _","O","IE"," _ "," _ "," _ "," _ "," _ "," _ "," _ "," _ "," _ "," _ "," _ "," _ "," _ "," _ "," _ "," _ "," _ "," _ "," _ "," _ ","",null,null," _ "," _ "," _ "," _ "," _ "," _ "," _ "," _ "," _ "," _ "," _ "," _ ","_"," _ "," _ "," _ "," _ ","_"," _ "," _ "," _ "," _ ",null,1,12,"Finance and Admin","Finance",null,null,"_","_","_",null,"_",0,0,0,0,0,0,0,0,0,0,0,0,0,0,0,0,0,0,0]
["O1236-1/IE00671/F2496/X049/R0072/001/FIN",15544,"O1236-1/IE00671/F2496/X049/R0072/001/FIN",63550,"Expenditure:Contracted Services:Contractors:Transportation",2700,"Contracted services","2700-003","Contractors",2703,"Contractors",1200,"Finance and administration",1204,"Finance","_"," _"," _","O","IE"," _ "," _ "," _ "," _ "," _ "," _ "," _ "," _ "," _ "," _ "," _ "," _ "," _ "," _ "," _ "," _ "," _ "," _ "," _ "," _ ","",null,null," _ "," _ "," _ "," _ "," _ "," _ "," _ "," _ "," _ "," _ "," _ "," _ ","_"," _ "," _ "," _ "," _ ","_"," _ "," _ "," _ "," _ ",null,1,12,"Finance and Admin","Finance",null,null,"_","_","_",null,"_",0,0,0,0,0,0,0,0,0,0,0,0,0,0,0,0,0,0,0]
["O0001/IE06074/F0041/X101/R0072/001/Tech",314,"O0001/IE06074/F0041/X101/R0072/001/Tech",30747,"Expenditure:Employee Related Cost:Senior Management:Designation:Salaries and Allowances:Basic Salary",2000,"Employee related costs","2000-001","Basic Salaries and Wages",2001,"Basic Salaries and Wages",3100,"Planning and development",3107,"Town Planning, Building Regulations and Enforcement, and City Engineer","_"," _"," _","O","IE"," _ "," _ "," _ "," _ "," _ "," _ "," _ "," _ "," _ "," _ "," _ "," _ "," _ "," _ "," _ "," _ "," _ "," _ "," _ "," _ ","",null,null," _ "," _ "," _ "," _ "," _ "," _ "," _ "," _ "," _ "," _ "," _ "," _ ","_"," _ "," _ "," _ "," _ ","_"," _ "," _ "," _ "," _ ","SM",7,72,"Planning and Development","Town Planning, Building Regulations and Enforcement, and City Engineer",null,null,"_","_","_",null,"_",916179,0,0,-606179,310000,930394,972262,0,0,0,0,0,0,0,0,0,0,0,0]
["O1243-2/IE00573/F0041/X016/R2865/001/COMM",2808,"O1243-2/IE00573/F0041/X016/R2865/001/COMM",52523,"Expenditure:Operational Cost:Indigent Relief",2900,"Other expenditure","_","_",2904,"Other Expenditure",2100,"Community and social services",2106,"Community Halls and Facilities","_"," _"," _","O","IE"," _ "," _ "," _ "," _ "," _ "," _ "," _ "," _ "," _ "," _ "," _ "," _ "," _ "," _ "," _ "," _ "," _ "," _ "," _ "," _ ","",null,null," _ "," _ "," _ "," _ "," _ "," _ "," _ "," _ "," _ "," _ "," _ "," _ ","_"," _ "," _ "," _ "," _ ","_"," _ "," _ "," _ "," _ ",null,3,32,"Community and social services","Community Halls and Facilities",null,null,"_","_","_",null,"_",0,0,0,0,0,0,0,0,0,0,0,0,0,0,0,0,0,0,0]
["O0001/IE07063/F0041/X099/R0072/001/TECH",295,"O0001/IE07063/F0041/X099/R0072/001/TECH",30728,"Expenditure:Employee Related Cost:Senior Management:Designation:Salaries and Allowances:Service Related Benefits:Leave Pay",2000,"Employee related costs","2000-010","Payments in lieu of leave",2010,"Payments in lieu of leave",3100,"Planning and development",3108,"Project Management Unit","_"," _"," _","O","IE"," _ "," _ "," _ "," _ "," _ "," _ "," _ "," _ "," _ "," _ "," _ "," _ "," _ "," _ "," _ "," _ "," _ "," _ "," _ "," _ ","",null,null," _ "," _ "," _ "," _ "," _ "," _ "," _ "," _ "," _ "," _ "," _ "," _ ","_"," _ "," _ "," _ "," _ ","_"," _ "," _ "," _ "," _ ","SM",7,73,"Planning and Development","Project Management Unit",null,null,"_","_","_",null,"_",0,0,0,0,0,75240,78626,0,0,0,0,0,0,0,0,0,0,0,0]
["O1244-1/IE00812/F0041/X006/R2861/001/COMM",826,"O1244-1/IE00812/F0041/X006/R2861/001/COMM",31262,"Expenditure:Operational Cost:Transport Provided as Part of Departmental Activities:Funerals",2900,"Other expenditure","_","_",2904,"Other Expenditure",2100,"Community and social services",2106,"Community Halls and Facilities","_"," _"," _","O","IE"," _ "," _ "," _ "," _ "," _ "," _ "," _ "," _ "," _ "," _ "," _ "," _ "," _ "," _ "," _ "," _ "," _ "," _ "," _ "," _ ","",null,null," _ "," _ "," _ "," _ "," _ "," _ "," _ "," _ "," _ "," _ "," _ "," _ ","_"," _ "," _ "," _ "," _ ","_"," _ "," _ "," _ "," _ ",null,3,32,"Community and social services","Community Halls and Facilities",null,null,"_","_","_",null,"_",0,0,0,0,0,0,0,0,0,0,0,0,0,0,0,0,0,0,0]
["O0021-3/IE00650/F0044/X019/R0072/001/TRAF",18029,"O0021-3/IE00650/F0044/X019/R0072/001/TRAF",84926,"Expenditure:Contracted Services:Contractors:Maintenance of Equipment",2700,"Contracted services","2700-003","Contractors",2703,"Contractors",2100,"Community and social services",2109,"Disaster Management","_"," _"," _","O","IE"," _ "," _ "," _ "," _ "," _ "," _ "," _ "," _ "," _ "," _ "," _ "," _ "," _ "," _ "," _ "," _ "," _ "," _ "," _ "," _ ","",null,null," _ "," _ "," _ "," _ "," _ "," _ "," _ "," _ "," _ "," _ "," _ "," _ ","RM"," _ "," _ "," _ "," _ ","_"," _ "," _ "," _ "," _ ",null,3,31,"Community and social services","Disaster Management",null,null,"_","_","_",null,"_",0,0,0,0,0,0,0,0,0,0,0,0,0,0,0,0,0,0,0]
["O1232-1/IE00060/F0041/X049/R0072/001/FIN",975,"O1232-1/IE00060/F0041/X049/R0072/001/FIN",31573,"Expenditure:Operational Cost:Travel and Subsistence:Domestic:Accommodation",2900,"Other expenditure","_","_",2904,"Other Expenditure",1200,"Finance and administration",1204,"Finance","_"," _"," _","O","IE"," _ "," _ "," _ "," _ "," _ "," _ "," _ "," _ "," _ "," _ "," _ "," _ "," _ "," _ "," _ "," _ "," _ "," _ "," _ "," _ ","",null,null," _ "," _ "," _ "," _ "," _ "," _ "," _ "," _ "," _ "," _ "," _ "," _ ","_"," _ "," _ "," _ "," _ ","_"," _ "," _ "," _ "," _ ",null,1,12,"Finance and Admin","Finance",null,null,"_","_","_",null,"_",0,0,0,0,0,0,0,0,0,0,0,0,0,0,0,0,0,0,0]
["O1244-1/IE01321/F0041/X006/R2854/001/COMM",909,"O1244-1/IE01321/F0041/X006/R2854/001/COMM",31345,"Expenditure:Transfers and Subsidies:Operational:Allocations In-kind:Households:Social Assistance:Social Relief",2800,"Transfers and subsidies",28000105,"Cash Transfers to Groups of Individuals  "," _ "," _ ",2100,"Community and social services",2106,"Community Halls and Facilities","_"," _"," _","O","IE"," _ "," _ "," _ "," _ "," _ "," _ "," _ "," _ "," _ "," _ "," _ "," _ "," _ "," _ "," _ "," _ "," _ "," _ "," _ "," _ ","",null,null," _ "," _ "," _ "," _ "," _ "," _ "," _ "," _ "," _ "," _ "," _ "," _ ","_"," _ "," _ "," _ "," _ ","_"," _ "," _ "," _ "," _ ",null,3,32,"Community and social services","Community Halls and Facilities",null,null,"_","_","_",null,"_",330000,0,0,50000,380000,0,0,0,176000,0,0,0,0,0,0,0,0,0,0]
["O1232-2/IE01581/F0041/X045/R0072/001/MM",1079,"O1232-2/IE01581/F0041/X045/R0072/001/MM",31712,"Expenditure:Operational Cost:Travel and Subsistence:Domestic:Transport with Operator:Public Transport:Air Transport",2900,"Other expenditure","_","_",2904,"Other Expenditure",1100,"Executive and council",1120,"Municipal Manager, Town Secretary and Chief Executive","_"," _"," _","O","IE"," _ "," _ "," _ "," _ "," _ "," _ "," _ "," _ "," _ "," _ "," _ "," _ "," _ "," _ "," _ "," _ "," _ "," _ "," _ "," _ ","",null,null," _ "," _ "," _ "," _ "," _ "," _ "," _ "," _ "," _ "," _ "," _ "," _ ","_"," _ "," _ "," _ "," _ ","_"," _ "," _ "," _ "," _ ",null,2,22,"Executive and council","Municipal Manager, Town Secretary and Chief Executive",null,null,"_","_","_",null,"_",0,0,0,0,0,0,0,0,0,0,0,0,0,0,0,0,0,0,0]
["O1232-3/IE01583/F0041/X058/R0072/001/FIN",557,"O1232-3/IE01583/F0041/X058/R0072/001/FIN",30993,"Expenditure:Operational Cost:Travel and Subsistence:Domestic:Transport with Operator:Public Transport:Road Transport",2900,"Other expenditure","_","_",2904,"Other Expenditure",1200,"Finance and administration",1213,"Supply Chain Management ","_"," _"," _","O","IE"," _ "," _ "," _ "," _ "," _ "," _ "," _ "," _ "," _ "," _ "," _ "," _ "," _ "," _ "," _ "," _ "," _ "," _ "," _ "," _ ","",null,null," _ "," _ "," _ "," _ "," _ "," _ "," _ "," _ "," _ "," _ "," _ "," _ ","_"," _ "," _ "," _ "," _ ","_"," _ "," _ "," _ "," _ ",null,1,11,"Finance and Admin","Supply Chain Management",null,null,"_","_","_",null,"_",0,0,0,0,0,0,0,0,0,0,0,0,0,0,0,0,0,0,0]
["O1246-1/IE01306/F0041/X008/R2858/001/COMM",931,"O1246-1/IE01306/F0041/X008/R2858/001/COMM",31367,"Expenditure:Transfers and Subsidies:Operational:Allocations In-kind:Households:Other Transfers (Cash):Bursaries (Non-Employee)",2800,"Transfers and subsidies",28000105,"Cash Transfers to Groups of Individuals  "," _ "," _ ",2100,"Community and social services",2115,"Literacy Programmes","_"," _"," _","O","IE"," _ "," _ "," _ "," _ "," _ "," _ "," _ "," _ "," _ "," _ "," _ "," _ "," _ "," _ "," _ "," _ "," _ "," _ "," _ "," _ ","",null,null," _ "," _ "," _ "," _ "," _ "," _ "," _ "," _ "," _ "," _ "," _ "," _ ","_"," _ "," _ "," _ "," _ ","_"," _ "," _ "," _ "," _ ",null,null,0," _ ","Literacy Programmes",null,null,"_","_","_",null,"_",50000,0,0,0,50000,0,0,0,0,0,0,0,0,0,0,0,0,0,0]
["O1232-8/IE00143/F0044/X119/R0073/001/TRAF",4760,"O1232-8/IE00143/F0044/X119/R0073/001/TRAF",52720,"Expenditure:Operational Cost:Travel and Subsistence:Domestic:Transport without Operator:Car Rental",2900,"Other expenditure","_","_",2904,"Other Expenditure",3200,"Road transport",3204,"Road and Traffic Regulation","_"," _"," _","O","IE"," _ "," _ "," _ "," _ "," _ "," _ "," _ "," _ "," _ "," _ "," _ "," _ "," _ "," _ "," _ "," _ "," _ "," _ "," _ "," _ ","",null,null," _ "," _ "," _ "," _ "," _ "," _ "," _ "," _ "," _ "," _ "," _ "," _ ","_"," _ "," _ "," _ "," _ ","_"," _ "," _ "," _ "," _ ",null,null,0," _ ","Road and Traffic Regulation",null,null,"_","_","_",null,"_",0,0,0,0,0,0,0,0,0,0,0,0,0,0,0,0,0,0,0]
["O1234-1/IE00738/F0041/X133/R0073/001/COMM",1110,"O1234-1/IE00738/F0041/X133/R0073/001/COMM",31743,"Expenditure:Inventory Consumed:Consumables:Standard Rated",2600,"Other materials",2600,"Other materials"," _ "," _ ",4400,"Waste management",4404,"Street Cleaning","_"," _"," _","O","IE"," _ "," _ "," _ "," _ "," _ "," _ "," _ "," _ "," _ "," _ "," _ "," _ "," _ "," _ "," _ "," _ "," _ "," _ "," _ "," _ ","",null,null," _ "," _ "," _ "," _ "," _ "," _ "," _ "," _ "," _ "," _ "," _ "," _ ","_"," _ "," _ "," _ "," _ ","_"," _ "," _ "," _ "," _ ",null,5,52,"Waste Management","Street Cleaning",null,null,"_","_","_",null,"_",0,0,0,0,0,0,0,0,0,0,0,0,0,0,0,0,0,0,0]
["O1306-1/IE00656/F0041/X018/R0073/001/COMM",1044,"O1306-1/IE00656/F0041/X018/R0073/001/COMM",31665,"Expenditure:Contracted Services:Contractors:Photographer",2700,"Contracted services","2700-003","Contractors",2703,"Contractors",2100,"Community and social services",2108,"Cultural Matters","_"," _"," _","O","IE"," _ "," _ "," _ "," _ "," _ "," _ "," _ "," _ "," _ "," _ "," _ "," _ "," _ "," _ "," _ "," _ "," _ "," _ "," _ "," _ ","",null,null," _ "," _ "," _ "," _ "," _ "," _ "," _ "," _ "," _ "," _ "," _ "," _ ","_"," _ "," _ "," _ "," _ ","_"," _ "," _ "," _ "," _ ",null,null,0," _ ","Cultural Matters",null,null,"_","_","_",null,"_",0,0,0,0,0,0,0,0,0,0,0,0,0,0,0,0,0,0,0]
["O1356-1/IE00583/F0041/X098/R2866/001/TECH",1389,"O1356-1/IE00583/F0041/X098/R2866/001/TECH",32109,"Expenditure:Operational Cost:Printing, Publications and Books",2900,"Other expenditure","_","_",2904,"Other Expenditure",3100,"Planning and development",3105,"Economic Development/Planning","_"," _"," _","O","IE"," _ "," _ "," _ "," _ "," _ "," _ "," _ "," _ "," _ "," _ "," _ "," _ "," _ "," _ "," _ "," _ "," _ "," _ "," _ "," _ ","",null,null," _ "," _ "," _ "," _ "," _ "," _ "," _ "," _ "," _ "," _ "," _ "," _ ","_"," _ "," _ "," _ "," _ ","_"," _ "," _ "," _ "," _ ",null,7,74,"Planning and Development","Economic Development/Planning",null,null,"_","_","_",null,"_",0,0,0,0,0,0,0,0,0,0,0,0,0,0,0,0,0,0,0]
["O3604/IR01038/F2496/X101/R0072/001/FIN",15478,"O3604/IR01038/F2496/X101/R0072/001/FIN",63511,"Revenue:Non-exchange Revenue:Property Rates:Communal Land:Business and Commercial",200,"Property rates",200,"Rates"," _ "," _ ",3100,"Planning and development",3107,"Town Planning, Building Regulations and Enforcement, and City Engineer","_"," _"," _","O","IR"," _ "," _ "," _ "," _ "," _ "," _ "," _ "," _ "," _ "," _ "," _ "," _ "," _ "," _ "," _ "," _ "," _ "," _ "," _ "," _ ","",null,null," _ "," _ "," _ "," _ "," _ "," _ "," _ "," _ "," _ "," _ "," _ "," _ ","_"," _ "," _ "," _ "," _ ","_"," _ "," _ "," _ "," _ ",null,7,72,"Planning and Development","Town Planning, Building Regulations and Enforcement, and City Engineer",null,null,"_","_","_",null,"_",2435621,0,0,0,2435621,2542788,2657214,28.89,28.89,28.89,28.89,28.89,28.89,28.89,0,0,0,0,0]
["O1238-2/IE00583/F0041/X045/R0072/001/MM",15479,"O1238-2/IE00583/F0041/X045/R0072/001/MM",63396,"Expenditure:Operational Cost:Printing, Publications and Books",2900,"Other expenditure","_","_",2904,"Other Expenditure",1100,"Executive and council",1120,"Municipal Manager, Town Secretary and Chief Executive","_"," _"," _","O","IE"," _ "," _ "," _ "," _ "," _ "," _ "," _ "," _ "," _ "," _ "," _ "," _ "," _ "," _ "," _ "," _ "," _ "," _ "," _ "," _ ","",null,null," _ "," _ "," _ "," _ "," _ "," _ "," _ "," _ "," _ "," _ "," _ "," _ ","_"," _ "," _ "," _ "," _ ","_"," _ "," _ "," _ "," _ ",null,2,22,"Executive and council","Municipal Manager, Town Secretary and Chief Executive",null,null,"_","_","_",null,"_",0,0,0,0,0,135746,141854,0,0,0,0,0,0,0,0,0,0,0,0]
["O1241-2/IE00703/F0041/X044/R2868/001/EXC",1350,"O1241-2/IE00703/F0041/X044/R2868/001/EXC",32070,"Expenditure:Contracted Services:Outsourced Services:Transport Services",2700,"Contracted services","2700-001","Outsourced Services",2701,"Outsourced Services",1100,"Executive and council",1110,"Mayor and Council","_"," _"," _","O","IE"," _ "," _ "," _ "," _ "," _ "," _ "," _ "," _ "," _ "," _ "," _ "," _ "," _ "," _ "," _ "," _ "," _ "," _ "," _ "," _ ","",null,null," _ "," _ "," _ "," _ "," _ "," _ "," _ "," _ "," _ "," _ "," _ "," _ ","_"," _ "," _ "," _ "," _ ","_"," _ "," _ "," _ "," _ ",null,2,21,"Executive and council","Mayor and Council",null,null,"_","_","_",null,"_",20000,0,0,0,20000,12540,13104,0,500,0,1000,0,0,0,0,0,0,0,0]
["O1356-1/IE00754/F0041/X098/R2864/001/TECH",1378,"O1356-1/IE00754/F0041/X098/R2864/001/TECH",32098,"Expenditure:Operational Cost:Advertising, Publicity and Marketing:Gifts and Promotional Items",2900,"Other expenditure","_","_",2904,"Other Expenditure",3100,"Planning and development",3105,"Economic Development/Planning","_"," _"," _","O","IE"," _ "," _ "," _ "," _ "," _ "," _ "," _ "," _ "," _ "," _ "," _ "," _ "," _ "," _ "," _ "," _ "," _ "," _ "," _ "," _ ","",null,null," _ "," _ "," _ "," _ "," _ "," _ "," _ "," _ "," _ "," _ "," _ "," _ ","_"," _ "," _ "," _ "," _ ","_"," _ "," _ "," _ "," _ ",null,7,74,"Planning and Development","Economic Development/Planning",null,null,"_","_","_",null,"_",0,0,0,0,0,0,0,0,0,0,0,0,0,0,0,0,0,0,0]
["O1244-1/IE00571/F0041/X006/R2868/001/COMM",851,"O1244-1/IE00571/F0041/X006/R2868/001/COMM",31287,"Expenditure:Operational Cost:Hire Charges",2900,"Other expenditure","_","_",2904,"Other Expenditure",2100,"Community and social services",2106,"Community Halls and Facilities","_"," _"," _","O","IE"," _ "," _ "," _ "," _ "," _ "," _ "," _ "," _ "," _ "," _ "," _ "," _ "," _ "," _ "," _ "," _ "," _ "," _ "," _ "," _ ","",null,null," _ "," _ "," _ "," _ "," _ "," _ "," _ "," _ "," _ "," _ "," _ "," _ ","_"," _ "," _ "," _ "," _ ","_"," _ "," _ "," _ "," _ ",null,3,32,"Community and social services","Community Halls and Facilities",null,null,"_","_","_",null,"_",0,0,0,0,0,261250,273006,0,0,0,0,0,0,0,0,0,0,0,0]
["O2386-1/IE00651/F0041/X116/R0073/001/Tech",1031,"O2386-1/IE00651/F0041/X116/R0073/001/Tech",31652,"Expenditure:Contracted Services:Contractors:Maintenance of Unspecified Assets",2700,"Contracted services","2700-003","Contractors",2703,"Contractors",3200,"Road transport",3205,"Roads","_"," _"," _","O","IE"," _ "," _ "," _ "," _ "," _ "," _ "," _ "," _ "," _ "," _ "," _ "," _ "," _ "," _ "," _ "," _ "," _ "," _ "," _ "," _ ","",null,null," _ "," _ "," _ "," _ "," _ "," _ "," _ "," _ ",140,"Road Furniture",140,"Road Furniture","RM"," _ "," _ "," _ "," _ ","_"," _ "," _ "," _ "," _ ",null,9,91,"Roads","Roads",null,null,"_","_","_",null,"_",0,0,0,0,0,0,0,0,0,0,0,0,0,0,0,0,0,0,0]
["D0001/IA02224/F2496/X046/R0072/001/FIN",663,"D0001/IA02224/F2496/X046/R0072/001/FIN",31099,"Assets:Current Assets:Receivables from Non-exchange Transactions:Property Rates:State Trust Land:Opening Balance"," _"," _"," _ "," _ "," _ "," _ ",1200,"Finance and administration",1201,"Administrative and Corporate Support","_"," _"," _","D","IA",140,"Consumer debtors",140,"Consumer debtors"," _ "," _ "," _ "," _ "," _ "," _ "," _ "," _ "," _ "," _ "," _ "," _ ",141,"Consumer debtors",141,"Consumer debtors","",null,null," _ "," _ "," _ "," _ "," _ "," _ "," _ "," _ "," _ "," _ "," _ "," _ ","_"," _ "," _ "," _ "," _ ","_"," _ "," _ "," _ "," _ ",null,1,17,"Finance and Admin","Administrative and Corporate Support",null,null,"_","_","_",null,"_",0,0,0,0,0,0,0,0,0,0,0,0,0,0,0,0,0,0,0]
["D0001/IA02771/F2496/X049/R0073/001/FIN",5219,"D0001/IA02771/F2496/X049/R0073/001/FIN",53280,"Assets:Current Assets:Receivables from Non-exchange Transactions:Property Rates:State-owned Properties:Provincial Government:Opening Balance"," _"," _"," _ "," _ "," _ "," _ ",1200,"Finance and administration",1204,"Finance","_"," _"," _","D","IA",140,"Consumer debtors",140,"Consumer debtors"," _ "," _ "," _ "," _ "," _ "," _ "," _ "," _ "," _ "," _ "," _ "," _ ",141,"Consumer debtors",141,"Consumer debtors","",null,null," _ "," _ "," _ "," _ "," _ "," _ "," _ "," _ "," _ "," _ "," _ "," _ ","_"," _ "," _ "," _ "," _ ","_"," _ "," _ "," _ "," _ ",null,1,12,"Finance and Admin","Finance",null,null,"_","_","_",null,"_",0,0,0,0,0,0,0,1046431.6600000001,0,0,0,0,0,0,0,0,0,0,0]
["D0001/IA06305/F0001/X024/R2865/001/FIN",18132,"D0001/IA06305/F0001/X024/R2865/001/FIN",85030,"Assets:Non-current Assets:Property, Plant and Equipment:Cost Model:Machinery and Equipment:In-use:Accumulated Depreciation:Opening Balance"," _"," _"," _ "," _ "," _ "," _ ",2100,"Community and social services",2114,"Libraries and Archives","_"," _"," _","D","IA",240," Property, plant and equipment",240,"Property, plant and equipment"," _ "," _ "," _ "," _ "," _ "," _ "," _ "," _ ",1510,"Machinery and Equipment",1510,"Machinery and Equipment",243,"Less: Accumulated depreciation",243,"Less: Accumulated depreciation","",null,null," _ "," _ "," _ "," _ "," _ "," _ "," _ "," _ "," _ "," _ "," _ "," _ ","_"," _ "," _ "," _ "," _ ","_"," _ "," _ "," _ "," _ ",null,3,33,"Community and social services","Libraries and Archives",null,null,"_","_","_",null,"_",0,0,0,0,0,0,0,-2659.36,0,0,0,0,0,0,0,0,0,0,0]
["D0001/IA09629/F2495/X049/R0072/001/FIN",18671,"D0001/IA09629/F2495/X049/R0072/001/FIN",85571,"Assets:Current Assets:Cash and Cash Equivalents:Cash at Bank:Bank Account:Specify (replace with account description):Interest Earned"," _"," _"," _ "," _ "," _ "," _ ",1200,"Finance and administration",1204,"Finance","_"," _"," _","D","IA",120,"Cash",120,"Cash"," _ "," _ "," _ "," _ "," _ "," _ "," _ "," _ "," _ "," _ "," _ "," _ "," _ "," _ "," _ "," _ ","0180","Interest earned - external investments","I"," _ "," _ "," _ "," _ "," _ "," _ "," _ "," _ "," _ "," _ "," _ "," _ ","_"," _ "," _ "," _ "," _ ","_"," _ "," _ "," _ "," _ ",null,1,12,"Finance and Admin","Finance",null,null,"_","_","_",null,"_",2145919,0,0,0,2145919,2240339,2341155,116388.04,148072.44,136944.76999999999,115464.19,101521.18,148328.04,178623.89,0,0,0,0,0]
["D0001/IA10030/F0001/X049/R0072/001/FIN",17285,"D0001/IA10030/F0001/X049/R0072/001/FIN",84182,"Assets:Current Assets:Cash and Cash Equivalents:Call Deposits and Investments:Special Deposit for the Payment of Interest:Specify (replace with account description):Opening Balance"," _"," _"," _ "," _ "," _ "," _ ",1200,"Finance and administration",1204,"Finance","_"," _"," _","D","IA",130,"Call deposits and investments",130,"Call deposits and investments"," _ "," _ "," _ "," _ ",420,"Cash/cash equivalents at the month/year begin:",560,"Cash/cash equivalents at the month/year begin:"," _ "," _ "," _ "," _ "," _ "," _ "," _ "," _ ","",null,null," _ "," _ "," _ "," _ "," _ "," _ "," _ "," _ "," _ "," _ "," _ "," _ ","_"," _ "," _ "," _ "," _ ","_"," _ "," _ "," _ "," _ ",null,1,12,"Finance and Admin","Finance",null,null,"_","_","_",null,"_",0,0,0,0,0,0,0,0,0,0,0,0,0,0,0,0,0,0,0]
["D0001/IA10147/F0001/X049/R0074/001/FIN",16890,"D0001/IA10147/F0001/X049/R0074/001/FIN",83787,"Assets:Current Assets:Cash and Cash Equivalents:Cash at Bank:Savings Account:Specify (replace with account description):Opening Balance"," _"," _"," _ "," _ "," _ "," _ ",1200,"Finance and administration",1204,"Finance","_"," _"," _","D","IA",120,"Cash",120,"Cash"," _ "," _ "," _ "," _ ",420,"Cash/cash equivalents at the month/year begin:",560,"Cash/cash equivalents at the month/year begin:"," _ "," _ "," _ "," _ "," _ "," _ "," _ "," _ ","",null,null," _ "," _ "," _ "," _ "," _ "," _ "," _ "," _ "," _ "," _ "," _ "," _ ","_"," _ "," _ "," _ "," _ ","_"," _ "," _ "," _ "," _ ",null,1,12,"Finance and Admin","Finance",null,null,"_","_","_",null,"_",0,0,0,0,0,0,0,0,0,0,0,0,0,0,0,0,0,0,0]
["D0001/IL07049/F0791/X116/R0072/001/TECH",1255,"D0001/IL07049/F0791/X116/R0072/001/TECH",31973,"Liabilities:Current Liabilities:Trade and Other Payable Non-exchange Transactions:Transfers and Subsidies Unspent:Capital:Monetary Allocations:National Government:Municipal Infrastructure Grant:Transferred to Revenue/Capital Expenditure"," _"," _"," _ "," _ "," _ "," _ ",3200,"Road transport",3205,"Roads","_",2010,"National Government","D","IL",360," Trade and other payables",360,"Trade and other payables"," _ "," _ "," _ "," _ "," _ "," _ "," _ "," _ "," _ "," _ "," _ "," _ ",363,"Unspent conditional transfers",363,"Unspent conditional transfers","",null,null," _ "," _ "," _ "," _ "," _ "," _ "," _ "," _ "," _ "," _ "," _ "," _ ","_"," _ "," _ "," _ "," _ ","_"," _ "," _ "," _ "," _ ",null,9,91,"Roads","Roads",null,null,"_","_","_",null,"_",35297947,0,0,-3217038,32080909,35007500,36582838,-46566650.789999999,2789201.78,4538896.6900000004,3561740.06,5119029.26,3897437.6,28909.06,0,0,0,0,0]
["D0001/IL109395/F0001/X049/R0072/001/FIN",17728,"D0001/IL109395/F0001/X049/R0072/001/FIN",84625,"Liabilities:Current Liabilities:Trade and Other Payable Non-exchange Transactions:Transfers and Subsidies Payable:Capital:Monetary Allocations:District Municipalities:KwaZulu-Natal:DC 27 - Umkhanyakude:Capacity Building and Other:Specify (Add grant description):Opening Balance"," _"," _"," _ "," _ "," _ "," _ ",1200,"Finance and administration",1204,"Finance","_"," _"," _","D","IL",360," Trade and other payables",360,"Trade and other payables"," _ "," _ "," _ "," _ "," _ "," _ "," _ "," _ "," _ "," _ "," _ "," _ ",362," Other creditors",362," Other creditors","",null,null," _ "," _ "," _ "," _ "," _ "," _ "," _ "," _ "," _ "," _ "," _ "," _ ","_"," _ "," _ "," _ "," _ ","_"," _ "," _ "," _ "," _ ",null,1,12,"Finance and Admin","Finance",null,null,"_","_","_",null,"_",0,0,0,0,0,0,0,0,0,0,0,0,0,0,0,0,0,0,0]
["D0001/IL53907/F0001/X049/R0072/001/FIN",17669,"D0001/IL53907/F0001/X049/R0072/001/FIN",84566,"Liabilities:Current Liabilities:Trade and Other Payable Exchange Transactions:Control, Clearing and Interface Accounts:Salary Clearing and Control:Medical Aid Control:Opening Balance"," _"," _"," _ "," _ "," _ "," _ ",1200,"Finance and administration",1204,"Finance","_"," _"," _","D","IL",360," Trade and other payables",360,"Trade and other payables"," _ "," _ "," _ "," _ "," _ "," _ "," _ "," _ "," _ "," _ "," _ "," _ ",361,"Trade Payables",361,"Trade Payables","",null,null," _ "," _ "," _ "," _ "," _ "," _ "," _ "," _ "," _ "," _ "," _ "," _ ","_"," _ "," _ "," _ "," _ ","_"," _ "," _ "," _ "," _ ",null,1,12,"Finance and Admin","Finance",null,null,"_","_","_",null,"_",0,0,0,0,0,0,0,0,0,0,0,0,0,0,0,0,0,0,0]
["O1246-7/IE00667/F0041/X020/R0072/001/COMM",15707,"O1246-7/IE00667/F0041/X020/R0072/001/COMM",63621,"Expenditure:Contracted Services:Contractors:Stage and Sound Crew",2700,"Contracted services","2700-003","Contractors",2703,"Contractors",2100,"Community and social services",2110,"Education","_"," _"," _","O","IE"," _ "," _ "," _ "," _ "," _ "," _ "," _ "," _ "," _ "," _ "," _ "," _ "," _ "," _ "," _ "," _ "," _ "," _ "," _ "," _ ","",null,null," _ "," _ "," _ "," _ "," _ "," _ "," _ "," _ "," _ "," _ "," _ "," _ ","_"," _ "," _ "," _ "," _ ","_"," _ "," _ "," _ "," _ ",null,3,34,"Community and social services","Education",null,null,"_","_","_",null,"_",0,0,0,15000,15000,31350,32761,0,0,0,0,0,0,0,0,0,0,0,0]
["O1285-1/IE01530/F1177/X049/R0073/001/FIN",1403,"O1285-1/IE01530/F1177/X049/R0073/001/FIN",32123,"Expenditure:Employee Related Cost:Municipal Staff:Salaries, Wages and Allowances:Allowances:Service Related Benefits:Leave Pay",2000,"Employee related costs","2000-010","Payments in lieu of leave",2010,"Payments in lieu of leave",1200,"Finance and administration",1204,"Finance","_"," _"," _","O","IE"," _ "," _ "," _ "," _ "," _ "," _ "," _ "," _ "," _ "," _ "," _ "," _ "," _ "," _ "," _ "," _ "," _ "," _ "," _ "," _ ","",null,null," _ "," _ "," _ "," _ "," _ "," _ "," _ "," _ "," _ "," _ "," _ "," _ ","_"," _ "," _ "," _ "," _ ","_"," _ "," _ "," _ "," _ ","MS",1,12,"Finance and Admin","Finance",null,null,"_","_","_",null,"_",0,0,0,0,0,0,0,0,0,0,0,0,0,0,0,0,0,0,0]
["O1285-2/IE00036/F1177/X049/R0072/001/FIN",804,"O1285-2/IE00036/F1177/X049/R0072/001/FIN",31240,"Expenditure:Employee Related Cost:Municipal Staff:Salaries, Wages and Allowances:Basic Salary and Wages",2000,"Employee related costs","2000-001","Basic Salaries and Wages",2001,"Basic Salaries and Wages",1200,"Finance and administration",1204,"Finance","_"," _"," _","O","IE"," _ "," _ "," _ "," _ "," _ "," _ "," _ "," _ "," _ "," _ "," _ "," _ "," _ "," _ "," _ "," _ "," _ "," _ "," _ "," _ ","",null,null," _ "," _ "," _ "," _ "," _ "," _ "," _ "," _ "," _ "," _ "," _ "," _ ","_"," _ "," _ "," _ "," _ ","_"," _ "," _ "," _ "," _ ","MS",1,12,"Finance and Admin","Finance",null,null,"_","_","_",null,"_",500000,0,0,0,500000,522500,546013,33333.32,33333.32,33333.32,33333.32,33333.32,33333.32,33333.32,0,0,0,0,0]
["O1333-1/IE00666/F0041/X006/R0072/001/COMM",15673,"O1333-1/IE00666/F0041/X006/R0072/001/COMM",63587,"Expenditure:Contracted Services:Contractors:Sports and Recreation",2700,"Contracted services","2700-003","Contractors",2703,"Contractors",2100,"Community and social services",2106,"Community Halls and Facilities","_"," _"," _","O","IE"," _ "," _ "," _ "," _ "," _ "," _ "," _ "," _ "," _ "," _ "," _ "," _ "," _ "," _ "," _ "," _ "," _ "," _ "," _ "," _ ","",null,null," _ "," _ "," _ "," _ "," _ "," _ "," _ "," _ "," _ "," _ "," _ "," _ ","_"," _ "," _ "," _ "," _ ","_"," _ "," _ "," _ "," _ ",null,3,32,"Community and social services","Community Halls and Facilities",null,null,"_","_","_",null,"_",200000,0,0,1014289,1214289,470250,491411,0,196700,0,671840,345749,0,0,0,0,0,0,0]
["O1359-1/IE00586/F0041/X044/R2864/001/COMM",641,"O1359-1/IE00586/F0041/X044/R2864/001/COMM",31077,"Expenditure:Operational Cost:Remuneration to Ward Committees",2900,"Other expenditure","_","_",2904,"Other Expenditure",1100,"Executive and council",1110,"Mayor and Council","_"," _"," _","O","IE"," _ "," _ "," _ "," _ "," _ "," _ "," _ "," _ "," _ "," _ "," _ "," _ "," _ "," _ "," _ "," _ "," _ "," _ "," _ "," _ ","",null,null," _ "," _ "," _ "," _ "," _ "," _ "," _ "," _ "," _ "," _ "," _ "," _ ","_"," _ "," _ "," _ "," _ ","_"," _ "," _ "," _ "," _ ",null,2,21,"Executive and council","Mayor and Council",null,null,"_","_","_",null,"_",144000,0,0,-48000,96000,104500,109203,10800,12000,0,24000,0,0,0,0,0,0,0,0]
["O3122-1/IE00650/F0041/X047/R0073/001/Tech",18682,"O3122-1/IE00650/F0041/X047/R0073/001/Tech",85586,"Expenditure:Contracted Services:Contractors:Maintenance of Equipment",2700,"Contracted services","2700-003","Contractors",2703,"Contractors",1200,"Finance and administration",1202,"Asset Management","_"," _"," _","O","IE"," _ "," _ "," _ "," _ "," _ "," _ "," _ "," _ "," _ "," _ "," _ "," _ "," _ "," _ "," _ "," _ "," _ "," _ "," _ "," _ ","",null,null," _ "," _ "," _ "," _ "," _ "," _ "," _ "," _ ",1200,"Municipal Offices",1200,"Municipal Offices","RM"," _ "," _ "," _ "," _ ","_"," _ "," _ "," _ "," _ ",null,1,110,"Finance and Admin","Asset Management",null,null,"_","_","_",null,"_",156750,0,0,22500,179250,679250,709816,0,0,0,172460,0,0,0,87830,0,0,0,0]
["D0001/IR01038/F0045/X050/R0072/001/FIN",1145,"D0001/IR01038/F0045/X050/R0072/001/FIN",31792,"Revenue:Non-exchange Revenue:Property Rates:Communal Land:Business and Commercial",200,"Property rates",200,"Rates"," _ "," _ ",1200,"Finance and administration",1205,"Fleet Management","_"," _"," _","D","IR"," _ "," _ "," _ "," _ "," _ "," _ "," _ "," _ "," _ "," _ "," _ "," _ "," _ "," _ "," _ "," _ "," _ "," _ "," _ "," _ ","",null,null," _ "," _ "," _ "," _ "," _ "," _ "," _ "," _ "," _ "," _ "," _ "," _ ","_"," _ "," _ "," _ "," _ ","_"," _ "," _ "," _ "," _ ",null,1,13,"Finance and Admin","Fleet Management",null,null,"_","_","_",null,"_",0,0,0,0,0,0,0,0,0,0,0,0,0,0,0,0,0,0,0]
["D0001/IR01482/F2496/X119/R0073/001/FIN",1416,"D0001/IR01482/F2496/X119/R0073/001/FIN",32136,"Revenue:Non-exchange Revenue:Property Rates:Business and Commercial Properties",200,"Property rates",200,"Rates"," _ "," _ ",3200,"Road transport",3204,"Road and Traffic Regulation","_"," _"," _","D","IR"," _ "," _ "," _ "," _ "," _ "," _ "," _ "," _ "," _ "," _ "," _ "," _ "," _ "," _ "," _ "," _ "," _ "," _ "," _ "," _ ","",null,null," _ "," _ "," _ "," _ "," _ "," _ "," _ "," _ "," _ "," _ "," _ "," _ ","_"," _ "," _ "," _ "," _ ","_"," _ "," _ "," _ "," _ ",null,null,0," _ ","Road and Traffic Regulation",null,null,"_","_","_",null,"_",0,0,0,0,0,0,0,0,0,0,0,0,0,0,0,0,0,0,0]
["O0001/IE00036/F0041/X132/R0072/001/COMM",145,"O0001/IE00036/F0041/X132/R0072/001/COMM",30349,"Expenditure:Employee Related Cost:Municipal Staff:Salaries, Wages and Allowances:Basic Salary and Wages",2000,"Employee related costs","2000-001","Basic Salaries and Wages",2001,"Basic Salaries and Wages",4400,"Waste management",4403,"Solid Waste Removal","_"," _"," _","O","IE"," _ "," _ "," _ "," _ "," _ "," _ "," _ "," _ "," _ "," _ "," _ "," _ "," _ "," _ "," _ "," _ "," _ "," _ "," _ "," _ ","",null,null," _ "," _ "," _ "," _ "," _ "," _ "," _ "," _ "," _ "," _ "," _ "," _ ","_"," _ "," _ "," _ "," _ ","_"," _ "," _ "," _ "," _ ","MS",5,51,"Waste Management","Solid Waste Removal",null,null,"_","_","_",null,"_",0,0,0,0,0,0,0,0,0,0,0,0,0,0,0,0,0,0,0]
["O0001/IE00043/F0041/X112/R0072/001/COMM",5005,"O0001/IE00043/F0041/X112/R0072/001/COMM",30291,"Expenditure:Employee Related Cost:Municipal Staff:Social Contributions:Medical",2000,"Employee related costs","2000-003","Medical Aid Contributions",2003,"Medical Aid Contributions",2300,"Public safety",2305,"Fire Fighting and Protection","_"," _"," _","O","IE"," _ "," _ "," _ "," _ "," _ "," _ "," _ "," _ "," _ "," _ "," _ "," _ "," _ "," _ "," _ "," _ "," _ "," _ "," _ "," _ ","",null,null," _ "," _ "," _ "," _ "," _ "," _ "," _ "," _ "," _ "," _ "," _ "," _ ","_"," _ "," _ "," _ "," _ ","_"," _ "," _ "," _ "," _ ","MS",null,0," _ ","Fire Fighting and Protection",null,null,"_","_","_",null,"_",0,0,0,0,0,0,0,0,0,0,0,0,0,0,0,0,0,0,0]
["O0001/IE00138/F0041/X045/R2853/001/MM",369,"O0001/IE00138/F0041/X045/R2853/001/MM",30802,"Expenditure:Employee Related Cost:Senior Management:Municipal Manager (MM):Social Contributions:Pension",2000,"Employee related costs","2000-002","Pension and UIF Contributions",2002,"Pension and UIF Contributions",1100,"Executive and council",1120,"Municipal Manager, Town Secretary and Chief Executive","_"," _"," _","O","IE"," _ "," _ "," _ "," _ "," _ "," _ "," _ "," _ "," _ "," _ "," _ "," _ "," _ "," _ "," _ "," _ "," _ "," _ "," _ "," _ ","",null,null," _ "," _ "," _ "," _ "," _ "," _ "," _ "," _ "," _ "," _ "," _ "," _ ","_"," _ "," _ "," _ "," _ ","_"," _ "," _ "," _ "," _ ","SM",2,22,"Executive and council","Municipal Manager, Town Secretary and Chief Executive",null,null,"_","_","_",null,"_",0,0,0,0,0,0,0,0,0,0,0,0,0,0,0,0,0,0,0]
["O0001/IE00678/F0041/X055/R0072/001/CORP",773,"O0001/IE00678/F0041/X055/R0072/001/CORP",31209,"Expenditure:Contracted Services:Outsourced Services:Cleaning Services",2700,"Contracted services","2700-001","Outsourced Services",2701,"Outsourced Services",1200,"Finance and administration",1210,"Property Services","_"," _"," _","O","IE"," _ "," _ "," _ "," _ "," _ "," _ "," _ "," _ "," _ "," _ "," _ "," _ "," _ "," _ "," _ "," _ "," _ "," _ "," _ "," _ ","",null,null," _ "," _ "," _ "," _ "," _ "," _ "," _ "," _ "," _ "," _ "," _ "," _ ","_"," _ "," _ "," _ "," _ ","_"," _ "," _ "," _ "," _ ",null,1,19,"Finance and Admin","Property Services",null,null,"_","_","_",null,"_",0,0,0,0,0,0,0,0,0,0,0,0,0,0,0,0,0,0,0]
["O0001/IE00790/F0041/X045/R0072/001/MM",389,"O0001/IE00790/F0041/X045/R0072/001/MM",30822,"Expenditure:Operational Cost:External Computer Service:Recovery Centre Hosting Charges",2900,"Other expenditure","_","_",2904,"Other Expenditure",1100,"Executive and council",1120,"Municipal Manager, Town Secretary and Chief Executive","_"," _"," _","O","IE"," _ "," _ "," _ "," _ "," _ "," _ "," _ "," _ "," _ "," _ "," _ "," _ "," _ "," _ "," _ "," _ "," _ "," _ "," _ "," _ ","",null,null," _ "," _ "," _ "," _ "," _ "," _ "," _ "," _ "," _ "," _ "," _ "," _ ","_"," _ "," _ "," _ "," _ ","_"," _ "," _ "," _ "," _ ",null,2,22,"Executive and council","Municipal Manager, Town Secretary and Chief Executive",null,null,"_","_","_",null,"_",0,0,0,0,0,0,0,0,0,0,0,0,0,0,0,0,0,0,0]
["O0001/IE01530/F0041/X049/R0073/001/FIN",247,"O0001/IE01530/F0041/X049/R0073/001/FIN",30536,"Expenditure:Employee Related Cost:Municipal Staff:Salaries, Wages and Allowances:Allowances:Service Related Benefits:Leave Pay",2000,"Employee related costs","2000-010","Payments in lieu of leave",2010,"Payments in lieu of leave",1200,"Finance and administration",1204,"Finance","_"," _"," _","O","IE"," _ "," _ "," _ "," _ "," _ "," _ "," _ "," _ "," _ "," _ "," _ "," _ "," _ "," _ "," _ "," _ "," _ "," _ "," _ "," _ ","",null,null," _ "," _ "," _ "," _ "," _ "," _ "," _ "," _ "," _ "," _ "," _ "," _ ","_"," _ "," _ "," _ "," _ ","_"," _ "," _ "," _ "," _ ","MS",1,12,"Finance and Admin","Finance",null,null,"_","_","_",null,"_",46189,0,0,-3,46186,0,0,0,0,0,0,0,0,0,0,0,0,0,0]
["O0001/IE03971/F0041/X099/R0072/001/TECH",337,"O0001/IE03971/F0041/X099/R0072/001/TECH",30770,"Expenditure:Employee Related Cost:Municipal Staff:Salaries, Wages and Allowances:Allowances:Service Related Benefits:Overtime:Structured",2000,"Employee related costs","2000-004","Overtime",2004,"Overtime",3100,"Planning and development",3108,"Project Management Unit","_"," _"," _","O","IE"," _ "," _ "," _ "," _ "," _ "," _ "," _ "," _ "," _ "," _ "," _ "," _ "," _ "," _ "," _ "," _ "," _ "," _ "," _ "," _ ","",null,null," _ "," _ "," _ "," _ "," _ "," _ "," _ "," _ "," _ "," _ "," _ "," _ ","_"," _ "," _ "," _ "," _ ","_"," _ "," _ "," _ "," _ ","MS",7,73,"Planning and Development","Project Management Unit",null,null,"_","_","_",null,"_",0,0,0,0,0,0,0,0,0,0,0,0,0,0,0,0,0,0,0]
["O0001/IE07207/F0041/X044/R0072/001/EXC",431,"O0001/IE07207/F0041/X044/R0072/001/EXC",30864,"Expenditure:Remuneration of Councillors:Executive Committee:Allowances and Service Related Benefits:Cell phone Allowance",2100,"Remuneration of councillors",210005,"Cellphone Allowance"," _ "," _ ",1100,"Executive and council",1110,"Mayor and Council","_"," _"," _","O","IE"," _ "," _ "," _ "," _ "," _ "," _ "," _ "," _ "," _ "," _ "," _ "," _ "," _ "," _ "," _ "," _ "," _ "," _ "," _ "," _ ","",null,null," _ "," _ "," _ "," _ "," _ "," _ "," _ "," _ "," _ "," _ "," _ "," _ ","_"," _ "," _ "," _ "," _ ","_"," _ "," _ "," _ "," _ ",null,2,21,"Executive and council","Mayor and Council",null,null,"_","_","_",null,"_",253000,0,0,-20000,233000,231990,242430,14800,14800,14800,14800,4279.5200000000004,32765.1,18500,0,0,0,0,0]
["O0022-1/IE00847/F0041/X046/R0072/001/CORP",274,"O0022-1/IE00847/F0041/X046/R0072/001/CORP",30707,"Expenditure:Contracted Services:Consultants and Professional Services:Business and Advisory:Research and Advisory",2700,"Contracted services","2700-002","Consultants and Professional Services",2702,"Consultants and Professional Services",1200,"Finance and administration",1201,"Administrative and Corporate Support","_"," _"," _","O","IE"," _ "," _ "," _ "," _ "," _ "," _ "," _ "," _ "," _ "," _ "," _ "," _ "," _ "," _ "," _ "," _ "," _ "," _ "," _ "," _ ","",null,null," _ "," _ "," _ "," _ "," _ "," _ "," _ "," _ "," _ "," _ "," _ "," _ ","_"," _ "," _ "," _ "," _ ","_"," _ "," _ "," _ "," _ ",null,1,17,"Finance and Admin","Administrative and Corporate Support",null,null,"_","_","_",null,"_",1000000,0,0,0,1000000,418000,436810,199657.60000000001,16921,0,0,0,409450,0,0,0,0,0,0]
["O1232-1/IE00844/F1177/X049/R0073/001/FIN",961,"O1232-1/IE00844/F1177/X049/R0073/001/FIN",31559,"Expenditure:Contracted Services:Consultants and Professional Services:Business and Advisory:Project Management",2700,"Contracted services","2700-002","Consultants and Professional Services",2702,"Consultants and Professional Services",1200,"Finance and administration",1204,"Finance","_"," _"," _","O","IE"," _ "," _ "," _ "," _ "," _ "," _ "," _ "," _ "," _ "," _ "," _ "," _ "," _ "," _ "," _ "," _ "," _ "," _ "," _ "," _ ","",null,null," _ "," _ "," _ "," _ "," _ "," _ "," _ "," _ "," _ "," _ "," _ "," _ ","_"," _ "," _ "," _ "," _ ","_"," _ "," _ "," _ "," _ ",null,1,12,"Finance and Admin","Finance",null,null,"_","_","_",null,"_",0,0,0,0,0,0,0,0,0,0,0,0,0,0,0,0,0,0,0]
["O1232-1/IE01583/F0041/X049/R0072/001/FIN",974,"O1232-1/IE01583/F0041/X049/R0072/001/FIN",31572,"Expenditure:Operational Cost:Travel and Subsistence:Domestic:Transport with Operator:Public Transport:Road Transport",2900,"Other expenditure","_","_",2904,"Other Expenditure",1200,"Finance and administration",1204,"Finance","_"," _"," _","O","IE"," _ "," _ "," _ "," _ "," _ "," _ "," _ "," _ "," _ "," _ "," _ "," _ "," _ "," _ "," _ "," _ "," _ "," _ "," _ "," _ ","",null,null," _ "," _ "," _ "," _ "," _ "," _ "," _ "," _ "," _ "," _ "," _ "," _ ","_"," _ "," _ "," _ "," _ ","_"," _ "," _ "," _ "," _ ",null,1,12,"Finance and Admin","Finance",null,null,"_","_","_",null,"_",0,0,0,0,0,0,0,0,0,0,0,0,0,0,0,0,0,0,0]
["O1235-4/IE00754/F0041/X045/R0072/001/MM",476,"O1235-4/IE00754/F0041/X045/R0072/001/MM",30909,"Expenditure:Operational Cost:Advertising, Publicity and Marketing:Gifts and Promotional Items",2900,"Other expenditure","_","_",2904,"Other Expenditure",1100,"Executive and council",1120,"Municipal Manager, Town Secretary and Chief Executive","_"," _"," _","O","IE"," _ "," _ "," _ "," _ "," _ "," _ "," _ "," _ "," _ "," _ "," _ "," _ "," _ "," _ "," _ "," _ "," _ "," _ "," _ "," _ ","",null,null," _ "," _ "," _ "," _ "," _ "," _ "," _ "," _ "," _ "," _ "," _ "," _ ","_"," _ "," _ "," _ "," _ ","_"," _ "," _ "," _ "," _ ",null,2,22,"Executive and council","Municipal Manager, Town Secretary and Chief Executive",null,null,"_","_","_",null,"_",200000,0,0,128150,328150,209000,218405,0,0,0,20700,112700,0,194750,0,0,0,0,0]
["O1244-1/IE00631/F0041/X006/R2855/001/COMM",892,"O1244-1/IE00631/F0041/X006/R2855/001/COMM",31328,"Expenditure:Contracted Services:Contractors:Building",2700,"Contracted services","2700-003","Contractors",2703,"Contractors",2100,"Community and social services",2106,"Community Halls and Facilities","_"," _"," _","O","IE"," _ "," _ "," _ "," _ "," _ "," _ "," _ "," _ "," _ "," _ "," _ "," _ "," _ "," _ "," _ "," _ "," _ "," _ "," _ "," _ ","",null,null," _ "," _ "," _ "," _ "," _ "," _ "," _ "," _ "," _ "," _ "," _ "," _ ","_"," _ "," _ "," _ "," _ ","_"," _ "," _ "," _ "," _ ",null,3,32,"Community and social services","Community Halls and Facilities",null,null,"_","_","_",null,"_",0,0,0,0,0,0,0,0,0,0,0,0,0,0,0,0,0,0,0]
["O1244-1/IE01321/F0041/X006/R2870/001/COMM",925,"O1244-1/IE01321/F0041/X006/R2870/001/COMM",31361,"Expenditure:Transfers and Subsidies:Operational:Allocations In-kind:Households:Social Assistance:Social Relief",2800,"Transfers and subsidies",28000105,"Cash Transfers to Groups of Individuals  "," _ "," _ ",2100,"Community and social services",2106,"Community Halls and Facilities","_"," _"," _","O","IE"," _ "," _ "," _ "," _ "," _ "," _ "," _ "," _ "," _ "," _ "," _ "," _ "," _ "," _ "," _ "," _ "," _ "," _ "," _ "," _ ","",null,null," _ "," _ "," _ "," _ "," _ "," _ "," _ "," _ "," _ "," _ "," _ "," _ ","_"," _ "," _ "," _ "," _ ","_"," _ "," _ "," _ "," _ ",null,3,32,"Community and social services","Community Halls and Facilities",null,null,"_","_","_",null,"_",330000,0,0,50000,380000,0,0,0,5800,180000,0,0,69600,0,0,0,0,0,0]
["O1245-1/IE00628/F0041/X006/R0073/001/COMM",471,"O1245-1/IE00628/F0041/X006/R0073/001/COMM",30904,"Expenditure:Contracted Services:Contractors:Audio-visual Services",2700,"Contracted services","2700-003","Contractors",2703,"Contractors",2100,"Community and social services",2106,"Community Halls and Facilities","_"," _"," _","O","IE"," _ "," _ "," _ "," _ "," _ "," _ "," _ "," _ "," _ "," _ "," _ "," _ "," _ "," _ "," _ "," _ "," _ "," _ "," _ "," _ ","",null,null," _ "," _ "," _ "," _ "," _ "," _ "," _ "," _ "," _ "," _ "," _ "," _ ","_"," _ "," _ "," _ "," _ ","_"," _ "," _ "," _ "," _ ",null,3,32,"Community and social services","Community Halls and Facilities",null,null,"_","_","_",null,"_",0,0,0,0,0,0,0,0,0,0,0,0,0,0,0,0,0,0,0]
["O1246-1/IE01306/F0041/X008/R2853/001/COMM",926,"O1246-1/IE01306/F0041/X008/R2853/001/COMM",31362,"Expenditure:Transfers and Subsidies:Operational:Allocations In-kind:Households:Other Transfers (Cash):Bursaries (Non-Employee)",2800,"Transfers and subsidies",28000105,"Cash Transfers to Groups of Individuals  "," _ "," _ ",2100,"Community and social services",2115,"Literacy Programmes","_"," _"," _","O","IE"," _ "," _ "," _ "," _ "," _ "," _ "," _ "," _ "," _ "," _ "," _ "," _ "," _ "," _ "," _ "," _ "," _ "," _ "," _ "," _ ","",null,null," _ "," _ "," _ "," _ "," _ "," _ "," _ "," _ "," _ "," _ "," _ "," _ ","_"," _ "," _ "," _ "," _ ","_"," _ "," _ "," _ "," _ ",null,null,0," _ ","Literacy Programmes",null,null,"_","_","_",null,"_",50000,0,0,0,50000,0,0,0,0,0,0,0,0,0,0,0,0,0,0]
["O1246-1/IE01306/F0041/X008/R2859/001/COMM",932,"O1246-1/IE01306/F0041/X008/R2859/001/COMM",31368,"Expenditure:Transfers and Subsidies:Operational:Allocations In-kind:Households:Other Transfers (Cash):Bursaries (Non-Employee)",2800,"Transfers and subsidies",28000105,"Cash Transfers to Groups of Individuals  "," _ "," _ ",2100,"Community and social services",2115,"Literacy Programmes","_"," _"," _","O","IE"," _ "," _ "," _ "," _ "," _ "," _ "," _ "," _ "," _ "," _ "," _ "," _ "," _ "," _ "," _ "," _ "," _ "," _ "," _ "," _ ","",null,null," _ "," _ "," _ "," _ "," _ "," _ "," _ "," _ "," _ "," _ "," _ "," _ ","_"," _ "," _ "," _ "," _ ","_"," _ "," _ "," _ "," _ ",null,null,0," _ ","Literacy Programmes",null,null,"_","_","_",null,"_",50000,0,0,0,50000,0,0,0,0,0,0,0,0,0,0,0,0,0,0]
["O1246-1/IE01306/F0041/X008/R2860/001/COMM",933,"O1246-1/IE01306/F0041/X008/R2860/001/COMM",31369,"Expenditure:Transfers and Subsidies:Operational:Allocations In-kind:Households:Other Transfers (Cash):Bursaries (Non-Employee)",2800,"Transfers and subsidies",28000105,"Cash Transfers to Groups of Individuals  "," _ "," _ ",2100,"Community and social services",2115,"Literacy Programmes","_"," _"," _","O","IE"," _ "," _ "," _ "," _ "," _ "," _ "," _ "," _ "," _ "," _ "," _ "," _ "," _ "," _ "," _ "," _ "," _ "," _ "," _ "," _ ","",null,null," _ "," _ "," _ "," _ "," _ "," _ "," _ "," _ "," _ "," _ "," _ "," _ ","_"," _ "," _ "," _ "," _ ","_"," _ "," _ "," _ "," _ ",null,null,0," _ ","Literacy Programmes",null,null,"_","_","_",null,"_",50000,0,0,0,50000,0,0,0,0,0,0,0,0,0,0,0,0,0,0]
["O1246-1/IE01306/F0041/X008/R2864/001/COMM",937,"O1246-1/IE01306/F0041/X008/R2864/001/COMM",31373,"Expenditure:Transfers and Subsidies:Operational:Allocations In-kind:Households:Other Transfers (Cash):Bursaries (Non-Employee)",2800,"Transfers and subsidies",28000105,"Cash Transfers to Groups of Individuals  "," _ "," _ ",2100,"Community and social services",2115,"Literacy Programmes","_"," _"," _","O","IE"," _ "," _ "," _ "," _ "," _ "," _ "," _ "," _ "," _ "," _ "," _ "," _ "," _ "," _ "," _ "," _ "," _ "," _ "," _ "," _ ","",null,null," _ "," _ "," _ "," _ "," _ "," _ "," _ "," _ "," _ "," _ "," _ "," _ ","_"," _ "," _ "," _ "," _ ","_"," _ "," _ "," _ "," _ ",null,null,0," _ ","Literacy Programmes",null,null,"_","_","_",null,"_",50000,0,0,0,50000,0,0,0,0,0,0,0,0,0,0,0,0,0,0]
["O1246-1/IE01306/F0041/X008/R2867/001/COMM",940,"O1246-1/IE01306/F0041/X008/R2867/001/COMM",31376,"Expenditure:Transfers and Subsidies:Operational:Allocations In-kind:Households:Other Transfers (Cash):Bursaries (Non-Employee)",2800,"Transfers and subsidies",28000105,"Cash Transfers to Groups of Individuals  "," _ "," _ ",2100,"Community and social services",2115,"Literacy Programmes","_"," _"," _","O","IE"," _ "," _ "," _ "," _ "," _ "," _ "," _ "," _ "," _ "," _ "," _ "," _ "," _ "," _ "," _ "," _ "," _ "," _ "," _ "," _ ","",null,null," _ "," _ "," _ "," _ "," _ "," _ "," _ "," _ "," _ "," _ "," _ "," _ ","_"," _ "," _ "," _ "," _ ","_"," _ "," _ "," _ "," _ ",null,null,0," _ ","Literacy Programmes",null,null,"_","_","_",null,"_",50000,0,0,0,50000,0,0,0,0,0,0,0,0,0,0,0,0,0,0]
["O1246-2/IE00626/F0041/X020/R0073/001/COMM",588,"O1246-2/IE00626/F0041/X020/R0073/001/COMM",31024,"Expenditure:Contracted Services:Contractors:Artists and Performers",2700,"Contracted services","2700-003","Contractors",2703,"Contractors",2100,"Community and social services",2110,"Education","_"," _"," _","O","IE"," _ "," _ "," _ "," _ "," _ "," _ "," _ "," _ "," _ "," _ "," _ "," _ "," _ "," _ "," _ "," _ "," _ "," _ "," _ "," _ ","",null,null," _ "," _ "," _ "," _ "," _ "," _ "," _ "," _ "," _ "," _ "," _ "," _ ","_"," _ "," _ "," _ "," _ ","_"," _ "," _ "," _ "," _ ",null,3,34,"Community and social services","Education",null,null,"_","_","_",null,"_",0,0,0,0,0,0,0,0,0,0,0,0,0,0,0,0,0,0,0]
["O1246-2/IE00754/F0041/X020/R0073/001/COMM",596,"O1246-2/IE00754/F0041/X020/R0073/001/COMM",31032,"Expenditure:Operational Cost:Advertising, Publicity and Marketing:Gifts and Promotional Items",2900,"Other expenditure","_","_",2904,"Other Expenditure",2100,"Community and social services",2110,"Education","_"," _"," _","O","IE"," _ "," _ "," _ "," _ "," _ "," _ "," _ "," _ "," _ "," _ "," _ "," _ "," _ "," _ "," _ "," _ "," _ "," _ "," _ "," _ ","",null,null," _ "," _ "," _ "," _ "," _ "," _ "," _ "," _ "," _ "," _ "," _ "," _ ","_"," _ "," _ "," _ "," _ ","_"," _ "," _ "," _ "," _ ",null,3,34,"Community and social services","Education",null,null,"_","_","_",null,"_",0,0,0,0,0,62700,65552,0,0,0,0,0,0,0,0,0,0,0,0]
["O1246-5/IE00667/F0041/X020/R0072/001/COMM",15700,"O1246-5/IE00667/F0041/X020/R0072/001/COMM",63614,"Expenditure:Contracted Services:Contractors:Stage and Sound Crew",2700,"Contracted services","2700-003","Contractors",2703,"Contractors",2100,"Community and social services",2110,"Education","_"," _"," _","O","IE"," _ "," _ "," _ "," _ "," _ "," _ "," _ "," _ "," _ "," _ "," _ "," _ "," _ "," _ "," _ "," _ "," _ "," _ "," _ "," _ ","",null,null," _ "," _ "," _ "," _ "," _ "," _ "," _ "," _ "," _ "," _ "," _ "," _ ","_"," _ "," _ "," _ "," _ ","_"," _ "," _ "," _ "," _ ",null,3,34,"Community and social services","Education",null,null,"_","_","_",null,"_",0,0,0,0,0,0,0,0,0,0,0,0,0,0,0,0,0,0,0]
["O1246-6/IE00583/F0041/X020/R0073/001/COMM",599,"O1246-6/IE00583/F0041/X020/R0073/001/COMM",31035,"Expenditure:Operational Cost:Printing, Publications and Books",2900,"Other expenditure","_","_",2904,"Other Expenditure",2100,"Community and social services",2110,"Education","_"," _"," _","O","IE"," _ "," _ "," _ "," _ "," _ "," _ "," _ "," _ "," _ "," _ "," _ "," _ "," _ "," _ "," _ "," _ "," _ "," _ "," _ "," _ ","",null,null," _ "," _ "," _ "," _ "," _ "," _ "," _ "," _ "," _ "," _ "," _ "," _ ","_"," _ "," _ "," _ "," _ ","_"," _ "," _ "," _ "," _ ",null,3,34,"Community and social services","Education",null,null,"_","_","_",null,"_",0,0,0,389600,389600,62700,65522,0,0,0,0,0,0,0,0,0,0,0,0]
["O1252-2/IE00572/F0041/X006/R0073/001/COMM",460,"O1252-2/IE00572/F0041/X006/R0073/001/COMM",30893,"Expenditure:Operational Cost:Honoraria (Voluntarily Workers)",2900,"Other expenditure","_","_",2904,"Other Expenditure",2100,"Community and social services",2106,"Community Halls and Facilities","_"," _"," _","O","IE"," _ "," _ "," _ "," _ "," _ "," _ "," _ "," _ "," _ "," _ "," _ "," _ "," _ "," _ "," _ "," _ "," _ "," _ "," _ "," _ ","",null,null," _ "," _ "," _ "," _ "," _ "," _ "," _ "," _ "," _ "," _ "," _ "," _ ","_"," _ "," _ "," _ "," _ ","_"," _ "," _ "," _ "," _ ",null,3,32,"Community and social services","Community Halls and Facilities",null,null,"_","_","_",null,"_",0,0,0,0,0,0,0,0,0,0,0,0,0,0,0,0,0,0,0]
["O1252-2/IE00754/F0041/X006/R0073/001/COMM",458,"O1252-2/IE00754/F0041/X006/R0073/001/COMM",30891,"Expenditure:Operational Cost:Advertising, Publicity and Marketing:Gifts and Promotional Items",2900,"Other expenditure","_","_",2904,"Other Expenditure",2100,"Community and social services",2106,"Community Halls and Facilities","_"," _"," _","O","IE"," _ "," _ "," _ "," _ "," _ "," _ "," _ "," _ "," _ "," _ "," _ "," _ "," _ "," _ "," _ "," _ "," _ "," _ "," _ "," _ ","",null,null," _ "," _ "," _ "," _ "," _ "," _ "," _ "," _ "," _ "," _ "," _ "," _ ","_"," _ "," _ "," _ "," _ ","_"," _ "," _ "," _ "," _ ",null,3,32,"Community and social services","Community Halls and Facilities",null,null,"_","_","_",null,"_",0,0,0,0,0,0,0,0,0,0,0,0,425723,0,0,0,0,0,0]
["O1256-1/IE00571/F0041/X044/R0073/001/EXC",1023,"O1256-1/IE00571/F0041/X044/R0073/001/EXC",31636,"Expenditure:Operational Cost:Hire Charges",2900,"Other expenditure","_","_",2904,"Other Expenditure",1100,"Executive and council",1110,"Mayor and Council","_"," _"," _","O","IE"," _ "," _ "," _ "," _ "," _ "," _ "," _ "," _ "," _ "," _ "," _ "," _ "," _ "," _ "," _ "," _ "," _ "," _ "," _ "," _ ","",null,null," _ "," _ "," _ "," _ "," _ "," _ "," _ "," _ "," _ "," _ "," _ "," _ ","_"," _ "," _ "," _ "," _ ","_"," _ "," _ "," _ "," _ ",null,2,21,"Executive and council","Mayor and Council",null,null,"_","_","_",null,"_",313500,0,0,458743,772243,313500,327608,0,0,0,370550,126600,9793.0399999999991,80800,0,0,0,0,0]
["O1264-3/IE01525/F0001/X019/R0072/001/FIN",16833,"O1264-3/IE01525/F0001/X019/R0072/001/FIN",83730,"Expenditure:Employee Related Cost:Municipal Staff:Salaries, Wages and Allowances:Allowances:Service Related Benefits:Acting and Post Related Allowances",2000,"Employee related costs","2000-009","Other benefits and allowances",2001,"Basic Salaries and Wages",2100,"Community and social services",2109,"Disaster Management","_"," _"," _","O","IE"," _ "," _ "," _ "," _ "," _ "," _ "," _ "," _ "," _ "," _ "," _ "," _ "," _ "," _ "," _ "," _ "," _ "," _ "," _ "," _ ","",null,null," _ "," _ "," _ "," _ "," _ "," _ "," _ "," _ "," _ "," _ "," _ "," _ ","_"," _ "," _ "," _ "," _ ","_"," _ "," _ "," _ "," _ ","MS",3,31,"Community and social services","Disaster Management",null,null,"_","_","_",null,"_",0,0,0,0,0,0,0,0,0,0,0,0,0,0,0,0,0,0,0]
["O1264-3/IE01525/F0001/X019/R0072/001/TRAF",16834,"O1264-3/IE01525/F0001/X019/R0072/001/TRAF",83731,"Expenditure:Employee Related Cost:Municipal Staff:Salaries, Wages and Allowances:Allowances:Service Related Benefits:Acting and Post Related Allowances",2000,"Employee related costs","2000-009","Other benefits and allowances",2001,"Basic Salaries and Wages",2100,"Community and social services",2109,"Disaster Management","_"," _"," _","O","IE"," _ "," _ "," _ "," _ "," _ "," _ "," _ "," _ "," _ "," _ "," _ "," _ "," _ "," _ "," _ "," _ "," _ "," _ "," _ "," _ ","",null,null," _ "," _ "," _ "," _ "," _ "," _ "," _ "," _ "," _ "," _ "," _ "," _ ","_"," _ "," _ "," _ "," _ ","_"," _ "," _ "," _ "," _ ","MS",3,31,"Community and social services","Disaster Management",null,null,"_","_","_",null,"_",0,0,0,0,0,0,0,0,0,0,0,0,0,0,0,0,0,0,0]
["O1264-3/IE01525/F0041/X019/R0072/001/COMM",16840,"O1264-3/IE01525/F0041/X019/R0072/001/COMM",83737,"Expenditure:Employee Related Cost:Municipal Staff:Salaries, Wages and Allowances:Allowances:Service Related Benefits:Acting and Post Related Allowances",2000,"Employee related costs","2000-009","Other benefits and allowances",2001,"Basic Salaries and Wages",2100,"Community and social services",2109,"Disaster Management","_"," _"," _","O","IE"," _ "," _ "," _ "," _ "," _ "," _ "," _ "," _ "," _ "," _ "," _ "," _ "," _ "," _ "," _ "," _ "," _ "," _ "," _ "," _ ","",null,null," _ "," _ "," _ "," _ "," _ "," _ "," _ "," _ "," _ "," _ "," _ "," _ ","_"," _ "," _ "," _ "," _ ","_"," _ "," _ "," _ "," _ ","MS",3,31,"Community and social services","Disaster Management",null,null,"_","_","_",null,"_",0,0,0,0,0,0,0,0,0,0,0,0,0,0,0,0,0,0,0]
["O1265-1/IE01321/F0044/X112/R0073/001/TRAF",1249,"O1265-1/IE01321/F0044/X112/R0073/001/TRAF",52698,"Expenditure:Transfers and Subsidies:Operational:Allocations In-kind:Households:Social Assistance:Social Relief",2800,"Transfers and subsidies",28000105,"Cash Transfers to Groups of Individuals  "," _ "," _ ",2300,"Public safety",2305,"Fire Fighting and Protection","_"," _"," _","O","IE"," _ "," _ "," _ "," _ "," _ "," _ "," _ "," _ "," _ "," _ "," _ "," _ "," _ "," _ "," _ "," _ "," _ "," _ "," _ "," _ ","",null,null," _ "," _ "," _ "," _ "," _ "," _ "," _ "," _ "," _ "," _ "," _ "," _ ","_"," _ "," _ "," _ "," _ ","_"," _ "," _ "," _ "," _ ",null,null,0," _ ","Fire Fighting and Protection",null,null,"_","_","_",null,"_",1000000,0,0,-300000,700000,902880,943510,0,193000,0,500270,0,0,0,0,0,0,0,0]
["O1284-1/IE00015/F0041/X049/R0072/001/FIN",4807,"O1284-1/IE00015/F0041/X049/R0072/001/FIN",52775,"Expenditure:Contracted Services:Outsourced Services:Business and Advisory:Accounting and Auditing",2700,"Contracted services","2700-001","Outsourced Services",2701,"Outsourced Services",1200,"Finance and administration",1204,"Finance","_"," _"," _","O","IE"," _ "," _ "," _ "," _ "," _ "," _ "," _ "," _ "," _ "," _ "," _ "," _ "," _ "," _ "," _ "," _ "," _ "," _ "," _ "," _ ","",null,null," _ "," _ "," _ "," _ "," _ "," _ "," _ "," _ "," _ "," _ "," _ "," _ ","_"," _ "," _ "," _ "," _ ","_"," _ "," _ "," _ "," _ ",null,1,12,"Finance and Admin","Finance",null,null,"_","_","_",null,"_",0,0,0,0,0,0,0,0,0,0,0,0,0,0,0,0,0,0,0]
["O1284-2/IE00835/F0041/X049/R0072/001/FIN",4812,"O1284-2/IE00835/F0041/X049/R0072/001/FIN",52779,"Expenditure:Contracted Services:Consultants and Professional Services:Business and Advisory:Business and Financial Management",2700,"Contracted services","2700-002","Consultants and Professional Services",2702,"Consultants and Professional Services",1200,"Finance and administration",1204,"Finance","_"," _"," _","O","IE"," _ "," _ "," _ "," _ "," _ "," _ "," _ "," _ "," _ "," _ "," _ "," _ "," _ "," _ "," _ "," _ "," _ "," _ "," _ "," _ ","",null,null," _ "," _ "," _ "," _ "," _ "," _ "," _ "," _ "," _ "," _ "," _ "," _ ","_"," _ "," _ "," _ "," _ ","_"," _ "," _ "," _ "," _ ",null,1,12,"Finance and Admin","Finance",null,null,"_","_","_",null,"_",992750,0,0,0,992750,992750,1037424,78746.759999999995,67881.3,66757.820000000007,75074.8,51901.3,51901.3,109753.47,34683.910000000003,0,0,0,0]
["O1285-1/IE03969/F1177/X049/R0073/001/FIN",1402,"O1285-1/IE03969/F1177/X049/R0073/001/FIN",32122,"Expenditure:Employee Related Cost:Municipal Staff:Salaries, Wages and Allowances:Allowances:Service Related Benefits:Overtime:Non Structured",2000,"Employee related costs","2000-004","Overtime",2004,"Overtime",1200,"Finance and administration",1204,"Finance","_"," _"," _","O","IE"," _ "," _ "," _ "," _ "," _ "," _ "," _ "," _ "," _ "," _ "," _ "," _ "," _ "," _ "," _ "," _ "," _ "," _ "," _ "," _ ","",null,null," _ "," _ "," _ "," _ "," _ "," _ "," _ "," _ "," _ "," _ "," _ "," _ ","_"," _ "," _ "," _ "," _ ","_"," _ "," _ "," _ "," _ ","MS",1,12,"Finance and Admin","Finance",null,null,"_","_","_",null,"_",0,0,0,0,0,0,0,0,0,0,0,0,0,0,0,0,0,0,0]
["O1286-1/IE00735/F0041/X045/R0072/001/MM",1118,"O1286-1/IE00735/F0041/X045/R0072/001/MM",31751,"Expenditure:Interest, Dividends and Rent on Land:Interest Paid:Overdue Accounts",2400,"Finance charges",2400,"Finance charges"," _ "," _ ",1100,"Executive and council",1120,"Municipal Manager, Town Secretary and Chief Executive","_"," _"," _","O","IE"," _ "," _ "," _ "," _ "," _ "," _ "," _ "," _ "," _ "," _ "," _ "," _ "," _ "," _ "," _ "," _ "," _ "," _ "," _ "," _ ","",null,null," _ "," _ "," _ "," _ "," _ "," _ "," _ "," _ "," _ "," _ "," _ "," _ ","_"," _ "," _ "," _ "," _ ","_"," _ "," _ "," _ "," _ ",null,2,22,"Executive and council","Municipal Manager, Town Secretary and Chief Executive",null,null,"_","_","_",null,"_",0,0,0,0,0,0,0,0,0,0,0,0,0,0,0,0,0,0,0]
["O1288-1/IE00060/F1177/X049/R0072/001/FIN",947,"O1288-1/IE00060/F1177/X049/R0072/001/FIN",31545,"Expenditure:Operational Cost:Travel and Subsistence:Domestic:Accommodation",2900,"Other expenditure","_","_",2904,"Other Expenditure",1200,"Finance and administration",1204,"Finance","_"," _"," _","O","IE"," _ "," _ "," _ "," _ "," _ "," _ "," _ "," _ "," _ "," _ "," _ "," _ "," _ "," _ "," _ "," _ "," _ "," _ "," _ "," _ ","",null,null," _ "," _ "," _ "," _ "," _ "," _ "," _ "," _ "," _ "," _ "," _ "," _ ","_"," _ "," _ "," _ "," _ ","_"," _ "," _ "," _ "," _ ",null,1,12,"Finance and Admin","Finance",null,null,"_","_","_",null,"_",0,0,0,0,0,0,0,0,0,0,0,0,0,0,0,0,0,0,0]
["O1299-1/IE00571/F0041/X101/R0072/001/CORP",15533,"O1299-1/IE00571/F0041/X101/R0072/001/CORP",63430,"Expenditure:Operational Cost:Hire Charges",2900,"Other expenditure","_","_",2904,"Other Expenditure",3100,"Planning and development",3107,"Town Planning, Building Regulations and Enforcement, and City Engineer","_"," _"," _","O","IE"," _ "," _ "," _ "," _ "," _ "," _ "," _ "," _ "," _ "," _ "," _ "," _ "," _ "," _ "," _ "," _ "," _ "," _ "," _ "," _ ","",null,null," _ "," _ "," _ "," _ "," _ "," _ "," _ "," _ "," _ "," _ "," _ "," _ ","_"," _ "," _ "," _ "," _ ","_"," _ "," _ "," _ "," _ ",null,7,72,"Planning and Development","Town Planning, Building Regulations and Enforcement, and City Engineer",null,null,"_","_","_",null,"_",0,0,0,0,0,0,0,0,0,0,0,0,0,0,0,0,0,0,0]
["O1299-1/IE00754/F0041/X046/R0073/001/Corp",18034,"O1299-1/IE00754/F0041/X046/R0073/001/Corp",84931,"Expenditure:Operational Cost:Advertising, Publicity and Marketing:Gifts and Promotional Items",2900,"Other expenditure","_","_",2904,"Other Expenditure",1200,"Finance and administration",1201,"Administrative and Corporate Support","_"," _"," _","O","IE"," _ "," _ "," _ "," _ "," _ "," _ "," _ "," _ "," _ "," _ "," _ "," _ "," _ "," _ "," _ "," _ "," _ "," _ "," _ "," _ ","",null,null," _ "," _ "," _ "," _ "," _ "," _ "," _ "," _ "," _ "," _ "," _ "," _ ","_"," _ "," _ "," _ "," _ ","_"," _ "," _ "," _ "," _ ",null,1,17,"Finance and Admin","Administrative and Corporate Support",null,null,"_","_","_",null,"_",0,0,0,0,0,0,0,0,0,0,0,0,0,0,0,0,0,0,0]
["O1299-1/IE01583/F0041/X101/R0072/001/CORP",15531,"O1299-1/IE01583/F0041/X101/R0072/001/CORP",63437,"Expenditure:Operational Cost:Travel and Subsistence:Domestic:Transport with Operator:Public Transport:Road Transport",2900,"Other expenditure","_","_",2904,"Other Expenditure",3100,"Planning and development",3107,"Town Planning, Building Regulations and Enforcement, and City Engineer","_"," _"," _","O","IE"," _ "," _ "," _ "," _ "," _ "," _ "," _ "," _ "," _ "," _ "," _ "," _ "," _ "," _ "," _ "," _ "," _ "," _ "," _ "," _ ","",null,null," _ "," _ "," _ "," _ "," _ "," _ "," _ "," _ "," _ "," _ "," _ "," _ ","_"," _ "," _ "," _ "," _ ","_"," _ "," _ "," _ "," _ ",null,7,72,"Planning and Development","Town Planning, Building Regulations and Enforcement, and City Engineer",null,null,"_","_","_",null,"_",0,0,0,0,0,0,0,0,0,0,0,0,0,0,0,0,0,0,0]
["O1302-1/IE00001/F13636/X098/R0072/001/Tech",2763,"O1302-1/IE00001/F13636/X098/R0072/001/Tech",52477,"Expenditure:Contracted Services:Consultants and Professional Services:Infrastructure and Planning:Town Planner",2700,"Contracted services","2700-002","Consultants and Professional Services",2702,"Consultants and Professional Services",3100,"Planning and development",3105,"Economic Development/Planning","_"," _"," _","O","IE"," _ "," _ "," _ "," _ "," _ "," _ "," _ "," _ "," _ "," _ "," _ "," _ "," _ "," _ "," _ "," _ "," _ "," _ "," _ "," _ ","",null,null," _ "," _ "," _ "," _ "," _ "," _ "," _ "," _ "," _ "," _ "," _ "," _ ","_"," _ "," _ "," _ "," _ ","_"," _ "," _ "," _ "," _ ",null,7,74,"Planning and Development","Economic Development/Planning",null,null,"_","_","_",null,"_",0,0,0,0,0,0,0,0,0,0,0,0,0,0,0,0,0,0,0]
["O1303-3/IE00667/F0041/X098/R0073/001/LED",4779,"O1303-3/IE00667/F0041/X098/R0073/001/LED",52742,"Expenditure:Contracted Services:Contractors:Stage and Sound Crew",2700,"Contracted services","2700-003","Contractors",2703,"Contractors",3100,"Planning and development",3105,"Economic Development/Planning","_"," _"," _","O","IE"," _ "," _ "," _ "," _ "," _ "," _ "," _ "," _ "," _ "," _ "," _ "," _ "," _ "," _ "," _ "," _ "," _ "," _ "," _ "," _ ","",null,null," _ "," _ "," _ "," _ "," _ "," _ "," _ "," _ "," _ "," _ "," _ "," _ ","_"," _ "," _ "," _ "," _ ","_"," _ "," _ "," _ "," _ ",null,7,74,"Planning and Development","Economic Development/Planning",null,null,"_","_","_",null,"_",15000,0,0,0,15000,31350,32761,0,0,0,0,0,0,0,0,0,0,0,0]
["O1303-6/IE00419/F0041/X098/R0073/001/LED",4783,"O1303-6/IE00419/F0041/X098/R0073/001/LED",52746,"Expenditure:Transfers and Subsidies:Operational:Allocations In-kind:Non-profit Institutions:Unspecified",2800,"Transfers and subsidies",28000104,"Cash Transfers to Organisations  "," _ "," _ ",3100,"Planning and development",3105,"Economic Development/Planning","_"," _"," _","O","IE"," _ "," _ "," _ "," _ "," _ "," _ "," _ "," _ "," _ "," _ "," _ "," _ "," _ "," _ "," _ "," _ "," _ "," _ "," _ "," _ ","",null,null," _ "," _ "," _ "," _ "," _ "," _ "," _ "," _ "," _ "," _ "," _ "," _ ","_"," _ "," _ "," _ "," _ ","_"," _ "," _ "," _ "," _ ",null,7,74,"Planning and Development","Economic Development/Planning",null,null,"_","_","_",null,"_",500000,0,0,-300000,200000,0,0,0,0,0,0,0,0,0,0,0,0,0,0]
["O1306-1/IE00815/F0041/X018/R0073/001/COMM",1034,"O1306-1/IE00815/F0041/X018/R0073/001/COMM",31655,"Expenditure:Operational Cost:Travel and Subsistence:Non-employees",2900,"Other expenditure","_","_",2904,"Other Expenditure",2100,"Community and social services",2108,"Cultural Matters","_"," _"," _","O","IE"," _ "," _ "," _ "," _ "," _ "," _ "," _ "," _ "," _ "," _ "," _ "," _ "," _ "," _ "," _ "," _ "," _ "," _ "," _ "," _ ","",null,null," _ "," _ "," _ "," _ "," _ "," _ "," _ "," _ "," _ "," _ "," _ "," _ ","_"," _ "," _ "," _ "," _ ","_"," _ "," _ "," _ "," _ ",null,null,0," _ ","Cultural Matters",null,null,"_","_","_",null,"_",0,0,0,0,0,0,0,0,0,0,0,0,0,0,0,0,0,0,0]
["O1306-4/IE00667/F0041/X006/R0072/001/COMM",16802,"O1306-4/IE00667/F0041/X006/R0072/001/COMM",83699,"Expenditure:Contracted Services:Contractors:Stage and Sound Crew",2700,"Contracted services","2700-003","Contractors",2703,"Contractors",2100,"Community and social services",2106,"Community Halls and Facilities","_"," _"," _","O","IE"," _ "," _ "," _ "," _ "," _ "," _ "," _ "," _ "," _ "," _ "," _ "," _ "," _ "," _ "," _ "," _ "," _ "," _ "," _ "," _ ","",null,null," _ "," _ "," _ "," _ "," _ "," _ "," _ "," _ "," _ "," _ "," _ "," _ ","_"," _ "," _ "," _ "," _ ","_"," _ "," _ "," _ "," _ ",null,3,32,"Community and social services","Community Halls and Facilities",null,null,"_","_","_",null,"_",20000,0,0,69750,89750,20900,21841,0,0,0,0,0,0,0,0,0,0,0,0]
["O1331-1/IE00848/F2496/X049/R2853/001/FIN",971,"O1331-1/IE00848/F2496/X049/R2853/001/FIN",31569,"Expenditure:Contracted Services:Consultants and Professional Services:Business and Advisory:Valuer and Assessors",2700,"Contracted services","2700-002","Consultants and Professional Services",2702,"Consultants and Professional Services",1200,"Finance and administration",1204,"Finance","_"," _"," _","O","IE"," _ "," _ "," _ "," _ "," _ "," _ "," _ "," _ "," _ "," _ "," _ "," _ "," _ "," _ "," _ "," _ "," _ "," _ "," _ "," _ ","",null,null," _ "," _ "," _ "," _ "," _ "," _ "," _ "," _ "," _ "," _ "," _ "," _ ","_"," _ "," _ "," _ "," _ ","_"," _ "," _ "," _ "," _ ",null,1,12,"Finance and Admin","Finance",null,null,"_","_","_",null,"_",209000,0,0,117784,326784,209000,218405,37086.57,8240.57,8240.57,8240.57,8240.57,198495.03,8240.57,16481.150000000001,0,0,0,0]
["O1331-1/IE00853/F2496/X049/R2853/001/FIN",970,"O1331-1/IE00853/F2496/X049/R2853/001/FIN",31568,"Expenditure:Contracted Services:Consultants and Professional Services:Infrastructure and Planning:Geoinformatic Services",2700,"Contracted services","2700-002","Consultants and Professional Services",2702,"Consultants and Professional Services",1200,"Finance and administration",1204,"Finance","_"," _"," _","O","IE"," _ "," _ "," _ "," _ "," _ "," _ "," _ "," _ "," _ "," _ "," _ "," _ "," _ "," _ "," _ "," _ "," _ "," _ "," _ "," _ ","",null,null," _ "," _ "," _ "," _ "," _ "," _ "," _ "," _ "," _ "," _ "," _ "," _ ","_"," _ "," _ "," _ "," _ ","_"," _ "," _ "," _ "," _ ",null,1,12,"Finance and Admin","Finance",null,null,"_","_","_",null,"_",0,0,0,0,0,0,0,0,0,0,0,0,0,0,0,0,0,0,0]
["O1331-2/IE00583/F0041/X049/R0072/001/FIN",5111,"O1331-2/IE00583/F0041/X049/R0072/001/FIN",53188,"Expenditure:Operational Cost:Printing, Publications and Books",2900,"Other expenditure","_","_",2904,"Other Expenditure",1200,"Finance and administration",1204,"Finance","_"," _"," _","O","IE"," _ "," _ "," _ "," _ "," _ "," _ "," _ "," _ "," _ "," _ "," _ "," _ "," _ "," _ "," _ "," _ "," _ "," _ "," _ "," _ ","",null,null," _ "," _ "," _ "," _ "," _ "," _ "," _ "," _ "," _ "," _ "," _ "," _ ","_"," _ "," _ "," _ "," _ ","_"," _ "," _ "," _ "," _ ",null,1,12,"Finance and Admin","Finance",null,null,"_","_","_",null,"_",0,0,0,0,0,0,0,0,0,0,0,0,0,0,0,0,0,0,0]
["O1335-1/IE00060/F0041/X016/R0073/001/COMM",999,"O1335-1/IE00060/F0041/X016/R0073/001/COMM",31597,"Expenditure:Operational Cost:Travel and Subsistence:Domestic:Accommodation",2900,"Other expenditure","_","_",2904,"Other Expenditure",2100,"Community and social services",2106,"Community Halls and Facilities","_"," _"," _","O","IE"," _ "," _ "," _ "," _ "," _ "," _ "," _ "," _ "," _ "," _ "," _ "," _ "," _ "," _ "," _ "," _ "," _ "," _ "," _ "," _ ","",null,null," _ "," _ "," _ "," _ "," _ "," _ "," _ "," _ "," _ "," _ "," _ "," _ ","_"," _ "," _ "," _ "," _ ","_"," _ "," _ "," _ "," _ ",null,3,32,"Community and social services","Community Halls and Facilities",null,null,"_","_","_",null,"_",0,0,0,0,0,0,0,0,0,0,0,0,0,0,0,0,0,0,0]
["O1335-1/IE00571/F0041/X016/R0073/001/COMM",993,"O1335-1/IE00571/F0041/X016/R0073/001/COMM",31591,"Expenditure:Operational Cost:Hire Charges",2900,"Other expenditure","_","_",2904,"Other Expenditure",2100,"Community and social services",2106,"Community Halls and Facilities","_"," _"," _","O","IE"," _ "," _ "," _ "," _ "," _ "," _ "," _ "," _ "," _ "," _ "," _ "," _ "," _ "," _ "," _ "," _ "," _ "," _ "," _ "," _ ","",null,null," _ "," _ "," _ "," _ "," _ "," _ "," _ "," _ "," _ "," _ "," _ "," _ ","_"," _ "," _ "," _ "," _ ","_"," _ "," _ "," _ "," _ ",null,3,32,"Community and social services","Community Halls and Facilities",null,null,"_","_","_",null,"_",0,0,0,189500,189500,52250,54601,0,189500,0,0,0,0,0,0,0,0,0,0]
["O1335-1/IE00811/F0041/X016/R0073/001/COMM",992,"O1335-1/IE00811/F0041/X016/R0073/001/COMM",31590,"Expenditure:Operational Cost:Transport Provided as Part of Departmental Activities:Events",2900,"Other expenditure","_","_",2904,"Other Expenditure",2100,"Community and social services",2106,"Community Halls and Facilities","_"," _"," _","O","IE"," _ "," _ "," _ "," _ "," _ "," _ "," _ "," _ "," _ "," _ "," _ "," _ "," _ "," _ "," _ "," _ "," _ "," _ "," _ "," _ ","",null,null," _ "," _ "," _ "," _ "," _ "," _ "," _ "," _ "," _ "," _ "," _ "," _ ","_"," _ "," _ "," _ "," _ ","_"," _ "," _ "," _ "," _ ",null,3,32,"Community and social services","Community Halls and Facilities",null,null,"_","_","_",null,"_",0,0,0,295786,295786,104500,109203,0,47000,0,248786,0,0,0,0,0,0,0,0]
["O1344-2/IE00060/F0041/X096/R0073/001/MM",1259,"O1344-2/IE00060/F0041/X096/R0073/001/MM",31977,"Expenditure:Operational Cost:Travel and Subsistence:Domestic:Accommodation",2900,"Other expenditure","_","_",2904,"Other Expenditure",3100,"Planning and development",3102,"Corporate Wide Strategic Planning (IDPs, LEDs)","_"," _"," _","O","IE"," _ "," _ "," _ "," _ "," _ "," _ "," _ "," _ "," _ "," _ "," _ "," _ "," _ "," _ "," _ "," _ "," _ "," _ "," _ "," _ ","",null,null," _ "," _ "," _ "," _ "," _ "," _ "," _ "," _ "," _ "," _ "," _ "," _ ","_"," _ "," _ "," _ "," _ ","_"," _ "," _ "," _ "," _ ",null,7,71,"Planning and Development","Corporate Wide Strategic Planning (IDPs, LEDs)",null,null,"_","_","_",null,"_",0,0,0,0,0,0,0,0,0,0,0,0,0,0,0,0,0,0,0]
["O1344-2/IE00602/F0041/X096/R0073/001/MM",1260,"O1344-2/IE00602/F0041/X096/R0073/001/MM",31978,"Expenditure:Operational Cost:Toll Gate Fees",2900,"Other expenditure","_","_",2904,"Other Expenditure",3100,"Planning and development",3102,"Corporate Wide Strategic Planning (IDPs, LEDs)","_"," _"," _","O","IE"," _ "," _ "," _ "," _ "," _ "," _ "," _ "," _ "," _ "," _ "," _ "," _ "," _ "," _ "," _ "," _ "," _ "," _ "," _ "," _ ","",null,null," _ "," _ "," _ "," _ "," _ "," _ "," _ "," _ "," _ "," _ "," _ "," _ ","_"," _ "," _ "," _ "," _ ","_"," _ "," _ "," _ "," _ ",null,7,71,"Planning and Development","Corporate Wide Strategic Planning (IDPs, LEDs)",null,null,"_","_","_",null,"_",0,0,0,0,0,0,0,0,0,0,0,0,0,0,0,0,0,0,0]
["O1345-1/IE00592/F0041/X046/R0072/001/CORP",5124,"O1345-1/IE00592/F0041/X046/R0072/001/CORP",53191,"Expenditure:Operational Cost:Seating Allowance for Traditional Leaders",2900,"Other expenditure","_","_",2904,"Other Expenditure",1200,"Finance and administration",1201,"Administrative and Corporate Support","_"," _"," _","O","IE"," _ "," _ "," _ "," _ "," _ "," _ "," _ "," _ "," _ "," _ "," _ "," _ "," _ "," _ "," _ "," _ "," _ "," _ "," _ "," _ ","",null,null," _ "," _ "," _ "," _ "," _ "," _ "," _ "," _ "," _ "," _ "," _ "," _ ","_"," _ "," _ "," _ "," _ ","_"," _ "," _ "," _ "," _ ",null,1,17,"Finance and Admin","Administrative and Corporate Support",null,null,"_","_","_",null,"_",0,0,0,0,0,0,0,0,0,0,0,0,0,0,0,0,0,0,0]
["O1345-2/IE00144/F0041/X049/R0072/001/FIN",5358,"O1345-2/IE00144/F0041/X049/R0072/001/FIN",53347,"Expenditure:Operational Cost:Travel and Subsistence:Domestic:Transport without Operator:Own Transport",2900,"Other expenditure","_","_",2904,"Other Expenditure",1200,"Finance and administration",1204,"Finance","_"," _"," _","O","IE"," _ "," _ "," _ "," _ "," _ "," _ "," _ "," _ "," _ "," _ "," _ "," _ "," _ "," _ "," _ "," _ "," _ "," _ "," _ "," _ ","",null,null," _ "," _ "," _ "," _ "," _ "," _ "," _ "," _ "," _ "," _ "," _ "," _ ","_"," _ "," _ "," _ "," _ ","_"," _ "," _ "," _ "," _ ",null,1,12,"Finance and Admin","Finance",null,null,"_","_","_",null,"_",0,0,0,0,0,0,0,0,0,0,0,0,0,0,0,0,0,0,0]
["O1345-4/IE00144/F0041/X006/R0073/001/COMM",1011,"O1345-4/IE00144/F0041/X006/R0073/001/COMM",31619,"Expenditure:Operational Cost:Travel and Subsistence:Domestic:Transport without Operator:Own Transport",2900,"Other expenditure","_","_",2904,"Other Expenditure",2100,"Community and social services",2106,"Community Halls and Facilities","_"," _"," _","O","IE"," _ "," _ "," _ "," _ "," _ "," _ "," _ "," _ "," _ "," _ "," _ "," _ "," _ "," _ "," _ "," _ "," _ "," _ "," _ "," _ ","",null,null," _ "," _ "," _ "," _ "," _ "," _ "," _ "," _ "," _ "," _ "," _ "," _ ","_"," _ "," _ "," _ "," _ ","_"," _ "," _ "," _ "," _ ",null,3,32,"Community and social services","Community Halls and Facilities",null,null,"_","_","_",null,"_",0,0,0,0,0,0,0,0,0,0,0,0,0,0,0,0,0,0,0]
["O1345-5/IE00677/F0041/X044/R0072/001/EXC",1103,"O1345-5/IE00677/F0041/X044/R0072/001/EXC",31736,"Expenditure:Contracted Services:Outsourced Services:Catering Services",2700,"Contracted services","2700-001","Outsourced Services",2701,"Outsourced Services",1100,"Executive and council",1110,"Mayor and Council","_"," _"," _","O","IE"," _ "," _ "," _ "," _ "," _ "," _ "," _ "," _ "," _ "," _ "," _ "," _ "," _ "," _ "," _ "," _ "," _ "," _ "," _ "," _ ","",null,null," _ "," _ "," _ "," _ "," _ "," _ "," _ "," _ "," _ "," _ "," _ "," _ ","_"," _ "," _ "," _ "," _ ","_"," _ "," _ "," _ "," _ ",null,2,21,"Executive and council","Mayor and Council",null,null,"_","_","_",null,"_",0,0,0,0,0,0,0,0,0,0,0,0,0,0,0,0,0,0,0]
["O1350-1/IE00602/F0041/X081/R0072/001/MM",15671,"O1350-1/IE00602/F0041/X081/R0072/001/MM",63585,"Expenditure:Operational Cost:Toll Gate Fees",2900,"Other expenditure","_","_",2904,"Other Expenditure",1300,"Internal audit",1301,"Governance Function","_"," _"," _","O","IE"," _ "," _ "," _ "," _ "," _ "," _ "," _ "," _ "," _ "," _ "," _ "," _ "," _ "," _ "," _ "," _ "," _ "," _ "," _ "," _ ","",null,null," _ "," _ "," _ "," _ "," _ "," _ "," _ "," _ "," _ "," _ "," _ "," _ ","_"," _ "," _ "," _ "," _ ","_"," _ "," _ "," _ "," _ ",null,4,41,"Internal Audit","Governance Function",null,null,"_","_","_",null,"_",0,0,0,0,0,0,0,0,0,0,0,0,0,0,0,0,0,0,0]
["O1355-2/IE00642/F09788/X101/R2862/001/Tech",15779,"O1355-2/IE00642/F09788/X101/R2862/001/Tech",73676,"Expenditure:Contracted Services:Contractors:Gardening Services",2700,"Contracted services","2700-003","Contractors",2703,"Contractors",3100,"Planning and development",3107,"Town Planning, Building Regulations and Enforcement, and City Engineer","_",2020,"Provincial Government","O","IE"," _ "," _ "," _ "," _ "," _ "," _ "," _ "," _ "," _ "," _ "," _ "," _ "," _ "," _ "," _ "," _ "," _ "," _ "," _ "," _ ","",null,null," _ "," _ "," _ "," _ "," _ "," _ "," _ "," _ "," _ "," _ "," _ "," _ ","_"," _ "," _ "," _ "," _ ","_"," _ "," _ "," _ "," _ ",null,7,72,"Planning and Development","Town Planning, Building Regulations and Enforcement, and City Engineer",null,null,"_","_","_",null,"_",0,0,0,0,0,0,0,0,0,0,0,0,0,0,0,0,0,0,0]
["O1356-1/IE00583/F0041/X098/R2861/001/TECH",1385,"O1356-1/IE00583/F0041/X098/R2861/001/TECH",32105,"Expenditure:Operational Cost:Printing, Publications and Books",2900,"Other expenditure","_","_",2904,"Other Expenditure",3100,"Planning and development",3105,"Economic Development/Planning","_"," _"," _","O","IE"," _ "," _ "," _ "," _ "," _ "," _ "," _ "," _ "," _ "," _ "," _ "," _ "," _ "," _ "," _ "," _ "," _ "," _ "," _ "," _ ","",null,null," _ "," _ "," _ "," _ "," _ "," _ "," _ "," _ "," _ "," _ "," _ "," _ ","_"," _ "," _ "," _ "," _ ","_"," _ "," _ "," _ "," _ ",null,7,74,"Planning and Development","Economic Development/Planning",null,null,"_","_","_",null,"_",0,0,0,0,0,0,0,0,0,0,0,0,0,0,0,0,0,0,0]
["O1356-1/IE00754/F0041/X098/R2853/001/TECH",1374,"O1356-1/IE00754/F0041/X098/R2853/001/TECH",32094,"Expenditure:Operational Cost:Advertising, Publicity and Marketing:Gifts and Promotional Items",2900,"Other expenditure","_","_",2904,"Other Expenditure",3100,"Planning and development",3105,"Economic Development/Planning","_"," _"," _","O","IE"," _ "," _ "," _ "," _ "," _ "," _ "," _ "," _ "," _ "," _ "," _ "," _ "," _ "," _ "," _ "," _ "," _ "," _ "," _ "," _ ","",null,null," _ "," _ "," _ "," _ "," _ "," _ "," _ "," _ "," _ "," _ "," _ "," _ ","_"," _ "," _ "," _ "," _ ","_"," _ "," _ "," _ "," _ ",null,7,74,"Planning and Development","Economic Development/Planning",null,null,"_","_","_",null,"_",0,0,0,0,0,0,0,0,0,0,0,0,0,0,0,0,0,0,0]
["O1359-1/IE00059/F0041/X006/R0072/001/COMM",16827,"O1359-1/IE00059/F0041/X006/R0072/001/COMM",83724,"Expenditure:Operational Cost:Registration Fees:Seminars, Conferences, Workshops and Events:National",2900,"Other expenditure","_","_",2904,"Other Expenditure",2100,"Community and social services",2106,"Community Halls and Facilities","_"," _"," _","O","IE"," _ "," _ "," _ "," _ "," _ "," _ "," _ "," _ "," _ "," _ "," _ "," _ "," _ "," _ "," _ "," _ "," _ "," _ "," _ "," _ ","",null,null," _ "," _ "," _ "," _ "," _ "," _ "," _ "," _ "," _ "," _ "," _ "," _ ","_"," _ "," _ "," _ "," _ ","_"," _ "," _ "," _ "," _ ",null,3,32,"Community and social services","Community Halls and Facilities",null,null,"_","_","_",null,"_",104500,0,0,0,104500,104500,109203,0,0,0,0,0,0,0,0,0,0,0,0]
["O1359-1/IE00586/F0041/X044/R2853/001/COMM",630,"O1359-1/IE00586/F0041/X044/R2853/001/COMM",31066,"Expenditure:Operational Cost:Remuneration to Ward Committees",2900,"Other expenditure","_","_",2904,"Other Expenditure",1100,"Executive and council",1110,"Mayor and Council","_"," _"," _","O","IE"," _ "," _ "," _ "," _ "," _ "," _ "," _ "," _ "," _ "," _ "," _ "," _ "," _ "," _ "," _ "," _ "," _ "," _ "," _ "," _ ","",null,null," _ "," _ "," _ "," _ "," _ "," _ "," _ "," _ "," _ "," _ "," _ "," _ ","_"," _ "," _ "," _ "," _ ","_"," _ "," _ "," _ "," _ ",null,2,21,"Executive and council","Mayor and Council",null,null,"_","_","_",null,"_",144000,0,0,-48000,96000,104500,109203,10800,12000,0,20400,0,0,0,0,0,0,0,0]
["O1359-1/IE00586/F0041/X044/R2858/001/COMM",635,"O1359-1/IE00586/F0041/X044/R2858/001/COMM",31071,"Expenditure:Operational Cost:Remuneration to Ward Committees",2900,"Other expenditure","_","_",2904,"Other Expenditure",1100,"Executive and council",1110,"Mayor and Council","_"," _"," _","O","IE"," _ "," _ "," _ "," _ "," _ "," _ "," _ "," _ "," _ "," _ "," _ "," _ "," _ "," _ "," _ "," _ "," _ "," _ "," _ "," _ ","",null,null," _ "," _ "," _ "," _ "," _ "," _ "," _ "," _ "," _ "," _ "," _ "," _ ","_"," _ "," _ "," _ "," _ ","_"," _ "," _ "," _ "," _ ",null,2,21,"Executive and council","Mayor and Council",null,null,"_","_","_",null,"_",144000,0,0,-48000,96000,104500,109203,10800,12000,0,22800,2400,0,0,0,0,0,0,0]
["O1359-1/IE00586/F0041/X044/R2862/001/COMM",639,"O1359-1/IE00586/F0041/X044/R2862/001/COMM",31075,"Expenditure:Operational Cost:Remuneration to Ward Committees",2900,"Other expenditure","_","_",2904,"Other Expenditure",1100,"Executive and council",1110,"Mayor and Council","_"," _"," _","O","IE"," _ "," _ "," _ "," _ "," _ "," _ "," _ "," _ "," _ "," _ "," _ "," _ "," _ "," _ "," _ "," _ "," _ "," _ "," _ "," _ ","",null,null," _ "," _ "," _ "," _ "," _ "," _ "," _ "," _ "," _ "," _ "," _ "," _ ","_"," _ "," _ "," _ "," _ ","_"," _ "," _ "," _ "," _ ",null,2,21,"Executive and council","Mayor and Council",null,null,"_","_","_",null,"_",144000,0,0,48000,192000,104500,109203,10800,12000,0,24000,0,0,0,0,0,0,0,0]
["O1359-1/IE00586/F0041/X044/R2865/001/COMM",642,"O1359-1/IE00586/F0041/X044/R2865/001/COMM",31078,"Expenditure:Operational Cost:Remuneration to Ward Committees",2900,"Other expenditure","_","_",2904,"Other Expenditure",1100,"Executive and council",1110,"Mayor and Council","_"," _"," _","O","IE"," _ "," _ "," _ "," _ "," _ "," _ "," _ "," _ "," _ "," _ "," _ "," _ "," _ "," _ "," _ "," _ "," _ "," _ "," _ "," _ ","",null,null," _ "," _ "," _ "," _ "," _ "," _ "," _ "," _ "," _ "," _ "," _ "," _ ","_"," _ "," _ "," _ "," _ ","_"," _ "," _ "," _ "," _ ",null,2,21,"Executive and council","Mayor and Council",null,null,"_","_","_",null,"_",144000,0,0,-48000,96000,104500,109203,10800,12000,0,24000,0,0,0,0,0,0,0,0]
["O1359-1/IE00671/F0041/X006/R0073/001/COMM",16800,"O1359-1/IE00671/F0041/X006/R0073/001/COMM",83697,"Expenditure:Contracted Services:Contractors:Transportation",2700,"Contracted services","2700-003","Contractors",2703,"Contractors",2100,"Community and social services",2106,"Community Halls and Facilities","_"," _"," _","O","IE"," _ "," _ "," _ "," _ "," _ "," _ "," _ "," _ "," _ "," _ "," _ "," _ "," _ "," _ "," _ "," _ "," _ "," _ "," _ "," _ ","",null,null," _ "," _ "," _ "," _ "," _ "," _ "," _ "," _ "," _ "," _ "," _ "," _ ","_"," _ "," _ "," _ "," _ ","_"," _ "," _ "," _ "," _ ",null,3,32,"Community and social services","Community Halls and Facilities",null,null,"_","_","_",null,"_",0,0,0,0,0,0,0,0,0,0,0,0,0,0,0,0,0,0,0]
["O1366-1/IE00081/F0786/X060/R0072/001/Tech",2850,"O1366-1/IE00081/F0786/X060/R0072/001/Tech",52565,"Expenditure:Contracted Services:Consultants and Professional Services:Infrastructure and Planning:Engineering:Electrical",2700,"Contracted services","2700-002","Consultants and Professional Services",2702,"Consultants and Professional Services",1200,"Finance and administration",1202,"Asset Management","_",2010,"National Government","O","IE"," _ "," _ "," _ "," _ "," _ "," _ "," _ "," _ "," _ "," _ "," _ "," _ "," _ "," _ "," _ "," _ "," _ "," _ "," _ "," _ ","",null,null," _ "," _ "," _ "," _ "," _ "," _ "," _ "," _ "," _ "," _ "," _ "," _ ","_"," _ "," _ "," _ "," _ ","_"," _ "," _ "," _ "," _ ",null,1,110,"Finance and Admin","Asset Management",null,null,"_","_","_",null,"_",0,0,0,0,0,0,0,0,0,0,0,0,0,0,0,0,0,0,0]
["O1368-1/IE00634/F0786/X047/R0073/001/Tech",2617,"O1368-1/IE00634/F0786/X047/R0073/001/Tech",52329,"Expenditure:Contracted Services:Contractors:Electrical",2700,"Contracted services","2700-003","Contractors",2703,"Contractors",1200,"Finance and administration",1202,"Asset Management","_",2010,"National Government","O","IE"," _ "," _ "," _ "," _ "," _ "," _ "," _ "," _ "," _ "," _ "," _ "," _ "," _ "," _ "," _ "," _ "," _ "," _ "," _ "," _ ","",null,null," _ "," _ "," _ "," _ "," _ "," _ "," _ "," _ "," _ "," _ "," _ "," _ ","_"," _ "," _ "," _ "," _ ","_"," _ "," _ "," _ "," _ ",null,1,110,"Finance and Admin","Asset Management",null,null,"_","_","_",null,"_",0,0,0,0,0,0,0,0,0,0,0,0,0,0,0,0,0,0,0]
["O1369-8/IE00634/F0786/X035/R0072/001/Tech",4964,"O1369-8/IE00634/F0786/X035/R0072/001/Tech",52938,"Expenditure:Contracted Services:Contractors:Electrical",2700,"Contracted services","2700-003","Contractors",2703,"Contractors",4100,"Energy sources",4101,"Electricity ","_",2010,"National Government","O","IE"," _ "," _ "," _ "," _ "," _ "," _ "," _ "," _ "," _ "," _ "," _ "," _ "," _ "," _ "," _ "," _ "," _ "," _ "," _ "," _ ","",null,null," _ "," _ "," _ "," _ "," _ "," _ "," _ "," _ "," _ "," _ "," _ "," _ ","_"," _ "," _ "," _ "," _ ","_"," _ "," _ "," _ "," _ ",null,6,61,"Energy Sources","Electricity",null,null,"_","_","_",null,"_",0,0,0,0,0,0,0,0,0,0,0,0,0,0,0,0,0,0,0]
["O1369-9/IE00634/F0786/X035/R0072/001/Tech",5221,"O1369-9/IE00634/F0786/X035/R0072/001/Tech",53283,"Expenditure:Contracted Services:Contractors:Electrical",2700,"Contracted services","2700-003","Contractors",2703,"Contractors",4100,"Energy sources",4101,"Electricity ","_",2010,"National Government","O","IE"," _ "," _ "," _ "," _ "," _ "," _ "," _ "," _ "," _ "," _ "," _ "," _ "," _ "," _ "," _ "," _ "," _ "," _ "," _ "," _ ","",null,null," _ "," _ "," _ "," _ "," _ "," _ "," _ "," _ "," _ "," _ "," _ "," _ ","_"," _ "," _ "," _ "," _ ","_"," _ "," _ "," _ "," _ ",null,6,61,"Energy Sources","Electricity",null,null,"_","_","_",null,"_",0,0,0,0,0,0,0,0,0,0,0,0,0,0,0,0,0,0,0]
["O1370-1/IE00081/F0786/X101/R0072/001/Tech",4967,"O1370-1/IE00081/F0786/X101/R0072/001/Tech",52941,"Expenditure:Contracted Services:Consultants and Professional Services:Infrastructure and Planning:Engineering:Electrical",2700,"Contracted services","2700-002","Consultants and Professional Services",2702,"Consultants and Professional Services",3100,"Planning and development",3107,"Town Planning, Building Regulations and Enforcement, and City Engineer","_",2010,"National Government","O","IE"," _ "," _ "," _ "," _ "," _ "," _ "," _ "," _ "," _ "," _ "," _ "," _ "," _ "," _ "," _ "," _ "," _ "," _ "," _ "," _ ","",null,null," _ "," _ "," _ "," _ "," _ "," _ "," _ "," _ "," _ "," _ "," _ "," _ ","_"," _ "," _ "," _ "," _ ","_"," _ "," _ "," _ "," _ ",null,7,72,"Planning and Development","Town Planning, Building Regulations and Enforcement, and City Engineer",null,null,"_","_","_",null,"_",0,0,0,0,0,0,0,0,0,0,0,0,0,0,0,0,0,0,0]
["O1540-2/IE00650/F0041/X051/R0072/001/CORP",4836,"O1540-2/IE00650/F0041/X051/R0072/001/CORP",52927,"Expenditure:Contracted Services:Contractors:Maintenance of Equipment",2700,"Contracted services","2700-003","Contractors",2703,"Contractors",1200,"Finance and administration",1206,"Human Resources","_"," _"," _","O","IE"," _ "," _ "," _ "," _ "," _ "," _ "," _ "," _ "," _ "," _ "," _ "," _ "," _ "," _ "," _ "," _ "," _ "," _ "," _ "," _ ","",null,null," _ "," _ "," _ "," _ "," _ "," _ "," _ "," _ ",1470,"Computer Equipment",1470,"Computer Equipment","RM"," _ "," _ "," _ "," _ ","_"," _ "," _ "," _ "," _ ",null,1,16,"Finance and Admin","Human Resources",null,null,"_","_","_",null,"_",0,0,0,0,0,0,0,0,0,0,0,0,0,0,0,0,0,0,0]
["O1540-2/IE00650/F0041/X051/R0072/001/FIN",5354,"O1540-2/IE00650/F0041/X051/R0072/001/FIN",52926,"Expenditure:Contracted Services:Contractors:Maintenance of Equipment",2700,"Contracted services","2700-003","Contractors",2703,"Contractors",1200,"Finance and administration",1206,"Human Resources","_"," _"," _","O","IE"," _ "," _ "," _ "," _ "," _ "," _ "," _ "," _ "," _ "," _ "," _ "," _ "," _ "," _ "," _ "," _ "," _ "," _ "," _ "," _ ","",null,null," _ "," _ "," _ "," _ "," _ "," _ "," _ "," _ ",1470,"Computer Equipment",1470,"Computer Equipment","RM"," _ "," _ "," _ "," _ ","_"," _ "," _ "," _ "," _ ",null,1,16,"Finance and Admin","Human Resources",null,null,"_","_","_",null,"_",0,0,0,0,0,0,0,0,0,0,0,0,0,0,0,0,0,0,0]
["O1550-2/IE00650/F0041/X047/R0073/001/Tech",18681,"O1550-2/IE00650/F0041/X047/R0073/001/Tech",85583,"Expenditure:Contracted Services:Contractors:Maintenance of Equipment",2700,"Contracted services","2700-003","Contractors",2703,"Contractors",1200,"Finance and administration",1202,"Asset Management","_"," _"," _","O","IE"," _ "," _ "," _ "," _ "," _ "," _ "," _ "," _ "," _ "," _ "," _ "," _ "," _ "," _ "," _ "," _ "," _ "," _ "," _ "," _ ","",null,null," _ "," _ "," _ "," _ "," _ "," _ "," _ "," _ ",1510,"Machinery and Equipment",1510,"Machinery and Equipment","RM"," _ "," _ "," _ "," _ ","_"," _ "," _ "," _ "," _ ",null,1,110,"Finance and Admin","Asset Management",null,null,"_","_","_",null,"_",250750,0,0,0,250750,209000,218405,0,0,0,0,0,0,0,23200,0,0,0,0]
["O3614/IR01049/F2496/X049/R0073/001/FIN",402,"O3614/IR01049/F2496/X049/R0073/001/FIN",30835,"Revenue:Non-exchange Revenue:Property Rates:Residential Properties:Developed",200,"Property rates",200,"Rates"," _ "," _ ",1200,"Finance and administration",1204,"Finance","_"," _"," _","O","IR"," _ "," _ "," _ "," _ "," _ "," _ "," _ "," _ "," _ "," _ "," _ "," _ "," _ "," _ "," _ "," _ "," _ "," _ "," _ "," _ ","",null,null," _ "," _ "," _ "," _ "," _ "," _ "," _ "," _ "," _ "," _ "," _ "," _ ","_"," _ "," _ "," _ "," _ ","_"," _ "," _ "," _ "," _ ",null,1,12,"Finance and Admin","Finance",null,null,"_","_","_",null,"_",0,0,0,0,0,0,0,0,0,0,0,0,0,0,0,0,0,0,0]

{"sheet":"Sheet2","index":1,"n_rows":1,"n_cols":11,"rows_kept":1,"cut":false,"hidden":true,"merged":[]}
["StandardName","Ref","S71_OriginalBudAmount","S71_PriorAdjustedAmount","S71_MultiYearCapAmount","S71_NatOrProvAmnt","S71_OtherAdjustmentsAmount","S71_TotalAdjustmentsAmount","S71_AdjustedBudgetAmount","S71_OY1AdjustedBudgetAmount","S71_OY2AdjustedBudgetAmount"]

{"sheet":"Sheet3","index":2,"n_rows":1,"n_cols":11,"rows_kept":1,"cut":false,"hidden":true,"merged":[]}
["StandardName","Ref","S71_OriginalBudAmount","S71_PriorAdjustedAmount","S71_MultiYearCapAmount","S71_NatOrProvAmnt","S71_OtherAdjustmentsAmount","S71_TotalAdjustmentsAmount","S71_AdjustedBudgetAmount","S71_OY1AdjustedBudgetAmount","S71_OY2AdjustedBudgetAmount"]

{"sheet":"Sheet4","index":3,"n_rows":4,"n_cols":11,"rows_kept":4,"cut":false,"hidden":true,"merged":[]}
["StandardName","Ref","S71_OriginalBudAmount","S71_PriorAdjustedAmount","S71_MultiYearCapAmount","S71_NatOrProvAmnt","S71_OtherAdjustmentsAmount","S71_TotalAdjustmentsAmount","S71_AdjustedBudgetAmount","S71_OY1AdjustedBudgetAmount","S71_OY2AdjustedBudgetAmount"]
[" Municipal Infrastructure Grant (MIG)","_",-35297947,0,0,0,32080909,32080909,-32080909,-35007500,-36582838]
["Integrated National Electrification Programme Grant","_",-12500000,0,0,0,12500000,12500000,-12500000,-11000000,-11000000]
["KwaZulu-Natal_Capacity Building and Other_Capacity Building and Other_RECEIPTS","_",0,0,0,0,4720000,4720000,-4720000,0,0]

{"sheet":"Sheet5","index":4,"n_rows":4,"n_cols":11,"rows_kept":4,"cut":false,"hidden":true,"merged":[]}
["StandardName","Ref","S71_OriginalBudAmount","S71_PriorAdjustedAmount","S71_MultiYearCapAmount","S71_NatOrProvAmnt","S71_OtherAdjustmentsAmount","S71_TotalAdjustmentsAmount","S71_AdjustedBudgetAmount","S71_OY1AdjustedBudgetAmount","S71_OY2AdjustedBudgetAmount"]
["EPWP Incentive","_",-1759000,0,0,0,1759000,1759000,-1759000,0,0]
["Finance Management ","_",-1850000,0,0,0,1850000,1850000,-1850000,-1850000,-1850000]
["Municipal Infrastructure Grant","_",-1456053,0,0,0,673091,673091,-673091,0,0]

{"sheet":"Sheet6","index":5,"n_rows":1,"n_cols":11,"rows_kept":1,"cut":false,"hidden":true,"merged":[]}
["StandardName","Ref","S71_OriginalBudAmount","S71_PriorAdjustedAmount","S71_MultiYearCapAmount","S71_NatOrProvAmnt","S71_OtherAdjustmentsAmount","S71_TotalAdjustmentsAmount","S71_AdjustedBudgetAmount","S71_OY1AdjustedBudgetAmount","S71_OY2AdjustedBudgetAmount"]

{"sheet":"Sheet7","index":6,"n_rows":1,"n_cols":11,"rows_kept":1,"cut":false,"hidden":true,"merged":[]}
["StandardName","Ref","S71_OriginalBudAmount","S71_PriorAdjustedAmount","S71_MultiYearCapAmount","S71_NatOrProvAmnt","S71_OtherAdjustmentsAmount","S71_TotalAdjustmentsAmount","S71_AdjustedBudgetAmount","S71_OY1AdjustedBudgetAmount","S71_OY2AdjustedBudgetAmount"]

{"sheet":"Sheet8","index":7,"n_rows":2,"n_cols":11,"rows_kept":2,"cut":false,"hidden":true,"merged":[]}
["StandardName","Ref","S71_OriginalBudAmount","S71_PriorAdjustedAmount","S71_MultiYearCapAmount","S71_NatOrProvAmnt","S71_OtherAdjustmentsAmount","S71_TotalAdjustmentsAmount","S71_AdjustedBudgetAmount","S71_OY1AdjustedBudgetAmount","S71_OY2AdjustedBudgetAmount"]
["KwaZulu-Natal_Capacity Building and Other_Capacity Building and Other_RECEIPTS","_",0,0,0,0,4720000,4720000,-4720000,0,0]

{"sheet":"Sheet9","index":8,"n_rows":2,"n_cols":11,"rows_kept":2,"cut":false,"hidden":true,"merged":[]}
["StandardName","Ref","S71_OriginalBudAmount","S71_PriorAdjustedAmount","S71_MultiYearCapAmount","S71_NatOrProvAmnt","S71_OtherAdjustmentsAmount","S71_TotalAdjustmentsAmount","S71_AdjustedBudgetAmount","S71_OY1AdjustedBudgetAmount","S71_OY2AdjustedBudgetAmount"]
["KwaZulu-Natal_Capacity Building and Other_Specify (Add grant description)_Receipts","_",-2795000,0,0,0,2795000,2795000,-2795000,-2933000,-2933000]

{"sheet":"Sheet10","index":9,"n_rows":1,"n_cols":11,"rows_kept":1,"cut":false,"hidden":true,"merged":[]}
["StandardName","Ref","S71_OriginalBudAmount","S71_PriorAdjustedAmount","S71_MultiYearCapAmount","S71_NatOrProvAmnt","S71_OtherAdjustmentsAmount","S71_TotalAdjustmentsAmount","S71_AdjustedBudgetAmount","S71_OY1AdjustedBudgetAmount","S71_OY2AdjustedBudgetAmount"]

{"sheet":"Sheet11","index":10,"n_rows":1,"n_cols":11,"rows_kept":1,"cut":false,"hidden":true,"merged":[]}
["StandardName","Ref","S71_OriginalBudAmount","S71_PriorAdjustedAmount","S71_MultiYearCapAmount","S71_NatOrProvAmnt","S71_OtherAdjustmentsAmount","S71_TotalAdjustmentsAmount","S71_AdjustedBudgetAmount","S71_OY1AdjustedBudgetAmount","S71_OY2AdjustedBudgetAmount"]

{"sheet":"Sheet12","index":11,"n_rows":4,"n_cols":11,"rows_kept":4,"cut":false,"hidden":true,"merged":[]}
["StandardName","Ref","S71_OriginalBudAmount","S71_PriorAdjustedAmount","S71_MultiYearCapAmount","S71_NatOrProvAmnt","S71_OtherAdjustmentsAmount","S71_TotalAdjustmentsAmount","S71_AdjustedBudgetAmount","S71_OY1AdjustedBudgetAmount","S71_OY2AdjustedBudgetAmount"]
["Integrated National Electrification Programme Grant","_",12500000,0,0,0,-12500000,-12500000,12500000,11000000,11000000]
["KwaZulu-Natal","_",1871000,0,0,0,-6591000,-6591000,6591000,1964000,1964000]
["Municipal Infrastructure Grant","_",35297947,0,0,0,-32080909,-32080909,32080909,35007500,36582838]

{"sheet":"Sheet13","index":12,"n_rows":4,"n_cols":11,"rows_kept":4,"cut":false,"hidden":true,"merged":[]}
["StandardName","Ref","S71_OriginalBudAmount","S71_PriorAdjustedAmount","S71_MultiYearCapAmount","S71_NatOrProvAmnt","S71_OtherAdjustmentsAmount","S71_TotalAdjustmentsAmount","S71_AdjustedBudgetAmount","S71_OY1AdjustedBudgetAmount","S71_OY2AdjustedBudgetAmount"]
["Expanded Public Works Programme Integrated Grant","_",1759000,0,0,0,-1759000,-1759000,1759000,0,0]
["Local Government Financial Management Grant","_",1850000,0,0,0,-1850000,-1850000,1850000,1850000,1850000]
["Municipal Infrastructure Grant","_",1456053,0,0,0,-673091,-673091,673091,0,0]

{"sheet":"Sheet14","index":13,"n_rows":1,"n_cols":11,"rows_kept":1,"cut":false,"hidden":true,"merged":[]}
["StandardName","Ref","S71_OriginalBudAmount","S71_PriorAdjustedAmount","S71_MultiYearCapAmount","S71_NatOrProvAmnt","S71_OtherAdjustmentsAmount","S71_TotalAdjustmentsAmount","S71_AdjustedBudgetAmount","S71_OY1AdjustedBudgetAmount","S71_OY2AdjustedBudgetAmount"]

{"sheet":"Sheet15","index":14,"n_rows":1,"n_cols":11,"rows_kept":1,"cut":false,"hidden":true,"merged":[]}
["StandardName","Ref","S71_OriginalBudAmount","S71_PriorAdjustedAmount","S71_MultiYearCapAmount","S71_NatOrProvAmnt","S71_OtherAdjustmentsAmount","S71_TotalAdjustmentsAmount","S71_AdjustedBudgetAmount","S71_OY1AdjustedBudgetAmount","S71_OY2AdjustedBudgetAmount"]

{"sheet":"Sheet16","index":15,"n_rows":2,"n_cols":11,"rows_kept":2,"cut":false,"hidden":true,"merged":[]}
["StandardName","Ref","S71_OriginalBudAmount","S71_PriorAdjustedAmount","S71_MultiYearCapAmount","S71_NatOrProvAmnt","S71_OtherAdjustmentsAmount","S71_TotalAdjustmentsAmount","S71_AdjustedBudgetAmount","S71_OY1AdjustedBudgetAmount","S71_OY2AdjustedBudgetAmount"]
["KwaZulu-Natal","_",1871000,0,0,0,-6591000,-6591000,6591000,1964000,1964000]

{"sheet":"Sheet17","index":16,"n_rows":2,"n_cols":11,"rows_kept":2,"cut":false,"hidden":true,"merged":[]}
["StandardName","Ref","S71_OriginalBudAmount","S71_PriorAdjustedAmount","S71_MultiYearCapAmount","S71_NatOrProvAmnt","S71_OtherAdjustmentsAmount","S71_TotalAdjustmentsAmount","S71_AdjustedBudgetAmount","S71_OY1AdjustedBudgetAmount","S71_OY2AdjustedBudgetAmount"]
["KwaZulu-Natal","_",9934000,0,0,0,-9934000,-9934000,9934000,8019080,8104589]

{"sheet":"Sheet18","index":17,"n_rows":33,"n_cols":18,"rows_kept":33,"cut":false,"hidden":true,"merged":[]}
["Function","ProjectDescription","ProjectNumber","Type","MTSFServiceOutcome","IUDF","OwnStrategicObjective","AssetClass","AssetSubClass","WardLocation","GPSLongitude","GPSLatitude","S71_ASBudgetAmount","S71_AdjustmentBudAmnt","S71_OY1BudgetAmount","S71_OY1AdjustmentBudAmnt","S71_OY2BudgetAmount","S71_OY2AdjustmentBudAmnt"]
["0e51e5d3-5805-402b-a5dc-3b94852c29c0","Take on","PC002002001003001001000000000000000000_00003","_","An efficient, effective and development-oriented public service","Governance","Comply with financial reporting as outlined in the MFMA","Operational Buildings","Municipal Offices","4d0b14f1-65a9-4c59-b08d-9b23b7f96001",1,1,616390,616390,0,0,0,0]
["0e51e5d3-5805-402b-a5dc-3b94852c29c0","Take on","PC002003005000000000000000000000000000_00003","_","An efficient, effective and development-oriented public service","Growth","Comply with financial reporting as outlined in the MFMA","Furniture and Office Equipment","Furniture and Office Equipment","4d0b14f1-65a9-4c59-b08d-9b23b7f96001",1,1,600000,600000,1045000,1045000,1092026,1092026]
["0e51e5d3-5805-402b-a5dc-3b94852c29c0","Take on","PC002003007002004000000000000000000000_00001","_","An efficient, effective and development-oriented public service","Growth","Comply with financial reporting as outlined in the MFMA","Licences and Rights","Computer Software and Applications","db24da82-fec4-4890-9764-e40d385ba41f",1,1,1175600,1175600,1045000,1045000,1092026,1092026]
["0e51e5d3-5805-402b-a5dc-3b94852c29c0","Take on","PC002003010000000000000000000000000000_00001","_","An efficient, effective and development-oriented public service","Growth","Comply with financial reporting as outlined in the MFMA","Transport Assets","Transport Assets","4d0b14f1-65a9-4c59-b08d-9b23b7f96001",1,1,2805000,2805000,1045000,1045000,1092026,1092026]
["24184d52-b9a8-4cef-83da-d1d50994250d","Take on","PC002003004000000000000000000000000000_00002","_","An efficient, effective and development-oriented public service","Growth","Comply with financial reporting as outlined in the MFMA","Computer Equipment","Computer Equipment","db24da82-fec4-4890-9764-e40d385ba41f",1,1,300000,300000,418000,418000,436810,436810]
["24184d52-b9a8-4cef-83da-d1d50994250d","Take on","PC002003009000000000000000000000000000_00001","_","An efficient, effective and development-oriented public service","Growth","Comply with financial reporting as outlined in the MFMA","Machinery and Equipment","Machinery and Equipment","db24da82-fec4-4890-9764-e40d385ba41f",1,1,3580000,3580000,3135000,3135000,3276076,3276076]
["315a0f4d-28ad-4cd2-a4a5-afb34a6a8e1f","Mvelabusha Community hall","PC002003002001002000000000000000000000_00002","_","An efficient, effective and development-oriented public service","Growth","To provide and improve access to community/public facilities to minimum standards","Community Facilities","Centres","18d3daa3-2b72-4674-a97c-e51f094b3b26",1,1,8000000,8000000,0,0,0,0]
["6fa14a15-a164-42cb-a263-a0b007852bc5","Kosi Bay Fish Market","PC002003002001017000000000000000000000_00002","_","An efficient, effective and development-oriented public service","Growth","To provide and improve access to community/public facilities to minimum standards","Community Facilities","Markets","0e364662-43b4-49bf-bf31-db50b979bae5",1,1,3440000,3440000,0,0,0,0]
["6fa14a15-a164-42cb-a263-a0b007852bc5","Manguzi Multi Purpose centre","PC002003002001001000000000000000000000_00006","_","An efficient, effective and development-oriented public service","Growth","To provide and improve access to community/public facilities to minimum standards","Community Facilities","Halls","7e864812-36a2-4f83-9457-5300f078fe49",1,1,10000000,10000000,18810000,18810000,19656450,19656450]
["6fa14a15-a164-42cb-a263-a0b007852bc5","OPEX - TECH","PC002003002001017000000000000000000000_00001","_","An efficient, effective and development-oriented public service","Growth","To enhance effective internal control and standard operating","Community Facilities","Markets","ac829b4e-5122-49f2-adbc-00b49ee429d7",2464686800896,528582541312,6000000,6000000,0,0,0,0]
["81039af3-bf16-404d-8908-6abf7eaa337a","Jikijela Electrification","PC001002001008000000000000000000000000_00013","_","An efficient, competitive and responsive economic infrastructure network","Growth","To develop long term infrastructure development plans","Electrical Infrastructure","LV Networks","f5fe2e5c-37d8-4178-bcbb-845cd012603c",1,1,6000000,6000000,8360000,8360000,8736200,8736200]
["81039af3-bf16-404d-8908-6abf7eaa337a","Jikijela Electrification","PD000000000000000000000000000000000000","_","Responsive, accountable, effective and efficient local government","Governance","To develop long term infrastructure development plans",null,null,"8b933617-88a7-4241-a453-db545788e8f6",1,1,4575000,4575000,10039866,10039866,10491660,10491660]
["81039af3-bf16-404d-8908-6abf7eaa337a","Kwasonto Electrification","PD000000000000000000000000000000000000","_","Responsive, accountable, effective and efficient local government","Governance","To develop long term infrastructure development plans",null,null,"14e8b541-26ab-4bf5-adc7-7721b8e3f1a7",1,1,5837143,5837143,0,0,0,0]
["81039af3-bf16-404d-8908-6abf7eaa337a","Mahlungulu Electrification","PD000000000000000000000000000000000000","_","Responsive, accountable, effective and efficient local government","Governance","To develop long term infrastructure development plans",null,null,"0e364662-43b4-49bf-bf31-db50b979bae5",1,1,0,0,5225000,5225000,5460125,5460125]
["81039af3-bf16-404d-8908-6abf7eaa337a","Update Supplier Database","PD000000000000000000000000000000000000","_","Responsive, accountable, effective and efficient local government","Governance","Comply with MFMA, SCM regulations and related legislations",null,null,"7e864812-36a2-4f83-9457-5300f078fe49",10000000,10000000,2087857,2087857,1455134,1455134,1520615,1520615]
["84c380c3-3b7f-4f6e-b3e1-ca680365dc85","Take on","PC001001001002001000000000000000000000_00002","_","An efficient, competitive and responsive economic infrastructure network","Inclusion and access","Comply with financial reporting as outlined in the MFMA","Solid Waste Infrastructure","Landfill Sites","4d0b14f1-65a9-4c59-b08d-9b23b7f96001",1,1,0,0,418000,418000,436810,436810]
["be26bea6-58e3-4497-b52c-0bf597208207","Internal Roads","PC001002006001000000000000000000000000_00040","_","An efficient, competitive and responsive economic infrastructure network","Growth","To provide and improve access to community/public facilities to minimum standards","Roads Infrastructure","Roads","80aeec6d-8b40-4f3f-8201-2be4c8c23cc4",0,0,10720244,10720244,0,0,0,0]
["be26bea6-58e3-4497-b52c-0bf597208207","Internal Roads","PC001002006001000000000000000000000000_00041","_","An efficient, competitive and responsive economic infrastructure network","Growth","To provide and improve access to community/public facilities to minimum standards","Roads Infrastructure","Roads","f5fe2e5c-37d8-4178-bcbb-845cd012603c",0,0,1914382,1914382,7315000,7315000,7644176,7644176]
["be26bea6-58e3-4497-b52c-0bf597208207","Internal Roads","PC001002006001000000000000000000000000_00042","_","An efficient, competitive and responsive economic infrastructure network","Growth","To provide and improve access to community/public facilities to minimum standards","Roads Infrastructure","Roads","f5fe2e5c-37d8-4178-bcbb-845cd012603c",0,0,925736,925736,0,0,0,0]
["be26bea6-58e3-4497-b52c-0bf597208207","Internal Roads","PC001002006001000000000000000000000000_00043","_","An efficient, competitive and responsive economic infrastructure network","Growth","To provide and improve access to community/public facilities to minimum standards","Roads Infrastructure","Roads","80aeec6d-8b40-4f3f-8201-2be4c8c23cc4",0,0,220500,220500,0,0,0,0]
["be26bea6-58e3-4497-b52c-0bf597208207","Internal Roads","PC001002006001000000000000000000000000_00044","_","An efficient, competitive and responsive economic infrastructure network","Growth","To provide and improve access to community/public facilities to minimum standards","Roads Infrastructure","Roads","0050f5e8-4683-4240-a3a7-9d3b86aaf151",0,0,187650,187650,0,0,0,0]
["be26bea6-58e3-4497-b52c-0bf597208207","Internal Roads","PC001002006001000000000000000000000000_00045","_","An efficient, competitive and responsive economic infrastructure network","Growth","To provide and improve access to community/public facilities to minimum standards","Roads Infrastructure","Roads","18d3daa3-2b72-4674-a97c-e51f094b3b26",0,0,9668458,9668458,12540000,12540000,13104300,13104300]
["be26bea6-58e3-4497-b52c-0bf597208207","Manzengwenya Access Road","PC001002006001000000000000000000000000_00006","_","An efficient, competitive and responsive economic infrastructure network","Growth","To provide access and facilitate vehicular movement in Umhlabuyalingana","Roads Infrastructure","Roads","0050f5e8-4683-4240-a3a7-9d3b86aaf151",1,1,377938,377938,10450000,10450000,10920250,10920250]
["be26bea6-58e3-4497-b52c-0bf597208207","Masakeni Access roads","PC001002006001000000000000000000000000_00035","_","An efficient, competitive and responsive economic infrastructure network","Growth","To provide access and facilitate vehicular movement in Umhlabuyalingana","Roads Infrastructure","Roads","f42ea6fa-a83e-4a3a-89b1-ca0bdab820ab",1,1,9821304,9821304,0,0,0,0]
["be26bea6-58e3-4497-b52c-0bf597208207","Masakeni Access roads","PC001002006001000000000000000000000000_00036","_","An efficient, competitive and responsive economic infrastructure network","Growth","To provide access and facilitate vehicular movement in Umhlabuyalingana","Roads Infrastructure","Roads","7e864812-36a2-4f83-9457-5300f078fe49",1,1,5400000,5400000,0,0,0,0]
["be26bea6-58e3-4497-b52c-0bf597208207","Masakeni Access roads","PC001002006001000000000000000000000000_00037","_","An efficient, competitive and responsive economic infrastructure network","Growth","To provide access and facilitate vehicular movement in Umhlabuyalingana","Roads Infrastructure","Roads","14e8b541-26ab-4bf5-adc7-7721b8e3f1a7",1,1,10860038,10860038,0,0,0,0]
["be26bea6-58e3-4497-b52c-0bf597208207","Update Supplier Database","PC001002006001000000000000000000000000_00022","_","An efficient, competitive and responsive economic infrastructure network","Growth","Comply with MFMA, SCM regulations and related legislations","Roads Infrastructure","Roads","da95d68a-30f4-472a-9194-058a87c5e6c5",10000000,10000000,1754918,1754918,0,0,0,0]
["be26bea6-58e3-4497-b52c-0bf597208207","Update Supplier Database","PC001002006001000000000000000000000000_00023","_","An efficient, competitive and responsive economic infrastructure network","Growth","Comply with MFMA, SCM regulations and related legislations","Roads Infrastructure","Roads","f42ea6fa-a83e-4a3a-89b1-ca0bdab820ab",10000000,10000000,11397202,11397202,12540000,12540000,13104300,13104300]
["be26bea6-58e3-4497-b52c-0bf597208207","Update Supplier Database","PC001002006001000000000000000000000000_00024","_","An efficient, competitive and responsive economic infrastructure network","Growth","Comply with MFMA, SCM regulations and related legislations","Roads Infrastructure","Roads","e80c49f5-3393-435e-94f8-5013e8b5d48d",10000000,10000000,264136,264136,14630000,14630000,15288350,15288350]
["be26bea6-58e3-4497-b52c-0bf597208207","Update Supplier Database","PC001002006001000000000000000000000000_00025","_","An efficient, competitive and responsive economic infrastructure network","Growth","Comply with MFMA, SCM regulations and related legislations","Roads Infrastructure","Roads","7e864812-36a2-4f83-9457-5300f078fe49",10000000,10000000,649998,649998,12540000,12540000,13104300,13104300]
["d322a6d8-8a77-4f3e-b409-e49df0b85989","Take on","PC002003009000000000000000000000000000_00011","_","An efficient, effective and development-oriented public service","Growth","Comply with financial reporting as outlined in the MFMA","Machinery and Equipment","Machinery and Equipment","80aeec6d-8b40-4f3f-8201-2be4c8c23cc4",1,1,300000,300000,418000,418000,436810,436810]
["e63908e9-4e7e-4455-ad95-2721683b34a9","Ngutshana sportfield","PC002003002002002000000000000000000000_00003","_","A long and healthy life for all South Africans","Growth","To provide and improve access to community/public facilities to minimum standards","Sport and Recreation Facilities","Outdoor Facilities","420d5704-0872-496a-ab68-bbf1fecda195",1,1,0,0,4180000,4180000,4368100,4368100]

{"sheet":"START","index":18,"n_rows":1,"n_cols":1,"rows_kept":1,"cut":false,"hidden":false,"merged":[]}
[{"$f":"muni","v":"EC139 Enoch Mgijima"}]

{"sheet":"Instructions","index":19,"n_rows":38,"n_cols":24,"rows_kept":38,"cut":false,"hidden":false,"merged":[]}
[]
[null,null,null,2020]
[]
[null,null,null,null,null,null,null,null,null,null,null,null,null,null,null,null,null,null,null,null,null,null,null,"Yes"]
[null,null,null,null,null,null,null,null,null,null,null,null,null,null,null,null,null,null,null,null,null,null,null,"No"]
[]
[null,null,null,null,null,null,null,null,null,null,null,null,null,null,null,null,null,null,null,null,null,null,"Type of Entities Range:","Parent Municipality"]
[null,null,null,null,null,null,null,null,null,null,null,null,null,null,null,null,null,null,null,null,null,null,null,"Consolidated Information"]
[]
[null,null,null,null,null,null,null,null,null,null,null,null,null,null,null,null,null,null,null,null,null,null,"Date of Adjustment",""]
[]
[]
[]
[]
[]
[]
[]
[]
[null,null,null,null,null,null,null,null,null,null,null,null,null,null,null,null,null,null,null,null,null,null,"MTREF Range:",2013]
[null,null,null,null,null,null,null,null,null,null,null,null,null,null,null,null,null,null,null,null,null,null,null,2014]
[null,null,null,null,null,null,null,null,null,null,null,null,null,null,null,null,null,null,null,null,null,null,null,2015]
[null,null,null,null,null,null,null,null,null,null,null,null,null,null,null,null,null,null,null,null,null,null,null,2016]
[null,null,null,null,null,null,null,null,null,null,null,null,null,null,null,null,null,null,null,null,null,null,null,2017]
[null,null,null,null,null,null,null,null,null,null,null,null,null,null,null,null,null,null,null,null,null,null,null,2018]
[null,null,null,null,null,null,null,null,null,null,null,null,null,null,null,null,null,null,null,null,null,null,null,2019]
[null,null,null,null,null,null,null,null,null,null,null,null,null,null,null,null,null,null,null,null,null,null,null,2020]
[null,null,null,null,null,null,null,null,null,null,null,null,null,null,null,null,null,null,null,null,null,null,null,2021]
[null,null,null,null,null,null,null,null,null,null,null,null,null,null,null,null,null,null,null,null,null,null,null,2022]
[null,null,null,null,null,null,null,null,null,null,null,null,null,null,null,null,null,null,null,null,null,null,null,2023]
[null,null,null,null,null,null,null,null,null,null,null,null,null,null,null,null,null,null,null,null,null,null,null,2024]
[null,null,null,null,null,null,null,null,null,null,null,null,null,null,null,null,null,null,null,null,null,null,null,2025]
[null,null,null,null,null,null,null,null,null,null,null,null,null,null,null,null,null,null,null,null,null,null,null,2026]
[null,null,null,null,null,null,null,null,null,null,null,null,null,null,null,null,null,null,null,null,null,null,"MTREF Linked:"]
[null,null,null,null,null,null,null,null,null,null,null,null,null,null,null,null,null,null,null,null,null,null,"MTREF:"]
[null,null,null,null,null,null,null,null,null,null,null,null,null,null,null,null,null,null,null,null,null,null,null,9]
[null,null,null,null,null,null,null,null,null,null,null,null,null,null,null,null,null,null,null,null,null,null,"Fin Year:",{"$f":"INDEX(X19:X33,X35,1)","v":2021}]
[]
[null,null,null,null,null,null,null,null,null,null,null,null,null,null,null,null,null,null,null,null,null,null,null,{"$f":"MTREF&\"/\"&RIGHT(MTREF,2)+1","v":"2021/22"}]

{"sheet":"Template names","index":20,"n_rows":101,"n_cols":6,"rows_kept":101,"cut":false,"hidden":true,"merged":[[0,0,0,3],[61,0,61,3],[65,0,65,1]]}
["Common sheet headings"]
["Head1",{"$f":"HLOOKUP(MTREF,Headings,2)","v":"2020/21"},"Prior year -1"]
["Head1A",{"$f":"HLOOKUP(MTREF,Headings,3)","v":"2019/20"},"Prior year -2"]
["Head1B",{"$f":"HLOOKUP(MTREF,Headings,4)","v":"2018/19"},"Prior year -3"]
["Head2",{"$f":"HLOOKUP(MTREF,Headings,7)","v":"Budget Year 2021/22"},"Year of approved budget"]
["Head2A",{"$f":"HLOOKUP(MTREF,Headings,6)","v":"2021/22"},"Approved budget year"]
["Head3",{"$f":"HLOOKUP(MTREF,Headings,5)","v":"2021/22 Medium Term Revenue & Expenditure Framework"},"MTREF header name"]
["Head3A","Medium Term Revenue and Expenditure Framework"]
["Head4","Current year"]
["Head5","Audited Outcome"]
["Head5A","Outcome"]
["Head5B","Pre-audit outcome"]
["Head6","Original Budget"]
["Head7","Adjusted Budget"]
["Head8","Full Year Forecast"]
["Head9",{"$f":"HLOOKUP(MTREF,Headings,7)","v":"Budget Year 2021/22"},"1st year of MTREF","Year1"]
["Head10",{"$f":"HLOOKUP(MTREF,Headings,8)","v":"Budget Year +1 2022/23"},"2nd year of MTREF","Year2"]
["Head11",{"$f":"HLOOKUP(MTREF,Headings,9)","v":"Budget Year +2 2023/24"},"3rd year of MTREF","Year3"]
["Head24","Description",null,"Desc"]
["Head26","Vote Description",null,"VDesc"]
["Head27","Ref"]
["Head27a","References"]
["Head28","Surplus/ (Deficit) for the year",null,"Result"]
["Head29","Annual target 2007/08"]
["Head30","Revised target 2007/08"]
["Head31","Quarter ended 30 September"]
["Head32","Quarter ended 31 December"]
["Head33","Quarter ended 31 March"]
["Head34","Quarter ended 30 June"]
["Head35","Variance explanation"]
["Head36","YTD  Actual 31 Dec"]
["Head37","YTD  Budget 31 Dec"]
["Head38","Monthly actual"]
["Head39","YearTD actual"]
["Head40","YearTD budget"]
["Head41","YTD variance"]
["Head42","Surplus/ (Deficit) for the yr/period"]
["Head43",{"$f":"Head3&\" Summary\"","v":"2021/22 Medium Term Revenue & Expenditure Framework Summary"}]
["Head44","2001 Census"]
["Head45","2011 Census"]
["Head46"," - Adjustments Budget - January 2007"]
["Head47","Previous target year to complete"]
["Head48","Present value"]
["Head49"]
["Head50","Other Adjusts."]
["Head51","Accum. Funds"]
["Head52","Multi-year capital"]
["Head53","Unfore. Unavoid."]
["Head54","Prior Adjusted"]
["Head55","Nat. or Prov. Govt"]
["Head56","Total Adjusts."]
["Head57","Month DD, YYYY - "]
["Head58","Parent muni."]
["Head59","Downward adjusts"]
["SFPerf1","Budgeted Financial Performance"]
["SFPerf2","Forecast Financial Performance"]
["SFPos1","Budgeted Financial Position"]
["SFPos2","Forecast Financial Position"]
["Cash1","Budget Cash Flow"]
["Cash2","Forecast Cash Flow"]
["RandM","Expenditure includes repairs & maintenance of R'000"]
["Standard nomenclature"]
["Muni",{"$f":"'Lookup and lists'!B28","v":"EC139 Enoch Mgijima"}]
["Municipal Entities",2,"Type of report:",3]
[{"$f":"IF((MuniEntities=1)*(MuniType=2),\"YES\",\"NO\")","v":"NO"},"Does this municipality have entities (consolidated budget and entity budgets required)? YES/NO"]
["Mid Year Review/Adjustment Budget schedules & tables",null,null,null,"Consolidated header","Parent municipality header"]
["ADJSum",{"$f":"D67&IF(Consolques=\"YES\",E67,F67)","v":"Table B1 Adjustments Budget Summary"},null,"Table B1 ",{"$f":"\"Consolidated \"&F67","v":"Consolidated Adjustments Budget Summary"},{"$f":"\"Adjustments Budget Summary\"","v":"Adjustments Budget Summary"}]
["ADJ2","Table B3 Adjustments Budget Financial Performance (revenue and expenditure by municipal vote)",null,"Table B3 ",{"$f":"\"Consolidated \"&F68","v":"Consolidated Adjustments Budget Financial Performance (revenue and expenditure by municipal vote)"},{"$f":"\"Adjustments Budget Financial Performance (revenue and expenditure by municipal vote)\"","v":"Adjustments Budget Financial Performance (revenue and expenditure by municipal vote)"}]
["ADJ3","Table B2 Adjustments Budget Financial Performance (functional classification)",null,"Table B2 ","Consolidated Adjustments Budget Financial Performance (functional classification)",{"$f":"\"Adjustments Budget Financial Performance (functional classification)\"","v":"Adjustments Budget Financial Performance (functional classification)"}]
["ADJ4","Table B4 Adjustments Budget Financial Performance (revenue and expenditure)",null,"Table B4 ","Consolidated Adjustments Budget Financial Performance (revenue and expenditure)",{"$f":"\"Adjustments Budget Financial Performance (revenue and expenditure)\"","v":"Adjustments Budget Financial Performance (revenue and expenditure)"}]
["ADJ5","Table B5 Adjustments Capital Expenditure Budget by vote and funding",null,"Table B5 ","Consolidated Adjustments Capital Expenditure Budget by vote and funding",{"$f":"\"Adjustments Capital Expenditure Budget by vote and funding\"","v":"Adjustments Capital Expenditure Budget by vote and funding"}]
["ADJ6","Table B6 Adjustments Budget Financial Position",null,"Table B6 ","Consolidated Adjustments Budget Financial Position",{"$f":"\"Adjustments Budget Financial Position\"","v":"Adjustments Budget Financial Position"}]
["ADJ7","Table B7 Adjustments Budget Cash Flows",null,"Table B7 ","Consolidated Adjustments Budget Cash Flows",{"$f":"\"Adjustments Budget Cash Flows\"","v":"Adjustments Budget Cash Flows"}]
["ADJ8","Table B8 Cash backed reserves/accumulated surplus reconciliation",null,"Table B8 ","Consolidated Cash backed reserves/accumulated surplus reconciliation",{"$f":"\"Cash backed reserves/accumulated surplus reconciliation\"","v":"Cash backed reserves/accumulated surplus reconciliation"}]
["ADJ9","Table B9 Asset Management",null,"Table B9 ","Consolidated Asset Management",{"$f":"\"Asset Management\"","v":"Asset Management"}]
["ADJ10","Table B10 Basic service delivery measurement",null,"Table B10 ","Consolidated Basic service delivery measurement",{"$f":"\"Basic service delivery measurement\"","v":"Basic service delivery measurement"}]
["ADJB1","Supporting Table SB1 Supporting detail to 'Budgeted Financial Performance'",null,{"$f":"D101&\"Table SB1 \"","v":"Supporting Table SB1 "},"Consolidated Supporting detail to 'Budgeted Financial Performance'",{"$f":"\"Supporting detail to 'Budgeted Financial Performance'\"","v":"Supporting detail to 'Budgeted Financial Performance'"}]
["ADJB2","Supporting Table SB2 Supporting detail to 'Financial Position Budget'",null,{"$f":"D101&\"Table SB2 \"","v":"Supporting Table SB2 "},"Consolidated Supporting detail to 'Financial Position Budget'",{"$f":"\"Supporting detail to 'Financial Position Budget'\"","v":"Supporting detail to 'Financial Position Budget'"}]
["ADJB3","Supporting Table SB3 Adjustments to the SDBIP - performance objectives",null,{"$f":"D101&\"Table SB3 \"","v":"Supporting Table SB3 "},"Consolidated Adjustments to the SDBIP - performance objectives",{"$f":"\"Adjustments to the SDBIP - performance objectives\"","v":"Adjustments to the SDBIP - performance objectives"}]
["ADJB4","Supporting Table SB4 Adjustments to budgeted performance indicators and benchmarks",null,{"$f":"D101&\"Table SB4 \"","v":"Supporting Table SB4 "},"Consolidated Adjustments to budgeted performance indicators and benchmarks",{"$f":"\"Adjustments to budgeted performance indicators and benchmarks\"","v":"Adjustments to budgeted performance indicators and benchmarks"}]
["ADJB5","Supporting Table SB5 Adjustments Budget - social, economic and demographic statistics and assumptions",null,{"$f":"D101&\"Table SB5 \"","v":"Supporting Table SB5 "},"Consolidated Adjustments Budget - social, economic and demographic statistics and assumptions",{"$f":"\"Adjustments Budget - social, economic and demographic statistics and assumptions\"","v":"Adjustments Budget - social, economic and demographic statistics and assumptions"}]
["ADJB6","Supporting Table SB6 Adjustments Budget - funding measurement",null,{"$f":"D101&\"Table SB6 \"","v":"Supporting Table SB6 "},"Consolidated Adjustments Budget - funding measurement",{"$f":"\"Adjustments Budget - funding measurement\"","v":"Adjustments Budget - funding measurement"}]
["ADJB7","Supporting Table SB7 Adjustments Budget - transfers and grant receipts",null,{"$f":"D101&\"Table SB7 \"","v":"Supporting Table SB7 "},"Consolidated Adjustments Budget - transfers and grant receipts",{"$f":"\"Adjustments Budget - transfers and grant receipts\"","v":"Adjustments Budget - transfers and grant receipts"}]
["ADJB8","Supporting Table SB8 Adjustments Budget - expenditure on transfers and grant programme",null,{"$f":"D101&\"Table SB8 \"","v":"Supporting Table SB8 "},"Consolidated Adjustments Budget - expenditure on transfers and grant programme",{"$f":"\"Adjustments Budget - expenditure on transfers and grant programme\"","v":"Adjustments Budget - expenditure on transfers and grant programme"}]
["ADJB9","Supporting Table SB9 Adjustments Budget - reconciliation of transfers, grant receipts, and unspent funds",null,{"$f":"D101&\"Table SB9 \"","v":"Supporting Table SB9 "},"Consolidated Adjustments Budget - reconciliation of transfers, grant receipts, and unspent funds",{"$f":"\"Adjustments Budget - reconciliation of transfers, grant receipts, and unspent funds\"","v":"Adjustments Budget - reconciliation of transfers, grant receipts, and unspent funds"}]
["ADJB10","Supporting Table SB10 Adjustments Budget - transfers and grants made by the municipality",null,{"$f":"D101&\"Table SB10 \"","v":"Supporting Table SB10 "},"Consolidated Adjustments Budget - transfers and grants made by the municipality",{"$f":"\"Adjustments Budget - transfers and grants made by the municipality\"","v":"Adjustments Budget - transfers and grants made by the municipality"}]
["ADJB11","Supporting Table SB11 Adjustments Budget - councillor and staff benefits",null,{"$f":"D101&\"Table SB11 \"","v":"Supporting Table SB11 "},"Consolidated Adjustments Budget - councillor and staff benefits",{"$f":"\"Adjustments Budget - councillor and staff benefits\"","v":"Adjustments Budget - councillor and staff benefits"}]
["ADJB12","Supporting Table SB12 Adjustments Budget - monthly revenue and expenditure (municipal vote)",null,{"$f":"D101&\"Table SB12 \"","v":"Supporting Table SB12 "},"Consolidated Adjustments Budget - monthly revenue and expenditure (municipal vote)",{"$f":"\"Adjustments Budget - monthly revenue and expenditure (municipal vote)\"","v":"Adjustments Budget - monthly revenue and expenditure (municipal vote)"}]
["ADJB13","Supporting Table SB13 Adjustments Budget - monthly revenue and expenditure (functional classification)",null,{"$f":"D101&\"Table SB13 \"","v":"Supporting Table SB13 "},"Consolidated Adjustments Budget - monthly revenue and expenditure (functional classification)",{"$f":"\"Adjustments Budget - monthly revenue and expenditure (functional classification)\"","v":"Adjustments Budget - monthly revenue and expenditure (functional classification)"}]
["ADJB14","Supporting Table SB14 Adjustments Budget - monthly revenue and expenditure",null,{"$f":"D101&\"Table SB14 \"","v":"Supporting Table SB14 "},"Consolidated Adjustments Budget - monthly revenue and expenditure",{"$f":"\"Adjustments Budget - monthly revenue and expenditure\"","v":"Adjustments Budget - monthly revenue and expenditure"}]
["ADJB15","Supporting Table SB15 Adjustments Budget - monthly cash flow",null,{"$f":"D101&\"Table SB15 \"","v":"Supporting Table SB15 "},"Consolidated Adjustments Budget - monthly cash flow",{"$f":"\"Adjustments Budget - monthly cash flow\"","v":"Adjustments Budget - monthly cash flow"}]
["ADJB16","Supporting Table SB16 Adjustments Budget - monthly capital expenditure (municipal vote)",null,{"$f":"D101&\"Table SB16 \"","v":"Supporting Table SB16 "},"Consolidated Adjustments Budget - monthly capital expenditure (municipal vote)",{"$f":"\"Adjustments Budget - monthly capital expenditure (municipal vote)\"","v":"Adjustments Budget - monthly capital expenditure (municipal vote)"}]
["ADJB17","Supporting Table SB17 Adjustments Budget - monthly capital expenditure (functional classification)",null,{"$f":"D101&\"Table SB17 \"","v":"Supporting Table SB17 "},"Consolidated Adjustments Budget - monthly capital expenditure (functional classification)",{"$f":"\"Adjustments Budget - monthly capital expenditure (functional classification)\"","v":"Adjustments Budget - monthly capital expenditure (functional classification)"}]
["ADJB18a","Supporting Table SB18a Adjustments Budget - capital expenditure on new assets by asset class",null,{"$f":"D101&\"Table SB18a \"","v":"Supporting Table SB18a "},"Consolidated Adjustments Budget - capital expenditure on new assets by asset class",{"$f":"\"Adjustments Budget - capital expenditure on new assets by asset class\"","v":"Adjustments Budget - capital expenditure on new assets by asset class"}]
["ADJB18b","Supporting Table SB18b Adjustments Budget - capital expenditure on renewal of existing assets by asset class",null,{"$f":"D101&\"Table SB18b \"","v":"Supporting Table SB18b "},{"$f":"\"Consolidated \"&F95","v":"Consolidated Adjustments Budget - capital expenditure on renewal of existing assets by asset class"},{"$f":"\"Adjustments Budget - capital expenditure on renewal of existing assets by asset class\"","v":"Adjustments Budget - capital expenditure on renewal of existing assets by asset class"}]
["ADJB18c","Supporting Table SB18c Adjustments Budget - expenditure on repairs and maintenance by asset class",null,{"$f":"D101&\"Table SB18c \"","v":"Supporting Table SB18c "},{"$f":"\"Consolidated \"&F96","v":"Consolidated Adjustments Budget - expenditure on repairs and maintenance by asset class"},{"$f":"\"Adjustments Budget - expenditure on repairs and maintenance by asset class\"","v":"Adjustments Budget - expenditure on repairs and maintenance by asset class"}]
["ADJB18d","Supporting Table SB18d Adjustments Budget - depreciation by asset class",null,{"$f":"D101&\"Table SB18d \"","v":"Supporting Table SB18d "},{"$f":"\"Consolidated \"&F97","v":"Consolidated Adjustments Budget - depreciation by asset class"},{"$f":"\"Adjustments Budget - depreciation by asset class\"","v":"Adjustments Budget - depreciation by asset class"}]
["ADJB18e","Supporting Table SB18e Adjustments Budget - capital expenditure on upgrading of existing assets by asset class",null,{"$f":"D101&\"Table SB18e \"","v":"Supporting Table SB18e "},{"$f":"\"Consolidated \"&F98","v":"Consolidated Adjustments Budget - capital expenditure on upgrading of existing assets by asset class"},{"$f":"\"Adjustments Budget - capital expenditure on upgrading of existing assets by asset class\"","v":"Adjustments Budget - capital expenditure on upgrading of existing assets by asset class"}]
["ADJB19","Supporting Table SB19 List of capital programmes and projects affected by Adjustments Budget",null,{"$f":"D101&\"Table SB19 \"","v":"Supporting Table SB19 "},"Consolidated List of capital programmes and projects affected by Adjustments Budget",{"$f":"\"List of capital programmes and projects affected by Adjustments Budget\"","v":"List of capital programmes and projects affected by Adjustments Budget"}]
["ADJB20","Supporting Table SB20 Not required",null,{"$f":"D101&\"Table SB20 \"","v":"Supporting Table SB20 "},{"$f":"\"Adjusted Budget Municipal Entity Performance Summary\"","v":"Adjusted Budget Municipal Entity Performance Summary"},"Not required"]
[null,null,null,"Supporting "]

{"sheet":"Lookup and lists","index":21,"n_rows":308,"n_cols":22,"rows_kept":308,"cut":false,"hidden":true,"merged":[]}
["Description",2013,2014,2015,2016,2017,2018,2019,2020,2021,2022,2023,2024,2025,2026,null,"Grants:","National - opex","Provincial - opex","National - capex","Provincial - capex","YESNO"]
[{"$f":"'Template names'!C2","v":"Prior year -1"},{"$f":"B1-1&\"/\"&RIGHT(B1,2)-0","v":"2012/13"},{"$f":"C1-1&\"/\"&RIGHT(C1,2)-0","v":"2013/14"},{"$f":"D1-1&\"/\"&RIGHT(D1,2)-0","v":"2014/15"},{"$f":"E1-1&\"/\"&RIGHT(E1,2)-0","v":"2015/16"},"2016/17","2017/18","2018/19","2019/20","2020/21","2021/22","2022/23","2023/24","2024/25","2025/26",null,null,"Local Government Equitable Share","Health subsidy"," Municipal Infrastructure Grant (MIG)","Agriculture","Yes"]
[{"$f":"'Template names'!C3","v":"Prior year -2"},{"$f":"B1-2&\"/\"&RIGHT(B1,2)-1","v":"2011/12"},{"$f":"C1-2&\"/\"&RIGHT(C1,2)-1","v":"2012/13"},{"$f":"D1-2&\"/\"&RIGHT(D1,2)-1","v":"2013/14"},{"$f":"E1-2&\"/\"&RIGHT(E1,2)-1","v":"2014/15"},"2015/16","2016/17","2017/18","2018/19","2019/20","2020/21","2021/22","2022/23","2023/24","2024/25",null,null,"RSC Levy Replacement ","Ambulance subsidy"," Public Transport and Systems","Education","No"]
[{"$f":"'Template names'!C4","v":"Prior year -3"},{"$f":"B1-3&\"/\"&RIGHT(B1,2)-2","v":"2010/11"},{"$f":"C1-3&\"/\"&RIGHT(C1,2)-2","v":"2011/12"},{"$f":"D1-3&\"/\"&RIGHT(D1,2)-2","v":"2012/13"},{"$f":"E1-3&\"/\"&RIGHT(E1,2)-2","v":"2013/14"},"2014/15","2015/16","2016/17","2017/18","2018/19","2019/20","2020/21","2021/22","2022/23","2023/24",null,null,"Finance Management ","Housing","Rural Transport Services and Infrastructure","Health"]
[{"$f":"'Template names'!C7","v":"MTREF header name"},{"$f":"B1&\"/\"&RIGHT(B1,2)+1&\" Medium Term Revenue & Expenditure Framework\"","v":"2013/14 Medium Term Revenue & Expenditure Framework"},{"$f":"C1&\"/\"&RIGHT(C1,2)+1&\" Medium Term Revenue & Expenditure Framework\"","v":"2014/15 Medium Term Revenue & Expenditure Framework"},{"$f":"D1&\"/\"&RIGHT(D1,2)+1&\" Medium Term Revenue & Expenditure Framework\"","v":"2015/16 Medium Term Revenue & Expenditure Framework"},{"$f":"E1&\"/\"&RIGHT(E1,2)+1&\" Medium Term Revenue & Expenditure Framework\"","v":"2016/17 Medium Term Revenue & Expenditure Framework"},"2017/18 Medium Term Revenue & Expenditure Framework","2018/19 Medium Term Revenue & Expenditure Framework","2019/20 Medium Term Revenue & Expenditure Framework","2020/21 Medium Term Revenue & Expenditure Framework","2021/22 Medium Term Revenue & Expenditure Framework","2022/23 Medium Term Revenue & Expenditure Framework","2023/24 Medium Term Revenue & Expenditure Framework","2024/25 Medium Term Revenue & Expenditure Framework","2025/26 Medium Term Revenue & Expenditure Framework","2026/27 Medium Term Revenue & Expenditure Framework",null,null,"Municipal Systems Improvement","Sport and Recreation","Regional Bulk Infrastructure","Housing and Local Government "]
[{"$f":"'Template names'!C6","v":"Approved budget year"},{"$f":"B1&\"/\"&RIGHT(B1,2)+1","v":"2013/14"},{"$f":"C1&\"/\"&RIGHT(C1,2)+1","v":"2014/15"},{"$f":"D1&\"/\"&RIGHT(D1,2)+1","v":"2015/16"},{"$f":"E1&\"/\"&RIGHT(E1,2)+1","v":"2016/17"},"2017/18","2018/19","2019/20","2020/21","2021/22","2022/23","2023/24","2024/25","2025/26","2026/27",null,null,"Water Services Operating Subsidy ",null,"Rural Households Infrastructure ","Other Departments"]
[{"$f":"'Template names'!C16","v":"1st year of MTREF"},{"$f":"\"Budget Year \"&B1&\"/\"&RIGHT(B1,2)+1","v":"Budget Year 2013/14"},{"$f":"\"Budget Year \"&C1&\"/\"&RIGHT(C1,2)+1","v":"Budget Year 2014/15"},{"$f":"\"Budget Year \"&D1&\"/\"&RIGHT(D1,2)+1","v":"Budget Year 2015/16"},{"$f":"\"Budget Year \"&E1&\"/\"&RIGHT(E1,2)+1","v":"Budget Year 2016/17"},"Budget Year 2017/18","Budget Year 2018/19","Budget Year 2019/20","Budget Year 2020/21","Budget Year 2021/22","Budget Year 2022/23","Budget Year 2023/24","Budget Year 2024/25","Budget Year 2025/26","Budget Year 2026/27",null,null,"Energy Efficiency  and Demand Management",null,"Neighbourhood Development Partnership","Public Works, Roads, Transport "]
[{"$f":"'Template names'!C17","v":"2nd year of MTREF"},{"$f":"\"Budget Year +1 \"&B1+1&\"/\"&RIGHT(B1,2)+2","v":"Budget Year +1 2014/15"},{"$f":"\"Budget Year +1 \"&C1+1&\"/\"&RIGHT(C1,2)+2","v":"Budget Year +1 2015/16"},{"$f":"\"Budget Year +1 \"&D1+1&\"/\"&RIGHT(D1,2)+2","v":"Budget Year +1 2016/17"},{"$f":"\"Budget Year +1 \"&E1+1&\"/\"&RIGHT(E1,2)+2","v":"Budget Year +1 2017/18"},"Budget Year +1 2018/19","Budget Year +1 2019/20","Budget Year +1 2020/21","Budget Year +1 2021/22","Budget Year +1 2022/23","Budget Year +1 2023/24","Budget Year +1 2024/25","Budget Year +1 2025/26","Budget Year +1 2026/27","Budget Year +1 2027/28",null,null,"Integrated National Electrification Programme",null,"2010 FIFA World Cup Stadiums Development","Sport and Recreation"]
[{"$f":"'Template names'!C18","v":"3rd year of MTREF"},{"$f":"\"Budget Year +2 \"&B1+2&\"/\"&RIGHT(B1,2)+3","v":"Budget Year +2 2015/16"},{"$f":"\"Budget Year +2 \"&C1+2&\"/\"&RIGHT(C1,2)+3","v":"Budget Year +2 2016/17"},{"$f":"\"Budget Year +2 \"&D1+2&\"/\"&RIGHT(D1,2)+3","v":"Budget Year +2 2017/18"},{"$f":"\"Budget Year +2 \"&E1+2&\"/\"&RIGHT(E1,2)+3","v":"Budget Year +2 2018/19"},"Budget Year +2 2019/20","Budget Year +2 2020/21","Budget Year +2 2021/22","Budget Year +2 2022/23","Budget Year +2 2023/24","Budget Year +2 2024/25","Budget Year +2 2025/26","Budget Year +2 2026/27","Budget Year +2 2027/28","Budget Year +2 2028/29",null,null,"Municipal Drought Relief "]
["Adjustments Budget",{"$f":"\"Annual target \" & B1&\"/\"&RIGHT(B1,2)+1","v":"Annual target 2013/14"},{"$f":"\"Annual target \" & C1&\"/\"&RIGHT(C1,2)+1","v":"Annual target 2014/15"},{"$f":"\"Annual target \" & D1&\"/\"&RIGHT(D1,2)+1","v":"Annual target 2015/16"},{"$f":"\"Annual target \" & E1&\"/\"&RIGHT(E1,2)+1","v":"Annual target 2016/17"},"Annual target 2017/18","Annual target 2018/19","Annual target 2019/20","Annual target 2020/21","Annual target 2021/22","Annual target 2022/23","Annual target 2023/24","Annual target 2024/25","Annual target 2025/26","Annual target 2026/27",null,null,"2010 FIFA World Cup Operating"]
["NOTE: This sheet should not be directly amended - select headings from sheet 'S'",null,null,null,null,null,null,null,null,null,null,null,null,null,null,null,null,"Electricity Demand Side Management"]
[null,null,null,null,null,null,null,null,null,null,null,null,null,null,null,null,null,"EPWP Incentive"]
[]
[]
[null,null,null,null,null,null,null,null,null,null,null,null,null,null,null,null,null,"Asset Class","Asset sub-class Old","Asset sub-class","IUDF","MTSF"]
[]
[null,null,null,null,null,null,null,null,null,null,null,null,null,null,null,null,null,"Roads Infrastructure","Roads, Pavements & Bridges","Roads","Spatial integration","Quality basic education"]
[null,null,null,null,null,null,null,null,null,null,null,null,null,null,null,null,null,"Storm water Infrastructure","Storm water","Road Structures","Inclusion and access","A long and healthy life for all South Africans"]
[null,null,null,null,null,null,null,null,null,null,null,null,null,null,null,null,null,"Electrical Infrastructure","Generation","Road Furniture","Growth","All people in South Africa are and feel safe"]
[null,null,null,null,null,null,null,null,null,null,null,null,null,null,null,null,null,"Water Supply Infrastructure","Transmission & Reticulation","Capital Spares","Governance","Decent employment through inclusive growth"]
[null,null,null,null,null,null,null,null,null,null,null,null,null,null,null,null,null,"Sanitation Infrastructure","Street Lighting","Drainage Collection",null,"A skilled and capable workforce to support an inclusive growth path"]
[null,null,null,null,null,null,null,null,null,null,null,null,null,null,null,null,null,"Solid Waste Infrastructure","Dams & Reservoirs","Storm water Conveyance",null,"An efficient, competitive and responsive economic infrastructure network"]
[null,null,null,null,null,null,null,null,null,null,null,null,null,null,null,null,null,"Rail Infrastructure","Water purification","Attenuation",null,"Vibrant, equitable, sustainable rural communities contributing towards food security for all"]
[null,null,null,null,null,null,null,null,null,null,null,null,null,null,null,null,null,"Coastal Infrastructure","Reticulation","Power Plants",null,"Sustainable human settlements and improved quality of household life"]
[null,null,null,null,null,null,null,null,null,null,null,null,null,null,null,null,null,"Information and Communication Infrastructure","Sewerage purification","HV Substations",null,"Responsive, accountable, effective and efficient local government"]
[null,null,null,null,null,null,null,null,null,null,null,null,null,null,null,null,null,"Community Facilities","Waste Management","HV Switching Station",null,"Protect and enhance our environmental assets and natural resources"]
["Name link",24,null,null,null,null,null,null,null,null,null,null,null,null,null,null,null,"Sport and Recreation Facilities","Transportation","HV Transmission Conductors",null,"Create a better South Africa and contribute to a better Africa and a better world"]
["Name of Muni",{"$f":"INDEX(B29:B312,B27,1)","v":"EC139 Enoch Mgijima"},null,null,null,null,null,null,null,null,null,null,null,null,null,null,null,"Heritage assets","Gas","MV Substations",null,"An efficient, effective and development-oriented public service"]
[null,"Choose name from list","Set name on 'Instructions' sheet",null,null,null,null,null,null,null,null,null,null,null,null,null,null,"Revenue Generating","Parks & gardens","MV Switching Stations",null,"A comprehensive, responsive and sustainable social protection system"]
[null,"BUF Buffalo City","EC EASTERN CAPE",null,null,null,null,null,null,null,null,null,null,null,null,null,null,"Non-revenue Generating","Sportsfields & stadia","MV Networks",null,"A diverse, socially cohesive society with a common national identity"]
[null,"NMA Nelson Mandela Bay","EC EASTERN CAPE",null,null,null,null,null,null,null,null,null,null,null,null,null,null,"Operational Buildings","Swimming pools","LV Networks"]
[null,"EC101 Dr Beyers Naude","EC EASTERN CAPE",null,null,null,null,null,null,null,null,null,null,null,null,null,null,"Housing","Community halls","Capital Spares"]
[null,"EC102 Blue Crane Route","EC EASTERN CAPE",null,null,null,null,null,null,null,null,null,null,null,null,null,null,"Biological or Cultivated Assets","Libraries","Dams and Weirs"]
[null,"EC104 Makana","EC EASTERN CAPE",null,null,null,null,null,null,null,null,null,null,null,null,null,null,"Servitudes","Recreational facilities","Boreholes"]
[null,"EC105 Ndlambe","EC EASTERN CAPE",null,null,null,null,null,null,null,null,null,null,null,null,null,null,"Licences and Rights","Fire, safety & emergency","Reservoirs"]
[null,"EC106 Sundays River Valley","EC EASTERN CAPE",null,null,null,null,null,null,null,null,null,null,null,null,null,null,"Computer Equipment","Security and policing","Pump Stations"]
[null,"EC108 Kouga","EC EASTERN CAPE",null,null,null,null,null,null,null,null,null,null,null,null,null,null,"Furniture and Office Equipment","Buses","Water Treatment Works"]
[null,"EC109 Kou-Kamma","EC EASTERN CAPE",null,null,null,null,null,null,null,null,null,null,null,null,null,null,"Machinery and Equipment","Clinics","Bulk Mains"]
[null,"DC10 Sarah Baartman","EC EASTERN CAPE",null,null,null,null,null,null,null,null,null,null,null,null,null,null,"Transport Assets","Museums & Art Galleries","Distribution"]
[null,"EC121 Mbhashe","EC EASTERN CAPE",null,null,null,null,null,null,null,null,null,null,null,null,null,null,"Land","Cemeteries","Distribution Points"]
[null,"EC122 Mnquma","EC EASTERN CAPE",null,null,null,null,null,null,null,null,null,null,null,null,null,null,"Zoo's, Marine and Non-biological Animals","Social rental housing","PRV Stations"]
[null,"EC123 Great Kei","EC EASTERN CAPE",null,null,null,null,null,null,null,null,null,null,null,null,null,null,null,"Buildings","Capital Spares"]
[null,"EC124 Amahlathi","EC EASTERN CAPE",null,null,null,null,null,null,null,null,null,null,null,null,null,null,null,"Housing development","Pump Station"]
[null,"EC126 Ngqushwa","EC EASTERN CAPE",null,null,null,null,null,null,null,null,null,null,null,null,null,null,null,"General vehicles","Reticulation"]
[null,"EC129 Raymond Mhlaba","EC EASTERN CAPE",null,null,null,null,null,null,null,null,null,null,null,null,null,null,null,"Specialised vehicles - Refuse","Waste Water Treatment Works"]
[null,"DC12 Amathole","EC EASTERN CAPE",null,null,null,null,null,null,null,null,null,null,null,null,null,null,null,"Specialised vehicles - Fire","Outfall Sewers"]
[null,"EC131 Inxuba Yethemba","EC EASTERN CAPE",null,null,null,null,null,null,null,null,null,null,null,null,null,null,null,"Specialised vehicles - Conservancy","Toilet Facilities"]
[null,"EC135 Intsika Yethu","EC EASTERN CAPE",null,null,null,null,null,null,null,null,null,null,null,null,null,null,null,"Specialised vehicles - Ambulances","Capital Spares"]
[null,"EC136 Emalahleni (Ec)","EC EASTERN CAPE",null,null,null,null,null,null,null,null,null,null,null,null,null,null,null,"Plant & equipment","Landfill Sites"]
[null,"EC137 Engcobo","EC EASTERN CAPE",null,null,null,null,null,null,null,null,null,null,null,null,null,null,null,"Computers - hardware/equipment","Waste Transfer Stations"]
[null,"EC138 Sakhisizwe","EC EASTERN CAPE",null,null,null,null,null,null,null,null,null,null,null,null,null,null,null,"Furniture and other office equipment","Waste Processing Facilities"]
[null,"EC139 Enoch Mgijima","EC EASTERN CAPE",null,null,null,null,null,null,null,null,null,null,null,null,null,null,null,"Abattoirs","Waste Drop-off Points"]
[null,"DC13 Chris Hani","EC EASTERN CAPE",null,null,null,null,null,null,null,null,null,null,null,null,null,null,null,"Markets","Waste Separation Facilities"]
[null,"EC141 Elundini","EC EASTERN CAPE",null,null,null,null,null,null,null,null,null,null,null,null,null,null,null,"Civic Land and Buildings","Electricity Generation Facilities"]
[null,"EC142 Senqu","EC EASTERN CAPE",null,null,null,null,null,null,null,null,null,null,null,null,null,null,null,"Other Buildings","Capital Spares"]
[null,"EC145 Walter Sisulu","EC EASTERN CAPE",null,null,null,null,null,null,null,null,null,null,null,null,null,null,null,"Other Land","Rail Lines"]
[null,"DC14 Joe Gqabi","EC EASTERN CAPE",null,null,null,null,null,null,null,null,null,null,null,null,null,null,null,"Surplus Assets - (Investment or Inventory)","Rail Structures"]
[null,"EC153 Ngquza Hills","EC EASTERN CAPE",null,null,null,null,null,null,null,null,null,null,null,null,null,null,null,"Computers - software & programming","Rail Furniture"]
[null,"EC154 Port St Johns","EC EASTERN CAPE",null,null,null,null,null,null,null,null,null,null,null,null,null,null,null,"Other","Drainage Collection"]
[null,"EC155 Nyandeni","EC EASTERN CAPE",null,null,null,null,null,null,null,null,null,null,null,null,null,null,null,null,"Storm water Conveyance"]
[null,"EC156 Mhlontlo","EC EASTERN CAPE",null,null,null,null,null,null,null,null,null,null,null,null,null,null,"SB 19",null,"Attenuation"]
[null,"EC157 King Sabata Dalindyebo","EC EASTERN CAPE",null,null,null,null,null,null,null,null,null,null,null,null,null,null,"Yes",null,"MV Substations"]
[null,"DC15 O .R. Tambo","EC EASTERN CAPE",null,null,null,null,null,null,null,null,null,null,null,null,null,null,"No",null,"LV Networks"]
[null,"EC441 Matatiele","EC EASTERN CAPE",null,null,null,null,null,null,null,null,null,null,null,null,null,null,null,null,"Capital Spares"]
[null,"EC442 Umzimvubu","EC EASTERN CAPE",null,null,null,null,null,null,null,null,null,null,null,null,null,null,null,null,"Sand Pumps"]
[null,"EC443 Winnie Madikizela Mandela","EC EASTERN CAPE",null,null,null,null,null,null,null,null,null,null,null,null,null,null,null,null,"Piers"]
[null,"EC444 Ntabankulu","EC EASTERN CAPE",null,null,null,null,null,null,null,null,null,null,null,null,null,null,null,null,"Revetments"]
[null,"DC44 Alfred Nzo","EC EASTERN CAPE",null,null,null,null,null,null,null,null,null,null,null,null,null,null,null,null,"Promenades"]
[null,"MAN Mangaung","FS FREE STATE",null,null,null,null,null,null,null,null,null,null,null,null,null,null,null,null,"Capital Spares"]
[null,"FS161 Letsemeng","FS FREE STATE",null,null,null,null,null,null,null,null,null,null,null,null,null,null,null,null,"Data Centres"]
[null,"FS162 Kopanong","FS FREE STATE",null,null,null,null,null,null,null,null,null,null,null,null,null,null,null,null,"Core Layers"]
[null,"FS163 Mohokare","FS FREE STATE",null,null,null,null,null,null,null,null,null,null,null,null,null,null,null,null,"Distribution Layers"]
[null,"DC16 Xhariep","FS FREE STATE",null,null,null,null,null,null,null,null,null,null,null,null,null,null,null,null,"Capital Spares"]
[null,"FS181 Masilonyana","FS FREE STATE",null,null,null,null,null,null,null,null,null,null,null,null,null,null,null,null,"Halls"]
[null,"FS182 Tokologo","FS FREE STATE",null,null,null,null,null,null,null,null,null,null,null,null,null,null,null,null,"Centres"]
[null,"FS183 Tswelopele","FS FREE STATE",null,null,null,null,null,null,null,null,null,null,null,null,null,null,null,null,"Crèches"]
[null,"FS184 Matjhabeng","FS FREE STATE",null,null,null,null,null,null,null,null,null,null,null,null,null,null,null,null,"Clinics/Care Centres"]
[null,"FS185 Nala","FS FREE STATE",null,null,null,null,null,null,null,null,null,null,null,null,null,null,null,null,"Fire/Ambulance Stations"]
[null,"DC18 Lejweleputswa","FS FREE STATE",null,null,null,null,null,null,null,null,null,null,null,null,null,null,null,null,"Testing Stations"]
[null,"FS191 Setsoto","FS FREE STATE",null,null,null,null,null,null,null,null,null,null,null,null,null,null,null,null,"Museums"]
[null,"FS192 Dihlabeng","FS FREE STATE",null,null,null,null,null,null,null,null,null,null,null,null,null,null,null,null,"Galleries"]
[null,"FS193 Nketoana","FS FREE STATE",null,null,null,null,null,null,null,null,null,null,null,null,null,null,null,null,"Theatres"]
[null,"FS194 Maluti-a-Phofung","FS FREE STATE",null,null,null,null,null,null,null,null,null,null,null,null,null,null,null,null,"Libraries"]
[null,"FS195 Phumelela","FS FREE STATE",null,null,null,null,null,null,null,null,null,null,null,null,null,null,null,null,"Cemeteries/Crematoria"]
[null,"FS196 Mantsopa","FS FREE STATE",null,null,null,null,null,null,null,null,null,null,null,null,null,null,null,null,"Police"]
[null,"DC19 Thabo Mofutsanyana","FS FREE STATE",null,null,null,null,null,null,null,null,null,null,null,null,null,null,null,null,"Purls"]
[null,"FS201 Moqhaka","FS FREE STATE",null,null,null,null,null,null,null,null,null,null,null,null,null,null,null,null,"Public Open Space"]
[null,"FS203 Ngwathe","FS FREE STATE",null,null,null,null,null,null,null,null,null,null,null,null,null,null,null,null,"Nature Reserves"]
[null,"FS204 Metsimaholo","FS FREE STATE",null,null,null,null,null,null,null,null,null,null,null,null,null,null,null,null,"Public Ablution Facilities"]
[null,"FS205 Mafube","FS FREE STATE",null,null,null,null,null,null,null,null,null,null,null,null,null,null,null,null,"Markets"]
[null,"DC20 Fezile Dabi","FS FREE STATE",null,null,null,null,null,null,null,null,null,null,null,null,null,null,null,null,"Stalls"]
[null,"EKU City of Ekurhuleni","GT GAUTENG",null,null,null,null,null,null,null,null,null,null,null,null,null,null,null,null,"Abattoirs"]
[null,"JHB City Of Johannesburg","GT GAUTENG",null,null,null,null,null,null,null,null,null,null,null,null,null,null,null,null,"Airports"]
[null,"TSH City Of Tshwane","GT GAUTENG",null,null,null,null,null,null,null,null,null,null,null,null,null,null,null,null,"Taxi Ranks/Bus Terminals"]
[null,"GT421 Emfuleni","GT GAUTENG",null,null,null,null,null,null,null,null,null,null,null,null,null,null,null,null,"Capital Spares"]
[null,"GT422 Midvaal","GT GAUTENG",null,null,null,null,null,null,null,null,null,null,null,null,null,null,null,null,"Indoor Facilities"]
[null,"GT423 Lesedi","GT GAUTENG",null,null,null,null,null,null,null,null,null,null,null,null,null,null,null,null,"Outdoor Facilities"]
[null,"DC42 Sedibeng","GT GAUTENG",null,null,null,null,null,null,null,null,null,null,null,null,null,null,null,null,"Capital Spares"]
[null,"GT481 Mogale City","GT GAUTENG",null,null,null,null,null,null,null,null,null,null,null,null,null,null,null,null,"Monuments"]
[null,"GT484 Merafong City","GT GAUTENG",null,null,null,null,null,null,null,null,null,null,null,null,null,null,null,null,"Historic Buildings"]
[null,"GT485 Rand West City","GT GAUTENG",null,null,null,null,null,null,null,null,null,null,null,null,null,null,null,null,"Works of Art"]
[null,"DC48 West Rand","GT GAUTENG",null,null,null,null,null,null,null,null,null,null,null,null,null,null,null,null,"Conservation Areas"]
[null,"ETH eThekwini","KZN KWAZULU-NATAL",null,null,null,null,null,null,null,null,null,null,null,null,null,null,null,null,"Other Heritage"]
[null,"KZN212 Umdoni","KZN KWAZULU-NATAL",null,null,null,null,null,null,null,null,null,null,null,null,null,null,null,null,"Improved Property"]
[null,"KZN213 Umzumbe","KZN KWAZULU-NATAL",null,null,null,null,null,null,null,null,null,null,null,null,null,null,null,null,"Unimproved Property"]
[null,"KZN214 uMuziwabantu","KZN KWAZULU-NATAL",null,null,null,null,null,null,null,null,null,null,null,null,null,null,null,null,"Municipal Offices"]
[null,"KZN216 Ray Nkonyeni","KZN KWAZULU-NATAL",null,null,null,null,null,null,null,null,null,null,null,null,null,null,null,null,"Pay/Enquiry Points"]
[null,"DC21 Ugu","KZN KWAZULU-NATAL",null,null,null,null,null,null,null,null,null,null,null,null,null,null,null,null,"Building Plan Offices"]
[null,"KZN221 uMshwathi","KZN KWAZULU-NATAL",null,null,null,null,null,null,null,null,null,null,null,null,null,null,null,null,"Workshops"]
[null,"KZN222 uMngeni","KZN KWAZULU-NATAL",null,null,null,null,null,null,null,null,null,null,null,null,null,null,null,null,"Yards"]
[null,"KZN223 Mpofana","KZN KWAZULU-NATAL",null,null,null,null,null,null,null,null,null,null,null,null,null,null,null,null,"Stores"]
[null,"KZN224 Impendle","KZN KWAZULU-NATAL",null,null,null,null,null,null,null,null,null,null,null,null,null,null,null,null,"Laboratories"]
[null,"KZN225 Msunduzi","KZN KWAZULU-NATAL",null,null,null,null,null,null,null,null,null,null,null,null,null,null,null,null,"Training Centres"]
[null,"KZN226 Mkhambathini","KZN KWAZULU-NATAL",null,null,null,null,null,null,null,null,null,null,null,null,null,null,null,null,"Manufacturing Plant"]
[null,"KZN227 Richmond","KZN KWAZULU-NATAL",null,null,null,null,null,null,null,null,null,null,null,null,null,null,null,null,"Depots"]
[null,"DC22 uMgungundlovu","KZN KWAZULU-NATAL",null,null,null,null,null,null,null,null,null,null,null,null,null,null,null,null,"Capital Spares"]
[null,"KZN235 Okhahlamba","KZN KWAZULU-NATAL",null,null,null,null,null,null,null,null,null,null,null,null,null,null,null,null,"Staff Housing"]
[null,"KZN237 Inkosi Langalibalele","KZN KWAZULU-NATAL",null,null,null,null,null,null,null,null,null,null,null,null,null,null,null,null,"Social Housing"]
[null,"KZN238 Alfred Duma","KZN KWAZULU-NATAL",null,null,null,null,null,null,null,null,null,null,null,null,null,null,null,null,"Capital Spares"]
[null,"DC23 Uthukela","KZN KWAZULU-NATAL",null,null,null,null,null,null,null,null,null,null,null,null,null,null,null,null,"Water Rights"]
[null,"KZN241 Endumeni","KZN KWAZULU-NATAL",null,null,null,null,null,null,null,null,null,null,null,null,null,null,null,null,"Effluent Licenses"]
[null,"KZN242 Nquthu","KZN KWAZULU-NATAL",null,null,null,null,null,null,null,null,null,null,null,null,null,null,null,null,"Solid Waste Licenses"]
[null,"KZN244 Msinga","KZN KWAZULU-NATAL",null,null,null,null,null,null,null,null,null,null,null,null,null,null,null,null,"Computer Software and Applications"]
[null,"KZN245 Umvoti","KZN KWAZULU-NATAL",null,null,null,null,null,null,null,null,null,null,null,null,null,null,null,null,"Load Settlement Software Applications"]
[null,"DC24 Umzinyathi","KZN KWAZULU-NATAL",null,null,null,null,null,null,null,null,null,null,null,null,null,null,null,null,"Unspecified"]
[null,"KZN252 Newcastle","KZN KWAZULU-NATAL"]
[null,"KZN253 Emadlangeni","KZN KWAZULU-NATAL"]
[null,"KZN254 Dannhauser","KZN KWAZULU-NATAL"]
[null,"DC25 Amajuba","KZN KWAZULU-NATAL"]
[null,"KZN261 eDumbe","KZN KWAZULU-NATAL"]
[null,"KZN262 uPhongolo","KZN KWAZULU-NATAL"]
[null,"KZN263 Abaqulusi","KZN KWAZULU-NATAL"]
[null,"KZN265 Nongoma","KZN KWAZULU-NATAL"]
[null,"KZN266 Ulundi","KZN KWAZULU-NATAL"]
[null,"DC26 Zululand","KZN KWAZULU-NATAL"]
[null,"KZN271 Umhlabuyalingana","KZN KWAZULU-NATAL"]
[null,"KZN272 Jozini","KZN KWAZULU-NATAL"]
[null,"KZN275 Mtubatuba","KZN KWAZULU-NATAL"]
[null,"KZN276 Hlabisa Big Five","KZN KWAZULU-NATAL"]
[null,"DC27 Umkhanyakude","KZN KWAZULU-NATAL"]
[null,"KZN281 Mfolozi","KZN KWAZULU-NATAL"]
[null,"KZN282 uMhlathuze","KZN KWAZULU-NATAL"]
[null,"KZN284 uMlalazi","KZN KWAZULU-NATAL"]
[null,"KZN285 Mthonjaneni","KZN KWAZULU-NATAL"]
[null,"KZN286 Nkandla","KZN KWAZULU-NATAL"]
[null,"DC28 King Cetshwayo","KZN KWAZULU-NATAL"]
[null,"KZN291 Mandeni","KZN KWAZULU-NATAL"]
[null,"KZN292 KwaDukuza","KZN KWAZULU-NATAL"]
[null,"KZN293 Ndwedwe","KZN KWAZULU-NATAL"]
[null,"KZN294 Maphumulo","KZN KWAZULU-NATAL"]
[null,"DC29 iLembe","KZN KWAZULU-NATAL"]
[null,"KZN433 Greater Kokstad","KZN KWAZULU-NATAL"]
[null,"KZN434 Ubuhlebezwe","KZN KWAZULU-NATAL"]
[null,"KZN435 Umzimkhulu","KZN KWAZULU-NATAL"]
[null,"KZN436 Dr Nkosazana Dlamini Zuma","KZN KWAZULU-NATAL"]
[null,"DC43 Harry Gwala","KZN KWAZULU-NATAL"]
[null,"LIM331 Greater Giyani","LIM LIMPOPO"]
[null,"LIM332 Greater Letaba","LIM LIMPOPO"]
[null,"LIM333 Greater Tzaneen","LIM LIMPOPO"]
[null,"LIM334 Ba-Phalaborwa","LIM LIMPOPO"]
[null,"LIM335 Maruleng","LIM LIMPOPO"]
[null,"DC33 Mopani","LIM LIMPOPO"]
[null,"LIM341 Musina","LIM LIMPOPO"]
[null,"LIM343 Thulamela","LIM LIMPOPO"]
[null,"LIM344 Makhado","LIM LIMPOPO"]
[null,"LIM345 Collins Chabane","LIM LIMPOPO"]
[null,"DC34 Vhembe","LIM LIMPOPO"]
[null,"LIM351 Blouberg","LIM LIMPOPO"]
[null,"LIM353 Molemole","LIM LIMPOPO"]
[null,"LIM354 Polokwane","LIM LIMPOPO"]
[null,"LIM355 Lepelle-Nkumpi","LIM LIMPOPO"]
[null,"DC35 Capricorn","LIM LIMPOPO"]
[null,"LIM361 Thabazimbi","LIM LIMPOPO"]
[null,"LIM362 Lephalale","LIM LIMPOPO"]
[null,"LIM366 Bela Bela","LIM LIMPOPO"]
[null,"LIM367 Mogalakwena","LIM LIMPOPO"]
[null,"LIM368 Modimolle-Mookgopong","LIM LIMPOPO"]
[null,"DC36 Waterberg","LIM LIMPOPO"]
[null,"LIM471 Ephraim Mogale","LIM LIMPOPO"]
[null,"LIM472 Elias Motsoaledi","LIM LIMPOPO"]
[null,"LIM473 Makhuduthamaga","LIM LIMPOPO"]
[null,"LIM476 Tubatse Fetakgomo","LIM LIMPOPO"]
[null,"DC47 Sekhukhune","LIM LIMPOPO"]
[null,"MP301 Albert Luthuli","MP MPUMALANGA"]
[null,"MP302 Msukaligwa","MP MPUMALANGA"]
[null,"MP303 Mkhondo","MP MPUMALANGA"]
[null,"MP304 Pixley Ka Seme (MP)","MP MPUMALANGA"]
[null,"MP305 Lekwa","MP MPUMALANGA"]
[null,"MP306 Dipaleseng","MP MPUMALANGA"]
[null,"MP307 Govan Mbeki","MP MPUMALANGA"]
[null,"DC30 Gert Sibande","MP MPUMALANGA"]
[null,"MP311 Victor Khanye","MP MPUMALANGA"]
[null,"MP312 Emalahleni (Mp)","MP MPUMALANGA"]
[null,"MP313 Steve Tshwete","MP MPUMALANGA"]
[null,"MP314 Emakhazeni","MP MPUMALANGA"]
[null,"MP315 Thembisile Hani","MP MPUMALANGA"]
[null,"MP316 Dr J.S. Moroka","MP MPUMALANGA"]
[null,"DC31 Nkangala","MP MPUMALANGA"]
[null,"MP321 Thaba Chweu","MP MPUMALANGA"]
[null,"MP324 Nkomazi","MP MPUMALANGA"]
[null,"MP325 Bushbuckridge","MP MPUMALANGA"]
[null,"MP326 City of Mbombela","MP MPUMALANGA"]
[null,"DC32 Ehlanzeni","MP MPUMALANGA"]
[null,"NC451 Joe Morolong","NC NORTHERN CAPE"]
[null,"NC452 Ga-Segonyana","NC NORTHERN CAPE"]
[null,"NC453 Gamagara","NC NORTHERN CAPE"]
[null,"DC45 John Taolo Gaetsewe","NC NORTHERN CAPE"]
[null,"NC061 Richtersveld","NC NORTHERN CAPE"]
[null,"NC062 Nama Khoi","NC NORTHERN CAPE"]
[null,"NC064 Kamiesberg","NC NORTHERN CAPE"]
[null,"NC065 Hantam","NC NORTHERN CAPE"]
[null,"NC066 Karoo Hoogland","NC NORTHERN CAPE"]
[null,"NC067 Khai-Ma","NC NORTHERN CAPE"]
[null,"DC6 Namakwa","NC NORTHERN CAPE"]
[null,"NC071 Ubuntu","NC NORTHERN CAPE"]
[null,"NC072 Umsobomvu","NC NORTHERN CAPE"]
[null,"NC073 Emthanjeni","NC NORTHERN CAPE"]
[null,"NC074 Kareeberg","NC NORTHERN CAPE"]
[null,"NC075 Renosterberg","NC NORTHERN CAPE"]
[null,"NC076 Thembelihle","NC NORTHERN CAPE"]
[null,"NC077 Siyathemba","NC NORTHERN CAPE"]
[null,"NC078 Siyancuma","NC NORTHERN CAPE"]
[null,"DC7 Pixley Ka Seme (Nc)","NC NORTHERN CAPE"]
[null,"NC082 !Kai! Garib","NC NORTHERN CAPE"]
[null,"NC084 !Kheis","NC NORTHERN CAPE"]
[null,"NC085 Tsantsabane","NC NORTHERN CAPE"]
[null,"NC086 Kgatelopele","NC NORTHERN CAPE"]
[null,"NC087 Dawid Kruiper","NC NORTHERN CAPE"]
[null,"DC8 Z F Mgcawu","NC NORTHERN CAPE"]
[null,"NC091 Sol Plaatje","NC NORTHERN CAPE"]
[null,"NC092 Dikgatlong","NC NORTHERN CAPE"]
[null,"NC093 Magareng","NC NORTHERN CAPE"]
[null,"NC094 Phokwane","NC NORTHERN CAPE"]
[null,"DC9 Frances Baard","NC NORTHERN CAPE"]
[null,"NW371 Moretele","NW NORTH WEST"]
[null,"NW372 Madibeng","NW NORTH WEST"]
[null,"NW373 Rustenburg","NW NORTH WEST"]
[null,"NW374 Kgetlengrivier","NW NORTH WEST"]
[null,"NW375 Moses Kotane","NW NORTH WEST"]
[null,"DC37 Bojanala Platinum","NW NORTH WEST"]
[null,"NW381 Ratlou","NW NORTH WEST"]
[null,"NW382 Tswaing","NW NORTH WEST"]
[null,"NW383 Mafikeng","NW NORTH WEST"]
[null,"NW384 Ditsobotla","NW NORTH WEST"]
[null,"NW385 Ramotshere Moiloa","NW NORTH WEST"]
[null,"DC38 Ngaka Modiri Molema","NW NORTH WEST"]
[null,"NW392 Naledi (Nw)","NW NORTH WEST"]
[null,"NW393 Mamusa","NW NORTH WEST"]
[null,"NW394 Greater Taung","NW NORTH WEST"]
[null,"NW396 Lekwa-Teemane","NW NORTH WEST"]
[null,"NW397 Kagisano-Molopo","NW NORTH WEST"]
[null,"DC39 Dr Ruth Segomotsi Mompati","NW NORTH WEST"]
[null,"NW403 City Of Matlosana","NW NORTH WEST"]
[null,"NW404 Maquassi Hills","NW NORTH WEST"]
[null,"NW405 J B Marks","NW NORTH WEST"]
[null,"DC40 Dr Kenneth Kaunda","NW NORTH WEST"]
[null,"CPT Cape Town","WC WESTERN CAPE"]
[null,"WC011 Matzikama","WC WESTERN CAPE"]
[null,"WC012 Cederberg","WC WESTERN CAPE"]
[null,"WC013 Bergrivier","WC WESTERN CAPE"]
[null,"WC014 Saldanha Bay","WC WESTERN CAPE"]
[null,"WC015 Swartland","WC WESTERN CAPE"]
[null,"DC1 West Coast","WC WESTERN CAPE"]
[null,"WC022 Witzenberg","WC WESTERN CAPE"]
[null,"WC023 Drakenstein","WC WESTERN CAPE"]
[null,"WC024 Stellenbosch","WC WESTERN CAPE"]
[null,"WC025 Breede Valley","WC WESTERN CAPE"]
[null,"WC026 Langeberg","WC WESTERN CAPE"]
[null,"DC2 Cape Winelands DM","WC WESTERN CAPE"]
[null,"WC031 Theewaterskloof","WC WESTERN CAPE"]
[null,"WC032 Overstrand","WC WESTERN CAPE"]
[null,"WC033 Cape Agulhas","WC WESTERN CAPE"]
[null,"WC034 Swellendam","WC WESTERN CAPE"]
[null,"DC3 Overberg","WC WESTERN CAPE"]
[null,"WC041 Kannaland","WC WESTERN CAPE"]
[null,"WC042 Hessequa","WC WESTERN CAPE"]
[null,"WC043 Mossel Bay","WC WESTERN CAPE"]
[null,"WC044 George","WC WESTERN CAPE"]
[null,"WC045 Oudtshoorn","WC WESTERN CAPE"]
[null,"WC047 Bitou","WC WESTERN CAPE"]
[null,"WC048 Knysna","WC WESTERN CAPE"]
[null,"DC4 Garden Route","WC WESTERN CAPE"]
[null,"WC051 Laingsburg","WC WESTERN CAPE"]
[null,"WC052 Prince Albert","WC WESTERN CAPE"]
[null,"WC053 Beaufort West","WC WESTERN CAPE"]
[null,"DC5 Central Karoo","WC WESTERN CAPE"]
[]
[]
[]
[]
[]
[]
[]
[]
[]
[]
[]
[]
[]
[]
[]
[]
[]
[]
[]
[]
[]
[null,null,{"$f":"COUNTA(C30:C307)","v":257}]

{"sheet":"Org structure","index":22,"n_rows":166,"n_cols":9,"rows_kept":166,"cut":false,"hidden":false,"merged":[]}
["Organisational Structure Votes",null,"Organisational Structure Sub-Votes",null,"Display Sub-Votes"]
[{"$f":"B2&\" - \"& C2","v":"Vote 1 - Finance and Admin"},"Vote 1",{"$f":"IFERROR(VLOOKUP($I2,MainVote,3,0),\"[NAME OF VOTE \"&I2&\"]\")","v":"Finance and Admin"},null,null,null,null,null,1]
[{"$f":"B13&\" - \"& C13","v":"Vote 2 - Executive and council"},1.1000000000000001,{"$f":"IFERROR(VLOOKUP($H3,SubVote,3,0),\"[Name of sub-vote]\")","v":"Supply Chain Management"},{"$f":"CONCATENATE(B3, \" - \", C3)","v":"1.1 - Supply Chain Management"},"1.1 - Electricity",{"$f":"IF(C3<>\"[Name of sub-vote]\",B3&\" - \"&C3,\"\")","v":"1.1 - Supply Chain Management"},null,11]
[{"$f":"B24&\" - \"&C24","v":"Vote 3 - Community and social services"},1.2,"Finance","1.2 - Finance","1.2 - Street Lighting and Signal Systems",{"$f":"IF(C4<>\"[Name of sub-vote]\",B4&\" - \"&C4,\"\")","v":"1.2 - Finance"},null,12]
[{"$f":"B35&\" - \"&C35","v":"Vote 4 - Internal Audit"},1.3,"Fleet Management","1.3 - Fleet Management",null,"1.3 - Fleet Management",null,13]
[{"$f":"B46&\" - \"&C46","v":"Vote 5 - Waste Management"},1.4,"Security Services","1.4 - Security Services",null,"1.4 - Security Services",null,14]
[{"$f":"B57&\" - \"&C57","v":"Vote 6 - Energy Sources"},1.5,"Information Technology","1.5 - Information Technology",null,"1.5 - Information Technology",null,15]
[{"$f":"B68&\" - \"&C68","v":"Vote 7 - Planning and Development"},1.6,"Human Resources","1.6 - Human Resources",null,"1.6 - Human Resources",null,16]
[{"$f":"B79&\" - \"&C79","v":"Vote 8 - Public Safety"},1.7,"Administrative and Corporate Support","1.7 - Administrative and Corporate Support",null,"1.7 - Administrative and Corporate Support",null,17]
[{"$f":"B90&\" - \"&C90","v":"Vote 9 - Roads"},1.8,"Legal Services","1.8 - Legal Services",null,"1.8 - Legal Services",null,18]
[{"$f":"B101&\" - \"&C101","v":"Vote 10 - Sport and Recreation"},1.9,"Property Services","1.9 - Property Services",null,"1.9 - Property Services",null,19]
[{"$f":"B112&\" - \"&C112","v":"Vote 11 - [NAME OF VOTE 11]"},"1.10","Asset Management","1.10 - Asset Management",null,"1.10 - Asset Management",null,110]
[{"$f":"B123&\" - \"&C123","v":"Vote 12 - [NAME OF VOTE 12]"},"Vote 2",{"$f":"IFERROR(VLOOKUP($I13,MainVote,3,0),\"[NAME OF VOTE \"&I13&\"]\")","v":"Executive and council"},null,null,null,null,null,2]
[{"$f":"B134&\" - \"&C134","v":"Vote 13 - [NAME OF VOTE 13]"},2.1,{"$f":"IFERROR(VLOOKUP($H14,SubVote,3,0),\"[Name of sub-vote]\")","v":"Mayor and Council"},{"$f":"CONCATENATE(B14, \" - \", C14)","v":"2.1 - Mayor and Council"},"2.1 - [Name of sub-vote]",{"$f":"IF(C14<>\"[Name of sub-vote]\",B14&\" - \"&C14,\"\")","v":"2.1 - Mayor and Council"},null,21]
[{"$f":"B145&\" - \"&C145","v":"Vote 14 - [NAME OF VOTE 14]"},2.2000000000000002,"Municipal Manager, Town Secretary and Chief Executive","2.2 - Municipal Manager, Town Secretary and Chief Executive",null,{"$f":"IF(C15<>\"[Name of sub-vote]\",B15&\" - \"&C15,\"\")","v":"2.2 - Municipal Manager, Town Secretary and Chief Executive"},null,22]
[{"$f":"B156&\" - \"&C156","v":"Vote 15 - [NAME OF VOTE 15]"},2.2999999999999998,"[Name of sub-vote]","2.3 - [Name of sub-vote]",null,"",null,23]
[null,2.4,"[Name of sub-vote]","2.4 - [Name of sub-vote]",null,"",null,24]
[null,2.5,"[Name of sub-vote]","2.5 - [Name of sub-vote]",null,"",null,25]
[null,2.6,"[Name of sub-vote]","2.6 - [Name of sub-vote]",null,"",null,26]
[null,2.7,"[Name of sub-vote]","2.7 - [Name of sub-vote]",null,"",null,27]
[null,2.8,"[Name of sub-vote]","2.8 - [Name of sub-vote]",null,"",null,28]
[null,2.9,"[Name of sub-vote]","2.9 - [Name of sub-vote]",null,"",null,29]
[null,"2.10","[Name of sub-vote]","2.10 - [Name of sub-vote]",null,"",null,210]
[null,"Vote 3",{"$f":"IFERROR(VLOOKUP($I24,MainVote,3,0),\"[NAME OF VOTE \"&I24&\"]\")","v":"Community and social services"},null,null,null,null,null,3]
[null,3.1,{"$f":"IFERROR(VLOOKUP($H25,SubVote,3,0),\"[Name of sub-vote]\")","v":"Disaster Management"},{"$f":"CONCATENATE(B25, \" - \", C25)","v":"3.1 - Disaster Management"},"3.1 - [Name of sub-vote]",{"$f":"IF(C25<>\"[Name of sub-vote]\",B25&\" - \"&C25,\"\")","v":"3.1 - Disaster Management"},null,31]
[null,3.2,"Community Halls and Facilities","3.2 - Community Halls and Facilities",null,{"$f":"IF(C26<>\"[Name of sub-vote]\",B26&\" - \"&C26,\"\")","v":"3.2 - Community Halls and Facilities"},null,32]
[null,3.3,"Libraries and Archives","3.3 - Libraries and Archives",null,"3.3 - Libraries and Archives",null,33]
[null,3.4,"Education","3.4 - Education",null,"3.4 - Education",null,34]
[null,3.5,"[Name of sub-vote]","3.5 - [Name of sub-vote]",null,"",null,35]
[null,3.6,"Health Services","3.6 - Health Services",null,"3.6 - Health Services",null,36]
[null,3.7,"Animal Care and Diseases","3.7 - Animal Care and Diseases",null,"3.7 - Animal Care and Diseases",null,37]
[null,3.8,"[Name of sub-vote]","3.8 - [Name of sub-vote]",null,"",null,38]
[null,3.9,"[Name of sub-vote]","3.9 - [Name of sub-vote]",null,"",null,39]
[null,"3.10","[Name of sub-vote]","3.10 - [Name of sub-vote]",null,"",null,310]
[null,"Vote 4",{"$f":"IFERROR(VLOOKUP($I35,MainVote,3,0),\"[NAME OF VOTE \"&I35&\"]\")","v":"Internal Audit"},null,null,null,null,null,4]
[null,4.0999999999999996,{"$f":"IFERROR(VLOOKUP($H36,SubVote,3,0),\"[Name of sub-vote]\")","v":"Governance Function"},{"$f":"CONCATENATE(B36, \" - \", C36)","v":"4.1 - Governance Function"},"4.1 - [Name of sub-vote]",{"$f":"IF(C36<>\"[Name of sub-vote]\",B36&\" - \"&C36,\"\")","v":"4.1 - Governance Function"},null,41]
[null,4.2,"[Name of sub-vote]","4.2 - [Name of sub-vote]",null,{"$f":"IF(C37<>\"[Name of sub-vote]\",B37&\" - \"&C37,\"\")","v":""},null,42]
[null,4.3,"[Name of sub-vote]","4.3 - [Name of sub-vote]",null,"",null,43]
[null,4.4000000000000004,"[Name of sub-vote]","4.4 - [Name of sub-vote]",null,"",null,44]
[null,4.5,"[Name of sub-vote]","4.5 - [Name of sub-vote]",null,"",null,45]
[null,4.5999999999999996,"[Name of sub-vote]","4.6 - [Name of sub-vote]",null,"",null,46]
[null,4.7,"[Name of sub-vote]","4.7 - [Name of sub-vote]",null,"",null,47]
[null,4.8,"[Name of sub-vote]","4.8 - [Name of sub-vote]",null,"",null,48]
[null,4.9000000000000004,"[Name of sub-vote]","4.9 - [Name of sub-vote]",null,"",null,49]
[null,"4.10","[Name of sub-vote]","4.10 - [Name of sub-vote]",null,"",null,410]
[null,"Vote 5",{"$f":"IFERROR(VLOOKUP($I46,MainVote,3,0),\"[NAME OF VOTE \"&I46&\"]\")","v":"Waste Management"},null,null,null,null,null,5]
[null,5.0999999999999996,{"$f":"IFERROR(VLOOKUP($H47,SubVote,3,0),\"[Name of sub-vote]\")","v":"Solid Waste Removal"},{"$f":"CONCATENATE(B47, \" - \", C47)","v":"5.1 - Solid Waste Removal"},"5.1 - [Name of sub-vote]",{"$f":"IF(C47<>\"[Name of sub-vote]\",B47&\" - \"&C47,\"\")","v":"5.1 - Solid Waste Removal"},null,51]
[null,5.2,"Street Cleaning","5.2 - Street Cleaning",null,{"$f":"IF(C48<>\"[Name of sub-vote]\",B48&\" - \"&C48,\"\")","v":"5.2 - Street Cleaning"},null,52]
[null,5.3,"Solid Waste Disposal (Landfill Sites)","5.3 - Solid Waste Disposal (Landfill Sites)",null,"5.3 - Solid Waste Disposal (Landfill Sites)",null,53]
[null,5.4,"[Name of sub-vote]","5.4 - [Name of sub-vote]",null,"",null,54]
[null,5.5,"[Name of sub-vote]","5.5 - [Name of sub-vote]",null,"",null,55]
[null,5.6,"[Name of sub-vote]","5.6 - [Name of sub-vote]",null,"",null,56]
[null,5.7,"[Name of sub-vote]","5.7 - [Name of sub-vote]",null,"",null,57]
[null,5.8,"[Name of sub-vote]","5.8 - [Name of sub-vote]",null,"",null,58]
[null,5.9,"[Name of sub-vote]","5.9 - [Name of sub-vote]",null,"",null,59]
[null,"5.10","[Name of sub-vote]","5.10 - [Name of sub-vote]",null,"",null,510]
[null,"Vote 6",{"$f":"IFERROR(VLOOKUP($I57,MainVote,3,0),\"[NAME OF VOTE \"&I57&\"]\")","v":"Energy Sources"},null,null,null,null,null,6]
[null,6.1,{"$f":"IFERROR(VLOOKUP($H58,SubVote,3,0),\"[Name of sub-vote]\")","v":"Electricity"},{"$f":"CONCATENATE(B58, \" - \", C58)","v":"6.1 - Electricity"},"6.1 - [Name of sub-vote]",{"$f":"IF(C58<>\"[Name of sub-vote]\",B58&\" - \"&C58,\"\")","v":"6.1 - Electricity"},null,61]
[null,6.2,"Regional Planning and Development","6.2 - Regional Planning and Development",null,{"$f":"IF(C59<>\"[Name of sub-vote]\",B59&\" - \"&C59,\"\")","v":"6.2 - Regional Planning and Development"},null,62]
[null,6.3,"[Name of sub-vote]","6.3 - [Name of sub-vote]",null,"",null,63]
[null,6.4,"[Name of sub-vote]","6.4 - [Name of sub-vote]",null,"",null,64]
[null,6.5,"[Name of sub-vote]","6.5 - [Name of sub-vote]",null,"",null,65]
[null,6.6,"[Name of sub-vote]","6.6 - [Name of sub-vote]",null,"",null,66]
[null,6.7,"[Name of sub-vote]","6.7 - [Name of sub-vote]",null,"",null,67]
[null,6.8,"[Name of sub-vote]","6.8 - [Name of sub-vote]",null,"",null,68]
[null,6.9,"[Name of sub-vote]","6.9 - [Name of sub-vote]",null,"",null,69]
[null,"6.10","[Name of sub-vote]","6.10 - [Name of sub-vote]",null,"",null,610]
[null,"Vote 7",{"$f":"IFERROR(VLOOKUP($I68,MainVote,3,0),\"[NAME OF VOTE \"&I68&\"]\")","v":"Planning and Development"},null,null,null,null,null,7]
[null,7.1,{"$f":"IFERROR(VLOOKUP($H69,SubVote,3,0),\"[Name of sub-vote]\")","v":"Corporate Wide Strategic Planning (IDPs, LEDs)"},{"$f":"CONCATENATE(B69, \" - \", C69)","v":"7.1 - Corporate Wide Strategic Planning (IDPs, LEDs)"},"7.1 - [Name of sub-vote]",{"$f":"IF(C69<>\"[Name of sub-vote]\",B69&\" - \"&C69,\"\")","v":"7.1 - Corporate Wide Strategic Planning (IDPs, LEDs)"},null,71]
[null,7.2,"Town Planning, Building Regulations and Enforcement, and City Engineer","7.2 - Town Planning, Building Regulations and Enforcement, and City Engineer",null,{"$f":"IF(C70<>\"[Name of sub-vote]\",B70&\" - \"&C70,\"\")","v":"7.2 - Town Planning, Building Regulations and Enforcement, and City Engineer"},null,72]
[null,7.3,"Project Management Unit","7.3 - Project Management Unit",null,"7.3 - Project Management Unit",null,73]
[null,7.4,"Economic Development/Planning","7.4 - Economic Development/Planning",null,"7.4 - Economic Development/Planning",null,74]
[null,7.5,"[Name of sub-vote]","7.5 - [Name of sub-vote]",null,"",null,75]
[null,7.6,"[Name of sub-vote]","7.6 - [Name of sub-vote]",null,"",null,76]
[null,7.7,"[Name of sub-vote]","7.7 - [Name of sub-vote]",null,"",null,77]
[null,7.8,"[Name of sub-vote]","7.8 - [Name of sub-vote]",null,"",null,78]
[null,7.9,"[Name of sub-vote]","7.9 - [Name of sub-vote]",null,"",null,79]
[null,"7.10","[Name of sub-vote]","7.10 - [Name of sub-vote]",null,"",null,710]
[null,"Vote 8",{"$f":"IFERROR(VLOOKUP($I79,MainVote,3,0),\"[NAME OF VOTE \"&I79&\"]\")","v":"Public Safety"},null,null,null,null,null,8]
[null,8.1,{"$f":"IFERROR(VLOOKUP($H80,SubVote,3,0),\"[Name of sub-vote]\")","v":"Police Forces, Traffic and Street Parking Control"},{"$f":"CONCATENATE(B80, \" - \", C80)","v":"8.1 - Police Forces, Traffic and Street Parking Control"},"8.1 - [Name of sub-vote]",{"$f":"IF(C80<>\"[Name of sub-vote]\",B80&\" - \"&C80,\"\")","v":"8.1 - Police Forces, Traffic and Street Parking Control"},null,81]
[null,8.1999999999999993,"[Name of sub-vote]","8.2 - [Name of sub-vote]",null,{"$f":"IF(C81<>\"[Name of sub-vote]\",B81&\" - \"&C81,\"\")","v":""},null,82]
[null,8.3000000000000007,"[Name of sub-vote]","8.3 - [Name of sub-vote]",null,"",null,83]
[null,8.4,"[Name of sub-vote]","8.4 - [Name of sub-vote]",null,"",null,84]
[null,8.5,"[Name of sub-vote]","8.5 - [Name of sub-vote]",null,"",null,85]
[null,8.6,"[Name of sub-vote]","8.6 - [Name of sub-vote]",null,"",null,86]
[null,8.6999999999999993,"[Name of sub-vote]","8.7 - [Name of sub-vote]",null,"",null,87]
[null,8.8000000000000007,"[Name of sub-vote]","8.8 - [Name of sub-vote]",null,"",null,88]
[null,8.9,"[Name of sub-vote]","8.9 - [Name of sub-vote]",null,"",null,89]
[null,"8.10","[Name of sub-vote]","8.10 - [Name of sub-vote]",null,"",null,810]
[null,"Vote 9",{"$f":"IFERROR(VLOOKUP($I90,MainVote,3,0),\"[NAME OF VOTE \"&I90&\"]\")","v":"Roads"},null,null,null,null,null,9]
[null,9.1,{"$f":"IFERROR(VLOOKUP($H91,SubVote,3,0),\"[Name of sub-vote]\")","v":"Roads"},{"$f":"CONCATENATE(B91, \" - \", C91)","v":"9.1 - Roads"},"9.1 - [Name of sub-vote]",{"$f":"IF(C92<>\"[Name of sub-vote]\",B92&\" - \"&C92,\"\")","v":""},null,91]
[null,9.1999999999999993,"[Name of sub-vote]","9.2 - [Name of sub-vote]",null,{"$f":"IF(C93<>\"[Name of sub-vote]\",B93&\" - \"&C93,\"\")","v":""},null,92]
[null,9.3000000000000007,"[Name of sub-vote]","9.3 - [Name of sub-vote]",null,"",null,93]
[null,9.4,"[Name of sub-vote]","9.4 - [Name of sub-vote]",null,"",null,94]
[null,9.5,"[Name of sub-vote]","9.5 - [Name of sub-vote]",null,"",null,95]
[null,9.6,"[Name of sub-vote]","9.6 - [Name of sub-vote]",null,"",null,96]
[null,9.6999999999999993,"[Name of sub-vote]","9.7 - [Name of sub-vote]",null,"",null,97]
[null,9.8000000000000007,"[Name of sub-vote]","9.8 - [Name of sub-vote]",null,"",null,98]
[null,9.9,"[Name of sub-vote]","9.9 - [Name of sub-vote]",null,"",null,99]
[null,"9.10","[Name of sub-vote]","9.10 - [Name of sub-vote]",null,null,null,910]
[null,"Vote 10",{"$f":"IFERROR(VLOOKUP($I101,MainVote,3,0),\"[NAME OF VOTE \"&I101&\"]\")","v":"Sport and Recreation"},null,null,null,null,null,10]
[null,10.1,{"$f":"IFERROR(VLOOKUP($H102,SubVote,3,0),\"[Name of sub-vote]\")","v":"Recreational Facilities"},{"$f":"CONCATENATE(B102, \" - \", C102)","v":"10.1 - Recreational Facilities"},"10.1 - [Name of sub-vote]",{"$f":"IF(C102<>\"[Name of sub-vote]\",B102&\" - \"&C102,\"\")","v":"10.1 - Recreational Facilities"},null,101]
[null,10.199999999999999,"[Name of sub-vote]","10.2 - [Name of sub-vote]",null,{"$f":"IF(C103<>\"[Name of sub-vote]\",B103&\" - \"&C103,\"\")","v":""},null,102]
[null,10.3,"[Name of sub-vote]","10.3 - [Name of sub-vote]",null,"",null,103]
[null,10.4,"[Name of sub-vote]","10.4 - [Name of sub-vote]",null,"",null,104]
[null,10.5,"[Name of sub-vote]","10.5 - [Name of sub-vote]",null,"",null,105]
[null,10.6,"[Name of sub-vote]","10.6 - [Name of sub-vote]",null,"",null,106]
[null,10.7,"[Name of sub-vote]","10.7 - [Name of sub-vote]",null,"",null,107]
[null,10.8,"[Name of sub-vote]","10.8 - [Name of sub-vote]",null,"",null,108]
[null,10.9,"[Name of sub-vote]","10.9 - [Name of sub-vote]",null,"",null,109]
[null,"10.10","[Name of sub-vote]","10.10 - [Name of sub-vote]",null,"",null,1010]
[null,"Vote 11",{"$f":"IFERROR(VLOOKUP($I112,MainVote,3,0),\"[NAME OF VOTE \"&I112&\"]\")","v":"[NAME OF VOTE 11]"},null,null,null,null,null,11]
[null,11.1,{"$f":"IFERROR(VLOOKUP($H113,SubVote,3,0),\"[Name of sub-vote]\")","v":"[Name of sub-vote]"},{"$f":"CONCATENATE(B113, \" - \", C113)","v":"11.1 - [Name of sub-vote]"},"11.1 - [Name of sub-vote]",{"$f":"IF(C113<>\"[Name of sub-vote]\",B113&\" - \"&C113,\"\")","v":""},null,111]
[null,11.2,"[Name of sub-vote]","11.2 - [Name of sub-vote]",null,{"$f":"IF(C114<>\"[Name of sub-vote]\",B114&\" - \"&C114,\"\")","v":""},null,112]
[null,11.3,"[Name of sub-vote]","11.3 - [Name of sub-vote]",null,"",null,113]
[null,11.4,"[Name of sub-vote]","11.4 - [Name of sub-vote]",null,"",null,114]
[null,11.5,"[Name of sub-vote]","11.5 - [Name of sub-vote]",null,"",null,115]
[null,11.6,"[Name of sub-vote]","11.6 - [Name of sub-vote]",null,"",null,116]
[null,11.7,"[Name of sub-vote]","11.7 - [Name of sub-vote]",null,"",null,117]
[null,11.8,"[Name of sub-vote]","11.8 - [Name of sub-vote]",null,"",null,118]
[null,11.9,"[Name of sub-vote]","11.9 - [Name of sub-vote]",null,"",null,119]
[null,"11.10","[Name of sub-vote]","11.10 - [Name of sub-vote]",null,"",null,1110]
[null,"Vote 12",{"$f":"IFERROR(VLOOKUP($I123,MainVote,3,0),\"[NAME OF VOTE \"&I123&\"]\")","v":"[NAME OF VOTE 12]"},null,null,null,null,null,12]
[null,12.1,{"$f":"IFERROR(VLOOKUP($H124,SubVote,3,0),\"[Name of sub-vote]\")","v":"[Name of sub-vote]"},{"$f":"CONCATENATE(B124, \" - \", C124)","v":"12.1 - [Name of sub-vote]"},"12.1 - [Name of sub-vote]",{"$f":"IF(C124<>\"[Name of sub-vote]\",B124&\" - \"&C124,\"\")","v":""},null,121]
[null,12.2,"[Name of sub-vote]","12.2 - [Name of sub-vote]",null,{"$f":"IF(C125<>\"[Name of sub-vote]\",B125&\" - \"&C125,\"\")","v":""},null,122]
[null,12.3,"[Name of sub-vote]","12.3 - [Name of sub-vote]",null,"",null,123]
[null,12.4,"[Name of sub-vote]","12.4 - [Name of sub-vote]",null,"",null,124]
[null,12.5,"[Name of sub-vote]","12.5 - [Name of sub-vote]",null,"",null,125]
[null,12.6,"[Name of sub-vote]","12.6 - [Name of sub-vote]",null,"",null,126]
[null,12.7,"[Name of sub-vote]","12.7 - [Name of sub-vote]",null,"",null,127]
[null,12.8,"[Name of sub-vote]","12.8 - [Name of sub-vote]",null,"",null,128]
[null,12.9,"[Name of sub-vote]","12.9 - [Name of sub-vote]",null,"",null,129]
[null,"12.10","[Name of sub-vote]","12.10 - [Name of sub-vote]",null,"",null,1210]
[null,"Vote 13",{"$f":"IFERROR(VLOOKUP($I134,MainVote,3,0),\"[NAME OF VOTE \"&I134&\"]\")","v":"[NAME OF VOTE 13]"},null,null,null,null,null,13]
[null,13.1,{"$f":"IFERROR(VLOOKUP($H135,SubVote,3,0),\"[Name of sub-vote]\")","v":"[Name of sub-vote]"},{"$f":"CONCATENATE(B135, \" - \", C135)","v":"13.1 - [Name of sub-vote]"},"13.1 - [Name of sub-vote]",{"$f":"IF(C135<>\"[Name of sub-vote]\",B135&\" - \"&C135,\"\")","v":""},null,131]
[null,13.2,"[Name of sub-vote]","13.2 - [Name of sub-vote]",null,{"$f":"IF(C136<>\"[Name of sub-vote]\",B136&\" - \"&C136,\"\")","v":""},null,132]
[null,13.3,"[Name of sub-vote]","13.3 - [Name of sub-vote]",null,"",null,133]
[null,13.4,"[Name of sub-vote]","13.4 - [Name of sub-vote]",null,"",null,134]
[null,13.5,"[Name of sub-vote]","13.5 - [Name of sub-vote]",null,"",null,135]
[null,13.6,"[Name of sub-vote]","13.6 - [Name of sub-vote]",null,"",null,136]
[null,13.7,"[Name of sub-vote]","13.7 - [Name of sub-vote]",null,"",null,137]
[null,13.8,"[Name of sub-vote]","13.8 - [Name of sub-vote]",null,"",null,138]
[null,13.9,"[Name of sub-vote]","13.9 - [Name of sub-vote]",null,"",null,139]
[null,"13.10","[Name of sub-vote]","13.10 - [Name of sub-vote]",null,"",null,1310]
[null,"Vote 14",{"$f":"IFERROR(VLOOKUP($I145,MainVote,3,0),\"[NAME OF VOTE \"&I145&\"]\")","v":"[NAME OF VOTE 14]"},null,null,null,null,null,14]
[null,14.1,{"$f":"IFERROR(VLOOKUP($H146,SubVote,3,0),\"[Name of sub-vote]\")","v":"[Name of sub-vote]"},{"$f":"CONCATENATE(B146, \" - \", C146)","v":"14.1 - [Name of sub-vote]"},"14.1 - [Name of sub-vote]",{"$f":"IF(C146<>\"[Name of sub-vote]\",B146&\" - \"&C146,\"\")","v":""},null,141]
[null,14.2,"[Name of sub-vote]","14.2 - [Name of sub-vote]",null,{"$f":"IF(C147<>\"[Name of sub-vote]\",B147&\" - \"&C147,\"\")","v":""},null,142]
[null,14.3,"[Name of sub-vote]","14.3 - [Name of sub-vote]",null,"",null,143]
[null,14.4,"[Name of sub-vote]","14.4 - [Name of sub-vote]",null,"",null,144]
[null,14.5,"[Name of sub-vote]","14.5 - [Name of sub-vote]",null,"",null,145]
[null,14.6,"[Name of sub-vote]","14.6 - [Name of sub-vote]",null,"",null,146]
[null,14.7,"[Name of sub-vote]","14.7 - [Name of sub-vote]",null,"",null,147]
[null,14.8,"[Name of sub-vote]","14.8 - [Name of sub-vote]",null,"",null,148]
[null,14.9,"[Name of sub-vote]","14.9 - [Name of sub-vote]",null,"",null,149]
[null,"14.10","[Name of sub-vote]","14.10 - [Name of sub-vote]",null,"",null,1410]
[null,"Vote 15",{"$f":"IFERROR(VLOOKUP($I156,MainVote,3,0),\"[NAME OF VOTE \"&I156&\"]\")","v":"[NAME OF VOTE 15]"},null,null,null,null,null,15]
[null,15.1,{"$f":"IFERROR(VLOOKUP($H157,SubVote,3,0),\"[Name of sub-vote]\")","v":"[Name of sub-vote]"},{"$f":"CONCATENATE(B157, \" - \", C157)","v":"15.1 - [Name of sub-vote]"},"15.1 - [Name of sub-vote]",{"$f":"IF(C157<>\"[Name of sub-vote]\",B157&\" - \"&C157,\"\")","v":""},null,151]
[null,15.2,"[Name of sub-vote]","15.2 - [Name of sub-vote]",null,{"$f":"IF(C158<>\"[Name of sub-vote]\",B158&\" - \"&C158,\"\")","v":""},null,152]
[null,15.3,"[Name of sub-vote]","15.3 - [Name of sub-vote]",null,"",null,153]
[null,15.4,"[Name of sub-vote]","15.4 - [Name of sub-vote]",null,"",null,154]
[null,15.5,"[Name of sub-vote]","15.5 - [Name of sub-vote]",null,"",null,155]
[null,15.6,"[Name of sub-vote]","15.6 - [Name of sub-vote]",null,"",null,156]
[null,15.7,"[Name of sub-vote]","15.7 - [Name of sub-vote]",null,"",null,157]
[null,15.8,"[Name of sub-vote]","15.8 - [Name of sub-vote]",null,"",null,158]
[null,15.9,"[Name of sub-vote]","15.9 - [Name of sub-vote]",null,"",null,159]
[null,"15.10","[Name of sub-vote]","15.10 - [Name of sub-vote]",null,null,null,1510]

{"sheet":"Contacts","index":23,"n_rows":140,"n_cols":3,"rows_kept":140,"cut":false,"hidden":false,"merged":[[67,2,67,3],[30,2,30,3],[39,0,39,1],[7,2,7,3],[10,2,10,3],[12,2,12,3],[13,0,13,1],[29,0,29,1],[29,2,29,3],[39,2,39,3],[48,0,48,1],[48,2,48,3],[57,0,57,1],[57,2,57,3],[58,2,58,3],[76,0,76,1],[76,2,76,3],[84,0,84,1],[84,2,84,3],[92,0,92,1],[92,2,92,3],[124,0,124,1],[124,2,124,3],[132,0,132,1],[132,2,132,3],[100,0,100,1],[100,2,100,3],[108,0,108,1],[108,2,108,3],[116,0,116,1],[116,2,116,3]]}
[{"$f":"'Template names'!$B$63&\" - \"&\" Contact Information\"","v":"EC139 Enoch Mgijima -  Contact Information"}]
[]
["A. GENERAL INFORMATION"]
["Municipality",{"$f":"'Template names'!$B$63","v":"EC139 Enoch Mgijima"},"Set name on 'Instructions' sheet"]
[]
["Grade",null,"1 Grade in terms of the Remuneration of Public Office Bearers Act."]
[]
["Province",{"$f":"IF(B4>\" \",VLOOKUP(B4,'Lookup and lists'!B29:C312,2, FALSE),\" \")","v":"EC EASTERN CAPE"}]
[]
["Web Address"]
[]
["e-mail Address"]
[]
["B. CONTACT INFORMATION"]
["Postal address:"]
["P.O. Box"]
["City / Town"]
["Postal Code"]
[]
["Street address"]
["Building"]
["Street No. & Name"]
["City / Town"]
["Postal Code"]
[]
["General Contacts"]
["Telephone number"]
["Fax number"]
[]
["C. POLITICAL LEADERSHIP"]
["Speaker:",null,"Secretary/PA to the Speaker:"]
["ID Number",null,"ID Number"]
["Title",null,"Title"]
["Name",null,"Name"]
["Telephone number",null,"Telephone number"]
["Cell number",null,"Cell number"]
["Fax number",null,"Fax number"]
["E-mail address",null,"E-mail address"]
[]
["Mayor/Executive Mayor:",null,"Secretary/PA to the Mayor/Executive Mayor:"]
["ID Number",null,"ID Number"]
["Title",null,"Title"]
["Name",null,"Name"]
["Telephone number",null,"Telephone number"]
["Cell number",null,"Cell number"]
["Fax number",null,"Fax number"]
["E-mail address",null,"E-mail address"]
[]
["Deputy Mayor/Executive Mayor:",null,"Secretary/PA to the Deputy Mayor/Executive Mayor:"]
["ID Number",null,"ID Number"]
["Title",null,"Title"]
["Name",null,"Name"]
["Telephone number",null,"Telephone number"]
["Cell number",null,"Cell number"]
["Fax number",null,"Fax number"]
["E-mail address",null,"E-mail address"]
[]
["D. MANAGEMENT LEADERSHIP"]
["Municipal Manager:",null,"Secretary/PA to the Municipal Manager:"]
["ID Number",null,"ID Number"]
["Title",null,"Title"]
["Name",null,"Name"]
["Telephone number",null,"Telephone number"]
["Cell number",null,"Cell number"]
["Fax number",null,"Fax number"]
["E-mail address",null,"E-mail address"]
[]
["Chief Financial Officer",null,"Secretary/PA to the Chief Financial Officer"]
["ID Number",null,"ID Number"]
["Title",null,"Title"]
["Name","","Name"]
["Telephone number",null,"Telephone number"]
["Cell number",null,"Cell number"]
["Fax number",null,"Fax number"]
["E-mail address",null,"E-mail address"]
[]
["Official responsible for submitting financial information",null,"Official responsible for submitting financial information"]
["ID Number",null,"ID Number"]
["Title",null,"Title"]
["Name",null,"Name"]
["Telephone number",null,"Telephone number"]
["Cell number",null,"Cell number"]
["Fax number",null,"Fax number"]
["E-mail address",null,"E-mail address"]
["Official responsible for submitting financial information",null,"Official responsible for submitting financial information"]
["ID Number",null,"ID Number"]
["Title",null,"Title"]
["Name",null,"Name"]
["Telephone number",null,"Telephone number"]
["Cell number",null,"Cell number"]
["Fax number",null,"Fax number"]
["E-mail address",null,"E-mail address"]
["Official responsible for submitting financial information",null,"Official responsible for submitting financial information"]
["ID Number",null,"ID Number"]
["Title",null,"Title"]
["Name",null,"Name"]
["Telephone number",null,"Telephone number"]
["Cell number",null,"Cell number"]
["Fax number",null,"Fax number"]
["E-mail address",null,"E-mail address"]
["Official responsible for submitting financial information",null,"Official responsible for submitting financial information"]
["ID Number",null,"ID Number"]
["Title",null,"Title"]
["Name",null,"Name"]
["Telephone number",null,"Telephone number"]
["Cell number",null,"Cell number"]
["Fax number",null,"Fax number"]
["E-mail address",null,"E-mail address"]
["Official responsible for submitting financial information",null,"Official responsible for submitting financial information"]
["ID Number",null,"ID Number"]
["Title",null,"Title"]
["Name",null,"Name"]
["Telephone number",null,"Telephone number"]
["Cell number",null,"Cell number"]
["Fax number",null,"Fax number"]
["E-mail address",null,"E-mail address"]
["Official responsible for submitting financial information",null,"Official responsible for submitting financial information"]
["ID Number",null,"ID Number"]
["Title",null,"Title"]
["Name",null,"Name"]
["Telephone number",null,"Telephone number"]
["Cell number",null,"Cell number"]
["Fax number",null,"Fax number"]
["E-mail address",null,"E-mail address"]
["Official responsible for submitting financial information",null,"Official responsible for submitting financial information"]
["ID Number",null,"ID Number"]
["Title",null,"Title"]
["Name",null,"Name"]
["Telephone number",null,"Telephone number"]
["Cell number",null,"Cell number"]
["Fax number",null,"Fax number"]
["E-mail address",null,"E-mail address"]
["Official responsible for submitting financial information"]
["ID Number"]
["Title"]
["Name"]
["Telephone number"]
["Cell number"]
["Fax number"]
["E-mail address"]

{"sheet":"B1-Sum","index":24,"n_rows":77,"n_cols":12,"rows_kept":77,"cut":false,"hidden":false,"merged":[[74,0,74,12],[76,0,76,12],[1,1,1,9],[1,0,3,0],[69,0,69,12],[70,0,70,12],[71,0,71,12],[72,0,72,12]]}
[{"$f":"muni&\" - \"&adjsum&\" - \"&Date","v":"EC139 Enoch Mgijima - Table B1 Adjustments Budget Summary - "}]
[{"$f":"desc","v":"Description"},{"$f":"Head2","v":"Budget Year 2021/22"},null,null,null,null,null,null,null,null,{"$f":"Head10","v":"Budget Year +1 2022/23"},{"$f":"Head11","v":"Budget Year +2 2023/24"}]
[null,{"$f":"Head6","v":"Original Budget"},{"$f":"Head54","v":"Prior Adjusted"},{"$f":"Head51","v":"Accum. Funds"},{"$f":"Head52","v":"Multi-year capital"},{"$f":"Head53","v":"Unfore. Unavoid."},{"$f":"Head55","v":"Nat. or Prov. Govt"},{"$f":"Head50","v":"Other Adjusts."},{"$f":"Head56","v":"Total Adjusts."},{"$f":"Head7","v":"Adjusted Budget"},{"$f":"Head7","v":"Adjusted Budget"},{"$f":"Head7","v":"Adjusted Budget"}]
[null,null,1,2,3,4,5,6,7,8]
["R thousands","A","A1","B","C","D","E","F","G","H"]
["Financial Performance"]
["Property rates",{"$f":"SUM('B4-FinPerf RE'!C7:C7)","v":18240560},{"$f":"SUM('B4-FinPerf RE'!D7:D7)","v":0},{"$f":"SUM('B4-FinPerf RE'!E7:E7)","v":0},{"$f":"SUM('B4-FinPerf RE'!F7:F7)","v":0},{"$f":"SUM('B4-FinPerf RE'!G7:G7)","v":0},{"$f":"SUM('B4-FinPerf RE'!H7:H7)","v":0},{"$f":"SUM('B4-FinPerf RE'!I7:I7)","v":2745080},{"$f":"SUM(D7:H7)","v":2745080},{"$f":"IF(C7=0,B7+I7,C7+I7)","v":20985640},{"$f":"SUM('B4-FinPerf RE'!L7:L7)","v":19125849},{"$f":"SUM('B4-FinPerf RE'!M7:M7)","v":20051518}]
["Service charges",{"$f":"SUM('B4-FinPerf RE'!C8:C11)","v":208500},{"$f":"SUM('B4-FinPerf RE'!D8:D11)","v":0},{"$f":"SUM('B4-FinPerf RE'!E8:E11)","v":0},{"$f":"SUM('B4-FinPerf RE'!F8:F11)","v":0},{"$f":"SUM('B4-FinPerf RE'!G8:G11)","v":0},{"$f":"SUM('B4-FinPerf RE'!H8:H11)","v":0},{"$f":"SUM('B4-FinPerf RE'!I8:I11)","v":415860},{"$f":"SUM('B4-FinPerf RE'!J8:J11)","v":415860},{"$f":"SUM('B4-FinPerf RE'!K8:K11)","v":624360},{"$f":"SUM('B4-FinPerf RE'!L8:L11)","v":475011},{"$f":"SUM('B4-FinPerf RE'!M8:M11)","v":497811}]
["Investment revenue",{"$f":"'B4-FinPerf RE'!C14","v":2145919},{"$f":"'B4-FinPerf RE'!D14","v":0},{"$f":"'B4-FinPerf RE'!E14","v":0},{"$f":"'B4-FinPerf RE'!F14","v":0},{"$f":"'B4-FinPerf RE'!G14","v":0},{"$f":"'B4-FinPerf RE'!H14","v":0},{"$f":"'B4-FinPerf RE'!I14","v":0},0,2145919,{"$f":"'B4-FinPerf RE'!L14","v":7523395},{"$f":"'B4-FinPerf RE'!M14","v":7884517}]
["Transfers recognised - operational",{"$f":"'B4-FinPerf RE'!C20","v":196149053},{"$f":"'B4-FinPerf RE'!D20","v":0},{"$f":"'B4-FinPerf RE'!E20","v":0},{"$f":"'B4-FinPerf RE'!F20","v":0},{"$f":"'B4-FinPerf RE'!G20","v":0},{"$f":"'B4-FinPerf RE'!H20","v":0},{"$f":"'B4-FinPerf RE'!I20","v":-2477410},-2477410,193671643,{"$f":"'B4-FinPerf RE'!L20","v":198437000},{"$f":"'B4-FinPerf RE'!M20","v":211288000}]
["Other own revenue",{"$f":"'B4-FinPerf RE'!C13+'B4-FinPerf RE'!C15+'B4-FinPerf RE'!C16+'B4-FinPerf RE'!C17+'B4-FinPerf RE'!C18+'B4-FinPerf RE'!C19+'B4-FinPerf RE'!C21+'B4-FinPerf RE'!C22","v":11449170},{"$f":"'B4-FinPerf RE'!D13+'B4-FinPerf RE'!D15+'B4-FinPerf RE'!D16+'B4-FinPerf RE'!D17+'B4-FinPerf RE'!D18+'B4-FinPerf RE'!D19+'B4-FinPerf RE'!D21+'B4-FinPerf RE'!D22","v":0},{"$f":"'B4-FinPerf RE'!E13+'B4-FinPerf RE'!E15+'B4-FinPerf RE'!E16+'B4-FinPerf RE'!E17+'B4-FinPerf RE'!E18+'B4-FinPerf RE'!E19+'B4-FinPerf RE'!E21+'B4-FinPerf RE'!E22","v":0},{"$f":"'B4-FinPerf RE'!F13+'B4-FinPerf RE'!F15+'B4-FinPerf RE'!F16+'B4-FinPerf RE'!F17+'B4-FinPerf RE'!F18+'B4-FinPerf RE'!F19+'B4-FinPerf RE'!F21+'B4-FinPerf RE'!F22","v":0},{"$f":"'B4-FinPerf RE'!G13+'B4-FinPerf RE'!G15+'B4-FinPerf RE'!G16+'B4-FinPerf RE'!G17+'B4-FinPerf RE'!G18+'B4-FinPerf RE'!G19+'B4-FinPerf RE'!G21+'B4-FinPerf RE'!G22","v":0},{"$f":"'B4-FinPerf RE'!H13+'B4-FinPerf RE'!H15+'B4-FinPerf RE'!H16+'B4-FinPerf RE'!H17+'B4-FinPerf RE'!H18+'B4-FinPerf RE'!H19+'B4-FinPerf RE'!H21+'B4-FinPerf RE'!H22","v":0},{"$f":"'B4-FinPerf RE'!I13+'B4-FinPerf RE'!I15+'B4-FinPerf RE'!I16+'B4-FinPerf RE'!I17+'B4-FinPerf RE'!I18+'B4-FinPerf RE'!I19+'B4-FinPerf RE'!I21+'B4-FinPerf RE'!I22","v":-6289838},-6289838,5159332,{"$f":"'B4-FinPerf RE'!L13+'B4-FinPerf RE'!L15+'B4-FinPerf RE'!L16+'B4-FinPerf RE'!L17+'B4-FinPerf RE'!L18+'B4-FinPerf RE'!L19+'B4-FinPerf RE'!L21+'B4-FinPerf RE'!L22","v":10804393},{"$f":"'B4-FinPerf RE'!M13+'B4-FinPerf RE'!M15+'B4-FinPerf RE'!M16+'B4-FinPerf RE'!M17+'B4-FinPerf RE'!M18+'B4-FinPerf RE'!M19+'B4-FinPerf RE'!M21+'B4-FinPerf RE'!M22","v":11340155}]
["Total Revenue (excluding capital transfers and contributions)",{"$f":"SUM(B7:B11)","v":228193202},0,0,0,0,0,-5606308,-5606308,222586894,236365648,251062001]
["Employee costs",{"$f":"'B4-FinPerf RE'!C26","v":92974675},{"$f":"'B4-FinPerf RE'!D26","v":0},{"$f":"'B4-FinPerf RE'!E26","v":0},{"$f":"'B4-FinPerf RE'!F26","v":0},{"$f":"'B4-FinPerf RE'!G26","v":0},{"$f":"'B4-FinPerf RE'!H26","v":0},{"$f":"'B4-FinPerf RE'!I26","v":-13924784},{"$f":"SUM(D13:H13)","v":-13924784},79049891,{"$f":"'B4-FinPerf RE'!L26","v":94818716},{"$f":"'B4-FinPerf RE'!M26","v":99085565}]
["Remuneration of councillors",{"$f":"'B4-FinPerf RE'!C27","v":16522612},{"$f":"'B4-FinPerf RE'!D27","v":0},{"$f":"'B4-FinPerf RE'!E27","v":0},{"$f":"'B4-FinPerf RE'!F27","v":0},{"$f":"'B4-FinPerf RE'!G27","v":0},{"$f":"'B4-FinPerf RE'!H27","v":0},{"$f":"'B4-FinPerf RE'!I27","v":-2494233},-2494233,14028379,{"$f":"'B4-FinPerf RE'!L27","v":14502609},{"$f":"'B4-FinPerf RE'!M27","v":15155229}]
["Depreciation & asset impairment",{"$f":"'B4-FinPerf RE'!C29","v":24015762},{"$f":"'B4-FinPerf RE'!D29","v":0},{"$f":"'B4-FinPerf RE'!E29","v":0},{"$f":"'B4-FinPerf RE'!F29","v":0},{"$f":"'B4-FinPerf RE'!G29","v":0},{"$f":"'B4-FinPerf RE'!H29","v":0},{"$f":"'B4-FinPerf RE'!I29","v":280228},280228,24295990,{"$f":"'B4-FinPerf RE'!L29","v":31222184},{"$f":"'B4-FinPerf RE'!M29","v":34392913}]
["Finance charges",{"$f":"'B4-FinPerf RE'!C30","v":995472},{"$f":"'B4-FinPerf RE'!D30","v":0},{"$f":"'B4-FinPerf RE'!E30","v":0},{"$f":"'B4-FinPerf RE'!F30","v":0},{"$f":"'B4-FinPerf RE'!G30","v":0},{"$f":"'B4-FinPerf RE'!H30","v":0},{"$f":"'B4-FinPerf RE'!I30","v":-500000},-500000,495472,{"$f":"'B4-FinPerf RE'!L30","v":110770},{"$f":"'B4-FinPerf RE'!M30","v":115755}]
["Inventory consumed and bulk purchases",{"$f":"SUM('B4-FinPerf RE'!C31:C32)","v":1417250},{"$f":"SUM('B4-FinPerf RE'!D31:D32)","v":0},{"$f":"SUM('B4-FinPerf RE'!E31:E32)","v":0},{"$f":"SUM('B4-FinPerf RE'!F31:F32)","v":0},{"$f":"SUM('B4-FinPerf RE'!G31:G32)","v":0},{"$f":"SUM('B4-FinPerf RE'!H31:H32)","v":0},{"$f":"SUM('B4-FinPerf RE'!I31:I32)","v":0},0,1417250,{"$f":"SUM('B4-FinPerf RE'!L31:L32)","v":1479609},{"$f":"SUM('B4-FinPerf RE'!M31:M32)","v":1546191}]
["Transfers and grants",{"$f":"'B4-FinPerf RE'!C34","v":9010000},{"$f":"'B4-FinPerf RE'!D34","v":0},{"$f":"'B4-FinPerf RE'!E34","v":0},{"$f":"'B4-FinPerf RE'!F34","v":0},{"$f":"'B4-FinPerf RE'!G34","v":0},{"$f":"'B4-FinPerf RE'!H34","v":0},{"$f":"'B4-FinPerf RE'!I34","v":4527189},4527189,13537189,{"$f":"'B4-FinPerf RE'!L34","v":1550780},{"$f":"'B4-FinPerf RE'!M34","v":1620559}]
["Other expenditure",{"$f":"'B4-FinPerf RE'!C37-SUM('B1-Sum'!B13:B18)","v":71347365},{"$f":"'B4-FinPerf RE'!D37-SUM('B1-Sum'!C13:C18)","v":0},{"$f":"'B4-FinPerf RE'!E37-SUM('B1-Sum'!D13:D18)","v":0},{"$f":"'B4-FinPerf RE'!F37-SUM('B1-Sum'!E13:E18)","v":0},{"$f":"'B4-FinPerf RE'!G37-SUM('B1-Sum'!F13:F18)","v":0},{"$f":"'B4-FinPerf RE'!H37-SUM('B1-Sum'!G13:G18)","v":0},{"$f":"'B4-FinPerf RE'!I37-SUM('B1-Sum'!H13:H18)","v":18152358},18152358,89499723,{"$f":"'B4-FinPerf RE'!L37-SUM('B1-Sum'!K13:K18)","v":77995764},{"$f":"'B4-FinPerf RE'!M37-SUM('B1-Sum'!L13:L18)","v":81535298}]
["Total Expenditure",{"$f":"SUM(B13:B19)","v":216283136},0,0,0,0,0,6040758,6040758,222323894,221680432,233451510]
["Surplus/(Deficit)",{"$f":"B12-B20","v":11910066},0,0,0,0,0,-11647066,-11647066,263000,14685216,17610491]
[{"$f":"'B4-FinPerf RE'!A40","v":"Transfers and subsidies - capital (monetary allocations) (National / Provincial and District)"},{"$f":"'B4-FinPerf RE'!C40","v":35297947},{"$f":"'B4-FinPerf RE'!D40","v":0},{"$f":"'B4-FinPerf RE'!E40","v":0},{"$f":"'B4-FinPerf RE'!F40","v":0},{"$f":"'B4-FinPerf RE'!G40","v":0},{"$f":"'B4-FinPerf RE'!H40","v":0},{"$f":"'B4-FinPerf RE'!I40","v":2502962},{"$f":"SUM(D22:H22)","v":2502962},{"$f":"IF(C22=0,B22+I22,C22+I22)","v":37800909},{"$f":"'B4-FinPerf RE'!L40","v":35007500},{"$f":"'B4-FinPerf RE'!M40","v":36582838}]
[{"$f":"'B4-FinPerf RE'!A41&\" & \"&'B4-FinPerf RE'!A42","v":"Transfers and subsidies - capital (monetary allocations) (National / Provincial Departmental Agencies, Households, Non-profit Institutions, Private Enterprises, Public Corporatons, Higher Educational Institutions) & Transfers and subsidies - capital (in-kind - all) "},{"$f":"SUM('B4-FinPerf RE'!C41:C42)","v":0},{"$f":"SUM('B4-FinPerf RE'!D41:D42)","v":0},{"$f":"SUM('B4-FinPerf RE'!E41:E42)","v":0},{"$f":"SUM('B4-FinPerf RE'!F41:F42)","v":0},{"$f":"SUM('B4-FinPerf RE'!G41:G42)","v":0},{"$f":"SUM('B4-FinPerf RE'!H41:H42)","v":0},{"$f":"SUM('B4-FinPerf RE'!I41:I42)","v":3000000},{"$f":"SUM(D23:H23)","v":3000000},{"$f":"IF(C23=0,B23+I23,C23+I23)","v":3000000},{"$f":"SUM('B4-FinPerf RE'!L41:L42)","v":0},{"$f":"SUM('B4-FinPerf RE'!M41:M42)","v":0}]
["Surplus/(Deficit) after capital transfers & contributions",{"$f":"B21+SUM(B22:B23)","v":47208013},0,0,0,0,0,-6144104,{"$f":"SUM(D24:H24)","v":-6144104},{"$f":"IF(C24=0,B24+I24,C24+I24)","v":41063909},49692716,54193329]
["Share of surplus/ (deficit) of associate",{"$f":"'B4-FinPerf RE'!C48","v":0},{"$f":"'B4-FinPerf RE'!D48","v":0},{"$f":"'B4-FinPerf RE'!E48","v":0},{"$f":"'B4-FinPerf RE'!F48","v":0},{"$f":"'B4-FinPerf RE'!G48","v":0},{"$f":"'B4-FinPerf RE'!H48","v":0},{"$f":"'B4-FinPerf RE'!I48","v":0},{"$f":"SUM(D25:H25)","v":0},{"$f":"IF(C25=0,B25+I25,C25+I25)","v":0},{"$f":"'B4-FinPerf RE'!L48","v":0},{"$f":"'B4-FinPerf RE'!M48","v":0}]
["Surplus/ (Deficit) for the year",{"$f":"B24+B25","v":47208013},0,0,0,0,0,-6144104,-6144104,41063909,49692716,54193329]
[]
["Capital expenditure & funds sources"]
["Capital expenditure",{"$f":"'B5-Capex'!C42","v":47208016},{"$f":"'B5-Capex'!D42","v":0},{"$f":"'B5-Capex'!E42","v":0},{"$f":"'B5-Capex'!F42","v":0},{"$f":"'B5-Capex'!G42","v":0},{"$f":"'B5-Capex'!H42","v":0},{"$f":"'B5-Capex'!I42","v":18781731},{"$f":"SUM(D29:H29)","v":18781731},{"$f":"IF(C29=0,B29+I29,C29+I29)","v":65989747},{"$f":"'B5-Capex'!L42","v":69074500},{"$f":"'B5-Capex'!M42","v":72182855}]
["Transfers recognised - capital",{"$f":"'B5-Capex'!C72","v":35297948},{"$f":"'B5-Capex'!D72","v":0},{"$f":"'B5-Capex'!E72","v":0},{"$f":"'B5-Capex'!F72","v":0},{"$f":"'B5-Capex'!G72","v":0},{"$f":"'B5-Capex'!H72","v":0},{"$f":"'B5-Capex'!I72","v":16842038},{"$f":"SUM(D30:H30)","v":16842038},{"$f":"IF(C30=0,B30+I30,C30+I30)","v":52139986},{"$f":"'B5-Capex'!L72","v":48070000},{"$f":"'B5-Capex'!M72","v":50233150}]
[]
["Borrowing",{"$f":"'B5-Capex'!C74","v":0},{"$f":"'B5-Capex'!D74","v":0},{"$f":"'B5-Capex'!E74","v":0},{"$f":"'B5-Capex'!F74","v":0},{"$f":"'B5-Capex'!G74","v":0},{"$f":"'B5-Capex'!H74","v":0},{"$f":"'B5-Capex'!I74","v":0},{"$f":"SUM(D32:H32)","v":0},{"$f":"IF(C32=0,B32+I32,C32+I32)","v":0},{"$f":"'B5-Capex'!L74","v":0},{"$f":"'B5-Capex'!M74","v":0}]
["Internally generated funds",{"$f":"'B5-Capex'!C75","v":11910068},{"$f":"'B5-Capex'!D75","v":0},{"$f":"'B5-Capex'!E75","v":0},{"$f":"'B5-Capex'!F75","v":0},{"$f":"'B5-Capex'!G75","v":0},{"$f":"'B5-Capex'!H75","v":0},{"$f":"'B5-Capex'!I75","v":1939693},{"$f":"SUM(D33:H33)","v":1939693},{"$f":"IF(C33=0,B33+I33,C33+I33)","v":13849761},{"$f":"'B5-Capex'!L75","v":23094500},{"$f":"'B5-Capex'!M75","v":24133755}]
["Total sources of capital funds",{"$f":"+B30+B32+B33","v":47208016},{"$f":"+C30+C32+C33","v":0},0,0,0,0,18781731,{"$f":"SUM(D34:H34)","v":18781731},{"$f":"IF(C34=0,B34+I34,C34+I34)","v":65989747},71164500,74366905]
[]
["Financial position"]
["Total current assets",{"$f":"'B6-FinPos'!C14","v":107734988},{"$f":"'B6-FinPos'!D14","v":0},{"$f":"'B6-FinPos'!E14","v":0},{"$f":"'B6-FinPos'!F14","v":0},{"$f":"'B6-FinPos'!G14","v":0},{"$f":"'B6-FinPos'!H14","v":0},{"$f":"'B6-FinPos'!I14","v":-4997351},{"$f":"SUM(D37:H37)","v":-4997351},{"$f":"IF(C37=0,B37+I37,C37+I37)","v":102737637},{"$f":"'B6-FinPos'!L14","v":125065509},{"$f":"'B6-FinPos'!M14","v":147500158}]
["Total non current assets",{"$f":"'B6-FinPos'!C26","v":350101399},{"$f":"'B6-FinPos'!D26","v":0},{"$f":"'B6-FinPos'!E26","v":0},{"$f":"'B6-FinPos'!F26","v":0},{"$f":"'B6-FinPos'!G26","v":0},{"$f":"'B6-FinPos'!H26","v":0},{"$f":"'B6-FinPos'!I26","v":19570933},{"$f":"SUM(D38:H38)","v":19570933},{"$f":"IF(C38=0,B38+I38,C38+I38)","v":369672332},{"$f":"'B6-FinPos'!L26","v":408827545},{"$f":"'B6-FinPos'!M26","v":428117561}]
["Total current liabilities",{"$f":"'B6-FinPos'!C36","v":36563380},{"$f":"'B6-FinPos'!D36","v":0},{"$f":"'B6-FinPos'!E36","v":0},{"$f":"'B6-FinPos'!F36","v":0},{"$f":"'B6-FinPos'!G36","v":0},{"$f":"'B6-FinPos'!H36","v":0},{"$f":"'B6-FinPos'!I36","v":-1694448},{"$f":"SUM(D39:H39)","v":-1694448},{"$f":"IF(C39=0,B39+I39,C39+I39)","v":34868932},{"$f":"'B6-FinPos'!L36","v":42419889},{"$f":"'B6-FinPos'!M36","v":49017364}]
["Total non current liabilities",{"$f":"'B6-FinPos'!C41","v":-26916296},{"$f":"'B6-FinPos'!D41","v":0},{"$f":"'B6-FinPos'!E41","v":0},{"$f":"'B6-FinPos'!F41","v":0},{"$f":"'B6-FinPos'!G41","v":0},{"$f":"'B6-FinPos'!H41","v":0},{"$f":"'B6-FinPos'!I41","v":0},{"$f":"SUM(D40:H40)","v":0},{"$f":"IF(C40=0,B40+I40,C40+I40)","v":-26916296},{"$f":"'B6-FinPos'!L41","v":-27827724},{"$f":"'B6-FinPos'!M41","v":-28757666}]
["Community wealth/Equity",{"$f":"'B6-FinPos'!C50","v":474263891},{"$f":"'B6-FinPos'!D50","v":0},{"$f":"'B6-FinPos'!E50","v":0},{"$f":"'B6-FinPos'!F50","v":0},{"$f":"'B6-FinPos'!G50","v":0},{"$f":"'B6-FinPos'!H50","v":0},{"$f":"'B6-FinPos'!I50","v":5632489},{"$f":"SUM(D41:H41)","v":5632489},{"$f":"IF(C41=0,B41+I41,C41+I41)","v":479896380},{"$f":"'B6-FinPos'!L50","v":507779718},{"$f":"'B6-FinPos'!M50","v":543209968}]
[]
["Cash flows"]
["Net cash from (used) operating",{"$f":"'B7-CFlow'!C19","v":124807037},{"$f":"'B7-CFlow'!D19","v":0},{"$f":"'B7-CFlow'!E19","v":0},{"$f":"'B7-CFlow'!F19","v":0},{"$f":"'B7-CFlow'!G19","v":0},{"$f":"'B7-CFlow'!H19","v":0},{"$f":"'B7-CFlow'!I19","v":-557430},{"$f":"SUM(D44:H44)","v":-557430},{"$f":"IF(C44=0,B44+I44,C44+I44)","v":124249607},{"$f":"'B7-CFlow'!L19","v":131278503},{"$f":"'B7-CFlow'!M19","v":130844543}]
["Net cash from (used) investing",{"$f":"'B7-CFlow'!C29","v":-59708016},{"$f":"'B7-CFlow'!D29","v":0},{"$f":"'B7-CFlow'!E29","v":0},{"$f":"'B7-CFlow'!F29","v":0},{"$f":"'B7-CFlow'!G29","v":0},{"$f":"'B7-CFlow'!H29","v":0},{"$f":"'B7-CFlow'!I29","v":-782961},{"$f":"SUM(D45:H45)","v":-782961},{"$f":"IF(C45=0,B45+I45,C45+I45)","v":-60490977},{"$f":"'B7-CFlow'!L29","v":-55377913},{"$f":"'B7-CFlow'!M29","v":-57795384}]
["Net cash from (used) financing",{"$f":"'B7-CFlow'!C38","v":0},{"$f":"'B7-CFlow'!D38","v":0},{"$f":"'B7-CFlow'!E38","v":0},{"$f":"'B7-CFlow'!F38","v":0},{"$f":"'B7-CFlow'!G38","v":0},{"$f":"'B7-CFlow'!H38","v":0},{"$f":"'B7-CFlow'!I38","v":0},{"$f":"SUM(D46:H46)","v":0},{"$f":"IF(C46=0,B46+I46,C46+I46)","v":0},{"$f":"'B7-CFlow'!L38","v":0},{"$f":"'B7-CFlow'!M38","v":0}]
["Cash/cash equivalents at the year end",{"$f":"'B7-CFlow'!C42","v":134221161},{"$f":"'B7-CFlow'!D42","v":0},{"$f":"'B7-CFlow'!E42","v":0},{"$f":"'B7-CFlow'!F42","v":0},{"$f":"'B7-CFlow'!G42","v":0},{"$f":"'B7-CFlow'!H42","v":0},{"$f":"'B7-CFlow'!I42","v":-1340391},{"$f":"SUM(D47:H47)","v":-1340391},{"$f":"IF(C47=0,B47+I47,C47+I47)","v":132880770},{"$f":"'B7-CFlow'!L42","v":163872513},{"$f":"'B7-CFlow'!M42","v":187072267}]
[]
["Cash backing/surplus reconciliation"]
["Cash and investments available",{"$f":"'B8-ResRecon'!C10","v":87971922},{"$f":"'B8-ResRecon'!D10","v":0},{"$f":"'B8-ResRecon'!E10","v":0},{"$f":"'B8-ResRecon'!F10","v":0},{"$f":"'B8-ResRecon'!G10","v":0},{"$f":"'B8-ResRecon'!H10","v":0},{"$f":"'B8-ResRecon'!I10","v":-1694447},{"$f":"SUM(D50:H50)","v":-1694447},{"$f":"IF(C50=0,B50+I50,C50+I50)","v":86277475},{"$f":"'B8-ResRecon'!L10","v":112016400},{"$f":"'B8-ResRecon'!M10","v":131292363}]
["Application of cash and investments",{"$f":"'B8-ResRecon'!C20","v":22734604},{"$f":"'B8-ResRecon'!D20","v":0},{"$f":"'B8-ResRecon'!E20","v":0},{"$f":"'B8-ResRecon'!F20","v":0},{"$f":"'B8-ResRecon'!G20","v":0},{"$f":"'B8-ResRecon'!H20","v":0},{"$f":"'B8-ResRecon'!I20","v":-3322475},{"$f":"SUM(D51:H51)","v":-3322475},{"$f":"IF(C51=0,B51+I51,C51+I51)","v":19412129},{"$f":"'B8-ResRecon'!L20","v":34342392},{"$f":"'B8-ResRecon'!M20","v":36963847}]
["Balance - surplus (shortfall)",{"$f":"B50-B51","v":65237318},0,0,0,0,0,1628028,1628028,66865346,77674008,94328516]
[]
["Asset Management"]
["Asset register summary (WDV)",{"$f":"'B9-Asset'!C167","v":350101399},{"$f":"'B9-Asset'!D167","v":0},{"$f":"'B9-Asset'!E167","v":0},{"$f":"'B9-Asset'!F167","v":0},{"$f":"'B9-Asset'!G167","v":0},{"$f":"'B9-Asset'!H167","v":0},{"$f":"'B9-Asset'!I167","v":7070933},{"$f":"SUM(D55:H55)","v":7070933},{"$f":"IF(C55=0,B55+I55,C55+I55)","v":357172332},{"$f":"'B9-Asset'!L167","v":392107545},{"$f":"'B9-Asset'!M167","v":410645161}]
["Depreciation ",{"$f":"'B9-Asset'!C170","v":23026560},{"$f":"'B9-Asset'!D170","v":0},{"$f":"'B9-Asset'!E170","v":0},{"$f":"'B9-Asset'!F170","v":0},{"$f":"'B9-Asset'!G170","v":0},{"$f":"'B9-Asset'!H170","v":0},{"$f":"'B9-Asset'!I170","v":1069430},{"$f":"SUM(D56:H56)","v":1069430},{"$f":"IF(C56=0,B56+I56,C56+I56)","v":24095990},{"$f":"'B9-Asset'!L170","v":30722184},{"$f":"'B9-Asset'!M170","v":33892913}]
["Renewal and Upgrading of Existing Assets",{"$f":"'B9-Asset'!C39+'B9-Asset'!C71","v":1808195},{"$f":"'B9-Asset'!D39+'B9-Asset'!D71","v":0},{"$f":"'B9-Asset'!E39+'B9-Asset'!E71","v":0},{"$f":"'B9-Asset'!F39+'B9-Asset'!F71","v":0},{"$f":"'B9-Asset'!G39+'B9-Asset'!G71","v":0},{"$f":"'B9-Asset'!H39+'B9-Asset'!H71","v":0},{"$f":"'B9-Asset'!I39+'B9-Asset'!I71","v":-1500000},{"$f":"SUM(D57:H57)","v":-1500000},{"$f":"IF(C57=0,B57+I57,C57+I57)","v":308195},{"$f":"'B9-Asset'!L39+'B9-Asset'!L71","v":209000},{"$f":"'B9-Asset'!M39+'B9-Asset'!M71","v":218405}]
["Repairs and Maintenance",{"$f":"'B9-Asset'!C171","v":5679525},{"$f":"'B9-Asset'!D171","v":0},{"$f":"'B9-Asset'!E171","v":0},{"$f":"'B9-Asset'!F171","v":0},{"$f":"'B9-Asset'!G171","v":0},{"$f":"'B9-Asset'!H171","v":0},{"$f":"'B9-Asset'!I171","v":1021144},{"$f":"SUM(D58:H58)","v":1021144},{"$f":"IF(C58=0,B58+I58,C58+I58)","v":6700669},{"$f":"'B9-Asset'!L171","v":5687775},{"$f":"'B9-Asset'!M171","v":5941475}]
[]
["Free services"]
["Cost of Free Basic Services provided",{"$f":"'B10-SerDel'!C62","v":0},{"$f":"'B10-SerDel'!D62","v":0},{"$f":"'B10-SerDel'!E62","v":0},{"$f":"'B10-SerDel'!F62","v":0},{"$f":"'B10-SerDel'!G62","v":0},{"$f":"'B10-SerDel'!H62","v":0},{"$f":"'B10-SerDel'!I62","v":0},{"$f":"'B10-SerDel'!J62","v":0},{"$f":"'B10-SerDel'!K62","v":0},{"$f":"'B10-SerDel'!L62","v":0},{"$f":"'B10-SerDel'!M62","v":0}]
["Revenue cost of free services provided",{"$f":"'B10-SerDel'!C81","v":2435621},{"$f":"'B10-SerDel'!D81","v":0},{"$f":"'B10-SerDel'!E81","v":0},{"$f":"'B10-SerDel'!F81","v":0},{"$f":"'B10-SerDel'!G81","v":0},{"$f":"'B10-SerDel'!H81","v":0},{"$f":"'B10-SerDel'!I81","v":0},{"$f":"'B10-SerDel'!J81","v":0},{"$f":"'B10-SerDel'!K81","v":2435621},{"$f":"'B10-SerDel'!L81","v":2542788},{"$f":"'B10-SerDel'!M81","v":2657214}]
["Households below minimum service level"]
["Water:",{"$f":"'B10-SerDel'!C16","v":0},{"$f":"'B10-SerDel'!D16","v":0},{"$f":"'B10-SerDel'!E16","v":0},{"$f":"'B10-SerDel'!F16","v":0},{"$f":"'B10-SerDel'!G16","v":0},{"$f":"'B10-SerDel'!H16","v":0},{"$f":"'B10-SerDel'!I16","v":0},{"$f":"SUM(D64:H64)","v":0},{"$f":"IF(C64=0,B64+I64,C64+I64)","v":0},{"$f":"'B10-SerDel'!L16","v":0},{"$f":"'B10-SerDel'!M16","v":0}]
["Sanitation/sewerage:",{"$f":"'B10-SerDel'!C28","v":0},{"$f":"'B10-SerDel'!D28","v":0},{"$f":"'B10-SerDel'!E28","v":0},{"$f":"'B10-SerDel'!F28","v":0},{"$f":"'B10-SerDel'!G28","v":0},{"$f":"'B10-SerDel'!H28","v":0},{"$f":"'B10-SerDel'!I28","v":0},{"$f":"SUM(D65:H65)","v":0},{"$f":"IF(C65=0,B65+I65,C65+I65)","v":0},{"$f":"'B10-SerDel'!L28","v":0},{"$f":"'B10-SerDel'!M28","v":0}]
["Energy:",{"$f":"'B10-SerDel'!C37","v":0},{"$f":"'B10-SerDel'!D37","v":0},{"$f":"'B10-SerDel'!E37","v":0},{"$f":"'B10-SerDel'!F37","v":0},{"$f":"'B10-SerDel'!G37","v":0},{"$f":"'B10-SerDel'!H37","v":0},{"$f":"'B10-SerDel'!I37","v":0},{"$f":"SUM(D66:H66)","v":0},{"$f":"IF(C66=0,B66+I66,C66+I66)","v":0},{"$f":"'B10-SerDel'!L37","v":0},{"$f":"'B10-SerDel'!M37","v":0}]
["Refuse:",{"$f":"'B10-SerDel'!C47","v":0},{"$f":"'B10-SerDel'!D47","v":0},{"$f":"'B10-SerDel'!E47","v":0},{"$f":"'B10-SerDel'!F47","v":0},{"$f":"'B10-SerDel'!G47","v":0},{"$f":"'B10-SerDel'!H47","v":0},{"$f":"'B10-SerDel'!I47","v":0},{"$f":"SUM(D67:H67)","v":0},{"$f":"IF(C67=0,B67+I67,C67+I67)","v":0},{"$f":"'B10-SerDel'!L47","v":0},{"$f":"'B10-SerDel'!M47","v":0}]
[]
["References"]
["1. Only complete if a previous adjusted budget has been approved in the same financial year. Reflect most recent adjusted budget."]
["2. Additional cash-backed accumulated funds/unspent funds (MFMA section 18(1)(b) and section 28(2)(e)) identified after the Original Budget approved and after annual financial statements audited (note: only where underspending could not reasonably have been foreseen)"]
["3. Increases of funds approved under MFMA section 31"]
["4. Adjustments approved in accordance with MFMA section 29 "]
["5. Adjustments to transfers from National or Provincial Government"]
["6. Adjusts. = 'Other' Adjustments proposed to be approved; including revenue under-collection (MFMA section 28(2)(a)); additional revenue appropriation on existing programmes (section 28(2))(b); projected savings (section 28(2)(d)); error correction (section 28(2)(f))"]
["7. G = B + C + D + E + F"]
["8. Adjusted Budget H = (A or A1/2 etc) + G"]

{"sheet":"B2-FinPerf SC","index":25,"n_rows":64,"n_cols":13,"rows_kept":64,"cut":false,"hidden":false,"merged":[[63,0,63,12],[58,0,58,12],[59,0,59,12],[61,0,61,12],[1,0,2,0],[1,1,2,1],[56,0,56,12],[57,0,57,12],[54,0,54,12],[1,2,1,10],[55,0,55,10]]}
[{"$f":"muni&\" - \"&_ADJ3&\" - \"&Date","v":"EC139 Enoch Mgijima - Table B2 Adjustments Budget Financial Performance (functional classification) - "}]
[{"$f":"\"Standard \"&desc","v":"Standard Description"},{"$f":"head27","v":"Ref"},{"$f":"Head2","v":"Budget Year 2021/22"},null,null,null,null,null,null,null,null,{"$f":"Head10","v":"Budget Year +1 2022/23"},{"$f":"Head11","v":"Budget Year +2 2023/24"}]
[null,null,{"$f":"Head6","v":"Original Budget"},{"$f":"Head54","v":"Prior Adjusted"},{"$f":"Head51","v":"Accum. Funds"},{"$f":"Head52","v":"Multi-year capital"},{"$f":"Head53","v":"Unfore. Unavoid."},{"$f":"Head55","v":"Nat. or Prov. Govt"},{"$f":"Head50","v":"Other Adjusts."},{"$f":"Head56","v":"Total Adjusts."},{"$f":"Head7","v":"Adjusted Budget"},{"$f":"Head7","v":"Adjusted Budget"},{"$f":"Head7","v":"Adjusted Budget"}]
[null,null,null,5,{"$f":"D4+1","v":6},7,8,9,10,11,12]
["R thousands","1, 4","A","A1","B","C","D","E","F","G","H"]
["Revenue - Functional"]
["Governance and administration",null,{"$f":"SUM(C8:C10)","v":214233708},{"$f":"SUM(D8:D10)","v":0},0,0,0,0,-136428,{"$f":"SUM(J8:J10)","v":-136428},{"$f":"SUM(K8:K10)","v":214097280},{"$f":"SUM(L8:L10)","v":226090462},{"$f":"SUM(M8:M10)","v":240409179}]
["Executive and council",null,{"$f":"B2B!C8","v":0},{"$f":"B2B!D8","v":0},{"$f":"B2B!E8","v":0},{"$f":"B2B!F8","v":0},{"$f":"B2B!G8","v":0},{"$f":"B2B!H8","v":0},{"$f":"B2B!I8","v":0},{"$f":"SUM(E8:I8)","v":0},{"$f":"IF(D8=0,C8+J8,D8+J8)","v":0},{"$f":"B2B!L8","v":0},{"$f":"B2B!M8","v":0}]
["Finance and administration",null,{"$f":"B2B!C11","v":214233708},{"$f":"B2B!D11","v":0},{"$f":"B2B!E11","v":0},{"$f":"B2B!F11","v":0},{"$f":"B2B!G11","v":0},{"$f":"B2B!H11","v":0},{"$f":"B2B!I11","v":-136428},{"$f":"SUM(E9:I9)","v":-136428},{"$f":"IF(D9=0,C9+J9,D9+J9)","v":214097280},{"$f":"B2B!L11","v":226090462},{"$f":"B2B!M11","v":240409179}]
["Internal audit",null,{"$f":"B2B!C25","v":0},{"$f":"B2B!D25","v":0},{"$f":"B2B!E25","v":0},{"$f":"B2B!F25","v":0},{"$f":"B2B!G25","v":0},{"$f":"B2B!H25","v":0},{"$f":"B2B!I25","v":0},{"$f":"SUM(E10:I10)","v":0},{"$f":"IF(D10=0,C10+J10,D10+J10)","v":0},{"$f":"B2B!L25","v":0},{"$f":"B2B!M25","v":0}]
["Community and public safety",null,{"$f":"SUM(C12:C16)","v":10882131},{"$f":"SUM(D12:D16)","v":0},0,0,0,0,-4032477,{"$f":"SUM(J12:J16)","v":-4032477},{"$f":"SUM(K12:K16)","v":6849654},{"$f":"SUM(L12:L16)","v":2990167},{"$f":"SUM(M12:M16)","v":2992910}]
["Community and social services",null,{"$f":"B2B!C28","v":10849654},{"$f":"B2B!D28","v":0},{"$f":"B2B!E28","v":0},{"$f":"B2B!F28","v":0},{"$f":"B2B!G28","v":0},{"$f":"B2B!H28","v":0},{"$f":"B2B!I28","v":-4000000},{"$f":"SUM(E12:I12)","v":-4000000},{"$f":"IF(D12=0,C12+J12,D12+J12)","v":6849654},{"$f":"B2B!L28","v":2957186},{"$f":"B2B!M28","v":2958346}]
["Sport and recreation",null,{"$f":"B2B!C50","v":0},{"$f":"B2B!D50","v":0},{"$f":"B2B!E50","v":0},{"$f":"B2B!F50","v":0},{"$f":"B2B!G50","v":0},{"$f":"B2B!H50","v":0},{"$f":"B2B!I50","v":0},{"$f":"SUM(E13:I13)","v":0},{"$f":"IF(D13=0,C13+J13,D13+J13)","v":0},{"$f":"B2B!L50","v":0},{"$f":"B2B!M50","v":0}]
["Public safety",null,{"$f":"B2B!C56","v":32477},{"$f":"B2B!D56","v":0},{"$f":"B2B!E56","v":0},{"$f":"B2B!F56","v":0},{"$f":"B2B!G56","v":0},{"$f":"B2B!H56","v":0},{"$f":"B2B!I56","v":-32477},{"$f":"SUM(E14:I14)","v":-32477},{"$f":"IF(D14=0,C14+J14,D14+J14)","v":0},{"$f":"B2B!L56","v":32981},{"$f":"B2B!M56","v":34564}]
["Housing",null,{"$f":"B2B!C65","v":0},{"$f":"B2B!D65","v":0},{"$f":"B2B!E65","v":0},{"$f":"B2B!F65","v":0},{"$f":"B2B!G65","v":0},{"$f":"B2B!H65","v":0},{"$f":"B2B!I65","v":0},{"$f":"SUM(E15:I15)","v":0},{"$f":"IF(D15=0,C15+J15,D15+J15)","v":0},{"$f":"B2B!L65","v":0},{"$f":"B2B!M65","v":0}]
["Health",null,{"$f":"B2B!C68","v":0},{"$f":"B2B!D68","v":0},{"$f":"B2B!E68","v":0},{"$f":"B2B!F68","v":0},{"$f":"B2B!G68","v":0},{"$f":"B2B!H68","v":0},{"$f":"B2B!I68","v":0},{"$f":"SUM(E16:I16)","v":0},{"$f":"IF(D16=0,C16+J16,D16+J16)","v":0},{"$f":"B2B!L68","v":0},{"$f":"B2B!M68","v":0}]
["Economic and environmental services",null,{"$f":"SUM(C18:C20)","v":38166810},{"$f":"SUM(D18:D20)","v":0},0,0,0,0,3649699,{"$f":"SUM(J18:J20)","v":3649699},{"$f":"SUM(K18:K20)","v":41816509},{"$f":"SUM(L18:L20)","v":41817508},{"$f":"SUM(M18:M20)","v":43744939}]
["Planning and development",null,{"$f":"B2B!C77","v":1224841},{"$f":"B2B!D77","v":0},{"$f":"B2B!E77","v":0},{"$f":"B2B!F77","v":0},{"$f":"B2B!G77","v":0},{"$f":"B2B!H77","v":0},{"$f":"B2B!I77","v":4156652},{"$f":"SUM(E18:I18)","v":4156652},{"$f":"IF(D18=0,C18+J18,D18+J18)","v":5381493},{"$f":"B2B!L77","v":-2076106},{"$f":"B2B!M77","v":-2168131}]
["Road transport",null,{"$f":"B2B!C88","v":36941969},{"$f":"B2B!D88","v":0},{"$f":"B2B!E88","v":0},{"$f":"B2B!F88","v":0},{"$f":"B2B!G88","v":0},{"$f":"B2B!H88","v":0},{"$f":"B2B!I88","v":-506953},{"$f":"SUM(E19:I19)","v":-506953},{"$f":"IF(D19=0,C19+J19,D19+J19)","v":36435016},{"$f":"B2B!L88","v":43893614},{"$f":"B2B!M88","v":45913070}]
["Environmental protection",null,{"$f":"B2B!C93","v":0},{"$f":"B2B!D93","v":0},{"$f":"B2B!E93","v":0},{"$f":"B2B!F93","v":0},{"$f":"B2B!G93","v":0},{"$f":"B2B!H93","v":0},{"$f":"B2B!I93","v":0},{"$f":"SUM(E20:I20)","v":0},{"$f":"IF(D20=0,C20+J20,D20+J20)","v":0},{"$f":"B2B!L93","v":0},{"$f":"B2B!M93","v":0}]
["Trading services",null,{"$f":"SUM(C22:C25)","v":208500},{"$f":"SUM(D22:D25)","v":0},0,0,0,0,415860,415860,624360,475011,497811]
["Energy sources",null,{"$f":"B2B!C101","v":0},{"$f":"B2B!D101","v":0},{"$f":"B2B!E101","v":0},{"$f":"B2B!F101","v":0},{"$f":"B2B!G101","v":0},{"$f":"B2B!H101","v":0},{"$f":"B2B!I101","v":0},{"$f":"SUM(E22:I22)","v":0},{"$f":"IF(D22=0,C22+J22,D22+J22)","v":0},{"$f":"B2B!L101","v":0},{"$f":"B2B!M101","v":0}]
["Water management",null,{"$f":"B2B!C105","v":0},{"$f":"B2B!D105","v":0},{"$f":"B2B!E105","v":0},{"$f":"B2B!F105","v":0},{"$f":"B2B!G105","v":0},{"$f":"B2B!H105","v":0},{"$f":"B2B!I105","v":0},{"$f":"SUM(E23:I23)","v":0},{"$f":"IF(D23=0,C23+J23,D23+J23)","v":0},{"$f":"B2B!L105","v":0},{"$f":"B2B!M105","v":0}]
["Waste water management",null,{"$f":"B2B!C109","v":0},{"$f":"B2B!D109","v":0},{"$f":"B2B!E109","v":0},{"$f":"B2B!F109","v":0},{"$f":"B2B!G109","v":0},{"$f":"B2B!H109","v":0},{"$f":"B2B!I109","v":0},{"$f":"SUM(E24:I24)","v":0},{"$f":"IF(D24=0,C24+J24,D24+J24)","v":0},{"$f":"B2B!L109","v":0},{"$f":"B2B!M109","v":0}]
["Waste management",null,{"$f":"B2B!C114","v":208500},{"$f":"B2B!D114","v":0},{"$f":"B2B!E114","v":0},{"$f":"B2B!F114","v":0},{"$f":"B2B!G114","v":0},{"$f":"B2B!H114","v":0},{"$f":"B2B!I114","v":415860},{"$f":"SUM(E25:I25)","v":415860},{"$f":"IF(D25=0,C25+J25,D25+J25)","v":624360},{"$f":"B2B!L114","v":475011},{"$f":"B2B!M114","v":497811}]
["Other",null,{"$f":"B2B!C119","v":0},{"$f":"B2B!D119","v":0},{"$f":"B2B!E119","v":0},{"$f":"B2B!F119","v":0},{"$f":"B2B!G119","v":0},{"$f":"B2B!H119","v":0},{"$f":"B2B!I119","v":0},{"$f":"SUM(E26:I26)","v":0},{"$f":"IF(D26=0,C26+J26,D26+J26)","v":0},{"$f":"B2B!L119","v":0},{"$f":"B2B!M119","v":0}]
[{"$f":"\"Total \"&A6","v":"Total Revenue - Functional"},2,{"$f":"C7+C11+C17+C21+C26","v":263491149},{"$f":"D7+D11+D17+D21+D26","v":0},0,0,0,0,-103346,-103346,263387803,271373148,287644839]
[]
["Expenditure - Functional"]
["Governance and administration",null,{"$f":"SUM(C31:C33)","v":125771746},{"$f":"SUM(D31:D33)","v":0},0,0,0,0,-78319,{"$f":"SUM(J31:J33)","v":-78319},{"$f":"SUM(K31:K33)","v":125693427},{"$f":"SUM(L31:L33)","v":120404812},{"$f":"SUM(M31:M33)","v":127647732}]
["Executive and council",null,{"$f":"B2B!C130","v":39900756},{"$f":"B2B!D130","v":0},{"$f":"B2B!E130","v":0},{"$f":"B2B!F130","v":0},{"$f":"B2B!G130","v":0},{"$f":"B2B!H130","v":0},{"$f":"B2B!I130","v":3857278},{"$f":"SUM(E31:I31)","v":3857278},{"$f":"IF(D31=0,C31+J31,D31+J31)","v":43758034},{"$f":"B2B!L130","v":35155333},{"$f":"B2B!M130","v":36776676}]
["Finance and administration",null,{"$f":"B2B!C133","v":83198990},{"$f":"B2B!D133","v":0},{"$f":"B2B!E133","v":0},{"$f":"B2B!F133","v":0},{"$f":"B2B!G133","v":0},{"$f":"B2B!H133","v":0},{"$f":"B2B!I133","v":-2935597},{"$f":"SUM(E32:I32)","v":-2935597},{"$f":"IF(D32=0,C32+J32,D32+J32)","v":80263393},{"$f":"B2B!L133","v":83525229},{"$f":"B2B!M133","v":89069215}]
["Internal audit",null,{"$f":"B2B!C147","v":2672000},{"$f":"B2B!D147","v":0},{"$f":"B2B!E147","v":0},{"$f":"B2B!F147","v":0},{"$f":"B2B!G147","v":0},{"$f":"B2B!H147","v":0},{"$f":"B2B!I147","v":-1000000},{"$f":"SUM(E33:I33)","v":-1000000},{"$f":"IF(D33=0,C33+J33,D33+J33)","v":1672000},{"$f":"B2B!L147","v":1724250},{"$f":"B2B!M147","v":1801841}]
["Community and public safety",null,{"$f":"SUM(C35:C39)","v":39986552},{"$f":"SUM(D35:D39)","v":0},0,0,0,0,4807582,{"$f":"SUM(J35:J39)","v":4807582},{"$f":"SUM(K35:K39)","v":44794134},{"$f":"SUM(L35:L39)","v":45859886},{"$f":"SUM(M35:M39)","v":47916832}]
["Community and social services",null,{"$f":"B2B!C150","v":37987857},{"$f":"B2B!D150","v":0},{"$f":"B2B!E150","v":0},{"$f":"B2B!F150","v":0},{"$f":"B2B!G150","v":0},{"$f":"B2B!H150","v":0},{"$f":"B2B!I150","v":5544864},{"$f":"SUM(E35:I35)","v":5544864},{"$f":"IF(D35=0,C35+J35,D35+J35)","v":43532721},{"$f":"B2B!L150","v":43898079},{"$f":"B2B!M150","v":45868992}]
["Sport and recreation",null,{"$f":"B2B!C172","v":0},{"$f":"B2B!D172","v":0},{"$f":"B2B!E172","v":0},{"$f":"B2B!F172","v":0},{"$f":"B2B!G172","v":0},{"$f":"B2B!H172","v":0},{"$f":"B2B!I172","v":0},{"$f":"SUM(E36:I36)","v":0},{"$f":"IF(D36=0,C36+J36,D36+J36)","v":0},{"$f":"B2B!L172","v":0},{"$f":"B2B!M172","v":0}]
["Public safety",null,{"$f":"B2B!C178","v":1998695},{"$f":"B2B!D178","v":0},{"$f":"B2B!E178","v":0},{"$f":"B2B!F178","v":0},{"$f":"B2B!G178","v":0},{"$f":"B2B!H178","v":0},{"$f":"B2B!I178","v":-737282},{"$f":"SUM(E37:I37)","v":-737282},{"$f":"IF(D37=0,C37+J37,D37+J37)","v":1261413},{"$f":"B2B!L178","v":1961807},{"$f":"B2B!M178","v":2047840}]
["Housing",null,{"$f":"B2B!C187","v":0},{"$f":"B2B!D187","v":0},{"$f":"B2B!E187","v":0},{"$f":"B2B!F187","v":0},{"$f":"B2B!G187","v":0},{"$f":"B2B!H187","v":0},{"$f":"B2B!I187","v":0},{"$f":"SUM(E38:I38)","v":0},{"$f":"IF(D38=0,C38+J38,D38+J38)","v":0},{"$f":"B2B!L187","v":0},{"$f":"B2B!M187","v":0}]
["Health",null,{"$f":"B2B!C190","v":0},{"$f":"B2B!D190","v":0},{"$f":"B2B!E190","v":0},{"$f":"B2B!F190","v":0},{"$f":"B2B!G190","v":0},{"$f":"B2B!H190","v":0},{"$f":"B2B!I190","v":0},{"$f":"SUM(E39:I39)","v":0},{"$f":"IF(D39=0,C39+J39,D39+J39)","v":0},{"$f":"B2B!L190","v":0},{"$f":"B2B!M190","v":0}]
["Economic and environmental services",null,{"$f":"SUM(C41:C43)","v":47889547},{"$f":"SUM(D41:D43)","v":0},0,0,0,0,-3908037,{"$f":"SUM(J41:J43)","v":-3908037},{"$f":"SUM(K41:K43)","v":43981510},{"$f":"SUM(L41:L43)","v":53182770},{"$f":"SUM(M41:M43)","v":55575999}]
["Planning and development",null,{"$f":"B2B!C199","v":33163293},{"$f":"B2B!D199","v":0},{"$f":"B2B!E199","v":0},{"$f":"B2B!F199","v":0},{"$f":"B2B!G199","v":0},{"$f":"B2B!H199","v":0},{"$f":"B2B!I199","v":-4251212},{"$f":"SUM(E41:I41)","v":-4251212},{"$f":"IF(D41=0,C41+J41,D41+J41)","v":28912081},{"$f":"B2B!L199","v":37540192},{"$f":"B2B!M199","v":39229502}]
["Road transport",null,{"$f":"B2B!C210","v":14726254},{"$f":"B2B!D210","v":0},{"$f":"B2B!E210","v":0},{"$f":"B2B!F210","v":0},{"$f":"B2B!G210","v":0},{"$f":"B2B!H210","v":0},{"$f":"B2B!I210","v":343175},{"$f":"SUM(E42:I42)","v":343175},{"$f":"IF(D42=0,C42+J42,D42+J42)","v":15069429},{"$f":"B2B!L210","v":15642578},{"$f":"B2B!M210","v":16346497}]
["Environmental protection",null,{"$f":"B2B!C215","v":0},{"$f":"B2B!D215","v":0},{"$f":"B2B!E215","v":0},{"$f":"B2B!F215","v":0},{"$f":"B2B!G215","v":0},{"$f":"B2B!H215","v":0},{"$f":"B2B!I215","v":0},{"$f":"SUM(E43:I43)","v":0},{"$f":"IF(D43=0,C43+J43,D43+J43)","v":0},{"$f":"B2B!L215","v":0},{"$f":"B2B!M215","v":0}]
["Trading services",null,{"$f":"SUM(C45:C48)","v":2547359},{"$f":"SUM(D45:D48)","v":0},0,0,0,0,5132074,5132074,7679433,2717455,2808799]
["Energy sources",null,{"$f":"B2B!C223","v":571657},{"$f":"B2B!D223","v":0},{"$f":"B2B!E223","v":0},{"$f":"B2B!F223","v":0},{"$f":"B2B!G223","v":0},{"$f":"B2B!H223","v":0},{"$f":"B2B!I223","v":-150000},{"$f":"SUM(E45:I45)","v":-150000},{"$f":"IF(D45=0,C45+J45,D45+J45)","v":421657},{"$f":"B2B!L223","v":571657},{"$f":"B2B!M223","v":597381}]
["Water management",null,{"$f":"B2B!C227","v":0},{"$f":"B2B!D227","v":0},{"$f":"B2B!E227","v":0},{"$f":"B2B!F227","v":0},{"$f":"B2B!G227","v":0},{"$f":"B2B!H227","v":0},{"$f":"B2B!I227","v":0},{"$f":"SUM(E46:I46)","v":0},{"$f":"IF(D46=0,C46+J46,D46+J46)","v":0},{"$f":"B2B!L227","v":0},{"$f":"B2B!M227","v":0}]
["Waste water management",null,{"$f":"B2B!C231","v":0},{"$f":"B2B!D231","v":0},{"$f":"B2B!E231","v":0},{"$f":"B2B!F231","v":0},{"$f":"B2B!G231","v":0},{"$f":"B2B!H231","v":0},{"$f":"B2B!I231","v":0},{"$f":"SUM(E47:I47)","v":0},{"$f":"IF(D47=0,C47+J47,D47+J47)","v":0},{"$f":"B2B!L231","v":0},{"$f":"B2B!M231","v":0}]
["Waste management",null,{"$f":"B2B!C236","v":1975702},{"$f":"B2B!D236","v":0},{"$f":"B2B!E236","v":0},{"$f":"B2B!F236","v":0},{"$f":"B2B!G236","v":0},{"$f":"B2B!H236","v":0},{"$f":"B2B!I236","v":5282074},{"$f":"SUM(E48:I48)","v":5282074},{"$f":"IF(D48=0,C48+J48,D48+J48)","v":7257776},{"$f":"B2B!L236","v":2145798},{"$f":"B2B!M236","v":2211418}]
["Other",null,{"$f":"B2B!C241","v":87932},{"$f":"B2B!D241","v":0},{"$f":"B2B!E241","v":0},{"$f":"B2B!F241","v":0},{"$f":"B2B!G241","v":0},{"$f":"B2B!H241","v":0},{"$f":"B2B!I241","v":87458},{"$f":"SUM(E49:I49)","v":87458},{"$f":"IF(D49=0,C49+J49,D49+J49)","v":175390},{"$f":"B2B!L241","v":52250},{"$f":"B2B!M241","v":54601}]
[{"$f":"\"Total \"&A29","v":"Total Expenditure - Functional"},3,{"$f":"C30+C34+C40+C44+C49","v":216283136},{"$f":"D30+D34+D40+D44+D49","v":0},0,0,0,0,6040758,6040758,222323894,222217173,234003963]
["Surplus/ (Deficit) for the year",null,{"$f":"C27-C50","v":47208013},0,0,0,0,0,-6144104,-6144104,41063909,49155975,53640876]
[{"$f":"head27a","v":"References"}]
["1. Government Finance Statistics Functions and Sub-functions are standardised to assist the compilation of national and international accounts for comparison purposes"]
["2. Total Revenue by standard classification must reconcile to Total Operating Revenue shown in the Adjustments Budget Financial Performance (revenue and expenditure)"]
["3. Total Operating Expenditure by standard classification must reconcile to Total Operating Expenditure shown in the Adjustments Budget Financial Performance (revenue and expenditure)"]
["4. All amounts must be classified under a standard classification (modified GFS). The GFS function 'Other' is only for Abbatoirs, Air Transport, Markets and Tourism - and if used must be supported by footnotes. Nothing else may be placed under 'Other'. Assign associate share to relevant classification"]
["5. Only complete if a previous adjusted budget has been approved in the same financial year. Reflect most recent adjusted budget."]
["6. Additional cash-backed accumulated funds/unspent funds (MFMA section 18(1)(b) and section 28(2)(e)) identified after the Original Budget approved and after annual financial statements audited (note: only where underspending could not reasonably have been foreseen)"]
["7. Increases of funds approved under MFMA section 31"]
["8. Adjustments approved in accordance with MFMA section 29 "]
["9. Adjustments to transfers from National or Provincial Government"]
["10. Adjusts. = 'Other' Adjustments proposed to be approved; including revenue under-collection (MFMA section 28(2)(a)); additional revenue appropriation on existing programmes (section 28(2))(b); projected savings (section 28(2)(d)); error correction (section 28(2)(f))"]
["11. G = B + C + D + E + F"]
["12. Adjusted Budget H = (A or A1/2 etc) + G"]

{"sheet":"B2B","index":26,"n_rows":254,"n_cols":30,"rows_kept":254,"cut":false,"hidden":false,"merged":[[253,0,253,10],[1,2,1,10]]}
[{"$f":"muni&\" - \"&_ADJ3&\" - B\"&\" - \"&Date","v":"EC139 Enoch Mgijima - Table B2 Adjustments Budget Financial Performance (functional classification) - B - "}]
[{"$f":"\"Standard Classification \"&desc","v":"Standard Classification Description"},{"$f":"head27","v":"Ref"},{"$f":"Head2","v":"Budget Year 2021/22"},null,null,null,null,null,null,null,null,{"$f":"Head10","v":"Budget Year +1 2022/23"},{"$f":"Head11","v":"Budget Year +2 2023/24"}]
[null,null,{"$f":"Head6","v":"Original Budget"},{"$f":"Head54","v":"Prior Adjusted"},{"$f":"Head51","v":"Accum. Funds"},{"$f":"Head52","v":"Multi-year capital"},{"$f":"Head53","v":"Unfore. Unavoid."},{"$f":"Head55","v":"Nat. or Prov. Govt"},{"$f":"Head50","v":"Other Adjusts."},{"$f":"Head56","v":"Total Adjusts."},{"$f":"Head7","v":"Adjusted Budget"},{"$f":"Head7","v":"Adjusted Budget"},{"$f":"Head7","v":"Adjusted Budget"}]
[null,null,null,5,{"$f":"D4+1","v":6},7,8,9,10,11,12]
["R thousand",1,"A","A1","B","C","D","E","F","G","H"]
["Revenue - Functional"]
["Municipal governance and administration",null,{"$f":"C8+C11+C25","v":214233708},0,0,0,0,0,-136428,{"$f":"SUM(E7:I7)","v":-136428},{"$f":"IF(D7=0,C7+J7,D7+J7)","v":214097280},{"$f":"L8+L11+L25","v":226090462},{"$f":"M8+M11+M25","v":240409179}]
["Executive and council",null,{"$f":"SUM(C9:C10)","v":0},{"$f":"SUM(D9:D10)","v":0},0,0,0,0,0,{"$f":"SUM(E8:I8)","v":0},{"$f":"IF(D8=0,C8+J8,D8+J8)","v":0},{"$f":"SUM(L9:L10)","v":0},{"$f":"SUM(M9:M10)","v":0}]
["Mayor and Council",null,{"$f":"-SUMIFS(Sheet1!S71_OriginalBudget,Sheet1!S71_A2SubCode,$AC:$AC,Sheet1!S71_ItemType,$AD:$AD)","v":0},{"$f":"-SUMIFS(Sheet1!S71_SpecialAdjustedBudget,Sheet1!S71_A2SubCode,$AC:$AC,Sheet1!S71_ItemType,$AD:$AD)","v":0},null,null,null,null,{"$f":"SUMIFS(Sheet1!S71_AdjustmentAmount,Sheet1!S71_A2SubCode,$AC:$AC,Sheet1!S71_ItemType,$AD:$AD)","v":0},{"$f":"SUM(E9:I9)","v":0},{"$f":"IF(D9=0,C9+J9,D9+J9)","v":0},{"$f":"-SUMIFS(Sheet1!S71_OY1AdjustedBudget,Sheet1!S71_A2SubCode,$AC:$AC,Sheet1!S71_ItemType,$AD:$AD)","v":0},{"$f":"-SUMIFS(Sheet1!S71_OY2AdjustedBudget,Sheet1!S71_A2SubCode,$AC:$AC,Sheet1!S71_ItemType,$AD:$AD)","v":0},null,null,null,null,null,null,null,null,null,null,null,null,null,null,null,1110,"IR"]
["Municipal Manager, Town Secretary and Chief Executive",null,{"$f":"-SUMIFS(Sheet1!S71_OriginalBudget,Sheet1!S71_A2SubCode,$AC:$AC,Sheet1!S71_ItemType,$AD:$AD)","v":0},{"$f":"-SUMIFS(Sheet1!S71_SpecialAdjustedBudget,Sheet1!S71_A2SubCode,$AC:$AC,Sheet1!S71_ItemType,$AD:$AD)","v":0},null,null,null,null,{"$f":"SUMIFS(Sheet1!S71_AdjustmentAmount,Sheet1!S71_A2SubCode,$AC:$AC,Sheet1!S71_ItemType,$AD:$AD)","v":0},{"$f":"SUM(E10:I10)","v":0},{"$f":"IF(D10=0,C10+J10,D10+J10)","v":0},{"$f":"-SUMIFS(Sheet1!S71_OY1AdjustedBudget,Sheet1!S71_A2SubCode,$AC:$AC,Sheet1!S71_ItemType,$AD:$AD)","v":0},{"$f":"-SUMIFS(Sheet1!S71_OY2AdjustedBudget,Sheet1!S71_A2SubCode,$AC:$AC,Sheet1!S71_ItemType,$AD:$AD)","v":0},null,null,null,null,null,null,null,null,null,null,null,null,null,null,null,1120,"IR"]
["Finance and administration",null,{"$f":"SUM(C12:C24)","v":214233708},0,0,0,0,0,-136428,-136428,214097280,{"$f":"SUM(L12:L24)","v":226090462},{"$f":"SUM(M12:M24)","v":240409179}]
["Administrative and Corporate Support",null,{"$f":"-SUMIFS(Sheet1!S71_OriginalBudget,Sheet1!S71_A2SubCode,$AC:$AC,Sheet1!S71_ItemType,$AD:$AD)","v":74479},{"$f":"-SUMIFS(Sheet1!S71_SpecialAdjustedBudget,Sheet1!S71_A2SubCode,$AC:$AC,Sheet1!S71_ItemType,$AD:$AD)","v":0},null,null,null,null,{"$f":"SUMIFS(Sheet1!S71_AdjustmentAmount,Sheet1!S71_A2SubCode,$AC:$AC,Sheet1!S71_ItemType,$AD:$AD)","v":-12366},-12366,62113,{"$f":"-SUMIFS(Sheet1!S71_OY1AdjustedBudget,Sheet1!S71_A2SubCode,$AC:$AC,Sheet1!S71_ItemType,$AD:$AD)","v":78054},{"$f":"-SUMIFS(Sheet1!S71_OY2AdjustedBudget,Sheet1!S71_A2SubCode,$AC:$AC,Sheet1!S71_ItemType,$AD:$AD)","v":81801},null,null,null,null,null,null,null,null,null,null,null,null,null,null,null,1201,"IR"]
["Asset Management",null,{"$f":"-SUMIFS(Sheet1!S71_OriginalBudget,Sheet1!S71_A2SubCode,$AC:$AC,Sheet1!S71_ItemType,$AD:$AD)","v":0},{"$f":"-SUMIFS(Sheet1!S71_SpecialAdjustedBudget,Sheet1!S71_A2SubCode,$AC:$AC,Sheet1!S71_ItemType,$AD:$AD)","v":0},null,null,null,null,{"$f":"SUMIFS(Sheet1!S71_AdjustmentAmount,Sheet1!S71_A2SubCode,$AC:$AC,Sheet1!S71_ItemType,$AD:$AD)","v":0},0,0,{"$f":"-SUMIFS(Sheet1!S71_OY1AdjustedBudget,Sheet1!S71_A2SubCode,$AC:$AC,Sheet1!S71_ItemType,$AD:$AD)","v":0},{"$f":"-SUMIFS(Sheet1!S71_OY2AdjustedBudget,Sheet1!S71_A2SubCode,$AC:$AC,Sheet1!S71_ItemType,$AD:$AD)","v":0},null,null,null,null,null,null,null,null,null,null,null,null,null,null,null,1202,"IR"]
["Finance",null,{"$f":"-SUMIFS(Sheet1!S71_OriginalBudget,Sheet1!S71_A2SubCode,$AC:$AC,Sheet1!S71_ItemType,$AD:$AD)","v":214159229},{"$f":"-SUMIFS(Sheet1!S71_SpecialAdjustedBudget,Sheet1!S71_A2SubCode,$AC:$AC,Sheet1!S71_ItemType,$AD:$AD)","v":0},null,null,null,null,{"$f":"SUMIFS(Sheet1!S71_AdjustmentAmount,Sheet1!S71_A2SubCode,$AC:$AC,Sheet1!S71_ItemType,$AD:$AD)","v":-124062},-124062,214035167,{"$f":"-SUMIFS(Sheet1!S71_OY1AdjustedBudget,Sheet1!S71_A2SubCode,$AC:$AC,Sheet1!S71_ItemType,$AD:$AD)","v":226012408},{"$f":"-SUMIFS(Sheet1!S71_OY2AdjustedBudget,Sheet1!S71_A2SubCode,$AC:$AC,Sheet1!S71_ItemType,$AD:$AD)","v":240327378},null,null,null,null,null,null,null,null,null,null,null,null,null,null,null,1204,"IR"]
["Fleet Management",null,{"$f":"-SUMIFS(Sheet1!S71_OriginalBudget,Sheet1!S71_A2SubCode,$AC:$AC,Sheet1!S71_ItemType,$AD:$AD)","v":0},{"$f":"-SUMIFS(Sheet1!S71_SpecialAdjustedBudget,Sheet1!S71_A2SubCode,$AC:$AC,Sheet1!S71_ItemType,$AD:$AD)","v":0},null,null,null,null,{"$f":"SUMIFS(Sheet1!S71_AdjustmentAmount,Sheet1!S71_A2SubCode,$AC:$AC,Sheet1!S71_ItemType,$AD:$AD)","v":0},0,0,{"$f":"-SUMIFS(Sheet1!S71_OY1AdjustedBudget,Sheet1!S71_A2SubCode,$AC:$AC,Sheet1!S71_ItemType,$AD:$AD)","v":0},{"$f":"-SUMIFS(Sheet1!S71_OY2AdjustedBudget,Sheet1!S71_A2SubCode,$AC:$AC,Sheet1!S71_ItemType,$AD:$AD)","v":0},null,null,null,null,null,null,null,null,null,null,null,null,null,null,null,1205,"IR"]
["Human Resources",null,{"$f":"-SUMIFS(Sheet1!S71_OriginalBudget,Sheet1!S71_A2SubCode,$AC:$AC,Sheet1!S71_ItemType,$AD:$AD)","v":0},{"$f":"-SUMIFS(Sheet1!S71_SpecialAdjustedBudget,Sheet1!S71_A2SubCode,$AC:$AC,Sheet1!S71_ItemType,$AD:$AD)","v":0},null,null,null,null,{"$f":"SUMIFS(Sheet1!S71_AdjustmentAmount,Sheet1!S71_A2SubCode,$AC:$AC,Sheet1!S71_ItemType,$AD:$AD)","v":0},0,0,{"$f":"-SUMIFS(Sheet1!S71_OY1AdjustedBudget,Sheet1!S71_A2SubCode,$AC:$AC,Sheet1!S71_ItemType,$AD:$AD)","v":0},{"$f":"-SUMIFS(Sheet1!S71_OY2AdjustedBudget,Sheet1!S71_A2SubCode,$AC:$AC,Sheet1!S71_ItemType,$AD:$AD)","v":0},null,null,null,null,null,null,null,null,null,null,null,null,null,null,null,1206,"IR"]
["Information Technology",null,{"$f":"-SUMIFS(Sheet1!S71_OriginalBudget,Sheet1!S71_A2SubCode,$AC:$AC,Sheet1!S71_ItemType,$AD:$AD)","v":0},{"$f":"-SUMIFS(Sheet1!S71_SpecialAdjustedBudget,Sheet1!S71_A2SubCode,$AC:$AC,Sheet1!S71_ItemType,$AD:$AD)","v":0},null,null,null,null,{"$f":"SUMIFS(Sheet1!S71_AdjustmentAmount,Sheet1!S71_A2SubCode,$AC:$AC,Sheet1!S71_ItemType,$AD:$AD)","v":0},0,0,{"$f":"-SUMIFS(Sheet1!S71_OY1AdjustedBudget,Sheet1!S71_A2SubCode,$AC:$AC,Sheet1!S71_ItemType,$AD:$AD)","v":0},{"$f":"-SUMIFS(Sheet1!S71_OY2AdjustedBudget,Sheet1!S71_A2SubCode,$AC:$AC,Sheet1!S71_ItemType,$AD:$AD)","v":0},null,null,null,null,null,null,null,null,null,null,null,null,null,null,null,1207,"IR"]
["Legal Services",null,{"$f":"-SUMIFS(Sheet1!S71_OriginalBudget,Sheet1!S71_A2SubCode,$AC:$AC,Sheet1!S71_ItemType,$AD:$AD)","v":0},{"$f":"-SUMIFS(Sheet1!S71_SpecialAdjustedBudget,Sheet1!S71_A2SubCode,$AC:$AC,Sheet1!S71_ItemType,$AD:$AD)","v":0},null,null,null,null,{"$f":"SUMIFS(Sheet1!S71_AdjustmentAmount,Sheet1!S71_A2SubCode,$AC:$AC,Sheet1!S71_ItemType,$AD:$AD)","v":0},0,0,{"$f":"-SUMIFS(Sheet1!S71_OY1AdjustedBudget,Sheet1!S71_A2SubCode,$AC:$AC,Sheet1!S71_ItemType,$AD:$AD)","v":0},{"$f":"-SUMIFS(Sheet1!S71_OY2AdjustedBudget,Sheet1!S71_A2SubCode,$AC:$AC,Sheet1!S71_ItemType,$AD:$AD)","v":0},null,null,null,null,null,null,null,null,null,null,null,null,null,null,null,1208,"IR"]
["Marketing, Customer Relations, Publicity and Media Co-ordination",null,{"$f":"-SUMIFS(Sheet1!S71_OriginalBudget,Sheet1!S71_A2SubCode,$AC:$AC,Sheet1!S71_ItemType,$AD:$AD)","v":0},{"$f":"-SUMIFS(Sheet1!S71_SpecialAdjustedBudget,Sheet1!S71_A2SubCode,$AC:$AC,Sheet1!S71_ItemType,$AD:$AD)","v":0},null,null,null,null,{"$f":"SUMIFS(Sheet1!S71_AdjustmentAmount,Sheet1!S71_A2SubCode,$AC:$AC,Sheet1!S71_ItemType,$AD:$AD)","v":0},0,0,{"$f":"-SUMIFS(Sheet1!S71_OY1AdjustedBudget,Sheet1!S71_A2SubCode,$AC:$AC,Sheet1!S71_ItemType,$AD:$AD)","v":0},{"$f":"-SUMIFS(Sheet1!S71_OY2AdjustedBudget,Sheet1!S71_A2SubCode,$AC:$AC,Sheet1!S71_ItemType,$AD:$AD)","v":0},null,null,null,null,null,null,null,null,null,null,null,null,null,null,null,1209,"IR"]
["Property Services",null,{"$f":"-SUMIFS(Sheet1!S71_OriginalBudget,Sheet1!S71_A2SubCode,$AC:$AC,Sheet1!S71_ItemType,$AD:$AD)","v":0},{"$f":"-SUMIFS(Sheet1!S71_SpecialAdjustedBudget,Sheet1!S71_A2SubCode,$AC:$AC,Sheet1!S71_ItemType,$AD:$AD)","v":0},null,null,null,null,{"$f":"SUMIFS(Sheet1!S71_AdjustmentAmount,Sheet1!S71_A2SubCode,$AC:$AC,Sheet1!S71_ItemType,$AD:$AD)","v":0},0,0,{"$f":"-SUMIFS(Sheet1!S71_OY1AdjustedBudget,Sheet1!S71_A2SubCode,$AC:$AC,Sheet1!S71_ItemType,$AD:$AD)","v":0},{"$f":"-SUMIFS(Sheet1!S71_OY2AdjustedBudget,Sheet1!S71_A2SubCode,$AC:$AC,Sheet1!S71_ItemType,$AD:$AD)","v":0},null,null,null,null,null,null,null,null,null,null,null,null,null,null,null,1210,"IR"]
["Risk Management",null,{"$f":"-SUMIFS(Sheet1!S71_OriginalBudget,Sheet1!S71_A2SubCode,$AC:$AC,Sheet1!S71_ItemType,$AD:$AD)","v":0},{"$f":"-SUMIFS(Sheet1!S71_SpecialAdjustedBudget,Sheet1!S71_A2SubCode,$AC:$AC,Sheet1!S71_ItemType,$AD:$AD)","v":0},null,null,null,null,{"$f":"SUMIFS(Sheet1!S71_AdjustmentAmount,Sheet1!S71_A2SubCode,$AC:$AC,Sheet1!S71_ItemType,$AD:$AD)","v":0},0,0,{"$f":"-SUMIFS(Sheet1!S71_OY1AdjustedBudget,Sheet1!S71_A2SubCode,$AC:$AC,Sheet1!S71_ItemType,$AD:$AD)","v":0},{"$f":"-SUMIFS(Sheet1!S71_OY2AdjustedBudget,Sheet1!S71_A2SubCode,$AC:$AC,Sheet1!S71_ItemType,$AD:$AD)","v":0},null,null,null,null,null,null,null,null,null,null,null,null,null,null,null,1211,"IR"]
["Security Services",null,{"$f":"-SUMIFS(Sheet1!S71_OriginalBudget,Sheet1!S71_A2SubCode,$AC:$AC,Sheet1!S71_ItemType,$AD:$AD)","v":0},{"$f":"-SUMIFS(Sheet1!S71_SpecialAdjustedBudget,Sheet1!S71_A2SubCode,$AC:$AC,Sheet1!S71_ItemType,$AD:$AD)","v":0},null,null,null,null,{"$f":"SUMIFS(Sheet1!S71_AdjustmentAmount,Sheet1!S71_A2SubCode,$AC:$AC,Sheet1!S71_ItemType,$AD:$AD)","v":0},0,0,{"$f":"-SUMIFS(Sheet1!S71_OY1AdjustedBudget,Sheet1!S71_A2SubCode,$AC:$AC,Sheet1!S71_ItemType,$AD:$AD)","v":0},{"$f":"-SUMIFS(Sheet1!S71_OY2AdjustedBudget,Sheet1!S71_A2SubCode,$AC:$AC,Sheet1!S71_ItemType,$AD:$AD)","v":0},null,null,null,null,null,null,null,null,null,null,null,null,null,null,null,1212,"IR"]
["Supply Chain Management ",null,{"$f":"-SUMIFS(Sheet1!S71_OriginalBudget,Sheet1!S71_A2SubCode,$AC:$AC,Sheet1!S71_ItemType,$AD:$AD)","v":0},{"$f":"-SUMIFS(Sheet1!S71_SpecialAdjustedBudget,Sheet1!S71_A2SubCode,$AC:$AC,Sheet1!S71_ItemType,$AD:$AD)","v":0},null,null,null,null,{"$f":"SUMIFS(Sheet1!S71_AdjustmentAmount,Sheet1!S71_A2SubCode,$AC:$AC,Sheet1!S71_ItemType,$AD:$AD)","v":0},0,0,{"$f":"-SUMIFS(Sheet1!S71_OY1AdjustedBudget,Sheet1!S71_A2SubCode,$AC:$AC,Sheet1!S71_ItemType,$AD:$AD)","v":0},{"$f":"-SUMIFS(Sheet1!S71_OY2AdjustedBudget,Sheet1!S71_A2SubCode,$AC:$AC,Sheet1!S71_ItemType,$AD:$AD)","v":0},null,null,null,null,null,null,null,null,null,null,null,null,null,null,null,1213,"IR"]
["Valuation Service",null,{"$f":"-SUMIFS(Sheet1!S71_OriginalBudget,Sheet1!S71_A2SubCode,$AC:$AC,Sheet1!S71_ItemType,$AD:$AD)","v":0},{"$f":"-SUMIFS(Sheet1!S71_SpecialAdjustedBudget,Sheet1!S71_A2SubCode,$AC:$AC,Sheet1!S71_ItemType,$AD:$AD)","v":0},null,null,null,null,{"$f":"SUMIFS(Sheet1!S71_AdjustmentAmount,Sheet1!S71_A2SubCode,$AC:$AC,Sheet1!S71_ItemType,$AD:$AD)","v":0},0,0,{"$f":"-SUMIFS(Sheet1!S71_OY1AdjustedBudget,Sheet1!S71_A2SubCode,$AC:$AC,Sheet1!S71_ItemType,$AD:$AD)","v":0},{"$f":"-SUMIFS(Sheet1!S71_OY2AdjustedBudget,Sheet1!S71_A2SubCode,$AC:$AC,Sheet1!S71_ItemType,$AD:$AD)","v":0},null,null,null,null,null,null,null,null,null,null,null,null,null,null,null,1214,"IR"]
["Internal audit",null,{"$f":"SUM(C26:C26)","v":0},0,0,0,0,0,0,0,0,0,0]
["Governance Function",null,{"$f":"-SUMIFS(Sheet1!S71_OriginalBudget,Sheet1!S71_A2SubCode,$AC:$AC,Sheet1!S71_ItemType,$AD:$AD)","v":0},{"$f":"-SUMIFS(Sheet1!S71_SpecialAdjustedBudget,Sheet1!S71_A2SubCode,$AC:$AC,Sheet1!S71_ItemType,$AD:$AD)","v":0},null,null,null,null,{"$f":"SUMIFS(Sheet1!S71_AdjustmentAmount,Sheet1!S71_A2SubCode,$AC:$AC,Sheet1!S71_ItemType,$AD:$AD)","v":0},0,0,{"$f":"-SUMIFS(Sheet1!S71_OY1AdjustedBudget,Sheet1!S71_A2SubCode,$AC:$AC,Sheet1!S71_ItemType,$AD:$AD)","v":0},{"$f":"-SUMIFS(Sheet1!S71_OY2AdjustedBudget,Sheet1!S71_A2SubCode,$AC:$AC,Sheet1!S71_ItemType,$AD:$AD)","v":0},null,null,null,null,null,null,null,null,null,null,null,null,null,null,null,1301,"IR"]
["Community and public safety",null,{"$f":"C28+C50+C56+C65+C68","v":10882131},0,0,0,0,0,-4032477,-4032477,6849654,{"$f":"L28+L50+L56+L65+L68","v":2990167},{"$f":"M28+M50+M56+M65+M68","v":2992910}]
["Community and social services",null,{"$f":"SUM(C29:C49)","v":10849654},0,0,0,0,0,-4000000,-4000000,6849654,2957186,2958346]
["Aged Care",null,{"$f":"-SUMIFS(Sheet1!S71_OriginalBudget,Sheet1!S71_A2SubCode,$AC:$AC,Sheet1!S71_ItemType,$AD:$AD)","v":0},{"$f":"-SUMIFS(Sheet1!S71_SpecialAdjustedBudget,Sheet1!S71_A2SubCode,$AC:$AC,Sheet1!S71_ItemType,$AD:$AD)","v":0},null,null,null,null,{"$f":"SUMIFS(Sheet1!S71_AdjustmentAmount,Sheet1!S71_A2SubCode,$AC:$AC,Sheet1!S71_ItemType,$AD:$AD)","v":0},0,0,{"$f":"-SUMIFS(Sheet1!S71_OY1AdjustedBudget,Sheet1!S71_A2SubCode,$AC:$AC,Sheet1!S71_ItemType,$AD:$AD)","v":0},{"$f":"-SUMIFS(Sheet1!S71_OY2AdjustedBudget,Sheet1!S71_A2SubCode,$AC:$AC,Sheet1!S71_ItemType,$AD:$AD)","v":0},null,null,null,null,null,null,null,null,null,null,null,null,null,null,null,2101,"IR"]
["Agricultural",null,{"$f":"-SUMIFS(Sheet1!S71_OriginalBudget,Sheet1!S71_A2SubCode,$AC:$AC,Sheet1!S71_ItemType,$AD:$AD)","v":0},{"$f":"-SUMIFS(Sheet1!S71_SpecialAdjustedBudget,Sheet1!S71_A2SubCode,$AC:$AC,Sheet1!S71_ItemType,$AD:$AD)","v":0},null,null,null,null,{"$f":"SUMIFS(Sheet1!S71_AdjustmentAmount,Sheet1!S71_A2SubCode,$AC:$AC,Sheet1!S71_ItemType,$AD:$AD)","v":0},0,0,{"$f":"-SUMIFS(Sheet1!S71_OY1AdjustedBudget,Sheet1!S71_A2SubCode,$AC:$AC,Sheet1!S71_ItemType,$AD:$AD)","v":0},{"$f":"-SUMIFS(Sheet1!S71_OY2AdjustedBudget,Sheet1!S71_A2SubCode,$AC:$AC,Sheet1!S71_ItemType,$AD:$AD)","v":0},null,null,null,null,null,null,null,null,null,null,null,null,null,null,null,2102,"IR"]
["Animal Care and Diseases",null,{"$f":"-SUMIFS(Sheet1!S71_OriginalBudget,Sheet1!S71_A2SubCode,$AC:$AC,Sheet1!S71_ItemType,$AD:$AD)","v":0},{"$f":"-SUMIFS(Sheet1!S71_SpecialAdjustedBudget,Sheet1!S71_A2SubCode,$AC:$AC,Sheet1!S71_ItemType,$AD:$AD)","v":0},null,null,null,null,{"$f":"SUMIFS(Sheet1!S71_AdjustmentAmount,Sheet1!S71_A2SubCode,$AC:$AC,Sheet1!S71_ItemType,$AD:$AD)","v":0},0,0,{"$f":"-SUMIFS(Sheet1!S71_OY1AdjustedBudget,Sheet1!S71_A2SubCode,$AC:$AC,Sheet1!S71_ItemType,$AD:$AD)","v":0},{"$f":"-SUMIFS(Sheet1!S71_OY2AdjustedBudget,Sheet1!S71_A2SubCode,$AC:$AC,Sheet1!S71_ItemType,$AD:$AD)","v":0},null,null,null,null,null,null,null,null,null,null,null,null,null,null,null,2103,"IR"]
["Cemeteries, Funeral Parlours and Crematoriums",null,{"$f":"-SUMIFS(Sheet1!S71_OriginalBudget,Sheet1!S71_A2SubCode,$AC:$AC,Sheet1!S71_ItemType,$AD:$AD)","v":0},{"$f":"-SUMIFS(Sheet1!S71_SpecialAdjustedBudget,Sheet1!S71_A2SubCode,$AC:$AC,Sheet1!S71_ItemType,$AD:$AD)","v":0},null,null,null,null,{"$f":"SUMIFS(Sheet1!S71_AdjustmentAmount,Sheet1!S71_A2SubCode,$AC:$AC,Sheet1!S71_ItemType,$AD:$AD)","v":0},0,0,{"$f":"-SUMIFS(Sheet1!S71_OY1AdjustedBudget,Sheet1!S71_A2SubCode,$AC:$AC,Sheet1!S71_ItemType,$AD:$AD)","v":0},{"$f":"-SUMIFS(Sheet1!S71_OY2AdjustedBudget,Sheet1!S71_A2SubCode,$AC:$AC,Sheet1!S71_ItemType,$AD:$AD)","v":0},null,null,null,null,null,null,null,null,null,null,null,null,null,null,null,2104,"IR"]
["Child Care Facilities",null,{"$f":"-SUMIFS(Sheet1!S71_OriginalBudget,Sheet1!S71_A2SubCode,$AC:$AC,Sheet1!S71_ItemType,$AD:$AD)","v":0},{"$f":"-SUMIFS(Sheet1!S71_SpecialAdjustedBudget,Sheet1!S71_A2SubCode,$AC:$AC,Sheet1!S71_ItemType,$AD:$AD)","v":0},null,null,null,null,{"$f":"SUMIFS(Sheet1!S71_AdjustmentAmount,Sheet1!S71_A2SubCode,$AC:$AC,Sheet1!S71_ItemType,$AD:$AD)","v":0},0,0,{"$f":"-SUMIFS(Sheet1!S71_OY1AdjustedBudget,Sheet1!S71_A2SubCode,$AC:$AC,Sheet1!S71_ItemType,$AD:$AD)","v":0},{"$f":"-SUMIFS(Sheet1!S71_OY2AdjustedBudget,Sheet1!S71_A2SubCode,$AC:$AC,Sheet1!S71_ItemType,$AD:$AD)","v":0},null,null,null,null,null,null,null,null,null,null,null,null,null,null,null,2105,"IR"]
["Community Halls and Facilities",null,{"$f":"-SUMIFS(Sheet1!S71_OriginalBudget,Sheet1!S71_A2SubCode,$AC:$AC,Sheet1!S71_ItemType,$AD:$AD)","v":8000000},{"$f":"-SUMIFS(Sheet1!S71_SpecialAdjustedBudget,Sheet1!S71_A2SubCode,$AC:$AC,Sheet1!S71_ItemType,$AD:$AD)","v":0},null,null,null,null,{"$f":"SUMIFS(Sheet1!S71_AdjustmentAmount,Sheet1!S71_A2SubCode,$AC:$AC,Sheet1!S71_ItemType,$AD:$AD)","v":-4000000},-4000000,4000000,{"$f":"-SUMIFS(Sheet1!S71_OY1AdjustedBudget,Sheet1!S71_A2SubCode,$AC:$AC,Sheet1!S71_ItemType,$AD:$AD)","v":0},{"$f":"-SUMIFS(Sheet1!S71_OY2AdjustedBudget,Sheet1!S71_A2SubCode,$AC:$AC,Sheet1!S71_ItemType,$AD:$AD)","v":0},null,null,null,null,null,null,null,null,null,null,null,null,null,null,null,2106,"IR"]
["Consumer Protection",null,{"$f":"-SUMIFS(Sheet1!S71_OriginalBudget,Sheet1!S71_A2SubCode,$AC:$AC,Sheet1!S71_ItemType,$AD:$AD)","v":0},{"$f":"-SUMIFS(Sheet1!S71_SpecialAdjustedBudget,Sheet1!S71_A2SubCode,$AC:$AC,Sheet1!S71_ItemType,$AD:$AD)","v":0},null,null,null,null,{"$f":"SUMIFS(Sheet1!S71_AdjustmentAmount,Sheet1!S71_A2SubCode,$AC:$AC,Sheet1!S71_ItemType,$AD:$AD)","v":0},0,0,{"$f":"-SUMIFS(Sheet1!S71_OY1AdjustedBudget,Sheet1!S71_A2SubCode,$AC:$AC,Sheet1!S71_ItemType,$AD:$AD)","v":0},{"$f":"-SUMIFS(Sheet1!S71_OY2AdjustedBudget,Sheet1!S71_A2SubCode,$AC:$AC,Sheet1!S71_ItemType,$AD:$AD)","v":0},null,null,null,null,null,null,null,null,null,null,null,null,null,null,null,2107,"IR"]
["Cultural Matters",null,{"$f":"-SUMIFS(Sheet1!S71_OriginalBudget,Sheet1!S71_A2SubCode,$AC:$AC,Sheet1!S71_ItemType,$AD:$AD)","v":0},{"$f":"-SUMIFS(Sheet1!S71_SpecialAdjustedBudget,Sheet1!S71_A2SubCode,$AC:$AC,Sheet1!S71_ItemType,$AD:$AD)","v":0},null,null,null,null,{"$f":"SUMIFS(Sheet1!S71_AdjustmentAmount,Sheet1!S71_A2SubCode,$AC:$AC,Sheet1!S71_ItemType,$AD:$AD)","v":0},0,0,{"$f":"-SUMIFS(Sheet1!S71_OY1AdjustedBudget,Sheet1!S71_A2SubCode,$AC:$AC,Sheet1!S71_ItemType,$AD:$AD)","v":0},{"$f":"-SUMIFS(Sheet1!S71_OY2AdjustedBudget,Sheet1!S71_A2SubCode,$AC:$AC,Sheet1!S71_ItemType,$AD:$AD)","v":0},null,null,null,null,null,null,null,null,null,null,null,null,null,null,null,2108,"IR"]
["Disaster Management",null,{"$f":"-SUMIFS(Sheet1!S71_OriginalBudget,Sheet1!S71_A2SubCode,$AC:$AC,Sheet1!S71_ItemType,$AD:$AD)","v":0},{"$f":"-SUMIFS(Sheet1!S71_SpecialAdjustedBudget,Sheet1!S71_A2SubCode,$AC:$AC,Sheet1!S71_ItemType,$AD:$AD)","v":0},null,null,null,null,{"$f":"SUMIFS(Sheet1!S71_AdjustmentAmount,Sheet1!S71_A2SubCode,$AC:$AC,Sheet1!S71_ItemType,$AD:$AD)","v":0},0,0,{"$f":"-SUMIFS(Sheet1!S71_OY1AdjustedBudget,Sheet1!S71_A2SubCode,$AC:$AC,Sheet1!S71_ItemType,$AD:$AD)","v":0},{"$f":"-SUMIFS(Sheet1!S71_OY2AdjustedBudget,Sheet1!S71_A2SubCode,$AC:$AC,Sheet1!S71_ItemType,$AD:$AD)","v":0},null,null,null,null,null,null,null,null,null,null,null,null,null,null,null,2109,"IR"]
["Education",null,{"$f":"-SUMIFS(Sheet1!S71_OriginalBudget,Sheet1!S71_A2SubCode,$AC:$AC,Sheet1!S71_ItemType,$AD:$AD)","v":0},{"$f":"-SUMIFS(Sheet1!S71_SpecialAdjustedBudget,Sheet1!S71_A2SubCode,$AC:$AC,Sheet1!S71_ItemType,$AD:$AD)","v":0},null,null,null,null,{"$f":"SUMIFS(Sheet1!S71_AdjustmentAmount,Sheet1!S71_A2SubCode,$AC:$AC,Sheet1!S71_ItemType,$AD:$AD)","v":0},0,0,{"$f":"-SUMIFS(Sheet1!S71_OY1AdjustedBudget,Sheet1!S71_A2SubCode,$AC:$AC,Sheet1!S71_ItemType,$AD:$AD)","v":0},{"$f":"-SUMIFS(Sheet1!S71_OY2AdjustedBudget,Sheet1!S71_A2SubCode,$AC:$AC,Sheet1!S71_ItemType,$AD:$AD)","v":0},null,null,null,null,null,null,null,null,null,null,null,null,null,null,null,2110,"IR"]
["Indigenous and Customary Law",null,{"$f":"-SUMIFS(Sheet1!S71_OriginalBudget,Sheet1!S71_A2SubCode,$AC:$AC,Sheet1!S71_ItemType,$AD:$AD)","v":0},{"$f":"-SUMIFS(Sheet1!S71_SpecialAdjustedBudget,Sheet1!S71_A2SubCode,$AC:$AC,Sheet1!S71_ItemType,$AD:$AD)","v":0},null,null,null,null,{"$f":"SUMIFS(Sheet1!S71_AdjustmentAmount,Sheet1!S71_A2SubCode,$AC:$AC,Sheet1!S71_ItemType,$AD:$AD)","v":0},0,0,{"$f":"-SUMIFS(Sheet1!S71_OY1AdjustedBudget,Sheet1!S71_A2SubCode,$AC:$AC,Sheet1!S71_ItemType,$AD:$AD)","v":0},{"$f":"-SUMIFS(Sheet1!S71_OY2AdjustedBudget,Sheet1!S71_A2SubCode,$AC:$AC,Sheet1!S71_ItemType,$AD:$AD)","v":0},null,null,null,null,null,null,null,null,null,null,null,null,null,null,null,2111,"IR"]
["Industrial Promotion",null,{"$f":"-SUMIFS(Sheet1!S71_OriginalBudget,Sheet1!S71_A2SubCode,$AC:$AC,Sheet1!S71_ItemType,$AD:$AD)","v":0},{"$f":"-SUMIFS(Sheet1!S71_SpecialAdjustedBudget,Sheet1!S71_A2SubCode,$AC:$AC,Sheet1!S71_ItemType,$AD:$AD)","v":0},null,null,null,null,{"$f":"SUMIFS(Sheet1!S71_AdjustmentAmount,Sheet1!S71_A2SubCode,$AC:$AC,Sheet1!S71_ItemType,$AD:$AD)","v":0},0,0,{"$f":"-SUMIFS(Sheet1!S71_OY1AdjustedBudget,Sheet1!S71_A2SubCode,$AC:$AC,Sheet1!S71_ItemType,$AD:$AD)","v":0},{"$f":"-SUMIFS(Sheet1!S71_OY2AdjustedBudget,Sheet1!S71_A2SubCode,$AC:$AC,Sheet1!S71_ItemType,$AD:$AD)","v":0},null,null,null,null,null,null,null,null,null,null,null,null,null,null,null,2112,"IR"]
["Language Policy",null,{"$f":"-SUMIFS(Sheet1!S71_OriginalBudget,Sheet1!S71_A2SubCode,$AC:$AC,Sheet1!S71_ItemType,$AD:$AD)","v":0},{"$f":"-SUMIFS(Sheet1!S71_SpecialAdjustedBudget,Sheet1!S71_A2SubCode,$AC:$AC,Sheet1!S71_ItemType,$AD:$AD)","v":0},null,null,null,null,{"$f":"SUMIFS(Sheet1!S71_AdjustmentAmount,Sheet1!S71_A2SubCode,$AC:$AC,Sheet1!S71_ItemType,$AD:$AD)","v":0},0,0,{"$f":"-SUMIFS(Sheet1!S71_OY1AdjustedBudget,Sheet1!S71_A2SubCode,$AC:$AC,Sheet1!S71_ItemType,$AD:$AD)","v":0},{"$f":"-SUMIFS(Sheet1!S71_OY2AdjustedBudget,Sheet1!S71_A2SubCode,$AC:$AC,Sheet1!S71_ItemType,$AD:$AD)","v":0},null,null,null,null,null,null,null,null,null,null,null,null,null,null,null,2113,"IR"]
["Libraries and Archives",null,{"$f":"-SUMIFS(Sheet1!S71_OriginalBudget,Sheet1!S71_A2SubCode,$AC:$AC,Sheet1!S71_ItemType,$AD:$AD)","v":2849654},{"$f":"-SUMIFS(Sheet1!S71_SpecialAdjustedBudget,Sheet1!S71_A2SubCode,$AC:$AC,Sheet1!S71_ItemType,$AD:$AD)","v":0},null,null,null,null,{"$f":"SUMIFS(Sheet1!S71_AdjustmentAmount,Sheet1!S71_A2SubCode,$AC:$AC,Sheet1!S71_ItemType,$AD:$AD)","v":0},0,2849654,{"$f":"-SUMIFS(Sheet1!S71_OY1AdjustedBudget,Sheet1!S71_A2SubCode,$AC:$AC,Sheet1!S71_ItemType,$AD:$AD)","v":2957186},{"$f":"-SUMIFS(Sheet1!S71_OY2AdjustedBudget,Sheet1!S71_A2SubCode,$AC:$AC,Sheet1!S71_ItemType,$AD:$AD)","v":2958346},null,null,null,null,null,null,null,null,null,null,null,null,null,null,null,2114,"IR"]
["Literacy Programmes",null,{"$f":"-SUMIFS(Sheet1!S71_OriginalBudget,Sheet1!S71_A2SubCode,$AC:$AC,Sheet1!S71_ItemType,$AD:$AD)","v":0},{"$f":"-SUMIFS(Sheet1!S71_SpecialAdjustedBudget,Sheet1!S71_A2SubCode,$AC:$AC,Sheet1!S71_ItemType,$AD:$AD)","v":0},null,null,null,null,{"$f":"SUMIFS(Sheet1!S71_AdjustmentAmount,Sheet1!S71_A2SubCode,$AC:$AC,Sheet1!S71_ItemType,$AD:$AD)","v":0},0,0,{"$f":"-SUMIFS(Sheet1!S71_OY1AdjustedBudget,Sheet1!S71_A2SubCode,$AC:$AC,Sheet1!S71_ItemType,$AD:$AD)","v":0},{"$f":"-SUMIFS(Sheet1!S71_OY2AdjustedBudget,Sheet1!S71_A2SubCode,$AC:$AC,Sheet1!S71_ItemType,$AD:$AD)","v":0},null,null,null,null,null,null,null,null,null,null,null,null,null,null,null,2115,"IR"]
["Media Services",null,{"$f":"-SUMIFS(Sheet1!S71_OriginalBudget,Sheet1!S71_A2SubCode,$AC:$AC,Sheet1!S71_ItemType,$AD:$AD)","v":0},{"$f":"-SUMIFS(Sheet1!S71_SpecialAdjustedBudget,Sheet1!S71_A2SubCode,$AC:$AC,Sheet1!S71_ItemType,$AD:$AD)","v":0},null,null,null,null,{"$f":"SUMIFS(Sheet1!S71_AdjustmentAmount,Sheet1!S71_A2SubCode,$AC:$AC,Sheet1!S71_ItemType,$AD:$AD)","v":0},0,0,{"$f":"-SUMIFS(Sheet1!S71_OY1AdjustedBudget,Sheet1!S71_A2SubCode,$AC:$AC,Sheet1!S71_ItemType,$AD:$AD)","v":0},{"$f":"-SUMIFS(Sheet1!S71_OY2AdjustedBudget,Sheet1!S71_A2SubCode,$AC:$AC,Sheet1!S71_ItemType,$AD:$AD)","v":0},null,null,null,null,null,null,null,null,null,null,null,null,null,null,null,2116,"IR"]
["Museums and Art Galleries",null,{"$f":"-SUMIFS(Sheet1!S71_OriginalBudget,Sheet1!S71_A2SubCode,$AC:$AC,Sheet1!S71_ItemType,$AD:$AD)","v":0},{"$f":"-SUMIFS(Sheet1!S71_SpecialAdjustedBudget,Sheet1!S71_A2SubCode,$AC:$AC,Sheet1!S71_ItemType,$AD:$AD)","v":0},null,null,null,null,{"$f":"SUMIFS(Sheet1!S71_AdjustmentAmount,Sheet1!S71_A2SubCode,$AC:$AC,Sheet1!S71_ItemType,$AD:$AD)","v":0},0,0,{"$f":"-SUMIFS(Sheet1!S71_OY1AdjustedBudget,Sheet1!S71_A2SubCode,$AC:$AC,Sheet1!S71_ItemType,$AD:$AD)","v":0},{"$f":"-SUMIFS(Sheet1!S71_OY2AdjustedBudget,Sheet1!S71_A2SubCode,$AC:$AC,Sheet1!S71_ItemType,$AD:$AD)","v":0},null,null,null,null,null,null,null,null,null,null,null,null,null,null,null,2117,"IR"]
["Population Development",null,{"$f":"-SUMIFS(Sheet1!S71_OriginalBudget,Sheet1!S71_A2SubCode,$AC:$AC,Sheet1!S71_ItemType,$AD:$AD)","v":0},{"$f":"-SUMIFS(Sheet1!S71_SpecialAdjustedBudget,Sheet1!S71_A2SubCode,$AC:$AC,Sheet1!S71_ItemType,$AD:$AD)","v":0},null,null,null,null,{"$f":"SUMIFS(Sheet1!S71_AdjustmentAmount,Sheet1!S71_A2SubCode,$AC:$AC,Sheet1!S71_ItemType,$AD:$AD)","v":0},0,0,{"$f":"-SUMIFS(Sheet1!S71_OY1AdjustedBudget,Sheet1!S71_A2SubCode,$AC:$AC,Sheet1!S71_ItemType,$AD:$AD)","v":0},{"$f":"-SUMIFS(Sheet1!S71_OY2AdjustedBudget,Sheet1!S71_A2SubCode,$AC:$AC,Sheet1!S71_ItemType,$AD:$AD)","v":0},null,null,null,null,null,null,null,null,null,null,null,null,null,null,null,2118,"IR"]
["Provincial Cultural Matters",null,{"$f":"-SUMIFS(Sheet1!S71_OriginalBudget,Sheet1!S71_A2SubCode,$AC:$AC,Sheet1!S71_ItemType,$AD:$AD)","v":0},{"$f":"-SUMIFS(Sheet1!S71_SpecialAdjustedBudget,Sheet1!S71_A2SubCode,$AC:$AC,Sheet1!S71_ItemType,$AD:$AD)","v":0},null,null,null,null,{"$f":"SUMIFS(Sheet1!S71_AdjustmentAmount,Sheet1!S71_A2SubCode,$AC:$AC,Sheet1!S71_ItemType,$AD:$AD)","v":0},0,0,{"$f":"-SUMIFS(Sheet1!S71_OY1AdjustedBudget,Sheet1!S71_A2SubCode,$AC:$AC,Sheet1!S71_ItemType,$AD:$AD)","v":0},{"$f":"-SUMIFS(Sheet1!S71_OY2AdjustedBudget,Sheet1!S71_A2SubCode,$AC:$AC,Sheet1!S71_ItemType,$AD:$AD)","v":0},null,null,null,null,null,null,null,null,null,null,null,null,null,null,null,2119,"IR"]
["Theatres",null,{"$f":"-SUMIFS(Sheet1!S71_OriginalBudget,Sheet1!S71_A2SubCode,$AC:$AC,Sheet1!S71_ItemType,$AD:$AD)","v":0},{"$f":"-SUMIFS(Sheet1!S71_SpecialAdjustedBudget,Sheet1!S71_A2SubCode,$AC:$AC,Sheet1!S71_ItemType,$AD:$AD)","v":0},null,null,null,null,{"$f":"SUMIFS(Sheet1!S71_AdjustmentAmount,Sheet1!S71_A2SubCode,$AC:$AC,Sheet1!S71_ItemType,$AD:$AD)","v":0},0,0,{"$f":"-SUMIFS(Sheet1!S71_OY1AdjustedBudget,Sheet1!S71_A2SubCode,$AC:$AC,Sheet1!S71_ItemType,$AD:$AD)","v":0},{"$f":"-SUMIFS(Sheet1!S71_OY2AdjustedBudget,Sheet1!S71_A2SubCode,$AC:$AC,Sheet1!S71_ItemType,$AD:$AD)","v":0},null,null,null,null,null,null,null,null,null,null,null,null,null,null,null,2120,"IR"]
["Zoo's",null,{"$f":"-SUMIFS(Sheet1!S71_OriginalBudget,Sheet1!S71_A2SubCode,$AC:$AC,Sheet1!S71_ItemType,$AD:$AD)","v":0},{"$f":"-SUMIFS(Sheet1!S71_SpecialAdjustedBudget,Sheet1!S71_A2SubCode,$AC:$AC,Sheet1!S71_ItemType,$AD:$AD)","v":0},null,null,null,null,{"$f":"SUMIFS(Sheet1!S71_AdjustmentAmount,Sheet1!S71_A2SubCode,$AC:$AC,Sheet1!S71_ItemType,$AD:$AD)","v":0},0,0,{"$f":"-SUMIFS(Sheet1!S71_OY1AdjustedBudget,Sheet1!S71_A2SubCode,$AC:$AC,Sheet1!S71_ItemType,$AD:$AD)","v":0},{"$f":"-SUMIFS(Sheet1!S71_OY2AdjustedBudget,Sheet1!S71_A2SubCode,$AC:$AC,Sheet1!S71_ItemType,$AD:$AD)","v":0},null,null,null,null,null,null,null,null,null,null,null,null,null,null,null,2121,"IR"]
["Sport and recreation",null,{"$f":"SUM(C51:C55)","v":0},0,0,0,0,0,0,0,0,0,0]
["Beaches and Jetties ",null,{"$f":"-SUMIFS(Sheet1!S71_OriginalBudget,Sheet1!S71_A2SubCode,$AC:$AC,Sheet1!S71_ItemType,$AD:$AD)","v":0},{"$f":"-SUMIFS(Sheet1!S71_SpecialAdjustedBudget,Sheet1!S71_A2SubCode,$AC:$AC,Sheet1!S71_ItemType,$AD:$AD)","v":0},null,null,null,null,{"$f":"SUMIFS(Sheet1!S71_AdjustmentAmount,Sheet1!S71_A2SubCode,$AC:$AC,Sheet1!S71_ItemType,$AD:$AD)","v":0},0,0,{"$f":"-SUMIFS(Sheet1!S71_OY1AdjustedBudget,Sheet1!S71_A2SubCode,$AC:$AC,Sheet1!S71_ItemType,$AD:$AD)","v":0},{"$f":"-SUMIFS(Sheet1!S71_OY2AdjustedBudget,Sheet1!S71_A2SubCode,$AC:$AC,Sheet1!S71_ItemType,$AD:$AD)","v":0},null,null,null,null,null,null,null,null,null,null,null,null,null,null,null,2201,"IR"]
["Casinos, Racing, Gambling, Wagering",null,{"$f":"-SUMIFS(Sheet1!S71_OriginalBudget,Sheet1!S71_A2SubCode,$AC:$AC,Sheet1!S71_ItemType,$AD:$AD)","v":0},{"$f":"-SUMIFS(Sheet1!S71_SpecialAdjustedBudget,Sheet1!S71_A2SubCode,$AC:$AC,Sheet1!S71_ItemType,$AD:$AD)","v":0},null,null,null,null,{"$f":"SUMIFS(Sheet1!S71_AdjustmentAmount,Sheet1!S71_A2SubCode,$AC:$AC,Sheet1!S71_ItemType,$AD:$AD)","v":0},0,0,{"$f":"-SUMIFS(Sheet1!S71_OY1AdjustedBudget,Sheet1!S71_A2SubCode,$AC:$AC,Sheet1!S71_ItemType,$AD:$AD)","v":0},{"$f":"-SUMIFS(Sheet1!S71_OY2AdjustedBudget,Sheet1!S71_A2SubCode,$AC:$AC,Sheet1!S71_ItemType,$AD:$AD)","v":0},null,null,null,null,null,null,null,null,null,null,null,null,null,null,null,2202,"IR"]
["Community Parks (including Nurseries)",null,{"$f":"-SUMIFS(Sheet1!S71_OriginalBudget,Sheet1!S71_A2SubCode,$AC:$AC,Sheet1!S71_ItemType,$AD:$AD)","v":0},{"$f":"-SUMIFS(Sheet1!S71_SpecialAdjustedBudget,Sheet1!S71_A2SubCode,$AC:$AC,Sheet1!S71_ItemType,$AD:$AD)","v":0},null,null,null,null,{"$f":"SUMIFS(Sheet1!S71_AdjustmentAmount,Sheet1!S71_A2SubCode,$AC:$AC,Sheet1!S71_ItemType,$AD:$AD)","v":0},0,0,{"$f":"-SUMIFS(Sheet1!S71_OY1AdjustedBudget,Sheet1!S71_A2SubCode,$AC:$AC,Sheet1!S71_ItemType,$AD:$AD)","v":0},{"$f":"-SUMIFS(Sheet1!S71_OY2AdjustedBudget,Sheet1!S71_A2SubCode,$AC:$AC,Sheet1!S71_ItemType,$AD:$AD)","v":0},null,null,null,null,null,null,null,null,null,null,null,null,null,null,null,2203,"IR"]
["Recreational Facilities",null,{"$f":"-SUMIFS(Sheet1!S71_OriginalBudget,Sheet1!S71_A2SubCode,$AC:$AC,Sheet1!S71_ItemType,$AD:$AD)","v":0},{"$f":"-SUMIFS(Sheet1!S71_SpecialAdjustedBudget,Sheet1!S71_A2SubCode,$AC:$AC,Sheet1!S71_ItemType,$AD:$AD)","v":0},null,null,null,null,{"$f":"SUMIFS(Sheet1!S71_AdjustmentAmount,Sheet1!S71_A2SubCode,$AC:$AC,Sheet1!S71_ItemType,$AD:$AD)","v":0},0,0,{"$f":"-SUMIFS(Sheet1!S71_OY1AdjustedBudget,Sheet1!S71_A2SubCode,$AC:$AC,Sheet1!S71_ItemType,$AD:$AD)","v":0},{"$f":"-SUMIFS(Sheet1!S71_OY2AdjustedBudget,Sheet1!S71_A2SubCode,$AC:$AC,Sheet1!S71_ItemType,$AD:$AD)","v":0},null,null,null,null,null,null,null,null,null,null,null,null,null,null,null,2204,"IR"]
["Sports Grounds and Stadiums",null,{"$f":"-SUMIFS(Sheet1!S71_OriginalBudget,Sheet1!S71_A2SubCode,$AC:$AC,Sheet1!S71_ItemType,$AD:$AD)","v":0},{"$f":"-SUMIFS(Sheet1!S71_SpecialAdjustedBudget,Sheet1!S71_A2SubCode,$AC:$AC,Sheet1!S71_ItemType,$AD:$AD)","v":0},null,null,null,null,{"$f":"SUMIFS(Sheet1!S71_AdjustmentAmount,Sheet1!S71_A2SubCode,$AC:$AC,Sheet1!S71_ItemType,$AD:$AD)","v":0},0,0,{"$f":"-SUMIFS(Sheet1!S71_OY1AdjustedBudget,Sheet1!S71_A2SubCode,$AC:$AC,Sheet1!S71_ItemType,$AD:$AD)","v":0},{"$f":"-SUMIFS(Sheet1!S71_OY2AdjustedBudget,Sheet1!S71_A2SubCode,$AC:$AC,Sheet1!S71_ItemType,$AD:$AD)","v":0},null,null,null,null,null,null,null,null,null,null,null,null,null,null,null,2205,"IR"]
["Public safety",null,{"$f":"SUM(C57:C64)","v":32477},0,0,0,0,0,-32477,-32477,0,32981,34564]
["Civil Defence",null,{"$f":"-SUMIFS(Sheet1!S71_OriginalBudget,Sheet1!S71_A2SubCode,$AC:$AC,Sheet1!S71_ItemType,$AD:$AD)","v":0},{"$f":"-SUMIFS(Sheet1!S71_SpecialAdjustedBudget,Sheet1!S71_A2SubCode,$AC:$AC,Sheet1!S71_ItemType,$AD:$AD)","v":0},null,null,null,null,{"$f":"SUMIFS(Sheet1!S71_AdjustmentAmount,Sheet1!S71_A2SubCode,$AC:$AC,Sheet1!S71_ItemType,$AD:$AD)","v":0},0,0,{"$f":"-SUMIFS(Sheet1!S71_OY1AdjustedBudget,Sheet1!S71_A2SubCode,$AC:$AC,Sheet1!S71_ItemType,$AD:$AD)","v":0},{"$f":"-SUMIFS(Sheet1!S71_OY2AdjustedBudget,Sheet1!S71_A2SubCode,$AC:$AC,Sheet1!S71_ItemType,$AD:$AD)","v":0},null,null,null,null,null,null,null,null,null,null,null,null,null,null,null,2301,"IR"]
["Cleansing",null,{"$f":"-SUMIFS(Sheet1!S71_OriginalBudget,Sheet1!S71_A2SubCode,$AC:$AC,Sheet1!S71_ItemType,$AD:$AD)","v":0},{"$f":"-SUMIFS(Sheet1!S71_SpecialAdjustedBudget,Sheet1!S71_A2SubCode,$AC:$AC,Sheet1!S71_ItemType,$AD:$AD)","v":0},null,null,null,null,{"$f":"SUMIFS(Sheet1!S71_AdjustmentAmount,Sheet1!S71_A2SubCode,$AC:$AC,Sheet1!S71_ItemType,$AD:$AD)","v":0},0,0,{"$f":"-SUMIFS(Sheet1!S71_OY1AdjustedBudget,Sheet1!S71_A2SubCode,$AC:$AC,Sheet1!S71_ItemType,$AD:$AD)","v":0},{"$f":"-SUMIFS(Sheet1!S71_OY2AdjustedBudget,Sheet1!S71_A2SubCode,$AC:$AC,Sheet1!S71_ItemType,$AD:$AD)","v":0},null,null,null,null,null,null,null,null,null,null,null,null,null,null,null,2302,"IR"]
["Control of Public Nuisances",null,{"$f":"-SUMIFS(Sheet1!S71_OriginalBudget,Sheet1!S71_A2SubCode,$AC:$AC,Sheet1!S71_ItemType,$AD:$AD)","v":0},{"$f":"-SUMIFS(Sheet1!S71_SpecialAdjustedBudget,Sheet1!S71_A2SubCode,$AC:$AC,Sheet1!S71_ItemType,$AD:$AD)","v":0},null,null,null,null,{"$f":"SUMIFS(Sheet1!S71_AdjustmentAmount,Sheet1!S71_A2SubCode,$AC:$AC,Sheet1!S71_ItemType,$AD:$AD)","v":0},0,0,{"$f":"-SUMIFS(Sheet1!S71_OY1AdjustedBudget,Sheet1!S71_A2SubCode,$AC:$AC,Sheet1!S71_ItemType,$AD:$AD)","v":0},{"$f":"-SUMIFS(Sheet1!S71_OY2AdjustedBudget,Sheet1!S71_A2SubCode,$AC:$AC,Sheet1!S71_ItemType,$AD:$AD)","v":0},null,null,null,null,null,null,null,null,null,null,null,null,null,null,null,2303,"IR"]
["Fencing and Fences ",null,{"$f":"-SUMIFS(Sheet1!S71_OriginalBudget,Sheet1!S71_A2SubCode,$AC:$AC,Sheet1!S71_ItemType,$AD:$AD)","v":0},{"$f":"-SUMIFS(Sheet1!S71_SpecialAdjustedBudget,Sheet1!S71_A2SubCode,$AC:$AC,Sheet1!S71_ItemType,$AD:$AD)","v":0},null,null,null,null,{"$f":"SUMIFS(Sheet1!S71_AdjustmentAmount,Sheet1!S71_A2SubCode,$AC:$AC,Sheet1!S71_ItemType,$AD:$AD)","v":0},0,0,{"$f":"-SUMIFS(Sheet1!S71_OY1AdjustedBudget,Sheet1!S71_A2SubCode,$AC:$AC,Sheet1!S71_ItemType,$AD:$AD)","v":0},{"$f":"-SUMIFS(Sheet1!S71_OY2AdjustedBudget,Sheet1!S71_A2SubCode,$AC:$AC,Sheet1!S71_ItemType,$AD:$AD)","v":0},null,null,null,null,null,null,null,null,null,null,null,null,null,null,null,2304,"IR"]
["Fire Fighting and Protection",null,{"$f":"-SUMIFS(Sheet1!S71_OriginalBudget,Sheet1!S71_A2SubCode,$AC:$AC,Sheet1!S71_ItemType,$AD:$AD)","v":32477},{"$f":"-SUMIFS(Sheet1!S71_SpecialAdjustedBudget,Sheet1!S71_A2SubCode,$AC:$AC,Sheet1!S71_ItemType,$AD:$AD)","v":0},null,null,null,null,{"$f":"SUMIFS(Sheet1!S71_AdjustmentAmount,Sheet1!S71_A2SubCode,$AC:$AC,Sheet1!S71_ItemType,$AD:$AD)","v":-32477},-32477,0,{"$f":"-SUMIFS(Sheet1!S71_OY1AdjustedBudget,Sheet1!S71_A2SubCode,$AC:$AC,Sheet1!S71_ItemType,$AD:$AD)","v":32981},{"$f":"-SUMIFS(Sheet1!S71_OY2AdjustedBudget,Sheet1!S71_A2SubCode,$AC:$AC,Sheet1!S71_ItemType,$AD:$AD)","v":34564},null,null,null,null,null,null,null,null,null,null,null,null,null,null,null,2305,"IR"]
["Licensing and Control of Animals",null,{"$f":"-SUMIFS(Sheet1!S71_OriginalBudget,Sheet1!S71_A2SubCode,$AC:$AC,Sheet1!S71_ItemType,$AD:$AD)","v":0},{"$f":"-SUMIFS(Sheet1!S71_SpecialAdjustedBudget,Sheet1!S71_A2SubCode,$AC:$AC,Sheet1!S71_ItemType,$AD:$AD)","v":0},null,null,null,null,{"$f":"SUMIFS(Sheet1!S71_AdjustmentAmount,Sheet1!S71_A2SubCode,$AC:$AC,Sheet1!S71_ItemType,$AD:$AD)","v":0},0,0,{"$f":"-SUMIFS(Sheet1!S71_OY1AdjustedBudget,Sheet1!S71_A2SubCode,$AC:$AC,Sheet1!S71_ItemType,$AD:$AD)","v":0},{"$f":"-SUMIFS(Sheet1!S71_OY2AdjustedBudget,Sheet1!S71_A2SubCode,$AC:$AC,Sheet1!S71_ItemType,$AD:$AD)","v":0},null,null,null,null,null,null,null,null,null,null,null,null,null,null,null,2306,"IR"]
["Police Forces, Traffic and Street Parking Control",null,{"$f":"-SUMIFS(Sheet1!S71_OriginalBudget,Sheet1!S71_A2SubCode,$AC:$AC,Sheet1!S71_ItemType,$AD:$AD)","v":0},{"$f":"-SUMIFS(Sheet1!S71_SpecialAdjustedBudget,Sheet1!S71_A2SubCode,$AC:$AC,Sheet1!S71_ItemType,$AD:$AD)","v":0},null,null,null,null,{"$f":"SUMIFS(Sheet1!S71_AdjustmentAmount,Sheet1!S71_A2SubCode,$AC:$AC,Sheet1!S71_ItemType,$AD:$AD)","v":0},{"$f":"SUM(E63:I63)","v":0},{"$f":"IF(D63=0,C63+J63,D63+J63)","v":0},{"$f":"-SUMIFS(Sheet1!S71_OY1AdjustedBudget,Sheet1!S71_A2SubCode,$AC:$AC,Sheet1!S71_ItemType,$AD:$AD)","v":0},{"$f":"-SUMIFS(Sheet1!S71_OY2AdjustedBudget,Sheet1!S71_A2SubCode,$AC:$AC,Sheet1!S71_ItemType,$AD:$AD)","v":0},null,null,null,null,null,null,null,null,null,null,null,null,null,null,null,2307,"IR"]
["Pounds",null,{"$f":"-SUMIFS(Sheet1!S71_OriginalBudget,Sheet1!S71_A2SubCode,$AC:$AC,Sheet1!S71_ItemType,$AD:$AD)","v":0},{"$f":"-SUMIFS(Sheet1!S71_SpecialAdjustedBudget,Sheet1!S71_A2SubCode,$AC:$AC,Sheet1!S71_ItemType,$AD:$AD)","v":0},null,null,null,null,{"$f":"SUMIFS(Sheet1!S71_AdjustmentAmount,Sheet1!S71_A2SubCode,$AC:$AC,Sheet1!S71_ItemType,$AD:$AD)","v":0},0,0,{"$f":"-SUMIFS(Sheet1!S71_OY1AdjustedBudget,Sheet1!S71_A2SubCode,$AC:$AC,Sheet1!S71_ItemType,$AD:$AD)","v":0},{"$f":"-SUMIFS(Sheet1!S71_OY2AdjustedBudget,Sheet1!S71_A2SubCode,$AC:$AC,Sheet1!S71_ItemType,$AD:$AD)","v":0},null,null,null,null,null,null,null,null,null,null,null,null,null,null,null,2308,"IR"]
["Housing",null,{"$f":"SUM(C66:C67)","v":0},{"$f":"SUM(D66:D67)","v":0},0,0,0,0,0,0,0,{"$f":"SUM(L66:L67)","v":0},{"$f":"SUM(M66:M67)","v":0}]
["Housing",null,{"$f":"-SUMIFS(Sheet1!S71_OriginalBudget,Sheet1!S71_A2SubCode,$AC:$AC,Sheet1!S71_ItemType,$AD:$AD)","v":0},{"$f":"-SUMIFS(Sheet1!S71_SpecialAdjustedBudget,Sheet1!S71_A2SubCode,$AC:$AC,Sheet1!S71_ItemType,$AD:$AD)","v":0},null,null,null,null,{"$f":"SUMIFS(Sheet1!S71_AdjustmentAmount,Sheet1!S71_A2SubCode,$AC:$AC,Sheet1!S71_ItemType,$AD:$AD)","v":0},0,0,{"$f":"-SUMIFS(Sheet1!S71_OY1AdjustedBudget,Sheet1!S71_A2SubCode,$AC:$AC,Sheet1!S71_ItemType,$AD:$AD)","v":0},{"$f":"-SUMIFS(Sheet1!S71_OY2AdjustedBudget,Sheet1!S71_A2SubCode,$AC:$AC,Sheet1!S71_ItemType,$AD:$AD)","v":0},null,null,null,null,null,null,null,null,null,null,null,null,null,null,null,2401,"IR"]
["Informal Settlements",null,{"$f":"-SUMIFS(Sheet1!S71_OriginalBudget,Sheet1!S71_A2SubCode,$AC:$AC,Sheet1!S71_ItemType,$AD:$AD)","v":0},{"$f":"-SUMIFS(Sheet1!S71_SpecialAdjustedBudget,Sheet1!S71_A2SubCode,$AC:$AC,Sheet1!S71_ItemType,$AD:$AD)","v":0},null,null,null,null,{"$f":"SUMIFS(Sheet1!S71_AdjustmentAmount,Sheet1!S71_A2SubCode,$AC:$AC,Sheet1!S71_ItemType,$AD:$AD)","v":0},0,0,{"$f":"-SUMIFS(Sheet1!S71_OY1AdjustedBudget,Sheet1!S71_A2SubCode,$AC:$AC,Sheet1!S71_ItemType,$AD:$AD)","v":0},{"$f":"-SUMIFS(Sheet1!S71_OY2AdjustedBudget,Sheet1!S71_A2SubCode,$AC:$AC,Sheet1!S71_ItemType,$AD:$AD)","v":0},null,null,null,null,null,null,null,null,null,null,null,null,null,null,null,2402,"IR"]
["Health",null,{"$f":"SUM(C69:C75)","v":0},{"$f":"SUM(D69:D75)","v":0},0,0,0,0,0,0,0,{"$f":"SUM(L69:L75)","v":0},{"$f":"SUM(M69:M75)","v":0}]
["Ambulance",null,{"$f":"-SUMIFS(Sheet1!S71_OriginalBudget,Sheet1!S71_A2SubCode,$AC:$AC,Sheet1!S71_ItemType,$AD:$AD)","v":0},{"$f":"-SUMIFS(Sheet1!S71_SpecialAdjustedBudget,Sheet1!S71_A2SubCode,$AC:$AC,Sheet1!S71_ItemType,$AD:$AD)","v":0},null,null,null,null,{"$f":"SUMIFS(Sheet1!S71_AdjustmentAmount,Sheet1!S71_A2SubCode,$AC:$AC,Sheet1!S71_ItemType,$AD:$AD)","v":0},0,0,{"$f":"-SUMIFS(Sheet1!S71_OY1AdjustedBudget,Sheet1!S71_A2SubCode,$AC:$AC,Sheet1!S71_ItemType,$AD:$AD)","v":0},{"$f":"-SUMIFS(Sheet1!S71_OY2AdjustedBudget,Sheet1!S71_A2SubCode,$AC:$AC,Sheet1!S71_ItemType,$AD:$AD)","v":0},null,null,null,null,null,null,null,null,null,null,null,null,null,null,null,2501,"IR"]
["Health Services",null,{"$f":"-SUMIFS(Sheet1!S71_OriginalBudget,Sheet1!S71_A2SubCode,$AC:$AC,Sheet1!S71_ItemType,$AD:$AD)","v":0},{"$f":"-SUMIFS(Sheet1!S71_SpecialAdjustedBudget,Sheet1!S71_A2SubCode,$AC:$AC,Sheet1!S71_ItemType,$AD:$AD)","v":0},null,null,null,null,{"$f":"SUMIFS(Sheet1!S71_AdjustmentAmount,Sheet1!S71_A2SubCode,$AC:$AC,Sheet1!S71_ItemType,$AD:$AD)","v":0},0,0,{"$f":"-SUMIFS(Sheet1!S71_OY1AdjustedBudget,Sheet1!S71_A2SubCode,$AC:$AC,Sheet1!S71_ItemType,$AD:$AD)","v":0},{"$f":"-SUMIFS(Sheet1!S71_OY2AdjustedBudget,Sheet1!S71_A2SubCode,$AC:$AC,Sheet1!S71_ItemType,$AD:$AD)","v":0},null,null,null,null,null,null,null,null,null,null,null,null,null,null,null,2502,"IR"]
["Laboratory Services",null,{"$f":"-SUMIFS(Sheet1!S71_OriginalBudget,Sheet1!S71_A2SubCode,$AC:$AC,Sheet1!S71_ItemType,$AD:$AD)","v":0},{"$f":"-SUMIFS(Sheet1!S71_SpecialAdjustedBudget,Sheet1!S71_A2SubCode,$AC:$AC,Sheet1!S71_ItemType,$AD:$AD)","v":0},null,null,null,null,{"$f":"SUMIFS(Sheet1!S71_AdjustmentAmount,Sheet1!S71_A2SubCode,$AC:$AC,Sheet1!S71_ItemType,$AD:$AD)","v":0},0,0,{"$f":"-SUMIFS(Sheet1!S71_OY1AdjustedBudget,Sheet1!S71_A2SubCode,$AC:$AC,Sheet1!S71_ItemType,$AD:$AD)","v":0},{"$f":"-SUMIFS(Sheet1!S71_OY2AdjustedBudget,Sheet1!S71_A2SubCode,$AC:$AC,Sheet1!S71_ItemType,$AD:$AD)","v":0},null,null,null,null,null,null,null,null,null,null,null,null,null,null,null,2503,"IR"]
["Food Control",null,{"$f":"-SUMIFS(Sheet1!S71_OriginalBudget,Sheet1!S71_A2SubCode,$AC:$AC,Sheet1!S71_ItemType,$AD:$AD)","v":0},{"$f":"-SUMIFS(Sheet1!S71_SpecialAdjustedBudget,Sheet1!S71_A2SubCode,$AC:$AC,Sheet1!S71_ItemType,$AD:$AD)","v":0},null,null,null,null,{"$f":"SUMIFS(Sheet1!S71_AdjustmentAmount,Sheet1!S71_A2SubCode,$AC:$AC,Sheet1!S71_ItemType,$AD:$AD)","v":0},0,0,{"$f":"-SUMIFS(Sheet1!S71_OY1AdjustedBudget,Sheet1!S71_A2SubCode,$AC:$AC,Sheet1!S71_ItemType,$AD:$AD)","v":0},{"$f":"-SUMIFS(Sheet1!S71_OY2AdjustedBudget,Sheet1!S71_A2SubCode,$AC:$AC,Sheet1!S71_ItemType,$AD:$AD)","v":0},null,null,null,null,null,null,null,null,null,null,null,null,null,null,null,2504,"IR"]
["Health Surveillance and Prevention of Communicable Diseases including immunizations",null,{"$f":"-SUMIFS(Sheet1!S71_OriginalBudget,Sheet1!S71_A2SubCode,$AC:$AC,Sheet1!S71_ItemType,$AD:$AD)","v":0},{"$f":"-SUMIFS(Sheet1!S71_SpecialAdjustedBudget,Sheet1!S71_A2SubCode,$AC:$AC,Sheet1!S71_ItemType,$AD:$AD)","v":0},null,null,null,null,{"$f":"SUMIFS(Sheet1!S71_AdjustmentAmount,Sheet1!S71_A2SubCode,$AC:$AC,Sheet1!S71_ItemType,$AD:$AD)","v":0},0,0,{"$f":"-SUMIFS(Sheet1!S71_OY1AdjustedBudget,Sheet1!S71_A2SubCode,$AC:$AC,Sheet1!S71_ItemType,$AD:$AD)","v":0},{"$f":"-SUMIFS(Sheet1!S71_OY2AdjustedBudget,Sheet1!S71_A2SubCode,$AC:$AC,Sheet1!S71_ItemType,$AD:$AD)","v":0},null,null,null,null,null,null,null,null,null,null,null,null,null,null,null,2505,"IR"]
["Vector Control",null,{"$f":"-SUMIFS(Sheet1!S71_OriginalBudget,Sheet1!S71_A2SubCode,$AC:$AC,Sheet1!S71_ItemType,$AD:$AD)","v":0},{"$f":"-SUMIFS(Sheet1!S71_SpecialAdjustedBudget,Sheet1!S71_A2SubCode,$AC:$AC,Sheet1!S71_ItemType,$AD:$AD)","v":0},null,null,null,null,{"$f":"SUMIFS(Sheet1!S71_AdjustmentAmount,Sheet1!S71_A2SubCode,$AC:$AC,Sheet1!S71_ItemType,$AD:$AD)","v":0},0,0,{"$f":"-SUMIFS(Sheet1!S71_OY1AdjustedBudget,Sheet1!S71_A2SubCode,$AC:$AC,Sheet1!S71_ItemType,$AD:$AD)","v":0},{"$f":"-SUMIFS(Sheet1!S71_OY2AdjustedBudget,Sheet1!S71_A2SubCode,$AC:$AC,Sheet1!S71_ItemType,$AD:$AD)","v":0},null,null,null,null,null,null,null,null,null,null,null,null,null,null,null,2506,"IR"]
["Chemical Safety",null,{"$f":"-SUMIFS(Sheet1!S71_OriginalBudget,Sheet1!S71_A2SubCode,$AC:$AC,Sheet1!S71_ItemType,$AD:$AD)","v":0},{"$f":"-SUMIFS(Sheet1!S71_SpecialAdjustedBudget,Sheet1!S71_A2SubCode,$AC:$AC,Sheet1!S71_ItemType,$AD:$AD)","v":0},null,null,null,null,{"$f":"SUMIFS(Sheet1!S71_AdjustmentAmount,Sheet1!S71_A2SubCode,$AC:$AC,Sheet1!S71_ItemType,$AD:$AD)","v":0},{"$f":"SUM(E75:I75)","v":0},{"$f":"IF(D75=0,C75+J75,D75+J75)","v":0},{"$f":"-SUMIFS(Sheet1!S71_OY1AdjustedBudget,Sheet1!S71_A2SubCode,$AC:$AC,Sheet1!S71_ItemType,$AD:$AD)","v":0},{"$f":"-SUMIFS(Sheet1!S71_OY2AdjustedBudget,Sheet1!S71_A2SubCode,$AC:$AC,Sheet1!S71_ItemType,$AD:$AD)","v":0},null,null,null,null,null,null,null,null,null,null,null,null,null,null,null,2507,"IR"]
["Economic and environmental services",null,{"$f":"C77+C88+C93","v":38166810},0,0,0,0,0,3649699,3649699,41816509,{"$f":"L77+L88+L93","v":41817508},{"$f":"M77+M88+M93","v":43744939}]
["Planning and development",null,{"$f":"SUM(C78:C87)","v":1224841},{"$f":"SUM(D78:D87)","v":0},0,0,0,0,4156652,4156652,5381493,{"$f":"SUM(L78:L87)","v":-2076106},{"$f":"SUM(M78:M87)","v":-2168131}]
["Billboards",null,{"$f":"-SUMIFS(Sheet1!S71_OriginalBudget,Sheet1!S71_A2SubCode,$AC:$AC,Sheet1!S71_ItemType,$AD:$AD)","v":0},{"$f":"-SUMIFS(Sheet1!S71_SpecialAdjustedBudget,Sheet1!S71_A2SubCode,$AC:$AC,Sheet1!S71_ItemType,$AD:$AD)","v":0},null,null,null,null,{"$f":"SUMIFS(Sheet1!S71_AdjustmentAmount,Sheet1!S71_A2SubCode,$AC:$AC,Sheet1!S71_ItemType,$AD:$AD)","v":0},0,0,{"$f":"-SUMIFS(Sheet1!S71_OY1AdjustedBudget,Sheet1!S71_A2SubCode,$AC:$AC,Sheet1!S71_ItemType,$AD:$AD)","v":0},{"$f":"-SUMIFS(Sheet1!S71_OY2AdjustedBudget,Sheet1!S71_A2SubCode,$AC:$AC,Sheet1!S71_ItemType,$AD:$AD)","v":0},null,null,null,null,null,null,null,null,null,null,null,null,null,null,null,3101,"IR"]
["Corporate Wide Strategic Planning (IDPs, LEDs)",null,{"$f":"-SUMIFS(Sheet1!S71_OriginalBudget,Sheet1!S71_A2SubCode,$AC:$AC,Sheet1!S71_ItemType,$AD:$AD)","v":1759000},{"$f":"-SUMIFS(Sheet1!S71_SpecialAdjustedBudget,Sheet1!S71_A2SubCode,$AC:$AC,Sheet1!S71_ItemType,$AD:$AD)","v":0},null,null,null,null,{"$f":"SUMIFS(Sheet1!S71_AdjustmentAmount,Sheet1!S71_A2SubCode,$AC:$AC,Sheet1!S71_ItemType,$AD:$AD)","v":0},0,1759000,{"$f":"-SUMIFS(Sheet1!S71_OY1AdjustedBudget,Sheet1!S71_A2SubCode,$AC:$AC,Sheet1!S71_ItemType,$AD:$AD)","v":0},{"$f":"-SUMIFS(Sheet1!S71_OY2AdjustedBudget,Sheet1!S71_A2SubCode,$AC:$AC,Sheet1!S71_ItemType,$AD:$AD)","v":0},null,null,null,null,null,null,null,null,null,null,null,null,null,null,null,3102,"IR"]
["Central City Improvement District",null,{"$f":"-SUMIFS(Sheet1!S71_OriginalBudget,Sheet1!S71_A2SubCode,$AC:$AC,Sheet1!S71_ItemType,$AD:$AD)","v":0},{"$f":"-SUMIFS(Sheet1!S71_SpecialAdjustedBudget,Sheet1!S71_A2SubCode,$AC:$AC,Sheet1!S71_ItemType,$AD:$AD)","v":0},null,null,null,null,{"$f":"SUMIFS(Sheet1!S71_AdjustmentAmount,Sheet1!S71_A2SubCode,$AC:$AC,Sheet1!S71_ItemType,$AD:$AD)","v":3000000},3000000,3000000,{"$f":"-SUMIFS(Sheet1!S71_OY1AdjustedBudget,Sheet1!S71_A2SubCode,$AC:$AC,Sheet1!S71_ItemType,$AD:$AD)","v":0},{"$f":"-SUMIFS(Sheet1!S71_OY2AdjustedBudget,Sheet1!S71_A2SubCode,$AC:$AC,Sheet1!S71_ItemType,$AD:$AD)","v":0},null,null,null,null,null,null,null,null,null,null,null,null,null,null,null,3103,"IR"]
["Development Facilitation",null,{"$f":"-SUMIFS(Sheet1!S71_OriginalBudget,Sheet1!S71_A2SubCode,$AC:$AC,Sheet1!S71_ItemType,$AD:$AD)","v":0},{"$f":"-SUMIFS(Sheet1!S71_SpecialAdjustedBudget,Sheet1!S71_A2SubCode,$AC:$AC,Sheet1!S71_ItemType,$AD:$AD)","v":0},null,null,null,null,{"$f":"SUMIFS(Sheet1!S71_AdjustmentAmount,Sheet1!S71_A2SubCode,$AC:$AC,Sheet1!S71_ItemType,$AD:$AD)","v":0},0,0,{"$f":"-SUMIFS(Sheet1!S71_OY1AdjustedBudget,Sheet1!S71_A2SubCode,$AC:$AC,Sheet1!S71_ItemType,$AD:$AD)","v":0},{"$f":"-SUMIFS(Sheet1!S71_OY2AdjustedBudget,Sheet1!S71_A2SubCode,$AC:$AC,Sheet1!S71_ItemType,$AD:$AD)","v":0},null,null,null,null,null,null,null,null,null,null,null,null,null,null,null,3104,"IR"]
["Economic Development/Planning",null,{"$f":"-SUMIFS(Sheet1!S71_OriginalBudget,Sheet1!S71_A2SubCode,$AC:$AC,Sheet1!S71_ItemType,$AD:$AD)","v":3248},{"$f":"-SUMIFS(Sheet1!S71_SpecialAdjustedBudget,Sheet1!S71_A2SubCode,$AC:$AC,Sheet1!S71_ItemType,$AD:$AD)","v":0},null,null,null,null,{"$f":"SUMIFS(Sheet1!S71_AdjustmentAmount,Sheet1!S71_A2SubCode,$AC:$AC,Sheet1!S71_ItemType,$AD:$AD)","v":0},0,3248,{"$f":"-SUMIFS(Sheet1!S71_OY1AdjustedBudget,Sheet1!S71_A2SubCode,$AC:$AC,Sheet1!S71_ItemType,$AD:$AD)","v":3298},{"$f":"-SUMIFS(Sheet1!S71_OY2AdjustedBudget,Sheet1!S71_A2SubCode,$AC:$AC,Sheet1!S71_ItemType,$AD:$AD)","v":3456},null,null,null,null,null,null,null,null,null,null,null,null,null,null,null,3105,"IR"]
["Regional Planning and Development",null,{"$f":"-SUMIFS(Sheet1!S71_OriginalBudget,Sheet1!S71_A2SubCode,$AC:$AC,Sheet1!S71_ItemType,$AD:$AD)","v":0},{"$f":"-SUMIFS(Sheet1!S71_SpecialAdjustedBudget,Sheet1!S71_A2SubCode,$AC:$AC,Sheet1!S71_ItemType,$AD:$AD)","v":0},null,null,null,null,{"$f":"SUMIFS(Sheet1!S71_AdjustmentAmount,Sheet1!S71_A2SubCode,$AC:$AC,Sheet1!S71_ItemType,$AD:$AD)","v":0},0,0,{"$f":"-SUMIFS(Sheet1!S71_OY1AdjustedBudget,Sheet1!S71_A2SubCode,$AC:$AC,Sheet1!S71_ItemType,$AD:$AD)","v":0},{"$f":"-SUMIFS(Sheet1!S71_OY2AdjustedBudget,Sheet1!S71_A2SubCode,$AC:$AC,Sheet1!S71_ItemType,$AD:$AD)","v":0},null,null,null,null,null,null,null,null,null,null,null,null,null,null,null,3106,"IR"]
["Town Planning, Building Regulations and Enforcement, and City Engineer",null,{"$f":"-SUMIFS(Sheet1!S71_OriginalBudget,Sheet1!S71_A2SubCode,$AC:$AC,Sheet1!S71_ItemType,$AD:$AD)","v":-1993460},{"$f":"-SUMIFS(Sheet1!S71_SpecialAdjustedBudget,Sheet1!S71_A2SubCode,$AC:$AC,Sheet1!S71_ItemType,$AD:$AD)","v":0},null,null,null,null,{"$f":"SUMIFS(Sheet1!S71_AdjustmentAmount,Sheet1!S71_A2SubCode,$AC:$AC,Sheet1!S71_ItemType,$AD:$AD)","v":1939614},1939614,-53846,{"$f":"-SUMIFS(Sheet1!S71_OY1AdjustedBudget,Sheet1!S71_A2SubCode,$AC:$AC,Sheet1!S71_ItemType,$AD:$AD)","v":-2079404},{"$f":"-SUMIFS(Sheet1!S71_OY2AdjustedBudget,Sheet1!S71_A2SubCode,$AC:$AC,Sheet1!S71_ItemType,$AD:$AD)","v":-2171587},null,null,null,null,null,null,null,null,null,null,null,null,null,null,null,3107,"IR"]
["Project Management Unit",null,{"$f":"-SUMIFS(Sheet1!S71_OriginalBudget,Sheet1!S71_A2SubCode,$AC:$AC,Sheet1!S71_ItemType,$AD:$AD)","v":1456053},{"$f":"-SUMIFS(Sheet1!S71_SpecialAdjustedBudget,Sheet1!S71_A2SubCode,$AC:$AC,Sheet1!S71_ItemType,$AD:$AD)","v":0},null,null,null,null,{"$f":"SUMIFS(Sheet1!S71_AdjustmentAmount,Sheet1!S71_A2SubCode,$AC:$AC,Sheet1!S71_ItemType,$AD:$AD)","v":-782962},-782962,673091,{"$f":"-SUMIFS(Sheet1!S71_OY1AdjustedBudget,Sheet1!S71_A2SubCode,$AC:$AC,Sheet1!S71_ItemType,$AD:$AD)","v":0},{"$f":"-SUMIFS(Sheet1!S71_OY2AdjustedBudget,Sheet1!S71_A2SubCode,$AC:$AC,Sheet1!S71_ItemType,$AD:$AD)","v":0},null,null,null,null,null,null,null,null,null,null,null,null,null,null,null,3108,"IR"]
["Provincial Planning",null,{"$f":"-SUMIFS(Sheet1!S71_OriginalBudget,Sheet1!S71_A2SubCode,$AC:$AC,Sheet1!S71_ItemType,$AD:$AD)","v":0},{"$f":"-SUMIFS(Sheet1!S71_SpecialAdjustedBudget,Sheet1!S71_A2SubCode,$AC:$AC,Sheet1!S71_ItemType,$AD:$AD)","v":0},null,null,null,null,{"$f":"SUMIFS(Sheet1!S71_AdjustmentAmount,Sheet1!S71_A2SubCode,$AC:$AC,Sheet1!S71_ItemType,$AD:$AD)","v":0},0,0,{"$f":"-SUMIFS(Sheet1!S71_OY1AdjustedBudget,Sheet1!S71_A2SubCode,$AC:$AC,Sheet1!S71_ItemType,$AD:$AD)","v":0},{"$f":"-SUMIFS(Sheet1!S71_OY2AdjustedBudget,Sheet1!S71_A2SubCode,$AC:$AC,Sheet1!S71_ItemType,$AD:$AD)","v":0},null,null,null,null,null,null,null,null,null,null,null,null,null,null,null,3109,"IR"]
["Support to Local Municipalities",null,{"$f":"-SUMIFS(Sheet1!S71_OriginalBudget,Sheet1!S71_A2SubCode,$AC:$AC,Sheet1!S71_ItemType,$AD:$AD)","v":0},{"$f":"-SUMIFS(Sheet1!S71_SpecialAdjustedBudget,Sheet1!S71_A2SubCode,$AC:$AC,Sheet1!S71_ItemType,$AD:$AD)","v":0},null,null,null,null,{"$f":"SUMIFS(Sheet1!S71_AdjustmentAmount,Sheet1!S71_A2SubCode,$AC:$AC,Sheet1!S71_ItemType,$AD:$AD)","v":0},0,0,{"$f":"-SUMIFS(Sheet1!S71_OY1AdjustedBudget,Sheet1!S71_A2SubCode,$AC:$AC,Sheet1!S71_ItemType,$AD:$AD)","v":0},{"$f":"-SUMIFS(Sheet1!S71_OY2AdjustedBudget,Sheet1!S71_A2SubCode,$AC:$AC,Sheet1!S71_ItemType,$AD:$AD)","v":0},null,null,null,null,null,null,null,null,null,null,null,null,null,null,null,3110,"IR"]
["Road transport",null,{"$f":"SUM(C89:C92)","v":36941969},0,0,0,0,0,-506953,-506953,36435016,{"$f":"SUM(L89:L92)","v":43893614},{"$f":"SUM(M89:M92)","v":45913070}]
["Public Transport",null,{"$f":"-SUMIFS(Sheet1!S71_OriginalBudget,Sheet1!S71_A2SubCode,$AC:$AC,Sheet1!S71_ItemType,$AD:$AD)","v":0},{"$f":"-SUMIFS(Sheet1!S71_SpecialAdjustedBudget,Sheet1!S71_A2SubCode,$AC:$AC,Sheet1!S71_ItemType,$AD:$AD)","v":0},null,null,null,null,{"$f":"SUMIFS(Sheet1!S71_AdjustmentAmount,Sheet1!S71_A2SubCode,$AC:$AC,Sheet1!S71_ItemType,$AD:$AD)","v":0},0,0,{"$f":"-SUMIFS(Sheet1!S71_OY1AdjustedBudget,Sheet1!S71_A2SubCode,$AC:$AC,Sheet1!S71_ItemType,$AD:$AD)","v":0},{"$f":"-SUMIFS(Sheet1!S71_OY2AdjustedBudget,Sheet1!S71_A2SubCode,$AC:$AC,Sheet1!S71_ItemType,$AD:$AD)","v":0},null,null,null,null,null,null,null,null,null,null,null,null,null,null,null,3203,"IR"]
["Road and Traffic Regulation",null,{"$f":"-SUMIFS(Sheet1!S71_OriginalBudget,Sheet1!S71_A2SubCode,$AC:$AC,Sheet1!S71_ItemType,$AD:$AD)","v":6341118},{"$f":"-SUMIFS(Sheet1!S71_SpecialAdjustedBudget,Sheet1!S71_A2SubCode,$AC:$AC,Sheet1!S71_ItemType,$AD:$AD)","v":0},null,null,null,null,{"$f":"SUMIFS(Sheet1!S71_AdjustmentAmount,Sheet1!S71_A2SubCode,$AC:$AC,Sheet1!S71_ItemType,$AD:$AD)","v":-3286131},-3286131,3054987,{"$f":"-SUMIFS(Sheet1!S71_OY1AdjustedBudget,Sheet1!S71_A2SubCode,$AC:$AC,Sheet1!S71_ItemType,$AD:$AD)","v":5532002},{"$f":"-SUMIFS(Sheet1!S71_OY2AdjustedBudget,Sheet1!S71_A2SubCode,$AC:$AC,Sheet1!S71_ItemType,$AD:$AD)","v":5815123},null,null,null,null,null,null,null,null,null,null,null,null,null,null,null,3204,"IR"]
["Roads",null,{"$f":"-SUMIFS(Sheet1!S71_OriginalBudget,Sheet1!S71_A2SubCode,$AC:$AC,Sheet1!S71_ItemType,$AD:$AD)","v":30600851},{"$f":"-SUMIFS(Sheet1!S71_SpecialAdjustedBudget,Sheet1!S71_A2SubCode,$AC:$AC,Sheet1!S71_ItemType,$AD:$AD)","v":0},null,null,null,null,{"$f":"SUMIFS(Sheet1!S71_AdjustmentAmount,Sheet1!S71_A2SubCode,$AC:$AC,Sheet1!S71_ItemType,$AD:$AD)","v":2779178},2779178,33380029,{"$f":"-SUMIFS(Sheet1!S71_OY1AdjustedBudget,Sheet1!S71_A2SubCode,$AC:$AC,Sheet1!S71_ItemType,$AD:$AD)","v":38361612},{"$f":"-SUMIFS(Sheet1!S71_OY2AdjustedBudget,Sheet1!S71_A2SubCode,$AC:$AC,Sheet1!S71_ItemType,$AD:$AD)","v":40097947},null,null,null,null,null,null,null,null,null,null,null,null,null,null,null,3205,"IR"]
["Taxi Ranks",null,{"$f":"-SUMIFS(Sheet1!S71_OriginalBudget,Sheet1!S71_A2SubCode,$AC:$AC,Sheet1!S71_ItemType,$AD:$AD)","v":0},{"$f":"-SUMIFS(Sheet1!S71_SpecialAdjustedBudget,Sheet1!S71_A2SubCode,$AC:$AC,Sheet1!S71_ItemType,$AD:$AD)","v":0},null,null,null,null,{"$f":"SUMIFS(Sheet1!S71_AdjustmentAmount,Sheet1!S71_A2SubCode,$AC:$AC,Sheet1!S71_ItemType,$AD:$AD)","v":0},0,0,{"$f":"-SUMIFS(Sheet1!S71_OY1AdjustedBudget,Sheet1!S71_A2SubCode,$AC:$AC,Sheet1!S71_ItemType,$AD:$AD)","v":0},{"$f":"-SUMIFS(Sheet1!S71_OY2AdjustedBudget,Sheet1!S71_A2SubCode,$AC:$AC,Sheet1!S71_ItemType,$AD:$AD)","v":0},null,null,null,null,null,null,null,null,null,null,null,null,null,null,null,3206,"IR"]
["Environmental protection",null,{"$f":"SUM(C94:C99)","v":0},{"$f":"SUM(D94:D99)","v":0},0,0,0,0,0,0,0,{"$f":"SUM(L94:L99)","v":0},{"$f":"SUM(M94:M99)","v":0}]
["Biodiversity and Landscape",null,{"$f":"-SUMIFS(Sheet1!S71_OriginalBudget,Sheet1!S71_A2SubCode,$AC:$AC,Sheet1!S71_ItemType,$AD:$AD)","v":0},{"$f":"-SUMIFS(Sheet1!S71_SpecialAdjustedBudget,Sheet1!S71_A2SubCode,$AC:$AC,Sheet1!S71_ItemType,$AD:$AD)","v":0},null,null,null,null,{"$f":"SUMIFS(Sheet1!S71_AdjustmentAmount,Sheet1!S71_A2SubCode,$AC:$AC,Sheet1!S71_ItemType,$AD:$AD)","v":0},0,0,{"$f":"-SUMIFS(Sheet1!S71_OY1AdjustedBudget,Sheet1!S71_A2SubCode,$AC:$AC,Sheet1!S71_ItemType,$AD:$AD)","v":0},{"$f":"-SUMIFS(Sheet1!S71_OY2AdjustedBudget,Sheet1!S71_A2SubCode,$AC:$AC,Sheet1!S71_ItemType,$AD:$AD)","v":0},null,null,null,null,null,null,null,null,null,null,null,null,null,null,null,3301,"IR"]
["Coastal Protection",null,{"$f":"-SUMIFS(Sheet1!S71_OriginalBudget,Sheet1!S71_A2SubCode,$AC:$AC,Sheet1!S71_ItemType,$AD:$AD)","v":0},{"$f":"-SUMIFS(Sheet1!S71_SpecialAdjustedBudget,Sheet1!S71_A2SubCode,$AC:$AC,Sheet1!S71_ItemType,$AD:$AD)","v":0},null,null,null,null,{"$f":"SUMIFS(Sheet1!S71_AdjustmentAmount,Sheet1!S71_A2SubCode,$AC:$AC,Sheet1!S71_ItemType,$AD:$AD)","v":0},0,0,{"$f":"-SUMIFS(Sheet1!S71_OY1AdjustedBudget,Sheet1!S71_A2SubCode,$AC:$AC,Sheet1!S71_ItemType,$AD:$AD)","v":0},{"$f":"-SUMIFS(Sheet1!S71_OY2AdjustedBudget,Sheet1!S71_A2SubCode,$AC:$AC,Sheet1!S71_ItemType,$AD:$AD)","v":0},null,null,null,null,null,null,null,null,null,null,null,null,null,null,null,3302,"IR"]
["Indigenous Forests",null,{"$f":"-SUMIFS(Sheet1!S71_OriginalBudget,Sheet1!S71_A2SubCode,$AC:$AC,Sheet1!S71_ItemType,$AD:$AD)","v":0},{"$f":"-SUMIFS(Sheet1!S71_SpecialAdjustedBudget,Sheet1!S71_A2SubCode,$AC:$AC,Sheet1!S71_ItemType,$AD:$AD)","v":0},null,null,null,null,{"$f":"SUMIFS(Sheet1!S71_AdjustmentAmount,Sheet1!S71_A2SubCode,$AC:$AC,Sheet1!S71_ItemType,$AD:$AD)","v":0},0,0,{"$f":"-SUMIFS(Sheet1!S71_OY1AdjustedBudget,Sheet1!S71_A2SubCode,$AC:$AC,Sheet1!S71_ItemType,$AD:$AD)","v":0},{"$f":"-SUMIFS(Sheet1!S71_OY2AdjustedBudget,Sheet1!S71_A2SubCode,$AC:$AC,Sheet1!S71_ItemType,$AD:$AD)","v":0},null,null,null,null,null,null,null,null,null,null,null,null,null,null,null,3303,"IR"]
["Nature Conservation",null,{"$f":"-SUMIFS(Sheet1!S71_OriginalBudget,Sheet1!S71_A2SubCode,$AC:$AC,Sheet1!S71_ItemType,$AD:$AD)","v":0},{"$f":"-SUMIFS(Sheet1!S71_SpecialAdjustedBudget,Sheet1!S71_A2SubCode,$AC:$AC,Sheet1!S71_ItemType,$AD:$AD)","v":0},null,null,null,null,{"$f":"SUMIFS(Sheet1!S71_AdjustmentAmount,Sheet1!S71_A2SubCode,$AC:$AC,Sheet1!S71_ItemType,$AD:$AD)","v":0},0,0,{"$f":"-SUMIFS(Sheet1!S71_OY1AdjustedBudget,Sheet1!S71_A2SubCode,$AC:$AC,Sheet1!S71_ItemType,$AD:$AD)","v":0},{"$f":"-SUMIFS(Sheet1!S71_OY2AdjustedBudget,Sheet1!S71_A2SubCode,$AC:$AC,Sheet1!S71_ItemType,$AD:$AD)","v":0},null,null,null,null,null,null,null,null,null,null,null,null,null,null,null,3304,"IR"]
["Pollution Control",null,{"$f":"-SUMIFS(Sheet1!S71_OriginalBudget,Sheet1!S71_A2SubCode,$AC:$AC,Sheet1!S71_ItemType,$AD:$AD)","v":0},{"$f":"-SUMIFS(Sheet1!S71_SpecialAdjustedBudget,Sheet1!S71_A2SubCode,$AC:$AC,Sheet1!S71_ItemType,$AD:$AD)","v":0},null,null,null,null,{"$f":"SUMIFS(Sheet1!S71_AdjustmentAmount,Sheet1!S71_A2SubCode,$AC:$AC,Sheet1!S71_ItemType,$AD:$AD)","v":0},0,0,{"$f":"-SUMIFS(Sheet1!S71_OY1AdjustedBudget,Sheet1!S71_A2SubCode,$AC:$AC,Sheet1!S71_ItemType,$AD:$AD)","v":0},{"$f":"-SUMIFS(Sheet1!S71_OY2AdjustedBudget,Sheet1!S71_A2SubCode,$AC:$AC,Sheet1!S71_ItemType,$AD:$AD)","v":0},null,null,null,null,null,null,null,null,null,null,null,null,null,null,null,3305,"IR"]
["Soil Conservation",null,{"$f":"-SUMIFS(Sheet1!S71_OriginalBudget,Sheet1!S71_A2SubCode,$AC:$AC,Sheet1!S71_ItemType,$AD:$AD)","v":0},{"$f":"-SUMIFS(Sheet1!S71_SpecialAdjustedBudget,Sheet1!S71_A2SubCode,$AC:$AC,Sheet1!S71_ItemType,$AD:$AD)","v":0},null,null,null,null,{"$f":"SUMIFS(Sheet1!S71_AdjustmentAmount,Sheet1!S71_A2SubCode,$AC:$AC,Sheet1!S71_ItemType,$AD:$AD)","v":0},0,0,{"$f":"-SUMIFS(Sheet1!S71_OY1AdjustedBudget,Sheet1!S71_A2SubCode,$AC:$AC,Sheet1!S71_ItemType,$AD:$AD)","v":0},{"$f":"-SUMIFS(Sheet1!S71_OY2AdjustedBudget,Sheet1!S71_A2SubCode,$AC:$AC,Sheet1!S71_ItemType,$AD:$AD)","v":0},null,null,null,null,null,null,null,null,null,null,null,null,null,null,null,3306,"IR"]
["Trading services",null,{"$f":"C101+C105+C109+C114","v":208500},{"$f":"D101+D105+D109+D114","v":0},0,0,0,0,415860,415860,624360,475011,497811]
["Energy sources",null,{"$f":"SUM(C102:C104)","v":0},{"$f":"SUM(D102:D104)","v":0},0,0,0,0,0,0,0,{"$f":"SUM(L102:L104)","v":0},{"$f":"SUM(M102:M104)","v":0}]
["Electricity ",null,{"$f":"-SUMIFS(Sheet1!S71_OriginalBudget,Sheet1!S71_A2SubCode,$AC:$AC,Sheet1!S71_ItemType,$AD:$AD)","v":0},{"$f":"-SUMIFS(Sheet1!S71_SpecialAdjustedBudget,Sheet1!S71_A2SubCode,$AC:$AC,Sheet1!S71_ItemType,$AD:$AD)","v":0},null,null,null,null,{"$f":"SUMIFS(Sheet1!S71_AdjustmentAmount,Sheet1!S71_A2SubCode,$AC:$AC,Sheet1!S71_ItemType,$AD:$AD)","v":0},0,0,{"$f":"-SUMIFS(Sheet1!S71_OY1AdjustedBudget,Sheet1!S71_A2SubCode,$AC:$AC,Sheet1!S71_ItemType,$AD:$AD)","v":0},{"$f":"-SUMIFS(Sheet1!S71_OY2AdjustedBudget,Sheet1!S71_A2SubCode,$AC:$AC,Sheet1!S71_ItemType,$AD:$AD)","v":0},null,null,null,null,null,null,null,null,null,null,null,null,null,null,null,4101,"IR"]
["Street Lighting and Signal Systems",null,{"$f":"-SUMIFS(Sheet1!S71_OriginalBudget,Sheet1!S71_A2SubCode,$AC:$AC,Sheet1!S71_ItemType,$AD:$AD)","v":0},{"$f":"-SUMIFS(Sheet1!S71_SpecialAdjustedBudget,Sheet1!S71_A2SubCode,$AC:$AC,Sheet1!S71_ItemType,$AD:$AD)","v":0},null,null,null,null,{"$f":"SUMIFS(Sheet1!S71_AdjustmentAmount,Sheet1!S71_A2SubCode,$AC:$AC,Sheet1!S71_ItemType,$AD:$AD)","v":0},0,0,{"$f":"-SUMIFS(Sheet1!S71_OY1AdjustedBudget,Sheet1!S71_A2SubCode,$AC:$AC,Sheet1!S71_ItemType,$AD:$AD)","v":0},{"$f":"-SUMIFS(Sheet1!S71_OY2AdjustedBudget,Sheet1!S71_A2SubCode,$AC:$AC,Sheet1!S71_ItemType,$AD:$AD)","v":0},null,null,null,null,null,null,null,null,null,null,null,null,null,null,null,4102,"IR"]
["Nonelectric Energy",null,{"$f":"-SUMIFS(Sheet1!S71_OriginalBudget,Sheet1!S71_A2SubCode,$AC:$AC,Sheet1!S71_ItemType,$AD:$AD)","v":0},{"$f":"-SUMIFS(Sheet1!S71_SpecialAdjustedBudget,Sheet1!S71_A2SubCode,$AC:$AC,Sheet1!S71_ItemType,$AD:$AD)","v":0},null,null,null,null,{"$f":"SUMIFS(Sheet1!S71_AdjustmentAmount,Sheet1!S71_A2SubCode,$AC:$AC,Sheet1!S71_ItemType,$AD:$AD)","v":0},0,0,{"$f":"-SUMIFS(Sheet1!S71_OY1AdjustedBudget,Sheet1!S71_A2SubCode,$AC:$AC,Sheet1!S71_ItemType,$AD:$AD)","v":0},{"$f":"-SUMIFS(Sheet1!S71_OY2AdjustedBudget,Sheet1!S71_A2SubCode,$AC:$AC,Sheet1!S71_ItemType,$AD:$AD)","v":0},null,null,null,null,null,null,null,null,null,null,null,null,null,null,null,4103,"IR"]
["Water management",null,{"$f":"SUM(C106:C108)","v":0},{"$f":"SUM(D106:D108)","v":0},0,0,0,0,0,0,0,{"$f":"SUM(L106:L108)","v":0},{"$f":"SUM(M106:M108)","v":0}]
["Water Treatment",null,{"$f":"-SUMIFS(Sheet1!S71_OriginalBudget,Sheet1!S71_A2SubCode,$AC:$AC,Sheet1!S71_ItemType,$AD:$AD)","v":0},{"$f":"-SUMIFS(Sheet1!S71_SpecialAdjustedBudget,Sheet1!S71_A2SubCode,$AC:$AC,Sheet1!S71_ItemType,$AD:$AD)","v":0},null,null,null,null,{"$f":"SUMIFS(Sheet1!S71_AdjustmentAmount,Sheet1!S71_A2SubCode,$AC:$AC,Sheet1!S71_ItemType,$AD:$AD)","v":0},0,0,{"$f":"-SUMIFS(Sheet1!S71_OY1AdjustedBudget,Sheet1!S71_A2SubCode,$AC:$AC,Sheet1!S71_ItemType,$AD:$AD)","v":0},{"$f":"-SUMIFS(Sheet1!S71_OY2AdjustedBudget,Sheet1!S71_A2SubCode,$AC:$AC,Sheet1!S71_ItemType,$AD:$AD)","v":0},null,null,null,null,null,null,null,null,null,null,null,null,null,null,null,4201,"IR"]
["Water Distribution",null,{"$f":"-SUMIFS(Sheet1!S71_OriginalBudget,Sheet1!S71_A2SubCode,$AC:$AC,Sheet1!S71_ItemType,$AD:$AD)","v":0},{"$f":"-SUMIFS(Sheet1!S71_SpecialAdjustedBudget,Sheet1!S71_A2SubCode,$AC:$AC,Sheet1!S71_ItemType,$AD:$AD)","v":0},null,null,null,null,{"$f":"SUMIFS(Sheet1!S71_AdjustmentAmount,Sheet1!S71_A2SubCode,$AC:$AC,Sheet1!S71_ItemType,$AD:$AD)","v":0},0,0,{"$f":"-SUMIFS(Sheet1!S71_OY1AdjustedBudget,Sheet1!S71_A2SubCode,$AC:$AC,Sheet1!S71_ItemType,$AD:$AD)","v":0},{"$f":"-SUMIFS(Sheet1!S71_OY2AdjustedBudget,Sheet1!S71_A2SubCode,$AC:$AC,Sheet1!S71_ItemType,$AD:$AD)","v":0},null,null,null,null,null,null,null,null,null,null,null,null,null,null,null,4202,"IR"]
["Water Storage",null,{"$f":"-SUMIFS(Sheet1!S71_OriginalBudget,Sheet1!S71_A2SubCode,$AC:$AC,Sheet1!S71_ItemType,$AD:$AD)","v":0},{"$f":"-SUMIFS(Sheet1!S71_SpecialAdjustedBudget,Sheet1!S71_A2SubCode,$AC:$AC,Sheet1!S71_ItemType,$AD:$AD)","v":0},null,null,null,null,{"$f":"SUMIFS(Sheet1!S71_AdjustmentAmount,Sheet1!S71_A2SubCode,$AC:$AC,Sheet1!S71_ItemType,$AD:$AD)","v":0},0,0,{"$f":"-SUMIFS(Sheet1!S71_OY1AdjustedBudget,Sheet1!S71_A2SubCode,$AC:$AC,Sheet1!S71_ItemType,$AD:$AD)","v":0},{"$f":"-SUMIFS(Sheet1!S71_OY2AdjustedBudget,Sheet1!S71_A2SubCode,$AC:$AC,Sheet1!S71_ItemType,$AD:$AD)","v":0},null,null,null,null,null,null,null,null,null,null,null,null,null,null,null,4203,"IR"]
["Waste water management",null,{"$f":"SUM(C110:C113)","v":0},{"$f":"SUM(D110:D113)","v":0},0,0,0,0,0,0,0,{"$f":"SUM(L110:L113)","v":0},{"$f":"SUM(M110:M113)","v":0}]
["Public Toilets",null,{"$f":"-SUMIFS(Sheet1!S71_OriginalBudget,Sheet1!S71_A2SubCode,$AC:$AC,Sheet1!S71_ItemType,$AD:$AD)","v":0},{"$f":"-SUMIFS(Sheet1!S71_SpecialAdjustedBudget,Sheet1!S71_A2SubCode,$AC:$AC,Sheet1!S71_ItemType,$AD:$AD)","v":0},null,null,null,null,{"$f":"SUMIFS(Sheet1!S71_AdjustmentAmount,Sheet1!S71_A2SubCode,$AC:$AC,Sheet1!S71_ItemType,$AD:$AD)","v":0},0,0,{"$f":"-SUMIFS(Sheet1!S71_OY1AdjustedBudget,Sheet1!S71_A2SubCode,$AC:$AC,Sheet1!S71_ItemType,$AD:$AD)","v":0},{"$f":"-SUMIFS(Sheet1!S71_OY2AdjustedBudget,Sheet1!S71_A2SubCode,$AC:$AC,Sheet1!S71_ItemType,$AD:$AD)","v":0},null,null,null,null,null,null,null,null,null,null,null,null,null,null,null,4301,"IR"]
["Sewerage",null,{"$f":"-SUMIFS(Sheet1!S71_OriginalBudget,Sheet1!S71_A2SubCode,$AC:$AC,Sheet1!S71_ItemType,$AD:$AD)","v":0},{"$f":"-SUMIFS(Sheet1!S71_SpecialAdjustedBudget,Sheet1!S71_A2SubCode,$AC:$AC,Sheet1!S71_ItemType,$AD:$AD)","v":0},null,null,null,null,{"$f":"SUMIFS(Sheet1!S71_AdjustmentAmount,Sheet1!S71_A2SubCode,$AC:$AC,Sheet1!S71_ItemType,$AD:$AD)","v":0},0,0,{"$f":"-SUMIFS(Sheet1!S71_OY1AdjustedBudget,Sheet1!S71_A2SubCode,$AC:$AC,Sheet1!S71_ItemType,$AD:$AD)","v":0},{"$f":"-SUMIFS(Sheet1!S71_OY2AdjustedBudget,Sheet1!S71_A2SubCode,$AC:$AC,Sheet1!S71_ItemType,$AD:$AD)","v":0},null,null,null,null,null,null,null,null,null,null,null,null,null,null,null,4302,"IR"]
["Storm Water Management",null,{"$f":"-SUMIFS(Sheet1!S71_OriginalBudget,Sheet1!S71_A2SubCode,$AC:$AC,Sheet1!S71_ItemType,$AD:$AD)","v":0},{"$f":"-SUMIFS(Sheet1!S71_SpecialAdjustedBudget,Sheet1!S71_A2SubCode,$AC:$AC,Sheet1!S71_ItemType,$AD:$AD)","v":0},null,null,null,null,{"$f":"SUMIFS(Sheet1!S71_AdjustmentAmount,Sheet1!S71_A2SubCode,$AC:$AC,Sheet1!S71_ItemType,$AD:$AD)","v":0},0,0,{"$f":"-SUMIFS(Sheet1!S71_OY1AdjustedBudget,Sheet1!S71_A2SubCode,$AC:$AC,Sheet1!S71_ItemType,$AD:$AD)","v":0},{"$f":"-SUMIFS(Sheet1!S71_OY2AdjustedBudget,Sheet1!S71_A2SubCode,$AC:$AC,Sheet1!S71_ItemType,$AD:$AD)","v":0},null,null,null,null,null,null,null,null,null,null,null,null,null,null,null,4303,"IR"]
["Waste Water Treatment",null,{"$f":"-SUMIFS(Sheet1!S71_OriginalBudget,Sheet1!S71_A2SubCode,$AC:$AC,Sheet1!S71_ItemType,$AD:$AD)","v":0},{"$f":"-SUMIFS(Sheet1!S71_SpecialAdjustedBudget,Sheet1!S71_A2SubCode,$AC:$AC,Sheet1!S71_ItemType,$AD:$AD)","v":0},null,null,null,null,{"$f":"SUMIFS(Sheet1!S71_AdjustmentAmount,Sheet1!S71_A2SubCode,$AC:$AC,Sheet1!S71_ItemType,$AD:$AD)","v":0},0,0,{"$f":"-SUMIFS(Sheet1!S71_OY1AdjustedBudget,Sheet1!S71_A2SubCode,$AC:$AC,Sheet1!S71_ItemType,$AD:$AD)","v":0},{"$f":"-SUMIFS(Sheet1!S71_OY2AdjustedBudget,Sheet1!S71_A2SubCode,$AC:$AC,Sheet1!S71_ItemType,$AD:$AD)","v":0},null,null,null,null,null,null,null,null,null,null,null,null,null,null,null,4304,"IR"]
["Waste management",null,{"$f":"SUM(C115:C118)","v":208500},{"$f":"SUM(D115:D118)","v":0},0,0,0,0,415860,415860,624360,475011,{"$f":"SUM(M115:M118)","v":497811}]
["Recycling",null,{"$f":"-SUMIFS(Sheet1!S71_OriginalBudget,Sheet1!S71_A2SubCode,$AC:$AC,Sheet1!S71_ItemType,$AD:$AD)","v":0},{"$f":"-SUMIFS(Sheet1!S71_SpecialAdjustedBudget,Sheet1!S71_A2SubCode,$AC:$AC,Sheet1!S71_ItemType,$AD:$AD)","v":0},null,null,null,null,{"$f":"SUMIFS(Sheet1!S71_AdjustmentAmount,Sheet1!S71_A2SubCode,$AC:$AC,Sheet1!S71_ItemType,$AD:$AD)","v":0},0,0,{"$f":"-SUMIFS(Sheet1!S71_OY1AdjustedBudget,Sheet1!S71_A2SubCode,$AC:$AC,Sheet1!S71_ItemType,$AD:$AD)","v":0},{"$f":"-SUMIFS(Sheet1!S71_OY2AdjustedBudget,Sheet1!S71_A2SubCode,$AC:$AC,Sheet1!S71_ItemType,$AD:$AD)","v":0},null,null,null,null,null,null,null,null,null,null,null,null,null,null,null,4401,"IR"]
["Solid Waste Disposal (Landfill Sites)",null,{"$f":"-SUMIFS(Sheet1!S71_OriginalBudget,Sheet1!S71_A2SubCode,$AC:$AC,Sheet1!S71_ItemType,$AD:$AD)","v":0},{"$f":"-SUMIFS(Sheet1!S71_SpecialAdjustedBudget,Sheet1!S71_A2SubCode,$AC:$AC,Sheet1!S71_ItemType,$AD:$AD)","v":0},null,null,null,null,{"$f":"SUMIFS(Sheet1!S71_AdjustmentAmount,Sheet1!S71_A2SubCode,$AC:$AC,Sheet1!S71_ItemType,$AD:$AD)","v":0},0,0,{"$f":"-SUMIFS(Sheet1!S71_OY1AdjustedBudget,Sheet1!S71_A2SubCode,$AC:$AC,Sheet1!S71_ItemType,$AD:$AD)","v":0},{"$f":"-SUMIFS(Sheet1!S71_OY2AdjustedBudget,Sheet1!S71_A2SubCode,$AC:$AC,Sheet1!S71_ItemType,$AD:$AD)","v":0},null,null,null,null,null,null,null,null,null,null,null,null,null,null,null,4402,"IR"]
["Solid Waste Removal",null,{"$f":"-SUMIFS(Sheet1!S71_OriginalBudget,Sheet1!S71_A2SubCode,$AC:$AC,Sheet1!S71_ItemType,$AD:$AD)","v":208500},{"$f":"-SUMIFS(Sheet1!S71_SpecialAdjustedBudget,Sheet1!S71_A2SubCode,$AC:$AC,Sheet1!S71_ItemType,$AD:$AD)","v":0},null,null,null,null,{"$f":"SUMIFS(Sheet1!S71_AdjustmentAmount,Sheet1!S71_A2SubCode,$AC:$AC,Sheet1!S71_ItemType,$AD:$AD)","v":415860},415860,624360,{"$f":"-SUMIFS(Sheet1!S71_OY1AdjustedBudget,Sheet1!S71_A2SubCode,$AC:$AC,Sheet1!S71_ItemType,$AD:$AD)","v":475011},{"$f":"-SUMIFS(Sheet1!S71_OY2AdjustedBudget,Sheet1!S71_A2SubCode,$AC:$AC,Sheet1!S71_ItemType,$AD:$AD)","v":497811},null,null,null,null,null,null,null,null,null,null,null,null,null,null,null,4403,"IR"]
["Street Cleaning",null,{"$f":"-SUMIFS(Sheet1!S71_OriginalBudget,Sheet1!S71_A2SubCode,$AC:$AC,Sheet1!S71_ItemType,$AD:$AD)","v":0},{"$f":"-SUMIFS(Sheet1!S71_SpecialAdjustedBudget,Sheet1!S71_A2SubCode,$AC:$AC,Sheet1!S71_ItemType,$AD:$AD)","v":0},null,null,null,null,{"$f":"SUMIFS(Sheet1!S71_AdjustmentAmount,Sheet1!S71_A2SubCode,$AC:$AC,Sheet1!S71_ItemType,$AD:$AD)","v":0},0,0,{"$f":"-SUMIFS(Sheet1!S71_OY1AdjustedBudget,Sheet1!S71_A2SubCode,$AC:$AC,Sheet1!S71_ItemType,$AD:$AD)","v":0},{"$f":"-SUMIFS(Sheet1!S71_OY2AdjustedBudget,Sheet1!S71_A2SubCode,$AC:$AC,Sheet1!S71_ItemType,$AD:$AD)","v":0},null,null,null,null,null,null,null,null,null,null,null,null,null,null,null,4404,"IR"]
["Other",null,{"$f":"SUM(C120:C125)","v":0},0,0,0,0,0,0,0,0,0,0]
["Abattoirs",null,{"$f":"-SUMIFS(Sheet1!S71_OriginalBudget,Sheet1!S71_A2SubCode,$AC:$AC,Sheet1!S71_ItemType,$AD:$AD)","v":0},{"$f":"-SUMIFS(Sheet1!S71_SpecialAdjustedBudget,Sheet1!S71_A2SubCode,$AC:$AC,Sheet1!S71_ItemType,$AD:$AD)","v":0},null,null,null,null,{"$f":"SUMIFS(Sheet1!S71_AdjustmentAmount,Sheet1!S71_A2SubCode,$AC:$AC,Sheet1!S71_ItemType,$AD:$AD)","v":0},0,0,{"$f":"-SUMIFS(Sheet1!S71_OY1AdjustedBudget,Sheet1!S71_A2SubCode,$AC:$AC,Sheet1!S71_ItemType,$AD:$AD)","v":0},{"$f":"-SUMIFS(Sheet1!S71_OY2AdjustedBudget,Sheet1!S71_A2SubCode,$AC:$AC,Sheet1!S71_ItemType,$AD:$AD)","v":0},null,null,null,null,null,null,null,null,null,null,null,null,null,null,null,5001,"IR"]
["Air Transport",null,{"$f":"-SUMIFS(Sheet1!S71_OriginalBudget,Sheet1!S71_A2SubCode,$AC:$AC,Sheet1!S71_ItemType,$AD:$AD)","v":0},{"$f":"-SUMIFS(Sheet1!S71_SpecialAdjustedBudget,Sheet1!S71_A2SubCode,$AC:$AC,Sheet1!S71_ItemType,$AD:$AD)","v":0},null,null,null,null,{"$f":"SUMIFS(Sheet1!S71_AdjustmentAmount,Sheet1!S71_A2SubCode,$AC:$AC,Sheet1!S71_ItemType,$AD:$AD)","v":0},0,0,{"$f":"-SUMIFS(Sheet1!S71_OY1AdjustedBudget,Sheet1!S71_A2SubCode,$AC:$AC,Sheet1!S71_ItemType,$AD:$AD)","v":0},{"$f":"-SUMIFS(Sheet1!S71_OY2AdjustedBudget,Sheet1!S71_A2SubCode,$AC:$AC,Sheet1!S71_ItemType,$AD:$AD)","v":0},null,null,null,null,null,null,null,null,null,null,null,null,null,null,null,5002,"IR"]
["Forestry ",null,{"$f":"-SUMIFS(Sheet1!S71_OriginalBudget,Sheet1!S71_A2SubCode,$AC:$AC,Sheet1!S71_ItemType,$AD:$AD)","v":0},{"$f":"-SUMIFS(Sheet1!S71_SpecialAdjustedBudget,Sheet1!S71_A2SubCode,$AC:$AC,Sheet1!S71_ItemType,$AD:$AD)","v":0},null,null,null,null,{"$f":"SUMIFS(Sheet1!S71_AdjustmentAmount,Sheet1!S71_A2SubCode,$AC:$AC,Sheet1!S71_ItemType,$AD:$AD)","v":0},0,0,{"$f":"-SUMIFS(Sheet1!S71_OY1AdjustedBudget,Sheet1!S71_A2SubCode,$AC:$AC,Sheet1!S71_ItemType,$AD:$AD)","v":0},{"$f":"-SUMIFS(Sheet1!S71_OY2AdjustedBudget,Sheet1!S71_A2SubCode,$AC:$AC,Sheet1!S71_ItemType,$AD:$AD)","v":0},null,null,null,null,null,null,null,null,null,null,null,null,null,null,null,5003,"IR"]
["Licensing and Regulation",null,{"$f":"-SUMIFS(Sheet1!S71_OriginalBudget,Sheet1!S71_A2SubCode,$AC:$AC,Sheet1!S71_ItemType,$AD:$AD)","v":0},{"$f":"-SUMIFS(Sheet1!S71_SpecialAdjustedBudget,Sheet1!S71_A2SubCode,$AC:$AC,Sheet1!S71_ItemType,$AD:$AD)","v":0},null,null,null,null,{"$f":"SUMIFS(Sheet1!S71_AdjustmentAmount,Sheet1!S71_A2SubCode,$AC:$AC,Sheet1!S71_ItemType,$AD:$AD)","v":0},0,0,{"$f":"-SUMIFS(Sheet1!S71_OY1AdjustedBudget,Sheet1!S71_A2SubCode,$AC:$AC,Sheet1!S71_ItemType,$AD:$AD)","v":0},{"$f":"-SUMIFS(Sheet1!S71_OY2AdjustedBudget,Sheet1!S71_A2SubCode,$AC:$AC,Sheet1!S71_ItemType,$AD:$AD)","v":0},null,null,null,null,null,null,null,null,null,null,null,null,null,null,null,5004,"IR"]
["Markets",null,{"$f":"-SUMIFS(Sheet1!S71_OriginalBudget,Sheet1!S71_A2SubCode,$AC:$AC,Sheet1!S71_ItemType,$AD:$AD)","v":0},{"$f":"-SUMIFS(Sheet1!S71_SpecialAdjustedBudget,Sheet1!S71_A2SubCode,$AC:$AC,Sheet1!S71_ItemType,$AD:$AD)","v":0},null,null,null,null,{"$f":"SUMIFS(Sheet1!S71_AdjustmentAmount,Sheet1!S71_A2SubCode,$AC:$AC,Sheet1!S71_ItemType,$AD:$AD)","v":0},0,0,{"$f":"-SUMIFS(Sheet1!S71_OY1AdjustedBudget,Sheet1!S71_A2SubCode,$AC:$AC,Sheet1!S71_ItemType,$AD:$AD)","v":0},{"$f":"-SUMIFS(Sheet1!S71_OY2AdjustedBudget,Sheet1!S71_A2SubCode,$AC:$AC,Sheet1!S71_ItemType,$AD:$AD)","v":0},null,null,null,null,null,null,null,null,null,null,null,null,null,null,null,5005,"IR"]
["Tourism",null,{"$f":"-SUMIFS(Sheet1!S71_OriginalBudget,Sheet1!S71_A2SubCode,$AC:$AC,Sheet1!S71_ItemType,$AD:$AD)","v":0},{"$f":"-SUMIFS(Sheet1!S71_SpecialAdjustedBudget,Sheet1!S71_A2SubCode,$AC:$AC,Sheet1!S71_ItemType,$AD:$AD)","v":0},null,null,null,null,{"$f":"SUMIFS(Sheet1!S71_AdjustmentAmount,Sheet1!S71_A2SubCode,$AC:$AC,Sheet1!S71_ItemType,$AD:$AD)","v":0},0,0,{"$f":"-SUMIFS(Sheet1!S71_OY1AdjustedBudget,Sheet1!S71_A2SubCode,$AC:$AC,Sheet1!S71_ItemType,$AD:$AD)","v":0},{"$f":"-SUMIFS(Sheet1!S71_OY2AdjustedBudget,Sheet1!S71_A2SubCode,$AC:$AC,Sheet1!S71_ItemType,$AD:$AD)","v":0},null,null,null,null,null,null,null,null,null,null,null,null,null,null,null,5006,"IR"]
[{"$f":"\"Total \"&A6","v":"Total Revenue - Functional"},2,{"$f":"C7+C27+C76+C100+C119","v":263491149},0,0,0,0,0,-103346,-103346,263387803,{"$f":"L7+L27+L76+L100+L119","v":271373148},{"$f":"M7+M27+M76+M100+M119","v":287644839}]
[null,null,null,null,null,null,null,null,null,0,0]
["Expenditure - Functional",null,null,null,null,null,null,null,null,0,0]
[{"$f":"A7","v":"Municipal governance and administration"},null,{"$f":"C130+C133+C147","v":125771746},0,0,0,0,0,-78319,-78319,125693427,{"$f":"L130+L133+L147","v":120404812},{"$f":"M130+M133+M147","v":127647732}]
["Executive and council",null,{"$f":"SUM(C131:C132)","v":39900756},0,0,0,0,0,3857278,3857278,43758034,{"$f":"SUM(L131:L132)","v":35155333},{"$f":"SUM(M131:M132)","v":36776676}]
["Mayor and Council",null,{"$f":"SUMIFS(Sheet1!S71_OriginalBudget,Sheet1!S71_A2SubCode,$AC:$AC,Sheet1!S71_ItemType,$AD:$AD)","v":23567438},{"$f":"SUMIFS(Sheet1!S71_SpecialAdjustedBudget,Sheet1!S71_A2SubCode,$AC:$AC,Sheet1!S71_ItemType,$AD:$AD)","v":0},null,null,null,null,{"$f":"SUMIFS(Sheet1!S71_AdjustmentAmount,Sheet1!S71_A2SubCode,$AC:$AC,Sheet1!S71_ItemType,$AD:$AD)","v":1324467},1324467,24891905,{"$f":"SUMIFS(Sheet1!S71_OY1AdjustedBudget,Sheet1!S71_A2SubCode,$AC:$AC,Sheet1!S71_ItemType,$AD:$AD)","v":20486555},{"$f":"SUMIFS(Sheet1!S71_OY2AdjustedBudget,Sheet1!S71_A2SubCode,$AC:$AC,Sheet1!S71_ItemType,$AD:$AD)","v":21447798},null,null,null,null,null,null,null,null,null,null,null,null,null,null,null,1110,"IE"]
["Municipal Manager, Town Secretary and Chief Executive",null,{"$f":"SUMIFS(Sheet1!S71_OriginalBudget,Sheet1!S71_A2SubCode,$AC:$AC,Sheet1!S71_ItemType,$AD:$AD)","v":16333318},{"$f":"SUMIFS(Sheet1!S71_SpecialAdjustedBudget,Sheet1!S71_A2SubCode,$AC:$AC,Sheet1!S71_ItemType,$AD:$AD)","v":0},null,null,null,null,{"$f":"SUMIFS(Sheet1!S71_AdjustmentAmount,Sheet1!S71_A2SubCode,$AC:$AC,Sheet1!S71_ItemType,$AD:$AD)","v":2532811},2532811,18866129,{"$f":"SUMIFS(Sheet1!S71_OY1AdjustedBudget,Sheet1!S71_A2SubCode,$AC:$AC,Sheet1!S71_ItemType,$AD:$AD)","v":14668778},{"$f":"SUMIFS(Sheet1!S71_OY2AdjustedBudget,Sheet1!S71_A2SubCode,$AC:$AC,Sheet1!S71_ItemType,$AD:$AD)","v":15328878},null,null,null,null,null,null,null,null,null,null,null,null,null,null,null,1120,"IE"]
["Finance and administration",null,{"$f":"SUM(C134:C146)","v":83198990},0,0,0,0,0,-2935597,-2935597,80263393,{"$f":"SUM(L134:L146)","v":83525229},{"$f":"SUM(M134:M146)","v":89069215}]
["Administrative and Corporate Support",null,{"$f":"SUMIFS(Sheet1!S71_OriginalBudget,Sheet1!S71_A2SubCode,$AC:$AC,Sheet1!S71_ItemType,$AD:$AD)","v":6475249},{"$f":"SUMIFS(Sheet1!S71_SpecialAdjustedBudget,Sheet1!S71_A2SubCode,$AC:$AC,Sheet1!S71_ItemType,$AD:$AD)","v":0},null,null,null,null,{"$f":"SUMIFS(Sheet1!S71_AdjustmentAmount,Sheet1!S71_A2SubCode,$AC:$AC,Sheet1!S71_ItemType,$AD:$AD)","v":-54733},-54733,6420516,{"$f":"SUMIFS(Sheet1!S71_OY1AdjustedBudget,Sheet1!S71_A2SubCode,$AC:$AC,Sheet1!S71_ItemType,$AD:$AD)","v":5039093},{"$f":"SUMIFS(Sheet1!S71_OY2AdjustedBudget,Sheet1!S71_A2SubCode,$AC:$AC,Sheet1!S71_ItemType,$AD:$AD)","v":5265719},null,null,null,null,null,null,null,null,null,null,null,null,null,null,null,1201,"IE"]
["Asset Management",null,{"$f":"SUMIFS(Sheet1!S71_OriginalBudget,Sheet1!S71_A2SubCode,$AC:$AC,Sheet1!S71_ItemType,$AD:$AD)","v":8405708},{"$f":"SUMIFS(Sheet1!S71_SpecialAdjustedBudget,Sheet1!S71_A2SubCode,$AC:$AC,Sheet1!S71_ItemType,$AD:$AD)","v":0},null,null,null,null,{"$f":"SUMIFS(Sheet1!S71_AdjustmentAmount,Sheet1!S71_A2SubCode,$AC:$AC,Sheet1!S71_ItemType,$AD:$AD)","v":-1076},-1076,8404632,{"$f":"SUMIFS(Sheet1!S71_OY1AdjustedBudget,Sheet1!S71_A2SubCode,$AC:$AC,Sheet1!S71_ItemType,$AD:$AD)","v":11569172},{"$f":"SUMIFS(Sheet1!S71_OY2AdjustedBudget,Sheet1!S71_A2SubCode,$AC:$AC,Sheet1!S71_ItemType,$AD:$AD)","v":12070923},null,null,null,null,null,null,null,null,null,null,null,null,null,null,null,1202,"IE"]
["Finance",null,{"$f":"SUMIFS(Sheet1!S71_OriginalBudget,Sheet1!S71_A2SubCode,$AC:$AC,Sheet1!S71_ItemType,$AD:$AD)","v":39534039},{"$f":"SUMIFS(Sheet1!S71_SpecialAdjustedBudget,Sheet1!S71_A2SubCode,$AC:$AC,Sheet1!S71_ItemType,$AD:$AD)","v":0},null,null,null,null,{"$f":"SUMIFS(Sheet1!S71_AdjustmentAmount,Sheet1!S71_A2SubCode,$AC:$AC,Sheet1!S71_ItemType,$AD:$AD)","v":157095},157095,39691134,{"$f":"SUMIFS(Sheet1!S71_OY1AdjustedBudget,Sheet1!S71_A2SubCode,$AC:$AC,Sheet1!S71_ItemType,$AD:$AD)","v":44046110},{"$f":"SUMIFS(Sheet1!S71_OY2AdjustedBudget,Sheet1!S71_A2SubCode,$AC:$AC,Sheet1!S71_ItemType,$AD:$AD)","v":47835278},null,null,null,null,null,null,null,null,null,null,null,null,null,null,null,1204,"IE"]
["Fleet Management",null,{"$f":"SUMIFS(Sheet1!S71_OriginalBudget,Sheet1!S71_A2SubCode,$AC:$AC,Sheet1!S71_ItemType,$AD:$AD)","v":851500},{"$f":"SUMIFS(Sheet1!S71_SpecialAdjustedBudget,Sheet1!S71_A2SubCode,$AC:$AC,Sheet1!S71_ItemType,$AD:$AD)","v":0},null,null,null,null,{"$f":"SUMIFS(Sheet1!S71_AdjustmentAmount,Sheet1!S71_A2SubCode,$AC:$AC,Sheet1!S71_ItemType,$AD:$AD)","v":-437926},-437926,413574,{"$f":"SUMIFS(Sheet1!S71_OY1AdjustedBudget,Sheet1!S71_A2SubCode,$AC:$AC,Sheet1!S71_ItemType,$AD:$AD)","v":280593},{"$f":"SUMIFS(Sheet1!S71_OY2AdjustedBudget,Sheet1!S71_A2SubCode,$AC:$AC,Sheet1!S71_ItemType,$AD:$AD)","v":293220},null,null,null,null,null,null,null,null,null,null,null,null,null,null,null,1205,"IE"]
["Human Resources",null,{"$f":"SUMIFS(Sheet1!S71_OriginalBudget,Sheet1!S71_A2SubCode,$AC:$AC,Sheet1!S71_ItemType,$AD:$AD)","v":5065439},{"$f":"SUMIFS(Sheet1!S71_SpecialAdjustedBudget,Sheet1!S71_A2SubCode,$AC:$AC,Sheet1!S71_ItemType,$AD:$AD)","v":0},null,null,null,null,{"$f":"SUMIFS(Sheet1!S71_AdjustmentAmount,Sheet1!S71_A2SubCode,$AC:$AC,Sheet1!S71_ItemType,$AD:$AD)","v":-1471264},-1471264,3594175,{"$f":"SUMIFS(Sheet1!S71_OY1AdjustedBudget,Sheet1!S71_A2SubCode,$AC:$AC,Sheet1!S71_ItemType,$AD:$AD)","v":2864344},{"$f":"SUMIFS(Sheet1!S71_OY2AdjustedBudget,Sheet1!S71_A2SubCode,$AC:$AC,Sheet1!S71_ItemType,$AD:$AD)","v":2998591},null,null,null,null,null,null,null,null,null,null,null,null,null,null,null,1206,"IE"]
["Information Technology",null,{"$f":"SUMIFS(Sheet1!S71_OriginalBudget,Sheet1!S71_A2SubCode,$AC:$AC,Sheet1!S71_ItemType,$AD:$AD)","v":1392050},{"$f":"SUMIFS(Sheet1!S71_SpecialAdjustedBudget,Sheet1!S71_A2SubCode,$AC:$AC,Sheet1!S71_ItemType,$AD:$AD)","v":0},null,null,null,null,{"$f":"SUMIFS(Sheet1!S71_AdjustmentAmount,Sheet1!S71_A2SubCode,$AC:$AC,Sheet1!S71_ItemType,$AD:$AD)","v":-220957},{"$f":"SUM(E139:I139)","v":-220957},{"$f":"IF(D139=0,C139+J139,D139+J139)","v":1171093},{"$f":"SUMIFS(Sheet1!S71_OY1AdjustedBudget,Sheet1!S71_A2SubCode,$AC:$AC,Sheet1!S71_ItemType,$AD:$AD)","v":1848249},{"$f":"SUMIFS(Sheet1!S71_OY2AdjustedBudget,Sheet1!S71_A2SubCode,$AC:$AC,Sheet1!S71_ItemType,$AD:$AD)","v":1923319},null,null,null,null,null,null,null,null,null,null,null,null,null,null,null,1207,"IE"]
["Legal Services",null,{"$f":"SUMIFS(Sheet1!S71_OriginalBudget,Sheet1!S71_A2SubCode,$AC:$AC,Sheet1!S71_ItemType,$AD:$AD)","v":10405306},{"$f":"SUMIFS(Sheet1!S71_SpecialAdjustedBudget,Sheet1!S71_A2SubCode,$AC:$AC,Sheet1!S71_ItemType,$AD:$AD)","v":0},null,null,null,null,{"$f":"SUMIFS(Sheet1!S71_AdjustmentAmount,Sheet1!S71_A2SubCode,$AC:$AC,Sheet1!S71_ItemType,$AD:$AD)","v":-906736},-906736,9498570,{"$f":"SUMIFS(Sheet1!S71_OY1AdjustedBudget,Sheet1!S71_A2SubCode,$AC:$AC,Sheet1!S71_ItemType,$AD:$AD)","v":9360918},{"$f":"SUMIFS(Sheet1!S71_OY2AdjustedBudget,Sheet1!S71_A2SubCode,$AC:$AC,Sheet1!S71_ItemType,$AD:$AD)","v":9782161},null,null,null,null,null,null,null,null,null,null,null,null,null,null,null,1208,"IE"]
["Marketing, Customer Relations, Publicity and Media Co-ordination",null,{"$f":"SUMIFS(Sheet1!S71_OriginalBudget,Sheet1!S71_A2SubCode,$AC:$AC,Sheet1!S71_ItemType,$AD:$AD)","v":156750},{"$f":"SUMIFS(Sheet1!S71_SpecialAdjustedBudget,Sheet1!S71_A2SubCode,$AC:$AC,Sheet1!S71_ItemType,$AD:$AD)","v":0},null,null,null,null,{"$f":"SUMIFS(Sheet1!S71_AdjustmentAmount,Sheet1!S71_A2SubCode,$AC:$AC,Sheet1!S71_ItemType,$AD:$AD)","v":0},0,156750,{"$f":"SUMIFS(Sheet1!S71_OY1AdjustedBudget,Sheet1!S71_A2SubCode,$AC:$AC,Sheet1!S71_ItemType,$AD:$AD)","v":156750},{"$f":"SUMIFS(Sheet1!S71_OY2AdjustedBudget,Sheet1!S71_A2SubCode,$AC:$AC,Sheet1!S71_ItemType,$AD:$AD)","v":163804},null,null,null,null,null,null,null,null,null,null,null,null,null,null,null,1209,"IE"]
["Property Services",null,{"$f":"SUMIFS(Sheet1!S71_OriginalBudget,Sheet1!S71_A2SubCode,$AC:$AC,Sheet1!S71_ItemType,$AD:$AD)","v":0},{"$f":"SUMIFS(Sheet1!S71_SpecialAdjustedBudget,Sheet1!S71_A2SubCode,$AC:$AC,Sheet1!S71_ItemType,$AD:$AD)","v":0},null,null,null,null,{"$f":"SUMIFS(Sheet1!S71_AdjustmentAmount,Sheet1!S71_A2SubCode,$AC:$AC,Sheet1!S71_ItemType,$AD:$AD)","v":0},0,0,{"$f":"SUMIFS(Sheet1!S71_OY1AdjustedBudget,Sheet1!S71_A2SubCode,$AC:$AC,Sheet1!S71_ItemType,$AD:$AD)","v":0},{"$f":"SUMIFS(Sheet1!S71_OY2AdjustedBudget,Sheet1!S71_A2SubCode,$AC:$AC,Sheet1!S71_ItemType,$AD:$AD)","v":0},null,null,null,null,null,null,null,null,null,null,null,null,null,null,null,1210,"IE"]
["Risk Management",null,{"$f":"SUMIFS(Sheet1!S71_OriginalBudget,Sheet1!S71_A2SubCode,$AC:$AC,Sheet1!S71_ItemType,$AD:$AD)","v":0},{"$f":"SUMIFS(Sheet1!S71_SpecialAdjustedBudget,Sheet1!S71_A2SubCode,$AC:$AC,Sheet1!S71_ItemType,$AD:$AD)","v":0},null,null,null,null,{"$f":"SUMIFS(Sheet1!S71_AdjustmentAmount,Sheet1!S71_A2SubCode,$AC:$AC,Sheet1!S71_ItemType,$AD:$AD)","v":0},0,0,{"$f":"SUMIFS(Sheet1!S71_OY1AdjustedBudget,Sheet1!S71_A2SubCode,$AC:$AC,Sheet1!S71_ItemType,$AD:$AD)","v":0},{"$f":"SUMIFS(Sheet1!S71_OY2AdjustedBudget,Sheet1!S71_A2SubCode,$AC:$AC,Sheet1!S71_ItemType,$AD:$AD)","v":0},null,null,null,null,null,null,null,null,null,null,null,null,null,null,null,1211,"IE"]
["Security Services",null,{"$f":"SUMIFS(Sheet1!S71_OriginalBudget,Sheet1!S71_A2SubCode,$AC:$AC,Sheet1!S71_ItemType,$AD:$AD)","v":10912949},{"$f":"SUMIFS(Sheet1!S71_SpecialAdjustedBudget,Sheet1!S71_A2SubCode,$AC:$AC,Sheet1!S71_ItemType,$AD:$AD)","v":0},null,null,null,null,{"$f":"SUMIFS(Sheet1!S71_AdjustmentAmount,Sheet1!S71_A2SubCode,$AC:$AC,Sheet1!S71_ItemType,$AD:$AD)","v":0},0,10912949,{"$f":"SUMIFS(Sheet1!S71_OY1AdjustedBudget,Sheet1!S71_A2SubCode,$AC:$AC,Sheet1!S71_ItemType,$AD:$AD)","v":8360000},{"$f":"SUMIFS(Sheet1!S71_OY2AdjustedBudget,Sheet1!S71_A2SubCode,$AC:$AC,Sheet1!S71_ItemType,$AD:$AD)","v":8736200},null,null,null,null,null,null,null,null,null,null,null,null,null,null,null,1212,"IE"]
["Supply Chain Management ",null,{"$f":"SUMIFS(Sheet1!S71_OriginalBudget,Sheet1!S71_A2SubCode,$AC:$AC,Sheet1!S71_ItemType,$AD:$AD)","v":0},{"$f":"SUMIFS(Sheet1!S71_SpecialAdjustedBudget,Sheet1!S71_A2SubCode,$AC:$AC,Sheet1!S71_ItemType,$AD:$AD)","v":0},null,null,null,null,{"$f":"SUMIFS(Sheet1!S71_AdjustmentAmount,Sheet1!S71_A2SubCode,$AC:$AC,Sheet1!S71_ItemType,$AD:$AD)","v":0},0,0,{"$f":"SUMIFS(Sheet1!S71_OY1AdjustedBudget,Sheet1!S71_A2SubCode,$AC:$AC,Sheet1!S71_ItemType,$AD:$AD)","v":0},{"$f":"SUMIFS(Sheet1!S71_OY2AdjustedBudget,Sheet1!S71_A2SubCode,$AC:$AC,Sheet1!S71_ItemType,$AD:$AD)","v":0},null,null,null,null,null,null,null,null,null,null,null,null,null,null,null,1213,"IE"]
["Valuation Service",null,{"$f":"SUMIFS(Sheet1!S71_OriginalBudget,Sheet1!S71_A2SubCode,$AC:$AC,Sheet1!S71_ItemType,$AD:$AD)","v":0},{"$f":"SUMIFS(Sheet1!S71_SpecialAdjustedBudget,Sheet1!S71_A2SubCode,$AC:$AC,Sheet1!S71_ItemType,$AD:$AD)","v":0},null,null,null,null,{"$f":"SUMIFS(Sheet1!S71_AdjustmentAmount,Sheet1!S71_A2SubCode,$AC:$AC,Sheet1!S71_ItemType,$AD:$AD)","v":0},0,0,{"$f":"SUMIFS(Sheet1!S71_OY1AdjustedBudget,Sheet1!S71_A2SubCode,$AC:$AC,Sheet1!S71_ItemType,$AD:$AD)","v":0},{"$f":"SUMIFS(Sheet1!S71_OY2AdjustedBudget,Sheet1!S71_A2SubCode,$AC:$AC,Sheet1!S71_ItemType,$AD:$AD)","v":0},null,null,null,null,null,null,null,null,null,null,null,null,null,null,null,1214,"IE"]
["Internal audit",null,{"$f":"SUM(C148:C148)","v":2672000},0,0,0,0,0,-1000000,-1000000,1672000,1724250,1801841,null,null,null,null,null,null,null,null,null,null,null,null,null,null,null,null,""]
["Governance Function",null,{"$f":"SUMIFS(Sheet1!S71_OriginalBudget,Sheet1!S71_A2SubCode,$AC:$AC,Sheet1!S71_ItemType,$AD:$AD)","v":2672000},{"$f":"SUMIFS(Sheet1!S71_SpecialAdjustedBudget,Sheet1!S71_A2SubCode,$AC:$AC,Sheet1!S71_ItemType,$AD:$AD)","v":0},null,null,null,null,{"$f":"SUMIFS(Sheet1!S71_AdjustmentAmount,Sheet1!S71_A2SubCode,$AC:$AC,Sheet1!S71_ItemType,$AD:$AD)","v":-1000000},-1000000,1672000,{"$f":"SUMIFS(Sheet1!S71_OY1AdjustedBudget,Sheet1!S71_A2SubCode,$AC:$AC,Sheet1!S71_ItemType,$AD:$AD)","v":1724250},{"$f":"SUMIFS(Sheet1!S71_OY2AdjustedBudget,Sheet1!S71_A2SubCode,$AC:$AC,Sheet1!S71_ItemType,$AD:$AD)","v":1801841},null,null,null,null,null,null,null,null,null,null,null,null,null,null,null,1301,"IE"]
["Community and public safety",null,{"$f":"C150+C172+C178+C187+C190","v":39986552},0,0,0,0,0,4807582,4807582,44794134,{"$f":"L150+L172+L178+L187+L190","v":45859886},{"$f":"M150+M172+M178+M187+M190","v":47916832},null,null,null,null,null,null,null,null,null,null,null,null,null,null,null,null,""]
["Community and social services",null,{"$f":"SUM(C151:C171)","v":37987857},0,0,0,0,0,5544864,5544864,43532721,{"$f":"SUM(L151:L171)","v":43898079},{"$f":"SUM(M151:M171)","v":45868992},null,null,null,null,null,null,null,null,null,null,null,null,null,null,null,null,""]
["Aged Care",null,{"$f":"SUMIFS(Sheet1!S71_OriginalBudget,Sheet1!S71_A2SubCode,$AC:$AC,Sheet1!S71_ItemType,$AD:$AD)","v":0},{"$f":"SUMIFS(Sheet1!S71_SpecialAdjustedBudget,Sheet1!S71_A2SubCode,$AC:$AC,Sheet1!S71_ItemType,$AD:$AD)","v":0},null,null,null,null,{"$f":"SUMIFS(Sheet1!S71_AdjustmentAmount,Sheet1!S71_A2SubCode,$AC:$AC,Sheet1!S71_ItemType,$AD:$AD)","v":0},0,0,{"$f":"SUMIFS(Sheet1!S71_OY1AdjustedBudget,Sheet1!S71_A2SubCode,$AC:$AC,Sheet1!S71_ItemType,$AD:$AD)","v":0},{"$f":"SUMIFS(Sheet1!S71_OY2AdjustedBudget,Sheet1!S71_A2SubCode,$AC:$AC,Sheet1!S71_ItemType,$AD:$AD)","v":0},null,null,null,null,null,null,null,null,null,null,null,null,null,null,null,2101,"IE"]
["Agricultural",null,{"$f":"SUMIFS(Sheet1!S71_OriginalBudget,Sheet1!S71_A2SubCode,$AC:$AC,Sheet1!S71_ItemType,$AD:$AD)","v":0},{"$f":"SUMIFS(Sheet1!S71_SpecialAdjustedBudget,Sheet1!S71_A2SubCode,$AC:$AC,Sheet1!S71_ItemType,$AD:$AD)","v":0},null,null,null,null,{"$f":"SUMIFS(Sheet1!S71_AdjustmentAmount,Sheet1!S71_A2SubCode,$AC:$AC,Sheet1!S71_ItemType,$AD:$AD)","v":0},0,0,{"$f":"SUMIFS(Sheet1!S71_OY1AdjustedBudget,Sheet1!S71_A2SubCode,$AC:$AC,Sheet1!S71_ItemType,$AD:$AD)","v":0},{"$f":"SUMIFS(Sheet1!S71_OY2AdjustedBudget,Sheet1!S71_A2SubCode,$AC:$AC,Sheet1!S71_ItemType,$AD:$AD)","v":0},null,null,null,null,null,null,null,null,null,null,null,null,null,null,null,2102,"IE"]
["Animal Care and Diseases",null,{"$f":"SUMIFS(Sheet1!S71_OriginalBudget,Sheet1!S71_A2SubCode,$AC:$AC,Sheet1!S71_ItemType,$AD:$AD)","v":0},{"$f":"SUMIFS(Sheet1!S71_SpecialAdjustedBudget,Sheet1!S71_A2SubCode,$AC:$AC,Sheet1!S71_ItemType,$AD:$AD)","v":0},null,null,null,null,{"$f":"SUMIFS(Sheet1!S71_AdjustmentAmount,Sheet1!S71_A2SubCode,$AC:$AC,Sheet1!S71_ItemType,$AD:$AD)","v":0},0,0,{"$f":"SUMIFS(Sheet1!S71_OY1AdjustedBudget,Sheet1!S71_A2SubCode,$AC:$AC,Sheet1!S71_ItemType,$AD:$AD)","v":0},{"$f":"SUMIFS(Sheet1!S71_OY2AdjustedBudget,Sheet1!S71_A2SubCode,$AC:$AC,Sheet1!S71_ItemType,$AD:$AD)","v":0},null,null,null,null,null,null,null,null,null,null,null,null,null,null,null,2103,"IE"]
["Cemeteries, Funeral Parlours and Crematoriums",null,{"$f":"SUMIFS(Sheet1!S71_OriginalBudget,Sheet1!S71_A2SubCode,$AC:$AC,Sheet1!S71_ItemType,$AD:$AD)","v":0},{"$f":"SUMIFS(Sheet1!S71_SpecialAdjustedBudget,Sheet1!S71_A2SubCode,$AC:$AC,Sheet1!S71_ItemType,$AD:$AD)","v":0},null,null,null,null,{"$f":"SUMIFS(Sheet1!S71_AdjustmentAmount,Sheet1!S71_A2SubCode,$AC:$AC,Sheet1!S71_ItemType,$AD:$AD)","v":0},0,0,{"$f":"SUMIFS(Sheet1!S71_OY1AdjustedBudget,Sheet1!S71_A2SubCode,$AC:$AC,Sheet1!S71_ItemType,$AD:$AD)","v":0},{"$f":"SUMIFS(Sheet1!S71_OY2AdjustedBudget,Sheet1!S71_A2SubCode,$AC:$AC,Sheet1!S71_ItemType,$AD:$AD)","v":0},null,null,null,null,null,null,null,null,null,null,null,null,null,null,null,2104,"IE"]
["Child Care Facilities",null,{"$f":"SUMIFS(Sheet1!S71_OriginalBudget,Sheet1!S71_A2SubCode,$AC:$AC,Sheet1!S71_ItemType,$AD:$AD)","v":0},{"$f":"SUMIFS(Sheet1!S71_SpecialAdjustedBudget,Sheet1!S71_A2SubCode,$AC:$AC,Sheet1!S71_ItemType,$AD:$AD)","v":0},null,null,null,null,{"$f":"SUMIFS(Sheet1!S71_AdjustmentAmount,Sheet1!S71_A2SubCode,$AC:$AC,Sheet1!S71_ItemType,$AD:$AD)","v":0},0,0,{"$f":"SUMIFS(Sheet1!S71_OY1AdjustedBudget,Sheet1!S71_A2SubCode,$AC:$AC,Sheet1!S71_ItemType,$AD:$AD)","v":0},{"$f":"SUMIFS(Sheet1!S71_OY2AdjustedBudget,Sheet1!S71_A2SubCode,$AC:$AC,Sheet1!S71_ItemType,$AD:$AD)","v":0},null,null,null,null,null,null,null,null,null,null,null,null,null,null,null,2105,"IE"]
["Community Halls and Facilities",null,{"$f":"SUMIFS(Sheet1!S71_OriginalBudget,Sheet1!S71_A2SubCode,$AC:$AC,Sheet1!S71_ItemType,$AD:$AD)","v":25760136},{"$f":"SUMIFS(Sheet1!S71_SpecialAdjustedBudget,Sheet1!S71_A2SubCode,$AC:$AC,Sheet1!S71_ItemType,$AD:$AD)","v":0},null,null,null,null,{"$f":"SUMIFS(Sheet1!S71_AdjustmentAmount,Sheet1!S71_A2SubCode,$AC:$AC,Sheet1!S71_ItemType,$AD:$AD)","v":6058864},6058864,31819000,{"$f":"SUMIFS(Sheet1!S71_OY1AdjustedBudget,Sheet1!S71_A2SubCode,$AC:$AC,Sheet1!S71_ItemType,$AD:$AD)","v":31981615},{"$f":"SUMIFS(Sheet1!S71_OY2AdjustedBudget,Sheet1!S71_A2SubCode,$AC:$AC,Sheet1!S71_ItemType,$AD:$AD)","v":33420217},null,null,null,null,null,null,null,null,null,null,null,null,null,null,null,2106,"IE"]
["Consumer Protection",null,{"$f":"SUMIFS(Sheet1!S71_OriginalBudget,Sheet1!S71_A2SubCode,$AC:$AC,Sheet1!S71_ItemType,$AD:$AD)","v":0},{"$f":"SUMIFS(Sheet1!S71_SpecialAdjustedBudget,Sheet1!S71_A2SubCode,$AC:$AC,Sheet1!S71_ItemType,$AD:$AD)","v":0},null,null,null,null,{"$f":"SUMIFS(Sheet1!S71_AdjustmentAmount,Sheet1!S71_A2SubCode,$AC:$AC,Sheet1!S71_ItemType,$AD:$AD)","v":0},0,0,{"$f":"SUMIFS(Sheet1!S71_OY1AdjustedBudget,Sheet1!S71_A2SubCode,$AC:$AC,Sheet1!S71_ItemType,$AD:$AD)","v":0},{"$f":"SUMIFS(Sheet1!S71_OY2AdjustedBudget,Sheet1!S71_A2SubCode,$AC:$AC,Sheet1!S71_ItemType,$AD:$AD)","v":0},null,null,null,null,null,null,null,null,null,null,null,null,null,null,null,2107,"IE"]
["Cultural Matters",null,{"$f":"SUMIFS(Sheet1!S71_OriginalBudget,Sheet1!S71_A2SubCode,$AC:$AC,Sheet1!S71_ItemType,$AD:$AD)","v":317700},{"$f":"SUMIFS(Sheet1!S71_SpecialAdjustedBudget,Sheet1!S71_A2SubCode,$AC:$AC,Sheet1!S71_ItemType,$AD:$AD)","v":0},null,null,null,null,{"$f":"SUMIFS(Sheet1!S71_AdjustmentAmount,Sheet1!S71_A2SubCode,$AC:$AC,Sheet1!S71_ItemType,$AD:$AD)","v":-161825},-161825,155875,{"$f":"SUMIFS(Sheet1!S71_OY1AdjustedBudget,Sheet1!S71_A2SubCode,$AC:$AC,Sheet1!S71_ItemType,$AD:$AD)","v":867350},{"$f":"SUMIFS(Sheet1!S71_OY2AdjustedBudget,Sheet1!S71_A2SubCode,$AC:$AC,Sheet1!S71_ItemType,$AD:$AD)","v":906381},null,null,null,null,null,null,null,null,null,null,null,null,null,null,null,2108,"IE"]
["Disaster Management",null,{"$f":"SUMIFS(Sheet1!S71_OriginalBudget,Sheet1!S71_A2SubCode,$AC:$AC,Sheet1!S71_ItemType,$AD:$AD)","v":6065086},{"$f":"SUMIFS(Sheet1!S71_SpecialAdjustedBudget,Sheet1!S71_A2SubCode,$AC:$AC,Sheet1!S71_ItemType,$AD:$AD)","v":0},null,null,null,null,{"$f":"SUMIFS(Sheet1!S71_AdjustmentAmount,Sheet1!S71_A2SubCode,$AC:$AC,Sheet1!S71_ItemType,$AD:$AD)","v":-1160180},-1160180,4904906,{"$f":"SUMIFS(Sheet1!S71_OY1AdjustedBudget,Sheet1!S71_A2SubCode,$AC:$AC,Sheet1!S71_ItemType,$AD:$AD)","v":5838523},{"$f":"SUMIFS(Sheet1!S71_OY2AdjustedBudget,Sheet1!S71_A2SubCode,$AC:$AC,Sheet1!S71_ItemType,$AD:$AD)","v":6096754},null,null,null,null,null,null,null,null,null,null,null,null,null,null,null,2109,"IE"]
["Education",null,{"$f":"SUMIFS(Sheet1!S71_OriginalBudget,Sheet1!S71_A2SubCode,$AC:$AC,Sheet1!S71_ItemType,$AD:$AD)","v":395175},{"$f":"SUMIFS(Sheet1!S71_SpecialAdjustedBudget,Sheet1!S71_A2SubCode,$AC:$AC,Sheet1!S71_ItemType,$AD:$AD)","v":0},null,null,null,null,{"$f":"SUMIFS(Sheet1!S71_AdjustmentAmount,Sheet1!S71_A2SubCode,$AC:$AC,Sheet1!S71_ItemType,$AD:$AD)","v":900048},900048,1295223,{"$f":"SUMIFS(Sheet1!S71_OY1AdjustedBudget,Sheet1!S71_A2SubCode,$AC:$AC,Sheet1!S71_ItemType,$AD:$AD)","v":721050},{"$f":"SUMIFS(Sheet1!S71_OY2AdjustedBudget,Sheet1!S71_A2SubCode,$AC:$AC,Sheet1!S71_ItemType,$AD:$AD)","v":754069},null,null,null,null,null,null,null,null,null,null,null,null,null,null,null,2110,"IE"]
["Indigenous and Customary Law",null,{"$f":"SUMIFS(Sheet1!S71_OriginalBudget,Sheet1!S71_A2SubCode,$AC:$AC,Sheet1!S71_ItemType,$AD:$AD)","v":0},{"$f":"SUMIFS(Sheet1!S71_SpecialAdjustedBudget,Sheet1!S71_A2SubCode,$AC:$AC,Sheet1!S71_ItemType,$AD:$AD)","v":0},null,null,null,null,{"$f":"SUMIFS(Sheet1!S71_AdjustmentAmount,Sheet1!S71_A2SubCode,$AC:$AC,Sheet1!S71_ItemType,$AD:$AD)","v":0},0,0,{"$f":"SUMIFS(Sheet1!S71_OY1AdjustedBudget,Sheet1!S71_A2SubCode,$AC:$AC,Sheet1!S71_ItemType,$AD:$AD)","v":0},{"$f":"SUMIFS(Sheet1!S71_OY2AdjustedBudget,Sheet1!S71_A2SubCode,$AC:$AC,Sheet1!S71_ItemType,$AD:$AD)","v":0},null,null,null,null,null,null,null,null,null,null,null,null,null,null,null,2111,"IE"]
["Industrial Promotion",null,{"$f":"SUMIFS(Sheet1!S71_OriginalBudget,Sheet1!S71_A2SubCode,$AC:$AC,Sheet1!S71_ItemType,$AD:$AD)","v":0},{"$f":"SUMIFS(Sheet1!S71_SpecialAdjustedBudget,Sheet1!S71_A2SubCode,$AC:$AC,Sheet1!S71_ItemType,$AD:$AD)","v":0},null,null,null,null,{"$f":"SUMIFS(Sheet1!S71_AdjustmentAmount,Sheet1!S71_A2SubCode,$AC:$AC,Sheet1!S71_ItemType,$AD:$AD)","v":0},0,0,{"$f":"SUMIFS(Sheet1!S71_OY1AdjustedBudget,Sheet1!S71_A2SubCode,$AC:$AC,Sheet1!S71_ItemType,$AD:$AD)","v":0},{"$f":"SUMIFS(Sheet1!S71_OY2AdjustedBudget,Sheet1!S71_A2SubCode,$AC:$AC,Sheet1!S71_ItemType,$AD:$AD)","v":0},null,null,null,null,null,null,null,null,null,null,null,null,null,null,null,2112,"IE"]
["Language Policy",null,{"$f":"SUMIFS(Sheet1!S71_OriginalBudget,Sheet1!S71_A2SubCode,$AC:$AC,Sheet1!S71_ItemType,$AD:$AD)","v":0},{"$f":"SUMIFS(Sheet1!S71_SpecialAdjustedBudget,Sheet1!S71_A2SubCode,$AC:$AC,Sheet1!S71_ItemType,$AD:$AD)","v":0},null,null,null,null,{"$f":"SUMIFS(Sheet1!S71_AdjustmentAmount,Sheet1!S71_A2SubCode,$AC:$AC,Sheet1!S71_ItemType,$AD:$AD)","v":0},0,0,{"$f":"SUMIFS(Sheet1!S71_OY1AdjustedBudget,Sheet1!S71_A2SubCode,$AC:$AC,Sheet1!S71_ItemType,$AD:$AD)","v":0},{"$f":"SUMIFS(Sheet1!S71_OY2AdjustedBudget,Sheet1!S71_A2SubCode,$AC:$AC,Sheet1!S71_ItemType,$AD:$AD)","v":0},null,null,null,null,null,null,null,null,null,null,null,null,null,null,null,2113,"IE"]
["Libraries and Archives",null,{"$f":"SUMIFS(Sheet1!S71_OriginalBudget,Sheet1!S71_A2SubCode,$AC:$AC,Sheet1!S71_ItemType,$AD:$AD)","v":4549760},{"$f":"SUMIFS(Sheet1!S71_SpecialAdjustedBudget,Sheet1!S71_A2SubCode,$AC:$AC,Sheet1!S71_ItemType,$AD:$AD)","v":0},null,null,null,null,{"$f":"SUMIFS(Sheet1!S71_AdjustmentAmount,Sheet1!S71_A2SubCode,$AC:$AC,Sheet1!S71_ItemType,$AD:$AD)","v":-192043},-192043,4357717,{"$f":"SUMIFS(Sheet1!S71_OY1AdjustedBudget,Sheet1!S71_A2SubCode,$AC:$AC,Sheet1!S71_ItemType,$AD:$AD)","v":4437291},{"$f":"SUMIFS(Sheet1!S71_OY2AdjustedBudget,Sheet1!S71_A2SubCode,$AC:$AC,Sheet1!S71_ItemType,$AD:$AD)","v":4636970},null,null,null,null,null,null,null,null,null,null,null,null,null,null,null,2114,"IE"]
["Literacy Programmes",null,{"$f":"SUMIFS(Sheet1!S71_OriginalBudget,Sheet1!S71_A2SubCode,$AC:$AC,Sheet1!S71_ItemType,$AD:$AD)","v":900000},{"$f":"SUMIFS(Sheet1!S71_SpecialAdjustedBudget,Sheet1!S71_A2SubCode,$AC:$AC,Sheet1!S71_ItemType,$AD:$AD)","v":0},null,null,null,null,{"$f":"SUMIFS(Sheet1!S71_AdjustmentAmount,Sheet1!S71_A2SubCode,$AC:$AC,Sheet1!S71_ItemType,$AD:$AD)","v":100000},100000,1000000,{"$f":"SUMIFS(Sheet1!S71_OY1AdjustedBudget,Sheet1!S71_A2SubCode,$AC:$AC,Sheet1!S71_ItemType,$AD:$AD)","v":52250},{"$f":"SUMIFS(Sheet1!S71_OY2AdjustedBudget,Sheet1!S71_A2SubCode,$AC:$AC,Sheet1!S71_ItemType,$AD:$AD)","v":54601},null,null,null,null,null,null,null,null,null,null,null,null,null,null,null,2115,"IE"]
["Media Services",null,{"$f":"SUMIFS(Sheet1!S71_OriginalBudget,Sheet1!S71_A2SubCode,$AC:$AC,Sheet1!S71_ItemType,$AD:$AD)","v":0},{"$f":"SUMIFS(Sheet1!S71_SpecialAdjustedBudget,Sheet1!S71_A2SubCode,$AC:$AC,Sheet1!S71_ItemType,$AD:$AD)","v":0},null,null,null,null,{"$f":"SUMIFS(Sheet1!S71_AdjustmentAmount,Sheet1!S71_A2SubCode,$AC:$AC,Sheet1!S71_ItemType,$AD:$AD)","v":0},0,0,{"$f":"SUMIFS(Sheet1!S71_OY1AdjustedBudget,Sheet1!S71_A2SubCode,$AC:$AC,Sheet1!S71_ItemType,$AD:$AD)","v":0},{"$f":"SUMIFS(Sheet1!S71_OY2AdjustedBudget,Sheet1!S71_A2SubCode,$AC:$AC,Sheet1!S71_ItemType,$AD:$AD)","v":0},null,null,null,null,null,null,null,null,null,null,null,null,null,null,null,2116,"IE"]
["Museums and Art Galleries",null,{"$f":"SUMIFS(Sheet1!S71_OriginalBudget,Sheet1!S71_A2SubCode,$AC:$AC,Sheet1!S71_ItemType,$AD:$AD)","v":0},{"$f":"SUMIFS(Sheet1!S71_SpecialAdjustedBudget,Sheet1!S71_A2SubCode,$AC:$AC,Sheet1!S71_ItemType,$AD:$AD)","v":0},null,null,null,null,{"$f":"SUMIFS(Sheet1!S71_AdjustmentAmount,Sheet1!S71_A2SubCode,$AC:$AC,Sheet1!S71_ItemType,$AD:$AD)","v":0},0,0,{"$f":"SUMIFS(Sheet1!S71_OY1AdjustedBudget,Sheet1!S71_A2SubCode,$AC:$AC,Sheet1!S71_ItemType,$AD:$AD)","v":0},{"$f":"SUMIFS(Sheet1!S71_OY2AdjustedBudget,Sheet1!S71_A2SubCode,$AC:$AC,Sheet1!S71_ItemType,$AD:$AD)","v":0},null,null,null,null,null,null,null,null,null,null,null,null,null,null,null,2117,"IE"]
["Population Development",null,{"$f":"SUMIFS(Sheet1!S71_OriginalBudget,Sheet1!S71_A2SubCode,$AC:$AC,Sheet1!S71_ItemType,$AD:$AD)","v":0},{"$f":"SUMIFS(Sheet1!S71_SpecialAdjustedBudget,Sheet1!S71_A2SubCode,$AC:$AC,Sheet1!S71_ItemType,$AD:$AD)","v":0},null,null,null,null,{"$f":"SUMIFS(Sheet1!S71_AdjustmentAmount,Sheet1!S71_A2SubCode,$AC:$AC,Sheet1!S71_ItemType,$AD:$AD)","v":0},0,0,{"$f":"SUMIFS(Sheet1!S71_OY1AdjustedBudget,Sheet1!S71_A2SubCode,$AC:$AC,Sheet1!S71_ItemType,$AD:$AD)","v":0},{"$f":"SUMIFS(Sheet1!S71_OY2AdjustedBudget,Sheet1!S71_A2SubCode,$AC:$AC,Sheet1!S71_ItemType,$AD:$AD)","v":0},null,null,null,null,null,null,null,null,null,null,null,null,null,null,null,2118,"IE"]
["Provincial Cultural Matters",null,{"$f":"SUMIFS(Sheet1!S71_OriginalBudget,Sheet1!S71_A2SubCode,$AC:$AC,Sheet1!S71_ItemType,$AD:$AD)","v":0},{"$f":"SUMIFS(Sheet1!S71_SpecialAdjustedBudget,Sheet1!S71_A2SubCode,$AC:$AC,Sheet1!S71_ItemType,$AD:$AD)","v":0},null,null,null,null,{"$f":"SUMIFS(Sheet1!S71_AdjustmentAmount,Sheet1!S71_A2SubCode,$AC:$AC,Sheet1!S71_ItemType,$AD:$AD)","v":0},0,0,{"$f":"SUMIFS(Sheet1!S71_OY1AdjustedBudget,Sheet1!S71_A2SubCode,$AC:$AC,Sheet1!S71_ItemType,$AD:$AD)","v":0},{"$f":"SUMIFS(Sheet1!S71_OY2AdjustedBudget,Sheet1!S71_A2SubCode,$AC:$AC,Sheet1!S71_ItemType,$AD:$AD)","v":0},null,null,null,null,null,null,null,null,null,null,null,null,null,null,null,2119,"IE"]
["Theatres",null,{"$f":"SUMIFS(Sheet1!S71_OriginalBudget,Sheet1!S71_A2SubCode,$AC:$AC,Sheet1!S71_ItemType,$AD:$AD)","v":0},{"$f":"SUMIFS(Sheet1!S71_SpecialAdjustedBudget,Sheet1!S71_A2SubCode,$AC:$AC,Sheet1!S71_ItemType,$AD:$AD)","v":0},null,null,null,null,{"$f":"SUMIFS(Sheet1!S71_AdjustmentAmount,Sheet1!S71_A2SubCode,$AC:$AC,Sheet1!S71_ItemType,$AD:$AD)","v":0},0,0,{"$f":"SUMIFS(Sheet1!S71_OY1AdjustedBudget,Sheet1!S71_A2SubCode,$AC:$AC,Sheet1!S71_ItemType,$AD:$AD)","v":0},{"$f":"SUMIFS(Sheet1!S71_OY2AdjustedBudget,Sheet1!S71_A2SubCode,$AC:$AC,Sheet1!S71_ItemType,$AD:$AD)","v":0},null,null,null,null,null,null,null,null,null,null,null,null,null,null,null,2120,"IE"]
["Zoo's",null,{"$f":"SUMIFS(Sheet1!S71_OriginalBudget,Sheet1!S71_A2SubCode,$AC:$AC,Sheet1!S71_ItemType,$AD:$AD)","v":0},{"$f":"SUMIFS(Sheet1!S71_SpecialAdjustedBudget,Sheet1!S71_A2SubCode,$AC:$AC,Sheet1!S71_ItemType,$AD:$AD)","v":0},null,null,null,null,{"$f":"SUMIFS(Sheet1!S71_AdjustmentAmount,Sheet1!S71_A2SubCode,$AC:$AC,Sheet1!S71_ItemType,$AD:$AD)","v":0},0,0,{"$f":"SUMIFS(Sheet1!S71_OY1AdjustedBudget,Sheet1!S71_A2SubCode,$AC:$AC,Sheet1!S71_ItemType,$AD:$AD)","v":0},{"$f":"SUMIFS(Sheet1!S71_OY2AdjustedBudget,Sheet1!S71_A2SubCode,$AC:$AC,Sheet1!S71_ItemType,$AD:$AD)","v":0},null,null,null,null,null,null,null,null,null,null,null,null,null,null,null,2121,"IE"]
["Sport and recreation",null,{"$f":"SUM(C173:C177)","v":0},0,0,0,0,0,0,0,0,{"$f":"SUM(L173:L177)","v":0},{"$f":"SUM(M173:M177)","v":0},null,null,null,null,null,null,null,null,null,null,null,null,null,null,null,null,""]
["Beaches and Jetties ",null,{"$f":"SUMIFS(Sheet1!S71_OriginalBudget,Sheet1!S71_A2SubCode,$AC:$AC,Sheet1!S71_ItemType,$AD:$AD)","v":0},{"$f":"SUMIFS(Sheet1!S71_SpecialAdjustedBudget,Sheet1!S71_A2SubCode,$AC:$AC,Sheet1!S71_ItemType,$AD:$AD)","v":0},null,null,null,null,{"$f":"SUMIFS(Sheet1!S71_AdjustmentAmount,Sheet1!S71_A2SubCode,$AC:$AC,Sheet1!S71_ItemType,$AD:$AD)","v":0},0,0,{"$f":"SUMIFS(Sheet1!S71_OY1AdjustedBudget,Sheet1!S71_A2SubCode,$AC:$AC,Sheet1!S71_ItemType,$AD:$AD)","v":0},{"$f":"SUMIFS(Sheet1!S71_OY2AdjustedBudget,Sheet1!S71_A2SubCode,$AC:$AC,Sheet1!S71_ItemType,$AD:$AD)","v":0},null,null,null,null,null,null,null,null,null,null,null,null,null,null,null,2201,"IE"]
["Casinos, Racing, Gambling, Wagering",null,{"$f":"SUMIFS(Sheet1!S71_OriginalBudget,Sheet1!S71_A2SubCode,$AC:$AC,Sheet1!S71_ItemType,$AD:$AD)","v":0},{"$f":"SUMIFS(Sheet1!S71_SpecialAdjustedBudget,Sheet1!S71_A2SubCode,$AC:$AC,Sheet1!S71_ItemType,$AD:$AD)","v":0},null,null,null,null,{"$f":"SUMIFS(Sheet1!S71_AdjustmentAmount,Sheet1!S71_A2SubCode,$AC:$AC,Sheet1!S71_ItemType,$AD:$AD)","v":0},0,0,{"$f":"SUMIFS(Sheet1!S71_OY1AdjustedBudget,Sheet1!S71_A2SubCode,$AC:$AC,Sheet1!S71_ItemType,$AD:$AD)","v":0},{"$f":"SUMIFS(Sheet1!S71_OY2AdjustedBudget,Sheet1!S71_A2SubCode,$AC:$AC,Sheet1!S71_ItemType,$AD:$AD)","v":0},null,null,null,null,null,null,null,null,null,null,null,null,null,null,null,2202,"IE"]
["Community Parks (including Nurseries)",null,{"$f":"SUMIFS(Sheet1!S71_OriginalBudget,Sheet1!S71_A2SubCode,$AC:$AC,Sheet1!S71_ItemType,$AD:$AD)","v":0},{"$f":"SUMIFS(Sheet1!S71_SpecialAdjustedBudget,Sheet1!S71_A2SubCode,$AC:$AC,Sheet1!S71_ItemType,$AD:$AD)","v":0},null,null,null,null,{"$f":"SUMIFS(Sheet1!S71_AdjustmentAmount,Sheet1!S71_A2SubCode,$AC:$AC,Sheet1!S71_ItemType,$AD:$AD)","v":0},0,0,{"$f":"SUMIFS(Sheet1!S71_OY1AdjustedBudget,Sheet1!S71_A2SubCode,$AC:$AC,Sheet1!S71_ItemType,$AD:$AD)","v":0},{"$f":"SUMIFS(Sheet1!S71_OY2AdjustedBudget,Sheet1!S71_A2SubCode,$AC:$AC,Sheet1!S71_ItemType,$AD:$AD)","v":0},null,null,null,null,null,null,null,null,null,null,null,null,null,null,null,2203,"IE"]
["Recreational Facilities",null,{"$f":"SUMIFS(Sheet1!S71_OriginalBudget,Sheet1!S71_A2SubCode,$AC:$AC,Sheet1!S71_ItemType,$AD:$AD)","v":0},{"$f":"SUMIFS(Sheet1!S71_SpecialAdjustedBudget,Sheet1!S71_A2SubCode,$AC:$AC,Sheet1!S71_ItemType,$AD:$AD)","v":0},null,null,null,null,{"$f":"SUMIFS(Sheet1!S71_AdjustmentAmount,Sheet1!S71_A2SubCode,$AC:$AC,Sheet1!S71_ItemType,$AD:$AD)","v":0},0,0,{"$f":"SUMIFS(Sheet1!S71_OY1AdjustedBudget,Sheet1!S71_A2SubCode,$AC:$AC,Sheet1!S71_ItemType,$AD:$AD)","v":0},{"$f":"SUMIFS(Sheet1!S71_OY2AdjustedBudget,Sheet1!S71_A2SubCode,$AC:$AC,Sheet1!S71_ItemType,$AD:$AD)","v":0},null,null,null,null,null,null,null,null,null,null,null,null,null,null,null,2204,"IE"]
["Sports Grounds and Stadiums",null,{"$f":"SUMIFS(Sheet1!S71_OriginalBudget,Sheet1!S71_A2SubCode,$AC:$AC,Sheet1!S71_ItemType,$AD:$AD)","v":0},{"$f":"SUMIFS(Sheet1!S71_SpecialAdjustedBudget,Sheet1!S71_A2SubCode,$AC:$AC,Sheet1!S71_ItemType,$AD:$AD)","v":0},null,null,null,null,{"$f":"SUMIFS(Sheet1!S71_AdjustmentAmount,Sheet1!S71_A2SubCode,$AC:$AC,Sheet1!S71_ItemType,$AD:$AD)","v":0},0,0,{"$f":"SUMIFS(Sheet1!S71_OY1AdjustedBudget,Sheet1!S71_A2SubCode,$AC:$AC,Sheet1!S71_ItemType,$AD:$AD)","v":0},{"$f":"SUMIFS(Sheet1!S71_OY2AdjustedBudget,Sheet1!S71_A2SubCode,$AC:$AC,Sheet1!S71_ItemType,$AD:$AD)","v":0},null,null,null,null,null,null,null,null,null,null,null,null,null,null,null,2205,"IE"]
["Public safety",null,{"$f":"SUM(C179:C186)","v":1998695},0,0,0,0,0,-737282,-737282,1261413,{"$f":"SUM(L179:L186)","v":1961807},{"$f":"SUM(M179:M186)","v":2047840},null,null,null,null,null,null,null,null,null,null,null,null,null,null,null,null,""]
["Civil Defence",null,{"$f":"SUMIFS(Sheet1!S71_OriginalBudget,Sheet1!S71_A2SubCode,$AC:$AC,Sheet1!S71_ItemType,$AD:$AD)","v":504000},{"$f":"SUMIFS(Sheet1!S71_SpecialAdjustedBudget,Sheet1!S71_A2SubCode,$AC:$AC,Sheet1!S71_ItemType,$AD:$AD)","v":0},null,null,null,null,{"$f":"SUMIFS(Sheet1!S71_AdjustmentAmount,Sheet1!S71_A2SubCode,$AC:$AC,Sheet1!S71_ItemType,$AD:$AD)","v":-354000},-354000,150000,{"$f":"SUMIFS(Sheet1!S71_OY1AdjustedBudget,Sheet1!S71_A2SubCode,$AC:$AC,Sheet1!S71_ItemType,$AD:$AD)","v":238410},{"$f":"SUMIFS(Sheet1!S71_OY2AdjustedBudget,Sheet1!S71_A2SubCode,$AC:$AC,Sheet1!S71_ItemType,$AD:$AD)","v":249139},null,null,null,null,null,null,null,null,null,null,null,null,null,null,null,2301,"IE"]
["Cleansing",null,{"$f":"SUMIFS(Sheet1!S71_OriginalBudget,Sheet1!S71_A2SubCode,$AC:$AC,Sheet1!S71_ItemType,$AD:$AD)","v":0},{"$f":"SUMIFS(Sheet1!S71_SpecialAdjustedBudget,Sheet1!S71_A2SubCode,$AC:$AC,Sheet1!S71_ItemType,$AD:$AD)","v":0},null,null,null,null,{"$f":"SUMIFS(Sheet1!S71_AdjustmentAmount,Sheet1!S71_A2SubCode,$AC:$AC,Sheet1!S71_ItemType,$AD:$AD)","v":0},0,0,{"$f":"SUMIFS(Sheet1!S71_OY1AdjustedBudget,Sheet1!S71_A2SubCode,$AC:$AC,Sheet1!S71_ItemType,$AD:$AD)","v":0},{"$f":"SUMIFS(Sheet1!S71_OY2AdjustedBudget,Sheet1!S71_A2SubCode,$AC:$AC,Sheet1!S71_ItemType,$AD:$AD)","v":0},null,null,null,null,null,null,null,null,null,null,null,null,null,null,null,2302,"IE"]
["Control of Public Nuisances",null,{"$f":"SUMIFS(Sheet1!S71_OriginalBudget,Sheet1!S71_A2SubCode,$AC:$AC,Sheet1!S71_ItemType,$AD:$AD)","v":0},{"$f":"SUMIFS(Sheet1!S71_SpecialAdjustedBudget,Sheet1!S71_A2SubCode,$AC:$AC,Sheet1!S71_ItemType,$AD:$AD)","v":0},null,null,null,null,{"$f":"SUMIFS(Sheet1!S71_AdjustmentAmount,Sheet1!S71_A2SubCode,$AC:$AC,Sheet1!S71_ItemType,$AD:$AD)","v":0},0,0,{"$f":"SUMIFS(Sheet1!S71_OY1AdjustedBudget,Sheet1!S71_A2SubCode,$AC:$AC,Sheet1!S71_ItemType,$AD:$AD)","v":0},{"$f":"SUMIFS(Sheet1!S71_OY2AdjustedBudget,Sheet1!S71_A2SubCode,$AC:$AC,Sheet1!S71_ItemType,$AD:$AD)","v":0},null,null,null,null,null,null,null,null,null,null,null,null,null,null,null,2303,"IE"]
["Fencing and Fences ",null,{"$f":"SUMIFS(Sheet1!S71_OriginalBudget,Sheet1!S71_A2SubCode,$AC:$AC,Sheet1!S71_ItemType,$AD:$AD)","v":0},{"$f":"SUMIFS(Sheet1!S71_SpecialAdjustedBudget,Sheet1!S71_A2SubCode,$AC:$AC,Sheet1!S71_ItemType,$AD:$AD)","v":0},null,null,null,null,{"$f":"SUMIFS(Sheet1!S71_AdjustmentAmount,Sheet1!S71_A2SubCode,$AC:$AC,Sheet1!S71_ItemType,$AD:$AD)","v":0},0,0,{"$f":"SUMIFS(Sheet1!S71_OY1AdjustedBudget,Sheet1!S71_A2SubCode,$AC:$AC,Sheet1!S71_ItemType,$AD:$AD)","v":0},{"$f":"SUMIFS(Sheet1!S71_OY2AdjustedBudget,Sheet1!S71_A2SubCode,$AC:$AC,Sheet1!S71_ItemType,$AD:$AD)","v":0},null,null,null,null,null,null,null,null,null,null,null,null,null,null,null,2304,"IE"]
["Fire Fighting and Protection",null,{"$f":"SUMIFS(Sheet1!S71_OriginalBudget,Sheet1!S71_A2SubCode,$AC:$AC,Sheet1!S71_ItemType,$AD:$AD)","v":1494695},{"$f":"SUMIFS(Sheet1!S71_SpecialAdjustedBudget,Sheet1!S71_A2SubCode,$AC:$AC,Sheet1!S71_ItemType,$AD:$AD)","v":0},null,null,null,null,{"$f":"SUMIFS(Sheet1!S71_AdjustmentAmount,Sheet1!S71_A2SubCode,$AC:$AC,Sheet1!S71_ItemType,$AD:$AD)","v":-383282},-383282,1111413,{"$f":"SUMIFS(Sheet1!S71_OY1AdjustedBudget,Sheet1!S71_A2SubCode,$AC:$AC,Sheet1!S71_ItemType,$AD:$AD)","v":1673397},{"$f":"SUMIFS(Sheet1!S71_OY2AdjustedBudget,Sheet1!S71_A2SubCode,$AC:$AC,Sheet1!S71_ItemType,$AD:$AD)","v":1748701},null,null,null,null,null,null,null,null,null,null,null,null,null,null,null,2305,"IE"]
["Licensing and Control of Animals",null,{"$f":"SUMIFS(Sheet1!S71_OriginalBudget,Sheet1!S71_A2SubCode,$AC:$AC,Sheet1!S71_ItemType,$AD:$AD)","v":0},{"$f":"SUMIFS(Sheet1!S71_SpecialAdjustedBudget,Sheet1!S71_A2SubCode,$AC:$AC,Sheet1!S71_ItemType,$AD:$AD)","v":0},null,null,null,null,{"$f":"SUMIFS(Sheet1!S71_AdjustmentAmount,Sheet1!S71_A2SubCode,$AC:$AC,Sheet1!S71_ItemType,$AD:$AD)","v":0},{"$f":"SUM(E184:I184)","v":0},{"$f":"IF(D184=0,C184+J184,D184+J184)","v":0},{"$f":"SUMIFS(Sheet1!S71_OY1AdjustedBudget,Sheet1!S71_A2SubCode,$AC:$AC,Sheet1!S71_ItemType,$AD:$AD)","v":0},{"$f":"SUMIFS(Sheet1!S71_OY2AdjustedBudget,Sheet1!S71_A2SubCode,$AC:$AC,Sheet1!S71_ItemType,$AD:$AD)","v":0},null,null,null,null,null,null,null,null,null,null,null,null,null,null,null,2306,"IE"]
["Police Forces, Traffic and Street Parking Control",null,{"$f":"SUMIFS(Sheet1!S71_OriginalBudget,Sheet1!S71_A2SubCode,$AC:$AC,Sheet1!S71_ItemType,$AD:$AD)","v":0},{"$f":"SUMIFS(Sheet1!S71_SpecialAdjustedBudget,Sheet1!S71_A2SubCode,$AC:$AC,Sheet1!S71_ItemType,$AD:$AD)","v":0},null,null,null,null,{"$f":"SUMIFS(Sheet1!S71_AdjustmentAmount,Sheet1!S71_A2SubCode,$AC:$AC,Sheet1!S71_ItemType,$AD:$AD)","v":0},{"$f":"SUM(E185:I185)","v":0},{"$f":"IF(D185=0,C185+J185,D185+J185)","v":0},{"$f":"SUMIFS(Sheet1!S71_OY1AdjustedBudget,Sheet1!S71_A2SubCode,$AC:$AC,Sheet1!S71_ItemType,$AD:$AD)","v":50000},{"$f":"SUMIFS(Sheet1!S71_OY2AdjustedBudget,Sheet1!S71_A2SubCode,$AC:$AC,Sheet1!S71_ItemType,$AD:$AD)","v":50000},null,null,null,null,null,null,null,null,null,null,null,null,null,null,null,2307,"IE"]
["Pounds",null,{"$f":"SUMIFS(Sheet1!S71_OriginalBudget,Sheet1!S71_A2SubCode,$AC:$AC,Sheet1!S71_ItemType,$AD:$AD)","v":0},{"$f":"SUMIFS(Sheet1!S71_SpecialAdjustedBudget,Sheet1!S71_A2SubCode,$AC:$AC,Sheet1!S71_ItemType,$AD:$AD)","v":0},null,null,null,null,{"$f":"SUMIFS(Sheet1!S71_AdjustmentAmount,Sheet1!S71_A2SubCode,$AC:$AC,Sheet1!S71_ItemType,$AD:$AD)","v":0},0,0,{"$f":"SUMIFS(Sheet1!S71_OY1AdjustedBudget,Sheet1!S71_A2SubCode,$AC:$AC,Sheet1!S71_ItemType,$AD:$AD)","v":0},{"$f":"SUMIFS(Sheet1!S71_OY2AdjustedBudget,Sheet1!S71_A2SubCode,$AC:$AC,Sheet1!S71_ItemType,$AD:$AD)","v":0},null,null,null,null,null,null,null,null,null,null,null,null,null,null,null,2308,"IE"]
["Housing",null,{"$f":"SUM(C188:C189)","v":0},{"$f":"SUM(D188:D189)","v":0},0,0,0,0,0,0,0,0,0,null,null,null,null,null,null,null,null,null,null,null,null,null,null,null,null,""]
["Housing",null,{"$f":"SUMIFS(Sheet1!S71_OriginalBudget,Sheet1!S71_A2SubCode,$AC:$AC,Sheet1!S71_ItemType,$AD:$AD)","v":0},{"$f":"SUMIFS(Sheet1!S71_SpecialAdjustedBudget,Sheet1!S71_A2SubCode,$AC:$AC,Sheet1!S71_ItemType,$AD:$AD)","v":0},null,null,null,null,{"$f":"SUMIFS(Sheet1!S71_AdjustmentAmount,Sheet1!S71_A2SubCode,$AC:$AC,Sheet1!S71_ItemType,$AD:$AD)","v":0},0,0,{"$f":"SUMIFS(Sheet1!S71_OY1AdjustedBudget,Sheet1!S71_A2SubCode,$AC:$AC,Sheet1!S71_ItemType,$AD:$AD)","v":0},{"$f":"SUMIFS(Sheet1!S71_OY2AdjustedBudget,Sheet1!S71_A2SubCode,$AC:$AC,Sheet1!S71_ItemType,$AD:$AD)","v":0},null,null,null,null,null,null,null,null,null,null,null,null,null,null,null,2401,"IE"]
["Informal Settlements",null,{"$f":"SUMIFS(Sheet1!S71_OriginalBudget,Sheet1!S71_A2SubCode,$AC:$AC,Sheet1!S71_ItemType,$AD:$AD)","v":0},{"$f":"SUMIFS(Sheet1!S71_SpecialAdjustedBudget,Sheet1!S71_A2SubCode,$AC:$AC,Sheet1!S71_ItemType,$AD:$AD)","v":0},null,null,null,null,{"$f":"SUMIFS(Sheet1!S71_AdjustmentAmount,Sheet1!S71_A2SubCode,$AC:$AC,Sheet1!S71_ItemType,$AD:$AD)","v":0},0,0,{"$f":"SUMIFS(Sheet1!S71_OY1AdjustedBudget,Sheet1!S71_A2SubCode,$AC:$AC,Sheet1!S71_ItemType,$AD:$AD)","v":0},{"$f":"SUMIFS(Sheet1!S71_OY2AdjustedBudget,Sheet1!S71_A2SubCode,$AC:$AC,Sheet1!S71_ItemType,$AD:$AD)","v":0},null,null,null,null,null,null,null,null,null,null,null,null,null,null,null,2402,"IE"]
["Health",null,{"$f":"SUM(C191:C197)","v":0},0,0,0,0,0,0,0,0,{"$f":"SUM(L191:L197)","v":0},{"$f":"SUM(M191:M197)","v":0},null,null,null,null,null,null,null,null,null,null,null,null,null,null,null,null,""]
["Ambulance",null,{"$f":"SUMIFS(Sheet1!S71_OriginalBudget,Sheet1!S71_A2SubCode,$AC:$AC,Sheet1!S71_ItemType,$AD:$AD)","v":0},{"$f":"SUMIFS(Sheet1!S71_SpecialAdjustedBudget,Sheet1!S71_A2SubCode,$AC:$AC,Sheet1!S71_ItemType,$AD:$AD)","v":0},null,null,null,null,{"$f":"SUMIFS(Sheet1!S71_AdjustmentAmount,Sheet1!S71_A2SubCode,$AC:$AC,Sheet1!S71_ItemType,$AD:$AD)","v":0},0,0,{"$f":"SUMIFS(Sheet1!S71_OY1AdjustedBudget,Sheet1!S71_A2SubCode,$AC:$AC,Sheet1!S71_ItemType,$AD:$AD)","v":0},{"$f":"SUMIFS(Sheet1!S71_OY2AdjustedBudget,Sheet1!S71_A2SubCode,$AC:$AC,Sheet1!S71_ItemType,$AD:$AD)","v":0},null,null,null,null,null,null,null,null,null,null,null,null,null,null,null,2501,"IE"]
["Health Services",null,{"$f":"SUMIFS(Sheet1!S71_OriginalBudget,Sheet1!S71_A2SubCode,$AC:$AC,Sheet1!S71_ItemType,$AD:$AD)","v":0},{"$f":"SUMIFS(Sheet1!S71_SpecialAdjustedBudget,Sheet1!S71_A2SubCode,$AC:$AC,Sheet1!S71_ItemType,$AD:$AD)","v":0},null,null,null,null,{"$f":"SUMIFS(Sheet1!S71_AdjustmentAmount,Sheet1!S71_A2SubCode,$AC:$AC,Sheet1!S71_ItemType,$AD:$AD)","v":0},0,0,{"$f":"SUMIFS(Sheet1!S71_OY1AdjustedBudget,Sheet1!S71_A2SubCode,$AC:$AC,Sheet1!S71_ItemType,$AD:$AD)","v":0},{"$f":"SUMIFS(Sheet1!S71_OY2AdjustedBudget,Sheet1!S71_A2SubCode,$AC:$AC,Sheet1!S71_ItemType,$AD:$AD)","v":0},null,null,null,null,null,null,null,null,null,null,null,null,null,null,null,2502,"IE"]
[{"$f":"A71","v":"Laboratory Services"},null,{"$f":"SUMIFS(Sheet1!S71_OriginalBudget,Sheet1!S71_A2SubCode,$AC:$AC,Sheet1!S71_ItemType,$AD:$AD)","v":0},{"$f":"SUMIFS(Sheet1!S71_SpecialAdjustedBudget,Sheet1!S71_A2SubCode,$AC:$AC,Sheet1!S71_ItemType,$AD:$AD)","v":0},null,null,null,null,{"$f":"SUMIFS(Sheet1!S71_AdjustmentAmount,Sheet1!S71_A2SubCode,$AC:$AC,Sheet1!S71_ItemType,$AD:$AD)","v":0},0,0,{"$f":"SUMIFS(Sheet1!S71_OY1AdjustedBudget,Sheet1!S71_A2SubCode,$AC:$AC,Sheet1!S71_ItemType,$AD:$AD)","v":0},{"$f":"SUMIFS(Sheet1!S71_OY2AdjustedBudget,Sheet1!S71_A2SubCode,$AC:$AC,Sheet1!S71_ItemType,$AD:$AD)","v":0},null,null,null,null,null,null,null,null,null,null,null,null,null,null,null,2503,"IE"]
["Food Control",null,{"$f":"SUMIFS(Sheet1!S71_OriginalBudget,Sheet1!S71_A2SubCode,$AC:$AC,Sheet1!S71_ItemType,$AD:$AD)","v":0},{"$f":"SUMIFS(Sheet1!S71_SpecialAdjustedBudget,Sheet1!S71_A2SubCode,$AC:$AC,Sheet1!S71_ItemType,$AD:$AD)","v":0},null,null,null,null,{"$f":"SUMIFS(Sheet1!S71_AdjustmentAmount,Sheet1!S71_A2SubCode,$AC:$AC,Sheet1!S71_ItemType,$AD:$AD)","v":0},0,0,{"$f":"SUMIFS(Sheet1!S71_OY1AdjustedBudget,Sheet1!S71_A2SubCode,$AC:$AC,Sheet1!S71_ItemType,$AD:$AD)","v":0},{"$f":"SUMIFS(Sheet1!S71_OY2AdjustedBudget,Sheet1!S71_A2SubCode,$AC:$AC,Sheet1!S71_ItemType,$AD:$AD)","v":0},null,null,null,null,null,null,null,null,null,null,null,null,null,null,null,2504,"IE"]
["Health Surveillance and Prevention of Communicable Diseases including immunizations",null,{"$f":"SUMIFS(Sheet1!S71_OriginalBudget,Sheet1!S71_A2SubCode,$AC:$AC,Sheet1!S71_ItemType,$AD:$AD)","v":0},{"$f":"SUMIFS(Sheet1!S71_SpecialAdjustedBudget,Sheet1!S71_A2SubCode,$AC:$AC,Sheet1!S71_ItemType,$AD:$AD)","v":0},null,null,null,null,{"$f":"SUMIFS(Sheet1!S71_AdjustmentAmount,Sheet1!S71_A2SubCode,$AC:$AC,Sheet1!S71_ItemType,$AD:$AD)","v":0},0,0,{"$f":"SUMIFS(Sheet1!S71_OY1AdjustedBudget,Sheet1!S71_A2SubCode,$AC:$AC,Sheet1!S71_ItemType,$AD:$AD)","v":0},{"$f":"SUMIFS(Sheet1!S71_OY2AdjustedBudget,Sheet1!S71_A2SubCode,$AC:$AC,Sheet1!S71_ItemType,$AD:$AD)","v":0},null,null,null,null,null,null,null,null,null,null,null,null,null,null,null,2505,"IE"]
["Vector Control",null,{"$f":"SUMIFS(Sheet1!S71_OriginalBudget,Sheet1!S71_A2SubCode,$AC:$AC,Sheet1!S71_ItemType,$AD:$AD)","v":0},{"$f":"SUMIFS(Sheet1!S71_SpecialAdjustedBudget,Sheet1!S71_A2SubCode,$AC:$AC,Sheet1!S71_ItemType,$AD:$AD)","v":0},null,null,null,null,{"$f":"SUMIFS(Sheet1!S71_AdjustmentAmount,Sheet1!S71_A2SubCode,$AC:$AC,Sheet1!S71_ItemType,$AD:$AD)","v":0},0,0,{"$f":"SUMIFS(Sheet1!S71_OY1AdjustedBudget,Sheet1!S71_A2SubCode,$AC:$AC,Sheet1!S71_ItemType,$AD:$AD)","v":0},{"$f":"SUMIFS(Sheet1!S71_OY2AdjustedBudget,Sheet1!S71_A2SubCode,$AC:$AC,Sheet1!S71_ItemType,$AD:$AD)","v":0},null,null,null,null,null,null,null,null,null,null,null,null,null,null,null,2506,"IE"]
["Chemical Safety",null,{"$f":"SUMIFS(Sheet1!S71_OriginalBudget,Sheet1!S71_A2SubCode,$AC:$AC,Sheet1!S71_ItemType,$AD:$AD)","v":0},{"$f":"SUMIFS(Sheet1!S71_SpecialAdjustedBudget,Sheet1!S71_A2SubCode,$AC:$AC,Sheet1!S71_ItemType,$AD:$AD)","v":0},null,null,null,null,{"$f":"SUMIFS(Sheet1!S71_AdjustmentAmount,Sheet1!S71_A2SubCode,$AC:$AC,Sheet1!S71_ItemType,$AD:$AD)","v":0},0,0,{"$f":"SUMIFS(Sheet1!S71_OY1AdjustedBudget,Sheet1!S71_A2SubCode,$AC:$AC,Sheet1!S71_ItemType,$AD:$AD)","v":0},{"$f":"SUMIFS(Sheet1!S71_OY2AdjustedBudget,Sheet1!S71_A2SubCode,$AC:$AC,Sheet1!S71_ItemType,$AD:$AD)","v":0},null,null,null,null,null,null,null,null,null,null,null,null,null,null,null,2507,"IE"]
["Economic and environmental services",null,{"$f":"C199+C210+C215","v":47889547},0,0,0,0,0,-3908037,-3908037,43981510,{"$f":"L199+L210+L215","v":53182770},{"$f":"M199+M210+M215","v":55575999},null,null,null,null,null,null,null,null,null,null,null,null,null,null,null,null,""]
["Planning and development",null,{"$f":"SUM(C200:C209)","v":33163293},0,0,0,0,0,-4251212,-4251212,28912081,{"$f":"SUM(L200:L209)","v":37540192},{"$f":"SUM(M200:M209)","v":39229502},null,null,null,null,null,null,null,null,null,null,null,null,null,null,null,null,""]
["Billboards",null,{"$f":"SUMIFS(Sheet1!S71_OriginalBudget,Sheet1!S71_A2SubCode,$AC:$AC,Sheet1!S71_ItemType,$AD:$AD)","v":0},{"$f":"SUMIFS(Sheet1!S71_SpecialAdjustedBudget,Sheet1!S71_A2SubCode,$AC:$AC,Sheet1!S71_ItemType,$AD:$AD)","v":0},null,null,null,null,{"$f":"SUMIFS(Sheet1!S71_AdjustmentAmount,Sheet1!S71_A2SubCode,$AC:$AC,Sheet1!S71_ItemType,$AD:$AD)","v":0},0,0,{"$f":"SUMIFS(Sheet1!S71_OY1AdjustedBudget,Sheet1!S71_A2SubCode,$AC:$AC,Sheet1!S71_ItemType,$AD:$AD)","v":0},{"$f":"SUMIFS(Sheet1!S71_OY2AdjustedBudget,Sheet1!S71_A2SubCode,$AC:$AC,Sheet1!S71_ItemType,$AD:$AD)","v":0},null,null,null,null,null,null,null,null,null,null,null,null,null,null,null,3101,"IE"]
["Corporate Wide Strategic Planning (IDPs, LEDs)",null,{"$f":"SUMIFS(Sheet1!S71_OriginalBudget,Sheet1!S71_A2SubCode,$AC:$AC,Sheet1!S71_ItemType,$AD:$AD)","v":3697678},{"$f":"SUMIFS(Sheet1!S71_SpecialAdjustedBudget,Sheet1!S71_A2SubCode,$AC:$AC,Sheet1!S71_ItemType,$AD:$AD)","v":0},null,null,null,null,{"$f":"SUMIFS(Sheet1!S71_AdjustmentAmount,Sheet1!S71_A2SubCode,$AC:$AC,Sheet1!S71_ItemType,$AD:$AD)","v":-1856909},-1856909,1840769,{"$f":"SUMIFS(Sheet1!S71_OY1AdjustedBudget,Sheet1!S71_A2SubCode,$AC:$AC,Sheet1!S71_ItemType,$AD:$AD)","v":2165589},{"$f":"SUMIFS(Sheet1!S71_OY2AdjustedBudget,Sheet1!S71_A2SubCode,$AC:$AC,Sheet1!S71_ItemType,$AD:$AD)","v":2263039},null,null,null,null,null,null,null,null,null,null,null,null,null,null,null,3102,"IE"]
["Central City Improvement District",null,{"$f":"SUMIFS(Sheet1!S71_OriginalBudget,Sheet1!S71_A2SubCode,$AC:$AC,Sheet1!S71_ItemType,$AD:$AD)","v":2488496},{"$f":"SUMIFS(Sheet1!S71_SpecialAdjustedBudget,Sheet1!S71_A2SubCode,$AC:$AC,Sheet1!S71_ItemType,$AD:$AD)","v":0},null,null,null,null,{"$f":"SUMIFS(Sheet1!S71_AdjustmentAmount,Sheet1!S71_A2SubCode,$AC:$AC,Sheet1!S71_ItemType,$AD:$AD)","v":1759000},1759000,4247496,{"$f":"SUMIFS(Sheet1!S71_OY1AdjustedBudget,Sheet1!S71_A2SubCode,$AC:$AC,Sheet1!S71_ItemType,$AD:$AD)","v":4643437},{"$f":"SUMIFS(Sheet1!S71_OY2AdjustedBudget,Sheet1!S71_A2SubCode,$AC:$AC,Sheet1!S71_ItemType,$AD:$AD)","v":4852391},null,null,null,null,null,null,null,null,null,null,null,null,null,null,null,3103,"IE"]
["Development Facilitation",null,{"$f":"SUMIFS(Sheet1!S71_OriginalBudget,Sheet1!S71_A2SubCode,$AC:$AC,Sheet1!S71_ItemType,$AD:$AD)","v":0},{"$f":"SUMIFS(Sheet1!S71_SpecialAdjustedBudget,Sheet1!S71_A2SubCode,$AC:$AC,Sheet1!S71_ItemType,$AD:$AD)","v":0},null,null,null,null,{"$f":"SUMIFS(Sheet1!S71_AdjustmentAmount,Sheet1!S71_A2SubCode,$AC:$AC,Sheet1!S71_ItemType,$AD:$AD)","v":0},0,0,{"$f":"SUMIFS(Sheet1!S71_OY1AdjustedBudget,Sheet1!S71_A2SubCode,$AC:$AC,Sheet1!S71_ItemType,$AD:$AD)","v":0},{"$f":"SUMIFS(Sheet1!S71_OY2AdjustedBudget,Sheet1!S71_A2SubCode,$AC:$AC,Sheet1!S71_ItemType,$AD:$AD)","v":0},null,null,null,null,null,null,null,null,null,null,null,null,null,null,null,3104,"IE"]
["Economic Development/Planning",null,{"$f":"SUMIFS(Sheet1!S71_OriginalBudget,Sheet1!S71_A2SubCode,$AC:$AC,Sheet1!S71_ItemType,$AD:$AD)","v":1270675},{"$f":"SUMIFS(Sheet1!S71_SpecialAdjustedBudget,Sheet1!S71_A2SubCode,$AC:$AC,Sheet1!S71_ItemType,$AD:$AD)","v":0},null,null,null,null,{"$f":"SUMIFS(Sheet1!S71_AdjustmentAmount,Sheet1!S71_A2SubCode,$AC:$AC,Sheet1!S71_ItemType,$AD:$AD)","v":-221208},-221208,1049467,{"$f":"SUMIFS(Sheet1!S71_OY1AdjustedBudget,Sheet1!S71_A2SubCode,$AC:$AC,Sheet1!S71_ItemType,$AD:$AD)","v":987525},{"$f":"SUMIFS(Sheet1!S71_OY2AdjustedBudget,Sheet1!S71_A2SubCode,$AC:$AC,Sheet1!S71_ItemType,$AD:$AD)","v":1031965},null,null,null,null,null,null,null,null,null,null,null,null,null,null,null,3105,"IE"]
["Regional Planning and Development",null,{"$f":"SUMIFS(Sheet1!S71_OriginalBudget,Sheet1!S71_A2SubCode,$AC:$AC,Sheet1!S71_ItemType,$AD:$AD)","v":0},{"$f":"SUMIFS(Sheet1!S71_SpecialAdjustedBudget,Sheet1!S71_A2SubCode,$AC:$AC,Sheet1!S71_ItemType,$AD:$AD)","v":0},null,null,null,null,{"$f":"SUMIFS(Sheet1!S71_AdjustmentAmount,Sheet1!S71_A2SubCode,$AC:$AC,Sheet1!S71_ItemType,$AD:$AD)","v":0},{"$f":"SUM(E205:I205)","v":0},{"$f":"IF(D205=0,C205+J205,D205+J205)","v":0},{"$f":"SUMIFS(Sheet1!S71_OY1AdjustedBudget,Sheet1!S71_A2SubCode,$AC:$AC,Sheet1!S71_ItemType,$AD:$AD)","v":0},{"$f":"SUMIFS(Sheet1!S71_OY2AdjustedBudget,Sheet1!S71_A2SubCode,$AC:$AC,Sheet1!S71_ItemType,$AD:$AD)","v":0},null,null,null,null,null,null,null,null,null,null,null,null,null,null,null,3106,"IE"]
["Town Planning, Building Regulations and Enforcement, and City Engineer",null,{"$f":"SUMIFS(Sheet1!S71_OriginalBudget,Sheet1!S71_A2SubCode,$AC:$AC,Sheet1!S71_ItemType,$AD:$AD)","v":24250391},{"$f":"SUMIFS(Sheet1!S71_SpecialAdjustedBudget,Sheet1!S71_A2SubCode,$AC:$AC,Sheet1!S71_ItemType,$AD:$AD)","v":0},null,null,null,null,{"$f":"SUMIFS(Sheet1!S71_AdjustmentAmount,Sheet1!S71_A2SubCode,$AC:$AC,Sheet1!S71_ItemType,$AD:$AD)","v":-3284254},-3284254,20966137,{"$f":"SUMIFS(Sheet1!S71_OY1AdjustedBudget,Sheet1!S71_A2SubCode,$AC:$AC,Sheet1!S71_ItemType,$AD:$AD)","v":28494717},{"$f":"SUMIFS(Sheet1!S71_OY2AdjustedBudget,Sheet1!S71_A2SubCode,$AC:$AC,Sheet1!S71_ItemType,$AD:$AD)","v":29776982},null,null,null,null,null,null,null,null,null,null,null,null,null,null,null,3107,"IE"]
["Project Management Unit",null,{"$f":"SUMIFS(Sheet1!S71_OriginalBudget,Sheet1!S71_A2SubCode,$AC:$AC,Sheet1!S71_ItemType,$AD:$AD)","v":1456053},{"$f":"SUMIFS(Sheet1!S71_SpecialAdjustedBudget,Sheet1!S71_A2SubCode,$AC:$AC,Sheet1!S71_ItemType,$AD:$AD)","v":0},null,null,null,null,{"$f":"SUMIFS(Sheet1!S71_AdjustmentAmount,Sheet1!S71_A2SubCode,$AC:$AC,Sheet1!S71_ItemType,$AD:$AD)","v":-647841},-647841,808212,{"$f":"SUMIFS(Sheet1!S71_OY1AdjustedBudget,Sheet1!S71_A2SubCode,$AC:$AC,Sheet1!S71_ItemType,$AD:$AD)","v":1248924},{"$f":"SUMIFS(Sheet1!S71_OY2AdjustedBudget,Sheet1!S71_A2SubCode,$AC:$AC,Sheet1!S71_ItemType,$AD:$AD)","v":1305125},null,null,null,null,null,null,null,null,null,null,null,null,null,null,null,3108,"IE"]
["Provincial Planning",null,{"$f":"SUMIFS(Sheet1!S71_OriginalBudget,Sheet1!S71_A2SubCode,$AC:$AC,Sheet1!S71_ItemType,$AD:$AD)","v":0},{"$f":"SUMIFS(Sheet1!S71_SpecialAdjustedBudget,Sheet1!S71_A2SubCode,$AC:$AC,Sheet1!S71_ItemType,$AD:$AD)","v":0},null,null,null,null,{"$f":"SUMIFS(Sheet1!S71_AdjustmentAmount,Sheet1!S71_A2SubCode,$AC:$AC,Sheet1!S71_ItemType,$AD:$AD)","v":0},0,0,{"$f":"SUMIFS(Sheet1!S71_OY1AdjustedBudget,Sheet1!S71_A2SubCode,$AC:$AC,Sheet1!S71_ItemType,$AD:$AD)","v":0},{"$f":"SUMIFS(Sheet1!S71_OY2AdjustedBudget,Sheet1!S71_A2SubCode,$AC:$AC,Sheet1!S71_ItemType,$AD:$AD)","v":0},null,null,null,null,null,null,null,null,null,null,null,null,null,null,null,3109,"IE"]
["Support to Local Municipalities",null,{"$f":"SUMIFS(Sheet1!S71_OriginalBudget,Sheet1!S71_A2SubCode,$AC:$AC,Sheet1!S71_ItemType,$AD:$AD)","v":0},{"$f":"SUMIFS(Sheet1!S71_SpecialAdjustedBudget,Sheet1!S71_A2SubCode,$AC:$AC,Sheet1!S71_ItemType,$AD:$AD)","v":0},null,null,null,null,{"$f":"SUMIFS(Sheet1!S71_AdjustmentAmount,Sheet1!S71_A2SubCode,$AC:$AC,Sheet1!S71_ItemType,$AD:$AD)","v":0},0,0,{"$f":"SUMIFS(Sheet1!S71_OY1AdjustedBudget,Sheet1!S71_A2SubCode,$AC:$AC,Sheet1!S71_ItemType,$AD:$AD)","v":0},{"$f":"SUMIFS(Sheet1!S71_OY2AdjustedBudget,Sheet1!S71_A2SubCode,$AC:$AC,Sheet1!S71_ItemType,$AD:$AD)","v":0},null,null,null,null,null,null,null,null,null,null,null,null,null,null,null,3110,"IE"]
["Road transport",null,{"$f":"SUM(C211:C214)","v":14726254},0,0,0,0,0,343175,343175,15069429,{"$f":"SUM(L211:L214)","v":15642578},{"$f":"SUM(M211:M214)","v":16346497},null,null,null,null,null,null,null,null,null,null,null,null,null,null,null,null,""]
["Public Transport",null,{"$f":"SUMIFS(Sheet1!S71_OriginalBudget,Sheet1!S71_A2SubCode,$AC:$AC,Sheet1!S71_ItemType,$AD:$AD)","v":0},{"$f":"SUMIFS(Sheet1!S71_SpecialAdjustedBudget,Sheet1!S71_A2SubCode,$AC:$AC,Sheet1!S71_ItemType,$AD:$AD)","v":0},null,null,null,null,{"$f":"SUMIFS(Sheet1!S71_AdjustmentAmount,Sheet1!S71_A2SubCode,$AC:$AC,Sheet1!S71_ItemType,$AD:$AD)","v":0},0,0,{"$f":"SUMIFS(Sheet1!S71_OY1AdjustedBudget,Sheet1!S71_A2SubCode,$AC:$AC,Sheet1!S71_ItemType,$AD:$AD)","v":0},{"$f":"SUMIFS(Sheet1!S71_OY2AdjustedBudget,Sheet1!S71_A2SubCode,$AC:$AC,Sheet1!S71_ItemType,$AD:$AD)","v":0},null,null,null,null,null,null,null,null,null,null,null,null,null,null,null,3203,"IE"]
["Road and Traffic Regulation",null,{"$f":"SUMIFS(Sheet1!S71_OriginalBudget,Sheet1!S71_A2SubCode,$AC:$AC,Sheet1!S71_ItemType,$AD:$AD)","v":11018754},{"$f":"SUMIFS(Sheet1!S71_SpecialAdjustedBudget,Sheet1!S71_A2SubCode,$AC:$AC,Sheet1!S71_ItemType,$AD:$AD)","v":0},null,null,null,null,{"$f":"SUMIFS(Sheet1!S71_AdjustmentAmount,Sheet1!S71_A2SubCode,$AC:$AC,Sheet1!S71_ItemType,$AD:$AD)","v":-951473},-951473,10067281,{"$f":"SUMIFS(Sheet1!S71_OY1AdjustedBudget,Sheet1!S71_A2SubCode,$AC:$AC,Sheet1!S71_ItemType,$AD:$AD)","v":11723828},{"$f":"SUMIFS(Sheet1!S71_OY2AdjustedBudget,Sheet1!S71_A2SubCode,$AC:$AC,Sheet1!S71_ItemType,$AD:$AD)","v":12251403},null,null,null,null,null,null,null,null,null,null,null,null,null,null,null,3204,"IE"]
["Roads",null,{"$f":"SUMIFS(Sheet1!S71_OriginalBudget,Sheet1!S71_A2SubCode,$AC:$AC,Sheet1!S71_ItemType,$AD:$AD)","v":3707500},{"$f":"SUMIFS(Sheet1!S71_SpecialAdjustedBudget,Sheet1!S71_A2SubCode,$AC:$AC,Sheet1!S71_ItemType,$AD:$AD)","v":0},null,null,null,null,{"$f":"SUMIFS(Sheet1!S71_AdjustmentAmount,Sheet1!S71_A2SubCode,$AC:$AC,Sheet1!S71_ItemType,$AD:$AD)","v":1294648},1294648,5002148,{"$f":"SUMIFS(Sheet1!S71_OY1AdjustedBudget,Sheet1!S71_A2SubCode,$AC:$AC,Sheet1!S71_ItemType,$AD:$AD)","v":3918750},{"$f":"SUMIFS(Sheet1!S71_OY2AdjustedBudget,Sheet1!S71_A2SubCode,$AC:$AC,Sheet1!S71_ItemType,$AD:$AD)","v":4095094},null,null,null,null,null,null,null,null,null,null,null,null,null,null,null,3205,"IE"]
["Taxi Ranks",null,{"$f":"SUMIFS(Sheet1!S71_OriginalBudget,Sheet1!S71_A2SubCode,$AC:$AC,Sheet1!S71_ItemType,$AD:$AD)","v":0},{"$f":"SUMIFS(Sheet1!S71_SpecialAdjustedBudget,Sheet1!S71_A2SubCode,$AC:$AC,Sheet1!S71_ItemType,$AD:$AD)","v":0},null,null,null,null,{"$f":"SUMIFS(Sheet1!S71_AdjustmentAmount,Sheet1!S71_A2SubCode,$AC:$AC,Sheet1!S71_ItemType,$AD:$AD)","v":0},0,0,{"$f":"SUMIFS(Sheet1!S71_OY1AdjustedBudget,Sheet1!S71_A2SubCode,$AC:$AC,Sheet1!S71_ItemType,$AD:$AD)","v":0},{"$f":"SUMIFS(Sheet1!S71_OY2AdjustedBudget,Sheet1!S71_A2SubCode,$AC:$AC,Sheet1!S71_ItemType,$AD:$AD)","v":0},null,null,null,null,null,null,null,null,null,null,null,null,null,null,null,3206,"IE"]
["Environmental protection",null,{"$f":"SUM(C216:C221)","v":0},0,0,0,0,0,0,0,0,{"$f":"SUM(L216:L221)","v":0},{"$f":"SUM(M216:M221)","v":0},null,null,null,null,null,null,null,null,null,null,null,null,null,null,null,null,""]
["Biodiversity and Landscape",null,{"$f":"SUMIFS(Sheet1!S71_OriginalBudget,Sheet1!S71_A2SubCode,$AC:$AC,Sheet1!S71_ItemType,$AD:$AD)","v":0},{"$f":"SUMIFS(Sheet1!S71_SpecialAdjustedBudget,Sheet1!S71_A2SubCode,$AC:$AC,Sheet1!S71_ItemType,$AD:$AD)","v":0},null,null,null,null,{"$f":"SUMIFS(Sheet1!S71_AdjustmentAmount,Sheet1!S71_A2SubCode,$AC:$AC,Sheet1!S71_ItemType,$AD:$AD)","v":0},0,0,{"$f":"SUMIFS(Sheet1!S71_OY1AdjustedBudget,Sheet1!S71_A2SubCode,$AC:$AC,Sheet1!S71_ItemType,$AD:$AD)","v":0},{"$f":"SUMIFS(Sheet1!S71_OY2AdjustedBudget,Sheet1!S71_A2SubCode,$AC:$AC,Sheet1!S71_ItemType,$AD:$AD)","v":0},null,null,null,null,null,null,null,null,null,null,null,null,null,null,null,3301,"IE"]
["Coastal Protection",null,{"$f":"SUMIFS(Sheet1!S71_OriginalBudget,Sheet1!S71_A2SubCode,$AC:$AC,Sheet1!S71_ItemType,$AD:$AD)","v":0},{"$f":"SUMIFS(Sheet1!S71_SpecialAdjustedBudget,Sheet1!S71_A2SubCode,$AC:$AC,Sheet1!S71_ItemType,$AD:$AD)","v":0},null,null,null,null,{"$f":"SUMIFS(Sheet1!S71_AdjustmentAmount,Sheet1!S71_A2SubCode,$AC:$AC,Sheet1!S71_ItemType,$AD:$AD)","v":0},0,0,{"$f":"SUMIFS(Sheet1!S71_OY1AdjustedBudget,Sheet1!S71_A2SubCode,$AC:$AC,Sheet1!S71_ItemType,$AD:$AD)","v":0},{"$f":"SUMIFS(Sheet1!S71_OY2AdjustedBudget,Sheet1!S71_A2SubCode,$AC:$AC,Sheet1!S71_ItemType,$AD:$AD)","v":0},null,null,null,null,null,null,null,null,null,null,null,null,null,null,null,3302,"IE"]
["Indigenous Forests",null,{"$f":"SUMIFS(Sheet1!S71_OriginalBudget,Sheet1!S71_A2SubCode,$AC:$AC,Sheet1!S71_ItemType,$AD:$AD)","v":0},{"$f":"SUMIFS(Sheet1!S71_SpecialAdjustedBudget,Sheet1!S71_A2SubCode,$AC:$AC,Sheet1!S71_ItemType,$AD:$AD)","v":0},null,null,null,null,{"$f":"SUMIFS(Sheet1!S71_AdjustmentAmount,Sheet1!S71_A2SubCode,$AC:$AC,Sheet1!S71_ItemType,$AD:$AD)","v":0},0,0,{"$f":"SUMIFS(Sheet1!S71_OY1AdjustedBudget,Sheet1!S71_A2SubCode,$AC:$AC,Sheet1!S71_ItemType,$AD:$AD)","v":0},{"$f":"SUMIFS(Sheet1!S71_OY2AdjustedBudget,Sheet1!S71_A2SubCode,$AC:$AC,Sheet1!S71_ItemType,$AD:$AD)","v":0},null,null,null,null,null,null,null,null,null,null,null,null,null,null,null,3303,"IE"]
["Nature Conservation",null,{"$f":"SUMIFS(Sheet1!S71_OriginalBudget,Sheet1!S71_A2SubCode,$AC:$AC,Sheet1!S71_ItemType,$AD:$AD)","v":0},{"$f":"SUMIFS(Sheet1!S71_SpecialAdjustedBudget,Sheet1!S71_A2SubCode,$AC:$AC,Sheet1!S71_ItemType,$AD:$AD)","v":0},null,null,null,null,{"$f":"SUMIFS(Sheet1!S71_AdjustmentAmount,Sheet1!S71_A2SubCode,$AC:$AC,Sheet1!S71_ItemType,$AD:$AD)","v":0},0,0,{"$f":"SUMIFS(Sheet1!S71_OY1AdjustedBudget,Sheet1!S71_A2SubCode,$AC:$AC,Sheet1!S71_ItemType,$AD:$AD)","v":0},{"$f":"SUMIFS(Sheet1!S71_OY2AdjustedBudget,Sheet1!S71_A2SubCode,$AC:$AC,Sheet1!S71_ItemType,$AD:$AD)","v":0},null,null,null,null,null,null,null,null,null,null,null,null,null,null,null,3304,"IE"]
["Pollution Control",null,{"$f":"SUMIFS(Sheet1!S71_OriginalBudget,Sheet1!S71_A2SubCode,$AC:$AC,Sheet1!S71_ItemType,$AD:$AD)","v":0},{"$f":"SUMIFS(Sheet1!S71_SpecialAdjustedBudget,Sheet1!S71_A2SubCode,$AC:$AC,Sheet1!S71_ItemType,$AD:$AD)","v":0},null,null,null,null,{"$f":"SUMIFS(Sheet1!S71_AdjustmentAmount,Sheet1!S71_A2SubCode,$AC:$AC,Sheet1!S71_ItemType,$AD:$AD)","v":0},0,0,{"$f":"SUMIFS(Sheet1!S71_OY1AdjustedBudget,Sheet1!S71_A2SubCode,$AC:$AC,Sheet1!S71_ItemType,$AD:$AD)","v":0},{"$f":"SUMIFS(Sheet1!S71_OY2AdjustedBudget,Sheet1!S71_A2SubCode,$AC:$AC,Sheet1!S71_ItemType,$AD:$AD)","v":0},null,null,null,null,null,null,null,null,null,null,null,null,null,null,null,3305,"IE"]
["Soil Conservation",null,{"$f":"SUMIFS(Sheet1!S71_OriginalBudget,Sheet1!S71_A2SubCode,$AC:$AC,Sheet1!S71_ItemType,$AD:$AD)","v":0},{"$f":"SUMIFS(Sheet1!S71_SpecialAdjustedBudget,Sheet1!S71_A2SubCode,$AC:$AC,Sheet1!S71_ItemType,$AD:$AD)","v":0},null,null,null,null,{"$f":"SUMIFS(Sheet1!S71_AdjustmentAmount,Sheet1!S71_A2SubCode,$AC:$AC,Sheet1!S71_ItemType,$AD:$AD)","v":0},0,0,{"$f":"SUMIFS(Sheet1!S71_OY1AdjustedBudget,Sheet1!S71_A2SubCode,$AC:$AC,Sheet1!S71_ItemType,$AD:$AD)","v":0},{"$f":"SUMIFS(Sheet1!S71_OY2AdjustedBudget,Sheet1!S71_A2SubCode,$AC:$AC,Sheet1!S71_ItemType,$AD:$AD)","v":0},null,null,null,null,null,null,null,null,null,null,null,null,null,null,null,3306,"IE"]
["Trading services",null,{"$f":"C223+C227+C231+C236","v":2547359},{"$f":"D223+D227+D231+D236","v":0},0,0,0,0,5132074,5132074,7679433,2717455,2808799,null,null,null,null,null,null,null,null,null,null,null,null,null,null,null,null,""]
["Energy sources",null,{"$f":"SUM(C224:C226)","v":571657},0,0,0,0,0,-150000,-150000,421657,{"$f":"SUM(L224:L226)","v":571657},{"$f":"SUM(M224:M226)","v":597381},null,null,null,null,null,null,null,null,null,null,null,null,null,null,null,null,""]
["Electricity ",null,{"$f":"SUMIFS(Sheet1!S71_OriginalBudget,Sheet1!S71_A2SubCode,$AC:$AC,Sheet1!S71_ItemType,$AD:$AD)","v":571657},{"$f":"SUMIFS(Sheet1!S71_SpecialAdjustedBudget,Sheet1!S71_A2SubCode,$AC:$AC,Sheet1!S71_ItemType,$AD:$AD)","v":0},null,null,null,null,{"$f":"SUMIFS(Sheet1!S71_AdjustmentAmount,Sheet1!S71_A2SubCode,$AC:$AC,Sheet1!S71_ItemType,$AD:$AD)","v":-150000},-150000,421657,{"$f":"SUMIFS(Sheet1!S71_OY1AdjustedBudget,Sheet1!S71_A2SubCode,$AC:$AC,Sheet1!S71_ItemType,$AD:$AD)","v":571657},{"$f":"SUMIFS(Sheet1!S71_OY2AdjustedBudget,Sheet1!S71_A2SubCode,$AC:$AC,Sheet1!S71_ItemType,$AD:$AD)","v":597381},null,null,null,null,null,null,null,null,null,null,null,null,null,null,null,4101,"IE"]
["Street Lighting and Signal Systems",null,{"$f":"SUMIFS(Sheet1!S71_OriginalBudget,Sheet1!S71_A2SubCode,$AC:$AC,Sheet1!S71_ItemType,$AD:$AD)","v":0},{"$f":"SUMIFS(Sheet1!S71_SpecialAdjustedBudget,Sheet1!S71_A2SubCode,$AC:$AC,Sheet1!S71_ItemType,$AD:$AD)","v":0},null,null,null,null,{"$f":"SUMIFS(Sheet1!S71_AdjustmentAmount,Sheet1!S71_A2SubCode,$AC:$AC,Sheet1!S71_ItemType,$AD:$AD)","v":0},0,0,{"$f":"SUMIFS(Sheet1!S71_OY1AdjustedBudget,Sheet1!S71_A2SubCode,$AC:$AC,Sheet1!S71_ItemType,$AD:$AD)","v":0},{"$f":"SUMIFS(Sheet1!S71_OY2AdjustedBudget,Sheet1!S71_A2SubCode,$AC:$AC,Sheet1!S71_ItemType,$AD:$AD)","v":0},null,null,null,null,null,null,null,null,null,null,null,null,null,null,null,4102,"IE"]
["Nonelectric Energy",null,{"$f":"SUMIFS(Sheet1!S71_OriginalBudget,Sheet1!S71_A2SubCode,$AC:$AC,Sheet1!S71_ItemType,$AD:$AD)","v":0},{"$f":"SUMIFS(Sheet1!S71_SpecialAdjustedBudget,Sheet1!S71_A2SubCode,$AC:$AC,Sheet1!S71_ItemType,$AD:$AD)","v":0},null,null,null,null,{"$f":"SUMIFS(Sheet1!S71_AdjustmentAmount,Sheet1!S71_A2SubCode,$AC:$AC,Sheet1!S71_ItemType,$AD:$AD)","v":0},0,0,{"$f":"SUMIFS(Sheet1!S71_OY1AdjustedBudget,Sheet1!S71_A2SubCode,$AC:$AC,Sheet1!S71_ItemType,$AD:$AD)","v":0},{"$f":"SUMIFS(Sheet1!S71_OY2AdjustedBudget,Sheet1!S71_A2SubCode,$AC:$AC,Sheet1!S71_ItemType,$AD:$AD)","v":0},null,null,null,null,null,null,null,null,null,null,null,null,null,null,null,4103,"IE"]
["Water management",null,{"$f":"SUM(C228:C230)","v":0},0,0,0,0,0,0,0,0,{"$f":"SUM(L228:L230)","v":0},{"$f":"SUM(M228:M230)","v":0},null,null,null,null,null,null,null,null,null,null,null,null,null,null,null,null,""]
["Water Treatment",null,{"$f":"SUMIFS(Sheet1!S71_OriginalBudget,Sheet1!S71_A2SubCode,$AC:$AC,Sheet1!S71_ItemType,$AD:$AD)","v":0},{"$f":"SUMIFS(Sheet1!S71_SpecialAdjustedBudget,Sheet1!S71_A2SubCode,$AC:$AC,Sheet1!S71_ItemType,$AD:$AD)","v":0},null,null,null,null,{"$f":"SUMIFS(Sheet1!S71_AdjustmentAmount,Sheet1!S71_A2SubCode,$AC:$AC,Sheet1!S71_ItemType,$AD:$AD)","v":0},0,0,{"$f":"SUMIFS(Sheet1!S71_OY1AdjustedBudget,Sheet1!S71_A2SubCode,$AC:$AC,Sheet1!S71_ItemType,$AD:$AD)","v":0},{"$f":"SUMIFS(Sheet1!S71_OY2AdjustedBudget,Sheet1!S71_A2SubCode,$AC:$AC,Sheet1!S71_ItemType,$AD:$AD)","v":0},null,null,null,null,null,null,null,null,null,null,null,null,null,null,null,4201,"IE"]
["Water Distribution",null,{"$f":"SUMIFS(Sheet1!S71_OriginalBudget,Sheet1!S71_A2SubCode,$AC:$AC,Sheet1!S71_ItemType,$AD:$AD)","v":0},{"$f":"SUMIFS(Sheet1!S71_SpecialAdjustedBudget,Sheet1!S71_A2SubCode,$AC:$AC,Sheet1!S71_ItemType,$AD:$AD)","v":0},null,null,null,null,{"$f":"SUMIFS(Sheet1!S71_AdjustmentAmount,Sheet1!S71_A2SubCode,$AC:$AC,Sheet1!S71_ItemType,$AD:$AD)","v":0},0,0,{"$f":"SUMIFS(Sheet1!S71_OY1AdjustedBudget,Sheet1!S71_A2SubCode,$AC:$AC,Sheet1!S71_ItemType,$AD:$AD)","v":0},{"$f":"SUMIFS(Sheet1!S71_OY2AdjustedBudget,Sheet1!S71_A2SubCode,$AC:$AC,Sheet1!S71_ItemType,$AD:$AD)","v":0},null,null,null,null,null,null,null,null,null,null,null,null,null,null,null,4202,"IE"]
["Water Storage",null,{"$f":"SUMIFS(Sheet1!S71_OriginalBudget,Sheet1!S71_A2SubCode,$AC:$AC,Sheet1!S71_ItemType,$AD:$AD)","v":0},{"$f":"SUMIFS(Sheet1!S71_SpecialAdjustedBudget,Sheet1!S71_A2SubCode,$AC:$AC,Sheet1!S71_ItemType,$AD:$AD)","v":0},null,null,null,null,{"$f":"SUMIFS(Sheet1!S71_AdjustmentAmount,Sheet1!S71_A2SubCode,$AC:$AC,Sheet1!S71_ItemType,$AD:$AD)","v":0},0,0,{"$f":"SUMIFS(Sheet1!S71_OY1AdjustedBudget,Sheet1!S71_A2SubCode,$AC:$AC,Sheet1!S71_ItemType,$AD:$AD)","v":0},{"$f":"SUMIFS(Sheet1!S71_OY2AdjustedBudget,Sheet1!S71_A2SubCode,$AC:$AC,Sheet1!S71_ItemType,$AD:$AD)","v":0},null,null,null,null,null,null,null,null,null,null,null,null,null,null,null,4203,"IE"]
["Waste water management",null,{"$f":"SUM(C232:C235)","v":0},0,0,0,0,0,0,0,0,{"$f":"SUM(L232:L235)","v":0},{"$f":"SUM(M232:M235)","v":0},null,null,null,null,null,null,null,null,null,null,null,null,null,null,null,null,""]
["Public Toilets",null,{"$f":"SUMIFS(Sheet1!S71_OriginalBudget,Sheet1!S71_A2SubCode,$AC:$AC,Sheet1!S71_ItemType,$AD:$AD)","v":0},{"$f":"SUMIFS(Sheet1!S71_SpecialAdjustedBudget,Sheet1!S71_A2SubCode,$AC:$AC,Sheet1!S71_ItemType,$AD:$AD)","v":0},null,null,null,null,{"$f":"SUMIFS(Sheet1!S71_AdjustmentAmount,Sheet1!S71_A2SubCode,$AC:$AC,Sheet1!S71_ItemType,$AD:$AD)","v":0},0,0,{"$f":"SUMIFS(Sheet1!S71_OY1AdjustedBudget,Sheet1!S71_A2SubCode,$AC:$AC,Sheet1!S71_ItemType,$AD:$AD)","v":0},{"$f":"SUMIFS(Sheet1!S71_OY2AdjustedBudget,Sheet1!S71_A2SubCode,$AC:$AC,Sheet1!S71_ItemType,$AD:$AD)","v":0},null,null,null,null,null,null,null,null,null,null,null,null,null,null,null,4301,"IE"]
["Sewerage",null,{"$f":"SUMIFS(Sheet1!S71_OriginalBudget,Sheet1!S71_A2SubCode,$AC:$AC,Sheet1!S71_ItemType,$AD:$AD)","v":0},{"$f":"SUMIFS(Sheet1!S71_SpecialAdjustedBudget,Sheet1!S71_A2SubCode,$AC:$AC,Sheet1!S71_ItemType,$AD:$AD)","v":0},null,null,null,null,{"$f":"SUMIFS(Sheet1!S71_AdjustmentAmount,Sheet1!S71_A2SubCode,$AC:$AC,Sheet1!S71_ItemType,$AD:$AD)","v":0},0,0,{"$f":"SUMIFS(Sheet1!S71_OY1AdjustedBudget,Sheet1!S71_A2SubCode,$AC:$AC,Sheet1!S71_ItemType,$AD:$AD)","v":0},{"$f":"SUMIFS(Sheet1!S71_OY2AdjustedBudget,Sheet1!S71_A2SubCode,$AC:$AC,Sheet1!S71_ItemType,$AD:$AD)","v":0},null,null,null,null,null,null,null,null,null,null,null,null,null,null,null,4302,"IE"]
["Storm Water Management",null,{"$f":"SUMIFS(Sheet1!S71_OriginalBudget,Sheet1!S71_A2SubCode,$AC:$AC,Sheet1!S71_ItemType,$AD:$AD)","v":0},{"$f":"SUMIFS(Sheet1!S71_SpecialAdjustedBudget,Sheet1!S71_A2SubCode,$AC:$AC,Sheet1!S71_ItemType,$AD:$AD)","v":0},null,null,null,null,{"$f":"SUMIFS(Sheet1!S71_AdjustmentAmount,Sheet1!S71_A2SubCode,$AC:$AC,Sheet1!S71_ItemType,$AD:$AD)","v":0},0,0,{"$f":"SUMIFS(Sheet1!S71_OY1AdjustedBudget,Sheet1!S71_A2SubCode,$AC:$AC,Sheet1!S71_ItemType,$AD:$AD)","v":0},{"$f":"SUMIFS(Sheet1!S71_OY2AdjustedBudget,Sheet1!S71_A2SubCode,$AC:$AC,Sheet1!S71_ItemType,$AD:$AD)","v":0},null,null,null,null,null,null,null,null,null,null,null,null,null,null,null,4303,"IE"]
["Waste Water Treatment",null,{"$f":"SUMIFS(Sheet1!S71_OriginalBudget,Sheet1!S71_A2SubCode,$AC:$AC,Sheet1!S71_ItemType,$AD:$AD)","v":0},{"$f":"SUMIFS(Sheet1!S71_SpecialAdjustedBudget,Sheet1!S71_A2SubCode,$AC:$AC,Sheet1!S71_ItemType,$AD:$AD)","v":0},null,null,null,null,{"$f":"SUMIFS(Sheet1!S71_AdjustmentAmount,Sheet1!S71_A2SubCode,$AC:$AC,Sheet1!S71_ItemType,$AD:$AD)","v":0},0,0,{"$f":"SUMIFS(Sheet1!S71_OY1AdjustedBudget,Sheet1!S71_A2SubCode,$AC:$AC,Sheet1!S71_ItemType,$AD:$AD)","v":0},{"$f":"SUMIFS(Sheet1!S71_OY2AdjustedBudget,Sheet1!S71_A2SubCode,$AC:$AC,Sheet1!S71_ItemType,$AD:$AD)","v":0},null,null,null,null,null,null,null,null,null,null,null,null,null,null,null,4304,"IE"]
["Waste management",null,{"$f":"SUM(C237:C240)","v":1975702},{"$f":"SUM(D237:D240)","v":0},{"$f":"SUM(E237:E240)","v":0},{"$f":"SUM(F237:F240)","v":0},0,0,5282074,5282074,7257776,2145798,2211418,null,null,null,null,null,null,null,null,null,null,null,null,null,null,null,null,""]
["Recycling",null,{"$f":"SUMIFS(Sheet1!S71_OriginalBudget,Sheet1!S71_A2SubCode,$AC:$AC,Sheet1!S71_ItemType,$AD:$AD)","v":0},{"$f":"SUMIFS(Sheet1!S71_SpecialAdjustedBudget,Sheet1!S71_A2SubCode,$AC:$AC,Sheet1!S71_ItemType,$AD:$AD)","v":0},null,null,null,null,{"$f":"SUMIFS(Sheet1!S71_AdjustmentAmount,Sheet1!S71_A2SubCode,$AC:$AC,Sheet1!S71_ItemType,$AD:$AD)","v":0},0,0,{"$f":"SUMIFS(Sheet1!S71_OY1AdjustedBudget,Sheet1!S71_A2SubCode,$AC:$AC,Sheet1!S71_ItemType,$AD:$AD)","v":0},{"$f":"SUMIFS(Sheet1!S71_OY2AdjustedBudget,Sheet1!S71_A2SubCode,$AC:$AC,Sheet1!S71_ItemType,$AD:$AD)","v":0},null,null,null,null,null,null,null,null,null,null,null,null,null,null,null,4401,"IE"]
["Solid Waste Disposal (Landfill Sites)",null,{"$f":"SUMIFS(Sheet1!S71_OriginalBudget,Sheet1!S71_A2SubCode,$AC:$AC,Sheet1!S71_ItemType,$AD:$AD)","v":989202},{"$f":"SUMIFS(Sheet1!S71_SpecialAdjustedBudget,Sheet1!S71_A2SubCode,$AC:$AC,Sheet1!S71_ItemType,$AD:$AD)","v":0},null,null,null,null,{"$f":"SUMIFS(Sheet1!S71_AdjustmentAmount,Sheet1!S71_A2SubCode,$AC:$AC,Sheet1!S71_ItemType,$AD:$AD)","v":-574102},-574102,415100,{"$f":"SUMIFS(Sheet1!S71_OY1AdjustedBudget,Sheet1!S71_A2SubCode,$AC:$AC,Sheet1!S71_ItemType,$AD:$AD)","v":500000},{"$f":"SUMIFS(Sheet1!S71_OY2AdjustedBudget,Sheet1!S71_A2SubCode,$AC:$AC,Sheet1!S71_ItemType,$AD:$AD)","v":500000},null,null,null,null,null,null,null,null,null,null,null,null,null,null,null,4402,"IE"]
["Solid Waste Removal",null,{"$f":"SUMIFS(Sheet1!S71_OriginalBudget,Sheet1!S71_A2SubCode,$AC:$AC,Sheet1!S71_ItemType,$AD:$AD)","v":50000},{"$f":"SUMIFS(Sheet1!S71_SpecialAdjustedBudget,Sheet1!S71_A2SubCode,$AC:$AC,Sheet1!S71_ItemType,$AD:$AD)","v":0},null,null,null,null,{"$f":"SUMIFS(Sheet1!S71_AdjustmentAmount,Sheet1!S71_A2SubCode,$AC:$AC,Sheet1!S71_ItemType,$AD:$AD)","v":5986756},5986756,6036756,{"$f":"SUMIFS(Sheet1!S71_OY1AdjustedBudget,Sheet1!S71_A2SubCode,$AC:$AC,Sheet1!S71_ItemType,$AD:$AD)","v":1144698},{"$f":"SUMIFS(Sheet1!S71_OY2AdjustedBudget,Sheet1!S71_A2SubCode,$AC:$AC,Sheet1!S71_ItemType,$AD:$AD)","v":1196210},null,null,null,null,null,null,null,null,null,null,null,null,null,null,null,4403,"IE"]
["Street Cleaning",null,{"$f":"SUMIFS(Sheet1!S71_OriginalBudget,Sheet1!S71_A2SubCode,$AC:$AC,Sheet1!S71_ItemType,$AD:$AD)","v":936500},{"$f":"SUMIFS(Sheet1!S71_SpecialAdjustedBudget,Sheet1!S71_A2SubCode,$AC:$AC,Sheet1!S71_ItemType,$AD:$AD)","v":0},null,null,null,null,{"$f":"SUMIFS(Sheet1!S71_AdjustmentAmount,Sheet1!S71_A2SubCode,$AC:$AC,Sheet1!S71_ItemType,$AD:$AD)","v":-130580},-130580,805920,{"$f":"SUMIFS(Sheet1!S71_OY1AdjustedBudget,Sheet1!S71_A2SubCode,$AC:$AC,Sheet1!S71_ItemType,$AD:$AD)","v":501100},{"$f":"SUMIFS(Sheet1!S71_OY2AdjustedBudget,Sheet1!S71_A2SubCode,$AC:$AC,Sheet1!S71_ItemType,$AD:$AD)","v":515208},null,null,null,null,null,null,null,null,null,null,null,null,null,null,null,4404,"IE"]
["Other",null,{"$f":"SUM(C242:C247)","v":87932},{"$f":"SUM(D242:D247)","v":0},0,0,0,0,87458,87458,175390,{"$f":"SUM(L242:L247)","v":52250},{"$f":"SUM(M242:M247)","v":54601},null,null,null,null,null,null,null,null,null,null,null,null,null,null,null,null,""]
["Abattoirs",null,{"$f":"SUMIFS(Sheet1!S71_OriginalBudget,Sheet1!S71_A2SubCode,$AC:$AC,Sheet1!S71_ItemType,$AD:$AD)","v":0},{"$f":"SUMIFS(Sheet1!S71_SpecialAdjustedBudget,Sheet1!S71_A2SubCode,$AC:$AC,Sheet1!S71_ItemType,$AD:$AD)","v":0},null,null,null,null,{"$f":"SUMIFS(Sheet1!S71_AdjustmentAmount,Sheet1!S71_A2SubCode,$AC:$AC,Sheet1!S71_ItemType,$AD:$AD)","v":0},0,0,{"$f":"SUMIFS(Sheet1!S71_OY1AdjustedBudget,Sheet1!S71_A2SubCode,$AC:$AC,Sheet1!S71_ItemType,$AD:$AD)","v":0},{"$f":"SUMIFS(Sheet1!S71_OY2AdjustedBudget,Sheet1!S71_A2SubCode,$AC:$AC,Sheet1!S71_ItemType,$AD:$AD)","v":0},null,null,null,null,null,null,null,null,null,null,null,null,null,null,null,5001,"IE"]
["Air Transport",null,{"$f":"SUMIFS(Sheet1!S71_OriginalBudget,Sheet1!S71_A2SubCode,$AC:$AC,Sheet1!S71_ItemType,$AD:$AD)","v":0},{"$f":"SUMIFS(Sheet1!S71_SpecialAdjustedBudget,Sheet1!S71_A2SubCode,$AC:$AC,Sheet1!S71_ItemType,$AD:$AD)","v":0},null,null,null,null,{"$f":"SUMIFS(Sheet1!S71_AdjustmentAmount,Sheet1!S71_A2SubCode,$AC:$AC,Sheet1!S71_ItemType,$AD:$AD)","v":0},0,0,{"$f":"SUMIFS(Sheet1!S71_OY1AdjustedBudget,Sheet1!S71_A2SubCode,$AC:$AC,Sheet1!S71_ItemType,$AD:$AD)","v":0},{"$f":"SUMIFS(Sheet1!S71_OY2AdjustedBudget,Sheet1!S71_A2SubCode,$AC:$AC,Sheet1!S71_ItemType,$AD:$AD)","v":0},null,null,null,null,null,null,null,null,null,null,null,null,null,null,null,5002,"IE"]
["Forestry ",null,{"$f":"SUMIFS(Sheet1!S71_OriginalBudget,Sheet1!S71_A2SubCode,$AC:$AC,Sheet1!S71_ItemType,$AD:$AD)","v":0},{"$f":"SUMIFS(Sheet1!S71_SpecialAdjustedBudget,Sheet1!S71_A2SubCode,$AC:$AC,Sheet1!S71_ItemType,$AD:$AD)","v":0},null,null,null,null,{"$f":"SUMIFS(Sheet1!S71_AdjustmentAmount,Sheet1!S71_A2SubCode,$AC:$AC,Sheet1!S71_ItemType,$AD:$AD)","v":0},0,0,{"$f":"SUMIFS(Sheet1!S71_OY1AdjustedBudget,Sheet1!S71_A2SubCode,$AC:$AC,Sheet1!S71_ItemType,$AD:$AD)","v":0},{"$f":"SUMIFS(Sheet1!S71_OY2AdjustedBudget,Sheet1!S71_A2SubCode,$AC:$AC,Sheet1!S71_ItemType,$AD:$AD)","v":0},null,null,null,null,null,null,null,null,null,null,null,null,null,null,null,5003,"IE"]
["Licensing and Regulation",null,{"$f":"SUMIFS(Sheet1!S71_OriginalBudget,Sheet1!S71_A2SubCode,$AC:$AC,Sheet1!S71_ItemType,$AD:$AD)","v":0},{"$f":"SUMIFS(Sheet1!S71_SpecialAdjustedBudget,Sheet1!S71_A2SubCode,$AC:$AC,Sheet1!S71_ItemType,$AD:$AD)","v":0},null,null,null,null,{"$f":"SUMIFS(Sheet1!S71_AdjustmentAmount,Sheet1!S71_A2SubCode,$AC:$AC,Sheet1!S71_ItemType,$AD:$AD)","v":0},0,0,{"$f":"SUMIFS(Sheet1!S71_OY1AdjustedBudget,Sheet1!S71_A2SubCode,$AC:$AC,Sheet1!S71_ItemType,$AD:$AD)","v":0},{"$f":"SUMIFS(Sheet1!S71_OY2AdjustedBudget,Sheet1!S71_A2SubCode,$AC:$AC,Sheet1!S71_ItemType,$AD:$AD)","v":0},null,null,null,null,null,null,null,null,null,null,null,null,null,null,null,5004,"IE"]
["Markets",null,{"$f":"SUMIFS(Sheet1!S71_OriginalBudget,Sheet1!S71_A2SubCode,$AC:$AC,Sheet1!S71_ItemType,$AD:$AD)","v":0},{"$f":"SUMIFS(Sheet1!S71_SpecialAdjustedBudget,Sheet1!S71_A2SubCode,$AC:$AC,Sheet1!S71_ItemType,$AD:$AD)","v":0},null,null,null,null,{"$f":"SUMIFS(Sheet1!S71_AdjustmentAmount,Sheet1!S71_A2SubCode,$AC:$AC,Sheet1!S71_ItemType,$AD:$AD)","v":0},0,0,{"$f":"SUMIFS(Sheet1!S71_OY1AdjustedBudget,Sheet1!S71_A2SubCode,$AC:$AC,Sheet1!S71_ItemType,$AD:$AD)","v":0},{"$f":"SUMIFS(Sheet1!S71_OY2AdjustedBudget,Sheet1!S71_A2SubCode,$AC:$AC,Sheet1!S71_ItemType,$AD:$AD)","v":0},null,null,null,null,null,null,null,null,null,null,null,null,null,null,null,5005,"IE"]
["Tourism",null,{"$f":"SUMIFS(Sheet1!S71_OriginalBudget,Sheet1!S71_A2SubCode,$AC:$AC,Sheet1!S71_ItemType,$AD:$AD)","v":87932},{"$f":"SUMIFS(Sheet1!S71_SpecialAdjustedBudget,Sheet1!S71_A2SubCode,$AC:$AC,Sheet1!S71_ItemType,$AD:$AD)","v":0},null,null,null,null,{"$f":"SUMIFS(Sheet1!S71_AdjustmentAmount,Sheet1!S71_A2SubCode,$AC:$AC,Sheet1!S71_ItemType,$AD:$AD)","v":87458},87458,175390,{"$f":"SUMIFS(Sheet1!S71_OY1AdjustedBudget,Sheet1!S71_A2SubCode,$AC:$AC,Sheet1!S71_ItemType,$AD:$AD)","v":52250},{"$f":"SUMIFS(Sheet1!S71_OY2AdjustedBudget,Sheet1!S71_A2SubCode,$AC:$AC,Sheet1!S71_ItemType,$AD:$AD)","v":54601},null,null,null,null,null,null,null,null,null,null,null,null,null,null,null,5006,"IE"]
[{"$f":"\"Total \"&A128","v":"Total Expenditure - Functional"},3,{"$f":"C129+C149+C198+C222+C241","v":216283136},0,0,0,0,0,6040758,6040758,222323894,{"$f":"L129+L149+L198+L222+L241","v":222217173},{"$f":"M129+M149+M198+M222+M241","v":234003963}]
[{"$f":"result","v":"Surplus/ (Deficit) for the year"},null,{"$f":"C126-C248","v":47208013},0,0,0,0,0,-6144104,-6144104,41063909,{"$f":"L126-L248","v":49155975},{"$f":"M126-M248","v":53640876}]
[{"$f":"head27a","v":"References"}]
["1. Government Finance Statistics Functions and Sub-functions are standardised to assist national and international accounts and comparison"]
["2. Total Revenue by Functional Classification must reconcile to total operating revenue shown in Financial Performance (revenue and expenditure)"]
["3. Total Expenditure by Functional Classification must reconcile to total operating expenditure shown in Financial Performance (revenue and expenditure)"]
["4. All amounts must be classified under a Functional classification. The GFS function 'Other' is only for Abbatoirs, Air Transport, Licensing and Regulation, Markets and Tourism - and if used must be supported by footnotes. Nothing else may be placed under 'Other'. Assign associate share to relevant classification"]

{"sheet":"B3-FinPerf V","index":27,"n_rows":55,"n_cols":13,"rows_kept":55,"cut":false,"hidden":false,"merged":[[51,0,51,12],[47,0,47,12],[49,0,49,12],[1,0,2,0],[1,1,4,1],[1,2,1,10],[44,0,44,12],[45,0,45,12],[46,0,46,12]]}
[{"$f":"muni&\" - \"&_ADJ2&\" - \"&Date","v":"EC139 Enoch Mgijima - Table B3 Adjustments Budget Financial Performance (revenue and expenditure by municipal vote) - "}]
[{"$f":"Vdesc","v":"Vote Description"},{"$f":"head27","v":"Ref"},{"$f":"Head2","v":"Budget Year 2021/22"},null,null,null,null,null,null,null,null,{"$f":"Head10","v":"Budget Year +1 2022/23"},{"$f":"Head11","v":"Budget Year +2 2023/24"}]
[null,null,{"$f":"Head6","v":"Original Budget"},{"$f":"Head54","v":"Prior Adjusted"},{"$f":"Head51","v":"Accum. Funds"},{"$f":"Head52","v":"Multi-year capital"},{"$f":"Head53","v":"Unfore. Unavoid."},{"$f":"Head55","v":"Nat. or Prov. Govt"},{"$f":"Head50","v":"Other Adjusts."},{"$f":"Head56","v":"Total Adjusts."},{"$f":"Head7","v":"Adjusted Budget"},{"$f":"Head7","v":"Adjusted Budget"},{"$f":"Head7","v":"Adjusted Budget"}]
["[Insert departmental structure etc]",null,null,3,4,5,6,7,8,9,10]
["R thousands",null,"A","A1","B","C","D","E","F","G","H"]
["Revenue by Vote",1]
[{"$f":"B3B!A7","v":"Vote 1 - Finance and Admin"},null,{"$f":"B3B!C7","v":214233708},{"$f":"B3B!D7","v":0},{"$f":"B3B!E7","v":0},{"$f":"B3B!F7","v":0},{"$f":"B3B!G7","v":0},{"$f":"B3B!H7","v":0},{"$f":"B3B!I7","v":-136428},{"$f":"SUM(E7:I7)","v":-136428},{"$f":"IF(D7=0,C7+J7,D7+J7)","v":214097280},{"$f":"B3B!L7","v":226090462},{"$f":"B3B!M7","v":240409179}]
[{"$f":"B3B!A18","v":"Vote 2 - Executive and council"},null,{"$f":"B3B!C18","v":0},{"$f":"B3B!D18","v":0},{"$f":"B3B!E18","v":0},{"$f":"B3B!F18","v":0},{"$f":"B3B!G18","v":0},{"$f":"B3B!H18","v":0},{"$f":"B3B!I18","v":0},0,0,{"$f":"B3B!L18","v":0},{"$f":"B3B!M18","v":0}]
[{"$f":"B3B!A29","v":"Vote 3 - Community and social services"},null,{"$f":"B3B!C29","v":10849654},{"$f":"B3B!D29","v":0},{"$f":"B3B!E29","v":0},{"$f":"B3B!F29","v":0},{"$f":"B3B!G29","v":0},{"$f":"B3B!H29","v":0},{"$f":"B3B!I29","v":-4000000},-4000000,6849654,{"$f":"B3B!L29","v":2957186},{"$f":"B3B!M29","v":2958346}]
[{"$f":"B3B!A40","v":"Vote 4 - Internal Audit"},null,{"$f":"B3B!C40","v":0},{"$f":"B3B!D40","v":0},{"$f":"B3B!E40","v":0},{"$f":"B3B!F40","v":0},{"$f":"B3B!G40","v":0},{"$f":"B3B!H40","v":0},{"$f":"B3B!I40","v":0},0,0,{"$f":"B3B!L40","v":0},{"$f":"B3B!M40","v":0}]
[{"$f":"B3B!A51","v":"Vote 5 - Waste Management"},null,{"$f":"B3B!C51","v":208500},{"$f":"B3B!D51","v":0},{"$f":"B3B!E51","v":0},{"$f":"B3B!F51","v":0},{"$f":"B3B!G51","v":0},{"$f":"B3B!H51","v":0},{"$f":"B3B!I51","v":415860},415860,624360,{"$f":"B3B!L51","v":475011},{"$f":"B3B!M51","v":497811}]
[{"$f":"B3B!A62","v":"Vote 6 - Energy Sources"},null,{"$f":"B3B!C62","v":0},{"$f":"B3B!D62","v":0},{"$f":"B3B!E62","v":0},{"$f":"B3B!F62","v":0},{"$f":"B3B!G62","v":0},{"$f":"B3B!H62","v":0},{"$f":"B3B!I62","v":0},0,0,{"$f":"B3B!L62","v":0},{"$f":"B3B!M62","v":0}]
[{"$f":"B3B!A73","v":"Vote 7 - Planning and Development"},null,{"$f":"B3B!C73","v":1224841},{"$f":"B3B!D73","v":0},{"$f":"B3B!E73","v":0},{"$f":"B3B!F73","v":0},{"$f":"B3B!G73","v":0},{"$f":"B3B!H73","v":0},{"$f":"B3B!I73","v":1156652},1156652,2381493,{"$f":"B3B!L73","v":-2076106},{"$f":"B3B!M73","v":-2168131}]
[{"$f":"B3B!A84","v":"Vote 8 - Public Safety"},null,{"$f":"B3B!C84","v":0},{"$f":"B3B!D84","v":0},{"$f":"B3B!E84","v":0},{"$f":"B3B!F84","v":0},{"$f":"B3B!G84","v":0},{"$f":"B3B!H84","v":0},{"$f":"B3B!I84","v":0},0,0,{"$f":"B3B!L84","v":0},{"$f":"B3B!M84","v":0}]
[{"$f":"B3B!A95","v":"Vote 9 - Roads"},null,{"$f":"B3B!C95","v":30600851},{"$f":"B3B!D95","v":0},{"$f":"B3B!E95","v":0},{"$f":"B3B!F95","v":0},{"$f":"B3B!G95","v":0},{"$f":"B3B!H95","v":0},{"$f":"B3B!I95","v":2779178},2779178,33380029,{"$f":"B3B!L95","v":38361612},{"$f":"B3B!M95","v":40097947}]
[{"$f":"B3B!A106","v":"Vote 10 - Sport and Recreation"},null,{"$f":"B3B!C106","v":0},{"$f":"B3B!D106","v":0},{"$f":"B3B!E106","v":0},{"$f":"B3B!F106","v":0},{"$f":"B3B!G106","v":0},{"$f":"B3B!H106","v":0},{"$f":"B3B!I106","v":0},0,0,{"$f":"B3B!L106","v":0},{"$f":"B3B!M106","v":0}]
[{"$f":"B3B!A117","v":"Vote 11 - [NAME OF VOTE 11]"},null,{"$f":"B3B!C117","v":0},{"$f":"B3B!D117","v":0},{"$f":"B3B!E117","v":0},{"$f":"B3B!F117","v":0},{"$f":"B3B!G117","v":0},{"$f":"B3B!H117","v":0},{"$f":"B3B!I117","v":0},0,0,{"$f":"B3B!L117","v":0},{"$f":"B3B!M117","v":0}]
[{"$f":"B3B!A128","v":"Vote 12 - [NAME OF VOTE 12]"},null,{"$f":"B3B!C128","v":0},{"$f":"B3B!D128","v":0},{"$f":"B3B!E128","v":0},{"$f":"B3B!F128","v":0},{"$f":"B3B!G128","v":0},{"$f":"B3B!H128","v":0},{"$f":"B3B!I128","v":0},0,0,{"$f":"B3B!L128","v":0},{"$f":"B3B!M128","v":0}]
[{"$f":"B3B!A139","v":"Vote 13 - [NAME OF VOTE 13]"},null,{"$f":"B3B!C139","v":0},{"$f":"B3B!D139","v":0},{"$f":"B3B!E139","v":0},{"$f":"B3B!F139","v":0},{"$f":"B3B!G139","v":0},{"$f":"B3B!H139","v":0},{"$f":"B3B!I139","v":0},0,0,{"$f":"B3B!L139","v":0},{"$f":"B3B!M139","v":0}]
[{"$f":"B3B!A150","v":"Vote 14 - [NAME OF VOTE 14]"},null,{"$f":"B3B!C150","v":0},{"$f":"B3B!D150","v":0},{"$f":"B3B!E150","v":0},{"$f":"B3B!F150","v":0},{"$f":"B3B!G150","v":0},{"$f":"B3B!H150","v":0},{"$f":"B3B!I150","v":0},0,0,{"$f":"B3B!L150","v":0},{"$f":"B3B!M150","v":0}]
[{"$f":"B3B!A161","v":"Vote 15 - [NAME OF VOTE 15]"},null,{"$f":"B3B!C161","v":0},{"$f":"B3B!D161","v":0},{"$f":"B3B!E161","v":0},{"$f":"B3B!F161","v":0},{"$f":"B3B!G161","v":0},{"$f":"B3B!H161","v":0},{"$f":"B3B!I161","v":0},0,0,{"$f":"B3B!L161","v":0},{"$f":"B3B!M161","v":0}]
["Total Revenue by Vote",2,{"$f":"SUM(C7:C21)","v":257117554},{"$f":"SUM(D7:D21)","v":0},0,0,0,0,215262,{"$f":"SUM(J7:J21)","v":215262},257332816,{"$f":"SUM(L7:L21)","v":265808165},{"$f":"SUM(M7:M21)","v":281795152}]
[]
["Expenditure by Vote",1]
[{"$f":"B3B!A175","v":"Vote 1 - Finance and Admin"},null,{"$f":"B3B!C175","v":83042240},{"$f":"B3B!D175","v":0},{"$f":"B3B!E175","v":0},{"$f":"B3B!F175","v":0},{"$f":"B3B!G175","v":0},{"$f":"B3B!H175","v":0},{"$f":"B3B!I175","v":-2935597},{"$f":"SUM(E25:I25)","v":-2935597},{"$f":"IF(D25=0,C25+J25,D25+J25)","v":80106643},{"$f":"B3B!L175","v":83368479},{"$f":"B3B!M175","v":88905411}]
[{"$f":"B3B!A186","v":"Vote 2 - Executive and council"},null,{"$f":"B3B!C186","v":39900756},{"$f":"B3B!D186","v":0},{"$f":"B3B!E186","v":0},{"$f":"B3B!F186","v":0},{"$f":"B3B!G186","v":0},{"$f":"B3B!H186","v":0},{"$f":"B3B!I186","v":3857278},3857278,43758034,{"$f":"B3B!L186","v":35155333},{"$f":"B3B!M186","v":36776676}]
[{"$f":"B3B!A197","v":"Vote 3 - Community and social services"},null,{"$f":"B3B!C197","v":36770157},{"$f":"B3B!D197","v":0},{"$f":"B3B!E197","v":0},{"$f":"B3B!F197","v":0},{"$f":"B3B!G197","v":0},{"$f":"B3B!H197","v":0},{"$f":"B3B!I197","v":5606689},5606689,42376846,{"$f":"B3B!L197","v":42978479},{"$f":"B3B!M197","v":44908010}]
[{"$f":"B3B!A208","v":"Vote 4 - Internal Audit"},null,{"$f":"B3B!C208","v":2672000},{"$f":"B3B!D208","v":0},{"$f":"B3B!E208","v":0},{"$f":"B3B!F208","v":0},{"$f":"B3B!G208","v":0},{"$f":"B3B!H208","v":0},{"$f":"B3B!I208","v":-1000000},-1000000,1672000,{"$f":"B3B!L208","v":1724250},{"$f":"B3B!M208","v":1801841}]
[{"$f":"B3B!A219","v":"Vote 5 - Waste Management"},null,{"$f":"B3B!C219","v":1975702},{"$f":"B3B!D219","v":0},{"$f":"B3B!E219","v":0},{"$f":"B3B!F219","v":0},{"$f":"B3B!G219","v":0},{"$f":"B3B!H219","v":0},{"$f":"B3B!I219","v":5282074},5282074,7257776,{"$f":"B3B!L219","v":2145798},{"$f":"B3B!M219","v":2211418}]
[{"$f":"B3B!A230","v":"Vote 6 - Energy Sources"},null,{"$f":"B3B!C230","v":571657},{"$f":"B3B!D230","v":0},{"$f":"B3B!E230","v":0},{"$f":"B3B!F230","v":0},{"$f":"B3B!G230","v":0},{"$f":"B3B!H230","v":0},{"$f":"B3B!I230","v":-150000},-150000,421657,{"$f":"B3B!L230","v":571657},{"$f":"B3B!M230","v":597381}]
[{"$f":"B3B!A241","v":"Vote 7 - Planning and Development"},null,{"$f":"B3B!C241","v":30674797},{"$f":"B3B!D241","v":0},{"$f":"B3B!E241","v":0},{"$f":"B3B!F241","v":0},{"$f":"B3B!G241","v":0},{"$f":"B3B!H241","v":0},{"$f":"B3B!I241","v":-6010212},-6010212,24664585,{"$f":"B3B!L241","v":32896755},{"$f":"B3B!M241","v":34377111}]
[{"$f":"B3B!A252","v":"Vote 8 - Public Safety"},null,{"$f":"B3B!C252","v":0},{"$f":"B3B!D252","v":0},{"$f":"B3B!E252","v":0},{"$f":"B3B!F252","v":0},{"$f":"B3B!G252","v":0},{"$f":"B3B!H252","v":0},{"$f":"B3B!I252","v":0},0,0,{"$f":"B3B!L252","v":50000},{"$f":"B3B!M252","v":50000}]
[{"$f":"B3B!A263","v":"Vote 9 - Roads"},null,{"$f":"B3B!C263","v":3707500},{"$f":"B3B!D263","v":0},{"$f":"B3B!E263","v":0},{"$f":"B3B!F263","v":0},{"$f":"B3B!G263","v":0},{"$f":"B3B!H263","v":0},{"$f":"B3B!I263","v":1294648},1294648,5002148,{"$f":"B3B!L263","v":3918750},{"$f":"B3B!M263","v":4095094}]
[{"$f":"B3B!A274","v":"Vote 10 - Sport and Recreation"},null,{"$f":"B3B!C274","v":0},{"$f":"B3B!D274","v":0},{"$f":"B3B!E274","v":0},{"$f":"B3B!F274","v":0},{"$f":"B3B!G274","v":0},{"$f":"B3B!H274","v":0},{"$f":"B3B!I274","v":0},0,0,{"$f":"B3B!L274","v":0},{"$f":"B3B!M274","v":0}]
[{"$f":"B3B!A285","v":"Vote 11 - [NAME OF VOTE 11]"},null,{"$f":"B3B!C285","v":0},{"$f":"B3B!D285","v":0},{"$f":"B3B!E285","v":0},{"$f":"B3B!F285","v":0},{"$f":"B3B!G285","v":0},{"$f":"B3B!H285","v":0},{"$f":"B3B!I285","v":0},0,0,{"$f":"B3B!L285","v":0},{"$f":"B3B!M285","v":0}]
[{"$f":"B3B!A296","v":"Vote 12 - [NAME OF VOTE 12]"},null,{"$f":"B3B!C296","v":0},{"$f":"B3B!D296","v":0},{"$f":"B3B!E296","v":0},{"$f":"B3B!F296","v":0},{"$f":"B3B!G296","v":0},{"$f":"B3B!H296","v":0},{"$f":"B3B!I296","v":0},0,0,{"$f":"B3B!L296","v":0},{"$f":"B3B!M296","v":0}]
[{"$f":"B3B!A307","v":"Vote 13 - [NAME OF VOTE 13]"},null,{"$f":"B3B!C307","v":0},{"$f":"B3B!D307","v":0},{"$f":"B3B!E307","v":0},{"$f":"B3B!F307","v":0},{"$f":"B3B!G307","v":0},{"$f":"B3B!H307","v":0},{"$f":"B3B!I307","v":0},0,0,{"$f":"B3B!L307","v":0},{"$f":"B3B!M307","v":0}]
[{"$f":"B3B!A318","v":"Vote 14 - [NAME OF VOTE 14]"},null,{"$f":"B3B!C318","v":0},{"$f":"B3B!D318","v":0},{"$f":"B3B!E318","v":0},{"$f":"B3B!F318","v":0},{"$f":"B3B!G318","v":0},{"$f":"B3B!H318","v":0},{"$f":"B3B!I318","v":0},0,0,{"$f":"B3B!L318","v":0},{"$f":"B3B!M318","v":0}]
[{"$f":"B3B!A329","v":"Vote 15 - [NAME OF VOTE 15]"},null,{"$f":"B3B!C329","v":0},{"$f":"B3B!D329","v":0},{"$f":"B3B!E329","v":0},{"$f":"B3B!F329","v":0},{"$f":"B3B!G329","v":0},{"$f":"B3B!H329","v":0},{"$f":"B3B!I329","v":0},0,0,{"$f":"B3B!L329","v":0},{"$f":"B3B!M329","v":0}]
["Total Expenditure by Vote",2,{"$f":"SUM(C25:C39)","v":199314809},{"$f":"SUM(D25:D39)","v":0},0,0,0,0,5944880,{"$f":"SUM(J25:J39)","v":5944880},{"$f":"SUM(K25:K39)","v":205259689},{"$f":"SUM(L25:L39)","v":202809501},{"$f":"SUM(M25:M39)","v":213722942}]
[{"$f":"result","v":"Surplus/ (Deficit) for the year"},2,{"$f":"C22-C40","v":57802745},{"$f":"D22-D40","v":0},0,0,0,0,-5729618,-5729618,52073127,62998664,68072210]
[{"$f":"head27a","v":"References"}]
["1. Insert 'Vote'; e.g. Department, if different to standard classification structure"]
["2. Must reconcile to Budgeted Financial Performance (revenue and expenditure)"]
["3. Only complete if a previous adjusted budget has been approved in the same financial year. Reflect most recent adjusted budget."]
["4. Additional cash-backed accumulated funds/unspent funds (MFMA section 18(1)(b) and section 28(2)(e)) identified after the Original Budget approved and after annual financial statements audited (note: only where underspending could not reasonably have been foreseen)"]
["5. Increases of funds approved under MFMA section 31"]
["6. Adjustments approved in accordance with MFMA section 29 "]
["7. Adjustments to transfers from National or Provincial Government"]
["8. Adjusts. = 'Other' Adjustments proposed to be approved; including revenue under-collection (MFMA section 28(2)(a)); additional revenue appropriation on existing programmes (section 28(2))(b); projected savings (section 28(2)(d)); error correction (section 28(2)(f))"]
["9. G = B + C + D + E + F"]
["10. Adjusted Budget H = (A or A1/2 etc) + G"]
[]
["check revenue",null,{"$f":"C22-'B4-FinPerf RE'!C62","v":-6373595},{"$f":"D22-'B4-FinPerf RE'!D62","v":0},{"$f":"E22-'B4-FinPerf RE'!E62","v":0},{"$f":"F22-'B4-FinPerf RE'!F62","v":0},{"$f":"G22-'B4-FinPerf RE'!G62","v":0},{"$f":"H22-'B4-FinPerf RE'!H62","v":0},{"$f":"I22-'B4-FinPerf RE'!I62","v":318608},{"$f":"J22-'B4-FinPerf RE'!J62","v":318608},{"$f":"K22-'B4-FinPerf RE'!K62","v":-6054987},{"$f":"L22-'B4-FinPerf RE'!L62","v":-5564983},{"$f":"M22-'B4-FinPerf RE'!M62","v":-5849687}]
["check expenditure",null,{"$f":"C40-'B4-FinPerf RE'!C37","v":-16968327},{"$f":"D40-'B4-FinPerf RE'!D37","v":0},{"$f":"E40-'B4-FinPerf RE'!E37","v":0},{"$f":"F40-'B4-FinPerf RE'!F37","v":0},{"$f":"G40-'B4-FinPerf RE'!G37","v":0},{"$f":"H40-'B4-FinPerf RE'!H37","v":0},{"$f":"I40-'B4-FinPerf RE'!I37","v":-95878},{"$f":"J40-'B4-FinPerf RE'!J37","v":-95878},{"$f":"K40-'B4-FinPerf RE'!K37","v":-17064205},{"$f":"L40-'B4-FinPerf RE'!L37","v":-18870931},{"$f":"M40-'B4-FinPerf RE'!M37","v":-19728568}]

{"sheet":"B3B","index":28,"n_rows":346,"n_cols":30,"rows_kept":346,"cut":false,"hidden":false,"merged":[[1,0,2,0],[1,1,4,1],[1,2,1,10]]}
[{"$f":"muni&\" - \"&_ADJ2&\" - B\"&\" - \"&Date","v":"EC139 Enoch Mgijima - Table B3 Adjustments Budget Financial Performance (revenue and expenditure by municipal vote) - B - "}]
[{"$f":"Vdesc","v":"Vote Description"},{"$f":"head27","v":"Ref"},{"$f":"Head2","v":"Budget Year 2021/22"},null,null,null,null,null,null,null,null,{"$f":"Head10","v":"Budget Year +1 2022/23"},{"$f":"Head11","v":"Budget Year +2 2023/24"}]
[null,null,{"$f":"Head6","v":"Original Budget"},{"$f":"Head54","v":"Prior Adjusted"},{"$f":"Head51","v":"Accum. Funds"},{"$f":"Head52","v":"Multi-year capital"},{"$f":"Head53","v":"Unfore. Unavoid."},{"$f":"Head55","v":"Nat. or Prov. Govt"},{"$f":"Head50","v":"Other Adjusts."},{"$f":"Head56","v":"Total Adjusts."},{"$f":"Head7","v":"Adjusted Budget"},{"$f":"Head7","v":"Adjusted Budget"},{"$f":"Head7","v":"Adjusted Budget"}]
["[Insert departmental structure etc]",null,null,3,4,5,6,7,8,9,10]
["R thousands",null,"A","A1","B","C","D","E","F","G","H"]
["Revenue by Vote",1]
[{"$f":"'Org structure'!A2","v":"Vote 1 - Finance and Admin"},null,{"$f":"SUM(C8:C17)","v":214233708},{"$f":"SUM(D8:D17)","v":0},0,0,0,0,-136428,{"$f":"SUM(E7:I7)","v":-136428},{"$f":"IF(D7=0,C7+J7,D7+J7)","v":214097280},{"$f":"SUM(L8:L17)","v":226090462},{"$f":"SUM(M8:M17)","v":240409179}]
[{"$f":"IF(RIGHT('Org structure'!D3,18)<>\"[Name of sub-vote]\",'Org structure'!D3,\"\")","v":"1.1 - Supply Chain Management"},null,{"$f":"-SUMIFS(Sheet1!S71_OriginalBudget,Sheet1!S71_SubMunicipalVoteNo,$AC:$AC,Sheet1!S71_ItemType,$AD:$AD)","v":0},{"$f":"-SUMIFS(Sheet1!S71_SpecialAdjustedBudget,Sheet1!S71_SubMunicipalVoteNo,$AC:$AC,Sheet1!S71_ItemType,$AD:$AD)","v":0},null,null,null,null,{"$f":"SUMIFS(Sheet1!S71_AdjustmentAmount,Sheet1!S71_SubMunicipalVoteNo,$AC:$AC,Sheet1!S71_ItemType,$AD:$AD)","v":0},{"$f":"SUM(E8:I8)","v":0},{"$f":"IF(D8=0,C8+J8,D8+J8)","v":0},{"$f":"-SUMIFS(Sheet1!S71_OY1AdjustedBudget,Sheet1!S71_SubMunicipalVoteNo,$AC:$AC,Sheet1!S71_ItemType,$AD:$AD)","v":0},{"$f":"-SUMIFS(Sheet1!S71_OY2AdjustedBudget,Sheet1!S71_SubMunicipalVoteNo,$AC:$AC,Sheet1!S71_ItemType,$AD:$AD)","v":0},null,null,null,null,null,null,null,null,null,null,null,null,null,null,null,11,"IR"]
[{"$f":"IF(RIGHT('Org structure'!D4,18)<>\"[Name of sub-vote]\",'Org structure'!D4,\"\")","v":"1.2 - Finance"},null,{"$f":"-SUMIFS(Sheet1!S71_OriginalBudget,Sheet1!S71_SubMunicipalVoteNo,$AC:$AC,Sheet1!S71_ItemType,$AD:$AD)","v":214159229},{"$f":"-SUMIFS(Sheet1!S71_SpecialAdjustedBudget,Sheet1!S71_SubMunicipalVoteNo,$AC:$AC,Sheet1!S71_ItemType,$AD:$AD)","v":0},null,null,null,null,{"$f":"SUMIFS(Sheet1!S71_AdjustmentAmount,Sheet1!S71_SubMunicipalVoteNo,$AC:$AC,Sheet1!S71_ItemType,$AD:$AD)","v":-124062},-124062,214035167,{"$f":"-SUMIFS(Sheet1!S71_OY1AdjustedBudget,Sheet1!S71_SubMunicipalVoteNo,$AC:$AC,Sheet1!S71_ItemType,$AD:$AD)","v":226012408},{"$f":"-SUMIFS(Sheet1!S71_OY2AdjustedBudget,Sheet1!S71_SubMunicipalVoteNo,$AC:$AC,Sheet1!S71_ItemType,$AD:$AD)","v":240327378},null,null,null,null,null,null,null,null,null,null,null,null,null,null,null,12,"IR"]
[{"$f":"IF(RIGHT('Org structure'!D5,18)<>\"[Name of sub-vote]\",'Org structure'!D5,\"\")","v":"1.3 - Fleet Management"},null,{"$f":"-SUMIFS(Sheet1!S71_OriginalBudget,Sheet1!S71_SubMunicipalVoteNo,$AC:$AC,Sheet1!S71_ItemType,$AD:$AD)","v":0},{"$f":"-SUMIFS(Sheet1!S71_SpecialAdjustedBudget,Sheet1!S71_SubMunicipalVoteNo,$AC:$AC,Sheet1!S71_ItemType,$AD:$AD)","v":0},null,null,null,null,{"$f":"SUMIFS(Sheet1!S71_AdjustmentAmount,Sheet1!S71_SubMunicipalVoteNo,$AC:$AC,Sheet1!S71_ItemType,$AD:$AD)","v":0},0,0,{"$f":"-SUMIFS(Sheet1!S71_OY1AdjustedBudget,Sheet1!S71_SubMunicipalVoteNo,$AC:$AC,Sheet1!S71_ItemType,$AD:$AD)","v":0},{"$f":"-SUMIFS(Sheet1!S71_OY2AdjustedBudget,Sheet1!S71_SubMunicipalVoteNo,$AC:$AC,Sheet1!S71_ItemType,$AD:$AD)","v":0},null,null,null,null,null,null,null,null,null,null,null,null,null,null,null,13,"IR"]
[{"$f":"IF(RIGHT('Org structure'!D6,18)<>\"[Name of sub-vote]\",'Org structure'!D6,\"\")","v":"1.4 - Security Services"},null,{"$f":"-SUMIFS(Sheet1!S71_OriginalBudget,Sheet1!S71_SubMunicipalVoteNo,$AC:$AC,Sheet1!S71_ItemType,$AD:$AD)","v":0},{"$f":"-SUMIFS(Sheet1!S71_SpecialAdjustedBudget,Sheet1!S71_SubMunicipalVoteNo,$AC:$AC,Sheet1!S71_ItemType,$AD:$AD)","v":0},null,null,null,null,{"$f":"SUMIFS(Sheet1!S71_AdjustmentAmount,Sheet1!S71_SubMunicipalVoteNo,$AC:$AC,Sheet1!S71_ItemType,$AD:$AD)","v":0},0,0,{"$f":"-SUMIFS(Sheet1!S71_OY1AdjustedBudget,Sheet1!S71_SubMunicipalVoteNo,$AC:$AC,Sheet1!S71_ItemType,$AD:$AD)","v":0},{"$f":"-SUMIFS(Sheet1!S71_OY2AdjustedBudget,Sheet1!S71_SubMunicipalVoteNo,$AC:$AC,Sheet1!S71_ItemType,$AD:$AD)","v":0},null,null,null,null,null,null,null,null,null,null,null,null,null,null,null,14,"IR"]
[{"$f":"IF(RIGHT('Org structure'!D7,18)<>\"[Name of sub-vote]\",'Org structure'!D7,\"\")","v":"1.5 - Information Technology"},null,{"$f":"-SUMIFS(Sheet1!S71_OriginalBudget,Sheet1!S71_SubMunicipalVoteNo,$AC:$AC,Sheet1!S71_ItemType,$AD:$AD)","v":0},{"$f":"-SUMIFS(Sheet1!S71_SpecialAdjustedBudget,Sheet1!S71_SubMunicipalVoteNo,$AC:$AC,Sheet1!S71_ItemType,$AD:$AD)","v":0},null,null,null,null,{"$f":"SUMIFS(Sheet1!S71_AdjustmentAmount,Sheet1!S71_SubMunicipalVoteNo,$AC:$AC,Sheet1!S71_ItemType,$AD:$AD)","v":0},0,0,{"$f":"-SUMIFS(Sheet1!S71_OY1AdjustedBudget,Sheet1!S71_SubMunicipalVoteNo,$AC:$AC,Sheet1!S71_ItemType,$AD:$AD)","v":0},{"$f":"-SUMIFS(Sheet1!S71_OY2AdjustedBudget,Sheet1!S71_SubMunicipalVoteNo,$AC:$AC,Sheet1!S71_ItemType,$AD:$AD)","v":0},null,null,null,null,null,null,null,null,null,null,null,null,null,null,null,15,"IR"]
[{"$f":"IF(RIGHT('Org structure'!D8,18)<>\"[Name of sub-vote]\",'Org structure'!D8,\"\")","v":"1.6 - Human Resources"},null,{"$f":"-SUMIFS(Sheet1!S71_OriginalBudget,Sheet1!S71_SubMunicipalVoteNo,$AC:$AC,Sheet1!S71_ItemType,$AD:$AD)","v":0},{"$f":"-SUMIFS(Sheet1!S71_SpecialAdjustedBudget,Sheet1!S71_SubMunicipalVoteNo,$AC:$AC,Sheet1!S71_ItemType,$AD:$AD)","v":0},null,null,null,null,{"$f":"SUMIFS(Sheet1!S71_AdjustmentAmount,Sheet1!S71_SubMunicipalVoteNo,$AC:$AC,Sheet1!S71_ItemType,$AD:$AD)","v":0},0,0,{"$f":"-SUMIFS(Sheet1!S71_OY1AdjustedBudget,Sheet1!S71_SubMunicipalVoteNo,$AC:$AC,Sheet1!S71_ItemType,$AD:$AD)","v":0},{"$f":"-SUMIFS(Sheet1!S71_OY2AdjustedBudget,Sheet1!S71_SubMunicipalVoteNo,$AC:$AC,Sheet1!S71_ItemType,$AD:$AD)","v":0},null,null,null,null,null,null,null,null,null,null,null,null,null,null,null,16,"IR"]
[{"$f":"IF(RIGHT('Org structure'!D9,18)<>\"[Name of sub-vote]\",'Org structure'!D9,\"\")","v":"1.7 - Administrative and Corporate Support"},null,{"$f":"-SUMIFS(Sheet1!S71_OriginalBudget,Sheet1!S71_SubMunicipalVoteNo,$AC:$AC,Sheet1!S71_ItemType,$AD:$AD)","v":74479},{"$f":"-SUMIFS(Sheet1!S71_SpecialAdjustedBudget,Sheet1!S71_SubMunicipalVoteNo,$AC:$AC,Sheet1!S71_ItemType,$AD:$AD)","v":0},null,null,null,null,{"$f":"SUMIFS(Sheet1!S71_AdjustmentAmount,Sheet1!S71_SubMunicipalVoteNo,$AC:$AC,Sheet1!S71_ItemType,$AD:$AD)","v":-12366},-12366,62113,{"$f":"-SUMIFS(Sheet1!S71_OY1AdjustedBudget,Sheet1!S71_SubMunicipalVoteNo,$AC:$AC,Sheet1!S71_ItemType,$AD:$AD)","v":78054},{"$f":"-SUMIFS(Sheet1!S71_OY2AdjustedBudget,Sheet1!S71_SubMunicipalVoteNo,$AC:$AC,Sheet1!S71_ItemType,$AD:$AD)","v":81801},null,null,null,null,null,null,null,null,null,null,null,null,null,null,null,17,"IR"]
[{"$f":"IF(RIGHT('Org structure'!D10,18)<>\"[Name of sub-vote]\",'Org structure'!D10,\"\")","v":"1.8 - Legal Services"},null,{"$f":"-SUMIFS(Sheet1!S71_OriginalBudget,Sheet1!S71_SubMunicipalVoteNo,$AC:$AC,Sheet1!S71_ItemType,$AD:$AD)","v":0},{"$f":"-SUMIFS(Sheet1!S71_SpecialAdjustedBudget,Sheet1!S71_SubMunicipalVoteNo,$AC:$AC,Sheet1!S71_ItemType,$AD:$AD)","v":0},null,null,null,null,{"$f":"SUMIFS(Sheet1!S71_AdjustmentAmount,Sheet1!S71_SubMunicipalVoteNo,$AC:$AC,Sheet1!S71_ItemType,$AD:$AD)","v":0},0,0,{"$f":"-SUMIFS(Sheet1!S71_OY1AdjustedBudget,Sheet1!S71_SubMunicipalVoteNo,$AC:$AC,Sheet1!S71_ItemType,$AD:$AD)","v":0},{"$f":"-SUMIFS(Sheet1!S71_OY2AdjustedBudget,Sheet1!S71_SubMunicipalVoteNo,$AC:$AC,Sheet1!S71_ItemType,$AD:$AD)","v":0},null,null,null,null,null,null,null,null,null,null,null,null,null,null,null,18,"IR"]
[{"$f":"IF(RIGHT('Org structure'!D11,18)<>\"[Name of sub-vote]\",'Org structure'!D11,\"\")","v":"1.9 - Property Services"},null,{"$f":"-SUMIFS(Sheet1!S71_OriginalBudget,Sheet1!S71_SubMunicipalVoteNo,$AC:$AC,Sheet1!S71_ItemType,$AD:$AD)","v":0},{"$f":"-SUMIFS(Sheet1!S71_SpecialAdjustedBudget,Sheet1!S71_SubMunicipalVoteNo,$AC:$AC,Sheet1!S71_ItemType,$AD:$AD)","v":0},null,null,null,null,{"$f":"SUMIFS(Sheet1!S71_AdjustmentAmount,Sheet1!S71_SubMunicipalVoteNo,$AC:$AC,Sheet1!S71_ItemType,$AD:$AD)","v":0},0,0,{"$f":"-SUMIFS(Sheet1!S71_OY1AdjustedBudget,Sheet1!S71_SubMunicipalVoteNo,$AC:$AC,Sheet1!S71_ItemType,$AD:$AD)","v":0},{"$f":"-SUMIFS(Sheet1!S71_OY2AdjustedBudget,Sheet1!S71_SubMunicipalVoteNo,$AC:$AC,Sheet1!S71_ItemType,$AD:$AD)","v":0},null,null,null,null,null,null,null,null,null,null,null,null,null,null,null,19,"IR"]
[{"$f":"IF(RIGHT('Org structure'!D12,18)<>\"[Name of sub-vote]\",'Org structure'!D12,\"\")","v":"1.10 - Asset Management"},null,{"$f":"-SUMIFS(Sheet1!S71_OriginalBudget,Sheet1!S71_SubMunicipalVoteNo,$AC:$AC,Sheet1!S71_ItemType,$AD:$AD)","v":0},{"$f":"-SUMIFS(Sheet1!S71_SpecialAdjustedBudget,Sheet1!S71_SubMunicipalVoteNo,$AC:$AC,Sheet1!S71_ItemType,$AD:$AD)","v":0},null,null,null,null,{"$f":"SUMIFS(Sheet1!S71_AdjustmentAmount,Sheet1!S71_SubMunicipalVoteNo,$AC:$AC,Sheet1!S71_ItemType,$AD:$AD)","v":0},0,0,{"$f":"-SUMIFS(Sheet1!S71_OY1AdjustedBudget,Sheet1!S71_SubMunicipalVoteNo,$AC:$AC,Sheet1!S71_ItemType,$AD:$AD)","v":0},{"$f":"-SUMIFS(Sheet1!S71_OY2AdjustedBudget,Sheet1!S71_SubMunicipalVoteNo,$AC:$AC,Sheet1!S71_ItemType,$AD:$AD)","v":0},null,null,null,null,null,null,null,null,null,null,null,null,null,null,null,110,"IR"]
[{"$f":"'Org structure'!A3","v":"Vote 2 - Executive and council"},null,{"$f":"SUM(C19:C28)","v":0},{"$f":"SUM(D19:D28)","v":0},0,0,0,0,0,0,0,{"$f":"SUM(L19:L28)","v":0},{"$f":"SUM(M19:M28)","v":0}]
[{"$f":"IF(RIGHT('Org structure'!D14,18)<>\"[Name of sub-vote]\",'Org structure'!D14,\"\")","v":"2.1 - Mayor and Council"},null,{"$f":"-SUMIFS(Sheet1!S71_OriginalBudget,Sheet1!S71_SubMunicipalVoteNo,$AC:$AC,Sheet1!S71_ItemType,$AD:$AD)","v":0},{"$f":"-SUMIFS(Sheet1!S71_SpecialAdjustedBudget,Sheet1!S71_SubMunicipalVoteNo,$AC:$AC,Sheet1!S71_ItemType,$AD:$AD)","v":0},null,null,null,null,{"$f":"SUMIFS(Sheet1!S71_AdjustmentAmount,Sheet1!S71_SubMunicipalVoteNo,$AC:$AC,Sheet1!S71_ItemType,$AD:$AD)","v":0},0,0,{"$f":"-SUMIFS(Sheet1!S71_OY1AdjustedBudget,Sheet1!S71_SubMunicipalVoteNo,$AC:$AC,Sheet1!S71_ItemType,$AD:$AD)","v":0},{"$f":"-SUMIFS(Sheet1!S71_OY2AdjustedBudget,Sheet1!S71_SubMunicipalVoteNo,$AC:$AC,Sheet1!S71_ItemType,$AD:$AD)","v":0},null,null,null,null,null,null,null,null,null,null,null,null,null,null,null,21,"IR"]
[{"$f":"IF(RIGHT('Org structure'!D15,18)<>\"[Name of sub-vote]\",'Org structure'!D15,\"\")","v":"2.2 - Municipal Manager, Town Secretary and Chief Executive"},null,{"$f":"-SUMIFS(Sheet1!S71_OriginalBudget,Sheet1!S71_SubMunicipalVoteNo,$AC:$AC,Sheet1!S71_ItemType,$AD:$AD)","v":0},{"$f":"-SUMIFS(Sheet1!S71_SpecialAdjustedBudget,Sheet1!S71_SubMunicipalVoteNo,$AC:$AC,Sheet1!S71_ItemType,$AD:$AD)","v":0},null,null,null,null,{"$f":"SUMIFS(Sheet1!S71_AdjustmentAmount,Sheet1!S71_SubMunicipalVoteNo,$AC:$AC,Sheet1!S71_ItemType,$AD:$AD)","v":0},0,0,{"$f":"-SUMIFS(Sheet1!S71_OY1AdjustedBudget,Sheet1!S71_SubMunicipalVoteNo,$AC:$AC,Sheet1!S71_ItemType,$AD:$AD)","v":0},{"$f":"-SUMIFS(Sheet1!S71_OY2AdjustedBudget,Sheet1!S71_SubMunicipalVoteNo,$AC:$AC,Sheet1!S71_ItemType,$AD:$AD)","v":0},null,null,null,null,null,null,null,null,null,null,null,null,null,null,null,22,"IR"]
[{"$f":"IF(RIGHT('Org structure'!D16,18)<>\"[Name of sub-vote]\",'Org structure'!D16,\"\")","v":""},null,{"$f":"-SUMIFS(Sheet1!S71_OriginalBudget,Sheet1!S71_SubMunicipalVoteNo,$AC:$AC,Sheet1!S71_ItemType,$AD:$AD)","v":0},{"$f":"-SUMIFS(Sheet1!S71_SpecialAdjustedBudget,Sheet1!S71_SubMunicipalVoteNo,$AC:$AC,Sheet1!S71_ItemType,$AD:$AD)","v":0},null,null,null,null,{"$f":"SUMIFS(Sheet1!S71_AdjustmentAmount,Sheet1!S71_SubMunicipalVoteNo,$AC:$AC,Sheet1!S71_ItemType,$AD:$AD)","v":0},0,0,{"$f":"-SUMIFS(Sheet1!S71_OY1AdjustedBudget,Sheet1!S71_SubMunicipalVoteNo,$AC:$AC,Sheet1!S71_ItemType,$AD:$AD)","v":0},{"$f":"-SUMIFS(Sheet1!S71_OY2AdjustedBudget,Sheet1!S71_SubMunicipalVoteNo,$AC:$AC,Sheet1!S71_ItemType,$AD:$AD)","v":0},null,null,null,null,null,null,null,null,null,null,null,null,null,null,null,23,"IR"]
[{"$f":"IF(RIGHT('Org structure'!D17,18)<>\"[Name of sub-vote]\",'Org structure'!D17,\"\")","v":""},null,{"$f":"-SUMIFS(Sheet1!S71_OriginalBudget,Sheet1!S71_SubMunicipalVoteNo,$AC:$AC,Sheet1!S71_ItemType,$AD:$AD)","v":0},{"$f":"-SUMIFS(Sheet1!S71_SpecialAdjustedBudget,Sheet1!S71_SubMunicipalVoteNo,$AC:$AC,Sheet1!S71_ItemType,$AD:$AD)","v":0},null,null,null,null,{"$f":"SUMIFS(Sheet1!S71_AdjustmentAmount,Sheet1!S71_SubMunicipalVoteNo,$AC:$AC,Sheet1!S71_ItemType,$AD:$AD)","v":0},0,0,{"$f":"-SUMIFS(Sheet1!S71_OY1AdjustedBudget,Sheet1!S71_SubMunicipalVoteNo,$AC:$AC,Sheet1!S71_ItemType,$AD:$AD)","v":0},{"$f":"-SUMIFS(Sheet1!S71_OY2AdjustedBudget,Sheet1!S71_SubMunicipalVoteNo,$AC:$AC,Sheet1!S71_ItemType,$AD:$AD)","v":0},null,null,null,null,null,null,null,null,null,null,null,null,null,null,null,24,"IR"]
[{"$f":"IF(RIGHT('Org structure'!D18,18)<>\"[Name of sub-vote]\",'Org structure'!D18,\"\")","v":""},null,{"$f":"-SUMIFS(Sheet1!S71_OriginalBudget,Sheet1!S71_SubMunicipalVoteNo,$AC:$AC,Sheet1!S71_ItemType,$AD:$AD)","v":0},{"$f":"-SUMIFS(Sheet1!S71_SpecialAdjustedBudget,Sheet1!S71_SubMunicipalVoteNo,$AC:$AC,Sheet1!S71_ItemType,$AD:$AD)","v":0},null,null,null,null,{"$f":"SUMIFS(Sheet1!S71_AdjustmentAmount,Sheet1!S71_SubMunicipalVoteNo,$AC:$AC,Sheet1!S71_ItemType,$AD:$AD)","v":0},0,0,{"$f":"-SUMIFS(Sheet1!S71_OY1AdjustedBudget,Sheet1!S71_SubMunicipalVoteNo,$AC:$AC,Sheet1!S71_ItemType,$AD:$AD)","v":0},{"$f":"-SUMIFS(Sheet1!S71_OY2AdjustedBudget,Sheet1!S71_SubMunicipalVoteNo,$AC:$AC,Sheet1!S71_ItemType,$AD:$AD)","v":0},null,null,null,null,null,null,null,null,null,null,null,null,null,null,null,25,"IR"]
[{"$f":"IF(RIGHT('Org structure'!D19,18)<>\"[Name of sub-vote]\",'Org structure'!D19,\"\")","v":""},null,{"$f":"-SUMIFS(Sheet1!S71_OriginalBudget,Sheet1!S71_SubMunicipalVoteNo,$AC:$AC,Sheet1!S71_ItemType,$AD:$AD)","v":0},{"$f":"-SUMIFS(Sheet1!S71_SpecialAdjustedBudget,Sheet1!S71_SubMunicipalVoteNo,$AC:$AC,Sheet1!S71_ItemType,$AD:$AD)","v":0},null,null,null,null,{"$f":"SUMIFS(Sheet1!S71_AdjustmentAmount,Sheet1!S71_SubMunicipalVoteNo,$AC:$AC,Sheet1!S71_ItemType,$AD:$AD)","v":0},0,0,{"$f":"-SUMIFS(Sheet1!S71_OY1AdjustedBudget,Sheet1!S71_SubMunicipalVoteNo,$AC:$AC,Sheet1!S71_ItemType,$AD:$AD)","v":0},{"$f":"-SUMIFS(Sheet1!S71_OY2AdjustedBudget,Sheet1!S71_SubMunicipalVoteNo,$AC:$AC,Sheet1!S71_ItemType,$AD:$AD)","v":0},null,null,null,null,null,null,null,null,null,null,null,null,null,null,null,26,"IR"]
[{"$f":"IF(RIGHT('Org structure'!D20,18)<>\"[Name of sub-vote]\",'Org structure'!D20,\"\")","v":""},null,{"$f":"-SUMIFS(Sheet1!S71_OriginalBudget,Sheet1!S71_SubMunicipalVoteNo,$AC:$AC,Sheet1!S71_ItemType,$AD:$AD)","v":0},{"$f":"-SUMIFS(Sheet1!S71_SpecialAdjustedBudget,Sheet1!S71_SubMunicipalVoteNo,$AC:$AC,Sheet1!S71_ItemType,$AD:$AD)","v":0},null,null,null,null,{"$f":"SUMIFS(Sheet1!S71_AdjustmentAmount,Sheet1!S71_SubMunicipalVoteNo,$AC:$AC,Sheet1!S71_ItemType,$AD:$AD)","v":0},0,0,{"$f":"-SUMIFS(Sheet1!S71_OY1AdjustedBudget,Sheet1!S71_SubMunicipalVoteNo,$AC:$AC,Sheet1!S71_ItemType,$AD:$AD)","v":0},{"$f":"-SUMIFS(Sheet1!S71_OY2AdjustedBudget,Sheet1!S71_SubMunicipalVoteNo,$AC:$AC,Sheet1!S71_ItemType,$AD:$AD)","v":0},null,null,null,null,null,null,null,null,null,null,null,null,null,null,null,27,"IR"]
[{"$f":"IF(RIGHT('Org structure'!D21,18)<>\"[Name of sub-vote]\",'Org structure'!D21,\"\")","v":""},null,{"$f":"-SUMIFS(Sheet1!S71_OriginalBudget,Sheet1!S71_SubMunicipalVoteNo,$AC:$AC,Sheet1!S71_ItemType,$AD:$AD)","v":0},{"$f":"-SUMIFS(Sheet1!S71_SpecialAdjustedBudget,Sheet1!S71_SubMunicipalVoteNo,$AC:$AC,Sheet1!S71_ItemType,$AD:$AD)","v":0},null,null,null,null,{"$f":"SUMIFS(Sheet1!S71_AdjustmentAmount,Sheet1!S71_SubMunicipalVoteNo,$AC:$AC,Sheet1!S71_ItemType,$AD:$AD)","v":0},0,0,{"$f":"-SUMIFS(Sheet1!S71_OY1AdjustedBudget,Sheet1!S71_SubMunicipalVoteNo,$AC:$AC,Sheet1!S71_ItemType,$AD:$AD)","v":0},{"$f":"-SUMIFS(Sheet1!S71_OY2AdjustedBudget,Sheet1!S71_SubMunicipalVoteNo,$AC:$AC,Sheet1!S71_ItemType,$AD:$AD)","v":0},null,null,null,null,null,null,null,null,null,null,null,null,null,null,null,28,"IR"]
[{"$f":"IF(RIGHT('Org structure'!D22,18)<>\"[Name of sub-vote]\",'Org structure'!D22,\"\")","v":""},null,{"$f":"-SUMIFS(Sheet1!S71_OriginalBudget,Sheet1!S71_SubMunicipalVoteNo,$AC:$AC,Sheet1!S71_ItemType,$AD:$AD)","v":0},{"$f":"-SUMIFS(Sheet1!S71_SpecialAdjustedBudget,Sheet1!S71_SubMunicipalVoteNo,$AC:$AC,Sheet1!S71_ItemType,$AD:$AD)","v":0},null,null,null,null,{"$f":"SUMIFS(Sheet1!S71_AdjustmentAmount,Sheet1!S71_SubMunicipalVoteNo,$AC:$AC,Sheet1!S71_ItemType,$AD:$AD)","v":0},0,0,{"$f":"-SUMIFS(Sheet1!S71_OY1AdjustedBudget,Sheet1!S71_SubMunicipalVoteNo,$AC:$AC,Sheet1!S71_ItemType,$AD:$AD)","v":0},{"$f":"-SUMIFS(Sheet1!S71_OY2AdjustedBudget,Sheet1!S71_SubMunicipalVoteNo,$AC:$AC,Sheet1!S71_ItemType,$AD:$AD)","v":0},null,null,null,null,null,null,null,null,null,null,null,null,null,null,null,29,"IR"]
[{"$f":"IF(RIGHT('Org structure'!D23,18)<>\"[Name of sub-vote]\",'Org structure'!D23,\"\")","v":""},null,{"$f":"-SUMIFS(Sheet1!S71_OriginalBudget,Sheet1!S71_SubMunicipalVoteNo,$AC:$AC,Sheet1!S71_ItemType,$AD:$AD)","v":0},{"$f":"-SUMIFS(Sheet1!S71_SpecialAdjustedBudget,Sheet1!S71_SubMunicipalVoteNo,$AC:$AC,Sheet1!S71_ItemType,$AD:$AD)","v":0},null,null,null,null,{"$f":"SUMIFS(Sheet1!S71_AdjustmentAmount,Sheet1!S71_SubMunicipalVoteNo,$AC:$AC,Sheet1!S71_ItemType,$AD:$AD)","v":0},0,0,{"$f":"-SUMIFS(Sheet1!S71_OY1AdjustedBudget,Sheet1!S71_SubMunicipalVoteNo,$AC:$AC,Sheet1!S71_ItemType,$AD:$AD)","v":0},{"$f":"-SUMIFS(Sheet1!S71_OY2AdjustedBudget,Sheet1!S71_SubMunicipalVoteNo,$AC:$AC,Sheet1!S71_ItemType,$AD:$AD)","v":0},null,null,null,null,null,null,null,null,null,null,null,null,null,null,null,210,"IR"]
[{"$f":"'Org structure'!A4","v":"Vote 3 - Community and social services"},null,{"$f":"SUM(C30:C39)","v":10849654},0,0,0,0,0,-4000000,-4000000,6849654,{"$f":"SUM(L30:L39)","v":2957186},{"$f":"SUM(M30:M39)","v":2958346}]
[{"$f":"IF(RIGHT('Org structure'!D25,18)<>\"[Name of sub-vote]\",'Org structure'!D25,\"\")","v":"3.1 - Disaster Management"},null,{"$f":"-SUMIFS(Sheet1!S71_OriginalBudget,Sheet1!S71_SubMunicipalVoteNo,$AC:$AC,Sheet1!S71_ItemType,$AD:$AD)","v":0},{"$f":"-SUMIFS(Sheet1!S71_SpecialAdjustedBudget,Sheet1!S71_SubMunicipalVoteNo,$AC:$AC,Sheet1!S71_ItemType,$AD:$AD)","v":0},null,null,null,null,{"$f":"SUMIFS(Sheet1!S71_AdjustmentAmount,Sheet1!S71_SubMunicipalVoteNo,$AC:$AC,Sheet1!S71_ItemType,$AD:$AD)","v":0},0,0,{"$f":"-SUMIFS(Sheet1!S71_OY1AdjustedBudget,Sheet1!S71_SubMunicipalVoteNo,$AC:$AC,Sheet1!S71_ItemType,$AD:$AD)","v":0},{"$f":"-SUMIFS(Sheet1!S71_OY2AdjustedBudget,Sheet1!S71_SubMunicipalVoteNo,$AC:$AC,Sheet1!S71_ItemType,$AD:$AD)","v":0},null,null,null,null,null,null,null,null,null,null,null,null,null,null,null,31,"IR"]
[{"$f":"IF(RIGHT('Org structure'!D26,18)<>\"[Name of sub-vote]\",'Org structure'!D26,\"\")","v":"3.2 - Community Halls and Facilities"},null,{"$f":"-SUMIFS(Sheet1!S71_OriginalBudget,Sheet1!S71_SubMunicipalVoteNo,$AC:$AC,Sheet1!S71_ItemType,$AD:$AD)","v":8000000},{"$f":"-SUMIFS(Sheet1!S71_SpecialAdjustedBudget,Sheet1!S71_SubMunicipalVoteNo,$AC:$AC,Sheet1!S71_ItemType,$AD:$AD)","v":0},null,null,null,null,{"$f":"SUMIFS(Sheet1!S71_AdjustmentAmount,Sheet1!S71_SubMunicipalVoteNo,$AC:$AC,Sheet1!S71_ItemType,$AD:$AD)","v":-4000000},-4000000,4000000,{"$f":"-SUMIFS(Sheet1!S71_OY1AdjustedBudget,Sheet1!S71_SubMunicipalVoteNo,$AC:$AC,Sheet1!S71_ItemType,$AD:$AD)","v":0},{"$f":"-SUMIFS(Sheet1!S71_OY2AdjustedBudget,Sheet1!S71_SubMunicipalVoteNo,$AC:$AC,Sheet1!S71_ItemType,$AD:$AD)","v":0},null,null,null,null,null,null,null,null,null,null,null,null,null,null,null,32,"IR"]
[{"$f":"IF(RIGHT('Org structure'!D27,18)<>\"[Name of sub-vote]\",'Org structure'!D27,\"\")","v":"3.3 - Libraries and Archives"},null,{"$f":"-SUMIFS(Sheet1!S71_OriginalBudget,Sheet1!S71_SubMunicipalVoteNo,$AC:$AC,Sheet1!S71_ItemType,$AD:$AD)","v":2849654},{"$f":"-SUMIFS(Sheet1!S71_SpecialAdjustedBudget,Sheet1!S71_SubMunicipalVoteNo,$AC:$AC,Sheet1!S71_ItemType,$AD:$AD)","v":0},null,null,null,null,{"$f":"SUMIFS(Sheet1!S71_AdjustmentAmount,Sheet1!S71_SubMunicipalVoteNo,$AC:$AC,Sheet1!S71_ItemType,$AD:$AD)","v":0},0,2849654,{"$f":"-SUMIFS(Sheet1!S71_OY1AdjustedBudget,Sheet1!S71_SubMunicipalVoteNo,$AC:$AC,Sheet1!S71_ItemType,$AD:$AD)","v":2957186},{"$f":"-SUMIFS(Sheet1!S71_OY2AdjustedBudget,Sheet1!S71_SubMunicipalVoteNo,$AC:$AC,Sheet1!S71_ItemType,$AD:$AD)","v":2958346},null,null,null,null,null,null,null,null,null,null,null,null,null,null,null,33,"IR"]
[{"$f":"IF(RIGHT('Org structure'!D28,18)<>\"[Name of sub-vote]\",'Org structure'!D28,\"\")","v":"3.4 - Education"},null,{"$f":"-SUMIFS(Sheet1!S71_OriginalBudget,Sheet1!S71_SubMunicipalVoteNo,$AC:$AC,Sheet1!S71_ItemType,$AD:$AD)","v":0},{"$f":"-SUMIFS(Sheet1!S71_SpecialAdjustedBudget,Sheet1!S71_SubMunicipalVoteNo,$AC:$AC,Sheet1!S71_ItemType,$AD:$AD)","v":0},null,null,null,null,{"$f":"SUMIFS(Sheet1!S71_AdjustmentAmount,Sheet1!S71_SubMunicipalVoteNo,$AC:$AC,Sheet1!S71_ItemType,$AD:$AD)","v":0},0,0,{"$f":"-SUMIFS(Sheet1!S71_OY1AdjustedBudget,Sheet1!S71_SubMunicipalVoteNo,$AC:$AC,Sheet1!S71_ItemType,$AD:$AD)","v":0},{"$f":"-SUMIFS(Sheet1!S71_OY2AdjustedBudget,Sheet1!S71_SubMunicipalVoteNo,$AC:$AC,Sheet1!S71_ItemType,$AD:$AD)","v":0},null,null,null,null,null,null,null,null,null,null,null,null,null,null,null,34,"IR"]
[{"$f":"IF(RIGHT('Org structure'!D29,18)<>\"[Name of sub-vote]\",'Org structure'!D29,\"\")","v":""},null,{"$f":"-SUMIFS(Sheet1!S71_OriginalBudget,Sheet1!S71_SubMunicipalVoteNo,$AC:$AC,Sheet1!S71_ItemType,$AD:$AD)","v":0},{"$f":"-SUMIFS(Sheet1!S71_SpecialAdjustedBudget,Sheet1!S71_SubMunicipalVoteNo,$AC:$AC,Sheet1!S71_ItemType,$AD:$AD)","v":0},null,null,null,null,{"$f":"SUMIFS(Sheet1!S71_AdjustmentAmount,Sheet1!S71_SubMunicipalVoteNo,$AC:$AC,Sheet1!S71_ItemType,$AD:$AD)","v":0},0,0,{"$f":"-SUMIFS(Sheet1!S71_OY1AdjustedBudget,Sheet1!S71_SubMunicipalVoteNo,$AC:$AC,Sheet1!S71_ItemType,$AD:$AD)","v":0},{"$f":"-SUMIFS(Sheet1!S71_OY2AdjustedBudget,Sheet1!S71_SubMunicipalVoteNo,$AC:$AC,Sheet1!S71_ItemType,$AD:$AD)","v":0},null,null,null,null,null,null,null,null,null,null,null,null,null,null,null,35,"IR"]
[{"$f":"IF(RIGHT('Org structure'!D30,18)<>\"[Name of sub-vote]\",'Org structure'!D30,\"\")","v":"3.6 - Health Services"},null,{"$f":"-SUMIFS(Sheet1!S71_OriginalBudget,Sheet1!S71_SubMunicipalVoteNo,$AC:$AC,Sheet1!S71_ItemType,$AD:$AD)","v":0},{"$f":"-SUMIFS(Sheet1!S71_SpecialAdjustedBudget,Sheet1!S71_SubMunicipalVoteNo,$AC:$AC,Sheet1!S71_ItemType,$AD:$AD)","v":0},null,null,null,null,{"$f":"SUMIFS(Sheet1!S71_AdjustmentAmount,Sheet1!S71_SubMunicipalVoteNo,$AC:$AC,Sheet1!S71_ItemType,$AD:$AD)","v":0},0,0,{"$f":"-SUMIFS(Sheet1!S71_OY1AdjustedBudget,Sheet1!S71_SubMunicipalVoteNo,$AC:$AC,Sheet1!S71_ItemType,$AD:$AD)","v":0},{"$f":"-SUMIFS(Sheet1!S71_OY2AdjustedBudget,Sheet1!S71_SubMunicipalVoteNo,$AC:$AC,Sheet1!S71_ItemType,$AD:$AD)","v":0},null,null,null,null,null,null,null,null,null,null,null,null,null,null,null,36,"IR"]
[{"$f":"IF(RIGHT('Org structure'!D31,18)<>\"[Name of sub-vote]\",'Org structure'!D31,\"\")","v":"3.7 - Animal Care and Diseases"},null,{"$f":"-SUMIFS(Sheet1!S71_OriginalBudget,Sheet1!S71_SubMunicipalVoteNo,$AC:$AC,Sheet1!S71_ItemType,$AD:$AD)","v":0},{"$f":"-SUMIFS(Sheet1!S71_SpecialAdjustedBudget,Sheet1!S71_SubMunicipalVoteNo,$AC:$AC,Sheet1!S71_ItemType,$AD:$AD)","v":0},null,null,null,null,{"$f":"SUMIFS(Sheet1!S71_AdjustmentAmount,Sheet1!S71_SubMunicipalVoteNo,$AC:$AC,Sheet1!S71_ItemType,$AD:$AD)","v":0},0,0,{"$f":"-SUMIFS(Sheet1!S71_OY1AdjustedBudget,Sheet1!S71_SubMunicipalVoteNo,$AC:$AC,Sheet1!S71_ItemType,$AD:$AD)","v":0},{"$f":"-SUMIFS(Sheet1!S71_OY2AdjustedBudget,Sheet1!S71_SubMunicipalVoteNo,$AC:$AC,Sheet1!S71_ItemType,$AD:$AD)","v":0},null,null,null,null,null,null,null,null,null,null,null,null,null,null,null,37,"IR"]
[{"$f":"IF(RIGHT('Org structure'!D32,18)<>\"[Name of sub-vote]\",'Org structure'!D32,\"\")","v":""},null,{"$f":"-SUMIFS(Sheet1!S71_OriginalBudget,Sheet1!S71_SubMunicipalVoteNo,$AC:$AC,Sheet1!S71_ItemType,$AD:$AD)","v":0},{"$f":"-SUMIFS(Sheet1!S71_SpecialAdjustedBudget,Sheet1!S71_SubMunicipalVoteNo,$AC:$AC,Sheet1!S71_ItemType,$AD:$AD)","v":0},null,null,null,null,{"$f":"SUMIFS(Sheet1!S71_AdjustmentAmount,Sheet1!S71_SubMunicipalVoteNo,$AC:$AC,Sheet1!S71_ItemType,$AD:$AD)","v":0},0,0,{"$f":"-SUMIFS(Sheet1!S71_OY1AdjustedBudget,Sheet1!S71_SubMunicipalVoteNo,$AC:$AC,Sheet1!S71_ItemType,$AD:$AD)","v":0},{"$f":"-SUMIFS(Sheet1!S71_OY2AdjustedBudget,Sheet1!S71_SubMunicipalVoteNo,$AC:$AC,Sheet1!S71_ItemType,$AD:$AD)","v":0},null,null,null,null,null,null,null,null,null,null,null,null,null,null,null,38,"IR"]
[{"$f":"IF(RIGHT('Org structure'!D33,18)<>\"[Name of sub-vote]\",'Org structure'!D33,\"\")","v":""},null,{"$f":"-SUMIFS(Sheet1!S71_OriginalBudget,Sheet1!S71_SubMunicipalVoteNo,$AC:$AC,Sheet1!S71_ItemType,$AD:$AD)","v":0},{"$f":"-SUMIFS(Sheet1!S71_SpecialAdjustedBudget,Sheet1!S71_SubMunicipalVoteNo,$AC:$AC,Sheet1!S71_ItemType,$AD:$AD)","v":0},null,null,null,null,{"$f":"SUMIFS(Sheet1!S71_AdjustmentAmount,Sheet1!S71_SubMunicipalVoteNo,$AC:$AC,Sheet1!S71_ItemType,$AD:$AD)","v":0},0,0,{"$f":"-SUMIFS(Sheet1!S71_OY1AdjustedBudget,Sheet1!S71_SubMunicipalVoteNo,$AC:$AC,Sheet1!S71_ItemType,$AD:$AD)","v":0},{"$f":"-SUMIFS(Sheet1!S71_OY2AdjustedBudget,Sheet1!S71_SubMunicipalVoteNo,$AC:$AC,Sheet1!S71_ItemType,$AD:$AD)","v":0},null,null,null,null,null,null,null,null,null,null,null,null,null,null,null,39,"IR"]
[{"$f":"IF(RIGHT('Org structure'!D34,18)<>\"[Name of sub-vote]\",'Org structure'!D34,\"\")","v":""},null,{"$f":"-SUMIFS(Sheet1!S71_OriginalBudget,Sheet1!S71_SubMunicipalVoteNo,$AC:$AC,Sheet1!S71_ItemType,$AD:$AD)","v":0},{"$f":"-SUMIFS(Sheet1!S71_SpecialAdjustedBudget,Sheet1!S71_SubMunicipalVoteNo,$AC:$AC,Sheet1!S71_ItemType,$AD:$AD)","v":0},null,null,null,null,{"$f":"SUMIFS(Sheet1!S71_AdjustmentAmount,Sheet1!S71_SubMunicipalVoteNo,$AC:$AC,Sheet1!S71_ItemType,$AD:$AD)","v":0},0,0,{"$f":"-SUMIFS(Sheet1!S71_OY1AdjustedBudget,Sheet1!S71_SubMunicipalVoteNo,$AC:$AC,Sheet1!S71_ItemType,$AD:$AD)","v":0},{"$f":"-SUMIFS(Sheet1!S71_OY2AdjustedBudget,Sheet1!S71_SubMunicipalVoteNo,$AC:$AC,Sheet1!S71_ItemType,$AD:$AD)","v":0},null,null,null,null,null,null,null,null,null,null,null,null,null,null,null,310,"IR"]
[{"$f":"'Org structure'!A5","v":"Vote 4 - Internal Audit"},null,{"$f":"SUM(C41:C50)","v":0},0,0,0,0,0,0,0,0,{"$f":"SUM(L41:L50)","v":0},{"$f":"SUM(M41:M50)","v":0}]
[{"$f":"IF(RIGHT('Org structure'!D36,18)<>\"[Name of sub-vote]\",'Org structure'!D36,\"\")","v":"4.1 - Governance Function"},null,{"$f":"-SUMIFS(Sheet1!S71_OriginalBudget,Sheet1!S71_SubMunicipalVoteNo,$AC:$AC,Sheet1!S71_ItemType,$AD:$AD)","v":0},{"$f":"-SUMIFS(Sheet1!S71_SpecialAdjustedBudget,Sheet1!S71_SubMunicipalVoteNo,$AC:$AC,Sheet1!S71_ItemType,$AD:$AD)","v":0},null,null,null,null,{"$f":"SUMIFS(Sheet1!S71_AdjustmentAmount,Sheet1!S71_SubMunicipalVoteNo,$AC:$AC,Sheet1!S71_ItemType,$AD:$AD)","v":0},0,0,{"$f":"-SUMIFS(Sheet1!S71_OY1AdjustedBudget,Sheet1!S71_SubMunicipalVoteNo,$AC:$AC,Sheet1!S71_ItemType,$AD:$AD)","v":0},{"$f":"-SUMIFS(Sheet1!S71_OY2AdjustedBudget,Sheet1!S71_SubMunicipalVoteNo,$AC:$AC,Sheet1!S71_ItemType,$AD:$AD)","v":0},null,null,null,null,null,null,null,null,null,null,null,null,null,null,null,41,"IR"]
[{"$f":"IF(RIGHT('Org structure'!D37,18)<>\"[Name of sub-vote]\",'Org structure'!D37,\"\")","v":""},null,{"$f":"-SUMIFS(Sheet1!S71_OriginalBudget,Sheet1!S71_SubMunicipalVoteNo,$AC:$AC,Sheet1!S71_ItemType,$AD:$AD)","v":0},{"$f":"-SUMIFS(Sheet1!S71_SpecialAdjustedBudget,Sheet1!S71_SubMunicipalVoteNo,$AC:$AC,Sheet1!S71_ItemType,$AD:$AD)","v":0},null,null,null,null,{"$f":"SUMIFS(Sheet1!S71_AdjustmentAmount,Sheet1!S71_SubMunicipalVoteNo,$AC:$AC,Sheet1!S71_ItemType,$AD:$AD)","v":0},0,0,{"$f":"-SUMIFS(Sheet1!S71_OY1AdjustedBudget,Sheet1!S71_SubMunicipalVoteNo,$AC:$AC,Sheet1!S71_ItemType,$AD:$AD)","v":0},{"$f":"-SUMIFS(Sheet1!S71_OY2AdjustedBudget,Sheet1!S71_SubMunicipalVoteNo,$AC:$AC,Sheet1!S71_ItemType,$AD:$AD)","v":0},null,null,null,null,null,null,null,null,null,null,null,null,null,null,null,42,"IR"]
[{"$f":"IF(RIGHT('Org structure'!D38,18)<>\"[Name of sub-vote]\",'Org structure'!D38,\"\")","v":""},null,{"$f":"-SUMIFS(Sheet1!S71_OriginalBudget,Sheet1!S71_SubMunicipalVoteNo,$AC:$AC,Sheet1!S71_ItemType,$AD:$AD)","v":0},{"$f":"-SUMIFS(Sheet1!S71_SpecialAdjustedBudget,Sheet1!S71_SubMunicipalVoteNo,$AC:$AC,Sheet1!S71_ItemType,$AD:$AD)","v":0},null,null,null,null,{"$f":"SUMIFS(Sheet1!S71_AdjustmentAmount,Sheet1!S71_SubMunicipalVoteNo,$AC:$AC,Sheet1!S71_ItemType,$AD:$AD)","v":0},0,0,{"$f":"-SUMIFS(Sheet1!S71_OY1AdjustedBudget,Sheet1!S71_SubMunicipalVoteNo,$AC:$AC,Sheet1!S71_ItemType,$AD:$AD)","v":0},{"$f":"-SUMIFS(Sheet1!S71_OY2AdjustedBudget,Sheet1!S71_SubMunicipalVoteNo,$AC:$AC,Sheet1!S71_ItemType,$AD:$AD)","v":0},null,null,null,null,null,null,null,null,null,null,null,null,null,null,null,43,"IR"]
[{"$f":"IF(RIGHT('Org structure'!D39,18)<>\"[Name of sub-vote]\",'Org structure'!D39,\"\")","v":""},null,{"$f":"-SUMIFS(Sheet1!S71_OriginalBudget,Sheet1!S71_SubMunicipalVoteNo,$AC:$AC,Sheet1!S71_ItemType,$AD:$AD)","v":0},{"$f":"-SUMIFS(Sheet1!S71_SpecialAdjustedBudget,Sheet1!S71_SubMunicipalVoteNo,$AC:$AC,Sheet1!S71_ItemType,$AD:$AD)","v":0},null,null,null,null,{"$f":"SUMIFS(Sheet1!S71_AdjustmentAmount,Sheet1!S71_SubMunicipalVoteNo,$AC:$AC,Sheet1!S71_ItemType,$AD:$AD)","v":0},0,0,{"$f":"-SUMIFS(Sheet1!S71_OY1AdjustedBudget,Sheet1!S71_SubMunicipalVoteNo,$AC:$AC,Sheet1!S71_ItemType,$AD:$AD)","v":0},{"$f":"-SUMIFS(Sheet1!S71_OY2AdjustedBudget,Sheet1!S71_SubMunicipalVoteNo,$AC:$AC,Sheet1!S71_ItemType,$AD:$AD)","v":0},null,null,null,null,null,null,null,null,null,null,null,null,null,null,null,44,"IR"]
[{"$f":"IF(RIGHT('Org structure'!D40,18)<>\"[Name of sub-vote]\",'Org structure'!D40,\"\")","v":""},null,{"$f":"-SUMIFS(Sheet1!S71_OriginalBudget,Sheet1!S71_SubMunicipalVoteNo,$AC:$AC,Sheet1!S71_ItemType,$AD:$AD)","v":0},{"$f":"-SUMIFS(Sheet1!S71_SpecialAdjustedBudget,Sheet1!S71_SubMunicipalVoteNo,$AC:$AC,Sheet1!S71_ItemType,$AD:$AD)","v":0},null,null,null,null,{"$f":"SUMIFS(Sheet1!S71_AdjustmentAmount,Sheet1!S71_SubMunicipalVoteNo,$AC:$AC,Sheet1!S71_ItemType,$AD:$AD)","v":0},0,0,{"$f":"-SUMIFS(Sheet1!S71_OY1AdjustedBudget,Sheet1!S71_SubMunicipalVoteNo,$AC:$AC,Sheet1!S71_ItemType,$AD:$AD)","v":0},{"$f":"-SUMIFS(Sheet1!S71_OY2AdjustedBudget,Sheet1!S71_SubMunicipalVoteNo,$AC:$AC,Sheet1!S71_ItemType,$AD:$AD)","v":0},null,null,null,null,null,null,null,null,null,null,null,null,null,null,null,45,"IR"]
[{"$f":"IF(RIGHT('Org structure'!D41,18)<>\"[Name of sub-vote]\",'Org structure'!D41,\"\")","v":""},null,{"$f":"-SUMIFS(Sheet1!S71_OriginalBudget,Sheet1!S71_SubMunicipalVoteNo,$AC:$AC,Sheet1!S71_ItemType,$AD:$AD)","v":0},{"$f":"-SUMIFS(Sheet1!S71_SpecialAdjustedBudget,Sheet1!S71_SubMunicipalVoteNo,$AC:$AC,Sheet1!S71_ItemType,$AD:$AD)","v":0},null,null,null,null,{"$f":"SUMIFS(Sheet1!S71_AdjustmentAmount,Sheet1!S71_SubMunicipalVoteNo,$AC:$AC,Sheet1!S71_ItemType,$AD:$AD)","v":0},0,0,{"$f":"-SUMIFS(Sheet1!S71_OY1AdjustedBudget,Sheet1!S71_SubMunicipalVoteNo,$AC:$AC,Sheet1!S71_ItemType,$AD:$AD)","v":0},{"$f":"-SUMIFS(Sheet1!S71_OY2AdjustedBudget,Sheet1!S71_SubMunicipalVoteNo,$AC:$AC,Sheet1!S71_ItemType,$AD:$AD)","v":0},null,null,null,null,null,null,null,null,null,null,null,null,null,null,null,46,"IR"]
[{"$f":"IF(RIGHT('Org structure'!D42,18)<>\"[Name of sub-vote]\",'Org structure'!D42,\"\")","v":""},null,{"$f":"-SUMIFS(Sheet1!S71_OriginalBudget,Sheet1!S71_SubMunicipalVoteNo,$AC:$AC,Sheet1!S71_ItemType,$AD:$AD)","v":0},{"$f":"-SUMIFS(Sheet1!S71_SpecialAdjustedBudget,Sheet1!S71_SubMunicipalVoteNo,$AC:$AC,Sheet1!S71_ItemType,$AD:$AD)","v":0},null,null,null,null,{"$f":"SUMIFS(Sheet1!S71_AdjustmentAmount,Sheet1!S71_SubMunicipalVoteNo,$AC:$AC,Sheet1!S71_ItemType,$AD:$AD)","v":0},0,0,{"$f":"-SUMIFS(Sheet1!S71_OY1AdjustedBudget,Sheet1!S71_SubMunicipalVoteNo,$AC:$AC,Sheet1!S71_ItemType,$AD:$AD)","v":0},{"$f":"-SUMIFS(Sheet1!S71_OY2AdjustedBudget,Sheet1!S71_SubMunicipalVoteNo,$AC:$AC,Sheet1!S71_ItemType,$AD:$AD)","v":0},null,null,null,null,null,null,null,null,null,null,null,null,null,null,null,47,"IR"]
[{"$f":"IF(RIGHT('Org structure'!D43,18)<>\"[Name of sub-vote]\",'Org structure'!D43,\"\")","v":""},null,{"$f":"-SUMIFS(Sheet1!S71_OriginalBudget,Sheet1!S71_SubMunicipalVoteNo,$AC:$AC,Sheet1!S71_ItemType,$AD:$AD)","v":0},{"$f":"-SUMIFS(Sheet1!S71_SpecialAdjustedBudget,Sheet1!S71_SubMunicipalVoteNo,$AC:$AC,Sheet1!S71_ItemType,$AD:$AD)","v":0},null,null,null,null,{"$f":"SUMIFS(Sheet1!S71_AdjustmentAmount,Sheet1!S71_SubMunicipalVoteNo,$AC:$AC,Sheet1!S71_ItemType,$AD:$AD)","v":0},0,0,{"$f":"-SUMIFS(Sheet1!S71_OY1AdjustedBudget,Sheet1!S71_SubMunicipalVoteNo,$AC:$AC,Sheet1!S71_ItemType,$AD:$AD)","v":0},{"$f":"-SUMIFS(Sheet1!S71_OY2AdjustedBudget,Sheet1!S71_SubMunicipalVoteNo,$AC:$AC,Sheet1!S71_ItemType,$AD:$AD)","v":0},null,null,null,null,null,null,null,null,null,null,null,null,null,null,null,48,"IR"]
[{"$f":"IF(RIGHT('Org structure'!D44,18)<>\"[Name of sub-vote]\",'Org structure'!D44,\"\")","v":""},null,{"$f":"-SUMIFS(Sheet1!S71_OriginalBudget,Sheet1!S71_SubMunicipalVoteNo,$AC:$AC,Sheet1!S71_ItemType,$AD:$AD)","v":0},{"$f":"-SUMIFS(Sheet1!S71_SpecialAdjustedBudget,Sheet1!S71_SubMunicipalVoteNo,$AC:$AC,Sheet1!S71_ItemType,$AD:$AD)","v":0},null,null,null,null,{"$f":"SUMIFS(Sheet1!S71_AdjustmentAmount,Sheet1!S71_SubMunicipalVoteNo,$AC:$AC,Sheet1!S71_ItemType,$AD:$AD)","v":0},0,0,{"$f":"-SUMIFS(Sheet1!S71_OY1AdjustedBudget,Sheet1!S71_SubMunicipalVoteNo,$AC:$AC,Sheet1!S71_ItemType,$AD:$AD)","v":0},{"$f":"-SUMIFS(Sheet1!S71_OY2AdjustedBudget,Sheet1!S71_SubMunicipalVoteNo,$AC:$AC,Sheet1!S71_ItemType,$AD:$AD)","v":0},null,null,null,null,null,null,null,null,null,null,null,null,null,null,null,49,"IR"]
[{"$f":"IF(RIGHT('Org structure'!D45,18)<>\"[Name of sub-vote]\",'Org structure'!D45,\"\")","v":""},null,{"$f":"-SUMIFS(Sheet1!S71_OriginalBudget,Sheet1!S71_SubMunicipalVoteNo,$AC:$AC,Sheet1!S71_ItemType,$AD:$AD)","v":0},{"$f":"-SUMIFS(Sheet1!S71_SpecialAdjustedBudget,Sheet1!S71_SubMunicipalVoteNo,$AC:$AC,Sheet1!S71_ItemType,$AD:$AD)","v":0},null,null,null,null,{"$f":"SUMIFS(Sheet1!S71_AdjustmentAmount,Sheet1!S71_SubMunicipalVoteNo,$AC:$AC,Sheet1!S71_ItemType,$AD:$AD)","v":0},0,0,{"$f":"-SUMIFS(Sheet1!S71_OY1AdjustedBudget,Sheet1!S71_SubMunicipalVoteNo,$AC:$AC,Sheet1!S71_ItemType,$AD:$AD)","v":0},{"$f":"-SUMIFS(Sheet1!S71_OY2AdjustedBudget,Sheet1!S71_SubMunicipalVoteNo,$AC:$AC,Sheet1!S71_ItemType,$AD:$AD)","v":0},null,null,null,null,null,null,null,null,null,null,null,null,null,null,null,410,"IR"]
[{"$f":"'Org structure'!A6","v":"Vote 5 - Waste Management"},null,{"$f":"SUM(C52:C61)","v":208500},{"$f":"SUM(D52:D61)","v":0},0,0,0,0,415860,415860,624360,{"$f":"SUM(L52:L61)","v":475011},{"$f":"SUM(M52:M61)","v":497811}]
[{"$f":"IF(RIGHT('Org structure'!D47,18)<>\"[Name of sub-vote]\",'Org structure'!D47,\"\")","v":"5.1 - Solid Waste Removal"},null,{"$f":"-SUMIFS(Sheet1!S71_OriginalBudget,Sheet1!S71_SubMunicipalVoteNo,$AC:$AC,Sheet1!S71_ItemType,$AD:$AD)","v":208500},{"$f":"-SUMIFS(Sheet1!S71_SpecialAdjustedBudget,Sheet1!S71_SubMunicipalVoteNo,$AC:$AC,Sheet1!S71_ItemType,$AD:$AD)","v":0},null,null,null,null,{"$f":"SUMIFS(Sheet1!S71_AdjustmentAmount,Sheet1!S71_SubMunicipalVoteNo,$AC:$AC,Sheet1!S71_ItemType,$AD:$AD)","v":415860},415860,624360,{"$f":"-SUMIFS(Sheet1!S71_OY1AdjustedBudget,Sheet1!S71_SubMunicipalVoteNo,$AC:$AC,Sheet1!S71_ItemType,$AD:$AD)","v":475011},{"$f":"-SUMIFS(Sheet1!S71_OY2AdjustedBudget,Sheet1!S71_SubMunicipalVoteNo,$AC:$AC,Sheet1!S71_ItemType,$AD:$AD)","v":497811},null,null,null,null,null,null,null,null,null,null,null,null,null,null,null,51,"IR"]
[{"$f":"IF(RIGHT('Org structure'!D48,18)<>\"[Name of sub-vote]\",'Org structure'!D48,\"\")","v":"5.2 - Street Cleaning"},null,{"$f":"-SUMIFS(Sheet1!S71_OriginalBudget,Sheet1!S71_SubMunicipalVoteNo,$AC:$AC,Sheet1!S71_ItemType,$AD:$AD)","v":0},{"$f":"-SUMIFS(Sheet1!S71_SpecialAdjustedBudget,Sheet1!S71_SubMunicipalVoteNo,$AC:$AC,Sheet1!S71_ItemType,$AD:$AD)","v":0},null,null,null,null,{"$f":"SUMIFS(Sheet1!S71_AdjustmentAmount,Sheet1!S71_SubMunicipalVoteNo,$AC:$AC,Sheet1!S71_ItemType,$AD:$AD)","v":0},0,0,{"$f":"-SUMIFS(Sheet1!S71_OY1AdjustedBudget,Sheet1!S71_SubMunicipalVoteNo,$AC:$AC,Sheet1!S71_ItemType,$AD:$AD)","v":0},{"$f":"-SUMIFS(Sheet1!S71_OY2AdjustedBudget,Sheet1!S71_SubMunicipalVoteNo,$AC:$AC,Sheet1!S71_ItemType,$AD:$AD)","v":0},null,null,null,null,null,null,null,null,null,null,null,null,null,null,null,52,"IR"]
[{"$f":"IF(RIGHT('Org structure'!D49,18)<>\"[Name of sub-vote]\",'Org structure'!D49,\"\")","v":"5.3 - Solid Waste Disposal (Landfill Sites)"},null,{"$f":"-SUMIFS(Sheet1!S71_OriginalBudget,Sheet1!S71_SubMunicipalVoteNo,$AC:$AC,Sheet1!S71_ItemType,$AD:$AD)","v":0},{"$f":"-SUMIFS(Sheet1!S71_SpecialAdjustedBudget,Sheet1!S71_SubMunicipalVoteNo,$AC:$AC,Sheet1!S71_ItemType,$AD:$AD)","v":0},null,null,null,null,{"$f":"SUMIFS(Sheet1!S71_AdjustmentAmount,Sheet1!S71_SubMunicipalVoteNo,$AC:$AC,Sheet1!S71_ItemType,$AD:$AD)","v":0},0,0,{"$f":"-SUMIFS(Sheet1!S71_OY1AdjustedBudget,Sheet1!S71_SubMunicipalVoteNo,$AC:$AC,Sheet1!S71_ItemType,$AD:$AD)","v":0},{"$f":"-SUMIFS(Sheet1!S71_OY2AdjustedBudget,Sheet1!S71_SubMunicipalVoteNo,$AC:$AC,Sheet1!S71_ItemType,$AD:$AD)","v":0},null,null,null,null,null,null,null,null,null,null,null,null,null,null,null,53,"IR"]
[{"$f":"IF(RIGHT('Org structure'!D50,18)<>\"[Name of sub-vote]\",'Org structure'!D50,\"\")","v":""},null,{"$f":"-SUMIFS(Sheet1!S71_OriginalBudget,Sheet1!S71_SubMunicipalVoteNo,$AC:$AC,Sheet1!S71_ItemType,$AD:$AD)","v":0},{"$f":"-SUMIFS(Sheet1!S71_SpecialAdjustedBudget,Sheet1!S71_SubMunicipalVoteNo,$AC:$AC,Sheet1!S71_ItemType,$AD:$AD)","v":0},null,null,null,null,{"$f":"SUMIFS(Sheet1!S71_AdjustmentAmount,Sheet1!S71_SubMunicipalVoteNo,$AC:$AC,Sheet1!S71_ItemType,$AD:$AD)","v":0},0,0,{"$f":"-SUMIFS(Sheet1!S71_OY1AdjustedBudget,Sheet1!S71_SubMunicipalVoteNo,$AC:$AC,Sheet1!S71_ItemType,$AD:$AD)","v":0},{"$f":"-SUMIFS(Sheet1!S71_OY2AdjustedBudget,Sheet1!S71_SubMunicipalVoteNo,$AC:$AC,Sheet1!S71_ItemType,$AD:$AD)","v":0},null,null,null,null,null,null,null,null,null,null,null,null,null,null,null,54,"IR"]
[{"$f":"IF(RIGHT('Org structure'!D51,18)<>\"[Name of sub-vote]\",'Org structure'!D51,\"\")","v":""},null,{"$f":"-SUMIFS(Sheet1!S71_OriginalBudget,Sheet1!S71_SubMunicipalVoteNo,$AC:$AC,Sheet1!S71_ItemType,$AD:$AD)","v":0},{"$f":"-SUMIFS(Sheet1!S71_SpecialAdjustedBudget,Sheet1!S71_SubMunicipalVoteNo,$AC:$AC,Sheet1!S71_ItemType,$AD:$AD)","v":0},null,null,null,null,{"$f":"SUMIFS(Sheet1!S71_AdjustmentAmount,Sheet1!S71_SubMunicipalVoteNo,$AC:$AC,Sheet1!S71_ItemType,$AD:$AD)","v":0},0,0,{"$f":"-SUMIFS(Sheet1!S71_OY1AdjustedBudget,Sheet1!S71_SubMunicipalVoteNo,$AC:$AC,Sheet1!S71_ItemType,$AD:$AD)","v":0},{"$f":"-SUMIFS(Sheet1!S71_OY2AdjustedBudget,Sheet1!S71_SubMunicipalVoteNo,$AC:$AC,Sheet1!S71_ItemType,$AD:$AD)","v":0},null,null,null,null,null,null,null,null,null,null,null,null,null,null,null,55,"IR"]
[{"$f":"IF(RIGHT('Org structure'!D52,18)<>\"[Name of sub-vote]\",'Org structure'!D52,\"\")","v":""},null,{"$f":"-SUMIFS(Sheet1!S71_OriginalBudget,Sheet1!S71_SubMunicipalVoteNo,$AC:$AC,Sheet1!S71_ItemType,$AD:$AD)","v":0},{"$f":"-SUMIFS(Sheet1!S71_SpecialAdjustedBudget,Sheet1!S71_SubMunicipalVoteNo,$AC:$AC,Sheet1!S71_ItemType,$AD:$AD)","v":0},null,null,null,null,{"$f":"SUMIFS(Sheet1!S71_AdjustmentAmount,Sheet1!S71_SubMunicipalVoteNo,$AC:$AC,Sheet1!S71_ItemType,$AD:$AD)","v":0},0,0,{"$f":"-SUMIFS(Sheet1!S71_OY1AdjustedBudget,Sheet1!S71_SubMunicipalVoteNo,$AC:$AC,Sheet1!S71_ItemType,$AD:$AD)","v":0},{"$f":"-SUMIFS(Sheet1!S71_OY2AdjustedBudget,Sheet1!S71_SubMunicipalVoteNo,$AC:$AC,Sheet1!S71_ItemType,$AD:$AD)","v":0},null,null,null,null,null,null,null,null,null,null,null,null,null,null,null,56,"IR"]
[{"$f":"IF(RIGHT('Org structure'!D53,18)<>\"[Name of sub-vote]\",'Org structure'!D53,\"\")","v":""},null,{"$f":"-SUMIFS(Sheet1!S71_OriginalBudget,Sheet1!S71_SubMunicipalVoteNo,$AC:$AC,Sheet1!S71_ItemType,$AD:$AD)","v":0},{"$f":"-SUMIFS(Sheet1!S71_SpecialAdjustedBudget,Sheet1!S71_SubMunicipalVoteNo,$AC:$AC,Sheet1!S71_ItemType,$AD:$AD)","v":0},null,null,null,null,{"$f":"SUMIFS(Sheet1!S71_AdjustmentAmount,Sheet1!S71_SubMunicipalVoteNo,$AC:$AC,Sheet1!S71_ItemType,$AD:$AD)","v":0},0,0,{"$f":"-SUMIFS(Sheet1!S71_OY1AdjustedBudget,Sheet1!S71_SubMunicipalVoteNo,$AC:$AC,Sheet1!S71_ItemType,$AD:$AD)","v":0},{"$f":"-SUMIFS(Sheet1!S71_OY2AdjustedBudget,Sheet1!S71_SubMunicipalVoteNo,$AC:$AC,Sheet1!S71_ItemType,$AD:$AD)","v":0},null,null,null,null,null,null,null,null,null,null,null,null,null,null,null,57,"IR"]
[{"$f":"IF(RIGHT('Org structure'!D54,18)<>\"[Name of sub-vote]\",'Org structure'!D54,\"\")","v":""},null,{"$f":"-SUMIFS(Sheet1!S71_OriginalBudget,Sheet1!S71_SubMunicipalVoteNo,$AC:$AC,Sheet1!S71_ItemType,$AD:$AD)","v":0},{"$f":"-SUMIFS(Sheet1!S71_SpecialAdjustedBudget,Sheet1!S71_SubMunicipalVoteNo,$AC:$AC,Sheet1!S71_ItemType,$AD:$AD)","v":0},null,null,null,null,{"$f":"SUMIFS(Sheet1!S71_AdjustmentAmount,Sheet1!S71_SubMunicipalVoteNo,$AC:$AC,Sheet1!S71_ItemType,$AD:$AD)","v":0},0,0,{"$f":"-SUMIFS(Sheet1!S71_OY1AdjustedBudget,Sheet1!S71_SubMunicipalVoteNo,$AC:$AC,Sheet1!S71_ItemType,$AD:$AD)","v":0},{"$f":"-SUMIFS(Sheet1!S71_OY2AdjustedBudget,Sheet1!S71_SubMunicipalVoteNo,$AC:$AC,Sheet1!S71_ItemType,$AD:$AD)","v":0},null,null,null,null,null,null,null,null,null,null,null,null,null,null,null,58,"IR"]
[{"$f":"IF(RIGHT('Org structure'!D55,18)<>\"[Name of sub-vote]\",'Org structure'!D55,\"\")","v":""},null,{"$f":"-SUMIFS(Sheet1!S71_OriginalBudget,Sheet1!S71_SubMunicipalVoteNo,$AC:$AC,Sheet1!S71_ItemType,$AD:$AD)","v":0},{"$f":"-SUMIFS(Sheet1!S71_SpecialAdjustedBudget,Sheet1!S71_SubMunicipalVoteNo,$AC:$AC,Sheet1!S71_ItemType,$AD:$AD)","v":0},null,null,null,null,{"$f":"SUMIFS(Sheet1!S71_AdjustmentAmount,Sheet1!S71_SubMunicipalVoteNo,$AC:$AC,Sheet1!S71_ItemType,$AD:$AD)","v":0},0,0,{"$f":"-SUMIFS(Sheet1!S71_OY1AdjustedBudget,Sheet1!S71_SubMunicipalVoteNo,$AC:$AC,Sheet1!S71_ItemType,$AD:$AD)","v":0},{"$f":"-SUMIFS(Sheet1!S71_OY2AdjustedBudget,Sheet1!S71_SubMunicipalVoteNo,$AC:$AC,Sheet1!S71_ItemType,$AD:$AD)","v":0},null,null,null,null,null,null,null,null,null,null,null,null,null,null,null,59,"IR"]
[{"$f":"IF(RIGHT('Org structure'!D56,18)<>\"[Name of sub-vote]\",'Org structure'!D56,\"\")","v":""},null,{"$f":"-SUMIFS(Sheet1!S71_OriginalBudget,Sheet1!S71_SubMunicipalVoteNo,$AC:$AC,Sheet1!S71_ItemType,$AD:$AD)","v":0},{"$f":"-SUMIFS(Sheet1!S71_SpecialAdjustedBudget,Sheet1!S71_SubMunicipalVoteNo,$AC:$AC,Sheet1!S71_ItemType,$AD:$AD)","v":0},null,null,null,null,{"$f":"SUMIFS(Sheet1!S71_AdjustmentAmount,Sheet1!S71_SubMunicipalVoteNo,$AC:$AC,Sheet1!S71_ItemType,$AD:$AD)","v":0},0,0,{"$f":"-SUMIFS(Sheet1!S71_OY1AdjustedBudget,Sheet1!S71_SubMunicipalVoteNo,$AC:$AC,Sheet1!S71_ItemType,$AD:$AD)","v":0},{"$f":"-SUMIFS(Sheet1!S71_OY2AdjustedBudget,Sheet1!S71_SubMunicipalVoteNo,$AC:$AC,Sheet1!S71_ItemType,$AD:$AD)","v":0},null,null,null,null,null,null,null,null,null,null,null,null,null,null,null,510,"IR"]
[{"$f":"'Org structure'!A7","v":"Vote 6 - Energy Sources"},null,{"$f":"SUM(C63:C72)","v":0},{"$f":"SUM(D63:D72)","v":0},0,0,0,0,0,0,0,{"$f":"SUM(L63:L72)","v":0},{"$f":"SUM(M63:M72)","v":0}]
[{"$f":"IF(RIGHT('Org structure'!D58,18)<>\"[Name of sub-vote]\",'Org structure'!D58,\"\")","v":"6.1 - Electricity"},null,{"$f":"-SUMIFS(Sheet1!S71_OriginalBudget,Sheet1!S71_SubMunicipalVoteNo,$AC:$AC,Sheet1!S71_ItemType,$AD:$AD)","v":0},{"$f":"-SUMIFS(Sheet1!S71_SpecialAdjustedBudget,Sheet1!S71_SubMunicipalVoteNo,$AC:$AC,Sheet1!S71_ItemType,$AD:$AD)","v":0},null,null,null,null,{"$f":"SUMIFS(Sheet1!S71_AdjustmentAmount,Sheet1!S71_SubMunicipalVoteNo,$AC:$AC,Sheet1!S71_ItemType,$AD:$AD)","v":0},0,0,{"$f":"-SUMIFS(Sheet1!S71_OY1AdjustedBudget,Sheet1!S71_SubMunicipalVoteNo,$AC:$AC,Sheet1!S71_ItemType,$AD:$AD)","v":0},{"$f":"-SUMIFS(Sheet1!S71_OY2AdjustedBudget,Sheet1!S71_SubMunicipalVoteNo,$AC:$AC,Sheet1!S71_ItemType,$AD:$AD)","v":0},null,null,null,null,null,null,null,null,null,null,null,null,null,null,null,61,"IR"]
[{"$f":"IF(RIGHT('Org structure'!D59,18)<>\"[Name of sub-vote]\",'Org structure'!D59,\"\")","v":"6.2 - Regional Planning and Development"},null,{"$f":"-SUMIFS(Sheet1!S71_OriginalBudget,Sheet1!S71_SubMunicipalVoteNo,$AC:$AC,Sheet1!S71_ItemType,$AD:$AD)","v":0},{"$f":"-SUMIFS(Sheet1!S71_SpecialAdjustedBudget,Sheet1!S71_SubMunicipalVoteNo,$AC:$AC,Sheet1!S71_ItemType,$AD:$AD)","v":0},null,null,null,null,{"$f":"SUMIFS(Sheet1!S71_AdjustmentAmount,Sheet1!S71_SubMunicipalVoteNo,$AC:$AC,Sheet1!S71_ItemType,$AD:$AD)","v":0},0,0,{"$f":"-SUMIFS(Sheet1!S71_OY1AdjustedBudget,Sheet1!S71_SubMunicipalVoteNo,$AC:$AC,Sheet1!S71_ItemType,$AD:$AD)","v":0},{"$f":"-SUMIFS(Sheet1!S71_OY2AdjustedBudget,Sheet1!S71_SubMunicipalVoteNo,$AC:$AC,Sheet1!S71_ItemType,$AD:$AD)","v":0},null,null,null,null,null,null,null,null,null,null,null,null,null,null,null,62,"IR"]
[{"$f":"IF(RIGHT('Org structure'!D60,18)<>\"[Name of sub-vote]\",'Org structure'!D60,\"\")","v":""},null,{"$f":"-SUMIFS(Sheet1!S71_OriginalBudget,Sheet1!S71_SubMunicipalVoteNo,$AC:$AC,Sheet1!S71_ItemType,$AD:$AD)","v":0},{"$f":"-SUMIFS(Sheet1!S71_SpecialAdjustedBudget,Sheet1!S71_SubMunicipalVoteNo,$AC:$AC,Sheet1!S71_ItemType,$AD:$AD)","v":0},null,null,null,null,{"$f":"SUMIFS(Sheet1!S71_AdjustmentAmount,Sheet1!S71_SubMunicipalVoteNo,$AC:$AC,Sheet1!S71_ItemType,$AD:$AD)","v":0},0,0,{"$f":"-SUMIFS(Sheet1!S71_OY1AdjustedBudget,Sheet1!S71_SubMunicipalVoteNo,$AC:$AC,Sheet1!S71_ItemType,$AD:$AD)","v":0},{"$f":"-SUMIFS(Sheet1!S71_OY2AdjustedBudget,Sheet1!S71_SubMunicipalVoteNo,$AC:$AC,Sheet1!S71_ItemType,$AD:$AD)","v":0},null,null,null,null,null,null,null,null,null,null,null,null,null,null,null,63,"IR"]
[{"$f":"IF(RIGHT('Org structure'!D61,18)<>\"[Name of sub-vote]\",'Org structure'!D61,\"\")","v":""},null,{"$f":"-SUMIFS(Sheet1!S71_OriginalBudget,Sheet1!S71_SubMunicipalVoteNo,$AC:$AC,Sheet1!S71_ItemType,$AD:$AD)","v":0},{"$f":"-SUMIFS(Sheet1!S71_SpecialAdjustedBudget,Sheet1!S71_SubMunicipalVoteNo,$AC:$AC,Sheet1!S71_ItemType,$AD:$AD)","v":0},null,null,null,null,{"$f":"SUMIFS(Sheet1!S71_AdjustmentAmount,Sheet1!S71_SubMunicipalVoteNo,$AC:$AC,Sheet1!S71_ItemType,$AD:$AD)","v":0},0,0,{"$f":"-SUMIFS(Sheet1!S71_OY1AdjustedBudget,Sheet1!S71_SubMunicipalVoteNo,$AC:$AC,Sheet1!S71_ItemType,$AD:$AD)","v":0},{"$f":"-SUMIFS(Sheet1!S71_OY2AdjustedBudget,Sheet1!S71_SubMunicipalVoteNo,$AC:$AC,Sheet1!S71_ItemType,$AD:$AD)","v":0},null,null,null,null,null,null,null,null,null,null,null,null,null,null,null,64,"IR"]
[{"$f":"IF(RIGHT('Org structure'!D62,18)<>\"[Name of sub-vote]\",'Org structure'!D62,\"\")","v":""},null,{"$f":"-SUMIFS(Sheet1!S71_OriginalBudget,Sheet1!S71_SubMunicipalVoteNo,$AC:$AC,Sheet1!S71_ItemType,$AD:$AD)","v":0},{"$f":"-SUMIFS(Sheet1!S71_SpecialAdjustedBudget,Sheet1!S71_SubMunicipalVoteNo,$AC:$AC,Sheet1!S71_ItemType,$AD:$AD)","v":0},null,null,null,null,{"$f":"SUMIFS(Sheet1!S71_AdjustmentAmount,Sheet1!S71_SubMunicipalVoteNo,$AC:$AC,Sheet1!S71_ItemType,$AD:$AD)","v":0},0,0,{"$f":"-SUMIFS(Sheet1!S71_OY1AdjustedBudget,Sheet1!S71_SubMunicipalVoteNo,$AC:$AC,Sheet1!S71_ItemType,$AD:$AD)","v":0},{"$f":"-SUMIFS(Sheet1!S71_OY2AdjustedBudget,Sheet1!S71_SubMunicipalVoteNo,$AC:$AC,Sheet1!S71_ItemType,$AD:$AD)","v":0},null,null,null,null,null,null,null,null,null,null,null,null,null,null,null,65,"IR"]
[{"$f":"IF(RIGHT('Org structure'!D63,18)<>\"[Name of sub-vote]\",'Org structure'!D63,\"\")","v":""},null,{"$f":"-SUMIFS(Sheet1!S71_OriginalBudget,Sheet1!S71_SubMunicipalVoteNo,$AC:$AC,Sheet1!S71_ItemType,$AD:$AD)","v":0},{"$f":"-SUMIFS(Sheet1!S71_SpecialAdjustedBudget,Sheet1!S71_SubMunicipalVoteNo,$AC:$AC,Sheet1!S71_ItemType,$AD:$AD)","v":0},null,null,null,null,{"$f":"SUMIFS(Sheet1!S71_AdjustmentAmount,Sheet1!S71_SubMunicipalVoteNo,$AC:$AC,Sheet1!S71_ItemType,$AD:$AD)","v":0},0,0,{"$f":"-SUMIFS(Sheet1!S71_OY1AdjustedBudget,Sheet1!S71_SubMunicipalVoteNo,$AC:$AC,Sheet1!S71_ItemType,$AD:$AD)","v":0},{"$f":"-SUMIFS(Sheet1!S71_OY2AdjustedBudget,Sheet1!S71_SubMunicipalVoteNo,$AC:$AC,Sheet1!S71_ItemType,$AD:$AD)","v":0},null,null,null,null,null,null,null,null,null,null,null,null,null,null,null,66,"IR"]
[{"$f":"IF(RIGHT('Org structure'!D64,18)<>\"[Name of sub-vote]\",'Org structure'!D64,\"\")","v":""},null,{"$f":"-SUMIFS(Sheet1!S71_OriginalBudget,Sheet1!S71_SubMunicipalVoteNo,$AC:$AC,Sheet1!S71_ItemType,$AD:$AD)","v":0},{"$f":"-SUMIFS(Sheet1!S71_SpecialAdjustedBudget,Sheet1!S71_SubMunicipalVoteNo,$AC:$AC,Sheet1!S71_ItemType,$AD:$AD)","v":0},null,null,null,null,{"$f":"SUMIFS(Sheet1!S71_AdjustmentAmount,Sheet1!S71_SubMunicipalVoteNo,$AC:$AC,Sheet1!S71_ItemType,$AD:$AD)","v":0},0,0,{"$f":"-SUMIFS(Sheet1!S71_OY1AdjustedBudget,Sheet1!S71_SubMunicipalVoteNo,$AC:$AC,Sheet1!S71_ItemType,$AD:$AD)","v":0},{"$f":"-SUMIFS(Sheet1!S71_OY2AdjustedBudget,Sheet1!S71_SubMunicipalVoteNo,$AC:$AC,Sheet1!S71_ItemType,$AD:$AD)","v":0},null,null,null,null,null,null,null,null,null,null,null,null,null,null,null,67,"IR"]
[{"$f":"IF(RIGHT('Org structure'!D65,18)<>\"[Name of sub-vote]\",'Org structure'!D65,\"\")","v":""},null,{"$f":"-SUMIFS(Sheet1!S71_OriginalBudget,Sheet1!S71_SubMunicipalVoteNo,$AC:$AC,Sheet1!S71_ItemType,$AD:$AD)","v":0},{"$f":"-SUMIFS(Sheet1!S71_SpecialAdjustedBudget,Sheet1!S71_SubMunicipalVoteNo,$AC:$AC,Sheet1!S71_ItemType,$AD:$AD)","v":0},null,null,null,null,{"$f":"SUMIFS(Sheet1!S71_AdjustmentAmount,Sheet1!S71_SubMunicipalVoteNo,$AC:$AC,Sheet1!S71_ItemType,$AD:$AD)","v":0},0,0,{"$f":"-SUMIFS(Sheet1!S71_OY1AdjustedBudget,Sheet1!S71_SubMunicipalVoteNo,$AC:$AC,Sheet1!S71_ItemType,$AD:$AD)","v":0},{"$f":"-SUMIFS(Sheet1!S71_OY2AdjustedBudget,Sheet1!S71_SubMunicipalVoteNo,$AC:$AC,Sheet1!S71_ItemType,$AD:$AD)","v":0},null,null,null,null,null,null,null,null,null,null,null,null,null,null,null,68,"IR"]
[{"$f":"IF(RIGHT('Org structure'!D66,18)<>\"[Name of sub-vote]\",'Org structure'!D66,\"\")","v":""},null,{"$f":"-SUMIFS(Sheet1!S71_OriginalBudget,Sheet1!S71_SubMunicipalVoteNo,$AC:$AC,Sheet1!S71_ItemType,$AD:$AD)","v":0},{"$f":"-SUMIFS(Sheet1!S71_SpecialAdjustedBudget,Sheet1!S71_SubMunicipalVoteNo,$AC:$AC,Sheet1!S71_ItemType,$AD:$AD)","v":0},null,null,null,null,{"$f":"SUMIFS(Sheet1!S71_AdjustmentAmount,Sheet1!S71_SubMunicipalVoteNo,$AC:$AC,Sheet1!S71_ItemType,$AD:$AD)","v":0},0,0,{"$f":"-SUMIFS(Sheet1!S71_OY1AdjustedBudget,Sheet1!S71_SubMunicipalVoteNo,$AC:$AC,Sheet1!S71_ItemType,$AD:$AD)","v":0},{"$f":"-SUMIFS(Sheet1!S71_OY2AdjustedBudget,Sheet1!S71_SubMunicipalVoteNo,$AC:$AC,Sheet1!S71_ItemType,$AD:$AD)","v":0},null,null,null,null,null,null,null,null,null,null,null,null,null,null,null,69,"IR"]
[{"$f":"IF(RIGHT('Org structure'!D67,18)<>\"[Name of sub-vote]\",'Org structure'!D67,\"\")","v":""},null,{"$f":"-SUMIFS(Sheet1!S71_OriginalBudget,Sheet1!S71_SubMunicipalVoteNo,$AC:$AC,Sheet1!S71_ItemType,$AD:$AD)","v":0},{"$f":"-SUMIFS(Sheet1!S71_SpecialAdjustedBudget,Sheet1!S71_SubMunicipalVoteNo,$AC:$AC,Sheet1!S71_ItemType,$AD:$AD)","v":0},null,null,null,null,{"$f":"SUMIFS(Sheet1!S71_AdjustmentAmount,Sheet1!S71_SubMunicipalVoteNo,$AC:$AC,Sheet1!S71_ItemType,$AD:$AD)","v":0},{"$f":"SUM(E72:I72)","v":0},{"$f":"IF(D72=0,C72+J72,D72+J72)","v":0},{"$f":"-SUMIFS(Sheet1!S71_OY1AdjustedBudget,Sheet1!S71_SubMunicipalVoteNo,$AC:$AC,Sheet1!S71_ItemType,$AD:$AD)","v":0},{"$f":"-SUMIFS(Sheet1!S71_OY2AdjustedBudget,Sheet1!S71_SubMunicipalVoteNo,$AC:$AC,Sheet1!S71_ItemType,$AD:$AD)","v":0},null,null,null,null,null,null,null,null,null,null,null,null,null,null,null,610,"IR"]
[{"$f":"'Org structure'!A8","v":"Vote 7 - Planning and Development"},null,{"$f":"SUM(C74:C83)","v":1224841},0,0,0,0,0,1156652,1156652,2381493,{"$f":"SUM(L74:L83)","v":-2076106},{"$f":"SUM(M74:M83)","v":-2168131}]
[{"$f":"IF(RIGHT('Org structure'!D69,18)<>\"[Name of sub-vote]\",'Org structure'!D69,\"\")","v":"7.1 - Corporate Wide Strategic Planning (IDPs, LEDs)"},null,{"$f":"-SUMIFS(Sheet1!S71_OriginalBudget,Sheet1!S71_SubMunicipalVoteNo,$AC:$AC,Sheet1!S71_ItemType,$AD:$AD)","v":1759000},{"$f":"-SUMIFS(Sheet1!S71_SpecialAdjustedBudget,Sheet1!S71_SubMunicipalVoteNo,$AC:$AC,Sheet1!S71_ItemType,$AD:$AD)","v":0},null,null,null,null,{"$f":"SUMIFS(Sheet1!S71_AdjustmentAmount,Sheet1!S71_SubMunicipalVoteNo,$AC:$AC,Sheet1!S71_ItemType,$AD:$AD)","v":0},0,1759000,{"$f":"-SUMIFS(Sheet1!S71_OY1AdjustedBudget,Sheet1!S71_SubMunicipalVoteNo,$AC:$AC,Sheet1!S71_ItemType,$AD:$AD)","v":0},{"$f":"-SUMIFS(Sheet1!S71_OY2AdjustedBudget,Sheet1!S71_SubMunicipalVoteNo,$AC:$AC,Sheet1!S71_ItemType,$AD:$AD)","v":0},null,null,null,null,null,null,null,null,null,null,null,null,null,null,null,71,"IR"]
[{"$f":"IF(RIGHT('Org structure'!D70,18)<>\"[Name of sub-vote]\",'Org structure'!D70,\"\")","v":"7.2 - Town Planning, Building Regulations and Enforcement, and City Engineer"},null,{"$f":"-SUMIFS(Sheet1!S71_OriginalBudget,Sheet1!S71_SubMunicipalVoteNo,$AC:$AC,Sheet1!S71_ItemType,$AD:$AD)","v":-1993460},{"$f":"-SUMIFS(Sheet1!S71_SpecialAdjustedBudget,Sheet1!S71_SubMunicipalVoteNo,$AC:$AC,Sheet1!S71_ItemType,$AD:$AD)","v":0},null,null,null,null,{"$f":"SUMIFS(Sheet1!S71_AdjustmentAmount,Sheet1!S71_SubMunicipalVoteNo,$AC:$AC,Sheet1!S71_ItemType,$AD:$AD)","v":1939614},1939614,-53846,{"$f":"-SUMIFS(Sheet1!S71_OY1AdjustedBudget,Sheet1!S71_SubMunicipalVoteNo,$AC:$AC,Sheet1!S71_ItemType,$AD:$AD)","v":-2079404},{"$f":"-SUMIFS(Sheet1!S71_OY2AdjustedBudget,Sheet1!S71_SubMunicipalVoteNo,$AC:$AC,Sheet1!S71_ItemType,$AD:$AD)","v":-2171587},null,null,null,null,null,null,null,null,null,null,null,null,null,null,null,72,"IR"]
[{"$f":"IF(RIGHT('Org structure'!D71,18)<>\"[Name of sub-vote]\",'Org structure'!D71,\"\")","v":"7.3 - Project Management Unit"},null,{"$f":"-SUMIFS(Sheet1!S71_OriginalBudget,Sheet1!S71_SubMunicipalVoteNo,$AC:$AC,Sheet1!S71_ItemType,$AD:$AD)","v":1456053},{"$f":"-SUMIFS(Sheet1!S71_SpecialAdjustedBudget,Sheet1!S71_SubMunicipalVoteNo,$AC:$AC,Sheet1!S71_ItemType,$AD:$AD)","v":0},null,null,null,null,{"$f":"SUMIFS(Sheet1!S71_AdjustmentAmount,Sheet1!S71_SubMunicipalVoteNo,$AC:$AC,Sheet1!S71_ItemType,$AD:$AD)","v":-782962},-782962,673091,{"$f":"-SUMIFS(Sheet1!S71_OY1AdjustedBudget,Sheet1!S71_SubMunicipalVoteNo,$AC:$AC,Sheet1!S71_ItemType,$AD:$AD)","v":0},{"$f":"-SUMIFS(Sheet1!S71_OY2AdjustedBudget,Sheet1!S71_SubMunicipalVoteNo,$AC:$AC,Sheet1!S71_ItemType,$AD:$AD)","v":0},null,null,null,null,null,null,null,null,null,null,null,null,null,null,null,73,"IR"]
[{"$f":"IF(RIGHT('Org structure'!D72,18)<>\"[Name of sub-vote]\",'Org structure'!D72,\"\")","v":"7.4 - Economic Development/Planning"},null,{"$f":"-SUMIFS(Sheet1!S71_OriginalBudget,Sheet1!S71_SubMunicipalVoteNo,$AC:$AC,Sheet1!S71_ItemType,$AD:$AD)","v":3248},{"$f":"-SUMIFS(Sheet1!S71_SpecialAdjustedBudget,Sheet1!S71_SubMunicipalVoteNo,$AC:$AC,Sheet1!S71_ItemType,$AD:$AD)","v":0},null,null,null,null,{"$f":"SUMIFS(Sheet1!S71_AdjustmentAmount,Sheet1!S71_SubMunicipalVoteNo,$AC:$AC,Sheet1!S71_ItemType,$AD:$AD)","v":0},0,3248,{"$f":"-SUMIFS(Sheet1!S71_OY1AdjustedBudget,Sheet1!S71_SubMunicipalVoteNo,$AC:$AC,Sheet1!S71_ItemType,$AD:$AD)","v":3298},{"$f":"-SUMIFS(Sheet1!S71_OY2AdjustedBudget,Sheet1!S71_SubMunicipalVoteNo,$AC:$AC,Sheet1!S71_ItemType,$AD:$AD)","v":3456},null,null,null,null,null,null,null,null,null,null,null,null,null,null,null,74,"IR"]
[{"$f":"IF(RIGHT('Org structure'!D73,18)<>\"[Name of sub-vote]\",'Org structure'!D73,\"\")","v":""},null,{"$f":"-SUMIFS(Sheet1!S71_OriginalBudget,Sheet1!S71_SubMunicipalVoteNo,$AC:$AC,Sheet1!S71_ItemType,$AD:$AD)","v":0},{"$f":"-SUMIFS(Sheet1!S71_SpecialAdjustedBudget,Sheet1!S71_SubMunicipalVoteNo,$AC:$AC,Sheet1!S71_ItemType,$AD:$AD)","v":0},null,null,null,null,{"$f":"SUMIFS(Sheet1!S71_AdjustmentAmount,Sheet1!S71_SubMunicipalVoteNo,$AC:$AC,Sheet1!S71_ItemType,$AD:$AD)","v":0},0,0,{"$f":"-SUMIFS(Sheet1!S71_OY1AdjustedBudget,Sheet1!S71_SubMunicipalVoteNo,$AC:$AC,Sheet1!S71_ItemType,$AD:$AD)","v":0},{"$f":"-SUMIFS(Sheet1!S71_OY2AdjustedBudget,Sheet1!S71_SubMunicipalVoteNo,$AC:$AC,Sheet1!S71_ItemType,$AD:$AD)","v":0},null,null,null,null,null,null,null,null,null,null,null,null,null,null,null,75,"IR"]
[{"$f":"IF(RIGHT('Org structure'!D74,18)<>\"[Name of sub-vote]\",'Org structure'!D74,\"\")","v":""},null,{"$f":"-SUMIFS(Sheet1!S71_OriginalBudget,Sheet1!S71_SubMunicipalVoteNo,$AC:$AC,Sheet1!S71_ItemType,$AD:$AD)","v":0},{"$f":"-SUMIFS(Sheet1!S71_SpecialAdjustedBudget,Sheet1!S71_SubMunicipalVoteNo,$AC:$AC,Sheet1!S71_ItemType,$AD:$AD)","v":0},null,null,null,null,{"$f":"SUMIFS(Sheet1!S71_AdjustmentAmount,Sheet1!S71_SubMunicipalVoteNo,$AC:$AC,Sheet1!S71_ItemType,$AD:$AD)","v":0},0,0,{"$f":"-SUMIFS(Sheet1!S71_OY1AdjustedBudget,Sheet1!S71_SubMunicipalVoteNo,$AC:$AC,Sheet1!S71_ItemType,$AD:$AD)","v":0},{"$f":"-SUMIFS(Sheet1!S71_OY2AdjustedBudget,Sheet1!S71_SubMunicipalVoteNo,$AC:$AC,Sheet1!S71_ItemType,$AD:$AD)","v":0},null,null,null,null,null,null,null,null,null,null,null,null,null,null,null,76,"IR"]
[{"$f":"IF(RIGHT('Org structure'!D75,18)<>\"[Name of sub-vote]\",'Org structure'!D75,\"\")","v":""},null,{"$f":"-SUMIFS(Sheet1!S71_OriginalBudget,Sheet1!S71_SubMunicipalVoteNo,$AC:$AC,Sheet1!S71_ItemType,$AD:$AD)","v":0},{"$f":"-SUMIFS(Sheet1!S71_SpecialAdjustedBudget,Sheet1!S71_SubMunicipalVoteNo,$AC:$AC,Sheet1!S71_ItemType,$AD:$AD)","v":0},null,null,null,null,{"$f":"SUMIFS(Sheet1!S71_AdjustmentAmount,Sheet1!S71_SubMunicipalVoteNo,$AC:$AC,Sheet1!S71_ItemType,$AD:$AD)","v":0},0,0,{"$f":"-SUMIFS(Sheet1!S71_OY1AdjustedBudget,Sheet1!S71_SubMunicipalVoteNo,$AC:$AC,Sheet1!S71_ItemType,$AD:$AD)","v":0},{"$f":"-SUMIFS(Sheet1!S71_OY2AdjustedBudget,Sheet1!S71_SubMunicipalVoteNo,$AC:$AC,Sheet1!S71_ItemType,$AD:$AD)","v":0},null,null,null,null,null,null,null,null,null,null,null,null,null,null,null,77,"IR"]
[{"$f":"IF(RIGHT('Org structure'!D76,18)<>\"[Name of sub-vote]\",'Org structure'!D76,\"\")","v":""},null,{"$f":"-SUMIFS(Sheet1!S71_OriginalBudget,Sheet1!S71_SubMunicipalVoteNo,$AC:$AC,Sheet1!S71_ItemType,$AD:$AD)","v":0},{"$f":"-SUMIFS(Sheet1!S71_SpecialAdjustedBudget,Sheet1!S71_SubMunicipalVoteNo,$AC:$AC,Sheet1!S71_ItemType,$AD:$AD)","v":0},null,null,null,null,{"$f":"SUMIFS(Sheet1!S71_AdjustmentAmount,Sheet1!S71_SubMunicipalVoteNo,$AC:$AC,Sheet1!S71_ItemType,$AD:$AD)","v":0},0,0,{"$f":"-SUMIFS(Sheet1!S71_OY1AdjustedBudget,Sheet1!S71_SubMunicipalVoteNo,$AC:$AC,Sheet1!S71_ItemType,$AD:$AD)","v":0},{"$f":"-SUMIFS(Sheet1!S71_OY2AdjustedBudget,Sheet1!S71_SubMunicipalVoteNo,$AC:$AC,Sheet1!S71_ItemType,$AD:$AD)","v":0},null,null,null,null,null,null,null,null,null,null,null,null,null,null,null,78,"IR"]
[{"$f":"IF(RIGHT('Org structure'!D77,18)<>\"[Name of sub-vote]\",'Org structure'!D77,\"\")","v":""},null,{"$f":"-SUMIFS(Sheet1!S71_OriginalBudget,Sheet1!S71_SubMunicipalVoteNo,$AC:$AC,Sheet1!S71_ItemType,$AD:$AD)","v":0},{"$f":"-SUMIFS(Sheet1!S71_SpecialAdjustedBudget,Sheet1!S71_SubMunicipalVoteNo,$AC:$AC,Sheet1!S71_ItemType,$AD:$AD)","v":0},null,null,null,null,{"$f":"SUMIFS(Sheet1!S71_AdjustmentAmount,Sheet1!S71_SubMunicipalVoteNo,$AC:$AC,Sheet1!S71_ItemType,$AD:$AD)","v":0},0,0,{"$f":"-SUMIFS(Sheet1!S71_OY1AdjustedBudget,Sheet1!S71_SubMunicipalVoteNo,$AC:$AC,Sheet1!S71_ItemType,$AD:$AD)","v":0},{"$f":"-SUMIFS(Sheet1!S71_OY2AdjustedBudget,Sheet1!S71_SubMunicipalVoteNo,$AC:$AC,Sheet1!S71_ItemType,$AD:$AD)","v":0},null,null,null,null,null,null,null,null,null,null,null,null,null,null,null,79,"IR"]
[{"$f":"IF(RIGHT('Org structure'!D78,18)<>\"[Name of sub-vote]\",'Org structure'!D78,\"\")","v":""},null,{"$f":"-SUMIFS(Sheet1!S71_OriginalBudget,Sheet1!S71_SubMunicipalVoteNo,$AC:$AC,Sheet1!S71_ItemType,$AD:$AD)","v":0},{"$f":"-SUMIFS(Sheet1!S71_SpecialAdjustedBudget,Sheet1!S71_SubMunicipalVoteNo,$AC:$AC,Sheet1!S71_ItemType,$AD:$AD)","v":0},null,null,null,null,{"$f":"SUMIFS(Sheet1!S71_AdjustmentAmount,Sheet1!S71_SubMunicipalVoteNo,$AC:$AC,Sheet1!S71_ItemType,$AD:$AD)","v":0},0,0,{"$f":"-SUMIFS(Sheet1!S71_OY1AdjustedBudget,Sheet1!S71_SubMunicipalVoteNo,$AC:$AC,Sheet1!S71_ItemType,$AD:$AD)","v":0},{"$f":"-SUMIFS(Sheet1!S71_OY2AdjustedBudget,Sheet1!S71_SubMunicipalVoteNo,$AC:$AC,Sheet1!S71_ItemType,$AD:$AD)","v":0},null,null,null,null,null,null,null,null,null,null,null,null,null,null,null,710,"IR"]
[{"$f":"'Org structure'!A9","v":"Vote 8 - Public Safety"},null,{"$f":"SUM(C85:C94)","v":0},{"$f":"SUM(D85:D94)","v":0},0,0,0,0,0,0,0,{"$f":"SUM(L85:L94)","v":0},{"$f":"SUM(M85:M94)","v":0}]
[{"$f":"IF(RIGHT('Org structure'!D80,18)<>\"[Name of sub-vote]\",'Org structure'!D80,\"\")","v":"8.1 - Police Forces, Traffic and Street Parking Control"},null,{"$f":"-SUMIFS(Sheet1!S71_OriginalBudget,Sheet1!S71_SubMunicipalVoteNo,$AC:$AC,Sheet1!S71_ItemType,$AD:$AD)","v":0},{"$f":"-SUMIFS(Sheet1!S71_SpecialAdjustedBudget,Sheet1!S71_SubMunicipalVoteNo,$AC:$AC,Sheet1!S71_ItemType,$AD:$AD)","v":0},null,null,null,null,{"$f":"SUMIFS(Sheet1!S71_AdjustmentAmount,Sheet1!S71_SubMunicipalVoteNo,$AC:$AC,Sheet1!S71_ItemType,$AD:$AD)","v":0},0,0,{"$f":"-SUMIFS(Sheet1!S71_OY1AdjustedBudget,Sheet1!S71_SubMunicipalVoteNo,$AC:$AC,Sheet1!S71_ItemType,$AD:$AD)","v":0},{"$f":"-SUMIFS(Sheet1!S71_OY2AdjustedBudget,Sheet1!S71_SubMunicipalVoteNo,$AC:$AC,Sheet1!S71_ItemType,$AD:$AD)","v":0},null,null,null,null,null,null,null,null,null,null,null,null,null,null,null,81,"IR"]
[{"$f":"IF(RIGHT('Org structure'!D81,18)<>\"[Name of sub-vote]\",'Org structure'!D81,\"\")","v":""},null,{"$f":"-SUMIFS(Sheet1!S71_OriginalBudget,Sheet1!S71_SubMunicipalVoteNo,$AC:$AC,Sheet1!S71_ItemType,$AD:$AD)","v":0},{"$f":"-SUMIFS(Sheet1!S71_SpecialAdjustedBudget,Sheet1!S71_SubMunicipalVoteNo,$AC:$AC,Sheet1!S71_ItemType,$AD:$AD)","v":0},null,null,null,null,{"$f":"SUMIFS(Sheet1!S71_AdjustmentAmount,Sheet1!S71_SubMunicipalVoteNo,$AC:$AC,Sheet1!S71_ItemType,$AD:$AD)","v":0},0,0,{"$f":"-SUMIFS(Sheet1!S71_OY1AdjustedBudget,Sheet1!S71_SubMunicipalVoteNo,$AC:$AC,Sheet1!S71_ItemType,$AD:$AD)","v":0},{"$f":"-SUMIFS(Sheet1!S71_OY2AdjustedBudget,Sheet1!S71_SubMunicipalVoteNo,$AC:$AC,Sheet1!S71_ItemType,$AD:$AD)","v":0},null,null,null,null,null,null,null,null,null,null,null,null,null,null,null,82,"IR"]
[{"$f":"IF(RIGHT('Org structure'!D82,18)<>\"[Name of sub-vote]\",'Org structure'!D82,\"\")","v":""},null,{"$f":"-SUMIFS(Sheet1!S71_OriginalBudget,Sheet1!S71_SubMunicipalVoteNo,$AC:$AC,Sheet1!S71_ItemType,$AD:$AD)","v":0},{"$f":"-SUMIFS(Sheet1!S71_SpecialAdjustedBudget,Sheet1!S71_SubMunicipalVoteNo,$AC:$AC,Sheet1!S71_ItemType,$AD:$AD)","v":0},null,null,null,null,{"$f":"SUMIFS(Sheet1!S71_AdjustmentAmount,Sheet1!S71_SubMunicipalVoteNo,$AC:$AC,Sheet1!S71_ItemType,$AD:$AD)","v":0},0,0,{"$f":"-SUMIFS(Sheet1!S71_OY1AdjustedBudget,Sheet1!S71_SubMunicipalVoteNo,$AC:$AC,Sheet1!S71_ItemType,$AD:$AD)","v":0},{"$f":"-SUMIFS(Sheet1!S71_OY2AdjustedBudget,Sheet1!S71_SubMunicipalVoteNo,$AC:$AC,Sheet1!S71_ItemType,$AD:$AD)","v":0},null,null,null,null,null,null,null,null,null,null,null,null,null,null,null,83,"IR"]
[{"$f":"IF(RIGHT('Org structure'!D83,18)<>\"[Name of sub-vote]\",'Org structure'!D83,\"\")","v":""},null,{"$f":"-SUMIFS(Sheet1!S71_OriginalBudget,Sheet1!S71_SubMunicipalVoteNo,$AC:$AC,Sheet1!S71_ItemType,$AD:$AD)","v":0},{"$f":"-SUMIFS(Sheet1!S71_SpecialAdjustedBudget,Sheet1!S71_SubMunicipalVoteNo,$AC:$AC,Sheet1!S71_ItemType,$AD:$AD)","v":0},null,null,null,null,{"$f":"SUMIFS(Sheet1!S71_AdjustmentAmount,Sheet1!S71_SubMunicipalVoteNo,$AC:$AC,Sheet1!S71_ItemType,$AD:$AD)","v":0},0,0,{"$f":"-SUMIFS(Sheet1!S71_OY1AdjustedBudget,Sheet1!S71_SubMunicipalVoteNo,$AC:$AC,Sheet1!S71_ItemType,$AD:$AD)","v":0},{"$f":"-SUMIFS(Sheet1!S71_OY2AdjustedBudget,Sheet1!S71_SubMunicipalVoteNo,$AC:$AC,Sheet1!S71_ItemType,$AD:$AD)","v":0},null,null,null,null,null,null,null,null,null,null,null,null,null,null,null,84,"IR"]
[{"$f":"IF(RIGHT('Org structure'!D84,18)<>\"[Name of sub-vote]\",'Org structure'!D84,\"\")","v":""},null,{"$f":"-SUMIFS(Sheet1!S71_OriginalBudget,Sheet1!S71_SubMunicipalVoteNo,$AC:$AC,Sheet1!S71_ItemType,$AD:$AD)","v":0},{"$f":"-SUMIFS(Sheet1!S71_SpecialAdjustedBudget,Sheet1!S71_SubMunicipalVoteNo,$AC:$AC,Sheet1!S71_ItemType,$AD:$AD)","v":0},null,null,null,null,{"$f":"SUMIFS(Sheet1!S71_AdjustmentAmount,Sheet1!S71_SubMunicipalVoteNo,$AC:$AC,Sheet1!S71_ItemType,$AD:$AD)","v":0},0,0,{"$f":"-SUMIFS(Sheet1!S71_OY1AdjustedBudget,Sheet1!S71_SubMunicipalVoteNo,$AC:$AC,Sheet1!S71_ItemType,$AD:$AD)","v":0},{"$f":"-SUMIFS(Sheet1!S71_OY2AdjustedBudget,Sheet1!S71_SubMunicipalVoteNo,$AC:$AC,Sheet1!S71_ItemType,$AD:$AD)","v":0},null,null,null,null,null,null,null,null,null,null,null,null,null,null,null,85,"IR"]
[{"$f":"IF(RIGHT('Org structure'!D85,18)<>\"[Name of sub-vote]\",'Org structure'!D85,\"\")","v":""},null,{"$f":"-SUMIFS(Sheet1!S71_OriginalBudget,Sheet1!S71_SubMunicipalVoteNo,$AC:$AC,Sheet1!S71_ItemType,$AD:$AD)","v":0},{"$f":"-SUMIFS(Sheet1!S71_SpecialAdjustedBudget,Sheet1!S71_SubMunicipalVoteNo,$AC:$AC,Sheet1!S71_ItemType,$AD:$AD)","v":0},null,null,null,null,{"$f":"SUMIFS(Sheet1!S71_AdjustmentAmount,Sheet1!S71_SubMunicipalVoteNo,$AC:$AC,Sheet1!S71_ItemType,$AD:$AD)","v":0},0,0,{"$f":"-SUMIFS(Sheet1!S71_OY1AdjustedBudget,Sheet1!S71_SubMunicipalVoteNo,$AC:$AC,Sheet1!S71_ItemType,$AD:$AD)","v":0},{"$f":"-SUMIFS(Sheet1!S71_OY2AdjustedBudget,Sheet1!S71_SubMunicipalVoteNo,$AC:$AC,Sheet1!S71_ItemType,$AD:$AD)","v":0},null,null,null,null,null,null,null,null,null,null,null,null,null,null,null,86,"IR"]
[{"$f":"IF(RIGHT('Org structure'!D86,18)<>\"[Name of sub-vote]\",'Org structure'!D86,\"\")","v":""},null,{"$f":"-SUMIFS(Sheet1!S71_OriginalBudget,Sheet1!S71_SubMunicipalVoteNo,$AC:$AC,Sheet1!S71_ItemType,$AD:$AD)","v":0},{"$f":"-SUMIFS(Sheet1!S71_SpecialAdjustedBudget,Sheet1!S71_SubMunicipalVoteNo,$AC:$AC,Sheet1!S71_ItemType,$AD:$AD)","v":0},null,null,null,null,{"$f":"SUMIFS(Sheet1!S71_AdjustmentAmount,Sheet1!S71_SubMunicipalVoteNo,$AC:$AC,Sheet1!S71_ItemType,$AD:$AD)","v":0},0,0,{"$f":"-SUMIFS(Sheet1!S71_OY1AdjustedBudget,Sheet1!S71_SubMunicipalVoteNo,$AC:$AC,Sheet1!S71_ItemType,$AD:$AD)","v":0},{"$f":"-SUMIFS(Sheet1!S71_OY2AdjustedBudget,Sheet1!S71_SubMunicipalVoteNo,$AC:$AC,Sheet1!S71_ItemType,$AD:$AD)","v":0},null,null,null,null,null,null,null,null,null,null,null,null,null,null,null,87,"IR"]
[{"$f":"IF(RIGHT('Org structure'!D87,18)<>\"[Name of sub-vote]\",'Org structure'!D87,\"\")","v":""},null,{"$f":"-SUMIFS(Sheet1!S71_OriginalBudget,Sheet1!S71_SubMunicipalVoteNo,$AC:$AC,Sheet1!S71_ItemType,$AD:$AD)","v":0},{"$f":"-SUMIFS(Sheet1!S71_SpecialAdjustedBudget,Sheet1!S71_SubMunicipalVoteNo,$AC:$AC,Sheet1!S71_ItemType,$AD:$AD)","v":0},null,null,null,null,{"$f":"SUMIFS(Sheet1!S71_AdjustmentAmount,Sheet1!S71_SubMunicipalVoteNo,$AC:$AC,Sheet1!S71_ItemType,$AD:$AD)","v":0},0,0,{"$f":"-SUMIFS(Sheet1!S71_OY1AdjustedBudget,Sheet1!S71_SubMunicipalVoteNo,$AC:$AC,Sheet1!S71_ItemType,$AD:$AD)","v":0},{"$f":"-SUMIFS(Sheet1!S71_OY2AdjustedBudget,Sheet1!S71_SubMunicipalVoteNo,$AC:$AC,Sheet1!S71_ItemType,$AD:$AD)","v":0},null,null,null,null,null,null,null,null,null,null,null,null,null,null,null,88,"IR"]
[{"$f":"IF(RIGHT('Org structure'!D88,18)<>\"[Name of sub-vote]\",'Org structure'!D88,\"\")","v":""},null,{"$f":"-SUMIFS(Sheet1!S71_OriginalBudget,Sheet1!S71_SubMunicipalVoteNo,$AC:$AC,Sheet1!S71_ItemType,$AD:$AD)","v":0},{"$f":"-SUMIFS(Sheet1!S71_SpecialAdjustedBudget,Sheet1!S71_SubMunicipalVoteNo,$AC:$AC,Sheet1!S71_ItemType,$AD:$AD)","v":0},null,null,null,null,{"$f":"SUMIFS(Sheet1!S71_AdjustmentAmount,Sheet1!S71_SubMunicipalVoteNo,$AC:$AC,Sheet1!S71_ItemType,$AD:$AD)","v":0},0,0,{"$f":"-SUMIFS(Sheet1!S71_OY1AdjustedBudget,Sheet1!S71_SubMunicipalVoteNo,$AC:$AC,Sheet1!S71_ItemType,$AD:$AD)","v":0},{"$f":"-SUMIFS(Sheet1!S71_OY2AdjustedBudget,Sheet1!S71_SubMunicipalVoteNo,$AC:$AC,Sheet1!S71_ItemType,$AD:$AD)","v":0},null,null,null,null,null,null,null,null,null,null,null,null,null,null,null,89,"IR"]
[{"$f":"IF(RIGHT('Org structure'!D89,18)<>\"[Name of sub-vote]\",'Org structure'!D89,\"\")","v":""},null,{"$f":"-SUMIFS(Sheet1!S71_OriginalBudget,Sheet1!S71_SubMunicipalVoteNo,$AC:$AC,Sheet1!S71_ItemType,$AD:$AD)","v":0},{"$f":"-SUMIFS(Sheet1!S71_SpecialAdjustedBudget,Sheet1!S71_SubMunicipalVoteNo,$AC:$AC,Sheet1!S71_ItemType,$AD:$AD)","v":0},null,null,null,null,{"$f":"SUMIFS(Sheet1!S71_AdjustmentAmount,Sheet1!S71_SubMunicipalVoteNo,$AC:$AC,Sheet1!S71_ItemType,$AD:$AD)","v":0},0,0,{"$f":"-SUMIFS(Sheet1!S71_OY1AdjustedBudget,Sheet1!S71_SubMunicipalVoteNo,$AC:$AC,Sheet1!S71_ItemType,$AD:$AD)","v":0},{"$f":"-SUMIFS(Sheet1!S71_OY2AdjustedBudget,Sheet1!S71_SubMunicipalVoteNo,$AC:$AC,Sheet1!S71_ItemType,$AD:$AD)","v":0},null,null,null,null,null,null,null,null,null,null,null,null,null,null,null,810,"IR"]
[{"$f":"'Org structure'!A10","v":"Vote 9 - Roads"},null,{"$f":"SUM(C96:C105)","v":30600851},{"$f":"SUM(D96:D105)","v":0},0,0,0,0,2779178,2779178,33380029,{"$f":"SUM(L96:L105)","v":38361612},{"$f":"SUM(M96:M105)","v":40097947}]
[{"$f":"IF(RIGHT('Org structure'!D92,18)<>\"[Name of sub-vote]\",'Org structure'!D92,\"\")","v":""},null,{"$f":"-SUMIFS(Sheet1!S71_OriginalBudget,Sheet1!S71_SubMunicipalVoteNo,$AC:$AC,Sheet1!S71_ItemType,$AD:$AD)","v":30600851},{"$f":"-SUMIFS(Sheet1!S71_SpecialAdjustedBudget,Sheet1!S71_SubMunicipalVoteNo,$AC:$AC,Sheet1!S71_ItemType,$AD:$AD)","v":0},null,null,null,null,{"$f":"SUMIFS(Sheet1!S71_AdjustmentAmount,Sheet1!S71_SubMunicipalVoteNo,$AC:$AC,Sheet1!S71_ItemType,$AD:$AD)","v":2779178},2779178,33380029,{"$f":"-SUMIFS(Sheet1!S71_OY1AdjustedBudget,Sheet1!S71_SubMunicipalVoteNo,$AC:$AC,Sheet1!S71_ItemType,$AD:$AD)","v":38361612},{"$f":"-SUMIFS(Sheet1!S71_OY2AdjustedBudget,Sheet1!S71_SubMunicipalVoteNo,$AC:$AC,Sheet1!S71_ItemType,$AD:$AD)","v":40097947},null,null,null,null,null,null,null,null,null,null,null,null,null,null,null,91,"IR"]
[{"$f":"IF(RIGHT('Org structure'!D93,18)<>\"[Name of sub-vote]\",'Org structure'!D93,\"\")","v":""},null,{"$f":"-SUMIFS(Sheet1!S71_OriginalBudget,Sheet1!S71_SubMunicipalVoteNo,$AC:$AC,Sheet1!S71_ItemType,$AD:$AD)","v":0},{"$f":"-SUMIFS(Sheet1!S71_SpecialAdjustedBudget,Sheet1!S71_SubMunicipalVoteNo,$AC:$AC,Sheet1!S71_ItemType,$AD:$AD)","v":0},null,null,null,null,{"$f":"SUMIFS(Sheet1!S71_AdjustmentAmount,Sheet1!S71_SubMunicipalVoteNo,$AC:$AC,Sheet1!S71_ItemType,$AD:$AD)","v":0},0,0,{"$f":"-SUMIFS(Sheet1!S71_OY1AdjustedBudget,Sheet1!S71_SubMunicipalVoteNo,$AC:$AC,Sheet1!S71_ItemType,$AD:$AD)","v":0},{"$f":"-SUMIFS(Sheet1!S71_OY2AdjustedBudget,Sheet1!S71_SubMunicipalVoteNo,$AC:$AC,Sheet1!S71_ItemType,$AD:$AD)","v":0},null,null,null,null,null,null,null,null,null,null,null,null,null,null,null,92,"IR"]
[{"$f":"IF(RIGHT('Org structure'!D94,18)<>\"[Name of sub-vote]\",'Org structure'!D94,\"\")","v":""},null,{"$f":"-SUMIFS(Sheet1!S71_OriginalBudget,Sheet1!S71_SubMunicipalVoteNo,$AC:$AC,Sheet1!S71_ItemType,$AD:$AD)","v":0},{"$f":"-SUMIFS(Sheet1!S71_SpecialAdjustedBudget,Sheet1!S71_SubMunicipalVoteNo,$AC:$AC,Sheet1!S71_ItemType,$AD:$AD)","v":0},null,null,null,null,{"$f":"SUMIFS(Sheet1!S71_AdjustmentAmount,Sheet1!S71_SubMunicipalVoteNo,$AC:$AC,Sheet1!S71_ItemType,$AD:$AD)","v":0},0,0,{"$f":"-SUMIFS(Sheet1!S71_OY1AdjustedBudget,Sheet1!S71_SubMunicipalVoteNo,$AC:$AC,Sheet1!S71_ItemType,$AD:$AD)","v":0},{"$f":"-SUMIFS(Sheet1!S71_OY2AdjustedBudget,Sheet1!S71_SubMunicipalVoteNo,$AC:$AC,Sheet1!S71_ItemType,$AD:$AD)","v":0},null,null,null,null,null,null,null,null,null,null,null,null,null,null,null,93,"IR"]
[{"$f":"IF(RIGHT('Org structure'!D95,18)<>\"[Name of sub-vote]\",'Org structure'!D95,\"\")","v":""},null,{"$f":"-SUMIFS(Sheet1!S71_OriginalBudget,Sheet1!S71_SubMunicipalVoteNo,$AC:$AC,Sheet1!S71_ItemType,$AD:$AD)","v":0},{"$f":"-SUMIFS(Sheet1!S71_SpecialAdjustedBudget,Sheet1!S71_SubMunicipalVoteNo,$AC:$AC,Sheet1!S71_ItemType,$AD:$AD)","v":0},null,null,null,null,{"$f":"SUMIFS(Sheet1!S71_AdjustmentAmount,Sheet1!S71_SubMunicipalVoteNo,$AC:$AC,Sheet1!S71_ItemType,$AD:$AD)","v":0},0,0,{"$f":"-SUMIFS(Sheet1!S71_OY1AdjustedBudget,Sheet1!S71_SubMunicipalVoteNo,$AC:$AC,Sheet1!S71_ItemType,$AD:$AD)","v":0},{"$f":"-SUMIFS(Sheet1!S71_OY2AdjustedBudget,Sheet1!S71_SubMunicipalVoteNo,$AC:$AC,Sheet1!S71_ItemType,$AD:$AD)","v":0},null,null,null,null,null,null,null,null,null,null,null,null,null,null,null,94,"IR"]
[{"$f":"IF(RIGHT('Org structure'!D96,18)<>\"[Name of sub-vote]\",'Org structure'!D96,\"\")","v":""},null,{"$f":"-SUMIFS(Sheet1!S71_OriginalBudget,Sheet1!S71_SubMunicipalVoteNo,$AC:$AC,Sheet1!S71_ItemType,$AD:$AD)","v":0},{"$f":"-SUMIFS(Sheet1!S71_SpecialAdjustedBudget,Sheet1!S71_SubMunicipalVoteNo,$AC:$AC,Sheet1!S71_ItemType,$AD:$AD)","v":0},null,null,null,null,{"$f":"SUMIFS(Sheet1!S71_AdjustmentAmount,Sheet1!S71_SubMunicipalVoteNo,$AC:$AC,Sheet1!S71_ItemType,$AD:$AD)","v":0},0,0,{"$f":"-SUMIFS(Sheet1!S71_OY1AdjustedBudget,Sheet1!S71_SubMunicipalVoteNo,$AC:$AC,Sheet1!S71_ItemType,$AD:$AD)","v":0},{"$f":"-SUMIFS(Sheet1!S71_OY2AdjustedBudget,Sheet1!S71_SubMunicipalVoteNo,$AC:$AC,Sheet1!S71_ItemType,$AD:$AD)","v":0},null,null,null,null,null,null,null,null,null,null,null,null,null,null,null,95,"IR"]
[{"$f":"IF(RIGHT('Org structure'!D97,18)<>\"[Name of sub-vote]\",'Org structure'!D97,\"\")","v":""},null,{"$f":"-SUMIFS(Sheet1!S71_OriginalBudget,Sheet1!S71_SubMunicipalVoteNo,$AC:$AC,Sheet1!S71_ItemType,$AD:$AD)","v":0},{"$f":"-SUMIFS(Sheet1!S71_SpecialAdjustedBudget,Sheet1!S71_SubMunicipalVoteNo,$AC:$AC,Sheet1!S71_ItemType,$AD:$AD)","v":0},null,null,null,null,{"$f":"SUMIFS(Sheet1!S71_AdjustmentAmount,Sheet1!S71_SubMunicipalVoteNo,$AC:$AC,Sheet1!S71_ItemType,$AD:$AD)","v":0},0,0,{"$f":"-SUMIFS(Sheet1!S71_OY1AdjustedBudget,Sheet1!S71_SubMunicipalVoteNo,$AC:$AC,Sheet1!S71_ItemType,$AD:$AD)","v":0},{"$f":"-SUMIFS(Sheet1!S71_OY2AdjustedBudget,Sheet1!S71_SubMunicipalVoteNo,$AC:$AC,Sheet1!S71_ItemType,$AD:$AD)","v":0},null,null,null,null,null,null,null,null,null,null,null,null,null,null,null,96,"IR"]
[{"$f":"IF(RIGHT('Org structure'!D98,18)<>\"[Name of sub-vote]\",'Org structure'!D98,\"\")","v":""},null,{"$f":"-SUMIFS(Sheet1!S71_OriginalBudget,Sheet1!S71_SubMunicipalVoteNo,$AC:$AC,Sheet1!S71_ItemType,$AD:$AD)","v":0},{"$f":"-SUMIFS(Sheet1!S71_SpecialAdjustedBudget,Sheet1!S71_SubMunicipalVoteNo,$AC:$AC,Sheet1!S71_ItemType,$AD:$AD)","v":0},null,null,null,null,{"$f":"SUMIFS(Sheet1!S71_AdjustmentAmount,Sheet1!S71_SubMunicipalVoteNo,$AC:$AC,Sheet1!S71_ItemType,$AD:$AD)","v":0},0,0,{"$f":"-SUMIFS(Sheet1!S71_OY1AdjustedBudget,Sheet1!S71_SubMunicipalVoteNo,$AC:$AC,Sheet1!S71_ItemType,$AD:$AD)","v":0},{"$f":"-SUMIFS(Sheet1!S71_OY2AdjustedBudget,Sheet1!S71_SubMunicipalVoteNo,$AC:$AC,Sheet1!S71_ItemType,$AD:$AD)","v":0},null,null,null,null,null,null,null,null,null,null,null,null,null,null,null,97,"IR"]
[{"$f":"IF(RIGHT('Org structure'!D99,18)<>\"[Name of sub-vote]\",'Org structure'!D99,\"\")","v":""},null,{"$f":"-SUMIFS(Sheet1!S71_OriginalBudget,Sheet1!S71_SubMunicipalVoteNo,$AC:$AC,Sheet1!S71_ItemType,$AD:$AD)","v":0},{"$f":"-SUMIFS(Sheet1!S71_SpecialAdjustedBudget,Sheet1!S71_SubMunicipalVoteNo,$AC:$AC,Sheet1!S71_ItemType,$AD:$AD)","v":0},null,null,null,null,{"$f":"SUMIFS(Sheet1!S71_AdjustmentAmount,Sheet1!S71_SubMunicipalVoteNo,$AC:$AC,Sheet1!S71_ItemType,$AD:$AD)","v":0},0,0,{"$f":"-SUMIFS(Sheet1!S71_OY1AdjustedBudget,Sheet1!S71_SubMunicipalVoteNo,$AC:$AC,Sheet1!S71_ItemType,$AD:$AD)","v":0},{"$f":"-SUMIFS(Sheet1!S71_OY2AdjustedBudget,Sheet1!S71_SubMunicipalVoteNo,$AC:$AC,Sheet1!S71_ItemType,$AD:$AD)","v":0},null,null,null,null,null,null,null,null,null,null,null,null,null,null,null,98,"IR"]
[{"$f":"IF(RIGHT('Org structure'!D100,18)<>\"[Name of sub-vote]\",'Org structure'!D100,\"\")","v":""},null,{"$f":"-SUMIFS(Sheet1!S71_OriginalBudget,Sheet1!S71_SubMunicipalVoteNo,$AC:$AC,Sheet1!S71_ItemType,$AD:$AD)","v":0},{"$f":"-SUMIFS(Sheet1!S71_SpecialAdjustedBudget,Sheet1!S71_SubMunicipalVoteNo,$AC:$AC,Sheet1!S71_ItemType,$AD:$AD)","v":0},null,null,null,null,{"$f":"SUMIFS(Sheet1!S71_AdjustmentAmount,Sheet1!S71_SubMunicipalVoteNo,$AC:$AC,Sheet1!S71_ItemType,$AD:$AD)","v":0},0,0,{"$f":"-SUMIFS(Sheet1!S71_OY1AdjustedBudget,Sheet1!S71_SubMunicipalVoteNo,$AC:$AC,Sheet1!S71_ItemType,$AD:$AD)","v":0},{"$f":"-SUMIFS(Sheet1!S71_OY2AdjustedBudget,Sheet1!S71_SubMunicipalVoteNo,$AC:$AC,Sheet1!S71_ItemType,$AD:$AD)","v":0},null,null,null,null,null,null,null,null,null,null,null,null,null,null,null,99,"IR"]
[{"$f":"IF(RIGHT('Org structure'!D101,18)<>\"[Name of sub-vote]\",'Org structure'!D101,\"\")","v":0},null,{"$f":"-SUMIFS(Sheet1!S71_OriginalBudget,Sheet1!S71_SubMunicipalVoteNo,$AC:$AC,Sheet1!S71_ItemType,$AD:$AD)","v":0},{"$f":"-SUMIFS(Sheet1!S71_SpecialAdjustedBudget,Sheet1!S71_SubMunicipalVoteNo,$AC:$AC,Sheet1!S71_ItemType,$AD:$AD)","v":0},null,null,null,null,{"$f":"SUMIFS(Sheet1!S71_AdjustmentAmount,Sheet1!S71_SubMunicipalVoteNo,$AC:$AC,Sheet1!S71_ItemType,$AD:$AD)","v":0},0,0,{"$f":"-SUMIFS(Sheet1!S71_OY1AdjustedBudget,Sheet1!S71_SubMunicipalVoteNo,$AC:$AC,Sheet1!S71_ItemType,$AD:$AD)","v":0},{"$f":"-SUMIFS(Sheet1!S71_OY2AdjustedBudget,Sheet1!S71_SubMunicipalVoteNo,$AC:$AC,Sheet1!S71_ItemType,$AD:$AD)","v":0},null,null,null,null,null,null,null,null,null,null,null,null,null,null,null,910,"IR"]
[{"$f":"'Org structure'!A11","v":"Vote 10 - Sport and Recreation"},null,{"$f":"SUM(C107:C116)","v":0},{"$f":"SUM(D107:D116)","v":0},0,0,0,0,0,0,0,{"$f":"SUM(L107:L116)","v":0},{"$f":"SUM(M107:M116)","v":0}]
[{"$f":"IF(RIGHT('Org structure'!D102,18)<>\"[Name of sub-vote]\",'Org structure'!D102,\"\")","v":"10.1 - Recreational Facilities"},null,{"$f":"-SUMIFS(Sheet1!S71_OriginalBudget,Sheet1!S71_SubMunicipalVoteNo,$AC:$AC,Sheet1!S71_ItemType,$AD:$AD)","v":0},{"$f":"-SUMIFS(Sheet1!S71_SpecialAdjustedBudget,Sheet1!S71_SubMunicipalVoteNo,$AC:$AC,Sheet1!S71_ItemType,$AD:$AD)","v":0},null,null,null,null,{"$f":"SUMIFS(Sheet1!S71_AdjustmentAmount,Sheet1!S71_SubMunicipalVoteNo,$AC:$AC,Sheet1!S71_ItemType,$AD:$AD)","v":0},0,0,{"$f":"-SUMIFS(Sheet1!S71_OY1AdjustedBudget,Sheet1!S71_SubMunicipalVoteNo,$AC:$AC,Sheet1!S71_ItemType,$AD:$AD)","v":0},{"$f":"-SUMIFS(Sheet1!S71_OY2AdjustedBudget,Sheet1!S71_SubMunicipalVoteNo,$AC:$AC,Sheet1!S71_ItemType,$AD:$AD)","v":0},null,null,null,null,null,null,null,null,null,null,null,null,null,null,null,101,"IR"]
[{"$f":"IF(RIGHT('Org structure'!D103,18)<>\"[Name of sub-vote]\",'Org structure'!D103,\"\")","v":""},null,{"$f":"-SUMIFS(Sheet1!S71_OriginalBudget,Sheet1!S71_SubMunicipalVoteNo,$AC:$AC,Sheet1!S71_ItemType,$AD:$AD)","v":0},{"$f":"-SUMIFS(Sheet1!S71_SpecialAdjustedBudget,Sheet1!S71_SubMunicipalVoteNo,$AC:$AC,Sheet1!S71_ItemType,$AD:$AD)","v":0},null,null,null,null,{"$f":"SUMIFS(Sheet1!S71_AdjustmentAmount,Sheet1!S71_SubMunicipalVoteNo,$AC:$AC,Sheet1!S71_ItemType,$AD:$AD)","v":0},0,0,{"$f":"-SUMIFS(Sheet1!S71_OY1AdjustedBudget,Sheet1!S71_SubMunicipalVoteNo,$AC:$AC,Sheet1!S71_ItemType,$AD:$AD)","v":0},{"$f":"-SUMIFS(Sheet1!S71_OY2AdjustedBudget,Sheet1!S71_SubMunicipalVoteNo,$AC:$AC,Sheet1!S71_ItemType,$AD:$AD)","v":0},null,null,null,null,null,null,null,null,null,null,null,null,null,null,null,102,"IR"]
[{"$f":"IF(RIGHT('Org structure'!D104,18)<>\"[Name of sub-vote]\",'Org structure'!D104,\"\")","v":""},null,{"$f":"-SUMIFS(Sheet1!S71_OriginalBudget,Sheet1!S71_SubMunicipalVoteNo,$AC:$AC,Sheet1!S71_ItemType,$AD:$AD)","v":0},{"$f":"-SUMIFS(Sheet1!S71_SpecialAdjustedBudget,Sheet1!S71_SubMunicipalVoteNo,$AC:$AC,Sheet1!S71_ItemType,$AD:$AD)","v":0},null,null,null,null,{"$f":"SUMIFS(Sheet1!S71_AdjustmentAmount,Sheet1!S71_SubMunicipalVoteNo,$AC:$AC,Sheet1!S71_ItemType,$AD:$AD)","v":0},0,0,{"$f":"-SUMIFS(Sheet1!S71_OY1AdjustedBudget,Sheet1!S71_SubMunicipalVoteNo,$AC:$AC,Sheet1!S71_ItemType,$AD:$AD)","v":0},{"$f":"-SUMIFS(Sheet1!S71_OY2AdjustedBudget,Sheet1!S71_SubMunicipalVoteNo,$AC:$AC,Sheet1!S71_ItemType,$AD:$AD)","v":0},null,null,null,null,null,null,null,null,null,null,null,null,null,null,null,103,"IR"]
[{"$f":"IF(RIGHT('Org structure'!D105,18)<>\"[Name of sub-vote]\",'Org structure'!D105,\"\")","v":""},null,{"$f":"-SUMIFS(Sheet1!S71_OriginalBudget,Sheet1!S71_SubMunicipalVoteNo,$AC:$AC,Sheet1!S71_ItemType,$AD:$AD)","v":0},{"$f":"-SUMIFS(Sheet1!S71_SpecialAdjustedBudget,Sheet1!S71_SubMunicipalVoteNo,$AC:$AC,Sheet1!S71_ItemType,$AD:$AD)","v":0},null,null,null,null,{"$f":"SUMIFS(Sheet1!S71_AdjustmentAmount,Sheet1!S71_SubMunicipalVoteNo,$AC:$AC,Sheet1!S71_ItemType,$AD:$AD)","v":0},0,0,{"$f":"-SUMIFS(Sheet1!S71_OY1AdjustedBudget,Sheet1!S71_SubMunicipalVoteNo,$AC:$AC,Sheet1!S71_ItemType,$AD:$AD)","v":0},{"$f":"-SUMIFS(Sheet1!S71_OY2AdjustedBudget,Sheet1!S71_SubMunicipalVoteNo,$AC:$AC,Sheet1!S71_ItemType,$AD:$AD)","v":0},null,null,null,null,null,null,null,null,null,null,null,null,null,null,null,104,"IR"]
[{"$f":"IF(RIGHT('Org structure'!D106,18)<>\"[Name of sub-vote]\",'Org structure'!D106,\"\")","v":""},null,{"$f":"-SUMIFS(Sheet1!S71_OriginalBudget,Sheet1!S71_SubMunicipalVoteNo,$AC:$AC,Sheet1!S71_ItemType,$AD:$AD)","v":0},{"$f":"-SUMIFS(Sheet1!S71_SpecialAdjustedBudget,Sheet1!S71_SubMunicipalVoteNo,$AC:$AC,Sheet1!S71_ItemType,$AD:$AD)","v":0},null,null,null,null,{"$f":"SUMIFS(Sheet1!S71_AdjustmentAmount,Sheet1!S71_SubMunicipalVoteNo,$AC:$AC,Sheet1!S71_ItemType,$AD:$AD)","v":0},0,0,{"$f":"-SUMIFS(Sheet1!S71_OY1AdjustedBudget,Sheet1!S71_SubMunicipalVoteNo,$AC:$AC,Sheet1!S71_ItemType,$AD:$AD)","v":0},{"$f":"-SUMIFS(Sheet1!S71_OY2AdjustedBudget,Sheet1!S71_SubMunicipalVoteNo,$AC:$AC,Sheet1!S71_ItemType,$AD:$AD)","v":0},null,null,null,null,null,null,null,null,null,null,null,null,null,null,null,105,"IR"]
[{"$f":"IF(RIGHT('Org structure'!D107,18)<>\"[Name of sub-vote]\",'Org structure'!D107,\"\")","v":""},null,{"$f":"-SUMIFS(Sheet1!S71_OriginalBudget,Sheet1!S71_SubMunicipalVoteNo,$AC:$AC,Sheet1!S71_ItemType,$AD:$AD)","v":0},{"$f":"-SUMIFS(Sheet1!S71_SpecialAdjustedBudget,Sheet1!S71_SubMunicipalVoteNo,$AC:$AC,Sheet1!S71_ItemType,$AD:$AD)","v":0},null,null,null,null,{"$f":"SUMIFS(Sheet1!S71_AdjustmentAmount,Sheet1!S71_SubMunicipalVoteNo,$AC:$AC,Sheet1!S71_ItemType,$AD:$AD)","v":0},0,0,{"$f":"-SUMIFS(Sheet1!S71_OY1AdjustedBudget,Sheet1!S71_SubMunicipalVoteNo,$AC:$AC,Sheet1!S71_ItemType,$AD:$AD)","v":0},{"$f":"-SUMIFS(Sheet1!S71_OY2AdjustedBudget,Sheet1!S71_SubMunicipalVoteNo,$AC:$AC,Sheet1!S71_ItemType,$AD:$AD)","v":0},null,null,null,null,null,null,null,null,null,null,null,null,null,null,null,106,"IR"]
[{"$f":"IF(RIGHT('Org structure'!D108,18)<>\"[Name of sub-vote]\",'Org structure'!D108,\"\")","v":""},null,{"$f":"-SUMIFS(Sheet1!S71_OriginalBudget,Sheet1!S71_SubMunicipalVoteNo,$AC:$AC,Sheet1!S71_ItemType,$AD:$AD)","v":0},{"$f":"-SUMIFS(Sheet1!S71_SpecialAdjustedBudget,Sheet1!S71_SubMunicipalVoteNo,$AC:$AC,Sheet1!S71_ItemType,$AD:$AD)","v":0},null,null,null,null,{"$f":"SUMIFS(Sheet1!S71_AdjustmentAmount,Sheet1!S71_SubMunicipalVoteNo,$AC:$AC,Sheet1!S71_ItemType,$AD:$AD)","v":0},0,0,{"$f":"-SUMIFS(Sheet1!S71_OY1AdjustedBudget,Sheet1!S71_SubMunicipalVoteNo,$AC:$AC,Sheet1!S71_ItemType,$AD:$AD)","v":0},{"$f":"-SUMIFS(Sheet1!S71_OY2AdjustedBudget,Sheet1!S71_SubMunicipalVoteNo,$AC:$AC,Sheet1!S71_ItemType,$AD:$AD)","v":0},null,null,null,null,null,null,null,null,null,null,null,null,null,null,null,107,"IR"]
[{"$f":"IF(RIGHT('Org structure'!D109,18)<>\"[Name of sub-vote]\",'Org structure'!D109,\"\")","v":""},null,{"$f":"-SUMIFS(Sheet1!S71_OriginalBudget,Sheet1!S71_SubMunicipalVoteNo,$AC:$AC,Sheet1!S71_ItemType,$AD:$AD)","v":0},{"$f":"-SUMIFS(Sheet1!S71_SpecialAdjustedBudget,Sheet1!S71_SubMunicipalVoteNo,$AC:$AC,Sheet1!S71_ItemType,$AD:$AD)","v":0},null,null,null,null,{"$f":"SUMIFS(Sheet1!S71_AdjustmentAmount,Sheet1!S71_SubMunicipalVoteNo,$AC:$AC,Sheet1!S71_ItemType,$AD:$AD)","v":0},0,0,{"$f":"-SUMIFS(Sheet1!S71_OY1AdjustedBudget,Sheet1!S71_SubMunicipalVoteNo,$AC:$AC,Sheet1!S71_ItemType,$AD:$AD)","v":0},{"$f":"-SUMIFS(Sheet1!S71_OY2AdjustedBudget,Sheet1!S71_SubMunicipalVoteNo,$AC:$AC,Sheet1!S71_ItemType,$AD:$AD)","v":0},null,null,null,null,null,null,null,null,null,null,null,null,null,null,null,108,"IR"]
[{"$f":"IF(RIGHT('Org structure'!D110,18)<>\"[Name of sub-vote]\",'Org structure'!D110,\"\")","v":""},null,{"$f":"-SUMIFS(Sheet1!S71_OriginalBudget,Sheet1!S71_SubMunicipalVoteNo,$AC:$AC,Sheet1!S71_ItemType,$AD:$AD)","v":0},{"$f":"-SUMIFS(Sheet1!S71_SpecialAdjustedBudget,Sheet1!S71_SubMunicipalVoteNo,$AC:$AC,Sheet1!S71_ItemType,$AD:$AD)","v":0},null,null,null,null,{"$f":"SUMIFS(Sheet1!S71_AdjustmentAmount,Sheet1!S71_SubMunicipalVoteNo,$AC:$AC,Sheet1!S71_ItemType,$AD:$AD)","v":0},0,0,{"$f":"-SUMIFS(Sheet1!S71_OY1AdjustedBudget,Sheet1!S71_SubMunicipalVoteNo,$AC:$AC,Sheet1!S71_ItemType,$AD:$AD)","v":0},{"$f":"-SUMIFS(Sheet1!S71_OY2AdjustedBudget,Sheet1!S71_SubMunicipalVoteNo,$AC:$AC,Sheet1!S71_ItemType,$AD:$AD)","v":0},null,null,null,null,null,null,null,null,null,null,null,null,null,null,null,109,"IR"]
[{"$f":"IF(RIGHT('Org structure'!D111,18)<>\"[Name of sub-vote]\",'Org structure'!D111,\"\")","v":""},null,{"$f":"-SUMIFS(Sheet1!S71_OriginalBudget,Sheet1!S71_SubMunicipalVoteNo,$AC:$AC,Sheet1!S71_ItemType,$AD:$AD)","v":0},{"$f":"-SUMIFS(Sheet1!S71_SpecialAdjustedBudget,Sheet1!S71_SubMunicipalVoteNo,$AC:$AC,Sheet1!S71_ItemType,$AD:$AD)","v":0},null,null,null,null,{"$f":"SUMIFS(Sheet1!S71_AdjustmentAmount,Sheet1!S71_SubMunicipalVoteNo,$AC:$AC,Sheet1!S71_ItemType,$AD:$AD)","v":0},0,0,{"$f":"-SUMIFS(Sheet1!S71_OY1AdjustedBudget,Sheet1!S71_SubMunicipalVoteNo,$AC:$AC,Sheet1!S71_ItemType,$AD:$AD)","v":0},{"$f":"-SUMIFS(Sheet1!S71_OY2AdjustedBudget,Sheet1!S71_SubMunicipalVoteNo,$AC:$AC,Sheet1!S71_ItemType,$AD:$AD)","v":0},null,null,null,null,null,null,null,null,null,null,null,null,null,null,null,1010,"IR"]
[{"$f":"'Org structure'!A12","v":"Vote 11 - [NAME OF VOTE 11]"},null,{"$f":"SUM(C118:C127)","v":0},{"$f":"SUM(D118:D127)","v":0},0,0,0,0,0,0,0,{"$f":"SUM(L118:L127)","v":0},{"$f":"SUM(M118:M127)","v":0}]
[{"$f":"IF(RIGHT('Org structure'!D113,18)<>\"[Name of sub-vote]\",'Org structure'!D113,\"\")","v":""},null,{"$f":"-SUMIFS(Sheet1!S71_OriginalBudget,Sheet1!S71_SubMunicipalVoteNo,$AC:$AC,Sheet1!S71_ItemType,$AD:$AD)","v":0},{"$f":"-SUMIFS(Sheet1!S71_SpecialAdjustedBudget,Sheet1!S71_SubMunicipalVoteNo,$AC:$AC,Sheet1!S71_ItemType,$AD:$AD)","v":0},null,null,null,null,{"$f":"SUMIFS(Sheet1!S71_AdjustmentAmount,Sheet1!S71_SubMunicipalVoteNo,$AC:$AC,Sheet1!S71_ItemType,$AD:$AD)","v":0},0,0,{"$f":"-SUMIFS(Sheet1!S71_OY1AdjustedBudget,Sheet1!S71_SubMunicipalVoteNo,$AC:$AC,Sheet1!S71_ItemType,$AD:$AD)","v":0},{"$f":"-SUMIFS(Sheet1!S71_OY2AdjustedBudget,Sheet1!S71_SubMunicipalVoteNo,$AC:$AC,Sheet1!S71_ItemType,$AD:$AD)","v":0},null,null,null,null,null,null,null,null,null,null,null,null,null,null,null,111,"IR"]
[{"$f":"IF(RIGHT('Org structure'!D114,18)<>\"[Name of sub-vote]\",'Org structure'!D114,\"\")","v":""},null,{"$f":"-SUMIFS(Sheet1!S71_OriginalBudget,Sheet1!S71_SubMunicipalVoteNo,$AC:$AC,Sheet1!S71_ItemType,$AD:$AD)","v":0},{"$f":"-SUMIFS(Sheet1!S71_SpecialAdjustedBudget,Sheet1!S71_SubMunicipalVoteNo,$AC:$AC,Sheet1!S71_ItemType,$AD:$AD)","v":0},null,null,null,null,{"$f":"SUMIFS(Sheet1!S71_AdjustmentAmount,Sheet1!S71_SubMunicipalVoteNo,$AC:$AC,Sheet1!S71_ItemType,$AD:$AD)","v":0},0,0,{"$f":"-SUMIFS(Sheet1!S71_OY1AdjustedBudget,Sheet1!S71_SubMunicipalVoteNo,$AC:$AC,Sheet1!S71_ItemType,$AD:$AD)","v":0},{"$f":"-SUMIFS(Sheet1!S71_OY2AdjustedBudget,Sheet1!S71_SubMunicipalVoteNo,$AC:$AC,Sheet1!S71_ItemType,$AD:$AD)","v":0},null,null,null,null,null,null,null,null,null,null,null,null,null,null,null,112,"IR"]
[{"$f":"IF(RIGHT('Org structure'!D115,18)<>\"[Name of sub-vote]\",'Org structure'!D115,\"\")","v":""},null,{"$f":"-SUMIFS(Sheet1!S71_OriginalBudget,Sheet1!S71_SubMunicipalVoteNo,$AC:$AC,Sheet1!S71_ItemType,$AD:$AD)","v":0},{"$f":"-SUMIFS(Sheet1!S71_SpecialAdjustedBudget,Sheet1!S71_SubMunicipalVoteNo,$AC:$AC,Sheet1!S71_ItemType,$AD:$AD)","v":0},null,null,null,null,{"$f":"SUMIFS(Sheet1!S71_AdjustmentAmount,Sheet1!S71_SubMunicipalVoteNo,$AC:$AC,Sheet1!S71_ItemType,$AD:$AD)","v":0},0,0,{"$f":"-SUMIFS(Sheet1!S71_OY1AdjustedBudget,Sheet1!S71_SubMunicipalVoteNo,$AC:$AC,Sheet1!S71_ItemType,$AD:$AD)","v":0},{"$f":"-SUMIFS(Sheet1!S71_OY2AdjustedBudget,Sheet1!S71_SubMunicipalVoteNo,$AC:$AC,Sheet1!S71_ItemType,$AD:$AD)","v":0},null,null,null,null,null,null,null,null,null,null,null,null,null,null,null,113,"IR"]
[{"$f":"IF(RIGHT('Org structure'!D116,18)<>\"[Name of sub-vote]\",'Org structure'!D116,\"\")","v":""},null,{"$f":"-SUMIFS(Sheet1!S71_OriginalBudget,Sheet1!S71_SubMunicipalVoteNo,$AC:$AC,Sheet1!S71_ItemType,$AD:$AD)","v":0},{"$f":"-SUMIFS(Sheet1!S71_SpecialAdjustedBudget,Sheet1!S71_SubMunicipalVoteNo,$AC:$AC,Sheet1!S71_ItemType,$AD:$AD)","v":0},null,null,null,null,{"$f":"SUMIFS(Sheet1!S71_AdjustmentAmount,Sheet1!S71_SubMunicipalVoteNo,$AC:$AC,Sheet1!S71_ItemType,$AD:$AD)","v":0},0,0,{"$f":"-SUMIFS(Sheet1!S71_OY1AdjustedBudget,Sheet1!S71_SubMunicipalVoteNo,$AC:$AC,Sheet1!S71_ItemType,$AD:$AD)","v":0},{"$f":"-SUMIFS(Sheet1!S71_OY2AdjustedBudget,Sheet1!S71_SubMunicipalVoteNo,$AC:$AC,Sheet1!S71_ItemType,$AD:$AD)","v":0},null,null,null,null,null,null,null,null,null,null,null,null,null,null,null,114,"IR"]
[{"$f":"IF(RIGHT('Org structure'!D117,18)<>\"[Name of sub-vote]\",'Org structure'!D117,\"\")","v":""},null,{"$f":"-SUMIFS(Sheet1!S71_OriginalBudget,Sheet1!S71_SubMunicipalVoteNo,$AC:$AC,Sheet1!S71_ItemType,$AD:$AD)","v":0},{"$f":"-SUMIFS(Sheet1!S71_SpecialAdjustedBudget,Sheet1!S71_SubMunicipalVoteNo,$AC:$AC,Sheet1!S71_ItemType,$AD:$AD)","v":0},null,null,null,null,{"$f":"SUMIFS(Sheet1!S71_AdjustmentAmount,Sheet1!S71_SubMunicipalVoteNo,$AC:$AC,Sheet1!S71_ItemType,$AD:$AD)","v":0},0,0,{"$f":"-SUMIFS(Sheet1!S71_OY1AdjustedBudget,Sheet1!S71_SubMunicipalVoteNo,$AC:$AC,Sheet1!S71_ItemType,$AD:$AD)","v":0},{"$f":"-SUMIFS(Sheet1!S71_OY2AdjustedBudget,Sheet1!S71_SubMunicipalVoteNo,$AC:$AC,Sheet1!S71_ItemType,$AD:$AD)","v":0},null,null,null,null,null,null,null,null,null,null,null,null,null,null,null,115,"IR"]
[{"$f":"IF(RIGHT('Org structure'!D118,18)<>\"[Name of sub-vote]\",'Org structure'!D118,\"\")","v":""},null,{"$f":"-SUMIFS(Sheet1!S71_OriginalBudget,Sheet1!S71_SubMunicipalVoteNo,$AC:$AC,Sheet1!S71_ItemType,$AD:$AD)","v":0},{"$f":"-SUMIFS(Sheet1!S71_SpecialAdjustedBudget,Sheet1!S71_SubMunicipalVoteNo,$AC:$AC,Sheet1!S71_ItemType,$AD:$AD)","v":0},null,null,null,null,{"$f":"SUMIFS(Sheet1!S71_AdjustmentAmount,Sheet1!S71_SubMunicipalVoteNo,$AC:$AC,Sheet1!S71_ItemType,$AD:$AD)","v":0},0,0,{"$f":"-SUMIFS(Sheet1!S71_OY1AdjustedBudget,Sheet1!S71_SubMunicipalVoteNo,$AC:$AC,Sheet1!S71_ItemType,$AD:$AD)","v":0},{"$f":"-SUMIFS(Sheet1!S71_OY2AdjustedBudget,Sheet1!S71_SubMunicipalVoteNo,$AC:$AC,Sheet1!S71_ItemType,$AD:$AD)","v":0},null,null,null,null,null,null,null,null,null,null,null,null,null,null,null,116,"IR"]
[{"$f":"IF(RIGHT('Org structure'!D119,18)<>\"[Name of sub-vote]\",'Org structure'!D119,\"\")","v":""},null,{"$f":"-SUMIFS(Sheet1!S71_OriginalBudget,Sheet1!S71_SubMunicipalVoteNo,$AC:$AC,Sheet1!S71_ItemType,$AD:$AD)","v":0},{"$f":"-SUMIFS(Sheet1!S71_SpecialAdjustedBudget,Sheet1!S71_SubMunicipalVoteNo,$AC:$AC,Sheet1!S71_ItemType,$AD:$AD)","v":0},null,null,null,null,{"$f":"SUMIFS(Sheet1!S71_AdjustmentAmount,Sheet1!S71_SubMunicipalVoteNo,$AC:$AC,Sheet1!S71_ItemType,$AD:$AD)","v":0},0,0,{"$f":"-SUMIFS(Sheet1!S71_OY1AdjustedBudget,Sheet1!S71_SubMunicipalVoteNo,$AC:$AC,Sheet1!S71_ItemType,$AD:$AD)","v":0},{"$f":"-SUMIFS(Sheet1!S71_OY2AdjustedBudget,Sheet1!S71_SubMunicipalVoteNo,$AC:$AC,Sheet1!S71_ItemType,$AD:$AD)","v":0},null,null,null,null,null,null,null,null,null,null,null,null,null,null,null,117,"IR"]
[{"$f":"IF(RIGHT('Org structure'!D120,18)<>\"[Name of sub-vote]\",'Org structure'!D120,\"\")","v":""},null,{"$f":"-SUMIFS(Sheet1!S71_OriginalBudget,Sheet1!S71_SubMunicipalVoteNo,$AC:$AC,Sheet1!S71_ItemType,$AD:$AD)","v":0},{"$f":"-SUMIFS(Sheet1!S71_SpecialAdjustedBudget,Sheet1!S71_SubMunicipalVoteNo,$AC:$AC,Sheet1!S71_ItemType,$AD:$AD)","v":0},null,null,null,null,{"$f":"SUMIFS(Sheet1!S71_AdjustmentAmount,Sheet1!S71_SubMunicipalVoteNo,$AC:$AC,Sheet1!S71_ItemType,$AD:$AD)","v":0},0,0,{"$f":"-SUMIFS(Sheet1!S71_OY1AdjustedBudget,Sheet1!S71_SubMunicipalVoteNo,$AC:$AC,Sheet1!S71_ItemType,$AD:$AD)","v":0},{"$f":"-SUMIFS(Sheet1!S71_OY2AdjustedBudget,Sheet1!S71_SubMunicipalVoteNo,$AC:$AC,Sheet1!S71_ItemType,$AD:$AD)","v":0},null,null,null,null,null,null,null,null,null,null,null,null,null,null,null,118,"IR"]
[{"$f":"IF(RIGHT('Org structure'!D121,18)<>\"[Name of sub-vote]\",'Org structure'!D121,\"\")","v":""},null,{"$f":"-SUMIFS(Sheet1!S71_OriginalBudget,Sheet1!S71_SubMunicipalVoteNo,$AC:$AC,Sheet1!S71_ItemType,$AD:$AD)","v":0},{"$f":"-SUMIFS(Sheet1!S71_SpecialAdjustedBudget,Sheet1!S71_SubMunicipalVoteNo,$AC:$AC,Sheet1!S71_ItemType,$AD:$AD)","v":0},null,null,null,null,{"$f":"SUMIFS(Sheet1!S71_AdjustmentAmount,Sheet1!S71_SubMunicipalVoteNo,$AC:$AC,Sheet1!S71_ItemType,$AD:$AD)","v":0},0,0,{"$f":"-SUMIFS(Sheet1!S71_OY1AdjustedBudget,Sheet1!S71_SubMunicipalVoteNo,$AC:$AC,Sheet1!S71_ItemType,$AD:$AD)","v":0},{"$f":"-SUMIFS(Sheet1!S71_OY2AdjustedBudget,Sheet1!S71_SubMunicipalVoteNo,$AC:$AC,Sheet1!S71_ItemType,$AD:$AD)","v":0},null,null,null,null,null,null,null,null,null,null,null,null,null,null,null,119,"IR"]
[{"$f":"IF(RIGHT('Org structure'!D122,18)<>\"[Name of sub-vote]\",'Org structure'!D122,\"\")","v":""},null,{"$f":"-SUMIFS(Sheet1!S71_OriginalBudget,Sheet1!S71_SubMunicipalVoteNo,$AC:$AC,Sheet1!S71_ItemType,$AD:$AD)","v":0},{"$f":"-SUMIFS(Sheet1!S71_SpecialAdjustedBudget,Sheet1!S71_SubMunicipalVoteNo,$AC:$AC,Sheet1!S71_ItemType,$AD:$AD)","v":0},null,null,null,null,{"$f":"SUMIFS(Sheet1!S71_AdjustmentAmount,Sheet1!S71_SubMunicipalVoteNo,$AC:$AC,Sheet1!S71_ItemType,$AD:$AD)","v":0},0,0,{"$f":"-SUMIFS(Sheet1!S71_OY1AdjustedBudget,Sheet1!S71_SubMunicipalVoteNo,$AC:$AC,Sheet1!S71_ItemType,$AD:$AD)","v":0},{"$f":"-SUMIFS(Sheet1!S71_OY2AdjustedBudget,Sheet1!S71_SubMunicipalVoteNo,$AC:$AC,Sheet1!S71_ItemType,$AD:$AD)","v":0},null,null,null,null,null,null,null,null,null,null,null,null,null,null,null,1110,"IR"]
[{"$f":"'Org structure'!A13","v":"Vote 12 - [NAME OF VOTE 12]"},null,{"$f":"SUM(C129:C138)","v":0},{"$f":"SUM(D129:D138)","v":0},0,0,0,0,0,0,0,{"$f":"SUM(L129:L138)","v":0},{"$f":"SUM(M129:M138)","v":0}]
[{"$f":"'Org structure'!E124","v":"12.1 - [Name of sub-vote]"},null,{"$f":"-SUMIFS(Sheet1!S71_OriginalBudget,Sheet1!S71_SubMunicipalVoteNo,$AC:$AC,Sheet1!S71_ItemType,$AD:$AD)","v":0},{"$f":"-SUMIFS(Sheet1!S71_SpecialAdjustedBudget,Sheet1!S71_SubMunicipalVoteNo,$AC:$AC,Sheet1!S71_ItemType,$AD:$AD)","v":0},null,null,null,null,{"$f":"SUMIFS(Sheet1!S71_AdjustmentAmount,Sheet1!S71_SubMunicipalVoteNo,$AC:$AC,Sheet1!S71_ItemType,$AD:$AD)","v":0},0,0,{"$f":"-SUMIFS(Sheet1!S71_OY1AdjustedBudget,Sheet1!S71_SubMunicipalVoteNo,$AC:$AC,Sheet1!S71_ItemType,$AD:$AD)","v":0},{"$f":"-SUMIFS(Sheet1!S71_OY2AdjustedBudget,Sheet1!S71_SubMunicipalVoteNo,$AC:$AC,Sheet1!S71_ItemType,$AD:$AD)","v":0},null,null,null,null,null,null,null,null,null,null,null,null,null,null,null,121,"IR"]
[{"$f":"'Org structure'!E125","v":0},null,{"$f":"-SUMIFS(Sheet1!S71_OriginalBudget,Sheet1!S71_SubMunicipalVoteNo,$AC:$AC,Sheet1!S71_ItemType,$AD:$AD)","v":0},{"$f":"-SUMIFS(Sheet1!S71_SpecialAdjustedBudget,Sheet1!S71_SubMunicipalVoteNo,$AC:$AC,Sheet1!S71_ItemType,$AD:$AD)","v":0},null,null,null,null,{"$f":"SUMIFS(Sheet1!S71_AdjustmentAmount,Sheet1!S71_SubMunicipalVoteNo,$AC:$AC,Sheet1!S71_ItemType,$AD:$AD)","v":0},0,0,{"$f":"-SUMIFS(Sheet1!S71_OY1AdjustedBudget,Sheet1!S71_SubMunicipalVoteNo,$AC:$AC,Sheet1!S71_ItemType,$AD:$AD)","v":0},{"$f":"-SUMIFS(Sheet1!S71_OY2AdjustedBudget,Sheet1!S71_SubMunicipalVoteNo,$AC:$AC,Sheet1!S71_ItemType,$AD:$AD)","v":0},null,null,null,null,null,null,null,null,null,null,null,null,null,null,null,122,"IR"]
[{"$f":"'Org structure'!E126","v":0},null,{"$f":"-SUMIFS(Sheet1!S71_OriginalBudget,Sheet1!S71_SubMunicipalVoteNo,$AC:$AC,Sheet1!S71_ItemType,$AD:$AD)","v":0},{"$f":"-SUMIFS(Sheet1!S71_SpecialAdjustedBudget,Sheet1!S71_SubMunicipalVoteNo,$AC:$AC,Sheet1!S71_ItemType,$AD:$AD)","v":0},null,null,null,null,{"$f":"SUMIFS(Sheet1!S71_AdjustmentAmount,Sheet1!S71_SubMunicipalVoteNo,$AC:$AC,Sheet1!S71_ItemType,$AD:$AD)","v":0},0,0,{"$f":"-SUMIFS(Sheet1!S71_OY1AdjustedBudget,Sheet1!S71_SubMunicipalVoteNo,$AC:$AC,Sheet1!S71_ItemType,$AD:$AD)","v":0},{"$f":"-SUMIFS(Sheet1!S71_OY2AdjustedBudget,Sheet1!S71_SubMunicipalVoteNo,$AC:$AC,Sheet1!S71_ItemType,$AD:$AD)","v":0},null,null,null,null,null,null,null,null,null,null,null,null,null,null,null,123,"IR"]
[{"$f":"'Org structure'!E127","v":0},null,{"$f":"-SUMIFS(Sheet1!S71_OriginalBudget,Sheet1!S71_SubMunicipalVoteNo,$AC:$AC,Sheet1!S71_ItemType,$AD:$AD)","v":0},{"$f":"-SUMIFS(Sheet1!S71_SpecialAdjustedBudget,Sheet1!S71_SubMunicipalVoteNo,$AC:$AC,Sheet1!S71_ItemType,$AD:$AD)","v":0},null,null,null,null,{"$f":"SUMIFS(Sheet1!S71_AdjustmentAmount,Sheet1!S71_SubMunicipalVoteNo,$AC:$AC,Sheet1!S71_ItemType,$AD:$AD)","v":0},0,0,{"$f":"-SUMIFS(Sheet1!S71_OY1AdjustedBudget,Sheet1!S71_SubMunicipalVoteNo,$AC:$AC,Sheet1!S71_ItemType,$AD:$AD)","v":0},{"$f":"-SUMIFS(Sheet1!S71_OY2AdjustedBudget,Sheet1!S71_SubMunicipalVoteNo,$AC:$AC,Sheet1!S71_ItemType,$AD:$AD)","v":0},null,null,null,null,null,null,null,null,null,null,null,null,null,null,null,124,"IR"]
[{"$f":"'Org structure'!E128","v":0},null,{"$f":"-SUMIFS(Sheet1!S71_OriginalBudget,Sheet1!S71_SubMunicipalVoteNo,$AC:$AC,Sheet1!S71_ItemType,$AD:$AD)","v":0},{"$f":"-SUMIFS(Sheet1!S71_SpecialAdjustedBudget,Sheet1!S71_SubMunicipalVoteNo,$AC:$AC,Sheet1!S71_ItemType,$AD:$AD)","v":0},null,null,null,null,{"$f":"SUMIFS(Sheet1!S71_AdjustmentAmount,Sheet1!S71_SubMunicipalVoteNo,$AC:$AC,Sheet1!S71_ItemType,$AD:$AD)","v":0},0,0,{"$f":"-SUMIFS(Sheet1!S71_OY1AdjustedBudget,Sheet1!S71_SubMunicipalVoteNo,$AC:$AC,Sheet1!S71_ItemType,$AD:$AD)","v":0},{"$f":"-SUMIFS(Sheet1!S71_OY2AdjustedBudget,Sheet1!S71_SubMunicipalVoteNo,$AC:$AC,Sheet1!S71_ItemType,$AD:$AD)","v":0},null,null,null,null,null,null,null,null,null,null,null,null,null,null,null,125,"IR"]
[{"$f":"'Org structure'!E129","v":0},null,{"$f":"-SUMIFS(Sheet1!S71_OriginalBudget,Sheet1!S71_SubMunicipalVoteNo,$AC:$AC,Sheet1!S71_ItemType,$AD:$AD)","v":0},{"$f":"-SUMIFS(Sheet1!S71_SpecialAdjustedBudget,Sheet1!S71_SubMunicipalVoteNo,$AC:$AC,Sheet1!S71_ItemType,$AD:$AD)","v":0},null,null,null,null,{"$f":"SUMIFS(Sheet1!S71_AdjustmentAmount,Sheet1!S71_SubMunicipalVoteNo,$AC:$AC,Sheet1!S71_ItemType,$AD:$AD)","v":0},0,0,{"$f":"-SUMIFS(Sheet1!S71_OY1AdjustedBudget,Sheet1!S71_SubMunicipalVoteNo,$AC:$AC,Sheet1!S71_ItemType,$AD:$AD)","v":0},{"$f":"-SUMIFS(Sheet1!S71_OY2AdjustedBudget,Sheet1!S71_SubMunicipalVoteNo,$AC:$AC,Sheet1!S71_ItemType,$AD:$AD)","v":0},null,null,null,null,null,null,null,null,null,null,null,null,null,null,null,126,"IR"]
[{"$f":"'Org structure'!E130","v":0},null,{"$f":"-SUMIFS(Sheet1!S71_OriginalBudget,Sheet1!S71_SubMunicipalVoteNo,$AC:$AC,Sheet1!S71_ItemType,$AD:$AD)","v":0},{"$f":"-SUMIFS(Sheet1!S71_SpecialAdjustedBudget,Sheet1!S71_SubMunicipalVoteNo,$AC:$AC,Sheet1!S71_ItemType,$AD:$AD)","v":0},null,null,null,null,{"$f":"SUMIFS(Sheet1!S71_AdjustmentAmount,Sheet1!S71_SubMunicipalVoteNo,$AC:$AC,Sheet1!S71_ItemType,$AD:$AD)","v":0},0,0,{"$f":"-SUMIFS(Sheet1!S71_OY1AdjustedBudget,Sheet1!S71_SubMunicipalVoteNo,$AC:$AC,Sheet1!S71_ItemType,$AD:$AD)","v":0},{"$f":"-SUMIFS(Sheet1!S71_OY2AdjustedBudget,Sheet1!S71_SubMunicipalVoteNo,$AC:$AC,Sheet1!S71_ItemType,$AD:$AD)","v":0},null,null,null,null,null,null,null,null,null,null,null,null,null,null,null,127,"IR"]
[{"$f":"'Org structure'!E131","v":0},null,{"$f":"-SUMIFS(Sheet1!S71_OriginalBudget,Sheet1!S71_SubMunicipalVoteNo,$AC:$AC,Sheet1!S71_ItemType,$AD:$AD)","v":0},{"$f":"-SUMIFS(Sheet1!S71_SpecialAdjustedBudget,Sheet1!S71_SubMunicipalVoteNo,$AC:$AC,Sheet1!S71_ItemType,$AD:$AD)","v":0},null,null,null,null,{"$f":"SUMIFS(Sheet1!S71_AdjustmentAmount,Sheet1!S71_SubMunicipalVoteNo,$AC:$AC,Sheet1!S71_ItemType,$AD:$AD)","v":0},{"$f":"SUM(E136:I136)","v":0},{"$f":"IF(D136=0,C136+J136,D136+J136)","v":0},{"$f":"-SUMIFS(Sheet1!S71_OY1AdjustedBudget,Sheet1!S71_SubMunicipalVoteNo,$AC:$AC,Sheet1!S71_ItemType,$AD:$AD)","v":0},{"$f":"-SUMIFS(Sheet1!S71_OY2AdjustedBudget,Sheet1!S71_SubMunicipalVoteNo,$AC:$AC,Sheet1!S71_ItemType,$AD:$AD)","v":0},null,null,null,null,null,null,null,null,null,null,null,null,null,null,null,128,"IR"]
[{"$f":"'Org structure'!E132","v":0},null,{"$f":"-SUMIFS(Sheet1!S71_OriginalBudget,Sheet1!S71_SubMunicipalVoteNo,$AC:$AC,Sheet1!S71_ItemType,$AD:$AD)","v":0},{"$f":"-SUMIFS(Sheet1!S71_SpecialAdjustedBudget,Sheet1!S71_SubMunicipalVoteNo,$AC:$AC,Sheet1!S71_ItemType,$AD:$AD)","v":0},null,null,null,null,{"$f":"SUMIFS(Sheet1!S71_AdjustmentAmount,Sheet1!S71_SubMunicipalVoteNo,$AC:$AC,Sheet1!S71_ItemType,$AD:$AD)","v":0},0,0,{"$f":"-SUMIFS(Sheet1!S71_OY1AdjustedBudget,Sheet1!S71_SubMunicipalVoteNo,$AC:$AC,Sheet1!S71_ItemType,$AD:$AD)","v":0},{"$f":"-SUMIFS(Sheet1!S71_OY2AdjustedBudget,Sheet1!S71_SubMunicipalVoteNo,$AC:$AC,Sheet1!S71_ItemType,$AD:$AD)","v":0},null,null,null,null,null,null,null,null,null,null,null,null,null,null,null,129,"IR"]
[{"$f":"'Org structure'!E133","v":0},null,{"$f":"-SUMIFS(Sheet1!S71_OriginalBudget,Sheet1!S71_SubMunicipalVoteNo,$AC:$AC,Sheet1!S71_ItemType,$AD:$AD)","v":0},{"$f":"-SUMIFS(Sheet1!S71_SpecialAdjustedBudget,Sheet1!S71_SubMunicipalVoteNo,$AC:$AC,Sheet1!S71_ItemType,$AD:$AD)","v":0},null,null,null,null,{"$f":"SUMIFS(Sheet1!S71_AdjustmentAmount,Sheet1!S71_SubMunicipalVoteNo,$AC:$AC,Sheet1!S71_ItemType,$AD:$AD)","v":0},0,0,{"$f":"-SUMIFS(Sheet1!S71_OY1AdjustedBudget,Sheet1!S71_SubMunicipalVoteNo,$AC:$AC,Sheet1!S71_ItemType,$AD:$AD)","v":0},{"$f":"-SUMIFS(Sheet1!S71_OY2AdjustedBudget,Sheet1!S71_SubMunicipalVoteNo,$AC:$AC,Sheet1!S71_ItemType,$AD:$AD)","v":0},null,null,null,null,null,null,null,null,null,null,null,null,null,null,null,1210,"IR"]
[{"$f":"'Org structure'!A14","v":"Vote 13 - [NAME OF VOTE 13]"},null,{"$f":"SUM(C140:C149)","v":0},{"$f":"SUM(D140:D149)","v":0},0,0,0,0,0,0,0,{"$f":"SUM(L140:L149)","v":0},{"$f":"SUM(M140:M149)","v":0}]
[{"$f":"'Org structure'!E135","v":"13.1 - [Name of sub-vote]"},null,{"$f":"-SUMIFS(Sheet1!S71_OriginalBudget,Sheet1!S71_SubMunicipalVoteNo,$AC:$AC,Sheet1!S71_ItemType,$AD:$AD)","v":0},{"$f":"-SUMIFS(Sheet1!S71_SpecialAdjustedBudget,Sheet1!S71_SubMunicipalVoteNo,$AC:$AC,Sheet1!S71_ItemType,$AD:$AD)","v":0},null,null,null,null,{"$f":"SUMIFS(Sheet1!S71_AdjustmentAmount,Sheet1!S71_SubMunicipalVoteNo,$AC:$AC,Sheet1!S71_ItemType,$AD:$AD)","v":0},0,0,{"$f":"-SUMIFS(Sheet1!S71_OY1AdjustedBudget,Sheet1!S71_SubMunicipalVoteNo,$AC:$AC,Sheet1!S71_ItemType,$AD:$AD)","v":0},{"$f":"-SUMIFS(Sheet1!S71_OY2AdjustedBudget,Sheet1!S71_SubMunicipalVoteNo,$AC:$AC,Sheet1!S71_ItemType,$AD:$AD)","v":0},null,null,null,null,null,null,null,null,null,null,null,null,null,null,null,131,"IR"]
[{"$f":"'Org structure'!E136","v":0},null,{"$f":"-SUMIFS(Sheet1!S71_OriginalBudget,Sheet1!S71_SubMunicipalVoteNo,$AC:$AC,Sheet1!S71_ItemType,$AD:$AD)","v":0},{"$f":"-SUMIFS(Sheet1!S71_SpecialAdjustedBudget,Sheet1!S71_SubMunicipalVoteNo,$AC:$AC,Sheet1!S71_ItemType,$AD:$AD)","v":0},null,null,null,null,{"$f":"SUMIFS(Sheet1!S71_AdjustmentAmount,Sheet1!S71_SubMunicipalVoteNo,$AC:$AC,Sheet1!S71_ItemType,$AD:$AD)","v":0},0,0,{"$f":"-SUMIFS(Sheet1!S71_OY1AdjustedBudget,Sheet1!S71_SubMunicipalVoteNo,$AC:$AC,Sheet1!S71_ItemType,$AD:$AD)","v":0},{"$f":"-SUMIFS(Sheet1!S71_OY2AdjustedBudget,Sheet1!S71_SubMunicipalVoteNo,$AC:$AC,Sheet1!S71_ItemType,$AD:$AD)","v":0},null,null,null,null,null,null,null,null,null,null,null,null,null,null,null,132,"IR"]
[{"$f":"'Org structure'!E137","v":0},null,{"$f":"-SUMIFS(Sheet1!S71_OriginalBudget,Sheet1!S71_SubMunicipalVoteNo,$AC:$AC,Sheet1!S71_ItemType,$AD:$AD)","v":0},{"$f":"-SUMIFS(Sheet1!S71_SpecialAdjustedBudget,Sheet1!S71_SubMunicipalVoteNo,$AC:$AC,Sheet1!S71_ItemType,$AD:$AD)","v":0},null,null,null,null,{"$f":"SUMIFS(Sheet1!S71_AdjustmentAmount,Sheet1!S71_SubMunicipalVoteNo,$AC:$AC,Sheet1!S71_ItemType,$AD:$AD)","v":0},0,0,{"$f":"-SUMIFS(Sheet1!S71_OY1AdjustedBudget,Sheet1!S71_SubMunicipalVoteNo,$AC:$AC,Sheet1!S71_ItemType,$AD:$AD)","v":0},{"$f":"-SUMIFS(Sheet1!S71_OY2AdjustedBudget,Sheet1!S71_SubMunicipalVoteNo,$AC:$AC,Sheet1!S71_ItemType,$AD:$AD)","v":0},null,null,null,null,null,null,null,null,null,null,null,null,null,null,null,133,"IR"]
[{"$f":"'Org structure'!E138","v":0},null,{"$f":"-SUMIFS(Sheet1!S71_OriginalBudget,Sheet1!S71_SubMunicipalVoteNo,$AC:$AC,Sheet1!S71_ItemType,$AD:$AD)","v":0},{"$f":"-SUMIFS(Sheet1!S71_SpecialAdjustedBudget,Sheet1!S71_SubMunicipalVoteNo,$AC:$AC,Sheet1!S71_ItemType,$AD:$AD)","v":0},null,null,null,null,{"$f":"SUMIFS(Sheet1!S71_AdjustmentAmount,Sheet1!S71_SubMunicipalVoteNo,$AC:$AC,Sheet1!S71_ItemType,$AD:$AD)","v":0},0,0,{"$f":"-SUMIFS(Sheet1!S71_OY1AdjustedBudget,Sheet1!S71_SubMunicipalVoteNo,$AC:$AC,Sheet1!S71_ItemType,$AD:$AD)","v":0},{"$f":"-SUMIFS(Sheet1!S71_OY2AdjustedBudget,Sheet1!S71_SubMunicipalVoteNo,$AC:$AC,Sheet1!S71_ItemType,$AD:$AD)","v":0},null,null,null,null,null,null,null,null,null,null,null,null,null,null,null,134,"IR"]
[{"$f":"'Org structure'!E139","v":0},null,{"$f":"-SUMIFS(Sheet1!S71_OriginalBudget,Sheet1!S71_SubMunicipalVoteNo,$AC:$AC,Sheet1!S71_ItemType,$AD:$AD)","v":0},{"$f":"-SUMIFS(Sheet1!S71_SpecialAdjustedBudget,Sheet1!S71_SubMunicipalVoteNo,$AC:$AC,Sheet1!S71_ItemType,$AD:$AD)","v":0},null,null,null,null,{"$f":"SUMIFS(Sheet1!S71_AdjustmentAmount,Sheet1!S71_SubMunicipalVoteNo,$AC:$AC,Sheet1!S71_ItemType,$AD:$AD)","v":0},0,0,{"$f":"-SUMIFS(Sheet1!S71_OY1AdjustedBudget,Sheet1!S71_SubMunicipalVoteNo,$AC:$AC,Sheet1!S71_ItemType,$AD:$AD)","v":0},{"$f":"-SUMIFS(Sheet1!S71_OY2AdjustedBudget,Sheet1!S71_SubMunicipalVoteNo,$AC:$AC,Sheet1!S71_ItemType,$AD:$AD)","v":0},null,null,null,null,null,null,null,null,null,null,null,null,null,null,null,135,"IR"]
[{"$f":"'Org structure'!E140","v":0},null,{"$f":"-SUMIFS(Sheet1!S71_OriginalBudget,Sheet1!S71_SubMunicipalVoteNo,$AC:$AC,Sheet1!S71_ItemType,$AD:$AD)","v":0},{"$f":"-SUMIFS(Sheet1!S71_SpecialAdjustedBudget,Sheet1!S71_SubMunicipalVoteNo,$AC:$AC,Sheet1!S71_ItemType,$AD:$AD)","v":0},null,null,null,null,{"$f":"SUMIFS(Sheet1!S71_AdjustmentAmount,Sheet1!S71_SubMunicipalVoteNo,$AC:$AC,Sheet1!S71_ItemType,$AD:$AD)","v":0},0,0,{"$f":"-SUMIFS(Sheet1!S71_OY1AdjustedBudget,Sheet1!S71_SubMunicipalVoteNo,$AC:$AC,Sheet1!S71_ItemType,$AD:$AD)","v":0},{"$f":"-SUMIFS(Sheet1!S71_OY2AdjustedBudget,Sheet1!S71_SubMunicipalVoteNo,$AC:$AC,Sheet1!S71_ItemType,$AD:$AD)","v":0},null,null,null,null,null,null,null,null,null,null,null,null,null,null,null,136,"IR"]
[{"$f":"'Org structure'!E141","v":0},null,{"$f":"-SUMIFS(Sheet1!S71_OriginalBudget,Sheet1!S71_SubMunicipalVoteNo,$AC:$AC,Sheet1!S71_ItemType,$AD:$AD)","v":0},{"$f":"-SUMIFS(Sheet1!S71_SpecialAdjustedBudget,Sheet1!S71_SubMunicipalVoteNo,$AC:$AC,Sheet1!S71_ItemType,$AD:$AD)","v":0},null,null,null,null,{"$f":"SUMIFS(Sheet1!S71_AdjustmentAmount,Sheet1!S71_SubMunicipalVoteNo,$AC:$AC,Sheet1!S71_ItemType,$AD:$AD)","v":0},0,0,{"$f":"-SUMIFS(Sheet1!S71_OY1AdjustedBudget,Sheet1!S71_SubMunicipalVoteNo,$AC:$AC,Sheet1!S71_ItemType,$AD:$AD)","v":0},{"$f":"-SUMIFS(Sheet1!S71_OY2AdjustedBudget,Sheet1!S71_SubMunicipalVoteNo,$AC:$AC,Sheet1!S71_ItemType,$AD:$AD)","v":0},null,null,null,null,null,null,null,null,null,null,null,null,null,null,null,137,"IR"]
[{"$f":"'Org structure'!E142","v":0},null,{"$f":"-SUMIFS(Sheet1!S71_OriginalBudget,Sheet1!S71_SubMunicipalVoteNo,$AC:$AC,Sheet1!S71_ItemType,$AD:$AD)","v":0},{"$f":"-SUMIFS(Sheet1!S71_SpecialAdjustedBudget,Sheet1!S71_SubMunicipalVoteNo,$AC:$AC,Sheet1!S71_ItemType,$AD:$AD)","v":0},null,null,null,null,{"$f":"SUMIFS(Sheet1!S71_AdjustmentAmount,Sheet1!S71_SubMunicipalVoteNo,$AC:$AC,Sheet1!S71_ItemType,$AD:$AD)","v":0},0,0,{"$f":"-SUMIFS(Sheet1!S71_OY1AdjustedBudget,Sheet1!S71_SubMunicipalVoteNo,$AC:$AC,Sheet1!S71_ItemType,$AD:$AD)","v":0},{"$f":"-SUMIFS(Sheet1!S71_OY2AdjustedBudget,Sheet1!S71_SubMunicipalVoteNo,$AC:$AC,Sheet1!S71_ItemType,$AD:$AD)","v":0},null,null,null,null,null,null,null,null,null,null,null,null,null,null,null,138,"IR"]
[{"$f":"'Org structure'!E143","v":0},null,{"$f":"-SUMIFS(Sheet1!S71_OriginalBudget,Sheet1!S71_SubMunicipalVoteNo,$AC:$AC,Sheet1!S71_ItemType,$AD:$AD)","v":0},{"$f":"-SUMIFS(Sheet1!S71_SpecialAdjustedBudget,Sheet1!S71_SubMunicipalVoteNo,$AC:$AC,Sheet1!S71_ItemType,$AD:$AD)","v":0},null,null,null,null,{"$f":"SUMIFS(Sheet1!S71_AdjustmentAmount,Sheet1!S71_SubMunicipalVoteNo,$AC:$AC,Sheet1!S71_ItemType,$AD:$AD)","v":0},0,0,{"$f":"-SUMIFS(Sheet1!S71_OY1AdjustedBudget,Sheet1!S71_SubMunicipalVoteNo,$AC:$AC,Sheet1!S71_ItemType,$AD:$AD)","v":0},{"$f":"-SUMIFS(Sheet1!S71_OY2AdjustedBudget,Sheet1!S71_SubMunicipalVoteNo,$AC:$AC,Sheet1!S71_ItemType,$AD:$AD)","v":0},null,null,null,null,null,null,null,null,null,null,null,null,null,null,null,139,"IR"]
[{"$f":"'Org structure'!E144","v":0},null,{"$f":"-SUMIFS(Sheet1!S71_OriginalBudget,Sheet1!S71_SubMunicipalVoteNo,$AC:$AC,Sheet1!S71_ItemType,$AD:$AD)","v":0},{"$f":"-SUMIFS(Sheet1!S71_SpecialAdjustedBudget,Sheet1!S71_SubMunicipalVoteNo,$AC:$AC,Sheet1!S71_ItemType,$AD:$AD)","v":0},null,null,null,null,{"$f":"SUMIFS(Sheet1!S71_AdjustmentAmount,Sheet1!S71_SubMunicipalVoteNo,$AC:$AC,Sheet1!S71_ItemType,$AD:$AD)","v":0},0,0,{"$f":"-SUMIFS(Sheet1!S71_OY1AdjustedBudget,Sheet1!S71_SubMunicipalVoteNo,$AC:$AC,Sheet1!S71_ItemType,$AD:$AD)","v":0},{"$f":"-SUMIFS(Sheet1!S71_OY2AdjustedBudget,Sheet1!S71_SubMunicipalVoteNo,$AC:$AC,Sheet1!S71_ItemType,$AD:$AD)","v":0},null,null,null,null,null,null,null,null,null,null,null,null,null,null,null,1310,"IR"]
[{"$f":"'Org structure'!A15","v":"Vote 14 - [NAME OF VOTE 14]"},null,{"$f":"SUM(C151:C160)","v":0},{"$f":"SUM(D151:D160)","v":0},0,0,0,0,0,0,0,{"$f":"SUM(L151:L160)","v":0},{"$f":"SUM(M151:M160)","v":0}]
[{"$f":"'Org structure'!E146","v":"14.1 - [Name of sub-vote]"},null,{"$f":"-SUMIFS(Sheet1!S71_OriginalBudget,Sheet1!S71_SubMunicipalVoteNo,$AC:$AC,Sheet1!S71_ItemType,$AD:$AD)","v":0},{"$f":"-SUMIFS(Sheet1!S71_SpecialAdjustedBudget,Sheet1!S71_SubMunicipalVoteNo,$AC:$AC,Sheet1!S71_ItemType,$AD:$AD)","v":0},null,null,null,null,{"$f":"SUMIFS(Sheet1!S71_AdjustmentAmount,Sheet1!S71_SubMunicipalVoteNo,$AC:$AC,Sheet1!S71_ItemType,$AD:$AD)","v":0},0,0,{"$f":"-SUMIFS(Sheet1!S71_OY1AdjustedBudget,Sheet1!S71_SubMunicipalVoteNo,$AC:$AC,Sheet1!S71_ItemType,$AD:$AD)","v":0},{"$f":"-SUMIFS(Sheet1!S71_OY2AdjustedBudget,Sheet1!S71_SubMunicipalVoteNo,$AC:$AC,Sheet1!S71_ItemType,$AD:$AD)","v":0},null,null,null,null,null,null,null,null,null,null,null,null,null,null,null,141,"IR"]
[{"$f":"'Org structure'!E147","v":0},null,{"$f":"-SUMIFS(Sheet1!S71_OriginalBudget,Sheet1!S71_SubMunicipalVoteNo,$AC:$AC,Sheet1!S71_ItemType,$AD:$AD)","v":0},{"$f":"-SUMIFS(Sheet1!S71_SpecialAdjustedBudget,Sheet1!S71_SubMunicipalVoteNo,$AC:$AC,Sheet1!S71_ItemType,$AD:$AD)","v":0},null,null,null,null,{"$f":"SUMIFS(Sheet1!S71_AdjustmentAmount,Sheet1!S71_SubMunicipalVoteNo,$AC:$AC,Sheet1!S71_ItemType,$AD:$AD)","v":0},0,0,{"$f":"-SUMIFS(Sheet1!S71_OY1AdjustedBudget,Sheet1!S71_SubMunicipalVoteNo,$AC:$AC,Sheet1!S71_ItemType,$AD:$AD)","v":0},{"$f":"-SUMIFS(Sheet1!S71_OY2AdjustedBudget,Sheet1!S71_SubMunicipalVoteNo,$AC:$AC,Sheet1!S71_ItemType,$AD:$AD)","v":0},null,null,null,null,null,null,null,null,null,null,null,null,null,null,null,142,"IR"]
[{"$f":"'Org structure'!E148","v":0},null,{"$f":"-SUMIFS(Sheet1!S71_OriginalBudget,Sheet1!S71_SubMunicipalVoteNo,$AC:$AC,Sheet1!S71_ItemType,$AD:$AD)","v":0},{"$f":"-SUMIFS(Sheet1!S71_SpecialAdjustedBudget,Sheet1!S71_SubMunicipalVoteNo,$AC:$AC,Sheet1!S71_ItemType,$AD:$AD)","v":0},null,null,null,null,{"$f":"SUMIFS(Sheet1!S71_AdjustmentAmount,Sheet1!S71_SubMunicipalVoteNo,$AC:$AC,Sheet1!S71_ItemType,$AD:$AD)","v":0},0,0,{"$f":"-SUMIFS(Sheet1!S71_OY1AdjustedBudget,Sheet1!S71_SubMunicipalVoteNo,$AC:$AC,Sheet1!S71_ItemType,$AD:$AD)","v":0},{"$f":"-SUMIFS(Sheet1!S71_OY2AdjustedBudget,Sheet1!S71_SubMunicipalVoteNo,$AC:$AC,Sheet1!S71_ItemType,$AD:$AD)","v":0},null,null,null,null,null,null,null,null,null,null,null,null,null,null,null,143,"IR"]
[{"$f":"'Org structure'!E149","v":0},null,{"$f":"-SUMIFS(Sheet1!S71_OriginalBudget,Sheet1!S71_SubMunicipalVoteNo,$AC:$AC,Sheet1!S71_ItemType,$AD:$AD)","v":0},{"$f":"-SUMIFS(Sheet1!S71_SpecialAdjustedBudget,Sheet1!S71_SubMunicipalVoteNo,$AC:$AC,Sheet1!S71_ItemType,$AD:$AD)","v":0},null,null,null,null,{"$f":"SUMIFS(Sheet1!S71_AdjustmentAmount,Sheet1!S71_SubMunicipalVoteNo,$AC:$AC,Sheet1!S71_ItemType,$AD:$AD)","v":0},0,0,{"$f":"-SUMIFS(Sheet1!S71_OY1AdjustedBudget,Sheet1!S71_SubMunicipalVoteNo,$AC:$AC,Sheet1!S71_ItemType,$AD:$AD)","v":0},{"$f":"-SUMIFS(Sheet1!S71_OY2AdjustedBudget,Sheet1!S71_SubMunicipalVoteNo,$AC:$AC,Sheet1!S71_ItemType,$AD:$AD)","v":0},null,null,null,null,null,null,null,null,null,null,null,null,null,null,null,144,"IR"]
[{"$f":"'Org structure'!E150","v":0},null,{"$f":"-SUMIFS(Sheet1!S71_OriginalBudget,Sheet1!S71_SubMunicipalVoteNo,$AC:$AC,Sheet1!S71_ItemType,$AD:$AD)","v":0},{"$f":"-SUMIFS(Sheet1!S71_SpecialAdjustedBudget,Sheet1!S71_SubMunicipalVoteNo,$AC:$AC,Sheet1!S71_ItemType,$AD:$AD)","v":0},null,null,null,null,{"$f":"SUMIFS(Sheet1!S71_AdjustmentAmount,Sheet1!S71_SubMunicipalVoteNo,$AC:$AC,Sheet1!S71_ItemType,$AD:$AD)","v":0},0,0,{"$f":"-SUMIFS(Sheet1!S71_OY1AdjustedBudget,Sheet1!S71_SubMunicipalVoteNo,$AC:$AC,Sheet1!S71_ItemType,$AD:$AD)","v":0},{"$f":"-SUMIFS(Sheet1!S71_OY2AdjustedBudget,Sheet1!S71_SubMunicipalVoteNo,$AC:$AC,Sheet1!S71_ItemType,$AD:$AD)","v":0},null,null,null,null,null,null,null,null,null,null,null,null,null,null,null,145,"IR"]
[{"$f":"'Org structure'!E151","v":0},null,{"$f":"-SUMIFS(Sheet1!S71_OriginalBudget,Sheet1!S71_SubMunicipalVoteNo,$AC:$AC,Sheet1!S71_ItemType,$AD:$AD)","v":0},{"$f":"-SUMIFS(Sheet1!S71_SpecialAdjustedBudget,Sheet1!S71_SubMunicipalVoteNo,$AC:$AC,Sheet1!S71_ItemType,$AD:$AD)","v":0},null,null,null,null,{"$f":"SUMIFS(Sheet1!S71_AdjustmentAmount,Sheet1!S71_SubMunicipalVoteNo,$AC:$AC,Sheet1!S71_ItemType,$AD:$AD)","v":0},0,0,{"$f":"-SUMIFS(Sheet1!S71_OY1AdjustedBudget,Sheet1!S71_SubMunicipalVoteNo,$AC:$AC,Sheet1!S71_ItemType,$AD:$AD)","v":0},{"$f":"-SUMIFS(Sheet1!S71_OY2AdjustedBudget,Sheet1!S71_SubMunicipalVoteNo,$AC:$AC,Sheet1!S71_ItemType,$AD:$AD)","v":0},null,null,null,null,null,null,null,null,null,null,null,null,null,null,null,146,"IR"]
[{"$f":"'Org structure'!E152","v":0},null,{"$f":"-SUMIFS(Sheet1!S71_OriginalBudget,Sheet1!S71_SubMunicipalVoteNo,$AC:$AC,Sheet1!S71_ItemType,$AD:$AD)","v":0},{"$f":"-SUMIFS(Sheet1!S71_SpecialAdjustedBudget,Sheet1!S71_SubMunicipalVoteNo,$AC:$AC,Sheet1!S71_ItemType,$AD:$AD)","v":0},null,null,null,null,{"$f":"SUMIFS(Sheet1!S71_AdjustmentAmount,Sheet1!S71_SubMunicipalVoteNo,$AC:$AC,Sheet1!S71_ItemType,$AD:$AD)","v":0},0,0,{"$f":"-SUMIFS(Sheet1!S71_OY1AdjustedBudget,Sheet1!S71_SubMunicipalVoteNo,$AC:$AC,Sheet1!S71_ItemType,$AD:$AD)","v":0},{"$f":"-SUMIFS(Sheet1!S71_OY2AdjustedBudget,Sheet1!S71_SubMunicipalVoteNo,$AC:$AC,Sheet1!S71_ItemType,$AD:$AD)","v":0},null,null,null,null,null,null,null,null,null,null,null,null,null,null,null,147,"IR"]
[{"$f":"'Org structure'!E153","v":0},null,{"$f":"-SUMIFS(Sheet1!S71_OriginalBudget,Sheet1!S71_SubMunicipalVoteNo,$AC:$AC,Sheet1!S71_ItemType,$AD:$AD)","v":0},{"$f":"-SUMIFS(Sheet1!S71_SpecialAdjustedBudget,Sheet1!S71_SubMunicipalVoteNo,$AC:$AC,Sheet1!S71_ItemType,$AD:$AD)","v":0},null,null,null,null,{"$f":"SUMIFS(Sheet1!S71_AdjustmentAmount,Sheet1!S71_SubMunicipalVoteNo,$AC:$AC,Sheet1!S71_ItemType,$AD:$AD)","v":0},0,0,{"$f":"-SUMIFS(Sheet1!S71_OY1AdjustedBudget,Sheet1!S71_SubMunicipalVoteNo,$AC:$AC,Sheet1!S71_ItemType,$AD:$AD)","v":0},{"$f":"-SUMIFS(Sheet1!S71_OY2AdjustedBudget,Sheet1!S71_SubMunicipalVoteNo,$AC:$AC,Sheet1!S71_ItemType,$AD:$AD)","v":0},null,null,null,null,null,null,null,null,null,null,null,null,null,null,null,148,"IR"]
[{"$f":"'Org structure'!E154","v":0},null,{"$f":"-SUMIFS(Sheet1!S71_OriginalBudget,Sheet1!S71_SubMunicipalVoteNo,$AC:$AC,Sheet1!S71_ItemType,$AD:$AD)","v":0},{"$f":"-SUMIFS(Sheet1!S71_SpecialAdjustedBudget,Sheet1!S71_SubMunicipalVoteNo,$AC:$AC,Sheet1!S71_ItemType,$AD:$AD)","v":0},null,null,null,null,{"$f":"SUMIFS(Sheet1!S71_AdjustmentAmount,Sheet1!S71_SubMunicipalVoteNo,$AC:$AC,Sheet1!S71_ItemType,$AD:$AD)","v":0},0,0,{"$f":"-SUMIFS(Sheet1!S71_OY1AdjustedBudget,Sheet1!S71_SubMunicipalVoteNo,$AC:$AC,Sheet1!S71_ItemType,$AD:$AD)","v":0},{"$f":"-SUMIFS(Sheet1!S71_OY2AdjustedBudget,Sheet1!S71_SubMunicipalVoteNo,$AC:$AC,Sheet1!S71_ItemType,$AD:$AD)","v":0},null,null,null,null,null,null,null,null,null,null,null,null,null,null,null,149,"IR"]
[{"$f":"'Org structure'!E155","v":0},null,{"$f":"-SUMIFS(Sheet1!S71_OriginalBudget,Sheet1!S71_SubMunicipalVoteNo,$AC:$AC,Sheet1!S71_ItemType,$AD:$AD)","v":0},{"$f":"-SUMIFS(Sheet1!S71_SpecialAdjustedBudget,Sheet1!S71_SubMunicipalVoteNo,$AC:$AC,Sheet1!S71_ItemType,$AD:$AD)","v":0},null,null,null,null,{"$f":"SUMIFS(Sheet1!S71_AdjustmentAmount,Sheet1!S71_SubMunicipalVoteNo,$AC:$AC,Sheet1!S71_ItemType,$AD:$AD)","v":0},0,0,{"$f":"-SUMIFS(Sheet1!S71_OY1AdjustedBudget,Sheet1!S71_SubMunicipalVoteNo,$AC:$AC,Sheet1!S71_ItemType,$AD:$AD)","v":0},{"$f":"-SUMIFS(Sheet1!S71_OY2AdjustedBudget,Sheet1!S71_SubMunicipalVoteNo,$AC:$AC,Sheet1!S71_ItemType,$AD:$AD)","v":0},null,null,null,null,null,null,null,null,null,null,null,null,null,null,null,1410,"IR"]
[{"$f":"'Org structure'!A16","v":"Vote 15 - [NAME OF VOTE 15]"},null,{"$f":"SUM(C162:C171)","v":0},{"$f":"SUM(D162:D171)","v":0},0,0,0,0,0,0,0,{"$f":"SUM(L162:L171)","v":0},{"$f":"SUM(M162:M171)","v":0}]
[{"$f":"'Org structure'!E157","v":"15.1 - [Name of sub-vote]"},null,{"$f":"-SUMIFS(Sheet1!S71_OriginalBudget,Sheet1!S71_SubMunicipalVoteNo,$AC:$AC,Sheet1!S71_ItemType,$AD:$AD)","v":0},{"$f":"-SUMIFS(Sheet1!S71_SpecialAdjustedBudget,Sheet1!S71_SubMunicipalVoteNo,$AC:$AC,Sheet1!S71_ItemType,$AD:$AD)","v":0},null,null,null,null,{"$f":"SUMIFS(Sheet1!S71_AdjustmentAmount,Sheet1!S71_SubMunicipalVoteNo,$AC:$AC,Sheet1!S71_ItemType,$AD:$AD)","v":0},0,0,{"$f":"-SUMIFS(Sheet1!S71_OY1AdjustedBudget,Sheet1!S71_SubMunicipalVoteNo,$AC:$AC,Sheet1!S71_ItemType,$AD:$AD)","v":0},{"$f":"-SUMIFS(Sheet1!S71_OY2AdjustedBudget,Sheet1!S71_SubMunicipalVoteNo,$AC:$AC,Sheet1!S71_ItemType,$AD:$AD)","v":0},null,null,null,null,null,null,null,null,null,null,null,null,null,null,null,151,"IR"]
[{"$f":"'Org structure'!E158","v":0},null,{"$f":"-SUMIFS(Sheet1!S71_OriginalBudget,Sheet1!S71_SubMunicipalVoteNo,$AC:$AC,Sheet1!S71_ItemType,$AD:$AD)","v":0},{"$f":"-SUMIFS(Sheet1!S71_SpecialAdjustedBudget,Sheet1!S71_SubMunicipalVoteNo,$AC:$AC,Sheet1!S71_ItemType,$AD:$AD)","v":0},null,null,null,null,{"$f":"SUMIFS(Sheet1!S71_AdjustmentAmount,Sheet1!S71_SubMunicipalVoteNo,$AC:$AC,Sheet1!S71_ItemType,$AD:$AD)","v":0},0,0,{"$f":"-SUMIFS(Sheet1!S71_OY1AdjustedBudget,Sheet1!S71_SubMunicipalVoteNo,$AC:$AC,Sheet1!S71_ItemType,$AD:$AD)","v":0},{"$f":"-SUMIFS(Sheet1!S71_OY2AdjustedBudget,Sheet1!S71_SubMunicipalVoteNo,$AC:$AC,Sheet1!S71_ItemType,$AD:$AD)","v":0},null,null,null,null,null,null,null,null,null,null,null,null,null,null,null,152,"IR"]
[{"$f":"'Org structure'!E159","v":0},null,{"$f":"-SUMIFS(Sheet1!S71_OriginalBudget,Sheet1!S71_SubMunicipalVoteNo,$AC:$AC,Sheet1!S71_ItemType,$AD:$AD)","v":0},{"$f":"-SUMIFS(Sheet1!S71_SpecialAdjustedBudget,Sheet1!S71_SubMunicipalVoteNo,$AC:$AC,Sheet1!S71_ItemType,$AD:$AD)","v":0},null,null,null,null,{"$f":"SUMIFS(Sheet1!S71_AdjustmentAmount,Sheet1!S71_SubMunicipalVoteNo,$AC:$AC,Sheet1!S71_ItemType,$AD:$AD)","v":0},0,0,{"$f":"-SUMIFS(Sheet1!S71_OY1AdjustedBudget,Sheet1!S71_SubMunicipalVoteNo,$AC:$AC,Sheet1!S71_ItemType,$AD:$AD)","v":0},{"$f":"-SUMIFS(Sheet1!S71_OY2AdjustedBudget,Sheet1!S71_SubMunicipalVoteNo,$AC:$AC,Sheet1!S71_ItemType,$AD:$AD)","v":0},null,null,null,null,null,null,null,null,null,null,null,null,null,null,null,153,"IR"]
[{"$f":"'Org structure'!E160","v":0},null,{"$f":"-SUMIFS(Sheet1!S71_OriginalBudget,Sheet1!S71_SubMunicipalVoteNo,$AC:$AC,Sheet1!S71_ItemType,$AD:$AD)","v":0},{"$f":"-SUMIFS(Sheet1!S71_SpecialAdjustedBudget,Sheet1!S71_SubMunicipalVoteNo,$AC:$AC,Sheet1!S71_ItemType,$AD:$AD)","v":0},null,null,null,null,{"$f":"SUMIFS(Sheet1!S71_AdjustmentAmount,Sheet1!S71_SubMunicipalVoteNo,$AC:$AC,Sheet1!S71_ItemType,$AD:$AD)","v":0},0,0,{"$f":"-SUMIFS(Sheet1!S71_OY1AdjustedBudget,Sheet1!S71_SubMunicipalVoteNo,$AC:$AC,Sheet1!S71_ItemType,$AD:$AD)","v":0},{"$f":"-SUMIFS(Sheet1!S71_OY2AdjustedBudget,Sheet1!S71_SubMunicipalVoteNo,$AC:$AC,Sheet1!S71_ItemType,$AD:$AD)","v":0},null,null,null,null,null,null,null,null,null,null,null,null,null,null,null,154,"IR"]
[{"$f":"'Org structure'!E161","v":0},null,{"$f":"-SUMIFS(Sheet1!S71_OriginalBudget,Sheet1!S71_SubMunicipalVoteNo,$AC:$AC,Sheet1!S71_ItemType,$AD:$AD)","v":0},{"$f":"-SUMIFS(Sheet1!S71_SpecialAdjustedBudget,Sheet1!S71_SubMunicipalVoteNo,$AC:$AC,Sheet1!S71_ItemType,$AD:$AD)","v":0},null,null,null,null,{"$f":"SUMIFS(Sheet1!S71_AdjustmentAmount,Sheet1!S71_SubMunicipalVoteNo,$AC:$AC,Sheet1!S71_ItemType,$AD:$AD)","v":0},0,0,{"$f":"-SUMIFS(Sheet1!S71_OY1AdjustedBudget,Sheet1!S71_SubMunicipalVoteNo,$AC:$AC,Sheet1!S71_ItemType,$AD:$AD)","v":0},{"$f":"-SUMIFS(Sheet1!S71_OY2AdjustedBudget,Sheet1!S71_SubMunicipalVoteNo,$AC:$AC,Sheet1!S71_ItemType,$AD:$AD)","v":0},null,null,null,null,null,null,null,null,null,null,null,null,null,null,null,155,"IR"]
[{"$f":"'Org structure'!E162","v":0},null,{"$f":"-SUMIFS(Sheet1!S71_OriginalBudget,Sheet1!S71_SubMunicipalVoteNo,$AC:$AC,Sheet1!S71_ItemType,$AD:$AD)","v":0},{"$f":"-SUMIFS(Sheet1!S71_SpecialAdjustedBudget,Sheet1!S71_SubMunicipalVoteNo,$AC:$AC,Sheet1!S71_ItemType,$AD:$AD)","v":0},null,null,null,null,{"$f":"SUMIFS(Sheet1!S71_AdjustmentAmount,Sheet1!S71_SubMunicipalVoteNo,$AC:$AC,Sheet1!S71_ItemType,$AD:$AD)","v":0},0,0,{"$f":"-SUMIFS(Sheet1!S71_OY1AdjustedBudget,Sheet1!S71_SubMunicipalVoteNo,$AC:$AC,Sheet1!S71_ItemType,$AD:$AD)","v":0},{"$f":"-SUMIFS(Sheet1!S71_OY2AdjustedBudget,Sheet1!S71_SubMunicipalVoteNo,$AC:$AC,Sheet1!S71_ItemType,$AD:$AD)","v":0},null,null,null,null,null,null,null,null,null,null,null,null,null,null,null,156,"IR"]
[{"$f":"'Org structure'!E163","v":0},null,{"$f":"-SUMIFS(Sheet1!S71_OriginalBudget,Sheet1!S71_SubMunicipalVoteNo,$AC:$AC,Sheet1!S71_ItemType,$AD:$AD)","v":0},{"$f":"-SUMIFS(Sheet1!S71_SpecialAdjustedBudget,Sheet1!S71_SubMunicipalVoteNo,$AC:$AC,Sheet1!S71_ItemType,$AD:$AD)","v":0},null,null,null,null,{"$f":"SUMIFS(Sheet1!S71_AdjustmentAmount,Sheet1!S71_SubMunicipalVoteNo,$AC:$AC,Sheet1!S71_ItemType,$AD:$AD)","v":0},0,0,{"$f":"-SUMIFS(Sheet1!S71_OY1AdjustedBudget,Sheet1!S71_SubMunicipalVoteNo,$AC:$AC,Sheet1!S71_ItemType,$AD:$AD)","v":0},{"$f":"-SUMIFS(Sheet1!S71_OY2AdjustedBudget,Sheet1!S71_SubMunicipalVoteNo,$AC:$AC,Sheet1!S71_ItemType,$AD:$AD)","v":0},null,null,null,null,null,null,null,null,null,null,null,null,null,null,null,157,"IR"]
[{"$f":"'Org structure'!E164","v":0},null,{"$f":"-SUMIFS(Sheet1!S71_OriginalBudget,Sheet1!S71_SubMunicipalVoteNo,$AC:$AC,Sheet1!S71_ItemType,$AD:$AD)","v":0},{"$f":"-SUMIFS(Sheet1!S71_SpecialAdjustedBudget,Sheet1!S71_SubMunicipalVoteNo,$AC:$AC,Sheet1!S71_ItemType,$AD:$AD)","v":0},null,null,null,null,{"$f":"SUMIFS(Sheet1!S71_AdjustmentAmount,Sheet1!S71_SubMunicipalVoteNo,$AC:$AC,Sheet1!S71_ItemType,$AD:$AD)","v":0},0,0,{"$f":"-SUMIFS(Sheet1!S71_OY1AdjustedBudget,Sheet1!S71_SubMunicipalVoteNo,$AC:$AC,Sheet1!S71_ItemType,$AD:$AD)","v":0},{"$f":"-SUMIFS(Sheet1!S71_OY2AdjustedBudget,Sheet1!S71_SubMunicipalVoteNo,$AC:$AC,Sheet1!S71_ItemType,$AD:$AD)","v":0},null,null,null,null,null,null,null,null,null,null,null,null,null,null,null,158,"IR"]
[{"$f":"'Org structure'!E165","v":0},null,{"$f":"-SUMIFS(Sheet1!S71_OriginalBudget,Sheet1!S71_SubMunicipalVoteNo,$AC:$AC,Sheet1!S71_ItemType,$AD:$AD)","v":0},{"$f":"-SUMIFS(Sheet1!S71_SpecialAdjustedBudget,Sheet1!S71_SubMunicipalVoteNo,$AC:$AC,Sheet1!S71_ItemType,$AD:$AD)","v":0},null,null,null,null,{"$f":"SUMIFS(Sheet1!S71_AdjustmentAmount,Sheet1!S71_SubMunicipalVoteNo,$AC:$AC,Sheet1!S71_ItemType,$AD:$AD)","v":0},0,0,{"$f":"-SUMIFS(Sheet1!S71_OY1AdjustedBudget,Sheet1!S71_SubMunicipalVoteNo,$AC:$AC,Sheet1!S71_ItemType,$AD:$AD)","v":0},{"$f":"-SUMIFS(Sheet1!S71_OY2AdjustedBudget,Sheet1!S71_SubMunicipalVoteNo,$AC:$AC,Sheet1!S71_ItemType,$AD:$AD)","v":0},null,null,null,null,null,null,null,null,null,null,null,null,null,null,null,159,"IR"]
[{"$f":"'Org structure'!E166","v":0},null,{"$f":"-SUMIFS(Sheet1!S71_OriginalBudget,Sheet1!S71_SubMunicipalVoteNo,$AC:$AC,Sheet1!S71_ItemType,$AD:$AD)","v":0},{"$f":"-SUMIFS(Sheet1!S71_SpecialAdjustedBudget,Sheet1!S71_SubMunicipalVoteNo,$AC:$AC,Sheet1!S71_ItemType,$AD:$AD)","v":0},null,null,null,null,{"$f":"SUMIFS(Sheet1!S71_AdjustmentAmount,Sheet1!S71_SubMunicipalVoteNo,$AC:$AC,Sheet1!S71_ItemType,$AD:$AD)","v":0},0,0,{"$f":"-SUMIFS(Sheet1!S71_OY1AdjustedBudget,Sheet1!S71_SubMunicipalVoteNo,$AC:$AC,Sheet1!S71_ItemType,$AD:$AD)","v":0},{"$f":"-SUMIFS(Sheet1!S71_OY2AdjustedBudget,Sheet1!S71_SubMunicipalVoteNo,$AC:$AC,Sheet1!S71_ItemType,$AD:$AD)","v":0},null,null,null,null,null,null,null,null,null,null,null,null,null,null,null,1510,"IR"]
["Total Revenue by Vote",2,{"$f":"C7+C18+C29+C40+C51+C62+C73+C84+C95+C106+C117+C128+C139+C150+C161","v":257117554},{"$f":"D7+D18+D29+D40+D51+D62+D73+D84+D95+D106+D117+D128+D139+D150+D161","v":0},0,0,0,0,215262,{"$f":"SUM(E172:I172)","v":215262},{"$f":"IF(D172=0,C172+J172,D172+J172)","v":257332816},{"$f":"L7+L18+L29+L40+L51+L62+L73+L84+L95+L106+L117+L128+L139+L150+L161","v":265808165},{"$f":"M7+M18+M29+M40+M51+M62+M73+M84+M95+M106+M117+M128+M139+M150+M161","v":281795152}]
[]
["Expenditure by Vote",1]
[{"$f":"A7","v":"Vote 1 - Finance and Admin"},null,{"$f":"SUM(C176:C185)","v":83042240},0,0,0,0,0,-2935597,{"$f":"SUM(E175:I175)","v":-2935597},{"$f":"IF(D175=0,C175+J175,D175+J175)","v":80106643},{"$f":"SUM(L176:L185)","v":83368479},{"$f":"SUM(M176:M185)","v":88905411}]
[{"$f":"IF(RIGHT('Org structure'!D3,18)<>\"[Name of sub-vote]\",'Org structure'!D3,\"\")","v":"1.1 - Supply Chain Management"},null,{"$f":"SUMIFS(Sheet1!S71_OriginalBudget,Sheet1!S71_SubMunicipalVoteNo,$AC:$AC,Sheet1!S71_ItemType,$AD:$AD)","v":0},{"$f":"SUMIFS(Sheet1!S71_SpecialAdjustedBudget,Sheet1!S71_SubMunicipalVoteNo,$AC:$AC,Sheet1!S71_ItemType,$AD:$AD)","v":0},null,null,null,null,{"$f":"SUMIFS(Sheet1!S71_AdjustmentAmount,Sheet1!S71_SubMunicipalVoteNo,$AC:$AC,Sheet1!S71_ItemType,$AD:$AD)","v":0},{"$f":"SUM(E176:I176)","v":0},{"$f":"IF(D176=0,C176+J176,D176+J176)","v":0},{"$f":"SUMIFS(Sheet1!S71_OY1AdjustedBudget,Sheet1!S71_SubMunicipalVoteNo,$AC:$AC,Sheet1!S71_ItemType,$AD:$AD)","v":0},{"$f":"SUMIFS(Sheet1!S71_OY2AdjustedBudget,Sheet1!S71_SubMunicipalVoteNo,$AC:$AC,Sheet1!S71_ItemType,$AD:$AD)","v":0},null,null,null,null,null,null,null,null,null,null,null,null,null,null,null,11,"IE"]
[{"$f":"IF(RIGHT('Org structure'!D4,18)<>\"[Name of sub-vote]\",'Org structure'!D4,\"\")","v":"1.2 - Finance"},null,{"$f":"SUMIFS(Sheet1!S71_OriginalBudget,Sheet1!S71_SubMunicipalVoteNo,$AC:$AC,Sheet1!S71_ItemType,$AD:$AD)","v":39534039},{"$f":"SUMIFS(Sheet1!S71_SpecialAdjustedBudget,Sheet1!S71_SubMunicipalVoteNo,$AC:$AC,Sheet1!S71_ItemType,$AD:$AD)","v":0},null,null,null,null,{"$f":"SUMIFS(Sheet1!S71_AdjustmentAmount,Sheet1!S71_SubMunicipalVoteNo,$AC:$AC,Sheet1!S71_ItemType,$AD:$AD)","v":157095},157095,39691134,{"$f":"SUMIFS(Sheet1!S71_OY1AdjustedBudget,Sheet1!S71_SubMunicipalVoteNo,$AC:$AC,Sheet1!S71_ItemType,$AD:$AD)","v":44046110},{"$f":"SUMIFS(Sheet1!S71_OY2AdjustedBudget,Sheet1!S71_SubMunicipalVoteNo,$AC:$AC,Sheet1!S71_ItemType,$AD:$AD)","v":47835278},null,null,null,null,null,null,null,null,null,null,null,null,null,null,null,12,"IE"]
[{"$f":"IF(RIGHT('Org structure'!D5,18)<>\"[Name of sub-vote]\",'Org structure'!D5,\"\")","v":"1.3 - Fleet Management"},null,{"$f":"SUMIFS(Sheet1!S71_OriginalBudget,Sheet1!S71_SubMunicipalVoteNo,$AC:$AC,Sheet1!S71_ItemType,$AD:$AD)","v":851500},{"$f":"SUMIFS(Sheet1!S71_SpecialAdjustedBudget,Sheet1!S71_SubMunicipalVoteNo,$AC:$AC,Sheet1!S71_ItemType,$AD:$AD)","v":0},null,null,null,null,{"$f":"SUMIFS(Sheet1!S71_AdjustmentAmount,Sheet1!S71_SubMunicipalVoteNo,$AC:$AC,Sheet1!S71_ItemType,$AD:$AD)","v":-437926},-437926,413574,{"$f":"SUMIFS(Sheet1!S71_OY1AdjustedBudget,Sheet1!S71_SubMunicipalVoteNo,$AC:$AC,Sheet1!S71_ItemType,$AD:$AD)","v":280593},{"$f":"SUMIFS(Sheet1!S71_OY2AdjustedBudget,Sheet1!S71_SubMunicipalVoteNo,$AC:$AC,Sheet1!S71_ItemType,$AD:$AD)","v":293220},null,null,null,null,null,null,null,null,null,null,null,null,null,null,null,13,"IE"]
[{"$f":"IF(RIGHT('Org structure'!D6,18)<>\"[Name of sub-vote]\",'Org structure'!D6,\"\")","v":"1.4 - Security Services"},null,{"$f":"SUMIFS(Sheet1!S71_OriginalBudget,Sheet1!S71_SubMunicipalVoteNo,$AC:$AC,Sheet1!S71_ItemType,$AD:$AD)","v":10912949},{"$f":"SUMIFS(Sheet1!S71_SpecialAdjustedBudget,Sheet1!S71_SubMunicipalVoteNo,$AC:$AC,Sheet1!S71_ItemType,$AD:$AD)","v":0},null,null,null,null,{"$f":"SUMIFS(Sheet1!S71_AdjustmentAmount,Sheet1!S71_SubMunicipalVoteNo,$AC:$AC,Sheet1!S71_ItemType,$AD:$AD)","v":0},0,10912949,{"$f":"SUMIFS(Sheet1!S71_OY1AdjustedBudget,Sheet1!S71_SubMunicipalVoteNo,$AC:$AC,Sheet1!S71_ItemType,$AD:$AD)","v":8360000},{"$f":"SUMIFS(Sheet1!S71_OY2AdjustedBudget,Sheet1!S71_SubMunicipalVoteNo,$AC:$AC,Sheet1!S71_ItemType,$AD:$AD)","v":8736200},null,null,null,null,null,null,null,null,null,null,null,null,null,null,null,14,"IE"]
[{"$f":"IF(RIGHT('Org structure'!D7,18)<>\"[Name of sub-vote]\",'Org structure'!D7,\"\")","v":"1.5 - Information Technology"},null,{"$f":"SUMIFS(Sheet1!S71_OriginalBudget,Sheet1!S71_SubMunicipalVoteNo,$AC:$AC,Sheet1!S71_ItemType,$AD:$AD)","v":1392050},{"$f":"SUMIFS(Sheet1!S71_SpecialAdjustedBudget,Sheet1!S71_SubMunicipalVoteNo,$AC:$AC,Sheet1!S71_ItemType,$AD:$AD)","v":0},null,null,null,null,{"$f":"SUMIFS(Sheet1!S71_AdjustmentAmount,Sheet1!S71_SubMunicipalVoteNo,$AC:$AC,Sheet1!S71_ItemType,$AD:$AD)","v":-220957},-220957,1171093,{"$f":"SUMIFS(Sheet1!S71_OY1AdjustedBudget,Sheet1!S71_SubMunicipalVoteNo,$AC:$AC,Sheet1!S71_ItemType,$AD:$AD)","v":1848249},{"$f":"SUMIFS(Sheet1!S71_OY2AdjustedBudget,Sheet1!S71_SubMunicipalVoteNo,$AC:$AC,Sheet1!S71_ItemType,$AD:$AD)","v":1923319},null,null,null,null,null,null,null,null,null,null,null,null,null,null,null,15,"IE"]
[{"$f":"IF(RIGHT('Org structure'!D8,18)<>\"[Name of sub-vote]\",'Org structure'!D8,\"\")","v":"1.6 - Human Resources"},null,{"$f":"SUMIFS(Sheet1!S71_OriginalBudget,Sheet1!S71_SubMunicipalVoteNo,$AC:$AC,Sheet1!S71_ItemType,$AD:$AD)","v":5065439},{"$f":"SUMIFS(Sheet1!S71_SpecialAdjustedBudget,Sheet1!S71_SubMunicipalVoteNo,$AC:$AC,Sheet1!S71_ItemType,$AD:$AD)","v":0},null,null,null,null,{"$f":"SUMIFS(Sheet1!S71_AdjustmentAmount,Sheet1!S71_SubMunicipalVoteNo,$AC:$AC,Sheet1!S71_ItemType,$AD:$AD)","v":-1471264},-1471264,3594175,{"$f":"SUMIFS(Sheet1!S71_OY1AdjustedBudget,Sheet1!S71_SubMunicipalVoteNo,$AC:$AC,Sheet1!S71_ItemType,$AD:$AD)","v":2864344},{"$f":"SUMIFS(Sheet1!S71_OY2AdjustedBudget,Sheet1!S71_SubMunicipalVoteNo,$AC:$AC,Sheet1!S71_ItemType,$AD:$AD)","v":2998591},null,null,null,null,null,null,null,null,null,null,null,null,null,null,null,16,"IE"]
[{"$f":"IF(RIGHT('Org structure'!D9,18)<>\"[Name of sub-vote]\",'Org structure'!D9,\"\")","v":"1.7 - Administrative and Corporate Support"},null,{"$f":"SUMIFS(Sheet1!S71_OriginalBudget,Sheet1!S71_SubMunicipalVoteNo,$AC:$AC,Sheet1!S71_ItemType,$AD:$AD)","v":6475249},{"$f":"SUMIFS(Sheet1!S71_SpecialAdjustedBudget,Sheet1!S71_SubMunicipalVoteNo,$AC:$AC,Sheet1!S71_ItemType,$AD:$AD)","v":0},null,null,null,null,{"$f":"SUMIFS(Sheet1!S71_AdjustmentAmount,Sheet1!S71_SubMunicipalVoteNo,$AC:$AC,Sheet1!S71_ItemType,$AD:$AD)","v":-54733},-54733,6420516,{"$f":"SUMIFS(Sheet1!S71_OY1AdjustedBudget,Sheet1!S71_SubMunicipalVoteNo,$AC:$AC,Sheet1!S71_ItemType,$AD:$AD)","v":5039093},{"$f":"SUMIFS(Sheet1!S71_OY2AdjustedBudget,Sheet1!S71_SubMunicipalVoteNo,$AC:$AC,Sheet1!S71_ItemType,$AD:$AD)","v":5265719},null,null,null,null,null,null,null,null,null,null,null,null,null,null,null,17,"IE"]
[{"$f":"IF(RIGHT('Org structure'!D10,18)<>\"[Name of sub-vote]\",'Org structure'!D10,\"\")","v":"1.8 - Legal Services"},null,{"$f":"SUMIFS(Sheet1!S71_OriginalBudget,Sheet1!S71_SubMunicipalVoteNo,$AC:$AC,Sheet1!S71_ItemType,$AD:$AD)","v":10405306},{"$f":"SUMIFS(Sheet1!S71_SpecialAdjustedBudget,Sheet1!S71_SubMunicipalVoteNo,$AC:$AC,Sheet1!S71_ItemType,$AD:$AD)","v":0},null,null,null,null,{"$f":"SUMIFS(Sheet1!S71_AdjustmentAmount,Sheet1!S71_SubMunicipalVoteNo,$AC:$AC,Sheet1!S71_ItemType,$AD:$AD)","v":-906736},-906736,9498570,{"$f":"SUMIFS(Sheet1!S71_OY1AdjustedBudget,Sheet1!S71_SubMunicipalVoteNo,$AC:$AC,Sheet1!S71_ItemType,$AD:$AD)","v":9360918},{"$f":"SUMIFS(Sheet1!S71_OY2AdjustedBudget,Sheet1!S71_SubMunicipalVoteNo,$AC:$AC,Sheet1!S71_ItemType,$AD:$AD)","v":9782161},null,null,null,null,null,null,null,null,null,null,null,null,null,null,null,18,"IE"]
[{"$f":"IF(RIGHT('Org structure'!D11,18)<>\"[Name of sub-vote]\",'Org structure'!D11,\"\")","v":"1.9 - Property Services"},null,{"$f":"SUMIFS(Sheet1!S71_OriginalBudget,Sheet1!S71_SubMunicipalVoteNo,$AC:$AC,Sheet1!S71_ItemType,$AD:$AD)","v":0},{"$f":"SUMIFS(Sheet1!S71_SpecialAdjustedBudget,Sheet1!S71_SubMunicipalVoteNo,$AC:$AC,Sheet1!S71_ItemType,$AD:$AD)","v":0},null,null,null,null,{"$f":"SUMIFS(Sheet1!S71_AdjustmentAmount,Sheet1!S71_SubMunicipalVoteNo,$AC:$AC,Sheet1!S71_ItemType,$AD:$AD)","v":0},0,0,{"$f":"SUMIFS(Sheet1!S71_OY1AdjustedBudget,Sheet1!S71_SubMunicipalVoteNo,$AC:$AC,Sheet1!S71_ItemType,$AD:$AD)","v":0},{"$f":"SUMIFS(Sheet1!S71_OY2AdjustedBudget,Sheet1!S71_SubMunicipalVoteNo,$AC:$AC,Sheet1!S71_ItemType,$AD:$AD)","v":0},null,null,null,null,null,null,null,null,null,null,null,null,null,null,null,19,"IE"]
[{"$f":"IF(RIGHT('Org structure'!D12,18)<>\"[Name of sub-vote]\",'Org structure'!D12,\"\")","v":"1.10 - Asset Management"},null,{"$f":"SUMIFS(Sheet1!S71_OriginalBudget,Sheet1!S71_SubMunicipalVoteNo,$AC:$AC,Sheet1!S71_ItemType,$AD:$AD)","v":8405708},{"$f":"SUMIFS(Sheet1!S71_SpecialAdjustedBudget,Sheet1!S71_SubMunicipalVoteNo,$AC:$AC,Sheet1!S71_ItemType,$AD:$AD)","v":0},null,null,null,null,{"$f":"SUMIFS(Sheet1!S71_AdjustmentAmount,Sheet1!S71_SubMunicipalVoteNo,$AC:$AC,Sheet1!S71_ItemType,$AD:$AD)","v":-1076},-1076,8404632,{"$f":"SUMIFS(Sheet1!S71_OY1AdjustedBudget,Sheet1!S71_SubMunicipalVoteNo,$AC:$AC,Sheet1!S71_ItemType,$AD:$AD)","v":11569172},{"$f":"SUMIFS(Sheet1!S71_OY2AdjustedBudget,Sheet1!S71_SubMunicipalVoteNo,$AC:$AC,Sheet1!S71_ItemType,$AD:$AD)","v":12070923},null,null,null,null,null,null,null,null,null,null,null,null,null,null,null,110,"IE"]
[{"$f":"A18","v":"Vote 2 - Executive and council"},null,{"$f":"SUM(C187:C196)","v":39900756},0,0,0,0,0,3857278,3857278,43758034,{"$f":"SUM(L187:L196)","v":35155333},{"$f":"SUM(M187:M196)","v":36776676}]
[{"$f":"IF(RIGHT('Org structure'!D14,18)<>\"[Name of sub-vote]\",'Org structure'!D14,\"\")","v":"2.1 - Mayor and Council"},null,{"$f":"SUMIFS(Sheet1!S71_OriginalBudget,Sheet1!S71_SubMunicipalVoteNo,$AC:$AC,Sheet1!S71_ItemType,$AD:$AD)","v":23567438},{"$f":"SUMIFS(Sheet1!S71_SpecialAdjustedBudget,Sheet1!S71_SubMunicipalVoteNo,$AC:$AC,Sheet1!S71_ItemType,$AD:$AD)","v":0},null,null,null,null,{"$f":"SUMIFS(Sheet1!S71_AdjustmentAmount,Sheet1!S71_SubMunicipalVoteNo,$AC:$AC,Sheet1!S71_ItemType,$AD:$AD)","v":1324467},1324467,24891905,{"$f":"SUMIFS(Sheet1!S71_OY1AdjustedBudget,Sheet1!S71_SubMunicipalVoteNo,$AC:$AC,Sheet1!S71_ItemType,$AD:$AD)","v":20486555},{"$f":"SUMIFS(Sheet1!S71_OY2AdjustedBudget,Sheet1!S71_SubMunicipalVoteNo,$AC:$AC,Sheet1!S71_ItemType,$AD:$AD)","v":21447798},null,null,null,null,null,null,null,null,null,null,null,null,null,null,null,21,"IE"]
[{"$f":"IF(RIGHT('Org structure'!D15,18)<>\"[Name of sub-vote]\",'Org structure'!D15,\"\")","v":"2.2 - Municipal Manager, Town Secretary and Chief Executive"},null,{"$f":"SUMIFS(Sheet1!S71_OriginalBudget,Sheet1!S71_SubMunicipalVoteNo,$AC:$AC,Sheet1!S71_ItemType,$AD:$AD)","v":16333318},{"$f":"SUMIFS(Sheet1!S71_SpecialAdjustedBudget,Sheet1!S71_SubMunicipalVoteNo,$AC:$AC,Sheet1!S71_ItemType,$AD:$AD)","v":0},null,null,null,null,{"$f":"SUMIFS(Sheet1!S71_AdjustmentAmount,Sheet1!S71_SubMunicipalVoteNo,$AC:$AC,Sheet1!S71_ItemType,$AD:$AD)","v":2532811},2532811,18866129,{"$f":"SUMIFS(Sheet1!S71_OY1AdjustedBudget,Sheet1!S71_SubMunicipalVoteNo,$AC:$AC,Sheet1!S71_ItemType,$AD:$AD)","v":14668778},{"$f":"SUMIFS(Sheet1!S71_OY2AdjustedBudget,Sheet1!S71_SubMunicipalVoteNo,$AC:$AC,Sheet1!S71_ItemType,$AD:$AD)","v":15328878},null,null,null,null,null,null,null,null,null,null,null,null,null,null,null,22,"IE"]
[{"$f":"IF(RIGHT('Org structure'!D16,18)<>\"[Name of sub-vote]\",'Org structure'!D16,\"\")","v":""},null,{"$f":"SUMIFS(Sheet1!S71_OriginalBudget,Sheet1!S71_SubMunicipalVoteNo,$AC:$AC,Sheet1!S71_ItemType,$AD:$AD)","v":0},{"$f":"SUMIFS(Sheet1!S71_SpecialAdjustedBudget,Sheet1!S71_SubMunicipalVoteNo,$AC:$AC,Sheet1!S71_ItemType,$AD:$AD)","v":0},null,null,null,null,{"$f":"SUMIFS(Sheet1!S71_AdjustmentAmount,Sheet1!S71_SubMunicipalVoteNo,$AC:$AC,Sheet1!S71_ItemType,$AD:$AD)","v":0},0,0,{"$f":"SUMIFS(Sheet1!S71_OY1AdjustedBudget,Sheet1!S71_SubMunicipalVoteNo,$AC:$AC,Sheet1!S71_ItemType,$AD:$AD)","v":0},{"$f":"SUMIFS(Sheet1!S71_OY2AdjustedBudget,Sheet1!S71_SubMunicipalVoteNo,$AC:$AC,Sheet1!S71_ItemType,$AD:$AD)","v":0},null,null,null,null,null,null,null,null,null,null,null,null,null,null,null,23,"IE"]
[{"$f":"IF(RIGHT('Org structure'!D17,18)<>\"[Name of sub-vote]\",'Org structure'!D17,\"\")","v":""},null,{"$f":"SUMIFS(Sheet1!S71_OriginalBudget,Sheet1!S71_SubMunicipalVoteNo,$AC:$AC,Sheet1!S71_ItemType,$AD:$AD)","v":0},{"$f":"SUMIFS(Sheet1!S71_SpecialAdjustedBudget,Sheet1!S71_SubMunicipalVoteNo,$AC:$AC,Sheet1!S71_ItemType,$AD:$AD)","v":0},null,null,null,null,{"$f":"SUMIFS(Sheet1!S71_AdjustmentAmount,Sheet1!S71_SubMunicipalVoteNo,$AC:$AC,Sheet1!S71_ItemType,$AD:$AD)","v":0},0,0,{"$f":"SUMIFS(Sheet1!S71_OY1AdjustedBudget,Sheet1!S71_SubMunicipalVoteNo,$AC:$AC,Sheet1!S71_ItemType,$AD:$AD)","v":0},{"$f":"SUMIFS(Sheet1!S71_OY2AdjustedBudget,Sheet1!S71_SubMunicipalVoteNo,$AC:$AC,Sheet1!S71_ItemType,$AD:$AD)","v":0},null,null,null,null,null,null,null,null,null,null,null,null,null,null,null,24,"IE"]
[{"$f":"IF(RIGHT('Org structure'!D18,18)<>\"[Name of sub-vote]\",'Org structure'!D18,\"\")","v":""},null,{"$f":"SUMIFS(Sheet1!S71_OriginalBudget,Sheet1!S71_SubMunicipalVoteNo,$AC:$AC,Sheet1!S71_ItemType,$AD:$AD)","v":0},{"$f":"SUMIFS(Sheet1!S71_SpecialAdjustedBudget,Sheet1!S71_SubMunicipalVoteNo,$AC:$AC,Sheet1!S71_ItemType,$AD:$AD)","v":0},null,null,null,null,{"$f":"SUMIFS(Sheet1!S71_AdjustmentAmount,Sheet1!S71_SubMunicipalVoteNo,$AC:$AC,Sheet1!S71_ItemType,$AD:$AD)","v":0},0,0,{"$f":"SUMIFS(Sheet1!S71_OY1AdjustedBudget,Sheet1!S71_SubMunicipalVoteNo,$AC:$AC,Sheet1!S71_ItemType,$AD:$AD)","v":0},{"$f":"SUMIFS(Sheet1!S71_OY2AdjustedBudget,Sheet1!S71_SubMunicipalVoteNo,$AC:$AC,Sheet1!S71_ItemType,$AD:$AD)","v":0},null,null,null,null,null,null,null,null,null,null,null,null,null,null,null,25,"IE"]
[{"$f":"IF(RIGHT('Org structure'!D19,18)<>\"[Name of sub-vote]\",'Org structure'!D19,\"\")","v":""},null,{"$f":"SUMIFS(Sheet1!S71_OriginalBudget,Sheet1!S71_SubMunicipalVoteNo,$AC:$AC,Sheet1!S71_ItemType,$AD:$AD)","v":0},{"$f":"SUMIFS(Sheet1!S71_SpecialAdjustedBudget,Sheet1!S71_SubMunicipalVoteNo,$AC:$AC,Sheet1!S71_ItemType,$AD:$AD)","v":0},null,null,null,null,{"$f":"SUMIFS(Sheet1!S71_AdjustmentAmount,Sheet1!S71_SubMunicipalVoteNo,$AC:$AC,Sheet1!S71_ItemType,$AD:$AD)","v":0},0,0,{"$f":"SUMIFS(Sheet1!S71_OY1AdjustedBudget,Sheet1!S71_SubMunicipalVoteNo,$AC:$AC,Sheet1!S71_ItemType,$AD:$AD)","v":0},{"$f":"SUMIFS(Sheet1!S71_OY2AdjustedBudget,Sheet1!S71_SubMunicipalVoteNo,$AC:$AC,Sheet1!S71_ItemType,$AD:$AD)","v":0},null,null,null,null,null,null,null,null,null,null,null,null,null,null,null,26,"IE"]
[{"$f":"IF(RIGHT('Org structure'!D20,18)<>\"[Name of sub-vote]\",'Org structure'!D20,\"\")","v":""},null,{"$f":"SUMIFS(Sheet1!S71_OriginalBudget,Sheet1!S71_SubMunicipalVoteNo,$AC:$AC,Sheet1!S71_ItemType,$AD:$AD)","v":0},{"$f":"SUMIFS(Sheet1!S71_SpecialAdjustedBudget,Sheet1!S71_SubMunicipalVoteNo,$AC:$AC,Sheet1!S71_ItemType,$AD:$AD)","v":0},null,null,null,null,{"$f":"SUMIFS(Sheet1!S71_AdjustmentAmount,Sheet1!S71_SubMunicipalVoteNo,$AC:$AC,Sheet1!S71_ItemType,$AD:$AD)","v":0},0,0,{"$f":"SUMIFS(Sheet1!S71_OY1AdjustedBudget,Sheet1!S71_SubMunicipalVoteNo,$AC:$AC,Sheet1!S71_ItemType,$AD:$AD)","v":0},{"$f":"SUMIFS(Sheet1!S71_OY2AdjustedBudget,Sheet1!S71_SubMunicipalVoteNo,$AC:$AC,Sheet1!S71_ItemType,$AD:$AD)","v":0},null,null,null,null,null,null,null,null,null,null,null,null,null,null,null,27,"IE"]
[{"$f":"IF(RIGHT('Org structure'!D21,18)<>\"[Name of sub-vote]\",'Org structure'!D21,\"\")","v":""},null,{"$f":"SUMIFS(Sheet1!S71_OriginalBudget,Sheet1!S71_SubMunicipalVoteNo,$AC:$AC,Sheet1!S71_ItemType,$AD:$AD)","v":0},{"$f":"SUMIFS(Sheet1!S71_SpecialAdjustedBudget,Sheet1!S71_SubMunicipalVoteNo,$AC:$AC,Sheet1!S71_ItemType,$AD:$AD)","v":0},null,null,null,null,{"$f":"SUMIFS(Sheet1!S71_AdjustmentAmount,Sheet1!S71_SubMunicipalVoteNo,$AC:$AC,Sheet1!S71_ItemType,$AD:$AD)","v":0},0,0,{"$f":"SUMIFS(Sheet1!S71_OY1AdjustedBudget,Sheet1!S71_SubMunicipalVoteNo,$AC:$AC,Sheet1!S71_ItemType,$AD:$AD)","v":0},{"$f":"SUMIFS(Sheet1!S71_OY2AdjustedBudget,Sheet1!S71_SubMunicipalVoteNo,$AC:$AC,Sheet1!S71_ItemType,$AD:$AD)","v":0},null,null,null,null,null,null,null,null,null,null,null,null,null,null,null,28,"IE"]
[{"$f":"IF(RIGHT('Org structure'!D22,18)<>\"[Name of sub-vote]\",'Org structure'!D22,\"\")","v":""},null,{"$f":"SUMIFS(Sheet1!S71_OriginalBudget,Sheet1!S71_SubMunicipalVoteNo,$AC:$AC,Sheet1!S71_ItemType,$AD:$AD)","v":0},{"$f":"SUMIFS(Sheet1!S71_SpecialAdjustedBudget,Sheet1!S71_SubMunicipalVoteNo,$AC:$AC,Sheet1!S71_ItemType,$AD:$AD)","v":0},null,null,null,null,{"$f":"SUMIFS(Sheet1!S71_AdjustmentAmount,Sheet1!S71_SubMunicipalVoteNo,$AC:$AC,Sheet1!S71_ItemType,$AD:$AD)","v":0},0,0,{"$f":"SUMIFS(Sheet1!S71_OY1AdjustedBudget,Sheet1!S71_SubMunicipalVoteNo,$AC:$AC,Sheet1!S71_ItemType,$AD:$AD)","v":0},{"$f":"SUMIFS(Sheet1!S71_OY2AdjustedBudget,Sheet1!S71_SubMunicipalVoteNo,$AC:$AC,Sheet1!S71_ItemType,$AD:$AD)","v":0},null,null,null,null,null,null,null,null,null,null,null,null,null,null,null,29,"IE"]
[{"$f":"IF(RIGHT('Org structure'!D23,18)<>\"[Name of sub-vote]\",'Org structure'!D23,\"\")","v":""},null,{"$f":"SUMIFS(Sheet1!S71_OriginalBudget,Sheet1!S71_SubMunicipalVoteNo,$AC:$AC,Sheet1!S71_ItemType,$AD:$AD)","v":0},{"$f":"SUMIFS(Sheet1!S71_SpecialAdjustedBudget,Sheet1!S71_SubMunicipalVoteNo,$AC:$AC,Sheet1!S71_ItemType,$AD:$AD)","v":0},null,null,null,null,{"$f":"SUMIFS(Sheet1!S71_AdjustmentAmount,Sheet1!S71_SubMunicipalVoteNo,$AC:$AC,Sheet1!S71_ItemType,$AD:$AD)","v":0},0,0,{"$f":"SUMIFS(Sheet1!S71_OY1AdjustedBudget,Sheet1!S71_SubMunicipalVoteNo,$AC:$AC,Sheet1!S71_ItemType,$AD:$AD)","v":0},{"$f":"SUMIFS(Sheet1!S71_OY2AdjustedBudget,Sheet1!S71_SubMunicipalVoteNo,$AC:$AC,Sheet1!S71_ItemType,$AD:$AD)","v":0},null,null,null,null,null,null,null,null,null,null,null,null,null,null,null,210,"IE"]
[{"$f":"A29","v":"Vote 3 - Community and social services"},null,{"$f":"SUM(C198:C207)","v":36770157},0,0,0,0,0,5606689,5606689,42376846,{"$f":"SUM(L198:L207)","v":42978479},{"$f":"SUM(M198:M207)","v":44908010}]
[{"$f":"IF(RIGHT('Org structure'!D25,18)<>\"[Name of sub-vote]\",'Org structure'!D25,\"\")","v":"3.1 - Disaster Management"},null,{"$f":"SUMIFS(Sheet1!S71_OriginalBudget,Sheet1!S71_SubMunicipalVoteNo,$AC:$AC,Sheet1!S71_ItemType,$AD:$AD)","v":6065086},{"$f":"SUMIFS(Sheet1!S71_SpecialAdjustedBudget,Sheet1!S71_SubMunicipalVoteNo,$AC:$AC,Sheet1!S71_ItemType,$AD:$AD)","v":0},null,null,null,null,{"$f":"SUMIFS(Sheet1!S71_AdjustmentAmount,Sheet1!S71_SubMunicipalVoteNo,$AC:$AC,Sheet1!S71_ItemType,$AD:$AD)","v":-1160180},-1160180,4904906,{"$f":"SUMIFS(Sheet1!S71_OY1AdjustedBudget,Sheet1!S71_SubMunicipalVoteNo,$AC:$AC,Sheet1!S71_ItemType,$AD:$AD)","v":5838523},{"$f":"SUMIFS(Sheet1!S71_OY2AdjustedBudget,Sheet1!S71_SubMunicipalVoteNo,$AC:$AC,Sheet1!S71_ItemType,$AD:$AD)","v":6096754},null,null,null,null,null,null,null,null,null,null,null,null,null,null,null,31,"IE"]
[{"$f":"IF(RIGHT('Org structure'!D26,18)<>\"[Name of sub-vote]\",'Org structure'!D26,\"\")","v":"3.2 - Community Halls and Facilities"},null,{"$f":"SUMIFS(Sheet1!S71_OriginalBudget,Sheet1!S71_SubMunicipalVoteNo,$AC:$AC,Sheet1!S71_ItemType,$AD:$AD)","v":25760136},{"$f":"SUMIFS(Sheet1!S71_SpecialAdjustedBudget,Sheet1!S71_SubMunicipalVoteNo,$AC:$AC,Sheet1!S71_ItemType,$AD:$AD)","v":0},null,null,null,null,{"$f":"SUMIFS(Sheet1!S71_AdjustmentAmount,Sheet1!S71_SubMunicipalVoteNo,$AC:$AC,Sheet1!S71_ItemType,$AD:$AD)","v":6058864},6058864,31819000,{"$f":"SUMIFS(Sheet1!S71_OY1AdjustedBudget,Sheet1!S71_SubMunicipalVoteNo,$AC:$AC,Sheet1!S71_ItemType,$AD:$AD)","v":31981615},{"$f":"SUMIFS(Sheet1!S71_OY2AdjustedBudget,Sheet1!S71_SubMunicipalVoteNo,$AC:$AC,Sheet1!S71_ItemType,$AD:$AD)","v":33420217},null,null,null,null,null,null,null,null,null,null,null,null,null,null,null,32,"IE"]
[{"$f":"IF(RIGHT('Org structure'!D27,18)<>\"[Name of sub-vote]\",'Org structure'!D27,\"\")","v":"3.3 - Libraries and Archives"},null,{"$f":"SUMIFS(Sheet1!S71_OriginalBudget,Sheet1!S71_SubMunicipalVoteNo,$AC:$AC,Sheet1!S71_ItemType,$AD:$AD)","v":4549760},{"$f":"SUMIFS(Sheet1!S71_SpecialAdjustedBudget,Sheet1!S71_SubMunicipalVoteNo,$AC:$AC,Sheet1!S71_ItemType,$AD:$AD)","v":0},null,null,null,null,{"$f":"SUMIFS(Sheet1!S71_AdjustmentAmount,Sheet1!S71_SubMunicipalVoteNo,$AC:$AC,Sheet1!S71_ItemType,$AD:$AD)","v":-192043},-192043,4357717,{"$f":"SUMIFS(Sheet1!S71_OY1AdjustedBudget,Sheet1!S71_SubMunicipalVoteNo,$AC:$AC,Sheet1!S71_ItemType,$AD:$AD)","v":4437291},{"$f":"SUMIFS(Sheet1!S71_OY2AdjustedBudget,Sheet1!S71_SubMunicipalVoteNo,$AC:$AC,Sheet1!S71_ItemType,$AD:$AD)","v":4636970},null,null,null,null,null,null,null,null,null,null,null,null,null,null,null,33,"IE"]
[{"$f":"IF(RIGHT('Org structure'!D28,18)<>\"[Name of sub-vote]\",'Org structure'!D28,\"\")","v":"3.4 - Education"},null,{"$f":"SUMIFS(Sheet1!S71_OriginalBudget,Sheet1!S71_SubMunicipalVoteNo,$AC:$AC,Sheet1!S71_ItemType,$AD:$AD)","v":395175},{"$f":"SUMIFS(Sheet1!S71_SpecialAdjustedBudget,Sheet1!S71_SubMunicipalVoteNo,$AC:$AC,Sheet1!S71_ItemType,$AD:$AD)","v":0},null,null,null,null,{"$f":"SUMIFS(Sheet1!S71_AdjustmentAmount,Sheet1!S71_SubMunicipalVoteNo,$AC:$AC,Sheet1!S71_ItemType,$AD:$AD)","v":900048},900048,1295223,{"$f":"SUMIFS(Sheet1!S71_OY1AdjustedBudget,Sheet1!S71_SubMunicipalVoteNo,$AC:$AC,Sheet1!S71_ItemType,$AD:$AD)","v":721050},{"$f":"SUMIFS(Sheet1!S71_OY2AdjustedBudget,Sheet1!S71_SubMunicipalVoteNo,$AC:$AC,Sheet1!S71_ItemType,$AD:$AD)","v":754069},null,null,null,null,null,null,null,null,null,null,null,null,null,null,null,34,"IE"]
[{"$f":"IF(RIGHT('Org structure'!D29,18)<>\"[Name of sub-vote]\",'Org structure'!D29,\"\")","v":""},null,{"$f":"SUMIFS(Sheet1!S71_OriginalBudget,Sheet1!S71_SubMunicipalVoteNo,$AC:$AC,Sheet1!S71_ItemType,$AD:$AD)","v":0},{"$f":"SUMIFS(Sheet1!S71_SpecialAdjustedBudget,Sheet1!S71_SubMunicipalVoteNo,$AC:$AC,Sheet1!S71_ItemType,$AD:$AD)","v":0},null,null,null,null,{"$f":"SUMIFS(Sheet1!S71_AdjustmentAmount,Sheet1!S71_SubMunicipalVoteNo,$AC:$AC,Sheet1!S71_ItemType,$AD:$AD)","v":0},0,0,{"$f":"SUMIFS(Sheet1!S71_OY1AdjustedBudget,Sheet1!S71_SubMunicipalVoteNo,$AC:$AC,Sheet1!S71_ItemType,$AD:$AD)","v":0},{"$f":"SUMIFS(Sheet1!S71_OY2AdjustedBudget,Sheet1!S71_SubMunicipalVoteNo,$AC:$AC,Sheet1!S71_ItemType,$AD:$AD)","v":0},null,null,null,null,null,null,null,null,null,null,null,null,null,null,null,35,"IE"]
[{"$f":"IF(RIGHT('Org structure'!D30,18)<>\"[Name of sub-vote]\",'Org structure'!D30,\"\")","v":"3.6 - Health Services"},null,{"$f":"SUMIFS(Sheet1!S71_OriginalBudget,Sheet1!S71_SubMunicipalVoteNo,$AC:$AC,Sheet1!S71_ItemType,$AD:$AD)","v":0},{"$f":"SUMIFS(Sheet1!S71_SpecialAdjustedBudget,Sheet1!S71_SubMunicipalVoteNo,$AC:$AC,Sheet1!S71_ItemType,$AD:$AD)","v":0},null,null,null,null,{"$f":"SUMIFS(Sheet1!S71_AdjustmentAmount,Sheet1!S71_SubMunicipalVoteNo,$AC:$AC,Sheet1!S71_ItemType,$AD:$AD)","v":0},0,0,{"$f":"SUMIFS(Sheet1!S71_OY1AdjustedBudget,Sheet1!S71_SubMunicipalVoteNo,$AC:$AC,Sheet1!S71_ItemType,$AD:$AD)","v":0},{"$f":"SUMIFS(Sheet1!S71_OY2AdjustedBudget,Sheet1!S71_SubMunicipalVoteNo,$AC:$AC,Sheet1!S71_ItemType,$AD:$AD)","v":0},null,null,null,null,null,null,null,null,null,null,null,null,null,null,null,36,"IE"]
[{"$f":"IF(RIGHT('Org structure'!D31,18)<>\"[Name of sub-vote]\",'Org structure'!D31,\"\")","v":"3.7 - Animal Care and Diseases"},null,{"$f":"SUMIFS(Sheet1!S71_OriginalBudget,Sheet1!S71_SubMunicipalVoteNo,$AC:$AC,Sheet1!S71_ItemType,$AD:$AD)","v":0},{"$f":"SUMIFS(Sheet1!S71_SpecialAdjustedBudget,Sheet1!S71_SubMunicipalVoteNo,$AC:$AC,Sheet1!S71_ItemType,$AD:$AD)","v":0},null,null,null,null,{"$f":"SUMIFS(Sheet1!S71_AdjustmentAmount,Sheet1!S71_SubMunicipalVoteNo,$AC:$AC,Sheet1!S71_ItemType,$AD:$AD)","v":0},0,0,{"$f":"SUMIFS(Sheet1!S71_OY1AdjustedBudget,Sheet1!S71_SubMunicipalVoteNo,$AC:$AC,Sheet1!S71_ItemType,$AD:$AD)","v":0},{"$f":"SUMIFS(Sheet1!S71_OY2AdjustedBudget,Sheet1!S71_SubMunicipalVoteNo,$AC:$AC,Sheet1!S71_ItemType,$AD:$AD)","v":0},null,null,null,null,null,null,null,null,null,null,null,null,null,null,null,37,"IE"]
[{"$f":"IF(RIGHT('Org structure'!D32,18)<>\"[Name of sub-vote]\",'Org structure'!D32,\"\")","v":""},null,{"$f":"SUMIFS(Sheet1!S71_OriginalBudget,Sheet1!S71_SubMunicipalVoteNo,$AC:$AC,Sheet1!S71_ItemType,$AD:$AD)","v":0},{"$f":"SUMIFS(Sheet1!S71_SpecialAdjustedBudget,Sheet1!S71_SubMunicipalVoteNo,$AC:$AC,Sheet1!S71_ItemType,$AD:$AD)","v":0},null,null,null,null,{"$f":"SUMIFS(Sheet1!S71_AdjustmentAmount,Sheet1!S71_SubMunicipalVoteNo,$AC:$AC,Sheet1!S71_ItemType,$AD:$AD)","v":0},0,0,{"$f":"SUMIFS(Sheet1!S71_OY1AdjustedBudget,Sheet1!S71_SubMunicipalVoteNo,$AC:$AC,Sheet1!S71_ItemType,$AD:$AD)","v":0},{"$f":"SUMIFS(Sheet1!S71_OY2AdjustedBudget,Sheet1!S71_SubMunicipalVoteNo,$AC:$AC,Sheet1!S71_ItemType,$AD:$AD)","v":0},null,null,null,null,null,null,null,null,null,null,null,null,null,null,null,38,"IE"]
[{"$f":"IF(RIGHT('Org structure'!D33,18)<>\"[Name of sub-vote]\",'Org structure'!D33,\"\")","v":""},null,{"$f":"SUMIFS(Sheet1!S71_OriginalBudget,Sheet1!S71_SubMunicipalVoteNo,$AC:$AC,Sheet1!S71_ItemType,$AD:$AD)","v":0},{"$f":"SUMIFS(Sheet1!S71_SpecialAdjustedBudget,Sheet1!S71_SubMunicipalVoteNo,$AC:$AC,Sheet1!S71_ItemType,$AD:$AD)","v":0},null,null,null,null,{"$f":"SUMIFS(Sheet1!S71_AdjustmentAmount,Sheet1!S71_SubMunicipalVoteNo,$AC:$AC,Sheet1!S71_ItemType,$AD:$AD)","v":0},0,0,{"$f":"SUMIFS(Sheet1!S71_OY1AdjustedBudget,Sheet1!S71_SubMunicipalVoteNo,$AC:$AC,Sheet1!S71_ItemType,$AD:$AD)","v":0},{"$f":"SUMIFS(Sheet1!S71_OY2AdjustedBudget,Sheet1!S71_SubMunicipalVoteNo,$AC:$AC,Sheet1!S71_ItemType,$AD:$AD)","v":0},null,null,null,null,null,null,null,null,null,null,null,null,null,null,null,39,"IE"]
[{"$f":"IF(RIGHT('Org structure'!D34,18)<>\"[Name of sub-vote]\",'Org structure'!D34,\"\")","v":""},null,{"$f":"SUMIFS(Sheet1!S71_OriginalBudget,Sheet1!S71_SubMunicipalVoteNo,$AC:$AC,Sheet1!S71_ItemType,$AD:$AD)","v":0},{"$f":"SUMIFS(Sheet1!S71_SpecialAdjustedBudget,Sheet1!S71_SubMunicipalVoteNo,$AC:$AC,Sheet1!S71_ItemType,$AD:$AD)","v":0},null,null,null,null,{"$f":"SUMIFS(Sheet1!S71_AdjustmentAmount,Sheet1!S71_SubMunicipalVoteNo,$AC:$AC,Sheet1!S71_ItemType,$AD:$AD)","v":0},0,0,{"$f":"SUMIFS(Sheet1!S71_OY1AdjustedBudget,Sheet1!S71_SubMunicipalVoteNo,$AC:$AC,Sheet1!S71_ItemType,$AD:$AD)","v":0},{"$f":"SUMIFS(Sheet1!S71_OY2AdjustedBudget,Sheet1!S71_SubMunicipalVoteNo,$AC:$AC,Sheet1!S71_ItemType,$AD:$AD)","v":0},null,null,null,null,null,null,null,null,null,null,null,null,null,null,null,310,"IE"]
["Vote 4 - Internal Audit",null,{"$f":"SUM(C209:C218)","v":2672000},0,0,0,0,0,-1000000,-1000000,1672000,{"$f":"SUM(L209:L218)","v":1724250},{"$f":"SUM(M209:M218)","v":1801841}]
[{"$f":"IF(RIGHT('Org structure'!D36,18)<>\"[Name of sub-vote]\",'Org structure'!D36,\"\")","v":"4.1 - Governance Function"},null,{"$f":"SUMIFS(Sheet1!S71_OriginalBudget,Sheet1!S71_SubMunicipalVoteNo,$AC:$AC,Sheet1!S71_ItemType,$AD:$AD)","v":2672000},{"$f":"SUMIFS(Sheet1!S71_SpecialAdjustedBudget,Sheet1!S71_SubMunicipalVoteNo,$AC:$AC,Sheet1!S71_ItemType,$AD:$AD)","v":0},null,null,null,null,{"$f":"SUMIFS(Sheet1!S71_AdjustmentAmount,Sheet1!S71_SubMunicipalVoteNo,$AC:$AC,Sheet1!S71_ItemType,$AD:$AD)","v":-1000000},-1000000,1672000,{"$f":"SUMIFS(Sheet1!S71_OY1AdjustedBudget,Sheet1!S71_SubMunicipalVoteNo,$AC:$AC,Sheet1!S71_ItemType,$AD:$AD)","v":1724250},{"$f":"SUMIFS(Sheet1!S71_OY2AdjustedBudget,Sheet1!S71_SubMunicipalVoteNo,$AC:$AC,Sheet1!S71_ItemType,$AD:$AD)","v":1801841},null,null,null,null,null,null,null,null,null,null,null,null,null,null,null,41,"IE"]
[{"$f":"IF(RIGHT('Org structure'!D37,18)<>\"[Name of sub-vote]\",'Org structure'!D37,\"\")","v":""},null,{"$f":"SUMIFS(Sheet1!S71_OriginalBudget,Sheet1!S71_SubMunicipalVoteNo,$AC:$AC,Sheet1!S71_ItemType,$AD:$AD)","v":0},{"$f":"SUMIFS(Sheet1!S71_SpecialAdjustedBudget,Sheet1!S71_SubMunicipalVoteNo,$AC:$AC,Sheet1!S71_ItemType,$AD:$AD)","v":0},null,null,null,null,{"$f":"SUMIFS(Sheet1!S71_AdjustmentAmount,Sheet1!S71_SubMunicipalVoteNo,$AC:$AC,Sheet1!S71_ItemType,$AD:$AD)","v":0},0,0,{"$f":"SUMIFS(Sheet1!S71_OY1AdjustedBudget,Sheet1!S71_SubMunicipalVoteNo,$AC:$AC,Sheet1!S71_ItemType,$AD:$AD)","v":0},{"$f":"SUMIFS(Sheet1!S71_OY2AdjustedBudget,Sheet1!S71_SubMunicipalVoteNo,$AC:$AC,Sheet1!S71_ItemType,$AD:$AD)","v":0},null,null,null,null,null,null,null,null,null,null,null,null,null,null,null,42,"IE"]
[{"$f":"IF(RIGHT('Org structure'!D38,18)<>\"[Name of sub-vote]\",'Org structure'!D38,\"\")","v":""},null,{"$f":"SUMIFS(Sheet1!S71_OriginalBudget,Sheet1!S71_SubMunicipalVoteNo,$AC:$AC,Sheet1!S71_ItemType,$AD:$AD)","v":0},{"$f":"SUMIFS(Sheet1!S71_SpecialAdjustedBudget,Sheet1!S71_SubMunicipalVoteNo,$AC:$AC,Sheet1!S71_ItemType,$AD:$AD)","v":0},null,null,null,null,{"$f":"SUMIFS(Sheet1!S71_AdjustmentAmount,Sheet1!S71_SubMunicipalVoteNo,$AC:$AC,Sheet1!S71_ItemType,$AD:$AD)","v":0},0,0,{"$f":"SUMIFS(Sheet1!S71_OY1AdjustedBudget,Sheet1!S71_SubMunicipalVoteNo,$AC:$AC,Sheet1!S71_ItemType,$AD:$AD)","v":0},{"$f":"SUMIFS(Sheet1!S71_OY2AdjustedBudget,Sheet1!S71_SubMunicipalVoteNo,$AC:$AC,Sheet1!S71_ItemType,$AD:$AD)","v":0},null,null,null,null,null,null,null,null,null,null,null,null,null,null,null,43,"IE"]
[{"$f":"IF(RIGHT('Org structure'!D39,18)<>\"[Name of sub-vote]\",'Org structure'!D39,\"\")","v":""},null,{"$f":"SUMIFS(Sheet1!S71_OriginalBudget,Sheet1!S71_SubMunicipalVoteNo,$AC:$AC,Sheet1!S71_ItemType,$AD:$AD)","v":0},{"$f":"SUMIFS(Sheet1!S71_SpecialAdjustedBudget,Sheet1!S71_SubMunicipalVoteNo,$AC:$AC,Sheet1!S71_ItemType,$AD:$AD)","v":0},null,null,null,null,{"$f":"SUMIFS(Sheet1!S71_AdjustmentAmount,Sheet1!S71_SubMunicipalVoteNo,$AC:$AC,Sheet1!S71_ItemType,$AD:$AD)","v":0},0,0,{"$f":"SUMIFS(Sheet1!S71_OY1AdjustedBudget,Sheet1!S71_SubMunicipalVoteNo,$AC:$AC,Sheet1!S71_ItemType,$AD:$AD)","v":0},{"$f":"SUMIFS(Sheet1!S71_OY2AdjustedBudget,Sheet1!S71_SubMunicipalVoteNo,$AC:$AC,Sheet1!S71_ItemType,$AD:$AD)","v":0},null,null,null,null,null,null,null,null,null,null,null,null,null,null,null,44,"IE"]
[{"$f":"IF(RIGHT('Org structure'!D40,18)<>\"[Name of sub-vote]\",'Org structure'!D40,\"\")","v":""},null,{"$f":"SUMIFS(Sheet1!S71_OriginalBudget,Sheet1!S71_SubMunicipalVoteNo,$AC:$AC,Sheet1!S71_ItemType,$AD:$AD)","v":0},{"$f":"SUMIFS(Sheet1!S71_SpecialAdjustedBudget,Sheet1!S71_SubMunicipalVoteNo,$AC:$AC,Sheet1!S71_ItemType,$AD:$AD)","v":0},null,null,null,null,{"$f":"SUMIFS(Sheet1!S71_AdjustmentAmount,Sheet1!S71_SubMunicipalVoteNo,$AC:$AC,Sheet1!S71_ItemType,$AD:$AD)","v":0},0,0,{"$f":"SUMIFS(Sheet1!S71_OY1AdjustedBudget,Sheet1!S71_SubMunicipalVoteNo,$AC:$AC,Sheet1!S71_ItemType,$AD:$AD)","v":0},{"$f":"SUMIFS(Sheet1!S71_OY2AdjustedBudget,Sheet1!S71_SubMunicipalVoteNo,$AC:$AC,Sheet1!S71_ItemType,$AD:$AD)","v":0},null,null,null,null,null,null,null,null,null,null,null,null,null,null,null,45,"IE"]
[{"$f":"IF(RIGHT('Org structure'!D41,18)<>\"[Name of sub-vote]\",'Org structure'!D41,\"\")","v":""},null,{"$f":"SUMIFS(Sheet1!S71_OriginalBudget,Sheet1!S71_SubMunicipalVoteNo,$AC:$AC,Sheet1!S71_ItemType,$AD:$AD)","v":0},{"$f":"SUMIFS(Sheet1!S71_SpecialAdjustedBudget,Sheet1!S71_SubMunicipalVoteNo,$AC:$AC,Sheet1!S71_ItemType,$AD:$AD)","v":0},null,null,null,null,{"$f":"SUMIFS(Sheet1!S71_AdjustmentAmount,Sheet1!S71_SubMunicipalVoteNo,$AC:$AC,Sheet1!S71_ItemType,$AD:$AD)","v":0},0,0,{"$f":"SUMIFS(Sheet1!S71_OY1AdjustedBudget,Sheet1!S71_SubMunicipalVoteNo,$AC:$AC,Sheet1!S71_ItemType,$AD:$AD)","v":0},{"$f":"SUMIFS(Sheet1!S71_OY2AdjustedBudget,Sheet1!S71_SubMunicipalVoteNo,$AC:$AC,Sheet1!S71_ItemType,$AD:$AD)","v":0},null,null,null,null,null,null,null,null,null,null,null,null,null,null,null,46,"IE"]
[{"$f":"IF(RIGHT('Org structure'!D42,18)<>\"[Name of sub-vote]\",'Org structure'!D42,\"\")","v":""},null,{"$f":"SUMIFS(Sheet1!S71_OriginalBudget,Sheet1!S71_SubMunicipalVoteNo,$AC:$AC,Sheet1!S71_ItemType,$AD:$AD)","v":0},{"$f":"SUMIFS(Sheet1!S71_SpecialAdjustedBudget,Sheet1!S71_SubMunicipalVoteNo,$AC:$AC,Sheet1!S71_ItemType,$AD:$AD)","v":0},null,null,null,null,{"$f":"SUMIFS(Sheet1!S71_AdjustmentAmount,Sheet1!S71_SubMunicipalVoteNo,$AC:$AC,Sheet1!S71_ItemType,$AD:$AD)","v":0},0,0,{"$f":"SUMIFS(Sheet1!S71_OY1AdjustedBudget,Sheet1!S71_SubMunicipalVoteNo,$AC:$AC,Sheet1!S71_ItemType,$AD:$AD)","v":0},{"$f":"SUMIFS(Sheet1!S71_OY2AdjustedBudget,Sheet1!S71_SubMunicipalVoteNo,$AC:$AC,Sheet1!S71_ItemType,$AD:$AD)","v":0},null,null,null,null,null,null,null,null,null,null,null,null,null,null,null,47,"IE"]
[{"$f":"IF(RIGHT('Org structure'!D43,18)<>\"[Name of sub-vote]\",'Org structure'!D43,\"\")","v":""},null,{"$f":"SUMIFS(Sheet1!S71_OriginalBudget,Sheet1!S71_SubMunicipalVoteNo,$AC:$AC,Sheet1!S71_ItemType,$AD:$AD)","v":0},{"$f":"SUMIFS(Sheet1!S71_SpecialAdjustedBudget,Sheet1!S71_SubMunicipalVoteNo,$AC:$AC,Sheet1!S71_ItemType,$AD:$AD)","v":0},null,null,null,null,{"$f":"SUMIFS(Sheet1!S71_AdjustmentAmount,Sheet1!S71_SubMunicipalVoteNo,$AC:$AC,Sheet1!S71_ItemType,$AD:$AD)","v":0},0,0,{"$f":"SUMIFS(Sheet1!S71_OY1AdjustedBudget,Sheet1!S71_SubMunicipalVoteNo,$AC:$AC,Sheet1!S71_ItemType,$AD:$AD)","v":0},{"$f":"SUMIFS(Sheet1!S71_OY2AdjustedBudget,Sheet1!S71_SubMunicipalVoteNo,$AC:$AC,Sheet1!S71_ItemType,$AD:$AD)","v":0},null,null,null,null,null,null,null,null,null,null,null,null,null,null,null,48,"IE"]
[{"$f":"IF(RIGHT('Org structure'!D44,18)<>\"[Name of sub-vote]\",'Org structure'!D44,\"\")","v":""},null,{"$f":"SUMIFS(Sheet1!S71_OriginalBudget,Sheet1!S71_SubMunicipalVoteNo,$AC:$AC,Sheet1!S71_ItemType,$AD:$AD)","v":0},{"$f":"SUMIFS(Sheet1!S71_SpecialAdjustedBudget,Sheet1!S71_SubMunicipalVoteNo,$AC:$AC,Sheet1!S71_ItemType,$AD:$AD)","v":0},null,null,null,null,{"$f":"SUMIFS(Sheet1!S71_AdjustmentAmount,Sheet1!S71_SubMunicipalVoteNo,$AC:$AC,Sheet1!S71_ItemType,$AD:$AD)","v":0},0,0,{"$f":"SUMIFS(Sheet1!S71_OY1AdjustedBudget,Sheet1!S71_SubMunicipalVoteNo,$AC:$AC,Sheet1!S71_ItemType,$AD:$AD)","v":0},{"$f":"SUMIFS(Sheet1!S71_OY2AdjustedBudget,Sheet1!S71_SubMunicipalVoteNo,$AC:$AC,Sheet1!S71_ItemType,$AD:$AD)","v":0},null,null,null,null,null,null,null,null,null,null,null,null,null,null,null,49,"IE"]
[{"$f":"IF(RIGHT('Org structure'!D45,18)<>\"[Name of sub-vote]\",'Org structure'!D45,\"\")","v":""},null,{"$f":"SUMIFS(Sheet1!S71_OriginalBudget,Sheet1!S71_SubMunicipalVoteNo,$AC:$AC,Sheet1!S71_ItemType,$AD:$AD)","v":0},{"$f":"SUMIFS(Sheet1!S71_SpecialAdjustedBudget,Sheet1!S71_SubMunicipalVoteNo,$AC:$AC,Sheet1!S71_ItemType,$AD:$AD)","v":0},null,null,null,null,{"$f":"SUMIFS(Sheet1!S71_AdjustmentAmount,Sheet1!S71_SubMunicipalVoteNo,$AC:$AC,Sheet1!S71_ItemType,$AD:$AD)","v":0},0,0,{"$f":"SUMIFS(Sheet1!S71_OY1AdjustedBudget,Sheet1!S71_SubMunicipalVoteNo,$AC:$AC,Sheet1!S71_ItemType,$AD:$AD)","v":0},{"$f":"SUMIFS(Sheet1!S71_OY2AdjustedBudget,Sheet1!S71_SubMunicipalVoteNo,$AC:$AC,Sheet1!S71_ItemType,$AD:$AD)","v":0},null,null,null,null,null,null,null,null,null,null,null,null,null,null,null,410,"IE"]
[{"$f":"A51","v":"Vote 5 - Waste Management"},null,{"$f":"SUM(C220:C229)","v":1975702},0,0,0,0,0,5282074,5282074,7257776,{"$f":"SUM(L220:L229)","v":2145798},{"$f":"SUM(M220:M229)","v":2211418}]
[{"$f":"IF(RIGHT('Org structure'!D47,18)<>\"[Name of sub-vote]\",'Org structure'!D47,\"\")","v":"5.1 - Solid Waste Removal"},null,{"$f":"SUMIFS(Sheet1!S71_OriginalBudget,Sheet1!S71_SubMunicipalVoteNo,$AC:$AC,Sheet1!S71_ItemType,$AD:$AD)","v":50000},{"$f":"SUMIFS(Sheet1!S71_SpecialAdjustedBudget,Sheet1!S71_SubMunicipalVoteNo,$AC:$AC,Sheet1!S71_ItemType,$AD:$AD)","v":0},null,null,null,null,{"$f":"SUMIFS(Sheet1!S71_AdjustmentAmount,Sheet1!S71_SubMunicipalVoteNo,$AC:$AC,Sheet1!S71_ItemType,$AD:$AD)","v":5986756},5986756,6036756,{"$f":"SUMIFS(Sheet1!S71_OY1AdjustedBudget,Sheet1!S71_SubMunicipalVoteNo,$AC:$AC,Sheet1!S71_ItemType,$AD:$AD)","v":1144698},{"$f":"SUMIFS(Sheet1!S71_OY2AdjustedBudget,Sheet1!S71_SubMunicipalVoteNo,$AC:$AC,Sheet1!S71_ItemType,$AD:$AD)","v":1196210},null,null,null,null,null,null,null,null,null,null,null,null,null,null,null,51,"IE"]
[{"$f":"IF(RIGHT('Org structure'!D48,18)<>\"[Name of sub-vote]\",'Org structure'!D48,\"\")","v":"5.2 - Street Cleaning"},null,{"$f":"SUMIFS(Sheet1!S71_OriginalBudget,Sheet1!S71_SubMunicipalVoteNo,$AC:$AC,Sheet1!S71_ItemType,$AD:$AD)","v":936500},{"$f":"SUMIFS(Sheet1!S71_SpecialAdjustedBudget,Sheet1!S71_SubMunicipalVoteNo,$AC:$AC,Sheet1!S71_ItemType,$AD:$AD)","v":0},null,null,null,null,{"$f":"SUMIFS(Sheet1!S71_AdjustmentAmount,Sheet1!S71_SubMunicipalVoteNo,$AC:$AC,Sheet1!S71_ItemType,$AD:$AD)","v":-130580},-130580,805920,{"$f":"SUMIFS(Sheet1!S71_OY1AdjustedBudget,Sheet1!S71_SubMunicipalVoteNo,$AC:$AC,Sheet1!S71_ItemType,$AD:$AD)","v":501100},{"$f":"SUMIFS(Sheet1!S71_OY2AdjustedBudget,Sheet1!S71_SubMunicipalVoteNo,$AC:$AC,Sheet1!S71_ItemType,$AD:$AD)","v":515208},null,null,null,null,null,null,null,null,null,null,null,null,null,null,null,52,"IE"]
[{"$f":"IF(RIGHT('Org structure'!D49,18)<>\"[Name of sub-vote]\",'Org structure'!D49,\"\")","v":"5.3 - Solid Waste Disposal (Landfill Sites)"},null,{"$f":"SUMIFS(Sheet1!S71_OriginalBudget,Sheet1!S71_SubMunicipalVoteNo,$AC:$AC,Sheet1!S71_ItemType,$AD:$AD)","v":989202},{"$f":"SUMIFS(Sheet1!S71_SpecialAdjustedBudget,Sheet1!S71_SubMunicipalVoteNo,$AC:$AC,Sheet1!S71_ItemType,$AD:$AD)","v":0},null,null,null,null,{"$f":"SUMIFS(Sheet1!S71_AdjustmentAmount,Sheet1!S71_SubMunicipalVoteNo,$AC:$AC,Sheet1!S71_ItemType,$AD:$AD)","v":-574102},-574102,415100,{"$f":"SUMIFS(Sheet1!S71_OY1AdjustedBudget,Sheet1!S71_SubMunicipalVoteNo,$AC:$AC,Sheet1!S71_ItemType,$AD:$AD)","v":500000},{"$f":"SUMIFS(Sheet1!S71_OY2AdjustedBudget,Sheet1!S71_SubMunicipalVoteNo,$AC:$AC,Sheet1!S71_ItemType,$AD:$AD)","v":500000},null,null,null,null,null,null,null,null,null,null,null,null,null,null,null,53,"IE"]
[{"$f":"IF(RIGHT('Org structure'!D50,18)<>\"[Name of sub-vote]\",'Org structure'!D50,\"\")","v":""},null,{"$f":"SUMIFS(Sheet1!S71_OriginalBudget,Sheet1!S71_SubMunicipalVoteNo,$AC:$AC,Sheet1!S71_ItemType,$AD:$AD)","v":0},{"$f":"SUMIFS(Sheet1!S71_SpecialAdjustedBudget,Sheet1!S71_SubMunicipalVoteNo,$AC:$AC,Sheet1!S71_ItemType,$AD:$AD)","v":0},null,null,null,null,{"$f":"SUMIFS(Sheet1!S71_AdjustmentAmount,Sheet1!S71_SubMunicipalVoteNo,$AC:$AC,Sheet1!S71_ItemType,$AD:$AD)","v":0},0,0,{"$f":"SUMIFS(Sheet1!S71_OY1AdjustedBudget,Sheet1!S71_SubMunicipalVoteNo,$AC:$AC,Sheet1!S71_ItemType,$AD:$AD)","v":0},{"$f":"SUMIFS(Sheet1!S71_OY2AdjustedBudget,Sheet1!S71_SubMunicipalVoteNo,$AC:$AC,Sheet1!S71_ItemType,$AD:$AD)","v":0},null,null,null,null,null,null,null,null,null,null,null,null,null,null,null,54,"IE"]
[{"$f":"IF(RIGHT('Org structure'!D51,18)<>\"[Name of sub-vote]\",'Org structure'!D51,\"\")","v":""},null,{"$f":"SUMIFS(Sheet1!S71_OriginalBudget,Sheet1!S71_SubMunicipalVoteNo,$AC:$AC,Sheet1!S71_ItemType,$AD:$AD)","v":0},{"$f":"SUMIFS(Sheet1!S71_SpecialAdjustedBudget,Sheet1!S71_SubMunicipalVoteNo,$AC:$AC,Sheet1!S71_ItemType,$AD:$AD)","v":0},null,null,null,null,{"$f":"SUMIFS(Sheet1!S71_AdjustmentAmount,Sheet1!S71_SubMunicipalVoteNo,$AC:$AC,Sheet1!S71_ItemType,$AD:$AD)","v":0},0,0,{"$f":"SUMIFS(Sheet1!S71_OY1AdjustedBudget,Sheet1!S71_SubMunicipalVoteNo,$AC:$AC,Sheet1!S71_ItemType,$AD:$AD)","v":0},{"$f":"SUMIFS(Sheet1!S71_OY2AdjustedBudget,Sheet1!S71_SubMunicipalVoteNo,$AC:$AC,Sheet1!S71_ItemType,$AD:$AD)","v":0},null,null,null,null,null,null,null,null,null,null,null,null,null,null,null,55,"IE"]
[{"$f":"IF(RIGHT('Org structure'!D52,18)<>\"[Name of sub-vote]\",'Org structure'!D52,\"\")","v":""},null,{"$f":"SUMIFS(Sheet1!S71_OriginalBudget,Sheet1!S71_SubMunicipalVoteNo,$AC:$AC,Sheet1!S71_ItemType,$AD:$AD)","v":0},{"$f":"SUMIFS(Sheet1!S71_SpecialAdjustedBudget,Sheet1!S71_SubMunicipalVoteNo,$AC:$AC,Sheet1!S71_ItemType,$AD:$AD)","v":0},null,null,null,null,{"$f":"SUMIFS(Sheet1!S71_AdjustmentAmount,Sheet1!S71_SubMunicipalVoteNo,$AC:$AC,Sheet1!S71_ItemType,$AD:$AD)","v":0},0,0,{"$f":"SUMIFS(Sheet1!S71_OY1AdjustedBudget,Sheet1!S71_SubMunicipalVoteNo,$AC:$AC,Sheet1!S71_ItemType,$AD:$AD)","v":0},{"$f":"SUMIFS(Sheet1!S71_OY2AdjustedBudget,Sheet1!S71_SubMunicipalVoteNo,$AC:$AC,Sheet1!S71_ItemType,$AD:$AD)","v":0},null,null,null,null,null,null,null,null,null,null,null,null,null,null,null,56,"IE"]
[{"$f":"IF(RIGHT('Org structure'!D53,18)<>\"[Name of sub-vote]\",'Org structure'!D53,\"\")","v":""},null,{"$f":"SUMIFS(Sheet1!S71_OriginalBudget,Sheet1!S71_SubMunicipalVoteNo,$AC:$AC,Sheet1!S71_ItemType,$AD:$AD)","v":0},{"$f":"SUMIFS(Sheet1!S71_SpecialAdjustedBudget,Sheet1!S71_SubMunicipalVoteNo,$AC:$AC,Sheet1!S71_ItemType,$AD:$AD)","v":0},null,null,null,null,{"$f":"SUMIFS(Sheet1!S71_AdjustmentAmount,Sheet1!S71_SubMunicipalVoteNo,$AC:$AC,Sheet1!S71_ItemType,$AD:$AD)","v":0},0,0,{"$f":"SUMIFS(Sheet1!S71_OY1AdjustedBudget,Sheet1!S71_SubMunicipalVoteNo,$AC:$AC,Sheet1!S71_ItemType,$AD:$AD)","v":0},{"$f":"SUMIFS(Sheet1!S71_OY2AdjustedBudget,Sheet1!S71_SubMunicipalVoteNo,$AC:$AC,Sheet1!S71_ItemType,$AD:$AD)","v":0},null,null,null,null,null,null,null,null,null,null,null,null,null,null,null,57,"IE"]
[{"$f":"IF(RIGHT('Org structure'!D54,18)<>\"[Name of sub-vote]\",'Org structure'!D54,\"\")","v":""},null,{"$f":"SUMIFS(Sheet1!S71_OriginalBudget,Sheet1!S71_SubMunicipalVoteNo,$AC:$AC,Sheet1!S71_ItemType,$AD:$AD)","v":0},{"$f":"SUMIFS(Sheet1!S71_SpecialAdjustedBudget,Sheet1!S71_SubMunicipalVoteNo,$AC:$AC,Sheet1!S71_ItemType,$AD:$AD)","v":0},null,null,null,null,{"$f":"SUMIFS(Sheet1!S71_AdjustmentAmount,Sheet1!S71_SubMunicipalVoteNo,$AC:$AC,Sheet1!S71_ItemType,$AD:$AD)","v":0},0,0,{"$f":"SUMIFS(Sheet1!S71_OY1AdjustedBudget,Sheet1!S71_SubMunicipalVoteNo,$AC:$AC,Sheet1!S71_ItemType,$AD:$AD)","v":0},{"$f":"SUMIFS(Sheet1!S71_OY2AdjustedBudget,Sheet1!S71_SubMunicipalVoteNo,$AC:$AC,Sheet1!S71_ItemType,$AD:$AD)","v":0},null,null,null,null,null,null,null,null,null,null,null,null,null,null,null,58,"IE"]
[{"$f":"IF(RIGHT('Org structure'!D55,18)<>\"[Name of sub-vote]\",'Org structure'!D55,\"\")","v":""},null,{"$f":"SUMIFS(Sheet1!S71_OriginalBudget,Sheet1!S71_SubMunicipalVoteNo,$AC:$AC,Sheet1!S71_ItemType,$AD:$AD)","v":0},{"$f":"SUMIFS(Sheet1!S71_SpecialAdjustedBudget,Sheet1!S71_SubMunicipalVoteNo,$AC:$AC,Sheet1!S71_ItemType,$AD:$AD)","v":0},null,null,null,null,{"$f":"SUMIFS(Sheet1!S71_AdjustmentAmount,Sheet1!S71_SubMunicipalVoteNo,$AC:$AC,Sheet1!S71_ItemType,$AD:$AD)","v":0},0,0,{"$f":"SUMIFS(Sheet1!S71_OY1AdjustedBudget,Sheet1!S71_SubMunicipalVoteNo,$AC:$AC,Sheet1!S71_ItemType,$AD:$AD)","v":0},{"$f":"SUMIFS(Sheet1!S71_OY2AdjustedBudget,Sheet1!S71_SubMunicipalVoteNo,$AC:$AC,Sheet1!S71_ItemType,$AD:$AD)","v":0},null,null,null,null,null,null,null,null,null,null,null,null,null,null,null,59,"IE"]
[{"$f":"IF(RIGHT('Org structure'!D56,18)<>\"[Name of sub-vote]\",'Org structure'!D56,\"\")","v":""},null,{"$f":"SUMIFS(Sheet1!S71_OriginalBudget,Sheet1!S71_SubMunicipalVoteNo,$AC:$AC,Sheet1!S71_ItemType,$AD:$AD)","v":0},{"$f":"SUMIFS(Sheet1!S71_SpecialAdjustedBudget,Sheet1!S71_SubMunicipalVoteNo,$AC:$AC,Sheet1!S71_ItemType,$AD:$AD)","v":0},null,null,null,null,{"$f":"SUMIFS(Sheet1!S71_AdjustmentAmount,Sheet1!S71_SubMunicipalVoteNo,$AC:$AC,Sheet1!S71_ItemType,$AD:$AD)","v":0},0,0,{"$f":"SUMIFS(Sheet1!S71_OY1AdjustedBudget,Sheet1!S71_SubMunicipalVoteNo,$AC:$AC,Sheet1!S71_ItemType,$AD:$AD)","v":0},{"$f":"SUMIFS(Sheet1!S71_OY2AdjustedBudget,Sheet1!S71_SubMunicipalVoteNo,$AC:$AC,Sheet1!S71_ItemType,$AD:$AD)","v":0},null,null,null,null,null,null,null,null,null,null,null,null,null,null,null,510,"IE"]
[{"$f":"A62","v":"Vote 6 - Energy Sources"},null,{"$f":"SUM(C231:C240)","v":571657},0,0,0,0,0,-150000,-150000,421657,{"$f":"SUM(L231:L240)","v":571657},{"$f":"SUM(M231:M240)","v":597381}]
[{"$f":"IF(RIGHT('Org structure'!D58,18)<>\"[Name of sub-vote]\",'Org structure'!D58,\"\")","v":"6.1 - Electricity"},null,{"$f":"SUMIFS(Sheet1!S71_OriginalBudget,Sheet1!S71_SubMunicipalVoteNo,$AC:$AC,Sheet1!S71_ItemType,$AD:$AD)","v":571657},{"$f":"SUMIFS(Sheet1!S71_SpecialAdjustedBudget,Sheet1!S71_SubMunicipalVoteNo,$AC:$AC,Sheet1!S71_ItemType,$AD:$AD)","v":0},null,null,null,null,{"$f":"SUMIFS(Sheet1!S71_AdjustmentAmount,Sheet1!S71_SubMunicipalVoteNo,$AC:$AC,Sheet1!S71_ItemType,$AD:$AD)","v":-150000},-150000,421657,{"$f":"SUMIFS(Sheet1!S71_OY1AdjustedBudget,Sheet1!S71_SubMunicipalVoteNo,$AC:$AC,Sheet1!S71_ItemType,$AD:$AD)","v":571657},{"$f":"SUMIFS(Sheet1!S71_OY2AdjustedBudget,Sheet1!S71_SubMunicipalVoteNo,$AC:$AC,Sheet1!S71_ItemType,$AD:$AD)","v":597381},null,null,null,null,null,null,null,null,null,null,null,null,null,null,null,61,"IE"]
[{"$f":"IF(RIGHT('Org structure'!D59,18)<>\"[Name of sub-vote]\",'Org structure'!D59,\"\")","v":"6.2 - Regional Planning and Development"},null,{"$f":"SUMIFS(Sheet1!S71_OriginalBudget,Sheet1!S71_SubMunicipalVoteNo,$AC:$AC,Sheet1!S71_ItemType,$AD:$AD)","v":0},{"$f":"SUMIFS(Sheet1!S71_SpecialAdjustedBudget,Sheet1!S71_SubMunicipalVoteNo,$AC:$AC,Sheet1!S71_ItemType,$AD:$AD)","v":0},null,null,null,null,{"$f":"SUMIFS(Sheet1!S71_AdjustmentAmount,Sheet1!S71_SubMunicipalVoteNo,$AC:$AC,Sheet1!S71_ItemType,$AD:$AD)","v":0},0,0,{"$f":"SUMIFS(Sheet1!S71_OY1AdjustedBudget,Sheet1!S71_SubMunicipalVoteNo,$AC:$AC,Sheet1!S71_ItemType,$AD:$AD)","v":0},{"$f":"SUMIFS(Sheet1!S71_OY2AdjustedBudget,Sheet1!S71_SubMunicipalVoteNo,$AC:$AC,Sheet1!S71_ItemType,$AD:$AD)","v":0},null,null,null,null,null,null,null,null,null,null,null,null,null,null,null,62,"IE"]
[{"$f":"IF(RIGHT('Org structure'!D60,18)<>\"[Name of sub-vote]\",'Org structure'!D60,\"\")","v":""},null,{"$f":"SUMIFS(Sheet1!S71_OriginalBudget,Sheet1!S71_SubMunicipalVoteNo,$AC:$AC,Sheet1!S71_ItemType,$AD:$AD)","v":0},{"$f":"SUMIFS(Sheet1!S71_SpecialAdjustedBudget,Sheet1!S71_SubMunicipalVoteNo,$AC:$AC,Sheet1!S71_ItemType,$AD:$AD)","v":0},null,null,null,null,{"$f":"SUMIFS(Sheet1!S71_AdjustmentAmount,Sheet1!S71_SubMunicipalVoteNo,$AC:$AC,Sheet1!S71_ItemType,$AD:$AD)","v":0},0,0,{"$f":"SUMIFS(Sheet1!S71_OY1AdjustedBudget,Sheet1!S71_SubMunicipalVoteNo,$AC:$AC,Sheet1!S71_ItemType,$AD:$AD)","v":0},{"$f":"SUMIFS(Sheet1!S71_OY2AdjustedBudget,Sheet1!S71_SubMunicipalVoteNo,$AC:$AC,Sheet1!S71_ItemType,$AD:$AD)","v":0},null,null,null,null,null,null,null,null,null,null,null,null,null,null,null,63,"IE"]
[{"$f":"IF(RIGHT('Org structure'!D61,18)<>\"[Name of sub-vote]\",'Org structure'!D61,\"\")","v":""},null,{"$f":"SUMIFS(Sheet1!S71_OriginalBudget,Sheet1!S71_SubMunicipalVoteNo,$AC:$AC,Sheet1!S71_ItemType,$AD:$AD)","v":0},{"$f":"SUMIFS(Sheet1!S71_SpecialAdjustedBudget,Sheet1!S71_SubMunicipalVoteNo,$AC:$AC,Sheet1!S71_ItemType,$AD:$AD)","v":0},null,null,null,null,{"$f":"SUMIFS(Sheet1!S71_AdjustmentAmount,Sheet1!S71_SubMunicipalVoteNo,$AC:$AC,Sheet1!S71_ItemType,$AD:$AD)","v":0},0,0,{"$f":"SUMIFS(Sheet1!S71_OY1AdjustedBudget,Sheet1!S71_SubMunicipalVoteNo,$AC:$AC,Sheet1!S71_ItemType,$AD:$AD)","v":0},{"$f":"SUMIFS(Sheet1!S71_OY2AdjustedBudget,Sheet1!S71_SubMunicipalVoteNo,$AC:$AC,Sheet1!S71_ItemType,$AD:$AD)","v":0},null,null,null,null,null,null,null,null,null,null,null,null,null,null,null,64,"IE"]
[{"$f":"IF(RIGHT('Org structure'!D62,18)<>\"[Name of sub-vote]\",'Org structure'!D62,\"\")","v":""},null,{"$f":"SUMIFS(Sheet1!S71_OriginalBudget,Sheet1!S71_SubMunicipalVoteNo,$AC:$AC,Sheet1!S71_ItemType,$AD:$AD)","v":0},{"$f":"SUMIFS(Sheet1!S71_SpecialAdjustedBudget,Sheet1!S71_SubMunicipalVoteNo,$AC:$AC,Sheet1!S71_ItemType,$AD:$AD)","v":0},null,null,null,null,{"$f":"SUMIFS(Sheet1!S71_AdjustmentAmount,Sheet1!S71_SubMunicipalVoteNo,$AC:$AC,Sheet1!S71_ItemType,$AD:$AD)","v":0},0,0,{"$f":"SUMIFS(Sheet1!S71_OY1AdjustedBudget,Sheet1!S71_SubMunicipalVoteNo,$AC:$AC,Sheet1!S71_ItemType,$AD:$AD)","v":0},{"$f":"SUMIFS(Sheet1!S71_OY2AdjustedBudget,Sheet1!S71_SubMunicipalVoteNo,$AC:$AC,Sheet1!S71_ItemType,$AD:$AD)","v":0},null,null,null,null,null,null,null,null,null,null,null,null,null,null,null,65,"IE"]
[{"$f":"IF(RIGHT('Org structure'!D63,18)<>\"[Name of sub-vote]\",'Org structure'!D63,\"\")","v":""},null,{"$f":"SUMIFS(Sheet1!S71_OriginalBudget,Sheet1!S71_SubMunicipalVoteNo,$AC:$AC,Sheet1!S71_ItemType,$AD:$AD)","v":0},{"$f":"SUMIFS(Sheet1!S71_SpecialAdjustedBudget,Sheet1!S71_SubMunicipalVoteNo,$AC:$AC,Sheet1!S71_ItemType,$AD:$AD)","v":0},null,null,null,null,{"$f":"SUMIFS(Sheet1!S71_AdjustmentAmount,Sheet1!S71_SubMunicipalVoteNo,$AC:$AC,Sheet1!S71_ItemType,$AD:$AD)","v":0},0,0,{"$f":"SUMIFS(Sheet1!S71_OY1AdjustedBudget,Sheet1!S71_SubMunicipalVoteNo,$AC:$AC,Sheet1!S71_ItemType,$AD:$AD)","v":0},{"$f":"SUMIFS(Sheet1!S71_OY2AdjustedBudget,Sheet1!S71_SubMunicipalVoteNo,$AC:$AC,Sheet1!S71_ItemType,$AD:$AD)","v":0},null,null,null,null,null,null,null,null,null,null,null,null,null,null,null,66,"IE"]
[{"$f":"IF(RIGHT('Org structure'!D64,18)<>\"[Name of sub-vote]\",'Org structure'!D64,\"\")","v":""},null,{"$f":"SUMIFS(Sheet1!S71_OriginalBudget,Sheet1!S71_SubMunicipalVoteNo,$AC:$AC,Sheet1!S71_ItemType,$AD:$AD)","v":0},{"$f":"SUMIFS(Sheet1!S71_SpecialAdjustedBudget,Sheet1!S71_SubMunicipalVoteNo,$AC:$AC,Sheet1!S71_ItemType,$AD:$AD)","v":0},null,null,null,null,{"$f":"SUMIFS(Sheet1!S71_AdjustmentAmount,Sheet1!S71_SubMunicipalVoteNo,$AC:$AC,Sheet1!S71_ItemType,$AD:$AD)","v":0},0,0,{"$f":"SUMIFS(Sheet1!S71_OY1AdjustedBudget,Sheet1!S71_SubMunicipalVoteNo,$AC:$AC,Sheet1!S71_ItemType,$AD:$AD)","v":0},{"$f":"SUMIFS(Sheet1!S71_OY2AdjustedBudget,Sheet1!S71_SubMunicipalVoteNo,$AC:$AC,Sheet1!S71_ItemType,$AD:$AD)","v":0},null,null,null,null,null,null,null,null,null,null,null,null,null,null,null,67,"IE"]
[{"$f":"IF(RIGHT('Org structure'!D65,18)<>\"[Name of sub-vote]\",'Org structure'!D65,\"\")","v":""},null,{"$f":"SUMIFS(Sheet1!S71_OriginalBudget,Sheet1!S71_SubMunicipalVoteNo,$AC:$AC,Sheet1!S71_ItemType,$AD:$AD)","v":0},{"$f":"SUMIFS(Sheet1!S71_SpecialAdjustedBudget,Sheet1!S71_SubMunicipalVoteNo,$AC:$AC,Sheet1!S71_ItemType,$AD:$AD)","v":0},null,null,null,null,{"$f":"SUMIFS(Sheet1!S71_AdjustmentAmount,Sheet1!S71_SubMunicipalVoteNo,$AC:$AC,Sheet1!S71_ItemType,$AD:$AD)","v":0},0,0,{"$f":"SUMIFS(Sheet1!S71_OY1AdjustedBudget,Sheet1!S71_SubMunicipalVoteNo,$AC:$AC,Sheet1!S71_ItemType,$AD:$AD)","v":0},{"$f":"SUMIFS(Sheet1!S71_OY2AdjustedBudget,Sheet1!S71_SubMunicipalVoteNo,$AC:$AC,Sheet1!S71_ItemType,$AD:$AD)","v":0},null,null,null,null,null,null,null,null,null,null,null,null,null,null,null,68,"IE"]
[{"$f":"IF(RIGHT('Org structure'!D66,18)<>\"[Name of sub-vote]\",'Org structure'!D66,\"\")","v":""},null,{"$f":"SUMIFS(Sheet1!S71_OriginalBudget,Sheet1!S71_SubMunicipalVoteNo,$AC:$AC,Sheet1!S71_ItemType,$AD:$AD)","v":0},{"$f":"SUMIFS(Sheet1!S71_SpecialAdjustedBudget,Sheet1!S71_SubMunicipalVoteNo,$AC:$AC,Sheet1!S71_ItemType,$AD:$AD)","v":0},null,null,null,null,{"$f":"SUMIFS(Sheet1!S71_AdjustmentAmount,Sheet1!S71_SubMunicipalVoteNo,$AC:$AC,Sheet1!S71_ItemType,$AD:$AD)","v":0},0,0,{"$f":"SUMIFS(Sheet1!S71_OY1AdjustedBudget,Sheet1!S71_SubMunicipalVoteNo,$AC:$AC,Sheet1!S71_ItemType,$AD:$AD)","v":0},{"$f":"SUMIFS(Sheet1!S71_OY2AdjustedBudget,Sheet1!S71_SubMunicipalVoteNo,$AC:$AC,Sheet1!S71_ItemType,$AD:$AD)","v":0},null,null,null,null,null,null,null,null,null,null,null,null,null,null,null,69,"IE"]
[{"$f":"IF(RIGHT('Org structure'!D67,18)<>\"[Name of sub-vote]\",'Org structure'!D67,\"\")","v":""},null,{"$f":"SUMIFS(Sheet1!S71_OriginalBudget,Sheet1!S71_SubMunicipalVoteNo,$AC:$AC,Sheet1!S71_ItemType,$AD:$AD)","v":0},{"$f":"SUMIFS(Sheet1!S71_SpecialAdjustedBudget,Sheet1!S71_SubMunicipalVoteNo,$AC:$AC,Sheet1!S71_ItemType,$AD:$AD)","v":0},null,null,null,null,{"$f":"SUMIFS(Sheet1!S71_AdjustmentAmount,Sheet1!S71_SubMunicipalVoteNo,$AC:$AC,Sheet1!S71_ItemType,$AD:$AD)","v":0},{"$f":"SUM(E240:I240)","v":0},{"$f":"IF(D240=0,C240+J240,D240+J240)","v":0},{"$f":"SUMIFS(Sheet1!S71_OY1AdjustedBudget,Sheet1!S71_SubMunicipalVoteNo,$AC:$AC,Sheet1!S71_ItemType,$AD:$AD)","v":0},{"$f":"SUMIFS(Sheet1!S71_OY2AdjustedBudget,Sheet1!S71_SubMunicipalVoteNo,$AC:$AC,Sheet1!S71_ItemType,$AD:$AD)","v":0},null,null,null,null,null,null,null,null,null,null,null,null,null,null,null,610,"IE"]
[{"$f":"A73","v":"Vote 7 - Planning and Development"},null,{"$f":"SUM(C242:C251)","v":30674797},0,0,0,0,0,-6010212,-6010212,24664585,{"$f":"SUM(L242:L251)","v":32896755},{"$f":"SUM(M242:M251)","v":34377111}]
[{"$f":"IF(RIGHT('Org structure'!D69,18)<>\"[Name of sub-vote]\",'Org structure'!D69,\"\")","v":"7.1 - Corporate Wide Strategic Planning (IDPs, LEDs)"},null,{"$f":"SUMIFS(Sheet1!S71_OriginalBudget,Sheet1!S71_SubMunicipalVoteNo,$AC:$AC,Sheet1!S71_ItemType,$AD:$AD)","v":3697678},{"$f":"SUMIFS(Sheet1!S71_SpecialAdjustedBudget,Sheet1!S71_SubMunicipalVoteNo,$AC:$AC,Sheet1!S71_ItemType,$AD:$AD)","v":0},null,null,null,null,{"$f":"SUMIFS(Sheet1!S71_AdjustmentAmount,Sheet1!S71_SubMunicipalVoteNo,$AC:$AC,Sheet1!S71_ItemType,$AD:$AD)","v":-1856909},-1856909,1840769,{"$f":"SUMIFS(Sheet1!S71_OY1AdjustedBudget,Sheet1!S71_SubMunicipalVoteNo,$AC:$AC,Sheet1!S71_ItemType,$AD:$AD)","v":2165589},{"$f":"SUMIFS(Sheet1!S71_OY2AdjustedBudget,Sheet1!S71_SubMunicipalVoteNo,$AC:$AC,Sheet1!S71_ItemType,$AD:$AD)","v":2263039},null,null,null,null,null,null,null,null,null,null,null,null,null,null,null,71,"IE"]
[{"$f":"IF(RIGHT('Org structure'!D70,18)<>\"[Name of sub-vote]\",'Org structure'!D70,\"\")","v":"7.2 - Town Planning, Building Regulations and Enforcement, and City Engineer"},null,{"$f":"SUMIFS(Sheet1!S71_OriginalBudget,Sheet1!S71_SubMunicipalVoteNo,$AC:$AC,Sheet1!S71_ItemType,$AD:$AD)","v":24250391},{"$f":"SUMIFS(Sheet1!S71_SpecialAdjustedBudget,Sheet1!S71_SubMunicipalVoteNo,$AC:$AC,Sheet1!S71_ItemType,$AD:$AD)","v":0},null,null,null,null,{"$f":"SUMIFS(Sheet1!S71_AdjustmentAmount,Sheet1!S71_SubMunicipalVoteNo,$AC:$AC,Sheet1!S71_ItemType,$AD:$AD)","v":-3284254},-3284254,20966137,{"$f":"SUMIFS(Sheet1!S71_OY1AdjustedBudget,Sheet1!S71_SubMunicipalVoteNo,$AC:$AC,Sheet1!S71_ItemType,$AD:$AD)","v":28494717},{"$f":"SUMIFS(Sheet1!S71_OY2AdjustedBudget,Sheet1!S71_SubMunicipalVoteNo,$AC:$AC,Sheet1!S71_ItemType,$AD:$AD)","v":29776982},null,null,null,null,null,null,null,null,null,null,null,null,null,null,null,72,"IE"]
[{"$f":"IF(RIGHT('Org structure'!D71,18)<>\"[Name of sub-vote]\",'Org structure'!D71,\"\")","v":"7.3 - Project Management Unit"},null,{"$f":"SUMIFS(Sheet1!S71_OriginalBudget,Sheet1!S71_SubMunicipalVoteNo,$AC:$AC,Sheet1!S71_ItemType,$AD:$AD)","v":1456053},{"$f":"SUMIFS(Sheet1!S71_SpecialAdjustedBudget,Sheet1!S71_SubMunicipalVoteNo,$AC:$AC,Sheet1!S71_ItemType,$AD:$AD)","v":0},null,null,null,null,{"$f":"SUMIFS(Sheet1!S71_AdjustmentAmount,Sheet1!S71_SubMunicipalVoteNo,$AC:$AC,Sheet1!S71_ItemType,$AD:$AD)","v":-647841},-647841,808212,{"$f":"SUMIFS(Sheet1!S71_OY1AdjustedBudget,Sheet1!S71_SubMunicipalVoteNo,$AC:$AC,Sheet1!S71_ItemType,$AD:$AD)","v":1248924},{"$f":"SUMIFS(Sheet1!S71_OY2AdjustedBudget,Sheet1!S71_SubMunicipalVoteNo,$AC:$AC,Sheet1!S71_ItemType,$AD:$AD)","v":1305125},null,null,null,null,null,null,null,null,null,null,null,null,null,null,null,73,"IE"]
[{"$f":"IF(RIGHT('Org structure'!D72,18)<>\"[Name of sub-vote]\",'Org structure'!D72,\"\")","v":"7.4 - Economic Development/Planning"},null,{"$f":"SUMIFS(Sheet1!S71_OriginalBudget,Sheet1!S71_SubMunicipalVoteNo,$AC:$AC,Sheet1!S71_ItemType,$AD:$AD)","v":1270675},{"$f":"SUMIFS(Sheet1!S71_SpecialAdjustedBudget,Sheet1!S71_SubMunicipalVoteNo,$AC:$AC,Sheet1!S71_ItemType,$AD:$AD)","v":0},null,null,null,null,{"$f":"SUMIFS(Sheet1!S71_AdjustmentAmount,Sheet1!S71_SubMunicipalVoteNo,$AC:$AC,Sheet1!S71_ItemType,$AD:$AD)","v":-221208},-221208,1049467,{"$f":"SUMIFS(Sheet1!S71_OY1AdjustedBudget,Sheet1!S71_SubMunicipalVoteNo,$AC:$AC,Sheet1!S71_ItemType,$AD:$AD)","v":987525},{"$f":"SUMIFS(Sheet1!S71_OY2AdjustedBudget,Sheet1!S71_SubMunicipalVoteNo,$AC:$AC,Sheet1!S71_ItemType,$AD:$AD)","v":1031965},null,null,null,null,null,null,null,null,null,null,null,null,null,null,null,74,"IE"]
[{"$f":"IF(RIGHT('Org structure'!D73,18)<>\"[Name of sub-vote]\",'Org structure'!D73,\"\")","v":""},null,{"$f":"SUMIFS(Sheet1!S71_OriginalBudget,Sheet1!S71_SubMunicipalVoteNo,$AC:$AC,Sheet1!S71_ItemType,$AD:$AD)","v":0},{"$f":"SUMIFS(Sheet1!S71_SpecialAdjustedBudget,Sheet1!S71_SubMunicipalVoteNo,$AC:$AC,Sheet1!S71_ItemType,$AD:$AD)","v":0},null,null,null,null,{"$f":"SUMIFS(Sheet1!S71_AdjustmentAmount,Sheet1!S71_SubMunicipalVoteNo,$AC:$AC,Sheet1!S71_ItemType,$AD:$AD)","v":0},0,0,{"$f":"SUMIFS(Sheet1!S71_OY1AdjustedBudget,Sheet1!S71_SubMunicipalVoteNo,$AC:$AC,Sheet1!S71_ItemType,$AD:$AD)","v":0},{"$f":"SUMIFS(Sheet1!S71_OY2AdjustedBudget,Sheet1!S71_SubMunicipalVoteNo,$AC:$AC,Sheet1!S71_ItemType,$AD:$AD)","v":0},null,null,null,null,null,null,null,null,null,null,null,null,null,null,null,75,"IE"]
[{"$f":"IF(RIGHT('Org structure'!D74,18)<>\"[Name of sub-vote]\",'Org structure'!D74,\"\")","v":""},null,{"$f":"SUMIFS(Sheet1!S71_OriginalBudget,Sheet1!S71_SubMunicipalVoteNo,$AC:$AC,Sheet1!S71_ItemType,$AD:$AD)","v":0},{"$f":"SUMIFS(Sheet1!S71_SpecialAdjustedBudget,Sheet1!S71_SubMunicipalVoteNo,$AC:$AC,Sheet1!S71_ItemType,$AD:$AD)","v":0},null,null,null,null,{"$f":"SUMIFS(Sheet1!S71_AdjustmentAmount,Sheet1!S71_SubMunicipalVoteNo,$AC:$AC,Sheet1!S71_ItemType,$AD:$AD)","v":0},0,0,{"$f":"SUMIFS(Sheet1!S71_OY1AdjustedBudget,Sheet1!S71_SubMunicipalVoteNo,$AC:$AC,Sheet1!S71_ItemType,$AD:$AD)","v":0},{"$f":"SUMIFS(Sheet1!S71_OY2AdjustedBudget,Sheet1!S71_SubMunicipalVoteNo,$AC:$AC,Sheet1!S71_ItemType,$AD:$AD)","v":0},null,null,null,null,null,null,null,null,null,null,null,null,null,null,null,76,"IE"]
[{"$f":"IF(RIGHT('Org structure'!D75,18)<>\"[Name of sub-vote]\",'Org structure'!D75,\"\")","v":""},null,{"$f":"SUMIFS(Sheet1!S71_OriginalBudget,Sheet1!S71_SubMunicipalVoteNo,$AC:$AC,Sheet1!S71_ItemType,$AD:$AD)","v":0},{"$f":"SUMIFS(Sheet1!S71_SpecialAdjustedBudget,Sheet1!S71_SubMunicipalVoteNo,$AC:$AC,Sheet1!S71_ItemType,$AD:$AD)","v":0},null,null,null,null,{"$f":"SUMIFS(Sheet1!S71_AdjustmentAmount,Sheet1!S71_SubMunicipalVoteNo,$AC:$AC,Sheet1!S71_ItemType,$AD:$AD)","v":0},0,0,{"$f":"SUMIFS(Sheet1!S71_OY1AdjustedBudget,Sheet1!S71_SubMunicipalVoteNo,$AC:$AC,Sheet1!S71_ItemType,$AD:$AD)","v":0},{"$f":"SUMIFS(Sheet1!S71_OY2AdjustedBudget,Sheet1!S71_SubMunicipalVoteNo,$AC:$AC,Sheet1!S71_ItemType,$AD:$AD)","v":0},null,null,null,null,null,null,null,null,null,null,null,null,null,null,null,77,"IE"]
[{"$f":"IF(RIGHT('Org structure'!D76,18)<>\"[Name of sub-vote]\",'Org structure'!D76,\"\")","v":""},null,{"$f":"SUMIFS(Sheet1!S71_OriginalBudget,Sheet1!S71_SubMunicipalVoteNo,$AC:$AC,Sheet1!S71_ItemType,$AD:$AD)","v":0},{"$f":"SUMIFS(Sheet1!S71_SpecialAdjustedBudget,Sheet1!S71_SubMunicipalVoteNo,$AC:$AC,Sheet1!S71_ItemType,$AD:$AD)","v":0},null,null,null,null,{"$f":"SUMIFS(Sheet1!S71_AdjustmentAmount,Sheet1!S71_SubMunicipalVoteNo,$AC:$AC,Sheet1!S71_ItemType,$AD:$AD)","v":0},0,0,{"$f":"SUMIFS(Sheet1!S71_OY1AdjustedBudget,Sheet1!S71_SubMunicipalVoteNo,$AC:$AC,Sheet1!S71_ItemType,$AD:$AD)","v":0},{"$f":"SUMIFS(Sheet1!S71_OY2AdjustedBudget,Sheet1!S71_SubMunicipalVoteNo,$AC:$AC,Sheet1!S71_ItemType,$AD:$AD)","v":0},null,null,null,null,null,null,null,null,null,null,null,null,null,null,null,78,"IE"]
[{"$f":"IF(RIGHT('Org structure'!D77,18)<>\"[Name of sub-vote]\",'Org structure'!D77,\"\")","v":""},null,{"$f":"SUMIFS(Sheet1!S71_OriginalBudget,Sheet1!S71_SubMunicipalVoteNo,$AC:$AC,Sheet1!S71_ItemType,$AD:$AD)","v":0},{"$f":"SUMIFS(Sheet1!S71_SpecialAdjustedBudget,Sheet1!S71_SubMunicipalVoteNo,$AC:$AC,Sheet1!S71_ItemType,$AD:$AD)","v":0},null,null,null,null,{"$f":"SUMIFS(Sheet1!S71_AdjustmentAmount,Sheet1!S71_SubMunicipalVoteNo,$AC:$AC,Sheet1!S71_ItemType,$AD:$AD)","v":0},0,0,{"$f":"SUMIFS(Sheet1!S71_OY1AdjustedBudget,Sheet1!S71_SubMunicipalVoteNo,$AC:$AC,Sheet1!S71_ItemType,$AD:$AD)","v":0},{"$f":"SUMIFS(Sheet1!S71_OY2AdjustedBudget,Sheet1!S71_SubMunicipalVoteNo,$AC:$AC,Sheet1!S71_ItemType,$AD:$AD)","v":0},null,null,null,null,null,null,null,null,null,null,null,null,null,null,null,79,"IE"]
[{"$f":"IF(RIGHT('Org structure'!D78,18)<>\"[Name of sub-vote]\",'Org structure'!D78,\"\")","v":""},null,{"$f":"SUMIFS(Sheet1!S71_OriginalBudget,Sheet1!S71_SubMunicipalVoteNo,$AC:$AC,Sheet1!S71_ItemType,$AD:$AD)","v":0},{"$f":"SUMIFS(Sheet1!S71_SpecialAdjustedBudget,Sheet1!S71_SubMunicipalVoteNo,$AC:$AC,Sheet1!S71_ItemType,$AD:$AD)","v":0},null,null,null,null,{"$f":"SUMIFS(Sheet1!S71_AdjustmentAmount,Sheet1!S71_SubMunicipalVoteNo,$AC:$AC,Sheet1!S71_ItemType,$AD:$AD)","v":0},0,0,{"$f":"SUMIFS(Sheet1!S71_OY1AdjustedBudget,Sheet1!S71_SubMunicipalVoteNo,$AC:$AC,Sheet1!S71_ItemType,$AD:$AD)","v":0},{"$f":"SUMIFS(Sheet1!S71_OY2AdjustedBudget,Sheet1!S71_SubMunicipalVoteNo,$AC:$AC,Sheet1!S71_ItemType,$AD:$AD)","v":0},null,null,null,null,null,null,null,null,null,null,null,null,null,null,null,710,"IE"]
[{"$f":"A84","v":"Vote 8 - Public Safety"},null,{"$f":"SUM(C253:C262)","v":0},0,0,0,0,0,0,0,0,{"$f":"SUM(L253:L262)","v":50000},{"$f":"SUM(M253:M262)","v":50000}]
[{"$f":"IF(RIGHT('Org structure'!D80,18)<>\"[Name of sub-vote]\",'Org structure'!D80,\"\")","v":"8.1 - Police Forces, Traffic and Street Parking Control"},null,{"$f":"SUMIFS(Sheet1!S71_OriginalBudget,Sheet1!S71_SubMunicipalVoteNo,$AC:$AC,Sheet1!S71_ItemType,$AD:$AD)","v":0},{"$f":"SUMIFS(Sheet1!S71_SpecialAdjustedBudget,Sheet1!S71_SubMunicipalVoteNo,$AC:$AC,Sheet1!S71_ItemType,$AD:$AD)","v":0},null,null,null,null,{"$f":"SUMIFS(Sheet1!S71_AdjustmentAmount,Sheet1!S71_SubMunicipalVoteNo,$AC:$AC,Sheet1!S71_ItemType,$AD:$AD)","v":0},0,0,{"$f":"SUMIFS(Sheet1!S71_OY1AdjustedBudget,Sheet1!S71_SubMunicipalVoteNo,$AC:$AC,Sheet1!S71_ItemType,$AD:$AD)","v":50000},{"$f":"SUMIFS(Sheet1!S71_OY2AdjustedBudget,Sheet1!S71_SubMunicipalVoteNo,$AC:$AC,Sheet1!S71_ItemType,$AD:$AD)","v":50000},null,null,null,null,null,null,null,null,null,null,null,null,null,null,null,81,"IE"]
[{"$f":"IF(RIGHT('Org structure'!D81,18)<>\"[Name of sub-vote]\",'Org structure'!D81,\"\")","v":""},null,{"$f":"SUMIFS(Sheet1!S71_OriginalBudget,Sheet1!S71_SubMunicipalVoteNo,$AC:$AC,Sheet1!S71_ItemType,$AD:$AD)","v":0},{"$f":"SUMIFS(Sheet1!S71_SpecialAdjustedBudget,Sheet1!S71_SubMunicipalVoteNo,$AC:$AC,Sheet1!S71_ItemType,$AD:$AD)","v":0},null,null,null,null,{"$f":"SUMIFS(Sheet1!S71_AdjustmentAmount,Sheet1!S71_SubMunicipalVoteNo,$AC:$AC,Sheet1!S71_ItemType,$AD:$AD)","v":0},0,0,{"$f":"SUMIFS(Sheet1!S71_OY1AdjustedBudget,Sheet1!S71_SubMunicipalVoteNo,$AC:$AC,Sheet1!S71_ItemType,$AD:$AD)","v":0},{"$f":"SUMIFS(Sheet1!S71_OY2AdjustedBudget,Sheet1!S71_SubMunicipalVoteNo,$AC:$AC,Sheet1!S71_ItemType,$AD:$AD)","v":0},null,null,null,null,null,null,null,null,null,null,null,null,null,null,null,82,"IE"]
[{"$f":"IF(RIGHT('Org structure'!D82,18)<>\"[Name of sub-vote]\",'Org structure'!D82,\"\")","v":""},null,{"$f":"SUMIFS(Sheet1!S71_OriginalBudget,Sheet1!S71_SubMunicipalVoteNo,$AC:$AC,Sheet1!S71_ItemType,$AD:$AD)","v":0},{"$f":"SUMIFS(Sheet1!S71_SpecialAdjustedBudget,Sheet1!S71_SubMunicipalVoteNo,$AC:$AC,Sheet1!S71_ItemType,$AD:$AD)","v":0},null,null,null,null,{"$f":"SUMIFS(Sheet1!S71_AdjustmentAmount,Sheet1!S71_SubMunicipalVoteNo,$AC:$AC,Sheet1!S71_ItemType,$AD:$AD)","v":0},0,0,{"$f":"SUMIFS(Sheet1!S71_OY1AdjustedBudget,Sheet1!S71_SubMunicipalVoteNo,$AC:$AC,Sheet1!S71_ItemType,$AD:$AD)","v":0},{"$f":"SUMIFS(Sheet1!S71_OY2AdjustedBudget,Sheet1!S71_SubMunicipalVoteNo,$AC:$AC,Sheet1!S71_ItemType,$AD:$AD)","v":0},null,null,null,null,null,null,null,null,null,null,null,null,null,null,null,83,"IE"]
[{"$f":"IF(RIGHT('Org structure'!D83,18)<>\"[Name of sub-vote]\",'Org structure'!D83,\"\")","v":""},null,{"$f":"SUMIFS(Sheet1!S71_OriginalBudget,Sheet1!S71_SubMunicipalVoteNo,$AC:$AC,Sheet1!S71_ItemType,$AD:$AD)","v":0},{"$f":"SUMIFS(Sheet1!S71_SpecialAdjustedBudget,Sheet1!S71_SubMunicipalVoteNo,$AC:$AC,Sheet1!S71_ItemType,$AD:$AD)","v":0},null,null,null,null,{"$f":"SUMIFS(Sheet1!S71_AdjustmentAmount,Sheet1!S71_SubMunicipalVoteNo,$AC:$AC,Sheet1!S71_ItemType,$AD:$AD)","v":0},0,0,{"$f":"SUMIFS(Sheet1!S71_OY1AdjustedBudget,Sheet1!S71_SubMunicipalVoteNo,$AC:$AC,Sheet1!S71_ItemType,$AD:$AD)","v":0},{"$f":"SUMIFS(Sheet1!S71_OY2AdjustedBudget,Sheet1!S71_SubMunicipalVoteNo,$AC:$AC,Sheet1!S71_ItemType,$AD:$AD)","v":0},null,null,null,null,null,null,null,null,null,null,null,null,null,null,null,84,"IE"]
[{"$f":"IF(RIGHT('Org structure'!D84,18)<>\"[Name of sub-vote]\",'Org structure'!D84,\"\")","v":""},null,{"$f":"SUMIFS(Sheet1!S71_OriginalBudget,Sheet1!S71_SubMunicipalVoteNo,$AC:$AC,Sheet1!S71_ItemType,$AD:$AD)","v":0},{"$f":"SUMIFS(Sheet1!S71_SpecialAdjustedBudget,Sheet1!S71_SubMunicipalVoteNo,$AC:$AC,Sheet1!S71_ItemType,$AD:$AD)","v":0},null,null,null,null,{"$f":"SUMIFS(Sheet1!S71_AdjustmentAmount,Sheet1!S71_SubMunicipalVoteNo,$AC:$AC,Sheet1!S71_ItemType,$AD:$AD)","v":0},0,0,{"$f":"SUMIFS(Sheet1!S71_OY1AdjustedBudget,Sheet1!S71_SubMunicipalVoteNo,$AC:$AC,Sheet1!S71_ItemType,$AD:$AD)","v":0},{"$f":"SUMIFS(Sheet1!S71_OY2AdjustedBudget,Sheet1!S71_SubMunicipalVoteNo,$AC:$AC,Sheet1!S71_ItemType,$AD:$AD)","v":0},null,null,null,null,null,null,null,null,null,null,null,null,null,null,null,85,"IE"]
[{"$f":"IF(RIGHT('Org structure'!D85,18)<>\"[Name of sub-vote]\",'Org structure'!D85,\"\")","v":""},null,{"$f":"SUMIFS(Sheet1!S71_OriginalBudget,Sheet1!S71_SubMunicipalVoteNo,$AC:$AC,Sheet1!S71_ItemType,$AD:$AD)","v":0},{"$f":"SUMIFS(Sheet1!S71_SpecialAdjustedBudget,Sheet1!S71_SubMunicipalVoteNo,$AC:$AC,Sheet1!S71_ItemType,$AD:$AD)","v":0},null,null,null,null,{"$f":"SUMIFS(Sheet1!S71_AdjustmentAmount,Sheet1!S71_SubMunicipalVoteNo,$AC:$AC,Sheet1!S71_ItemType,$AD:$AD)","v":0},0,0,{"$f":"SUMIFS(Sheet1!S71_OY1AdjustedBudget,Sheet1!S71_SubMunicipalVoteNo,$AC:$AC,Sheet1!S71_ItemType,$AD:$AD)","v":0},{"$f":"SUMIFS(Sheet1!S71_OY2AdjustedBudget,Sheet1!S71_SubMunicipalVoteNo,$AC:$AC,Sheet1!S71_ItemType,$AD:$AD)","v":0},null,null,null,null,null,null,null,null,null,null,null,null,null,null,null,86,"IE"]
[{"$f":"IF(RIGHT('Org structure'!D86,18)<>\"[Name of sub-vote]\",'Org structure'!D86,\"\")","v":""},null,{"$f":"SUMIFS(Sheet1!S71_OriginalBudget,Sheet1!S71_SubMunicipalVoteNo,$AC:$AC,Sheet1!S71_ItemType,$AD:$AD)","v":0},{"$f":"SUMIFS(Sheet1!S71_SpecialAdjustedBudget,Sheet1!S71_SubMunicipalVoteNo,$AC:$AC,Sheet1!S71_ItemType,$AD:$AD)","v":0},null,null,null,null,{"$f":"SUMIFS(Sheet1!S71_AdjustmentAmount,Sheet1!S71_SubMunicipalVoteNo,$AC:$AC,Sheet1!S71_ItemType,$AD:$AD)","v":0},0,0,{"$f":"SUMIFS(Sheet1!S71_OY1AdjustedBudget,Sheet1!S71_SubMunicipalVoteNo,$AC:$AC,Sheet1!S71_ItemType,$AD:$AD)","v":0},{"$f":"SUMIFS(Sheet1!S71_OY2AdjustedBudget,Sheet1!S71_SubMunicipalVoteNo,$AC:$AC,Sheet1!S71_ItemType,$AD:$AD)","v":0},null,null,null,null,null,null,null,null,null,null,null,null,null,null,null,87,"IE"]
[{"$f":"IF(RIGHT('Org structure'!D87,18)<>\"[Name of sub-vote]\",'Org structure'!D87,\"\")","v":""},null,{"$f":"SUMIFS(Sheet1!S71_OriginalBudget,Sheet1!S71_SubMunicipalVoteNo,$AC:$AC,Sheet1!S71_ItemType,$AD:$AD)","v":0},{"$f":"SUMIFS(Sheet1!S71_SpecialAdjustedBudget,Sheet1!S71_SubMunicipalVoteNo,$AC:$AC,Sheet1!S71_ItemType,$AD:$AD)","v":0},null,null,null,null,{"$f":"SUMIFS(Sheet1!S71_AdjustmentAmount,Sheet1!S71_SubMunicipalVoteNo,$AC:$AC,Sheet1!S71_ItemType,$AD:$AD)","v":0},0,0,{"$f":"SUMIFS(Sheet1!S71_OY1AdjustedBudget,Sheet1!S71_SubMunicipalVoteNo,$AC:$AC,Sheet1!S71_ItemType,$AD:$AD)","v":0},{"$f":"SUMIFS(Sheet1!S71_OY2AdjustedBudget,Sheet1!S71_SubMunicipalVoteNo,$AC:$AC,Sheet1!S71_ItemType,$AD:$AD)","v":0},null,null,null,null,null,null,null,null,null,null,null,null,null,null,null,88,"IE"]
[{"$f":"IF(RIGHT('Org structure'!D88,18)<>\"[Name of sub-vote]\",'Org structure'!D88,\"\")","v":""},null,{"$f":"SUMIFS(Sheet1!S71_OriginalBudget,Sheet1!S71_SubMunicipalVoteNo,$AC:$AC,Sheet1!S71_ItemType,$AD:$AD)","v":0},{"$f":"SUMIFS(Sheet1!S71_SpecialAdjustedBudget,Sheet1!S71_SubMunicipalVoteNo,$AC:$AC,Sheet1!S71_ItemType,$AD:$AD)","v":0},null,null,null,null,{"$f":"SUMIFS(Sheet1!S71_AdjustmentAmount,Sheet1!S71_SubMunicipalVoteNo,$AC:$AC,Sheet1!S71_ItemType,$AD:$AD)","v":0},0,0,{"$f":"SUMIFS(Sheet1!S71_OY1AdjustedBudget,Sheet1!S71_SubMunicipalVoteNo,$AC:$AC,Sheet1!S71_ItemType,$AD:$AD)","v":0},{"$f":"SUMIFS(Sheet1!S71_OY2AdjustedBudget,Sheet1!S71_SubMunicipalVoteNo,$AC:$AC,Sheet1!S71_ItemType,$AD:$AD)","v":0},null,null,null,null,null,null,null,null,null,null,null,null,null,null,null,89,"IE"]
[{"$f":"IF(RIGHT('Org structure'!D89,18)<>\"[Name of sub-vote]\",'Org structure'!D89,\"\")","v":""},null,{"$f":"SUMIFS(Sheet1!S71_OriginalBudget,Sheet1!S71_SubMunicipalVoteNo,$AC:$AC,Sheet1!S71_ItemType,$AD:$AD)","v":0},{"$f":"SUMIFS(Sheet1!S71_SpecialAdjustedBudget,Sheet1!S71_SubMunicipalVoteNo,$AC:$AC,Sheet1!S71_ItemType,$AD:$AD)","v":0},null,null,null,null,{"$f":"SUMIFS(Sheet1!S71_AdjustmentAmount,Sheet1!S71_SubMunicipalVoteNo,$AC:$AC,Sheet1!S71_ItemType,$AD:$AD)","v":0},0,0,{"$f":"SUMIFS(Sheet1!S71_OY1AdjustedBudget,Sheet1!S71_SubMunicipalVoteNo,$AC:$AC,Sheet1!S71_ItemType,$AD:$AD)","v":0},{"$f":"SUMIFS(Sheet1!S71_OY2AdjustedBudget,Sheet1!S71_SubMunicipalVoteNo,$AC:$AC,Sheet1!S71_ItemType,$AD:$AD)","v":0},null,null,null,null,null,null,null,null,null,null,null,null,null,null,null,810,"IE"]
[{"$f":"A95","v":"Vote 9 - Roads"},null,{"$f":"SUM(C264:C273)","v":3707500},0,0,0,0,0,1294648,1294648,5002148,{"$f":"SUM(L264:L273)","v":3918750},{"$f":"SUM(M264:M273)","v":4095094}]
[{"$f":"IF(RIGHT('Org structure'!D92,18)<>\"[Name of sub-vote]\",'Org structure'!D92,\"\")","v":""},null,{"$f":"SUMIFS(Sheet1!S71_OriginalBudget,Sheet1!S71_SubMunicipalVoteNo,$AC:$AC,Sheet1!S71_ItemType,$AD:$AD)","v":3707500},{"$f":"SUMIFS(Sheet1!S71_SpecialAdjustedBudget,Sheet1!S71_SubMunicipalVoteNo,$AC:$AC,Sheet1!S71_ItemType,$AD:$AD)","v":0},null,null,null,null,{"$f":"SUMIFS(Sheet1!S71_AdjustmentAmount,Sheet1!S71_SubMunicipalVoteNo,$AC:$AC,Sheet1!S71_ItemType,$AD:$AD)","v":1294648},1294648,5002148,{"$f":"SUMIFS(Sheet1!S71_OY1AdjustedBudget,Sheet1!S71_SubMunicipalVoteNo,$AC:$AC,Sheet1!S71_ItemType,$AD:$AD)","v":3918750},{"$f":"SUMIFS(Sheet1!S71_OY2AdjustedBudget,Sheet1!S71_SubMunicipalVoteNo,$AC:$AC,Sheet1!S71_ItemType,$AD:$AD)","v":4095094},null,null,null,null,null,null,null,null,null,null,null,null,null,null,null,91,"IE"]
[{"$f":"IF(RIGHT('Org structure'!D93,18)<>\"[Name of sub-vote]\",'Org structure'!D93,\"\")","v":""},null,{"$f":"SUMIFS(Sheet1!S71_OriginalBudget,Sheet1!S71_SubMunicipalVoteNo,$AC:$AC,Sheet1!S71_ItemType,$AD:$AD)","v":0},{"$f":"SUMIFS(Sheet1!S71_SpecialAdjustedBudget,Sheet1!S71_SubMunicipalVoteNo,$AC:$AC,Sheet1!S71_ItemType,$AD:$AD)","v":0},null,null,null,null,{"$f":"SUMIFS(Sheet1!S71_AdjustmentAmount,Sheet1!S71_SubMunicipalVoteNo,$AC:$AC,Sheet1!S71_ItemType,$AD:$AD)","v":0},0,0,{"$f":"SUMIFS(Sheet1!S71_OY1AdjustedBudget,Sheet1!S71_SubMunicipalVoteNo,$AC:$AC,Sheet1!S71_ItemType,$AD:$AD)","v":0},{"$f":"SUMIFS(Sheet1!S71_OY2AdjustedBudget,Sheet1!S71_SubMunicipalVoteNo,$AC:$AC,Sheet1!S71_ItemType,$AD:$AD)","v":0},null,null,null,null,null,null,null,null,null,null,null,null,null,null,null,92,"IE"]
[{"$f":"IF(RIGHT('Org structure'!D94,18)<>\"[Name of sub-vote]\",'Org structure'!D94,\"\")","v":""},null,{"$f":"SUMIFS(Sheet1!S71_OriginalBudget,Sheet1!S71_SubMunicipalVoteNo,$AC:$AC,Sheet1!S71_ItemType,$AD:$AD)","v":0},{"$f":"SUMIFS(Sheet1!S71_SpecialAdjustedBudget,Sheet1!S71_SubMunicipalVoteNo,$AC:$AC,Sheet1!S71_ItemType,$AD:$AD)","v":0},null,null,null,null,{"$f":"SUMIFS(Sheet1!S71_AdjustmentAmount,Sheet1!S71_SubMunicipalVoteNo,$AC:$AC,Sheet1!S71_ItemType,$AD:$AD)","v":0},0,0,{"$f":"SUMIFS(Sheet1!S71_OY1AdjustedBudget,Sheet1!S71_SubMunicipalVoteNo,$AC:$AC,Sheet1!S71_ItemType,$AD:$AD)","v":0},{"$f":"SUMIFS(Sheet1!S71_OY2AdjustedBudget,Sheet1!S71_SubMunicipalVoteNo,$AC:$AC,Sheet1!S71_ItemType,$AD:$AD)","v":0},null,null,null,null,null,null,null,null,null,null,null,null,null,null,null,93,"IE"]
[{"$f":"IF(RIGHT('Org structure'!D95,18)<>\"[Name of sub-vote]\",'Org structure'!D95,\"\")","v":""},null,{"$f":"SUMIFS(Sheet1!S71_OriginalBudget,Sheet1!S71_SubMunicipalVoteNo,$AC:$AC,Sheet1!S71_ItemType,$AD:$AD)","v":0},{"$f":"SUMIFS(Sheet1!S71_SpecialAdjustedBudget,Sheet1!S71_SubMunicipalVoteNo,$AC:$AC,Sheet1!S71_ItemType,$AD:$AD)","v":0},null,null,null,null,{"$f":"SUMIFS(Sheet1!S71_AdjustmentAmount,Sheet1!S71_SubMunicipalVoteNo,$AC:$AC,Sheet1!S71_ItemType,$AD:$AD)","v":0},0,0,{"$f":"SUMIFS(Sheet1!S71_OY1AdjustedBudget,Sheet1!S71_SubMunicipalVoteNo,$AC:$AC,Sheet1!S71_ItemType,$AD:$AD)","v":0},{"$f":"SUMIFS(Sheet1!S71_OY2AdjustedBudget,Sheet1!S71_SubMunicipalVoteNo,$AC:$AC,Sheet1!S71_ItemType,$AD:$AD)","v":0},null,null,null,null,null,null,null,null,null,null,null,null,null,null,null,94,"IE"]
[{"$f":"IF(RIGHT('Org structure'!D96,18)<>\"[Name of sub-vote]\",'Org structure'!D96,\"\")","v":""},null,{"$f":"SUMIFS(Sheet1!S71_OriginalBudget,Sheet1!S71_SubMunicipalVoteNo,$AC:$AC,Sheet1!S71_ItemType,$AD:$AD)","v":0},{"$f":"SUMIFS(Sheet1!S71_SpecialAdjustedBudget,Sheet1!S71_SubMunicipalVoteNo,$AC:$AC,Sheet1!S71_ItemType,$AD:$AD)","v":0},null,null,null,null,{"$f":"SUMIFS(Sheet1!S71_AdjustmentAmount,Sheet1!S71_SubMunicipalVoteNo,$AC:$AC,Sheet1!S71_ItemType,$AD:$AD)","v":0},0,0,{"$f":"SUMIFS(Sheet1!S71_OY1AdjustedBudget,Sheet1!S71_SubMunicipalVoteNo,$AC:$AC,Sheet1!S71_ItemType,$AD:$AD)","v":0},{"$f":"SUMIFS(Sheet1!S71_OY2AdjustedBudget,Sheet1!S71_SubMunicipalVoteNo,$AC:$AC,Sheet1!S71_ItemType,$AD:$AD)","v":0},null,null,null,null,null,null,null,null,null,null,null,null,null,null,null,95,"IE"]
[{"$f":"IF(RIGHT('Org structure'!D97,18)<>\"[Name of sub-vote]\",'Org structure'!D97,\"\")","v":""},null,{"$f":"SUMIFS(Sheet1!S71_OriginalBudget,Sheet1!S71_SubMunicipalVoteNo,$AC:$AC,Sheet1!S71_ItemType,$AD:$AD)","v":0},{"$f":"SUMIFS(Sheet1!S71_SpecialAdjustedBudget,Sheet1!S71_SubMunicipalVoteNo,$AC:$AC,Sheet1!S71_ItemType,$AD:$AD)","v":0},null,null,null,null,{"$f":"SUMIFS(Sheet1!S71_AdjustmentAmount,Sheet1!S71_SubMunicipalVoteNo,$AC:$AC,Sheet1!S71_ItemType,$AD:$AD)","v":0},0,0,{"$f":"SUMIFS(Sheet1!S71_OY1AdjustedBudget,Sheet1!S71_SubMunicipalVoteNo,$AC:$AC,Sheet1!S71_ItemType,$AD:$AD)","v":0},{"$f":"SUMIFS(Sheet1!S71_OY2AdjustedBudget,Sheet1!S71_SubMunicipalVoteNo,$AC:$AC,Sheet1!S71_ItemType,$AD:$AD)","v":0},null,null,null,null,null,null,null,null,null,null,null,null,null,null,null,96,"IE"]
[{"$f":"IF(RIGHT('Org structure'!D98,18)<>\"[Name of sub-vote]\",'Org structure'!D98,\"\")","v":""},null,{"$f":"SUMIFS(Sheet1!S71_OriginalBudget,Sheet1!S71_SubMunicipalVoteNo,$AC:$AC,Sheet1!S71_ItemType,$AD:$AD)","v":0},{"$f":"SUMIFS(Sheet1!S71_SpecialAdjustedBudget,Sheet1!S71_SubMunicipalVoteNo,$AC:$AC,Sheet1!S71_ItemType,$AD:$AD)","v":0},null,null,null,null,{"$f":"SUMIFS(Sheet1!S71_AdjustmentAmount,Sheet1!S71_SubMunicipalVoteNo,$AC:$AC,Sheet1!S71_ItemType,$AD:$AD)","v":0},0,0,{"$f":"SUMIFS(Sheet1!S71_OY1AdjustedBudget,Sheet1!S71_SubMunicipalVoteNo,$AC:$AC,Sheet1!S71_ItemType,$AD:$AD)","v":0},{"$f":"SUMIFS(Sheet1!S71_OY2AdjustedBudget,Sheet1!S71_SubMunicipalVoteNo,$AC:$AC,Sheet1!S71_ItemType,$AD:$AD)","v":0},null,null,null,null,null,null,null,null,null,null,null,null,null,null,null,97,"IE"]
[{"$f":"IF(RIGHT('Org structure'!D99,18)<>\"[Name of sub-vote]\",'Org structure'!D99,\"\")","v":""},null,{"$f":"SUMIFS(Sheet1!S71_OriginalBudget,Sheet1!S71_SubMunicipalVoteNo,$AC:$AC,Sheet1!S71_ItemType,$AD:$AD)","v":0},{"$f":"SUMIFS(Sheet1!S71_SpecialAdjustedBudget,Sheet1!S71_SubMunicipalVoteNo,$AC:$AC,Sheet1!S71_ItemType,$AD:$AD)","v":0},null,null,null,null,{"$f":"SUMIFS(Sheet1!S71_AdjustmentAmount,Sheet1!S71_SubMunicipalVoteNo,$AC:$AC,Sheet1!S71_ItemType,$AD:$AD)","v":0},0,0,{"$f":"SUMIFS(Sheet1!S71_OY1AdjustedBudget,Sheet1!S71_SubMunicipalVoteNo,$AC:$AC,Sheet1!S71_ItemType,$AD:$AD)","v":0},{"$f":"SUMIFS(Sheet1!S71_OY2AdjustedBudget,Sheet1!S71_SubMunicipalVoteNo,$AC:$AC,Sheet1!S71_ItemType,$AD:$AD)","v":0},null,null,null,null,null,null,null,null,null,null,null,null,null,null,null,98,"IE"]
[{"$f":"IF(RIGHT('Org structure'!D100,18)<>\"[Name of sub-vote]\",'Org structure'!D100,\"\")","v":""},null,{"$f":"SUMIFS(Sheet1!S71_OriginalBudget,Sheet1!S71_SubMunicipalVoteNo,$AC:$AC,Sheet1!S71_ItemType,$AD:$AD)","v":0},{"$f":"SUMIFS(Sheet1!S71_SpecialAdjustedBudget,Sheet1!S71_SubMunicipalVoteNo,$AC:$AC,Sheet1!S71_ItemType,$AD:$AD)","v":0},null,null,null,null,{"$f":"SUMIFS(Sheet1!S71_AdjustmentAmount,Sheet1!S71_SubMunicipalVoteNo,$AC:$AC,Sheet1!S71_ItemType,$AD:$AD)","v":0},0,0,{"$f":"SUMIFS(Sheet1!S71_OY1AdjustedBudget,Sheet1!S71_SubMunicipalVoteNo,$AC:$AC,Sheet1!S71_ItemType,$AD:$AD)","v":0},{"$f":"SUMIFS(Sheet1!S71_OY2AdjustedBudget,Sheet1!S71_SubMunicipalVoteNo,$AC:$AC,Sheet1!S71_ItemType,$AD:$AD)","v":0},null,null,null,null,null,null,null,null,null,null,null,null,null,null,null,99,"IE"]
[{"$f":"IF(RIGHT('Org structure'!D101,18)<>\"[Name of sub-vote]\",'Org structure'!D101,\"\")","v":0},null,{"$f":"SUMIFS(Sheet1!S71_OriginalBudget,Sheet1!S71_SubMunicipalVoteNo,$AC:$AC,Sheet1!S71_ItemType,$AD:$AD)","v":0},{"$f":"SUMIFS(Sheet1!S71_SpecialAdjustedBudget,Sheet1!S71_SubMunicipalVoteNo,$AC:$AC,Sheet1!S71_ItemType,$AD:$AD)","v":0},null,null,null,null,{"$f":"SUMIFS(Sheet1!S71_AdjustmentAmount,Sheet1!S71_SubMunicipalVoteNo,$AC:$AC,Sheet1!S71_ItemType,$AD:$AD)","v":0},0,0,{"$f":"SUMIFS(Sheet1!S71_OY1AdjustedBudget,Sheet1!S71_SubMunicipalVoteNo,$AC:$AC,Sheet1!S71_ItemType,$AD:$AD)","v":0},{"$f":"SUMIFS(Sheet1!S71_OY2AdjustedBudget,Sheet1!S71_SubMunicipalVoteNo,$AC:$AC,Sheet1!S71_ItemType,$AD:$AD)","v":0},null,null,null,null,null,null,null,null,null,null,null,null,null,null,null,910,"IE"]
[{"$f":"A106","v":"Vote 10 - Sport and Recreation"},null,{"$f":"SUM(C275:C284)","v":0},0,0,0,0,0,0,0,0,{"$f":"SUM(L275:L284)","v":0},{"$f":"SUM(M275:M284)","v":0}]
[{"$f":"IF(RIGHT('Org structure'!D102,18)<>\"[Name of sub-vote]\",'Org structure'!D102,\"\")","v":"10.1 - Recreational Facilities"},null,{"$f":"SUMIFS(Sheet1!S71_OriginalBudget,Sheet1!S71_SubMunicipalVoteNo,$AC:$AC,Sheet1!S71_ItemType,$AD:$AD)","v":0},{"$f":"SUMIFS(Sheet1!S71_SpecialAdjustedBudget,Sheet1!S71_SubMunicipalVoteNo,$AC:$AC,Sheet1!S71_ItemType,$AD:$AD)","v":0},null,null,null,null,{"$f":"SUMIFS(Sheet1!S71_AdjustmentAmount,Sheet1!S71_SubMunicipalVoteNo,$AC:$AC,Sheet1!S71_ItemType,$AD:$AD)","v":0},0,0,{"$f":"SUMIFS(Sheet1!S71_OY1AdjustedBudget,Sheet1!S71_SubMunicipalVoteNo,$AC:$AC,Sheet1!S71_ItemType,$AD:$AD)","v":0},{"$f":"SUMIFS(Sheet1!S71_OY2AdjustedBudget,Sheet1!S71_SubMunicipalVoteNo,$AC:$AC,Sheet1!S71_ItemType,$AD:$AD)","v":0},null,null,null,null,null,null,null,null,null,null,null,null,null,null,null,101,"IE"]
[{"$f":"IF(RIGHT('Org structure'!D103,18)<>\"[Name of sub-vote]\",'Org structure'!D103,\"\")","v":""},null,{"$f":"SUMIFS(Sheet1!S71_OriginalBudget,Sheet1!S71_SubMunicipalVoteNo,$AC:$AC,Sheet1!S71_ItemType,$AD:$AD)","v":0},{"$f":"SUMIFS(Sheet1!S71_SpecialAdjustedBudget,Sheet1!S71_SubMunicipalVoteNo,$AC:$AC,Sheet1!S71_ItemType,$AD:$AD)","v":0},null,null,null,null,{"$f":"SUMIFS(Sheet1!S71_AdjustmentAmount,Sheet1!S71_SubMunicipalVoteNo,$AC:$AC,Sheet1!S71_ItemType,$AD:$AD)","v":0},0,0,{"$f":"SUMIFS(Sheet1!S71_OY1AdjustedBudget,Sheet1!S71_SubMunicipalVoteNo,$AC:$AC,Sheet1!S71_ItemType,$AD:$AD)","v":0},{"$f":"SUMIFS(Sheet1!S71_OY2AdjustedBudget,Sheet1!S71_SubMunicipalVoteNo,$AC:$AC,Sheet1!S71_ItemType,$AD:$AD)","v":0},null,null,null,null,null,null,null,null,null,null,null,null,null,null,null,102,"IE"]
[{"$f":"IF(RIGHT('Org structure'!D104,18)<>\"[Name of sub-vote]\",'Org structure'!D104,\"\")","v":""},null,{"$f":"SUMIFS(Sheet1!S71_OriginalBudget,Sheet1!S71_SubMunicipalVoteNo,$AC:$AC,Sheet1!S71_ItemType,$AD:$AD)","v":0},{"$f":"SUMIFS(Sheet1!S71_SpecialAdjustedBudget,Sheet1!S71_SubMunicipalVoteNo,$AC:$AC,Sheet1!S71_ItemType,$AD:$AD)","v":0},null,null,null,null,{"$f":"SUMIFS(Sheet1!S71_AdjustmentAmount,Sheet1!S71_SubMunicipalVoteNo,$AC:$AC,Sheet1!S71_ItemType,$AD:$AD)","v":0},0,0,{"$f":"SUMIFS(Sheet1!S71_OY1AdjustedBudget,Sheet1!S71_SubMunicipalVoteNo,$AC:$AC,Sheet1!S71_ItemType,$AD:$AD)","v":0},{"$f":"SUMIFS(Sheet1!S71_OY2AdjustedBudget,Sheet1!S71_SubMunicipalVoteNo,$AC:$AC,Sheet1!S71_ItemType,$AD:$AD)","v":0},null,null,null,null,null,null,null,null,null,null,null,null,null,null,null,103,"IE"]
[{"$f":"IF(RIGHT('Org structure'!D105,18)<>\"[Name of sub-vote]\",'Org structure'!D105,\"\")","v":""},null,{"$f":"SUMIFS(Sheet1!S71_OriginalBudget,Sheet1!S71_SubMunicipalVoteNo,$AC:$AC,Sheet1!S71_ItemType,$AD:$AD)","v":0},{"$f":"SUMIFS(Sheet1!S71_SpecialAdjustedBudget,Sheet1!S71_SubMunicipalVoteNo,$AC:$AC,Sheet1!S71_ItemType,$AD:$AD)","v":0},null,null,null,null,{"$f":"SUMIFS(Sheet1!S71_AdjustmentAmount,Sheet1!S71_SubMunicipalVoteNo,$AC:$AC,Sheet1!S71_ItemType,$AD:$AD)","v":0},0,0,{"$f":"SUMIFS(Sheet1!S71_OY1AdjustedBudget,Sheet1!S71_SubMunicipalVoteNo,$AC:$AC,Sheet1!S71_ItemType,$AD:$AD)","v":0},{"$f":"SUMIFS(Sheet1!S71_OY2AdjustedBudget,Sheet1!S71_SubMunicipalVoteNo,$AC:$AC,Sheet1!S71_ItemType,$AD:$AD)","v":0},null,null,null,null,null,null,null,null,null,null,null,null,null,null,null,104,"IE"]
[{"$f":"IF(RIGHT('Org structure'!D106,18)<>\"[Name of sub-vote]\",'Org structure'!D106,\"\")","v":""},null,{"$f":"SUMIFS(Sheet1!S71_OriginalBudget,Sheet1!S71_SubMunicipalVoteNo,$AC:$AC,Sheet1!S71_ItemType,$AD:$AD)","v":0},{"$f":"SUMIFS(Sheet1!S71_SpecialAdjustedBudget,Sheet1!S71_SubMunicipalVoteNo,$AC:$AC,Sheet1!S71_ItemType,$AD:$AD)","v":0},null,null,null,null,{"$f":"SUMIFS(Sheet1!S71_AdjustmentAmount,Sheet1!S71_SubMunicipalVoteNo,$AC:$AC,Sheet1!S71_ItemType,$AD:$AD)","v":0},0,0,{"$f":"SUMIFS(Sheet1!S71_OY1AdjustedBudget,Sheet1!S71_SubMunicipalVoteNo,$AC:$AC,Sheet1!S71_ItemType,$AD:$AD)","v":0},{"$f":"SUMIFS(Sheet1!S71_OY2AdjustedBudget,Sheet1!S71_SubMunicipalVoteNo,$AC:$AC,Sheet1!S71_ItemType,$AD:$AD)","v":0},null,null,null,null,null,null,null,null,null,null,null,null,null,null,null,105,"IE"]
[{"$f":"IF(RIGHT('Org structure'!D107,18)<>\"[Name of sub-vote]\",'Org structure'!D107,\"\")","v":""},null,{"$f":"SUMIFS(Sheet1!S71_OriginalBudget,Sheet1!S71_SubMunicipalVoteNo,$AC:$AC,Sheet1!S71_ItemType,$AD:$AD)","v":0},{"$f":"SUMIFS(Sheet1!S71_SpecialAdjustedBudget,Sheet1!S71_SubMunicipalVoteNo,$AC:$AC,Sheet1!S71_ItemType,$AD:$AD)","v":0},null,null,null,null,{"$f":"SUMIFS(Sheet1!S71_AdjustmentAmount,Sheet1!S71_SubMunicipalVoteNo,$AC:$AC,Sheet1!S71_ItemType,$AD:$AD)","v":0},0,0,{"$f":"SUMIFS(Sheet1!S71_OY1AdjustedBudget,Sheet1!S71_SubMunicipalVoteNo,$AC:$AC,Sheet1!S71_ItemType,$AD:$AD)","v":0},{"$f":"SUMIFS(Sheet1!S71_OY2AdjustedBudget,Sheet1!S71_SubMunicipalVoteNo,$AC:$AC,Sheet1!S71_ItemType,$AD:$AD)","v":0},null,null,null,null,null,null,null,null,null,null,null,null,null,null,null,106,"IE"]
[{"$f":"IF(RIGHT('Org structure'!D108,18)<>\"[Name of sub-vote]\",'Org structure'!D108,\"\")","v":""},null,{"$f":"SUMIFS(Sheet1!S71_OriginalBudget,Sheet1!S71_SubMunicipalVoteNo,$AC:$AC,Sheet1!S71_ItemType,$AD:$AD)","v":0},{"$f":"SUMIFS(Sheet1!S71_SpecialAdjustedBudget,Sheet1!S71_SubMunicipalVoteNo,$AC:$AC,Sheet1!S71_ItemType,$AD:$AD)","v":0},null,null,null,null,{"$f":"SUMIFS(Sheet1!S71_AdjustmentAmount,Sheet1!S71_SubMunicipalVoteNo,$AC:$AC,Sheet1!S71_ItemType,$AD:$AD)","v":0},0,0,{"$f":"SUMIFS(Sheet1!S71_OY1AdjustedBudget,Sheet1!S71_SubMunicipalVoteNo,$AC:$AC,Sheet1!S71_ItemType,$AD:$AD)","v":0},{"$f":"SUMIFS(Sheet1!S71_OY2AdjustedBudget,Sheet1!S71_SubMunicipalVoteNo,$AC:$AC,Sheet1!S71_ItemType,$AD:$AD)","v":0},null,null,null,null,null,null,null,null,null,null,null,null,null,null,null,107,"IE"]
[{"$f":"IF(RIGHT('Org structure'!D109,18)<>\"[Name of sub-vote]\",'Org structure'!D109,\"\")","v":""},null,{"$f":"SUMIFS(Sheet1!S71_OriginalBudget,Sheet1!S71_SubMunicipalVoteNo,$AC:$AC,Sheet1!S71_ItemType,$AD:$AD)","v":0},{"$f":"SUMIFS(Sheet1!S71_SpecialAdjustedBudget,Sheet1!S71_SubMunicipalVoteNo,$AC:$AC,Sheet1!S71_ItemType,$AD:$AD)","v":0},null,null,null,null,{"$f":"SUMIFS(Sheet1!S71_AdjustmentAmount,Sheet1!S71_SubMunicipalVoteNo,$AC:$AC,Sheet1!S71_ItemType,$AD:$AD)","v":0},0,0,{"$f":"SUMIFS(Sheet1!S71_OY1AdjustedBudget,Sheet1!S71_SubMunicipalVoteNo,$AC:$AC,Sheet1!S71_ItemType,$AD:$AD)","v":0},{"$f":"SUMIFS(Sheet1!S71_OY2AdjustedBudget,Sheet1!S71_SubMunicipalVoteNo,$AC:$AC,Sheet1!S71_ItemType,$AD:$AD)","v":0},null,null,null,null,null,null,null,null,null,null,null,null,null,null,null,108,"IE"]
[{"$f":"IF(RIGHT('Org structure'!D110,18)<>\"[Name of sub-vote]\",'Org structure'!D110,\"\")","v":""},null,{"$f":"SUMIFS(Sheet1!S71_OriginalBudget,Sheet1!S71_SubMunicipalVoteNo,$AC:$AC,Sheet1!S71_ItemType,$AD:$AD)","v":0},{"$f":"SUMIFS(Sheet1!S71_SpecialAdjustedBudget,Sheet1!S71_SubMunicipalVoteNo,$AC:$AC,Sheet1!S71_ItemType,$AD:$AD)","v":0},null,null,null,null,{"$f":"SUMIFS(Sheet1!S71_AdjustmentAmount,Sheet1!S71_SubMunicipalVoteNo,$AC:$AC,Sheet1!S71_ItemType,$AD:$AD)","v":0},0,0,{"$f":"SUMIFS(Sheet1!S71_OY1AdjustedBudget,Sheet1!S71_SubMunicipalVoteNo,$AC:$AC,Sheet1!S71_ItemType,$AD:$AD)","v":0},{"$f":"SUMIFS(Sheet1!S71_OY2AdjustedBudget,Sheet1!S71_SubMunicipalVoteNo,$AC:$AC,Sheet1!S71_ItemType,$AD:$AD)","v":0},null,null,null,null,null,null,null,null,null,null,null,null,null,null,null,109,"IE"]
[{"$f":"IF(RIGHT('Org structure'!D111,18)<>\"[Name of sub-vote]\",'Org structure'!D111,\"\")","v":""},null,{"$f":"SUMIFS(Sheet1!S71_OriginalBudget,Sheet1!S71_SubMunicipalVoteNo,$AC:$AC,Sheet1!S71_ItemType,$AD:$AD)","v":0},{"$f":"SUMIFS(Sheet1!S71_SpecialAdjustedBudget,Sheet1!S71_SubMunicipalVoteNo,$AC:$AC,Sheet1!S71_ItemType,$AD:$AD)","v":0},null,null,null,null,{"$f":"SUMIFS(Sheet1!S71_AdjustmentAmount,Sheet1!S71_SubMunicipalVoteNo,$AC:$AC,Sheet1!S71_ItemType,$AD:$AD)","v":0},0,0,{"$f":"SUMIFS(Sheet1!S71_OY1AdjustedBudget,Sheet1!S71_SubMunicipalVoteNo,$AC:$AC,Sheet1!S71_ItemType,$AD:$AD)","v":0},{"$f":"SUMIFS(Sheet1!S71_OY2AdjustedBudget,Sheet1!S71_SubMunicipalVoteNo,$AC:$AC,Sheet1!S71_ItemType,$AD:$AD)","v":0},null,null,null,null,null,null,null,null,null,null,null,null,null,null,null,1010,"IE"]
[{"$f":"A117","v":"Vote 11 - [NAME OF VOTE 11]"},null,{"$f":"SUM(C286:C295)","v":0},0,0,0,0,0,0,0,0,{"$f":"SUM(L286:L295)","v":0},{"$f":"SUM(M286:M295)","v":0}]
[{"$f":"IF(RIGHT('Org structure'!D113,18)<>\"[Name of sub-vote]\",'Org structure'!D113,\"\")","v":""},null,{"$f":"SUMIFS(Sheet1!S71_OriginalBudget,Sheet1!S71_SubMunicipalVoteNo,$AC:$AC,Sheet1!S71_ItemType,$AD:$AD)","v":0},{"$f":"SUMIFS(Sheet1!S71_SpecialAdjustedBudget,Sheet1!S71_SubMunicipalVoteNo,$AC:$AC,Sheet1!S71_ItemType,$AD:$AD)","v":0},null,null,null,null,{"$f":"SUMIFS(Sheet1!S71_AdjustmentAmount,Sheet1!S71_SubMunicipalVoteNo,$AC:$AC,Sheet1!S71_ItemType,$AD:$AD)","v":0},0,0,{"$f":"SUMIFS(Sheet1!S71_OY1AdjustedBudget,Sheet1!S71_SubMunicipalVoteNo,$AC:$AC,Sheet1!S71_ItemType,$AD:$AD)","v":0},{"$f":"SUMIFS(Sheet1!S71_OY2AdjustedBudget,Sheet1!S71_SubMunicipalVoteNo,$AC:$AC,Sheet1!S71_ItemType,$AD:$AD)","v":0},null,null,null,null,null,null,null,null,null,null,null,null,null,null,null,111,"IE"]
[{"$f":"IF(RIGHT('Org structure'!D114,18)<>\"[Name of sub-vote]\",'Org structure'!D114,\"\")","v":""},null,{"$f":"SUMIFS(Sheet1!S71_OriginalBudget,Sheet1!S71_SubMunicipalVoteNo,$AC:$AC,Sheet1!S71_ItemType,$AD:$AD)","v":0},{"$f":"SUMIFS(Sheet1!S71_SpecialAdjustedBudget,Sheet1!S71_SubMunicipalVoteNo,$AC:$AC,Sheet1!S71_ItemType,$AD:$AD)","v":0},null,null,null,null,{"$f":"SUMIFS(Sheet1!S71_AdjustmentAmount,Sheet1!S71_SubMunicipalVoteNo,$AC:$AC,Sheet1!S71_ItemType,$AD:$AD)","v":0},0,0,{"$f":"SUMIFS(Sheet1!S71_OY1AdjustedBudget,Sheet1!S71_SubMunicipalVoteNo,$AC:$AC,Sheet1!S71_ItemType,$AD:$AD)","v":0},{"$f":"SUMIFS(Sheet1!S71_OY2AdjustedBudget,Sheet1!S71_SubMunicipalVoteNo,$AC:$AC,Sheet1!S71_ItemType,$AD:$AD)","v":0},null,null,null,null,null,null,null,null,null,null,null,null,null,null,null,112,"IE"]
[{"$f":"IF(RIGHT('Org structure'!D115,18)<>\"[Name of sub-vote]\",'Org structure'!D115,\"\")","v":""},null,{"$f":"SUMIFS(Sheet1!S71_OriginalBudget,Sheet1!S71_SubMunicipalVoteNo,$AC:$AC,Sheet1!S71_ItemType,$AD:$AD)","v":0},{"$f":"SUMIFS(Sheet1!S71_SpecialAdjustedBudget,Sheet1!S71_SubMunicipalVoteNo,$AC:$AC,Sheet1!S71_ItemType,$AD:$AD)","v":0},null,null,null,null,{"$f":"SUMIFS(Sheet1!S71_AdjustmentAmount,Sheet1!S71_SubMunicipalVoteNo,$AC:$AC,Sheet1!S71_ItemType,$AD:$AD)","v":0},0,0,{"$f":"SUMIFS(Sheet1!S71_OY1AdjustedBudget,Sheet1!S71_SubMunicipalVoteNo,$AC:$AC,Sheet1!S71_ItemType,$AD:$AD)","v":0},{"$f":"SUMIFS(Sheet1!S71_OY2AdjustedBudget,Sheet1!S71_SubMunicipalVoteNo,$AC:$AC,Sheet1!S71_ItemType,$AD:$AD)","v":0},null,null,null,null,null,null,null,null,null,null,null,null,null,null,null,113,"IE"]
[{"$f":"IF(RIGHT('Org structure'!D116,18)<>\"[Name of sub-vote]\",'Org structure'!D116,\"\")","v":""},null,{"$f":"SUMIFS(Sheet1!S71_OriginalBudget,Sheet1!S71_SubMunicipalVoteNo,$AC:$AC,Sheet1!S71_ItemType,$AD:$AD)","v":0},{"$f":"SUMIFS(Sheet1!S71_SpecialAdjustedBudget,Sheet1!S71_SubMunicipalVoteNo,$AC:$AC,Sheet1!S71_ItemType,$AD:$AD)","v":0},null,null,null,null,{"$f":"SUMIFS(Sheet1!S71_AdjustmentAmount,Sheet1!S71_SubMunicipalVoteNo,$AC:$AC,Sheet1!S71_ItemType,$AD:$AD)","v":0},0,0,{"$f":"SUMIFS(Sheet1!S71_OY1AdjustedBudget,Sheet1!S71_SubMunicipalVoteNo,$AC:$AC,Sheet1!S71_ItemType,$AD:$AD)","v":0},{"$f":"SUMIFS(Sheet1!S71_OY2AdjustedBudget,Sheet1!S71_SubMunicipalVoteNo,$AC:$AC,Sheet1!S71_ItemType,$AD:$AD)","v":0},null,null,null,null,null,null,null,null,null,null,null,null,null,null,null,114,"IE"]
[{"$f":"IF(RIGHT('Org structure'!D117,18)<>\"[Name of sub-vote]\",'Org structure'!D117,\"\")","v":""},null,{"$f":"SUMIFS(Sheet1!S71_OriginalBudget,Sheet1!S71_SubMunicipalVoteNo,$AC:$AC,Sheet1!S71_ItemType,$AD:$AD)","v":0},{"$f":"SUMIFS(Sheet1!S71_SpecialAdjustedBudget,Sheet1!S71_SubMunicipalVoteNo,$AC:$AC,Sheet1!S71_ItemType,$AD:$AD)","v":0},null,null,null,null,{"$f":"SUMIFS(Sheet1!S71_AdjustmentAmount,Sheet1!S71_SubMunicipalVoteNo,$AC:$AC,Sheet1!S71_ItemType,$AD:$AD)","v":0},0,0,{"$f":"SUMIFS(Sheet1!S71_OY1AdjustedBudget,Sheet1!S71_SubMunicipalVoteNo,$AC:$AC,Sheet1!S71_ItemType,$AD:$AD)","v":0},{"$f":"SUMIFS(Sheet1!S71_OY2AdjustedBudget,Sheet1!S71_SubMunicipalVoteNo,$AC:$AC,Sheet1!S71_ItemType,$AD:$AD)","v":0},null,null,null,null,null,null,null,null,null,null,null,null,null,null,null,115,"IE"]
[{"$f":"IF(RIGHT('Org structure'!D118,18)<>\"[Name of sub-vote]\",'Org structure'!D118,\"\")","v":""},null,{"$f":"SUMIFS(Sheet1!S71_OriginalBudget,Sheet1!S71_SubMunicipalVoteNo,$AC:$AC,Sheet1!S71_ItemType,$AD:$AD)","v":0},{"$f":"SUMIFS(Sheet1!S71_SpecialAdjustedBudget,Sheet1!S71_SubMunicipalVoteNo,$AC:$AC,Sheet1!S71_ItemType,$AD:$AD)","v":0},null,null,null,null,{"$f":"SUMIFS(Sheet1!S71_AdjustmentAmount,Sheet1!S71_SubMunicipalVoteNo,$AC:$AC,Sheet1!S71_ItemType,$AD:$AD)","v":0},0,0,{"$f":"SUMIFS(Sheet1!S71_OY1AdjustedBudget,Sheet1!S71_SubMunicipalVoteNo,$AC:$AC,Sheet1!S71_ItemType,$AD:$AD)","v":0},{"$f":"SUMIFS(Sheet1!S71_OY2AdjustedBudget,Sheet1!S71_SubMunicipalVoteNo,$AC:$AC,Sheet1!S71_ItemType,$AD:$AD)","v":0},null,null,null,null,null,null,null,null,null,null,null,null,null,null,null,116,"IE"]
[{"$f":"IF(RIGHT('Org structure'!D119,18)<>\"[Name of sub-vote]\",'Org structure'!D119,\"\")","v":""},null,{"$f":"SUMIFS(Sheet1!S71_OriginalBudget,Sheet1!S71_SubMunicipalVoteNo,$AC:$AC,Sheet1!S71_ItemType,$AD:$AD)","v":0},{"$f":"SUMIFS(Sheet1!S71_SpecialAdjustedBudget,Sheet1!S71_SubMunicipalVoteNo,$AC:$AC,Sheet1!S71_ItemType,$AD:$AD)","v":0},null,null,null,null,{"$f":"SUMIFS(Sheet1!S71_AdjustmentAmount,Sheet1!S71_SubMunicipalVoteNo,$AC:$AC,Sheet1!S71_ItemType,$AD:$AD)","v":0},0,0,{"$f":"SUMIFS(Sheet1!S71_OY1AdjustedBudget,Sheet1!S71_SubMunicipalVoteNo,$AC:$AC,Sheet1!S71_ItemType,$AD:$AD)","v":0},{"$f":"SUMIFS(Sheet1!S71_OY2AdjustedBudget,Sheet1!S71_SubMunicipalVoteNo,$AC:$AC,Sheet1!S71_ItemType,$AD:$AD)","v":0},null,null,null,null,null,null,null,null,null,null,null,null,null,null,null,117,"IE"]
[{"$f":"IF(RIGHT('Org structure'!D120,18)<>\"[Name of sub-vote]\",'Org structure'!D120,\"\")","v":""},null,{"$f":"SUMIFS(Sheet1!S71_OriginalBudget,Sheet1!S71_SubMunicipalVoteNo,$AC:$AC,Sheet1!S71_ItemType,$AD:$AD)","v":0},{"$f":"SUMIFS(Sheet1!S71_SpecialAdjustedBudget,Sheet1!S71_SubMunicipalVoteNo,$AC:$AC,Sheet1!S71_ItemType,$AD:$AD)","v":0},null,null,null,null,{"$f":"SUMIFS(Sheet1!S71_AdjustmentAmount,Sheet1!S71_SubMunicipalVoteNo,$AC:$AC,Sheet1!S71_ItemType,$AD:$AD)","v":0},0,0,{"$f":"SUMIFS(Sheet1!S71_OY1AdjustedBudget,Sheet1!S71_SubMunicipalVoteNo,$AC:$AC,Sheet1!S71_ItemType,$AD:$AD)","v":0},{"$f":"SUMIFS(Sheet1!S71_OY2AdjustedBudget,Sheet1!S71_SubMunicipalVoteNo,$AC:$AC,Sheet1!S71_ItemType,$AD:$AD)","v":0},null,null,null,null,null,null,null,null,null,null,null,null,null,null,null,118,"IE"]
[{"$f":"IF(RIGHT('Org structure'!D121,18)<>\"[Name of sub-vote]\",'Org structure'!D121,\"\")","v":""},null,{"$f":"SUMIFS(Sheet1!S71_OriginalBudget,Sheet1!S71_SubMunicipalVoteNo,$AC:$AC,Sheet1!S71_ItemType,$AD:$AD)","v":0},{"$f":"SUMIFS(Sheet1!S71_SpecialAdjustedBudget,Sheet1!S71_SubMunicipalVoteNo,$AC:$AC,Sheet1!S71_ItemType,$AD:$AD)","v":0},null,null,null,null,{"$f":"SUMIFS(Sheet1!S71_AdjustmentAmount,Sheet1!S71_SubMunicipalVoteNo,$AC:$AC,Sheet1!S71_ItemType,$AD:$AD)","v":0},0,0,{"$f":"SUMIFS(Sheet1!S71_OY1AdjustedBudget,Sheet1!S71_SubMunicipalVoteNo,$AC:$AC,Sheet1!S71_ItemType,$AD:$AD)","v":0},{"$f":"SUMIFS(Sheet1!S71_OY2AdjustedBudget,Sheet1!S71_SubMunicipalVoteNo,$AC:$AC,Sheet1!S71_ItemType,$AD:$AD)","v":0},null,null,null,null,null,null,null,null,null,null,null,null,null,null,null,119,"IE"]
[{"$f":"IF(RIGHT('Org structure'!D122,18)<>\"[Name of sub-vote]\",'Org structure'!D122,\"\")","v":""},null,{"$f":"SUMIFS(Sheet1!S71_OriginalBudget,Sheet1!S71_SubMunicipalVoteNo,$AC:$AC,Sheet1!S71_ItemType,$AD:$AD)","v":0},{"$f":"SUMIFS(Sheet1!S71_SpecialAdjustedBudget,Sheet1!S71_SubMunicipalVoteNo,$AC:$AC,Sheet1!S71_ItemType,$AD:$AD)","v":0},null,null,null,null,{"$f":"SUMIFS(Sheet1!S71_AdjustmentAmount,Sheet1!S71_SubMunicipalVoteNo,$AC:$AC,Sheet1!S71_ItemType,$AD:$AD)","v":0},0,0,{"$f":"SUMIFS(Sheet1!S71_OY1AdjustedBudget,Sheet1!S71_SubMunicipalVoteNo,$AC:$AC,Sheet1!S71_ItemType,$AD:$AD)","v":0},{"$f":"SUMIFS(Sheet1!S71_OY2AdjustedBudget,Sheet1!S71_SubMunicipalVoteNo,$AC:$AC,Sheet1!S71_ItemType,$AD:$AD)","v":0},null,null,null,null,null,null,null,null,null,null,null,null,null,null,null,1110,"IE"]
[{"$f":"A128","v":"Vote 12 - [NAME OF VOTE 12]"},null,{"$f":"SUM(C297:C306)","v":0},0,0,0,0,0,0,0,0,{"$f":"SUM(L297:L306)","v":0},{"$f":"SUM(M297:M306)","v":0}]
[{"$f":"IF(RIGHT('Org structure'!D124,18)<>\"[Name of sub-vote]\",'Org structure'!D124,\"\")","v":""},null,{"$f":"SUMIFS(Sheet1!S71_OriginalBudget,Sheet1!S71_SubMunicipalVoteNo,$AC:$AC,Sheet1!S71_ItemType,$AD:$AD)","v":0},{"$f":"SUMIFS(Sheet1!S71_SpecialAdjustedBudget,Sheet1!S71_SubMunicipalVoteNo,$AC:$AC,Sheet1!S71_ItemType,$AD:$AD)","v":0},null,null,null,null,{"$f":"SUMIFS(Sheet1!S71_AdjustmentAmount,Sheet1!S71_SubMunicipalVoteNo,$AC:$AC,Sheet1!S71_ItemType,$AD:$AD)","v":0},0,0,{"$f":"SUMIFS(Sheet1!S71_OY1AdjustedBudget,Sheet1!S71_SubMunicipalVoteNo,$AC:$AC,Sheet1!S71_ItemType,$AD:$AD)","v":0},{"$f":"SUMIFS(Sheet1!S71_OY2AdjustedBudget,Sheet1!S71_SubMunicipalVoteNo,$AC:$AC,Sheet1!S71_ItemType,$AD:$AD)","v":0},null,null,null,null,null,null,null,null,null,null,null,null,null,null,null,121,"IE"]
[{"$f":"IF(RIGHT('Org structure'!D125,18)<>\"[Name of sub-vote]\",'Org structure'!D125,\"\")","v":""},null,{"$f":"SUMIFS(Sheet1!S71_OriginalBudget,Sheet1!S71_SubMunicipalVoteNo,$AC:$AC,Sheet1!S71_ItemType,$AD:$AD)","v":0},{"$f":"SUMIFS(Sheet1!S71_SpecialAdjustedBudget,Sheet1!S71_SubMunicipalVoteNo,$AC:$AC,Sheet1!S71_ItemType,$AD:$AD)","v":0},null,null,null,null,{"$f":"SUMIFS(Sheet1!S71_AdjustmentAmount,Sheet1!S71_SubMunicipalVoteNo,$AC:$AC,Sheet1!S71_ItemType,$AD:$AD)","v":0},0,0,{"$f":"SUMIFS(Sheet1!S71_OY1AdjustedBudget,Sheet1!S71_SubMunicipalVoteNo,$AC:$AC,Sheet1!S71_ItemType,$AD:$AD)","v":0},{"$f":"SUMIFS(Sheet1!S71_OY2AdjustedBudget,Sheet1!S71_SubMunicipalVoteNo,$AC:$AC,Sheet1!S71_ItemType,$AD:$AD)","v":0},null,null,null,null,null,null,null,null,null,null,null,null,null,null,null,122,"IE"]
[{"$f":"IF(RIGHT('Org structure'!D126,18)<>\"[Name of sub-vote]\",'Org structure'!D126,\"\")","v":""},null,{"$f":"SUMIFS(Sheet1!S71_OriginalBudget,Sheet1!S71_SubMunicipalVoteNo,$AC:$AC,Sheet1!S71_ItemType,$AD:$AD)","v":0},{"$f":"SUMIFS(Sheet1!S71_SpecialAdjustedBudget,Sheet1!S71_SubMunicipalVoteNo,$AC:$AC,Sheet1!S71_ItemType,$AD:$AD)","v":0},null,null,null,null,{"$f":"SUMIFS(Sheet1!S71_AdjustmentAmount,Sheet1!S71_SubMunicipalVoteNo,$AC:$AC,Sheet1!S71_ItemType,$AD:$AD)","v":0},0,0,{"$f":"SUMIFS(Sheet1!S71_OY1AdjustedBudget,Sheet1!S71_SubMunicipalVoteNo,$AC:$AC,Sheet1!S71_ItemType,$AD:$AD)","v":0},{"$f":"SUMIFS(Sheet1!S71_OY2AdjustedBudget,Sheet1!S71_SubMunicipalVoteNo,$AC:$AC,Sheet1!S71_ItemType,$AD:$AD)","v":0},null,null,null,null,null,null,null,null,null,null,null,null,null,null,null,123,"IE"]
[{"$f":"IF(RIGHT('Org structure'!D127,18)<>\"[Name of sub-vote]\",'Org structure'!D127,\"\")","v":""},null,{"$f":"SUMIFS(Sheet1!S71_OriginalBudget,Sheet1!S71_SubMunicipalVoteNo,$AC:$AC,Sheet1!S71_ItemType,$AD:$AD)","v":0},{"$f":"SUMIFS(Sheet1!S71_SpecialAdjustedBudget,Sheet1!S71_SubMunicipalVoteNo,$AC:$AC,Sheet1!S71_ItemType,$AD:$AD)","v":0},null,null,null,null,{"$f":"SUMIFS(Sheet1!S71_AdjustmentAmount,Sheet1!S71_SubMunicipalVoteNo,$AC:$AC,Sheet1!S71_ItemType,$AD:$AD)","v":0},0,0,{"$f":"SUMIFS(Sheet1!S71_OY1AdjustedBudget,Sheet1!S71_SubMunicipalVoteNo,$AC:$AC,Sheet1!S71_ItemType,$AD:$AD)","v":0},{"$f":"SUMIFS(Sheet1!S71_OY2AdjustedBudget,Sheet1!S71_SubMunicipalVoteNo,$AC:$AC,Sheet1!S71_ItemType,$AD:$AD)","v":0},null,null,null,null,null,null,null,null,null,null,null,null,null,null,null,124,"IE"]
[{"$f":"IF(RIGHT('Org structure'!D128,18)<>\"[Name of sub-vote]\",'Org structure'!D128,\"\")","v":""},null,{"$f":"SUMIFS(Sheet1!S71_OriginalBudget,Sheet1!S71_SubMunicipalVoteNo,$AC:$AC,Sheet1!S71_ItemType,$AD:$AD)","v":0},{"$f":"SUMIFS(Sheet1!S71_SpecialAdjustedBudget,Sheet1!S71_SubMunicipalVoteNo,$AC:$AC,Sheet1!S71_ItemType,$AD:$AD)","v":0},null,null,null,null,{"$f":"SUMIFS(Sheet1!S71_AdjustmentAmount,Sheet1!S71_SubMunicipalVoteNo,$AC:$AC,Sheet1!S71_ItemType,$AD:$AD)","v":0},0,0,{"$f":"SUMIFS(Sheet1!S71_OY1AdjustedBudget,Sheet1!S71_SubMunicipalVoteNo,$AC:$AC,Sheet1!S71_ItemType,$AD:$AD)","v":0},{"$f":"SUMIFS(Sheet1!S71_OY2AdjustedBudget,Sheet1!S71_SubMunicipalVoteNo,$AC:$AC,Sheet1!S71_ItemType,$AD:$AD)","v":0},null,null,null,null,null,null,null,null,null,null,null,null,null,null,null,125,"IE"]
[{"$f":"IF(RIGHT('Org structure'!D129,18)<>\"[Name of sub-vote]\",'Org structure'!D129,\"\")","v":""},null,{"$f":"SUMIFS(Sheet1!S71_OriginalBudget,Sheet1!S71_SubMunicipalVoteNo,$AC:$AC,Sheet1!S71_ItemType,$AD:$AD)","v":0},{"$f":"SUMIFS(Sheet1!S71_SpecialAdjustedBudget,Sheet1!S71_SubMunicipalVoteNo,$AC:$AC,Sheet1!S71_ItemType,$AD:$AD)","v":0},null,null,null,null,{"$f":"SUMIFS(Sheet1!S71_AdjustmentAmount,Sheet1!S71_SubMunicipalVoteNo,$AC:$AC,Sheet1!S71_ItemType,$AD:$AD)","v":0},0,0,{"$f":"SUMIFS(Sheet1!S71_OY1AdjustedBudget,Sheet1!S71_SubMunicipalVoteNo,$AC:$AC,Sheet1!S71_ItemType,$AD:$AD)","v":0},{"$f":"SUMIFS(Sheet1!S71_OY2AdjustedBudget,Sheet1!S71_SubMunicipalVoteNo,$AC:$AC,Sheet1!S71_ItemType,$AD:$AD)","v":0},null,null,null,null,null,null,null,null,null,null,null,null,null,null,null,126,"IE"]
[{"$f":"IF(RIGHT('Org structure'!D130,18)<>\"[Name of sub-vote]\",'Org structure'!D130,\"\")","v":""},null,{"$f":"SUMIFS(Sheet1!S71_OriginalBudget,Sheet1!S71_SubMunicipalVoteNo,$AC:$AC,Sheet1!S71_ItemType,$AD:$AD)","v":0},{"$f":"SUMIFS(Sheet1!S71_SpecialAdjustedBudget,Sheet1!S71_SubMunicipalVoteNo,$AC:$AC,Sheet1!S71_ItemType,$AD:$AD)","v":0},null,null,null,null,{"$f":"SUMIFS(Sheet1!S71_AdjustmentAmount,Sheet1!S71_SubMunicipalVoteNo,$AC:$AC,Sheet1!S71_ItemType,$AD:$AD)","v":0},0,0,{"$f":"SUMIFS(Sheet1!S71_OY1AdjustedBudget,Sheet1!S71_SubMunicipalVoteNo,$AC:$AC,Sheet1!S71_ItemType,$AD:$AD)","v":0},{"$f":"SUMIFS(Sheet1!S71_OY2AdjustedBudget,Sheet1!S71_SubMunicipalVoteNo,$AC:$AC,Sheet1!S71_ItemType,$AD:$AD)","v":0},null,null,null,null,null,null,null,null,null,null,null,null,null,null,null,127,"IE"]
[{"$f":"IF(RIGHT('Org structure'!D131,18)<>\"[Name of sub-vote]\",'Org structure'!D131,\"\")","v":""},null,{"$f":"SUMIFS(Sheet1!S71_OriginalBudget,Sheet1!S71_SubMunicipalVoteNo,$AC:$AC,Sheet1!S71_ItemType,$AD:$AD)","v":0},{"$f":"SUMIFS(Sheet1!S71_SpecialAdjustedBudget,Sheet1!S71_SubMunicipalVoteNo,$AC:$AC,Sheet1!S71_ItemType,$AD:$AD)","v":0},null,null,null,null,{"$f":"SUMIFS(Sheet1!S71_AdjustmentAmount,Sheet1!S71_SubMunicipalVoteNo,$AC:$AC,Sheet1!S71_ItemType,$AD:$AD)","v":0},{"$f":"SUM(E304:I304)","v":0},{"$f":"IF(D304=0,C304+J304,D304+J304)","v":0},{"$f":"SUMIFS(Sheet1!S71_OY1AdjustedBudget,Sheet1!S71_SubMunicipalVoteNo,$AC:$AC,Sheet1!S71_ItemType,$AD:$AD)","v":0},{"$f":"SUMIFS(Sheet1!S71_OY2AdjustedBudget,Sheet1!S71_SubMunicipalVoteNo,$AC:$AC,Sheet1!S71_ItemType,$AD:$AD)","v":0},null,null,null,null,null,null,null,null,null,null,null,null,null,null,null,128,"IE"]
[{"$f":"IF(RIGHT('Org structure'!D132,18)<>\"[Name of sub-vote]\",'Org structure'!D132,\"\")","v":""},null,{"$f":"SUMIFS(Sheet1!S71_OriginalBudget,Sheet1!S71_SubMunicipalVoteNo,$AC:$AC,Sheet1!S71_ItemType,$AD:$AD)","v":0},{"$f":"SUMIFS(Sheet1!S71_SpecialAdjustedBudget,Sheet1!S71_SubMunicipalVoteNo,$AC:$AC,Sheet1!S71_ItemType,$AD:$AD)","v":0},null,null,null,null,{"$f":"SUMIFS(Sheet1!S71_AdjustmentAmount,Sheet1!S71_SubMunicipalVoteNo,$AC:$AC,Sheet1!S71_ItemType,$AD:$AD)","v":0},0,0,{"$f":"SUMIFS(Sheet1!S71_OY1AdjustedBudget,Sheet1!S71_SubMunicipalVoteNo,$AC:$AC,Sheet1!S71_ItemType,$AD:$AD)","v":0},{"$f":"SUMIFS(Sheet1!S71_OY2AdjustedBudget,Sheet1!S71_SubMunicipalVoteNo,$AC:$AC,Sheet1!S71_ItemType,$AD:$AD)","v":0},null,null,null,null,null,null,null,null,null,null,null,null,null,null,null,129,"IE"]
[{"$f":"IF(RIGHT('Org structure'!D133,18)<>\"[Name of sub-vote]\",'Org structure'!D133,\"\")","v":""},null,{"$f":"SUMIFS(Sheet1!S71_OriginalBudget,Sheet1!S71_SubMunicipalVoteNo,$AC:$AC,Sheet1!S71_ItemType,$AD:$AD)","v":0},{"$f":"SUMIFS(Sheet1!S71_SpecialAdjustedBudget,Sheet1!S71_SubMunicipalVoteNo,$AC:$AC,Sheet1!S71_ItemType,$AD:$AD)","v":0},null,null,null,null,{"$f":"SUMIFS(Sheet1!S71_AdjustmentAmount,Sheet1!S71_SubMunicipalVoteNo,$AC:$AC,Sheet1!S71_ItemType,$AD:$AD)","v":0},0,0,{"$f":"SUMIFS(Sheet1!S71_OY1AdjustedBudget,Sheet1!S71_SubMunicipalVoteNo,$AC:$AC,Sheet1!S71_ItemType,$AD:$AD)","v":0},{"$f":"SUMIFS(Sheet1!S71_OY2AdjustedBudget,Sheet1!S71_SubMunicipalVoteNo,$AC:$AC,Sheet1!S71_ItemType,$AD:$AD)","v":0},null,null,null,null,null,null,null,null,null,null,null,null,null,null,null,1210,"IE"]
["Vote 13 - [NAME OF VOTE 13]",null,{"$f":"SUM(C308:C317)","v":0},0,0,0,0,0,0,0,0,{"$f":"SUM(L308:L317)","v":0},{"$f":"SUM(M308:M317)","v":0}]
[{"$f":"IF(RIGHT('Org structure'!D135,18)<>\"[Name of sub-vote]\",'Org structure'!D135,\"\")","v":""},null,{"$f":"SUMIFS(Sheet1!S71_OriginalBudget,Sheet1!S71_SubMunicipalVoteNo,$AC:$AC,Sheet1!S71_ItemType,$AD:$AD)","v":0},{"$f":"SUMIFS(Sheet1!S71_SpecialAdjustedBudget,Sheet1!S71_SubMunicipalVoteNo,$AC:$AC,Sheet1!S71_ItemType,$AD:$AD)","v":0},null,null,null,null,{"$f":"SUMIFS(Sheet1!S71_AdjustmentAmount,Sheet1!S71_SubMunicipalVoteNo,$AC:$AC,Sheet1!S71_ItemType,$AD:$AD)","v":0},0,0,{"$f":"SUMIFS(Sheet1!S71_OY1AdjustedBudget,Sheet1!S71_SubMunicipalVoteNo,$AC:$AC,Sheet1!S71_ItemType,$AD:$AD)","v":0},{"$f":"SUMIFS(Sheet1!S71_OY2AdjustedBudget,Sheet1!S71_SubMunicipalVoteNo,$AC:$AC,Sheet1!S71_ItemType,$AD:$AD)","v":0},null,null,null,null,null,null,null,null,null,null,null,null,null,null,null,131,"IE"]
[{"$f":"IF(RIGHT('Org structure'!D136,18)<>\"[Name of sub-vote]\",'Org structure'!D136,\"\")","v":""},null,{"$f":"SUMIFS(Sheet1!S71_OriginalBudget,Sheet1!S71_SubMunicipalVoteNo,$AC:$AC,Sheet1!S71_ItemType,$AD:$AD)","v":0},{"$f":"SUMIFS(Sheet1!S71_SpecialAdjustedBudget,Sheet1!S71_SubMunicipalVoteNo,$AC:$AC,Sheet1!S71_ItemType,$AD:$AD)","v":0},null,null,null,null,{"$f":"SUMIFS(Sheet1!S71_AdjustmentAmount,Sheet1!S71_SubMunicipalVoteNo,$AC:$AC,Sheet1!S71_ItemType,$AD:$AD)","v":0},0,0,{"$f":"SUMIFS(Sheet1!S71_OY1AdjustedBudget,Sheet1!S71_SubMunicipalVoteNo,$AC:$AC,Sheet1!S71_ItemType,$AD:$AD)","v":0},{"$f":"SUMIFS(Sheet1!S71_OY2AdjustedBudget,Sheet1!S71_SubMunicipalVoteNo,$AC:$AC,Sheet1!S71_ItemType,$AD:$AD)","v":0},null,null,null,null,null,null,null,null,null,null,null,null,null,null,null,132,"IE"]
[{"$f":"IF(RIGHT('Org structure'!D137,18)<>\"[Name of sub-vote]\",'Org structure'!D137,\"\")","v":""},null,{"$f":"SUMIFS(Sheet1!S71_OriginalBudget,Sheet1!S71_SubMunicipalVoteNo,$AC:$AC,Sheet1!S71_ItemType,$AD:$AD)","v":0},{"$f":"SUMIFS(Sheet1!S71_SpecialAdjustedBudget,Sheet1!S71_SubMunicipalVoteNo,$AC:$AC,Sheet1!S71_ItemType,$AD:$AD)","v":0},null,null,null,null,{"$f":"SUMIFS(Sheet1!S71_AdjustmentAmount,Sheet1!S71_SubMunicipalVoteNo,$AC:$AC,Sheet1!S71_ItemType,$AD:$AD)","v":0},0,0,{"$f":"SUMIFS(Sheet1!S71_OY1AdjustedBudget,Sheet1!S71_SubMunicipalVoteNo,$AC:$AC,Sheet1!S71_ItemType,$AD:$AD)","v":0},{"$f":"SUMIFS(Sheet1!S71_OY2AdjustedBudget,Sheet1!S71_SubMunicipalVoteNo,$AC:$AC,Sheet1!S71_ItemType,$AD:$AD)","v":0},null,null,null,null,null,null,null,null,null,null,null,null,null,null,null,133,"IE"]
[{"$f":"IF(RIGHT('Org structure'!D138,18)<>\"[Name of sub-vote]\",'Org structure'!D138,\"\")","v":""},null,{"$f":"SUMIFS(Sheet1!S71_OriginalBudget,Sheet1!S71_SubMunicipalVoteNo,$AC:$AC,Sheet1!S71_ItemType,$AD:$AD)","v":0},{"$f":"SUMIFS(Sheet1!S71_SpecialAdjustedBudget,Sheet1!S71_SubMunicipalVoteNo,$AC:$AC,Sheet1!S71_ItemType,$AD:$AD)","v":0},null,null,null,null,{"$f":"SUMIFS(Sheet1!S71_AdjustmentAmount,Sheet1!S71_SubMunicipalVoteNo,$AC:$AC,Sheet1!S71_ItemType,$AD:$AD)","v":0},0,0,{"$f":"SUMIFS(Sheet1!S71_OY1AdjustedBudget,Sheet1!S71_SubMunicipalVoteNo,$AC:$AC,Sheet1!S71_ItemType,$AD:$AD)","v":0},{"$f":"SUMIFS(Sheet1!S71_OY2AdjustedBudget,Sheet1!S71_SubMunicipalVoteNo,$AC:$AC,Sheet1!S71_ItemType,$AD:$AD)","v":0},null,null,null,null,null,null,null,null,null,null,null,null,null,null,null,134,"IE"]
[{"$f":"IF(RIGHT('Org structure'!D139,18)<>\"[Name of sub-vote]\",'Org structure'!D139,\"\")","v":""},null,{"$f":"SUMIFS(Sheet1!S71_OriginalBudget,Sheet1!S71_SubMunicipalVoteNo,$AC:$AC,Sheet1!S71_ItemType,$AD:$AD)","v":0},{"$f":"SUMIFS(Sheet1!S71_SpecialAdjustedBudget,Sheet1!S71_SubMunicipalVoteNo,$AC:$AC,Sheet1!S71_ItemType,$AD:$AD)","v":0},null,null,null,null,{"$f":"SUMIFS(Sheet1!S71_AdjustmentAmount,Sheet1!S71_SubMunicipalVoteNo,$AC:$AC,Sheet1!S71_ItemType,$AD:$AD)","v":0},0,0,{"$f":"SUMIFS(Sheet1!S71_OY1AdjustedBudget,Sheet1!S71_SubMunicipalVoteNo,$AC:$AC,Sheet1!S71_ItemType,$AD:$AD)","v":0},{"$f":"SUMIFS(Sheet1!S71_OY2AdjustedBudget,Sheet1!S71_SubMunicipalVoteNo,$AC:$AC,Sheet1!S71_ItemType,$AD:$AD)","v":0},null,null,null,null,null,null,null,null,null,null,null,null,null,null,null,135,"IE"]
[{"$f":"IF(RIGHT('Org structure'!D140,18)<>\"[Name of sub-vote]\",'Org structure'!D140,\"\")","v":""},null,{"$f":"SUMIFS(Sheet1!S71_OriginalBudget,Sheet1!S71_SubMunicipalVoteNo,$AC:$AC,Sheet1!S71_ItemType,$AD:$AD)","v":0},{"$f":"SUMIFS(Sheet1!S71_SpecialAdjustedBudget,Sheet1!S71_SubMunicipalVoteNo,$AC:$AC,Sheet1!S71_ItemType,$AD:$AD)","v":0},null,null,null,null,{"$f":"SUMIFS(Sheet1!S71_AdjustmentAmount,Sheet1!S71_SubMunicipalVoteNo,$AC:$AC,Sheet1!S71_ItemType,$AD:$AD)","v":0},0,0,{"$f":"SUMIFS(Sheet1!S71_OY1AdjustedBudget,Sheet1!S71_SubMunicipalVoteNo,$AC:$AC,Sheet1!S71_ItemType,$AD:$AD)","v":0},{"$f":"SUMIFS(Sheet1!S71_OY2AdjustedBudget,Sheet1!S71_SubMunicipalVoteNo,$AC:$AC,Sheet1!S71_ItemType,$AD:$AD)","v":0},null,null,null,null,null,null,null,null,null,null,null,null,null,null,null,136,"IE"]
[{"$f":"IF(RIGHT('Org structure'!D141,18)<>\"[Name of sub-vote]\",'Org structure'!D141,\"\")","v":""},null,{"$f":"SUMIFS(Sheet1!S71_OriginalBudget,Sheet1!S71_SubMunicipalVoteNo,$AC:$AC,Sheet1!S71_ItemType,$AD:$AD)","v":0},{"$f":"SUMIFS(Sheet1!S71_SpecialAdjustedBudget,Sheet1!S71_SubMunicipalVoteNo,$AC:$AC,Sheet1!S71_ItemType,$AD:$AD)","v":0},null,null,null,null,{"$f":"SUMIFS(Sheet1!S71_AdjustmentAmount,Sheet1!S71_SubMunicipalVoteNo,$AC:$AC,Sheet1!S71_ItemType,$AD:$AD)","v":0},0,0,{"$f":"SUMIFS(Sheet1!S71_OY1AdjustedBudget,Sheet1!S71_SubMunicipalVoteNo,$AC:$AC,Sheet1!S71_ItemType,$AD:$AD)","v":0},{"$f":"SUMIFS(Sheet1!S71_OY2AdjustedBudget,Sheet1!S71_SubMunicipalVoteNo,$AC:$AC,Sheet1!S71_ItemType,$AD:$AD)","v":0},null,null,null,null,null,null,null,null,null,null,null,null,null,null,null,137,"IE"]
[{"$f":"IF(RIGHT('Org structure'!D142,18)<>\"[Name of sub-vote]\",'Org structure'!D142,\"\")","v":""},null,{"$f":"SUMIFS(Sheet1!S71_OriginalBudget,Sheet1!S71_SubMunicipalVoteNo,$AC:$AC,Sheet1!S71_ItemType,$AD:$AD)","v":0},{"$f":"SUMIFS(Sheet1!S71_SpecialAdjustedBudget,Sheet1!S71_SubMunicipalVoteNo,$AC:$AC,Sheet1!S71_ItemType,$AD:$AD)","v":0},null,null,null,null,{"$f":"SUMIFS(Sheet1!S71_AdjustmentAmount,Sheet1!S71_SubMunicipalVoteNo,$AC:$AC,Sheet1!S71_ItemType,$AD:$AD)","v":0},0,0,{"$f":"SUMIFS(Sheet1!S71_OY1AdjustedBudget,Sheet1!S71_SubMunicipalVoteNo,$AC:$AC,Sheet1!S71_ItemType,$AD:$AD)","v":0},{"$f":"SUMIFS(Sheet1!S71_OY2AdjustedBudget,Sheet1!S71_SubMunicipalVoteNo,$AC:$AC,Sheet1!S71_ItemType,$AD:$AD)","v":0},null,null,null,null,null,null,null,null,null,null,null,null,null,null,null,138,"IE"]
[{"$f":"IF(RIGHT('Org structure'!D143,18)<>\"[Name of sub-vote]\",'Org structure'!D143,\"\")","v":""},null,{"$f":"SUMIFS(Sheet1!S71_OriginalBudget,Sheet1!S71_SubMunicipalVoteNo,$AC:$AC,Sheet1!S71_ItemType,$AD:$AD)","v":0},{"$f":"SUMIFS(Sheet1!S71_SpecialAdjustedBudget,Sheet1!S71_SubMunicipalVoteNo,$AC:$AC,Sheet1!S71_ItemType,$AD:$AD)","v":0},null,null,null,null,{"$f":"SUMIFS(Sheet1!S71_AdjustmentAmount,Sheet1!S71_SubMunicipalVoteNo,$AC:$AC,Sheet1!S71_ItemType,$AD:$AD)","v":0},0,0,{"$f":"SUMIFS(Sheet1!S71_OY1AdjustedBudget,Sheet1!S71_SubMunicipalVoteNo,$AC:$AC,Sheet1!S71_ItemType,$AD:$AD)","v":0},{"$f":"SUMIFS(Sheet1!S71_OY2AdjustedBudget,Sheet1!S71_SubMunicipalVoteNo,$AC:$AC,Sheet1!S71_ItemType,$AD:$AD)","v":0},null,null,null,null,null,null,null,null,null,null,null,null,null,null,null,139,"IE"]
[{"$f":"IF(RIGHT('Org structure'!D144,18)<>\"[Name of sub-vote]\",'Org structure'!D144,\"\")","v":""},null,{"$f":"SUMIFS(Sheet1!S71_OriginalBudget,Sheet1!S71_SubMunicipalVoteNo,$AC:$AC,Sheet1!S71_ItemType,$AD:$AD)","v":0},{"$f":"SUMIFS(Sheet1!S71_SpecialAdjustedBudget,Sheet1!S71_SubMunicipalVoteNo,$AC:$AC,Sheet1!S71_ItemType,$AD:$AD)","v":0},null,null,null,null,{"$f":"SUMIFS(Sheet1!S71_AdjustmentAmount,Sheet1!S71_SubMunicipalVoteNo,$AC:$AC,Sheet1!S71_ItemType,$AD:$AD)","v":0},0,0,{"$f":"SUMIFS(Sheet1!S71_OY1AdjustedBudget,Sheet1!S71_SubMunicipalVoteNo,$AC:$AC,Sheet1!S71_ItemType,$AD:$AD)","v":0},{"$f":"SUMIFS(Sheet1!S71_OY2AdjustedBudget,Sheet1!S71_SubMunicipalVoteNo,$AC:$AC,Sheet1!S71_ItemType,$AD:$AD)","v":0},null,null,null,null,null,null,null,null,null,null,null,null,null,null,null,1310,"IE"]
["Vote 14 - [NAME OF VOTE 14]",null,{"$f":"SUM(C319:C328)","v":0},0,0,0,0,0,0,0,0,{"$f":"SUM(L319:L328)","v":0},{"$f":"SUM(M319:M328)","v":0}]
[{"$f":"IF(RIGHT('Org structure'!D146,18)<>\"[Name of sub-vote]\",'Org structure'!D146,\"\")","v":""},null,{"$f":"SUMIFS(Sheet1!S71_OriginalBudget,Sheet1!S71_SubMunicipalVoteNo,$AC:$AC,Sheet1!S71_ItemType,$AD:$AD)","v":0},{"$f":"SUMIFS(Sheet1!S71_SpecialAdjustedBudget,Sheet1!S71_SubMunicipalVoteNo,$AC:$AC,Sheet1!S71_ItemType,$AD:$AD)","v":0},null,null,null,null,{"$f":"SUMIFS(Sheet1!S71_AdjustmentAmount,Sheet1!S71_SubMunicipalVoteNo,$AC:$AC,Sheet1!S71_ItemType,$AD:$AD)","v":0},0,0,{"$f":"SUMIFS(Sheet1!S71_OY1AdjustedBudget,Sheet1!S71_SubMunicipalVoteNo,$AC:$AC,Sheet1!S71_ItemType,$AD:$AD)","v":0},{"$f":"SUMIFS(Sheet1!S71_OY2AdjustedBudget,Sheet1!S71_SubMunicipalVoteNo,$AC:$AC,Sheet1!S71_ItemType,$AD:$AD)","v":0},null,null,null,null,null,null,null,null,null,null,null,null,null,null,null,141,"IE"]
[{"$f":"IF(RIGHT('Org structure'!D147,18)<>\"[Name of sub-vote]\",'Org structure'!D147,\"\")","v":""},null,{"$f":"SUMIFS(Sheet1!S71_OriginalBudget,Sheet1!S71_SubMunicipalVoteNo,$AC:$AC,Sheet1!S71_ItemType,$AD:$AD)","v":0},{"$f":"SUMIFS(Sheet1!S71_SpecialAdjustedBudget,Sheet1!S71_SubMunicipalVoteNo,$AC:$AC,Sheet1!S71_ItemType,$AD:$AD)","v":0},null,null,null,null,{"$f":"SUMIFS(Sheet1!S71_AdjustmentAmount,Sheet1!S71_SubMunicipalVoteNo,$AC:$AC,Sheet1!S71_ItemType,$AD:$AD)","v":0},0,0,{"$f":"SUMIFS(Sheet1!S71_OY1AdjustedBudget,Sheet1!S71_SubMunicipalVoteNo,$AC:$AC,Sheet1!S71_ItemType,$AD:$AD)","v":0},{"$f":"SUMIFS(Sheet1!S71_OY2AdjustedBudget,Sheet1!S71_SubMunicipalVoteNo,$AC:$AC,Sheet1!S71_ItemType,$AD:$AD)","v":0},null,null,null,null,null,null,null,null,null,null,null,null,null,null,null,142,"IE"]
[{"$f":"IF(RIGHT('Org structure'!D148,18)<>\"[Name of sub-vote]\",'Org structure'!D148,\"\")","v":""},null,{"$f":"SUMIFS(Sheet1!S71_OriginalBudget,Sheet1!S71_SubMunicipalVoteNo,$AC:$AC,Sheet1!S71_ItemType,$AD:$AD)","v":0},{"$f":"SUMIFS(Sheet1!S71_SpecialAdjustedBudget,Sheet1!S71_SubMunicipalVoteNo,$AC:$AC,Sheet1!S71_ItemType,$AD:$AD)","v":0},null,null,null,null,{"$f":"SUMIFS(Sheet1!S71_AdjustmentAmount,Sheet1!S71_SubMunicipalVoteNo,$AC:$AC,Sheet1!S71_ItemType,$AD:$AD)","v":0},0,0,{"$f":"SUMIFS(Sheet1!S71_OY1AdjustedBudget,Sheet1!S71_SubMunicipalVoteNo,$AC:$AC,Sheet1!S71_ItemType,$AD:$AD)","v":0},{"$f":"SUMIFS(Sheet1!S71_OY2AdjustedBudget,Sheet1!S71_SubMunicipalVoteNo,$AC:$AC,Sheet1!S71_ItemType,$AD:$AD)","v":0},null,null,null,null,null,null,null,null,null,null,null,null,null,null,null,143,"IE"]
[{"$f":"IF(RIGHT('Org structure'!D149,18)<>\"[Name of sub-vote]\",'Org structure'!D149,\"\")","v":""},null,{"$f":"SUMIFS(Sheet1!S71_OriginalBudget,Sheet1!S71_SubMunicipalVoteNo,$AC:$AC,Sheet1!S71_ItemType,$AD:$AD)","v":0},{"$f":"SUMIFS(Sheet1!S71_SpecialAdjustedBudget,Sheet1!S71_SubMunicipalVoteNo,$AC:$AC,Sheet1!S71_ItemType,$AD:$AD)","v":0},null,null,null,null,{"$f":"SUMIFS(Sheet1!S71_AdjustmentAmount,Sheet1!S71_SubMunicipalVoteNo,$AC:$AC,Sheet1!S71_ItemType,$AD:$AD)","v":0},0,0,{"$f":"SUMIFS(Sheet1!S71_OY1AdjustedBudget,Sheet1!S71_SubMunicipalVoteNo,$AC:$AC,Sheet1!S71_ItemType,$AD:$AD)","v":0},{"$f":"SUMIFS(Sheet1!S71_OY2AdjustedBudget,Sheet1!S71_SubMunicipalVoteNo,$AC:$AC,Sheet1!S71_ItemType,$AD:$AD)","v":0},null,null,null,null,null,null,null,null,null,null,null,null,null,null,null,144,"IE"]
[{"$f":"IF(RIGHT('Org structure'!D150,18)<>\"[Name of sub-vote]\",'Org structure'!D150,\"\")","v":""},null,{"$f":"SUMIFS(Sheet1!S71_OriginalBudget,Sheet1!S71_SubMunicipalVoteNo,$AC:$AC,Sheet1!S71_ItemType,$AD:$AD)","v":0},{"$f":"SUMIFS(Sheet1!S71_SpecialAdjustedBudget,Sheet1!S71_SubMunicipalVoteNo,$AC:$AC,Sheet1!S71_ItemType,$AD:$AD)","v":0},null,null,null,null,{"$f":"SUMIFS(Sheet1!S71_AdjustmentAmount,Sheet1!S71_SubMunicipalVoteNo,$AC:$AC,Sheet1!S71_ItemType,$AD:$AD)","v":0},0,0,{"$f":"SUMIFS(Sheet1!S71_OY1AdjustedBudget,Sheet1!S71_SubMunicipalVoteNo,$AC:$AC,Sheet1!S71_ItemType,$AD:$AD)","v":0},{"$f":"SUMIFS(Sheet1!S71_OY2AdjustedBudget,Sheet1!S71_SubMunicipalVoteNo,$AC:$AC,Sheet1!S71_ItemType,$AD:$AD)","v":0},null,null,null,null,null,null,null,null,null,null,null,null,null,null,null,145,"IE"]
[{"$f":"IF(RIGHT('Org structure'!D151,18)<>\"[Name of sub-vote]\",'Org structure'!D151,\"\")","v":""},null,{"$f":"SUMIFS(Sheet1!S71_OriginalBudget,Sheet1!S71_SubMunicipalVoteNo,$AC:$AC,Sheet1!S71_ItemType,$AD:$AD)","v":0},{"$f":"SUMIFS(Sheet1!S71_SpecialAdjustedBudget,Sheet1!S71_SubMunicipalVoteNo,$AC:$AC,Sheet1!S71_ItemType,$AD:$AD)","v":0},null,null,null,null,{"$f":"SUMIFS(Sheet1!S71_AdjustmentAmount,Sheet1!S71_SubMunicipalVoteNo,$AC:$AC,Sheet1!S71_ItemType,$AD:$AD)","v":0},0,0,{"$f":"SUMIFS(Sheet1!S71_OY1AdjustedBudget,Sheet1!S71_SubMunicipalVoteNo,$AC:$AC,Sheet1!S71_ItemType,$AD:$AD)","v":0},{"$f":"SUMIFS(Sheet1!S71_OY2AdjustedBudget,Sheet1!S71_SubMunicipalVoteNo,$AC:$AC,Sheet1!S71_ItemType,$AD:$AD)","v":0},null,null,null,null,null,null,null,null,null,null,null,null,null,null,null,146,"IE"]
[{"$f":"IF(RIGHT('Org structure'!D152,18)<>\"[Name of sub-vote]\",'Org structure'!D152,\"\")","v":""},null,{"$f":"SUMIFS(Sheet1!S71_OriginalBudget,Sheet1!S71_SubMunicipalVoteNo,$AC:$AC,Sheet1!S71_ItemType,$AD:$AD)","v":0},{"$f":"SUMIFS(Sheet1!S71_SpecialAdjustedBudget,Sheet1!S71_SubMunicipalVoteNo,$AC:$AC,Sheet1!S71_ItemType,$AD:$AD)","v":0},null,null,null,null,{"$f":"SUMIFS(Sheet1!S71_AdjustmentAmount,Sheet1!S71_SubMunicipalVoteNo,$AC:$AC,Sheet1!S71_ItemType,$AD:$AD)","v":0},0,0,{"$f":"SUMIFS(Sheet1!S71_OY1AdjustedBudget,Sheet1!S71_SubMunicipalVoteNo,$AC:$AC,Sheet1!S71_ItemType,$AD:$AD)","v":0},{"$f":"SUMIFS(Sheet1!S71_OY2AdjustedBudget,Sheet1!S71_SubMunicipalVoteNo,$AC:$AC,Sheet1!S71_ItemType,$AD:$AD)","v":0},null,null,null,null,null,null,null,null,null,null,null,null,null,null,null,147,"IE"]
[{"$f":"IF(RIGHT('Org structure'!D153,18)<>\"[Name of sub-vote]\",'Org structure'!D153,\"\")","v":""},null,{"$f":"SUMIFS(Sheet1!S71_OriginalBudget,Sheet1!S71_SubMunicipalVoteNo,$AC:$AC,Sheet1!S71_ItemType,$AD:$AD)","v":0},{"$f":"SUMIFS(Sheet1!S71_SpecialAdjustedBudget,Sheet1!S71_SubMunicipalVoteNo,$AC:$AC,Sheet1!S71_ItemType,$AD:$AD)","v":0},null,null,null,null,{"$f":"SUMIFS(Sheet1!S71_AdjustmentAmount,Sheet1!S71_SubMunicipalVoteNo,$AC:$AC,Sheet1!S71_ItemType,$AD:$AD)","v":0},0,0,{"$f":"SUMIFS(Sheet1!S71_OY1AdjustedBudget,Sheet1!S71_SubMunicipalVoteNo,$AC:$AC,Sheet1!S71_ItemType,$AD:$AD)","v":0},{"$f":"SUMIFS(Sheet1!S71_OY2AdjustedBudget,Sheet1!S71_SubMunicipalVoteNo,$AC:$AC,Sheet1!S71_ItemType,$AD:$AD)","v":0},null,null,null,null,null,null,null,null,null,null,null,null,null,null,null,148,"IE"]
[{"$f":"IF(RIGHT('Org structure'!D154,18)<>\"[Name of sub-vote]\",'Org structure'!D154,\"\")","v":""},null,{"$f":"SUMIFS(Sheet1!S71_OriginalBudget,Sheet1!S71_SubMunicipalVoteNo,$AC:$AC,Sheet1!S71_ItemType,$AD:$AD)","v":0},{"$f":"SUMIFS(Sheet1!S71_SpecialAdjustedBudget,Sheet1!S71_SubMunicipalVoteNo,$AC:$AC,Sheet1!S71_ItemType,$AD:$AD)","v":0},null,null,null,null,{"$f":"SUMIFS(Sheet1!S71_AdjustmentAmount,Sheet1!S71_SubMunicipalVoteNo,$AC:$AC,Sheet1!S71_ItemType,$AD:$AD)","v":0},0,0,{"$f":"SUMIFS(Sheet1!S71_OY1AdjustedBudget,Sheet1!S71_SubMunicipalVoteNo,$AC:$AC,Sheet1!S71_ItemType,$AD:$AD)","v":0},{"$f":"SUMIFS(Sheet1!S71_OY2AdjustedBudget,Sheet1!S71_SubMunicipalVoteNo,$AC:$AC,Sheet1!S71_ItemType,$AD:$AD)","v":0},null,null,null,null,null,null,null,null,null,null,null,null,null,null,null,149,"IE"]
[{"$f":"IF(RIGHT('Org structure'!D155,18)<>\"[Name of sub-vote]\",'Org structure'!D155,\"\")","v":""},null,{"$f":"SUMIFS(Sheet1!S71_OriginalBudget,Sheet1!S71_SubMunicipalVoteNo,$AC:$AC,Sheet1!S71_ItemType,$AD:$AD)","v":0},{"$f":"SUMIFS(Sheet1!S71_SpecialAdjustedBudget,Sheet1!S71_SubMunicipalVoteNo,$AC:$AC,Sheet1!S71_ItemType,$AD:$AD)","v":0},null,null,null,null,{"$f":"SUMIFS(Sheet1!S71_AdjustmentAmount,Sheet1!S71_SubMunicipalVoteNo,$AC:$AC,Sheet1!S71_ItemType,$AD:$AD)","v":0},0,0,{"$f":"SUMIFS(Sheet1!S71_OY1AdjustedBudget,Sheet1!S71_SubMunicipalVoteNo,$AC:$AC,Sheet1!S71_ItemType,$AD:$AD)","v":0},{"$f":"SUMIFS(Sheet1!S71_OY2AdjustedBudget,Sheet1!S71_SubMunicipalVoteNo,$AC:$AC,Sheet1!S71_ItemType,$AD:$AD)","v":0},null,null,null,null,null,null,null,null,null,null,null,null,null,null,null,1410,"IE"]
["Vote 15 - [NAME OF VOTE 15]",null,{"$f":"SUM(C330:C339)","v":0},0,0,0,0,0,0,0,0,{"$f":"SUM(L330:L339)","v":0},{"$f":"SUM(M330:M339)","v":0}]
[{"$f":"IF(RIGHT('Org structure'!D157,18)<>\"[Name of sub-vote]\",'Org structure'!D157,\"\")","v":""},null,{"$f":"SUMIFS(Sheet1!S71_OriginalBudget,Sheet1!S71_SubMunicipalVoteNo,$AC:$AC,Sheet1!S71_ItemType,$AD:$AD)","v":0},{"$f":"SUMIFS(Sheet1!S71_SpecialAdjustedBudget,Sheet1!S71_SubMunicipalVoteNo,$AC:$AC,Sheet1!S71_ItemType,$AD:$AD)","v":0},null,null,null,null,{"$f":"SUMIFS(Sheet1!S71_AdjustmentAmount,Sheet1!S71_SubMunicipalVoteNo,$AC:$AC,Sheet1!S71_ItemType,$AD:$AD)","v":0},0,0,{"$f":"SUMIFS(Sheet1!S71_OY1AdjustedBudget,Sheet1!S71_SubMunicipalVoteNo,$AC:$AC,Sheet1!S71_ItemType,$AD:$AD)","v":0},{"$f":"SUMIFS(Sheet1!S71_OY2AdjustedBudget,Sheet1!S71_SubMunicipalVoteNo,$AC:$AC,Sheet1!S71_ItemType,$AD:$AD)","v":0},null,null,null,null,null,null,null,null,null,null,null,null,null,null,null,151,"IE"]
[{"$f":"IF(RIGHT('Org structure'!D158,18)<>\"[Name of sub-vote]\",'Org structure'!D158,\"\")","v":""},null,{"$f":"SUMIFS(Sheet1!S71_OriginalBudget,Sheet1!S71_SubMunicipalVoteNo,$AC:$AC,Sheet1!S71_ItemType,$AD:$AD)","v":0},{"$f":"SUMIFS(Sheet1!S71_SpecialAdjustedBudget,Sheet1!S71_SubMunicipalVoteNo,$AC:$AC,Sheet1!S71_ItemType,$AD:$AD)","v":0},null,null,null,null,{"$f":"SUMIFS(Sheet1!S71_AdjustmentAmount,Sheet1!S71_SubMunicipalVoteNo,$AC:$AC,Sheet1!S71_ItemType,$AD:$AD)","v":0},0,0,{"$f":"SUMIFS(Sheet1!S71_OY1AdjustedBudget,Sheet1!S71_SubMunicipalVoteNo,$AC:$AC,Sheet1!S71_ItemType,$AD:$AD)","v":0},{"$f":"SUMIFS(Sheet1!S71_OY2AdjustedBudget,Sheet1!S71_SubMunicipalVoteNo,$AC:$AC,Sheet1!S71_ItemType,$AD:$AD)","v":0},null,null,null,null,null,null,null,null,null,null,null,null,null,null,null,152,"IE"]
[{"$f":"IF(RIGHT('Org structure'!D159,18)<>\"[Name of sub-vote]\",'Org structure'!D159,\"\")","v":""},null,{"$f":"SUMIFS(Sheet1!S71_OriginalBudget,Sheet1!S71_SubMunicipalVoteNo,$AC:$AC,Sheet1!S71_ItemType,$AD:$AD)","v":0},{"$f":"SUMIFS(Sheet1!S71_SpecialAdjustedBudget,Sheet1!S71_SubMunicipalVoteNo,$AC:$AC,Sheet1!S71_ItemType,$AD:$AD)","v":0},null,null,null,null,{"$f":"SUMIFS(Sheet1!S71_AdjustmentAmount,Sheet1!S71_SubMunicipalVoteNo,$AC:$AC,Sheet1!S71_ItemType,$AD:$AD)","v":0},0,0,{"$f":"SUMIFS(Sheet1!S71_OY1AdjustedBudget,Sheet1!S71_SubMunicipalVoteNo,$AC:$AC,Sheet1!S71_ItemType,$AD:$AD)","v":0},{"$f":"SUMIFS(Sheet1!S71_OY2AdjustedBudget,Sheet1!S71_SubMunicipalVoteNo,$AC:$AC,Sheet1!S71_ItemType,$AD:$AD)","v":0},null,null,null,null,null,null,null,null,null,null,null,null,null,null,null,153,"IE"]
[{"$f":"IF(RIGHT('Org structure'!D160,18)<>\"[Name of sub-vote]\",'Org structure'!D160,\"\")","v":""},null,{"$f":"SUMIFS(Sheet1!S71_OriginalBudget,Sheet1!S71_SubMunicipalVoteNo,$AC:$AC,Sheet1!S71_ItemType,$AD:$AD)","v":0},{"$f":"SUMIFS(Sheet1!S71_SpecialAdjustedBudget,Sheet1!S71_SubMunicipalVoteNo,$AC:$AC,Sheet1!S71_ItemType,$AD:$AD)","v":0},null,null,null,null,{"$f":"SUMIFS(Sheet1!S71_AdjustmentAmount,Sheet1!S71_SubMunicipalVoteNo,$AC:$AC,Sheet1!S71_ItemType,$AD:$AD)","v":0},0,0,{"$f":"SUMIFS(Sheet1!S71_OY1AdjustedBudget,Sheet1!S71_SubMunicipalVoteNo,$AC:$AC,Sheet1!S71_ItemType,$AD:$AD)","v":0},{"$f":"SUMIFS(Sheet1!S71_OY2AdjustedBudget,Sheet1!S71_SubMunicipalVoteNo,$AC:$AC,Sheet1!S71_ItemType,$AD:$AD)","v":0},null,null,null,null,null,null,null,null,null,null,null,null,null,null,null,154,"IE"]
[{"$f":"IF(RIGHT('Org structure'!D161,18)<>\"[Name of sub-vote]\",'Org structure'!D161,\"\")","v":""},null,{"$f":"SUMIFS(Sheet1!S71_OriginalBudget,Sheet1!S71_SubMunicipalVoteNo,$AC:$AC,Sheet1!S71_ItemType,$AD:$AD)","v":0},{"$f":"SUMIFS(Sheet1!S71_SpecialAdjustedBudget,Sheet1!S71_SubMunicipalVoteNo,$AC:$AC,Sheet1!S71_ItemType,$AD:$AD)","v":0},null,null,null,null,{"$f":"SUMIFS(Sheet1!S71_AdjustmentAmount,Sheet1!S71_SubMunicipalVoteNo,$AC:$AC,Sheet1!S71_ItemType,$AD:$AD)","v":0},0,0,{"$f":"SUMIFS(Sheet1!S71_OY1AdjustedBudget,Sheet1!S71_SubMunicipalVoteNo,$AC:$AC,Sheet1!S71_ItemType,$AD:$AD)","v":0},{"$f":"SUMIFS(Sheet1!S71_OY2AdjustedBudget,Sheet1!S71_SubMunicipalVoteNo,$AC:$AC,Sheet1!S71_ItemType,$AD:$AD)","v":0},null,null,null,null,null,null,null,null,null,null,null,null,null,null,null,155,"IE"]
[{"$f":"IF(RIGHT('Org structure'!D162,18)<>\"[Name of sub-vote]\",'Org structure'!D162,\"\")","v":""},null,{"$f":"SUMIFS(Sheet1!S71_OriginalBudget,Sheet1!S71_SubMunicipalVoteNo,$AC:$AC,Sheet1!S71_ItemType,$AD:$AD)","v":0},{"$f":"SUMIFS(Sheet1!S71_SpecialAdjustedBudget,Sheet1!S71_SubMunicipalVoteNo,$AC:$AC,Sheet1!S71_ItemType,$AD:$AD)","v":0},null,null,null,null,{"$f":"SUMIFS(Sheet1!S71_AdjustmentAmount,Sheet1!S71_SubMunicipalVoteNo,$AC:$AC,Sheet1!S71_ItemType,$AD:$AD)","v":0},0,0,{"$f":"SUMIFS(Sheet1!S71_OY1AdjustedBudget,Sheet1!S71_SubMunicipalVoteNo,$AC:$AC,Sheet1!S71_ItemType,$AD:$AD)","v":0},{"$f":"SUMIFS(Sheet1!S71_OY2AdjustedBudget,Sheet1!S71_SubMunicipalVoteNo,$AC:$AC,Sheet1!S71_ItemType,$AD:$AD)","v":0},null,null,null,null,null,null,null,null,null,null,null,null,null,null,null,156,"IE"]
[{"$f":"IF(RIGHT('Org structure'!D163,18)<>\"[Name of sub-vote]\",'Org structure'!D163,\"\")","v":""},null,{"$f":"SUMIFS(Sheet1!S71_OriginalBudget,Sheet1!S71_SubMunicipalVoteNo,$AC:$AC,Sheet1!S71_ItemType,$AD:$AD)","v":0},{"$f":"SUMIFS(Sheet1!S71_SpecialAdjustedBudget,Sheet1!S71_SubMunicipalVoteNo,$AC:$AC,Sheet1!S71_ItemType,$AD:$AD)","v":0},null,null,null,null,{"$f":"SUMIFS(Sheet1!S71_AdjustmentAmount,Sheet1!S71_SubMunicipalVoteNo,$AC:$AC,Sheet1!S71_ItemType,$AD:$AD)","v":0},0,0,{"$f":"SUMIFS(Sheet1!S71_OY1AdjustedBudget,Sheet1!S71_SubMunicipalVoteNo,$AC:$AC,Sheet1!S71_ItemType,$AD:$AD)","v":0},{"$f":"SUMIFS(Sheet1!S71_OY2AdjustedBudget,Sheet1!S71_SubMunicipalVoteNo,$AC:$AC,Sheet1!S71_ItemType,$AD:$AD)","v":0},null,null,null,null,null,null,null,null,null,null,null,null,null,null,null,157,"IE"]
[{"$f":"IF(RIGHT('Org structure'!D164,18)<>\"[Name of sub-vote]\",'Org structure'!D164,\"\")","v":""},null,{"$f":"SUMIFS(Sheet1!S71_OriginalBudget,Sheet1!S71_SubMunicipalVoteNo,$AC:$AC,Sheet1!S71_ItemType,$AD:$AD)","v":0},{"$f":"SUMIFS(Sheet1!S71_SpecialAdjustedBudget,Sheet1!S71_SubMunicipalVoteNo,$AC:$AC,Sheet1!S71_ItemType,$AD:$AD)","v":0},null,null,null,null,{"$f":"SUMIFS(Sheet1!S71_AdjustmentAmount,Sheet1!S71_SubMunicipalVoteNo,$AC:$AC,Sheet1!S71_ItemType,$AD:$AD)","v":0},0,0,{"$f":"SUMIFS(Sheet1!S71_OY1AdjustedBudget,Sheet1!S71_SubMunicipalVoteNo,$AC:$AC,Sheet1!S71_ItemType,$AD:$AD)","v":0},{"$f":"SUMIFS(Sheet1!S71_OY2AdjustedBudget,Sheet1!S71_SubMunicipalVoteNo,$AC:$AC,Sheet1!S71_ItemType,$AD:$AD)","v":0},null,null,null,null,null,null,null,null,null,null,null,null,null,null,null,158,"IE"]
[{"$f":"IF(RIGHT('Org structure'!D165,18)<>\"[Name of sub-vote]\",'Org structure'!D165,\"\")","v":""},null,{"$f":"SUMIFS(Sheet1!S71_OriginalBudget,Sheet1!S71_SubMunicipalVoteNo,$AC:$AC,Sheet1!S71_ItemType,$AD:$AD)","v":0},{"$f":"SUMIFS(Sheet1!S71_SpecialAdjustedBudget,Sheet1!S71_SubMunicipalVoteNo,$AC:$AC,Sheet1!S71_ItemType,$AD:$AD)","v":0},null,null,null,null,{"$f":"SUMIFS(Sheet1!S71_AdjustmentAmount,Sheet1!S71_SubMunicipalVoteNo,$AC:$AC,Sheet1!S71_ItemType,$AD:$AD)","v":0},0,0,{"$f":"SUMIFS(Sheet1!S71_OY1AdjustedBudget,Sheet1!S71_SubMunicipalVoteNo,$AC:$AC,Sheet1!S71_ItemType,$AD:$AD)","v":0},{"$f":"SUMIFS(Sheet1!S71_OY2AdjustedBudget,Sheet1!S71_SubMunicipalVoteNo,$AC:$AC,Sheet1!S71_ItemType,$AD:$AD)","v":0},null,null,null,null,null,null,null,null,null,null,null,null,null,null,null,159,"IE"]
[{"$f":"IF(RIGHT('Org structure'!D166,18)<>\"[Name of sub-vote]\",'Org structure'!D166,\"\")","v":""},null,{"$f":"SUMIFS(Sheet1!S71_OriginalBudget,Sheet1!S71_SubMunicipalVoteNo,$AC:$AC,Sheet1!S71_ItemType,$AD:$AD)","v":0},{"$f":"SUMIFS(Sheet1!S71_SpecialAdjustedBudget,Sheet1!S71_SubMunicipalVoteNo,$AC:$AC,Sheet1!S71_ItemType,$AD:$AD)","v":0},null,null,null,null,{"$f":"SUMIFS(Sheet1!S71_AdjustmentAmount,Sheet1!S71_SubMunicipalVoteNo,$AC:$AC,Sheet1!S71_ItemType,$AD:$AD)","v":0},0,0,{"$f":"SUMIFS(Sheet1!S71_OY1AdjustedBudget,Sheet1!S71_SubMunicipalVoteNo,$AC:$AC,Sheet1!S71_ItemType,$AD:$AD)","v":0},{"$f":"SUMIFS(Sheet1!S71_OY2AdjustedBudget,Sheet1!S71_SubMunicipalVoteNo,$AC:$AC,Sheet1!S71_ItemType,$AD:$AD)","v":0},null,null,null,null,null,null,null,null,null,null,null,null,null,null,null,1510,"IE"]
["Total Expenditure by Vote",2,{"$f":"C175+C186+C197+C208+C219+C230+C241+C252+C263+C285+C296+C307+C318+C329+C274","v":199314809},{"$f":"D175+D186+D197+D208+D219+D230+D241+D252+D263+D285+D296+D307+D318+D329+D274","v":0},0,0,0,0,5944880,{"$f":"SUM(E340:I340)","v":5944880},{"$f":"IF(D340=0,C340+J340,D340+J340)","v":205259689},{"$f":"L175+L186+L197+L208+L219+L230+L241+L252+L263+L285+L296+L307+L318+L329+L274","v":202809501},{"$f":"M175+M186+M197+M208+M219+M230+M241+M252+M263+M285+M296+M307+M318+M329+M274","v":213722942}]
[]
[{"$f":"result","v":"Surplus/ (Deficit) for the year"},2,{"$f":"C172-C340","v":57802745},0,0,0,0,0,-5729618,{"$f":"SUM(E342:I342)","v":-5729618},{"$f":"IF(D342=0,C342+J342,D342+J342)","v":52073127},{"$f":"L172-L340","v":62998664},{"$f":"M172-M340","v":68072210}]
[{"$f":"head27a","v":"References"}]
["1. Insert 'Vote'; e.g. Department, if different to standard structure"]
["2. Must reconcile to Financial Performance ('Revenue and Expenditure by Standard Classification' and 'Revenue and Expenditure')"]
["3. Assign share in 'associate' to relevant Vote"]

{"sheet":"B4-FinPerf RE","index":29,"n_rows":62,"n_cols":29,"rows_kept":62,"cut":false,"hidden":false,"merged":[[1,2,1,10],[1,1,3,1],[59,0,59,12],[60,0,60,12],[52,0,52,12],[53,0,53,12],[54,0,54,12],[55,0,55,12],[57,0,57,12],[1,0,3,0]]}
[{"$f":"muni&\" - \"&_ADJ4&\" - \"&Date","v":"EC139 Enoch Mgijima - Table B4 Adjustments Budget Financial Performance (revenue and expenditure) - "}]
[{"$f":"desc","v":"Description"},{"$f":"head27","v":"Ref"},{"$f":"Head2","v":"Budget Year 2021/22"},null,null,null,null,null,null,null,null,{"$f":"Head10","v":"Budget Year +1 2022/23"},{"$f":"Head11","v":"Budget Year +2 2023/24"},null,null,null,null,null,null,null,null,null,null,null,null,null,null,null,"Code"]
[null,null,{"$f":"Head6","v":"Original Budget"},{"$f":"Head54","v":"Prior Adjusted"},{"$f":"Head51","v":"Accum. Funds"},{"$f":"Head52","v":"Multi-year capital"},{"$f":"Head53","v":"Unfore. Unavoid."},{"$f":"Head55","v":"Nat. or Prov. Govt"},{"$f":"Head50","v":"Other Adjusts."},{"$f":"Head56","v":"Total Adjusts."},{"$f":"Head7","v":"Adjusted Budget"},{"$f":"Head7","v":"Adjusted Budget"},{"$f":"Head7","v":"Adjusted Budget"}]
[null,null,null,3,4,5,6,7,8,9,10]
["R thousands",1,"A","A1","B","C","D","E","F","G","H"]
["Revenue By Source"]
["Property rates",2,{"$f":"'SB1'!C10","v":18240560},{"$f":"'SB1'!D10","v":0},{"$f":"'SB1'!E10","v":0},{"$f":"'SB1'!F10","v":0},{"$f":"'SB1'!G10","v":0},{"$f":"'SB1'!H10","v":0},{"$f":"'SB1'!I10","v":2745080},{"$f":"SUM(E7:I7)","v":2745080},{"$f":"IF(D7=0,C7+J7,D7+J7)","v":20985640},{"$f":"'SB1'!L10","v":19125849},{"$f":"'SB1'!M10","v":20051518},null,null,null,null,null,null,null,null,null,null,null,null,null,null,null,"0200"]
["Service charges - electricity revenue",2,{"$f":"'SB1'!C16","v":0},{"$f":"'SB1'!D16","v":0},{"$f":"'SB1'!E16","v":0},{"$f":"'SB1'!F16","v":0},{"$f":"'SB1'!G16","v":0},{"$f":"'SB1'!H16","v":0},{"$f":"'SB1'!I16","v":0},0,0,{"$f":"'SB1'!L16","v":0},{"$f":"'SB1'!M16","v":0},null,null,null,null,null,null,null,null,null,null,null,null,null,null,null,"0300"]
["Service charges - water revenue",2,{"$f":"'SB1'!C22","v":0},{"$f":"'SB1'!D22","v":0},{"$f":"'SB1'!E22","v":0},{"$f":"'SB1'!F22","v":0},{"$f":"'SB1'!G22","v":0},{"$f":"'SB1'!H22","v":0},{"$f":"'SB1'!I22","v":0},0,0,{"$f":"'SB1'!L22","v":0},{"$f":"'SB1'!M22","v":0},null,null,null,null,null,null,null,null,null,null,null,null,null,null,null,"0400"]
["Service charges - sanitation revenue",2,{"$f":"'SB1'!C28","v":0},{"$f":"'SB1'!D28","v":0},{"$f":"'SB1'!E28","v":0},{"$f":"'SB1'!F28","v":0},{"$f":"'SB1'!G28","v":0},{"$f":"'SB1'!H28","v":0},{"$f":"'SB1'!I28","v":0},0,0,{"$f":"'SB1'!L28","v":0},{"$f":"'SB1'!M28","v":0},null,null,null,null,null,null,null,null,null,null,null,null,null,null,null,"0500"]
["Service charges - refuse revenue",2,{"$f":"'SB1'!C35","v":208500},{"$f":"'SB1'!D35","v":0},{"$f":"'SB1'!E35","v":0},{"$f":"'SB1'!F35","v":0},{"$f":"'SB1'!G35","v":0},{"$f":"'SB1'!H35","v":0},{"$f":"'SB1'!I35","v":415860},415860,624360,{"$f":"'SB1'!L35","v":475011},{"$f":"'SB1'!M35","v":497811},null,null,null,null,null,null,null,null,null,null,null,null,null,null,null,"0600"]
[]
["Rental of facilities and equipment",null,{"$f":"-SUMIFS(Sheet1!S71_OriginalBudget,Sheet1!S71_A4Code,$AC:$AC)","v":394600},{"$f":"-SUMIFS(Sheet1!S71_SpecialAdjustedBudget,Sheet1!S71_A4Code,$AC:$AC)","v":0},null,null,null,null,{"$f":"SUMIFS(Sheet1!S71_AdjustmentAmount,Sheet1!S71_A4Code,$AC:$AC)","v":12583},12583,407183,{"$f":"-SUMIFS(Sheet1!S71_OY1AdjustedBudget,Sheet1!S71_A4Code,$AC:$AC)","v":412933},{"$f":"-SUMIFS(Sheet1!S71_OY2AdjustedBudget,Sheet1!S71_A4Code,$AC:$AC)","v":432754},null,null,null,null,null,null,null,null,null,null,null,null,null,null,null,"0800"]
["Interest earned - external investments",null,{"$f":"-SUMIFS(Sheet1!S71_OriginalBudget,Sheet1!S71_A4Code,$AC:$AC)","v":2145919},{"$f":"-SUMIFS(Sheet1!S71_SpecialAdjustedBudget,Sheet1!S71_A4Code,$AC:$AC)","v":0},null,null,null,null,{"$f":"SUMIFS(Sheet1!S71_AdjustmentAmount,Sheet1!S71_A4Code,$AC:$AC)","v":0},0,2145919,{"$f":"-SUMIFS(Sheet1!S71_OY1AdjustedBudget,Sheet1!S71_A4Code,$AC:$AC)","v":7523395},{"$f":"-SUMIFS(Sheet1!S71_OY2AdjustedBudget,Sheet1!S71_A4Code,$AC:$AC)","v":7884517},null,null,null,null,null,null,null,null,null,null,null,null,null,null,null,"0900"]
["Interest earned - outstanding debtors",null,{"$f":"-SUMIFS(Sheet1!S71_OriginalBudget,Sheet1!S71_A4Code,$AC:$AC)","v":967707},{"$f":"-SUMIFS(Sheet1!S71_SpecialAdjustedBudget,Sheet1!S71_A4Code,$AC:$AC)","v":0},null,null,null,null,{"$f":"SUMIFS(Sheet1!S71_AdjustmentAmount,Sheet1!S71_A4Code,$AC:$AC)","v":-967707},-967707,0,{"$f":"-SUMIFS(Sheet1!S71_OY1AdjustedBudget,Sheet1!S71_A4Code,$AC:$AC)","v":1014156},{"$f":"-SUMIFS(Sheet1!S71_OY2AdjustedBudget,Sheet1!S71_A4Code,$AC:$AC)","v":1062836},null,null,null,null,null,null,null,null,null,null,null,null,null,null,null,"1000"]
["Dividends received",null,{"$f":"-SUMIFS(Sheet1!S71_OriginalBudget,Sheet1!S71_A4Code,$AC:$AC)","v":0},{"$f":"-SUMIFS(Sheet1!S71_SpecialAdjustedBudget,Sheet1!S71_A4Code,$AC:$AC)","v":0},null,null,null,null,{"$f":"SUMIFS(Sheet1!S71_AdjustmentAmount,Sheet1!S71_A4Code,$AC:$AC)","v":0},0,0,{"$f":"-SUMIFS(Sheet1!S71_OY1AdjustedBudget,Sheet1!S71_A4Code,$AC:$AC)","v":0},{"$f":"-SUMIFS(Sheet1!S71_OY2AdjustedBudget,Sheet1!S71_A4Code,$AC:$AC)","v":0},null,null,null,null,null,null,null,null,null,null,null,null,null,null,null,"1100"]
["Fines, penalties and forfeits",null,{"$f":"-SUMIFS(Sheet1!S71_OriginalBudget,Sheet1!S71_A4Code,$AC:$AC)","v":3326721},{"$f":"-SUMIFS(Sheet1!S71_SpecialAdjustedBudget,Sheet1!S71_A4Code,$AC:$AC)","v":0},null,null,null,null,{"$f":"SUMIFS(Sheet1!S71_AdjustmentAmount,Sheet1!S71_A4Code,$AC:$AC)","v":-2022188},-2022188,1304533,{"$f":"-SUMIFS(Sheet1!S71_OY1AdjustedBudget,Sheet1!S71_A4Code,$AC:$AC)","v":3378298},{"$f":"-SUMIFS(Sheet1!S71_OY2AdjustedBudget,Sheet1!S71_A4Code,$AC:$AC)","v":3540455},null,null,null,null,null,null,null,null,null,null,null,null,null,null,null,"1200"]
["Licences and permits",null,{"$f":"-SUMIFS(Sheet1!S71_OriginalBudget,Sheet1!S71_A4Code,$AC:$AC)","v":6293640},{"$f":"-SUMIFS(Sheet1!S71_SpecialAdjustedBudget,Sheet1!S71_A4Code,$AC:$AC)","v":0},null,null,null,null,{"$f":"SUMIFS(Sheet1!S71_AdjustmentAmount,Sheet1!S71_A4Code,$AC:$AC)","v":-3426598},-3426598,2867042,{"$f":"-SUMIFS(Sheet1!S71_OY1AdjustedBudget,Sheet1!S71_A4Code,$AC:$AC)","v":5483788},{"$f":"-SUMIFS(Sheet1!S71_OY2AdjustedBudget,Sheet1!S71_A4Code,$AC:$AC)","v":5764595},null,null,null,null,null,null,null,null,null,null,null,null,null,null,null,"1300"]
["Agency services",null,{"$f":"-SUMIFS(Sheet1!S71_OriginalBudget,Sheet1!S71_A4Code,$AC:$AC)","v":0},{"$f":"-SUMIFS(Sheet1!S71_SpecialAdjustedBudget,Sheet1!S71_A4Code,$AC:$AC)","v":0},null,null,null,null,{"$f":"SUMIFS(Sheet1!S71_AdjustmentAmount,Sheet1!S71_A4Code,$AC:$AC)","v":0},0,0,{"$f":"-SUMIFS(Sheet1!S71_OY1AdjustedBudget,Sheet1!S71_A4Code,$AC:$AC)","v":0},{"$f":"-SUMIFS(Sheet1!S71_OY2AdjustedBudget,Sheet1!S71_A4Code,$AC:$AC)","v":0},null,null,null,null,null,null,null,null,null,null,null,null,null,null,null,"1400"]
["Transfers and subsidies",null,{"$f":"-SUMIFS(Sheet1!S71_OriginalBudget,Sheet1!S71_A4Code,$AC:$AC)","v":196149053},{"$f":"-SUMIFS(Sheet1!S71_SpecialAdjustedBudget,Sheet1!S71_A4Code,$AC:$AC)","v":0},null,null,null,null,{"$f":"SUMIFS(Sheet1!S71_AdjustmentAmount,Sheet1!S71_A4Code,$AC:$AC)","v":-2477410},-2477410,193671643,{"$f":"-SUMIFS(Sheet1!S71_OY1AdjustedBudget,Sheet1!S71_A4Code,$AC:$AC)","v":198437000},{"$f":"-SUMIFS(Sheet1!S71_OY2AdjustedBudget,Sheet1!S71_A4Code,$AC:$AC)","v":211288000},null,null,null,null,null,null,null,null,null,null,null,null,null,null,null,"1500"]
["Other revenue",2,{"$f":"'SB1'!C68","v":466502},{"$f":"'SB1'!D68","v":0},{"$f":"'SB1'!E68","v":0},{"$f":"'SB1'!F68","v":0},{"$f":"'SB1'!G68","v":0},{"$f":"'SB1'!H68","v":0},{"$f":"'SB1'!I68","v":114072},114072,580574,{"$f":"'SB1'!L68","v":515218},{"$f":"'SB1'!M68","v":539515},null,null,null,null,null,null,null,null,null,null,null,null,null,null,null,"1600"]
["Gains",null,{"$f":"-SUMIFS(Sheet1!S71_OriginalBudget,Sheet1!S71_A4Code,$AC:$AC)","v":0},{"$f":"-SUMIFS(Sheet1!S71_SpecialAdjustedBudget,Sheet1!S71_A4Code,$AC:$AC)","v":0},null,null,null,null,{"$f":"SUMIFS(Sheet1!S71_AdjustmentAmount,Sheet1!S71_A4Code,$AC:$AC)","v":0},0,0,{"$f":"-SUMIFS(Sheet1!S71_OY1AdjustedBudget,Sheet1!S71_A4Code,$AC:$AC)","v":0},{"$f":"-SUMIFS(Sheet1!S71_OY2AdjustedBudget,Sheet1!S71_A4Code,$AC:$AC)","v":0},null,null,null,null,null,null,null,null,null,null,null,null,null,null,null,"1700"]
["Total Revenue (excluding capital transfers and contributions)",null,{"$f":"SUM(C7:C11)+SUM(C13:C22)","v":228193202},{"$f":"SUM(D7:D11)+SUM(D13:D22)","v":0},0,0,0,0,-5606308,{"$f":"SUM(J7:J11)+SUM(J13:J22)","v":-5606308},{"$f":"SUM(K7:K11)+SUM(K13:K22)","v":222586894},{"$f":"SUM(L7:L11)+SUM(L13:L22)","v":236365648},{"$f":"SUM(M7:M11)+SUM(M13:M22)","v":251062001}]
[]
["Expenditure By Type"]
["Employee related costs",null,{"$f":"'SB1'!C86","v":92974675},{"$f":"'SB1'!D86","v":0},{"$f":"'SB1'!E86","v":0},{"$f":"'SB1'!F86","v":0},{"$f":"'SB1'!G86","v":0},{"$f":"'SB1'!H86","v":0},{"$f":"'SB1'!I86","v":-13924784},{"$f":"SUM(E26:I26)","v":-13924784},{"$f":"IF(D26=0,C26+J26,D26+J26)","v":79049891},{"$f":"'SB1'!L86","v":94818716},{"$f":"'SB1'!M86","v":99085565},null,null,null,null,null,null,null,null,null,null,null,null,null,null,null,"2000"]
["Remuneration of councillors",null,{"$f":"SUMIFS(Sheet1!S71_OriginalBudget,Sheet1!S71_A4Code,$AC:$AC)","v":16522612},{"$f":"SUMIFS(Sheet1!S71_SpecialAdjustedBudget,Sheet1!S71_A4Code,$AC:$AC)","v":0},null,null,null,null,{"$f":"SUMIFS(Sheet1!S71_AdjustmentAmount,Sheet1!S71_A4Code,$AC:$AC)","v":-2494233},-2494233,14028379,{"$f":"SUMIFS(Sheet1!S71_OY1AdjustedBudget,Sheet1!S71_A4Code,$AC:$AC)","v":14502609},{"$f":"SUMIFS(Sheet1!S71_OY2AdjustedBudget,Sheet1!S71_A4Code,$AC:$AC)","v":15155229},null,null,null,null,null,null,null,null,null,null,null,null,null,null,null,"2100"]
["Debt impairment",null,{"$f":"SUMIFS(Sheet1!S71_OriginalBudget,Sheet1!S71_A4Code,$AC:$AC)","v":3944747},{"$f":"SUMIFS(Sheet1!S71_SpecialAdjustedBudget,Sheet1!S71_A4Code,$AC:$AC)","v":0},null,null,null,null,{"$f":"SUMIFS(Sheet1!S71_AdjustmentAmount,Sheet1!S71_A4Code,$AC:$AC)","v":-2550031},-2550031,1394716,{"$f":"SUMIFS(Sheet1!S71_OY1AdjustedBudget,Sheet1!S71_A4Code,$AC:$AC)","v":5360596},{"$f":"SUMIFS(Sheet1!S71_OY2AdjustedBudget,Sheet1!S71_A4Code,$AC:$AC)","v":5601822},null,null,null,null,null,null,null,null,null,null,null,null,null,null,null,"2200"]
["Depreciation & asset impairment",null,{"$f":"'SB1'!C102","v":24015762},{"$f":"'SB1'!D102","v":0},{"$f":"'SB1'!E102","v":0},{"$f":"'SB1'!F102","v":0},{"$f":"'SB1'!G102","v":0},{"$f":"'SB1'!H102","v":0},{"$f":"'SB1'!I102","v":280228},280228,24295990,{"$f":"'SB1'!L102","v":31222184},{"$f":"'SB1'!M102","v":34392913},null,null,null,null,null,null,null,null,null,null,null,null,null,null,null,"2300"]
["Finance charges",null,{"$f":"SUMIFS(Sheet1!S71_OriginalBudget,Sheet1!S71_A4Code,$AC:$AC)","v":995472},{"$f":"SUMIFS(Sheet1!S71_SpecialAdjustedBudget,Sheet1!S71_A4Code,$AC:$AC)","v":0},null,null,null,null,{"$f":"SUMIFS(Sheet1!S71_AdjustmentAmount,Sheet1!S71_A4Code,$AC:$AC)","v":-500000},-500000,495472,{"$f":"SUMIFS(Sheet1!S71_OY1AdjustedBudget,Sheet1!S71_A4Code,$AC:$AC)","v":110770},{"$f":"SUMIFS(Sheet1!S71_OY2AdjustedBudget,Sheet1!S71_A4Code,$AC:$AC)","v":115755},null,null,null,null,null,null,null,null,null,null,null,null,null,null,null,"2400"]
["Bulk purchases - electricity",null,{"$f":"'SB1'!C105","v":0},{"$f":"'SB1'!D105","v":0},{"$f":"'SB1'!E105","v":0},{"$f":"'SB1'!F105","v":0},{"$f":"'SB1'!G105","v":0},{"$f":"'SB1'!H105","v":0},{"$f":"'SB1'!I105","v":0},0,0,{"$f":"'SB1'!L105","v":0},{"$f":"'SB1'!M105","v":0},null,null,null,null,null,null,null,null,null,null,null,null,null,null,null,"2500"]
["Inventory consumed",null,{"$f":"'SB1'!C188","v":1417250},{"$f":"'SB1'!D188","v":0},{"$f":"'SB1'!E188","v":0},{"$f":"'SB1'!F188","v":0},{"$f":"'SB1'!G188","v":0},{"$f":"'SB1'!H188","v":0},{"$f":"'SB1'!I188","v":0},0,1417250,{"$f":"'SB1'!L188","v":1479609},{"$f":"'SB1'!M188","v":1546191},null,null,null,null,null,null,null,null,null,null,null,null,null,null,null,"2600"]
["Contracted services",null,{"$f":"'SB1'!C146","v":32771477},{"$f":"'SB1'!D146","v":0},{"$f":"'SB1'!E146","v":0},{"$f":"'SB1'!F146","v":0},{"$f":"'SB1'!G146","v":0},{"$f":"'SB1'!H146","v":0},{"$f":"'SB1'!I146","v":4521675},4521675,37293152,{"$f":"'SB1'!L146","v":31450844},{"$f":"'SB1'!M146","v":32859397},null,null,null,null,null,null,null,null,null,null,null,null,null,null,null,"2700"]
["Transfers and subsidies",null,{"$f":"SUMIFS(Sheet1!S71_OriginalBudget,Sheet1!S71_A4Code,$AC:$AC)","v":9010000},{"$f":"SUMIFS(Sheet1!S71_SpecialAdjustedBudget,Sheet1!S71_A4Code,$AC:$AC)","v":0},null,null,null,null,{"$f":"SUMIFS(Sheet1!S71_AdjustmentAmount,Sheet1!S71_A4Code,$AC:$AC)","v":4527189},4527189,13537189,{"$f":"SUMIFS(Sheet1!S71_OY1AdjustedBudget,Sheet1!S71_A4Code,$AC:$AC)","v":1550780},{"$f":"SUMIFS(Sheet1!S71_OY2AdjustedBudget,Sheet1!S71_A4Code,$AC:$AC)","v":1620559},null,null,null,null,null,null,null,null,null,null,null,null,null,null,null,"2800"]
["Other expenditure",null,{"$f":"'SB1'!C176","v":34631141},{"$f":"'SB1'!D176","v":0},{"$f":"'SB1'!E176","v":0},{"$f":"'SB1'!F176","v":0},{"$f":"'SB1'!G176","v":0},{"$f":"'SB1'!H176","v":0},{"$f":"'SB1'!I176","v":16180714},16180714,50811855,{"$f":"'SB1'!L176","v":41184324},{"$f":"'SB1'!M176","v":43074079},null,null,null,null,null,null,null,null,null,null,null,null,null,null,null,"2900"]
["Losses",null,{"$f":"SUMIFS(Sheet1!S71_OriginalBudget,Sheet1!S71_A4Code,$AC:$AC)","v":0},{"$f":"SUMIFS(Sheet1!S71_SpecialAdjustedBudget,Sheet1!S71_A4Code,$AC:$AC)","v":0},null,null,null,null,{"$f":"SUMIFS(Sheet1!S71_AdjustmentAmount,Sheet1!S71_A4Code,$AC:$AC)","v":0},0,0,{"$f":"SUMIFS(Sheet1!S71_OY1AdjustedBudget,Sheet1!S71_A4Code,$AC:$AC)","v":0},{"$f":"SUMIFS(Sheet1!S71_OY2AdjustedBudget,Sheet1!S71_A4Code,$AC:$AC)","v":0},null,null,null,null,null,null,null,null,null,null,null,null,null,null,null,"3000"]
["Total Expenditure",null,{"$f":"SUM(C26:C36)","v":216283136},0,0,0,0,0,6040758,6040758,222323894,221680432,233451510]
[]
["Surplus/(Deficit)",null,{"$f":"C23-C37","v":11910066},0,0,0,0,0,-11647066,-11647066,263000,14685216,17610491]
["Transfers and subsidies - capital (monetary allocations) (National / Provincial and District)",null,{"$f":"-SUMIFS(Sheet1!S71_OriginalBudget,Sheet1!S71_A4Code,$AC:$AC)","v":35297947},{"$f":"-SUMIFS(Sheet1!S71_SpecialAdjustedBudget,Sheet1!S71_A4Code,$AC:$AC)","v":0},null,null,null,null,{"$f":"SUMIFS(Sheet1!S71_AdjustmentAmount,Sheet1!S71_A4Code,$AC:$AC)","v":2502962},{"$f":"SUM(E40:I40)","v":2502962},{"$f":"IF(D40=0,C40+J40,D40+J40)","v":37800909},{"$f":"-SUMIFS(Sheet1!S71_OY1AdjustedBudget,Sheet1!S71_A4Code,$AC:$AC)","v":35007500},{"$f":"-SUMIFS(Sheet1!S71_OY2AdjustedBudget,Sheet1!S71_A4Code,$AC:$AC)","v":36582838},null,null,null,null,null,null,null,null,null,null,null,null,null,null,null,"3300"]
["Transfers and subsidies - capital (monetary allocations) (National / Provincial Departmental Agencies, Households, Non-profit Institutions, Private Enterprises, Public Corporatons, Higher Educational Institutions)",null,{"$f":"-SUMIFS(Sheet1!S71_OriginalBudget,Sheet1!S71_A4Code,$AC:$AC)","v":0},{"$f":"-SUMIFS(Sheet1!S71_SpecialAdjustedBudget,Sheet1!S71_A4Code,$AC:$AC)","v":0},null,null,null,null,{"$f":"SUMIFS(Sheet1!S71_AdjustmentAmount,Sheet1!S71_A4Code,$AC:$AC)","v":3000000},{"$f":"SUM(E41:I41)","v":3000000},{"$f":"IF(D41=0,C41+J41,D41+J41)","v":3000000},{"$f":"-SUMIFS(Sheet1!S71_OY1AdjustedBudget,Sheet1!S71_A4Code,$AC:$AC)","v":0},{"$f":"-SUMIFS(Sheet1!S71_OY2AdjustedBudget,Sheet1!S71_A4Code,$AC:$AC)","v":0},null,null,null,null,null,null,null,null,null,null,null,null,null,null,null,"3400"]
["Transfers and subsidies - capital (in-kind - all) ",null,{"$f":"-SUMIFS(Sheet1!S71_OriginalBudget,Sheet1!S71_A4Code,$AC:$AC)","v":0},{"$f":"-SUMIFS(Sheet1!S71_SpecialAdjustedBudget,Sheet1!S71_A4Code,$AC:$AC)","v":0},null,null,null,null,{"$f":"SUMIFS(Sheet1!S71_AdjustmentAmount,Sheet1!S71_A4Code,$AC:$AC)","v":0},{"$f":"SUM(E42:I42)","v":0},{"$f":"IF(D42=0,C42+J42,D42+J42)","v":0},{"$f":"-SUMIFS(Sheet1!S71_OY1AdjustedBudget,Sheet1!S71_A4Code,$AC:$AC)","v":0},{"$f":"-SUMIFS(Sheet1!S71_OY2AdjustedBudget,Sheet1!S71_A4Code,$AC:$AC)","v":0},null,null,null,null,null,null,null,null,null,null,null,null,null,null,null,"3500"]
["Surplus/(Deficit) before taxation",null,{"$f":"SUM(C39:C42)","v":47208013},0,0,0,0,0,-6144104,-6144104,41063909,49692716,54193329]
["Taxation",null,{"$f":"SUMIFS(Sheet1!S71_OriginalBudget,Sheet1!S71_A4Code,$AC:$AC)","v":0},{"$f":"-SUMIFS(Sheet1!S71_SpecialAdjustedBudget,Sheet1!S71_A4Code,$AC:$AC)","v":0},null,null,null,null,{"$f":"SUMIFS(Sheet1!S71_AdjustmentAmount,Sheet1!S71_A4Code,$AC:$AC)","v":0},{"$f":"SUM(E44:I44)","v":0},{"$f":"IF(D44=0,C44+J44,D44+J44)","v":0},{"$f":"SUMIFS(Sheet1!S71_OY1AdjustedBudget,Sheet1!S71_A4Code,$AC:$AC)","v":0},{"$f":"SUMIFS(Sheet1!S71_OY2AdjustedBudget,Sheet1!S71_A4Code,$AC:$AC)","v":0},null,null,null,null,null,null,null,null,null,null,null,null,null,null,null,"3700"]
["Surplus/(Deficit) after taxation",null,{"$f":"C43-C44","v":47208013},0,0,0,0,0,-6144104,-6144104,41063909,49692716,54193329]
["Attributable to minorities",null,{"$f":"SUMIFS(Sheet1!S71_OriginalBudget,Sheet1!S71_A4Code,$AC:$AC)","v":0},{"$f":"-SUMIFS(Sheet1!S71_SpecialAdjustedBudget,Sheet1!S71_A4Code,$AC:$AC)","v":0},null,null,null,null,{"$f":"SUMIFS(Sheet1!S71_AdjustmentAmount,Sheet1!S71_A4Code,$AC:$AC)","v":0},{"$f":"SUM(E46:I46)","v":0},{"$f":"IF(D46=0,C46+J46,D46+J46)","v":0},{"$f":"SUMIFS(Sheet1!S71_OY1AdjustedBudget,Sheet1!S71_A4Code,$AC:$AC)","v":0},{"$f":"SUMIFS(Sheet1!S71_OY2AdjustedBudget,Sheet1!S71_A4Code,$AC:$AC)","v":0},null,null,null,null,null,null,null,null,null,null,null,null,null,null,null,"3900"]
["Surplus/(Deficit) attributable to municipality",null,{"$f":"SUM(C45:C46)","v":47208013},0,0,0,0,0,-6144104,-6144104,41063909,49692716,54193329]
["Share of surplus/ (deficit) of associate",null,{"$f":"SUMIFS(Sheet1!S71_OriginalBudget,Sheet1!S71_A4Code,$AC:$AC)","v":0},{"$f":"-SUMIFS(Sheet1!S71_SpecialAdjustedBudget,Sheet1!S71_A4Code,$AC:$AC)","v":0},null,null,null,null,{"$f":"SUMIFS(Sheet1!S71_AdjustmentAmount,Sheet1!S71_A4Code,$AC:$AC)","v":0},{"$f":"SUM(E48:I48)","v":0},{"$f":"IF(D48=0,C48+J48,D48+J48)","v":0},{"$f":"SUMIFS(Sheet1!S71_OY1AdjustedBudget,Sheet1!S71_A4Code,$AC:$AC)","v":0},{"$f":"SUMIFS(Sheet1!S71_OY2AdjustedBudget,Sheet1!S71_A4Code,$AC:$AC)","v":0},null,null,null,null,null,null,null,null,null,null,null,null,null,null,null,"4100"]
["Surplus/ (Deficit) for the year",null,{"$f":"C47+C48","v":47208013},0,0,0,0,0,-6144104,-6144104,41063909,49692716,54193329]
[{"$f":"head27a","v":"References"}]
["1. Classifications are revenue sources and expenditure type"]
["2. Detail to be provided in Table SB1"]
["3. Only complete if a previous adjusted budget has been approved in the same financial year. Reflect most recent adjusted budget."]
["4. Additional cash-backed accumulated funds/unspent funds (MFMA section 18(1)(b) and section 28(2)(e)) identified after the Original Budget approved and after annual financial statements audited (note: only where underspending could not reasonably have been foreseen)"]
["5. Increases of funds approved under MFMA section 31"]
["6. Adjustments approved in accordance with MFMA section 29 "]
["7. Adjustments to transfers from National or Provincial Government"]
["8. Adjusts. = 'Other' Adjustments proposed to be approved; including revenue under-collection (MFMA section 28(2)(a)); additional revenue appropriation on existing programmes (section 28(2))(b); projected savings (section 28(2)(d)); error correction (section 28(2)(f))"]
["9. G = B + C + D + E + F"]
["10. Adjusted Budget H = (A or A1/2 etc) + G"]
[]
["Revenue total",null,{"$f":"C23+C40+C41+C42","v":263491149},0,0,0,0,0,-103346,-103346,263387803,271373148,287644839]

{"sheet":"B5-Capex","index":30,"n_rows":91,"n_cols":30,"rows_kept":91,"cut":false,"hidden":false,"merged":[[84,0,84,12],[86,0,86,12],[88,0,88,12],[1,0,2,0],[1,1,2,1],[78,0,78,12],[1,2,1,10],[79,0,79,11],[80,0,80,11],[81,0,81,12],[82,0,82,12],[83,0,83,12]]}
[{"$f":"muni&\" - \"&_ADJ5&\" - \"&Date","v":"EC139 Enoch Mgijima - Table B5 Adjustments Capital Expenditure Budget by vote and funding - "}]
[{"$f":"desc","v":"Description"},{"$f":"head27","v":"Ref"},{"$f":"Head2","v":"Budget Year 2021/22"},null,null,null,null,null,null,null,null,{"$f":"Head10","v":"Budget Year +1 2022/23"},{"$f":"Head11","v":"Budget Year +2 2023/24"}]
[null,null,{"$f":"Head6","v":"Original Budget"},{"$f":"Head54","v":"Prior Adjusted"},{"$f":"Head51","v":"Accum. Funds"},{"$f":"Head52","v":"Multi-year capital"},{"$f":"Head53","v":"Unfore. Unavoid."},{"$f":"Head55","v":"Nat. or Prov. Govt"},{"$f":"Head50","v":"Other Adjusts."},{"$f":"Head56","v":"Total Adjusts."},{"$f":"Head7","v":"Adjusted Budget"},{"$f":"Head7","v":"Adjusted Budget"},{"$f":"Head7","v":"Adjusted Budget"}]
[null,null,null,5,6,7,8,9,10,11,12]
["R thousands",null,"A","A1","B","C","D","E","F","G","H"]
["Capital expenditure - Vote"]
["Multi-year expenditure to be adjusted",2]
[{"$f":"B5B!A8","v":"Vote 1 - Finance and Admin"},null,{"$f":"B5B!C8","v":0},{"$f":"B5B!D8","v":0},{"$f":"B5B!E8","v":0},{"$f":"B5B!F8","v":0},{"$f":"B5B!G8","v":0},{"$f":"B5B!H8","v":0},{"$f":"B5B!I8","v":0},{"$f":"SUM(E8:I8)","v":0},{"$f":"IF(D8=0,C8+J8,D8+J8)","v":0},{"$f":"B5B!L8","v":0},{"$f":"B5B!M8","v":0}]
[{"$f":"B5B!A19","v":"Vote 2 - Executive and council"},null,{"$f":"B5B!C19","v":0},{"$f":"B5B!D19","v":0},{"$f":"B5B!E19","v":0},{"$f":"B5B!F19","v":0},{"$f":"B5B!G19","v":0},{"$f":"B5B!H19","v":0},{"$f":"B5B!I19","v":0},{"$f":"SUM(E9:I9)","v":0},0,{"$f":"B5B!L19","v":0},{"$f":"B5B!M19","v":0}]
[{"$f":"B5B!A30","v":"Vote 3 - Community and social services"},null,{"$f":"B5B!C30","v":0},{"$f":"B5B!D30","v":0},{"$f":"B5B!E30","v":0},{"$f":"B5B!F30","v":0},{"$f":"B5B!G30","v":0},{"$f":"B5B!H30","v":0},{"$f":"B5B!I30","v":0},0,0,{"$f":"B5B!L30","v":0},{"$f":"B5B!M30","v":0}]
[{"$f":"B5B!A41","v":"Vote 4 - Internal Audit"},null,{"$f":"B5B!C41","v":0},{"$f":"B5B!D41","v":0},{"$f":"B5B!E41","v":0},{"$f":"B5B!F41","v":0},{"$f":"B5B!G41","v":0},{"$f":"B5B!H41","v":0},{"$f":"B5B!I41","v":0},0,0,{"$f":"B5B!L41","v":0},{"$f":"B5B!M41","v":0}]
[{"$f":"B5B!A52","v":"Vote 5 - Waste Management"},null,{"$f":"B5B!C52","v":0},{"$f":"B5B!D52","v":0},{"$f":"B5B!E52","v":0},{"$f":"B5B!F52","v":0},{"$f":"B5B!G52","v":0},{"$f":"B5B!H52","v":0},{"$f":"B5B!I52","v":0},0,0,{"$f":"B5B!L52","v":0},{"$f":"B5B!M52","v":0}]
[{"$f":"B5B!A63","v":"Vote 6 - Energy Sources"},null,{"$f":"B5B!C63","v":0},{"$f":"B5B!D63","v":0},{"$f":"B5B!E63","v":0},{"$f":"B5B!F63","v":0},{"$f":"B5B!G63","v":0},{"$f":"B5B!H63","v":0},{"$f":"B5B!I63","v":0},0,0,{"$f":"B5B!L63","v":0},{"$f":"B5B!M63","v":0}]
[{"$f":"B5B!A74","v":"Vote 7 - Planning and Development"},null,{"$f":"B5B!C74","v":0},{"$f":"B5B!D74","v":0},{"$f":"B5B!E74","v":0},{"$f":"B5B!F74","v":0},{"$f":"B5B!G74","v":0},{"$f":"B5B!H74","v":0},{"$f":"B5B!I74","v":0},0,0,{"$f":"B5B!L74","v":0},{"$f":"B5B!M74","v":0}]
[{"$f":"B5B!A85","v":"Vote 8 - Public Safety"},null,{"$f":"B5B!C85","v":0},{"$f":"B5B!D85","v":0},{"$f":"B5B!E85","v":0},{"$f":"B5B!F85","v":0},{"$f":"B5B!G85","v":0},{"$f":"B5B!H85","v":0},{"$f":"B5B!I85","v":0},0,0,{"$f":"B5B!L85","v":0},{"$f":"B5B!M85","v":0}]
[{"$f":"B5B!A96","v":"Vote 9 - Roads"},null,{"$f":"B5B!C96","v":0},{"$f":"B5B!D96","v":0},{"$f":"B5B!E96","v":0},{"$f":"B5B!F96","v":0},{"$f":"B5B!G96","v":0},{"$f":"B5B!H96","v":0},{"$f":"B5B!I96","v":0},0,0,{"$f":"B5B!L96","v":0},{"$f":"B5B!M96","v":0}]
[{"$f":"B5B!A107","v":"Vote 10 - Sport and Recreation"},null,{"$f":"B5B!C107","v":0},{"$f":"B5B!D107","v":0},{"$f":"B5B!E107","v":0},{"$f":"B5B!F107","v":0},{"$f":"B5B!G107","v":0},{"$f":"B5B!H107","v":0},{"$f":"B5B!I107","v":0},0,0,{"$f":"B5B!L107","v":0},{"$f":"B5B!M107","v":0}]
[{"$f":"B5B!A118","v":"Vote 11 - [NAME OF VOTE 11]"},null,{"$f":"B5B!C118","v":0},{"$f":"B5B!D118","v":0},{"$f":"B5B!E118","v":0},{"$f":"B5B!F118","v":0},{"$f":"B5B!G118","v":0},{"$f":"B5B!H118","v":0},{"$f":"B5B!I118","v":0},0,0,{"$f":"B5B!L118","v":0},{"$f":"B5B!M118","v":0}]
[{"$f":"B5B!A129","v":"Vote 12 - [NAME OF VOTE 12]"},null,{"$f":"B5B!C129","v":0},{"$f":"B5B!D129","v":0},{"$f":"B5B!E129","v":0},{"$f":"B5B!F129","v":0},{"$f":"B5B!G129","v":0},{"$f":"B5B!H129","v":0},{"$f":"B5B!I129","v":0},0,0,{"$f":"B5B!L129","v":0},{"$f":"B5B!M129","v":0}]
[{"$f":"B5B!A140","v":"Vote 13 - [NAME OF VOTE 13]"},null,{"$f":"B5B!C140","v":0},{"$f":"B5B!D140","v":0},{"$f":"B5B!E140","v":0},{"$f":"B5B!F140","v":0},{"$f":"B5B!G140","v":0},{"$f":"B5B!H140","v":0},{"$f":"B5B!I140","v":0},0,0,{"$f":"B5B!L140","v":0},{"$f":"B5B!M140","v":0}]
[{"$f":"B5B!A151","v":"Vote 14 - [NAME OF VOTE 14]"},null,{"$f":"B5B!C151","v":0},{"$f":"B5B!D151","v":0},{"$f":"B5B!E151","v":0},{"$f":"B5B!F151","v":0},{"$f":"B5B!G151","v":0},{"$f":"B5B!H151","v":0},{"$f":"B5B!I151","v":0},0,0,{"$f":"B5B!L151","v":0},{"$f":"B5B!M151","v":0}]
[{"$f":"B5B!A162","v":"Vote 15 - [NAME OF VOTE 15]"},null,{"$f":"B5B!C162","v":0},{"$f":"B5B!D162","v":0},{"$f":"B5B!E162","v":0},{"$f":"B5B!F162","v":0},{"$f":"B5B!G162","v":0},{"$f":"B5B!H162","v":0},{"$f":"B5B!I162","v":0},0,0,{"$f":"B5B!L162","v":0},{"$f":"B5B!M162","v":0}]
["Capital multi-year expenditure sub-total",3,{"$f":"SUM(C8:C22)","v":0},{"$f":"SUM(D8:D22)","v":0},0,0,0,0,0,{"$f":"SUM(J8:J22)","v":0},{"$f":"SUM(K8:K22)","v":0},{"$f":"SUM(L8:L22)","v":0},{"$f":"SUM(M8:M22)","v":0}]
[]
["Single-year expenditure to be adjusted",2]
[{"$f":"B5B!A177","v":"Vote 1 - Finance and Admin"},null,{"$f":"B5B!C177","v":4588495},{"$f":"B5B!D177","v":0},{"$f":"B5B!E177","v":0},{"$f":"B5B!F177","v":0},{"$f":"B5B!G177","v":0},{"$f":"B5B!H177","v":0},{"$f":"B5B!I177","v":-50000},{"$f":"SUM(E26:I26)","v":-50000},{"$f":"IF(D26=0,C26+J26,D26+J26)","v":4538495},{"$f":"B5B!L177","v":3344000},{"$f":"B5B!M177","v":3494482}]
[{"$f":"B5B!A188","v":"Vote 2 - Executive and council"},null,{"$f":"B5B!C188","v":0},{"$f":"B5B!D188","v":0},{"$f":"B5B!E188","v":0},{"$f":"B5B!F188","v":0},{"$f":"B5B!G188","v":0},{"$f":"B5B!H188","v":0},{"$f":"B5B!I188","v":150000},150000,150000,{"$f":"B5B!L188","v":209000},{"$f":"B5B!M188","v":218405}]
[{"$f":"B5B!A199","v":"Vote 3 - Community and social services"},null,{"$f":"B5B!C199","v":11500000},{"$f":"B5B!D199","v":0},{"$f":"B5B!E199","v":0},{"$f":"B5B!F199","v":0},{"$f":"B5B!G199","v":0},{"$f":"B5B!H199","v":0},{"$f":"B5B!I199","v":2220000},2220000,13720000,{"$f":"B5B!L199","v":9405000},{"$f":"B5B!M199","v":9828225}]
[{"$f":"B5B!A210","v":"Vote 4 - Internal Audit"},null,{"$f":"B5B!C210","v":0},{"$f":"B5B!D210","v":0},{"$f":"B5B!E210","v":0},{"$f":"B5B!F210","v":0},{"$f":"B5B!G210","v":0},{"$f":"B5B!H210","v":0},{"$f":"B5B!I210","v":0},0,0,{"$f":"B5B!L210","v":0},{"$f":"B5B!M210","v":0}]
[{"$f":"B5B!A221","v":"Vote 5 - Waste Management"},null,{"$f":"B5B!C221","v":950000},{"$f":"B5B!D221","v":0},{"$f":"B5B!E221","v":0},{"$f":"B5B!F221","v":0},{"$f":"B5B!G221","v":0},{"$f":"B5B!H221","v":0},{"$f":"B5B!I221","v":-950000},-950000,0,{"$f":"B5B!L221","v":209000},{"$f":"B5B!M221","v":218405}]
[{"$f":"B5B!A232","v":"Vote 6 - Energy Sources"},null,{"$f":"B5B!C232","v":0},{"$f":"B5B!D232","v":0},{"$f":"B5B!E232","v":0},{"$f":"B5B!F232","v":0},{"$f":"B5B!G232","v":0},{"$f":"B5B!H232","v":0},{"$f":"B5B!I232","v":15500000},15500000,15500000,{"$f":"B5B!L232","v":20900000},{"$f":"B5B!M232","v":21840500}]
[{"$f":"B5B!A243","v":"Vote 7 - Planning and Development"},null,{"$f":"B5B!C243","v":0},{"$f":"B5B!D243","v":0},{"$f":"B5B!E243","v":0},{"$f":"B5B!F243","v":0},{"$f":"B5B!G243","v":0},{"$f":"B5B!H243","v":0},{"$f":"B5B!I243","v":0},0,0,{"$f":"B5B!L243","v":0},{"$f":"B5B!M243","v":0}]
[{"$f":"B5B!A254","v":"Vote 8 - Public Safety"},null,{"$f":"B5B!C254","v":0},{"$f":"B5B!D254","v":0},{"$f":"B5B!E254","v":0},{"$f":"B5B!F254","v":0},{"$f":"B5B!G254","v":0},{"$f":"B5B!H254","v":0},{"$f":"B5B!I254","v":0},0,0,{"$f":"B5B!L254","v":0},{"$f":"B5B!M254","v":0}]
[{"$f":"B5B!A265","v":"Vote 9 - Roads"},null,{"$f":"B5B!C265","v":30169521},{"$f":"B5B!D265","v":0},{"$f":"B5B!E265","v":0},{"$f":"B5B!F265","v":0},{"$f":"B5B!G265","v":0},{"$f":"B5B!H265","v":0},{"$f":"B5B!I265","v":1911731},1911731,32081252,{"$f":"B5B!L265","v":35007500},{"$f":"B5B!M265","v":36582838}]
[{"$f":"B5B!A276","v":"Vote 10 - Sport and Recreation"},null,{"$f":"B5B!C276","v":0},{"$f":"B5B!D276","v":0},{"$f":"B5B!E276","v":0},{"$f":"B5B!F276","v":0},{"$f":"B5B!G276","v":0},{"$f":"B5B!H276","v":0},{"$f":"B5B!I276","v":0},0,0,{"$f":"B5B!L276","v":0},{"$f":"B5B!M276","v":0}]
[{"$f":"B5B!A287","v":"Vote 11 - [NAME OF VOTE 11]"},null,{"$f":"B5B!C287","v":0},{"$f":"B5B!D287","v":0},{"$f":"B5B!E287","v":0},{"$f":"B5B!F287","v":0},{"$f":"B5B!G287","v":0},{"$f":"B5B!H287","v":0},{"$f":"B5B!I287","v":0},0,0,{"$f":"B5B!L287","v":0},{"$f":"B5B!M287","v":0}]
[{"$f":"B5B!A298","v":"Vote 12 - [NAME OF VOTE 12]"},null,{"$f":"B5B!C298","v":0},{"$f":"B5B!D298","v":0},{"$f":"B5B!E298","v":0},{"$f":"B5B!F298","v":0},{"$f":"B5B!G298","v":0},{"$f":"B5B!H298","v":0},{"$f":"B5B!I298","v":0},0,{"$f":"IF(D37=0,C37+J37,D37+J37)","v":0},{"$f":"B5B!L298","v":0},{"$f":"B5B!M298","v":0}]
[{"$f":"B5B!A309","v":"Vote 13 - [NAME OF VOTE 13]"},null,{"$f":"B5B!C309","v":0},{"$f":"B5B!D309","v":0},{"$f":"B5B!E309","v":0},{"$f":"B5B!F309","v":0},{"$f":"B5B!G309","v":0},{"$f":"B5B!H309","v":0},{"$f":"B5B!I309","v":0},0,0,{"$f":"B5B!L309","v":0},{"$f":"B5B!M309","v":0}]
[{"$f":"B5B!A320","v":"Vote 14 - [NAME OF VOTE 14]"},null,{"$f":"B5B!C320","v":0},{"$f":"B5B!D320","v":0},{"$f":"B5B!E320","v":0},{"$f":"B5B!F320","v":0},{"$f":"B5B!G320","v":0},{"$f":"B5B!H320","v":0},{"$f":"B5B!I320","v":0},0,0,{"$f":"B5B!L320","v":0},{"$f":"B5B!M320","v":0}]
[{"$f":"B5B!A331","v":"Vote 15 - [NAME OF VOTE 15]"},null,{"$f":"B5B!C331","v":0},{"$f":"B5B!D331","v":0},{"$f":"B5B!E331","v":0},{"$f":"B5B!F331","v":0},{"$f":"B5B!G331","v":0},{"$f":"B5B!H331","v":0},{"$f":"B5B!I331","v":0},0,0,{"$f":"B5B!L331","v":0},{"$f":"B5B!M331","v":0}]
["Capital single-year expenditure sub-total",null,{"$f":"SUM(C26:C40)","v":47208016},{"$f":"SUM(D26:D40)","v":0},0,0,0,0,18781731,{"$f":"SUM(J26:J40)","v":18781731},{"$f":"SUM(K26:K40)","v":65989747},{"$f":"SUM(L26:L40)","v":69074500},{"$f":"SUM(M26:M40)","v":72182855}]
["Total Capital Expenditure - Vote",null,{"$f":"C41+C23","v":47208016},{"$f":"D41+D23","v":0},0,0,0,0,18781731,{"$f":"J23+J41","v":18781731},{"$f":"K23+K41","v":65989747},{"$f":"L41+L23","v":69074500},{"$f":"M41+M23","v":72182855}]
[]
["Capital Expenditure - Functional"]
["Governance and administration",null,{"$f":"SUM(C46:C48)","v":4588495},0,0,0,0,0,100000,{"$f":"SUM(J46:J48)","v":100000},4688495,3553000,3712887]
["Executive and council",null,{"$f":"SUMIFS(Sheet1!S71_OriginalBudget,Sheet1!S71_A2Code,$AC:$AC,Sheet1!S71_A5CapexCode,$AD:$AD)","v":0},{"$f":"SUMIFS(Sheet1!S71_SpecialAdjustedBudget,Sheet1!S71_A2Code,$AC:$AC,Sheet1!S71_A5CapexCode,$AD:$AD)","v":0},null,null,null,null,{"$f":"SUMIFS(Sheet1!S71_AdjustmentAmount,Sheet1!S71_A2Code,$AC:$AC,Sheet1!S71_A5CapexCode,$AD:$AD)","v":150000},{"$f":"SUM(E46:I46)","v":150000},{"$f":"IF(D46=0,C46+J46,D46+J46)","v":150000},{"$f":"SUMIFS(Sheet1!S71_OY1AdjustedBudget,Sheet1!S71_A2Code,$AC:$AC,Sheet1!S71_A5CapexCode,$AD:$AD)","v":209000},{"$f":"SUMIFS(Sheet1!S71_OY2AdjustedBudget,Sheet1!S71_A2Code,$AC:$AC,Sheet1!S71_A5CapexCode,$AD:$AD)","v":218405},null,null,null,null,null,null,null,null,null,null,null,null,null,null,null,"1100","CE"]
["Finance and administration",null,{"$f":"SUMIFS(Sheet1!S71_OriginalBudget,Sheet1!S71_A2Code,$AC:$AC,Sheet1!S71_A5CapexCode,$AD:$AD)","v":4588495},{"$f":"SUMIFS(Sheet1!S71_SpecialAdjustedBudget,Sheet1!S71_A2Code,$AC:$AC,Sheet1!S71_A5CapexCode,$AD:$AD)","v":0},null,null,null,null,{"$f":"SUMIFS(Sheet1!S71_AdjustmentAmount,Sheet1!S71_A2Code,$AC:$AC,Sheet1!S71_A5CapexCode,$AD:$AD)","v":-50000},{"$f":"SUM(E47:I47)","v":-50000},{"$f":"IF(D47=0,C47+J47,D47+J47)","v":4538495},{"$f":"SUMIFS(Sheet1!S71_OY1AdjustedBudget,Sheet1!S71_A2Code,$AC:$AC,Sheet1!S71_A5CapexCode,$AD:$AD)","v":3344000},{"$f":"SUMIFS(Sheet1!S71_OY2AdjustedBudget,Sheet1!S71_A2Code,$AC:$AC,Sheet1!S71_A5CapexCode,$AD:$AD)","v":3494482},null,null,null,null,null,null,null,null,null,null,null,null,null,null,null,"1200","CE"]
["Internal audit",null,{"$f":"SUMIFS(Sheet1!S71_OriginalBudget,Sheet1!S71_A2Code,$AC:$AC,Sheet1!S71_A5CapexCode,$AD:$AD)","v":0},{"$f":"SUMIFS(Sheet1!S71_SpecialAdjustedBudget,Sheet1!S71_A2Code,$AC:$AC,Sheet1!S71_A5CapexCode,$AD:$AD)","v":0},null,null,null,null,{"$f":"SUMIFS(Sheet1!S71_AdjustmentAmount,Sheet1!S71_A2Code,$AC:$AC,Sheet1!S71_A5CapexCode,$AD:$AD)","v":0},{"$f":"SUM(E48:I48)","v":0},{"$f":"IF(D48=0,C48+J48,D48+J48)","v":0},{"$f":"SUMIFS(Sheet1!S71_OY1AdjustedBudget,Sheet1!S71_A2Code,$AC:$AC,Sheet1!S71_A5CapexCode,$AD:$AD)","v":0},{"$f":"SUMIFS(Sheet1!S71_OY2AdjustedBudget,Sheet1!S71_A2Code,$AC:$AC,Sheet1!S71_A5CapexCode,$AD:$AD)","v":0},null,null,null,null,null,null,null,null,null,null,null,null,null,null,null,"1300","CE"]
["Community and public safety",null,{"$f":"SUM(C50:C54)","v":11500000},0,0,0,0,0,2220000,{"$f":"SUM(J50:J54)","v":2220000},13720000,11495000,12012275]
["Community and social services",null,{"$f":"SUMIFS(Sheet1!S71_OriginalBudget,Sheet1!S71_A2Code,$AC:$AC,Sheet1!S71_A5CapexCode,$AD:$AD)","v":11500000},{"$f":"SUMIFS(Sheet1!S71_SpecialAdjustedBudget,Sheet1!S71_A2Code,$AC:$AC,Sheet1!S71_A5CapexCode,$AD:$AD)","v":0},null,null,null,null,{"$f":"SUMIFS(Sheet1!S71_AdjustmentAmount,Sheet1!S71_A2Code,$AC:$AC,Sheet1!S71_A5CapexCode,$AD:$AD)","v":2220000},{"$f":"SUM(E50:I50)","v":2220000},{"$f":"IF(D50=0,C50+J50,D50+J50)","v":13720000},{"$f":"SUMIFS(Sheet1!S71_OY1AdjustedBudget,Sheet1!S71_A2Code,$AC:$AC,Sheet1!S71_A5CapexCode,$AD:$AD)","v":9405000},{"$f":"SUMIFS(Sheet1!S71_OY2AdjustedBudget,Sheet1!S71_A2Code,$AC:$AC,Sheet1!S71_A5CapexCode,$AD:$AD)","v":9828225},null,null,null,null,null,null,null,null,null,null,null,null,null,null,null,"2100","CE"]
["Sport and recreation",null,{"$f":"SUMIFS(Sheet1!S71_OriginalBudget,Sheet1!S71_A2Code,$AC:$AC,Sheet1!S71_A5CapexCode,$AD:$AD)","v":0},{"$f":"SUMIFS(Sheet1!S71_SpecialAdjustedBudget,Sheet1!S71_A2Code,$AC:$AC,Sheet1!S71_A5CapexCode,$AD:$AD)","v":0},null,null,null,null,{"$f":"SUMIFS(Sheet1!S71_AdjustmentAmount,Sheet1!S71_A2Code,$AC:$AC,Sheet1!S71_A5CapexCode,$AD:$AD)","v":0},{"$f":"SUM(E51:I51)","v":0},{"$f":"IF(D51=0,C51+J51,D51+J51)","v":0},{"$f":"SUMIFS(Sheet1!S71_OY1AdjustedBudget,Sheet1!S71_A2Code,$AC:$AC,Sheet1!S71_A5CapexCode,$AD:$AD)","v":2090000},{"$f":"SUMIFS(Sheet1!S71_OY2AdjustedBudget,Sheet1!S71_A2Code,$AC:$AC,Sheet1!S71_A5CapexCode,$AD:$AD)","v":2184050},null,null,null,null,null,null,null,null,null,null,null,null,null,null,null,"2200","CE"]
["Public safety",null,{"$f":"SUMIFS(Sheet1!S71_OriginalBudget,Sheet1!S71_A2Code,$AC:$AC,Sheet1!S71_A5CapexCode,$AD:$AD)","v":0},{"$f":"SUMIFS(Sheet1!S71_SpecialAdjustedBudget,Sheet1!S71_A2Code,$AC:$AC,Sheet1!S71_A5CapexCode,$AD:$AD)","v":0},null,null,null,null,{"$f":"SUMIFS(Sheet1!S71_AdjustmentAmount,Sheet1!S71_A2Code,$AC:$AC,Sheet1!S71_A5CapexCode,$AD:$AD)","v":0},{"$f":"SUM(E52:I52)","v":0},{"$f":"IF(D52=0,C52+J52,D52+J52)","v":0},{"$f":"SUMIFS(Sheet1!S71_OY1AdjustedBudget,Sheet1!S71_A2Code,$AC:$AC,Sheet1!S71_A5CapexCode,$AD:$AD)","v":0},{"$f":"SUMIFS(Sheet1!S71_OY2AdjustedBudget,Sheet1!S71_A2Code,$AC:$AC,Sheet1!S71_A5CapexCode,$AD:$AD)","v":0},null,null,null,null,null,null,null,null,null,null,null,null,null,null,null,"2300","CE"]
["Housing",null,{"$f":"SUMIFS(Sheet1!S71_OriginalBudget,Sheet1!S71_A2Code,$AC:$AC,Sheet1!S71_A5CapexCode,$AD:$AD)","v":0},{"$f":"SUMIFS(Sheet1!S71_SpecialAdjustedBudget,Sheet1!S71_A2Code,$AC:$AC,Sheet1!S71_A5CapexCode,$AD:$AD)","v":0},null,null,null,null,{"$f":"SUMIFS(Sheet1!S71_AdjustmentAmount,Sheet1!S71_A2Code,$AC:$AC,Sheet1!S71_A5CapexCode,$AD:$AD)","v":0},{"$f":"SUM(E53:I53)","v":0},{"$f":"IF(D53=0,C53+J53,D53+J53)","v":0},{"$f":"SUMIFS(Sheet1!S71_OY1AdjustedBudget,Sheet1!S71_A2Code,$AC:$AC,Sheet1!S71_A5CapexCode,$AD:$AD)","v":0},{"$f":"SUMIFS(Sheet1!S71_OY2AdjustedBudget,Sheet1!S71_A2Code,$AC:$AC,Sheet1!S71_A5CapexCode,$AD:$AD)","v":0},null,null,null,null,null,null,null,null,null,null,null,null,null,null,null,"2400","CE"]
["Health",null,{"$f":"SUMIFS(Sheet1!S71_OriginalBudget,Sheet1!S71_A2Code,$AC:$AC,Sheet1!S71_A5CapexCode,$AD:$AD)","v":0},{"$f":"SUMIFS(Sheet1!S71_SpecialAdjustedBudget,Sheet1!S71_A2Code,$AC:$AC,Sheet1!S71_A5CapexCode,$AD:$AD)","v":0},null,null,null,null,{"$f":"SUMIFS(Sheet1!S71_AdjustmentAmount,Sheet1!S71_A2Code,$AC:$AC,Sheet1!S71_A5CapexCode,$AD:$AD)","v":0},{"$f":"SUM(E54:I54)","v":0},{"$f":"IF(D54=0,C54+J54,D54+J54)","v":0},{"$f":"SUMIFS(Sheet1!S71_OY1AdjustedBudget,Sheet1!S71_A2Code,$AC:$AC,Sheet1!S71_A5CapexCode,$AD:$AD)","v":0},{"$f":"SUMIFS(Sheet1!S71_OY2AdjustedBudget,Sheet1!S71_A2Code,$AC:$AC,Sheet1!S71_A5CapexCode,$AD:$AD)","v":0},null,null,null,null,null,null,null,null,null,null,null,null,null,null,null,"2500","CE"]
["Economic and environmental services",null,{"$f":"SUM(C56:C58)","v":30169521},0,0,0,0,0,1911731,1911731,32081252,35007500,36582838]
["Planning and development",null,{"$f":"SUMIFS(Sheet1!S71_OriginalBudget,Sheet1!S71_A2Code,$AC:$AC,Sheet1!S71_A5CapexCode,$AD:$AD)","v":0},{"$f":"SUMIFS(Sheet1!S71_SpecialAdjustedBudget,Sheet1!S71_A2Code,$AC:$AC,Sheet1!S71_A5CapexCode,$AD:$AD)","v":0},null,null,null,null,{"$f":"SUMIFS(Sheet1!S71_AdjustmentAmount,Sheet1!S71_A2Code,$AC:$AC,Sheet1!S71_A5CapexCode,$AD:$AD)","v":0},{"$f":"SUM(E56:I56)","v":0},{"$f":"IF(D56=0,C56+J56,D56+J56)","v":0},{"$f":"SUMIFS(Sheet1!S71_OY1AdjustedBudget,Sheet1!S71_A2Code,$AC:$AC,Sheet1!S71_A5CapexCode,$AD:$AD)","v":0},{"$f":"SUMIFS(Sheet1!S71_OY2AdjustedBudget,Sheet1!S71_A2Code,$AC:$AC,Sheet1!S71_A5CapexCode,$AD:$AD)","v":0},null,null,null,null,null,null,null,null,null,null,null,null,null,null,null,"3100","CE"]
["Road transport",null,{"$f":"SUMIFS(Sheet1!S71_OriginalBudget,Sheet1!S71_A2Code,$AC:$AC,Sheet1!S71_A5CapexCode,$AD:$AD)","v":30169521},{"$f":"SUMIFS(Sheet1!S71_SpecialAdjustedBudget,Sheet1!S71_A2Code,$AC:$AC,Sheet1!S71_A5CapexCode,$AD:$AD)","v":0},null,null,null,null,{"$f":"SUMIFS(Sheet1!S71_AdjustmentAmount,Sheet1!S71_A2Code,$AC:$AC,Sheet1!S71_A5CapexCode,$AD:$AD)","v":1911731},{"$f":"SUM(E57:I57)","v":1911731},{"$f":"IF(D57=0,C57+J57,D57+J57)","v":32081252},{"$f":"SUMIFS(Sheet1!S71_OY1AdjustedBudget,Sheet1!S71_A2Code,$AC:$AC,Sheet1!S71_A5CapexCode,$AD:$AD)","v":35007500},{"$f":"SUMIFS(Sheet1!S71_OY2AdjustedBudget,Sheet1!S71_A2Code,$AC:$AC,Sheet1!S71_A5CapexCode,$AD:$AD)","v":36582838},null,null,null,null,null,null,null,null,null,null,null,null,null,null,null,"3200","CE"]
["Environmental protection",null,{"$f":"SUMIFS(Sheet1!S71_OriginalBudget,Sheet1!S71_A2Code,$AC:$AC,Sheet1!S71_A5CapexCode,$AD:$AD)","v":0},{"$f":"SUMIFS(Sheet1!S71_SpecialAdjustedBudget,Sheet1!S71_A2Code,$AC:$AC,Sheet1!S71_A5CapexCode,$AD:$AD)","v":0},null,null,null,null,{"$f":"SUMIFS(Sheet1!S71_AdjustmentAmount,Sheet1!S71_A2Code,$AC:$AC,Sheet1!S71_A5CapexCode,$AD:$AD)","v":0},{"$f":"SUM(E58:I58)","v":0},{"$f":"IF(D58=0,C58+J58,D58+J58)","v":0},{"$f":"SUMIFS(Sheet1!S71_OY1AdjustedBudget,Sheet1!S71_A2Code,$AC:$AC,Sheet1!S71_A5CapexCode,$AD:$AD)","v":0},{"$f":"SUMIFS(Sheet1!S71_OY2AdjustedBudget,Sheet1!S71_A2Code,$AC:$AC,Sheet1!S71_A5CapexCode,$AD:$AD)","v":0},null,null,null,null,null,null,null,null,null,null,null,null,null,null,null,"3300","CE"]
["Trading services",null,{"$f":"SUM(C60:C63)","v":950000},{"$f":"SUM(D60:D63)","v":0},0,0,0,0,{"$f":"SUM(I60:I63)","v":14550000},{"$f":"SUM(J60:J63)","v":14550000},15500000,21109000,22058905,null,null,null,null,null,null,null,null,null,null,null,null,null,null,null,null,"CE"]
["Energy sources",null,{"$f":"SUMIFS(Sheet1!S71_OriginalBudget,Sheet1!S71_A2Code,$AC:$AC,Sheet1!S71_A5CapexCode,$AD:$AD)","v":0},{"$f":"SUMIFS(Sheet1!S71_SpecialAdjustedBudget,Sheet1!S71_A2Code,$AC:$AC,Sheet1!S71_A5CapexCode,$AD:$AD)","v":0},null,null,null,null,{"$f":"SUMIFS(Sheet1!S71_AdjustmentAmount,Sheet1!S71_A2Code,$AC:$AC,Sheet1!S71_A5CapexCode,$AD:$AD)","v":15500000},{"$f":"SUM(E60:I60)","v":15500000},{"$f":"IF(D60=0,C60+J60,D60+J60)","v":15500000},{"$f":"SUMIFS(Sheet1!S71_OY1AdjustedBudget,Sheet1!S71_A2Code,$AC:$AC,Sheet1!S71_A5CapexCode,$AD:$AD)","v":20900000},{"$f":"SUMIFS(Sheet1!S71_OY2AdjustedBudget,Sheet1!S71_A2Code,$AC:$AC,Sheet1!S71_A5CapexCode,$AD:$AD)","v":21840500},null,null,null,null,null,null,null,null,null,null,null,null,null,null,null,"4100","CE"]
["Water management",null,{"$f":"SUMIFS(Sheet1!S71_OriginalBudget,Sheet1!S71_A2Code,$AC:$AC,Sheet1!S71_A5CapexCode,$AD:$AD)","v":0},{"$f":"SUMIFS(Sheet1!S71_SpecialAdjustedBudget,Sheet1!S71_A2Code,$AC:$AC,Sheet1!S71_A5CapexCode,$AD:$AD)","v":0},null,null,null,null,{"$f":"SUMIFS(Sheet1!S71_AdjustmentAmount,Sheet1!S71_A2Code,$AC:$AC,Sheet1!S71_A5CapexCode,$AD:$AD)","v":0},{"$f":"SUM(E61:I61)","v":0},{"$f":"IF(D61=0,C61+J61,D61+J61)","v":0},{"$f":"SUMIFS(Sheet1!S71_OY1AdjustedBudget,Sheet1!S71_A2Code,$AC:$AC,Sheet1!S71_A5CapexCode,$AD:$AD)","v":0},{"$f":"SUMIFS(Sheet1!S71_OY2AdjustedBudget,Sheet1!S71_A2Code,$AC:$AC,Sheet1!S71_A5CapexCode,$AD:$AD)","v":0},null,null,null,null,null,null,null,null,null,null,null,null,null,null,null,"4200","CE"]
["Waste water management",null,{"$f":"SUMIFS(Sheet1!S71_OriginalBudget,Sheet1!S71_A2Code,$AC:$AC,Sheet1!S71_A5CapexCode,$AD:$AD)","v":0},{"$f":"SUMIFS(Sheet1!S71_SpecialAdjustedBudget,Sheet1!S71_A2Code,$AC:$AC,Sheet1!S71_A5CapexCode,$AD:$AD)","v":0},null,null,null,null,{"$f":"SUMIFS(Sheet1!S71_AdjustmentAmount,Sheet1!S71_A2Code,$AC:$AC,Sheet1!S71_A5CapexCode,$AD:$AD)","v":0},{"$f":"SUM(E62:I62)","v":0},{"$f":"IF(D62=0,C62+J62,D62+J62)","v":0},{"$f":"SUMIFS(Sheet1!S71_OY1AdjustedBudget,Sheet1!S71_A2Code,$AC:$AC,Sheet1!S71_A5CapexCode,$AD:$AD)","v":0},{"$f":"SUMIFS(Sheet1!S71_OY2AdjustedBudget,Sheet1!S71_A2Code,$AC:$AC,Sheet1!S71_A5CapexCode,$AD:$AD)","v":0},null,null,null,null,null,null,null,null,null,null,null,null,null,null,null,"4300","CE"]
["Waste management",null,{"$f":"SUMIFS(Sheet1!S71_OriginalBudget,Sheet1!S71_A2Code,$AC:$AC,Sheet1!S71_A5CapexCode,$AD:$AD)","v":950000},{"$f":"SUMIFS(Sheet1!S71_SpecialAdjustedBudget,Sheet1!S71_A2Code,$AC:$AC,Sheet1!S71_A5CapexCode,$AD:$AD)","v":0},null,null,null,null,{"$f":"SUMIFS(Sheet1!S71_AdjustmentAmount,Sheet1!S71_A2Code,$AC:$AC,Sheet1!S71_A5CapexCode,$AD:$AD)","v":-950000},{"$f":"SUM(E63:I63)","v":-950000},{"$f":"IF(D63=0,C63+J63,D63+J63)","v":0},{"$f":"SUMIFS(Sheet1!S71_OY1AdjustedBudget,Sheet1!S71_A2Code,$AC:$AC,Sheet1!S71_A5CapexCode,$AD:$AD)","v":209000},{"$f":"SUMIFS(Sheet1!S71_OY2AdjustedBudget,Sheet1!S71_A2Code,$AC:$AC,Sheet1!S71_A5CapexCode,$AD:$AD)","v":218405},null,null,null,null,null,null,null,null,null,null,null,null,null,null,null,"4400","CE"]
["Other",null,{"$f":"SUMIFS(Sheet1!S71_OriginalBudget,Sheet1!S71_A2Code,$AC:$AC,Sheet1!S71_A5CapexCode,$AD:$AD)","v":0},{"$f":"SUMIFS(Sheet1!S71_SpecialAdjustedBudget,Sheet1!S71_A2Code,$AC:$AC,Sheet1!S71_A5CapexCode,$AD:$AD)","v":0},null,null,null,null,{"$f":"SUMIFS(Sheet1!S71_AdjustmentAmount,Sheet1!S71_A2Code,$AC:$AC,Sheet1!S71_A5CapexCode,$AD:$AD)","v":0},{"$f":"SUM(E64:I64)","v":0},{"$f":"IF(D64=0,C64+J64,D64+J64)","v":0},{"$f":"SUMIFS(Sheet1!S71_OY1AdjustedBudget,Sheet1!S71_A2Code,$AC:$AC,Sheet1!S71_A5CapexCode,$AD:$AD)","v":0},{"$f":"SUMIFS(Sheet1!S71_OY2AdjustedBudget,Sheet1!S71_A2Code,$AC:$AC,Sheet1!S71_A5CapexCode,$AD:$AD)","v":0},null,null,null,null,null,null,null,null,null,null,null,null,null,null,null,"5000","CE"]
["Total Capital Expenditure - Functional",3,{"$f":"C45+C49+C55+C59+C64","v":47208016},{"$f":"D45+D49+D55+D59+D64","v":0},0,0,0,0,{"$f":"I45+I49+I55+I59+I64","v":18781731},18781731,65989747,71164500,74366905]
[]
["Funded by:"]
["National Government",null,{"$f":"SUMIFS(Sheet1!S71_OriginalBudget,Sheet1!S71_A5GCode,$AC:$AC,Sheet1!S71_A5CapexCode,$AD:$AD)","v":35297948},{"$f":"SUMIFS(Sheet1!S71_SpecialAdjustedBudget,Sheet1!S71_A5GCode,$AC:$AC,Sheet1!S71_A5CapexCode,$AD:$AD)","v":0},null,null,null,null,{"$f":"SUMIFS(Sheet1!S71_AdjustmentAmount,Sheet1!S71_A5GCode,$AC:$AC,Sheet1!S71_A5CapexCode,$AD:$AD)","v":12122038},{"$f":"SUM(E68:I68)","v":12122038},{"$f":"IF(D68=0,C68+J68,D68+J68)","v":47419986},{"$f":"SUMIFS(Sheet1!S71_OY1AdjustedBudget,Sheet1!S71_A5GCode,$AC:$AC,Sheet1!S71_A5CapexCode,$AD:$AD)","v":48070000},{"$f":"SUMIFS(Sheet1!S71_OY2AdjustedBudget,Sheet1!S71_A5GCode,$AC:$AC,Sheet1!S71_A5CapexCode,$AD:$AD)","v":50233150},null,null,null,null,null,null,null,null,null,null,null,null,null,null,null,"2010","CE"]
["Provincial Government",null,{"$f":"SUMIFS(Sheet1!S71_OriginalBudget,Sheet1!S71_A5GCode,$AC:$AC,Sheet1!S71_A5CapexCode,$AD:$AD)","v":0},{"$f":"SUMIFS(Sheet1!S71_SpecialAdjustedBudget,Sheet1!S71_A5GCode,$AC:$AC,Sheet1!S71_A5CapexCode,$AD:$AD)","v":0},null,null,null,null,{"$f":"SUMIFS(Sheet1!S71_AdjustmentAmount,Sheet1!S71_A5GCode,$AC:$AC,Sheet1!S71_A5CapexCode,$AD:$AD)","v":4720000},{"$f":"SUM(E69:I69)","v":4720000},{"$f":"IF(D69=0,C69+J69,D69+J69)","v":4720000},{"$f":"SUMIFS(Sheet1!S71_OY1AdjustedBudget,Sheet1!S71_A5GCode,$AC:$AC,Sheet1!S71_A5CapexCode,$AD:$AD)","v":0},{"$f":"SUMIFS(Sheet1!S71_OY2AdjustedBudget,Sheet1!S71_A5GCode,$AC:$AC,Sheet1!S71_A5CapexCode,$AD:$AD)","v":0},null,null,null,null,null,null,null,null,null,null,null,null,null,null,null,"2020","CE"]
["District Municipality",null,{"$f":"SUMIFS(Sheet1!S71_OriginalBudget,Sheet1!S71_A5GCode,$AC:$AC,Sheet1!S71_A5CapexCode,$AD:$AD)","v":0},{"$f":"SUMIFS(Sheet1!S71_SpecialAdjustedBudget,Sheet1!S71_A5GCode,$AC:$AC,Sheet1!S71_A5CapexCode,$AD:$AD)","v":0},null,null,null,null,{"$f":"SUMIFS(Sheet1!S71_AdjustmentAmount,Sheet1!S71_A5GCode,$AC:$AC,Sheet1!S71_A5CapexCode,$AD:$AD)","v":0},{"$f":"SUM(E70:I70)","v":0},{"$f":"IF(D70=0,C70+J70,D70+J70)","v":0},{"$f":"SUMIFS(Sheet1!S71_OY1AdjustedBudget,Sheet1!S71_A5GCode,$AC:$AC,Sheet1!S71_A5CapexCode,$AD:$AD)","v":0},{"$f":"SUMIFS(Sheet1!S71_OY2AdjustedBudget,Sheet1!S71_A5GCode,$AC:$AC,Sheet1!S71_A5CapexCode,$AD:$AD)","v":0},null,null,null,null,null,null,null,null,null,null,null,null,null,null,null,"2030","CE"]
[{"$f":"'B4-FinPerf RE'!A41","v":"Transfers and subsidies - capital (monetary allocations) (National / Provincial Departmental Agencies, Households, Non-profit Institutions, Private Enterprises, Public Corporatons, Higher Educational Institutions)"},null,{"$f":"SUMIFS(Sheet1!S71_OriginalBudget,Sheet1!S71_A5GCode,$AC:$AC,Sheet1!S71_A5CapexCode,$AD:$AD)","v":0},{"$f":"SUMIFS(Sheet1!S71_SpecialAdjustedBudget,Sheet1!S71_A5GCode,$AC:$AC,Sheet1!S71_A5CapexCode,$AD:$AD)","v":0},null,null,null,null,{"$f":"SUMIFS(Sheet1!S71_AdjustmentAmount,Sheet1!S71_A5GCode,$AC:$AC,Sheet1!S71_A5CapexCode,$AD:$AD)","v":0},{"$f":"SUM(E71:I71)","v":0},{"$f":"IF(D71=0,C71+J71,D71+J71)","v":0},{"$f":"SUMIFS(Sheet1!S71_OY1AdjustedBudget,Sheet1!S71_A5GCode,$AC:$AC,Sheet1!S71_A5CapexCode,$AD:$AD)","v":0},{"$f":"SUMIFS(Sheet1!S71_OY2AdjustedBudget,Sheet1!S71_A5GCode,$AC:$AC,Sheet1!S71_A5CapexCode,$AD:$AD)","v":0},null,null,null,null,null,null,null,null,null,null,null,null,null,null,null,"2040","CE"]
["Transfers recognised - capital",4,{"$f":"SUM(C68:C71)","v":35297948},0,0,0,0,0,16842038,16842038,52139986,48070000,50233150]
[]
["Borrowing",null,{"$f":"SUMIFS(Sheet1!S71_OriginalBudget,Sheet1!S71_A5GCode,$AC:$AC,Sheet1!S71_A5CapexCode,$AD:$AD)","v":0},{"$f":"SUMIFS(Sheet1!S71_SpecialAdjustedBudget,Sheet1!S71_A5GCode,$AC:$AC,Sheet1!S71_A5CapexCode,$AD:$AD)","v":0},null,null,null,null,{"$f":"SUMIFS(Sheet1!S71_AdjustmentAmount,Sheet1!S71_A5GCode,$AC:$AC,Sheet1!S71_A5CapexCode,$AD:$AD)","v":0},{"$f":"SUM(E74:I74)","v":0},{"$f":"IF(D74=0,C74+J74,D74+J74)","v":0},{"$f":"SUMIFS(Sheet1!S71_OY1AdjustedBudget,Sheet1!S71_A5GCode,$AC:$AC,Sheet1!S71_A5CapexCode,$AD:$AD)","v":0},{"$f":"SUMIFS(Sheet1!S71_OY2AdjustedBudget,Sheet1!S71_A5GCode,$AC:$AC,Sheet1!S71_A5CapexCode,$AD:$AD)","v":0},null,null,null,null,null,null,null,null,null,null,null,null,null,null,null,"2070","CE"]
["Internally generated funds",null,{"$f":"SUMIFS(Sheet1!S71_OriginalBudget,Sheet1!S71_A5GCode,$AC:$AC,Sheet1!S71_A5CapexCode,$AD:$AD)","v":11910068},{"$f":"SUMIFS(Sheet1!S71_SpecialAdjustedBudget,Sheet1!S71_A5GCode,$AC:$AC,Sheet1!S71_A5CapexCode,$AD:$AD)","v":0},null,null,null,null,{"$f":"SUMIFS(Sheet1!S71_AdjustmentAmount,Sheet1!S71_A5GCode,$AC:$AC,Sheet1!S71_A5CapexCode,$AD:$AD)","v":1939693},{"$f":"SUM(E75:I75)","v":1939693},{"$f":"IF(D75=0,C75+J75,D75+J75)","v":13849761},{"$f":"SUMIFS(Sheet1!S71_OY1AdjustedBudget,Sheet1!S71_A5GCode,$AC:$AC,Sheet1!S71_A5CapexCode,$AD:$AD)","v":23094500},{"$f":"SUMIFS(Sheet1!S71_OY2AdjustedBudget,Sheet1!S71_A5GCode,$AC:$AC,Sheet1!S71_A5CapexCode,$AD:$AD)","v":24133755},null,null,null,null,null,null,null,null,null,null,null,null,null,null,null,"2080","CE"]
["Total Capital Funding",null,{"$f":"+C72+C74+C75","v":47208016},{"$f":"+D72+D74+D75","v":0},0,0,0,0,18781731,18781731,65989747,71164500,74366905]
[{"$f":"head27a","v":"References"}]
["1. Municipalities may choose to appropriate for capital expenditure for three years or for one year (if one year appropriation projected expenditure required for yr2 and yr3)."]
["2. Include capital component of PPP unitary payment. Note that capital transfers are only appropriated to municipalities for the budget year"]
["3. Capital expenditure by standard classification must reconcile to the appropriations by vote"]
["4. Must reconcile to supporting table SB7 and to Adjustments Budget Financial Performance (revenue and expenditure)"]
["5. Only complete if a previous adjusted budget has been approved in the same financial year. Reflect most recent adjusted budget."]
["6. Additional cash-backed accumulated funds/unspent funds (MFMA section 18(1)(b) and section 28(2)(e)) identified after the Original Budget approved and after annual financial statements audited (note: only where underspending could not reasonably have been foreseen)"]
["7. Increases of funds approved under MFMA section 31"]
["8. Adjustments approved in accordance with MFMA section 29 "]
["9. Adjustments to transfers from National or Provincial Government"]
["10. Adjusts. = 'Other' Adjustments proposed to be approved; including revenue under-collection (MFMA section 28(2)(a)); additional revenue appropriation on existing programmes (section 28(2))(b); projected savings (section 28(2)(d)); error correction (section 28(2)(f))"]
["11. G = B + C + D + E + F"]
["12. Adjusted Budget H = (A or A1/2 etc) + G"]
[]
["check balance",null,{"$f":"C65-C76","v":0},{"$f":"D65-D76","v":0},{"$f":"E65-E76","v":0},null,null,{"$f":"H65-H76","v":0},{"$f":"I65-I76","v":0},{"$f":"J65-J76","v":0},{"$f":"K65-K76","v":0},{"$f":"L65-L76","v":0},{"$f":"K23-K76","v":-65989747}]

{"sheet":"B5B","index":31,"n_rows":349,"n_cols":30,"rows_kept":349,"cut":false,"hidden":false,"merged":[[1,0,2,0],[1,1,4,1],[1,2,1,10]]}
[{"$f":"muni&\" - \"&_ADJ5&\" - B\"&\" - \"&Date","v":"EC139 Enoch Mgijima - Table B5 Adjustments Capital Expenditure Budget by vote and funding - B - "}]
[{"$f":"Vdesc","v":"Vote Description"},{"$f":"head27","v":"Ref"},{"$f":"Head2","v":"Budget Year 2021/22"},null,null,null,null,null,null,null,null,{"$f":"Head10","v":"Budget Year +1 2022/23"},{"$f":"Head11","v":"Budget Year +2 2023/24"}]
[null,null,{"$f":"Head6","v":"Original Budget"},{"$f":"Head54","v":"Prior Adjusted"},{"$f":"Head51","v":"Accum. Funds"},{"$f":"Head52","v":"Multi-year capital"},{"$f":"Head53","v":"Unfore. Unavoid."},{"$f":"Head55","v":"Nat. or Prov. Govt"},{"$f":"Head50","v":"Other Adjusts."},{"$f":"Head56","v":"Total Adjusts."},{"$f":"Head7","v":"Adjusted Budget"},{"$f":"Head7","v":"Adjusted Budget"},{"$f":"Head7","v":"Adjusted Budget"}]
["[Insert departmental structure etc]",null,null,3,4,5,6,7,8,9,10]
["R thousands",null,"A","A1","B","C","D","E","F","G","H"]
["Capital expenditure - Municipal Vote"]
["Multi-year expenditure appropriation",2]
[{"$f":"'Org structure'!A2","v":"Vote 1 - Finance and Admin"},null,{"$f":"SUM(C9:C18)","v":0},{"$f":"SUM(D9:D18)","v":0},0,0,0,0,0,{"$f":"SUM(E8:I8)","v":0},{"$f":"IF(D8=0,C8+J8,D8+J8)","v":0},{"$f":"SUM(L9:L18)","v":0},{"$f":"SUM(M9:M18)","v":0}]
[{"$f":"IF(RIGHT('Org structure'!D3,18)<>\"[Name of sub-vote]\",'Org structure'!D3,\"\")","v":"1.1 - Supply Chain Management"},null,null,null,null,null,null,null,null,0,0,null,null,null,null,null,null,null,null,null,null,null,null,null,null,null,null,null,11,"CE"]
[{"$f":"IF(RIGHT('Org structure'!D4,18)<>\"[Name of sub-vote]\",'Org structure'!D4,\"\")","v":"1.2 - Finance"},null,null,null,null,null,null,null,null,0,0,null,null,null,null,null,null,null,null,null,null,null,null,null,null,null,null,null,12,"CE"]
[{"$f":"IF(RIGHT('Org structure'!D5,18)<>\"[Name of sub-vote]\",'Org structure'!D5,\"\")","v":"1.3 - Fleet Management"},null,null,null,null,null,null,null,null,0,0,null,null,null,null,null,null,null,null,null,null,null,null,null,null,null,null,null,13,"CE"]
[{"$f":"IF(RIGHT('Org structure'!D6,18)<>\"[Name of sub-vote]\",'Org structure'!D6,\"\")","v":"1.4 - Security Services"},null,null,null,null,null,null,null,null,0,0,null,null,null,null,null,null,null,null,null,null,null,null,null,null,null,null,null,14,"CE"]
[{"$f":"IF(RIGHT('Org structure'!D7,18)<>\"[Name of sub-vote]\",'Org structure'!D7,\"\")","v":"1.5 - Information Technology"},null,null,null,null,null,null,null,null,0,0,null,null,null,null,null,null,null,null,null,null,null,null,null,null,null,null,null,15,"CE"]
[{"$f":"IF(RIGHT('Org structure'!D8,18)<>\"[Name of sub-vote]\",'Org structure'!D8,\"\")","v":"1.6 - Human Resources"},null,null,null,null,null,null,null,null,0,0,null,null,null,null,null,null,null,null,null,null,null,null,null,null,null,null,null,16,"CE"]
[{"$f":"IF(RIGHT('Org structure'!D9,18)<>\"[Name of sub-vote]\",'Org structure'!D9,\"\")","v":"1.7 - Administrative and Corporate Support"},null,null,null,null,null,null,null,null,0,0,null,null,null,null,null,null,null,null,null,null,null,null,null,null,null,null,null,17,"CE"]
[{"$f":"IF(RIGHT('Org structure'!D10,18)<>\"[Name of sub-vote]\",'Org structure'!D10,\"\")","v":"1.8 - Legal Services"},null,null,null,null,null,null,null,null,0,0,null,null,null,null,null,null,null,null,null,null,null,null,null,null,null,null,null,18,"CE"]
[{"$f":"IF(RIGHT('Org structure'!D11,18)<>\"[Name of sub-vote]\",'Org structure'!D11,\"\")","v":"1.9 - Property Services"},null,null,null,null,null,null,null,null,0,0,null,null,null,null,null,null,null,null,null,null,null,null,null,null,null,null,null,19,"CE"]
[{"$f":"IF(RIGHT('Org structure'!D12,18)<>\"[Name of sub-vote]\",'Org structure'!D12,\"\")","v":"1.10 - Asset Management"},null,null,null,null,null,null,null,null,0,0,null,null,null,null,null,null,null,null,null,null,null,null,null,null,null,null,null,110,"CE"]
[{"$f":"'Org structure'!A3","v":"Vote 2 - Executive and council"},null,{"$f":"SUM(C20:C29)","v":0},{"$f":"SUM(D20:D29)","v":0},0,0,0,0,0,0,0,{"$f":"SUM(L20:L29)","v":0},{"$f":"SUM(M20:M29)","v":0}]
[{"$f":"IF(RIGHT('Org structure'!D14,18)<>\"[Name of sub-vote]\",'Org structure'!D14,\"\")","v":"2.1 - Mayor and Council"},null,null,null,null,null,null,null,null,0,0,null,null,null,null,null,null,null,null,null,null,null,null,null,null,null,null,null,21,"CE"]
[{"$f":"IF(RIGHT('Org structure'!D15,18)<>\"[Name of sub-vote]\",'Org structure'!D15,\"\")","v":"2.2 - Municipal Manager, Town Secretary and Chief Executive"},null,null,null,null,null,null,null,null,0,0,null,null,null,null,null,null,null,null,null,null,null,null,null,null,null,null,null,22,"CE"]
[{"$f":"IF(RIGHT('Org structure'!D16,18)<>\"[Name of sub-vote]\",'Org structure'!D16,\"\")","v":""},null,null,null,null,null,null,null,null,0,0,null,null,null,null,null,null,null,null,null,null,null,null,null,null,null,null,null,23,"CE"]
[{"$f":"IF(RIGHT('Org structure'!D17,18)<>\"[Name of sub-vote]\",'Org structure'!D17,\"\")","v":""},null,null,null,null,null,null,null,null,0,0,null,null,null,null,null,null,null,null,null,null,null,null,null,null,null,null,null,24,"CE"]
[{"$f":"IF(RIGHT('Org structure'!D18,18)<>\"[Name of sub-vote]\",'Org structure'!D18,\"\")","v":""},null,null,null,null,null,null,null,null,0,0,null,null,null,null,null,null,null,null,null,null,null,null,null,null,null,null,null,25,"CE"]
[{"$f":"IF(RIGHT('Org structure'!D19,18)<>\"[Name of sub-vote]\",'Org structure'!D19,\"\")","v":""},null,null,null,null,null,null,null,null,0,0,null,null,null,null,null,null,null,null,null,null,null,null,null,null,null,null,null,26,"CE"]
[{"$f":"IF(RIGHT('Org structure'!D20,18)<>\"[Name of sub-vote]\",'Org structure'!D20,\"\")","v":""},null,null,null,null,null,null,null,null,0,0,null,null,null,null,null,null,null,null,null,null,null,null,null,null,null,null,null,27,"CE"]
[{"$f":"IF(RIGHT('Org structure'!D21,18)<>\"[Name of sub-vote]\",'Org structure'!D21,\"\")","v":""},null,null,null,null,null,null,null,null,0,0,null,null,null,null,null,null,null,null,null,null,null,null,null,null,null,null,null,28,"CE"]
[{"$f":"IF(RIGHT('Org structure'!D22,18)<>\"[Name of sub-vote]\",'Org structure'!D22,\"\")","v":""},null,null,null,null,null,null,null,null,0,0,null,null,null,null,null,null,null,null,null,null,null,null,null,null,null,null,null,29,"CE"]
[{"$f":"IF(RIGHT('Org structure'!D23,18)<>\"[Name of sub-vote]\",'Org structure'!D23,\"\")","v":""},null,null,null,null,null,null,null,null,0,0,null,null,null,null,null,null,null,null,null,null,null,null,null,null,null,null,null,210,"CE"]
[{"$f":"'Org structure'!A4","v":"Vote 3 - Community and social services"},null,{"$f":"SUM(C31:C40)","v":0},{"$f":"SUM(D31:D40)","v":0},0,0,0,0,0,0,0,{"$f":"SUM(L31:L40)","v":0},{"$f":"SUM(M31:M40)","v":0}]
[{"$f":"IF(RIGHT('Org structure'!D25,18)<>\"[Name of sub-vote]\",'Org structure'!D25,\"\")","v":"3.1 - Disaster Management"},null,null,null,null,null,null,null,null,0,0,null,null,null,null,null,null,null,null,null,null,null,null,null,null,null,null,null,31,"CE"]
[{"$f":"IF(RIGHT('Org structure'!D26,18)<>\"[Name of sub-vote]\",'Org structure'!D26,\"\")","v":"3.2 - Community Halls and Facilities"},null,null,null,null,null,null,null,null,0,0,null,null,null,null,null,null,null,null,null,null,null,null,null,null,null,null,null,32,"CE"]
[{"$f":"IF(RIGHT('Org structure'!D27,18)<>\"[Name of sub-vote]\",'Org structure'!D27,\"\")","v":"3.3 - Libraries and Archives"},null,null,null,null,null,null,null,null,0,0,null,null,null,null,null,null,null,null,null,null,null,null,null,null,null,null,null,33,"CE"]
[{"$f":"IF(RIGHT('Org structure'!D28,18)<>\"[Name of sub-vote]\",'Org structure'!D28,\"\")","v":"3.4 - Education"},null,null,null,null,null,null,null,null,0,0,null,null,null,null,null,null,null,null,null,null,null,null,null,null,null,null,null,34,"CE"]
[{"$f":"IF(RIGHT('Org structure'!D29,18)<>\"[Name of sub-vote]\",'Org structure'!D29,\"\")","v":""},null,null,null,null,null,null,null,null,0,0,null,null,null,null,null,null,null,null,null,null,null,null,null,null,null,null,null,35,"CE"]
[{"$f":"IF(RIGHT('Org structure'!D30,18)<>\"[Name of sub-vote]\",'Org structure'!D30,\"\")","v":"3.6 - Health Services"},null,null,null,null,null,null,null,null,0,0,null,null,null,null,null,null,null,null,null,null,null,null,null,null,null,null,null,36,"CE"]
[{"$f":"IF(RIGHT('Org structure'!D31,18)<>\"[Name of sub-vote]\",'Org structure'!D31,\"\")","v":"3.7 - Animal Care and Diseases"},null,null,null,null,null,null,null,null,0,0,null,null,null,null,null,null,null,null,null,null,null,null,null,null,null,null,null,37,"CE"]
[{"$f":"IF(RIGHT('Org structure'!D32,18)<>\"[Name of sub-vote]\",'Org structure'!D32,\"\")","v":""},null,null,null,null,null,null,null,null,0,0,null,null,null,null,null,null,null,null,null,null,null,null,null,null,null,null,null,38,"CE"]
[{"$f":"IF(RIGHT('Org structure'!D33,18)<>\"[Name of sub-vote]\",'Org structure'!D33,\"\")","v":""},null,null,null,null,null,null,null,null,0,0,null,null,null,null,null,null,null,null,null,null,null,null,null,null,null,null,null,39,"CE"]
[{"$f":"IF(RIGHT('Org structure'!D34,18)<>\"[Name of sub-vote]\",'Org structure'!D34,\"\")","v":""},null,null,null,null,null,null,null,null,0,0,null,null,null,null,null,null,null,null,null,null,null,null,null,null,null,null,null,310,"CE"]
[{"$f":"'Org structure'!A5","v":"Vote 4 - Internal Audit"},null,{"$f":"SUM(C42:C51)","v":0},{"$f":"SUM(D42:D51)","v":0},0,0,0,0,0,0,0,{"$f":"SUM(L42:L51)","v":0},{"$f":"SUM(M42:M51)","v":0}]
[{"$f":"IF(RIGHT('Org structure'!D36,18)<>\"[Name of sub-vote]\",'Org structure'!D36,\"\")","v":"4.1 - Governance Function"},null,null,null,null,null,null,null,null,0,0,null,null,null,null,null,null,null,null,null,null,null,null,null,null,null,null,null,41,"CE"]
[{"$f":"IF(RIGHT('Org structure'!D37,18)<>\"[Name of sub-vote]\",'Org structure'!D37,\"\")","v":""},null,null,null,null,null,null,null,null,0,0,null,null,null,null,null,null,null,null,null,null,null,null,null,null,null,null,null,42,"CE"]
[{"$f":"IF(RIGHT('Org structure'!D38,18)<>\"[Name of sub-vote]\",'Org structure'!D38,\"\")","v":""},null,null,null,null,null,null,null,null,0,0,null,null,null,null,null,null,null,null,null,null,null,null,null,null,null,null,null,43,"CE"]
[{"$f":"IF(RIGHT('Org structure'!D39,18)<>\"[Name of sub-vote]\",'Org structure'!D39,\"\")","v":""},null,null,null,null,null,null,null,null,0,0,null,null,null,null,null,null,null,null,null,null,null,null,null,null,null,null,null,44,"CE"]
[{"$f":"IF(RIGHT('Org structure'!D40,18)<>\"[Name of sub-vote]\",'Org structure'!D40,\"\")","v":""},null,null,null,null,null,null,null,null,0,0,null,null,null,null,null,null,null,null,null,null,null,null,null,null,null,null,null,45,"CE"]
[{"$f":"IF(RIGHT('Org structure'!D41,18)<>\"[Name of sub-vote]\",'Org structure'!D41,\"\")","v":""},null,null,null,null,null,null,null,null,0,0,null,null,null,null,null,null,null,null,null,null,null,null,null,null,null,null,null,46,"CE"]
[{"$f":"IF(RIGHT('Org structure'!D42,18)<>\"[Name of sub-vote]\",'Org structure'!D42,\"\")","v":""},null,null,null,null,null,null,null,null,0,0,null,null,null,null,null,null,null,null,null,null,null,null,null,null,null,null,null,47,"CE"]
[{"$f":"IF(RIGHT('Org structure'!D43,18)<>\"[Name of sub-vote]\",'Org structure'!D43,\"\")","v":""},null,null,null,null,null,null,null,null,0,0,null,null,null,null,null,null,null,null,null,null,null,null,null,null,null,null,null,48,"CE"]
[{"$f":"IF(RIGHT('Org structure'!D44,18)<>\"[Name of sub-vote]\",'Org structure'!D44,\"\")","v":""},null,null,null,null,null,null,null,null,0,0,null,null,null,null,null,null,null,null,null,null,null,null,null,null,null,null,null,49,"CE"]
[{"$f":"IF(RIGHT('Org structure'!D45,18)<>\"[Name of sub-vote]\",'Org structure'!D45,\"\")","v":""},null,null,null,null,null,null,null,null,0,0,null,null,null,null,null,null,null,null,null,null,null,null,null,null,null,null,null,410,"CE"]
[{"$f":"'Org structure'!A6","v":"Vote 5 - Waste Management"},null,{"$f":"SUM(C53:C62)","v":0},{"$f":"SUM(D53:D62)","v":0},0,0,0,0,0,0,0,{"$f":"SUM(L53:L62)","v":0},{"$f":"SUM(M53:M62)","v":0}]
[{"$f":"IF(RIGHT('Org structure'!D47,18)<>\"[Name of sub-vote]\",'Org structure'!D47,\"\")","v":"5.1 - Solid Waste Removal"},null,null,null,null,null,null,null,null,0,0,null,null,null,null,null,null,null,null,null,null,null,null,null,null,null,null,null,51,"CE"]
[{"$f":"IF(RIGHT('Org structure'!D48,18)<>\"[Name of sub-vote]\",'Org structure'!D48,\"\")","v":"5.2 - Street Cleaning"},null,null,null,null,null,null,null,null,0,0,null,null,null,null,null,null,null,null,null,null,null,null,null,null,null,null,null,52,"CE"]
[{"$f":"IF(RIGHT('Org structure'!D49,18)<>\"[Name of sub-vote]\",'Org structure'!D49,\"\")","v":"5.3 - Solid Waste Disposal (Landfill Sites)"},null,null,null,null,null,null,null,null,0,0,null,null,null,null,null,null,null,null,null,null,null,null,null,null,null,null,null,53,"CE"]
[{"$f":"IF(RIGHT('Org structure'!D50,18)<>\"[Name of sub-vote]\",'Org structure'!D50,\"\")","v":""},null,null,null,null,null,null,null,null,0,0,null,null,null,null,null,null,null,null,null,null,null,null,null,null,null,null,null,54,"CE"]
[{"$f":"IF(RIGHT('Org structure'!D51,18)<>\"[Name of sub-vote]\",'Org structure'!D51,\"\")","v":""},null,null,null,null,null,null,null,null,0,0,null,null,null,null,null,null,null,null,null,null,null,null,null,null,null,null,null,55,"CE"]
[{"$f":"IF(RIGHT('Org structure'!D52,18)<>\"[Name of sub-vote]\",'Org structure'!D52,\"\")","v":""},null,null,null,null,null,null,null,null,0,0,null,null,null,null,null,null,null,null,null,null,null,null,null,null,null,null,null,56,"CE"]
[{"$f":"IF(RIGHT('Org structure'!D53,18)<>\"[Name of sub-vote]\",'Org structure'!D53,\"\")","v":""},null,null,null,null,null,null,null,null,0,0,null,null,null,null,null,null,null,null,null,null,null,null,null,null,null,null,null,57,"CE"]
[{"$f":"IF(RIGHT('Org structure'!D54,18)<>\"[Name of sub-vote]\",'Org structure'!D54,\"\")","v":""},null,null,null,null,null,null,null,null,0,0,null,null,null,null,null,null,null,null,null,null,null,null,null,null,null,null,null,58,"CE"]
[{"$f":"IF(RIGHT('Org structure'!D55,18)<>\"[Name of sub-vote]\",'Org structure'!D55,\"\")","v":""},null,null,null,null,null,null,null,null,0,0,null,null,null,null,null,null,null,null,null,null,null,null,null,null,null,null,null,59,"CE"]
[{"$f":"IF(RIGHT('Org structure'!D56,18)<>\"[Name of sub-vote]\",'Org structure'!D56,\"\")","v":""},null,null,null,null,null,null,null,null,0,0,null,null,null,null,null,null,null,null,null,null,null,null,null,null,null,null,null,510,"CE"]
[{"$f":"'Org structure'!A7","v":"Vote 6 - Energy Sources"},null,{"$f":"SUM(C64:C73)","v":0},{"$f":"SUM(D64:D73)","v":0},0,0,0,0,0,0,0,{"$f":"SUM(L64:L73)","v":0},{"$f":"SUM(M64:M73)","v":0}]
[{"$f":"IF(RIGHT('Org structure'!D58,18)<>\"[Name of sub-vote]\",'Org structure'!D58,\"\")","v":"6.1 - Electricity"},null,null,null,null,null,null,null,null,0,0,null,null,null,null,null,null,null,null,null,null,null,null,null,null,null,null,null,61,"CE"]
[{"$f":"IF(RIGHT('Org structure'!D59,18)<>\"[Name of sub-vote]\",'Org structure'!D59,\"\")","v":"6.2 - Regional Planning and Development"},null,null,null,null,null,null,null,null,0,0,null,null,null,null,null,null,null,null,null,null,null,null,null,null,null,null,null,62,"CE"]
[{"$f":"IF(RIGHT('Org structure'!D60,18)<>\"[Name of sub-vote]\",'Org structure'!D60,\"\")","v":""},null,null,null,null,null,null,null,null,0,0,null,null,null,null,null,null,null,null,null,null,null,null,null,null,null,null,null,63,"CE"]
[{"$f":"IF(RIGHT('Org structure'!D61,18)<>\"[Name of sub-vote]\",'Org structure'!D61,\"\")","v":""},null,null,null,null,null,null,null,null,0,0,null,null,null,null,null,null,null,null,null,null,null,null,null,null,null,null,null,64,"CE"]
[{"$f":"IF(RIGHT('Org structure'!D62,18)<>\"[Name of sub-vote]\",'Org structure'!D62,\"\")","v":""},null,null,null,null,null,null,null,null,0,0,null,null,null,null,null,null,null,null,null,null,null,null,null,null,null,null,null,65,"CE"]
[{"$f":"IF(RIGHT('Org structure'!D63,18)<>\"[Name of sub-vote]\",'Org structure'!D63,\"\")","v":""},null,null,null,null,null,null,null,null,0,0,null,null,null,null,null,null,null,null,null,null,null,null,null,null,null,null,null,66,"CE"]
[{"$f":"IF(RIGHT('Org structure'!D64,18)<>\"[Name of sub-vote]\",'Org structure'!D64,\"\")","v":""},null,null,null,null,null,null,null,null,0,0,null,null,null,null,null,null,null,null,null,null,null,null,null,null,null,null,null,67,"CE"]
[{"$f":"IF(RIGHT('Org structure'!D65,18)<>\"[Name of sub-vote]\",'Org structure'!D65,\"\")","v":""},null,null,null,null,null,null,null,null,0,0,null,null,null,null,null,null,null,null,null,null,null,null,null,null,null,null,null,68,"CE"]
[{"$f":"IF(RIGHT('Org structure'!D66,18)<>\"[Name of sub-vote]\",'Org structure'!D66,\"\")","v":""},null,null,null,null,null,null,null,null,{"$f":"SUM(E72:I72)","v":0},{"$f":"IF(D72=0,C72+J72,D72+J72)","v":0},null,null,null,null,null,null,null,null,null,null,null,null,null,null,null,null,null,69,"CE"]
[{"$f":"IF(RIGHT('Org structure'!D67,18)<>\"[Name of sub-vote]\",'Org structure'!D67,\"\")","v":""},null,null,null,null,null,null,null,null,0,0,null,null,null,null,null,null,null,null,null,null,null,null,null,null,null,null,null,610,"CE"]
[{"$f":"'Org structure'!A8","v":"Vote 7 - Planning and Development"},null,{"$f":"SUM(C75:C84)","v":0},{"$f":"SUM(D75:D84)","v":0},0,0,0,0,0,0,0,{"$f":"SUM(L75:L84)","v":0},{"$f":"SUM(M75:M84)","v":0}]
[{"$f":"IF(RIGHT('Org structure'!D69,18)<>\"[Name of sub-vote]\",'Org structure'!D69,\"\")","v":"7.1 - Corporate Wide Strategic Planning (IDPs, LEDs)"},null,null,null,null,null,null,null,null,0,0,null,null,null,null,null,null,null,null,null,null,null,null,null,null,null,null,null,71,"CE"]
[{"$f":"IF(RIGHT('Org structure'!D70,18)<>\"[Name of sub-vote]\",'Org structure'!D70,\"\")","v":"7.2 - Town Planning, Building Regulations and Enforcement, and City Engineer"},null,null,null,null,null,null,null,null,0,0,null,null,null,null,null,null,null,null,null,null,null,null,null,null,null,null,null,72,"CE"]
[{"$f":"IF(RIGHT('Org structure'!D71,18)<>\"[Name of sub-vote]\",'Org structure'!D71,\"\")","v":"7.3 - Project Management Unit"},null,null,null,null,null,null,null,null,0,0,null,null,null,null,null,null,null,null,null,null,null,null,null,null,null,null,null,73,"CE"]
[{"$f":"IF(RIGHT('Org structure'!D72,18)<>\"[Name of sub-vote]\",'Org structure'!D72,\"\")","v":"7.4 - Economic Development/Planning"},null,null,null,null,null,null,null,null,0,0,null,null,null,null,null,null,null,null,null,null,null,null,null,null,null,null,null,74,"CE"]
[{"$f":"IF(RIGHT('Org structure'!D73,18)<>\"[Name of sub-vote]\",'Org structure'!D73,\"\")","v":""},null,null,null,null,null,null,null,null,0,0,null,null,null,null,null,null,null,null,null,null,null,null,null,null,null,null,null,75,"CE"]
[{"$f":"IF(RIGHT('Org structure'!D74,18)<>\"[Name of sub-vote]\",'Org structure'!D74,\"\")","v":""},null,null,null,null,null,null,null,null,0,0,null,null,null,null,null,null,null,null,null,null,null,null,null,null,null,null,null,76,"CE"]
[{"$f":"IF(RIGHT('Org structure'!D75,18)<>\"[Name of sub-vote]\",'Org structure'!D75,\"\")","v":""},null,null,null,null,null,null,null,null,0,0,null,null,null,null,null,null,null,null,null,null,null,null,null,null,null,null,null,77,"CE"]
[{"$f":"IF(RIGHT('Org structure'!D76,18)<>\"[Name of sub-vote]\",'Org structure'!D76,\"\")","v":""},null,null,null,null,null,null,null,null,0,0,null,null,null,null,null,null,null,null,null,null,null,null,null,null,null,null,null,78,"CE"]
[{"$f":"IF(RIGHT('Org structure'!D77,18)<>\"[Name of sub-vote]\",'Org structure'!D77,\"\")","v":""},null,null,null,null,null,null,null,null,0,0,null,null,null,null,null,null,null,null,null,null,null,null,null,null,null,null,null,79,"CE"]
[{"$f":"IF(RIGHT('Org structure'!D78,18)<>\"[Name of sub-vote]\",'Org structure'!D78,\"\")","v":""},null,null,null,null,null,null,null,null,0,0,null,null,null,null,null,null,null,null,null,null,null,null,null,null,null,null,null,710,"CE"]
[{"$f":"'Org structure'!A9","v":"Vote 8 - Public Safety"},null,{"$f":"SUM(C86:C95)","v":0},{"$f":"SUM(D86:D95)","v":0},0,0,0,0,0,0,0,{"$f":"SUM(L86:L95)","v":0},{"$f":"SUM(M86:M95)","v":0}]
[{"$f":"IF(RIGHT('Org structure'!D80,18)<>\"[Name of sub-vote]\",'Org structure'!D80,\"\")","v":"8.1 - Police Forces, Traffic and Street Parking Control"},null,null,null,null,null,null,null,null,0,0,null,null,null,null,null,null,null,null,null,null,null,null,null,null,null,null,null,81,"CE"]
[{"$f":"IF(RIGHT('Org structure'!D81,18)<>\"[Name of sub-vote]\",'Org structure'!D81,\"\")","v":""},null,null,null,null,null,null,null,null,0,0,null,null,null,null,null,null,null,null,null,null,null,null,null,null,null,null,null,82,"CE"]
[{"$f":"IF(RIGHT('Org structure'!D82,18)<>\"[Name of sub-vote]\",'Org structure'!D82,\"\")","v":""},null,null,null,null,null,null,null,null,0,0,null,null,null,null,null,null,null,null,null,null,null,null,null,null,null,null,null,83,"CE"]
[{"$f":"IF(RIGHT('Org structure'!D83,18)<>\"[Name of sub-vote]\",'Org structure'!D83,\"\")","v":""},null,null,null,null,null,null,null,null,0,0,null,null,null,null,null,null,null,null,null,null,null,null,null,null,null,null,null,84,"CE"]
[{"$f":"IF(RIGHT('Org structure'!D84,18)<>\"[Name of sub-vote]\",'Org structure'!D84,\"\")","v":""},null,null,null,null,null,null,null,null,0,0,null,null,null,null,null,null,null,null,null,null,null,null,null,null,null,null,null,85,"CE"]
[{"$f":"IF(RIGHT('Org structure'!D85,18)<>\"[Name of sub-vote]\",'Org structure'!D85,\"\")","v":""},null,null,null,null,null,null,null,null,0,0,null,null,null,null,null,null,null,null,null,null,null,null,null,null,null,null,null,86,"CE"]
[{"$f":"IF(RIGHT('Org structure'!D86,18)<>\"[Name of sub-vote]\",'Org structure'!D86,\"\")","v":""},null,null,null,null,null,null,null,null,0,0,null,null,null,null,null,null,null,null,null,null,null,null,null,null,null,null,null,87,"CE"]
[{"$f":"IF(RIGHT('Org structure'!D87,18)<>\"[Name of sub-vote]\",'Org structure'!D87,\"\")","v":""},null,null,null,null,null,null,null,null,0,0,null,null,null,null,null,null,null,null,null,null,null,null,null,null,null,null,null,88,"CE"]
[{"$f":"IF(RIGHT('Org structure'!D88,18)<>\"[Name of sub-vote]\",'Org structure'!D88,\"\")","v":""},null,null,null,null,null,null,null,null,0,0,null,null,null,null,null,null,null,null,null,null,null,null,null,null,null,null,null,89,"CE"]
[{"$f":"IF(RIGHT('Org structure'!D89,18)<>\"[Name of sub-vote]\",'Org structure'!D89,\"\")","v":""},null,null,null,null,null,null,null,null,0,0,null,null,null,null,null,null,null,null,null,null,null,null,null,null,null,null,null,810,"CE"]
[{"$f":"'Org structure'!A10","v":"Vote 9 - Roads"},null,{"$f":"SUM(C97:C106)","v":0},{"$f":"SUM(D97:D106)","v":0},0,0,0,0,0,0,0,{"$f":"SUM(L97:L106)","v":0},{"$f":"SUM(M97:M106)","v":0}]
[{"$f":"IF(RIGHT('Org structure'!D92,18)<>\"[Name of sub-vote]\",'Org structure'!D92,\"\")","v":""},null,null,null,null,null,null,null,null,0,0,null,null,null,null,null,null,null,null,null,null,null,null,null,null,null,null,null,91,"CE"]
[{"$f":"IF(RIGHT('Org structure'!D93,18)<>\"[Name of sub-vote]\",'Org structure'!D93,\"\")","v":""},null,null,null,null,null,null,null,null,0,0,null,null,null,null,null,null,null,null,null,null,null,null,null,null,null,null,null,92,"CE"]
[{"$f":"IF(RIGHT('Org structure'!D94,18)<>\"[Name of sub-vote]\",'Org structure'!D94,\"\")","v":""},null,null,null,null,null,null,null,null,0,0,null,null,null,null,null,null,null,null,null,null,null,null,null,null,null,null,null,93,"CE"]
[{"$f":"IF(RIGHT('Org structure'!D95,18)<>\"[Name of sub-vote]\",'Org structure'!D95,\"\")","v":""},null,null,null,null,null,null,null,null,0,0,null,null,null,null,null,null,null,null,null,null,null,null,null,null,null,null,null,94,"CE"]
[{"$f":"IF(RIGHT('Org structure'!D96,18)<>\"[Name of sub-vote]\",'Org structure'!D96,\"\")","v":""},null,null,null,null,null,null,null,null,0,0,null,null,null,null,null,null,null,null,null,null,null,null,null,null,null,null,null,95,"CE"]
[{"$f":"IF(RIGHT('Org structure'!D97,18)<>\"[Name of sub-vote]\",'Org structure'!D97,\"\")","v":""},null,null,null,null,null,null,null,null,0,0,null,null,null,null,null,null,null,null,null,null,null,null,null,null,null,null,null,96,"CE"]
[{"$f":"IF(RIGHT('Org structure'!D98,18)<>\"[Name of sub-vote]\",'Org structure'!D98,\"\")","v":""},null,null,null,null,null,null,null,null,0,0,null,null,null,null,null,null,null,null,null,null,null,null,null,null,null,null,null,97,"CE"]
[{"$f":"IF(RIGHT('Org structure'!D99,18)<>\"[Name of sub-vote]\",'Org structure'!D99,\"\")","v":""},null,null,null,null,null,null,null,null,0,0,null,null,null,null,null,null,null,null,null,null,null,null,null,null,null,null,null,98,"CE"]
[{"$f":"IF(RIGHT('Org structure'!D100,18)<>\"[Name of sub-vote]\",'Org structure'!D100,\"\")","v":""},null,null,null,null,null,null,null,null,0,0,null,null,null,null,null,null,null,null,null,null,null,null,null,null,null,null,null,99,"CE"]
[{"$f":"IF(RIGHT('Org structure'!D101,18)<>\"[Name of sub-vote]\",'Org structure'!D101,\"\")","v":0},null,null,null,null,null,null,null,null,0,0,null,null,null,null,null,null,null,null,null,null,null,null,null,null,null,null,null,910,"CE"]
[{"$f":"'Org structure'!A11","v":"Vote 10 - Sport and Recreation"},null,{"$f":"SUM(C108:C117)","v":0},{"$f":"SUM(D108:D117)","v":0},0,0,0,0,0,0,0,{"$f":"SUM(L108:L117)","v":0},{"$f":"SUM(M108:M117)","v":0}]
[{"$f":"IF(RIGHT('Org structure'!D102,18)<>\"[Name of sub-vote]\",'Org structure'!D102,\"\")","v":"10.1 - Recreational Facilities"},null,null,null,null,null,null,null,null,0,0,null,null,null,null,null,null,null,null,null,null,null,null,null,null,null,null,null,101,"CE"]
[{"$f":"IF(RIGHT('Org structure'!D103,18)<>\"[Name of sub-vote]\",'Org structure'!D103,\"\")","v":""},null,null,null,null,null,null,null,null,0,0,null,null,null,null,null,null,null,null,null,null,null,null,null,null,null,null,null,102,"CE"]
[{"$f":"IF(RIGHT('Org structure'!D104,18)<>\"[Name of sub-vote]\",'Org structure'!D104,\"\")","v":""},null,null,null,null,null,null,null,null,0,0,null,null,null,null,null,null,null,null,null,null,null,null,null,null,null,null,null,103,"CE"]
[{"$f":"IF(RIGHT('Org structure'!D105,18)<>\"[Name of sub-vote]\",'Org structure'!D105,\"\")","v":""},null,null,null,null,null,null,null,null,0,0,null,null,null,null,null,null,null,null,null,null,null,null,null,null,null,null,null,104,"CE"]
[{"$f":"IF(RIGHT('Org structure'!D106,18)<>\"[Name of sub-vote]\",'Org structure'!D106,\"\")","v":""},null,null,null,null,null,null,null,null,0,0,null,null,null,null,null,null,null,null,null,null,null,null,null,null,null,null,null,105,"CE"]
[{"$f":"IF(RIGHT('Org structure'!D107,18)<>\"[Name of sub-vote]\",'Org structure'!D107,\"\")","v":""},null,null,null,null,null,null,null,null,0,0,null,null,null,null,null,null,null,null,null,null,null,null,null,null,null,null,null,106,"CE"]
[{"$f":"IF(RIGHT('Org structure'!D108,18)<>\"[Name of sub-vote]\",'Org structure'!D108,\"\")","v":""},null,null,null,null,null,null,null,null,0,0,null,null,null,null,null,null,null,null,null,null,null,null,null,null,null,null,null,107,"CE"]
[{"$f":"IF(RIGHT('Org structure'!D109,18)<>\"[Name of sub-vote]\",'Org structure'!D109,\"\")","v":""},null,null,null,null,null,null,null,null,0,0,null,null,null,null,null,null,null,null,null,null,null,null,null,null,null,null,null,108,"CE"]
[{"$f":"IF(RIGHT('Org structure'!D110,18)<>\"[Name of sub-vote]\",'Org structure'!D110,\"\")","v":""},null,null,null,null,null,null,null,null,0,0,null,null,null,null,null,null,null,null,null,null,null,null,null,null,null,null,null,109,"CE"]
[{"$f":"IF(RIGHT('Org structure'!D111,18)<>\"[Name of sub-vote]\",'Org structure'!D111,\"\")","v":""},null,null,null,null,null,null,null,null,0,0,null,null,null,null,null,null,null,null,null,null,null,null,null,null,null,null,null,1010,"CE"]
[{"$f":"'Org structure'!A12","v":"Vote 11 - [NAME OF VOTE 11]"},null,{"$f":"SUM(C119:C128)","v":0},{"$f":"SUM(D119:D128)","v":0},0,0,0,0,0,0,0,{"$f":"SUM(L119:L128)","v":0},{"$f":"SUM(M119:M128)","v":0}]
[{"$f":"IF(RIGHT('Org structure'!D113,18)<>\"[Name of sub-vote]\",'Org structure'!D113,\"\")","v":""},null,null,null,null,null,null,null,null,0,0,null,null,null,null,null,null,null,null,null,null,null,null,null,null,null,null,null,111,"CE"]
[{"$f":"IF(RIGHT('Org structure'!D114,18)<>\"[Name of sub-vote]\",'Org structure'!D114,\"\")","v":""},null,null,null,null,null,null,null,null,0,0,null,null,null,null,null,null,null,null,null,null,null,null,null,null,null,null,null,112,"CE"]
[{"$f":"IF(RIGHT('Org structure'!D115,18)<>\"[Name of sub-vote]\",'Org structure'!D115,\"\")","v":""},null,null,null,null,null,null,null,null,0,0,null,null,null,null,null,null,null,null,null,null,null,null,null,null,null,null,null,113,"CE"]
[{"$f":"IF(RIGHT('Org structure'!D116,18)<>\"[Name of sub-vote]\",'Org structure'!D116,\"\")","v":""},null,null,null,null,null,null,null,null,0,0,null,null,null,null,null,null,null,null,null,null,null,null,null,null,null,null,null,114,"CE"]
[{"$f":"IF(RIGHT('Org structure'!D117,18)<>\"[Name of sub-vote]\",'Org structure'!D117,\"\")","v":""},null,null,null,null,null,null,null,null,0,0,null,null,null,null,null,null,null,null,null,null,null,null,null,null,null,null,null,115,"CE"]
[{"$f":"IF(RIGHT('Org structure'!D118,18)<>\"[Name of sub-vote]\",'Org structure'!D118,\"\")","v":""},null,null,null,null,null,null,null,null,0,0,null,null,null,null,null,null,null,null,null,null,null,null,null,null,null,null,null,116,"CE"]
[{"$f":"IF(RIGHT('Org structure'!D119,18)<>\"[Name of sub-vote]\",'Org structure'!D119,\"\")","v":""},null,null,null,null,null,null,null,null,0,0,null,null,null,null,null,null,null,null,null,null,null,null,null,null,null,null,null,117,"CE"]
[{"$f":"IF(RIGHT('Org structure'!D120,18)<>\"[Name of sub-vote]\",'Org structure'!D120,\"\")","v":""},null,null,null,null,null,null,null,null,0,0,null,null,null,null,null,null,null,null,null,null,null,null,null,null,null,null,null,118,"CE"]
[{"$f":"IF(RIGHT('Org structure'!D121,18)<>\"[Name of sub-vote]\",'Org structure'!D121,\"\")","v":""},null,null,null,null,null,null,null,null,0,0,null,null,null,null,null,null,null,null,null,null,null,null,null,null,null,null,null,119,"CE"]
[{"$f":"IF(RIGHT('Org structure'!D122,18)<>\"[Name of sub-vote]\",'Org structure'!D122,\"\")","v":""},null,null,null,null,null,null,null,null,0,0,null,null,null,null,null,null,null,null,null,null,null,null,null,null,null,null,null,1110,"CE"]
[{"$f":"'Org structure'!A13","v":"Vote 12 - [NAME OF VOTE 12]"},null,{"$f":"SUM(C130:C139)","v":0},{"$f":"SUM(D130:D139)","v":0},0,0,0,0,0,0,0,{"$f":"SUM(L130:L139)","v":0},{"$f":"SUM(M130:M139)","v":0}]
[{"$f":"IF(RIGHT('Org structure'!D124,18)<>\"[Name of sub-vote]\",'Org structure'!D124,\"\")","v":""},null,null,null,null,null,null,null,null,0,0,null,null,null,null,null,null,null,null,null,null,null,null,null,null,null,null,null,121,"CE"]
[{"$f":"IF(RIGHT('Org structure'!D125,18)<>\"[Name of sub-vote]\",'Org structure'!D125,\"\")","v":""},null,null,null,null,null,null,null,null,0,0,null,null,null,null,null,null,null,null,null,null,null,null,null,null,null,null,null,122,"CE"]
[{"$f":"IF(RIGHT('Org structure'!D126,18)<>\"[Name of sub-vote]\",'Org structure'!D126,\"\")","v":""},null,null,null,null,null,null,null,null,0,0,null,null,null,null,null,null,null,null,null,null,null,null,null,null,null,null,null,123,"CE"]
[{"$f":"IF(RIGHT('Org structure'!D127,18)<>\"[Name of sub-vote]\",'Org structure'!D127,\"\")","v":""},null,null,null,null,null,null,null,null,0,0,null,null,null,null,null,null,null,null,null,null,null,null,null,null,null,null,null,124,"CE"]
[{"$f":"IF(RIGHT('Org structure'!D128,18)<>\"[Name of sub-vote]\",'Org structure'!D128,\"\")","v":""},null,null,null,null,null,null,null,null,0,0,null,null,null,null,null,null,null,null,null,null,null,null,null,null,null,null,null,125,"CE"]
[{"$f":"IF(RIGHT('Org structure'!D129,18)<>\"[Name of sub-vote]\",'Org structure'!D129,\"\")","v":""},null,null,null,null,null,null,null,null,0,0,null,null,null,null,null,null,null,null,null,null,null,null,null,null,null,null,null,126,"CE"]
[{"$f":"IF(RIGHT('Org structure'!D130,18)<>\"[Name of sub-vote]\",'Org structure'!D130,\"\")","v":""},null,null,null,null,null,null,null,null,{"$f":"SUM(E136:I136)","v":0},{"$f":"IF(D136=0,C136+J136,D136+J136)","v":0},null,null,null,null,null,null,null,null,null,null,null,null,null,null,null,null,null,127,"CE"]
[{"$f":"IF(RIGHT('Org structure'!D131,18)<>\"[Name of sub-vote]\",'Org structure'!D131,\"\")","v":""},null,null,null,null,null,null,null,null,0,0,null,null,null,null,null,null,null,null,null,null,null,null,null,null,null,null,null,128,"CE"]
[{"$f":"IF(RIGHT('Org structure'!D132,18)<>\"[Name of sub-vote]\",'Org structure'!D132,\"\")","v":""},null,null,null,null,null,null,null,null,0,0,null,null,null,null,null,null,null,null,null,null,null,null,null,null,null,null,null,129,"CE"]
[{"$f":"IF(RIGHT('Org structure'!D133,18)<>\"[Name of sub-vote]\",'Org structure'!D133,\"\")","v":""},null,null,null,null,null,null,null,null,0,0,null,null,null,null,null,null,null,null,null,null,null,null,null,null,null,null,null,1210,"CE"]
[{"$f":"'Org structure'!A14","v":"Vote 13 - [NAME OF VOTE 13]"},null,{"$f":"SUM(C141:C150)","v":0},{"$f":"SUM(D141:D150)","v":0},0,0,0,0,0,0,0,{"$f":"SUM(L141:L150)","v":0},{"$f":"SUM(M141:M150)","v":0}]
[{"$f":"IF(RIGHT('Org structure'!D135,18)<>\"[Name of sub-vote]\",'Org structure'!D135,\"\")","v":""},null,null,null,null,null,null,null,null,0,0,null,null,null,null,null,null,null,null,null,null,null,null,null,null,null,null,null,131,"CE"]
[{"$f":"IF(RIGHT('Org structure'!D136,18)<>\"[Name of sub-vote]\",'Org structure'!D136,\"\")","v":""},null,null,null,null,null,null,null,null,0,0,null,null,null,null,null,null,null,null,null,null,null,null,null,null,null,null,null,132,"CE"]
[{"$f":"IF(RIGHT('Org structure'!D137,18)<>\"[Name of sub-vote]\",'Org structure'!D137,\"\")","v":""},null,null,null,null,null,null,null,null,0,0,null,null,null,null,null,null,null,null,null,null,null,null,null,null,null,null,null,133,"CE"]
[{"$f":"IF(RIGHT('Org structure'!D138,18)<>\"[Name of sub-vote]\",'Org structure'!D138,\"\")","v":""},null,null,null,null,null,null,null,null,0,0,null,null,null,null,null,null,null,null,null,null,null,null,null,null,null,null,null,134,"CE"]
[{"$f":"IF(RIGHT('Org structure'!D139,18)<>\"[Name of sub-vote]\",'Org structure'!D139,\"\")","v":""},null,null,null,null,null,null,null,null,0,0,null,null,null,null,null,null,null,null,null,null,null,null,null,null,null,null,null,135,"CE"]
[{"$f":"IF(RIGHT('Org structure'!D140,18)<>\"[Name of sub-vote]\",'Org structure'!D140,\"\")","v":""},null,null,null,null,null,null,null,null,0,0,null,null,null,null,null,null,null,null,null,null,null,null,null,null,null,null,null,136,"CE"]
[{"$f":"IF(RIGHT('Org structure'!D141,18)<>\"[Name of sub-vote]\",'Org structure'!D141,\"\")","v":""},null,null,null,null,null,null,null,null,0,0,null,null,null,null,null,null,null,null,null,null,null,null,null,null,null,null,null,137,"CE"]
[{"$f":"IF(RIGHT('Org structure'!D142,18)<>\"[Name of sub-vote]\",'Org structure'!D142,\"\")","v":""},null,null,null,null,null,null,null,null,0,0,null,null,null,null,null,null,null,null,null,null,null,null,null,null,null,null,null,138,"CE"]
[{"$f":"IF(RIGHT('Org structure'!D143,18)<>\"[Name of sub-vote]\",'Org structure'!D143,\"\")","v":""},null,null,null,null,null,null,null,null,0,0,null,null,null,null,null,null,null,null,null,null,null,null,null,null,null,null,null,139,"CE"]
[{"$f":"IF(RIGHT('Org structure'!D144,18)<>\"[Name of sub-vote]\",'Org structure'!D144,\"\")","v":""},null,null,null,null,null,null,null,null,0,0,null,null,null,null,null,null,null,null,null,null,null,null,null,null,null,null,null,1310,"CE"]
[{"$f":"'Org structure'!A15","v":"Vote 14 - [NAME OF VOTE 14]"},null,{"$f":"SUM(C152:C161)","v":0},{"$f":"SUM(D152:D161)","v":0},0,0,0,0,0,0,0,{"$f":"SUM(L152:L161)","v":0},{"$f":"SUM(M152:M161)","v":0}]
[{"$f":"IF(RIGHT('Org structure'!D146,18)<>\"[Name of sub-vote]\",'Org structure'!D146,\"\")","v":""},null,null,null,null,null,null,null,null,0,0,null,null,null,null,null,null,null,null,null,null,null,null,null,null,null,null,null,141,"CE"]
[{"$f":"IF(RIGHT('Org structure'!D147,18)<>\"[Name of sub-vote]\",'Org structure'!D147,\"\")","v":""},null,null,null,null,null,null,null,null,0,0,null,null,null,null,null,null,null,null,null,null,null,null,null,null,null,null,null,142,"CE"]
[{"$f":"IF(RIGHT('Org structure'!D148,18)<>\"[Name of sub-vote]\",'Org structure'!D148,\"\")","v":""},null,null,null,null,null,null,null,null,0,0,null,null,null,null,null,null,null,null,null,null,null,null,null,null,null,null,null,143,"CE"]
[{"$f":"IF(RIGHT('Org structure'!D149,18)<>\"[Name of sub-vote]\",'Org structure'!D149,\"\")","v":""},null,null,null,null,null,null,null,null,0,0,null,null,null,null,null,null,null,null,null,null,null,null,null,null,null,null,null,144,"CE"]
[{"$f":"IF(RIGHT('Org structure'!D150,18)<>\"[Name of sub-vote]\",'Org structure'!D150,\"\")","v":""},null,null,null,null,null,null,null,null,0,0,null,null,null,null,null,null,null,null,null,null,null,null,null,null,null,null,null,145,"CE"]
[{"$f":"IF(RIGHT('Org structure'!D151,18)<>\"[Name of sub-vote]\",'Org structure'!D151,\"\")","v":""},null,null,null,null,null,null,null,null,0,0,null,null,null,null,null,null,null,null,null,null,null,null,null,null,null,null,null,146,"CE"]
[{"$f":"IF(RIGHT('Org structure'!D152,18)<>\"[Name of sub-vote]\",'Org structure'!D152,\"\")","v":""},null,null,null,null,null,null,null,null,0,0,null,null,null,null,null,null,null,null,null,null,null,null,null,null,null,null,null,147,"CE"]
[{"$f":"IF(RIGHT('Org structure'!D153,18)<>\"[Name of sub-vote]\",'Org structure'!D153,\"\")","v":""},null,null,null,null,null,null,null,null,0,0,null,null,null,null,null,null,null,null,null,null,null,null,null,null,null,null,null,148,"CE"]
[{"$f":"IF(RIGHT('Org structure'!D154,18)<>\"[Name of sub-vote]\",'Org structure'!D154,\"\")","v":""},null,null,null,null,null,null,null,null,0,0,null,null,null,null,null,null,null,null,null,null,null,null,null,null,null,null,null,149,"CE"]
[{"$f":"IF(RIGHT('Org structure'!D155,18)<>\"[Name of sub-vote]\",'Org structure'!D155,\"\")","v":""},null,null,null,null,null,null,null,null,0,0,null,null,null,null,null,null,null,null,null,null,null,null,null,null,null,null,null,1410,"CE"]
[{"$f":"'Org structure'!A16","v":"Vote 15 - [NAME OF VOTE 15]"},null,{"$f":"SUM(C163:C172)","v":0},{"$f":"SUM(D163:D172)","v":0},0,0,0,0,0,0,0,{"$f":"SUM(L163:L172)","v":0},{"$f":"SUM(M163:M172)","v":0}]
[{"$f":"IF(RIGHT('Org structure'!D157,18)<>\"[Name of sub-vote]\",'Org structure'!D157,\"\")","v":""},null,null,null,null,null,null,null,null,0,0,null,null,null,null,null,null,null,null,null,null,null,null,null,null,null,null,null,151,"CE"]
[{"$f":"IF(RIGHT('Org structure'!D158,18)<>\"[Name of sub-vote]\",'Org structure'!D158,\"\")","v":""},null,null,null,null,null,null,null,null,0,0,null,null,null,null,null,null,null,null,null,null,null,null,null,null,null,null,null,152,"CE"]
[{"$f":"IF(RIGHT('Org structure'!D159,18)<>\"[Name of sub-vote]\",'Org structure'!D159,\"\")","v":""},null,null,null,null,null,null,null,null,0,0,null,null,null,null,null,null,null,null,null,null,null,null,null,null,null,null,null,153,"CE"]
[{"$f":"IF(RIGHT('Org structure'!D160,18)<>\"[Name of sub-vote]\",'Org structure'!D160,\"\")","v":""},null,null,null,null,null,null,null,null,0,0,null,null,null,null,null,null,null,null,null,null,null,null,null,null,null,null,null,154,"CE"]
[{"$f":"IF(RIGHT('Org structure'!D161,18)<>\"[Name of sub-vote]\",'Org structure'!D161,\"\")","v":""},null,null,null,null,null,null,null,null,0,0,null,null,null,null,null,null,null,null,null,null,null,null,null,null,null,null,null,155,"CE"]
[{"$f":"IF(RIGHT('Org structure'!D162,18)<>\"[Name of sub-vote]\",'Org structure'!D162,\"\")","v":""},null,null,null,null,null,null,null,null,0,0,null,null,null,null,null,null,null,null,null,null,null,null,null,null,null,null,null,156,"CE"]
[{"$f":"IF(RIGHT('Org structure'!D163,18)<>\"[Name of sub-vote]\",'Org structure'!D163,\"\")","v":""},null,null,null,null,null,null,null,null,0,0,null,null,null,null,null,null,null,null,null,null,null,null,null,null,null,null,null,157,"CE"]
[{"$f":"IF(RIGHT('Org structure'!D164,18)<>\"[Name of sub-vote]\",'Org structure'!D164,\"\")","v":""},null,null,null,null,null,null,null,null,0,0,null,null,null,null,null,null,null,null,null,null,null,null,null,null,null,null,null,158,"CE"]
[{"$f":"IF(RIGHT('Org structure'!D165,18)<>\"[Name of sub-vote]\",'Org structure'!D165,\"\")","v":""},null,null,null,null,null,null,null,null,0,0,null,null,null,null,null,null,null,null,null,null,null,null,null,null,null,null,null,159,"CE"]
[{"$f":"IF(RIGHT('Org structure'!D166,18)<>\"[Name of sub-vote]\",'Org structure'!D166,\"\")","v":""},null,null,null,null,null,null,null,null,0,0,null,null,null,null,null,null,null,null,null,null,null,null,null,null,null,null,null,1510,"CE"]
["Capital multi-year expenditure sub-total",null,{"$f":"C8+C19+C30+C41+C52+C63+C74+C85+C96+C107+C118+C129+C140+C151+C162","v":0},{"$f":"D8+D19+D30+D41+D52+D63+D74+D85+D96+D107+D118+D129+D140+D151+D162","v":0},0,0,0,0,0,0,0,{"$f":"L8+L19+L30+L41+L52+L63+L74+L85+L96+L107+L118+L129+L140+L151+L162","v":0},{"$f":"M8+M19+M30+M41+M52+M63+M74+M85+M96+M107+M118+M129+M140+M151+M162","v":0}]
[]
["Capital expenditure - Municipal Vote",2]
["Single-year expenditure appropriation"]
[{"$f":"B5B!A8","v":"Vote 1 - Finance and Admin"},null,{"$f":"SUM(C178:C187)","v":4588495},{"$f":"SUM(D178:D187)","v":0},0,0,0,0,-50000,{"$f":"SUM(E177:I177)","v":-50000},{"$f":"IF(D177=0,C177+J177,D177+J177)","v":4538495},{"$f":"SUM(L178:L187)","v":3344000},{"$f":"SUM(M178:M187)","v":3494482}]
[{"$f":"B5B!A9","v":"1.1 - Supply Chain Management"},null,{"$f":"SUMIFS(Sheet1!S71_OriginalBudget,Sheet1!S71_SubMunicipalVoteNo,$AC:$AC,Sheet1!S71_A5CapexCode,$AD:$AD)","v":0},{"$f":"SUMIFS(Sheet1!S71_SpecialAdjustedBudget,Sheet1!S71_SubMunicipalVoteNo,$AC:$AC,Sheet1!S71_A5CapexCode,$AD:$AD)","v":0},null,null,null,null,{"$f":"SUMIFS(Sheet1!S71_AdjustmentAmount,Sheet1!S71_SubMunicipalVoteNo,$AC:$AC,Sheet1!S71_A5CapexCode,$AD:$AD)","v":0},0,0,{"$f":"SUMIFS(Sheet1!S71_OY1AdjustedBudget,Sheet1!S71_SubMunicipalVoteNo,$AC:$AC,Sheet1!S71_A5CapexCode,$AD:$AD)","v":0},{"$f":"SUMIFS(Sheet1!S71_OY2AdjustedBudget,Sheet1!S71_SubMunicipalVoteNo,$AC:$AC,Sheet1!S71_A5CapexCode,$AD:$AD)","v":0},null,null,null,null,null,null,null,null,null,null,null,null,null,null,null,11,"CE"]
[{"$f":"B5B!A10","v":"1.2 - Finance"},null,{"$f":"SUMIFS(Sheet1!S71_OriginalBudget,Sheet1!S71_SubMunicipalVoteNo,$AC:$AC,Sheet1!S71_A5CapexCode,$AD:$AD)","v":0},{"$f":"SUMIFS(Sheet1!S71_SpecialAdjustedBudget,Sheet1!S71_SubMunicipalVoteNo,$AC:$AC,Sheet1!S71_A5CapexCode,$AD:$AD)","v":0},null,null,null,null,{"$f":"SUMIFS(Sheet1!S71_AdjustmentAmount,Sheet1!S71_SubMunicipalVoteNo,$AC:$AC,Sheet1!S71_A5CapexCode,$AD:$AD)","v":0},0,0,{"$f":"SUMIFS(Sheet1!S71_OY1AdjustedBudget,Sheet1!S71_SubMunicipalVoteNo,$AC:$AC,Sheet1!S71_A5CapexCode,$AD:$AD)","v":0},{"$f":"SUMIFS(Sheet1!S71_OY2AdjustedBudget,Sheet1!S71_SubMunicipalVoteNo,$AC:$AC,Sheet1!S71_A5CapexCode,$AD:$AD)","v":0},null,null,null,null,null,null,null,null,null,null,null,null,null,null,null,12,"CE"]
[{"$f":"B5B!A11","v":"1.3 - Fleet Management"},null,{"$f":"SUMIFS(Sheet1!S71_OriginalBudget,Sheet1!S71_SubMunicipalVoteNo,$AC:$AC,Sheet1!S71_A5CapexCode,$AD:$AD)","v":0},{"$f":"SUMIFS(Sheet1!S71_SpecialAdjustedBudget,Sheet1!S71_SubMunicipalVoteNo,$AC:$AC,Sheet1!S71_A5CapexCode,$AD:$AD)","v":0},null,null,null,null,{"$f":"SUMIFS(Sheet1!S71_AdjustmentAmount,Sheet1!S71_SubMunicipalVoteNo,$AC:$AC,Sheet1!S71_A5CapexCode,$AD:$AD)","v":0},0,0,{"$f":"SUMIFS(Sheet1!S71_OY1AdjustedBudget,Sheet1!S71_SubMunicipalVoteNo,$AC:$AC,Sheet1!S71_A5CapexCode,$AD:$AD)","v":0},{"$f":"SUMIFS(Sheet1!S71_OY2AdjustedBudget,Sheet1!S71_SubMunicipalVoteNo,$AC:$AC,Sheet1!S71_A5CapexCode,$AD:$AD)","v":0},null,null,null,null,null,null,null,null,null,null,null,null,null,null,null,13,"CE"]
[{"$f":"B5B!A12","v":"1.4 - Security Services"},null,{"$f":"SUMIFS(Sheet1!S71_OriginalBudget,Sheet1!S71_SubMunicipalVoteNo,$AC:$AC,Sheet1!S71_A5CapexCode,$AD:$AD)","v":0},{"$f":"SUMIFS(Sheet1!S71_SpecialAdjustedBudget,Sheet1!S71_SubMunicipalVoteNo,$AC:$AC,Sheet1!S71_A5CapexCode,$AD:$AD)","v":0},null,null,null,null,{"$f":"SUMIFS(Sheet1!S71_AdjustmentAmount,Sheet1!S71_SubMunicipalVoteNo,$AC:$AC,Sheet1!S71_A5CapexCode,$AD:$AD)","v":0},0,0,{"$f":"SUMIFS(Sheet1!S71_OY1AdjustedBudget,Sheet1!S71_SubMunicipalVoteNo,$AC:$AC,Sheet1!S71_A5CapexCode,$AD:$AD)","v":0},{"$f":"SUMIFS(Sheet1!S71_OY2AdjustedBudget,Sheet1!S71_SubMunicipalVoteNo,$AC:$AC,Sheet1!S71_A5CapexCode,$AD:$AD)","v":0},null,null,null,null,null,null,null,null,null,null,null,null,null,null,null,14,"CE"]
[{"$f":"B5B!A13","v":"1.5 - Information Technology"},null,{"$f":"SUMIFS(Sheet1!S71_OriginalBudget,Sheet1!S71_SubMunicipalVoteNo,$AC:$AC,Sheet1!S71_A5CapexCode,$AD:$AD)","v":0},{"$f":"SUMIFS(Sheet1!S71_SpecialAdjustedBudget,Sheet1!S71_SubMunicipalVoteNo,$AC:$AC,Sheet1!S71_A5CapexCode,$AD:$AD)","v":0},null,null,null,null,{"$f":"SUMIFS(Sheet1!S71_AdjustmentAmount,Sheet1!S71_SubMunicipalVoteNo,$AC:$AC,Sheet1!S71_A5CapexCode,$AD:$AD)","v":0},0,0,{"$f":"SUMIFS(Sheet1!S71_OY1AdjustedBudget,Sheet1!S71_SubMunicipalVoteNo,$AC:$AC,Sheet1!S71_A5CapexCode,$AD:$AD)","v":0},{"$f":"SUMIFS(Sheet1!S71_OY2AdjustedBudget,Sheet1!S71_SubMunicipalVoteNo,$AC:$AC,Sheet1!S71_A5CapexCode,$AD:$AD)","v":0},null,null,null,null,null,null,null,null,null,null,null,null,null,null,null,15,"CE"]
[{"$f":"B5B!A14","v":"1.6 - Human Resources"},null,{"$f":"SUMIFS(Sheet1!S71_OriginalBudget,Sheet1!S71_SubMunicipalVoteNo,$AC:$AC,Sheet1!S71_A5CapexCode,$AD:$AD)","v":0},{"$f":"SUMIFS(Sheet1!S71_SpecialAdjustedBudget,Sheet1!S71_SubMunicipalVoteNo,$AC:$AC,Sheet1!S71_A5CapexCode,$AD:$AD)","v":0},null,null,null,null,{"$f":"SUMIFS(Sheet1!S71_AdjustmentAmount,Sheet1!S71_SubMunicipalVoteNo,$AC:$AC,Sheet1!S71_A5CapexCode,$AD:$AD)","v":0},0,0,{"$f":"SUMIFS(Sheet1!S71_OY1AdjustedBudget,Sheet1!S71_SubMunicipalVoteNo,$AC:$AC,Sheet1!S71_A5CapexCode,$AD:$AD)","v":0},{"$f":"SUMIFS(Sheet1!S71_OY2AdjustedBudget,Sheet1!S71_SubMunicipalVoteNo,$AC:$AC,Sheet1!S71_A5CapexCode,$AD:$AD)","v":0},null,null,null,null,null,null,null,null,null,null,null,null,null,null,null,16,"CE"]
[{"$f":"B5B!A15","v":"1.7 - Administrative and Corporate Support"},null,{"$f":"SUMIFS(Sheet1!S71_OriginalBudget,Sheet1!S71_SubMunicipalVoteNo,$AC:$AC,Sheet1!S71_A5CapexCode,$AD:$AD)","v":0},{"$f":"SUMIFS(Sheet1!S71_SpecialAdjustedBudget,Sheet1!S71_SubMunicipalVoteNo,$AC:$AC,Sheet1!S71_A5CapexCode,$AD:$AD)","v":0},null,null,null,null,{"$f":"SUMIFS(Sheet1!S71_AdjustmentAmount,Sheet1!S71_SubMunicipalVoteNo,$AC:$AC,Sheet1!S71_A5CapexCode,$AD:$AD)","v":0},0,0,{"$f":"SUMIFS(Sheet1!S71_OY1AdjustedBudget,Sheet1!S71_SubMunicipalVoteNo,$AC:$AC,Sheet1!S71_A5CapexCode,$AD:$AD)","v":0},{"$f":"SUMIFS(Sheet1!S71_OY2AdjustedBudget,Sheet1!S71_SubMunicipalVoteNo,$AC:$AC,Sheet1!S71_A5CapexCode,$AD:$AD)","v":0},null,null,null,null,null,null,null,null,null,null,null,null,null,null,null,17,"CE"]
[{"$f":"B5B!A16","v":"1.8 - Legal Services"},null,{"$f":"SUMIFS(Sheet1!S71_OriginalBudget,Sheet1!S71_SubMunicipalVoteNo,$AC:$AC,Sheet1!S71_A5CapexCode,$AD:$AD)","v":0},{"$f":"SUMIFS(Sheet1!S71_SpecialAdjustedBudget,Sheet1!S71_SubMunicipalVoteNo,$AC:$AC,Sheet1!S71_A5CapexCode,$AD:$AD)","v":0},null,null,null,null,{"$f":"SUMIFS(Sheet1!S71_AdjustmentAmount,Sheet1!S71_SubMunicipalVoteNo,$AC:$AC,Sheet1!S71_A5CapexCode,$AD:$AD)","v":0},0,0,{"$f":"SUMIFS(Sheet1!S71_OY1AdjustedBudget,Sheet1!S71_SubMunicipalVoteNo,$AC:$AC,Sheet1!S71_A5CapexCode,$AD:$AD)","v":0},{"$f":"SUMIFS(Sheet1!S71_OY2AdjustedBudget,Sheet1!S71_SubMunicipalVoteNo,$AC:$AC,Sheet1!S71_A5CapexCode,$AD:$AD)","v":0},null,null,null,null,null,null,null,null,null,null,null,null,null,null,null,18,"CE"]
[{"$f":"B5B!A17","v":"1.9 - Property Services"},null,{"$f":"SUMIFS(Sheet1!S71_OriginalBudget,Sheet1!S71_SubMunicipalVoteNo,$AC:$AC,Sheet1!S71_A5CapexCode,$AD:$AD)","v":0},{"$f":"SUMIFS(Sheet1!S71_SpecialAdjustedBudget,Sheet1!S71_SubMunicipalVoteNo,$AC:$AC,Sheet1!S71_A5CapexCode,$AD:$AD)","v":0},null,null,null,null,{"$f":"SUMIFS(Sheet1!S71_AdjustmentAmount,Sheet1!S71_SubMunicipalVoteNo,$AC:$AC,Sheet1!S71_A5CapexCode,$AD:$AD)","v":0},0,0,{"$f":"SUMIFS(Sheet1!S71_OY1AdjustedBudget,Sheet1!S71_SubMunicipalVoteNo,$AC:$AC,Sheet1!S71_A5CapexCode,$AD:$AD)","v":0},{"$f":"SUMIFS(Sheet1!S71_OY2AdjustedBudget,Sheet1!S71_SubMunicipalVoteNo,$AC:$AC,Sheet1!S71_A5CapexCode,$AD:$AD)","v":0},null,null,null,null,null,null,null,null,null,null,null,null,null,null,null,19,"CE"]
[{"$f":"B5B!A18","v":"1.10 - Asset Management"},null,{"$f":"SUMIFS(Sheet1!S71_OriginalBudget,Sheet1!S71_SubMunicipalVoteNo,$AC:$AC,Sheet1!S71_A5CapexCode,$AD:$AD)","v":4588495},{"$f":"SUMIFS(Sheet1!S71_SpecialAdjustedBudget,Sheet1!S71_SubMunicipalVoteNo,$AC:$AC,Sheet1!S71_A5CapexCode,$AD:$AD)","v":0},null,null,null,null,{"$f":"SUMIFS(Sheet1!S71_AdjustmentAmount,Sheet1!S71_SubMunicipalVoteNo,$AC:$AC,Sheet1!S71_A5CapexCode,$AD:$AD)","v":-50000},-50000,4538495,{"$f":"SUMIFS(Sheet1!S71_OY1AdjustedBudget,Sheet1!S71_SubMunicipalVoteNo,$AC:$AC,Sheet1!S71_A5CapexCode,$AD:$AD)","v":3344000},{"$f":"SUMIFS(Sheet1!S71_OY2AdjustedBudget,Sheet1!S71_SubMunicipalVoteNo,$AC:$AC,Sheet1!S71_A5CapexCode,$AD:$AD)","v":3494482},null,null,null,null,null,null,null,null,null,null,null,null,null,null,null,110,"CE"]
[{"$f":"B5B!A19","v":"Vote 2 - Executive and council"},null,{"$f":"SUM(C189:C198)","v":0},{"$f":"SUM(D189:D198)","v":0},0,0,0,0,150000,150000,150000,{"$f":"SUM(L189:L198)","v":209000},{"$f":"SUM(M189:M198)","v":218405}]
[{"$f":"B5B!A20","v":"2.1 - Mayor and Council"},null,{"$f":"SUMIFS(Sheet1!S71_OriginalBudget,Sheet1!S71_SubMunicipalVoteNo,$AC:$AC,Sheet1!S71_A5CapexCode,$AD:$AD)","v":0},{"$f":"SUMIFS(Sheet1!S71_SpecialAdjustedBudget,Sheet1!S71_SubMunicipalVoteNo,$AC:$AC,Sheet1!S71_A5CapexCode,$AD:$AD)","v":0},null,null,null,null,{"$f":"SUMIFS(Sheet1!S71_AdjustmentAmount,Sheet1!S71_SubMunicipalVoteNo,$AC:$AC,Sheet1!S71_A5CapexCode,$AD:$AD)","v":150000},150000,150000,{"$f":"SUMIFS(Sheet1!S71_OY1AdjustedBudget,Sheet1!S71_SubMunicipalVoteNo,$AC:$AC,Sheet1!S71_A5CapexCode,$AD:$AD)","v":209000},{"$f":"SUMIFS(Sheet1!S71_OY2AdjustedBudget,Sheet1!S71_SubMunicipalVoteNo,$AC:$AC,Sheet1!S71_A5CapexCode,$AD:$AD)","v":218405},null,null,null,null,null,null,null,null,null,null,null,null,null,null,null,21,"CE"]
[{"$f":"B5B!A21","v":"2.2 - Municipal Manager, Town Secretary and Chief Executive"},null,{"$f":"SUMIFS(Sheet1!S71_OriginalBudget,Sheet1!S71_SubMunicipalVoteNo,$AC:$AC,Sheet1!S71_A5CapexCode,$AD:$AD)","v":0},{"$f":"SUMIFS(Sheet1!S71_SpecialAdjustedBudget,Sheet1!S71_SubMunicipalVoteNo,$AC:$AC,Sheet1!S71_A5CapexCode,$AD:$AD)","v":0},null,null,null,null,{"$f":"SUMIFS(Sheet1!S71_AdjustmentAmount,Sheet1!S71_SubMunicipalVoteNo,$AC:$AC,Sheet1!S71_A5CapexCode,$AD:$AD)","v":0},0,0,{"$f":"SUMIFS(Sheet1!S71_OY1AdjustedBudget,Sheet1!S71_SubMunicipalVoteNo,$AC:$AC,Sheet1!S71_A5CapexCode,$AD:$AD)","v":0},{"$f":"SUMIFS(Sheet1!S71_OY2AdjustedBudget,Sheet1!S71_SubMunicipalVoteNo,$AC:$AC,Sheet1!S71_A5CapexCode,$AD:$AD)","v":0},null,null,null,null,null,null,null,null,null,null,null,null,null,null,null,22,"CE"]
[{"$f":"B5B!A22","v":""},null,{"$f":"SUMIFS(Sheet1!S71_OriginalBudget,Sheet1!S71_SubMunicipalVoteNo,$AC:$AC,Sheet1!S71_A5CapexCode,$AD:$AD)","v":0},{"$f":"SUMIFS(Sheet1!S71_SpecialAdjustedBudget,Sheet1!S71_SubMunicipalVoteNo,$AC:$AC,Sheet1!S71_A5CapexCode,$AD:$AD)","v":0},null,null,null,null,{"$f":"SUMIFS(Sheet1!S71_AdjustmentAmount,Sheet1!S71_SubMunicipalVoteNo,$AC:$AC,Sheet1!S71_A5CapexCode,$AD:$AD)","v":0},0,0,{"$f":"SUMIFS(Sheet1!S71_OY1AdjustedBudget,Sheet1!S71_SubMunicipalVoteNo,$AC:$AC,Sheet1!S71_A5CapexCode,$AD:$AD)","v":0},{"$f":"SUMIFS(Sheet1!S71_OY2AdjustedBudget,Sheet1!S71_SubMunicipalVoteNo,$AC:$AC,Sheet1!S71_A5CapexCode,$AD:$AD)","v":0},null,null,null,null,null,null,null,null,null,null,null,null,null,null,null,23,"CE"]
[{"$f":"B5B!A23","v":""},null,{"$f":"SUMIFS(Sheet1!S71_OriginalBudget,Sheet1!S71_SubMunicipalVoteNo,$AC:$AC,Sheet1!S71_A5CapexCode,$AD:$AD)","v":0},{"$f":"SUMIFS(Sheet1!S71_SpecialAdjustedBudget,Sheet1!S71_SubMunicipalVoteNo,$AC:$AC,Sheet1!S71_A5CapexCode,$AD:$AD)","v":0},null,null,null,null,{"$f":"SUMIFS(Sheet1!S71_AdjustmentAmount,Sheet1!S71_SubMunicipalVoteNo,$AC:$AC,Sheet1!S71_A5CapexCode,$AD:$AD)","v":0},0,0,{"$f":"SUMIFS(Sheet1!S71_OY1AdjustedBudget,Sheet1!S71_SubMunicipalVoteNo,$AC:$AC,Sheet1!S71_A5CapexCode,$AD:$AD)","v":0},{"$f":"SUMIFS(Sheet1!S71_OY2AdjustedBudget,Sheet1!S71_SubMunicipalVoteNo,$AC:$AC,Sheet1!S71_A5CapexCode,$AD:$AD)","v":0},null,null,null,null,null,null,null,null,null,null,null,null,null,null,null,24,"CE"]
[{"$f":"B5B!A24","v":""},null,{"$f":"SUMIFS(Sheet1!S71_OriginalBudget,Sheet1!S71_SubMunicipalVoteNo,$AC:$AC,Sheet1!S71_A5CapexCode,$AD:$AD)","v":0},{"$f":"SUMIFS(Sheet1!S71_SpecialAdjustedBudget,Sheet1!S71_SubMunicipalVoteNo,$AC:$AC,Sheet1!S71_A5CapexCode,$AD:$AD)","v":0},null,null,null,null,{"$f":"SUMIFS(Sheet1!S71_AdjustmentAmount,Sheet1!S71_SubMunicipalVoteNo,$AC:$AC,Sheet1!S71_A5CapexCode,$AD:$AD)","v":0},0,0,{"$f":"SUMIFS(Sheet1!S71_OY1AdjustedBudget,Sheet1!S71_SubMunicipalVoteNo,$AC:$AC,Sheet1!S71_A5CapexCode,$AD:$AD)","v":0},{"$f":"SUMIFS(Sheet1!S71_OY2AdjustedBudget,Sheet1!S71_SubMunicipalVoteNo,$AC:$AC,Sheet1!S71_A5CapexCode,$AD:$AD)","v":0},null,null,null,null,null,null,null,null,null,null,null,null,null,null,null,25,"CE"]
[{"$f":"B5B!A25","v":""},null,{"$f":"SUMIFS(Sheet1!S71_OriginalBudget,Sheet1!S71_SubMunicipalVoteNo,$AC:$AC,Sheet1!S71_A5CapexCode,$AD:$AD)","v":0},{"$f":"SUMIFS(Sheet1!S71_SpecialAdjustedBudget,Sheet1!S71_SubMunicipalVoteNo,$AC:$AC,Sheet1!S71_A5CapexCode,$AD:$AD)","v":0},null,null,null,null,{"$f":"SUMIFS(Sheet1!S71_AdjustmentAmount,Sheet1!S71_SubMunicipalVoteNo,$AC:$AC,Sheet1!S71_A5CapexCode,$AD:$AD)","v":0},0,0,{"$f":"SUMIFS(Sheet1!S71_OY1AdjustedBudget,Sheet1!S71_SubMunicipalVoteNo,$AC:$AC,Sheet1!S71_A5CapexCode,$AD:$AD)","v":0},{"$f":"SUMIFS(Sheet1!S71_OY2AdjustedBudget,Sheet1!S71_SubMunicipalVoteNo,$AC:$AC,Sheet1!S71_A5CapexCode,$AD:$AD)","v":0},null,null,null,null,null,null,null,null,null,null,null,null,null,null,null,26,"CE"]
[{"$f":"B5B!A26","v":""},null,{"$f":"SUMIFS(Sheet1!S71_OriginalBudget,Sheet1!S71_SubMunicipalVoteNo,$AC:$AC,Sheet1!S71_A5CapexCode,$AD:$AD)","v":0},{"$f":"SUMIFS(Sheet1!S71_SpecialAdjustedBudget,Sheet1!S71_SubMunicipalVoteNo,$AC:$AC,Sheet1!S71_A5CapexCode,$AD:$AD)","v":0},null,null,null,null,{"$f":"SUMIFS(Sheet1!S71_AdjustmentAmount,Sheet1!S71_SubMunicipalVoteNo,$AC:$AC,Sheet1!S71_A5CapexCode,$AD:$AD)","v":0},0,0,{"$f":"SUMIFS(Sheet1!S71_OY1AdjustedBudget,Sheet1!S71_SubMunicipalVoteNo,$AC:$AC,Sheet1!S71_A5CapexCode,$AD:$AD)","v":0},{"$f":"SUMIFS(Sheet1!S71_OY2AdjustedBudget,Sheet1!S71_SubMunicipalVoteNo,$AC:$AC,Sheet1!S71_A5CapexCode,$AD:$AD)","v":0},null,null,null,null,null,null,null,null,null,null,null,null,null,null,null,27,"CE"]
[{"$f":"B5B!A27","v":""},null,{"$f":"SUMIFS(Sheet1!S71_OriginalBudget,Sheet1!S71_SubMunicipalVoteNo,$AC:$AC,Sheet1!S71_A5CapexCode,$AD:$AD)","v":0},{"$f":"SUMIFS(Sheet1!S71_SpecialAdjustedBudget,Sheet1!S71_SubMunicipalVoteNo,$AC:$AC,Sheet1!S71_A5CapexCode,$AD:$AD)","v":0},null,null,null,null,{"$f":"SUMIFS(Sheet1!S71_AdjustmentAmount,Sheet1!S71_SubMunicipalVoteNo,$AC:$AC,Sheet1!S71_A5CapexCode,$AD:$AD)","v":0},0,0,{"$f":"SUMIFS(Sheet1!S71_OY1AdjustedBudget,Sheet1!S71_SubMunicipalVoteNo,$AC:$AC,Sheet1!S71_A5CapexCode,$AD:$AD)","v":0},{"$f":"SUMIFS(Sheet1!S71_OY2AdjustedBudget,Sheet1!S71_SubMunicipalVoteNo,$AC:$AC,Sheet1!S71_A5CapexCode,$AD:$AD)","v":0},null,null,null,null,null,null,null,null,null,null,null,null,null,null,null,28,"CE"]
[{"$f":"B5B!A28","v":""},null,{"$f":"SUMIFS(Sheet1!S71_OriginalBudget,Sheet1!S71_SubMunicipalVoteNo,$AC:$AC,Sheet1!S71_A5CapexCode,$AD:$AD)","v":0},{"$f":"SUMIFS(Sheet1!S71_SpecialAdjustedBudget,Sheet1!S71_SubMunicipalVoteNo,$AC:$AC,Sheet1!S71_A5CapexCode,$AD:$AD)","v":0},null,null,null,null,{"$f":"SUMIFS(Sheet1!S71_AdjustmentAmount,Sheet1!S71_SubMunicipalVoteNo,$AC:$AC,Sheet1!S71_A5CapexCode,$AD:$AD)","v":0},0,0,{"$f":"SUMIFS(Sheet1!S71_OY1AdjustedBudget,Sheet1!S71_SubMunicipalVoteNo,$AC:$AC,Sheet1!S71_A5CapexCode,$AD:$AD)","v":0},{"$f":"SUMIFS(Sheet1!S71_OY2AdjustedBudget,Sheet1!S71_SubMunicipalVoteNo,$AC:$AC,Sheet1!S71_A5CapexCode,$AD:$AD)","v":0},null,null,null,null,null,null,null,null,null,null,null,null,null,null,null,29,"CE"]
[{"$f":"B5B!A29","v":""},null,{"$f":"SUMIFS(Sheet1!S71_OriginalBudget,Sheet1!S71_SubMunicipalVoteNo,$AC:$AC,Sheet1!S71_A5CapexCode,$AD:$AD)","v":0},{"$f":"SUMIFS(Sheet1!S71_SpecialAdjustedBudget,Sheet1!S71_SubMunicipalVoteNo,$AC:$AC,Sheet1!S71_A5CapexCode,$AD:$AD)","v":0},null,null,null,null,{"$f":"SUMIFS(Sheet1!S71_AdjustmentAmount,Sheet1!S71_SubMunicipalVoteNo,$AC:$AC,Sheet1!S71_A5CapexCode,$AD:$AD)","v":0},0,0,{"$f":"SUMIFS(Sheet1!S71_OY1AdjustedBudget,Sheet1!S71_SubMunicipalVoteNo,$AC:$AC,Sheet1!S71_A5CapexCode,$AD:$AD)","v":0},{"$f":"SUMIFS(Sheet1!S71_OY2AdjustedBudget,Sheet1!S71_SubMunicipalVoteNo,$AC:$AC,Sheet1!S71_A5CapexCode,$AD:$AD)","v":0},null,null,null,null,null,null,null,null,null,null,null,null,null,null,null,210,"CE"]
[{"$f":"B5B!A30","v":"Vote 3 - Community and social services"},null,{"$f":"SUM(C200:C209)","v":11500000},{"$f":"SUM(D200:D209)","v":0},0,0,0,0,2220000,2220000,13720000,{"$f":"SUM(L200:L209)","v":9405000},{"$f":"SUM(M200:M209)","v":9828225}]
[{"$f":"B5B!A31","v":"3.1 - Disaster Management"},null,{"$f":"SUMIFS(Sheet1!S71_OriginalBudget,Sheet1!S71_SubMunicipalVoteNo,$AC:$AC,Sheet1!S71_A5CapexCode,$AD:$AD)","v":0},{"$f":"SUMIFS(Sheet1!S71_SpecialAdjustedBudget,Sheet1!S71_SubMunicipalVoteNo,$AC:$AC,Sheet1!S71_A5CapexCode,$AD:$AD)","v":0},null,null,null,null,{"$f":"SUMIFS(Sheet1!S71_AdjustmentAmount,Sheet1!S71_SubMunicipalVoteNo,$AC:$AC,Sheet1!S71_A5CapexCode,$AD:$AD)","v":0},0,0,{"$f":"SUMIFS(Sheet1!S71_OY1AdjustedBudget,Sheet1!S71_SubMunicipalVoteNo,$AC:$AC,Sheet1!S71_A5CapexCode,$AD:$AD)","v":0},{"$f":"SUMIFS(Sheet1!S71_OY2AdjustedBudget,Sheet1!S71_SubMunicipalVoteNo,$AC:$AC,Sheet1!S71_A5CapexCode,$AD:$AD)","v":0},null,null,null,null,null,null,null,null,null,null,null,null,null,null,null,31,"CE"]
[{"$f":"B5B!A32","v":"3.2 - Community Halls and Facilities"},null,{"$f":"SUMIFS(Sheet1!S71_OriginalBudget,Sheet1!S71_SubMunicipalVoteNo,$AC:$AC,Sheet1!S71_A5CapexCode,$AD:$AD)","v":10500000},{"$f":"SUMIFS(Sheet1!S71_SpecialAdjustedBudget,Sheet1!S71_SubMunicipalVoteNo,$AC:$AC,Sheet1!S71_A5CapexCode,$AD:$AD)","v":0},null,null,null,null,{"$f":"SUMIFS(Sheet1!S71_AdjustmentAmount,Sheet1!S71_SubMunicipalVoteNo,$AC:$AC,Sheet1!S71_A5CapexCode,$AD:$AD)","v":3220000},3220000,13720000,{"$f":"SUMIFS(Sheet1!S71_OY1AdjustedBudget,Sheet1!S71_SubMunicipalVoteNo,$AC:$AC,Sheet1!S71_A5CapexCode,$AD:$AD)","v":9405000},{"$f":"SUMIFS(Sheet1!S71_OY2AdjustedBudget,Sheet1!S71_SubMunicipalVoteNo,$AC:$AC,Sheet1!S71_A5CapexCode,$AD:$AD)","v":9828225},null,null,null,null,null,null,null,null,null,null,null,null,null,null,null,32,"CE"]
[{"$f":"B5B!A33","v":"3.3 - Libraries and Archives"},null,{"$f":"SUMIFS(Sheet1!S71_OriginalBudget,Sheet1!S71_SubMunicipalVoteNo,$AC:$AC,Sheet1!S71_A5CapexCode,$AD:$AD)","v":500000},{"$f":"SUMIFS(Sheet1!S71_SpecialAdjustedBudget,Sheet1!S71_SubMunicipalVoteNo,$AC:$AC,Sheet1!S71_A5CapexCode,$AD:$AD)","v":0},null,null,null,null,{"$f":"SUMIFS(Sheet1!S71_AdjustmentAmount,Sheet1!S71_SubMunicipalVoteNo,$AC:$AC,Sheet1!S71_A5CapexCode,$AD:$AD)","v":-500000},-500000,0,{"$f":"SUMIFS(Sheet1!S71_OY1AdjustedBudget,Sheet1!S71_SubMunicipalVoteNo,$AC:$AC,Sheet1!S71_A5CapexCode,$AD:$AD)","v":0},{"$f":"SUMIFS(Sheet1!S71_OY2AdjustedBudget,Sheet1!S71_SubMunicipalVoteNo,$AC:$AC,Sheet1!S71_A5CapexCode,$AD:$AD)","v":0},null,null,null,null,null,null,null,null,null,null,null,null,null,null,null,33,"CE"]
[{"$f":"B5B!A34","v":"3.4 - Education"},null,{"$f":"SUMIFS(Sheet1!S71_OriginalBudget,Sheet1!S71_SubMunicipalVoteNo,$AC:$AC,Sheet1!S71_A5CapexCode,$AD:$AD)","v":0},{"$f":"SUMIFS(Sheet1!S71_SpecialAdjustedBudget,Sheet1!S71_SubMunicipalVoteNo,$AC:$AC,Sheet1!S71_A5CapexCode,$AD:$AD)","v":0},null,null,null,null,{"$f":"SUMIFS(Sheet1!S71_AdjustmentAmount,Sheet1!S71_SubMunicipalVoteNo,$AC:$AC,Sheet1!S71_A5CapexCode,$AD:$AD)","v":0},0,0,{"$f":"SUMIFS(Sheet1!S71_OY1AdjustedBudget,Sheet1!S71_SubMunicipalVoteNo,$AC:$AC,Sheet1!S71_A5CapexCode,$AD:$AD)","v":0},{"$f":"SUMIFS(Sheet1!S71_OY2AdjustedBudget,Sheet1!S71_SubMunicipalVoteNo,$AC:$AC,Sheet1!S71_A5CapexCode,$AD:$AD)","v":0},null,null,null,null,null,null,null,null,null,null,null,null,null,null,null,34,"CE"]
[{"$f":"B5B!A35","v":""},null,{"$f":"SUMIFS(Sheet1!S71_OriginalBudget,Sheet1!S71_SubMunicipalVoteNo,$AC:$AC,Sheet1!S71_A5CapexCode,$AD:$AD)","v":0},{"$f":"SUMIFS(Sheet1!S71_SpecialAdjustedBudget,Sheet1!S71_SubMunicipalVoteNo,$AC:$AC,Sheet1!S71_A5CapexCode,$AD:$AD)","v":0},null,null,null,null,{"$f":"SUMIFS(Sheet1!S71_AdjustmentAmount,Sheet1!S71_SubMunicipalVoteNo,$AC:$AC,Sheet1!S71_A5CapexCode,$AD:$AD)","v":0},0,0,{"$f":"SUMIFS(Sheet1!S71_OY1AdjustedBudget,Sheet1!S71_SubMunicipalVoteNo,$AC:$AC,Sheet1!S71_A5CapexCode,$AD:$AD)","v":0},{"$f":"SUMIFS(Sheet1!S71_OY2AdjustedBudget,Sheet1!S71_SubMunicipalVoteNo,$AC:$AC,Sheet1!S71_A5CapexCode,$AD:$AD)","v":0},null,null,null,null,null,null,null,null,null,null,null,null,null,null,null,35,"CE"]
[{"$f":"B5B!A36","v":"3.6 - Health Services"},null,{"$f":"SUMIFS(Sheet1!S71_OriginalBudget,Sheet1!S71_SubMunicipalVoteNo,$AC:$AC,Sheet1!S71_A5CapexCode,$AD:$AD)","v":0},{"$f":"SUMIFS(Sheet1!S71_SpecialAdjustedBudget,Sheet1!S71_SubMunicipalVoteNo,$AC:$AC,Sheet1!S71_A5CapexCode,$AD:$AD)","v":0},null,null,null,null,{"$f":"SUMIFS(Sheet1!S71_AdjustmentAmount,Sheet1!S71_SubMunicipalVoteNo,$AC:$AC,Sheet1!S71_A5CapexCode,$AD:$AD)","v":0},0,0,{"$f":"SUMIFS(Sheet1!S71_OY1AdjustedBudget,Sheet1!S71_SubMunicipalVoteNo,$AC:$AC,Sheet1!S71_A5CapexCode,$AD:$AD)","v":0},{"$f":"SUMIFS(Sheet1!S71_OY2AdjustedBudget,Sheet1!S71_SubMunicipalVoteNo,$AC:$AC,Sheet1!S71_A5CapexCode,$AD:$AD)","v":0},null,null,null,null,null,null,null,null,null,null,null,null,null,null,null,36,"CE"]
[{"$f":"B5B!A37","v":"3.7 - Animal Care and Diseases"},null,{"$f":"SUMIFS(Sheet1!S71_OriginalBudget,Sheet1!S71_SubMunicipalVoteNo,$AC:$AC,Sheet1!S71_A5CapexCode,$AD:$AD)","v":500000},{"$f":"SUMIFS(Sheet1!S71_SpecialAdjustedBudget,Sheet1!S71_SubMunicipalVoteNo,$AC:$AC,Sheet1!S71_A5CapexCode,$AD:$AD)","v":0},null,null,null,null,{"$f":"SUMIFS(Sheet1!S71_AdjustmentAmount,Sheet1!S71_SubMunicipalVoteNo,$AC:$AC,Sheet1!S71_A5CapexCode,$AD:$AD)","v":-500000},-500000,0,{"$f":"SUMIFS(Sheet1!S71_OY1AdjustedBudget,Sheet1!S71_SubMunicipalVoteNo,$AC:$AC,Sheet1!S71_A5CapexCode,$AD:$AD)","v":0},{"$f":"SUMIFS(Sheet1!S71_OY2AdjustedBudget,Sheet1!S71_SubMunicipalVoteNo,$AC:$AC,Sheet1!S71_A5CapexCode,$AD:$AD)","v":0},null,null,null,null,null,null,null,null,null,null,null,null,null,null,null,37,"CE"]
[{"$f":"B5B!A38","v":""},null,{"$f":"SUMIFS(Sheet1!S71_OriginalBudget,Sheet1!S71_SubMunicipalVoteNo,$AC:$AC,Sheet1!S71_A5CapexCode,$AD:$AD)","v":0},{"$f":"SUMIFS(Sheet1!S71_SpecialAdjustedBudget,Sheet1!S71_SubMunicipalVoteNo,$AC:$AC,Sheet1!S71_A5CapexCode,$AD:$AD)","v":0},null,null,null,null,{"$f":"SUMIFS(Sheet1!S71_AdjustmentAmount,Sheet1!S71_SubMunicipalVoteNo,$AC:$AC,Sheet1!S71_A5CapexCode,$AD:$AD)","v":0},0,0,{"$f":"SUMIFS(Sheet1!S71_OY1AdjustedBudget,Sheet1!S71_SubMunicipalVoteNo,$AC:$AC,Sheet1!S71_A5CapexCode,$AD:$AD)","v":0},{"$f":"SUMIFS(Sheet1!S71_OY2AdjustedBudget,Sheet1!S71_SubMunicipalVoteNo,$AC:$AC,Sheet1!S71_A5CapexCode,$AD:$AD)","v":0},null,null,null,null,null,null,null,null,null,null,null,null,null,null,null,38,"CE"]
[{"$f":"B5B!A39","v":""},null,{"$f":"SUMIFS(Sheet1!S71_OriginalBudget,Sheet1!S71_SubMunicipalVoteNo,$AC:$AC,Sheet1!S71_A5CapexCode,$AD:$AD)","v":0},{"$f":"SUMIFS(Sheet1!S71_SpecialAdjustedBudget,Sheet1!S71_SubMunicipalVoteNo,$AC:$AC,Sheet1!S71_A5CapexCode,$AD:$AD)","v":0},null,null,null,null,{"$f":"SUMIFS(Sheet1!S71_AdjustmentAmount,Sheet1!S71_SubMunicipalVoteNo,$AC:$AC,Sheet1!S71_A5CapexCode,$AD:$AD)","v":0},0,0,{"$f":"SUMIFS(Sheet1!S71_OY1AdjustedBudget,Sheet1!S71_SubMunicipalVoteNo,$AC:$AC,Sheet1!S71_A5CapexCode,$AD:$AD)","v":0},{"$f":"SUMIFS(Sheet1!S71_OY2AdjustedBudget,Sheet1!S71_SubMunicipalVoteNo,$AC:$AC,Sheet1!S71_A5CapexCode,$AD:$AD)","v":0},null,null,null,null,null,null,null,null,null,null,null,null,null,null,null,39,"CE"]
[{"$f":"B5B!A40","v":""},null,{"$f":"SUMIFS(Sheet1!S71_OriginalBudget,Sheet1!S71_SubMunicipalVoteNo,$AC:$AC,Sheet1!S71_A5CapexCode,$AD:$AD)","v":0},{"$f":"SUMIFS(Sheet1!S71_SpecialAdjustedBudget,Sheet1!S71_SubMunicipalVoteNo,$AC:$AC,Sheet1!S71_A5CapexCode,$AD:$AD)","v":0},null,null,null,null,{"$f":"SUMIFS(Sheet1!S71_AdjustmentAmount,Sheet1!S71_SubMunicipalVoteNo,$AC:$AC,Sheet1!S71_A5CapexCode,$AD:$AD)","v":0},0,0,{"$f":"SUMIFS(Sheet1!S71_OY1AdjustedBudget,Sheet1!S71_SubMunicipalVoteNo,$AC:$AC,Sheet1!S71_A5CapexCode,$AD:$AD)","v":0},{"$f":"SUMIFS(Sheet1!S71_OY2AdjustedBudget,Sheet1!S71_SubMunicipalVoteNo,$AC:$AC,Sheet1!S71_A5CapexCode,$AD:$AD)","v":0},null,null,null,null,null,null,null,null,null,null,null,null,null,null,null,310,"CE"]
[{"$f":"B5B!A41","v":"Vote 4 - Internal Audit"},null,{"$f":"SUM(C211:C220)","v":0},0,0,0,0,0,0,0,0,{"$f":"SUM(L211:L220)","v":0},{"$f":"SUM(M211:M220)","v":0}]
[{"$f":"B5B!A42","v":"4.1 - Governance Function"},null,{"$f":"SUMIFS(Sheet1!S71_OriginalBudget,Sheet1!S71_SubMunicipalVoteNo,$AC:$AC,Sheet1!S71_A5CapexCode,$AD:$AD)","v":0},{"$f":"SUMIFS(Sheet1!S71_SpecialAdjustedBudget,Sheet1!S71_SubMunicipalVoteNo,$AC:$AC,Sheet1!S71_A5CapexCode,$AD:$AD)","v":0},null,null,null,null,{"$f":"SUMIFS(Sheet1!S71_AdjustmentAmount,Sheet1!S71_SubMunicipalVoteNo,$AC:$AC,Sheet1!S71_A5CapexCode,$AD:$AD)","v":0},0,0,{"$f":"SUMIFS(Sheet1!S71_OY1AdjustedBudget,Sheet1!S71_SubMunicipalVoteNo,$AC:$AC,Sheet1!S71_A5CapexCode,$AD:$AD)","v":0},{"$f":"SUMIFS(Sheet1!S71_OY2AdjustedBudget,Sheet1!S71_SubMunicipalVoteNo,$AC:$AC,Sheet1!S71_A5CapexCode,$AD:$AD)","v":0},null,null,null,null,null,null,null,null,null,null,null,null,null,null,null,41,"CE"]
[{"$f":"B5B!A43","v":""},null,{"$f":"SUMIFS(Sheet1!S71_OriginalBudget,Sheet1!S71_SubMunicipalVoteNo,$AC:$AC,Sheet1!S71_A5CapexCode,$AD:$AD)","v":0},{"$f":"SUMIFS(Sheet1!S71_SpecialAdjustedBudget,Sheet1!S71_SubMunicipalVoteNo,$AC:$AC,Sheet1!S71_A5CapexCode,$AD:$AD)","v":0},null,null,null,null,{"$f":"SUMIFS(Sheet1!S71_AdjustmentAmount,Sheet1!S71_SubMunicipalVoteNo,$AC:$AC,Sheet1!S71_A5CapexCode,$AD:$AD)","v":0},0,0,{"$f":"SUMIFS(Sheet1!S71_OY1AdjustedBudget,Sheet1!S71_SubMunicipalVoteNo,$AC:$AC,Sheet1!S71_A5CapexCode,$AD:$AD)","v":0},{"$f":"SUMIFS(Sheet1!S71_OY2AdjustedBudget,Sheet1!S71_SubMunicipalVoteNo,$AC:$AC,Sheet1!S71_A5CapexCode,$AD:$AD)","v":0},null,null,null,null,null,null,null,null,null,null,null,null,null,null,null,42,"CE"]
[{"$f":"B5B!A44","v":""},null,{"$f":"SUMIFS(Sheet1!S71_OriginalBudget,Sheet1!S71_SubMunicipalVoteNo,$AC:$AC,Sheet1!S71_A5CapexCode,$AD:$AD)","v":0},{"$f":"SUMIFS(Sheet1!S71_SpecialAdjustedBudget,Sheet1!S71_SubMunicipalVoteNo,$AC:$AC,Sheet1!S71_A5CapexCode,$AD:$AD)","v":0},null,null,null,null,{"$f":"SUMIFS(Sheet1!S71_AdjustmentAmount,Sheet1!S71_SubMunicipalVoteNo,$AC:$AC,Sheet1!S71_A5CapexCode,$AD:$AD)","v":0},0,0,{"$f":"SUMIFS(Sheet1!S71_OY1AdjustedBudget,Sheet1!S71_SubMunicipalVoteNo,$AC:$AC,Sheet1!S71_A5CapexCode,$AD:$AD)","v":0},{"$f":"SUMIFS(Sheet1!S71_OY2AdjustedBudget,Sheet1!S71_SubMunicipalVoteNo,$AC:$AC,Sheet1!S71_A5CapexCode,$AD:$AD)","v":0},null,null,null,null,null,null,null,null,null,null,null,null,null,null,null,43,"CE"]
[{"$f":"B5B!A45","v":""},null,{"$f":"SUMIFS(Sheet1!S71_OriginalBudget,Sheet1!S71_SubMunicipalVoteNo,$AC:$AC,Sheet1!S71_A5CapexCode,$AD:$AD)","v":0},{"$f":"SUMIFS(Sheet1!S71_SpecialAdjustedBudget,Sheet1!S71_SubMunicipalVoteNo,$AC:$AC,Sheet1!S71_A5CapexCode,$AD:$AD)","v":0},null,null,null,null,{"$f":"SUMIFS(Sheet1!S71_AdjustmentAmount,Sheet1!S71_SubMunicipalVoteNo,$AC:$AC,Sheet1!S71_A5CapexCode,$AD:$AD)","v":0},0,0,{"$f":"SUMIFS(Sheet1!S71_OY1AdjustedBudget,Sheet1!S71_SubMunicipalVoteNo,$AC:$AC,Sheet1!S71_A5CapexCode,$AD:$AD)","v":0},{"$f":"SUMIFS(Sheet1!S71_OY2AdjustedBudget,Sheet1!S71_SubMunicipalVoteNo,$AC:$AC,Sheet1!S71_A5CapexCode,$AD:$AD)","v":0},null,null,null,null,null,null,null,null,null,null,null,null,null,null,null,44,"CE"]
[{"$f":"B5B!A46","v":""},null,{"$f":"SUMIFS(Sheet1!S71_OriginalBudget,Sheet1!S71_SubMunicipalVoteNo,$AC:$AC,Sheet1!S71_A5CapexCode,$AD:$AD)","v":0},{"$f":"SUMIFS(Sheet1!S71_SpecialAdjustedBudget,Sheet1!S71_SubMunicipalVoteNo,$AC:$AC,Sheet1!S71_A5CapexCode,$AD:$AD)","v":0},null,null,null,null,{"$f":"SUMIFS(Sheet1!S71_AdjustmentAmount,Sheet1!S71_SubMunicipalVoteNo,$AC:$AC,Sheet1!S71_A5CapexCode,$AD:$AD)","v":0},0,0,{"$f":"SUMIFS(Sheet1!S71_OY1AdjustedBudget,Sheet1!S71_SubMunicipalVoteNo,$AC:$AC,Sheet1!S71_A5CapexCode,$AD:$AD)","v":0},{"$f":"SUMIFS(Sheet1!S71_OY2AdjustedBudget,Sheet1!S71_SubMunicipalVoteNo,$AC:$AC,Sheet1!S71_A5CapexCode,$AD:$AD)","v":0},null,null,null,null,null,null,null,null,null,null,null,null,null,null,null,45,"CE"]
[{"$f":"B5B!A47","v":""},null,{"$f":"SUMIFS(Sheet1!S71_OriginalBudget,Sheet1!S71_SubMunicipalVoteNo,$AC:$AC,Sheet1!S71_A5CapexCode,$AD:$AD)","v":0},{"$f":"SUMIFS(Sheet1!S71_SpecialAdjustedBudget,Sheet1!S71_SubMunicipalVoteNo,$AC:$AC,Sheet1!S71_A5CapexCode,$AD:$AD)","v":0},null,null,null,null,{"$f":"SUMIFS(Sheet1!S71_AdjustmentAmount,Sheet1!S71_SubMunicipalVoteNo,$AC:$AC,Sheet1!S71_A5CapexCode,$AD:$AD)","v":0},0,0,{"$f":"SUMIFS(Sheet1!S71_OY1AdjustedBudget,Sheet1!S71_SubMunicipalVoteNo,$AC:$AC,Sheet1!S71_A5CapexCode,$AD:$AD)","v":0},{"$f":"SUMIFS(Sheet1!S71_OY2AdjustedBudget,Sheet1!S71_SubMunicipalVoteNo,$AC:$AC,Sheet1!S71_A5CapexCode,$AD:$AD)","v":0},null,null,null,null,null,null,null,null,null,null,null,null,null,null,null,46,"CE"]
[{"$f":"B5B!A48","v":""},null,{"$f":"SUMIFS(Sheet1!S71_OriginalBudget,Sheet1!S71_SubMunicipalVoteNo,$AC:$AC,Sheet1!S71_A5CapexCode,$AD:$AD)","v":0},{"$f":"SUMIFS(Sheet1!S71_SpecialAdjustedBudget,Sheet1!S71_SubMunicipalVoteNo,$AC:$AC,Sheet1!S71_A5CapexCode,$AD:$AD)","v":0},null,null,null,null,{"$f":"SUMIFS(Sheet1!S71_AdjustmentAmount,Sheet1!S71_SubMunicipalVoteNo,$AC:$AC,Sheet1!S71_A5CapexCode,$AD:$AD)","v":0},0,0,{"$f":"SUMIFS(Sheet1!S71_OY1AdjustedBudget,Sheet1!S71_SubMunicipalVoteNo,$AC:$AC,Sheet1!S71_A5CapexCode,$AD:$AD)","v":0},{"$f":"SUMIFS(Sheet1!S71_OY2AdjustedBudget,Sheet1!S71_SubMunicipalVoteNo,$AC:$AC,Sheet1!S71_A5CapexCode,$AD:$AD)","v":0},null,null,null,null,null,null,null,null,null,null,null,null,null,null,null,47,"CE"]
[{"$f":"B5B!A49","v":""},null,{"$f":"SUMIFS(Sheet1!S71_OriginalBudget,Sheet1!S71_SubMunicipalVoteNo,$AC:$AC,Sheet1!S71_A5CapexCode,$AD:$AD)","v":0},{"$f":"SUMIFS(Sheet1!S71_SpecialAdjustedBudget,Sheet1!S71_SubMunicipalVoteNo,$AC:$AC,Sheet1!S71_A5CapexCode,$AD:$AD)","v":0},null,null,null,null,{"$f":"SUMIFS(Sheet1!S71_AdjustmentAmount,Sheet1!S71_SubMunicipalVoteNo,$AC:$AC,Sheet1!S71_A5CapexCode,$AD:$AD)","v":0},0,0,{"$f":"SUMIFS(Sheet1!S71_OY1AdjustedBudget,Sheet1!S71_SubMunicipalVoteNo,$AC:$AC,Sheet1!S71_A5CapexCode,$AD:$AD)","v":0},{"$f":"SUMIFS(Sheet1!S71_OY2AdjustedBudget,Sheet1!S71_SubMunicipalVoteNo,$AC:$AC,Sheet1!S71_A5CapexCode,$AD:$AD)","v":0},null,null,null,null,null,null,null,null,null,null,null,null,null,null,null,48,"CE"]
[{"$f":"B5B!A50","v":""},null,{"$f":"SUMIFS(Sheet1!S71_OriginalBudget,Sheet1!S71_SubMunicipalVoteNo,$AC:$AC,Sheet1!S71_A5CapexCode,$AD:$AD)","v":0},{"$f":"SUMIFS(Sheet1!S71_SpecialAdjustedBudget,Sheet1!S71_SubMunicipalVoteNo,$AC:$AC,Sheet1!S71_A5CapexCode,$AD:$AD)","v":0},null,null,null,null,{"$f":"SUMIFS(Sheet1!S71_AdjustmentAmount,Sheet1!S71_SubMunicipalVoteNo,$AC:$AC,Sheet1!S71_A5CapexCode,$AD:$AD)","v":0},0,0,{"$f":"SUMIFS(Sheet1!S71_OY1AdjustedBudget,Sheet1!S71_SubMunicipalVoteNo,$AC:$AC,Sheet1!S71_A5CapexCode,$AD:$AD)","v":0},{"$f":"SUMIFS(Sheet1!S71_OY2AdjustedBudget,Sheet1!S71_SubMunicipalVoteNo,$AC:$AC,Sheet1!S71_A5CapexCode,$AD:$AD)","v":0},null,null,null,null,null,null,null,null,null,null,null,null,null,null,null,49,"CE"]
[{"$f":"B5B!A51","v":""},null,{"$f":"SUMIFS(Sheet1!S71_OriginalBudget,Sheet1!S71_SubMunicipalVoteNo,$AC:$AC,Sheet1!S71_A5CapexCode,$AD:$AD)","v":0},{"$f":"SUMIFS(Sheet1!S71_SpecialAdjustedBudget,Sheet1!S71_SubMunicipalVoteNo,$AC:$AC,Sheet1!S71_A5CapexCode,$AD:$AD)","v":0},null,null,null,null,{"$f":"SUMIFS(Sheet1!S71_AdjustmentAmount,Sheet1!S71_SubMunicipalVoteNo,$AC:$AC,Sheet1!S71_A5CapexCode,$AD:$AD)","v":0},0,0,{"$f":"SUMIFS(Sheet1!S71_OY1AdjustedBudget,Sheet1!S71_SubMunicipalVoteNo,$AC:$AC,Sheet1!S71_A5CapexCode,$AD:$AD)","v":0},{"$f":"SUMIFS(Sheet1!S71_OY2AdjustedBudget,Sheet1!S71_SubMunicipalVoteNo,$AC:$AC,Sheet1!S71_A5CapexCode,$AD:$AD)","v":0},null,null,null,null,null,null,null,null,null,null,null,null,null,null,null,410,"CE"]
[{"$f":"B5B!A52","v":"Vote 5 - Waste Management"},null,{"$f":"SUM(C222:C231)","v":950000},0,0,0,0,0,-950000,-950000,0,{"$f":"SUM(L222:L231)","v":209000},{"$f":"SUM(M222:M231)","v":218405}]
[{"$f":"B5B!A53","v":"5.1 - Solid Waste Removal"},null,{"$f":"SUMIFS(Sheet1!S71_OriginalBudget,Sheet1!S71_SubMunicipalVoteNo,$AC:$AC,Sheet1!S71_A5CapexCode,$AD:$AD)","v":450000},{"$f":"SUMIFS(Sheet1!S71_SpecialAdjustedBudget,Sheet1!S71_SubMunicipalVoteNo,$AC:$AC,Sheet1!S71_A5CapexCode,$AD:$AD)","v":0},null,null,null,null,{"$f":"SUMIFS(Sheet1!S71_AdjustmentAmount,Sheet1!S71_SubMunicipalVoteNo,$AC:$AC,Sheet1!S71_A5CapexCode,$AD:$AD)","v":-450000},-450000,0,{"$f":"SUMIFS(Sheet1!S71_OY1AdjustedBudget,Sheet1!S71_SubMunicipalVoteNo,$AC:$AC,Sheet1!S71_A5CapexCode,$AD:$AD)","v":0},{"$f":"SUMIFS(Sheet1!S71_OY2AdjustedBudget,Sheet1!S71_SubMunicipalVoteNo,$AC:$AC,Sheet1!S71_A5CapexCode,$AD:$AD)","v":0},null,null,null,null,null,null,null,null,null,null,null,null,null,null,null,51,"CE"]
[{"$f":"B5B!A54","v":"5.2 - Street Cleaning"},null,{"$f":"SUMIFS(Sheet1!S71_OriginalBudget,Sheet1!S71_SubMunicipalVoteNo,$AC:$AC,Sheet1!S71_A5CapexCode,$AD:$AD)","v":0},{"$f":"SUMIFS(Sheet1!S71_SpecialAdjustedBudget,Sheet1!S71_SubMunicipalVoteNo,$AC:$AC,Sheet1!S71_A5CapexCode,$AD:$AD)","v":0},null,null,null,null,{"$f":"SUMIFS(Sheet1!S71_AdjustmentAmount,Sheet1!S71_SubMunicipalVoteNo,$AC:$AC,Sheet1!S71_A5CapexCode,$AD:$AD)","v":0},0,0,{"$f":"SUMIFS(Sheet1!S71_OY1AdjustedBudget,Sheet1!S71_SubMunicipalVoteNo,$AC:$AC,Sheet1!S71_A5CapexCode,$AD:$AD)","v":0},{"$f":"SUMIFS(Sheet1!S71_OY2AdjustedBudget,Sheet1!S71_SubMunicipalVoteNo,$AC:$AC,Sheet1!S71_A5CapexCode,$AD:$AD)","v":0},null,null,null,null,null,null,null,null,null,null,null,null,null,null,null,52,"CE"]
[{"$f":"B5B!A55","v":"5.3 - Solid Waste Disposal (Landfill Sites)"},null,{"$f":"SUMIFS(Sheet1!S71_OriginalBudget,Sheet1!S71_SubMunicipalVoteNo,$AC:$AC,Sheet1!S71_A5CapexCode,$AD:$AD)","v":500000},{"$f":"SUMIFS(Sheet1!S71_SpecialAdjustedBudget,Sheet1!S71_SubMunicipalVoteNo,$AC:$AC,Sheet1!S71_A5CapexCode,$AD:$AD)","v":0},null,null,null,null,{"$f":"SUMIFS(Sheet1!S71_AdjustmentAmount,Sheet1!S71_SubMunicipalVoteNo,$AC:$AC,Sheet1!S71_A5CapexCode,$AD:$AD)","v":-500000},-500000,0,{"$f":"SUMIFS(Sheet1!S71_OY1AdjustedBudget,Sheet1!S71_SubMunicipalVoteNo,$AC:$AC,Sheet1!S71_A5CapexCode,$AD:$AD)","v":209000},{"$f":"SUMIFS(Sheet1!S71_OY2AdjustedBudget,Sheet1!S71_SubMunicipalVoteNo,$AC:$AC,Sheet1!S71_A5CapexCode,$AD:$AD)","v":218405},null,null,null,null,null,null,null,null,null,null,null,null,null,null,null,53,"CE"]
[{"$f":"B5B!A56","v":""},null,{"$f":"SUMIFS(Sheet1!S71_OriginalBudget,Sheet1!S71_SubMunicipalVoteNo,$AC:$AC,Sheet1!S71_A5CapexCode,$AD:$AD)","v":0},{"$f":"SUMIFS(Sheet1!S71_SpecialAdjustedBudget,Sheet1!S71_SubMunicipalVoteNo,$AC:$AC,Sheet1!S71_A5CapexCode,$AD:$AD)","v":0},null,null,null,null,{"$f":"SUMIFS(Sheet1!S71_AdjustmentAmount,Sheet1!S71_SubMunicipalVoteNo,$AC:$AC,Sheet1!S71_A5CapexCode,$AD:$AD)","v":0},0,0,{"$f":"SUMIFS(Sheet1!S71_OY1AdjustedBudget,Sheet1!S71_SubMunicipalVoteNo,$AC:$AC,Sheet1!S71_A5CapexCode,$AD:$AD)","v":0},{"$f":"SUMIFS(Sheet1!S71_OY2AdjustedBudget,Sheet1!S71_SubMunicipalVoteNo,$AC:$AC,Sheet1!S71_A5CapexCode,$AD:$AD)","v":0},null,null,null,null,null,null,null,null,null,null,null,null,null,null,null,54,"CE"]
[{"$f":"B5B!A57","v":""},null,{"$f":"SUMIFS(Sheet1!S71_OriginalBudget,Sheet1!S71_SubMunicipalVoteNo,$AC:$AC,Sheet1!S71_A5CapexCode,$AD:$AD)","v":0},{"$f":"SUMIFS(Sheet1!S71_SpecialAdjustedBudget,Sheet1!S71_SubMunicipalVoteNo,$AC:$AC,Sheet1!S71_A5CapexCode,$AD:$AD)","v":0},null,null,null,null,{"$f":"SUMIFS(Sheet1!S71_AdjustmentAmount,Sheet1!S71_SubMunicipalVoteNo,$AC:$AC,Sheet1!S71_A5CapexCode,$AD:$AD)","v":0},0,0,{"$f":"SUMIFS(Sheet1!S71_OY1AdjustedBudget,Sheet1!S71_SubMunicipalVoteNo,$AC:$AC,Sheet1!S71_A5CapexCode,$AD:$AD)","v":0},{"$f":"SUMIFS(Sheet1!S71_OY2AdjustedBudget,Sheet1!S71_SubMunicipalVoteNo,$AC:$AC,Sheet1!S71_A5CapexCode,$AD:$AD)","v":0},null,null,null,null,null,null,null,null,null,null,null,null,null,null,null,55,"CE"]
[{"$f":"B5B!A58","v":""},null,{"$f":"SUMIFS(Sheet1!S71_OriginalBudget,Sheet1!S71_SubMunicipalVoteNo,$AC:$AC,Sheet1!S71_A5CapexCode,$AD:$AD)","v":0},{"$f":"SUMIFS(Sheet1!S71_SpecialAdjustedBudget,Sheet1!S71_SubMunicipalVoteNo,$AC:$AC,Sheet1!S71_A5CapexCode,$AD:$AD)","v":0},null,null,null,null,{"$f":"SUMIFS(Sheet1!S71_AdjustmentAmount,Sheet1!S71_SubMunicipalVoteNo,$AC:$AC,Sheet1!S71_A5CapexCode,$AD:$AD)","v":0},0,0,{"$f":"SUMIFS(Sheet1!S71_OY1AdjustedBudget,Sheet1!S71_SubMunicipalVoteNo,$AC:$AC,Sheet1!S71_A5CapexCode,$AD:$AD)","v":0},{"$f":"SUMIFS(Sheet1!S71_OY2AdjustedBudget,Sheet1!S71_SubMunicipalVoteNo,$AC:$AC,Sheet1!S71_A5CapexCode,$AD:$AD)","v":0},null,null,null,null,null,null,null,null,null,null,null,null,null,null,null,56,"CE"]
[{"$f":"B5B!A59","v":""},null,{"$f":"SUMIFS(Sheet1!S71_OriginalBudget,Sheet1!S71_SubMunicipalVoteNo,$AC:$AC,Sheet1!S71_A5CapexCode,$AD:$AD)","v":0},{"$f":"SUMIFS(Sheet1!S71_SpecialAdjustedBudget,Sheet1!S71_SubMunicipalVoteNo,$AC:$AC,Sheet1!S71_A5CapexCode,$AD:$AD)","v":0},null,null,null,null,{"$f":"SUMIFS(Sheet1!S71_AdjustmentAmount,Sheet1!S71_SubMunicipalVoteNo,$AC:$AC,Sheet1!S71_A5CapexCode,$AD:$AD)","v":0},0,0,{"$f":"SUMIFS(Sheet1!S71_OY1AdjustedBudget,Sheet1!S71_SubMunicipalVoteNo,$AC:$AC,Sheet1!S71_A5CapexCode,$AD:$AD)","v":0},{"$f":"SUMIFS(Sheet1!S71_OY2AdjustedBudget,Sheet1!S71_SubMunicipalVoteNo,$AC:$AC,Sheet1!S71_A5CapexCode,$AD:$AD)","v":0},null,null,null,null,null,null,null,null,null,null,null,null,null,null,null,57,"CE"]
[{"$f":"B5B!A60","v":""},null,{"$f":"SUMIFS(Sheet1!S71_OriginalBudget,Sheet1!S71_SubMunicipalVoteNo,$AC:$AC,Sheet1!S71_A5CapexCode,$AD:$AD)","v":0},{"$f":"SUMIFS(Sheet1!S71_SpecialAdjustedBudget,Sheet1!S71_SubMunicipalVoteNo,$AC:$AC,Sheet1!S71_A5CapexCode,$AD:$AD)","v":0},null,null,null,null,{"$f":"SUMIFS(Sheet1!S71_AdjustmentAmount,Sheet1!S71_SubMunicipalVoteNo,$AC:$AC,Sheet1!S71_A5CapexCode,$AD:$AD)","v":0},0,0,{"$f":"SUMIFS(Sheet1!S71_OY1AdjustedBudget,Sheet1!S71_SubMunicipalVoteNo,$AC:$AC,Sheet1!S71_A5CapexCode,$AD:$AD)","v":0},{"$f":"SUMIFS(Sheet1!S71_OY2AdjustedBudget,Sheet1!S71_SubMunicipalVoteNo,$AC:$AC,Sheet1!S71_A5CapexCode,$AD:$AD)","v":0},null,null,null,null,null,null,null,null,null,null,null,null,null,null,null,58,"CE"]
[{"$f":"B5B!A61","v":""},null,{"$f":"SUMIFS(Sheet1!S71_OriginalBudget,Sheet1!S71_SubMunicipalVoteNo,$AC:$AC,Sheet1!S71_A5CapexCode,$AD:$AD)","v":0},{"$f":"SUMIFS(Sheet1!S71_SpecialAdjustedBudget,Sheet1!S71_SubMunicipalVoteNo,$AC:$AC,Sheet1!S71_A5CapexCode,$AD:$AD)","v":0},null,null,null,null,{"$f":"SUMIFS(Sheet1!S71_AdjustmentAmount,Sheet1!S71_SubMunicipalVoteNo,$AC:$AC,Sheet1!S71_A5CapexCode,$AD:$AD)","v":0},0,0,{"$f":"SUMIFS(Sheet1!S71_OY1AdjustedBudget,Sheet1!S71_SubMunicipalVoteNo,$AC:$AC,Sheet1!S71_A5CapexCode,$AD:$AD)","v":0},{"$f":"SUMIFS(Sheet1!S71_OY2AdjustedBudget,Sheet1!S71_SubMunicipalVoteNo,$AC:$AC,Sheet1!S71_A5CapexCode,$AD:$AD)","v":0},null,null,null,null,null,null,null,null,null,null,null,null,null,null,null,59,"CE"]
[{"$f":"B5B!A62","v":""},null,{"$f":"SUMIFS(Sheet1!S71_OriginalBudget,Sheet1!S71_SubMunicipalVoteNo,$AC:$AC,Sheet1!S71_A5CapexCode,$AD:$AD)","v":0},{"$f":"SUMIFS(Sheet1!S71_SpecialAdjustedBudget,Sheet1!S71_SubMunicipalVoteNo,$AC:$AC,Sheet1!S71_A5CapexCode,$AD:$AD)","v":0},null,null,null,null,{"$f":"SUMIFS(Sheet1!S71_AdjustmentAmount,Sheet1!S71_SubMunicipalVoteNo,$AC:$AC,Sheet1!S71_A5CapexCode,$AD:$AD)","v":0},0,0,{"$f":"SUMIFS(Sheet1!S71_OY1AdjustedBudget,Sheet1!S71_SubMunicipalVoteNo,$AC:$AC,Sheet1!S71_A5CapexCode,$AD:$AD)","v":0},{"$f":"SUMIFS(Sheet1!S71_OY2AdjustedBudget,Sheet1!S71_SubMunicipalVoteNo,$AC:$AC,Sheet1!S71_A5CapexCode,$AD:$AD)","v":0},null,null,null,null,null,null,null,null,null,null,null,null,null,null,null,510,"CE"]
[{"$f":"B5B!A63","v":"Vote 6 - Energy Sources"},null,{"$f":"SUM(C233:C242)","v":0},0,0,0,0,0,15500000,15500000,15500000,{"$f":"SUM(L233:L242)","v":20900000},{"$f":"SUM(M233:M242)","v":21840500}]
[{"$f":"B5B!A64","v":"6.1 - Electricity"},null,{"$f":"SUMIFS(Sheet1!S71_OriginalBudget,Sheet1!S71_SubMunicipalVoteNo,$AC:$AC,Sheet1!S71_A5CapexCode,$AD:$AD)","v":0},{"$f":"SUMIFS(Sheet1!S71_SpecialAdjustedBudget,Sheet1!S71_SubMunicipalVoteNo,$AC:$AC,Sheet1!S71_A5CapexCode,$AD:$AD)","v":0},null,null,null,null,{"$f":"SUMIFS(Sheet1!S71_AdjustmentAmount,Sheet1!S71_SubMunicipalVoteNo,$AC:$AC,Sheet1!S71_A5CapexCode,$AD:$AD)","v":15500000},15500000,15500000,{"$f":"SUMIFS(Sheet1!S71_OY1AdjustedBudget,Sheet1!S71_SubMunicipalVoteNo,$AC:$AC,Sheet1!S71_A5CapexCode,$AD:$AD)","v":20900000},{"$f":"SUMIFS(Sheet1!S71_OY2AdjustedBudget,Sheet1!S71_SubMunicipalVoteNo,$AC:$AC,Sheet1!S71_A5CapexCode,$AD:$AD)","v":21840500},null,null,null,null,null,null,null,null,null,null,null,null,null,null,null,61,"CE"]
[{"$f":"B5B!A65","v":"6.2 - Regional Planning and Development"},null,{"$f":"SUMIFS(Sheet1!S71_OriginalBudget,Sheet1!S71_SubMunicipalVoteNo,$AC:$AC,Sheet1!S71_A5CapexCode,$AD:$AD)","v":0},{"$f":"SUMIFS(Sheet1!S71_SpecialAdjustedBudget,Sheet1!S71_SubMunicipalVoteNo,$AC:$AC,Sheet1!S71_A5CapexCode,$AD:$AD)","v":0},null,null,null,null,{"$f":"SUMIFS(Sheet1!S71_AdjustmentAmount,Sheet1!S71_SubMunicipalVoteNo,$AC:$AC,Sheet1!S71_A5CapexCode,$AD:$AD)","v":0},0,0,{"$f":"SUMIFS(Sheet1!S71_OY1AdjustedBudget,Sheet1!S71_SubMunicipalVoteNo,$AC:$AC,Sheet1!S71_A5CapexCode,$AD:$AD)","v":0},{"$f":"SUMIFS(Sheet1!S71_OY2AdjustedBudget,Sheet1!S71_SubMunicipalVoteNo,$AC:$AC,Sheet1!S71_A5CapexCode,$AD:$AD)","v":0},null,null,null,null,null,null,null,null,null,null,null,null,null,null,null,62,"CE"]
[{"$f":"B5B!A66","v":""},null,{"$f":"SUMIFS(Sheet1!S71_OriginalBudget,Sheet1!S71_SubMunicipalVoteNo,$AC:$AC,Sheet1!S71_A5CapexCode,$AD:$AD)","v":0},{"$f":"SUMIFS(Sheet1!S71_SpecialAdjustedBudget,Sheet1!S71_SubMunicipalVoteNo,$AC:$AC,Sheet1!S71_A5CapexCode,$AD:$AD)","v":0},null,null,null,null,{"$f":"SUMIFS(Sheet1!S71_AdjustmentAmount,Sheet1!S71_SubMunicipalVoteNo,$AC:$AC,Sheet1!S71_A5CapexCode,$AD:$AD)","v":0},0,0,{"$f":"SUMIFS(Sheet1!S71_OY1AdjustedBudget,Sheet1!S71_SubMunicipalVoteNo,$AC:$AC,Sheet1!S71_A5CapexCode,$AD:$AD)","v":0},{"$f":"SUMIFS(Sheet1!S71_OY2AdjustedBudget,Sheet1!S71_SubMunicipalVoteNo,$AC:$AC,Sheet1!S71_A5CapexCode,$AD:$AD)","v":0},null,null,null,null,null,null,null,null,null,null,null,null,null,null,null,63,"CE"]
[{"$f":"B5B!A67","v":""},null,{"$f":"SUMIFS(Sheet1!S71_OriginalBudget,Sheet1!S71_SubMunicipalVoteNo,$AC:$AC,Sheet1!S71_A5CapexCode,$AD:$AD)","v":0},{"$f":"SUMIFS(Sheet1!S71_SpecialAdjustedBudget,Sheet1!S71_SubMunicipalVoteNo,$AC:$AC,Sheet1!S71_A5CapexCode,$AD:$AD)","v":0},null,null,null,null,{"$f":"SUMIFS(Sheet1!S71_AdjustmentAmount,Sheet1!S71_SubMunicipalVoteNo,$AC:$AC,Sheet1!S71_A5CapexCode,$AD:$AD)","v":0},0,0,{"$f":"SUMIFS(Sheet1!S71_OY1AdjustedBudget,Sheet1!S71_SubMunicipalVoteNo,$AC:$AC,Sheet1!S71_A5CapexCode,$AD:$AD)","v":0},{"$f":"SUMIFS(Sheet1!S71_OY2AdjustedBudget,Sheet1!S71_SubMunicipalVoteNo,$AC:$AC,Sheet1!S71_A5CapexCode,$AD:$AD)","v":0},null,null,null,null,null,null,null,null,null,null,null,null,null,null,null,64,"CE"]
[{"$f":"B5B!A68","v":""},null,{"$f":"SUMIFS(Sheet1!S71_OriginalBudget,Sheet1!S71_SubMunicipalVoteNo,$AC:$AC,Sheet1!S71_A5CapexCode,$AD:$AD)","v":0},{"$f":"SUMIFS(Sheet1!S71_SpecialAdjustedBudget,Sheet1!S71_SubMunicipalVoteNo,$AC:$AC,Sheet1!S71_A5CapexCode,$AD:$AD)","v":0},null,null,null,null,{"$f":"SUMIFS(Sheet1!S71_AdjustmentAmount,Sheet1!S71_SubMunicipalVoteNo,$AC:$AC,Sheet1!S71_A5CapexCode,$AD:$AD)","v":0},0,0,{"$f":"SUMIFS(Sheet1!S71_OY1AdjustedBudget,Sheet1!S71_SubMunicipalVoteNo,$AC:$AC,Sheet1!S71_A5CapexCode,$AD:$AD)","v":0},{"$f":"SUMIFS(Sheet1!S71_OY2AdjustedBudget,Sheet1!S71_SubMunicipalVoteNo,$AC:$AC,Sheet1!S71_A5CapexCode,$AD:$AD)","v":0},null,null,null,null,null,null,null,null,null,null,null,null,null,null,null,65,"CE"]
[{"$f":"B5B!A69","v":""},null,{"$f":"SUMIFS(Sheet1!S71_OriginalBudget,Sheet1!S71_SubMunicipalVoteNo,$AC:$AC,Sheet1!S71_A5CapexCode,$AD:$AD)","v":0},{"$f":"SUMIFS(Sheet1!S71_SpecialAdjustedBudget,Sheet1!S71_SubMunicipalVoteNo,$AC:$AC,Sheet1!S71_A5CapexCode,$AD:$AD)","v":0},null,null,null,null,{"$f":"SUMIFS(Sheet1!S71_AdjustmentAmount,Sheet1!S71_SubMunicipalVoteNo,$AC:$AC,Sheet1!S71_A5CapexCode,$AD:$AD)","v":0},0,0,{"$f":"SUMIFS(Sheet1!S71_OY1AdjustedBudget,Sheet1!S71_SubMunicipalVoteNo,$AC:$AC,Sheet1!S71_A5CapexCode,$AD:$AD)","v":0},{"$f":"SUMIFS(Sheet1!S71_OY2AdjustedBudget,Sheet1!S71_SubMunicipalVoteNo,$AC:$AC,Sheet1!S71_A5CapexCode,$AD:$AD)","v":0},null,null,null,null,null,null,null,null,null,null,null,null,null,null,null,66,"CE"]
[{"$f":"B5B!A70","v":""},null,{"$f":"SUMIFS(Sheet1!S71_OriginalBudget,Sheet1!S71_SubMunicipalVoteNo,$AC:$AC,Sheet1!S71_A5CapexCode,$AD:$AD)","v":0},{"$f":"SUMIFS(Sheet1!S71_SpecialAdjustedBudget,Sheet1!S71_SubMunicipalVoteNo,$AC:$AC,Sheet1!S71_A5CapexCode,$AD:$AD)","v":0},null,null,null,null,{"$f":"SUMIFS(Sheet1!S71_AdjustmentAmount,Sheet1!S71_SubMunicipalVoteNo,$AC:$AC,Sheet1!S71_A5CapexCode,$AD:$AD)","v":0},0,0,{"$f":"SUMIFS(Sheet1!S71_OY1AdjustedBudget,Sheet1!S71_SubMunicipalVoteNo,$AC:$AC,Sheet1!S71_A5CapexCode,$AD:$AD)","v":0},{"$f":"SUMIFS(Sheet1!S71_OY2AdjustedBudget,Sheet1!S71_SubMunicipalVoteNo,$AC:$AC,Sheet1!S71_A5CapexCode,$AD:$AD)","v":0},null,null,null,null,null,null,null,null,null,null,null,null,null,null,null,67,"CE"]
[{"$f":"B5B!A71","v":""},null,{"$f":"SUMIFS(Sheet1!S71_OriginalBudget,Sheet1!S71_SubMunicipalVoteNo,$AC:$AC,Sheet1!S71_A5CapexCode,$AD:$AD)","v":0},{"$f":"SUMIFS(Sheet1!S71_SpecialAdjustedBudget,Sheet1!S71_SubMunicipalVoteNo,$AC:$AC,Sheet1!S71_A5CapexCode,$AD:$AD)","v":0},null,null,null,null,{"$f":"SUMIFS(Sheet1!S71_AdjustmentAmount,Sheet1!S71_SubMunicipalVoteNo,$AC:$AC,Sheet1!S71_A5CapexCode,$AD:$AD)","v":0},0,0,{"$f":"SUMIFS(Sheet1!S71_OY1AdjustedBudget,Sheet1!S71_SubMunicipalVoteNo,$AC:$AC,Sheet1!S71_A5CapexCode,$AD:$AD)","v":0},{"$f":"SUMIFS(Sheet1!S71_OY2AdjustedBudget,Sheet1!S71_SubMunicipalVoteNo,$AC:$AC,Sheet1!S71_A5CapexCode,$AD:$AD)","v":0},null,null,null,null,null,null,null,null,null,null,null,null,null,null,null,68,"CE"]
[{"$f":"B5B!A72","v":""},null,{"$f":"SUMIFS(Sheet1!S71_OriginalBudget,Sheet1!S71_SubMunicipalVoteNo,$AC:$AC,Sheet1!S71_A5CapexCode,$AD:$AD)","v":0},{"$f":"SUMIFS(Sheet1!S71_SpecialAdjustedBudget,Sheet1!S71_SubMunicipalVoteNo,$AC:$AC,Sheet1!S71_A5CapexCode,$AD:$AD)","v":0},null,null,null,null,{"$f":"SUMIFS(Sheet1!S71_AdjustmentAmount,Sheet1!S71_SubMunicipalVoteNo,$AC:$AC,Sheet1!S71_A5CapexCode,$AD:$AD)","v":0},{"$f":"SUM(E241:I241)","v":0},{"$f":"IF(D241=0,C241+J241,D241+J241)","v":0},{"$f":"SUMIFS(Sheet1!S71_OY1AdjustedBudget,Sheet1!S71_SubMunicipalVoteNo,$AC:$AC,Sheet1!S71_A5CapexCode,$AD:$AD)","v":0},{"$f":"SUMIFS(Sheet1!S71_OY2AdjustedBudget,Sheet1!S71_SubMunicipalVoteNo,$AC:$AC,Sheet1!S71_A5CapexCode,$AD:$AD)","v":0},null,null,null,null,null,null,null,null,null,null,null,null,null,null,null,69,"CE"]
[{"$f":"B5B!A73","v":""},null,{"$f":"SUMIFS(Sheet1!S71_OriginalBudget,Sheet1!S71_SubMunicipalVoteNo,$AC:$AC,Sheet1!S71_A5CapexCode,$AD:$AD)","v":0},{"$f":"SUMIFS(Sheet1!S71_SpecialAdjustedBudget,Sheet1!S71_SubMunicipalVoteNo,$AC:$AC,Sheet1!S71_A5CapexCode,$AD:$AD)","v":0},null,null,null,null,{"$f":"SUMIFS(Sheet1!S71_AdjustmentAmount,Sheet1!S71_SubMunicipalVoteNo,$AC:$AC,Sheet1!S71_A5CapexCode,$AD:$AD)","v":0},0,0,{"$f":"SUMIFS(Sheet1!S71_OY1AdjustedBudget,Sheet1!S71_SubMunicipalVoteNo,$AC:$AC,Sheet1!S71_A5CapexCode,$AD:$AD)","v":0},{"$f":"SUMIFS(Sheet1!S71_OY2AdjustedBudget,Sheet1!S71_SubMunicipalVoteNo,$AC:$AC,Sheet1!S71_A5CapexCode,$AD:$AD)","v":0},null,null,null,null,null,null,null,null,null,null,null,null,null,null,null,610,"CE"]
[{"$f":"B5B!A74","v":"Vote 7 - Planning and Development"},null,{"$f":"SUM(C244:C253)","v":0},0,0,0,0,0,0,0,0,{"$f":"SUM(L244:L253)","v":0},{"$f":"SUM(M244:M253)","v":0}]
[{"$f":"B5B!A75","v":"7.1 - Corporate Wide Strategic Planning (IDPs, LEDs)"},null,{"$f":"SUMIFS(Sheet1!S71_OriginalBudget,Sheet1!S71_SubMunicipalVoteNo,$AC:$AC,Sheet1!S71_A5CapexCode,$AD:$AD)","v":0},{"$f":"SUMIFS(Sheet1!S71_SpecialAdjustedBudget,Sheet1!S71_SubMunicipalVoteNo,$AC:$AC,Sheet1!S71_A5CapexCode,$AD:$AD)","v":0},null,null,null,null,{"$f":"SUMIFS(Sheet1!S71_AdjustmentAmount,Sheet1!S71_SubMunicipalVoteNo,$AC:$AC,Sheet1!S71_A5CapexCode,$AD:$AD)","v":0},0,0,{"$f":"SUMIFS(Sheet1!S71_OY1AdjustedBudget,Sheet1!S71_SubMunicipalVoteNo,$AC:$AC,Sheet1!S71_A5CapexCode,$AD:$AD)","v":0},{"$f":"SUMIFS(Sheet1!S71_OY2AdjustedBudget,Sheet1!S71_SubMunicipalVoteNo,$AC:$AC,Sheet1!S71_A5CapexCode,$AD:$AD)","v":0},null,null,null,null,null,null,null,null,null,null,null,null,null,null,null,71,"CE"]
[{"$f":"B5B!A76","v":"7.2 - Town Planning, Building Regulations and Enforcement, and City Engineer"},null,{"$f":"SUMIFS(Sheet1!S71_OriginalBudget,Sheet1!S71_SubMunicipalVoteNo,$AC:$AC,Sheet1!S71_A5CapexCode,$AD:$AD)","v":0},{"$f":"SUMIFS(Sheet1!S71_SpecialAdjustedBudget,Sheet1!S71_SubMunicipalVoteNo,$AC:$AC,Sheet1!S71_A5CapexCode,$AD:$AD)","v":0},null,null,null,null,{"$f":"SUMIFS(Sheet1!S71_AdjustmentAmount,Sheet1!S71_SubMunicipalVoteNo,$AC:$AC,Sheet1!S71_A5CapexCode,$AD:$AD)","v":0},0,0,{"$f":"SUMIFS(Sheet1!S71_OY1AdjustedBudget,Sheet1!S71_SubMunicipalVoteNo,$AC:$AC,Sheet1!S71_A5CapexCode,$AD:$AD)","v":0},{"$f":"SUMIFS(Sheet1!S71_OY2AdjustedBudget,Sheet1!S71_SubMunicipalVoteNo,$AC:$AC,Sheet1!S71_A5CapexCode,$AD:$AD)","v":0},null,null,null,null,null,null,null,null,null,null,null,null,null,null,null,72,"CE"]
[{"$f":"B5B!A77","v":"7.3 - Project Management Unit"},null,{"$f":"SUMIFS(Sheet1!S71_OriginalBudget,Sheet1!S71_SubMunicipalVoteNo,$AC:$AC,Sheet1!S71_A5CapexCode,$AD:$AD)","v":0},{"$f":"SUMIFS(Sheet1!S71_SpecialAdjustedBudget,Sheet1!S71_SubMunicipalVoteNo,$AC:$AC,Sheet1!S71_A5CapexCode,$AD:$AD)","v":0},null,null,null,null,{"$f":"SUMIFS(Sheet1!S71_AdjustmentAmount,Sheet1!S71_SubMunicipalVoteNo,$AC:$AC,Sheet1!S71_A5CapexCode,$AD:$AD)","v":0},0,0,{"$f":"SUMIFS(Sheet1!S71_OY1AdjustedBudget,Sheet1!S71_SubMunicipalVoteNo,$AC:$AC,Sheet1!S71_A5CapexCode,$AD:$AD)","v":0},{"$f":"SUMIFS(Sheet1!S71_OY2AdjustedBudget,Sheet1!S71_SubMunicipalVoteNo,$AC:$AC,Sheet1!S71_A5CapexCode,$AD:$AD)","v":0},null,null,null,null,null,null,null,null,null,null,null,null,null,null,null,73,"CE"]
[{"$f":"B5B!A78","v":"7.4 - Economic Development/Planning"},null,{"$f":"SUMIFS(Sheet1!S71_OriginalBudget,Sheet1!S71_SubMunicipalVoteNo,$AC:$AC,Sheet1!S71_A5CapexCode,$AD:$AD)","v":0},{"$f":"SUMIFS(Sheet1!S71_SpecialAdjustedBudget,Sheet1!S71_SubMunicipalVoteNo,$AC:$AC,Sheet1!S71_A5CapexCode,$AD:$AD)","v":0},null,null,null,null,{"$f":"SUMIFS(Sheet1!S71_AdjustmentAmount,Sheet1!S71_SubMunicipalVoteNo,$AC:$AC,Sheet1!S71_A5CapexCode,$AD:$AD)","v":0},0,0,{"$f":"SUMIFS(Sheet1!S71_OY1AdjustedBudget,Sheet1!S71_SubMunicipalVoteNo,$AC:$AC,Sheet1!S71_A5CapexCode,$AD:$AD)","v":0},{"$f":"SUMIFS(Sheet1!S71_OY2AdjustedBudget,Sheet1!S71_SubMunicipalVoteNo,$AC:$AC,Sheet1!S71_A5CapexCode,$AD:$AD)","v":0},null,null,null,null,null,null,null,null,null,null,null,null,null,null,null,74,"CE"]
[{"$f":"B5B!A79","v":""},null,{"$f":"SUMIFS(Sheet1!S71_OriginalBudget,Sheet1!S71_SubMunicipalVoteNo,$AC:$AC,Sheet1!S71_A5CapexCode,$AD:$AD)","v":0},{"$f":"SUMIFS(Sheet1!S71_SpecialAdjustedBudget,Sheet1!S71_SubMunicipalVoteNo,$AC:$AC,Sheet1!S71_A5CapexCode,$AD:$AD)","v":0},null,null,null,null,{"$f":"SUMIFS(Sheet1!S71_AdjustmentAmount,Sheet1!S71_SubMunicipalVoteNo,$AC:$AC,Sheet1!S71_A5CapexCode,$AD:$AD)","v":0},0,0,{"$f":"SUMIFS(Sheet1!S71_OY1AdjustedBudget,Sheet1!S71_SubMunicipalVoteNo,$AC:$AC,Sheet1!S71_A5CapexCode,$AD:$AD)","v":0},{"$f":"SUMIFS(Sheet1!S71_OY2AdjustedBudget,Sheet1!S71_SubMunicipalVoteNo,$AC:$AC,Sheet1!S71_A5CapexCode,$AD:$AD)","v":0},null,null,null,null,null,null,null,null,null,null,null,null,null,null,null,75,"CE"]
[{"$f":"B5B!A80","v":""},null,{"$f":"SUMIFS(Sheet1!S71_OriginalBudget,Sheet1!S71_SubMunicipalVoteNo,$AC:$AC,Sheet1!S71_A5CapexCode,$AD:$AD)","v":0},{"$f":"SUMIFS(Sheet1!S71_SpecialAdjustedBudget,Sheet1!S71_SubMunicipalVoteNo,$AC:$AC,Sheet1!S71_A5CapexCode,$AD:$AD)","v":0},null,null,null,null,{"$f":"SUMIFS(Sheet1!S71_AdjustmentAmount,Sheet1!S71_SubMunicipalVoteNo,$AC:$AC,Sheet1!S71_A5CapexCode,$AD:$AD)","v":0},0,0,{"$f":"SUMIFS(Sheet1!S71_OY1AdjustedBudget,Sheet1!S71_SubMunicipalVoteNo,$AC:$AC,Sheet1!S71_A5CapexCode,$AD:$AD)","v":0},{"$f":"SUMIFS(Sheet1!S71_OY2AdjustedBudget,Sheet1!S71_SubMunicipalVoteNo,$AC:$AC,Sheet1!S71_A5CapexCode,$AD:$AD)","v":0},null,null,null,null,null,null,null,null,null,null,null,null,null,null,null,76,"CE"]
[{"$f":"B5B!A81","v":""},null,{"$f":"SUMIFS(Sheet1!S71_OriginalBudget,Sheet1!S71_SubMunicipalVoteNo,$AC:$AC,Sheet1!S71_A5CapexCode,$AD:$AD)","v":0},{"$f":"SUMIFS(Sheet1!S71_SpecialAdjustedBudget,Sheet1!S71_SubMunicipalVoteNo,$AC:$AC,Sheet1!S71_A5CapexCode,$AD:$AD)","v":0},null,null,null,null,{"$f":"SUMIFS(Sheet1!S71_AdjustmentAmount,Sheet1!S71_SubMunicipalVoteNo,$AC:$AC,Sheet1!S71_A5CapexCode,$AD:$AD)","v":0},0,0,{"$f":"SUMIFS(Sheet1!S71_OY1AdjustedBudget,Sheet1!S71_SubMunicipalVoteNo,$AC:$AC,Sheet1!S71_A5CapexCode,$AD:$AD)","v":0},{"$f":"SUMIFS(Sheet1!S71_OY2AdjustedBudget,Sheet1!S71_SubMunicipalVoteNo,$AC:$AC,Sheet1!S71_A5CapexCode,$AD:$AD)","v":0},null,null,null,null,null,null,null,null,null,null,null,null,null,null,null,77,"CE"]
[{"$f":"B5B!A82","v":""},null,{"$f":"SUMIFS(Sheet1!S71_OriginalBudget,Sheet1!S71_SubMunicipalVoteNo,$AC:$AC,Sheet1!S71_A5CapexCode,$AD:$AD)","v":0},{"$f":"SUMIFS(Sheet1!S71_SpecialAdjustedBudget,Sheet1!S71_SubMunicipalVoteNo,$AC:$AC,Sheet1!S71_A5CapexCode,$AD:$AD)","v":0},null,null,null,null,{"$f":"SUMIFS(Sheet1!S71_AdjustmentAmount,Sheet1!S71_SubMunicipalVoteNo,$AC:$AC,Sheet1!S71_A5CapexCode,$AD:$AD)","v":0},0,0,{"$f":"SUMIFS(Sheet1!S71_OY1AdjustedBudget,Sheet1!S71_SubMunicipalVoteNo,$AC:$AC,Sheet1!S71_A5CapexCode,$AD:$AD)","v":0},{"$f":"SUMIFS(Sheet1!S71_OY2AdjustedBudget,Sheet1!S71_SubMunicipalVoteNo,$AC:$AC,Sheet1!S71_A5CapexCode,$AD:$AD)","v":0},null,null,null,null,null,null,null,null,null,null,null,null,null,null,null,78,"CE"]
[{"$f":"B5B!A83","v":""},null,{"$f":"SUMIFS(Sheet1!S71_OriginalBudget,Sheet1!S71_SubMunicipalVoteNo,$AC:$AC,Sheet1!S71_A5CapexCode,$AD:$AD)","v":0},{"$f":"SUMIFS(Sheet1!S71_SpecialAdjustedBudget,Sheet1!S71_SubMunicipalVoteNo,$AC:$AC,Sheet1!S71_A5CapexCode,$AD:$AD)","v":0},null,null,null,null,{"$f":"SUMIFS(Sheet1!S71_AdjustmentAmount,Sheet1!S71_SubMunicipalVoteNo,$AC:$AC,Sheet1!S71_A5CapexCode,$AD:$AD)","v":0},0,0,{"$f":"SUMIFS(Sheet1!S71_OY1AdjustedBudget,Sheet1!S71_SubMunicipalVoteNo,$AC:$AC,Sheet1!S71_A5CapexCode,$AD:$AD)","v":0},{"$f":"SUMIFS(Sheet1!S71_OY2AdjustedBudget,Sheet1!S71_SubMunicipalVoteNo,$AC:$AC,Sheet1!S71_A5CapexCode,$AD:$AD)","v":0},null,null,null,null,null,null,null,null,null,null,null,null,null,null,null,79,"CE"]
[{"$f":"B5B!A84","v":""},null,{"$f":"SUMIFS(Sheet1!S71_OriginalBudget,Sheet1!S71_SubMunicipalVoteNo,$AC:$AC,Sheet1!S71_A5CapexCode,$AD:$AD)","v":0},{"$f":"SUMIFS(Sheet1!S71_SpecialAdjustedBudget,Sheet1!S71_SubMunicipalVoteNo,$AC:$AC,Sheet1!S71_A5CapexCode,$AD:$AD)","v":0},null,null,null,null,{"$f":"SUMIFS(Sheet1!S71_AdjustmentAmount,Sheet1!S71_SubMunicipalVoteNo,$AC:$AC,Sheet1!S71_A5CapexCode,$AD:$AD)","v":0},0,0,{"$f":"SUMIFS(Sheet1!S71_OY1AdjustedBudget,Sheet1!S71_SubMunicipalVoteNo,$AC:$AC,Sheet1!S71_A5CapexCode,$AD:$AD)","v":0},{"$f":"SUMIFS(Sheet1!S71_OY2AdjustedBudget,Sheet1!S71_SubMunicipalVoteNo,$AC:$AC,Sheet1!S71_A5CapexCode,$AD:$AD)","v":0},null,null,null,null,null,null,null,null,null,null,null,null,null,null,null,710,"CE"]
[{"$f":"B5B!A85","v":"Vote 8 - Public Safety"},null,{"$f":"SUM(C255:C264)","v":0},0,0,0,0,0,0,0,0,{"$f":"SUM(L255:L264)","v":0},{"$f":"SUM(M255:M264)","v":0}]
[{"$f":"B5B!A86","v":"8.1 - Police Forces, Traffic and Street Parking Control"},null,{"$f":"SUMIFS(Sheet1!S71_OriginalBudget,Sheet1!S71_SubMunicipalVoteNo,$AC:$AC,Sheet1!S71_A5CapexCode,$AD:$AD)","v":0},{"$f":"SUMIFS(Sheet1!S71_SpecialAdjustedBudget,Sheet1!S71_SubMunicipalVoteNo,$AC:$AC,Sheet1!S71_A5CapexCode,$AD:$AD)","v":0},null,null,null,null,{"$f":"SUMIFS(Sheet1!S71_AdjustmentAmount,Sheet1!S71_SubMunicipalVoteNo,$AC:$AC,Sheet1!S71_A5CapexCode,$AD:$AD)","v":0},0,0,{"$f":"SUMIFS(Sheet1!S71_OY1AdjustedBudget,Sheet1!S71_SubMunicipalVoteNo,$AC:$AC,Sheet1!S71_A5CapexCode,$AD:$AD)","v":0},{"$f":"SUMIFS(Sheet1!S71_OY2AdjustedBudget,Sheet1!S71_SubMunicipalVoteNo,$AC:$AC,Sheet1!S71_A5CapexCode,$AD:$AD)","v":0},null,null,null,null,null,null,null,null,null,null,null,null,null,null,null,81,"CE"]
[{"$f":"B5B!A87","v":""},null,{"$f":"SUMIFS(Sheet1!S71_OriginalBudget,Sheet1!S71_SubMunicipalVoteNo,$AC:$AC,Sheet1!S71_A5CapexCode,$AD:$AD)","v":0},{"$f":"SUMIFS(Sheet1!S71_SpecialAdjustedBudget,Sheet1!S71_SubMunicipalVoteNo,$AC:$AC,Sheet1!S71_A5CapexCode,$AD:$AD)","v":0},null,null,null,null,{"$f":"SUMIFS(Sheet1!S71_AdjustmentAmount,Sheet1!S71_SubMunicipalVoteNo,$AC:$AC,Sheet1!S71_A5CapexCode,$AD:$AD)","v":0},0,0,{"$f":"SUMIFS(Sheet1!S71_OY1AdjustedBudget,Sheet1!S71_SubMunicipalVoteNo,$AC:$AC,Sheet1!S71_A5CapexCode,$AD:$AD)","v":0},{"$f":"SUMIFS(Sheet1!S71_OY2AdjustedBudget,Sheet1!S71_SubMunicipalVoteNo,$AC:$AC,Sheet1!S71_A5CapexCode,$AD:$AD)","v":0},null,null,null,null,null,null,null,null,null,null,null,null,null,null,null,82,"CE"]
[{"$f":"B5B!A88","v":""},null,{"$f":"SUMIFS(Sheet1!S71_OriginalBudget,Sheet1!S71_SubMunicipalVoteNo,$AC:$AC,Sheet1!S71_A5CapexCode,$AD:$AD)","v":0},{"$f":"SUMIFS(Sheet1!S71_SpecialAdjustedBudget,Sheet1!S71_SubMunicipalVoteNo,$AC:$AC,Sheet1!S71_A5CapexCode,$AD:$AD)","v":0},null,null,null,null,{"$f":"SUMIFS(Sheet1!S71_AdjustmentAmount,Sheet1!S71_SubMunicipalVoteNo,$AC:$AC,Sheet1!S71_A5CapexCode,$AD:$AD)","v":0},0,0,{"$f":"SUMIFS(Sheet1!S71_OY1AdjustedBudget,Sheet1!S71_SubMunicipalVoteNo,$AC:$AC,Sheet1!S71_A5CapexCode,$AD:$AD)","v":0},{"$f":"SUMIFS(Sheet1!S71_OY2AdjustedBudget,Sheet1!S71_SubMunicipalVoteNo,$AC:$AC,Sheet1!S71_A5CapexCode,$AD:$AD)","v":0},null,null,null,null,null,null,null,null,null,null,null,null,null,null,null,83,"CE"]
[{"$f":"B5B!A89","v":""},null,{"$f":"SUMIFS(Sheet1!S71_OriginalBudget,Sheet1!S71_SubMunicipalVoteNo,$AC:$AC,Sheet1!S71_A5CapexCode,$AD:$AD)","v":0},{"$f":"SUMIFS(Sheet1!S71_SpecialAdjustedBudget,Sheet1!S71_SubMunicipalVoteNo,$AC:$AC,Sheet1!S71_A5CapexCode,$AD:$AD)","v":0},null,null,null,null,{"$f":"SUMIFS(Sheet1!S71_AdjustmentAmount,Sheet1!S71_SubMunicipalVoteNo,$AC:$AC,Sheet1!S71_A5CapexCode,$AD:$AD)","v":0},0,0,{"$f":"SUMIFS(Sheet1!S71_OY1AdjustedBudget,Sheet1!S71_SubMunicipalVoteNo,$AC:$AC,Sheet1!S71_A5CapexCode,$AD:$AD)","v":0},{"$f":"SUMIFS(Sheet1!S71_OY2AdjustedBudget,Sheet1!S71_SubMunicipalVoteNo,$AC:$AC,Sheet1!S71_A5CapexCode,$AD:$AD)","v":0},null,null,null,null,null,null,null,null,null,null,null,null,null,null,null,84,"CE"]
[{"$f":"B5B!A90","v":""},null,{"$f":"SUMIFS(Sheet1!S71_OriginalBudget,Sheet1!S71_SubMunicipalVoteNo,$AC:$AC,Sheet1!S71_A5CapexCode,$AD:$AD)","v":0},{"$f":"SUMIFS(Sheet1!S71_SpecialAdjustedBudget,Sheet1!S71_SubMunicipalVoteNo,$AC:$AC,Sheet1!S71_A5CapexCode,$AD:$AD)","v":0},null,null,null,null,{"$f":"SUMIFS(Sheet1!S71_AdjustmentAmount,Sheet1!S71_SubMunicipalVoteNo,$AC:$AC,Sheet1!S71_A5CapexCode,$AD:$AD)","v":0},0,0,{"$f":"SUMIFS(Sheet1!S71_OY1AdjustedBudget,Sheet1!S71_SubMunicipalVoteNo,$AC:$AC,Sheet1!S71_A5CapexCode,$AD:$AD)","v":0},{"$f":"SUMIFS(Sheet1!S71_OY2AdjustedBudget,Sheet1!S71_SubMunicipalVoteNo,$AC:$AC,Sheet1!S71_A5CapexCode,$AD:$AD)","v":0},null,null,null,null,null,null,null,null,null,null,null,null,null,null,null,85,"CE"]
[{"$f":"B5B!A91","v":""},null,{"$f":"SUMIFS(Sheet1!S71_OriginalBudget,Sheet1!S71_SubMunicipalVoteNo,$AC:$AC,Sheet1!S71_A5CapexCode,$AD:$AD)","v":0},{"$f":"SUMIFS(Sheet1!S71_SpecialAdjustedBudget,Sheet1!S71_SubMunicipalVoteNo,$AC:$AC,Sheet1!S71_A5CapexCode,$AD:$AD)","v":0},null,null,null,null,{"$f":"SUMIFS(Sheet1!S71_AdjustmentAmount,Sheet1!S71_SubMunicipalVoteNo,$AC:$AC,Sheet1!S71_A5CapexCode,$AD:$AD)","v":0},0,0,{"$f":"SUMIFS(Sheet1!S71_OY1AdjustedBudget,Sheet1!S71_SubMunicipalVoteNo,$AC:$AC,Sheet1!S71_A5CapexCode,$AD:$AD)","v":0},{"$f":"SUMIFS(Sheet1!S71_OY2AdjustedBudget,Sheet1!S71_SubMunicipalVoteNo,$AC:$AC,Sheet1!S71_A5CapexCode,$AD:$AD)","v":0},null,null,null,null,null,null,null,null,null,null,null,null,null,null,null,86,"CE"]
[{"$f":"B5B!A92","v":""},null,{"$f":"SUMIFS(Sheet1!S71_OriginalBudget,Sheet1!S71_SubMunicipalVoteNo,$AC:$AC,Sheet1!S71_A5CapexCode,$AD:$AD)","v":0},{"$f":"SUMIFS(Sheet1!S71_SpecialAdjustedBudget,Sheet1!S71_SubMunicipalVoteNo,$AC:$AC,Sheet1!S71_A5CapexCode,$AD:$AD)","v":0},null,null,null,null,{"$f":"SUMIFS(Sheet1!S71_AdjustmentAmount,Sheet1!S71_SubMunicipalVoteNo,$AC:$AC,Sheet1!S71_A5CapexCode,$AD:$AD)","v":0},0,0,{"$f":"SUMIFS(Sheet1!S71_OY1AdjustedBudget,Sheet1!S71_SubMunicipalVoteNo,$AC:$AC,Sheet1!S71_A5CapexCode,$AD:$AD)","v":0},{"$f":"SUMIFS(Sheet1!S71_OY2AdjustedBudget,Sheet1!S71_SubMunicipalVoteNo,$AC:$AC,Sheet1!S71_A5CapexCode,$AD:$AD)","v":0},null,null,null,null,null,null,null,null,null,null,null,null,null,null,null,87,"CE"]
[{"$f":"B5B!A93","v":""},null,{"$f":"SUMIFS(Sheet1!S71_OriginalBudget,Sheet1!S71_SubMunicipalVoteNo,$AC:$AC,Sheet1!S71_A5CapexCode,$AD:$AD)","v":0},{"$f":"SUMIFS(Sheet1!S71_SpecialAdjustedBudget,Sheet1!S71_SubMunicipalVoteNo,$AC:$AC,Sheet1!S71_A5CapexCode,$AD:$AD)","v":0},null,null,null,null,{"$f":"SUMIFS(Sheet1!S71_AdjustmentAmount,Sheet1!S71_SubMunicipalVoteNo,$AC:$AC,Sheet1!S71_A5CapexCode,$AD:$AD)","v":0},0,0,{"$f":"SUMIFS(Sheet1!S71_OY1AdjustedBudget,Sheet1!S71_SubMunicipalVoteNo,$AC:$AC,Sheet1!S71_A5CapexCode,$AD:$AD)","v":0},{"$f":"SUMIFS(Sheet1!S71_OY2AdjustedBudget,Sheet1!S71_SubMunicipalVoteNo,$AC:$AC,Sheet1!S71_A5CapexCode,$AD:$AD)","v":0},null,null,null,null,null,null,null,null,null,null,null,null,null,null,null,88,"CE"]
[{"$f":"B5B!A94","v":""},null,{"$f":"SUMIFS(Sheet1!S71_OriginalBudget,Sheet1!S71_SubMunicipalVoteNo,$AC:$AC,Sheet1!S71_A5CapexCode,$AD:$AD)","v":0},{"$f":"SUMIFS(Sheet1!S71_SpecialAdjustedBudget,Sheet1!S71_SubMunicipalVoteNo,$AC:$AC,Sheet1!S71_A5CapexCode,$AD:$AD)","v":0},null,null,null,null,{"$f":"SUMIFS(Sheet1!S71_AdjustmentAmount,Sheet1!S71_SubMunicipalVoteNo,$AC:$AC,Sheet1!S71_A5CapexCode,$AD:$AD)","v":0},0,0,{"$f":"SUMIFS(Sheet1!S71_OY1AdjustedBudget,Sheet1!S71_SubMunicipalVoteNo,$AC:$AC,Sheet1!S71_A5CapexCode,$AD:$AD)","v":0},{"$f":"SUMIFS(Sheet1!S71_OY2AdjustedBudget,Sheet1!S71_SubMunicipalVoteNo,$AC:$AC,Sheet1!S71_A5CapexCode,$AD:$AD)","v":0},null,null,null,null,null,null,null,null,null,null,null,null,null,null,null,89,"CE"]
[{"$f":"B5B!A95","v":""},null,{"$f":"SUMIFS(Sheet1!S71_OriginalBudget,Sheet1!S71_SubMunicipalVoteNo,$AC:$AC,Sheet1!S71_A5CapexCode,$AD:$AD)","v":0},{"$f":"SUMIFS(Sheet1!S71_SpecialAdjustedBudget,Sheet1!S71_SubMunicipalVoteNo,$AC:$AC,Sheet1!S71_A5CapexCode,$AD:$AD)","v":0},null,null,null,null,{"$f":"SUMIFS(Sheet1!S71_AdjustmentAmount,Sheet1!S71_SubMunicipalVoteNo,$AC:$AC,Sheet1!S71_A5CapexCode,$AD:$AD)","v":0},0,0,{"$f":"SUMIFS(Sheet1!S71_OY1AdjustedBudget,Sheet1!S71_SubMunicipalVoteNo,$AC:$AC,Sheet1!S71_A5CapexCode,$AD:$AD)","v":0},{"$f":"SUMIFS(Sheet1!S71_OY2AdjustedBudget,Sheet1!S71_SubMunicipalVoteNo,$AC:$AC,Sheet1!S71_A5CapexCode,$AD:$AD)","v":0},null,null,null,null,null,null,null,null,null,null,null,null,null,null,null,810,"CE"]
[{"$f":"B5B!A96","v":"Vote 9 - Roads"},null,{"$f":"SUM(C266:C275)","v":30169521},0,0,0,0,0,1911731,1911731,32081252,{"$f":"SUM(L266:L275)","v":35007500},{"$f":"SUM(M266:M275)","v":36582838}]
[{"$f":"B5B!A97","v":""},null,{"$f":"SUMIFS(Sheet1!S71_OriginalBudget,Sheet1!S71_SubMunicipalVoteNo,$AC:$AC,Sheet1!S71_A5CapexCode,$AD:$AD)","v":30169521},{"$f":"SUMIFS(Sheet1!S71_SpecialAdjustedBudget,Sheet1!S71_SubMunicipalVoteNo,$AC:$AC,Sheet1!S71_A5CapexCode,$AD:$AD)","v":0},null,null,null,null,{"$f":"SUMIFS(Sheet1!S71_AdjustmentAmount,Sheet1!S71_SubMunicipalVoteNo,$AC:$AC,Sheet1!S71_A5CapexCode,$AD:$AD)","v":1911731},1911731,32081252,{"$f":"SUMIFS(Sheet1!S71_OY1AdjustedBudget,Sheet1!S71_SubMunicipalVoteNo,$AC:$AC,Sheet1!S71_A5CapexCode,$AD:$AD)","v":35007500},{"$f":"SUMIFS(Sheet1!S71_OY2AdjustedBudget,Sheet1!S71_SubMunicipalVoteNo,$AC:$AC,Sheet1!S71_A5CapexCode,$AD:$AD)","v":36582838},null,null,null,null,null,null,null,null,null,null,null,null,null,null,null,91,"CE"]
[{"$f":"B5B!A98","v":""},null,{"$f":"SUMIFS(Sheet1!S71_OriginalBudget,Sheet1!S71_SubMunicipalVoteNo,$AC:$AC,Sheet1!S71_A5CapexCode,$AD:$AD)","v":0},{"$f":"SUMIFS(Sheet1!S71_SpecialAdjustedBudget,Sheet1!S71_SubMunicipalVoteNo,$AC:$AC,Sheet1!S71_A5CapexCode,$AD:$AD)","v":0},null,null,null,null,{"$f":"SUMIFS(Sheet1!S71_AdjustmentAmount,Sheet1!S71_SubMunicipalVoteNo,$AC:$AC,Sheet1!S71_A5CapexCode,$AD:$AD)","v":0},0,0,{"$f":"SUMIFS(Sheet1!S71_OY1AdjustedBudget,Sheet1!S71_SubMunicipalVoteNo,$AC:$AC,Sheet1!S71_A5CapexCode,$AD:$AD)","v":0},{"$f":"SUMIFS(Sheet1!S71_OY2AdjustedBudget,Sheet1!S71_SubMunicipalVoteNo,$AC:$AC,Sheet1!S71_A5CapexCode,$AD:$AD)","v":0},null,null,null,null,null,null,null,null,null,null,null,null,null,null,null,92,"CE"]
[{"$f":"B5B!A99","v":""},null,{"$f":"SUMIFS(Sheet1!S71_OriginalBudget,Sheet1!S71_SubMunicipalVoteNo,$AC:$AC,Sheet1!S71_A5CapexCode,$AD:$AD)","v":0},{"$f":"SUMIFS(Sheet1!S71_SpecialAdjustedBudget,Sheet1!S71_SubMunicipalVoteNo,$AC:$AC,Sheet1!S71_A5CapexCode,$AD:$AD)","v":0},null,null,null,null,{"$f":"SUMIFS(Sheet1!S71_AdjustmentAmount,Sheet1!S71_SubMunicipalVoteNo,$AC:$AC,Sheet1!S71_A5CapexCode,$AD:$AD)","v":0},0,0,{"$f":"SUMIFS(Sheet1!S71_OY1AdjustedBudget,Sheet1!S71_SubMunicipalVoteNo,$AC:$AC,Sheet1!S71_A5CapexCode,$AD:$AD)","v":0},{"$f":"SUMIFS(Sheet1!S71_OY2AdjustedBudget,Sheet1!S71_SubMunicipalVoteNo,$AC:$AC,Sheet1!S71_A5CapexCode,$AD:$AD)","v":0},null,null,null,null,null,null,null,null,null,null,null,null,null,null,null,93,"CE"]
[{"$f":"B5B!A100","v":""},null,{"$f":"SUMIFS(Sheet1!S71_OriginalBudget,Sheet1!S71_SubMunicipalVoteNo,$AC:$AC,Sheet1!S71_A5CapexCode,$AD:$AD)","v":0},{"$f":"SUMIFS(Sheet1!S71_SpecialAdjustedBudget,Sheet1!S71_SubMunicipalVoteNo,$AC:$AC,Sheet1!S71_A5CapexCode,$AD:$AD)","v":0},null,null,null,null,{"$f":"SUMIFS(Sheet1!S71_AdjustmentAmount,Sheet1!S71_SubMunicipalVoteNo,$AC:$AC,Sheet1!S71_A5CapexCode,$AD:$AD)","v":0},0,0,{"$f":"SUMIFS(Sheet1!S71_OY1AdjustedBudget,Sheet1!S71_SubMunicipalVoteNo,$AC:$AC,Sheet1!S71_A5CapexCode,$AD:$AD)","v":0},{"$f":"SUMIFS(Sheet1!S71_OY2AdjustedBudget,Sheet1!S71_SubMunicipalVoteNo,$AC:$AC,Sheet1!S71_A5CapexCode,$AD:$AD)","v":0},null,null,null,null,null,null,null,null,null,null,null,null,null,null,null,94,"CE"]
[{"$f":"B5B!A101","v":""},null,{"$f":"SUMIFS(Sheet1!S71_OriginalBudget,Sheet1!S71_SubMunicipalVoteNo,$AC:$AC,Sheet1!S71_A5CapexCode,$AD:$AD)","v":0},{"$f":"SUMIFS(Sheet1!S71_SpecialAdjustedBudget,Sheet1!S71_SubMunicipalVoteNo,$AC:$AC,Sheet1!S71_A5CapexCode,$AD:$AD)","v":0},null,null,null,null,{"$f":"SUMIFS(Sheet1!S71_AdjustmentAmount,Sheet1!S71_SubMunicipalVoteNo,$AC:$AC,Sheet1!S71_A5CapexCode,$AD:$AD)","v":0},0,0,{"$f":"SUMIFS(Sheet1!S71_OY1AdjustedBudget,Sheet1!S71_SubMunicipalVoteNo,$AC:$AC,Sheet1!S71_A5CapexCode,$AD:$AD)","v":0},{"$f":"SUMIFS(Sheet1!S71_OY2AdjustedBudget,Sheet1!S71_SubMunicipalVoteNo,$AC:$AC,Sheet1!S71_A5CapexCode,$AD:$AD)","v":0},null,null,null,null,null,null,null,null,null,null,null,null,null,null,null,95,"CE"]
[{"$f":"B5B!A102","v":""},null,{"$f":"SUMIFS(Sheet1!S71_OriginalBudget,Sheet1!S71_SubMunicipalVoteNo,$AC:$AC,Sheet1!S71_A5CapexCode,$AD:$AD)","v":0},{"$f":"SUMIFS(Sheet1!S71_SpecialAdjustedBudget,Sheet1!S71_SubMunicipalVoteNo,$AC:$AC,Sheet1!S71_A5CapexCode,$AD:$AD)","v":0},null,null,null,null,{"$f":"SUMIFS(Sheet1!S71_AdjustmentAmount,Sheet1!S71_SubMunicipalVoteNo,$AC:$AC,Sheet1!S71_A5CapexCode,$AD:$AD)","v":0},0,0,{"$f":"SUMIFS(Sheet1!S71_OY1AdjustedBudget,Sheet1!S71_SubMunicipalVoteNo,$AC:$AC,Sheet1!S71_A5CapexCode,$AD:$AD)","v":0},{"$f":"SUMIFS(Sheet1!S71_OY2AdjustedBudget,Sheet1!S71_SubMunicipalVoteNo,$AC:$AC,Sheet1!S71_A5CapexCode,$AD:$AD)","v":0},null,null,null,null,null,null,null,null,null,null,null,null,null,null,null,96,"CE"]
[{"$f":"B5B!A103","v":""},null,{"$f":"SUMIFS(Sheet1!S71_OriginalBudget,Sheet1!S71_SubMunicipalVoteNo,$AC:$AC,Sheet1!S71_A5CapexCode,$AD:$AD)","v":0},{"$f":"SUMIFS(Sheet1!S71_SpecialAdjustedBudget,Sheet1!S71_SubMunicipalVoteNo,$AC:$AC,Sheet1!S71_A5CapexCode,$AD:$AD)","v":0},null,null,null,null,{"$f":"SUMIFS(Sheet1!S71_AdjustmentAmount,Sheet1!S71_SubMunicipalVoteNo,$AC:$AC,Sheet1!S71_A5CapexCode,$AD:$AD)","v":0},0,0,{"$f":"SUMIFS(Sheet1!S71_OY1AdjustedBudget,Sheet1!S71_SubMunicipalVoteNo,$AC:$AC,Sheet1!S71_A5CapexCode,$AD:$AD)","v":0},{"$f":"SUMIFS(Sheet1!S71_OY2AdjustedBudget,Sheet1!S71_SubMunicipalVoteNo,$AC:$AC,Sheet1!S71_A5CapexCode,$AD:$AD)","v":0},null,null,null,null,null,null,null,null,null,null,null,null,null,null,null,97,"CE"]
[{"$f":"B5B!A104","v":""},null,{"$f":"SUMIFS(Sheet1!S71_OriginalBudget,Sheet1!S71_SubMunicipalVoteNo,$AC:$AC,Sheet1!S71_A5CapexCode,$AD:$AD)","v":0},{"$f":"SUMIFS(Sheet1!S71_SpecialAdjustedBudget,Sheet1!S71_SubMunicipalVoteNo,$AC:$AC,Sheet1!S71_A5CapexCode,$AD:$AD)","v":0},null,null,null,null,{"$f":"SUMIFS(Sheet1!S71_AdjustmentAmount,Sheet1!S71_SubMunicipalVoteNo,$AC:$AC,Sheet1!S71_A5CapexCode,$AD:$AD)","v":0},0,0,{"$f":"SUMIFS(Sheet1!S71_OY1AdjustedBudget,Sheet1!S71_SubMunicipalVoteNo,$AC:$AC,Sheet1!S71_A5CapexCode,$AD:$AD)","v":0},{"$f":"SUMIFS(Sheet1!S71_OY2AdjustedBudget,Sheet1!S71_SubMunicipalVoteNo,$AC:$AC,Sheet1!S71_A5CapexCode,$AD:$AD)","v":0},null,null,null,null,null,null,null,null,null,null,null,null,null,null,null,98,"CE"]
[{"$f":"B5B!A105","v":""},null,{"$f":"SUMIFS(Sheet1!S71_OriginalBudget,Sheet1!S71_SubMunicipalVoteNo,$AC:$AC,Sheet1!S71_A5CapexCode,$AD:$AD)","v":0},{"$f":"SUMIFS(Sheet1!S71_SpecialAdjustedBudget,Sheet1!S71_SubMunicipalVoteNo,$AC:$AC,Sheet1!S71_A5CapexCode,$AD:$AD)","v":0},null,null,null,null,{"$f":"SUMIFS(Sheet1!S71_AdjustmentAmount,Sheet1!S71_SubMunicipalVoteNo,$AC:$AC,Sheet1!S71_A5CapexCode,$AD:$AD)","v":0},0,0,{"$f":"SUMIFS(Sheet1!S71_OY1AdjustedBudget,Sheet1!S71_SubMunicipalVoteNo,$AC:$AC,Sheet1!S71_A5CapexCode,$AD:$AD)","v":0},{"$f":"SUMIFS(Sheet1!S71_OY2AdjustedBudget,Sheet1!S71_SubMunicipalVoteNo,$AC:$AC,Sheet1!S71_A5CapexCode,$AD:$AD)","v":0},null,null,null,null,null,null,null,null,null,null,null,null,null,null,null,99,"CE"]
[{"$f":"B5B!A106","v":0},null,{"$f":"SUMIFS(Sheet1!S71_OriginalBudget,Sheet1!S71_SubMunicipalVoteNo,$AC:$AC,Sheet1!S71_A5CapexCode,$AD:$AD)","v":0},{"$f":"SUMIFS(Sheet1!S71_SpecialAdjustedBudget,Sheet1!S71_SubMunicipalVoteNo,$AC:$AC,Sheet1!S71_A5CapexCode,$AD:$AD)","v":0},null,null,null,null,{"$f":"SUMIFS(Sheet1!S71_AdjustmentAmount,Sheet1!S71_SubMunicipalVoteNo,$AC:$AC,Sheet1!S71_A5CapexCode,$AD:$AD)","v":0},0,0,{"$f":"SUMIFS(Sheet1!S71_OY1AdjustedBudget,Sheet1!S71_SubMunicipalVoteNo,$AC:$AC,Sheet1!S71_A5CapexCode,$AD:$AD)","v":0},{"$f":"SUMIFS(Sheet1!S71_OY2AdjustedBudget,Sheet1!S71_SubMunicipalVoteNo,$AC:$AC,Sheet1!S71_A5CapexCode,$AD:$AD)","v":0},null,null,null,null,null,null,null,null,null,null,null,null,null,null,null,910,"CE"]
[{"$f":"B5B!A107","v":"Vote 10 - Sport and Recreation"},null,{"$f":"SUM(C277:C286)","v":0},0,0,0,0,0,0,0,0,{"$f":"SUM(L277:L286)","v":0},{"$f":"SUM(M277:M286)","v":0}]
[{"$f":"B5B!A108","v":"10.1 - Recreational Facilities"},null,{"$f":"SUMIFS(Sheet1!S71_OriginalBudget,Sheet1!S71_SubMunicipalVoteNo,$AC:$AC,Sheet1!S71_A5CapexCode,$AD:$AD)","v":0},{"$f":"SUMIFS(Sheet1!S71_SpecialAdjustedBudget,Sheet1!S71_SubMunicipalVoteNo,$AC:$AC,Sheet1!S71_A5CapexCode,$AD:$AD)","v":0},null,null,null,null,{"$f":"SUMIFS(Sheet1!S71_AdjustmentAmount,Sheet1!S71_SubMunicipalVoteNo,$AC:$AC,Sheet1!S71_A5CapexCode,$AD:$AD)","v":0},0,0,{"$f":"SUMIFS(Sheet1!S71_OY1AdjustedBudget,Sheet1!S71_SubMunicipalVoteNo,$AC:$AC,Sheet1!S71_A5CapexCode,$AD:$AD)","v":0},{"$f":"SUMIFS(Sheet1!S71_OY2AdjustedBudget,Sheet1!S71_SubMunicipalVoteNo,$AC:$AC,Sheet1!S71_A5CapexCode,$AD:$AD)","v":0},null,null,null,null,null,null,null,null,null,null,null,null,null,null,null,101,"CE"]
[{"$f":"B5B!A109","v":""},null,{"$f":"SUMIFS(Sheet1!S71_OriginalBudget,Sheet1!S71_SubMunicipalVoteNo,$AC:$AC,Sheet1!S71_A5CapexCode,$AD:$AD)","v":0},{"$f":"SUMIFS(Sheet1!S71_SpecialAdjustedBudget,Sheet1!S71_SubMunicipalVoteNo,$AC:$AC,Sheet1!S71_A5CapexCode,$AD:$AD)","v":0},null,null,null,null,{"$f":"SUMIFS(Sheet1!S71_AdjustmentAmount,Sheet1!S71_SubMunicipalVoteNo,$AC:$AC,Sheet1!S71_A5CapexCode,$AD:$AD)","v":0},0,0,{"$f":"SUMIFS(Sheet1!S71_OY1AdjustedBudget,Sheet1!S71_SubMunicipalVoteNo,$AC:$AC,Sheet1!S71_A5CapexCode,$AD:$AD)","v":0},{"$f":"SUMIFS(Sheet1!S71_OY2AdjustedBudget,Sheet1!S71_SubMunicipalVoteNo,$AC:$AC,Sheet1!S71_A5CapexCode,$AD:$AD)","v":0},null,null,null,null,null,null,null,null,null,null,null,null,null,null,null,102,"CE"]
[{"$f":"B5B!A110","v":""},null,{"$f":"SUMIFS(Sheet1!S71_OriginalBudget,Sheet1!S71_SubMunicipalVoteNo,$AC:$AC,Sheet1!S71_A5CapexCode,$AD:$AD)","v":0},{"$f":"SUMIFS(Sheet1!S71_SpecialAdjustedBudget,Sheet1!S71_SubMunicipalVoteNo,$AC:$AC,Sheet1!S71_A5CapexCode,$AD:$AD)","v":0},null,null,null,null,{"$f":"SUMIFS(Sheet1!S71_AdjustmentAmount,Sheet1!S71_SubMunicipalVoteNo,$AC:$AC,Sheet1!S71_A5CapexCode,$AD:$AD)","v":0},0,0,{"$f":"SUMIFS(Sheet1!S71_OY1AdjustedBudget,Sheet1!S71_SubMunicipalVoteNo,$AC:$AC,Sheet1!S71_A5CapexCode,$AD:$AD)","v":0},{"$f":"SUMIFS(Sheet1!S71_OY2AdjustedBudget,Sheet1!S71_SubMunicipalVoteNo,$AC:$AC,Sheet1!S71_A5CapexCode,$AD:$AD)","v":0},null,null,null,null,null,null,null,null,null,null,null,null,null,null,null,103,"CE"]
[{"$f":"B5B!A111","v":""},null,{"$f":"SUMIFS(Sheet1!S71_OriginalBudget,Sheet1!S71_SubMunicipalVoteNo,$AC:$AC,Sheet1!S71_A5CapexCode,$AD:$AD)","v":0},{"$f":"SUMIFS(Sheet1!S71_SpecialAdjustedBudget,Sheet1!S71_SubMunicipalVoteNo,$AC:$AC,Sheet1!S71_A5CapexCode,$AD:$AD)","v":0},null,null,null,null,{"$f":"SUMIFS(Sheet1!S71_AdjustmentAmount,Sheet1!S71_SubMunicipalVoteNo,$AC:$AC,Sheet1!S71_A5CapexCode,$AD:$AD)","v":0},0,0,{"$f":"SUMIFS(Sheet1!S71_OY1AdjustedBudget,Sheet1!S71_SubMunicipalVoteNo,$AC:$AC,Sheet1!S71_A5CapexCode,$AD:$AD)","v":0},{"$f":"SUMIFS(Sheet1!S71_OY2AdjustedBudget,Sheet1!S71_SubMunicipalVoteNo,$AC:$AC,Sheet1!S71_A5CapexCode,$AD:$AD)","v":0},null,null,null,null,null,null,null,null,null,null,null,null,null,null,null,104,"CE"]
[{"$f":"B5B!A112","v":""},null,{"$f":"SUMIFS(Sheet1!S71_OriginalBudget,Sheet1!S71_SubMunicipalVoteNo,$AC:$AC,Sheet1!S71_A5CapexCode,$AD:$AD)","v":0},{"$f":"SUMIFS(Sheet1!S71_SpecialAdjustedBudget,Sheet1!S71_SubMunicipalVoteNo,$AC:$AC,Sheet1!S71_A5CapexCode,$AD:$AD)","v":0},null,null,null,null,{"$f":"SUMIFS(Sheet1!S71_AdjustmentAmount,Sheet1!S71_SubMunicipalVoteNo,$AC:$AC,Sheet1!S71_A5CapexCode,$AD:$AD)","v":0},0,0,{"$f":"SUMIFS(Sheet1!S71_OY1AdjustedBudget,Sheet1!S71_SubMunicipalVoteNo,$AC:$AC,Sheet1!S71_A5CapexCode,$AD:$AD)","v":0},{"$f":"SUMIFS(Sheet1!S71_OY2AdjustedBudget,Sheet1!S71_SubMunicipalVoteNo,$AC:$AC,Sheet1!S71_A5CapexCode,$AD:$AD)","v":0},null,null,null,null,null,null,null,null,null,null,null,null,null,null,null,105,"CE"]
[{"$f":"B5B!A113","v":""},null,{"$f":"SUMIFS(Sheet1!S71_OriginalBudget,Sheet1!S71_SubMunicipalVoteNo,$AC:$AC,Sheet1!S71_A5CapexCode,$AD:$AD)","v":0},{"$f":"SUMIFS(Sheet1!S71_SpecialAdjustedBudget,Sheet1!S71_SubMunicipalVoteNo,$AC:$AC,Sheet1!S71_A5CapexCode,$AD:$AD)","v":0},null,null,null,null,{"$f":"SUMIFS(Sheet1!S71_AdjustmentAmount,Sheet1!S71_SubMunicipalVoteNo,$AC:$AC,Sheet1!S71_A5CapexCode,$AD:$AD)","v":0},0,0,{"$f":"SUMIFS(Sheet1!S71_OY1AdjustedBudget,Sheet1!S71_SubMunicipalVoteNo,$AC:$AC,Sheet1!S71_A5CapexCode,$AD:$AD)","v":0},{"$f":"SUMIFS(Sheet1!S71_OY2AdjustedBudget,Sheet1!S71_SubMunicipalVoteNo,$AC:$AC,Sheet1!S71_A5CapexCode,$AD:$AD)","v":0},null,null,null,null,null,null,null,null,null,null,null,null,null,null,null,106,"CE"]
[{"$f":"B5B!A114","v":""},null,{"$f":"SUMIFS(Sheet1!S71_OriginalBudget,Sheet1!S71_SubMunicipalVoteNo,$AC:$AC,Sheet1!S71_A5CapexCode,$AD:$AD)","v":0},{"$f":"SUMIFS(Sheet1!S71_SpecialAdjustedBudget,Sheet1!S71_SubMunicipalVoteNo,$AC:$AC,Sheet1!S71_A5CapexCode,$AD:$AD)","v":0},null,null,null,null,{"$f":"SUMIFS(Sheet1!S71_AdjustmentAmount,Sheet1!S71_SubMunicipalVoteNo,$AC:$AC,Sheet1!S71_A5CapexCode,$AD:$AD)","v":0},0,0,{"$f":"SUMIFS(Sheet1!S71_OY1AdjustedBudget,Sheet1!S71_SubMunicipalVoteNo,$AC:$AC,Sheet1!S71_A5CapexCode,$AD:$AD)","v":0},{"$f":"SUMIFS(Sheet1!S71_OY2AdjustedBudget,Sheet1!S71_SubMunicipalVoteNo,$AC:$AC,Sheet1!S71_A5CapexCode,$AD:$AD)","v":0},null,null,null,null,null,null,null,null,null,null,null,null,null,null,null,107,"CE"]
[{"$f":"B5B!A115","v":""},null,{"$f":"SUMIFS(Sheet1!S71_OriginalBudget,Sheet1!S71_SubMunicipalVoteNo,$AC:$AC,Sheet1!S71_A5CapexCode,$AD:$AD)","v":0},{"$f":"SUMIFS(Sheet1!S71_SpecialAdjustedBudget,Sheet1!S71_SubMunicipalVoteNo,$AC:$AC,Sheet1!S71_A5CapexCode,$AD:$AD)","v":0},null,null,null,null,{"$f":"SUMIFS(Sheet1!S71_AdjustmentAmount,Sheet1!S71_SubMunicipalVoteNo,$AC:$AC,Sheet1!S71_A5CapexCode,$AD:$AD)","v":0},0,0,{"$f":"SUMIFS(Sheet1!S71_OY1AdjustedBudget,Sheet1!S71_SubMunicipalVoteNo,$AC:$AC,Sheet1!S71_A5CapexCode,$AD:$AD)","v":0},{"$f":"SUMIFS(Sheet1!S71_OY2AdjustedBudget,Sheet1!S71_SubMunicipalVoteNo,$AC:$AC,Sheet1!S71_A5CapexCode,$AD:$AD)","v":0},null,null,null,null,null,null,null,null,null,null,null,null,null,null,null,108,"CE"]
[{"$f":"B5B!A116","v":""},null,{"$f":"SUMIFS(Sheet1!S71_OriginalBudget,Sheet1!S71_SubMunicipalVoteNo,$AC:$AC,Sheet1!S71_A5CapexCode,$AD:$AD)","v":0},{"$f":"SUMIFS(Sheet1!S71_SpecialAdjustedBudget,Sheet1!S71_SubMunicipalVoteNo,$AC:$AC,Sheet1!S71_A5CapexCode,$AD:$AD)","v":0},null,null,null,null,{"$f":"SUMIFS(Sheet1!S71_AdjustmentAmount,Sheet1!S71_SubMunicipalVoteNo,$AC:$AC,Sheet1!S71_A5CapexCode,$AD:$AD)","v":0},0,0,{"$f":"SUMIFS(Sheet1!S71_OY1AdjustedBudget,Sheet1!S71_SubMunicipalVoteNo,$AC:$AC,Sheet1!S71_A5CapexCode,$AD:$AD)","v":0},{"$f":"SUMIFS(Sheet1!S71_OY2AdjustedBudget,Sheet1!S71_SubMunicipalVoteNo,$AC:$AC,Sheet1!S71_A5CapexCode,$AD:$AD)","v":0},null,null,null,null,null,null,null,null,null,null,null,null,null,null,null,109,"CE"]
[{"$f":"B5B!A117","v":""},null,{"$f":"SUMIFS(Sheet1!S71_OriginalBudget,Sheet1!S71_SubMunicipalVoteNo,$AC:$AC,Sheet1!S71_A5CapexCode,$AD:$AD)","v":0},{"$f":"SUMIFS(Sheet1!S71_SpecialAdjustedBudget,Sheet1!S71_SubMunicipalVoteNo,$AC:$AC,Sheet1!S71_A5CapexCode,$AD:$AD)","v":0},null,null,null,null,{"$f":"SUMIFS(Sheet1!S71_AdjustmentAmount,Sheet1!S71_SubMunicipalVoteNo,$AC:$AC,Sheet1!S71_A5CapexCode,$AD:$AD)","v":0},0,0,{"$f":"SUMIFS(Sheet1!S71_OY1AdjustedBudget,Sheet1!S71_SubMunicipalVoteNo,$AC:$AC,Sheet1!S71_A5CapexCode,$AD:$AD)","v":0},{"$f":"SUMIFS(Sheet1!S71_OY2AdjustedBudget,Sheet1!S71_SubMunicipalVoteNo,$AC:$AC,Sheet1!S71_A5CapexCode,$AD:$AD)","v":0},null,null,null,null,null,null,null,null,null,null,null,null,null,null,null,1010,"CE"]
[{"$f":"B5B!A118","v":"Vote 11 - [NAME OF VOTE 11]"},null,{"$f":"SUM(C288:C297)","v":0},0,0,0,0,0,0,0,0,{"$f":"SUM(L288:L297)","v":0},{"$f":"SUM(M288:M297)","v":0}]
[{"$f":"B5B!A119","v":""},null,{"$f":"SUMIFS(Sheet1!S71_OriginalBudget,Sheet1!S71_SubMunicipalVoteNo,$AC:$AC,Sheet1!S71_A5CapexCode,$AD:$AD)","v":0},{"$f":"SUMIFS(Sheet1!S71_SpecialAdjustedBudget,Sheet1!S71_SubMunicipalVoteNo,$AC:$AC,Sheet1!S71_A5CapexCode,$AD:$AD)","v":0},null,null,null,null,{"$f":"SUMIFS(Sheet1!S71_AdjustmentAmount,Sheet1!S71_SubMunicipalVoteNo,$AC:$AC,Sheet1!S71_A5CapexCode,$AD:$AD)","v":0},0,0,{"$f":"SUMIFS(Sheet1!S71_OY1AdjustedBudget,Sheet1!S71_SubMunicipalVoteNo,$AC:$AC,Sheet1!S71_A5CapexCode,$AD:$AD)","v":0},{"$f":"SUMIFS(Sheet1!S71_OY2AdjustedBudget,Sheet1!S71_SubMunicipalVoteNo,$AC:$AC,Sheet1!S71_A5CapexCode,$AD:$AD)","v":0},null,null,null,null,null,null,null,null,null,null,null,null,null,null,null,111,"CE"]
[{"$f":"B5B!A120","v":""},null,{"$f":"SUMIFS(Sheet1!S71_OriginalBudget,Sheet1!S71_SubMunicipalVoteNo,$AC:$AC,Sheet1!S71_A5CapexCode,$AD:$AD)","v":0},{"$f":"SUMIFS(Sheet1!S71_SpecialAdjustedBudget,Sheet1!S71_SubMunicipalVoteNo,$AC:$AC,Sheet1!S71_A5CapexCode,$AD:$AD)","v":0},null,null,null,null,{"$f":"SUMIFS(Sheet1!S71_AdjustmentAmount,Sheet1!S71_SubMunicipalVoteNo,$AC:$AC,Sheet1!S71_A5CapexCode,$AD:$AD)","v":0},0,0,{"$f":"SUMIFS(Sheet1!S71_OY1AdjustedBudget,Sheet1!S71_SubMunicipalVoteNo,$AC:$AC,Sheet1!S71_A5CapexCode,$AD:$AD)","v":0},{"$f":"SUMIFS(Sheet1!S71_OY2AdjustedBudget,Sheet1!S71_SubMunicipalVoteNo,$AC:$AC,Sheet1!S71_A5CapexCode,$AD:$AD)","v":0},null,null,null,null,null,null,null,null,null,null,null,null,null,null,null,112,"CE"]
[{"$f":"B5B!A121","v":""},null,{"$f":"SUMIFS(Sheet1!S71_OriginalBudget,Sheet1!S71_SubMunicipalVoteNo,$AC:$AC,Sheet1!S71_A5CapexCode,$AD:$AD)","v":0},{"$f":"SUMIFS(Sheet1!S71_SpecialAdjustedBudget,Sheet1!S71_SubMunicipalVoteNo,$AC:$AC,Sheet1!S71_A5CapexCode,$AD:$AD)","v":0},null,null,null,null,{"$f":"SUMIFS(Sheet1!S71_AdjustmentAmount,Sheet1!S71_SubMunicipalVoteNo,$AC:$AC,Sheet1!S71_A5CapexCode,$AD:$AD)","v":0},0,0,{"$f":"SUMIFS(Sheet1!S71_OY1AdjustedBudget,Sheet1!S71_SubMunicipalVoteNo,$AC:$AC,Sheet1!S71_A5CapexCode,$AD:$AD)","v":0},{"$f":"SUMIFS(Sheet1!S71_OY2AdjustedBudget,Sheet1!S71_SubMunicipalVoteNo,$AC:$AC,Sheet1!S71_A5CapexCode,$AD:$AD)","v":0},null,null,null,null,null,null,null,null,null,null,null,null,null,null,null,113,"CE"]
[{"$f":"B5B!A122","v":""},null,{"$f":"SUMIFS(Sheet1!S71_OriginalBudget,Sheet1!S71_SubMunicipalVoteNo,$AC:$AC,Sheet1!S71_A5CapexCode,$AD:$AD)","v":0},{"$f":"SUMIFS(Sheet1!S71_SpecialAdjustedBudget,Sheet1!S71_SubMunicipalVoteNo,$AC:$AC,Sheet1!S71_A5CapexCode,$AD:$AD)","v":0},null,null,null,null,{"$f":"SUMIFS(Sheet1!S71_AdjustmentAmount,Sheet1!S71_SubMunicipalVoteNo,$AC:$AC,Sheet1!S71_A5CapexCode,$AD:$AD)","v":0},0,0,{"$f":"SUMIFS(Sheet1!S71_OY1AdjustedBudget,Sheet1!S71_SubMunicipalVoteNo,$AC:$AC,Sheet1!S71_A5CapexCode,$AD:$AD)","v":0},{"$f":"SUMIFS(Sheet1!S71_OY2AdjustedBudget,Sheet1!S71_SubMunicipalVoteNo,$AC:$AC,Sheet1!S71_A5CapexCode,$AD:$AD)","v":0},null,null,null,null,null,null,null,null,null,null,null,null,null,null,null,114,"CE"]
[{"$f":"B5B!A123","v":""},null,{"$f":"SUMIFS(Sheet1!S71_OriginalBudget,Sheet1!S71_SubMunicipalVoteNo,$AC:$AC,Sheet1!S71_A5CapexCode,$AD:$AD)","v":0},{"$f":"SUMIFS(Sheet1!S71_SpecialAdjustedBudget,Sheet1!S71_SubMunicipalVoteNo,$AC:$AC,Sheet1!S71_A5CapexCode,$AD:$AD)","v":0},null,null,null,null,{"$f":"SUMIFS(Sheet1!S71_AdjustmentAmount,Sheet1!S71_SubMunicipalVoteNo,$AC:$AC,Sheet1!S71_A5CapexCode,$AD:$AD)","v":0},0,0,{"$f":"SUMIFS(Sheet1!S71_OY1AdjustedBudget,Sheet1!S71_SubMunicipalVoteNo,$AC:$AC,Sheet1!S71_A5CapexCode,$AD:$AD)","v":0},{"$f":"SUMIFS(Sheet1!S71_OY2AdjustedBudget,Sheet1!S71_SubMunicipalVoteNo,$AC:$AC,Sheet1!S71_A5CapexCode,$AD:$AD)","v":0},null,null,null,null,null,null,null,null,null,null,null,null,null,null,null,115,"CE"]
[{"$f":"B5B!A124","v":""},null,{"$f":"SUMIFS(Sheet1!S71_OriginalBudget,Sheet1!S71_SubMunicipalVoteNo,$AC:$AC,Sheet1!S71_A5CapexCode,$AD:$AD)","v":0},{"$f":"SUMIFS(Sheet1!S71_SpecialAdjustedBudget,Sheet1!S71_SubMunicipalVoteNo,$AC:$AC,Sheet1!S71_A5CapexCode,$AD:$AD)","v":0},null,null,null,null,{"$f":"SUMIFS(Sheet1!S71_AdjustmentAmount,Sheet1!S71_SubMunicipalVoteNo,$AC:$AC,Sheet1!S71_A5CapexCode,$AD:$AD)","v":0},0,0,{"$f":"SUMIFS(Sheet1!S71_OY1AdjustedBudget,Sheet1!S71_SubMunicipalVoteNo,$AC:$AC,Sheet1!S71_A5CapexCode,$AD:$AD)","v":0},{"$f":"SUMIFS(Sheet1!S71_OY2AdjustedBudget,Sheet1!S71_SubMunicipalVoteNo,$AC:$AC,Sheet1!S71_A5CapexCode,$AD:$AD)","v":0},null,null,null,null,null,null,null,null,null,null,null,null,null,null,null,116,"CE"]
[{"$f":"B5B!A125","v":""},null,{"$f":"SUMIFS(Sheet1!S71_OriginalBudget,Sheet1!S71_SubMunicipalVoteNo,$AC:$AC,Sheet1!S71_A5CapexCode,$AD:$AD)","v":0},{"$f":"SUMIFS(Sheet1!S71_SpecialAdjustedBudget,Sheet1!S71_SubMunicipalVoteNo,$AC:$AC,Sheet1!S71_A5CapexCode,$AD:$AD)","v":0},null,null,null,null,{"$f":"SUMIFS(Sheet1!S71_AdjustmentAmount,Sheet1!S71_SubMunicipalVoteNo,$AC:$AC,Sheet1!S71_A5CapexCode,$AD:$AD)","v":0},0,0,{"$f":"SUMIFS(Sheet1!S71_OY1AdjustedBudget,Sheet1!S71_SubMunicipalVoteNo,$AC:$AC,Sheet1!S71_A5CapexCode,$AD:$AD)","v":0},{"$f":"SUMIFS(Sheet1!S71_OY2AdjustedBudget,Sheet1!S71_SubMunicipalVoteNo,$AC:$AC,Sheet1!S71_A5CapexCode,$AD:$AD)","v":0},null,null,null,null,null,null,null,null,null,null,null,null,null,null,null,117,"CE"]
[{"$f":"B5B!A126","v":""},null,{"$f":"SUMIFS(Sheet1!S71_OriginalBudget,Sheet1!S71_SubMunicipalVoteNo,$AC:$AC,Sheet1!S71_A5CapexCode,$AD:$AD)","v":0},{"$f":"SUMIFS(Sheet1!S71_SpecialAdjustedBudget,Sheet1!S71_SubMunicipalVoteNo,$AC:$AC,Sheet1!S71_A5CapexCode,$AD:$AD)","v":0},null,null,null,null,{"$f":"SUMIFS(Sheet1!S71_AdjustmentAmount,Sheet1!S71_SubMunicipalVoteNo,$AC:$AC,Sheet1!S71_A5CapexCode,$AD:$AD)","v":0},0,0,{"$f":"SUMIFS(Sheet1!S71_OY1AdjustedBudget,Sheet1!S71_SubMunicipalVoteNo,$AC:$AC,Sheet1!S71_A5CapexCode,$AD:$AD)","v":0},{"$f":"SUMIFS(Sheet1!S71_OY2AdjustedBudget,Sheet1!S71_SubMunicipalVoteNo,$AC:$AC,Sheet1!S71_A5CapexCode,$AD:$AD)","v":0},null,null,null,null,null,null,null,null,null,null,null,null,null,null,null,118,"CE"]
[{"$f":"B5B!A127","v":""},null,{"$f":"SUMIFS(Sheet1!S71_OriginalBudget,Sheet1!S71_SubMunicipalVoteNo,$AC:$AC,Sheet1!S71_A5CapexCode,$AD:$AD)","v":0},{"$f":"SUMIFS(Sheet1!S71_SpecialAdjustedBudget,Sheet1!S71_SubMunicipalVoteNo,$AC:$AC,Sheet1!S71_A5CapexCode,$AD:$AD)","v":0},null,null,null,null,{"$f":"SUMIFS(Sheet1!S71_AdjustmentAmount,Sheet1!S71_SubMunicipalVoteNo,$AC:$AC,Sheet1!S71_A5CapexCode,$AD:$AD)","v":0},0,0,{"$f":"SUMIFS(Sheet1!S71_OY1AdjustedBudget,Sheet1!S71_SubMunicipalVoteNo,$AC:$AC,Sheet1!S71_A5CapexCode,$AD:$AD)","v":0},{"$f":"SUMIFS(Sheet1!S71_OY2AdjustedBudget,Sheet1!S71_SubMunicipalVoteNo,$AC:$AC,Sheet1!S71_A5CapexCode,$AD:$AD)","v":0},null,null,null,null,null,null,null,null,null,null,null,null,null,null,null,119,"CE"]
[{"$f":"B5B!A128","v":""},null,{"$f":"SUMIFS(Sheet1!S71_OriginalBudget,Sheet1!S71_SubMunicipalVoteNo,$AC:$AC,Sheet1!S71_A5CapexCode,$AD:$AD)","v":0},{"$f":"SUMIFS(Sheet1!S71_SpecialAdjustedBudget,Sheet1!S71_SubMunicipalVoteNo,$AC:$AC,Sheet1!S71_A5CapexCode,$AD:$AD)","v":0},null,null,null,null,{"$f":"SUMIFS(Sheet1!S71_AdjustmentAmount,Sheet1!S71_SubMunicipalVoteNo,$AC:$AC,Sheet1!S71_A5CapexCode,$AD:$AD)","v":0},0,0,{"$f":"SUMIFS(Sheet1!S71_OY1AdjustedBudget,Sheet1!S71_SubMunicipalVoteNo,$AC:$AC,Sheet1!S71_A5CapexCode,$AD:$AD)","v":0},{"$f":"SUMIFS(Sheet1!S71_OY2AdjustedBudget,Sheet1!S71_SubMunicipalVoteNo,$AC:$AC,Sheet1!S71_A5CapexCode,$AD:$AD)","v":0},null,null,null,null,null,null,null,null,null,null,null,null,null,null,null,1110,"CE"]
[{"$f":"B5B!A129","v":"Vote 12 - [NAME OF VOTE 12]"},null,{"$f":"SUM(C299:C308)","v":0},0,0,0,0,0,0,0,0,{"$f":"SUM(L299:L308)","v":0},{"$f":"SUM(M299:M308)","v":0}]
[{"$f":"B5B!A130","v":""},null,{"$f":"SUMIFS(Sheet1!S71_OriginalBudget,Sheet1!S71_SubMunicipalVoteNo,$AC:$AC,Sheet1!S71_A5CapexCode,$AD:$AD)","v":0},{"$f":"SUMIFS(Sheet1!S71_SpecialAdjustedBudget,Sheet1!S71_SubMunicipalVoteNo,$AC:$AC,Sheet1!S71_A5CapexCode,$AD:$AD)","v":0},null,null,null,null,{"$f":"SUMIFS(Sheet1!S71_AdjustmentAmount,Sheet1!S71_SubMunicipalVoteNo,$AC:$AC,Sheet1!S71_A5CapexCode,$AD:$AD)","v":0},0,0,{"$f":"SUMIFS(Sheet1!S71_OY1AdjustedBudget,Sheet1!S71_SubMunicipalVoteNo,$AC:$AC,Sheet1!S71_A5CapexCode,$AD:$AD)","v":0},{"$f":"SUMIFS(Sheet1!S71_OY2AdjustedBudget,Sheet1!S71_SubMunicipalVoteNo,$AC:$AC,Sheet1!S71_A5CapexCode,$AD:$AD)","v":0},null,null,null,null,null,null,null,null,null,null,null,null,null,null,null,121,"CE"]
[{"$f":"B5B!A131","v":""},null,{"$f":"SUMIFS(Sheet1!S71_OriginalBudget,Sheet1!S71_SubMunicipalVoteNo,$AC:$AC,Sheet1!S71_A5CapexCode,$AD:$AD)","v":0},{"$f":"SUMIFS(Sheet1!S71_SpecialAdjustedBudget,Sheet1!S71_SubMunicipalVoteNo,$AC:$AC,Sheet1!S71_A5CapexCode,$AD:$AD)","v":0},null,null,null,null,{"$f":"SUMIFS(Sheet1!S71_AdjustmentAmount,Sheet1!S71_SubMunicipalVoteNo,$AC:$AC,Sheet1!S71_A5CapexCode,$AD:$AD)","v":0},0,0,{"$f":"SUMIFS(Sheet1!S71_OY1AdjustedBudget,Sheet1!S71_SubMunicipalVoteNo,$AC:$AC,Sheet1!S71_A5CapexCode,$AD:$AD)","v":0},{"$f":"SUMIFS(Sheet1!S71_OY2AdjustedBudget,Sheet1!S71_SubMunicipalVoteNo,$AC:$AC,Sheet1!S71_A5CapexCode,$AD:$AD)","v":0},null,null,null,null,null,null,null,null,null,null,null,null,null,null,null,122,"CE"]
[{"$f":"B5B!A132","v":""},null,{"$f":"SUMIFS(Sheet1!S71_OriginalBudget,Sheet1!S71_SubMunicipalVoteNo,$AC:$AC,Sheet1!S71_A5CapexCode,$AD:$AD)","v":0},{"$f":"SUMIFS(Sheet1!S71_SpecialAdjustedBudget,Sheet1!S71_SubMunicipalVoteNo,$AC:$AC,Sheet1!S71_A5CapexCode,$AD:$AD)","v":0},null,null,null,null,{"$f":"SUMIFS(Sheet1!S71_AdjustmentAmount,Sheet1!S71_SubMunicipalVoteNo,$AC:$AC,Sheet1!S71_A5CapexCode,$AD:$AD)","v":0},0,0,{"$f":"SUMIFS(Sheet1!S71_OY1AdjustedBudget,Sheet1!S71_SubMunicipalVoteNo,$AC:$AC,Sheet1!S71_A5CapexCode,$AD:$AD)","v":0},{"$f":"SUMIFS(Sheet1!S71_OY2AdjustedBudget,Sheet1!S71_SubMunicipalVoteNo,$AC:$AC,Sheet1!S71_A5CapexCode,$AD:$AD)","v":0},null,null,null,null,null,null,null,null,null,null,null,null,null,null,null,123,"CE"]
[{"$f":"B5B!A133","v":""},null,{"$f":"SUMIFS(Sheet1!S71_OriginalBudget,Sheet1!S71_SubMunicipalVoteNo,$AC:$AC,Sheet1!S71_A5CapexCode,$AD:$AD)","v":0},{"$f":"SUMIFS(Sheet1!S71_SpecialAdjustedBudget,Sheet1!S71_SubMunicipalVoteNo,$AC:$AC,Sheet1!S71_A5CapexCode,$AD:$AD)","v":0},null,null,null,null,{"$f":"SUMIFS(Sheet1!S71_AdjustmentAmount,Sheet1!S71_SubMunicipalVoteNo,$AC:$AC,Sheet1!S71_A5CapexCode,$AD:$AD)","v":0},0,0,{"$f":"SUMIFS(Sheet1!S71_OY1AdjustedBudget,Sheet1!S71_SubMunicipalVoteNo,$AC:$AC,Sheet1!S71_A5CapexCode,$AD:$AD)","v":0},{"$f":"SUMIFS(Sheet1!S71_OY2AdjustedBudget,Sheet1!S71_SubMunicipalVoteNo,$AC:$AC,Sheet1!S71_A5CapexCode,$AD:$AD)","v":0},null,null,null,null,null,null,null,null,null,null,null,null,null,null,null,124,"CE"]
[{"$f":"B5B!A134","v":""},null,{"$f":"SUMIFS(Sheet1!S71_OriginalBudget,Sheet1!S71_SubMunicipalVoteNo,$AC:$AC,Sheet1!S71_A5CapexCode,$AD:$AD)","v":0},{"$f":"SUMIFS(Sheet1!S71_SpecialAdjustedBudget,Sheet1!S71_SubMunicipalVoteNo,$AC:$AC,Sheet1!S71_A5CapexCode,$AD:$AD)","v":0},null,null,null,null,{"$f":"SUMIFS(Sheet1!S71_AdjustmentAmount,Sheet1!S71_SubMunicipalVoteNo,$AC:$AC,Sheet1!S71_A5CapexCode,$AD:$AD)","v":0},0,0,{"$f":"SUMIFS(Sheet1!S71_OY1AdjustedBudget,Sheet1!S71_SubMunicipalVoteNo,$AC:$AC,Sheet1!S71_A5CapexCode,$AD:$AD)","v":0},{"$f":"SUMIFS(Sheet1!S71_OY2AdjustedBudget,Sheet1!S71_SubMunicipalVoteNo,$AC:$AC,Sheet1!S71_A5CapexCode,$AD:$AD)","v":0},null,null,null,null,null,null,null,null,null,null,null,null,null,null,null,125,"CE"]
[{"$f":"B5B!A135","v":""},null,{"$f":"SUMIFS(Sheet1!S71_OriginalBudget,Sheet1!S71_SubMunicipalVoteNo,$AC:$AC,Sheet1!S71_A5CapexCode,$AD:$AD)","v":0},{"$f":"SUMIFS(Sheet1!S71_SpecialAdjustedBudget,Sheet1!S71_SubMunicipalVoteNo,$AC:$AC,Sheet1!S71_A5CapexCode,$AD:$AD)","v":0},null,null,null,null,{"$f":"SUMIFS(Sheet1!S71_AdjustmentAmount,Sheet1!S71_SubMunicipalVoteNo,$AC:$AC,Sheet1!S71_A5CapexCode,$AD:$AD)","v":0},0,0,{"$f":"SUMIFS(Sheet1!S71_OY1AdjustedBudget,Sheet1!S71_SubMunicipalVoteNo,$AC:$AC,Sheet1!S71_A5CapexCode,$AD:$AD)","v":0},{"$f":"SUMIFS(Sheet1!S71_OY2AdjustedBudget,Sheet1!S71_SubMunicipalVoteNo,$AC:$AC,Sheet1!S71_A5CapexCode,$AD:$AD)","v":0},null,null,null,null,null,null,null,null,null,null,null,null,null,null,null,126,"CE"]
[{"$f":"B5B!A136","v":""},null,{"$f":"SUMIFS(Sheet1!S71_OriginalBudget,Sheet1!S71_SubMunicipalVoteNo,$AC:$AC,Sheet1!S71_A5CapexCode,$AD:$AD)","v":0},{"$f":"SUMIFS(Sheet1!S71_SpecialAdjustedBudget,Sheet1!S71_SubMunicipalVoteNo,$AC:$AC,Sheet1!S71_A5CapexCode,$AD:$AD)","v":0},null,null,null,null,{"$f":"SUMIFS(Sheet1!S71_AdjustmentAmount,Sheet1!S71_SubMunicipalVoteNo,$AC:$AC,Sheet1!S71_A5CapexCode,$AD:$AD)","v":0},{"$f":"SUM(E305:I305)","v":0},{"$f":"IF(D305=0,C305+J305,D305+J305)","v":0},{"$f":"SUMIFS(Sheet1!S71_OY1AdjustedBudget,Sheet1!S71_SubMunicipalVoteNo,$AC:$AC,Sheet1!S71_A5CapexCode,$AD:$AD)","v":0},{"$f":"SUMIFS(Sheet1!S71_OY2AdjustedBudget,Sheet1!S71_SubMunicipalVoteNo,$AC:$AC,Sheet1!S71_A5CapexCode,$AD:$AD)","v":0},null,null,null,null,null,null,null,null,null,null,null,null,null,null,null,127,"CE"]
[{"$f":"B5B!A137","v":""},null,{"$f":"SUMIFS(Sheet1!S71_OriginalBudget,Sheet1!S71_SubMunicipalVoteNo,$AC:$AC,Sheet1!S71_A5CapexCode,$AD:$AD)","v":0},{"$f":"SUMIFS(Sheet1!S71_SpecialAdjustedBudget,Sheet1!S71_SubMunicipalVoteNo,$AC:$AC,Sheet1!S71_A5CapexCode,$AD:$AD)","v":0},null,null,null,null,{"$f":"SUMIFS(Sheet1!S71_AdjustmentAmount,Sheet1!S71_SubMunicipalVoteNo,$AC:$AC,Sheet1!S71_A5CapexCode,$AD:$AD)","v":0},0,0,{"$f":"SUMIFS(Sheet1!S71_OY1AdjustedBudget,Sheet1!S71_SubMunicipalVoteNo,$AC:$AC,Sheet1!S71_A5CapexCode,$AD:$AD)","v":0},{"$f":"SUMIFS(Sheet1!S71_OY2AdjustedBudget,Sheet1!S71_SubMunicipalVoteNo,$AC:$AC,Sheet1!S71_A5CapexCode,$AD:$AD)","v":0},null,null,null,null,null,null,null,null,null,null,null,null,null,null,null,128,"CE"]
[{"$f":"B5B!A138","v":""},null,{"$f":"SUMIFS(Sheet1!S71_OriginalBudget,Sheet1!S71_SubMunicipalVoteNo,$AC:$AC,Sheet1!S71_A5CapexCode,$AD:$AD)","v":0},{"$f":"SUMIFS(Sheet1!S71_SpecialAdjustedBudget,Sheet1!S71_SubMunicipalVoteNo,$AC:$AC,Sheet1!S71_A5CapexCode,$AD:$AD)","v":0},null,null,null,null,{"$f":"SUMIFS(Sheet1!S71_AdjustmentAmount,Sheet1!S71_SubMunicipalVoteNo,$AC:$AC,Sheet1!S71_A5CapexCode,$AD:$AD)","v":0},0,0,{"$f":"SUMIFS(Sheet1!S71_OY1AdjustedBudget,Sheet1!S71_SubMunicipalVoteNo,$AC:$AC,Sheet1!S71_A5CapexCode,$AD:$AD)","v":0},{"$f":"SUMIFS(Sheet1!S71_OY2AdjustedBudget,Sheet1!S71_SubMunicipalVoteNo,$AC:$AC,Sheet1!S71_A5CapexCode,$AD:$AD)","v":0},null,null,null,null,null,null,null,null,null,null,null,null,null,null,null,129,"CE"]
[{"$f":"B5B!A139","v":""},null,{"$f":"SUMIFS(Sheet1!S71_OriginalBudget,Sheet1!S71_SubMunicipalVoteNo,$AC:$AC,Sheet1!S71_A5CapexCode,$AD:$AD)","v":0},{"$f":"SUMIFS(Sheet1!S71_SpecialAdjustedBudget,Sheet1!S71_SubMunicipalVoteNo,$AC:$AC,Sheet1!S71_A5CapexCode,$AD:$AD)","v":0},null,null,null,null,{"$f":"SUMIFS(Sheet1!S71_AdjustmentAmount,Sheet1!S71_SubMunicipalVoteNo,$AC:$AC,Sheet1!S71_A5CapexCode,$AD:$AD)","v":0},0,0,{"$f":"SUMIFS(Sheet1!S71_OY1AdjustedBudget,Sheet1!S71_SubMunicipalVoteNo,$AC:$AC,Sheet1!S71_A5CapexCode,$AD:$AD)","v":0},{"$f":"SUMIFS(Sheet1!S71_OY2AdjustedBudget,Sheet1!S71_SubMunicipalVoteNo,$AC:$AC,Sheet1!S71_A5CapexCode,$AD:$AD)","v":0},null,null,null,null,null,null,null,null,null,null,null,null,null,null,null,1210,"CE"]
[{"$f":"B5B!A140","v":"Vote 13 - [NAME OF VOTE 13]"},null,{"$f":"SUM(C310:C319)","v":0},0,0,0,0,0,0,0,0,{"$f":"SUM(L310:L319)","v":0},{"$f":"SUM(M310:M319)","v":0}]
[{"$f":"B5B!A141","v":""},null,{"$f":"SUMIFS(Sheet1!S71_OriginalBudget,Sheet1!S71_SubMunicipalVoteNo,$AC:$AC,Sheet1!S71_A5CapexCode,$AD:$AD)","v":0},{"$f":"SUMIFS(Sheet1!S71_SpecialAdjustedBudget,Sheet1!S71_SubMunicipalVoteNo,$AC:$AC,Sheet1!S71_A5CapexCode,$AD:$AD)","v":0},null,null,null,null,{"$f":"SUMIFS(Sheet1!S71_AdjustmentAmount,Sheet1!S71_SubMunicipalVoteNo,$AC:$AC,Sheet1!S71_A5CapexCode,$AD:$AD)","v":0},0,0,{"$f":"SUMIFS(Sheet1!S71_OY1AdjustedBudget,Sheet1!S71_SubMunicipalVoteNo,$AC:$AC,Sheet1!S71_A5CapexCode,$AD:$AD)","v":0},{"$f":"SUMIFS(Sheet1!S71_OY2AdjustedBudget,Sheet1!S71_SubMunicipalVoteNo,$AC:$AC,Sheet1!S71_A5CapexCode,$AD:$AD)","v":0},null,null,null,null,null,null,null,null,null,null,null,null,null,null,null,131,"CE"]
[{"$f":"B5B!A142","v":""},null,{"$f":"SUMIFS(Sheet1!S71_OriginalBudget,Sheet1!S71_SubMunicipalVoteNo,$AC:$AC,Sheet1!S71_A5CapexCode,$AD:$AD)","v":0},{"$f":"SUMIFS(Sheet1!S71_SpecialAdjustedBudget,Sheet1!S71_SubMunicipalVoteNo,$AC:$AC,Sheet1!S71_A5CapexCode,$AD:$AD)","v":0},null,null,null,null,{"$f":"SUMIFS(Sheet1!S71_AdjustmentAmount,Sheet1!S71_SubMunicipalVoteNo,$AC:$AC,Sheet1!S71_A5CapexCode,$AD:$AD)","v":0},0,0,{"$f":"SUMIFS(Sheet1!S71_OY1AdjustedBudget,Sheet1!S71_SubMunicipalVoteNo,$AC:$AC,Sheet1!S71_A5CapexCode,$AD:$AD)","v":0},{"$f":"SUMIFS(Sheet1!S71_OY2AdjustedBudget,Sheet1!S71_SubMunicipalVoteNo,$AC:$AC,Sheet1!S71_A5CapexCode,$AD:$AD)","v":0},null,null,null,null,null,null,null,null,null,null,null,null,null,null,null,132,"CE"]
[{"$f":"B5B!A143","v":""},null,{"$f":"SUMIFS(Sheet1!S71_OriginalBudget,Sheet1!S71_SubMunicipalVoteNo,$AC:$AC,Sheet1!S71_A5CapexCode,$AD:$AD)","v":0},{"$f":"SUMIFS(Sheet1!S71_SpecialAdjustedBudget,Sheet1!S71_SubMunicipalVoteNo,$AC:$AC,Sheet1!S71_A5CapexCode,$AD:$AD)","v":0},null,null,null,null,{"$f":"SUMIFS(Sheet1!S71_AdjustmentAmount,Sheet1!S71_SubMunicipalVoteNo,$AC:$AC,Sheet1!S71_A5CapexCode,$AD:$AD)","v":0},0,0,{"$f":"SUMIFS(Sheet1!S71_OY1AdjustedBudget,Sheet1!S71_SubMunicipalVoteNo,$AC:$AC,Sheet1!S71_A5CapexCode,$AD:$AD)","v":0},{"$f":"SUMIFS(Sheet1!S71_OY2AdjustedBudget,Sheet1!S71_SubMunicipalVoteNo,$AC:$AC,Sheet1!S71_A5CapexCode,$AD:$AD)","v":0},null,null,null,null,null,null,null,null,null,null,null,null,null,null,null,133,"CE"]
[{"$f":"B5B!A144","v":""},null,{"$f":"SUMIFS(Sheet1!S71_OriginalBudget,Sheet1!S71_SubMunicipalVoteNo,$AC:$AC,Sheet1!S71_A5CapexCode,$AD:$AD)","v":0},{"$f":"SUMIFS(Sheet1!S71_SpecialAdjustedBudget,Sheet1!S71_SubMunicipalVoteNo,$AC:$AC,Sheet1!S71_A5CapexCode,$AD:$AD)","v":0},null,null,null,null,{"$f":"SUMIFS(Sheet1!S71_AdjustmentAmount,Sheet1!S71_SubMunicipalVoteNo,$AC:$AC,Sheet1!S71_A5CapexCode,$AD:$AD)","v":0},0,0,{"$f":"SUMIFS(Sheet1!S71_OY1AdjustedBudget,Sheet1!S71_SubMunicipalVoteNo,$AC:$AC,Sheet1!S71_A5CapexCode,$AD:$AD)","v":0},{"$f":"SUMIFS(Sheet1!S71_OY2AdjustedBudget,Sheet1!S71_SubMunicipalVoteNo,$AC:$AC,Sheet1!S71_A5CapexCode,$AD:$AD)","v":0},null,null,null,null,null,null,null,null,null,null,null,null,null,null,null,134,"CE"]
[{"$f":"B5B!A145","v":""},null,{"$f":"SUMIFS(Sheet1!S71_OriginalBudget,Sheet1!S71_SubMunicipalVoteNo,$AC:$AC,Sheet1!S71_A5CapexCode,$AD:$AD)","v":0},{"$f":"SUMIFS(Sheet1!S71_SpecialAdjustedBudget,Sheet1!S71_SubMunicipalVoteNo,$AC:$AC,Sheet1!S71_A5CapexCode,$AD:$AD)","v":0},null,null,null,null,{"$f":"SUMIFS(Sheet1!S71_AdjustmentAmount,Sheet1!S71_SubMunicipalVoteNo,$AC:$AC,Sheet1!S71_A5CapexCode,$AD:$AD)","v":0},0,0,{"$f":"SUMIFS(Sheet1!S71_OY1AdjustedBudget,Sheet1!S71_SubMunicipalVoteNo,$AC:$AC,Sheet1!S71_A5CapexCode,$AD:$AD)","v":0},{"$f":"SUMIFS(Sheet1!S71_OY2AdjustedBudget,Sheet1!S71_SubMunicipalVoteNo,$AC:$AC,Sheet1!S71_A5CapexCode,$AD:$AD)","v":0},null,null,null,null,null,null,null,null,null,null,null,null,null,null,null,135,"CE"]
[{"$f":"B5B!A146","v":""},null,{"$f":"SUMIFS(Sheet1!S71_OriginalBudget,Sheet1!S71_SubMunicipalVoteNo,$AC:$AC,Sheet1!S71_A5CapexCode,$AD:$AD)","v":0},{"$f":"SUMIFS(Sheet1!S71_SpecialAdjustedBudget,Sheet1!S71_SubMunicipalVoteNo,$AC:$AC,Sheet1!S71_A5CapexCode,$AD:$AD)","v":0},null,null,null,null,{"$f":"SUMIFS(Sheet1!S71_AdjustmentAmount,Sheet1!S71_SubMunicipalVoteNo,$AC:$AC,Sheet1!S71_A5CapexCode,$AD:$AD)","v":0},0,0,{"$f":"SUMIFS(Sheet1!S71_OY1AdjustedBudget,Sheet1!S71_SubMunicipalVoteNo,$AC:$AC,Sheet1!S71_A5CapexCode,$AD:$AD)","v":0},{"$f":"SUMIFS(Sheet1!S71_OY2AdjustedBudget,Sheet1!S71_SubMunicipalVoteNo,$AC:$AC,Sheet1!S71_A5CapexCode,$AD:$AD)","v":0},null,null,null,null,null,null,null,null,null,null,null,null,null,null,null,136,"CE"]
[{"$f":"B5B!A147","v":""},null,{"$f":"SUMIFS(Sheet1!S71_OriginalBudget,Sheet1!S71_SubMunicipalVoteNo,$AC:$AC,Sheet1!S71_A5CapexCode,$AD:$AD)","v":0},{"$f":"SUMIFS(Sheet1!S71_SpecialAdjustedBudget,Sheet1!S71_SubMunicipalVoteNo,$AC:$AC,Sheet1!S71_A5CapexCode,$AD:$AD)","v":0},null,null,null,null,{"$f":"SUMIFS(Sheet1!S71_AdjustmentAmount,Sheet1!S71_SubMunicipalVoteNo,$AC:$AC,Sheet1!S71_A5CapexCode,$AD:$AD)","v":0},0,0,{"$f":"SUMIFS(Sheet1!S71_OY1AdjustedBudget,Sheet1!S71_SubMunicipalVoteNo,$AC:$AC,Sheet1!S71_A5CapexCode,$AD:$AD)","v":0},{"$f":"SUMIFS(Sheet1!S71_OY2AdjustedBudget,Sheet1!S71_SubMunicipalVoteNo,$AC:$AC,Sheet1!S71_A5CapexCode,$AD:$AD)","v":0},null,null,null,null,null,null,null,null,null,null,null,null,null,null,null,137,"CE"]
[{"$f":"B5B!A148","v":""},null,{"$f":"SUMIFS(Sheet1!S71_OriginalBudget,Sheet1!S71_SubMunicipalVoteNo,$AC:$AC,Sheet1!S71_A5CapexCode,$AD:$AD)","v":0},{"$f":"SUMIFS(Sheet1!S71_SpecialAdjustedBudget,Sheet1!S71_SubMunicipalVoteNo,$AC:$AC,Sheet1!S71_A5CapexCode,$AD:$AD)","v":0},null,null,null,null,{"$f":"SUMIFS(Sheet1!S71_AdjustmentAmount,Sheet1!S71_SubMunicipalVoteNo,$AC:$AC,Sheet1!S71_A5CapexCode,$AD:$AD)","v":0},0,0,{"$f":"SUMIFS(Sheet1!S71_OY1AdjustedBudget,Sheet1!S71_SubMunicipalVoteNo,$AC:$AC,Sheet1!S71_A5CapexCode,$AD:$AD)","v":0},{"$f":"SUMIFS(Sheet1!S71_OY2AdjustedBudget,Sheet1!S71_SubMunicipalVoteNo,$AC:$AC,Sheet1!S71_A5CapexCode,$AD:$AD)","v":0},null,null,null,null,null,null,null,null,null,null,null,null,null,null,null,138,"CE"]
[{"$f":"B5B!A149","v":""},null,{"$f":"SUMIFS(Sheet1!S71_OriginalBudget,Sheet1!S71_SubMunicipalVoteNo,$AC:$AC,Sheet1!S71_A5CapexCode,$AD:$AD)","v":0},{"$f":"SUMIFS(Sheet1!S71_SpecialAdjustedBudget,Sheet1!S71_SubMunicipalVoteNo,$AC:$AC,Sheet1!S71_A5CapexCode,$AD:$AD)","v":0},null,null,null,null,{"$f":"SUMIFS(Sheet1!S71_AdjustmentAmount,Sheet1!S71_SubMunicipalVoteNo,$AC:$AC,Sheet1!S71_A5CapexCode,$AD:$AD)","v":0},0,0,{"$f":"SUMIFS(Sheet1!S71_OY1AdjustedBudget,Sheet1!S71_SubMunicipalVoteNo,$AC:$AC,Sheet1!S71_A5CapexCode,$AD:$AD)","v":0},{"$f":"SUMIFS(Sheet1!S71_OY2AdjustedBudget,Sheet1!S71_SubMunicipalVoteNo,$AC:$AC,Sheet1!S71_A5CapexCode,$AD:$AD)","v":0},null,null,null,null,null,null,null,null,null,null,null,null,null,null,null,139,"CE"]
[{"$f":"B5B!A150","v":""},null,{"$f":"SUMIFS(Sheet1!S71_OriginalBudget,Sheet1!S71_SubMunicipalVoteNo,$AC:$AC,Sheet1!S71_A5CapexCode,$AD:$AD)","v":0},{"$f":"SUMIFS(Sheet1!S71_SpecialAdjustedBudget,Sheet1!S71_SubMunicipalVoteNo,$AC:$AC,Sheet1!S71_A5CapexCode,$AD:$AD)","v":0},null,null,null,null,{"$f":"SUMIFS(Sheet1!S71_AdjustmentAmount,Sheet1!S71_SubMunicipalVoteNo,$AC:$AC,Sheet1!S71_A5CapexCode,$AD:$AD)","v":0},0,0,{"$f":"SUMIFS(Sheet1!S71_OY1AdjustedBudget,Sheet1!S71_SubMunicipalVoteNo,$AC:$AC,Sheet1!S71_A5CapexCode,$AD:$AD)","v":0},{"$f":"SUMIFS(Sheet1!S71_OY2AdjustedBudget,Sheet1!S71_SubMunicipalVoteNo,$AC:$AC,Sheet1!S71_A5CapexCode,$AD:$AD)","v":0},null,null,null,null,null,null,null,null,null,null,null,null,null,null,null,1310,"CE"]
[{"$f":"B5B!A151","v":"Vote 14 - [NAME OF VOTE 14]"},null,{"$f":"SUM(C321:C330)","v":0},0,0,0,0,0,0,0,0,{"$f":"SUM(L321:L330)","v":0},{"$f":"SUM(M321:M330)","v":0}]
[{"$f":"B5B!A152","v":""},null,{"$f":"SUMIFS(Sheet1!S71_OriginalBudget,Sheet1!S71_SubMunicipalVoteNo,$AC:$AC,Sheet1!S71_A5CapexCode,$AD:$AD)","v":0},{"$f":"SUMIFS(Sheet1!S71_SpecialAdjustedBudget,Sheet1!S71_SubMunicipalVoteNo,$AC:$AC,Sheet1!S71_A5CapexCode,$AD:$AD)","v":0},null,null,null,null,{"$f":"SUMIFS(Sheet1!S71_AdjustmentAmount,Sheet1!S71_SubMunicipalVoteNo,$AC:$AC,Sheet1!S71_A5CapexCode,$AD:$AD)","v":0},0,0,{"$f":"SUMIFS(Sheet1!S71_OY1AdjustedBudget,Sheet1!S71_SubMunicipalVoteNo,$AC:$AC,Sheet1!S71_A5CapexCode,$AD:$AD)","v":0},{"$f":"SUMIFS(Sheet1!S71_OY2AdjustedBudget,Sheet1!S71_SubMunicipalVoteNo,$AC:$AC,Sheet1!S71_A5CapexCode,$AD:$AD)","v":0},null,null,null,null,null,null,null,null,null,null,null,null,null,null,null,141,"CE"]
[{"$f":"B5B!A153","v":""},null,{"$f":"SUMIFS(Sheet1!S71_OriginalBudget,Sheet1!S71_SubMunicipalVoteNo,$AC:$AC,Sheet1!S71_A5CapexCode,$AD:$AD)","v":0},{"$f":"SUMIFS(Sheet1!S71_SpecialAdjustedBudget,Sheet1!S71_SubMunicipalVoteNo,$AC:$AC,Sheet1!S71_A5CapexCode,$AD:$AD)","v":0},null,null,null,null,{"$f":"SUMIFS(Sheet1!S71_AdjustmentAmount,Sheet1!S71_SubMunicipalVoteNo,$AC:$AC,Sheet1!S71_A5CapexCode,$AD:$AD)","v":0},0,0,{"$f":"SUMIFS(Sheet1!S71_OY1AdjustedBudget,Sheet1!S71_SubMunicipalVoteNo,$AC:$AC,Sheet1!S71_A5CapexCode,$AD:$AD)","v":0},{"$f":"SUMIFS(Sheet1!S71_OY2AdjustedBudget,Sheet1!S71_SubMunicipalVoteNo,$AC:$AC,Sheet1!S71_A5CapexCode,$AD:$AD)","v":0},null,null,null,null,null,null,null,null,null,null,null,null,null,null,null,142,"CE"]
[{"$f":"B5B!A154","v":""},null,{"$f":"SUMIFS(Sheet1!S71_OriginalBudget,Sheet1!S71_SubMunicipalVoteNo,$AC:$AC,Sheet1!S71_A5CapexCode,$AD:$AD)","v":0},{"$f":"SUMIFS(Sheet1!S71_SpecialAdjustedBudget,Sheet1!S71_SubMunicipalVoteNo,$AC:$AC,Sheet1!S71_A5CapexCode,$AD:$AD)","v":0},null,null,null,null,{"$f":"SUMIFS(Sheet1!S71_AdjustmentAmount,Sheet1!S71_SubMunicipalVoteNo,$AC:$AC,Sheet1!S71_A5CapexCode,$AD:$AD)","v":0},0,0,{"$f":"SUMIFS(Sheet1!S71_OY1AdjustedBudget,Sheet1!S71_SubMunicipalVoteNo,$AC:$AC,Sheet1!S71_A5CapexCode,$AD:$AD)","v":0},{"$f":"SUMIFS(Sheet1!S71_OY2AdjustedBudget,Sheet1!S71_SubMunicipalVoteNo,$AC:$AC,Sheet1!S71_A5CapexCode,$AD:$AD)","v":0},null,null,null,null,null,null,null,null,null,null,null,null,null,null,null,143,"CE"]
[{"$f":"B5B!A155","v":""},null,{"$f":"SUMIFS(Sheet1!S71_OriginalBudget,Sheet1!S71_SubMunicipalVoteNo,$AC:$AC,Sheet1!S71_A5CapexCode,$AD:$AD)","v":0},{"$f":"SUMIFS(Sheet1!S71_SpecialAdjustedBudget,Sheet1!S71_SubMunicipalVoteNo,$AC:$AC,Sheet1!S71_A5CapexCode,$AD:$AD)","v":0},null,null,null,null,{"$f":"SUMIFS(Sheet1!S71_AdjustmentAmount,Sheet1!S71_SubMunicipalVoteNo,$AC:$AC,Sheet1!S71_A5CapexCode,$AD:$AD)","v":0},0,0,{"$f":"SUMIFS(Sheet1!S71_OY1AdjustedBudget,Sheet1!S71_SubMunicipalVoteNo,$AC:$AC,Sheet1!S71_A5CapexCode,$AD:$AD)","v":0},{"$f":"SUMIFS(Sheet1!S71_OY2AdjustedBudget,Sheet1!S71_SubMunicipalVoteNo,$AC:$AC,Sheet1!S71_A5CapexCode,$AD:$AD)","v":0},null,null,null,null,null,null,null,null,null,null,null,null,null,null,null,144,"CE"]
[{"$f":"B5B!A156","v":""},null,{"$f":"SUMIFS(Sheet1!S71_OriginalBudget,Sheet1!S71_SubMunicipalVoteNo,$AC:$AC,Sheet1!S71_A5CapexCode,$AD:$AD)","v":0},{"$f":"SUMIFS(Sheet1!S71_SpecialAdjustedBudget,Sheet1!S71_SubMunicipalVoteNo,$AC:$AC,Sheet1!S71_A5CapexCode,$AD:$AD)","v":0},null,null,null,null,{"$f":"SUMIFS(Sheet1!S71_AdjustmentAmount,Sheet1!S71_SubMunicipalVoteNo,$AC:$AC,Sheet1!S71_A5CapexCode,$AD:$AD)","v":0},0,0,{"$f":"SUMIFS(Sheet1!S71_OY1AdjustedBudget,Sheet1!S71_SubMunicipalVoteNo,$AC:$AC,Sheet1!S71_A5CapexCode,$AD:$AD)","v":0},{"$f":"SUMIFS(Sheet1!S71_OY2AdjustedBudget,Sheet1!S71_SubMunicipalVoteNo,$AC:$AC,Sheet1!S71_A5CapexCode,$AD:$AD)","v":0},null,null,null,null,null,null,null,null,null,null,null,null,null,null,null,145,"CE"]
[{"$f":"B5B!A157","v":""},null,{"$f":"SUMIFS(Sheet1!S71_OriginalBudget,Sheet1!S71_SubMunicipalVoteNo,$AC:$AC,Sheet1!S71_A5CapexCode,$AD:$AD)","v":0},{"$f":"SUMIFS(Sheet1!S71_SpecialAdjustedBudget,Sheet1!S71_SubMunicipalVoteNo,$AC:$AC,Sheet1!S71_A5CapexCode,$AD:$AD)","v":0},null,null,null,null,{"$f":"SUMIFS(Sheet1!S71_AdjustmentAmount,Sheet1!S71_SubMunicipalVoteNo,$AC:$AC,Sheet1!S71_A5CapexCode,$AD:$AD)","v":0},0,0,{"$f":"SUMIFS(Sheet1!S71_OY1AdjustedBudget,Sheet1!S71_SubMunicipalVoteNo,$AC:$AC,Sheet1!S71_A5CapexCode,$AD:$AD)","v":0},{"$f":"SUMIFS(Sheet1!S71_OY2AdjustedBudget,Sheet1!S71_SubMunicipalVoteNo,$AC:$AC,Sheet1!S71_A5CapexCode,$AD:$AD)","v":0},null,null,null,null,null,null,null,null,null,null,null,null,null,null,null,146,"CE"]
[{"$f":"B5B!A158","v":""},null,{"$f":"SUMIFS(Sheet1!S71_OriginalBudget,Sheet1!S71_SubMunicipalVoteNo,$AC:$AC,Sheet1!S71_A5CapexCode,$AD:$AD)","v":0},{"$f":"SUMIFS(Sheet1!S71_SpecialAdjustedBudget,Sheet1!S71_SubMunicipalVoteNo,$AC:$AC,Sheet1!S71_A5CapexCode,$AD:$AD)","v":0},null,null,null,null,{"$f":"SUMIFS(Sheet1!S71_AdjustmentAmount,Sheet1!S71_SubMunicipalVoteNo,$AC:$AC,Sheet1!S71_A5CapexCode,$AD:$AD)","v":0},0,0,{"$f":"SUMIFS(Sheet1!S71_OY1AdjustedBudget,Sheet1!S71_SubMunicipalVoteNo,$AC:$AC,Sheet1!S71_A5CapexCode,$AD:$AD)","v":0},{"$f":"SUMIFS(Sheet1!S71_OY2AdjustedBudget,Sheet1!S71_SubMunicipalVoteNo,$AC:$AC,Sheet1!S71_A5CapexCode,$AD:$AD)","v":0},null,null,null,null,null,null,null,null,null,null,null,null,null,null,null,147,"CE"]
[{"$f":"B5B!A159","v":""},null,{"$f":"SUMIFS(Sheet1!S71_OriginalBudget,Sheet1!S71_SubMunicipalVoteNo,$AC:$AC,Sheet1!S71_A5CapexCode,$AD:$AD)","v":0},{"$f":"SUMIFS(Sheet1!S71_SpecialAdjustedBudget,Sheet1!S71_SubMunicipalVoteNo,$AC:$AC,Sheet1!S71_A5CapexCode,$AD:$AD)","v":0},null,null,null,null,{"$f":"SUMIFS(Sheet1!S71_AdjustmentAmount,Sheet1!S71_SubMunicipalVoteNo,$AC:$AC,Sheet1!S71_A5CapexCode,$AD:$AD)","v":0},0,0,{"$f":"SUMIFS(Sheet1!S71_OY1AdjustedBudget,Sheet1!S71_SubMunicipalVoteNo,$AC:$AC,Sheet1!S71_A5CapexCode,$AD:$AD)","v":0},{"$f":"SUMIFS(Sheet1!S71_OY2AdjustedBudget,Sheet1!S71_SubMunicipalVoteNo,$AC:$AC,Sheet1!S71_A5CapexCode,$AD:$AD)","v":0},null,null,null,null,null,null,null,null,null,null,null,null,null,null,null,148,"CE"]
[{"$f":"B5B!A160","v":""},null,{"$f":"SUMIFS(Sheet1!S71_OriginalBudget,Sheet1!S71_SubMunicipalVoteNo,$AC:$AC,Sheet1!S71_A5CapexCode,$AD:$AD)","v":0},{"$f":"SUMIFS(Sheet1!S71_SpecialAdjustedBudget,Sheet1!S71_SubMunicipalVoteNo,$AC:$AC,Sheet1!S71_A5CapexCode,$AD:$AD)","v":0},null,null,null,null,{"$f":"SUMIFS(Sheet1!S71_AdjustmentAmount,Sheet1!S71_SubMunicipalVoteNo,$AC:$AC,Sheet1!S71_A5CapexCode,$AD:$AD)","v":0},0,0,{"$f":"SUMIFS(Sheet1!S71_OY1AdjustedBudget,Sheet1!S71_SubMunicipalVoteNo,$AC:$AC,Sheet1!S71_A5CapexCode,$AD:$AD)","v":0},{"$f":"SUMIFS(Sheet1!S71_OY2AdjustedBudget,Sheet1!S71_SubMunicipalVoteNo,$AC:$AC,Sheet1!S71_A5CapexCode,$AD:$AD)","v":0},null,null,null,null,null,null,null,null,null,null,null,null,null,null,null,149,"CE"]
[{"$f":"B5B!A161","v":""},null,{"$f":"SUMIFS(Sheet1!S71_OriginalBudget,Sheet1!S71_SubMunicipalVoteNo,$AC:$AC,Sheet1!S71_A5CapexCode,$AD:$AD)","v":0},{"$f":"SUMIFS(Sheet1!S71_SpecialAdjustedBudget,Sheet1!S71_SubMunicipalVoteNo,$AC:$AC,Sheet1!S71_A5CapexCode,$AD:$AD)","v":0},null,null,null,null,{"$f":"SUMIFS(Sheet1!S71_AdjustmentAmount,Sheet1!S71_SubMunicipalVoteNo,$AC:$AC,Sheet1!S71_A5CapexCode,$AD:$AD)","v":0},0,0,{"$f":"SUMIFS(Sheet1!S71_OY1AdjustedBudget,Sheet1!S71_SubMunicipalVoteNo,$AC:$AC,Sheet1!S71_A5CapexCode,$AD:$AD)","v":0},{"$f":"SUMIFS(Sheet1!S71_OY2AdjustedBudget,Sheet1!S71_SubMunicipalVoteNo,$AC:$AC,Sheet1!S71_A5CapexCode,$AD:$AD)","v":0},null,null,null,null,null,null,null,null,null,null,null,null,null,null,null,1410,"CE"]
[{"$f":"B5B!A162","v":"Vote 15 - [NAME OF VOTE 15]"},null,{"$f":"SUM(C332:C341)","v":0},0,0,0,0,0,0,0,0,{"$f":"SUM(L332:L341)","v":0},{"$f":"SUM(M332:M341)","v":0}]
[{"$f":"B5B!A163","v":""},null,{"$f":"SUMIFS(Sheet1!S71_OriginalBudget,Sheet1!S71_SubMunicipalVoteNo,$AC:$AC,Sheet1!S71_A5CapexCode,$AD:$AD)","v":0},{"$f":"SUMIFS(Sheet1!S71_SpecialAdjustedBudget,Sheet1!S71_SubMunicipalVoteNo,$AC:$AC,Sheet1!S71_A5CapexCode,$AD:$AD)","v":0},null,null,null,null,{"$f":"SUMIFS(Sheet1!S71_AdjustmentAmount,Sheet1!S71_SubMunicipalVoteNo,$AC:$AC,Sheet1!S71_A5CapexCode,$AD:$AD)","v":0},0,0,{"$f":"SUMIFS(Sheet1!S71_OY1AdjustedBudget,Sheet1!S71_SubMunicipalVoteNo,$AC:$AC,Sheet1!S71_A5CapexCode,$AD:$AD)","v":0},{"$f":"SUMIFS(Sheet1!S71_OY2AdjustedBudget,Sheet1!S71_SubMunicipalVoteNo,$AC:$AC,Sheet1!S71_A5CapexCode,$AD:$AD)","v":0},null,null,null,null,null,null,null,null,null,null,null,null,null,null,null,151,"CE"]
[{"$f":"B5B!A164","v":""},null,{"$f":"SUMIFS(Sheet1!S71_OriginalBudget,Sheet1!S71_SubMunicipalVoteNo,$AC:$AC,Sheet1!S71_A5CapexCode,$AD:$AD)","v":0},{"$f":"SUMIFS(Sheet1!S71_SpecialAdjustedBudget,Sheet1!S71_SubMunicipalVoteNo,$AC:$AC,Sheet1!S71_A5CapexCode,$AD:$AD)","v":0},null,null,null,null,{"$f":"SUMIFS(Sheet1!S71_AdjustmentAmount,Sheet1!S71_SubMunicipalVoteNo,$AC:$AC,Sheet1!S71_A5CapexCode,$AD:$AD)","v":0},0,0,{"$f":"SUMIFS(Sheet1!S71_OY1AdjustedBudget,Sheet1!S71_SubMunicipalVoteNo,$AC:$AC,Sheet1!S71_A5CapexCode,$AD:$AD)","v":0},{"$f":"SUMIFS(Sheet1!S71_OY2AdjustedBudget,Sheet1!S71_SubMunicipalVoteNo,$AC:$AC,Sheet1!S71_A5CapexCode,$AD:$AD)","v":0},null,null,null,null,null,null,null,null,null,null,null,null,null,null,null,152,"CE"]
[{"$f":"B5B!A165","v":""},null,{"$f":"SUMIFS(Sheet1!S71_OriginalBudget,Sheet1!S71_SubMunicipalVoteNo,$AC:$AC,Sheet1!S71_A5CapexCode,$AD:$AD)","v":0},{"$f":"SUMIFS(Sheet1!S71_SpecialAdjustedBudget,Sheet1!S71_SubMunicipalVoteNo,$AC:$AC,Sheet1!S71_A5CapexCode,$AD:$AD)","v":0},null,null,null,null,{"$f":"SUMIFS(Sheet1!S71_AdjustmentAmount,Sheet1!S71_SubMunicipalVoteNo,$AC:$AC,Sheet1!S71_A5CapexCode,$AD:$AD)","v":0},0,0,{"$f":"SUMIFS(Sheet1!S71_OY1AdjustedBudget,Sheet1!S71_SubMunicipalVoteNo,$AC:$AC,Sheet1!S71_A5CapexCode,$AD:$AD)","v":0},{"$f":"SUMIFS(Sheet1!S71_OY2AdjustedBudget,Sheet1!S71_SubMunicipalVoteNo,$AC:$AC,Sheet1!S71_A5CapexCode,$AD:$AD)","v":0},null,null,null,null,null,null,null,null,null,null,null,null,null,null,null,153,"CE"]
[{"$f":"B5B!A166","v":""},null,{"$f":"SUMIFS(Sheet1!S71_OriginalBudget,Sheet1!S71_SubMunicipalVoteNo,$AC:$AC,Sheet1!S71_A5CapexCode,$AD:$AD)","v":0},{"$f":"SUMIFS(Sheet1!S71_SpecialAdjustedBudget,Sheet1!S71_SubMunicipalVoteNo,$AC:$AC,Sheet1!S71_A5CapexCode,$AD:$AD)","v":0},null,null,null,null,{"$f":"SUMIFS(Sheet1!S71_AdjustmentAmount,Sheet1!S71_SubMunicipalVoteNo,$AC:$AC,Sheet1!S71_A5CapexCode,$AD:$AD)","v":0},0,0,{"$f":"SUMIFS(Sheet1!S71_OY1AdjustedBudget,Sheet1!S71_SubMunicipalVoteNo,$AC:$AC,Sheet1!S71_A5CapexCode,$AD:$AD)","v":0},{"$f":"SUMIFS(Sheet1!S71_OY2AdjustedBudget,Sheet1!S71_SubMunicipalVoteNo,$AC:$AC,Sheet1!S71_A5CapexCode,$AD:$AD)","v":0},null,null,null,null,null,null,null,null,null,null,null,null,null,null,null,154,"CE"]
[{"$f":"B5B!A167","v":""},null,{"$f":"SUMIFS(Sheet1!S71_OriginalBudget,Sheet1!S71_SubMunicipalVoteNo,$AC:$AC,Sheet1!S71_A5CapexCode,$AD:$AD)","v":0},{"$f":"SUMIFS(Sheet1!S71_SpecialAdjustedBudget,Sheet1!S71_SubMunicipalVoteNo,$AC:$AC,Sheet1!S71_A5CapexCode,$AD:$AD)","v":0},null,null,null,null,{"$f":"SUMIFS(Sheet1!S71_AdjustmentAmount,Sheet1!S71_SubMunicipalVoteNo,$AC:$AC,Sheet1!S71_A5CapexCode,$AD:$AD)","v":0},0,0,{"$f":"SUMIFS(Sheet1!S71_OY1AdjustedBudget,Sheet1!S71_SubMunicipalVoteNo,$AC:$AC,Sheet1!S71_A5CapexCode,$AD:$AD)","v":0},{"$f":"SUMIFS(Sheet1!S71_OY2AdjustedBudget,Sheet1!S71_SubMunicipalVoteNo,$AC:$AC,Sheet1!S71_A5CapexCode,$AD:$AD)","v":0},null,null,null,null,null,null,null,null,null,null,null,null,null,null,null,155,"CE"]
[{"$f":"B5B!A168","v":""},null,{"$f":"SUMIFS(Sheet1!S71_OriginalBudget,Sheet1!S71_SubMunicipalVoteNo,$AC:$AC,Sheet1!S71_A5CapexCode,$AD:$AD)","v":0},{"$f":"SUMIFS(Sheet1!S71_SpecialAdjustedBudget,Sheet1!S71_SubMunicipalVoteNo,$AC:$AC,Sheet1!S71_A5CapexCode,$AD:$AD)","v":0},null,null,null,null,{"$f":"SUMIFS(Sheet1!S71_AdjustmentAmount,Sheet1!S71_SubMunicipalVoteNo,$AC:$AC,Sheet1!S71_A5CapexCode,$AD:$AD)","v":0},0,0,{"$f":"SUMIFS(Sheet1!S71_OY1AdjustedBudget,Sheet1!S71_SubMunicipalVoteNo,$AC:$AC,Sheet1!S71_A5CapexCode,$AD:$AD)","v":0},{"$f":"SUMIFS(Sheet1!S71_OY2AdjustedBudget,Sheet1!S71_SubMunicipalVoteNo,$AC:$AC,Sheet1!S71_A5CapexCode,$AD:$AD)","v":0},null,null,null,null,null,null,null,null,null,null,null,null,null,null,null,156,"CE"]
[{"$f":"B5B!A169","v":""},null,{"$f":"SUMIFS(Sheet1!S71_OriginalBudget,Sheet1!S71_SubMunicipalVoteNo,$AC:$AC,Sheet1!S71_A5CapexCode,$AD:$AD)","v":0},{"$f":"SUMIFS(Sheet1!S71_SpecialAdjustedBudget,Sheet1!S71_SubMunicipalVoteNo,$AC:$AC,Sheet1!S71_A5CapexCode,$AD:$AD)","v":0},null,null,null,null,{"$f":"SUMIFS(Sheet1!S71_AdjustmentAmount,Sheet1!S71_SubMunicipalVoteNo,$AC:$AC,Sheet1!S71_A5CapexCode,$AD:$AD)","v":0},0,0,{"$f":"SUMIFS(Sheet1!S71_OY1AdjustedBudget,Sheet1!S71_SubMunicipalVoteNo,$AC:$AC,Sheet1!S71_A5CapexCode,$AD:$AD)","v":0},{"$f":"SUMIFS(Sheet1!S71_OY2AdjustedBudget,Sheet1!S71_SubMunicipalVoteNo,$AC:$AC,Sheet1!S71_A5CapexCode,$AD:$AD)","v":0},null,null,null,null,null,null,null,null,null,null,null,null,null,null,null,157,"CE"]
[{"$f":"B5B!A170","v":""},null,{"$f":"SUMIFS(Sheet1!S71_OriginalBudget,Sheet1!S71_SubMunicipalVoteNo,$AC:$AC,Sheet1!S71_A5CapexCode,$AD:$AD)","v":0},{"$f":"SUMIFS(Sheet1!S71_SpecialAdjustedBudget,Sheet1!S71_SubMunicipalVoteNo,$AC:$AC,Sheet1!S71_A5CapexCode,$AD:$AD)","v":0},null,null,null,null,{"$f":"SUMIFS(Sheet1!S71_AdjustmentAmount,Sheet1!S71_SubMunicipalVoteNo,$AC:$AC,Sheet1!S71_A5CapexCode,$AD:$AD)","v":0},0,0,{"$f":"SUMIFS(Sheet1!S71_OY1AdjustedBudget,Sheet1!S71_SubMunicipalVoteNo,$AC:$AC,Sheet1!S71_A5CapexCode,$AD:$AD)","v":0},{"$f":"SUMIFS(Sheet1!S71_OY2AdjustedBudget,Sheet1!S71_SubMunicipalVoteNo,$AC:$AC,Sheet1!S71_A5CapexCode,$AD:$AD)","v":0},null,null,null,null,null,null,null,null,null,null,null,null,null,null,null,158,"CE"]
[{"$f":"B5B!A171","v":""},null,{"$f":"SUMIFS(Sheet1!S71_OriginalBudget,Sheet1!S71_SubMunicipalVoteNo,$AC:$AC,Sheet1!S71_A5CapexCode,$AD:$AD)","v":0},{"$f":"SUMIFS(Sheet1!S71_SpecialAdjustedBudget,Sheet1!S71_SubMunicipalVoteNo,$AC:$AC,Sheet1!S71_A5CapexCode,$AD:$AD)","v":0},null,null,null,null,{"$f":"SUMIFS(Sheet1!S71_AdjustmentAmount,Sheet1!S71_SubMunicipalVoteNo,$AC:$AC,Sheet1!S71_A5CapexCode,$AD:$AD)","v":0},0,0,{"$f":"SUMIFS(Sheet1!S71_OY1AdjustedBudget,Sheet1!S71_SubMunicipalVoteNo,$AC:$AC,Sheet1!S71_A5CapexCode,$AD:$AD)","v":0},{"$f":"SUMIFS(Sheet1!S71_OY2AdjustedBudget,Sheet1!S71_SubMunicipalVoteNo,$AC:$AC,Sheet1!S71_A5CapexCode,$AD:$AD)","v":0},null,null,null,null,null,null,null,null,null,null,null,null,null,null,null,159,"CE"]
[{"$f":"B5B!A172","v":""},null,{"$f":"SUMIFS(Sheet1!S71_OriginalBudget,Sheet1!S71_SubMunicipalVoteNo,$AC:$AC,Sheet1!S71_A5CapexCode,$AD:$AD)","v":0},{"$f":"SUMIFS(Sheet1!S71_SpecialAdjustedBudget,Sheet1!S71_SubMunicipalVoteNo,$AC:$AC,Sheet1!S71_A5CapexCode,$AD:$AD)","v":0},null,null,null,null,{"$f":"SUMIFS(Sheet1!S71_AdjustmentAmount,Sheet1!S71_SubMunicipalVoteNo,$AC:$AC,Sheet1!S71_A5CapexCode,$AD:$AD)","v":0},0,0,{"$f":"SUMIFS(Sheet1!S71_OY1AdjustedBudget,Sheet1!S71_SubMunicipalVoteNo,$AC:$AC,Sheet1!S71_A5CapexCode,$AD:$AD)","v":0},{"$f":"SUMIFS(Sheet1!S71_OY2AdjustedBudget,Sheet1!S71_SubMunicipalVoteNo,$AC:$AC,Sheet1!S71_A5CapexCode,$AD:$AD)","v":0},null,null,null,null,null,null,null,null,null,null,null,null,null,null,null,1510,"CE"]
["Capital single-year expenditure sub-total",null,{"$f":"C177+C188+C199+C210+C221+C232+C243+C254+C265+C287+C298+C309+C320+C331+C276","v":47208016},{"$f":"D177+D188+D199+D210+D221+D232+D243+D254+D265+D287+D298+D309+D320+D331+D276","v":0},0,0,0,0,18781731,18781731,65989747,{"$f":"L177+L188+L199+L210+L221+L232+L243+L254+L265+L287+L298+L309+L320+L331+L276","v":69074500},{"$f":"M177+M188+M199+M210+M221+M232+M243+M254+M265+M287+M298+M309+M320+M331+M276","v":72182855}]
["Total Capital Expenditure",null,{"$f":"C342+C173","v":47208016},{"$f":"D342+D173","v":0},0,0,0,0,18781731,{"$f":"SUM(E343:I343)","v":18781731},{"$f":"IF(D343=0,C343+J343,D343+J343)","v":65989747},{"$f":"L342+L173","v":69074500},{"$f":"M342+M173","v":72182855}]
[]
[]
[{"$f":"head27a","v":"References"}]
["1. Insert 'Vote'; e.g. Department, if different to standard structure"]
["2. Must reconcile to Financial Performance ('Revenue and Expenditure by Standard Classification' and 'Revenue and Expenditure')"]
["3. Assign share in 'associate' to relevant Vote"]

{"sheet":"B6-FinPos","index":32,"n_rows":63,"n_cols":30,"rows_kept":63,"cut":false,"hidden":false,"merged":[[1,2,1,10],[1,0,3,0],[1,1,3,1],[60,0,60,12],[56,0,56,12],[58,0,58,12],[54,0,54,12],[55,0,55,12],[53,0,53,12]]}
[{"$f":"muni&\" - \"&_ADJ6&\" - \"&Date","v":"EC139 Enoch Mgijima - Table B6 Adjustments Budget Financial Position - "}]
[{"$f":"desc","v":"Description"},{"$f":"head27","v":"Ref"},{"$f":"Head2","v":"Budget Year 2021/22"},null,null,null,null,null,null,null,null,{"$f":"Head10","v":"Budget Year +1 2022/23"},{"$f":"Head11","v":"Budget Year +2 2023/24"}]
[null,null,{"$f":"Head6","v":"Original Budget"},{"$f":"Head54","v":"Prior Adjusted"},{"$f":"Head51","v":"Accum. Funds"},{"$f":"Head52","v":"Multi-year capital"},{"$f":"Head53","v":"Unfore. Unavoid."},{"$f":"Head55","v":"Nat. or Prov. Govt"},{"$f":"Head50","v":"Other Adjusts."},{"$f":"Head56","v":"Total Adjusts."},{"$f":"Head7","v":"Adjusted Budget"},{"$f":"Head7","v":"Adjusted Budget"},{"$f":"Head7","v":"Adjusted Budget"}]
[null,null,null,3,4,5,6,7,8,9,10]
["R thousands",null,"A","A1","B","C","D","E","F","G","H"]
["ASSETS"]
["Current assets"]
["Cash",null,{"$f":"SUMIFS(Sheet1!S71_OriginalBudget,Sheet1!S71_A6Code,$AC:$AC)","v":73765491},{"$f":"SUMIFS(Sheet1!S71_SpecialAdjustedBudget,Sheet1!S71_A6Code,$A:$AC)","v":0},null,null,null,null,{"$f":"SUMIFS(Sheet1!S71_AdjustmentAmount,Sheet1!S71_A6Code,$AC:$AC)","v":-1694447},{"$f":"SUM(E8:I8)","v":-1694447},{"$f":"IF(D8=0,C8+J8,D8+J8)","v":0},{"$f":"SUMIFS(Sheet1!S71_OY1AdjustedBudget,Sheet1!S71_A6Code,$AC:$AC)","v":95664050},{"$f":"SUMIFS(Sheet1!S71_OY2AdjustedBudget,Sheet1!S71_A6Code,$AC:$AC)","v":112699674},null,null,null,null,null,null,null,null,null,null,null,null,null,null,null,"0120","IR"]
["Call investment deposits",1,{"$f":"SUMIFS(Sheet1!S71_OriginalBudget,Sheet1!S71_A6Code,$AC:$AC)","v":14206431},{"$f":"SUMIFS(Sheet1!S71_SpecialAdjustedBudget,Sheet1!S71_A6Code,$A:$AC)","v":0},null,null,null,null,{"$f":"SUMIFS(Sheet1!S71_AdjustmentAmount,Sheet1!S71_A6Code,$AC:$AC)","v":0},0,0,{"$f":"SUMIFS(Sheet1!S71_OY1AdjustedBudget,Sheet1!S71_A6Code,$AC:$AC)","v":16352350},{"$f":"SUMIFS(Sheet1!S71_OY2AdjustedBudget,Sheet1!S71_A6Code,$AC:$AC)","v":18592689},null,null,null,null,null,null,null,null,null,null,null,null,null,null,null,"0130","IE"]
["Consumer debtors",1,{"$f":"'SB2'!C14","v":18026759},{"$f":"'SB2'!D14","v":0},{"$f":"'SB2'!E14","v":0},{"$f":"'SB2'!F14","v":0},{"$f":"'SB2'!G14","v":0},{"$f":"'SB2'!H14","v":0},{"$f":"'SB2'!I14","v":0},0,18026759,{"$f":"'SB2'!L14","v":14634637},{"$f":"'SB2'!M14","v":17839666},null,null,null,null,null,null,null,null,null,null,null,null,null,null,null,"0140"]
["Other debtors",null,{"$f":"SUMIFS(Sheet1!S71_OriginalBudget,Sheet1!S71_A6Code,$AC:$AC)","v":1486307},{"$f":"SUMIFS(Sheet1!S71_SpecialAdjustedBudget,Sheet1!S71_A6Code,$A:$AC)","v":0},null,null,null,null,{"$f":"SUMIFS(Sheet1!S71_AdjustmentAmount,Sheet1!S71_A6Code,$AC:$AC)","v":-3302904},-3302904,0,{"$f":"SUMIFS(Sheet1!S71_OY1AdjustedBudget,Sheet1!S71_A6Code,$AC:$AC)","v":-1896528},{"$f":"SUMIFS(Sheet1!S71_OY2AdjustedBudget,Sheet1!S71_A6Code,$AC:$AC)","v":-1981871},null,null,null,null,null,null,null,null,null,null,null,null,null,null,null,"0150"]
["Current portion of long-term receivables",null,{"$f":"SUMIFS(Sheet1!S71_OriginalBudget,Sheet1!S71_A6Code,$AC:$AC)","v":0},{"$f":"SUMIFS(Sheet1!S71_SpecialAdjustedBudget,Sheet1!S71_A6Code,$A:$AC)","v":0},null,null,null,null,{"$f":"SUMIFS(Sheet1!S71_AdjustmentAmount,Sheet1!S71_A6Code,$AC:$AC)","v":0},0,0,{"$f":"SUMIFS(Sheet1!S71_OY1AdjustedBudget,Sheet1!S71_A6Code,$AC:$AC)","v":0},{"$f":"SUMIFS(Sheet1!S71_OY2AdjustedBudget,Sheet1!S71_A6Code,$AC:$AC)","v":0},null,null,null,null,null,null,null,null,null,null,null,null,null,null,null,"0160"]
["Inventory",null,{"$f":"'SB2'!C115","v":250000},{"$f":"'SB2'!D115","v":0},{"$f":"'SB2'!E115","v":0},{"$f":"'SB2'!F115","v":0},{"$f":"'SB2'!G115","v":0},{"$f":"'SB2'!H115","v":0},{"$f":"'SB2'!I115","v":0},0,250000,{"$f":"'SB2'!L115","v":311000},{"$f":"'SB2'!M115","v":350000},null,null,null,null,null,null,null,null,null,null,null,null,null,null,null,"0170"]
["Total current assets",null,{"$f":"SUM(C8:C13)","v":107734988},0,0,0,0,0,-4997351,-4997351,0,125065509,147500158]
[]
["Non current assets"]
["Long-term receivables",null,{"$f":"SUMIFS(Sheet1!S71_OriginalBudget,Sheet1!S71_A6Code,$AC:$AC)","v":0},{"$f":"SUMIFS(Sheet1!S71_SpecialAdjustedBudget,Sheet1!S71_A6Code,$A:$AC)","v":0},null,null,null,null,{"$f":"SUMIFS(Sheet1!S71_AdjustmentAmount,Sheet1!S71_A6Code,$AC:$AC)","v":0},{"$f":"SUM(E17:I17)","v":0},{"$f":"IF(D17=0,C17+J17,D17+J17)","v":0},{"$f":"SUMIFS(Sheet1!S71_OY1AdjustedBudget,Sheet1!S71_A6Code,$AC:$AC)","v":0},{"$f":"SUMIFS(Sheet1!S71_OY2AdjustedBudget,Sheet1!S71_A6Code,$AC:$AC)","v":0},null,null,null,null,null,null,null,null,null,null,null,null,null,null,null,"0200"]
["Investments",null,{"$f":"SUMIFS(Sheet1!S71_OriginalBudget,Sheet1!S71_A6Code,$AC:$AC)","v":0},{"$f":"SUMIFS(Sheet1!S71_SpecialAdjustedBudget,Sheet1!S71_A6Code,$A:$AC)","v":0},null,null,null,null,{"$f":"SUMIFS(Sheet1!S71_AdjustmentAmount,Sheet1!S71_A6Code,$AC:$AC)","v":0},0,0,{"$f":"SUMIFS(Sheet1!S71_OY1AdjustedBudget,Sheet1!S71_A6Code,$AC:$AC)","v":0},{"$f":"SUMIFS(Sheet1!S71_OY2AdjustedBudget,Sheet1!S71_A6Code,$AC:$AC)","v":0},null,null,null,null,null,null,null,null,null,null,null,null,null,null,null,"0210"]
["Investment property",null,{"$f":"SUMIFS(Sheet1!S71_OriginalBudget,Sheet1!S71_A6Code,$AC:$AC)","v":0},{"$f":"SUMIFS(Sheet1!S71_SpecialAdjustedBudget,Sheet1!S71_A6Code,$A:$AC)","v":0},null,null,null,null,{"$f":"SUMIFS(Sheet1!S71_AdjustmentAmount,Sheet1!S71_A6Code,$AC:$AC)","v":0},0,0,{"$f":"SUMIFS(Sheet1!S71_OY1AdjustedBudget,Sheet1!S71_A6Code,$AC:$AC)","v":0},{"$f":"SUMIFS(Sheet1!S71_OY2AdjustedBudget,Sheet1!S71_A6Code,$AC:$AC)","v":0},null,null,null,null,null,null,null,null,null,null,null,null,null,null,null,"0220"]
["Investment in Associate",null,{"$f":"SUMIFS(Sheet1!S71_OriginalBudget,Sheet1!S71_A6Code,$AC:$AC)","v":0},{"$f":"SUMIFS(Sheet1!S71_SpecialAdjustedBudget,Sheet1!S71_A6Code,$A:$AC)","v":0},null,null,null,null,{"$f":"SUMIFS(Sheet1!S71_AdjustmentAmount,Sheet1!S71_A6Code,$AC:$AC)","v":0},0,0,{"$f":"SUMIFS(Sheet1!S71_OY1AdjustedBudget,Sheet1!S71_A6Code,$AC:$AC)","v":0},{"$f":"SUMIFS(Sheet1!S71_OY2AdjustedBudget,Sheet1!S71_A6Code,$AC:$AC)","v":0},null,null,null,null,null,null,null,null,null,null,null,null,null,null,null,"0230"]
["Property, plant and equipment",1,{"$f":"'SB2'!C121","v":348640236},{"$f":"'SB2'!D121","v":0},{"$f":"'SB2'!E121","v":0},{"$f":"'SB2'!F121","v":0},{"$f":"'SB2'!G121","v":0},{"$f":"'SB2'!H121","v":0},{"$f":"'SB2'!I121","v":20050933},20050933,368691169,{"$f":"'SB2'!L121","v":408158944},{"$f":"'SB2'!M121","v":427984083},null,null,null,null,null,null,null,null,null,null,null,null,null,null,null,"0240"]
[]
["Biological",null,{"$f":"SUMIFS(Sheet1!S71_OriginalBudget,Sheet1!S71_A6Code,$AC:$AC)","v":0},{"$f":"SUMIFS(Sheet1!S71_SpecialAdjustedBudget,Sheet1!S71_A6Code,$A:$AC)","v":0},null,null,null,null,{"$f":"SUMIFS(Sheet1!S71_AdjustmentAmount,Sheet1!S71_A6Code,$AC:$AC)","v":0},0,0,{"$f":"SUMIFS(Sheet1!S71_OY1AdjustedBudget,Sheet1!S71_A6Code,$AC:$AC)","v":0},{"$f":"SUMIFS(Sheet1!S71_OY2AdjustedBudget,Sheet1!S71_A6Code,$AC:$AC)","v":0},null,null,null,null,null,null,null,null,null,null,null,null,null,null,null,"0260"]
["Intangible",null,{"$f":"SUMIFS(Sheet1!S71_OriginalBudget,Sheet1!S71_A6Code,$AC:$AC)","v":1461163},{"$f":"SUMIFS(Sheet1!S71_SpecialAdjustedBudget,Sheet1!S71_A6Code,$A:$AC)","v":0},null,null,null,null,{"$f":"SUMIFS(Sheet1!S71_AdjustmentAmount,Sheet1!S71_A6Code,$AC:$AC)","v":-480000},-480000,0,{"$f":"SUMIFS(Sheet1!S71_OY1AdjustedBudget,Sheet1!S71_A6Code,$AC:$AC)","v":668601},{"$f":"SUMIFS(Sheet1!S71_OY2AdjustedBudget,Sheet1!S71_A6Code,$AC:$AC)","v":133478},null,null,null,null,null,null,null,null,null,null,null,null,null,null,null,"0270"]
["Other non-current assets",null,{"$f":"SUMIFS(Sheet1!S71_OriginalBudget,Sheet1!S71_A6Code,$AC:$AC)","v":0},{"$f":"SUMIFS(Sheet1!S71_SpecialAdjustedBudget,Sheet1!S71_A6Code,$A:$AC)","v":0},null,null,null,null,{"$f":"SUMIFS(Sheet1!S71_AdjustmentAmount,Sheet1!S71_A6Code,$AC:$AC)","v":0},0,0,{"$f":"SUMIFS(Sheet1!S71_OY1AdjustedBudget,Sheet1!S71_A6Code,$AC:$AC)","v":0},{"$f":"SUMIFS(Sheet1!S71_OY2AdjustedBudget,Sheet1!S71_A6Code,$AC:$AC)","v":0},null,null,null,null,null,null,null,null,null,null,null,null,null,null,null,"0280"]
["Total non current assets",null,{"$f":"SUM(C17:C21)+SUM(C23:C25)","v":350101399},{"$f":"SUM(D17:D21)+SUM(D23:D25)","v":0},0,0,0,0,19570933,19570933,0,408827545,428117561]
["TOTAL ASSETS",null,{"$f":"C14+C26","v":457836387},0,0,0,0,0,14573582,14573582,0,533893054,575617719]
[]
["LIABILITIES"]
["Current liabilities"]
["Bank overdraft",null,{"$f":"-SUMIFS(Sheet1!S71_OriginalBudget,Sheet1!S71_A6Code,$AC:$AC)","v":0},{"$f":"-SUMIFS(Sheet1!S71_SpecialAdjustedBudget,Sheet1!S71_A6Code,$AC:$AC)","v":0},null,null,null,null,{"$f":"-SUMIFS(Sheet1!S71_AdjustmentAmount,Sheet1!S71_A6Code,$AC:$AC)","v":0},{"$f":"SUM(E31:I31)","v":0},{"$f":"IF(D31=0,C31+J31,D31+J31)","v":0},{"$f":"-SUMIFS(Sheet1!S71_OY1AdjustedBudget,Sheet1!S71_A6Code,$AC:$AC)","v":0},{"$f":"-SUMIFS(Sheet1!S71_OY2AdjustedBudget,Sheet1!S71_A6Code,$AC:$AC)","v":0},null,null,null,null,null,null,null,null,null,null,null,null,null,null,null,"0330"]
["Borrowing",null,{"$f":"'SB2'!C127","v":0},{"$f":"'SB2'!D127","v":0},{"$f":"'SB2'!E127","v":0},{"$f":"'SB2'!F127","v":0},{"$f":"'SB2'!G127","v":0},{"$f":"'SB2'!H127","v":0},{"$f":"'SB2'!I127","v":0},{"$f":"SUM(E32:I32)","v":0},{"$f":"IF(D32=0,C32+J32,D32+J32)","v":0},{"$f":"'SB2'!L127","v":0},{"$f":"'SB2'!M127","v":0},null,null,null,null,null,null,null,null,null,null,null,null,null,null,null,"0340"]
["Consumer deposits",null,{"$f":"-SUMIFS(Sheet1!S71_OriginalBudget,Sheet1!S71_A6Code,$AC:$AC)","v":0},{"$f":"-SUMIFS(Sheet1!S71_SpecialAdjustedBudget,Sheet1!S71_A6Code,$AC:$AC)","v":0},null,null,null,null,{"$f":"-SUMIFS(Sheet1!S71_AdjustmentAmount,Sheet1!S71_A6Code,$AC:$AC)","v":0},{"$f":"SUM(E33:I33)","v":0},{"$f":"IF(D33=0,C33+J33,D33+J33)","v":0},{"$f":"-SUMIFS(Sheet1!S71_OY1AdjustedBudget,Sheet1!S71_A6Code,$AC:$AC)","v":0},{"$f":"-SUMIFS(Sheet1!S71_OY2AdjustedBudget,Sheet1!S71_A6Code,$AC:$AC)","v":0},null,null,null,null,null,null,null,null,null,null,null,null,null,null,null,"0350"]
["Trade and other payables",null,{"$f":"'SB2'!C134","v":36563380},{"$f":"'SB2'!D134","v":0},{"$f":"'SB2'!E134","v":0},{"$f":"'SB2'!F134","v":0},{"$f":"'SB2'!G134","v":0},{"$f":"'SB2'!H134","v":0},{"$f":"'SB2'!I134","v":-1694448},{"$f":"SUM(E34:I34)","v":-1694448},{"$f":"IF(D34=0,C34+J34,D34+J34)","v":34868932},{"$f":"'SB2'!L134","v":42419889},{"$f":"'SB2'!M134","v":49017364},null,null,null,null,null,null,null,null,null,null,null,null,null,null,null,"0360"]
["Provisions",null,{"$f":"-SUMIFS(Sheet1!S71_OriginalBudget,Sheet1!S71_A6Code,$AC:$AC)","v":0},{"$f":"-SUMIFS(Sheet1!S71_SpecialAdjustedBudget,Sheet1!S71_A6Code,$AC:$AC)","v":0},null,null,null,null,{"$f":"-SUMIFS(Sheet1!S71_AdjustmentAmount,Sheet1!S71_A6Code,$AC:$AC)","v":0},{"$f":"SUM(E35:I35)","v":0},{"$f":"IF(D35=0,C35+J35,D35+J35)","v":0},{"$f":"-SUMIFS(Sheet1!S71_OY1AdjustedBudget,Sheet1!S71_A6Code,$AC:$AC)","v":0},{"$f":"-SUMIFS(Sheet1!S71_OY2AdjustedBudget,Sheet1!S71_A6Code,$AC:$AC)","v":0},null,null,null,null,null,null,null,null,null,null,null,null,null,null,null,"0370"]
["Total current liabilities",null,{"$f":"SUM(C31:C35)","v":36563380},0,0,0,0,0,-1694448,-1694448,34868932,42419889,49017364]
[]
["Non current liabilities"]
["Borrowing",1,{"$f":"'SB2'!C139","v":0},{"$f":"'SB2'!D139","v":0},{"$f":"'SB2'!E139","v":0},{"$f":"'SB2'!F139","v":0},{"$f":"'SB2'!G139","v":0},{"$f":"'SB2'!H139","v":0},{"$f":"'SB2'!I139","v":0},{"$f":"SUM(E39:I39)","v":0},{"$f":"IF(D39=0,C39+J39,D39+J39)","v":0},{"$f":"'SB2'!L139","v":0},{"$f":"'SB2'!M139","v":0},null,null,null,null,null,null,null,null,null,null,null,null,null,null,null,"0400"]
["Provisions",1,{"$f":"'SB2'!C146","v":-26916296},{"$f":"'SB2'!D146","v":0},{"$f":"'SB2'!E146","v":0},{"$f":"'SB2'!F146","v":0},{"$f":"'SB2'!G146","v":0},{"$f":"'SB2'!H146","v":0},{"$f":"'SB2'!I146","v":0},{"$f":"SUM(E40:I40)","v":0},{"$f":"IF(D40=0,C40+J40,D40+J40)","v":-26916296},{"$f":"'SB2'!L146","v":-27827724},{"$f":"'SB2'!M146","v":-28757666},null,null,null,null,null,null,null,null,null,null,null,null,null,null,null,"0410"]
["Total non current liabilities",null,{"$f":"SUM(C39:C40)","v":-26916296},0,0,0,0,0,0,0,-26916296,-27827724,-28757666]
["TOTAL LIABILITIES",null,{"$f":"C36+C41","v":9647084},0,0,0,0,0,-1694448,-1694448,7952636,14592165,20259698]
[]
["NET ASSETS",2,{"$f":"C27-C42","v":448189303},0,0,0,0,0,16268030,16268030,0,519300889,555358021]
[]
["COMMUNITY WEALTH/EQUITY"]
["Accumulated Surplus/(Deficit)",null,{"$f":"'SB2'!C158","v":474263891},{"$f":"'SB2'!D158","v":0},{"$f":"'SB2'!E158","v":0},{"$f":"'SB2'!F158","v":0},{"$f":"'SB2'!G158","v":0},{"$f":"'SB2'!H158","v":0},{"$f":"'SB2'!I158","v":5632489},{"$f":"SUM(E47:I47)","v":5632489},{"$f":"IF(D47=0,C47+J47,D47+J47)","v":479896380},{"$f":"'SB2'!L158","v":507779718},{"$f":"'SB2'!M158","v":543209968},null,null,null,null,null,null,null,null,null,null,null,null,null,null,null,"0460"]
["Reserves",null,{"$f":"'SB2'!C165","v":0},{"$f":"'SB2'!D165","v":0},{"$f":"'SB2'!E165","v":0},{"$f":"'SB2'!F165","v":0},{"$f":"'SB2'!G165","v":0},{"$f":"'SB2'!H165","v":0},{"$f":"'SB2'!I165","v":0},{"$f":"SUM(E48:I48)","v":0},{"$f":"IF(D48=0,C48+J48,D48+J48)","v":0},{"$f":"'SB2'!L165","v":0},{"$f":"'SB2'!M165","v":0},null,null,null,null,null,null,null,null,null,null,null,null,null,null,null,"0470"]
[]
["TOTAL COMMUNITY WEALTH/EQUITY",null,{"$f":"SUM(C47:C48)","v":474263891},{"$f":"SUM(D47:D48)","v":0},0,0,0,0,5632489,5632489,479896380,507779718,543209968]
[{"$f":"head27a","v":"References"}]
["1. Detail to be provided in Table SA3"]
["2. Net assets must balance with Total Community Wealth/Equity"]
["3. Only complete if a previous adjusted budget has been approved in the same financial year. Reflect most recent adjusted budget."]
["4. Additional cash-backed accumulated funds/unspent funds (MFMA section 18(1)(b) and section 28(2)(e)) identified after the Original Budget approved and after annual financial statements audited (note: only where underspending could not reasonably have been foreseen)"]
["5. Increases of funds approved under MFMA section 31"]
["6. Adjustments approved in accordance with MFMA section 29 "]
["7. Adjustments to transfers from National or Provincial Government"]
["8. Adjusts. = 'Other' Adjustments proposed to be approved; including revenue under-collection (MFMA section 28(2)(a)); additional revenue appropriation on existing programmes (section 28(2))(b); projected savings (section 28(2)(d)); error correction (section 28(2)(f))"]
["9. G = B + C + D + E + F"]
["10. Adjusted Budget H = (A or A1/2 etc) + G"]
[]
["check balance",null,{"$f":"C44-C50","v":-26074588},0,0,0,0,0,10635541,10635541,0,11521171,12148053]

{"sheet":"B7-CFlow","index":33,"n_rows":53,"n_cols":30,"rows_kept":53,"cut":false,"hidden":false,"merged":[[52,0,52,12],[46,0,46,12],[50,0,50,12],[1,0,3,0],[1,1,3,1],[1,2,1,10],[45,0,45,12],[47,0,47,12],[48,0,48,12]]}
[{"$f":"muni&\" - \"&_ADJ7&\" - \"&Date","v":"EC139 Enoch Mgijima - Table B7 Adjustments Budget Cash Flows - "}]
[{"$f":"desc","v":"Description"},{"$f":"head27","v":"Ref"},{"$f":"Head2","v":"Budget Year 2021/22"},null,null,null,null,null,null,null,null,{"$f":"Head10","v":"Budget Year +1 2022/23"},{"$f":"Head11","v":"Budget Year +2 2023/24"}]
[null,null,{"$f":"Head6","v":"Original Budget"},{"$f":"Head54","v":"Prior Adjusted"},{"$f":"Head51","v":"Accum. Funds"},{"$f":"Head52","v":"Multi-year capital"},{"$f":"Head53","v":"Unfore. Unavoid."},{"$f":"Head55","v":"Nat. or Prov. Govt"},{"$f":"Head50","v":"Other Adjusts."},{"$f":"Head56","v":"Total Adjusts."},{"$f":"Head7","v":"Adjusted Budget"},{"$f":"Head7","v":"Adjusted Budget"},{"$f":"Head7","v":"Adjusted Budget"}]
[null,null,null,3,4,5,6,7,8,9,10]
["R thousands",null,"A","A1","B","C","D","E","F","G","H"]
["CASH FLOW FROM OPERATING ACTIVITIES"]
["Receipts"]
["Property rates",null,{"$f":"SUMIFS(Sheet1!S71_OriginalBudget,Sheet1!S71_A7Code,$AC:$AC)","v":11856364},{"$f":"SUMIFS(Sheet1!S71_SpecialAdjustedBudget,Sheet1!S71_A7Code,$AC:$AC)","v":0},null,null,null,null,{"$f":"SUMIFS(Sheet1!S71_AdjustmentAmount,Sheet1!S71_A7Code,$AC:$AC)","v":1784302},{"$f":"SUM(E8:I8)","v":1784302},{"$f":"IF(D8=0,C8+J8,D8+J8)","v":13640666},{"$f":"SUMIFS(Sheet1!S71_OY1AdjustedBudget,Sheet1!S71_A7Code,$AC:$AC)","v":13540666},{"$f":"SUMIFS(Sheet1!S71_OY2AdjustedBudget,Sheet1!S71_A7Code,$AC:$AC)","v":13640666},null,null,null,null,null,null,null,null,null,null,null,null,null,null,null,"0120D"]
["Service charges",null,{"$f":"SUMIFS(Sheet1!S71_OriginalBudget,Sheet1!S71_A7Code,$AC:$AC)","v":93825},{"$f":"SUMIFS(Sheet1!S71_SpecialAdjustedBudget,Sheet1!S71_A7Code,$AC:$AC)","v":0},null,null,null,null,{"$f":"SUMIFS(Sheet1!S71_AdjustmentAmount,Sheet1!S71_A7Code,$AC:$AC)","v":499317},{"$f":"SUM(E9:I9)","v":499317},{"$f":"IF(D9=0,C9+J9,D9+J9)","v":593142},{"$f":"SUMIFS(Sheet1!S71_OY1AdjustedBudget,Sheet1!S71_A7Code,$AC:$AC)","v":593142},{"$f":"SUMIFS(Sheet1!S71_OY2AdjustedBudget,Sheet1!S71_A7Code,$AC:$AC)","v":593142},null,null,null,null,null,null,null,null,null,null,null,null,null,null,null,"0130D"]
["Other revenue",null,{"$f":"SUMIFS(Sheet1!S71_OriginalBudget,Sheet1!S71_A7Code,$AC:$AC)","v":23043746},{"$f":"SUMIFS(Sheet1!S71_SpecialAdjustedBudget,Sheet1!S71_A7Code,$AC:$AC)","v":0},null,null,null,null,{"$f":"SUMIFS(Sheet1!S71_AdjustmentAmount,Sheet1!S71_A7Code,$AC:$AC)","v":-3499062},-3499062,19544684,{"$f":"SUMIFS(Sheet1!S71_OY1AdjustedBudget,Sheet1!S71_A7Code,$AC:$AC)","v":21974989},{"$f":"SUMIFS(Sheet1!S71_OY2AdjustedBudget,Sheet1!S71_A7Code,$AC:$AC)","v":24354829},null,null,null,null,null,null,null,null,null,null,null,null,null,null,null,"0140D"]
["Transfers and Subsidies - Operational",1,{"$f":"SUMIFS(Sheet1!S71_OriginalBudget,Sheet1!S71_A7Code,$AC:$AC)","v":196149053},{"$f":"SUMIFS(Sheet1!S71_SpecialAdjustedBudget,Sheet1!S71_A7Code,$AC:$AC)","v":0},null,null,null,null,{"$f":"SUMIFS(Sheet1!S71_AdjustmentAmount,Sheet1!S71_A7Code,$AC:$AC)","v":-1430501},-1430501,194718552,{"$f":"SUMIFS(Sheet1!S71_OY1AdjustedBudget,Sheet1!S71_A7Code,$AC:$AC)","v":204456000},{"$f":"SUMIFS(Sheet1!S71_OY2AdjustedBudget,Sheet1!S71_A7Code,$AC:$AC)","v":201783000},null,null,null,null,null,null,null,null,null,null,null,null,null,null,null,"0150D"]
["Transfers and Subsidies - Capital",1,{"$f":"SUMIFS(Sheet1!S71_OriginalBudget,Sheet1!S71_A7Code,$AC:$AC)","v":47797947},{"$f":"SUMIFS(Sheet1!S71_SpecialAdjustedBudget,Sheet1!S71_A7Code,$AC:$AC)","v":0},null,null,null,null,{"$f":"SUMIFS(Sheet1!S71_AdjustmentAmount,Sheet1!S71_A7Code,$AC:$AC)","v":3782962},3782962,51580909,{"$f":"SUMIFS(Sheet1!S71_OY1AdjustedBudget,Sheet1!S71_A7Code,$AC:$AC)","v":50523000},{"$f":"SUMIFS(Sheet1!S71_OY2AdjustedBudget,Sheet1!S71_A7Code,$AC:$AC)","v":52722000},null,null,null,null,null,null,null,null,null,null,null,null,null,null,null,"0160D"]
["Interest",null,{"$f":"SUMIFS(Sheet1!S71_OriginalBudget,Sheet1!S71_A7Code,$AC:$AC)","v":0},{"$f":"SUMIFS(Sheet1!S71_SpecialAdjustedBudget,Sheet1!S71_A7Code,$AC:$AC)","v":0},null,null,null,null,{"$f":"SUMIFS(Sheet1!S71_AdjustmentAmount,Sheet1!S71_A7Code,$AC:$AC)","v":0},0,0,{"$f":"SUMIFS(Sheet1!S71_OY1AdjustedBudget,Sheet1!S71_A7Code,$AC:$AC)","v":0},{"$f":"SUMIFS(Sheet1!S71_OY2AdjustedBudget,Sheet1!S71_A7Code,$AC:$AC)","v":0},null,null,null,null,null,null,null,null,null,null,null,null,null,null,null,"0170I"]
["Dividends",null,{"$f":"SUMIFS(Sheet1!S71_OriginalBudget,Sheet1!S71_A7Code,$AC:$AC)","v":0},{"$f":"SUMIFS(Sheet1!S71_SpecialAdjustedBudget,Sheet1!S71_A7Code,$AC:$AC)","v":0},null,null,null,null,{"$f":"SUMIFS(Sheet1!S71_AdjustmentAmount,Sheet1!S71_A7Code,$AC:$AC)","v":0},0,0,{"$f":"SUMIFS(Sheet1!S71_OY1AdjustedBudget,Sheet1!S71_A7Code,$AC:$AC)","v":0},{"$f":"SUMIFS(Sheet1!S71_OY2AdjustedBudget,Sheet1!S71_A7Code,$AC:$AC)","v":0},null,null,null,null,null,null,null,null,null,null,null,null,null,null,null,"0180D"]
["Payments"]
["Suppliers and employees",null,{"$f":"-SUMIFS(Sheet1!S71_OriginalBudget,Sheet1!S71_A7CodePayments,$AC:$AC)","v":-144128426},{"$f":"-SUMIFS(Sheet1!S71_SpecialAdjustedBudget,Sheet1!S71_A7CodePayments,$AC:$AC)","v":0},null,null,null,null,{"$f":"-SUMIFS(Sheet1!S71_AdjustmentAmount,Sheet1!S71_A7CodePayments,$AC:$AC)","v":-1694448},{"$f":"SUM(E16:I16)","v":-1694448},{"$f":"IF(D16=0,C16+J16,D16+J16)","v":-145822874},{"$f":"-('SB15'!Q36+'SB15'!Q37+'SB15'!Q39+'SB15'!Q40+'SB15'!Q41+'SB15'!Q42+'SB15'!Q45+'SB15'!Q51)","v":-152252668},{"$f":"-('SB15'!R36+'SB15'!R37+'SB15'!R39+'SB15'!R40+'SB15'!R41+'SB15'!R42+'SB15'!R45+'SB15'!R51)","v":-154606665},null,null,null,null,null,null,null,null,null,null,null,null,null,null,null,"0200"]
["Finance charges",null,{"$f":"-SUMIFS(Sheet1!S71_OriginalBudget,Sheet1!S71_A7CodePayments,$AC:$AC)","v":-995472},{"$f":"-SUMIFS(Sheet1!S71_SpecialAdjustedBudget,Sheet1!S71_A7CodePayments,$AC:$AC)","v":0},null,null,null,null,{"$f":"-SUMIFS(Sheet1!S71_AdjustmentAmount,Sheet1!S71_A7CodePayments,$AC:$AC)","v":0},{"$f":"SUM(E17:I17)","v":0},{"$f":"IF(D17=0,C17+J17,D17+J17)","v":-995472},{"$f":"-SUMIFS(Sheet1!S71_OY1AdjustedBudget,Sheet1!S71_A7CodePayments,$AC:$AC)","v":-506546},{"$f":"-SUMIFS(Sheet1!S71_OY2AdjustedBudget,Sheet1!S71_A7CodePayments,$AC:$AC)","v":-506840},null,null,null,null,null,null,null,null,null,null,null,null,null,null,null,"0210"]
["Transfers and Grants",1,{"$f":"-SUMIFS(Sheet1!S71_OriginalBudget,Sheet1!S71_A7CodePayments,$AC:$AC)","v":-9010000},{"$f":"-SUMIFS(Sheet1!S71_SpecialAdjustedBudget,Sheet1!S71_A7CodePayments,$AC:$AC)","v":0},null,null,null,null,{"$f":"-SUMIFS(Sheet1!S71_AdjustmentAmount,Sheet1!S71_A7CodePayments,$AC:$AC)","v":0},{"$f":"SUM(E18:I18)","v":0},{"$f":"IF(D18=0,C18+J18,D18+J18)","v":-9010000},{"$f":"-SUMIFS(Sheet1!S71_OY1AdjustedBudget,Sheet1!S71_A7CodePayments,$AC:$AC)","v":-7050080},{"$f":"-SUMIFS(Sheet1!S71_OY2AdjustedBudget,Sheet1!S71_A7CodePayments,$AC:$AC)","v":-7135589},null,null,null,null,null,null,null,null,null,null,null,null,null,null,null,"0220"]
["NET CASH FROM/(USED) OPERATING ACTIVITIES",null,{"$f":"SUM(C8:C14)+SUM(C16:C18)","v":124807037},{"$f":"SUM(D8:D14)+SUM(D16:D18)","v":0},0,0,0,0,-557430,{"$f":"SUM(J8:J18)","v":-557430},{"$f":"SUM(K8:K18)","v":124249607},{"$f":"SUM(L8:L14)+SUM(L16:L18)","v":131278503},{"$f":"SUM(M8:M14)+SUM(M16:M18)","v":130844543}]
[]
["CASH FLOWS FROM INVESTING ACTIVITIES"]
["Receipts"]
["Proceeds on disposal of PPE",null,{"$f":"SUMIFS(Sheet1!S71_OriginalBudget,Sheet1!S71_A7SubCode,$AC:$AC)","v":0},{"$f":"SUMIFS(Sheet1!S71_SpecialAdjustedBudget,Sheet1!S71_A7SubCode,$AC:$AC)","v":0},null,null,null,null,{"$f":"SUMIFS(Sheet1!S71_AdjustmentAmount,Sheet1!S71_A7SubCode,$AC:$AC)","v":0},{"$f":"SUM(E23:I23)","v":0},{"$f":"IF(D23=0,C23+J23,D23+J23)","v":0},{"$f":"SUMIFS(Sheet1!S71_OY1AdjustedBudget,Sheet1!S71_A7SubCode,$AC:$AC)","v":0},{"$f":"SUMIFS(Sheet1!S71_OY2AdjustedBudget,Sheet1!S71_A7SubCode,$AC:$AC)","v":0},null,null,null,null,null,null,null,null,null,null,null,null,null,null,null,"0260D"]
[]
["Decrease (increase) in non-current receivables",null,{"$f":"SUMIFS(Sheet1!S71_OriginalBudget,Sheet1!S71_A7Code,$AC:$AC)","v":0},{"$f":"SUMIFS(Sheet1!S71_SpecialAdjustedBudget,Sheet1!S71_A7Code,$AC:$AC)","v":0},null,null,null,null,{"$f":"SUMIFS(Sheet1!S71_AdjustmentAmount,Sheet1!S71_A7Code,$AC:$AC)","v":0},{"$f":"SUM(E25:I25)","v":0},{"$f":"IF(D25=0,C25+J25,D25+J25)","v":0},{"$f":"SUMIFS(Sheet1!S71_OY1AdjustedBudget,Sheet1!S71_A7Code,$AC:$AC)","v":0},{"$f":"SUMIFS(Sheet1!S71_OY2AdjustedBudget,Sheet1!S71_A7Code,$AC:$AC)","v":0}]
["Decrease (increase) in non-current investments",null,{"$f":"SUMIFS(Sheet1!S71_OriginalBudget,Sheet1!S71_A7Code,$AC:$AC)","v":0},{"$f":"SUMIFS(Sheet1!S71_SpecialAdjustedBudget,Sheet1!S71_A7Code,$AC:$AC)","v":0},null,null,null,null,{"$f":"SUMIFS(Sheet1!S71_AdjustmentAmount,Sheet1!S71_A7Code,$AC:$AC)","v":0},{"$f":"SUM(E26:I26)","v":0},{"$f":"IF(D26=0,C26+J26,D26+J26)","v":0},{"$f":"SUMIFS(Sheet1!S71_OY1AdjustedBudget,Sheet1!S71_A7Code,$AC:$AC)","v":0},{"$f":"SUMIFS(Sheet1!S71_OY2AdjustedBudget,Sheet1!S71_A7Code,$AC:$AC)","v":0}]
["Payments"]
["Capital assets",null,{"$f":"SUMIFS(Sheet1!S71_OriginalBudget,Sheet1!S71_A7CodePayments,AC:AC)","v":-59708016},{"$f":"SUMIFS(Sheet1!S71_SpecialAdjustedBudget,Sheet1!S71_A7CodePayments,$AC:$AC)","v":0},null,null,null,null,{"$f":"SUMIFS(Sheet1!S71_AdjustmentAmount,Sheet1!S71_A7CodePayments,$AC:$AC)","v":-782961},{"$f":"SUM(E28:I28)","v":-782961},{"$f":"IF(D28=0,C28+J28,D28+J28)","v":-60490977},{"$f":"SUMIFS(Sheet1!S71_OY1AdjustedBudget,Sheet1!S71_A7CodePayments,$AC:$AC)","v":-55377913},{"$f":"SUMIFS(Sheet1!S71_OY2AdjustedBudget,Sheet1!S71_A7CodePayments,$AC:$AC)","v":-57795384},null,null,null,null,null,null,null,null,null,null,null,null,null,null,null,"0310"]
["NET CASH FROM/(USED) INVESTING ACTIVITIES",null,{"$f":"+C23+C25+C26+C28","v":-59708016},{"$f":"+D23+D25+D26+D28","v":0},0,0,0,0,-782961,-782961,-60490977,-55377913,-57795384]
[]
["CASH FLOWS FROM FINANCING ACTIVITIES"]
["Receipts"]
["Short term loans",null,{"$f":"SUMIFS(Sheet1!S71_OriginalBudget,Sheet1!S71_SA30FDSubCode,$AC:$AC,Sheet1!S71_CFCode,$AD:$AD)","v":0},{"$f":"SUMIFS(Sheet1!S71_SpecialAdjustedBudget,Sheet1!S71_A7Code,$AC:$AC)","v":0},null,null,null,null,{"$f":"SUMIFS(Sheet1!S71_AdjustmentAmount,Sheet1!S71_SA30FDSubCode,$AC:$AC,Sheet1!S71_CFCode,$AD:$AD)","v":0},{"$f":"SUM(E33:I33)","v":0},{"$f":"IF(D33=0,C33+J33,D33+J33)","v":0},{"$f":"SUMIFS(Sheet1!S71_OY1AdjustedBudget,Sheet1!S71_SA30FDSubCode,$AC:$AC,Sheet1!S71_CFCode,$AD:$AD)","v":0},{"$f":"SUMIFS(Sheet1!S71_OY2AdjustedBudget,Sheet1!S71_SA30FDSubCode,$AC:$AC,Sheet1!S71_CFCode,$AD:$AD)","v":0},null,null,null,null,null,null,null,null,null,null,null,null,null,null,null,"0310","D"]
["Borrowing long term/refinancing",null,{"$f":"SUMIFS(Sheet1!S71_OriginalBudget,Sheet1!S71_SA30FDSubCode,$AC:$AC,Sheet1!S71_CFCode,$AD:$AD)","v":0},{"$f":"SUMIFS(Sheet1!S71_SpecialAdjustedBudget,Sheet1!S71_A7Code,$AC:$AC)","v":0},null,null,null,null,{"$f":"SUMIFS(Sheet1!S71_AdjustmentAmount,Sheet1!S71_SA30FDSubCode,$AC:$AC,Sheet1!S71_CFCode,$AD:$AD)","v":0},{"$f":"SUM(E34:I34)","v":0},{"$f":"IF(D34=0,C34+J34,D34+J34)","v":0},{"$f":"SUMIFS(Sheet1!S71_OY1AdjustedBudget,Sheet1!S71_SA30FDSubCode,$AC:$AC,Sheet1!S71_CFCode,$AD:$AD)","v":0},{"$f":"SUMIFS(Sheet1!S71_OY2AdjustedBudget,Sheet1!S71_SA30FDSubCode,$AC:$AC,Sheet1!S71_CFCode,$AD:$AD)","v":0},null,null,null,null,null,null,null,null,null,null,null,null,null,null,null,"0360","D"]
["Increase (decrease) in consumer deposits",null,{"$f":"SUMIFS(Sheet1!S71_OriginalBudget,Sheet1!S71_A7Code,$AC:$AC)","v":0},{"$f":"SUMIFS(Sheet1!S71_SpecialAdjustedBudget,Sheet1!S71_A7Code,$AC:$AC)","v":0},null,null,null,null,{"$f":"SUMIFS(Sheet1!S71_AdjustmentAmount,Sheet1!S71_A7Code,$AC:$AC)","v":0},{"$f":"SUM(E35:I35)","v":0},{"$f":"IF(D35=0,C35+J35,D35+J35)","v":0},{"$f":"SUMIFS(Sheet1!S71_OY1AdjustedBudget,Sheet1!S71_A7Code,$AC:$AC)","v":0},{"$f":"SUMIFS(Sheet1!S71_OY2AdjustedBudget,Sheet1!S71_A7Code,$AC:$AC)","v":0}]
["Payments"]
["Repayment of borrowing",null,{"$f":"-SUMIFS(Sheet1!S71_OriginalBudget,Sheet1!S71_A7CodePayments,$AC:$AC)","v":0},{"$f":"-SUMIFS(Sheet1!S71_SpecialAdjustedBudget,Sheet1!S71_A7CodePayments,$AC:$AC)","v":0},null,null,null,null,{"$f":"-SUMIFS(Sheet1!S71_AdjustmentAmount,Sheet1!S71_A7CodePayments,$AC:$AC)","v":0},{"$f":"SUM(E37:I37)","v":0},{"$f":"IF(D37=0,C37+J37,D37+J37)","v":0},{"$f":"-SUMIFS(Sheet1!S71_OY1AdjustedBudget,Sheet1!S71_A7CodePayments,$AC:$AC)","v":0},{"$f":"-SUMIFS(Sheet1!S71_OY2AdjustedBudget,Sheet1!S71_A7CodePayments,$AC:$AC)","v":0},null,null,null,null,null,null,null,null,null,null,null,null,null,null,null,"0390"]
["NET CASH FROM/(USED) FINANCING ACTIVITIES",null,{"$f":"SUM(C33:C35)+C37","v":0},{"$f":"SUM(D33:D35)+D37","v":0},0,0,0,0,0,{"$f":"SUM(J33:J37)","v":0},{"$f":"SUM(K33:K37)","v":0},{"$f":"SUM(L33:L35)+L37","v":0},{"$f":"SUM(M33:M35)+M37","v":0}]
[]
["NET INCREASE/ (DECREASE) IN CASH HELD",null,{"$f":"C19+C29+C38","v":65099021},{"$f":"D19+D29+D38","v":0},0,0,0,0,-1340391,-1340391,63758630,75900590,73049159]
["Cash/cash equivalents at the year begin:",2,{"$f":"SUMIFS(Sheet1!S71_OriginalBudget,Sheet1!S71_A7CodePayments,$AC:$AC)","v":69122140},{"$f":"SUMIFS(Sheet1!S71_SpecialAdjustedBudget,Sheet1!S71_A7CodePayments,$AC:$AC)","v":0},null,null,null,null,{"$f":"SUMIFS(Sheet1!S71_AdjustmentAmount,Sheet1!S71_A7CodePayments,$AC:$AC)","v":0},{"$f":"SUM(E41:I41)","v":0},{"$f":"IF(D41=0,C41+J41,D41+J41)","v":69122140},{"$f":"SUMIFS(Sheet1!S71_OY1AdjustedBudget,Sheet1!S71_A7CodePayments,$AC:$AC)","v":87971923},{"$f":"SUMIFS(Sheet1!S71_OY2AdjustedBudget,Sheet1!S71_A7CodePayments,$AC:$AC)","v":114023108},null,null,null,null,null,null,null,null,null,null,null,null,null,null,null,"0420"]
["Cash/cash equivalents at the year end:",2,{"$f":"C40+C41","v":134221161},{"$f":"D40+D41","v":0},0,0,0,0,-1340391,-1340391,{"$f":"K40+K41","v":132880770},{"$f":"L40+L41","v":163872513},{"$f":"M40+M41","v":187072267}]
[{"$f":"head27a","v":"References"}]
["1. Local/District municipalities to include transfers from/to District/Local Municipalities"]
["2. Cash equivalents includes investments with maturities of 3 months or less"]
["3. Only complete if a previous adjusted budget has been approved in the same financial year. Reflect most recent adjusted budget."]
["4. Additional cash-backed accumulated funds/unspent funds (MFMA section 18(1)(b) and section 28(2)(e)) identified after the Original Budget approved and after annual financial statements audited (note: only where underspending could not reasonably have been foreseen)"]
["5. Increases of funds approved under MFMA section 31"]
["6. Adjustments approved in accordance with MFMA section 29 "]
["7. Adjustments to transfers from National or Provincial Government"]
["8. Adjusts. = 'Other' Adjustments proposed to be approved; including revenue under-collection (MFMA section 28(2)(a)); additional revenue appropriation on existing programmes (section 28(2))(b); projected savings (section 28(2)(d)); error correction (section 28(2)(f))"]
["9. G = B + C + D + E + F"]
["10. Adjusted Budget H = (A or A1) + G"]

{"sheet":"B8-ResRecon","index":34,"n_rows":57,"n_cols":13,"rows_kept":57,"cut":false,"hidden":false,"merged":[[1,1,3,1],[1,0,3,0],[1,2,1,10]]}
[{"$f":"muni&\" - \"&_ADJ8&\" - \"&Date","v":"EC139 Enoch Mgijima - Table B8 Cash backed reserves/accumulated surplus reconciliation - "}]
[{"$f":"desc","v":"Description"},{"$f":"head27","v":"Ref"},{"$f":"Head2","v":"Budget Year 2021/22"},null,null,null,null,null,null,null,null,{"$f":"Head10","v":"Budget Year +1 2022/23"},{"$f":"Head11","v":"Budget Year +2 2023/24"}]
[null,null,{"$f":"Head6","v":"Original Budget"},{"$f":"Head54","v":"Prior Adjusted"},{"$f":"Head51","v":"Accum. Funds"},{"$f":"Head52","v":"Multi-year capital"},{"$f":"Head53","v":"Unfore. Unavoid."},{"$f":"Head55","v":"Nat. or Prov. Govt"},{"$f":"Head50","v":"Other Adjusts."},{"$f":"Head56","v":"Total Adjusts."},{"$f":"Head7","v":"Adjusted Budget"},{"$f":"Head7","v":"Adjusted Budget"},{"$f":"Head7","v":"Adjusted Budget"}]
[null,null,null,3,4,5,6,7,8,9,10]
["R thousands",null,"A","A1","B","C","D","E","F","G","H"]
["Cash and investments available"]
["Cash/cash equivalents at the year end",1,{"$f":"'B7-CFlow'!C42","v":134221161},{"$f":"'B7-CFlow'!D42","v":0},{"$f":"'B7-CFlow'!E42","v":0},{"$f":"'B7-CFlow'!F42","v":0},{"$f":"'B7-CFlow'!G42","v":0},{"$f":"'B7-CFlow'!H42","v":0},{"$f":"'B7-CFlow'!I42","v":-1340391},{"$f":"SUM(E7:I7)","v":-1340391},{"$f":"IF(D7=0,C7+J7,D7+J7)","v":132880770},{"$f":"'B7-CFlow'!L42","v":163872513},{"$f":"'B7-CFlow'!M42","v":187072267}]
["Other current investments  > 90 days",null,{"$f":"'B6-FinPos'!C8+'B6-FinPos'!C9-'B6-FinPos'!C31-'B8-ResRecon'!C7","v":-46249239},{"$f":"'B6-FinPos'!D8+'B6-FinPos'!D9-'B6-FinPos'!D31-'B8-ResRecon'!D7","v":0},{"$f":"'B6-FinPos'!E8+'B6-FinPos'!E9-'B6-FinPos'!E31-'B8-ResRecon'!E7","v":0},{"$f":"'B6-FinPos'!F8+'B6-FinPos'!F9-'B6-FinPos'!F31-'B8-ResRecon'!F7","v":0},{"$f":"'B6-FinPos'!G8+'B6-FinPos'!G9-'B6-FinPos'!G31-'B8-ResRecon'!G7","v":0},{"$f":"'B6-FinPos'!H8+'B6-FinPos'!H9-'B6-FinPos'!H31-'B8-ResRecon'!H7","v":0},{"$f":"'B6-FinPos'!I8+'B6-FinPos'!I9-'B6-FinPos'!I31-'B8-ResRecon'!I7","v":-354056},{"$f":"SUM(E8:I8)","v":-354056},{"$f":"IF(D8=0,C8+J8,D8+J8)","v":-46603295},{"$f":"'B6-FinPos'!L8+'B6-FinPos'!L9-'B6-FinPos'!L31-'B8-ResRecon'!L7","v":-51856113},{"$f":"'B6-FinPos'!M8+'B6-FinPos'!M9-'B6-FinPos'!M31-'B8-ResRecon'!M7","v":-55779904}]
["Non current assets - Investments",1,{"$f":"'B6-FinPos'!C18","v":0},{"$f":"'B6-FinPos'!D18","v":0},{"$f":"'B6-FinPos'!E18","v":0},{"$f":"'B6-FinPos'!F18","v":0},{"$f":"'B6-FinPos'!G18","v":0},{"$f":"'B6-FinPos'!H18","v":0},{"$f":"'B6-FinPos'!I18","v":0},{"$f":"SUM(E9:I9)","v":0},{"$f":"IF(D9=0,C9+J9,D9+J9)","v":0},{"$f":"'B6-FinPos'!L18","v":0},{"$f":"'B6-FinPos'!M18","v":0}]
["Cash and investments available:",null,{"$f":"SUM(C7:C9)","v":87971922},0,0,0,0,0,-1694447,-1694447,86277475,112016400,131292363]
[]
["Applications of cash and investments"]
["Unspent conditional transfers",null,{"$f":"'SB2'!C132","v":1875745},{"$f":"'SB2'!D132","v":0},{"$f":"'SB2'!E132","v":0},{"$f":"'SB2'!F132","v":0},{"$f":"'SB2'!G132","v":0},{"$f":"'SB2'!H132","v":0},{"$f":"'SB2'!I132","v":-3414448},{"$f":"SUM(E13:I13)","v":-3414448},{"$f":"IF(D13=0,C13+J13,D13+J13)","v":-1538703},{"$f":"'SB2'!L132","v":1875745},{"$f":"'SB2'!M132","v":1875745}]
["Unspent borrowing",null,null,null,null,null,null,null,null,0,{"$f":"IF(D14=0,C14+J14,D14+J14)","v":0}]
["Statutory requirements",null,null,null,null,null,null,null,null,0,{"$f":"IF(D15=0,C15+J15,D15+J15)","v":0}]
["Other working capital requirements",2,{"$f":"-C40","v":20858859},{"$f":"-D40","v":0},null,null,null,null,{"$f":"IF(D16=0,(K16-C16)-SUM(E16:H16),(K16-D16)-SUM(E16:H16))","v":91973},91973,{"$f":"-K40","v":20950832},{"$f":"-L40","v":32466647},{"$f":"-M40","v":35088102}]
["Other provisions",null,null,null,null,null,null,null,null,0,{"$f":"IF(D17=0,C17+J17,D17+J17)","v":0}]
["Long term investments committed",null,{"$f":"C50","v":0},{"$f":"D50","v":0},null,null,null,null,{"$f":"IF(D18=0,(K18-C18)-SUM(E18:H18),(K18-D18)-SUM(E18:H18))","v":0},0,{"$f":"K50","v":0},{"$f":"L50","v":0},{"$f":"M50","v":0}]
["Reserves to be backed by cash/investments",null,{"$f":"C57","v":0},{"$f":"D57","v":0},null,null,null,null,{"$f":"IF(D19=0,(K19-C19)-SUM(E19:H19),(K19-D19)-SUM(E19:H19))","v":0},0,{"$f":"K57","v":0},{"$f":"L57","v":0},{"$f":"M57","v":0}]
["Total Application of cash and investments:",null,{"$f":"SUM(C13:C19)","v":22734604},0,0,0,0,0,-3322475,-3322475,19412129,34342392,36963847]
["Surplus(shortfall)",null,{"$f":"C10-C20","v":65237318},0,0,0,0,0,1628028,1628028,66865346,77674008,94328516]
[{"$f":"head27a","v":"References"}]
["1. Must reconcile with the Adjustments Budget Cash Flow and Adjustements Budget Financial Position"]
["2. Council approval for policy required - include sufficient working capital (e.g. allowing for a % of current debtors > 90 days as uncollectable)"]
["3. Only complete if a previous adjusted budget has been approved in the same financial year. Reflect most recent adjusted budget."]
["4. Additional cash-backed accumulated funds/unspent funds (MFMA section 18(1)(b) and section 28(2)(e)) identified after the Original Budget approved and after annual financial statements audited (note: only where underspending could not reasonably have been foreseen)"]
["5. Increases of funds approved under MFMA section 31"]
["6. Adjustments approved in accordance with MFMA section 29 "]
["7. Adjustments to transfers from National or Provincial Government"]
["8. Adjusts. = 'Other' Adjustments proposed to be approved; including revenue under-collection (MFMA section 28(2)(a)); additional revenue appropriation on existing programmes (section 28(2))(b); projected savings (section 28(2)(d)); error correction (section 28(2)(f))"]
["9. G = B + C + D + E + F"]
["10. Adjusted Budget H = (A or A1) + G"]
[]
[]
[]
[]
[{"$f":"A16","v":"Other working capital requirements"}]
["Debtors",null,{"$f":"IF(ISERROR(ROUND(C43*C44,0)),0,(ROUND(C43*C44,0)))","v":22838776},{"$f":"IF(ISERROR(ROUND(D43*D44,0)),0,(ROUND(D43*D44,0)))","v":0},null,null,null,null,null,null,{"$f":"IF(ISERROR(ROUND(K43*K44,0)),0,(ROUND(K43*K44,0)))","v":22746803},{"$f":"IF(ISERROR(ROUND(L43*L44,0)),0,(ROUND(L43*L44,0)))","v":15127577},{"$f":"IF(ISERROR(ROUND(M43*M44,0)),0,(ROUND(M43*M44,0)))","v":19189106}]
["Creditors due",null,{"$f":"'SB2'!C130","v":43697635},{"$f":"'SB2'!D130","v":0},null,null,null,null,null,null,{"$f":"'SB2'!K130","v":43697635},{"$f":"'SB2'!L130","v":47594224},{"$f":"'SB2'!M130","v":54277208}]
["Total",null,{"$f":"C38-C39","v":-20858859},{"$f":"D38-D39","v":0},null,null,null,null,null,null,{"$f":"K38-K39","v":-20950832},{"$f":"L38-L39","v":-32466647},{"$f":"M38-M39","v":-35088102}]
[]
["Debtors collection assumptions:"]
["Balance outstanding - debtors",null,{"$f":"'B6-FinPos'!C10+'B6-FinPos'!C11+'B6-FinPos'!C17","v":19513066},{"$f":"'B6-FinPos'!D10+'B6-FinPos'!D11+'B6-FinPos'!D17","v":0},null,null,null,null,null,null,{"$f":"'B6-FinPos'!K10+'B6-FinPos'!K11+'B6-FinPos'!K17","v":18026759},{"$f":"'B6-FinPos'!L10+'B6-FinPos'!L11+'B6-FinPos'!L17","v":12738109},{"$f":"'B6-FinPos'!M10+'B6-FinPos'!M11+'B6-FinPos'!M17","v":15857795}]
["Estimate of debtors collection rate",null,{"$f":"IF(ISERROR('SB6'!G10),0,('SB6'!G10))","v":1.1704350056842829},{"$f":"IF(ISERROR('SB6'!H10),0,('SB6'!H10))","v":0},null,null,null,null,null,null,{"$f":"IF(ISERROR('SB6'!I10),0,('SB6'!I10))","v":1.2618354466222765},{"$f":"IF(ISERROR('SB6'!J10),0,('SB6'!J10))","v":1.1875841651440953},{"$f":"IF(ISERROR('SB6'!K10),0,('SB6'!K10))","v":1.2100740482348351}]
[]
[{"$f":"A18","v":"Long term investments committed"}]
["(Insert description; eg sinking fund)"]
[]
[]
[null,null,{"$f":"SUM(C47:C49)","v":0},{"$f":"SUM(D47:D49)","v":0},null,null,null,null,null,null,{"$f":"SUM(K47:K49)","v":0},{"$f":"SUM(L47:L49)","v":0},{"$f":"SUM(M47:M49)","v":0}]
[]
[{"$f":"A19","v":"Reserves to be backed by cash/investments"}]
[{"$f":"'SB2'!A160","v":"Housing Development Fund"}]
[{"$f":"'SB2'!A161","v":"Capital replacement"},null,{"$f":"'SB2'!C161","v":0},{"$f":"'SB2'!D161","v":0},null,null,null,null,null,null,{"$f":"'SB2'!K161","v":0},{"$f":"'SB2'!L161","v":0},{"$f":"'SB2'!M161","v":0}]
[{"$f":"'SB2'!A162","v":"Self-insurance"},null,{"$f":"'SB2'!C162","v":0},{"$f":"'SB2'!D162","v":0},null,null,null,null,null,null,{"$f":"'SB2'!K162","v":0},{"$f":"'SB2'!L162","v":0},{"$f":"'SB2'!M162","v":0}]
[{"$f":"'SB2'!A163","v":"Other reserves"},null,{"$f":"'SB2'!C163","v":0},{"$f":"'SB2'!D163","v":0},null,null,null,null,null,null,{"$f":"'SB2'!K163","v":0},{"$f":"'SB2'!L163","v":0},{"$f":"'SB2'!M163","v":0}]
[null,null,{"$f":"SUM(C53:C56)","v":0},{"$f":"SUM(D53:D56)","v":0},null,null,null,null,null,null,{"$f":"SUM(K53:K56)","v":0},{"$f":"SUM(L53:L56)","v":0},{"$f":"SUM(M53:M56)","v":0}]

{"sheet":"B9-Asset","index":35,"n_rows":227,"n_cols":30,"rows_kept":227,"cut":false,"hidden":false,"merged":[[223,0,223,12],[217,0,217,12],[221,0,221,12],[1,2,1,10],[1,0,3,0],[1,1,3,1],[216,0,216,12],[218,0,218,12],[219,0,219,12]]}
[{"$f":"muni&\" - \"&_ADJ9&\" - \"&Date","v":"EC139 Enoch Mgijima - Table B9 Asset Management - "}]
[{"$f":"desc","v":"Description"},{"$f":"head27","v":"Ref"},{"$f":"Head2","v":"Budget Year 2021/22"},null,null,null,null,null,null,null,null,{"$f":"Head10","v":"Budget Year +1 2022/23"},{"$f":"Head11","v":"Budget Year +2 2023/24"}]
[null,null,{"$f":"Head6","v":"Original Budget"},{"$f":"Head54","v":"Prior Adjusted"},{"$f":"Head51","v":"Accum. Funds"},{"$f":"Head52","v":"Multi-year capital"},{"$f":"Head53","v":"Unfore. Unavoid."},{"$f":"Head55","v":"Nat. or Prov. Govt"},{"$f":"Head50","v":"Other Adjusts."},{"$f":"Head56","v":"Total Adjusts."},{"$f":"Head7","v":"Adjusted Budget"},{"$f":"Head7","v":"Adjusted Budget"},{"$f":"Head7","v":"Adjusted Budget"}]
[null,null,null,7,8,9,10,11,12,13,14]
["R thousands",null,"A","A1","B","C","D","E","F","G","H"]
["CAPITAL EXPENDITURE"]
["Total New Assets to be adjusted",1,{"$f":"C17+C20+C21+C24+C27+C28+SUM(C31:C37)","v":45399821},{"$f":"D17+D20+D21+D24+D27+D28+SUM(D31:D37)","v":0},0,0,0,0,7781731,7781731,53181552,54235500,56676100]
["Roads Infrastructure",null,{"$f":"SB18a!C9","v":30169521},{"$f":"SB18a!D9","v":0},{"$f":"SB18a!E9","v":0},{"$f":"SB18a!F9","v":0},{"$f":"SB18a!G9","v":0},{"$f":"SB18a!H9","v":0},{"$f":"SB18a!I9","v":1911731},{"$f":"SB18a!J9","v":1911731},{"$f":"SB18a!K9","v":32081252},{"$f":"SB18a!L9","v":35007500},{"$f":"SB18a!M9","v":36582838}]
["Storm water Infrastructure",null,{"$f":"SB18a!C14","v":0},{"$f":"SB18a!D14","v":0},{"$f":"SB18a!E14","v":0},{"$f":"SB18a!F14","v":0},{"$f":"SB18a!G14","v":0},{"$f":"SB18a!H14","v":0},{"$f":"SB18a!I14","v":0},{"$f":"SB18a!J14","v":0},{"$f":"SB18a!K14","v":0},{"$f":"SB18a!L14","v":0},{"$f":"SB18a!M14","v":0}]
["Electrical Infrastructure",null,{"$f":"SB18a!C18","v":0},{"$f":"SB18a!D18","v":0},{"$f":"SB18a!E18","v":0},{"$f":"SB18a!F18","v":0},{"$f":"SB18a!G18","v":0},{"$f":"SB18a!H18","v":0},{"$f":"SB18a!I18","v":3000000},{"$f":"SB18a!J18","v":3000000},{"$f":"SB18a!K18","v":3000000},{"$f":"SB18a!L18","v":4180000},{"$f":"SB18a!M18","v":4368100}]
["Water Supply Infrastructure",null,{"$f":"SB18a!C28","v":0},{"$f":"SB18a!D28","v":0},{"$f":"SB18a!E28","v":0},{"$f":"SB18a!F28","v":0},{"$f":"SB18a!G28","v":0},{"$f":"SB18a!H28","v":0},{"$f":"SB18a!I28","v":0},{"$f":"SB18a!J28","v":0},{"$f":"SB18a!K28","v":0},{"$f":"SB18a!L28","v":0},{"$f":"SB18a!M28","v":0}]
["Sanitation Infrastructure",null,{"$f":"SB18a!C39","v":0},{"$f":"SB18a!D39","v":0},{"$f":"SB18a!E39","v":0},{"$f":"SB18a!F39","v":0},{"$f":"SB18a!G39","v":0},{"$f":"SB18a!H39","v":0},{"$f":"SB18a!I39","v":0},{"$f":"SB18a!J39","v":0},{"$f":"SB18a!K39","v":0},{"$f":"SB18a!L39","v":0},{"$f":"SB18a!M39","v":0}]
["Solid Waste Infrastructure",null,{"$f":"SB18a!C46","v":0},{"$f":"SB18a!D46","v":0},{"$f":"SB18a!E46","v":0},{"$f":"SB18a!F46","v":0},{"$f":"SB18a!G46","v":0},{"$f":"SB18a!H46","v":0},{"$f":"SB18a!I46","v":0},{"$f":"SB18a!J46","v":0},{"$f":"SB18a!K46","v":0},{"$f":"SB18a!L46","v":0},{"$f":"SB18a!M46","v":0}]
["Rail Infrastructure",null,{"$f":"SB18a!C54","v":0},{"$f":"SB18a!D54","v":0},{"$f":"SB18a!E54","v":0},{"$f":"SB18a!F54","v":0},{"$f":"SB18a!G54","v":0},{"$f":"SB18a!H54","v":0},{"$f":"SB18a!I54","v":0},{"$f":"SB18a!J54","v":0},{"$f":"SB18a!K54","v":0},{"$f":"SB18a!L54","v":0},{"$f":"SB18a!M54","v":0}]
["Coastal Infrastructure",null,{"$f":"SB18a!C64","v":0},{"$f":"SB18a!D64","v":0},{"$f":"SB18a!E64","v":0},{"$f":"SB18a!F64","v":0},{"$f":"SB18a!G64","v":0},{"$f":"SB18a!H64","v":0},{"$f":"SB18a!I64","v":0},{"$f":"SB18a!J64","v":0},{"$f":"SB18a!K64","v":0},{"$f":"SB18a!L64","v":0},{"$f":"SB18a!M64","v":0}]
["Information and Communication Infrastructure",null,{"$f":"SB18a!C70","v":0},{"$f":"SB18a!D70","v":0},{"$f":"SB18a!E70","v":0},{"$f":"SB18a!F70","v":0},{"$f":"SB18a!G70","v":0},{"$f":"SB18a!H70","v":0},{"$f":"SB18a!I70","v":0},{"$f":"SB18a!J70","v":0},{"$f":"SB18a!K70","v":0},{"$f":"SB18a!L70","v":0},{"$f":"SB18a!M70","v":0}]
["Infrastructure",null,{"$f":"SUM(C8:C16)","v":30169521},{"$f":"SUM(D8:D16)","v":0},0,0,0,0,4911731,4911731,35081252,39187500,40950938]
["Community Facilities",null,{"$f":"SB18a!C77","v":10500000},{"$f":"SB18a!D77","v":0},{"$f":"SB18a!E77","v":0},{"$f":"SB18a!F77","v":0},{"$f":"SB18a!G77","v":0},{"$f":"SB18a!H77","v":0},{"$f":"SB18a!I77","v":3220000},{"$f":"SB18a!J77","v":3220000},{"$f":"SB18a!K77","v":13720000},{"$f":"SB18a!L77","v":9405000},{"$f":"SB18a!M77","v":9828225}]
["Sport and Recreation Facilities",null,{"$f":"SB18a!C100","v":0},{"$f":"SB18a!D100","v":0},{"$f":"SB18a!E100","v":0},{"$f":"SB18a!F100","v":0},{"$f":"SB18a!G100","v":0},{"$f":"SB18a!H100","v":0},{"$f":"SB18a!I100","v":0},{"$f":"SB18a!J100","v":0},{"$f":"SB18a!K100","v":0},{"$f":"SB18a!L100","v":2090000},{"$f":"SB18a!M100","v":2184050}]
["Community Assets",null,{"$f":"SUM(C18:C19)","v":10500000},{"$f":"SUM(D18:D19)","v":0},0,0,0,0,3220000,3220000,13720000,11495000,12012275]
["Heritage Assets",null,{"$f":"SB18a!C105","v":0},{"$f":"SB18a!D105","v":0},{"$f":"SB18a!E105","v":0},{"$f":"SB18a!F105","v":0},{"$f":"SB18a!G105","v":0},{"$f":"SB18a!H105","v":0},{"$f":"SB18a!I105","v":0},{"$f":"SB18a!J105","v":0},{"$f":"SB18a!K105","v":0},{"$f":"SB18a!L105","v":0},{"$f":"SB18a!M105","v":0}]
["Revenue Generating",null,{"$f":"SB18a!C113","v":0},{"$f":"SB18a!D113","v":0},{"$f":"SB18a!E113","v":0},{"$f":"SB18a!F113","v":0},{"$f":"SB18a!G113","v":0},{"$f":"SB18a!H113","v":0},{"$f":"SB18a!I113","v":0},{"$f":"SB18a!J113","v":0},{"$f":"SB18a!K113","v":0},{"$f":"SB18a!L113","v":0},{"$f":"SB18a!M113","v":0}]
["Non-revenue Generating",null,{"$f":"SB18a!C116","v":0},{"$f":"SB18a!D116","v":0},{"$f":"SB18a!E116","v":0},{"$f":"SB18a!F116","v":0},{"$f":"SB18a!G116","v":0},{"$f":"SB18a!H116","v":0},{"$f":"SB18a!I116","v":0},{"$f":"SB18a!J116","v":0},{"$f":"SB18a!K116","v":0},{"$f":"SB18a!L116","v":0},{"$f":"SB18a!M116","v":0}]
["Investment properties",null,{"$f":"SUM(C22:C23)","v":0},{"$f":"SUM(D22:D23)","v":0},0,0,0,0,0,0,0,0,0]
["Operational Buildings",null,{"$f":"SB18a!C121","v":0},{"$f":"SB18a!D121","v":0},{"$f":"SB18a!E121","v":0},{"$f":"SB18a!F121","v":0},{"$f":"SB18a!G121","v":0},{"$f":"SB18a!H121","v":0},{"$f":"SB18a!I121","v":0},{"$f":"SB18a!J121","v":0},{"$f":"SB18a!K121","v":0},{"$f":"SB18a!L121","v":0},{"$f":"SB18a!M121","v":0}]
["Housing",null,{"$f":"SB18a!C133","v":0},{"$f":"SB18a!D133","v":0},{"$f":"SB18a!E133","v":0},{"$f":"SB18a!F133","v":0},{"$f":"SB18a!G133","v":0},{"$f":"SB18a!H133","v":0},{"$f":"SB18a!I133","v":0},{"$f":"SB18a!J133","v":0},{"$f":"SB18a!K133","v":0},{"$f":"SB18a!L133","v":0},{"$f":"SB18a!M133","v":0}]
["Other Assets",6,{"$f":"SUM(C25:C26)","v":0},{"$f":"SUM(D25:D26)","v":0},0,0,0,0,0,0,0,0,0]
["Biological or Cultivated Assets",null,{"$f":"SB18a!C138","v":0},{"$f":"SB18a!D138","v":0},{"$f":"SB18a!E138","v":0},{"$f":"SB18a!F138","v":0},{"$f":"SB18a!G138","v":0},{"$f":"SB18a!H138","v":0},{"$f":"SB18a!I138","v":0},{"$f":"SB18a!J138","v":0},{"$f":"SB18a!K138","v":0},{"$f":"SB18a!L138","v":0},{"$f":"SB18a!M138","v":0}]
["Servitudes",null,{"$f":"SB18a!C142","v":0},{"$f":"SB18a!D142","v":0},{"$f":"SB18a!E142","v":0},{"$f":"SB18a!F142","v":0},{"$f":"SB18a!G142","v":0},{"$f":"SB18a!H142","v":0},{"$f":"SB18a!I142","v":0},{"$f":"SB18a!J142","v":0},{"$f":"SB18a!K142","v":0},{"$f":"SB18a!L142","v":0},{"$f":"SB18a!M142","v":0}]
["Licences and Rights",null,{"$f":"SB18a!C143","v":1067800},{"$f":"SB18a!D143","v":0},{"$f":"SB18a!E143","v":0},{"$f":"SB18a!F143","v":0},{"$f":"SB18a!G143","v":0},{"$f":"SB18a!H143","v":0},{"$f":"SB18a!I143","v":-480000},{"$f":"SB18a!J143","v":-480000},{"$f":"SB18a!K143","v":587800},{"$f":"SB18a!L143","v":522500},{"$f":"SB18a!M143","v":546013}]
["Intangible Assets",null,{"$f":"SUM(C29:C30)","v":1067800},{"$f":"SUM(D29:D30)","v":0},0,0,0,0,-480000,-480000,587800,522500,546013]
["Computer Equipment",null,{"$f":"SB18a!C151","v":300000},{"$f":"SB18a!D151","v":0},{"$f":"SB18a!E151","v":0},{"$f":"SB18a!F151","v":0},{"$f":"SB18a!G151","v":0},{"$f":"SB18a!H151","v":0},{"$f":"SB18a!I151","v":-150000},{"$f":"SB18a!J151","v":-150000},{"$f":"SB18a!K151","v":150000},{"$f":"SB18a!L151","v":209000},{"$f":"SB18a!M151","v":218405}]
["Furniture and Office Equipment",null,{"$f":"SB18a!C154","v":522500},{"$f":"SB18a!D154","v":0},{"$f":"SB18a!E154","v":0},{"$f":"SB18a!F154","v":0},{"$f":"SB18a!G154","v":0},{"$f":"SB18a!H154","v":0},{"$f":"SB18a!I154","v":-222500},{"$f":"SB18a!J154","v":-222500},{"$f":"SB18a!K154","v":300000},{"$f":"SB18a!L154","v":522500},{"$f":"SB18a!M154","v":546013}]
["Machinery and Equipment",null,{"$f":"SB18a!C157","v":2317500},{"$f":"SB18a!D157","v":0},{"$f":"SB18a!E157","v":0},{"$f":"SB18a!F157","v":0},{"$f":"SB18a!G157","v":0},{"$f":"SB18a!H157","v":0},{"$f":"SB18a!I157","v":-377500},{"$f":"SB18a!J157","v":-377500},{"$f":"SB18a!K157","v":1940000},{"$f":"SB18a!L157","v":1776500},{"$f":"SB18a!M157","v":1856443}]
["Transport Assets",null,{"$f":"SB18a!C160","v":522500},{"$f":"SB18a!D160","v":0},{"$f":"SB18a!E160","v":0},{"$f":"SB18a!F160","v":0},{"$f":"SB18a!G160","v":0},{"$f":"SB18a!H160","v":0},{"$f":"SB18a!I160","v":880000},{"$f":"SB18a!J160","v":880000},{"$f":"SB18a!K160","v":1402500},{"$f":"SB18a!L160","v":522500},{"$f":"SB18a!M160","v":546013}]
["Land",null,{"$f":"SB18a!C163","v":0},{"$f":"SB18a!D163","v":0},{"$f":"SB18a!E163","v":0},{"$f":"SB18a!F163","v":0},{"$f":"SB18a!G163","v":0},{"$f":"SB18a!H163","v":0},{"$f":"SB18a!I163","v":0},{"$f":"SB18a!J163","v":0},{"$f":"SB18a!K163","v":0},{"$f":"SB18a!L163","v":0},{"$f":"SB18a!M163","v":0}]
["Zoo's, Marine and Non-biological Animals",null,{"$f":"SB18a!C166","v":0},{"$f":"SB18a!D166","v":0},{"$f":"SB18a!E166","v":0},{"$f":"SB18a!F166","v":0},{"$f":"SB18a!G166","v":0},{"$f":"SB18a!H166","v":0},{"$f":"SB18a!I166","v":0},{"$f":"SB18a!J166","v":0},{"$f":"SB18a!K166","v":0},{"$f":"SB18a!L166","v":0},{"$f":"SB18a!M166","v":0}]
[]
["Total Renewal of Existing Assets to be adjusted",2,{"$f":"C49+C52+C53+C56+C59+C60+SUM(C63:C69)","v":1808195},{"$f":"D49+D52+D53+D56+D59+D60+SUM(D63:D69)","v":0},0,0,0,0,-1500000,-1500000,308195,209000,218405]
["Roads Infrastructure",null,{"$f":"SB18b!C9","v":0},{"$f":"SB18b!D9","v":0},{"$f":"SB18b!E9","v":0},{"$f":"SB18b!F9","v":0},{"$f":"SB18b!G9","v":0},{"$f":"SB18b!H9","v":0},{"$f":"SB18b!I9","v":0},{"$f":"SB18b!J9","v":0},{"$f":"SB18b!K9","v":0},{"$f":"SB18b!L9","v":0},{"$f":"SB18b!M9","v":0}]
["Storm water Infrastructure",null,{"$f":"SB18b!C14","v":0},{"$f":"SB18b!D14","v":0},{"$f":"SB18b!E14","v":0},{"$f":"SB18b!F14","v":0},{"$f":"SB18b!G14","v":0},{"$f":"SB18b!H14","v":0},{"$f":"SB18b!I14","v":0},{"$f":"SB18b!J14","v":0},{"$f":"SB18b!K14","v":0},{"$f":"SB18b!L14","v":0},{"$f":"SB18b!M14","v":0}]
["Electrical Infrastructure",null,{"$f":"SB18b!C18","v":0},{"$f":"SB18b!D18","v":0},{"$f":"SB18b!E18","v":0},{"$f":"SB18b!F18","v":0},{"$f":"SB18b!G18","v":0},{"$f":"SB18b!H18","v":0},{"$f":"SB18b!I18","v":0},{"$f":"SB18b!J18","v":0},{"$f":"SB18b!K18","v":0},{"$f":"SB18b!L18","v":0},{"$f":"SB18b!M18","v":0}]
["Water Supply Infrastructure",null,{"$f":"SB18b!C28","v":0},{"$f":"SB18b!D28","v":0},{"$f":"SB18b!E28","v":0},{"$f":"SB18b!F28","v":0},{"$f":"SB18b!G28","v":0},{"$f":"SB18b!H28","v":0},{"$f":"SB18b!I28","v":0},{"$f":"SB18b!J28","v":0},{"$f":"SB18b!K28","v":0},{"$f":"SB18b!L28","v":0},{"$f":"SB18b!M28","v":0}]
["Sanitation Infrastructure",null,{"$f":"SB18b!C39","v":0},{"$f":"SB18b!D39","v":0},{"$f":"SB18b!E39","v":0},{"$f":"SB18b!F39","v":0},{"$f":"SB18b!G39","v":0},{"$f":"SB18b!H39","v":0},{"$f":"SB18b!I39","v":0},{"$f":"SB18b!J39","v":0},{"$f":"SB18b!K39","v":0},{"$f":"SB18b!L39","v":0},{"$f":"SB18b!M39","v":0}]
["Solid Waste Infrastructure",null,{"$f":"SB18b!C46","v":500000},{"$f":"SB18b!D46","v":0},{"$f":"SB18b!E46","v":0},{"$f":"SB18b!F46","v":0},{"$f":"SB18b!G46","v":0},{"$f":"SB18b!H46","v":0},{"$f":"SB18b!I46","v":-500000},{"$f":"SB18b!J46","v":-500000},{"$f":"SB18b!K46","v":0},{"$f":"SB18b!L46","v":209000},{"$f":"SB18b!M46","v":218405}]
["Rail Infrastructure",null,{"$f":"SB18b!C54","v":0},{"$f":"SB18b!D54","v":0},{"$f":"SB18b!E54","v":0},{"$f":"SB18b!F54","v":0},{"$f":"SB18b!G54","v":0},{"$f":"SB18b!H54","v":0},{"$f":"SB18b!I54","v":0},{"$f":"SB18b!J54","v":0},{"$f":"SB18b!K54","v":0},{"$f":"SB18b!L54","v":0},{"$f":"SB18b!M54","v":0}]
["Coastal Infrastructure",null,{"$f":"SB18b!C64","v":0},{"$f":"SB18b!D64","v":0},{"$f":"SB18b!E64","v":0},{"$f":"SB18b!F64","v":0},{"$f":"SB18b!G64","v":0},{"$f":"SB18b!H64","v":0},{"$f":"SB18b!I64","v":0},{"$f":"SB18b!J64","v":0},{"$f":"SB18b!K64","v":0},{"$f":"SB18b!L64","v":0},{"$f":"SB18b!M64","v":0}]
["Information and Communication Infrastructure",null,{"$f":"SB18b!C70","v":0},{"$f":"SB18b!D70","v":0},{"$f":"SB18b!E70","v":0},{"$f":"SB18b!F70","v":0},{"$f":"SB18b!G70","v":0},{"$f":"SB18b!H70","v":0},{"$f":"SB18b!I70","v":0},{"$f":"SB18b!J70","v":0},{"$f":"SB18b!K70","v":0},{"$f":"SB18b!L70","v":0},{"$f":"SB18b!M70","v":0}]
["Infrastructure",null,{"$f":"SUM(C40:C48)","v":500000},{"$f":"SUM(D40:D48)","v":0},0,0,0,0,-500000,-500000,0,209000,218405]
["Community Facilities",null,{"$f":"SB18b!C77","v":1000000},{"$f":"SB18b!D77","v":0},{"$f":"SB18b!E77","v":0},{"$f":"SB18b!F77","v":0},{"$f":"SB18b!G77","v":0},{"$f":"SB18b!H77","v":0},{"$f":"SB18b!I77","v":-1000000},{"$f":"SB18b!J77","v":-1000000},{"$f":"SB18b!K77","v":0},{"$f":"SB18b!L77","v":0},{"$f":"SB18b!M77","v":0}]
["Sport and Recreation Facilities",null,{"$f":"SB18b!C100","v":0},{"$f":"SB18b!D100","v":0},{"$f":"SB18b!E100","v":0},{"$f":"SB18b!F100","v":0},{"$f":"SB18b!G100","v":0},{"$f":"SB18b!H100","v":0},{"$f":"SB18b!I100","v":0},{"$f":"SB18b!J100","v":0},{"$f":"SB18b!K100","v":0},{"$f":"SB18b!L100","v":0},{"$f":"SB18b!M100","v":0}]
["Community Assets",null,{"$f":"SUM(C50:C51)","v":1000000},{"$f":"SUM(D50:D51)","v":0},0,0,0,0,-1000000,-1000000,0,0,0]
["Heritage Assets",null,{"$f":"SB18b!C105","v":0},{"$f":"SB18b!D105","v":0},{"$f":"SB18b!E105","v":0},{"$f":"SB18b!F105","v":0},{"$f":"SB18b!G105","v":0},{"$f":"SB18b!H105","v":0},{"$f":"SB18b!I105","v":0},{"$f":"SB18b!J105","v":0},{"$f":"SB18b!K105","v":0},{"$f":"SB18b!L105","v":0},{"$f":"SB18b!M105","v":0}]
["Revenue Generating",null,{"$f":"SB18b!C113","v":0},{"$f":"SB18b!D113","v":0},{"$f":"SB18b!E113","v":0},{"$f":"SB18b!F113","v":0},{"$f":"SB18b!G113","v":0},{"$f":"SB18b!H113","v":0},{"$f":"SB18b!I113","v":0},{"$f":"SB18b!J113","v":0},{"$f":"SB18b!K113","v":0},{"$f":"SB18b!L113","v":0},{"$f":"SB18b!M113","v":0}]
["Non-revenue Generating",null,{"$f":"SB18b!C116","v":0},{"$f":"SB18b!D116","v":0},{"$f":"SB18b!E116","v":0},{"$f":"SB18b!F116","v":0},{"$f":"SB18b!G116","v":0},{"$f":"SB18b!H116","v":0},{"$f":"SB18b!I116","v":0},{"$f":"SB18b!J116","v":0},{"$f":"SB18b!K116","v":0},{"$f":"SB18b!L116","v":0},{"$f":"SB18b!M116","v":0}]
["Investment properties",null,{"$f":"SUM(C54:C55)","v":0},{"$f":"SUM(D54:D55)","v":0},0,0,0,0,0,0,0,0,0]
["Operational Buildings",null,{"$f":"SB18b!C121","v":308195},{"$f":"SB18b!D121","v":0},{"$f":"SB18b!E121","v":0},{"$f":"SB18b!F121","v":0},{"$f":"SB18b!G121","v":0},{"$f":"SB18b!H121","v":0},{"$f":"SB18b!I121","v":0},{"$f":"SB18b!J121","v":0},{"$f":"SB18b!K121","v":308195},{"$f":"SB18b!L121","v":0},{"$f":"SB18b!M121","v":0}]
["Housing",null,{"$f":"SB18b!C133","v":0},{"$f":"SB18b!D133","v":0},{"$f":"SB18b!E133","v":0},{"$f":"SB18b!F133","v":0},{"$f":"SB18b!G133","v":0},{"$f":"SB18b!H133","v":0},{"$f":"SB18b!I133","v":0},{"$f":"SB18b!J133","v":0},{"$f":"SB18b!K133","v":0},{"$f":"SB18b!L133","v":0},{"$f":"SB18b!M133","v":0}]
["Other Assets",6,{"$f":"SUM(C57:C58)","v":308195},{"$f":"SUM(D57:D58)","v":0},0,0,0,0,0,0,308195,0,0]
["Biological or Cultivated Assets",null,{"$f":"SB18b!C138","v":0},{"$f":"SB18b!D138","v":0},{"$f":"SB18b!E138","v":0},{"$f":"SB18b!F138","v":0},{"$f":"SB18b!G138","v":0},{"$f":"SB18b!H138","v":0},{"$f":"SB18b!I138","v":0},{"$f":"SB18b!J138","v":0},{"$f":"SB18b!K138","v":0},{"$f":"SB18b!L138","v":0},{"$f":"SB18b!M138","v":0}]
["Servitudes",null,{"$f":"SB18b!C142","v":0},{"$f":"SB18b!D142","v":0},{"$f":"SB18b!E142","v":0},{"$f":"SB18b!F142","v":0},{"$f":"SB18b!G142","v":0},{"$f":"SB18b!H142","v":0},{"$f":"SB18b!I142","v":0},{"$f":"SB18b!J142","v":0},{"$f":"SB18b!K142","v":0},{"$f":"SB18b!L142","v":0},{"$f":"SB18b!M142","v":0}]
["Licences and Rights",null,{"$f":"SB18b!C143","v":0},{"$f":"SB18b!D143","v":0},{"$f":"SB18b!E143","v":0},{"$f":"SB18b!F143","v":0},{"$f":"SB18b!G143","v":0},{"$f":"SB18b!H143","v":0},{"$f":"SB18b!I143","v":0},{"$f":"SB18b!J143","v":0},{"$f":"SB18b!K143","v":0},{"$f":"SB18b!L143","v":0},{"$f":"SB18b!M143","v":0}]
["Intangible Assets",null,{"$f":"SUM(C61:C62)","v":0},{"$f":"SUM(D61:D62)","v":0},0,0,0,0,0,0,0,0,0]
["Computer Equipment",null,{"$f":"SB18b!C151","v":0},{"$f":"SB18b!D151","v":0},{"$f":"SB18b!E151","v":0},{"$f":"SB18b!F151","v":0},{"$f":"SB18b!G151","v":0},{"$f":"SB18b!H151","v":0},{"$f":"SB18b!I151","v":0},{"$f":"SB18b!J151","v":0},{"$f":"SB18b!K151","v":0},{"$f":"SB18b!L151","v":0},{"$f":"SB18b!M151","v":0}]
["Furniture and Office Equipment",null,{"$f":"SB18b!C154","v":0},{"$f":"SB18b!D154","v":0},{"$f":"SB18b!E154","v":0},{"$f":"SB18b!F154","v":0},{"$f":"SB18b!G154","v":0},{"$f":"SB18b!H154","v":0},{"$f":"SB18b!I154","v":0},{"$f":"SB18b!J154","v":0},{"$f":"SB18b!K154","v":0},{"$f":"SB18b!L154","v":0},{"$f":"SB18b!M154","v":0}]
["Machinery and Equipment",null,{"$f":"SB18b!C157","v":0},{"$f":"SB18b!D157","v":0},{"$f":"SB18b!E157","v":0},{"$f":"SB18b!F157","v":0},{"$f":"SB18b!G157","v":0},{"$f":"SB18b!H157","v":0},{"$f":"SB18b!I157","v":0},{"$f":"SB18b!J157","v":0},{"$f":"SB18b!K157","v":0},{"$f":"SB18b!L157","v":0},{"$f":"SB18b!M157","v":0}]
["Transport Assets",null,{"$f":"SB18b!C160","v":0},{"$f":"SB18b!D160","v":0},{"$f":"SB18b!E160","v":0},{"$f":"SB18b!F160","v":0},{"$f":"SB18b!G160","v":0},{"$f":"SB18b!H160","v":0},{"$f":"SB18b!I160","v":0},{"$f":"SB18b!J160","v":0},{"$f":"SB18b!K160","v":0},{"$f":"SB18b!L160","v":0},{"$f":"SB18b!M160","v":0}]
["Land",null,{"$f":"SB18b!C163","v":0},{"$f":"SB18b!D163","v":0},{"$f":"SB18b!E163","v":0},{"$f":"SB18b!F163","v":0},{"$f":"SB18b!G163","v":0},{"$f":"SB18b!H163","v":0},{"$f":"SB18b!I163","v":0},{"$f":"SB18b!J163","v":0},{"$f":"SB18b!K163","v":0},{"$f":"SB18b!L163","v":0},{"$f":"SB18b!M163","v":0}]
["Zoo's, Marine and Non-biological Animals",null,{"$f":"SB18b!C166","v":0},{"$f":"SB18b!D166","v":0},{"$f":"SB18b!E166","v":0},{"$f":"SB18b!F166","v":0},{"$f":"SB18b!G166","v":0},{"$f":"SB18b!H166","v":0},{"$f":"SB18b!I166","v":0},{"$f":"SB18b!J166","v":0},{"$f":"SB18b!K166","v":0},{"$f":"SB18b!L166","v":0},{"$f":"SB18b!M166","v":0}]
[]
["Total Upgrading of Existing Assets to be adjusted","2a",{"$f":"C81+C84+C85+C88+C91+C92+SUM(C95:C101)","v":0},{"$f":"D81+D84+D85+D88+D91+D92+SUM(D95:D101)","v":0},0,0,0,0,0,0,0,0,0]
["Roads Infrastructure",null,{"$f":"SB18e!C9","v":0},{"$f":"SB18e!D9","v":0},{"$f":"SB18e!E9","v":0},{"$f":"SB18e!F9","v":0},{"$f":"SB18e!G9","v":0},{"$f":"SB18e!H9","v":0},{"$f":"SB18e!I9","v":0},{"$f":"SB18e!J9","v":0},{"$f":"SB18e!K9","v":0},{"$f":"SB18e!L9","v":0},{"$f":"SB18e!M9","v":0}]
["Storm water Infrastructure",null,{"$f":"SB18e!C14","v":0},{"$f":"SB18e!D14","v":0},{"$f":"SB18e!E14","v":0},{"$f":"SB18e!F14","v":0},{"$f":"SB18e!G14","v":0},{"$f":"SB18e!H14","v":0},{"$f":"SB18e!I14","v":0},{"$f":"SB18e!J14","v":0},{"$f":"SB18e!K14","v":0},{"$f":"SB18e!L14","v":0},{"$f":"SB18e!M14","v":0}]
["Electrical Infrastructure",null,{"$f":"SB18e!C18","v":0},{"$f":"SB18e!D18","v":0},{"$f":"SB18e!E18","v":0},{"$f":"SB18e!F18","v":0},{"$f":"SB18e!G18","v":0},{"$f":"SB18e!H18","v":0},{"$f":"SB18e!I18","v":0},{"$f":"SB18e!J18","v":0},{"$f":"SB18e!K18","v":0},{"$f":"SB18e!L18","v":0},{"$f":"SB18e!M18","v":0}]
["Water Supply Infrastructure",null,{"$f":"SB18e!C28","v":0},{"$f":"SB18e!D28","v":0},{"$f":"SB18e!E28","v":0},{"$f":"SB18e!F28","v":0},{"$f":"SB18e!G28","v":0},{"$f":"SB18e!H28","v":0},{"$f":"SB18e!I28","v":0},{"$f":"SB18e!J28","v":0},{"$f":"SB18e!K28","v":0},{"$f":"SB18e!L28","v":0},{"$f":"SB18e!M28","v":0}]
["Sanitation Infrastructure",null,{"$f":"SB18e!C39","v":0},{"$f":"SB18e!D39","v":0},{"$f":"SB18e!E39","v":0},{"$f":"SB18e!F39","v":0},{"$f":"SB18e!G39","v":0},{"$f":"SB18e!H39","v":0},{"$f":"SB18e!I39","v":0},{"$f":"SB18e!J39","v":0},{"$f":"SB18e!K39","v":0},{"$f":"SB18e!L39","v":0},{"$f":"SB18e!M39","v":0}]
["Solid Waste Infrastructure",null,{"$f":"SB18e!C46","v":0},{"$f":"SB18e!D46","v":0},{"$f":"SB18e!E46","v":0},{"$f":"SB18e!F46","v":0},{"$f":"SB18e!G46","v":0},{"$f":"SB18e!H46","v":0},{"$f":"SB18e!I46","v":0},{"$f":"SB18e!J46","v":0},{"$f":"SB18e!K46","v":0},{"$f":"SB18e!L46","v":0},{"$f":"SB18e!M46","v":0}]
["Rail Infrastructure",null,{"$f":"SB18e!C54","v":0},{"$f":"SB18e!D54","v":0},{"$f":"SB18e!E54","v":0},{"$f":"SB18e!F54","v":0},{"$f":"SB18e!G54","v":0},{"$f":"SB18e!H54","v":0},{"$f":"SB18e!I54","v":0},{"$f":"SB18e!J54","v":0},{"$f":"SB18e!K54","v":0},{"$f":"SB18e!L54","v":0},{"$f":"SB18e!M54","v":0}]
["Coastal Infrastructure",null,{"$f":"SB18e!C64","v":0},{"$f":"SB18e!D64","v":0},{"$f":"SB18e!E64","v":0},{"$f":"SB18e!F64","v":0},{"$f":"SB18e!G64","v":0},{"$f":"SB18e!H64","v":0},{"$f":"SB18e!I64","v":0},{"$f":"SB18e!J64","v":0},{"$f":"SB18e!K64","v":0},{"$f":"SB18e!L64","v":0},{"$f":"SB18e!M64","v":0}]
["Information and Communication Infrastructure",null,{"$f":"SB18e!C70","v":0},{"$f":"SB18e!D70","v":0},{"$f":"SB18e!E70","v":0},{"$f":"SB18e!F70","v":0},{"$f":"SB18e!G70","v":0},{"$f":"SB18e!H70","v":0},{"$f":"SB18e!I70","v":0},{"$f":"SB18e!J70","v":0},{"$f":"SB18e!K70","v":0},{"$f":"SB18e!L70","v":0},{"$f":"SB18e!M70","v":0}]
["Infrastructure",null,{"$f":"SUM(C72:C80)","v":0},{"$f":"SUM(D72:D80)","v":0},0,0,0,0,0,0,0,0,0]
["Community Facilities",null,{"$f":"SB18e!C77","v":0},{"$f":"SB18e!D77","v":0},{"$f":"SB18e!E77","v":0},{"$f":"SB18e!F77","v":0},{"$f":"SB18e!G77","v":0},{"$f":"SB18e!H77","v":0},{"$f":"SB18e!I77","v":0},{"$f":"SB18e!J77","v":0},{"$f":"SB18e!K77","v":0},{"$f":"SB18e!L77","v":0},{"$f":"SB18e!M77","v":0}]
["Sport and Recreation Facilities",null,{"$f":"SB18e!C100","v":0},{"$f":"SB18e!D100","v":0},{"$f":"SB18e!E100","v":0},{"$f":"SB18e!F100","v":0},{"$f":"SB18e!G100","v":0},{"$f":"SB18e!H100","v":0},{"$f":"SB18e!I100","v":0},{"$f":"SB18e!J100","v":0},{"$f":"SB18e!K100","v":0},{"$f":"SB18e!L100","v":0},{"$f":"SB18e!M100","v":0}]
["Community Assets",null,{"$f":"SUM(C82:C83)","v":0},{"$f":"SUM(D82:D83)","v":0},0,0,0,0,0,0,0,0,0]
["Heritage Assets",null,{"$f":"SB18e!C105","v":0},{"$f":"SB18e!D105","v":0},{"$f":"SB18e!E105","v":0},{"$f":"SB18e!F105","v":0},{"$f":"SB18e!G105","v":0},{"$f":"SB18e!H105","v":0},{"$f":"SB18e!I105","v":0},{"$f":"SB18e!J105","v":0},{"$f":"SB18e!K105","v":0},{"$f":"SB18e!L105","v":0},{"$f":"SB18e!M105","v":0}]
["Revenue Generating",null,{"$f":"SB18e!C113","v":0},{"$f":"SB18e!D113","v":0},{"$f":"SB18e!E113","v":0},{"$f":"SB18e!F113","v":0},{"$f":"SB18e!G113","v":0},{"$f":"SB18e!H113","v":0},{"$f":"SB18e!I113","v":0},{"$f":"SB18e!J113","v":0},{"$f":"SB18e!K113","v":0},{"$f":"SB18e!L113","v":0},{"$f":"SB18e!M113","v":0}]
["Non-revenue Generating",null,{"$f":"SB18e!C116","v":0},{"$f":"SB18e!D116","v":0},{"$f":"SB18e!E116","v":0},{"$f":"SB18e!F116","v":0},{"$f":"SB18e!G116","v":0},{"$f":"SB18e!H116","v":0},{"$f":"SB18e!I116","v":0},{"$f":"SB18e!J116","v":0},{"$f":"SB18e!K116","v":0},{"$f":"SB18e!L116","v":0},{"$f":"SB18e!M116","v":0}]
["Investment properties",null,{"$f":"SUM(C86:C87)","v":0},{"$f":"SUM(D86:D87)","v":0},0,0,0,0,0,0,0,0,0]
["Operational Buildings",null,{"$f":"SB18e!C121","v":0},{"$f":"SB18e!D121","v":0},{"$f":"SB18e!E121","v":0},{"$f":"SB18e!F121","v":0},{"$f":"SB18e!G121","v":0},{"$f":"SB18e!H121","v":0},{"$f":"SB18e!I121","v":0},{"$f":"SB18e!J121","v":0},{"$f":"SB18e!K121","v":0},{"$f":"SB18e!L121","v":0},{"$f":"SB18e!M121","v":0}]
["Housing",null,{"$f":"SB18e!C133","v":0},{"$f":"SB18e!D133","v":0},{"$f":"SB18e!E133","v":0},{"$f":"SB18e!F133","v":0},{"$f":"SB18e!G133","v":0},{"$f":"SB18e!H133","v":0},{"$f":"SB18e!I133","v":0},{"$f":"SB18e!J133","v":0},{"$f":"SB18e!K133","v":0},{"$f":"SB18e!L133","v":0},{"$f":"SB18e!M133","v":0}]
["Other Assets",6,{"$f":"SUM(C89:C90)","v":0},{"$f":"SUM(D89:D90)","v":0},0,0,0,0,0,0,0,0,0]
["Biological or Cultivated Assets",null,{"$f":"SB18e!C138","v":0},{"$f":"SB18e!D138","v":0},{"$f":"SB18e!E138","v":0},{"$f":"SB18e!F138","v":0},{"$f":"SB18e!G138","v":0},{"$f":"SB18e!H138","v":0},{"$f":"SB18e!I138","v":0},{"$f":"SB18e!J138","v":0},{"$f":"SB18e!K138","v":0},{"$f":"SB18e!L138","v":0},{"$f":"SB18e!M138","v":0}]
["Servitudes",null,{"$f":"SB18e!C142","v":0},{"$f":"SB18e!D142","v":0},{"$f":"SB18e!E142","v":0},{"$f":"SB18e!F142","v":0},{"$f":"SB18e!G142","v":0},{"$f":"SB18e!H142","v":0},{"$f":"SB18e!I142","v":0},{"$f":"SB18e!J142","v":0},{"$f":"SB18e!K142","v":0},{"$f":"SB18e!L142","v":0},{"$f":"SB18e!M142","v":0}]
["Licences and Rights",null,{"$f":"SB18e!C143","v":0},{"$f":"SB18e!D143","v":0},{"$f":"SB18e!E143","v":0},{"$f":"SB18e!F143","v":0},{"$f":"SB18e!G143","v":0},{"$f":"SB18e!H143","v":0},{"$f":"SB18e!I143","v":0},{"$f":"SB18e!J143","v":0},{"$f":"SB18e!K143","v":0},{"$f":"SB18e!L143","v":0},{"$f":"SB18e!M143","v":0}]
["Intangible Assets",null,{"$f":"SUM(C93:C94)","v":0},{"$f":"SUM(D93:D94)","v":0},0,0,0,0,0,0,0,0,0]
["Computer Equipment",null,{"$f":"SB18e!C151","v":0},{"$f":"SB18e!D151","v":0},{"$f":"SB18e!E151","v":0},{"$f":"SB18e!F151","v":0},{"$f":"SB18e!G151","v":0},{"$f":"SB18e!H151","v":0},{"$f":"SB18e!I151","v":0},{"$f":"SB18e!J151","v":0},{"$f":"SB18e!K151","v":0},{"$f":"SB18e!L151","v":0},{"$f":"SB18e!M151","v":0}]
["Furniture and Office Equipment",null,{"$f":"SB18e!C154","v":0},{"$f":"SB18e!D154","v":0},{"$f":"SB18e!E154","v":0},{"$f":"SB18e!F154","v":0},{"$f":"SB18e!G154","v":0},{"$f":"SB18e!H154","v":0},{"$f":"SB18e!I154","v":0},{"$f":"SB18e!J154","v":0},{"$f":"SB18e!K154","v":0},{"$f":"SB18e!L154","v":0},{"$f":"SB18e!M154","v":0}]
["Machinery and Equipment",null,{"$f":"SB18e!C157","v":0},{"$f":"SB18e!D157","v":0},{"$f":"SB18e!E157","v":0},{"$f":"SB18e!F157","v":0},{"$f":"SB18e!G157","v":0},{"$f":"SB18e!H157","v":0},{"$f":"SB18e!I157","v":0},{"$f":"SB18e!J157","v":0},{"$f":"SB18e!K157","v":0},{"$f":"SB18e!L157","v":0},{"$f":"SB18e!M157","v":0}]
["Transport Assets",null,{"$f":"SB18e!C160","v":0},{"$f":"SB18e!D160","v":0},{"$f":"SB18e!E160","v":0},{"$f":"SB18e!F160","v":0},{"$f":"SB18e!G160","v":0},{"$f":"SB18e!H160","v":0},{"$f":"SB18e!I160","v":0},{"$f":"SB18e!J160","v":0},{"$f":"SB18e!K160","v":0},{"$f":"SB18e!L160","v":0},{"$f":"SB18e!M160","v":0}]
["Land",null,{"$f":"SB18e!C163","v":0},{"$f":"SB18e!D163","v":0},{"$f":"SB18e!E163","v":0},{"$f":"SB18e!F163","v":0},{"$f":"SB18e!G163","v":0},{"$f":"SB18e!H163","v":0},{"$f":"SB18e!I163","v":0},{"$f":"SB18e!J163","v":0},{"$f":"SB18e!K163","v":0},{"$f":"SB18e!L163","v":0},{"$f":"SB18e!M163","v":0}]
["Zoo's, Marine and Non-biological Animals",null,{"$f":"SB18e!C166","v":0},{"$f":"SB18e!D166","v":0},{"$f":"SB18e!E166","v":0},{"$f":"SB18e!F166","v":0},{"$f":"SB18e!G166","v":0},{"$f":"SB18e!H166","v":0},{"$f":"SB18e!I166","v":0},{"$f":"SB18e!J166","v":0},{"$f":"SB18e!K166","v":0},{"$f":"SB18e!L166","v":0},{"$f":"SB18e!M166","v":0}]
[]
["Total Capital Expenditure to be adjusted",4,{"$f":"C7+C39+C71","v":47208016},{"$f":"D7+D39+D71","v":0},0,0,0,0,6281731,6281731,53489747,54444500,56894505]
["Roads Infrastructure",null,30169521,0,0,0,0,0,1911731,1911731,32081252,35007500,36582838]
["Storm water Infrastructure",null,0,0,0,0,0,0,0,0,0,0,0]
["Electrical Infrastructure",null,0,0,0,0,0,0,3000000,3000000,3000000,4180000,4368100]
["Water Supply Infrastructure",null,0,0,0,0,0,0,0,0,0,0,0]
["Sanitation Infrastructure",null,0,0,0,0,0,0,0,0,0,0,0]
["Solid Waste Infrastructure",null,500000,0,0,0,0,0,-500000,-500000,0,209000,218405]
["Rail Infrastructure",null,0,0,0,0,0,0,0,0,0,0,0]
["Coastal Infrastructure",null,0,0,0,0,0,0,0,0,0,0,0]
["Information and Communication Infrastructure",null,0,0,0,0,0,0,0,0,0,0,0]
["Infrastructure",null,30669521,0,0,0,0,0,4411731,4411731,35081252,39396500,41169343]
["Community Facilities",null,11500000,0,0,0,0,0,2220000,2220000,13720000,9405000,9828225]
["Sport and Recreation Facilities",null,0,0,0,0,0,0,0,0,0,2090000,2184050]
["Community Assets",null,11500000,0,0,0,0,0,2220000,2220000,13720000,11495000,12012275]
["Heritage Assets",null,0,0,0,0,0,0,0,0,0,0,0]
["Revenue Generating",null,0,0,0,0,0,0,0,0,0,0,0]
["Non-revenue Generating",null,0,{"$f":"D23+D55+D87","v":0},0,0,0,0,0,0,0,0,0]
["Investment properties",null,{"$f":"C24+C56+C88","v":0},0,0,0,0,0,0,0,0,0,0]
["Operational Buildings",null,308195,0,0,0,0,0,0,0,308195,0,0]
["Housing",null,0,0,0,0,0,0,0,0,0,0,0]
["Other Assets",null,308195,0,0,0,0,0,0,0,308195,0,0]
["Biological or Cultivated Assets",null,0,0,0,0,0,0,0,0,0,0,0]
["Servitudes",null,0,0,0,0,0,0,0,0,0,0,0]
["Licences and Rights",null,1067800,0,0,0,0,0,-480000,-480000,587800,522500,546013]
["Intangible Assets",null,1067800,0,0,0,0,0,-480000,-480000,587800,522500,546013]
["Computer Equipment",null,300000,0,0,0,0,0,-150000,-150000,150000,209000,218405]
["Furniture and Office Equipment",null,522500,0,0,0,0,0,-222500,-222500,300000,522500,546013]
["Machinery and Equipment",null,2317500,0,0,0,0,0,-377500,-377500,1940000,1776500,1856443]
["Transport Assets",null,522500,0,0,0,0,0,880000,880000,1402500,522500,546013]
["Land",null,0,0,0,0,0,0,0,0,0,0,0]
["Zoo's, Marine and Non-biological Animals",null,0,0,0,0,0,0,0,0,0,0,0]
["TOTAL CAPITAL EXPENDITURE to be adjusted",4,{"$f":"C7+C39+C71","v":47208016},{"$f":"D7+D39+D71","v":0},0,0,0,0,6281731,6281731,53489747,54444500,56894505]
[]
["ASSET REGISTER SUMMARY - PPE (WDV)",5,{"$f":"C146+C149+C150+C153+C156+C157+SUM(C160:C166)","v":350101399},{"$f":"D146+D149+D150+D153+D156+D157+SUM(D160:D166)","v":0},0,0,0,0,7070933,7070933,357172332,392107545,410645161]
[{"$f":"+A8","v":"Roads Infrastructure"},null,{"$f":"SUMIFS(Sheet1!S71_OriginalBudget,Sheet1!S71_A9Code,$AC:$AC)+SUMIFS(Sheet1!S71_OriginalBudget,Sheet1!S71_WIPCode,$AC:$AC)+SUMIFS(Sheet1!S71_OriginalBudget,Sheet1!S71_WIPOpBalance,$AD:$AD)","v":30169521},{"$f":"SUMIFS(Sheet1!S71_SpecialAdjustedBudget,Sheet1!S71_A9Code,$AC:$AC)+SUMIFS(Sheet1!S71_SpecialAdjustedBudget,Sheet1!S71_WIPCode,$AC:$AC)+SUMIFS(Sheet1!S71_SpecialAdjustedBudget,Sheet1!S71_WIPOpBalance,$AD:$AD)","v":0},null,null,null,null,{"$f":"SUMIFS(Sheet1!S71_AdjustmentAmount,Sheet1!S71_A9Code,$AC:$AC)+SUMIFS(Sheet1!S71_AdjustmentAmount,Sheet1!S71_WIPCode,$AC:$AC)+SUMIFS(Sheet1!S71_AdjustmentAmount,Sheet1!S71_WIPOpBalance,$AD:$AD)","v":1911731},{"$f":"SUM(E137:I137)","v":1911731},{"$f":"IF(D137=0,C137+J137,D137+J137)","v":32081252},{"$f":"SUMIFS(Sheet1!S71_OY1AdjustedBudget,Sheet1!S71_A9Code,$AC:$AC)+SUMIFS(Sheet1!S71_OY1AdjustedBudget,Sheet1!S71_WIPCode,$AC:$AC)+SUMIFS(Sheet1!S71_OY1AdjustedBudget,Sheet1!S71_WIPOpBalance,$AD:$AD)","v":35007500},{"$f":"SUMIFS(Sheet1!S71_OY2AdjustedBudget,Sheet1!S71_A9Code,$AC:$AC)+SUMIFS(Sheet1!S71_OY2AdjustedBudget,Sheet1!S71_WIPCode,$AC:$AC)+SUMIFS(Sheet1!S71_OY2AdjustedBudget,Sheet1!S71_WIPOpBalance,$AD:$AD)","v":36582838},null,null,null,null,null,null,null,null,null,null,null,null,null,null,null,"0110","WIP"]
[{"$f":"+A9","v":"Storm water Infrastructure"},null,{"$f":"SUMIFS(Sheet1!S71_OriginalBudget,Sheet1!S71_A9Code,$AC:$AC)+SUMIFS(Sheet1!S71_OriginalBudget,Sheet1!S71_WIPCode,$AC:$AC)+SUMIFS(Sheet1!S71_OriginalBudget,Sheet1!S71_WIPOpBalance,$AD:$AD)","v":0},{"$f":"SUMIFS(Sheet1!S71_SpecialAdjustedBudget,Sheet1!S71_A9Code,$AC:$AC)+SUMIFS(Sheet1!S71_SpecialAdjustedBudget,Sheet1!S71_WIPCode,$AC:$AC)+SUMIFS(Sheet1!S71_SpecialAdjustedBudget,Sheet1!S71_WIPOpBalance,$AD:$AD)","v":0},null,null,null,null,{"$f":"SUMIFS(Sheet1!S71_AdjustmentAmount,Sheet1!S71_A9Code,$AC:$AC)+SUMIFS(Sheet1!S71_AdjustmentAmount,Sheet1!S71_WIPCode,$AC:$AC)+SUMIFS(Sheet1!S71_AdjustmentAmount,Sheet1!S71_WIPOpBalance,$AD:$AD)","v":0},0,{"$f":"IF(D138=0,C138+J138,D138+J138)","v":0},{"$f":"SUMIFS(Sheet1!S71_OY1AdjustedBudget,Sheet1!S71_A9Code,$AC:$AC)+SUMIFS(Sheet1!S71_OY1AdjustedBudget,Sheet1!S71_WIPCode,$AC:$AC)+SUMIFS(Sheet1!S71_OY1AdjustedBudget,Sheet1!S71_WIPOpBalance,$AD:$AD)","v":0},{"$f":"SUMIFS(Sheet1!S71_OY2AdjustedBudget,Sheet1!S71_A9Code,$AC:$AC)+SUMIFS(Sheet1!S71_OY2AdjustedBudget,Sheet1!S71_WIPCode,$AC:$AC)+SUMIFS(Sheet1!S71_OY2AdjustedBudget,Sheet1!S71_WIPOpBalance,$AD:$AD)","v":0},null,null,null,null,null,null,null,null,null,null,null,null,null,null,null,"0160","WIP"]
["Electrical Infrastructure",null,{"$f":"SUMIFS(Sheet1!S71_OriginalBudget,Sheet1!S71_A9Code,$AC:$AC)+SUMIFS(Sheet1!S71_OriginalBudget,Sheet1!S71_WIPCode,$AC:$AC)+SUMIFS(Sheet1!S71_OriginalBudget,Sheet1!S71_WIPOpBalance,$AD:$AD)","v":0},{"$f":"SUMIFS(Sheet1!S71_SpecialAdjustedBudget,Sheet1!S71_A9Code,$AC:$AC)+SUMIFS(Sheet1!S71_SpecialAdjustedBudget,Sheet1!S71_WIPCode,$AC:$AC)+SUMIFS(Sheet1!S71_SpecialAdjustedBudget,Sheet1!S71_WIPOpBalance,$AD:$AD)","v":0},null,null,null,null,{"$f":"SUMIFS(Sheet1!S71_AdjustmentAmount,Sheet1!S71_A9Code,$AC:$AC)+SUMIFS(Sheet1!S71_AdjustmentAmount,Sheet1!S71_WIPCode,$AC:$AC)+SUMIFS(Sheet1!S71_AdjustmentAmount,Sheet1!S71_WIPOpBalance,$AD:$AD)","v":3000000},3000000,{"$f":"IF(D139=0,C139+J139,D139+J139)","v":3000000},{"$f":"SUMIFS(Sheet1!S71_OY1AdjustedBudget,Sheet1!S71_A9Code,$AC:$AC)+SUMIFS(Sheet1!S71_OY1AdjustedBudget,Sheet1!S71_WIPCode,$AC:$AC)+SUMIFS(Sheet1!S71_OY1AdjustedBudget,Sheet1!S71_WIPOpBalance,$AD:$AD)","v":4180000},{"$f":"SUMIFS(Sheet1!S71_OY2AdjustedBudget,Sheet1!S71_A9Code,$AC:$AC)+SUMIFS(Sheet1!S71_OY2AdjustedBudget,Sheet1!S71_WIPCode,$AC:$AC)+SUMIFS(Sheet1!S71_OY2AdjustedBudget,Sheet1!S71_WIPOpBalance,$AD:$AD)","v":4368100},null,null,null,null,null,null,null,null,null,null,null,null,null,null,null,"0200","WIP"]
["Water Supply Infrastructure",null,{"$f":"SUMIFS(Sheet1!S71_OriginalBudget,Sheet1!S71_A9Code,$AC:$AC)+SUMIFS(Sheet1!S71_OriginalBudget,Sheet1!S71_WIPCode,$AC:$AC)+SUMIFS(Sheet1!S71_OriginalBudget,Sheet1!S71_WIPOpBalance,$AD:$AD)","v":0},{"$f":"SUMIFS(Sheet1!S71_SpecialAdjustedBudget,Sheet1!S71_A9Code,$AC:$AC)+SUMIFS(Sheet1!S71_SpecialAdjustedBudget,Sheet1!S71_WIPCode,$AC:$AC)+SUMIFS(Sheet1!S71_SpecialAdjustedBudget,Sheet1!S71_WIPOpBalance,$AD:$AD)","v":0},null,null,null,null,{"$f":"SUMIFS(Sheet1!S71_AdjustmentAmount,Sheet1!S71_A9Code,$AC:$AC)+SUMIFS(Sheet1!S71_AdjustmentAmount,Sheet1!S71_WIPCode,$AC:$AC)+SUMIFS(Sheet1!S71_AdjustmentAmount,Sheet1!S71_WIPOpBalance,$AD:$AD)","v":0},0,{"$f":"IF(D140=0,C140+J140,D140+J140)","v":0},{"$f":"SUMIFS(Sheet1!S71_OY1AdjustedBudget,Sheet1!S71_A9Code,$AC:$AC)+SUMIFS(Sheet1!S71_OY1AdjustedBudget,Sheet1!S71_WIPCode,$AC:$AC)+SUMIFS(Sheet1!S71_OY1AdjustedBudget,Sheet1!S71_WIPOpBalance,$AD:$AD)","v":0},{"$f":"SUMIFS(Sheet1!S71_OY2AdjustedBudget,Sheet1!S71_A9Code,$AC:$AC)+SUMIFS(Sheet1!S71_OY2AdjustedBudget,Sheet1!S71_WIPCode,$AC:$AC)+SUMIFS(Sheet1!S71_OY2AdjustedBudget,Sheet1!S71_WIPOpBalance,$AD:$AD)","v":0},null,null,null,null,null,null,null,null,null,null,null,null,null,null,null,"0300","WIP"]
["Sanitation Infrastructure",null,{"$f":"SUMIFS(Sheet1!S71_OriginalBudget,Sheet1!S71_A9Code,$AC:$AC)+SUMIFS(Sheet1!S71_OriginalBudget,Sheet1!S71_WIPCode,$AC:$AC)+SUMIFS(Sheet1!S71_OriginalBudget,Sheet1!S71_WIPOpBalance,$AD:$AD)","v":0},{"$f":"SUMIFS(Sheet1!S71_SpecialAdjustedBudget,Sheet1!S71_A9Code,$AC:$AC)+SUMIFS(Sheet1!S71_SpecialAdjustedBudget,Sheet1!S71_WIPCode,$AC:$AC)+SUMIFS(Sheet1!S71_SpecialAdjustedBudget,Sheet1!S71_WIPOpBalance,$AD:$AD)","v":0},null,null,null,null,{"$f":"SUMIFS(Sheet1!S71_AdjustmentAmount,Sheet1!S71_A9Code,$AC:$AC)+SUMIFS(Sheet1!S71_AdjustmentAmount,Sheet1!S71_WIPCode,$AC:$AC)+SUMIFS(Sheet1!S71_AdjustmentAmount,Sheet1!S71_WIPOpBalance,$AD:$AD)","v":0},0,{"$f":"IF(D141=0,C141+J141,D141+J141)","v":0},{"$f":"SUMIFS(Sheet1!S71_OY1AdjustedBudget,Sheet1!S71_A9Code,$AC:$AC)+SUMIFS(Sheet1!S71_OY1AdjustedBudget,Sheet1!S71_WIPCode,$AC:$AC)+SUMIFS(Sheet1!S71_OY1AdjustedBudget,Sheet1!S71_WIPOpBalance,$AD:$AD)","v":0},{"$f":"SUMIFS(Sheet1!S71_OY2AdjustedBudget,Sheet1!S71_A9Code,$AC:$AC)+SUMIFS(Sheet1!S71_OY2AdjustedBudget,Sheet1!S71_WIPCode,$AC:$AC)+SUMIFS(Sheet1!S71_OY2AdjustedBudget,Sheet1!S71_WIPOpBalance,$AD:$AD)","v":0},null,null,null,null,null,null,null,null,null,null,null,null,null,null,null,"0410","WIP"]
["Solid Waste Infrastructure",null,{"$f":"SUMIFS(Sheet1!S71_OriginalBudget,Sheet1!S71_A9Code,$AC:$AC)+SUMIFS(Sheet1!S71_OriginalBudget,Sheet1!S71_WIPCode,$AC:$AC)+SUMIFS(Sheet1!S71_OriginalBudget,Sheet1!S71_WIPOpBalance,$AD:$AD)","v":-489202},{"$f":"SUMIFS(Sheet1!S71_SpecialAdjustedBudget,Sheet1!S71_A9Code,$AC:$AC)+SUMIFS(Sheet1!S71_SpecialAdjustedBudget,Sheet1!S71_WIPCode,$AC:$AC)+SUMIFS(Sheet1!S71_SpecialAdjustedBudget,Sheet1!S71_WIPOpBalance,$AD:$AD)","v":0},null,null,null,null,{"$f":"SUMIFS(Sheet1!S71_AdjustmentAmount,Sheet1!S71_A9Code,$AC:$AC)+SUMIFS(Sheet1!S71_AdjustmentAmount,Sheet1!S71_WIPCode,$AC:$AC)+SUMIFS(Sheet1!S71_AdjustmentAmount,Sheet1!S71_WIPOpBalance,$AD:$AD)","v":289202},289202,-200000,{"$f":"SUMIFS(Sheet1!S71_OY1AdjustedBudget,Sheet1!S71_A9Code,$AC:$AC)+SUMIFS(Sheet1!S71_OY1AdjustedBudget,Sheet1!S71_WIPCode,$AC:$AC)+SUMIFS(Sheet1!S71_OY1AdjustedBudget,Sheet1!S71_WIPOpBalance,$AD:$AD)","v":-291000},{"$f":"SUMIFS(Sheet1!S71_OY2AdjustedBudget,Sheet1!S71_A9Code,$AC:$AC)+SUMIFS(Sheet1!S71_OY2AdjustedBudget,Sheet1!S71_WIPCode,$AC:$AC)+SUMIFS(Sheet1!S71_OY2AdjustedBudget,Sheet1!S71_WIPOpBalance,$AD:$AD)","v":-281595},null,null,null,null,null,null,null,null,null,null,null,null,null,null,null,"0480"]
["Rail Infrastructure",null,{"$f":"SUMIFS(Sheet1!S71_OriginalBudget,Sheet1!S71_A9Code,$AC:$AC)+SUMIFS(Sheet1!S71_OriginalBudget,Sheet1!S71_WIPCode,$AC:$AC)+SUMIFS(Sheet1!S71_OriginalBudget,Sheet1!S71_WIPOpBalance,$AD:$AD)","v":0},{"$f":"SUMIFS(Sheet1!S71_SpecialAdjustedBudget,Sheet1!S71_A9Code,$AC:$AC)+SUMIFS(Sheet1!S71_SpecialAdjustedBudget,Sheet1!S71_WIPCode,$AC:$AC)+SUMIFS(Sheet1!S71_SpecialAdjustedBudget,Sheet1!S71_WIPOpBalance,$AD:$AD)","v":0},null,null,null,null,{"$f":"SUMIFS(Sheet1!S71_AdjustmentAmount,Sheet1!S71_A9Code,$AC:$AC)+SUMIFS(Sheet1!S71_AdjustmentAmount,Sheet1!S71_WIPCode,$AC:$AC)+SUMIFS(Sheet1!S71_AdjustmentAmount,Sheet1!S71_WIPOpBalance,$AD:$AD)","v":0},0,0,{"$f":"SUMIFS(Sheet1!S71_OY1AdjustedBudget,Sheet1!S71_A9Code,$AC:$AC)+SUMIFS(Sheet1!S71_OY1AdjustedBudget,Sheet1!S71_WIPCode,$AC:$AC)+SUMIFS(Sheet1!S71_OY1AdjustedBudget,Sheet1!S71_WIPOpBalance,$AD:$AD)","v":0},{"$f":"SUMIFS(Sheet1!S71_OY2AdjustedBudget,Sheet1!S71_A9Code,$AC:$AC)+SUMIFS(Sheet1!S71_OY2AdjustedBudget,Sheet1!S71_WIPCode,$AC:$AC)+SUMIFS(Sheet1!S71_OY2AdjustedBudget,Sheet1!S71_WIPOpBalance,$AD:$AD)","v":0},null,null,null,null,null,null,null,null,null,null,null,null,null,null,null,"0560"]
["Coastal Infrastructure",null,{"$f":"SUMIFS(Sheet1!S71_OriginalBudget,Sheet1!S71_A9Code,$AC:$AC)+SUMIFS(Sheet1!S71_OriginalBudget,Sheet1!S71_WIPCode,$AC:$AC)+SUMIFS(Sheet1!S71_OriginalBudget,Sheet1!S71_WIPOpBalance,$AD:$AD)","v":0},{"$f":"SUMIFS(Sheet1!S71_SpecialAdjustedBudget,Sheet1!S71_A9Code,$AC:$AC)+SUMIFS(Sheet1!S71_SpecialAdjustedBudget,Sheet1!S71_WIPCode,$AC:$AC)+SUMIFS(Sheet1!S71_SpecialAdjustedBudget,Sheet1!S71_WIPOpBalance,$AD:$AD)","v":0},null,null,null,null,{"$f":"SUMIFS(Sheet1!S71_AdjustmentAmount,Sheet1!S71_A9Code,$AC:$AC)+SUMIFS(Sheet1!S71_AdjustmentAmount,Sheet1!S71_WIPCode,$AC:$AC)+SUMIFS(Sheet1!S71_AdjustmentAmount,Sheet1!S71_WIPOpBalance,$AD:$AD)","v":0},0,0,{"$f":"SUMIFS(Sheet1!S71_OY1AdjustedBudget,Sheet1!S71_A9Code,$AC:$AC)+SUMIFS(Sheet1!S71_OY1AdjustedBudget,Sheet1!S71_WIPCode,$AC:$AC)+SUMIFS(Sheet1!S71_OY1AdjustedBudget,Sheet1!S71_WIPOpBalance,$AD:$AD)","v":0},{"$f":"SUMIFS(Sheet1!S71_OY2AdjustedBudget,Sheet1!S71_A9Code,$AC:$AC)+SUMIFS(Sheet1!S71_OY2AdjustedBudget,Sheet1!S71_WIPCode,$AC:$AC)+SUMIFS(Sheet1!S71_OY2AdjustedBudget,Sheet1!S71_WIPOpBalance,$AD:$AD)","v":0},null,null,null,null,null,null,null,null,null,null,null,null,null,null,null,"0660"]
["Information and Communication Infrastructure",null,{"$f":"SUMIFS(Sheet1!S71_OriginalBudget,Sheet1!S71_A9Code,$AC:$AC)+SUMIFS(Sheet1!S71_OriginalBudget,Sheet1!S71_WIPCode,$AC:$AC)+SUMIFS(Sheet1!S71_OriginalBudget,Sheet1!S71_WIPOpBalance,$AD:$AD)","v":0},{"$f":"SUMIFS(Sheet1!S71_SpecialAdjustedBudget,Sheet1!S71_A9Code,$AC:$AC)+SUMIFS(Sheet1!S71_SpecialAdjustedBudget,Sheet1!S71_WIPCode,$AC:$AC)+SUMIFS(Sheet1!S71_SpecialAdjustedBudget,Sheet1!S71_WIPOpBalance,$AD:$AD)","v":0},null,null,null,null,{"$f":"SUMIFS(Sheet1!S71_AdjustmentAmount,Sheet1!S71_A9Code,$AC:$AC)+SUMIFS(Sheet1!S71_AdjustmentAmount,Sheet1!S71_WIPCode,$AC:$AC)+SUMIFS(Sheet1!S71_AdjustmentAmount,Sheet1!S71_WIPOpBalance,$AD:$AD)","v":0},0,0,{"$f":"SUMIFS(Sheet1!S71_OY1AdjustedBudget,Sheet1!S71_A9Code,$AC:$AC)+SUMIFS(Sheet1!S71_OY1AdjustedBudget,Sheet1!S71_WIPCode,$AC:$AC)+SUMIFS(Sheet1!S71_OY1AdjustedBudget,Sheet1!S71_WIPOpBalance,$AD:$AD)","v":0},{"$f":"SUMIFS(Sheet1!S71_OY2AdjustedBudget,Sheet1!S71_A9Code,$AC:$AC)+SUMIFS(Sheet1!S71_OY2AdjustedBudget,Sheet1!S71_WIPCode,$AC:$AC)+SUMIFS(Sheet1!S71_OY2AdjustedBudget,Sheet1!S71_WIPOpBalance,$AD:$AD)","v":0},null,null,null,null,null,null,null,null,null,null,null,null,null,null,null,"0720"]
["Infrastructure",null,{"$f":"SUM(C137:C145)","v":29680319},0,0,0,0,0,5200933,5200933,34881252,{"$f":"SUM(L137:L145)","v":38896500},{"$f":"SUM(M137:M145)","v":40669343}]
[]
[]
["Community Assets",null,{"$f":"SUMIFS(Sheet1!S71_OriginalBudget,Sheet1!S71_A9Code,$AC:$AC)+SUMIFS(Sheet1!S71_OriginalBudget,Sheet1!S71_WIPCode,$AC:$AC)+SUMIFS(Sheet1!S71_OriginalBudget,Sheet1!S71_WIPOpBalance,$AD:$AD)","v":11500000},{"$f":"SUMIFS(Sheet1!S71_SpecialAdjustedBudget,Sheet1!S71_A9Code,$AC:$AC)+SUMIFS(Sheet1!S71_SpecialAdjustedBudget,Sheet1!S71_WIPCode,$AC:$AC)+SUMIFS(Sheet1!S71_SpecialAdjustedBudget,Sheet1!S71_WIPOpBalance,$AD:$AD)","v":0},null,null,null,null,{"$f":"SUMIFS(Sheet1!S71_AdjustmentAmount,Sheet1!S71_A9Code,$AC:$AC)+SUMIFS(Sheet1!S71_AdjustmentAmount,Sheet1!S71_WIPCode,$AC:$AC)+SUMIFS(Sheet1!S71_AdjustmentAmount,Sheet1!S71_WIPOpBalance,$AD:$AD)","v":2220000},{"$f":"SUM(E149:I149)","v":2220000},{"$f":"IF(D149=0,C149+J149,D149+J149)","v":13720000},{"$f":"SUMIFS(Sheet1!S71_OY1AdjustedBudget,Sheet1!S71_A9Code,$AC:$AC)+SUMIFS(Sheet1!S71_OY1AdjustedBudget,Sheet1!S71_WIPCode,$AC:$AC)+SUMIFS(Sheet1!S71_OY1AdjustedBudget,Sheet1!S71_WIPOpBalance,$AD:$AD)","v":11495000},{"$f":"SUMIFS(Sheet1!S71_OY2AdjustedBudget,Sheet1!S71_A9Code,$AC:$AC)+SUMIFS(Sheet1!S71_OY2AdjustedBudget,Sheet1!S71_WIPCode,$AC:$AC)+SUMIFS(Sheet1!S71_OY2AdjustedBudget,Sheet1!S71_WIPOpBalance,$AD:$AD)","v":12012275},null,null,null,null,null,null,null,null,null,null,null,null,null,null,null,"0770"]
["Heritage Assets",null,{"$f":"SUMIFS(Sheet1!S71_OriginalBudget,Sheet1!S71_A9Code,$AC:$AC)+SUMIFS(Sheet1!S71_OriginalBudget,Sheet1!S71_WIPCode,$AC:$AC)+SUMIFS(Sheet1!S71_OriginalBudget,Sheet1!S71_WIPOpBalance,$AD:$AD)","v":0},{"$f":"SUMIFS(Sheet1!S71_SpecialAdjustedBudget,Sheet1!S71_A9Code,$AC:$AC)+SUMIFS(Sheet1!S71_SpecialAdjustedBudget,Sheet1!S71_WIPCode,$AC:$AC)+SUMIFS(Sheet1!S71_SpecialAdjustedBudget,Sheet1!S71_WIPOpBalance,$AD:$AD)","v":0},null,null,null,null,{"$f":"SUMIFS(Sheet1!S71_AdjustmentAmount,Sheet1!S71_A9Code,$AC:$AC)+SUMIFS(Sheet1!S71_AdjustmentAmount,Sheet1!S71_WIPCode,$AC:$AC)+SUMIFS(Sheet1!S71_AdjustmentAmount,Sheet1!S71_WIPOpBalance,$AD:$AD)","v":0},{"$f":"SUM(E150:I150)","v":0},0,{"$f":"SUMIFS(Sheet1!S71_OY1AdjustedBudget,Sheet1!S71_A9Code,$AC:$AC)+SUMIFS(Sheet1!S71_OY1AdjustedBudget,Sheet1!S71_WIPCode,$AC:$AC)+SUMIFS(Sheet1!S71_OY1AdjustedBudget,Sheet1!S71_WIPOpBalance,$AD:$AD)","v":0},{"$f":"SUMIFS(Sheet1!S71_OY2AdjustedBudget,Sheet1!S71_A9Code,$AC:$AC)+SUMIFS(Sheet1!S71_OY2AdjustedBudget,Sheet1!S71_WIPCode,$AC:$AC)+SUMIFS(Sheet1!S71_OY2AdjustedBudget,Sheet1!S71_WIPOpBalance,$AD:$AD)","v":0},null,null,null,null,null,null,null,null,null,null,null,null,null,null,null,"1050"]
[null,null,{"$f":"SUMIFS(Sheet1!S71_OriginalBudget,Sheet1!S71_A9Code,$AC:$AC)+SUMIFS(Sheet1!S71_OriginalBudget,Sheet1!S71_WIPCode,$AC:$AC)+SUMIFS(Sheet1!S71_OriginalBudget,Sheet1!S71_WIPOpBalance,$AD:$AD)","v":0},{"$f":"SUMIFS(Sheet1!S71_SpecialAdjustedBudget,Sheet1!S71_A9Code,$AC:$AC)+SUMIFS(Sheet1!S71_SpecialAdjustedBudget,Sheet1!S71_WIPCode,$AC:$AC)+SUMIFS(Sheet1!S71_SpecialAdjustedBudget,Sheet1!S71_WIPOpBalance,$AD:$AD)","v":0},null,null,null,null,{"$f":"SUMIFS(Sheet1!S71_AdjustmentAmount,Sheet1!S71_A9Code,$AC:$AC)+SUMIFS(Sheet1!S71_AdjustmentAmount,Sheet1!S71_WIPCode,$AC:$AC)+SUMIFS(Sheet1!S71_AdjustmentAmount,Sheet1!S71_WIPOpBalance,$AD:$AD)","v":0},null,null,{"$f":"SUMIFS(Sheet1!S71_OY1AdjustedBudget,Sheet1!S71_A9Code,$AC:$AC)+SUMIFS(Sheet1!S71_OY1AdjustedBudget,Sheet1!S71_WIPCode,$AC:$AC)+SUMIFS(Sheet1!S71_OY1AdjustedBudget,Sheet1!S71_WIPOpBalance,$AD:$AD)","v":0},{"$f":"SUMIFS(Sheet1!S71_OY2AdjustedBudget,Sheet1!S71_A9Code,$AC:$AC)+SUMIFS(Sheet1!S71_OY2AdjustedBudget,Sheet1!S71_WIPCode,$AC:$AC)+SUMIFS(Sheet1!S71_OY2AdjustedBudget,Sheet1!S71_WIPOpBalance,$AD:$AD)","v":0}]
[null,null,{"$f":"SUMIFS(Sheet1!S71_OriginalBudget,Sheet1!S71_A9Code,$AC:$AC)+SUMIFS(Sheet1!S71_OriginalBudget,Sheet1!S71_WIPCode,$AC:$AC)+SUMIFS(Sheet1!S71_OriginalBudget,Sheet1!S71_WIPOpBalance,$AD:$AD)","v":0},{"$f":"SUMIFS(Sheet1!S71_SpecialAdjustedBudget,Sheet1!S71_A9Code,$AC:$AC)+SUMIFS(Sheet1!S71_SpecialAdjustedBudget,Sheet1!S71_WIPCode,$AC:$AC)+SUMIFS(Sheet1!S71_SpecialAdjustedBudget,Sheet1!S71_WIPOpBalance,$AD:$AD)","v":0},null,null,null,null,{"$f":"SUMIFS(Sheet1!S71_AdjustmentAmount,Sheet1!S71_A9Code,$AC:$AC)+SUMIFS(Sheet1!S71_AdjustmentAmount,Sheet1!S71_WIPCode,$AC:$AC)+SUMIFS(Sheet1!S71_AdjustmentAmount,Sheet1!S71_WIPOpBalance,$AD:$AD)","v":0},null,null,{"$f":"SUMIFS(Sheet1!S71_OY1AdjustedBudget,Sheet1!S71_A9Code,$AC:$AC)+SUMIFS(Sheet1!S71_OY1AdjustedBudget,Sheet1!S71_WIPCode,$AC:$AC)+SUMIFS(Sheet1!S71_OY1AdjustedBudget,Sheet1!S71_WIPOpBalance,$AD:$AD)","v":0},{"$f":"SUMIFS(Sheet1!S71_OY2AdjustedBudget,Sheet1!S71_A9Code,$AC:$AC)+SUMIFS(Sheet1!S71_OY2AdjustedBudget,Sheet1!S71_WIPCode,$AC:$AC)+SUMIFS(Sheet1!S71_OY2AdjustedBudget,Sheet1!S71_WIPOpBalance,$AD:$AD)","v":0}]
["Investment properties",null,{"$f":"SUMIFS(Sheet1!S71_OriginalBudget,Sheet1!S71_A9Code,$AC:$AC)+SUMIFS(Sheet1!S71_OriginalBudget,Sheet1!S71_WIPCode,$AC:$AC)+SUMIFS(Sheet1!S71_OriginalBudget,Sheet1!S71_WIPOpBalance,$AD:$AD)","v":0},{"$f":"SUMIFS(Sheet1!S71_SpecialAdjustedBudget,Sheet1!S71_A9Code,$AC:$AC)+SUMIFS(Sheet1!S71_SpecialAdjustedBudget,Sheet1!S71_WIPCode,$AC:$AC)+SUMIFS(Sheet1!S71_SpecialAdjustedBudget,Sheet1!S71_WIPOpBalance,$AD:$AD)","v":0},null,null,null,null,{"$f":"SUMIFS(Sheet1!S71_AdjustmentAmount,Sheet1!S71_A9Code,$AC:$AC)+SUMIFS(Sheet1!S71_AdjustmentAmount,Sheet1!S71_WIPCode,$AC:$AC)+SUMIFS(Sheet1!S71_AdjustmentAmount,Sheet1!S71_WIPOpBalance,$AD:$AD)","v":0},{"$f":"SUM(E153:I153)","v":0},{"$f":"IF(D153=0,C153+J153,D153+J153)","v":0},{"$f":"SUMIFS(Sheet1!S71_OY1AdjustedBudget,Sheet1!S71_A9Code,$AC:$AC)+SUMIFS(Sheet1!S71_OY1AdjustedBudget,Sheet1!S71_WIPCode,$AC:$AC)+SUMIFS(Sheet1!S71_OY1AdjustedBudget,Sheet1!S71_WIPOpBalance,$AD:$AD)","v":0},{"$f":"SUMIFS(Sheet1!S71_OY2AdjustedBudget,Sheet1!S71_A9Code,$AC:$AC)+SUMIFS(Sheet1!S71_OY2AdjustedBudget,Sheet1!S71_WIPCode,$AC:$AC)+SUMIFS(Sheet1!S71_OY2AdjustedBudget,Sheet1!S71_WIPOpBalance,$AD:$AD)","v":0},null,null,null,null,null,null,null,null,null,null,null,null,null,null,null,"1110"]
[null,null,{"$f":"SUMIFS(Sheet1!S71_OriginalBudget,Sheet1!S71_A9Code,$AC:$AC)+SUMIFS(Sheet1!S71_OriginalBudget,Sheet1!S71_WIPCode,$AC:$AC)+SUMIFS(Sheet1!S71_OriginalBudget,Sheet1!S71_WIPOpBalance,$AD:$AD)","v":0},{"$f":"SUMIFS(Sheet1!S71_SpecialAdjustedBudget,Sheet1!S71_A9Code,$AC:$AC)+SUMIFS(Sheet1!S71_SpecialAdjustedBudget,Sheet1!S71_WIPCode,$AC:$AC)+SUMIFS(Sheet1!S71_SpecialAdjustedBudget,Sheet1!S71_WIPOpBalance,$AD:$AD)","v":0},null,null,null,null,{"$f":"SUMIFS(Sheet1!S71_AdjustmentAmount,Sheet1!S71_A9Code,$AC:$AC)+SUMIFS(Sheet1!S71_AdjustmentAmount,Sheet1!S71_WIPCode,$AC:$AC)+SUMIFS(Sheet1!S71_AdjustmentAmount,Sheet1!S71_WIPOpBalance,$AD:$AD)","v":0},null,null,{"$f":"SUMIFS(Sheet1!S71_OY1AdjustedBudget,Sheet1!S71_A9Code,$AC:$AC)+SUMIFS(Sheet1!S71_OY1AdjustedBudget,Sheet1!S71_WIPCode,$AC:$AC)+SUMIFS(Sheet1!S71_OY1AdjustedBudget,Sheet1!S71_WIPOpBalance,$AD:$AD)","v":0},{"$f":"SUMIFS(Sheet1!S71_OY2AdjustedBudget,Sheet1!S71_A9Code,$AC:$AC)+SUMIFS(Sheet1!S71_OY2AdjustedBudget,Sheet1!S71_WIPCode,$AC:$AC)+SUMIFS(Sheet1!S71_OY2AdjustedBudget,Sheet1!S71_WIPOpBalance,$AD:$AD)","v":0}]
[null,null,{"$f":"SUMIFS(Sheet1!S71_OriginalBudget,Sheet1!S71_A9Code,$AC:$AC)+SUMIFS(Sheet1!S71_OriginalBudget,Sheet1!S71_WIPCode,$AC:$AC)+SUMIFS(Sheet1!S71_OriginalBudget,Sheet1!S71_WIPOpBalance,$AD:$AD)","v":0},{"$f":"SUMIFS(Sheet1!S71_SpecialAdjustedBudget,Sheet1!S71_A9Code,$AC:$AC)+SUMIFS(Sheet1!S71_SpecialAdjustedBudget,Sheet1!S71_WIPCode,$AC:$AC)+SUMIFS(Sheet1!S71_SpecialAdjustedBudget,Sheet1!S71_WIPOpBalance,$AD:$AD)","v":0},null,null,null,null,{"$f":"SUMIFS(Sheet1!S71_AdjustmentAmount,Sheet1!S71_A9Code,$AC:$AC)+SUMIFS(Sheet1!S71_AdjustmentAmount,Sheet1!S71_WIPCode,$AC:$AC)+SUMIFS(Sheet1!S71_AdjustmentAmount,Sheet1!S71_WIPOpBalance,$AD:$AD)","v":0},null,null,{"$f":"SUMIFS(Sheet1!S71_OY1AdjustedBudget,Sheet1!S71_A9Code,$AC:$AC)+SUMIFS(Sheet1!S71_OY1AdjustedBudget,Sheet1!S71_WIPCode,$AC:$AC)+SUMIFS(Sheet1!S71_OY1AdjustedBudget,Sheet1!S71_WIPOpBalance,$AD:$AD)","v":0},{"$f":"SUMIFS(Sheet1!S71_OY2AdjustedBudget,Sheet1!S71_A9Code,$AC:$AC)+SUMIFS(Sheet1!S71_OY2AdjustedBudget,Sheet1!S71_WIPCode,$AC:$AC)+SUMIFS(Sheet1!S71_OY2AdjustedBudget,Sheet1!S71_WIPOpBalance,$AD:$AD)","v":0}]
["Other Assets",null,{"$f":"SUMIFS(Sheet1!S71_OriginalBudget,Sheet1!S71_A9Code,$AC:$AC)+SUMIFS(Sheet1!S71_OriginalBudget,Sheet1!S71_WIPCode,$AC:$AC)+SUMIFS(Sheet1!S71_OriginalBudget,Sheet1!S71_WIPOpBalance,$AD:$AD)","v":303797417},{"$f":"SUMIFS(Sheet1!S71_SpecialAdjustedBudget,Sheet1!S71_A9Code,$AC:$AC)+SUMIFS(Sheet1!S71_SpecialAdjustedBudget,Sheet1!S71_WIPCode,$AC:$AC)+SUMIFS(Sheet1!S71_SpecialAdjustedBudget,Sheet1!S71_WIPOpBalance,$AD:$AD)","v":0},null,null,null,null,{"$f":"SUMIFS(Sheet1!S71_AdjustmentAmount,Sheet1!S71_A9Code,$AC:$AC)+SUMIFS(Sheet1!S71_AdjustmentAmount,Sheet1!S71_WIPCode,$AC:$AC)+SUMIFS(Sheet1!S71_AdjustmentAmount,Sheet1!S71_WIPOpBalance,$AD:$AD)","v":0},{"$f":"SUM(E156:I156)","v":0},{"$f":"IF(D156=0,C156+J156,D156+J156)","v":303797417},{"$f":"SUMIFS(Sheet1!S71_OY1AdjustedBudget,Sheet1!S71_A9Code,$AC:$AC)+SUMIFS(Sheet1!S71_OY1AdjustedBudget,Sheet1!S71_WIPCode,$AC:$AC)+SUMIFS(Sheet1!S71_OY1AdjustedBudget,Sheet1!S71_WIPOpBalance,$AD:$AD)","v":338016944},{"$f":"SUMIFS(Sheet1!S71_OY2AdjustedBudget,Sheet1!S71_A9Code,$AC:$AC)+SUMIFS(Sheet1!S71_OY2AdjustedBudget,Sheet1!S71_WIPCode,$AC:$AC)+SUMIFS(Sheet1!S71_OY2AdjustedBudget,Sheet1!S71_WIPOpBalance,$AD:$AD)","v":354663191},null,null,null,null,null,null,null,null,null,null,null,null,null,null,null,"1180"]
["Biological or Cultivated Assets",null,{"$f":"SUMIFS(Sheet1!S71_OriginalBudget,Sheet1!S71_A9Code,$AC:$AC)+SUMIFS(Sheet1!S71_OriginalBudget,Sheet1!S71_WIPCode,$AC:$AC)+SUMIFS(Sheet1!S71_OriginalBudget,Sheet1!S71_WIPOpBalance,$AD:$AD)","v":0},{"$f":"SUMIFS(Sheet1!S71_SpecialAdjustedBudget,Sheet1!S71_A9Code,$AC:$AC)+SUMIFS(Sheet1!S71_SpecialAdjustedBudget,Sheet1!S71_WIPCode,$AC:$AC)+SUMIFS(Sheet1!S71_SpecialAdjustedBudget,Sheet1!S71_WIPOpBalance,$AD:$AD)","v":0},null,null,null,null,{"$f":"SUMIFS(Sheet1!S71_AdjustmentAmount,Sheet1!S71_A9Code,$AC:$AC)+SUMIFS(Sheet1!S71_AdjustmentAmount,Sheet1!S71_WIPCode,$AC:$AC)+SUMIFS(Sheet1!S71_AdjustmentAmount,Sheet1!S71_WIPOpBalance,$AD:$AD)","v":0},{"$f":"SUM(E157:I157)","v":0},{"$f":"IF(D157=0,C157+J157,D157+J157)","v":0},{"$f":"SUMIFS(Sheet1!S71_OY1AdjustedBudget,Sheet1!S71_A9Code,$AC:$AC)+SUMIFS(Sheet1!S71_OY1AdjustedBudget,Sheet1!S71_WIPCode,$AC:$AC)+SUMIFS(Sheet1!S71_OY1AdjustedBudget,Sheet1!S71_WIPOpBalance,$AD:$AD)","v":0},{"$f":"SUMIFS(Sheet1!S71_OY2AdjustedBudget,Sheet1!S71_A9Code,$AC:$AC)+SUMIFS(Sheet1!S71_OY2AdjustedBudget,Sheet1!S71_WIPCode,$AC:$AC)+SUMIFS(Sheet1!S71_OY2AdjustedBudget,Sheet1!S71_WIPOpBalance,$AD:$AD)","v":0},null,null,null,null,null,null,null,null,null,null,null,null,null,null,null,"1360"]
[null,null,{"$f":"SUMIFS(Sheet1!S71_OriginalBudget,Sheet1!S71_A9Code,$AC:$AC)+SUMIFS(Sheet1!S71_OriginalBudget,Sheet1!S71_WIPCode,$AC:$AC)+SUMIFS(Sheet1!S71_OriginalBudget,Sheet1!S71_WIPOpBalance,$AD:$AD)","v":0},{"$f":"SUMIFS(Sheet1!S71_SpecialAdjustedBudget,Sheet1!S71_A9Code,$AC:$AC)+SUMIFS(Sheet1!S71_SpecialAdjustedBudget,Sheet1!S71_WIPCode,$AC:$AC)+SUMIFS(Sheet1!S71_SpecialAdjustedBudget,Sheet1!S71_WIPOpBalance,$AD:$AD)","v":0},null,null,null,null,{"$f":"SUMIFS(Sheet1!S71_AdjustmentAmount,Sheet1!S71_A9Code,$AC:$AC)+SUMIFS(Sheet1!S71_AdjustmentAmount,Sheet1!S71_WIPCode,$AC:$AC)+SUMIFS(Sheet1!S71_AdjustmentAmount,Sheet1!S71_WIPOpBalance,$AD:$AD)","v":0},null,null,{"$f":"SUMIFS(Sheet1!S71_OY1AdjustedBudget,Sheet1!S71_A9Code,$AC:$AC)+SUMIFS(Sheet1!S71_OY1AdjustedBudget,Sheet1!S71_WIPCode,$AC:$AC)+SUMIFS(Sheet1!S71_OY1AdjustedBudget,Sheet1!S71_WIPOpBalance,$AD:$AD)","v":0},{"$f":"SUMIFS(Sheet1!S71_OY2AdjustedBudget,Sheet1!S71_A9Code,$AC:$AC)+SUMIFS(Sheet1!S71_OY2AdjustedBudget,Sheet1!S71_WIPCode,$AC:$AC)+SUMIFS(Sheet1!S71_OY2AdjustedBudget,Sheet1!S71_WIPOpBalance,$AD:$AD)","v":0}]
[null,null,{"$f":"SUMIFS(Sheet1!S71_OriginalBudget,Sheet1!S71_A9Code,$AC:$AC)+SUMIFS(Sheet1!S71_OriginalBudget,Sheet1!S71_WIPCode,$AC:$AC)+SUMIFS(Sheet1!S71_OriginalBudget,Sheet1!S71_WIPOpBalance,$AD:$AD)","v":0},{"$f":"SUMIFS(Sheet1!S71_SpecialAdjustedBudget,Sheet1!S71_A9Code,$AC:$AC)+SUMIFS(Sheet1!S71_SpecialAdjustedBudget,Sheet1!S71_WIPCode,$AC:$AC)+SUMIFS(Sheet1!S71_SpecialAdjustedBudget,Sheet1!S71_WIPOpBalance,$AD:$AD)","v":0},null,null,null,null,{"$f":"SUMIFS(Sheet1!S71_AdjustmentAmount,Sheet1!S71_A9Code,$AC:$AC)+SUMIFS(Sheet1!S71_AdjustmentAmount,Sheet1!S71_WIPCode,$AC:$AC)+SUMIFS(Sheet1!S71_AdjustmentAmount,Sheet1!S71_WIPOpBalance,$AD:$AD)","v":0},null,null,{"$f":"SUMIFS(Sheet1!S71_OY1AdjustedBudget,Sheet1!S71_A9Code,$AC:$AC)+SUMIFS(Sheet1!S71_OY1AdjustedBudget,Sheet1!S71_WIPCode,$AC:$AC)+SUMIFS(Sheet1!S71_OY1AdjustedBudget,Sheet1!S71_WIPOpBalance,$AD:$AD)","v":0},{"$f":"SUMIFS(Sheet1!S71_OY2AdjustedBudget,Sheet1!S71_A9Code,$AC:$AC)+SUMIFS(Sheet1!S71_OY2AdjustedBudget,Sheet1!S71_WIPCode,$AC:$AC)+SUMIFS(Sheet1!S71_OY2AdjustedBudget,Sheet1!S71_WIPOpBalance,$AD:$AD)","v":0}]
["Intangible Assets",null,{"$f":"SUMIFS(Sheet1!S71_OriginalBudget,Sheet1!S71_A9Code,$AC:$AC)+SUMIFS(Sheet1!S71_OriginalBudget,Sheet1!S71_WIPCode,$AC:$AC)+SUMIFS(Sheet1!S71_OriginalBudget,Sheet1!S71_WIPOpBalance,$AD:$AD)","v":1461163},{"$f":"SUMIFS(Sheet1!S71_SpecialAdjustedBudget,Sheet1!S71_A9Code,$AC:$AC)+SUMIFS(Sheet1!S71_SpecialAdjustedBudget,Sheet1!S71_WIPCode,$AC:$AC)+SUMIFS(Sheet1!S71_SpecialAdjustedBudget,Sheet1!S71_WIPOpBalance,$AD:$AD)","v":0},null,null,null,null,{"$f":"SUMIFS(Sheet1!S71_AdjustmentAmount,Sheet1!S71_A9Code,$AC:$AC)+SUMIFS(Sheet1!S71_AdjustmentAmount,Sheet1!S71_WIPCode,$AC:$AC)+SUMIFS(Sheet1!S71_AdjustmentAmount,Sheet1!S71_WIPOpBalance,$AD:$AD)","v":-480000},{"$f":"SUM(E160:I160)","v":-480000},{"$f":"IF(D160=0,C160+J160,D160+J160)","v":981163},{"$f":"SUMIFS(Sheet1!S71_OY1AdjustedBudget,Sheet1!S71_A9Code,$AC:$AC)+SUMIFS(Sheet1!S71_OY1AdjustedBudget,Sheet1!S71_WIPCode,$AC:$AC)+SUMIFS(Sheet1!S71_OY1AdjustedBudget,Sheet1!S71_WIPOpBalance,$AD:$AD)","v":668601},{"$f":"SUMIFS(Sheet1!S71_OY2AdjustedBudget,Sheet1!S71_A9Code,$AC:$AC)+SUMIFS(Sheet1!S71_OY2AdjustedBudget,Sheet1!S71_WIPCode,$AC:$AC)+SUMIFS(Sheet1!S71_OY2AdjustedBudget,Sheet1!S71_WIPOpBalance,$AD:$AD)","v":133478},null,null,null,null,null,null,null,null,null,null,null,null,null,null,null,"1370"]
["Computer Equipment",null,{"$f":"SUMIFS(Sheet1!S71_OriginalBudget,Sheet1!S71_A9Code,$AC:$AC)+SUMIFS(Sheet1!S71_OriginalBudget,Sheet1!S71_WIPCode,$AC:$AC)+SUMIFS(Sheet1!S71_OriginalBudget,Sheet1!S71_WIPOpBalance,$AD:$AD)","v":300000},{"$f":"SUMIFS(Sheet1!S71_SpecialAdjustedBudget,Sheet1!S71_A9Code,$AC:$AC)+SUMIFS(Sheet1!S71_SpecialAdjustedBudget,Sheet1!S71_WIPCode,$AC:$AC)+SUMIFS(Sheet1!S71_SpecialAdjustedBudget,Sheet1!S71_WIPOpBalance,$AD:$AD)","v":0},null,null,null,null,{"$f":"SUMIFS(Sheet1!S71_AdjustmentAmount,Sheet1!S71_A9Code,$AC:$AC)+SUMIFS(Sheet1!S71_AdjustmentAmount,Sheet1!S71_WIPCode,$AC:$AC)+SUMIFS(Sheet1!S71_AdjustmentAmount,Sheet1!S71_WIPOpBalance,$AD:$AD)","v":-150000},{"$f":"SUM(E161:I161)","v":-150000},{"$f":"IF(D161=0,C161+J161,D161+J161)","v":150000},{"$f":"SUMIFS(Sheet1!S71_OY1AdjustedBudget,Sheet1!S71_A9Code,$AC:$AC)+SUMIFS(Sheet1!S71_OY1AdjustedBudget,Sheet1!S71_WIPCode,$AC:$AC)+SUMIFS(Sheet1!S71_OY1AdjustedBudget,Sheet1!S71_WIPOpBalance,$AD:$AD)","v":209000},{"$f":"SUMIFS(Sheet1!S71_OY2AdjustedBudget,Sheet1!S71_A9Code,$AC:$AC)+SUMIFS(Sheet1!S71_OY2AdjustedBudget,Sheet1!S71_WIPCode,$AC:$AC)+SUMIFS(Sheet1!S71_OY2AdjustedBudget,Sheet1!S71_WIPOpBalance,$AD:$AD)","v":218405},null,null,null,null,null,null,null,null,null,null,null,null,null,null,null,"1470"]
["Furniture and Office Equipment",null,{"$f":"SUMIFS(Sheet1!S71_OriginalBudget,Sheet1!S71_A9Code,$AC:$AC)+SUMIFS(Sheet1!S71_OriginalBudget,Sheet1!S71_WIPCode,$AC:$AC)+SUMIFS(Sheet1!S71_OriginalBudget,Sheet1!S71_WIPOpBalance,$AD:$AD)","v":522500},{"$f":"SUMIFS(Sheet1!S71_SpecialAdjustedBudget,Sheet1!S71_A9Code,$AC:$AC)+SUMIFS(Sheet1!S71_SpecialAdjustedBudget,Sheet1!S71_WIPCode,$AC:$AC)+SUMIFS(Sheet1!S71_SpecialAdjustedBudget,Sheet1!S71_WIPOpBalance,$AD:$AD)","v":0},null,null,null,null,{"$f":"SUMIFS(Sheet1!S71_AdjustmentAmount,Sheet1!S71_A9Code,$AC:$AC)+SUMIFS(Sheet1!S71_AdjustmentAmount,Sheet1!S71_WIPCode,$AC:$AC)+SUMIFS(Sheet1!S71_AdjustmentAmount,Sheet1!S71_WIPOpBalance,$AD:$AD)","v":-222500},-222500,300000,{"$f":"SUMIFS(Sheet1!S71_OY1AdjustedBudget,Sheet1!S71_A9Code,$AC:$AC)+SUMIFS(Sheet1!S71_OY1AdjustedBudget,Sheet1!S71_WIPCode,$AC:$AC)+SUMIFS(Sheet1!S71_OY1AdjustedBudget,Sheet1!S71_WIPOpBalance,$AD:$AD)","v":522500},{"$f":"SUMIFS(Sheet1!S71_OY2AdjustedBudget,Sheet1!S71_A9Code,$AC:$AC)+SUMIFS(Sheet1!S71_OY2AdjustedBudget,Sheet1!S71_WIPCode,$AC:$AC)+SUMIFS(Sheet1!S71_OY2AdjustedBudget,Sheet1!S71_WIPOpBalance,$AD:$AD)","v":546013},null,null,null,null,null,null,null,null,null,null,null,null,null,null,null,"1490"]
["Machinery and Equipment",null,{"$f":"SUMIFS(Sheet1!S71_OriginalBudget,Sheet1!S71_A9Code,$AC:$AC)+SUMIFS(Sheet1!S71_OriginalBudget,Sheet1!S71_WIPCode,$AC:$AC)+SUMIFS(Sheet1!S71_OriginalBudget,Sheet1!S71_WIPOpBalance,$AD:$AD)","v":2317500},{"$f":"SUMIFS(Sheet1!S71_SpecialAdjustedBudget,Sheet1!S71_A9Code,$AC:$AC)+SUMIFS(Sheet1!S71_SpecialAdjustedBudget,Sheet1!S71_WIPCode,$AC:$AC)+SUMIFS(Sheet1!S71_SpecialAdjustedBudget,Sheet1!S71_WIPOpBalance,$AD:$AD)","v":0},null,null,null,null,{"$f":"SUMIFS(Sheet1!S71_AdjustmentAmount,Sheet1!S71_A9Code,$AC:$AC)+SUMIFS(Sheet1!S71_AdjustmentAmount,Sheet1!S71_WIPCode,$AC:$AC)+SUMIFS(Sheet1!S71_AdjustmentAmount,Sheet1!S71_WIPOpBalance,$AD:$AD)","v":-377500},-377500,1940000,{"$f":"SUMIFS(Sheet1!S71_OY1AdjustedBudget,Sheet1!S71_A9Code,$AC:$AC)+SUMIFS(Sheet1!S71_OY1AdjustedBudget,Sheet1!S71_WIPCode,$AC:$AC)+SUMIFS(Sheet1!S71_OY1AdjustedBudget,Sheet1!S71_WIPOpBalance,$AD:$AD)","v":1776500},{"$f":"SUMIFS(Sheet1!S71_OY2AdjustedBudget,Sheet1!S71_A9Code,$AC:$AC)+SUMIFS(Sheet1!S71_OY2AdjustedBudget,Sheet1!S71_WIPCode,$AC:$AC)+SUMIFS(Sheet1!S71_OY2AdjustedBudget,Sheet1!S71_WIPOpBalance,$AD:$AD)","v":1856443},null,null,null,null,null,null,null,null,null,null,null,null,null,null,null,"1510"]
["Transport Assets",null,{"$f":"SUMIFS(Sheet1!S71_OriginalBudget,Sheet1!S71_A9Code,$AC:$AC)+SUMIFS(Sheet1!S71_OriginalBudget,Sheet1!S71_WIPCode,$AC:$AC)+SUMIFS(Sheet1!S71_OriginalBudget,Sheet1!S71_WIPOpBalance,$AD:$AD)","v":522500},{"$f":"SUMIFS(Sheet1!S71_SpecialAdjustedBudget,Sheet1!S71_A9Code,$AC:$AC)+SUMIFS(Sheet1!S71_SpecialAdjustedBudget,Sheet1!S71_WIPCode,$AC:$AC)+SUMIFS(Sheet1!S71_SpecialAdjustedBudget,Sheet1!S71_WIPOpBalance,$AD:$AD)","v":0},null,null,null,null,{"$f":"SUMIFS(Sheet1!S71_AdjustmentAmount,Sheet1!S71_A9Code,$AC:$AC)+SUMIFS(Sheet1!S71_AdjustmentAmount,Sheet1!S71_WIPCode,$AC:$AC)+SUMIFS(Sheet1!S71_AdjustmentAmount,Sheet1!S71_WIPOpBalance,$AD:$AD)","v":880000},880000,1402500,{"$f":"SUMIFS(Sheet1!S71_OY1AdjustedBudget,Sheet1!S71_A9Code,$AC:$AC)+SUMIFS(Sheet1!S71_OY1AdjustedBudget,Sheet1!S71_WIPCode,$AC:$AC)+SUMIFS(Sheet1!S71_OY1AdjustedBudget,Sheet1!S71_WIPOpBalance,$AD:$AD)","v":522500},{"$f":"SUMIFS(Sheet1!S71_OY2AdjustedBudget,Sheet1!S71_A9Code,$AC:$AC)+SUMIFS(Sheet1!S71_OY2AdjustedBudget,Sheet1!S71_WIPCode,$AC:$AC)+SUMIFS(Sheet1!S71_OY2AdjustedBudget,Sheet1!S71_WIPOpBalance,$AD:$AD)","v":546013},null,null,null,null,null,null,null,null,null,null,null,null,null,null,null,"1530"]
["Land",null,{"$f":"SUMIFS(Sheet1!S71_OriginalBudget,Sheet1!S71_A9Code,$AC:$AC)+SUMIFS(Sheet1!S71_OriginalBudget,Sheet1!S71_WIPCode,$AC:$AC)+SUMIFS(Sheet1!S71_OriginalBudget,Sheet1!S71_WIPOpBalance,$AD:$AD)","v":0},{"$f":"SUMIFS(Sheet1!S71_SpecialAdjustedBudget,Sheet1!S71_A9Code,$AC:$AC)+SUMIFS(Sheet1!S71_SpecialAdjustedBudget,Sheet1!S71_WIPCode,$AC:$AC)+SUMIFS(Sheet1!S71_SpecialAdjustedBudget,Sheet1!S71_WIPOpBalance,$AD:$AD)","v":0},null,null,null,null,{"$f":"SUMIFS(Sheet1!S71_AdjustmentAmount,Sheet1!S71_A9Code,$AC:$AC)+SUMIFS(Sheet1!S71_AdjustmentAmount,Sheet1!S71_WIPCode,$AC:$AC)+SUMIFS(Sheet1!S71_AdjustmentAmount,Sheet1!S71_WIPOpBalance,$AD:$AD)","v":0},0,0,{"$f":"SUMIFS(Sheet1!S71_OY1AdjustedBudget,Sheet1!S71_A9Code,$AC:$AC)+SUMIFS(Sheet1!S71_OY1AdjustedBudget,Sheet1!S71_WIPCode,$AC:$AC)+SUMIFS(Sheet1!S71_OY1AdjustedBudget,Sheet1!S71_WIPOpBalance,$AD:$AD)","v":0},{"$f":"SUMIFS(Sheet1!S71_OY2AdjustedBudget,Sheet1!S71_A9Code,$AC:$AC)+SUMIFS(Sheet1!S71_OY2AdjustedBudget,Sheet1!S71_WIPCode,$AC:$AC)+SUMIFS(Sheet1!S71_OY2AdjustedBudget,Sheet1!S71_WIPOpBalance,$AD:$AD)","v":0},null,null,null,null,null,null,null,null,null,null,null,null,null,null,null,"1550"]
["Zoo's, Marine and Non-biological Animals",null,{"$f":"SUMIFS(Sheet1!S71_OriginalBudget,Sheet1!S71_A9Code,$AC:$AC)+SUMIFS(Sheet1!S71_OriginalBudget,Sheet1!S71_WIPCode,$AC:$AC)+SUMIFS(Sheet1!S71_OriginalBudget,Sheet1!S71_WIPOpBalance,$AD:$AD)","v":0},{"$f":"SUMIFS(Sheet1!S71_SpecialAdjustedBudget,Sheet1!S71_A9Code,$AC:$AC)+SUMIFS(Sheet1!S71_SpecialAdjustedBudget,Sheet1!S71_WIPCode,$AC:$AC)+SUMIFS(Sheet1!S71_SpecialAdjustedBudget,Sheet1!S71_WIPOpBalance,$AD:$AD)","v":0},null,null,null,null,{"$f":"SUMIFS(Sheet1!S71_AdjustmentAmount,Sheet1!S71_A9Code,$AC:$AC)+SUMIFS(Sheet1!S71_AdjustmentAmount,Sheet1!S71_WIPCode,$AC:$AC)+SUMIFS(Sheet1!S71_AdjustmentAmount,Sheet1!S71_WIPOpBalance,$AD:$AD)","v":0},0,0,{"$f":"SUMIFS(Sheet1!S71_OY1AdjustedBudget,Sheet1!S71_A9Code,$AC:$AC)+SUMIFS(Sheet1!S71_OY1AdjustedBudget,Sheet1!S71_WIPCode,$AC:$AC)+SUMIFS(Sheet1!S71_OY1AdjustedBudget,Sheet1!S71_WIPOpBalance,$AD:$AD)","v":0},{"$f":"SUMIFS(Sheet1!S71_OY2AdjustedBudget,Sheet1!S71_A9Code,$AC:$AC)+SUMIFS(Sheet1!S71_OY2AdjustedBudget,Sheet1!S71_WIPCode,$AC:$AC)+SUMIFS(Sheet1!S71_OY2AdjustedBudget,Sheet1!S71_WIPOpBalance,$AD:$AD)","v":0},null,null,null,null,null,null,null,null,null,null,null,null,null,null,null,"1570"]
["TOTAL ASSET REGISTER SUMMARY - PPE (WDV)",5,{"$f":"C146+C149+C150+C153+C156+C157+SUM(C160:C166)","v":350101399},{"$f":"D146+D149+D150+D153+D156+D157+SUM(D160:D166)","v":0},0,0,0,0,7070933,7070933,357172332,392107545,410645161]
[]
["EXPENDITURE OTHER ITEMS"]
["Depreciation & asset impairment",null,{"$f":"SB18d!C169","v":23026560},{"$f":"SB18d!D169","v":0},{"$f":"SB18d!E169","v":0},{"$f":"SB18d!F169","v":0},{"$f":"SB18d!G169","v":0},{"$f":"SB18d!H169","v":0},{"$f":"SB18d!I169","v":1069430},{"$f":"SB18d!J169","v":1069430},{"$f":"SB18d!K169","v":24095990},{"$f":"SB18d!L169","v":30722184},{"$f":"SB18d!M169","v":33892913}]
["Repairs and Maintenance by asset class",3,{"$f":"C181+C184+C185+C188+C191+C192+SUM(C195:C201)","v":5679525},{"$f":"D181+D184+D185+D188+D191+D192+SUM(D195:D201)","v":0},{"$f":"E181+E184+E185+E188+E191+E192+SUM(E195:E201)","v":0},{"$f":"F181+F184+F185+F188+F191+F192+SUM(F195:F201)","v":0},0,0,1021144,1021144,6700669,{"$f":"L181+L184+L185+L188+L191+L192+SUM(L195:L201)","v":5687775},{"$f":"M181+M184+M185+M188+M191+M192+SUM(M195:M201)","v":5941475}]
[{"$f":"+A8","v":"Roads Infrastructure"},null,{"$f":"SB18c!C9","v":3657500},{"$f":"SB18c!D9","v":0},{"$f":"SB18c!E9","v":0},{"$f":"SB18c!F9","v":0},{"$f":"SB18c!G9","v":0},{"$f":"SB18c!H9","v":0},{"$f":"SB18c!I9","v":1257181},{"$f":"SB18c!J9","v":1257181},{"$f":"SB18c!K9","v":4914681},{"$f":"SB18c!L9","v":3657500},{"$f":"SB18c!M9","v":3822088}]
[{"$f":"+A9","v":"Storm water Infrastructure"},null,{"$f":"SB18c!C14","v":0},{"$f":"SB18c!D14","v":0},{"$f":"SB18c!E14","v":0},{"$f":"SB18c!F14","v":0},{"$f":"SB18c!G14","v":0},{"$f":"SB18c!H14","v":0},{"$f":"SB18c!I14","v":0},{"$f":"SB18c!J14","v":0},{"$f":"SB18c!K14","v":0},{"$f":"SB18c!L14","v":0},{"$f":"SB18c!M14","v":0}]
["Electrical Infrastructure",null,{"$f":"SB18c!C18","v":0},{"$f":"SB18c!D18","v":0},{"$f":"SB18c!E18","v":0},{"$f":"SB18c!F18","v":0},{"$f":"SB18c!G18","v":0},{"$f":"SB18c!H18","v":0},{"$f":"SB18c!I18","v":0},{"$f":"SB18c!J18","v":0},{"$f":"SB18c!K18","v":0},{"$f":"SB18c!L18","v":0},{"$f":"SB18c!M18","v":0}]
["Water Supply Infrastructure",null,{"$f":"SB18c!C28","v":0},{"$f":"SB18c!D28","v":0},{"$f":"SB18c!E28","v":0},{"$f":"SB18c!F28","v":0},{"$f":"SB18c!G28","v":0},{"$f":"SB18c!H28","v":0},{"$f":"SB18c!I28","v":0},{"$f":"SB18c!J28","v":0},{"$f":"SB18c!K28","v":0},{"$f":"SB18c!L28","v":0},{"$f":"SB18c!M28","v":0}]
["Sanitation Infrastructure",null,{"$f":"SB18c!C39","v":0},{"$f":"SB18c!D39","v":0},{"$f":"SB18c!E39","v":0},{"$f":"SB18c!F39","v":0},{"$f":"SB18c!G39","v":0},{"$f":"SB18c!H39","v":0},{"$f":"SB18c!I39","v":0},{"$f":"SB18c!J39","v":0},{"$f":"SB18c!K39","v":0},{"$f":"SB18c!L39","v":0},{"$f":"SB18c!M39","v":0}]
["Solid Waste Infrastructure",null,{"$f":"SB18c!C46","v":0},{"$f":"SB18c!D46","v":0},{"$f":"SB18c!E46","v":0},{"$f":"SB18c!F46","v":0},{"$f":"SB18c!G46","v":0},{"$f":"SB18c!H46","v":0},{"$f":"SB18c!I46","v":0},{"$f":"SB18c!J46","v":0},{"$f":"SB18c!K46","v":0},{"$f":"SB18c!L46","v":0},{"$f":"SB18c!M46","v":0}]
["Rail Infrastructure",null,{"$f":"SB18c!C54","v":0},{"$f":"SB18c!D54","v":0},{"$f":"SB18c!E54","v":0},{"$f":"SB18c!F54","v":0},{"$f":"SB18c!G54","v":0},{"$f":"SB18c!H54","v":0},{"$f":"SB18c!I54","v":0},{"$f":"SB18c!J54","v":0},{"$f":"SB18c!K54","v":0},{"$f":"SB18c!L54","v":0},{"$f":"SB18c!M54","v":0}]
["Coastal Infrastructure",null,{"$f":"SB18c!C64","v":0},{"$f":"SB18c!D64","v":0},{"$f":"SB18c!E64","v":0},{"$f":"SB18c!F64","v":0},{"$f":"SB18c!G64","v":0},{"$f":"SB18c!H64","v":0},{"$f":"SB18c!I64","v":0},{"$f":"SB18c!J64","v":0},{"$f":"SB18c!K64","v":0},{"$f":"SB18c!L64","v":0},{"$f":"SB18c!M64","v":0}]
["Information and Communication Infrastructure",null,{"$f":"SB18c!C70","v":0},{"$f":"SB18c!D70","v":0},{"$f":"SB18c!E70","v":0},{"$f":"SB18c!F70","v":0},{"$f":"SB18c!G70","v":0},{"$f":"SB18c!H70","v":0},{"$f":"SB18c!I70","v":0},{"$f":"SB18c!J70","v":0},{"$f":"SB18c!K70","v":0},{"$f":"SB18c!L70","v":0},{"$f":"SB18c!M70","v":0}]
["Infrastructure",null,{"$f":"SUM(C172:C180)","v":3657500},{"$f":"SUM(D172:D180)","v":0},0,0,0,0,1257181,1257181,4914681,3657500,3822088]
["Community Facilities",null,{"$f":"SB18c!C77","v":0},{"$f":"SB18c!D77","v":0},{"$f":"SB18c!E77","v":0},{"$f":"SB18c!F77","v":0},{"$f":"SB18c!G77","v":0},{"$f":"SB18c!H77","v":0},{"$f":"SB18c!I77","v":0},{"$f":"SB18c!J77","v":0},{"$f":"SB18c!K77","v":0},{"$f":"SB18c!L77","v":0},{"$f":"SB18c!M77","v":0}]
["Sport and Recreation Facilities",null,{"$f":"SB18c!C100","v":0},{"$f":"SB18c!D100","v":0},{"$f":"SB18c!E100","v":0},{"$f":"SB18c!F100","v":0},{"$f":"SB18c!G100","v":0},{"$f":"SB18c!H100","v":0},{"$f":"SB18c!I100","v":0},{"$f":"SB18c!J100","v":0},{"$f":"SB18c!K100","v":0},{"$f":"SB18c!L100","v":0},{"$f":"SB18c!M100","v":0}]
["Community Assets",null,{"$f":"SUM(C182:C183)","v":0},{"$f":"SUM(D182:D183)","v":0},0,0,0,0,0,0,0,0,0]
["Heritage Assets",null,{"$f":"SB18c!C105","v":0},{"$f":"SB18c!D105","v":0},{"$f":"SB18c!E105","v":0},{"$f":"SB18c!F105","v":0},{"$f":"SB18c!G105","v":0},{"$f":"SB18c!H105","v":0},{"$f":"SB18c!I105","v":0},{"$f":"SB18c!J105","v":0},{"$f":"SB18c!K105","v":0},{"$f":"SB18c!L105","v":0},{"$f":"SB18c!M105","v":0}]
["Revenue Generating",null,{"$f":"SB18c!C113","v":0},{"$f":"SB18c!D113","v":0},{"$f":"SB18c!E113","v":0},{"$f":"SB18c!F113","v":0},{"$f":"SB18c!G113","v":0},{"$f":"SB18c!H113","v":0},{"$f":"SB18c!I113","v":0},{"$f":"SB18c!J113","v":0},{"$f":"SB18c!K113","v":0},{"$f":"SB18c!L113","v":0},{"$f":"SB18c!M113","v":0}]
["Non-revenue Generating",null,{"$f":"SB18c!C116","v":0},{"$f":"SB18c!D116","v":0},{"$f":"SB18c!E116","v":0},{"$f":"SB18c!F116","v":0},{"$f":"SB18c!G116","v":0},{"$f":"SB18c!H116","v":0},{"$f":"SB18c!I116","v":0},{"$f":"SB18c!J116","v":0},{"$f":"SB18c!K116","v":0},{"$f":"SB18c!L116","v":0},{"$f":"SB18c!M116","v":0}]
["Investment properties",null,{"$f":"SUM(C186:C187)","v":0},{"$f":"SUM(D186:D187)","v":0},0,0,0,0,0,0,0,0,0]
["Operational Buildings",null,{"$f":"SB18c!C121","v":783750},{"$f":"SB18c!D121","v":0},{"$f":"SB18c!E121","v":0},{"$f":"SB18c!F121","v":0},{"$f":"SB18c!G121","v":0},{"$f":"SB18c!H121","v":0},{"$f":"SB18c!I121","v":270753},{"$f":"SB18c!J121","v":270753},{"$f":"SB18c!K121","v":1054503},{"$f":"SB18c!L121","v":1306250},{"$f":"SB18c!M121","v":1365031}]
["Housing",null,{"$f":"SB18c!C133","v":0},{"$f":"SB18c!D133","v":0},{"$f":"SB18c!E133","v":0},{"$f":"SB18c!F133","v":0},{"$f":"SB18c!G133","v":0},{"$f":"SB18c!H133","v":0},{"$f":"SB18c!I133","v":0},{"$f":"SB18c!J133","v":0},{"$f":"SB18c!K133","v":0},{"$f":"SB18c!L133","v":0},{"$f":"SB18c!M133","v":0}]
["Other Assets",null,{"$f":"SUM(C189:C190)","v":783750},{"$f":"SUM(D189:D190)","v":0},0,0,0,0,270753,270753,1054503,1306250,1365031]
["Biological or Cultivated Assets",null,{"$f":"SB18c!C138","v":0},{"$f":"SB18c!D138","v":0},{"$f":"SB18c!E138","v":0},{"$f":"SB18c!F138","v":0},{"$f":"SB18c!G138","v":0},{"$f":"SB18c!H138","v":0},{"$f":"SB18c!I138","v":0},{"$f":"SB18c!J138","v":0},{"$f":"SB18c!K138","v":0},{"$f":"SB18c!L138","v":0},{"$f":"SB18c!M138","v":0}]
["Servitudes",null,{"$f":"SB18c!C142","v":0},{"$f":"SB18c!D142","v":0},{"$f":"SB18c!E142","v":0},{"$f":"SB18c!F142","v":0},{"$f":"SB18c!G142","v":0},{"$f":"SB18c!H142","v":0},{"$f":"SB18c!I142","v":0},{"$f":"SB18c!J142","v":0},{"$f":"SB18c!K142","v":0},{"$f":"SB18c!L142","v":0},{"$f":"SB18c!M142","v":0}]
["Licences and Rights",null,{"$f":"SB18c!C143","v":0},{"$f":"SB18c!D143","v":0},{"$f":"SB18c!E143","v":0},{"$f":"SB18c!F143","v":0},{"$f":"SB18c!G143","v":0},{"$f":"SB18c!H143","v":0},{"$f":"SB18c!I143","v":0},{"$f":"SB18c!J143","v":0},{"$f":"SB18c!K143","v":0},{"$f":"SB18c!L143","v":0},{"$f":"SB18c!M143","v":0}]
["Intangible Assets",null,{"$f":"SUM(C193:C194)","v":0},{"$f":"SUM(D193:D194)","v":0},0,0,0,0,0,0,0,0,0]
["Computer Equipment",null,{"$f":"SB18c!C151","v":99275},{"$f":"SB18c!D151","v":0},{"$f":"SB18c!E151","v":0},{"$f":"SB18c!F151","v":0},{"$f":"SB18c!G151","v":0},{"$f":"SB18c!H151","v":0},{"$f":"SB18c!I151","v":0},{"$f":"SB18c!J151","v":0},{"$f":"SB18c!K151","v":99275},{"$f":"SB18c!L151","v":99275},{"$f":"SB18c!M151","v":103742}]
["Furniture and Office Equipment",null,{"$f":"SB18c!C154","v":0},{"$f":"SB18c!D154","v":0},{"$f":"SB18c!E154","v":0},{"$f":"SB18c!F154","v":0},{"$f":"SB18c!G154","v":0},{"$f":"SB18c!H154","v":0},{"$f":"SB18c!I154","v":0},{"$f":"SB18c!J154","v":0},{"$f":"SB18c!K154","v":0},{"$f":"SB18c!L154","v":0},{"$f":"SB18c!M154","v":0}]
["Machinery and Equipment",null,{"$f":"SB18c!C157","v":459750},{"$f":"SB18c!D157","v":0},{"$f":"SB18c!E157","v":0},{"$f":"SB18c!F157","v":0},{"$f":"SB18c!G157","v":0},{"$f":"SB18c!H157","v":0},{"$f":"SB18c!I157","v":0},{"$f":"SB18c!J157","v":0},{"$f":"SB18c!K157","v":459750},{"$f":"SB18c!L157","v":468000},{"$f":"SB18c!M157","v":486810}]
["Transport Assets",null,{"$f":"SB18c!C160","v":679250},{"$f":"SB18c!D160","v":0},{"$f":"SB18c!E160","v":0},{"$f":"SB18c!F160","v":0},{"$f":"SB18c!G160","v":0},{"$f":"SB18c!H160","v":0},{"$f":"SB18c!I160","v":-506790},{"$f":"SB18c!J160","v":-506790},{"$f":"SB18c!K160","v":172460},{"$f":"SB18c!L160","v":156750},{"$f":"SB18c!M160","v":163804}]
["Land",null,{"$f":"SB18c!C163","v":0},{"$f":"SB18c!D163","v":0},{"$f":"SB18c!E163","v":0},{"$f":"SB18c!F163","v":0},{"$f":"SB18c!G163","v":0},{"$f":"SB18c!H163","v":0},{"$f":"SB18c!I163","v":0},{"$f":"SB18c!J163","v":0},{"$f":"SB18c!K163","v":0},{"$f":"SB18c!L163","v":0},{"$f":"SB18c!M163","v":0}]
["Zoo's, Marine and Non-biological Animals",6,{"$f":"SB18c!C166","v":0},{"$f":"SB18c!D166","v":0},{"$f":"SB18c!E166","v":0},{"$f":"SB18c!F166","v":0},{"$f":"SB18c!G166","v":0},{"$f":"SB18c!H166","v":0},{"$f":"SB18c!I166","v":0},{"$f":"SB18c!J166","v":0},{"$f":"SB18c!K166","v":0},{"$f":"SB18c!L166","v":0},{"$f":"SB18c!M166","v":0}]
["TOTAL EXPENDITURE OTHER ITEMS to be adjusted",null,{"$f":"+C170+C171","v":28706085},{"$f":"+D170+D171","v":0},0,0,0,0,2090574,2090574,30796659,36409959,39834388]
[]
["Renewal and upgrading of Existing Assets as % of total capex",null,{"$f":"IF(ISERROR((C39+C71)/C134),0,((C39+C71)/C134))","v":3.8302711132787277E-2},{"$f":"IF(ISERROR((D39+D71)/D134),0,((D39+D71)/D134))","v":0},null,null,null,null,null,null,{"$f":"IF(ISERROR((K39+K71)/K134),0,((K39+K71)/K134))","v":5.7617584169915781E-3},{"$f":"IF(ISERROR((L39+L71)/L134),0,((L39+L71)/L134))","v":3.838771593090211E-3},{"$f":"IF(ISERROR((M39+M71)/M134),0,((M39+M71)/M134))","v":3.8387714244108458E-3}]
["Renewal and upgrading of Existing Assets as % of deprecn\"",null,{"$f":"IF(ISERROR((C39+C71)/C170),0,((C39+C71)/C170))","v":7.8526492884738314E-2},{"$f":"IF(ISERROR((D39+D71)/D170),0,((D39+D71)/D170))","v":0},null,null,null,null,null,null,{"$f":"IF(ISERROR((K39+K71)/K170),0,((K39+K71)/K170))","v":1.2790302452814763E-2},{"$f":"IF(ISERROR((L39+L71)/L170),0,((L39+L71)/L170))","v":6.8029017728687517E-3},{"$f":"IF(ISERROR((M39+M71)/M170),0,((M39+M71)/M170))","v":6.4439725201548776E-3}]
["R&M as a % of PPE",null,{"$f":"IF(ISERROR(C171/C167),0,(C171/C167))","v":1.6222514437881468E-2},{"$f":"IF(ISERROR(D171/D167),0,(D171/D167))","v":0},null,null,null,null,null,null,{"$f":"IF(ISERROR(K171/K167),0,(K171/K167))","v":1.8760324917888656E-2},{"$f":"IF(ISERROR(L171/L167),0,(L171/L167))","v":1.450565048423131E-2},{"$f":"IF(ISERROR(M171/M167),0,(M171/M167))","v":1.4468635124133364E-2}]
["Renewal and upgrading and R&M as a % of PPE",null,{"$f":"IF(ISERROR((C39+C71+C171)/C167),0,((C39+C71+C171)/C167))","v":2.138728957207052E-2},{"$f":"IF(ISERROR((D39+D71+D171)/D167),0,((D39+D71+D171)/D167))","v":0},null,null,null,null,null,null,{"$f":"IF(ISERROR((K39+K71+K171)/K167),0,((K39+K71+K171)/K167))","v":1.9623199705177612E-2},{"$f":"IF(ISERROR((L39+L71+L171)/L167),0,((L39+L71+L171)/L167))","v":1.5038667516586553E-2},{"$f":"IF(ISERROR((M39+M71+M171)/M167),0,((M39+M71+M171)/M167))","v":1.5000493333464607E-2}]
[]
[{"$f":"head27a","v":"References"}]
["1. Detail of new assets provided in Table SB18a"]
["2. Detail of renewal of existing assets provided in Table SB18b"]
["2a. Detail of upgrading of existing assets provided in Table SB18e"]
["3. Detail of Repairs and Maintenance by Asset Class provided in Table SB18c"]
["4. Must reconcile to total capital expenditure on Budgeted Capital Expenditure"]
["5. Must reconcile to Adjustments Budget Financial Position (written down value)"]
["6. Donated/contributed and assets funded by finance leases to be allocated to the respective category"]
["7. Only complete if a previous adjusted budget has been approved in the same financial year. Reflect most recent adjusted budget."]
["8. Additional cash-backed accumulated funds/unspent funds (MFMA section 18(1)(b) and section 28(2)(e)) identified after the Original Budget approved and after annual financial statements audited (note: only where underspending could not reasonably have been foreseen)"]
["9. Increases of funds approved under MFMA section 31"]
["10. Adjustments approved in accordance with MFMA section 29 "]
["11. Adjustments to transfers from National or Provincial Government"]
["12. Adjusts. = 'Other' Adjustments proposed to be approved; including revenue under-collection (MFMA section 28(2)(a)); additional revenue appropriation on existing programmes (section 28(2))(b); projected savings (section 28(2)(d)); error correction (section 28(2)(f))"]
["13. G = B + C + D + E + F"]
["14. Adjusted Budget H = (A or A1) + G"]
[]
[]
[null,"Asset register balance check",{"$f":"SUM('B6-FinPos'!C21:C24)-'B9-Asset'!C167","v":0},{"$f":"SUM('B6-FinPos'!D21:D24)-'B9-Asset'!D167","v":0},{"$f":"SUM('B6-FinPos'!E21:E24)-'B9-Asset'!E167","v":0},{"$f":"SUM('B6-FinPos'!F21:F24)-'B9-Asset'!F167","v":0},{"$f":"SUM('B6-FinPos'!G21:G24)-'B9-Asset'!G167","v":0},{"$f":"SUM('B6-FinPos'!H21:H24)-'B9-Asset'!H167","v":0},{"$f":"SUM('B6-FinPos'!I21:I24)-'B9-Asset'!I167","v":12500000},{"$f":"SUM('B6-FinPos'!J21:J24)-'B9-Asset'!J167","v":12500000},{"$f":"SUM('B6-FinPos'!K21:K24)-'B9-Asset'!K167","v":11518837},{"$f":"SUM('B6-FinPos'!L21:L24)-'B9-Asset'!L167","v":16720000},{"$f":"SUM('B6-FinPos'!M21:M24)-'B9-Asset'!M167","v":17472400}]

{"sheet":"B10-SerDel","index":36,"n_rows":99,"n_cols":13,"rows_kept":99,"cut":false,"hidden":false,"merged":[[95,0,95,12],[93,0,93,12],[1,0,4,0],[1,1,4,1],[1,2,1,10],[89,0,89,12],[88,0,88,12],[90,0,90,12],[91,0,91,12]]}
[{"$f":"muni&\" - \"&_ADJ10&\" - \"&Date","v":"EC139 Enoch Mgijima - Table B10 Basic service delivery measurement - "}]
[{"$f":"desc","v":"Description"},{"$f":"head27","v":"Ref"},{"$f":"Head2","v":"Budget Year 2021/22"},null,null,null,null,null,null,null,null,{"$f":"Head10","v":"Budget Year +1 2022/23"},{"$f":"Head11","v":"Budget Year +2 2023/24"}]
[null,null,{"$f":"Head6","v":"Original Budget"},{"$f":"Head54","v":"Prior Adjusted"},{"$f":"Head51","v":"Accum. Funds"},{"$f":"Head52","v":"Multi-year capital"},{"$f":"Head53","v":"Unfore. Unavoid."},{"$f":"Head55","v":"Nat. or Prov. Govt"},{"$f":"Head50","v":"Other Adjusts."},{"$f":"Head56","v":"Total Adjusts."},{"$f":"Head7","v":"Adjusted Budget"},{"$f":"Head7","v":"Adjusted Budget"},{"$f":"Head7","v":"Adjusted Budget"}]
[null,null,null,7,8,9,10,11,12,13,14]
[null,null,"A","A1","B","C","D","E","F","G","H"]
["Household service targets",1]
["Water:"]
["Piped water inside dwelling",null,null,null,null,null,null,null,null,{"$f":"SUM(E8:I8)","v":0},{"$f":"IF(D8=0,C8+J8,D8+J8)","v":0}]
["Piped water inside yard (but not in dwelling)",null,null,null,null,null,null,null,null,0,0]
["Using public tap (at least min.service level)",2,null,null,null,null,null,null,null,0,0]
["Other water supply (at least min.service level)",null,null,null,null,null,null,null,null,0,0]
["Minimum Service Level and Above sub-total",null,{"$f":"SUM(C8:C11)","v":0},0,0,0,0,0,0,0,0,0,0]
["Using public tap (< min.service level)",3,null,null,null,null,null,null,null,0,0]
["Other water supply (< min.service level)","3,4",null,null,null,null,null,null,null,0,0]
["No water supply",null,null,null,null,null,null,null,null,0,0]
["Below Minimum Servic Level sub-total",null,{"$f":"SUM(C13:C15)","v":0},0,0,0,0,0,0,0,0,0,0]
["Total number of households",5,{"$f":"C12+C16","v":0},0,0,0,0,0,0,0,0,0,0]
["Sanitation/sewerage:"]
["Flush toilet (connected to sewerage)",null,null,null,null,null,null,null,null,{"$f":"SUM(E19:I19)","v":0},{"$f":"IF(D19=0,C19+J19,D19+J19)","v":0}]
["Flush toilet (with septic tank)",null,null,null,null,null,null,null,null,0,0]
["Chemical toilet",null,null,null,null,null,null,null,null,0,0]
["Pit toilet (ventilated)",null,null,null,null,null,null,null,null,0,0]
["Other toilet provisions (> min.service level)",null,null,null,null,null,null,null,null,0,0]
[{"$f":"$A$12","v":"Minimum Service Level and Above sub-total"},null,{"$f":"SUM(C19:C23)","v":0},0,0,0,0,0,0,0,0,0,0]
["Bucket toilet",null,null,null,null,null,null,null,null,0,0]
["Other toilet provisions (< min.service level)",null,null,null,null,null,null,null,null,0,0]
["No toilet provisions",null,null,null,null,null,null,null,null,0,0]
[{"$f":"$A$16","v":"Below Minimum Servic Level sub-total"},null,{"$f":"SUM(C25:C27)","v":0},0,0,0,0,0,0,0,0,0,0]
[{"$f":"$A$17","v":"Total number of households"},{"$f":"$B$17","v":5},{"$f":"C24+C28","v":0},0,0,0,0,0,0,0,0,0,0]
["Energy:"]
["Electricity (at least min. service level)",null,null,null,null,null,null,null,null,{"$f":"SUM(E31:I31)","v":0},{"$f":"IF(D31=0,C31+J31,D31+J31)","v":0}]
["Electricity - prepaid (> min.service level)",null,null,null,null,null,null,null,null,0,0]
[{"$f":"$A$12","v":"Minimum Service Level and Above sub-total"},null,{"$f":"SUM(C31:C32)","v":0},0,0,0,0,0,0,0,0,0,0]
["Electricity (< min.service level)",null,null,null,null,null,null,null,null,0,0]
["Electricity - prepaid (< min. service level)",null,null,null,null,null,null,null,null,0,0]
["Other energy sources",null,null,null,null,null,null,null,null,0,0]
[{"$f":"$A$16","v":"Below Minimum Servic Level sub-total"},null,{"$f":"SUM(C34:C36)","v":0},0,0,0,0,0,0,0,0,0,0]
[{"$f":"$A$17","v":"Total number of households"},{"$f":"$B$17","v":5},{"$f":"C33+C37","v":0},0,0,0,0,0,0,0,0,0,0]
["Refuse:"]
["Removed at least once a week (min.service)",null,null,null,null,null,null,null,null,{"$f":"SUM(E40:I40)","v":0},{"$f":"IF(D40=0,C40+J40,D40+J40)","v":0}]
[{"$f":"$A$12","v":"Minimum Service Level and Above sub-total"},null,{"$f":"SUM(C40)","v":0},0,0,0,0,0,0,{"$f":"SUM(E41:I41)","v":0},0,{"$f":"SUM(L40)","v":0},{"$f":"SUM(M40)","v":0}]
["Removed less frequently than once a week",null,null,null,null,null,null,null,null,0,0]
["Using communal refuse dump",null,null,null,null,null,null,null,null,0,0]
["Using own refuse dump",null,null,null,null,null,null,null,null,0,0]
["Other rubbish disposal",null,null,null,null,null,null,null,null,0,0]
["No rubbish disposal",null,null,null,null,null,null,null,null,0,0]
[{"$f":"$A$16","v":"Below Minimum Servic Level sub-total"},null,{"$f":"SUM(C42:C46)","v":0},0,0,0,0,0,0,0,0,0,0]
[{"$f":"$A$17","v":"Total number of households"},{"$f":"$B$17","v":5},{"$f":"C41+C47","v":0},0,0,0,0,0,0,{"$f":"J40+J47","v":0},{"$f":"K40+K47","v":0},{"$f":"L41+L47","v":0},{"$f":"M41+M47","v":0}]
[]
["Households receiving Free Basic Service",15]
["Water (6 kilolitres per household per month)",null,{"$f":"'SB5'!E263","v":0},{"$f":"'SB5'!F263","v":0},{"$f":"'SB5'!G263","v":0},{"$f":"'SB5'!H263","v":0},{"$f":"'SB5'!I263","v":0},{"$f":"'SB5'!J263","v":0},{"$f":"'SB5'!K263","v":0},{"$f":"SUM(E51:I51)","v":0},{"$f":"IF(D51=0,C51+J51,D51+J51)","v":0},{"$f":"'SB5'!N263","v":0},{"$f":"'SB5'!O263","v":0}]
["Sanitation (free minimum level service)",null,{"$f":"'SB5'!E275","v":0},{"$f":"'SB5'!F275","v":0},{"$f":"'SB5'!G275","v":0},{"$f":"'SB5'!H275","v":0},{"$f":"'SB5'!I275","v":0},{"$f":"'SB5'!J275","v":0},{"$f":"'SB5'!K275","v":0},{"$f":"SUM(E52:I52)","v":0},{"$f":"IF(D52=0,C52+J52,D52+J52)","v":0},{"$f":"'SB5'!N275","v":0},{"$f":"'SB5'!O275","v":0}]
["Electricity/other energy (50kwh per household per month)",null,{"$f":"'SB5'!E251","v":0},{"$f":"'SB5'!F251","v":0},{"$f":"'SB5'!G251","v":0},{"$f":"'SB5'!H251","v":0},{"$f":"'SB5'!I251","v":0},{"$f":"'SB5'!J251","v":0},{"$f":"'SB5'!K251","v":0},{"$f":"SUM(E53:I53)","v":0},{"$f":"IF(D53=0,C53+J53,D53+J53)","v":0},{"$f":"'SB5'!N251","v":0},{"$f":"'SB5'!O251","v":0}]
["Refuse (removed at least once a week)",null,{"$f":"'SB5'!E287","v":0},{"$f":"'SB5'!F287","v":0},{"$f":"'SB5'!G287","v":0},{"$f":"'SB5'!H287","v":0},{"$f":"'SB5'!I287","v":0},{"$f":"'SB5'!J287","v":0},{"$f":"'SB5'!K287","v":0},{"$f":"SUM(E54:I54)","v":0},{"$f":"IF(D54=0,C54+J54,D54+J54)","v":0},{"$f":"'SB5'!N287","v":0},{"$f":"'SB5'!O287","v":0}]
[]
["Cost of Free Basic Services provided (R'000)",16," "]
["Water (6 kilolitres per indigent household per month)",null,{"$f":"'SB1'!C21","v":0},{"$f":"'SB1'!D21","v":0},{"$f":"'SB1'!E21","v":0},{"$f":"'SB1'!F21","v":0},{"$f":"'SB1'!G21","v":0},{"$f":"'SB1'!H21","v":0},{"$f":"'SB1'!I21","v":0},{"$f":"SUM(E57:I57)","v":0},{"$f":"IF(D57=0,C57+J57,D57+J57)","v":0},{"$f":"'SB1'!L21","v":0},{"$f":"'SB1'!M21","v":0}]
["Sanitation (free sanitation service to indigent households)",null,{"$f":"'SB1'!C27","v":0},{"$f":"'SB1'!D27","v":0},{"$f":"'SB1'!E27","v":0},{"$f":"'SB1'!F27","v":0},{"$f":"'SB1'!G27","v":0},{"$f":"'SB1'!H27","v":0},{"$f":"'SB1'!I27","v":0},{"$f":"SUM(E58:I58)","v":0},{"$f":"IF(D58=0,C58+J58,D58+J58)","v":0},{"$f":"'SB1'!L27","v":0},{"$f":"'SB1'!M27","v":0}]
["Electricity/other energy (50kwh per indigent household per month)",null,{"$f":"'SB1'!C15","v":0},{"$f":"'SB1'!D15","v":0},{"$f":"'SB1'!E15","v":0},{"$f":"'SB1'!F15","v":0},{"$f":"'SB1'!G15","v":0},{"$f":"'SB1'!H15","v":0},{"$f":"'SB1'!I15","v":0},{"$f":"SUM(E59:I59)","v":0},{"$f":"IF(D59=0,C59+J59,D59+J59)","v":0},{"$f":"'SB1'!L15","v":0},{"$f":"'SB1'!M15","v":0}]
["Refuse (removed once a week for indigent households)",null,{"$f":"'SB1'!C34","v":0},{"$f":"'SB1'!D34","v":0},{"$f":"'SB1'!E34","v":0},{"$f":"'SB1'!F34","v":0},{"$f":"'SB1'!G34","v":0},{"$f":"'SB1'!H34","v":0},{"$f":"'SB1'!I34","v":0},{"$f":"SUM(E60:I60)","v":0},{"$f":"IF(D60=0,C60+J60,D60+J60)","v":0},{"$f":"'SB1'!L34","v":0},{"$f":"'SB1'!M34","v":0}]
["Cost of Free Basic Services provided - Informal Formal Settlements (R'000)",null,{"$f":"'SB5'!E260+'SB5'!E272+'SB5'!E284+'SB5'!E296","v":0},{"$f":"'SB5'!F260+'SB5'!F272+'SB5'!F284+'SB5'!F296","v":0},{"$f":"'SB5'!G260+'SB5'!G272+'SB5'!G284+'SB5'!G296","v":0},{"$f":"'SB5'!H260+'SB5'!H272+'SB5'!H284+'SB5'!H296","v":0},{"$f":"'SB5'!I260+'SB5'!I272+'SB5'!I284+'SB5'!I296","v":0},{"$f":"'SB5'!J260+'SB5'!J272+'SB5'!J284+'SB5'!J296","v":0},{"$f":"'SB5'!K260+'SB5'!K272+'SB5'!K284+'SB5'!K296","v":0},{"$f":"SUM(E61:I61)","v":0},{"$f":"IF(D61=0,C61+J61,D61+J61)","v":0},{"$f":"'SB5'!N260+'SB5'!N272+'SB5'!N284+'SB5'!N296","v":0},{"$f":"'SB5'!O260+'SB5'!O272+'SB5'!O284+'SB5'!O296","v":0}]
["Total cost of FBS provided  ",null,{"$f":"SUM(C57:C61)","v":0},{"$f":"SUM(D57:D61)","v":0},0,0,0,0,0,0,0,0,0]
[]
["Highest level of free service provided"]
["Property rates (R'000 value threshold)",null,null,null,null,null,null,null,null,{"$f":"SUM(E65:I65)","v":0},{"$f":"IF(D65=0,C65+J65,D65+J65)","v":0}]
["Water (kilolitres per household per month)",null,null,null,null,null,null,null,null,0,0]
["Sanitation (kilolitres per household per month)",null,null,null,null,null,null,null,null,0,0]
["Sanitation (Rand per household per month)",null,null,null,null,null,null,null,null,0,0]
["Electricity (kw per household per month)",null,null,null,null,null,null,null,null,0,0]
["Refuse (average litres per week)",null,null,null,null,null,null,null,null,0,0]
["Revenue cost of free services provided (R'000)",17]
["Property rates (tariff adjustment) ( impermissable values per section 17 of MPRA)",null,null,null,null,null,null,null,null,{"$f":"SUM(E72:I72)","v":0},{"$f":"IF(D72=0,C72+J72,D72+J72)","v":0}]
["Property rates  exemptions, reductions and rebates and impermissable values in excess of section 17 of MPRA)",null,{"$f":"'SB1'!C9","v":2435621},{"$f":"'SB1'!D9","v":0},{"$f":"'SB1'!E9","v":0},{"$f":"'SB1'!F9","v":0},{"$f":"'SB1'!G9","v":0},{"$f":"'SB1'!H9","v":0},{"$f":"'SB1'!I9","v":0},0,2435621,{"$f":"'SB1'!L9","v":2542788},{"$f":"'SB1'!M9","v":2657214}]
["Water (in excess of 6 kilolitres per indigent household per month)",null,{"$f":"'SB1'!C20","v":0},{"$f":"'SB1'!D20","v":0},{"$f":"'SB1'!E20","v":0},{"$f":"'SB1'!F20","v":0},{"$f":"'SB1'!G20","v":0},{"$f":"'SB1'!H20","v":0},{"$f":"'SB1'!I20","v":0},0,0,{"$f":"'SB1'!L20","v":0},{"$f":"'SB1'!M20","v":0}]
["Sanitation (in excess of free sanitation service to indigent households)",null,{"$f":"'SB1'!C26","v":0},{"$f":"'SB1'!D26","v":0},{"$f":"'SB1'!E26","v":0},{"$f":"'SB1'!F26","v":0},{"$f":"'SB1'!G26","v":0},{"$f":"'SB1'!H26","v":0},{"$f":"'SB1'!I26","v":0},0,0,{"$f":"'SB1'!L26","v":0},{"$f":"'SB1'!M26","v":0}]
["Electricity/other energy (in excess of 50 kwh per indigent household per month)",null,{"$f":"'SB1'!C14","v":0},{"$f":"'SB1'!D14","v":0},{"$f":"'SB1'!E14","v":0},{"$f":"'SB1'!F14","v":0},{"$f":"'SB1'!G14","v":0},{"$f":"'SB1'!H14","v":0},{"$f":"'SB1'!I14","v":0},0,0,{"$f":"'SB1'!L14","v":0},{"$f":"'SB1'!M14","v":0}]
["Refuse (in excess of one removal a week for indigent households)",null,{"$f":"'SB1'!C33","v":0},{"$f":"'SB1'!D33","v":0},{"$f":"'SB1'!E33","v":0},{"$f":"'SB1'!F33","v":0},{"$f":"'SB1'!G33","v":0},{"$f":"'SB1'!H33","v":0},{"$f":"'SB1'!I33","v":0},0,0,{"$f":"'SB1'!L33","v":0},{"$f":"'SB1'!M33","v":0}]
["Municipal Housing - rental rebates",null,null,null,null,null,null,null,null,0,0]
["Housing - top structure subsidies",6,null,null,null,null,null,null,null,0,0]
["Other",null,null,null,null,null,null,null,null,0,0]
["Total revenue cost of subsidised services provided ",null,{"$f":"SUM(C72:C80)","v":2435621},0,0,0,0,0,0,0,2435621,2542788,2657214]
[{"$f":"head27a","v":"References"}]
["1. Include services provided by another entity; e.g. Eskom"]
["2. Stand distance > 200m from dwelling"]
["3. Stand distance <= 200m from dwelling"]
["4. Borehole, spring, rain-water tank etc."]
["5. Must agree to total number of households in municipal area"]
["6. Include value of subsidy provided by municipality above provincial subsidy level"]
["7. Only complete if a previous adjusted budget has been approved in the same financial year. Reflect most recent adjusted budget."]
["8. Additional cash-backed accumulated funds/unspent funds (MFMA section 18(1)(b) and section 28(2)(e)) identified after the Original Budget approved and after annual financial statements audited (note: only where underspending could not reasonably have been foreseen)"]
["9. Increases of funds approved under MFMA section 31"]
["10. Adjustments approved in accordance with MFMA section 29 "]
["11. Adjustments to transfers from National or Provincial Government"]
["12. Adjusts. = 'Other' Adjustments proposed to be approved; including revenue under-collection (MFMA section 28(2)(a)); additional revenue appropriation on existing programmes (section 28(2))(b); projected savings (section 28(2)(d)); error correction (section 28(2)(f))"]
["13. G = B + C + D + E + F"]
["14. Adjusted Budget H = (A or A1) + G"]
["15. Show number of households receiving at least these levels of services completely free"]
["16. Must reflect the cost to the municipality of providing the Free Basic Service"]
["17. Reflect the cost to the municipality in terms of 'revenue foregone' of providing free services (note this will not equal 'Revenue Foregone' on SA1)"]

{"sheet":"SB1","index":37,"n_rows":205,"n_cols":30,"rows_kept":205,"cut":false,"hidden":false,"merged":[[200,0,200,12],[1,0,3,0],[1,1,3,1],[1,2,1,10],[196,0,196,12]]}
[{"$f":"muni&\" - \"&ADJB1&\" - \"&Date","v":"EC139 Enoch Mgijima - Supporting Table SB1 Supporting detail to 'Budgeted Financial Performance' - "}]
[{"$f":"desc","v":"Description"},{"$f":"head27","v":"Ref"},{"$f":"Head2","v":"Budget Year 2021/22"},null,null,null,null,null,null,null,null,{"$f":"Head10","v":"Budget Year +1 2022/23"},{"$f":"Head11","v":"Budget Year +2 2023/24"}]
[null,null,{"$f":"Head6","v":"Original Budget"},{"$f":"Head54","v":"Prior Adjusted"},{"$f":"Head51","v":"Accum. Funds"},{"$f":"Head52","v":"Multi-year capital"},{"$f":"Head53","v":"Unfore. Unavoid."},{"$f":"Head55","v":"Nat. or Prov. Govt"},{"$f":"Head50","v":"Other Adjusts."},{"$f":"Head56","v":"Total Adjusts."},{"$f":"Head7","v":"Adjusted Budget"},{"$f":"Head7","v":"Adjusted Budget"},{"$f":"Head7","v":"Adjusted Budget"}]
[null,null,null,6,7,8,9,10,11,12,13]
["R thousands",null,"A","A1","B","C","D","E","F","G","H"]
["REVENUE ITEMS"]
["Property rates"]
["Total Property Rates",null,{"$f":"-SUMIFS(Sheet1!S71_OriginalBudget,Sheet1!S71_A4Code,$AC:$AC,Sheet1!S71_ProjectType,$AD:$AD)","v":20676181},{"$f":"-SUMIFS(Sheet1!S71_SpecialAdjustedBudget,Sheet1!S71_A4Code,$AC:$AC,Sheet1!S71_ProjectType,$AD:$AD)","v":0},null,null,null,null,{"$f":"SUMIFS(Sheet1!S71_AdjustmentAmount,Sheet1!S71_A4Code,$AC:$AC,Sheet1!S71_ProjectType,$AD:$AD)","v":2745080},{"$f":"SUM(E8:I8)","v":2745080},{"$f":"IF(D8=0,C8+J8,D8+J8)","v":23421261},{"$f":"-SUMIFS(Sheet1!S71_OY1AdjustedBudget,Sheet1!S71_A4Code,$AC:$AC,Sheet1!S71_ProjectType,$AD:$AD)","v":21668637},{"$f":"-SUMIFS(Sheet1!S71_OY2AdjustedBudget,Sheet1!S71_A4Code,$AC:$AC,Sheet1!S71_ProjectType,$AD:$AD)","v":22708732},null,null,null,null,null,null,null,null,null,null,null,null,null,null,null,"0200","D"]
["Less Revenue Foregone (exemptions, reductions and rebates and impermissable values in excess of section 17 of MPRA)",null,{"$f":"SUMIFS(Sheet1!S71_OriginalBudget,Sheet1!S71_A4Code,$AC:$AC,Sheet1!S71_ProjectType,$AD:$AD)","v":2435621},{"$f":"SUMIFS(Sheet1!S71_SpecialAdjustedBudget,Sheet1!S71_A4Code,$AC:$AC,Sheet1!S71_ProjectType,$AD:$AD)","v":0},null,null,null,null,{"$f":"SUMIFS(Sheet1!S71_AdjustmentAmount,Sheet1!S71_A4Code,$AC:$AC,Sheet1!S71_ProjectType,$AD:$AD)","v":0},{"$f":"SUM(E9:I9)","v":0},{"$f":"IF(D9=0,C9+J9,D9+J9)","v":2435621},{"$f":"SUMIFS(Sheet1!S71_OY1AdjustedBudget,Sheet1!S71_A4Code,$AC:$AC,Sheet1!S71_ProjectType,$AD:$AD)","v":2542788},{"$f":"SUMIFS(Sheet1!S71_OY2AdjustedBudget,Sheet1!S71_A4Code,$AC:$AC,Sheet1!S71_ProjectType,$AD:$AD)","v":2657214},null,null,null,null,null,null,null,null,null,null,null,null,null,null,null,"0200","O"]
["Net Property Rates",null,{"$f":"C8-C9","v":18240560},{"$f":"D8-D9","v":0},0,0,0,0,2745080,2745080,20985640,19125849,20051518]
[]
["Service charges - electricity revenue"]
["Total Service charges - electricity revenue",null,{"$f":"-SUMIFS(Sheet1!S71_OriginalBudget,Sheet1!S71_A4Code,$AC:$AC,Sheet1!S71_ProjectType,$AD:$AD)","v":0},{"$f":"-SUMIFS(Sheet1!S71_SpecialAdjustedBudget,Sheet1!S71_A4Code,$AC:$AC,Sheet1!S71_ProjectType,$AD:$AD)","v":0},null,null,null,null,{"$f":"SUMIFS(Sheet1!S71_AdjustmentAmount,Sheet1!S71_A4Code,$AC:$AC,Sheet1!S71_ProjectType,$AD:$AD)","v":0},{"$f":"SUM(E13:I13)","v":0},{"$f":"IF(D13=0,C13+J13,D13+J13)","v":0},{"$f":"-SUMIFS(Sheet1!S71_OY1AdjustedBudget,Sheet1!S71_A4Code,$AC:$AC,Sheet1!S71_ProjectType,$AD:$AD)","v":0},{"$f":"-SUMIFS(Sheet1!S71_OY2AdjustedBudget,Sheet1!S71_A4Code,$AC:$AC,Sheet1!S71_ProjectType,$AD:$AD)","v":0},null,null,null,null,null,null,null,null,null,null,null,null,null,null,null,"0300","D"]
["Less Revenue Foregone (in excess of 50 kwh per indigent household per month)",null,{"$f":"SUMIFS(Sheet1!S71_OriginalBudget,Sheet1!S71_A4Code,$AC:$AC,Sheet1!S71_ProjectType,$AD:$AD)","v":0},{"$f":"SUMIFS(Sheet1!S71_SpecialAdjustedBudget,Sheet1!S71_A4Code,$AC:$AC,Sheet1!S71_ProjectType,$AD:$AD)","v":0},null,null,null,null,{"$f":"SUMIFS(Sheet1!S71_AdjustmentAmount,Sheet1!S71_A4Code,$AC:$AC,Sheet1!S71_ProjectType,$AD:$AD)","v":0},{"$f":"SUM(E14:I14)","v":0},{"$f":"IF(D14=0,C14+J14,D14+J14)","v":0},{"$f":"SUMIFS(Sheet1!S71_OY1AdjustedBudget,Sheet1!S71_A4Code,$AC:$AC,Sheet1!S71_ProjectType,$AD:$AD)","v":0},{"$f":"SUMIFS(Sheet1!S71_OY2AdjustedBudget,Sheet1!S71_A4Code,$AC:$AC,Sheet1!S71_ProjectType,$AD:$AD)","v":0},null,null,null,null,null,null,null,null,null,null,null,null,null,null,null,"0300","O"]
["Less Cost of Free Basis Services (50 kwh per indigent household per month)",null,{"$f":"'SB5'!E250","v":0},{"$f":"'SB5'!F250","v":0},{"$f":"'SB5'!G250","v":0},{"$f":"'SB5'!H250","v":0},{"$f":"'SB5'!I250","v":0},{"$f":"'SB5'!J250","v":0},{"$f":"'SB5'!K250","v":0},{"$f":"SUM(E15:I15)","v":0},{"$f":"IF(D15=0,C15+J15,D15+J15)","v":0},{"$f":"'SB5'!N250","v":0},{"$f":"'SB5'!O250","v":0},null,null,null,null,null,null,null,null,null,null,null,null,null,null,null,"0300","O"]
["Net Service charges - electricity revenue",null,{"$f":"C13-C14-C15","v":0},{"$f":"D13-D14-D15","v":0},0,0,0,0,0,0,0,0,0]
[]
["Service charges - water revenue"]
["Total Service charges - water revenue",null,{"$f":"-SUMIFS(Sheet1!S71_OriginalBudget,Sheet1!S71_A4Code,$AC:$AC,Sheet1!S71_ProjectType,$AD:$AD)","v":0},{"$f":"-SUMIFS(Sheet1!S71_SpecialAdjustedBudget,Sheet1!S71_A4Code,$AC:$AC,Sheet1!S71_ProjectType,$AD:$AD)","v":0},null,null,null,null,{"$f":"SUMIFS(Sheet1!S71_AdjustmentAmount,Sheet1!S71_A4Code,$AC:$AC,Sheet1!S71_ProjectType,$AD:$AD)","v":0},{"$f":"SUM(E19:I19)","v":0},{"$f":"IF(D19=0,C19+J19,D19+J19)","v":0},{"$f":"-SUMIFS(Sheet1!S71_OY1AdjustedBudget,Sheet1!S71_A4Code,$AC:$AC,Sheet1!S71_ProjectType,$AD:$AD)","v":0},{"$f":"-SUMIFS(Sheet1!S71_OY2AdjustedBudget,Sheet1!S71_A4Code,$AC:$AC,Sheet1!S71_ProjectType,$AD:$AD)","v":0},null,null,null,null,null,null,null,null,null,null,null,null,null,null,null,"0400","D"]
["Less Revenue Foregone (in excess of 6 kilolitres per indigent household per month)",null,{"$f":"SUMIFS(Sheet1!S71_OriginalBudget,Sheet1!S71_A4Code,$AC:$AC,Sheet1!S71_ProjectType,$AD:$AD)","v":0},{"$f":"SUMIFS(Sheet1!S71_SpecialAdjustedBudget,Sheet1!S71_A4Code,$AC:$AC,Sheet1!S71_ProjectType,$AD:$AD)","v":0},null,null,null,null,{"$f":"SUMIFS(Sheet1!S71_AdjustmentAmount,Sheet1!S71_A4Code,$AC:$AC,Sheet1!S71_ProjectType,$AD:$AD)","v":0},{"$f":"SUM(E20:I20)","v":0},{"$f":"IF(D20=0,C20+J20,D20+J20)","v":0},{"$f":"SUMIFS(Sheet1!S71_OY1AdjustedBudget,Sheet1!S71_A4Code,$AC:$AC,Sheet1!S71_ProjectType,$AD:$AD)","v":0},{"$f":"SUMIFS(Sheet1!S71_OY2AdjustedBudget,Sheet1!S71_A4Code,$AC:$AC,Sheet1!S71_ProjectType,$AD:$AD)","v":0},null,null,null,null,null,null,null,null,null,null,null,null,null,null,null,"0400","O"]
["Less Cost of Free Basis Services (6 kilolitres per indigent household per month)",null,{"$f":"'SB5'!E262","v":0},{"$f":"'SB5'!F262","v":0},{"$f":"'SB5'!G262","v":0},{"$f":"'SB5'!H262","v":0},{"$f":"'SB5'!I262","v":0},{"$f":"'SB5'!J262","v":0},{"$f":"'SB5'!K262","v":0},{"$f":"SUM(E21:I21)","v":0},{"$f":"IF(D21=0,C21+J21,D21+J21)","v":0},{"$f":"'SB5'!N262","v":0},{"$f":"'SB5'!O262","v":0},null,null,null,null,null,null,null,null,null,null,null,null,null,null,null,"0400","O"]
["Net Service charges - water revenue",null,{"$f":"C19-C20-C21","v":0},{"$f":"D19-D20-D21","v":0},0,0,0,0,0,{"$f":"J19-J20-J21","v":0},0,0,0]
[]
["Service charges - sanitation revenue"]
["Total Service charges - sanitation revenue",null,{"$f":"-SUMIFS(Sheet1!S71_OriginalBudget,Sheet1!S71_A4Code,$AC:$AC,Sheet1!S71_ProjectType,$AD:$AD)","v":0},{"$f":"-SUMIFS(Sheet1!S71_SpecialAdjustedBudget,Sheet1!S71_A4Code,$AC:$AC,Sheet1!S71_ProjectType,$AD:$AD)","v":0},null,null,null,null,{"$f":"SUMIFS(Sheet1!S71_AdjustmentAmount,Sheet1!S71_A4Code,$AC:$AC,Sheet1!S71_ProjectType,$AD:$AD)","v":0},{"$f":"SUM(E25:I25)","v":0},{"$f":"IF(D25=0,C25+J25,D25+J25)","v":0},{"$f":"-SUMIFS(Sheet1!S71_OY1AdjustedBudget,Sheet1!S71_A4Code,$AC:$AC,Sheet1!S71_ProjectType,$AD:$AD)","v":0},{"$f":"-SUMIFS(Sheet1!S71_OY2AdjustedBudget,Sheet1!S71_A4Code,$AC:$AC,Sheet1!S71_ProjectType,$AD:$AD)","v":0},null,null,null,null,null,null,null,null,null,null,null,null,null,null,null,"0500","D"]
["Less Revenue Foregone (in excess of free sanitation service to indigent households)",null,{"$f":"SUMIFS(Sheet1!S71_OriginalBudget,Sheet1!S71_A4Code,$AC:$AC,Sheet1!S71_ProjectType,$AD:$AD)","v":0},{"$f":"SUMIFS(Sheet1!S71_SpecialAdjustedBudget,Sheet1!S71_A4Code,$AC:$AC,Sheet1!S71_ProjectType,$AD:$AD)","v":0},null,null,null,null,{"$f":"SUMIFS(Sheet1!S71_AdjustmentAmount,Sheet1!S71_A4Code,$AC:$AC,Sheet1!S71_ProjectType,$AD:$AD)","v":0},{"$f":"SUM(E26:I26)","v":0},{"$f":"IF(D26=0,C26+J26,D26+J26)","v":0},{"$f":"-SUMIFS(Sheet1!S71_OY1AdjustedBudget,Sheet1!S71_A4Code,$AC:$AC,Sheet1!S71_ProjectType,$AD:$AD)","v":0},{"$f":"-SUMIFS(Sheet1!S71_OY2AdjustedBudget,Sheet1!S71_A4Code,$AC:$AC,Sheet1!S71_ProjectType,$AD:$AD)","v":0},null,null,null,null,null,null,null,null,null,null,null,null,null,null,null,"0500","O"]
["Less Cost of Free Basis Services (free sanitation service to indigent households)",null,{"$f":"'SB5'!E274","v":0},{"$f":"'SB5'!F274","v":0},{"$f":"'SB5'!G274","v":0},{"$f":"'SB5'!H274","v":0},{"$f":"'SB5'!I274","v":0},{"$f":"'SB5'!J274","v":0},{"$f":"'SB5'!K274","v":0},{"$f":"SUM(E27:I27)","v":0},{"$f":"IF(D27=0,C27+J27,D27+J27)","v":0},{"$f":"'SB5'!N274","v":0},{"$f":"'SB5'!O274","v":0},null,null,null,null,null,null,null,null,null,null,null,null,null,null,null,"0500","O"]
["Net Service charges - sanitation revenue",null,{"$f":"C25-C26-C27","v":0},{"$f":"D25-D26-D27","v":0},0,0,0,0,0,0,0,0,0]
[null,null,"."]
["Service charges - refuse revenue"]
["Total refuse removal revenue",null,{"$f":"-SUMIFS(Sheet1!S71_OriginalBudget,Sheet1!S71_A4Code,$AC:$AC,Sheet1!S71_ProjectType,$AD:$AD)","v":208500},{"$f":"-SUMIFS(Sheet1!S71_SpecialAdjustedBudget,Sheet1!S71_A4Code,$AC:$AC,Sheet1!S71_ProjectType,$AD:$AD)","v":0},null,null,null,null,{"$f":"SUMIFS(Sheet1!S71_AdjustmentAmount,Sheet1!S71_A4Code,$AC:$AC,Sheet1!S71_ProjectType,$AD:$AD)","v":415860},{"$f":"SUM(E31:I31)","v":415860},{"$f":"IF(D31=0,C31+J31,D31+J31)","v":624360},{"$f":"-SUMIFS(Sheet1!S71_OY1AdjustedBudget,Sheet1!S71_A4Code,$AC:$AC,Sheet1!S71_ProjectType,$AD:$AD)","v":475011},{"$f":"-SUMIFS(Sheet1!S71_OY2AdjustedBudget,Sheet1!S71_A4Code,$AC:$AC,Sheet1!S71_ProjectType,$AD:$AD)","v":497811},null,null,null,null,null,null,null,null,null,null,null,null,null,null,null,"0600","D"]
["Total landfill revenue",null,{"$f":"-SUMIFS(Sheet1!S71_OriginalBudget,Sheet1!S71_A4Code,$AC:$AC,Sheet1!S71_ProjectType,$AD:$AD)","v":0},{"$f":"-SUMIFS(Sheet1!S71_SpecialAdjustedBudget,Sheet1!S71_A4Code,$AC:$AC,Sheet1!S71_ProjectType,$AD:$AD)","v":0},null,null,null,null,{"$f":"SUMIFS(Sheet1!S71_AdjustmentAmount,Sheet1!S71_A4Code,$AC:$AC,Sheet1!S71_ProjectType,$AD:$AD)","v":0},{"$f":"SUM(E32:I32)","v":0},{"$f":"IF(D32=0,C32+J32,D32+J32)","v":0},{"$f":"-SUMIFS(Sheet1!S71_OY1AdjustedBudget,Sheet1!S71_A4Code,$AC:$AC,Sheet1!S71_ProjectType,$AD:$AD)","v":0},{"$f":"-SUMIFS(Sheet1!S71_OY2AdjustedBudget,Sheet1!S71_A4Code,$AC:$AC,Sheet1!S71_ProjectType,$AD:$AD)","v":0},null,null,null,null,null,null,null,null,null,null,null,null,null,null,null,"0600","??"]
["Less Revenue Foregone (in excess of one removal a week to indigent households)",null,{"$f":"SUMIFS(Sheet1!S71_OriginalBudget,Sheet1!S71_A4Code,$AC:$AC,Sheet1!S71_ProjectType,$AD:$AD)","v":0},{"$f":"SUMIFS(Sheet1!S71_SpecialAdjustedBudget,Sheet1!S71_A4Code,$AC:$AC,Sheet1!S71_ProjectType,$AD:$AD)","v":0},null,null,null,null,{"$f":"SUMIFS(Sheet1!S71_AdjustmentAmount,Sheet1!S71_A4Code,$AC:$AC,Sheet1!S71_ProjectType,$AD:$AD)","v":0},{"$f":"SUM(E33:I33)","v":0},{"$f":"IF(D33=0,C33+J33,D33+J33)","v":0},{"$f":"-SUMIFS(Sheet1!S71_OY1AdjustedBudget,Sheet1!S71_A4Code,$AC:$AC,Sheet1!S71_ProjectType,$AD:$AD)","v":0},{"$f":"-SUMIFS(Sheet1!S71_OY2AdjustedBudget,Sheet1!S71_A4Code,$AC:$AC,Sheet1!S71_ProjectType,$AD:$AD)","v":0},null,null,null,null,null,null,null,null,null,null,null,null,null,null,null,"0600","O"]
["Less Cost of Free Basis Services  (removed once a week to indigent households)",null,{"$f":"'SB5'!E286","v":0},{"$f":"'SB5'!F286","v":0},{"$f":"'SB5'!G286","v":0},{"$f":"'SB5'!H286","v":0},{"$f":"'SB5'!I286","v":0},{"$f":"'SB5'!J286","v":0},{"$f":"'SB5'!K286","v":0},{"$f":"SUM(E34:I34)","v":0},{"$f":"IF(D34=0,C34+J34,D34+J34)","v":0},{"$f":"'SB5'!N286","v":0},{"$f":"'SB5'!O286","v":0},null,null,null,null,null,null,null,null,null,null,null,null,null,null,null,"0600","O"]
["Net Service charges - refuse revenue",null,{"$f":"SUM(C31:C32)-SUM(C33:C34)","v":208500},{"$f":"SUM(D31:D32)-SUM(D33:D34)","v":0},0,0,0,0,415860,415860,624360,475011,497811]
[]
["Other Revenue By Source"]
["Fuel Levy",null,{"$f":"-SUMIFS(Sheet1!S71_OriginalBudget,Sheet1!S71_A4SubCode,$AC:$AC)","v":0},{"$f":"-SUMIFS(Sheet1!S71_SpecialAdjustedBudget,Sheet1!S71_A4SubCode,$AC:$AC)","v":0},null,null,null,null,{"$f":"SUMIFS(Sheet1!S71_AdjustmentAmount,Sheet1!S71_A4SubCode,$AC:$AC)","v":0},{"$f":"SUM(E38:I38)","v":0},{"$f":"IF(D38=0,C38+J38,D38+J38)","v":0},{"$f":"-SUMIFS(Sheet1!S71_OY1AdjustedBudget,Sheet1!S71_A4SubCode,$AC:$AC)","v":0},{"$f":"-SUMIFS(Sheet1!S71_OY2AdjustedBudget,Sheet1!S71_A4SubCode,$AC:$AC)","v":0}]
["Administrative Handling Fees",null,{"$f":"-SUMIFS(Sheet1!S71_OriginalBudget,Sheet1!S71_A4SubCode,$AC:$AC)","v":0},{"$f":"-SUMIFS(Sheet1!S71_SpecialAdjustedBudget,Sheet1!S71_A4SubCode,$AC:$AC)","v":0},null,null,null,null,{"$f":"SUMIFS(Sheet1!S71_AdjustmentAmount,Sheet1!S71_A4SubCode,$AC:$AC)","v":0},{"$f":"SUM(E39:I39)","v":0},{"$f":"IF(D39=0,C39+J39,D39+J39)","v":0},{"$f":"-SUMIFS(Sheet1!S71_OY1AdjustedBudget,Sheet1!S71_A4SubCode,$AC:$AC)","v":0},{"$f":"-SUMIFS(Sheet1!S71_OY2AdjustedBudget,Sheet1!S71_A4SubCode,$AC:$AC)","v":0},null,null,null,null,null,null,null,null,null,null,null,null,null,null,null,"1601"]
["Bad Debts Recovered",null,{"$f":"-SUMIFS(Sheet1!S71_OriginalBudget,Sheet1!S71_A4SubCode,$AC:$AC)","v":0},{"$f":"-SUMIFS(Sheet1!S71_SpecialAdjustedBudget,Sheet1!S71_A4SubCode,$AC:$AC)","v":0},null,null,null,null,{"$f":"SUMIFS(Sheet1!S71_AdjustmentAmount,Sheet1!S71_A4SubCode,$AC:$AC)","v":0},0,0,{"$f":"-SUMIFS(Sheet1!S71_OY1AdjustedBudget,Sheet1!S71_A4SubCode,$AC:$AC)","v":0},{"$f":"-SUMIFS(Sheet1!S71_OY2AdjustedBudget,Sheet1!S71_A4SubCode,$AC:$AC)","v":0},null,null,null,null,null,null,null,null,null,null,null,null,null,null,null,"1602"]
["Breakages and Losses Recovered",null,{"$f":"-SUMIFS(Sheet1!S71_OriginalBudget,Sheet1!S71_A4SubCode,$AC:$AC)","v":0},{"$f":"-SUMIFS(Sheet1!S71_SpecialAdjustedBudget,Sheet1!S71_A4SubCode,$AC:$AC)","v":0},null,null,null,null,{"$f":"SUMIFS(Sheet1!S71_AdjustmentAmount,Sheet1!S71_A4SubCode,$AC:$AC)","v":0},0,0,{"$f":"-SUMIFS(Sheet1!S71_OY1AdjustedBudget,Sheet1!S71_A4SubCode,$AC:$AC)","v":0},{"$f":"-SUMIFS(Sheet1!S71_OY2AdjustedBudget,Sheet1!S71_A4SubCode,$AC:$AC)","v":0},null,null,null,null,null,null,null,null,null,null,null,null,null,null,null,"1603"]
["Collection Charges",null,{"$f":"-SUMIFS(Sheet1!S71_OriginalBudget,Sheet1!S71_A4SubCode,$AC:$AC)","v":0},{"$f":"-SUMIFS(Sheet1!S71_SpecialAdjustedBudget,Sheet1!S71_A4SubCode,$AC:$AC)","v":0},null,null,null,null,{"$f":"SUMIFS(Sheet1!S71_AdjustmentAmount,Sheet1!S71_A4SubCode,$AC:$AC)","v":0},0,0,{"$f":"-SUMIFS(Sheet1!S71_OY1AdjustedBudget,Sheet1!S71_A4SubCode,$AC:$AC)","v":0},{"$f":"-SUMIFS(Sheet1!S71_OY2AdjustedBudget,Sheet1!S71_A4SubCode,$AC:$AC)","v":0},null,null,null,null,null,null,null,null,null,null,null,null,null,null,null,"1604"]
["Commission",null,{"$f":"-SUMIFS(Sheet1!S71_OriginalBudget,Sheet1!S71_A4SubCode,$AC:$AC)","v":32322},{"$f":"-SUMIFS(Sheet1!S71_SpecialAdjustedBudget,Sheet1!S71_A4SubCode,$AC:$AC)","v":0},null,null,null,null,{"$f":"SUMIFS(Sheet1!S71_AdjustmentAmount,Sheet1!S71_A4SubCode,$AC:$AC)","v":167915},167915,200237,{"$f":"-SUMIFS(Sheet1!S71_OY1AdjustedBudget,Sheet1!S71_A4SubCode,$AC:$AC)","v":41867},{"$f":"-SUMIFS(Sheet1!S71_OY2AdjustedBudget,Sheet1!S71_A4SubCode,$AC:$AC)","v":43442},null,null,null,null,null,null,null,null,null,null,null,null,null,null,null,"1605"]
["Discounts and Early Settlements",null,{"$f":"-SUMIFS(Sheet1!S71_OriginalBudget,Sheet1!S71_A4SubCode,$AC:$AC)","v":0},{"$f":"-SUMIFS(Sheet1!S71_SpecialAdjustedBudget,Sheet1!S71_A4SubCode,$AC:$AC)","v":0},null,null,null,null,{"$f":"SUMIFS(Sheet1!S71_AdjustmentAmount,Sheet1!S71_A4SubCode,$AC:$AC)","v":0},0,0,{"$f":"-SUMIFS(Sheet1!S71_OY1AdjustedBudget,Sheet1!S71_A4SubCode,$AC:$AC)","v":0},{"$f":"-SUMIFS(Sheet1!S71_OY2AdjustedBudget,Sheet1!S71_A4SubCode,$AC:$AC)","v":0},null,null,null,null,null,null,null,null,null,null,null,null,null,null,null,"1606"]
["Incidental Cash Surpluses",null,{"$f":"-SUMIFS(Sheet1!S71_OriginalBudget,Sheet1!S71_A4SubCode,$AC:$AC)","v":0},{"$f":"-SUMIFS(Sheet1!S71_SpecialAdjustedBudget,Sheet1!S71_A4SubCode,$AC:$AC)","v":0},null,null,null,null,{"$f":"SUMIFS(Sheet1!S71_AdjustmentAmount,Sheet1!S71_A4SubCode,$AC:$AC)","v":0},0,0,{"$f":"-SUMIFS(Sheet1!S71_OY1AdjustedBudget,Sheet1!S71_A4SubCode,$AC:$AC)","v":0},{"$f":"-SUMIFS(Sheet1!S71_OY2AdjustedBudget,Sheet1!S71_A4SubCode,$AC:$AC)","v":0},null,null,null,null,null,null,null,null,null,null,null,null,null,null,null,"1607"]
["Inspection Fees",null,{"$f":"-SUMIFS(Sheet1!S71_OriginalBudget,Sheet1!S71_A4SubCode,$AC:$AC)","v":0},{"$f":"-SUMIFS(Sheet1!S71_SpecialAdjustedBudget,Sheet1!S71_A4SubCode,$AC:$AC)","v":0},null,null,null,null,{"$f":"SUMIFS(Sheet1!S71_AdjustmentAmount,Sheet1!S71_A4SubCode,$AC:$AC)","v":0},0,0,{"$f":"-SUMIFS(Sheet1!S71_OY1AdjustedBudget,Sheet1!S71_A4SubCode,$AC:$AC)","v":0},{"$f":"-SUMIFS(Sheet1!S71_OY2AdjustedBudget,Sheet1!S71_A4SubCode,$AC:$AC)","v":0},null,null,null,null,null,null,null,null,null,null,null,null,null,null,null,"1608"]
["Registration Fees",null,{"$f":"-SUMIFS(Sheet1!S71_OriginalBudget,Sheet1!S71_A4SubCode,$AC:$AC)","v":0},{"$f":"-SUMIFS(Sheet1!S71_SpecialAdjustedBudget,Sheet1!S71_A4SubCode,$AC:$AC)","v":0},null,null,null,null,{"$f":"SUMIFS(Sheet1!S71_AdjustmentAmount,Sheet1!S71_A4SubCode,$AC:$AC)","v":0},0,0,{"$f":"-SUMIFS(Sheet1!S71_OY1AdjustedBudget,Sheet1!S71_A4SubCode,$AC:$AC)","v":0},{"$f":"-SUMIFS(Sheet1!S71_OY2AdjustedBudget,Sheet1!S71_A4SubCode,$AC:$AC)","v":0},null,null,null,null,null,null,null,null,null,null,null,null,null,null,null,"1609"]
["Staff Recoveries",null,{"$f":"-SUMIFS(Sheet1!S71_OriginalBudget,Sheet1!S71_A4SubCode,$AC:$AC)","v":0},{"$f":"-SUMIFS(Sheet1!S71_SpecialAdjustedBudget,Sheet1!S71_A4SubCode,$AC:$AC)","v":0},null,null,null,null,{"$f":"SUMIFS(Sheet1!S71_AdjustmentAmount,Sheet1!S71_A4SubCode,$AC:$AC)","v":0},0,0,{"$f":"-SUMIFS(Sheet1!S71_OY1AdjustedBudget,Sheet1!S71_A4SubCode,$AC:$AC)","v":0},{"$f":"-SUMIFS(Sheet1!S71_OY2AdjustedBudget,Sheet1!S71_A4SubCode,$AC:$AC)","v":0},null,null,null,null,null,null,null,null,null,null,null,null,null,null,null,"1610"]
["Request for Information",null,{"$f":"-SUMIFS(Sheet1!S71_OriginalBudget,Sheet1!S71_A4SubCode,$AC:$AC)","v":0},{"$f":"-SUMIFS(Sheet1!S71_SpecialAdjustedBudget,Sheet1!S71_A4SubCode,$AC:$AC)","v":0},null,null,null,null,{"$f":"SUMIFS(Sheet1!S71_AdjustmentAmount,Sheet1!S71_A4SubCode,$AC:$AC)","v":0},0,0,{"$f":"-SUMIFS(Sheet1!S71_OY1AdjustedBudget,Sheet1!S71_A4SubCode,$AC:$AC)","v":0},{"$f":"-SUMIFS(Sheet1!S71_OY2AdjustedBudget,Sheet1!S71_A4SubCode,$AC:$AC)","v":0},null,null,null,null,null,null,null,null,null,null,null,null,null,null,null,"1611"]
["Insurance Refund",null,{"$f":"-SUMIFS(Sheet1!S71_OriginalBudget,Sheet1!S71_A4SubCode,$AC:$AC)","v":0},{"$f":"-SUMIFS(Sheet1!S71_SpecialAdjustedBudget,Sheet1!S71_A4SubCode,$AC:$AC)","v":0},null,null,null,null,{"$f":"SUMIFS(Sheet1!S71_AdjustmentAmount,Sheet1!S71_A4SubCode,$AC:$AC)","v":0},0,0,{"$f":"-SUMIFS(Sheet1!S71_OY1AdjustedBudget,Sheet1!S71_A4SubCode,$AC:$AC)","v":0},{"$f":"-SUMIFS(Sheet1!S71_OY2AdjustedBudget,Sheet1!S71_A4SubCode,$AC:$AC)","v":0},null,null,null,null,null,null,null,null,null,null,null,null,null,null,null,"1612"]
["Sale of Property",null,{"$f":"-SUMIFS(Sheet1!S71_OriginalBudget,Sheet1!S71_A4SubCode,$AC:$AC)","v":0},{"$f":"-SUMIFS(Sheet1!S71_SpecialAdjustedBudget,Sheet1!S71_A4SubCode,$AC:$AC)","v":0},null,null,null,null,{"$f":"SUMIFS(Sheet1!S71_AdjustmentAmount,Sheet1!S71_A4SubCode,$AC:$AC)","v":0},0,0,{"$f":"-SUMIFS(Sheet1!S71_OY1AdjustedBudget,Sheet1!S71_A4SubCode,$AC:$AC)","v":0},{"$f":"-SUMIFS(Sheet1!S71_OY2AdjustedBudget,Sheet1!S71_A4SubCode,$AC:$AC)","v":0},null,null,null,null,null,null,null,null,null,null,null,null,null,null,null,"1613"]
["Merchandising, Jobbing and Contracts",null,{"$f":"-SUMIFS(Sheet1!S71_OriginalBudget,Sheet1!S71_A4SubCode,$AC:$AC)","v":0},{"$f":"-SUMIFS(Sheet1!S71_SpecialAdjustedBudget,Sheet1!S71_A4SubCode,$AC:$AC)","v":0},null,null,null,null,{"$f":"SUMIFS(Sheet1!S71_AdjustmentAmount,Sheet1!S71_A4SubCode,$AC:$AC)","v":0},0,0,{"$f":"-SUMIFS(Sheet1!S71_OY1AdjustedBudget,Sheet1!S71_A4SubCode,$AC:$AC)","v":0},{"$f":"-SUMIFS(Sheet1!S71_OY2AdjustedBudget,Sheet1!S71_A4SubCode,$AC:$AC)","v":0},null,null,null,null,null,null,null,null,null,null,null,null,null,null,null,"1614"]
["Bursary Repayment",null,{"$f":"-SUMIFS(Sheet1!S71_OriginalBudget,Sheet1!S71_A4SubCode,$AC:$AC)","v":0},{"$f":"-SUMIFS(Sheet1!S71_SpecialAdjustedBudget,Sheet1!S71_A4SubCode,$AC:$AC)","v":0},null,null,null,null,{"$f":"SUMIFS(Sheet1!S71_AdjustmentAmount,Sheet1!S71_A4SubCode,$AC:$AC)","v":0},0,0,{"$f":"-SUMIFS(Sheet1!S71_OY1AdjustedBudget,Sheet1!S71_A4SubCode,$AC:$AC)","v":0},{"$f":"-SUMIFS(Sheet1!S71_OY2AdjustedBudget,Sheet1!S71_A4SubCode,$AC:$AC)","v":0},null,null,null,null,null,null,null,null,null,null,null,null,null,null,null,"1615"]
["Recovery Infrastructure Maintenance",null,{"$f":"-SUMIFS(Sheet1!S71_OriginalBudget,Sheet1!S71_A4SubCode,$AC:$AC)","v":0},{"$f":"-SUMIFS(Sheet1!S71_SpecialAdjustedBudget,Sheet1!S71_A4SubCode,$AC:$AC)","v":0},null,null,null,null,{"$f":"SUMIFS(Sheet1!S71_AdjustmentAmount,Sheet1!S71_A4SubCode,$AC:$AC)","v":0},0,0,{"$f":"-SUMIFS(Sheet1!S71_OY1AdjustedBudget,Sheet1!S71_A4SubCode,$AC:$AC)","v":0},{"$f":"-SUMIFS(Sheet1!S71_OY2AdjustedBudget,Sheet1!S71_A4SubCode,$AC:$AC)","v":0},null,null,null,null,null,null,null,null,null,null,null,null,null,null,null,"1616"]
["Skills Development Levy Refund",null,{"$f":"-SUMIFS(Sheet1!S71_OriginalBudget,Sheet1!S71_A4SubCode,$AC:$AC)","v":74479},{"$f":"-SUMIFS(Sheet1!S71_SpecialAdjustedBudget,Sheet1!S71_A4SubCode,$AC:$AC)","v":0},null,null,null,null,{"$f":"SUMIFS(Sheet1!S71_AdjustmentAmount,Sheet1!S71_A4SubCode,$AC:$AC)","v":-12366},-12366,62113,{"$f":"-SUMIFS(Sheet1!S71_OY1AdjustedBudget,Sheet1!S71_A4SubCode,$AC:$AC)","v":78054},{"$f":"-SUMIFS(Sheet1!S71_OY2AdjustedBudget,Sheet1!S71_A4SubCode,$AC:$AC)","v":81801},null,null,null,null,null,null,null,null,null,null,null,null,null,null,null,"1617"]
["Arbor City Awards Competition",null,{"$f":"-SUMIFS(Sheet1!S71_OriginalBudget,Sheet1!S71_A4SubCode,$AC:$AC)","v":0},{"$f":"-SUMIFS(Sheet1!S71_SpecialAdjustedBudget,Sheet1!S71_A4SubCode,$AC:$AC)","v":0},null,null,null,null,{"$f":"SUMIFS(Sheet1!S71_AdjustmentAmount,Sheet1!S71_A4SubCode,$AC:$AC)","v":0},0,0,{"$f":"-SUMIFS(Sheet1!S71_OY1AdjustedBudget,Sheet1!S71_A4SubCode,$AC:$AC)","v":0},{"$f":"-SUMIFS(Sheet1!S71_OY2AdjustedBudget,Sheet1!S71_A4SubCode,$AC:$AC)","v":0},null,null,null,null,null,null,null,null,null,null,null,null,null,null,null,"1618"]
["Other Revenue",null,{"$f":"-SUMIFS(Sheet1!S71_OriginalBudget,Sheet1!S71_A4SubCode,$AC:$AC)","v":359701},{"$f":"-SUMIFS(Sheet1!S71_SpecialAdjustedBudget,Sheet1!S71_A4SubCode,$AC:$AC)","v":0},null,null,null,null,{"$f":"SUMIFS(Sheet1!S71_AdjustmentAmount,Sheet1!S71_A4SubCode,$AC:$AC)","v":-41477},-41477,318224,{"$f":"-SUMIFS(Sheet1!S71_OY1AdjustedBudget,Sheet1!S71_A4SubCode,$AC:$AC)","v":395297},{"$f":"-SUMIFS(Sheet1!S71_OY2AdjustedBudget,Sheet1!S71_A4SubCode,$AC:$AC)","v":414272},null,null,null,null,null,null,null,null,null,null,null,null,null,null,null,"1600"]
[null,null,null,null,null,null,null,null,null,null,null,null,null,null,null,null,null,null,null,null,null,null,null,null,null,null,null,null,"1603"]
[]
[]
[]
[]
[]
[]
[]
[]
[]
["Total 'Other' Revenue",1,{"$f":"SUM(C38:C57)","v":466502},0,0,0,0,0,114072,114072,580574,515218,539515]
[]
["EXPENDITURE ITEMS"]
["Employee related costs"]
["Basic Salaries and Wages",null,{"$f":"SUMIFS(Sheet1!S71_OriginalBudget,Sheet1!S71_SA1SubCode,$AC:$AC)","v":57923685},{"$f":"SUMIFS(Sheet1!S71_SpecialAdjustedBudget,Sheet1!S71_SA1SubCode,$AC:$AC)","v":0},null,null,null,null,{"$f":"SUMIFS(Sheet1!S71_AdjustmentAmount,Sheet1!S71_SA1SubCode,$AC:$AC)","v":-5296751},{"$f":"SUM(E72:I72)","v":-5296751},{"$f":"IF(D72=0,C72+J72,D72+J72)","v":52626934},{"$f":"SUMIFS(Sheet1!S71_OY1AdjustedBudget,Sheet1!S71_SA1SubCode,$AC:$AC)","v":57695962},{"$f":"SUMIFS(Sheet1!S71_OY2AdjustedBudget,Sheet1!S71_SA1SubCode,$AC:$AC)","v":60292278},null,null,null,null,null,null,null,null,null,null,null,null,null,null,null,"2001"]
["Pension and UIF Contributions",null,{"$f":"SUMIFS(Sheet1!S71_OriginalBudget,Sheet1!S71_SA1SubCode,$AC:$AC)","v":9370402},{"$f":"SUMIFS(Sheet1!S71_SpecialAdjustedBudget,Sheet1!S71_SA1SubCode,$AC:$AC)","v":0},null,null,null,null,{"$f":"SUMIFS(Sheet1!S71_AdjustmentAmount,Sheet1!S71_SA1SubCode,$AC:$AC)","v":-2880985},-2880985,6489417,{"$f":"SUMIFS(Sheet1!S71_OY1AdjustedBudget,Sheet1!S71_SA1SubCode,$AC:$AC)","v":8430494},{"$f":"SUMIFS(Sheet1!S71_OY2AdjustedBudget,Sheet1!S71_SA1SubCode,$AC:$AC)","v":8809868},null,null,null,null,null,null,null,null,null,null,null,null,null,null,null,"2002"]
["Medical Aid Contributions",null,{"$f":"SUMIFS(Sheet1!S71_OriginalBudget,Sheet1!S71_SA1SubCode,$AC:$AC)","v":4304940},{"$f":"SUMIFS(Sheet1!S71_SpecialAdjustedBudget,Sheet1!S71_SA1SubCode,$AC:$AC)","v":0},null,null,null,null,{"$f":"SUMIFS(Sheet1!S71_AdjustmentAmount,Sheet1!S71_SA1SubCode,$AC:$AC)","v":-1744978},-1744978,2559962,{"$f":"SUMIFS(Sheet1!S71_OY1AdjustedBudget,Sheet1!S71_SA1SubCode,$AC:$AC)","v":3107234},{"$f":"SUMIFS(Sheet1!S71_OY2AdjustedBudget,Sheet1!S71_SA1SubCode,$AC:$AC)","v":3247062},null,null,null,null,null,null,null,null,null,null,null,null,null,null,null,"2003"]
["Overtime",null,{"$f":"SUMIFS(Sheet1!S71_OriginalBudget,Sheet1!S71_SA1SubCode,$AC:$AC)","v":3891402},{"$f":"SUMIFS(Sheet1!S71_SpecialAdjustedBudget,Sheet1!S71_SA1SubCode,$AC:$AC)","v":0},null,null,null,null,{"$f":"SUMIFS(Sheet1!S71_AdjustmentAmount,Sheet1!S71_SA1SubCode,$AC:$AC)","v":-1349681},-1349681,2541721,{"$f":"SUMIFS(Sheet1!S71_OY1AdjustedBudget,Sheet1!S71_SA1SubCode,$AC:$AC)","v":2102993},{"$f":"SUMIFS(Sheet1!S71_OY2AdjustedBudget,Sheet1!S71_SA1SubCode,$AC:$AC)","v":2197629},null,null,null,null,null,null,null,null,null,null,null,null,null,null,null,"2004"]
["Performance Bonus",null,{"$f":"SUMIFS(Sheet1!S71_OriginalBudget,Sheet1!S71_SA1SubCode,$AC:$AC)","v":4616993},{"$f":"SUMIFS(Sheet1!S71_SpecialAdjustedBudget,Sheet1!S71_SA1SubCode,$AC:$AC)","v":0},null,null,null,null,{"$f":"SUMIFS(Sheet1!S71_AdjustmentAmount,Sheet1!S71_SA1SubCode,$AC:$AC)","v":26999},26999,4643992,{"$f":"SUMIFS(Sheet1!S71_OY1AdjustedBudget,Sheet1!S71_SA1SubCode,$AC:$AC)","v":3893669},{"$f":"SUMIFS(Sheet1!S71_OY2AdjustedBudget,Sheet1!S71_SA1SubCode,$AC:$AC)","v":4068885},null,null,null,null,null,null,null,null,null,null,null,null,null,null,null,"2005"]
["Motor Vehicle Allowance",null,{"$f":"SUMIFS(Sheet1!S71_OriginalBudget,Sheet1!S71_SA1SubCode,$AC:$AC)","v":4188000},{"$f":"SUMIFS(Sheet1!S71_SpecialAdjustedBudget,Sheet1!S71_SA1SubCode,$AC:$AC)","v":0},null,null,null,null,{"$f":"SUMIFS(Sheet1!S71_AdjustmentAmount,Sheet1!S71_SA1SubCode,$AC:$AC)","v":217429},{"$f":"SUM(E77:I77)","v":217429},{"$f":"IF(D77=0,C77+J77,D77+J77)","v":4405429},{"$f":"SUMIFS(Sheet1!S71_OY1AdjustedBudget,Sheet1!S71_SA1SubCode,$AC:$AC)","v":4340983},{"$f":"SUMIFS(Sheet1!S71_OY2AdjustedBudget,Sheet1!S71_SA1SubCode,$AC:$AC)","v":4536326},null,null,null,null,null,null,null,null,null,null,null,null,null,null,null,"2006"]
["Cellphone Allowance",null,{"$f":"SUMIFS(Sheet1!S71_OriginalBudget,Sheet1!S71_SA1SubCode,$AC:$AC)","v":1134000},{"$f":"SUMIFS(Sheet1!S71_SpecialAdjustedBudget,Sheet1!S71_SA1SubCode,$AC:$AC)","v":0},null,null,null,null,{"$f":"SUMIFS(Sheet1!S71_AdjustmentAmount,Sheet1!S71_SA1SubCode,$AC:$AC)","v":15022},{"$f":"SUM(E78:I78)","v":15022},{"$f":"IF(D78=0,C78+J78,D78+J78)","v":1149022},{"$f":"SUMIFS(Sheet1!S71_OY1AdjustedBudget,Sheet1!S71_SA1SubCode,$AC:$AC)","v":1254000},{"$f":"SUMIFS(Sheet1!S71_OY2AdjustedBudget,Sheet1!S71_SA1SubCode,$AC:$AC)","v":1310430},null,null,null,null,null,null,null,null,null,null,null,null,null,null,null,"2007"]
["Housing Allowances",null,{"$f":"SUMIFS(Sheet1!S71_OriginalBudget,Sheet1!S71_SA1SubCode,$AC:$AC)","v":797103},{"$f":"SUMIFS(Sheet1!S71_SpecialAdjustedBudget,Sheet1!S71_SA1SubCode,$AC:$AC)","v":0},null,null,null,null,{"$f":"SUMIFS(Sheet1!S71_AdjustmentAmount,Sheet1!S71_SA1SubCode,$AC:$AC)","v":-92892},{"$f":"SUM(E79:I79)","v":-92892},{"$f":"IF(D79=0,C79+J79,D79+J79)","v":704211},{"$f":"SUMIFS(Sheet1!S71_OY1AdjustedBudget,Sheet1!S71_SA1SubCode,$AC:$AC)","v":608723},{"$f":"SUMIFS(Sheet1!S71_OY2AdjustedBudget,Sheet1!S71_SA1SubCode,$AC:$AC)","v":636119},null,null,null,null,null,null,null,null,null,null,null,null,null,null,null,"2008"]
["Other benefits and allowances",null,{"$f":"SUMIFS(Sheet1!S71_OriginalBudget,Sheet1!S71_SA1SubCode,$AC:$AC)","v":1327402},{"$f":"SUMIFS(Sheet1!S71_SpecialAdjustedBudget,Sheet1!S71_SA1SubCode,$AC:$AC)","v":0},null,null,null,null,{"$f":"SUMIFS(Sheet1!S71_AdjustmentAmount,Sheet1!S71_SA1SubCode,$AC:$AC)","v":604730},604730,1932132,{"$f":"SUMIFS(Sheet1!S71_OY1AdjustedBudget,Sheet1!S71_SA1SubCode,$AC:$AC)","v":5465470},{"$f":"SUMIFS(Sheet1!S71_OY2AdjustedBudget,Sheet1!S71_SA1SubCode,$AC:$AC)","v":5711414},null,null,null,null,null,null,null,null,null,null,null,null,null,null,null,"2009"]
["Payments in lieu of leave",null,{"$f":"SUMIFS(Sheet1!S71_OriginalBudget,Sheet1!S71_SA1SubCode,$AC:$AC)","v":5013120},{"$f":"SUMIFS(Sheet1!S71_SpecialAdjustedBudget,Sheet1!S71_SA1SubCode,$AC:$AC)","v":0},null,null,null,null,{"$f":"SUMIFS(Sheet1!S71_AdjustmentAmount,Sheet1!S71_SA1SubCode,$AC:$AC)","v":-3328960},-3328960,1684160,{"$f":"SUMIFS(Sheet1!S71_OY1AdjustedBudget,Sheet1!S71_SA1SubCode,$AC:$AC)","v":7829864},{"$f":"SUMIFS(Sheet1!S71_OY2AdjustedBudget,Sheet1!S71_SA1SubCode,$AC:$AC)","v":8182210},null,null,null,null,null,null,null,null,null,null,null,null,null,null,null,"2010"]
["Long service awards",null,{"$f":"SUMIFS(Sheet1!S71_OriginalBudget,Sheet1!S71_SA1SubCode,$AC:$AC)","v":407628},{"$f":"SUMIFS(Sheet1!S71_SpecialAdjustedBudget,Sheet1!S71_SA1SubCode,$AC:$AC)","v":0},null,null,null,null,{"$f":"SUMIFS(Sheet1!S71_AdjustmentAmount,Sheet1!S71_SA1SubCode,$AC:$AC)","v":-94717},-94717,312911,{"$f":"SUMIFS(Sheet1!S71_OY1AdjustedBudget,Sheet1!S71_SA1SubCode,$AC:$AC)","v":89324},{"$f":"SUMIFS(Sheet1!S71_OY2AdjustedBudget,Sheet1!S71_SA1SubCode,$AC:$AC)","v":93344},null,null,null,null,null,null,null,null,null,null,null,null,null,null,null,"2011"]
["Post-retirement benefit obligations",4,{"$f":"SUMIFS(Sheet1!S71_OriginalBudget,Sheet1!S71_SA1SubCode,$AC:$AC)","v":0},{"$f":"SUMIFS(Sheet1!S71_SpecialAdjustedBudget,Sheet1!S71_SA1SubCode,$AC:$AC)","v":0},null,null,null,null,{"$f":"SUMIFS(Sheet1!S71_AdjustmentAmount,Sheet1!S71_SA1SubCode,$AC:$AC)","v":0},0,0,{"$f":"SUMIFS(Sheet1!S71_OY1AdjustedBudget,Sheet1!S71_SA1SubCode,$AC:$AC)","v":0},{"$f":"SUMIFS(Sheet1!S71_OY2AdjustedBudget,Sheet1!S71_SA1SubCode,$AC:$AC)","v":0},null,null,null,null,null,null,null,null,null,null,null,null,null,null,null,"2012"]
["sub-total",null,{"$f":"SUM(C72:C83)","v":92974675},{"$f":"SUM(D72:D83)","v":0},0,0,0,0,-13924784,-13924784,79049891,94818716,99085565]
["Less: Employees costs capitalised to PPE",null,{"$f":"SUMIFS(Sheet1!S71_OriginalBudget,Sheet1!S71_SA1SubCode,$AC:$AC)","v":0},{"$f":"SUMIFS(Sheet1!S71_SpecialAdjustedBudget,Sheet1!S71_SA1SubCode,$AC:$AC)","v":0},null,null,null,null,{"$f":"SUMIFS(Sheet1!S71_AdjustmentAmount,Sheet1!S71_SA1SubCode,$AC:$AC)","v":0},{"$f":"SUM(E85:I85)","v":0},{"$f":"IF(D85=0,C85+J85,D85+J85)","v":0},{"$f":"SUMIFS(Sheet1!S71_OY1AdjustedBudget,Sheet1!S71_SA1SubCode,$AC:$AC)","v":0},{"$f":"SUMIFS(Sheet1!S71_OY2AdjustedBudget,Sheet1!S71_SA1SubCode,$AC:$AC)","v":0},null,null,null,null,null,null,null,null,null,null,null,null,null,null,null,"2090"]
[{"$f":"\"Total \"&A71","v":"Total Employee related costs"},1,{"$f":"C84-C85","v":92974675},{"$f":"D84-D85","v":0},0,0,0,0,-13924784,{"$f":"SUM(J84:J85)","v":-13924784},{"$f":"SUM(K84:K85)","v":79049891},{"$f":"L84-L85","v":94818716},{"$f":"M84-M85","v":99085565}]
[]
[]
[]
[]
[]
[]
[]
[]
[]
[]
["Depreciation & asset impairment"]
["Depreciation of Property, Plant & Equipment",null,{"$f":"SUMIFS(Sheet1!S71_OriginalBudget,Sheet1!S71_SA1SubCode,$AC:$AC)","v":22514510},{"$f":"SUMIFS(Sheet1!S71_SpecialAdjustedBudget,Sheet1!S71_SA1SubCode,$AC:$AC)","v":0},null,null,null,null,{"$f":"SUMIFS(Sheet1!S71_AdjustmentAmount,Sheet1!S71_SA1SubCode,$AC:$AC)","v":1257642},{"$f":"SUM(E98:I98)","v":1257642},{"$f":"IF(D98=0,C98+J98,D98+J98)","v":23772152},{"$f":"SUMIFS(Sheet1!S71_OY1AdjustedBudget,Sheet1!S71_SA1SubCode,$AC:$AC)","v":30210134},{"$f":"SUMIFS(Sheet1!S71_OY2AdjustedBudget,Sheet1!S71_SA1SubCode,$AC:$AC)","v":33357821},null,null,null,null,null,null,null,null,null,null,null,null,null,null,null,"2301"]
["Lease amortisation",null,{"$f":"SUMIFS(Sheet1!S71_OriginalBudget,Sheet1!S71_SA1SubCode,$AC:$AC)","v":512050},{"$f":"SUMIFS(Sheet1!S71_SpecialAdjustedBudget,Sheet1!S71_SA1SubCode,$AC:$AC)","v":0},null,null,null,null,{"$f":"SUMIFS(Sheet1!S71_AdjustmentAmount,Sheet1!S71_SA1SubCode,$AC:$AC)","v":-188212},{"$f":"SUM(E99:I99)","v":-188212},{"$f":"IF(D99=0,C99+J99,D99+J99)","v":323838},{"$f":"SUMIFS(Sheet1!S71_OY1AdjustedBudget,Sheet1!S71_SA1SubCode,$AC:$AC)","v":512050},{"$f":"SUMIFS(Sheet1!S71_OY2AdjustedBudget,Sheet1!S71_SA1SubCode,$AC:$AC)","v":535092},null,null,null,null,null,null,null,null,null,null,null,null,null,null,null,"2302"]
["Capital asset impairment",null,{"$f":"SUMIFS(Sheet1!S71_OriginalBudget,Sheet1!S71_SA1SubCode,$AC:$AC)","v":989202},{"$f":"SUMIFS(Sheet1!S71_SpecialAdjustedBudget,Sheet1!S71_SA1SubCode,$AC:$AC)","v":0},null,null,null,null,{"$f":"SUMIFS(Sheet1!S71_AdjustmentAmount,Sheet1!S71_SA1SubCode,$AC:$AC)","v":-789202},{"$f":"SUM(E100:I100)","v":-789202},{"$f":"IF(D100=0,C100+J100,D100+J100)","v":200000},{"$f":"SUMIFS(Sheet1!S71_OY1AdjustedBudget,Sheet1!S71_SA1SubCode,$AC:$AC)","v":500000},{"$f":"SUMIFS(Sheet1!S71_OY2AdjustedBudget,Sheet1!S71_SA1SubCode,$AC:$AC)","v":500000},null,null,null,null,null,null,null,null,null,null,null,null,null,null,null,"2303"]
[]
[{"$f":"\"Total \"&LEFT(A97,35)","v":"Total Depreciation & asset impairment"},1,{"$f":"SUM(C98:C100)","v":24015762},{"$f":"SUM(D98:D100)","v":0},0,0,0,0,280228,280228,24295990,31222184,34392913]
[]
["Bulk purchases"]
["Electricity Bulk Purchases",null,{"$f":"SUMIFS(Sheet1!S71_OriginalBudget,Sheet1!S71_SA1SubCode,$AC:$AC)","v":0},{"$f":"SUMIFS(Sheet1!S71_SpecialAdjustedBudget,Sheet1!S71_SA1SubCode,$AC:$AC)","v":0},null,null,null,null,{"$f":"SUMIFS(Sheet1!S71_AdjustmentAmount,Sheet1!S71_SA1SubCode,$AC:$AC)","v":0},{"$f":"SUM(E105:I105)","v":0},{"$f":"IF(D105=0,C105+J105,D105+J105)","v":0},{"$f":"SUMIFS(Sheet1!S71_OY1AdjustedBudget,Sheet1!S71_SA1SubCode,$AC:$AC)","v":0},{"$f":"SUMIFS(Sheet1!S71_OY2AdjustedBudget,Sheet1!S71_SA1SubCode,$AC:$AC)","v":0},null,null,null,null,null,null,null,null,null,null,null,null,null,null,null,"2501"]
["Water Bulk Purchases",null,null,null,null,null,null,null,null,{"$f":"SUM(E106:I106)","v":0},{"$f":"IF(D106=0,C106+J106,D106+J106)","v":0}]
["Total bulk purchases",1,{"$f":"C105","v":0},{"$f":"D105","v":0},0,0,0,0,0,0,0,0,0]
[]
["Transfers and grants"]
["Cash transfers and grants",null,{"$f":"SUMIFS(Sheet1!S71_OriginalBudget,Sheet1!S71_SA1SubCode,$AC:$AC)","v":0},{"$f":"SUMIFS(Sheet1!S71_SpecialAdjustedBudget,Sheet1!S71_SA1SubCode,$AC:$AC)","v":0},null,null,null,null,{"$f":"SUMIFS(Sheet1!S71_AdjustmentAmount,Sheet1!S71_SA1SubCode,$AC:$AC)","v":0},{"$f":"SUM(E110:I110)","v":0},{"$f":"IF(D110=0,C110+J110,D110+J110)","v":0},{"$f":"SUMIFS(Sheet1!S71_OY1AdjustedBudget,Sheet1!S71_SA1SubCode,$AC:$AC)","v":0},{"$f":"SUMIFS(Sheet1!S71_OY2AdjustedBudget,Sheet1!S71_SA1SubCode,$AC:$AC)","v":0},null,null,null,null,null,null,null,null,null,null,null,null,null,null,null,"2801"]
["Non-cash transfers and grants",null,{"$f":"SUMIFS(Sheet1!S71_OriginalBudget,Sheet1!S71_SA1SubCode,$AC:$AC)","v":0},{"$f":"SUMIFS(Sheet1!S71_SpecialAdjustedBudget,Sheet1!S71_SA1SubCode,$AC:$AC)","v":0},null,null,null,null,{"$f":"SUMIFS(Sheet1!S71_AdjustmentAmount,Sheet1!S71_SA1SubCode,$AC:$AC)","v":0},{"$f":"SUM(E111:I111)","v":0},{"$f":"IF(D111=0,C111+J111,D111+J111)","v":0},{"$f":"SUMIFS(Sheet1!S71_OY1AdjustedBudget,Sheet1!S71_SA1SubCode,$AC:$AC)","v":0},{"$f":"SUMIFS(Sheet1!S71_OY2AdjustedBudget,Sheet1!S71_SA1SubCode,$AC:$AC)","v":0},null,null,null,null,null,null,null,null,null,null,null,null,null,null,null,"2802"]
["Total transfers and grants",null,{"$f":"SUM(C110:C111)","v":0},0,0,0,0,0,0,{"$f":"SUM(J110:J111)","v":0},{"$f":"SUM(K110:K111)","v":0},{"$f":"SUM(L110:L111)","v":0},{"$f":"SUM(M110:M111)","v":0}]
[]
["Contracted services"]
["Outsourced Services",null,{"$f":"SUMIFS(Sheet1!S71_OriginalBudget,Sheet1!S71_SA1SubCode,$AC:$AC)","v":18654702},{"$f":"SUMIFS(Sheet1!S71_SpecialAdjustedBudget,Sheet1!S71_SA1SubCode,$AC:$AC)","v":0},null,null,null,null,{"$f":"SUMIFS(Sheet1!S71_AdjustmentAmount,Sheet1!S71_SA1SubCode,$AC:$AC)","v":1126207},{"$f":"SUM(E115:I115)","v":1126207},{"$f":"IF(D115=0,C115+J115,D115+J115)","v":19780909},{"$f":"SUMIFS(Sheet1!S71_OY1AdjustedBudget,Sheet1!S71_SA1SubCode,$AC:$AC)","v":17293116},{"$f":"SUMIFS(Sheet1!S71_OY2AdjustedBudget,Sheet1!S71_SA1SubCode,$AC:$AC)","v":18071321},null,null,null,null,null,null,null,null,null,null,null,null,null,null,null,2701]
["Consultants and Professional Services",null,{"$f":"SUMIFS(Sheet1!S71_OriginalBudget,Sheet1!S71_SA1SubCode,$AC:$AC)","v":4751750},{"$f":"SUMIFS(Sheet1!S71_SpecialAdjustedBudget,Sheet1!S71_SA1SubCode,$AC:$AC)","v":0},null,null,null,null,{"$f":"SUMIFS(Sheet1!S71_AdjustmentAmount,Sheet1!S71_SA1SubCode,$AC:$AC)","v":-297716},{"$f":"SUM(E116:I116)","v":-297716},{"$f":"IF(D116=0,C116+J116,D116+J116)","v":4454034},{"$f":"SUMIFS(Sheet1!S71_OY1AdjustedBudget,Sheet1!S71_SA1SubCode,$AC:$AC)","v":4023250},{"$f":"SUMIFS(Sheet1!S71_OY2AdjustedBudget,Sheet1!S71_SA1SubCode,$AC:$AC)","v":4204297},null,null,null,null,null,null,null,null,null,null,null,null,null,null,null,2702]
["Contractors",null,{"$f":"SUMIFS(Sheet1!S71_OriginalBudget,Sheet1!S71_SA1SubCode,$AC:$AC)","v":9365025},{"$f":"SUMIFS(Sheet1!S71_SpecialAdjustedBudget,Sheet1!S71_SA1SubCode,$AC:$AC)","v":0},null,null,null,null,{"$f":"SUMIFS(Sheet1!S71_AdjustmentAmount,Sheet1!S71_SA1SubCode,$AC:$AC)","v":3693184},{"$f":"SUM(E117:I117)","v":3693184},{"$f":"IF(D117=0,C117+J117,D117+J117)","v":13058209},{"$f":"SUMIFS(Sheet1!S71_OY1AdjustedBudget,Sheet1!S71_SA1SubCode,$AC:$AC)","v":10134478},{"$f":"SUMIFS(Sheet1!S71_OY2AdjustedBudget,Sheet1!S71_SA1SubCode,$AC:$AC)","v":10583779},null,null,null,null,null,null,null,null,null,null,null,null,null,null,null,2703]
[]
[]
[]
[]
[null,null,null,null,null,null,null,null,null,null,null,null,null,null,null,null,null,null,null,null,null,null,null,null,null,null,null,null,"2501"]
[null,null,null,null,null,null,null,null,null,null,null,null,null,null,null,null,null,null,null,null,null,null,null,null,null,null,null,null,"2502"]
[]
[]
[]
[null,null,null,null,null,null,null,null,null,null,null,null,null,null,null,null,null,null,null,null,null,null,null,null,null,null,null,null,"2801"]
[null,null,null,null,null,null,null,null,null,null,null,null,null,null,null,null,null,null,null,null,null,null,null,null,null,null,null,null,"2802"]
[]
[]
[]
[null,null,null,null,null,null,null,null,null,null,null,null,null,null,null,null,null,null,null,null,null,null,null,null,null,null,null,null,"2701"]
[null,null,null,null,null,null,null,null,null,null,null,null,null,null,null,null,null,null,null,null,null,null,null,null,null,null,null,null,"2702"]
[null,null,null,null,null,null,null,null,null,null,null,null,null,null,null,null,null,null,null,null,null,null,null,null,null,null,null,null,"2703"]
[]
[]
[]
[]
[]
[]
[]
[]
[]
[]
[]
["Total contracted services",null,{"$f":"SUM(C115:C117)","v":32771477},{"$f":"SUM(D115:D117)","v":0},0,0,0,0,4521675,4521675,37293152,31450844,32859397]
[]
["Other Expenditure By Type"]
["Collection costs",null,{"$f":"SUMIFS(Sheet1!S71_OriginalBudget,Sheet1!S71_SA1SubCode,$AC:$AC)","v":0},{"$f":"SUMIFS(Sheet1!S71_SpecialAdjustedBudget,Sheet1!S71_SA1SubCode,$AC:$AC)","v":0},null,null,null,null,{"$f":"SUMIFS(Sheet1!S71_AdjustmentAmount,Sheet1!S71_SA1SubCode,$AC:$AC)","v":0},{"$f":"SUM(E149:I149)","v":0},{"$f":"IF(D149=0,C149+J149,D149+J149)","v":0},{"$f":"SUMIFS(Sheet1!S71_OY1AdjustedBudget,Sheet1!S71_SA1SubCode,$AC:$AC)","v":0},{"$f":"SUMIFS(Sheet1!S71_OY2AdjustedBudget,Sheet1!S71_SA1SubCode,$AC:$AC)","v":0},null,null,null,null,null,null,null,null,null,null,null,null,null,null,null,2901]
["Contributions to 'other' provisions",null,{"$f":"SUMIFS(Sheet1!S71_OriginalBudget,Sheet1!S71_SA1SubCode,$AC:$AC)","v":0},{"$f":"SUMIFS(Sheet1!S71_SpecialAdjustedBudget,Sheet1!S71_SA1SubCode,$AC:$AC)","v":0},null,null,null,null,{"$f":"SUMIFS(Sheet1!S71_AdjustmentAmount,Sheet1!S71_SA1SubCode,$AC:$AC)","v":185000},{"$f":"SUM(E150:I150)","v":185000},{"$f":"IF(D150=0,C150+J150,D150+J150)","v":185000},{"$f":"SUMIFS(Sheet1!S71_OY1AdjustedBudget,Sheet1!S71_SA1SubCode,$AC:$AC)","v":6270000},{"$f":"SUMIFS(Sheet1!S71_OY2AdjustedBudget,Sheet1!S71_SA1SubCode,$AC:$AC)","v":6552150},null,null,null,null,null,null,null,null,null,null,null,null,null,null,null,2902]
[null,null,{"$f":"SUMIFS(Sheet1!S71_OriginalBudget,Sheet1!S71_SA1SubCode,$AC:$AC)","v":3578000},{"$f":"SUMIFS(Sheet1!S71_SpecialAdjustedBudget,Sheet1!S71_SA1SubCode,$AC:$AC)","v":0},null,null,null,null,{"$f":"SUMIFS(Sheet1!S71_AdjustmentAmount,Sheet1!S71_SA1SubCode,$AC:$AC)","v":-1800000},null,null,{"$f":"SUMIFS(Sheet1!S71_OY1AdjustedBudget,Sheet1!S71_SA1SubCode,$AC:$AC)","v":1672000},{"$f":"SUMIFS(Sheet1!S71_OY2AdjustedBudget,Sheet1!S71_SA1SubCode,$AC:$AC)","v":1747240},null,null,null,null,null,null,null,null,null,null,null,null,null,null,null,2903]
["Audit fees",null,{"$f":"SUMIFS(Sheet1!S71_OriginalBudget,Sheet1!S71_SA1SubCode,$AC:$AC)","v":31053141},{"$f":"SUMIFS(Sheet1!S71_SpecialAdjustedBudget,Sheet1!S71_SA1SubCode,$AC:$AC)","v":0},null,null,null,null,{"$f":"SUMIFS(Sheet1!S71_AdjustmentAmount,Sheet1!S71_SA1SubCode,$AC:$AC)","v":17795714},{"$f":"SUM(E152:I152)","v":17795714},{"$f":"IF(D152=0,C152+J152,D152+J152)","v":48848855},{"$f":"SUMIFS(Sheet1!S71_OY1AdjustedBudget,Sheet1!S71_SA1SubCode,$AC:$AC)","v":33242324},{"$f":"SUMIFS(Sheet1!S71_OY2AdjustedBudget,Sheet1!S71_SA1SubCode,$AC:$AC)","v":34774689},null,null,null,null,null,null,null,null,null,null,null,null,null,null,null,2904]
[null,null,{"$f":"SUMIFS(Sheet1!S71_OriginalBudget,Sheet1!S71_SA1SubCode,$AC:$AC)","v":0},{"$f":"SUMIFS(Sheet1!S71_SpecialAdjustedBudget,Sheet1!S71_SA1SubCode,$AC:$AC)","v":0},null,null,null,null,{"$f":"SUMIFS(Sheet1!S71_AdjustmentAmount,Sheet1!S71_SA1SubCode,$AC:$AC)","v":0},null,null,{"$f":"SUMIFS(Sheet1!S71_OY1AdjustedBudget,Sheet1!S71_SA1SubCode,$AC:$AC)","v":0},{"$f":"SUMIFS(Sheet1!S71_OY2AdjustedBudget,Sheet1!S71_SA1SubCode,$AC:$AC)","v":0},null,null,null,null,null,null,null,null,null,null,null,null,null,null,null,2905]
[null,null,{"$f":"SUMIFS(Sheet1!S71_OriginalBudget,Sheet1!S71_SA1SubCode,$AC:$AC)","v":0},{"$f":"SUMIFS(Sheet1!S71_SpecialAdjustedBudget,Sheet1!S71_SA1SubCode,$AC:$AC)","v":0},null,null,null,null,{"$f":"SUMIFS(Sheet1!S71_AdjustmentAmount,Sheet1!S71_SA1SubCode,$AC:$AC)","v":0},null,null,{"$f":"SUMIFS(Sheet1!S71_OY1AdjustedBudget,Sheet1!S71_SA1SubCode,$AC:$AC)","v":0},{"$f":"SUMIFS(Sheet1!S71_OY2AdjustedBudget,Sheet1!S71_SA1SubCode,$AC:$AC)","v":0},null,null,null,null,null,null,null,null,null,null,null,null,null,null,null,2906]
["Other Expenditure",null,{"$f":"SUMIFS(Sheet1!S71_OriginalBudget,Sheet1!S71_SA1SubCode,$AC:$AC)","v":3578000},{"$f":"SUMIFS(Sheet1!S71_SpecialAdjustedBudget,Sheet1!S71_SA1SubCode,$AC:$AC)","v":0},null,null,null,null,{"$f":"SUMIFS(Sheet1!S71_AdjustmentAmount,Sheet1!S71_SA1SubCode,$AC:$AC)","v":-1800000},{"$f":"SUM(E155:I155)","v":-1800000},{"$f":"IF(D155=0,C155+J155,D155+J155)","v":1778000},{"$f":"SUMIFS(Sheet1!S71_OY1AdjustedBudget,Sheet1!S71_SA1SubCode,$AC:$AC)","v":1672000},{"$f":"SUMIFS(Sheet1!S71_OY2AdjustedBudget,Sheet1!S71_SA1SubCode,$AC:$AC)","v":1747240},null,null,null,null,null,null,null,null,null,null,null,null,null,null,null,2903]
[]
[]
[]
[]
[]
[]
[]
[]
[]
[]
[null,null,null,null,null,null,null,null,null,null,null,null,null,null,null,null,null,null,null,null,null,null,null,null,null,null,null,null,2901]
[null,null,null,null,null,null,null,null,null,null,null,null,null,null,null,null,null,null,null,null,null,null,null,null,null,null,null,null,2902]
[null,null,null,null,null,null,null,null,null,null,null,null,null,null,null,null,null,null,null,null,null,null,null,null,null,null,null,null,2903]
[null,null,null,null,null,null,null,null,null,null,null,null,null,null,null,null,null,null,null,null,null,null,null,null,null,null,null,null,2904]
[null,null,null,null,null,null,null,null,null,null,null,null,null,null,null,null,null,null,null,null,null,null,null,null,null,null,null,null,2905]
[null,null,null,null,null,null,null,null,null,null,null,null,null,null,null,null,null,null,null,null,null,null,null,null,null,null,null,null,2906]
[]
[]
[]
[]
["Total Other Expenditure",1,{"$f":"+C149+C150+C152+C155","v":34631141},{"$f":"+D149+D150+D152+D155","v":0},0,0,0,0,16180714,16180714,50811855,41184324,43074079]
[]
["Repairs and Maintenance \nby Expenditure Item",14]
["Employee related costs",null,null,null,null,null,null,null,null,{"$f":"SUM(E179:I179)","v":0},{"$f":"IF(D179=0,C179+J179,D179+J179)","v":0}]
["Inventory Consumed (Project Maintenance)",null,null,null,null,null,null,null,null,{"$f":"SUM(E180:I180)","v":0},{"$f":"IF(D180=0,C180+J180,D180+J180)","v":0}]
["Contracted Services",null,{"$f":"SB18c!C170","v":0},{"$f":"SB18c!D170","v":0},{"$f":"SB18c!E170","v":0},{"$f":"SB18c!F170","v":0},{"$f":"SB18c!G170","v":0},{"$f":"SB18c!H170","v":0},{"$f":"SB18c!I170","v":0},{"$f":"SUM(E181:I181)","v":0},{"$f":"IF(D181=0,C181+J181,D181+J181)","v":0},{"$f":"SB18c!L169","v":5687775},{"$f":"SB18c!M169","v":5941475}]
["Other Expenditure",null,null,null,null,null,null,null,null,{"$f":"SUM(E182:I182)","v":0},{"$f":"IF(D182=0,C182+J182,D182+J182)","v":0}]
["Total Repairs and Maintenance Expenditure",15,{"$f":"SUM(C179:C182)","v":0},{"$f":"SUM(D179:D182)","v":0},0,0,0,0,0,0,0,5687775,5941475]
[]
[" Inventory Consumed"]
["Inventory Consumed - Water",null,{"$f":"-'SB2'!C29","v":0},{"$f":"-'SB2'!D29","v":0},{"$f":"-'SB2'!E29","v":0},{"$f":"-'SB2'!F29","v":0},{"$f":"-'SB2'!G29","v":0},{"$f":"-'SB2'!H29","v":0},{"$f":"-'SB2'!I29","v":0},{"$f":"SUM(E186:I186)","v":0},{"$f":"IF(D186=0,C186+J186,D186+J186)","v":0},{"$f":"-'SB2'!L29","v":0},{"$f":"-'SB2'!M29","v":0}]
["Inventory Consumed - Other",null,{"$f":"-'SB2'!C58-'SB2'!C67-'SB2'!C74-'SB2'!C82-'SB2'!C90","v":1417250},{"$f":"-'SB2'!D58-'SB2'!D67-'SB2'!D74-'SB2'!D82-'SB2'!D90","v":0},{"$f":"-'SB2'!E58-'SB2'!E67-'SB2'!E74-'SB2'!E82-'SB2'!E90","v":0},{"$f":"-'SB2'!F58-'SB2'!F67-'SB2'!F74-'SB2'!F82-'SB2'!F90","v":0},{"$f":"-'SB2'!G58-'SB2'!G67-'SB2'!G74-'SB2'!G82-'SB2'!G90","v":0},{"$f":"-'SB2'!H58-'SB2'!H67-'SB2'!H74-'SB2'!H82-'SB2'!H90","v":0},{"$f":"-'SB2'!I58-'SB2'!I67-'SB2'!I74-'SB2'!I82-'SB2'!I90","v":0},{"$f":"SUM(E187:I187)","v":0},{"$f":"IF(D187=0,C187+J187,D187+J187)","v":1417250},{"$f":"-'SB2'!L58-'SB2'!L67-'SB2'!L74-'SB2'!L82-'SB2'!L90","v":1479609},{"$f":"-'SB2'!M58-'SB2'!M67-'SB2'!M74-'SB2'!M82-'SB2'!M90","v":1546191}]
["Total Inventory Consumed & Other Material",null,{"$f":"SUM(C186:C187)","v":1417250},{"$f":"SUM(D186:D187)","v":0},0,0,0,0,0,0,1417250,1479609,1546191]
[]
[{"$f":"head27a","v":"References"}]
["1. Must reconcile with relevant line on the 'Financial Performance' budget"]
["2. Must reconcile to supporting documentation on staff salaries"]
["3. Insert other categories where revenue or expenditure is of a material nature"]
["4. Expenditure to meet any unfunded obligations"]
["5. Special consideration may have to be given to including 'goodwill arising' or 'joint venture' budgets where circumstances require this (include separately under relevant notes)"]
["6. Only complete if a previous adjusted budget has been approved in the same financial year. Reflect most recent adjusted budget."]
["7. Additional cash-backed accumulated funds/unspent funds (section 18(1)(b) and section 28(2)(e) MFMA) identified after Original Budget approved and after annual financial statements audited (note: only where underspending could not reasonably be have for"]
["8. Increases of funds approved under section 31 MFMA"]
["9. Adjustments approved in accordance with section 29 MFMA"]
["10. Adjustments to funding allocations from National or Provincial Government"]
["11. Adjusts. = 'Other' Adjustments proposed to be approved; including revenue under-collection (MFMA section 28(2)(a)); additional revenue appropriation on existing programmes (section 28(2))(b); projected savings (section 28(2)(d)); error correction (sec"]
["12. G = B + C + D + E + F"]
["13. Adjusted Budget H = (A or A1) + G"]
["14. Repairs and Maintenance is not a GRAP item. However to facilitate transparency, municipalities must provide a breakdown of the amounts included in the relevant GRAP items that will be spent on Repairs and Maintenance."]
["15. Must reconcile with Repairs and Maintenance by Asset Class (Total Repairs and Maintenance) on Table SA34c."]

{"sheet":"SB2","index":38,"n_rows":188,"n_cols":29,"rows_kept":188,"cut":false,"hidden":false,"merged":[[180,0,180,12],[1,1,3,1],[1,0,3,0],[1,2,1,10],[176,0,176,12]]}
[{"$f":"muni&\" - \"&ADJB2&\" - \"&Date","v":"EC139 Enoch Mgijima - Supporting Table SB2 Supporting detail to 'Financial Position Budget' - "}]
[{"$f":"desc","v":"Description"},{"$f":"head27","v":"Ref"},{"$f":"Head2","v":"Budget Year 2021/22"},null,null,null,null,null,null,null,null,{"$f":"Head10","v":"Budget Year +1 2022/23"},{"$f":"Head11","v":"Budget Year +2 2023/24"}]
[null,null,{"$f":"Head6","v":"Original Budget"},{"$f":"Head54","v":"Prior Adjusted"},{"$f":"Head51","v":"Accum. Funds"},{"$f":"Head52","v":"Multi-year capital"},{"$f":"Head53","v":"Unfore. Unavoid."},{"$f":"Head55","v":"Nat. or Prov. Govt"},{"$f":"Head50","v":"Other Adjusts."},{"$f":"Head56","v":"Total Adjusts."},{"$f":"Head7","v":"Adjusted Budget"},{"$f":"Head7","v":"Adjusted Budget"},{"$f":"Head7","v":"Adjusted Budget"}]
[null,null,null,4,5,6,7,8,9,10,11]
["R thousands",null,"A","A1","B","C","D","E","F","G","H"]
["ASSETS"]
[]
[]
[]
[]
["Consumer debtors"]
[{"$f":"A11","v":"Consumer debtors"},null,{"$f":"SUMIFS(Sheet1!S71_OriginalBudget,Sheet1!S71_SA3Code,$AC:$AC)","v":66366277},{"$f":"SUMIFS(Sheet1!S71_SpecialAdjustedBudget,Sheet1!S71_SA3Code,$AC:$AC)","v":0},null,null,null,null,{"$f":"SUMIFS(Sheet1!S71_AdjustmentAmount,Sheet1!S71_SA3Code,$AC:$AC)","v":0},{"$f":"SUM(E12:I12)","v":0},{"$f":"IF(D12=0,C12+J12,D12+J12)","v":66366277},{"$f":"SUMIFS(Sheet1!S71_OY1AdjustedBudget,Sheet1!S71_SA3Code,$AC:$AC)","v":69899998},{"$f":"SUMIFS(Sheet1!S71_OY2AdjustedBudget,Sheet1!S71_SA3Code,$AC:$AC)","v":80342533},null,null,null,null,null,null,null,null,null,null,null,null,null,null,null,"0141"]
["Less: provision for debt impairment",null,{"$f":"C20","v":-48339518},{"$f":"D20","v":0},0,0,0,0,0,{"$f":"SUM(E13:I13)","v":0},{"$f":"IF(D13=0,C13+J13,D13+J13)","v":-48339518},{"$f":"L20","v":-55265361},{"$f":"M20","v":-62502867}]
[{"$f":"\"Total \"&A11","v":"Total Consumer debtors"},1,{"$f":"SUM(C12:C13)","v":18026759},{"$f":"SUM(D12:D13)","v":0},0,0,0,0,0,0,18026759,14634637,17839666]
[]
["Debt impairment provision"]
["Balance at the beginning of the year",null,{"$f":"SUMIFS(Sheet1!S71_OriginalBudget,Sheet1!S71_SA3Code,$AC:$AC)","v":-44394771},{"$f":"SUMIFS(Sheet1!S71_SpecialAdjustedBudget,Sheet1!S71_SA3Code,$AC:$AC)","v":0},null,null,null,null,{"$f":"SUMIFS(Sheet1!S71_AdjustmentAmount,Sheet1!S71_SA3Code,$AC:$AC)","v":0},{"$f":"SUM(E17:I17)","v":0},{"$f":"IF(D17=0,C17+J17,D17+J17)","v":-44394771},{"$f":"K20","v":-48339518},{"$f":"L20","v":-55265361},null,null,null,null,null,null,null,null,null,null,null,null,null,null,null,"0145"]
["Contributions to the provision",null,{"$f":"SUMIFS(Sheet1!S71_OriginalBudget,Sheet1!S71_SA3Code,$AC:$AC)","v":-3944747},{"$f":"SUMIFS(Sheet1!S71_SpecialAdjustedBudget,Sheet1!S71_SA3Code,$AC:$AC)","v":0},null,null,null,null,{"$f":"SUMIFS(Sheet1!S71_AdjustmentAmount,Sheet1!S71_SA3Code,$AC:$AC)","v":0},{"$f":"SUM(E18:I18)","v":0},{"$f":"IF(D18=0,C18+J18,D18+J18)","v":-3944747},{"$f":"SUMIFS(Sheet1!S71_OY1AdjustedBudget,Sheet1!S71_SA3Code,$AC:$AC)","v":-6925843},{"$f":"SUMIFS(Sheet1!S71_OY2AdjustedBudget,Sheet1!S71_SA3Code,$AC:$AC)","v":-7237506},null,null,null,null,null,null,null,null,null,null,null,null,null,null,null,"0146"]
["Bad debts written off",null,{"$f":"SUMIFS(Sheet1!S71_OriginalBudget,Sheet1!S71_SA3Code,$AC:$AC)","v":0},{"$f":"SUMIFS(Sheet1!S71_SpecialAdjustedBudget,Sheet1!S71_SA3Code,$AC:$AC)","v":0},null,null,null,null,{"$f":"SUMIFS(Sheet1!S71_AdjustmentAmount,Sheet1!S71_SA3Code,$AC:$AC)","v":0},{"$f":"SUM(E19:I19)","v":0},{"$f":"IF(D19=0,C19+J19,D19+J19)","v":0},{"$f":"SUMIFS(Sheet1!S71_OY1AdjustedBudget,Sheet1!S71_SA3Code,$AC:$AC)","v":0},{"$f":"SUMIFS(Sheet1!S71_OY2AdjustedBudget,Sheet1!S71_SA3Code,$AC:$AC)","v":0},null,null,null,null,null,null,null,null,null,null,null,null,null,null,null,"0147"]
["Balance at end of year",null,{"$f":"SUM(C17:C19)","v":-48339518},{"$f":"SUM(D17:D19)","v":0},0,0,0,0,0,0,{"$f":"SUM(K17:K19)","v":-48339518},-55265361,-62502867]
[]
["Inventory"]
["Water"]
["  Opening Balance",null,{"$f":"SUMIFS(Sheet1!S71_OriginalBudget,Sheet1!S71_A6SubCode,$AC:$AC)","v":0},{"$f":"SUMIFS(Sheet1!S71_SpecialAdjustedBudget,Sheet1!S71_A6SubCode,$AC:$AC)","v":0},null,null,null,null,{"$f":"SUMIFS(Sheet1!S71_AdjustmentAmount,Sheet1!S71_A6SubCode,$AC:$AC)","v":0},{"$f":"SUM(E24:I24)","v":0},{"$f":"IF(D24=0,C24+J24,D24+J24)","v":0},{"$f":"K53","v":0},{"$f":"L53","v":0},null,null,null,null,null,null,null,null,null,null,null,null,null,null,null,"0170-01-00"]
["  System Input Volume",null,{"$f":"SUM(C26:C28)","v":0},{"$f":"SUM(D26:D28)","v":0},{"$f":"SUM(E26:E28)","v":0},0,0,0,0,0,0,0,0]
["      Water Treatment Works",null,{"$f":"SUMIFS(Sheet1!S71_OriginalBudget,Sheet1!S71_A6SubCode,$AC:$AC)","v":0},{"$f":"SUMIFS(Sheet1!S71_SpecialAdjustedBudget,Sheet1!S71_A6SubCode,$AC:$AC)","v":0},null,null,null,null,{"$f":"SUMIFS(Sheet1!S71_AdjustmentAmount,Sheet1!S71_A6SubCode,$AC:$AC)","v":0},{"$f":"SUM(E26:I26)","v":0},{"$f":"IF(D26=0,C26+J26,D26+J26)","v":0},{"$f":"SUMIFS(Sheet1!S71_OY1AdjustedBudget,Sheet1!S71_A6SubCode,$AC:$AC)","v":0},{"$f":"SUMIFS(Sheet1!S71_OY2AdjustedBudget,Sheet1!S71_A6SubCode,$AC:$AC)","v":0},null,null,null,null,null,null,null,null,null,null,null,null,null,null,null,"0170-01-01"]
["      Bulk Purchases",null,{"$f":"SUMIFS(Sheet1!S71_OriginalBudget,Sheet1!S71_A6SubCode,$AC:$AC)","v":0},{"$f":"SUMIFS(Sheet1!S71_SpecialAdjustedBudget,Sheet1!S71_A6SubCode,$AC:$AC)","v":0},null,null,null,null,{"$f":"SUMIFS(Sheet1!S71_AdjustmentAmount,Sheet1!S71_A6SubCode,$AC:$AC)","v":0},{"$f":"SUM(E27:I27)","v":0},{"$f":"IF(D27=0,C27+J27,D27+J27)","v":0},{"$f":"SUMIFS(Sheet1!S71_OY1AdjustedBudget,Sheet1!S71_A6SubCode,$AC:$AC)","v":0},{"$f":"SUMIFS(Sheet1!S71_OY2AdjustedBudget,Sheet1!S71_A6SubCode,$AC:$AC)","v":0},null,null,null,null,null,null,null,null,null,null,null,null,null,null,null,"0170-01-02"]
["      Natural Sources",null,{"$f":"SUMIFS(Sheet1!S71_OriginalBudget,Sheet1!S71_A6SubCode,$AC:$AC)","v":0},{"$f":"SUMIFS(Sheet1!S71_SpecialAdjustedBudget,Sheet1!S71_A6SubCode,$AC:$AC)","v":0},null,null,null,null,{"$f":"SUMIFS(Sheet1!S71_AdjustmentAmount,Sheet1!S71_A6SubCode,$AC:$AC)","v":0},{"$f":"SUM(E28:I28)","v":0},{"$f":"IF(D28=0,C28+J28,D28+J28)","v":0},{"$f":"SUMIFS(Sheet1!S71_OY1AdjustedBudget,Sheet1!S71_A6SubCode,$AC:$AC)","v":0},{"$f":"SUMIFS(Sheet1!S71_OY2AdjustedBudget,Sheet1!S71_A6SubCode,$AC:$AC)","v":0},null,null,null,null,null,null,null,null,null,null,null,null,null,null,null,"0170-01-03"]
["  Authorised Consumption",12,{"$f":"C30+C39","v":0},{"$f":"D30+D39","v":0},{"$f":"E30+E39","v":0},0,0,0,0,0,0,0,0]
["      Billed Authorised Consumption",null,{"$f":"C31+C35","v":0},{"$f":"D31+D35","v":0},{"$f":"E31+E35","v":0},0,0,0,0,0,0,0,0]
["         Billed Metered Consumption",null,{"$f":"SUM(C32:C34)","v":0},{"$f":"SUM(D32:D34)","v":0},{"$f":"SUM(E32:E34)","v":0},0,0,0,0,0,0,0,0]
["          Free Basic Water",null,{"$f":"SUMIFS(Sheet1!S71_OriginalBudget,Sheet1!S71_A6SubCode,$AC:$AC)","v":0},{"$f":"SUMIFS(Sheet1!S71_SpecialAdjustedBudget,Sheet1!S71_A6SubCode,$AC:$AC)","v":0},null,null,null,null,{"$f":"SUMIFS(Sheet1!S71_AdjustmentAmount,Sheet1!S71_A6SubCode,$AC:$AC)","v":0},{"$f":"SUM(E32:I32)","v":0},{"$f":"IF(D32=0,C32+J32,D32+J32)","v":0},{"$f":"SUMIFS(Sheet1!S71_OY1AdjustedBudget,Sheet1!S71_A6SubCode,$AC:$AC)","v":0},{"$f":"SUMIFS(Sheet1!S71_OY2AdjustedBudget,Sheet1!S71_A6SubCode,$AC:$AC)","v":0},null,null,null,null,null,null,null,null,null,null,null,null,null,null,null,"0170-01-04"]
["          Subsidised Water",null,{"$f":"SUMIFS(Sheet1!S71_OriginalBudget,Sheet1!S71_A6SubCode,$AC:$AC)","v":0},{"$f":"SUMIFS(Sheet1!S71_SpecialAdjustedBudget,Sheet1!S71_A6SubCode,$AC:$AC)","v":0},null,null,null,null,{"$f":"SUMIFS(Sheet1!S71_AdjustmentAmount,Sheet1!S71_A6SubCode,$AC:$AC)","v":0},{"$f":"SUM(E33:I33)","v":0},{"$f":"IF(D33=0,C33+J33,D33+J33)","v":0},{"$f":"SUMIFS(Sheet1!S71_OY1AdjustedBudget,Sheet1!S71_A6SubCode,$AC:$AC)","v":0},{"$f":"SUMIFS(Sheet1!S71_OY2AdjustedBudget,Sheet1!S71_A6SubCode,$AC:$AC)","v":0},null,null,null,null,null,null,null,null,null,null,null,null,null,null,null,"0170-01-05"]
["          Revenue Water",null,{"$f":"SUMIFS(Sheet1!S71_OriginalBudget,Sheet1!S71_A6SubCode,$AC:$AC)","v":0},{"$f":"SUMIFS(Sheet1!S71_SpecialAdjustedBudget,Sheet1!S71_A6SubCode,$AC:$AC)","v":0},null,null,null,null,{"$f":"SUMIFS(Sheet1!S71_AdjustmentAmount,Sheet1!S71_A6SubCode,$AC:$AC)","v":0},{"$f":"SUM(E34:I34)","v":0},{"$f":"IF(D34=0,C34+J34,D34+J34)","v":0},{"$f":"SUMIFS(Sheet1!S71_OY1AdjustedBudget,Sheet1!S71_A6SubCode,$AC:$AC)","v":0},{"$f":"SUMIFS(Sheet1!S71_OY2AdjustedBudget,Sheet1!S71_A6SubCode,$AC:$AC)","v":0},null,null,null,null,null,null,null,null,null,null,null,null,null,null,null,"0170-01-06"]
["         Billed Unmetered Consumption",null,{"$f":"SUM(C36:C38)","v":0},{"$f":"SUM(D36:D38)","v":0},{"$f":"SUM(E36:E38)","v":0},0,0,0,0,0,0,0,0]
["          Free Basic Water",null,{"$f":"SUMIFS(Sheet1!S71_OriginalBudget,Sheet1!S71_A6SubCode,$AC:$AC)","v":0},{"$f":"SUMIFS(Sheet1!S71_SpecialAdjustedBudget,Sheet1!S71_A6SubCode,$AC:$AC)","v":0},null,null,null,null,{"$f":"SUMIFS(Sheet1!S71_AdjustmentAmount,Sheet1!S71_A6SubCode,$AC:$AC)","v":0},{"$f":"SUM(E36:I36)","v":0},{"$f":"IF(D36=0,C36+J36,D36+J36)","v":0},{"$f":"SUMIFS(Sheet1!S71_OY1AdjustedBudget,Sheet1!S71_A6SubCode,$AC:$AC)","v":0},{"$f":"SUMIFS(Sheet1!S71_OY2AdjustedBudget,Sheet1!S71_A6SubCode,$AC:$AC)","v":0},null,null,null,null,null,null,null,null,null,null,null,null,null,null,null,"0170-01-07"]
["          Subsidised Water",null,{"$f":"SUMIFS(Sheet1!S71_OriginalBudget,Sheet1!S71_A6SubCode,$AC:$AC)","v":0},{"$f":"SUMIFS(Sheet1!S71_SpecialAdjustedBudget,Sheet1!S71_A6SubCode,$AC:$AC)","v":0},null,null,null,null,{"$f":"SUMIFS(Sheet1!S71_AdjustmentAmount,Sheet1!S71_A6SubCode,$AC:$AC)","v":0},{"$f":"SUM(E37:I37)","v":0},{"$f":"IF(D37=0,C37+J37,D37+J37)","v":0},{"$f":"SUMIFS(Sheet1!S71_OY1AdjustedBudget,Sheet1!S71_A6SubCode,$AC:$AC)","v":0},{"$f":"SUMIFS(Sheet1!S71_OY2AdjustedBudget,Sheet1!S71_A6SubCode,$AC:$AC)","v":0},null,null,null,null,null,null,null,null,null,null,null,null,null,null,null,"0170-01-08"]
["          Revenue Water",null,{"$f":"SUMIFS(Sheet1!S71_OriginalBudget,Sheet1!S71_A6SubCode,$AC:$AC)","v":0},{"$f":"SUMIFS(Sheet1!S71_SpecialAdjustedBudget,Sheet1!S71_A6SubCode,$AC:$AC)","v":0},null,null,null,null,{"$f":"SUMIFS(Sheet1!S71_AdjustmentAmount,Sheet1!S71_A6SubCode,$AC:$AC)","v":0},{"$f":"SUM(E38:I38)","v":0},{"$f":"IF(D38=0,C38+J38,D38+J38)","v":0},{"$f":"SUMIFS(Sheet1!S71_OY1AdjustedBudget,Sheet1!S71_A6SubCode,$AC:$AC)","v":0},{"$f":"SUMIFS(Sheet1!S71_OY2AdjustedBudget,Sheet1!S71_A6SubCode,$AC:$AC)","v":0},null,null,null,null,null,null,null,null,null,null,null,null,null,null,null,"0170-01-09"]
["     UnBilled Authorised Consumption",null,{"$f":"SUM(C40:C41)","v":0},{"$f":"SUM(D40:D41)","v":0},{"$f":"SUM(E40:E41)","v":0},0,0,0,0,0,0,0,0]
["          Unbilled Metered Consumption",null,{"$f":"SUMIFS(Sheet1!S71_OriginalBudget,Sheet1!S71_A6SubCode,$AC:$AC)","v":0},{"$f":"SUMIFS(Sheet1!S71_SpecialAdjustedBudget,Sheet1!S71_A6SubCode,$AC:$AC)","v":0},null,null,null,null,{"$f":"SUMIFS(Sheet1!S71_AdjustmentAmount,Sheet1!S71_A6SubCode,$AC:$AC)","v":0},{"$f":"SUM(E40:I40)","v":0},{"$f":"IF(D40=0,C40+J40,D40+J40)","v":0},{"$f":"SUMIFS(Sheet1!S71_OY1AdjustedBudget,Sheet1!S71_A6SubCode,$AC:$AC)","v":0},{"$f":"SUMIFS(Sheet1!S71_OY2AdjustedBudget,Sheet1!S71_A6SubCode,$AC:$AC)","v":0},null,null,null,null,null,null,null,null,null,null,null,null,null,null,null,"0170-01-10"]
["          Unbilled Unmetered Consumption",null,{"$f":"SUMIFS(Sheet1!S71_OriginalBudget,Sheet1!S71_A6SubCode,$AC:$AC)","v":0},{"$f":"SUMIFS(Sheet1!S71_SpecialAdjustedBudget,Sheet1!S71_A6SubCode,$AC:$AC)","v":0},null,null,null,null,{"$f":"SUMIFS(Sheet1!S71_AdjustmentAmount,Sheet1!S71_A6SubCode,$AC:$AC)","v":0},{"$f":"SUM(E41:I41)","v":0},{"$f":"IF(D41=0,C41+J41,D41+J41)","v":0},{"$f":"SUMIFS(Sheet1!S71_OY1AdjustedBudget,Sheet1!S71_A6SubCode,$AC:$AC)","v":0},{"$f":"SUMIFS(Sheet1!S71_OY2AdjustedBudget,Sheet1!S71_A6SubCode,$AC:$AC)","v":0},null,null,null,null,null,null,null,null,null,null,null,null,null,null,null,"0170-01-11"]
["     Water Losses",null,{"$f":"C43+C46","v":0},{"$f":"D43+D46","v":0},{"$f":"E43+E46","v":0},0,0,0,0,0,0,0,0]
["         Apparent losses",null,{"$f":"SUM(C44:C45)","v":0},{"$f":"SUM(D44:D45)","v":0},{"$f":"SUM(E44:E45)","v":0},0,0,0,0,0,0,0,0]
["           Unauthorised Consumption",null,{"$f":"SUMIFS(Sheet1!S71_OriginalBudget,Sheet1!S71_A6SubCode,$AC:$AC)","v":0},{"$f":"SUMIFS(Sheet1!S71_SpecialAdjustedBudget,Sheet1!S71_A6SubCode,$AC:$AC)","v":0},null,null,null,null,{"$f":"SUMIFS(Sheet1!S71_AdjustmentAmount,Sheet1!S71_A6SubCode,$AC:$AC)","v":0},{"$f":"SUM(E44:I44)","v":0},{"$f":"IF(D44=0,C44+J44,D44+J44)","v":0},{"$f":"SUMIFS(Sheet1!S71_OY1AdjustedBudget,Sheet1!S71_A6SubCode,$AC:$AC)","v":0},{"$f":"SUMIFS(Sheet1!S71_OY2AdjustedBudget,Sheet1!S71_A6SubCode,$AC:$AC)","v":0},null,null,null,null,null,null,null,null,null,null,null,null,null,null,null,"0170-01-12"]
["           Customer Meter Inaccuracies",null,{"$f":"SUMIFS(Sheet1!S71_OriginalBudget,Sheet1!S71_A6SubCode,$AC:$AC)","v":0},{"$f":"SUMIFS(Sheet1!S71_SpecialAdjustedBudget,Sheet1!S71_A6SubCode,$AC:$AC)","v":0},null,null,null,null,{"$f":"SUMIFS(Sheet1!S71_AdjustmentAmount,Sheet1!S71_A6SubCode,$AC:$AC)","v":0},{"$f":"SUM(E45:I45)","v":0},{"$f":"IF(D45=0,C45+J45,D45+J45)","v":0},{"$f":"SUMIFS(Sheet1!S71_OY1AdjustedBudget,Sheet1!S71_A6SubCode,$AC:$AC)","v":0},{"$f":"SUMIFS(Sheet1!S71_OY2AdjustedBudget,Sheet1!S71_A6SubCode,$AC:$AC)","v":0},null,null,null,null,null,null,null,null,null,null,null,null,null,null,null,"0170-01-13"]
["         Real losses",null,{"$f":"SUM(C47:C51)","v":0},{"$f":"SUM(D47:D51)","v":0},{"$f":"SUM(E47:E51)","v":0},0,0,0,0,0,0,0,0]
["           Leakage on Transmission and Distribution Mains",null,{"$f":"SUMIFS(Sheet1!S71_OriginalBudget,Sheet1!S71_A6SubCode,$AC:$AC)","v":0},{"$f":"SUMIFS(Sheet1!S71_SpecialAdjustedBudget,Sheet1!S71_A6SubCode,$AC:$AC)","v":0},null,null,null,null,{"$f":"SUMIFS(Sheet1!S71_AdjustmentAmount,Sheet1!S71_A6SubCode,$AC:$AC)","v":0},{"$f":"SUM(E47:I47)","v":0},{"$f":"IF(D47=0,C47+J47,D47+J47)","v":0},{"$f":"SUMIFS(Sheet1!S71_OY1AdjustedBudget,Sheet1!S71_A6SubCode,$AC:$AC)","v":0},{"$f":"SUMIFS(Sheet1!S71_OY2AdjustedBudget,Sheet1!S71_A6SubCode,$AC:$AC)","v":0},null,null,null,null,null,null,null,null,null,null,null,null,null,null,null,"0170-01-14"]
["           Leakage and Overflows at Storage Tanks/Reservoirs",null,{"$f":"SUMIFS(Sheet1!S71_OriginalBudget,Sheet1!S71_A6SubCode,$AC:$AC)","v":0},{"$f":"SUMIFS(Sheet1!S71_SpecialAdjustedBudget,Sheet1!S71_A6SubCode,$AC:$AC)","v":0},null,null,null,null,{"$f":"SUMIFS(Sheet1!S71_AdjustmentAmount,Sheet1!S71_A6SubCode,$AC:$AC)","v":0},{"$f":"SUM(E48:I48)","v":0},{"$f":"IF(D48=0,C48+J48,D48+J48)","v":0},{"$f":"SUMIFS(Sheet1!S71_OY1AdjustedBudget,Sheet1!S71_A6SubCode,$AC:$AC)","v":0},{"$f":"SUMIFS(Sheet1!S71_OY2AdjustedBudget,Sheet1!S71_A6SubCode,$AC:$AC)","v":0},null,null,null,null,null,null,null,null,null,null,null,null,null,null,null,"0170-01-15"]
["           Leakage on Service Connections up to the point of Customer Meter",null,{"$f":"SUMIFS(Sheet1!S71_OriginalBudget,Sheet1!S71_A6SubCode,$AC:$AC)","v":0},{"$f":"SUMIFS(Sheet1!S71_SpecialAdjustedBudget,Sheet1!S71_A6SubCode,$AC:$AC)","v":0},null,null,null,null,{"$f":"SUMIFS(Sheet1!S71_AdjustmentAmount,Sheet1!S71_A6SubCode,$AC:$AC)","v":0},{"$f":"SUM(E49:I49)","v":0},{"$f":"IF(D49=0,C49+J49,D49+J49)","v":0},{"$f":"SUMIFS(Sheet1!S71_OY1AdjustedBudget,Sheet1!S71_A6SubCode,$AC:$AC)","v":0},{"$f":"SUMIFS(Sheet1!S71_OY2AdjustedBudget,Sheet1!S71_A6SubCode,$AC:$AC)","v":0},null,null,null,null,null,null,null,null,null,null,null,null,null,null,null,"0170-01-16"]
["           Data Transfer and Management Errors",null,{"$f":"SUMIFS(Sheet1!S71_OriginalBudget,Sheet1!S71_A6SubCode,$AC:$AC)","v":0},{"$f":"SUMIFS(Sheet1!S71_SpecialAdjustedBudget,Sheet1!S71_A6SubCode,$AC:$AC)","v":0},null,null,null,null,{"$f":"SUMIFS(Sheet1!S71_AdjustmentAmount,Sheet1!S71_A6SubCode,$AC:$AC)","v":0},{"$f":"SUM(E50:I50)","v":0},{"$f":"IF(D50=0,C50+J50,D50+J50)","v":0},{"$f":"SUMIFS(Sheet1!S71_OY1AdjustedBudget,Sheet1!S71_A6SubCode,$AC:$AC)","v":0},{"$f":"SUMIFS(Sheet1!S71_OY2AdjustedBudget,Sheet1!S71_A6SubCode,$AC:$AC)","v":0},null,null,null,null,null,null,null,null,null,null,null,null,null,null,null,"0170-01-17"]
["           Unavoidable Annual Real Losses",null,{"$f":"SUMIFS(Sheet1!S71_OriginalBudget,Sheet1!S71_A6SubCode,$AC:$AC)","v":0},{"$f":"SUMIFS(Sheet1!S71_SpecialAdjustedBudget,Sheet1!S71_A6SubCode,$AC:$AC)","v":0},null,null,null,null,{"$f":"SUMIFS(Sheet1!S71_AdjustmentAmount,Sheet1!S71_A6SubCode,$AC:$AC)","v":0},{"$f":"SUM(E51:I51)","v":0},{"$f":"IF(D51=0,C51+J51,D51+J51)","v":0},{"$f":"SUMIFS(Sheet1!S71_OY1AdjustedBudget,Sheet1!S71_A6SubCode,$AC:$AC)","v":0},{"$f":"SUMIFS(Sheet1!S71_OY2AdjustedBudget,Sheet1!S71_A6SubCode,$AC:$AC)","v":0},null,null,null,null,null,null,null,null,null,null,null,null,null,null,null,"0170-01-18"]
["  Non-revenue Water",null,{"$f":"C42+C39","v":0},{"$f":"D42+D39","v":0},{"$f":"E42+E39","v":0},0,0,0,0,0,0,0,0]
["  Closing Balance Water",null,{"$f":"C24+C25+C29+C42","v":0},{"$f":"D24+D25+D29+D42","v":0},{"$f":"E24+E25+E29+E42","v":0},0,0,0,0,0,0,0,0]
[]
["Agricultural"]
["  Opening Balance",null,{"$f":"SUMIFS(Sheet1!S71_OriginalBudget,Sheet1!S71_A6SubCode,$AC:$AC)","v":0},{"$f":"SUMIFS(Sheet1!S71_SpecialAdjustedBudget,Sheet1!S71_A6SubCode,$AC:$AC)","v":0},null,null,null,null,{"$f":"SUMIFS(Sheet1!S71_AdjustmentAmount,Sheet1!S71_A6SubCode,$AC:$AC)","v":0},{"$f":"SUM(E56:I56)","v":0},{"$f":"IF(D56=0,C56+J56,D56+J56)","v":0},{"$f":"K61","v":0},{"$f":"L61","v":0},null,null,null,null,null,null,null,null,null,null,null,null,null,null,null,"0170-02-00"]
["      Acquisitions",null,{"$f":"SUMIFS(Sheet1!S71_OriginalBudget,Sheet1!S71_A6SubCode,$AC:$AC)","v":0},{"$f":"SUMIFS(Sheet1!S71_SpecialAdjustedBudget,Sheet1!S71_A6SubCode,$AC:$AC)","v":0},null,null,null,null,{"$f":"SUMIFS(Sheet1!S71_AdjustmentAmount,Sheet1!S71_A6SubCode,$AC:$AC)","v":0},{"$f":"SUM(E57:I57)","v":0},{"$f":"IF(D57=0,C57+J57,D57+J57)","v":0},{"$f":"SUMIFS(Sheet1!S71_OY1AdjustedBudget,Sheet1!S71_A6SubCode,$AC:$AC)","v":0},{"$f":"SUMIFS(Sheet1!S71_OY2AdjustedBudget,Sheet1!S71_A6SubCode,$AC:$AC)","v":0},null,null,null,null,null,null,null,null,null,null,null,null,null,null,null,"0170-02-01"]
["      Issues",13,{"$f":"SUMIFS(Sheet1!S71_OriginalBudget,Sheet1!S71_A6SubCode,$AC:$AC)","v":0},{"$f":"SUMIFS(Sheet1!S71_SpecialAdjustedBudget,Sheet1!S71_A6SubCode,$AC:$AC)","v":0},null,null,null,null,{"$f":"SUMIFS(Sheet1!S71_AdjustmentAmount,Sheet1!S71_A6SubCode,$AC:$AC)","v":0},{"$f":"SUM(E58:I58)","v":0},{"$f":"IF(D58=0,C58+J58,D58+J58)","v":0},{"$f":"SUMIFS(Sheet1!S71_OY1AdjustedBudget,Sheet1!S71_A6SubCode,$AC:$AC)","v":0},{"$f":"SUMIFS(Sheet1!S71_OY2AdjustedBudget,Sheet1!S71_A6SubCode,$AC:$AC)","v":0},null,null,null,null,null,null,null,null,null,null,null,null,null,null,null,"0170-02-02"]
["      Adjustments",14,{"$f":"SUMIFS(Sheet1!S71_OriginalBudget,Sheet1!S71_A6SubCode,$AC:$AC)","v":0},{"$f":"SUMIFS(Sheet1!S71_SpecialAdjustedBudget,Sheet1!S71_A6SubCode,$AC:$AC)","v":0},null,null,null,null,{"$f":"SUMIFS(Sheet1!S71_AdjustmentAmount,Sheet1!S71_A6SubCode,$AC:$AC)","v":0},{"$f":"SUM(E59:I59)","v":0},{"$f":"IF(D59=0,C59+J59,D59+J59)","v":0},{"$f":"SUMIFS(Sheet1!S71_OY1AdjustedBudget,Sheet1!S71_A6SubCode,$AC:$AC)","v":0},{"$f":"SUMIFS(Sheet1!S71_OY2AdjustedBudget,Sheet1!S71_A6SubCode,$AC:$AC)","v":0},null,null,null,null,null,null,null,null,null,null,null,null,null,null,null,"0170-02-03"]
["      Write-offs",15,{"$f":"SUMIFS(Sheet1!S71_OriginalBudget,Sheet1!S71_A6SubCode,$AC:$AC)","v":0},{"$f":"SUMIFS(Sheet1!S71_SpecialAdjustedBudget,Sheet1!S71_A6SubCode,$AC:$AC)","v":0},null,null,null,null,{"$f":"SUMIFS(Sheet1!S71_AdjustmentAmount,Sheet1!S71_A6SubCode,$AC:$AC)","v":0},{"$f":"SUM(E60:I60)","v":0},{"$f":"IF(D60=0,C60+J60,D60+J60)","v":0},{"$f":"SUMIFS(Sheet1!S71_OY1AdjustedBudget,Sheet1!S71_A6SubCode,$AC:$AC)","v":0},{"$f":"SUMIFS(Sheet1!S71_OY2AdjustedBudget,Sheet1!S71_A6SubCode,$AC:$AC)","v":0},null,null,null,null,null,null,null,null,null,null,null,null,null,null,null,"0170-02-04"]
["  Closing balance - Agricultural",null,{"$f":"SUM(C56:C60)","v":0},0,0,0,0,0,0,0,0,0,0]
[]
["Consumables"]
["Standard Rated"]
["  Opening Balance",null,{"$f":"SUMIFS(Sheet1!S71_OriginalBudget,Sheet1!S71_A6SubCode,$AC:$AC)","v":0},{"$f":"SUMIFS(Sheet1!S71_SpecialAdjustedBudget,Sheet1!S71_A6SubCode,$AC:$AC)","v":0},null,null,null,null,{"$f":"SUMIFS(Sheet1!S71_AdjustmentAmount,Sheet1!S71_A6SubCode,$AC:$AC)","v":0},{"$f":"SUM(E65:I65)","v":0},{"$f":"IF(D65=0,C65+J65,D65+J65)","v":0},{"$f":"K70","v":-1417250},{"$f":"L70","v":-2896859},null,null,null,null,null,null,null,null,null,null,null,null,null,null,null,"0170-03-00"]
["      Acquisitions",null,{"$f":"SUMIFS(Sheet1!S71_OriginalBudget,Sheet1!S71_A6SubCode,$AC:$AC)","v":0},{"$f":"SUMIFS(Sheet1!S71_SpecialAdjustedBudget,Sheet1!S71_A6SubCode,$AC:$AC)","v":0},null,null,null,null,{"$f":"SUMIFS(Sheet1!S71_AdjustmentAmount,Sheet1!S71_A6SubCode,$AC:$AC)","v":0},{"$f":"SUM(E66:I66)","v":0},{"$f":"IF(D66=0,C66+J66,D66+J66)","v":0},{"$f":"SUMIFS(Sheet1!S71_OY1AdjustedBudget,Sheet1!S71_A6SubCode,$AC:$AC)","v":0},{"$f":"SUMIFS(Sheet1!S71_OY2AdjustedBudget,Sheet1!S71_A6SubCode,$AC:$AC)","v":0},null,null,null,null,null,null,null,null,null,null,null,null,null,null,null,"0170-03-01"]
["      Issues",13,{"$f":"SUMIFS(Sheet1!S71_OriginalBudget,Sheet1!S71_A6SubCode,$AC:$AC)","v":-1417250},{"$f":"SUMIFS(Sheet1!S71_SpecialAdjustedBudget,Sheet1!S71_A6SubCode,$AC:$AC)","v":0},null,null,null,null,{"$f":"SUMIFS(Sheet1!S71_AdjustmentAmount,Sheet1!S71_A6SubCode,$AC:$AC)","v":0},{"$f":"SUM(E67:I67)","v":0},{"$f":"IF(D67=0,C67+J67,D67+J67)","v":-1417250},{"$f":"SUMIFS(Sheet1!S71_OY1AdjustedBudget,Sheet1!S71_A6SubCode,$AC:$AC)","v":-1479609},{"$f":"SUMIFS(Sheet1!S71_OY2AdjustedBudget,Sheet1!S71_A6SubCode,$AC:$AC)","v":-1546191},null,null,null,null,null,null,null,null,null,null,null,null,null,null,null,"0170-03-02"]
["      Adjustments",14,{"$f":"SUMIFS(Sheet1!S71_OriginalBudget,Sheet1!S71_A6SubCode,$AC:$AC)","v":0},{"$f":"SUMIFS(Sheet1!S71_SpecialAdjustedBudget,Sheet1!S71_A6SubCode,$AC:$AC)","v":0},null,null,null,null,{"$f":"SUMIFS(Sheet1!S71_AdjustmentAmount,Sheet1!S71_A6SubCode,$AC:$AC)","v":0},{"$f":"SUM(E68:I68)","v":0},{"$f":"IF(D68=0,C68+J68,D68+J68)","v":0},{"$f":"SUMIFS(Sheet1!S71_OY1AdjustedBudget,Sheet1!S71_A6SubCode,$AC:$AC)","v":0},{"$f":"SUMIFS(Sheet1!S71_OY2AdjustedBudget,Sheet1!S71_A6SubCode,$AC:$AC)","v":0},null,null,null,null,null,null,null,null,null,null,null,null,null,null,null,"0170-03-03"]
["      Write-offs",15,{"$f":"SUMIFS(Sheet1!S71_OriginalBudget,Sheet1!S71_A6SubCode,$AC:$AC)","v":0},{"$f":"SUMIFS(Sheet1!S71_SpecialAdjustedBudget,Sheet1!S71_A6SubCode,$AC:$AC)","v":0},null,null,null,null,{"$f":"SUMIFS(Sheet1!S71_AdjustmentAmount,Sheet1!S71_A6SubCode,$AC:$AC)","v":0},{"$f":"SUM(E69:I69)","v":0},{"$f":"IF(D69=0,C69+J69,D69+J69)","v":0},{"$f":"SUMIFS(Sheet1!S71_OY1AdjustedBudget,Sheet1!S71_A6SubCode,$AC:$AC)","v":0},{"$f":"SUMIFS(Sheet1!S71_OY2AdjustedBudget,Sheet1!S71_A6SubCode,$AC:$AC)","v":0},null,null,null,null,null,null,null,null,null,null,null,null,null,null,null,"0170-03-04"]
["  Closing balance - Consumables Standard Rated",null,{"$f":"SUM(C65:C69)","v":-1417250},{"$f":"SUM(D65:D69)","v":0},0,0,0,0,0,0,-1417250,-2896859,-4443050]
["Zero Rated"]
["  Opening Balance",null,{"$f":"SUMIFS(Sheet1!S71_OriginalBudget,Sheet1!S71_A6SubCode,$AC:$AC)","v":0},{"$f":"SUMIFS(Sheet1!S71_SpecialAdjustedBudget,Sheet1!S71_A6SubCode,$AC:$AC)","v":0},null,null,null,null,{"$f":"SUMIFS(Sheet1!S71_AdjustmentAmount,Sheet1!S71_A6SubCode,$AC:$AC)","v":0},{"$f":"SUM(E72:I72)","v":0},{"$f":"IF(D72=0,C72+J72,D72+J72)","v":0},{"$f":"K77","v":0},{"$f":"L77","v":0},null,null,null,null,null,null,null,null,null,null,null,null,null,null,null,"0170-04-00"]
["      Acquisitions",null,{"$f":"SUMIFS(Sheet1!S71_OriginalBudget,Sheet1!S71_A6SubCode,$AC:$AC)","v":0},{"$f":"SUMIFS(Sheet1!S71_SpecialAdjustedBudget,Sheet1!S71_A6SubCode,$AC:$AC)","v":0},null,null,null,null,{"$f":"SUMIFS(Sheet1!S71_AdjustmentAmount,Sheet1!S71_A6SubCode,$AC:$AC)","v":0},{"$f":"SUM(E73:I73)","v":0},{"$f":"IF(D73=0,C73+J73,D73+J73)","v":0},{"$f":"SUMIFS(Sheet1!S71_OY1AdjustedBudget,Sheet1!S71_A6SubCode,$AC:$AC)","v":0},{"$f":"SUMIFS(Sheet1!S71_OY2AdjustedBudget,Sheet1!S71_A6SubCode,$AC:$AC)","v":0},null,null,null,null,null,null,null,null,null,null,null,null,null,null,null,"0170-04-01"]
["      Issues",13,{"$f":"SUMIFS(Sheet1!S71_OriginalBudget,Sheet1!S71_A6SubCode,$AC:$AC)","v":0},{"$f":"SUMIFS(Sheet1!S71_SpecialAdjustedBudget,Sheet1!S71_A6SubCode,$AC:$AC)","v":0},null,null,null,null,{"$f":"SUMIFS(Sheet1!S71_AdjustmentAmount,Sheet1!S71_A6SubCode,$AC:$AC)","v":0},{"$f":"SUM(E74:I74)","v":0},{"$f":"IF(D74=0,C74+J74,D74+J74)","v":0},{"$f":"SUMIFS(Sheet1!S71_OY1AdjustedBudget,Sheet1!S71_A6SubCode,$AC:$AC)","v":0},{"$f":"SUMIFS(Sheet1!S71_OY2AdjustedBudget,Sheet1!S71_A6SubCode,$AC:$AC)","v":0},null,null,null,null,null,null,null,null,null,null,null,null,null,null,null,"0170-04-02"]
["      Adjustments",14,{"$f":"SUMIFS(Sheet1!S71_OriginalBudget,Sheet1!S71_A6SubCode,$AC:$AC)","v":0},{"$f":"SUMIFS(Sheet1!S71_SpecialAdjustedBudget,Sheet1!S71_A6SubCode,$AC:$AC)","v":0},null,null,null,null,{"$f":"SUMIFS(Sheet1!S71_AdjustmentAmount,Sheet1!S71_A6SubCode,$AC:$AC)","v":0},{"$f":"SUM(E75:I75)","v":0},{"$f":"IF(D75=0,C75+J75,D75+J75)","v":0},{"$f":"SUMIFS(Sheet1!S71_OY1AdjustedBudget,Sheet1!S71_A6SubCode,$AC:$AC)","v":0},{"$f":"SUMIFS(Sheet1!S71_OY2AdjustedBudget,Sheet1!S71_A6SubCode,$AC:$AC)","v":0},null,null,null,null,null,null,null,null,null,null,null,null,null,null,null,"0170-04-03"]
["      Write-offs",15,{"$f":"SUMIFS(Sheet1!S71_OriginalBudget,Sheet1!S71_A6SubCode,$AC:$AC)","v":0},{"$f":"SUMIFS(Sheet1!S71_SpecialAdjustedBudget,Sheet1!S71_A6SubCode,$AC:$AC)","v":0},null,null,null,null,{"$f":"SUMIFS(Sheet1!S71_AdjustmentAmount,Sheet1!S71_A6SubCode,$AC:$AC)","v":0},{"$f":"SUM(E76:I76)","v":0},{"$f":"IF(D76=0,C76+J76,D76+J76)","v":0},{"$f":"SUMIFS(Sheet1!S71_OY1AdjustedBudget,Sheet1!S71_A6SubCode,$AC:$AC)","v":0},{"$f":"SUMIFS(Sheet1!S71_OY2AdjustedBudget,Sheet1!S71_A6SubCode,$AC:$AC)","v":0},null,null,null,null,null,null,null,null,null,null,null,null,null,null,null,"0170-04-04"]
["  Closing balance - Consumables Zero Rated",null,{"$f":"SUM(C72:C76)","v":0},{"$f":"SUM(D72:D76)","v":0},0,0,0,0,0,0,0,0,0]
[]
["Finished Goods"]
["  Opening Balance",null,{"$f":"SUMIFS(Sheet1!S71_OriginalBudget,Sheet1!S71_A6SubCode,$AC:$AC)","v":0},{"$f":"SUMIFS(Sheet1!S71_SpecialAdjustedBudget,Sheet1!S71_A6SubCode,$AC:$AC)","v":0},null,null,null,null,{"$f":"SUMIFS(Sheet1!S71_AdjustmentAmount,Sheet1!S71_A6SubCode,$AC:$AC)","v":0},{"$f":"SUM(E80:I80)","v":0},{"$f":"IF(D80=0,C80+J80,D80+J80)","v":0},{"$f":"K85","v":0},{"$f":"L85","v":0},null,null,null,null,null,null,null,null,null,null,null,null,null,null,null,"0170-05-00"]
["      Acquisitions",null,{"$f":"SUMIFS(Sheet1!S71_OriginalBudget,Sheet1!S71_A6SubCode,$AC:$AC)","v":0},{"$f":"SUMIFS(Sheet1!S71_SpecialAdjustedBudget,Sheet1!S71_A6SubCode,$AC:$AC)","v":0},null,null,null,null,{"$f":"SUMIFS(Sheet1!S71_AdjustmentAmount,Sheet1!S71_A6SubCode,$AC:$AC)","v":0},{"$f":"SUM(E81:I81)","v":0},{"$f":"IF(D81=0,C81+J81,D81+J81)","v":0},{"$f":"SUMIFS(Sheet1!S71_OY1AdjustedBudget,Sheet1!S71_A6SubCode,$AC:$AC)","v":0},{"$f":"SUMIFS(Sheet1!S71_OY2AdjustedBudget,Sheet1!S71_A6SubCode,$AC:$AC)","v":0},null,null,null,null,null,null,null,null,null,null,null,null,null,null,null,"0170-05-01"]
["      Issues",13,{"$f":"SUMIFS(Sheet1!S71_OriginalBudget,Sheet1!S71_A6SubCode,$AC:$AC)","v":0},{"$f":"SUMIFS(Sheet1!S71_SpecialAdjustedBudget,Sheet1!S71_A6SubCode,$AC:$AC)","v":0},null,null,null,null,{"$f":"SUMIFS(Sheet1!S71_AdjustmentAmount,Sheet1!S71_A6SubCode,$AC:$AC)","v":0},{"$f":"SUM(E82:I82)","v":0},{"$f":"IF(D82=0,C82+J82,D82+J82)","v":0},{"$f":"SUMIFS(Sheet1!S71_OY1AdjustedBudget,Sheet1!S71_A6SubCode,$AC:$AC)","v":0},{"$f":"SUMIFS(Sheet1!S71_OY2AdjustedBudget,Sheet1!S71_A6SubCode,$AC:$AC)","v":0},null,null,null,null,null,null,null,null,null,null,null,null,null,null,null,"0170-05-02"]
["      Adjustments",14,{"$f":"SUMIFS(Sheet1!S71_OriginalBudget,Sheet1!S71_A6SubCode,$AC:$AC)","v":0},{"$f":"SUMIFS(Sheet1!S71_SpecialAdjustedBudget,Sheet1!S71_A6SubCode,$AC:$AC)","v":0},null,null,null,null,{"$f":"SUMIFS(Sheet1!S71_AdjustmentAmount,Sheet1!S71_A6SubCode,$AC:$AC)","v":0},{"$f":"SUM(E83:I83)","v":0},{"$f":"IF(D83=0,C83+J83,D83+J83)","v":0},{"$f":"SUMIFS(Sheet1!S71_OY1AdjustedBudget,Sheet1!S71_A6SubCode,$AC:$AC)","v":0},{"$f":"SUMIFS(Sheet1!S71_OY2AdjustedBudget,Sheet1!S71_A6SubCode,$AC:$AC)","v":0},null,null,null,null,null,null,null,null,null,null,null,null,null,null,null,"0170-05-03"]
["      Write-offs",15,{"$f":"SUMIFS(Sheet1!S71_OriginalBudget,Sheet1!S71_A6SubCode,$AC:$AC)","v":0},{"$f":"SUMIFS(Sheet1!S71_SpecialAdjustedBudget,Sheet1!S71_A6SubCode,$AC:$AC)","v":0},null,null,null,null,{"$f":"SUMIFS(Sheet1!S71_AdjustmentAmount,Sheet1!S71_A6SubCode,$AC:$AC)","v":0},{"$f":"SUM(E84:I84)","v":0},{"$f":"IF(D84=0,C84+J84,D84+J84)","v":0},{"$f":"SUMIFS(Sheet1!S71_OY1AdjustedBudget,Sheet1!S71_A6SubCode,$AC:$AC)","v":0},{"$f":"SUMIFS(Sheet1!S71_OY2AdjustedBudget,Sheet1!S71_A6SubCode,$AC:$AC)","v":0},null,null,null,null,null,null,null,null,null,null,null,null,null,null,null,"0170-05-04"]
["  Closing balance - Finished Goods",null,{"$f":"SUM(C80:C84)","v":0},{"$f":"SUM(D80:D84)","v":0},0,0,0,0,0,0,0,0,0]
[]
["Materials and Supplies"]
["  Opening Balance",null,{"$f":"SUMIFS(Sheet1!S71_OriginalBudget,Sheet1!S71_A6SubCode,$AC:$AC)","v":250000},{"$f":"SUMIFS(Sheet1!S71_SpecialAdjustedBudget,Sheet1!S71_A6SubCode,$AC:$AC)","v":0},null,null,null,null,{"$f":"SUMIFS(Sheet1!S71_AdjustmentAmount,Sheet1!S71_A6SubCode,$AC:$AC)","v":0},{"$f":"SUM(E88:I88)","v":0},{"$f":"IF(D88=0,C88+J88,D88+J88)","v":250000},{"$f":"K93","v":1667250},{"$f":"L93","v":3207859},null,null,null,null,null,null,null,null,null,null,null,null,null,null,null,"0170-06-00"]
["      Acquisitions",null,{"$f":"SUMIFS(Sheet1!S71_OriginalBudget,Sheet1!S71_A6SubCode,$AC:$AC)","v":1417250},{"$f":"SUMIFS(Sheet1!S71_SpecialAdjustedBudget,Sheet1!S71_A6SubCode,$AC:$AC)","v":0},null,null,null,null,{"$f":"SUMIFS(Sheet1!S71_AdjustmentAmount,Sheet1!S71_A6SubCode,$AC:$AC)","v":0},{"$f":"SUM(E89:I89)","v":0},{"$f":"IF(D89=0,C89+J89,D89+J89)","v":1417250},{"$f":"SUMIFS(Sheet1!S71_OY1AdjustedBudget,Sheet1!S71_A6SubCode,$AC:$AC)","v":1540609},{"$f":"SUMIFS(Sheet1!S71_OY2AdjustedBudget,Sheet1!S71_A6SubCode,$AC:$AC)","v":1585191},null,null,null,null,null,null,null,null,null,null,null,null,null,null,null,"0170-06-01"]
["      Issues",13,{"$f":"SUMIFS(Sheet1!S71_OriginalBudget,Sheet1!S71_A6SubCode,$AC:$AC)","v":0},{"$f":"SUMIFS(Sheet1!S71_SpecialAdjustedBudget,Sheet1!S71_A6SubCode,$AC:$AC)","v":0},null,null,null,null,{"$f":"SUMIFS(Sheet1!S71_AdjustmentAmount,Sheet1!S71_A6SubCode,$AC:$AC)","v":0},{"$f":"SUM(E90:I90)","v":0},{"$f":"IF(D90=0,C90+J90,D90+J90)","v":0},{"$f":"SUMIFS(Sheet1!S71_OY1AdjustedBudget,Sheet1!S71_A6SubCode,$AC:$AC)","v":0},{"$f":"SUMIFS(Sheet1!S71_OY2AdjustedBudget,Sheet1!S71_A6SubCode,$AC:$AC)","v":0},null,null,null,null,null,null,null,null,null,null,null,null,null,null,null,"0170-06-02"]
["      Adjustments",14,{"$f":"SUMIFS(Sheet1!S71_OriginalBudget,Sheet1!S71_A6SubCode,$AC:$AC)","v":0},{"$f":"SUMIFS(Sheet1!S71_SpecialAdjustedBudget,Sheet1!S71_A6SubCode,$AC:$AC)","v":0},null,null,null,null,{"$f":"SUMIFS(Sheet1!S71_AdjustmentAmount,Sheet1!S71_A6SubCode,$AC:$AC)","v":0},{"$f":"SUM(E91:I91)","v":0},{"$f":"IF(D91=0,C91+J91,D91+J91)","v":0},{"$f":"SUMIFS(Sheet1!S71_OY1AdjustedBudget,Sheet1!S71_A6SubCode,$AC:$AC)","v":0},{"$f":"SUMIFS(Sheet1!S71_OY2AdjustedBudget,Sheet1!S71_A6SubCode,$AC:$AC)","v":0},null,null,null,null,null,null,null,null,null,null,null,null,null,null,null,"0170-06-03"]
["      Write-offs",15,{"$f":"SUMIFS(Sheet1!S71_OriginalBudget,Sheet1!S71_A6SubCode,$AC:$AC)","v":0},{"$f":"SUMIFS(Sheet1!S71_SpecialAdjustedBudget,Sheet1!S71_A6SubCode,$AC:$AC)","v":0},null,null,null,null,{"$f":"SUMIFS(Sheet1!S71_AdjustmentAmount,Sheet1!S71_A6SubCode,$AC:$AC)","v":0},{"$f":"SUM(E92:I92)","v":0},{"$f":"IF(D92=0,C92+J92,D92+J92)","v":0},{"$f":"SUMIFS(Sheet1!S71_OY1AdjustedBudget,Sheet1!S71_A6SubCode,$AC:$AC)","v":0},{"$f":"SUMIFS(Sheet1!S71_OY2AdjustedBudget,Sheet1!S71_A6SubCode,$AC:$AC)","v":0},null,null,null,null,null,null,null,null,null,null,null,null,null,null,null,"0170-06-04"]
["  Closing balance - Materials and Supplies",null,{"$f":"SUM(C88:C92)","v":1667250},{"$f":"SUM(D88:D92)","v":0},0,0,0,0,0,0,1667250,3207859,4793050]
[]
["Work-in-progress"]
["  Opening Balance",null,{"$f":"SUMIFS(Sheet1!S71_OriginalBudget,Sheet1!S71_A6SubCode,$AC:$AC)","v":0},{"$f":"SUMIFS(Sheet1!S71_SpecialAdjustedBudget,Sheet1!S71_A6SubCode,$AC:$AC)","v":0},null,null,null,null,{"$f":"SUMIFS(Sheet1!S71_AdjustmentAmount,Sheet1!S71_A6SubCode,$AC:$AC)","v":0},{"$f":"SUM(E96:I96)","v":0},{"$f":"IF(D96=0,C96+J96,D96+J96)","v":0},{"$f":"K99","v":0},{"$f":"L99","v":0},null,null,null,null,null,null,null,null,null,null,null,null,null,null,null,"0170-07-00"]
["      Materials",null,{"$f":"SUMIFS(Sheet1!S71_OriginalBudget,Sheet1!S71_A6SubCode,$AC:$AC)","v":0},{"$f":"SUMIFS(Sheet1!S71_SpecialAdjustedBudget,Sheet1!S71_A6SubCode,$AC:$AC)","v":0},null,null,null,null,{"$f":"SUMIFS(Sheet1!S71_AdjustmentAmount,Sheet1!S71_A6SubCode,$AC:$AC)","v":0},{"$f":"SUM(E97:I97)","v":0},{"$f":"IF(D97=0,C97+J97,D97+J97)","v":0},{"$f":"SUMIFS(Sheet1!S71_OY1AdjustedBudget,Sheet1!S71_A6SubCode,$AC:$AC)","v":0},{"$f":"SUMIFS(Sheet1!S71_OY2AdjustedBudget,Sheet1!S71_A6SubCode,$AC:$AC)","v":0},null,null,null,null,null,null,null,null,null,null,null,null,null,null,null,"0170-07-01"]
["      Transfers",null,{"$f":"SUMIFS(Sheet1!S71_OriginalBudget,Sheet1!S71_A6SubCode,$AC:$AC)","v":0},{"$f":"SUMIFS(Sheet1!S71_SpecialAdjustedBudget,Sheet1!S71_A6SubCode,$AC:$AC)","v":0},null,null,null,null,{"$f":"SUMIFS(Sheet1!S71_AdjustmentAmount,Sheet1!S71_A6SubCode,$AC:$AC)","v":0},{"$f":"SUM(E98:I98)","v":0},{"$f":"IF(D98=0,C98+J98,D98+J98)","v":0},{"$f":"SUMIFS(Sheet1!S71_OY1AdjustedBudget,Sheet1!S71_A6SubCode,$AC:$AC)","v":0},{"$f":"SUMIFS(Sheet1!S71_OY2AdjustedBudget,Sheet1!S71_A6SubCode,$AC:$AC)","v":0},null,null,null,null,null,null,null,null,null,null,null,null,null,null,null,"0170-07-02"]
["  Closing balance - Work-in-progress",null,{"$f":"SUM(C96:C98)","v":0},{"$f":"SUM(D96:D98)","v":0},0,0,0,0,0,0,0,0,0]
[]
["Housing Stock"]
["  Opening Balance",null,{"$f":"SUMIFS(Sheet1!S71_OriginalBudget,Sheet1!S71_A6SubCode,$AC:$AC)","v":0},{"$f":"SUMIFS(Sheet1!S71_SpecialAdjustedBudget,Sheet1!S71_A6SubCode,$AC:$AC)","v":0},null,null,null,null,{"$f":"SUMIFS(Sheet1!S71_AdjustmentAmount,Sheet1!S71_A6SubCode,$AC:$AC)","v":0},{"$f":"SUM(E102:I102)","v":0},{"$f":"IF(D102=0,C102+J102,D102+J102)","v":0},{"$f":"K106","v":0},{"$f":"L106","v":0},null,null,null,null,null,null,null,null,null,null,null,null,null,null,null,"0170-08-00"]
["      Acquisitions",null,{"$f":"SUMIFS(Sheet1!S71_OriginalBudget,Sheet1!S71_A6SubCode,$AC:$AC)","v":0},{"$f":"SUMIFS(Sheet1!S71_SpecialAdjustedBudget,Sheet1!S71_A6SubCode,$AC:$AC)","v":0},null,null,null,null,{"$f":"SUMIFS(Sheet1!S71_AdjustmentAmount,Sheet1!S71_A6SubCode,$AC:$AC)","v":0},{"$f":"SUM(E103:I103)","v":0},{"$f":"IF(D103=0,C103+J103,D103+J103)","v":0},{"$f":"SUMIFS(Sheet1!S71_OY1AdjustedBudget,Sheet1!S71_A6SubCode,$AC:$AC)","v":0},{"$f":"SUMIFS(Sheet1!S71_OY2AdjustedBudget,Sheet1!S71_A6SubCode,$AC:$AC)","v":0},null,null,null,null,null,null,null,null,null,null,null,null,null,null,null,"0170-08-01"]
["      Transfers",null,{"$f":"SUMIFS(Sheet1!S71_OriginalBudget,Sheet1!S71_A6SubCode,$AC:$AC)","v":0},{"$f":"SUMIFS(Sheet1!S71_SpecialAdjustedBudget,Sheet1!S71_A6SubCode,$AC:$AC)","v":0},null,null,null,null,{"$f":"SUMIFS(Sheet1!S71_AdjustmentAmount,Sheet1!S71_A6SubCode,$AC:$AC)","v":0},{"$f":"SUM(E104:I104)","v":0},{"$f":"IF(D104=0,C104+J104,D104+J104)","v":0},{"$f":"SUMIFS(Sheet1!S71_OY1AdjustedBudget,Sheet1!S71_A6SubCode,$AC:$AC)","v":0},{"$f":"SUMIFS(Sheet1!S71_OY2AdjustedBudget,Sheet1!S71_A6SubCode,$AC:$AC)","v":0},null,null,null,null,null,null,null,null,null,null,null,null,null,null,null,"0170-08-02"]
["      Sales",null,{"$f":"SUMIFS(Sheet1!S71_OriginalBudget,Sheet1!S71_A6SubCode,$AC:$AC)","v":0},{"$f":"SUMIFS(Sheet1!S71_SpecialAdjustedBudget,Sheet1!S71_A6SubCode,$AC:$AC)","v":0},null,null,null,null,{"$f":"SUMIFS(Sheet1!S71_AdjustmentAmount,Sheet1!S71_A6SubCode,$AC:$AC)","v":0},{"$f":"SUM(E105:I105)","v":0},{"$f":"IF(D105=0,C105+J105,D105+J105)","v":0},{"$f":"SUMIFS(Sheet1!S71_OY1AdjustedBudget,Sheet1!S71_SA3Code,$AC:$AC)","v":0},{"$f":"SUMIFS(Sheet1!S71_OY2AdjustedBudget,Sheet1!S71_SA3Code,$AC:$AC)","v":0},null,null,null,null,null,null,null,null,null,null,null,null,null,null,null,"0170-08-03"]
["  Closing Balance - Housing Stock",null,{"$f":"SUM(C102:C105)","v":0},{"$f":"SUM(D102:D105)","v":0},0,0,0,0,0,0,0,0,0]
[]
["Land"]
["  Opening Balance",null,{"$f":"SUMIFS(Sheet1!S71_OriginalBudget,Sheet1!S71_A6SubCode,$AC:$AC)","v":0},{"$f":"SUMIFS(Sheet1!S71_SpecialAdjustedBudget,Sheet1!S71_A6SubCode,$AC:$AC)","v":0},null,null,null,null,{"$f":"SUMIFS(Sheet1!S71_AdjustmentAmount,Sheet1!S71_A6SubCode,$AC:$AC)","v":0},{"$f":"SUM(E109:I109)","v":0},{"$f":"IF(D109=0,C109+J109,D109+J109)","v":0},{"$f":"K114","v":0},{"$f":"L114","v":0},null,null,null,null,null,null,null,null,null,null,null,null,null,null,null,"0170-09-00"]
["      Acquisitions",null,{"$f":"SUMIFS(Sheet1!S71_OriginalBudget,Sheet1!S71_A6SubCode,$AC:$AC)","v":0},{"$f":"SUMIFS(Sheet1!S71_SpecialAdjustedBudget,Sheet1!S71_A6SubCode,$AC:$AC)","v":0},null,null,null,null,{"$f":"SUMIFS(Sheet1!S71_AdjustmentAmount,Sheet1!S71_A6SubCode,$AC:$AC)","v":0},{"$f":"SUM(E110:I110)","v":0},{"$f":"IF(D110=0,C110+J110,D110+J110)","v":0},{"$f":"SUMIFS(Sheet1!S71_OY1AdjustedBudget,Sheet1!S71_A6SubCode,$AC:$AC)","v":0},{"$f":"SUMIFS(Sheet1!S71_OY2AdjustedBudget,Sheet1!S71_A6SubCode,$AC:$AC)","v":0},null,null,null,null,null,null,null,null,null,null,null,null,null,null,null,"0170-09-01"]
["      Sales",null,{"$f":"SUMIFS(Sheet1!S71_OriginalBudget,Sheet1!S71_A6SubCode,$AC:$AC)","v":0},{"$f":"SUMIFS(Sheet1!S71_SpecialAdjustedBudget,Sheet1!S71_A6SubCode,$AC:$AC)","v":0},null,null,null,null,{"$f":"SUMIFS(Sheet1!S71_AdjustmentAmount,Sheet1!S71_A6SubCode,$AC:$AC)","v":0},{"$f":"SUM(E111:I111)","v":0},{"$f":"IF(D111=0,C111+J111,D111+J111)","v":0},{"$f":"SUMIFS(Sheet1!S71_OY1AdjustedBudget,Sheet1!S71_A6SubCode,$AC:$AC)","v":0},{"$f":"SUMIFS(Sheet1!S71_OY2AdjustedBudget,Sheet1!S71_A6SubCode,$AC:$AC)","v":0},null,null,null,null,null,null,null,null,null,null,null,null,null,null,null,"0170-09-02"]
["      Adjustments",null,{"$f":"SUMIFS(Sheet1!S71_OriginalBudget,Sheet1!S71_A6SubCode,$AC:$AC)","v":0},{"$f":"SUMIFS(Sheet1!S71_SpecialAdjustedBudget,Sheet1!S71_A6SubCode,$AC:$AC)","v":0},null,null,null,null,{"$f":"SUMIFS(Sheet1!S71_AdjustmentAmount,Sheet1!S71_A6SubCode,$AC:$AC)","v":0},{"$f":"SUM(E112:I112)","v":0},{"$f":"IF(D112=0,C112+J112,D112+J112)","v":0},{"$f":"SUMIFS(Sheet1!S71_OY1AdjustedBudget,Sheet1!S71_A6SubCode,$AC:$AC)","v":0},{"$f":"SUMIFS(Sheet1!S71_OY2AdjustedBudget,Sheet1!S71_A6SubCode,$AC:$AC)","v":0},null,null,null,null,null,null,null,null,null,null,null,null,null,null,null,"0170-09-03"]
["     Correction of  Prior period errors",null,{"$f":"SUMIFS(Sheet1!S71_OriginalBudget,Sheet1!S71_A6SubCode,$AC:$AC)","v":0},{"$f":"SUMIFS(Sheet1!S71_SpecialAdjustedBudget,Sheet1!S71_A6SubCode,$AC:$AC)","v":0},null,null,null,null,{"$f":"SUMIFS(Sheet1!S71_AdjustmentAmount,Sheet1!S71_A6SubCode,$AC:$AC)","v":0},{"$f":"SUM(E113:I113)","v":0},{"$f":"IF(D113=0,C113+J113,D113+J113)","v":0},{"$f":"SUMIFS(Sheet1!S71_OY1AdjustedBudget,Sheet1!S71_A6SubCode,$AC:$AC)","v":0},{"$f":"SUMIFS(Sheet1!S71_OY2AdjustedBudget,Sheet1!S71_A6SubCode,$AC:$AC)","v":0},null,null,null,null,null,null,null,null,null,null,null,null,null,null,null,"0170-09-04"]
["  Closing Balance - Land",null,{"$f":"SUM(C109:C113)","v":0},{"$f":"SUM(D109:D113)","v":0},0,0,0,0,0,0,0,0,0]
["Closing Balance - Inventory & Consumables",null,{"$f":"C53+C61+C70+C77+C85+C93+C99+C106+C114","v":250000},{"$f":"D53+D61+D70+D77+D85+D93+D99+D106+D114","v":0},0,0,0,0,0,0,250000,311000,350000]
[]
["Property, plant & equipment"]
["PPE at cost/valuation (excl. finance leases)",null,{"$f":"SUMIFS(Sheet1!S71_OriginalBudget,Sheet1!S71_SA3Code,$AC:$AC)","v":374504541},{"$f":"SUMIFS(Sheet1!S71_SpecialAdjustedBudget,Sheet1!S71_SA3Code,$AC:$AC)","v":0},null,null,null,null,{"$f":"SUMIFS(Sheet1!S71_AdjustmentAmount,Sheet1!S71_SA3Code,$AC:$AC)","v":20050933},{"$f":"SUM(E118:I118)","v":20050933},{"$f":"IF(D118=0,C118+J118,D118+J118)","v":394555474},{"$f":"SUMIFS(Sheet1!S71_OY1AdjustedBudget,Sheet1!S71_SA3Code,$AC:$AC)","v":435161278},{"$f":"SUMIFS(Sheet1!S71_OY2AdjustedBudget,Sheet1!S71_SA3Code,$AC:$AC)","v":456201522},null,null,null,null,null,null,null,null,null,null,null,null,null,null,null,"0241"]
["Leases recognised as PPE",2,{"$f":"SUMIFS(Sheet1!S71_OriginalBudget,Sheet1!S71_SA3Code,$AC:$AC)","v":0},{"$f":"SUMIFS(Sheet1!S71_SpecialAdjustedBudget,Sheet1!S71_SA3Code,$AC:$AC)","v":0},null,null,null,null,{"$f":"SUMIFS(Sheet1!S71_AdjustmentAmount,Sheet1!S71_SA3Code,$AC:$AC)","v":0},{"$f":"SUM(E119:I119)","v":0},{"$f":"IF(D119=0,C119+J119,D119+J119)","v":0},{"$f":"SUMIFS(Sheet1!S71_OY1AdjustedBudget,Sheet1!S71_SA3Code,$AC:$AC)","v":0},{"$f":"SUMIFS(Sheet1!S71_OY2AdjustedBudget,Sheet1!S71_SA3Code,$AC:$AC)","v":0},null,null,null,null,null,null,null,null,null,null,null,null,null,null,null,"0242"]
["Less: Accumulated depreciation",null,{"$f":"-SUMIFS(Sheet1!S71_OriginalBudget,Sheet1!S71_SA3Code,$AC:$AC)","v":25864305},{"$f":"-SUMIFS(Sheet1!S71_SpecialAdjustedBudget,Sheet1!S71_SA3Code,$AC:$AC)","v":0},null,null,null,null,{"$f":"-SUMIFS(Sheet1!S71_AdjustmentAmount,Sheet1!S71_SA3Code,$AC:$AC)","v":0},{"$f":"SUM(E120:I120)","v":0},{"$f":"IF(D120=0,C120+J120,D120+J120)","v":25864305},{"$f":"-SUMIFS(Sheet1!S71_OY1AdjustedBudget,Sheet1!S71_SA3Code,$AC:$AC)","v":27002334},{"$f":"-SUMIFS(Sheet1!S71_OY2AdjustedBudget,Sheet1!S71_SA3Code,$AC:$AC)","v":28217439},null,null,null,null,null,null,null,null,null,null,null,null,null,null,null,"0243"]
[{"$f":"\"Total \"&A117","v":"Total Property, plant & equipment"},1,{"$f":"SUM(C118:C119)-C120","v":348640236},{"$f":"SUM(D118:D119)-D120","v":0},0,0,0,0,20050933,20050933,368691169,{"$f":"SUM(L118:L119)-L120","v":408158944},{"$f":"SUM(M118:M119)-M120","v":427984083}]
[]
["LIABILITIES"]
["Current liabilities - Borrowing"]
["Short term loans (other than bank overdraft)",null,{"$f":"-SUMIFS(Sheet1!S71_OriginalBudget,Sheet1!S71_SA3Code,$AC:$AC)","v":0},{"$f":"-SUMIFS(Sheet1!S71_SpecialAdjustedBudget,Sheet1!S71_SA3Code,$AC:$AC)","v":0},null,null,null,null,{"$f":"-SUMIFS(Sheet1!S71_AdjustmentAmount,Sheet1!S71_SA3Code,$AC:$AC)","v":0},{"$f":"SUM(E125:I125)","v":0},{"$f":"IF(D125=0,C125+J125,D125+J125)","v":0},{"$f":"-SUMIFS(Sheet1!S71_OY1AdjustedBudget,Sheet1!S71_SA3Code,$AC:$AC)","v":0},{"$f":"-SUMIFS(Sheet1!S71_OY2AdjustedBudget,Sheet1!S71_SA3Code,$AC:$AC)","v":0},null,null,null,null,null,null,null,null,null,null,null,null,null,null,null,"0341"]
["Current portion of long-term liabilities",null,{"$f":"-SUMIFS(Sheet1!S71_OriginalBudget,Sheet1!S71_SA3Code,$AC:$AC)","v":0},{"$f":"-SUMIFS(Sheet1!S71_SpecialAdjustedBudget,Sheet1!S71_SA3Code,$AC:$AC)","v":0},null,null,null,null,{"$f":"-SUMIFS(Sheet1!S71_AdjustmentAmount,Sheet1!S71_SA3Code,$AC:$AC)","v":0},{"$f":"SUM(E126:I126)","v":0},{"$f":"IF(D126=0,C126+J126,D126+J126)","v":0},{"$f":"-SUMIFS(Sheet1!S71_OY1AdjustedBudget,Sheet1!S71_SA3Code,$AC:$AC)","v":0},{"$f":"-SUMIFS(Sheet1!S71_OY2AdjustedBudget,Sheet1!S71_SA3Code,$AC:$AC)","v":0},null,null,null,null,null,null,null,null,null,null,null,null,null,null,null,"0342"]
[{"$f":"\"Total \"&A124","v":"Total Current liabilities - Borrowing"},null,{"$f":"SUM(C125:C126)","v":0},0,0,0,0,0,0,0,0,0,0]
[]
["Trade and other payables"]
["Trade Payables",null,{"$f":"-SUMIFS(Sheet1!S71_OriginalBudget,Sheet1!S71_SA3Code,$AC:$AC)","v":43697635},{"$f":"-SUMIFS(Sheet1!S71_SpecialAdjustedBudget,Sheet1!S71_SA3Code,$AC:$AC)","v":0},null,null,null,null,{"$f":"-SUMIFS(Sheet1!S71_AdjustmentAmount,Sheet1!S71_SA3Code,$AC:$AC)","v":0},{"$f":"SUM(E130:I130)","v":0},{"$f":"IF(D130=0,C130+J130,D130+J130)","v":43697635},{"$f":"-SUMIFS(Sheet1!S71_OY1AdjustedBudget,Sheet1!S71_SA3Code,$AC:$AC)","v":47594224},{"$f":"-SUMIFS(Sheet1!S71_OY2AdjustedBudget,Sheet1!S71_SA3Code,$AC:$AC)","v":54277208},null,null,null,null,null,null,null,null,null,null,null,null,null,null,null,"0361"]
[" Other creditors",null,{"$f":"-SUMIFS(Sheet1!S71_OriginalBudget,Sheet1!S71_SA3Code,$AC:$AC)","v":-9010000},{"$f":"-SUMIFS(Sheet1!S71_SpecialAdjustedBudget,Sheet1!S71_SA3Code,$AC:$AC)","v":0},null,null,null,null,{"$f":"-SUMIFS(Sheet1!S71_AdjustmentAmount,Sheet1!S71_SA3Code,$AC:$AC)","v":1720000},{"$f":"SUM(E131:I131)","v":1720000},{"$f":"IF(D131=0,C131+J131,D131+J131)","v":-7290000},{"$f":"-SUMIFS(Sheet1!S71_OY1AdjustedBudget,Sheet1!S71_SA3Code,$AC:$AC)","v":-7050080},{"$f":"-SUMIFS(Sheet1!S71_OY2AdjustedBudget,Sheet1!S71_SA3Code,$AC:$AC)","v":-7135589},null,null,null,null,null,null,null,null,null,null,null,null,null,null,null,"0362"]
["Unspent conditional transfers",null,{"$f":"-SUMIFS(Sheet1!S71_OriginalBudget,Sheet1!S71_SA3Code,$AC:$AC)","v":1875745},{"$f":"-SUMIFS(Sheet1!S71_SpecialAdjustedBudget,Sheet1!S71_SA3Code,$AC:$AC)","v":0},null,null,null,null,{"$f":"-SUMIFS(Sheet1!S71_AdjustmentAmount,Sheet1!S71_SA3Code,$AC:$AC)","v":-3414448},{"$f":"SUM(E132:I132)","v":-3414448},{"$f":"IF(D132=0,C132+J132,D132+J132)","v":-1538703},{"$f":"-SUMIFS(Sheet1!S71_OY1AdjustedBudget,Sheet1!S71_SA3Code,$AC:$AC)","v":1875745},{"$f":"-SUMIFS(Sheet1!S71_OY2AdjustedBudget,Sheet1!S71_SA3Code,$AC:$AC)","v":1875745},null,null,null,null,null,null,null,null,null,null,null,null,null,null,null,"0363"]
["VAT",null,{"$f":"-SUMIFS(Sheet1!S71_OriginalBudget,Sheet1!S71_SA3Code,$AC:$AC)","v":0},{"$f":"-SUMIFS(Sheet1!S71_SpecialAdjustedBudget,Sheet1!S71_SA3Code,$AC:$AC)","v":0},null,null,null,null,{"$f":"-SUMIFS(Sheet1!S71_AdjustmentAmount,Sheet1!S71_SA3Code,$AC:$AC)","v":0},{"$f":"SUM(E133:I133)","v":0},{"$f":"IF(D133=0,C133+J133,D133+J133)","v":0},{"$f":"-SUMIFS(Sheet1!S71_OY1AdjustedBudget,Sheet1!S71_SA3Code,$AC:$AC)","v":0},{"$f":"-SUMIFS(Sheet1!S71_OY2AdjustedBudget,Sheet1!S71_SA3Code,$AC:$AC)","v":0},null,null,null,null,null,null,null,null,null,null,null,null,null,null,null,"0364"]
[{"$f":"\"Total \"&A129","v":"Total Trade and other payables"},1,{"$f":"SUM(C130:C133)","v":36563380},0,0,0,0,0,-1694448,-1694448,34868932,42419889,49017364]
[]
["Non current liabilities - Borrowing"]
["Borrowing",3,{"$f":"-SUMIFS(Sheet1!S71_OriginalBudget,Sheet1!S71_SA3Code,$AC:$AC)","v":0},{"$f":"-SUMIFS(Sheet1!S71_SpecialAdjustedBudget,Sheet1!S71_SA3Code,$AC:$AC)","v":0},null,null,null,null,{"$f":"-SUMIFS(Sheet1!S71_AdjustmentAmount,Sheet1!S71_SA3Code,$AC:$AC)","v":0},{"$f":"SUM(E137:I137)","v":0},{"$f":"IF(D137=0,C137+J137,D137+J137)","v":0},{"$f":"-SUMIFS(Sheet1!S71_OY1AdjustedBudget,Sheet1!S71_SA3Code,$AC:$AC)","v":0},{"$f":"-SUMIFS(Sheet1!S71_OY2AdjustedBudget,Sheet1!S71_SA3Code,$AC:$AC)","v":0},null,null,null,null,null,null,null,null,null,null,null,null,null,null,null,"0401"]
["Finance leases (including PPP asset element)",null,{"$f":"-SUMIFS(Sheet1!S71_OriginalBudget,Sheet1!S71_SA3Code,$AC:$AC)","v":0},{"$f":"-SUMIFS(Sheet1!S71_SpecialAdjustedBudget,Sheet1!S71_SA3Code,$AC:$AC)","v":0},null,null,null,null,{"$f":"-SUMIFS(Sheet1!S71_AdjustmentAmount,Sheet1!S71_SA3Code,$AC:$AC)","v":0},{"$f":"SUM(E138:I138)","v":0},{"$f":"IF(D138=0,C138+J138,D138+J138)","v":0},{"$f":"-SUMIFS(Sheet1!S71_OY1AdjustedBudget,Sheet1!S71_SA3Code,$AC:$AC)","v":0},{"$f":"-SUMIFS(Sheet1!S71_OY2AdjustedBudget,Sheet1!S71_SA3Code,$AC:$AC)","v":0},null,null,null,null,null,null,null,null,null,null,null,null,null,null,null,"0402"]
[{"$f":"\"Total \"&A136","v":"Total Non current liabilities - Borrowing"},null,{"$f":"SUM(C137:C138)","v":0},0,0,0,0,0,0,0,0,0,0]
[]
["Provisions - non current"]
["Retirement benefits",null,{"$f":"-SUMIFS(Sheet1!S71_OriginalBudget,Sheet1!S71_SA3Code,$AC:$AC)","v":0},{"$f":"-SUMIFS(Sheet1!S71_SpecialAdjustedBudget,Sheet1!S71_SA3Code,$AC:$AC)","v":0},null,null,null,null,{"$f":"-SUMIFS(Sheet1!S71_AdjustmentAmount,Sheet1!S71_SA3Code,$AC:$AC)","v":0},{"$f":"SUM(E142:I142)","v":0},{"$f":"IF(D142=0,C142+J142,D142+J142)","v":0},{"$f":"-SUMIFS(Sheet1!S71_OY1AdjustedBudget,Sheet1!S71_SA3Code,$AC:$AC)","v":0},{"$f":"-SUMIFS(Sheet1!S71_OY2AdjustedBudget,Sheet1!S71_SA3Code,$AC:$AC)","v":0},null,null,null,null,null,null,null,null,null,null,null,null,null,null,null,"0411"]
[null,null,{"$f":"-SUMIFS(Sheet1!S71_OriginalBudget,Sheet1!S71_SA3Code,$AC:$AC)","v":0},{"$f":"-SUMIFS(Sheet1!S71_SpecialAdjustedBudget,Sheet1!S71_SA3Code,$AC:$AC)","v":0},null,null,null,null,{"$f":"-SUMIFS(Sheet1!S71_AdjustmentAmount,Sheet1!S71_SA3Code,$AC:$AC)","v":0}]
["Refuse landfill site rehabilitation",null,{"$f":"-SUMIFS(Sheet1!S71_OriginalBudget,Sheet1!S71_SA3Code,$AC:$AC)","v":-24003888},{"$f":"-SUMIFS(Sheet1!S71_SpecialAdjustedBudget,Sheet1!S71_SA3Code,$AC:$AC)","v":0},null,null,null,null,{"$f":"-SUMIFS(Sheet1!S71_AdjustmentAmount,Sheet1!S71_SA3Code,$AC:$AC)","v":0},{"$f":"SUM(E144:I144)","v":0},{"$f":"IF(D144=0,C144+J144,D144+J144)","v":-24003888},{"$f":"-SUMIFS(Sheet1!S71_OY1AdjustedBudget,Sheet1!S71_SA3Code,$AC:$AC)","v":-24503888},{"$f":"-SUMIFS(Sheet1!S71_OY2AdjustedBudget,Sheet1!S71_SA3Code,$AC:$AC)","v":-25003888},null,null,null,null,null,null,null,null,null,null,null,null,null,null,null,"0412"]
["Other",null,{"$f":"-SUMIFS(Sheet1!S71_OriginalBudget,Sheet1!S71_SA3Code,$AC:$AC)","v":-2912408},{"$f":"-SUMIFS(Sheet1!S71_SpecialAdjustedBudget,Sheet1!S71_SA3Code,$AC:$AC)","v":0},null,null,null,null,{"$f":"-SUMIFS(Sheet1!S71_AdjustmentAmount,Sheet1!S71_SA3Code,$AC:$AC)","v":0},{"$f":"SUM(E145:I145)","v":0},{"$f":"IF(D145=0,C145+J145,D145+J145)","v":-2912408},{"$f":"-SUMIFS(Sheet1!S71_OY1AdjustedBudget,Sheet1!S71_SA3Code,$AC:$AC)","v":-3323836},{"$f":"-SUMIFS(Sheet1!S71_OY2AdjustedBudget,Sheet1!S71_SA3Code,$AC:$AC)","v":-3753778},null,null,null,null,null,null,null,null,null,null,null,null,null,null,null,"0413"]
[{"$f":"\"Total \"&A141","v":"Total Provisions - non current"},null,{"$f":"+C142+C144+C145","v":-26916296},{"$f":"+D142+D144+D145","v":0},0,0,0,0,0,0,-26916296,-27827724,-28757666]
[]
["CHANGES IN NET ASSETS"]
["Accumulated surplus/(Deficit)"]
[{"$f":"A149&\" - opening balance\"","v":"Accumulated surplus/(Deficit) - opening balance"},null,{"$f":"-SUMIFS(Sheet1!S71_OriginalBudget,Sheet1!S71_SA3Code,$AC:$AC)","v":0},{"$f":"-SUMIFS(Sheet1!S71_SpecialAdjustedBudget,Sheet1!S71_SA3Code,$AC:$AC)","v":0},null,null,null,null,{"$f":"SUMIFS(Sheet1!S71_AdjustmentAmount,Sheet1!S71_SA3Code,$AC:$AC)","v":0},{"$f":"SUM(E150:I150)","v":0},{"$f":"IF(D150=0,C150+J150,D150+J150)","v":0},{"$f":"-SUMIFS(Sheet1!S71_OY1AdjustedBudget,Sheet1!S71_SA3Code,$AC:$AC)-SUMIFS(Sheet1!S71_OY1AdjustedBudget,Sheet1!S71_SA3Code,$AD:$AD)","v":0},{"$f":"-SUMIFS(Sheet1!S71_OY2AdjustedBudget,Sheet1!S71_SA3Code,$AC:$AC)-SUMIFS(Sheet1!S71_OY2AdjustedBudget,Sheet1!S71_SA3Code,$AD:$AD)","v":0},null,null,null,null,null,null,null,null,null,null,null,null,null,null,null,"0461"]
["GRAP adjustments",null,{"$f":"-SUMIFS(Sheet1!S71_OriginalBudget,Sheet1!S71_SA3Code,$AC:$AC)","v":427055878},{"$f":"-SUMIFS(Sheet1!S71_SpecialAdjustedBudget,Sheet1!S71_SA3Code,$AC:$AC)","v":0},null,null,null,null,{"$f":"-SUMIFS(Sheet1!S71_AdjustmentAmount,Sheet1!S71_SA3Code,$AC:$AC)","v":11776593},{"$f":"SUM(E151:I151)","v":11776593},{"$f":"IF(D151=0,C151+J151,D151+J151)","v":438832471},{"$f":"-SUMIFS(Sheet1!S71_OY1AdjustedBudget,Sheet1!S71_SA3Code,$AC:$AC)-SUMIFS(Sheet1!S71_OY1AdjustedBudget,Sheet1!S71_SA3Code,$AD:$AD)","v":458087002},{"$f":"-SUMIFS(Sheet1!S71_OY2AdjustedBudget,Sheet1!S71_SA3Code,$AC:$AC)-SUMIFS(Sheet1!S71_OY2AdjustedBudget,Sheet1!S71_SA3Code,$AD:$AD)","v":489016639},null,null,null,null,null,null,null,null,null,null,null,null,null,null,null,"0462"]
["Restated balance",null,{"$f":"+C150+C151","v":427055878},{"$f":"+D150+D151","v":0},0,0,0,0,11776593,11776593,438832471,458087002,489016639]
["Surplus/(Deficit)",null,{"$f":"'B4-FinPerf RE'!C47","v":47208013},{"$f":"'B4-FinPerf RE'!D47","v":0},{"$f":"'B4-FinPerf RE'!E47","v":0},{"$f":"'B4-FinPerf RE'!F47","v":0},{"$f":"'B4-FinPerf RE'!G47","v":0},{"$f":"'B4-FinPerf RE'!H47","v":0},{"$f":"'B4-FinPerf RE'!I47","v":-6144104},{"$f":"'B4-FinPerf RE'!J47","v":-6144104},{"$f":"'B4-FinPerf RE'!K47","v":41063909},{"$f":"'B4-FinPerf RE'!L47","v":49692716},{"$f":"'B4-FinPerf RE'!M47","v":54193329},null,null,null,null,null,null,null,null,null,null,null,null,null,null,null,"0464"]
[]
["Transfers to/from Reserves",null,{"$f":"-SUMIFS(Sheet1!S71_OriginalBudget,Sheet1!S71_SA3Code,$AC:$AC)","v":0},{"$f":"-SUMIFS(Sheet1!S71_SpecialAdjustedBudget,Sheet1!S71_SA3Code,$AC:$AC)","v":0},null,null,null,null,{"$f":"-SUMIFS(Sheet1!S71_AdjustmentAmount,Sheet1!S71_SA3Code,$AC:$AC)","v":0},{"$f":"SUM(E155:I155)","v":0},{"$f":"IF(D155=0,C155+J155,D155+J155)","v":0},{"$f":"-SUMIFS(Sheet1!S71_OY1AdjustedBudget,Sheet1!S71_SA3Code,$AC:$AC)","v":0},{"$f":"-SUMIFS(Sheet1!S71_OY2AdjustedBudget,Sheet1!S71_SA3Code,$AC:$AC)","v":0},null,null,null,null,null,null,null,null,null,null,null,null,null,null,null,"0465"]
["Depreciation offsets",null,{"$f":"-SUMIFS(Sheet1!S71_OriginalBudget,Sheet1!S71_SA3Code,$AC:$AC)","v":0},{"$f":"-SUMIFS(Sheet1!S71_SpecialAdjustedBudget,Sheet1!S71_SA3Code,$AC:$AC)","v":0},null,null,null,null,{"$f":"-SUMIFS(Sheet1!S71_AdjustmentAmount,Sheet1!S71_SA3Code,$AC:$AC)","v":0},{"$f":"SUM(E156:I156)","v":0},{"$f":"IF(D156=0,C156+J156,D156+J156)","v":0},{"$f":"-SUMIFS(Sheet1!S71_OY1AdjustedBudget,Sheet1!S71_SA3Code,$AC:$AC)","v":0},{"$f":"-SUMIFS(Sheet1!S71_OY2AdjustedBudget,Sheet1!S71_SA3Code,$AC:$AC)","v":0},null,null,null,null,null,null,null,null,null,null,null,null,null,null,null,"0466"]
["Other adjustments",null,{"$f":"-SUMIFS(Sheet1!S71_OriginalBudget,Sheet1!S71_SA3Code,$AC:$AC)","v":0},{"$f":"-SUMIFS(Sheet1!S71_SpecialAdjustedBudget,Sheet1!S71_SA3Code,$AC:$AC)","v":0},null,null,null,null,{"$f":"-SUMIFS(Sheet1!S71_AdjustmentAmount,Sheet1!S71_SA3Code,$AC:$AC)","v":0},{"$f":"SUM(E157:I157)","v":0},{"$f":"IF(D157=0,C157+J157,D157+J157)","v":0},{"$f":"-SUMIFS(Sheet1!S71_OY1AdjustedBudget,Sheet1!S71_SA3Code,$AC:$AC)","v":0},{"$f":"-SUMIFS(Sheet1!S71_OY2AdjustedBudget,Sheet1!S71_SA3Code,$AC:$AC)","v":0},null,null,null,null,null,null,null,null,null,null,null,null,null,null,null,"0467"]
["Accumulated Surplus/(Deficit)",1,{"$f":"SUM(C152:C157)","v":474263891},0,0,0,0,0,5632489,5632489,479896380,507779718,543209968]
["Reserves"]
["Housing Development Fund",null,{"$f":"-SUMIFS(Sheet1!S71_OriginalBudget,Sheet1!S71_SA3Code,$AC:$AC)","v":0},{"$f":"-SUMIFS(Sheet1!S71_SpecialAdjustedBudget,Sheet1!S71_SA3Code,$AC:$AC)","v":0},null,null,null,null,{"$f":"-SUMIFS(Sheet1!S71_AdjustmentAmount,Sheet1!S71_SA3Code,$AC:$AC)","v":0},{"$f":"SUM(E160:I160)","v":0},{"$f":"IF(D160=0,C160+J160,D160+J160)","v":0},{"$f":"-SUMIFS(Sheet1!S71_OY1AdjustedBudget,Sheet1!S71_SA3Code,$AC:$AC)","v":0},{"$f":"-SUMIFS(Sheet1!S71_OY2AdjustedBudget,Sheet1!S71_SA3Code,$AC:$AC)","v":0},null,null,null,null,null,null,null,null,null,null,null,null,null,null,null,"0471"]
["Capital replacement",null,{"$f":"-SUMIFS(Sheet1!S71_OriginalBudget,Sheet1!S71_SA3Code,$AC:$AC)","v":0},{"$f":"-SUMIFS(Sheet1!S71_SpecialAdjustedBudget,Sheet1!S71_SA3Code,$AC:$AC)","v":0},null,null,null,null,{"$f":"-SUMIFS(Sheet1!S71_AdjustmentAmount,Sheet1!S71_SA3Code,$AC:$AC)","v":0},{"$f":"SUM(E161:I161)","v":0},{"$f":"IF(D161=0,C161+J161,D161+J161)","v":0},{"$f":"-SUMIFS(Sheet1!S71_OY1AdjustedBudget,Sheet1!S71_SA3Code,$AC:$AC)","v":0},{"$f":"-SUMIFS(Sheet1!S71_OY2AdjustedBudget,Sheet1!S71_SA3Code,$AC:$AC)","v":0},null,null,null,null,null,null,null,null,null,null,null,null,null,null,null,"0472"]
["Self-insurance",null,{"$f":"-SUMIFS(Sheet1!S71_OriginalBudget,Sheet1!S71_SA3Code,$AC:$AC)","v":0},{"$f":"-SUMIFS(Sheet1!S71_SpecialAdjustedBudget,Sheet1!S71_SA3Code,$AC:$AC)","v":0},null,null,null,null,{"$f":"-SUMIFS(Sheet1!S71_AdjustmentAmount,Sheet1!S71_SA3Code,$AC:$AC)","v":0},{"$f":"SUM(E162:I162)","v":0},{"$f":"IF(D162=0,C162+J162,D162+J162)","v":0},{"$f":"-SUMIFS(Sheet1!S71_OY1AdjustedBudget,Sheet1!S71_SA3Code,$AC:$AC)","v":0},{"$f":"-SUMIFS(Sheet1!S71_OY2AdjustedBudget,Sheet1!S71_SA3Code,$AC:$AC)","v":0},null,null,null,null,null,null,null,null,null,null,null,null,null,null,null,"0473"]
["Other reserves",null,{"$f":"-SUMIFS(Sheet1!S71_OriginalBudget,Sheet1!S71_SA3Code,$AC:$AC)","v":0},{"$f":"-SUMIFS(Sheet1!S71_SpecialAdjustedBudget,Sheet1!S71_SA3Code,$AC:$AC)","v":0},null,null,null,null,{"$f":"-SUMIFS(Sheet1!S71_AdjustmentAmount,Sheet1!S71_SA3Code,$AC:$AC)","v":0},{"$f":"SUM(E163:I163)","v":0},{"$f":"IF(D163=0,C163+J163,D163+J163)","v":0},{"$f":"-SUMIFS(Sheet1!S71_OY1AdjustedBudget,Sheet1!S71_SA3Code,$AC:$AC)","v":0},{"$f":"-SUMIFS(Sheet1!S71_OY2AdjustedBudget,Sheet1!S71_SA3Code,$AC:$AC)","v":0},null,null,null,null,null,null,null,null,null,null,null,null,null,null,null,"0474"]
["Revaluation",null,{"$f":"-SUMIFS(Sheet1!S71_OriginalBudget,Sheet1!S71_SA3Code,$AC:$AC)","v":0},{"$f":"-SUMIFS(Sheet1!S71_SpecialAdjustedBudget,Sheet1!S71_SA3Code,$AC:$AC)","v":0},null,null,null,null,{"$f":"-SUMIFS(Sheet1!S71_AdjustmentAmount,Sheet1!S71_SA3Code,$AC:$AC)","v":0},{"$f":"SUM(E164:I164)","v":0},{"$f":"IF(D164=0,C164+J164,D164+J164)","v":0},{"$f":"-SUMIFS(Sheet1!S71_OY1AdjustedBudget,Sheet1!S71_SA3Code,$AC:$AC)","v":0},{"$f":"-SUMIFS(Sheet1!S71_OY2AdjustedBudget,Sheet1!S71_SA3Code,$AC:$AC)","v":0},null,null,null,null,null,null,null,null,null,null,null,null,null,null,null,"0475"]
["Total Reserves",2,{"$f":"SUM(C160:C164)","v":0},0,0,0,0,0,0,0,0,0,0]
["TOTAL COMMUNITY WEALTH/EQUITY",2,{"$f":"C158+C165","v":474263891},0,0,0,0,0,5632489,5632489,479896380,507779718,543209968]
[]
[]
[]
[]
[]
[{"$f":"head27a","v":"References"}]
["1. Must reconcile with 'Financial Position' budget"]
["2. Leases treated as assets to be depreciated as the same as purchased/constructed assets.  Includes PPP asset element accounted for as finance leases"]
["3. Borrowing (original budget) must reconcile to Budget Table A16"]
["4. Only complete if a previous adjusted budget has been approved in the same financial year. Reflect most recent adjusted budget. Column D should be a complete Adjustment Budget which indicates that if some figures were not adjusted the original budget should then be used"]
["5. Additional cash-backed accumulated funds/unspent funds (section 18(1)(b) and section 28(2)(e) MFMA) identified after Original Budget approved and after annual financial statements audited (note: only where underspending could not reasonably be have for"]
["6. Increases of funds approved under section 31 MFMA"]
["7. Adjustments approved in accordance with section 29 MFMA"]
["8. Adjustments to funding allocations from National or Provincial Government"]
["9. Adjusts. = 'Other' Adjustments proposed to be approved; including revenue under-collection (MFMA section 28(2)(a)); additional revenue appropriation on existing programmes (section 28(2))(b); projected savings (section 28(2)(d)); error correction (sect"]
["10. G = B + C + D + E + F"]
["11. Adjusted Budget H = (A or A1) + G"]
["check",null,{"$f":"C166-'B6-FinPos'!C50","v":0},null,null,null,null,null,null,null,null,null,{"$f":"K166-'B6-FinPos'!K50","v":0}]
["12. Inventory Consumed - Water - included under \"Other materials & inventory \" on Table B4 - Detail to be submitted on Table SB1"]
["13. Inventry Consumed Other materials - included under \"Other materials & inventory \" on Table B4 - Detail to be submitted on Table SB1"]
["14. Inventory Transfers/Adjustments (Include under gains/losses on Table A4) - Note that the amount could be positive or negative - please capture according to the sign"]
["15. Inventory Write-offs (Include under losses on Table A4) -  capture Cr amounts"]

{"sheet":"SB3","index":39,"n_rows":75,"n_cols":13,"rows_kept":75,"cut":false,"hidden":false,"merged":[[74,0,74,12],[69,0,69,12],[1,0,3,0],[1,1,3,1],[1,2,1,10],[73,0,73,12]]}
[{"$f":"muni&\" - \"&ADJB3&\" - \"&Date","v":"EC139 Enoch Mgijima - Supporting Table SB3 Adjustments to the SDBIP - performance objectives - "}]
[{"$f":"desc","v":"Description"},"Unit of measurement",{"$f":"Head2","v":"Budget Year 2021/22"},null,null,null,null,null,null,null,null,{"$f":"Head10","v":"Budget Year +1 2022/23"},{"$f":"Head11","v":"Budget Year +2 2023/24"}]
[null,null,{"$f":"Head6","v":"Original Budget"},{"$f":"Head54","v":"Prior Adjusted"},{"$f":"Head51","v":"Accum. Funds"},{"$f":"Head52","v":"Multi-year capital"},{"$f":"Head53","v":"Unfore. Unavoid."},{"$f":"Head55","v":"Nat. or Prov. Govt"},{"$f":"Head50","v":"Other Adjusts."},{"$f":"Head56","v":"Total Adjusts."},{"$f":"Head7","v":"Adjusted Budget"},{"$f":"Head7","v":"Adjusted Budget"},{"$f":"Head7","v":"Adjusted Budget"}]
[null,null,"A","A1","B","C","D","E","F","G","H"]
["Vote 1 - vote name"]
["Function 1 - (name)"]
["Sub-function 1 - (name)"]
["Insert measure/s description",null,null,null,null,null,null,null,null,{"$f":"SUM(E8:I8)","v":0},{"$f":"IF(D8=0,C8+J8,D8+J8)","v":0},{"$f":"IF(E8=0,D8+K8,E8+K8)","v":0},{"$f":"IF(F8=0,E8+L8,F8+L8)","v":0}]
[]
["Sub-function 2 - (name)"]
["Insert measure/s description",null,null,null,null,null,null,null,null,{"$f":"SUM(E11:I11)","v":0},{"$f":"IF(D11=0,C11+J11,D11+J11)","v":0},{"$f":"IF(E11=0,D11+K11,E11+K11)","v":0},{"$f":"IF(F11=0,E11+L11,F11+L11)","v":0}]
[]
["Sub-function 3 - (name)"]
["Insert measure/s description"]
[null,null,null,null,null,null,null,null,null,{"$f":"SUM(E15:I15)","v":0},{"$f":"IF(D15=0,C15+J15,D15+J15)","v":0},{"$f":"IF(E15=0,D15+K15,E15+K15)","v":0},{"$f":"IF(F15=0,E15+L15,F15+L15)","v":0}]
["Function 2 - (name)"]
["Sub-function 1 - (name)"]
["Insert measure/s description"]
[null,null,null,null,null,null,null,null,null,{"$f":"SUM(E19:I19)","v":0},{"$f":"IF(D19=0,C19+J19,D19+J19)","v":0},{"$f":"IF(E19=0,D19+K19,E19+K19)","v":0},{"$f":"IF(F19=0,E19+L19,F19+L19)","v":0}]
["Sub-function 2 - (name)"]
["Insert measure/s description",null,null,null,null,null,null,null,null,{"$f":"SUM(E21:I21)","v":0},{"$f":"IF(D21=0,C21+J21,D21+J21)","v":0},{"$f":"IF(E21=0,D21+K21,E21+K21)","v":0},{"$f":"IF(F21=0,E21+L21,F21+L21)","v":0}]
[]
["Sub-function 3 - (name)",null,null,null,null,null,null,null,null,{"$f":"SUM(E23:I23)","v":0},{"$f":"IF(D23=0,C23+J23,D23+J23)","v":0},{"$f":"IF(E23=0,D23+K23,E23+K23)","v":0},{"$f":"IF(F23=0,E23+L23,F23+L23)","v":0}]
["Insert measure/s description"]
[null,null,null,null,null,null,null,null,null,{"$f":"SUM(E25:I25)","v":0},{"$f":"IF(D25=0,C25+J25,D25+J25)","v":0},{"$f":"IF(E25=0,D25+K25,E25+K25)","v":0},{"$f":"IF(F25=0,E25+L25,F25+L25)","v":0}]
["Vote 2 - vote name"]
["Function 1 - (name)"]
["Sub-function 1 - (name)"]
["Insert measure/s description",null,null,null,null,null,null,null,null,{"$f":"SUM(E29:I29)","v":0},{"$f":"IF(D29=0,C29+J29,D29+J29)","v":0},{"$f":"IF(E29=0,D29+K29,E29+K29)","v":0},{"$f":"IF(F29=0,E29+L29,F29+L29)","v":0}]
[]
["Sub-function 2 - (name)",null,null,null,null,null,null,null,null,{"$f":"SUM(E31:I31)","v":0},{"$f":"IF(D31=0,C31+J31,D31+J31)","v":0},{"$f":"IF(E31=0,D31+K31,E31+K31)","v":0},{"$f":"IF(F31=0,E31+L31,F31+L31)","v":0}]
["Insert measure/s description"]
[null,null,null,null,null,null,null,null,null,{"$f":"SUM(E33:I33)","v":0},{"$f":"IF(D33=0,C33+J33,D33+J33)","v":0},{"$f":"IF(E33=0,D33+K33,E33+K33)","v":0},{"$f":"IF(F33=0,E33+L33,F33+L33)","v":0}]
["Sub-function 3 - (name)"]
["Insert measure/s description",null,null,null,null,null,null,null,null,{"$f":"SUM(E35:I35)","v":0},{"$f":"IF(D35=0,C35+J35,D35+J35)","v":0},{"$f":"IF(E35=0,D35+K35,E35+K35)","v":0},{"$f":"IF(F35=0,E35+L35,F35+L35)","v":0}]
[]
["Function 2 - (name)"]
["Sub-function 1 - (name)",null,null,null,null,null,null,null,null,{"$f":"SUM(E38:I38)","v":0},{"$f":"IF(D38=0,C38+J38,D38+J38)","v":0},{"$f":"IF(E38=0,D38+K38,E38+K38)","v":0},{"$f":"IF(F38=0,E38+L38,F38+L38)","v":0}]
["Insert measure/s description"]
[null,null,null,null,null,null,null,null,null,{"$f":"SUM(E40:I40)","v":0},{"$f":"IF(D40=0,C40+J40,D40+J40)","v":0},{"$f":"IF(E40=0,D40+K40,E40+K40)","v":0},{"$f":"IF(F40=0,E40+L40,F40+L40)","v":0}]
["Sub-function 2 - (name)"]
["Insert measure/s description",null,null,null,null,null,null,null,null,{"$f":"SUM(E42:I42)","v":0},{"$f":"IF(D42=0,C42+J42,D42+J42)","v":0},{"$f":"IF(E42=0,D42+K42,E42+K42)","v":0},{"$f":"IF(F42=0,E42+L42,F42+L42)","v":0}]
[]
["Sub-function 3 - (name)"]
["Insert measure/s description"]
[null,null,null,null,null,null,null,null,null,{"$f":"SUM(E46:I46)","v":0},{"$f":"IF(D46=0,C46+J46,D46+J46)","v":0},{"$f":"IF(E46=0,D46+K46,E46+K46)","v":0},{"$f":"IF(F46=0,E46+L46,F46+L46)","v":0}]
["Vote 3 - vote name"]
["Function 1 - (name)",null,null,null,null,null,null,null,null,{"$f":"SUM(E48:I48)","v":0},{"$f":"IF(D48=0,C48+J48,D48+J48)","v":0},{"$f":"IF(E48=0,D48+K48,E48+K48)","v":0},{"$f":"IF(F48=0,E48+L48,F48+L48)","v":0}]
["Sub-function 1 - (name)"]
["Insert measure/s description"]
[null,null,null,null,null,null,null,null,null,{"$f":"SUM(E51:I51)","v":0},{"$f":"IF(D51=0,C51+J51,D51+J51)","v":0},{"$f":"IF(E51=0,D51+K51,E51+K51)","v":0},{"$f":"IF(F51=0,E51+L51,F51+L51)","v":0}]
["Sub-function 2 - (name)"]
["Insert measure/s description",null,null,null,null,null,null,null,null,{"$f":"SUM(E53:I53)","v":0},{"$f":"IF(D53=0,C53+J53,D53+J53)","v":0},{"$f":"IF(E53=0,D53+K53,E53+K53)","v":0},{"$f":"IF(F53=0,E53+L53,F53+L53)","v":0}]
[]
["Sub-function 3 - (name)",null,null,null,null,null,null,null,null,{"$f":"SUM(E55:I55)","v":0},{"$f":"IF(D55=0,C55+J55,D55+J55)","v":0},{"$f":"IF(E55=0,D55+K55,E55+K55)","v":0},{"$f":"IF(F55=0,E55+L55,F55+L55)","v":0}]
["Insert measure/s description"]
[]
["Function 2 - (name)",null,null,null,null,null,null,null,null,{"$f":"SUM(E58:I58)","v":0},{"$f":"IF(D58=0,C58+J58,D58+J58)","v":0},{"$f":"IF(E58=0,D58+K58,E58+K58)","v":0},{"$f":"IF(F58=0,E58+L58,F58+L58)","v":0}]
["Sub-function 1 - (name)"]
["Insert measure/s description",null,null,null,null,null,null,null,null,{"$f":"SUM(E60:I60)","v":0},{"$f":"IF(D60=0,C60+J60,D60+J60)","v":0},{"$f":"IF(E60=0,D60+K60,E60+K60)","v":0},{"$f":"IF(F60=0,E60+L60,F60+L60)","v":0}]
[]
["Sub-function 2 - (name)",null,null,null,null,null,null,null,null,{"$f":"SUM(E62:I62)","v":0},{"$f":"IF(D62=0,C62+J62,D62+J62)","v":0},{"$f":"IF(E62=0,D62+K62,E62+K62)","v":0},{"$f":"IF(F62=0,E62+L62,F62+L62)","v":0}]
["Insert measure/s description"]
[null,null,null,null,null,null,null,null,null,{"$f":"SUM(E64:I64)","v":0},{"$f":"IF(D64=0,C64+J64,D64+J64)","v":0},{"$f":"IF(E64=0,D64+K64,E64+K64)","v":0},{"$f":"IF(F64=0,E64+L64,F64+L64)","v":0}]
["Sub-function 3 - (name)"]
["Insert measure/s description",null,null,null,null,null,null,null,null,{"$f":"SUM(E66:I66)","v":0},{"$f":"IF(D66=0,C66+J66,D66+J66)","v":0},{"$f":"IF(E66=0,D66+K66,E66+K66)","v":0},{"$f":"IF(F66=0,E66+L66,F66+L66)","v":0}]
[]
["And so on for the rest of the Votes",null,null,null,null,null,null,null,null,{"$f":"SUM(E68:I68)","v":0},{"$f":"IF(D68=0,C68+J68,D68+J68)","v":0},{"$f":"IF(E68=0,D68+K68,E68+K68)","v":0},{"$f":"IF(F68=0,E68+L68,F68+L68)","v":0}]
[{"$f":"head27a","v":"References"}]
["1. Include a measurable performance objective for each revenue source (within a relevant function) and each vote (MFMA s17(3)(b))"]
["2. Include the estimated effect on the target of each component of an adjustment budget (B to G)"]
["3. Include all Basic Services performance targets from Table A10 to ensure Table SA7 represents all strategic responsibilities"]
["4. Total target adjustments G = B + C + D + E + F"]
["5. Adjusted Budget H = (A or A1) + G"]
["6. NOTE - include adjustsment by 'exception' (only where amended)"]

{"sheet":"SB4","index":40,"n_rows":49,"n_cols":11,"rows_kept":49,"cut":false,"hidden":false,"merged":[[1,0,2,0],[1,1,2,1],[1,5,1,7],[28,0,29,0],[25,0,26,0]]}
[{"$f":"muni&\" - \"&ADJB4&\" - \"&Date","v":"EC139 Enoch Mgijima - Supporting Table SB4 Adjustments to budgeted performance indicators and benchmarks - "}]
[{"$f":"desc&\" of financial indicator\"","v":"Description of financial indicator"},"Basis of calculation",{"$f":"Head1B","v":"2018/19"},{"$f":"Head1A","v":"2019/20"},{"$f":"Head1","v":"2020/21"},{"$f":"Head2","v":"Budget Year 2021/22"},null,null,{"$f":"Head10","v":"Budget Year +1 2022/23"},{"$f":"Head11","v":"Budget Year +2 2023/24"}]
[null,null,{"$f":"Head5","v":"Audited Outcome"},{"$f":"Head5","v":"Audited Outcome"},{"$f":"Head5","v":"Audited Outcome"},{"$f":"Head6","v":"Original Budget"},{"$f":"Head54","v":"Prior Adjusted"},{"$f":"Head7","v":"Adjusted Budget"},{"$f":"Head7","v":"Adjusted Budget"},{"$f":"Head7","v":"Adjusted Budget"}]
["Borrowing Management"]
[]
["Credit Rating","Short term/long term rating"]
["Capital Charges to Operating Expenditure","Interest & Principal Paid /Operating Expenditure",null,null,null,{"$f":"IF(ISERROR(('B4-FinPerf RE'!C30-'B7-CFlow'!C37)/'B4-FinPerf RE'!C37),0,(('B4-FinPerf RE'!C30-'B7-CFlow'!C37)/'B4-FinPerf RE'!C37))","v":4.6026334665315747E-3},{"$f":"IF(ISERROR(('B4-FinPerf RE'!D30-'B7-CFlow'!D37)/'B4-FinPerf RE'!D37),0,(('B4-FinPerf RE'!D30-'B7-CFlow'!D37)/'B4-FinPerf RE'!D37))","v":0},{"$f":"IF(ISERROR(('B4-FinPerf RE'!K30-'B7-CFlow'!K37)/'B4-FinPerf RE'!K37),0,(('B4-FinPerf RE'!K30-'B7-CFlow'!K37)/'B4-FinPerf RE'!K37))","v":2.2286043622463721E-3},{"$f":"IF(ISERROR(('B4-FinPerf RE'!L30-'B7-CFlow'!L37)/'B4-FinPerf RE'!L37),0,(('B4-FinPerf RE'!L30-'B7-CFlow'!L37)/'B4-FinPerf RE'!L37))","v":4.9968325575980473E-4},{"$f":"IF(ISERROR(('B4-FinPerf RE'!M30-'B7-CFlow'!M37)/'B4-FinPerf RE'!M37),0,(('B4-FinPerf RE'!M30-'B7-CFlow'!M37)/'B4-FinPerf RE'!M37))","v":4.9584172747479764E-4}]
["Capital Charges to Own Revenue","Finance charges & Repayment of borrowing /Own Revenue",null,null,null,{"$f":"IF(ISERROR(('B4-FinPerf RE'!C31-'B7-CFlow'!C38)/'B4-FinPerf RE'!C38),0,(('B4-FinPerf RE'!C31-'B7-CFlow'!C38)/'B4-FinPerf RE'!C38))","v":0},{"$f":"IF(ISERROR(('B4-FinPerf RE'!D31-'B7-CFlow'!D38)/'B4-FinPerf RE'!D38),0,(('B4-FinPerf RE'!D31-'B7-CFlow'!D38)/'B4-FinPerf RE'!D38))","v":0},{"$f":"IF(ISERROR(('B4-FinPerf RE'!K31-'B7-CFlow'!K38)/'B4-FinPerf RE'!K38),0,(('B4-FinPerf RE'!K31-'B7-CFlow'!K38)/'B4-FinPerf RE'!K38))","v":0},{"$f":"IF(ISERROR(('B4-FinPerf RE'!L31-'B7-CFlow'!L38)/'B4-FinPerf RE'!L38),0,(('B4-FinPerf RE'!L31-'B7-CFlow'!L38)/'B4-FinPerf RE'!L38))","v":0},{"$f":"IF(ISERROR(('B4-FinPerf RE'!M31-'B7-CFlow'!M38)/'B4-FinPerf RE'!M38),0,(('B4-FinPerf RE'!M31-'B7-CFlow'!M38)/'B4-FinPerf RE'!M38))","v":0}]
["Borrowed funding of 'own' capital expenditure","Borrowing/Capital expenditure excl. transfers and grants",null,null,null,{"$f":"IF(ISERROR('B5-Capex'!C74/('B5-Capex'!C65-'B5-Capex'!C72)),0,('B5-Capex'!C74/('B5-Capex'!C65-'B5-Capex'!C72)))","v":0},{"$f":"IF(ISERROR('B5-Capex'!D74/('B5-Capex'!D65-'B5-Capex'!D72)),0,('B5-Capex'!D74/('B5-Capex'!D65-'B5-Capex'!D72)))","v":0},{"$f":"IF(ISERROR('B5-Capex'!K74/('B5-Capex'!K65-'B5-Capex'!L72)),0,('B5-Capex'!K74/('B5-Capex'!K65-'B5-Capex'!L72)))","v":0},{"$f":"IF(ISERROR('B5-Capex'!L74/('B5-Capex'!L65-'B5-Capex'!M72)),0,('B5-Capex'!L74/('B5-Capex'!L65-'B5-Capex'!M72)))","v":0},{"$f":"IF(ISERROR('B5-Capex'!M74/('B5-Capex'!M65-'B5-Capex'!N72)),0,('B5-Capex'!M74/('B5-Capex'!M65-'B5-Capex'!N72)))","v":0}]
["Safety of Capital"]
["Gearing","Long Term Borrowing/ Funds & Reserves",null,null,null,{"$f":"IF(ISERROR('B6-FinPos'!C39/'B6-FinPos'!C48),0,('B6-FinPos'!C39/'B6-FinPos'!C48))","v":0},{"$f":"IF(ISERROR('B6-FinPos'!D39/'B6-FinPos'!D48),0,('B6-FinPos'!D39/'B6-FinPos'!D48))","v":0},{"$f":"IF(ISERROR('B6-FinPos'!K39/'B6-FinPos'!K48),0,('B6-FinPos'!K39/'B6-FinPos'!K48))","v":0},{"$f":"IF(ISERROR('B6-FinPos'!L39/'B6-FinPos'!L48),0,('B6-FinPos'!L39/'B6-FinPos'!L48))","v":0},{"$f":"IF(ISERROR('B6-FinPos'!M39/'B6-FinPos'!M48),0,('B6-FinPos'!M39/'B6-FinPos'!M48))","v":0}]
["Liquidity"]
["Current Ratio","Current assets/current liabilities",null,null,null,{"$f":"IF(ISERROR('B6-FinPos'!C14/'B6-FinPos'!C36),0,('B6-FinPos'!C14/'B6-FinPos'!C36))","v":2.9465270442721652},{"$f":"IF(ISERROR('B6-FinPos'!D14/'B6-FinPos'!D36),0,('B6-FinPos'!D14/'B6-FinPos'!D36))","v":0},{"$f":"IF(ISERROR('B6-FinPos'!K14/'B6-FinPos'!K36),0,('B6-FinPos'!K14/'B6-FinPos'!K36))","v":0},{"$f":"IF(ISERROR('B6-FinPos'!L14/'B6-FinPos'!L36),0,('B6-FinPos'!L14/'B6-FinPos'!L36))","v":2.9482752536198293},{"$f":"IF(ISERROR('B6-FinPos'!M14/'B6-FinPos'!M36),0,('B6-FinPos'!M14/'B6-FinPos'!M36))","v":3.0091409648221803}]
["Current Ratio adjusted for aged debtors","Current assets/current liabilities less debtors > 90 days/current liabilities",null,null,null,{"$f":"IF(ISERROR(('B6-FinPos'!C14-'SB4'!F44)/'B6-FinPos'!C36),0,(('B6-FinPos'!C14-'SB4'!F44)/'B6-FinPos'!C36))","v":2.9465270442721652},{"$f":"IF(ISERROR(('B6-FinPos'!D14-'SB4'!G44)/'B6-FinPos'!D36),0,(('B6-FinPos'!D14-'SB4'!G44)/'B6-FinPos'!D36))","v":0},{"$f":"IF(ISERROR(('B6-FinPos'!E14-'SB4'!H44)/'B6-FinPos'!E36),0,(('B6-FinPos'!E14-'SB4'!H44)/'B6-FinPos'!E36))","v":0},{"$f":"IF(ISERROR(('B6-FinPos'!F14-'SB4'!I44)/'B6-FinPos'!F36),0,(('B6-FinPos'!F14-'SB4'!I44)/'B6-FinPos'!F36))","v":0},{"$f":"IF(ISERROR(('B6-FinPos'!G14-'SB4'!J44)/'B6-FinPos'!G36),0,(('B6-FinPos'!G14-'SB4'!J44)/'B6-FinPos'!G36))","v":0}]
["Liquidity Ratio","Monetary Assets/Current Liabilities",null,null,null,{"$f":"IF(ISERROR(('B6-FinPos'!C8+'B6-FinPos'!C9)/'B6-FinPos'!C36),0,(('B6-FinPos'!C8+'B6-FinPos'!C9)/'B6-FinPos'!C36))","v":2.4060117527427716},{"$f":"IF(ISERROR(('B6-FinPos'!D8+'B6-FinPos'!D9)/'B6-FinPos'!D36),0,(('B6-FinPos'!D8+'B6-FinPos'!D9)/'B6-FinPos'!D36))","v":0},{"$f":"IF(ISERROR(('B6-FinPos'!K8+'B6-FinPos'!K9)/'B6-FinPos'!K36),0,(('B6-FinPos'!K8+'B6-FinPos'!K9)/'B6-FinPos'!K36))","v":0},{"$f":"IF(ISERROR(('B6-FinPos'!L8+'B6-FinPos'!L9)/'B6-FinPos'!L36),0,(('B6-FinPos'!L8+'B6-FinPos'!L9)/'B6-FinPos'!L36))","v":2.6406575462750506},{"$f":"IF(ISERROR(('B6-FinPos'!M8+'B6-FinPos'!M9)/'B6-FinPos'!M36),0,(('B6-FinPos'!M8+'B6-FinPos'!M9)/'B6-FinPos'!M36))","v":2.6784868113266964}]
["Revenue Management"]
["Annual Debtors Collection Rate (Payment Level %)","Last 12 Mths Receipts/ Last 12 Mths Billing"]
["Current Debtors Collection Rate (Cash receipts % of Ratepayer & Other revenue)"]
["Outstanding Debtors to Revenue","Total Outstanding Debtors to Annual Revenue",null,null,null,{"$f":"IF(ISERROR((SUM('B6-FinPos'!C10:C12)+'B6-FinPos'!C17)/'B4-FinPerf RE'!C23),0,((SUM('B6-FinPos'!C10:C12)+'B6-FinPos'!C17)/'B4-FinPerf RE'!C23))","v":8.5511162598086513E-2},{"$f":"IF(ISERROR((SUM('B6-FinPos'!D10:D12)+'B6-FinPos'!D17)/'B4-FinPerf RE'!D23),0,((SUM('B6-FinPos'!D10:D12)+'B6-FinPos'!D17)/'B4-FinPerf RE'!D23))","v":0},{"$f":"IF(ISERROR((SUM('B6-FinPos'!K10:K12)+'B6-FinPos'!K17)/'B4-FinPerf RE'!K23),0,((SUM('B6-FinPos'!K10:K12)+'B6-FinPos'!K17)/'B4-FinPerf RE'!K23))","v":8.0987513128243746E-2},{"$f":"IF(ISERROR((SUM('B6-FinPos'!L10:L12)+'B6-FinPos'!L17)/'B4-FinPerf RE'!L23),0,((SUM('B6-FinPos'!L10:L12)+'B6-FinPos'!L17)/'B4-FinPerf RE'!L23))","v":5.3891540956916041E-2},{"$f":"IF(ISERROR((SUM('B6-FinPos'!M10:M12)+'B6-FinPos'!M17)/'B4-FinPerf RE'!M23),0,((SUM('B6-FinPos'!M10:M12)+'B6-FinPos'!M17)/'B4-FinPerf RE'!M23))","v":6.3162863901494989E-2}]
["Longstanding Debtors Recovered","Debtors > 12 Mths Recovered/Total Debtors > 12 Months Old",null,null,null,{"$f":"IF(ISERROR(F45/'B6-FinPos'!C17),0,(F45/'B6-FinPos'!C17))","v":0},{"$f":"IF(ISERROR(G45/'B6-FinPos'!D17),0,(G45/'B6-FinPos'!D17))","v":0},{"$f":"IF(ISERROR(H45/'B6-FinPos'!K17),0,(H45/'B6-FinPos'!K17))","v":0},{"$f":"IF(ISERROR(I45/'B6-FinPos'!L17),0,(I45/'B6-FinPos'!L17))","v":0},{"$f":"IF(ISERROR(J45/'B6-FinPos'!M17),0,(J45/'B6-FinPos'!M17))","v":0}]
["Creditors Management"]
["Creditors System Efficiency","% of Creditors Paid Within Terms (within MFMA s 65(e))"]
["Creditors to Cash and Investments",null,null,null,null,{"$f":"IF(ISERROR('SB2'!C134/'B7-CFlow'!C42), 0, ('SB2'!C134/'B7-CFlow'!C42))","v":0.27241144188880917},{"$f":"IF(ISERROR('SB2'!D134/'B7-CFlow'!D42), 0, ('SB2'!D134/'B7-CFlow'!D42))","v":0},{"$f":"IF(ISERROR('SB2'!K134/'B7-CFlow'!K42), 0, ('SB2'!K134/'B7-CFlow'!K42))","v":0.26240766064194238},{"$f":"IF(ISERROR('SB2'!L134/'B7-CFlow'!L42), 0, ('SB2'!L134/'B7-CFlow'!L42))","v":0.25885908639235916},{"$f":"IF(ISERROR('SB2'!M134/'B7-CFlow'!M42), 0, ('SB2'!M134/'B7-CFlow'!M42))","v":0.26202368093395695}]
[]
["Other Indicators"]
["Electricity Distribution Losses (2)","Total Volume Losses (kW)"]
[null,"Total Cost of Losses (Rand '000)"]
[null,"% Volume (units purchased and generated less units sold)/units purchased and generated"]
["Water Distribution Losses (2)","Total Volume Losses (kℓ)"]
[null,"Total Cost of Losses (Rand '000)"]
[null,"% Volume (units purchased and generated less units sold)/units purchased and generated"]
["Employee costs","Employee costs/(Total Revenue - capital revenue)",null,null,null,{"$f":"IF(ISERROR('B4-FinPerf RE'!C26/'B4-FinPerf RE'!C23),0,('B4-FinPerf RE'!C26/'B4-FinPerf RE'!C23))","v":0.40743840826599209},{"$f":"IF(ISERROR('B4-FinPerf RE'!D26/'B4-FinPerf RE'!D23),0,('B4-FinPerf RE'!D26/'B4-FinPerf RE'!D23))","v":0},{"$f":"IF(ISERROR('B4-FinPerf RE'!K26/'B4-FinPerf RE'!K23),0,('B4-FinPerf RE'!K26/'B4-FinPerf RE'!K23))","v":0.35514171377942855},{"$f":"IF(ISERROR('B4-FinPerf RE'!L26/'B4-FinPerf RE'!L23),0,('B4-FinPerf RE'!L26/'B4-FinPerf RE'!L23))","v":0.40115269203585796},{"$f":"IF(ISERROR('B4-FinPerf RE'!M26/'B4-FinPerf RE'!M23),0,('B4-FinPerf RE'!M26/'B4-FinPerf RE'!M23))","v":0.39466571844936421}]
["Remuneration","Total remuneration/(Total Revenue - capital revenue)"]
["Repairs & Maintenance","R&M/(Total Revenue excluding capital revenue)",null,null,null,{"$f":"IF(ISERROR('B9-Asset'!C171/'B4-FinPerf RE'!C23),0,('B9-Asset'!C171/'B4-FinPerf RE'!C23))","v":2.4889106906874466E-2},{"$f":"IF(ISERROR('B9-Asset'!D171/'B4-FinPerf RE'!D23),0,('B9-Asset'!D171/'B4-FinPerf RE'!D23))","v":0},{"$f":"IF(ISERROR('B9-Asset'!K171/'B4-FinPerf RE'!K23),0,('B9-Asset'!K171/'B4-FinPerf RE'!K23))","v":3.0103609783961493E-2},{"$f":"IF(ISERROR('B9-Asset'!L171/'B4-FinPerf RE'!L23),0,('B9-Asset'!L171/'B4-FinPerf RE'!L23))","v":2.4063458662994888E-2},{"$f":"IF(ISERROR('B9-Asset'!M171/'B4-FinPerf RE'!M23),0,('B9-Asset'!M171/'B4-FinPerf RE'!M23))","v":2.3665369416059102E-2}]
["Finance charges & Depreciation","FC&D/(Total Revenue - capital revenue)",null,null,null,{"$f":"IF(ISERROR(('B4-FinPerf RE'!C29+'B4-FinPerf RE'!C30)/'B4-FinPerf RE'!C23),0,(('B4-FinPerf RE'!C29+'B4-FinPerf RE'!C30)/'B4-FinPerf RE'!C23))","v":0.10960551752106971},{"$f":"IF(ISERROR(('B4-FinPerf RE'!D29+'B4-FinPerf RE'!D30)/'B4-FinPerf RE'!D23),0,(('B4-FinPerf RE'!D29+'B4-FinPerf RE'!D30)/'B4-FinPerf RE'!D23))","v":0},{"$f":"IF(ISERROR(('B4-FinPerf RE'!K29+'B4-FinPerf RE'!K30)/'B4-FinPerf RE'!K23),0,(('B4-FinPerf RE'!K29+'B4-FinPerf RE'!K30)/'B4-FinPerf RE'!K23))","v":0.1113788038212169},{"$f":"IF(ISERROR(('B4-FinPerf RE'!L29+'B4-FinPerf RE'!L30)/'B4-FinPerf RE'!L23),0,(('B4-FinPerf RE'!L29+'B4-FinPerf RE'!L30)/'B4-FinPerf RE'!L23))","v":0.13256136949308303},{"$f":"IF(ISERROR(('B4-FinPerf RE'!M29+'B4-FinPerf RE'!M30)/'B4-FinPerf RE'!M23),0,(('B4-FinPerf RE'!M29+'B4-FinPerf RE'!M30)/'B4-FinPerf RE'!M23))","v":0.13745078053448637}]
["IDP regulation financial viability indicators"]
["i. Debt coverage","(Total Operating Revenue - Operating Grants)/Debt service payments due within financial year)",null,null,null,{"$f":"IF(ISERROR(('B4-FinPerf RE'!C23-'B4-FinPerf RE'!C20)/('B4-FinPerf RE'!L30-'B7-CFlow'!L37)),0,(('B4-FinPerf RE'!C23-'B4-FinPerf RE'!C20)/('B4-FinPerf RE'!L30-'B7-CFlow'!L37)))","v":289.28544732328248},{"$f":"IF(ISERROR(('B4-FinPerf RE'!D23-'B4-FinPerf RE'!D20)/('B4-FinPerf RE'!L30-'B7-CFlow'!L37)),0,(('B4-FinPerf RE'!D23-'B4-FinPerf RE'!D20)/('B4-FinPerf RE'!L30-'B7-CFlow'!L37)))","v":0},{"$f":"IF(ISERROR(('B4-FinPerf RE'!K23-'B4-FinPerf RE'!K20)/('B4-FinPerf RE'!L30-'B7-CFlow'!L37)),0,(('B4-FinPerf RE'!K23-'B4-FinPerf RE'!K20)/('B4-FinPerf RE'!L30-'B7-CFlow'!L37)))","v":261.03864764828023},{"$f":"IF(ISERROR(('B4-FinPerf RE'!L23-'B4-FinPerf RE'!L20)/('B4-FinPerf RE'!M30-'B7-CFlow'!M37)),0,(('B4-FinPerf RE'!L23-'B4-FinPerf RE'!L20)/('B4-FinPerf RE'!M30-'B7-CFlow'!M37)))","v":327.66315061984363},{"$f":"IF(ISERROR(('B4-FinPerf RE'!M23-'B4-FinPerf RE'!M20)/('B4-FinPerf RE'!M30-'B7-CFlow'!M37)),0,(('B4-FinPerf RE'!M23-'B4-FinPerf RE'!M20)/('B4-FinPerf RE'!M30-'B7-CFlow'!M37)))","v":343.60503649950329}]
["ii. O/S Service Debtors to Revenue","Total outstanding service debtors/annual revenue received for services",null,null,null,{"$f":"IF(ISERROR('B6-FinPos'!C10/'B4-FinPerf RE'!C23),0,('B6-FinPos'!C10/'B4-FinPerf RE'!C23))","v":7.8997791529302433E-2},{"$f":"IF(ISERROR('B6-FinPos'!D10/'B4-FinPerf RE'!D23),0,('B6-FinPos'!D10/'B4-FinPerf RE'!D23))","v":0},{"$f":"IF(ISERROR('B6-FinPos'!K10/'B4-FinPerf RE'!K23),0,('B6-FinPos'!K10/'B4-FinPerf RE'!K23))","v":8.0987513128243746E-2},{"$f":"IF(ISERROR('B6-FinPos'!L10/'B4-FinPerf RE'!L23),0,('B6-FinPos'!L10/'B4-FinPerf RE'!L23))","v":6.1915244976715057E-2},{"$f":"IF(ISERROR('B6-FinPos'!M10/'B4-FinPerf RE'!M23),0,('B6-FinPos'!M10/'B4-FinPerf RE'!M23))","v":7.1056814368336052E-2}]
["iii. Cost coverage","(Available cash + Investments)/monthly fixed operational expenditure",null,null,null,{"$f":"IF(ISERROR('B7-CFlow'!C42/'SB4'!F46),0,('B7-CFlow'!C42/'SB4'!F46))","v":0},{"$f":"IF(ISERROR('B7-CFlow'!D42/'SB4'!G46),0,('B7-CFlow'!D42/'SB4'!G46))","v":0},{"$f":"IF(ISERROR('B7-CFlow'!K42/'SB4'!H46),0,('B7-CFlow'!K42/'SB4'!H46))","v":0},{"$f":"IF(ISERROR('B7-CFlow'!L42/'SB4'!I46),0,('B7-CFlow'!L42/'SB4'!I46))","v":0},{"$f":"IF(ISERROR('B7-CFlow'!M42/'SB4'!J46),0,('B7-CFlow'!M42/'SB4'!J46))","v":0}]
[{"$f":"head27a","v":"References"}]
["1.  Consumer debtors > 12 months old are excluded from current assets"]
["2. Only include if services provided by the municipality"]
["Calculation data"]
["Debtors > 90 days"]
["Debtors > 12 months recovered"]
["Monthly fixed operational expenditure"]
["Fixed operational expenditure % assumption",null,null,null,null,0.4,{"$f":"$F$47","v":0.4},{"$f":"$F$47","v":0.4},{"$f":"$F$47","v":0.4},{"$f":"$F$47","v":0.4},"develop own assumption as appropriate"]
["Own capex"]
["Borrowing"]

{"sheet":"SB5","index":41,"n_rows":311,"n_cols":15,"rows_kept":311,"cut":false,"hidden":false,"merged":[[1,0,2,0],[154,10,154,12],[1,10,1,12],[62,10,62,12],[200,7,200,9],[200,0,201,0],[1,2,2,2],[200,10,200,12],[62,0,63,0],[1,1,2,1],[108,0,109,0],[1,5,2,5],[1,4,2,4],[108,7,108,9],[1,3,2,3],[62,7,62,9],[246,0,247,0],[246,4,246,12],[154,0,155,0],[108,10,108,12],[154,7,154,9]]}
[{"$f":"muni&\" - \"&ADJB5&\" - \"&Date","v":"EC139 Enoch Mgijima - Supporting Table SB5 Adjustments Budget - social, economic and demographic statistics and assumptions - "}]
["Description of economic indicator","Ref.","Basis of calculation",{"$f":"Head44","v":"2001 Census"},"2007 Survey",{"$f":"Head45","v":"2011 Census"},{"$f":"Head1B","v":"2018/19"},{"$f":"Head1A","v":"2019/20"},{"$f":"Head1","v":"2020/21"},{"$f":"Head2","v":"Budget Year 2021/22"},{"$f":"Head3","v":"2021/22 Medium Term Revenue & Expenditure Framework"}]
[null,null,null,null,null,null,{"$f":"Head5A","v":"Outcome"},"Outcome","Outcome",{"$f":"Head6","v":"Original Budget"},"Outcome","Outcome","Outcome"]
["Demographics"]
["Population"]
["Females aged 5 - 14"]
["Males aged 5 - 14"]
["Females aged 15 - 34"]
["Males aged 15 - 34"]
["Unemployment"]
[]
["Monthly Household income ( no. of households)","1, 12"]
["None"]
["R1 - R1 600"]
["R1 601 - R3 200"]
["R3 201 - R6 400"]
["R6 401 - R12 800"]
["R12 801 - R25 600"]
["R25 601 - R51 200"]
["R52 201 - R102 400"]
["R102 401 - R204 800"]
["R204 801 - R409 600"]
["R409 601 - R819 200"]
[" > R819 200"]
[]
[]
["Poverty profiles (no. of households)"]
["< R2 060 per household per month",13]
["Insert description",2]
[]
["Household/demographics (000)"]
["Number of people in municipal area"]
["Number of poor people in municipal area"]
["Number of households in municipal area"]
["Number of poor households in municipal area"]
["Definition of poor household (R per month)"]
[]
["Housing statistics",3]
["Formal"]
["Informal"]
["Total number of households",null,{"$f":"SUM(C39:C40)","v":0},0,0,0,0,0,0,0,0]
["Dwellings provided by municipality",4]
["Dwellings provided by province/s"]
["Dwellings provided by private sector",5]
["Total new housing dwellings",null,{"$f":"SUM(C42:C44)","v":0},0,0,0,0,0,0,0,0]
[]
["Economic",6]
["Inflation/inflation outlook (CPIX)"]
["Interest rate - borrowing"]
["Interest rate - investment"]
["Remuneration increases"]
["Consumption growth (electricity)"]
["Consumption growth (water)"]
[]
["Collection rates",7]
["Property tax/service charges",null,null,null,null,"%","%","%","%","%","%"]
["Rental of facilities & equipment",null,null,null,null,"%","%","%","%","%","%"]
["Interest - external investments",null,null,null,null,"%","%","%","%","%","%"]
["Interest - debtors",null,null,null,null,"%","%","%","%","%","%"]
["Revenue from agency services",null,null,null,null,"%","%","%","%","%","%"]
[]
["Detail on the provision of municipal services for B10"]
["Total municipal services",null,null,null,{"$f":"Head1B","v":"2018/19"},{"$f":"Head1A","v":"2019/20"},{"$f":"Head1","v":"2020/21"},{"$f":"Head2","v":"Budget Year 2021/22"},null,null,{"$f":"Head3","v":"2021/22 Medium Term Revenue & Expenditure Framework"}]
[null,"Ref.",null,null,{"$f":"Head5A","v":"Outcome"},{"$f":"Head5A","v":"Outcome"},{"$f":"Head5A","v":"Outcome"},{"$f":"Head6","v":"Original Budget"},{"$f":"Head7","v":"Adjusted Budget"},{"$f":"Head8","v":"Full Year Forecast"},{"$f":"Head9","v":"Budget Year 2021/22"},{"$f":"Head10","v":"Budget Year +1 2022/23"},{"$f":"Head11","v":"Budget Year +2 2023/24"}]
[null,null,"Household service targets (000)"]
[null,null,"Water:"]
[null,null,"Piped water inside dwelling"]
[null,null,"Piped water inside yard (but not in dwelling)"]
[null,8,"Using public tap (at least min.service level)"]
[null,10,"Other water supply (at least min.service level)"]
[null,null,"Minimum Service Level and Above sub-total",null,{"$f":"SUM(E67:E70)","v":0},{"$f":"SUM(F67:F70)","v":0},0,0,0,0,0,0,0]
[null,9,"Using public tap (< min.service level)"]
[null,10,"Other water supply (< min.service level)"]
[null,null,"No water supply"]
[null,null,"Below Minimum Service Level sub-total",null,{"$f":"SUM(E72:E74)","v":0},{"$f":"SUM(F72:F74)","v":0},0,0,0,0,0,0,0]
[null,null,"Total number of households",null,{"$f":"E71+E75","v":0},{"$f":"F71+F75","v":0},0,0,0,0,0,0,0]
[null,null,"Sanitation/sewerage:"]
[null,null,"Flush toilet (connected to sewerage)"]
[null,null,"Flush toilet (with septic tank)"]
[null,null,"Chemical toilet"]
[null,null,"Pit toilet (ventilated)"]
[null,null,"Other toilet provisions (> min.service level)"]
[null,null,"Minimum Service Level and Above sub-total",null,{"$f":"SUM(E78:E82)","v":0},{"$f":"SUM(F78:F82)","v":0},0,0,0,0,0,0,0]
[null,null,"Bucket toilet"]
[null,null,"Other toilet provisions (< min.service level)"]
[null,null,"No toilet provisions"]
[null,null,"Below Minimum Service Level sub-total",null,{"$f":"SUM(E84:E86)","v":0},{"$f":"SUM(F84:F86)","v":0},0,0,0,0,0,0,0]
[null,null,"Total number of households",null,{"$f":"E83+E87","v":0},{"$f":"F83+F87","v":0},0,0,0,0,0,0,0]
[null,null,"Energy:"]
[null,null,"Electricity (at least min.service level)"]
[null,null,"Electricity - prepaid (min.service level)"]
[null,null,"Minimum Service Level and Above sub-total",null,{"$f":"SUM(E90:E91)","v":0},{"$f":"SUM(F90:F91)","v":0},0,0,0,0,0,0,0]
[null,null,"Electricity (< min.service level)"]
[null,null,"Electricity - prepaid (< min. service level)"]
[null,null,"Other energy sources"]
[null,null,"Below Minimum Service Level sub-total",null,{"$f":"SUM(E93:E95)","v":0},{"$f":"SUM(F93:F95)","v":0},0,0,0,0,0,0,0]
[null,null,"Total number of households",null,{"$f":"E92+E96","v":0},{"$f":"F92+F96","v":0},0,0,0,0,0,0,0]
[null,null,"Refuse:"]
[null,null,"Removed at least once a week"]
[null,null,"Minimum Service Level and Above sub-total",null,{"$f":"SUM(E99)","v":0},{"$f":"SUM(F99)","v":0},0,0,0,0,0,0,0]
[null,null,"Removed less frequently than once a week"]
[null,null,"Using communal refuse dump"]
[null,null,"Using own refuse dump"]
[null,null,"Other rubbish disposal"]
[null,null,"No rubbish disposal"]
[null,null,"Below Minimum Service Level sub-total",null,{"$f":"SUM(E101:E105)","v":0},0,0,0,0,0,0,0,0]
[null,null,"Total number of households",null,{"$f":"E100+E106","v":0},{"$f":"F100+F106","v":0},0,0,0,0,0,0,0]
[]
["Municipal in-house services",null,null,null,{"$f":"Head1B","v":"2018/19"},{"$f":"Head1A","v":"2019/20"},{"$f":"Head1","v":"2020/21"},{"$f":"Head2","v":"Budget Year 2021/22"},null,null,{"$f":"Head3","v":"2021/22 Medium Term Revenue & Expenditure Framework"}]
[null,"Ref.",null,null,{"$f":"Head5A","v":"Outcome"},{"$f":"Head5A","v":"Outcome"},{"$f":"Head5A","v":"Outcome"},{"$f":"Head6","v":"Original Budget"},{"$f":"Head7","v":"Adjusted Budget"},{"$f":"Head8","v":"Full Year Forecast"},{"$f":"Head9","v":"Budget Year 2021/22"},{"$f":"Head10","v":"Budget Year +1 2022/23"},{"$f":"Head11","v":"Budget Year +2 2023/24"}]
[null,null,"Household service targets (000)"]
[null,null,"Water:"]
[null,null,"Piped water inside dwelling"]
[null,null,"Piped water inside yard (but not in dwelling)"]
[null,8,"Using public tap (at least min.service level)"]
[null,10,"Other water supply (at least min.service level)"]
[null,null,"Minimum Service Level and Above sub-total",null,{"$f":"SUM(E113:E116)","v":0},{"$f":"SUM(F113:F116)","v":0},0,0,0,0,0,0,0]
[null,9,"Using public tap (< min.service level)"]
[null,10,"Other water supply (< min.service level)"]
[null,null,"No water supply"]
[null,null,"Below Minimum Service Level sub-total",null,{"$f":"SUM(E118:E120)","v":0},{"$f":"SUM(F118:F120)","v":0},0,0,0,0,0,0,0]
[null,null,"Total number of households",null,{"$f":"E117+E121","v":0},{"$f":"F117+F121","v":0},0,0,0,0,0,0,0]
[null,null,"Sanitation/sewerage:"]
[null,null,"Flush toilet (connected to sewerage)"]
[null,null,"Flush toilet (with septic tank)"]
[null,null,"Chemical toilet"]
[null,null,"Pit toilet (ventilated)"]
[null,null,"Other toilet provisions (> min.service level)"]
[null,null,"Minimum Service Level and Above sub-total",null,{"$f":"SUM(E124:E128)","v":0},{"$f":"SUM(F124:F128)","v":0},0,0,0,0,0,0,0]
[null,null,"Bucket toilet"]
[null,null,"Other toilet provisions (< min.service level)"]
[null,null,"No toilet provisions"]
[null,null,"Below Minimum Service Level sub-total",null,{"$f":"SUM(E130:E132)","v":0},{"$f":"SUM(F130:F132)","v":0},0,0,0,0,0,0,0]
[null,null,"Total number of households",null,{"$f":"E129+E133","v":0},{"$f":"F129+F133","v":0},0,0,0,0,0,0,0]
[null,null,"Energy:"]
[null,null,"Electricity (at least min.service level)"]
[null,null,"Electricity - prepaid (min.service level)"]
[null,null,"Minimum Service Level and Above sub-total",null,{"$f":"SUM(E136:E137)","v":0},{"$f":"SUM(F136:F137)","v":0},0,0,0,0,0,0,0]
[null,null,"Electricity (< min.service level)"]
[null,null,"Electricity - prepaid (< min. service level)"]
[null,null,"Other energy sources"]
[null,null,"Below Minimum Service Level sub-total",null,{"$f":"SUM(E139:E141)","v":0},{"$f":"SUM(F139:F141)","v":0},0,0,0,0,0,0,0]
[null,null,"Total number of households",null,{"$f":"E138+E142","v":0},{"$f":"F138+F142","v":0},0,0,0,0,0,0,0]
[null,null,"Refuse:"]
[null,null,"Removed at least once a week"]
[null,null,"Minimum Service Level and Above sub-total",null,{"$f":"SUM(E145)","v":0},{"$f":"SUM(F145)","v":0},0,0,0,0,0,0,0]
[null,null,"Removed less frequently than once a week"]
[null,null,"Using communal refuse dump"]
[null,null,"Using own refuse dump"]
[null,null,"Other rubbish disposal"]
[null,null,"No rubbish disposal"]
[null,null,"Below Minimum Service Level sub-total",null,{"$f":"SUM(E147:E151)","v":0},0,0,0,0,0,0,0,0]
[null,null,"Total number of households",null,{"$f":"E146+E152","v":0},{"$f":"F146+F152","v":0},0,0,0,0,0,0,0]
[]
["Municipal entity services",null,null,null,{"$f":"Head1B","v":"2018/19"},{"$f":"Head1A","v":"2019/20"},{"$f":"Head1","v":"2020/21"},{"$f":"Head2","v":"Budget Year 2021/22"},null,null,{"$f":"Head3","v":"2021/22 Medium Term Revenue & Expenditure Framework"}]
[null,"Ref.",null,null,{"$f":"Head5A","v":"Outcome"},{"$f":"Head5A","v":"Outcome"},{"$f":"Head5A","v":"Outcome"},{"$f":"Head6","v":"Original Budget"},{"$f":"Head7","v":"Adjusted Budget"},{"$f":"Head8","v":"Full Year Forecast"},{"$f":"Head9","v":"Budget Year 2021/22"},{"$f":"Head10","v":"Budget Year +1 2022/23"},{"$f":"Head11","v":"Budget Year +2 2023/24"}]
[null,null,"Household service targets (000)"]
["Name of municipal entity",null,"Water:"]
[null,null,"Piped water inside dwelling"]
[null,null,"Piped water inside yard (but not in dwelling)"]
[null,8,"Using public tap (at least min.service level)"]
[null,10,"Other water supply (at least min.service level)"]
[null,null,"Minimum Service Level and Above sub-total",null,{"$f":"SUM(E159:E162)","v":0},{"$f":"SUM(F159:F162)","v":0},0,0,0,0,0,0,0]
[null,9,"Using public tap (< min.service level)"]
[null,10,"Other water supply (< min.service level)"]
[null,null,"No water supply"]
[null,null,"Below Minimum Service Level sub-total",null,{"$f":"SUM(E164:E166)","v":0},{"$f":"SUM(F164:F166)","v":0},0,0,0,0,0,0,0]
[null,null,"Total number of households",null,{"$f":"E163+E167","v":0},{"$f":"F163+F167","v":0},0,0,0,0,0,0,0]
["Name of municipal entity",null,"Sanitation/sewerage:"]
[null,null,"Flush toilet (connected to sewerage)"]
[null,null,"Flush toilet (with septic tank)"]
[null,null,"Chemical toilet"]
[null,null,"Pit toilet (ventilated)"]
[null,null,"Other toilet provisions (> min.service level)"]
[null,null,"Minimum Service Level and Above sub-total",null,{"$f":"SUM(E170:E174)","v":0},{"$f":"SUM(F170:F174)","v":0},0,0,0,0,0,0,0]
[null,null,"Bucket toilet"]
[null,null,"Other toilet provisions (< min.service level)"]
[null,null,"No toilet provisions"]
[null,null,"Below Minimum Service Level sub-total",null,{"$f":"SUM(E176:E178)","v":0},{"$f":"SUM(F176:F178)","v":0},0,0,0,0,0,0,0]
[null,null,"Total number of households",null,{"$f":"E175+E179","v":0},{"$f":"F175+F179","v":0},0,0,0,0,0,0,0]
["Name of municipal entity",null,"Energy:"]
[null,null,"Electricity (at least min.service level)"]
[null,null,"Electricity - prepaid (min.service level)"]
[null,null,"Minimum Service Level and Above sub-total",null,{"$f":"SUM(E182:E183)","v":0},{"$f":"SUM(F182:F183)","v":0},0,0,0,0,0,0,0]
[null,null,"Electricity (< min.service level)"]
[null,null,"Electricity - prepaid (< min. service level)"]
[null,null,"Other energy sources"]
[null,null,"Below Minimum Service Level sub-total",null,{"$f":"SUM(E185:E187)","v":0},{"$f":"SUM(F185:F187)","v":0},0,0,0,0,0,0,0]
[null,null,"Total number of households",null,{"$f":"E184+E188","v":0},{"$f":"F184+F188","v":0},0,0,0,0,0,0,0]
["Name of municipal entity",null,"Refuse:"]
[null,null,"Removed at least once a week"]
[null,null,"Minimum Service Level and Above sub-total",null,{"$f":"SUM(E191)","v":0},{"$f":"SUM(F191)","v":0},0,0,0,0,0,0,0]
[null,null,"Removed less frequently than once a week"]
[null,null,"Using communal refuse dump"]
[null,null,"Using own refuse dump"]
[null,null,"Other rubbish disposal"]
[null,null,"No rubbish disposal"]
[null,null,"Below Minimum Service Level sub-total",null,{"$f":"SUM(E193:E197)","v":0},0,0,0,0,0,0,0,0]
[null,null,"Total number of households",null,{"$f":"E192+E198","v":0},{"$f":"F192+F198","v":0},0,0,0,0,0,0,0]
[]
["Services provided by 'external mechanisms'",null,null,null,{"$f":"Head1B","v":"2018/19"},{"$f":"Head1A","v":"2019/20"},{"$f":"Head1","v":"2020/21"},{"$f":"Head2","v":"Budget Year 2021/22"},null,null,{"$f":"Head3","v":"2021/22 Medium Term Revenue & Expenditure Framework"}]
[null,"Ref.",null,null,{"$f":"Head5A","v":"Outcome"},{"$f":"Head5A","v":"Outcome"},{"$f":"Head5A","v":"Outcome"},{"$f":"Head6","v":"Original Budget"},{"$f":"Head7","v":"Adjusted Budget"},{"$f":"Head8","v":"Full Year Forecast"},{"$f":"Head9","v":"Budget Year 2021/22"},{"$f":"Head10","v":"Budget Year +1 2022/23"},{"$f":"Head11","v":"Budget Year +2 2023/24"}]
["Names of service providers",null,"Household service targets (000)"]
[null,null,"Water:"]
[null,null,"Piped water inside dwelling"]
[null,null,"Piped water inside yard (but not in dwelling)"]
[null,8,"Using public tap (at least min.service level)"]
[null,10,"Other water supply (at least min.service level)"]
[null,null,"Minimum Service Level and Above sub-total",null,{"$f":"SUM(E205:E208)","v":0},{"$f":"SUM(F205:F208)","v":0},0,0,0,0,0,0,0]
[null,9,"Using public tap (< min.service level)"]
[null,10,"Other water supply (< min.service level)"]
[null,null,"No water supply"]
[null,null,"Below Minimum Service Level sub-total",null,{"$f":"SUM(E210:E212)","v":0},{"$f":"SUM(F210:F212)","v":0},0,0,0,0,0,0,0]
[null,null,"Total number of households",null,{"$f":"E209+E213","v":0},{"$f":"F209+F213","v":0},0,0,0,0,0,0,0]
["Names of service providers",null,"Sanitation/sewerage:"]
[null,null,"Flush toilet (connected to sewerage)"]
[null,null,"Flush toilet (with septic tank)"]
[null,null,"Chemical toilet"]
[null,null,"Pit toilet (ventilated)"]
[null,null,"Other toilet provisions (> min.service level)"]
[null,null,"Minimum Service Level and Above sub-total",null,{"$f":"SUM(E216:E220)","v":0},{"$f":"SUM(F216:F220)","v":0},0,0,0,0,0,0,0]
[null,null,"Bucket toilet"]
[null,null,"Other toilet provisions (< min.service level)"]
[null,null,"No toilet provisions"]
[null,null,"Below Minimum Service Level sub-total",null,{"$f":"SUM(E222:E224)","v":0},{"$f":"SUM(F222:F224)","v":0},0,0,0,0,0,0,0]
[null,null,"Total number of households",null,{"$f":"E221+E225","v":0},{"$f":"F221+F225","v":0},0,0,0,0,0,0,0]
["Names of service providers",null,"Energy:"]
[null,null,"Electricity (at least min.service level)"]
[null,null,"Electricity - prepaid (min.service level)"]
[null,null,"Minimum Service Level and Above sub-total",null,{"$f":"SUM(E228:E229)","v":0},{"$f":"SUM(F228:F229)","v":0},0,0,0,0,0,0,0]
[null,null,"Electricity (< min.service level)"]
[null,null,"Electricity - prepaid (< min. service level)"]
[null,null,"Other energy sources"]
[null,null,"Below Minimum Service Level sub-total",null,{"$f":"SUM(E231:E233)","v":0},{"$f":"SUM(F231:F233)","v":0},0,0,0,0,0,0,0]
[null,null,"Total number of households",null,{"$f":"E230+E234","v":0},{"$f":"F230+F234","v":0},0,0,0,0,0,0,0]
["Names of service providers",null,"Refuse:"]
[null,null,"Removed at least once a week"]
[null,null,"Minimum Service Level and Above sub-total",null,{"$f":"SUM(E237)","v":0},{"$f":"SUM(F237)","v":0},0,0,0,0,0,0,0]
[null,null,"Removed less frequently than once a week"]
[null,null,"Using communal refuse dump"]
[null,null,"Using own refuse dump"]
[null,null,"Other rubbish disposal"]
[null,null,"No rubbish disposal"]
[null,null,"Below Minimum Service Level sub-total",null,{"$f":"SUM(E239:E243)","v":0},0,0,0,0,0,0,0,0]
[null,null,"Total number of households",null,{"$f":"E238+E244","v":0},{"$f":"F238+F244","v":0},0,0,0,0,0,0,0]
[]
["Detail of Free Basic Services (FBS) provided",null,null,null,{"$f":"Head2","v":"Budget Year 2021/22"},null,null,null,null,null,null,null,null,{"$f":"Head10","v":"Budget Year +1 2022/23"},{"$f":"Head11","v":"Budget Year +2 2023/24"}]
[null,null,null,null,{"$f":"Head6","v":"Original Budget"},{"$f":"Head54","v":"Prior Adjusted"},{"$f":"Head51","v":"Accum. Funds"},{"$f":"Head52","v":"Multi-year capital"},{"$f":"Head53","v":"Unfore. Unavoid."},{"$f":"Head55","v":"Nat. or Prov. Govt"},{"$f":"Head50","v":"Other Adjusts."},{"$f":"Head56","v":"Total Adjusts."},{"$f":"Head7","v":"Adjusted Budget"},{"$f":"Head7","v":"Adjusted Budget"},{"$f":"Head7","v":"Adjusted Budget"}]
["Electricity","Ref.","Location of households for each type of FBS"]
["List type of FBS service",null,"Formal settlements -  (50 kwh per indigent household per month R '000)",null,null,null,null,null,null,null,null,{"$f":"SUM(G250:K250)","v":0},{"$f":"IF(F250=0,E250+L250,F250+L250)","v":0}]
[null,null,"Number of HH receiving this type of FBS",null,null,null,null,null,null,null,null,{"$f":"SUM(G251:K251)","v":0},0]
[null,null,"Informal settlements (R '000)",null,null,null,null,null,null,null,null,0,0]
[null,null,"Number of HH receiving this type of FBS",null,null,null,null,null,null,null,null,0,0]
[null,null,"Informal settlements targeted for upgrading (R '000)",null,null,null,null,null,null,null,null,0,0]
[null,null,"Number of HH receiving this type of FBS",null,null,null,null,null,null,null,null,0,0]
[null,null,"Living in informal backyard rental agreement (R '000)",null,null,null,null,null,null,null,null,0,0]
[null,null,"Number of HH receiving this type of FBS",null,null,null,null,null,null,null,null,0,0]
[null,null,"Other (R '000)",null,null,null,null,null,null,null,null,0,0]
[null,null,"Number of HH receiving this type of FBS",null,null,null,null,null,null,null,null,0,0]
[null,null,"Total cost of FBS - Electricity for informal settlements",null,{"$f":"E252+E254+E256+E258","v":0},{"$f":"F252+F254+F256+F258","v":0},0,0,0,0,0,{"$f":"L252+L254+L256+L258","v":0},0,{"$f":"N252+N254+N256+N258","v":0},0]
["Water","Ref.","Location of households for each type of FBS"]
["List type of FBS service",null,"Formal settlements -  (6 kilolitre per indigent household per month R '000)",null,null,null,null,null,null,null,null,{"$f":"SUM(G262:K262)","v":0},{"$f":"IF(F262=0,E262+L262,F262+L262)","v":0}]
[null,null,"Number of HH receiving this type of FBS",null,null,null,null,null,null,null,null,0,0]
[null,null,"Informal settlements (R '000)",null,null,null,null,null,null,null,null,0,0]
[null,null,"Number of HH receiving this type of FBS",null,null,null,null,null,null,null,null,0,0]
[null,null,"Informal settlements targeted for upgrading (R '000)",null,null,null,null,null,null,null,null,{"$f":"SUM(G266:K266)","v":0},0]
[null,null,"Number of HH receiving this type of FBS",null,null,null,null,null,null,null,null,0,0]
[null,null,"Living in informal backyard rental agreement (R '000)",null,null,null,null,null,null,null,null,0,0]
[null,null,"Number of HH receiving this type of FBS",null,null,null,null,null,null,null,null,0,0]
[null,null,"Other (R '000)",null,null,null,null,null,null,null,null,0,0]
[null,null,"Number of HH receiving this type of FBS",null,null,null,null,null,null,null,null,0,0]
[null,null,"Total cost of FBS - Water  for informal settlements",null,{"$f":"E264+E266+E268+E270","v":0},{"$f":"F264+F266+F268+F270","v":0},0,0,0,0,0,0,0,{"$f":"N264+N266+N268+N270","v":0},{"$f":"O264+O266+O268+O270","v":0}]
["Sanitation","Ref.","Location of households for each type of FBS"]
["List type of FBS service",null,"Formal settlements -  (free sanitation service to indigent households R '000)",null,null,null,null,null,null,null,null,{"$f":"SUM(G274:K274)","v":0},{"$f":"IF(F274=0,E274+L274,F274+L274)","v":0}]
[null,null,"Number of HH receiving this type of FBS",null,null,null,null,null,null,null,null,0,0]
[null,null,"Informal settlements (R '000)",null,null,null,null,null,null,null,null,0,0]
[null,null,"Number of HH receiving this type of FBS",null,null,null,null,null,null,null,null,0,0]
[null,null,"Informal settlements targeted for upgrading (R '000)",null,null,null,null,null,null,null,null,0,0]
[null,null,"Number of HH receiving this type of FBS",null,null,null,null,null,null,null,null,0,0]
[null,null,"Living in informal backyard rental agreement (R '000)",null,null,null,null,null,null,null,null,0,0]
[null,null,"Number of HH receiving this type of FBS",null,null,null,null,null,null,null,null,0,0]
[null,null,"Other (R '000)",null,null,null,null,null,null,null,null,0,0]
[null,null,"Number of HH receiving this type of FBS",null,null,null,null,null,null,null,null,0,0]
[null,null,"Total cost of FBS - Sanitation for informal settlements",null,{"$f":"E276+E278+E280+E282","v":0},{"$f":"F276+F278+F280+F282","v":0},0,0,0,0,0,0,0,{"$f":"N276+N278+N280+N282","v":0},{"$f":"O276+O278+O280+O282","v":0}]
["Refuse Removal","Ref.","Location of households for each type of FBS"]
["List type of FBS service",null,"Formal settlements -  (removed once a week to indigent households R '000)",null,null,null,null,null,null,null,null,{"$f":"SUM(G286:K286)","v":0},{"$f":"IF(F286=0,E286+L286,F286+L286)","v":0}]
[null,null,"Number of HH receiving this type of FBS",null,null,null,null,null,null,null,null,0,0]
[null,null,"Informal settlements (R '000)",null,null,null,null,null,null,null,null,0,0]
[null,null,"Number of HH receiving this type of FBS",null,null,null,null,null,null,null,null,0,0]
[null,null,"Informal settlements targeted for upgrading (R '000)",null,null,null,null,null,null,null,null,0,0]
[null,null,"Number of HH receiving this type of FBS",null,null,null,null,null,null,null,null,0,0]
[null,null,"Living in informal backyard rental agreement (R '000)",null,null,null,null,null,null,null,null,0,0]
[null,null,"Number of HH receiving this type of FBS",null,null,null,null,null,null,null,null,0,0]
[null,null,"Other (R '000)",null,null,null,null,null,null,null,null,0,0]
[null,null,"Number of HH receiving this type of FBS",null,null,null,null,null,null,null,null,0,0]
[null,null,"Total cost of FBS - Refuse Removal for informal settlements",null,{"$f":"E288+E290+E292+E294","v":0},{"$f":"F288+F290+F292+F294","v":0},0,0,0,0,0,0,0,{"$f":"N288+N290+N292+N294","v":0},{"$f":"O288+O290+O292+O294","v":0}]
[]
[{"$f":"head27a","v":"References"}]
["1. Monthly household income threshold. Should include all sources of income."]
["2. Show the poverty analysis the municipality uses to determine its indigents policy and the provision of services"]
["3. Include total of all housing units within the municipality"]
["4. Number of subsidised dwellings to be constructed by the municipality under agency agreement with province"]
["5. Provide estimate based on building approval information. Include any non-subsidised dwellings constructed by the municipality"]
["6. Insert actual or estimated % increases assumed as a basis for budget calculations"]
["7. Insert actual or estimated % collection rate assumed as a basis for budget calculations for each revenue group"]
["8. Stand distance <= 200m from dwelling"]
["9. Stand distance > 200m from dwelling"]
["10. Borehole, spring, rain-water tank etc."]
["11. Must agree to total number of households in municipal area"]
["12. Household income categories assume an average 4 person household. Stats SA - Census 2011 Questionnaire"]
["13. Based on National poverty line of R515 per capita per month (2008 prices), assuming an average household size of 4 persons"]

{"sheet":"SB6","index":42,"n_rows":71,"n_cols":11,"rows_kept":71,"cut":false,"hidden":false,"merged":[[1,1,2,1],[1,2,2,2]]}
[{"$f":"muni &\" - \"&ADJB6&\" - \"&Date","v":"EC139 Enoch Mgijima - Supporting Table SB6 Adjustments Budget - funding measurement - "}]
[{"$f":"desc","v":"Description"},{"$f":"head27","v":"Ref"},"MFMA section",{"$f":"Head1B","v":"2018/19"},{"$f":"Head1A","v":"2019/20"},{"$f":"Head1","v":"2020/21"},{"$f":"Head3a","v":"Medium Term Revenue and Expenditure Framework"}]
["R thousands",null,null,{"$f":"Head5","v":"Audited Outcome"},{"$f":"Head5","v":"Audited Outcome"},{"$f":"Head5","v":"Audited Outcome"},{"$f":"Head6","v":"Original Budget"},{"$f":"Head54","v":"Prior Adjusted"},{"$f":"Head7","v":"Adjusted Budget"},{"$f":"Head10","v":"Budget Year +1 2022/23"},{"$f":"Head11","v":"Budget Year +2 2023/24"}]
["Funding measures"]
["Cash/cash equivalents at the year end - R'000",1,"18(1)b",null,null,null,{"$f":"'B7-CFlow'!C42","v":134221161},{"$f":"'B7-CFlow'!D42","v":0},{"$f":"'B7-CFlow'!K42","v":132880770},{"$f":"'B7-CFlow'!L42","v":163872513},{"$f":"'B7-CFlow'!M42","v":187072267}]
["Cash + investments at the yr end less applications - R'000",2,"18(1)b",null,null,null,{"$f":"'B8-ResRecon'!C21","v":65237318},{"$f":"'B8-ResRecon'!D21","v":0},{"$f":"'B8-ResRecon'!K21","v":66865346},{"$f":"'B8-ResRecon'!L21","v":77674008},{"$f":"'B8-ResRecon'!M21","v":94328516}]
["Cash year end/monthly employee/supplier payments",3,"18(1)b",null,null,null,{"$f":"'SB4'!F39","v":0},{"$f":"'SB4'!G39","v":0},{"$f":"'SB4'!H39","v":0},{"$f":"'SB4'!I39","v":0},{"$f":"'SB4'!J39","v":0}]
["Surplus/(Deficit) excluding depreciation offsets: R'000",4,"18(1)",null,null,null,{"$f":"'B4-FinPerf RE'!C43+'SB2'!C155","v":47208013},{"$f":"'B4-FinPerf RE'!D43+'SB2'!D155","v":0},{"$f":"'B4-FinPerf RE'!K43+'SB2'!K155","v":41063909},{"$f":"'B4-FinPerf RE'!L43+'SB2'!L155","v":49692716},{"$f":"'B4-FinPerf RE'!M43+'SB2'!M155","v":54193329}]
["Service charge rev % change - macro CPIX target exclusive",5,"18(1)a,(2)",null,null,null,{"$f":"IF(ISERROR(((G36/G37)-1)-G35),0,(((G36/G37)-1)-G35))","v":0},{"$f":"IF(ISERROR(((H36/H37)-1)-H35),0,(((H36/H37)-1)-H35))","v":0},{"$f":"IF(ISERROR(((I36/I37)-1)-I35),0,(((I36/I37)-1)-I35))","v":0},{"$f":"IF(ISERROR(((J36/J37)-1)-J35),0,(((J36/J37)-1)-J35))","v":-0.15297269782508099},{"$f":"IF(ISERROR(((K36/K37)-1)-K35),0,(((K36/K37)-1)-K35))","v":-1.1610847687295311E-2}]
["Cash receipts % of Ratepayer & Other revenue",6,"18(1)a,(2)",{"$f":"IF(ISERROR(D40/D41),0,(D40/D41))","v":0},{"$f":"IF(ISERROR(E40/E41),0,(E40/E41))","v":0},0,1.1704350056842829,0,1.2618354466222765,1.1875841651440953,1.2100740482348351]
["Debt impairment expense as a % of total billable revenue",7,"18(1)a,(2)",null,null,null,{"$f":"IF(ISERROR('B4-FinPerf RE'!C28/(SUM('B4-FinPerf RE'!C7:C13))),0,('B4-FinPerf RE'!C28/(SUM('B4-FinPerf RE'!C7:C13))))","v":0.20934080746521641},{"$f":"IF(ISERROR('B4-FinPerf RE'!D28/(SUM('B4-FinPerf RE'!D7:D13))),0,('B4-FinPerf RE'!D28/(SUM('B4-FinPerf RE'!D7:D13))))","v":0},{"$f":"IF(ISERROR('B4-FinPerf RE'!K28/(SUM('B4-FinPerf RE'!K7:K13))),0,('B4-FinPerf RE'!K28/(SUM('B4-FinPerf RE'!K7:K13))))","v":6.3346705162054567E-2},{"$f":"IF(ISERROR('B4-FinPerf RE'!L28/(SUM('B4-FinPerf RE'!L7:L13))),0,('B4-FinPerf RE'!L28/(SUM('B4-FinPerf RE'!L7:L13))))","v":0.26784508064013651},{"$f":"IF(ISERROR('B4-FinPerf RE'!M28/(SUM('B4-FinPerf RE'!M7:M13))),0,('B4-FinPerf RE'!M28/(SUM('B4-FinPerf RE'!M7:M13))))","v":0.26698121440087719}]
["Capital payments % of capital expenditure",8,"18(1)c;19",null,null,null,{"$f":"IF(ISERROR(-'B7-CFlow'!C28/'B5-Capex'!C65),0,(-'B7-CFlow'!C28/'B5-Capex'!C65))","v":1.2647855398117134},{"$f":"IF(ISERROR(-'B7-CFlow'!D28/'B5-Capex'!D65),0,(-'B7-CFlow'!D28/'B5-Capex'!D65))","v":0},{"$f":"IF(ISERROR(-'B7-CFlow'!E28/'B5-Capex'!E65),0,(-'B7-CFlow'!E28/'B5-Capex'!E65))","v":0},{"$f":"IF(ISERROR(-'B7-CFlow'!F28/'B5-Capex'!F65),0,(-'B7-CFlow'!F28/'B5-Capex'!F65))","v":0},{"$f":"IF(ISERROR(-'B7-CFlow'!G28/'B5-Capex'!G65),0,(-'B7-CFlow'!G28/'B5-Capex'!G65))","v":0}]
["Borrowing receipts % of capital expenditure (excl. transfers)",9,"18(1)c",null,null,null,{"$f":"IF(ISERROR('SB4'!F9),0,('SB4'!F9))","v":0},{"$f":"IF(ISERROR('SB4'!G9),0,('SB4'!G9))","v":0},{"$f":"IF(ISERROR('SB4'!H9),0,('SB4'!H9))","v":0},{"$f":"IF(ISERROR('SB4'!I9),0,('SB4'!I9))","v":0},{"$f":"IF(ISERROR('SB4'!J9),0,('SB4'!J9))","v":0}]
["Grants % of Govt. legislated/gazetted allocations",10,"18(1)a",null,null,null,{"$f":"IF(ISERROR(('B4-FinPerf RE'!C20+'B4-FinPerf RE'!C40)/('SB6'!G38+'SB6'!G39)),0,(('B4-FinPerf RE'!C20+'B4-FinPerf RE'!C40)/('SB6'!G38+'SB6'!G39)))","v":0},{"$f":"IF(ISERROR(('B4-FinPerf RE'!D20+'B4-FinPerf RE'!D40)/('SB6'!H38+'SB6'!H39)),0,(('B4-FinPerf RE'!D20+'B4-FinPerf RE'!D40)/('SB6'!H38+'SB6'!H39)))","v":0},{"$f":"IF(ISERROR(('B4-FinPerf RE'!K20+'B4-FinPerf RE'!K40)/('SB6'!I38+'SB6'!I39)),0,(('B4-FinPerf RE'!K20+'B4-FinPerf RE'!K40)/('SB6'!I38+'SB6'!I39)))","v":0},{"$f":"IF(ISERROR(('B4-FinPerf RE'!L20+'B4-FinPerf RE'!L40)/('SB6'!J38+'SB6'!J39)),0,(('B4-FinPerf RE'!L20+'B4-FinPerf RE'!L40)/('SB6'!J38+'SB6'!J39)))","v":0},{"$f":"IF(ISERROR(('B4-FinPerf RE'!M20+'B4-FinPerf RE'!M40)/('SB6'!K38+'SB6'!K39)),0,(('B4-FinPerf RE'!M20+'B4-FinPerf RE'!M40)/('SB6'!K38+'SB6'!K39)))","v":0}]
["Current consumer debtors % change - incr(decr)",11,"18(1)a",null,null,null,null,null,null,{"$f":"IF(ISERROR((SUM('B6-FinPos'!L10:L12)-SUM('B6-FinPos'!K10:K12))/SUM('B6-FinPos'!K10:K12)), 0, (SUM('B6-FinPos'!L10:L12)-SUM('B6-FinPos'!K10:K12))/SUM('B6-FinPos'!K10:K12))","v":-0.29337775026559126},{"$f":"IF(ISERROR((SUM('B6-FinPos'!M10:M12)-SUM('B6-FinPos'!L10:L12))/SUM('B6-FinPos'!L10:L12)), 0, (SUM('B6-FinPos'!M10:M12)-SUM('B6-FinPos'!L10:L12))/SUM('B6-FinPos'!L10:L12))","v":0.24490966437797007}]
["Long term receivables % change - incr(decr)",12,"18(1)a",null,null,null,null,null,null,{"$f":"IF(ISERROR(('B6-FinPos'!L17-'B6-FinPos'!K17)/'B6-FinPos'!K17),0,(('B6-FinPos'!L17-'B6-FinPos'!K17)/'B6-FinPos'!K17))","v":0},{"$f":"IF(ISERROR(('B6-FinPos'!M17-'B6-FinPos'!L17)/'B6-FinPos'!L17),0,(('B6-FinPos'!M17-'B6-FinPos'!L17)/'B6-FinPos'!L17))","v":0}]
["R&M % of Property Plant & Equipment",13,"20(1)(vi)",null,null,null,{"$f":"IF(ISERROR('B9-Asset'!C171/'B9-Asset'!C167),0,('B9-Asset'!C171/'B9-Asset'!C167))","v":1.6222514437881468E-2},{"$f":"IF(ISERROR('B9-Asset'!D171/'B9-Asset'!D167),0,('B9-Asset'!D171/'B9-Asset'!D167))","v":0},{"$f":"IF(ISERROR('B9-Asset'!K171/'B9-Asset'!K167),0,('B9-Asset'!K171/'B9-Asset'!K167))","v":1.8760324917888656E-2},{"$f":"IF(ISERROR('B9-Asset'!L171/'B9-Asset'!L167),0,('B9-Asset'!L171/'B9-Asset'!L167))","v":1.450565048423131E-2},{"$f":"IF(ISERROR('B9-Asset'!M171/'B9-Asset'!M167),0,('B9-Asset'!M171/'B9-Asset'!M167))","v":1.4468635124133364E-2}]
["Asset renewal % of capital budget",14,{"$f":"C17","v":"20(1)(vi)"},null,null,null,{"$f":"IF(ISERROR('B9-Asset'!C39/'B9-Asset'!C134),0,('B9-Asset'!C39/'B9-Asset'!C134))","v":3.8302711132787277E-2},{"$f":"IF(ISERROR('B9-Asset'!D39/'B9-Asset'!D134),0,('B9-Asset'!D39/'B9-Asset'!D134))","v":0},{"$f":"IF(ISERROR('B9-Asset'!K39/'B9-Asset'!K134),0,('B9-Asset'!K39/'B9-Asset'!K134))","v":5.7617584169915781E-3},{"$f":"IF(ISERROR('B9-Asset'!L39/'B9-Asset'!L134),0,('B9-Asset'!L39/'B9-Asset'!L134))","v":3.838771593090211E-3},{"$f":"IF(ISERROR('B9-Asset'!M39/'B9-Asset'!M134),0,('B9-Asset'!M39/'B9-Asset'!M134))","v":3.8387714244108458E-3}]
[{"$f":"head27a","v":"References"}]
["1. Positive cash balances indicative of minimum compliance - subject to 2"]
["2. Deduct applications (defined) from cash balances"]
["3. Indicative of sufficient liquidity to meet average monthly operating payments"]
["4. Indicative of funded operational requirements"]
["5. Indicative of adherence to macro-economic targets (prior to 2003/04 revenue not available for high capacity municipalities and later for other capacity classifications)"]
["6. Realistic average cash collection forecasts as % of annual billed revenue"]
["7. Realistic average increase in doubtful debt provision"]
["8. Indicative of planned capital expenditure level & cash payment timing"]
["9. Indicative of compliance with borrowing 'only' for the capital budget - should not exceed 100% unless refinancing"]
["10. Substantiation of National/Province allocations included in budget"]
["11. Indicative of realistic current arrear debtor collection targets (prior to 2003/04 revenue not available for high cap municipalities and later for other capacity classifications)"]
["12. Indicative of realistic long term arrear debtor collection targets (prior to 2003/04 revenue not available for high cap municipalities and later for other capacity classifications)"]
["13. Indicative of a credible allowance for repairs & maintenance of assets"]
["14. Indicative of a credible allowance for asset renewal (requires analysis of asset renewal projects as % of total capital projects - detailed capital plan)"]
[]
["Macro CPIX target",null,null,null,null,null,0.06,0.06,0.06,0.06,0.06]
["Total service charge revenue",null,null,null,null,null,{"$f":"IF(ISERROR(SUM('B4-FinPerf RE'!C7:C12)),0,(SUM('B4-FinPerf RE'!C7:C12)))","v":18449060},{"$f":"IF(ISERROR(SUM('B4-FinPerf RE'!D7:D12)),0,(SUM('B4-FinPerf RE'!D7:D12)))","v":0},{"$f":"IF(ISERROR(SUM('B4-FinPerf RE'!K7:K12)),0,(SUM('B4-FinPerf RE'!K7:K12)))","v":21610000},{"$f":"IF(ISERROR(SUM('B4-FinPerf RE'!L7:L12)),0,(SUM('B4-FinPerf RE'!L7:L12)))","v":19600860},{"$f":"IF(ISERROR(SUM('B4-FinPerf RE'!M7:M12)),0,(SUM('B4-FinPerf RE'!M7:M12)))","v":20549329}]
["Total service charge revenue - previous year",null,null,null,null,null,null,null,{"$f":"G37","v":0},{"$f":"I36","v":21610000},{"$f":"J36","v":19600860}]
["Provincial government gazetted allocations"]
["National government DoRA allocations"]
["Cash receipts from ratepayers",null,null,null,null,null,{"$f":"'B7-CFlow'!C8+'B7-CFlow'!C9+'B7-CFlow'!C10","v":34993935},{"$f":"'B7-CFlow'!D8+'B7-CFlow'!D9+'B7-CFlow'!D10","v":0},{"$f":"'B7-CFlow'!K8+'B7-CFlow'!K9+'B7-CFlow'!K10","v":33778492},{"$f":"'B7-CFlow'!L8+'B7-CFlow'!L9+'B7-CFlow'!L10","v":36108797},{"$f":"'B7-CFlow'!M8+'B7-CFlow'!M9+'B7-CFlow'!M10","v":38588637}]
["Ratepayer & Other revenue",null,null,null,null,null,{"$f":"SUM('B4-FinPerf RE'!C7:C13)+'B4-FinPerf RE'!C15+SUM('B4-FinPerf RE'!C17:C19)+'B4-FinPerf RE'!C21","v":29898230},{"$f":"SUM('B4-FinPerf RE'!D7:D13)+'B4-FinPerf RE'!D15+SUM('B4-FinPerf RE'!D17:D19)+'B4-FinPerf RE'!D21","v":0},{"$f":"SUM('B4-FinPerf RE'!K7:K13)+'B4-FinPerf RE'!K15+SUM('B4-FinPerf RE'!K17:K19)+'B4-FinPerf RE'!K21","v":26769332},{"$f":"SUM('B4-FinPerf RE'!L7:L13)+'B4-FinPerf RE'!L15+SUM('B4-FinPerf RE'!L17:L19)+'B4-FinPerf RE'!L21","v":30405253},{"$f":"SUM('B4-FinPerf RE'!M7:M13)+'B4-FinPerf RE'!M15+SUM('B4-FinPerf RE'!M17:M19)+'B4-FinPerf RE'!M21","v":31889484}]
["Change in debtors",null,null,null,null,null,null,null,null,{"$f":"(SUM('B6-FinPos'!L10:L12)+'B6-FinPos'!L17)-(SUM('B6-FinPos'!K10:K12)+'B6-FinPos'!K17)","v":-5288650},{"$f":"(SUM('B6-FinPos'!M10:M12)+'B6-FinPos'!M17)-(SUM('B6-FinPos'!L10:L12)+'B6-FinPos'!L17)","v":3119686}]
[]
[]
[]
[]
[]
[]
[]
[]
[]
[]
[]
[]
[]
[]
[]
[]
[]
[]
[]
[]
[]
[]
[]
[]
[]
[]
[]
[]
["Average annual collection rate (arrears inclusive)"]

{"sheet":"SB7","index":44,"n_rows":62,"n_cols":13,"rows_kept":62,"cut":false,"hidden":false,"merged":[[59,0,59,10],[56,0,56,10],[1,0,3,0],[1,1,3,1],[1,2,1,8]]}
[{"$f":"muni&\" - \"&ADJB7&\" - \"&Date","v":"EC139 Enoch Mgijima - Supporting Table SB7 Adjustments Budget - transfers and grant receipts - "}]
[{"$f":"desc","v":"Description"},{"$f":"head27","v":"Ref"},{"$f":"Head2","v":"Budget Year 2021/22"},null,null,null,null,null,null,{"$f":"Head10","v":"Budget Year +1 2022/23"},{"$f":"Head11","v":"Budget Year +2 2023/24"}]
[null,null,{"$f":"Head6","v":"Original Budget"},{"$f":"Head54","v":"Prior Adjusted"},{"$f":"Head52","v":"Multi-year capital"},{"$f":"Head55","v":"Nat. or Prov. Govt"},{"$f":"Head50","v":"Other Adjusts."},{"$f":"Head56","v":"Total Adjusts."},{"$f":"Head7","v":"Adjusted Budget"},{"$f":"Head7","v":"Adjusted Budget"},{"$f":"Head7","v":"Adjusted Budget"}]
[null,null,null,7,8,9,10,11,12]
["R thousands",null,"A","A1","B","C","D","E","F"]
["RECEIPTS:","1, 2"]
[]
["Operating Transfers and Grants"]
["National Government:",null,{"$f":"SUM(C10:C16)","v":-5065053},0,0,0,4282091,4282091,-4282091,-1850000,-1850000]
["Local Government Equitable Share",null,null,null,null,null,null,{"$f":"SUM(E10:G10)","v":0},{"$f":"IF(D10=0,C10+H10,D10+H10)","v":0}]
["EPWP Incentive","_",-1759000,0,0,0,1759000,1759000,-1759000,0,0]
["Finance Management ","_",-1850000,0,0,0,1850000,1850000,-1850000,-1850000,-1850000]
["Municipal Infrastructure Grant","_",-1456053,0,0,0,673091,673091,-673091,0,0]
[]
[null,null,null,null,null,null,null,0,0]
["Other transfers and grants [insert description]",null,null,null,null,null,null,0,0]
["Provincial Government:",null,{"$f":"SUM(C18:C22)","v":-2795000},0,0,0,2795000,2795000,-2795000,-2933000,-2933000]
["KwaZulu-Natal_Capacity Building and Other_Specify (Add grant description)_Receipts","_",-2795000,0,0,0,2795000,2795000,-2795000,-2933000,-2933000]
[]
[null,4,null,null,null,null,null,{"$f":"SUM(E20:G20)","v":0},{"$f":"IF(D20=0,C20+H20,D20+H20)","v":0}]
[null,null,null,null,null,null,null,{"$f":"SUM(E21:G21)","v":0},{"$f":"IF(D21=0,C21+H21,D21+H21)","v":0}]
["Other transfers and grants [insert description]",5,null,null,null,null,null,{"$f":"SUM(E22:G22)","v":0},{"$f":"IF(D22=0,C22+H22,D22+H22)","v":0}]
["District Municipality:",null,{"$f":"SUM(C24:C25)","v":0},0,0,0,0,0,0,0,0]
["[insert description]",null,null,null,null,null,null,{"$f":"SUM(E24:G24)","v":0},{"$f":"IF(D24=0,C24+H24,D24+H24)","v":0}]
[null,null,null,null,null,null,null,{"$f":"SUM(E25:G25)","v":0},{"$f":"IF(D25=0,C25+H25,D25+H25)","v":0}]
["Other grant providers:",null,{"$f":"SUM(C27:C28)","v":0},0,0,0,0,0,0,0,0]
[]
[]
["Total Operating Transfers and Grants",6,{"$f":"C9+C17+C23+C26","v":-7860053},0,0,0,7077091,7077091,{"$f":"I9+I17+I23+I26","v":-7077091},-4783000,-4783000]
[]
["Capital Transfers and Grants"]
[{"$f":"A9","v":"National Government:"},null,{"$f":"SUM(C33:C38)","v":-47797947},0,0,0,49300909,49300909,-49300909,-46007500,-47582838]
[" Municipal Infrastructure Grant (MIG)","_",-35297947,0,0,0,32080909,32080909,-32080909,-35007500,-36582838]
["Integrated National Electrification Programme Grant","_",-12500000,0,0,0,12500000,12500000,-12500000,-11000000,-11000000]
["KwaZulu-Natal_Capacity Building and Other_Capacity Building and Other_RECEIPTS","_",0,0,0,0,4720000,4720000,-4720000,0,0]
[null,null,null,null,null,null,null,{"$f":"SUM(E36:G36)","v":0},{"$f":"IF(D36=0,C36+H36,D36+H36)","v":0},null,null,null,"`"]
[null,null,null,null,null,null,null,0,0]
["Other capital transfers [insert description]",null,null,null,null,null,null,0,0]
[{"$f":"A17","v":"Provincial Government:"},null,{"$f":"SUM(C40:C41)","v":0},0,0,0,4720000,4720000,-4720000,0,0]
["KwaZulu-Natal_Capacity Building and Other_Capacity Building and Other_RECEIPTS","_",0,0,0,0,4720000,4720000,-4720000,0,0]
[null,null,null,null,null,null,null,{"$f":"SUM(E41:G41)","v":0},{"$f":"IF(D41=0,C41+H41,D41+H41)","v":0}]
[{"$f":"A23","v":"District Municipality:"},null,{"$f":"SUM(C43:C44)","v":0},0,0,0,0,0,0,0,0]
["[insert description]",null,null,null,null,null,null,{"$f":"SUM(E43:G43)","v":0},{"$f":"IF(D43=0,C43+H43,D43+H43)","v":0}]
[null,null,null,null,null,null,null,{"$f":"SUM(E44:G44)","v":0},{"$f":"IF(D44=0,C44+H44,D44+H44)","v":0}]
[{"$f":"A26","v":"Other grant providers:"},null,{"$f":"SUM(C46:C47)","v":0},0,0,0,0,0,0,0,0]
["[insert description]",null,null,null,null,null,null,{"$f":"SUM(E46:G46)","v":0},{"$f":"IF(D46=0,C46+H46,D46+H46)","v":0}]
[null,null,null,null,null,null,null,{"$f":"SUM(E47:G47)","v":0},{"$f":"IF(D47=0,C47+H47,D47+H47)","v":0}]
["Total Capital Transfers and Grants",6,{"$f":"C32+C39+C42+C45","v":-47797947},0,0,0,54020909,54020909,{"$f":"I32+I39+I42+I45","v":-54020909},-46007500,-47582838]
["TOTAL RECEIPTS OF TRANSFERS & GRANTS",null,{"$f":"C29+C48","v":-55658000},0,0,0,61098000,61098000,{"$f":"I29+I48","v":-61098000},-50790500,-52365838]
[{"$f":"head27a","v":"References"}]
["1. Each grant is listed by name as gazetted together with the name of the transferring department or municipality, donor or other organisation"]
["2. Amounts actually RECEIVED; not revenue earned (the objective is to confirm grants allocated)"]
["3. Replacement of RSC levies"]
["4. Housing subsidies for housing where ownership transferred to organisations or persons outside the control of the municipality"]
["5. Motor vehicle licensing refunds to be included under 'agency' services (Not shown here as Receipts)"]
["6. Total Grant Receipts original budget must reconcile to budget supporting table A18"]
["7. Only complete if a previous adjusted budget has been approved in the same financial year. Reflect most recent adjusted budget."]
["8. Increases of funds approved under section 31 MFMA"]
["9. Adjustments to funding allocations from National or Provincial Government"]
["10. Adjusts. = 'Other' Adjustments proposed to be approved; including revenue under-collection (MFMA section 28(2)(a)); error correction (section 28(2)(f)); functional shifts and any adjustments made under delegation by the AO since the budget was approve"]
["11. E = B + C + D"]
["12. Adjusted Budget F = (A or A1) + E"]

{"sheet":"SB8","index":45,"n_rows":58,"n_cols":11,"rows_kept":58,"cut":false,"hidden":false,"merged":[[55,0,55,10],[1,0,3,0],[1,1,3,1],[1,2,1,8]]}
[{"$f":"muni&\" - \"&ADJB8&\" - \"&Date","v":"EC139 Enoch Mgijima - Supporting Table SB8 Adjustments Budget - expenditure on transfers and grant programme - "}]
[{"$f":"desc","v":"Description"},{"$f":"head27","v":"Ref"},{"$f":"Head2","v":"Budget Year 2021/22"},null,null,null,null,null,null,{"$f":"Head10","v":"Budget Year +1 2022/23"},{"$f":"Head11","v":"Budget Year +2 2023/24"}]
[null,null,{"$f":"Head6","v":"Original Budget"},{"$f":"Head54","v":"Prior Adjusted"},{"$f":"Head52","v":"Multi-year capital"},{"$f":"Head55","v":"Nat. or Prov. Govt"},{"$f":"Head50","v":"Other Adjusts."},{"$f":"Head56","v":"Total Adjusts."},{"$f":"Head7","v":"Adjusted Budget"},{"$f":"Head7","v":"Adjusted Budget"},{"$f":"Head7","v":"Adjusted Budget"}]
[null,null,null,2,3,4,5,6,7]
["R thousands",null,"A","A1","B","C","D","E","F"]
["EXPENDITURE ON TRANSFERS AND GRANT PROGRAM:",1]
[]
["Operating expenditure of Transfers and Grants"]
["National Government:",null,{"$f":"SUM(C10:C16)","v":5065053},0,0,0,-4282091,-4282091,4282091,1850000,1850000]
[{"$f":"'SB7'!A10","v":"Local Government Equitable Share"},null,null,null,null,null,null,{"$f":"SUM(E10:G10)","v":0},{"$f":"IF(D10=0,C10+H10,D10+H10)","v":0}]
["Expanded Public Works Programme Integrated Grant","_",1759000,0,0,0,-1759000,-1759000,1759000,0,0]
["Local Government Financial Management Grant","_",1850000,0,0,0,-1850000,-1850000,1850000,1850000,1850000]
["Municipal Infrastructure Grant","_",1456053,0,0,0,-673091,-673091,673091,0,0]
[]
[]
[{"$f":"'SB7'!A16","v":"Other transfers and grants [insert description]"},null,null,null,null,null,null,0,0]
["Provincial Government:",null,{"$f":"SUM(C18:C22)","v":9934000},0,0,0,-9934000,-9934000,9934000,8019080,8104589]
["KwaZulu-Natal","_",9934000,0,0,0,-9934000,-9934000,9934000,8019080,8104589]
[{"$f":"'SB7'!A19","v":0},null,null,null,null,null,null,{"$f":"SUM(E19:G19)","v":0},{"$f":"IF(D19=0,C19+H19,D19+H19)","v":0}]
[{"$f":"'SB7'!A20","v":0},null,null,null,null,null,null,{"$f":"SUM(E20:G20)","v":0},{"$f":"IF(D20=0,C20+H20,D20+H20)","v":0}]
[{"$f":"'SB7'!A21","v":0},null,null,null,null,null,null,{"$f":"SUM(E21:G21)","v":0},{"$f":"IF(D21=0,C21+H21,D21+H21)","v":0}]
[{"$f":"'SB7'!A22","v":"Other transfers and grants [insert description]"},null,null,null,null,null,null,{"$f":"SUM(E22:G22)","v":0},{"$f":"IF(D22=0,C22+H22,D22+H22)","v":0}]
["District Municipality:",null,{"$f":"SUM(C24:C25)","v":0},0,0,0,0,0,0,0,0]
[{"$f":"'SB7'!A24","v":"[insert description]"},null,null,null,null,null,null,{"$f":"SUM(E24:G24)","v":0},{"$f":"IF(D24=0,C24+H24,D24+H24)","v":0}]
[{"$f":"'SB7'!A25","v":0},null,null,null,null,null,null,{"$f":"SUM(E25:G25)","v":0},{"$f":"IF(D25=0,C25+H25,D25+H25)","v":0}]
["Other grant providers:",null,{"$f":"SUM(C27:C28)","v":0},0,0,0,0,0,0,0,0]
[{"$f":"'SB7'!A27","v":0},null,null,null,null,null,null,{"$f":"SUM(E27:G27)","v":0},{"$f":"IF(D27=0,C27+H27,D27+H27)","v":0}]
[{"$f":"'SB7'!A28","v":0},null,null,null,null,null,null,{"$f":"SUM(E28:G28)","v":0},{"$f":"IF(D28=0,C28+H28,D28+H28)","v":0}]
["Total operating expenditure of Transfers and Grants:",null,{"$f":"C9+C17+C23+C26","v":14999053},0,0,0,-14216091,-14216091,{"$f":"I9+I17+I23+I26","v":14216091},9869080,9954589]
[]
["Capital expenditure of Transfers and Grants"]
["National Government:",null,{"$f":"SUM(C33:C38)","v":49668947},0,0,0,-51171909,-51171909,51171909,47971500,49546838]
["Integrated National Electrification Programme Grant","_",12500000,0,0,0,-12500000,-12500000,12500000,11000000,11000000]
["KwaZulu-Natal","_",1871000,0,0,0,-6591000,-6591000,6591000,1964000,1964000]
["Municipal Infrastructure Grant","_",35297947,0,0,0,-32080909,-32080909,32080909,35007500,36582838]
[{"$f":"'SB7'!A36","v":0},null,null,null,null,null,null,{"$f":"SUM(E36:G36)","v":0},{"$f":"IF(D36=0,C36+H36,D36+H36)","v":0}]
[{"$f":"'SB7'!A37","v":0},null,null,null,null,null,null,0,0]
[{"$f":"'SB7'!A38","v":"Other capital transfers [insert description]"},null,null,null,null,null,null,0,0]
["Provincial Government:",null,{"$f":"SUM(C40:C41)","v":1871000},0,0,0,-6591000,-6591000,6591000,1964000,1964000]
["KwaZulu-Natal","_",1871000,0,0,0,-6591000,-6591000,6591000,1964000,1964000]
[{"$f":"'SB7'!A41","v":0},null,null,null,null,null,null,{"$f":"SUM(E41:G41)","v":0},{"$f":"IF(D41=0,C41+H41,D41+H41)","v":0}]
["District Municipality:",null,{"$f":"SUM(C43:C44)","v":0},0,0,0,0,0,0,0,0]
[{"$f":"'SB7'!A43","v":"[insert description]"},null,null,null,null,null,null,{"$f":"SUM(E43:G43)","v":0},{"$f":"IF(D43=0,C43+H43,D43+H43)","v":0}]
[{"$f":"'SB7'!A44","v":0},null,null,null,null,null,null,{"$f":"SUM(E44:G44)","v":0},{"$f":"IF(D44=0,C44+H44,D44+H44)","v":0}]
["Other grant providers:",null,{"$f":"SUM(C46:C47)","v":0},0,0,0,0,0,0,0,0]
[{"$f":"'SB7'!A46","v":"[insert description]"},null,null,null,null,null,null,{"$f":"SUM(E46:G46)","v":0},{"$f":"IF(D46=0,C46+H46,D46+H46)","v":0}]
[{"$f":"'SB7'!A47","v":0},null,null,null,null,null,null,{"$f":"SUM(E47:G47)","v":0},{"$f":"IF(D47=0,C47+H47,D47+H47)","v":0}]
["Total capital expenditure of Transfers and Grants",null,{"$f":"C32+C39+C42+C45","v":51539947},0,0,0,-57762909,-57762909,57762909,49935500,51510838]
[]
["Total capital expenditure of Transfers and Grants",null,{"$f":"C29+C48","v":66539000},0,0,0,-71979000,-71979000,71979000,59804580,61465427]
[{"$f":"head27a","v":"References"}]
["1. Transfers/Grant expenditure must be separately listed for each allocation received"]
["2. Only complete if a previous adjusted budget has been approved in the same financial year. Reflect most recent adjusted budget."]
["3. Increases of funds approved under section 31 MFMA"]
["4. Adjustments to funding allocations from National or Provincial Government"]
["5. Adjusts. = 'Other' Adjustments proposed to be approved; error correction (section 28(2)(f)); functional shifts and any adjustments made under delegation by the AO since the budget was approved or since a previously 'approved' Adjustments Budget in the "]
["6. E = B + C + D"]
["7. Adjusted Budget F = (A or A1) + E"]

{"sheet":"SB9","index":46,"n_rows":65,"n_cols":11,"rows_kept":65,"cut":false,"hidden":false,"merged":[[59,0,59,10],[62,0,62,10],[1,2,1,8],[1,0,3,0],[1,1,3,1]]}
[{"$f":"muni&\" - \"&ADJB9&\" - \"&Date","v":"EC139 Enoch Mgijima - Supporting Table SB9 Adjustments Budget - reconciliation of transfers, grant receipts, and unspent funds - "}]
[{"$f":"desc","v":"Description"},{"$f":"head27","v":"Ref"},{"$f":"Head2","v":"Budget Year 2021/22"},null,null,null,null,null,null,{"$f":"Head10","v":"Budget Year +1 2022/23"},{"$f":"Head11","v":"Budget Year +2 2023/24"}]
[null,null,{"$f":"Head6","v":"Original Budget"},{"$f":"Head54","v":"Prior Adjusted"},{"$f":"Head52","v":"Multi-year capital"},{"$f":"Head55","v":"Nat. or Prov. Govt"},{"$f":"Head50","v":"Other Adjusts."},{"$f":"Head56","v":"Total Adjusts."},{"$f":"Head7","v":"Adjusted Budget"},{"$f":"Head7","v":"Adjusted Budget"},{"$f":"Head7","v":"Adjusted Budget"}]
[null,null,null,2,3,4,5,6,7]
["R thousands",null,"A","A1","B","C","D","E","F"]
["Operating transfers and grants:"]
["National Government:"]
["Balance unspent at beginning of the year",null,null,null,null,null,null,{"$f":"SUM(E8:G8)","v":0},{"$f":"IF(D8=0,C8+H8,D8+H8)","v":0}]
["Current year receipts",null,{"$f":"-'SB7'!C9","v":5065053},{"$f":"-'SB7'!D9","v":0},{"$f":"-'SB7'!E9","v":0},{"$f":"-'SB7'!F9","v":0},{"$f":"-'SB7'!G9","v":-4282091},{"$f":"SUM(E9:G9)","v":-4282091},{"$f":"IF(D9=0,C9+H9,D9+H9)","v":782962},{"$f":"-'SB7'!J9","v":1850000},{"$f":"-'SB7'!K9","v":1850000}]
["Conditions met - transferred to revenue",null,{"$f":"C8+C9-C11","v":0},0,0,0,0,0,0,0,0]
["Conditions still to be met - transferred to liabilities",null,{"$f":"'SB8'!C9","v":5065053},{"$f":"'SB8'!D9","v":0},{"$f":"'SB8'!E9","v":0},{"$f":"'SB8'!F9","v":0},{"$f":"'SB8'!G9","v":-4282091},{"$f":"SUM(E11:G11)","v":-4282091},{"$f":"IF(D11=0,C11+H11,D11+H11)","v":782962},{"$f":"'SB8'!J9","v":1850000},{"$f":"'SB8'!K9","v":1850000}]
["Provincial Government:"]
["Balance unspent at beginning of the year",null,null,null,null,null,null,{"$f":"SUM(E13:G13)","v":0},{"$f":"IF(D13=0,C13+H13,D13+H13)","v":0}]
[{"$f":"A9","v":"Current year receipts"},null,{"$f":"-'SB7'!C17","v":2795000},{"$f":"-'SB7'!D17","v":0},{"$f":"-'SB7'!E17","v":0},{"$f":"-'SB7'!F17","v":0},{"$f":"-'SB7'!G17","v":-2795000},{"$f":"SUM(E14:G14)","v":-2795000},{"$f":"IF(D14=0,C14+H14,D14+H14)","v":0},{"$f":"-'SB7'!J17","v":2933000},{"$f":"-'SB7'!K17","v":2933000}]
[{"$f":"A10","v":"Conditions met - transferred to revenue"},null,{"$f":"C13+C14-C16","v":-7139000},0,0,0,7139000,7139000,0,-5086080,-5171589]
[{"$f":"A11","v":"Conditions still to be met - transferred to liabilities"},null,{"$f":"'SB8'!C17","v":9934000},{"$f":"'SB8'!D17","v":0},{"$f":"'SB8'!E17","v":0},{"$f":"'SB8'!F17","v":0},{"$f":"'SB8'!G17","v":-9934000},{"$f":"SUM(E16:G16)","v":-9934000},{"$f":"IF(D16=0,C16+H16,D16+H16)","v":0},{"$f":"'SB8'!J17","v":8019080},{"$f":"'SB8'!K17","v":8104589}]
["District Municipality:"]
[{"$f":"A13","v":"Balance unspent at beginning of the year"},null,null,null,null,null,null,{"$f":"SUM(E18:G18)","v":0},{"$f":"IF(D18=0,C18+H18,D18+H18)","v":0}]
[{"$f":"A14","v":"Current year receipts"},null,{"$f":"-'SB7'!C23","v":0},{"$f":"-'SB7'!D23","v":0},{"$f":"-'SB7'!E23","v":0},{"$f":"-'SB7'!F23","v":0},{"$f":"-'SB7'!G23","v":0},{"$f":"SUM(E19:G19)","v":0},{"$f":"IF(D19=0,C19+H19,D19+H19)","v":0},{"$f":"-'SB7'!J23","v":0},{"$f":"-'SB7'!K23","v":0}]
[{"$f":"A15","v":"Conditions met - transferred to revenue"},null,{"$f":"C18+C19-C21","v":0},0,0,0,0,0,0,{"$f":"J18+J19-J21","v":0},{"$f":"K18+K19-K21","v":0}]
[{"$f":"A16","v":"Conditions still to be met - transferred to liabilities"},null,{"$f":"'SB8'!C23","v":0},{"$f":"'SB8'!D23","v":0},{"$f":"'SB8'!E23","v":0},{"$f":"'SB8'!F23","v":0},{"$f":"'SB8'!G23","v":0},{"$f":"SUM(E21:G21)","v":0},{"$f":"IF(D21=0,C21+H21,D21+H21)","v":0},{"$f":"'SB8'!J23","v":0},{"$f":"'SB8'!K23","v":0}]
["Other grant providers:"]
[{"$f":"A13","v":"Balance unspent at beginning of the year"},null,null,null,null,null,null,{"$f":"SUM(E23:G23)","v":0},{"$f":"IF(D23=0,C23+H23,D23+H23)","v":0}]
[{"$f":"A14","v":"Current year receipts"},null,{"$f":"-'SB7'!C26","v":0},{"$f":"-'SB7'!D26","v":0},{"$f":"-'SB7'!E26","v":0},{"$f":"-'SB7'!F26","v":0},{"$f":"-'SB7'!G26","v":0},{"$f":"SUM(E24:G24)","v":0},{"$f":"IF(D24=0,C24+H24,D24+H24)","v":0},{"$f":"-'SB7'!J26","v":0},{"$f":"-'SB7'!K26","v":0}]
[{"$f":"A15","v":"Conditions met - transferred to revenue"},null,{"$f":"C23+C24-C26","v":0},0,0,0,0,0,0,0,0]
[{"$f":"A16","v":"Conditions still to be met - transferred to liabilities"},null,{"$f":"'SB8'!C26","v":0},{"$f":"'SB8'!D26","v":0},{"$f":"'SB8'!E26","v":0},{"$f":"'SB8'!F26","v":0},{"$f":"'SB8'!G26","v":0},{"$f":"SUM(E26:G26)","v":0},{"$f":"IF(D26=0,C26+H26,D26+H26)","v":0},{"$f":"'SB8'!J26","v":0},{"$f":"'SB8'!K26","v":0}]
["Total operating transfers and grants revenue",null,{"$f":"C10+C15+C20+C25","v":-7139000},0,0,0,7139000,7139000,0,-5086080,-5171589]
["Total operating transfers and grants - CTBM",2,{"$f":"C11+C16+C21+C26","v":14999053},0,0,0,-14216091,-14216091,782962,{"$f":"J11+J16+J21+J26","v":9869080},{"$f":"K11+K16+K21+K26","v":9954589}]
[]
["Capital transfers and grants:"]
[{"$f":"A7","v":"National Government:"}]
["Balance unspent at beginning of the year",null,null,null,null,null,null,{"$f":"SUM(E32:G32)","v":0},{"$f":"IF(D32=0,C32+H32,D32+H32)","v":0}]
["Current year receipts",null,{"$f":"-'SB7'!C32","v":47797947},{"$f":"-'SB7'!D32","v":0},{"$f":"-'SB7'!E32","v":0},{"$f":"-'SB7'!F32","v":0},{"$f":"-'SB7'!G32","v":-49300909},{"$f":"SUM(E33:G33)","v":-49300909},{"$f":"IF(D33=0,C33+H33,D33+H33)","v":-1502962},{"$f":"-'SB7'!J32","v":46007500},{"$f":"-'SB7'!K32","v":47582838}]
["Conditions met - transferred to revenue",null,{"$f":"C32+C33-C35","v":-1871000},0,0,0,1871000,1871000,0,-1964000,-1964000]
["Conditions still to be met - transferred to liabilities",null,{"$f":"'SB8'!C32","v":49668947},{"$f":"'SB8'!D32","v":0},{"$f":"'SB8'!E32","v":0},{"$f":"'SB8'!F32","v":0},{"$f":"'SB8'!G32","v":-51171909},{"$f":"SUM(E35:G35)","v":-51171909},{"$f":"IF(D35=0,C35+H35,D35+H35)","v":-1502962},{"$f":"'SB8'!J32","v":47971500},{"$f":"'SB8'!K32","v":49546838}]
["Provincial Government:"]
["Balance unspent at beginning of the year",null,null,null,null,null,null,{"$f":"SUM(E37:G37)","v":0},{"$f":"IF(D37=0,C37+H37,D37+H37)","v":0}]
[{"$f":"A33","v":"Current year receipts"},null,{"$f":"-'SB7'!C39","v":0},{"$f":"-'SB7'!D39","v":0},{"$f":"-'SB7'!E39","v":0},{"$f":"-'SB7'!F39","v":0},{"$f":"-'SB7'!G39","v":-4720000},{"$f":"SUM(E38:G38)","v":-4720000},{"$f":"IF(D38=0,C38+H38,D38+H38)","v":-4720000},{"$f":"-'SB7'!J39","v":0},{"$f":"-'SB7'!K39","v":0}]
[{"$f":"A34","v":"Conditions met - transferred to revenue"},null,{"$f":"C37+C38-C40","v":-1871000},0,0,0,1871000,1871000,0,-1964000,-1964000]
[{"$f":"A35","v":"Conditions still to be met - transferred to liabilities"},null,{"$f":"'SB8'!C39","v":1871000},{"$f":"'SB8'!D39","v":0},{"$f":"'SB8'!E39","v":0},{"$f":"'SB8'!F39","v":0},{"$f":"'SB8'!G39","v":-6591000},{"$f":"SUM(E40:G40)","v":-6591000},{"$f":"IF(D40=0,C40+H40,D40+H40)","v":-4720000},{"$f":"'SB8'!J39","v":1964000},{"$f":"'SB8'!K39","v":1964000}]
["District Municipality:"]
[{"$f":"A37","v":"Balance unspent at beginning of the year"},null,null,null,null,null,null,{"$f":"SUM(E42:G42)","v":0},{"$f":"IF(D42=0,C42+H42,D42+H42)","v":0}]
[{"$f":"A38","v":"Current year receipts"},null,{"$f":"-'SB7'!C42","v":0},{"$f":"-'SB7'!D42","v":0},{"$f":"-'SB7'!E42","v":0},{"$f":"-'SB7'!F42","v":0},{"$f":"-'SB7'!G42","v":0},{"$f":"SUM(E43:G43)","v":0},{"$f":"IF(D43=0,C43+H43,D43+H43)","v":0},{"$f":"-'SB7'!J42","v":0},{"$f":"-'SB7'!K42","v":0}]
[{"$f":"A39","v":"Conditions met - transferred to revenue"},null,{"$f":"C42+C43-C45","v":0},0,0,0,0,0,0,0,0]
[{"$f":"A40","v":"Conditions still to be met - transferred to liabilities"},null,{"$f":"'SB8'!C42","v":0},{"$f":"'SB8'!D42","v":0},{"$f":"'SB8'!E42","v":0},{"$f":"'SB8'!F42","v":0},{"$f":"'SB8'!G42","v":0},{"$f":"SUM(E45:G45)","v":0},{"$f":"IF(D45=0,C45+H45,D45+H45)","v":0},{"$f":"'SB8'!J42","v":0},{"$f":"'SB8'!K42","v":0}]
["Other grant providers:"]
[{"$f":"A37","v":"Balance unspent at beginning of the year"},null,null,null,null,null,null,{"$f":"SUM(E47:G47)","v":0},{"$f":"IF(D47=0,C47+H47,D47+H47)","v":0}]
[{"$f":"A38","v":"Current year receipts"},null,{"$f":"-'SB7'!C45","v":0},{"$f":"-'SB7'!D45","v":0},{"$f":"-'SB7'!E45","v":0},{"$f":"-'SB7'!F45","v":0},{"$f":"-'SB7'!G45","v":0},{"$f":"SUM(E48:G48)","v":0},{"$f":"IF(D48=0,C48+H48,D48+H48)","v":0},{"$f":"-'SB7'!J45","v":0},{"$f":"-'SB7'!K45","v":0}]
[{"$f":"A39","v":"Conditions met - transferred to revenue"},null,{"$f":"C47+C48-C50","v":0},0,0,0,0,0,0,0,0]
[{"$f":"A40","v":"Conditions still to be met - transferred to liabilities"},null,{"$f":"'SB8'!C45","v":0},{"$f":"'SB8'!D45","v":0},{"$f":"'SB8'!E45","v":0},{"$f":"'SB8'!F45","v":0},{"$f":"'SB8'!G45","v":0},{"$f":"SUM(E50:G50)","v":0},{"$f":"IF(D50=0,C50+H50,D50+H50)","v":0},{"$f":"'SB8'!J45","v":0},{"$f":"'SB8'!K45","v":0}]
["Total capital transfers and grants revenue",null,{"$f":"C34+C39+C44+C49","v":-3742000},0,0,0,3742000,3742000,0,-3928000,-3928000]
["Total capital transfers and grants - CTBM",null,51539947,0,0,0,-57762909,-57762909,-6222962,49935500,51510838]
[]
["TOTAL TRANSFERS AND GRANTS REVENUE",null,{"$f":"C27+C51","v":-10881000},0,0,0,10881000,10881000,0,-9014080,-9099589]
["TOTAL TRANSFERS AND GRANTS -  CTBM",null,66539000,0,0,0,-71979000,-71979000,-5440000,59804580,61465427]
[]
[{"$f":"head27a","v":"References"}]
["1. Total capital grants revenue budget must reconcile to budget tables A4 and A5; total operating grants revenue must reconcile to budget table A4"]
["2. CTBM = conditions to be met"]
["3. Only complete if a previous adjusted budget has been approved in the same financial year. Reflect most recent adjusted budget."]
["4. Increases of funds approved under section 31 MFMA"]
["5. Adjustments to funding allocations from National or Provincial Government"]
["5. Adjusts. = 'Other' Adjustments proposed to be approved; including revenue under-collection (MFMA section 28(2)(a)); additional revenue appropriation on existing programmes (section 28(2))(b); projected savings (section 28(2)(d)); error correction (sect"]
["6. E = B + C + D"]
["7. Adjusted Budget F = (A or A1) + E"]

{"sheet":"SB10","index":48,"n_rows":71,"n_cols":29,"rows_kept":71,"cut":false,"hidden":false,"merged":[[1,0,3,0],[1,1,3,1],[1,2,1,10]]}
[{"$f":"muni&\" - \"&ADJB10&\" - \"&Date","v":"EC139 Enoch Mgijima - Supporting Table SB10 Adjustments Budget - transfers and grants made by the municipality - "}]
[{"$f":"desc","v":"Description"},{"$f":"head27","v":"Ref"},{"$f":"Head2","v":"Budget Year 2021/22"},null,null,null,null,null,null,null,null,{"$f":"Head10","v":"Budget Year +1 2022/23"},{"$f":"Head11","v":"Budget Year +2 2023/24"}]
[null,null,{"$f":"Head6","v":"Original Budget"},{"$f":"Head54","v":"Prior Adjusted"},{"$f":"Head51","v":"Accum. Funds"},{"$f":"Head52","v":"Multi-year capital"},{"$f":"Head53","v":"Unfore. Unavoid."},{"$f":"Head55","v":"Nat. or Prov. Govt"},{"$f":"Head50","v":"Other Adjusts."},{"$f":"Head56","v":"Total Adjusts."},{"$f":"Head7","v":"Adjusted Budget"},{"$f":"Head7","v":"Adjusted Budget"},{"$f":"Head7","v":"Adjusted Budget"}]
[null,null,null,6,7,8,9,10,11,12,13]
["R thousands",null,"A","A1","B","C","D","E","F","G","H"]
["Cash transfers to other municipalities"]
["[insert description]",1,{"$f":"SUMIFS(Sheet1!S71_OriginalBudget,Sheet1!S71_A4SubCode,$AC:$AC)","v":0},{"$f":"SUMIFS(Sheet1!S71_SpecialAdjustedBudget,Sheet1!S71_A4SubCode,$AC:$AC)","v":0},null,null,null,null,{"$f":"SUMIFS(Sheet1!S71_AdjustmentAmount,Sheet1!S71_A4SubCode,$AC:$AC)","v":0},{"$f":"SUM(E7:I7)","v":0},{"$f":"IF(D7=0,C7+J7,D7+J7)","v":0},{"$f":"SUMIFS(Sheet1!S71_OY1AdjustedBudget,Sheet1!S71_A4SubCode,$AC:$AC)","v":0},{"$f":"SUMIFS(Sheet1!S71_OY2AdjustedBudget,Sheet1!S71_A4SubCode,$AC:$AC)","v":0},null,null,null,null,null,null,null,null,null,null,null,null,null,null,null,"28000101"]
["[insert description]",null,{"$f":"SUMIFS(Sheet1!S71_OriginalBudget,Sheet1!S71_A4SubCode,$AC:$AC)","v":0},{"$f":"SUMIFS(Sheet1!S71_SpecialAdjustedBudget,Sheet1!S71_A4SubCode,$AC:$AC)","v":0},null,null,null,null,{"$f":"SUMIFS(Sheet1!S71_AdjustmentAmount,Sheet1!S71_A4SubCode,$AC:$AC)","v":0},{"$f":"SUM(E8:I8)","v":0},{"$f":"IF(D8=0,C8+J8,D8+J8)","v":0},{"$f":"SUMIFS(Sheet1!S71_OY1AdjustedBudget,Sheet1!S71_A4SubCode,$AC:$AC)","v":0},{"$f":"SUMIFS(Sheet1!S71_OY2AdjustedBudget,Sheet1!S71_A4SubCode,$AC:$AC)","v":0}]
["[insert description]",null,{"$f":"SUMIFS(Sheet1!S71_OriginalBudget,Sheet1!S71_A4SubCode,$AC:$AC)","v":0},{"$f":"SUMIFS(Sheet1!S71_SpecialAdjustedBudget,Sheet1!S71_A4SubCode,$AC:$AC)","v":0},null,null,null,null,{"$f":"SUMIFS(Sheet1!S71_AdjustmentAmount,Sheet1!S71_A4SubCode,$AC:$AC)","v":0},{"$f":"SUM(E9:I9)","v":0},{"$f":"IF(D9=0,C9+J9,D9+J9)","v":0},{"$f":"SUMIFS(Sheet1!S71_OY1AdjustedBudget,Sheet1!S71_A4SubCode,$AC:$AC)","v":0},{"$f":"SUMIFS(Sheet1!S71_OY2AdjustedBudget,Sheet1!S71_A4SubCode,$AC:$AC)","v":0}]
["TOTAL ALLOCATIONS TO MUNICIPALITIES:",null,{"$f":"SUM(C7:C9)","v":0},0,0,0,0,0,0,0,0,0,0]
[]
["Cash transfers to Entities/Other External Mechanisms"]
["[insert description]",2,{"$f":"SUMIFS(Sheet1!S71_OriginalBudget,Sheet1!S71_A4SubCode,$AC:$AC)","v":0},{"$f":"SUMIFS(Sheet1!S71_SpecialAdjustedBudget,Sheet1!S71_A4SubCode,$AC:$AC)","v":0},null,null,null,null,{"$f":"SUMIFS(Sheet1!S71_AdjustmentAmount,Sheet1!S71_A4SubCode,$AC:$AC)","v":0},{"$f":"SUM(E13:I13)","v":0},{"$f":"IF(D13=0,C13+J13,D13+J13)","v":0},{"$f":"SUMIFS(Sheet1!S71_OY1AdjustedBudget,Sheet1!S71_A4SubCode,$AC:$AC)","v":0},{"$f":"SUMIFS(Sheet1!S71_OY2AdjustedBudget,Sheet1!S71_A4SubCode,$AC:$AC)","v":0},null,null,null,null,null,null,null,null,null,null,null,null,null,null,null,"28000102"]
["[insert description]",null,{"$f":"SUMIFS(Sheet1!S71_OriginalBudget,Sheet1!S71_A4SubCode,$AC:$AC)","v":0},{"$f":"SUMIFS(Sheet1!S71_SpecialAdjustedBudget,Sheet1!S71_A4SubCode,$AC:$AC)","v":0},null,null,null,null,{"$f":"SUMIFS(Sheet1!S71_AdjustmentAmount,Sheet1!S71_A4SubCode,$AC:$AC)","v":0},{"$f":"SUM(E14:I14)","v":0},{"$f":"IF(D14=0,C14+J14,D14+J14)","v":0},{"$f":"SUMIFS(Sheet1!S71_OY1AdjustedBudget,Sheet1!S71_A4SubCode,$AC:$AC)","v":0},{"$f":"SUMIFS(Sheet1!S71_OY2AdjustedBudget,Sheet1!S71_A4SubCode,$AC:$AC)","v":0}]
["[insert description]",null,{"$f":"SUMIFS(Sheet1!S71_OriginalBudget,Sheet1!S71_A4SubCode,$AC:$AC)","v":0},{"$f":"SUMIFS(Sheet1!S71_SpecialAdjustedBudget,Sheet1!S71_A4SubCode,$AC:$AC)","v":0},null,null,null,null,{"$f":"SUMIFS(Sheet1!S71_AdjustmentAmount,Sheet1!S71_A4SubCode,$AC:$AC)","v":0},{"$f":"SUM(E15:I15)","v":0},{"$f":"IF(D15=0,C15+J15,D15+J15)","v":0},{"$f":"SUMIFS(Sheet1!S71_OY1AdjustedBudget,Sheet1!S71_A4SubCode,$AC:$AC)","v":0},{"$f":"SUMIFS(Sheet1!S71_OY2AdjustedBudget,Sheet1!S71_A4SubCode,$AC:$AC)","v":0}]
["TOTAL ALLOCATIONS TO ENTITIES/EMs'",null,{"$f":"SUM(C13:C15)","v":0},0,0,0,0,0,0,0,0,0,0]
[]
["Cash transfers to other Organs of State"]
["[insert description]",3,{"$f":"SUMIFS(Sheet1!S71_OriginalBudget,Sheet1!S71_A4SubCode,$AC:$AC)","v":0},{"$f":"SUMIFS(Sheet1!S71_SpecialAdjustedBudget,Sheet1!S71_A4SubCode,$AC:$AC)","v":0},null,null,null,null,{"$f":"SUMIFS(Sheet1!S71_AdjustmentAmount,Sheet1!S71_A4SubCode,$AC:$AC)","v":0},{"$f":"SUM(E19:I19)","v":0},{"$f":"IF(D19=0,C19+J19,D19+J19)","v":0},{"$f":"SUMIFS(Sheet1!S71_OY1AdjustedBudget,Sheet1!S71_A4SubCode,$AC:$AC)","v":0},{"$f":"SUMIFS(Sheet1!S71_OY2AdjustedBudget,Sheet1!S71_A4SubCode,$AC:$AC)","v":0},null,null,null,null,null,null,null,null,null,null,null,null,null,null,null,"28000103"]
["[insert description]",null,{"$f":"SUMIFS(Sheet1!S71_OriginalBudget,Sheet1!S71_A4SubCode,$AC:$AC)","v":0},{"$f":"SUMIFS(Sheet1!S71_SpecialAdjustedBudget,Sheet1!S71_A4SubCode,$AC:$AC)","v":0},null,null,null,null,{"$f":"SUMIFS(Sheet1!S71_AdjustmentAmount,Sheet1!S71_A4SubCode,$AC:$AC)","v":0},{"$f":"SUM(E20:I20)","v":0},{"$f":"IF(D20=0,C20+J20,D20+J20)","v":0},{"$f":"SUMIFS(Sheet1!S71_OY1AdjustedBudget,Sheet1!S71_A4SubCode,$AC:$AC)","v":0},{"$f":"SUMIFS(Sheet1!S71_OY2AdjustedBudget,Sheet1!S71_A4SubCode,$AC:$AC)","v":0}]
["[insert description]",null,{"$f":"SUMIFS(Sheet1!S71_OriginalBudget,Sheet1!S71_A4SubCode,$AC:$AC)","v":0},{"$f":"SUMIFS(Sheet1!S71_SpecialAdjustedBudget,Sheet1!S71_A4SubCode,$AC:$AC)","v":0},null,null,null,null,{"$f":"SUMIFS(Sheet1!S71_AdjustmentAmount,Sheet1!S71_A4SubCode,$AC:$AC)","v":0},{"$f":"SUM(E21:I21)","v":0},{"$f":"IF(D21=0,C21+J21,D21+J21)","v":0},{"$f":"SUMIFS(Sheet1!S71_OY1AdjustedBudget,Sheet1!S71_A4SubCode,$AC:$AC)","v":0},{"$f":"SUMIFS(Sheet1!S71_OY2AdjustedBudget,Sheet1!S71_A4SubCode,$AC:$AC)","v":0}]
["TOTAL ALLOCATIONS TO OTHER ORGANS OF STATE:",null,{"$f":"SUM(C19:C21)","v":0},0,0,0,0,0,0,0,0,0,0]
[]
["Cash transfers to other Organisations"]
["[insert description]",4,{"$f":"SUMIFS(Sheet1!S71_OriginalBudget,Sheet1!S71_A4SubCode,$AC:$AC)","v":500000},{"$f":"SUMIFS(Sheet1!S71_SpecialAdjustedBudget,Sheet1!S71_A4SubCode,$AC:$AC)","v":0},null,null,null,null,{"$f":"SUMIFS(Sheet1!S71_AdjustmentAmount,Sheet1!S71_A4SubCode,$AC:$AC)","v":-300000},{"$f":"SUM(E25:I25)","v":-300000},{"$f":"IF(D25=0,C25+J25,D25+J25)","v":200000},{"$f":"SUMIFS(Sheet1!S71_OY1AdjustedBudget,Sheet1!S71_A4SubCode,$AC:$AC)","v":0},{"$f":"SUMIFS(Sheet1!S71_OY2AdjustedBudget,Sheet1!S71_A4SubCode,$AC:$AC)","v":0},null,null,null,null,null,null,null,null,null,null,null,null,null,null,null,"28000104"]
["[insert description]",null,{"$f":"SUMIFS(Sheet1!S71_OriginalBudget,Sheet1!S71_A4SubCode,$AC:$AC)","v":0},{"$f":"SUMIFS(Sheet1!S71_SpecialAdjustedBudget,Sheet1!S71_A4SubCode,$AC:$AC)","v":0},null,null,null,null,{"$f":"SUMIFS(Sheet1!S71_AdjustmentAmount,Sheet1!S71_A4SubCode,$AC:$AC)","v":0},{"$f":"SUM(E26:I26)","v":0},{"$f":"IF(D26=0,C26+J26,D26+J26)","v":0},{"$f":"SUMIFS(Sheet1!S71_OY1AdjustedBudget,Sheet1!S71_A4SubCode,$AC:$AC)","v":0},{"$f":"SUMIFS(Sheet1!S71_OY2AdjustedBudget,Sheet1!S71_A4SubCode,$AC:$AC)","v":0}]
["[insert description]",null,{"$f":"SUMIFS(Sheet1!S71_OriginalBudget,Sheet1!S71_A4SubCode,$AC:$AC)","v":0},{"$f":"SUMIFS(Sheet1!S71_SpecialAdjustedBudget,Sheet1!S71_A4SubCode,$AC:$AC)","v":0},null,null,null,null,{"$f":"SUMIFS(Sheet1!S71_AdjustmentAmount,Sheet1!S71_A4SubCode,$AC:$AC)","v":0},{"$f":"SUM(E27:I27)","v":0},{"$f":"IF(D27=0,C27+J27,D27+J27)","v":0},{"$f":"SUMIFS(Sheet1!S71_OY1AdjustedBudget,Sheet1!S71_A4SubCode,$AC:$AC)","v":0},{"$f":"SUMIFS(Sheet1!S71_OY2AdjustedBudget,Sheet1!S71_A4SubCode,$AC:$AC)","v":0}]
["TOTAL CASH TRANSFERS TO OTHER ORGANISATIONS:",null,{"$f":"SUM(C25:C27)","v":500000},0,0,0,0,0,-300000,-300000,200000,0,0]
[]
["TOTAL CASH TRANSFERS",5,{"$f":"C10+C16+C22+C28","v":500000},0,0,0,0,0,-300000,-300000,200000,0,0]
[]
["Non-cash transfers to other municipalities"]
["[insert description]",1,{"$f":"SUMIFS(Sheet1!S71_OriginalBudget,Sheet1!S71_A4SubCode,$AC:$AC)","v":0},{"$f":"SUMIFS(Sheet1!S71_SpecialAdjustedBudget,Sheet1!S71_A4SubCode,$AC:$AC)","v":0},null,null,null,null,{"$f":"SUMIFS(Sheet1!S71_AdjustmentAmount,Sheet1!S71_A4SubCode,$AC:$AC)","v":0},{"$f":"SUM(E33:I33)","v":0},{"$f":"IF(D33=0,C33+J33,D33+J33)","v":0},{"$f":"SUMIFS(Sheet1!S71_OY1AdjustedBudget,Sheet1!S71_A4SubCode,$AC:$AC)","v":0},{"$f":"SUMIFS(Sheet1!S71_OY2AdjustedBudget,Sheet1!S71_A4SubCode,$AC:$AC)","v":0},null,null,null,null,null,null,null,null,null,null,null,null,null,null,null,"28000201"]
["[insert description]",null,{"$f":"SUMIFS(Sheet1!S71_OriginalBudget,Sheet1!S71_A4SubCode,$AC:$AC)","v":0},{"$f":"SUMIFS(Sheet1!S71_SpecialAdjustedBudget,Sheet1!S71_A4SubCode,$AC:$AC)","v":0},null,null,null,null,{"$f":"SUMIFS(Sheet1!S71_AdjustmentAmount,Sheet1!S71_A4SubCode,$AC:$AC)","v":0},{"$f":"SUM(E34:I34)","v":0},{"$f":"IF(D34=0,C34+J34,D34+J34)","v":0},{"$f":"SUMIFS(Sheet1!S71_OY1AdjustedBudget,Sheet1!S71_A4SubCode,$AC:$AC)","v":0},{"$f":"SUMIFS(Sheet1!S71_OY2AdjustedBudget,Sheet1!S71_A4SubCode,$AC:$AC)","v":0}]
["[insert description]",null,{"$f":"SUMIFS(Sheet1!S71_OriginalBudget,Sheet1!S71_A4SubCode,$AC:$AC)","v":0},{"$f":"SUMIFS(Sheet1!S71_SpecialAdjustedBudget,Sheet1!S71_A4SubCode,$AC:$AC)","v":0},null,null,null,null,{"$f":"SUMIFS(Sheet1!S71_AdjustmentAmount,Sheet1!S71_A4SubCode,$AC:$AC)","v":0},{"$f":"SUM(E35:I35)","v":0},{"$f":"IF(D35=0,C35+J35,D35+J35)","v":0},{"$f":"SUMIFS(Sheet1!S71_OY1AdjustedBudget,Sheet1!S71_A4SubCode,$AC:$AC)","v":0},{"$f":"SUMIFS(Sheet1!S71_OY2AdjustedBudget,Sheet1!S71_A4SubCode,$AC:$AC)","v":0}]
["TOTAL ALLOCATIONS TO MUNICIPALITIES:",null,{"$f":"SUM(C33:C35)","v":0},0,0,0,0,0,0,0,0,0,0]
[]
["Non-cash transfers to Entities/Other External Mechanisms"]
["[insert description]",2,{"$f":"SUMIFS(Sheet1!S71_OriginalBudget,Sheet1!S71_A4SubCode,$AC:$AC)","v":0},{"$f":"SUMIFS(Sheet1!S71_SpecialAdjustedBudget,Sheet1!S71_A4SubCode,$AC:$AC)","v":0},null,null,null,null,{"$f":"SUMIFS(Sheet1!S71_AdjustmentAmount,Sheet1!S71_A4SubCode,$AC:$AC)","v":0},{"$f":"SUM(E39:I39)","v":0},{"$f":"IF(D39=0,C39+J39,D39+J39)","v":0},{"$f":"SUMIFS(Sheet1!S71_OY1AdjustedBudget,Sheet1!S71_A4SubCode,$AC:$AC)","v":0},{"$f":"SUMIFS(Sheet1!S71_OY2AdjustedBudget,Sheet1!S71_A4SubCode,$AC:$AC)","v":0},null,null,null,null,null,null,null,null,null,null,null,null,null,null,null,"28000202"]
["[insert description]",null,{"$f":"SUMIFS(Sheet1!S71_OriginalBudget,Sheet1!S71_A4SubCode,$AC:$AC)","v":0},{"$f":"SUMIFS(Sheet1!S71_SpecialAdjustedBudget,Sheet1!S71_A4SubCode,$AC:$AC)","v":0},null,null,null,null,{"$f":"SUMIFS(Sheet1!S71_AdjustmentAmount,Sheet1!S71_A4SubCode,$AC:$AC)","v":0},{"$f":"SUM(E40:I40)","v":0},{"$f":"IF(D40=0,C40+J40,D40+J40)","v":0},{"$f":"SUMIFS(Sheet1!S71_OY1AdjustedBudget,Sheet1!S71_A4SubCode,$AC:$AC)","v":0},{"$f":"SUMIFS(Sheet1!S71_OY2AdjustedBudget,Sheet1!S71_A4SubCode,$AC:$AC)","v":0}]
["[insert description]",null,{"$f":"SUMIFS(Sheet1!S71_OriginalBudget,Sheet1!S71_A4SubCode,$AC:$AC)","v":0},{"$f":"SUMIFS(Sheet1!S71_SpecialAdjustedBudget,Sheet1!S71_A4SubCode,$AC:$AC)","v":0},null,null,null,null,{"$f":"SUMIFS(Sheet1!S71_AdjustmentAmount,Sheet1!S71_A4SubCode,$AC:$AC)","v":0},{"$f":"SUM(E41:I41)","v":0},{"$f":"IF(D41=0,C41+J41,D41+J41)","v":0},{"$f":"SUMIFS(Sheet1!S71_OY1AdjustedBudget,Sheet1!S71_A4SubCode,$AC:$AC)","v":0},{"$f":"SUMIFS(Sheet1!S71_OY2AdjustedBudget,Sheet1!S71_A4SubCode,$AC:$AC)","v":0}]
["TOTAL ALLOCATIONS TO ENTITIES/EMs'",null,{"$f":"SUM(C39:C41)","v":0},0,0,0,0,0,0,0,0,0,0]
[]
["Non-cash transfers to other Organs of State"]
["[insert description]",3,{"$f":"SUMIFS(Sheet1!S71_OriginalBudget,Sheet1!S71_A4SubCode,$AC:$AC)","v":0},{"$f":"SUMIFS(Sheet1!S71_SpecialAdjustedBudget,Sheet1!S71_A4SubCode,$AC:$AC)","v":0},null,null,null,null,{"$f":"SUMIFS(Sheet1!S71_AdjustmentAmount,Sheet1!S71_A4SubCode,$AC:$AC)","v":0},{"$f":"SUM(E45:I45)","v":0},{"$f":"IF(D45=0,C45+J45,D45+J45)","v":0},{"$f":"SUMIFS(Sheet1!S71_OY1AdjustedBudget,Sheet1!S71_A4SubCode,$AC:$AC)","v":0},{"$f":"SUMIFS(Sheet1!S71_OY2AdjustedBudget,Sheet1!S71_A4SubCode,$AC:$AC)","v":0},null,null,null,null,null,null,null,null,null,null,null,null,null,null,null,"28000203"]
["[insert description]",null,{"$f":"SUMIFS(Sheet1!S71_OriginalBudget,Sheet1!S71_A4SubCode,$AC:$AC)","v":0},{"$f":"SUMIFS(Sheet1!S71_SpecialAdjustedBudget,Sheet1!S71_A4SubCode,$AC:$AC)","v":0},null,null,null,null,{"$f":"SUMIFS(Sheet1!S71_AdjustmentAmount,Sheet1!S71_A4SubCode,$AC:$AC)","v":0},{"$f":"SUM(E46:I46)","v":0},{"$f":"IF(D46=0,C46+J46,D46+J46)","v":0},{"$f":"SUMIFS(Sheet1!S71_OY1AdjustedBudget,Sheet1!S71_A4SubCode,$AC:$AC)","v":0},{"$f":"SUMIFS(Sheet1!S71_OY2AdjustedBudget,Sheet1!S71_A4SubCode,$AC:$AC)","v":0}]
["[insert description]",null,{"$f":"SUMIFS(Sheet1!S71_OriginalBudget,Sheet1!S71_A4SubCode,$AC:$AC)","v":0},{"$f":"SUMIFS(Sheet1!S71_SpecialAdjustedBudget,Sheet1!S71_A4SubCode,$AC:$AC)","v":0},null,null,null,null,{"$f":"SUMIFS(Sheet1!S71_AdjustmentAmount,Sheet1!S71_A4SubCode,$AC:$AC)","v":0},{"$f":"SUM(E47:I47)","v":0},{"$f":"IF(D47=0,C47+J47,D47+J47)","v":0},{"$f":"SUMIFS(Sheet1!S71_OY1AdjustedBudget,Sheet1!S71_A4SubCode,$AC:$AC)","v":0},{"$f":"SUMIFS(Sheet1!S71_OY2AdjustedBudget,Sheet1!S71_A4SubCode,$AC:$AC)","v":0}]
["TOTAL ALLOCATIONS TO OTHER ORGANS OF STATE:",null,{"$f":"SUM(C45:C47)","v":0},0,0,0,0,0,0,0,0,0,0]
[]
["Non-cash transfers to other Organisations"]
["[insert description]",4,{"$f":"SUMIFS(Sheet1!S71_OriginalBudget,Sheet1!S71_A4SubCode,$AC:$AC)","v":0},{"$f":"SUMIFS(Sheet1!S71_SpecialAdjustedBudget,Sheet1!S71_A4SubCode,$AC:$AC)","v":0},null,null,null,null,{"$f":"SUMIFS(Sheet1!S71_AdjustmentAmount,Sheet1!S71_A4SubCode,$AC:$AC)","v":0},{"$f":"SUM(E51:I51)","v":0},{"$f":"IF(D51=0,C51+J51,D51+J51)","v":0},{"$f":"SUMIFS(Sheet1!S71_OY1AdjustedBudget,Sheet1!S71_A4SubCode,$AC:$AC)","v":0},{"$f":"SUMIFS(Sheet1!S71_OY2AdjustedBudget,Sheet1!S71_A4SubCode,$AC:$AC)","v":0},null,null,null,null,null,null,null,null,null,null,null,null,null,null,null,"28000204"]
["[insert description]",null,{"$f":"SUMIFS(Sheet1!S71_OriginalBudget,Sheet1!S71_A4SubCode,$AC:$AC)","v":0},{"$f":"SUMIFS(Sheet1!S71_SpecialAdjustedBudget,Sheet1!S71_A4SubCode,$AC:$AC)","v":0},null,null,null,null,{"$f":"SUMIFS(Sheet1!S71_AdjustmentAmount,Sheet1!S71_A4SubCode,$AC:$AC)","v":0},{"$f":"SUM(E52:I52)","v":0},{"$f":"IF(D52=0,C52+J52,D52+J52)","v":0},{"$f":"SUMIFS(Sheet1!S71_OY1AdjustedBudget,Sheet1!S71_A4SubCode,$AC:$AC)","v":0},{"$f":"SUMIFS(Sheet1!S71_OY2AdjustedBudget,Sheet1!S71_A4SubCode,$AC:$AC)","v":0}]
["[insert description]",null,{"$f":"SUMIFS(Sheet1!S71_OriginalBudget,Sheet1!S71_A4SubCode,$AC:$AC)","v":0},{"$f":"SUMIFS(Sheet1!S71_SpecialAdjustedBudget,Sheet1!S71_A4SubCode,$AC:$AC)","v":0},null,null,null,null,{"$f":"SUMIFS(Sheet1!S71_AdjustmentAmount,Sheet1!S71_A4SubCode,$AC:$AC)","v":0},{"$f":"SUM(E53:I53)","v":0},{"$f":"IF(D53=0,C53+J53,D53+J53)","v":0},{"$f":"SUMIFS(Sheet1!S71_OY1AdjustedBudget,Sheet1!S71_A4SubCode,$AC:$AC)","v":0},{"$f":"SUMIFS(Sheet1!S71_OY2AdjustedBudget,Sheet1!S71_A4SubCode,$AC:$AC)","v":0}]
["TOTAL NON-CASH TRANSFERS TO OTHER ORGANISATIONS:",null,{"$f":"SUM(C51:C53)","v":0},0,0,0,0,0,0,0,0,0,0]
[]
["TOTAL NON-CASH TRANSFERS",5,{"$f":"C35+C41+C47+C53","v":0},0,0,0,0,0,0,0,0,0,0]
["TOTAL TRANSFERS",null,{"$f":"C30+C56","v":500000},{"$f":"D30+D56","v":0},0,0,0,0,-300000,-300000,200000,0,0]
[{"$f":"head27a","v":"References"}]
["1. Insert description listed by municipal name and demarcation code of recipient"]
["2. Insert description of each entity or external mechanism (an external mechanism may be provided with resources to ensure a minimum level of service)"]
["3. Insert description of each Organ of State; e.g. Eskom"]
["4. Insert description of each 'other' organisation"]
["5. All descriptions should separate allocations for 'capital purposes' and 'operating purposes'"]
["6. Only complete if a previous adjusted budget has been approved in the same financial year. Reflect most recent adjusted budget."]
["7. Additional cash-backed accumulated funds/unspent funds (section 18(1)(b) and section 28(2)(e) MFMA) identified after Original Budget approved and after annual financial statements audited (note: only where underspending could not reasonably be have for"]
["8. Increases of funds approved under section 31 MFMA"]
["9. Adjustments approved in accordance with section 29 MFMA"]
["10. Adjustments to funding allocations from National or Provincial Government"]
["11. Adjusts. = 'Other' Adjustments proposed to be approved; including revenue under-collection (MFMA section 28(2)(a)); additional revenue appropriation on existing programmes (section 28(2))(b); projected savings (section 28(2)(d)); error correction (sec"]
["12. G = B + C + D + E +  F"]
["13. Adjusted Budget H = (A or A1) + G"]

{"sheet":"SB11","index":49,"n_rows":120,"n_cols":30,"rows_kept":120,"cut":false,"hidden":false,"merged":[[1,0,2,0],[1,1,2,1],[117,0,117,11],[119,0,119,11],[112,0,112,11],[114,0,114,9],[115,0,115,11],[113,0,113,11],[1,2,1,10]]}
[{"$f":"muni&\" - \"&ADJB11&\" - \"&Date","v":"EC139 Enoch Mgijima - Supporting Table SB11 Adjustments Budget - councillor and staff benefits - "}]
["Summary of remuneration",{"$f":"head27","v":"Ref"},{"$f":"Head2","v":"Budget Year 2021/22"}]
[null,null,{"$f":"Head6","v":"Original Budget"},{"$f":"Head54","v":"Prior Adjusted"},{"$f":"Head51","v":"Accum. Funds"},{"$f":"Head52","v":"Multi-year capital"},{"$f":"Head53","v":"Unfore. Unavoid."},{"$f":"Head55","v":"Nat. or Prov. Govt"},{"$f":"Head50","v":"Other Adjusts."},{"$f":"Head56","v":"Total Adjusts."},{"$f":"Head7","v":"Adjusted Budget"},"% change"]
[null,null,null,5,6,7,8,9,10,11,12]
["R thousands",null,"A","A1","B","C","D","E","F","G","H"]
["Councillors (Political Office Bearers plus Other)"]
["Basic Salaries and Wages",null,{"$f":"SUMIFS(Sheet1!S71_OriginalBudget,Sheet1!S71_A4SubCode,$AC:$AC)","v":10873360},{"$f":"SUMIFS(Sheet1!S71_SpecialAdjustedBudget,Sheet1!S71_A4SubCode,$AC:$AC)","v":0},null,null,null,null,{"$f":"SUMIFS(Sheet1!S71_AdjustmentAmount,Sheet1!S71_A4SubCode,$AC:$AC)","v":-1674251},{"$f":"G7+I7","v":-1674251},{"$f":"IF(D7=0,C7+J7,D7+J7)","v":9199109},{"$f":"IF(K7=0,\"\",(K7/C7)-1)","v":-0.15397733543265379},null,null,null,null,null,null,null,null,null,null,null,null,null,null,null,null,"210001"]
["Pension and UIF Contributions",null,{"$f":"SUMIFS(Sheet1!S71_OriginalBudget,Sheet1!S71_A4SubCode,$AC:$AC)","v":0},{"$f":"SUMIFS(Sheet1!S71_SpecialAdjustedBudget,Sheet1!S71_A4SubCode,$AC:$AC)","v":0},null,null,null,null,{"$f":"SUMIFS(Sheet1!S71_AdjustmentAmount,Sheet1!S71_A4SubCode,$AC:$AC)","v":0},0,0,{"$f":"IF(K8=0,\"\",(K8/C8)-1)","v":""},null,null,null,null,null,null,null,null,null,null,null,null,null,null,null,null,"210002"]
["Medical Aid Contributions",null,{"$f":"SUMIFS(Sheet1!S71_OriginalBudget,Sheet1!S71_A4SubCode,$AC:$AC)","v":0},{"$f":"SUMIFS(Sheet1!S71_SpecialAdjustedBudget,Sheet1!S71_A4SubCode,$AC:$AC)","v":0},null,null,null,null,{"$f":"SUMIFS(Sheet1!S71_AdjustmentAmount,Sheet1!S71_A4SubCode,$AC:$AC)","v":0},0,0,{"$f":"IF(K9=0,\"\",(K9/C9)-1)","v":""},null,null,null,null,null,null,null,null,null,null,null,null,null,null,null,null,"210003"]
["Motor Vehicle Allowance",null,{"$f":"SUMIFS(Sheet1!S71_OriginalBudget,Sheet1!S71_A4SubCode,$AC:$AC)","v":2493368},{"$f":"SUMIFS(Sheet1!S71_SpecialAdjustedBudget,Sheet1!S71_A4SubCode,$AC:$AC)","v":0},null,null,null,null,{"$f":"SUMIFS(Sheet1!S71_AdjustmentAmount,Sheet1!S71_A4SubCode,$AC:$AC)","v":-325000},-325000,2168368,{"$f":"IF(K10=0,\"\",(K10/C10)-1)","v":-0.13034578128860241},null,null,null,null,null,null,null,null,null,null,null,null,null,null,null,null,"210004"]
["Cellphone Allowance",null,{"$f":"SUMIFS(Sheet1!S71_OriginalBudget,Sheet1!S71_A4SubCode,$AC:$AC)","v":2024798},{"$f":"SUMIFS(Sheet1!S71_SpecialAdjustedBudget,Sheet1!S71_A4SubCode,$AC:$AC)","v":0},null,null,null,null,{"$f":"SUMIFS(Sheet1!S71_AdjustmentAmount,Sheet1!S71_A4SubCode,$AC:$AC)","v":-380000},-380000,1644798,null,null,null,null,null,null,null,null,null,null,null,null,null,null,null,null,null,"210005"]
["Housing Allowances",null,{"$f":"SUMIFS(Sheet1!S71_OriginalBudget,Sheet1!S71_A4SubCode,$AC:$AC)","v":0},{"$f":"SUMIFS(Sheet1!S71_SpecialAdjustedBudget,Sheet1!S71_A4SubCode,$AC:$AC)","v":0},null,null,null,null,{"$f":"SUMIFS(Sheet1!S71_AdjustmentAmount,Sheet1!S71_A4SubCode,$AC:$AC)","v":0},0,0,null,null,null,null,null,null,null,null,null,null,null,null,null,null,null,null,null,"210006"]
["Other benefits and allowances",null,{"$f":"SUMIFS(Sheet1!S71_OriginalBudget,Sheet1!S71_A4SubCode,$AC:$AC)","v":1131086},{"$f":"SUMIFS(Sheet1!S71_SpecialAdjustedBudget,Sheet1!S71_A4SubCode,$AC:$AC)","v":0},null,null,null,null,{"$f":"SUMIFS(Sheet1!S71_AdjustmentAmount,Sheet1!S71_A4SubCode,$AC:$AC)","v":-114982},-114982,1016104,null,null,null,null,null,null,null,null,null,null,null,null,null,null,null,null,null,"210007"]
["Sub Total - Councillors",null,{"$f":"SUM(C7:C13)","v":16522612},{"$f":"SUM(D7:D13)","v":0},null,null,{"$f":"SUM(G7:G13)","v":0},null,{"$f":"SUM(I7:I13)","v":-2494233},{"$f":"SUM(J7:J13)","v":-2494233},{"$f":"SUM(K7:K13)","v":14028379},{"$f":"IF(K14=0,\"\",(K14/C14)-1)","v":-0.1509587588209419}]
["% increase",null,null,{"$f":"IF(ISERROR((D14/C14)-1),0,((D14/C14)-1))","v":-1},null,null,null,null,null,null,{"$f":"IF(ISERROR((K14/J14)-1),0,((K14/J14)-1))","v":-6.6243257947433136}]
[]
["Senior Managers of the Municipality"]
["Basic Salaries and Wages",null,{"$f":"SUMIFS(Sheet1!S71_OriginalBudget,Sheet1!S71_SA1SubCode,$AC:$AC,Sheet1!S71_StaffCode,$AD:$AD)","v":5318558},{"$f":"SUMIFS(Sheet1!S71_SpecialAdjustedBudget,Sheet1!S71_SA1SubCode,$AC:$AC,Sheet1!S71_StaffCode,$AD:$AD)","v":0},null,null,null,null,{"$f":"SUMIFS(Sheet1!S71_AdjustmentAmount,Sheet1!S71_SA1SubCode,$AC:$AC,Sheet1!S71_StaffCode,$AD:$AD)","v":-606179},{"$f":"E18+G18+I18","v":-606179},{"$f":"IF(D18=0,C18+J18,D18+J18)","v":4712379},{"$f":"IF(K18=0,\"\",(K18/C18)-1)","v":-0.11397431409039815},null,null,null,null,null,null,null,null,null,null,null,null,null,null,null,null,"2001","SM"]
["Pension and UIF Contributions",null,{"$f":"SUMIFS(Sheet1!S71_OriginalBudget,Sheet1!S71_SA1SubCode,$AC:$AC,Sheet1!S71_StaffCode,$AD:$AD)","v":397264},{"$f":"SUMIFS(Sheet1!S71_SpecialAdjustedBudget,Sheet1!S71_SA1SubCode,$AC:$AC,Sheet1!S71_StaffCode,$AD:$AD)","v":0},null,null,null,null,{"$f":"SUMIFS(Sheet1!S71_AdjustmentAmount,Sheet1!S71_SA1SubCode,$AC:$AC,Sheet1!S71_StaffCode,$AD:$AD)","v":-32436},-32436,364828,-8.1648475572918766E-2,null,null,null,null,null,null,null,null,null,null,null,null,null,null,null,null,"2002","SM"]
["Medical Aid Contributions",null,{"$f":"SUMIFS(Sheet1!S71_OriginalBudget,Sheet1!S71_SA1SubCode,$AC:$AC,Sheet1!S71_StaffCode,$AD:$AD)","v":131967},{"$f":"SUMIFS(Sheet1!S71_SpecialAdjustedBudget,Sheet1!S71_SA1SubCode,$AC:$AC,Sheet1!S71_StaffCode,$AD:$AD)","v":0},null,null,null,null,{"$f":"SUMIFS(Sheet1!S71_AdjustmentAmount,Sheet1!S71_SA1SubCode,$AC:$AC,Sheet1!S71_StaffCode,$AD:$AD)","v":-3715},-3715,128252,-2.8150977138223898E-2,null,null,null,null,null,null,null,null,null,null,null,null,null,null,null,null,"2003","SM"]
["Overtime",null,{"$f":"SUMIFS(Sheet1!S71_OriginalBudget,Sheet1!S71_SA1SubCode,$AC:$AC,Sheet1!S71_StaffCode,$AD:$AD)","v":0},{"$f":"SUMIFS(Sheet1!S71_SpecialAdjustedBudget,Sheet1!S71_SA1SubCode,$AC:$AC,Sheet1!S71_StaffCode,$AD:$AD)","v":0},null,null,null,null,{"$f":"SUMIFS(Sheet1!S71_AdjustmentAmount,Sheet1!S71_SA1SubCode,$AC:$AC,Sheet1!S71_StaffCode,$AD:$AD)","v":0},{"$f":"E21+G21+I21","v":0},0,"",null,null,null,null,null,null,null,null,null,null,null,null,null,null,null,null,"2004","SM"]
["Performance Bonus",null,{"$f":"SUMIFS(Sheet1!S71_OriginalBudget,Sheet1!S71_SA1SubCode,$AC:$AC,Sheet1!S71_StaffCode,$AD:$AD)","v":459722},{"$f":"SUMIFS(Sheet1!S71_SpecialAdjustedBudget,Sheet1!S71_SA1SubCode,$AC:$AC,Sheet1!S71_StaffCode,$AD:$AD)","v":0},null,null,null,null,{"$f":"SUMIFS(Sheet1!S71_AdjustmentAmount,Sheet1!S71_SA1SubCode,$AC:$AC,Sheet1!S71_StaffCode,$AD:$AD)","v":-53001},{"$f":"E22+G22+I22","v":-53001},{"$f":"IF(D22=0,C22+J22,D22+J22)","v":406721},null,null,null,null,null,null,null,null,null,null,null,null,null,null,null,null,null,"2005","SM"]
["Motor Vehicle Allowance",null,{"$f":"SUMIFS(Sheet1!S71_OriginalBudget,Sheet1!S71_SA1SubCode,$AC:$AC,Sheet1!S71_StaffCode,$AD:$AD)","v":828000},{"$f":"SUMIFS(Sheet1!S71_SpecialAdjustedBudget,Sheet1!S71_SA1SubCode,$AC:$AC,Sheet1!S71_StaffCode,$AD:$AD)","v":0},null,null,null,null,{"$f":"SUMIFS(Sheet1!S71_AdjustmentAmount,Sheet1!S71_SA1SubCode,$AC:$AC,Sheet1!S71_StaffCode,$AD:$AD)","v":-108000},-108000,720000,-0.13043478260869568,null,null,null,null,null,null,null,null,null,null,null,null,null,null,null,null,"2006","SM"]
["Cellphone Allowance",null,{"$f":"SUMIFS(Sheet1!S71_OriginalBudget,Sheet1!S71_SA1SubCode,$AC:$AC,Sheet1!S71_StaffCode,$AD:$AD)","v":142800},{"$f":"SUMIFS(Sheet1!S71_SpecialAdjustedBudget,Sheet1!S71_SA1SubCode,$AC:$AC,Sheet1!S71_StaffCode,$AD:$AD)","v":0},null,null,null,null,{"$f":"SUMIFS(Sheet1!S71_AdjustmentAmount,Sheet1!S71_SA1SubCode,$AC:$AC,Sheet1!S71_StaffCode,$AD:$AD)","v":0},0,142800,0,null,null,null,null,null,null,null,null,null,null,null,null,null,null,null,null,"2007","SM"]
["Housing Allowances",null,{"$f":"SUMIFS(Sheet1!S71_OriginalBudget,Sheet1!S71_SA1SubCode,$AC:$AC,Sheet1!S71_StaffCode,$AD:$AD)","v":537635},{"$f":"SUMIFS(Sheet1!S71_SpecialAdjustedBudget,Sheet1!S71_SA1SubCode,$AC:$AC,Sheet1!S71_StaffCode,$AD:$AD)","v":0},null,null,null,null,{"$f":"SUMIFS(Sheet1!S71_AdjustmentAmount,Sheet1!S71_SA1SubCode,$AC:$AC,Sheet1!S71_StaffCode,$AD:$AD)","v":-186630},{"$f":"E25+G25+I25","v":-186630},{"$f":"IF(D25=0,C25+J25,D25+J25)","v":351005},null,null,null,null,null,null,null,null,null,null,null,null,null,null,null,null,null,"2008","SM"]
["Other benefits and allowances",null,{"$f":"SUMIFS(Sheet1!S71_OriginalBudget,Sheet1!S71_SA1SubCode,$AC:$AC,Sheet1!S71_StaffCode,$AD:$AD)","v":70922},{"$f":"SUMIFS(Sheet1!S71_SpecialAdjustedBudget,Sheet1!S71_SA1SubCode,$AC:$AC,Sheet1!S71_StaffCode,$AD:$AD)","v":0},null,null,null,null,{"$f":"SUMIFS(Sheet1!S71_AdjustmentAmount,Sheet1!S71_SA1SubCode,$AC:$AC,Sheet1!S71_StaffCode,$AD:$AD)","v":24},{"$f":"E26+G26+I26","v":24},{"$f":"IF(D26=0,C26+J26,D26+J26)","v":70946},null,null,null,null,null,null,null,null,null,null,null,null,null,null,null,null,null,"2009","SM"]
["Payments in lieu of leave",null,{"$f":"SUMIFS(Sheet1!S71_OriginalBudget,Sheet1!S71_SA1SubCode,$AC:$AC,Sheet1!S71_StaffCode,$AD:$AD)","v":562474},{"$f":"SUMIFS(Sheet1!S71_SpecialAdjustedBudget,Sheet1!S71_SA1SubCode,$AC:$AC,Sheet1!S71_StaffCode,$AD:$AD)","v":0},null,null,null,null,{"$f":"SUMIFS(Sheet1!S71_AdjustmentAmount,Sheet1!S71_SA1SubCode,$AC:$AC,Sheet1!S71_StaffCode,$AD:$AD)","v":-182531},{"$f":"E27+G27+I27","v":-182531},{"$f":"IF(D27=0,C27+J27,D27+J27)","v":379943},null,null,null,null,null,null,null,null,null,null,null,null,null,null,null,null,null,"2010","SM"]
["Long service awards",null,{"$f":"SUMIFS(Sheet1!S71_OriginalBudget,Sheet1!S71_SA1SubCode,$AC:$AC,Sheet1!S71_StaffCode,$AD:$AD)","v":0},{"$f":"SUMIFS(Sheet1!S71_SpecialAdjustedBudget,Sheet1!S71_SA1SubCode,$AC:$AC,Sheet1!S71_StaffCode,$AD:$AD)","v":0},null,null,null,null,{"$f":"SUMIFS(Sheet1!S71_AdjustmentAmount,Sheet1!S71_SA1SubCode,$AC:$AC,Sheet1!S71_StaffCode,$AD:$AD)","v":0},0,0,"",null,null,null,null,null,null,null,null,null,null,null,null,null,null,null,null,"2011","SM"]
["Post-retirement benefit obligations",5,{"$f":"SUMIFS(Sheet1!S71_OriginalBudget,Sheet1!S71_SA1SubCode,$AC:$AC,Sheet1!S71_StaffCode,$AD:$AD)","v":0},{"$f":"SUMIFS(Sheet1!S71_SpecialAdjustedBudget,Sheet1!S71_SA1SubCode,$AC:$AC,Sheet1!S71_StaffCode,$AD:$AD)","v":0},null,null,null,null,{"$f":"SUMIFS(Sheet1!S71_AdjustmentAmount,Sheet1!S71_SA1SubCode,$AC:$AC,Sheet1!S71_StaffCode,$AD:$AD)","v":0},0,0,"",null,null,null,null,null,null,null,null,null,null,null,null,null,null,null,null,"2012","SM"]
["Sub Total - Senior Managers of Municipality",null,{"$f":"SUM(C18:C29)","v":8449342},{"$f":"SUM(D18:D29)","v":0},{"$f":"SUM(E18:E29)","v":0},null,{"$f":"SUM(G18:G29)","v":0},null,{"$f":"SUM(I18:I29)","v":-1172468},{"$f":"SUM(J18:J29)","v":-1172468},{"$f":"SUM(K18:K29)","v":7276874},-0.13876441502782111]
[{"$f":"$A$15","v":"% increase"},null,null,{"$f":"IF(ISERROR((D30/C30)-1),0,((D30/C30)-1))","v":-1},null,null,null,null,null,null,{"$f":"IF(ISERROR((K30/J30)-1),0,((K30/J30)-1))","v":-7.2064585131534509}]
[]
["Other Municipal Staff"]
["Basic Salaries and Wages",null,{"$f":"SUMIFS(Sheet1!S71_OriginalBudget,Sheet1!S71_SA1SubCode,$AC:$AC,Sheet1!S71_StaffCode,$AD:$AD)","v":52605127},{"$f":"SUMIFS(Sheet1!S71_SpecialAdjustedBudget,Sheet1!S71_SA1SubCode,$AC:$AC,Sheet1!S71_StaffCode,$AD:$AD)","v":0},null,null,null,null,{"$f":"SUMIFS(Sheet1!S71_AdjustmentAmount,Sheet1!S71_SA1SubCode,$AC:$AC,Sheet1!S71_StaffCode,$AD:$AD)","v":-4690572},{"$f":"SUM(E34:I34)","v":-4690572},{"$f":"IF(D34=0,C34+J34,D34+J34)","v":47914555},{"$f":"IF(K34=0,\"\",(K34/C34)-1)","v":-8.9165681512374251E-2},null,null,null,null,null,null,null,null,null,null,null,null,null,null,null,null,"2001","MS"]
["Pension and UIF Contributions",null,{"$f":"SUMIFS(Sheet1!S71_OriginalBudget,Sheet1!S71_SA1SubCode,$AC:$AC,Sheet1!S71_StaffCode,$AD:$AD)","v":8973138},{"$f":"SUMIFS(Sheet1!S71_SpecialAdjustedBudget,Sheet1!S71_SA1SubCode,$AC:$AC,Sheet1!S71_StaffCode,$AD:$AD)","v":0},null,null,null,null,{"$f":"SUMIFS(Sheet1!S71_AdjustmentAmount,Sheet1!S71_SA1SubCode,$AC:$AC,Sheet1!S71_StaffCode,$AD:$AD)","v":-2848549},-2848549,6124589,-0.31745293563968369,null,null,null,null,null,null,null,null,null,null,null,null,null,null,null,null,"2002","MS"]
["Medical Aid Contributions",null,{"$f":"SUMIFS(Sheet1!S71_OriginalBudget,Sheet1!S71_SA1SubCode,$AC:$AC,Sheet1!S71_StaffCode,$AD:$AD)","v":4172973},{"$f":"SUMIFS(Sheet1!S71_SpecialAdjustedBudget,Sheet1!S71_SA1SubCode,$AC:$AC,Sheet1!S71_StaffCode,$AD:$AD)","v":0},null,null,null,null,{"$f":"SUMIFS(Sheet1!S71_AdjustmentAmount,Sheet1!S71_SA1SubCode,$AC:$AC,Sheet1!S71_StaffCode,$AD:$AD)","v":-1741263},-1741263,2431710,-0.4172715711316608,null,null,null,null,null,null,null,null,null,null,null,null,null,null,null,null,"2003","MS"]
["Overtime",null,{"$f":"SUMIFS(Sheet1!S71_OriginalBudget,Sheet1!S71_SA1SubCode,$AC:$AC,Sheet1!S71_StaffCode,$AD:$AD)","v":3891402},{"$f":"SUMIFS(Sheet1!S71_SpecialAdjustedBudget,Sheet1!S71_SA1SubCode,$AC:$AC,Sheet1!S71_StaffCode,$AD:$AD)","v":0},null,null,null,null,{"$f":"SUMIFS(Sheet1!S71_AdjustmentAmount,Sheet1!S71_SA1SubCode,$AC:$AC,Sheet1!S71_StaffCode,$AD:$AD)","v":-1349681},-1349681,2541721,-0.34683669279092733,null,null,null,null,null,null,null,null,null,null,null,null,null,null,null,null,"2004","MS"]
["Performance Bonus",null,{"$f":"SUMIFS(Sheet1!S71_OriginalBudget,Sheet1!S71_SA1SubCode,$AC:$AC,Sheet1!S71_StaffCode,$AD:$AD)","v":4157271},{"$f":"SUMIFS(Sheet1!S71_SpecialAdjustedBudget,Sheet1!S71_SA1SubCode,$AC:$AC,Sheet1!S71_StaffCode,$AD:$AD)","v":0},null,null,null,null,{"$f":"SUMIFS(Sheet1!S71_AdjustmentAmount,Sheet1!S71_SA1SubCode,$AC:$AC,Sheet1!S71_StaffCode,$AD:$AD)","v":80000},{"$f":"SUM(E38:I38)","v":80000},{"$f":"IF(D38=0,C38+J38,D38+J38)","v":4237271},null,null,null,null,null,null,null,null,null,null,null,null,null,null,null,null,null,"2005","MS"]
["Motor Vehicle Allowance",null,{"$f":"SUMIFS(Sheet1!S71_OriginalBudget,Sheet1!S71_SA1SubCode,$AC:$AC,Sheet1!S71_StaffCode,$AD:$AD)","v":3360000},{"$f":"SUMIFS(Sheet1!S71_SpecialAdjustedBudget,Sheet1!S71_SA1SubCode,$AC:$AC,Sheet1!S71_StaffCode,$AD:$AD)","v":0},null,null,null,null,{"$f":"SUMIFS(Sheet1!S71_AdjustmentAmount,Sheet1!S71_SA1SubCode,$AC:$AC,Sheet1!S71_StaffCode,$AD:$AD)","v":325429},325429,3685429,9.6853869047619057E-2,null,null,null,null,null,null,null,null,null,null,null,null,null,null,null,null,"2006","MS"]
["Cellphone Allowance",null,{"$f":"SUMIFS(Sheet1!S71_OriginalBudget,Sheet1!S71_SA1SubCode,$AC:$AC,Sheet1!S71_StaffCode,$AD:$AD)","v":991200},{"$f":"SUMIFS(Sheet1!S71_SpecialAdjustedBudget,Sheet1!S71_SA1SubCode,$AC:$AC,Sheet1!S71_StaffCode,$AD:$AD)","v":0},null,null,null,null,{"$f":"SUMIFS(Sheet1!S71_AdjustmentAmount,Sheet1!S71_SA1SubCode,$AC:$AC,Sheet1!S71_StaffCode,$AD:$AD)","v":15022},15022,1006222,1.5155367231638461E-2,null,null,null,null,null,null,null,null,null,null,null,null,null,null,null,null,"2007","MS"]
["Housing Allowances",null,{"$f":"SUMIFS(Sheet1!S71_OriginalBudget,Sheet1!S71_SA1SubCode,$AC:$AC,Sheet1!S71_StaffCode,$AD:$AD)","v":259468},{"$f":"SUMIFS(Sheet1!S71_SpecialAdjustedBudget,Sheet1!S71_SA1SubCode,$AC:$AC,Sheet1!S71_StaffCode,$AD:$AD)","v":0},null,null,null,null,{"$f":"SUMIFS(Sheet1!S71_AdjustmentAmount,Sheet1!S71_SA1SubCode,$AC:$AC,Sheet1!S71_StaffCode,$AD:$AD)","v":93738},{"$f":"SUM(E41:I41)","v":93738},{"$f":"IF(D41=0,C41+J41,D41+J41)","v":353206},null,null,null,null,null,null,null,null,null,null,null,null,null,null,null,null,null,"2008","MS"]
["Other benefits and allowances",null,{"$f":"SUMIFS(Sheet1!S71_OriginalBudget,Sheet1!S71_SA1SubCode,$AC:$AC,Sheet1!S71_StaffCode,$AD:$AD)","v":1256480},{"$f":"SUMIFS(Sheet1!S71_SpecialAdjustedBudget,Sheet1!S71_SA1SubCode,$AC:$AC,Sheet1!S71_StaffCode,$AD:$AD)","v":0},null,null,null,null,{"$f":"SUMIFS(Sheet1!S71_AdjustmentAmount,Sheet1!S71_SA1SubCode,$AC:$AC,Sheet1!S71_StaffCode,$AD:$AD)","v":604706},{"$f":"SUM(E42:I42)","v":604706},{"$f":"IF(D42=0,C42+J42,D42+J42)","v":1861186},null,null,null,null,null,null,null,null,null,null,null,null,null,null,null,null,null,"2009","MS"]
["Payments in lieu of leave",null,{"$f":"SUMIFS(Sheet1!S71_OriginalBudget,Sheet1!S71_SA1SubCode,$AC:$AC,Sheet1!S71_StaffCode,$AD:$AD)","v":4450646},{"$f":"SUMIFS(Sheet1!S71_SpecialAdjustedBudget,Sheet1!S71_SA1SubCode,$AC:$AC,Sheet1!S71_StaffCode,$AD:$AD)","v":0},null,null,null,null,{"$f":"SUMIFS(Sheet1!S71_AdjustmentAmount,Sheet1!S71_SA1SubCode,$AC:$AC,Sheet1!S71_StaffCode,$AD:$AD)","v":-3146429},-3146429,1304217,-0.70696006826874114,null,null,null,null,null,null,null,null,null,null,null,null,null,null,null,null,"2010","MS"]
["Long service awards",null,{"$f":"SUMIFS(Sheet1!S71_OriginalBudget,Sheet1!S71_SA1SubCode,$AC:$AC,Sheet1!S71_StaffCode,$AD:$AD)","v":407628},{"$f":"SUMIFS(Sheet1!S71_SpecialAdjustedBudget,Sheet1!S71_SA1SubCode,$AC:$AC,Sheet1!S71_StaffCode,$AD:$AD)","v":0},null,null,null,null,{"$f":"SUMIFS(Sheet1!S71_AdjustmentAmount,Sheet1!S71_SA1SubCode,$AC:$AC,Sheet1!S71_StaffCode,$AD:$AD)","v":-94717},-94717,312911,-0.23236136869891177,null,null,null,null,null,null,null,null,null,null,null,null,null,null,null,null,"2011","MS"]
["Post-retirement benefit obligations",5,{"$f":"SUMIFS(Sheet1!S71_OriginalBudget,Sheet1!S71_SA1SubCode,$AC:$AC,Sheet1!S71_StaffCode,$AD:$AD)","v":0},{"$f":"SUMIFS(Sheet1!S71_SpecialAdjustedBudget,Sheet1!S71_SA1SubCode,$AC:$AC,Sheet1!S71_StaffCode,$AD:$AD)","v":0},null,null,null,null,{"$f":"SUMIFS(Sheet1!S71_AdjustmentAmount,Sheet1!S71_SA1SubCode,$AC:$AC,Sheet1!S71_StaffCode,$AD:$AD)","v":0},0,0,"",null,null,null,null,null,null,null,null,null,null,null,null,null,null,null,null,"2012","MS"]
["Sub Total - Other Municipal Staff",null,{"$f":"SUM(C34:C45)","v":84525333},0,0,0,0,0,-12752316,-12752316,71773017,-0.15086975167551253]
[{"$f":"$A$15","v":"% increase"}]
["Total Parent Municipality",null,{"$f":"C14+C30+C46","v":109497287},0,0,0,0,0,-16419017,-16419017,93078270,{"$f":"IF(K48=0,\"\",(K48/C48)-1)","v":-0.14994907590724138}]
[]
[]
["Board Members of Entities"]
["Basic Salaries and Wages",null,null,null,null,null,null,null,null,{"$f":"SUM(E52:I52)","v":0},{"$f":"IF(D52=0,C52+J52,D52+J52)","v":0},{"$f":"IF(K52=0,\"\",(K52/C52)-1)","v":""}]
["Pension and UIF Contributions",null,null,null,null,null,null,null,null,0,0,{"$f":"IF(K53=0,\"\",(K53/C53)-1)","v":""}]
["Medical Aid Contributions",null,null,null,null,null,null,null,null,0,0,{"$f":"IF(K54=0,\"\",(K54/C54)-1)","v":""}]
["Overtime",null,null,null,null,null,null,null,null,0,{"$f":"IF(D55=0,C55+J55,D55+J55)","v":0}]
["Performance Bonus",null,null,null,null,null,null,null,null,0,{"$f":"IF(D56=0,C56+J56,D56+J56)","v":0}]
["Motor Vehicle Allowance",null,null,null,null,null,null,null,null,0,{"$f":"IF(D57=0,C57+J57,D57+J57)","v":0}]
["Cellphone Allowance",null,null,null,null,null,null,null,null,0,{"$f":"IF(D58=0,C58+J58,D58+J58)","v":0}]
["Housing Allowances",null,null,null,null,null,null,null,null,{"$f":"G59+I59","v":0},0,{"$f":"IF(K59=0,\"\",(K59/C59)-1)","v":""}]
["Other benefits and allowances",null,null,null,null,null,null,null,null,{"$f":"G60+I60","v":0},0]
["Board Fees",null,null,null,null,null,null,null,null,{"$f":"SUM(E61:I61)","v":0},0,{"$f":"IF(K61=0,\"\",(K61/C61)-1)","v":""}]
["Payments in lieu of leave",null,null,null,null,null,null,null,null,{"$f":"SUM(E62:I62)","v":0},0,{"$f":"IF(K62=0,\"\",(K62/C62)-1)","v":""}]
["Long service awards",null,null,null,null,null,null,null,null,{"$f":"SUM(E63:I63)","v":0},{"$f":"IF(D63=0,C63+J63,D63+J63)","v":0}]
["Post-retirement benefit obligations",5,null,null,null,null,null,null,null,{"$f":"SUM(E64:I64)","v":0},0,{"$f":"IF(K64=0,\"\",(K64/C64)-1)","v":""}]
["Sub Total - Board Members of Entities",null,{"$f":"SUM(C52:C64)","v":0},0,0,0,0,0,0,0,0,{"$f":"IF(K65=0,\"\",(K65/C65)-1)","v":""}]
[{"$f":"$A$15","v":"% increase"}]
[]
["Senior Managers of Entities"]
["Basic Salaries and Wages",null,null,null,null,null,null,null,null,{"$f":"SUM(E69:I69)","v":0},{"$f":"IF(D69=0,C69+J69,D69+J69)","v":0},{"$f":"IF(K69=0,\"\",(K69/C69)-1)","v":""}]
["Pension and UIF Contributions",null,null,null,null,null,null,null,null,0,0,""]
["Medical Aid Contributions",null,null,null,null,null,null,null,null,0,0,""]
["Overtime",null,null,null,null,null,null,null,null,{"$f":"SUM(E72:I72)","v":0},{"$f":"IF(D72=0,C72+J72,D72+J72)","v":0}]
["Performance Bonus",null,null,null,null,null,null,null,null,{"$f":"SUM(E73:I73)","v":0},{"$f":"IF(D73=0,C73+J73,D73+J73)","v":0}]
["Motor Vehicle Allowance",null,null,null,null,null,null,null,null,{"$f":"SUM(E74:I74)","v":0},{"$f":"IF(D74=0,C74+J74,D74+J74)","v":0}]
["Cellphone Allowance",null,null,null,null,null,null,null,null,{"$f":"SUM(E75:I75)","v":0},{"$f":"IF(D75=0,C75+J75,D75+J75)","v":0}]
["Housing Allowances",null,null,null,null,null,null,null,null,0,0,""]
["Other benefits and allowances",null,null,null,null,null,null,null,null,{"$f":"SUM(E77:I77)","v":0},{"$f":"IF(D77=0,C77+J77,D77+J77)","v":0}]
["Payments in lieu of leave",null,null,null,null,null,null,null,null,0,0,""]
["Long service awards",null,null,null,null,null,null,null,null,0,0,""]
["Post-retirement benefit obligations",5,null,null,null,null,null,null,null,0,0,""]
["Sub Total - Senior Managers of Entities",null,{"$f":"SUM(C69:C80)","v":0},0,0,0,0,0,0,0,0,""]
[{"$f":"$A$15","v":"% increase"}]
[]
["Other Staff of Entities"]
["Basic Salaries and Wages",null,null,null,null,null,null,null,null,{"$f":"SUM(E85:I85)","v":0},{"$f":"IF(D85=0,C85+J85,D85+J85)","v":0},{"$f":"IF(K85=0,\"\",(K85/C85)-1)","v":""}]
["Pension and UIF Contributions",null,null,null,null,null,null,null,null,0,0,""]
["Medical Aid Contributions",null,null,null,null,null,null,null,null,0,0,""]
["Overtime",null,null,null,null,null,null,null,null,0,0,""]
["Performance Bonus",null,null,null,null,null,null,null,null,{"$f":"SUM(E89:I89)","v":0},{"$f":"IF(D89=0,C89+J89,D89+J89)","v":0}]
["Motor Vehicle Allowance",null,null,null,null,null,null,null,null,0,0,""]
["Cellphone Allowance",null,null,null,null,null,null,null,null,0,0,""]
["Housing Allowances",null,null,null,null,null,null,null,null,{"$f":"SUM(E92:I92)","v":0},{"$f":"IF(D92=0,C92+J92,D92+J92)","v":0}]
["Other benefits and allowances",null,null,null,null,null,null,null,null,{"$f":"SUM(E93:I93)","v":0},{"$f":"IF(D93=0,C93+J93,D93+J93)","v":0}]
["Payments in lieu of leave",null,null,null,null,null,null,null,null,0,0,""]
["Long service awards",null,null,null,null,null,null,null,null,0,0,""]
["Post-retirement benefit obligations",5,null,null,null,null,null,null,null,0,0,""]
["Sub Total - Other Staff of Entities",null,{"$f":"SUM(C85:C96)","v":0},0,0,0,0,0,0,0,0,""]
[{"$f":"$A$15","v":"% increase"}]
["Total Municipal Entities",null,{"$f":"C65+C81+C97","v":0},0,0,0,0,0,0,0,0,{"$f":"IF(K99=0,\"\",(K99/C99)-1)","v":""}]
[]
["TOTAL SALARY, ALLOWANCES & BENEFITS",null,{"$f":"C48+C99","v":109497287},0,0,0,0,0,-16419017,-16419017,93078270,{"$f":"IF(K101=0,\"\",(K101/C101)-1)","v":-0.14994907590724138}]
[{"$f":"$A$15","v":"% increase"}]
["TOTAL MANAGERS AND STAFF",null,{"$f":"C30+C46+C81+C97","v":92974675},0,0,0,0,0,-13924784,-13924784,79049891,{"$f":"IF(K103=0,\"\",(K103/C103)-1)","v":-0.14976964426065487}]
[{"$f":"head27a","v":"References"}]
["1. Include 'Loans and advances' where applicable if any reportable amounts only until phased compliance with s164 of MFMA achieved"]
["2. If benefits in kind are provided (e.g. provision of living quarters) the full market value must be shown as the cost to the municipality"]
["3. s57 of the Systems Act"]
["4. Must agree to the sub-total appearing on Table C1 (Employee costs)"]
["5. Includes pension payments and employer contributions to medical aid"]
[]
["Column Definitions:"]
["A. The original budget approved by council for the current year"]
["5. Only complete if a previous adjusted budget has been approved in the same financial year. Reflect most recent adjusted budget."]
["6. Additional cash-backed accumulated funds/unspent funds (section 18(1)(b) and section 28(2)(e) MFMA) identified after Original Budget approved and after annual financial statements audited (note: only where underspending could not reasonably be have for"]
["7. Increases of funds approved under section 31 MFMA"]
["8. Adjustments approved in accordance with section 29 MFMA"]
["9. Adjustments caused by changes in funding allocations from National or Provincial Government"]
["10. Adjusts. = 'Other' Adjustments proposed to be approved; including revenue under-collection (MFMA section 28(2)(a)); additional revenue appropriation on existing programmes (section 28(2))(b); projected savings (section 28(2)(d)); error correction (sec"]
["11. G = B + C + D + E +  F"]
["12. Adjusted Budget H = (A or A1) + G"]

{"sheet":"SB12","index":50,"n_rows":43,"n_cols":30,"rows_kept":43,"cut":false,"hidden":false,"merged":[[1,0,2,0],[1,2,1,13],[1,1,2,1]]}
[{"$f":"muni&\" - \"&ADJB12&\" - \"&Date","v":"EC139 Enoch Mgijima - Supporting Table SB12 Adjustments Budget - monthly revenue and expenditure (municipal vote) - "}]
[{"$f":"desc","v":"Description"},{"$f":"head27","v":"Ref"},{"$f":"Head2","v":"Budget Year 2021/22"},null,null,null,null,null,null,null,null,null,null,null,null,"Medium Term Revenue and Expenditure Framework"]
[null,null,"July","August","Sept.","October","November","December","January","February","March","April","May","June","Full year budget",{"$f":"Head9","v":"Budget Year 2021/22"},{"$f":"Head10","v":"Budget Year +1 2022/23"},{"$f":"Head11","v":"Budget Year +2 2023/24"}]
["R thousands",null,{"$f":"Head5A","v":"Outcome"},"Outcome","Outcome","Outcome","Outcome","Outcome",{"$f":"Head7","v":"Adjusted Budget"},"Adjusted Budget","Adjusted Budget","Adjusted Budget","Adjusted Budget","Adjusted Budget",null,{"$f":"Head7","v":"Adjusted Budget"},"Adjusted Budget","Adjusted Budget"]
[{"$f":"'B3-FinPerf V'!A6","v":"Revenue by Vote"}]
[{"$f":"'B3-FinPerf V'!A7","v":"Vote 1 - Finance and Admin"},null,{"$f":"-SUMIFS(Sheet1!S71_MonthlyOutcomeJul,Sheet1!S71_MasterVoteMunicipal,$AC:$AC,Sheet1!S71_ItemType,$AD:$AD)","v":80632201.180000007},{"$f":"-SUMIFS(Sheet1!S71_MonthlyOutcomeAug,Sheet1!S71_MasterVoteMunicipal,$AC:$AC,Sheet1!S71_ItemType,$AD:$AD)","v":2125329.81},{"$f":"-SUMIFS(Sheet1!S71_MonthlyOutcomeSep,Sheet1!S71_MasterVoteMunicipal,$AC:$AC,Sheet1!S71_ItemType,$AD:$AD)","v":2351931.64},{"$f":"-SUMIFS(Sheet1!S71_MonthlyOutcomeSep,Sheet1!S71_MasterVoteMunicipal,$AC:$AC,Sheet1!S71_ItemType,$AD:$AD)","v":2351931.64},{"$f":"-SUMIFS(Sheet1!S71_MonthlyOutcomeNov,Sheet1!S71_MasterVoteMunicipal,$AC:$AC,Sheet1!S71_ItemType,$AD:$AD)","v":2300517.1399999997},{"$f":"-SUMIFS(Sheet1!S71_MonthlyOutcomeDec,Sheet1!S71_MasterVoteMunicipal,$AC:$AC,Sheet1!S71_ItemType,$AD:$AD)","v":64968668.280000001},{"$f":"(P6-SUM(C6:H6))/6","v":9894450.0516666677},{"$f":"(P6-SUM(C6:H6))/6","v":9894450.0516666677},{"$f":"(P6-SUM(C6:H6))/6","v":9894450.0516666677},{"$f":"(P6-SUM(C6:H6))/6","v":9894450.0516666677},{"$f":"(P6-SUM(C6:H6))/6","v":9894450.0516666677},{"$f":"P6-SUM(C6:M6)","v":9894450.0516666174},{"$f":"SUM(C6:N6)","v":214097280},{"$f":"'B3-FinPerf V'!K7","v":214097280},{"$f":"'B3-FinPerf V'!L7","v":226090462},{"$f":"'B3-FinPerf V'!M7","v":240409179},null,null,null,null,null,null,null,null,null,null,1,"IR"]
[{"$f":"'B3-FinPerf V'!A8","v":"Vote 2 - Executive and council"},null,{"$f":"-SUMIFS(Sheet1!S71_MonthlyOutcomeJul,Sheet1!S71_MasterVoteMunicipal,$AC:$AC,Sheet1!S71_ItemType,$AD:$AD)","v":0},{"$f":"-SUMIFS(Sheet1!S71_MonthlyOutcomeAug,Sheet1!S71_MasterVoteMunicipal,$AC:$AC,Sheet1!S71_ItemType,$AD:$AD)","v":0},{"$f":"-SUMIFS(Sheet1!S71_MonthlyOutcomeSep,Sheet1!S71_MasterVoteMunicipal,$AC:$AC,Sheet1!S71_ItemType,$AD:$AD)","v":0},{"$f":"-SUMIFS(Sheet1!S71_MonthlyOutcomeSep,Sheet1!S71_MasterVoteMunicipal,$AC:$AC,Sheet1!S71_ItemType,$AD:$AD)","v":0},{"$f":"-SUMIFS(Sheet1!S71_MonthlyOutcomeNov,Sheet1!S71_MasterVoteMunicipal,$AC:$AC,Sheet1!S71_ItemType,$AD:$AD)","v":0},{"$f":"-SUMIFS(Sheet1!S71_MonthlyOutcomeDec,Sheet1!S71_MasterVoteMunicipal,$AC:$AC,Sheet1!S71_ItemType,$AD:$AD)","v":0},{"$f":"(P7-SUM(C7:H7))/6","v":0},{"$f":"(P7-SUM(C7:H7))/6","v":0},{"$f":"(P7-SUM(C7:H7))/6","v":0},{"$f":"(P7-SUM(C7:H7))/6","v":0},{"$f":"(P7-SUM(C7:H7))/6","v":0},0,0,{"$f":"'B3-FinPerf V'!K8","v":0},{"$f":"'B3-FinPerf V'!L8","v":0},{"$f":"'B3-FinPerf V'!M8","v":0},null,null,null,null,null,null,null,null,null,null,2,"IR"]
[{"$f":"'B3-FinPerf V'!A9","v":"Vote 3 - Community and social services"},null,{"$f":"-SUMIFS(Sheet1!S71_MonthlyOutcomeJul,Sheet1!S71_MasterVoteMunicipal,$AC:$AC,Sheet1!S71_ItemType,$AD:$AD)","v":290844.56},{"$f":"-SUMIFS(Sheet1!S71_MonthlyOutcomeAug,Sheet1!S71_MasterVoteMunicipal,$AC:$AC,Sheet1!S71_ItemType,$AD:$AD)","v":286155.23},{"$f":"-SUMIFS(Sheet1!S71_MonthlyOutcomeSep,Sheet1!S71_MasterVoteMunicipal,$AC:$AC,Sheet1!S71_ItemType,$AD:$AD)","v":287403.45000000123},{"$f":"-SUMIFS(Sheet1!S71_MonthlyOutcomeSep,Sheet1!S71_MasterVoteMunicipal,$AC:$AC,Sheet1!S71_ItemType,$AD:$AD)","v":287403.45000000123},{"$f":"-SUMIFS(Sheet1!S71_MonthlyOutcomeNov,Sheet1!S71_MasterVoteMunicipal,$AC:$AC,Sheet1!S71_ItemType,$AD:$AD)","v":565841.96000000008},{"$f":"-SUMIFS(Sheet1!S71_MonthlyOutcomeDec,Sheet1!S71_MasterVoteMunicipal,$AC:$AC,Sheet1!S71_ItemType,$AD:$AD)","v":292404.11},806600.2066666662,806600.2066666662,806600.2066666662,806600.2066666662,806600.2066666662,806600.20666666701,6849654,{"$f":"'B3-FinPerf V'!K9","v":6849654},{"$f":"'B3-FinPerf V'!L9","v":2957186},{"$f":"'B3-FinPerf V'!M9","v":2958346},null,null,null,null,null,null,null,null,null,null,3,"IR"]
[{"$f":"'B3-FinPerf V'!A10","v":"Vote 4 - Internal Audit"},null,{"$f":"-SUMIFS(Sheet1!S71_MonthlyOutcomeJul,Sheet1!S71_MasterVoteMunicipal,$AC:$AC,Sheet1!S71_ItemType,$AD:$AD)","v":0},{"$f":"-SUMIFS(Sheet1!S71_MonthlyOutcomeAug,Sheet1!S71_MasterVoteMunicipal,$AC:$AC,Sheet1!S71_ItemType,$AD:$AD)","v":0},{"$f":"-SUMIFS(Sheet1!S71_MonthlyOutcomeSep,Sheet1!S71_MasterVoteMunicipal,$AC:$AC,Sheet1!S71_ItemType,$AD:$AD)","v":0},{"$f":"-SUMIFS(Sheet1!S71_MonthlyOutcomeSep,Sheet1!S71_MasterVoteMunicipal,$AC:$AC,Sheet1!S71_ItemType,$AD:$AD)","v":0},{"$f":"-SUMIFS(Sheet1!S71_MonthlyOutcomeNov,Sheet1!S71_MasterVoteMunicipal,$AC:$AC,Sheet1!S71_ItemType,$AD:$AD)","v":0},{"$f":"-SUMIFS(Sheet1!S71_MonthlyOutcomeDec,Sheet1!S71_MasterVoteMunicipal,$AC:$AC,Sheet1!S71_ItemType,$AD:$AD)","v":0},0,0,0,0,0,0,0,{"$f":"'B3-FinPerf V'!K10","v":0},{"$f":"'B3-FinPerf V'!L10","v":0},{"$f":"'B3-FinPerf V'!M10","v":0},null,null,null,null,null,null,null,null,null,null,4,"IR"]
[{"$f":"'B3-FinPerf V'!A11","v":"Vote 5 - Waste Management"},null,{"$f":"-SUMIFS(Sheet1!S71_MonthlyOutcomeJul,Sheet1!S71_MasterVoteMunicipal,$AC:$AC,Sheet1!S71_ItemType,$AD:$AD)","v":52029.96},{"$f":"-SUMIFS(Sheet1!S71_MonthlyOutcomeAug,Sheet1!S71_MasterVoteMunicipal,$AC:$AC,Sheet1!S71_ItemType,$AD:$AD)","v":52029.96},{"$f":"-SUMIFS(Sheet1!S71_MonthlyOutcomeSep,Sheet1!S71_MasterVoteMunicipal,$AC:$AC,Sheet1!S71_ItemType,$AD:$AD)","v":52029.96},{"$f":"-SUMIFS(Sheet1!S71_MonthlyOutcomeSep,Sheet1!S71_MasterVoteMunicipal,$AC:$AC,Sheet1!S71_ItemType,$AD:$AD)","v":52029.96},{"$f":"-SUMIFS(Sheet1!S71_MonthlyOutcomeNov,Sheet1!S71_MasterVoteMunicipal,$AC:$AC,Sheet1!S71_ItemType,$AD:$AD)","v":52029.96},{"$f":"-SUMIFS(Sheet1!S71_MonthlyOutcomeDec,Sheet1!S71_MasterVoteMunicipal,$AC:$AC,Sheet1!S71_ItemType,$AD:$AD)","v":52029.96},52030.04,52030.04,52030.04,52030.04,52030.04,52030.040000000037,624360,{"$f":"'B3-FinPerf V'!K11","v":624360},{"$f":"'B3-FinPerf V'!L11","v":475011},{"$f":"'B3-FinPerf V'!M11","v":497811},null,null,null,null,null,null,null,null,null,null,5,"IR"]
[{"$f":"'B3-FinPerf V'!A12","v":"Vote 6 - Energy Sources"},null,{"$f":"-SUMIFS(Sheet1!S71_MonthlyOutcomeJul,Sheet1!S71_MasterVoteMunicipal,$AC:$AC,Sheet1!S71_ItemType,$AD:$AD)","v":0},{"$f":"-SUMIFS(Sheet1!S71_MonthlyOutcomeAug,Sheet1!S71_MasterVoteMunicipal,$AC:$AC,Sheet1!S71_ItemType,$AD:$AD)","v":0},{"$f":"-SUMIFS(Sheet1!S71_MonthlyOutcomeSep,Sheet1!S71_MasterVoteMunicipal,$AC:$AC,Sheet1!S71_ItemType,$AD:$AD)","v":0},{"$f":"-SUMIFS(Sheet1!S71_MonthlyOutcomeSep,Sheet1!S71_MasterVoteMunicipal,$AC:$AC,Sheet1!S71_ItemType,$AD:$AD)","v":0},{"$f":"-SUMIFS(Sheet1!S71_MonthlyOutcomeNov,Sheet1!S71_MasterVoteMunicipal,$AC:$AC,Sheet1!S71_ItemType,$AD:$AD)","v":0},{"$f":"-SUMIFS(Sheet1!S71_MonthlyOutcomeDec,Sheet1!S71_MasterVoteMunicipal,$AC:$AC,Sheet1!S71_ItemType,$AD:$AD)","v":0},0,0,0,0,0,0,0,{"$f":"'B3-FinPerf V'!K12","v":0},{"$f":"'B3-FinPerf V'!L12","v":0},{"$f":"'B3-FinPerf V'!M12","v":0},null,null,null,null,null,null,null,null,null,null,6,"IR"]
[{"$f":"'B3-FinPerf V'!A13","v":"Vote 7 - Planning and Development"},null,{"$f":"-SUMIFS(Sheet1!S71_MonthlyOutcomeJul,Sheet1!S71_MasterVoteMunicipal,$AC:$AC,Sheet1!S71_ItemType,$AD:$AD)","v":578197.74},{"$f":"-SUMIFS(Sheet1!S71_MonthlyOutcomeAug,Sheet1!S71_MasterVoteMunicipal,$AC:$AC,Sheet1!S71_ItemType,$AD:$AD)","v":601637.92000000004},{"$f":"-SUMIFS(Sheet1!S71_MonthlyOutcomeSep,Sheet1!S71_MasterVoteMunicipal,$AC:$AC,Sheet1!S71_ItemType,$AD:$AD)","v":445605.9},{"$f":"-SUMIFS(Sheet1!S71_MonthlyOutcomeSep,Sheet1!S71_MasterVoteMunicipal,$AC:$AC,Sheet1!S71_ItemType,$AD:$AD)","v":445605.9},{"$f":"-SUMIFS(Sheet1!S71_MonthlyOutcomeNov,Sheet1!S71_MasterVoteMunicipal,$AC:$AC,Sheet1!S71_ItemType,$AD:$AD)","v":237561.81},{"$f":"-SUMIFS(Sheet1!S71_MonthlyOutcomeDec,Sheet1!S71_MasterVoteMunicipal,$AC:$AC,Sheet1!S71_ItemType,$AD:$AD)","v":83550.17},-1777.7399999999907,-1777.7399999999907,-1777.7399999999907,-1777.7399999999907,-1777.7399999999907,-1777.7399999992922,2381493,{"$f":"'B3-FinPerf V'!K13","v":2381493},{"$f":"'B3-FinPerf V'!L13","v":-2076106},{"$f":"'B3-FinPerf V'!M13","v":-2168131},null,null,null,null,null,null,null,null,null,null,7,"IR"]
[{"$f":"'B3-FinPerf V'!A14","v":"Vote 8 - Public Safety"},null,{"$f":"-SUMIFS(Sheet1!S71_MonthlyOutcomeJul,Sheet1!S71_MasterVoteMunicipal,$AC:$AC,Sheet1!S71_ItemType,$AD:$AD)","v":0},{"$f":"-SUMIFS(Sheet1!S71_MonthlyOutcomeAug,Sheet1!S71_MasterVoteMunicipal,$AC:$AC,Sheet1!S71_ItemType,$AD:$AD)","v":0},{"$f":"-SUMIFS(Sheet1!S71_MonthlyOutcomeSep,Sheet1!S71_MasterVoteMunicipal,$AC:$AC,Sheet1!S71_ItemType,$AD:$AD)","v":0},{"$f":"-SUMIFS(Sheet1!S71_MonthlyOutcomeSep,Sheet1!S71_MasterVoteMunicipal,$AC:$AC,Sheet1!S71_ItemType,$AD:$AD)","v":0},{"$f":"-SUMIFS(Sheet1!S71_MonthlyOutcomeNov,Sheet1!S71_MasterVoteMunicipal,$AC:$AC,Sheet1!S71_ItemType,$AD:$AD)","v":0},{"$f":"-SUMIFS(Sheet1!S71_MonthlyOutcomeDec,Sheet1!S71_MasterVoteMunicipal,$AC:$AC,Sheet1!S71_ItemType,$AD:$AD)","v":0},0,0,0,0,0,0,0,{"$f":"'B3-FinPerf V'!K14","v":0},{"$f":"'B3-FinPerf V'!L14","v":0},{"$f":"'B3-FinPerf V'!M14","v":0},null,null,null,null,null,null,null,null,null,null,8,"IR"]
[{"$f":"'B3-FinPerf V'!A15","v":"Vote 9 - Roads"},null,{"$f":"-SUMIFS(Sheet1!S71_MonthlyOutcomeJul,Sheet1!S71_MasterVoteMunicipal,$AC:$AC,Sheet1!S71_ItemType,$AD:$AD)","v":1774414.18},{"$f":"-SUMIFS(Sheet1!S71_MonthlyOutcomeAug,Sheet1!S71_MasterVoteMunicipal,$AC:$AC,Sheet1!S71_ItemType,$AD:$AD)","v":2731392.45},{"$f":"-SUMIFS(Sheet1!S71_MonthlyOutcomeSep,Sheet1!S71_MasterVoteMunicipal,$AC:$AC,Sheet1!S71_ItemType,$AD:$AD)","v":4481087.3600000003},{"$f":"-SUMIFS(Sheet1!S71_MonthlyOutcomeSep,Sheet1!S71_MasterVoteMunicipal,$AC:$AC,Sheet1!S71_ItemType,$AD:$AD)","v":4481087.3600000003},{"$f":"-SUMIFS(Sheet1!S71_MonthlyOutcomeNov,Sheet1!S71_MasterVoteMunicipal,$AC:$AC,Sheet1!S71_ItemType,$AD:$AD)","v":4910023.1100000003},{"$f":"-SUMIFS(Sheet1!S71_MonthlyOutcomeDec,Sheet1!S71_MasterVoteMunicipal,$AC:$AC,Sheet1!S71_ItemType,$AD:$AD)","v":3868528.54},1855582.6666666667,1855582.6666666667,1855582.6666666667,1855582.6666666667,1855582.6666666667,1855582.6666666605,33380029,{"$f":"'B3-FinPerf V'!K15","v":33380029},{"$f":"'B3-FinPerf V'!L15","v":38361612},{"$f":"'B3-FinPerf V'!M15","v":40097947},null,null,null,null,null,null,null,null,null,null,9,"IR"]
[{"$f":"'B3-FinPerf V'!A16","v":"Vote 10 - Sport and Recreation"},null,{"$f":"-SUMIFS(Sheet1!S71_MonthlyOutcomeJul,Sheet1!S71_MasterVoteMunicipal,$AC:$AC,Sheet1!S71_ItemType,$AD:$AD)","v":0},{"$f":"-SUMIFS(Sheet1!S71_MonthlyOutcomeAug,Sheet1!S71_MasterVoteMunicipal,$AC:$AC,Sheet1!S71_ItemType,$AD:$AD)","v":0},{"$f":"-SUMIFS(Sheet1!S71_MonthlyOutcomeSep,Sheet1!S71_MasterVoteMunicipal,$AC:$AC,Sheet1!S71_ItemType,$AD:$AD)","v":0},{"$f":"-SUMIFS(Sheet1!S71_MonthlyOutcomeSep,Sheet1!S71_MasterVoteMunicipal,$AC:$AC,Sheet1!S71_ItemType,$AD:$AD)","v":0},{"$f":"-SUMIFS(Sheet1!S71_MonthlyOutcomeNov,Sheet1!S71_MasterVoteMunicipal,$AC:$AC,Sheet1!S71_ItemType,$AD:$AD)","v":0},{"$f":"-SUMIFS(Sheet1!S71_MonthlyOutcomeDec,Sheet1!S71_MasterVoteMunicipal,$AC:$AC,Sheet1!S71_ItemType,$AD:$AD)","v":0},0,0,0,0,0,0,null,{"$f":"'B3-FinPerf V'!K16","v":0},{"$f":"'B3-FinPerf V'!L16","v":0},{"$f":"'B3-FinPerf V'!M16","v":0},null,null,null,null,null,null,null,null,null,null,10,"IR"]
[{"$f":"'B3-FinPerf V'!A17","v":"Vote 11 - [NAME OF VOTE 11]"},null,{"$f":"-SUMIFS(Sheet1!S71_MonthlyOutcomeJul,Sheet1!S71_MasterVoteMunicipal,$AC:$AC,Sheet1!S71_ItemType,$AD:$AD)","v":0},{"$f":"-SUMIFS(Sheet1!S71_MonthlyOutcomeAug,Sheet1!S71_MasterVoteMunicipal,$AC:$AC,Sheet1!S71_ItemType,$AD:$AD)","v":0},{"$f":"-SUMIFS(Sheet1!S71_MonthlyOutcomeSep,Sheet1!S71_MasterVoteMunicipal,$AC:$AC,Sheet1!S71_ItemType,$AD:$AD)","v":0},{"$f":"-SUMIFS(Sheet1!S71_MonthlyOutcomeSep,Sheet1!S71_MasterVoteMunicipal,$AC:$AC,Sheet1!S71_ItemType,$AD:$AD)","v":0},{"$f":"-SUMIFS(Sheet1!S71_MonthlyOutcomeNov,Sheet1!S71_MasterVoteMunicipal,$AC:$AC,Sheet1!S71_ItemType,$AD:$AD)","v":0},{"$f":"-SUMIFS(Sheet1!S71_MonthlyOutcomeDec,Sheet1!S71_MasterVoteMunicipal,$AC:$AC,Sheet1!S71_ItemType,$AD:$AD)","v":0},0,0,0,0,0,0,null,{"$f":"'B3-FinPerf V'!K17","v":0},{"$f":"'B3-FinPerf V'!L17","v":0},{"$f":"'B3-FinPerf V'!M17","v":0},null,null,null,null,null,null,null,null,null,null,11,"IR"]
[{"$f":"'B3-FinPerf V'!A18","v":"Vote 12 - [NAME OF VOTE 12]"},null,{"$f":"-SUMIFS(Sheet1!S71_MonthlyOutcomeJul,Sheet1!S71_MasterVoteMunicipal,$AC:$AC,Sheet1!S71_ItemType,$AD:$AD)","v":0},{"$f":"-SUMIFS(Sheet1!S71_MonthlyOutcomeAug,Sheet1!S71_MasterVoteMunicipal,$AC:$AC,Sheet1!S71_ItemType,$AD:$AD)","v":0},{"$f":"-SUMIFS(Sheet1!S71_MonthlyOutcomeSep,Sheet1!S71_MasterVoteMunicipal,$AC:$AC,Sheet1!S71_ItemType,$AD:$AD)","v":0},{"$f":"-SUMIFS(Sheet1!S71_MonthlyOutcomeSep,Sheet1!S71_MasterVoteMunicipal,$AC:$AC,Sheet1!S71_ItemType,$AD:$AD)","v":0},{"$f":"-SUMIFS(Sheet1!S71_MonthlyOutcomeNov,Sheet1!S71_MasterVoteMunicipal,$AC:$AC,Sheet1!S71_ItemType,$AD:$AD)","v":0},{"$f":"-SUMIFS(Sheet1!S71_MonthlyOutcomeDec,Sheet1!S71_MasterVoteMunicipal,$AC:$AC,Sheet1!S71_ItemType,$AD:$AD)","v":0},0,0,0,0,0,0,null,{"$f":"'B3-FinPerf V'!K18","v":0},{"$f":"'B3-FinPerf V'!L18","v":0},{"$f":"'B3-FinPerf V'!M18","v":0},null,null,null,null,null,null,null,null,null,null,12,"IR"]
[{"$f":"'B3-FinPerf V'!A19","v":"Vote 13 - [NAME OF VOTE 13]"},null,{"$f":"-SUMIFS(Sheet1!S71_MonthlyOutcomeJul,Sheet1!S71_MasterVoteMunicipal,$AC:$AC,Sheet1!S71_ItemType,$AD:$AD)","v":0},{"$f":"-SUMIFS(Sheet1!S71_MonthlyOutcomeAug,Sheet1!S71_MasterVoteMunicipal,$AC:$AC,Sheet1!S71_ItemType,$AD:$AD)","v":0},{"$f":"-SUMIFS(Sheet1!S71_MonthlyOutcomeSep,Sheet1!S71_MasterVoteMunicipal,$AC:$AC,Sheet1!S71_ItemType,$AD:$AD)","v":0},{"$f":"-SUMIFS(Sheet1!S71_MonthlyOutcomeSep,Sheet1!S71_MasterVoteMunicipal,$AC:$AC,Sheet1!S71_ItemType,$AD:$AD)","v":0},{"$f":"-SUMIFS(Sheet1!S71_MonthlyOutcomeNov,Sheet1!S71_MasterVoteMunicipal,$AC:$AC,Sheet1!S71_ItemType,$AD:$AD)","v":0},{"$f":"-SUMIFS(Sheet1!S71_MonthlyOutcomeDec,Sheet1!S71_MasterVoteMunicipal,$AC:$AC,Sheet1!S71_ItemType,$AD:$AD)","v":0},0,0,0,0,0,0,null,{"$f":"'B3-FinPerf V'!K19","v":0},{"$f":"'B3-FinPerf V'!L19","v":0},{"$f":"'B3-FinPerf V'!M19","v":0},null,null,null,null,null,null,null,null,null,null,13,"IR"]
[{"$f":"'B3-FinPerf V'!A20","v":"Vote 14 - [NAME OF VOTE 14]"},null,{"$f":"-SUMIFS(Sheet1!S71_MonthlyOutcomeJul,Sheet1!S71_MasterVoteMunicipal,$AC:$AC,Sheet1!S71_ItemType,$AD:$AD)","v":0},{"$f":"-SUMIFS(Sheet1!S71_MonthlyOutcomeAug,Sheet1!S71_MasterVoteMunicipal,$AC:$AC,Sheet1!S71_ItemType,$AD:$AD)","v":0},{"$f":"-SUMIFS(Sheet1!S71_MonthlyOutcomeSep,Sheet1!S71_MasterVoteMunicipal,$AC:$AC,Sheet1!S71_ItemType,$AD:$AD)","v":0},{"$f":"-SUMIFS(Sheet1!S71_MonthlyOutcomeSep,Sheet1!S71_MasterVoteMunicipal,$AC:$AC,Sheet1!S71_ItemType,$AD:$AD)","v":0},{"$f":"-SUMIFS(Sheet1!S71_MonthlyOutcomeNov,Sheet1!S71_MasterVoteMunicipal,$AC:$AC,Sheet1!S71_ItemType,$AD:$AD)","v":0},{"$f":"-SUMIFS(Sheet1!S71_MonthlyOutcomeDec,Sheet1!S71_MasterVoteMunicipal,$AC:$AC,Sheet1!S71_ItemType,$AD:$AD)","v":0},0,0,0,0,0,0,null,{"$f":"'B3-FinPerf V'!K20","v":0},{"$f":"'B3-FinPerf V'!L20","v":0},{"$f":"'B3-FinPerf V'!M20","v":0},null,null,null,null,null,null,null,null,null,null,14,"IR"]
[{"$f":"'B3-FinPerf V'!A21","v":"Vote 15 - [NAME OF VOTE 15]"},null,{"$f":"-SUMIFS(Sheet1!S71_MonthlyOutcomeJul,Sheet1!S71_MasterVoteMunicipal,$AC:$AC,Sheet1!S71_ItemType,$AD:$AD)","v":0},{"$f":"-SUMIFS(Sheet1!S71_MonthlyOutcomeAug,Sheet1!S71_MasterVoteMunicipal,$AC:$AC,Sheet1!S71_ItemType,$AD:$AD)","v":0},{"$f":"-SUMIFS(Sheet1!S71_MonthlyOutcomeSep,Sheet1!S71_MasterVoteMunicipal,$AC:$AC,Sheet1!S71_ItemType,$AD:$AD)","v":0},{"$f":"-SUMIFS(Sheet1!S71_MonthlyOutcomeSep,Sheet1!S71_MasterVoteMunicipal,$AC:$AC,Sheet1!S71_ItemType,$AD:$AD)","v":0},{"$f":"-SUMIFS(Sheet1!S71_MonthlyOutcomeNov,Sheet1!S71_MasterVoteMunicipal,$AC:$AC,Sheet1!S71_ItemType,$AD:$AD)","v":0},{"$f":"-SUMIFS(Sheet1!S71_MonthlyOutcomeDec,Sheet1!S71_MasterVoteMunicipal,$AC:$AC,Sheet1!S71_ItemType,$AD:$AD)","v":0},0,0,0,0,0,0,{"$f":"SUM(C20:N20)","v":0},{"$f":"'B3-FinPerf V'!K21","v":0},{"$f":"'B3-FinPerf V'!L21","v":0},{"$f":"'B3-FinPerf V'!M21","v":0},null,null,null,null,null,null,null,null,null,null,15,"IR"]
[{"$f":"'B3-FinPerf V'!A22","v":"Total Revenue by Vote"},null,{"$f":"SUM(C6:C20)","v":83327687.620000005},5796545.3700000001,7618058.3100000015,7618058.3100000015,8065973.9800000004,69265181.060000002,12606885.225,12606885.225,12606885.225,12606885.225,12606885.225,12606885.224999946,257332816,257332816,265808165,281795152]
[]
[{"$f":"'B3-FinPerf V'!A24","v":"Expenditure by Vote"}]
[{"$f":"'B3-FinPerf V'!A25","v":"Vote 1 - Finance and Admin"},null,{"$f":"SUMIFS(Sheet1!S71_MonthlyOutcomeJul,Sheet1!S71_MasterVoteMunicipal,$AC:$AC,Sheet1!S71_ItemType,$AD:$AD)","v":8692807.5400000028},{"$f":"SUMIFS(Sheet1!S71_MonthlyOutcomeAug,Sheet1!S71_MasterVoteMunicipal,$AC:$AC,Sheet1!S71_ItemType,$AD:$AD)","v":7388058.1300000018},{"$f":"SUMIFS(Sheet1!S71_MonthlyOutcomeSep,Sheet1!S71_MasterVoteMunicipal,$AC:$AC,Sheet1!S71_ItemType,$AD:$AD)","v":6022771.2300000023},{"$f":"SUMIFS(Sheet1!S71_MonthlyOutcomeOct,Sheet1!S71_MasterVoteMunicipal,$AC:$AC,Sheet1!S71_ItemType,$AD:$AD)","v":8667238.7031050008},{"$f":"SUMIFS(Sheet1!S71_MonthlyOutcomeNov,Sheet1!S71_MasterVoteMunicipal,$AC:$AC,Sheet1!S71_ItemType,$AD:$AD)","v":14120341.419999996},{"$f":"SUMIFS(Sheet1!S71_MonthlyOutcomeDec,Sheet1!S71_MasterVoteMunicipal,$AC:$AC,Sheet1!S71_ItemType,$AD:$AD)","v":7949932.4099999992},{"$f":"(P24-SUM(C24:H24))/6","v":4544248.9278158331},{"$f":"(P24-SUM(C24:H24))/6","v":4544248.9278158331},{"$f":"(P24-SUM(C24:H24))/6","v":4544248.9278158331},{"$f":"(P24-SUM(C24:H24))/6","v":4544248.9278158331},{"$f":"(P24-SUM(C24:H24))/6","v":4544248.9278158331},{"$f":"P24-SUM(C24:M24)","v":4544248.9278158247},{"$f":"SUM(C24:N24)","v":80106643},{"$f":"'B3-FinPerf V'!K25","v":80106643},{"$f":"'B3-FinPerf V'!L25","v":83368479},{"$f":"'B3-FinPerf V'!M25","v":88905411},null,null,null,null,null,null,null,null,null,null,1,"IE"]
[{"$f":"'B3-FinPerf V'!A26","v":"Vote 2 - Executive and council"},null,{"$f":"SUMIFS(Sheet1!S71_MonthlyOutcomeJul,Sheet1!S71_MasterVoteMunicipal,$AC:$AC,Sheet1!S71_ItemType,$AD:$AD)","v":2917814.65},{"$f":"SUMIFS(Sheet1!S71_MonthlyOutcomeAug,Sheet1!S71_MasterVoteMunicipal,$AC:$AC,Sheet1!S71_ItemType,$AD:$AD)","v":4717186.53},{"$f":"SUMIFS(Sheet1!S71_MonthlyOutcomeSep,Sheet1!S71_MasterVoteMunicipal,$AC:$AC,Sheet1!S71_ItemType,$AD:$AD)","v":2648505.7399999998},{"$f":"SUMIFS(Sheet1!S71_MonthlyOutcomeOct,Sheet1!S71_MasterVoteMunicipal,$AC:$AC,Sheet1!S71_ItemType,$AD:$AD)","v":8578267.0500000007},{"$f":"SUMIFS(Sheet1!S71_MonthlyOutcomeNov,Sheet1!S71_MasterVoteMunicipal,$AC:$AC,Sheet1!S71_ItemType,$AD:$AD)","v":3934107.1799999988},{"$f":"SUMIFS(Sheet1!S71_MonthlyOutcomeDec,Sheet1!S71_MasterVoteMunicipal,$AC:$AC,Sheet1!S71_ItemType,$AD:$AD)","v":4296755.9400000004},{"$f":"(P25-SUM(C25:H25))/6","v":2777566.1516666668},{"$f":"(P25-SUM(C25:H25))/6","v":2777566.1516666668},{"$f":"(P25-SUM(C25:H25))/6","v":2777566.1516666668},{"$f":"(P25-SUM(C25:H25))/6","v":2777566.1516666668},{"$f":"(P25-SUM(C25:H25))/6","v":2777566.1516666668},2777566.151666671,43758034,{"$f":"'B3-FinPerf V'!K26","v":43758034},{"$f":"'B3-FinPerf V'!L26","v":35155333},{"$f":"'B3-FinPerf V'!M26","v":36776676},null,null,null,null,null,null,null,null,null,null,2,"IE"]
[{"$f":"'B3-FinPerf V'!A27","v":"Vote 3 - Community and social services"},null,{"$f":"SUMIFS(Sheet1!S71_MonthlyOutcomeJul,Sheet1!S71_MasterVoteMunicipal,$AC:$AC,Sheet1!S71_ItemType,$AD:$AD)","v":2375850.73},{"$f":"SUMIFS(Sheet1!S71_MonthlyOutcomeAug,Sheet1!S71_MasterVoteMunicipal,$AC:$AC,Sheet1!S71_ItemType,$AD:$AD)","v":5025943.07},{"$f":"SUMIFS(Sheet1!S71_MonthlyOutcomeSep,Sheet1!S71_MasterVoteMunicipal,$AC:$AC,Sheet1!S71_ItemType,$AD:$AD)","v":4419085.2700000005},{"$f":"SUMIFS(Sheet1!S71_MonthlyOutcomeOct,Sheet1!S71_MasterVoteMunicipal,$AC:$AC,Sheet1!S71_ItemType,$AD:$AD)","v":5114146.8899999997},{"$f":"SUMIFS(Sheet1!S71_MonthlyOutcomeNov,Sheet1!S71_MasterVoteMunicipal,$AC:$AC,Sheet1!S71_ItemType,$AD:$AD)","v":3808131.53},{"$f":"SUMIFS(Sheet1!S71_MonthlyOutcomeDec,Sheet1!S71_MasterVoteMunicipal,$AC:$AC,Sheet1!S71_ItemType,$AD:$AD)","v":4237763.38},2899320.855,2899320.855,2899320.855,2899320.855,2899320.855,2899320.8550000042,42376846,{"$f":"'B3-FinPerf V'!K27","v":42376846},{"$f":"'B3-FinPerf V'!L27","v":42978479},{"$f":"'B3-FinPerf V'!M27","v":44908010},null,null,null,null,null,null,null,null,null,null,3,"IE"]
[{"$f":"'B3-FinPerf V'!A28","v":"Vote 4 - Internal Audit"},null,{"$f":"SUMIFS(Sheet1!S71_MonthlyOutcomeJul,Sheet1!S71_MasterVoteMunicipal,$AC:$AC,Sheet1!S71_ItemType,$AD:$AD)","v":2880},{"$f":"SUMIFS(Sheet1!S71_MonthlyOutcomeAug,Sheet1!S71_MasterVoteMunicipal,$AC:$AC,Sheet1!S71_ItemType,$AD:$AD)","v":642468.69999999995},{"$f":"SUMIFS(Sheet1!S71_MonthlyOutcomeSep,Sheet1!S71_MasterVoteMunicipal,$AC:$AC,Sheet1!S71_ItemType,$AD:$AD)","v":0},{"$f":"SUMIFS(Sheet1!S71_MonthlyOutcomeOct,Sheet1!S71_MasterVoteMunicipal,$AC:$AC,Sheet1!S71_ItemType,$AD:$AD)","v":0},{"$f":"SUMIFS(Sheet1!S71_MonthlyOutcomeNov,Sheet1!S71_MasterVoteMunicipal,$AC:$AC,Sheet1!S71_ItemType,$AD:$AD)","v":0},{"$f":"SUMIFS(Sheet1!S71_MonthlyOutcomeDec,Sheet1!S71_MasterVoteMunicipal,$AC:$AC,Sheet1!S71_ItemType,$AD:$AD)","v":17695.650000000001},168159.27499999999,168159.27499999999,168159.27499999999,168159.27499999999,168159.27499999999,168159.27500000014,1672000,{"$f":"'B3-FinPerf V'!K28","v":1672000},{"$f":"'B3-FinPerf V'!L28","v":1724250},{"$f":"'B3-FinPerf V'!M28","v":1801841},null,null,null,null,null,null,null,null,null,null,4,"IE"]
[{"$f":"'B3-FinPerf V'!A29","v":"Vote 5 - Waste Management"},null,{"$f":"SUMIFS(Sheet1!S71_MonthlyOutcomeJul,Sheet1!S71_MasterVoteMunicipal,$AC:$AC,Sheet1!S71_ItemType,$AD:$AD)","v":1059400},{"$f":"SUMIFS(Sheet1!S71_MonthlyOutcomeAug,Sheet1!S71_MasterVoteMunicipal,$AC:$AC,Sheet1!S71_ItemType,$AD:$AD)","v":1152000},{"$f":"SUMIFS(Sheet1!S71_MonthlyOutcomeSep,Sheet1!S71_MasterVoteMunicipal,$AC:$AC,Sheet1!S71_ItemType,$AD:$AD)","v":1325251.03},{"$f":"SUMIFS(Sheet1!S71_MonthlyOutcomeOct,Sheet1!S71_MasterVoteMunicipal,$AC:$AC,Sheet1!S71_ItemType,$AD:$AD)","v":2263370},{"$f":"SUMIFS(Sheet1!S71_MonthlyOutcomeNov,Sheet1!S71_MasterVoteMunicipal,$AC:$AC,Sheet1!S71_ItemType,$AD:$AD)","v":779400},{"$f":"SUMIFS(Sheet1!S71_MonthlyOutcomeDec,Sheet1!S71_MasterVoteMunicipal,$AC:$AC,Sheet1!S71_ItemType,$AD:$AD)","v":779400},-16840.838333333377,-16840.838333333377,-16840.838333333377,-16840.838333333377,-16840.838333333377,-16840.838333334774,7257776,{"$f":"'B3-FinPerf V'!K29","v":7257776},{"$f":"'B3-FinPerf V'!L29","v":2145798},{"$f":"'B3-FinPerf V'!M29","v":2211418},null,null,null,null,null,null,null,null,null,null,5,"IE"]
[{"$f":"'B3-FinPerf V'!A30","v":"Vote 6 - Energy Sources"},null,{"$f":"SUMIFS(Sheet1!S71_MonthlyOutcomeJul,Sheet1!S71_MasterVoteMunicipal,$AC:$AC,Sheet1!S71_ItemType,$AD:$AD)","v":24422.400000000001},{"$f":"SUMIFS(Sheet1!S71_MonthlyOutcomeAug,Sheet1!S71_MasterVoteMunicipal,$AC:$AC,Sheet1!S71_ItemType,$AD:$AD)","v":27128.76},{"$f":"SUMIFS(Sheet1!S71_MonthlyOutcomeSep,Sheet1!S71_MasterVoteMunicipal,$AC:$AC,Sheet1!S71_ItemType,$AD:$AD)","v":26324.910000000003},{"$f":"SUMIFS(Sheet1!S71_MonthlyOutcomeOct,Sheet1!S71_MasterVoteMunicipal,$AC:$AC,Sheet1!S71_ItemType,$AD:$AD)","v":25751.07},{"$f":"SUMIFS(Sheet1!S71_MonthlyOutcomeNov,Sheet1!S71_MasterVoteMunicipal,$AC:$AC,Sheet1!S71_ItemType,$AD:$AD)","v":25751.07},{"$f":"SUMIFS(Sheet1!S71_MonthlyOutcomeDec,Sheet1!S71_MasterVoteMunicipal,$AC:$AC,Sheet1!S71_ItemType,$AD:$AD)","v":29589.61},43781.53,43781.53,43781.53,43781.53,43781.53,43781.529999999912,421657,{"$f":"'B3-FinPerf V'!K30","v":421657},{"$f":"'B3-FinPerf V'!L30","v":571657},{"$f":"'B3-FinPerf V'!M30","v":597381},null,null,null,null,null,null,null,null,null,null,6,"IE"]
[{"$f":"'B3-FinPerf V'!A31","v":"Vote 7 - Planning and Development"},null,{"$f":"SUMIFS(Sheet1!S71_MonthlyOutcomeJul,Sheet1!S71_MasterVoteMunicipal,$AC:$AC,Sheet1!S71_ItemType,$AD:$AD)","v":1650830.23},{"$f":"SUMIFS(Sheet1!S71_MonthlyOutcomeAug,Sheet1!S71_MasterVoteMunicipal,$AC:$AC,Sheet1!S71_ItemType,$AD:$AD)","v":1371928.9099999997},{"$f":"SUMIFS(Sheet1!S71_MonthlyOutcomeSep,Sheet1!S71_MasterVoteMunicipal,$AC:$AC,Sheet1!S71_ItemType,$AD:$AD)","v":1340927.26},{"$f":"SUMIFS(Sheet1!S71_MonthlyOutcomeOct,Sheet1!S71_MasterVoteMunicipal,$AC:$AC,Sheet1!S71_ItemType,$AD:$AD)","v":1868223.63},{"$f":"SUMIFS(Sheet1!S71_MonthlyOutcomeNov,Sheet1!S71_MasterVoteMunicipal,$AC:$AC,Sheet1!S71_ItemType,$AD:$AD)","v":1442333.26},{"$f":"SUMIFS(Sheet1!S71_MonthlyOutcomeDec,Sheet1!S71_MasterVoteMunicipal,$AC:$AC,Sheet1!S71_ItemType,$AD:$AD)","v":2017370.0799999998},2495495.271666667,2495495.271666667,2495495.271666667,2495495.271666667,2495495.271666667,2495495.2716666646,24664585,{"$f":"'B3-FinPerf V'!K31","v":24664585},{"$f":"'B3-FinPerf V'!L31","v":32896755},{"$f":"'B3-FinPerf V'!M31","v":34377111},null,null,null,null,null,null,null,null,null,null,7,"IE"]
[{"$f":"'B3-FinPerf V'!A32","v":"Vote 8 - Public Safety"},null,{"$f":"SUMIFS(Sheet1!S71_MonthlyOutcomeJul,Sheet1!S71_MasterVoteMunicipal,$AC:$AC,Sheet1!S71_ItemType,$AD:$AD)","v":0},{"$f":"SUMIFS(Sheet1!S71_MonthlyOutcomeAug,Sheet1!S71_MasterVoteMunicipal,$AC:$AC,Sheet1!S71_ItemType,$AD:$AD)","v":0},{"$f":"SUMIFS(Sheet1!S71_MonthlyOutcomeSep,Sheet1!S71_MasterVoteMunicipal,$AC:$AC,Sheet1!S71_ItemType,$AD:$AD)","v":0},{"$f":"SUMIFS(Sheet1!S71_MonthlyOutcomeOct,Sheet1!S71_MasterVoteMunicipal,$AC:$AC,Sheet1!S71_ItemType,$AD:$AD)","v":0},{"$f":"SUMIFS(Sheet1!S71_MonthlyOutcomeNov,Sheet1!S71_MasterVoteMunicipal,$AC:$AC,Sheet1!S71_ItemType,$AD:$AD)","v":0},{"$f":"SUMIFS(Sheet1!S71_MonthlyOutcomeDec,Sheet1!S71_MasterVoteMunicipal,$AC:$AC,Sheet1!S71_ItemType,$AD:$AD)","v":0},0,0,0,0,0,0,0,{"$f":"'B3-FinPerf V'!K32","v":0},{"$f":"'B3-FinPerf V'!L32","v":50000},{"$f":"'B3-FinPerf V'!M32","v":50000},null,null,null,null,null,null,null,null,null,null,8,"IE"]
[{"$f":"'B3-FinPerf V'!A33","v":"Vote 9 - Roads"},null,{"$f":"SUMIFS(Sheet1!S71_MonthlyOutcomeJul,Sheet1!S71_MasterVoteMunicipal,$AC:$AC,Sheet1!S71_ItemType,$AD:$AD)","v":304673.91000000003},{"$f":"SUMIFS(Sheet1!S71_MonthlyOutcomeAug,Sheet1!S71_MasterVoteMunicipal,$AC:$AC,Sheet1!S71_ItemType,$AD:$AD)","v":1736437},{"$f":"SUMIFS(Sheet1!S71_MonthlyOutcomeSep,Sheet1!S71_MasterVoteMunicipal,$AC:$AC,Sheet1!S71_ItemType,$AD:$AD)","v":754000},{"$f":"SUMIFS(Sheet1!S71_MonthlyOutcomeOct,Sheet1!S71_MasterVoteMunicipal,$AC:$AC,Sheet1!S71_ItemType,$AD:$AD)","v":1496600},{"$f":"SUMIFS(Sheet1!S71_MonthlyOutcomeNov,Sheet1!S71_MasterVoteMunicipal,$AC:$AC,Sheet1!S71_ItemType,$AD:$AD)","v":231670},{"$f":"SUMIFS(Sheet1!S71_MonthlyOutcomeDec,Sheet1!S71_MasterVoteMunicipal,$AC:$AC,Sheet1!S71_ItemType,$AD:$AD)","v":0},79794.51499999997,79794.51499999997,79794.51499999997,79794.51499999997,79794.51499999997,79794.515000001527,5002148,{"$f":"'B3-FinPerf V'!K33","v":5002148},{"$f":"'B3-FinPerf V'!L33","v":3918750},{"$f":"'B3-FinPerf V'!M33","v":4095094},null,null,null,null,null,null,null,null,null,null,9,"IE"]
[{"$f":"'B3-FinPerf V'!A34","v":"Vote 10 - Sport and Recreation"},null,{"$f":"SUMIFS(Sheet1!S71_MonthlyOutcomeJul,Sheet1!S71_MasterVoteMunicipal,$AC:$AC,Sheet1!S71_ItemType,$AD:$AD)","v":0},{"$f":"SUMIFS(Sheet1!S71_MonthlyOutcomeAug,Sheet1!S71_MasterVoteMunicipal,$AC:$AC,Sheet1!S71_ItemType,$AD:$AD)","v":0},{"$f":"SUMIFS(Sheet1!S71_MonthlyOutcomeSep,Sheet1!S71_MasterVoteMunicipal,$AC:$AC,Sheet1!S71_ItemType,$AD:$AD)","v":0},{"$f":"SUMIFS(Sheet1!S71_MonthlyOutcomeOct,Sheet1!S71_MasterVoteMunicipal,$AC:$AC,Sheet1!S71_ItemType,$AD:$AD)","v":0},{"$f":"SUMIFS(Sheet1!S71_MonthlyOutcomeNov,Sheet1!S71_MasterVoteMunicipal,$AC:$AC,Sheet1!S71_ItemType,$AD:$AD)","v":0},{"$f":"SUMIFS(Sheet1!S71_MonthlyOutcomeDec,Sheet1!S71_MasterVoteMunicipal,$AC:$AC,Sheet1!S71_ItemType,$AD:$AD)","v":0},0,0,0,0,0,0,0,{"$f":"'B3-FinPerf V'!K34","v":0},{"$f":"'B3-FinPerf V'!L34","v":0},{"$f":"'B3-FinPerf V'!M34","v":0},null,null,null,null,null,null,null,null,null,null,10,"IE"]
[{"$f":"'B3-FinPerf V'!A35","v":"Vote 11 - [NAME OF VOTE 11]"},null,{"$f":"SUMIFS(Sheet1!S71_MonthlyOutcomeJul,Sheet1!S71_MasterVoteMunicipal,$AC:$AC,Sheet1!S71_ItemType,$AD:$AD)","v":0},{"$f":"SUMIFS(Sheet1!S71_MonthlyOutcomeAug,Sheet1!S71_MasterVoteMunicipal,$AC:$AC,Sheet1!S71_ItemType,$AD:$AD)","v":0},{"$f":"SUMIFS(Sheet1!S71_MonthlyOutcomeSep,Sheet1!S71_MasterVoteMunicipal,$AC:$AC,Sheet1!S71_ItemType,$AD:$AD)","v":0},{"$f":"SUMIFS(Sheet1!S71_MonthlyOutcomeOct,Sheet1!S71_MasterVoteMunicipal,$AC:$AC,Sheet1!S71_ItemType,$AD:$AD)","v":0},{"$f":"SUMIFS(Sheet1!S71_MonthlyOutcomeNov,Sheet1!S71_MasterVoteMunicipal,$AC:$AC,Sheet1!S71_ItemType,$AD:$AD)","v":0},{"$f":"SUMIFS(Sheet1!S71_MonthlyOutcomeDec,Sheet1!S71_MasterVoteMunicipal,$AC:$AC,Sheet1!S71_ItemType,$AD:$AD)","v":0},0,0,0,0,0,0,0,{"$f":"'B3-FinPerf V'!K35","v":0},{"$f":"'B3-FinPerf V'!L35","v":0},{"$f":"'B3-FinPerf V'!M35","v":0},null,null,null,null,null,null,null,null,null,null,11,"IE"]
[{"$f":"'B3-FinPerf V'!A36","v":"Vote 12 - [NAME OF VOTE 12]"},null,{"$f":"SUMIFS(Sheet1!S71_MonthlyOutcomeJul,Sheet1!S71_MasterVoteMunicipal,$AC:$AC,Sheet1!S71_ItemType,$AD:$AD)","v":0},{"$f":"SUMIFS(Sheet1!S71_MonthlyOutcomeAug,Sheet1!S71_MasterVoteMunicipal,$AC:$AC,Sheet1!S71_ItemType,$AD:$AD)","v":0},{"$f":"SUMIFS(Sheet1!S71_MonthlyOutcomeSep,Sheet1!S71_MasterVoteMunicipal,$AC:$AC,Sheet1!S71_ItemType,$AD:$AD)","v":0},{"$f":"SUMIFS(Sheet1!S71_MonthlyOutcomeOct,Sheet1!S71_MasterVoteMunicipal,$AC:$AC,Sheet1!S71_ItemType,$AD:$AD)","v":0},{"$f":"SUMIFS(Sheet1!S71_MonthlyOutcomeNov,Sheet1!S71_MasterVoteMunicipal,$AC:$AC,Sheet1!S71_ItemType,$AD:$AD)","v":0},{"$f":"SUMIFS(Sheet1!S71_MonthlyOutcomeDec,Sheet1!S71_MasterVoteMunicipal,$AC:$AC,Sheet1!S71_ItemType,$AD:$AD)","v":0},0,0,0,0,0,0,0,{"$f":"'B3-FinPerf V'!K36","v":0},{"$f":"'B3-FinPerf V'!L36","v":0},{"$f":"'B3-FinPerf V'!M36","v":0},null,null,null,null,null,null,null,null,null,null,12,"IE"]
[{"$f":"'B3-FinPerf V'!A37","v":"Vote 13 - [NAME OF VOTE 13]"},null,{"$f":"SUMIFS(Sheet1!S71_MonthlyOutcomeJul,Sheet1!S71_MasterVoteMunicipal,$AC:$AC,Sheet1!S71_ItemType,$AD:$AD)","v":0},{"$f":"SUMIFS(Sheet1!S71_MonthlyOutcomeAug,Sheet1!S71_MasterVoteMunicipal,$AC:$AC,Sheet1!S71_ItemType,$AD:$AD)","v":0},{"$f":"SUMIFS(Sheet1!S71_MonthlyOutcomeSep,Sheet1!S71_MasterVoteMunicipal,$AC:$AC,Sheet1!S71_ItemType,$AD:$AD)","v":0},{"$f":"SUMIFS(Sheet1!S71_MonthlyOutcomeOct,Sheet1!S71_MasterVoteMunicipal,$AC:$AC,Sheet1!S71_ItemType,$AD:$AD)","v":0},{"$f":"SUMIFS(Sheet1!S71_MonthlyOutcomeNov,Sheet1!S71_MasterVoteMunicipal,$AC:$AC,Sheet1!S71_ItemType,$AD:$AD)","v":0},{"$f":"SUMIFS(Sheet1!S71_MonthlyOutcomeDec,Sheet1!S71_MasterVoteMunicipal,$AC:$AC,Sheet1!S71_ItemType,$AD:$AD)","v":0},0,0,0,0,0,0,0,{"$f":"'B3-FinPerf V'!K37","v":0},{"$f":"'B3-FinPerf V'!L37","v":0},{"$f":"'B3-FinPerf V'!M37","v":0},null,null,null,null,null,null,null,null,null,null,13,"IE"]
[{"$f":"'B3-FinPerf V'!A38","v":"Vote 14 - [NAME OF VOTE 14]"},null,{"$f":"SUMIFS(Sheet1!S71_MonthlyOutcomeJul,Sheet1!S71_MasterVoteMunicipal,$AC:$AC,Sheet1!S71_ItemType,$AD:$AD)","v":0},{"$f":"SUMIFS(Sheet1!S71_MonthlyOutcomeAug,Sheet1!S71_MasterVoteMunicipal,$AC:$AC,Sheet1!S71_ItemType,$AD:$AD)","v":0},{"$f":"SUMIFS(Sheet1!S71_MonthlyOutcomeSep,Sheet1!S71_MasterVoteMunicipal,$AC:$AC,Sheet1!S71_ItemType,$AD:$AD)","v":0},{"$f":"SUMIFS(Sheet1!S71_MonthlyOutcomeOct,Sheet1!S71_MasterVoteMunicipal,$AC:$AC,Sheet1!S71_ItemType,$AD:$AD)","v":0},{"$f":"SUMIFS(Sheet1!S71_MonthlyOutcomeNov,Sheet1!S71_MasterVoteMunicipal,$AC:$AC,Sheet1!S71_ItemType,$AD:$AD)","v":0},{"$f":"SUMIFS(Sheet1!S71_MonthlyOutcomeDec,Sheet1!S71_MasterVoteMunicipal,$AC:$AC,Sheet1!S71_ItemType,$AD:$AD)","v":0},0,0,0,0,0,0,0,{"$f":"'B3-FinPerf V'!K38","v":0},{"$f":"'B3-FinPerf V'!L38","v":0},{"$f":"'B3-FinPerf V'!M38","v":0},null,null,null,null,null,null,null,null,null,null,14,"IE"]
[{"$f":"'B3-FinPerf V'!A39","v":"Vote 15 - [NAME OF VOTE 15]"},null,{"$f":"SUMIFS(Sheet1!S71_MonthlyOutcomeJul,Sheet1!S71_MasterVoteMunicipal,$AC:$AC,Sheet1!S71_ItemType,$AD:$AD)","v":0},{"$f":"SUMIFS(Sheet1!S71_MonthlyOutcomeAug,Sheet1!S71_MasterVoteMunicipal,$AC:$AC,Sheet1!S71_ItemType,$AD:$AD)","v":0},{"$f":"SUMIFS(Sheet1!S71_MonthlyOutcomeSep,Sheet1!S71_MasterVoteMunicipal,$AC:$AC,Sheet1!S71_ItemType,$AD:$AD)","v":0},{"$f":"SUMIFS(Sheet1!S71_MonthlyOutcomeOct,Sheet1!S71_MasterVoteMunicipal,$AC:$AC,Sheet1!S71_ItemType,$AD:$AD)","v":0},{"$f":"SUMIFS(Sheet1!S71_MonthlyOutcomeNov,Sheet1!S71_MasterVoteMunicipal,$AC:$AC,Sheet1!S71_ItemType,$AD:$AD)","v":0},{"$f":"SUMIFS(Sheet1!S71_MonthlyOutcomeDec,Sheet1!S71_MasterVoteMunicipal,$AC:$AC,Sheet1!S71_ItemType,$AD:$AD)","v":0},0,0,0,0,0,0,0,{"$f":"'B3-FinPerf V'!K39","v":0},{"$f":"'B3-FinPerf V'!L39","v":0},{"$f":"'B3-FinPerf V'!M39","v":0},null,null,null,null,null,null,null,null,null,null,15,"IE"]
["Total Expenditure by Vote",null,{"$f":"SUM(C24:C38)","v":17028679.460000005},22061151.100000005,16536865.440000001,28013597.343105,24341734.459999997,19328507.07,12991525.687815834,12991525.687815834,12991525.687815834,12991525.687815834,12991525.687815834,12991525.68781583,205259689,205259689,202809501,213722942]
[]
["Surplus/ (Deficit)",null,{"$f":"C21-C39","v":66299008.159999996},-16264605.730000004,-8918807.129999999,-20395539.033104997,-16275760.479999997,49936673.990000002,-384640.46281583421,-384640.46281583421,-384640.46281583421,-384640.46281583421,-384640.46281583421,-384640.4628158845,52073127,52073127,62998664,68072210]
[{"$f":"head27a","v":"References"}]
["1. Surplus (Deficit) must reconcile with budget table A2 and monthly budget statement table C2"]

{"sheet":"SB13","index":51,"n_rows":53,"n_cols":30,"rows_kept":53,"cut":false,"hidden":false,"merged":[[1,0,2,0],[1,1,2,1],[1,2,1,13]]}
[{"$f":"muni&\" - \"&ADJB13&\" - \"&Date","v":"EC139 Enoch Mgijima - Supporting Table SB13 Adjustments Budget - monthly revenue and expenditure (functional classification) - "}]
[{"$f":"desc&\" - Standard classification\"","v":"Description - Standard classification"},{"$f":"head27","v":"Ref"},{"$f":"Head2","v":"Budget Year 2021/22"},null,null,null,null,null,null,null,null,null,null,null,null,"Medium Term Revenue and Expenditure Framework"]
[null,null,"July","August","Sept.","October","November","December","January","February","March","April","May","June","Full year budget",{"$f":"Head9","v":"Budget Year 2021/22"},{"$f":"Head10","v":"Budget Year +1 2022/23"},{"$f":"Head11","v":"Budget Year +2 2023/24"}]
["R thousands",null,{"$f":"Head5A","v":"Outcome"},"Outcome","Outcome","Outcome","Outcome","Outcome",{"$f":"Head7","v":"Adjusted Budget"},"Adjusted Budget","Adjusted Budget","Adjusted Budget","Adjusted Budget","Adjusted Budget",null,{"$f":"Head7","v":"Adjusted Budget"},{"$f":"Head7","v":"Adjusted Budget"},{"$f":"Head7","v":"Adjusted Budget"}]
["Revenue - Functional"]
[{"$f":"'B2-FinPerf SC'!A7","v":"Governance and administration"},null,{"$f":"SUM(C7:C9)","v":80632201.180000007},2125329.81,2351931.64,2284357.98,2300517.1399999997,64968668.280000001,9905712.3283333275,9905712.3283333275,9905712.3283333275,9905712.3283333275,9905712.3283333275,{"$f":"P6-SUM(C6:M6)","v":9905712.3283333778},{"$f":"SUM(C6:N6)","v":214097280},{"$f":"'B2-FinPerf SC'!K7","v":214097280},{"$f":"'B2-FinPerf SC'!L7","v":226090462},{"$f":"'B2-FinPerf SC'!M7","v":240409179}]
[{"$f":"'B2-FinPerf SC'!A8","v":"Executive and council"},null,{"$f":"-SUMIFS(Sheet1!S71_MonthlyOutcomeJul,Sheet1!S71_A2Code,$AC:$AC,Sheet1!S71_ItemType,$AD:$AD)","v":0},{"$f":"-SUMIFS(Sheet1!S71_MonthlyOutcomeAug,Sheet1!S71_A2Code,$AC:$AC,Sheet1!S71_ItemType,$AD:$AD)","v":0},{"$f":"-SUMIFS(Sheet1!S71_MonthlyOutcomeSep,Sheet1!S71_A2Code,$AC:$AC,Sheet1!S71_ItemType,$AD:$AD)","v":0},{"$f":"-SUMIFS(Sheet1!S71_MonthlyOutcomeOct,Sheet1!S71_A2Code,$AC:$AC,Sheet1!S71_ItemType,$AD:$AD)","v":0},{"$f":"-SUMIFS(Sheet1!S71_MonthlyOutcomeNov,Sheet1!S71_A2Code,$AC:$AC,Sheet1!S71_ItemType,$AD:$AD)","v":0},{"$f":"-SUMIFS(Sheet1!S71_MonthlyOutcomeDec,Sheet1!S71_A2Code,$AC:$AC,Sheet1!S71_ItemType,$AD:$AD)","v":0},{"$f":"(P7-SUM(C7:H7))/6","v":0},{"$f":"(P7-SUM(C7:H7))/6","v":0},{"$f":"(P7-SUM(C7:H7))/6","v":0},{"$f":"(P7-SUM(C7:H7))/6","v":0},{"$f":"(P7-SUM(C7:H7))/6","v":0},0,0,{"$f":"'B2-FinPerf SC'!K8","v":0},{"$f":"'B2-FinPerf SC'!L8","v":0},{"$f":"'B2-FinPerf SC'!M8","v":0},null,null,null,null,null,null,null,null,null,null,1100,"IR"]
[{"$f":"'B2-FinPerf SC'!A9","v":"Finance and administration"},null,{"$f":"-SUMIFS(Sheet1!S71_MonthlyOutcomeJul,Sheet1!S71_A2Code,$AC:$AC,Sheet1!S71_ItemType,$AD:$AD)","v":80632201.180000007},{"$f":"-SUMIFS(Sheet1!S71_MonthlyOutcomeAug,Sheet1!S71_A2Code,$AC:$AC,Sheet1!S71_ItemType,$AD:$AD)","v":2125329.81},{"$f":"-SUMIFS(Sheet1!S71_MonthlyOutcomeSep,Sheet1!S71_A2Code,$AC:$AC,Sheet1!S71_ItemType,$AD:$AD)","v":2351931.64},{"$f":"-SUMIFS(Sheet1!S71_MonthlyOutcomeOct,Sheet1!S71_A2Code,$AC:$AC,Sheet1!S71_ItemType,$AD:$AD)","v":2284357.98},{"$f":"-SUMIFS(Sheet1!S71_MonthlyOutcomeNov,Sheet1!S71_A2Code,$AC:$AC,Sheet1!S71_ItemType,$AD:$AD)","v":2300517.1399999997},{"$f":"-SUMIFS(Sheet1!S71_MonthlyOutcomeDec,Sheet1!S71_A2Code,$AC:$AC,Sheet1!S71_ItemType,$AD:$AD)","v":64968668.280000001},{"$f":"(P8-SUM(C8:H8))/6","v":9905712.3283333275},{"$f":"(P8-SUM(C8:H8))/6","v":9905712.3283333275},{"$f":"(P8-SUM(C8:H8))/6","v":9905712.3283333275},{"$f":"(P8-SUM(C8:H8))/6","v":9905712.3283333275},{"$f":"(P8-SUM(C8:H8))/6","v":9905712.3283333275},9905712.3283333778,214097280,{"$f":"'B2-FinPerf SC'!K9","v":214097280},{"$f":"'B2-FinPerf SC'!L9","v":226090462},{"$f":"'B2-FinPerf SC'!M9","v":240409179},null,null,null,null,null,null,null,null,null,null,1200,"IR"]
[{"$f":"'B2-FinPerf SC'!A10","v":"Internal audit"},null,{"$f":"-SUMIFS(Sheet1!S71_MonthlyOutcomeJul,Sheet1!S71_A2Code,$AC:$AC,Sheet1!S71_ItemType,$AD:$AD)","v":0},{"$f":"-SUMIFS(Sheet1!S71_MonthlyOutcomeAug,Sheet1!S71_A2Code,$AC:$AC,Sheet1!S71_ItemType,$AD:$AD)","v":0},{"$f":"-SUMIFS(Sheet1!S71_MonthlyOutcomeSep,Sheet1!S71_A2Code,$AC:$AC,Sheet1!S71_ItemType,$AD:$AD)","v":0},{"$f":"-SUMIFS(Sheet1!S71_MonthlyOutcomeOct,Sheet1!S71_A2Code,$AC:$AC,Sheet1!S71_ItemType,$AD:$AD)","v":0},{"$f":"-SUMIFS(Sheet1!S71_MonthlyOutcomeNov,Sheet1!S71_A2Code,$AC:$AC,Sheet1!S71_ItemType,$AD:$AD)","v":0},{"$f":"-SUMIFS(Sheet1!S71_MonthlyOutcomeDec,Sheet1!S71_A2Code,$AC:$AC,Sheet1!S71_ItemType,$AD:$AD)","v":0},0,0,0,0,0,0,0,{"$f":"'B2-FinPerf SC'!K10","v":0},{"$f":"'B2-FinPerf SC'!L10","v":0},{"$f":"'B2-FinPerf SC'!M10","v":0},null,null,null,null,null,null,null,null,null,null,1300,"IR"]
[{"$f":"'B2-FinPerf SC'!A11","v":"Community and public safety"},null,{"$f":"SUM(C11:C15)","v":290844.56},286155.23,287403.45000000123,368457.31,565841.96000000008,292404.11,793091.22999999986,793091.22999999986,793091.22999999986,793091.22999999986,793091.22999999986,793091.23000000045,6849654,{"$f":"'B2-FinPerf SC'!K11","v":6849654},{"$f":"'B2-FinPerf SC'!L11","v":2990167},{"$f":"'B2-FinPerf SC'!M11","v":2992910},null,null,null,null,null,null,null,null,null,null,null,"IR"]
[{"$f":"'B2-FinPerf SC'!A12","v":"Community and social services"},null,{"$f":"-SUMIFS(Sheet1!S71_MonthlyOutcomeJul,Sheet1!S71_A2Code,$AC:$AC,Sheet1!S71_ItemType,$AD:$AD)","v":290844.56},{"$f":"-SUMIFS(Sheet1!S71_MonthlyOutcomeAug,Sheet1!S71_A2Code,$AC:$AC,Sheet1!S71_ItemType,$AD:$AD)","v":286155.23},{"$f":"-SUMIFS(Sheet1!S71_MonthlyOutcomeSep,Sheet1!S71_A2Code,$AC:$AC,Sheet1!S71_ItemType,$AD:$AD)","v":287403.45000000123},{"$f":"-SUMIFS(Sheet1!S71_MonthlyOutcomeOct,Sheet1!S71_A2Code,$AC:$AC,Sheet1!S71_ItemType,$AD:$AD)","v":368457.31},{"$f":"-SUMIFS(Sheet1!S71_MonthlyOutcomeNov,Sheet1!S71_A2Code,$AC:$AC,Sheet1!S71_ItemType,$AD:$AD)","v":565841.96000000008},{"$f":"-SUMIFS(Sheet1!S71_MonthlyOutcomeDec,Sheet1!S71_A2Code,$AC:$AC,Sheet1!S71_ItemType,$AD:$AD)","v":292404.11},{"$f":"(P11-SUM(C11:H11))/6","v":793091.22999999986},{"$f":"(P11-SUM(C11:H11))/6","v":793091.22999999986},{"$f":"(P11-SUM(C11:H11))/6","v":793091.22999999986},{"$f":"(P11-SUM(C11:H11))/6","v":793091.22999999986},{"$f":"(P11-SUM(C11:H11))/6","v":793091.22999999986},793091.23000000045,6849654,{"$f":"'B2-FinPerf SC'!K12","v":6849654},{"$f":"'B2-FinPerf SC'!L12","v":2957186},{"$f":"'B2-FinPerf SC'!M12","v":2958346},null,null,null,null,null,null,null,null,null,null,2100,"IR"]
[{"$f":"'B2-FinPerf SC'!A13","v":"Sport and recreation"},null,{"$f":"-SUMIFS(Sheet1!S71_MonthlyOutcomeJul,Sheet1!S71_A2Code,$AC:$AC,Sheet1!S71_ItemType,$AD:$AD)","v":0},{"$f":"-SUMIFS(Sheet1!S71_MonthlyOutcomeAug,Sheet1!S71_A2Code,$AC:$AC,Sheet1!S71_ItemType,$AD:$AD)","v":0},{"$f":"-SUMIFS(Sheet1!S71_MonthlyOutcomeSep,Sheet1!S71_A2Code,$AC:$AC,Sheet1!S71_ItemType,$AD:$AD)","v":0},{"$f":"-SUMIFS(Sheet1!S71_MonthlyOutcomeOct,Sheet1!S71_A2Code,$AC:$AC,Sheet1!S71_ItemType,$AD:$AD)","v":0},{"$f":"-SUMIFS(Sheet1!S71_MonthlyOutcomeNov,Sheet1!S71_A2Code,$AC:$AC,Sheet1!S71_ItemType,$AD:$AD)","v":0},{"$f":"-SUMIFS(Sheet1!S71_MonthlyOutcomeDec,Sheet1!S71_A2Code,$AC:$AC,Sheet1!S71_ItemType,$AD:$AD)","v":0},0,0,0,0,0,0,0,{"$f":"'B2-FinPerf SC'!K13","v":0},{"$f":"'B2-FinPerf SC'!L13","v":0},{"$f":"'B2-FinPerf SC'!M13","v":0},null,null,null,null,null,null,null,null,null,null,2200,"IR"]
[{"$f":"'B2-FinPerf SC'!A14","v":"Public safety"},null,{"$f":"-SUMIFS(Sheet1!S71_MonthlyOutcomeJul,Sheet1!S71_A2Code,$AC:$AC,Sheet1!S71_ItemType,$AD:$AD)","v":0},{"$f":"-SUMIFS(Sheet1!S71_MonthlyOutcomeAug,Sheet1!S71_A2Code,$AC:$AC,Sheet1!S71_ItemType,$AD:$AD)","v":0},{"$f":"-SUMIFS(Sheet1!S71_MonthlyOutcomeSep,Sheet1!S71_A2Code,$AC:$AC,Sheet1!S71_ItemType,$AD:$AD)","v":0},{"$f":"-SUMIFS(Sheet1!S71_MonthlyOutcomeOct,Sheet1!S71_A2Code,$AC:$AC,Sheet1!S71_ItemType,$AD:$AD)","v":0},{"$f":"-SUMIFS(Sheet1!S71_MonthlyOutcomeNov,Sheet1!S71_A2Code,$AC:$AC,Sheet1!S71_ItemType,$AD:$AD)","v":0},{"$f":"-SUMIFS(Sheet1!S71_MonthlyOutcomeDec,Sheet1!S71_A2Code,$AC:$AC,Sheet1!S71_ItemType,$AD:$AD)","v":0},0,0,0,0,0,0,0,{"$f":"'B2-FinPerf SC'!K14","v":0},{"$f":"'B2-FinPerf SC'!L14","v":32981},{"$f":"'B2-FinPerf SC'!M14","v":34564},null,null,null,null,null,null,null,null,null,null,2300,"IR"]
[{"$f":"'B2-FinPerf SC'!A15","v":"Housing"},null,{"$f":"-SUMIFS(Sheet1!S71_MonthlyOutcomeJul,Sheet1!S71_A2Code,$AC:$AC,Sheet1!S71_ItemType,$AD:$AD)","v":0},{"$f":"-SUMIFS(Sheet1!S71_MonthlyOutcomeAug,Sheet1!S71_A2Code,$AC:$AC,Sheet1!S71_ItemType,$AD:$AD)","v":0},{"$f":"-SUMIFS(Sheet1!S71_MonthlyOutcomeSep,Sheet1!S71_A2Code,$AC:$AC,Sheet1!S71_ItemType,$AD:$AD)","v":0},{"$f":"-SUMIFS(Sheet1!S71_MonthlyOutcomeOct,Sheet1!S71_A2Code,$AC:$AC,Sheet1!S71_ItemType,$AD:$AD)","v":0},{"$f":"-SUMIFS(Sheet1!S71_MonthlyOutcomeNov,Sheet1!S71_A2Code,$AC:$AC,Sheet1!S71_ItemType,$AD:$AD)","v":0},{"$f":"-SUMIFS(Sheet1!S71_MonthlyOutcomeDec,Sheet1!S71_A2Code,$AC:$AC,Sheet1!S71_ItemType,$AD:$AD)","v":0},0,0,0,0,0,0,0,{"$f":"'B2-FinPerf SC'!K15","v":0},{"$f":"'B2-FinPerf SC'!L15","v":0},{"$f":"'B2-FinPerf SC'!M15","v":0},null,null,null,null,null,null,null,null,null,null,2400,"IR"]
[{"$f":"'B2-FinPerf SC'!A16","v":"Health"},null,{"$f":"-SUMIFS(Sheet1!S71_MonthlyOutcomeJul,Sheet1!S71_A2Code,$AC:$AC,Sheet1!S71_ItemType,$AD:$AD)","v":0},{"$f":"-SUMIFS(Sheet1!S71_MonthlyOutcomeAug,Sheet1!S71_A2Code,$AC:$AC,Sheet1!S71_ItemType,$AD:$AD)","v":0},{"$f":"-SUMIFS(Sheet1!S71_MonthlyOutcomeSep,Sheet1!S71_A2Code,$AC:$AC,Sheet1!S71_ItemType,$AD:$AD)","v":0},{"$f":"-SUMIFS(Sheet1!S71_MonthlyOutcomeOct,Sheet1!S71_A2Code,$AC:$AC,Sheet1!S71_ItemType,$AD:$AD)","v":0},{"$f":"-SUMIFS(Sheet1!S71_MonthlyOutcomeNov,Sheet1!S71_A2Code,$AC:$AC,Sheet1!S71_ItemType,$AD:$AD)","v":0},{"$f":"-SUMIFS(Sheet1!S71_MonthlyOutcomeDec,Sheet1!S71_A2Code,$AC:$AC,Sheet1!S71_ItemType,$AD:$AD)","v":0},0,0,0,0,0,0,0,{"$f":"'B2-FinPerf SC'!K16","v":0},{"$f":"'B2-FinPerf SC'!L16","v":0},{"$f":"'B2-FinPerf SC'!M16","v":0},null,null,null,null,null,null,null,null,null,null,2500,"IR"]
[{"$f":"'B2-FinPerf SC'!A17","v":"Economic and environmental services"},null,{"$f":"SUM(C17:C19)","v":2604775.73},3651373.72,5194039.0900000008,4605799.4000000004,5433085.0800000001,4144477.96,2697159.67,2697159.67,2697159.67,2697159.67,2697159.67,2697159.6699999869,41816509,{"$f":"'B2-FinPerf SC'!K17","v":41816509},{"$f":"'B2-FinPerf SC'!L17","v":41817508},{"$f":"'B2-FinPerf SC'!M17","v":43744939},null,null,null,null,null,null,null,null,null,null,null,"IR"]
[{"$f":"'B2-FinPerf SC'!A18","v":"Planning and development"},null,{"$f":"-SUMIFS(Sheet1!S71_MonthlyOutcomeJul,Sheet1!S71_A2Code,$AC:$AC,Sheet1!S71_ItemType,$AD:$AD)","v":578197.74},{"$f":"-SUMIFS(Sheet1!S71_MonthlyOutcomeAug,Sheet1!S71_A2Code,$AC:$AC,Sheet1!S71_ItemType,$AD:$AD)","v":601637.92000000004},{"$f":"-SUMIFS(Sheet1!S71_MonthlyOutcomeSep,Sheet1!S71_A2Code,$AC:$AC,Sheet1!S71_ItemType,$AD:$AD)","v":445605.9},{"$f":"-SUMIFS(Sheet1!S71_MonthlyOutcomeOct,Sheet1!S71_A2Code,$AC:$AC,Sheet1!S71_ItemType,$AD:$AD)","v":437157.68999999994},{"$f":"-SUMIFS(Sheet1!S71_MonthlyOutcomeNov,Sheet1!S71_A2Code,$AC:$AC,Sheet1!S71_ItemType,$AD:$AD)","v":237561.81},{"$f":"-SUMIFS(Sheet1!S71_MonthlyOutcomeDec,Sheet1!S71_A2Code,$AC:$AC,Sheet1!S71_ItemType,$AD:$AD)","v":83550.17},{"$f":"(P17-SUM(C17:H17))/6","v":499630.29499999998},{"$f":"(P17-SUM(C17:H17))/6","v":499630.29499999998},{"$f":"(P17-SUM(C17:H17))/6","v":499630.29499999998},{"$f":"(P17-SUM(C17:H17))/6","v":499630.29499999998},{"$f":"(P17-SUM(C17:H17))/6","v":499630.29499999998},499630.29499999993,5381493,{"$f":"'B2-FinPerf SC'!K18","v":5381493},{"$f":"'B2-FinPerf SC'!L18","v":-2076106},{"$f":"'B2-FinPerf SC'!M18","v":-2168131},null,null,null,null,null,null,null,null,null,null,3100,"IR"]
[{"$f":"'B2-FinPerf SC'!A19","v":"Road transport"},null,{"$f":"-SUMIFS(Sheet1!S71_MonthlyOutcomeJul,Sheet1!S71_A2Code,$AC:$AC,Sheet1!S71_ItemType,$AD:$AD)","v":2026577.99},{"$f":"-SUMIFS(Sheet1!S71_MonthlyOutcomeAug,Sheet1!S71_A2Code,$AC:$AC,Sheet1!S71_ItemType,$AD:$AD)","v":3049735.8000000003},{"$f":"-SUMIFS(Sheet1!S71_MonthlyOutcomeSep,Sheet1!S71_A2Code,$AC:$AC,Sheet1!S71_ItemType,$AD:$AD)","v":4748433.1900000004},{"$f":"-SUMIFS(Sheet1!S71_MonthlyOutcomeOct,Sheet1!S71_A2Code,$AC:$AC,Sheet1!S71_ItemType,$AD:$AD)","v":4168641.71},{"$f":"-SUMIFS(Sheet1!S71_MonthlyOutcomeNov,Sheet1!S71_A2Code,$AC:$AC,Sheet1!S71_ItemType,$AD:$AD)","v":5195523.2700000005},{"$f":"-SUMIFS(Sheet1!S71_MonthlyOutcomeDec,Sheet1!S71_A2Code,$AC:$AC,Sheet1!S71_ItemType,$AD:$AD)","v":4060927.79},2197529.375,2197529.375,2197529.375,2197529.375,2197529.375,2197529.375,36435016,{"$f":"'B2-FinPerf SC'!K19","v":36435016},{"$f":"'B2-FinPerf SC'!L19","v":43893614},{"$f":"'B2-FinPerf SC'!M19","v":45913070},null,null,null,null,null,null,null,null,null,null,3200,"IR"]
[{"$f":"'B2-FinPerf SC'!A20","v":"Environmental protection"},null,{"$f":"-SUMIFS(Sheet1!S71_MonthlyOutcomeJul,Sheet1!S71_A2Code,$AC:$AC,Sheet1!S71_ItemType,$AD:$AD)","v":0},{"$f":"-SUMIFS(Sheet1!S71_MonthlyOutcomeAug,Sheet1!S71_A2Code,$AC:$AC,Sheet1!S71_ItemType,$AD:$AD)","v":0},{"$f":"-SUMIFS(Sheet1!S71_MonthlyOutcomeSep,Sheet1!S71_A2Code,$AC:$AC,Sheet1!S71_ItemType,$AD:$AD)","v":0},{"$f":"-SUMIFS(Sheet1!S71_MonthlyOutcomeOct,Sheet1!S71_A2Code,$AC:$AC,Sheet1!S71_ItemType,$AD:$AD)","v":0},{"$f":"-SUMIFS(Sheet1!S71_MonthlyOutcomeNov,Sheet1!S71_A2Code,$AC:$AC,Sheet1!S71_ItemType,$AD:$AD)","v":0},{"$f":"-SUMIFS(Sheet1!S71_MonthlyOutcomeDec,Sheet1!S71_A2Code,$AC:$AC,Sheet1!S71_ItemType,$AD:$AD)","v":0},0,0,0,0,0,0,0,{"$f":"'B2-FinPerf SC'!K20","v":0},{"$f":"'B2-FinPerf SC'!L20","v":0},{"$f":"'B2-FinPerf SC'!M20","v":0},null,null,null,null,null,null,null,null,null,null,3300,"IR"]
[{"$f":"'B2-FinPerf SC'!A21","v":"Trading services"},null,{"$f":"SUM(C21:C24)","v":52029.96},{"$f":"SUM(D21:D24)","v":52029.96},52029.96,52029.96,52029.96,52029.96,52030.04,52030.04,52030.04,52030.04,52030.04,{"$f":"P20-SUM(C20:M20)","v":52030.040000000037},624360,{"$f":"'B2-FinPerf SC'!K21","v":624360},{"$f":"'B2-FinPerf SC'!L21","v":475011},{"$f":"'B2-FinPerf SC'!M21","v":497811},null,null,null,null,null,null,null,null,null,null,null,"IR"]
[{"$f":"'B2-FinPerf SC'!A22","v":"Energy sources"},null,{"$f":"-SUMIFS(Sheet1!S71_MonthlyOutcomeJul,Sheet1!S71_A2Code,$AC:$AC,Sheet1!S71_ItemType,$AD:$AD)","v":0},{"$f":"-SUMIFS(Sheet1!S71_MonthlyOutcomeAug,Sheet1!S71_A2Code,$AC:$AC,Sheet1!S71_ItemType,$AD:$AD)","v":0},{"$f":"-SUMIFS(Sheet1!S71_MonthlyOutcomeSep,Sheet1!S71_A2Code,$AC:$AC,Sheet1!S71_ItemType,$AD:$AD)","v":0},{"$f":"-SUMIFS(Sheet1!S71_MonthlyOutcomeOct,Sheet1!S71_A2Code,$AC:$AC,Sheet1!S71_ItemType,$AD:$AD)","v":0},{"$f":"-SUMIFS(Sheet1!S71_MonthlyOutcomeNov,Sheet1!S71_A2Code,$AC:$AC,Sheet1!S71_ItemType,$AD:$AD)","v":0},{"$f":"-SUMIFS(Sheet1!S71_MonthlyOutcomeDec,Sheet1!S71_A2Code,$AC:$AC,Sheet1!S71_ItemType,$AD:$AD)","v":0},{"$f":"(P21-SUM(C21:H21))/6","v":0},{"$f":"(P21-SUM(C21:H21))/6","v":0},{"$f":"(P21-SUM(C21:H21))/6","v":0},{"$f":"(P21-SUM(C21:H21))/6","v":0},{"$f":"(P21-SUM(C21:H21))/6","v":0},0,0,{"$f":"'B2-FinPerf SC'!K22","v":0},{"$f":"'B2-FinPerf SC'!L22","v":0},{"$f":"'B2-FinPerf SC'!M22","v":0},null,null,null,null,null,null,null,null,null,null,4100,"IR"]
[{"$f":"'B2-FinPerf SC'!A23","v":"Water management"},null,{"$f":"-SUMIFS(Sheet1!S71_MonthlyOutcomeJul,Sheet1!S71_A2Code,$AC:$AC,Sheet1!S71_ItemType,$AD:$AD)","v":0},{"$f":"-SUMIFS(Sheet1!S71_MonthlyOutcomeAug,Sheet1!S71_A2Code,$AC:$AC,Sheet1!S71_ItemType,$AD:$AD)","v":0},{"$f":"-SUMIFS(Sheet1!S71_MonthlyOutcomeSep,Sheet1!S71_A2Code,$AC:$AC,Sheet1!S71_ItemType,$AD:$AD)","v":0},{"$f":"-SUMIFS(Sheet1!S71_MonthlyOutcomeOct,Sheet1!S71_A2Code,$AC:$AC,Sheet1!S71_ItemType,$AD:$AD)","v":0},{"$f":"-SUMIFS(Sheet1!S71_MonthlyOutcomeNov,Sheet1!S71_A2Code,$AC:$AC,Sheet1!S71_ItemType,$AD:$AD)","v":0},{"$f":"-SUMIFS(Sheet1!S71_MonthlyOutcomeDec,Sheet1!S71_A2Code,$AC:$AC,Sheet1!S71_ItemType,$AD:$AD)","v":0},0,0,0,0,0,0,0,{"$f":"'B2-FinPerf SC'!K23","v":0},{"$f":"'B2-FinPerf SC'!L23","v":0},{"$f":"'B2-FinPerf SC'!M23","v":0},null,null,null,null,null,null,null,null,null,null,4200,"IR"]
[{"$f":"'B2-FinPerf SC'!A24","v":"Waste water management"},null,{"$f":"-SUMIFS(Sheet1!S71_MonthlyOutcomeJul,Sheet1!S71_A2Code,$AC:$AC,Sheet1!S71_ItemType,$AD:$AD)","v":0},{"$f":"-SUMIFS(Sheet1!S71_MonthlyOutcomeAug,Sheet1!S71_A2Code,$AC:$AC,Sheet1!S71_ItemType,$AD:$AD)","v":0},{"$f":"-SUMIFS(Sheet1!S71_MonthlyOutcomeSep,Sheet1!S71_A2Code,$AC:$AC,Sheet1!S71_ItemType,$AD:$AD)","v":0},{"$f":"-SUMIFS(Sheet1!S71_MonthlyOutcomeOct,Sheet1!S71_A2Code,$AC:$AC,Sheet1!S71_ItemType,$AD:$AD)","v":0},{"$f":"-SUMIFS(Sheet1!S71_MonthlyOutcomeNov,Sheet1!S71_A2Code,$AC:$AC,Sheet1!S71_ItemType,$AD:$AD)","v":0},{"$f":"-SUMIFS(Sheet1!S71_MonthlyOutcomeDec,Sheet1!S71_A2Code,$AC:$AC,Sheet1!S71_ItemType,$AD:$AD)","v":0},0,0,0,0,0,0,0,{"$f":"'B2-FinPerf SC'!K24","v":0},{"$f":"'B2-FinPerf SC'!L24","v":0},{"$f":"'B2-FinPerf SC'!M24","v":0},null,null,null,null,null,null,null,null,null,null,4300,"IR"]
[{"$f":"'B2-FinPerf SC'!A25","v":"Waste management"},null,{"$f":"-SUMIFS(Sheet1!S71_MonthlyOutcomeJul,Sheet1!S71_A2Code,$AC:$AC,Sheet1!S71_ItemType,$AD:$AD)","v":52029.96},{"$f":"-SUMIFS(Sheet1!S71_MonthlyOutcomeAug,Sheet1!S71_A2Code,$AC:$AC,Sheet1!S71_ItemType,$AD:$AD)","v":52029.96},{"$f":"-SUMIFS(Sheet1!S71_MonthlyOutcomeSep,Sheet1!S71_A2Code,$AC:$AC,Sheet1!S71_ItemType,$AD:$AD)","v":52029.96},{"$f":"-SUMIFS(Sheet1!S71_MonthlyOutcomeOct,Sheet1!S71_A2Code,$AC:$AC,Sheet1!S71_ItemType,$AD:$AD)","v":52029.96},{"$f":"-SUMIFS(Sheet1!S71_MonthlyOutcomeNov,Sheet1!S71_A2Code,$AC:$AC,Sheet1!S71_ItemType,$AD:$AD)","v":52029.96},{"$f":"-SUMIFS(Sheet1!S71_MonthlyOutcomeDec,Sheet1!S71_A2Code,$AC:$AC,Sheet1!S71_ItemType,$AD:$AD)","v":52029.96},52030.04,52030.04,52030.04,52030.04,52030.04,52030.040000000037,624360,{"$f":"'B2-FinPerf SC'!K25","v":624360},{"$f":"'B2-FinPerf SC'!L25","v":475011},{"$f":"'B2-FinPerf SC'!M25","v":497811},null,null,null,null,null,null,null,null,null,null,4400,"IR"]
[{"$f":"'B2-FinPerf SC'!A26","v":"Other"},null,{"$f":"-SUMIFS(Sheet1!S71_MonthlyOutcomeJul,Sheet1!S71_A2Code,$AC:$AC,Sheet1!S71_ItemType,$AD:$AD)","v":0},{"$f":"-SUMIFS(Sheet1!S71_MonthlyOutcomeAug,Sheet1!S71_A2Code,$AC:$AC,Sheet1!S71_ItemType,$AD:$AD)","v":0},{"$f":"-SUMIFS(Sheet1!S71_MonthlyOutcomeSep,Sheet1!S71_A2Code,$AC:$AC,Sheet1!S71_ItemType,$AD:$AD)","v":0},{"$f":"-SUMIFS(Sheet1!S71_MonthlyOutcomeOct,Sheet1!S71_A2Code,$AC:$AC,Sheet1!S71_ItemType,$AD:$AD)","v":0},{"$f":"-SUMIFS(Sheet1!S71_MonthlyOutcomeNov,Sheet1!S71_A2Code,$AC:$AC,Sheet1!S71_ItemType,$AD:$AD)","v":0},{"$f":"-SUMIFS(Sheet1!S71_MonthlyOutcomeDec,Sheet1!S71_A2Code,$AC:$AC,Sheet1!S71_ItemType,$AD:$AD)","v":0},0,0,0,0,0,0,0,{"$f":"'B2-FinPerf SC'!K26","v":0},{"$f":"'B2-FinPerf SC'!L26","v":0},{"$f":"'B2-FinPerf SC'!M26","v":0},null,null,null,null,null,null,null,null,null,null,5000,"IR"]
["Total Revenue - Functional",null,{"$f":"C6+C10+C16+C20+C25","v":83579851.430000007},{"$f":"D6+D10+D16+D20+D25","v":6114888.7199999997},{"$f":"E6+E10+E16+E20+E25","v":7885404.1400000015},{"$f":"F6+F10+F16+F20+F25","v":7310644.6500000004},8351474.1399999997,69457580.309999987,13447993.268333327,13447993.268333327,13447993.268333327,13447993.268333327,13447993.268333327,13447993.268333364,263387803,263387803,271373148,287644839]
[]
["Expenditure - Functional"]
[{"$f":"A6","v":"Governance and administration"},null,{"$f":"SUM(C30:C32)","v":11613502.190000003},12747713.360000001,8671276.9700000025,17245505.753105,18054448.599999994,12264384,7516099.3544824999,7516099.3544824999,7516099.3544824999,7516099.3544824999,7516099.3544824999,{"$f":"P29-SUM(C29:M29)","v":7516099.3544824868},{"$f":"SUM(C29:N29)","v":125693427},{"$f":"'B2-FinPerf SC'!K30","v":125693427},{"$f":"'B2-FinPerf SC'!L30","v":120404812},{"$f":"'B2-FinPerf SC'!M30","v":127647732}]
["Executive and council",null,{"$f":"SUMIFS(Sheet1!S71_MonthlyOutcomeJul,Sheet1!S71_A2Code,$AC:$AC,Sheet1!S71_ItemType,$AD:$AD)","v":2917814.65},{"$f":"SUMIFS(Sheet1!S71_MonthlyOutcomeAug,Sheet1!S71_A2Code,$AC:$AC,Sheet1!S71_ItemType,$AD:$AD)","v":4717186.53},{"$f":"SUMIFS(Sheet1!S71_MonthlyOutcomeSep,Sheet1!S71_A2Code,$AC:$AC,Sheet1!S71_ItemType,$AD:$AD)","v":2648505.7399999998},{"$f":"SUMIFS(Sheet1!S71_MonthlyOutcomeOct,Sheet1!S71_A2Code,$AC:$AC,Sheet1!S71_ItemType,$AD:$AD)","v":8578267.0500000007},{"$f":"SUMIFS(Sheet1!S71_MonthlyOutcomeNov,Sheet1!S71_A2Code,$AC:$AC,Sheet1!S71_ItemType,$AD:$AD)","v":3934107.1799999988},{"$f":"SUMIFS(Sheet1!S71_MonthlyOutcomeDec,Sheet1!S71_A2Code,$AC:$AC,Sheet1!S71_ItemType,$AD:$AD)","v":4296755.9400000004},{"$f":"(P30-SUM(C30:H30))/6","v":2777566.1516666668},{"$f":"(P30-SUM(C30:H30))/6","v":2777566.1516666668},{"$f":"(P30-SUM(C30:H30))/6","v":2777566.1516666668},{"$f":"(P30-SUM(C30:H30))/6","v":2777566.1516666668},{"$f":"(P30-SUM(C30:H30))/6","v":2777566.1516666668},2777566.151666671,43758034,{"$f":"'B2-FinPerf SC'!K31","v":43758034},{"$f":"'B2-FinPerf SC'!L31","v":35155333},{"$f":"'B2-FinPerf SC'!M31","v":36776676},null,null,null,null,null,null,null,null,null,null,1100,"IE"]
["Finance and administration",null,{"$f":"SUMIFS(Sheet1!S71_MonthlyOutcomeJul,Sheet1!S71_A2Code,$AC:$AC,Sheet1!S71_ItemType,$AD:$AD)","v":8692807.5400000028},{"$f":"SUMIFS(Sheet1!S71_MonthlyOutcomeAug,Sheet1!S71_A2Code,$AC:$AC,Sheet1!S71_ItemType,$AD:$AD)","v":7388058.1300000018},{"$f":"SUMIFS(Sheet1!S71_MonthlyOutcomeSep,Sheet1!S71_A2Code,$AC:$AC,Sheet1!S71_ItemType,$AD:$AD)","v":6022771.2300000023},{"$f":"SUMIFS(Sheet1!S71_MonthlyOutcomeOct,Sheet1!S71_A2Code,$AC:$AC,Sheet1!S71_ItemType,$AD:$AD)","v":8667238.7031050008},{"$f":"SUMIFS(Sheet1!S71_MonthlyOutcomeNov,Sheet1!S71_A2Code,$AC:$AC,Sheet1!S71_ItemType,$AD:$AD)","v":14120341.419999996},{"$f":"SUMIFS(Sheet1!S71_MonthlyOutcomeDec,Sheet1!S71_A2Code,$AC:$AC,Sheet1!S71_ItemType,$AD:$AD)","v":7949932.4099999992},{"$f":"(P31-SUM(C31:H31))/6","v":4570373.9278158331},{"$f":"(P31-SUM(C31:H31))/6","v":4570373.9278158331},{"$f":"(P31-SUM(C31:H31))/6","v":4570373.9278158331},{"$f":"(P31-SUM(C31:H31))/6","v":4570373.9278158331},{"$f":"(P31-SUM(C31:H31))/6","v":4570373.9278158331},4570373.9278158247,80263393,{"$f":"'B2-FinPerf SC'!K32","v":80263393},{"$f":"'B2-FinPerf SC'!L32","v":83525229},{"$f":"'B2-FinPerf SC'!M32","v":89069215},null,null,null,null,null,null,null,null,null,null,1200,"IE"]
["Internal audit",null,{"$f":"SUMIFS(Sheet1!S71_MonthlyOutcomeJul,Sheet1!S71_A2Code,$AC:$AC,Sheet1!S71_ItemType,$AD:$AD)","v":2880},{"$f":"SUMIFS(Sheet1!S71_MonthlyOutcomeAug,Sheet1!S71_A2Code,$AC:$AC,Sheet1!S71_ItemType,$AD:$AD)","v":642468.69999999995},{"$f":"SUMIFS(Sheet1!S71_MonthlyOutcomeSep,Sheet1!S71_A2Code,$AC:$AC,Sheet1!S71_ItemType,$AD:$AD)","v":0},{"$f":"SUMIFS(Sheet1!S71_MonthlyOutcomeOct,Sheet1!S71_A2Code,$AC:$AC,Sheet1!S71_ItemType,$AD:$AD)","v":0},{"$f":"SUMIFS(Sheet1!S71_MonthlyOutcomeNov,Sheet1!S71_A2Code,$AC:$AC,Sheet1!S71_ItemType,$AD:$AD)","v":0},{"$f":"SUMIFS(Sheet1!S71_MonthlyOutcomeDec,Sheet1!S71_A2Code,$AC:$AC,Sheet1!S71_ItemType,$AD:$AD)","v":17695.650000000001},168159.27499999999,168159.27499999999,168159.27499999999,168159.27499999999,168159.27499999999,168159.27500000014,1672000,{"$f":"'B2-FinPerf SC'!K33","v":1672000},{"$f":"'B2-FinPerf SC'!L33","v":1724250},{"$f":"'B2-FinPerf SC'!M33","v":1801841},null,null,null,null,null,null,null,null,null,null,1300,"IE"]
["Community and public safety",null,{"$f":"SUM(C34:C38)","v":2409460.39},5252552.7300000004,4932044.9300000016,5942977.8499999996,3842917.4899999998,4272549.34,3023605.2116666664,3023605.2116666664,3023605.2116666664,3023605.2116666664,3023605.2116666664,3023605.211666666,44794134,{"$f":"'B2-FinPerf SC'!K34","v":44794134},{"$f":"'B2-FinPerf SC'!L34","v":45859886},{"$f":"'B2-FinPerf SC'!M34","v":47916832},null,null,null,null,null,null,null,null,null,null,null,"IE"]
["Community and social services",null,{"$f":"SUMIFS(Sheet1!S71_MonthlyOutcomeJul,Sheet1!S71_A2Code,$AC:$AC,Sheet1!S71_ItemType,$AD:$AD)","v":2375850.73},{"$f":"SUMIFS(Sheet1!S71_MonthlyOutcomeAug,Sheet1!S71_A2Code,$AC:$AC,Sheet1!S71_ItemType,$AD:$AD)","v":5025943.07},{"$f":"SUMIFS(Sheet1!S71_MonthlyOutcomeSep,Sheet1!S71_A2Code,$AC:$AC,Sheet1!S71_ItemType,$AD:$AD)","v":4898435.2700000014},{"$f":"SUMIFS(Sheet1!S71_MonthlyOutcomeOct,Sheet1!S71_A2Code,$AC:$AC,Sheet1!S71_ItemType,$AD:$AD)","v":5250021.8899999997},{"$f":"SUMIFS(Sheet1!S71_MonthlyOutcomeNov,Sheet1!S71_A2Code,$AC:$AC,Sheet1!S71_ItemType,$AD:$AD)","v":3808131.53},{"$f":"SUMIFS(Sheet1!S71_MonthlyOutcomeDec,Sheet1!S71_A2Code,$AC:$AC,Sheet1!S71_ItemType,$AD:$AD)","v":4237763.38},{"$f":"(P34-SUM(C34:H34))/6","v":2989429.188333333},{"$f":"(P34-SUM(C34:H34))/6","v":2989429.188333333},{"$f":"(P34-SUM(C34:H34))/6","v":2989429.188333333},{"$f":"(P34-SUM(C34:H34))/6","v":2989429.188333333},{"$f":"(P34-SUM(C34:H34))/6","v":2989429.188333333},2989429.1883333325,43532721,{"$f":"'B2-FinPerf SC'!K35","v":43532721},{"$f":"'B2-FinPerf SC'!L35","v":43898079},{"$f":"'B2-FinPerf SC'!M35","v":45868992},null,null,null,null,null,null,null,null,null,null,2100,"IE"]
["Sport and recreation",null,{"$f":"SUMIFS(Sheet1!S71_MonthlyOutcomeJul,Sheet1!S71_A2Code,$AC:$AC,Sheet1!S71_ItemType,$AD:$AD)","v":0},{"$f":"SUMIFS(Sheet1!S71_MonthlyOutcomeAug,Sheet1!S71_A2Code,$AC:$AC,Sheet1!S71_ItemType,$AD:$AD)","v":0},{"$f":"SUMIFS(Sheet1!S71_MonthlyOutcomeSep,Sheet1!S71_A2Code,$AC:$AC,Sheet1!S71_ItemType,$AD:$AD)","v":0},{"$f":"SUMIFS(Sheet1!S71_MonthlyOutcomeOct,Sheet1!S71_A2Code,$AC:$AC,Sheet1!S71_ItemType,$AD:$AD)","v":0},{"$f":"SUMIFS(Sheet1!S71_MonthlyOutcomeNov,Sheet1!S71_A2Code,$AC:$AC,Sheet1!S71_ItemType,$AD:$AD)","v":0},{"$f":"SUMIFS(Sheet1!S71_MonthlyOutcomeDec,Sheet1!S71_A2Code,$AC:$AC,Sheet1!S71_ItemType,$AD:$AD)","v":0},0,0,0,0,0,0,0,{"$f":"'B2-FinPerf SC'!K36","v":0},{"$f":"'B2-FinPerf SC'!L36","v":0},{"$f":"'B2-FinPerf SC'!M36","v":0},null,null,null,null,null,null,null,null,null,null,2200,"IE"]
["Public safety",null,{"$f":"SUMIFS(Sheet1!S71_MonthlyOutcomeJul,Sheet1!S71_A2Code,$AC:$AC,Sheet1!S71_ItemType,$AD:$AD)","v":33609.660000000003},{"$f":"SUMIFS(Sheet1!S71_MonthlyOutcomeAug,Sheet1!S71_A2Code,$AC:$AC,Sheet1!S71_ItemType,$AD:$AD)","v":226609.66},{"$f":"SUMIFS(Sheet1!S71_MonthlyOutcomeSep,Sheet1!S71_A2Code,$AC:$AC,Sheet1!S71_ItemType,$AD:$AD)","v":33609.660000000003},{"$f":"SUMIFS(Sheet1!S71_MonthlyOutcomeOct,Sheet1!S71_A2Code,$AC:$AC,Sheet1!S71_ItemType,$AD:$AD)","v":692955.96},{"$f":"SUMIFS(Sheet1!S71_MonthlyOutcomeNov,Sheet1!S71_A2Code,$AC:$AC,Sheet1!S71_ItemType,$AD:$AD)","v":34785.96},{"$f":"SUMIFS(Sheet1!S71_MonthlyOutcomeDec,Sheet1!S71_A2Code,$AC:$AC,Sheet1!S71_ItemType,$AD:$AD)","v":34785.96},34176.023333333353,34176.023333333353,34176.023333333353,34176.023333333353,34176.023333333353,34176.023333332967,1261413,{"$f":"'B2-FinPerf SC'!K37","v":1261413},{"$f":"'B2-FinPerf SC'!L37","v":1961807},{"$f":"'B2-FinPerf SC'!M37","v":2047840},null,null,null,null,null,null,null,null,null,null,2300,"IE"]
["Housing",null,{"$f":"SUMIFS(Sheet1!S71_MonthlyOutcomeJul,Sheet1!S71_A2Code,$AC:$AC,Sheet1!S71_ItemType,$AD:$AD)","v":0},{"$f":"SUMIFS(Sheet1!S71_MonthlyOutcomeAug,Sheet1!S71_A2Code,$AC:$AC,Sheet1!S71_ItemType,$AD:$AD)","v":0},{"$f":"SUMIFS(Sheet1!S71_MonthlyOutcomeSep,Sheet1!S71_A2Code,$AC:$AC,Sheet1!S71_ItemType,$AD:$AD)","v":0},{"$f":"SUMIFS(Sheet1!S71_MonthlyOutcomeOct,Sheet1!S71_A2Code,$AC:$AC,Sheet1!S71_ItemType,$AD:$AD)","v":0},{"$f":"SUMIFS(Sheet1!S71_MonthlyOutcomeNov,Sheet1!S71_A2Code,$AC:$AC,Sheet1!S71_ItemType,$AD:$AD)","v":0},{"$f":"SUMIFS(Sheet1!S71_MonthlyOutcomeDec,Sheet1!S71_A2Code,$AC:$AC,Sheet1!S71_ItemType,$AD:$AD)","v":0},0,0,0,0,0,0,0,{"$f":"'B2-FinPerf SC'!K38","v":0},{"$f":"'B2-FinPerf SC'!L38","v":0},{"$f":"'B2-FinPerf SC'!M38","v":0},null,null,null,null,null,null,null,null,null,null,2400,"IE"]
["Health",null,{"$f":"SUMIFS(Sheet1!S71_MonthlyOutcomeJul,Sheet1!S71_A2Code,$AC:$AC,Sheet1!S71_ItemType,$AD:$AD)","v":0},{"$f":"SUMIFS(Sheet1!S71_MonthlyOutcomeAug,Sheet1!S71_A2Code,$AC:$AC,Sheet1!S71_ItemType,$AD:$AD)","v":0},{"$f":"SUMIFS(Sheet1!S71_MonthlyOutcomeSep,Sheet1!S71_A2Code,$AC:$AC,Sheet1!S71_ItemType,$AD:$AD)","v":0},{"$f":"SUMIFS(Sheet1!S71_MonthlyOutcomeOct,Sheet1!S71_A2Code,$AC:$AC,Sheet1!S71_ItemType,$AD:$AD)","v":0},{"$f":"SUMIFS(Sheet1!S71_MonthlyOutcomeNov,Sheet1!S71_A2Code,$AC:$AC,Sheet1!S71_ItemType,$AD:$AD)","v":0},{"$f":"SUMIFS(Sheet1!S71_MonthlyOutcomeDec,Sheet1!S71_A2Code,$AC:$AC,Sheet1!S71_ItemType,$AD:$AD)","v":0},0,0,0,0,0,0,null,{"$f":"'B2-FinPerf SC'!K39","v":0},{"$f":"'B2-FinPerf SC'!L39","v":0},{"$f":"'B2-FinPerf SC'!M39","v":0},null,null,null,null,null,null,null,null,null,null,2500,"IE"]
["Economic and environmental services",null,{"$f":"SUM(C40:C42)","v":2635964.12},3790806.36,2804437.44,4089248.9000000004,2351861.37,3266207.8499999996,4173830.66,4173830.66,4173830.66,4173830.66,4173830.66,4173830.6599999964,null,{"$f":"'B2-FinPerf SC'!K40","v":43981510},{"$f":"'B2-FinPerf SC'!L40","v":53182770},{"$f":"'B2-FinPerf SC'!M40","v":55575999},null,null,null,null,null,null,null,null,null,null,null,"IE"]
["Planning and development",null,{"$f":"SUMIFS(Sheet1!S71_MonthlyOutcomeJul,Sheet1!S71_A2Code,$AC:$AC,Sheet1!S71_ItemType,$AD:$AD)","v":1650830.23},{"$f":"SUMIFS(Sheet1!S71_MonthlyOutcomeAug,Sheet1!S71_A2Code,$AC:$AC,Sheet1!S71_ItemType,$AD:$AD)","v":1371928.9099999997},{"$f":"SUMIFS(Sheet1!S71_MonthlyOutcomeSep,Sheet1!S71_A2Code,$AC:$AC,Sheet1!S71_ItemType,$AD:$AD)","v":1340927.26},{"$f":"SUMIFS(Sheet1!S71_MonthlyOutcomeOct,Sheet1!S71_A2Code,$AC:$AC,Sheet1!S71_ItemType,$AD:$AD)","v":1868223.63},{"$f":"SUMIFS(Sheet1!S71_MonthlyOutcomeNov,Sheet1!S71_A2Code,$AC:$AC,Sheet1!S71_ItemType,$AD:$AD)","v":1442333.26},{"$f":"SUMIFS(Sheet1!S71_MonthlyOutcomeDec,Sheet1!S71_A2Code,$AC:$AC,Sheet1!S71_ItemType,$AD:$AD)","v":2017370.0799999998},{"$f":"(P40-SUM(C40:H40))/6","v":3203411.271666667},{"$f":"(P40-SUM(C40:H40))/6","v":3203411.271666667},{"$f":"(P40-SUM(C40:H40))/6","v":3203411.271666667},{"$f":"(P40-SUM(C40:H40))/6","v":3203411.271666667},{"$f":"(P40-SUM(C40:H40))/6","v":3203411.271666667},3203411.2716666646,null,{"$f":"'B2-FinPerf SC'!K41","v":28912081},{"$f":"'B2-FinPerf SC'!L41","v":37540192},{"$f":"'B2-FinPerf SC'!M41","v":39229502},null,null,null,null,null,null,null,null,null,null,3100,"IE"]
["Road transport",null,{"$f":"SUMIFS(Sheet1!S71_MonthlyOutcomeJul,Sheet1!S71_A2Code,$AC:$AC,Sheet1!S71_ItemType,$AD:$AD)","v":985133.89},{"$f":"SUMIFS(Sheet1!S71_MonthlyOutcomeAug,Sheet1!S71_A2Code,$AC:$AC,Sheet1!S71_ItemType,$AD:$AD)","v":2418877.4500000002},{"$f":"SUMIFS(Sheet1!S71_MonthlyOutcomeSep,Sheet1!S71_A2Code,$AC:$AC,Sheet1!S71_ItemType,$AD:$AD)","v":1463510.18},{"$f":"SUMIFS(Sheet1!S71_MonthlyOutcomeOct,Sheet1!S71_A2Code,$AC:$AC,Sheet1!S71_ItemType,$AD:$AD)","v":2221025.2700000005},{"$f":"SUMIFS(Sheet1!S71_MonthlyOutcomeNov,Sheet1!S71_A2Code,$AC:$AC,Sheet1!S71_ItemType,$AD:$AD)","v":909528.1100000001},{"$f":"SUMIFS(Sheet1!S71_MonthlyOutcomeDec,Sheet1!S71_A2Code,$AC:$AC,Sheet1!S71_ItemType,$AD:$AD)","v":1248837.77},970419.38833333307,970419.38833333307,970419.38833333307,970419.38833333307,970419.38833333307,970419.38833332993,null,{"$f":"'B2-FinPerf SC'!K42","v":15069429},{"$f":"'B2-FinPerf SC'!L42","v":15642578},{"$f":"'B2-FinPerf SC'!M42","v":16346497},null,null,null,null,null,null,null,null,null,null,3200,"IE"]
["Environmental protection",null,{"$f":"SUMIFS(Sheet1!S71_MonthlyOutcomeJul,Sheet1!S71_A2Code,$AC:$AC,Sheet1!S71_ItemType,$AD:$AD)","v":0},{"$f":"SUMIFS(Sheet1!S71_MonthlyOutcomeAug,Sheet1!S71_A2Code,$AC:$AC,Sheet1!S71_ItemType,$AD:$AD)","v":0},{"$f":"SUMIFS(Sheet1!S71_MonthlyOutcomeSep,Sheet1!S71_A2Code,$AC:$AC,Sheet1!S71_ItemType,$AD:$AD)","v":0},{"$f":"SUMIFS(Sheet1!S71_MonthlyOutcomeOct,Sheet1!S71_A2Code,$AC:$AC,Sheet1!S71_ItemType,$AD:$AD)","v":0},{"$f":"SUMIFS(Sheet1!S71_MonthlyOutcomeNov,Sheet1!S71_A2Code,$AC:$AC,Sheet1!S71_ItemType,$AD:$AD)","v":0},{"$f":"SUMIFS(Sheet1!S71_MonthlyOutcomeDec,Sheet1!S71_A2Code,$AC:$AC,Sheet1!S71_ItemType,$AD:$AD)","v":0},0,0,0,0,0,0,null,{"$f":"'B2-FinPerf SC'!K43","v":0},{"$f":"'B2-FinPerf SC'!L43","v":0},{"$f":"'B2-FinPerf SC'!M43","v":0},null,null,null,null,null,null,null,null,null,null,3300,"IE"]
["Trading services",null,{"$f":"SUM(C44:C47)","v":1083822.3999999999},{"$f":"SUM(D44:D47)","v":1179128.76},1351575.94,2289121.0699999998,805151.07,808989.61,26940.691666666622,26940.691666666622,26940.691666666622,26940.691666666622,26940.691666666622,{"$f":"P43-SUM(C43:M43)","v":26940.69166666735},{"$f":"SUM(C43:N43)","v":7679433},{"$f":"'B2-FinPerf SC'!K44","v":7679433},{"$f":"'B2-FinPerf SC'!L44","v":2717455},{"$f":"'B2-FinPerf SC'!M44","v":2808799},null,null,null,null,null,null,null,null,null,null,null,"IE"]
["Energy sources",null,{"$f":"SUMIFS(Sheet1!S71_MonthlyOutcomeJul,Sheet1!S71_A2Code,$AC:$AC,Sheet1!S71_ItemType,$AD:$AD)","v":24422.400000000001},{"$f":"SUMIFS(Sheet1!S71_MonthlyOutcomeAug,Sheet1!S71_A2Code,$AC:$AC,Sheet1!S71_ItemType,$AD:$AD)","v":27128.76},{"$f":"SUMIFS(Sheet1!S71_MonthlyOutcomeSep,Sheet1!S71_A2Code,$AC:$AC,Sheet1!S71_ItemType,$AD:$AD)","v":26324.910000000003},{"$f":"SUMIFS(Sheet1!S71_MonthlyOutcomeOct,Sheet1!S71_A2Code,$AC:$AC,Sheet1!S71_ItemType,$AD:$AD)","v":25751.07},{"$f":"SUMIFS(Sheet1!S71_MonthlyOutcomeNov,Sheet1!S71_A2Code,$AC:$AC,Sheet1!S71_ItemType,$AD:$AD)","v":25751.07},{"$f":"SUMIFS(Sheet1!S71_MonthlyOutcomeDec,Sheet1!S71_A2Code,$AC:$AC,Sheet1!S71_ItemType,$AD:$AD)","v":29589.61},{"$f":"(P44-SUM(C44:H44))/6","v":43781.53},{"$f":"(P44-SUM(C44:H44))/6","v":43781.53},{"$f":"(P44-SUM(C44:H44))/6","v":43781.53},{"$f":"(P44-SUM(C44:H44))/6","v":43781.53},{"$f":"(P44-SUM(C44:H44))/6","v":43781.53},43781.529999999912,{"$f":"SUM(C44:N44)","v":421657},{"$f":"'B2-FinPerf SC'!K45","v":421657},{"$f":"'B2-FinPerf SC'!L45","v":571657},{"$f":"'B2-FinPerf SC'!M45","v":597381},null,null,null,null,null,null,null,null,null,null,4100,"IE"]
["Water management",null,{"$f":"SUMIFS(Sheet1!S71_MonthlyOutcomeJul,Sheet1!S71_A2Code,$AC:$AC,Sheet1!S71_ItemType,$AD:$AD)","v":0},{"$f":"SUMIFS(Sheet1!S71_MonthlyOutcomeAug,Sheet1!S71_A2Code,$AC:$AC,Sheet1!S71_ItemType,$AD:$AD)","v":0},{"$f":"SUMIFS(Sheet1!S71_MonthlyOutcomeSep,Sheet1!S71_A2Code,$AC:$AC,Sheet1!S71_ItemType,$AD:$AD)","v":0},{"$f":"SUMIFS(Sheet1!S71_MonthlyOutcomeOct,Sheet1!S71_A2Code,$AC:$AC,Sheet1!S71_ItemType,$AD:$AD)","v":0},{"$f":"SUMIFS(Sheet1!S71_MonthlyOutcomeNov,Sheet1!S71_A2Code,$AC:$AC,Sheet1!S71_ItemType,$AD:$AD)","v":0},{"$f":"SUMIFS(Sheet1!S71_MonthlyOutcomeDec,Sheet1!S71_A2Code,$AC:$AC,Sheet1!S71_ItemType,$AD:$AD)","v":0},0,0,0,0,0,0,null,{"$f":"'B2-FinPerf SC'!K46","v":0},{"$f":"'B2-FinPerf SC'!L46","v":0},{"$f":"'B2-FinPerf SC'!M46","v":0},null,null,null,null,null,null,null,null,null,null,4200,"IE"]
["Waste water management",null,{"$f":"SUMIFS(Sheet1!S71_MonthlyOutcomeJul,Sheet1!S71_A2Code,$AC:$AC,Sheet1!S71_ItemType,$AD:$AD)","v":0},{"$f":"SUMIFS(Sheet1!S71_MonthlyOutcomeAug,Sheet1!S71_A2Code,$AC:$AC,Sheet1!S71_ItemType,$AD:$AD)","v":0},{"$f":"SUMIFS(Sheet1!S71_MonthlyOutcomeSep,Sheet1!S71_A2Code,$AC:$AC,Sheet1!S71_ItemType,$AD:$AD)","v":0},{"$f":"SUMIFS(Sheet1!S71_MonthlyOutcomeOct,Sheet1!S71_A2Code,$AC:$AC,Sheet1!S71_ItemType,$AD:$AD)","v":0},{"$f":"SUMIFS(Sheet1!S71_MonthlyOutcomeNov,Sheet1!S71_A2Code,$AC:$AC,Sheet1!S71_ItemType,$AD:$AD)","v":0},{"$f":"SUMIFS(Sheet1!S71_MonthlyOutcomeDec,Sheet1!S71_A2Code,$AC:$AC,Sheet1!S71_ItemType,$AD:$AD)","v":0},0,0,0,0,0,0,null,{"$f":"'B2-FinPerf SC'!K47","v":0},{"$f":"'B2-FinPerf SC'!L47","v":0},{"$f":"'B2-FinPerf SC'!M47","v":0},null,null,null,null,null,null,null,null,null,null,4300,"IE"]
["Waste management",null,{"$f":"SUMIFS(Sheet1!S71_MonthlyOutcomeJul,Sheet1!S71_A2Code,$AC:$AC,Sheet1!S71_ItemType,$AD:$AD)","v":1059400},{"$f":"SUMIFS(Sheet1!S71_MonthlyOutcomeAug,Sheet1!S71_A2Code,$AC:$AC,Sheet1!S71_ItemType,$AD:$AD)","v":1152000},{"$f":"SUMIFS(Sheet1!S71_MonthlyOutcomeSep,Sheet1!S71_A2Code,$AC:$AC,Sheet1!S71_ItemType,$AD:$AD)","v":1325251.03},{"$f":"SUMIFS(Sheet1!S71_MonthlyOutcomeOct,Sheet1!S71_A2Code,$AC:$AC,Sheet1!S71_ItemType,$AD:$AD)","v":2263370},{"$f":"SUMIFS(Sheet1!S71_MonthlyOutcomeNov,Sheet1!S71_A2Code,$AC:$AC,Sheet1!S71_ItemType,$AD:$AD)","v":779400},{"$f":"SUMIFS(Sheet1!S71_MonthlyOutcomeDec,Sheet1!S71_A2Code,$AC:$AC,Sheet1!S71_ItemType,$AD:$AD)","v":779400},-16840.838333333377,-16840.838333333377,-16840.838333333377,-16840.838333333377,-16840.838333333377,-16840.838333334774,null,{"$f":"'B2-FinPerf SC'!K48","v":7257776},{"$f":"'B2-FinPerf SC'!L48","v":2145798},{"$f":"'B2-FinPerf SC'!M48","v":2211418},null,null,null,null,null,null,null,null,null,null,4400,"IE"]
["Other",null,{"$f":"SUMIFS(Sheet1!S71_MonthlyOutcomeJul,Sheet1!S71_A2Code,$AC:$AC,Sheet1!S71_ItemType,$AD:$AD)","v":0},{"$f":"SUMIFS(Sheet1!S71_MonthlyOutcomeAug,Sheet1!S71_A2Code,$AC:$AC,Sheet1!S71_ItemType,$AD:$AD)","v":0},{"$f":"SUMIFS(Sheet1!S71_MonthlyOutcomeSep,Sheet1!S71_A2Code,$AC:$AC,Sheet1!S71_ItemType,$AD:$AD)","v":0},{"$f":"SUMIFS(Sheet1!S71_MonthlyOutcomeOct,Sheet1!S71_A2Code,$AC:$AC,Sheet1!S71_ItemType,$AD:$AD)","v":0},{"$f":"SUMIFS(Sheet1!S71_MonthlyOutcomeNov,Sheet1!S71_A2Code,$AC:$AC,Sheet1!S71_ItemType,$AD:$AD)","v":0},{"$f":"SUMIFS(Sheet1!S71_MonthlyOutcomeDec,Sheet1!S71_A2Code,$AC:$AC,Sheet1!S71_ItemType,$AD:$AD)","v":0},{"$f":"(P48-SUM(C48:H48))/6","v":29231.666666666668},{"$f":"(P48-SUM(C48:H48))/6","v":29231.666666666668},{"$f":"(P48-SUM(C48:H48))/6","v":29231.666666666668},{"$f":"(P48-SUM(C48:H48))/6","v":29231.666666666668},{"$f":"(P48-SUM(C48:H48))/6","v":29231.666666666668},29231.666666666657,null,{"$f":"'B2-FinPerf SC'!K49","v":175390},{"$f":"'B2-FinPerf SC'!L49","v":52250},{"$f":"'B2-FinPerf SC'!M49","v":54601},null,null,null,null,null,null,null,null,null,null,5000,"IE"]
["Total Expenditure - Functional",null,{"$f":"C29+C33+C39+C43+C48","v":17742749.100000001},{"$f":"D29+D33+D39+D43+D48","v":22970201.210000005},{"$f":"E29+E33+E39+E43+E48","v":17759335.280000005},{"$f":"F29+F33+F39+F43+F48","v":29566853.573105},25054378.529999994,20612130.799999997,14769707.584482498,14769707.584482498,14769707.584482498,14769707.584482498,{"$f":"M29+M33+M39+M43+M48","v":14769707.584482498},14769707.584482482,178166994,222323894,222217173,234003963]
[]
["Surplus/ (Deficit) 1.",null,{"$f":"C26-C49","v":65837102.330000006},-16855312.490000006,-9873931.1400000043,-22256208.923105001,-16702904.389999993,48845449.50999999,-1321714.3161491714,-1321714.3161491714,-1321714.3161491714,-1321714.3161491714,-1321714.3161491714,-1321714.3161491174,85220809,41063909,49155975,53640876]
[{"$f":"head27a","v":"References"}]
["1. Surplus (Deficit) must reconcile with budget table A3 and monthly budget statement table C3"]

{"sheet":"SB14","index":52,"n_rows":45,"n_cols":29,"rows_kept":45,"cut":false,"hidden":false,"merged":[[1,0,2,0],[1,1,2,1],[1,2,1,13]]}
[{"$f":"muni&\" - \"&ADJB14&\" - \"&Date","v":"EC139 Enoch Mgijima - Supporting Table SB14 Adjustments Budget - monthly revenue and expenditure - "}]
[{"$f":"desc","v":"Description"},{"$f":"head27","v":"Ref"},{"$f":"Head2","v":"Budget Year 2021/22"},null,null,null,null,null,null,null,null,null,null,null,null,"Medium Term Revenue and Expenditure Framework",null,null,null,null,null,null,null,null,null,null,null,null,"Code"]
[null,null,"July","August","Sept.","October","November","December","January","February","March","April","May","June","Full year budget",{"$f":"Head9","v":"Budget Year 2021/22"},{"$f":"Head10","v":"Budget Year +1 2022/23"},{"$f":"Head11","v":"Budget Year +2 2023/24"}]
["R thousands",null,{"$f":"Head5A","v":"Outcome"},"Outcome","Outcome","Outcome","Outcome","Outcome",{"$f":"Head7","v":"Adjusted Budget"},"Adjusted Budget","Adjusted Budget","Adjusted Budget","Adjusted Budget","Adjusted Budget",null,{"$f":"Head7","v":"Adjusted Budget"},{"$f":"Head7","v":"Adjusted Budget"},{"$f":"Head7","v":"Adjusted Budget"}]
["Revenue By Source"]
[{"$f":"'B4-FinPerf RE'!A7","v":"Property rates"},null,{"$f":"-SUMIFS(Sheet1!S71_MonthlyOutcomeJul,Sheet1!S71_A4Code,$AC:$AC)","v":1949383.6900000002},{"$f":"-SUMIFS(Sheet1!S71_MonthlyOutcomeAug,Sheet1!S71_A4Code,$AC:$AC)","v":1918533.07},{"$f":"-SUMIFS(Sheet1!S71_MonthlyOutcomeSep,Sheet1!S71_A4Code,$AC:$AC)","v":1918533.07},{"$f":"-SUMIFS(Sheet1!S71_MonthlyOutcomeOct,Sheet1!S71_A4Code,$AC:$AC)","v":1918533.07},{"$f":"-SUMIFS(Sheet1!S71_MonthlyOutcomeNov,Sheet1!S71_A4Code,$AC:$AC)","v":1918533.07},{"$f":"-SUMIFS(Sheet1!S71_MonthlyOutcomeDec,Sheet1!S71_A4Code,$AC:$AC)","v":1918533.07},{"$f":"(P6-SUM(C6:H6))/6","v":1573931.8266666664},{"$f":"(P6-SUM(C6:H6))/6","v":1573931.8266666664},{"$f":"(P6-SUM(C6:H6))/6","v":1573931.8266666664},{"$f":"(P6-SUM(C6:H6))/6","v":1573931.8266666664},{"$f":"(P6-SUM(C6:H6))/6","v":1573931.8266666664},{"$f":"P6-SUM(C6:M6)","v":1573931.8266666643},{"$f":"SUM(C6:N6)","v":20985640},{"$f":"'B4-FinPerf RE'!K7","v":20985640},{"$f":"'B4-FinPerf RE'!L7","v":19125849},{"$f":"'B4-FinPerf RE'!M7","v":20051518},null,null,null,null,null,null,null,null,null,null,"0200"]
[{"$f":"'B4-FinPerf RE'!A8","v":"Service charges - electricity revenue"},null,{"$f":"-SUMIFS(Sheet1!S71_MonthlyOutcomeJul,Sheet1!S71_A4Code,$AC:$AC)","v":0},{"$f":"-SUMIFS(Sheet1!S71_MonthlyOutcomeAug,Sheet1!S71_A4Code,$AC:$AC)","v":0},{"$f":"-SUMIFS(Sheet1!S71_MonthlyOutcomeSep,Sheet1!S71_A4Code,$AC:$AC)","v":0},{"$f":"-SUMIFS(Sheet1!S71_MonthlyOutcomeOct,Sheet1!S71_A4Code,$AC:$AC)","v":0},{"$f":"-SUMIFS(Sheet1!S71_MonthlyOutcomeNov,Sheet1!S71_A4Code,$AC:$AC)","v":0},{"$f":"-SUMIFS(Sheet1!S71_MonthlyOutcomeDec,Sheet1!S71_A4Code,$AC:$AC)","v":0},{"$f":"(P7-SUM(C7:H7))/6","v":0},{"$f":"(P7-SUM(C7:H7))/6","v":0},{"$f":"(P7-SUM(C7:H7))/6","v":0},{"$f":"(P7-SUM(C7:H7))/6","v":0},{"$f":"(P7-SUM(C7:H7))/6","v":0},0,0,{"$f":"'B4-FinPerf RE'!K8","v":0},{"$f":"'B4-FinPerf RE'!L8","v":0},{"$f":"'B4-FinPerf RE'!M8","v":0},null,null,null,null,null,null,null,null,null,null,"0300"]
[{"$f":"'B4-FinPerf RE'!A9","v":"Service charges - water revenue"},null,{"$f":"-SUMIFS(Sheet1!S71_MonthlyOutcomeJul,Sheet1!S71_A4Code,$AC:$AC)","v":0},{"$f":"-SUMIFS(Sheet1!S71_MonthlyOutcomeAug,Sheet1!S71_A4Code,$AC:$AC)","v":0},{"$f":"-SUMIFS(Sheet1!S71_MonthlyOutcomeSep,Sheet1!S71_A4Code,$AC:$AC)","v":0},{"$f":"-SUMIFS(Sheet1!S71_MonthlyOutcomeOct,Sheet1!S71_A4Code,$AC:$AC)","v":0},{"$f":"-SUMIFS(Sheet1!S71_MonthlyOutcomeNov,Sheet1!S71_A4Code,$AC:$AC)","v":0},{"$f":"-SUMIFS(Sheet1!S71_MonthlyOutcomeDec,Sheet1!S71_A4Code,$AC:$AC)","v":0},{"$f":"(P8-SUM(C8:H8))/6","v":0},{"$f":"(P8-SUM(C8:H8))/6","v":0},{"$f":"(P8-SUM(C8:H8))/6","v":0},{"$f":"(P8-SUM(C8:H8))/6","v":0},{"$f":"(P8-SUM(C8:H8))/6","v":0},0,0,{"$f":"'B4-FinPerf RE'!K9","v":0},{"$f":"'B4-FinPerf RE'!L9","v":0},{"$f":"'B4-FinPerf RE'!M9","v":0},null,null,null,null,null,null,null,null,null,null,"0400"]
[{"$f":"'B4-FinPerf RE'!A10","v":"Service charges - sanitation revenue"},null,{"$f":"-SUMIFS(Sheet1!S71_MonthlyOutcomeJul,Sheet1!S71_A4Code,$AC:$AC)","v":0},{"$f":"-SUMIFS(Sheet1!S71_MonthlyOutcomeAug,Sheet1!S71_A4Code,$AC:$AC)","v":0},{"$f":"-SUMIFS(Sheet1!S71_MonthlyOutcomeSep,Sheet1!S71_A4Code,$AC:$AC)","v":0},{"$f":"-SUMIFS(Sheet1!S71_MonthlyOutcomeOct,Sheet1!S71_A4Code,$AC:$AC)","v":0},{"$f":"-SUMIFS(Sheet1!S71_MonthlyOutcomeNov,Sheet1!S71_A4Code,$AC:$AC)","v":0},{"$f":"-SUMIFS(Sheet1!S71_MonthlyOutcomeDec,Sheet1!S71_A4Code,$AC:$AC)","v":0},0,0,0,0,0,0,0,{"$f":"'B4-FinPerf RE'!K10","v":0},{"$f":"'B4-FinPerf RE'!L10","v":0},{"$f":"'B4-FinPerf RE'!M10","v":0},null,null,null,null,null,null,null,null,null,null,"0500"]
[{"$f":"'B4-FinPerf RE'!A11","v":"Service charges - refuse revenue"},null,{"$f":"-SUMIFS(Sheet1!S71_MonthlyOutcomeJul,Sheet1!S71_A4Code,$AC:$AC)","v":52029.96},{"$f":"-SUMIFS(Sheet1!S71_MonthlyOutcomeAug,Sheet1!S71_A4Code,$AC:$AC)","v":52029.96},{"$f":"-SUMIFS(Sheet1!S71_MonthlyOutcomeSep,Sheet1!S71_A4Code,$AC:$AC)","v":52029.96},{"$f":"-SUMIFS(Sheet1!S71_MonthlyOutcomeOct,Sheet1!S71_A4Code,$AC:$AC)","v":52029.96},{"$f":"-SUMIFS(Sheet1!S71_MonthlyOutcomeNov,Sheet1!S71_A4Code,$AC:$AC)","v":52029.96},{"$f":"-SUMIFS(Sheet1!S71_MonthlyOutcomeDec,Sheet1!S71_A4Code,$AC:$AC)","v":52029.96},52030.04,52030.04,52030.04,52030.04,52030.04,52030.040000000037,624360,{"$f":"'B4-FinPerf RE'!K11","v":624360},{"$f":"'B4-FinPerf RE'!L11","v":475011},{"$f":"'B4-FinPerf RE'!M11","v":497811},null,null,null,null,null,null,null,null,null,null,"0600"]
[{"$f":"'B4-FinPerf RE'!A12","v":0},null,{"$f":"-SUMIFS(Sheet1!S71_MonthlyOutcomeJul,Sheet1!S71_A4Code,$AC:$AC)","v":0},{"$f":"-SUMIFS(Sheet1!S71_MonthlyOutcomeAug,Sheet1!S71_A4Code,$AC:$AC)","v":0},{"$f":"-SUMIFS(Sheet1!S71_MonthlyOutcomeSep,Sheet1!S71_A4Code,$AC:$AC)","v":0},{"$f":"-SUMIFS(Sheet1!S71_MonthlyOutcomeOct,Sheet1!S71_A4Code,$AC:$AC)","v":0},{"$f":"-SUMIFS(Sheet1!S71_MonthlyOutcomeNov,Sheet1!S71_A4Code,$AC:$AC)","v":0},{"$f":"-SUMIFS(Sheet1!S71_MonthlyOutcomeDec,Sheet1!S71_A4Code,$AC:$AC)","v":0},0,0,0,0,0]
[{"$f":"'B4-FinPerf RE'!A13","v":"Rental of facilities and equipment"},null,{"$f":"-SUMIFS(Sheet1!S71_MonthlyOutcomeJul,Sheet1!S71_A4Code,$AC:$AC)","v":33852.57},{"$f":"-SUMIFS(Sheet1!S71_MonthlyOutcomeAug,Sheet1!S71_A4Code,$AC:$AC)","v":33156.92},{"$f":"-SUMIFS(Sheet1!S71_MonthlyOutcomeSep,Sheet1!S71_A4Code,$AC:$AC)","v":33156.92},{"$f":"-SUMIFS(Sheet1!S71_MonthlyOutcomeOct,Sheet1!S71_A4Code,$AC:$AC)","v":34842.25},{"$f":"-SUMIFS(Sheet1!S71_MonthlyOutcomeNov,Sheet1!S71_A4Code,$AC:$AC)","v":34146.6},{"$f":"-SUMIFS(Sheet1!S71_MonthlyOutcomeDec,Sheet1!S71_A4Code,$AC:$AC)","v":34184.17},33973.928333333337,33973.928333333337,33973.928333333337,33973.928333333337,33973.928333333337,33973.928333333286,407183,{"$f":"'B4-FinPerf RE'!K13","v":407183},{"$f":"'B4-FinPerf RE'!L13","v":412933},{"$f":"'B4-FinPerf RE'!M13","v":432754},null,null,null,null,null,null,null,null,null,null,"0800"]
[{"$f":"'B4-FinPerf RE'!A14","v":"Interest earned - external investments"},null,{"$f":"-SUMIFS(Sheet1!S71_MonthlyOutcomeJul,Sheet1!S71_A4Code,$AC:$AC)","v":127006.15},{"$f":"-SUMIFS(Sheet1!S71_MonthlyOutcomeAug,Sheet1!S71_A4Code,$AC:$AC)","v":193236.53000000003},{"$f":"-SUMIFS(Sheet1!S71_MonthlyOutcomeSep,Sheet1!S71_A4Code,$AC:$AC)","v":224558.15},{"$f":"-SUMIFS(Sheet1!S71_MonthlyOutcomeOct,Sheet1!S71_A4Code,$AC:$AC)","v":161242.15},{"$f":"-SUMIFS(Sheet1!S71_MonthlyOutcomeNov,Sheet1!S71_A4Code,$AC:$AC)","v":112708.26},{"$f":"-SUMIFS(Sheet1!S71_MonthlyOutcomeDec,Sheet1!S71_A4Code,$AC:$AC)","v":273159.69000000006},175668.01166666663,175668.01166666663,175668.01166666663,175668.01166666663,175668.01166666663,175668.01166666625,2145919,{"$f":"'B4-FinPerf RE'!K14","v":2145919},{"$f":"'B4-FinPerf RE'!L14","v":7523395},{"$f":"'B4-FinPerf RE'!M14","v":7884517},null,null,null,null,null,null,null,null,null,null,"0900"]
[{"$f":"'B4-FinPerf RE'!A15","v":"Interest earned - outstanding debtors"},null,{"$f":"-SUMIFS(Sheet1!S71_MonthlyOutcomeJul,Sheet1!S71_A4Code,$AC:$AC)","v":0},{"$f":"-SUMIFS(Sheet1!S71_MonthlyOutcomeAug,Sheet1!S71_A4Code,$AC:$AC)","v":0},{"$f":"-SUMIFS(Sheet1!S71_MonthlyOutcomeSep,Sheet1!S71_A4Code,$AC:$AC)","v":0},{"$f":"-SUMIFS(Sheet1!S71_MonthlyOutcomeOct,Sheet1!S71_A4Code,$AC:$AC)","v":0},{"$f":"-SUMIFS(Sheet1!S71_MonthlyOutcomeNov,Sheet1!S71_A4Code,$AC:$AC)","v":0},{"$f":"-SUMIFS(Sheet1!S71_MonthlyOutcomeDec,Sheet1!S71_A4Code,$AC:$AC)","v":0},0,0,0,0,0,0,0,{"$f":"'B4-FinPerf RE'!K15","v":0},{"$f":"'B4-FinPerf RE'!L15","v":1014156},{"$f":"'B4-FinPerf RE'!M15","v":1062836},null,null,null,null,null,null,null,null,null,null,"1000"]
[{"$f":"'B4-FinPerf RE'!A16","v":"Dividends received"},null,{"$f":"-SUMIFS(Sheet1!S71_MonthlyOutcomeJul,Sheet1!S71_A4Code,$AC:$AC)","v":0},{"$f":"-SUMIFS(Sheet1!S71_MonthlyOutcomeAug,Sheet1!S71_A4Code,$AC:$AC)","v":0},{"$f":"-SUMIFS(Sheet1!S71_MonthlyOutcomeSep,Sheet1!S71_A4Code,$AC:$AC)","v":0},{"$f":"-SUMIFS(Sheet1!S71_MonthlyOutcomeOct,Sheet1!S71_A4Code,$AC:$AC)","v":0},{"$f":"-SUMIFS(Sheet1!S71_MonthlyOutcomeNov,Sheet1!S71_A4Code,$AC:$AC)","v":0},{"$f":"-SUMIFS(Sheet1!S71_MonthlyOutcomeDec,Sheet1!S71_A4Code,$AC:$AC)","v":0},0,0,0,0,0,0,0,{"$f":"'B4-FinPerf RE'!K16","v":0},{"$f":"'B4-FinPerf RE'!L16","v":0},{"$f":"'B4-FinPerf RE'!M16","v":0},null,null,null,null,null,null,null,null,null,null,"1100"]
[{"$f":"'B4-FinPerf RE'!A17","v":"Fines, penalties and forfeits"},null,{"$f":"-SUMIFS(Sheet1!S71_MonthlyOutcomeJul,Sheet1!S71_A4Code,$AC:$AC)","v":0},{"$f":"-SUMIFS(Sheet1!S71_MonthlyOutcomeAug,Sheet1!S71_A4Code,$AC:$AC)","v":118},{"$f":"-SUMIFS(Sheet1!S71_MonthlyOutcomeSep,Sheet1!S71_A4Code,$AC:$AC)","v":127},{"$f":"-SUMIFS(Sheet1!S71_MonthlyOutcomeOct,Sheet1!S71_A4Code,$AC:$AC)","v":455044},{"$f":"-SUMIFS(Sheet1!S71_MonthlyOutcomeNov,Sheet1!S71_A4Code,$AC:$AC)","v":86595},{"$f":"-SUMIFS(Sheet1!S71_MonthlyOutcomeDec,Sheet1!S71_A4Code,$AC:$AC)","v":0},127108.16666666667,127108.16666666667,127108.16666666667,127108.16666666667,127108.16666666667,127108.16666666674,1304533,{"$f":"'B4-FinPerf RE'!K17","v":1304533},{"$f":"'B4-FinPerf RE'!L17","v":3378298},{"$f":"'B4-FinPerf RE'!M17","v":3540455},null,null,null,null,null,null,null,null,null,null,"1200"]
[{"$f":"'B4-FinPerf RE'!A18","v":"Licences and permits"},null,{"$f":"-SUMIFS(Sheet1!S71_MonthlyOutcomeJul,Sheet1!S71_A4Code,$AC:$AC)","v":241080},{"$f":"-SUMIFS(Sheet1!S71_MonthlyOutcomeAug,Sheet1!S71_A4Code,$AC:$AC)","v":304340},{"$f":"-SUMIFS(Sheet1!S71_MonthlyOutcomeSep,Sheet1!S71_A4Code,$AC:$AC)","v":239840},{"$f":"-SUMIFS(Sheet1!S71_MonthlyOutcomeOct,Sheet1!S71_A4Code,$AC:$AC)","v":202860},{"$f":"-SUMIFS(Sheet1!S71_MonthlyOutcomeNov,Sheet1!S71_A4Code,$AC:$AC)","v":270054.78000000003},{"$f":"-SUMIFS(Sheet1!S71_MonthlyOutcomeDec,Sheet1!S71_A4Code,$AC:$AC)","v":175140},238954.53666666665,238954.53666666665,238954.53666666665,238954.53666666665,238954.53666666665,238954.53666666662,2867042,{"$f":"'B4-FinPerf RE'!K18","v":2867042},{"$f":"'B4-FinPerf RE'!L18","v":5483788},{"$f":"'B4-FinPerf RE'!M18","v":5764595},null,null,null,null,null,null,null,null,null,null,"1300"]
[{"$f":"'B4-FinPerf RE'!A19","v":"Agency services"},null,{"$f":"-SUMIFS(Sheet1!S71_MonthlyOutcomeJul,Sheet1!S71_A4Code,$AC:$AC)","v":0},{"$f":"-SUMIFS(Sheet1!S71_MonthlyOutcomeAug,Sheet1!S71_A4Code,$AC:$AC)","v":0},{"$f":"-SUMIFS(Sheet1!S71_MonthlyOutcomeSep,Sheet1!S71_A4Code,$AC:$AC)","v":0},{"$f":"-SUMIFS(Sheet1!S71_MonthlyOutcomeOct,Sheet1!S71_A4Code,$AC:$AC)","v":0},{"$f":"-SUMIFS(Sheet1!S71_MonthlyOutcomeNov,Sheet1!S71_A4Code,$AC:$AC)","v":0},{"$f":"-SUMIFS(Sheet1!S71_MonthlyOutcomeDec,Sheet1!S71_A4Code,$AC:$AC)","v":0},0,0,0,0,0,0,0,{"$f":"'B4-FinPerf RE'!K19","v":0},{"$f":"'B4-FinPerf RE'!L19","v":0},{"$f":"'B4-FinPerf RE'!M19","v":0},null,null,null,null,null,null,null,null,null,null,"1400"]
[{"$f":"'B4-FinPerf RE'!A20","v":"Transfers and subsidies"},null,{"$f":"-SUMIFS(Sheet1!S71_MonthlyOutcomeJul,Sheet1!S71_A4Code,$AC:$AC)","v":79302467.239999995},{"$f":"-SUMIFS(Sheet1!S71_MonthlyOutcomeAug,Sheet1!S71_A4Code,$AC:$AC)","v":857836.48},{"$f":"-SUMIFS(Sheet1!S71_MonthlyOutcomeSep,Sheet1!S71_A4Code,$AC:$AC)","v":896077.20000000007},{"$f":"-SUMIFS(Sheet1!S71_MonthlyOutcomeOct,Sheet1!S71_A4Code,$AC:$AC)","v":969425.85999999987},{"$f":"-SUMIFS(Sheet1!S71_MonthlyOutcomeNov,Sheet1!S71_A4Code,$AC:$AC)","v":677349.75},{"$f":"-SUMIFS(Sheet1!S71_MonthlyOutcomeDec,Sheet1!S71_A4Code,$AC:$AC)","v":63118354.340000004},7975022.0216666656,7975022.0216666656,7975022.0216666656,7975022.0216666656,7975022.0216666656,7975022.0216666162,193671643,{"$f":"'B4-FinPerf RE'!K20","v":193671643},{"$f":"'B4-FinPerf RE'!L20","v":198437000},{"$f":"'B4-FinPerf RE'!M20","v":211288000},null,null,null,null,null,null,null,null,null,null,"1500"]
[{"$f":"'B4-FinPerf RE'!A21","v":"Other revenue"},null,{"$f":"-SUMIFS(Sheet1!S71_MonthlyOutcomeJul,Sheet1!S71_A4Code,$AC:$AC)","v":99617.639999999985},{"$f":"-SUMIFS(Sheet1!S71_MonthlyOutcomeAug,Sheet1!S71_A4Code,$AC:$AC)","v":24245.309999999998},{"$f":"-SUMIFS(Sheet1!S71_MonthlyOutcomeSep,Sheet1!S71_A4Code,$AC:$AC)","v":39994.480000001226},{"$f":"-SUMIFS(Sheet1!S71_MonthlyOutcomeOct,Sheet1!S71_A4Code,$AC:$AC)","v":16893.580000000002},{"$f":"-SUMIFS(Sheet1!S71_MonthlyOutcomeNov,Sheet1!S71_A4Code,$AC:$AC)","v":109936.51999999996},{"$f":"-SUMIFS(Sheet1!S71_MonthlyOutcomeDec,Sheet1!S71_A4Code,$AC:$AC)","v":17650.54},45372.654999999802,45372.654999999802,45372.654999999802,45372.654999999802,45372.654999999802,45372.654999999795,580574,{"$f":"'B4-FinPerf RE'!K21","v":580574},{"$f":"'B4-FinPerf RE'!L21","v":515218},{"$f":"'B4-FinPerf RE'!M21","v":539515},null,null,null,null,null,null,null,null,null,null,"1600"]
[{"$f":"'B4-FinPerf RE'!A22","v":"Gains"},null,{"$f":"-SUMIFS(Sheet1!S71_MonthlyOutcomeJul,Sheet1!S71_A4Code,$AC:$AC)","v":0},{"$f":"-SUMIFS(Sheet1!S71_MonthlyOutcomeAug,Sheet1!S71_A4Code,$AC:$AC)","v":0},{"$f":"-SUMIFS(Sheet1!S71_MonthlyOutcomeSep,Sheet1!S71_A4Code,$AC:$AC)","v":0},{"$f":"-SUMIFS(Sheet1!S71_MonthlyOutcomeOct,Sheet1!S71_A4Code,$AC:$AC)","v":0},{"$f":"-SUMIFS(Sheet1!S71_MonthlyOutcomeNov,Sheet1!S71_A4Code,$AC:$AC)","v":0},{"$f":"-SUMIFS(Sheet1!S71_MonthlyOutcomeDec,Sheet1!S71_A4Code,$AC:$AC)","v":0},0,0,0,0,0,0,0,{"$f":"'B4-FinPerf RE'!K22","v":0},{"$f":"'B4-FinPerf RE'!L22","v":0},{"$f":"'B4-FinPerf RE'!M22","v":0},null,null,null,null,null,null,null,null,null,null,"1700"]
["Total Revenue",null,{"$f":"SUM(C6:C10)+SUM(C12:C21)","v":81805437.25},{"$f":"SUM(D6:D10)+SUM(D12:D21)","v":3383496.27},3404316.7800000012,3810870.87,3261353.9400000004,65589051.770000003,10222061.186666666,10222061.186666666,10222061.186666666,10222061.186666666,10222061.186666666,10222061.186666612,222586894,222586894,236365648,251062001]
[]
["Expenditure By Type"]
[{"$f":"'B4-FinPerf RE'!A26","v":"Employee related costs"},null,{"$f":"SUMIFS(Sheet1!S71_MonthlyOutcomeJul,Sheet1!S71_A4Code,$AC:$AC)","v":5998489.0000000028},{"$f":"SUMIFS(Sheet1!S71_MonthlyOutcomeAug,Sheet1!S71_A4Code,$AC:$AC)","v":5971760.6200000029},{"$f":"SUMIFS(Sheet1!S71_MonthlyOutcomeSep,Sheet1!S71_A4Code,$AC:$AC)","v":5852491.1900000023},{"$f":"SUMIFS(Sheet1!S71_MonthlyOutcomeOct,Sheet1!S71_A4Code,$AC:$AC)","v":6753039.5100000007},{"$f":"SUMIFS(Sheet1!S71_MonthlyOutcomeNov,Sheet1!S71_A4Code,$AC:$AC)","v":5921865.8200000031},{"$f":"SUMIFS(Sheet1!S71_MonthlyOutcomeDec,Sheet1!S71_A4Code,$AC:$AC)","v":9049980.4600000028},{"$f":"(P25-SUM(C25:H25))/6","v":6583710.7333333306},{"$f":"(P25-SUM(C25:H25))/6","v":6583710.7333333306},{"$f":"(P25-SUM(C25:H25))/6","v":6583710.7333333306},{"$f":"(P25-SUM(C25:H25))/6","v":6583710.7333333306},{"$f":"(P25-SUM(C25:H25))/6","v":6583710.7333333306},{"$f":"P25-SUM(C25:M25)","v":6583710.7333333194},{"$f":"SUM(C25:N25)","v":79049891},{"$f":"'B4-FinPerf RE'!K26","v":79049891},{"$f":"'B4-FinPerf RE'!L26","v":94818716},{"$f":"'B4-FinPerf RE'!M26","v":99085565},null,null,null,null,null,null,null,null,null,null,"2000"]
[{"$f":"'B4-FinPerf RE'!A27","v":"Remuneration of councillors"},null,{"$f":"SUMIFS(Sheet1!S71_MonthlyOutcomeJul,Sheet1!S71_A4Code,$AC:$AC)","v":1085499.82},{"$f":"SUMIFS(Sheet1!S71_MonthlyOutcomeAug,Sheet1!S71_A4Code,$AC:$AC)","v":1085499.82},{"$f":"SUMIFS(Sheet1!S71_MonthlyOutcomeSep,Sheet1!S71_A4Code,$AC:$AC)","v":1085499.82},{"$f":"SUMIFS(Sheet1!S71_MonthlyOutcomeOct,Sheet1!S71_A4Code,$AC:$AC)","v":1085499.82},{"$f":"SUMIFS(Sheet1!S71_MonthlyOutcomeNov,Sheet1!S71_A4Code,$AC:$AC)","v":825916.38000000012},{"$f":"SUMIFS(Sheet1!S71_MonthlyOutcomeDec,Sheet1!S71_A4Code,$AC:$AC)","v":1525737.3699999999},{"$f":"(P26-SUM(C26:H26))/6","v":1222454.3283333334},{"$f":"(P26-SUM(C26:H26))/6","v":1222454.3283333334},{"$f":"(P26-SUM(C26:H26))/6","v":1222454.3283333334},{"$f":"(P26-SUM(C26:H26))/6","v":1222454.3283333334},{"$f":"(P26-SUM(C26:H26))/6","v":1222454.3283333334},1222454.3283333331,14028379,{"$f":"'B4-FinPerf RE'!K27","v":14028379},{"$f":"'B4-FinPerf RE'!L27","v":14502609},{"$f":"'B4-FinPerf RE'!M27","v":15155229},null,null,null,null,null,null,null,null,null,null,"2100"]
[{"$f":"'B4-FinPerf RE'!A28","v":"Debt impairment"},null,{"$f":"SUMIFS(Sheet1!S71_MonthlyOutcomeJul,Sheet1!S71_A4Code,$AC:$AC)","v":0},{"$f":"SUMIFS(Sheet1!S71_MonthlyOutcomeAug,Sheet1!S71_A4Code,$AC:$AC)","v":0},{"$f":"SUMIFS(Sheet1!S71_MonthlyOutcomeSep,Sheet1!S71_A4Code,$AC:$AC)","v":0},{"$f":"SUMIFS(Sheet1!S71_MonthlyOutcomeOct,Sheet1!S71_A4Code,$AC:$AC)","v":0},{"$f":"SUMIFS(Sheet1!S71_MonthlyOutcomeNov,Sheet1!S71_A4Code,$AC:$AC)","v":0},{"$f":"SUMIFS(Sheet1!S71_MonthlyOutcomeDec,Sheet1!S71_A4Code,$AC:$AC)","v":0},232452.66666666666,232452.66666666666,232452.66666666666,232452.66666666666,232452.66666666666,232452.66666666674,1394716,{"$f":"'B4-FinPerf RE'!K28","v":1394716},{"$f":"'B4-FinPerf RE'!L28","v":5360596},{"$f":"'B4-FinPerf RE'!M28","v":5601822},null,null,null,null,null,null,null,null,null,null,"2200"]
[{"$f":"'B4-FinPerf RE'!A29","v":"Depreciation & asset impairment"},null,{"$f":"SUMIFS(Sheet1!S71_MonthlyOutcomeJul,Sheet1!S71_A4Code,$AC:$AC)","v":1879985.1199999996},{"$f":"SUMIFS(Sheet1!S71_MonthlyOutcomeAug,Sheet1!S71_A4Code,$AC:$AC)","v":1818017.1900000004},{"$f":"SUMIFS(Sheet1!S71_MonthlyOutcomeSep,Sheet1!S71_A4Code,$AC:$AC)","v":1822968.41},{"$f":"SUMIFS(Sheet1!S71_MonthlyOutcomeOct,Sheet1!S71_A4Code,$AC:$AC)","v":1886910.6031049998},{"$f":"SUMIFS(Sheet1!S71_MonthlyOutcomeNov,Sheet1!S71_A4Code,$AC:$AC)","v":9556378.5299999993},{"$f":"SUMIFS(Sheet1!S71_MonthlyOutcomeDec,Sheet1!S71_A4Code,$AC:$AC)","v":1907067.4299999995},904110.45281583315,904110.45281583315,904110.45281583315,904110.45281583315,904110.45281583315,904110.45281582698,24295990,{"$f":"'B4-FinPerf RE'!K29","v":24295990},{"$f":"'B4-FinPerf RE'!L29","v":31222184},{"$f":"'B4-FinPerf RE'!M29","v":34392913},null,null,null,null,null,null,null,null,null,null,"2300"]
[{"$f":"'B4-FinPerf RE'!A30","v":"Finance charges"},null,{"$f":"SUMIFS(Sheet1!S71_MonthlyOutcomeJul,Sheet1!S71_A4Code,$AC:$AC)","v":585.46},{"$f":"SUMIFS(Sheet1!S71_MonthlyOutcomeAug,Sheet1!S71_A4Code,$AC:$AC)","v":42.04},{"$f":"SUMIFS(Sheet1!S71_MonthlyOutcomeSep,Sheet1!S71_A4Code,$AC:$AC)","v":600.85},{"$f":"SUMIFS(Sheet1!S71_MonthlyOutcomeOct,Sheet1!S71_A4Code,$AC:$AC)","v":592.27000000000021},{"$f":"SUMIFS(Sheet1!S71_MonthlyOutcomeNov,Sheet1!S71_A4Code,$AC:$AC)","v":20.930000000000007},{"$f":"SUMIFS(Sheet1!S71_MonthlyOutcomeDec,Sheet1!S71_A4Code,$AC:$AC)","v":138.02000000000001},82248.738333333327,82248.738333333327,82248.738333333327,82248.738333333327,82248.738333333327,82248.738333333342,495472,{"$f":"'B4-FinPerf RE'!K30","v":495472},{"$f":"'B4-FinPerf RE'!L30","v":110770},{"$f":"'B4-FinPerf RE'!M30","v":115755},null,null,null,null,null,null,null,null,null,null,"2400"]
[{"$f":"'B4-FinPerf RE'!A31","v":"Bulk purchases - electricity"},null,{"$f":"SUMIFS(Sheet1!S71_MonthlyOutcomeJul,Sheet1!S71_A4Code,$AC:$AC)","v":0},{"$f":"SUMIFS(Sheet1!S71_MonthlyOutcomeAug,Sheet1!S71_A4Code,$AC:$AC)","v":0},{"$f":"SUMIFS(Sheet1!S71_MonthlyOutcomeSep,Sheet1!S71_A4Code,$AC:$AC)","v":0},{"$f":"SUMIFS(Sheet1!S71_MonthlyOutcomeOct,Sheet1!S71_A4Code,$AC:$AC)","v":0},{"$f":"SUMIFS(Sheet1!S71_MonthlyOutcomeNov,Sheet1!S71_A4Code,$AC:$AC)","v":0},{"$f":"SUMIFS(Sheet1!S71_MonthlyOutcomeDec,Sheet1!S71_A4Code,$AC:$AC)","v":0},0,0,0,0,0,0,0,{"$f":"'B4-FinPerf RE'!K31","v":0},{"$f":"'B4-FinPerf RE'!L31","v":0},{"$f":"'B4-FinPerf RE'!M31","v":0},null,null,null,null,null,null,null,null,null,null,"2500"]
[{"$f":"'B4-FinPerf RE'!A32","v":"Inventory consumed"},null,{"$f":"SUMIFS(Sheet1!S71_MonthlyOutcomeJul,Sheet1!S71_A4Code,$AC:$AC)","v":0},{"$f":"SUMIFS(Sheet1!S71_MonthlyOutcomeAug,Sheet1!S71_A4Code,$AC:$AC)","v":26361.360000000001},{"$f":"SUMIFS(Sheet1!S71_MonthlyOutcomeSep,Sheet1!S71_A4Code,$AC:$AC)","v":0},{"$f":"SUMIFS(Sheet1!S71_MonthlyOutcomeOct,Sheet1!S71_A4Code,$AC:$AC)","v":33037.99},{"$f":"SUMIFS(Sheet1!S71_MonthlyOutcomeNov,Sheet1!S71_A4Code,$AC:$AC)","v":99669.03},{"$f":"SUMIFS(Sheet1!S71_MonthlyOutcomeDec,Sheet1!S71_A4Code,$AC:$AC)","v":474.49},209617.85499999998,209617.85499999998,209617.85499999998,209617.85499999998,209617.85499999998,209617.85499999998,1417250,{"$f":"'B4-FinPerf RE'!K32","v":1417250},{"$f":"'B4-FinPerf RE'!L32","v":1479609},{"$f":"'B4-FinPerf RE'!M32","v":1546191},null,null,null,null,null,null,null,null,null,null,"2600"]
[{"$f":"'B4-FinPerf RE'!A33","v":"Contracted services"},null,{"$f":"SUMIFS(Sheet1!S71_MonthlyOutcomeJul,Sheet1!S71_A4Code,$AC:$AC)","v":2570898.5099999998},{"$f":"SUMIFS(Sheet1!S71_MonthlyOutcomeAug,Sheet1!S71_A4Code,$AC:$AC)","v":6028294.7400000002},{"$f":"SUMIFS(Sheet1!S71_MonthlyOutcomeSep,Sheet1!S71_A4Code,$AC:$AC)","v":3514522.8},{"$f":"SUMIFS(Sheet1!S71_MonthlyOutcomeOct,Sheet1!S71_A4Code,$AC:$AC)","v":6560131.8300000001},{"$f":"SUMIFS(Sheet1!S71_MonthlyOutcomeNov,Sheet1!S71_A4Code,$AC:$AC)","v":2219617.0199999996},{"$f":"SUMIFS(Sheet1!S71_MonthlyOutcomeDec,Sheet1!S71_A4Code,$AC:$AC)","v":2313054.4199999995},2347772.1133333333,2347772.1133333333,2347772.1133333333,2347772.1133333333,2347772.1133333333,2347772.1133333296,37293152,{"$f":"'B4-FinPerf RE'!K33","v":37293152},{"$f":"'B4-FinPerf RE'!L33","v":31450844},{"$f":"'B4-FinPerf RE'!M33","v":32859397},null,null,null,null,null,null,null,null,null,null,"2700"]
[{"$f":"'B4-FinPerf RE'!A34","v":"Transfers and subsidies"},null,{"$f":"SUMIFS(Sheet1!S71_MonthlyOutcomeJul,Sheet1!S71_A4Code,$AC:$AC)","v":432945},{"$f":"SUMIFS(Sheet1!S71_MonthlyOutcomeAug,Sheet1!S71_A4Code,$AC:$AC)","v":1545760},{"$f":"SUMIFS(Sheet1!S71_MonthlyOutcomeSep,Sheet1!S71_A4Code,$AC:$AC)","v":1811453.4},{"$f":"SUMIFS(Sheet1!S71_MonthlyOutcomeOct,Sheet1!S71_A4Code,$AC:$AC)","v":2740089},{"$f":"SUMIFS(Sheet1!S71_MonthlyOutcomeNov,Sheet1!S71_A4Code,$AC:$AC)","v":993100},{"$f":"SUMIFS(Sheet1!S71_MonthlyOutcomeDec,Sheet1!S71_A4Code,$AC:$AC)","v":440600},928873.6,928873.6,928873.6,928873.6,928873.6,928873.60000000149,13537189,{"$f":"'B4-FinPerf RE'!K34","v":13537189},{"$f":"'B4-FinPerf RE'!L34","v":1550780},{"$f":"'B4-FinPerf RE'!M34","v":1620559},null,null,null,null,null,null,null,null,null,null,"2800"]
[{"$f":"'B4-FinPerf RE'!A35","v":"Other expenditure"},null,{"$f":"SUMIFS(Sheet1!S71_MonthlyOutcomeJul,Sheet1!S71_A4Code,$AC:$AC)","v":5774346.1899999976},{"$f":"SUMIFS(Sheet1!S71_MonthlyOutcomeAug,Sheet1!S71_A4Code,$AC:$AC)","v":6494465.4400000004},{"$f":"SUMIFS(Sheet1!S71_MonthlyOutcomeSep,Sheet1!S71_A4Code,$AC:$AC)","v":3671798.8099999996},{"$f":"SUMIFS(Sheet1!S71_MonthlyOutcomeOct,Sheet1!S71_A4Code,$AC:$AC)","v":10507552.549999999},{"$f":"SUMIFS(Sheet1!S71_MonthlyOutcomeNov,Sheet1!S71_A4Code,$AC:$AC)","v":5436778.8199999994},{"$f":"SUMIFS(Sheet1!S71_MonthlyOutcomeDec,Sheet1!S71_A4Code,$AC:$AC)","v":5375078.6100000003},2258639.0966666676,2258639.0966666676,2258639.0966666676,2258639.0966666676,2258639.0966666676,2258639.0966666788,50811855,{"$f":"'B4-FinPerf RE'!K35","v":50811855},{"$f":"'B4-FinPerf RE'!L35","v":41184324},{"$f":"'B4-FinPerf RE'!M35","v":43074079},null,null,null,null,null,null,null,null,null,null,"2900"]
[{"$f":"'B4-FinPerf RE'!A36","v":"Losses"},null,{"$f":"SUMIFS(Sheet1!S71_MonthlyOutcomeJul,Sheet1!S71_A4Code,$AC:$AC)","v":0},{"$f":"SUMIFS(Sheet1!S71_MonthlyOutcomeAug,Sheet1!S71_A4Code,$AC:$AC)","v":0},{"$f":"SUMIFS(Sheet1!S71_MonthlyOutcomeSep,Sheet1!S71_A4Code,$AC:$AC)","v":0},{"$f":"SUMIFS(Sheet1!S71_MonthlyOutcomeOct,Sheet1!S71_A4Code,$AC:$AC)","v":0},{"$f":"SUMIFS(Sheet1!S71_MonthlyOutcomeNov,Sheet1!S71_A4Code,$AC:$AC)","v":1032},{"$f":"SUMIFS(Sheet1!S71_MonthlyOutcomeDec,Sheet1!S71_A4Code,$AC:$AC)","v":0},-172,-172,-172,-172,-172,-172,0,{"$f":"'B4-FinPerf RE'!K36","v":0},{"$f":"'B4-FinPerf RE'!L36","v":0},{"$f":"'B4-FinPerf RE'!M36","v":0},null,null,null,null,null,null,null,null,null,null,"3000"]
["Total Expenditure",null,{"$f":"SUM(C25:C35)","v":17742749.100000001},{"$f":"SUM(D25:D35)","v":22970201.210000001},17759335.280000001,29566853.573105,25054378.530000001,20612130.800000001,14769707.584482498,14769707.584482498,14769707.584482498,14769707.584482498,14769707.584482498,14769707.584482491,222323894,222323894,221680432,233451510]
[]
["Surplus/(Deficit)",null,{"$f":"C22-C36","v":64062688.149999999},-19586704.940000001,-14355018.5,-25755982.703104999,-21793024.59,44976920.969999999,-4547646.3978158329,-4547646.3978158329,-4547646.3978158329,-4547646.3978158329,-4547646.3978158329,-4547646.3978158794,263000,263000,14685216,17610491]
[{"$f":"'B4-FinPerf RE'!A40","v":"Transfers and subsidies - capital (monetary allocations) (National / Provincial and District)"},null,{"$f":"-SUMIFS(Sheet1!S71_MonthlyOutcomeJul,Sheet1!S71_A4Code,$AC:$AC)","v":1774414.18},{"$f":"-SUMIFS(Sheet1!S71_MonthlyOutcomeAug,Sheet1!S71_A4Code,$AC:$AC)","v":2731392.45},{"$f":"-SUMIFS(Sheet1!S71_MonthlyOutcomeSep,Sheet1!S71_A4Code,$AC:$AC)","v":4481087.3600000003},{"$f":"-SUMIFS(Sheet1!S71_MonthlyOutcomeOct,Sheet1!S71_A4Code,$AC:$AC)","v":3499773.78},{"$f":"-SUMIFS(Sheet1!S71_MonthlyOutcomeNov,Sheet1!S71_A4Code,$AC:$AC)","v":5090120.2},{"$f":"-SUMIFS(Sheet1!S71_MonthlyOutcomeDec,Sheet1!S71_A4Code,$AC:$AC)","v":3868528.54},{"$f":"(P39-SUM(C39:H39))/6","v":2725932.081666667},{"$f":"(P39-SUM(C39:H39))/6","v":2725932.081666667},{"$f":"(P39-SUM(C39:H39))/6","v":2725932.081666667},{"$f":"(P39-SUM(C39:H39))/6","v":2725932.081666667},{"$f":"(P39-SUM(C39:H39))/6","v":2725932.081666667},{"$f":"P39-SUM(C39:M39)","v":2725932.0816666633},null,{"$f":"'B4-FinPerf RE'!K40","v":37800909},{"$f":"'B4-FinPerf RE'!L40","v":35007500},{"$f":"'B4-FinPerf RE'!M40","v":36582838},null,null,null,null,null,null,null,null,null,null,"3300"]
[{"$f":"'B4-FinPerf RE'!A41","v":"Transfers and subsidies - capital (monetary allocations) (National / Provincial Departmental Agencies, Households, Non-profit Institutions, Private Enterprises, Public Corporatons, Higher Educational Institutions)"},null,{"$f":"-SUMIFS(Sheet1!S71_MonthlyOutcomeJul,Sheet1!S71_A4Code,$AC:$AC)","v":0},{"$f":"-SUMIFS(Sheet1!S71_MonthlyOutcomeAug,Sheet1!S71_A4Code,$AC:$AC)","v":0},{"$f":"-SUMIFS(Sheet1!S71_MonthlyOutcomeSep,Sheet1!S71_A4Code,$AC:$AC)","v":0},{"$f":"-SUMIFS(Sheet1!S71_MonthlyOutcomeOct,Sheet1!S71_A4Code,$AC:$AC)","v":0},{"$f":"-SUMIFS(Sheet1!S71_MonthlyOutcomeNov,Sheet1!S71_A4Code,$AC:$AC)","v":0},{"$f":"-SUMIFS(Sheet1!S71_MonthlyOutcomeDec,Sheet1!S71_A4Code,$AC:$AC)","v":0},{"$f":"(P40-SUM(C40:H40))/6","v":500000},{"$f":"(P40-SUM(C40:H40))/6","v":500000},{"$f":"(P40-SUM(C40:H40))/6","v":500000},{"$f":"(P40-SUM(C40:H40))/6","v":500000},{"$f":"(P40-SUM(C40:H40))/6","v":500000},{"$f":"P40-SUM(C40:M40)","v":500000},null,{"$f":"'B4-FinPerf RE'!K41","v":3000000},{"$f":"'B4-FinPerf RE'!L41","v":0},{"$f":"'B4-FinPerf RE'!M41","v":0},null,null,null,null,null,null,null,null,null,null,"3400"]
[{"$f":"'B4-FinPerf RE'!A42","v":"Transfers and subsidies - capital (in-kind - all) "},null,{"$f":"-SUMIFS(Sheet1!S71_MonthlyOutcomeJul,Sheet1!S71_A4Code,$AC:$AC)","v":0},{"$f":"-SUMIFS(Sheet1!S71_MonthlyOutcomeAug,Sheet1!S71_A4Code,$AC:$AC)","v":0},{"$f":"-SUMIFS(Sheet1!S71_MonthlyOutcomeSep,Sheet1!S71_A4Code,$AC:$AC)","v":0},{"$f":"-SUMIFS(Sheet1!S71_MonthlyOutcomeOct,Sheet1!S71_A4Code,$AC:$AC)","v":0},{"$f":"-SUMIFS(Sheet1!S71_MonthlyOutcomeNov,Sheet1!S71_A4Code,$AC:$AC)","v":0},{"$f":"-SUMIFS(Sheet1!S71_MonthlyOutcomeDec,Sheet1!S71_A4Code,$AC:$AC)","v":0},0,0,0,0,0,{"$f":"P41-SUM(C41:M41)","v":0},null,{"$f":"'B4-FinPerf RE'!K42","v":0},{"$f":"'B4-FinPerf RE'!L42","v":0},{"$f":"'B4-FinPerf RE'!M42","v":0},null,null,null,null,null,null,null,null,null,null,"3500"]
["Surplus/(Deficit) after capital transfers & contributions",null,{"$f":"C38+SUM(C39:C41)","v":65837102.329999998},{"$f":"D38+SUM(D39:D41)","v":-16855312.490000002},-9873931.1400000006,-22256208.923104998,-16702904.390000001,48845449.509999998,-1321714.3161491659,-1321714.3161491659,-1321714.3161491659,-1321714.3161491659,-1321714.3161491659,-1321714.3161492161,263000,{"$f":"P38+SUM(P39:P41)","v":41063909},49692716,54193329]
[{"$f":"head27a","v":"References"}]
["1. Surplus (Deficit) must reconcile with budget table A4 and monthly budget statement table C4"]
["check",null,null,null,null,null,null,null,null,null,null,null,null,null,null,{"$f":"P42-'B4-FinPerf RE'!K43","v":0},{"$f":"Q42-'B4-FinPerf RE'!L43","v":0},{"$f":"R42-'B4-FinPerf RE'!M43","v":0}]

{"sheet":"SB15","index":53,"n_rows":64,"n_cols":30,"rows_kept":64,"cut":false,"hidden":false,"merged":[[1,0,2,0],[1,15,1,17],[1,1,2,1],[1,2,1,13]]}
[{"$f":"muni&\" - \"&ADJB15&\" - \"&Date","v":"EC139 Enoch Mgijima - Supporting Table SB15 Adjustments Budget - monthly cash flow - "}]
["Monthly cash flows",{"$f":"head27","v":"Ref"},{"$f":"Head2","v":"Budget Year 2021/22"},null,null,null,null,null,null,null,null,null,null,null,null,{"$f":"Head3a","v":"Medium Term Revenue and Expenditure Framework"}]
[null,null,"July","August","Sept.","October","November","December","January","February","March","April","May","June","Full year budget",{"$f":"Head9","v":"Budget Year 2021/22"},{"$f":"Head10","v":"Budget Year +1 2022/23"},{"$f":"Head11","v":"Budget Year +2 2023/24"}]
["R thousands",null,{"$f":"Head5A","v":"Outcome"},"Outcome","Outcome","Outcome","Outcome","Outcome",{"$f":"Head7","v":"Adjusted Budget"},"Adjusted Budget","Adjusted Budget","Adjusted Budget","Adjusted Budget","Adjusted Budget",null,{"$f":"Head7","v":"Adjusted Budget"},{"$f":"Head7","v":"Adjusted Budget"},{"$f":"Head7","v":"Adjusted Budget"}]
["Cash Receipts By Source",1]
["Property rates",null,{"$f":"SUMIFS(Sheet1!S71_MonthlyOutcomeJul,Sheet1!S71_SA30FDSubCode,$AC:$AC,Sheet1!S71_CFCode,$AD:$AD)","v":234376.30000000002},{"$f":"SUMIFS(Sheet1!S71_MonthlyOutcomeAug,Sheet1!S71_SA30FDSubCode,$AC:$AC,Sheet1!S71_CFCode,$AD:$AD)","v":249725.72999999998},{"$f":"SUMIFS(Sheet1!S71_MonthlyOutcomeSep,Sheet1!S71_SA30FDSubCode,$AC:$AC,Sheet1!S71_CFCode,$AD:$AD)","v":1282980.9500000002},{"$f":"SUMIFS(Sheet1!S71_MonthlyOutcomeOct,Sheet1!S71_SA30FDSubCode,$AC:$AC,Sheet1!S71_CFCode,$AD:$AD)","v":5488595.3399999999},{"$f":"SUMIFS(Sheet1!S71_MonthlyOutcomeNov,Sheet1!S71_SA30FDSubCode,$AC:$AC,Sheet1!S71_CFCode,$AD:$AD)","v":4864902.12},{"$f":"SUMIFS(Sheet1!S71_MonthlyOutcomeDec,Sheet1!S71_SA30FDSubCode,$AC:$AC,Sheet1!S71_CFCode,$AD:$AD)","v":371792.41000000003},{"$f":"(P6-SUM(C6:H6))/6","v":191382.19166666642},{"$f":"(P6-SUM(C6:H6))/6","v":191382.19166666642},{"$f":"(P6-SUM(C6:H6))/6","v":191382.19166666642},{"$f":"(P6-SUM(C6:H6))/6","v":191382.19166666642},{"$f":"(P6-SUM(C6:H6))/6","v":191382.19166666642},{"$f":"P6-SUM(C6:M6)","v":191382.19166666642},{"$f":"SUM(C6:N6)","v":13640666},{"$f":"SUMIFS(Sheet1!S71_AdjustedBudget,Sheet1!S71_SA30FDSubCode,$AC:$AC,Sheet1!S71_CFCode,$AD:$AD)","v":13640666},{"$f":"SUMIFS(Sheet1!S71_OY1AdjustedBudget,Sheet1!S71_SA30FDSubCode,$AC:$AC,Sheet1!S71_CFCode,$AD:$AD)","v":13540666},{"$f":"SUMIFS(Sheet1!S71_OY2AdjustedBudget,Sheet1!S71_SA30FDSubCode,$AC:$AC,Sheet1!S71_CFCode,$AD:$AD)","v":13640666},null,null,null,null,null,null,null,null,null,null,"0110","D"]
["Service charges - electricity revenue",null,{"$f":"SUMIFS(Sheet1!S71_MonthlyOutcomeJul,Sheet1!S71_SA30FDSubCode,$AC:$AC,Sheet1!S71_CFCode,$AD:$AD)","v":0},{"$f":"SUMIFS(Sheet1!S71_MonthlyOutcomeAug,Sheet1!S71_SA30FDSubCode,$AC:$AC,Sheet1!S71_CFCode,$AD:$AD)","v":0},{"$f":"SUMIFS(Sheet1!S71_MonthlyOutcomeSep,Sheet1!S71_SA30FDSubCode,$AC:$AC,Sheet1!S71_CFCode,$AD:$AD)","v":0},{"$f":"SUMIFS(Sheet1!S71_MonthlyOutcomeOct,Sheet1!S71_SA30FDSubCode,$AC:$AC,Sheet1!S71_CFCode,$AD:$AD)","v":0},{"$f":"SUMIFS(Sheet1!S71_MonthlyOutcomeNov,Sheet1!S71_SA30FDSubCode,$AC:$AC,Sheet1!S71_CFCode,$AD:$AD)","v":0},{"$f":"SUMIFS(Sheet1!S71_MonthlyOutcomeDec,Sheet1!S71_SA30FDSubCode,$AC:$AC,Sheet1!S71_CFCode,$AD:$AD)","v":0},{"$f":"(P7-SUM(C7:H7))/6","v":0},{"$f":"(P7-SUM(C7:H7))/6","v":0},{"$f":"(P7-SUM(C7:H7))/6","v":0},{"$f":"(P7-SUM(C7:H7))/6","v":0},{"$f":"(P7-SUM(C7:H7))/6","v":0},0,0,{"$f":"SUMIFS(Sheet1!S71_AdjustedBudget,Sheet1!S71_SA30FDSubCode,$AC:$AC,Sheet1!S71_CFCode,$AD:$AD)","v":0},{"$f":"SUMIFS(Sheet1!S71_OY1AdjustedBudget,Sheet1!S71_SA30FDSubCode,$AC:$AC,Sheet1!S71_CFCode,$AD:$AD)","v":0},{"$f":"SUMIFS(Sheet1!S71_OY2AdjustedBudget,Sheet1!S71_SA30FDSubCode,$AC:$AC,Sheet1!S71_CFCode,$AD:$AD)","v":0},null,null,null,null,null,null,null,null,null,null,"0120","D"]
["Service charges - water revenue",null,{"$f":"SUMIFS(Sheet1!S71_MonthlyOutcomeJul,Sheet1!S71_SA30FDSubCode,$AC:$AC,Sheet1!S71_CFCode,$AD:$AD)","v":0},{"$f":"SUMIFS(Sheet1!S71_MonthlyOutcomeAug,Sheet1!S71_SA30FDSubCode,$AC:$AC,Sheet1!S71_CFCode,$AD:$AD)","v":0},{"$f":"SUMIFS(Sheet1!S71_MonthlyOutcomeSep,Sheet1!S71_SA30FDSubCode,$AC:$AC,Sheet1!S71_CFCode,$AD:$AD)","v":0},{"$f":"SUMIFS(Sheet1!S71_MonthlyOutcomeOct,Sheet1!S71_SA30FDSubCode,$AC:$AC,Sheet1!S71_CFCode,$AD:$AD)","v":0},{"$f":"SUMIFS(Sheet1!S71_MonthlyOutcomeNov,Sheet1!S71_SA30FDSubCode,$AC:$AC,Sheet1!S71_CFCode,$AD:$AD)","v":0},{"$f":"SUMIFS(Sheet1!S71_MonthlyOutcomeDec,Sheet1!S71_SA30FDSubCode,$AC:$AC,Sheet1!S71_CFCode,$AD:$AD)","v":0},0,0,0,0,0,0,0,{"$f":"SUMIFS(Sheet1!S71_AdjustedBudget,Sheet1!S71_SA30FDSubCode,$AC:$AC,Sheet1!S71_CFCode,$AD:$AD)","v":0},{"$f":"SUMIFS(Sheet1!S71_OY1AdjustedBudget,Sheet1!S71_SA30FDSubCode,$AC:$AC,Sheet1!S71_CFCode,$AD:$AD)","v":0},{"$f":"SUMIFS(Sheet1!S71_OY2AdjustedBudget,Sheet1!S71_SA30FDSubCode,$AC:$AC,Sheet1!S71_CFCode,$AD:$AD)","v":0},null,null,null,null,null,null,null,null,null,null,"0130","D"]
["Service charges - sanitation revenue",null,{"$f":"SUMIFS(Sheet1!S71_MonthlyOutcomeJul,Sheet1!S71_SA30FDSubCode,$AC:$AC,Sheet1!S71_CFCode,$AD:$AD)","v":0},{"$f":"SUMIFS(Sheet1!S71_MonthlyOutcomeAug,Sheet1!S71_SA30FDSubCode,$AC:$AC,Sheet1!S71_CFCode,$AD:$AD)","v":0},{"$f":"SUMIFS(Sheet1!S71_MonthlyOutcomeSep,Sheet1!S71_SA30FDSubCode,$AC:$AC,Sheet1!S71_CFCode,$AD:$AD)","v":0},{"$f":"SUMIFS(Sheet1!S71_MonthlyOutcomeOct,Sheet1!S71_SA30FDSubCode,$AC:$AC,Sheet1!S71_CFCode,$AD:$AD)","v":0},{"$f":"SUMIFS(Sheet1!S71_MonthlyOutcomeNov,Sheet1!S71_SA30FDSubCode,$AC:$AC,Sheet1!S71_CFCode,$AD:$AD)","v":0},{"$f":"SUMIFS(Sheet1!S71_MonthlyOutcomeDec,Sheet1!S71_SA30FDSubCode,$AC:$AC,Sheet1!S71_CFCode,$AD:$AD)","v":0},0,0,0,0,0,0,0,{"$f":"SUMIFS(Sheet1!S71_AdjustedBudget,Sheet1!S71_SA30FDSubCode,$AC:$AC,Sheet1!S71_CFCode,$AD:$AD)","v":0},{"$f":"SUMIFS(Sheet1!S71_OY1AdjustedBudget,Sheet1!S71_SA30FDSubCode,$AC:$AC,Sheet1!S71_CFCode,$AD:$AD)","v":0},{"$f":"SUMIFS(Sheet1!S71_OY2AdjustedBudget,Sheet1!S71_SA30FDSubCode,$AC:$AC,Sheet1!S71_CFCode,$AD:$AD)","v":0},null,null,null,null,null,null,null,null,null,null,"0140","D"]
["Service charges - refuse",null,{"$f":"SUMIFS(Sheet1!S71_MonthlyOutcomeJul,Sheet1!S71_SA30FDSubCode,$AC:$AC,Sheet1!S71_CFCode,$AD:$AD)","v":10518.4},{"$f":"SUMIFS(Sheet1!S71_MonthlyOutcomeAug,Sheet1!S71_SA30FDSubCode,$AC:$AC,Sheet1!S71_CFCode,$AD:$AD)","v":102320},{"$f":"SUMIFS(Sheet1!S71_MonthlyOutcomeSep,Sheet1!S71_SA30FDSubCode,$AC:$AC,Sheet1!S71_CFCode,$AD:$AD)","v":76020.800000000003},{"$f":"SUMIFS(Sheet1!S71_MonthlyOutcomeOct,Sheet1!S71_SA30FDSubCode,$AC:$AC,Sheet1!S71_CFCode,$AD:$AD)","v":15777.6},{"$f":"SUMIFS(Sheet1!S71_MonthlyOutcomeNov,Sheet1!S71_SA30FDSubCode,$AC:$AC,Sheet1!S71_CFCode,$AD:$AD)","v":12431.2},{"$f":"SUMIFS(Sheet1!S71_MonthlyOutcomeDec,Sheet1!S71_SA30FDSubCode,$AC:$AC,Sheet1!S71_CFCode,$AD:$AD)","v":34424.799999999996},56941.533333333326,56941.533333333326,56941.533333333326,56941.533333333326,56941.533333333326,56941.533333333326,593142,{"$f":"SUMIFS(Sheet1!S71_AdjustedBudget,Sheet1!S71_SA30FDSubCode,$AC:$AC,Sheet1!S71_CFCode,$AD:$AD)","v":593142},{"$f":"SUMIFS(Sheet1!S71_OY1AdjustedBudget,Sheet1!S71_SA30FDSubCode,$AC:$AC,Sheet1!S71_CFCode,$AD:$AD)","v":593142},{"$f":"SUMIFS(Sheet1!S71_OY2AdjustedBudget,Sheet1!S71_SA30FDSubCode,$AC:$AC,Sheet1!S71_CFCode,$AD:$AD)","v":593142},null,null,null,null,null,null,null,null,null,null,"0150","D"]
[null,null,{"$f":"SUMIFS(Sheet1!S71_MonthlyOutcomeJul,Sheet1!S71_SA30FDSubCode,$AC:$AC,Sheet1!S71_CFCode,$AD:$AD)","v":0},{"$f":"SUMIFS(Sheet1!S71_MonthlyOutcomeAug,Sheet1!S71_SA30FDSubCode,$AC:$AC,Sheet1!S71_CFCode,$AD:$AD)","v":0},{"$f":"SUMIFS(Sheet1!S71_MonthlyOutcomeSep,Sheet1!S71_SA30FDSubCode,$AC:$AC,Sheet1!S71_CFCode,$AD:$AD)","v":0},{"$f":"SUMIFS(Sheet1!S71_MonthlyOutcomeOct,Sheet1!S71_SA30FDSubCode,$AC:$AC,Sheet1!S71_CFCode,$AD:$AD)","v":0},{"$f":"SUMIFS(Sheet1!S71_MonthlyOutcomeNov,Sheet1!S71_SA30FDSubCode,$AC:$AC,Sheet1!S71_CFCode,$AD:$AD)","v":0},{"$f":"SUMIFS(Sheet1!S71_MonthlyOutcomeDec,Sheet1!S71_SA30FDSubCode,$AC:$AC,Sheet1!S71_CFCode,$AD:$AD)","v":0},0,0,0,0,0,null,null,{"$f":"SUMIFS(Sheet1!S71_AdjustedBudget,Sheet1!S71_SA30FDSubCode,$AC:$AC,Sheet1!S71_CFCode,$AD:$AD)","v":0},{"$f":"SUMIFS(Sheet1!S71_OY1AdjustedBudget,Sheet1!S71_SA30FDSubCode,$AC:$AC,Sheet1!S71_CFCode,$AD:$AD)","v":0},{"$f":"SUMIFS(Sheet1!S71_OY2AdjustedBudget,Sheet1!S71_SA30FDSubCode,$AC:$AC,Sheet1!S71_CFCode,$AD:$AD)","v":0},null,null,null,null,null,null,null,null,null,null,null,"D"]
["Rental of facilities and equipment",null,{"$f":"SUMIFS(Sheet1!S71_MonthlyOutcomeJul,Sheet1!S71_SA30FDSubCode,$AC:$AC,Sheet1!S71_CFCode,$AD:$AD)","v":8082.69},{"$f":"SUMIFS(Sheet1!S71_MonthlyOutcomeAug,Sheet1!S71_SA30FDSubCode,$AC:$AC,Sheet1!S71_CFCode,$AD:$AD)","v":9982.6899999999987},{"$f":"SUMIFS(Sheet1!S71_MonthlyOutcomeSep,Sheet1!S71_SA30FDSubCode,$AC:$AC,Sheet1!S71_CFCode,$AD:$AD)","v":11082.689999999999},{"$f":"SUMIFS(Sheet1!S71_MonthlyOutcomeOct,Sheet1!S71_SA30FDSubCode,$AC:$AC,Sheet1!S71_CFCode,$AD:$AD)","v":107847.43000000001},{"$f":"SUMIFS(Sheet1!S71_MonthlyOutcomeNov,Sheet1!S71_SA30FDSubCode,$AC:$AC,Sheet1!S71_CFCode,$AD:$AD)","v":13428.39},{"$f":"SUMIFS(Sheet1!S71_MonthlyOutcomeDec,Sheet1!S71_SA30FDSubCode,$AC:$AC,Sheet1!S71_CFCode,$AD:$AD)","v":28803.08},27813.004999999994,27813.004999999994,27813.004999999994,27813.004999999994,27813.004999999994,27813.004999999946,346105,{"$f":"SUMIFS(Sheet1!S71_AdjustedBudget,Sheet1!S71_SA30FDSubCode,$AC:$AC,Sheet1!S71_CFCode,$AD:$AD)","v":346105},{"$f":"SUMIFS(Sheet1!S71_OY1AdjustedBudget,Sheet1!S71_SA30FDSubCode,$AC:$AC,Sheet1!S71_CFCode,$AD:$AD)","v":247177},{"$f":"SUMIFS(Sheet1!S71_OY2AdjustedBudget,Sheet1!S71_SA30FDSubCode,$AC:$AC,Sheet1!S71_CFCode,$AD:$AD)","v":258300},null,null,null,null,null,null,null,null,null,null,"0170","D"]
["Interest earned - external investments",null,{"$f":"SUMIFS(Sheet1!S71_MonthlyOutcomeJul,Sheet1!S71_SA30FDSubCode,$AC:$AC,Sheet1!S71_CFCode,$AD:$AD)","v":0},{"$f":"SUMIFS(Sheet1!S71_MonthlyOutcomeAug,Sheet1!S71_SA30FDSubCode,$AC:$AC,Sheet1!S71_CFCode,$AD:$AD)","v":0},{"$f":"SUMIFS(Sheet1!S71_MonthlyOutcomeSep,Sheet1!S71_SA30FDSubCode,$AC:$AC,Sheet1!S71_CFCode,$AD:$AD)","v":0},{"$f":"SUMIFS(Sheet1!S71_MonthlyOutcomeOct,Sheet1!S71_SA30FDSubCode,$AC:$AC,Sheet1!S71_CFCode,$AD:$AD)","v":0},{"$f":"SUMIFS(Sheet1!S71_MonthlyOutcomeNov,Sheet1!S71_SA30FDSubCode,$AC:$AC,Sheet1!S71_CFCode,$AD:$AD)","v":0},{"$f":"SUMIFS(Sheet1!S71_MonthlyOutcomeDec,Sheet1!S71_SA30FDSubCode,$AC:$AC,Sheet1!S71_CFCode,$AD:$AD)","v":0},0,0,0,0,0,0,0,{"$f":"SUMIFS(Sheet1!S71_AdjustedBudget,Sheet1!S71_SA30FDSubCode,$AC:$AC,Sheet1!S71_CFCode,$AD:$AD)","v":0},{"$f":"SUMIFS(Sheet1!S71_OY1AdjustedBudget,Sheet1!S71_SA30FDSubCode,$AC:$AC,Sheet1!S71_CFCode,$AD:$AD)","v":0},{"$f":"SUMIFS(Sheet1!S71_OY2AdjustedBudget,Sheet1!S71_SA30FDSubCode,$AC:$AC,Sheet1!S71_CFCode,$AD:$AD)","v":0},null,null,null,null,null,null,null,null,null,null,"0180","D"]
["Interest earned - outstanding debtors",null,{"$f":"SUMIFS(Sheet1!S71_MonthlyOutcomeJul,Sheet1!S71_SA30FDSubCode,$AC:$AC,Sheet1!S71_CFCode,$AD:$AD)","v":0},{"$f":"SUMIFS(Sheet1!S71_MonthlyOutcomeAug,Sheet1!S71_SA30FDSubCode,$AC:$AC,Sheet1!S71_CFCode,$AD:$AD)","v":0},{"$f":"SUMIFS(Sheet1!S71_MonthlyOutcomeSep,Sheet1!S71_SA30FDSubCode,$AC:$AC,Sheet1!S71_CFCode,$AD:$AD)","v":0},{"$f":"SUMIFS(Sheet1!S71_MonthlyOutcomeOct,Sheet1!S71_SA30FDSubCode,$AC:$AC,Sheet1!S71_CFCode,$AD:$AD)","v":0},{"$f":"SUMIFS(Sheet1!S71_MonthlyOutcomeNov,Sheet1!S71_SA30FDSubCode,$AC:$AC,Sheet1!S71_CFCode,$AD:$AD)","v":0},{"$f":"SUMIFS(Sheet1!S71_MonthlyOutcomeDec,Sheet1!S71_SA30FDSubCode,$AC:$AC,Sheet1!S71_CFCode,$AD:$AD)","v":0},0,0,0,0,0,0,0,{"$f":"SUMIFS(Sheet1!S71_AdjustedBudget,Sheet1!S71_SA30FDSubCode,$AC:$AC,Sheet1!S71_CFCode,$AD:$AD)","v":0},{"$f":"SUMIFS(Sheet1!S71_OY1AdjustedBudget,Sheet1!S71_SA30FDSubCode,$AC:$AC,Sheet1!S71_CFCode,$AD:$AD)","v":0},{"$f":"SUMIFS(Sheet1!S71_OY2AdjustedBudget,Sheet1!S71_SA30FDSubCode,$AC:$AC,Sheet1!S71_CFCode,$AD:$AD)","v":0},null,null,null,null,null,null,null,null,null,null,"0190","D"]
["Dividends received",null,{"$f":"SUMIFS(Sheet1!S71_MonthlyOutcomeJul,Sheet1!S71_SA30FDSubCode,$AC:$AC,Sheet1!S71_CFCode,$AD:$AD)","v":0},{"$f":"SUMIFS(Sheet1!S71_MonthlyOutcomeAug,Sheet1!S71_SA30FDSubCode,$AC:$AC,Sheet1!S71_CFCode,$AD:$AD)","v":0},{"$f":"SUMIFS(Sheet1!S71_MonthlyOutcomeSep,Sheet1!S71_SA30FDSubCode,$AC:$AC,Sheet1!S71_CFCode,$AD:$AD)","v":0},{"$f":"SUMIFS(Sheet1!S71_MonthlyOutcomeOct,Sheet1!S71_SA30FDSubCode,$AC:$AC,Sheet1!S71_CFCode,$AD:$AD)","v":0},{"$f":"SUMIFS(Sheet1!S71_MonthlyOutcomeNov,Sheet1!S71_SA30FDSubCode,$AC:$AC,Sheet1!S71_CFCode,$AD:$AD)","v":0},{"$f":"SUMIFS(Sheet1!S71_MonthlyOutcomeDec,Sheet1!S71_SA30FDSubCode,$AC:$AC,Sheet1!S71_CFCode,$AD:$AD)","v":0},0,0,0,0,0,0,0,{"$f":"SUMIFS(Sheet1!S71_AdjustedBudget,Sheet1!S71_SA30FDSubCode,$AC:$AC,Sheet1!S71_CFCode,$AD:$AD)","v":0},{"$f":"SUMIFS(Sheet1!S71_OY1AdjustedBudget,Sheet1!S71_SA30FDSubCode,$AC:$AC,Sheet1!S71_CFCode,$AD:$AD)","v":0},{"$f":"SUMIFS(Sheet1!S71_OY2AdjustedBudget,Sheet1!S71_SA30FDSubCode,$AC:$AC,Sheet1!S71_CFCode,$AD:$AD)","v":0},null,null,null,null,null,null,null,null,null,null,"0200","D"]
["Fines, penalties and forfeits",null,{"$f":"SUMIFS(Sheet1!S71_MonthlyOutcomeJul,Sheet1!S71_SA30FDSubCode,$AC:$AC,Sheet1!S71_CFCode,$AD:$AD)","v":7350},{"$f":"SUMIFS(Sheet1!S71_MonthlyOutcomeAug,Sheet1!S71_SA30FDSubCode,$AC:$AC,Sheet1!S71_CFCode,$AD:$AD)","v":6100},{"$f":"SUMIFS(Sheet1!S71_MonthlyOutcomeSep,Sheet1!S71_SA30FDSubCode,$AC:$AC,Sheet1!S71_CFCode,$AD:$AD)","v":10900},{"$f":"SUMIFS(Sheet1!S71_MonthlyOutcomeOct,Sheet1!S71_SA30FDSubCode,$AC:$AC,Sheet1!S71_CFCode,$AD:$AD)","v":10700},{"$f":"SUMIFS(Sheet1!S71_MonthlyOutcomeNov,Sheet1!S71_SA30FDSubCode,$AC:$AC,Sheet1!S71_CFCode,$AD:$AD)","v":8300},{"$f":"SUMIFS(Sheet1!S71_MonthlyOutcomeDec,Sheet1!S71_SA30FDSubCode,$AC:$AC,Sheet1!S71_CFCode,$AD:$AD)","v":6000},209197,209197,209197,209197,209197,209197,1304532,{"$f":"SUMIFS(Sheet1!S71_AdjustedBudget,Sheet1!S71_SA30FDSubCode,$AC:$AC,Sheet1!S71_CFCode,$AD:$AD)","v":1304532},{"$f":"SUMIFS(Sheet1!S71_OY1AdjustedBudget,Sheet1!S71_SA30FDSubCode,$AC:$AC,Sheet1!S71_CFCode,$AD:$AD)","v":1896528},{"$f":"SUMIFS(Sheet1!S71_OY2AdjustedBudget,Sheet1!S71_SA30FDSubCode,$AC:$AC,Sheet1!S71_CFCode,$AD:$AD)","v":1981871},null,null,null,null,null,null,null,null,null,null,"0210","D"]
["Licences and permits",null,{"$f":"SUMIFS(Sheet1!S71_MonthlyOutcomeJul,Sheet1!S71_SA30FDSubCode,$AC:$AC,Sheet1!S71_CFCode,$AD:$AD)","v":258730},{"$f":"SUMIFS(Sheet1!S71_MonthlyOutcomeAug,Sheet1!S71_SA30FDSubCode,$AC:$AC,Sheet1!S71_CFCode,$AD:$AD)","v":309620},{"$f":"SUMIFS(Sheet1!S71_MonthlyOutcomeSep,Sheet1!S71_SA30FDSubCode,$AC:$AC,Sheet1!S71_CFCode,$AD:$AD)","v":224760},{"$f":"SUMIFS(Sheet1!S71_MonthlyOutcomeOct,Sheet1!S71_SA30FDSubCode,$AC:$AC,Sheet1!S71_CFCode,$AD:$AD)","v":240530},{"$f":"SUMIFS(Sheet1!S71_MonthlyOutcomeNov,Sheet1!S71_SA30FDSubCode,$AC:$AC,Sheet1!S71_CFCode,$AD:$AD)","v":258820},{"$f":"SUMIFS(Sheet1!S71_MonthlyOutcomeDec,Sheet1!S71_SA30FDSubCode,$AC:$AC,Sheet1!S71_CFCode,$AD:$AD)","v":231610},223828.66666666666,223828.66666666666,223828.66666666666,223828.66666666666,223828.66666666666,223828.66666666698,2867042,{"$f":"SUMIFS(Sheet1!S71_AdjustedBudget,Sheet1!S71_SA30FDSubCode,$AC:$AC,Sheet1!S71_CFCode,$AD:$AD)","v":2867042},{"$f":"SUMIFS(Sheet1!S71_OY1AdjustedBudget,Sheet1!S71_SA30FDSubCode,$AC:$AC,Sheet1!S71_CFCode,$AD:$AD)","v":2967042},{"$f":"SUMIFS(Sheet1!S71_OY2AdjustedBudget,Sheet1!S71_SA30FDSubCode,$AC:$AC,Sheet1!S71_CFCode,$AD:$AD)","v":2987042},null,null,null,null,null,null,null,null,null,null,"0220","D"]
["Agency services",null,{"$f":"SUMIFS(Sheet1!S71_MonthlyOutcomeJul,Sheet1!S71_SA30FDSubCode,$AC:$AC,Sheet1!S71_CFCode,$AD:$AD)","v":0},{"$f":"SUMIFS(Sheet1!S71_MonthlyOutcomeAug,Sheet1!S71_SA30FDSubCode,$AC:$AC,Sheet1!S71_CFCode,$AD:$AD)","v":0},{"$f":"SUMIFS(Sheet1!S71_MonthlyOutcomeSep,Sheet1!S71_SA30FDSubCode,$AC:$AC,Sheet1!S71_CFCode,$AD:$AD)","v":0},{"$f":"SUMIFS(Sheet1!S71_MonthlyOutcomeOct,Sheet1!S71_SA30FDSubCode,$AC:$AC,Sheet1!S71_CFCode,$AD:$AD)","v":0},{"$f":"SUMIFS(Sheet1!S71_MonthlyOutcomeNov,Sheet1!S71_SA30FDSubCode,$AC:$AC,Sheet1!S71_CFCode,$AD:$AD)","v":0},{"$f":"SUMIFS(Sheet1!S71_MonthlyOutcomeDec,Sheet1!S71_SA30FDSubCode,$AC:$AC,Sheet1!S71_CFCode,$AD:$AD)","v":0},0,0,0,0,0,0,0,{"$f":"SUMIFS(Sheet1!S71_AdjustedBudget,Sheet1!S71_SA30FDSubCode,$AC:$AC,Sheet1!S71_CFCode,$AD:$AD)","v":0},{"$f":"SUMIFS(Sheet1!S71_OY1AdjustedBudget,Sheet1!S71_SA30FDSubCode,$AC:$AC,Sheet1!S71_CFCode,$AD:$AD)","v":0},{"$f":"SUMIFS(Sheet1!S71_OY2AdjustedBudget,Sheet1!S71_SA30FDSubCode,$AC:$AC,Sheet1!S71_CFCode,$AD:$AD)","v":0},null,null,null,null,null,null,null,null,null,null,"0230","D"]
["Transfers and Subsidies - Operational",null,{"$f":"SUMIFS(Sheet1!S71_MonthlyOutcomeJul,Sheet1!S71_SA30FDSubCode,$AC:$AC,Sheet1!S71_CFCode,$AD:$AD)","v":0},{"$f":"SUMIFS(Sheet1!S71_MonthlyOutcomeAug,Sheet1!S71_SA30FDSubCode,$AC:$AC,Sheet1!S71_CFCode,$AD:$AD)","v":2290000},{"$f":"SUMIFS(Sheet1!S71_MonthlyOutcomeSep,Sheet1!S71_SA30FDSubCode,$AC:$AC,Sheet1!S71_CFCode,$AD:$AD)","v":0},{"$f":"SUMIFS(Sheet1!S71_MonthlyOutcomeOct,Sheet1!S71_SA30FDSubCode,$AC:$AC,Sheet1!S71_CFCode,$AD:$AD)","v":-1.8189894035458565E-12},{"$f":"SUMIFS(Sheet1!S71_MonthlyOutcomeNov,Sheet1!S71_SA30FDSubCode,$AC:$AC,Sheet1!S71_CFCode,$AD:$AD)","v":5306000},{"$f":"SUMIFS(Sheet1!S71_MonthlyOutcomeDec,Sheet1!S71_SA30FDSubCode,$AC:$AC,Sheet1!S71_CFCode,$AD:$AD)","v":17841091.300000001},28213576.783333331,28213576.783333331,28213576.783333331,28213576.783333331,28213576.783333331,28213576.783333331,194718552,{"$f":"SUMIFS(Sheet1!S71_AdjustedBudget,Sheet1!S71_SA30FDSubCode,$AC:$AC,Sheet1!S71_CFCode,$AD:$AD)","v":194718552},{"$f":"SUMIFS(Sheet1!S71_OY1AdjustedBudget,Sheet1!S71_SA30FDSubCode,$AC:$AC,Sheet1!S71_CFCode,$AD:$AD)","v":204456000},{"$f":"SUMIFS(Sheet1!S71_OY2AdjustedBudget,Sheet1!S71_SA30FDSubCode,$AC:$AC,Sheet1!S71_CFCode,$AD:$AD)","v":201783000},null,null,null,null,null,null,null,null,null,null,"0240","D"]
["Other revenue",null,{"$f":"SUMIFS(Sheet1!S71_MonthlyOutcomeJul,Sheet1!S71_SA30FDSubCode,$AC:$AC,Sheet1!S71_CFCode,$AD:$AD)","v":81817956.080000013},{"$f":"SUMIFS(Sheet1!S71_MonthlyOutcomeAug,Sheet1!S71_SA30FDSubCode,$AC:$AC,Sheet1!S71_CFCode,$AD:$AD)","v":7075191.5299999993},{"$f":"SUMIFS(Sheet1!S71_MonthlyOutcomeSep,Sheet1!S71_SA30FDSubCode,$AC:$AC,Sheet1!S71_CFCode,$AD:$AD)","v":5955380.6300000008},{"$f":"SUMIFS(Sheet1!S71_MonthlyOutcomeOct,Sheet1!S71_SA30FDSubCode,$AC:$AC,Sheet1!S71_CFCode,$AD:$AD)","v":3170121.45},{"$f":"SUMIFS(Sheet1!S71_MonthlyOutcomeNov,Sheet1!S71_SA30FDSubCode,$AC:$AC,Sheet1!S71_CFCode,$AD:$AD)","v":3552185.0500000003},{"$f":"SUMIFS(Sheet1!S71_MonthlyOutcomeDec,Sheet1!S71_SA30FDSubCode,$AC:$AC,Sheet1!S71_CFCode,$AD:$AD)","v":79339481.379999995},-30014957.02,-30014957.02,-30014957.02,-30014957.02,-30014957.02,-30014957.020000007,820574,{"$f":"SUMIFS(Sheet1!S71_AdjustedBudget,Sheet1!S71_SA30FDSubCode,$AC:$AC,Sheet1!S71_CFCode,$AD:$AD)","v":820574},{"$f":"SUMIFS(Sheet1!S71_OY1AdjustedBudget,Sheet1!S71_SA30FDSubCode,$AC:$AC,Sheet1!S71_CFCode,$AD:$AD)","v":511892},{"$f":"SUMIFS(Sheet1!S71_OY2AdjustedBudget,Sheet1!S71_SA30FDSubCode,$AC:$AC,Sheet1!S71_CFCode,$AD:$AD)","v":534927},null,null,null,null,null,null,null,null,null,null,"0250","D"]
["Cash Receipts by Source",null,{"$f":"SUM(C6:C10)+SUM(C12:C20)","v":82337013.470000014},{"$f":"SUM(D6:D10)+SUM(D12:D20)","v":10042939.949999999},7561125.0700000012,9033571.8200000003,14016066.76,97853202.969999984,-1092217.8400000017,-1092217.8400000017,-1092217.8400000017,-1092217.8400000017,-1092217.8400000017,-1092217.8400000092,214290613,214290613,224212447,221778948]
[]
["Other Cash Flows by Source"]
[{"$f":"'B4-FinPerf RE'!A40","v":"Transfers and subsidies - capital (monetary allocations) (National / Provincial and District)"},null,{"$f":"SUMIFS(Sheet1!S71_MonthlyOutcomeJul,Sheet1!S71_SA30FDSubCode,$AC:$AC,Sheet1!S71_CFCode,$AD:$AD)","v":0},{"$f":"SUMIFS(Sheet1!S71_MonthlyOutcomeAug,Sheet1!S71_SA30FDSubCode,$AC:$AC,Sheet1!S71_CFCode,$AD:$AD)","v":0},{"$f":"SUMIFS(Sheet1!S71_MonthlyOutcomeSep,Sheet1!S71_SA30FDSubCode,$AC:$AC,Sheet1!S71_CFCode,$AD:$AD)","v":0},{"$f":"SUMIFS(Sheet1!S71_MonthlyOutcomeOct,Sheet1!S71_SA30FDSubCode,$AC:$AC,Sheet1!S71_CFCode,$AD:$AD)","v":0},{"$f":"SUMIFS(Sheet1!S71_MonthlyOutcomeNov,Sheet1!S71_SA30FDSubCode,$AC:$AC,Sheet1!S71_CFCode,$AD:$AD)","v":0},{"$f":"SUMIFS(Sheet1!S71_MonthlyOutcomeDec,Sheet1!S71_SA30FDSubCode,$AC:$AC,Sheet1!S71_CFCode,$AD:$AD)","v":0},{"$f":"(P24-SUM(C24:H24))/6","v":0},{"$f":"(P24-SUM(C24:H24))/6","v":0},{"$f":"(P24-SUM(C24:H24))/6","v":0},{"$f":"(P24-SUM(C24:H24))/6","v":0},{"$f":"(P24-SUM(C24:H24))/6","v":0},{"$f":"P24-SUM(C24:M24)","v":0},{"$f":"SUM(C24:N24)","v":0},{"$f":"SUMIFS(Sheet1!S71_AdjustedBudget,Sheet1!S71_SA30FDSubCode,$AC:$AC,Sheet1!S71_CFCode,$AD:$AD)","v":0},{"$f":"SUMIFS(Sheet1!S71_OY1AdjustedBudget,Sheet1!S71_SA30FDSubCode,$AC:$AC,Sheet1!S71_CFCode,$AD:$AD)","v":0},{"$f":"SUMIFS(Sheet1!S71_OY2AdjustedBudget,Sheet1!S71_SA30FDSubCode,$AC:$AC,Sheet1!S71_CFCode,$AD:$AD)","v":0},null,null,null,null,null,null,null,null,null,null,"0280"]
[{"$f":"'B4-FinPerf RE'!A41","v":"Transfers and subsidies - capital (monetary allocations) (National / Provincial Departmental Agencies, Households, Non-profit Institutions, Private Enterprises, Public Corporatons, Higher Educational Institutions)"},null,{"$f":"SUMIFS(Sheet1!S71_MonthlyOutcomeJul,Sheet1!S71_SA30FDSubCode,$AC:$AC,Sheet1!S71_CFCode,$AD:$AD)","v":0},{"$f":"SUMIFS(Sheet1!S71_MonthlyOutcomeAug,Sheet1!S71_SA30FDSubCode,$AC:$AC,Sheet1!S71_CFCode,$AD:$AD)","v":0},{"$f":"SUMIFS(Sheet1!S71_MonthlyOutcomeSep,Sheet1!S71_SA30FDSubCode,$AC:$AC,Sheet1!S71_CFCode,$AD:$AD)","v":0},{"$f":"SUMIFS(Sheet1!S71_MonthlyOutcomeOct,Sheet1!S71_SA30FDSubCode,$AC:$AC,Sheet1!S71_CFCode,$AD:$AD)","v":0},{"$f":"SUMIFS(Sheet1!S71_MonthlyOutcomeNov,Sheet1!S71_SA30FDSubCode,$AC:$AC,Sheet1!S71_CFCode,$AD:$AD)","v":0},{"$f":"SUMIFS(Sheet1!S71_MonthlyOutcomeDec,Sheet1!S71_SA30FDSubCode,$AC:$AC,Sheet1!S71_CFCode,$AD:$AD)","v":0},0,0,0,0,0,0,{"$f":"SUM(C25:N25)","v":0},{"$f":"SUMIFS(Sheet1!S71_AdjustedBudget,Sheet1!S71_SA30FDSubCode,$AC:$AC,Sheet1!S71_CFCode,$AD:$AD)","v":0},{"$f":"SUMIFS(Sheet1!S71_OY1AdjustedBudget,Sheet1!S71_SA30FDSubCode,$AC:$AC,Sheet1!S71_CFCode,$AD:$AD)","v":0},{"$f":"SUMIFS(Sheet1!S71_OY2AdjustedBudget,Sheet1!S71_SA30FDSubCode,$AC:$AC,Sheet1!S71_CFCode,$AD:$AD)","v":0},null,null,null,null,null,null,null,null,null,null,"0290"]
["Proceeds on Disposal of Fixed and Intangible Assets",null,{"$f":"SUMIFS(Sheet1!S71_MonthlyOutcomeJul,Sheet1!S71_SA30FDSubCode,$AC:$AC,Sheet1!S71_CFCode,$AD:$AD)","v":0},{"$f":"SUMIFS(Sheet1!S71_MonthlyOutcomeAug,Sheet1!S71_SA30FDSubCode,$AC:$AC,Sheet1!S71_CFCode,$AD:$AD)","v":0},{"$f":"SUMIFS(Sheet1!S71_MonthlyOutcomeSep,Sheet1!S71_SA30FDSubCode,$AC:$AC,Sheet1!S71_CFCode,$AD:$AD)","v":0},{"$f":"SUMIFS(Sheet1!S71_MonthlyOutcomeOct,Sheet1!S71_SA30FDSubCode,$AC:$AC,Sheet1!S71_CFCode,$AD:$AD)","v":0},{"$f":"SUMIFS(Sheet1!S71_MonthlyOutcomeNov,Sheet1!S71_SA30FDSubCode,$AC:$AC,Sheet1!S71_CFCode,$AD:$AD)","v":0},{"$f":"SUMIFS(Sheet1!S71_MonthlyOutcomeDec,Sheet1!S71_SA30FDSubCode,$AC:$AC,Sheet1!S71_CFCode,$AD:$AD)","v":0},0,0,0,0,0,0,{"$f":"SUM(C26:N26)","v":0},{"$f":"SUMIFS(Sheet1!S71_AdjustedBudget,Sheet1!S71_SA30FDSubCode,$AC:$AC,Sheet1!S71_CFCode,$AD:$AD)","v":0},{"$f":"SUMIFS(Sheet1!S71_OY1AdjustedBudget,Sheet1!S71_SA30FDSubCode,$AC:$AC,Sheet1!S71_CFCode,$AD:$AD)","v":0},{"$f":"SUMIFS(Sheet1!S71_OY2AdjustedBudget,Sheet1!S71_SA30FDSubCode,$AC:$AC,Sheet1!S71_CFCode,$AD:$AD)","v":0},null,null,null,null,null,null,null,null,null,null,"0300"]
["Short term loans",null,{"$f":"SUMIFS(Sheet1!S71_MonthlyOutcomeJul,Sheet1!S71_SA30FDSubCode,$AC:$AC,Sheet1!S71_CFCode,$AD:$AD)","v":0},{"$f":"SUMIFS(Sheet1!S71_MonthlyOutcomeAug,Sheet1!S71_SA30FDSubCode,$AC:$AC,Sheet1!S71_CFCode,$AD:$AD)","v":0},{"$f":"SUMIFS(Sheet1!S71_MonthlyOutcomeSep,Sheet1!S71_SA30FDSubCode,$AC:$AC,Sheet1!S71_CFCode,$AD:$AD)","v":0},{"$f":"SUMIFS(Sheet1!S71_MonthlyOutcomeOct,Sheet1!S71_SA30FDSubCode,$AC:$AC,Sheet1!S71_CFCode,$AD:$AD)","v":0},{"$f":"SUMIFS(Sheet1!S71_MonthlyOutcomeNov,Sheet1!S71_SA30FDSubCode,$AC:$AC,Sheet1!S71_CFCode,$AD:$AD)","v":0},{"$f":"SUMIFS(Sheet1!S71_MonthlyOutcomeDec,Sheet1!S71_SA30FDSubCode,$AC:$AC,Sheet1!S71_CFCode,$AD:$AD)","v":0},0,0,0,0,0,0,{"$f":"SUM(C27:N27)","v":0},{"$f":"SUMIFS(Sheet1!S71_AdjustedBudget,Sheet1!S71_SA30FDSubCode,$AC:$AC,Sheet1!S71_CFCode,$AD:$AD)","v":0},{"$f":"SUMIFS(Sheet1!S71_OY1AdjustedBudget,Sheet1!S71_SA30FDSubCode,$AC:$AC,Sheet1!S71_CFCode,$AD:$AD)","v":0},{"$f":"SUMIFS(Sheet1!S71_OY2AdjustedBudget,Sheet1!S71_SA30FDSubCode,$AC:$AC,Sheet1!S71_CFCode,$AD:$AD)","v":0},null,null,null,null,null,null,null,null,null,null,"0310"]
["Borrowing long term/refinancing",null,{"$f":"SUMIFS(Sheet1!S71_MonthlyOutcomeJul,Sheet1!S71_SA30FDSubCode,$AC:$AC,Sheet1!S71_CFCode,$AD:$AD)","v":0},{"$f":"SUMIFS(Sheet1!S71_MonthlyOutcomeAug,Sheet1!S71_SA30FDSubCode,$AC:$AC,Sheet1!S71_CFCode,$AD:$AD)","v":0},{"$f":"SUMIFS(Sheet1!S71_MonthlyOutcomeSep,Sheet1!S71_SA30FDSubCode,$AC:$AC,Sheet1!S71_CFCode,$AD:$AD)","v":0},{"$f":"SUMIFS(Sheet1!S71_MonthlyOutcomeOct,Sheet1!S71_SA30FDSubCode,$AC:$AC,Sheet1!S71_CFCode,$AD:$AD)","v":0},{"$f":"SUMIFS(Sheet1!S71_MonthlyOutcomeNov,Sheet1!S71_SA30FDSubCode,$AC:$AC,Sheet1!S71_CFCode,$AD:$AD)","v":0},{"$f":"SUMIFS(Sheet1!S71_MonthlyOutcomeDec,Sheet1!S71_SA30FDSubCode,$AC:$AC,Sheet1!S71_CFCode,$AD:$AD)","v":0},0,0,0,0,0,0,null,{"$f":"SUMIFS(Sheet1!S71_AdjustedBudget,Sheet1!S71_SA30FDSubCode,$AC:$AC,Sheet1!S71_CFCode,$AD:$AD)","v":0},{"$f":"SUMIFS(Sheet1!S71_OY1AdjustedBudget,Sheet1!S71_SA30FDSubCode,$AC:$AC,Sheet1!S71_CFCode,$AD:$AD)","v":0},{"$f":"SUMIFS(Sheet1!S71_OY2AdjustedBudget,Sheet1!S71_SA30FDSubCode,$AC:$AC,Sheet1!S71_CFCode,$AD:$AD)","v":0},null,null,null,null,null,null,null,null,null,null,"0320"]
["Increase (decrease) in consumer deposits",null,{"$f":"SUMIFS(Sheet1!S71_MonthlyOutcomeJul,Sheet1!S71_SA30FDSubCode,$AC:$AC,Sheet1!S71_CFCode,$AD:$AD)","v":0},{"$f":"SUMIFS(Sheet1!S71_MonthlyOutcomeAug,Sheet1!S71_SA30FDSubCode,$AC:$AC,Sheet1!S71_CFCode,$AD:$AD)","v":0},{"$f":"SUMIFS(Sheet1!S71_MonthlyOutcomeSep,Sheet1!S71_SA30FDSubCode,$AC:$AC,Sheet1!S71_CFCode,$AD:$AD)","v":0},{"$f":"SUMIFS(Sheet1!S71_MonthlyOutcomeOct,Sheet1!S71_SA30FDSubCode,$AC:$AC,Sheet1!S71_CFCode,$AD:$AD)","v":0},{"$f":"SUMIFS(Sheet1!S71_MonthlyOutcomeNov,Sheet1!S71_SA30FDSubCode,$AC:$AC,Sheet1!S71_CFCode,$AD:$AD)","v":0},{"$f":"SUMIFS(Sheet1!S71_MonthlyOutcomeDec,Sheet1!S71_SA30FDSubCode,$AC:$AC,Sheet1!S71_CFCode,$AD:$AD)","v":0},0,0,0,0,0,0,null,{"$f":"SUMIFS(Sheet1!S71_AdjustedBudget,Sheet1!S71_SA30FDSubCode,$AC:$AC,Sheet1!S71_CFCode,$AD:$AD)","v":0},{"$f":"SUMIFS(Sheet1!S71_OY1AdjustedBudget,Sheet1!S71_SA30FDSubCode,$AC:$AC,Sheet1!S71_CFCode,$AD:$AD)","v":0},{"$f":"SUMIFS(Sheet1!S71_OY2AdjustedBudget,Sheet1!S71_SA30FDSubCode,$AC:$AC,Sheet1!S71_CFCode,$AD:$AD)","v":0},null,null,null,null,null,null,null,null,null,null,"0330"]
[null,null,{"$f":"SUMIFS(Sheet1!S71_MonthlyOutcomeJul,Sheet1!S71_SA30FDSubCode,$AC:$AC,Sheet1!S71_CFCode,$AD:$AD)","v":0},{"$f":"SUMIFS(Sheet1!S71_MonthlyOutcomeAug,Sheet1!S71_SA30FDSubCode,$AC:$AC,Sheet1!S71_CFCode,$AD:$AD)","v":0},{"$f":"SUMIFS(Sheet1!S71_MonthlyOutcomeSep,Sheet1!S71_SA30FDSubCode,$AC:$AC,Sheet1!S71_CFCode,$AD:$AD)","v":0},{"$f":"SUMIFS(Sheet1!S71_MonthlyOutcomeOct,Sheet1!S71_SA30FDSubCode,$AC:$AC,Sheet1!S71_CFCode,$AD:$AD)","v":0},{"$f":"SUMIFS(Sheet1!S71_MonthlyOutcomeNov,Sheet1!S71_SA30FDSubCode,$AC:$AC,Sheet1!S71_CFCode,$AD:$AD)","v":0},{"$f":"SUMIFS(Sheet1!S71_MonthlyOutcomeDec,Sheet1!S71_SA30FDSubCode,$AC:$AC,Sheet1!S71_CFCode,$AD:$AD)","v":0},0,0,0,0,0,null,null,{"$f":"SUMIFS(Sheet1!S71_AdjustedBudget,Sheet1!S71_SA30FDSubCode,$AC:$AC,Sheet1!S71_CFCode,$AD:$AD)","v":0},{"$f":"SUMIFS(Sheet1!S71_OY1AdjustedBudget,Sheet1!S71_SA30FDSubCode,$AC:$AC,Sheet1!S71_CFCode,$AD:$AD)","v":0},{"$f":"SUMIFS(Sheet1!S71_OY2AdjustedBudget,Sheet1!S71_SA30FDSubCode,$AC:$AC,Sheet1!S71_CFCode,$AD:$AD)","v":0},null,null,null,null,null,null,null,null,null,null,"0340"]
["Decrease (increase) in non-current receivables",null,{"$f":"SUMIFS(Sheet1!S71_MonthlyOutcomeJul,Sheet1!S71_SA30FDSubCode,$AC:$AC,Sheet1!S71_CFCode,$AD:$AD)","v":0},{"$f":"SUMIFS(Sheet1!S71_MonthlyOutcomeAug,Sheet1!S71_SA30FDSubCode,$AC:$AC,Sheet1!S71_CFCode,$AD:$AD)","v":0},{"$f":"SUMIFS(Sheet1!S71_MonthlyOutcomeSep,Sheet1!S71_SA30FDSubCode,$AC:$AC,Sheet1!S71_CFCode,$AD:$AD)","v":0},{"$f":"SUMIFS(Sheet1!S71_MonthlyOutcomeOct,Sheet1!S71_SA30FDSubCode,$AC:$AC,Sheet1!S71_CFCode,$AD:$AD)","v":0},{"$f":"SUMIFS(Sheet1!S71_MonthlyOutcomeNov,Sheet1!S71_SA30FDSubCode,$AC:$AC,Sheet1!S71_CFCode,$AD:$AD)","v":0},{"$f":"SUMIFS(Sheet1!S71_MonthlyOutcomeDec,Sheet1!S71_SA30FDSubCode,$AC:$AC,Sheet1!S71_CFCode,$AD:$AD)","v":0},0,0,0,0,0,0,null,{"$f":"SUMIFS(Sheet1!S71_AdjustedBudget,Sheet1!S71_SA30FDSubCode,$AC:$AC,Sheet1!S71_CFCode,$AD:$AD)","v":0},{"$f":"SUMIFS(Sheet1!S71_OY1AdjustedBudget,Sheet1!S71_SA30FDSubCode,$AC:$AC,Sheet1!S71_CFCode,$AD:$AD)","v":0},{"$f":"SUMIFS(Sheet1!S71_OY2AdjustedBudget,Sheet1!S71_SA30FDSubCode,$AC:$AC,Sheet1!S71_CFCode,$AD:$AD)","v":0},null,null,null,null,null,null,null,null,null,null,"0350"]
["Decrease (increase) in non-current investments",null,{"$f":"SUMIFS(Sheet1!S71_MonthlyOutcomeJul,Sheet1!S71_SA30FDSubCode,$AC:$AC,Sheet1!S71_CFCode,$AD:$AD)","v":0},{"$f":"SUMIFS(Sheet1!S71_MonthlyOutcomeAug,Sheet1!S71_SA30FDSubCode,$AC:$AC,Sheet1!S71_CFCode,$AD:$AD)","v":0},{"$f":"SUMIFS(Sheet1!S71_MonthlyOutcomeSep,Sheet1!S71_SA30FDSubCode,$AC:$AC,Sheet1!S71_CFCode,$AD:$AD)","v":0},{"$f":"SUMIFS(Sheet1!S71_MonthlyOutcomeOct,Sheet1!S71_SA30FDSubCode,$AC:$AC,Sheet1!S71_CFCode,$AD:$AD)","v":0},{"$f":"SUMIFS(Sheet1!S71_MonthlyOutcomeNov,Sheet1!S71_SA30FDSubCode,$AC:$AC,Sheet1!S71_CFCode,$AD:$AD)","v":0},{"$f":"SUMIFS(Sheet1!S71_MonthlyOutcomeDec,Sheet1!S71_SA30FDSubCode,$AC:$AC,Sheet1!S71_CFCode,$AD:$AD)","v":0},0,0,0,0,0,0,null,{"$f":"SUMIFS(Sheet1!S71_AdjustedBudget,Sheet1!S71_SA30FDSubCode,$AC:$AC,Sheet1!S71_CFCode,$AD:$AD)","v":0},{"$f":"SUMIFS(Sheet1!S71_OY1AdjustedBudget,Sheet1!S71_SA30FDSubCode,$AC:$AC,Sheet1!S71_CFCode,$AD:$AD)","v":0},{"$f":"SUMIFS(Sheet1!S71_OY2AdjustedBudget,Sheet1!S71_SA30FDSubCode,$AC:$AC,Sheet1!S71_CFCode,$AD:$AD)","v":0},null,null,null,null,null,null,null,null,null,null,"0360"]
["Total Cash Receipts by Source",null,{"$f":"SUM(C21:C29)+SUM(C31:C32)","v":82337013.470000014},{"$f":"SUM(D21:D29)+SUM(D31:D32)","v":10042939.949999999},7561125.0700000012,9033571.8200000003,14016066.76,97853202.969999984,-1092217.8400000017,-1092217.8400000017,-1092217.8400000017,-1092217.8400000017,-1092217.8400000017,-1092217.8400000092,214290613,214290613,224212447,221778948,null,null,null,null,null,null,null,null,null,null,"0370"]
[]
["Cash Payments by Type",null,null,null,null,null,null,null,null,null,null,null,null,null,null,null,null,null,null,null,null,null,null,null,null,null,null,null,"0380"]
["Employee related costs",null,{"$f":"SUMIFS(Sheet1!S71_MonthlyOutcomeJul,Sheet1!S71_A7SubCodePayments,$AC:$AC)","v":8934412.290000001},{"$f":"SUMIFS(Sheet1!S71_MonthlyOutcomeAug,Sheet1!S71_A7SubCodePayments,$AC:$AC)","v":7229952.29},{"$f":"SUMIFS(Sheet1!S71_MonthlyOutcomeSep,Sheet1!S71_A7SubCodePayments,$AC:$AC)","v":7102852.1099999994},{"$f":"SUMIFS(Sheet1!S71_MonthlyOutcomeOct,Sheet1!S71_A7SubCodePayments,$AC:$AC)","v":8384465.0100000007},{"$f":"SUMIFS(Sheet1!S71_MonthlyOutcomeNov,Sheet1!S71_A7SubCodePayments,$AC:$AC)","v":7021062.2499999991},{"$f":"SUMIFS(Sheet1!S71_MonthlyOutcomeDec,Sheet1!S71_A7SubCodePayments,$AC:$AC)","v":10925972.92},{"$f":"(P36-SUM(C36:H36))/6","v":9983095.0216666665},{"$f":"(P36-SUM(C36:H36))/6","v":9983095.0216666665},{"$f":"(P36-SUM(C36:H36))/6","v":9983095.0216666665},{"$f":"(P36-SUM(C36:H36))/6","v":9983095.0216666665},{"$f":"(P36-SUM(C36:H36))/6","v":9983095.0216666665},{"$f":"P36-SUM(C36:M36)","v":9983095.0216666758},{"$f":"SUM(C36:N36)","v":109497287},{"$f":"SUMIFS(Sheet1!S71_AdjustedBudget,Sheet1!S71_A7SubCodePayments,$AC:$AC)","v":109497287},{"$f":"SUMIFS(Sheet1!S71_OY1AdjustedBudget,Sheet1!S71_A7SubCodePayments,$AC:$AC)","v":114662745},{"$f":"SUMIFS(Sheet1!S71_OY2AdjustedBudget,Sheet1!S71_A7SubCodePayments,$AC:$AC)","v":115364441},null,null,null,null,null,null,null,null,null,null,"0390"]
["Remuneration of councillors",null,{"$f":"SUMIFS(Sheet1!S71_MonthlyOutcomeJul,Sheet1!S71_A7SubCodePayments,$AC:$AC)","v":0},{"$f":"SUMIFS(Sheet1!S71_MonthlyOutcomeAug,Sheet1!S71_A7SubCodePayments,$AC:$AC)","v":0},{"$f":"SUMIFS(Sheet1!S71_MonthlyOutcomeSep,Sheet1!S71_A7SubCodePayments,$AC:$AC)","v":0},{"$f":"SUMIFS(Sheet1!S71_MonthlyOutcomeOct,Sheet1!S71_A7SubCodePayments,$AC:$AC)","v":0},{"$f":"SUMIFS(Sheet1!S71_MonthlyOutcomeNov,Sheet1!S71_A7SubCodePayments,$AC:$AC)","v":0},{"$f":"SUMIFS(Sheet1!S71_MonthlyOutcomeDec,Sheet1!S71_A7SubCodePayments,$AC:$AC)","v":0},{"$f":"(P37-SUM(C37:H37))/6","v":0},{"$f":"(P37-SUM(C37:H37))/6","v":0},{"$f":"(P37-SUM(C37:H37))/6","v":0},{"$f":"(P37-SUM(C37:H37))/6","v":0},{"$f":"(P37-SUM(C37:H37))/6","v":0},0,{"$f":"SUM(C37:N37)","v":0},{"$f":"SUMIFS(Sheet1!S71_AdjustedBudget,Sheet1!S71_A7SubCodePayments,$AC:$AC)","v":0},{"$f":"SUMIFS(Sheet1!S71_OY1AdjustedBudget,Sheet1!S71_A7SubCodePayments,$AC:$AC)","v":0},{"$f":"SUMIFS(Sheet1!S71_OY2AdjustedBudget,Sheet1!S71_A7SubCodePayments,$AC:$AC)","v":0},null,null,null,null,null,null,null,null,null,null,"0400"]
["Finance charges",null,{"$f":"SUMIFS(Sheet1!S71_MonthlyOutcomeJul,Sheet1!S71_A7SubCodePayments,$AC:$AC)","v":0},{"$f":"SUMIFS(Sheet1!S71_MonthlyOutcomeAug,Sheet1!S71_A7SubCodePayments,$AC:$AC)","v":0},{"$f":"SUMIFS(Sheet1!S71_MonthlyOutcomeSep,Sheet1!S71_A7SubCodePayments,$AC:$AC)","v":0},{"$f":"SUMIFS(Sheet1!S71_MonthlyOutcomeOct,Sheet1!S71_A7SubCodePayments,$AC:$AC)","v":0},{"$f":"SUMIFS(Sheet1!S71_MonthlyOutcomeNov,Sheet1!S71_A7SubCodePayments,$AC:$AC)","v":0},{"$f":"SUMIFS(Sheet1!S71_MonthlyOutcomeDec,Sheet1!S71_A7SubCodePayments,$AC:$AC)","v":0},165912,165912,165912,165912,165912,165912,{"$f":"SUM(C38:N38)","v":995472},{"$f":"SUMIFS(Sheet1!S71_AdjustedBudget,Sheet1!S71_A7SubCodePayments,$AC:$AC)","v":995472},{"$f":"SUMIFS(Sheet1!S71_OY1AdjustedBudget,Sheet1!S71_A7SubCodePayments,$AC:$AC)","v":506546},{"$f":"SUMIFS(Sheet1!S71_OY2AdjustedBudget,Sheet1!S71_A7SubCodePayments,$AC:$AC)","v":506840},null,null,null,null,null,null,null,null,null,null,"0410"]
["Bulk purchases - Electricity",2,{"$f":"SUMIFS(Sheet1!S71_MonthlyOutcomeJul,Sheet1!S71_A7SubCodePayments,$AC:$AC)","v":0},{"$f":"SUMIFS(Sheet1!S71_MonthlyOutcomeAug,Sheet1!S71_A7SubCodePayments,$AC:$AC)","v":0},{"$f":"SUMIFS(Sheet1!S71_MonthlyOutcomeSep,Sheet1!S71_A7SubCodePayments,$AC:$AC)","v":0},{"$f":"SUMIFS(Sheet1!S71_MonthlyOutcomeOct,Sheet1!S71_A7SubCodePayments,$AC:$AC)","v":0},{"$f":"SUMIFS(Sheet1!S71_MonthlyOutcomeNov,Sheet1!S71_A7SubCodePayments,$AC:$AC)","v":0},{"$f":"SUMIFS(Sheet1!S71_MonthlyOutcomeDec,Sheet1!S71_A7SubCodePayments,$AC:$AC)","v":0},0,0,0,0,0,{"$f":"P39-SUM(C39:M39)","v":0},{"$f":"SUM(C39:N39)","v":0},{"$f":"'SB1'!K105","v":0},{"$f":"'SB1'!L105","v":0},{"$f":"'SB1'!M105","v":0},null,null,null,null,null,null,null,null,null,null,"0420"]
["Acquisitions - water & other inventory",3,{"$f":"SUMIFS(Sheet1!S71_MonthlyOutcomeJul,Sheet1!S71_A7SubCodePayments,$AC:$AC)","v":0},{"$f":"SUMIFS(Sheet1!S71_MonthlyOutcomeAug,Sheet1!S71_A7SubCodePayments,$AC:$AC)","v":0},{"$f":"SUMIFS(Sheet1!S71_MonthlyOutcomeSep,Sheet1!S71_A7SubCodePayments,$AC:$AC)","v":0},{"$f":"SUMIFS(Sheet1!S71_MonthlyOutcomeOct,Sheet1!S71_A7SubCodePayments,$AC:$AC)","v":0},{"$f":"SUMIFS(Sheet1!S71_MonthlyOutcomeNov,Sheet1!S71_A7SubCodePayments,$AC:$AC)","v":0},{"$f":"SUMIFS(Sheet1!S71_MonthlyOutcomeDec,Sheet1!S71_A7SubCodePayments,$AC:$AC)","v":0},236208.33333333334,236208.33333333334,236208.33333333334,236208.33333333334,236208.33333333334,{"$f":"P40-SUM(C40:M40)","v":236208.33333333326},{"$f":"SUM(C40:N40)","v":1417250},{"$f":"'SB2'!K25+'SB2'!K57+'SB2'!K66+'SB2'!K73+'SB2'!K81+'SB2'!K89+'SB2'!K97+'SB2'!K103+'SB2'!K110","v":1417250},{"$f":"'SB2'!L25+'SB2'!L57+'SB2'!L66+'SB2'!L73+'SB2'!L81+'SB2'!L89+'SB2'!L97+'SB2'!L103+'SB2'!L110","v":1540609},{"$f":"'SB2'!M25+'SB2'!M57+'SB2'!M66+'SB2'!M73+'SB2'!M81+'SB2'!M89+'SB2'!M97+'SB2'!M103+'SB2'!M110","v":1585191},null,null,null,null,null,null,null,null,null,null,"0430"]
[null,null,{"$f":"SUMIFS(Sheet1!S71_MonthlyOutcomeJul,Sheet1!S71_A7SubCodePayments,$AC:$AC)","v":0},{"$f":"SUMIFS(Sheet1!S71_MonthlyOutcomeAug,Sheet1!S71_A7SubCodePayments,$AC:$AC)","v":0},{"$f":"SUMIFS(Sheet1!S71_MonthlyOutcomeSep,Sheet1!S71_A7SubCodePayments,$AC:$AC)","v":0},{"$f":"SUMIFS(Sheet1!S71_MonthlyOutcomeOct,Sheet1!S71_A7SubCodePayments,$AC:$AC)","v":0},{"$f":"SUMIFS(Sheet1!S71_MonthlyOutcomeNov,Sheet1!S71_A7SubCodePayments,$AC:$AC)","v":0},{"$f":"SUMIFS(Sheet1!S71_MonthlyOutcomeDec,Sheet1!S71_A7SubCodePayments,$AC:$AC)","v":0},0,0,0,0,0,null,null,null,null,null,null,null,null,null,null,null,null,null,null,null,"0440"]
["Contracted services",null,{"$f":"SUMIFS(Sheet1!S71_MonthlyOutcomeJul,Sheet1!S71_A7SubCodePayments,$AC:$AC)","v":0},{"$f":"SUMIFS(Sheet1!S71_MonthlyOutcomeAug,Sheet1!S71_A7SubCodePayments,$AC:$AC)","v":0},{"$f":"SUMIFS(Sheet1!S71_MonthlyOutcomeSep,Sheet1!S71_A7SubCodePayments,$AC:$AC)","v":0},{"$f":"SUMIFS(Sheet1!S71_MonthlyOutcomeOct,Sheet1!S71_A7SubCodePayments,$AC:$AC)","v":0},{"$f":"SUMIFS(Sheet1!S71_MonthlyOutcomeNov,Sheet1!S71_A7SubCodePayments,$AC:$AC)","v":0},{"$f":"SUMIFS(Sheet1!S71_MonthlyOutcomeDec,Sheet1!S71_A7SubCodePayments,$AC:$AC)","v":0},0,0,0,0,0,0,null,{"$f":"SUMIFS(Sheet1!S71_AdjustedBudget,Sheet1!S71_A7SubCodePayments,$AC:$AC)","v":0},{"$f":"SUMIFS(Sheet1!S71_OY1AdjustedBudget,Sheet1!S71_A7SubCodePayments,$AC:$AC)","v":0},{"$f":"SUMIFS(Sheet1!S71_OY2AdjustedBudget,Sheet1!S71_A7SubCodePayments,$AC:$AC)","v":0},null,null,null,null,null,null,null,null,null,null,"0450"]
["Transfers and grants - other municipalities",null,{"$f":"SUMIFS(Sheet1!S71_MonthlyOutcomeJul,Sheet1!S71_A7SubCodePayments,$AC:$AC)","v":0},{"$f":"SUMIFS(Sheet1!S71_MonthlyOutcomeAug,Sheet1!S71_A7SubCodePayments,$AC:$AC)","v":0},{"$f":"SUMIFS(Sheet1!S71_MonthlyOutcomeSep,Sheet1!S71_A7SubCodePayments,$AC:$AC)","v":0},{"$f":"SUMIFS(Sheet1!S71_MonthlyOutcomeOct,Sheet1!S71_A7SubCodePayments,$AC:$AC)","v":0},{"$f":"SUMIFS(Sheet1!S71_MonthlyOutcomeNov,Sheet1!S71_A7SubCodePayments,$AC:$AC)","v":0},{"$f":"SUMIFS(Sheet1!S71_MonthlyOutcomeDec,Sheet1!S71_A7SubCodePayments,$AC:$AC)","v":0},0,0,0,0,0,0,{"$f":"SUM(C43:N43)","v":0},{"$f":"SUMIFS(Sheet1!S71_AdjustedBudget,Sheet1!S71_A7SubCodePayments,$AC:$AC)","v":0},{"$f":"SUMIFS(Sheet1!S71_OY1AdjustedBudget,Sheet1!S71_A7SubCodePayments,$AC:$AC)","v":0},{"$f":"SUMIFS(Sheet1!S71_OY2AdjustedBudget,Sheet1!S71_A7SubCodePayments,$AC:$AC)","v":0},null,null,null,null,null,null,null,null,null,null,"0460"]
["Transfers and grants - other",null,{"$f":"SUMIFS(Sheet1!S71_MonthlyOutcomeJul,Sheet1!S71_A7SubCodePayments,$AC:$AC)","v":-5216439.84},{"$f":"SUMIFS(Sheet1!S71_MonthlyOutcomeAug,Sheet1!S71_A7SubCodePayments,$AC:$AC)","v":172215.55},{"$f":"SUMIFS(Sheet1!S71_MonthlyOutcomeSep,Sheet1!S71_A7SubCodePayments,$AC:$AC)","v":174339.67},{"$f":"SUMIFS(Sheet1!S71_MonthlyOutcomeOct,Sheet1!S71_A7SubCodePayments,$AC:$AC)","v":221239.02},{"$f":"SUMIFS(Sheet1!S71_MonthlyOutcomeNov,Sheet1!S71_A7SubCodePayments,$AC:$AC)","v":182543.77},{"$f":"SUMIFS(Sheet1!S71_MonthlyOutcomeDec,Sheet1!S71_A7SubCodePayments,$AC:$AC)","v":180263.93000000002},2215972.9833333339,2215972.9833333339,2215972.9833333339,2215972.9833333339,2215972.9833333339,2215972.9833333325,null,{"$f":"SUMIFS(Sheet1!S71_AdjustedBudget,Sheet1!S71_A7SubCodePayments,$AC:$AC)","v":9010000},{"$f":"SUMIFS(Sheet1!S71_OY1AdjustedBudget,Sheet1!S71_A7SubCodePayments,$AC:$AC)","v":7050080},{"$f":"SUMIFS(Sheet1!S71_OY2AdjustedBudget,Sheet1!S71_A7SubCodePayments,$AC:$AC)","v":7135589},null,null,null,null,null,null,null,null,null,null,"0470"]
["Other expenditure",null,{"$f":"SUMIFS(Sheet1!S71_MonthlyOutcomeJul,Sheet1!S71_A7SubCodePayments,$AC:$AC)","v":1814179.5199999958},{"$f":"SUMIFS(Sheet1!S71_MonthlyOutcomeAug,Sheet1!S71_A7SubCodePayments,$AC:$AC)","v":13103543.690000005},{"$f":"SUMIFS(Sheet1!S71_MonthlyOutcomeSep,Sheet1!S71_A7SubCodePayments,$AC:$AC)","v":14407356.860000003},{"$f":"SUMIFS(Sheet1!S71_MonthlyOutcomeOct,Sheet1!S71_A7SubCodePayments,$AC:$AC)","v":6567117.7199999932},{"$f":"SUMIFS(Sheet1!S71_MonthlyOutcomeNov,Sheet1!S71_A7SubCodePayments,$AC:$AC)","v":6065533.2100000018},{"$f":"SUMIFS(Sheet1!S71_MonthlyOutcomeDec,Sheet1!S71_A7SubCodePayments,$AC:$AC)","v":20871236.210000012},-4417230.0350000011,-4417230.0350000011,-4417230.0350000011,-4417230.0350000011,-4417230.0350000011,-4417230.034999989,{"$f":"SUM(C45:N45)","v":36325587},{"$f":"SUMIFS(Sheet1!S71_AdjustedBudget,Sheet1!S71_A7SubCodePayments,$AC:$AC)","v":36325587},{"$f":"SUMIFS(Sheet1!S71_OY1AdjustedBudget,Sheet1!S71_A7SubCodePayments,$AC:$AC)","v":36049314},{"$f":"SUMIFS(Sheet1!S71_OY2AdjustedBudget,Sheet1!S71_A7SubCodePayments,$AC:$AC)","v":37657033},null,null,null,null,null,null,null,null,null,null,"0480"]
["Cash Payments by Type",null,{"$f":"SUM(C36:C45)","v":5532151.9699999969},20505711.530000005,21684548.640000001,15172821.749999994,13269139.23,31977473.06000001,8183958.3033333337,8183958.3033333337,8183958.3033333337,8183958.3033333337,8183958.3033333337,8183958.3033333533,148235596,157245596,159809294,162249094,null,null,null,null,null,null,null,null,null,null,"0490"]
[]
["Other Cash Flows/Payments by Type",null,null,null,null,null,null,null,null,null,null,null,null,null,null,null,null,null,null,null,null,null,null,null,null,null,null,null,"0500"]
["Capital assets",null,{"$f":"SUMIFS(Sheet1!S71_MonthlyOutcomeJul,Sheet1!S71_A5CapexCode,$AD:$AD)","v":-14587404.470000001},{"$f":"SUMIFS(Sheet1!S71_MonthlyOutcomeAug,Sheet1!S71_A5CapexCode,$AD:$AD)","v":2591422.2000000002},{"$f":"SUMIFS(Sheet1!S71_MonthlyOutcomeSep,Sheet1!S71_A5CapexCode,$AD:$AD)","v":7002793.6899999995},{"$f":"SUMIFS(Sheet1!S71_MonthlyOutcomeOct,Sheet1!S71_A5CapexCode,$AD:$AD)","v":3728584.7399999993},{"$f":"SUMIFS(Sheet1!S71_MonthlyOutcomeNov,Sheet1!S71_A5CapexCode,$AD:$AD)","v":4652032.9899999993},{"$f":"SUMIFS(Sheet1!S71_MonthlyOutcomeDec,Sheet1!S71_A5CapexCode,$AD:$AD)","v":3378897.4600000009},{"$f":"(P49-SUM(C49:H49))/6","v":9870570.0649999995},{"$f":"(P49-SUM(C49:H49))/6","v":9870570.0649999995},{"$f":"(P49-SUM(C49:H49))/6","v":9870570.0649999995},{"$f":"(P49-SUM(C49:H49))/6","v":9870570.0649999995},{"$f":"(P49-SUM(C49:H49))/6","v":9870570.0649999995},{"$f":"P49-SUM(C49:M49)","v":9870570.0650000051},{"$f":"SUM(C49:N49)","v":65989747},{"$f":"SUMIFS(Sheet1!S71_AdjustedBudget,Sheet1!S71_A5CapexCode,$AD:$AD)","v":65989747},{"$f":"SUMIFS(Sheet1!S71_OY1AdjustedBudget,Sheet1!S71_A5CapexCode,$AD:$AD)","v":71164500},{"$f":"SUMIFS(Sheet1!S71_OY2AdjustedBudget,Sheet1!S71_A5CapexCode,$AD:$AD)","v":74366905},null,null,null,null,null,null,null,null,null,null,"0510","CE"]
["Repayment of borrowing",null,{"$f":"SUMIFS(Sheet1!S71_MonthlyOutcomeJul,Sheet1!S71_SA30FDSubCode,$AC:$AC,Sheet1!S71_CFCode,$AD:$AD)","v":0},{"$f":"SUMIFS(Sheet1!S71_MonthlyOutcomeAug,Sheet1!S71_SA30FDSubCode,$AC:$AC,Sheet1!S71_CFCode,$AD:$AD)","v":0},{"$f":"SUMIFS(Sheet1!S71_MonthlyOutcomeSep,Sheet1!S71_SA30FDSubCode,$AC:$AC,Sheet1!S71_CFCode,$AD:$AD)","v":0},{"$f":"SUMIFS(Sheet1!S71_MonthlyOutcomeOct,Sheet1!S71_SA30FDSubCode,$AC:$AC,Sheet1!S71_CFCode,$AD:$AD)","v":0},{"$f":"SUMIFS(Sheet1!S71_MonthlyOutcomeNov,Sheet1!S71_SA30FDSubCode,$AC:$AC,Sheet1!S71_CFCode,$AD:$AD)","v":0},{"$f":"SUMIFS(Sheet1!S71_MonthlyOutcomeDec,Sheet1!S71_SA30FDSubCode,$AC:$AC,Sheet1!S71_CFCode,$AD:$AD)","v":0},{"$f":"(P50-SUM(C50:H50))/6","v":0},{"$f":"(P50-SUM(C50:H50))/6","v":0},{"$f":"(P50-SUM(C50:H50))/6","v":0},{"$f":"(P50-SUM(C50:H50))/6","v":0},{"$f":"(P50-SUM(C50:H50))/6","v":0},{"$f":"P50-SUM(C50:M50)","v":0},{"$f":"SUM(C50:N50)","v":0},{"$f":"SUMIFS(Sheet1!S71_AdjustedBudget,Sheet1!S71_SA30FDSubCode,$AC:$AC)","v":0},{"$f":"SUMIFS(Sheet1!S71_OY1AdjustedBudget,Sheet1!S71_SA30FDSubCode,$AC:$AC)","v":0},{"$f":"SUMIFS(Sheet1!S71_OY2AdjustedBudget,Sheet1!S71_SA30FDSubCode,$AC:$AC)","v":0},null,null,null,null,null,null,null,null,null,null,"0520"]
["Other Cash Flows/Payments",null,0,0,0,0,0,0,{"$f":"(P51-SUM(C51:H51))/6","v":0},{"$f":"(P51-SUM(C51:H51))/6","v":0},{"$f":"(P51-SUM(C51:H51))/6","v":0},{"$f":"(P51-SUM(C51:H51))/6","v":0},{"$f":"(P51-SUM(C51:H51))/6","v":0},{"$f":"P51-SUM(C51:M51)","v":0},{"$f":"SUM(C51:N51)","v":0},{"$f":"SUMIFS(Sheet1!S71_AdjustedBudget,Sheet1!S71_SA30FDSubCode,$AC:$AC,Sheet1!S71_CFCode,$AD:$AD)","v":0},{"$f":"SUMIFS(Sheet1!S71_OY1AdjustedBudget,Sheet1!S71_SA30FDSubCode,$AC:$AC,Sheet1!S71_CFCode,$AD:$AD)","v":0},{"$f":"SUMIFS(Sheet1!S71_OY2AdjustedBudget,Sheet1!S71_SA30FDSubCode,$AC:$AC,Sheet1!S71_CFCode,$AD:$AD)","v":0},null,null,null,null,null,null,null,null,null,null,"0530","IA"]
["Total Cash Payments by Type",null,{"$f":"SUM(C46:C51)","v":-9055252.5000000037},23097133.730000004,28687342.329999998,18901406.489999995,17921172.219999999,35356370.520000011,18054528.368333332,18054528.368333332,18054528.368333332,18054528.368333332,18054528.368333332,18054528.368333358,214225343,223235343,230973794,236615999,null,null,null,null,null,null,null,null,null,null,"0540"]
[]
["NET INCREASE/(DECREASE) IN CASH HELD",null,{"$f":"C33-C52","v":91392265.970000014},-13054193.780000005,-21126217.259999998,-9867834.6699999943,-3905105.459999999,62496832.449999973,-19146746.208333336,-19146746.208333336,-19146746.208333336,-19146746.208333336,-19146746.208333336,-19146746.208333366,65270,-8944730,-6761347,-14837051,null,null,null,null,null,null,null,null,null,null,"0550"]
["Cash/cash equivalents at the month/year beginning:",null,2400000000,{"$f":"C56","v":2491392265.9699998},2478338072.1899996,2457211854.9299994,2447344020.2599993,2443438914.7999992,2505935747.249999,2486789001.0416656,2467642254.8333321,2448495508.6249986,2429348762.4166651,2410202016.2083316,null,{"$f":"C55","v":2400000000},{"$f":"P56","v":2391055270},{"$f":"Q56","v":2384293923},null,null,null,null,null,null,null,null,null,null,"0560"]
["Cash/cash equivalents at the month/year end:",null,{"$f":"C54+C55","v":2491392265.9699998},{"$f":"D54+D55","v":2478338072.1899996},2457211854.9299994,2447344020.2599993,2443438914.7999992,2505935747.249999,2486789001.0416656,2467642254.8333321,2448495508.6249986,2429348762.4166651,2410202016.2083316,2391055269.9999981,null,{"$f":"P54+P55","v":2391055270},{"$f":"Q54+Q55","v":2384293923},{"$f":"R54+R55","v":2369456872},null,null,null,null,null,null,null,null,null,null,"0570"]
["References"]
["1. Note that this section of Table SB15 is deliberately not linked to Table B4 because timing differences between the invoicing of clients and receiving the cash means that the cashflow will differ from budgeted revenue, and similarly for budgeted expenditure. "]
["2. Bulk purchases - Electricity & Waste Water - use detail information from Table SB1"]
["3. Acquisition Inventory - Water & other inventory - use detail information from Table SB2"]
[]
[]
[null,null,null,null,null,{"$f":"F46+F62","v":15172821.749999994},13269139.23,31977473.06000001,8183958.3033333337,8183958.3033333337,8183958.3033333337,8183958.3033333337,8183958.3033333337,8183958.3033333533,148235596,157245596,159809294,162249094]
[null,null,null,null,null,{"$f":"F54-F62","v":-9867834.6699999943},-3905105.459999999,62496832.449999973,-19146746.208333336,-19146746.208333336,-19146746.208333336,-19146746.208333336,-19146746.208333336,-19146746.208333366,65270,-8944730,-6761347,-14837051]

{"sheet":"SB16","index":54,"n_rows":45,"n_cols":30,"rows_kept":45,"cut":false,"hidden":false,"merged":[[1,0,2,0],[1,1,2,1]]}
[{"$f":"muni&\" - \"&ADJB16&\" - \"&Date","v":"EC139 Enoch Mgijima - Supporting Table SB16 Adjustments Budget - monthly capital expenditure (municipal vote) - "}]
[{"$f":"desc&\" - Municipal Vote\"","v":"Description - Municipal Vote"},{"$f":"head27","v":"Ref"},{"$f":"Head2","v":"Budget Year 2021/22"},null,null,null,null,null,null,null,null,null,null,null,null,"Medium Term Revenue and Expenditure Framework"]
[null,null,"July","August","Sept.","October","November","December","January","February","March","April","May","June","Full year budget",{"$f":"Head9","v":"Budget Year 2021/22"},{"$f":"Head10","v":"Budget Year +1 2022/23"},{"$f":"Head11","v":"Budget Year +2 2023/24"}]
["R thousands",null,{"$f":"Head5A","v":"Outcome"},"Outcome","Outcome","Outcome","Outcome","Outcome",{"$f":"Head7","v":"Adjusted Budget"},"Adjusted Budget","Adjusted Budget","Adjusted Budget","Adjusted Budget","Adjusted Budget",null,{"$f":"Head7","v":"Adjusted Budget"},{"$f":"Head7","v":"Adjusted Budget"},{"$f":"Head7","v":"Adjusted Budget"}]
["Multi-year expenditure appropriation",1]
[{"$f":"'B5-Capex'!A8","v":"Vote 1 - Finance and Admin"},null,{"$f":"SUMIFS(Sheet1!S71_MonthlyOutcomeJul,Sheet1!S71_MasterVoteMunicipal,$AC:$AC,Sheet1!S71_A5CapexCode,$AD:$AD)","v":0},{"$f":"SUMIFS(Sheet1!S71_MonthlyOutcomeAug,Sheet1!S71_MasterVoteMunicipal,$AC:$AC,Sheet1!S71_A5CapexCode,$AD:$AD)","v":0},{"$f":"SUMIFS(Sheet1!S71_MonthlyOutcomeSep,Sheet1!S71_MasterVoteMunicipal,$AC:$AC,Sheet1!S71_A5CapexCode,$AD:$AD)","v":0},{"$f":"SUMIFS(Sheet1!S71_MonthlyOutcomeOct,Sheet1!S71_MasterVoteMunicipal,$AC:$AC,Sheet1!S71_A5CapexCode,$AD:$AD)","v":0},{"$f":"SUMIFS(Sheet1!S71_MonthlyOutcomeNov,Sheet1!S71_MasterVoteMunicipal,$AC:$AC,Sheet1!S71_A5CapexCode,$AD:$AD)","v":0},{"$f":"SUMIFS(Sheet1!S71_MonthlyOutcomeDec,Sheet1!S71_MasterVoteMunicipal,$AC:$AC,Sheet1!S71_A5CapexCode,$AD:$AD)","v":0},{"$f":"(P6-SUM(C6:H6))/6","v":0},{"$f":"(P6-SUM(C6:H6))/6","v":0},{"$f":"(P6-SUM(C6:H6))/6","v":0},{"$f":"(P6-SUM(C6:H6))/6","v":0},{"$f":"(P6-SUM(C6:H6))/6","v":0},{"$f":"P6-SUM(C6:M6)","v":0},null,{"$f":"'B5-Capex'!K8","v":0},{"$f":"'B5-Capex'!L8","v":0},{"$f":"'B5-Capex'!M8","v":0},null,null,null,null,null,null,null,null,null,null,"Vote 1","CE"]
[{"$f":"'B5-Capex'!A9","v":"Vote 2 - Executive and council"},null,{"$f":"SUMIFS(Sheet1!S71_MonthlyOutcomeJul,Sheet1!S71_MasterVoteMunicipal,$AC:$AC,Sheet1!S71_A5CapexCode,$AD:$AD)","v":0},{"$f":"SUMIFS(Sheet1!S71_MonthlyOutcomeAug,Sheet1!S71_MasterVoteMunicipal,$AC:$AC,Sheet1!S71_A5CapexCode,$AD:$AD)","v":0},{"$f":"SUMIFS(Sheet1!S71_MonthlyOutcomeSep,Sheet1!S71_MasterVoteMunicipal,$AC:$AC,Sheet1!S71_A5CapexCode,$AD:$AD)","v":0},{"$f":"SUMIFS(Sheet1!S71_MonthlyOutcomeOct,Sheet1!S71_MasterVoteMunicipal,$AC:$AC,Sheet1!S71_A5CapexCode,$AD:$AD)","v":0},{"$f":"SUMIFS(Sheet1!S71_MonthlyOutcomeNov,Sheet1!S71_MasterVoteMunicipal,$AC:$AC,Sheet1!S71_A5CapexCode,$AD:$AD)","v":0},{"$f":"SUMIFS(Sheet1!S71_MonthlyOutcomeDec,Sheet1!S71_MasterVoteMunicipal,$AC:$AC,Sheet1!S71_A5CapexCode,$AD:$AD)","v":0},{"$f":"(P7-SUM(C7:H7))/6","v":0},{"$f":"(P7-SUM(C7:H7))/6","v":0},{"$f":"(P7-SUM(C7:H7))/6","v":0},{"$f":"(P7-SUM(C7:H7))/6","v":0},{"$f":"(P7-SUM(C7:H7))/6","v":0},0,null,{"$f":"'B5-Capex'!K9","v":0},{"$f":"'B5-Capex'!L9","v":0},{"$f":"'B5-Capex'!M9","v":0},null,null,null,null,null,null,null,null,null,null,"Vote 2","CE"]
[{"$f":"'B5-Capex'!A10","v":"Vote 3 - Community and social services"},null,{"$f":"SUMIFS(Sheet1!S71_MonthlyOutcomeJul,Sheet1!S71_MasterVoteMunicipal,$AC:$AC,Sheet1!S71_A5CapexCode,$AD:$AD)","v":0},{"$f":"SUMIFS(Sheet1!S71_MonthlyOutcomeAug,Sheet1!S71_MasterVoteMunicipal,$AC:$AC,Sheet1!S71_A5CapexCode,$AD:$AD)","v":0},{"$f":"SUMIFS(Sheet1!S71_MonthlyOutcomeSep,Sheet1!S71_MasterVoteMunicipal,$AC:$AC,Sheet1!S71_A5CapexCode,$AD:$AD)","v":0},{"$f":"SUMIFS(Sheet1!S71_MonthlyOutcomeOct,Sheet1!S71_MasterVoteMunicipal,$AC:$AC,Sheet1!S71_A5CapexCode,$AD:$AD)","v":0},{"$f":"SUMIFS(Sheet1!S71_MonthlyOutcomeNov,Sheet1!S71_MasterVoteMunicipal,$AC:$AC,Sheet1!S71_A5CapexCode,$AD:$AD)","v":0},{"$f":"SUMIFS(Sheet1!S71_MonthlyOutcomeDec,Sheet1!S71_MasterVoteMunicipal,$AC:$AC,Sheet1!S71_A5CapexCode,$AD:$AD)","v":0},0,0,0,0,0,0,null,{"$f":"'B5-Capex'!K10","v":0},{"$f":"'B5-Capex'!L10","v":0},{"$f":"'B5-Capex'!M10","v":0},null,null,null,null,null,null,null,null,null,null,"Vote 3","CE"]
[{"$f":"'B5-Capex'!A11","v":"Vote 4 - Internal Audit"},null,{"$f":"SUMIFS(Sheet1!S71_MonthlyOutcomeJul,Sheet1!S71_MasterVoteMunicipal,$AC:$AC,Sheet1!S71_A5CapexCode,$AD:$AD)","v":0},{"$f":"SUMIFS(Sheet1!S71_MonthlyOutcomeAug,Sheet1!S71_MasterVoteMunicipal,$AC:$AC,Sheet1!S71_A5CapexCode,$AD:$AD)","v":0},{"$f":"SUMIFS(Sheet1!S71_MonthlyOutcomeSep,Sheet1!S71_MasterVoteMunicipal,$AC:$AC,Sheet1!S71_A5CapexCode,$AD:$AD)","v":0},{"$f":"SUMIFS(Sheet1!S71_MonthlyOutcomeOct,Sheet1!S71_MasterVoteMunicipal,$AC:$AC,Sheet1!S71_A5CapexCode,$AD:$AD)","v":0},{"$f":"SUMIFS(Sheet1!S71_MonthlyOutcomeNov,Sheet1!S71_MasterVoteMunicipal,$AC:$AC,Sheet1!S71_A5CapexCode,$AD:$AD)","v":0},{"$f":"SUMIFS(Sheet1!S71_MonthlyOutcomeDec,Sheet1!S71_MasterVoteMunicipal,$AC:$AC,Sheet1!S71_A5CapexCode,$AD:$AD)","v":0},0,0,0,0,0,0,null,{"$f":"'B5-Capex'!K11","v":0},{"$f":"'B5-Capex'!L11","v":0},{"$f":"'B5-Capex'!M11","v":0},null,null,null,null,null,null,null,null,null,null,"Vote 4","CE"]
[{"$f":"'B5-Capex'!A12","v":"Vote 5 - Waste Management"},null,{"$f":"SUMIFS(Sheet1!S71_MonthlyOutcomeJul,Sheet1!S71_MasterVoteMunicipal,$AC:$AC,Sheet1!S71_A5CapexCode,$AD:$AD)","v":0},{"$f":"SUMIFS(Sheet1!S71_MonthlyOutcomeAug,Sheet1!S71_MasterVoteMunicipal,$AC:$AC,Sheet1!S71_A5CapexCode,$AD:$AD)","v":0},{"$f":"SUMIFS(Sheet1!S71_MonthlyOutcomeSep,Sheet1!S71_MasterVoteMunicipal,$AC:$AC,Sheet1!S71_A5CapexCode,$AD:$AD)","v":0},{"$f":"SUMIFS(Sheet1!S71_MonthlyOutcomeOct,Sheet1!S71_MasterVoteMunicipal,$AC:$AC,Sheet1!S71_A5CapexCode,$AD:$AD)","v":0},{"$f":"SUMIFS(Sheet1!S71_MonthlyOutcomeNov,Sheet1!S71_MasterVoteMunicipal,$AC:$AC,Sheet1!S71_A5CapexCode,$AD:$AD)","v":0},{"$f":"SUMIFS(Sheet1!S71_MonthlyOutcomeDec,Sheet1!S71_MasterVoteMunicipal,$AC:$AC,Sheet1!S71_A5CapexCode,$AD:$AD)","v":0},0,0,0,0,0,0,null,{"$f":"'B5-Capex'!K12","v":0},{"$f":"'B5-Capex'!L12","v":0},{"$f":"'B5-Capex'!M12","v":0},null,null,null,null,null,null,null,null,null,null,"Vote 5","CE"]
[{"$f":"'B5-Capex'!A13","v":"Vote 6 - Energy Sources"},null,{"$f":"SUMIFS(Sheet1!S71_MonthlyOutcomeJul,Sheet1!S71_MasterVoteMunicipal,$AC:$AC,Sheet1!S71_A5CapexCode,$AD:$AD)","v":0},{"$f":"SUMIFS(Sheet1!S71_MonthlyOutcomeAug,Sheet1!S71_MasterVoteMunicipal,$AC:$AC,Sheet1!S71_A5CapexCode,$AD:$AD)","v":0},{"$f":"SUMIFS(Sheet1!S71_MonthlyOutcomeSep,Sheet1!S71_MasterVoteMunicipal,$AC:$AC,Sheet1!S71_A5CapexCode,$AD:$AD)","v":0},{"$f":"SUMIFS(Sheet1!S71_MonthlyOutcomeOct,Sheet1!S71_MasterVoteMunicipal,$AC:$AC,Sheet1!S71_A5CapexCode,$AD:$AD)","v":0},{"$f":"SUMIFS(Sheet1!S71_MonthlyOutcomeNov,Sheet1!S71_MasterVoteMunicipal,$AC:$AC,Sheet1!S71_A5CapexCode,$AD:$AD)","v":0},{"$f":"SUMIFS(Sheet1!S71_MonthlyOutcomeDec,Sheet1!S71_MasterVoteMunicipal,$AC:$AC,Sheet1!S71_A5CapexCode,$AD:$AD)","v":0},0,0,0,0,0,0,null,{"$f":"'B5-Capex'!K13","v":0},{"$f":"'B5-Capex'!L13","v":0},{"$f":"'B5-Capex'!M13","v":0},null,null,null,null,null,null,null,null,null,null,"Vote 6","CE"]
[{"$f":"'B5-Capex'!A14","v":"Vote 7 - Planning and Development"},null,{"$f":"SUMIFS(Sheet1!S71_MonthlyOutcomeJul,Sheet1!S71_MasterVoteMunicipal,$AC:$AC,Sheet1!S71_A5CapexCode,$AD:$AD)","v":0},{"$f":"SUMIFS(Sheet1!S71_MonthlyOutcomeAug,Sheet1!S71_MasterVoteMunicipal,$AC:$AC,Sheet1!S71_A5CapexCode,$AD:$AD)","v":0},{"$f":"SUMIFS(Sheet1!S71_MonthlyOutcomeSep,Sheet1!S71_MasterVoteMunicipal,$AC:$AC,Sheet1!S71_A5CapexCode,$AD:$AD)","v":0},{"$f":"SUMIFS(Sheet1!S71_MonthlyOutcomeOct,Sheet1!S71_MasterVoteMunicipal,$AC:$AC,Sheet1!S71_A5CapexCode,$AD:$AD)","v":0},{"$f":"SUMIFS(Sheet1!S71_MonthlyOutcomeNov,Sheet1!S71_MasterVoteMunicipal,$AC:$AC,Sheet1!S71_A5CapexCode,$AD:$AD)","v":0},{"$f":"SUMIFS(Sheet1!S71_MonthlyOutcomeDec,Sheet1!S71_MasterVoteMunicipal,$AC:$AC,Sheet1!S71_A5CapexCode,$AD:$AD)","v":0},0,0,0,0,0,0,null,{"$f":"'B5-Capex'!K14","v":0},{"$f":"'B5-Capex'!L14","v":0},{"$f":"'B5-Capex'!M14","v":0},null,null,null,null,null,null,null,null,null,null,"Vote 7","CE"]
[{"$f":"'B5-Capex'!A15","v":"Vote 8 - Public Safety"},null,{"$f":"SUMIFS(Sheet1!S71_MonthlyOutcomeJul,Sheet1!S71_MasterVoteMunicipal,$AC:$AC,Sheet1!S71_A5CapexCode,$AD:$AD)","v":0},{"$f":"SUMIFS(Sheet1!S71_MonthlyOutcomeAug,Sheet1!S71_MasterVoteMunicipal,$AC:$AC,Sheet1!S71_A5CapexCode,$AD:$AD)","v":0},{"$f":"SUMIFS(Sheet1!S71_MonthlyOutcomeSep,Sheet1!S71_MasterVoteMunicipal,$AC:$AC,Sheet1!S71_A5CapexCode,$AD:$AD)","v":0},{"$f":"SUMIFS(Sheet1!S71_MonthlyOutcomeOct,Sheet1!S71_MasterVoteMunicipal,$AC:$AC,Sheet1!S71_A5CapexCode,$AD:$AD)","v":0},{"$f":"SUMIFS(Sheet1!S71_MonthlyOutcomeNov,Sheet1!S71_MasterVoteMunicipal,$AC:$AC,Sheet1!S71_A5CapexCode,$AD:$AD)","v":0},{"$f":"SUMIFS(Sheet1!S71_MonthlyOutcomeDec,Sheet1!S71_MasterVoteMunicipal,$AC:$AC,Sheet1!S71_A5CapexCode,$AD:$AD)","v":0},0,0,0,0,0,0,null,{"$f":"'B5-Capex'!K15","v":0},{"$f":"'B5-Capex'!L15","v":0},{"$f":"'B5-Capex'!M15","v":0},null,null,null,null,null,null,null,null,null,null,"Vote 8","CE"]
[{"$f":"'B5-Capex'!A16","v":"Vote 9 - Roads"},null,{"$f":"SUMIFS(Sheet1!S71_MonthlyOutcomeJul,Sheet1!S71_MasterVoteMunicipal,$AC:$AC,Sheet1!S71_A5CapexCode,$AD:$AD)","v":0},{"$f":"SUMIFS(Sheet1!S71_MonthlyOutcomeAug,Sheet1!S71_MasterVoteMunicipal,$AC:$AC,Sheet1!S71_A5CapexCode,$AD:$AD)","v":0},{"$f":"SUMIFS(Sheet1!S71_MonthlyOutcomeSep,Sheet1!S71_MasterVoteMunicipal,$AC:$AC,Sheet1!S71_A5CapexCode,$AD:$AD)","v":0},{"$f":"SUMIFS(Sheet1!S71_MonthlyOutcomeOct,Sheet1!S71_MasterVoteMunicipal,$AC:$AC,Sheet1!S71_A5CapexCode,$AD:$AD)","v":0},{"$f":"SUMIFS(Sheet1!S71_MonthlyOutcomeNov,Sheet1!S71_MasterVoteMunicipal,$AC:$AC,Sheet1!S71_A5CapexCode,$AD:$AD)","v":0},{"$f":"SUMIFS(Sheet1!S71_MonthlyOutcomeDec,Sheet1!S71_MasterVoteMunicipal,$AC:$AC,Sheet1!S71_A5CapexCode,$AD:$AD)","v":0},0,0,0,0,0,0,null,{"$f":"'B5-Capex'!K16","v":0},{"$f":"'B5-Capex'!L16","v":0},{"$f":"'B5-Capex'!M16","v":0},null,null,null,null,null,null,null,null,null,null,"Vote 9","CE"]
[{"$f":"'B5-Capex'!A17","v":"Vote 10 - Sport and Recreation"},null,{"$f":"SUMIFS(Sheet1!S71_MonthlyOutcomeJul,Sheet1!S71_MasterVoteMunicipal,$AC:$AC,Sheet1!S71_A5CapexCode,$AD:$AD)","v":0},{"$f":"SUMIFS(Sheet1!S71_MonthlyOutcomeAug,Sheet1!S71_MasterVoteMunicipal,$AC:$AC,Sheet1!S71_A5CapexCode,$AD:$AD)","v":0},{"$f":"SUMIFS(Sheet1!S71_MonthlyOutcomeSep,Sheet1!S71_MasterVoteMunicipal,$AC:$AC,Sheet1!S71_A5CapexCode,$AD:$AD)","v":0},{"$f":"SUMIFS(Sheet1!S71_MonthlyOutcomeOct,Sheet1!S71_MasterVoteMunicipal,$AC:$AC,Sheet1!S71_A5CapexCode,$AD:$AD)","v":0},{"$f":"SUMIFS(Sheet1!S71_MonthlyOutcomeNov,Sheet1!S71_MasterVoteMunicipal,$AC:$AC,Sheet1!S71_A5CapexCode,$AD:$AD)","v":0},{"$f":"SUMIFS(Sheet1!S71_MonthlyOutcomeDec,Sheet1!S71_MasterVoteMunicipal,$AC:$AC,Sheet1!S71_A5CapexCode,$AD:$AD)","v":0},0,0,0,0,0,0,null,{"$f":"'B5-Capex'!K17","v":0},{"$f":"'B5-Capex'!L17","v":0},{"$f":"'B5-Capex'!M17","v":0},null,null,null,null,null,null,null,null,null,null,"Vote 10","CE"]
[{"$f":"'B5-Capex'!A18","v":"Vote 11 - [NAME OF VOTE 11]"},null,{"$f":"SUMIFS(Sheet1!S71_MonthlyOutcomeJul,Sheet1!S71_MasterVoteMunicipal,$AC:$AC,Sheet1!S71_A5CapexCode,$AD:$AD)","v":0},{"$f":"SUMIFS(Sheet1!S71_MonthlyOutcomeAug,Sheet1!S71_MasterVoteMunicipal,$AC:$AC,Sheet1!S71_A5CapexCode,$AD:$AD)","v":0},{"$f":"SUMIFS(Sheet1!S71_MonthlyOutcomeSep,Sheet1!S71_MasterVoteMunicipal,$AC:$AC,Sheet1!S71_A5CapexCode,$AD:$AD)","v":0},{"$f":"SUMIFS(Sheet1!S71_MonthlyOutcomeOct,Sheet1!S71_MasterVoteMunicipal,$AC:$AC,Sheet1!S71_A5CapexCode,$AD:$AD)","v":0},{"$f":"SUMIFS(Sheet1!S71_MonthlyOutcomeNov,Sheet1!S71_MasterVoteMunicipal,$AC:$AC,Sheet1!S71_A5CapexCode,$AD:$AD)","v":0},{"$f":"SUMIFS(Sheet1!S71_MonthlyOutcomeDec,Sheet1!S71_MasterVoteMunicipal,$AC:$AC,Sheet1!S71_A5CapexCode,$AD:$AD)","v":0},0,0,0,0,0,0,null,{"$f":"'B5-Capex'!K18","v":0},{"$f":"'B5-Capex'!L18","v":0},{"$f":"'B5-Capex'!M18","v":0},null,null,null,null,null,null,null,null,null,null,"Vote 11","CE"]
[{"$f":"'B5-Capex'!A19","v":"Vote 12 - [NAME OF VOTE 12]"},null,{"$f":"SUMIFS(Sheet1!S71_MonthlyOutcomeJul,Sheet1!S71_MasterVoteMunicipal,$AC:$AC,Sheet1!S71_A5CapexCode,$AD:$AD)","v":0},{"$f":"SUMIFS(Sheet1!S71_MonthlyOutcomeAug,Sheet1!S71_MasterVoteMunicipal,$AC:$AC,Sheet1!S71_A5CapexCode,$AD:$AD)","v":0},{"$f":"SUMIFS(Sheet1!S71_MonthlyOutcomeSep,Sheet1!S71_MasterVoteMunicipal,$AC:$AC,Sheet1!S71_A5CapexCode,$AD:$AD)","v":0},{"$f":"SUMIFS(Sheet1!S71_MonthlyOutcomeOct,Sheet1!S71_MasterVoteMunicipal,$AC:$AC,Sheet1!S71_A5CapexCode,$AD:$AD)","v":0},{"$f":"SUMIFS(Sheet1!S71_MonthlyOutcomeNov,Sheet1!S71_MasterVoteMunicipal,$AC:$AC,Sheet1!S71_A5CapexCode,$AD:$AD)","v":0},{"$f":"SUMIFS(Sheet1!S71_MonthlyOutcomeDec,Sheet1!S71_MasterVoteMunicipal,$AC:$AC,Sheet1!S71_A5CapexCode,$AD:$AD)","v":0},0,0,0,0,0,0,null,{"$f":"'B5-Capex'!K19","v":0},{"$f":"'B5-Capex'!L19","v":0},{"$f":"'B5-Capex'!M19","v":0},null,null,null,null,null,null,null,null,null,null,"Vote 12","CE"]
[{"$f":"'B5-Capex'!A20","v":"Vote 13 - [NAME OF VOTE 13]"},null,{"$f":"SUMIFS(Sheet1!S71_MonthlyOutcomeJul,Sheet1!S71_MasterVoteMunicipal,$AC:$AC,Sheet1!S71_A5CapexCode,$AD:$AD)","v":0},{"$f":"SUMIFS(Sheet1!S71_MonthlyOutcomeAug,Sheet1!S71_MasterVoteMunicipal,$AC:$AC,Sheet1!S71_A5CapexCode,$AD:$AD)","v":0},{"$f":"SUMIFS(Sheet1!S71_MonthlyOutcomeSep,Sheet1!S71_MasterVoteMunicipal,$AC:$AC,Sheet1!S71_A5CapexCode,$AD:$AD)","v":0},{"$f":"SUMIFS(Sheet1!S71_MonthlyOutcomeOct,Sheet1!S71_MasterVoteMunicipal,$AC:$AC,Sheet1!S71_A5CapexCode,$AD:$AD)","v":0},{"$f":"SUMIFS(Sheet1!S71_MonthlyOutcomeNov,Sheet1!S71_MasterVoteMunicipal,$AC:$AC,Sheet1!S71_A5CapexCode,$AD:$AD)","v":0},{"$f":"SUMIFS(Sheet1!S71_MonthlyOutcomeDec,Sheet1!S71_MasterVoteMunicipal,$AC:$AC,Sheet1!S71_A5CapexCode,$AD:$AD)","v":0},0,0,0,0,0,0,null,{"$f":"'B5-Capex'!K20","v":0},{"$f":"'B5-Capex'!L20","v":0},{"$f":"'B5-Capex'!M20","v":0},null,null,null,null,null,null,null,null,null,null,"Vote 13","CE"]
[{"$f":"'B5-Capex'!A21","v":"Vote 14 - [NAME OF VOTE 14]"},null,{"$f":"SUMIFS(Sheet1!S71_MonthlyOutcomeJul,Sheet1!S71_MasterVoteMunicipal,$AC:$AC,Sheet1!S71_A5CapexCode,$AD:$AD)","v":0},{"$f":"SUMIFS(Sheet1!S71_MonthlyOutcomeAug,Sheet1!S71_MasterVoteMunicipal,$AC:$AC,Sheet1!S71_A5CapexCode,$AD:$AD)","v":0},{"$f":"SUMIFS(Sheet1!S71_MonthlyOutcomeSep,Sheet1!S71_MasterVoteMunicipal,$AC:$AC,Sheet1!S71_A5CapexCode,$AD:$AD)","v":0},{"$f":"SUMIFS(Sheet1!S71_MonthlyOutcomeOct,Sheet1!S71_MasterVoteMunicipal,$AC:$AC,Sheet1!S71_A5CapexCode,$AD:$AD)","v":0},{"$f":"SUMIFS(Sheet1!S71_MonthlyOutcomeNov,Sheet1!S71_MasterVoteMunicipal,$AC:$AC,Sheet1!S71_A5CapexCode,$AD:$AD)","v":0},{"$f":"SUMIFS(Sheet1!S71_MonthlyOutcomeDec,Sheet1!S71_MasterVoteMunicipal,$AC:$AC,Sheet1!S71_A5CapexCode,$AD:$AD)","v":0},0,0,0,0,0,0,null,{"$f":"'B5-Capex'!K21","v":0},{"$f":"'B5-Capex'!L21","v":0},{"$f":"'B5-Capex'!M21","v":0},null,null,null,null,null,null,null,null,null,null,"Vote 14","CE"]
[{"$f":"'B5-Capex'!A22","v":"Vote 15 - [NAME OF VOTE 15]"},null,{"$f":"SUMIFS(Sheet1!S71_MonthlyOutcomeJul,Sheet1!S71_MasterVoteMunicipal,$AC:$AC,Sheet1!S71_A5CapexCode,$AD:$AD)","v":0},{"$f":"SUMIFS(Sheet1!S71_MonthlyOutcomeAug,Sheet1!S71_MasterVoteMunicipal,$AC:$AC,Sheet1!S71_A5CapexCode,$AD:$AD)","v":0},{"$f":"SUMIFS(Sheet1!S71_MonthlyOutcomeSep,Sheet1!S71_MasterVoteMunicipal,$AC:$AC,Sheet1!S71_A5CapexCode,$AD:$AD)","v":0},{"$f":"SUMIFS(Sheet1!S71_MonthlyOutcomeOct,Sheet1!S71_MasterVoteMunicipal,$AC:$AC,Sheet1!S71_A5CapexCode,$AD:$AD)","v":0},{"$f":"SUMIFS(Sheet1!S71_MonthlyOutcomeNov,Sheet1!S71_MasterVoteMunicipal,$AC:$AC,Sheet1!S71_A5CapexCode,$AD:$AD)","v":0},{"$f":"SUMIFS(Sheet1!S71_MonthlyOutcomeDec,Sheet1!S71_MasterVoteMunicipal,$AC:$AC,Sheet1!S71_A5CapexCode,$AD:$AD)","v":0},0,0,0,0,0,0,null,{"$f":"'B5-Capex'!K22","v":0},{"$f":"'B5-Capex'!L22","v":0},{"$f":"'B5-Capex'!M22","v":0},null,null,null,null,null,null,null,null,null,null,"Vote 15","CE"]
["Capital Multi-year expenditure sub-total",3,{"$f":"SUM(C6:C20)","v":0},0,0,0,0,0,0,0,0,0,0,0,0,0,0,0]
[null,null,null,null,null,null,null,null,null,null,null,null,null,{"$f":"SUM(N7:N21)","v":0},{"$f":"SUM(O7:O21)","v":0},{"$f":"SUM(P7:P21)","v":0},{"$f":"SUM(Q7:Q21)","v":0},{"$f":"SUM(R7:R21)","v":0}]
["Single-year expenditure appropriation"]
[{"$f":"A6","v":"Vote 1 - Finance and Admin"},null,{"$f":"SUMIFS(Sheet1!S71_MonthlyOutcomeJul,Sheet1!S71_MasterVoteMunicipal,$AC:$AC,Sheet1!S71_A5CapexCode,$AD:$AD)","v":678598},{"$f":"SUMIFS(Sheet1!S71_MonthlyOutcomeAug,Sheet1!S71_MasterVoteMunicipal,$AC:$AC,Sheet1!S71_A5CapexCode,$AD:$AD)","v":0},{"$f":"SUMIFS(Sheet1!S71_MonthlyOutcomeSep,Sheet1!S71_MasterVoteMunicipal,$AC:$AC,Sheet1!S71_A5CapexCode,$AD:$AD)","v":1726109.87},{"$f":"SUMIFS(Sheet1!S71_MonthlyOutcomeOct,Sheet1!S71_MasterVoteMunicipal,$AC:$AC,Sheet1!S71_A5CapexCode,$AD:$AD)","v":151690},{"$f":"SUMIFS(Sheet1!S71_MonthlyOutcomeNov,Sheet1!S71_MasterVoteMunicipal,$AC:$AC,Sheet1!S71_A5CapexCode,$AD:$AD)","v":232537.99},{"$f":"SUMIFS(Sheet1!S71_MonthlyOutcomeDec,Sheet1!S71_MasterVoteMunicipal,$AC:$AC,Sheet1!S71_A5CapexCode,$AD:$AD)","v":157000},{"$f":"(P24-SUM(C24:H24))/6","v":265426.52333333326},{"$f":"(P24-SUM(C24:H24))/6","v":265426.52333333326},{"$f":"(P24-SUM(C24:H24))/6","v":265426.52333333326},{"$f":"(P24-SUM(C24:H24))/6","v":265426.52333333326},{"$f":"(P24-SUM(C24:H24))/6","v":265426.52333333326},{"$f":"P24-SUM(C24:M24)","v":265426.5233333325},null,{"$f":"'B5-Capex'!K26","v":4538495},{"$f":"'B5-Capex'!L26","v":3344000},{"$f":"'B5-Capex'!M26","v":3494482},null,null,null,null,null,null,null,null,null,null,1,"CE"]
["Vote 2 - Executive and council",null,{"$f":"SUMIFS(Sheet1!S71_MonthlyOutcomeJul,Sheet1!S71_MasterVoteMunicipal,$AC:$AC,Sheet1!S71_A5CapexCode,$AD:$AD)","v":0},{"$f":"SUMIFS(Sheet1!S71_MonthlyOutcomeAug,Sheet1!S71_MasterVoteMunicipal,$AC:$AC,Sheet1!S71_A5CapexCode,$AD:$AD)","v":0},{"$f":"SUMIFS(Sheet1!S71_MonthlyOutcomeSep,Sheet1!S71_MasterVoteMunicipal,$AC:$AC,Sheet1!S71_A5CapexCode,$AD:$AD)","v":0},{"$f":"SUMIFS(Sheet1!S71_MonthlyOutcomeOct,Sheet1!S71_MasterVoteMunicipal,$AC:$AC,Sheet1!S71_A5CapexCode,$AD:$AD)","v":0},{"$f":"SUMIFS(Sheet1!S71_MonthlyOutcomeNov,Sheet1!S71_MasterVoteMunicipal,$AC:$AC,Sheet1!S71_A5CapexCode,$AD:$AD)","v":0},{"$f":"SUMIFS(Sheet1!S71_MonthlyOutcomeDec,Sheet1!S71_MasterVoteMunicipal,$AC:$AC,Sheet1!S71_A5CapexCode,$AD:$AD)","v":0},25000,25000,25000,25000,25000,25000,null,{"$f":"'B5-Capex'!K27","v":150000},{"$f":"'B5-Capex'!L27","v":209000},{"$f":"'B5-Capex'!M27","v":218405},null,null,null,null,null,null,null,null,null,null,2,"CE"]
["Vote 3 - Community and social services",null,{"$f":"SUMIFS(Sheet1!S71_MonthlyOutcomeJul,Sheet1!S71_MasterVoteMunicipal,$AC:$AC,Sheet1!S71_A5CapexCode,$AD:$AD)","v":-16434862.75},{"$f":"SUMIFS(Sheet1!S71_MonthlyOutcomeAug,Sheet1!S71_MasterVoteMunicipal,$AC:$AC,Sheet1!S71_A5CapexCode,$AD:$AD)","v":0},{"$f":"SUMIFS(Sheet1!S71_MonthlyOutcomeSep,Sheet1!S71_MasterVoteMunicipal,$AC:$AC,Sheet1!S71_A5CapexCode,$AD:$AD)","v":1744405.27},{"$f":"SUMIFS(Sheet1!S71_MonthlyOutcomeOct,Sheet1!S71_MasterVoteMunicipal,$AC:$AC,Sheet1!S71_A5CapexCode,$AD:$AD)","v":280590.33999999997},{"$f":"SUMIFS(Sheet1!S71_MonthlyOutcomeNov,Sheet1!S71_MasterVoteMunicipal,$AC:$AC,Sheet1!S71_A5CapexCode,$AD:$AD)","v":231823.56},{"$f":"SUMIFS(Sheet1!S71_MonthlyOutcomeDec,Sheet1!S71_MasterVoteMunicipal,$AC:$AC,Sheet1!S71_A5CapexCode,$AD:$AD)","v":0},4649673.93,4649673.93,4649673.93,4649673.93,4649673.93,4649673.9300000016,null,{"$f":"'B5-Capex'!K28","v":13720000},{"$f":"'B5-Capex'!L28","v":9405000},{"$f":"'B5-Capex'!M28","v":9828225},null,null,null,null,null,null,null,null,null,null,3,"CE"]
["Vote 4 - Internal Audit",null,{"$f":"SUMIFS(Sheet1!S71_MonthlyOutcomeJul,Sheet1!S71_MasterVoteMunicipal,$AC:$AC,Sheet1!S71_A5CapexCode,$AD:$AD)","v":0},{"$f":"SUMIFS(Sheet1!S71_MonthlyOutcomeAug,Sheet1!S71_MasterVoteMunicipal,$AC:$AC,Sheet1!S71_A5CapexCode,$AD:$AD)","v":0},{"$f":"SUMIFS(Sheet1!S71_MonthlyOutcomeSep,Sheet1!S71_MasterVoteMunicipal,$AC:$AC,Sheet1!S71_A5CapexCode,$AD:$AD)","v":0},{"$f":"SUMIFS(Sheet1!S71_MonthlyOutcomeOct,Sheet1!S71_MasterVoteMunicipal,$AC:$AC,Sheet1!S71_A5CapexCode,$AD:$AD)","v":0},{"$f":"SUMIFS(Sheet1!S71_MonthlyOutcomeNov,Sheet1!S71_MasterVoteMunicipal,$AC:$AC,Sheet1!S71_A5CapexCode,$AD:$AD)","v":0},{"$f":"SUMIFS(Sheet1!S71_MonthlyOutcomeDec,Sheet1!S71_MasterVoteMunicipal,$AC:$AC,Sheet1!S71_A5CapexCode,$AD:$AD)","v":0},0,0,0,0,0,0,null,{"$f":"'B5-Capex'!K29","v":0},{"$f":"'B5-Capex'!L29","v":0},{"$f":"'B5-Capex'!M29","v":0},null,null,null,null,null,null,null,null,null,null,4,"CE"]
["Vote 5 - Waste Management",null,{"$f":"SUMIFS(Sheet1!S71_MonthlyOutcomeJul,Sheet1!S71_MasterVoteMunicipal,$AC:$AC,Sheet1!S71_A5CapexCode,$AD:$AD)","v":-298288.32},{"$f":"SUMIFS(Sheet1!S71_MonthlyOutcomeAug,Sheet1!S71_MasterVoteMunicipal,$AC:$AC,Sheet1!S71_A5CapexCode,$AD:$AD)","v":0},{"$f":"SUMIFS(Sheet1!S71_MonthlyOutcomeSep,Sheet1!S71_MasterVoteMunicipal,$AC:$AC,Sheet1!S71_A5CapexCode,$AD:$AD)","v":0},{"$f":"SUMIFS(Sheet1!S71_MonthlyOutcomeOct,Sheet1!S71_MasterVoteMunicipal,$AC:$AC,Sheet1!S71_A5CapexCode,$AD:$AD)","v":0},{"$f":"SUMIFS(Sheet1!S71_MonthlyOutcomeNov,Sheet1!S71_MasterVoteMunicipal,$AC:$AC,Sheet1!S71_A5CapexCode,$AD:$AD)","v":0},{"$f":"SUMIFS(Sheet1!S71_MonthlyOutcomeDec,Sheet1!S71_MasterVoteMunicipal,$AC:$AC,Sheet1!S71_A5CapexCode,$AD:$AD)","v":0},49714.720000000001,49714.720000000001,49714.720000000001,49714.720000000001,49714.720000000001,49714.720000000001,null,{"$f":"'B5-Capex'!K30","v":0},{"$f":"'B5-Capex'!L30","v":209000},{"$f":"'B5-Capex'!M30","v":218405},null,null,null,null,null,null,null,null,null,null,5,"CE"]
["Vote 6 - Energy Sources",null,{"$f":"SUMIFS(Sheet1!S71_MonthlyOutcomeJul,Sheet1!S71_MasterVoteMunicipal,$AC:$AC,Sheet1!S71_A5CapexCode,$AD:$AD)","v":0},{"$f":"SUMIFS(Sheet1!S71_MonthlyOutcomeAug,Sheet1!S71_MasterVoteMunicipal,$AC:$AC,Sheet1!S71_A5CapexCode,$AD:$AD)","v":389981.67999999993},{"$f":"SUMIFS(Sheet1!S71_MonthlyOutcomeSep,Sheet1!S71_MasterVoteMunicipal,$AC:$AC,Sheet1!S71_A5CapexCode,$AD:$AD)","v":0},{"$f":"SUMIFS(Sheet1!S71_MonthlyOutcomeOct,Sheet1!S71_MasterVoteMunicipal,$AC:$AC,Sheet1!S71_A5CapexCode,$AD:$AD)","v":-389981.69},{"$f":"SUMIFS(Sheet1!S71_MonthlyOutcomeNov,Sheet1!S71_MasterVoteMunicipal,$AC:$AC,Sheet1!S71_A5CapexCode,$AD:$AD)","v":0},{"$f":"SUMIFS(Sheet1!S71_MonthlyOutcomeDec,Sheet1!S71_MasterVoteMunicipal,$AC:$AC,Sheet1!S71_A5CapexCode,$AD:$AD)","v":0},2583333.335,2583333.335,2583333.335,2583333.335,2583333.335,2583333.3350000009,null,{"$f":"'B5-Capex'!K31","v":15500000},{"$f":"'B5-Capex'!L31","v":20900000},{"$f":"'B5-Capex'!M31","v":21840500},null,null,null,null,null,null,null,null,null,null,6,"CE"]
["Vote 7 - Planning and Development",null,{"$f":"SUMIFS(Sheet1!S71_MonthlyOutcomeJul,Sheet1!S71_MasterVoteMunicipal,$AC:$AC,Sheet1!S71_A5CapexCode,$AD:$AD)","v":0},{"$f":"SUMIFS(Sheet1!S71_MonthlyOutcomeAug,Sheet1!S71_MasterVoteMunicipal,$AC:$AC,Sheet1!S71_A5CapexCode,$AD:$AD)","v":0},{"$f":"SUMIFS(Sheet1!S71_MonthlyOutcomeSep,Sheet1!S71_MasterVoteMunicipal,$AC:$AC,Sheet1!S71_A5CapexCode,$AD:$AD)","v":0},{"$f":"SUMIFS(Sheet1!S71_MonthlyOutcomeOct,Sheet1!S71_MasterVoteMunicipal,$AC:$AC,Sheet1!S71_A5CapexCode,$AD:$AD)","v":205441.67},{"$f":"SUMIFS(Sheet1!S71_MonthlyOutcomeNov,Sheet1!S71_MasterVoteMunicipal,$AC:$AC,Sheet1!S71_A5CapexCode,$AD:$AD)","v":-205441.67},{"$f":"SUMIFS(Sheet1!S71_MonthlyOutcomeDec,Sheet1!S71_MasterVoteMunicipal,$AC:$AC,Sheet1!S71_A5CapexCode,$AD:$AD)","v":0},0,0,0,0,0,0,null,{"$f":"'B5-Capex'!K32","v":0},{"$f":"'B5-Capex'!L32","v":0},{"$f":"'B5-Capex'!M32","v":0},null,null,null,null,null,null,null,null,null,null,7,"CE"]
["Vote 8 - Public Safety",null,{"$f":"SUMIFS(Sheet1!S71_MonthlyOutcomeJul,Sheet1!S71_MasterVoteMunicipal,$AC:$AC,Sheet1!S71_A5CapexCode,$AD:$AD)","v":0},{"$f":"SUMIFS(Sheet1!S71_MonthlyOutcomeAug,Sheet1!S71_MasterVoteMunicipal,$AC:$AC,Sheet1!S71_A5CapexCode,$AD:$AD)","v":0},{"$f":"SUMIFS(Sheet1!S71_MonthlyOutcomeSep,Sheet1!S71_MasterVoteMunicipal,$AC:$AC,Sheet1!S71_A5CapexCode,$AD:$AD)","v":0},{"$f":"SUMIFS(Sheet1!S71_MonthlyOutcomeOct,Sheet1!S71_MasterVoteMunicipal,$AC:$AC,Sheet1!S71_A5CapexCode,$AD:$AD)","v":0},{"$f":"SUMIFS(Sheet1!S71_MonthlyOutcomeNov,Sheet1!S71_MasterVoteMunicipal,$AC:$AC,Sheet1!S71_A5CapexCode,$AD:$AD)","v":0},{"$f":"SUMIFS(Sheet1!S71_MonthlyOutcomeDec,Sheet1!S71_MasterVoteMunicipal,$AC:$AC,Sheet1!S71_A5CapexCode,$AD:$AD)","v":0},0,0,0,0,0,0,null,{"$f":"'B5-Capex'!K33","v":0},{"$f":"'B5-Capex'!L33","v":0},{"$f":"'B5-Capex'!M33","v":0},null,null,null,null,null,null,null,null,null,null,8,"CE"]
["Vote 9 - Roads",null,{"$f":"SUMIFS(Sheet1!S71_MonthlyOutcomeJul,Sheet1!S71_MasterVoteMunicipal,$AC:$AC,Sheet1!S71_A5CapexCode,$AD:$AD)","v":1467148.6},{"$f":"SUMIFS(Sheet1!S71_MonthlyOutcomeAug,Sheet1!S71_MasterVoteMunicipal,$AC:$AC,Sheet1!S71_A5CapexCode,$AD:$AD)","v":2201440.52},{"$f":"SUMIFS(Sheet1!S71_MonthlyOutcomeSep,Sheet1!S71_MasterVoteMunicipal,$AC:$AC,Sheet1!S71_A5CapexCode,$AD:$AD)","v":3532278.55},{"$f":"SUMIFS(Sheet1!S71_MonthlyOutcomeOct,Sheet1!S71_MasterVoteMunicipal,$AC:$AC,Sheet1!S71_A5CapexCode,$AD:$AD)","v":3480844.4199999995},{"$f":"SUMIFS(Sheet1!S71_MonthlyOutcomeNov,Sheet1!S71_MasterVoteMunicipal,$AC:$AC,Sheet1!S71_A5CapexCode,$AD:$AD)","v":4393113.1099999994},{"$f":"SUMIFS(Sheet1!S71_MonthlyOutcomeDec,Sheet1!S71_MasterVoteMunicipal,$AC:$AC,Sheet1!S71_A5CapexCode,$AD:$AD)","v":3221897.46},2297421.5566666666,2297421.5566666666,2297421.5566666666,2297421.5566666666,2297421.5566666666,2297421.5566666722,null,{"$f":"'B5-Capex'!K34","v":32081252},{"$f":"'B5-Capex'!L34","v":35007500},{"$f":"'B5-Capex'!M34","v":36582838},null,null,null,null,null,null,null,null,null,null,9,"CE"]
["Vote 10 - Sport and Recreation",null,{"$f":"SUMIFS(Sheet1!S71_MonthlyOutcomeJul,Sheet1!S71_MasterVoteMunicipal,$AC:$AC,Sheet1!S71_A5CapexCode,$AD:$AD)","v":0},{"$f":"SUMIFS(Sheet1!S71_MonthlyOutcomeAug,Sheet1!S71_MasterVoteMunicipal,$AC:$AC,Sheet1!S71_A5CapexCode,$AD:$AD)","v":0},{"$f":"SUMIFS(Sheet1!S71_MonthlyOutcomeSep,Sheet1!S71_MasterVoteMunicipal,$AC:$AC,Sheet1!S71_A5CapexCode,$AD:$AD)","v":0},{"$f":"SUMIFS(Sheet1!S71_MonthlyOutcomeOct,Sheet1!S71_MasterVoteMunicipal,$AC:$AC,Sheet1!S71_A5CapexCode,$AD:$AD)","v":0},{"$f":"SUMIFS(Sheet1!S71_MonthlyOutcomeNov,Sheet1!S71_MasterVoteMunicipal,$AC:$AC,Sheet1!S71_A5CapexCode,$AD:$AD)","v":0},{"$f":"SUMIFS(Sheet1!S71_MonthlyOutcomeDec,Sheet1!S71_MasterVoteMunicipal,$AC:$AC,Sheet1!S71_A5CapexCode,$AD:$AD)","v":0},0,0,0,0,0,0,null,{"$f":"'B5-Capex'!K35","v":0},{"$f":"'B5-Capex'!L35","v":0},{"$f":"'B5-Capex'!M35","v":0},null,null,null,null,null,null,null,null,null,null,10,"CE"]
["Vote 11 - [NAME OF VOTE 11]",null,{"$f":"SUMIFS(Sheet1!S71_MonthlyOutcomeJul,Sheet1!S71_MasterVoteMunicipal,$AC:$AC,Sheet1!S71_A5CapexCode,$AD:$AD)","v":0},{"$f":"SUMIFS(Sheet1!S71_MonthlyOutcomeAug,Sheet1!S71_MasterVoteMunicipal,$AC:$AC,Sheet1!S71_A5CapexCode,$AD:$AD)","v":0},{"$f":"SUMIFS(Sheet1!S71_MonthlyOutcomeSep,Sheet1!S71_MasterVoteMunicipal,$AC:$AC,Sheet1!S71_A5CapexCode,$AD:$AD)","v":0},{"$f":"SUMIFS(Sheet1!S71_MonthlyOutcomeOct,Sheet1!S71_MasterVoteMunicipal,$AC:$AC,Sheet1!S71_A5CapexCode,$AD:$AD)","v":0},{"$f":"SUMIFS(Sheet1!S71_MonthlyOutcomeNov,Sheet1!S71_MasterVoteMunicipal,$AC:$AC,Sheet1!S71_A5CapexCode,$AD:$AD)","v":0},{"$f":"SUMIFS(Sheet1!S71_MonthlyOutcomeDec,Sheet1!S71_MasterVoteMunicipal,$AC:$AC,Sheet1!S71_A5CapexCode,$AD:$AD)","v":0},0,0,0,0,0,0,null,{"$f":"'B5-Capex'!K36","v":0},{"$f":"'B5-Capex'!L36","v":0},{"$f":"'B5-Capex'!M36","v":0},null,null,null,null,null,null,null,null,null,null,11,"CE"]
["Vote 12 - [NAME OF VOTE 12]",null,{"$f":"SUMIFS(Sheet1!S71_MonthlyOutcomeJul,Sheet1!S71_MasterVoteMunicipal,$AC:$AC,Sheet1!S71_A5CapexCode,$AD:$AD)","v":0},{"$f":"SUMIFS(Sheet1!S71_MonthlyOutcomeAug,Sheet1!S71_MasterVoteMunicipal,$AC:$AC,Sheet1!S71_A5CapexCode,$AD:$AD)","v":0},{"$f":"SUMIFS(Sheet1!S71_MonthlyOutcomeSep,Sheet1!S71_MasterVoteMunicipal,$AC:$AC,Sheet1!S71_A5CapexCode,$AD:$AD)","v":0},{"$f":"SUMIFS(Sheet1!S71_MonthlyOutcomeOct,Sheet1!S71_MasterVoteMunicipal,$AC:$AC,Sheet1!S71_A5CapexCode,$AD:$AD)","v":0},{"$f":"SUMIFS(Sheet1!S71_MonthlyOutcomeNov,Sheet1!S71_MasterVoteMunicipal,$AC:$AC,Sheet1!S71_A5CapexCode,$AD:$AD)","v":0},{"$f":"SUMIFS(Sheet1!S71_MonthlyOutcomeDec,Sheet1!S71_MasterVoteMunicipal,$AC:$AC,Sheet1!S71_A5CapexCode,$AD:$AD)","v":0},0,0,0,0,0,0,null,{"$f":"'B5-Capex'!K37","v":0},{"$f":"'B5-Capex'!L37","v":0},{"$f":"'B5-Capex'!M37","v":0},null,null,null,null,null,null,null,null,null,null,12,"CE"]
["Vote 13 - [NAME OF VOTE 13]",null,{"$f":"SUMIFS(Sheet1!S71_MonthlyOutcomeJul,Sheet1!S71_MasterVoteMunicipal,$AC:$AC,Sheet1!S71_A5CapexCode,$AD:$AD)","v":0},{"$f":"SUMIFS(Sheet1!S71_MonthlyOutcomeAug,Sheet1!S71_MasterVoteMunicipal,$AC:$AC,Sheet1!S71_A5CapexCode,$AD:$AD)","v":0},{"$f":"SUMIFS(Sheet1!S71_MonthlyOutcomeSep,Sheet1!S71_MasterVoteMunicipal,$AC:$AC,Sheet1!S71_A5CapexCode,$AD:$AD)","v":0},{"$f":"SUMIFS(Sheet1!S71_MonthlyOutcomeOct,Sheet1!S71_MasterVoteMunicipal,$AC:$AC,Sheet1!S71_A5CapexCode,$AD:$AD)","v":0},{"$f":"SUMIFS(Sheet1!S71_MonthlyOutcomeNov,Sheet1!S71_MasterVoteMunicipal,$AC:$AC,Sheet1!S71_A5CapexCode,$AD:$AD)","v":0},{"$f":"SUMIFS(Sheet1!S71_MonthlyOutcomeDec,Sheet1!S71_MasterVoteMunicipal,$AC:$AC,Sheet1!S71_A5CapexCode,$AD:$AD)","v":0},0,0,0,0,0,0,null,{"$f":"'B5-Capex'!K38","v":0},{"$f":"'B5-Capex'!L38","v":0},{"$f":"'B5-Capex'!M38","v":0},null,null,null,null,null,null,null,null,null,null,13,"CE"]
["Vote 14 - [NAME OF VOTE 14]",null,{"$f":"SUMIFS(Sheet1!S71_MonthlyOutcomeJul,Sheet1!S71_MasterVoteMunicipal,$AC:$AC,Sheet1!S71_A5CapexCode,$AD:$AD)","v":0},{"$f":"SUMIFS(Sheet1!S71_MonthlyOutcomeAug,Sheet1!S71_MasterVoteMunicipal,$AC:$AC,Sheet1!S71_A5CapexCode,$AD:$AD)","v":0},{"$f":"SUMIFS(Sheet1!S71_MonthlyOutcomeSep,Sheet1!S71_MasterVoteMunicipal,$AC:$AC,Sheet1!S71_A5CapexCode,$AD:$AD)","v":0},{"$f":"SUMIFS(Sheet1!S71_MonthlyOutcomeOct,Sheet1!S71_MasterVoteMunicipal,$AC:$AC,Sheet1!S71_A5CapexCode,$AD:$AD)","v":0},{"$f":"SUMIFS(Sheet1!S71_MonthlyOutcomeNov,Sheet1!S71_MasterVoteMunicipal,$AC:$AC,Sheet1!S71_A5CapexCode,$AD:$AD)","v":0},{"$f":"SUMIFS(Sheet1!S71_MonthlyOutcomeDec,Sheet1!S71_MasterVoteMunicipal,$AC:$AC,Sheet1!S71_A5CapexCode,$AD:$AD)","v":0},0,0,0,0,0,0,null,{"$f":"'B5-Capex'!K39","v":0},{"$f":"'B5-Capex'!L39","v":0},{"$f":"'B5-Capex'!M39","v":0},null,null,null,null,null,null,null,null,null,null,14,"CE"]
["Vote 15 - [NAME OF VOTE 15]",null,{"$f":"SUMIFS(Sheet1!S71_MonthlyOutcomeJul,Sheet1!S71_MasterVoteMunicipal,$AC:$AC,Sheet1!S71_A5CapexCode,$AD:$AD)","v":0},{"$f":"SUMIFS(Sheet1!S71_MonthlyOutcomeAug,Sheet1!S71_MasterVoteMunicipal,$AC:$AC,Sheet1!S71_A5CapexCode,$AD:$AD)","v":0},{"$f":"SUMIFS(Sheet1!S71_MonthlyOutcomeSep,Sheet1!S71_MasterVoteMunicipal,$AC:$AC,Sheet1!S71_A5CapexCode,$AD:$AD)","v":0},{"$f":"SUMIFS(Sheet1!S71_MonthlyOutcomeOct,Sheet1!S71_MasterVoteMunicipal,$AC:$AC,Sheet1!S71_A5CapexCode,$AD:$AD)","v":0},{"$f":"SUMIFS(Sheet1!S71_MonthlyOutcomeNov,Sheet1!S71_MasterVoteMunicipal,$AC:$AC,Sheet1!S71_A5CapexCode,$AD:$AD)","v":0},{"$f":"SUMIFS(Sheet1!S71_MonthlyOutcomeDec,Sheet1!S71_MasterVoteMunicipal,$AC:$AC,Sheet1!S71_A5CapexCode,$AD:$AD)","v":0},0,0,0,0,0,0,null,{"$f":"'B5-Capex'!K40","v":0},{"$f":"'B5-Capex'!L40","v":0},{"$f":"'B5-Capex'!M40","v":0},null,null,null,null,null,null,null,null,null,null,15,"CE"]
["Capital single-year expenditure sub-total",3,{"$f":"SUM(C24:C38)","v":-14587404.470000001},{"$f":"SUM(D24:D38)","v":2591422.2000000002},7002793.6899999995,3728584.7399999993,4652032.9899999993,3378897.46,9870570.0649999995,9870570.0649999995,9870570.0649999995,9870570.0649999995,9870570.0649999995,9870570.0650000069,0,65989747,69074500,72182855]
["Total Capital Expenditure",2,{"$f":"C21+C39","v":-14587404.470000001},{"$f":"D21+D39","v":2591422.2000000002},7002793.6899999995,3728584.7399999993,4652032.9899999993,3378897.46,9870570.0649999995,9870570.0649999995,9870570.0649999995,9870570.0649999995,9870570.0649999995,9870570.0650000069,0,65989747,69074500,72182855]
[{"$f":"head27a","v":"References"}]
["1. Table should be completed as either Multi-Year expenditure appropriation or Budget Year and Forward Year estimates"]
["2. Total Capital Expenditure must reconcile to budget table A5 and monthly budget statement table C5"]
[]
["check",null,null,null,null,null,null,null,null,null,null,null,null,null,{"$f":"O40-'B5-Capex'!J42","v":-18781731},{"$f":"P40-'B5-Capex'!K42","v":0},{"$f":"Q40-'B5-Capex'!L42","v":0},{"$f":"R40-'B5-Capex'!M42","v":0}]

{"sheet":"SB17","index":55,"n_rows":31,"n_cols":30,"rows_kept":31,"cut":false,"hidden":false,"merged":[[1,0,2,0],[1,1,2,1],[1,2,1,13]]}
[{"$f":"muni&\" - \"&ADJB17&\" - \"&Date","v":"EC139 Enoch Mgijima - Supporting Table SB17 Adjustments Budget - monthly capital expenditure (functional classification) - "}]
[{"$f":"desc","v":"Description"},{"$f":"head27","v":"Ref"},{"$f":"Head2","v":"Budget Year 2021/22"},null,null,null,null,null,null,null,null,null,null,null,{"$f":"Head3a","v":"Medium Term Revenue and Expenditure Framework"}]
[null,null,"July","August","Sept.","October","November","December","January","February","March","April","May","June",{"$f":"Head9","v":"Budget Year 2021/22"},{"$f":"Head10","v":"Budget Year +1 2022/23"},{"$f":"Head11","v":"Budget Year +2 2023/24"}]
["R thousands",null,{"$f":"Head5A","v":"Outcome"},"Outcome","Outcome","Outcome","Outcome","Outcome",{"$f":"Head7","v":"Adjusted Budget"},"Adjusted Budget","Adjusted Budget","Adjusted Budget","Adjusted Budget","Adjusted Budget","Adjusted Budget","Adjusted Budget","Adjusted Budget"]
["Capital Expenditure - Functional"]
[{"$f":"'B2-FinPerf SC'!A7","v":"Governance and administration"},null,{"$f":"SUM(C7:C9)","v":678598},0,1726109.87,151690,232537.99,157000,290426.52333333326,290426.52333333326,290426.52333333326,290426.52333333326,290426.52333333326,{"$f":"O6-SUM(C6:M6)","v":290426.5233333325},{"$f":"'B5-Capex'!K45","v":4688495},{"$f":"'B5-Capex'!L45","v":3553000},{"$f":"'B5-Capex'!M45","v":3712887}]
[{"$f":"'B2-FinPerf SC'!A8","v":"Executive and council"},null,{"$f":"SUMIFS(Sheet1!S71_MonthlyOutcomeJul,Sheet1!S71_A2Code,$AC:$AC,Sheet1!S71_A5CapexCode,$AD:$AD)","v":0},{"$f":"SUMIFS(Sheet1!S71_MonthlyOutcomeAug,Sheet1!S71_A2Code,$AC:$AC,Sheet1!S71_A5CapexCode,$AD:$AD)","v":0},{"$f":"SUMIFS(Sheet1!S71_MonthlyOutcomeSep,Sheet1!S71_A2Code,$AC:$AC,Sheet1!S71_A5CapexCode,$AD:$AD)","v":0},{"$f":"SUMIFS(Sheet1!S71_MonthlyOutcomeOct,Sheet1!S71_A2Code,$AC:$AC,Sheet1!S71_A5CapexCode,$AD:$AD)","v":0},{"$f":"SUMIFS(Sheet1!S71_MonthlyOutcomeNov,Sheet1!S71_A2Code,$AC:$AC,Sheet1!S71_A5CapexCode,$AD:$AD)","v":0},{"$f":"SUMIFS(Sheet1!S71_MonthlyOutcomeDec,Sheet1!S71_A2Code,$AC:$AC,Sheet1!S71_A5CapexCode,$AD:$AD)","v":0},{"$f":"(O7-SUM(C7:H7))/6","v":25000},{"$f":"(O7-SUM(C7:H7))/6","v":25000},{"$f":"(O7-SUM(C7:H7))/6","v":25000},{"$f":"(O7-SUM(C7:H7))/6","v":25000},{"$f":"(O7-SUM(C7:H7))/6","v":25000},25000,{"$f":"'B5-Capex'!K46","v":150000},{"$f":"'B5-Capex'!L46","v":209000},{"$f":"'B5-Capex'!M46","v":218405},null,null,null,null,null,null,null,null,null,null,null,"1100","CE"]
[{"$f":"'B2-FinPerf SC'!A9","v":"Finance and administration"},null,{"$f":"SUMIFS(Sheet1!S71_MonthlyOutcomeJul,Sheet1!S71_A2Code,$AC:$AC,Sheet1!S71_A5CapexCode,$AD:$AD)","v":678598},{"$f":"SUMIFS(Sheet1!S71_MonthlyOutcomeAug,Sheet1!S71_A2Code,$AC:$AC,Sheet1!S71_A5CapexCode,$AD:$AD)","v":0},{"$f":"SUMIFS(Sheet1!S71_MonthlyOutcomeSep,Sheet1!S71_A2Code,$AC:$AC,Sheet1!S71_A5CapexCode,$AD:$AD)","v":1726109.87},{"$f":"SUMIFS(Sheet1!S71_MonthlyOutcomeOct,Sheet1!S71_A2Code,$AC:$AC,Sheet1!S71_A5CapexCode,$AD:$AD)","v":151690},{"$f":"SUMIFS(Sheet1!S71_MonthlyOutcomeNov,Sheet1!S71_A2Code,$AC:$AC,Sheet1!S71_A5CapexCode,$AD:$AD)","v":232537.99},{"$f":"SUMIFS(Sheet1!S71_MonthlyOutcomeDec,Sheet1!S71_A2Code,$AC:$AC,Sheet1!S71_A5CapexCode,$AD:$AD)","v":157000},{"$f":"(O8-SUM(C8:H8))/6","v":265426.52333333326},{"$f":"(O8-SUM(C8:H8))/6","v":265426.52333333326},{"$f":"(O8-SUM(C8:H8))/6","v":265426.52333333326},{"$f":"(O8-SUM(C8:H8))/6","v":265426.52333333326},{"$f":"(O8-SUM(C8:H8))/6","v":265426.52333333326},265426.5233333325,{"$f":"'B5-Capex'!K47","v":4538495},{"$f":"'B5-Capex'!L47","v":3344000},{"$f":"'B5-Capex'!M47","v":3494482},null,null,null,null,null,null,null,null,null,null,null,"1200","CE"]
[{"$f":"'B2-FinPerf SC'!A10","v":"Internal audit"},null,{"$f":"SUMIFS(Sheet1!S71_MonthlyOutcomeJul,Sheet1!S71_A2Code,$AC:$AC,Sheet1!S71_A5CapexCode,$AD:$AD)","v":0},{"$f":"SUMIFS(Sheet1!S71_MonthlyOutcomeAug,Sheet1!S71_A2Code,$AC:$AC,Sheet1!S71_A5CapexCode,$AD:$AD)","v":0},{"$f":"SUMIFS(Sheet1!S71_MonthlyOutcomeSep,Sheet1!S71_A2Code,$AC:$AC,Sheet1!S71_A5CapexCode,$AD:$AD)","v":0},{"$f":"SUMIFS(Sheet1!S71_MonthlyOutcomeOct,Sheet1!S71_A2Code,$AC:$AC,Sheet1!S71_A5CapexCode,$AD:$AD)","v":0},{"$f":"SUMIFS(Sheet1!S71_MonthlyOutcomeNov,Sheet1!S71_A2Code,$AC:$AC,Sheet1!S71_A5CapexCode,$AD:$AD)","v":0},{"$f":"SUMIFS(Sheet1!S71_MonthlyOutcomeDec,Sheet1!S71_A2Code,$AC:$AC,Sheet1!S71_A5CapexCode,$AD:$AD)","v":0},0,0,0,0,0,0,{"$f":"'B5-Capex'!K48","v":0},{"$f":"'B5-Capex'!L48","v":0},{"$f":"'B5-Capex'!M48","v":0},null,null,null,null,null,null,null,null,null,null,null,"1300","CE"]
[{"$f":"'B2-FinPerf SC'!A11","v":"Community and public safety"},null,{"$f":"SUM(C11:C15)","v":-16434862.75},0,1744405.27,280590.33999999997,231823.56,0,4649673.93,4649673.93,4649673.93,4649673.93,4649673.93,4649673.9300000016,{"$f":"'B5-Capex'!K49","v":13720000},{"$f":"'B5-Capex'!L49","v":11495000},{"$f":"'B5-Capex'!M49","v":12012275}]
[{"$f":"'B2-FinPerf SC'!A12","v":"Community and social services"},null,{"$f":"SUMIFS(Sheet1!S71_MonthlyOutcomeJul,Sheet1!S71_A2Code,$AC:$AC,Sheet1!S71_A5CapexCode,$AD:$AD)","v":-16434862.75},{"$f":"SUMIFS(Sheet1!S71_MonthlyOutcomeAug,Sheet1!S71_A2Code,$AC:$AC,Sheet1!S71_A5CapexCode,$AD:$AD)","v":0},{"$f":"SUMIFS(Sheet1!S71_MonthlyOutcomeSep,Sheet1!S71_A2Code,$AC:$AC,Sheet1!S71_A5CapexCode,$AD:$AD)","v":1744405.27},{"$f":"SUMIFS(Sheet1!S71_MonthlyOutcomeOct,Sheet1!S71_A2Code,$AC:$AC,Sheet1!S71_A5CapexCode,$AD:$AD)","v":280590.33999999997},{"$f":"SUMIFS(Sheet1!S71_MonthlyOutcomeNov,Sheet1!S71_A2Code,$AC:$AC,Sheet1!S71_A5CapexCode,$AD:$AD)","v":231823.56},{"$f":"SUMIFS(Sheet1!S71_MonthlyOutcomeDec,Sheet1!S71_A2Code,$AC:$AC,Sheet1!S71_A5CapexCode,$AD:$AD)","v":0},{"$f":"(O11-SUM(C11:H11))/6","v":4649673.93},{"$f":"(O11-SUM(C11:H11))/6","v":4649673.93},{"$f":"(O11-SUM(C11:H11))/6","v":4649673.93},{"$f":"(O11-SUM(C11:H11))/6","v":4649673.93},{"$f":"(O11-SUM(C11:H11))/6","v":4649673.93},4649673.9300000016,{"$f":"'B5-Capex'!K50","v":13720000},{"$f":"'B5-Capex'!L50","v":9405000},{"$f":"'B5-Capex'!M50","v":9828225},null,null,null,null,null,null,null,null,null,null,null,"2100","CE"]
[{"$f":"'B2-FinPerf SC'!A13","v":"Sport and recreation"},null,{"$f":"SUMIFS(Sheet1!S71_MonthlyOutcomeJul,Sheet1!S71_A2Code,$AC:$AC,Sheet1!S71_A5CapexCode,$AD:$AD)","v":0},{"$f":"SUMIFS(Sheet1!S71_MonthlyOutcomeAug,Sheet1!S71_A2Code,$AC:$AC,Sheet1!S71_A5CapexCode,$AD:$AD)","v":0},{"$f":"SUMIFS(Sheet1!S71_MonthlyOutcomeSep,Sheet1!S71_A2Code,$AC:$AC,Sheet1!S71_A5CapexCode,$AD:$AD)","v":0},{"$f":"SUMIFS(Sheet1!S71_MonthlyOutcomeOct,Sheet1!S71_A2Code,$AC:$AC,Sheet1!S71_A5CapexCode,$AD:$AD)","v":0},{"$f":"SUMIFS(Sheet1!S71_MonthlyOutcomeNov,Sheet1!S71_A2Code,$AC:$AC,Sheet1!S71_A5CapexCode,$AD:$AD)","v":0},{"$f":"SUMIFS(Sheet1!S71_MonthlyOutcomeDec,Sheet1!S71_A2Code,$AC:$AC,Sheet1!S71_A5CapexCode,$AD:$AD)","v":0},0,0,0,0,0,0,{"$f":"'B5-Capex'!K51","v":0},{"$f":"'B5-Capex'!L51","v":2090000},{"$f":"'B5-Capex'!M51","v":2184050},null,null,null,null,null,null,null,null,null,null,null,"2200","CE"]
[{"$f":"'B2-FinPerf SC'!A14","v":"Public safety"},null,{"$f":"SUMIFS(Sheet1!S71_MonthlyOutcomeJul,Sheet1!S71_A2Code,$AC:$AC,Sheet1!S71_A5CapexCode,$AD:$AD)","v":0},{"$f":"SUMIFS(Sheet1!S71_MonthlyOutcomeAug,Sheet1!S71_A2Code,$AC:$AC,Sheet1!S71_A5CapexCode,$AD:$AD)","v":0},{"$f":"SUMIFS(Sheet1!S71_MonthlyOutcomeSep,Sheet1!S71_A2Code,$AC:$AC,Sheet1!S71_A5CapexCode,$AD:$AD)","v":0},{"$f":"SUMIFS(Sheet1!S71_MonthlyOutcomeOct,Sheet1!S71_A2Code,$AC:$AC,Sheet1!S71_A5CapexCode,$AD:$AD)","v":0},{"$f":"SUMIFS(Sheet1!S71_MonthlyOutcomeNov,Sheet1!S71_A2Code,$AC:$AC,Sheet1!S71_A5CapexCode,$AD:$AD)","v":0},{"$f":"SUMIFS(Sheet1!S71_MonthlyOutcomeDec,Sheet1!S71_A2Code,$AC:$AC,Sheet1!S71_A5CapexCode,$AD:$AD)","v":0},0,0,0,0,0,0,{"$f":"'B5-Capex'!K52","v":0},{"$f":"'B5-Capex'!L52","v":0},{"$f":"'B5-Capex'!M52","v":0},null,null,null,null,null,null,null,null,null,null,null,"2300","CE"]
[{"$f":"'B2-FinPerf SC'!A15","v":"Housing"},null,{"$f":"SUMIFS(Sheet1!S71_MonthlyOutcomeJul,Sheet1!S71_A2Code,$AC:$AC,Sheet1!S71_A5CapexCode,$AD:$AD)","v":0},{"$f":"SUMIFS(Sheet1!S71_MonthlyOutcomeAug,Sheet1!S71_A2Code,$AC:$AC,Sheet1!S71_A5CapexCode,$AD:$AD)","v":0},{"$f":"SUMIFS(Sheet1!S71_MonthlyOutcomeSep,Sheet1!S71_A2Code,$AC:$AC,Sheet1!S71_A5CapexCode,$AD:$AD)","v":0},{"$f":"SUMIFS(Sheet1!S71_MonthlyOutcomeOct,Sheet1!S71_A2Code,$AC:$AC,Sheet1!S71_A5CapexCode,$AD:$AD)","v":0},{"$f":"SUMIFS(Sheet1!S71_MonthlyOutcomeNov,Sheet1!S71_A2Code,$AC:$AC,Sheet1!S71_A5CapexCode,$AD:$AD)","v":0},{"$f":"SUMIFS(Sheet1!S71_MonthlyOutcomeDec,Sheet1!S71_A2Code,$AC:$AC,Sheet1!S71_A5CapexCode,$AD:$AD)","v":0},0,0,0,0,0,0,{"$f":"'B5-Capex'!K53","v":0},{"$f":"'B5-Capex'!L53","v":0},{"$f":"'B5-Capex'!M53","v":0},null,null,null,null,null,null,null,null,null,null,null,"2400","CE"]
[{"$f":"'B2-FinPerf SC'!A16","v":"Health"},null,{"$f":"SUMIFS(Sheet1!S71_MonthlyOutcomeJul,Sheet1!S71_A2Code,$AC:$AC,Sheet1!S71_A5CapexCode,$AD:$AD)","v":0},{"$f":"SUMIFS(Sheet1!S71_MonthlyOutcomeAug,Sheet1!S71_A2Code,$AC:$AC,Sheet1!S71_A5CapexCode,$AD:$AD)","v":0},{"$f":"SUMIFS(Sheet1!S71_MonthlyOutcomeSep,Sheet1!S71_A2Code,$AC:$AC,Sheet1!S71_A5CapexCode,$AD:$AD)","v":0},{"$f":"SUMIFS(Sheet1!S71_MonthlyOutcomeOct,Sheet1!S71_A2Code,$AC:$AC,Sheet1!S71_A5CapexCode,$AD:$AD)","v":0},{"$f":"SUMIFS(Sheet1!S71_MonthlyOutcomeNov,Sheet1!S71_A2Code,$AC:$AC,Sheet1!S71_A5CapexCode,$AD:$AD)","v":0},{"$f":"SUMIFS(Sheet1!S71_MonthlyOutcomeDec,Sheet1!S71_A2Code,$AC:$AC,Sheet1!S71_A5CapexCode,$AD:$AD)","v":0},0,0,0,0,0,0,{"$f":"'B5-Capex'!K54","v":0},{"$f":"'B5-Capex'!L54","v":0},{"$f":"'B5-Capex'!M54","v":0},null,null,null,null,null,null,null,null,null,null,null,"2500","CE"]
[{"$f":"'B2-FinPerf SC'!A17","v":"Economic and environmental services"},null,{"$f":"SUM(C17:C19)","v":1467148.6},2201440.52,3532278.55,3686286.0899999994,4187671.4399999995,3221897.46,2297421.5566666666,2297421.5566666666,2297421.5566666666,2297421.5566666666,2297421.5566666666,2297421.5566666722,{"$f":"'B5-Capex'!K55","v":32081252},{"$f":"'B5-Capex'!L55","v":35007500},{"$f":"'B5-Capex'!M55","v":36582838}]
[{"$f":"'B2-FinPerf SC'!A18","v":"Planning and development"},null,{"$f":"SUMIFS(Sheet1!S71_MonthlyOutcomeJul,Sheet1!S71_A2Code,$AC:$AC,Sheet1!S71_A5CapexCode,$AD:$AD)","v":0},{"$f":"SUMIFS(Sheet1!S71_MonthlyOutcomeAug,Sheet1!S71_A2Code,$AC:$AC,Sheet1!S71_A5CapexCode,$AD:$AD)","v":0},{"$f":"SUMIFS(Sheet1!S71_MonthlyOutcomeSep,Sheet1!S71_A2Code,$AC:$AC,Sheet1!S71_A5CapexCode,$AD:$AD)","v":0},{"$f":"SUMIFS(Sheet1!S71_MonthlyOutcomeOct,Sheet1!S71_A2Code,$AC:$AC,Sheet1!S71_A5CapexCode,$AD:$AD)","v":205441.67},{"$f":"SUMIFS(Sheet1!S71_MonthlyOutcomeNov,Sheet1!S71_A2Code,$AC:$AC,Sheet1!S71_A5CapexCode,$AD:$AD)","v":-205441.67},{"$f":"SUMIFS(Sheet1!S71_MonthlyOutcomeDec,Sheet1!S71_A2Code,$AC:$AC,Sheet1!S71_A5CapexCode,$AD:$AD)","v":0},{"$f":"(O17-SUM(C17:H17))/6","v":0},{"$f":"(O17-SUM(C17:H17))/6","v":0},{"$f":"(O17-SUM(C17:H17))/6","v":0},{"$f":"(O17-SUM(C17:H17))/6","v":0},{"$f":"(O17-SUM(C17:H17))/6","v":0},0,{"$f":"'B5-Capex'!K56","v":0},{"$f":"'B5-Capex'!L56","v":0},{"$f":"'B5-Capex'!M56","v":0},null,null,null,null,null,null,null,null,null,null,null,"3100","CE"]
[{"$f":"'B2-FinPerf SC'!A19","v":"Road transport"},null,{"$f":"SUMIFS(Sheet1!S71_MonthlyOutcomeJul,Sheet1!S71_A2Code,$AC:$AC,Sheet1!S71_A5CapexCode,$AD:$AD)","v":1467148.6},{"$f":"SUMIFS(Sheet1!S71_MonthlyOutcomeAug,Sheet1!S71_A2Code,$AC:$AC,Sheet1!S71_A5CapexCode,$AD:$AD)","v":2201440.52},{"$f":"SUMIFS(Sheet1!S71_MonthlyOutcomeSep,Sheet1!S71_A2Code,$AC:$AC,Sheet1!S71_A5CapexCode,$AD:$AD)","v":3532278.55},{"$f":"SUMIFS(Sheet1!S71_MonthlyOutcomeOct,Sheet1!S71_A2Code,$AC:$AC,Sheet1!S71_A5CapexCode,$AD:$AD)","v":3480844.4199999995},{"$f":"SUMIFS(Sheet1!S71_MonthlyOutcomeNov,Sheet1!S71_A2Code,$AC:$AC,Sheet1!S71_A5CapexCode,$AD:$AD)","v":4393113.1099999994},{"$f":"SUMIFS(Sheet1!S71_MonthlyOutcomeDec,Sheet1!S71_A2Code,$AC:$AC,Sheet1!S71_A5CapexCode,$AD:$AD)","v":3221897.46},2297421.5566666666,2297421.5566666666,2297421.5566666666,2297421.5566666666,2297421.5566666666,2297421.5566666722,{"$f":"'B5-Capex'!K57","v":32081252},{"$f":"'B5-Capex'!L57","v":35007500},{"$f":"'B5-Capex'!M57","v":36582838},null,null,null,null,null,null,null,null,null,null,null,"3200","CE"]
[{"$f":"'B2-FinPerf SC'!A20","v":"Environmental protection"},null,{"$f":"SUMIFS(Sheet1!S71_MonthlyOutcomeJul,Sheet1!S71_A2Code,$AC:$AC,Sheet1!S71_A5CapexCode,$AD:$AD)","v":0},{"$f":"SUMIFS(Sheet1!S71_MonthlyOutcomeAug,Sheet1!S71_A2Code,$AC:$AC,Sheet1!S71_A5CapexCode,$AD:$AD)","v":0},{"$f":"SUMIFS(Sheet1!S71_MonthlyOutcomeSep,Sheet1!S71_A2Code,$AC:$AC,Sheet1!S71_A5CapexCode,$AD:$AD)","v":0},{"$f":"SUMIFS(Sheet1!S71_MonthlyOutcomeOct,Sheet1!S71_A2Code,$AC:$AC,Sheet1!S71_A5CapexCode,$AD:$AD)","v":0},{"$f":"SUMIFS(Sheet1!S71_MonthlyOutcomeNov,Sheet1!S71_A2Code,$AC:$AC,Sheet1!S71_A5CapexCode,$AD:$AD)","v":0},{"$f":"SUMIFS(Sheet1!S71_MonthlyOutcomeDec,Sheet1!S71_A2Code,$AC:$AC,Sheet1!S71_A5CapexCode,$AD:$AD)","v":0},0,0,0,0,0,0,{"$f":"'B5-Capex'!K58","v":0},{"$f":"'B5-Capex'!L58","v":0},{"$f":"'B5-Capex'!M58","v":0},null,null,null,null,null,null,null,null,null,null,null,"3300","CE"]
[{"$f":"'B2-FinPerf SC'!A21","v":"Trading services"},null,{"$f":"SUM(C21:C24)","v":-298288.32},{"$f":"SUM(D21:D24)","v":389981.67999999993},0,-389981.69,0,0,2633048.0550000002,2633048.0550000002,2633048.0550000002,2633048.0550000002,2633048.0550000002,2633048.0549999997,{"$f":"'B5-Capex'!K59","v":15500000},{"$f":"'B5-Capex'!L59","v":21109000},{"$f":"'B5-Capex'!M59","v":22058905},null,null,null,null,null,null,null,null,null,null,null,null,"CE"]
[{"$f":"'B2-FinPerf SC'!A22","v":"Energy sources"},null,{"$f":"SUMIFS(Sheet1!S71_MonthlyOutcomeJul,Sheet1!S71_A2Code,$AC:$AC,Sheet1!S71_A5CapexCode,$AD:$AD)","v":0},{"$f":"SUMIFS(Sheet1!S71_MonthlyOutcomeAug,Sheet1!S71_A2Code,$AC:$AC,Sheet1!S71_A5CapexCode,$AD:$AD)","v":389981.67999999993},{"$f":"SUMIFS(Sheet1!S71_MonthlyOutcomeSep,Sheet1!S71_A2Code,$AC:$AC,Sheet1!S71_A5CapexCode,$AD:$AD)","v":0},{"$f":"SUMIFS(Sheet1!S71_MonthlyOutcomeOct,Sheet1!S71_A2Code,$AC:$AC,Sheet1!S71_A5CapexCode,$AD:$AD)","v":-389981.69},{"$f":"SUMIFS(Sheet1!S71_MonthlyOutcomeNov,Sheet1!S71_A2Code,$AC:$AC,Sheet1!S71_A5CapexCode,$AD:$AD)","v":0},{"$f":"SUMIFS(Sheet1!S71_MonthlyOutcomeDec,Sheet1!S71_A2Code,$AC:$AC,Sheet1!S71_A5CapexCode,$AD:$AD)","v":0},{"$f":"(O21-SUM(C21:H21))/6","v":2583333.335},{"$f":"(O21-SUM(C21:H21))/6","v":2583333.335},{"$f":"(O21-SUM(C21:H21))/6","v":2583333.335},{"$f":"(O21-SUM(C21:H21))/6","v":2583333.335},{"$f":"(O21-SUM(C21:H21))/6","v":2583333.335},2583333.3350000009,{"$f":"'B5-Capex'!K60","v":15500000},{"$f":"'B5-Capex'!L60","v":20900000},{"$f":"'B5-Capex'!M60","v":21840500},null,null,null,null,null,null,null,null,null,null,null,"4100","CE"]
[{"$f":"'B2-FinPerf SC'!A23","v":"Water management"},null,{"$f":"SUMIFS(Sheet1!S71_MonthlyOutcomeJul,Sheet1!S71_A2Code,$AC:$AC,Sheet1!S71_A5CapexCode,$AD:$AD)","v":0},{"$f":"SUMIFS(Sheet1!S71_MonthlyOutcomeAug,Sheet1!S71_A2Code,$AC:$AC,Sheet1!S71_A5CapexCode,$AD:$AD)","v":0},{"$f":"SUMIFS(Sheet1!S71_MonthlyOutcomeSep,Sheet1!S71_A2Code,$AC:$AC,Sheet1!S71_A5CapexCode,$AD:$AD)","v":0},{"$f":"SUMIFS(Sheet1!S71_MonthlyOutcomeOct,Sheet1!S71_A2Code,$AC:$AC,Sheet1!S71_A5CapexCode,$AD:$AD)","v":0},{"$f":"SUMIFS(Sheet1!S71_MonthlyOutcomeNov,Sheet1!S71_A2Code,$AC:$AC,Sheet1!S71_A5CapexCode,$AD:$AD)","v":0},{"$f":"SUMIFS(Sheet1!S71_MonthlyOutcomeDec,Sheet1!S71_A2Code,$AC:$AC,Sheet1!S71_A5CapexCode,$AD:$AD)","v":0},0,0,0,0,0,0,{"$f":"'B5-Capex'!K61","v":0},{"$f":"'B5-Capex'!L61","v":0},{"$f":"'B5-Capex'!M61","v":0},null,null,null,null,null,null,null,null,null,null,null,"4200","CE"]
[{"$f":"'B2-FinPerf SC'!A24","v":"Waste water management"},null,{"$f":"SUMIFS(Sheet1!S71_MonthlyOutcomeJul,Sheet1!S71_A2Code,$AC:$AC,Sheet1!S71_A5CapexCode,$AD:$AD)","v":0},{"$f":"SUMIFS(Sheet1!S71_MonthlyOutcomeAug,Sheet1!S71_A2Code,$AC:$AC,Sheet1!S71_A5CapexCode,$AD:$AD)","v":0},{"$f":"SUMIFS(Sheet1!S71_MonthlyOutcomeSep,Sheet1!S71_A2Code,$AC:$AC,Sheet1!S71_A5CapexCode,$AD:$AD)","v":0},{"$f":"SUMIFS(Sheet1!S71_MonthlyOutcomeOct,Sheet1!S71_A2Code,$AC:$AC,Sheet1!S71_A5CapexCode,$AD:$AD)","v":0},{"$f":"SUMIFS(Sheet1!S71_MonthlyOutcomeNov,Sheet1!S71_A2Code,$AC:$AC,Sheet1!S71_A5CapexCode,$AD:$AD)","v":0},{"$f":"SUMIFS(Sheet1!S71_MonthlyOutcomeDec,Sheet1!S71_A2Code,$AC:$AC,Sheet1!S71_A5CapexCode,$AD:$AD)","v":0},0,0,0,0,0,0,{"$f":"'B5-Capex'!K62","v":0},{"$f":"'B5-Capex'!L62","v":0},{"$f":"'B5-Capex'!M62","v":0},null,null,null,null,null,null,null,null,null,null,null,"4300","CE"]
[{"$f":"'B2-FinPerf SC'!A25","v":"Waste management"},null,{"$f":"SUMIFS(Sheet1!S71_MonthlyOutcomeJul,Sheet1!S71_A2Code,$AC:$AC,Sheet1!S71_A5CapexCode,$AD:$AD)","v":-298288.32},{"$f":"SUMIFS(Sheet1!S71_MonthlyOutcomeAug,Sheet1!S71_A2Code,$AC:$AC,Sheet1!S71_A5CapexCode,$AD:$AD)","v":0},{"$f":"SUMIFS(Sheet1!S71_MonthlyOutcomeSep,Sheet1!S71_A2Code,$AC:$AC,Sheet1!S71_A5CapexCode,$AD:$AD)","v":0},{"$f":"SUMIFS(Sheet1!S71_MonthlyOutcomeOct,Sheet1!S71_A2Code,$AC:$AC,Sheet1!S71_A5CapexCode,$AD:$AD)","v":0},{"$f":"SUMIFS(Sheet1!S71_MonthlyOutcomeNov,Sheet1!S71_A2Code,$AC:$AC,Sheet1!S71_A5CapexCode,$AD:$AD)","v":0},{"$f":"SUMIFS(Sheet1!S71_MonthlyOutcomeDec,Sheet1!S71_A2Code,$AC:$AC,Sheet1!S71_A5CapexCode,$AD:$AD)","v":0},49714.720000000001,49714.720000000001,49714.720000000001,49714.720000000001,49714.720000000001,49714.720000000001,{"$f":"'B5-Capex'!K63","v":0},{"$f":"'B5-Capex'!L63","v":209000},{"$f":"'B5-Capex'!M63","v":218405},null,null,null,null,null,null,null,null,null,null,null,"4400","CE"]
[{"$f":"'B2-FinPerf SC'!A26","v":"Other"},null,{"$f":"SUMIFS(Sheet1!S71_MonthlyOutcomeJul,Sheet1!S71_A2Code,$AC:$AC,Sheet1!S71_A5CapexCode,$AD:$AD)","v":0},{"$f":"SUMIFS(Sheet1!S71_MonthlyOutcomeAug,Sheet1!S71_A2Code,$AC:$AC,Sheet1!S71_A5CapexCode,$AD:$AD)","v":0},{"$f":"SUMIFS(Sheet1!S71_MonthlyOutcomeSep,Sheet1!S71_A2Code,$AC:$AC,Sheet1!S71_A5CapexCode,$AD:$AD)","v":0},{"$f":"SUMIFS(Sheet1!S71_MonthlyOutcomeOct,Sheet1!S71_A2Code,$AC:$AC,Sheet1!S71_A5CapexCode,$AD:$AD)","v":0},{"$f":"SUMIFS(Sheet1!S71_MonthlyOutcomeNov,Sheet1!S71_A2Code,$AC:$AC,Sheet1!S71_A5CapexCode,$AD:$AD)","v":0},{"$f":"SUMIFS(Sheet1!S71_MonthlyOutcomeDec,Sheet1!S71_A2Code,$AC:$AC,Sheet1!S71_A5CapexCode,$AD:$AD)","v":0},0,0,0,0,0,0,{"$f":"'B5-Capex'!K64","v":0},{"$f":"'B5-Capex'!L64","v":0},{"$f":"'B5-Capex'!M64","v":0},null,null,null,null,null,null,null,null,null,null,null,"5000","CE"]
["Total Capital Expenditure - Functional",null,{"$f":"C6+C10+C16+C20+C25","v":-14587404.470000001},{"$f":"D6+D10+D16+D20+D25","v":2591422.2000000002},7002793.6899999995,3728584.7399999993,4652032.9899999993,3378897.46,9870570.0649999995,9870570.0649999995,9870570.0649999995,9870570.0649999995,9870570.0649999995,9870570.0650000051,{"$f":"O6+O10+O16+O20+O25","v":65989747},{"$f":"P6+P10+P16+P20+P25","v":71164500},{"$f":"Q6+Q10+Q16+Q20+Q25","v":74366905}]
[{"$f":"head27a","v":"References"}]
["1. Table should be completed as either Multi-Year expenditure appropriation or Budget Year and Forward Year estimates"]
["2. Total Capital Expenditure must reconcile to the 'Financial Position' budget and monthly budget statement"]
[]
["check",null,null,null,null,null,null,null,null,null,null,null,null,null,{"$f":"O26-'B5-Capex'!K65","v":0},{"$f":"P26-'B5-Capex'!L65","v":0},{"$f":"Q26-'B5-Capex'!M65","v":0}]

{"sheet":"SB18a","index":56,"n_rows":183,"n_cols":30,"rows_kept":183,"cut":false,"hidden":false,"merged":[[1,0,3,0],[177,0,177,12],[179,0,179,12],[172,0,172,12],[173,0,173,9],[174,0,174,9],[175,0,175,12],[1,2,1,10],[1,1,3,1]]}
[{"$f":"muni&\" - \"&ADJB18a&\" - \"&Date","v":"EC139 Enoch Mgijima - Supporting Table SB18a Adjustments Budget - capital expenditure on new assets by asset class - "}]
[{"$f":"desc","v":"Description"},{"$f":"head27","v":"Ref"},{"$f":"Head2","v":"Budget Year 2021/22"},null,null,null,null,null,null,null,null,{"$f":"Head10","v":"Budget Year +1 2022/23"},{"$f":"Head11","v":"Budget Year +2 2023/24"}]
[null,null,{"$f":"Head6","v":"Original Budget"},{"$f":"Head54","v":"Prior Adjusted"},{"$f":"Head51","v":"Accum. Funds"},{"$f":"Head52","v":"Multi-year capital"},{"$f":"Head53","v":"Unfore. Unavoid."},{"$f":"Head55","v":"Nat. or Prov. Govt"},{"$f":"Head50","v":"Other Adjusts."},{"$f":"Head56","v":"Total Adjusts."},{"$f":"Head7","v":"Adjusted Budget"},{"$f":"Head7","v":"Adjusted Budget"},{"$f":"Head7","v":"Adjusted Budget"}]
[null,null,null,7,8,9,10,11,12,13,14]
["R thousands",null,"A","A1","B","C","D","E","F","G","H"]
["Capital expenditure on new assets by Asset Class/Sub-class"]
[]
["Infrastructure",null,{"$f":"C9+C14+C18+C28+C39+C46+C54+C64+C70","v":30169521},{"$f":"D9+D14+D18+D28+D39+D46+D54+D64+D70","v":0},0,0,0,0,4911731,{"$f":"SUM(E8:I8)","v":4911731},{"$f":"IF(D8=0,C8+J8,D8+J8)","v":35081252},{"$f":"L9+L14+L18+L28+L39+L46+L54+L64+L70","v":39187500},{"$f":"M9+M14+M18+M28+M39+M46+M54+M64+M70","v":40950938}]
["Roads Infrastructure",null,{"$f":"SUM(C10:C13)","v":30169521},{"$f":"SUM(D10:D13)","v":0},0,0,0,0,1911731,{"$f":"SUM(E9:I9)","v":1911731},{"$f":"IF(D9=0,C9+J9,D9+J9)","v":32081252},35007500,36582838]
["Roads",null,{"$f":"SUMIFS(Sheet1!S71_OriginalBudget,Sheet1!S71_SA34aCode,$AC:$AC,Sheet1!S71_A5CapexCode,$AD:$AD)","v":30169521},{"$f":"SUMIFS(Sheet1!S71_SpecialAdjustedBudget,Sheet1!S71_SA34aCode,$AC:$AC,Sheet1!S71_A5CapexCode,$AD:$AD)","v":0},null,null,null,null,{"$f":"SUMIFS(Sheet1!S71_AdjustmentAmount,Sheet1!S71_SA34aCode,$AC:$AC,Sheet1!S71_A5CapexCode,$AD:$AD)","v":1911731},1911731,32081252,{"$f":"SUMIFS(Sheet1!S71_OY1AdjustedBudget,Sheet1!S71_SA34aCode,$AC:$AC,Sheet1!S71_A5CapexCode,$AD:$AD)","v":35007500},{"$f":"SUMIFS(Sheet1!S71_OY2AdjustedBudget,Sheet1!S71_SA34aCode,$AC:$AC,Sheet1!S71_A5CapexCode,$AD:$AD)","v":36582838},null,null,null,null,null,null,null,null,null,null,null,null,null,null,null,"0120","CE"]
["Road Structures",null,{"$f":"SUMIFS(Sheet1!S71_OriginalBudget,Sheet1!S71_SA34aCode,$AC:$AC,Sheet1!S71_A5CapexCode,$AD:$AD)","v":0},{"$f":"SUMIFS(Sheet1!S71_SpecialAdjustedBudget,Sheet1!S71_SA34aCode,$AC:$AC,Sheet1!S71_A5CapexCode,$AD:$AD)","v":0},null,null,null,null,{"$f":"SUMIFS(Sheet1!S71_AdjustmentAmount,Sheet1!S71_SA34aCode,$AC:$AC,Sheet1!S71_A5CapexCode,$AD:$AD)","v":0},0,0,{"$f":"SUMIFS(Sheet1!S71_OY1AdjustedBudget,Sheet1!S71_SA34aCode,$AC:$AC,Sheet1!S71_A5CapexCode,$AD:$AD)","v":0},{"$f":"SUMIFS(Sheet1!S71_OY2AdjustedBudget,Sheet1!S71_SA34aCode,$AC:$AC,Sheet1!S71_A5CapexCode,$AD:$AD)","v":0},null,null,null,null,null,null,null,null,null,null,null,null,null,null,null,"0130","CE"]
["Road Furniture",null,{"$f":"SUMIFS(Sheet1!S71_OriginalBudget,Sheet1!S71_SA34aCode,$AC:$AC,Sheet1!S71_A5CapexCode,$AD:$AD)","v":0},{"$f":"SUMIFS(Sheet1!S71_SpecialAdjustedBudget,Sheet1!S71_SA34aCode,$AC:$AC,Sheet1!S71_A5CapexCode,$AD:$AD)","v":0},null,null,null,null,{"$f":"SUMIFS(Sheet1!S71_AdjustmentAmount,Sheet1!S71_SA34aCode,$AC:$AC,Sheet1!S71_A5CapexCode,$AD:$AD)","v":0},0,0,{"$f":"SUMIFS(Sheet1!S71_OY1AdjustedBudget,Sheet1!S71_SA34aCode,$AC:$AC,Sheet1!S71_A5CapexCode,$AD:$AD)","v":0},{"$f":"SUMIFS(Sheet1!S71_OY2AdjustedBudget,Sheet1!S71_SA34aCode,$AC:$AC,Sheet1!S71_A5CapexCode,$AD:$AD)","v":0},null,null,null,null,null,null,null,null,null,null,null,null,null,null,null,"0140","CE"]
["Capital Spares",null,{"$f":"SUMIFS(Sheet1!S71_OriginalBudget,Sheet1!S71_SA34aCode,$AC:$AC,Sheet1!S71_A5CapexCode,$AD:$AD)","v":0},{"$f":"SUMIFS(Sheet1!S71_SpecialAdjustedBudget,Sheet1!S71_SA34aCode,$AC:$AC,Sheet1!S71_A5CapexCode,$AD:$AD)","v":0},null,null,null,null,{"$f":"SUMIFS(Sheet1!S71_AdjustmentAmount,Sheet1!S71_SA34aCode,$AC:$AC,Sheet1!S71_A5CapexCode,$AD:$AD)","v":0},0,0,{"$f":"SUMIFS(Sheet1!S71_OY1AdjustedBudget,Sheet1!S71_SA34aCode,$AC:$AC,Sheet1!S71_A5CapexCode,$AD:$AD)","v":0},{"$f":"SUMIFS(Sheet1!S71_OY2AdjustedBudget,Sheet1!S71_SA34aCode,$AC:$AC,Sheet1!S71_A5CapexCode,$AD:$AD)","v":0},null,null,null,null,null,null,null,null,null,null,null,null,null,null,null,"0150","CE"]
["Storm water Infrastructure",null,{"$f":"SUM(C15:C17)","v":0},0,0,0,0,0,0,0,0,{"$f":"SUM(L15:L17)","v":0},{"$f":"SUM(M15:M17)","v":0},null,null,null,null,null,null,null,null,null,null,null,null,null,null,null,null,"CE"]
["Drainage Collection",null,{"$f":"SUMIFS(Sheet1!S71_OriginalBudget,Sheet1!S71_SA34aCode,$AC:$AC,Sheet1!S71_A5CapexCode,$AD:$AD)","v":0},{"$f":"SUMIFS(Sheet1!S71_SpecialAdjustedBudget,Sheet1!S71_SA34aCode,$AC:$AC,Sheet1!S71_A5CapexCode,$AD:$AD)","v":0},null,null,null,null,{"$f":"SUMIFS(Sheet1!S71_AdjustmentAmount,Sheet1!S71_SA34aCode,$AC:$AC,Sheet1!S71_A5CapexCode,$AD:$AD)","v":0},0,0,{"$f":"SUMIFS(Sheet1!S71_OY1AdjustedBudget,Sheet1!S71_SA34aCode,$AC:$AC,Sheet1!S71_A5CapexCode,$AD:$AD)","v":0},{"$f":"SUMIFS(Sheet1!S71_OY2AdjustedBudget,Sheet1!S71_SA34aCode,$AC:$AC,Sheet1!S71_A5CapexCode,$AD:$AD)","v":0},null,null,null,null,null,null,null,null,null,null,null,null,null,null,null,"0170","CE"]
["Storm water Conveyance",null,{"$f":"SUMIFS(Sheet1!S71_OriginalBudget,Sheet1!S71_SA34aCode,$AC:$AC,Sheet1!S71_A5CapexCode,$AD:$AD)","v":0},{"$f":"SUMIFS(Sheet1!S71_SpecialAdjustedBudget,Sheet1!S71_SA34aCode,$AC:$AC,Sheet1!S71_A5CapexCode,$AD:$AD)","v":0},null,null,null,null,{"$f":"SUMIFS(Sheet1!S71_AdjustmentAmount,Sheet1!S71_SA34aCode,$AC:$AC,Sheet1!S71_A5CapexCode,$AD:$AD)","v":0},0,0,{"$f":"SUMIFS(Sheet1!S71_OY1AdjustedBudget,Sheet1!S71_SA34aCode,$AC:$AC,Sheet1!S71_A5CapexCode,$AD:$AD)","v":0},{"$f":"SUMIFS(Sheet1!S71_OY2AdjustedBudget,Sheet1!S71_SA34aCode,$AC:$AC,Sheet1!S71_A5CapexCode,$AD:$AD)","v":0},null,null,null,null,null,null,null,null,null,null,null,null,null,null,null,"0180","CE"]
["Attenuation",null,{"$f":"SUMIFS(Sheet1!S71_OriginalBudget,Sheet1!S71_SA34aCode,$AC:$AC,Sheet1!S71_A5CapexCode,$AD:$AD)","v":0},{"$f":"SUMIFS(Sheet1!S71_SpecialAdjustedBudget,Sheet1!S71_SA34aCode,$AC:$AC,Sheet1!S71_A5CapexCode,$AD:$AD)","v":0},null,null,null,null,{"$f":"SUMIFS(Sheet1!S71_AdjustmentAmount,Sheet1!S71_SA34aCode,$AC:$AC,Sheet1!S71_A5CapexCode,$AD:$AD)","v":0},0,0,{"$f":"SUMIFS(Sheet1!S71_OY1AdjustedBudget,Sheet1!S71_SA34aCode,$AC:$AC,Sheet1!S71_A5CapexCode,$AD:$AD)","v":0},{"$f":"SUMIFS(Sheet1!S71_OY2AdjustedBudget,Sheet1!S71_SA34aCode,$AC:$AC,Sheet1!S71_A5CapexCode,$AD:$AD)","v":0},null,null,null,null,null,null,null,null,null,null,null,null,null,null,null,"0190","CE"]
["Electrical Infrastructure",null,{"$f":"SUM(C19:C27)","v":0},0,0,0,0,0,3000000,3000000,3000000,4180000,4368100,null,null,null,null,null,null,null,null,null,null,null,null,null,null,null,null,"CE"]
["Power Plants",null,{"$f":"SUMIFS(Sheet1!S71_OriginalBudget,Sheet1!S71_SA34aCode,$AC:$AC,Sheet1!S71_A5CapexCode,$AD:$AD)","v":0},{"$f":"SUMIFS(Sheet1!S71_SpecialAdjustedBudget,Sheet1!S71_SA34aCode,$AC:$AC,Sheet1!S71_A5CapexCode,$AD:$AD)","v":0},null,null,null,null,{"$f":"SUMIFS(Sheet1!S71_AdjustmentAmount,Sheet1!S71_SA34aCode,$AC:$AC,Sheet1!S71_A5CapexCode,$AD:$AD)","v":0},0,0,{"$f":"SUMIFS(Sheet1!S71_OY1AdjustedBudget,Sheet1!S71_SA34aCode,$AC:$AC,Sheet1!S71_A5CapexCode,$AD:$AD)","v":0},{"$f":"SUMIFS(Sheet1!S71_OY2AdjustedBudget,Sheet1!S71_SA34aCode,$AC:$AC,Sheet1!S71_A5CapexCode,$AD:$AD)","v":0},null,null,null,null,null,null,null,null,null,null,null,null,null,null,null,"0210","CE"]
["HV Substations",null,{"$f":"SUMIFS(Sheet1!S71_OriginalBudget,Sheet1!S71_SA34aCode,$AC:$AC,Sheet1!S71_A5CapexCode,$AD:$AD)","v":0},{"$f":"SUMIFS(Sheet1!S71_SpecialAdjustedBudget,Sheet1!S71_SA34aCode,$AC:$AC,Sheet1!S71_A5CapexCode,$AD:$AD)","v":0},null,null,null,null,{"$f":"SUMIFS(Sheet1!S71_AdjustmentAmount,Sheet1!S71_SA34aCode,$AC:$AC,Sheet1!S71_A5CapexCode,$AD:$AD)","v":0},0,0,{"$f":"SUMIFS(Sheet1!S71_OY1AdjustedBudget,Sheet1!S71_SA34aCode,$AC:$AC,Sheet1!S71_A5CapexCode,$AD:$AD)","v":0},{"$f":"SUMIFS(Sheet1!S71_OY2AdjustedBudget,Sheet1!S71_SA34aCode,$AC:$AC,Sheet1!S71_A5CapexCode,$AD:$AD)","v":0},null,null,null,null,null,null,null,null,null,null,null,null,null,null,null,"0220","CE"]
["HV Switching Station",null,{"$f":"SUMIFS(Sheet1!S71_OriginalBudget,Sheet1!S71_SA34aCode,$AC:$AC,Sheet1!S71_A5CapexCode,$AD:$AD)","v":0},{"$f":"SUMIFS(Sheet1!S71_SpecialAdjustedBudget,Sheet1!S71_SA34aCode,$AC:$AC,Sheet1!S71_A5CapexCode,$AD:$AD)","v":0},null,null,null,null,{"$f":"SUMIFS(Sheet1!S71_AdjustmentAmount,Sheet1!S71_SA34aCode,$AC:$AC,Sheet1!S71_A5CapexCode,$AD:$AD)","v":0},0,0,{"$f":"SUMIFS(Sheet1!S71_OY1AdjustedBudget,Sheet1!S71_SA34aCode,$AC:$AC,Sheet1!S71_A5CapexCode,$AD:$AD)","v":0},{"$f":"SUMIFS(Sheet1!S71_OY2AdjustedBudget,Sheet1!S71_SA34aCode,$AC:$AC,Sheet1!S71_A5CapexCode,$AD:$AD)","v":0},null,null,null,null,null,null,null,null,null,null,null,null,null,null,null,"0230","CE"]
["HV Transmission Conductors",null,{"$f":"SUMIFS(Sheet1!S71_OriginalBudget,Sheet1!S71_SA34aCode,$AC:$AC,Sheet1!S71_A5CapexCode,$AD:$AD)","v":0},{"$f":"SUMIFS(Sheet1!S71_SpecialAdjustedBudget,Sheet1!S71_SA34aCode,$AC:$AC,Sheet1!S71_A5CapexCode,$AD:$AD)","v":0},null,null,null,null,{"$f":"SUMIFS(Sheet1!S71_AdjustmentAmount,Sheet1!S71_SA34aCode,$AC:$AC,Sheet1!S71_A5CapexCode,$AD:$AD)","v":0},0,0,{"$f":"SUMIFS(Sheet1!S71_OY1AdjustedBudget,Sheet1!S71_SA34aCode,$AC:$AC,Sheet1!S71_A5CapexCode,$AD:$AD)","v":0},{"$f":"SUMIFS(Sheet1!S71_OY2AdjustedBudget,Sheet1!S71_SA34aCode,$AC:$AC,Sheet1!S71_A5CapexCode,$AD:$AD)","v":0},null,null,null,null,null,null,null,null,null,null,null,null,null,null,null,"0240","CE"]
["MV Substations",null,{"$f":"SUMIFS(Sheet1!S71_OriginalBudget,Sheet1!S71_SA34aCode,$AC:$AC,Sheet1!S71_A5CapexCode,$AD:$AD)","v":0},{"$f":"SUMIFS(Sheet1!S71_SpecialAdjustedBudget,Sheet1!S71_SA34aCode,$AC:$AC,Sheet1!S71_A5CapexCode,$AD:$AD)","v":0},null,null,null,null,{"$f":"SUMIFS(Sheet1!S71_AdjustmentAmount,Sheet1!S71_SA34aCode,$AC:$AC,Sheet1!S71_A5CapexCode,$AD:$AD)","v":0},0,0,{"$f":"SUMIFS(Sheet1!S71_OY1AdjustedBudget,Sheet1!S71_SA34aCode,$AC:$AC,Sheet1!S71_A5CapexCode,$AD:$AD)","v":0},{"$f":"SUMIFS(Sheet1!S71_OY2AdjustedBudget,Sheet1!S71_SA34aCode,$AC:$AC,Sheet1!S71_A5CapexCode,$AD:$AD)","v":0},null,null,null,null,null,null,null,null,null,null,null,null,null,null,null,"0250","CE"]
["MV Switching Stations",null,{"$f":"SUMIFS(Sheet1!S71_OriginalBudget,Sheet1!S71_SA34aCode,$AC:$AC,Sheet1!S71_A5CapexCode,$AD:$AD)","v":0},{"$f":"SUMIFS(Sheet1!S71_SpecialAdjustedBudget,Sheet1!S71_SA34aCode,$AC:$AC,Sheet1!S71_A5CapexCode,$AD:$AD)","v":0},null,null,null,null,{"$f":"SUMIFS(Sheet1!S71_AdjustmentAmount,Sheet1!S71_SA34aCode,$AC:$AC,Sheet1!S71_A5CapexCode,$AD:$AD)","v":0},0,0,{"$f":"SUMIFS(Sheet1!S71_OY1AdjustedBudget,Sheet1!S71_SA34aCode,$AC:$AC,Sheet1!S71_A5CapexCode,$AD:$AD)","v":0},{"$f":"SUMIFS(Sheet1!S71_OY2AdjustedBudget,Sheet1!S71_SA34aCode,$AC:$AC,Sheet1!S71_A5CapexCode,$AD:$AD)","v":0},null,null,null,null,null,null,null,null,null,null,null,null,null,null,null,"0260","CE"]
["MV Networks",null,{"$f":"SUMIFS(Sheet1!S71_OriginalBudget,Sheet1!S71_SA34aCode,$AC:$AC,Sheet1!S71_A5CapexCode,$AD:$AD)","v":0},{"$f":"SUMIFS(Sheet1!S71_SpecialAdjustedBudget,Sheet1!S71_SA34aCode,$AC:$AC,Sheet1!S71_A5CapexCode,$AD:$AD)","v":0},null,null,null,null,{"$f":"SUMIFS(Sheet1!S71_AdjustmentAmount,Sheet1!S71_SA34aCode,$AC:$AC,Sheet1!S71_A5CapexCode,$AD:$AD)","v":0},0,0,{"$f":"SUMIFS(Sheet1!S71_OY1AdjustedBudget,Sheet1!S71_SA34aCode,$AC:$AC,Sheet1!S71_A5CapexCode,$AD:$AD)","v":0},{"$f":"SUMIFS(Sheet1!S71_OY2AdjustedBudget,Sheet1!S71_SA34aCode,$AC:$AC,Sheet1!S71_A5CapexCode,$AD:$AD)","v":0},null,null,null,null,null,null,null,null,null,null,null,null,null,null,null,"0270","CE"]
["LV Networks",null,{"$f":"SUMIFS(Sheet1!S71_OriginalBudget,Sheet1!S71_SA34aCode,$AC:$AC,Sheet1!S71_A5CapexCode,$AD:$AD)","v":0},{"$f":"SUMIFS(Sheet1!S71_SpecialAdjustedBudget,Sheet1!S71_SA34aCode,$AC:$AC,Sheet1!S71_A5CapexCode,$AD:$AD)","v":0},null,null,null,null,{"$f":"SUMIFS(Sheet1!S71_AdjustmentAmount,Sheet1!S71_SA34aCode,$AC:$AC,Sheet1!S71_A5CapexCode,$AD:$AD)","v":3000000},3000000,3000000,{"$f":"SUMIFS(Sheet1!S71_OY1AdjustedBudget,Sheet1!S71_SA34aCode,$AC:$AC,Sheet1!S71_A5CapexCode,$AD:$AD)","v":4180000},{"$f":"SUMIFS(Sheet1!S71_OY2AdjustedBudget,Sheet1!S71_SA34aCode,$AC:$AC,Sheet1!S71_A5CapexCode,$AD:$AD)","v":4368100},null,null,null,null,null,null,null,null,null,null,null,null,null,null,null,"0280","CE"]
["Capital Spares",null,{"$f":"SUMIFS(Sheet1!S71_OriginalBudget,Sheet1!S71_SA34aCode,$AC:$AC,Sheet1!S71_A5CapexCode,$AD:$AD)","v":0},{"$f":"SUMIFS(Sheet1!S71_SpecialAdjustedBudget,Sheet1!S71_SA34aCode,$AC:$AC,Sheet1!S71_A5CapexCode,$AD:$AD)","v":0},null,null,null,null,{"$f":"SUMIFS(Sheet1!S71_AdjustmentAmount,Sheet1!S71_SA34aCode,$AC:$AC,Sheet1!S71_A5CapexCode,$AD:$AD)","v":0},0,0,{"$f":"SUMIFS(Sheet1!S71_OY1AdjustedBudget,Sheet1!S71_SA34aCode,$AC:$AC,Sheet1!S71_A5CapexCode,$AD:$AD)","v":0},{"$f":"SUMIFS(Sheet1!S71_OY2AdjustedBudget,Sheet1!S71_SA34aCode,$AC:$AC,Sheet1!S71_A5CapexCode,$AD:$AD)","v":0},null,null,null,null,null,null,null,null,null,null,null,null,null,null,null,"0290","CE"]
["Water Supply Infrastructure",null,{"$f":"SUM(C29:C38)","v":0},0,0,0,0,0,0,0,0,0,0,null,null,null,null,null,null,null,null,null,null,null,null,null,null,null,null,"CE"]
["Dams and Weirs",null,{"$f":"SUMIFS(Sheet1!S71_OriginalBudget,Sheet1!S71_SA34aCode,$AC:$AC,Sheet1!S71_A5CapexCode,$AD:$AD)","v":0},{"$f":"SUMIFS(Sheet1!S71_SpecialAdjustedBudget,Sheet1!S71_SA34aCode,$AC:$AC,Sheet1!S71_A5CapexCode,$AD:$AD)","v":0},null,null,null,null,{"$f":"SUMIFS(Sheet1!S71_AdjustmentAmount,Sheet1!S71_SA34aCode,$AC:$AC,Sheet1!S71_A5CapexCode,$AD:$AD)","v":0},0,0,{"$f":"SUMIFS(Sheet1!S71_OY1AdjustedBudget,Sheet1!S71_SA34aCode,$AC:$AC,Sheet1!S71_A5CapexCode,$AD:$AD)","v":0},{"$f":"SUMIFS(Sheet1!S71_OY2AdjustedBudget,Sheet1!S71_SA34aCode,$AC:$AC,Sheet1!S71_A5CapexCode,$AD:$AD)","v":0},null,null,null,null,null,null,null,null,null,null,null,null,null,null,null,"0310","CE"]
["Boreholes",null,{"$f":"SUMIFS(Sheet1!S71_OriginalBudget,Sheet1!S71_SA34aCode,$AC:$AC,Sheet1!S71_A5CapexCode,$AD:$AD)","v":0},{"$f":"SUMIFS(Sheet1!S71_SpecialAdjustedBudget,Sheet1!S71_SA34aCode,$AC:$AC,Sheet1!S71_A5CapexCode,$AD:$AD)","v":0},null,null,null,null,{"$f":"SUMIFS(Sheet1!S71_AdjustmentAmount,Sheet1!S71_SA34aCode,$AC:$AC,Sheet1!S71_A5CapexCode,$AD:$AD)","v":0},0,0,{"$f":"SUMIFS(Sheet1!S71_OY1AdjustedBudget,Sheet1!S71_SA34aCode,$AC:$AC,Sheet1!S71_A5CapexCode,$AD:$AD)","v":0},{"$f":"SUMIFS(Sheet1!S71_OY2AdjustedBudget,Sheet1!S71_SA34aCode,$AC:$AC,Sheet1!S71_A5CapexCode,$AD:$AD)","v":0},null,null,null,null,null,null,null,null,null,null,null,null,null,null,null,"0320","CE"]
["Reservoirs",null,{"$f":"SUMIFS(Sheet1!S71_OriginalBudget,Sheet1!S71_SA34aCode,$AC:$AC,Sheet1!S71_A5CapexCode,$AD:$AD)","v":0},{"$f":"SUMIFS(Sheet1!S71_SpecialAdjustedBudget,Sheet1!S71_SA34aCode,$AC:$AC,Sheet1!S71_A5CapexCode,$AD:$AD)","v":0},null,null,null,null,{"$f":"SUMIFS(Sheet1!S71_AdjustmentAmount,Sheet1!S71_SA34aCode,$AC:$AC,Sheet1!S71_A5CapexCode,$AD:$AD)","v":0},0,0,{"$f":"SUMIFS(Sheet1!S71_OY1AdjustedBudget,Sheet1!S71_SA34aCode,$AC:$AC,Sheet1!S71_A5CapexCode,$AD:$AD)","v":0},{"$f":"SUMIFS(Sheet1!S71_OY2AdjustedBudget,Sheet1!S71_SA34aCode,$AC:$AC,Sheet1!S71_A5CapexCode,$AD:$AD)","v":0},null,null,null,null,null,null,null,null,null,null,null,null,null,null,null,"0330","CE"]
["Pump Stations",null,{"$f":"SUMIFS(Sheet1!S71_OriginalBudget,Sheet1!S71_SA34aCode,$AC:$AC,Sheet1!S71_A5CapexCode,$AD:$AD)","v":0},{"$f":"SUMIFS(Sheet1!S71_SpecialAdjustedBudget,Sheet1!S71_SA34aCode,$AC:$AC,Sheet1!S71_A5CapexCode,$AD:$AD)","v":0},null,null,null,null,{"$f":"SUMIFS(Sheet1!S71_AdjustmentAmount,Sheet1!S71_SA34aCode,$AC:$AC,Sheet1!S71_A5CapexCode,$AD:$AD)","v":0},0,0,{"$f":"SUMIFS(Sheet1!S71_OY1AdjustedBudget,Sheet1!S71_SA34aCode,$AC:$AC,Sheet1!S71_A5CapexCode,$AD:$AD)","v":0},{"$f":"SUMIFS(Sheet1!S71_OY2AdjustedBudget,Sheet1!S71_SA34aCode,$AC:$AC,Sheet1!S71_A5CapexCode,$AD:$AD)","v":0},null,null,null,null,null,null,null,null,null,null,null,null,null,null,null,"0340","CE"]
["Water Treatment Works",null,{"$f":"SUMIFS(Sheet1!S71_OriginalBudget,Sheet1!S71_SA34aCode,$AC:$AC,Sheet1!S71_A5CapexCode,$AD:$AD)","v":0},{"$f":"SUMIFS(Sheet1!S71_SpecialAdjustedBudget,Sheet1!S71_SA34aCode,$AC:$AC,Sheet1!S71_A5CapexCode,$AD:$AD)","v":0},null,null,null,null,{"$f":"SUMIFS(Sheet1!S71_AdjustmentAmount,Sheet1!S71_SA34aCode,$AC:$AC,Sheet1!S71_A5CapexCode,$AD:$AD)","v":0},0,0,{"$f":"SUMIFS(Sheet1!S71_OY1AdjustedBudget,Sheet1!S71_SA34aCode,$AC:$AC,Sheet1!S71_A5CapexCode,$AD:$AD)","v":0},{"$f":"SUMIFS(Sheet1!S71_OY2AdjustedBudget,Sheet1!S71_SA34aCode,$AC:$AC,Sheet1!S71_A5CapexCode,$AD:$AD)","v":0},null,null,null,null,null,null,null,null,null,null,null,null,null,null,null,"0350","CE"]
["Bulk Mains",null,{"$f":"SUMIFS(Sheet1!S71_OriginalBudget,Sheet1!S71_SA34aCode,$AC:$AC,Sheet1!S71_A5CapexCode,$AD:$AD)","v":0},{"$f":"SUMIFS(Sheet1!S71_SpecialAdjustedBudget,Sheet1!S71_SA34aCode,$AC:$AC,Sheet1!S71_A5CapexCode,$AD:$AD)","v":0},null,null,null,null,{"$f":"SUMIFS(Sheet1!S71_AdjustmentAmount,Sheet1!S71_SA34aCode,$AC:$AC,Sheet1!S71_A5CapexCode,$AD:$AD)","v":0},0,0,{"$f":"SUMIFS(Sheet1!S71_OY1AdjustedBudget,Sheet1!S71_SA34aCode,$AC:$AC,Sheet1!S71_A5CapexCode,$AD:$AD)","v":0},{"$f":"SUMIFS(Sheet1!S71_OY2AdjustedBudget,Sheet1!S71_SA34aCode,$AC:$AC,Sheet1!S71_A5CapexCode,$AD:$AD)","v":0},null,null,null,null,null,null,null,null,null,null,null,null,null,null,null,"0360","CE"]
["Distribution",null,{"$f":"SUMIFS(Sheet1!S71_OriginalBudget,Sheet1!S71_SA34aCode,$AC:$AC,Sheet1!S71_A5CapexCode,$AD:$AD)","v":0},{"$f":"SUMIFS(Sheet1!S71_SpecialAdjustedBudget,Sheet1!S71_SA34aCode,$AC:$AC,Sheet1!S71_A5CapexCode,$AD:$AD)","v":0},null,null,null,null,{"$f":"SUMIFS(Sheet1!S71_AdjustmentAmount,Sheet1!S71_SA34aCode,$AC:$AC,Sheet1!S71_A5CapexCode,$AD:$AD)","v":0},0,0,{"$f":"SUMIFS(Sheet1!S71_OY1AdjustedBudget,Sheet1!S71_SA34aCode,$AC:$AC,Sheet1!S71_A5CapexCode,$AD:$AD)","v":0},{"$f":"SUMIFS(Sheet1!S71_OY2AdjustedBudget,Sheet1!S71_SA34aCode,$AC:$AC,Sheet1!S71_A5CapexCode,$AD:$AD)","v":0},null,null,null,null,null,null,null,null,null,null,null,null,null,null,null,"0370","CE"]
["Distribution Points",null,{"$f":"SUMIFS(Sheet1!S71_OriginalBudget,Sheet1!S71_SA34aCode,$AC:$AC,Sheet1!S71_A5CapexCode,$AD:$AD)","v":0},{"$f":"SUMIFS(Sheet1!S71_SpecialAdjustedBudget,Sheet1!S71_SA34aCode,$AC:$AC,Sheet1!S71_A5CapexCode,$AD:$AD)","v":0},null,null,null,null,{"$f":"SUMIFS(Sheet1!S71_AdjustmentAmount,Sheet1!S71_SA34aCode,$AC:$AC,Sheet1!S71_A5CapexCode,$AD:$AD)","v":0},0,0,{"$f":"SUMIFS(Sheet1!S71_OY1AdjustedBudget,Sheet1!S71_SA34aCode,$AC:$AC,Sheet1!S71_A5CapexCode,$AD:$AD)","v":0},{"$f":"SUMIFS(Sheet1!S71_OY2AdjustedBudget,Sheet1!S71_SA34aCode,$AC:$AC,Sheet1!S71_A5CapexCode,$AD:$AD)","v":0},null,null,null,null,null,null,null,null,null,null,null,null,null,null,null,"0380","CE"]
["PRV Stations",null,{"$f":"SUMIFS(Sheet1!S71_OriginalBudget,Sheet1!S71_SA34aCode,$AC:$AC,Sheet1!S71_A5CapexCode,$AD:$AD)","v":0},{"$f":"SUMIFS(Sheet1!S71_SpecialAdjustedBudget,Sheet1!S71_SA34aCode,$AC:$AC,Sheet1!S71_A5CapexCode,$AD:$AD)","v":0},null,null,null,null,{"$f":"SUMIFS(Sheet1!S71_AdjustmentAmount,Sheet1!S71_SA34aCode,$AC:$AC,Sheet1!S71_A5CapexCode,$AD:$AD)","v":0},0,0,{"$f":"SUMIFS(Sheet1!S71_OY1AdjustedBudget,Sheet1!S71_SA34aCode,$AC:$AC,Sheet1!S71_A5CapexCode,$AD:$AD)","v":0},{"$f":"SUMIFS(Sheet1!S71_OY2AdjustedBudget,Sheet1!S71_SA34aCode,$AC:$AC,Sheet1!S71_A5CapexCode,$AD:$AD)","v":0},null,null,null,null,null,null,null,null,null,null,null,null,null,null,null,"0390","CE"]
["Capital Spares",null,{"$f":"SUMIFS(Sheet1!S71_OriginalBudget,Sheet1!S71_SA34aCode,$AC:$AC,Sheet1!S71_A5CapexCode,$AD:$AD)","v":0},{"$f":"SUMIFS(Sheet1!S71_SpecialAdjustedBudget,Sheet1!S71_SA34aCode,$AC:$AC,Sheet1!S71_A5CapexCode,$AD:$AD)","v":0},null,null,null,null,{"$f":"SUMIFS(Sheet1!S71_AdjustmentAmount,Sheet1!S71_SA34aCode,$AC:$AC,Sheet1!S71_A5CapexCode,$AD:$AD)","v":0},0,0,{"$f":"SUMIFS(Sheet1!S71_OY1AdjustedBudget,Sheet1!S71_SA34aCode,$AC:$AC,Sheet1!S71_A5CapexCode,$AD:$AD)","v":0},{"$f":"SUMIFS(Sheet1!S71_OY2AdjustedBudget,Sheet1!S71_SA34aCode,$AC:$AC,Sheet1!S71_A5CapexCode,$AD:$AD)","v":0},null,null,null,null,null,null,null,null,null,null,null,null,null,null,null,"0400","CE"]
["Sanitation Infrastructure",null,{"$f":"SUM(C40:C45)","v":0},0,0,0,0,0,0,0,0,0,0,null,null,null,null,null,null,null,null,null,null,null,null,null,null,null,null,"CE"]
["Pump Station",null,{"$f":"SUMIFS(Sheet1!S71_OriginalBudget,Sheet1!S71_SA34aCode,$AC:$AC,Sheet1!S71_A5CapexCode,$AD:$AD)","v":0},{"$f":"SUMIFS(Sheet1!S71_SpecialAdjustedBudget,Sheet1!S71_SA34aCode,$AC:$AC,Sheet1!S71_A5CapexCode,$AD:$AD)","v":0},null,null,null,null,{"$f":"SUMIFS(Sheet1!S71_AdjustmentAmount,Sheet1!S71_SA34aCode,$AC:$AC,Sheet1!S71_A5CapexCode,$AD:$AD)","v":0},0,0,{"$f":"SUMIFS(Sheet1!S71_OY1AdjustedBudget,Sheet1!S71_SA34aCode,$AC:$AC,Sheet1!S71_A5CapexCode,$AD:$AD)","v":0},{"$f":"SUMIFS(Sheet1!S71_OY2AdjustedBudget,Sheet1!S71_SA34aCode,$AC:$AC,Sheet1!S71_A5CapexCode,$AD:$AD)","v":0},null,null,null,null,null,null,null,null,null,null,null,null,null,null,null,"0420","CE"]
["Reticulation",null,{"$f":"SUMIFS(Sheet1!S71_OriginalBudget,Sheet1!S71_SA34aCode,$AC:$AC,Sheet1!S71_A5CapexCode,$AD:$AD)","v":0},{"$f":"SUMIFS(Sheet1!S71_SpecialAdjustedBudget,Sheet1!S71_SA34aCode,$AC:$AC,Sheet1!S71_A5CapexCode,$AD:$AD)","v":0},null,null,null,null,{"$f":"SUMIFS(Sheet1!S71_AdjustmentAmount,Sheet1!S71_SA34aCode,$AC:$AC,Sheet1!S71_A5CapexCode,$AD:$AD)","v":0},0,0,{"$f":"SUMIFS(Sheet1!S71_OY1AdjustedBudget,Sheet1!S71_SA34aCode,$AC:$AC,Sheet1!S71_A5CapexCode,$AD:$AD)","v":0},{"$f":"SUMIFS(Sheet1!S71_OY2AdjustedBudget,Sheet1!S71_SA34aCode,$AC:$AC,Sheet1!S71_A5CapexCode,$AD:$AD)","v":0},null,null,null,null,null,null,null,null,null,null,null,null,null,null,null,"0430","CE"]
["Waste Water Treatment Works",null,{"$f":"SUMIFS(Sheet1!S71_OriginalBudget,Sheet1!S71_SA34aCode,$AC:$AC,Sheet1!S71_A5CapexCode,$AD:$AD)","v":0},{"$f":"SUMIFS(Sheet1!S71_SpecialAdjustedBudget,Sheet1!S71_SA34aCode,$AC:$AC,Sheet1!S71_A5CapexCode,$AD:$AD)","v":0},null,null,null,null,{"$f":"SUMIFS(Sheet1!S71_AdjustmentAmount,Sheet1!S71_SA34aCode,$AC:$AC,Sheet1!S71_A5CapexCode,$AD:$AD)","v":0},0,0,{"$f":"SUMIFS(Sheet1!S71_OY1AdjustedBudget,Sheet1!S71_SA34aCode,$AC:$AC,Sheet1!S71_A5CapexCode,$AD:$AD)","v":0},{"$f":"SUMIFS(Sheet1!S71_OY2AdjustedBudget,Sheet1!S71_SA34aCode,$AC:$AC,Sheet1!S71_A5CapexCode,$AD:$AD)","v":0},null,null,null,null,null,null,null,null,null,null,null,null,null,null,null,"0440","CE"]
["Outfall Sewers",null,{"$f":"SUMIFS(Sheet1!S71_OriginalBudget,Sheet1!S71_SA34aCode,$AC:$AC,Sheet1!S71_A5CapexCode,$AD:$AD)","v":0},{"$f":"SUMIFS(Sheet1!S71_SpecialAdjustedBudget,Sheet1!S71_SA34aCode,$AC:$AC,Sheet1!S71_A5CapexCode,$AD:$AD)","v":0},null,null,null,null,{"$f":"SUMIFS(Sheet1!S71_AdjustmentAmount,Sheet1!S71_SA34aCode,$AC:$AC,Sheet1!S71_A5CapexCode,$AD:$AD)","v":0},0,0,{"$f":"SUMIFS(Sheet1!S71_OY1AdjustedBudget,Sheet1!S71_SA34aCode,$AC:$AC,Sheet1!S71_A5CapexCode,$AD:$AD)","v":0},{"$f":"SUMIFS(Sheet1!S71_OY2AdjustedBudget,Sheet1!S71_SA34aCode,$AC:$AC,Sheet1!S71_A5CapexCode,$AD:$AD)","v":0},null,null,null,null,null,null,null,null,null,null,null,null,null,null,null,"0450","CE"]
["Toilet Facilities",null,{"$f":"SUMIFS(Sheet1!S71_OriginalBudget,Sheet1!S71_SA34aCode,$AC:$AC,Sheet1!S71_A5CapexCode,$AD:$AD)","v":0},{"$f":"SUMIFS(Sheet1!S71_SpecialAdjustedBudget,Sheet1!S71_SA34aCode,$AC:$AC,Sheet1!S71_A5CapexCode,$AD:$AD)","v":0},null,null,null,null,{"$f":"SUMIFS(Sheet1!S71_AdjustmentAmount,Sheet1!S71_SA34aCode,$AC:$AC,Sheet1!S71_A5CapexCode,$AD:$AD)","v":0},0,0,{"$f":"SUMIFS(Sheet1!S71_OY1AdjustedBudget,Sheet1!S71_SA34aCode,$AC:$AC,Sheet1!S71_A5CapexCode,$AD:$AD)","v":0},{"$f":"SUMIFS(Sheet1!S71_OY2AdjustedBudget,Sheet1!S71_SA34aCode,$AC:$AC,Sheet1!S71_A5CapexCode,$AD:$AD)","v":0},null,null,null,null,null,null,null,null,null,null,null,null,null,null,null,"0460","CE"]
["Capital Spares",null,{"$f":"SUMIFS(Sheet1!S71_OriginalBudget,Sheet1!S71_SA34aCode,$AC:$AC,Sheet1!S71_A5CapexCode,$AD:$AD)","v":0},{"$f":"SUMIFS(Sheet1!S71_SpecialAdjustedBudget,Sheet1!S71_SA34aCode,$AC:$AC,Sheet1!S71_A5CapexCode,$AD:$AD)","v":0},null,null,null,null,{"$f":"SUMIFS(Sheet1!S71_AdjustmentAmount,Sheet1!S71_SA34aCode,$AC:$AC,Sheet1!S71_A5CapexCode,$AD:$AD)","v":0},0,0,{"$f":"SUMIFS(Sheet1!S71_OY1AdjustedBudget,Sheet1!S71_SA34aCode,$AC:$AC,Sheet1!S71_A5CapexCode,$AD:$AD)","v":0},{"$f":"SUMIFS(Sheet1!S71_OY2AdjustedBudget,Sheet1!S71_SA34aCode,$AC:$AC,Sheet1!S71_A5CapexCode,$AD:$AD)","v":0},null,null,null,null,null,null,null,null,null,null,null,null,null,null,null,"0470","CE"]
["Solid Waste Infrastructure",null,{"$f":"SUM(C47:C53)","v":0},0,0,0,0,0,0,0,0,0,0,null,null,null,null,null,null,null,null,null,null,null,null,null,null,null,null,"CE"]
["Landfill Sites",null,{"$f":"SUMIFS(Sheet1!S71_OriginalBudget,Sheet1!S71_SA34aCode,$AC:$AC,Sheet1!S71_A5CapexCode,$AD:$AD)","v":0},{"$f":"SUMIFS(Sheet1!S71_SpecialAdjustedBudget,Sheet1!S71_SA34aCode,$AC:$AC,Sheet1!S71_A5CapexCode,$AD:$AD)","v":0},null,null,null,null,{"$f":"SUMIFS(Sheet1!S71_AdjustmentAmount,Sheet1!S71_SA34aCode,$AC:$AC,Sheet1!S71_A5CapexCode,$AD:$AD)","v":0},0,0,{"$f":"SUMIFS(Sheet1!S71_OY1AdjustedBudget,Sheet1!S71_SA34aCode,$AC:$AC,Sheet1!S71_A5CapexCode,$AD:$AD)","v":0},{"$f":"SUMIFS(Sheet1!S71_OY2AdjustedBudget,Sheet1!S71_SA34aCode,$AC:$AC,Sheet1!S71_A5CapexCode,$AD:$AD)","v":0},null,null,null,null,null,null,null,null,null,null,null,null,null,null,null,"0490","CE"]
["Waste Transfer Stations",null,{"$f":"SUMIFS(Sheet1!S71_OriginalBudget,Sheet1!S71_SA34aCode,$AC:$AC,Sheet1!S71_A5CapexCode,$AD:$AD)","v":0},{"$f":"SUMIFS(Sheet1!S71_SpecialAdjustedBudget,Sheet1!S71_SA34aCode,$AC:$AC,Sheet1!S71_A5CapexCode,$AD:$AD)","v":0},null,null,null,null,{"$f":"SUMIFS(Sheet1!S71_AdjustmentAmount,Sheet1!S71_SA34aCode,$AC:$AC,Sheet1!S71_A5CapexCode,$AD:$AD)","v":0},0,0,{"$f":"SUMIFS(Sheet1!S71_OY1AdjustedBudget,Sheet1!S71_SA34aCode,$AC:$AC,Sheet1!S71_A5CapexCode,$AD:$AD)","v":0},{"$f":"SUMIFS(Sheet1!S71_OY2AdjustedBudget,Sheet1!S71_SA34aCode,$AC:$AC,Sheet1!S71_A5CapexCode,$AD:$AD)","v":0},null,null,null,null,null,null,null,null,null,null,null,null,null,null,null,"0500","CE"]
["Waste Processing Facilities",null,{"$f":"SUMIFS(Sheet1!S71_OriginalBudget,Sheet1!S71_SA34aCode,$AC:$AC,Sheet1!S71_A5CapexCode,$AD:$AD)","v":0},{"$f":"SUMIFS(Sheet1!S71_SpecialAdjustedBudget,Sheet1!S71_SA34aCode,$AC:$AC,Sheet1!S71_A5CapexCode,$AD:$AD)","v":0},null,null,null,null,{"$f":"SUMIFS(Sheet1!S71_AdjustmentAmount,Sheet1!S71_SA34aCode,$AC:$AC,Sheet1!S71_A5CapexCode,$AD:$AD)","v":0},0,0,{"$f":"SUMIFS(Sheet1!S71_OY1AdjustedBudget,Sheet1!S71_SA34aCode,$AC:$AC,Sheet1!S71_A5CapexCode,$AD:$AD)","v":0},{"$f":"SUMIFS(Sheet1!S71_OY2AdjustedBudget,Sheet1!S71_SA34aCode,$AC:$AC,Sheet1!S71_A5CapexCode,$AD:$AD)","v":0},null,null,null,null,null,null,null,null,null,null,null,null,null,null,null,"0510","CE"]
["Waste Drop-off Points",null,{"$f":"SUMIFS(Sheet1!S71_OriginalBudget,Sheet1!S71_SA34aCode,$AC:$AC,Sheet1!S71_A5CapexCode,$AD:$AD)","v":0},{"$f":"SUMIFS(Sheet1!S71_SpecialAdjustedBudget,Sheet1!S71_SA34aCode,$AC:$AC,Sheet1!S71_A5CapexCode,$AD:$AD)","v":0},null,null,null,null,{"$f":"SUMIFS(Sheet1!S71_AdjustmentAmount,Sheet1!S71_SA34aCode,$AC:$AC,Sheet1!S71_A5CapexCode,$AD:$AD)","v":0},0,0,{"$f":"SUMIFS(Sheet1!S71_OY1AdjustedBudget,Sheet1!S71_SA34aCode,$AC:$AC,Sheet1!S71_A5CapexCode,$AD:$AD)","v":0},{"$f":"SUMIFS(Sheet1!S71_OY2AdjustedBudget,Sheet1!S71_SA34aCode,$AC:$AC,Sheet1!S71_A5CapexCode,$AD:$AD)","v":0},null,null,null,null,null,null,null,null,null,null,null,null,null,null,null,"0520","CE"]
["Waste Separation Facilities",null,{"$f":"SUMIFS(Sheet1!S71_OriginalBudget,Sheet1!S71_SA34aCode,$AC:$AC,Sheet1!S71_A5CapexCode,$AD:$AD)","v":0},{"$f":"SUMIFS(Sheet1!S71_SpecialAdjustedBudget,Sheet1!S71_SA34aCode,$AC:$AC,Sheet1!S71_A5CapexCode,$AD:$AD)","v":0},null,null,null,null,{"$f":"SUMIFS(Sheet1!S71_AdjustmentAmount,Sheet1!S71_SA34aCode,$AC:$AC,Sheet1!S71_A5CapexCode,$AD:$AD)","v":0},0,0,{"$f":"SUMIFS(Sheet1!S71_OY1AdjustedBudget,Sheet1!S71_SA34aCode,$AC:$AC,Sheet1!S71_A5CapexCode,$AD:$AD)","v":0},{"$f":"SUMIFS(Sheet1!S71_OY2AdjustedBudget,Sheet1!S71_SA34aCode,$AC:$AC,Sheet1!S71_A5CapexCode,$AD:$AD)","v":0},null,null,null,null,null,null,null,null,null,null,null,null,null,null,null,"0530","CE"]
["Electricity Generation Facilities",null,{"$f":"SUMIFS(Sheet1!S71_OriginalBudget,Sheet1!S71_SA34aCode,$AC:$AC,Sheet1!S71_A5CapexCode,$AD:$AD)","v":0},{"$f":"SUMIFS(Sheet1!S71_SpecialAdjustedBudget,Sheet1!S71_SA34aCode,$AC:$AC,Sheet1!S71_A5CapexCode,$AD:$AD)","v":0},null,null,null,null,{"$f":"SUMIFS(Sheet1!S71_AdjustmentAmount,Sheet1!S71_SA34aCode,$AC:$AC,Sheet1!S71_A5CapexCode,$AD:$AD)","v":0},0,0,{"$f":"SUMIFS(Sheet1!S71_OY1AdjustedBudget,Sheet1!S71_SA34aCode,$AC:$AC,Sheet1!S71_A5CapexCode,$AD:$AD)","v":0},{"$f":"SUMIFS(Sheet1!S71_OY2AdjustedBudget,Sheet1!S71_SA34aCode,$AC:$AC,Sheet1!S71_A5CapexCode,$AD:$AD)","v":0},null,null,null,null,null,null,null,null,null,null,null,null,null,null,null,"0540","CE"]
["Capital Spares",null,{"$f":"SUMIFS(Sheet1!S71_OriginalBudget,Sheet1!S71_SA34aCode,$AC:$AC,Sheet1!S71_A5CapexCode,$AD:$AD)","v":0},{"$f":"SUMIFS(Sheet1!S71_SpecialAdjustedBudget,Sheet1!S71_SA34aCode,$AC:$AC,Sheet1!S71_A5CapexCode,$AD:$AD)","v":0},null,null,null,null,{"$f":"SUMIFS(Sheet1!S71_AdjustmentAmount,Sheet1!S71_SA34aCode,$AC:$AC,Sheet1!S71_A5CapexCode,$AD:$AD)","v":0},0,0,{"$f":"SUMIFS(Sheet1!S71_OY1AdjustedBudget,Sheet1!S71_SA34aCode,$AC:$AC,Sheet1!S71_A5CapexCode,$AD:$AD)","v":0},{"$f":"SUMIFS(Sheet1!S71_OY2AdjustedBudget,Sheet1!S71_SA34aCode,$AC:$AC,Sheet1!S71_A5CapexCode,$AD:$AD)","v":0},null,null,null,null,null,null,null,null,null,null,null,null,null,null,null,"0550","CE"]
["Rail Infrastructure",null,{"$f":"SUM(C55:C63)","v":0},0,0,0,0,0,0,0,0,0,0,null,null,null,null,null,null,null,null,null,null,null,null,null,null,null,null,"CE"]
["Rail Lines",null,{"$f":"SUMIFS(Sheet1!S71_OriginalBudget,Sheet1!S71_SA34aCode,$AC:$AC,Sheet1!S71_A5CapexCode,$AD:$AD)","v":0},{"$f":"SUMIFS(Sheet1!S71_SpecialAdjustedBudget,Sheet1!S71_SA34aCode,$AC:$AC,Sheet1!S71_A5CapexCode,$AD:$AD)","v":0},null,null,null,null,{"$f":"SUMIFS(Sheet1!S71_AdjustmentAmount,Sheet1!S71_SA34aCode,$AC:$AC,Sheet1!S71_A5CapexCode,$AD:$AD)","v":0},0,0,{"$f":"SUMIFS(Sheet1!S71_OY1AdjustedBudget,Sheet1!S71_SA34aCode,$AC:$AC,Sheet1!S71_A5CapexCode,$AD:$AD)","v":0},{"$f":"SUMIFS(Sheet1!S71_OY2AdjustedBudget,Sheet1!S71_SA34aCode,$AC:$AC,Sheet1!S71_A5CapexCode,$AD:$AD)","v":0},null,null,null,null,null,null,null,null,null,null,null,null,null,null,null,"0570","CE"]
["Rail Structures",null,{"$f":"SUMIFS(Sheet1!S71_OriginalBudget,Sheet1!S71_SA34aCode,$AC:$AC,Sheet1!S71_A5CapexCode,$AD:$AD)","v":0},{"$f":"SUMIFS(Sheet1!S71_SpecialAdjustedBudget,Sheet1!S71_SA34aCode,$AC:$AC,Sheet1!S71_A5CapexCode,$AD:$AD)","v":0},null,null,null,null,{"$f":"SUMIFS(Sheet1!S71_AdjustmentAmount,Sheet1!S71_SA34aCode,$AC:$AC,Sheet1!S71_A5CapexCode,$AD:$AD)","v":0},0,0,{"$f":"SUMIFS(Sheet1!S71_OY1AdjustedBudget,Sheet1!S71_SA34aCode,$AC:$AC,Sheet1!S71_A5CapexCode,$AD:$AD)","v":0},{"$f":"SUMIFS(Sheet1!S71_OY2AdjustedBudget,Sheet1!S71_SA34aCode,$AC:$AC,Sheet1!S71_A5CapexCode,$AD:$AD)","v":0},null,null,null,null,null,null,null,null,null,null,null,null,null,null,null,"0580","CE"]
["Rail Furniture",null,{"$f":"SUMIFS(Sheet1!S71_OriginalBudget,Sheet1!S71_SA34aCode,$AC:$AC,Sheet1!S71_A5CapexCode,$AD:$AD)","v":0},{"$f":"SUMIFS(Sheet1!S71_SpecialAdjustedBudget,Sheet1!S71_SA34aCode,$AC:$AC,Sheet1!S71_A5CapexCode,$AD:$AD)","v":0},null,null,null,null,{"$f":"SUMIFS(Sheet1!S71_AdjustmentAmount,Sheet1!S71_SA34aCode,$AC:$AC,Sheet1!S71_A5CapexCode,$AD:$AD)","v":0},0,0,{"$f":"SUMIFS(Sheet1!S71_OY1AdjustedBudget,Sheet1!S71_SA34aCode,$AC:$AC,Sheet1!S71_A5CapexCode,$AD:$AD)","v":0},{"$f":"SUMIFS(Sheet1!S71_OY2AdjustedBudget,Sheet1!S71_SA34aCode,$AC:$AC,Sheet1!S71_A5CapexCode,$AD:$AD)","v":0},null,null,null,null,null,null,null,null,null,null,null,null,null,null,null,"0590","CE"]
["Drainage Collection",null,{"$f":"SUMIFS(Sheet1!S71_OriginalBudget,Sheet1!S71_SA34aCode,$AC:$AC,Sheet1!S71_A5CapexCode,$AD:$AD)","v":0},{"$f":"SUMIFS(Sheet1!S71_SpecialAdjustedBudget,Sheet1!S71_SA34aCode,$AC:$AC,Sheet1!S71_A5CapexCode,$AD:$AD)","v":0},null,null,null,null,{"$f":"SUMIFS(Sheet1!S71_AdjustmentAmount,Sheet1!S71_SA34aCode,$AC:$AC,Sheet1!S71_A5CapexCode,$AD:$AD)","v":0},0,0,{"$f":"SUMIFS(Sheet1!S71_OY1AdjustedBudget,Sheet1!S71_SA34aCode,$AC:$AC,Sheet1!S71_A5CapexCode,$AD:$AD)","v":0},{"$f":"SUMIFS(Sheet1!S71_OY2AdjustedBudget,Sheet1!S71_SA34aCode,$AC:$AC,Sheet1!S71_A5CapexCode,$AD:$AD)","v":0},null,null,null,null,null,null,null,null,null,null,null,null,null,null,null,"0600","CE"]
["Storm water Conveyance",null,{"$f":"SUMIFS(Sheet1!S71_OriginalBudget,Sheet1!S71_SA34aCode,$AC:$AC,Sheet1!S71_A5CapexCode,$AD:$AD)","v":0},{"$f":"SUMIFS(Sheet1!S71_SpecialAdjustedBudget,Sheet1!S71_SA34aCode,$AC:$AC,Sheet1!S71_A5CapexCode,$AD:$AD)","v":0},null,null,null,null,{"$f":"SUMIFS(Sheet1!S71_AdjustmentAmount,Sheet1!S71_SA34aCode,$AC:$AC,Sheet1!S71_A5CapexCode,$AD:$AD)","v":0},0,0,{"$f":"SUMIFS(Sheet1!S71_OY1AdjustedBudget,Sheet1!S71_SA34aCode,$AC:$AC,Sheet1!S71_A5CapexCode,$AD:$AD)","v":0},{"$f":"SUMIFS(Sheet1!S71_OY2AdjustedBudget,Sheet1!S71_SA34aCode,$AC:$AC,Sheet1!S71_A5CapexCode,$AD:$AD)","v":0},null,null,null,null,null,null,null,null,null,null,null,null,null,null,null,"0610","CE"]
["Attenuation",null,{"$f":"SUMIFS(Sheet1!S71_OriginalBudget,Sheet1!S71_SA34aCode,$AC:$AC,Sheet1!S71_A5CapexCode,$AD:$AD)","v":0},{"$f":"SUMIFS(Sheet1!S71_SpecialAdjustedBudget,Sheet1!S71_SA34aCode,$AC:$AC,Sheet1!S71_A5CapexCode,$AD:$AD)","v":0},null,null,null,null,{"$f":"SUMIFS(Sheet1!S71_AdjustmentAmount,Sheet1!S71_SA34aCode,$AC:$AC,Sheet1!S71_A5CapexCode,$AD:$AD)","v":0},0,0,{"$f":"SUMIFS(Sheet1!S71_OY1AdjustedBudget,Sheet1!S71_SA34aCode,$AC:$AC,Sheet1!S71_A5CapexCode,$AD:$AD)","v":0},{"$f":"SUMIFS(Sheet1!S71_OY2AdjustedBudget,Sheet1!S71_SA34aCode,$AC:$AC,Sheet1!S71_A5CapexCode,$AD:$AD)","v":0},null,null,null,null,null,null,null,null,null,null,null,null,null,null,null,"0620","CE"]
["MV Substations",null,{"$f":"SUMIFS(Sheet1!S71_OriginalBudget,Sheet1!S71_SA34aCode,$AC:$AC,Sheet1!S71_A5CapexCode,$AD:$AD)","v":0},{"$f":"SUMIFS(Sheet1!S71_SpecialAdjustedBudget,Sheet1!S71_SA34aCode,$AC:$AC,Sheet1!S71_A5CapexCode,$AD:$AD)","v":0},null,null,null,null,{"$f":"SUMIFS(Sheet1!S71_AdjustmentAmount,Sheet1!S71_SA34aCode,$AC:$AC,Sheet1!S71_A5CapexCode,$AD:$AD)","v":0},0,0,{"$f":"SUMIFS(Sheet1!S71_OY1AdjustedBudget,Sheet1!S71_SA34aCode,$AC:$AC,Sheet1!S71_A5CapexCode,$AD:$AD)","v":0},{"$f":"SUMIFS(Sheet1!S71_OY2AdjustedBudget,Sheet1!S71_SA34aCode,$AC:$AC,Sheet1!S71_A5CapexCode,$AD:$AD)","v":0},null,null,null,null,null,null,null,null,null,null,null,null,null,null,null,"0630","CE"]
["LV Networks",null,{"$f":"SUMIFS(Sheet1!S71_OriginalBudget,Sheet1!S71_SA34aCode,$AC:$AC,Sheet1!S71_A5CapexCode,$AD:$AD)","v":0},{"$f":"SUMIFS(Sheet1!S71_SpecialAdjustedBudget,Sheet1!S71_SA34aCode,$AC:$AC,Sheet1!S71_A5CapexCode,$AD:$AD)","v":0},null,null,null,null,{"$f":"SUMIFS(Sheet1!S71_AdjustmentAmount,Sheet1!S71_SA34aCode,$AC:$AC,Sheet1!S71_A5CapexCode,$AD:$AD)","v":0},0,0,{"$f":"SUMIFS(Sheet1!S71_OY1AdjustedBudget,Sheet1!S71_SA34aCode,$AC:$AC,Sheet1!S71_A5CapexCode,$AD:$AD)","v":0},{"$f":"SUMIFS(Sheet1!S71_OY2AdjustedBudget,Sheet1!S71_SA34aCode,$AC:$AC,Sheet1!S71_A5CapexCode,$AD:$AD)","v":0},null,null,null,null,null,null,null,null,null,null,null,null,null,null,null,"0640","CE"]
["Capital Spares",null,{"$f":"SUMIFS(Sheet1!S71_OriginalBudget,Sheet1!S71_SA34aCode,$AC:$AC,Sheet1!S71_A5CapexCode,$AD:$AD)","v":0},{"$f":"SUMIFS(Sheet1!S71_SpecialAdjustedBudget,Sheet1!S71_SA34aCode,$AC:$AC,Sheet1!S71_A5CapexCode,$AD:$AD)","v":0},null,null,null,null,{"$f":"SUMIFS(Sheet1!S71_AdjustmentAmount,Sheet1!S71_SA34aCode,$AC:$AC,Sheet1!S71_A5CapexCode,$AD:$AD)","v":0},0,0,{"$f":"SUMIFS(Sheet1!S71_OY1AdjustedBudget,Sheet1!S71_SA34aCode,$AC:$AC,Sheet1!S71_A5CapexCode,$AD:$AD)","v":0},{"$f":"SUMIFS(Sheet1!S71_OY2AdjustedBudget,Sheet1!S71_SA34aCode,$AC:$AC,Sheet1!S71_A5CapexCode,$AD:$AD)","v":0},null,null,null,null,null,null,null,null,null,null,null,null,null,null,null,"0650","CE"]
["Coastal Infrastructure",null,{"$f":"SUM(C65:C69)","v":0},0,0,0,0,0,0,0,0,0,0,null,null,null,null,null,null,null,null,null,null,null,null,null,null,null,null,"CE"]
["Sand Pumps",null,{"$f":"SUMIFS(Sheet1!S71_OriginalBudget,Sheet1!S71_SA34aCode,$AC:$AC,Sheet1!S71_A5CapexCode,$AD:$AD)","v":0},{"$f":"SUMIFS(Sheet1!S71_SpecialAdjustedBudget,Sheet1!S71_SA34aCode,$AC:$AC,Sheet1!S71_A5CapexCode,$AD:$AD)","v":0},null,null,null,null,{"$f":"SUMIFS(Sheet1!S71_AdjustmentAmount,Sheet1!S71_SA34aCode,$AC:$AC,Sheet1!S71_A5CapexCode,$AD:$AD)","v":0},0,0,{"$f":"SUMIFS(Sheet1!S71_OY1AdjustedBudget,Sheet1!S71_SA34aCode,$AC:$AC,Sheet1!S71_A5CapexCode,$AD:$AD)","v":0},{"$f":"SUMIFS(Sheet1!S71_OY2AdjustedBudget,Sheet1!S71_SA34aCode,$AC:$AC,Sheet1!S71_A5CapexCode,$AD:$AD)","v":0},null,null,null,null,null,null,null,null,null,null,null,null,null,null,null,"0670","CE"]
["Piers",null,{"$f":"SUMIFS(Sheet1!S71_OriginalBudget,Sheet1!S71_SA34aCode,$AC:$AC,Sheet1!S71_A5CapexCode,$AD:$AD)","v":0},{"$f":"SUMIFS(Sheet1!S71_SpecialAdjustedBudget,Sheet1!S71_SA34aCode,$AC:$AC,Sheet1!S71_A5CapexCode,$AD:$AD)","v":0},null,null,null,null,{"$f":"SUMIFS(Sheet1!S71_AdjustmentAmount,Sheet1!S71_SA34aCode,$AC:$AC,Sheet1!S71_A5CapexCode,$AD:$AD)","v":0},0,0,{"$f":"SUMIFS(Sheet1!S71_OY1AdjustedBudget,Sheet1!S71_SA34aCode,$AC:$AC,Sheet1!S71_A5CapexCode,$AD:$AD)","v":0},{"$f":"SUMIFS(Sheet1!S71_OY2AdjustedBudget,Sheet1!S71_SA34aCode,$AC:$AC,Sheet1!S71_A5CapexCode,$AD:$AD)","v":0},null,null,null,null,null,null,null,null,null,null,null,null,null,null,null,"0680","CE"]
["Revetments",null,{"$f":"SUMIFS(Sheet1!S71_OriginalBudget,Sheet1!S71_SA34aCode,$AC:$AC,Sheet1!S71_A5CapexCode,$AD:$AD)","v":0},{"$f":"SUMIFS(Sheet1!S71_SpecialAdjustedBudget,Sheet1!S71_SA34aCode,$AC:$AC,Sheet1!S71_A5CapexCode,$AD:$AD)","v":0},null,null,null,null,{"$f":"SUMIFS(Sheet1!S71_AdjustmentAmount,Sheet1!S71_SA34aCode,$AC:$AC,Sheet1!S71_A5CapexCode,$AD:$AD)","v":0},0,0,{"$f":"SUMIFS(Sheet1!S71_OY1AdjustedBudget,Sheet1!S71_SA34aCode,$AC:$AC,Sheet1!S71_A5CapexCode,$AD:$AD)","v":0},{"$f":"SUMIFS(Sheet1!S71_OY2AdjustedBudget,Sheet1!S71_SA34aCode,$AC:$AC,Sheet1!S71_A5CapexCode,$AD:$AD)","v":0},null,null,null,null,null,null,null,null,null,null,null,null,null,null,null,"0690","CE"]
["Promenades",null,{"$f":"SUMIFS(Sheet1!S71_OriginalBudget,Sheet1!S71_SA34aCode,$AC:$AC,Sheet1!S71_A5CapexCode,$AD:$AD)","v":0},{"$f":"SUMIFS(Sheet1!S71_SpecialAdjustedBudget,Sheet1!S71_SA34aCode,$AC:$AC,Sheet1!S71_A5CapexCode,$AD:$AD)","v":0},null,null,null,null,{"$f":"SUMIFS(Sheet1!S71_AdjustmentAmount,Sheet1!S71_SA34aCode,$AC:$AC,Sheet1!S71_A5CapexCode,$AD:$AD)","v":0},0,0,{"$f":"SUMIFS(Sheet1!S71_OY1AdjustedBudget,Sheet1!S71_SA34aCode,$AC:$AC,Sheet1!S71_A5CapexCode,$AD:$AD)","v":0},{"$f":"SUMIFS(Sheet1!S71_OY2AdjustedBudget,Sheet1!S71_SA34aCode,$AC:$AC,Sheet1!S71_A5CapexCode,$AD:$AD)","v":0},null,null,null,null,null,null,null,null,null,null,null,null,null,null,null,"0700","CE"]
["Capital Spares",null,{"$f":"SUMIFS(Sheet1!S71_OriginalBudget,Sheet1!S71_SA34aCode,$AC:$AC,Sheet1!S71_A5CapexCode,$AD:$AD)","v":0},{"$f":"SUMIFS(Sheet1!S71_SpecialAdjustedBudget,Sheet1!S71_SA34aCode,$AC:$AC,Sheet1!S71_A5CapexCode,$AD:$AD)","v":0},null,null,null,null,{"$f":"SUMIFS(Sheet1!S71_AdjustmentAmount,Sheet1!S71_SA34aCode,$AC:$AC,Sheet1!S71_A5CapexCode,$AD:$AD)","v":0},0,0,{"$f":"SUMIFS(Sheet1!S71_OY1AdjustedBudget,Sheet1!S71_SA34aCode,$AC:$AC,Sheet1!S71_A5CapexCode,$AD:$AD)","v":0},{"$f":"SUMIFS(Sheet1!S71_OY2AdjustedBudget,Sheet1!S71_SA34aCode,$AC:$AC,Sheet1!S71_A5CapexCode,$AD:$AD)","v":0},null,null,null,null,null,null,null,null,null,null,null,null,null,null,null,"0710","CE"]
["Information and Communication Infrastructure",null,{"$f":"SUM(C71:C74)","v":0},0,0,0,0,0,0,0,0,0,0,null,null,null,null,null,null,null,null,null,null,null,null,null,null,null,null,"CE"]
["Data Centres",null,{"$f":"SUMIFS(Sheet1!S71_OriginalBudget,Sheet1!S71_SA34aCode,$AC:$AC,Sheet1!S71_A5CapexCode,$AD:$AD)","v":0},{"$f":"SUMIFS(Sheet1!S71_SpecialAdjustedBudget,Sheet1!S71_SA34aCode,$AC:$AC,Sheet1!S71_A5CapexCode,$AD:$AD)","v":0},null,null,null,null,{"$f":"SUMIFS(Sheet1!S71_AdjustmentAmount,Sheet1!S71_SA34aCode,$AC:$AC,Sheet1!S71_A5CapexCode,$AD:$AD)","v":0},0,0,{"$f":"SUMIFS(Sheet1!S71_OY1AdjustedBudget,Sheet1!S71_SA34aCode,$AC:$AC,Sheet1!S71_A5CapexCode,$AD:$AD)","v":0},{"$f":"SUMIFS(Sheet1!S71_OY2AdjustedBudget,Sheet1!S71_SA34aCode,$AC:$AC,Sheet1!S71_A5CapexCode,$AD:$AD)","v":0},null,null,null,null,null,null,null,null,null,null,null,null,null,null,null,"0730","CE"]
["Core Layers",null,{"$f":"SUMIFS(Sheet1!S71_OriginalBudget,Sheet1!S71_SA34aCode,$AC:$AC,Sheet1!S71_A5CapexCode,$AD:$AD)","v":0},{"$f":"SUMIFS(Sheet1!S71_SpecialAdjustedBudget,Sheet1!S71_SA34aCode,$AC:$AC,Sheet1!S71_A5CapexCode,$AD:$AD)","v":0},null,null,null,null,{"$f":"SUMIFS(Sheet1!S71_AdjustmentAmount,Sheet1!S71_SA34aCode,$AC:$AC,Sheet1!S71_A5CapexCode,$AD:$AD)","v":0},0,0,{"$f":"SUMIFS(Sheet1!S71_OY1AdjustedBudget,Sheet1!S71_SA34aCode,$AC:$AC,Sheet1!S71_A5CapexCode,$AD:$AD)","v":0},{"$f":"SUMIFS(Sheet1!S71_OY2AdjustedBudget,Sheet1!S71_SA34aCode,$AC:$AC,Sheet1!S71_A5CapexCode,$AD:$AD)","v":0},null,null,null,null,null,null,null,null,null,null,null,null,null,null,null,"0740","CE"]
["Distribution Layers",null,{"$f":"SUMIFS(Sheet1!S71_OriginalBudget,Sheet1!S71_SA34aCode,$AC:$AC,Sheet1!S71_A5CapexCode,$AD:$AD)","v":0},{"$f":"SUMIFS(Sheet1!S71_SpecialAdjustedBudget,Sheet1!S71_SA34aCode,$AC:$AC,Sheet1!S71_A5CapexCode,$AD:$AD)","v":0},null,null,null,null,{"$f":"SUMIFS(Sheet1!S71_AdjustmentAmount,Sheet1!S71_SA34aCode,$AC:$AC,Sheet1!S71_A5CapexCode,$AD:$AD)","v":0},{"$f":"SUM(E73:I73)","v":0},{"$f":"IF(D73=0,C73+J73,D73+J73)","v":0},{"$f":"SUMIFS(Sheet1!S71_OY1AdjustedBudget,Sheet1!S71_SA34aCode,$AC:$AC,Sheet1!S71_A5CapexCode,$AD:$AD)","v":0},{"$f":"SUMIFS(Sheet1!S71_OY2AdjustedBudget,Sheet1!S71_SA34aCode,$AC:$AC,Sheet1!S71_A5CapexCode,$AD:$AD)","v":0},null,null,null,null,null,null,null,null,null,null,null,null,null,null,null,"0750","CE"]
["Capital Spares",null,{"$f":"SUMIFS(Sheet1!S71_OriginalBudget,Sheet1!S71_SA34aCode,$AC:$AC,Sheet1!S71_A5CapexCode,$AD:$AD)","v":0},{"$f":"SUMIFS(Sheet1!S71_SpecialAdjustedBudget,Sheet1!S71_SA34aCode,$AC:$AC,Sheet1!S71_A5CapexCode,$AD:$AD)","v":0},null,null,null,null,{"$f":"SUMIFS(Sheet1!S71_AdjustmentAmount,Sheet1!S71_SA34aCode,$AC:$AC,Sheet1!S71_A5CapexCode,$AD:$AD)","v":0},0,0,{"$f":"SUMIFS(Sheet1!S71_OY1AdjustedBudget,Sheet1!S71_SA34aCode,$AC:$AC,Sheet1!S71_A5CapexCode,$AD:$AD)","v":0},{"$f":"SUMIFS(Sheet1!S71_OY2AdjustedBudget,Sheet1!S71_SA34aCode,$AC:$AC,Sheet1!S71_A5CapexCode,$AD:$AD)","v":0},null,null,null,null,null,null,null,null,null,null,null,null,null,null,null,"0760","CE"]
[null,null,null,null,null,null,null,null,null,null,null,null,null,null,null,null,null,null,null,null,null,null,null,null,null,null,null,null,null,"CE"]
["Community Assets",null,{"$f":"+C77+C100","v":10500000},{"$f":"+D77+D100","v":0},{"$f":"+E77+E100","v":0},0,0,0,3220000,3220000,13720000,11495000,12012275,null,null,null,null,null,null,null,null,null,null,null,null,null,null,null,null,"CE"]
["Community Facilities",null,{"$f":"SUM(C78:C99)","v":10500000},{"$f":"SUM(D78:D99)","v":0},{"$f":"SUM(E78:E99)","v":0},0,0,0,3220000,3220000,13720000,9405000,9828225,null,null,null,null,null,null,null,null,null,null,null,null,null,null,null,null,"CE"]
["Halls",null,{"$f":"SUMIFS(Sheet1!S71_OriginalBudget,Sheet1!S71_SA34aCode,$AC:$AC,Sheet1!S71_A5CapexCode,$AD:$AD)","v":6500000},{"$f":"SUMIFS(Sheet1!S71_SpecialAdjustedBudget,Sheet1!S71_SA34aCode,$AC:$AC,Sheet1!S71_A5CapexCode,$AD:$AD)","v":0},null,null,null,null,{"$f":"SUMIFS(Sheet1!S71_AdjustmentAmount,Sheet1!S71_SA34aCode,$AC:$AC,Sheet1!S71_A5CapexCode,$AD:$AD)","v":-1500000},-1500000,5000000,{"$f":"SUMIFS(Sheet1!S71_OY1AdjustedBudget,Sheet1!S71_SA34aCode,$AC:$AC,Sheet1!S71_A5CapexCode,$AD:$AD)","v":9405000},{"$f":"SUMIFS(Sheet1!S71_OY2AdjustedBudget,Sheet1!S71_SA34aCode,$AC:$AC,Sheet1!S71_A5CapexCode,$AD:$AD)","v":9828225},null,null,null,null,null,null,null,null,null,null,null,null,null,null,null,"0790","CE"]
["Centres",null,{"$f":"SUMIFS(Sheet1!S71_OriginalBudget,Sheet1!S71_SA34aCode,$AC:$AC,Sheet1!S71_A5CapexCode,$AD:$AD)","v":4000000},{"$f":"SUMIFS(Sheet1!S71_SpecialAdjustedBudget,Sheet1!S71_SA34aCode,$AC:$AC,Sheet1!S71_A5CapexCode,$AD:$AD)","v":0},null,null,null,null,{"$f":"SUMIFS(Sheet1!S71_AdjustmentAmount,Sheet1!S71_SA34aCode,$AC:$AC,Sheet1!S71_A5CapexCode,$AD:$AD)","v":0},0,4000000,{"$f":"SUMIFS(Sheet1!S71_OY1AdjustedBudget,Sheet1!S71_SA34aCode,$AC:$AC,Sheet1!S71_A5CapexCode,$AD:$AD)","v":0},{"$f":"SUMIFS(Sheet1!S71_OY2AdjustedBudget,Sheet1!S71_SA34aCode,$AC:$AC,Sheet1!S71_A5CapexCode,$AD:$AD)","v":0},null,null,null,null,null,null,null,null,null,null,null,null,null,null,null,"0800","CE"]
["Crèches",null,{"$f":"SUMIFS(Sheet1!S71_OriginalBudget,Sheet1!S71_SA34aCode,$AC:$AC,Sheet1!S71_A5CapexCode,$AD:$AD)","v":0},{"$f":"SUMIFS(Sheet1!S71_SpecialAdjustedBudget,Sheet1!S71_SA34aCode,$AC:$AC,Sheet1!S71_A5CapexCode,$AD:$AD)","v":0},null,null,null,null,{"$f":"SUMIFS(Sheet1!S71_AdjustmentAmount,Sheet1!S71_SA34aCode,$AC:$AC,Sheet1!S71_A5CapexCode,$AD:$AD)","v":0},0,0,{"$f":"SUMIFS(Sheet1!S71_OY1AdjustedBudget,Sheet1!S71_SA34aCode,$AC:$AC,Sheet1!S71_A5CapexCode,$AD:$AD)","v":0},{"$f":"SUMIFS(Sheet1!S71_OY2AdjustedBudget,Sheet1!S71_SA34aCode,$AC:$AC,Sheet1!S71_A5CapexCode,$AD:$AD)","v":0},null,null,null,null,null,null,null,null,null,null,null,null,null,null,null,"0810","CE"]
["Clinics/Care Centres",null,{"$f":"SUMIFS(Sheet1!S71_OriginalBudget,Sheet1!S71_SA34aCode,$AC:$AC,Sheet1!S71_A5CapexCode,$AD:$AD)","v":0},{"$f":"SUMIFS(Sheet1!S71_SpecialAdjustedBudget,Sheet1!S71_SA34aCode,$AC:$AC,Sheet1!S71_A5CapexCode,$AD:$AD)","v":0},null,null,null,null,{"$f":"SUMIFS(Sheet1!S71_AdjustmentAmount,Sheet1!S71_SA34aCode,$AC:$AC,Sheet1!S71_A5CapexCode,$AD:$AD)","v":0},0,0,{"$f":"SUMIFS(Sheet1!S71_OY1AdjustedBudget,Sheet1!S71_SA34aCode,$AC:$AC,Sheet1!S71_A5CapexCode,$AD:$AD)","v":0},{"$f":"SUMIFS(Sheet1!S71_OY2AdjustedBudget,Sheet1!S71_SA34aCode,$AC:$AC,Sheet1!S71_A5CapexCode,$AD:$AD)","v":0},null,null,null,null,null,null,null,null,null,null,null,null,null,null,null,"0820","CE"]
["Fire/Ambulance Stations",null,{"$f":"SUMIFS(Sheet1!S71_OriginalBudget,Sheet1!S71_SA34aCode,$AC:$AC,Sheet1!S71_A5CapexCode,$AD:$AD)","v":0},{"$f":"SUMIFS(Sheet1!S71_SpecialAdjustedBudget,Sheet1!S71_SA34aCode,$AC:$AC,Sheet1!S71_A5CapexCode,$AD:$AD)","v":0},null,null,null,null,{"$f":"SUMIFS(Sheet1!S71_AdjustmentAmount,Sheet1!S71_SA34aCode,$AC:$AC,Sheet1!S71_A5CapexCode,$AD:$AD)","v":0},0,0,{"$f":"SUMIFS(Sheet1!S71_OY1AdjustedBudget,Sheet1!S71_SA34aCode,$AC:$AC,Sheet1!S71_A5CapexCode,$AD:$AD)","v":0},{"$f":"SUMIFS(Sheet1!S71_OY2AdjustedBudget,Sheet1!S71_SA34aCode,$AC:$AC,Sheet1!S71_A5CapexCode,$AD:$AD)","v":0},null,null,null,null,null,null,null,null,null,null,null,null,null,null,null,"0830","CE"]
["Testing Stations",null,{"$f":"SUMIFS(Sheet1!S71_OriginalBudget,Sheet1!S71_SA34aCode,$AC:$AC,Sheet1!S71_A5CapexCode,$AD:$AD)","v":0},{"$f":"SUMIFS(Sheet1!S71_SpecialAdjustedBudget,Sheet1!S71_SA34aCode,$AC:$AC,Sheet1!S71_A5CapexCode,$AD:$AD)","v":0},null,null,null,null,{"$f":"SUMIFS(Sheet1!S71_AdjustmentAmount,Sheet1!S71_SA34aCode,$AC:$AC,Sheet1!S71_A5CapexCode,$AD:$AD)","v":0},0,0,{"$f":"SUMIFS(Sheet1!S71_OY1AdjustedBudget,Sheet1!S71_SA34aCode,$AC:$AC,Sheet1!S71_A5CapexCode,$AD:$AD)","v":0},{"$f":"SUMIFS(Sheet1!S71_OY2AdjustedBudget,Sheet1!S71_SA34aCode,$AC:$AC,Sheet1!S71_A5CapexCode,$AD:$AD)","v":0},null,null,null,null,null,null,null,null,null,null,null,null,null,null,null,"0840","CE"]
["Museums",null,{"$f":"SUMIFS(Sheet1!S71_OriginalBudget,Sheet1!S71_SA34aCode,$AC:$AC,Sheet1!S71_A5CapexCode,$AD:$AD)","v":0},{"$f":"SUMIFS(Sheet1!S71_SpecialAdjustedBudget,Sheet1!S71_SA34aCode,$AC:$AC,Sheet1!S71_A5CapexCode,$AD:$AD)","v":0},null,null,null,null,{"$f":"SUMIFS(Sheet1!S71_AdjustmentAmount,Sheet1!S71_SA34aCode,$AC:$AC,Sheet1!S71_A5CapexCode,$AD:$AD)","v":0},0,0,{"$f":"SUMIFS(Sheet1!S71_OY1AdjustedBudget,Sheet1!S71_SA34aCode,$AC:$AC,Sheet1!S71_A5CapexCode,$AD:$AD)","v":0},{"$f":"SUMIFS(Sheet1!S71_OY2AdjustedBudget,Sheet1!S71_SA34aCode,$AC:$AC,Sheet1!S71_A5CapexCode,$AD:$AD)","v":0},null,null,null,null,null,null,null,null,null,null,null,null,null,null,null,"0850","CE"]
["Galleries",null,{"$f":"SUMIFS(Sheet1!S71_OriginalBudget,Sheet1!S71_SA34aCode,$AC:$AC,Sheet1!S71_A5CapexCode,$AD:$AD)","v":0},{"$f":"SUMIFS(Sheet1!S71_SpecialAdjustedBudget,Sheet1!S71_SA34aCode,$AC:$AC,Sheet1!S71_A5CapexCode,$AD:$AD)","v":0},null,null,null,null,{"$f":"SUMIFS(Sheet1!S71_AdjustmentAmount,Sheet1!S71_SA34aCode,$AC:$AC,Sheet1!S71_A5CapexCode,$AD:$AD)","v":0},0,0,{"$f":"SUMIFS(Sheet1!S71_OY1AdjustedBudget,Sheet1!S71_SA34aCode,$AC:$AC,Sheet1!S71_A5CapexCode,$AD:$AD)","v":0},{"$f":"SUMIFS(Sheet1!S71_OY2AdjustedBudget,Sheet1!S71_SA34aCode,$AC:$AC,Sheet1!S71_A5CapexCode,$AD:$AD)","v":0},null,null,null,null,null,null,null,null,null,null,null,null,null,null,null,"0860","CE"]
["Theatres",null,{"$f":"SUMIFS(Sheet1!S71_OriginalBudget,Sheet1!S71_SA34aCode,$AC:$AC,Sheet1!S71_A5CapexCode,$AD:$AD)","v":0},{"$f":"SUMIFS(Sheet1!S71_SpecialAdjustedBudget,Sheet1!S71_SA34aCode,$AC:$AC,Sheet1!S71_A5CapexCode,$AD:$AD)","v":0},null,null,null,null,{"$f":"SUMIFS(Sheet1!S71_AdjustmentAmount,Sheet1!S71_SA34aCode,$AC:$AC,Sheet1!S71_A5CapexCode,$AD:$AD)","v":0},0,0,{"$f":"SUMIFS(Sheet1!S71_OY1AdjustedBudget,Sheet1!S71_SA34aCode,$AC:$AC,Sheet1!S71_A5CapexCode,$AD:$AD)","v":0},{"$f":"SUMIFS(Sheet1!S71_OY2AdjustedBudget,Sheet1!S71_SA34aCode,$AC:$AC,Sheet1!S71_A5CapexCode,$AD:$AD)","v":0},null,null,null,null,null,null,null,null,null,null,null,null,null,null,null,"0870","CE"]
["Libraries",null,{"$f":"SUMIFS(Sheet1!S71_OriginalBudget,Sheet1!S71_SA34aCode,$AC:$AC,Sheet1!S71_A5CapexCode,$AD:$AD)","v":0},{"$f":"SUMIFS(Sheet1!S71_SpecialAdjustedBudget,Sheet1!S71_SA34aCode,$AC:$AC,Sheet1!S71_A5CapexCode,$AD:$AD)","v":0},null,null,null,null,{"$f":"SUMIFS(Sheet1!S71_AdjustmentAmount,Sheet1!S71_SA34aCode,$AC:$AC,Sheet1!S71_A5CapexCode,$AD:$AD)","v":0},0,0,{"$f":"SUMIFS(Sheet1!S71_OY1AdjustedBudget,Sheet1!S71_SA34aCode,$AC:$AC,Sheet1!S71_A5CapexCode,$AD:$AD)","v":0},{"$f":"SUMIFS(Sheet1!S71_OY2AdjustedBudget,Sheet1!S71_SA34aCode,$AC:$AC,Sheet1!S71_A5CapexCode,$AD:$AD)","v":0},null,null,null,null,null,null,null,null,null,null,null,null,null,null,null,"0880","CE"]
["Cemeteries/Crematoria",null,{"$f":"SUMIFS(Sheet1!S71_OriginalBudget,Sheet1!S71_SA34aCode,$AC:$AC,Sheet1!S71_A5CapexCode,$AD:$AD)","v":0},{"$f":"SUMIFS(Sheet1!S71_SpecialAdjustedBudget,Sheet1!S71_SA34aCode,$AC:$AC,Sheet1!S71_A5CapexCode,$AD:$AD)","v":0},null,null,null,null,{"$f":"SUMIFS(Sheet1!S71_AdjustmentAmount,Sheet1!S71_SA34aCode,$AC:$AC,Sheet1!S71_A5CapexCode,$AD:$AD)","v":0},0,0,{"$f":"SUMIFS(Sheet1!S71_OY1AdjustedBudget,Sheet1!S71_SA34aCode,$AC:$AC,Sheet1!S71_A5CapexCode,$AD:$AD)","v":0},{"$f":"SUMIFS(Sheet1!S71_OY2AdjustedBudget,Sheet1!S71_SA34aCode,$AC:$AC,Sheet1!S71_A5CapexCode,$AD:$AD)","v":0},null,null,null,null,null,null,null,null,null,null,null,null,null,null,null,"0890","CE"]
["Police",null,{"$f":"SUMIFS(Sheet1!S71_OriginalBudget,Sheet1!S71_SA34aCode,$AC:$AC,Sheet1!S71_A5CapexCode,$AD:$AD)","v":0},{"$f":"SUMIFS(Sheet1!S71_SpecialAdjustedBudget,Sheet1!S71_SA34aCode,$AC:$AC,Sheet1!S71_A5CapexCode,$AD:$AD)","v":0},null,null,null,null,{"$f":"SUMIFS(Sheet1!S71_AdjustmentAmount,Sheet1!S71_SA34aCode,$AC:$AC,Sheet1!S71_A5CapexCode,$AD:$AD)","v":0},0,0,{"$f":"SUMIFS(Sheet1!S71_OY1AdjustedBudget,Sheet1!S71_SA34aCode,$AC:$AC,Sheet1!S71_A5CapexCode,$AD:$AD)","v":0},{"$f":"SUMIFS(Sheet1!S71_OY2AdjustedBudget,Sheet1!S71_SA34aCode,$AC:$AC,Sheet1!S71_A5CapexCode,$AD:$AD)","v":0},null,null,null,null,null,null,null,null,null,null,null,null,null,null,null,"0900","CE"]
["Purls",null,{"$f":"SUMIFS(Sheet1!S71_OriginalBudget,Sheet1!S71_SA34aCode,$AC:$AC,Sheet1!S71_A5CapexCode,$AD:$AD)","v":0},{"$f":"SUMIFS(Sheet1!S71_SpecialAdjustedBudget,Sheet1!S71_SA34aCode,$AC:$AC,Sheet1!S71_A5CapexCode,$AD:$AD)","v":0},null,null,null,null,{"$f":"SUMIFS(Sheet1!S71_AdjustmentAmount,Sheet1!S71_SA34aCode,$AC:$AC,Sheet1!S71_A5CapexCode,$AD:$AD)","v":0},0,0,{"$f":"SUMIFS(Sheet1!S71_OY1AdjustedBudget,Sheet1!S71_SA34aCode,$AC:$AC,Sheet1!S71_A5CapexCode,$AD:$AD)","v":0},{"$f":"SUMIFS(Sheet1!S71_OY2AdjustedBudget,Sheet1!S71_SA34aCode,$AC:$AC,Sheet1!S71_A5CapexCode,$AD:$AD)","v":0},null,null,null,null,null,null,null,null,null,null,null,null,null,null,null,"0910","CE"]
["Public Open Space",null,{"$f":"SUMIFS(Sheet1!S71_OriginalBudget,Sheet1!S71_SA34aCode,$AC:$AC,Sheet1!S71_A5CapexCode,$AD:$AD)","v":0},{"$f":"SUMIFS(Sheet1!S71_SpecialAdjustedBudget,Sheet1!S71_SA34aCode,$AC:$AC,Sheet1!S71_A5CapexCode,$AD:$AD)","v":0},null,null,null,null,{"$f":"SUMIFS(Sheet1!S71_AdjustmentAmount,Sheet1!S71_SA34aCode,$AC:$AC,Sheet1!S71_A5CapexCode,$AD:$AD)","v":0},0,0,{"$f":"SUMIFS(Sheet1!S71_OY1AdjustedBudget,Sheet1!S71_SA34aCode,$AC:$AC,Sheet1!S71_A5CapexCode,$AD:$AD)","v":0},{"$f":"SUMIFS(Sheet1!S71_OY2AdjustedBudget,Sheet1!S71_SA34aCode,$AC:$AC,Sheet1!S71_A5CapexCode,$AD:$AD)","v":0},null,null,null,null,null,null,null,null,null,null,null,null,null,null,null,"0920","CE"]
["Nature Reserves",null,{"$f":"SUMIFS(Sheet1!S71_OriginalBudget,Sheet1!S71_SA34aCode,$AC:$AC,Sheet1!S71_A5CapexCode,$AD:$AD)","v":0},{"$f":"SUMIFS(Sheet1!S71_SpecialAdjustedBudget,Sheet1!S71_SA34aCode,$AC:$AC,Sheet1!S71_A5CapexCode,$AD:$AD)","v":0},null,null,null,null,{"$f":"SUMIFS(Sheet1!S71_AdjustmentAmount,Sheet1!S71_SA34aCode,$AC:$AC,Sheet1!S71_A5CapexCode,$AD:$AD)","v":0},0,0,{"$f":"SUMIFS(Sheet1!S71_OY1AdjustedBudget,Sheet1!S71_SA34aCode,$AC:$AC,Sheet1!S71_A5CapexCode,$AD:$AD)","v":0},{"$f":"SUMIFS(Sheet1!S71_OY2AdjustedBudget,Sheet1!S71_SA34aCode,$AC:$AC,Sheet1!S71_A5CapexCode,$AD:$AD)","v":0},null,null,null,null,null,null,null,null,null,null,null,null,null,null,null,"0930","CE"]
["Public Ablution Facilities",null,{"$f":"SUMIFS(Sheet1!S71_OriginalBudget,Sheet1!S71_SA34aCode,$AC:$AC,Sheet1!S71_A5CapexCode,$AD:$AD)","v":0},{"$f":"SUMIFS(Sheet1!S71_SpecialAdjustedBudget,Sheet1!S71_SA34aCode,$AC:$AC,Sheet1!S71_A5CapexCode,$AD:$AD)","v":0},null,null,null,null,{"$f":"SUMIFS(Sheet1!S71_AdjustmentAmount,Sheet1!S71_SA34aCode,$AC:$AC,Sheet1!S71_A5CapexCode,$AD:$AD)","v":0},0,0,{"$f":"SUMIFS(Sheet1!S71_OY1AdjustedBudget,Sheet1!S71_SA34aCode,$AC:$AC,Sheet1!S71_A5CapexCode,$AD:$AD)","v":0},{"$f":"SUMIFS(Sheet1!S71_OY2AdjustedBudget,Sheet1!S71_SA34aCode,$AC:$AC,Sheet1!S71_A5CapexCode,$AD:$AD)","v":0},null,null,null,null,null,null,null,null,null,null,null,null,null,null,null,"0940","CE"]
["Markets",null,{"$f":"SUMIFS(Sheet1!S71_OriginalBudget,Sheet1!S71_SA34aCode,$AC:$AC,Sheet1!S71_A5CapexCode,$AD:$AD)","v":0},{"$f":"SUMIFS(Sheet1!S71_SpecialAdjustedBudget,Sheet1!S71_SA34aCode,$AC:$AC,Sheet1!S71_A5CapexCode,$AD:$AD)","v":0},null,null,null,null,{"$f":"SUMIFS(Sheet1!S71_AdjustmentAmount,Sheet1!S71_SA34aCode,$AC:$AC,Sheet1!S71_A5CapexCode,$AD:$AD)","v":4720000},4720000,4720000,{"$f":"SUMIFS(Sheet1!S71_OY1AdjustedBudget,Sheet1!S71_SA34aCode,$AC:$AC,Sheet1!S71_A5CapexCode,$AD:$AD)","v":0},{"$f":"SUMIFS(Sheet1!S71_OY2AdjustedBudget,Sheet1!S71_SA34aCode,$AC:$AC,Sheet1!S71_A5CapexCode,$AD:$AD)","v":0},null,null,null,null,null,null,null,null,null,null,null,null,null,null,null,"0950","CE"]
["Stalls",null,{"$f":"SUMIFS(Sheet1!S71_OriginalBudget,Sheet1!S71_SA34aCode,$AC:$AC,Sheet1!S71_A5CapexCode,$AD:$AD)","v":0},{"$f":"SUMIFS(Sheet1!S71_SpecialAdjustedBudget,Sheet1!S71_SA34aCode,$AC:$AC,Sheet1!S71_A5CapexCode,$AD:$AD)","v":0},null,null,null,null,{"$f":"SUMIFS(Sheet1!S71_AdjustmentAmount,Sheet1!S71_SA34aCode,$AC:$AC,Sheet1!S71_A5CapexCode,$AD:$AD)","v":0},0,0,{"$f":"SUMIFS(Sheet1!S71_OY1AdjustedBudget,Sheet1!S71_SA34aCode,$AC:$AC,Sheet1!S71_A5CapexCode,$AD:$AD)","v":0},{"$f":"SUMIFS(Sheet1!S71_OY2AdjustedBudget,Sheet1!S71_SA34aCode,$AC:$AC,Sheet1!S71_A5CapexCode,$AD:$AD)","v":0},null,null,null,null,null,null,null,null,null,null,null,null,null,null,null,"0960","CE"]
["Abattoirs",null,{"$f":"SUMIFS(Sheet1!S71_OriginalBudget,Sheet1!S71_SA34aCode,$AC:$AC,Sheet1!S71_A5CapexCode,$AD:$AD)","v":0},{"$f":"SUMIFS(Sheet1!S71_SpecialAdjustedBudget,Sheet1!S71_SA34aCode,$AC:$AC,Sheet1!S71_A5CapexCode,$AD:$AD)","v":0},null,null,null,null,{"$f":"SUMIFS(Sheet1!S71_AdjustmentAmount,Sheet1!S71_SA34aCode,$AC:$AC,Sheet1!S71_A5CapexCode,$AD:$AD)","v":0},0,0,{"$f":"SUMIFS(Sheet1!S71_OY1AdjustedBudget,Sheet1!S71_SA34aCode,$AC:$AC,Sheet1!S71_A5CapexCode,$AD:$AD)","v":0},{"$f":"SUMIFS(Sheet1!S71_OY2AdjustedBudget,Sheet1!S71_SA34aCode,$AC:$AC,Sheet1!S71_A5CapexCode,$AD:$AD)","v":0},null,null,null,null,null,null,null,null,null,null,null,null,null,null,null,"0970","CE"]
["Airports",null,{"$f":"SUMIFS(Sheet1!S71_OriginalBudget,Sheet1!S71_SA34aCode,$AC:$AC,Sheet1!S71_A5CapexCode,$AD:$AD)","v":0},{"$f":"SUMIFS(Sheet1!S71_SpecialAdjustedBudget,Sheet1!S71_SA34aCode,$AC:$AC,Sheet1!S71_A5CapexCode,$AD:$AD)","v":0},null,null,null,null,{"$f":"SUMIFS(Sheet1!S71_AdjustmentAmount,Sheet1!S71_SA34aCode,$AC:$AC,Sheet1!S71_A5CapexCode,$AD:$AD)","v":0},0,0,{"$f":"SUMIFS(Sheet1!S71_OY1AdjustedBudget,Sheet1!S71_SA34aCode,$AC:$AC,Sheet1!S71_A5CapexCode,$AD:$AD)","v":0},{"$f":"SUMIFS(Sheet1!S71_OY2AdjustedBudget,Sheet1!S71_SA34aCode,$AC:$AC,Sheet1!S71_A5CapexCode,$AD:$AD)","v":0},null,null,null,null,null,null,null,null,null,null,null,null,null,null,null,"0980","CE"]
["Taxi Ranks/Bus Terminals",null,{"$f":"SUMIFS(Sheet1!S71_OriginalBudget,Sheet1!S71_SA34aCode,$AC:$AC,Sheet1!S71_A5CapexCode,$AD:$AD)","v":0},{"$f":"SUMIFS(Sheet1!S71_SpecialAdjustedBudget,Sheet1!S71_SA34aCode,$AC:$AC,Sheet1!S71_A5CapexCode,$AD:$AD)","v":0},null,null,null,null,{"$f":"SUMIFS(Sheet1!S71_AdjustmentAmount,Sheet1!S71_SA34aCode,$AC:$AC,Sheet1!S71_A5CapexCode,$AD:$AD)","v":0},0,0,{"$f":"SUMIFS(Sheet1!S71_OY1AdjustedBudget,Sheet1!S71_SA34aCode,$AC:$AC,Sheet1!S71_A5CapexCode,$AD:$AD)","v":0},{"$f":"SUMIFS(Sheet1!S71_OY2AdjustedBudget,Sheet1!S71_SA34aCode,$AC:$AC,Sheet1!S71_A5CapexCode,$AD:$AD)","v":0},null,null,null,null,null,null,null,null,null,null,null,null,null,null,null,"0990","CE"]
["Capital Spares",null,{"$f":"SUMIFS(Sheet1!S71_OriginalBudget,Sheet1!S71_SA34aCode,$AC:$AC,Sheet1!S71_A5CapexCode,$AD:$AD)","v":0},{"$f":"SUMIFS(Sheet1!S71_SpecialAdjustedBudget,Sheet1!S71_SA34aCode,$AC:$AC,Sheet1!S71_A5CapexCode,$AD:$AD)","v":0},null,null,null,null,{"$f":"SUMIFS(Sheet1!S71_AdjustmentAmount,Sheet1!S71_SA34aCode,$AC:$AC,Sheet1!S71_A5CapexCode,$AD:$AD)","v":0},0,0,{"$f":"SUMIFS(Sheet1!S71_OY1AdjustedBudget,Sheet1!S71_SA34aCode,$AC:$AC,Sheet1!S71_A5CapexCode,$AD:$AD)","v":0},{"$f":"SUMIFS(Sheet1!S71_OY2AdjustedBudget,Sheet1!S71_SA34aCode,$AC:$AC,Sheet1!S71_A5CapexCode,$AD:$AD)","v":0},null,null,null,null,null,null,null,null,null,null,null,null,null,null,null,"1000","CE"]
["Sport and Recreation Facilities",null,{"$f":"SUM(C101:C103)","v":0},{"$f":"SUM(D101:D103)","v":0},0,0,0,0,0,0,0,2090000,2184050,null,null,null,null,null,null,null,null,null,null,null,null,null,null,null,null,"CE"]
["Indoor Facilities",null,{"$f":"SUMIFS(Sheet1!S71_OriginalBudget,Sheet1!S71_SA34aCode,$AC:$AC,Sheet1!S71_A5CapexCode,$AD:$AD)","v":0},{"$f":"SUMIFS(Sheet1!S71_SpecialAdjustedBudget,Sheet1!S71_SA34aCode,$AC:$AC,Sheet1!S71_A5CapexCode,$AD:$AD)","v":0},null,null,null,null,{"$f":"SUMIFS(Sheet1!S71_AdjustmentAmount,Sheet1!S71_SA34aCode,$AC:$AC,Sheet1!S71_A5CapexCode,$AD:$AD)","v":0},0,0,{"$f":"SUMIFS(Sheet1!S71_OY1AdjustedBudget,Sheet1!S71_SA34aCode,$AC:$AC,Sheet1!S71_A5CapexCode,$AD:$AD)","v":0},{"$f":"SUMIFS(Sheet1!S71_OY2AdjustedBudget,Sheet1!S71_SA34aCode,$AC:$AC,Sheet1!S71_A5CapexCode,$AD:$AD)","v":0},null,null,null,null,null,null,null,null,null,null,null,null,null,null,null,"1020","CE"]
["Outdoor Facilities",null,{"$f":"SUMIFS(Sheet1!S71_OriginalBudget,Sheet1!S71_SA34aCode,$AC:$AC,Sheet1!S71_A5CapexCode,$AD:$AD)","v":0},{"$f":"SUMIFS(Sheet1!S71_SpecialAdjustedBudget,Sheet1!S71_SA34aCode,$AC:$AC,Sheet1!S71_A5CapexCode,$AD:$AD)","v":0},null,null,null,null,{"$f":"SUMIFS(Sheet1!S71_AdjustmentAmount,Sheet1!S71_SA34aCode,$AC:$AC,Sheet1!S71_A5CapexCode,$AD:$AD)","v":0},0,0,{"$f":"SUMIFS(Sheet1!S71_OY1AdjustedBudget,Sheet1!S71_SA34aCode,$AC:$AC,Sheet1!S71_A5CapexCode,$AD:$AD)","v":2090000},{"$f":"SUMIFS(Sheet1!S71_OY2AdjustedBudget,Sheet1!S71_SA34aCode,$AC:$AC,Sheet1!S71_A5CapexCode,$AD:$AD)","v":2184050},null,null,null,null,null,null,null,null,null,null,null,null,null,null,null,"1030","CE"]
["Capital Spares",null,{"$f":"SUMIFS(Sheet1!S71_OriginalBudget,Sheet1!S71_SA34aCode,$AC:$AC,Sheet1!S71_A5CapexCode,$AD:$AD)","v":0},{"$f":"SUMIFS(Sheet1!S71_SpecialAdjustedBudget,Sheet1!S71_SA34aCode,$AC:$AC,Sheet1!S71_A5CapexCode,$AD:$AD)","v":0},null,null,null,null,{"$f":"SUMIFS(Sheet1!S71_AdjustmentAmount,Sheet1!S71_SA34aCode,$AC:$AC,Sheet1!S71_A5CapexCode,$AD:$AD)","v":0},0,0,{"$f":"SUMIFS(Sheet1!S71_OY1AdjustedBudget,Sheet1!S71_SA34aCode,$AC:$AC,Sheet1!S71_A5CapexCode,$AD:$AD)","v":0},{"$f":"SUMIFS(Sheet1!S71_OY2AdjustedBudget,Sheet1!S71_SA34aCode,$AC:$AC,Sheet1!S71_A5CapexCode,$AD:$AD)","v":0},null,null,null,null,null,null,null,null,null,null,null,null,null,null,null,"1040","CE"]
[null,null,null,null,null,null,null,null,null,null,null,null,null,null,null,null,null,null,null,null,null,null,null,null,null,null,null,null,null,"CE"]
["Heritage assets",null,{"$f":"SUM(C106:C110)","v":0},0,0,0,0,0,0,0,0,0,0,null,null,null,null,null,null,null,null,null,null,null,null,null,null,null,null,"CE"]
["Monuments",null,{"$f":"SUMIFS(Sheet1!S71_OriginalBudget,Sheet1!S71_SA34aCode,$AC:$AC,Sheet1!S71_A5CapexCode,$AD:$AD)","v":0},{"$f":"SUMIFS(Sheet1!S71_SpecialAdjustedBudget,Sheet1!S71_SA34aCode,$AC:$AC,Sheet1!S71_A5CapexCode,$AD:$AD)","v":0},null,null,null,null,{"$f":"SUMIFS(Sheet1!S71_AdjustmentAmount,Sheet1!S71_SA34aCode,$AC:$AC,Sheet1!S71_A5CapexCode,$AD:$AD)","v":0},0,0,{"$f":"SUMIFS(Sheet1!S71_OY1AdjustedBudget,Sheet1!S71_SA34aCode,$AC:$AC,Sheet1!S71_A5CapexCode,$AD:$AD)","v":0},{"$f":"SUMIFS(Sheet1!S71_OY2AdjustedBudget,Sheet1!S71_SA34aCode,$AC:$AC,Sheet1!S71_A5CapexCode,$AD:$AD)","v":0},null,null,null,null,null,null,null,null,null,null,null,null,null,null,null,"1060","CE"]
["Historic Buildings",null,{"$f":"SUMIFS(Sheet1!S71_OriginalBudget,Sheet1!S71_SA34aCode,$AC:$AC,Sheet1!S71_A5CapexCode,$AD:$AD)","v":0},{"$f":"SUMIFS(Sheet1!S71_SpecialAdjustedBudget,Sheet1!S71_SA34aCode,$AC:$AC,Sheet1!S71_A5CapexCode,$AD:$AD)","v":0},null,null,null,null,{"$f":"SUMIFS(Sheet1!S71_AdjustmentAmount,Sheet1!S71_SA34aCode,$AC:$AC,Sheet1!S71_A5CapexCode,$AD:$AD)","v":0},0,0,{"$f":"SUMIFS(Sheet1!S71_OY1AdjustedBudget,Sheet1!S71_SA34aCode,$AC:$AC,Sheet1!S71_A5CapexCode,$AD:$AD)","v":0},{"$f":"SUMIFS(Sheet1!S71_OY2AdjustedBudget,Sheet1!S71_SA34aCode,$AC:$AC,Sheet1!S71_A5CapexCode,$AD:$AD)","v":0},null,null,null,null,null,null,null,null,null,null,null,null,null,null,null,"1070","CE"]
["Works of Art",null,{"$f":"SUMIFS(Sheet1!S71_OriginalBudget,Sheet1!S71_SA34aCode,$AC:$AC,Sheet1!S71_A5CapexCode,$AD:$AD)","v":0},{"$f":"SUMIFS(Sheet1!S71_SpecialAdjustedBudget,Sheet1!S71_SA34aCode,$AC:$AC,Sheet1!S71_A5CapexCode,$AD:$AD)","v":0},null,null,null,null,{"$f":"SUMIFS(Sheet1!S71_AdjustmentAmount,Sheet1!S71_SA34aCode,$AC:$AC,Sheet1!S71_A5CapexCode,$AD:$AD)","v":0},0,0,{"$f":"SUMIFS(Sheet1!S71_OY1AdjustedBudget,Sheet1!S71_SA34aCode,$AC:$AC,Sheet1!S71_A5CapexCode,$AD:$AD)","v":0},{"$f":"SUMIFS(Sheet1!S71_OY2AdjustedBudget,Sheet1!S71_SA34aCode,$AC:$AC,Sheet1!S71_A5CapexCode,$AD:$AD)","v":0},null,null,null,null,null,null,null,null,null,null,null,null,null,null,null,"1080","CE"]
["Conservation Areas",null,{"$f":"SUMIFS(Sheet1!S71_OriginalBudget,Sheet1!S71_SA34aCode,$AC:$AC,Sheet1!S71_A5CapexCode,$AD:$AD)","v":0},{"$f":"SUMIFS(Sheet1!S71_SpecialAdjustedBudget,Sheet1!S71_SA34aCode,$AC:$AC,Sheet1!S71_A5CapexCode,$AD:$AD)","v":0},null,null,null,null,{"$f":"SUMIFS(Sheet1!S71_AdjustmentAmount,Sheet1!S71_SA34aCode,$AC:$AC,Sheet1!S71_A5CapexCode,$AD:$AD)","v":0},0,0,{"$f":"SUMIFS(Sheet1!S71_OY1AdjustedBudget,Sheet1!S71_SA34aCode,$AC:$AC,Sheet1!S71_A5CapexCode,$AD:$AD)","v":0},{"$f":"SUMIFS(Sheet1!S71_OY2AdjustedBudget,Sheet1!S71_SA34aCode,$AC:$AC,Sheet1!S71_A5CapexCode,$AD:$AD)","v":0},null,null,null,null,null,null,null,null,null,null,null,null,null,null,null,"1090","CE"]
["Other Heritage",null,{"$f":"SUMIFS(Sheet1!S71_OriginalBudget,Sheet1!S71_SA34aCode,$AC:$AC,Sheet1!S71_A5CapexCode,$AD:$AD)","v":0},{"$f":"SUMIFS(Sheet1!S71_SpecialAdjustedBudget,Sheet1!S71_SA34aCode,$AC:$AC,Sheet1!S71_A5CapexCode,$AD:$AD)","v":0},null,null,null,null,{"$f":"SUMIFS(Sheet1!S71_AdjustmentAmount,Sheet1!S71_SA34aCode,$AC:$AC,Sheet1!S71_A5CapexCode,$AD:$AD)","v":0},0,0,{"$f":"SUMIFS(Sheet1!S71_OY1AdjustedBudget,Sheet1!S71_SA34aCode,$AC:$AC,Sheet1!S71_A5CapexCode,$AD:$AD)","v":0},{"$f":"SUMIFS(Sheet1!S71_OY2AdjustedBudget,Sheet1!S71_SA34aCode,$AC:$AC,Sheet1!S71_A5CapexCode,$AD:$AD)","v":0},null,null,null,null,null,null,null,null,null,null,null,null,null,null,null,"1100","CE"]
[null,null,null,null,null,null,null,null,null,null,null,null,null,null,null,null,null,null,null,null,null,null,null,null,null,null,null,null,null,"CE"]
["Investment properties",null,{"$f":"+C113+C116","v":0},0,0,0,0,0,0,0,0,{"$f":"+L113+L116","v":0},{"$f":"+M113+M116","v":0},null,null,null,null,null,null,null,null,null,null,null,null,null,null,null,null,"CE"]
["Revenue Generating",null,{"$f":"SUM(C114:C115)","v":0},{"$f":"SUM(D114:D115)","v":0},{"$f":"SUM(E114:E115)","v":0},0,0,0,0,0,0,0,0,null,null,null,null,null,null,null,null,null,null,null,null,null,null,null,null,"CE"]
["Improved Property",null,{"$f":"SUMIFS(Sheet1!S71_OriginalBudget,Sheet1!S71_SA34aCode,$AC:$AC,Sheet1!S71_A5CapexCode,$AD:$AD)","v":0},{"$f":"SUMIFS(Sheet1!S71_SpecialAdjustedBudget,Sheet1!S71_SA34aCode,$AC:$AC,Sheet1!S71_A5CapexCode,$AD:$AD)","v":0},null,null,null,null,{"$f":"SUMIFS(Sheet1!S71_AdjustmentAmount,Sheet1!S71_SA34aCode,$AC:$AC,Sheet1!S71_A5CapexCode,$AD:$AD)","v":0},0,0,{"$f":"SUMIFS(Sheet1!S71_OY1AdjustedBudget,Sheet1!S71_SA34aCode,$AC:$AC,Sheet1!S71_A5CapexCode,$AD:$AD)","v":0},{"$f":"SUMIFS(Sheet1!S71_OY2AdjustedBudget,Sheet1!S71_SA34aCode,$AC:$AC,Sheet1!S71_A5CapexCode,$AD:$AD)","v":0},null,null,null,null,null,null,null,null,null,null,null,null,null,null,null,"1130","CE"]
["Unimproved Property",null,{"$f":"SUMIFS(Sheet1!S71_OriginalBudget,Sheet1!S71_SA34aCode,$AC:$AC,Sheet1!S71_A5CapexCode,$AD:$AD)","v":0},{"$f":"SUMIFS(Sheet1!S71_SpecialAdjustedBudget,Sheet1!S71_SA34aCode,$AC:$AC,Sheet1!S71_A5CapexCode,$AD:$AD)","v":0},null,null,null,null,{"$f":"SUMIFS(Sheet1!S71_AdjustmentAmount,Sheet1!S71_SA34aCode,$AC:$AC,Sheet1!S71_A5CapexCode,$AD:$AD)","v":0},0,0,{"$f":"SUMIFS(Sheet1!S71_OY1AdjustedBudget,Sheet1!S71_SA34aCode,$AC:$AC,Sheet1!S71_A5CapexCode,$AD:$AD)","v":0},{"$f":"SUMIFS(Sheet1!S71_OY2AdjustedBudget,Sheet1!S71_SA34aCode,$AC:$AC,Sheet1!S71_A5CapexCode,$AD:$AD)","v":0},null,null,null,null,null,null,null,null,null,null,null,null,null,null,null,"1140","CE"]
["Non-revenue Generating",null,{"$f":"SUM(C117:C118)","v":0},{"$f":"SUM(D117:D118)","v":0},{"$f":"SUM(E117:E118)","v":0},0,0,0,0,0,0,0,0,null,null,null,null,null,null,null,null,null,null,null,null,null,null,null,"4002","CE"]
["Improved Property",null,{"$f":"SUMIFS(Sheet1!S71_OriginalBudget,Sheet1!S71_SA34aCode,$AC:$AC,Sheet1!S71_A5CapexCode,$AD:$AD)","v":0},{"$f":"SUMIFS(Sheet1!S71_SpecialAdjustedBudget,Sheet1!S71_SA34aCode,$AC:$AC,Sheet1!S71_A5CapexCode,$AD:$AD)","v":0},null,null,null,null,{"$f":"SUMIFS(Sheet1!S71_AdjustmentAmount,Sheet1!S71_SA34aCode,$AC:$AC,Sheet1!S71_A5CapexCode,$AD:$AD)","v":0},0,0,{"$f":"SUMIFS(Sheet1!S71_OY1AdjustedBudget,Sheet1!S71_SA34aCode,$AC:$AC,Sheet1!S71_A5CapexCode,$AD:$AD)","v":0},{"$f":"SUMIFS(Sheet1!S71_OY2AdjustedBudget,Sheet1!S71_SA34aCode,$AC:$AC,Sheet1!S71_A5CapexCode,$AD:$AD)","v":0},null,null,null,null,null,null,null,null,null,null,null,null,null,null,null,"1160","CE"]
["Unimproved Property",null,{"$f":"SUMIFS(Sheet1!S71_OriginalBudget,Sheet1!S71_SA34aCode,$AC:$AC,Sheet1!S71_A5CapexCode,$AD:$AD)","v":0},{"$f":"SUMIFS(Sheet1!S71_SpecialAdjustedBudget,Sheet1!S71_SA34aCode,$AC:$AC,Sheet1!S71_A5CapexCode,$AD:$AD)","v":0},null,null,null,null,{"$f":"SUMIFS(Sheet1!S71_AdjustmentAmount,Sheet1!S71_SA34aCode,$AC:$AC,Sheet1!S71_A5CapexCode,$AD:$AD)","v":0},0,0,{"$f":"SUMIFS(Sheet1!S71_OY1AdjustedBudget,Sheet1!S71_SA34aCode,$AC:$AC,Sheet1!S71_A5CapexCode,$AD:$AD)","v":0},{"$f":"SUMIFS(Sheet1!S71_OY2AdjustedBudget,Sheet1!S71_SA34aCode,$AC:$AC,Sheet1!S71_A5CapexCode,$AD:$AD)","v":0},null,null,null,null,null,null,null,null,null,null,null,null,null,null,null,"1170","CE"]
[null,null,null,null,null,null,null,null,null,null,null,null,null,null,null,null,null,null,null,null,null,null,null,null,null,null,null,null,null,"CE"]
["Other assets",null,{"$f":"+C121+C133","v":0},{"$f":"+D121+D133","v":0},0,0,0,0,0,0,0,{"$f":"+L121+L133","v":0},{"$f":"+M121+M133","v":0},null,null,null,null,null,null,null,null,null,null,null,null,null,null,null,null,"CE"]
["Operational Buildings",null,{"$f":"SUM(C122:C132)","v":0},{"$f":"SUM(D122:D132)","v":0},0,0,0,0,0,0,0,{"$f":"SUM(L122:L132)","v":0},{"$f":"SUM(M122:M132)","v":0},null,null,null,null,null,null,null,null,null,null,null,null,null,null,null,null,"CE"]
["Municipal Offices",null,{"$f":"SUMIFS(Sheet1!S71_OriginalBudget,Sheet1!S71_SA34aCode,$AC:$AC,Sheet1!S71_A5CapexCode,$AD:$AD)","v":0},{"$f":"SUMIFS(Sheet1!S71_SpecialAdjustedBudget,Sheet1!S71_SA34aCode,$AC:$AC,Sheet1!S71_A5CapexCode,$AD:$AD)","v":0},null,null,null,null,{"$f":"SUMIFS(Sheet1!S71_AdjustmentAmount,Sheet1!S71_SA34aCode,$AC:$AC,Sheet1!S71_A5CapexCode,$AD:$AD)","v":0},0,0,{"$f":"SUMIFS(Sheet1!S71_OY1AdjustedBudget,Sheet1!S71_SA34aCode,$AC:$AC,Sheet1!S71_A5CapexCode,$AD:$AD)","v":0},{"$f":"SUMIFS(Sheet1!S71_OY2AdjustedBudget,Sheet1!S71_SA34aCode,$AC:$AC,Sheet1!S71_A5CapexCode,$AD:$AD)","v":0},null,null,null,null,null,null,null,null,null,null,null,null,null,null,null,"1200","CE"]
["Pay/Enquiry Points",null,{"$f":"SUMIFS(Sheet1!S71_OriginalBudget,Sheet1!S71_SA34aCode,$AC:$AC,Sheet1!S71_A5CapexCode,$AD:$AD)","v":0},{"$f":"SUMIFS(Sheet1!S71_SpecialAdjustedBudget,Sheet1!S71_SA34aCode,$AC:$AC,Sheet1!S71_A5CapexCode,$AD:$AD)","v":0},null,null,null,null,{"$f":"SUMIFS(Sheet1!S71_AdjustmentAmount,Sheet1!S71_SA34aCode,$AC:$AC,Sheet1!S71_A5CapexCode,$AD:$AD)","v":0},0,0,{"$f":"SUMIFS(Sheet1!S71_OY1AdjustedBudget,Sheet1!S71_SA34aCode,$AC:$AC,Sheet1!S71_A5CapexCode,$AD:$AD)","v":0},{"$f":"SUMIFS(Sheet1!S71_OY2AdjustedBudget,Sheet1!S71_SA34aCode,$AC:$AC,Sheet1!S71_A5CapexCode,$AD:$AD)","v":0},null,null,null,null,null,null,null,null,null,null,null,null,null,null,null,"1210","CE"]
["Building Plan Offices",null,{"$f":"SUMIFS(Sheet1!S71_OriginalBudget,Sheet1!S71_SA34aCode,$AC:$AC,Sheet1!S71_A5CapexCode,$AD:$AD)","v":0},{"$f":"SUMIFS(Sheet1!S71_SpecialAdjustedBudget,Sheet1!S71_SA34aCode,$AC:$AC,Sheet1!S71_A5CapexCode,$AD:$AD)","v":0},null,null,null,null,{"$f":"SUMIFS(Sheet1!S71_AdjustmentAmount,Sheet1!S71_SA34aCode,$AC:$AC,Sheet1!S71_A5CapexCode,$AD:$AD)","v":0},0,0,{"$f":"SUMIFS(Sheet1!S71_OY1AdjustedBudget,Sheet1!S71_SA34aCode,$AC:$AC,Sheet1!S71_A5CapexCode,$AD:$AD)","v":0},{"$f":"SUMIFS(Sheet1!S71_OY2AdjustedBudget,Sheet1!S71_SA34aCode,$AC:$AC,Sheet1!S71_A5CapexCode,$AD:$AD)","v":0},null,null,null,null,null,null,null,null,null,null,null,null,null,null,null,"1220","CE"]
["Workshops",null,{"$f":"SUMIFS(Sheet1!S71_OriginalBudget,Sheet1!S71_SA34aCode,$AC:$AC,Sheet1!S71_A5CapexCode,$AD:$AD)","v":0},{"$f":"SUMIFS(Sheet1!S71_SpecialAdjustedBudget,Sheet1!S71_SA34aCode,$AC:$AC,Sheet1!S71_A5CapexCode,$AD:$AD)","v":0},null,null,null,null,{"$f":"SUMIFS(Sheet1!S71_AdjustmentAmount,Sheet1!S71_SA34aCode,$AC:$AC,Sheet1!S71_A5CapexCode,$AD:$AD)","v":0},0,0,{"$f":"SUMIFS(Sheet1!S71_OY1AdjustedBudget,Sheet1!S71_SA34aCode,$AC:$AC,Sheet1!S71_A5CapexCode,$AD:$AD)","v":0},{"$f":"SUMIFS(Sheet1!S71_OY2AdjustedBudget,Sheet1!S71_SA34aCode,$AC:$AC,Sheet1!S71_A5CapexCode,$AD:$AD)","v":0},null,null,null,null,null,null,null,null,null,null,null,null,null,null,null,"1230","CE"]
["Yards",null,{"$f":"SUMIFS(Sheet1!S71_OriginalBudget,Sheet1!S71_SA34aCode,$AC:$AC,Sheet1!S71_A5CapexCode,$AD:$AD)","v":0},{"$f":"SUMIFS(Sheet1!S71_SpecialAdjustedBudget,Sheet1!S71_SA34aCode,$AC:$AC,Sheet1!S71_A5CapexCode,$AD:$AD)","v":0},null,null,null,null,{"$f":"SUMIFS(Sheet1!S71_AdjustmentAmount,Sheet1!S71_SA34aCode,$AC:$AC,Sheet1!S71_A5CapexCode,$AD:$AD)","v":0},0,0,{"$f":"SUMIFS(Sheet1!S71_OY1AdjustedBudget,Sheet1!S71_SA34aCode,$AC:$AC,Sheet1!S71_A5CapexCode,$AD:$AD)","v":0},{"$f":"SUMIFS(Sheet1!S71_OY2AdjustedBudget,Sheet1!S71_SA34aCode,$AC:$AC,Sheet1!S71_A5CapexCode,$AD:$AD)","v":0},null,null,null,null,null,null,null,null,null,null,null,null,null,null,null,"1240","CE"]
["Stores",null,{"$f":"SUMIFS(Sheet1!S71_OriginalBudget,Sheet1!S71_SA34aCode,$AC:$AC,Sheet1!S71_A5CapexCode,$AD:$AD)","v":0},{"$f":"SUMIFS(Sheet1!S71_SpecialAdjustedBudget,Sheet1!S71_SA34aCode,$AC:$AC,Sheet1!S71_A5CapexCode,$AD:$AD)","v":0},null,null,null,null,{"$f":"SUMIFS(Sheet1!S71_AdjustmentAmount,Sheet1!S71_SA34aCode,$AC:$AC,Sheet1!S71_A5CapexCode,$AD:$AD)","v":0},0,0,{"$f":"SUMIFS(Sheet1!S71_OY1AdjustedBudget,Sheet1!S71_SA34aCode,$AC:$AC,Sheet1!S71_A5CapexCode,$AD:$AD)","v":0},{"$f":"SUMIFS(Sheet1!S71_OY2AdjustedBudget,Sheet1!S71_SA34aCode,$AC:$AC,Sheet1!S71_A5CapexCode,$AD:$AD)","v":0},null,null,null,null,null,null,null,null,null,null,null,null,null,null,null,"1250","CE"]
["Laboratories",null,{"$f":"SUMIFS(Sheet1!S71_OriginalBudget,Sheet1!S71_SA34aCode,$AC:$AC,Sheet1!S71_A5CapexCode,$AD:$AD)","v":0},{"$f":"SUMIFS(Sheet1!S71_SpecialAdjustedBudget,Sheet1!S71_SA34aCode,$AC:$AC,Sheet1!S71_A5CapexCode,$AD:$AD)","v":0},null,null,null,null,{"$f":"SUMIFS(Sheet1!S71_AdjustmentAmount,Sheet1!S71_SA34aCode,$AC:$AC,Sheet1!S71_A5CapexCode,$AD:$AD)","v":0},0,0,{"$f":"SUMIFS(Sheet1!S71_OY1AdjustedBudget,Sheet1!S71_SA34aCode,$AC:$AC,Sheet1!S71_A5CapexCode,$AD:$AD)","v":0},{"$f":"SUMIFS(Sheet1!S71_OY2AdjustedBudget,Sheet1!S71_SA34aCode,$AC:$AC,Sheet1!S71_A5CapexCode,$AD:$AD)","v":0},null,null,null,null,null,null,null,null,null,null,null,null,null,null,null,"1260","CE"]
["Training Centres",null,{"$f":"SUMIFS(Sheet1!S71_OriginalBudget,Sheet1!S71_SA34aCode,$AC:$AC,Sheet1!S71_A5CapexCode,$AD:$AD)","v":0},{"$f":"SUMIFS(Sheet1!S71_SpecialAdjustedBudget,Sheet1!S71_SA34aCode,$AC:$AC,Sheet1!S71_A5CapexCode,$AD:$AD)","v":0},null,null,null,null,{"$f":"SUMIFS(Sheet1!S71_AdjustmentAmount,Sheet1!S71_SA34aCode,$AC:$AC,Sheet1!S71_A5CapexCode,$AD:$AD)","v":0},0,0,{"$f":"SUMIFS(Sheet1!S71_OY1AdjustedBudget,Sheet1!S71_SA34aCode,$AC:$AC,Sheet1!S71_A5CapexCode,$AD:$AD)","v":0},{"$f":"SUMIFS(Sheet1!S71_OY2AdjustedBudget,Sheet1!S71_SA34aCode,$AC:$AC,Sheet1!S71_A5CapexCode,$AD:$AD)","v":0},null,null,null,null,null,null,null,null,null,null,null,null,null,null,null,"1270","CE"]
["Manufacturing Plant",null,{"$f":"SUMIFS(Sheet1!S71_OriginalBudget,Sheet1!S71_SA34aCode,$AC:$AC,Sheet1!S71_A5CapexCode,$AD:$AD)","v":0},{"$f":"SUMIFS(Sheet1!S71_SpecialAdjustedBudget,Sheet1!S71_SA34aCode,$AC:$AC,Sheet1!S71_A5CapexCode,$AD:$AD)","v":0},null,null,null,null,{"$f":"SUMIFS(Sheet1!S71_AdjustmentAmount,Sheet1!S71_SA34aCode,$AC:$AC,Sheet1!S71_A5CapexCode,$AD:$AD)","v":0},0,0,{"$f":"SUMIFS(Sheet1!S71_OY1AdjustedBudget,Sheet1!S71_SA34aCode,$AC:$AC,Sheet1!S71_A5CapexCode,$AD:$AD)","v":0},{"$f":"SUMIFS(Sheet1!S71_OY2AdjustedBudget,Sheet1!S71_SA34aCode,$AC:$AC,Sheet1!S71_A5CapexCode,$AD:$AD)","v":0},null,null,null,null,null,null,null,null,null,null,null,null,null,null,null,"1280","CE"]
["Depots",null,{"$f":"SUMIFS(Sheet1!S71_OriginalBudget,Sheet1!S71_SA34aCode,$AC:$AC,Sheet1!S71_A5CapexCode,$AD:$AD)","v":0},{"$f":"SUMIFS(Sheet1!S71_SpecialAdjustedBudget,Sheet1!S71_SA34aCode,$AC:$AC,Sheet1!S71_A5CapexCode,$AD:$AD)","v":0},null,null,null,null,{"$f":"SUMIFS(Sheet1!S71_AdjustmentAmount,Sheet1!S71_SA34aCode,$AC:$AC,Sheet1!S71_A5CapexCode,$AD:$AD)","v":0},0,0,{"$f":"SUMIFS(Sheet1!S71_OY1AdjustedBudget,Sheet1!S71_SA34aCode,$AC:$AC,Sheet1!S71_A5CapexCode,$AD:$AD)","v":0},{"$f":"SUMIFS(Sheet1!S71_OY2AdjustedBudget,Sheet1!S71_SA34aCode,$AC:$AC,Sheet1!S71_A5CapexCode,$AD:$AD)","v":0},null,null,null,null,null,null,null,null,null,null,null,null,null,null,null,"1290","CE"]
["Capital Spares",null,{"$f":"SUMIFS(Sheet1!S71_OriginalBudget,Sheet1!S71_SA34aCode,$AC:$AC,Sheet1!S71_A5CapexCode,$AD:$AD)","v":0},{"$f":"SUMIFS(Sheet1!S71_SpecialAdjustedBudget,Sheet1!S71_SA34aCode,$AC:$AC,Sheet1!S71_A5CapexCode,$AD:$AD)","v":0},null,null,null,null,{"$f":"SUMIFS(Sheet1!S71_AdjustmentAmount,Sheet1!S71_SA34aCode,$AC:$AC,Sheet1!S71_A5CapexCode,$AD:$AD)","v":0},0,0,{"$f":"SUMIFS(Sheet1!S71_OY1AdjustedBudget,Sheet1!S71_SA34aCode,$AC:$AC,Sheet1!S71_A5CapexCode,$AD:$AD)","v":0},{"$f":"SUMIFS(Sheet1!S71_OY2AdjustedBudget,Sheet1!S71_SA34aCode,$AC:$AC,Sheet1!S71_A5CapexCode,$AD:$AD)","v":0},null,null,null,null,null,null,null,null,null,null,null,null,null,null,null,"1300","CE"]
["Housing",null,{"$f":"SUM(C134:C136)","v":0},{"$f":"SUM(D134:D136)","v":0},{"$f":"SUM(E134:E136)","v":0},0,0,0,0,0,0,0,0,null,null,null,null,null,null,null,null,null,null,null,null,null,null,null,null,"CE"]
["Staff Housing",null,{"$f":"SUMIFS(Sheet1!S71_OriginalBudget,Sheet1!S71_SA34aCode,$AC:$AC,Sheet1!S71_A5CapexCode,$AD:$AD)","v":0},{"$f":"SUMIFS(Sheet1!S71_SpecialAdjustedBudget,Sheet1!S71_SA34aCode,$AC:$AC,Sheet1!S71_A5CapexCode,$AD:$AD)","v":0},null,null,null,null,{"$f":"SUMIFS(Sheet1!S71_AdjustmentAmount,Sheet1!S71_SA34aCode,$AC:$AC,Sheet1!S71_A5CapexCode,$AD:$AD)","v":0},0,0,{"$f":"SUMIFS(Sheet1!S71_OY1AdjustedBudget,Sheet1!S71_SA34aCode,$AC:$AC,Sheet1!S71_A5CapexCode,$AD:$AD)","v":0},{"$f":"SUMIFS(Sheet1!S71_OY2AdjustedBudget,Sheet1!S71_SA34aCode,$AC:$AC,Sheet1!S71_A5CapexCode,$AD:$AD)","v":0},null,null,null,null,null,null,null,null,null,null,null,null,null,null,null,"1320","CE"]
["Social Housing",null,{"$f":"SUMIFS(Sheet1!S71_OriginalBudget,Sheet1!S71_SA34aCode,$AC:$AC,Sheet1!S71_A5CapexCode,$AD:$AD)","v":0},{"$f":"SUMIFS(Sheet1!S71_SpecialAdjustedBudget,Sheet1!S71_SA34aCode,$AC:$AC,Sheet1!S71_A5CapexCode,$AD:$AD)","v":0},null,null,null,null,{"$f":"SUMIFS(Sheet1!S71_AdjustmentAmount,Sheet1!S71_SA34aCode,$AC:$AC,Sheet1!S71_A5CapexCode,$AD:$AD)","v":0},0,0,{"$f":"SUMIFS(Sheet1!S71_OY1AdjustedBudget,Sheet1!S71_SA34aCode,$AC:$AC,Sheet1!S71_A5CapexCode,$AD:$AD)","v":0},{"$f":"SUMIFS(Sheet1!S71_OY2AdjustedBudget,Sheet1!S71_SA34aCode,$AC:$AC,Sheet1!S71_A5CapexCode,$AD:$AD)","v":0},null,null,null,null,null,null,null,null,null,null,null,null,null,null,null,"1330","CE"]
["Capital Spares",null,{"$f":"SUMIFS(Sheet1!S71_OriginalBudget,Sheet1!S71_SA34aCode,$AC:$AC,Sheet1!S71_A5CapexCode,$AD:$AD)","v":0},{"$f":"SUMIFS(Sheet1!S71_SpecialAdjustedBudget,Sheet1!S71_SA34aCode,$AC:$AC,Sheet1!S71_A5CapexCode,$AD:$AD)","v":0},null,null,null,null,{"$f":"SUMIFS(Sheet1!S71_AdjustmentAmount,Sheet1!S71_SA34aCode,$AC:$AC,Sheet1!S71_A5CapexCode,$AD:$AD)","v":0},0,0,{"$f":"SUMIFS(Sheet1!S71_OY1AdjustedBudget,Sheet1!S71_SA34aCode,$AC:$AC,Sheet1!S71_A5CapexCode,$AD:$AD)","v":0},{"$f":"SUMIFS(Sheet1!S71_OY2AdjustedBudget,Sheet1!S71_SA34aCode,$AC:$AC,Sheet1!S71_A5CapexCode,$AD:$AD)","v":0},null,null,null,null,null,null,null,null,null,null,null,null,null,null,null,"1340","CE"]
[null,null,null,null,null,null,null,null,null,null,null,null,null,null,null,null,null,null,null,null,null,null,null,null,null,null,null,null,null,"CE"]
["Biological or Cultivated Assets",null,{"$f":"SUM(C139:C139)","v":0},0,0,0,0,0,0,{"$f":"SUM(E138:I138)","v":0},{"$f":"IF(D138=0,C138+J138,D138+J138)","v":0},0,0,null,null,null,null,null,null,null,null,null,null,null,null,null,null,null,null,"CE"]
["Biological or Cultivated Assets",null,{"$f":"SUMIFS(Sheet1!S71_OriginalBudget,Sheet1!S71_SA34aCode,$AC:$AC,Sheet1!S71_A5CapexCode,$AD:$AD)","v":0},{"$f":"SUMIFS(Sheet1!S71_SpecialAdjustedBudget,Sheet1!S71_SA34aCode,$AC:$AC,Sheet1!S71_A5CapexCode,$AD:$AD)","v":0},null,null,null,null,{"$f":"SUMIFS(Sheet1!S71_AdjustmentAmount,Sheet1!S71_SA34aCode,$AC:$AC,Sheet1!S71_A5CapexCode,$AD:$AD)","v":0},0,0,{"$f":"SUMIFS(Sheet1!S71_OY1AdjustedBudget,Sheet1!S71_SA34aCode,$AC:$AC,Sheet1!S71_A5CapexCode,$AD:$AD)","v":0},{"$f":"SUMIFS(Sheet1!S71_OY2AdjustedBudget,Sheet1!S71_SA34aCode,$AC:$AC,Sheet1!S71_A5CapexCode,$AD:$AD)","v":0},null,null,null,null,null,null,null,null,null,null,null,null,null,null,null,"1360","CE"]
[null,null,null,null,null,null,null,null,null,null,null,null,null,null,null,null,null,null,null,null,null,null,null,null,null,null,null,null,null,"CE"]
["Intangible Assets",null,{"$f":"SUM(C142:C143)","v":1067800},{"$f":"SUM(D142:D143)","v":0},0,0,0,0,-480000,-480000,587800,{"$f":"SUM(L142:L143)","v":522500},{"$f":"SUM(M142:M143)","v":546013},null,null,null,null,null,null,null,null,null,null,null,null,null,null,null,null,"CE"]
["Servitudes",null,{"$f":"SUMIFS(Sheet1!S71_OriginalBudget,Sheet1!S71_SA34aCode,$AC:$AC,Sheet1!S71_A5CapexCode,$AD:$AD)","v":0},{"$f":"SUMIFS(Sheet1!S71_SpecialAdjustedBudget,Sheet1!S71_SA34aCode,$AC:$AC,Sheet1!S71_A5CapexCode,$AD:$AD)","v":0},null,null,null,null,{"$f":"SUMIFS(Sheet1!S71_AdjustmentAmount,Sheet1!S71_SA34aCode,$AC:$AC,Sheet1!S71_A5CapexCode,$AD:$AD)","v":0},0,0,{"$f":"SUMIFS(Sheet1!S71_OY1AdjustedBudget,Sheet1!S71_SA34aCode,$AC:$AC,Sheet1!S71_A5CapexCode,$AD:$AD)","v":0},{"$f":"SUMIFS(Sheet1!S71_OY2AdjustedBudget,Sheet1!S71_SA34aCode,$AC:$AC,Sheet1!S71_A5CapexCode,$AD:$AD)","v":0},null,null,null,null,null,null,null,null,null,null,null,null,null,null,null,"1380","CE"]
["Licences and Rights",null,{"$f":"SUM(C144:C149)","v":1067800},{"$f":"SUM(D144:D149)","v":0},0,0,0,0,-480000,-480000,587800,{"$f":"SUM(L144:L149)","v":522500},{"$f":"SUM(M144:M149)","v":546013},null,null,null,null,null,null,null,null,null,null,null,null,null,null,null,null,"CE"]
["Water Rights",null,{"$f":"SUMIFS(Sheet1!S71_OriginalBudget,Sheet1!S71_SA34aCode,$AC:$AC,Sheet1!S71_A5CapexCode,$AD:$AD)","v":0},{"$f":"SUMIFS(Sheet1!S71_SpecialAdjustedBudget,Sheet1!S71_SA34aCode,$AC:$AC,Sheet1!S71_A5CapexCode,$AD:$AD)","v":0},null,null,null,null,{"$f":"SUMIFS(Sheet1!S71_AdjustmentAmount,Sheet1!S71_SA34aCode,$AC:$AC,Sheet1!S71_A5CapexCode,$AD:$AD)","v":0},0,0,{"$f":"SUMIFS(Sheet1!S71_OY1AdjustedBudget,Sheet1!S71_SA34aCode,$AC:$AC,Sheet1!S71_A5CapexCode,$AD:$AD)","v":0},{"$f":"SUMIFS(Sheet1!S71_OY2AdjustedBudget,Sheet1!S71_SA34aCode,$AC:$AC,Sheet1!S71_A5CapexCode,$AD:$AD)","v":0},null,null,null,null,null,null,null,null,null,null,null,null,null,null,null,"1400","CE"]
["Effluent Licenses",null,{"$f":"SUMIFS(Sheet1!S71_OriginalBudget,Sheet1!S71_SA34aCode,$AC:$AC,Sheet1!S71_A5CapexCode,$AD:$AD)","v":0},{"$f":"SUMIFS(Sheet1!S71_SpecialAdjustedBudget,Sheet1!S71_SA34aCode,$AC:$AC,Sheet1!S71_A5CapexCode,$AD:$AD)","v":0},null,null,null,null,{"$f":"SUMIFS(Sheet1!S71_AdjustmentAmount,Sheet1!S71_SA34aCode,$AC:$AC,Sheet1!S71_A5CapexCode,$AD:$AD)","v":0},0,0,{"$f":"SUMIFS(Sheet1!S71_OY1AdjustedBudget,Sheet1!S71_SA34aCode,$AC:$AC,Sheet1!S71_A5CapexCode,$AD:$AD)","v":0},{"$f":"SUMIFS(Sheet1!S71_OY2AdjustedBudget,Sheet1!S71_SA34aCode,$AC:$AC,Sheet1!S71_A5CapexCode,$AD:$AD)","v":0},null,null,null,null,null,null,null,null,null,null,null,null,null,null,null,"1410","CE"]
["Solid Waste Licenses",null,{"$f":"SUMIFS(Sheet1!S71_OriginalBudget,Sheet1!S71_SA34aCode,$AC:$AC,Sheet1!S71_A5CapexCode,$AD:$AD)","v":0},{"$f":"SUMIFS(Sheet1!S71_SpecialAdjustedBudget,Sheet1!S71_SA34aCode,$AC:$AC,Sheet1!S71_A5CapexCode,$AD:$AD)","v":0},null,null,null,null,{"$f":"SUMIFS(Sheet1!S71_AdjustmentAmount,Sheet1!S71_SA34aCode,$AC:$AC,Sheet1!S71_A5CapexCode,$AD:$AD)","v":0},0,0,{"$f":"SUMIFS(Sheet1!S71_OY1AdjustedBudget,Sheet1!S71_SA34aCode,$AC:$AC,Sheet1!S71_A5CapexCode,$AD:$AD)","v":0},{"$f":"SUMIFS(Sheet1!S71_OY2AdjustedBudget,Sheet1!S71_SA34aCode,$AC:$AC,Sheet1!S71_A5CapexCode,$AD:$AD)","v":0},null,null,null,null,null,null,null,null,null,null,null,null,null,null,null,"1420","CE"]
["Computer Software and Applications",null,{"$f":"SUMIFS(Sheet1!S71_OriginalBudget,Sheet1!S71_SA34aCode,$AC:$AC,Sheet1!S71_A5CapexCode,$AD:$AD)","v":1067800},{"$f":"SUMIFS(Sheet1!S71_SpecialAdjustedBudget,Sheet1!S71_SA34aCode,$AC:$AC,Sheet1!S71_A5CapexCode,$AD:$AD)","v":0},null,null,null,null,{"$f":"SUMIFS(Sheet1!S71_AdjustmentAmount,Sheet1!S71_SA34aCode,$AC:$AC,Sheet1!S71_A5CapexCode,$AD:$AD)","v":-480000},-480000,587800,{"$f":"SUMIFS(Sheet1!S71_OY1AdjustedBudget,Sheet1!S71_SA34aCode,$AC:$AC,Sheet1!S71_A5CapexCode,$AD:$AD)","v":522500},{"$f":"SUMIFS(Sheet1!S71_OY2AdjustedBudget,Sheet1!S71_SA34aCode,$AC:$AC,Sheet1!S71_A5CapexCode,$AD:$AD)","v":546013},null,null,null,null,null,null,null,null,null,null,null,null,null,null,null,"1430","CE"]
["Load Settlement Software Applications",null,{"$f":"SUMIFS(Sheet1!S71_OriginalBudget,Sheet1!S71_SA34aCode,$AC:$AC,Sheet1!S71_A5CapexCode,$AD:$AD)","v":0},{"$f":"SUMIFS(Sheet1!S71_SpecialAdjustedBudget,Sheet1!S71_SA34aCode,$AC:$AC,Sheet1!S71_A5CapexCode,$AD:$AD)","v":0},null,null,null,null,{"$f":"SUMIFS(Sheet1!S71_AdjustmentAmount,Sheet1!S71_SA34aCode,$AC:$AC,Sheet1!S71_A5CapexCode,$AD:$AD)","v":0},0,0,{"$f":"SUMIFS(Sheet1!S71_OY1AdjustedBudget,Sheet1!S71_SA34aCode,$AC:$AC,Sheet1!S71_A5CapexCode,$AD:$AD)","v":0},{"$f":"SUMIFS(Sheet1!S71_OY2AdjustedBudget,Sheet1!S71_SA34aCode,$AC:$AC,Sheet1!S71_A5CapexCode,$AD:$AD)","v":0},null,null,null,null,null,null,null,null,null,null,null,null,null,null,null,"1440","CE"]
["Unspecified",null,{"$f":"SUMIFS(Sheet1!S71_OriginalBudget,Sheet1!S71_SA34aCode,$AC:$AC,Sheet1!S71_A5CapexCode,$AD:$AD)","v":0},{"$f":"SUMIFS(Sheet1!S71_SpecialAdjustedBudget,Sheet1!S71_SA34aCode,$AC:$AC,Sheet1!S71_A5CapexCode,$AD:$AD)","v":0},null,null,null,null,{"$f":"SUMIFS(Sheet1!S71_AdjustmentAmount,Sheet1!S71_SA34aCode,$AC:$AC,Sheet1!S71_A5CapexCode,$AD:$AD)","v":0},0,0,{"$f":"SUMIFS(Sheet1!S71_OY1AdjustedBudget,Sheet1!S71_SA34aCode,$AC:$AC,Sheet1!S71_A5CapexCode,$AD:$AD)","v":0},{"$f":"SUMIFS(Sheet1!S71_OY2AdjustedBudget,Sheet1!S71_SA34aCode,$AC:$AC,Sheet1!S71_A5CapexCode,$AD:$AD)","v":0},null,null,null,null,null,null,null,null,null,null,null,null,null,null,null,"1450","CE"]
[null,null,null,null,null,null,null,null,null,null,null,null,null,null,null,null,null,null,null,null,null,null,null,null,null,null,null,null,null,"CE"]
["Computer Equipment",null,{"$f":"SUM(C152:C152)","v":300000},0,0,0,0,0,-150000,-150000,150000,209000,218405,null,null,null,null,null,null,null,null,null,null,null,null,null,null,null,null,"CE"]
["Computer Equipment",null,{"$f":"SUMIFS(Sheet1!S71_OriginalBudget,Sheet1!S71_SA34aCode,$AC:$AC,Sheet1!S71_A5CapexCode,$AD:$AD)","v":300000},{"$f":"SUMIFS(Sheet1!S71_SpecialAdjustedBudget,Sheet1!S71_SA34aCode,$AC:$AC,Sheet1!S71_A5CapexCode,$AD:$AD)","v":0},null,null,null,null,{"$f":"SUMIFS(Sheet1!S71_AdjustmentAmount,Sheet1!S71_SA34aCode,$AC:$AC,Sheet1!S71_A5CapexCode,$AD:$AD)","v":-150000},-150000,150000,{"$f":"SUMIFS(Sheet1!S71_OY1AdjustedBudget,Sheet1!S71_SA34aCode,$AC:$AC,Sheet1!S71_A5CapexCode,$AD:$AD)","v":209000},{"$f":"SUMIFS(Sheet1!S71_OY2AdjustedBudget,Sheet1!S71_SA34aCode,$AC:$AC,Sheet1!S71_A5CapexCode,$AD:$AD)","v":218405},null,null,null,null,null,null,null,null,null,null,null,null,null,null,null,"1470","CE"]
[null,null,null,null,null,null,null,null,null,null,null,null,null,null,null,null,null,null,null,null,null,null,null,null,null,null,null,null,null,"CE"]
["Furniture and Office Equipment",null,{"$f":"SUM(C155:C155)","v":522500},0,0,0,0,0,-222500,-222500,300000,522500,546013,null,null,null,null,null,null,null,null,null,null,null,null,null,null,null,null,"CE"]
["Furniture and Office Equipment",null,{"$f":"SUMIFS(Sheet1!S71_OriginalBudget,Sheet1!S71_SA34aCode,$AC:$AC,Sheet1!S71_A5CapexCode,$AD:$AD)","v":522500},{"$f":"SUMIFS(Sheet1!S71_SpecialAdjustedBudget,Sheet1!S71_SA34aCode,$AC:$AC,Sheet1!S71_A5CapexCode,$AD:$AD)","v":0},null,null,null,null,{"$f":"SUMIFS(Sheet1!S71_AdjustmentAmount,Sheet1!S71_SA34aCode,$AC:$AC,Sheet1!S71_A5CapexCode,$AD:$AD)","v":-222500},-222500,300000,{"$f":"SUMIFS(Sheet1!S71_OY1AdjustedBudget,Sheet1!S71_SA34aCode,$AC:$AC,Sheet1!S71_A5CapexCode,$AD:$AD)","v":522500},{"$f":"SUMIFS(Sheet1!S71_OY2AdjustedBudget,Sheet1!S71_SA34aCode,$AC:$AC,Sheet1!S71_A5CapexCode,$AD:$AD)","v":546013},null,null,null,null,null,null,null,null,null,null,null,null,null,null,null,"1490","CE"]
[null,null,null,null,null,null,null,null,null,null,null,null,null,null,null,null,null,null,null,null,null,null,null,null,null,null,null,null,null,"CE"]
["Machinery and Equipment",null,{"$f":"SUM(C158:C158)","v":2317500},0,0,0,0,0,-377500,-377500,1940000,1776500,1856443,null,null,null,null,null,null,null,null,null,null,null,null,null,null,null,null,"CE"]
["Machinery and Equipment",null,{"$f":"SUMIFS(Sheet1!S71_OriginalBudget,Sheet1!S71_SA34aCode,$AC:$AC,Sheet1!S71_A5CapexCode,$AD:$AD)","v":2317500},{"$f":"SUMIFS(Sheet1!S71_SpecialAdjustedBudget,Sheet1!S71_SA34aCode,$AC:$AC,Sheet1!S71_A5CapexCode,$AD:$AD)","v":0},null,null,null,null,{"$f":"SUMIFS(Sheet1!S71_AdjustmentAmount,Sheet1!S71_SA34aCode,$AC:$AC,Sheet1!S71_A5CapexCode,$AD:$AD)","v":-377500},-377500,1940000,{"$f":"SUMIFS(Sheet1!S71_OY1AdjustedBudget,Sheet1!S71_SA34aCode,$AC:$AC,Sheet1!S71_A5CapexCode,$AD:$AD)","v":1776500},{"$f":"SUMIFS(Sheet1!S71_OY2AdjustedBudget,Sheet1!S71_SA34aCode,$AC:$AC,Sheet1!S71_A5CapexCode,$AD:$AD)","v":1856443},null,null,null,null,null,null,null,null,null,null,null,null,null,null,null,"1510","CE"]
[null,null,null,null,null,null,null,null,null,null,null,null,null,null,null,null,null,null,null,null,null,null,null,null,null,null,null,null,null,"CE"]
["Transport Assets",null,{"$f":"SUM(C161:C161)","v":522500},0,0,0,0,0,880000,880000,1402500,522500,546013,null,null,null,null,null,null,null,null,null,null,null,null,null,null,null,null,"CE"]
["Transport Assets",null,{"$f":"SUMIFS(Sheet1!S71_OriginalBudget,Sheet1!S71_SA34aCode,$AC:$AC,Sheet1!S71_A5CapexCode,$AD:$AD)","v":522500},{"$f":"SUMIFS(Sheet1!S71_SpecialAdjustedBudget,Sheet1!S71_SA34aCode,$AC:$AC,Sheet1!S71_A5CapexCode,$AD:$AD)","v":0},null,null,null,null,{"$f":"SUMIFS(Sheet1!S71_AdjustmentAmount,Sheet1!S71_SA34aCode,$AC:$AC,Sheet1!S71_A5CapexCode,$AD:$AD)","v":880000},880000,1402500,{"$f":"SUMIFS(Sheet1!S71_OY1AdjustedBudget,Sheet1!S71_SA34aCode,$AC:$AC,Sheet1!S71_A5CapexCode,$AD:$AD)","v":522500},{"$f":"SUMIFS(Sheet1!S71_OY2AdjustedBudget,Sheet1!S71_SA34aCode,$AC:$AC,Sheet1!S71_A5CapexCode,$AD:$AD)","v":546013},null,null,null,null,null,null,null,null,null,null,null,null,null,null,null,"1530","CE"]
[null,null,null,null,null,null,null,null,null,null,null,{"$f":"SUMIFS(Sheet1!S71_OY2AdjustedBudget,Sheet1!S71_SA34aCode,$AC:$AC,Sheet1!S71_A5CapexCode,$AD:$AD)","v":0},null,null,null,null,null,null,null,null,null,null,null,null,null,null,null,null,null,"CE"]
["Land",null,{"$f":"SUM(C164:C164)","v":0},0,0,0,0,0,0,0,0,0,0,null,null,null,null,null,null,null,null,null,null,null,null,null,null,null,null,"CE"]
["Land",null,{"$f":"SUMIFS(Sheet1!S71_OriginalBudget,Sheet1!S71_SA34aCode,$AC:$AC,Sheet1!S71_A5CapexCode,$AD:$AD)","v":0},{"$f":"SUMIFS(Sheet1!S71_SpecialAdjustedBudget,Sheet1!S71_SA34aCode,$AC:$AC,Sheet1!S71_A5CapexCode,$AD:$AD)","v":0},null,null,null,null,{"$f":"SUMIFS(Sheet1!S71_AdjustmentAmount,Sheet1!S71_SA34aCode,$AC:$AC,Sheet1!S71_A5CapexCode,$AD:$AD)","v":0},0,0,{"$f":"SUMIFS(Sheet1!S71_OY1AdjustedBudget,Sheet1!S71_SA34aCode,$AC:$AC,Sheet1!S71_A5CapexCode,$AD:$AD)","v":0},{"$f":"SUMIFS(Sheet1!S71_OY2AdjustedBudget,Sheet1!S71_SA34aCode,$AC:$AC,Sheet1!S71_A5CapexCode,$AD:$AD)","v":0},null,null,null,null,null,null,null,null,null,null,null,null,null,null,null,"1550","CE"]
[null,null,null,null,null,null,null,null,null,null,null,null,null,null,null,null,null,null,null,null,null,null,null,null,null,null,null,null,null,"CE"]
["Zoo's, Marine and Non-biological Animals",null,{"$f":"SUM(C167:C167)","v":0},0,0,0,0,0,0,0,0,0,0,null,null,null,null,null,null,null,null,null,null,null,null,null,null,null,null,"CE"]
["Zoo's, Marine and Non-biological Animals",null,{"$f":"SUMIFS(Sheet1!S71_OriginalBudget,Sheet1!S71_SA34aCode,$AC:$AC,Sheet1!S71_A5CapexCode,$AD:$AD)","v":0},{"$f":"SUMIFS(Sheet1!S71_SpecialAdjustedBudget,Sheet1!S71_SA34aCode,$AC:$AC,Sheet1!S71_A5CapexCode,$AD:$AD)","v":0},null,null,null,null,{"$f":"SUMIFS(Sheet1!S71_AdjustmentAmount,Sheet1!S71_SA34aCode,$AC:$AC,Sheet1!S71_A5CapexCode,$AD:$AD)","v":0},0,0,{"$f":"SUMIFS(Sheet1!S71_OY1AdjustedBudget,Sheet1!S71_SA34aCode,$AC:$AC,Sheet1!S71_A5CapexCode,$AD:$AD)","v":0},{"$f":"SUMIFS(Sheet1!S71_OY2AdjustedBudget,Sheet1!S71_SA34aCode,$AC:$AC,Sheet1!S71_A5CapexCode,$AD:$AD)","v":0},null,null,null,null,null,null,null,null,null,null,null,null,null,null,null,"1570","CE"]
[null,null,null,null,null,null,null,null,null,null,null,null,null,null,null,null,null,null,null,null,null,null,null,null,null,null,null,null,null,"CE"]
["Total Capital Expenditure on new assets to be adjusted",1,{"$f":"C8+C76+C105+C112+C120+C151+C138+C141+C154+C157+C160+C163+C166","v":45399821},{"$f":"D8+D76+D105+D112+D120+D151+D138+D141+D154+D157+D160+D163+D166","v":0},0,0,0,0,7781731,7781731,53181552,54235500,56676100,null,null,null,null,null,null,null,null,null,null,null,null,null,null,null,null,"CE"]
[]
[{"$f":"head27a","v":"References"}]
["1. Total Capital Expenditure on new assets (SB18a) plus Total Capital Expenditure on renewal of existing assets (SB18b) plus Total Capital Expenditure on upgrading of existing assets (SB18e) must reconcile to total capital expenditure in Budgeted Capital Expenditure"]
["7. Only complete if a previous adjusted budget has been approved in the same financial year. Reflect most recent adjusted budget."]
["8. Additional cash-backed accumulated funds/unspent funds (section 18(1)(b) and section 28(2)(e) MFMA) identified after Original Budget approved and after annual financial statements audited (note: only where underspending could not reasonably be have for"]
["9. Increases of funds approved under section 31 MFMA"]
["10. Adjustments approved in accordance with section 29 MFMA"]
["11. Adjustments to funding allocations from National or Provincial Government"]
["12. Adjusts. = 'Other' Adjustments proposed to be approved; including revenue under-collection (MFMA section 28(2)(a)); additional revenue appropriation on existing programmes (section 28(2))(b); projected savings (section 28(2)(d)); error correction (sec"]
["13. G = B + C + D + E + F"]
["14. Adjusted Budget H = (A or A1) + G"]
[]
[]
["check balance",null,{"$f":"(C169+SB18b!C169+SB18e!C169)-'B5-Capex'!C65","v":0},null,null,null,null,null,null,null,null,{"$f":"(L169+SB18b!L169+SB18e!L169)-'B5-Capex'!L65","v":-16720000},{"$f":"(M169+SB18b!M169+SB18e!M169)-'B5-Capex'!M65","v":-17472400}]

{"sheet":"SB18b","index":57,"n_rows":183,"n_cols":30,"rows_kept":183,"cut":false,"hidden":false,"merged":[[1,0,3,0],[1,1,3,1],[1,2,1,10],[172,0,172,12],[179,0,179,12],[173,0,173,9],[174,0,174,9],[175,0,175,12],[177,0,177,12]]}
[{"$f":"muni&\" - \"&ADJB18b&\" - \"&Date","v":"EC139 Enoch Mgijima - Supporting Table SB18b Adjustments Budget - capital expenditure on renewal of existing assets by asset class - "}]
[{"$f":"desc","v":"Description"},{"$f":"head27","v":"Ref"},{"$f":"Head2","v":"Budget Year 2021/22"},null,null,null,null,null,null,null,null,{"$f":"Head10","v":"Budget Year +1 2022/23"},{"$f":"Head11","v":"Budget Year +2 2023/24"}]
[null,null,{"$f":"Head6","v":"Original Budget"},{"$f":"Head54","v":"Prior Adjusted"},{"$f":"Head51","v":"Accum. Funds"},{"$f":"Head52","v":"Multi-year capital"},{"$f":"Head53","v":"Unfore. Unavoid."},{"$f":"Head55","v":"Nat. or Prov. Govt"},{"$f":"Head50","v":"Other Adjusts."},{"$f":"Head56","v":"Total Adjusts."},{"$f":"Head7","v":"Adjusted Budget"},{"$f":"Head7","v":"Adjusted Budget"},{"$f":"Head7","v":"Adjusted Budget"}]
[null,null,null,7,8,9,10,11,12,13,14]
["R thousands",null,"A","A1","B","C","D","E","F","G","H"]
["Capital expenditure on renewal of existing assets by Asset Class/Sub-class"]
[]
["Infrastructure",null,{"$f":"C9+C14+C18+C28+C70+C39+C46+C54+C64","v":500000},{"$f":"D9+D14+D18+D28+D70+D39+D46+D54+D64","v":0},0,0,0,0,-500000,{"$f":"SUM(E8:I8)","v":-500000},{"$f":"IF(D8=0,C8+J8,D8+J8)","v":0},{"$f":"L9+L14+L18+L28+L70+L39+L46+L54+L64","v":209000},{"$f":"M9+M14+M18+M28+M70+M39+M46+M54+M64","v":218405}]
["Roads Infrastructure",null,{"$f":"SUM(C10:C13)","v":0},{"$f":"SUM(D10:D13)","v":0},0,0,0,0,0,{"$f":"SUM(E9:I9)","v":0},{"$f":"IF(D9=0,C9+J9,D9+J9)","v":0},0,0]
["Roads",null,{"$f":"SUMIFS(Sheet1!S71_OriginalBudget,Sheet1!S71_SA34Code,$AC:$AC,Sheet1!S71_A5CapexCode,$AD:$AD)","v":0},{"$f":"SUMIFS(Sheet1!S71_SpecialAdjustedBudget,Sheet1!S71_SA34Code,$AC:$AC,Sheet1!S71_A5CapexCode,$AD:$AD)","v":0},null,null,null,null,{"$f":"SUMIFS(Sheet1!S71_AdjustmentAmount,Sheet1!S71_SA34Code,$AC:$AC,Sheet1!S71_A5CapexCode,$AD:$AD)","v":0},0,0,{"$f":"SUMIFS(Sheet1!S71_OY1AdjustedBudget,Sheet1!S71_SA34Code,$AC:$AC,Sheet1!S71_A5CapexCode,$AD:$AD)","v":0},{"$f":"SUMIFS(Sheet1!S71_OY2AdjustedBudget,Sheet1!S71_SA34Code,$AC:$AC,Sheet1!S71_A5CapexCode,$AD:$AD)","v":0},null,null,null,null,null,null,null,null,null,null,null,null,null,null,null,"0120","CE"]
["Road Structures",null,{"$f":"SUMIFS(Sheet1!S71_OriginalBudget,Sheet1!S71_SA34Code,$AC:$AC,Sheet1!S71_A5CapexCode,$AD:$AD)","v":0},{"$f":"SUMIFS(Sheet1!S71_SpecialAdjustedBudget,Sheet1!S71_SA34Code,$AC:$AC,Sheet1!S71_A5CapexCode,$AD:$AD)","v":0},null,null,null,null,{"$f":"SUMIFS(Sheet1!S71_AdjustmentAmount,Sheet1!S71_SA34Code,$AC:$AC,Sheet1!S71_A5CapexCode,$AD:$AD)","v":0},0,0,{"$f":"SUMIFS(Sheet1!S71_OY1AdjustedBudget,Sheet1!S71_SA34Code,$AC:$AC,Sheet1!S71_A5CapexCode,$AD:$AD)","v":0},{"$f":"SUMIFS(Sheet1!S71_OY2AdjustedBudget,Sheet1!S71_SA34Code,$AC:$AC,Sheet1!S71_A5CapexCode,$AD:$AD)","v":0},null,null,null,null,null,null,null,null,null,null,null,null,null,null,null,"0130","CE"]
["Road Furniture",null,{"$f":"SUMIFS(Sheet1!S71_OriginalBudget,Sheet1!S71_SA34Code,$AC:$AC,Sheet1!S71_A5CapexCode,$AD:$AD)","v":0},{"$f":"SUMIFS(Sheet1!S71_SpecialAdjustedBudget,Sheet1!S71_SA34Code,$AC:$AC,Sheet1!S71_A5CapexCode,$AD:$AD)","v":0},null,null,null,null,{"$f":"SUMIFS(Sheet1!S71_AdjustmentAmount,Sheet1!S71_SA34Code,$AC:$AC,Sheet1!S71_A5CapexCode,$AD:$AD)","v":0},0,0,{"$f":"SUMIFS(Sheet1!S71_OY1AdjustedBudget,Sheet1!S71_SA34Code,$AC:$AC,Sheet1!S71_A5CapexCode,$AD:$AD)","v":0},{"$f":"SUMIFS(Sheet1!S71_OY2AdjustedBudget,Sheet1!S71_SA34Code,$AC:$AC,Sheet1!S71_A5CapexCode,$AD:$AD)","v":0},null,null,null,null,null,null,null,null,null,null,null,null,null,null,null,"0140","CE"]
["Capital Spares",null,{"$f":"SUMIFS(Sheet1!S71_OriginalBudget,Sheet1!S71_SA34Code,$AC:$AC,Sheet1!S71_A5CapexCode,$AD:$AD)","v":0},{"$f":"SUMIFS(Sheet1!S71_SpecialAdjustedBudget,Sheet1!S71_SA34Code,$AC:$AC,Sheet1!S71_A5CapexCode,$AD:$AD)","v":0},null,null,null,null,{"$f":"SUMIFS(Sheet1!S71_AdjustmentAmount,Sheet1!S71_SA34Code,$AC:$AC,Sheet1!S71_A5CapexCode,$AD:$AD)","v":0},0,0,{"$f":"SUMIFS(Sheet1!S71_OY1AdjustedBudget,Sheet1!S71_SA34Code,$AC:$AC,Sheet1!S71_A5CapexCode,$AD:$AD)","v":0},{"$f":"SUMIFS(Sheet1!S71_OY2AdjustedBudget,Sheet1!S71_SA34Code,$AC:$AC,Sheet1!S71_A5CapexCode,$AD:$AD)","v":0},null,null,null,null,null,null,null,null,null,null,null,null,null,null,null,"0150","CE"]
["Storm water Infrastructure",null,{"$f":"SUM(C15:C17)","v":0},0,0,0,0,0,0,0,0,{"$f":"SUM(L15:L17)","v":0},{"$f":"SUM(M15:M17)","v":0},null,null,null,null,null,null,null,null,null,null,null,null,null,null,null,null,"CE"]
["Drainage Collection",null,{"$f":"SUMIFS(Sheet1!S71_OriginalBudget,Sheet1!S71_SA34Code,$AC:$AC,Sheet1!S71_A5CapexCode,$AD:$AD)","v":0},{"$f":"SUMIFS(Sheet1!S71_SpecialAdjustedBudget,Sheet1!S71_SA34Code,$AC:$AC,Sheet1!S71_A5CapexCode,$AD:$AD)","v":0},null,null,null,null,{"$f":"SUMIFS(Sheet1!S71_AdjustmentAmount,Sheet1!S71_SA34Code,$AC:$AC,Sheet1!S71_A5CapexCode,$AD:$AD)","v":0},0,0,{"$f":"SUMIFS(Sheet1!S71_OY1AdjustedBudget,Sheet1!S71_SA34Code,$AC:$AC,Sheet1!S71_A5CapexCode,$AD:$AD)","v":0},{"$f":"SUMIFS(Sheet1!S71_OY2AdjustedBudget,Sheet1!S71_SA34Code,$AC:$AC,Sheet1!S71_A5CapexCode,$AD:$AD)","v":0},null,null,null,null,null,null,null,null,null,null,null,null,null,null,null,"0170","CE"]
["Storm water Conveyance",null,{"$f":"SUMIFS(Sheet1!S71_OriginalBudget,Sheet1!S71_SA34Code,$AC:$AC,Sheet1!S71_A5CapexCode,$AD:$AD)","v":0},{"$f":"SUMIFS(Sheet1!S71_SpecialAdjustedBudget,Sheet1!S71_SA34Code,$AC:$AC,Sheet1!S71_A5CapexCode,$AD:$AD)","v":0},null,null,null,null,{"$f":"SUMIFS(Sheet1!S71_AdjustmentAmount,Sheet1!S71_SA34Code,$AC:$AC,Sheet1!S71_A5CapexCode,$AD:$AD)","v":0},0,0,{"$f":"SUMIFS(Sheet1!S71_OY1AdjustedBudget,Sheet1!S71_SA34Code,$AC:$AC,Sheet1!S71_A5CapexCode,$AD:$AD)","v":0},{"$f":"SUMIFS(Sheet1!S71_OY2AdjustedBudget,Sheet1!S71_SA34Code,$AC:$AC,Sheet1!S71_A5CapexCode,$AD:$AD)","v":0},null,null,null,null,null,null,null,null,null,null,null,null,null,null,null,"0180","CE"]
["Attenuation",null,{"$f":"SUMIFS(Sheet1!S71_OriginalBudget,Sheet1!S71_SA34Code,$AC:$AC,Sheet1!S71_A5CapexCode,$AD:$AD)","v":0},{"$f":"SUMIFS(Sheet1!S71_SpecialAdjustedBudget,Sheet1!S71_SA34Code,$AC:$AC,Sheet1!S71_A5CapexCode,$AD:$AD)","v":0},null,null,null,null,{"$f":"SUMIFS(Sheet1!S71_AdjustmentAmount,Sheet1!S71_SA34Code,$AC:$AC,Sheet1!S71_A5CapexCode,$AD:$AD)","v":0},0,0,{"$f":"SUMIFS(Sheet1!S71_OY1AdjustedBudget,Sheet1!S71_SA34Code,$AC:$AC,Sheet1!S71_A5CapexCode,$AD:$AD)","v":0},{"$f":"SUMIFS(Sheet1!S71_OY2AdjustedBudget,Sheet1!S71_SA34Code,$AC:$AC,Sheet1!S71_A5CapexCode,$AD:$AD)","v":0},null,null,null,null,null,null,null,null,null,null,null,null,null,null,null,"0190","CE"]
["Electrical Infrastructure",null,{"$f":"SUM(C19:C27)","v":0},0,0,0,0,0,0,0,0,0,0,null,null,null,null,null,null,null,null,null,null,null,null,null,null,null,null,"CE"]
["Power Plants",null,{"$f":"SUMIFS(Sheet1!S71_OriginalBudget,Sheet1!S71_SA34Code,$AC:$AC,Sheet1!S71_A5CapexCode,$AD:$AD)","v":0},{"$f":"SUMIFS(Sheet1!S71_SpecialAdjustedBudget,Sheet1!S71_SA34Code,$AC:$AC,Sheet1!S71_A5CapexCode,$AD:$AD)","v":0},null,null,null,null,{"$f":"SUMIFS(Sheet1!S71_AdjustmentAmount,Sheet1!S71_SA34Code,$AC:$AC,Sheet1!S71_A5CapexCode,$AD:$AD)","v":0},0,0,{"$f":"SUMIFS(Sheet1!S71_OY1AdjustedBudget,Sheet1!S71_SA34Code,$AC:$AC,Sheet1!S71_A5CapexCode,$AD:$AD)","v":0},{"$f":"SUMIFS(Sheet1!S71_OY2AdjustedBudget,Sheet1!S71_SA34Code,$AC:$AC,Sheet1!S71_A5CapexCode,$AD:$AD)","v":0},null,null,null,null,null,null,null,null,null,null,null,null,null,null,null,"0210","CE"]
["HV Substations",null,{"$f":"SUMIFS(Sheet1!S71_OriginalBudget,Sheet1!S71_SA34Code,$AC:$AC,Sheet1!S71_A5CapexCode,$AD:$AD)","v":0},{"$f":"SUMIFS(Sheet1!S71_SpecialAdjustedBudget,Sheet1!S71_SA34Code,$AC:$AC,Sheet1!S71_A5CapexCode,$AD:$AD)","v":0},null,null,null,null,{"$f":"SUMIFS(Sheet1!S71_AdjustmentAmount,Sheet1!S71_SA34Code,$AC:$AC,Sheet1!S71_A5CapexCode,$AD:$AD)","v":0},0,0,{"$f":"SUMIFS(Sheet1!S71_OY1AdjustedBudget,Sheet1!S71_SA34Code,$AC:$AC,Sheet1!S71_A5CapexCode,$AD:$AD)","v":0},{"$f":"SUMIFS(Sheet1!S71_OY2AdjustedBudget,Sheet1!S71_SA34Code,$AC:$AC,Sheet1!S71_A5CapexCode,$AD:$AD)","v":0},null,null,null,null,null,null,null,null,null,null,null,null,null,null,null,"0220","CE"]
["HV Switching Station",null,{"$f":"SUMIFS(Sheet1!S71_OriginalBudget,Sheet1!S71_SA34Code,$AC:$AC,Sheet1!S71_A5CapexCode,$AD:$AD)","v":0},{"$f":"SUMIFS(Sheet1!S71_SpecialAdjustedBudget,Sheet1!S71_SA34Code,$AC:$AC,Sheet1!S71_A5CapexCode,$AD:$AD)","v":0},null,null,null,null,{"$f":"SUMIFS(Sheet1!S71_AdjustmentAmount,Sheet1!S71_SA34Code,$AC:$AC,Sheet1!S71_A5CapexCode,$AD:$AD)","v":0},0,0,{"$f":"SUMIFS(Sheet1!S71_OY1AdjustedBudget,Sheet1!S71_SA34Code,$AC:$AC,Sheet1!S71_A5CapexCode,$AD:$AD)","v":0},{"$f":"SUMIFS(Sheet1!S71_OY2AdjustedBudget,Sheet1!S71_SA34Code,$AC:$AC,Sheet1!S71_A5CapexCode,$AD:$AD)","v":0},null,null,null,null,null,null,null,null,null,null,null,null,null,null,null,"0230","CE"]
["HV Transmission Conductors",null,{"$f":"SUMIFS(Sheet1!S71_OriginalBudget,Sheet1!S71_SA34Code,$AC:$AC,Sheet1!S71_A5CapexCode,$AD:$AD)","v":0},{"$f":"SUMIFS(Sheet1!S71_SpecialAdjustedBudget,Sheet1!S71_SA34Code,$AC:$AC,Sheet1!S71_A5CapexCode,$AD:$AD)","v":0},null,null,null,null,{"$f":"SUMIFS(Sheet1!S71_AdjustmentAmount,Sheet1!S71_SA34Code,$AC:$AC,Sheet1!S71_A5CapexCode,$AD:$AD)","v":0},0,0,{"$f":"SUMIFS(Sheet1!S71_OY1AdjustedBudget,Sheet1!S71_SA34Code,$AC:$AC,Sheet1!S71_A5CapexCode,$AD:$AD)","v":0},{"$f":"SUMIFS(Sheet1!S71_OY2AdjustedBudget,Sheet1!S71_SA34Code,$AC:$AC,Sheet1!S71_A5CapexCode,$AD:$AD)","v":0},null,null,null,null,null,null,null,null,null,null,null,null,null,null,null,"0240","CE"]
["MV Substations",null,{"$f":"SUMIFS(Sheet1!S71_OriginalBudget,Sheet1!S71_SA34Code,$AC:$AC,Sheet1!S71_A5CapexCode,$AD:$AD)","v":0},{"$f":"SUMIFS(Sheet1!S71_SpecialAdjustedBudget,Sheet1!S71_SA34Code,$AC:$AC,Sheet1!S71_A5CapexCode,$AD:$AD)","v":0},null,null,null,null,{"$f":"SUMIFS(Sheet1!S71_AdjustmentAmount,Sheet1!S71_SA34Code,$AC:$AC,Sheet1!S71_A5CapexCode,$AD:$AD)","v":0},0,0,{"$f":"SUMIFS(Sheet1!S71_OY1AdjustedBudget,Sheet1!S71_SA34Code,$AC:$AC,Sheet1!S71_A5CapexCode,$AD:$AD)","v":0},{"$f":"SUMIFS(Sheet1!S71_OY2AdjustedBudget,Sheet1!S71_SA34Code,$AC:$AC,Sheet1!S71_A5CapexCode,$AD:$AD)","v":0},null,null,null,null,null,null,null,null,null,null,null,null,null,null,null,"0250","CE"]
["MV Switching Stations",null,{"$f":"SUMIFS(Sheet1!S71_OriginalBudget,Sheet1!S71_SA34Code,$AC:$AC,Sheet1!S71_A5CapexCode,$AD:$AD)","v":0},{"$f":"SUMIFS(Sheet1!S71_SpecialAdjustedBudget,Sheet1!S71_SA34Code,$AC:$AC,Sheet1!S71_A5CapexCode,$AD:$AD)","v":0},null,null,null,null,{"$f":"SUMIFS(Sheet1!S71_AdjustmentAmount,Sheet1!S71_SA34Code,$AC:$AC,Sheet1!S71_A5CapexCode,$AD:$AD)","v":0},0,0,{"$f":"SUMIFS(Sheet1!S71_OY1AdjustedBudget,Sheet1!S71_SA34Code,$AC:$AC,Sheet1!S71_A5CapexCode,$AD:$AD)","v":0},{"$f":"SUMIFS(Sheet1!S71_OY2AdjustedBudget,Sheet1!S71_SA34Code,$AC:$AC,Sheet1!S71_A5CapexCode,$AD:$AD)","v":0},null,null,null,null,null,null,null,null,null,null,null,null,null,null,null,"0260","CE"]
["MV Networks",null,{"$f":"SUMIFS(Sheet1!S71_OriginalBudget,Sheet1!S71_SA34Code,$AC:$AC,Sheet1!S71_A5CapexCode,$AD:$AD)","v":0},{"$f":"SUMIFS(Sheet1!S71_SpecialAdjustedBudget,Sheet1!S71_SA34Code,$AC:$AC,Sheet1!S71_A5CapexCode,$AD:$AD)","v":0},null,null,null,null,{"$f":"SUMIFS(Sheet1!S71_AdjustmentAmount,Sheet1!S71_SA34Code,$AC:$AC,Sheet1!S71_A5CapexCode,$AD:$AD)","v":0},0,0,{"$f":"SUMIFS(Sheet1!S71_OY1AdjustedBudget,Sheet1!S71_SA34Code,$AC:$AC,Sheet1!S71_A5CapexCode,$AD:$AD)","v":0},{"$f":"SUMIFS(Sheet1!S71_OY2AdjustedBudget,Sheet1!S71_SA34Code,$AC:$AC,Sheet1!S71_A5CapexCode,$AD:$AD)","v":0},null,null,null,null,null,null,null,null,null,null,null,null,null,null,null,"0270","CE"]
["LV Networks",null,{"$f":"SUMIFS(Sheet1!S71_OriginalBudget,Sheet1!S71_SA34Code,$AC:$AC,Sheet1!S71_A5CapexCode,$AD:$AD)","v":0},{"$f":"SUMIFS(Sheet1!S71_SpecialAdjustedBudget,Sheet1!S71_SA34Code,$AC:$AC,Sheet1!S71_A5CapexCode,$AD:$AD)","v":0},null,null,null,null,{"$f":"SUMIFS(Sheet1!S71_AdjustmentAmount,Sheet1!S71_SA34Code,$AC:$AC,Sheet1!S71_A5CapexCode,$AD:$AD)","v":0},0,0,{"$f":"SUMIFS(Sheet1!S71_OY1AdjustedBudget,Sheet1!S71_SA34Code,$AC:$AC,Sheet1!S71_A5CapexCode,$AD:$AD)","v":0},{"$f":"SUMIFS(Sheet1!S71_OY2AdjustedBudget,Sheet1!S71_SA34Code,$AC:$AC,Sheet1!S71_A5CapexCode,$AD:$AD)","v":0},null,null,null,null,null,null,null,null,null,null,null,null,null,null,null,"0280","CE"]
["Capital Spares",null,{"$f":"SUMIFS(Sheet1!S71_OriginalBudget,Sheet1!S71_SA34Code,$AC:$AC,Sheet1!S71_A5CapexCode,$AD:$AD)","v":0},{"$f":"SUMIFS(Sheet1!S71_SpecialAdjustedBudget,Sheet1!S71_SA34Code,$AC:$AC,Sheet1!S71_A5CapexCode,$AD:$AD)","v":0},null,null,null,null,{"$f":"SUMIFS(Sheet1!S71_AdjustmentAmount,Sheet1!S71_SA34Code,$AC:$AC,Sheet1!S71_A5CapexCode,$AD:$AD)","v":0},0,0,{"$f":"SUMIFS(Sheet1!S71_OY1AdjustedBudget,Sheet1!S71_SA34Code,$AC:$AC,Sheet1!S71_A5CapexCode,$AD:$AD)","v":0},{"$f":"SUMIFS(Sheet1!S71_OY2AdjustedBudget,Sheet1!S71_SA34Code,$AC:$AC,Sheet1!S71_A5CapexCode,$AD:$AD)","v":0},null,null,null,null,null,null,null,null,null,null,null,null,null,null,null,"0290","CE"]
["Water Supply Infrastructure",null,{"$f":"SUM(C29:C38)","v":0},0,0,0,0,0,0,0,0,0,0,null,null,null,null,null,null,null,null,null,null,null,null,null,null,null,null,"CE"]
["Dams and Weirs",null,{"$f":"SUMIFS(Sheet1!S71_OriginalBudget,Sheet1!S71_SA34Code,$AC:$AC,Sheet1!S71_A5CapexCode,$AD:$AD)","v":0},{"$f":"SUMIFS(Sheet1!S71_SpecialAdjustedBudget,Sheet1!S71_SA34Code,$AC:$AC,Sheet1!S71_A5CapexCode,$AD:$AD)","v":0},null,null,null,null,{"$f":"SUMIFS(Sheet1!S71_AdjustmentAmount,Sheet1!S71_SA34Code,$AC:$AC,Sheet1!S71_A5CapexCode,$AD:$AD)","v":0},0,0,{"$f":"SUMIFS(Sheet1!S71_OY1AdjustedBudget,Sheet1!S71_SA34Code,$AC:$AC,Sheet1!S71_A5CapexCode,$AD:$AD)","v":0},{"$f":"SUMIFS(Sheet1!S71_OY2AdjustedBudget,Sheet1!S71_SA34Code,$AC:$AC,Sheet1!S71_A5CapexCode,$AD:$AD)","v":0},null,null,null,null,null,null,null,null,null,null,null,null,null,null,null,"0310","CE"]
["Boreholes",null,{"$f":"SUMIFS(Sheet1!S71_OriginalBudget,Sheet1!S71_SA34Code,$AC:$AC,Sheet1!S71_A5CapexCode,$AD:$AD)","v":0},{"$f":"SUMIFS(Sheet1!S71_SpecialAdjustedBudget,Sheet1!S71_SA34Code,$AC:$AC,Sheet1!S71_A5CapexCode,$AD:$AD)","v":0},null,null,null,null,{"$f":"SUMIFS(Sheet1!S71_AdjustmentAmount,Sheet1!S71_SA34Code,$AC:$AC,Sheet1!S71_A5CapexCode,$AD:$AD)","v":0},0,0,{"$f":"SUMIFS(Sheet1!S71_OY1AdjustedBudget,Sheet1!S71_SA34Code,$AC:$AC,Sheet1!S71_A5CapexCode,$AD:$AD)","v":0},{"$f":"SUMIFS(Sheet1!S71_OY2AdjustedBudget,Sheet1!S71_SA34Code,$AC:$AC,Sheet1!S71_A5CapexCode,$AD:$AD)","v":0},null,null,null,null,null,null,null,null,null,null,null,null,null,null,null,"0320","CE"]
["Reservoirs",null,{"$f":"SUMIFS(Sheet1!S71_OriginalBudget,Sheet1!S71_SA34Code,$AC:$AC,Sheet1!S71_A5CapexCode,$AD:$AD)","v":0},{"$f":"SUMIFS(Sheet1!S71_SpecialAdjustedBudget,Sheet1!S71_SA34Code,$AC:$AC,Sheet1!S71_A5CapexCode,$AD:$AD)","v":0},null,null,null,null,{"$f":"SUMIFS(Sheet1!S71_AdjustmentAmount,Sheet1!S71_SA34Code,$AC:$AC,Sheet1!S71_A5CapexCode,$AD:$AD)","v":0},0,0,{"$f":"SUMIFS(Sheet1!S71_OY1AdjustedBudget,Sheet1!S71_SA34Code,$AC:$AC,Sheet1!S71_A5CapexCode,$AD:$AD)","v":0},{"$f":"SUMIFS(Sheet1!S71_OY2AdjustedBudget,Sheet1!S71_SA34Code,$AC:$AC,Sheet1!S71_A5CapexCode,$AD:$AD)","v":0},null,null,null,null,null,null,null,null,null,null,null,null,null,null,null,"0330","CE"]
["Pump Stations",null,{"$f":"SUMIFS(Sheet1!S71_OriginalBudget,Sheet1!S71_SA34Code,$AC:$AC,Sheet1!S71_A5CapexCode,$AD:$AD)","v":0},{"$f":"SUMIFS(Sheet1!S71_SpecialAdjustedBudget,Sheet1!S71_SA34Code,$AC:$AC,Sheet1!S71_A5CapexCode,$AD:$AD)","v":0},null,null,null,null,{"$f":"SUMIFS(Sheet1!S71_AdjustmentAmount,Sheet1!S71_SA34Code,$AC:$AC,Sheet1!S71_A5CapexCode,$AD:$AD)","v":0},0,0,{"$f":"SUMIFS(Sheet1!S71_OY1AdjustedBudget,Sheet1!S71_SA34Code,$AC:$AC,Sheet1!S71_A5CapexCode,$AD:$AD)","v":0},{"$f":"SUMIFS(Sheet1!S71_OY2AdjustedBudget,Sheet1!S71_SA34Code,$AC:$AC,Sheet1!S71_A5CapexCode,$AD:$AD)","v":0},null,null,null,null,null,null,null,null,null,null,null,null,null,null,null,"0340","CE"]
["Water Treatment Works",null,{"$f":"SUMIFS(Sheet1!S71_OriginalBudget,Sheet1!S71_SA34Code,$AC:$AC,Sheet1!S71_A5CapexCode,$AD:$AD)","v":0},{"$f":"SUMIFS(Sheet1!S71_SpecialAdjustedBudget,Sheet1!S71_SA34Code,$AC:$AC,Sheet1!S71_A5CapexCode,$AD:$AD)","v":0},null,null,null,null,{"$f":"SUMIFS(Sheet1!S71_AdjustmentAmount,Sheet1!S71_SA34Code,$AC:$AC,Sheet1!S71_A5CapexCode,$AD:$AD)","v":0},0,0,{"$f":"SUMIFS(Sheet1!S71_OY1AdjustedBudget,Sheet1!S71_SA34Code,$AC:$AC,Sheet1!S71_A5CapexCode,$AD:$AD)","v":0},{"$f":"SUMIFS(Sheet1!S71_OY2AdjustedBudget,Sheet1!S71_SA34Code,$AC:$AC,Sheet1!S71_A5CapexCode,$AD:$AD)","v":0},null,null,null,null,null,null,null,null,null,null,null,null,null,null,null,"0350","CE"]
["Bulk Mains",null,{"$f":"SUMIFS(Sheet1!S71_OriginalBudget,Sheet1!S71_SA34Code,$AC:$AC,Sheet1!S71_A5CapexCode,$AD:$AD)","v":0},{"$f":"SUMIFS(Sheet1!S71_SpecialAdjustedBudget,Sheet1!S71_SA34Code,$AC:$AC,Sheet1!S71_A5CapexCode,$AD:$AD)","v":0},null,null,null,null,{"$f":"SUMIFS(Sheet1!S71_AdjustmentAmount,Sheet1!S71_SA34Code,$AC:$AC,Sheet1!S71_A5CapexCode,$AD:$AD)","v":0},0,0,{"$f":"SUMIFS(Sheet1!S71_OY1AdjustedBudget,Sheet1!S71_SA34Code,$AC:$AC,Sheet1!S71_A5CapexCode,$AD:$AD)","v":0},{"$f":"SUMIFS(Sheet1!S71_OY2AdjustedBudget,Sheet1!S71_SA34Code,$AC:$AC,Sheet1!S71_A5CapexCode,$AD:$AD)","v":0},null,null,null,null,null,null,null,null,null,null,null,null,null,null,null,"0360","CE"]
["Distribution",null,{"$f":"SUMIFS(Sheet1!S71_OriginalBudget,Sheet1!S71_SA34Code,$AC:$AC,Sheet1!S71_A5CapexCode,$AD:$AD)","v":0},{"$f":"SUMIFS(Sheet1!S71_SpecialAdjustedBudget,Sheet1!S71_SA34Code,$AC:$AC,Sheet1!S71_A5CapexCode,$AD:$AD)","v":0},null,null,null,null,{"$f":"SUMIFS(Sheet1!S71_AdjustmentAmount,Sheet1!S71_SA34Code,$AC:$AC,Sheet1!S71_A5CapexCode,$AD:$AD)","v":0},0,0,{"$f":"SUMIFS(Sheet1!S71_OY1AdjustedBudget,Sheet1!S71_SA34Code,$AC:$AC,Sheet1!S71_A5CapexCode,$AD:$AD)","v":0},{"$f":"SUMIFS(Sheet1!S71_OY2AdjustedBudget,Sheet1!S71_SA34Code,$AC:$AC,Sheet1!S71_A5CapexCode,$AD:$AD)","v":0},null,null,null,null,null,null,null,null,null,null,null,null,null,null,null,"0370","CE"]
["Distribution Points",null,{"$f":"SUMIFS(Sheet1!S71_OriginalBudget,Sheet1!S71_SA34Code,$AC:$AC,Sheet1!S71_A5CapexCode,$AD:$AD)","v":0},{"$f":"SUMIFS(Sheet1!S71_SpecialAdjustedBudget,Sheet1!S71_SA34Code,$AC:$AC,Sheet1!S71_A5CapexCode,$AD:$AD)","v":0},null,null,null,null,{"$f":"SUMIFS(Sheet1!S71_AdjustmentAmount,Sheet1!S71_SA34Code,$AC:$AC,Sheet1!S71_A5CapexCode,$AD:$AD)","v":0},0,0,{"$f":"SUMIFS(Sheet1!S71_OY1AdjustedBudget,Sheet1!S71_SA34Code,$AC:$AC,Sheet1!S71_A5CapexCode,$AD:$AD)","v":0},{"$f":"SUMIFS(Sheet1!S71_OY2AdjustedBudget,Sheet1!S71_SA34Code,$AC:$AC,Sheet1!S71_A5CapexCode,$AD:$AD)","v":0},null,null,null,null,null,null,null,null,null,null,null,null,null,null,null,"0380","CE"]
["PRV Stations",null,{"$f":"SUMIFS(Sheet1!S71_OriginalBudget,Sheet1!S71_SA34Code,$AC:$AC,Sheet1!S71_A5CapexCode,$AD:$AD)","v":0},{"$f":"SUMIFS(Sheet1!S71_SpecialAdjustedBudget,Sheet1!S71_SA34Code,$AC:$AC,Sheet1!S71_A5CapexCode,$AD:$AD)","v":0},null,null,null,null,{"$f":"SUMIFS(Sheet1!S71_AdjustmentAmount,Sheet1!S71_SA34Code,$AC:$AC,Sheet1!S71_A5CapexCode,$AD:$AD)","v":0},0,0,{"$f":"SUMIFS(Sheet1!S71_OY1AdjustedBudget,Sheet1!S71_SA34Code,$AC:$AC,Sheet1!S71_A5CapexCode,$AD:$AD)","v":0},{"$f":"SUMIFS(Sheet1!S71_OY2AdjustedBudget,Sheet1!S71_SA34Code,$AC:$AC,Sheet1!S71_A5CapexCode,$AD:$AD)","v":0},null,null,null,null,null,null,null,null,null,null,null,null,null,null,null,"0390","CE"]
["Capital Spares",null,{"$f":"SUMIFS(Sheet1!S71_OriginalBudget,Sheet1!S71_SA34Code,$AC:$AC,Sheet1!S71_A5CapexCode,$AD:$AD)","v":0},{"$f":"SUMIFS(Sheet1!S71_SpecialAdjustedBudget,Sheet1!S71_SA34Code,$AC:$AC,Sheet1!S71_A5CapexCode,$AD:$AD)","v":0},null,null,null,null,{"$f":"SUMIFS(Sheet1!S71_AdjustmentAmount,Sheet1!S71_SA34Code,$AC:$AC,Sheet1!S71_A5CapexCode,$AD:$AD)","v":0},0,0,{"$f":"SUMIFS(Sheet1!S71_OY1AdjustedBudget,Sheet1!S71_SA34Code,$AC:$AC,Sheet1!S71_A5CapexCode,$AD:$AD)","v":0},{"$f":"SUMIFS(Sheet1!S71_OY2AdjustedBudget,Sheet1!S71_SA34Code,$AC:$AC,Sheet1!S71_A5CapexCode,$AD:$AD)","v":0},null,null,null,null,null,null,null,null,null,null,null,null,null,null,null,"0400","CE"]
["Sanitation Infrastructure",null,{"$f":"SUM(C40:C45)","v":0},{"$f":"SUM(D40:D45)","v":0},0,0,0,0,0,0,0,0,0,null,null,null,null,null,null,null,null,null,null,null,null,null,null,null,null,"CE"]
["Pump Station",null,{"$f":"SUMIFS(Sheet1!S71_OriginalBudget,Sheet1!S71_SA34Code,$AC:$AC,Sheet1!S71_A5CapexCode,$AD:$AD)","v":0},{"$f":"SUMIFS(Sheet1!S71_SpecialAdjustedBudget,Sheet1!S71_SA34Code,$AC:$AC,Sheet1!S71_A5CapexCode,$AD:$AD)","v":0},null,null,null,null,{"$f":"SUMIFS(Sheet1!S71_AdjustmentAmount,Sheet1!S71_SA34Code,$AC:$AC,Sheet1!S71_A5CapexCode,$AD:$AD)","v":0},0,0,{"$f":"SUMIFS(Sheet1!S71_OY1AdjustedBudget,Sheet1!S71_SA34Code,$AC:$AC,Sheet1!S71_A5CapexCode,$AD:$AD)","v":0},{"$f":"SUMIFS(Sheet1!S71_OY2AdjustedBudget,Sheet1!S71_SA34Code,$AC:$AC,Sheet1!S71_A5CapexCode,$AD:$AD)","v":0},null,null,null,null,null,null,null,null,null,null,null,null,null,null,null,"0420","CE"]
["Reticulation",null,{"$f":"SUMIFS(Sheet1!S71_OriginalBudget,Sheet1!S71_SA34Code,$AC:$AC,Sheet1!S71_A5CapexCode,$AD:$AD)","v":0},{"$f":"SUMIFS(Sheet1!S71_SpecialAdjustedBudget,Sheet1!S71_SA34Code,$AC:$AC,Sheet1!S71_A5CapexCode,$AD:$AD)","v":0},null,null,null,null,{"$f":"SUMIFS(Sheet1!S71_AdjustmentAmount,Sheet1!S71_SA34Code,$AC:$AC,Sheet1!S71_A5CapexCode,$AD:$AD)","v":0},0,0,{"$f":"SUMIFS(Sheet1!S71_OY1AdjustedBudget,Sheet1!S71_SA34Code,$AC:$AC,Sheet1!S71_A5CapexCode,$AD:$AD)","v":0},{"$f":"SUMIFS(Sheet1!S71_OY2AdjustedBudget,Sheet1!S71_SA34Code,$AC:$AC,Sheet1!S71_A5CapexCode,$AD:$AD)","v":0},null,null,null,null,null,null,null,null,null,null,null,null,null,null,null,"0430","CE"]
["Waste Water Treatment Works",null,{"$f":"SUMIFS(Sheet1!S71_OriginalBudget,Sheet1!S71_SA34Code,$AC:$AC,Sheet1!S71_A5CapexCode,$AD:$AD)","v":0},{"$f":"SUMIFS(Sheet1!S71_SpecialAdjustedBudget,Sheet1!S71_SA34Code,$AC:$AC,Sheet1!S71_A5CapexCode,$AD:$AD)","v":0},null,null,null,null,{"$f":"SUMIFS(Sheet1!S71_AdjustmentAmount,Sheet1!S71_SA34Code,$AC:$AC,Sheet1!S71_A5CapexCode,$AD:$AD)","v":0},0,0,{"$f":"SUMIFS(Sheet1!S71_OY1AdjustedBudget,Sheet1!S71_SA34Code,$AC:$AC,Sheet1!S71_A5CapexCode,$AD:$AD)","v":0},{"$f":"SUMIFS(Sheet1!S71_OY2AdjustedBudget,Sheet1!S71_SA34Code,$AC:$AC,Sheet1!S71_A5CapexCode,$AD:$AD)","v":0},null,null,null,null,null,null,null,null,null,null,null,null,null,null,null,"0440","CE"]
["Outfall Sewers",null,{"$f":"SUMIFS(Sheet1!S71_OriginalBudget,Sheet1!S71_SA34Code,$AC:$AC,Sheet1!S71_A5CapexCode,$AD:$AD)","v":0},{"$f":"SUMIFS(Sheet1!S71_SpecialAdjustedBudget,Sheet1!S71_SA34Code,$AC:$AC,Sheet1!S71_A5CapexCode,$AD:$AD)","v":0},null,null,null,null,{"$f":"SUMIFS(Sheet1!S71_AdjustmentAmount,Sheet1!S71_SA34Code,$AC:$AC,Sheet1!S71_A5CapexCode,$AD:$AD)","v":0},0,0,{"$f":"SUMIFS(Sheet1!S71_OY1AdjustedBudget,Sheet1!S71_SA34Code,$AC:$AC,Sheet1!S71_A5CapexCode,$AD:$AD)","v":0},{"$f":"SUMIFS(Sheet1!S71_OY2AdjustedBudget,Sheet1!S71_SA34Code,$AC:$AC,Sheet1!S71_A5CapexCode,$AD:$AD)","v":0},null,null,null,null,null,null,null,null,null,null,null,null,null,null,null,"0450","CE"]
["Toilet Facilities",null,{"$f":"SUMIFS(Sheet1!S71_OriginalBudget,Sheet1!S71_SA34Code,$AC:$AC,Sheet1!S71_A5CapexCode,$AD:$AD)","v":0},{"$f":"SUMIFS(Sheet1!S71_SpecialAdjustedBudget,Sheet1!S71_SA34Code,$AC:$AC,Sheet1!S71_A5CapexCode,$AD:$AD)","v":0},null,null,null,null,{"$f":"SUMIFS(Sheet1!S71_AdjustmentAmount,Sheet1!S71_SA34Code,$AC:$AC,Sheet1!S71_A5CapexCode,$AD:$AD)","v":0},0,0,{"$f":"SUMIFS(Sheet1!S71_OY1AdjustedBudget,Sheet1!S71_SA34Code,$AC:$AC,Sheet1!S71_A5CapexCode,$AD:$AD)","v":0},{"$f":"SUMIFS(Sheet1!S71_OY2AdjustedBudget,Sheet1!S71_SA34Code,$AC:$AC,Sheet1!S71_A5CapexCode,$AD:$AD)","v":0},null,null,null,null,null,null,null,null,null,null,null,null,null,null,null,"0460","CE"]
["Capital Spares",null,{"$f":"SUMIFS(Sheet1!S71_OriginalBudget,Sheet1!S71_SA34Code,$AC:$AC,Sheet1!S71_A5CapexCode,$AD:$AD)","v":0},{"$f":"SUMIFS(Sheet1!S71_SpecialAdjustedBudget,Sheet1!S71_SA34Code,$AC:$AC,Sheet1!S71_A5CapexCode,$AD:$AD)","v":0},null,null,null,null,{"$f":"SUMIFS(Sheet1!S71_AdjustmentAmount,Sheet1!S71_SA34Code,$AC:$AC,Sheet1!S71_A5CapexCode,$AD:$AD)","v":0},0,0,{"$f":"SUMIFS(Sheet1!S71_OY1AdjustedBudget,Sheet1!S71_SA34Code,$AC:$AC,Sheet1!S71_A5CapexCode,$AD:$AD)","v":0},{"$f":"SUMIFS(Sheet1!S71_OY2AdjustedBudget,Sheet1!S71_SA34Code,$AC:$AC,Sheet1!S71_A5CapexCode,$AD:$AD)","v":0},null,null,null,null,null,null,null,null,null,null,null,null,null,null,null,"0470","CE"]
["Solid Waste Infrastructure",null,{"$f":"SUM(C47:C53)","v":500000},{"$f":"SUM(D47:D53)","v":0},0,0,0,0,-500000,-500000,0,209000,218405,null,null,null,null,null,null,null,null,null,null,null,null,null,null,null,null,"CE"]
["Landfill Sites",null,{"$f":"SUMIFS(Sheet1!S71_OriginalBudget,Sheet1!S71_SA34Code,$AC:$AC,Sheet1!S71_A5CapexCode,$AD:$AD)","v":500000},{"$f":"SUMIFS(Sheet1!S71_SpecialAdjustedBudget,Sheet1!S71_SA34Code,$AC:$AC,Sheet1!S71_A5CapexCode,$AD:$AD)","v":0},null,null,null,null,{"$f":"SUMIFS(Sheet1!S71_AdjustmentAmount,Sheet1!S71_SA34Code,$AC:$AC,Sheet1!S71_A5CapexCode,$AD:$AD)","v":-500000},-500000,0,{"$f":"SUMIFS(Sheet1!S71_OY1AdjustedBudget,Sheet1!S71_SA34Code,$AC:$AC,Sheet1!S71_A5CapexCode,$AD:$AD)","v":209000},{"$f":"SUMIFS(Sheet1!S71_OY2AdjustedBudget,Sheet1!S71_SA34Code,$AC:$AC,Sheet1!S71_A5CapexCode,$AD:$AD)","v":218405},null,null,null,null,null,null,null,null,null,null,null,null,null,null,null,"0490","CE"]
["Waste Transfer Stations",null,{"$f":"SUMIFS(Sheet1!S71_OriginalBudget,Sheet1!S71_SA34Code,$AC:$AC,Sheet1!S71_A5CapexCode,$AD:$AD)","v":0},{"$f":"SUMIFS(Sheet1!S71_SpecialAdjustedBudget,Sheet1!S71_SA34Code,$AC:$AC,Sheet1!S71_A5CapexCode,$AD:$AD)","v":0},null,null,null,null,{"$f":"SUMIFS(Sheet1!S71_AdjustmentAmount,Sheet1!S71_SA34Code,$AC:$AC,Sheet1!S71_A5CapexCode,$AD:$AD)","v":0},0,0,{"$f":"SUMIFS(Sheet1!S71_OY1AdjustedBudget,Sheet1!S71_SA34Code,$AC:$AC,Sheet1!S71_A5CapexCode,$AD:$AD)","v":0},{"$f":"SUMIFS(Sheet1!S71_OY2AdjustedBudget,Sheet1!S71_SA34Code,$AC:$AC,Sheet1!S71_A5CapexCode,$AD:$AD)","v":0},null,null,null,null,null,null,null,null,null,null,null,null,null,null,null,"0500","CE"]
["Waste Processing Facilities",null,{"$f":"SUMIFS(Sheet1!S71_OriginalBudget,Sheet1!S71_SA34Code,$AC:$AC,Sheet1!S71_A5CapexCode,$AD:$AD)","v":0},{"$f":"SUMIFS(Sheet1!S71_SpecialAdjustedBudget,Sheet1!S71_SA34Code,$AC:$AC,Sheet1!S71_A5CapexCode,$AD:$AD)","v":0},null,null,null,null,{"$f":"SUMIFS(Sheet1!S71_AdjustmentAmount,Sheet1!S71_SA34Code,$AC:$AC,Sheet1!S71_A5CapexCode,$AD:$AD)","v":0},0,0,{"$f":"SUMIFS(Sheet1!S71_OY1AdjustedBudget,Sheet1!S71_SA34Code,$AC:$AC,Sheet1!S71_A5CapexCode,$AD:$AD)","v":0},{"$f":"SUMIFS(Sheet1!S71_OY2AdjustedBudget,Sheet1!S71_SA34Code,$AC:$AC,Sheet1!S71_A5CapexCode,$AD:$AD)","v":0},null,null,null,null,null,null,null,null,null,null,null,null,null,null,null,"0510","CE"]
["Waste Drop-off Points",null,{"$f":"SUMIFS(Sheet1!S71_OriginalBudget,Sheet1!S71_SA34Code,$AC:$AC,Sheet1!S71_A5CapexCode,$AD:$AD)","v":0},{"$f":"SUMIFS(Sheet1!S71_SpecialAdjustedBudget,Sheet1!S71_SA34Code,$AC:$AC,Sheet1!S71_A5CapexCode,$AD:$AD)","v":0},null,null,null,null,{"$f":"SUMIFS(Sheet1!S71_AdjustmentAmount,Sheet1!S71_SA34Code,$AC:$AC,Sheet1!S71_A5CapexCode,$AD:$AD)","v":0},0,0,{"$f":"SUMIFS(Sheet1!S71_OY1AdjustedBudget,Sheet1!S71_SA34Code,$AC:$AC,Sheet1!S71_A5CapexCode,$AD:$AD)","v":0},{"$f":"SUMIFS(Sheet1!S71_OY2AdjustedBudget,Sheet1!S71_SA34Code,$AC:$AC,Sheet1!S71_A5CapexCode,$AD:$AD)","v":0},null,null,null,null,null,null,null,null,null,null,null,null,null,null,null,"0520","CE"]
["Waste Separation Facilities",null,{"$f":"SUMIFS(Sheet1!S71_OriginalBudget,Sheet1!S71_SA34Code,$AC:$AC,Sheet1!S71_A5CapexCode,$AD:$AD)","v":0},{"$f":"SUMIFS(Sheet1!S71_SpecialAdjustedBudget,Sheet1!S71_SA34Code,$AC:$AC,Sheet1!S71_A5CapexCode,$AD:$AD)","v":0},null,null,null,null,{"$f":"SUMIFS(Sheet1!S71_AdjustmentAmount,Sheet1!S71_SA34Code,$AC:$AC,Sheet1!S71_A5CapexCode,$AD:$AD)","v":0},0,0,{"$f":"SUMIFS(Sheet1!S71_OY1AdjustedBudget,Sheet1!S71_SA34Code,$AC:$AC,Sheet1!S71_A5CapexCode,$AD:$AD)","v":0},{"$f":"SUMIFS(Sheet1!S71_OY2AdjustedBudget,Sheet1!S71_SA34Code,$AC:$AC,Sheet1!S71_A5CapexCode,$AD:$AD)","v":0},null,null,null,null,null,null,null,null,null,null,null,null,null,null,null,"0530","CE"]
["Electricity Generation Facilities",null,{"$f":"SUMIFS(Sheet1!S71_OriginalBudget,Sheet1!S71_SA34Code,$AC:$AC,Sheet1!S71_A5CapexCode,$AD:$AD)","v":0},{"$f":"SUMIFS(Sheet1!S71_SpecialAdjustedBudget,Sheet1!S71_SA34Code,$AC:$AC,Sheet1!S71_A5CapexCode,$AD:$AD)","v":0},null,null,null,null,{"$f":"SUMIFS(Sheet1!S71_AdjustmentAmount,Sheet1!S71_SA34Code,$AC:$AC,Sheet1!S71_A5CapexCode,$AD:$AD)","v":0},0,0,{"$f":"SUMIFS(Sheet1!S71_OY1AdjustedBudget,Sheet1!S71_SA34Code,$AC:$AC,Sheet1!S71_A5CapexCode,$AD:$AD)","v":0},{"$f":"SUMIFS(Sheet1!S71_OY2AdjustedBudget,Sheet1!S71_SA34Code,$AC:$AC,Sheet1!S71_A5CapexCode,$AD:$AD)","v":0},null,null,null,null,null,null,null,null,null,null,null,null,null,null,null,"0540","CE"]
["Capital Spares",null,{"$f":"SUMIFS(Sheet1!S71_OriginalBudget,Sheet1!S71_SA34Code,$AC:$AC,Sheet1!S71_A5CapexCode,$AD:$AD)","v":0},{"$f":"SUMIFS(Sheet1!S71_SpecialAdjustedBudget,Sheet1!S71_SA34Code,$AC:$AC,Sheet1!S71_A5CapexCode,$AD:$AD)","v":0},null,null,null,null,{"$f":"SUMIFS(Sheet1!S71_AdjustmentAmount,Sheet1!S71_SA34Code,$AC:$AC,Sheet1!S71_A5CapexCode,$AD:$AD)","v":0},0,0,{"$f":"SUMIFS(Sheet1!S71_OY1AdjustedBudget,Sheet1!S71_SA34Code,$AC:$AC,Sheet1!S71_A5CapexCode,$AD:$AD)","v":0},{"$f":"SUMIFS(Sheet1!S71_OY2AdjustedBudget,Sheet1!S71_SA34Code,$AC:$AC,Sheet1!S71_A5CapexCode,$AD:$AD)","v":0},null,null,null,null,null,null,null,null,null,null,null,null,null,null,null,"0550","CE"]
["Rail Infrastructure",null,{"$f":"SUM(C55:C63)","v":0},{"$f":"SUM(D55:D63)","v":0},0,0,0,0,0,0,0,0,0,null,null,null,null,null,null,null,null,null,null,null,null,null,null,null,null,"CE"]
["Rail Lines",null,{"$f":"SUMIFS(Sheet1!S71_OriginalBudget,Sheet1!S71_SA34Code,$AC:$AC,Sheet1!S71_A5CapexCode,$AD:$AD)","v":0},{"$f":"SUMIFS(Sheet1!S71_SpecialAdjustedBudget,Sheet1!S71_SA34Code,$AC:$AC,Sheet1!S71_A5CapexCode,$AD:$AD)","v":0},null,null,null,null,{"$f":"SUMIFS(Sheet1!S71_AdjustmentAmount,Sheet1!S71_SA34Code,$AC:$AC,Sheet1!S71_A5CapexCode,$AD:$AD)","v":0},0,0,{"$f":"SUMIFS(Sheet1!S71_OY1AdjustedBudget,Sheet1!S71_SA34Code,$AC:$AC,Sheet1!S71_A5CapexCode,$AD:$AD)","v":0},{"$f":"SUMIFS(Sheet1!S71_OY2AdjustedBudget,Sheet1!S71_SA34Code,$AC:$AC,Sheet1!S71_A5CapexCode,$AD:$AD)","v":0},null,null,null,null,null,null,null,null,null,null,null,null,null,null,null,"0570","CE"]
["Rail Structures",null,{"$f":"SUMIFS(Sheet1!S71_OriginalBudget,Sheet1!S71_SA34Code,$AC:$AC,Sheet1!S71_A5CapexCode,$AD:$AD)","v":0},{"$f":"SUMIFS(Sheet1!S71_SpecialAdjustedBudget,Sheet1!S71_SA34Code,$AC:$AC,Sheet1!S71_A5CapexCode,$AD:$AD)","v":0},null,null,null,null,{"$f":"SUMIFS(Sheet1!S71_AdjustmentAmount,Sheet1!S71_SA34Code,$AC:$AC,Sheet1!S71_A5CapexCode,$AD:$AD)","v":0},0,0,{"$f":"SUMIFS(Sheet1!S71_OY1AdjustedBudget,Sheet1!S71_SA34Code,$AC:$AC,Sheet1!S71_A5CapexCode,$AD:$AD)","v":0},{"$f":"SUMIFS(Sheet1!S71_OY2AdjustedBudget,Sheet1!S71_SA34Code,$AC:$AC,Sheet1!S71_A5CapexCode,$AD:$AD)","v":0},null,null,null,null,null,null,null,null,null,null,null,null,null,null,null,"0580","CE"]
["Rail Furniture",null,{"$f":"SUMIFS(Sheet1!S71_OriginalBudget,Sheet1!S71_SA34Code,$AC:$AC,Sheet1!S71_A5CapexCode,$AD:$AD)","v":0},{"$f":"SUMIFS(Sheet1!S71_SpecialAdjustedBudget,Sheet1!S71_SA34Code,$AC:$AC,Sheet1!S71_A5CapexCode,$AD:$AD)","v":0},null,null,null,null,{"$f":"SUMIFS(Sheet1!S71_AdjustmentAmount,Sheet1!S71_SA34Code,$AC:$AC,Sheet1!S71_A5CapexCode,$AD:$AD)","v":0},0,0,{"$f":"SUMIFS(Sheet1!S71_OY1AdjustedBudget,Sheet1!S71_SA34Code,$AC:$AC,Sheet1!S71_A5CapexCode,$AD:$AD)","v":0},{"$f":"SUMIFS(Sheet1!S71_OY2AdjustedBudget,Sheet1!S71_SA34Code,$AC:$AC,Sheet1!S71_A5CapexCode,$AD:$AD)","v":0},null,null,null,null,null,null,null,null,null,null,null,null,null,null,null,"0590","CE"]
["Drainage Collection",null,{"$f":"SUMIFS(Sheet1!S71_OriginalBudget,Sheet1!S71_SA34Code,$AC:$AC,Sheet1!S71_A5CapexCode,$AD:$AD)","v":0},{"$f":"SUMIFS(Sheet1!S71_SpecialAdjustedBudget,Sheet1!S71_SA34Code,$AC:$AC,Sheet1!S71_A5CapexCode,$AD:$AD)","v":0},null,null,null,null,{"$f":"SUMIFS(Sheet1!S71_AdjustmentAmount,Sheet1!S71_SA34Code,$AC:$AC,Sheet1!S71_A5CapexCode,$AD:$AD)","v":0},0,0,{"$f":"SUMIFS(Sheet1!S71_OY1AdjustedBudget,Sheet1!S71_SA34Code,$AC:$AC,Sheet1!S71_A5CapexCode,$AD:$AD)","v":0},{"$f":"SUMIFS(Sheet1!S71_OY2AdjustedBudget,Sheet1!S71_SA34Code,$AC:$AC,Sheet1!S71_A5CapexCode,$AD:$AD)","v":0},null,null,null,null,null,null,null,null,null,null,null,null,null,null,null,"0600","CE"]
["Storm water Conveyance",null,{"$f":"SUMIFS(Sheet1!S71_OriginalBudget,Sheet1!S71_SA34Code,$AC:$AC,Sheet1!S71_A5CapexCode,$AD:$AD)","v":0},{"$f":"SUMIFS(Sheet1!S71_SpecialAdjustedBudget,Sheet1!S71_SA34Code,$AC:$AC,Sheet1!S71_A5CapexCode,$AD:$AD)","v":0},null,null,null,null,{"$f":"SUMIFS(Sheet1!S71_AdjustmentAmount,Sheet1!S71_SA34Code,$AC:$AC,Sheet1!S71_A5CapexCode,$AD:$AD)","v":0},0,0,{"$f":"SUMIFS(Sheet1!S71_OY1AdjustedBudget,Sheet1!S71_SA34Code,$AC:$AC,Sheet1!S71_A5CapexCode,$AD:$AD)","v":0},{"$f":"SUMIFS(Sheet1!S71_OY2AdjustedBudget,Sheet1!S71_SA34Code,$AC:$AC,Sheet1!S71_A5CapexCode,$AD:$AD)","v":0},null,null,null,null,null,null,null,null,null,null,null,null,null,null,null,"0610","CE"]
["Attenuation",null,{"$f":"SUMIFS(Sheet1!S71_OriginalBudget,Sheet1!S71_SA34Code,$AC:$AC,Sheet1!S71_A5CapexCode,$AD:$AD)","v":0},{"$f":"SUMIFS(Sheet1!S71_SpecialAdjustedBudget,Sheet1!S71_SA34Code,$AC:$AC,Sheet1!S71_A5CapexCode,$AD:$AD)","v":0},null,null,null,null,{"$f":"SUMIFS(Sheet1!S71_AdjustmentAmount,Sheet1!S71_SA34Code,$AC:$AC,Sheet1!S71_A5CapexCode,$AD:$AD)","v":0},0,0,{"$f":"SUMIFS(Sheet1!S71_OY1AdjustedBudget,Sheet1!S71_SA34Code,$AC:$AC,Sheet1!S71_A5CapexCode,$AD:$AD)","v":0},{"$f":"SUMIFS(Sheet1!S71_OY2AdjustedBudget,Sheet1!S71_SA34Code,$AC:$AC,Sheet1!S71_A5CapexCode,$AD:$AD)","v":0},null,null,null,null,null,null,null,null,null,null,null,null,null,null,null,"0620","CE"]
["MV Substations",null,{"$f":"SUMIFS(Sheet1!S71_OriginalBudget,Sheet1!S71_SA34Code,$AC:$AC,Sheet1!S71_A5CapexCode,$AD:$AD)","v":0},{"$f":"SUMIFS(Sheet1!S71_SpecialAdjustedBudget,Sheet1!S71_SA34Code,$AC:$AC,Sheet1!S71_A5CapexCode,$AD:$AD)","v":0},null,null,null,null,{"$f":"SUMIFS(Sheet1!S71_AdjustmentAmount,Sheet1!S71_SA34Code,$AC:$AC,Sheet1!S71_A5CapexCode,$AD:$AD)","v":0},0,0,{"$f":"SUMIFS(Sheet1!S71_OY1AdjustedBudget,Sheet1!S71_SA34Code,$AC:$AC,Sheet1!S71_A5CapexCode,$AD:$AD)","v":0},{"$f":"SUMIFS(Sheet1!S71_OY2AdjustedBudget,Sheet1!S71_SA34Code,$AC:$AC,Sheet1!S71_A5CapexCode,$AD:$AD)","v":0},null,null,null,null,null,null,null,null,null,null,null,null,null,null,null,"0630","CE"]
["LV Networks",null,{"$f":"SUMIFS(Sheet1!S71_OriginalBudget,Sheet1!S71_SA34Code,$AC:$AC,Sheet1!S71_A5CapexCode,$AD:$AD)","v":0},{"$f":"SUMIFS(Sheet1!S71_SpecialAdjustedBudget,Sheet1!S71_SA34Code,$AC:$AC,Sheet1!S71_A5CapexCode,$AD:$AD)","v":0},null,null,null,null,{"$f":"SUMIFS(Sheet1!S71_AdjustmentAmount,Sheet1!S71_SA34Code,$AC:$AC,Sheet1!S71_A5CapexCode,$AD:$AD)","v":0},0,0,{"$f":"SUMIFS(Sheet1!S71_OY1AdjustedBudget,Sheet1!S71_SA34Code,$AC:$AC,Sheet1!S71_A5CapexCode,$AD:$AD)","v":0},{"$f":"SUMIFS(Sheet1!S71_OY2AdjustedBudget,Sheet1!S71_SA34Code,$AC:$AC,Sheet1!S71_A5CapexCode,$AD:$AD)","v":0},null,null,null,null,null,null,null,null,null,null,null,null,null,null,null,"0640","CE"]
["Capital Spares",null,{"$f":"SUMIFS(Sheet1!S71_OriginalBudget,Sheet1!S71_SA34Code,$AC:$AC,Sheet1!S71_A5CapexCode,$AD:$AD)","v":0},{"$f":"SUMIFS(Sheet1!S71_SpecialAdjustedBudget,Sheet1!S71_SA34Code,$AC:$AC,Sheet1!S71_A5CapexCode,$AD:$AD)","v":0},null,null,null,null,{"$f":"SUMIFS(Sheet1!S71_AdjustmentAmount,Sheet1!S71_SA34Code,$AC:$AC,Sheet1!S71_A5CapexCode,$AD:$AD)","v":0},0,0,{"$f":"SUMIFS(Sheet1!S71_OY1AdjustedBudget,Sheet1!S71_SA34Code,$AC:$AC,Sheet1!S71_A5CapexCode,$AD:$AD)","v":0},{"$f":"SUMIFS(Sheet1!S71_OY2AdjustedBudget,Sheet1!S71_SA34Code,$AC:$AC,Sheet1!S71_A5CapexCode,$AD:$AD)","v":0},null,null,null,null,null,null,null,null,null,null,null,null,null,null,null,"0650","CE"]
["Coastal Infrastructure",null,{"$f":"SUM(C65:C69)","v":0},0,0,0,0,0,0,0,0,0,0,null,null,null,null,null,null,null,null,null,null,null,null,null,null,null,null,"CE"]
["Sand Pumps",null,{"$f":"SUMIFS(Sheet1!S71_OriginalBudget,Sheet1!S71_SA34Code,$AC:$AC,Sheet1!S71_A5CapexCode,$AD:$AD)","v":0},{"$f":"SUMIFS(Sheet1!S71_SpecialAdjustedBudget,Sheet1!S71_SA34Code,$AC:$AC,Sheet1!S71_A5CapexCode,$AD:$AD)","v":0},null,null,null,null,{"$f":"SUMIFS(Sheet1!S71_AdjustmentAmount,Sheet1!S71_SA34Code,$AC:$AC,Sheet1!S71_A5CapexCode,$AD:$AD)","v":0},0,0,{"$f":"SUMIFS(Sheet1!S71_OY1AdjustedBudget,Sheet1!S71_SA34Code,$AC:$AC,Sheet1!S71_A5CapexCode,$AD:$AD)","v":0},{"$f":"SUMIFS(Sheet1!S71_OY2AdjustedBudget,Sheet1!S71_SA34Code,$AC:$AC,Sheet1!S71_A5CapexCode,$AD:$AD)","v":0},null,null,null,null,null,null,null,null,null,null,null,null,null,null,null,"0670","CE"]
["Piers",null,{"$f":"SUMIFS(Sheet1!S71_OriginalBudget,Sheet1!S71_SA34Code,$AC:$AC,Sheet1!S71_A5CapexCode,$AD:$AD)","v":0},{"$f":"SUMIFS(Sheet1!S71_SpecialAdjustedBudget,Sheet1!S71_SA34Code,$AC:$AC,Sheet1!S71_A5CapexCode,$AD:$AD)","v":0},null,null,null,null,{"$f":"SUMIFS(Sheet1!S71_AdjustmentAmount,Sheet1!S71_SA34Code,$AC:$AC,Sheet1!S71_A5CapexCode,$AD:$AD)","v":0},0,0,{"$f":"SUMIFS(Sheet1!S71_OY1AdjustedBudget,Sheet1!S71_SA34Code,$AC:$AC,Sheet1!S71_A5CapexCode,$AD:$AD)","v":0},{"$f":"SUMIFS(Sheet1!S71_OY2AdjustedBudget,Sheet1!S71_SA34Code,$AC:$AC,Sheet1!S71_A5CapexCode,$AD:$AD)","v":0},null,null,null,null,null,null,null,null,null,null,null,null,null,null,null,"0680","CE"]
["Revetments",null,{"$f":"SUMIFS(Sheet1!S71_OriginalBudget,Sheet1!S71_SA34Code,$AC:$AC,Sheet1!S71_A5CapexCode,$AD:$AD)","v":0},{"$f":"SUMIFS(Sheet1!S71_SpecialAdjustedBudget,Sheet1!S71_SA34Code,$AC:$AC,Sheet1!S71_A5CapexCode,$AD:$AD)","v":0},null,null,null,null,{"$f":"SUMIFS(Sheet1!S71_AdjustmentAmount,Sheet1!S71_SA34Code,$AC:$AC,Sheet1!S71_A5CapexCode,$AD:$AD)","v":0},0,0,{"$f":"SUMIFS(Sheet1!S71_OY1AdjustedBudget,Sheet1!S71_SA34Code,$AC:$AC,Sheet1!S71_A5CapexCode,$AD:$AD)","v":0},{"$f":"SUMIFS(Sheet1!S71_OY2AdjustedBudget,Sheet1!S71_SA34Code,$AC:$AC,Sheet1!S71_A5CapexCode,$AD:$AD)","v":0},null,null,null,null,null,null,null,null,null,null,null,null,null,null,null,"0690","CE"]
["Promenades",null,{"$f":"SUMIFS(Sheet1!S71_OriginalBudget,Sheet1!S71_SA34Code,$AC:$AC,Sheet1!S71_A5CapexCode,$AD:$AD)","v":0},{"$f":"SUMIFS(Sheet1!S71_SpecialAdjustedBudget,Sheet1!S71_SA34Code,$AC:$AC,Sheet1!S71_A5CapexCode,$AD:$AD)","v":0},null,null,null,null,{"$f":"SUMIFS(Sheet1!S71_AdjustmentAmount,Sheet1!S71_SA34Code,$AC:$AC,Sheet1!S71_A5CapexCode,$AD:$AD)","v":0},0,0,{"$f":"SUMIFS(Sheet1!S71_OY1AdjustedBudget,Sheet1!S71_SA34Code,$AC:$AC,Sheet1!S71_A5CapexCode,$AD:$AD)","v":0},{"$f":"SUMIFS(Sheet1!S71_OY2AdjustedBudget,Sheet1!S71_SA34Code,$AC:$AC,Sheet1!S71_A5CapexCode,$AD:$AD)","v":0},null,null,null,null,null,null,null,null,null,null,null,null,null,null,null,"0700","CE"]
["Capital Spares",null,{"$f":"SUMIFS(Sheet1!S71_OriginalBudget,Sheet1!S71_SA34Code,$AC:$AC,Sheet1!S71_A5CapexCode,$AD:$AD)","v":0},{"$f":"SUMIFS(Sheet1!S71_SpecialAdjustedBudget,Sheet1!S71_SA34Code,$AC:$AC,Sheet1!S71_A5CapexCode,$AD:$AD)","v":0},null,null,null,null,{"$f":"SUMIFS(Sheet1!S71_AdjustmentAmount,Sheet1!S71_SA34Code,$AC:$AC,Sheet1!S71_A5CapexCode,$AD:$AD)","v":0},0,0,{"$f":"SUMIFS(Sheet1!S71_OY1AdjustedBudget,Sheet1!S71_SA34Code,$AC:$AC,Sheet1!S71_A5CapexCode,$AD:$AD)","v":0},{"$f":"SUMIFS(Sheet1!S71_OY2AdjustedBudget,Sheet1!S71_SA34Code,$AC:$AC,Sheet1!S71_A5CapexCode,$AD:$AD)","v":0},null,null,null,null,null,null,null,null,null,null,null,null,null,null,null,"0710","CE"]
["Information and Communication Infrastructure",null,{"$f":"SUM(C71:C74)","v":0},0,0,0,0,0,0,0,0,0,0,null,null,null,null,null,null,null,null,null,null,null,null,null,null,null,null,"CE"]
["Data Centres",null,{"$f":"SUMIFS(Sheet1!S71_OriginalBudget,Sheet1!S71_SA34Code,$AC:$AC,Sheet1!S71_A5CapexCode,$AD:$AD)","v":0},{"$f":"SUMIFS(Sheet1!S71_SpecialAdjustedBudget,Sheet1!S71_SA34Code,$AC:$AC,Sheet1!S71_A5CapexCode,$AD:$AD)","v":0},null,null,null,null,{"$f":"SUMIFS(Sheet1!S71_AdjustmentAmount,Sheet1!S71_SA34Code,$AC:$AC,Sheet1!S71_A5CapexCode,$AD:$AD)","v":0},0,0,{"$f":"SUMIFS(Sheet1!S71_OY1AdjustedBudget,Sheet1!S71_SA34Code,$AC:$AC,Sheet1!S71_A5CapexCode,$AD:$AD)","v":0},{"$f":"SUMIFS(Sheet1!S71_OY2AdjustedBudget,Sheet1!S71_SA34Code,$AC:$AC,Sheet1!S71_A5CapexCode,$AD:$AD)","v":0},null,null,null,null,null,null,null,null,null,null,null,null,null,null,null,"0730","CE"]
["Core Layers",null,{"$f":"SUMIFS(Sheet1!S71_OriginalBudget,Sheet1!S71_SA34Code,$AC:$AC,Sheet1!S71_A5CapexCode,$AD:$AD)","v":0},{"$f":"SUMIFS(Sheet1!S71_SpecialAdjustedBudget,Sheet1!S71_SA34Code,$AC:$AC,Sheet1!S71_A5CapexCode,$AD:$AD)","v":0},null,null,null,null,{"$f":"SUMIFS(Sheet1!S71_AdjustmentAmount,Sheet1!S71_SA34Code,$AC:$AC,Sheet1!S71_A5CapexCode,$AD:$AD)","v":0},0,0,{"$f":"SUMIFS(Sheet1!S71_OY1AdjustedBudget,Sheet1!S71_SA34Code,$AC:$AC,Sheet1!S71_A5CapexCode,$AD:$AD)","v":0},{"$f":"SUMIFS(Sheet1!S71_OY2AdjustedBudget,Sheet1!S71_SA34Code,$AC:$AC,Sheet1!S71_A5CapexCode,$AD:$AD)","v":0},null,null,null,null,null,null,null,null,null,null,null,null,null,null,null,"0740","CE"]
["Distribution Layers",null,{"$f":"SUMIFS(Sheet1!S71_OriginalBudget,Sheet1!S71_SA34Code,$AC:$AC,Sheet1!S71_A5CapexCode,$AD:$AD)","v":0},{"$f":"SUMIFS(Sheet1!S71_SpecialAdjustedBudget,Sheet1!S71_SA34Code,$AC:$AC,Sheet1!S71_A5CapexCode,$AD:$AD)","v":0},null,null,null,null,{"$f":"SUMIFS(Sheet1!S71_AdjustmentAmount,Sheet1!S71_SA34Code,$AC:$AC,Sheet1!S71_A5CapexCode,$AD:$AD)","v":0},{"$f":"SUM(E73:I73)","v":0},{"$f":"IF(D73=0,C73+J73,D73+J73)","v":0},{"$f":"SUMIFS(Sheet1!S71_OY1AdjustedBudget,Sheet1!S71_SA34Code,$AC:$AC,Sheet1!S71_A5CapexCode,$AD:$AD)","v":0},{"$f":"SUMIFS(Sheet1!S71_OY2AdjustedBudget,Sheet1!S71_SA34Code,$AC:$AC,Sheet1!S71_A5CapexCode,$AD:$AD)","v":0},null,null,null,null,null,null,null,null,null,null,null,null,null,null,null,"0750","CE"]
["Capital Spares",null,{"$f":"SUMIFS(Sheet1!S71_OriginalBudget,Sheet1!S71_SA34Code,$AC:$AC,Sheet1!S71_A5CapexCode,$AD:$AD)","v":0},{"$f":"SUMIFS(Sheet1!S71_SpecialAdjustedBudget,Sheet1!S71_SA34Code,$AC:$AC,Sheet1!S71_A5CapexCode,$AD:$AD)","v":0},null,null,null,null,{"$f":"SUMIFS(Sheet1!S71_AdjustmentAmount,Sheet1!S71_SA34Code,$AC:$AC,Sheet1!S71_A5CapexCode,$AD:$AD)","v":0},{"$f":"SUM(E74:I74)","v":0},{"$f":"IF(D74=0,C74+J74,D74+J74)","v":0},{"$f":"SUMIFS(Sheet1!S71_OY1AdjustedBudget,Sheet1!S71_SA34Code,$AC:$AC,Sheet1!S71_A5CapexCode,$AD:$AD)","v":0},{"$f":"SUMIFS(Sheet1!S71_OY2AdjustedBudget,Sheet1!S71_SA34Code,$AC:$AC,Sheet1!S71_A5CapexCode,$AD:$AD)","v":0},null,null,null,null,null,null,null,null,null,null,null,null,null,null,null,"0760","CE"]
[null,null,null,null,null,null,null,null,null,null,null,null,null,null,null,null,null,null,null,null,null,null,null,null,null,null,null,null,null,"CE"]
["Community Assets",null,{"$f":"+C77+C100","v":1000000},{"$f":"+D77+D100","v":0},{"$f":"+E77+E100","v":0},0,0,0,-1000000,{"$f":"SUM(E76:I76)","v":-1000000},{"$f":"IF(D76=0,C76+J76,D76+J76)","v":0},0,0,null,null,null,null,null,null,null,null,null,null,null,null,null,null,null,null,"CE"]
["Community Facilities",null,{"$f":"SUM(C78:C99)","v":1000000},{"$f":"SUM(D78:D99)","v":0},0,0,0,0,-1000000,-1000000,0,{"$f":"SUM(L78:L99)","v":0},{"$f":"SUM(M78:M99)","v":0},null,null,null,null,null,null,null,null,null,null,null,null,null,null,null,null,"CE"]
["Halls",null,{"$f":"SUMIFS(Sheet1!S71_OriginalBudget,Sheet1!S71_SA34Code,$AC:$AC,Sheet1!S71_A5CapexCode,$AD:$AD)","v":0},{"$f":"SUMIFS(Sheet1!S71_SpecialAdjustedBudget,Sheet1!S71_SA34Code,$AC:$AC,Sheet1!S71_A5CapexCode,$AD:$AD)","v":0},null,null,null,null,{"$f":"SUMIFS(Sheet1!S71_AdjustmentAmount,Sheet1!S71_SA34Code,$AC:$AC,Sheet1!S71_A5CapexCode,$AD:$AD)","v":0},0,0,{"$f":"SUMIFS(Sheet1!S71_OY1AdjustedBudget,Sheet1!S71_SA34Code,$AC:$AC,Sheet1!S71_A5CapexCode,$AD:$AD)","v":0},{"$f":"SUMIFS(Sheet1!S71_OY2AdjustedBudget,Sheet1!S71_SA34Code,$AC:$AC,Sheet1!S71_A5CapexCode,$AD:$AD)","v":0},null,null,null,null,null,null,null,null,null,null,null,null,null,null,null,"0790","CE"]
["Centres",null,{"$f":"SUMIFS(Sheet1!S71_OriginalBudget,Sheet1!S71_SA34Code,$AC:$AC,Sheet1!S71_A5CapexCode,$AD:$AD)","v":0},{"$f":"SUMIFS(Sheet1!S71_SpecialAdjustedBudget,Sheet1!S71_SA34Code,$AC:$AC,Sheet1!S71_A5CapexCode,$AD:$AD)","v":0},null,null,null,null,{"$f":"SUMIFS(Sheet1!S71_AdjustmentAmount,Sheet1!S71_SA34Code,$AC:$AC,Sheet1!S71_A5CapexCode,$AD:$AD)","v":0},0,0,{"$f":"SUMIFS(Sheet1!S71_OY1AdjustedBudget,Sheet1!S71_SA34Code,$AC:$AC,Sheet1!S71_A5CapexCode,$AD:$AD)","v":0},{"$f":"SUMIFS(Sheet1!S71_OY2AdjustedBudget,Sheet1!S71_SA34Code,$AC:$AC,Sheet1!S71_A5CapexCode,$AD:$AD)","v":0},null,null,null,null,null,null,null,null,null,null,null,null,null,null,null,"0800","CE"]
["Crèches",null,{"$f":"SUMIFS(Sheet1!S71_OriginalBudget,Sheet1!S71_SA34Code,$AC:$AC,Sheet1!S71_A5CapexCode,$AD:$AD)","v":0},{"$f":"SUMIFS(Sheet1!S71_SpecialAdjustedBudget,Sheet1!S71_SA34Code,$AC:$AC,Sheet1!S71_A5CapexCode,$AD:$AD)","v":0},null,null,null,null,{"$f":"SUMIFS(Sheet1!S71_AdjustmentAmount,Sheet1!S71_SA34Code,$AC:$AC,Sheet1!S71_A5CapexCode,$AD:$AD)","v":0},0,0,{"$f":"SUMIFS(Sheet1!S71_OY1AdjustedBudget,Sheet1!S71_SA34Code,$AC:$AC,Sheet1!S71_A5CapexCode,$AD:$AD)","v":0},{"$f":"SUMIFS(Sheet1!S71_OY2AdjustedBudget,Sheet1!S71_SA34Code,$AC:$AC,Sheet1!S71_A5CapexCode,$AD:$AD)","v":0},null,null,null,null,null,null,null,null,null,null,null,null,null,null,null,"0810","CE"]
["Clinics/Care Centres",null,{"$f":"SUMIFS(Sheet1!S71_OriginalBudget,Sheet1!S71_SA34Code,$AC:$AC,Sheet1!S71_A5CapexCode,$AD:$AD)","v":0},{"$f":"SUMIFS(Sheet1!S71_SpecialAdjustedBudget,Sheet1!S71_SA34Code,$AC:$AC,Sheet1!S71_A5CapexCode,$AD:$AD)","v":0},null,null,null,null,{"$f":"SUMIFS(Sheet1!S71_AdjustmentAmount,Sheet1!S71_SA34Code,$AC:$AC,Sheet1!S71_A5CapexCode,$AD:$AD)","v":0},0,0,{"$f":"SUMIFS(Sheet1!S71_OY1AdjustedBudget,Sheet1!S71_SA34Code,$AC:$AC,Sheet1!S71_A5CapexCode,$AD:$AD)","v":0},{"$f":"SUMIFS(Sheet1!S71_OY2AdjustedBudget,Sheet1!S71_SA34Code,$AC:$AC,Sheet1!S71_A5CapexCode,$AD:$AD)","v":0},null,null,null,null,null,null,null,null,null,null,null,null,null,null,null,"0820","CE"]
["Fire/Ambulance Stations",null,{"$f":"SUMIFS(Sheet1!S71_OriginalBudget,Sheet1!S71_SA34Code,$AC:$AC,Sheet1!S71_A5CapexCode,$AD:$AD)","v":0},{"$f":"SUMIFS(Sheet1!S71_SpecialAdjustedBudget,Sheet1!S71_SA34Code,$AC:$AC,Sheet1!S71_A5CapexCode,$AD:$AD)","v":0},null,null,null,null,{"$f":"SUMIFS(Sheet1!S71_AdjustmentAmount,Sheet1!S71_SA34Code,$AC:$AC,Sheet1!S71_A5CapexCode,$AD:$AD)","v":0},0,0,{"$f":"SUMIFS(Sheet1!S71_OY1AdjustedBudget,Sheet1!S71_SA34Code,$AC:$AC,Sheet1!S71_A5CapexCode,$AD:$AD)","v":0},{"$f":"SUMIFS(Sheet1!S71_OY2AdjustedBudget,Sheet1!S71_SA34Code,$AC:$AC,Sheet1!S71_A5CapexCode,$AD:$AD)","v":0},null,null,null,null,null,null,null,null,null,null,null,null,null,null,null,"0830","CE"]
["Testing Stations",null,{"$f":"SUMIFS(Sheet1!S71_OriginalBudget,Sheet1!S71_SA34Code,$AC:$AC,Sheet1!S71_A5CapexCode,$AD:$AD)","v":0},{"$f":"SUMIFS(Sheet1!S71_SpecialAdjustedBudget,Sheet1!S71_SA34Code,$AC:$AC,Sheet1!S71_A5CapexCode,$AD:$AD)","v":0},null,null,null,null,{"$f":"SUMIFS(Sheet1!S71_AdjustmentAmount,Sheet1!S71_SA34Code,$AC:$AC,Sheet1!S71_A5CapexCode,$AD:$AD)","v":0},0,0,{"$f":"SUMIFS(Sheet1!S71_OY1AdjustedBudget,Sheet1!S71_SA34Code,$AC:$AC,Sheet1!S71_A5CapexCode,$AD:$AD)","v":0},{"$f":"SUMIFS(Sheet1!S71_OY2AdjustedBudget,Sheet1!S71_SA34Code,$AC:$AC,Sheet1!S71_A5CapexCode,$AD:$AD)","v":0},null,null,null,null,null,null,null,null,null,null,null,null,null,null,null,"0840","CE"]
["Museums",null,{"$f":"SUMIFS(Sheet1!S71_OriginalBudget,Sheet1!S71_SA34Code,$AC:$AC,Sheet1!S71_A5CapexCode,$AD:$AD)","v":0},{"$f":"SUMIFS(Sheet1!S71_SpecialAdjustedBudget,Sheet1!S71_SA34Code,$AC:$AC,Sheet1!S71_A5CapexCode,$AD:$AD)","v":0},null,null,null,null,{"$f":"SUMIFS(Sheet1!S71_AdjustmentAmount,Sheet1!S71_SA34Code,$AC:$AC,Sheet1!S71_A5CapexCode,$AD:$AD)","v":0},0,0,{"$f":"SUMIFS(Sheet1!S71_OY1AdjustedBudget,Sheet1!S71_SA34Code,$AC:$AC,Sheet1!S71_A5CapexCode,$AD:$AD)","v":0},{"$f":"SUMIFS(Sheet1!S71_OY2AdjustedBudget,Sheet1!S71_SA34Code,$AC:$AC,Sheet1!S71_A5CapexCode,$AD:$AD)","v":0},null,null,null,null,null,null,null,null,null,null,null,null,null,null,null,"0850","CE"]
["Galleries",null,{"$f":"SUMIFS(Sheet1!S71_OriginalBudget,Sheet1!S71_SA34Code,$AC:$AC,Sheet1!S71_A5CapexCode,$AD:$AD)","v":0},{"$f":"SUMIFS(Sheet1!S71_SpecialAdjustedBudget,Sheet1!S71_SA34Code,$AC:$AC,Sheet1!S71_A5CapexCode,$AD:$AD)","v":0},null,null,null,null,{"$f":"SUMIFS(Sheet1!S71_AdjustmentAmount,Sheet1!S71_SA34Code,$AC:$AC,Sheet1!S71_A5CapexCode,$AD:$AD)","v":0},0,0,{"$f":"SUMIFS(Sheet1!S71_OY1AdjustedBudget,Sheet1!S71_SA34Code,$AC:$AC,Sheet1!S71_A5CapexCode,$AD:$AD)","v":0},{"$f":"SUMIFS(Sheet1!S71_OY2AdjustedBudget,Sheet1!S71_SA34Code,$AC:$AC,Sheet1!S71_A5CapexCode,$AD:$AD)","v":0},null,null,null,null,null,null,null,null,null,null,null,null,null,null,null,"0860","CE"]
["Theatres",null,{"$f":"SUMIFS(Sheet1!S71_OriginalBudget,Sheet1!S71_SA34Code,$AC:$AC,Sheet1!S71_A5CapexCode,$AD:$AD)","v":0},{"$f":"SUMIFS(Sheet1!S71_SpecialAdjustedBudget,Sheet1!S71_SA34Code,$AC:$AC,Sheet1!S71_A5CapexCode,$AD:$AD)","v":0},null,null,null,null,{"$f":"SUMIFS(Sheet1!S71_AdjustmentAmount,Sheet1!S71_SA34Code,$AC:$AC,Sheet1!S71_A5CapexCode,$AD:$AD)","v":0},0,0,{"$f":"SUMIFS(Sheet1!S71_OY1AdjustedBudget,Sheet1!S71_SA34Code,$AC:$AC,Sheet1!S71_A5CapexCode,$AD:$AD)","v":0},{"$f":"SUMIFS(Sheet1!S71_OY2AdjustedBudget,Sheet1!S71_SA34Code,$AC:$AC,Sheet1!S71_A5CapexCode,$AD:$AD)","v":0},null,null,null,null,null,null,null,null,null,null,null,null,null,null,null,"0870","CE"]
["Libraries",null,{"$f":"SUMIFS(Sheet1!S71_OriginalBudget,Sheet1!S71_SA34Code,$AC:$AC,Sheet1!S71_A5CapexCode,$AD:$AD)","v":500000},{"$f":"SUMIFS(Sheet1!S71_SpecialAdjustedBudget,Sheet1!S71_SA34Code,$AC:$AC,Sheet1!S71_A5CapexCode,$AD:$AD)","v":0},null,null,null,null,{"$f":"SUMIFS(Sheet1!S71_AdjustmentAmount,Sheet1!S71_SA34Code,$AC:$AC,Sheet1!S71_A5CapexCode,$AD:$AD)","v":-500000},-500000,0,{"$f":"SUMIFS(Sheet1!S71_OY1AdjustedBudget,Sheet1!S71_SA34Code,$AC:$AC,Sheet1!S71_A5CapexCode,$AD:$AD)","v":0},{"$f":"SUMIFS(Sheet1!S71_OY2AdjustedBudget,Sheet1!S71_SA34Code,$AC:$AC,Sheet1!S71_A5CapexCode,$AD:$AD)","v":0},null,null,null,null,null,null,null,null,null,null,null,null,null,null,null,"0880","CE"]
["Cemeteries/Crematoria",null,{"$f":"SUMIFS(Sheet1!S71_OriginalBudget,Sheet1!S71_SA34Code,$AC:$AC,Sheet1!S71_A5CapexCode,$AD:$AD)","v":500000},{"$f":"SUMIFS(Sheet1!S71_SpecialAdjustedBudget,Sheet1!S71_SA34Code,$AC:$AC,Sheet1!S71_A5CapexCode,$AD:$AD)","v":0},null,null,null,null,{"$f":"SUMIFS(Sheet1!S71_AdjustmentAmount,Sheet1!S71_SA34Code,$AC:$AC,Sheet1!S71_A5CapexCode,$AD:$AD)","v":-500000},-500000,0,{"$f":"SUMIFS(Sheet1!S71_OY1AdjustedBudget,Sheet1!S71_SA34Code,$AC:$AC,Sheet1!S71_A5CapexCode,$AD:$AD)","v":0},{"$f":"SUMIFS(Sheet1!S71_OY2AdjustedBudget,Sheet1!S71_SA34Code,$AC:$AC,Sheet1!S71_A5CapexCode,$AD:$AD)","v":0},null,null,null,null,null,null,null,null,null,null,null,null,null,null,null,"0890","CE"]
["Police",null,{"$f":"SUMIFS(Sheet1!S71_OriginalBudget,Sheet1!S71_SA34Code,$AC:$AC,Sheet1!S71_A5CapexCode,$AD:$AD)","v":0},{"$f":"SUMIFS(Sheet1!S71_SpecialAdjustedBudget,Sheet1!S71_SA34Code,$AC:$AC,Sheet1!S71_A5CapexCode,$AD:$AD)","v":0},null,null,null,null,{"$f":"SUMIFS(Sheet1!S71_AdjustmentAmount,Sheet1!S71_SA34Code,$AC:$AC,Sheet1!S71_A5CapexCode,$AD:$AD)","v":0},0,0,{"$f":"SUMIFS(Sheet1!S71_OY1AdjustedBudget,Sheet1!S71_SA34Code,$AC:$AC,Sheet1!S71_A5CapexCode,$AD:$AD)","v":0},{"$f":"SUMIFS(Sheet1!S71_OY2AdjustedBudget,Sheet1!S71_SA34Code,$AC:$AC,Sheet1!S71_A5CapexCode,$AD:$AD)","v":0},null,null,null,null,null,null,null,null,null,null,null,null,null,null,null,"0900","CE"]
["Purls",null,{"$f":"SUMIFS(Sheet1!S71_OriginalBudget,Sheet1!S71_SA34Code,$AC:$AC,Sheet1!S71_A5CapexCode,$AD:$AD)","v":0},{"$f":"SUMIFS(Sheet1!S71_SpecialAdjustedBudget,Sheet1!S71_SA34Code,$AC:$AC,Sheet1!S71_A5CapexCode,$AD:$AD)","v":0},null,null,null,null,{"$f":"SUMIFS(Sheet1!S71_AdjustmentAmount,Sheet1!S71_SA34Code,$AC:$AC,Sheet1!S71_A5CapexCode,$AD:$AD)","v":0},0,0,{"$f":"SUMIFS(Sheet1!S71_OY1AdjustedBudget,Sheet1!S71_SA34Code,$AC:$AC,Sheet1!S71_A5CapexCode,$AD:$AD)","v":0},{"$f":"SUMIFS(Sheet1!S71_OY2AdjustedBudget,Sheet1!S71_SA34Code,$AC:$AC,Sheet1!S71_A5CapexCode,$AD:$AD)","v":0},null,null,null,null,null,null,null,null,null,null,null,null,null,null,null,"0910","CE"]
["Public Open Space",null,{"$f":"SUMIFS(Sheet1!S71_OriginalBudget,Sheet1!S71_SA34Code,$AC:$AC,Sheet1!S71_A5CapexCode,$AD:$AD)","v":0},{"$f":"SUMIFS(Sheet1!S71_SpecialAdjustedBudget,Sheet1!S71_SA34Code,$AC:$AC,Sheet1!S71_A5CapexCode,$AD:$AD)","v":0},null,null,null,null,{"$f":"SUMIFS(Sheet1!S71_AdjustmentAmount,Sheet1!S71_SA34Code,$AC:$AC,Sheet1!S71_A5CapexCode,$AD:$AD)","v":0},0,0,{"$f":"SUMIFS(Sheet1!S71_OY1AdjustedBudget,Sheet1!S71_SA34Code,$AC:$AC,Sheet1!S71_A5CapexCode,$AD:$AD)","v":0},{"$f":"SUMIFS(Sheet1!S71_OY2AdjustedBudget,Sheet1!S71_SA34Code,$AC:$AC,Sheet1!S71_A5CapexCode,$AD:$AD)","v":0},null,null,null,null,null,null,null,null,null,null,null,null,null,null,null,"0920","CE"]
["Nature Reserves",null,{"$f":"SUMIFS(Sheet1!S71_OriginalBudget,Sheet1!S71_SA34Code,$AC:$AC,Sheet1!S71_A5CapexCode,$AD:$AD)","v":0},{"$f":"SUMIFS(Sheet1!S71_SpecialAdjustedBudget,Sheet1!S71_SA34Code,$AC:$AC,Sheet1!S71_A5CapexCode,$AD:$AD)","v":0},null,null,null,null,{"$f":"SUMIFS(Sheet1!S71_AdjustmentAmount,Sheet1!S71_SA34Code,$AC:$AC,Sheet1!S71_A5CapexCode,$AD:$AD)","v":0},0,0,{"$f":"SUMIFS(Sheet1!S71_OY1AdjustedBudget,Sheet1!S71_SA34Code,$AC:$AC,Sheet1!S71_A5CapexCode,$AD:$AD)","v":0},{"$f":"SUMIFS(Sheet1!S71_OY2AdjustedBudget,Sheet1!S71_SA34Code,$AC:$AC,Sheet1!S71_A5CapexCode,$AD:$AD)","v":0},null,null,null,null,null,null,null,null,null,null,null,null,null,null,null,"0930","CE"]
["Public Ablution Facilities",null,{"$f":"SUMIFS(Sheet1!S71_OriginalBudget,Sheet1!S71_SA34Code,$AC:$AC,Sheet1!S71_A5CapexCode,$AD:$AD)","v":0},{"$f":"SUMIFS(Sheet1!S71_SpecialAdjustedBudget,Sheet1!S71_SA34Code,$AC:$AC,Sheet1!S71_A5CapexCode,$AD:$AD)","v":0},null,null,null,null,{"$f":"SUMIFS(Sheet1!S71_AdjustmentAmount,Sheet1!S71_SA34Code,$AC:$AC,Sheet1!S71_A5CapexCode,$AD:$AD)","v":0},0,0,{"$f":"SUMIFS(Sheet1!S71_OY1AdjustedBudget,Sheet1!S71_SA34Code,$AC:$AC,Sheet1!S71_A5CapexCode,$AD:$AD)","v":0},{"$f":"SUMIFS(Sheet1!S71_OY2AdjustedBudget,Sheet1!S71_SA34Code,$AC:$AC,Sheet1!S71_A5CapexCode,$AD:$AD)","v":0},null,null,null,null,null,null,null,null,null,null,null,null,null,null,null,"0940","CE"]
["Markets",null,{"$f":"SUMIFS(Sheet1!S71_OriginalBudget,Sheet1!S71_SA34Code,$AC:$AC,Sheet1!S71_A5CapexCode,$AD:$AD)","v":0},{"$f":"SUMIFS(Sheet1!S71_SpecialAdjustedBudget,Sheet1!S71_SA34Code,$AC:$AC,Sheet1!S71_A5CapexCode,$AD:$AD)","v":0},null,null,null,null,{"$f":"SUMIFS(Sheet1!S71_AdjustmentAmount,Sheet1!S71_SA34Code,$AC:$AC,Sheet1!S71_A5CapexCode,$AD:$AD)","v":0},0,0,{"$f":"SUMIFS(Sheet1!S71_OY1AdjustedBudget,Sheet1!S71_SA34Code,$AC:$AC,Sheet1!S71_A5CapexCode,$AD:$AD)","v":0},{"$f":"SUMIFS(Sheet1!S71_OY2AdjustedBudget,Sheet1!S71_SA34Code,$AC:$AC,Sheet1!S71_A5CapexCode,$AD:$AD)","v":0},null,null,null,null,null,null,null,null,null,null,null,null,null,null,null,"0950","CE"]
["Stalls",null,{"$f":"SUMIFS(Sheet1!S71_OriginalBudget,Sheet1!S71_SA34Code,$AC:$AC,Sheet1!S71_A5CapexCode,$AD:$AD)","v":0},{"$f":"SUMIFS(Sheet1!S71_SpecialAdjustedBudget,Sheet1!S71_SA34Code,$AC:$AC,Sheet1!S71_A5CapexCode,$AD:$AD)","v":0},null,null,null,null,{"$f":"SUMIFS(Sheet1!S71_AdjustmentAmount,Sheet1!S71_SA34Code,$AC:$AC,Sheet1!S71_A5CapexCode,$AD:$AD)","v":0},0,0,{"$f":"SUMIFS(Sheet1!S71_OY1AdjustedBudget,Sheet1!S71_SA34Code,$AC:$AC,Sheet1!S71_A5CapexCode,$AD:$AD)","v":0},{"$f":"SUMIFS(Sheet1!S71_OY2AdjustedBudget,Sheet1!S71_SA34Code,$AC:$AC,Sheet1!S71_A5CapexCode,$AD:$AD)","v":0},null,null,null,null,null,null,null,null,null,null,null,null,null,null,null,"0960","CE"]
["Abattoirs",null,{"$f":"SUMIFS(Sheet1!S71_OriginalBudget,Sheet1!S71_SA34Code,$AC:$AC,Sheet1!S71_A5CapexCode,$AD:$AD)","v":0},{"$f":"SUMIFS(Sheet1!S71_SpecialAdjustedBudget,Sheet1!S71_SA34Code,$AC:$AC,Sheet1!S71_A5CapexCode,$AD:$AD)","v":0},null,null,null,null,{"$f":"SUMIFS(Sheet1!S71_AdjustmentAmount,Sheet1!S71_SA34Code,$AC:$AC,Sheet1!S71_A5CapexCode,$AD:$AD)","v":0},0,0,{"$f":"SUMIFS(Sheet1!S71_OY1AdjustedBudget,Sheet1!S71_SA34Code,$AC:$AC,Sheet1!S71_A5CapexCode,$AD:$AD)","v":0},{"$f":"SUMIFS(Sheet1!S71_OY2AdjustedBudget,Sheet1!S71_SA34Code,$AC:$AC,Sheet1!S71_A5CapexCode,$AD:$AD)","v":0},null,null,null,null,null,null,null,null,null,null,null,null,null,null,null,"0970","CE"]
["Airports",null,{"$f":"SUMIFS(Sheet1!S71_OriginalBudget,Sheet1!S71_SA34Code,$AC:$AC,Sheet1!S71_A5CapexCode,$AD:$AD)","v":0},{"$f":"SUMIFS(Sheet1!S71_SpecialAdjustedBudget,Sheet1!S71_SA34Code,$AC:$AC,Sheet1!S71_A5CapexCode,$AD:$AD)","v":0},null,null,null,null,{"$f":"SUMIFS(Sheet1!S71_AdjustmentAmount,Sheet1!S71_SA34Code,$AC:$AC,Sheet1!S71_A5CapexCode,$AD:$AD)","v":0},0,0,{"$f":"SUMIFS(Sheet1!S71_OY1AdjustedBudget,Sheet1!S71_SA34Code,$AC:$AC,Sheet1!S71_A5CapexCode,$AD:$AD)","v":0},{"$f":"SUMIFS(Sheet1!S71_OY2AdjustedBudget,Sheet1!S71_SA34Code,$AC:$AC,Sheet1!S71_A5CapexCode,$AD:$AD)","v":0},null,null,null,null,null,null,null,null,null,null,null,null,null,null,null,"0980","CE"]
["Taxi Ranks/Bus Terminals",null,{"$f":"SUMIFS(Sheet1!S71_OriginalBudget,Sheet1!S71_SA34Code,$AC:$AC,Sheet1!S71_A5CapexCode,$AD:$AD)","v":0},{"$f":"SUMIFS(Sheet1!S71_SpecialAdjustedBudget,Sheet1!S71_SA34Code,$AC:$AC,Sheet1!S71_A5CapexCode,$AD:$AD)","v":0},null,null,null,null,{"$f":"SUMIFS(Sheet1!S71_AdjustmentAmount,Sheet1!S71_SA34Code,$AC:$AC,Sheet1!S71_A5CapexCode,$AD:$AD)","v":0},0,0,{"$f":"SUMIFS(Sheet1!S71_OY1AdjustedBudget,Sheet1!S71_SA34Code,$AC:$AC,Sheet1!S71_A5CapexCode,$AD:$AD)","v":0},{"$f":"SUMIFS(Sheet1!S71_OY2AdjustedBudget,Sheet1!S71_SA34Code,$AC:$AC,Sheet1!S71_A5CapexCode,$AD:$AD)","v":0},null,null,null,null,null,null,null,null,null,null,null,null,null,null,null,"0990","CE"]
["Capital Spares",null,{"$f":"SUMIFS(Sheet1!S71_OriginalBudget,Sheet1!S71_SA34Code,$AC:$AC,Sheet1!S71_A5CapexCode,$AD:$AD)","v":0},{"$f":"SUMIFS(Sheet1!S71_SpecialAdjustedBudget,Sheet1!S71_SA34Code,$AC:$AC,Sheet1!S71_A5CapexCode,$AD:$AD)","v":0},null,null,null,null,{"$f":"SUMIFS(Sheet1!S71_AdjustmentAmount,Sheet1!S71_SA34Code,$AC:$AC,Sheet1!S71_A5CapexCode,$AD:$AD)","v":0},0,0,{"$f":"SUMIFS(Sheet1!S71_OY1AdjustedBudget,Sheet1!S71_SA34Code,$AC:$AC,Sheet1!S71_A5CapexCode,$AD:$AD)","v":0},{"$f":"SUMIFS(Sheet1!S71_OY2AdjustedBudget,Sheet1!S71_SA34Code,$AC:$AC,Sheet1!S71_A5CapexCode,$AD:$AD)","v":0},null,null,null,null,null,null,null,null,null,null,null,null,null,null,null,"1000","CE"]
["Sport and Recreation Facilities",null,{"$f":"SUM(C101:C103)","v":0},{"$f":"SUM(D101:D103)","v":0},0,0,0,0,0,0,0,0,0,null,null,null,null,null,null,null,null,null,null,null,null,null,null,null,null,"CE"]
["Indoor Facilities",null,{"$f":"SUMIFS(Sheet1!S71_OriginalBudget,Sheet1!S71_SA34Code,$AC:$AC,Sheet1!S71_A5CapexCode,$AD:$AD)","v":0},{"$f":"SUMIFS(Sheet1!S71_SpecialAdjustedBudget,Sheet1!S71_SA34Code,$AC:$AC,Sheet1!S71_A5CapexCode,$AD:$AD)","v":0},null,null,null,null,{"$f":"SUMIFS(Sheet1!S71_AdjustmentAmount,Sheet1!S71_SA34Code,$AC:$AC,Sheet1!S71_A5CapexCode,$AD:$AD)","v":0},0,0,{"$f":"SUMIFS(Sheet1!S71_OY1AdjustedBudget,Sheet1!S71_SA34Code,$AC:$AC,Sheet1!S71_A5CapexCode,$AD:$AD)","v":0},{"$f":"SUMIFS(Sheet1!S71_OY2AdjustedBudget,Sheet1!S71_SA34Code,$AC:$AC,Sheet1!S71_A5CapexCode,$AD:$AD)","v":0},null,null,null,null,null,null,null,null,null,null,null,null,null,null,null,"1020","CE"]
["Outdoor Facilities",null,{"$f":"SUMIFS(Sheet1!S71_OriginalBudget,Sheet1!S71_SA34Code,$AC:$AC,Sheet1!S71_A5CapexCode,$AD:$AD)","v":0},{"$f":"SUMIFS(Sheet1!S71_SpecialAdjustedBudget,Sheet1!S71_SA34Code,$AC:$AC,Sheet1!S71_A5CapexCode,$AD:$AD)","v":0},null,null,null,null,{"$f":"SUMIFS(Sheet1!S71_AdjustmentAmount,Sheet1!S71_SA34Code,$AC:$AC,Sheet1!S71_A5CapexCode,$AD:$AD)","v":0},0,0,{"$f":"SUMIFS(Sheet1!S71_OY1AdjustedBudget,Sheet1!S71_SA34Code,$AC:$AC,Sheet1!S71_A5CapexCode,$AD:$AD)","v":0},{"$f":"SUMIFS(Sheet1!S71_OY2AdjustedBudget,Sheet1!S71_SA34Code,$AC:$AC,Sheet1!S71_A5CapexCode,$AD:$AD)","v":0},null,null,null,null,null,null,null,null,null,null,null,null,null,null,null,"1030","CE"]
["Capital Spares",null,{"$f":"SUMIFS(Sheet1!S71_OriginalBudget,Sheet1!S71_SA34Code,$AC:$AC,Sheet1!S71_A5CapexCode,$AD:$AD)","v":0},{"$f":"SUMIFS(Sheet1!S71_SpecialAdjustedBudget,Sheet1!S71_SA34Code,$AC:$AC,Sheet1!S71_A5CapexCode,$AD:$AD)","v":0},null,null,null,null,{"$f":"SUMIFS(Sheet1!S71_AdjustmentAmount,Sheet1!S71_SA34Code,$AC:$AC,Sheet1!S71_A5CapexCode,$AD:$AD)","v":0},0,0,{"$f":"SUMIFS(Sheet1!S71_OY1AdjustedBudget,Sheet1!S71_SA34Code,$AC:$AC,Sheet1!S71_A5CapexCode,$AD:$AD)","v":0},{"$f":"SUMIFS(Sheet1!S71_OY2AdjustedBudget,Sheet1!S71_SA34Code,$AC:$AC,Sheet1!S71_A5CapexCode,$AD:$AD)","v":0},null,null,null,null,null,null,null,null,null,null,null,null,null,null,null,"1040","CE"]
[null,null,null,null,null,null,null,null,null,null,null,null,null,null,null,null,null,null,null,null,null,null,null,null,null,null,null,null,null,"CE"]
["Heritage assets",null,{"$f":"SUM(C106:C110)","v":0},0,0,0,0,0,0,0,0,0,0,null,null,null,null,null,null,null,null,null,null,null,null,null,null,null,null,"CE"]
["Monuments",null,{"$f":"SUMIFS(Sheet1!S71_OriginalBudget,Sheet1!S71_SA34Code,$AC:$AC,Sheet1!S71_A5CapexCode,$AD:$AD)","v":0},{"$f":"SUMIFS(Sheet1!S71_SpecialAdjustedBudget,Sheet1!S71_SA34Code,$AC:$AC,Sheet1!S71_A5CapexCode,$AD:$AD)","v":0},null,null,null,null,{"$f":"SUMIFS(Sheet1!S71_AdjustmentAmount,Sheet1!S71_SA34Code,$AC:$AC,Sheet1!S71_A5CapexCode,$AD:$AD)","v":0},0,0,{"$f":"SUMIFS(Sheet1!S71_OY1AdjustedBudget,Sheet1!S71_SA34Code,$AC:$AC,Sheet1!S71_A5CapexCode,$AD:$AD)","v":0},{"$f":"SUMIFS(Sheet1!S71_OY2AdjustedBudget,Sheet1!S71_SA34Code,$AC:$AC,Sheet1!S71_A5CapexCode,$AD:$AD)","v":0},null,null,null,null,null,null,null,null,null,null,null,null,null,null,null,"1060","CE"]
["Historic Buildings",null,{"$f":"SUMIFS(Sheet1!S71_OriginalBudget,Sheet1!S71_SA34Code,$AC:$AC,Sheet1!S71_A5CapexCode,$AD:$AD)","v":0},{"$f":"SUMIFS(Sheet1!S71_SpecialAdjustedBudget,Sheet1!S71_SA34Code,$AC:$AC,Sheet1!S71_A5CapexCode,$AD:$AD)","v":0},null,null,null,null,{"$f":"SUMIFS(Sheet1!S71_AdjustmentAmount,Sheet1!S71_SA34Code,$AC:$AC,Sheet1!S71_A5CapexCode,$AD:$AD)","v":0},0,0,{"$f":"SUMIFS(Sheet1!S71_OY1AdjustedBudget,Sheet1!S71_SA34Code,$AC:$AC,Sheet1!S71_A5CapexCode,$AD:$AD)","v":0},{"$f":"SUMIFS(Sheet1!S71_OY2AdjustedBudget,Sheet1!S71_SA34Code,$AC:$AC,Sheet1!S71_A5CapexCode,$AD:$AD)","v":0},null,null,null,null,null,null,null,null,null,null,null,null,null,null,null,"1070","CE"]
["Works of Art",null,{"$f":"SUMIFS(Sheet1!S71_OriginalBudget,Sheet1!S71_SA34Code,$AC:$AC,Sheet1!S71_A5CapexCode,$AD:$AD)","v":0},{"$f":"SUMIFS(Sheet1!S71_SpecialAdjustedBudget,Sheet1!S71_SA34Code,$AC:$AC,Sheet1!S71_A5CapexCode,$AD:$AD)","v":0},null,null,null,null,{"$f":"SUMIFS(Sheet1!S71_AdjustmentAmount,Sheet1!S71_SA34Code,$AC:$AC,Sheet1!S71_A5CapexCode,$AD:$AD)","v":0},0,0,{"$f":"SUMIFS(Sheet1!S71_OY1AdjustedBudget,Sheet1!S71_SA34Code,$AC:$AC,Sheet1!S71_A5CapexCode,$AD:$AD)","v":0},{"$f":"SUMIFS(Sheet1!S71_OY2AdjustedBudget,Sheet1!S71_SA34Code,$AC:$AC,Sheet1!S71_A5CapexCode,$AD:$AD)","v":0},null,null,null,null,null,null,null,null,null,null,null,null,null,null,null,"1080","CE"]
["Conservation Areas",null,{"$f":"SUMIFS(Sheet1!S71_OriginalBudget,Sheet1!S71_SA34Code,$AC:$AC,Sheet1!S71_A5CapexCode,$AD:$AD)","v":0},{"$f":"SUMIFS(Sheet1!S71_SpecialAdjustedBudget,Sheet1!S71_SA34Code,$AC:$AC,Sheet1!S71_A5CapexCode,$AD:$AD)","v":0},null,null,null,null,{"$f":"SUMIFS(Sheet1!S71_AdjustmentAmount,Sheet1!S71_SA34Code,$AC:$AC,Sheet1!S71_A5CapexCode,$AD:$AD)","v":0},0,0,{"$f":"SUMIFS(Sheet1!S71_OY1AdjustedBudget,Sheet1!S71_SA34Code,$AC:$AC,Sheet1!S71_A5CapexCode,$AD:$AD)","v":0},{"$f":"SUMIFS(Sheet1!S71_OY2AdjustedBudget,Sheet1!S71_SA34Code,$AC:$AC,Sheet1!S71_A5CapexCode,$AD:$AD)","v":0},null,null,null,null,null,null,null,null,null,null,null,null,null,null,null,"1090","CE"]
["Other Heritage",null,{"$f":"SUMIFS(Sheet1!S71_OriginalBudget,Sheet1!S71_SA34Code,$AC:$AC,Sheet1!S71_A5CapexCode,$AD:$AD)","v":0},{"$f":"SUMIFS(Sheet1!S71_SpecialAdjustedBudget,Sheet1!S71_SA34Code,$AC:$AC,Sheet1!S71_A5CapexCode,$AD:$AD)","v":0},null,null,null,null,{"$f":"SUMIFS(Sheet1!S71_AdjustmentAmount,Sheet1!S71_SA34Code,$AC:$AC,Sheet1!S71_A5CapexCode,$AD:$AD)","v":0},0,0,{"$f":"SUMIFS(Sheet1!S71_OY1AdjustedBudget,Sheet1!S71_SA34Code,$AC:$AC,Sheet1!S71_A5CapexCode,$AD:$AD)","v":0},{"$f":"SUMIFS(Sheet1!S71_OY2AdjustedBudget,Sheet1!S71_SA34Code,$AC:$AC,Sheet1!S71_A5CapexCode,$AD:$AD)","v":0},null,null,null,null,null,null,null,null,null,null,null,null,null,null,null,"1100","CE"]
[null,null,null,null,null,null,null,null,null,null,null,null,null,null,null,null,null,null,null,null,null,null,null,null,null,null,null,null,null,"CE"]
["Investment properties",null,{"$f":"+C113+C116","v":0},{"$f":"+D113+D116","v":0},0,0,0,0,0,0,0,{"$f":"+L113+L116","v":0},{"$f":"+M113+M116","v":0},null,null,null,null,null,null,null,null,null,null,null,null,null,null,null,null,"CE"]
["Revenue Generating",null,{"$f":"SUM(C114:C115)","v":0},{"$f":"SUM(D114:D115)","v":0},{"$f":"SUM(E114:E115)","v":0},0,0,0,0,0,0,0,0,null,null,null,null,null,null,null,null,null,null,null,null,null,null,null,null,"CE"]
["Improved Property",null,{"$f":"SUMIFS(Sheet1!S71_OriginalBudget,Sheet1!S71_SA34Code,$AC:$AC,Sheet1!S71_A5CapexCode,$AD:$AD)","v":0},{"$f":"SUMIFS(Sheet1!S71_SpecialAdjustedBudget,Sheet1!S71_SA34Code,$AC:$AC,Sheet1!S71_A5CapexCode,$AD:$AD)","v":0},null,null,null,null,{"$f":"SUMIFS(Sheet1!S71_AdjustmentAmount,Sheet1!S71_SA34Code,$AC:$AC,Sheet1!S71_A5CapexCode,$AD:$AD)","v":0},0,0,{"$f":"SUMIFS(Sheet1!S71_OY1AdjustedBudget,Sheet1!S71_SA34Code,$AC:$AC,Sheet1!S71_A5CapexCode,$AD:$AD)","v":0},{"$f":"SUMIFS(Sheet1!S71_OY2AdjustedBudget,Sheet1!S71_SA34Code,$AC:$AC,Sheet1!S71_A5CapexCode,$AD:$AD)","v":0},null,null,null,null,null,null,null,null,null,null,null,null,null,null,null,"1130","CE"]
["Unimproved Property",null,{"$f":"SUMIFS(Sheet1!S71_OriginalBudget,Sheet1!S71_SA34Code,$AC:$AC,Sheet1!S71_A5CapexCode,$AD:$AD)","v":0},{"$f":"SUMIFS(Sheet1!S71_SpecialAdjustedBudget,Sheet1!S71_SA34Code,$AC:$AC,Sheet1!S71_A5CapexCode,$AD:$AD)","v":0},null,null,null,null,{"$f":"SUMIFS(Sheet1!S71_AdjustmentAmount,Sheet1!S71_SA34Code,$AC:$AC,Sheet1!S71_A5CapexCode,$AD:$AD)","v":0},0,0,{"$f":"SUMIFS(Sheet1!S71_OY1AdjustedBudget,Sheet1!S71_SA34Code,$AC:$AC,Sheet1!S71_A5CapexCode,$AD:$AD)","v":0},{"$f":"SUMIFS(Sheet1!S71_OY2AdjustedBudget,Sheet1!S71_SA34Code,$AC:$AC,Sheet1!S71_A5CapexCode,$AD:$AD)","v":0},null,null,null,null,null,null,null,null,null,null,null,null,null,null,null,"1140","CE"]
["Non-revenue Generating",null,{"$f":"SUM(C117:C118)","v":0},{"$f":"SUM(D117:D118)","v":0},{"$f":"SUM(E117:E118)","v":0},0,0,0,0,0,0,0,0,null,null,null,null,null,null,null,null,null,null,null,null,null,null,null,"4002","CE"]
["Improved Property",null,{"$f":"SUMIFS(Sheet1!S71_OriginalBudget,Sheet1!S71_SA34Code,$AC:$AC,Sheet1!S71_A5CapexCode,$AD:$AD)","v":0},{"$f":"SUMIFS(Sheet1!S71_SpecialAdjustedBudget,Sheet1!S71_SA34Code,$AC:$AC,Sheet1!S71_A5CapexCode,$AD:$AD)","v":0},null,null,null,null,{"$f":"SUMIFS(Sheet1!S71_AdjustmentAmount,Sheet1!S71_SA34Code,$AC:$AC,Sheet1!S71_A5CapexCode,$AD:$AD)","v":0},0,0,{"$f":"SUMIFS(Sheet1!S71_OY1AdjustedBudget,Sheet1!S71_SA34Code,$AC:$AC,Sheet1!S71_A5CapexCode,$AD:$AD)","v":0},{"$f":"SUMIFS(Sheet1!S71_OY2AdjustedBudget,Sheet1!S71_SA34Code,$AC:$AC,Sheet1!S71_A5CapexCode,$AD:$AD)","v":0},null,null,null,null,null,null,null,null,null,null,null,null,null,null,null,"1160","CE"]
["Unimproved Property",null,{"$f":"SUMIFS(Sheet1!S71_OriginalBudget,Sheet1!S71_SA34Code,$AC:$AC,Sheet1!S71_A5CapexCode,$AD:$AD)","v":0},{"$f":"SUMIFS(Sheet1!S71_SpecialAdjustedBudget,Sheet1!S71_SA34Code,$AC:$AC,Sheet1!S71_A5CapexCode,$AD:$AD)","v":0},null,null,null,null,{"$f":"SUMIFS(Sheet1!S71_AdjustmentAmount,Sheet1!S71_SA34Code,$AC:$AC,Sheet1!S71_A5CapexCode,$AD:$AD)","v":0},0,0,{"$f":"SUMIFS(Sheet1!S71_OY1AdjustedBudget,Sheet1!S71_SA34Code,$AC:$AC,Sheet1!S71_A5CapexCode,$AD:$AD)","v":0},{"$f":"SUMIFS(Sheet1!S71_OY2AdjustedBudget,Sheet1!S71_SA34Code,$AC:$AC,Sheet1!S71_A5CapexCode,$AD:$AD)","v":0},null,null,null,null,null,null,null,null,null,null,null,null,null,null,null,"1170","CE"]
[null,null,null,null,null,null,null,null,null,null,null,null,null,null,null,null,null,null,null,null,null,null,null,null,null,null,null,null,null,"CE"]
["Other assets",null,{"$f":"+C121+C133","v":308195},{"$f":"+D121+D133","v":0},0,0,0,0,0,0,308195,{"$f":"+L121+L133","v":0},{"$f":"+M121+M133","v":0},null,null,null,null,null,null,null,null,null,null,null,null,null,null,null,null,"CE"]
["Operational Buildings",null,{"$f":"SUM(C122:C132)","v":308195},{"$f":"SUM(D122:D132)","v":0},0,0,0,0,0,0,308195,{"$f":"SUM(L122:L132)","v":0},{"$f":"SUM(M122:M132)","v":0},null,null,null,null,null,null,null,null,null,null,null,null,null,null,null,null,"CE"]
["Municipal Offices",null,{"$f":"SUMIFS(Sheet1!S71_OriginalBudget,Sheet1!S71_SA34Code,$AC:$AC,Sheet1!S71_A5CapexCode,$AD:$AD)","v":308195},{"$f":"SUMIFS(Sheet1!S71_SpecialAdjustedBudget,Sheet1!S71_SA34Code,$AC:$AC,Sheet1!S71_A5CapexCode,$AD:$AD)","v":0},null,null,null,null,{"$f":"SUMIFS(Sheet1!S71_AdjustmentAmount,Sheet1!S71_SA34Code,$AC:$AC,Sheet1!S71_A5CapexCode,$AD:$AD)","v":0},0,308195,{"$f":"SUMIFS(Sheet1!S71_OY1AdjustedBudget,Sheet1!S71_SA34Code,$AC:$AC,Sheet1!S71_A5CapexCode,$AD:$AD)","v":0},{"$f":"SUMIFS(Sheet1!S71_OY2AdjustedBudget,Sheet1!S71_SA34Code,$AC:$AC,Sheet1!S71_A5CapexCode,$AD:$AD)","v":0},null,null,null,null,null,null,null,null,null,null,null,null,null,null,null,"1200","CE"]
["Pay/Enquiry Points",null,{"$f":"SUMIFS(Sheet1!S71_OriginalBudget,Sheet1!S71_SA34Code,$AC:$AC,Sheet1!S71_A5CapexCode,$AD:$AD)","v":0},{"$f":"SUMIFS(Sheet1!S71_SpecialAdjustedBudget,Sheet1!S71_SA34Code,$AC:$AC,Sheet1!S71_A5CapexCode,$AD:$AD)","v":0},null,null,null,null,{"$f":"SUMIFS(Sheet1!S71_AdjustmentAmount,Sheet1!S71_SA34Code,$AC:$AC,Sheet1!S71_A5CapexCode,$AD:$AD)","v":0},0,0,{"$f":"SUMIFS(Sheet1!S71_OY1AdjustedBudget,Sheet1!S71_SA34Code,$AC:$AC,Sheet1!S71_A5CapexCode,$AD:$AD)","v":0},{"$f":"SUMIFS(Sheet1!S71_OY2AdjustedBudget,Sheet1!S71_SA34Code,$AC:$AC,Sheet1!S71_A5CapexCode,$AD:$AD)","v":0},null,null,null,null,null,null,null,null,null,null,null,null,null,null,null,"1210","CE"]
["Building Plan Offices",null,{"$f":"SUMIFS(Sheet1!S71_OriginalBudget,Sheet1!S71_SA34Code,$AC:$AC,Sheet1!S71_A5CapexCode,$AD:$AD)","v":0},{"$f":"SUMIFS(Sheet1!S71_SpecialAdjustedBudget,Sheet1!S71_SA34Code,$AC:$AC,Sheet1!S71_A5CapexCode,$AD:$AD)","v":0},null,null,null,null,{"$f":"SUMIFS(Sheet1!S71_AdjustmentAmount,Sheet1!S71_SA34Code,$AC:$AC,Sheet1!S71_A5CapexCode,$AD:$AD)","v":0},0,0,{"$f":"SUMIFS(Sheet1!S71_OY1AdjustedBudget,Sheet1!S71_SA34Code,$AC:$AC,Sheet1!S71_A5CapexCode,$AD:$AD)","v":0},{"$f":"SUMIFS(Sheet1!S71_OY2AdjustedBudget,Sheet1!S71_SA34Code,$AC:$AC,Sheet1!S71_A5CapexCode,$AD:$AD)","v":0},null,null,null,null,null,null,null,null,null,null,null,null,null,null,null,"1220","CE"]
["Workshops",null,{"$f":"SUMIFS(Sheet1!S71_OriginalBudget,Sheet1!S71_SA34Code,$AC:$AC,Sheet1!S71_A5CapexCode,$AD:$AD)","v":0},{"$f":"SUMIFS(Sheet1!S71_SpecialAdjustedBudget,Sheet1!S71_SA34Code,$AC:$AC,Sheet1!S71_A5CapexCode,$AD:$AD)","v":0},null,null,null,null,{"$f":"SUMIFS(Sheet1!S71_AdjustmentAmount,Sheet1!S71_SA34Code,$AC:$AC,Sheet1!S71_A5CapexCode,$AD:$AD)","v":0},0,0,{"$f":"SUMIFS(Sheet1!S71_OY1AdjustedBudget,Sheet1!S71_SA34Code,$AC:$AC,Sheet1!S71_A5CapexCode,$AD:$AD)","v":0},{"$f":"SUMIFS(Sheet1!S71_OY2AdjustedBudget,Sheet1!S71_SA34Code,$AC:$AC,Sheet1!S71_A5CapexCode,$AD:$AD)","v":0},null,null,null,null,null,null,null,null,null,null,null,null,null,null,null,"1230","CE"]
["Yards",null,{"$f":"SUMIFS(Sheet1!S71_OriginalBudget,Sheet1!S71_SA34Code,$AC:$AC,Sheet1!S71_A5CapexCode,$AD:$AD)","v":0},{"$f":"SUMIFS(Sheet1!S71_SpecialAdjustedBudget,Sheet1!S71_SA34Code,$AC:$AC,Sheet1!S71_A5CapexCode,$AD:$AD)","v":0},null,null,null,null,{"$f":"SUMIFS(Sheet1!S71_AdjustmentAmount,Sheet1!S71_SA34Code,$AC:$AC,Sheet1!S71_A5CapexCode,$AD:$AD)","v":0},0,0,{"$f":"SUMIFS(Sheet1!S71_OY1AdjustedBudget,Sheet1!S71_SA34Code,$AC:$AC,Sheet1!S71_A5CapexCode,$AD:$AD)","v":0},{"$f":"SUMIFS(Sheet1!S71_OY2AdjustedBudget,Sheet1!S71_SA34Code,$AC:$AC,Sheet1!S71_A5CapexCode,$AD:$AD)","v":0},null,null,null,null,null,null,null,null,null,null,null,null,null,null,null,"1240","CE"]
["Stores",null,{"$f":"SUMIFS(Sheet1!S71_OriginalBudget,Sheet1!S71_SA34Code,$AC:$AC,Sheet1!S71_A5CapexCode,$AD:$AD)","v":0},{"$f":"SUMIFS(Sheet1!S71_SpecialAdjustedBudget,Sheet1!S71_SA34Code,$AC:$AC,Sheet1!S71_A5CapexCode,$AD:$AD)","v":0},null,null,null,null,{"$f":"SUMIFS(Sheet1!S71_AdjustmentAmount,Sheet1!S71_SA34Code,$AC:$AC,Sheet1!S71_A5CapexCode,$AD:$AD)","v":0},0,0,{"$f":"SUMIFS(Sheet1!S71_OY1AdjustedBudget,Sheet1!S71_SA34Code,$AC:$AC,Sheet1!S71_A5CapexCode,$AD:$AD)","v":0},{"$f":"SUMIFS(Sheet1!S71_OY2AdjustedBudget,Sheet1!S71_SA34Code,$AC:$AC,Sheet1!S71_A5CapexCode,$AD:$AD)","v":0},null,null,null,null,null,null,null,null,null,null,null,null,null,null,null,"1250","CE"]
["Laboratories",null,{"$f":"SUMIFS(Sheet1!S71_OriginalBudget,Sheet1!S71_SA34Code,$AC:$AC,Sheet1!S71_A5CapexCode,$AD:$AD)","v":0},{"$f":"SUMIFS(Sheet1!S71_SpecialAdjustedBudget,Sheet1!S71_SA34Code,$AC:$AC,Sheet1!S71_A5CapexCode,$AD:$AD)","v":0},null,null,null,null,{"$f":"SUMIFS(Sheet1!S71_AdjustmentAmount,Sheet1!S71_SA34Code,$AC:$AC,Sheet1!S71_A5CapexCode,$AD:$AD)","v":0},0,0,{"$f":"SUMIFS(Sheet1!S71_OY1AdjustedBudget,Sheet1!S71_SA34Code,$AC:$AC,Sheet1!S71_A5CapexCode,$AD:$AD)","v":0},{"$f":"SUMIFS(Sheet1!S71_OY2AdjustedBudget,Sheet1!S71_SA34Code,$AC:$AC,Sheet1!S71_A5CapexCode,$AD:$AD)","v":0},null,null,null,null,null,null,null,null,null,null,null,null,null,null,null,"1260","CE"]
["Training Centres",null,{"$f":"SUMIFS(Sheet1!S71_OriginalBudget,Sheet1!S71_SA34Code,$AC:$AC,Sheet1!S71_A5CapexCode,$AD:$AD)","v":0},{"$f":"SUMIFS(Sheet1!S71_SpecialAdjustedBudget,Sheet1!S71_SA34Code,$AC:$AC,Sheet1!S71_A5CapexCode,$AD:$AD)","v":0},null,null,null,null,{"$f":"SUMIFS(Sheet1!S71_AdjustmentAmount,Sheet1!S71_SA34Code,$AC:$AC,Sheet1!S71_A5CapexCode,$AD:$AD)","v":0},0,0,{"$f":"SUMIFS(Sheet1!S71_OY1AdjustedBudget,Sheet1!S71_SA34Code,$AC:$AC,Sheet1!S71_A5CapexCode,$AD:$AD)","v":0},{"$f":"SUMIFS(Sheet1!S71_OY2AdjustedBudget,Sheet1!S71_SA34Code,$AC:$AC,Sheet1!S71_A5CapexCode,$AD:$AD)","v":0},null,null,null,null,null,null,null,null,null,null,null,null,null,null,null,"1270","CE"]
["Manufacturing Plant",null,{"$f":"SUMIFS(Sheet1!S71_OriginalBudget,Sheet1!S71_SA34Code,$AC:$AC,Sheet1!S71_A5CapexCode,$AD:$AD)","v":0},{"$f":"SUMIFS(Sheet1!S71_SpecialAdjustedBudget,Sheet1!S71_SA34Code,$AC:$AC,Sheet1!S71_A5CapexCode,$AD:$AD)","v":0},null,null,null,null,{"$f":"SUMIFS(Sheet1!S71_AdjustmentAmount,Sheet1!S71_SA34Code,$AC:$AC,Sheet1!S71_A5CapexCode,$AD:$AD)","v":0},0,0,{"$f":"SUMIFS(Sheet1!S71_OY1AdjustedBudget,Sheet1!S71_SA34Code,$AC:$AC,Sheet1!S71_A5CapexCode,$AD:$AD)","v":0},{"$f":"SUMIFS(Sheet1!S71_OY2AdjustedBudget,Sheet1!S71_SA34Code,$AC:$AC,Sheet1!S71_A5CapexCode,$AD:$AD)","v":0},null,null,null,null,null,null,null,null,null,null,null,null,null,null,null,"1280","CE"]
["Depots",null,{"$f":"SUMIFS(Sheet1!S71_OriginalBudget,Sheet1!S71_SA34Code,$AC:$AC,Sheet1!S71_A5CapexCode,$AD:$AD)","v":0},{"$f":"SUMIFS(Sheet1!S71_SpecialAdjustedBudget,Sheet1!S71_SA34Code,$AC:$AC,Sheet1!S71_A5CapexCode,$AD:$AD)","v":0},null,null,null,null,{"$f":"SUMIFS(Sheet1!S71_AdjustmentAmount,Sheet1!S71_SA34Code,$AC:$AC,Sheet1!S71_A5CapexCode,$AD:$AD)","v":0},0,0,{"$f":"SUMIFS(Sheet1!S71_OY1AdjustedBudget,Sheet1!S71_SA34Code,$AC:$AC,Sheet1!S71_A5CapexCode,$AD:$AD)","v":0},{"$f":"SUMIFS(Sheet1!S71_OY2AdjustedBudget,Sheet1!S71_SA34Code,$AC:$AC,Sheet1!S71_A5CapexCode,$AD:$AD)","v":0},null,null,null,null,null,null,null,null,null,null,null,null,null,null,null,"1290","CE"]
["Capital Spares",null,{"$f":"SUMIFS(Sheet1!S71_OriginalBudget,Sheet1!S71_SA34Code,$AC:$AC,Sheet1!S71_A5CapexCode,$AD:$AD)","v":0},{"$f":"SUMIFS(Sheet1!S71_SpecialAdjustedBudget,Sheet1!S71_SA34Code,$AC:$AC,Sheet1!S71_A5CapexCode,$AD:$AD)","v":0},null,null,null,null,{"$f":"SUMIFS(Sheet1!S71_AdjustmentAmount,Sheet1!S71_SA34Code,$AC:$AC,Sheet1!S71_A5CapexCode,$AD:$AD)","v":0},0,0,{"$f":"SUMIFS(Sheet1!S71_OY1AdjustedBudget,Sheet1!S71_SA34Code,$AC:$AC,Sheet1!S71_A5CapexCode,$AD:$AD)","v":0},{"$f":"SUMIFS(Sheet1!S71_OY2AdjustedBudget,Sheet1!S71_SA34Code,$AC:$AC,Sheet1!S71_A5CapexCode,$AD:$AD)","v":0},null,null,null,null,null,null,null,null,null,null,null,null,null,null,null,"1300","CE"]
["Housing",null,{"$f":"SUM(C134:C136)","v":0},{"$f":"SUM(D134:D136)","v":0},{"$f":"SUM(E134:E136)","v":0},0,0,0,0,0,0,0,0,null,null,null,null,null,null,null,null,null,null,null,null,null,null,null,null,"CE"]
["Staff Housing",null,{"$f":"SUMIFS(Sheet1!S71_OriginalBudget,Sheet1!S71_SA34Code,$AC:$AC,Sheet1!S71_A5CapexCode,$AD:$AD)","v":0},{"$f":"SUMIFS(Sheet1!S71_SpecialAdjustedBudget,Sheet1!S71_SA34Code,$AC:$AC,Sheet1!S71_A5CapexCode,$AD:$AD)","v":0},null,null,null,null,{"$f":"SUMIFS(Sheet1!S71_AdjustmentAmount,Sheet1!S71_SA34Code,$AC:$AC,Sheet1!S71_A5CapexCode,$AD:$AD)","v":0},0,0,{"$f":"SUMIFS(Sheet1!S71_OY1AdjustedBudget,Sheet1!S71_SA34Code,$AC:$AC,Sheet1!S71_A5CapexCode,$AD:$AD)","v":0},{"$f":"SUMIFS(Sheet1!S71_OY2AdjustedBudget,Sheet1!S71_SA34Code,$AC:$AC,Sheet1!S71_A5CapexCode,$AD:$AD)","v":0},null,null,null,null,null,null,null,null,null,null,null,null,null,null,null,"1320","CE"]
["Social Housing",null,{"$f":"SUMIFS(Sheet1!S71_OriginalBudget,Sheet1!S71_SA34Code,$AC:$AC,Sheet1!S71_A5CapexCode,$AD:$AD)","v":0},{"$f":"SUMIFS(Sheet1!S71_SpecialAdjustedBudget,Sheet1!S71_SA34Code,$AC:$AC,Sheet1!S71_A5CapexCode,$AD:$AD)","v":0},null,null,null,null,{"$f":"SUMIFS(Sheet1!S71_AdjustmentAmount,Sheet1!S71_SA34Code,$AC:$AC,Sheet1!S71_A5CapexCode,$AD:$AD)","v":0},0,0,{"$f":"SUMIFS(Sheet1!S71_OY1AdjustedBudget,Sheet1!S71_SA34Code,$AC:$AC,Sheet1!S71_A5CapexCode,$AD:$AD)","v":0},{"$f":"SUMIFS(Sheet1!S71_OY2AdjustedBudget,Sheet1!S71_SA34Code,$AC:$AC,Sheet1!S71_A5CapexCode,$AD:$AD)","v":0},null,null,null,null,null,null,null,null,null,null,null,null,null,null,null,"1330","CE"]
["Capital Spares",null,{"$f":"SUMIFS(Sheet1!S71_OriginalBudget,Sheet1!S71_SA34Code,$AC:$AC,Sheet1!S71_A5CapexCode,$AD:$AD)","v":0},{"$f":"SUMIFS(Sheet1!S71_SpecialAdjustedBudget,Sheet1!S71_SA34Code,$AC:$AC,Sheet1!S71_A5CapexCode,$AD:$AD)","v":0},null,null,null,null,{"$f":"SUMIFS(Sheet1!S71_AdjustmentAmount,Sheet1!S71_SA34Code,$AC:$AC,Sheet1!S71_A5CapexCode,$AD:$AD)","v":0},0,0,{"$f":"SUMIFS(Sheet1!S71_OY1AdjustedBudget,Sheet1!S71_SA34Code,$AC:$AC,Sheet1!S71_A5CapexCode,$AD:$AD)","v":0},{"$f":"SUMIFS(Sheet1!S71_OY2AdjustedBudget,Sheet1!S71_SA34Code,$AC:$AC,Sheet1!S71_A5CapexCode,$AD:$AD)","v":0},null,null,null,null,null,null,null,null,null,null,null,null,null,null,null,"1340","CE"]
[null,null,null,null,null,null,null,null,null,null,null,null,null,null,null,null,null,null,null,null,null,null,null,null,null,null,null,null,null,"CE"]
["Biological or Cultivated Assets",null,{"$f":"SUM(C139:C139)","v":0},0,0,0,0,0,0,0,0,0,0,null,null,null,null,null,null,null,null,null,null,null,null,null,null,null,null,"CE"]
["Biological or Cultivated Assets",null,{"$f":"SUMIFS(Sheet1!S71_OriginalBudget,Sheet1!S71_SA34Code,$AC:$AC,Sheet1!S71_A5CapexCode,$AD:$AD)","v":0},{"$f":"SUMIFS(Sheet1!S71_SpecialAdjustedBudget,Sheet1!S71_SA34Code,$AC:$AC,Sheet1!S71_A5CapexCode,$AD:$AD)","v":0},null,null,null,null,{"$f":"SUMIFS(Sheet1!S71_AdjustmentAmount,Sheet1!S71_SA34Code,$AC:$AC,Sheet1!S71_A5CapexCode,$AD:$AD)","v":0},0,0,{"$f":"SUMIFS(Sheet1!S71_OY1AdjustedBudget,Sheet1!S71_SA34Code,$AC:$AC,Sheet1!S71_A5CapexCode,$AD:$AD)","v":0},{"$f":"SUMIFS(Sheet1!S71_OY2AdjustedBudget,Sheet1!S71_SA34Code,$AC:$AC,Sheet1!S71_A5CapexCode,$AD:$AD)","v":0},null,null,null,null,null,null,null,null,null,null,null,null,null,null,null,"1360","CE"]
[null,null,null,null,null,null,null,null,null,null,null,null,null,null,null,null,null,null,null,null,null,null,null,null,null,null,null,null,null,"CE"]
["Intangible Assets",null,{"$f":"SUM(C142:C143)","v":0},{"$f":"SUM(D142:D143)","v":0},0,0,0,0,0,{"$f":"SUM(E141:I141)","v":0},{"$f":"IF(D141=0,C141+J141,D141+J141)","v":0},{"$f":"SUM(L142:L143)","v":0},{"$f":"SUM(M142:M143)","v":0},null,null,null,null,null,null,null,null,null,null,null,null,null,null,null,null,"CE"]
["Servitudes",null,{"$f":"SUMIFS(Sheet1!S71_OriginalBudget,Sheet1!S71_SA34Code,$AC:$AC,Sheet1!S71_A5CapexCode,$AD:$AD)","v":0},{"$f":"SUMIFS(Sheet1!S71_SpecialAdjustedBudget,Sheet1!S71_SA34Code,$AC:$AC,Sheet1!S71_A5CapexCode,$AD:$AD)","v":0},null,null,null,null,{"$f":"SUMIFS(Sheet1!S71_AdjustmentAmount,Sheet1!S71_SA34Code,$AC:$AC,Sheet1!S71_A5CapexCode,$AD:$AD)","v":0},0,0,{"$f":"SUMIFS(Sheet1!S71_OY1AdjustedBudget,Sheet1!S71_SA34Code,$AC:$AC,Sheet1!S71_A5CapexCode,$AD:$AD)","v":0},{"$f":"SUMIFS(Sheet1!S71_OY2AdjustedBudget,Sheet1!S71_SA34Code,$AC:$AC,Sheet1!S71_A5CapexCode,$AD:$AD)","v":0},null,null,null,null,null,null,null,null,null,null,null,null,null,null,null,"1380","CE"]
["Licences and Rights",null,{"$f":"SUM(C144:C149)","v":0},{"$f":"SUM(D144:D149)","v":0},0,0,0,0,0,0,0,{"$f":"SUM(L144:L149)","v":0},{"$f":"SUM(M144:M149)","v":0},null,null,null,null,null,null,null,null,null,null,null,null,null,null,null,null,"CE"]
["Water Rights",null,{"$f":"SUMIFS(Sheet1!S71_OriginalBudget,Sheet1!S71_SA34Code,$AC:$AC,Sheet1!S71_A5CapexCode,$AD:$AD)","v":0},{"$f":"SUMIFS(Sheet1!S71_SpecialAdjustedBudget,Sheet1!S71_SA34Code,$AC:$AC,Sheet1!S71_A5CapexCode,$AD:$AD)","v":0},null,null,null,null,{"$f":"SUMIFS(Sheet1!S71_AdjustmentAmount,Sheet1!S71_SA34Code,$AC:$AC,Sheet1!S71_A5CapexCode,$AD:$AD)","v":0},0,0,{"$f":"SUMIFS(Sheet1!S71_OY1AdjustedBudget,Sheet1!S71_SA34Code,$AC:$AC,Sheet1!S71_A5CapexCode,$AD:$AD)","v":0},{"$f":"SUMIFS(Sheet1!S71_OY2AdjustedBudget,Sheet1!S71_SA34Code,$AC:$AC,Sheet1!S71_A5CapexCode,$AD:$AD)","v":0},null,null,null,null,null,null,null,null,null,null,null,null,null,null,null,"1400","CE"]
["Effluent Licenses",null,{"$f":"SUMIFS(Sheet1!S71_OriginalBudget,Sheet1!S71_SA34Code,$AC:$AC,Sheet1!S71_A5CapexCode,$AD:$AD)","v":0},{"$f":"SUMIFS(Sheet1!S71_SpecialAdjustedBudget,Sheet1!S71_SA34Code,$AC:$AC,Sheet1!S71_A5CapexCode,$AD:$AD)","v":0},null,null,null,null,{"$f":"SUMIFS(Sheet1!S71_AdjustmentAmount,Sheet1!S71_SA34Code,$AC:$AC,Sheet1!S71_A5CapexCode,$AD:$AD)","v":0},0,0,{"$f":"SUMIFS(Sheet1!S71_OY1AdjustedBudget,Sheet1!S71_SA34Code,$AC:$AC,Sheet1!S71_A5CapexCode,$AD:$AD)","v":0},{"$f":"SUMIFS(Sheet1!S71_OY2AdjustedBudget,Sheet1!S71_SA34Code,$AC:$AC,Sheet1!S71_A5CapexCode,$AD:$AD)","v":0},null,null,null,null,null,null,null,null,null,null,null,null,null,null,null,"1410","CE"]
["Solid Waste Licenses",null,{"$f":"SUMIFS(Sheet1!S71_OriginalBudget,Sheet1!S71_SA34Code,$AC:$AC,Sheet1!S71_A5CapexCode,$AD:$AD)","v":0},{"$f":"SUMIFS(Sheet1!S71_SpecialAdjustedBudget,Sheet1!S71_SA34Code,$AC:$AC,Sheet1!S71_A5CapexCode,$AD:$AD)","v":0},null,null,null,null,{"$f":"SUMIFS(Sheet1!S71_AdjustmentAmount,Sheet1!S71_SA34Code,$AC:$AC,Sheet1!S71_A5CapexCode,$AD:$AD)","v":0},0,0,{"$f":"SUMIFS(Sheet1!S71_OY1AdjustedBudget,Sheet1!S71_SA34Code,$AC:$AC,Sheet1!S71_A5CapexCode,$AD:$AD)","v":0},{"$f":"SUMIFS(Sheet1!S71_OY2AdjustedBudget,Sheet1!S71_SA34Code,$AC:$AC,Sheet1!S71_A5CapexCode,$AD:$AD)","v":0},null,null,null,null,null,null,null,null,null,null,null,null,null,null,null,"1420","CE"]
["Computer Software and Applications",null,{"$f":"SUMIFS(Sheet1!S71_OriginalBudget,Sheet1!S71_SA34Code,$AC:$AC,Sheet1!S71_A5CapexCode,$AD:$AD)","v":0},{"$f":"SUMIFS(Sheet1!S71_SpecialAdjustedBudget,Sheet1!S71_SA34Code,$AC:$AC,Sheet1!S71_A5CapexCode,$AD:$AD)","v":0},null,null,null,null,{"$f":"SUMIFS(Sheet1!S71_AdjustmentAmount,Sheet1!S71_SA34Code,$AC:$AC,Sheet1!S71_A5CapexCode,$AD:$AD)","v":0},0,0,{"$f":"SUMIFS(Sheet1!S71_OY1AdjustedBudget,Sheet1!S71_SA34Code,$AC:$AC,Sheet1!S71_A5CapexCode,$AD:$AD)","v":0},{"$f":"SUMIFS(Sheet1!S71_OY2AdjustedBudget,Sheet1!S71_SA34Code,$AC:$AC,Sheet1!S71_A5CapexCode,$AD:$AD)","v":0},null,null,null,null,null,null,null,null,null,null,null,null,null,null,null,"1430","CE"]
["Load Settlement Software Applications",null,{"$f":"SUMIFS(Sheet1!S71_OriginalBudget,Sheet1!S71_SA34Code,$AC:$AC,Sheet1!S71_A5CapexCode,$AD:$AD)","v":0},{"$f":"SUMIFS(Sheet1!S71_SpecialAdjustedBudget,Sheet1!S71_SA34Code,$AC:$AC,Sheet1!S71_A5CapexCode,$AD:$AD)","v":0},null,null,null,null,{"$f":"SUMIFS(Sheet1!S71_AdjustmentAmount,Sheet1!S71_SA34Code,$AC:$AC,Sheet1!S71_A5CapexCode,$AD:$AD)","v":0},0,0,{"$f":"SUMIFS(Sheet1!S71_OY1AdjustedBudget,Sheet1!S71_SA34Code,$AC:$AC,Sheet1!S71_A5CapexCode,$AD:$AD)","v":0},{"$f":"SUMIFS(Sheet1!S71_OY2AdjustedBudget,Sheet1!S71_SA34Code,$AC:$AC,Sheet1!S71_A5CapexCode,$AD:$AD)","v":0},null,null,null,null,null,null,null,null,null,null,null,null,null,null,null,"1440","CE"]
["Unspecified",null,{"$f":"SUMIFS(Sheet1!S71_OriginalBudget,Sheet1!S71_SA34Code,$AC:$AC,Sheet1!S71_A5CapexCode,$AD:$AD)","v":0},{"$f":"SUMIFS(Sheet1!S71_SpecialAdjustedBudget,Sheet1!S71_SA34Code,$AC:$AC,Sheet1!S71_A5CapexCode,$AD:$AD)","v":0},null,null,null,null,{"$f":"SUMIFS(Sheet1!S71_AdjustmentAmount,Sheet1!S71_SA34Code,$AC:$AC,Sheet1!S71_A5CapexCode,$AD:$AD)","v":0},0,0,{"$f":"SUMIFS(Sheet1!S71_OY1AdjustedBudget,Sheet1!S71_SA34Code,$AC:$AC,Sheet1!S71_A5CapexCode,$AD:$AD)","v":0},{"$f":"SUMIFS(Sheet1!S71_OY2AdjustedBudget,Sheet1!S71_SA34Code,$AC:$AC,Sheet1!S71_A5CapexCode,$AD:$AD)","v":0},null,null,null,null,null,null,null,null,null,null,null,null,null,null,null,"1450","CE"]
[null,null,null,null,null,null,null,null,null,null,null,null,null,null,null,null,null,null,null,null,null,null,null,null,null,null,null,null,null,"CE"]
["Computer Equipment",null,{"$f":"SUM(C152:C152)","v":0},0,0,0,0,0,0,0,0,0,0,null,null,null,null,null,null,null,null,null,null,null,null,null,null,null,null,"CE"]
["Computer Equipment",null,{"$f":"SUMIFS(Sheet1!S71_OriginalBudget,Sheet1!S71_SA34Code,$AC:$AC,Sheet1!S71_A5CapexCode,$AD:$AD)","v":0},{"$f":"SUMIFS(Sheet1!S71_SpecialAdjustedBudget,Sheet1!S71_SA34Code,$AC:$AC,Sheet1!S71_A5CapexCode,$AD:$AD)","v":0},null,null,null,null,{"$f":"SUMIFS(Sheet1!S71_AdjustmentAmount,Sheet1!S71_SA34Code,$AC:$AC,Sheet1!S71_A5CapexCode,$AD:$AD)","v":0},{"$f":"SUM(E152:I152)","v":0},{"$f":"IF(D152=0,C152+J152,D152+J152)","v":0},{"$f":"SUMIFS(Sheet1!S71_OY1AdjustedBudget,Sheet1!S71_SA34Code,$AC:$AC,Sheet1!S71_A5CapexCode,$AD:$AD)","v":0},{"$f":"SUMIFS(Sheet1!S71_OY2AdjustedBudget,Sheet1!S71_SA34Code,$AC:$AC,Sheet1!S71_A5CapexCode,$AD:$AD)","v":0},null,null,null,null,null,null,null,null,null,null,null,null,null,null,null,"1470","CE"]
[null,null,null,null,null,null,null,null,null,null,null,null,null,null,null,null,null,null,null,null,null,null,null,null,null,null,null,null,null,"CE"]
["Furniture and Office Equipment",null,{"$f":"SUM(C155:C155)","v":0},0,0,0,0,0,0,{"$f":"SUM(E154:I154)","v":0},{"$f":"IF(D154=0,C154+J154,D154+J154)","v":0},0,0,null,null,null,null,null,null,null,null,null,null,null,null,null,null,null,null,"CE"]
["Furniture and Office Equipment",null,{"$f":"SUMIFS(Sheet1!S71_OriginalBudget,Sheet1!S71_SA34Code,$AC:$AC,Sheet1!S71_A5CapexCode,$AD:$AD)","v":0},{"$f":"SUMIFS(Sheet1!S71_SpecialAdjustedBudget,Sheet1!S71_SA34Code,$AC:$AC,Sheet1!S71_A5CapexCode,$AD:$AD)","v":0},null,null,null,null,{"$f":"SUMIFS(Sheet1!S71_AdjustmentAmount,Sheet1!S71_SA34Code,$AC:$AC,Sheet1!S71_A5CapexCode,$AD:$AD)","v":0},{"$f":"SUM(E155:I155)","v":0},{"$f":"IF(D155=0,C155+J155,D155+J155)","v":0},{"$f":"SUMIFS(Sheet1!S71_OY1AdjustedBudget,Sheet1!S71_SA34Code,$AC:$AC,Sheet1!S71_A5CapexCode,$AD:$AD)","v":0},{"$f":"SUMIFS(Sheet1!S71_OY2AdjustedBudget,Sheet1!S71_SA34Code,$AC:$AC,Sheet1!S71_A5CapexCode,$AD:$AD)","v":0},null,null,null,null,null,null,null,null,null,null,null,null,null,null,null,"1490","CE"]
[null,null,null,null,null,null,null,null,null,null,null,null,null,null,null,null,null,null,null,null,null,null,null,null,null,null,null,null,null,"CE"]
["Machinery and Equipment",null,{"$f":"SUM(C158:C158)","v":0},0,0,0,0,0,0,{"$f":"SUM(E157:I157)","v":0},{"$f":"IF(D157=0,C157+J157,D157+J157)","v":0},0,0,null,null,null,null,null,null,null,null,null,null,null,null,null,null,null,null,"CE"]
["Machinery and Equipment",null,{"$f":"SUMIFS(Sheet1!S71_OriginalBudget,Sheet1!S71_SA34Code,$AC:$AC,Sheet1!S71_A5CapexCode,$AD:$AD)","v":0},{"$f":"SUMIFS(Sheet1!S71_SpecialAdjustedBudget,Sheet1!S71_SA34Code,$AC:$AC,Sheet1!S71_A5CapexCode,$AD:$AD)","v":0},null,null,null,null,{"$f":"SUMIFS(Sheet1!S71_AdjustmentAmount,Sheet1!S71_SA34Code,$AC:$AC,Sheet1!S71_A5CapexCode,$AD:$AD)","v":0},{"$f":"SUM(E158:I158)","v":0},{"$f":"IF(D158=0,C158+J158,D158+J158)","v":0},{"$f":"SUMIFS(Sheet1!S71_OY1AdjustedBudget,Sheet1!S71_SA34Code,$AC:$AC,Sheet1!S71_A5CapexCode,$AD:$AD)","v":0},{"$f":"SUMIFS(Sheet1!S71_OY2AdjustedBudget,Sheet1!S71_SA34Code,$AC:$AC,Sheet1!S71_A5CapexCode,$AD:$AD)","v":0},null,null,null,null,null,null,null,null,null,null,null,null,null,null,null,"1510","CE"]
[null,null,null,null,null,null,null,null,null,null,null,null,null,null,null,null,null,null,null,null,null,null,null,null,null,null,null,null,null,"CE"]
["Transport Assets",null,{"$f":"SUM(C161:C161)","v":0},0,0,0,0,0,0,{"$f":"SUM(E160:I160)","v":0},{"$f":"IF(D160=0,C160+J160,D160+J160)","v":0},0,0,null,null,null,null,null,null,null,null,null,null,null,null,null,null,null,null,"CE"]
["Transport Assets",null,{"$f":"SUMIFS(Sheet1!S71_OriginalBudget,Sheet1!S71_SA34Code,$AC:$AC,Sheet1!S71_A5CapexCode,$AD:$AD)","v":0},{"$f":"SUMIFS(Sheet1!S71_SpecialAdjustedBudget,Sheet1!S71_SA34Code,$AC:$AC,Sheet1!S71_A5CapexCode,$AD:$AD)","v":0},null,null,null,null,{"$f":"SUMIFS(Sheet1!S71_AdjustmentAmount,Sheet1!S71_SA34Code,$AC:$AC,Sheet1!S71_A5CapexCode,$AD:$AD)","v":0},{"$f":"SUM(E161:I161)","v":0},{"$f":"IF(D161=0,C161+J161,D161+J161)","v":0},{"$f":"SUMIFS(Sheet1!S71_OY1AdjustedBudget,Sheet1!S71_SA34Code,$AC:$AC,Sheet1!S71_A5CapexCode,$AD:$AD)","v":0},{"$f":"SUMIFS(Sheet1!S71_OY2AdjustedBudget,Sheet1!S71_SA34Code,$AC:$AC,Sheet1!S71_A5CapexCode,$AD:$AD)","v":0},null,null,null,null,null,null,null,null,null,null,null,null,null,null,null,"1530","CE"]
[null,null,null,null,null,null,null,null,null,null,null,null,null,null,null,null,null,null,null,null,null,null,null,null,null,null,null,null,null,"CE"]
["Land",null,{"$f":"SUM(C164:C164)","v":0},0,0,0,0,0,0,{"$f":"SUM(E163:I163)","v":0},{"$f":"IF(D163=0,C163+J163,D163+J163)","v":0},0,0,null,null,null,null,null,null,null,null,null,null,null,null,null,null,null,null,"CE"]
["Land",null,{"$f":"SUMIFS(Sheet1!S71_OriginalBudget,Sheet1!S71_SA34Code,$AC:$AC,Sheet1!S71_A5CapexCode,$AD:$AD)","v":0},{"$f":"SUMIFS(Sheet1!S71_SpecialAdjustedBudget,Sheet1!S71_SA34Code,$AC:$AC,Sheet1!S71_A5CapexCode,$AD:$AD)","v":0},null,null,null,null,{"$f":"SUMIFS(Sheet1!S71_AdjustmentAmount,Sheet1!S71_SA34Code,$AC:$AC,Sheet1!S71_A5CapexCode,$AD:$AD)","v":0},{"$f":"SUM(E164:I164)","v":0},{"$f":"IF(D164=0,C164+J164,D164+J164)","v":0},{"$f":"SUMIFS(Sheet1!S71_OY1AdjustedBudget,Sheet1!S71_SA34Code,$AC:$AC,Sheet1!S71_A5CapexCode,$AD:$AD)","v":0},{"$f":"SUMIFS(Sheet1!S71_OY2AdjustedBudget,Sheet1!S71_SA34Code,$AC:$AC,Sheet1!S71_A5CapexCode,$AD:$AD)","v":0},null,null,null,null,null,null,null,null,null,null,null,null,null,null,null,"1550","CE"]
[null,null,null,null,null,null,null,null,null,null,null,null,null,null,null,null,null,null,null,null,null,null,null,null,null,null,null,null,null,"CE"]
["Zoo's, Marine and Non-biological Animals",null,{"$f":"SUM(C167:C167)","v":0},0,0,0,0,0,0,{"$f":"SUM(E166:I166)","v":0},{"$f":"IF(D166=0,C166+J166,D166+J166)","v":0},0,0,null,null,null,null,null,null,null,null,null,null,null,null,null,null,null,null,"CE"]
["Zoo's, Marine and Non-biological Animals",null,{"$f":"SUMIFS(Sheet1!S71_OriginalBudget,Sheet1!S71_SA34Code,$AC:$AC,Sheet1!S71_A5CapexCode,$AD:$AD)","v":0},{"$f":"SUMIFS(Sheet1!S71_SpecialAdjustedBudget,Sheet1!S71_SA34Code,$AC:$AC,Sheet1!S71_A5CapexCode,$AD:$AD)","v":0},null,null,null,null,{"$f":"SUMIFS(Sheet1!S71_AdjustmentAmount,Sheet1!S71_SA34Code,$AC:$AC,Sheet1!S71_A5CapexCode,$AD:$AD)","v":0},{"$f":"SUM(E167:I167)","v":0},{"$f":"IF(D167=0,C167+J167,D167+J167)","v":0},{"$f":"SUMIFS(Sheet1!S71_OY1AdjustedBudget,Sheet1!S71_SA34Code,$AC:$AC,Sheet1!S71_A5CapexCode,$AD:$AD)","v":0},{"$f":"SUMIFS(Sheet1!S71_OY2AdjustedBudget,Sheet1!S71_SA34Code,$AC:$AC,Sheet1!S71_A5CapexCode,$AD:$AD)","v":0},null,null,null,null,null,null,null,null,null,null,null,null,null,null,null,"1570","CE"]
[null,null,null,null,null,null,null,null,null,null,null,null,null,null,null,null,null,null,null,null,null,null,null,null,null,null,null,null,null,"CE"]
["Total Capital Expenditure on renewal of existing assets to be adjusted",1,{"$f":"C8+C76+C105+C112+C120+C151+C138+C141+C154+C157+C160+C163+C166","v":1808195},{"$f":"D8+D76+D105+D112+D120+D151+D138+D141+D154+D157+D160+D163+D166","v":0},0,0,0,0,-1500000,{"$f":"SUM(E169:I169)","v":-1500000},{"$f":"IF(D169=0,C169+J169,D169+J169)","v":308195},209000,218405,null,null,null,null,null,null,null,null,null,null,null,null,null,null,null,null,"CE"]
[]
[{"$f":"head27a","v":"References"}]
["1. Total Capital Expenditure  on renewal of existing assets (SB18b) plus Total Capital Expenditure on new assets (SB18a) plus Total Capital Expenditure  on upgrading of existing assets (SB18e) must reconcile to total capital expenditure in Budgeted Capital Expenditure"]
["7. Only complete if a previous adjusted budget has been approved in the same financial year. Reflect most recent adjusted budget."]
["8. Additional cash-backed accumulated funds/unspent funds (section 18(1)(b) and section 28(2)(e) MFMA) identified after Original Budget approved and after annual financial statements audited (note: only where underspending could not reasonably be have for"]
["9. Increases of funds approved under section 31 MFMA"]
["10. Adjustments approved in accordance with section 29 MFMA"]
["11. Adjustments to funding allocations from National or Provincial Government"]
["12. Adjusts. = 'Other' Adjustments proposed to be approved; including revenue under-collection (MFMA section 28(2)(a)); additional revenue appropriation on existing programmes (section 28(2))(b); projected savings (section 28(2)(d)); error correction (sec"]
["13. G = B + C + D + E + F"]
["14. Adjusted Budget H = (A or A1) + G"]
[]
[]
["check balance",null,{"$f":"(C169+SB18a!C169+SB18e!C169)-'B5-Capex'!C65","v":0},null,null,null,null,null,null,null,null,{"$f":"(L169+SB18a!L169+SB18e!L169)-'B5-Capex'!L65","v":-16720000},{"$f":"(M169+SB18a!M169+SB18e!M169)-'B5-Capex'!M65","v":-17472400}]

{"sheet":"SB18c","index":58,"n_rows":182,"n_cols":30,"rows_kept":182,"cut":false,"hidden":false,"merged":[[1,0,3,0],[1,1,3,1],[1,2,1,10],[171,0,171,12],[178,0,178,12],[172,0,172,9],[173,0,173,9],[174,0,174,12],[176,0,176,12]]}
[{"$f":"muni&\" - \"&ADJB18c&\" - \"&Date","v":"EC139 Enoch Mgijima - Supporting Table SB18c Adjustments Budget - expenditure on repairs and maintenance by asset class - "}]
[{"$f":"desc","v":"Description"},{"$f":"head27","v":"Ref"},{"$f":"Head2","v":"Budget Year 2021/22"},null,null,null,null,null,null,null,null,{"$f":"Head10","v":"Budget Year +1 2022/23"},{"$f":"Head11","v":"Budget Year +2 2023/24"}]
[null,null,{"$f":"Head6","v":"Original Budget"},{"$f":"Head54","v":"Prior Adjusted"},{"$f":"Head51","v":"Accum. Funds"},{"$f":"Head52","v":"Multi-year capital"},{"$f":"Head53","v":"Unfore. Unavoid."},{"$f":"Head55","v":"Nat. or Prov. Govt"},{"$f":"Head50","v":"Other Adjusts."},{"$f":"Head56","v":"Total Adjusts."},{"$f":"Head7","v":"Adjusted Budget"},{"$f":"Head7","v":"Adjusted Budget"},{"$f":"Head7","v":"Adjusted Budget"}]
[null,null,null,7,8,9,10,11,12,13,14]
["R thousands",null,"A","A1","B","C","D","E","F","G","H"]
["Repairs and maintenance expenditure by Asset Class/Sub-class"]
[]
["Infrastructure",null,{"$f":"C9+C14+C18+C28+C70+C39+C46+C54+C64","v":3657500},{"$f":"D9+D14+D18+D28+D70+D39+D46+D54+D64","v":0},0,0,0,0,1257181,{"$f":"SUM(E8:I8)","v":1257181},{"$f":"IF(D8=0,C8+J8,D8+J8)","v":4914681},{"$f":"L9+L14+L18+L28+L70+L39+L46+L54+L64","v":3657500},{"$f":"M9+M14+M18+M28+M70+M39+M46+M54+M64","v":3822088}]
["Roads Infrastructure",null,{"$f":"SUM(C10:C13)","v":3657500},{"$f":"SUM(D10:D13)","v":0},0,0,0,0,1257181,{"$f":"SUM(E9:I9)","v":1257181},{"$f":"IF(D9=0,C9+J9,D9+J9)","v":4914681},3657500,3822088]
["Roads",null,{"$f":"SUMIFS(Sheet1!S71_OriginalBudget,Sheet1!S71_SA34cCode,$AC:$AC,Sheet1!S71_RepMaintCode,$AD:$AD)","v":3657500},{"$f":"SUMIFS(Sheet1!S71_SpecialAdjustedBudget,Sheet1!S71_SA34cCode,$AC:$AC,Sheet1!S71_RepMaintCode,$AD:$AD)","v":0},null,null,null,null,{"$f":"SUMIFS(Sheet1!S71_AdjustmentAmount,Sheet1!S71_SA34cCode,$AC:$AC,Sheet1!S71_RepMaintCode,$AD:$AD)","v":1257181},1257181,4914681,{"$f":"SUMIFS(Sheet1!S71_OY1AdjustedBudget,Sheet1!S71_SA34cCode,$AC:$AC,Sheet1!S71_RepMaintCode,$AD:$AD)","v":3657500},{"$f":"SUMIFS(Sheet1!S71_OY2AdjustedBudget,Sheet1!S71_SA34cCode,$AC:$AC,Sheet1!S71_RepMaintCode,$AD:$AD)","v":3822088},null,null,null,null,null,null,null,null,null,null,null,null,null,null,null,"0120","RM"]
["Road Structures",null,{"$f":"SUMIFS(Sheet1!S71_OriginalBudget,Sheet1!S71_SA34cCode,$AC:$AC,Sheet1!S71_RepMaintCode,$AD:$AD)","v":0},{"$f":"SUMIFS(Sheet1!S71_SpecialAdjustedBudget,Sheet1!S71_SA34cCode,$AC:$AC,Sheet1!S71_RepMaintCode,$AD:$AD)","v":0},null,null,null,null,{"$f":"SUMIFS(Sheet1!S71_AdjustmentAmount,Sheet1!S71_SA34cCode,$AC:$AC,Sheet1!S71_RepMaintCode,$AD:$AD)","v":0},0,0,{"$f":"SUMIFS(Sheet1!S71_OY1AdjustedBudget,Sheet1!S71_SA34cCode,$AC:$AC,Sheet1!S71_RepMaintCode,$AD:$AD)","v":0},{"$f":"SUMIFS(Sheet1!S71_OY2AdjustedBudget,Sheet1!S71_SA34cCode,$AC:$AC,Sheet1!S71_RepMaintCode,$AD:$AD)","v":0},null,null,null,null,null,null,null,null,null,null,null,null,null,null,null,"0130","RM"]
["Road Furniture",null,{"$f":"SUMIFS(Sheet1!S71_OriginalBudget,Sheet1!S71_SA34cCode,$AC:$AC,Sheet1!S71_RepMaintCode,$AD:$AD)","v":0},{"$f":"SUMIFS(Sheet1!S71_SpecialAdjustedBudget,Sheet1!S71_SA34cCode,$AC:$AC,Sheet1!S71_RepMaintCode,$AD:$AD)","v":0},null,null,null,null,{"$f":"SUMIFS(Sheet1!S71_AdjustmentAmount,Sheet1!S71_SA34cCode,$AC:$AC,Sheet1!S71_RepMaintCode,$AD:$AD)","v":0},0,0,{"$f":"SUMIFS(Sheet1!S71_OY1AdjustedBudget,Sheet1!S71_SA34cCode,$AC:$AC,Sheet1!S71_RepMaintCode,$AD:$AD)","v":0},{"$f":"SUMIFS(Sheet1!S71_OY2AdjustedBudget,Sheet1!S71_SA34cCode,$AC:$AC,Sheet1!S71_RepMaintCode,$AD:$AD)","v":0},null,null,null,null,null,null,null,null,null,null,null,null,null,null,null,"0140","RM"]
["Capital Spares",null,{"$f":"SUMIFS(Sheet1!S71_OriginalBudget,Sheet1!S71_SA34cCode,$AC:$AC,Sheet1!S71_RepMaintCode,$AD:$AD)","v":0},{"$f":"SUMIFS(Sheet1!S71_SpecialAdjustedBudget,Sheet1!S71_SA34cCode,$AC:$AC,Sheet1!S71_RepMaintCode,$AD:$AD)","v":0},null,null,null,null,{"$f":"SUMIFS(Sheet1!S71_AdjustmentAmount,Sheet1!S71_SA34cCode,$AC:$AC,Sheet1!S71_RepMaintCode,$AD:$AD)","v":0},0,0,{"$f":"SUMIFS(Sheet1!S71_OY1AdjustedBudget,Sheet1!S71_SA34cCode,$AC:$AC,Sheet1!S71_RepMaintCode,$AD:$AD)","v":0},{"$f":"SUMIFS(Sheet1!S71_OY2AdjustedBudget,Sheet1!S71_SA34cCode,$AC:$AC,Sheet1!S71_RepMaintCode,$AD:$AD)","v":0},null,null,null,null,null,null,null,null,null,null,null,null,null,null,null,"0150","RM"]
["Storm water Infrastructure",null,{"$f":"SUM(C15:C17)","v":0},0,0,0,0,0,0,0,0,{"$f":"SUM(L15:L17)","v":0},{"$f":"SUM(M15:M17)","v":0},null,null,null,null,null,null,null,null,null,null,null,null,null,null,null,null,"RM"]
["Drainage Collection",null,{"$f":"SUMIFS(Sheet1!S71_OriginalBudget,Sheet1!S71_SA34cCode,$AC:$AC,Sheet1!S71_RepMaintCode,$AD:$AD)","v":0},{"$f":"SUMIFS(Sheet1!S71_SpecialAdjustedBudget,Sheet1!S71_SA34cCode,$AC:$AC,Sheet1!S71_RepMaintCode,$AD:$AD)","v":0},null,null,null,null,{"$f":"SUMIFS(Sheet1!S71_AdjustmentAmount,Sheet1!S71_SA34cCode,$AC:$AC,Sheet1!S71_RepMaintCode,$AD:$AD)","v":0},0,0,{"$f":"SUMIFS(Sheet1!S71_OY1AdjustedBudget,Sheet1!S71_SA34cCode,$AC:$AC,Sheet1!S71_RepMaintCode,$AD:$AD)","v":0},{"$f":"SUMIFS(Sheet1!S71_OY2AdjustedBudget,Sheet1!S71_SA34cCode,$AC:$AC,Sheet1!S71_RepMaintCode,$AD:$AD)","v":0},null,null,null,null,null,null,null,null,null,null,null,null,null,null,null,"0170","RM"]
["Storm water Conveyance",null,{"$f":"SUMIFS(Sheet1!S71_OriginalBudget,Sheet1!S71_SA34cCode,$AC:$AC,Sheet1!S71_RepMaintCode,$AD:$AD)","v":0},{"$f":"SUMIFS(Sheet1!S71_SpecialAdjustedBudget,Sheet1!S71_SA34cCode,$AC:$AC,Sheet1!S71_RepMaintCode,$AD:$AD)","v":0},null,null,null,null,{"$f":"SUMIFS(Sheet1!S71_AdjustmentAmount,Sheet1!S71_SA34cCode,$AC:$AC,Sheet1!S71_RepMaintCode,$AD:$AD)","v":0},0,0,{"$f":"SUMIFS(Sheet1!S71_OY1AdjustedBudget,Sheet1!S71_SA34cCode,$AC:$AC,Sheet1!S71_RepMaintCode,$AD:$AD)","v":0},{"$f":"SUMIFS(Sheet1!S71_OY2AdjustedBudget,Sheet1!S71_SA34cCode,$AC:$AC,Sheet1!S71_RepMaintCode,$AD:$AD)","v":0},null,null,null,null,null,null,null,null,null,null,null,null,null,null,null,"0180","RM"]
["Attenuation",null,{"$f":"SUMIFS(Sheet1!S71_OriginalBudget,Sheet1!S71_SA34cCode,$AC:$AC,Sheet1!S71_RepMaintCode,$AD:$AD)","v":0},{"$f":"SUMIFS(Sheet1!S71_SpecialAdjustedBudget,Sheet1!S71_SA34cCode,$AC:$AC,Sheet1!S71_RepMaintCode,$AD:$AD)","v":0},null,null,null,null,{"$f":"SUMIFS(Sheet1!S71_AdjustmentAmount,Sheet1!S71_SA34cCode,$AC:$AC,Sheet1!S71_RepMaintCode,$AD:$AD)","v":0},0,0,{"$f":"SUMIFS(Sheet1!S71_OY1AdjustedBudget,Sheet1!S71_SA34cCode,$AC:$AC,Sheet1!S71_RepMaintCode,$AD:$AD)","v":0},{"$f":"SUMIFS(Sheet1!S71_OY2AdjustedBudget,Sheet1!S71_SA34cCode,$AC:$AC,Sheet1!S71_RepMaintCode,$AD:$AD)","v":0},null,null,null,null,null,null,null,null,null,null,null,null,null,null,null,"0190","RM"]
["Electrical Infrastructure",null,{"$f":"SUM(C19:C27)","v":0},0,0,0,0,0,0,0,0,0,0,null,null,null,null,null,null,null,null,null,null,null,null,null,null,null,null,"RM"]
["Power Plants",null,{"$f":"SUMIFS(Sheet1!S71_OriginalBudget,Sheet1!S71_SA34cCode,$AC:$AC,Sheet1!S71_RepMaintCode,$AD:$AD)","v":0},{"$f":"SUMIFS(Sheet1!S71_SpecialAdjustedBudget,Sheet1!S71_SA34cCode,$AC:$AC,Sheet1!S71_RepMaintCode,$AD:$AD)","v":0},null,null,null,null,{"$f":"SUMIFS(Sheet1!S71_AdjustmentAmount,Sheet1!S71_SA34cCode,$AC:$AC,Sheet1!S71_RepMaintCode,$AD:$AD)","v":0},0,0,{"$f":"SUMIFS(Sheet1!S71_OY1AdjustedBudget,Sheet1!S71_SA34cCode,$AC:$AC,Sheet1!S71_RepMaintCode,$AD:$AD)","v":0},{"$f":"SUMIFS(Sheet1!S71_OY2AdjustedBudget,Sheet1!S71_SA34cCode,$AC:$AC,Sheet1!S71_RepMaintCode,$AD:$AD)","v":0},null,null,null,null,null,null,null,null,null,null,null,null,null,null,null,"0210","RM"]
["HV Substations",null,{"$f":"SUMIFS(Sheet1!S71_OriginalBudget,Sheet1!S71_SA34cCode,$AC:$AC,Sheet1!S71_RepMaintCode,$AD:$AD)","v":0},{"$f":"SUMIFS(Sheet1!S71_SpecialAdjustedBudget,Sheet1!S71_SA34cCode,$AC:$AC,Sheet1!S71_RepMaintCode,$AD:$AD)","v":0},null,null,null,null,{"$f":"SUMIFS(Sheet1!S71_AdjustmentAmount,Sheet1!S71_SA34cCode,$AC:$AC,Sheet1!S71_RepMaintCode,$AD:$AD)","v":0},0,0,{"$f":"SUMIFS(Sheet1!S71_OY1AdjustedBudget,Sheet1!S71_SA34cCode,$AC:$AC,Sheet1!S71_RepMaintCode,$AD:$AD)","v":0},{"$f":"SUMIFS(Sheet1!S71_OY2AdjustedBudget,Sheet1!S71_SA34cCode,$AC:$AC,Sheet1!S71_RepMaintCode,$AD:$AD)","v":0},null,null,null,null,null,null,null,null,null,null,null,null,null,null,null,"0220","RM"]
["HV Switching Station",null,{"$f":"SUMIFS(Sheet1!S71_OriginalBudget,Sheet1!S71_SA34cCode,$AC:$AC,Sheet1!S71_RepMaintCode,$AD:$AD)","v":0},{"$f":"SUMIFS(Sheet1!S71_SpecialAdjustedBudget,Sheet1!S71_SA34cCode,$AC:$AC,Sheet1!S71_RepMaintCode,$AD:$AD)","v":0},null,null,null,null,{"$f":"SUMIFS(Sheet1!S71_AdjustmentAmount,Sheet1!S71_SA34cCode,$AC:$AC,Sheet1!S71_RepMaintCode,$AD:$AD)","v":0},0,0,{"$f":"SUMIFS(Sheet1!S71_OY1AdjustedBudget,Sheet1!S71_SA34cCode,$AC:$AC,Sheet1!S71_RepMaintCode,$AD:$AD)","v":0},{"$f":"SUMIFS(Sheet1!S71_OY2AdjustedBudget,Sheet1!S71_SA34cCode,$AC:$AC,Sheet1!S71_RepMaintCode,$AD:$AD)","v":0},null,null,null,null,null,null,null,null,null,null,null,null,null,null,null,"0230","RM"]
["HV Transmission Conductors",null,{"$f":"SUMIFS(Sheet1!S71_OriginalBudget,Sheet1!S71_SA34cCode,$AC:$AC,Sheet1!S71_RepMaintCode,$AD:$AD)","v":0},{"$f":"SUMIFS(Sheet1!S71_SpecialAdjustedBudget,Sheet1!S71_SA34cCode,$AC:$AC,Sheet1!S71_RepMaintCode,$AD:$AD)","v":0},null,null,null,null,{"$f":"SUMIFS(Sheet1!S71_AdjustmentAmount,Sheet1!S71_SA34cCode,$AC:$AC,Sheet1!S71_RepMaintCode,$AD:$AD)","v":0},0,0,{"$f":"SUMIFS(Sheet1!S71_OY1AdjustedBudget,Sheet1!S71_SA34cCode,$AC:$AC,Sheet1!S71_RepMaintCode,$AD:$AD)","v":0},{"$f":"SUMIFS(Sheet1!S71_OY2AdjustedBudget,Sheet1!S71_SA34cCode,$AC:$AC,Sheet1!S71_RepMaintCode,$AD:$AD)","v":0},null,null,null,null,null,null,null,null,null,null,null,null,null,null,null,"0240","RM"]
["MV Substations",null,{"$f":"SUMIFS(Sheet1!S71_OriginalBudget,Sheet1!S71_SA34cCode,$AC:$AC,Sheet1!S71_RepMaintCode,$AD:$AD)","v":0},{"$f":"SUMIFS(Sheet1!S71_SpecialAdjustedBudget,Sheet1!S71_SA34cCode,$AC:$AC,Sheet1!S71_RepMaintCode,$AD:$AD)","v":0},null,null,null,null,{"$f":"SUMIFS(Sheet1!S71_AdjustmentAmount,Sheet1!S71_SA34cCode,$AC:$AC,Sheet1!S71_RepMaintCode,$AD:$AD)","v":0},0,0,{"$f":"SUMIFS(Sheet1!S71_OY1AdjustedBudget,Sheet1!S71_SA34cCode,$AC:$AC,Sheet1!S71_RepMaintCode,$AD:$AD)","v":0},{"$f":"SUMIFS(Sheet1!S71_OY2AdjustedBudget,Sheet1!S71_SA34cCode,$AC:$AC,Sheet1!S71_RepMaintCode,$AD:$AD)","v":0},null,null,null,null,null,null,null,null,null,null,null,null,null,null,null,"0250","RM"]
["MV Switching Stations",null,{"$f":"SUMIFS(Sheet1!S71_OriginalBudget,Sheet1!S71_SA34cCode,$AC:$AC,Sheet1!S71_RepMaintCode,$AD:$AD)","v":0},{"$f":"SUMIFS(Sheet1!S71_SpecialAdjustedBudget,Sheet1!S71_SA34cCode,$AC:$AC,Sheet1!S71_RepMaintCode,$AD:$AD)","v":0},null,null,null,null,{"$f":"SUMIFS(Sheet1!S71_AdjustmentAmount,Sheet1!S71_SA34cCode,$AC:$AC,Sheet1!S71_RepMaintCode,$AD:$AD)","v":0},0,0,{"$f":"SUMIFS(Sheet1!S71_OY1AdjustedBudget,Sheet1!S71_SA34cCode,$AC:$AC,Sheet1!S71_RepMaintCode,$AD:$AD)","v":0},{"$f":"SUMIFS(Sheet1!S71_OY2AdjustedBudget,Sheet1!S71_SA34cCode,$AC:$AC,Sheet1!S71_RepMaintCode,$AD:$AD)","v":0},null,null,null,null,null,null,null,null,null,null,null,null,null,null,null,"0260","RM"]
["MV Networks",null,{"$f":"SUMIFS(Sheet1!S71_OriginalBudget,Sheet1!S71_SA34cCode,$AC:$AC,Sheet1!S71_RepMaintCode,$AD:$AD)","v":0},{"$f":"SUMIFS(Sheet1!S71_SpecialAdjustedBudget,Sheet1!S71_SA34cCode,$AC:$AC,Sheet1!S71_RepMaintCode,$AD:$AD)","v":0},null,null,null,null,{"$f":"SUMIFS(Sheet1!S71_AdjustmentAmount,Sheet1!S71_SA34cCode,$AC:$AC,Sheet1!S71_RepMaintCode,$AD:$AD)","v":0},0,0,{"$f":"SUMIFS(Sheet1!S71_OY1AdjustedBudget,Sheet1!S71_SA34cCode,$AC:$AC,Sheet1!S71_RepMaintCode,$AD:$AD)","v":0},{"$f":"SUMIFS(Sheet1!S71_OY2AdjustedBudget,Sheet1!S71_SA34cCode,$AC:$AC,Sheet1!S71_RepMaintCode,$AD:$AD)","v":0},null,null,null,null,null,null,null,null,null,null,null,null,null,null,null,"0270","RM"]
["LV Networks",null,{"$f":"SUMIFS(Sheet1!S71_OriginalBudget,Sheet1!S71_SA34cCode,$AC:$AC,Sheet1!S71_RepMaintCode,$AD:$AD)","v":0},{"$f":"SUMIFS(Sheet1!S71_SpecialAdjustedBudget,Sheet1!S71_SA34cCode,$AC:$AC,Sheet1!S71_RepMaintCode,$AD:$AD)","v":0},null,null,null,null,{"$f":"SUMIFS(Sheet1!S71_AdjustmentAmount,Sheet1!S71_SA34cCode,$AC:$AC,Sheet1!S71_RepMaintCode,$AD:$AD)","v":0},0,0,{"$f":"SUMIFS(Sheet1!S71_OY1AdjustedBudget,Sheet1!S71_SA34cCode,$AC:$AC,Sheet1!S71_RepMaintCode,$AD:$AD)","v":0},{"$f":"SUMIFS(Sheet1!S71_OY2AdjustedBudget,Sheet1!S71_SA34cCode,$AC:$AC,Sheet1!S71_RepMaintCode,$AD:$AD)","v":0},null,null,null,null,null,null,null,null,null,null,null,null,null,null,null,"0280","RM"]
["Capital Spares",null,{"$f":"SUMIFS(Sheet1!S71_OriginalBudget,Sheet1!S71_SA34cCode,$AC:$AC,Sheet1!S71_RepMaintCode,$AD:$AD)","v":0},{"$f":"SUMIFS(Sheet1!S71_SpecialAdjustedBudget,Sheet1!S71_SA34cCode,$AC:$AC,Sheet1!S71_RepMaintCode,$AD:$AD)","v":0},null,null,null,null,{"$f":"SUMIFS(Sheet1!S71_AdjustmentAmount,Sheet1!S71_SA34cCode,$AC:$AC,Sheet1!S71_RepMaintCode,$AD:$AD)","v":0},0,0,{"$f":"SUMIFS(Sheet1!S71_OY1AdjustedBudget,Sheet1!S71_SA34cCode,$AC:$AC,Sheet1!S71_RepMaintCode,$AD:$AD)","v":0},{"$f":"SUMIFS(Sheet1!S71_OY2AdjustedBudget,Sheet1!S71_SA34cCode,$AC:$AC,Sheet1!S71_RepMaintCode,$AD:$AD)","v":0},null,null,null,null,null,null,null,null,null,null,null,null,null,null,null,"0290","RM"]
["Water Supply Infrastructure",null,{"$f":"SUM(C29:C38)","v":0},0,0,0,0,0,0,0,0,0,0,null,null,null,null,null,null,null,null,null,null,null,null,null,null,null,null,"RM"]
["Dams and Weirs",null,{"$f":"SUMIFS(Sheet1!S71_OriginalBudget,Sheet1!S71_SA34cCode,$AC:$AC,Sheet1!S71_RepMaintCode,$AD:$AD)","v":0},{"$f":"SUMIFS(Sheet1!S71_SpecialAdjustedBudget,Sheet1!S71_SA34cCode,$AC:$AC,Sheet1!S71_RepMaintCode,$AD:$AD)","v":0},null,null,null,null,{"$f":"SUMIFS(Sheet1!S71_AdjustmentAmount,Sheet1!S71_SA34cCode,$AC:$AC,Sheet1!S71_RepMaintCode,$AD:$AD)","v":0},0,0,{"$f":"SUMIFS(Sheet1!S71_OY1AdjustedBudget,Sheet1!S71_SA34cCode,$AC:$AC,Sheet1!S71_RepMaintCode,$AD:$AD)","v":0},{"$f":"SUMIFS(Sheet1!S71_OY2AdjustedBudget,Sheet1!S71_SA34cCode,$AC:$AC,Sheet1!S71_RepMaintCode,$AD:$AD)","v":0},null,null,null,null,null,null,null,null,null,null,null,null,null,null,null,"0310","RM"]
["Boreholes",null,{"$f":"SUMIFS(Sheet1!S71_OriginalBudget,Sheet1!S71_SA34cCode,$AC:$AC,Sheet1!S71_RepMaintCode,$AD:$AD)","v":0},{"$f":"SUMIFS(Sheet1!S71_SpecialAdjustedBudget,Sheet1!S71_SA34cCode,$AC:$AC,Sheet1!S71_RepMaintCode,$AD:$AD)","v":0},null,null,null,null,{"$f":"SUMIFS(Sheet1!S71_AdjustmentAmount,Sheet1!S71_SA34cCode,$AC:$AC,Sheet1!S71_RepMaintCode,$AD:$AD)","v":0},0,0,{"$f":"SUMIFS(Sheet1!S71_OY1AdjustedBudget,Sheet1!S71_SA34cCode,$AC:$AC,Sheet1!S71_RepMaintCode,$AD:$AD)","v":0},{"$f":"SUMIFS(Sheet1!S71_OY2AdjustedBudget,Sheet1!S71_SA34cCode,$AC:$AC,Sheet1!S71_RepMaintCode,$AD:$AD)","v":0},null,null,null,null,null,null,null,null,null,null,null,null,null,null,null,"0320","RM"]
["Reservoirs",null,{"$f":"SUMIFS(Sheet1!S71_OriginalBudget,Sheet1!S71_SA34cCode,$AC:$AC,Sheet1!S71_RepMaintCode,$AD:$AD)","v":0},{"$f":"SUMIFS(Sheet1!S71_SpecialAdjustedBudget,Sheet1!S71_SA34cCode,$AC:$AC,Sheet1!S71_RepMaintCode,$AD:$AD)","v":0},null,null,null,null,{"$f":"SUMIFS(Sheet1!S71_AdjustmentAmount,Sheet1!S71_SA34cCode,$AC:$AC,Sheet1!S71_RepMaintCode,$AD:$AD)","v":0},0,0,{"$f":"SUMIFS(Sheet1!S71_OY1AdjustedBudget,Sheet1!S71_SA34cCode,$AC:$AC,Sheet1!S71_RepMaintCode,$AD:$AD)","v":0},{"$f":"SUMIFS(Sheet1!S71_OY2AdjustedBudget,Sheet1!S71_SA34cCode,$AC:$AC,Sheet1!S71_RepMaintCode,$AD:$AD)","v":0},null,null,null,null,null,null,null,null,null,null,null,null,null,null,null,"0330","RM"]
["Pump Stations",null,{"$f":"SUMIFS(Sheet1!S71_OriginalBudget,Sheet1!S71_SA34cCode,$AC:$AC,Sheet1!S71_RepMaintCode,$AD:$AD)","v":0},{"$f":"SUMIFS(Sheet1!S71_SpecialAdjustedBudget,Sheet1!S71_SA34cCode,$AC:$AC,Sheet1!S71_RepMaintCode,$AD:$AD)","v":0},null,null,null,null,{"$f":"SUMIFS(Sheet1!S71_AdjustmentAmount,Sheet1!S71_SA34cCode,$AC:$AC,Sheet1!S71_RepMaintCode,$AD:$AD)","v":0},0,0,{"$f":"SUMIFS(Sheet1!S71_OY1AdjustedBudget,Sheet1!S71_SA34cCode,$AC:$AC,Sheet1!S71_RepMaintCode,$AD:$AD)","v":0},{"$f":"SUMIFS(Sheet1!S71_OY2AdjustedBudget,Sheet1!S71_SA34cCode,$AC:$AC,Sheet1!S71_RepMaintCode,$AD:$AD)","v":0},null,null,null,null,null,null,null,null,null,null,null,null,null,null,null,"0340","RM"]
["Water Treatment Works",null,{"$f":"SUMIFS(Sheet1!S71_OriginalBudget,Sheet1!S71_SA34cCode,$AC:$AC,Sheet1!S71_RepMaintCode,$AD:$AD)","v":0},{"$f":"SUMIFS(Sheet1!S71_SpecialAdjustedBudget,Sheet1!S71_SA34cCode,$AC:$AC,Sheet1!S71_RepMaintCode,$AD:$AD)","v":0},null,null,null,null,{"$f":"SUMIFS(Sheet1!S71_AdjustmentAmount,Sheet1!S71_SA34cCode,$AC:$AC,Sheet1!S71_RepMaintCode,$AD:$AD)","v":0},0,0,{"$f":"SUMIFS(Sheet1!S71_OY1AdjustedBudget,Sheet1!S71_SA34cCode,$AC:$AC,Sheet1!S71_RepMaintCode,$AD:$AD)","v":0},{"$f":"SUMIFS(Sheet1!S71_OY2AdjustedBudget,Sheet1!S71_SA34cCode,$AC:$AC,Sheet1!S71_RepMaintCode,$AD:$AD)","v":0},null,null,null,null,null,null,null,null,null,null,null,null,null,null,null,"0350","RM"]
["Bulk Mains",null,{"$f":"SUMIFS(Sheet1!S71_OriginalBudget,Sheet1!S71_SA34cCode,$AC:$AC,Sheet1!S71_RepMaintCode,$AD:$AD)","v":0},{"$f":"SUMIFS(Sheet1!S71_SpecialAdjustedBudget,Sheet1!S71_SA34cCode,$AC:$AC,Sheet1!S71_RepMaintCode,$AD:$AD)","v":0},null,null,null,null,{"$f":"SUMIFS(Sheet1!S71_AdjustmentAmount,Sheet1!S71_SA34cCode,$AC:$AC,Sheet1!S71_RepMaintCode,$AD:$AD)","v":0},0,0,{"$f":"SUMIFS(Sheet1!S71_OY1AdjustedBudget,Sheet1!S71_SA34cCode,$AC:$AC,Sheet1!S71_RepMaintCode,$AD:$AD)","v":0},{"$f":"SUMIFS(Sheet1!S71_OY2AdjustedBudget,Sheet1!S71_SA34cCode,$AC:$AC,Sheet1!S71_RepMaintCode,$AD:$AD)","v":0},null,null,null,null,null,null,null,null,null,null,null,null,null,null,null,"0360","RM"]
["Distribution",null,{"$f":"SUMIFS(Sheet1!S71_OriginalBudget,Sheet1!S71_SA34cCode,$AC:$AC,Sheet1!S71_RepMaintCode,$AD:$AD)","v":0},{"$f":"SUMIFS(Sheet1!S71_SpecialAdjustedBudget,Sheet1!S71_SA34cCode,$AC:$AC,Sheet1!S71_RepMaintCode,$AD:$AD)","v":0},null,null,null,null,{"$f":"SUMIFS(Sheet1!S71_AdjustmentAmount,Sheet1!S71_SA34cCode,$AC:$AC,Sheet1!S71_RepMaintCode,$AD:$AD)","v":0},0,0,{"$f":"SUMIFS(Sheet1!S71_OY1AdjustedBudget,Sheet1!S71_SA34cCode,$AC:$AC,Sheet1!S71_RepMaintCode,$AD:$AD)","v":0},{"$f":"SUMIFS(Sheet1!S71_OY2AdjustedBudget,Sheet1!S71_SA34cCode,$AC:$AC,Sheet1!S71_RepMaintCode,$AD:$AD)","v":0},null,null,null,null,null,null,null,null,null,null,null,null,null,null,null,"0370","RM"]
["Distribution Points",null,{"$f":"SUMIFS(Sheet1!S71_OriginalBudget,Sheet1!S71_SA34cCode,$AC:$AC,Sheet1!S71_RepMaintCode,$AD:$AD)","v":0},{"$f":"SUMIFS(Sheet1!S71_SpecialAdjustedBudget,Sheet1!S71_SA34cCode,$AC:$AC,Sheet1!S71_RepMaintCode,$AD:$AD)","v":0},null,null,null,null,{"$f":"SUMIFS(Sheet1!S71_AdjustmentAmount,Sheet1!S71_SA34cCode,$AC:$AC,Sheet1!S71_RepMaintCode,$AD:$AD)","v":0},0,0,{"$f":"SUMIFS(Sheet1!S71_OY1AdjustedBudget,Sheet1!S71_SA34cCode,$AC:$AC,Sheet1!S71_RepMaintCode,$AD:$AD)","v":0},{"$f":"SUMIFS(Sheet1!S71_OY2AdjustedBudget,Sheet1!S71_SA34cCode,$AC:$AC,Sheet1!S71_RepMaintCode,$AD:$AD)","v":0},null,null,null,null,null,null,null,null,null,null,null,null,null,null,null,"0380","RM"]
["PRV Stations",null,{"$f":"SUMIFS(Sheet1!S71_OriginalBudget,Sheet1!S71_SA34cCode,$AC:$AC,Sheet1!S71_RepMaintCode,$AD:$AD)","v":0},{"$f":"SUMIFS(Sheet1!S71_SpecialAdjustedBudget,Sheet1!S71_SA34cCode,$AC:$AC,Sheet1!S71_RepMaintCode,$AD:$AD)","v":0},null,null,null,null,{"$f":"SUMIFS(Sheet1!S71_AdjustmentAmount,Sheet1!S71_SA34cCode,$AC:$AC,Sheet1!S71_RepMaintCode,$AD:$AD)","v":0},0,0,{"$f":"SUMIFS(Sheet1!S71_OY1AdjustedBudget,Sheet1!S71_SA34cCode,$AC:$AC,Sheet1!S71_RepMaintCode,$AD:$AD)","v":0},{"$f":"SUMIFS(Sheet1!S71_OY2AdjustedBudget,Sheet1!S71_SA34cCode,$AC:$AC,Sheet1!S71_RepMaintCode,$AD:$AD)","v":0},null,null,null,null,null,null,null,null,null,null,null,null,null,null,null,"0390","RM"]
["Capital Spares",null,{"$f":"SUMIFS(Sheet1!S71_OriginalBudget,Sheet1!S71_SA34cCode,$AC:$AC,Sheet1!S71_RepMaintCode,$AD:$AD)","v":0},{"$f":"SUMIFS(Sheet1!S71_SpecialAdjustedBudget,Sheet1!S71_SA34cCode,$AC:$AC,Sheet1!S71_RepMaintCode,$AD:$AD)","v":0},null,null,null,null,{"$f":"SUMIFS(Sheet1!S71_AdjustmentAmount,Sheet1!S71_SA34cCode,$AC:$AC,Sheet1!S71_RepMaintCode,$AD:$AD)","v":0},0,0,{"$f":"SUMIFS(Sheet1!S71_OY1AdjustedBudget,Sheet1!S71_SA34cCode,$AC:$AC,Sheet1!S71_RepMaintCode,$AD:$AD)","v":0},{"$f":"SUMIFS(Sheet1!S71_OY2AdjustedBudget,Sheet1!S71_SA34cCode,$AC:$AC,Sheet1!S71_RepMaintCode,$AD:$AD)","v":0},null,null,null,null,null,null,null,null,null,null,null,null,null,null,null,"0400","RM"]
["Sanitation Infrastructure",null,{"$f":"SUM(C40:C45)","v":0},{"$f":"SUM(D40:D45)","v":0},0,0,0,0,0,0,0,0,0,null,null,null,null,null,null,null,null,null,null,null,null,null,null,null,null,"RM"]
["Pump Station",null,{"$f":"SUMIFS(Sheet1!S71_OriginalBudget,Sheet1!S71_SA34cCode,$AC:$AC,Sheet1!S71_RepMaintCode,$AD:$AD)","v":0},{"$f":"SUMIFS(Sheet1!S71_SpecialAdjustedBudget,Sheet1!S71_SA34cCode,$AC:$AC,Sheet1!S71_RepMaintCode,$AD:$AD)","v":0},null,null,null,null,{"$f":"SUMIFS(Sheet1!S71_AdjustmentAmount,Sheet1!S71_SA34cCode,$AC:$AC,Sheet1!S71_RepMaintCode,$AD:$AD)","v":0},0,0,{"$f":"SUMIFS(Sheet1!S71_OY1AdjustedBudget,Sheet1!S71_SA34cCode,$AC:$AC,Sheet1!S71_RepMaintCode,$AD:$AD)","v":0},{"$f":"SUMIFS(Sheet1!S71_OY2AdjustedBudget,Sheet1!S71_SA34cCode,$AC:$AC,Sheet1!S71_RepMaintCode,$AD:$AD)","v":0},null,null,null,null,null,null,null,null,null,null,null,null,null,null,null,"0420","RM"]
["Reticulation",null,{"$f":"SUMIFS(Sheet1!S71_OriginalBudget,Sheet1!S71_SA34cCode,$AC:$AC,Sheet1!S71_RepMaintCode,$AD:$AD)","v":0},{"$f":"SUMIFS(Sheet1!S71_SpecialAdjustedBudget,Sheet1!S71_SA34cCode,$AC:$AC,Sheet1!S71_RepMaintCode,$AD:$AD)","v":0},null,null,null,null,{"$f":"SUMIFS(Sheet1!S71_AdjustmentAmount,Sheet1!S71_SA34cCode,$AC:$AC,Sheet1!S71_RepMaintCode,$AD:$AD)","v":0},0,0,{"$f":"SUMIFS(Sheet1!S71_OY1AdjustedBudget,Sheet1!S71_SA34cCode,$AC:$AC,Sheet1!S71_RepMaintCode,$AD:$AD)","v":0},{"$f":"SUMIFS(Sheet1!S71_OY2AdjustedBudget,Sheet1!S71_SA34cCode,$AC:$AC,Sheet1!S71_RepMaintCode,$AD:$AD)","v":0},null,null,null,null,null,null,null,null,null,null,null,null,null,null,null,"0430","RM"]
["Waste Water Treatment Works",null,{"$f":"SUMIFS(Sheet1!S71_OriginalBudget,Sheet1!S71_SA34cCode,$AC:$AC,Sheet1!S71_RepMaintCode,$AD:$AD)","v":0},{"$f":"SUMIFS(Sheet1!S71_SpecialAdjustedBudget,Sheet1!S71_SA34cCode,$AC:$AC,Sheet1!S71_RepMaintCode,$AD:$AD)","v":0},null,null,null,null,{"$f":"SUMIFS(Sheet1!S71_AdjustmentAmount,Sheet1!S71_SA34cCode,$AC:$AC,Sheet1!S71_RepMaintCode,$AD:$AD)","v":0},0,0,{"$f":"SUMIFS(Sheet1!S71_OY1AdjustedBudget,Sheet1!S71_SA34cCode,$AC:$AC,Sheet1!S71_RepMaintCode,$AD:$AD)","v":0},{"$f":"SUMIFS(Sheet1!S71_OY2AdjustedBudget,Sheet1!S71_SA34cCode,$AC:$AC,Sheet1!S71_RepMaintCode,$AD:$AD)","v":0},null,null,null,null,null,null,null,null,null,null,null,null,null,null,null,"0440","RM"]
["Outfall Sewers",null,{"$f":"SUMIFS(Sheet1!S71_OriginalBudget,Sheet1!S71_SA34cCode,$AC:$AC,Sheet1!S71_RepMaintCode,$AD:$AD)","v":0},{"$f":"SUMIFS(Sheet1!S71_SpecialAdjustedBudget,Sheet1!S71_SA34cCode,$AC:$AC,Sheet1!S71_RepMaintCode,$AD:$AD)","v":0},null,null,null,null,{"$f":"SUMIFS(Sheet1!S71_AdjustmentAmount,Sheet1!S71_SA34cCode,$AC:$AC,Sheet1!S71_RepMaintCode,$AD:$AD)","v":0},0,0,{"$f":"SUMIFS(Sheet1!S71_OY1AdjustedBudget,Sheet1!S71_SA34cCode,$AC:$AC,Sheet1!S71_RepMaintCode,$AD:$AD)","v":0},{"$f":"SUMIFS(Sheet1!S71_OY2AdjustedBudget,Sheet1!S71_SA34cCode,$AC:$AC,Sheet1!S71_RepMaintCode,$AD:$AD)","v":0},null,null,null,null,null,null,null,null,null,null,null,null,null,null,null,"0450","RM"]
["Toilet Facilities",null,{"$f":"SUMIFS(Sheet1!S71_OriginalBudget,Sheet1!S71_SA34cCode,$AC:$AC,Sheet1!S71_RepMaintCode,$AD:$AD)","v":0},{"$f":"SUMIFS(Sheet1!S71_SpecialAdjustedBudget,Sheet1!S71_SA34cCode,$AC:$AC,Sheet1!S71_RepMaintCode,$AD:$AD)","v":0},null,null,null,null,{"$f":"SUMIFS(Sheet1!S71_AdjustmentAmount,Sheet1!S71_SA34cCode,$AC:$AC,Sheet1!S71_RepMaintCode,$AD:$AD)","v":0},0,0,{"$f":"SUMIFS(Sheet1!S71_OY1AdjustedBudget,Sheet1!S71_SA34cCode,$AC:$AC,Sheet1!S71_RepMaintCode,$AD:$AD)","v":0},{"$f":"SUMIFS(Sheet1!S71_OY2AdjustedBudget,Sheet1!S71_SA34cCode,$AC:$AC,Sheet1!S71_RepMaintCode,$AD:$AD)","v":0},null,null,null,null,null,null,null,null,null,null,null,null,null,null,null,"0460","RM"]
["Capital Spares",null,{"$f":"SUMIFS(Sheet1!S71_OriginalBudget,Sheet1!S71_SA34cCode,$AC:$AC,Sheet1!S71_RepMaintCode,$AD:$AD)","v":0},{"$f":"SUMIFS(Sheet1!S71_SpecialAdjustedBudget,Sheet1!S71_SA34cCode,$AC:$AC,Sheet1!S71_RepMaintCode,$AD:$AD)","v":0},null,null,null,null,{"$f":"SUMIFS(Sheet1!S71_AdjustmentAmount,Sheet1!S71_SA34cCode,$AC:$AC,Sheet1!S71_RepMaintCode,$AD:$AD)","v":0},0,0,{"$f":"SUMIFS(Sheet1!S71_OY1AdjustedBudget,Sheet1!S71_SA34cCode,$AC:$AC,Sheet1!S71_RepMaintCode,$AD:$AD)","v":0},{"$f":"SUMIFS(Sheet1!S71_OY2AdjustedBudget,Sheet1!S71_SA34cCode,$AC:$AC,Sheet1!S71_RepMaintCode,$AD:$AD)","v":0},null,null,null,null,null,null,null,null,null,null,null,null,null,null,null,"0470","RM"]
["Solid Waste Infrastructure",null,{"$f":"SUM(C47:C53)","v":0},{"$f":"SUM(D47:D53)","v":0},0,0,0,0,0,0,0,0,0,null,null,null,null,null,null,null,null,null,null,null,null,null,null,null,null,"RM"]
["Landfill Sites",null,{"$f":"SUMIFS(Sheet1!S71_OriginalBudget,Sheet1!S71_SA34cCode,$AC:$AC,Sheet1!S71_RepMaintCode,$AD:$AD)","v":0},{"$f":"SUMIFS(Sheet1!S71_SpecialAdjustedBudget,Sheet1!S71_SA34cCode,$AC:$AC,Sheet1!S71_RepMaintCode,$AD:$AD)","v":0},null,null,null,null,{"$f":"SUMIFS(Sheet1!S71_AdjustmentAmount,Sheet1!S71_SA34cCode,$AC:$AC,Sheet1!S71_RepMaintCode,$AD:$AD)","v":0},0,0,{"$f":"SUMIFS(Sheet1!S71_OY1AdjustedBudget,Sheet1!S71_SA34cCode,$AC:$AC,Sheet1!S71_RepMaintCode,$AD:$AD)","v":0},{"$f":"SUMIFS(Sheet1!S71_OY2AdjustedBudget,Sheet1!S71_SA34cCode,$AC:$AC,Sheet1!S71_RepMaintCode,$AD:$AD)","v":0},null,null,null,null,null,null,null,null,null,null,null,null,null,null,null,"0490","RM"]
["Waste Transfer Stations",null,{"$f":"SUMIFS(Sheet1!S71_OriginalBudget,Sheet1!S71_SA34cCode,$AC:$AC,Sheet1!S71_RepMaintCode,$AD:$AD)","v":0},{"$f":"SUMIFS(Sheet1!S71_SpecialAdjustedBudget,Sheet1!S71_SA34cCode,$AC:$AC,Sheet1!S71_RepMaintCode,$AD:$AD)","v":0},null,null,null,null,{"$f":"SUMIFS(Sheet1!S71_AdjustmentAmount,Sheet1!S71_SA34cCode,$AC:$AC,Sheet1!S71_RepMaintCode,$AD:$AD)","v":0},0,0,{"$f":"SUMIFS(Sheet1!S71_OY1AdjustedBudget,Sheet1!S71_SA34cCode,$AC:$AC,Sheet1!S71_RepMaintCode,$AD:$AD)","v":0},{"$f":"SUMIFS(Sheet1!S71_OY2AdjustedBudget,Sheet1!S71_SA34cCode,$AC:$AC,Sheet1!S71_RepMaintCode,$AD:$AD)","v":0},null,null,null,null,null,null,null,null,null,null,null,null,null,null,null,"0500","RM"]
["Waste Processing Facilities",null,{"$f":"SUMIFS(Sheet1!S71_OriginalBudget,Sheet1!S71_SA34cCode,$AC:$AC,Sheet1!S71_RepMaintCode,$AD:$AD)","v":0},{"$f":"SUMIFS(Sheet1!S71_SpecialAdjustedBudget,Sheet1!S71_SA34cCode,$AC:$AC,Sheet1!S71_RepMaintCode,$AD:$AD)","v":0},null,null,null,null,{"$f":"SUMIFS(Sheet1!S71_AdjustmentAmount,Sheet1!S71_SA34cCode,$AC:$AC,Sheet1!S71_RepMaintCode,$AD:$AD)","v":0},0,0,{"$f":"SUMIFS(Sheet1!S71_OY1AdjustedBudget,Sheet1!S71_SA34cCode,$AC:$AC,Sheet1!S71_RepMaintCode,$AD:$AD)","v":0},{"$f":"SUMIFS(Sheet1!S71_OY2AdjustedBudget,Sheet1!S71_SA34cCode,$AC:$AC,Sheet1!S71_RepMaintCode,$AD:$AD)","v":0},null,null,null,null,null,null,null,null,null,null,null,null,null,null,null,"0510","RM"]
["Waste Drop-off Points",null,{"$f":"SUMIFS(Sheet1!S71_OriginalBudget,Sheet1!S71_SA34cCode,$AC:$AC,Sheet1!S71_RepMaintCode,$AD:$AD)","v":0},{"$f":"SUMIFS(Sheet1!S71_SpecialAdjustedBudget,Sheet1!S71_SA34cCode,$AC:$AC,Sheet1!S71_RepMaintCode,$AD:$AD)","v":0},null,null,null,null,{"$f":"SUMIFS(Sheet1!S71_AdjustmentAmount,Sheet1!S71_SA34cCode,$AC:$AC,Sheet1!S71_RepMaintCode,$AD:$AD)","v":0},0,0,{"$f":"SUMIFS(Sheet1!S71_OY1AdjustedBudget,Sheet1!S71_SA34cCode,$AC:$AC,Sheet1!S71_RepMaintCode,$AD:$AD)","v":0},{"$f":"SUMIFS(Sheet1!S71_OY2AdjustedBudget,Sheet1!S71_SA34cCode,$AC:$AC,Sheet1!S71_RepMaintCode,$AD:$AD)","v":0},null,null,null,null,null,null,null,null,null,null,null,null,null,null,null,"0520","RM"]
["Waste Separation Facilities",null,{"$f":"SUMIFS(Sheet1!S71_OriginalBudget,Sheet1!S71_SA34cCode,$AC:$AC,Sheet1!S71_RepMaintCode,$AD:$AD)","v":0},{"$f":"SUMIFS(Sheet1!S71_SpecialAdjustedBudget,Sheet1!S71_SA34cCode,$AC:$AC,Sheet1!S71_RepMaintCode,$AD:$AD)","v":0},null,null,null,null,{"$f":"SUMIFS(Sheet1!S71_AdjustmentAmount,Sheet1!S71_SA34cCode,$AC:$AC,Sheet1!S71_RepMaintCode,$AD:$AD)","v":0},0,0,{"$f":"SUMIFS(Sheet1!S71_OY1AdjustedBudget,Sheet1!S71_SA34cCode,$AC:$AC,Sheet1!S71_RepMaintCode,$AD:$AD)","v":0},{"$f":"SUMIFS(Sheet1!S71_OY2AdjustedBudget,Sheet1!S71_SA34cCode,$AC:$AC,Sheet1!S71_RepMaintCode,$AD:$AD)","v":0},null,null,null,null,null,null,null,null,null,null,null,null,null,null,null,"0530","RM"]
["Electricity Generation Facilities",null,{"$f":"SUMIFS(Sheet1!S71_OriginalBudget,Sheet1!S71_SA34cCode,$AC:$AC,Sheet1!S71_RepMaintCode,$AD:$AD)","v":0},{"$f":"SUMIFS(Sheet1!S71_SpecialAdjustedBudget,Sheet1!S71_SA34cCode,$AC:$AC,Sheet1!S71_RepMaintCode,$AD:$AD)","v":0},null,null,null,null,{"$f":"SUMIFS(Sheet1!S71_AdjustmentAmount,Sheet1!S71_SA34cCode,$AC:$AC,Sheet1!S71_RepMaintCode,$AD:$AD)","v":0},0,0,{"$f":"SUMIFS(Sheet1!S71_OY1AdjustedBudget,Sheet1!S71_SA34cCode,$AC:$AC,Sheet1!S71_RepMaintCode,$AD:$AD)","v":0},{"$f":"SUMIFS(Sheet1!S71_OY2AdjustedBudget,Sheet1!S71_SA34cCode,$AC:$AC,Sheet1!S71_RepMaintCode,$AD:$AD)","v":0},null,null,null,null,null,null,null,null,null,null,null,null,null,null,null,"0540","RM"]
["Capital Spares",null,{"$f":"SUMIFS(Sheet1!S71_OriginalBudget,Sheet1!S71_SA34cCode,$AC:$AC,Sheet1!S71_RepMaintCode,$AD:$AD)","v":0},{"$f":"SUMIFS(Sheet1!S71_SpecialAdjustedBudget,Sheet1!S71_SA34cCode,$AC:$AC,Sheet1!S71_RepMaintCode,$AD:$AD)","v":0},null,null,null,null,{"$f":"SUMIFS(Sheet1!S71_AdjustmentAmount,Sheet1!S71_SA34cCode,$AC:$AC,Sheet1!S71_RepMaintCode,$AD:$AD)","v":0},0,0,{"$f":"SUMIFS(Sheet1!S71_OY1AdjustedBudget,Sheet1!S71_SA34cCode,$AC:$AC,Sheet1!S71_RepMaintCode,$AD:$AD)","v":0},{"$f":"SUMIFS(Sheet1!S71_OY2AdjustedBudget,Sheet1!S71_SA34cCode,$AC:$AC,Sheet1!S71_RepMaintCode,$AD:$AD)","v":0},null,null,null,null,null,null,null,null,null,null,null,null,null,null,null,"0550","RM"]
["Rail Infrastructure",null,{"$f":"SUM(C55:C63)","v":0},{"$f":"SUM(D55:D63)","v":0},0,0,0,0,0,0,0,0,0,null,null,null,null,null,null,null,null,null,null,null,null,null,null,null,null,"RM"]
["Rail Lines",null,{"$f":"SUMIFS(Sheet1!S71_OriginalBudget,Sheet1!S71_SA34cCode,$AC:$AC,Sheet1!S71_RepMaintCode,$AD:$AD)","v":0},{"$f":"SUMIFS(Sheet1!S71_SpecialAdjustedBudget,Sheet1!S71_SA34cCode,$AC:$AC,Sheet1!S71_RepMaintCode,$AD:$AD)","v":0},null,null,null,null,{"$f":"SUMIFS(Sheet1!S71_AdjustmentAmount,Sheet1!S71_SA34cCode,$AC:$AC,Sheet1!S71_RepMaintCode,$AD:$AD)","v":0},0,0,{"$f":"SUMIFS(Sheet1!S71_OY1AdjustedBudget,Sheet1!S71_SA34cCode,$AC:$AC,Sheet1!S71_RepMaintCode,$AD:$AD)","v":0},{"$f":"SUMIFS(Sheet1!S71_OY2AdjustedBudget,Sheet1!S71_SA34cCode,$AC:$AC,Sheet1!S71_RepMaintCode,$AD:$AD)","v":0},null,null,null,null,null,null,null,null,null,null,null,null,null,null,null,"0570","RM"]
["Rail Structures",null,{"$f":"SUMIFS(Sheet1!S71_OriginalBudget,Sheet1!S71_SA34cCode,$AC:$AC,Sheet1!S71_RepMaintCode,$AD:$AD)","v":0},{"$f":"SUMIFS(Sheet1!S71_SpecialAdjustedBudget,Sheet1!S71_SA34cCode,$AC:$AC,Sheet1!S71_RepMaintCode,$AD:$AD)","v":0},null,null,null,null,{"$f":"SUMIFS(Sheet1!S71_AdjustmentAmount,Sheet1!S71_SA34cCode,$AC:$AC,Sheet1!S71_RepMaintCode,$AD:$AD)","v":0},0,0,{"$f":"SUMIFS(Sheet1!S71_OY1AdjustedBudget,Sheet1!S71_SA34cCode,$AC:$AC,Sheet1!S71_RepMaintCode,$AD:$AD)","v":0},{"$f":"SUMIFS(Sheet1!S71_OY2AdjustedBudget,Sheet1!S71_SA34cCode,$AC:$AC,Sheet1!S71_RepMaintCode,$AD:$AD)","v":0},null,null,null,null,null,null,null,null,null,null,null,null,null,null,null,"0580","RM"]
["Rail Furniture",null,{"$f":"SUMIFS(Sheet1!S71_OriginalBudget,Sheet1!S71_SA34cCode,$AC:$AC,Sheet1!S71_RepMaintCode,$AD:$AD)","v":0},{"$f":"SUMIFS(Sheet1!S71_SpecialAdjustedBudget,Sheet1!S71_SA34cCode,$AC:$AC,Sheet1!S71_RepMaintCode,$AD:$AD)","v":0},null,null,null,null,{"$f":"SUMIFS(Sheet1!S71_AdjustmentAmount,Sheet1!S71_SA34cCode,$AC:$AC,Sheet1!S71_RepMaintCode,$AD:$AD)","v":0},0,0,{"$f":"SUMIFS(Sheet1!S71_OY1AdjustedBudget,Sheet1!S71_SA34cCode,$AC:$AC,Sheet1!S71_RepMaintCode,$AD:$AD)","v":0},{"$f":"SUMIFS(Sheet1!S71_OY2AdjustedBudget,Sheet1!S71_SA34cCode,$AC:$AC,Sheet1!S71_RepMaintCode,$AD:$AD)","v":0},null,null,null,null,null,null,null,null,null,null,null,null,null,null,null,"0590","RM"]
["Drainage Collection",null,{"$f":"SUMIFS(Sheet1!S71_OriginalBudget,Sheet1!S71_SA34cCode,$AC:$AC,Sheet1!S71_RepMaintCode,$AD:$AD)","v":0},{"$f":"SUMIFS(Sheet1!S71_SpecialAdjustedBudget,Sheet1!S71_SA34cCode,$AC:$AC,Sheet1!S71_RepMaintCode,$AD:$AD)","v":0},null,null,null,null,{"$f":"SUMIFS(Sheet1!S71_AdjustmentAmount,Sheet1!S71_SA34cCode,$AC:$AC,Sheet1!S71_RepMaintCode,$AD:$AD)","v":0},0,0,{"$f":"SUMIFS(Sheet1!S71_OY1AdjustedBudget,Sheet1!S71_SA34cCode,$AC:$AC,Sheet1!S71_RepMaintCode,$AD:$AD)","v":0},{"$f":"SUMIFS(Sheet1!S71_OY2AdjustedBudget,Sheet1!S71_SA34cCode,$AC:$AC,Sheet1!S71_RepMaintCode,$AD:$AD)","v":0},null,null,null,null,null,null,null,null,null,null,null,null,null,null,null,"0600","RM"]
["Storm water Conveyance",null,{"$f":"SUMIFS(Sheet1!S71_OriginalBudget,Sheet1!S71_SA34cCode,$AC:$AC,Sheet1!S71_RepMaintCode,$AD:$AD)","v":0},{"$f":"SUMIFS(Sheet1!S71_SpecialAdjustedBudget,Sheet1!S71_SA34cCode,$AC:$AC,Sheet1!S71_RepMaintCode,$AD:$AD)","v":0},null,null,null,null,{"$f":"SUMIFS(Sheet1!S71_AdjustmentAmount,Sheet1!S71_SA34cCode,$AC:$AC,Sheet1!S71_RepMaintCode,$AD:$AD)","v":0},0,0,{"$f":"SUMIFS(Sheet1!S71_OY1AdjustedBudget,Sheet1!S71_SA34cCode,$AC:$AC,Sheet1!S71_RepMaintCode,$AD:$AD)","v":0},{"$f":"SUMIFS(Sheet1!S71_OY2AdjustedBudget,Sheet1!S71_SA34cCode,$AC:$AC,Sheet1!S71_RepMaintCode,$AD:$AD)","v":0},null,null,null,null,null,null,null,null,null,null,null,null,null,null,null,"0610","RM"]
["Attenuation",null,{"$f":"SUMIFS(Sheet1!S71_OriginalBudget,Sheet1!S71_SA34cCode,$AC:$AC,Sheet1!S71_RepMaintCode,$AD:$AD)","v":0},{"$f":"SUMIFS(Sheet1!S71_SpecialAdjustedBudget,Sheet1!S71_SA34cCode,$AC:$AC,Sheet1!S71_RepMaintCode,$AD:$AD)","v":0},null,null,null,null,{"$f":"SUMIFS(Sheet1!S71_AdjustmentAmount,Sheet1!S71_SA34cCode,$AC:$AC,Sheet1!S71_RepMaintCode,$AD:$AD)","v":0},0,0,{"$f":"SUMIFS(Sheet1!S71_OY1AdjustedBudget,Sheet1!S71_SA34cCode,$AC:$AC,Sheet1!S71_RepMaintCode,$AD:$AD)","v":0},{"$f":"SUMIFS(Sheet1!S71_OY2AdjustedBudget,Sheet1!S71_SA34cCode,$AC:$AC,Sheet1!S71_RepMaintCode,$AD:$AD)","v":0},null,null,null,null,null,null,null,null,null,null,null,null,null,null,null,"0620","RM"]
["MV Substations",null,{"$f":"SUMIFS(Sheet1!S71_OriginalBudget,Sheet1!S71_SA34cCode,$AC:$AC,Sheet1!S71_RepMaintCode,$AD:$AD)","v":0},{"$f":"SUMIFS(Sheet1!S71_SpecialAdjustedBudget,Sheet1!S71_SA34cCode,$AC:$AC,Sheet1!S71_RepMaintCode,$AD:$AD)","v":0},null,null,null,null,{"$f":"SUMIFS(Sheet1!S71_AdjustmentAmount,Sheet1!S71_SA34cCode,$AC:$AC,Sheet1!S71_RepMaintCode,$AD:$AD)","v":0},0,0,{"$f":"SUMIFS(Sheet1!S71_OY1AdjustedBudget,Sheet1!S71_SA34cCode,$AC:$AC,Sheet1!S71_RepMaintCode,$AD:$AD)","v":0},{"$f":"SUMIFS(Sheet1!S71_OY2AdjustedBudget,Sheet1!S71_SA34cCode,$AC:$AC,Sheet1!S71_RepMaintCode,$AD:$AD)","v":0},null,null,null,null,null,null,null,null,null,null,null,null,null,null,null,"0630","RM"]
["LV Networks",null,{"$f":"SUMIFS(Sheet1!S71_OriginalBudget,Sheet1!S71_SA34cCode,$AC:$AC,Sheet1!S71_RepMaintCode,$AD:$AD)","v":0},{"$f":"SUMIFS(Sheet1!S71_SpecialAdjustedBudget,Sheet1!S71_SA34cCode,$AC:$AC,Sheet1!S71_RepMaintCode,$AD:$AD)","v":0},null,null,null,null,{"$f":"SUMIFS(Sheet1!S71_AdjustmentAmount,Sheet1!S71_SA34cCode,$AC:$AC,Sheet1!S71_RepMaintCode,$AD:$AD)","v":0},0,0,{"$f":"SUMIFS(Sheet1!S71_OY1AdjustedBudget,Sheet1!S71_SA34cCode,$AC:$AC,Sheet1!S71_RepMaintCode,$AD:$AD)","v":0},{"$f":"SUMIFS(Sheet1!S71_OY2AdjustedBudget,Sheet1!S71_SA34cCode,$AC:$AC,Sheet1!S71_RepMaintCode,$AD:$AD)","v":0},null,null,null,null,null,null,null,null,null,null,null,null,null,null,null,"0640","RM"]
["Capital Spares",null,{"$f":"SUMIFS(Sheet1!S71_OriginalBudget,Sheet1!S71_SA34cCode,$AC:$AC,Sheet1!S71_RepMaintCode,$AD:$AD)","v":0},{"$f":"SUMIFS(Sheet1!S71_SpecialAdjustedBudget,Sheet1!S71_SA34cCode,$AC:$AC,Sheet1!S71_RepMaintCode,$AD:$AD)","v":0},null,null,null,null,{"$f":"SUMIFS(Sheet1!S71_AdjustmentAmount,Sheet1!S71_SA34cCode,$AC:$AC,Sheet1!S71_RepMaintCode,$AD:$AD)","v":0},0,0,{"$f":"SUMIFS(Sheet1!S71_OY1AdjustedBudget,Sheet1!S71_SA34cCode,$AC:$AC,Sheet1!S71_RepMaintCode,$AD:$AD)","v":0},{"$f":"SUMIFS(Sheet1!S71_OY2AdjustedBudget,Sheet1!S71_SA34cCode,$AC:$AC,Sheet1!S71_RepMaintCode,$AD:$AD)","v":0},null,null,null,null,null,null,null,null,null,null,null,null,null,null,null,"0650","RM"]
["Coastal Infrastructure",null,{"$f":"SUM(C65:C69)","v":0},0,0,0,0,0,0,0,0,0,0,null,null,null,null,null,null,null,null,null,null,null,null,null,null,null,null,"RM"]
["Sand Pumps",null,{"$f":"SUMIFS(Sheet1!S71_OriginalBudget,Sheet1!S71_SA34cCode,$AC:$AC,Sheet1!S71_RepMaintCode,$AD:$AD)","v":0},{"$f":"SUMIFS(Sheet1!S71_SpecialAdjustedBudget,Sheet1!S71_SA34cCode,$AC:$AC,Sheet1!S71_RepMaintCode,$AD:$AD)","v":0},null,null,null,null,{"$f":"SUMIFS(Sheet1!S71_AdjustmentAmount,Sheet1!S71_SA34cCode,$AC:$AC,Sheet1!S71_RepMaintCode,$AD:$AD)","v":0},0,0,{"$f":"SUMIFS(Sheet1!S71_OY1AdjustedBudget,Sheet1!S71_SA34cCode,$AC:$AC,Sheet1!S71_RepMaintCode,$AD:$AD)","v":0},{"$f":"SUMIFS(Sheet1!S71_OY2AdjustedBudget,Sheet1!S71_SA34cCode,$AC:$AC,Sheet1!S71_RepMaintCode,$AD:$AD)","v":0},null,null,null,null,null,null,null,null,null,null,null,null,null,null,null,"0670","RM"]
["Piers",null,{"$f":"SUMIFS(Sheet1!S71_OriginalBudget,Sheet1!S71_SA34cCode,$AC:$AC,Sheet1!S71_RepMaintCode,$AD:$AD)","v":0},{"$f":"SUMIFS(Sheet1!S71_SpecialAdjustedBudget,Sheet1!S71_SA34cCode,$AC:$AC,Sheet1!S71_RepMaintCode,$AD:$AD)","v":0},null,null,null,null,{"$f":"SUMIFS(Sheet1!S71_AdjustmentAmount,Sheet1!S71_SA34cCode,$AC:$AC,Sheet1!S71_RepMaintCode,$AD:$AD)","v":0},0,0,{"$f":"SUMIFS(Sheet1!S71_OY1AdjustedBudget,Sheet1!S71_SA34cCode,$AC:$AC,Sheet1!S71_RepMaintCode,$AD:$AD)","v":0},{"$f":"SUMIFS(Sheet1!S71_OY2AdjustedBudget,Sheet1!S71_SA34cCode,$AC:$AC,Sheet1!S71_RepMaintCode,$AD:$AD)","v":0},null,null,null,null,null,null,null,null,null,null,null,null,null,null,null,"0680","RM"]
["Revetments",null,{"$f":"SUMIFS(Sheet1!S71_OriginalBudget,Sheet1!S71_SA34cCode,$AC:$AC,Sheet1!S71_RepMaintCode,$AD:$AD)","v":0},{"$f":"SUMIFS(Sheet1!S71_SpecialAdjustedBudget,Sheet1!S71_SA34cCode,$AC:$AC,Sheet1!S71_RepMaintCode,$AD:$AD)","v":0},null,null,null,null,{"$f":"SUMIFS(Sheet1!S71_AdjustmentAmount,Sheet1!S71_SA34cCode,$AC:$AC,Sheet1!S71_RepMaintCode,$AD:$AD)","v":0},0,0,{"$f":"SUMIFS(Sheet1!S71_OY1AdjustedBudget,Sheet1!S71_SA34cCode,$AC:$AC,Sheet1!S71_RepMaintCode,$AD:$AD)","v":0},{"$f":"SUMIFS(Sheet1!S71_OY2AdjustedBudget,Sheet1!S71_SA34cCode,$AC:$AC,Sheet1!S71_RepMaintCode,$AD:$AD)","v":0},null,null,null,null,null,null,null,null,null,null,null,null,null,null,null,"0690","RM"]
["Promenades",null,{"$f":"SUMIFS(Sheet1!S71_OriginalBudget,Sheet1!S71_SA34cCode,$AC:$AC,Sheet1!S71_RepMaintCode,$AD:$AD)","v":0},{"$f":"SUMIFS(Sheet1!S71_SpecialAdjustedBudget,Sheet1!S71_SA34cCode,$AC:$AC,Sheet1!S71_RepMaintCode,$AD:$AD)","v":0},null,null,null,null,{"$f":"SUMIFS(Sheet1!S71_AdjustmentAmount,Sheet1!S71_SA34cCode,$AC:$AC,Sheet1!S71_RepMaintCode,$AD:$AD)","v":0},0,0,{"$f":"SUMIFS(Sheet1!S71_OY1AdjustedBudget,Sheet1!S71_SA34cCode,$AC:$AC,Sheet1!S71_RepMaintCode,$AD:$AD)","v":0},{"$f":"SUMIFS(Sheet1!S71_OY2AdjustedBudget,Sheet1!S71_SA34cCode,$AC:$AC,Sheet1!S71_RepMaintCode,$AD:$AD)","v":0},null,null,null,null,null,null,null,null,null,null,null,null,null,null,null,"0700","RM"]
["Capital Spares",null,{"$f":"SUMIFS(Sheet1!S71_OriginalBudget,Sheet1!S71_SA34cCode,$AC:$AC,Sheet1!S71_RepMaintCode,$AD:$AD)","v":0},{"$f":"SUMIFS(Sheet1!S71_SpecialAdjustedBudget,Sheet1!S71_SA34cCode,$AC:$AC,Sheet1!S71_RepMaintCode,$AD:$AD)","v":0},null,null,null,null,{"$f":"SUMIFS(Sheet1!S71_AdjustmentAmount,Sheet1!S71_SA34cCode,$AC:$AC,Sheet1!S71_RepMaintCode,$AD:$AD)","v":0},0,0,{"$f":"SUMIFS(Sheet1!S71_OY1AdjustedBudget,Sheet1!S71_SA34cCode,$AC:$AC,Sheet1!S71_RepMaintCode,$AD:$AD)","v":0},{"$f":"SUMIFS(Sheet1!S71_OY2AdjustedBudget,Sheet1!S71_SA34cCode,$AC:$AC,Sheet1!S71_RepMaintCode,$AD:$AD)","v":0},null,null,null,null,null,null,null,null,null,null,null,null,null,null,null,"0710","RM"]
["Information and Communication Infrastructure",null,{"$f":"SUM(C71:C74)","v":0},0,0,0,0,0,0,0,0,0,0,null,null,null,null,null,null,null,null,null,null,null,null,null,null,null,null,"RM"]
["Data Centres",null,{"$f":"SUMIFS(Sheet1!S71_OriginalBudget,Sheet1!S71_SA34cCode,$AC:$AC,Sheet1!S71_RepMaintCode,$AD:$AD)","v":0},{"$f":"SUMIFS(Sheet1!S71_SpecialAdjustedBudget,Sheet1!S71_SA34cCode,$AC:$AC,Sheet1!S71_RepMaintCode,$AD:$AD)","v":0},null,null,null,null,{"$f":"SUMIFS(Sheet1!S71_AdjustmentAmount,Sheet1!S71_SA34cCode,$AC:$AC,Sheet1!S71_RepMaintCode,$AD:$AD)","v":0},0,0,{"$f":"SUMIFS(Sheet1!S71_OY1AdjustedBudget,Sheet1!S71_SA34cCode,$AC:$AC,Sheet1!S71_RepMaintCode,$AD:$AD)","v":0},{"$f":"SUMIFS(Sheet1!S71_OY2AdjustedBudget,Sheet1!S71_SA34cCode,$AC:$AC,Sheet1!S71_RepMaintCode,$AD:$AD)","v":0},null,null,null,null,null,null,null,null,null,null,null,null,null,null,null,"0730","RM"]
["Core Layers",null,{"$f":"SUMIFS(Sheet1!S71_OriginalBudget,Sheet1!S71_SA34cCode,$AC:$AC,Sheet1!S71_RepMaintCode,$AD:$AD)","v":0},{"$f":"SUMIFS(Sheet1!S71_SpecialAdjustedBudget,Sheet1!S71_SA34cCode,$AC:$AC,Sheet1!S71_RepMaintCode,$AD:$AD)","v":0},null,null,null,null,{"$f":"SUMIFS(Sheet1!S71_AdjustmentAmount,Sheet1!S71_SA34cCode,$AC:$AC,Sheet1!S71_RepMaintCode,$AD:$AD)","v":0},0,0,{"$f":"SUMIFS(Sheet1!S71_OY1AdjustedBudget,Sheet1!S71_SA34cCode,$AC:$AC,Sheet1!S71_RepMaintCode,$AD:$AD)","v":0},{"$f":"SUMIFS(Sheet1!S71_OY2AdjustedBudget,Sheet1!S71_SA34cCode,$AC:$AC,Sheet1!S71_RepMaintCode,$AD:$AD)","v":0},null,null,null,null,null,null,null,null,null,null,null,null,null,null,null,"0740","RM"]
["Distribution Layers",null,{"$f":"SUMIFS(Sheet1!S71_OriginalBudget,Sheet1!S71_SA34cCode,$AC:$AC,Sheet1!S71_RepMaintCode,$AD:$AD)","v":0},{"$f":"SUMIFS(Sheet1!S71_SpecialAdjustedBudget,Sheet1!S71_SA34cCode,$AC:$AC,Sheet1!S71_RepMaintCode,$AD:$AD)","v":0},null,null,null,null,{"$f":"SUMIFS(Sheet1!S71_AdjustmentAmount,Sheet1!S71_SA34cCode,$AC:$AC,Sheet1!S71_RepMaintCode,$AD:$AD)","v":0},{"$f":"SUM(E73:I73)","v":0},{"$f":"IF(D73=0,C73+J73,D73+J73)","v":0},{"$f":"SUMIFS(Sheet1!S71_OY1AdjustedBudget,Sheet1!S71_SA34cCode,$AC:$AC,Sheet1!S71_RepMaintCode,$AD:$AD)","v":0},{"$f":"SUMIFS(Sheet1!S71_OY2AdjustedBudget,Sheet1!S71_SA34cCode,$AC:$AC,Sheet1!S71_RepMaintCode,$AD:$AD)","v":0},null,null,null,null,null,null,null,null,null,null,null,null,null,null,null,"0750","RM"]
["Capital Spares",null,{"$f":"SUMIFS(Sheet1!S71_OriginalBudget,Sheet1!S71_SA34cCode,$AC:$AC,Sheet1!S71_RepMaintCode,$AD:$AD)","v":0},{"$f":"SUMIFS(Sheet1!S71_SpecialAdjustedBudget,Sheet1!S71_SA34cCode,$AC:$AC,Sheet1!S71_RepMaintCode,$AD:$AD)","v":0},null,null,null,null,{"$f":"SUMIFS(Sheet1!S71_AdjustmentAmount,Sheet1!S71_SA34cCode,$AC:$AC,Sheet1!S71_RepMaintCode,$AD:$AD)","v":0},0,0,{"$f":"SUMIFS(Sheet1!S71_OY1AdjustedBudget,Sheet1!S71_SA34cCode,$AC:$AC,Sheet1!S71_RepMaintCode,$AD:$AD)","v":0},{"$f":"SUMIFS(Sheet1!S71_OY2AdjustedBudget,Sheet1!S71_SA34cCode,$AC:$AC,Sheet1!S71_RepMaintCode,$AD:$AD)","v":0},null,null,null,null,null,null,null,null,null,null,null,null,null,null,null,"0760","RM"]
[null,null,null,null,null,null,null,null,null,null,null,null,null,null,null,null,null,null,null,null,null,null,null,null,null,null,null,null,null,"RM"]
["Community Assets",null,{"$f":"+C77+C100","v":0},{"$f":"+D77+D100","v":0},{"$f":"+E77+E100","v":0},0,0,0,0,0,0,0,0,null,null,null,null,null,null,null,null,null,null,null,null,null,null,null,null,"RM"]
["Community Facilities",null,{"$f":"SUM(C78:C99)","v":0},{"$f":"SUM(D78:D99)","v":0},{"$f":"SUM(E78:E99)","v":0},0,0,0,0,0,0,0,0,null,null,null,null,null,null,null,null,null,null,null,null,null,null,null,null,"RM"]
["Halls",null,{"$f":"SUMIFS(Sheet1!S71_OriginalBudget,Sheet1!S71_SA34cCode,$AC:$AC,Sheet1!S71_RepMaintCode,$AD:$AD)","v":0},{"$f":"SUMIFS(Sheet1!S71_SpecialAdjustedBudget,Sheet1!S71_SA34cCode,$AC:$AC,Sheet1!S71_RepMaintCode,$AD:$AD)","v":0},null,null,null,null,{"$f":"SUMIFS(Sheet1!S71_AdjustmentAmount,Sheet1!S71_SA34cCode,$AC:$AC,Sheet1!S71_RepMaintCode,$AD:$AD)","v":0},0,0,{"$f":"SUMIFS(Sheet1!S71_OY1AdjustedBudget,Sheet1!S71_SA34cCode,$AC:$AC,Sheet1!S71_RepMaintCode,$AD:$AD)","v":0},{"$f":"SUMIFS(Sheet1!S71_OY2AdjustedBudget,Sheet1!S71_SA34cCode,$AC:$AC,Sheet1!S71_RepMaintCode,$AD:$AD)","v":0},null,null,null,null,null,null,null,null,null,null,null,null,null,null,null,"0790","RM"]
["Centres",null,{"$f":"SUMIFS(Sheet1!S71_OriginalBudget,Sheet1!S71_SA34cCode,$AC:$AC,Sheet1!S71_RepMaintCode,$AD:$AD)","v":0},{"$f":"SUMIFS(Sheet1!S71_SpecialAdjustedBudget,Sheet1!S71_SA34cCode,$AC:$AC,Sheet1!S71_RepMaintCode,$AD:$AD)","v":0},null,null,null,null,{"$f":"SUMIFS(Sheet1!S71_AdjustmentAmount,Sheet1!S71_SA34cCode,$AC:$AC,Sheet1!S71_RepMaintCode,$AD:$AD)","v":0},0,0,{"$f":"SUMIFS(Sheet1!S71_OY1AdjustedBudget,Sheet1!S71_SA34cCode,$AC:$AC,Sheet1!S71_RepMaintCode,$AD:$AD)","v":0},{"$f":"SUMIFS(Sheet1!S71_OY2AdjustedBudget,Sheet1!S71_SA34cCode,$AC:$AC,Sheet1!S71_RepMaintCode,$AD:$AD)","v":0},null,null,null,null,null,null,null,null,null,null,null,null,null,null,null,"0800","RM"]
["Crèches",null,{"$f":"SUMIFS(Sheet1!S71_OriginalBudget,Sheet1!S71_SA34cCode,$AC:$AC,Sheet1!S71_RepMaintCode,$AD:$AD)","v":0},{"$f":"SUMIFS(Sheet1!S71_SpecialAdjustedBudget,Sheet1!S71_SA34cCode,$AC:$AC,Sheet1!S71_RepMaintCode,$AD:$AD)","v":0},null,null,null,null,{"$f":"SUMIFS(Sheet1!S71_AdjustmentAmount,Sheet1!S71_SA34cCode,$AC:$AC,Sheet1!S71_RepMaintCode,$AD:$AD)","v":0},0,0,{"$f":"SUMIFS(Sheet1!S71_OY1AdjustedBudget,Sheet1!S71_SA34cCode,$AC:$AC,Sheet1!S71_RepMaintCode,$AD:$AD)","v":0},{"$f":"SUMIFS(Sheet1!S71_OY2AdjustedBudget,Sheet1!S71_SA34cCode,$AC:$AC,Sheet1!S71_RepMaintCode,$AD:$AD)","v":0},null,null,null,null,null,null,null,null,null,null,null,null,null,null,null,"0810","RM"]
["Clinics/Care Centres",null,{"$f":"SUMIFS(Sheet1!S71_OriginalBudget,Sheet1!S71_SA34cCode,$AC:$AC,Sheet1!S71_RepMaintCode,$AD:$AD)","v":0},{"$f":"SUMIFS(Sheet1!S71_SpecialAdjustedBudget,Sheet1!S71_SA34cCode,$AC:$AC,Sheet1!S71_RepMaintCode,$AD:$AD)","v":0},null,null,null,null,{"$f":"SUMIFS(Sheet1!S71_AdjustmentAmount,Sheet1!S71_SA34cCode,$AC:$AC,Sheet1!S71_RepMaintCode,$AD:$AD)","v":0},0,0,{"$f":"SUMIFS(Sheet1!S71_OY1AdjustedBudget,Sheet1!S71_SA34cCode,$AC:$AC,Sheet1!S71_RepMaintCode,$AD:$AD)","v":0},{"$f":"SUMIFS(Sheet1!S71_OY2AdjustedBudget,Sheet1!S71_SA34cCode,$AC:$AC,Sheet1!S71_RepMaintCode,$AD:$AD)","v":0},null,null,null,null,null,null,null,null,null,null,null,null,null,null,null,"0820","RM"]
["Fire/Ambulance Stations",null,{"$f":"SUMIFS(Sheet1!S71_OriginalBudget,Sheet1!S71_SA34cCode,$AC:$AC,Sheet1!S71_RepMaintCode,$AD:$AD)","v":0},{"$f":"SUMIFS(Sheet1!S71_SpecialAdjustedBudget,Sheet1!S71_SA34cCode,$AC:$AC,Sheet1!S71_RepMaintCode,$AD:$AD)","v":0},null,null,null,null,{"$f":"SUMIFS(Sheet1!S71_AdjustmentAmount,Sheet1!S71_SA34cCode,$AC:$AC,Sheet1!S71_RepMaintCode,$AD:$AD)","v":0},0,0,{"$f":"SUMIFS(Sheet1!S71_OY1AdjustedBudget,Sheet1!S71_SA34cCode,$AC:$AC,Sheet1!S71_RepMaintCode,$AD:$AD)","v":0},{"$f":"SUMIFS(Sheet1!S71_OY2AdjustedBudget,Sheet1!S71_SA34cCode,$AC:$AC,Sheet1!S71_RepMaintCode,$AD:$AD)","v":0},null,null,null,null,null,null,null,null,null,null,null,null,null,null,null,"0830","RM"]
["Testing Stations",null,{"$f":"SUMIFS(Sheet1!S71_OriginalBudget,Sheet1!S71_SA34cCode,$AC:$AC,Sheet1!S71_RepMaintCode,$AD:$AD)","v":0},{"$f":"SUMIFS(Sheet1!S71_SpecialAdjustedBudget,Sheet1!S71_SA34cCode,$AC:$AC,Sheet1!S71_RepMaintCode,$AD:$AD)","v":0},null,null,null,null,{"$f":"SUMIFS(Sheet1!S71_AdjustmentAmount,Sheet1!S71_SA34cCode,$AC:$AC,Sheet1!S71_RepMaintCode,$AD:$AD)","v":0},0,0,{"$f":"SUMIFS(Sheet1!S71_OY1AdjustedBudget,Sheet1!S71_SA34cCode,$AC:$AC,Sheet1!S71_RepMaintCode,$AD:$AD)","v":0},{"$f":"SUMIFS(Sheet1!S71_OY2AdjustedBudget,Sheet1!S71_SA34cCode,$AC:$AC,Sheet1!S71_RepMaintCode,$AD:$AD)","v":0},null,null,null,null,null,null,null,null,null,null,null,null,null,null,null,"0840","RM"]
["Museums",null,{"$f":"SUMIFS(Sheet1!S71_OriginalBudget,Sheet1!S71_SA34cCode,$AC:$AC,Sheet1!S71_RepMaintCode,$AD:$AD)","v":0},{"$f":"SUMIFS(Sheet1!S71_SpecialAdjustedBudget,Sheet1!S71_SA34cCode,$AC:$AC,Sheet1!S71_RepMaintCode,$AD:$AD)","v":0},null,null,null,null,{"$f":"SUMIFS(Sheet1!S71_AdjustmentAmount,Sheet1!S71_SA34cCode,$AC:$AC,Sheet1!S71_RepMaintCode,$AD:$AD)","v":0},0,0,{"$f":"SUMIFS(Sheet1!S71_OY1AdjustedBudget,Sheet1!S71_SA34cCode,$AC:$AC,Sheet1!S71_RepMaintCode,$AD:$AD)","v":0},{"$f":"SUMIFS(Sheet1!S71_OY2AdjustedBudget,Sheet1!S71_SA34cCode,$AC:$AC,Sheet1!S71_RepMaintCode,$AD:$AD)","v":0},null,null,null,null,null,null,null,null,null,null,null,null,null,null,null,"0850","RM"]
["Galleries",null,{"$f":"SUMIFS(Sheet1!S71_OriginalBudget,Sheet1!S71_SA34cCode,$AC:$AC,Sheet1!S71_RepMaintCode,$AD:$AD)","v":0},{"$f":"SUMIFS(Sheet1!S71_SpecialAdjustedBudget,Sheet1!S71_SA34cCode,$AC:$AC,Sheet1!S71_RepMaintCode,$AD:$AD)","v":0},null,null,null,null,{"$f":"SUMIFS(Sheet1!S71_AdjustmentAmount,Sheet1!S71_SA34cCode,$AC:$AC,Sheet1!S71_RepMaintCode,$AD:$AD)","v":0},0,0,{"$f":"SUMIFS(Sheet1!S71_OY1AdjustedBudget,Sheet1!S71_SA34cCode,$AC:$AC,Sheet1!S71_RepMaintCode,$AD:$AD)","v":0},{"$f":"SUMIFS(Sheet1!S71_OY2AdjustedBudget,Sheet1!S71_SA34cCode,$AC:$AC,Sheet1!S71_RepMaintCode,$AD:$AD)","v":0},null,null,null,null,null,null,null,null,null,null,null,null,null,null,null,"0860","RM"]
["Theatres",null,{"$f":"SUMIFS(Sheet1!S71_OriginalBudget,Sheet1!S71_SA34cCode,$AC:$AC,Sheet1!S71_RepMaintCode,$AD:$AD)","v":0},{"$f":"SUMIFS(Sheet1!S71_SpecialAdjustedBudget,Sheet1!S71_SA34cCode,$AC:$AC,Sheet1!S71_RepMaintCode,$AD:$AD)","v":0},null,null,null,null,{"$f":"SUMIFS(Sheet1!S71_AdjustmentAmount,Sheet1!S71_SA34cCode,$AC:$AC,Sheet1!S71_RepMaintCode,$AD:$AD)","v":0},0,0,{"$f":"SUMIFS(Sheet1!S71_OY1AdjustedBudget,Sheet1!S71_SA34cCode,$AC:$AC,Sheet1!S71_RepMaintCode,$AD:$AD)","v":0},{"$f":"SUMIFS(Sheet1!S71_OY2AdjustedBudget,Sheet1!S71_SA34cCode,$AC:$AC,Sheet1!S71_RepMaintCode,$AD:$AD)","v":0},null,null,null,null,null,null,null,null,null,null,null,null,null,null,null,"0870","RM"]
["Libraries",null,{"$f":"SUMIFS(Sheet1!S71_OriginalBudget,Sheet1!S71_SA34cCode,$AC:$AC,Sheet1!S71_RepMaintCode,$AD:$AD)","v":0},{"$f":"SUMIFS(Sheet1!S71_SpecialAdjustedBudget,Sheet1!S71_SA34cCode,$AC:$AC,Sheet1!S71_RepMaintCode,$AD:$AD)","v":0},null,null,null,null,{"$f":"SUMIFS(Sheet1!S71_AdjustmentAmount,Sheet1!S71_SA34cCode,$AC:$AC,Sheet1!S71_RepMaintCode,$AD:$AD)","v":0},0,0,{"$f":"SUMIFS(Sheet1!S71_OY1AdjustedBudget,Sheet1!S71_SA34cCode,$AC:$AC,Sheet1!S71_RepMaintCode,$AD:$AD)","v":0},{"$f":"SUMIFS(Sheet1!S71_OY2AdjustedBudget,Sheet1!S71_SA34cCode,$AC:$AC,Sheet1!S71_RepMaintCode,$AD:$AD)","v":0},null,null,null,null,null,null,null,null,null,null,null,null,null,null,null,"0880","RM"]
["Cemeteries/Crematoria",null,{"$f":"SUMIFS(Sheet1!S71_OriginalBudget,Sheet1!S71_SA34cCode,$AC:$AC,Sheet1!S71_RepMaintCode,$AD:$AD)","v":0},{"$f":"SUMIFS(Sheet1!S71_SpecialAdjustedBudget,Sheet1!S71_SA34cCode,$AC:$AC,Sheet1!S71_RepMaintCode,$AD:$AD)","v":0},null,null,null,null,{"$f":"SUMIFS(Sheet1!S71_AdjustmentAmount,Sheet1!S71_SA34cCode,$AC:$AC,Sheet1!S71_RepMaintCode,$AD:$AD)","v":0},0,0,{"$f":"SUMIFS(Sheet1!S71_OY1AdjustedBudget,Sheet1!S71_SA34cCode,$AC:$AC,Sheet1!S71_RepMaintCode,$AD:$AD)","v":0},{"$f":"SUMIFS(Sheet1!S71_OY2AdjustedBudget,Sheet1!S71_SA34cCode,$AC:$AC,Sheet1!S71_RepMaintCode,$AD:$AD)","v":0},null,null,null,null,null,null,null,null,null,null,null,null,null,null,null,"0890","RM"]
["Police",null,{"$f":"SUMIFS(Sheet1!S71_OriginalBudget,Sheet1!S71_SA34cCode,$AC:$AC,Sheet1!S71_RepMaintCode,$AD:$AD)","v":0},{"$f":"SUMIFS(Sheet1!S71_SpecialAdjustedBudget,Sheet1!S71_SA34cCode,$AC:$AC,Sheet1!S71_RepMaintCode,$AD:$AD)","v":0},null,null,null,null,{"$f":"SUMIFS(Sheet1!S71_AdjustmentAmount,Sheet1!S71_SA34cCode,$AC:$AC,Sheet1!S71_RepMaintCode,$AD:$AD)","v":0},0,0,{"$f":"SUMIFS(Sheet1!S71_OY1AdjustedBudget,Sheet1!S71_SA34cCode,$AC:$AC,Sheet1!S71_RepMaintCode,$AD:$AD)","v":0},{"$f":"SUMIFS(Sheet1!S71_OY2AdjustedBudget,Sheet1!S71_SA34cCode,$AC:$AC,Sheet1!S71_RepMaintCode,$AD:$AD)","v":0},null,null,null,null,null,null,null,null,null,null,null,null,null,null,null,"0900","RM"]
["Purls",null,{"$f":"SUMIFS(Sheet1!S71_OriginalBudget,Sheet1!S71_SA34cCode,$AC:$AC,Sheet1!S71_RepMaintCode,$AD:$AD)","v":0},{"$f":"SUMIFS(Sheet1!S71_SpecialAdjustedBudget,Sheet1!S71_SA34cCode,$AC:$AC,Sheet1!S71_RepMaintCode,$AD:$AD)","v":0},null,null,null,null,{"$f":"SUMIFS(Sheet1!S71_AdjustmentAmount,Sheet1!S71_SA34cCode,$AC:$AC,Sheet1!S71_RepMaintCode,$AD:$AD)","v":0},0,0,{"$f":"SUMIFS(Sheet1!S71_OY1AdjustedBudget,Sheet1!S71_SA34cCode,$AC:$AC,Sheet1!S71_RepMaintCode,$AD:$AD)","v":0},{"$f":"SUMIFS(Sheet1!S71_OY2AdjustedBudget,Sheet1!S71_SA34cCode,$AC:$AC,Sheet1!S71_RepMaintCode,$AD:$AD)","v":0},null,null,null,null,null,null,null,null,null,null,null,null,null,null,null,"0910","RM"]
["Public Open Space",null,{"$f":"SUMIFS(Sheet1!S71_OriginalBudget,Sheet1!S71_SA34cCode,$AC:$AC,Sheet1!S71_RepMaintCode,$AD:$AD)","v":0},{"$f":"SUMIFS(Sheet1!S71_SpecialAdjustedBudget,Sheet1!S71_SA34cCode,$AC:$AC,Sheet1!S71_RepMaintCode,$AD:$AD)","v":0},null,null,null,null,{"$f":"SUMIFS(Sheet1!S71_AdjustmentAmount,Sheet1!S71_SA34cCode,$AC:$AC,Sheet1!S71_RepMaintCode,$AD:$AD)","v":0},0,0,{"$f":"SUMIFS(Sheet1!S71_OY1AdjustedBudget,Sheet1!S71_SA34cCode,$AC:$AC,Sheet1!S71_RepMaintCode,$AD:$AD)","v":0},{"$f":"SUMIFS(Sheet1!S71_OY2AdjustedBudget,Sheet1!S71_SA34cCode,$AC:$AC,Sheet1!S71_RepMaintCode,$AD:$AD)","v":0},null,null,null,null,null,null,null,null,null,null,null,null,null,null,null,"0920","RM"]
["Nature Reserves",null,{"$f":"SUMIFS(Sheet1!S71_OriginalBudget,Sheet1!S71_SA34cCode,$AC:$AC,Sheet1!S71_RepMaintCode,$AD:$AD)","v":0},{"$f":"SUMIFS(Sheet1!S71_SpecialAdjustedBudget,Sheet1!S71_SA34cCode,$AC:$AC,Sheet1!S71_RepMaintCode,$AD:$AD)","v":0},null,null,null,null,{"$f":"SUMIFS(Sheet1!S71_AdjustmentAmount,Sheet1!S71_SA34cCode,$AC:$AC,Sheet1!S71_RepMaintCode,$AD:$AD)","v":0},0,0,{"$f":"SUMIFS(Sheet1!S71_OY1AdjustedBudget,Sheet1!S71_SA34cCode,$AC:$AC,Sheet1!S71_RepMaintCode,$AD:$AD)","v":0},{"$f":"SUMIFS(Sheet1!S71_OY2AdjustedBudget,Sheet1!S71_SA34cCode,$AC:$AC,Sheet1!S71_RepMaintCode,$AD:$AD)","v":0},null,null,null,null,null,null,null,null,null,null,null,null,null,null,null,"0930","RM"]
["Public Ablution Facilities",null,{"$f":"SUMIFS(Sheet1!S71_OriginalBudget,Sheet1!S71_SA34cCode,$AC:$AC,Sheet1!S71_RepMaintCode,$AD:$AD)","v":0},{"$f":"SUMIFS(Sheet1!S71_SpecialAdjustedBudget,Sheet1!S71_SA34cCode,$AC:$AC,Sheet1!S71_RepMaintCode,$AD:$AD)","v":0},null,null,null,null,{"$f":"SUMIFS(Sheet1!S71_AdjustmentAmount,Sheet1!S71_SA34cCode,$AC:$AC,Sheet1!S71_RepMaintCode,$AD:$AD)","v":0},0,0,{"$f":"SUMIFS(Sheet1!S71_OY1AdjustedBudget,Sheet1!S71_SA34cCode,$AC:$AC,Sheet1!S71_RepMaintCode,$AD:$AD)","v":0},{"$f":"SUMIFS(Sheet1!S71_OY2AdjustedBudget,Sheet1!S71_SA34cCode,$AC:$AC,Sheet1!S71_RepMaintCode,$AD:$AD)","v":0},null,null,null,null,null,null,null,null,null,null,null,null,null,null,null,"0940","RM"]
["Markets",null,{"$f":"SUMIFS(Sheet1!S71_OriginalBudget,Sheet1!S71_SA34cCode,$AC:$AC,Sheet1!S71_RepMaintCode,$AD:$AD)","v":0},{"$f":"SUMIFS(Sheet1!S71_SpecialAdjustedBudget,Sheet1!S71_SA34cCode,$AC:$AC,Sheet1!S71_RepMaintCode,$AD:$AD)","v":0},null,null,null,null,{"$f":"SUMIFS(Sheet1!S71_AdjustmentAmount,Sheet1!S71_SA34cCode,$AC:$AC,Sheet1!S71_RepMaintCode,$AD:$AD)","v":0},0,0,{"$f":"SUMIFS(Sheet1!S71_OY1AdjustedBudget,Sheet1!S71_SA34cCode,$AC:$AC,Sheet1!S71_RepMaintCode,$AD:$AD)","v":0},{"$f":"SUMIFS(Sheet1!S71_OY2AdjustedBudget,Sheet1!S71_SA34cCode,$AC:$AC,Sheet1!S71_RepMaintCode,$AD:$AD)","v":0},null,null,null,null,null,null,null,null,null,null,null,null,null,null,null,"0950","RM"]
["Stalls",null,{"$f":"SUMIFS(Sheet1!S71_OriginalBudget,Sheet1!S71_SA34cCode,$AC:$AC,Sheet1!S71_RepMaintCode,$AD:$AD)","v":0},{"$f":"SUMIFS(Sheet1!S71_SpecialAdjustedBudget,Sheet1!S71_SA34cCode,$AC:$AC,Sheet1!S71_RepMaintCode,$AD:$AD)","v":0},null,null,null,null,{"$f":"SUMIFS(Sheet1!S71_AdjustmentAmount,Sheet1!S71_SA34cCode,$AC:$AC,Sheet1!S71_RepMaintCode,$AD:$AD)","v":0},0,0,{"$f":"SUMIFS(Sheet1!S71_OY1AdjustedBudget,Sheet1!S71_SA34cCode,$AC:$AC,Sheet1!S71_RepMaintCode,$AD:$AD)","v":0},{"$f":"SUMIFS(Sheet1!S71_OY2AdjustedBudget,Sheet1!S71_SA34cCode,$AC:$AC,Sheet1!S71_RepMaintCode,$AD:$AD)","v":0},null,null,null,null,null,null,null,null,null,null,null,null,null,null,null,"0960","RM"]
["Abattoirs",null,{"$f":"SUMIFS(Sheet1!S71_OriginalBudget,Sheet1!S71_SA34cCode,$AC:$AC,Sheet1!S71_RepMaintCode,$AD:$AD)","v":0},{"$f":"SUMIFS(Sheet1!S71_SpecialAdjustedBudget,Sheet1!S71_SA34cCode,$AC:$AC,Sheet1!S71_RepMaintCode,$AD:$AD)","v":0},null,null,null,null,{"$f":"SUMIFS(Sheet1!S71_AdjustmentAmount,Sheet1!S71_SA34cCode,$AC:$AC,Sheet1!S71_RepMaintCode,$AD:$AD)","v":0},0,0,{"$f":"SUMIFS(Sheet1!S71_OY1AdjustedBudget,Sheet1!S71_SA34cCode,$AC:$AC,Sheet1!S71_RepMaintCode,$AD:$AD)","v":0},{"$f":"SUMIFS(Sheet1!S71_OY2AdjustedBudget,Sheet1!S71_SA34cCode,$AC:$AC,Sheet1!S71_RepMaintCode,$AD:$AD)","v":0},null,null,null,null,null,null,null,null,null,null,null,null,null,null,null,"0970","RM"]
["Airports",null,{"$f":"SUMIFS(Sheet1!S71_OriginalBudget,Sheet1!S71_SA34cCode,$AC:$AC,Sheet1!S71_RepMaintCode,$AD:$AD)","v":0},{"$f":"SUMIFS(Sheet1!S71_SpecialAdjustedBudget,Sheet1!S71_SA34cCode,$AC:$AC,Sheet1!S71_RepMaintCode,$AD:$AD)","v":0},null,null,null,null,{"$f":"SUMIFS(Sheet1!S71_AdjustmentAmount,Sheet1!S71_SA34cCode,$AC:$AC,Sheet1!S71_RepMaintCode,$AD:$AD)","v":0},0,0,{"$f":"SUMIFS(Sheet1!S71_OY1AdjustedBudget,Sheet1!S71_SA34cCode,$AC:$AC,Sheet1!S71_RepMaintCode,$AD:$AD)","v":0},{"$f":"SUMIFS(Sheet1!S71_OY2AdjustedBudget,Sheet1!S71_SA34cCode,$AC:$AC,Sheet1!S71_RepMaintCode,$AD:$AD)","v":0},null,null,null,null,null,null,null,null,null,null,null,null,null,null,null,"0980","RM"]
["Taxi Ranks/Bus Terminals",null,{"$f":"SUMIFS(Sheet1!S71_OriginalBudget,Sheet1!S71_SA34cCode,$AC:$AC,Sheet1!S71_RepMaintCode,$AD:$AD)","v":0},{"$f":"SUMIFS(Sheet1!S71_SpecialAdjustedBudget,Sheet1!S71_SA34cCode,$AC:$AC,Sheet1!S71_RepMaintCode,$AD:$AD)","v":0},null,null,null,null,{"$f":"SUMIFS(Sheet1!S71_AdjustmentAmount,Sheet1!S71_SA34cCode,$AC:$AC,Sheet1!S71_RepMaintCode,$AD:$AD)","v":0},0,0,{"$f":"SUMIFS(Sheet1!S71_OY1AdjustedBudget,Sheet1!S71_SA34cCode,$AC:$AC,Sheet1!S71_RepMaintCode,$AD:$AD)","v":0},{"$f":"SUMIFS(Sheet1!S71_OY2AdjustedBudget,Sheet1!S71_SA34cCode,$AC:$AC,Sheet1!S71_RepMaintCode,$AD:$AD)","v":0},null,null,null,null,null,null,null,null,null,null,null,null,null,null,null,"0990","RM"]
["Capital Spares",null,{"$f":"SUMIFS(Sheet1!S71_OriginalBudget,Sheet1!S71_SA34cCode,$AC:$AC,Sheet1!S71_RepMaintCode,$AD:$AD)","v":0},{"$f":"SUMIFS(Sheet1!S71_SpecialAdjustedBudget,Sheet1!S71_SA34cCode,$AC:$AC,Sheet1!S71_RepMaintCode,$AD:$AD)","v":0},null,null,null,null,{"$f":"SUMIFS(Sheet1!S71_AdjustmentAmount,Sheet1!S71_SA34cCode,$AC:$AC,Sheet1!S71_RepMaintCode,$AD:$AD)","v":0},0,0,{"$f":"SUMIFS(Sheet1!S71_OY1AdjustedBudget,Sheet1!S71_SA34cCode,$AC:$AC,Sheet1!S71_RepMaintCode,$AD:$AD)","v":0},{"$f":"SUMIFS(Sheet1!S71_OY2AdjustedBudget,Sheet1!S71_SA34cCode,$AC:$AC,Sheet1!S71_RepMaintCode,$AD:$AD)","v":0},null,null,null,null,null,null,null,null,null,null,null,null,null,null,null,"1000","RM"]
["Sport and Recreation Facilities",null,{"$f":"SUM(C101:C103)","v":0},{"$f":"SUM(D101:D103)","v":0},0,0,0,0,0,0,0,0,0,null,null,null,null,null,null,null,null,null,null,null,null,null,null,null,null,"RM"]
["Indoor Facilities",null,{"$f":"SUMIFS(Sheet1!S71_OriginalBudget,Sheet1!S71_SA34cCode,$AC:$AC,Sheet1!S71_RepMaintCode,$AD:$AD)","v":0},{"$f":"SUMIFS(Sheet1!S71_SpecialAdjustedBudget,Sheet1!S71_SA34cCode,$AC:$AC,Sheet1!S71_RepMaintCode,$AD:$AD)","v":0},null,null,null,null,{"$f":"SUMIFS(Sheet1!S71_AdjustmentAmount,Sheet1!S71_SA34cCode,$AC:$AC,Sheet1!S71_RepMaintCode,$AD:$AD)","v":0},0,0,{"$f":"SUMIFS(Sheet1!S71_OY1AdjustedBudget,Sheet1!S71_SA34cCode,$AC:$AC,Sheet1!S71_RepMaintCode,$AD:$AD)","v":0},{"$f":"SUMIFS(Sheet1!S71_OY2AdjustedBudget,Sheet1!S71_SA34cCode,$AC:$AC,Sheet1!S71_RepMaintCode,$AD:$AD)","v":0},null,null,null,null,null,null,null,null,null,null,null,null,null,null,null,"1020","RM"]
["Outdoor Facilities",null,{"$f":"SUMIFS(Sheet1!S71_OriginalBudget,Sheet1!S71_SA34cCode,$AC:$AC,Sheet1!S71_RepMaintCode,$AD:$AD)","v":0},{"$f":"SUMIFS(Sheet1!S71_SpecialAdjustedBudget,Sheet1!S71_SA34cCode,$AC:$AC,Sheet1!S71_RepMaintCode,$AD:$AD)","v":0},null,null,null,null,{"$f":"SUMIFS(Sheet1!S71_AdjustmentAmount,Sheet1!S71_SA34cCode,$AC:$AC,Sheet1!S71_RepMaintCode,$AD:$AD)","v":0},0,0,{"$f":"SUMIFS(Sheet1!S71_OY1AdjustedBudget,Sheet1!S71_SA34cCode,$AC:$AC,Sheet1!S71_RepMaintCode,$AD:$AD)","v":0},{"$f":"SUMIFS(Sheet1!S71_OY2AdjustedBudget,Sheet1!S71_SA34cCode,$AC:$AC,Sheet1!S71_RepMaintCode,$AD:$AD)","v":0},null,null,null,null,null,null,null,null,null,null,null,null,null,null,null,"1030","RM"]
["Capital Spares",null,{"$f":"SUMIFS(Sheet1!S71_OriginalBudget,Sheet1!S71_SA34cCode,$AC:$AC,Sheet1!S71_RepMaintCode,$AD:$AD)","v":0},{"$f":"SUMIFS(Sheet1!S71_SpecialAdjustedBudget,Sheet1!S71_SA34cCode,$AC:$AC,Sheet1!S71_RepMaintCode,$AD:$AD)","v":0},null,null,null,null,{"$f":"SUMIFS(Sheet1!S71_AdjustmentAmount,Sheet1!S71_SA34cCode,$AC:$AC,Sheet1!S71_RepMaintCode,$AD:$AD)","v":0},0,0,{"$f":"SUMIFS(Sheet1!S71_OY1AdjustedBudget,Sheet1!S71_SA34cCode,$AC:$AC,Sheet1!S71_RepMaintCode,$AD:$AD)","v":0},{"$f":"SUMIFS(Sheet1!S71_OY2AdjustedBudget,Sheet1!S71_SA34cCode,$AC:$AC,Sheet1!S71_RepMaintCode,$AD:$AD)","v":0},null,null,null,null,null,null,null,null,null,null,null,null,null,null,null,"1040","RM"]
[null,null,null,null,null,null,null,null,null,null,null,null,null,null,null,null,null,null,null,null,null,null,null,null,null,null,null,null,null,"RM"]
["Heritage assets",null,{"$f":"SUM(C106:C110)","v":0},0,0,0,0,0,0,0,0,0,0,null,null,null,null,null,null,null,null,null,null,null,null,null,null,null,null,"RM"]
["Monuments",null,{"$f":"SUMIFS(Sheet1!S71_OriginalBudget,Sheet1!S71_SA34cCode,$AC:$AC,Sheet1!S71_RepMaintCode,$AD:$AD)","v":0},{"$f":"SUMIFS(Sheet1!S71_SpecialAdjustedBudget,Sheet1!S71_SA34cCode,$AC:$AC,Sheet1!S71_RepMaintCode,$AD:$AD)","v":0},null,null,null,null,{"$f":"SUMIFS(Sheet1!S71_AdjustmentAmount,Sheet1!S71_SA34cCode,$AC:$AC,Sheet1!S71_RepMaintCode,$AD:$AD)","v":0},0,0,{"$f":"SUMIFS(Sheet1!S71_OY1AdjustedBudget,Sheet1!S71_SA34cCode,$AC:$AC,Sheet1!S71_RepMaintCode,$AD:$AD)","v":0},{"$f":"SUMIFS(Sheet1!S71_OY2AdjustedBudget,Sheet1!S71_SA34cCode,$AC:$AC,Sheet1!S71_RepMaintCode,$AD:$AD)","v":0},null,null,null,null,null,null,null,null,null,null,null,null,null,null,null,"1060","RM"]
["Historic Buildings",null,{"$f":"SUMIFS(Sheet1!S71_OriginalBudget,Sheet1!S71_SA34cCode,$AC:$AC,Sheet1!S71_RepMaintCode,$AD:$AD)","v":0},{"$f":"SUMIFS(Sheet1!S71_SpecialAdjustedBudget,Sheet1!S71_SA34cCode,$AC:$AC,Sheet1!S71_RepMaintCode,$AD:$AD)","v":0},null,null,null,null,{"$f":"SUMIFS(Sheet1!S71_AdjustmentAmount,Sheet1!S71_SA34cCode,$AC:$AC,Sheet1!S71_RepMaintCode,$AD:$AD)","v":0},0,0,{"$f":"SUMIFS(Sheet1!S71_OY1AdjustedBudget,Sheet1!S71_SA34cCode,$AC:$AC,Sheet1!S71_RepMaintCode,$AD:$AD)","v":0},{"$f":"SUMIFS(Sheet1!S71_OY2AdjustedBudget,Sheet1!S71_SA34cCode,$AC:$AC,Sheet1!S71_RepMaintCode,$AD:$AD)","v":0},null,null,null,null,null,null,null,null,null,null,null,null,null,null,null,"1070","RM"]
["Works of Art",null,{"$f":"SUMIFS(Sheet1!S71_OriginalBudget,Sheet1!S71_SA34cCode,$AC:$AC,Sheet1!S71_RepMaintCode,$AD:$AD)","v":0},{"$f":"SUMIFS(Sheet1!S71_SpecialAdjustedBudget,Sheet1!S71_SA34cCode,$AC:$AC,Sheet1!S71_RepMaintCode,$AD:$AD)","v":0},null,null,null,null,{"$f":"SUMIFS(Sheet1!S71_AdjustmentAmount,Sheet1!S71_SA34cCode,$AC:$AC,Sheet1!S71_RepMaintCode,$AD:$AD)","v":0},0,0,{"$f":"SUMIFS(Sheet1!S71_OY1AdjustedBudget,Sheet1!S71_SA34cCode,$AC:$AC,Sheet1!S71_RepMaintCode,$AD:$AD)","v":0},{"$f":"SUMIFS(Sheet1!S71_OY2AdjustedBudget,Sheet1!S71_SA34cCode,$AC:$AC,Sheet1!S71_RepMaintCode,$AD:$AD)","v":0},null,null,null,null,null,null,null,null,null,null,null,null,null,null,null,"1080","RM"]
["Conservation Areas",null,{"$f":"SUMIFS(Sheet1!S71_OriginalBudget,Sheet1!S71_SA34cCode,$AC:$AC,Sheet1!S71_RepMaintCode,$AD:$AD)","v":0},{"$f":"SUMIFS(Sheet1!S71_SpecialAdjustedBudget,Sheet1!S71_SA34cCode,$AC:$AC,Sheet1!S71_RepMaintCode,$AD:$AD)","v":0},null,null,null,null,{"$f":"SUMIFS(Sheet1!S71_AdjustmentAmount,Sheet1!S71_SA34cCode,$AC:$AC,Sheet1!S71_RepMaintCode,$AD:$AD)","v":0},0,0,{"$f":"SUMIFS(Sheet1!S71_OY1AdjustedBudget,Sheet1!S71_SA34cCode,$AC:$AC,Sheet1!S71_RepMaintCode,$AD:$AD)","v":0},{"$f":"SUMIFS(Sheet1!S71_OY2AdjustedBudget,Sheet1!S71_SA34cCode,$AC:$AC,Sheet1!S71_RepMaintCode,$AD:$AD)","v":0},null,null,null,null,null,null,null,null,null,null,null,null,null,null,null,"1090","RM"]
["Other Heritage",null,{"$f":"SUMIFS(Sheet1!S71_OriginalBudget,Sheet1!S71_SA34cCode,$AC:$AC,Sheet1!S71_RepMaintCode,$AD:$AD)","v":0},{"$f":"SUMIFS(Sheet1!S71_SpecialAdjustedBudget,Sheet1!S71_SA34cCode,$AC:$AC,Sheet1!S71_RepMaintCode,$AD:$AD)","v":0},null,null,null,null,{"$f":"SUMIFS(Sheet1!S71_AdjustmentAmount,Sheet1!S71_SA34cCode,$AC:$AC,Sheet1!S71_RepMaintCode,$AD:$AD)","v":0},0,0,{"$f":"SUMIFS(Sheet1!S71_OY1AdjustedBudget,Sheet1!S71_SA34cCode,$AC:$AC,Sheet1!S71_RepMaintCode,$AD:$AD)","v":0},{"$f":"SUMIFS(Sheet1!S71_OY2AdjustedBudget,Sheet1!S71_SA34cCode,$AC:$AC,Sheet1!S71_RepMaintCode,$AD:$AD)","v":0},null,null,null,null,null,null,null,null,null,null,null,null,null,null,null,"1100","RM"]
[null,null,null,null,null,null,null,null,null,null,null,null,null,null,null,null,null,null,null,null,null,null,null,null,null,null,null,null,null,"RM"]
["Investment properties",null,{"$f":"+C113+C116","v":0},{"$f":"+D113+D116","v":0},0,0,0,0,0,0,0,{"$f":"+L113+L116","v":0},{"$f":"+M113+M116","v":0},null,null,null,null,null,null,null,null,null,null,null,null,null,null,null,null,"RM"]
["Revenue Generating",null,{"$f":"SUM(C114:C115)","v":0},{"$f":"SUM(D114:D115)","v":0},{"$f":"SUM(E114:E115)","v":0},0,0,0,0,0,0,0,0,null,null,null,null,null,null,null,null,null,null,null,null,null,null,null,null,"RM"]
["Improved Property",null,{"$f":"SUMIFS(Sheet1!S71_OriginalBudget,Sheet1!S71_SA34cCode,$AC:$AC,Sheet1!S71_RepMaintCode,$AD:$AD)","v":0},{"$f":"SUMIFS(Sheet1!S71_SpecialAdjustedBudget,Sheet1!S71_SA34cCode,$AC:$AC,Sheet1!S71_RepMaintCode,$AD:$AD)","v":0},null,null,null,null,{"$f":"SUMIFS(Sheet1!S71_AdjustmentAmount,Sheet1!S71_SA34cCode,$AC:$AC,Sheet1!S71_RepMaintCode,$AD:$AD)","v":0},0,0,{"$f":"SUMIFS(Sheet1!S71_OY1AdjustedBudget,Sheet1!S71_SA34cCode,$AC:$AC,Sheet1!S71_RepMaintCode,$AD:$AD)","v":0},{"$f":"SUMIFS(Sheet1!S71_OY2AdjustedBudget,Sheet1!S71_SA34cCode,$AC:$AC,Sheet1!S71_RepMaintCode,$AD:$AD)","v":0},null,null,null,null,null,null,null,null,null,null,null,null,null,null,null,"1130","RM"]
["Unimproved Property",null,{"$f":"SUMIFS(Sheet1!S71_OriginalBudget,Sheet1!S71_SA34cCode,$AC:$AC,Sheet1!S71_RepMaintCode,$AD:$AD)","v":0},{"$f":"SUMIFS(Sheet1!S71_SpecialAdjustedBudget,Sheet1!S71_SA34cCode,$AC:$AC,Sheet1!S71_RepMaintCode,$AD:$AD)","v":0},null,null,null,null,{"$f":"SUMIFS(Sheet1!S71_AdjustmentAmount,Sheet1!S71_SA34cCode,$AC:$AC,Sheet1!S71_RepMaintCode,$AD:$AD)","v":0},0,0,{"$f":"SUMIFS(Sheet1!S71_OY1AdjustedBudget,Sheet1!S71_SA34cCode,$AC:$AC,Sheet1!S71_RepMaintCode,$AD:$AD)","v":0},{"$f":"SUMIFS(Sheet1!S71_OY2AdjustedBudget,Sheet1!S71_SA34cCode,$AC:$AC,Sheet1!S71_RepMaintCode,$AD:$AD)","v":0},null,null,null,null,null,null,null,null,null,null,null,null,null,null,null,"1140","RM"]
["Non-revenue Generating",null,{"$f":"SUM(C117:C118)","v":0},{"$f":"SUM(D117:D118)","v":0},{"$f":"SUM(E117:E118)","v":0},0,0,0,0,0,0,0,0,null,null,null,null,null,null,null,null,null,null,null,null,null,null,null,null,"RM"]
["Improved Property",null,{"$f":"SUMIFS(Sheet1!S71_OriginalBudget,Sheet1!S71_SA34cCode,$AC:$AC,Sheet1!S71_RepMaintCode,$AD:$AD)","v":0},{"$f":"SUMIFS(Sheet1!S71_SpecialAdjustedBudget,Sheet1!S71_SA34cCode,$AC:$AC,Sheet1!S71_RepMaintCode,$AD:$AD)","v":0},null,null,null,null,{"$f":"SUMIFS(Sheet1!S71_AdjustmentAmount,Sheet1!S71_SA34cCode,$AC:$AC,Sheet1!S71_RepMaintCode,$AD:$AD)","v":0},0,0,{"$f":"SUMIFS(Sheet1!S71_OY1AdjustedBudget,Sheet1!S71_SA34cCode,$AC:$AC,Sheet1!S71_RepMaintCode,$AD:$AD)","v":0},{"$f":"SUMIFS(Sheet1!S71_OY2AdjustedBudget,Sheet1!S71_SA34cCode,$AC:$AC,Sheet1!S71_RepMaintCode,$AD:$AD)","v":0},null,null,null,null,null,null,null,null,null,null,null,null,null,null,null,"1160","RM"]
["Unimproved Property",null,{"$f":"SUMIFS(Sheet1!S71_OriginalBudget,Sheet1!S71_SA34cCode,$AC:$AC,Sheet1!S71_RepMaintCode,$AD:$AD)","v":0},{"$f":"SUMIFS(Sheet1!S71_SpecialAdjustedBudget,Sheet1!S71_SA34cCode,$AC:$AC,Sheet1!S71_RepMaintCode,$AD:$AD)","v":0},null,null,null,null,{"$f":"SUMIFS(Sheet1!S71_AdjustmentAmount,Sheet1!S71_SA34cCode,$AC:$AC,Sheet1!S71_RepMaintCode,$AD:$AD)","v":0},0,0,{"$f":"SUMIFS(Sheet1!S71_OY1AdjustedBudget,Sheet1!S71_SA34cCode,$AC:$AC,Sheet1!S71_RepMaintCode,$AD:$AD)","v":0},{"$f":"SUMIFS(Sheet1!S71_OY2AdjustedBudget,Sheet1!S71_SA34cCode,$AC:$AC,Sheet1!S71_RepMaintCode,$AD:$AD)","v":0},null,null,null,null,null,null,null,null,null,null,null,null,null,null,null,"1170","RM"]
[null,null,null,null,null,null,null,null,null,null,null,null,null,null,null,null,null,null,null,null,null,null,null,null,null,null,null,null,null,"RM"]
["Other assets",null,{"$f":"+C121+C133","v":783750},{"$f":"+D121+D133","v":0},0,0,0,0,270753,270753,1054503,{"$f":"+L121+L133","v":1306250},{"$f":"+M121+M133","v":1365031},null,null,null,null,null,null,null,null,null,null,null,null,null,null,null,null,"RM"]
["Operational Buildings",null,{"$f":"SUM(C122:C132)","v":783750},{"$f":"SUM(D122:D132)","v":0},0,0,0,0,270753,270753,1054503,{"$f":"SUM(L122:L132)","v":1306250},{"$f":"SUM(M122:M132)","v":1365031},null,null,null,null,null,null,null,null,null,null,null,null,null,null,null,null,"RM"]
["Municipal Offices",null,{"$f":"SUMIFS(Sheet1!S71_OriginalBudget,Sheet1!S71_SA34cCode,$AC:$AC,Sheet1!S71_RepMaintCode,$AD:$AD)","v":783750},{"$f":"SUMIFS(Sheet1!S71_SpecialAdjustedBudget,Sheet1!S71_SA34cCode,$AC:$AC,Sheet1!S71_RepMaintCode,$AD:$AD)","v":0},null,null,null,null,{"$f":"SUMIFS(Sheet1!S71_AdjustmentAmount,Sheet1!S71_SA34cCode,$AC:$AC,Sheet1!S71_RepMaintCode,$AD:$AD)","v":270753},270753,1054503,{"$f":"SUMIFS(Sheet1!S71_OY1AdjustedBudget,Sheet1!S71_SA34cCode,$AC:$AC,Sheet1!S71_RepMaintCode,$AD:$AD)","v":1306250},{"$f":"SUMIFS(Sheet1!S71_OY2AdjustedBudget,Sheet1!S71_SA34cCode,$AC:$AC,Sheet1!S71_RepMaintCode,$AD:$AD)","v":1365031},null,null,null,null,null,null,null,null,null,null,null,null,null,null,null,"1200","RM"]
["Pay/Enquiry Points",null,{"$f":"SUMIFS(Sheet1!S71_OriginalBudget,Sheet1!S71_SA34cCode,$AC:$AC,Sheet1!S71_RepMaintCode,$AD:$AD)","v":0},{"$f":"SUMIFS(Sheet1!S71_SpecialAdjustedBudget,Sheet1!S71_SA34cCode,$AC:$AC,Sheet1!S71_RepMaintCode,$AD:$AD)","v":0},null,null,null,null,{"$f":"SUMIFS(Sheet1!S71_AdjustmentAmount,Sheet1!S71_SA34cCode,$AC:$AC,Sheet1!S71_RepMaintCode,$AD:$AD)","v":0},0,0,{"$f":"SUMIFS(Sheet1!S71_OY1AdjustedBudget,Sheet1!S71_SA34cCode,$AC:$AC,Sheet1!S71_RepMaintCode,$AD:$AD)","v":0},{"$f":"SUMIFS(Sheet1!S71_OY2AdjustedBudget,Sheet1!S71_SA34cCode,$AC:$AC,Sheet1!S71_RepMaintCode,$AD:$AD)","v":0},null,null,null,null,null,null,null,null,null,null,null,null,null,null,null,"1210","RM"]
["Building Plan Offices",null,{"$f":"SUMIFS(Sheet1!S71_OriginalBudget,Sheet1!S71_SA34cCode,$AC:$AC,Sheet1!S71_RepMaintCode,$AD:$AD)","v":0},{"$f":"SUMIFS(Sheet1!S71_SpecialAdjustedBudget,Sheet1!S71_SA34cCode,$AC:$AC,Sheet1!S71_RepMaintCode,$AD:$AD)","v":0},null,null,null,null,{"$f":"SUMIFS(Sheet1!S71_AdjustmentAmount,Sheet1!S71_SA34cCode,$AC:$AC,Sheet1!S71_RepMaintCode,$AD:$AD)","v":0},0,0,{"$f":"SUMIFS(Sheet1!S71_OY1AdjustedBudget,Sheet1!S71_SA34cCode,$AC:$AC,Sheet1!S71_RepMaintCode,$AD:$AD)","v":0},{"$f":"SUMIFS(Sheet1!S71_OY2AdjustedBudget,Sheet1!S71_SA34cCode,$AC:$AC,Sheet1!S71_RepMaintCode,$AD:$AD)","v":0},null,null,null,null,null,null,null,null,null,null,null,null,null,null,null,"1220","RM"]
["Workshops",null,{"$f":"SUMIFS(Sheet1!S71_OriginalBudget,Sheet1!S71_SA34cCode,$AC:$AC,Sheet1!S71_RepMaintCode,$AD:$AD)","v":0},{"$f":"SUMIFS(Sheet1!S71_SpecialAdjustedBudget,Sheet1!S71_SA34cCode,$AC:$AC,Sheet1!S71_RepMaintCode,$AD:$AD)","v":0},null,null,null,null,{"$f":"SUMIFS(Sheet1!S71_AdjustmentAmount,Sheet1!S71_SA34cCode,$AC:$AC,Sheet1!S71_RepMaintCode,$AD:$AD)","v":0},0,0,{"$f":"SUMIFS(Sheet1!S71_OY1AdjustedBudget,Sheet1!S71_SA34cCode,$AC:$AC,Sheet1!S71_RepMaintCode,$AD:$AD)","v":0},{"$f":"SUMIFS(Sheet1!S71_OY2AdjustedBudget,Sheet1!S71_SA34cCode,$AC:$AC,Sheet1!S71_RepMaintCode,$AD:$AD)","v":0},null,null,null,null,null,null,null,null,null,null,null,null,null,null,null,"1230","RM"]
["Yards",null,{"$f":"SUMIFS(Sheet1!S71_OriginalBudget,Sheet1!S71_SA34cCode,$AC:$AC,Sheet1!S71_RepMaintCode,$AD:$AD)","v":0},{"$f":"SUMIFS(Sheet1!S71_SpecialAdjustedBudget,Sheet1!S71_SA34cCode,$AC:$AC,Sheet1!S71_RepMaintCode,$AD:$AD)","v":0},null,null,null,null,{"$f":"SUMIFS(Sheet1!S71_AdjustmentAmount,Sheet1!S71_SA34cCode,$AC:$AC,Sheet1!S71_RepMaintCode,$AD:$AD)","v":0},0,0,{"$f":"SUMIFS(Sheet1!S71_OY1AdjustedBudget,Sheet1!S71_SA34cCode,$AC:$AC,Sheet1!S71_RepMaintCode,$AD:$AD)","v":0},{"$f":"SUMIFS(Sheet1!S71_OY2AdjustedBudget,Sheet1!S71_SA34cCode,$AC:$AC,Sheet1!S71_RepMaintCode,$AD:$AD)","v":0},null,null,null,null,null,null,null,null,null,null,null,null,null,null,null,"1240","RM"]
["Stores",null,{"$f":"SUMIFS(Sheet1!S71_OriginalBudget,Sheet1!S71_SA34cCode,$AC:$AC,Sheet1!S71_RepMaintCode,$AD:$AD)","v":0},{"$f":"SUMIFS(Sheet1!S71_SpecialAdjustedBudget,Sheet1!S71_SA34cCode,$AC:$AC,Sheet1!S71_RepMaintCode,$AD:$AD)","v":0},null,null,null,null,{"$f":"SUMIFS(Sheet1!S71_AdjustmentAmount,Sheet1!S71_SA34cCode,$AC:$AC,Sheet1!S71_RepMaintCode,$AD:$AD)","v":0},0,0,{"$f":"SUMIFS(Sheet1!S71_OY1AdjustedBudget,Sheet1!S71_SA34cCode,$AC:$AC,Sheet1!S71_RepMaintCode,$AD:$AD)","v":0},{"$f":"SUMIFS(Sheet1!S71_OY2AdjustedBudget,Sheet1!S71_SA34cCode,$AC:$AC,Sheet1!S71_RepMaintCode,$AD:$AD)","v":0},null,null,null,null,null,null,null,null,null,null,null,null,null,null,null,"1250","RM"]
["Laboratories",null,{"$f":"SUMIFS(Sheet1!S71_OriginalBudget,Sheet1!S71_SA34cCode,$AC:$AC,Sheet1!S71_RepMaintCode,$AD:$AD)","v":0},{"$f":"SUMIFS(Sheet1!S71_SpecialAdjustedBudget,Sheet1!S71_SA34cCode,$AC:$AC,Sheet1!S71_RepMaintCode,$AD:$AD)","v":0},null,null,null,null,{"$f":"SUMIFS(Sheet1!S71_AdjustmentAmount,Sheet1!S71_SA34cCode,$AC:$AC,Sheet1!S71_RepMaintCode,$AD:$AD)","v":0},0,0,{"$f":"SUMIFS(Sheet1!S71_OY1AdjustedBudget,Sheet1!S71_SA34cCode,$AC:$AC,Sheet1!S71_RepMaintCode,$AD:$AD)","v":0},{"$f":"SUMIFS(Sheet1!S71_OY2AdjustedBudget,Sheet1!S71_SA34cCode,$AC:$AC,Sheet1!S71_RepMaintCode,$AD:$AD)","v":0},null,null,null,null,null,null,null,null,null,null,null,null,null,null,null,"1260","RM"]
["Training Centres",null,{"$f":"SUMIFS(Sheet1!S71_OriginalBudget,Sheet1!S71_SA34cCode,$AC:$AC,Sheet1!S71_RepMaintCode,$AD:$AD)","v":0},{"$f":"SUMIFS(Sheet1!S71_SpecialAdjustedBudget,Sheet1!S71_SA34cCode,$AC:$AC,Sheet1!S71_RepMaintCode,$AD:$AD)","v":0},null,null,null,null,{"$f":"SUMIFS(Sheet1!S71_AdjustmentAmount,Sheet1!S71_SA34cCode,$AC:$AC,Sheet1!S71_RepMaintCode,$AD:$AD)","v":0},0,0,{"$f":"SUMIFS(Sheet1!S71_OY1AdjustedBudget,Sheet1!S71_SA34cCode,$AC:$AC,Sheet1!S71_RepMaintCode,$AD:$AD)","v":0},{"$f":"SUMIFS(Sheet1!S71_OY2AdjustedBudget,Sheet1!S71_SA34cCode,$AC:$AC,Sheet1!S71_RepMaintCode,$AD:$AD)","v":0},null,null,null,null,null,null,null,null,null,null,null,null,null,null,null,"1270","RM"]
["Manufacturing Plant",null,{"$f":"SUMIFS(Sheet1!S71_OriginalBudget,Sheet1!S71_SA34cCode,$AC:$AC,Sheet1!S71_RepMaintCode,$AD:$AD)","v":0},{"$f":"SUMIFS(Sheet1!S71_SpecialAdjustedBudget,Sheet1!S71_SA34cCode,$AC:$AC,Sheet1!S71_RepMaintCode,$AD:$AD)","v":0},null,null,null,null,{"$f":"SUMIFS(Sheet1!S71_AdjustmentAmount,Sheet1!S71_SA34cCode,$AC:$AC,Sheet1!S71_RepMaintCode,$AD:$AD)","v":0},0,0,{"$f":"SUMIFS(Sheet1!S71_OY1AdjustedBudget,Sheet1!S71_SA34cCode,$AC:$AC,Sheet1!S71_RepMaintCode,$AD:$AD)","v":0},{"$f":"SUMIFS(Sheet1!S71_OY2AdjustedBudget,Sheet1!S71_SA34cCode,$AC:$AC,Sheet1!S71_RepMaintCode,$AD:$AD)","v":0},null,null,null,null,null,null,null,null,null,null,null,null,null,null,null,"1280","RM"]
["Depots",null,{"$f":"SUMIFS(Sheet1!S71_OriginalBudget,Sheet1!S71_SA34cCode,$AC:$AC,Sheet1!S71_RepMaintCode,$AD:$AD)","v":0},{"$f":"SUMIFS(Sheet1!S71_SpecialAdjustedBudget,Sheet1!S71_SA34cCode,$AC:$AC,Sheet1!S71_RepMaintCode,$AD:$AD)","v":0},null,null,null,null,{"$f":"SUMIFS(Sheet1!S71_AdjustmentAmount,Sheet1!S71_SA34cCode,$AC:$AC,Sheet1!S71_RepMaintCode,$AD:$AD)","v":0},0,0,{"$f":"SUMIFS(Sheet1!S71_OY1AdjustedBudget,Sheet1!S71_SA34cCode,$AC:$AC,Sheet1!S71_RepMaintCode,$AD:$AD)","v":0},{"$f":"SUMIFS(Sheet1!S71_OY2AdjustedBudget,Sheet1!S71_SA34cCode,$AC:$AC,Sheet1!S71_RepMaintCode,$AD:$AD)","v":0},null,null,null,null,null,null,null,null,null,null,null,null,null,null,null,"1290","RM"]
["Capital Spares",null,{"$f":"SUMIFS(Sheet1!S71_OriginalBudget,Sheet1!S71_SA34cCode,$AC:$AC,Sheet1!S71_RepMaintCode,$AD:$AD)","v":0},{"$f":"SUMIFS(Sheet1!S71_SpecialAdjustedBudget,Sheet1!S71_SA34cCode,$AC:$AC,Sheet1!S71_RepMaintCode,$AD:$AD)","v":0},null,null,null,null,{"$f":"SUMIFS(Sheet1!S71_AdjustmentAmount,Sheet1!S71_SA34cCode,$AC:$AC,Sheet1!S71_RepMaintCode,$AD:$AD)","v":0},0,0,{"$f":"SUMIFS(Sheet1!S71_OY1AdjustedBudget,Sheet1!S71_SA34cCode,$AC:$AC,Sheet1!S71_RepMaintCode,$AD:$AD)","v":0},{"$f":"SUMIFS(Sheet1!S71_OY2AdjustedBudget,Sheet1!S71_SA34cCode,$AC:$AC,Sheet1!S71_RepMaintCode,$AD:$AD)","v":0},null,null,null,null,null,null,null,null,null,null,null,null,null,null,null,"1300","RM"]
["Housing",null,{"$f":"SUM(C134:C136)","v":0},{"$f":"SUM(D134:D136)","v":0},{"$f":"SUM(E134:E136)","v":0},0,0,0,0,0,0,0,0,null,null,null,null,null,null,null,null,null,null,null,null,null,null,null,null,"RM"]
["Staff Housing",null,{"$f":"SUMIFS(Sheet1!S71_OriginalBudget,Sheet1!S71_SA34cCode,$AC:$AC,Sheet1!S71_RepMaintCode,$AD:$AD)","v":0},{"$f":"SUMIFS(Sheet1!S71_SpecialAdjustedBudget,Sheet1!S71_SA34cCode,$AC:$AC,Sheet1!S71_RepMaintCode,$AD:$AD)","v":0},null,null,null,null,{"$f":"SUMIFS(Sheet1!S71_AdjustmentAmount,Sheet1!S71_SA34cCode,$AC:$AC,Sheet1!S71_RepMaintCode,$AD:$AD)","v":0},0,0,{"$f":"SUMIFS(Sheet1!S71_OY1AdjustedBudget,Sheet1!S71_SA34cCode,$AC:$AC,Sheet1!S71_RepMaintCode,$AD:$AD)","v":0},{"$f":"SUMIFS(Sheet1!S71_OY2AdjustedBudget,Sheet1!S71_SA34cCode,$AC:$AC,Sheet1!S71_RepMaintCode,$AD:$AD)","v":0},null,null,null,null,null,null,null,null,null,null,null,null,null,null,null,"1320","RM"]
["Social Housing",null,{"$f":"SUMIFS(Sheet1!S71_OriginalBudget,Sheet1!S71_SA34cCode,$AC:$AC,Sheet1!S71_RepMaintCode,$AD:$AD)","v":0},{"$f":"SUMIFS(Sheet1!S71_SpecialAdjustedBudget,Sheet1!S71_SA34cCode,$AC:$AC,Sheet1!S71_RepMaintCode,$AD:$AD)","v":0},null,null,null,null,{"$f":"SUMIFS(Sheet1!S71_AdjustmentAmount,Sheet1!S71_SA34cCode,$AC:$AC,Sheet1!S71_RepMaintCode,$AD:$AD)","v":0},0,0,{"$f":"SUMIFS(Sheet1!S71_OY1AdjustedBudget,Sheet1!S71_SA34cCode,$AC:$AC,Sheet1!S71_RepMaintCode,$AD:$AD)","v":0},{"$f":"SUMIFS(Sheet1!S71_OY2AdjustedBudget,Sheet1!S71_SA34cCode,$AC:$AC,Sheet1!S71_RepMaintCode,$AD:$AD)","v":0},null,null,null,null,null,null,null,null,null,null,null,null,null,null,null,"1330","RM"]
["Capital Spares",null,{"$f":"SUMIFS(Sheet1!S71_OriginalBudget,Sheet1!S71_SA34cCode,$AC:$AC,Sheet1!S71_RepMaintCode,$AD:$AD)","v":0},{"$f":"SUMIFS(Sheet1!S71_SpecialAdjustedBudget,Sheet1!S71_SA34cCode,$AC:$AC,Sheet1!S71_RepMaintCode,$AD:$AD)","v":0},null,null,null,null,{"$f":"SUMIFS(Sheet1!S71_AdjustmentAmount,Sheet1!S71_SA34cCode,$AC:$AC,Sheet1!S71_RepMaintCode,$AD:$AD)","v":0},0,0,{"$f":"SUMIFS(Sheet1!S71_OY1AdjustedBudget,Sheet1!S71_SA34cCode,$AC:$AC,Sheet1!S71_RepMaintCode,$AD:$AD)","v":0},{"$f":"SUMIFS(Sheet1!S71_OY2AdjustedBudget,Sheet1!S71_SA34cCode,$AC:$AC,Sheet1!S71_RepMaintCode,$AD:$AD)","v":0},null,null,null,null,null,null,null,null,null,null,null,null,null,null,null,"1340","RM"]
[null,null,null,null,null,null,null,null,null,null,null,null,null,null,null,null,null,null,null,null,null,null,null,null,null,null,null,null,null,"RM"]
["Biological or Cultivated Assets",null,{"$f":"SUM(C139:C139)","v":0},0,0,0,0,0,0,{"$f":"SUM(E138:I138)","v":0},{"$f":"IF(D138=0,C138+J138,D138+J138)","v":0},0,0,null,null,null,null,null,null,null,null,null,null,null,null,null,null,null,null,"RM"]
["Biological or Cultivated Assets",null,{"$f":"SUMIFS(Sheet1!S71_OriginalBudget,Sheet1!S71_SA34cCode,$AC:$AC,Sheet1!S71_RepMaintCode,$AD:$AD)","v":0},{"$f":"SUMIFS(Sheet1!S71_SpecialAdjustedBudget,Sheet1!S71_SA34cCode,$AC:$AC,Sheet1!S71_RepMaintCode,$AD:$AD)","v":0},null,null,null,null,{"$f":"SUMIFS(Sheet1!S71_AdjustmentAmount,Sheet1!S71_SA34cCode,$AC:$AC,Sheet1!S71_RepMaintCode,$AD:$AD)","v":0},0,0,{"$f":"SUMIFS(Sheet1!S71_OY1AdjustedBudget,Sheet1!S71_SA34cCode,$AC:$AC,Sheet1!S71_RepMaintCode,$AD:$AD)","v":0},{"$f":"SUMIFS(Sheet1!S71_OY2AdjustedBudget,Sheet1!S71_SA34cCode,$AC:$AC,Sheet1!S71_RepMaintCode,$AD:$AD)","v":0},null,null,null,null,null,null,null,null,null,null,null,null,null,null,null,"1360","RM"]
[null,null,null,null,null,null,null,null,null,null,null,null,null,null,null,null,null,null,null,null,null,null,null,null,null,null,null,null,null,"RM"]
["Intangible Assets",null,{"$f":"SUM(C142:C143)","v":0},{"$f":"SUM(D142:D143)","v":0},{"$f":"SUM(E142:E143)","v":0},0,0,0,0,0,0,0,0,null,null,null,null,null,null,null,null,null,null,null,null,null,null,null,null,"RM"]
["Servitudes",null,{"$f":"SUMIFS(Sheet1!S71_OriginalBudget,Sheet1!S71_SA34cCode,$AC:$AC,Sheet1!S71_RepMaintCode,$AD:$AD)","v":0},{"$f":"SUMIFS(Sheet1!S71_SpecialAdjustedBudget,Sheet1!S71_SA34cCode,$AC:$AC,Sheet1!S71_RepMaintCode,$AD:$AD)","v":0},null,null,null,null,{"$f":"SUMIFS(Sheet1!S71_AdjustmentAmount,Sheet1!S71_SA34cCode,$AC:$AC,Sheet1!S71_RepMaintCode,$AD:$AD)","v":0},0,0,{"$f":"SUMIFS(Sheet1!S71_OY1AdjustedBudget,Sheet1!S71_SA34cCode,$AC:$AC,Sheet1!S71_RepMaintCode,$AD:$AD)","v":0},{"$f":"SUMIFS(Sheet1!S71_OY2AdjustedBudget,Sheet1!S71_SA34cCode,$AC:$AC,Sheet1!S71_RepMaintCode,$AD:$AD)","v":0},null,null,null,null,null,null,null,null,null,null,null,null,null,null,null,"1380","RM"]
["Licences and Rights",null,{"$f":"SUM(C144:C149)","v":0},{"$f":"SUM(D144:D149)","v":0},{"$f":"SUM(E144:E149)","v":0},0,0,0,0,0,0,0,0,null,null,null,null,null,null,null,null,null,null,null,null,null,null,null,null,"RM"]
["Water Rights",null,{"$f":"SUMIFS(Sheet1!S71_OriginalBudget,Sheet1!S71_SA34cCode,$AC:$AC,Sheet1!S71_RepMaintCode,$AD:$AD)","v":0},{"$f":"SUMIFS(Sheet1!S71_SpecialAdjustedBudget,Sheet1!S71_SA34cCode,$AC:$AC,Sheet1!S71_RepMaintCode,$AD:$AD)","v":0},null,null,null,null,{"$f":"SUMIFS(Sheet1!S71_AdjustmentAmount,Sheet1!S71_SA34cCode,$AC:$AC,Sheet1!S71_RepMaintCode,$AD:$AD)","v":0},0,0,{"$f":"SUMIFS(Sheet1!S71_OY1AdjustedBudget,Sheet1!S71_SA34cCode,$AC:$AC,Sheet1!S71_RepMaintCode,$AD:$AD)","v":0},{"$f":"SUMIFS(Sheet1!S71_OY2AdjustedBudget,Sheet1!S71_SA34cCode,$AC:$AC,Sheet1!S71_RepMaintCode,$AD:$AD)","v":0},null,null,null,null,null,null,null,null,null,null,null,null,null,null,null,"1400","RM"]
["Effluent Licenses",null,{"$f":"SUMIFS(Sheet1!S71_OriginalBudget,Sheet1!S71_SA34cCode,$AC:$AC,Sheet1!S71_RepMaintCode,$AD:$AD)","v":0},{"$f":"SUMIFS(Sheet1!S71_SpecialAdjustedBudget,Sheet1!S71_SA34cCode,$AC:$AC,Sheet1!S71_RepMaintCode,$AD:$AD)","v":0},null,null,null,null,{"$f":"SUMIFS(Sheet1!S71_AdjustmentAmount,Sheet1!S71_SA34cCode,$AC:$AC,Sheet1!S71_RepMaintCode,$AD:$AD)","v":0},0,0,{"$f":"SUMIFS(Sheet1!S71_OY1AdjustedBudget,Sheet1!S71_SA34cCode,$AC:$AC,Sheet1!S71_RepMaintCode,$AD:$AD)","v":0},{"$f":"SUMIFS(Sheet1!S71_OY2AdjustedBudget,Sheet1!S71_SA34cCode,$AC:$AC,Sheet1!S71_RepMaintCode,$AD:$AD)","v":0},null,null,null,null,null,null,null,null,null,null,null,null,null,null,null,"1410","RM"]
["Solid Waste Licenses",null,{"$f":"SUMIFS(Sheet1!S71_OriginalBudget,Sheet1!S71_SA34cCode,$AC:$AC,Sheet1!S71_RepMaintCode,$AD:$AD)","v":0},{"$f":"SUMIFS(Sheet1!S71_SpecialAdjustedBudget,Sheet1!S71_SA34cCode,$AC:$AC,Sheet1!S71_RepMaintCode,$AD:$AD)","v":0},null,null,null,null,{"$f":"SUMIFS(Sheet1!S71_AdjustmentAmount,Sheet1!S71_SA34cCode,$AC:$AC,Sheet1!S71_RepMaintCode,$AD:$AD)","v":0},0,0,{"$f":"SUMIFS(Sheet1!S71_OY1AdjustedBudget,Sheet1!S71_SA34cCode,$AC:$AC,Sheet1!S71_RepMaintCode,$AD:$AD)","v":0},{"$f":"SUMIFS(Sheet1!S71_OY2AdjustedBudget,Sheet1!S71_SA34cCode,$AC:$AC,Sheet1!S71_RepMaintCode,$AD:$AD)","v":0},null,null,null,null,null,null,null,null,null,null,null,null,null,null,null,"1420","RM"]
["Computer Software and Applications",null,{"$f":"SUMIFS(Sheet1!S71_OriginalBudget,Sheet1!S71_SA34cCode,$AC:$AC,Sheet1!S71_RepMaintCode,$AD:$AD)","v":0},{"$f":"SUMIFS(Sheet1!S71_SpecialAdjustedBudget,Sheet1!S71_SA34cCode,$AC:$AC,Sheet1!S71_RepMaintCode,$AD:$AD)","v":0},null,null,null,null,{"$f":"SUMIFS(Sheet1!S71_AdjustmentAmount,Sheet1!S71_SA34cCode,$AC:$AC,Sheet1!S71_RepMaintCode,$AD:$AD)","v":0},0,0,{"$f":"SUMIFS(Sheet1!S71_OY1AdjustedBudget,Sheet1!S71_SA34cCode,$AC:$AC,Sheet1!S71_RepMaintCode,$AD:$AD)","v":0},{"$f":"SUMIFS(Sheet1!S71_OY2AdjustedBudget,Sheet1!S71_SA34cCode,$AC:$AC,Sheet1!S71_RepMaintCode,$AD:$AD)","v":0},null,null,null,null,null,null,null,null,null,null,null,null,null,null,null,"1430","RM"]
["Load Settlement Software Applications",null,{"$f":"SUMIFS(Sheet1!S71_OriginalBudget,Sheet1!S71_SA34cCode,$AC:$AC,Sheet1!S71_RepMaintCode,$AD:$AD)","v":0},{"$f":"SUMIFS(Sheet1!S71_SpecialAdjustedBudget,Sheet1!S71_SA34cCode,$AC:$AC,Sheet1!S71_RepMaintCode,$AD:$AD)","v":0},null,null,null,null,{"$f":"SUMIFS(Sheet1!S71_AdjustmentAmount,Sheet1!S71_SA34cCode,$AC:$AC,Sheet1!S71_RepMaintCode,$AD:$AD)","v":0},0,0,{"$f":"SUMIFS(Sheet1!S71_OY1AdjustedBudget,Sheet1!S71_SA34cCode,$AC:$AC,Sheet1!S71_RepMaintCode,$AD:$AD)","v":0},{"$f":"SUMIFS(Sheet1!S71_OY2AdjustedBudget,Sheet1!S71_SA34cCode,$AC:$AC,Sheet1!S71_RepMaintCode,$AD:$AD)","v":0},null,null,null,null,null,null,null,null,null,null,null,null,null,null,null,"1440","RM"]
["Unspecified",null,{"$f":"SUMIFS(Sheet1!S71_OriginalBudget,Sheet1!S71_SA34cCode,$AC:$AC,Sheet1!S71_RepMaintCode,$AD:$AD)","v":0},{"$f":"SUMIFS(Sheet1!S71_SpecialAdjustedBudget,Sheet1!S71_SA34cCode,$AC:$AC,Sheet1!S71_RepMaintCode,$AD:$AD)","v":0},null,null,null,null,{"$f":"SUMIFS(Sheet1!S71_AdjustmentAmount,Sheet1!S71_SA34cCode,$AC:$AC,Sheet1!S71_RepMaintCode,$AD:$AD)","v":0},0,0,{"$f":"SUMIFS(Sheet1!S71_OY1AdjustedBudget,Sheet1!S71_SA34cCode,$AC:$AC,Sheet1!S71_RepMaintCode,$AD:$AD)","v":0},{"$f":"SUMIFS(Sheet1!S71_OY2AdjustedBudget,Sheet1!S71_SA34cCode,$AC:$AC,Sheet1!S71_RepMaintCode,$AD:$AD)","v":0},null,null,null,null,null,null,null,null,null,null,null,null,null,null,null,"1450","RM"]
[null,null,null,null,null,null,null,null,null,null,null,null,null,null,null,null,null,null,null,null,null,null,null,null,null,null,null,null,null,"RM"]
["Computer Equipment",null,{"$f":"SUM(C152:C152)","v":99275},0,0,0,0,0,0,0,99275,99275,103742,null,null,null,null,null,null,null,null,null,null,null,null,null,null,null,null,"RM"]
["Computer Equipment",null,{"$f":"SUMIFS(Sheet1!S71_OriginalBudget,Sheet1!S71_SA34cCode,$AC:$AC,Sheet1!S71_RepMaintCode,$AD:$AD)","v":99275},{"$f":"SUMIFS(Sheet1!S71_SpecialAdjustedBudget,Sheet1!S71_SA34cCode,$AC:$AC,Sheet1!S71_RepMaintCode,$AD:$AD)","v":0},null,null,null,null,{"$f":"SUMIFS(Sheet1!S71_AdjustmentAmount,Sheet1!S71_SA34cCode,$AC:$AC,Sheet1!S71_RepMaintCode,$AD:$AD)","v":0},0,99275,{"$f":"SUMIFS(Sheet1!S71_OY1AdjustedBudget,Sheet1!S71_SA34cCode,$AC:$AC,Sheet1!S71_RepMaintCode,$AD:$AD)","v":99275},{"$f":"SUMIFS(Sheet1!S71_OY2AdjustedBudget,Sheet1!S71_SA34cCode,$AC:$AC,Sheet1!S71_RepMaintCode,$AD:$AD)","v":103742},null,null,null,null,null,null,null,null,null,null,null,null,null,null,null,"1470","RM"]
[null,null,null,null,null,null,null,null,null,null,null,null,null,null,null,null,null,null,null,null,null,null,null,null,null,null,null,null,null,"RM"]
["Furniture and Office Equipment",null,{"$f":"SUM(C155:C155)","v":0},0,0,0,0,0,0,0,0,0,0,null,null,null,null,null,null,null,null,null,null,null,null,null,null,null,null,"RM"]
["Furniture and Office Equipment",null,{"$f":"SUMIFS(Sheet1!S71_OriginalBudget,Sheet1!S71_SA34cCode,$AC:$AC,Sheet1!S71_RepMaintCode,$AD:$AD)","v":0},{"$f":"SUMIFS(Sheet1!S71_SpecialAdjustedBudget,Sheet1!S71_SA34cCode,$AC:$AC,Sheet1!S71_RepMaintCode,$AD:$AD)","v":0},null,null,null,null,{"$f":"SUMIFS(Sheet1!S71_AdjustmentAmount,Sheet1!S71_SA34cCode,$AC:$AC,Sheet1!S71_RepMaintCode,$AD:$AD)","v":0},0,0,{"$f":"SUMIFS(Sheet1!S71_OY1AdjustedBudget,Sheet1!S71_SA34cCode,$AC:$AC,Sheet1!S71_RepMaintCode,$AD:$AD)","v":0},{"$f":"SUMIFS(Sheet1!S71_OY2AdjustedBudget,Sheet1!S71_SA34cCode,$AC:$AC,Sheet1!S71_RepMaintCode,$AD:$AD)","v":0},null,null,null,null,null,null,null,null,null,null,null,null,null,null,null,"1490","RM"]
[null,null,null,null,null,null,null,null,null,null,null,null,null,null,null,null,null,null,null,null,null,null,null,null,null,null,null,null,null,"RM"]
["Machinery and Equipment",null,{"$f":"SUM(C158:C158)","v":459750},0,0,0,0,0,0,0,459750,468000,486810,null,null,null,null,null,null,null,null,null,null,null,null,null,null,null,null,"RM"]
["Machinery and Equipment",null,{"$f":"SUMIFS(Sheet1!S71_OriginalBudget,Sheet1!S71_SA34cCode,$AC:$AC,Sheet1!S71_RepMaintCode,$AD:$AD)","v":459750},{"$f":"SUMIFS(Sheet1!S71_SpecialAdjustedBudget,Sheet1!S71_SA34cCode,$AC:$AC,Sheet1!S71_RepMaintCode,$AD:$AD)","v":0},null,null,null,null,{"$f":"SUMIFS(Sheet1!S71_AdjustmentAmount,Sheet1!S71_SA34cCode,$AC:$AC,Sheet1!S71_RepMaintCode,$AD:$AD)","v":0},0,459750,{"$f":"SUMIFS(Sheet1!S71_OY1AdjustedBudget,Sheet1!S71_SA34cCode,$AC:$AC,Sheet1!S71_RepMaintCode,$AD:$AD)","v":468000},{"$f":"SUMIFS(Sheet1!S71_OY2AdjustedBudget,Sheet1!S71_SA34cCode,$AC:$AC,Sheet1!S71_RepMaintCode,$AD:$AD)","v":486810},null,null,null,null,null,null,null,null,null,null,null,null,null,null,null,"1510","RM"]
[null,null,null,null,null,null,null,null,null,null,null,null,null,null,null,null,null,null,null,null,null,null,null,null,null,null,null,null,null,"RM"]
["Transport Assets",null,{"$f":"SUM(C161:C161)","v":679250},0,0,0,0,0,-506790,-506790,172460,156750,163804,null,null,null,null,null,null,null,null,null,null,null,null,null,null,null,null,"RM"]
["Transport Assets",null,{"$f":"SUMIFS(Sheet1!S71_OriginalBudget,Sheet1!S71_SA34cCode,$AC:$AC,Sheet1!S71_RepMaintCode,$AD:$AD)","v":679250},{"$f":"SUMIFS(Sheet1!S71_SpecialAdjustedBudget,Sheet1!S71_SA34cCode,$AC:$AC,Sheet1!S71_RepMaintCode,$AD:$AD)","v":0},null,null,null,null,{"$f":"SUMIFS(Sheet1!S71_AdjustmentAmount,Sheet1!S71_SA34cCode,$AC:$AC,Sheet1!S71_RepMaintCode,$AD:$AD)","v":-506790},-506790,172460,{"$f":"SUMIFS(Sheet1!S71_OY1AdjustedBudget,Sheet1!S71_SA34cCode,$AC:$AC,Sheet1!S71_RepMaintCode,$AD:$AD)","v":156750},{"$f":"SUMIFS(Sheet1!S71_OY2AdjustedBudget,Sheet1!S71_SA34cCode,$AC:$AC,Sheet1!S71_RepMaintCode,$AD:$AD)","v":163804},null,null,null,null,null,null,null,null,null,null,null,null,null,null,null,"1530","RM"]
[null,null,null,null,null,null,null,null,null,null,null,null,null,null,null,null,null,null,null,null,null,null,null,null,null,null,null,null,null,"RM"]
["Land",null,{"$f":"SUM(C164:C164)","v":0},0,0,0,0,0,0,0,0,0,0,null,null,null,null,null,null,null,null,null,null,null,null,null,null,null,null,"RM"]
["Land",null,{"$f":"SUMIFS(Sheet1!S71_OriginalBudget,Sheet1!S71_SA34cCode,$AC:$AC,Sheet1!S71_RepMaintCode,$AD:$AD)","v":0},{"$f":"SUMIFS(Sheet1!S71_SpecialAdjustedBudget,Sheet1!S71_SA34cCode,$AC:$AC,Sheet1!S71_RepMaintCode,$AD:$AD)","v":0},null,null,null,null,{"$f":"SUMIFS(Sheet1!S71_AdjustmentAmount,Sheet1!S71_SA34cCode,$AC:$AC,Sheet1!S71_RepMaintCode,$AD:$AD)","v":0},0,0,{"$f":"SUMIFS(Sheet1!S71_OY1AdjustedBudget,Sheet1!S71_SA34cCode,$AC:$AC,Sheet1!S71_RepMaintCode,$AD:$AD)","v":0},{"$f":"SUMIFS(Sheet1!S71_OY2AdjustedBudget,Sheet1!S71_SA34cCode,$AC:$AC,Sheet1!S71_RepMaintCode,$AD:$AD)","v":0},null,null,null,null,null,null,null,null,null,null,null,null,null,null,null,"1550","RM"]
[null,null,null,null,null,null,null,null,null,null,null,null,null,null,null,null,null,null,null,null,null,null,null,null,null,null,null,null,null,"RM"]
["Zoo's, Marine and Non-biological Animals",null,{"$f":"SUM(C167:C167)","v":0},0,0,0,0,0,0,0,0,0,0,null,null,null,null,null,null,null,null,null,null,null,null,null,null,null,null,"RM"]
["Zoo's, Marine and Non-biological Animals",null,{"$f":"SUMIFS(Sheet1!S71_OriginalBudget,Sheet1!S71_SA34cCode,$AC:$AC,Sheet1!S71_RepMaintCode,$AD:$AD)","v":0},{"$f":"SUMIFS(Sheet1!S71_SpecialAdjustedBudget,Sheet1!S71_SA34cCode,$AC:$AC,Sheet1!S71_RepMaintCode,$AD:$AD)","v":0},null,null,null,null,{"$f":"SUMIFS(Sheet1!S71_AdjustmentAmount,Sheet1!S71_SA34cCode,$AC:$AC,Sheet1!S71_RepMaintCode,$AD:$AD)","v":0},0,0,{"$f":"SUMIFS(Sheet1!S71_OY1AdjustedBudget,Sheet1!S71_SA34cCode,$AC:$AC,Sheet1!S71_RepMaintCode,$AD:$AD)","v":0},{"$f":"SUMIFS(Sheet1!S71_OY2AdjustedBudget,Sheet1!S71_SA34cCode,$AC:$AC,Sheet1!S71_RepMaintCode,$AD:$AD)","v":0},null,null,null,null,null,null,null,null,null,null,null,null,null,null,null,"1570","RM"]
[null,null,null,null,null,null,null,null,null,null,null,null,null,null,null,null,null,null,null,null,null,null,null,null,null,null,null,null,null,"RM"]
["Total Repairs and Maintenance Expenditure to be adjusted",1,{"$f":"C8+C76+C105+C112+C120+C151+C138+C141+C154+C157+C160+C163+C166","v":5679525},{"$f":"D8+D76+D105+D112+D120+D151+D138+D141+D154+D157+D160+D163+D166","v":0},{"$f":"E8+E76+E105+E112+E120+E151+E138+E141+E154+E157+E160+E163+E166","v":0},0,0,0,1021144,1021144,6700669,5687775,5941475]
[{"$f":"head27a","v":"References"}]
["1. Total Repairs and Maintenance Expenditure by Asset Category must reconcile to total repairs and maintenance expenditure on Table SB1"]
["7. Only complete if a previous adjusted budget has been approved in the same financial year. Reflect most recent adjusted budget."]
["8. Additional cash-backed accumulated funds/unspent funds (section 18(1)(b) and section 28(2)(e) MFMA) identified after Original Budget approved and after annual financial statements audited (note: only where underspending could not reasonably be have for"]
["9. Increases of funds approved under section 31 MFMA"]
["10. Adjustments approved in accordance with section 29 MFMA"]
["11. Adjustments to funding allocations from National or Provincial Government"]
["12. Adjusts. = 'Other' Adjustments proposed to be approved; including revenue under-collection (MFMA section 28(2)(a)); additional revenue appropriation on existing programmes (section 28(2))(b); projected savings (section 28(2)(d)); error correction (sec"]
["13. G = B + C + D + E + F"]
["14. Adjusted Budget H = (A or A1) + G"]
[]
[]
["check balance"]

{"sheet":"SB18d","index":59,"n_rows":182,"n_cols":30,"rows_kept":182,"cut":false,"hidden":false,"merged":[[174,0,174,12],[176,0,176,12],[178,0,178,12],[1,0,3,0],[1,1,3,1],[1,2,1,10],[171,0,171,12],[172,0,172,9],[173,0,173,9]]}
[{"$f":"muni&\" - \"&ADJB18d&\" - \"&Date","v":"EC139 Enoch Mgijima - Supporting Table SB18d Adjustments Budget - depreciation by asset class - "}]
[{"$f":"desc","v":"Description"},{"$f":"head27","v":"Ref"},{"$f":"Head2","v":"Budget Year 2021/22"},null,null,null,null,null,null,null,null,{"$f":"Head10","v":"Budget Year +1 2022/23"},{"$f":"Head11","v":"Budget Year +2 2023/24"}]
[null,null,{"$f":"Head6","v":"Original Budget"},{"$f":"Head54","v":"Prior Adjusted"},{"$f":"Head51","v":"Accum. Funds"},{"$f":"Head52","v":"Multi-year capital"},{"$f":"Head53","v":"Unfore. Unavoid."},{"$f":"Head55","v":"Nat. or Prov. Govt"},{"$f":"Head50","v":"Other Adjusts."},{"$f":"Head56","v":"Total Adjusts."},{"$f":"Head7","v":"Adjusted Budget"},{"$f":"Head7","v":"Adjusted Budget"},{"$f":"Head7","v":"Adjusted Budget"}]
[null,null,null,7,8,9,10,11,12,13,14]
["R thousands",null,"A","A1","B","C","D","E","F","G","H"]
["Depreciation by Asset Class/Sub-class"]
[]
["Infrastructure",null,{"$f":"C9+C14+C18+C28+C70+C39+C46+C54+C64","v":14767495},{"$f":"D9+D14+D18+D28+D70+D39+D46+D54+D64","v":0},0,0,0,0,1152727,{"$f":"SUM(E8:I8)","v":1152727},{"$f":"IF(D8=0,C8+J8,D8+J8)","v":15920222},{"$f":"L9+L14+L18+L28+L70+L39+L46+L54+L64","v":19134088},{"$f":"M9+M14+M18+M28+M70+M39+M46+M54+M64","v":21802214}]
["Roads Infrastructure",null,{"$f":"SUM(C10:C13)","v":10173173},{"$f":"SUM(D10:D13)","v":0},0,0,0,0,4882856,{"$f":"SUM(E9:I9)","v":4882856},{"$f":"IF(D9=0,C9+J9,D9+J9)","v":15056029},18026388,20644668]
["Roads",null,{"$f":"SUMIFS(Sheet1!S71_OriginalBudget,Sheet1!S71_SA34dCode,$AC:$AC,Sheet1!S71_DepCode,$AD:$AD)","v":9990298},{"$f":"SUMIFS(Sheet1!S71_SpecialAdjustedBudget,Sheet1!S71_SA34dCode,$AC:$AC,Sheet1!S71_DepCode,$AD:$AD)","v":0},null,null,null,null,{"$f":"SUMIFS(Sheet1!S71_AdjustmentAmount,Sheet1!S71_SA34dCode,$AC:$AC,Sheet1!S71_DepCode,$AD:$AD)","v":5065731},5065731,15056029,{"$f":"SUMIFS(Sheet1!S71_OY1AdjustedBudget,Sheet1!S71_SA34dCode,$AC:$AC,Sheet1!S71_DepCode,$AD:$AD)","v":17843513},{"$f":"SUMIFS(Sheet1!S71_OY2AdjustedBudget,Sheet1!S71_SA34dCode,$AC:$AC,Sheet1!S71_DepCode,$AD:$AD)","v":20453564},null,null,null,null,null,null,null,null,null,null,null,null,null,null,null,"0120","DP"]
["Road Structures",null,{"$f":"SUMIFS(Sheet1!S71_OriginalBudget,Sheet1!S71_SA34dCode,$AC:$AC,Sheet1!S71_DepCode,$AD:$AD)","v":182875},{"$f":"SUMIFS(Sheet1!S71_SpecialAdjustedBudget,Sheet1!S71_SA34dCode,$AC:$AC,Sheet1!S71_DepCode,$AD:$AD)","v":0},null,null,null,null,{"$f":"SUMIFS(Sheet1!S71_AdjustmentAmount,Sheet1!S71_SA34dCode,$AC:$AC,Sheet1!S71_DepCode,$AD:$AD)","v":-182875},-182875,0,{"$f":"SUMIFS(Sheet1!S71_OY1AdjustedBudget,Sheet1!S71_SA34dCode,$AC:$AC,Sheet1!S71_DepCode,$AD:$AD)","v":182875},{"$f":"SUMIFS(Sheet1!S71_OY2AdjustedBudget,Sheet1!S71_SA34dCode,$AC:$AC,Sheet1!S71_DepCode,$AD:$AD)","v":191104},null,null,null,null,null,null,null,null,null,null,null,null,null,null,null,"0130","DP"]
["Road Furniture",null,{"$f":"SUMIFS(Sheet1!S71_OriginalBudget,Sheet1!S71_SA34dCode,$AC:$AC,Sheet1!S71_DepCode,$AD:$AD)","v":0},{"$f":"SUMIFS(Sheet1!S71_SpecialAdjustedBudget,Sheet1!S71_SA34dCode,$AC:$AC,Sheet1!S71_DepCode,$AD:$AD)","v":0},null,null,null,null,{"$f":"SUMIFS(Sheet1!S71_AdjustmentAmount,Sheet1!S71_SA34dCode,$AC:$AC,Sheet1!S71_DepCode,$AD:$AD)","v":0},0,0,{"$f":"SUMIFS(Sheet1!S71_OY1AdjustedBudget,Sheet1!S71_SA34dCode,$AC:$AC,Sheet1!S71_DepCode,$AD:$AD)","v":0},{"$f":"SUMIFS(Sheet1!S71_OY2AdjustedBudget,Sheet1!S71_SA34dCode,$AC:$AC,Sheet1!S71_DepCode,$AD:$AD)","v":0},null,null,null,null,null,null,null,null,null,null,null,null,null,null,null,"0140","DP"]
["Capital Spares",null,{"$f":"SUMIFS(Sheet1!S71_OriginalBudget,Sheet1!S71_SA34dCode,$AC:$AC,Sheet1!S71_DepCode,$AD:$AD)","v":0},{"$f":"SUMIFS(Sheet1!S71_SpecialAdjustedBudget,Sheet1!S71_SA34dCode,$AC:$AC,Sheet1!S71_DepCode,$AD:$AD)","v":0},null,null,null,null,{"$f":"SUMIFS(Sheet1!S71_AdjustmentAmount,Sheet1!S71_SA34dCode,$AC:$AC,Sheet1!S71_DepCode,$AD:$AD)","v":0},0,0,{"$f":"SUMIFS(Sheet1!S71_OY1AdjustedBudget,Sheet1!S71_SA34dCode,$AC:$AC,Sheet1!S71_DepCode,$AD:$AD)","v":0},{"$f":"SUMIFS(Sheet1!S71_OY2AdjustedBudget,Sheet1!S71_SA34dCode,$AC:$AC,Sheet1!S71_DepCode,$AD:$AD)","v":0},null,null,null,null,null,null,null,null,null,null,null,null,null,null,null,"0150","DP"]
["Storm water Infrastructure",null,{"$f":"SUM(C15:C17)","v":0},0,0,0,0,0,0,0,0,{"$f":"SUM(L15:L17)","v":0},{"$f":"SUM(M15:M17)","v":0},null,null,null,null,null,null,null,null,null,null,null,null,null,null,null,null,"DP"]
["Drainage Collection",null,{"$f":"SUMIFS(Sheet1!S71_OriginalBudget,Sheet1!S71_SA34dCode,$AC:$AC,Sheet1!S71_DepCode,$AD:$AD)","v":0},{"$f":"SUMIFS(Sheet1!S71_SpecialAdjustedBudget,Sheet1!S71_SA34dCode,$AC:$AC,Sheet1!S71_DepCode,$AD:$AD)","v":0},null,null,null,null,{"$f":"SUMIFS(Sheet1!S71_AdjustmentAmount,Sheet1!S71_SA34dCode,$AC:$AC,Sheet1!S71_DepCode,$AD:$AD)","v":0},0,0,{"$f":"SUMIFS(Sheet1!S71_OY1AdjustedBudget,Sheet1!S71_SA34dCode,$AC:$AC,Sheet1!S71_DepCode,$AD:$AD)","v":0},{"$f":"SUMIFS(Sheet1!S71_OY2AdjustedBudget,Sheet1!S71_SA34dCode,$AC:$AC,Sheet1!S71_DepCode,$AD:$AD)","v":0},null,null,null,null,null,null,null,null,null,null,null,null,null,null,null,"0180","DP"]
["Storm water Conveyance",null,{"$f":"SUMIFS(Sheet1!S71_OriginalBudget,Sheet1!S71_SA34dCode,$AC:$AC,Sheet1!S71_DepCode,$AD:$AD)","v":0},{"$f":"SUMIFS(Sheet1!S71_SpecialAdjustedBudget,Sheet1!S71_SA34dCode,$AC:$AC,Sheet1!S71_DepCode,$AD:$AD)","v":0},null,null,null,null,{"$f":"SUMIFS(Sheet1!S71_AdjustmentAmount,Sheet1!S71_SA34dCode,$AC:$AC,Sheet1!S71_DepCode,$AD:$AD)","v":0},0,0,{"$f":"SUMIFS(Sheet1!S71_OY1AdjustedBudget,Sheet1!S71_SA34dCode,$AC:$AC,Sheet1!S71_DepCode,$AD:$AD)","v":0},{"$f":"SUMIFS(Sheet1!S71_OY2AdjustedBudget,Sheet1!S71_SA34dCode,$AC:$AC,Sheet1!S71_DepCode,$AD:$AD)","v":0},null,null,null,null,null,null,null,null,null,null,null,null,null,null,null,"0170","DP"]
["Attenuation",null,{"$f":"SUMIFS(Sheet1!S71_OriginalBudget,Sheet1!S71_SA34dCode,$AC:$AC,Sheet1!S71_DepCode,$AD:$AD)","v":0},{"$f":"SUMIFS(Sheet1!S71_SpecialAdjustedBudget,Sheet1!S71_SA34dCode,$AC:$AC,Sheet1!S71_DepCode,$AD:$AD)","v":0},null,null,null,null,{"$f":"SUMIFS(Sheet1!S71_AdjustmentAmount,Sheet1!S71_SA34dCode,$AC:$AC,Sheet1!S71_DepCode,$AD:$AD)","v":0},0,0,{"$f":"SUMIFS(Sheet1!S71_OY1AdjustedBudget,Sheet1!S71_SA34dCode,$AC:$AC,Sheet1!S71_DepCode,$AD:$AD)","v":0},{"$f":"SUMIFS(Sheet1!S71_OY2AdjustedBudget,Sheet1!S71_SA34dCode,$AC:$AC,Sheet1!S71_DepCode,$AD:$AD)","v":0},null,null,null,null,null,null,null,null,null,null,null,null,null,null,null,"0190","DP"]
["Electrical Infrastructure",null,{"$f":"SUM(C19:C27)","v":303050},0,0,0,0,0,-303050,-303050,0,303050,316687,null,null,null,null,null,null,null,null,null,null,null,null,null,null,null,null,"DP"]
["Power Plants",null,{"$f":"SUMIFS(Sheet1!S71_OriginalBudget,Sheet1!S71_SA34dCode,$AC:$AC,Sheet1!S71_DepCode,$AD:$AD)","v":0},{"$f":"SUMIFS(Sheet1!S71_SpecialAdjustedBudget,Sheet1!S71_SA34dCode,$AC:$AC,Sheet1!S71_DepCode,$AD:$AD)","v":0},null,null,null,null,{"$f":"SUMIFS(Sheet1!S71_AdjustmentAmount,Sheet1!S71_SA34dCode,$AC:$AC,Sheet1!S71_DepCode,$AD:$AD)","v":0},0,0,{"$f":"SUMIFS(Sheet1!S71_OY1AdjustedBudget,Sheet1!S71_SA34dCode,$AC:$AC,Sheet1!S71_DepCode,$AD:$AD)","v":0},{"$f":"SUMIFS(Sheet1!S71_OY2AdjustedBudget,Sheet1!S71_SA34dCode,$AC:$AC,Sheet1!S71_DepCode,$AD:$AD)","v":0},null,null,null,null,null,null,null,null,null,null,null,null,null,null,null,"0210","DP"]
["HV Substations",null,{"$f":"SUMIFS(Sheet1!S71_OriginalBudget,Sheet1!S71_SA34dCode,$AC:$AC,Sheet1!S71_DepCode,$AD:$AD)","v":0},{"$f":"SUMIFS(Sheet1!S71_SpecialAdjustedBudget,Sheet1!S71_SA34dCode,$AC:$AC,Sheet1!S71_DepCode,$AD:$AD)","v":0},null,null,null,null,{"$f":"SUMIFS(Sheet1!S71_AdjustmentAmount,Sheet1!S71_SA34dCode,$AC:$AC,Sheet1!S71_DepCode,$AD:$AD)","v":0},0,0,{"$f":"SUMIFS(Sheet1!S71_OY1AdjustedBudget,Sheet1!S71_SA34dCode,$AC:$AC,Sheet1!S71_DepCode,$AD:$AD)","v":0},{"$f":"SUMIFS(Sheet1!S71_OY2AdjustedBudget,Sheet1!S71_SA34dCode,$AC:$AC,Sheet1!S71_DepCode,$AD:$AD)","v":0},null,null,null,null,null,null,null,null,null,null,null,null,null,null,null,"0220","DP"]
["HV Switching Station",null,{"$f":"SUMIFS(Sheet1!S71_OriginalBudget,Sheet1!S71_SA34dCode,$AC:$AC,Sheet1!S71_DepCode,$AD:$AD)","v":0},{"$f":"SUMIFS(Sheet1!S71_SpecialAdjustedBudget,Sheet1!S71_SA34dCode,$AC:$AC,Sheet1!S71_DepCode,$AD:$AD)","v":0},null,null,null,null,{"$f":"SUMIFS(Sheet1!S71_AdjustmentAmount,Sheet1!S71_SA34dCode,$AC:$AC,Sheet1!S71_DepCode,$AD:$AD)","v":0},0,0,{"$f":"SUMIFS(Sheet1!S71_OY1AdjustedBudget,Sheet1!S71_SA34dCode,$AC:$AC,Sheet1!S71_DepCode,$AD:$AD)","v":0},{"$f":"SUMIFS(Sheet1!S71_OY2AdjustedBudget,Sheet1!S71_SA34dCode,$AC:$AC,Sheet1!S71_DepCode,$AD:$AD)","v":0},null,null,null,null,null,null,null,null,null,null,null,null,null,null,null,"0230","DP"]
["HV Transmission Conductors",null,{"$f":"SUMIFS(Sheet1!S71_OriginalBudget,Sheet1!S71_SA34dCode,$AC:$AC,Sheet1!S71_DepCode,$AD:$AD)","v":0},{"$f":"SUMIFS(Sheet1!S71_SpecialAdjustedBudget,Sheet1!S71_SA34dCode,$AC:$AC,Sheet1!S71_DepCode,$AD:$AD)","v":0},null,null,null,null,{"$f":"SUMIFS(Sheet1!S71_AdjustmentAmount,Sheet1!S71_SA34dCode,$AC:$AC,Sheet1!S71_DepCode,$AD:$AD)","v":0},0,0,{"$f":"SUMIFS(Sheet1!S71_OY1AdjustedBudget,Sheet1!S71_SA34dCode,$AC:$AC,Sheet1!S71_DepCode,$AD:$AD)","v":0},{"$f":"SUMIFS(Sheet1!S71_OY2AdjustedBudget,Sheet1!S71_SA34dCode,$AC:$AC,Sheet1!S71_DepCode,$AD:$AD)","v":0},null,null,null,null,null,null,null,null,null,null,null,null,null,null,null,"0240","DP"]
["MV Substations",null,{"$f":"SUMIFS(Sheet1!S71_OriginalBudget,Sheet1!S71_SA34dCode,$AC:$AC,Sheet1!S71_DepCode,$AD:$AD)","v":0},{"$f":"SUMIFS(Sheet1!S71_SpecialAdjustedBudget,Sheet1!S71_SA34dCode,$AC:$AC,Sheet1!S71_DepCode,$AD:$AD)","v":0},null,null,null,null,{"$f":"SUMIFS(Sheet1!S71_AdjustmentAmount,Sheet1!S71_SA34dCode,$AC:$AC,Sheet1!S71_DepCode,$AD:$AD)","v":0},0,0,{"$f":"SUMIFS(Sheet1!S71_OY1AdjustedBudget,Sheet1!S71_SA34dCode,$AC:$AC,Sheet1!S71_DepCode,$AD:$AD)","v":0},{"$f":"SUMIFS(Sheet1!S71_OY2AdjustedBudget,Sheet1!S71_SA34dCode,$AC:$AC,Sheet1!S71_DepCode,$AD:$AD)","v":0},null,null,null,null,null,null,null,null,null,null,null,null,null,null,null,"0250","DP"]
["MV Switching Stations",null,{"$f":"SUMIFS(Sheet1!S71_OriginalBudget,Sheet1!S71_SA34dCode,$AC:$AC,Sheet1!S71_DepCode,$AD:$AD)","v":0},{"$f":"SUMIFS(Sheet1!S71_SpecialAdjustedBudget,Sheet1!S71_SA34dCode,$AC:$AC,Sheet1!S71_DepCode,$AD:$AD)","v":0},null,null,null,null,{"$f":"SUMIFS(Sheet1!S71_AdjustmentAmount,Sheet1!S71_SA34dCode,$AC:$AC,Sheet1!S71_DepCode,$AD:$AD)","v":0},0,0,{"$f":"SUMIFS(Sheet1!S71_OY1AdjustedBudget,Sheet1!S71_SA34dCode,$AC:$AC,Sheet1!S71_DepCode,$AD:$AD)","v":0},{"$f":"SUMIFS(Sheet1!S71_OY2AdjustedBudget,Sheet1!S71_SA34dCode,$AC:$AC,Sheet1!S71_DepCode,$AD:$AD)","v":0},null,null,null,null,null,null,null,null,null,null,null,null,null,null,null,"0260","DP"]
["MV Networks",null,{"$f":"SUMIFS(Sheet1!S71_OriginalBudget,Sheet1!S71_SA34dCode,$AC:$AC,Sheet1!S71_DepCode,$AD:$AD)","v":0},{"$f":"SUMIFS(Sheet1!S71_SpecialAdjustedBudget,Sheet1!S71_SA34dCode,$AC:$AC,Sheet1!S71_DepCode,$AD:$AD)","v":0},null,null,null,null,{"$f":"SUMIFS(Sheet1!S71_AdjustmentAmount,Sheet1!S71_SA34dCode,$AC:$AC,Sheet1!S71_DepCode,$AD:$AD)","v":0},0,0,{"$f":"SUMIFS(Sheet1!S71_OY1AdjustedBudget,Sheet1!S71_SA34dCode,$AC:$AC,Sheet1!S71_DepCode,$AD:$AD)","v":0},{"$f":"SUMIFS(Sheet1!S71_OY2AdjustedBudget,Sheet1!S71_SA34dCode,$AC:$AC,Sheet1!S71_DepCode,$AD:$AD)","v":0},null,null,null,null,null,null,null,null,null,null,null,null,null,null,null,"0270","DP"]
["LV Networks",null,{"$f":"SUMIFS(Sheet1!S71_OriginalBudget,Sheet1!S71_SA34dCode,$AC:$AC,Sheet1!S71_DepCode,$AD:$AD)","v":303050},{"$f":"SUMIFS(Sheet1!S71_SpecialAdjustedBudget,Sheet1!S71_SA34dCode,$AC:$AC,Sheet1!S71_DepCode,$AD:$AD)","v":0},null,null,null,null,{"$f":"SUMIFS(Sheet1!S71_AdjustmentAmount,Sheet1!S71_SA34dCode,$AC:$AC,Sheet1!S71_DepCode,$AD:$AD)","v":-303050},-303050,0,{"$f":"SUMIFS(Sheet1!S71_OY1AdjustedBudget,Sheet1!S71_SA34dCode,$AC:$AC,Sheet1!S71_DepCode,$AD:$AD)","v":303050},{"$f":"SUMIFS(Sheet1!S71_OY2AdjustedBudget,Sheet1!S71_SA34dCode,$AC:$AC,Sheet1!S71_DepCode,$AD:$AD)","v":316687},null,null,null,null,null,null,null,null,null,null,null,null,null,null,null,"0280","DP"]
["Capital Spares",null,{"$f":"SUMIFS(Sheet1!S71_OriginalBudget,Sheet1!S71_SA34dCode,$AC:$AC,Sheet1!S71_DepCode,$AD:$AD)","v":0},{"$f":"SUMIFS(Sheet1!S71_SpecialAdjustedBudget,Sheet1!S71_SA34dCode,$AC:$AC,Sheet1!S71_DepCode,$AD:$AD)","v":0},null,null,null,null,{"$f":"SUMIFS(Sheet1!S71_AdjustmentAmount,Sheet1!S71_SA34dCode,$AC:$AC,Sheet1!S71_DepCode,$AD:$AD)","v":0},0,0,{"$f":"SUMIFS(Sheet1!S71_OY1AdjustedBudget,Sheet1!S71_SA34dCode,$AC:$AC,Sheet1!S71_DepCode,$AD:$AD)","v":0},{"$f":"SUMIFS(Sheet1!S71_OY2AdjustedBudget,Sheet1!S71_SA34dCode,$AC:$AC,Sheet1!S71_DepCode,$AD:$AD)","v":0},null,null,null,null,null,null,null,null,null,null,null,null,null,null,null,"0290","DP"]
["Water Supply Infrastructure",null,{"$f":"SUM(C29:C38)","v":0},0,0,0,0,0,0,0,0,0,0,null,null,null,null,null,null,null,null,null,null,null,null,null,null,null,null,"DP"]
["Dams and Weirs",null,{"$f":"SUMIFS(Sheet1!S71_OriginalBudget,Sheet1!S71_SA34dCode,$AC:$AC,Sheet1!S71_DepCode,$AD:$AD)","v":0},{"$f":"SUMIFS(Sheet1!S71_SpecialAdjustedBudget,Sheet1!S71_SA34dCode,$AC:$AC,Sheet1!S71_DepCode,$AD:$AD)","v":0},null,null,null,null,{"$f":"SUMIFS(Sheet1!S71_AdjustmentAmount,Sheet1!S71_SA34dCode,$AC:$AC,Sheet1!S71_DepCode,$AD:$AD)","v":0},0,0,{"$f":"SUMIFS(Sheet1!S71_OY1AdjustedBudget,Sheet1!S71_SA34dCode,$AC:$AC,Sheet1!S71_DepCode,$AD:$AD)","v":0},{"$f":"SUMIFS(Sheet1!S71_OY2AdjustedBudget,Sheet1!S71_SA34dCode,$AC:$AC,Sheet1!S71_DepCode,$AD:$AD)","v":0},null,null,null,null,null,null,null,null,null,null,null,null,null,null,null,"0310","DP"]
["Boreholes",null,{"$f":"SUMIFS(Sheet1!S71_OriginalBudget,Sheet1!S71_SA34dCode,$AC:$AC,Sheet1!S71_DepCode,$AD:$AD)","v":0},{"$f":"SUMIFS(Sheet1!S71_SpecialAdjustedBudget,Sheet1!S71_SA34dCode,$AC:$AC,Sheet1!S71_DepCode,$AD:$AD)","v":0},null,null,null,null,{"$f":"SUMIFS(Sheet1!S71_AdjustmentAmount,Sheet1!S71_SA34dCode,$AC:$AC,Sheet1!S71_DepCode,$AD:$AD)","v":0},0,0,{"$f":"SUMIFS(Sheet1!S71_OY1AdjustedBudget,Sheet1!S71_SA34dCode,$AC:$AC,Sheet1!S71_DepCode,$AD:$AD)","v":0},{"$f":"SUMIFS(Sheet1!S71_OY2AdjustedBudget,Sheet1!S71_SA34dCode,$AC:$AC,Sheet1!S71_DepCode,$AD:$AD)","v":0},null,null,null,null,null,null,null,null,null,null,null,null,null,null,null,"0320","DP"]
["Reservoirs",null,{"$f":"SUMIFS(Sheet1!S71_OriginalBudget,Sheet1!S71_SA34dCode,$AC:$AC,Sheet1!S71_DepCode,$AD:$AD)","v":0},{"$f":"SUMIFS(Sheet1!S71_SpecialAdjustedBudget,Sheet1!S71_SA34dCode,$AC:$AC,Sheet1!S71_DepCode,$AD:$AD)","v":0},null,null,null,null,{"$f":"SUMIFS(Sheet1!S71_AdjustmentAmount,Sheet1!S71_SA34dCode,$AC:$AC,Sheet1!S71_DepCode,$AD:$AD)","v":0},0,0,{"$f":"SUMIFS(Sheet1!S71_OY1AdjustedBudget,Sheet1!S71_SA34dCode,$AC:$AC,Sheet1!S71_DepCode,$AD:$AD)","v":0},{"$f":"SUMIFS(Sheet1!S71_OY2AdjustedBudget,Sheet1!S71_SA34dCode,$AC:$AC,Sheet1!S71_DepCode,$AD:$AD)","v":0},null,null,null,null,null,null,null,null,null,null,null,null,null,null,null,"0330","DP"]
["Pump Stations",null,{"$f":"SUMIFS(Sheet1!S71_OriginalBudget,Sheet1!S71_SA34dCode,$AC:$AC,Sheet1!S71_DepCode,$AD:$AD)","v":0},{"$f":"SUMIFS(Sheet1!S71_SpecialAdjustedBudget,Sheet1!S71_SA34dCode,$AC:$AC,Sheet1!S71_DepCode,$AD:$AD)","v":0},null,null,null,null,{"$f":"SUMIFS(Sheet1!S71_AdjustmentAmount,Sheet1!S71_SA34dCode,$AC:$AC,Sheet1!S71_DepCode,$AD:$AD)","v":0},0,0,{"$f":"SUMIFS(Sheet1!S71_OY1AdjustedBudget,Sheet1!S71_SA34dCode,$AC:$AC,Sheet1!S71_DepCode,$AD:$AD)","v":0},{"$f":"SUMIFS(Sheet1!S71_OY2AdjustedBudget,Sheet1!S71_SA34dCode,$AC:$AC,Sheet1!S71_DepCode,$AD:$AD)","v":0},null,null,null,null,null,null,null,null,null,null,null,null,null,null,null,"0340","DP"]
["Water Treatment Works",null,{"$f":"SUMIFS(Sheet1!S71_OriginalBudget,Sheet1!S71_SA34dCode,$AC:$AC,Sheet1!S71_DepCode,$AD:$AD)","v":0},{"$f":"SUMIFS(Sheet1!S71_SpecialAdjustedBudget,Sheet1!S71_SA34dCode,$AC:$AC,Sheet1!S71_DepCode,$AD:$AD)","v":0},null,null,null,null,{"$f":"SUMIFS(Sheet1!S71_AdjustmentAmount,Sheet1!S71_SA34dCode,$AC:$AC,Sheet1!S71_DepCode,$AD:$AD)","v":0},0,0,{"$f":"SUMIFS(Sheet1!S71_OY1AdjustedBudget,Sheet1!S71_SA34dCode,$AC:$AC,Sheet1!S71_DepCode,$AD:$AD)","v":0},{"$f":"SUMIFS(Sheet1!S71_OY2AdjustedBudget,Sheet1!S71_SA34dCode,$AC:$AC,Sheet1!S71_DepCode,$AD:$AD)","v":0},null,null,null,null,null,null,null,null,null,null,null,null,null,null,null,"0350","DP"]
["Bulk Mains",null,{"$f":"SUMIFS(Sheet1!S71_OriginalBudget,Sheet1!S71_SA34dCode,$AC:$AC,Sheet1!S71_DepCode,$AD:$AD)","v":0},{"$f":"SUMIFS(Sheet1!S71_SpecialAdjustedBudget,Sheet1!S71_SA34dCode,$AC:$AC,Sheet1!S71_DepCode,$AD:$AD)","v":0},null,null,null,null,{"$f":"SUMIFS(Sheet1!S71_AdjustmentAmount,Sheet1!S71_SA34dCode,$AC:$AC,Sheet1!S71_DepCode,$AD:$AD)","v":0},0,0,{"$f":"SUMIFS(Sheet1!S71_OY1AdjustedBudget,Sheet1!S71_SA34dCode,$AC:$AC,Sheet1!S71_DepCode,$AD:$AD)","v":0},{"$f":"SUMIFS(Sheet1!S71_OY2AdjustedBudget,Sheet1!S71_SA34dCode,$AC:$AC,Sheet1!S71_DepCode,$AD:$AD)","v":0},null,null,null,null,null,null,null,null,null,null,null,null,null,null,null,"0360","DP"]
["Distribution",null,{"$f":"SUMIFS(Sheet1!S71_OriginalBudget,Sheet1!S71_SA34dCode,$AC:$AC,Sheet1!S71_DepCode,$AD:$AD)","v":0},{"$f":"SUMIFS(Sheet1!S71_SpecialAdjustedBudget,Sheet1!S71_SA34dCode,$AC:$AC,Sheet1!S71_DepCode,$AD:$AD)","v":0},null,null,null,null,{"$f":"SUMIFS(Sheet1!S71_AdjustmentAmount,Sheet1!S71_SA34dCode,$AC:$AC,Sheet1!S71_DepCode,$AD:$AD)","v":0},0,0,{"$f":"SUMIFS(Sheet1!S71_OY1AdjustedBudget,Sheet1!S71_SA34dCode,$AC:$AC,Sheet1!S71_DepCode,$AD:$AD)","v":0},{"$f":"SUMIFS(Sheet1!S71_OY2AdjustedBudget,Sheet1!S71_SA34dCode,$AC:$AC,Sheet1!S71_DepCode,$AD:$AD)","v":0},null,null,null,null,null,null,null,null,null,null,null,null,null,null,null,"0370","DP"]
["Distribution Points",null,{"$f":"SUMIFS(Sheet1!S71_OriginalBudget,Sheet1!S71_SA34dCode,$AC:$AC,Sheet1!S71_DepCode,$AD:$AD)","v":0},{"$f":"SUMIFS(Sheet1!S71_SpecialAdjustedBudget,Sheet1!S71_SA34dCode,$AC:$AC,Sheet1!S71_DepCode,$AD:$AD)","v":0},null,null,null,null,{"$f":"SUMIFS(Sheet1!S71_AdjustmentAmount,Sheet1!S71_SA34dCode,$AC:$AC,Sheet1!S71_DepCode,$AD:$AD)","v":0},0,0,{"$f":"SUMIFS(Sheet1!S71_OY1AdjustedBudget,Sheet1!S71_SA34dCode,$AC:$AC,Sheet1!S71_DepCode,$AD:$AD)","v":0},{"$f":"SUMIFS(Sheet1!S71_OY2AdjustedBudget,Sheet1!S71_SA34dCode,$AC:$AC,Sheet1!S71_DepCode,$AD:$AD)","v":0},null,null,null,null,null,null,null,null,null,null,null,null,null,null,null,"0380","DP"]
["PRV Stations",null,{"$f":"SUMIFS(Sheet1!S71_OriginalBudget,Sheet1!S71_SA34dCode,$AC:$AC,Sheet1!S71_DepCode,$AD:$AD)","v":0},{"$f":"SUMIFS(Sheet1!S71_SpecialAdjustedBudget,Sheet1!S71_SA34dCode,$AC:$AC,Sheet1!S71_DepCode,$AD:$AD)","v":0},null,null,null,null,{"$f":"SUMIFS(Sheet1!S71_AdjustmentAmount,Sheet1!S71_SA34dCode,$AC:$AC,Sheet1!S71_DepCode,$AD:$AD)","v":0},0,0,{"$f":"SUMIFS(Sheet1!S71_OY1AdjustedBudget,Sheet1!S71_SA34dCode,$AC:$AC,Sheet1!S71_DepCode,$AD:$AD)","v":0},{"$f":"SUMIFS(Sheet1!S71_OY2AdjustedBudget,Sheet1!S71_SA34dCode,$AC:$AC,Sheet1!S71_DepCode,$AD:$AD)","v":0},null,null,null,null,null,null,null,null,null,null,null,null,null,null,null,"0390","DP"]
["Capital Spares",null,{"$f":"SUMIFS(Sheet1!S71_OriginalBudget,Sheet1!S71_SA34dCode,$AC:$AC,Sheet1!S71_DepCode,$AD:$AD)","v":0},{"$f":"SUMIFS(Sheet1!S71_SpecialAdjustedBudget,Sheet1!S71_SA34dCode,$AC:$AC,Sheet1!S71_DepCode,$AD:$AD)","v":0},null,null,null,null,{"$f":"SUMIFS(Sheet1!S71_AdjustmentAmount,Sheet1!S71_SA34dCode,$AC:$AC,Sheet1!S71_DepCode,$AD:$AD)","v":0},0,0,{"$f":"SUMIFS(Sheet1!S71_OY1AdjustedBudget,Sheet1!S71_SA34dCode,$AC:$AC,Sheet1!S71_DepCode,$AD:$AD)","v":0},{"$f":"SUMIFS(Sheet1!S71_OY2AdjustedBudget,Sheet1!S71_SA34dCode,$AC:$AC,Sheet1!S71_DepCode,$AD:$AD)","v":0},null,null,null,null,null,null,null,null,null,null,null,null,null,null,null,"0400","DP"]
["Sanitation Infrastructure",null,{"$f":"SUM(C40:C45)","v":0},{"$f":"SUM(D40:D45)","v":0},0,0,0,0,0,0,0,0,0,null,null,null,null,null,null,null,null,null,null,null,null,null,null,null,null,"DP"]
["Pump Station",null,{"$f":"SUMIFS(Sheet1!S71_OriginalBudget,Sheet1!S71_SA34dCode,$AC:$AC,Sheet1!S71_DepCode,$AD:$AD)","v":0},{"$f":"SUMIFS(Sheet1!S71_SpecialAdjustedBudget,Sheet1!S71_SA34dCode,$AC:$AC,Sheet1!S71_DepCode,$AD:$AD)","v":0},null,null,null,null,{"$f":"SUMIFS(Sheet1!S71_AdjustmentAmount,Sheet1!S71_SA34dCode,$AC:$AC,Sheet1!S71_DepCode,$AD:$AD)","v":0},0,0,{"$f":"SUMIFS(Sheet1!S71_OY1AdjustedBudget,Sheet1!S71_SA34dCode,$AC:$AC,Sheet1!S71_DepCode,$AD:$AD)","v":0},{"$f":"SUMIFS(Sheet1!S71_OY2AdjustedBudget,Sheet1!S71_SA34dCode,$AC:$AC,Sheet1!S71_DepCode,$AD:$AD)","v":0},null,null,null,null,null,null,null,null,null,null,null,null,null,null,null,"0420","DP"]
["Reticulation",null,{"$f":"SUMIFS(Sheet1!S71_OriginalBudget,Sheet1!S71_SA34dCode,$AC:$AC,Sheet1!S71_DepCode,$AD:$AD)","v":0},{"$f":"SUMIFS(Sheet1!S71_SpecialAdjustedBudget,Sheet1!S71_SA34dCode,$AC:$AC,Sheet1!S71_DepCode,$AD:$AD)","v":0},null,null,null,null,{"$f":"SUMIFS(Sheet1!S71_AdjustmentAmount,Sheet1!S71_SA34dCode,$AC:$AC,Sheet1!S71_DepCode,$AD:$AD)","v":0},0,0,{"$f":"SUMIFS(Sheet1!S71_OY1AdjustedBudget,Sheet1!S71_SA34dCode,$AC:$AC,Sheet1!S71_DepCode,$AD:$AD)","v":0},{"$f":"SUMIFS(Sheet1!S71_OY2AdjustedBudget,Sheet1!S71_SA34dCode,$AC:$AC,Sheet1!S71_DepCode,$AD:$AD)","v":0},null,null,null,null,null,null,null,null,null,null,null,null,null,null,null,"0430","DP"]
["Waste Water Treatment Works",null,{"$f":"SUMIFS(Sheet1!S71_OriginalBudget,Sheet1!S71_SA34dCode,$AC:$AC,Sheet1!S71_DepCode,$AD:$AD)","v":0},{"$f":"SUMIFS(Sheet1!S71_SpecialAdjustedBudget,Sheet1!S71_SA34dCode,$AC:$AC,Sheet1!S71_DepCode,$AD:$AD)","v":0},null,null,null,null,{"$f":"SUMIFS(Sheet1!S71_AdjustmentAmount,Sheet1!S71_SA34dCode,$AC:$AC,Sheet1!S71_DepCode,$AD:$AD)","v":0},0,0,{"$f":"SUMIFS(Sheet1!S71_OY1AdjustedBudget,Sheet1!S71_SA34dCode,$AC:$AC,Sheet1!S71_DepCode,$AD:$AD)","v":0},{"$f":"SUMIFS(Sheet1!S71_OY2AdjustedBudget,Sheet1!S71_SA34dCode,$AC:$AC,Sheet1!S71_DepCode,$AD:$AD)","v":0},null,null,null,null,null,null,null,null,null,null,null,null,null,null,null,"0440","DP"]
["Outfall Sewers",null,{"$f":"SUMIFS(Sheet1!S71_OriginalBudget,Sheet1!S71_SA34dCode,$AC:$AC,Sheet1!S71_DepCode,$AD:$AD)","v":0},{"$f":"SUMIFS(Sheet1!S71_SpecialAdjustedBudget,Sheet1!S71_SA34dCode,$AC:$AC,Sheet1!S71_DepCode,$AD:$AD)","v":0},null,null,null,null,{"$f":"SUMIFS(Sheet1!S71_AdjustmentAmount,Sheet1!S71_SA34dCode,$AC:$AC,Sheet1!S71_DepCode,$AD:$AD)","v":0},0,0,{"$f":"SUMIFS(Sheet1!S71_OY1AdjustedBudget,Sheet1!S71_SA34dCode,$AC:$AC,Sheet1!S71_DepCode,$AD:$AD)","v":0},{"$f":"SUMIFS(Sheet1!S71_OY2AdjustedBudget,Sheet1!S71_SA34dCode,$AC:$AC,Sheet1!S71_DepCode,$AD:$AD)","v":0},null,null,null,null,null,null,null,null,null,null,null,null,null,null,null,"0450","DP"]
["Toilet Facilities",null,{"$f":"SUMIFS(Sheet1!S71_OriginalBudget,Sheet1!S71_SA34dCode,$AC:$AC,Sheet1!S71_DepCode,$AD:$AD)","v":0},{"$f":"SUMIFS(Sheet1!S71_SpecialAdjustedBudget,Sheet1!S71_SA34dCode,$AC:$AC,Sheet1!S71_DepCode,$AD:$AD)","v":0},null,null,null,null,{"$f":"SUMIFS(Sheet1!S71_AdjustmentAmount,Sheet1!S71_SA34dCode,$AC:$AC,Sheet1!S71_DepCode,$AD:$AD)","v":0},0,0,{"$f":"SUMIFS(Sheet1!S71_OY1AdjustedBudget,Sheet1!S71_SA34dCode,$AC:$AC,Sheet1!S71_DepCode,$AD:$AD)","v":0},{"$f":"SUMIFS(Sheet1!S71_OY2AdjustedBudget,Sheet1!S71_SA34dCode,$AC:$AC,Sheet1!S71_DepCode,$AD:$AD)","v":0},null,null,null,null,null,null,null,null,null,null,null,null,null,null,null,"0460","DP"]
["Capital Spares",null,{"$f":"SUMIFS(Sheet1!S71_OriginalBudget,Sheet1!S71_SA34dCode,$AC:$AC,Sheet1!S71_DepCode,$AD:$AD)","v":0},{"$f":"SUMIFS(Sheet1!S71_SpecialAdjustedBudget,Sheet1!S71_SA34dCode,$AC:$AC,Sheet1!S71_DepCode,$AD:$AD)","v":0},null,null,null,null,{"$f":"SUMIFS(Sheet1!S71_AdjustmentAmount,Sheet1!S71_SA34dCode,$AC:$AC,Sheet1!S71_DepCode,$AD:$AD)","v":0},0,0,{"$f":"SUMIFS(Sheet1!S71_OY1AdjustedBudget,Sheet1!S71_SA34dCode,$AC:$AC,Sheet1!S71_DepCode,$AD:$AD)","v":0},{"$f":"SUMIFS(Sheet1!S71_OY2AdjustedBudget,Sheet1!S71_SA34dCode,$AC:$AC,Sheet1!S71_DepCode,$AD:$AD)","v":0},null,null,null,null,null,null,null,null,null,null,null,null,null,null,null,"0470","DP"]
["Solid Waste Infrastructure",null,{"$f":"SUM(C47:C53)","v":4291272},{"$f":"SUM(D47:D53)","v":0},0,0,0,0,-3427079,-3427079,864193,804650,840859,null,null,null,null,null,null,null,null,null,null,null,null,null,null,null,null,"DP"]
["Landfill Sites",null,{"$f":"SUMIFS(Sheet1!S71_OriginalBudget,Sheet1!S71_SA34dCode,$AC:$AC,Sheet1!S71_DepCode,$AD:$AD)","v":3921022},{"$f":"SUMIFS(Sheet1!S71_SpecialAdjustedBudget,Sheet1!S71_SA34dCode,$AC:$AC,Sheet1!S71_DepCode,$AD:$AD)","v":0},null,null,null,null,{"$f":"SUMIFS(Sheet1!S71_AdjustmentAmount,Sheet1!S71_SA34dCode,$AC:$AC,Sheet1!S71_DepCode,$AD:$AD)","v":-3427079},-3427079,493943,{"$f":"SUMIFS(Sheet1!S71_OY1AdjustedBudget,Sheet1!S71_SA34dCode,$AC:$AC,Sheet1!S71_DepCode,$AD:$AD)","v":334400},{"$f":"SUMIFS(Sheet1!S71_OY2AdjustedBudget,Sheet1!S71_SA34dCode,$AC:$AC,Sheet1!S71_DepCode,$AD:$AD)","v":349448},null,null,null,null,null,null,null,null,null,null,null,null,null,null,null,"0490","DP"]
["Waste Transfer Stations",null,{"$f":"SUMIFS(Sheet1!S71_OriginalBudget,Sheet1!S71_SA34dCode,$AC:$AC,Sheet1!S71_DepCode,$AD:$AD)","v":0},{"$f":"SUMIFS(Sheet1!S71_SpecialAdjustedBudget,Sheet1!S71_SA34dCode,$AC:$AC,Sheet1!S71_DepCode,$AD:$AD)","v":0},null,null,null,null,{"$f":"SUMIFS(Sheet1!S71_AdjustmentAmount,Sheet1!S71_SA34dCode,$AC:$AC,Sheet1!S71_DepCode,$AD:$AD)","v":0},0,0,{"$f":"SUMIFS(Sheet1!S71_OY1AdjustedBudget,Sheet1!S71_SA34dCode,$AC:$AC,Sheet1!S71_DepCode,$AD:$AD)","v":0},{"$f":"SUMIFS(Sheet1!S71_OY2AdjustedBudget,Sheet1!S71_SA34dCode,$AC:$AC,Sheet1!S71_DepCode,$AD:$AD)","v":0},null,null,null,null,null,null,null,null,null,null,null,null,null,null,null,"0500","DP"]
["Waste Processing Facilities",null,{"$f":"SUMIFS(Sheet1!S71_OriginalBudget,Sheet1!S71_SA34dCode,$AC:$AC,Sheet1!S71_DepCode,$AD:$AD)","v":370250},{"$f":"SUMIFS(Sheet1!S71_SpecialAdjustedBudget,Sheet1!S71_SA34dCode,$AC:$AC,Sheet1!S71_DepCode,$AD:$AD)","v":0},null,null,null,null,{"$f":"SUMIFS(Sheet1!S71_AdjustmentAmount,Sheet1!S71_SA34dCode,$AC:$AC,Sheet1!S71_DepCode,$AD:$AD)","v":0},0,370250,{"$f":"SUMIFS(Sheet1!S71_OY1AdjustedBudget,Sheet1!S71_SA34dCode,$AC:$AC,Sheet1!S71_DepCode,$AD:$AD)","v":470250},{"$f":"SUMIFS(Sheet1!S71_OY2AdjustedBudget,Sheet1!S71_SA34dCode,$AC:$AC,Sheet1!S71_DepCode,$AD:$AD)","v":491411},null,null,null,null,null,null,null,null,null,null,null,null,null,null,null,"0510","DP"]
["Waste Drop-off Points",null,{"$f":"SUMIFS(Sheet1!S71_OriginalBudget,Sheet1!S71_SA34dCode,$AC:$AC,Sheet1!S71_DepCode,$AD:$AD)","v":0},{"$f":"SUMIFS(Sheet1!S71_SpecialAdjustedBudget,Sheet1!S71_SA34dCode,$AC:$AC,Sheet1!S71_DepCode,$AD:$AD)","v":0},null,null,null,null,{"$f":"SUMIFS(Sheet1!S71_AdjustmentAmount,Sheet1!S71_SA34dCode,$AC:$AC,Sheet1!S71_DepCode,$AD:$AD)","v":0},0,0,{"$f":"SUMIFS(Sheet1!S71_OY1AdjustedBudget,Sheet1!S71_SA34dCode,$AC:$AC,Sheet1!S71_DepCode,$AD:$AD)","v":0},{"$f":"SUMIFS(Sheet1!S71_OY2AdjustedBudget,Sheet1!S71_SA34dCode,$AC:$AC,Sheet1!S71_DepCode,$AD:$AD)","v":0},null,null,null,null,null,null,null,null,null,null,null,null,null,null,null,"0520","DP"]
["Waste Separation Facilities",null,{"$f":"SUMIFS(Sheet1!S71_OriginalBudget,Sheet1!S71_SA34dCode,$AC:$AC,Sheet1!S71_DepCode,$AD:$AD)","v":0},{"$f":"SUMIFS(Sheet1!S71_SpecialAdjustedBudget,Sheet1!S71_SA34dCode,$AC:$AC,Sheet1!S71_DepCode,$AD:$AD)","v":0},null,null,null,null,{"$f":"SUMIFS(Sheet1!S71_AdjustmentAmount,Sheet1!S71_SA34dCode,$AC:$AC,Sheet1!S71_DepCode,$AD:$AD)","v":0},0,0,{"$f":"SUMIFS(Sheet1!S71_OY1AdjustedBudget,Sheet1!S71_SA34dCode,$AC:$AC,Sheet1!S71_DepCode,$AD:$AD)","v":0},{"$f":"SUMIFS(Sheet1!S71_OY2AdjustedBudget,Sheet1!S71_SA34dCode,$AC:$AC,Sheet1!S71_DepCode,$AD:$AD)","v":0},null,null,null,null,null,null,null,null,null,null,null,null,null,null,null,"0530","DP"]
["Electricity Generation Facilities",null,{"$f":"SUMIFS(Sheet1!S71_OriginalBudget,Sheet1!S71_SA34dCode,$AC:$AC,Sheet1!S71_DepCode,$AD:$AD)","v":0},{"$f":"SUMIFS(Sheet1!S71_SpecialAdjustedBudget,Sheet1!S71_SA34dCode,$AC:$AC,Sheet1!S71_DepCode,$AD:$AD)","v":0},null,null,null,null,{"$f":"SUMIFS(Sheet1!S71_AdjustmentAmount,Sheet1!S71_SA34dCode,$AC:$AC,Sheet1!S71_DepCode,$AD:$AD)","v":0},0,0,{"$f":"SUMIFS(Sheet1!S71_OY1AdjustedBudget,Sheet1!S71_SA34dCode,$AC:$AC,Sheet1!S71_DepCode,$AD:$AD)","v":0},{"$f":"SUMIFS(Sheet1!S71_OY2AdjustedBudget,Sheet1!S71_SA34dCode,$AC:$AC,Sheet1!S71_DepCode,$AD:$AD)","v":0},null,null,null,null,null,null,null,null,null,null,null,null,null,null,null,"0540","DP"]
["Capital Spares",null,{"$f":"SUMIFS(Sheet1!S71_OriginalBudget,Sheet1!S71_SA34dCode,$AC:$AC,Sheet1!S71_DepCode,$AD:$AD)","v":0},{"$f":"SUMIFS(Sheet1!S71_SpecialAdjustedBudget,Sheet1!S71_SA34dCode,$AC:$AC,Sheet1!S71_DepCode,$AD:$AD)","v":0},null,null,null,null,{"$f":"SUMIFS(Sheet1!S71_AdjustmentAmount,Sheet1!S71_SA34dCode,$AC:$AC,Sheet1!S71_DepCode,$AD:$AD)","v":0},0,0,{"$f":"SUMIFS(Sheet1!S71_OY1AdjustedBudget,Sheet1!S71_SA34dCode,$AC:$AC,Sheet1!S71_DepCode,$AD:$AD)","v":0},{"$f":"SUMIFS(Sheet1!S71_OY2AdjustedBudget,Sheet1!S71_SA34dCode,$AC:$AC,Sheet1!S71_DepCode,$AD:$AD)","v":0},null,null,null,null,null,null,null,null,null,null,null,null,null,null,null,"0550","DP"]
["Rail Infrastructure",null,{"$f":"SUM(C55:C63)","v":0},{"$f":"SUM(D55:D63)","v":0},0,0,0,0,0,0,0,0,0,null,null,null,null,null,null,null,null,null,null,null,null,null,null,null,null,"DP"]
["Rail Lines",null,{"$f":"SUMIFS(Sheet1!S71_OriginalBudget,Sheet1!S71_SA34dCode,$AC:$AC,Sheet1!S71_DepCode,$AD:$AD)","v":0},{"$f":"SUMIFS(Sheet1!S71_SpecialAdjustedBudget,Sheet1!S71_SA34dCode,$AC:$AC,Sheet1!S71_DepCode,$AD:$AD)","v":0},null,null,null,null,{"$f":"SUMIFS(Sheet1!S71_AdjustmentAmount,Sheet1!S71_SA34dCode,$AC:$AC,Sheet1!S71_DepCode,$AD:$AD)","v":0},0,0,{"$f":"SUMIFS(Sheet1!S71_OY1AdjustedBudget,Sheet1!S71_SA34dCode,$AC:$AC,Sheet1!S71_DepCode,$AD:$AD)","v":0},{"$f":"SUMIFS(Sheet1!S71_OY2AdjustedBudget,Sheet1!S71_SA34dCode,$AC:$AC,Sheet1!S71_DepCode,$AD:$AD)","v":0},null,null,null,null,null,null,null,null,null,null,null,null,null,null,null,"0570","DP"]
["Rail Structures",null,{"$f":"SUMIFS(Sheet1!S71_OriginalBudget,Sheet1!S71_SA34dCode,$AC:$AC,Sheet1!S71_DepCode,$AD:$AD)","v":0},{"$f":"SUMIFS(Sheet1!S71_SpecialAdjustedBudget,Sheet1!S71_SA34dCode,$AC:$AC,Sheet1!S71_DepCode,$AD:$AD)","v":0},null,null,null,null,{"$f":"SUMIFS(Sheet1!S71_AdjustmentAmount,Sheet1!S71_SA34dCode,$AC:$AC,Sheet1!S71_DepCode,$AD:$AD)","v":0},0,0,{"$f":"SUMIFS(Sheet1!S71_OY1AdjustedBudget,Sheet1!S71_SA34dCode,$AC:$AC,Sheet1!S71_DepCode,$AD:$AD)","v":0},{"$f":"SUMIFS(Sheet1!S71_OY2AdjustedBudget,Sheet1!S71_SA34dCode,$AC:$AC,Sheet1!S71_DepCode,$AD:$AD)","v":0},null,null,null,null,null,null,null,null,null,null,null,null,null,null,null,"0580","DP"]
["Rail Furniture",null,{"$f":"SUMIFS(Sheet1!S71_OriginalBudget,Sheet1!S71_SA34dCode,$AC:$AC,Sheet1!S71_DepCode,$AD:$AD)","v":0},{"$f":"SUMIFS(Sheet1!S71_SpecialAdjustedBudget,Sheet1!S71_SA34dCode,$AC:$AC,Sheet1!S71_DepCode,$AD:$AD)","v":0},null,null,null,null,{"$f":"SUMIFS(Sheet1!S71_AdjustmentAmount,Sheet1!S71_SA34dCode,$AC:$AC,Sheet1!S71_DepCode,$AD:$AD)","v":0},0,0,{"$f":"SUMIFS(Sheet1!S71_OY1AdjustedBudget,Sheet1!S71_SA34dCode,$AC:$AC,Sheet1!S71_DepCode,$AD:$AD)","v":0},{"$f":"SUMIFS(Sheet1!S71_OY2AdjustedBudget,Sheet1!S71_SA34dCode,$AC:$AC,Sheet1!S71_DepCode,$AD:$AD)","v":0},null,null,null,null,null,null,null,null,null,null,null,null,null,null,null,"0590","DP"]
["Drainage Collection",null,{"$f":"SUMIFS(Sheet1!S71_OriginalBudget,Sheet1!S71_SA34dCode,$AC:$AC,Sheet1!S71_DepCode,$AD:$AD)","v":0},{"$f":"SUMIFS(Sheet1!S71_SpecialAdjustedBudget,Sheet1!S71_SA34dCode,$AC:$AC,Sheet1!S71_DepCode,$AD:$AD)","v":0},null,null,null,null,{"$f":"SUMIFS(Sheet1!S71_AdjustmentAmount,Sheet1!S71_SA34dCode,$AC:$AC,Sheet1!S71_DepCode,$AD:$AD)","v":0},0,0,{"$f":"SUMIFS(Sheet1!S71_OY1AdjustedBudget,Sheet1!S71_SA34dCode,$AC:$AC,Sheet1!S71_DepCode,$AD:$AD)","v":0},{"$f":"SUMIFS(Sheet1!S71_OY2AdjustedBudget,Sheet1!S71_SA34dCode,$AC:$AC,Sheet1!S71_DepCode,$AD:$AD)","v":0},null,null,null,null,null,null,null,null,null,null,null,null,null,null,null,"0600","DP"]
["Storm water Conveyance",null,{"$f":"SUMIFS(Sheet1!S71_OriginalBudget,Sheet1!S71_SA34dCode,$AC:$AC,Sheet1!S71_DepCode,$AD:$AD)","v":0},{"$f":"SUMIFS(Sheet1!S71_SpecialAdjustedBudget,Sheet1!S71_SA34dCode,$AC:$AC,Sheet1!S71_DepCode,$AD:$AD)","v":0},null,null,null,null,{"$f":"SUMIFS(Sheet1!S71_AdjustmentAmount,Sheet1!S71_SA34dCode,$AC:$AC,Sheet1!S71_DepCode,$AD:$AD)","v":0},0,0,{"$f":"SUMIFS(Sheet1!S71_OY1AdjustedBudget,Sheet1!S71_SA34dCode,$AC:$AC,Sheet1!S71_DepCode,$AD:$AD)","v":0},{"$f":"SUMIFS(Sheet1!S71_OY2AdjustedBudget,Sheet1!S71_SA34dCode,$AC:$AC,Sheet1!S71_DepCode,$AD:$AD)","v":0},null,null,null,null,null,null,null,null,null,null,null,null,null,null,null,"0610","DP"]
["Attenuation",null,{"$f":"SUMIFS(Sheet1!S71_OriginalBudget,Sheet1!S71_SA34dCode,$AC:$AC,Sheet1!S71_DepCode,$AD:$AD)","v":0},{"$f":"SUMIFS(Sheet1!S71_SpecialAdjustedBudget,Sheet1!S71_SA34dCode,$AC:$AC,Sheet1!S71_DepCode,$AD:$AD)","v":0},null,null,null,null,{"$f":"SUMIFS(Sheet1!S71_AdjustmentAmount,Sheet1!S71_SA34dCode,$AC:$AC,Sheet1!S71_DepCode,$AD:$AD)","v":0},0,0,{"$f":"SUMIFS(Sheet1!S71_OY1AdjustedBudget,Sheet1!S71_SA34dCode,$AC:$AC,Sheet1!S71_DepCode,$AD:$AD)","v":0},{"$f":"SUMIFS(Sheet1!S71_OY2AdjustedBudget,Sheet1!S71_SA34dCode,$AC:$AC,Sheet1!S71_DepCode,$AD:$AD)","v":0},null,null,null,null,null,null,null,null,null,null,null,null,null,null,null,"0620","DP"]
["MV Substations",null,{"$f":"SUMIFS(Sheet1!S71_OriginalBudget,Sheet1!S71_SA34dCode,$AC:$AC,Sheet1!S71_DepCode,$AD:$AD)","v":0},{"$f":"SUMIFS(Sheet1!S71_SpecialAdjustedBudget,Sheet1!S71_SA34dCode,$AC:$AC,Sheet1!S71_DepCode,$AD:$AD)","v":0},null,null,null,null,{"$f":"SUMIFS(Sheet1!S71_AdjustmentAmount,Sheet1!S71_SA34dCode,$AC:$AC,Sheet1!S71_DepCode,$AD:$AD)","v":0},0,0,{"$f":"SUMIFS(Sheet1!S71_OY1AdjustedBudget,Sheet1!S71_SA34dCode,$AC:$AC,Sheet1!S71_DepCode,$AD:$AD)","v":0},{"$f":"SUMIFS(Sheet1!S71_OY2AdjustedBudget,Sheet1!S71_SA34dCode,$AC:$AC,Sheet1!S71_DepCode,$AD:$AD)","v":0},null,null,null,null,null,null,null,null,null,null,null,null,null,null,null,"0630","DP"]
["LV Networks",null,{"$f":"SUMIFS(Sheet1!S71_OriginalBudget,Sheet1!S71_SA34dCode,$AC:$AC,Sheet1!S71_DepCode,$AD:$AD)","v":0},{"$f":"SUMIFS(Sheet1!S71_SpecialAdjustedBudget,Sheet1!S71_SA34dCode,$AC:$AC,Sheet1!S71_DepCode,$AD:$AD)","v":0},null,null,null,null,{"$f":"SUMIFS(Sheet1!S71_AdjustmentAmount,Sheet1!S71_SA34dCode,$AC:$AC,Sheet1!S71_DepCode,$AD:$AD)","v":0},0,0,{"$f":"SUMIFS(Sheet1!S71_OY1AdjustedBudget,Sheet1!S71_SA34dCode,$AC:$AC,Sheet1!S71_DepCode,$AD:$AD)","v":0},{"$f":"SUMIFS(Sheet1!S71_OY2AdjustedBudget,Sheet1!S71_SA34dCode,$AC:$AC,Sheet1!S71_DepCode,$AD:$AD)","v":0},null,null,null,null,null,null,null,null,null,null,null,null,null,null,null,"0640","DP"]
["Capital Spares",null,{"$f":"SUMIFS(Sheet1!S71_OriginalBudget,Sheet1!S71_SA34dCode,$AC:$AC,Sheet1!S71_DepCode,$AD:$AD)","v":0},{"$f":"SUMIFS(Sheet1!S71_SpecialAdjustedBudget,Sheet1!S71_SA34dCode,$AC:$AC,Sheet1!S71_DepCode,$AD:$AD)","v":0},null,null,null,null,{"$f":"SUMIFS(Sheet1!S71_AdjustmentAmount,Sheet1!S71_SA34dCode,$AC:$AC,Sheet1!S71_DepCode,$AD:$AD)","v":0},0,0,{"$f":"SUMIFS(Sheet1!S71_OY1AdjustedBudget,Sheet1!S71_SA34dCode,$AC:$AC,Sheet1!S71_DepCode,$AD:$AD)","v":0},{"$f":"SUMIFS(Sheet1!S71_OY2AdjustedBudget,Sheet1!S71_SA34dCode,$AC:$AC,Sheet1!S71_DepCode,$AD:$AD)","v":0},null,null,null,null,null,null,null,null,null,null,null,null,null,null,null,"0650","DP"]
["Coastal Infrastructure",null,{"$f":"SUM(C65:C69)","v":0},0,0,0,0,0,0,0,0,0,0,null,null,null,null,null,null,null,null,null,null,null,null,null,null,null,null,"DP"]
["Sand Pumps",null,{"$f":"SUMIFS(Sheet1!S71_OriginalBudget,Sheet1!S71_SA34dCode,$AC:$AC,Sheet1!S71_DepCode,$AD:$AD)","v":0},{"$f":"SUMIFS(Sheet1!S71_SpecialAdjustedBudget,Sheet1!S71_SA34dCode,$AC:$AC,Sheet1!S71_DepCode,$AD:$AD)","v":0},null,null,null,null,{"$f":"SUMIFS(Sheet1!S71_AdjustmentAmount,Sheet1!S71_SA34dCode,$AC:$AC,Sheet1!S71_DepCode,$AD:$AD)","v":0},0,0,{"$f":"SUMIFS(Sheet1!S71_OY1AdjustedBudget,Sheet1!S71_SA34dCode,$AC:$AC,Sheet1!S71_DepCode,$AD:$AD)","v":0},{"$f":"SUMIFS(Sheet1!S71_OY2AdjustedBudget,Sheet1!S71_SA34dCode,$AC:$AC,Sheet1!S71_DepCode,$AD:$AD)","v":0},null,null,null,null,null,null,null,null,null,null,null,null,null,null,null,"0670","DP"]
["Piers",null,{"$f":"SUMIFS(Sheet1!S71_OriginalBudget,Sheet1!S71_SA34dCode,$AC:$AC,Sheet1!S71_DepCode,$AD:$AD)","v":0},{"$f":"SUMIFS(Sheet1!S71_SpecialAdjustedBudget,Sheet1!S71_SA34dCode,$AC:$AC,Sheet1!S71_DepCode,$AD:$AD)","v":0},null,null,null,null,{"$f":"SUMIFS(Sheet1!S71_AdjustmentAmount,Sheet1!S71_SA34dCode,$AC:$AC,Sheet1!S71_DepCode,$AD:$AD)","v":0},0,0,{"$f":"SUMIFS(Sheet1!S71_OY1AdjustedBudget,Sheet1!S71_SA34dCode,$AC:$AC,Sheet1!S71_DepCode,$AD:$AD)","v":0},{"$f":"SUMIFS(Sheet1!S71_OY2AdjustedBudget,Sheet1!S71_SA34dCode,$AC:$AC,Sheet1!S71_DepCode,$AD:$AD)","v":0},null,null,null,null,null,null,null,null,null,null,null,null,null,null,null,"0680","DP"]
["Revetments",null,{"$f":"SUMIFS(Sheet1!S71_OriginalBudget,Sheet1!S71_SA34dCode,$AC:$AC,Sheet1!S71_DepCode,$AD:$AD)","v":0},{"$f":"SUMIFS(Sheet1!S71_SpecialAdjustedBudget,Sheet1!S71_SA34dCode,$AC:$AC,Sheet1!S71_DepCode,$AD:$AD)","v":0},null,null,null,null,{"$f":"SUMIFS(Sheet1!S71_AdjustmentAmount,Sheet1!S71_SA34dCode,$AC:$AC,Sheet1!S71_DepCode,$AD:$AD)","v":0},0,0,{"$f":"SUMIFS(Sheet1!S71_OY1AdjustedBudget,Sheet1!S71_SA34dCode,$AC:$AC,Sheet1!S71_DepCode,$AD:$AD)","v":0},{"$f":"SUMIFS(Sheet1!S71_OY2AdjustedBudget,Sheet1!S71_SA34dCode,$AC:$AC,Sheet1!S71_DepCode,$AD:$AD)","v":0},null,null,null,null,null,null,null,null,null,null,null,null,null,null,null,"0690","DP"]
["Promenades",null,{"$f":"SUMIFS(Sheet1!S71_OriginalBudget,Sheet1!S71_SA34dCode,$AC:$AC,Sheet1!S71_DepCode,$AD:$AD)","v":0},{"$f":"SUMIFS(Sheet1!S71_SpecialAdjustedBudget,Sheet1!S71_SA34dCode,$AC:$AC,Sheet1!S71_DepCode,$AD:$AD)","v":0},null,null,null,null,{"$f":"SUMIFS(Sheet1!S71_AdjustmentAmount,Sheet1!S71_SA34dCode,$AC:$AC,Sheet1!S71_DepCode,$AD:$AD)","v":0},0,0,{"$f":"SUMIFS(Sheet1!S71_OY1AdjustedBudget,Sheet1!S71_SA34dCode,$AC:$AC,Sheet1!S71_DepCode,$AD:$AD)","v":0},{"$f":"SUMIFS(Sheet1!S71_OY2AdjustedBudget,Sheet1!S71_SA34dCode,$AC:$AC,Sheet1!S71_DepCode,$AD:$AD)","v":0},null,null,null,null,null,null,null,null,null,null,null,null,null,null,null,"0700","DP"]
["Capital Spares",null,{"$f":"SUMIFS(Sheet1!S71_OriginalBudget,Sheet1!S71_SA34dCode,$AC:$AC,Sheet1!S71_DepCode,$AD:$AD)","v":0},{"$f":"SUMIFS(Sheet1!S71_SpecialAdjustedBudget,Sheet1!S71_SA34dCode,$AC:$AC,Sheet1!S71_DepCode,$AD:$AD)","v":0},null,null,null,null,{"$f":"SUMIFS(Sheet1!S71_AdjustmentAmount,Sheet1!S71_SA34dCode,$AC:$AC,Sheet1!S71_DepCode,$AD:$AD)","v":0},0,0,{"$f":"SUMIFS(Sheet1!S71_OY1AdjustedBudget,Sheet1!S71_SA34dCode,$AC:$AC,Sheet1!S71_DepCode,$AD:$AD)","v":0},{"$f":"SUMIFS(Sheet1!S71_OY2AdjustedBudget,Sheet1!S71_SA34dCode,$AC:$AC,Sheet1!S71_DepCode,$AD:$AD)","v":0},null,null,null,null,null,null,null,null,null,null,null,null,null,null,null,"0710","DP"]
["Information and Communication Infrastructure",null,{"$f":"SUM(C71:C74)","v":0},0,0,0,0,0,0,0,0,0,0,null,null,null,null,null,null,null,null,null,null,null,null,null,null,null,null,"DP"]
["Data Centres",null,{"$f":"SUMIFS(Sheet1!S71_OriginalBudget,Sheet1!S71_SA34dCode,$AC:$AC,Sheet1!S71_DepCode,$AD:$AD)","v":0},{"$f":"SUMIFS(Sheet1!S71_SpecialAdjustedBudget,Sheet1!S71_SA34dCode,$AC:$AC,Sheet1!S71_DepCode,$AD:$AD)","v":0},null,null,null,null,{"$f":"SUMIFS(Sheet1!S71_AdjustmentAmount,Sheet1!S71_SA34dCode,$AC:$AC,Sheet1!S71_DepCode,$AD:$AD)","v":0},0,0,{"$f":"SUMIFS(Sheet1!S71_OY1AdjustedBudget,Sheet1!S71_SA34dCode,$AC:$AC,Sheet1!S71_DepCode,$AD:$AD)","v":0},{"$f":"SUMIFS(Sheet1!S71_OY2AdjustedBudget,Sheet1!S71_SA34dCode,$AC:$AC,Sheet1!S71_DepCode,$AD:$AD)","v":0},null,null,null,null,null,null,null,null,null,null,null,null,null,null,null,"0730","DP"]
["Core Layers",null,{"$f":"SUMIFS(Sheet1!S71_OriginalBudget,Sheet1!S71_SA34dCode,$AC:$AC,Sheet1!S71_DepCode,$AD:$AD)","v":0},{"$f":"SUMIFS(Sheet1!S71_SpecialAdjustedBudget,Sheet1!S71_SA34dCode,$AC:$AC,Sheet1!S71_DepCode,$AD:$AD)","v":0},null,null,null,null,{"$f":"SUMIFS(Sheet1!S71_AdjustmentAmount,Sheet1!S71_SA34dCode,$AC:$AC,Sheet1!S71_DepCode,$AD:$AD)","v":0},0,0,{"$f":"SUMIFS(Sheet1!S71_OY1AdjustedBudget,Sheet1!S71_SA34dCode,$AC:$AC,Sheet1!S71_DepCode,$AD:$AD)","v":0},{"$f":"SUMIFS(Sheet1!S71_OY2AdjustedBudget,Sheet1!S71_SA34dCode,$AC:$AC,Sheet1!S71_DepCode,$AD:$AD)","v":0},null,null,null,null,null,null,null,null,null,null,null,null,null,null,null,"0740","DP"]
["Distribution Layers",null,{"$f":"SUMIFS(Sheet1!S71_OriginalBudget,Sheet1!S71_SA34dCode,$AC:$AC,Sheet1!S71_DepCode,$AD:$AD)","v":0},{"$f":"SUMIFS(Sheet1!S71_SpecialAdjustedBudget,Sheet1!S71_SA34dCode,$AC:$AC,Sheet1!S71_DepCode,$AD:$AD)","v":0},null,null,null,null,{"$f":"SUMIFS(Sheet1!S71_AdjustmentAmount,Sheet1!S71_SA34dCode,$AC:$AC,Sheet1!S71_DepCode,$AD:$AD)","v":0},{"$f":"SUM(E73:I73)","v":0},{"$f":"IF(D73=0,C73+J73,D73+J73)","v":0},{"$f":"SUMIFS(Sheet1!S71_OY1AdjustedBudget,Sheet1!S71_SA34dCode,$AC:$AC,Sheet1!S71_DepCode,$AD:$AD)","v":0},{"$f":"SUMIFS(Sheet1!S71_OY2AdjustedBudget,Sheet1!S71_SA34dCode,$AC:$AC,Sheet1!S71_DepCode,$AD:$AD)","v":0},null,null,null,null,null,null,null,null,null,null,null,null,null,null,null,"0750","DP"]
["Capital Spares",null,{"$f":"SUMIFS(Sheet1!S71_OriginalBudget,Sheet1!S71_SA34dCode,$AC:$AC,Sheet1!S71_DepCode,$AD:$AD)","v":0},{"$f":"SUMIFS(Sheet1!S71_SpecialAdjustedBudget,Sheet1!S71_SA34dCode,$AC:$AC,Sheet1!S71_DepCode,$AD:$AD)","v":0},null,null,null,null,{"$f":"SUMIFS(Sheet1!S71_AdjustmentAmount,Sheet1!S71_SA34dCode,$AC:$AC,Sheet1!S71_DepCode,$AD:$AD)","v":0},0,0,{"$f":"SUMIFS(Sheet1!S71_OY1AdjustedBudget,Sheet1!S71_SA34dCode,$AC:$AC,Sheet1!S71_DepCode,$AD:$AD)","v":0},{"$f":"SUMIFS(Sheet1!S71_OY2AdjustedBudget,Sheet1!S71_SA34dCode,$AC:$AC,Sheet1!S71_DepCode,$AD:$AD)","v":0},null,null,null,null,null,null,null,null,null,null,null,null,null,null,null,"0760","DP"]
[null,null,null,null,null,null,null,null,null,null,null,null,null,null,null,null,null,null,null,null,null,null,null,null,null,null,null,null,null,"DP"]
["Community Assets",null,{"$f":"+C77+C100","v":4019708},{"$f":"+D77+D100","v":0},{"$f":"+E77+E100","v":0},0,0,0,251157,251157,4270865,6778422,7064589,null,null,null,null,null,null,null,null,null,null,null,null,null,null,null,null,"DP"]
["Community Facilities",null,{"$f":"SUM(C78:C99)","v":2743944},{"$f":"SUM(D78:D99)","v":0},{"$f":"SUM(E78:E99)","v":0},0,0,0,368145,368145,3112089,5573635,5824450,null,null,null,null,null,null,null,null,null,null,null,null,null,null,null,null,"DP"]
["Halls",null,{"$f":"SUMIFS(Sheet1!S71_OriginalBudget,Sheet1!S71_SA34dCode,$AC:$AC,Sheet1!S71_DepCode,$AD:$AD)","v":0},{"$f":"SUMIFS(Sheet1!S71_SpecialAdjustedBudget,Sheet1!S71_SA34dCode,$AC:$AC,Sheet1!S71_DepCode,$AD:$AD)","v":0},null,null,null,null,{"$f":"SUMIFS(Sheet1!S71_AdjustmentAmount,Sheet1!S71_SA34dCode,$AC:$AC,Sheet1!S71_DepCode,$AD:$AD)","v":0},0,0,{"$f":"SUMIFS(Sheet1!S71_OY1AdjustedBudget,Sheet1!S71_SA34dCode,$AC:$AC,Sheet1!S71_DepCode,$AD:$AD)","v":0},{"$f":"SUMIFS(Sheet1!S71_OY2AdjustedBudget,Sheet1!S71_SA34dCode,$AC:$AC,Sheet1!S71_DepCode,$AD:$AD)","v":0},null,null,null,null,null,null,null,null,null,null,null,null,null,null,null,"0790","DP"]
["Centres",null,{"$f":"SUMIFS(Sheet1!S71_OriginalBudget,Sheet1!S71_SA34dCode,$AC:$AC,Sheet1!S71_DepCode,$AD:$AD)","v":1850200},{"$f":"SUMIFS(Sheet1!S71_SpecialAdjustedBudget,Sheet1!S71_SA34dCode,$AC:$AC,Sheet1!S71_DepCode,$AD:$AD)","v":0},null,null,null,null,{"$f":"SUMIFS(Sheet1!S71_AdjustmentAmount,Sheet1!S71_SA34dCode,$AC:$AC,Sheet1!S71_DepCode,$AD:$AD)","v":526969},526969,2377169,{"$f":"SUMIFS(Sheet1!S71_OY1AdjustedBudget,Sheet1!S71_SA34dCode,$AC:$AC,Sheet1!S71_DepCode,$AD:$AD)","v":3657500},{"$f":"SUMIFS(Sheet1!S71_OY2AdjustedBudget,Sheet1!S71_SA34dCode,$AC:$AC,Sheet1!S71_DepCode,$AD:$AD)","v":3822088},null,null,null,null,null,null,null,null,null,null,null,null,null,null,null,"0800","DP"]
["Crèches",null,{"$f":"SUMIFS(Sheet1!S71_OriginalBudget,Sheet1!S71_SA34dCode,$AC:$AC,Sheet1!S71_DepCode,$AD:$AD)","v":31350},{"$f":"SUMIFS(Sheet1!S71_SpecialAdjustedBudget,Sheet1!S71_SA34dCode,$AC:$AC,Sheet1!S71_DepCode,$AD:$AD)","v":0},null,null,null,null,{"$f":"SUMIFS(Sheet1!S71_AdjustmentAmount,Sheet1!S71_SA34dCode,$AC:$AC,Sheet1!S71_DepCode,$AD:$AD)","v":4578},4578,35928,{"$f":"SUMIFS(Sheet1!S71_OY1AdjustedBudget,Sheet1!S71_SA34dCode,$AC:$AC,Sheet1!S71_DepCode,$AD:$AD)","v":31350},{"$f":"SUMIFS(Sheet1!S71_OY2AdjustedBudget,Sheet1!S71_SA34dCode,$AC:$AC,Sheet1!S71_DepCode,$AD:$AD)","v":32761},null,null,null,null,null,null,null,null,null,null,null,null,null,null,null,"0810","DP"]
["Clinics/Care Centres",null,{"$f":"SUMIFS(Sheet1!S71_OriginalBudget,Sheet1!S71_SA34dCode,$AC:$AC,Sheet1!S71_DepCode,$AD:$AD)","v":32395},{"$f":"SUMIFS(Sheet1!S71_SpecialAdjustedBudget,Sheet1!S71_SA34dCode,$AC:$AC,Sheet1!S71_DepCode,$AD:$AD)","v":0},null,null,null,null,{"$f":"SUMIFS(Sheet1!S71_AdjustmentAmount,Sheet1!S71_SA34dCode,$AC:$AC,Sheet1!S71_DepCode,$AD:$AD)","v":12499},12499,44894,{"$f":"SUMIFS(Sheet1!S71_OY1AdjustedBudget,Sheet1!S71_SA34dCode,$AC:$AC,Sheet1!S71_DepCode,$AD:$AD)","v":32395},{"$f":"SUMIFS(Sheet1!S71_OY2AdjustedBudget,Sheet1!S71_SA34dCode,$AC:$AC,Sheet1!S71_DepCode,$AD:$AD)","v":33853},null,null,null,null,null,null,null,null,null,null,null,null,null,null,null,"0820","DP"]
["Fire/Ambulance Stations",null,{"$f":"SUMIFS(Sheet1!S71_OriginalBudget,Sheet1!S71_SA34dCode,$AC:$AC,Sheet1!S71_DepCode,$AD:$AD)","v":0},{"$f":"SUMIFS(Sheet1!S71_SpecialAdjustedBudget,Sheet1!S71_SA34dCode,$AC:$AC,Sheet1!S71_DepCode,$AD:$AD)","v":0},null,null,null,null,{"$f":"SUMIFS(Sheet1!S71_AdjustmentAmount,Sheet1!S71_SA34dCode,$AC:$AC,Sheet1!S71_DepCode,$AD:$AD)","v":0},0,0,{"$f":"SUMIFS(Sheet1!S71_OY1AdjustedBudget,Sheet1!S71_SA34dCode,$AC:$AC,Sheet1!S71_DepCode,$AD:$AD)","v":0},{"$f":"SUMIFS(Sheet1!S71_OY2AdjustedBudget,Sheet1!S71_SA34dCode,$AC:$AC,Sheet1!S71_DepCode,$AD:$AD)","v":0},null,null,null,null,null,null,null,null,null,null,null,null,null,null,null,"0830","DP"]
["Testing Stations",null,{"$f":"SUMIFS(Sheet1!S71_OriginalBudget,Sheet1!S71_SA34dCode,$AC:$AC,Sheet1!S71_DepCode,$AD:$AD)","v":0},{"$f":"SUMIFS(Sheet1!S71_SpecialAdjustedBudget,Sheet1!S71_SA34dCode,$AC:$AC,Sheet1!S71_DepCode,$AD:$AD)","v":0},null,null,null,null,{"$f":"SUMIFS(Sheet1!S71_AdjustmentAmount,Sheet1!S71_SA34dCode,$AC:$AC,Sheet1!S71_DepCode,$AD:$AD)","v":0},0,0,{"$f":"SUMIFS(Sheet1!S71_OY1AdjustedBudget,Sheet1!S71_SA34dCode,$AC:$AC,Sheet1!S71_DepCode,$AD:$AD)","v":0},{"$f":"SUMIFS(Sheet1!S71_OY2AdjustedBudget,Sheet1!S71_SA34dCode,$AC:$AC,Sheet1!S71_DepCode,$AD:$AD)","v":0},null,null,null,null,null,null,null,null,null,null,null,null,null,null,null,"0840","DP"]
["Museums",null,{"$f":"SUMIFS(Sheet1!S71_OriginalBudget,Sheet1!S71_SA34dCode,$AC:$AC,Sheet1!S71_DepCode,$AD:$AD)","v":0},{"$f":"SUMIFS(Sheet1!S71_SpecialAdjustedBudget,Sheet1!S71_SA34dCode,$AC:$AC,Sheet1!S71_DepCode,$AD:$AD)","v":0},null,null,null,null,{"$f":"SUMIFS(Sheet1!S71_AdjustmentAmount,Sheet1!S71_SA34dCode,$AC:$AC,Sheet1!S71_DepCode,$AD:$AD)","v":0},0,0,{"$f":"SUMIFS(Sheet1!S71_OY1AdjustedBudget,Sheet1!S71_SA34dCode,$AC:$AC,Sheet1!S71_DepCode,$AD:$AD)","v":0},{"$f":"SUMIFS(Sheet1!S71_OY2AdjustedBudget,Sheet1!S71_SA34dCode,$AC:$AC,Sheet1!S71_DepCode,$AD:$AD)","v":0},null,null,null,null,null,null,null,null,null,null,null,null,null,null,null,"0850","DP"]
["Galleries",null,{"$f":"SUMIFS(Sheet1!S71_OriginalBudget,Sheet1!S71_SA34dCode,$AC:$AC,Sheet1!S71_DepCode,$AD:$AD)","v":0},{"$f":"SUMIFS(Sheet1!S71_SpecialAdjustedBudget,Sheet1!S71_SA34dCode,$AC:$AC,Sheet1!S71_DepCode,$AD:$AD)","v":0},null,null,null,null,{"$f":"SUMIFS(Sheet1!S71_AdjustmentAmount,Sheet1!S71_SA34dCode,$AC:$AC,Sheet1!S71_DepCode,$AD:$AD)","v":0},0,0,{"$f":"SUMIFS(Sheet1!S71_OY1AdjustedBudget,Sheet1!S71_SA34dCode,$AC:$AC,Sheet1!S71_DepCode,$AD:$AD)","v":0},{"$f":"SUMIFS(Sheet1!S71_OY2AdjustedBudget,Sheet1!S71_SA34dCode,$AC:$AC,Sheet1!S71_DepCode,$AD:$AD)","v":0},null,null,null,null,null,null,null,null,null,null,null,null,null,null,null,"0860","DP"]
["Theatres",null,{"$f":"SUMIFS(Sheet1!S71_OriginalBudget,Sheet1!S71_SA34dCode,$AC:$AC,Sheet1!S71_DepCode,$AD:$AD)","v":0},{"$f":"SUMIFS(Sheet1!S71_SpecialAdjustedBudget,Sheet1!S71_SA34dCode,$AC:$AC,Sheet1!S71_DepCode,$AD:$AD)","v":0},null,null,null,null,{"$f":"SUMIFS(Sheet1!S71_AdjustmentAmount,Sheet1!S71_SA34dCode,$AC:$AC,Sheet1!S71_DepCode,$AD:$AD)","v":0},0,0,{"$f":"SUMIFS(Sheet1!S71_OY1AdjustedBudget,Sheet1!S71_SA34dCode,$AC:$AC,Sheet1!S71_DepCode,$AD:$AD)","v":0},{"$f":"SUMIFS(Sheet1!S71_OY2AdjustedBudget,Sheet1!S71_SA34dCode,$AC:$AC,Sheet1!S71_DepCode,$AD:$AD)","v":0},null,null,null,null,null,null,null,null,null,null,null,null,null,null,null,"0870","DP"]
["Libraries",null,{"$f":"SUMIFS(Sheet1!S71_OriginalBudget,Sheet1!S71_SA34dCode,$AC:$AC,Sheet1!S71_DepCode,$AD:$AD)","v":79999},{"$f":"SUMIFS(Sheet1!S71_SpecialAdjustedBudget,Sheet1!S71_SA34dCode,$AC:$AC,Sheet1!S71_DepCode,$AD:$AD)","v":0},null,null,null,null,{"$f":"SUMIFS(Sheet1!S71_AdjustmentAmount,Sheet1!S71_SA34dCode,$AC:$AC,Sheet1!S71_DepCode,$AD:$AD)","v":-79999},-79999,0,{"$f":"SUMIFS(Sheet1!S71_OY1AdjustedBudget,Sheet1!S71_SA34dCode,$AC:$AC,Sheet1!S71_DepCode,$AD:$AD)","v":80465},{"$f":"SUMIFS(Sheet1!S71_OY2AdjustedBudget,Sheet1!S71_SA34dCode,$AC:$AC,Sheet1!S71_DepCode,$AD:$AD)","v":84086},null,null,null,null,null,null,null,null,null,null,null,null,null,null,null,"0880","DP"]
["Cemeteries/Crematoria",null,{"$f":"SUMIFS(Sheet1!S71_OriginalBudget,Sheet1!S71_SA34dCode,$AC:$AC,Sheet1!S71_DepCode,$AD:$AD)","v":0},{"$f":"SUMIFS(Sheet1!S71_SpecialAdjustedBudget,Sheet1!S71_SA34dCode,$AC:$AC,Sheet1!S71_DepCode,$AD:$AD)","v":0},null,null,null,null,{"$f":"SUMIFS(Sheet1!S71_AdjustmentAmount,Sheet1!S71_SA34dCode,$AC:$AC,Sheet1!S71_DepCode,$AD:$AD)","v":0},0,0,{"$f":"SUMIFS(Sheet1!S71_OY1AdjustedBudget,Sheet1!S71_SA34dCode,$AC:$AC,Sheet1!S71_DepCode,$AD:$AD)","v":0},{"$f":"SUMIFS(Sheet1!S71_OY2AdjustedBudget,Sheet1!S71_SA34dCode,$AC:$AC,Sheet1!S71_DepCode,$AD:$AD)","v":0},null,null,null,null,null,null,null,null,null,null,null,null,null,null,null,"0890","DP"]
["Police",null,{"$f":"SUMIFS(Sheet1!S71_OriginalBudget,Sheet1!S71_SA34dCode,$AC:$AC,Sheet1!S71_DepCode,$AD:$AD)","v":0},{"$f":"SUMIFS(Sheet1!S71_SpecialAdjustedBudget,Sheet1!S71_SA34dCode,$AC:$AC,Sheet1!S71_DepCode,$AD:$AD)","v":0},null,null,null,null,{"$f":"SUMIFS(Sheet1!S71_AdjustmentAmount,Sheet1!S71_SA34dCode,$AC:$AC,Sheet1!S71_DepCode,$AD:$AD)","v":0},0,0,{"$f":"SUMIFS(Sheet1!S71_OY1AdjustedBudget,Sheet1!S71_SA34dCode,$AC:$AC,Sheet1!S71_DepCode,$AD:$AD)","v":0},{"$f":"SUMIFS(Sheet1!S71_OY2AdjustedBudget,Sheet1!S71_SA34dCode,$AC:$AC,Sheet1!S71_DepCode,$AD:$AD)","v":0},null,null,null,null,null,null,null,null,null,null,null,null,null,null,null,"0900","DP"]
["Purls",null,{"$f":"SUMIFS(Sheet1!S71_OriginalBudget,Sheet1!S71_SA34dCode,$AC:$AC,Sheet1!S71_DepCode,$AD:$AD)","v":0},{"$f":"SUMIFS(Sheet1!S71_SpecialAdjustedBudget,Sheet1!S71_SA34dCode,$AC:$AC,Sheet1!S71_DepCode,$AD:$AD)","v":0},null,null,null,null,{"$f":"SUMIFS(Sheet1!S71_AdjustmentAmount,Sheet1!S71_SA34dCode,$AC:$AC,Sheet1!S71_DepCode,$AD:$AD)","v":0},0,0,{"$f":"SUMIFS(Sheet1!S71_OY1AdjustedBudget,Sheet1!S71_SA34dCode,$AC:$AC,Sheet1!S71_DepCode,$AD:$AD)","v":0},{"$f":"SUMIFS(Sheet1!S71_OY2AdjustedBudget,Sheet1!S71_SA34dCode,$AC:$AC,Sheet1!S71_DepCode,$AD:$AD)","v":0},null,null,null,null,null,null,null,null,null,null,null,null,null,null,null,"0910","DP"]
["Public Open Space",null,{"$f":"SUMIFS(Sheet1!S71_OriginalBudget,Sheet1!S71_SA34dCode,$AC:$AC,Sheet1!S71_DepCode,$AD:$AD)","v":0},{"$f":"SUMIFS(Sheet1!S71_SpecialAdjustedBudget,Sheet1!S71_SA34dCode,$AC:$AC,Sheet1!S71_DepCode,$AD:$AD)","v":0},null,null,null,null,{"$f":"SUMIFS(Sheet1!S71_AdjustmentAmount,Sheet1!S71_SA34dCode,$AC:$AC,Sheet1!S71_DepCode,$AD:$AD)","v":0},0,0,{"$f":"SUMIFS(Sheet1!S71_OY1AdjustedBudget,Sheet1!S71_SA34dCode,$AC:$AC,Sheet1!S71_DepCode,$AD:$AD)","v":0},{"$f":"SUMIFS(Sheet1!S71_OY2AdjustedBudget,Sheet1!S71_SA34dCode,$AC:$AC,Sheet1!S71_DepCode,$AD:$AD)","v":0},null,null,null,null,null,null,null,null,null,null,null,null,null,null,null,"0920","DP"]
["Nature Reserves",null,{"$f":"SUMIFS(Sheet1!S71_OriginalBudget,Sheet1!S71_SA34dCode,$AC:$AC,Sheet1!S71_DepCode,$AD:$AD)","v":0},{"$f":"SUMIFS(Sheet1!S71_SpecialAdjustedBudget,Sheet1!S71_SA34dCode,$AC:$AC,Sheet1!S71_DepCode,$AD:$AD)","v":0},null,null,null,null,{"$f":"SUMIFS(Sheet1!S71_AdjustmentAmount,Sheet1!S71_SA34dCode,$AC:$AC,Sheet1!S71_DepCode,$AD:$AD)","v":0},0,0,{"$f":"SUMIFS(Sheet1!S71_OY1AdjustedBudget,Sheet1!S71_SA34dCode,$AC:$AC,Sheet1!S71_DepCode,$AD:$AD)","v":0},{"$f":"SUMIFS(Sheet1!S71_OY2AdjustedBudget,Sheet1!S71_SA34dCode,$AC:$AC,Sheet1!S71_DepCode,$AD:$AD)","v":0},null,null,null,null,null,null,null,null,null,null,null,null,null,null,null,"0930","DP"]
["Public Ablution Facilities",null,{"$f":"SUMIFS(Sheet1!S71_OriginalBudget,Sheet1!S71_SA34dCode,$AC:$AC,Sheet1!S71_DepCode,$AD:$AD)","v":0},{"$f":"SUMIFS(Sheet1!S71_SpecialAdjustedBudget,Sheet1!S71_SA34dCode,$AC:$AC,Sheet1!S71_DepCode,$AD:$AD)","v":0},null,null,null,null,{"$f":"SUMIFS(Sheet1!S71_AdjustmentAmount,Sheet1!S71_SA34dCode,$AC:$AC,Sheet1!S71_DepCode,$AD:$AD)","v":0},0,0,{"$f":"SUMIFS(Sheet1!S71_OY1AdjustedBudget,Sheet1!S71_SA34dCode,$AC:$AC,Sheet1!S71_DepCode,$AD:$AD)","v":0},{"$f":"SUMIFS(Sheet1!S71_OY2AdjustedBudget,Sheet1!S71_SA34dCode,$AC:$AC,Sheet1!S71_DepCode,$AD:$AD)","v":0},null,null,null,null,null,null,null,null,null,null,null,null,null,null,null,"0940","DP"]
["Markets",null,{"$f":"SUMIFS(Sheet1!S71_OriginalBudget,Sheet1!S71_SA34dCode,$AC:$AC,Sheet1!S71_DepCode,$AD:$AD)","v":0},{"$f":"SUMIFS(Sheet1!S71_SpecialAdjustedBudget,Sheet1!S71_SA34dCode,$AC:$AC,Sheet1!S71_DepCode,$AD:$AD)","v":0},null,null,null,null,{"$f":"SUMIFS(Sheet1!S71_AdjustmentAmount,Sheet1!S71_SA34dCode,$AC:$AC,Sheet1!S71_DepCode,$AD:$AD)","v":0},0,0,{"$f":"SUMIFS(Sheet1!S71_OY1AdjustedBudget,Sheet1!S71_SA34dCode,$AC:$AC,Sheet1!S71_DepCode,$AD:$AD)","v":0},{"$f":"SUMIFS(Sheet1!S71_OY2AdjustedBudget,Sheet1!S71_SA34dCode,$AC:$AC,Sheet1!S71_DepCode,$AD:$AD)","v":0},null,null,null,null,null,null,null,null,null,null,null,null,null,null,null,"0950","DP"]
["Stalls",null,{"$f":"SUMIFS(Sheet1!S71_OriginalBudget,Sheet1!S71_SA34dCode,$AC:$AC,Sheet1!S71_DepCode,$AD:$AD)","v":750000},{"$f":"SUMIFS(Sheet1!S71_SpecialAdjustedBudget,Sheet1!S71_SA34dCode,$AC:$AC,Sheet1!S71_DepCode,$AD:$AD)","v":0},null,null,null,null,{"$f":"SUMIFS(Sheet1!S71_AdjustmentAmount,Sheet1!S71_SA34dCode,$AC:$AC,Sheet1!S71_DepCode,$AD:$AD)","v":-95902},-95902,654098,{"$f":"SUMIFS(Sheet1!S71_OY1AdjustedBudget,Sheet1!S71_SA34dCode,$AC:$AC,Sheet1!S71_DepCode,$AD:$AD)","v":1771925},{"$f":"SUMIFS(Sheet1!S71_OY2AdjustedBudget,Sheet1!S71_SA34dCode,$AC:$AC,Sheet1!S71_DepCode,$AD:$AD)","v":1851662},null,null,null,null,null,null,null,null,null,null,null,null,null,null,null,"0960","DP"]
["Abattoirs",null,{"$f":"SUMIFS(Sheet1!S71_OriginalBudget,Sheet1!S71_SA34dCode,$AC:$AC,Sheet1!S71_DepCode,$AD:$AD)","v":0},{"$f":"SUMIFS(Sheet1!S71_SpecialAdjustedBudget,Sheet1!S71_SA34dCode,$AC:$AC,Sheet1!S71_DepCode,$AD:$AD)","v":0},null,null,null,null,{"$f":"SUMIFS(Sheet1!S71_AdjustmentAmount,Sheet1!S71_SA34dCode,$AC:$AC,Sheet1!S71_DepCode,$AD:$AD)","v":0},0,0,{"$f":"SUMIFS(Sheet1!S71_OY1AdjustedBudget,Sheet1!S71_SA34dCode,$AC:$AC,Sheet1!S71_DepCode,$AD:$AD)","v":0},{"$f":"SUMIFS(Sheet1!S71_OY2AdjustedBudget,Sheet1!S71_SA34dCode,$AC:$AC,Sheet1!S71_DepCode,$AD:$AD)","v":0},null,null,null,null,null,null,null,null,null,null,null,null,null,null,null,"0970","DP"]
["Airports",null,{"$f":"SUMIFS(Sheet1!S71_OriginalBudget,Sheet1!S71_SA34dCode,$AC:$AC,Sheet1!S71_DepCode,$AD:$AD)","v":0},{"$f":"SUMIFS(Sheet1!S71_SpecialAdjustedBudget,Sheet1!S71_SA34dCode,$AC:$AC,Sheet1!S71_DepCode,$AD:$AD)","v":0},null,null,null,null,{"$f":"SUMIFS(Sheet1!S71_AdjustmentAmount,Sheet1!S71_SA34dCode,$AC:$AC,Sheet1!S71_DepCode,$AD:$AD)","v":0},0,0,{"$f":"SUMIFS(Sheet1!S71_OY1AdjustedBudget,Sheet1!S71_SA34dCode,$AC:$AC,Sheet1!S71_DepCode,$AD:$AD)","v":0},{"$f":"SUMIFS(Sheet1!S71_OY2AdjustedBudget,Sheet1!S71_SA34dCode,$AC:$AC,Sheet1!S71_DepCode,$AD:$AD)","v":0},null,null,null,null,null,null,null,null,null,null,null,null,null,null,null,"0980","DP"]
["Taxi Ranks/Bus Terminals",null,{"$f":"SUMIFS(Sheet1!S71_OriginalBudget,Sheet1!S71_SA34dCode,$AC:$AC,Sheet1!S71_DepCode,$AD:$AD)","v":0},{"$f":"SUMIFS(Sheet1!S71_SpecialAdjustedBudget,Sheet1!S71_SA34dCode,$AC:$AC,Sheet1!S71_DepCode,$AD:$AD)","v":0},null,null,null,null,{"$f":"SUMIFS(Sheet1!S71_AdjustmentAmount,Sheet1!S71_SA34dCode,$AC:$AC,Sheet1!S71_DepCode,$AD:$AD)","v":0},0,0,{"$f":"SUMIFS(Sheet1!S71_OY1AdjustedBudget,Sheet1!S71_SA34dCode,$AC:$AC,Sheet1!S71_DepCode,$AD:$AD)","v":0},{"$f":"SUMIFS(Sheet1!S71_OY2AdjustedBudget,Sheet1!S71_SA34dCode,$AC:$AC,Sheet1!S71_DepCode,$AD:$AD)","v":0},null,null,null,null,null,null,null,null,null,null,null,null,null,null,null,"0990","DP"]
["Capital Spares",null,{"$f":"SUMIFS(Sheet1!S71_OriginalBudget,Sheet1!S71_SA34dCode,$AC:$AC,Sheet1!S71_DepCode,$AD:$AD)","v":0},{"$f":"SUMIFS(Sheet1!S71_SpecialAdjustedBudget,Sheet1!S71_SA34dCode,$AC:$AC,Sheet1!S71_DepCode,$AD:$AD)","v":0},null,null,null,null,{"$f":"SUMIFS(Sheet1!S71_AdjustmentAmount,Sheet1!S71_SA34dCode,$AC:$AC,Sheet1!S71_DepCode,$AD:$AD)","v":0},0,0,{"$f":"SUMIFS(Sheet1!S71_OY1AdjustedBudget,Sheet1!S71_SA34dCode,$AC:$AC,Sheet1!S71_DepCode,$AD:$AD)","v":0},{"$f":"SUMIFS(Sheet1!S71_OY2AdjustedBudget,Sheet1!S71_SA34dCode,$AC:$AC,Sheet1!S71_DepCode,$AD:$AD)","v":0},null,null,null,null,null,null,null,null,null,null,null,null,null,null,null,"1000","DP"]
["Sport and Recreation Facilities",null,{"$f":"SUM(C101:C103)","v":1275764},{"$f":"SUM(D101:D103)","v":0},0,0,0,0,-116988,-116988,1158776,1204787,1240139,null,null,null,null,null,null,null,null,null,null,null,null,null,null,null,null,"DP"]
["Indoor Facilities",null,{"$f":"SUMIFS(Sheet1!S71_OriginalBudget,Sheet1!S71_SA34dCode,$AC:$AC,Sheet1!S71_DepCode,$AD:$AD)","v":0},{"$f":"SUMIFS(Sheet1!S71_SpecialAdjustedBudget,Sheet1!S71_SA34dCode,$AC:$AC,Sheet1!S71_DepCode,$AD:$AD)","v":0},null,null,null,null,{"$f":"SUMIFS(Sheet1!S71_AdjustmentAmount,Sheet1!S71_SA34dCode,$AC:$AC,Sheet1!S71_DepCode,$AD:$AD)","v":0},0,0,{"$f":"SUMIFS(Sheet1!S71_OY1AdjustedBudget,Sheet1!S71_SA34dCode,$AC:$AC,Sheet1!S71_DepCode,$AD:$AD)","v":0},{"$f":"SUMIFS(Sheet1!S71_OY2AdjustedBudget,Sheet1!S71_SA34dCode,$AC:$AC,Sheet1!S71_DepCode,$AD:$AD)","v":0},null,null,null,null,null,null,null,null,null,null,null,null,null,null,null,"1020","DP"]
["Outdoor Facilities",null,{"$f":"SUMIFS(Sheet1!S71_OriginalBudget,Sheet1!S71_SA34dCode,$AC:$AC,Sheet1!S71_DepCode,$AD:$AD)","v":1275764},{"$f":"SUMIFS(Sheet1!S71_SpecialAdjustedBudget,Sheet1!S71_SA34dCode,$AC:$AC,Sheet1!S71_DepCode,$AD:$AD)","v":0},null,null,null,null,{"$f":"SUMIFS(Sheet1!S71_AdjustmentAmount,Sheet1!S71_SA34dCode,$AC:$AC,Sheet1!S71_DepCode,$AD:$AD)","v":-116988},-116988,1158776,{"$f":"SUMIFS(Sheet1!S71_OY1AdjustedBudget,Sheet1!S71_SA34dCode,$AC:$AC,Sheet1!S71_DepCode,$AD:$AD)","v":1204787},{"$f":"SUMIFS(Sheet1!S71_OY2AdjustedBudget,Sheet1!S71_SA34dCode,$AC:$AC,Sheet1!S71_DepCode,$AD:$AD)","v":1240139},null,null,null,null,null,null,null,null,null,null,null,null,null,null,null,"1030","DP"]
["Capital Spares",null,{"$f":"SUMIFS(Sheet1!S71_OriginalBudget,Sheet1!S71_SA34dCode,$AC:$AC,Sheet1!S71_DepCode,$AD:$AD)","v":0},{"$f":"SUMIFS(Sheet1!S71_SpecialAdjustedBudget,Sheet1!S71_SA34dCode,$AC:$AC,Sheet1!S71_DepCode,$AD:$AD)","v":0},null,null,null,null,{"$f":"SUMIFS(Sheet1!S71_AdjustmentAmount,Sheet1!S71_SA34dCode,$AC:$AC,Sheet1!S71_DepCode,$AD:$AD)","v":0},0,0,{"$f":"SUMIFS(Sheet1!S71_OY1AdjustedBudget,Sheet1!S71_SA34dCode,$AC:$AC,Sheet1!S71_DepCode,$AD:$AD)","v":0},{"$f":"SUMIFS(Sheet1!S71_OY2AdjustedBudget,Sheet1!S71_SA34dCode,$AC:$AC,Sheet1!S71_DepCode,$AD:$AD)","v":0},null,null,null,null,null,null,null,null,null,null,null,null,null,null,null,"1040","DP"]
[null,null,null,null,null,null,null,null,null,null,null,null,null,null,null,null,null,null,null,null,null,null,null,null,null,null,null,null,null,"DP"]
["Heritage assets",null,{"$f":"SUM(C106:C110)","v":0},0,0,0,0,0,0,0,0,0,0,null,null,null,null,null,null,null,null,null,null,null,null,null,null,null,null,"DP"]
["Monuments",null,{"$f":"SUMIFS(Sheet1!S71_OriginalBudget,Sheet1!S71_SA34dCode,$AC:$AC,Sheet1!S71_DepCode,$AD:$AD)","v":0},{"$f":"SUMIFS(Sheet1!S71_SpecialAdjustedBudget,Sheet1!S71_SA34dCode,$AC:$AC,Sheet1!S71_DepCode,$AD:$AD)","v":0},null,null,null,null,{"$f":"SUMIFS(Sheet1!S71_AdjustmentAmount,Sheet1!S71_SA34dCode,$AC:$AC,Sheet1!S71_DepCode,$AD:$AD)","v":0},0,0,{"$f":"SUMIFS(Sheet1!S71_OY1AdjustedBudget,Sheet1!S71_SA34dCode,$AC:$AC,Sheet1!S71_DepCode,$AD:$AD)","v":0},{"$f":"SUMIFS(Sheet1!S71_OY2AdjustedBudget,Sheet1!S71_SA34dCode,$AC:$AC,Sheet1!S71_DepCode,$AD:$AD)","v":0},null,null,null,null,null,null,null,null,null,null,null,null,null,null,null,"1060","DP"]
["Historic Buildings",null,{"$f":"SUMIFS(Sheet1!S71_OriginalBudget,Sheet1!S71_SA34dCode,$AC:$AC,Sheet1!S71_DepCode,$AD:$AD)","v":0},{"$f":"SUMIFS(Sheet1!S71_SpecialAdjustedBudget,Sheet1!S71_SA34dCode,$AC:$AC,Sheet1!S71_DepCode,$AD:$AD)","v":0},null,null,null,null,{"$f":"SUMIFS(Sheet1!S71_AdjustmentAmount,Sheet1!S71_SA34dCode,$AC:$AC,Sheet1!S71_DepCode,$AD:$AD)","v":0},0,0,{"$f":"SUMIFS(Sheet1!S71_OY1AdjustedBudget,Sheet1!S71_SA34dCode,$AC:$AC,Sheet1!S71_DepCode,$AD:$AD)","v":0},{"$f":"SUMIFS(Sheet1!S71_OY2AdjustedBudget,Sheet1!S71_SA34dCode,$AC:$AC,Sheet1!S71_DepCode,$AD:$AD)","v":0},null,null,null,null,null,null,null,null,null,null,null,null,null,null,null,"1070","DP"]
["Works of Art",null,{"$f":"SUMIFS(Sheet1!S71_OriginalBudget,Sheet1!S71_SA34dCode,$AC:$AC,Sheet1!S71_DepCode,$AD:$AD)","v":0},{"$f":"SUMIFS(Sheet1!S71_SpecialAdjustedBudget,Sheet1!S71_SA34dCode,$AC:$AC,Sheet1!S71_DepCode,$AD:$AD)","v":0},null,null,null,null,{"$f":"SUMIFS(Sheet1!S71_AdjustmentAmount,Sheet1!S71_SA34dCode,$AC:$AC,Sheet1!S71_DepCode,$AD:$AD)","v":0},0,0,{"$f":"SUMIFS(Sheet1!S71_OY1AdjustedBudget,Sheet1!S71_SA34dCode,$AC:$AC,Sheet1!S71_DepCode,$AD:$AD)","v":0},{"$f":"SUMIFS(Sheet1!S71_OY2AdjustedBudget,Sheet1!S71_SA34dCode,$AC:$AC,Sheet1!S71_DepCode,$AD:$AD)","v":0},null,null,null,null,null,null,null,null,null,null,null,null,null,null,null,"1080","DP"]
["Conservation Areas",null,{"$f":"SUMIFS(Sheet1!S71_OriginalBudget,Sheet1!S71_SA34dCode,$AC:$AC,Sheet1!S71_DepCode,$AD:$AD)","v":0},{"$f":"SUMIFS(Sheet1!S71_SpecialAdjustedBudget,Sheet1!S71_SA34dCode,$AC:$AC,Sheet1!S71_DepCode,$AD:$AD)","v":0},null,null,null,null,{"$f":"SUMIFS(Sheet1!S71_AdjustmentAmount,Sheet1!S71_SA34dCode,$AC:$AC,Sheet1!S71_DepCode,$AD:$AD)","v":0},0,0,{"$f":"SUMIFS(Sheet1!S71_OY1AdjustedBudget,Sheet1!S71_SA34dCode,$AC:$AC,Sheet1!S71_DepCode,$AD:$AD)","v":0},{"$f":"SUMIFS(Sheet1!S71_OY2AdjustedBudget,Sheet1!S71_SA34dCode,$AC:$AC,Sheet1!S71_DepCode,$AD:$AD)","v":0},null,null,null,null,null,null,null,null,null,null,null,null,null,null,null,"1090","DP"]
["Other Heritage",null,{"$f":"SUMIFS(Sheet1!S71_OriginalBudget,Sheet1!S71_SA34dCode,$AC:$AC,Sheet1!S71_DepCode,$AD:$AD)","v":0},{"$f":"SUMIFS(Sheet1!S71_SpecialAdjustedBudget,Sheet1!S71_SA34dCode,$AC:$AC,Sheet1!S71_DepCode,$AD:$AD)","v":0},null,null,null,null,{"$f":"SUMIFS(Sheet1!S71_AdjustmentAmount,Sheet1!S71_SA34dCode,$AC:$AC,Sheet1!S71_DepCode,$AD:$AD)","v":0},0,0,{"$f":"SUMIFS(Sheet1!S71_OY1AdjustedBudget,Sheet1!S71_SA34dCode,$AC:$AC,Sheet1!S71_DepCode,$AD:$AD)","v":0},{"$f":"SUMIFS(Sheet1!S71_OY2AdjustedBudget,Sheet1!S71_SA34dCode,$AC:$AC,Sheet1!S71_DepCode,$AD:$AD)","v":0},null,null,null,null,null,null,null,null,null,null,null,null,null,null,null,"1100","DP"]
[null,null,null,null,null,null,null,null,null,null,null,null,null,null,null,null,null,null,null,null,null,null,null,null,null,null,null,null,null,"DP"]
["Investment properties",null,{"$f":"+C113+C116","v":0},{"$f":"+D113+D116","v":0},0,0,0,0,0,0,0,{"$f":"+L113+L116","v":0},{"$f":"+M113+M116","v":0},null,null,null,null,null,null,null,null,null,null,null,null,null,null,null,null,"DP"]
["Revenue Generating",null,{"$f":"SUM(C114:C115)","v":0},{"$f":"SUM(D114:D115)","v":0},0,0,0,0,0,0,0,{"$f":"SUM(L114:L115)","v":0},{"$f":"SUM(M114:M115)","v":0},null,null,null,null,null,null,null,null,null,null,null,null,null,null,null,null,"DP"]
["Improved Property",null,{"$f":"SUMIFS(Sheet1!S71_OriginalBudget,Sheet1!S71_SA34dCode,$AC:$AC,Sheet1!S71_DepCode,$AD:$AD)","v":0},{"$f":"SUMIFS(Sheet1!S71_SpecialAdjustedBudget,Sheet1!S71_SA34dCode,$AC:$AC,Sheet1!S71_DepCode,$AD:$AD)","v":0},null,null,null,null,{"$f":"SUMIFS(Sheet1!S71_AdjustmentAmount,Sheet1!S71_SA34dCode,$AC:$AC,Sheet1!S71_DepCode,$AD:$AD)","v":0},0,0,{"$f":"SUMIFS(Sheet1!S71_OY1AdjustedBudget,Sheet1!S71_SA34dCode,$AC:$AC,Sheet1!S71_DepCode,$AD:$AD)","v":0},{"$f":"SUMIFS(Sheet1!S71_OY2AdjustedBudget,Sheet1!S71_SA34dCode,$AC:$AC,Sheet1!S71_DepCode,$AD:$AD)","v":0},null,null,null,null,null,null,null,null,null,null,null,null,null,null,null,"1130","DP"]
["Unimproved Property",null,{"$f":"SUMIFS(Sheet1!S71_OriginalBudget,Sheet1!S71_SA34dCode,$AC:$AC,Sheet1!S71_DepCode,$AD:$AD)","v":0},{"$f":"SUMIFS(Sheet1!S71_SpecialAdjustedBudget,Sheet1!S71_SA34dCode,$AC:$AC,Sheet1!S71_DepCode,$AD:$AD)","v":0},null,null,null,null,{"$f":"SUMIFS(Sheet1!S71_AdjustmentAmount,Sheet1!S71_SA34dCode,$AC:$AC,Sheet1!S71_DepCode,$AD:$AD)","v":0},0,0,{"$f":"SUMIFS(Sheet1!S71_OY1AdjustedBudget,Sheet1!S71_SA34dCode,$AC:$AC,Sheet1!S71_DepCode,$AD:$AD)","v":0},{"$f":"SUMIFS(Sheet1!S71_OY2AdjustedBudget,Sheet1!S71_SA34dCode,$AC:$AC,Sheet1!S71_DepCode,$AD:$AD)","v":0},null,null,null,null,null,null,null,null,null,null,null,null,null,null,null,"1140","DP"]
["Non-revenue Generating",null,{"$f":"SUM(C117:C118)","v":0},{"$f":"SUM(D117:D118)","v":0},{"$f":"SUM(E117:E118)","v":0},0,0,0,0,0,0,0,0,null,null,null,null,null,null,null,null,null,null,null,null,null,null,null,null,"DP"]
["Improved Property",null,{"$f":"SUMIFS(Sheet1!S71_OriginalBudget,Sheet1!S71_SA34dCode,$AC:$AC,Sheet1!S71_DepCode,$AD:$AD)","v":0},{"$f":"SUMIFS(Sheet1!S71_SpecialAdjustedBudget,Sheet1!S71_SA34dCode,$AC:$AC,Sheet1!S71_DepCode,$AD:$AD)","v":0},null,null,null,null,{"$f":"SUMIFS(Sheet1!S71_AdjustmentAmount,Sheet1!S71_SA34dCode,$AC:$AC,Sheet1!S71_DepCode,$AD:$AD)","v":0},0,0,{"$f":"SUMIFS(Sheet1!S71_OY1AdjustedBudget,Sheet1!S71_SA34dCode,$AC:$AC,Sheet1!S71_DepCode,$AD:$AD)","v":0},{"$f":"SUMIFS(Sheet1!S71_OY2AdjustedBudget,Sheet1!S71_SA34dCode,$AC:$AC,Sheet1!S71_DepCode,$AD:$AD)","v":0},null,null,null,null,null,null,null,null,null,null,null,null,null,null,null,"1160","DP"]
["Unimproved Property",null,{"$f":"SUMIFS(Sheet1!S71_OriginalBudget,Sheet1!S71_SA34dCode,$AC:$AC,Sheet1!S71_DepCode,$AD:$AD)","v":0},{"$f":"SUMIFS(Sheet1!S71_SpecialAdjustedBudget,Sheet1!S71_SA34dCode,$AC:$AC,Sheet1!S71_DepCode,$AD:$AD)","v":0},null,null,null,null,{"$f":"SUMIFS(Sheet1!S71_AdjustmentAmount,Sheet1!S71_SA34dCode,$AC:$AC,Sheet1!S71_DepCode,$AD:$AD)","v":0},0,0,{"$f":"SUMIFS(Sheet1!S71_OY1AdjustedBudget,Sheet1!S71_SA34dCode,$AC:$AC,Sheet1!S71_DepCode,$AD:$AD)","v":0},{"$f":"SUMIFS(Sheet1!S71_OY2AdjustedBudget,Sheet1!S71_SA34dCode,$AC:$AC,Sheet1!S71_DepCode,$AD:$AD)","v":0},null,null,null,null,null,null,null,null,null,null,null,null,null,null,null,"1170","DP"]
[null,null,null,null,null,null,null,null,null,null,null,null,null,null,null,null,null,null,null,null,null,null,null,null,null,null,null,null,null,"DP"]
["Other assets",null,{"$f":"+C121+C133","v":1171812},{"$f":"+D121+D133","v":0},0,0,0,0,109667,109667,1281479,{"$f":"+L121+L133","v":1428629},{"$f":"+M121+M133","v":1492917},null,null,null,null,null,null,null,null,null,null,null,null,null,null,null,null,"DP"]
["Operational Buildings",null,{"$f":"SUM(C122:C132)","v":1171812},{"$f":"SUM(D122:D132)","v":0},{"$f":"SUM(E122:E132)","v":0},0,0,0,109667,109667,1281479,1428629,1492917,null,null,null,null,null,null,null,null,null,null,null,null,null,null,null,null,"DP"]
["Municipal Offices",null,{"$f":"SUMIFS(Sheet1!S71_OriginalBudget,Sheet1!S71_SA34dCode,$AC:$AC,Sheet1!S71_DepCode,$AD:$AD)","v":1171812},{"$f":"SUMIFS(Sheet1!S71_SpecialAdjustedBudget,Sheet1!S71_SA34dCode,$AC:$AC,Sheet1!S71_DepCode,$AD:$AD)","v":0},null,null,null,null,{"$f":"SUMIFS(Sheet1!S71_AdjustmentAmount,Sheet1!S71_SA34dCode,$AC:$AC,Sheet1!S71_DepCode,$AD:$AD)","v":109667},109667,1281479,{"$f":"SUMIFS(Sheet1!S71_OY1AdjustedBudget,Sheet1!S71_SA34dCode,$AC:$AC,Sheet1!S71_DepCode,$AD:$AD)","v":1428629},{"$f":"SUMIFS(Sheet1!S71_OY2AdjustedBudget,Sheet1!S71_SA34dCode,$AC:$AC,Sheet1!S71_DepCode,$AD:$AD)","v":1492917},null,null,null,null,null,null,null,null,null,null,null,null,null,null,null,"1200","DP"]
["Pay/Enquiry Points",null,{"$f":"SUMIFS(Sheet1!S71_OriginalBudget,Sheet1!S71_SA34dCode,$AC:$AC,Sheet1!S71_DepCode,$AD:$AD)","v":0},{"$f":"SUMIFS(Sheet1!S71_SpecialAdjustedBudget,Sheet1!S71_SA34dCode,$AC:$AC,Sheet1!S71_DepCode,$AD:$AD)","v":0},null,null,null,null,{"$f":"SUMIFS(Sheet1!S71_AdjustmentAmount,Sheet1!S71_SA34dCode,$AC:$AC,Sheet1!S71_DepCode,$AD:$AD)","v":0},0,0,{"$f":"SUMIFS(Sheet1!S71_OY1AdjustedBudget,Sheet1!S71_SA34dCode,$AC:$AC,Sheet1!S71_DepCode,$AD:$AD)","v":0},{"$f":"SUMIFS(Sheet1!S71_OY2AdjustedBudget,Sheet1!S71_SA34dCode,$AC:$AC,Sheet1!S71_DepCode,$AD:$AD)","v":0},null,null,null,null,null,null,null,null,null,null,null,null,null,null,null,"1210","DP"]
["Building Plan Offices",null,{"$f":"SUMIFS(Sheet1!S71_OriginalBudget,Sheet1!S71_SA34dCode,$AC:$AC,Sheet1!S71_DepCode,$AD:$AD)","v":0},{"$f":"SUMIFS(Sheet1!S71_SpecialAdjustedBudget,Sheet1!S71_SA34dCode,$AC:$AC,Sheet1!S71_DepCode,$AD:$AD)","v":0},null,null,null,null,{"$f":"SUMIFS(Sheet1!S71_AdjustmentAmount,Sheet1!S71_SA34dCode,$AC:$AC,Sheet1!S71_DepCode,$AD:$AD)","v":0},0,0,{"$f":"SUMIFS(Sheet1!S71_OY1AdjustedBudget,Sheet1!S71_SA34dCode,$AC:$AC,Sheet1!S71_DepCode,$AD:$AD)","v":0},{"$f":"SUMIFS(Sheet1!S71_OY2AdjustedBudget,Sheet1!S71_SA34dCode,$AC:$AC,Sheet1!S71_DepCode,$AD:$AD)","v":0},null,null,null,null,null,null,null,null,null,null,null,null,null,null,null,"1220","DP"]
["Workshops",null,{"$f":"SUMIFS(Sheet1!S71_OriginalBudget,Sheet1!S71_SA34dCode,$AC:$AC,Sheet1!S71_DepCode,$AD:$AD)","v":0},{"$f":"SUMIFS(Sheet1!S71_SpecialAdjustedBudget,Sheet1!S71_SA34dCode,$AC:$AC,Sheet1!S71_DepCode,$AD:$AD)","v":0},null,null,null,null,{"$f":"SUMIFS(Sheet1!S71_AdjustmentAmount,Sheet1!S71_SA34dCode,$AC:$AC,Sheet1!S71_DepCode,$AD:$AD)","v":0},0,0,{"$f":"SUMIFS(Sheet1!S71_OY1AdjustedBudget,Sheet1!S71_SA34dCode,$AC:$AC,Sheet1!S71_DepCode,$AD:$AD)","v":0},{"$f":"SUMIFS(Sheet1!S71_OY2AdjustedBudget,Sheet1!S71_SA34dCode,$AC:$AC,Sheet1!S71_DepCode,$AD:$AD)","v":0},null,null,null,null,null,null,null,null,null,null,null,null,null,null,null,"1230","DP"]
["Yards",null,{"$f":"SUMIFS(Sheet1!S71_OriginalBudget,Sheet1!S71_SA34dCode,$AC:$AC,Sheet1!S71_DepCode,$AD:$AD)","v":0},{"$f":"SUMIFS(Sheet1!S71_SpecialAdjustedBudget,Sheet1!S71_SA34dCode,$AC:$AC,Sheet1!S71_DepCode,$AD:$AD)","v":0},null,null,null,null,{"$f":"SUMIFS(Sheet1!S71_AdjustmentAmount,Sheet1!S71_SA34dCode,$AC:$AC,Sheet1!S71_DepCode,$AD:$AD)","v":0},0,0,{"$f":"SUMIFS(Sheet1!S71_OY1AdjustedBudget,Sheet1!S71_SA34dCode,$AC:$AC,Sheet1!S71_DepCode,$AD:$AD)","v":0},{"$f":"SUMIFS(Sheet1!S71_OY2AdjustedBudget,Sheet1!S71_SA34dCode,$AC:$AC,Sheet1!S71_DepCode,$AD:$AD)","v":0},null,null,null,null,null,null,null,null,null,null,null,null,null,null,null,"1240","DP"]
["Stores",null,{"$f":"SUMIFS(Sheet1!S71_OriginalBudget,Sheet1!S71_SA34dCode,$AC:$AC,Sheet1!S71_DepCode,$AD:$AD)","v":0},{"$f":"SUMIFS(Sheet1!S71_SpecialAdjustedBudget,Sheet1!S71_SA34dCode,$AC:$AC,Sheet1!S71_DepCode,$AD:$AD)","v":0},null,null,null,null,{"$f":"SUMIFS(Sheet1!S71_AdjustmentAmount,Sheet1!S71_SA34dCode,$AC:$AC,Sheet1!S71_DepCode,$AD:$AD)","v":0},0,0,{"$f":"SUMIFS(Sheet1!S71_OY1AdjustedBudget,Sheet1!S71_SA34dCode,$AC:$AC,Sheet1!S71_DepCode,$AD:$AD)","v":0},{"$f":"SUMIFS(Sheet1!S71_OY2AdjustedBudget,Sheet1!S71_SA34dCode,$AC:$AC,Sheet1!S71_DepCode,$AD:$AD)","v":0},null,null,null,null,null,null,null,null,null,null,null,null,null,null,null,"1250","DP"]
["Laboratories",null,{"$f":"SUMIFS(Sheet1!S71_OriginalBudget,Sheet1!S71_SA34dCode,$AC:$AC,Sheet1!S71_DepCode,$AD:$AD)","v":0},{"$f":"SUMIFS(Sheet1!S71_SpecialAdjustedBudget,Sheet1!S71_SA34dCode,$AC:$AC,Sheet1!S71_DepCode,$AD:$AD)","v":0},null,null,null,null,{"$f":"SUMIFS(Sheet1!S71_AdjustmentAmount,Sheet1!S71_SA34dCode,$AC:$AC,Sheet1!S71_DepCode,$AD:$AD)","v":0},0,0,{"$f":"SUMIFS(Sheet1!S71_OY1AdjustedBudget,Sheet1!S71_SA34dCode,$AC:$AC,Sheet1!S71_DepCode,$AD:$AD)","v":0},{"$f":"SUMIFS(Sheet1!S71_OY2AdjustedBudget,Sheet1!S71_SA34dCode,$AC:$AC,Sheet1!S71_DepCode,$AD:$AD)","v":0},null,null,null,null,null,null,null,null,null,null,null,null,null,null,null,"1260","DP"]
["Training Centres",null,{"$f":"SUMIFS(Sheet1!S71_OriginalBudget,Sheet1!S71_SA34dCode,$AC:$AC,Sheet1!S71_DepCode,$AD:$AD)","v":0},{"$f":"SUMIFS(Sheet1!S71_SpecialAdjustedBudget,Sheet1!S71_SA34dCode,$AC:$AC,Sheet1!S71_DepCode,$AD:$AD)","v":0},null,null,null,null,{"$f":"SUMIFS(Sheet1!S71_AdjustmentAmount,Sheet1!S71_SA34dCode,$AC:$AC,Sheet1!S71_DepCode,$AD:$AD)","v":0},0,0,{"$f":"SUMIFS(Sheet1!S71_OY1AdjustedBudget,Sheet1!S71_SA34dCode,$AC:$AC,Sheet1!S71_DepCode,$AD:$AD)","v":0},{"$f":"SUMIFS(Sheet1!S71_OY2AdjustedBudget,Sheet1!S71_SA34dCode,$AC:$AC,Sheet1!S71_DepCode,$AD:$AD)","v":0},null,null,null,null,null,null,null,null,null,null,null,null,null,null,null,"1270","DP"]
["Manufacturing Plant",null,{"$f":"SUMIFS(Sheet1!S71_OriginalBudget,Sheet1!S71_SA34dCode,$AC:$AC,Sheet1!S71_DepCode,$AD:$AD)","v":0},{"$f":"SUMIFS(Sheet1!S71_SpecialAdjustedBudget,Sheet1!S71_SA34dCode,$AC:$AC,Sheet1!S71_DepCode,$AD:$AD)","v":0},null,null,null,null,{"$f":"SUMIFS(Sheet1!S71_AdjustmentAmount,Sheet1!S71_SA34dCode,$AC:$AC,Sheet1!S71_DepCode,$AD:$AD)","v":0},0,0,{"$f":"SUMIFS(Sheet1!S71_OY1AdjustedBudget,Sheet1!S71_SA34dCode,$AC:$AC,Sheet1!S71_DepCode,$AD:$AD)","v":0},{"$f":"SUMIFS(Sheet1!S71_OY2AdjustedBudget,Sheet1!S71_SA34dCode,$AC:$AC,Sheet1!S71_DepCode,$AD:$AD)","v":0},null,null,null,null,null,null,null,null,null,null,null,null,null,null,null,"1280","DP"]
["Depots",null,{"$f":"SUMIFS(Sheet1!S71_OriginalBudget,Sheet1!S71_SA34dCode,$AC:$AC,Sheet1!S71_DepCode,$AD:$AD)","v":0},{"$f":"SUMIFS(Sheet1!S71_SpecialAdjustedBudget,Sheet1!S71_SA34dCode,$AC:$AC,Sheet1!S71_DepCode,$AD:$AD)","v":0},null,null,null,null,{"$f":"SUMIFS(Sheet1!S71_AdjustmentAmount,Sheet1!S71_SA34dCode,$AC:$AC,Sheet1!S71_DepCode,$AD:$AD)","v":0},0,0,{"$f":"SUMIFS(Sheet1!S71_OY1AdjustedBudget,Sheet1!S71_SA34dCode,$AC:$AC,Sheet1!S71_DepCode,$AD:$AD)","v":0},{"$f":"SUMIFS(Sheet1!S71_OY2AdjustedBudget,Sheet1!S71_SA34dCode,$AC:$AC,Sheet1!S71_DepCode,$AD:$AD)","v":0},null,null,null,null,null,null,null,null,null,null,null,null,null,null,null,"1290","DP"]
["Capital Spares",null,{"$f":"SUMIFS(Sheet1!S71_OriginalBudget,Sheet1!S71_SA34dCode,$AC:$AC,Sheet1!S71_DepCode,$AD:$AD)","v":0},{"$f":"SUMIFS(Sheet1!S71_SpecialAdjustedBudget,Sheet1!S71_SA34dCode,$AC:$AC,Sheet1!S71_DepCode,$AD:$AD)","v":0},null,null,null,null,{"$f":"SUMIFS(Sheet1!S71_AdjustmentAmount,Sheet1!S71_SA34dCode,$AC:$AC,Sheet1!S71_DepCode,$AD:$AD)","v":0},0,0,{"$f":"SUMIFS(Sheet1!S71_OY1AdjustedBudget,Sheet1!S71_SA34dCode,$AC:$AC,Sheet1!S71_DepCode,$AD:$AD)","v":0},{"$f":"SUMIFS(Sheet1!S71_OY2AdjustedBudget,Sheet1!S71_SA34dCode,$AC:$AC,Sheet1!S71_DepCode,$AD:$AD)","v":0},null,null,null,null,null,null,null,null,null,null,null,null,null,null,null,"1300","DP"]
["Housing",null,{"$f":"SUM(C134:C136)","v":0},{"$f":"SUM(D134:D136)","v":0},{"$f":"SUM(E134:E136)","v":0},0,0,0,0,0,0,0,0,null,null,null,null,null,null,null,null,null,null,null,null,null,null,null,null,"DP"]
["Staff Housing",null,{"$f":"SUMIFS(Sheet1!S71_OriginalBudget,Sheet1!S71_SA34dCode,$AC:$AC,Sheet1!S71_DepCode,$AD:$AD)","v":0},{"$f":"SUMIFS(Sheet1!S71_SpecialAdjustedBudget,Sheet1!S71_SA34dCode,$AC:$AC,Sheet1!S71_DepCode,$AD:$AD)","v":0},null,null,null,null,{"$f":"SUMIFS(Sheet1!S71_AdjustmentAmount,Sheet1!S71_SA34dCode,$AC:$AC,Sheet1!S71_DepCode,$AD:$AD)","v":0},0,0,{"$f":"SUMIFS(Sheet1!S71_OY1AdjustedBudget,Sheet1!S71_SA34dCode,$AC:$AC,Sheet1!S71_DepCode,$AD:$AD)","v":0},{"$f":"SUMIFS(Sheet1!S71_OY2AdjustedBudget,Sheet1!S71_SA34dCode,$AC:$AC,Sheet1!S71_DepCode,$AD:$AD)","v":0},null,null,null,null,null,null,null,null,null,null,null,null,null,null,null,"1320","DP"]
["Social Housing",null,{"$f":"SUMIFS(Sheet1!S71_OriginalBudget,Sheet1!S71_SA34dCode,$AC:$AC,Sheet1!S71_DepCode,$AD:$AD)","v":0},{"$f":"SUMIFS(Sheet1!S71_SpecialAdjustedBudget,Sheet1!S71_SA34dCode,$AC:$AC,Sheet1!S71_DepCode,$AD:$AD)","v":0},null,null,null,null,{"$f":"SUMIFS(Sheet1!S71_AdjustmentAmount,Sheet1!S71_SA34dCode,$AC:$AC,Sheet1!S71_DepCode,$AD:$AD)","v":0},0,0,{"$f":"SUMIFS(Sheet1!S71_OY1AdjustedBudget,Sheet1!S71_SA34dCode,$AC:$AC,Sheet1!S71_DepCode,$AD:$AD)","v":0},{"$f":"SUMIFS(Sheet1!S71_OY2AdjustedBudget,Sheet1!S71_SA34dCode,$AC:$AC,Sheet1!S71_DepCode,$AD:$AD)","v":0},null,null,null,null,null,null,null,null,null,null,null,null,null,null,null,"1330","DP"]
["Capital Spares",null,{"$f":"SUMIFS(Sheet1!S71_OriginalBudget,Sheet1!S71_SA34dCode,$AC:$AC,Sheet1!S71_DepCode,$AD:$AD)","v":0},{"$f":"SUMIFS(Sheet1!S71_SpecialAdjustedBudget,Sheet1!S71_SA34dCode,$AC:$AC,Sheet1!S71_DepCode,$AD:$AD)","v":0},null,null,null,null,{"$f":"SUMIFS(Sheet1!S71_AdjustmentAmount,Sheet1!S71_SA34dCode,$AC:$AC,Sheet1!S71_DepCode,$AD:$AD)","v":0},0,0,{"$f":"SUMIFS(Sheet1!S71_OY1AdjustedBudget,Sheet1!S71_SA34dCode,$AC:$AC,Sheet1!S71_DepCode,$AD:$AD)","v":0},{"$f":"SUMIFS(Sheet1!S71_OY2AdjustedBudget,Sheet1!S71_SA34dCode,$AC:$AC,Sheet1!S71_DepCode,$AD:$AD)","v":0},null,null,null,null,null,null,null,null,null,null,null,null,null,null,null,"1340","DP"]
[null,null,null,null,null,null,null,null,null,null,null,{"$f":"SUMIFS(Sheet1!S71_OY1AdjustedBudget,Sheet1!S71_SA34dCode,$AC:$AC,Sheet1!S71_DepCode,$AD:$AD)","v":0},{"$f":"SUMIFS(Sheet1!S71_OY2AdjustedBudget,Sheet1!S71_SA34dCode,$AC:$AC,Sheet1!S71_DepCode,$AD:$AD)","v":0},null,null,null,null,null,null,null,null,null,null,null,null,null,null,null,null,"DP"]
["Biological or Cultivated Assets",null,{"$f":"SUM(C139:C139)","v":0},0,0,0,0,0,0,{"$f":"SUM(E138:I138)","v":0},{"$f":"IF(D138=0,C138+J138,D138+J138)","v":0},0,0,null,null,null,null,null,null,null,null,null,null,null,null,null,null,null,null,"DP"]
["Biological or Cultivated Assets",null,{"$f":"SUMIFS(Sheet1!S71_OriginalBudget,Sheet1!S71_SA34dCode,$AC:$AC,Sheet1!S71_DepCode,$AD:$AD)","v":0},{"$f":"SUMIFS(Sheet1!S71_SpecialAdjustedBudget,Sheet1!S71_SA34dCode,$AC:$AC,Sheet1!S71_DepCode,$AD:$AD)","v":0},null,null,null,null,{"$f":"SUMIFS(Sheet1!S71_AdjustmentAmount,Sheet1!S71_SA34dCode,$AC:$AC,Sheet1!S71_DepCode,$AD:$AD)","v":0},0,0,{"$f":"SUMIFS(Sheet1!S71_OY1AdjustedBudget,Sheet1!S71_SA34dCode,$AC:$AC,Sheet1!S71_DepCode,$AD:$AD)","v":0},{"$f":"SUMIFS(Sheet1!S71_OY2AdjustedBudget,Sheet1!S71_SA34dCode,$AC:$AC,Sheet1!S71_DepCode,$AD:$AD)","v":0},null,null,null,null,null,null,null,null,null,null,null,null,null,null,null,"1360","DP"]
[null,null,null,null,null,null,null,null,null,null,null,null,null,null,null,null,null,null,null,null,null,null,null,null,null,null,null,null,null,"DP"]
["Intangible Assets",null,{"$f":"SUM(C142:C143)","v":512050},{"$f":"SUM(D142:D143)","v":0},{"$f":"SUM(E142:E143)","v":0},0,0,0,-188212,-188212,323838,512050,535092,null,null,null,null,null,null,null,null,null,null,null,null,null,null,null,null,"DP"]
["Servitudes",null,{"$f":"SUMIFS(Sheet1!S71_OriginalBudget,Sheet1!S71_SA34dCode,$AC:$AC,Sheet1!S71_DepCode,$AD:$AD)","v":0},{"$f":"SUMIFS(Sheet1!S71_SpecialAdjustedBudget,Sheet1!S71_SA34dCode,$AC:$AC,Sheet1!S71_DepCode,$AD:$AD)","v":0},null,null,null,null,{"$f":"SUMIFS(Sheet1!S71_AdjustmentAmount,Sheet1!S71_SA34dCode,$AC:$AC,Sheet1!S71_DepCode,$AD:$AD)","v":0},0,0,{"$f":"SUMIFS(Sheet1!S71_OY1AdjustedBudget,Sheet1!S71_SA34dCode,$AC:$AC,Sheet1!S71_DepCode,$AD:$AD)","v":0},{"$f":"SUMIFS(Sheet1!S71_OY2AdjustedBudget,Sheet1!S71_SA34dCode,$AC:$AC,Sheet1!S71_DepCode,$AD:$AD)","v":0},null,null,null,null,null,null,null,null,null,null,null,null,null,null,null,"1380","DP"]
["Licences and Rights",null,{"$f":"SUM(C144:C149)","v":512050},{"$f":"SUM(D144:D149)","v":0},{"$f":"SUM(E144:E149)","v":0},0,0,0,-188212,-188212,323838,512050,535092,null,null,null,null,null,null,null,null,null,null,null,null,null,null,null,null,"DP"]
["Water Rights",null,{"$f":"SUMIFS(Sheet1!S71_OriginalBudget,Sheet1!S71_SA34dCode,$AC:$AC,Sheet1!S71_DepCode,$AD:$AD)","v":0},{"$f":"SUMIFS(Sheet1!S71_SpecialAdjustedBudget,Sheet1!S71_SA34dCode,$AC:$AC,Sheet1!S71_DepCode,$AD:$AD)","v":0},null,null,null,null,{"$f":"SUMIFS(Sheet1!S71_AdjustmentAmount,Sheet1!S71_SA34dCode,$AC:$AC,Sheet1!S71_DepCode,$AD:$AD)","v":0},0,0,{"$f":"SUMIFS(Sheet1!S71_OY1AdjustedBudget,Sheet1!S71_SA34dCode,$AC:$AC,Sheet1!S71_DepCode,$AD:$AD)","v":0},{"$f":"SUMIFS(Sheet1!S71_OY2AdjustedBudget,Sheet1!S71_SA34dCode,$AC:$AC,Sheet1!S71_DepCode,$AD:$AD)","v":0},null,null,null,null,null,null,null,null,null,null,null,null,null,null,null,"1400","DP"]
["Effluent Licenses",null,{"$f":"SUMIFS(Sheet1!S71_OriginalBudget,Sheet1!S71_SA34dCode,$AC:$AC,Sheet1!S71_DepCode,$AD:$AD)","v":0},{"$f":"SUMIFS(Sheet1!S71_SpecialAdjustedBudget,Sheet1!S71_SA34dCode,$AC:$AC,Sheet1!S71_DepCode,$AD:$AD)","v":0},null,null,null,null,{"$f":"SUMIFS(Sheet1!S71_AdjustmentAmount,Sheet1!S71_SA34dCode,$AC:$AC,Sheet1!S71_DepCode,$AD:$AD)","v":0},0,0,{"$f":"SUMIFS(Sheet1!S71_OY1AdjustedBudget,Sheet1!S71_SA34dCode,$AC:$AC,Sheet1!S71_DepCode,$AD:$AD)","v":0},{"$f":"SUMIFS(Sheet1!S71_OY2AdjustedBudget,Sheet1!S71_SA34dCode,$AC:$AC,Sheet1!S71_DepCode,$AD:$AD)","v":0},null,null,null,null,null,null,null,null,null,null,null,null,null,null,null,"1410","DP"]
["Solid Waste Licenses",null,{"$f":"SUMIFS(Sheet1!S71_OriginalBudget,Sheet1!S71_SA34dCode,$AC:$AC,Sheet1!S71_DepCode,$AD:$AD)","v":0},{"$f":"SUMIFS(Sheet1!S71_SpecialAdjustedBudget,Sheet1!S71_SA34dCode,$AC:$AC,Sheet1!S71_DepCode,$AD:$AD)","v":0},null,null,null,null,{"$f":"SUMIFS(Sheet1!S71_AdjustmentAmount,Sheet1!S71_SA34dCode,$AC:$AC,Sheet1!S71_DepCode,$AD:$AD)","v":0},0,0,{"$f":"SUMIFS(Sheet1!S71_OY1AdjustedBudget,Sheet1!S71_SA34dCode,$AC:$AC,Sheet1!S71_DepCode,$AD:$AD)","v":0},{"$f":"SUMIFS(Sheet1!S71_OY2AdjustedBudget,Sheet1!S71_SA34dCode,$AC:$AC,Sheet1!S71_DepCode,$AD:$AD)","v":0},null,null,null,null,null,null,null,null,null,null,null,null,null,null,null,"1420","DP"]
["Computer Software and Applications",null,{"$f":"SUMIFS(Sheet1!S71_OriginalBudget,Sheet1!S71_SA34dCode,$AC:$AC,Sheet1!S71_DepCode,$AD:$AD)","v":512050},{"$f":"SUMIFS(Sheet1!S71_SpecialAdjustedBudget,Sheet1!S71_SA34dCode,$AC:$AC,Sheet1!S71_DepCode,$AD:$AD)","v":0},null,null,null,null,{"$f":"SUMIFS(Sheet1!S71_AdjustmentAmount,Sheet1!S71_SA34dCode,$AC:$AC,Sheet1!S71_DepCode,$AD:$AD)","v":-188212},-188212,323838,{"$f":"SUMIFS(Sheet1!S71_OY1AdjustedBudget,Sheet1!S71_SA34dCode,$AC:$AC,Sheet1!S71_DepCode,$AD:$AD)","v":512050},{"$f":"SUMIFS(Sheet1!S71_OY2AdjustedBudget,Sheet1!S71_SA34dCode,$AC:$AC,Sheet1!S71_DepCode,$AD:$AD)","v":535092},null,null,null,null,null,null,null,null,null,null,null,null,null,null,null,"1430","DP"]
["Load Settlement Software Applications",null,{"$f":"SUMIFS(Sheet1!S71_OriginalBudget,Sheet1!S71_SA34dCode,$AC:$AC,Sheet1!S71_DepCode,$AD:$AD)","v":0},{"$f":"SUMIFS(Sheet1!S71_SpecialAdjustedBudget,Sheet1!S71_SA34dCode,$AC:$AC,Sheet1!S71_DepCode,$AD:$AD)","v":0},null,null,null,null,{"$f":"SUMIFS(Sheet1!S71_AdjustmentAmount,Sheet1!S71_SA34dCode,$AC:$AC,Sheet1!S71_DepCode,$AD:$AD)","v":0},0,0,{"$f":"SUMIFS(Sheet1!S71_OY1AdjustedBudget,Sheet1!S71_SA34dCode,$AC:$AC,Sheet1!S71_DepCode,$AD:$AD)","v":0},{"$f":"SUMIFS(Sheet1!S71_OY2AdjustedBudget,Sheet1!S71_SA34dCode,$AC:$AC,Sheet1!S71_DepCode,$AD:$AD)","v":0},null,null,null,null,null,null,null,null,null,null,null,null,null,null,null,"1440","DP"]
["Unspecified",null,{"$f":"SUMIFS(Sheet1!S71_OriginalBudget,Sheet1!S71_SA34dCode,$AC:$AC,Sheet1!S71_DepCode,$AD:$AD)","v":0},{"$f":"SUMIFS(Sheet1!S71_SpecialAdjustedBudget,Sheet1!S71_SA34dCode,$AC:$AC,Sheet1!S71_DepCode,$AD:$AD)","v":0},null,null,null,null,{"$f":"SUMIFS(Sheet1!S71_AdjustmentAmount,Sheet1!S71_SA34dCode,$AC:$AC,Sheet1!S71_DepCode,$AD:$AD)","v":0},0,0,{"$f":"SUMIFS(Sheet1!S71_OY1AdjustedBudget,Sheet1!S71_SA34dCode,$AC:$AC,Sheet1!S71_DepCode,$AD:$AD)","v":0},{"$f":"SUMIFS(Sheet1!S71_OY2AdjustedBudget,Sheet1!S71_SA34dCode,$AC:$AC,Sheet1!S71_DepCode,$AD:$AD)","v":0},null,null,null,null,null,null,null,null,null,null,null,null,null,null,null,"1450","DP"]
[null,null,null,null,null,null,null,null,null,null,null,null,null,null,null,null,null,null,null,null,null,null,null,null,null,null,null,null,null,"DP"]
["Computer Equipment",null,{"$f":"SUM(C152:C152)","v":470250},0,0,0,0,0,-158189,-158189,312061,470250,491411,null,null,null,null,null,null,null,null,null,null,null,null,null,null,null,null,"DP"]
["Computer Equipment",null,{"$f":"SUMIFS(Sheet1!S71_OriginalBudget,Sheet1!S71_SA34dCode,$AC:$AC,Sheet1!S71_DepCode,$AD:$AD)","v":470250},{"$f":"SUMIFS(Sheet1!S71_SpecialAdjustedBudget,Sheet1!S71_SA34dCode,$AC:$AC,Sheet1!S71_DepCode,$AD:$AD)","v":0},null,null,null,null,{"$f":"SUMIFS(Sheet1!S71_AdjustmentAmount,Sheet1!S71_SA34dCode,$AC:$AC,Sheet1!S71_DepCode,$AD:$AD)","v":-158189},-158189,312061,{"$f":"SUMIFS(Sheet1!S71_OY1AdjustedBudget,Sheet1!S71_SA34dCode,$AC:$AC,Sheet1!S71_DepCode,$AD:$AD)","v":470250},{"$f":"SUMIFS(Sheet1!S71_OY2AdjustedBudget,Sheet1!S71_SA34dCode,$AC:$AC,Sheet1!S71_DepCode,$AD:$AD)","v":491411},null,null,null,null,null,null,null,null,null,null,null,null,null,null,null,"1470","DP"]
[null,null,null,null,null,null,null,null,null,null,null,null,null,null,null,null,null,null,null,null,null,null,null,null,null,null,null,null,null,"DP"]
["Furniture and Office Equipment",null,{"$f":"SUM(C155:C155)","v":400000},0,0,0,0,0,-232981,-232981,167019,313500,327608,null,null,null,null,null,null,null,null,null,null,null,null,null,null,null,null,"DP"]
["Furniture and Office Equipment",null,{"$f":"SUMIFS(Sheet1!S71_OriginalBudget,Sheet1!S71_SA34dCode,$AC:$AC,Sheet1!S71_DepCode,$AD:$AD)","v":400000},{"$f":"SUMIFS(Sheet1!S71_SpecialAdjustedBudget,Sheet1!S71_SA34dCode,$AC:$AC,Sheet1!S71_DepCode,$AD:$AD)","v":0},null,null,null,null,{"$f":"SUMIFS(Sheet1!S71_AdjustmentAmount,Sheet1!S71_SA34dCode,$AC:$AC,Sheet1!S71_DepCode,$AD:$AD)","v":-232981},-232981,167019,{"$f":"SUMIFS(Sheet1!S71_OY1AdjustedBudget,Sheet1!S71_SA34dCode,$AC:$AC,Sheet1!S71_DepCode,$AD:$AD)","v":313500},{"$f":"SUMIFS(Sheet1!S71_OY2AdjustedBudget,Sheet1!S71_SA34dCode,$AC:$AC,Sheet1!S71_DepCode,$AD:$AD)","v":327608},null,null,null,null,null,null,null,null,null,null,null,null,null,null,null,"1490","DP"]
[null,null,null,null,null,null,null,null,null,null,null,null,null,null,null,null,null,null,null,null,null,null,null,null,null,null,null,null,null,"DP"]
["Machinery and Equipment",null,{"$f":"SUM(C158:C158)","v":406100},0,0,0,0,0,597722,597722,1003822,606100,633375,null,null,null,null,null,null,null,null,null,null,null,null,null,null,null,null,"DP"]
["Machinery and Equipment",null,{"$f":"SUMIFS(Sheet1!S71_OriginalBudget,Sheet1!S71_SA34dCode,$AC:$AC,Sheet1!S71_DepCode,$AD:$AD)","v":406100},{"$f":"SUMIFS(Sheet1!S71_SpecialAdjustedBudget,Sheet1!S71_SA34dCode,$AC:$AC,Sheet1!S71_DepCode,$AD:$AD)","v":0},null,null,null,null,{"$f":"SUMIFS(Sheet1!S71_AdjustmentAmount,Sheet1!S71_SA34dCode,$AC:$AC,Sheet1!S71_DepCode,$AD:$AD)","v":597722},597722,1003822,{"$f":"SUMIFS(Sheet1!S71_OY1AdjustedBudget,Sheet1!S71_SA34dCode,$AC:$AC,Sheet1!S71_DepCode,$AD:$AD)","v":606100},{"$f":"SUMIFS(Sheet1!S71_OY2AdjustedBudget,Sheet1!S71_SA34dCode,$AC:$AC,Sheet1!S71_DepCode,$AD:$AD)","v":633375},null,null,null,null,null,null,null,null,null,null,null,null,null,null,null,"1510","DP"]
[null,null,null,null,null,null,null,null,null,null,null,null,null,null,null,null,null,null,null,null,null,null,null,null,null,null,null,null,null,"DP"]
["Transport Assets",null,{"$f":"SUM(C161:C161)","v":1279145},0,0,0,0,0,-462461,-462461,816684,1479145,1545707,null,null,null,null,null,null,null,null,null,null,null,null,null,null,null,null,"DP"]
["Transport Assets",null,{"$f":"SUMIFS(Sheet1!S71_OriginalBudget,Sheet1!S71_SA34dCode,$AC:$AC,Sheet1!S71_DepCode,$AD:$AD)","v":1279145},{"$f":"SUMIFS(Sheet1!S71_SpecialAdjustedBudget,Sheet1!S71_SA34dCode,$AC:$AC,Sheet1!S71_DepCode,$AD:$AD)","v":0},null,null,null,null,{"$f":"SUMIFS(Sheet1!S71_AdjustmentAmount,Sheet1!S71_SA34dCode,$AC:$AC,Sheet1!S71_DepCode,$AD:$AD)","v":-462461},-462461,816684,{"$f":"SUMIFS(Sheet1!S71_OY1AdjustedBudget,Sheet1!S71_SA34dCode,$AC:$AC,Sheet1!S71_DepCode,$AD:$AD)","v":1479145},{"$f":"SUMIFS(Sheet1!S71_OY2AdjustedBudget,Sheet1!S71_SA34dCode,$AC:$AC,Sheet1!S71_DepCode,$AD:$AD)","v":1545707},null,null,null,null,null,null,null,null,null,null,null,null,null,null,null,"1530","DP"]
[null,null,null,null,null,null,null,null,null,null,null,null,null,null,null,null,null,null,null,null,null,null,null,null,null,null,null,null,null,"DP"]
["Land",null,{"$f":"SUM(C164:C164)","v":0},0,0,0,0,0,0,0,0,0,0,null,null,null,null,null,null,null,null,null,null,null,null,null,null,null,null,"DP"]
["Land",null,{"$f":"SUMIFS(Sheet1!S71_OriginalBudget,Sheet1!S71_SA34dCode,$AC:$AC,Sheet1!S71_DepCode,$AD:$AD)","v":0},{"$f":"SUMIFS(Sheet1!S71_SpecialAdjustedBudget,Sheet1!S71_SA34dCode,$AC:$AC,Sheet1!S71_DepCode,$AD:$AD)","v":0},null,null,null,null,{"$f":"SUMIFS(Sheet1!S71_AdjustmentAmount,Sheet1!S71_SA34dCode,$AC:$AC,Sheet1!S71_DepCode,$AD:$AD)","v":0},0,0,{"$f":"SUMIFS(Sheet1!S71_OY1AdjustedBudget,Sheet1!S71_SA34dCode,$AC:$AC,Sheet1!S71_DepCode,$AD:$AD)","v":0},{"$f":"SUMIFS(Sheet1!S71_OY2AdjustedBudget,Sheet1!S71_SA34dCode,$AC:$AC,Sheet1!S71_DepCode,$AD:$AD)","v":0},null,null,null,null,null,null,null,null,null,null,null,null,null,null,null,"1550","DP"]
[null,null,null,null,null,null,null,null,null,null,null,null,null,null,null,null,null,null,null,null,null,null,null,null,null,null,null,null,null,"DP"]
["Zoo's, Marine and Non-biological Animals",null,{"$f":"SUM(C167:C167)","v":0},0,0,0,0,0,0,0,0,0,0,null,null,null,null,null,null,null,null,null,null,null,null,null,null,null,null,"DP"]
["Zoo's, Marine and Non-biological Animals",null,{"$f":"SUMIFS(Sheet1!S71_OriginalBudget,Sheet1!S71_SA34dCode,$AC:$AC,Sheet1!S71_DepCode,$AD:$AD)","v":0},{"$f":"SUMIFS(Sheet1!S71_SpecialAdjustedBudget,Sheet1!S71_SA34dCode,$AC:$AC,Sheet1!S71_DepCode,$AD:$AD)","v":0},null,null,null,null,{"$f":"SUMIFS(Sheet1!S71_AdjustmentAmount,Sheet1!S71_SA34dCode,$AC:$AC,Sheet1!S71_DepCode,$AD:$AD)","v":0},0,0,{"$f":"SUMIFS(Sheet1!S71_OY1AdjustedBudget,Sheet1!S71_SA34dCode,$AC:$AC,Sheet1!S71_DepCode,$AD:$AD)","v":0},{"$f":"SUMIFS(Sheet1!S71_OY2AdjustedBudget,Sheet1!S71_SA34dCode,$AC:$AC,Sheet1!S71_DepCode,$AD:$AD)","v":0},null,null,null,null,null,null,null,null,null,null,null,null,null,null,null,"1570","DP"]
[]
["Total Depreciation to be adjusted",1,{"$f":"C8+C76+C105+C112+C120+C151+C138+C141+C154+C157+C160+C163+C166","v":23026560},{"$f":"D8+D76+D105+D112+D120+D151+D138+D141+D154+D157+D160+D163+D166","v":0},0,0,0,0,1069430,1069430,24095990,30722184,33892913]
[{"$f":"head27a","v":"References"}]
["1. Total Repairs and Maintenance Expenditure by Asset Category must reconcile to total repairs and maintenance expenditure on Table SB1"]
["7. Only complete if a previous adjusted budget has been approved in the same financial year. Reflect most recent adjusted budget."]
["8. Additional cash-backed accumulated funds/unspent funds (section 18(1)(b) and section 28(2)(e) MFMA) identified after Original Budget approved and after annual financial statements audited (note: only where underspending could not reasonably be have for"]
["9. Increases of funds approved under section 31 MFMA"]
["10. Adjustments approved in accordance with section 29 MFMA"]
["11. Adjustments to funding allocations from National or Provincial Government"]
["12. Adjusts. = 'Other' Adjustments proposed to be approved; including revenue under-collection (MFMA section 28(2)(a)); additional revenue appropriation on existing programmes (section 28(2))(b); projected savings (section 28(2)(d)); error correction (sec"]
["13. G = B + C + D + E + F"]
["14. Adjusted Budget H = (A or A1) + G"]
[]
[]
["check balance",null,{"$f":"C169-'B4-FinPerf RE'!C29","v":-989202},null,null,null,null,null,null,null,null,{"$f":"L169-'B4-FinPerf RE'!L29","v":-500000},{"$f":"M169-'B4-FinPerf RE'!M29","v":-500000}]

{"sheet":"SB18e","index":60,"n_rows":183,"n_cols":30,"rows_kept":183,"cut":false,"hidden":false,"merged":[[175,0,175,12],[177,0,177,12],[179,0,179,12],[1,0,3,0],[1,1,3,1],[1,2,1,10],[172,0,172,12],[173,0,173,9],[174,0,174,9]]}
[{"$f":"muni&\" - \"&ADJB18e&\" - \"&Date","v":"EC139 Enoch Mgijima - Supporting Table SB18e Adjustments Budget - capital expenditure on upgrading of existing assets by asset class - "}]
[{"$f":"desc","v":"Description"},{"$f":"head27","v":"Ref"},{"$f":"Head2","v":"Budget Year 2021/22"},null,null,null,null,null,null,null,null,{"$f":"Head10","v":"Budget Year +1 2022/23"},{"$f":"Head11","v":"Budget Year +2 2023/24"}]
[null,null,{"$f":"Head6","v":"Original Budget"},{"$f":"Head54","v":"Prior Adjusted"},{"$f":"Head51","v":"Accum. Funds"},{"$f":"Head52","v":"Multi-year capital"},{"$f":"Head53","v":"Unfore. Unavoid."},{"$f":"Head55","v":"Nat. or Prov. Govt"},{"$f":"Head50","v":"Other Adjusts."},{"$f":"Head56","v":"Total Adjusts."},{"$f":"Head7","v":"Adjusted Budget"},{"$f":"Head7","v":"Adjusted Budget"},{"$f":"Head7","v":"Adjusted Budget"}]
[null,null,null,7,8,9,10,11,12,13,14]
["R thousands",null,"A","A1","B","C","D","E","F","G","H"]
["Capital expenditure on upgrading of existing assets by Asset Class/Sub-class"]
[]
["Infrastructure",null,{"$f":"C9+C14+C18+C28+C70+C39+C46+C54+C64","v":0},{"$f":"D9+D14+D18+D28+D70+D39+D46+D54+D64","v":0},0,0,0,0,0,{"$f":"SUM(E8:I8)","v":0},{"$f":"IF(D8=0,C8+J8,D8+J8)","v":0},{"$f":"L9+L14+L18+L28+L70+L39+L46+L54+L64","v":0},{"$f":"M9+M14+M18+M28+M70+M39+M46+M54+M64","v":0}]
["Roads Infrastructure",null,{"$f":"SUM(C10:C13)","v":0},{"$f":"SUM(D10:D13)","v":0},0,0,0,0,0,{"$f":"SUM(E9:I9)","v":0},{"$f":"IF(D9=0,C9+J9,D9+J9)","v":0},0,0]
["Roads",null,{"$f":"SUMIFS(Sheet1!S71_OriginalBudget,Sheet1!S71_SA34eCode,$AC:$AC,Sheet1!S71_A5CapexCode,$AD:$AD)","v":0},{"$f":"SUMIFS(Sheet1!S71_SpecialAdjustedBudget,Sheet1!S71_SA34eCode,$AC:$AC,Sheet1!S71_A5CapexCode,$AD:$AD)","v":0},null,null,null,null,{"$f":"SUMIFS(Sheet1!S71_AdjustmentAmount,Sheet1!S71_SA34eCode,$AC:$AC,Sheet1!S71_A5CapexCode,$AD:$AD)","v":0},0,0,{"$f":"SUMIFS(Sheet1!S71_OY1AdjustedBudget,Sheet1!S71_SA34eCode,$AC:$AC,Sheet1!S71_A5CapexCode,$AD:$AD)","v":0},{"$f":"SUMIFS(Sheet1!S71_OY2AdjustedBudget,Sheet1!S71_SA34eCode,$AC:$AC,Sheet1!S71_A5CapexCode,$AD:$AD)","v":0},null,null,null,null,null,null,null,null,null,null,null,null,null,null,null,"0120","CE"]
["Road Structures",null,{"$f":"SUMIFS(Sheet1!S71_OriginalBudget,Sheet1!S71_SA34eCode,$AC:$AC,Sheet1!S71_A5CapexCode,$AD:$AD)","v":0},{"$f":"SUMIFS(Sheet1!S71_SpecialAdjustedBudget,Sheet1!S71_SA34eCode,$AC:$AC,Sheet1!S71_A5CapexCode,$AD:$AD)","v":0},null,null,null,null,{"$f":"SUMIFS(Sheet1!S71_AdjustmentAmount,Sheet1!S71_SA34eCode,$AC:$AC,Sheet1!S71_A5CapexCode,$AD:$AD)","v":0},0,0,{"$f":"SUMIFS(Sheet1!S71_OY1AdjustedBudget,Sheet1!S71_SA34eCode,$AC:$AC,Sheet1!S71_A5CapexCode,$AD:$AD)","v":0},{"$f":"SUMIFS(Sheet1!S71_OY2AdjustedBudget,Sheet1!S71_SA34eCode,$AC:$AC,Sheet1!S71_A5CapexCode,$AD:$AD)","v":0},null,null,null,null,null,null,null,null,null,null,null,null,null,null,null,"0130","CE"]
["Road Furniture",null,{"$f":"SUMIFS(Sheet1!S71_OriginalBudget,Sheet1!S71_SA34eCode,$AC:$AC,Sheet1!S71_A5CapexCode,$AD:$AD)","v":0},{"$f":"SUMIFS(Sheet1!S71_SpecialAdjustedBudget,Sheet1!S71_SA34eCode,$AC:$AC,Sheet1!S71_A5CapexCode,$AD:$AD)","v":0},null,null,null,null,{"$f":"SUMIFS(Sheet1!S71_AdjustmentAmount,Sheet1!S71_SA34eCode,$AC:$AC,Sheet1!S71_A5CapexCode,$AD:$AD)","v":0},0,0,{"$f":"SUMIFS(Sheet1!S71_OY1AdjustedBudget,Sheet1!S71_SA34eCode,$AC:$AC,Sheet1!S71_A5CapexCode,$AD:$AD)","v":0},{"$f":"SUMIFS(Sheet1!S71_OY2AdjustedBudget,Sheet1!S71_SA34eCode,$AC:$AC,Sheet1!S71_A5CapexCode,$AD:$AD)","v":0},null,null,null,null,null,null,null,null,null,null,null,null,null,null,null,"0140","CE"]
["Capital Spares",null,{"$f":"SUMIFS(Sheet1!S71_OriginalBudget,Sheet1!S71_SA34eCode,$AC:$AC,Sheet1!S71_A5CapexCode,$AD:$AD)","v":0},{"$f":"SUMIFS(Sheet1!S71_SpecialAdjustedBudget,Sheet1!S71_SA34eCode,$AC:$AC,Sheet1!S71_A5CapexCode,$AD:$AD)","v":0},null,null,null,null,{"$f":"SUMIFS(Sheet1!S71_AdjustmentAmount,Sheet1!S71_SA34eCode,$AC:$AC,Sheet1!S71_A5CapexCode,$AD:$AD)","v":0},0,0,{"$f":"SUMIFS(Sheet1!S71_OY1AdjustedBudget,Sheet1!S71_SA34eCode,$AC:$AC,Sheet1!S71_A5CapexCode,$AD:$AD)","v":0},{"$f":"SUMIFS(Sheet1!S71_OY2AdjustedBudget,Sheet1!S71_SA34eCode,$AC:$AC,Sheet1!S71_A5CapexCode,$AD:$AD)","v":0},null,null,null,null,null,null,null,null,null,null,null,null,null,null,null,"0150","CE"]
["Storm water Infrastructure",null,{"$f":"SUM(C15:C17)","v":0},0,0,0,0,0,0,0,0,{"$f":"SUM(L15:L17)","v":0},{"$f":"SUM(M15:M17)","v":0}]
["Drainage Collection",null,{"$f":"SUMIFS(Sheet1!S71_OriginalBudget,Sheet1!S71_SA34eCode,$AC:$AC,Sheet1!S71_A5CapexCode,$AD:$AD)","v":0},{"$f":"SUMIFS(Sheet1!S71_SpecialAdjustedBudget,Sheet1!S71_SA34eCode,$AC:$AC,Sheet1!S71_A5CapexCode,$AD:$AD)","v":0},null,null,null,null,{"$f":"SUMIFS(Sheet1!S71_AdjustmentAmount,Sheet1!S71_SA34eCode,$AC:$AC,Sheet1!S71_A5CapexCode,$AD:$AD)","v":0},0,0,{"$f":"SUMIFS(Sheet1!S71_OY1AdjustedBudget,Sheet1!S71_SA34eCode,$AC:$AC,Sheet1!S71_A5CapexCode,$AD:$AD)","v":0},{"$f":"SUMIFS(Sheet1!S71_OY2AdjustedBudget,Sheet1!S71_SA34eCode,$AC:$AC,Sheet1!S71_A5CapexCode,$AD:$AD)","v":0},null,null,null,null,null,null,null,null,null,null,null,null,null,null,null,"0170","CE"]
["Storm water Conveyance",null,{"$f":"SUMIFS(Sheet1!S71_OriginalBudget,Sheet1!S71_SA34eCode,$AC:$AC,Sheet1!S71_A5CapexCode,$AD:$AD)","v":0},{"$f":"SUMIFS(Sheet1!S71_SpecialAdjustedBudget,Sheet1!S71_SA34eCode,$AC:$AC,Sheet1!S71_A5CapexCode,$AD:$AD)","v":0},null,null,null,null,{"$f":"SUMIFS(Sheet1!S71_AdjustmentAmount,Sheet1!S71_SA34eCode,$AC:$AC,Sheet1!S71_A5CapexCode,$AD:$AD)","v":0},0,0,{"$f":"SUMIFS(Sheet1!S71_OY1AdjustedBudget,Sheet1!S71_SA34eCode,$AC:$AC,Sheet1!S71_A5CapexCode,$AD:$AD)","v":0},{"$f":"SUMIFS(Sheet1!S71_OY2AdjustedBudget,Sheet1!S71_SA34eCode,$AC:$AC,Sheet1!S71_A5CapexCode,$AD:$AD)","v":0},null,null,null,null,null,null,null,null,null,null,null,null,null,null,null,"0180","CE"]
["Attenuation",null,{"$f":"SUMIFS(Sheet1!S71_OriginalBudget,Sheet1!S71_SA34eCode,$AC:$AC,Sheet1!S71_A5CapexCode,$AD:$AD)","v":0},{"$f":"SUMIFS(Sheet1!S71_SpecialAdjustedBudget,Sheet1!S71_SA34eCode,$AC:$AC,Sheet1!S71_A5CapexCode,$AD:$AD)","v":0},null,null,null,null,{"$f":"SUMIFS(Sheet1!S71_AdjustmentAmount,Sheet1!S71_SA34eCode,$AC:$AC,Sheet1!S71_A5CapexCode,$AD:$AD)","v":0},0,0,{"$f":"SUMIFS(Sheet1!S71_OY1AdjustedBudget,Sheet1!S71_SA34eCode,$AC:$AC,Sheet1!S71_A5CapexCode,$AD:$AD)","v":0},{"$f":"SUMIFS(Sheet1!S71_OY2AdjustedBudget,Sheet1!S71_SA34eCode,$AC:$AC,Sheet1!S71_A5CapexCode,$AD:$AD)","v":0},null,null,null,null,null,null,null,null,null,null,null,null,null,null,null,"0190","CE"]
["Electrical Infrastructure",null,{"$f":"SUM(C19:C27)","v":0},0,0,0,0,0,0,0,0,0,0]
["Power Plants",null,{"$f":"SUMIFS(Sheet1!S71_OriginalBudget,Sheet1!S71_SA34eCode,$AC:$AC,Sheet1!S71_A5CapexCode,$AD:$AD)","v":0},{"$f":"SUMIFS(Sheet1!S71_SpecialAdjustedBudget,Sheet1!S71_SA34eCode,$AC:$AC,Sheet1!S71_A5CapexCode,$AD:$AD)","v":0},null,null,null,null,{"$f":"SUMIFS(Sheet1!S71_AdjustmentAmount,Sheet1!S71_SA34eCode,$AC:$AC,Sheet1!S71_A5CapexCode,$AD:$AD)","v":0},0,0,{"$f":"SUMIFS(Sheet1!S71_OY1AdjustedBudget,Sheet1!S71_SA34eCode,$AC:$AC,Sheet1!S71_A5CapexCode,$AD:$AD)","v":0},{"$f":"SUMIFS(Sheet1!S71_OY2AdjustedBudget,Sheet1!S71_SA34eCode,$AC:$AC,Sheet1!S71_A5CapexCode,$AD:$AD)","v":0},null,null,null,null,null,null,null,null,null,null,null,null,null,null,null,"0210","CE"]
["HV Substations",null,{"$f":"SUMIFS(Sheet1!S71_OriginalBudget,Sheet1!S71_SA34eCode,$AC:$AC,Sheet1!S71_A5CapexCode,$AD:$AD)","v":0},{"$f":"SUMIFS(Sheet1!S71_SpecialAdjustedBudget,Sheet1!S71_SA34eCode,$AC:$AC,Sheet1!S71_A5CapexCode,$AD:$AD)","v":0},null,null,null,null,{"$f":"SUMIFS(Sheet1!S71_AdjustmentAmount,Sheet1!S71_SA34eCode,$AC:$AC,Sheet1!S71_A5CapexCode,$AD:$AD)","v":0},0,0,{"$f":"SUMIFS(Sheet1!S71_OY1AdjustedBudget,Sheet1!S71_SA34eCode,$AC:$AC,Sheet1!S71_A5CapexCode,$AD:$AD)","v":0},{"$f":"SUMIFS(Sheet1!S71_OY2AdjustedBudget,Sheet1!S71_SA34eCode,$AC:$AC,Sheet1!S71_A5CapexCode,$AD:$AD)","v":0},null,null,null,null,null,null,null,null,null,null,null,null,null,null,null,"0220","CE"]
["HV Switching Station",null,{"$f":"SUMIFS(Sheet1!S71_OriginalBudget,Sheet1!S71_SA34eCode,$AC:$AC,Sheet1!S71_A5CapexCode,$AD:$AD)","v":0},{"$f":"SUMIFS(Sheet1!S71_SpecialAdjustedBudget,Sheet1!S71_SA34eCode,$AC:$AC,Sheet1!S71_A5CapexCode,$AD:$AD)","v":0},null,null,null,null,{"$f":"SUMIFS(Sheet1!S71_AdjustmentAmount,Sheet1!S71_SA34eCode,$AC:$AC,Sheet1!S71_A5CapexCode,$AD:$AD)","v":0},0,0,{"$f":"SUMIFS(Sheet1!S71_OY1AdjustedBudget,Sheet1!S71_SA34eCode,$AC:$AC,Sheet1!S71_A5CapexCode,$AD:$AD)","v":0},{"$f":"SUMIFS(Sheet1!S71_OY2AdjustedBudget,Sheet1!S71_SA34eCode,$AC:$AC,Sheet1!S71_A5CapexCode,$AD:$AD)","v":0},null,null,null,null,null,null,null,null,null,null,null,null,null,null,null,"0230","CE"]
["HV Transmission Conductors",null,{"$f":"SUMIFS(Sheet1!S71_OriginalBudget,Sheet1!S71_SA34eCode,$AC:$AC,Sheet1!S71_A5CapexCode,$AD:$AD)","v":0},{"$f":"SUMIFS(Sheet1!S71_SpecialAdjustedBudget,Sheet1!S71_SA34eCode,$AC:$AC,Sheet1!S71_A5CapexCode,$AD:$AD)","v":0},null,null,null,null,{"$f":"SUMIFS(Sheet1!S71_AdjustmentAmount,Sheet1!S71_SA34eCode,$AC:$AC,Sheet1!S71_A5CapexCode,$AD:$AD)","v":0},0,0,{"$f":"SUMIFS(Sheet1!S71_OY1AdjustedBudget,Sheet1!S71_SA34eCode,$AC:$AC,Sheet1!S71_A5CapexCode,$AD:$AD)","v":0},{"$f":"SUMIFS(Sheet1!S71_OY2AdjustedBudget,Sheet1!S71_SA34eCode,$AC:$AC,Sheet1!S71_A5CapexCode,$AD:$AD)","v":0},null,null,null,null,null,null,null,null,null,null,null,null,null,null,null,"0240","CE"]
["MV Substations",null,{"$f":"SUMIFS(Sheet1!S71_OriginalBudget,Sheet1!S71_SA34eCode,$AC:$AC,Sheet1!S71_A5CapexCode,$AD:$AD)","v":0},{"$f":"SUMIFS(Sheet1!S71_SpecialAdjustedBudget,Sheet1!S71_SA34eCode,$AC:$AC,Sheet1!S71_A5CapexCode,$AD:$AD)","v":0},null,null,null,null,{"$f":"SUMIFS(Sheet1!S71_AdjustmentAmount,Sheet1!S71_SA34eCode,$AC:$AC,Sheet1!S71_A5CapexCode,$AD:$AD)","v":0},0,0,{"$f":"SUMIFS(Sheet1!S71_OY1AdjustedBudget,Sheet1!S71_SA34eCode,$AC:$AC,Sheet1!S71_A5CapexCode,$AD:$AD)","v":0},{"$f":"SUMIFS(Sheet1!S71_OY2AdjustedBudget,Sheet1!S71_SA34eCode,$AC:$AC,Sheet1!S71_A5CapexCode,$AD:$AD)","v":0},null,null,null,null,null,null,null,null,null,null,null,null,null,null,null,"0250","CE"]
["MV Switching Stations",null,{"$f":"SUMIFS(Sheet1!S71_OriginalBudget,Sheet1!S71_SA34eCode,$AC:$AC,Sheet1!S71_A5CapexCode,$AD:$AD)","v":0},{"$f":"SUMIFS(Sheet1!S71_SpecialAdjustedBudget,Sheet1!S71_SA34eCode,$AC:$AC,Sheet1!S71_A5CapexCode,$AD:$AD)","v":0},null,null,null,null,{"$f":"SUMIFS(Sheet1!S71_AdjustmentAmount,Sheet1!S71_SA34eCode,$AC:$AC,Sheet1!S71_A5CapexCode,$AD:$AD)","v":0},0,0,{"$f":"SUMIFS(Sheet1!S71_OY1AdjustedBudget,Sheet1!S71_SA34eCode,$AC:$AC,Sheet1!S71_A5CapexCode,$AD:$AD)","v":0},{"$f":"SUMIFS(Sheet1!S71_OY2AdjustedBudget,Sheet1!S71_SA34eCode,$AC:$AC,Sheet1!S71_A5CapexCode,$AD:$AD)","v":0},null,null,null,null,null,null,null,null,null,null,null,null,null,null,null,"0260","CE"]
["MV Networks",null,{"$f":"SUMIFS(Sheet1!S71_OriginalBudget,Sheet1!S71_SA34eCode,$AC:$AC,Sheet1!S71_A5CapexCode,$AD:$AD)","v":0},{"$f":"SUMIFS(Sheet1!S71_SpecialAdjustedBudget,Sheet1!S71_SA34eCode,$AC:$AC,Sheet1!S71_A5CapexCode,$AD:$AD)","v":0},null,null,null,null,{"$f":"SUMIFS(Sheet1!S71_AdjustmentAmount,Sheet1!S71_SA34eCode,$AC:$AC,Sheet1!S71_A5CapexCode,$AD:$AD)","v":0},0,0,{"$f":"SUMIFS(Sheet1!S71_OY1AdjustedBudget,Sheet1!S71_SA34eCode,$AC:$AC,Sheet1!S71_A5CapexCode,$AD:$AD)","v":0},{"$f":"SUMIFS(Sheet1!S71_OY2AdjustedBudget,Sheet1!S71_SA34eCode,$AC:$AC,Sheet1!S71_A5CapexCode,$AD:$AD)","v":0},null,null,null,null,null,null,null,null,null,null,null,null,null,null,null,"0270","CE"]
["LV Networks",null,{"$f":"SUMIFS(Sheet1!S71_OriginalBudget,Sheet1!S71_SA34eCode,$AC:$AC,Sheet1!S71_A5CapexCode,$AD:$AD)","v":0},{"$f":"SUMIFS(Sheet1!S71_SpecialAdjustedBudget,Sheet1!S71_SA34eCode,$AC:$AC,Sheet1!S71_A5CapexCode,$AD:$AD)","v":0},null,null,null,null,{"$f":"SUMIFS(Sheet1!S71_AdjustmentAmount,Sheet1!S71_SA34eCode,$AC:$AC,Sheet1!S71_A5CapexCode,$AD:$AD)","v":0},0,0,{"$f":"SUMIFS(Sheet1!S71_OY1AdjustedBudget,Sheet1!S71_SA34eCode,$AC:$AC,Sheet1!S71_A5CapexCode,$AD:$AD)","v":0},{"$f":"SUMIFS(Sheet1!S71_OY2AdjustedBudget,Sheet1!S71_SA34eCode,$AC:$AC,Sheet1!S71_A5CapexCode,$AD:$AD)","v":0},null,null,null,null,null,null,null,null,null,null,null,null,null,null,null,"0280","CE"]
["Capital Spares",null,{"$f":"SUMIFS(Sheet1!S71_OriginalBudget,Sheet1!S71_SA34eCode,$AC:$AC,Sheet1!S71_A5CapexCode,$AD:$AD)","v":0},{"$f":"SUMIFS(Sheet1!S71_SpecialAdjustedBudget,Sheet1!S71_SA34eCode,$AC:$AC,Sheet1!S71_A5CapexCode,$AD:$AD)","v":0},null,null,null,null,{"$f":"SUMIFS(Sheet1!S71_AdjustmentAmount,Sheet1!S71_SA34eCode,$AC:$AC,Sheet1!S71_A5CapexCode,$AD:$AD)","v":0},0,0,{"$f":"SUMIFS(Sheet1!S71_OY1AdjustedBudget,Sheet1!S71_SA34eCode,$AC:$AC,Sheet1!S71_A5CapexCode,$AD:$AD)","v":0},{"$f":"SUMIFS(Sheet1!S71_OY2AdjustedBudget,Sheet1!S71_SA34eCode,$AC:$AC,Sheet1!S71_A5CapexCode,$AD:$AD)","v":0},null,null,null,null,null,null,null,null,null,null,null,null,null,null,null,"0290","CE"]
["Water Supply Infrastructure",null,{"$f":"SUM(C29:C38)","v":0},0,0,0,0,0,0,0,0,0,0]
["Dams and Weirs",null,{"$f":"SUMIFS(Sheet1!S71_OriginalBudget,Sheet1!S71_SA34eCode,$AC:$AC,Sheet1!S71_A5CapexCode,$AD:$AD)","v":0},{"$f":"SUMIFS(Sheet1!S71_SpecialAdjustedBudget,Sheet1!S71_SA34eCode,$AC:$AC,Sheet1!S71_A5CapexCode,$AD:$AD)","v":0},null,null,null,null,{"$f":"SUMIFS(Sheet1!S71_AdjustmentAmount,Sheet1!S71_SA34eCode,$AC:$AC,Sheet1!S71_A5CapexCode,$AD:$AD)","v":0},0,0,{"$f":"SUMIFS(Sheet1!S71_OY1AdjustedBudget,Sheet1!S71_SA34eCode,$AC:$AC,Sheet1!S71_A5CapexCode,$AD:$AD)","v":0},{"$f":"SUMIFS(Sheet1!S71_OY2AdjustedBudget,Sheet1!S71_SA34eCode,$AC:$AC,Sheet1!S71_A5CapexCode,$AD:$AD)","v":0},null,null,null,null,null,null,null,null,null,null,null,null,null,null,null,"0310","CE"]
["Boreholes",null,{"$f":"SUMIFS(Sheet1!S71_OriginalBudget,Sheet1!S71_SA34eCode,$AC:$AC,Sheet1!S71_A5CapexCode,$AD:$AD)","v":0},{"$f":"SUMIFS(Sheet1!S71_SpecialAdjustedBudget,Sheet1!S71_SA34eCode,$AC:$AC,Sheet1!S71_A5CapexCode,$AD:$AD)","v":0},null,null,null,null,{"$f":"SUMIFS(Sheet1!S71_AdjustmentAmount,Sheet1!S71_SA34eCode,$AC:$AC,Sheet1!S71_A5CapexCode,$AD:$AD)","v":0},0,0,{"$f":"SUMIFS(Sheet1!S71_OY1AdjustedBudget,Sheet1!S71_SA34eCode,$AC:$AC,Sheet1!S71_A5CapexCode,$AD:$AD)","v":0},{"$f":"SUMIFS(Sheet1!S71_OY2AdjustedBudget,Sheet1!S71_SA34eCode,$AC:$AC,Sheet1!S71_A5CapexCode,$AD:$AD)","v":0},null,null,null,null,null,null,null,null,null,null,null,null,null,null,null,"0320","CE"]
["Reservoirs",null,{"$f":"SUMIFS(Sheet1!S71_OriginalBudget,Sheet1!S71_SA34eCode,$AC:$AC,Sheet1!S71_A5CapexCode,$AD:$AD)","v":0},{"$f":"SUMIFS(Sheet1!S71_SpecialAdjustedBudget,Sheet1!S71_SA34eCode,$AC:$AC,Sheet1!S71_A5CapexCode,$AD:$AD)","v":0},null,null,null,null,{"$f":"SUMIFS(Sheet1!S71_AdjustmentAmount,Sheet1!S71_SA34eCode,$AC:$AC,Sheet1!S71_A5CapexCode,$AD:$AD)","v":0},0,0,{"$f":"SUMIFS(Sheet1!S71_OY1AdjustedBudget,Sheet1!S71_SA34eCode,$AC:$AC,Sheet1!S71_A5CapexCode,$AD:$AD)","v":0},{"$f":"SUMIFS(Sheet1!S71_OY2AdjustedBudget,Sheet1!S71_SA34eCode,$AC:$AC,Sheet1!S71_A5CapexCode,$AD:$AD)","v":0},null,null,null,null,null,null,null,null,null,null,null,null,null,null,null,"0330","CE"]
["Pump Stations",null,{"$f":"SUMIFS(Sheet1!S71_OriginalBudget,Sheet1!S71_SA34eCode,$AC:$AC,Sheet1!S71_A5CapexCode,$AD:$AD)","v":0},{"$f":"SUMIFS(Sheet1!S71_SpecialAdjustedBudget,Sheet1!S71_SA34eCode,$AC:$AC,Sheet1!S71_A5CapexCode,$AD:$AD)","v":0},null,null,null,null,{"$f":"SUMIFS(Sheet1!S71_AdjustmentAmount,Sheet1!S71_SA34eCode,$AC:$AC,Sheet1!S71_A5CapexCode,$AD:$AD)","v":0},0,0,{"$f":"SUMIFS(Sheet1!S71_OY1AdjustedBudget,Sheet1!S71_SA34eCode,$AC:$AC,Sheet1!S71_A5CapexCode,$AD:$AD)","v":0},{"$f":"SUMIFS(Sheet1!S71_OY2AdjustedBudget,Sheet1!S71_SA34eCode,$AC:$AC,Sheet1!S71_A5CapexCode,$AD:$AD)","v":0},null,null,null,null,null,null,null,null,null,null,null,null,null,null,null,"0340","CE"]
["Water Treatment Works",null,{"$f":"SUMIFS(Sheet1!S71_OriginalBudget,Sheet1!S71_SA34eCode,$AC:$AC,Sheet1!S71_A5CapexCode,$AD:$AD)","v":0},{"$f":"SUMIFS(Sheet1!S71_SpecialAdjustedBudget,Sheet1!S71_SA34eCode,$AC:$AC,Sheet1!S71_A5CapexCode,$AD:$AD)","v":0},null,null,null,null,{"$f":"SUMIFS(Sheet1!S71_AdjustmentAmount,Sheet1!S71_SA34eCode,$AC:$AC,Sheet1!S71_A5CapexCode,$AD:$AD)","v":0},0,0,{"$f":"SUMIFS(Sheet1!S71_OY1AdjustedBudget,Sheet1!S71_SA34eCode,$AC:$AC,Sheet1!S71_A5CapexCode,$AD:$AD)","v":0},{"$f":"SUMIFS(Sheet1!S71_OY2AdjustedBudget,Sheet1!S71_SA34eCode,$AC:$AC,Sheet1!S71_A5CapexCode,$AD:$AD)","v":0},null,null,null,null,null,null,null,null,null,null,null,null,null,null,null,"0350","CE"]
["Bulk Mains",null,{"$f":"SUMIFS(Sheet1!S71_OriginalBudget,Sheet1!S71_SA34eCode,$AC:$AC,Sheet1!S71_A5CapexCode,$AD:$AD)","v":0},{"$f":"SUMIFS(Sheet1!S71_SpecialAdjustedBudget,Sheet1!S71_SA34eCode,$AC:$AC,Sheet1!S71_A5CapexCode,$AD:$AD)","v":0},null,null,null,null,{"$f":"SUMIFS(Sheet1!S71_AdjustmentAmount,Sheet1!S71_SA34eCode,$AC:$AC,Sheet1!S71_A5CapexCode,$AD:$AD)","v":0},0,0,{"$f":"SUMIFS(Sheet1!S71_OY1AdjustedBudget,Sheet1!S71_SA34eCode,$AC:$AC,Sheet1!S71_A5CapexCode,$AD:$AD)","v":0},{"$f":"SUMIFS(Sheet1!S71_OY2AdjustedBudget,Sheet1!S71_SA34eCode,$AC:$AC,Sheet1!S71_A5CapexCode,$AD:$AD)","v":0},null,null,null,null,null,null,null,null,null,null,null,null,null,null,null,"0360","CE"]
["Distribution",null,{"$f":"SUMIFS(Sheet1!S71_OriginalBudget,Sheet1!S71_SA34eCode,$AC:$AC,Sheet1!S71_A5CapexCode,$AD:$AD)","v":0},{"$f":"SUMIFS(Sheet1!S71_SpecialAdjustedBudget,Sheet1!S71_SA34eCode,$AC:$AC,Sheet1!S71_A5CapexCode,$AD:$AD)","v":0},null,null,null,null,{"$f":"SUMIFS(Sheet1!S71_AdjustmentAmount,Sheet1!S71_SA34eCode,$AC:$AC,Sheet1!S71_A5CapexCode,$AD:$AD)","v":0},0,0,{"$f":"SUMIFS(Sheet1!S71_OY1AdjustedBudget,Sheet1!S71_SA34eCode,$AC:$AC,Sheet1!S71_A5CapexCode,$AD:$AD)","v":0},{"$f":"SUMIFS(Sheet1!S71_OY2AdjustedBudget,Sheet1!S71_SA34eCode,$AC:$AC,Sheet1!S71_A5CapexCode,$AD:$AD)","v":0},null,null,null,null,null,null,null,null,null,null,null,null,null,null,null,"0370","CE"]
["Distribution Points",null,{"$f":"SUMIFS(Sheet1!S71_OriginalBudget,Sheet1!S71_SA34eCode,$AC:$AC,Sheet1!S71_A5CapexCode,$AD:$AD)","v":0},{"$f":"SUMIFS(Sheet1!S71_SpecialAdjustedBudget,Sheet1!S71_SA34eCode,$AC:$AC,Sheet1!S71_A5CapexCode,$AD:$AD)","v":0},null,null,null,null,{"$f":"SUMIFS(Sheet1!S71_AdjustmentAmount,Sheet1!S71_SA34eCode,$AC:$AC,Sheet1!S71_A5CapexCode,$AD:$AD)","v":0},0,0,{"$f":"SUMIFS(Sheet1!S71_OY1AdjustedBudget,Sheet1!S71_SA34eCode,$AC:$AC,Sheet1!S71_A5CapexCode,$AD:$AD)","v":0},{"$f":"SUMIFS(Sheet1!S71_OY2AdjustedBudget,Sheet1!S71_SA34eCode,$AC:$AC,Sheet1!S71_A5CapexCode,$AD:$AD)","v":0},null,null,null,null,null,null,null,null,null,null,null,null,null,null,null,"0380","CE"]
["PRV Stations",null,{"$f":"SUMIFS(Sheet1!S71_OriginalBudget,Sheet1!S71_SA34eCode,$AC:$AC,Sheet1!S71_A5CapexCode,$AD:$AD)","v":0},{"$f":"SUMIFS(Sheet1!S71_SpecialAdjustedBudget,Sheet1!S71_SA34eCode,$AC:$AC,Sheet1!S71_A5CapexCode,$AD:$AD)","v":0},null,null,null,null,{"$f":"SUMIFS(Sheet1!S71_AdjustmentAmount,Sheet1!S71_SA34eCode,$AC:$AC,Sheet1!S71_A5CapexCode,$AD:$AD)","v":0},0,0,{"$f":"SUMIFS(Sheet1!S71_OY1AdjustedBudget,Sheet1!S71_SA34eCode,$AC:$AC,Sheet1!S71_A5CapexCode,$AD:$AD)","v":0},{"$f":"SUMIFS(Sheet1!S71_OY2AdjustedBudget,Sheet1!S71_SA34eCode,$AC:$AC,Sheet1!S71_A5CapexCode,$AD:$AD)","v":0},null,null,null,null,null,null,null,null,null,null,null,null,null,null,null,"0390","CE"]
["Capital Spares",null,{"$f":"SUMIFS(Sheet1!S71_OriginalBudget,Sheet1!S71_SA34eCode,$AC:$AC,Sheet1!S71_A5CapexCode,$AD:$AD)","v":0},{"$f":"SUMIFS(Sheet1!S71_SpecialAdjustedBudget,Sheet1!S71_SA34eCode,$AC:$AC,Sheet1!S71_A5CapexCode,$AD:$AD)","v":0},null,null,null,null,{"$f":"SUMIFS(Sheet1!S71_AdjustmentAmount,Sheet1!S71_SA34eCode,$AC:$AC,Sheet1!S71_A5CapexCode,$AD:$AD)","v":0},0,0,{"$f":"SUMIFS(Sheet1!S71_OY1AdjustedBudget,Sheet1!S71_SA34eCode,$AC:$AC,Sheet1!S71_A5CapexCode,$AD:$AD)","v":0},{"$f":"SUMIFS(Sheet1!S71_OY2AdjustedBudget,Sheet1!S71_SA34eCode,$AC:$AC,Sheet1!S71_A5CapexCode,$AD:$AD)","v":0},null,null,null,null,null,null,null,null,null,null,null,null,null,null,null,"0400","CE"]
["Sanitation Infrastructure",null,{"$f":"SUM(C40:C45)","v":0},{"$f":"SUM(D40:D45)","v":0},0,0,0,0,0,0,0,0,0]
["Pump Station",null,{"$f":"SUMIFS(Sheet1!S71_OriginalBudget,Sheet1!S71_SA34eCode,$AC:$AC,Sheet1!S71_A5CapexCode,$AD:$AD)","v":0},{"$f":"SUMIFS(Sheet1!S71_SpecialAdjustedBudget,Sheet1!S71_SA34eCode,$AC:$AC,Sheet1!S71_A5CapexCode,$AD:$AD)","v":0},null,null,null,null,{"$f":"SUMIFS(Sheet1!S71_AdjustmentAmount,Sheet1!S71_SA34eCode,$AC:$AC,Sheet1!S71_A5CapexCode,$AD:$AD)","v":0},0,0,{"$f":"SUMIFS(Sheet1!S71_OY1AdjustedBudget,Sheet1!S71_SA34eCode,$AC:$AC,Sheet1!S71_A5CapexCode,$AD:$AD)","v":0},{"$f":"SUMIFS(Sheet1!S71_OY2AdjustedBudget,Sheet1!S71_SA34eCode,$AC:$AC,Sheet1!S71_A5CapexCode,$AD:$AD)","v":0},null,null,null,null,null,null,null,null,null,null,null,null,null,null,null,"0420","CE"]
["Reticulation",null,{"$f":"SUMIFS(Sheet1!S71_OriginalBudget,Sheet1!S71_SA34eCode,$AC:$AC,Sheet1!S71_A5CapexCode,$AD:$AD)","v":0},{"$f":"SUMIFS(Sheet1!S71_SpecialAdjustedBudget,Sheet1!S71_SA34eCode,$AC:$AC,Sheet1!S71_A5CapexCode,$AD:$AD)","v":0},null,null,null,null,{"$f":"SUMIFS(Sheet1!S71_AdjustmentAmount,Sheet1!S71_SA34eCode,$AC:$AC,Sheet1!S71_A5CapexCode,$AD:$AD)","v":0},0,0,{"$f":"SUMIFS(Sheet1!S71_OY1AdjustedBudget,Sheet1!S71_SA34eCode,$AC:$AC,Sheet1!S71_A5CapexCode,$AD:$AD)","v":0},{"$f":"SUMIFS(Sheet1!S71_OY2AdjustedBudget,Sheet1!S71_SA34eCode,$AC:$AC,Sheet1!S71_A5CapexCode,$AD:$AD)","v":0},null,null,null,null,null,null,null,null,null,null,null,null,null,null,null,"0430","CE"]
["Waste Water Treatment Works",null,{"$f":"SUMIFS(Sheet1!S71_OriginalBudget,Sheet1!S71_SA34eCode,$AC:$AC,Sheet1!S71_A5CapexCode,$AD:$AD)","v":0},{"$f":"SUMIFS(Sheet1!S71_SpecialAdjustedBudget,Sheet1!S71_SA34eCode,$AC:$AC,Sheet1!S71_A5CapexCode,$AD:$AD)","v":0},null,null,null,null,{"$f":"SUMIFS(Sheet1!S71_AdjustmentAmount,Sheet1!S71_SA34eCode,$AC:$AC,Sheet1!S71_A5CapexCode,$AD:$AD)","v":0},0,0,{"$f":"SUMIFS(Sheet1!S71_OY1AdjustedBudget,Sheet1!S71_SA34eCode,$AC:$AC,Sheet1!S71_A5CapexCode,$AD:$AD)","v":0},{"$f":"SUMIFS(Sheet1!S71_OY2AdjustedBudget,Sheet1!S71_SA34eCode,$AC:$AC,Sheet1!S71_A5CapexCode,$AD:$AD)","v":0},null,null,null,null,null,null,null,null,null,null,null,null,null,null,null,"0440","CE"]
["Outfall Sewers",null,{"$f":"SUMIFS(Sheet1!S71_OriginalBudget,Sheet1!S71_SA34eCode,$AC:$AC,Sheet1!S71_A5CapexCode,$AD:$AD)","v":0},{"$f":"SUMIFS(Sheet1!S71_SpecialAdjustedBudget,Sheet1!S71_SA34eCode,$AC:$AC,Sheet1!S71_A5CapexCode,$AD:$AD)","v":0},null,null,null,null,{"$f":"SUMIFS(Sheet1!S71_AdjustmentAmount,Sheet1!S71_SA34eCode,$AC:$AC,Sheet1!S71_A5CapexCode,$AD:$AD)","v":0},0,0,{"$f":"SUMIFS(Sheet1!S71_OY1AdjustedBudget,Sheet1!S71_SA34eCode,$AC:$AC,Sheet1!S71_A5CapexCode,$AD:$AD)","v":0},{"$f":"SUMIFS(Sheet1!S71_OY2AdjustedBudget,Sheet1!S71_SA34eCode,$AC:$AC,Sheet1!S71_A5CapexCode,$AD:$AD)","v":0},null,null,null,null,null,null,null,null,null,null,null,null,null,null,null,"0450","CE"]
["Toilet Facilities",null,{"$f":"SUMIFS(Sheet1!S71_OriginalBudget,Sheet1!S71_SA34eCode,$AC:$AC,Sheet1!S71_A5CapexCode,$AD:$AD)","v":0},{"$f":"SUMIFS(Sheet1!S71_SpecialAdjustedBudget,Sheet1!S71_SA34eCode,$AC:$AC,Sheet1!S71_A5CapexCode,$AD:$AD)","v":0},null,null,null,null,{"$f":"SUMIFS(Sheet1!S71_AdjustmentAmount,Sheet1!S71_SA34eCode,$AC:$AC,Sheet1!S71_A5CapexCode,$AD:$AD)","v":0},0,0,{"$f":"SUMIFS(Sheet1!S71_OY1AdjustedBudget,Sheet1!S71_SA34eCode,$AC:$AC,Sheet1!S71_A5CapexCode,$AD:$AD)","v":0},{"$f":"SUMIFS(Sheet1!S71_OY2AdjustedBudget,Sheet1!S71_SA34eCode,$AC:$AC,Sheet1!S71_A5CapexCode,$AD:$AD)","v":0},null,null,null,null,null,null,null,null,null,null,null,null,null,null,null,"0460","CE"]
["Capital Spares",null,{"$f":"SUMIFS(Sheet1!S71_OriginalBudget,Sheet1!S71_SA34eCode,$AC:$AC,Sheet1!S71_A5CapexCode,$AD:$AD)","v":0},{"$f":"SUMIFS(Sheet1!S71_SpecialAdjustedBudget,Sheet1!S71_SA34eCode,$AC:$AC,Sheet1!S71_A5CapexCode,$AD:$AD)","v":0},null,null,null,null,{"$f":"SUMIFS(Sheet1!S71_AdjustmentAmount,Sheet1!S71_SA34eCode,$AC:$AC,Sheet1!S71_A5CapexCode,$AD:$AD)","v":0},0,0,{"$f":"SUMIFS(Sheet1!S71_OY1AdjustedBudget,Sheet1!S71_SA34eCode,$AC:$AC,Sheet1!S71_A5CapexCode,$AD:$AD)","v":0},{"$f":"SUMIFS(Sheet1!S71_OY2AdjustedBudget,Sheet1!S71_SA34eCode,$AC:$AC,Sheet1!S71_A5CapexCode,$AD:$AD)","v":0},null,null,null,null,null,null,null,null,null,null,null,null,null,null,null,"0470","CE"]
["Solid Waste Infrastructure",null,{"$f":"SUM(C47:C53)","v":0},{"$f":"SUM(D47:D53)","v":0},0,0,0,0,0,0,0,0,0]
["Landfill Sites",null,{"$f":"SUMIFS(Sheet1!S71_OriginalBudget,Sheet1!S71_SA34eCode,$AC:$AC,Sheet1!S71_A5CapexCode,$AD:$AD)","v":0},{"$f":"SUMIFS(Sheet1!S71_SpecialAdjustedBudget,Sheet1!S71_SA34eCode,$AC:$AC,Sheet1!S71_A5CapexCode,$AD:$AD)","v":0},null,null,null,null,{"$f":"SUMIFS(Sheet1!S71_AdjustmentAmount,Sheet1!S71_SA34eCode,$AC:$AC,Sheet1!S71_A5CapexCode,$AD:$AD)","v":0},0,0,{"$f":"SUMIFS(Sheet1!S71_OY1AdjustedBudget,Sheet1!S71_SA34eCode,$AC:$AC,Sheet1!S71_A5CapexCode,$AD:$AD)","v":0},{"$f":"SUMIFS(Sheet1!S71_OY2AdjustedBudget,Sheet1!S71_SA34eCode,$AC:$AC,Sheet1!S71_A5CapexCode,$AD:$AD)","v":0},null,null,null,null,null,null,null,null,null,null,null,null,null,null,null,"0490","CE"]
["Waste Transfer Stations",null,{"$f":"SUMIFS(Sheet1!S71_OriginalBudget,Sheet1!S71_SA34eCode,$AC:$AC,Sheet1!S71_A5CapexCode,$AD:$AD)","v":0},{"$f":"SUMIFS(Sheet1!S71_SpecialAdjustedBudget,Sheet1!S71_SA34eCode,$AC:$AC,Sheet1!S71_A5CapexCode,$AD:$AD)","v":0},null,null,null,null,{"$f":"SUMIFS(Sheet1!S71_AdjustmentAmount,Sheet1!S71_SA34eCode,$AC:$AC,Sheet1!S71_A5CapexCode,$AD:$AD)","v":0},0,0,{"$f":"SUMIFS(Sheet1!S71_OY1AdjustedBudget,Sheet1!S71_SA34eCode,$AC:$AC,Sheet1!S71_A5CapexCode,$AD:$AD)","v":0},{"$f":"SUMIFS(Sheet1!S71_OY2AdjustedBudget,Sheet1!S71_SA34eCode,$AC:$AC,Sheet1!S71_A5CapexCode,$AD:$AD)","v":0},null,null,null,null,null,null,null,null,null,null,null,null,null,null,null,"0500","CE"]
["Waste Processing Facilities",null,{"$f":"SUMIFS(Sheet1!S71_OriginalBudget,Sheet1!S71_SA34eCode,$AC:$AC,Sheet1!S71_A5CapexCode,$AD:$AD)","v":0},{"$f":"SUMIFS(Sheet1!S71_SpecialAdjustedBudget,Sheet1!S71_SA34eCode,$AC:$AC,Sheet1!S71_A5CapexCode,$AD:$AD)","v":0},null,null,null,null,{"$f":"SUMIFS(Sheet1!S71_AdjustmentAmount,Sheet1!S71_SA34eCode,$AC:$AC,Sheet1!S71_A5CapexCode,$AD:$AD)","v":0},0,0,{"$f":"SUMIFS(Sheet1!S71_OY1AdjustedBudget,Sheet1!S71_SA34eCode,$AC:$AC,Sheet1!S71_A5CapexCode,$AD:$AD)","v":0},{"$f":"SUMIFS(Sheet1!S71_OY2AdjustedBudget,Sheet1!S71_SA34eCode,$AC:$AC,Sheet1!S71_A5CapexCode,$AD:$AD)","v":0},null,null,null,null,null,null,null,null,null,null,null,null,null,null,null,"0510","CE"]
["Waste Drop-off Points",null,{"$f":"SUMIFS(Sheet1!S71_OriginalBudget,Sheet1!S71_SA34eCode,$AC:$AC,Sheet1!S71_A5CapexCode,$AD:$AD)","v":0},{"$f":"SUMIFS(Sheet1!S71_SpecialAdjustedBudget,Sheet1!S71_SA34eCode,$AC:$AC,Sheet1!S71_A5CapexCode,$AD:$AD)","v":0},null,null,null,null,{"$f":"SUMIFS(Sheet1!S71_AdjustmentAmount,Sheet1!S71_SA34eCode,$AC:$AC,Sheet1!S71_A5CapexCode,$AD:$AD)","v":0},0,0,{"$f":"SUMIFS(Sheet1!S71_OY1AdjustedBudget,Sheet1!S71_SA34eCode,$AC:$AC,Sheet1!S71_A5CapexCode,$AD:$AD)","v":0},{"$f":"SUMIFS(Sheet1!S71_OY2AdjustedBudget,Sheet1!S71_SA34eCode,$AC:$AC,Sheet1!S71_A5CapexCode,$AD:$AD)","v":0},null,null,null,null,null,null,null,null,null,null,null,null,null,null,null,"0520","CE"]
["Waste Separation Facilities",null,{"$f":"SUMIFS(Sheet1!S71_OriginalBudget,Sheet1!S71_SA34eCode,$AC:$AC,Sheet1!S71_A5CapexCode,$AD:$AD)","v":0},{"$f":"SUMIFS(Sheet1!S71_SpecialAdjustedBudget,Sheet1!S71_SA34eCode,$AC:$AC,Sheet1!S71_A5CapexCode,$AD:$AD)","v":0},null,null,null,null,{"$f":"SUMIFS(Sheet1!S71_AdjustmentAmount,Sheet1!S71_SA34eCode,$AC:$AC,Sheet1!S71_A5CapexCode,$AD:$AD)","v":0},0,0,{"$f":"SUMIFS(Sheet1!S71_OY1AdjustedBudget,Sheet1!S71_SA34eCode,$AC:$AC,Sheet1!S71_A5CapexCode,$AD:$AD)","v":0},{"$f":"SUMIFS(Sheet1!S71_OY2AdjustedBudget,Sheet1!S71_SA34eCode,$AC:$AC,Sheet1!S71_A5CapexCode,$AD:$AD)","v":0},null,null,null,null,null,null,null,null,null,null,null,null,null,null,null,"0530","CE"]
["Electricity Generation Facilities",null,{"$f":"SUMIFS(Sheet1!S71_OriginalBudget,Sheet1!S71_SA34eCode,$AC:$AC,Sheet1!S71_A5CapexCode,$AD:$AD)","v":0},{"$f":"SUMIFS(Sheet1!S71_SpecialAdjustedBudget,Sheet1!S71_SA34eCode,$AC:$AC,Sheet1!S71_A5CapexCode,$AD:$AD)","v":0},null,null,null,null,{"$f":"SUMIFS(Sheet1!S71_AdjustmentAmount,Sheet1!S71_SA34eCode,$AC:$AC,Sheet1!S71_A5CapexCode,$AD:$AD)","v":0},0,0,{"$f":"SUMIFS(Sheet1!S71_OY1AdjustedBudget,Sheet1!S71_SA34eCode,$AC:$AC,Sheet1!S71_A5CapexCode,$AD:$AD)","v":0},{"$f":"SUMIFS(Sheet1!S71_OY2AdjustedBudget,Sheet1!S71_SA34eCode,$AC:$AC,Sheet1!S71_A5CapexCode,$AD:$AD)","v":0},null,null,null,null,null,null,null,null,null,null,null,null,null,null,null,"0540","CE"]
["Capital Spares",null,{"$f":"SUMIFS(Sheet1!S71_OriginalBudget,Sheet1!S71_SA34eCode,$AC:$AC,Sheet1!S71_A5CapexCode,$AD:$AD)","v":0},{"$f":"SUMIFS(Sheet1!S71_SpecialAdjustedBudget,Sheet1!S71_SA34eCode,$AC:$AC,Sheet1!S71_A5CapexCode,$AD:$AD)","v":0},null,null,null,null,{"$f":"SUMIFS(Sheet1!S71_AdjustmentAmount,Sheet1!S71_SA34eCode,$AC:$AC,Sheet1!S71_A5CapexCode,$AD:$AD)","v":0},0,0,{"$f":"SUMIFS(Sheet1!S71_OY1AdjustedBudget,Sheet1!S71_SA34eCode,$AC:$AC,Sheet1!S71_A5CapexCode,$AD:$AD)","v":0},{"$f":"SUMIFS(Sheet1!S71_OY2AdjustedBudget,Sheet1!S71_SA34eCode,$AC:$AC,Sheet1!S71_A5CapexCode,$AD:$AD)","v":0},null,null,null,null,null,null,null,null,null,null,null,null,null,null,null,"0550","CE"]
["Rail Infrastructure",null,{"$f":"SUM(C55:C63)","v":0},{"$f":"SUM(D55:D63)","v":0},0,0,0,0,0,0,0,0,0]
["Rail Lines",null,{"$f":"SUMIFS(Sheet1!S71_OriginalBudget,Sheet1!S71_SA34eCode,$AC:$AC,Sheet1!S71_A5CapexCode,$AD:$AD)","v":0},{"$f":"SUMIFS(Sheet1!S71_SpecialAdjustedBudget,Sheet1!S71_SA34eCode,$AC:$AC,Sheet1!S71_A5CapexCode,$AD:$AD)","v":0},null,null,null,null,{"$f":"SUMIFS(Sheet1!S71_AdjustmentAmount,Sheet1!S71_SA34eCode,$AC:$AC,Sheet1!S71_A5CapexCode,$AD:$AD)","v":0},0,0,{"$f":"SUMIFS(Sheet1!S71_OY1AdjustedBudget,Sheet1!S71_SA34eCode,$AC:$AC,Sheet1!S71_A5CapexCode,$AD:$AD)","v":0},{"$f":"SUMIFS(Sheet1!S71_OY2AdjustedBudget,Sheet1!S71_SA34eCode,$AC:$AC,Sheet1!S71_A5CapexCode,$AD:$AD)","v":0},null,null,null,null,null,null,null,null,null,null,null,null,null,null,null,"0570","CE"]
["Rail Structures",null,{"$f":"SUMIFS(Sheet1!S71_OriginalBudget,Sheet1!S71_SA34eCode,$AC:$AC,Sheet1!S71_A5CapexCode,$AD:$AD)","v":0},{"$f":"SUMIFS(Sheet1!S71_SpecialAdjustedBudget,Sheet1!S71_SA34eCode,$AC:$AC,Sheet1!S71_A5CapexCode,$AD:$AD)","v":0},null,null,null,null,{"$f":"SUMIFS(Sheet1!S71_AdjustmentAmount,Sheet1!S71_SA34eCode,$AC:$AC,Sheet1!S71_A5CapexCode,$AD:$AD)","v":0},0,0,{"$f":"SUMIFS(Sheet1!S71_OY1AdjustedBudget,Sheet1!S71_SA34eCode,$AC:$AC,Sheet1!S71_A5CapexCode,$AD:$AD)","v":0},{"$f":"SUMIFS(Sheet1!S71_OY2AdjustedBudget,Sheet1!S71_SA34eCode,$AC:$AC,Sheet1!S71_A5CapexCode,$AD:$AD)","v":0},null,null,null,null,null,null,null,null,null,null,null,null,null,null,null,"0580","CE"]
["Rail Furniture",null,{"$f":"SUMIFS(Sheet1!S71_OriginalBudget,Sheet1!S71_SA34eCode,$AC:$AC,Sheet1!S71_A5CapexCode,$AD:$AD)","v":0},{"$f":"SUMIFS(Sheet1!S71_SpecialAdjustedBudget,Sheet1!S71_SA34eCode,$AC:$AC,Sheet1!S71_A5CapexCode,$AD:$AD)","v":0},null,null,null,null,{"$f":"SUMIFS(Sheet1!S71_AdjustmentAmount,Sheet1!S71_SA34eCode,$AC:$AC,Sheet1!S71_A5CapexCode,$AD:$AD)","v":0},0,0,{"$f":"SUMIFS(Sheet1!S71_OY1AdjustedBudget,Sheet1!S71_SA34eCode,$AC:$AC,Sheet1!S71_A5CapexCode,$AD:$AD)","v":0},{"$f":"SUMIFS(Sheet1!S71_OY2AdjustedBudget,Sheet1!S71_SA34eCode,$AC:$AC,Sheet1!S71_A5CapexCode,$AD:$AD)","v":0},null,null,null,null,null,null,null,null,null,null,null,null,null,null,null,"0590","CE"]
["Drainage Collection",null,{"$f":"SUMIFS(Sheet1!S71_OriginalBudget,Sheet1!S71_SA34eCode,$AC:$AC,Sheet1!S71_A5CapexCode,$AD:$AD)","v":0},{"$f":"SUMIFS(Sheet1!S71_SpecialAdjustedBudget,Sheet1!S71_SA34eCode,$AC:$AC,Sheet1!S71_A5CapexCode,$AD:$AD)","v":0},null,null,null,null,{"$f":"SUMIFS(Sheet1!S71_AdjustmentAmount,Sheet1!S71_SA34eCode,$AC:$AC,Sheet1!S71_A5CapexCode,$AD:$AD)","v":0},0,0,{"$f":"SUMIFS(Sheet1!S71_OY1AdjustedBudget,Sheet1!S71_SA34eCode,$AC:$AC,Sheet1!S71_A5CapexCode,$AD:$AD)","v":0},{"$f":"SUMIFS(Sheet1!S71_OY2AdjustedBudget,Sheet1!S71_SA34eCode,$AC:$AC,Sheet1!S71_A5CapexCode,$AD:$AD)","v":0},null,null,null,null,null,null,null,null,null,null,null,null,null,null,null,"0600","CE"]
["Storm water Conveyance",null,{"$f":"SUMIFS(Sheet1!S71_OriginalBudget,Sheet1!S71_SA34eCode,$AC:$AC,Sheet1!S71_A5CapexCode,$AD:$AD)","v":0},{"$f":"SUMIFS(Sheet1!S71_SpecialAdjustedBudget,Sheet1!S71_SA34eCode,$AC:$AC,Sheet1!S71_A5CapexCode,$AD:$AD)","v":0},null,null,null,null,{"$f":"SUMIFS(Sheet1!S71_AdjustmentAmount,Sheet1!S71_SA34eCode,$AC:$AC,Sheet1!S71_A5CapexCode,$AD:$AD)","v":0},0,0,{"$f":"SUMIFS(Sheet1!S71_OY1AdjustedBudget,Sheet1!S71_SA34eCode,$AC:$AC,Sheet1!S71_A5CapexCode,$AD:$AD)","v":0},{"$f":"SUMIFS(Sheet1!S71_OY2AdjustedBudget,Sheet1!S71_SA34eCode,$AC:$AC,Sheet1!S71_A5CapexCode,$AD:$AD)","v":0},null,null,null,null,null,null,null,null,null,null,null,null,null,null,null,"0610","CE"]
["Attenuation",null,{"$f":"SUMIFS(Sheet1!S71_OriginalBudget,Sheet1!S71_SA34eCode,$AC:$AC,Sheet1!S71_A5CapexCode,$AD:$AD)","v":0},{"$f":"SUMIFS(Sheet1!S71_SpecialAdjustedBudget,Sheet1!S71_SA34eCode,$AC:$AC,Sheet1!S71_A5CapexCode,$AD:$AD)","v":0},null,null,null,null,{"$f":"SUMIFS(Sheet1!S71_AdjustmentAmount,Sheet1!S71_SA34eCode,$AC:$AC,Sheet1!S71_A5CapexCode,$AD:$AD)","v":0},0,0,{"$f":"SUMIFS(Sheet1!S71_OY1AdjustedBudget,Sheet1!S71_SA34eCode,$AC:$AC,Sheet1!S71_A5CapexCode,$AD:$AD)","v":0},{"$f":"SUMIFS(Sheet1!S71_OY2AdjustedBudget,Sheet1!S71_SA34eCode,$AC:$AC,Sheet1!S71_A5CapexCode,$AD:$AD)","v":0},null,null,null,null,null,null,null,null,null,null,null,null,null,null,null,"0620","CE"]
["MV Substations",null,{"$f":"SUMIFS(Sheet1!S71_OriginalBudget,Sheet1!S71_SA34eCode,$AC:$AC,Sheet1!S71_A5CapexCode,$AD:$AD)","v":0},{"$f":"SUMIFS(Sheet1!S71_SpecialAdjustedBudget,Sheet1!S71_SA34eCode,$AC:$AC,Sheet1!S71_A5CapexCode,$AD:$AD)","v":0},null,null,null,null,{"$f":"SUMIFS(Sheet1!S71_AdjustmentAmount,Sheet1!S71_SA34eCode,$AC:$AC,Sheet1!S71_A5CapexCode,$AD:$AD)","v":0},0,0,{"$f":"SUMIFS(Sheet1!S71_OY1AdjustedBudget,Sheet1!S71_SA34eCode,$AC:$AC,Sheet1!S71_A5CapexCode,$AD:$AD)","v":0},{"$f":"SUMIFS(Sheet1!S71_OY2AdjustedBudget,Sheet1!S71_SA34eCode,$AC:$AC,Sheet1!S71_A5CapexCode,$AD:$AD)","v":0},null,null,null,null,null,null,null,null,null,null,null,null,null,null,null,"0630","CE"]
["LV Networks",null,{"$f":"SUMIFS(Sheet1!S71_OriginalBudget,Sheet1!S71_SA34eCode,$AC:$AC,Sheet1!S71_A5CapexCode,$AD:$AD)","v":0},{"$f":"SUMIFS(Sheet1!S71_SpecialAdjustedBudget,Sheet1!S71_SA34eCode,$AC:$AC,Sheet1!S71_A5CapexCode,$AD:$AD)","v":0},null,null,null,null,{"$f":"SUMIFS(Sheet1!S71_AdjustmentAmount,Sheet1!S71_SA34eCode,$AC:$AC,Sheet1!S71_A5CapexCode,$AD:$AD)","v":0},0,0,{"$f":"SUMIFS(Sheet1!S71_OY1AdjustedBudget,Sheet1!S71_SA34eCode,$AC:$AC,Sheet1!S71_A5CapexCode,$AD:$AD)","v":0},{"$f":"SUMIFS(Sheet1!S71_OY2AdjustedBudget,Sheet1!S71_SA34eCode,$AC:$AC,Sheet1!S71_A5CapexCode,$AD:$AD)","v":0},null,null,null,null,null,null,null,null,null,null,null,null,null,null,null,"0640","CE"]
["Capital Spares",null,{"$f":"SUMIFS(Sheet1!S71_OriginalBudget,Sheet1!S71_SA34eCode,$AC:$AC,Sheet1!S71_A5CapexCode,$AD:$AD)","v":0},{"$f":"SUMIFS(Sheet1!S71_SpecialAdjustedBudget,Sheet1!S71_SA34eCode,$AC:$AC,Sheet1!S71_A5CapexCode,$AD:$AD)","v":0},null,null,null,null,{"$f":"SUMIFS(Sheet1!S71_AdjustmentAmount,Sheet1!S71_SA34eCode,$AC:$AC,Sheet1!S71_A5CapexCode,$AD:$AD)","v":0},0,0,{"$f":"SUMIFS(Sheet1!S71_OY1AdjustedBudget,Sheet1!S71_SA34eCode,$AC:$AC,Sheet1!S71_A5CapexCode,$AD:$AD)","v":0},{"$f":"SUMIFS(Sheet1!S71_OY2AdjustedBudget,Sheet1!S71_SA34eCode,$AC:$AC,Sheet1!S71_A5CapexCode,$AD:$AD)","v":0},null,null,null,null,null,null,null,null,null,null,null,null,null,null,null,"0650","CE"]
["Coastal Infrastructure",null,{"$f":"SUM(C65:C69)","v":0},0,0,0,0,0,0,0,0,0,0]
["Sand Pumps",null,{"$f":"SUMIFS(Sheet1!S71_OriginalBudget,Sheet1!S71_SA34eCode,$AC:$AC,Sheet1!S71_A5CapexCode,$AD:$AD)","v":0},{"$f":"SUMIFS(Sheet1!S71_SpecialAdjustedBudget,Sheet1!S71_SA34eCode,$AC:$AC,Sheet1!S71_A5CapexCode,$AD:$AD)","v":0},null,null,null,null,{"$f":"SUMIFS(Sheet1!S71_AdjustmentAmount,Sheet1!S71_SA34eCode,$AC:$AC,Sheet1!S71_A5CapexCode,$AD:$AD)","v":0},0,0,{"$f":"SUMIFS(Sheet1!S71_OY1AdjustedBudget,Sheet1!S71_SA34eCode,$AC:$AC,Sheet1!S71_A5CapexCode,$AD:$AD)","v":0},{"$f":"SUMIFS(Sheet1!S71_OY2AdjustedBudget,Sheet1!S71_SA34eCode,$AC:$AC,Sheet1!S71_A5CapexCode,$AD:$AD)","v":0},null,null,null,null,null,null,null,null,null,null,null,null,null,null,null,"0670","CE"]
["Piers",null,{"$f":"SUMIFS(Sheet1!S71_OriginalBudget,Sheet1!S71_SA34eCode,$AC:$AC,Sheet1!S71_A5CapexCode,$AD:$AD)","v":0},{"$f":"SUMIFS(Sheet1!S71_SpecialAdjustedBudget,Sheet1!S71_SA34eCode,$AC:$AC,Sheet1!S71_A5CapexCode,$AD:$AD)","v":0},null,null,null,null,{"$f":"SUMIFS(Sheet1!S71_AdjustmentAmount,Sheet1!S71_SA34eCode,$AC:$AC,Sheet1!S71_A5CapexCode,$AD:$AD)","v":0},0,0,{"$f":"SUMIFS(Sheet1!S71_OY1AdjustedBudget,Sheet1!S71_SA34eCode,$AC:$AC,Sheet1!S71_A5CapexCode,$AD:$AD)","v":0},{"$f":"SUMIFS(Sheet1!S71_OY2AdjustedBudget,Sheet1!S71_SA34eCode,$AC:$AC,Sheet1!S71_A5CapexCode,$AD:$AD)","v":0},null,null,null,null,null,null,null,null,null,null,null,null,null,null,null,"0680","CE"]
["Revetments",null,{"$f":"SUMIFS(Sheet1!S71_OriginalBudget,Sheet1!S71_SA34eCode,$AC:$AC,Sheet1!S71_A5CapexCode,$AD:$AD)","v":0},{"$f":"SUMIFS(Sheet1!S71_SpecialAdjustedBudget,Sheet1!S71_SA34eCode,$AC:$AC,Sheet1!S71_A5CapexCode,$AD:$AD)","v":0},null,null,null,null,{"$f":"SUMIFS(Sheet1!S71_AdjustmentAmount,Sheet1!S71_SA34eCode,$AC:$AC,Sheet1!S71_A5CapexCode,$AD:$AD)","v":0},0,0,{"$f":"SUMIFS(Sheet1!S71_OY1AdjustedBudget,Sheet1!S71_SA34eCode,$AC:$AC,Sheet1!S71_A5CapexCode,$AD:$AD)","v":0},{"$f":"SUMIFS(Sheet1!S71_OY2AdjustedBudget,Sheet1!S71_SA34eCode,$AC:$AC,Sheet1!S71_A5CapexCode,$AD:$AD)","v":0},null,null,null,null,null,null,null,null,null,null,null,null,null,null,null,"0690","CE"]
["Promenades",null,{"$f":"SUMIFS(Sheet1!S71_OriginalBudget,Sheet1!S71_SA34eCode,$AC:$AC,Sheet1!S71_A5CapexCode,$AD:$AD)","v":0},{"$f":"SUMIFS(Sheet1!S71_SpecialAdjustedBudget,Sheet1!S71_SA34eCode,$AC:$AC,Sheet1!S71_A5CapexCode,$AD:$AD)","v":0},null,null,null,null,{"$f":"SUMIFS(Sheet1!S71_AdjustmentAmount,Sheet1!S71_SA34eCode,$AC:$AC,Sheet1!S71_A5CapexCode,$AD:$AD)","v":0},0,0,{"$f":"SUMIFS(Sheet1!S71_OY1AdjustedBudget,Sheet1!S71_SA34eCode,$AC:$AC,Sheet1!S71_A5CapexCode,$AD:$AD)","v":0},{"$f":"SUMIFS(Sheet1!S71_OY2AdjustedBudget,Sheet1!S71_SA34eCode,$AC:$AC,Sheet1!S71_A5CapexCode,$AD:$AD)","v":0},null,null,null,null,null,null,null,null,null,null,null,null,null,null,null,"0700","CE"]
["Capital Spares",null,{"$f":"SUMIFS(Sheet1!S71_OriginalBudget,Sheet1!S71_SA34eCode,$AC:$AC,Sheet1!S71_A5CapexCode,$AD:$AD)","v":0},{"$f":"SUMIFS(Sheet1!S71_SpecialAdjustedBudget,Sheet1!S71_SA34eCode,$AC:$AC,Sheet1!S71_A5CapexCode,$AD:$AD)","v":0},null,null,null,null,{"$f":"SUMIFS(Sheet1!S71_AdjustmentAmount,Sheet1!S71_SA34eCode,$AC:$AC,Sheet1!S71_A5CapexCode,$AD:$AD)","v":0},0,0,{"$f":"SUMIFS(Sheet1!S71_OY1AdjustedBudget,Sheet1!S71_SA34eCode,$AC:$AC,Sheet1!S71_A5CapexCode,$AD:$AD)","v":0},{"$f":"SUMIFS(Sheet1!S71_OY2AdjustedBudget,Sheet1!S71_SA34eCode,$AC:$AC,Sheet1!S71_A5CapexCode,$AD:$AD)","v":0},null,null,null,null,null,null,null,null,null,null,null,null,null,null,null,"0710","CE"]
["Information and Communication Infrastructure",null,{"$f":"SUM(C71:C74)","v":0},0,0,0,0,0,0,0,0,0,0]
["Data Centres",null,{"$f":"SUMIFS(Sheet1!S71_OriginalBudget,Sheet1!S71_SA34eCode,$AC:$AC,Sheet1!S71_A5CapexCode,$AD:$AD)","v":0},{"$f":"SUMIFS(Sheet1!S71_SpecialAdjustedBudget,Sheet1!S71_SA34eCode,$AC:$AC,Sheet1!S71_A5CapexCode,$AD:$AD)","v":0},null,null,null,null,{"$f":"SUMIFS(Sheet1!S71_AdjustmentAmount,Sheet1!S71_SA34eCode,$AC:$AC,Sheet1!S71_A5CapexCode,$AD:$AD)","v":0},0,0,{"$f":"SUMIFS(Sheet1!S71_OY1AdjustedBudget,Sheet1!S71_SA34eCode,$AC:$AC,Sheet1!S71_A5CapexCode,$AD:$AD)","v":0},{"$f":"SUMIFS(Sheet1!S71_OY2AdjustedBudget,Sheet1!S71_SA34eCode,$AC:$AC,Sheet1!S71_A5CapexCode,$AD:$AD)","v":0},null,null,null,null,null,null,null,null,null,null,null,null,null,null,null,"0730","CE"]
["Core Layers",null,{"$f":"SUMIFS(Sheet1!S71_OriginalBudget,Sheet1!S71_SA34eCode,$AC:$AC,Sheet1!S71_A5CapexCode,$AD:$AD)","v":0},{"$f":"SUMIFS(Sheet1!S71_SpecialAdjustedBudget,Sheet1!S71_SA34eCode,$AC:$AC,Sheet1!S71_A5CapexCode,$AD:$AD)","v":0},null,null,null,null,{"$f":"SUMIFS(Sheet1!S71_AdjustmentAmount,Sheet1!S71_SA34eCode,$AC:$AC,Sheet1!S71_A5CapexCode,$AD:$AD)","v":0},0,0,{"$f":"SUMIFS(Sheet1!S71_OY1AdjustedBudget,Sheet1!S71_SA34eCode,$AC:$AC,Sheet1!S71_A5CapexCode,$AD:$AD)","v":0},{"$f":"SUMIFS(Sheet1!S71_OY2AdjustedBudget,Sheet1!S71_SA34eCode,$AC:$AC,Sheet1!S71_A5CapexCode,$AD:$AD)","v":0},null,null,null,null,null,null,null,null,null,null,null,null,null,null,null,"0740","CE"]
["Distribution Layers",null,{"$f":"SUMIFS(Sheet1!S71_OriginalBudget,Sheet1!S71_SA34eCode,$AC:$AC,Sheet1!S71_A5CapexCode,$AD:$AD)","v":0},{"$f":"SUMIFS(Sheet1!S71_SpecialAdjustedBudget,Sheet1!S71_SA34eCode,$AC:$AC,Sheet1!S71_A5CapexCode,$AD:$AD)","v":0},null,null,null,null,{"$f":"SUMIFS(Sheet1!S71_AdjustmentAmount,Sheet1!S71_SA34eCode,$AC:$AC,Sheet1!S71_A5CapexCode,$AD:$AD)","v":0},{"$f":"SUM(E73:I73)","v":0},{"$f":"IF(D73=0,C73+J73,D73+J73)","v":0},{"$f":"SUMIFS(Sheet1!S71_OY1AdjustedBudget,Sheet1!S71_SA34eCode,$AC:$AC,Sheet1!S71_A5CapexCode,$AD:$AD)","v":0},{"$f":"SUMIFS(Sheet1!S71_OY2AdjustedBudget,Sheet1!S71_SA34eCode,$AC:$AC,Sheet1!S71_A5CapexCode,$AD:$AD)","v":0},null,null,null,null,null,null,null,null,null,null,null,null,null,null,null,"0750","CE"]
["Capital Spares",null,{"$f":"SUMIFS(Sheet1!S71_OriginalBudget,Sheet1!S71_SA34eCode,$AC:$AC,Sheet1!S71_A5CapexCode,$AD:$AD)","v":0},{"$f":"SUMIFS(Sheet1!S71_SpecialAdjustedBudget,Sheet1!S71_SA34eCode,$AC:$AC,Sheet1!S71_A5CapexCode,$AD:$AD)","v":0},null,null,null,null,{"$f":"SUMIFS(Sheet1!S71_AdjustmentAmount,Sheet1!S71_SA34eCode,$AC:$AC,Sheet1!S71_A5CapexCode,$AD:$AD)","v":0},0,0,{"$f":"SUMIFS(Sheet1!S71_OY1AdjustedBudget,Sheet1!S71_SA34eCode,$AC:$AC,Sheet1!S71_A5CapexCode,$AD:$AD)","v":0},{"$f":"SUMIFS(Sheet1!S71_OY2AdjustedBudget,Sheet1!S71_SA34eCode,$AC:$AC,Sheet1!S71_A5CapexCode,$AD:$AD)","v":0},null,null,null,null,null,null,null,null,null,null,null,null,null,null,null,"0760","CE"]
[]
["Community Assets",null,{"$f":"+C77+C100","v":0},{"$f":"+D77+D100","v":0},{"$f":"+E77+E100","v":0},0,0,0,0,0,0,0,0]
["Community Facilities",null,{"$f":"SUM(C78:C99)","v":0},{"$f":"SUM(D78:D99)","v":0},{"$f":"SUM(E78:E99)","v":0},0,0,0,0,0,0,0,0]
["Halls",null,{"$f":"SUMIFS(Sheet1!S71_OriginalBudget,Sheet1!S71_SA34eCode,$AC:$AC,Sheet1!S71_A5CapexCode,$AD:$AD)","v":0},{"$f":"SUMIFS(Sheet1!S71_SpecialAdjustedBudget,Sheet1!S71_SA34eCode,$AC:$AC,Sheet1!S71_A5CapexCode,$AD:$AD)","v":0},null,null,null,null,{"$f":"SUMIFS(Sheet1!S71_AdjustmentAmount,Sheet1!S71_SA34eCode,$AC:$AC,Sheet1!S71_A5CapexCode,$AD:$AD)","v":0},0,0,{"$f":"SUMIFS(Sheet1!S71_OY1AdjustedBudget,Sheet1!S71_SA34eCode,$AC:$AC,Sheet1!S71_A5CapexCode,$AD:$AD)","v":0},{"$f":"SUMIFS(Sheet1!S71_OY2AdjustedBudget,Sheet1!S71_SA34eCode,$AC:$AC,Sheet1!S71_A5CapexCode,$AD:$AD)","v":0},null,null,null,null,null,null,null,null,null,null,null,null,null,null,null,"0790","CE"]
["Centres",null,{"$f":"SUMIFS(Sheet1!S71_OriginalBudget,Sheet1!S71_SA34eCode,$AC:$AC,Sheet1!S71_A5CapexCode,$AD:$AD)","v":0},{"$f":"SUMIFS(Sheet1!S71_SpecialAdjustedBudget,Sheet1!S71_SA34eCode,$AC:$AC,Sheet1!S71_A5CapexCode,$AD:$AD)","v":0},null,null,null,null,{"$f":"SUMIFS(Sheet1!S71_AdjustmentAmount,Sheet1!S71_SA34eCode,$AC:$AC,Sheet1!S71_A5CapexCode,$AD:$AD)","v":0},0,0,{"$f":"SUMIFS(Sheet1!S71_OY1AdjustedBudget,Sheet1!S71_SA34eCode,$AC:$AC,Sheet1!S71_A5CapexCode,$AD:$AD)","v":0},{"$f":"SUMIFS(Sheet1!S71_OY2AdjustedBudget,Sheet1!S71_SA34eCode,$AC:$AC,Sheet1!S71_A5CapexCode,$AD:$AD)","v":0},null,null,null,null,null,null,null,null,null,null,null,null,null,null,null,"0800","CE"]
["Crèches",null,{"$f":"SUMIFS(Sheet1!S71_OriginalBudget,Sheet1!S71_SA34eCode,$AC:$AC,Sheet1!S71_A5CapexCode,$AD:$AD)","v":0},{"$f":"SUMIFS(Sheet1!S71_SpecialAdjustedBudget,Sheet1!S71_SA34eCode,$AC:$AC,Sheet1!S71_A5CapexCode,$AD:$AD)","v":0},null,null,null,null,{"$f":"SUMIFS(Sheet1!S71_AdjustmentAmount,Sheet1!S71_SA34eCode,$AC:$AC,Sheet1!S71_A5CapexCode,$AD:$AD)","v":0},0,0,{"$f":"SUMIFS(Sheet1!S71_OY1AdjustedBudget,Sheet1!S71_SA34eCode,$AC:$AC,Sheet1!S71_A5CapexCode,$AD:$AD)","v":0},{"$f":"SUMIFS(Sheet1!S71_OY2AdjustedBudget,Sheet1!S71_SA34eCode,$AC:$AC,Sheet1!S71_A5CapexCode,$AD:$AD)","v":0},null,null,null,null,null,null,null,null,null,null,null,null,null,null,null,"0810","CE"]
["Clinics/Care Centres",null,{"$f":"SUMIFS(Sheet1!S71_OriginalBudget,Sheet1!S71_SA34eCode,$AC:$AC,Sheet1!S71_A5CapexCode,$AD:$AD)","v":0},{"$f":"SUMIFS(Sheet1!S71_SpecialAdjustedBudget,Sheet1!S71_SA34eCode,$AC:$AC,Sheet1!S71_A5CapexCode,$AD:$AD)","v":0},null,null,null,null,{"$f":"SUMIFS(Sheet1!S71_AdjustmentAmount,Sheet1!S71_SA34eCode,$AC:$AC,Sheet1!S71_A5CapexCode,$AD:$AD)","v":0},0,0,{"$f":"SUMIFS(Sheet1!S71_OY1AdjustedBudget,Sheet1!S71_SA34eCode,$AC:$AC,Sheet1!S71_A5CapexCode,$AD:$AD)","v":0},{"$f":"SUMIFS(Sheet1!S71_OY2AdjustedBudget,Sheet1!S71_SA34eCode,$AC:$AC,Sheet1!S71_A5CapexCode,$AD:$AD)","v":0},null,null,null,null,null,null,null,null,null,null,null,null,null,null,null,"0820","CE"]
["Fire/Ambulance Stations",null,{"$f":"SUMIFS(Sheet1!S71_OriginalBudget,Sheet1!S71_SA34eCode,$AC:$AC,Sheet1!S71_A5CapexCode,$AD:$AD)","v":0},{"$f":"SUMIFS(Sheet1!S71_SpecialAdjustedBudget,Sheet1!S71_SA34eCode,$AC:$AC,Sheet1!S71_A5CapexCode,$AD:$AD)","v":0},null,null,null,null,{"$f":"SUMIFS(Sheet1!S71_AdjustmentAmount,Sheet1!S71_SA34eCode,$AC:$AC,Sheet1!S71_A5CapexCode,$AD:$AD)","v":0},0,0,{"$f":"SUMIFS(Sheet1!S71_OY1AdjustedBudget,Sheet1!S71_SA34eCode,$AC:$AC,Sheet1!S71_A5CapexCode,$AD:$AD)","v":0},{"$f":"SUMIFS(Sheet1!S71_OY2AdjustedBudget,Sheet1!S71_SA34eCode,$AC:$AC,Sheet1!S71_A5CapexCode,$AD:$AD)","v":0},null,null,null,null,null,null,null,null,null,null,null,null,null,null,null,"0830","CE"]
["Testing Stations",null,{"$f":"SUMIFS(Sheet1!S71_OriginalBudget,Sheet1!S71_SA34eCode,$AC:$AC,Sheet1!S71_A5CapexCode,$AD:$AD)","v":0},{"$f":"SUMIFS(Sheet1!S71_SpecialAdjustedBudget,Sheet1!S71_SA34eCode,$AC:$AC,Sheet1!S71_A5CapexCode,$AD:$AD)","v":0},null,null,null,null,{"$f":"SUMIFS(Sheet1!S71_AdjustmentAmount,Sheet1!S71_SA34eCode,$AC:$AC,Sheet1!S71_A5CapexCode,$AD:$AD)","v":0},0,0,{"$f":"SUMIFS(Sheet1!S71_OY1AdjustedBudget,Sheet1!S71_SA34eCode,$AC:$AC,Sheet1!S71_A5CapexCode,$AD:$AD)","v":0},{"$f":"SUMIFS(Sheet1!S71_OY2AdjustedBudget,Sheet1!S71_SA34eCode,$AC:$AC,Sheet1!S71_A5CapexCode,$AD:$AD)","v":0},null,null,null,null,null,null,null,null,null,null,null,null,null,null,null,"0840","CE"]
["Museums",null,{"$f":"SUMIFS(Sheet1!S71_OriginalBudget,Sheet1!S71_SA34eCode,$AC:$AC,Sheet1!S71_A5CapexCode,$AD:$AD)","v":0},{"$f":"SUMIFS(Sheet1!S71_SpecialAdjustedBudget,Sheet1!S71_SA34eCode,$AC:$AC,Sheet1!S71_A5CapexCode,$AD:$AD)","v":0},null,null,null,null,{"$f":"SUMIFS(Sheet1!S71_AdjustmentAmount,Sheet1!S71_SA34eCode,$AC:$AC,Sheet1!S71_A5CapexCode,$AD:$AD)","v":0},0,0,{"$f":"SUMIFS(Sheet1!S71_OY1AdjustedBudget,Sheet1!S71_SA34eCode,$AC:$AC,Sheet1!S71_A5CapexCode,$AD:$AD)","v":0},{"$f":"SUMIFS(Sheet1!S71_OY2AdjustedBudget,Sheet1!S71_SA34eCode,$AC:$AC,Sheet1!S71_A5CapexCode,$AD:$AD)","v":0},null,null,null,null,null,null,null,null,null,null,null,null,null,null,null,"0850","CE"]
["Galleries",null,{"$f":"SUMIFS(Sheet1!S71_OriginalBudget,Sheet1!S71_SA34eCode,$AC:$AC,Sheet1!S71_A5CapexCode,$AD:$AD)","v":0},{"$f":"SUMIFS(Sheet1!S71_SpecialAdjustedBudget,Sheet1!S71_SA34eCode,$AC:$AC,Sheet1!S71_A5CapexCode,$AD:$AD)","v":0},null,null,null,null,{"$f":"SUMIFS(Sheet1!S71_AdjustmentAmount,Sheet1!S71_SA34eCode,$AC:$AC,Sheet1!S71_A5CapexCode,$AD:$AD)","v":0},0,0,{"$f":"SUMIFS(Sheet1!S71_OY1AdjustedBudget,Sheet1!S71_SA34eCode,$AC:$AC,Sheet1!S71_A5CapexCode,$AD:$AD)","v":0},{"$f":"SUMIFS(Sheet1!S71_OY2AdjustedBudget,Sheet1!S71_SA34eCode,$AC:$AC,Sheet1!S71_A5CapexCode,$AD:$AD)","v":0},null,null,null,null,null,null,null,null,null,null,null,null,null,null,null,"0860","CE"]
["Theatres",null,{"$f":"SUMIFS(Sheet1!S71_OriginalBudget,Sheet1!S71_SA34eCode,$AC:$AC,Sheet1!S71_A5CapexCode,$AD:$AD)","v":0},{"$f":"SUMIFS(Sheet1!S71_SpecialAdjustedBudget,Sheet1!S71_SA34eCode,$AC:$AC,Sheet1!S71_A5CapexCode,$AD:$AD)","v":0},null,null,null,null,{"$f":"SUMIFS(Sheet1!S71_AdjustmentAmount,Sheet1!S71_SA34eCode,$AC:$AC,Sheet1!S71_A5CapexCode,$AD:$AD)","v":0},0,0,{"$f":"SUMIFS(Sheet1!S71_OY1AdjustedBudget,Sheet1!S71_SA34eCode,$AC:$AC,Sheet1!S71_A5CapexCode,$AD:$AD)","v":0},{"$f":"SUMIFS(Sheet1!S71_OY2AdjustedBudget,Sheet1!S71_SA34eCode,$AC:$AC,Sheet1!S71_A5CapexCode,$AD:$AD)","v":0},null,null,null,null,null,null,null,null,null,null,null,null,null,null,null,"0870","CE"]
["Libraries",null,{"$f":"SUMIFS(Sheet1!S71_OriginalBudget,Sheet1!S71_SA34eCode,$AC:$AC,Sheet1!S71_A5CapexCode,$AD:$AD)","v":0},{"$f":"SUMIFS(Sheet1!S71_SpecialAdjustedBudget,Sheet1!S71_SA34eCode,$AC:$AC,Sheet1!S71_A5CapexCode,$AD:$AD)","v":0},null,null,null,null,{"$f":"SUMIFS(Sheet1!S71_AdjustmentAmount,Sheet1!S71_SA34eCode,$AC:$AC,Sheet1!S71_A5CapexCode,$AD:$AD)","v":0},0,0,{"$f":"SUMIFS(Sheet1!S71_OY1AdjustedBudget,Sheet1!S71_SA34eCode,$AC:$AC,Sheet1!S71_A5CapexCode,$AD:$AD)","v":0},{"$f":"SUMIFS(Sheet1!S71_OY2AdjustedBudget,Sheet1!S71_SA34eCode,$AC:$AC,Sheet1!S71_A5CapexCode,$AD:$AD)","v":0},null,null,null,null,null,null,null,null,null,null,null,null,null,null,null,"0880","CE"]
["Cemeteries/Crematoria",null,{"$f":"SUMIFS(Sheet1!S71_OriginalBudget,Sheet1!S71_SA34eCode,$AC:$AC,Sheet1!S71_A5CapexCode,$AD:$AD)","v":0},{"$f":"SUMIFS(Sheet1!S71_SpecialAdjustedBudget,Sheet1!S71_SA34eCode,$AC:$AC,Sheet1!S71_A5CapexCode,$AD:$AD)","v":0},null,null,null,null,{"$f":"SUMIFS(Sheet1!S71_AdjustmentAmount,Sheet1!S71_SA34eCode,$AC:$AC,Sheet1!S71_A5CapexCode,$AD:$AD)","v":0},0,0,{"$f":"SUMIFS(Sheet1!S71_OY1AdjustedBudget,Sheet1!S71_SA34eCode,$AC:$AC,Sheet1!S71_A5CapexCode,$AD:$AD)","v":0},{"$f":"SUMIFS(Sheet1!S71_OY2AdjustedBudget,Sheet1!S71_SA34eCode,$AC:$AC,Sheet1!S71_A5CapexCode,$AD:$AD)","v":0},null,null,null,null,null,null,null,null,null,null,null,null,null,null,null,"0890","CE"]
["Police",null,{"$f":"SUMIFS(Sheet1!S71_OriginalBudget,Sheet1!S71_SA34eCode,$AC:$AC,Sheet1!S71_A5CapexCode,$AD:$AD)","v":0},{"$f":"SUMIFS(Sheet1!S71_SpecialAdjustedBudget,Sheet1!S71_SA34eCode,$AC:$AC,Sheet1!S71_A5CapexCode,$AD:$AD)","v":0},null,null,null,null,{"$f":"SUMIFS(Sheet1!S71_AdjustmentAmount,Sheet1!S71_SA34eCode,$AC:$AC,Sheet1!S71_A5CapexCode,$AD:$AD)","v":0},0,0,{"$f":"SUMIFS(Sheet1!S71_OY1AdjustedBudget,Sheet1!S71_SA34eCode,$AC:$AC,Sheet1!S71_A5CapexCode,$AD:$AD)","v":0},{"$f":"SUMIFS(Sheet1!S71_OY2AdjustedBudget,Sheet1!S71_SA34eCode,$AC:$AC,Sheet1!S71_A5CapexCode,$AD:$AD)","v":0},null,null,null,null,null,null,null,null,null,null,null,null,null,null,null,"0900","CE"]
["Purls",null,{"$f":"SUMIFS(Sheet1!S71_OriginalBudget,Sheet1!S71_SA34eCode,$AC:$AC,Sheet1!S71_A5CapexCode,$AD:$AD)","v":0},{"$f":"SUMIFS(Sheet1!S71_SpecialAdjustedBudget,Sheet1!S71_SA34eCode,$AC:$AC,Sheet1!S71_A5CapexCode,$AD:$AD)","v":0},null,null,null,null,{"$f":"SUMIFS(Sheet1!S71_AdjustmentAmount,Sheet1!S71_SA34eCode,$AC:$AC,Sheet1!S71_A5CapexCode,$AD:$AD)","v":0},0,0,{"$f":"SUMIFS(Sheet1!S71_OY1AdjustedBudget,Sheet1!S71_SA34eCode,$AC:$AC,Sheet1!S71_A5CapexCode,$AD:$AD)","v":0},{"$f":"SUMIFS(Sheet1!S71_OY2AdjustedBudget,Sheet1!S71_SA34eCode,$AC:$AC,Sheet1!S71_A5CapexCode,$AD:$AD)","v":0},null,null,null,null,null,null,null,null,null,null,null,null,null,null,null,"0910","CE"]
["Public Open Space",null,{"$f":"SUMIFS(Sheet1!S71_OriginalBudget,Sheet1!S71_SA34eCode,$AC:$AC,Sheet1!S71_A5CapexCode,$AD:$AD)","v":0},{"$f":"SUMIFS(Sheet1!S71_SpecialAdjustedBudget,Sheet1!S71_SA34eCode,$AC:$AC,Sheet1!S71_A5CapexCode,$AD:$AD)","v":0},null,null,null,null,{"$f":"SUMIFS(Sheet1!S71_AdjustmentAmount,Sheet1!S71_SA34eCode,$AC:$AC,Sheet1!S71_A5CapexCode,$AD:$AD)","v":0},0,0,{"$f":"SUMIFS(Sheet1!S71_OY1AdjustedBudget,Sheet1!S71_SA34eCode,$AC:$AC,Sheet1!S71_A5CapexCode,$AD:$AD)","v":0},{"$f":"SUMIFS(Sheet1!S71_OY2AdjustedBudget,Sheet1!S71_SA34eCode,$AC:$AC,Sheet1!S71_A5CapexCode,$AD:$AD)","v":0},null,null,null,null,null,null,null,null,null,null,null,null,null,null,null,"0920","CE"]
["Nature Reserves",null,{"$f":"SUMIFS(Sheet1!S71_OriginalBudget,Sheet1!S71_SA34eCode,$AC:$AC,Sheet1!S71_A5CapexCode,$AD:$AD)","v":0},{"$f":"SUMIFS(Sheet1!S71_SpecialAdjustedBudget,Sheet1!S71_SA34eCode,$AC:$AC,Sheet1!S71_A5CapexCode,$AD:$AD)","v":0},null,null,null,null,{"$f":"SUMIFS(Sheet1!S71_AdjustmentAmount,Sheet1!S71_SA34eCode,$AC:$AC,Sheet1!S71_A5CapexCode,$AD:$AD)","v":0},0,0,{"$f":"SUMIFS(Sheet1!S71_OY1AdjustedBudget,Sheet1!S71_SA34eCode,$AC:$AC,Sheet1!S71_A5CapexCode,$AD:$AD)","v":0},{"$f":"SUMIFS(Sheet1!S71_OY2AdjustedBudget,Sheet1!S71_SA34eCode,$AC:$AC,Sheet1!S71_A5CapexCode,$AD:$AD)","v":0},null,null,null,null,null,null,null,null,null,null,null,null,null,null,null,"0930","CE"]
["Public Ablution Facilities",null,{"$f":"SUMIFS(Sheet1!S71_OriginalBudget,Sheet1!S71_SA34eCode,$AC:$AC,Sheet1!S71_A5CapexCode,$AD:$AD)","v":0},{"$f":"SUMIFS(Sheet1!S71_SpecialAdjustedBudget,Sheet1!S71_SA34eCode,$AC:$AC,Sheet1!S71_A5CapexCode,$AD:$AD)","v":0},null,null,null,null,{"$f":"SUMIFS(Sheet1!S71_AdjustmentAmount,Sheet1!S71_SA34eCode,$AC:$AC,Sheet1!S71_A5CapexCode,$AD:$AD)","v":0},0,0,{"$f":"SUMIFS(Sheet1!S71_OY1AdjustedBudget,Sheet1!S71_SA34eCode,$AC:$AC,Sheet1!S71_A5CapexCode,$AD:$AD)","v":0},{"$f":"SUMIFS(Sheet1!S71_OY2AdjustedBudget,Sheet1!S71_SA34eCode,$AC:$AC,Sheet1!S71_A5CapexCode,$AD:$AD)","v":0},null,null,null,null,null,null,null,null,null,null,null,null,null,null,null,"0940","CE"]
["Markets",null,{"$f":"SUMIFS(Sheet1!S71_OriginalBudget,Sheet1!S71_SA34eCode,$AC:$AC,Sheet1!S71_A5CapexCode,$AD:$AD)","v":0},{"$f":"SUMIFS(Sheet1!S71_SpecialAdjustedBudget,Sheet1!S71_SA34eCode,$AC:$AC,Sheet1!S71_A5CapexCode,$AD:$AD)","v":0},null,null,null,null,{"$f":"SUMIFS(Sheet1!S71_AdjustmentAmount,Sheet1!S71_SA34eCode,$AC:$AC,Sheet1!S71_A5CapexCode,$AD:$AD)","v":0},0,0,{"$f":"SUMIFS(Sheet1!S71_OY1AdjustedBudget,Sheet1!S71_SA34eCode,$AC:$AC,Sheet1!S71_A5CapexCode,$AD:$AD)","v":0},{"$f":"SUMIFS(Sheet1!S71_OY2AdjustedBudget,Sheet1!S71_SA34eCode,$AC:$AC,Sheet1!S71_A5CapexCode,$AD:$AD)","v":0},null,null,null,null,null,null,null,null,null,null,null,null,null,null,null,"0950","CE"]
["Stalls",null,{"$f":"SUMIFS(Sheet1!S71_OriginalBudget,Sheet1!S71_SA34eCode,$AC:$AC,Sheet1!S71_A5CapexCode,$AD:$AD)","v":0},{"$f":"SUMIFS(Sheet1!S71_SpecialAdjustedBudget,Sheet1!S71_SA34eCode,$AC:$AC,Sheet1!S71_A5CapexCode,$AD:$AD)","v":0},null,null,null,null,{"$f":"SUMIFS(Sheet1!S71_AdjustmentAmount,Sheet1!S71_SA34eCode,$AC:$AC,Sheet1!S71_A5CapexCode,$AD:$AD)","v":0},0,0,{"$f":"SUMIFS(Sheet1!S71_OY1AdjustedBudget,Sheet1!S71_SA34eCode,$AC:$AC,Sheet1!S71_A5CapexCode,$AD:$AD)","v":0},{"$f":"SUMIFS(Sheet1!S71_OY2AdjustedBudget,Sheet1!S71_SA34eCode,$AC:$AC,Sheet1!S71_A5CapexCode,$AD:$AD)","v":0},null,null,null,null,null,null,null,null,null,null,null,null,null,null,null,"0960","CE"]
["Abattoirs",null,{"$f":"SUMIFS(Sheet1!S71_OriginalBudget,Sheet1!S71_SA34eCode,$AC:$AC,Sheet1!S71_A5CapexCode,$AD:$AD)","v":0},{"$f":"SUMIFS(Sheet1!S71_SpecialAdjustedBudget,Sheet1!S71_SA34eCode,$AC:$AC,Sheet1!S71_A5CapexCode,$AD:$AD)","v":0},null,null,null,null,{"$f":"SUMIFS(Sheet1!S71_AdjustmentAmount,Sheet1!S71_SA34eCode,$AC:$AC,Sheet1!S71_A5CapexCode,$AD:$AD)","v":0},0,0,{"$f":"SUMIFS(Sheet1!S71_OY1AdjustedBudget,Sheet1!S71_SA34eCode,$AC:$AC,Sheet1!S71_A5CapexCode,$AD:$AD)","v":0},{"$f":"SUMIFS(Sheet1!S71_OY2AdjustedBudget,Sheet1!S71_SA34eCode,$AC:$AC,Sheet1!S71_A5CapexCode,$AD:$AD)","v":0},null,null,null,null,null,null,null,null,null,null,null,null,null,null,null,"0970","CE"]
["Airports",null,{"$f":"SUMIFS(Sheet1!S71_OriginalBudget,Sheet1!S71_SA34eCode,$AC:$AC,Sheet1!S71_A5CapexCode,$AD:$AD)","v":0},{"$f":"SUMIFS(Sheet1!S71_SpecialAdjustedBudget,Sheet1!S71_SA34eCode,$AC:$AC,Sheet1!S71_A5CapexCode,$AD:$AD)","v":0},null,null,null,null,{"$f":"SUMIFS(Sheet1!S71_AdjustmentAmount,Sheet1!S71_SA34eCode,$AC:$AC,Sheet1!S71_A5CapexCode,$AD:$AD)","v":0},0,0,{"$f":"SUMIFS(Sheet1!S71_OY1AdjustedBudget,Sheet1!S71_SA34eCode,$AC:$AC,Sheet1!S71_A5CapexCode,$AD:$AD)","v":0},{"$f":"SUMIFS(Sheet1!S71_OY2AdjustedBudget,Sheet1!S71_SA34eCode,$AC:$AC,Sheet1!S71_A5CapexCode,$AD:$AD)","v":0},null,null,null,null,null,null,null,null,null,null,null,null,null,null,null,"0980","CE"]
["Taxi Ranks/Bus Terminals",null,{"$f":"SUMIFS(Sheet1!S71_OriginalBudget,Sheet1!S71_SA34eCode,$AC:$AC,Sheet1!S71_A5CapexCode,$AD:$AD)","v":0},{"$f":"SUMIFS(Sheet1!S71_SpecialAdjustedBudget,Sheet1!S71_SA34eCode,$AC:$AC,Sheet1!S71_A5CapexCode,$AD:$AD)","v":0},null,null,null,null,{"$f":"SUMIFS(Sheet1!S71_AdjustmentAmount,Sheet1!S71_SA34eCode,$AC:$AC,Sheet1!S71_A5CapexCode,$AD:$AD)","v":0},0,0,{"$f":"SUMIFS(Sheet1!S71_OY1AdjustedBudget,Sheet1!S71_SA34eCode,$AC:$AC,Sheet1!S71_A5CapexCode,$AD:$AD)","v":0},{"$f":"SUMIFS(Sheet1!S71_OY2AdjustedBudget,Sheet1!S71_SA34eCode,$AC:$AC,Sheet1!S71_A5CapexCode,$AD:$AD)","v":0},null,null,null,null,null,null,null,null,null,null,null,null,null,null,null,"0990","CE"]
["Capital Spares",null,{"$f":"SUMIFS(Sheet1!S71_OriginalBudget,Sheet1!S71_SA34eCode,$AC:$AC,Sheet1!S71_A5CapexCode,$AD:$AD)","v":0},{"$f":"SUMIFS(Sheet1!S71_SpecialAdjustedBudget,Sheet1!S71_SA34eCode,$AC:$AC,Sheet1!S71_A5CapexCode,$AD:$AD)","v":0},null,null,null,null,{"$f":"SUMIFS(Sheet1!S71_AdjustmentAmount,Sheet1!S71_SA34eCode,$AC:$AC,Sheet1!S71_A5CapexCode,$AD:$AD)","v":0},0,0,{"$f":"SUMIFS(Sheet1!S71_OY1AdjustedBudget,Sheet1!S71_SA34eCode,$AC:$AC,Sheet1!S71_A5CapexCode,$AD:$AD)","v":0},{"$f":"SUMIFS(Sheet1!S71_OY2AdjustedBudget,Sheet1!S71_SA34eCode,$AC:$AC,Sheet1!S71_A5CapexCode,$AD:$AD)","v":0},null,null,null,null,null,null,null,null,null,null,null,null,null,null,null,"1000","CE"]
["Sport and Recreation Facilities",null,{"$f":"SUM(C101:C103)","v":0},{"$f":"SUM(D101:D103)","v":0},0,0,0,0,0,0,0,0,0]
["Indoor Facilities",null,{"$f":"SUMIFS(Sheet1!S71_OriginalBudget,Sheet1!S71_SA34eCode,$AC:$AC,Sheet1!S71_A5CapexCode,$AD:$AD)","v":0},{"$f":"SUMIFS(Sheet1!S71_SpecialAdjustedBudget,Sheet1!S71_SA34eCode,$AC:$AC,Sheet1!S71_A5CapexCode,$AD:$AD)","v":0},null,null,null,null,{"$f":"SUMIFS(Sheet1!S71_AdjustmentAmount,Sheet1!S71_SA34eCode,$AC:$AC,Sheet1!S71_A5CapexCode,$AD:$AD)","v":0},0,0,{"$f":"SUMIFS(Sheet1!S71_OY1AdjustedBudget,Sheet1!S71_SA34eCode,$AC:$AC,Sheet1!S71_A5CapexCode,$AD:$AD)","v":0},{"$f":"SUMIFS(Sheet1!S71_OY2AdjustedBudget,Sheet1!S71_SA34eCode,$AC:$AC,Sheet1!S71_A5CapexCode,$AD:$AD)","v":0},null,null,null,null,null,null,null,null,null,null,null,null,null,null,null,"1020","CE"]
["Outdoor Facilities",null,{"$f":"SUMIFS(Sheet1!S71_OriginalBudget,Sheet1!S71_SA34eCode,$AC:$AC,Sheet1!S71_A5CapexCode,$AD:$AD)","v":0},{"$f":"SUMIFS(Sheet1!S71_SpecialAdjustedBudget,Sheet1!S71_SA34eCode,$AC:$AC,Sheet1!S71_A5CapexCode,$AD:$AD)","v":0},null,null,null,null,{"$f":"SUMIFS(Sheet1!S71_AdjustmentAmount,Sheet1!S71_SA34eCode,$AC:$AC,Sheet1!S71_A5CapexCode,$AD:$AD)","v":0},0,0,{"$f":"SUMIFS(Sheet1!S71_OY1AdjustedBudget,Sheet1!S71_SA34eCode,$AC:$AC,Sheet1!S71_A5CapexCode,$AD:$AD)","v":0},{"$f":"SUMIFS(Sheet1!S71_OY2AdjustedBudget,Sheet1!S71_SA34eCode,$AC:$AC,Sheet1!S71_A5CapexCode,$AD:$AD)","v":0},null,null,null,null,null,null,null,null,null,null,null,null,null,null,null,"1030","CE"]
["Capital Spares",null,{"$f":"SUMIFS(Sheet1!S71_OriginalBudget,Sheet1!S71_SA34eCode,$AC:$AC,Sheet1!S71_A5CapexCode,$AD:$AD)","v":0},{"$f":"SUMIFS(Sheet1!S71_SpecialAdjustedBudget,Sheet1!S71_SA34eCode,$AC:$AC,Sheet1!S71_A5CapexCode,$AD:$AD)","v":0},null,null,null,null,{"$f":"SUMIFS(Sheet1!S71_AdjustmentAmount,Sheet1!S71_SA34eCode,$AC:$AC,Sheet1!S71_A5CapexCode,$AD:$AD)","v":0},0,0,{"$f":"SUMIFS(Sheet1!S71_OY1AdjustedBudget,Sheet1!S71_SA34eCode,$AC:$AC,Sheet1!S71_A5CapexCode,$AD:$AD)","v":0},{"$f":"SUMIFS(Sheet1!S71_OY2AdjustedBudget,Sheet1!S71_SA34eCode,$AC:$AC,Sheet1!S71_A5CapexCode,$AD:$AD)","v":0},null,null,null,null,null,null,null,null,null,null,null,null,null,null,null,"1040","CE"]
[]
["Heritage assets",null,{"$f":"SUM(C106:C110)","v":0},0,0,0,0,0,0,0,0,0,0]
["Monuments",null,{"$f":"SUMIFS(Sheet1!S71_OriginalBudget,Sheet1!S71_SA34eCode,$AC:$AC,Sheet1!S71_A5CapexCode,$AD:$AD)","v":0},{"$f":"SUMIFS(Sheet1!S71_SpecialAdjustedBudget,Sheet1!S71_SA34eCode,$AC:$AC,Sheet1!S71_A5CapexCode,$AD:$AD)","v":0},null,null,null,null,{"$f":"SUMIFS(Sheet1!S71_AdjustmentAmount,Sheet1!S71_SA34eCode,$AC:$AC,Sheet1!S71_A5CapexCode,$AD:$AD)","v":0},0,0,{"$f":"SUMIFS(Sheet1!S71_OY1AdjustedBudget,Sheet1!S71_SA34eCode,$AC:$AC,Sheet1!S71_A5CapexCode,$AD:$AD)","v":0},{"$f":"SUMIFS(Sheet1!S71_OY2AdjustedBudget,Sheet1!S71_SA34eCode,$AC:$AC,Sheet1!S71_A5CapexCode,$AD:$AD)","v":0},null,null,null,null,null,null,null,null,null,null,null,null,null,null,null,"1060","CE"]
["Historic Buildings",null,{"$f":"SUMIFS(Sheet1!S71_OriginalBudget,Sheet1!S71_SA34eCode,$AC:$AC,Sheet1!S71_A5CapexCode,$AD:$AD)","v":0},{"$f":"SUMIFS(Sheet1!S71_SpecialAdjustedBudget,Sheet1!S71_SA34eCode,$AC:$AC,Sheet1!S71_A5CapexCode,$AD:$AD)","v":0},null,null,null,null,{"$f":"SUMIFS(Sheet1!S71_AdjustmentAmount,Sheet1!S71_SA34eCode,$AC:$AC,Sheet1!S71_A5CapexCode,$AD:$AD)","v":0},0,0,{"$f":"SUMIFS(Sheet1!S71_OY1AdjustedBudget,Sheet1!S71_SA34eCode,$AC:$AC,Sheet1!S71_A5CapexCode,$AD:$AD)","v":0},{"$f":"SUMIFS(Sheet1!S71_OY2AdjustedBudget,Sheet1!S71_SA34eCode,$AC:$AC,Sheet1!S71_A5CapexCode,$AD:$AD)","v":0},null,null,null,null,null,null,null,null,null,null,null,null,null,null,null,"1070","CE"]
["Works of Art",null,{"$f":"SUMIFS(Sheet1!S71_OriginalBudget,Sheet1!S71_SA34eCode,$AC:$AC,Sheet1!S71_A5CapexCode,$AD:$AD)","v":0},{"$f":"SUMIFS(Sheet1!S71_SpecialAdjustedBudget,Sheet1!S71_SA34eCode,$AC:$AC,Sheet1!S71_A5CapexCode,$AD:$AD)","v":0},null,null,null,null,{"$f":"SUMIFS(Sheet1!S71_AdjustmentAmount,Sheet1!S71_SA34eCode,$AC:$AC,Sheet1!S71_A5CapexCode,$AD:$AD)","v":0},0,0,{"$f":"SUMIFS(Sheet1!S71_OY1AdjustedBudget,Sheet1!S71_SA34eCode,$AC:$AC,Sheet1!S71_A5CapexCode,$AD:$AD)","v":0},{"$f":"SUMIFS(Sheet1!S71_OY2AdjustedBudget,Sheet1!S71_SA34eCode,$AC:$AC,Sheet1!S71_A5CapexCode,$AD:$AD)","v":0},null,null,null,null,null,null,null,null,null,null,null,null,null,null,null,"1080","CE"]
["Conservation Areas",null,{"$f":"SUMIFS(Sheet1!S71_OriginalBudget,Sheet1!S71_SA34eCode,$AC:$AC,Sheet1!S71_A5CapexCode,$AD:$AD)","v":0},{"$f":"SUMIFS(Sheet1!S71_SpecialAdjustedBudget,Sheet1!S71_SA34eCode,$AC:$AC,Sheet1!S71_A5CapexCode,$AD:$AD)","v":0},null,null,null,null,{"$f":"SUMIFS(Sheet1!S71_AdjustmentAmount,Sheet1!S71_SA34eCode,$AC:$AC,Sheet1!S71_A5CapexCode,$AD:$AD)","v":0},0,0,{"$f":"SUMIFS(Sheet1!S71_OY1AdjustedBudget,Sheet1!S71_SA34eCode,$AC:$AC,Sheet1!S71_A5CapexCode,$AD:$AD)","v":0},{"$f":"SUMIFS(Sheet1!S71_OY2AdjustedBudget,Sheet1!S71_SA34eCode,$AC:$AC,Sheet1!S71_A5CapexCode,$AD:$AD)","v":0},null,null,null,null,null,null,null,null,null,null,null,null,null,null,null,"1090","CE"]
["Other Heritage",null,{"$f":"SUMIFS(Sheet1!S71_OriginalBudget,Sheet1!S71_SA34eCode,$AC:$AC,Sheet1!S71_A5CapexCode,$AD:$AD)","v":0},{"$f":"SUMIFS(Sheet1!S71_SpecialAdjustedBudget,Sheet1!S71_SA34eCode,$AC:$AC,Sheet1!S71_A5CapexCode,$AD:$AD)","v":0},null,null,null,null,{"$f":"SUMIFS(Sheet1!S71_AdjustmentAmount,Sheet1!S71_SA34eCode,$AC:$AC,Sheet1!S71_A5CapexCode,$AD:$AD)","v":0},0,0,{"$f":"SUMIFS(Sheet1!S71_OY1AdjustedBudget,Sheet1!S71_SA34eCode,$AC:$AC,Sheet1!S71_A5CapexCode,$AD:$AD)","v":0},{"$f":"SUMIFS(Sheet1!S71_OY2AdjustedBudget,Sheet1!S71_SA34eCode,$AC:$AC,Sheet1!S71_A5CapexCode,$AD:$AD)","v":0},null,null,null,null,null,null,null,null,null,null,null,null,null,null,null,"1100","CE"]
[]
["Investment properties",null,{"$f":"+C113+C116","v":0},{"$f":"+D113+D116","v":0},0,0,0,0,0,0,0,{"$f":"+L113+L116","v":0},{"$f":"+M113+M116","v":0}]
["Revenue Generating",null,{"$f":"SUM(C114:C115)","v":0},{"$f":"SUM(D114:D115)","v":0},{"$f":"SUM(E114:E115)","v":0},0,0,0,0,0,0,0,0]
["Improved Property",null,{"$f":"SUMIFS(Sheet1!S71_OriginalBudget,Sheet1!S71_SA34eCode,$AC:$AC,Sheet1!S71_A5CapexCode,$AD:$AD)","v":0},{"$f":"SUMIFS(Sheet1!S71_SpecialAdjustedBudget,Sheet1!S71_SA34eCode,$AC:$AC,Sheet1!S71_A5CapexCode,$AD:$AD)","v":0},null,null,null,null,{"$f":"SUMIFS(Sheet1!S71_AdjustmentAmount,Sheet1!S71_SA34eCode,$AC:$AC,Sheet1!S71_A5CapexCode,$AD:$AD)","v":0},0,0,{"$f":"SUMIFS(Sheet1!S71_OY1AdjustedBudget,Sheet1!S71_SA34eCode,$AC:$AC,Sheet1!S71_A5CapexCode,$AD:$AD)","v":0},{"$f":"SUMIFS(Sheet1!S71_OY2AdjustedBudget,Sheet1!S71_SA34eCode,$AC:$AC,Sheet1!S71_A5CapexCode,$AD:$AD)","v":0},null,null,null,null,null,null,null,null,null,null,null,null,null,null,null,"1130","CE"]
["Unimproved Property",null,{"$f":"SUMIFS(Sheet1!S71_OriginalBudget,Sheet1!S71_SA34eCode,$AC:$AC,Sheet1!S71_A5CapexCode,$AD:$AD)","v":0},{"$f":"SUMIFS(Sheet1!S71_SpecialAdjustedBudget,Sheet1!S71_SA34eCode,$AC:$AC,Sheet1!S71_A5CapexCode,$AD:$AD)","v":0},null,null,null,null,{"$f":"SUMIFS(Sheet1!S71_AdjustmentAmount,Sheet1!S71_SA34eCode,$AC:$AC,Sheet1!S71_A5CapexCode,$AD:$AD)","v":0},0,0,{"$f":"SUMIFS(Sheet1!S71_OY1AdjustedBudget,Sheet1!S71_SA34eCode,$AC:$AC,Sheet1!S71_A5CapexCode,$AD:$AD)","v":0},{"$f":"SUMIFS(Sheet1!S71_OY2AdjustedBudget,Sheet1!S71_SA34eCode,$AC:$AC,Sheet1!S71_A5CapexCode,$AD:$AD)","v":0},null,null,null,null,null,null,null,null,null,null,null,null,null,null,null,"1140","CE"]
["Non-revenue Generating",null,{"$f":"SUM(C117:C118)","v":0},{"$f":"SUM(D117:D118)","v":0},{"$f":"SUM(E117:E118)","v":0},0,0,0,0,0,0,0,0,null,null,null,null,null,null,null,null,null,null,null,null,null,null,null,null,"CE"]
["Improved Property",null,{"$f":"SUMIFS(Sheet1!S71_OriginalBudget,Sheet1!S71_SA34eCode,$AC:$AC,Sheet1!S71_A5CapexCode,$AD:$AD)","v":0},{"$f":"SUMIFS(Sheet1!S71_SpecialAdjustedBudget,Sheet1!S71_SA34eCode,$AC:$AC,Sheet1!S71_A5CapexCode,$AD:$AD)","v":0},null,null,null,null,{"$f":"SUMIFS(Sheet1!S71_AdjustmentAmount,Sheet1!S71_SA34eCode,$AC:$AC,Sheet1!S71_A5CapexCode,$AD:$AD)","v":0},0,0,{"$f":"SUMIFS(Sheet1!S71_OY1AdjustedBudget,Sheet1!S71_SA34eCode,$AC:$AC,Sheet1!S71_A5CapexCode,$AD:$AD)","v":0},{"$f":"SUMIFS(Sheet1!S71_OY2AdjustedBudget,Sheet1!S71_SA34eCode,$AC:$AC,Sheet1!S71_A5CapexCode,$AD:$AD)","v":0},null,null,null,null,null,null,null,null,null,null,null,null,null,null,null,"1160","CE"]
["Unimproved Property",null,{"$f":"SUMIFS(Sheet1!S71_OriginalBudget,Sheet1!S71_SA34eCode,$AC:$AC,Sheet1!S71_A5CapexCode,$AD:$AD)","v":0},{"$f":"SUMIFS(Sheet1!S71_SpecialAdjustedBudget,Sheet1!S71_SA34eCode,$AC:$AC,Sheet1!S71_A5CapexCode,$AD:$AD)","v":0},null,null,null,null,{"$f":"SUMIFS(Sheet1!S71_AdjustmentAmount,Sheet1!S71_SA34eCode,$AC:$AC,Sheet1!S71_A5CapexCode,$AD:$AD)","v":0},0,0,{"$f":"SUMIFS(Sheet1!S71_OY1AdjustedBudget,Sheet1!S71_SA34eCode,$AC:$AC,Sheet1!S71_A5CapexCode,$AD:$AD)","v":0},{"$f":"SUMIFS(Sheet1!S71_OY2AdjustedBudget,Sheet1!S71_SA34eCode,$AC:$AC,Sheet1!S71_A5CapexCode,$AD:$AD)","v":0},null,null,null,null,null,null,null,null,null,null,null,null,null,null,null,"1170","CE"]
[]
["Other assets",null,{"$f":"+C121+C133","v":0},{"$f":"+D121+D133","v":0},0,0,0,0,0,0,0,{"$f":"+L121+L133","v":0},{"$f":"+M121+M133","v":0}]
["Operational Buildings",null,{"$f":"SUM(C122:C132)","v":0},{"$f":"SUM(D122:D132)","v":0},0,0,0,0,0,0,0,{"$f":"SUM(L122:L132)","v":0},{"$f":"SUM(M122:M132)","v":0}]
["Municipal Offices",null,{"$f":"SUMIFS(Sheet1!S71_OriginalBudget,Sheet1!S71_SA34eCode,$AC:$AC,Sheet1!S71_A5CapexCode,$AD:$AD)","v":0},{"$f":"SUMIFS(Sheet1!S71_SpecialAdjustedBudget,Sheet1!S71_SA34eCode,$AC:$AC,Sheet1!S71_A5CapexCode,$AD:$AD)","v":0},null,null,null,null,{"$f":"SUMIFS(Sheet1!S71_AdjustmentAmount,Sheet1!S71_SA34eCode,$AC:$AC,Sheet1!S71_A5CapexCode,$AD:$AD)","v":0},0,0,{"$f":"SUMIFS(Sheet1!S71_OY1AdjustedBudget,Sheet1!S71_SA34eCode,$AC:$AC,Sheet1!S71_A5CapexCode,$AD:$AD)","v":0},{"$f":"SUMIFS(Sheet1!S71_OY2AdjustedBudget,Sheet1!S71_SA34eCode,$AC:$AC,Sheet1!S71_A5CapexCode,$AD:$AD)","v":0},null,null,null,null,null,null,null,null,null,null,null,null,null,null,null,"1200","CE"]
["Pay/Enquiry Points",null,{"$f":"SUMIFS(Sheet1!S71_OriginalBudget,Sheet1!S71_SA34eCode,$AC:$AC,Sheet1!S71_A5CapexCode,$AD:$AD)","v":0},{"$f":"SUMIFS(Sheet1!S71_SpecialAdjustedBudget,Sheet1!S71_SA34eCode,$AC:$AC,Sheet1!S71_A5CapexCode,$AD:$AD)","v":0},null,null,null,null,{"$f":"SUMIFS(Sheet1!S71_AdjustmentAmount,Sheet1!S71_SA34eCode,$AC:$AC,Sheet1!S71_A5CapexCode,$AD:$AD)","v":0},0,0,{"$f":"SUMIFS(Sheet1!S71_OY1AdjustedBudget,Sheet1!S71_SA34eCode,$AC:$AC,Sheet1!S71_A5CapexCode,$AD:$AD)","v":0},{"$f":"SUMIFS(Sheet1!S71_OY2AdjustedBudget,Sheet1!S71_SA34eCode,$AC:$AC,Sheet1!S71_A5CapexCode,$AD:$AD)","v":0},null,null,null,null,null,null,null,null,null,null,null,null,null,null,null,"1210","CE"]
["Building Plan Offices",null,{"$f":"SUMIFS(Sheet1!S71_OriginalBudget,Sheet1!S71_SA34eCode,$AC:$AC,Sheet1!S71_A5CapexCode,$AD:$AD)","v":0},{"$f":"SUMIFS(Sheet1!S71_SpecialAdjustedBudget,Sheet1!S71_SA34eCode,$AC:$AC,Sheet1!S71_A5CapexCode,$AD:$AD)","v":0},null,null,null,null,{"$f":"SUMIFS(Sheet1!S71_AdjustmentAmount,Sheet1!S71_SA34eCode,$AC:$AC,Sheet1!S71_A5CapexCode,$AD:$AD)","v":0},0,0,{"$f":"SUMIFS(Sheet1!S71_OY1AdjustedBudget,Sheet1!S71_SA34eCode,$AC:$AC,Sheet1!S71_A5CapexCode,$AD:$AD)","v":0},{"$f":"SUMIFS(Sheet1!S71_OY2AdjustedBudget,Sheet1!S71_SA34eCode,$AC:$AC,Sheet1!S71_A5CapexCode,$AD:$AD)","v":0},null,null,null,null,null,null,null,null,null,null,null,null,null,null,null,"1220","CE"]
["Workshops",null,{"$f":"SUMIFS(Sheet1!S71_OriginalBudget,Sheet1!S71_SA34eCode,$AC:$AC,Sheet1!S71_A5CapexCode,$AD:$AD)","v":0},{"$f":"SUMIFS(Sheet1!S71_SpecialAdjustedBudget,Sheet1!S71_SA34eCode,$AC:$AC,Sheet1!S71_A5CapexCode,$AD:$AD)","v":0},null,null,null,null,{"$f":"SUMIFS(Sheet1!S71_AdjustmentAmount,Sheet1!S71_SA34eCode,$AC:$AC,Sheet1!S71_A5CapexCode,$AD:$AD)","v":0},0,0,{"$f":"SUMIFS(Sheet1!S71_OY1AdjustedBudget,Sheet1!S71_SA34eCode,$AC:$AC,Sheet1!S71_A5CapexCode,$AD:$AD)","v":0},{"$f":"SUMIFS(Sheet1!S71_OY2AdjustedBudget,Sheet1!S71_SA34eCode,$AC:$AC,Sheet1!S71_A5CapexCode,$AD:$AD)","v":0},null,null,null,null,null,null,null,null,null,null,null,null,null,null,null,"1230","CE"]
["Yards",null,{"$f":"SUMIFS(Sheet1!S71_OriginalBudget,Sheet1!S71_SA34eCode,$AC:$AC,Sheet1!S71_A5CapexCode,$AD:$AD)","v":0},{"$f":"SUMIFS(Sheet1!S71_SpecialAdjustedBudget,Sheet1!S71_SA34eCode,$AC:$AC,Sheet1!S71_A5CapexCode,$AD:$AD)","v":0},null,null,null,null,{"$f":"SUMIFS(Sheet1!S71_AdjustmentAmount,Sheet1!S71_SA34eCode,$AC:$AC,Sheet1!S71_A5CapexCode,$AD:$AD)","v":0},0,0,{"$f":"SUMIFS(Sheet1!S71_OY1AdjustedBudget,Sheet1!S71_SA34eCode,$AC:$AC,Sheet1!S71_A5CapexCode,$AD:$AD)","v":0},{"$f":"SUMIFS(Sheet1!S71_OY2AdjustedBudget,Sheet1!S71_SA34eCode,$AC:$AC,Sheet1!S71_A5CapexCode,$AD:$AD)","v":0},null,null,null,null,null,null,null,null,null,null,null,null,null,null,null,"1240","CE"]
["Stores",null,{"$f":"SUMIFS(Sheet1!S71_OriginalBudget,Sheet1!S71_SA34eCode,$AC:$AC,Sheet1!S71_A5CapexCode,$AD:$AD)","v":0},{"$f":"SUMIFS(Sheet1!S71_SpecialAdjustedBudget,Sheet1!S71_SA34eCode,$AC:$AC,Sheet1!S71_A5CapexCode,$AD:$AD)","v":0},null,null,null,null,{"$f":"SUMIFS(Sheet1!S71_AdjustmentAmount,Sheet1!S71_SA34eCode,$AC:$AC,Sheet1!S71_A5CapexCode,$AD:$AD)","v":0},0,0,{"$f":"SUMIFS(Sheet1!S71_OY1AdjustedBudget,Sheet1!S71_SA34eCode,$AC:$AC,Sheet1!S71_A5CapexCode,$AD:$AD)","v":0},{"$f":"SUMIFS(Sheet1!S71_OY2AdjustedBudget,Sheet1!S71_SA34eCode,$AC:$AC,Sheet1!S71_A5CapexCode,$AD:$AD)","v":0},null,null,null,null,null,null,null,null,null,null,null,null,null,null,null,"1250","CE"]
["Laboratories",null,{"$f":"SUMIFS(Sheet1!S71_OriginalBudget,Sheet1!S71_SA34eCode,$AC:$AC,Sheet1!S71_A5CapexCode,$AD:$AD)","v":0},{"$f":"SUMIFS(Sheet1!S71_SpecialAdjustedBudget,Sheet1!S71_SA34eCode,$AC:$AC,Sheet1!S71_A5CapexCode,$AD:$AD)","v":0},null,null,null,null,{"$f":"SUMIFS(Sheet1!S71_AdjustmentAmount,Sheet1!S71_SA34eCode,$AC:$AC,Sheet1!S71_A5CapexCode,$AD:$AD)","v":0},0,0,{"$f":"SUMIFS(Sheet1!S71_OY1AdjustedBudget,Sheet1!S71_SA34eCode,$AC:$AC,Sheet1!S71_A5CapexCode,$AD:$AD)","v":0},{"$f":"SUMIFS(Sheet1!S71_OY2AdjustedBudget,Sheet1!S71_SA34eCode,$AC:$AC,Sheet1!S71_A5CapexCode,$AD:$AD)","v":0},null,null,null,null,null,null,null,null,null,null,null,null,null,null,null,"1260","CE"]
["Training Centres",null,{"$f":"SUMIFS(Sheet1!S71_OriginalBudget,Sheet1!S71_SA34eCode,$AC:$AC,Sheet1!S71_A5CapexCode,$AD:$AD)","v":0},{"$f":"SUMIFS(Sheet1!S71_SpecialAdjustedBudget,Sheet1!S71_SA34eCode,$AC:$AC,Sheet1!S71_A5CapexCode,$AD:$AD)","v":0},null,null,null,null,{"$f":"SUMIFS(Sheet1!S71_AdjustmentAmount,Sheet1!S71_SA34eCode,$AC:$AC,Sheet1!S71_A5CapexCode,$AD:$AD)","v":0},0,0,{"$f":"SUMIFS(Sheet1!S71_OY1AdjustedBudget,Sheet1!S71_SA34eCode,$AC:$AC,Sheet1!S71_A5CapexCode,$AD:$AD)","v":0},{"$f":"SUMIFS(Sheet1!S71_OY2AdjustedBudget,Sheet1!S71_SA34eCode,$AC:$AC,Sheet1!S71_A5CapexCode,$AD:$AD)","v":0},null,null,null,null,null,null,null,null,null,null,null,null,null,null,null,"1270","CE"]
["Manufacturing Plant",null,{"$f":"SUMIFS(Sheet1!S71_OriginalBudget,Sheet1!S71_SA34eCode,$AC:$AC,Sheet1!S71_A5CapexCode,$AD:$AD)","v":0},{"$f":"SUMIFS(Sheet1!S71_SpecialAdjustedBudget,Sheet1!S71_SA34eCode,$AC:$AC,Sheet1!S71_A5CapexCode,$AD:$AD)","v":0},null,null,null,null,{"$f":"SUMIFS(Sheet1!S71_AdjustmentAmount,Sheet1!S71_SA34eCode,$AC:$AC,Sheet1!S71_A5CapexCode,$AD:$AD)","v":0},0,0,{"$f":"SUMIFS(Sheet1!S71_OY1AdjustedBudget,Sheet1!S71_SA34eCode,$AC:$AC,Sheet1!S71_A5CapexCode,$AD:$AD)","v":0},{"$f":"SUMIFS(Sheet1!S71_OY2AdjustedBudget,Sheet1!S71_SA34eCode,$AC:$AC,Sheet1!S71_A5CapexCode,$AD:$AD)","v":0},null,null,null,null,null,null,null,null,null,null,null,null,null,null,null,"1280","CE"]
["Depots",null,{"$f":"SUMIFS(Sheet1!S71_OriginalBudget,Sheet1!S71_SA34eCode,$AC:$AC,Sheet1!S71_A5CapexCode,$AD:$AD)","v":0},{"$f":"SUMIFS(Sheet1!S71_SpecialAdjustedBudget,Sheet1!S71_SA34eCode,$AC:$AC,Sheet1!S71_A5CapexCode,$AD:$AD)","v":0},null,null,null,null,{"$f":"SUMIFS(Sheet1!S71_AdjustmentAmount,Sheet1!S71_SA34eCode,$AC:$AC,Sheet1!S71_A5CapexCode,$AD:$AD)","v":0},0,0,{"$f":"SUMIFS(Sheet1!S71_OY1AdjustedBudget,Sheet1!S71_SA34eCode,$AC:$AC,Sheet1!S71_A5CapexCode,$AD:$AD)","v":0},{"$f":"SUMIFS(Sheet1!S71_OY2AdjustedBudget,Sheet1!S71_SA34eCode,$AC:$AC,Sheet1!S71_A5CapexCode,$AD:$AD)","v":0},null,null,null,null,null,null,null,null,null,null,null,null,null,null,null,"1290","CE"]
["Capital Spares",null,{"$f":"SUMIFS(Sheet1!S71_OriginalBudget,Sheet1!S71_SA34eCode,$AC:$AC,Sheet1!S71_A5CapexCode,$AD:$AD)","v":0},{"$f":"SUMIFS(Sheet1!S71_SpecialAdjustedBudget,Sheet1!S71_SA34eCode,$AC:$AC,Sheet1!S71_A5CapexCode,$AD:$AD)","v":0},null,null,null,null,{"$f":"SUMIFS(Sheet1!S71_AdjustmentAmount,Sheet1!S71_SA34eCode,$AC:$AC,Sheet1!S71_A5CapexCode,$AD:$AD)","v":0},0,0,{"$f":"SUMIFS(Sheet1!S71_OY1AdjustedBudget,Sheet1!S71_SA34eCode,$AC:$AC,Sheet1!S71_A5CapexCode,$AD:$AD)","v":0},{"$f":"SUMIFS(Sheet1!S71_OY2AdjustedBudget,Sheet1!S71_SA34eCode,$AC:$AC,Sheet1!S71_A5CapexCode,$AD:$AD)","v":0},null,null,null,null,null,null,null,null,null,null,null,null,null,null,null,"1300","CE"]
["Housing",null,{"$f":"SUM(C134:C136)","v":0},{"$f":"SUM(D134:D136)","v":0},{"$f":"SUM(E134:E136)","v":0},0,0,0,0,0,0,0,0]
["Staff Housing",null,{"$f":"SUMIFS(Sheet1!S71_OriginalBudget,Sheet1!S71_SA34eCode,$AC:$AC,Sheet1!S71_A5CapexCode,$AD:$AD)","v":0},{"$f":"SUMIFS(Sheet1!S71_SpecialAdjustedBudget,Sheet1!S71_SA34eCode,$AC:$AC,Sheet1!S71_A5CapexCode,$AD:$AD)","v":0},null,null,null,null,{"$f":"SUMIFS(Sheet1!S71_AdjustmentAmount,Sheet1!S71_SA34eCode,$AC:$AC,Sheet1!S71_A5CapexCode,$AD:$AD)","v":0},0,0,{"$f":"SUMIFS(Sheet1!S71_OY1AdjustedBudget,Sheet1!S71_SA34eCode,$AC:$AC,Sheet1!S71_A5CapexCode,$AD:$AD)","v":0},{"$f":"SUMIFS(Sheet1!S71_OY2AdjustedBudget,Sheet1!S71_SA34eCode,$AC:$AC,Sheet1!S71_A5CapexCode,$AD:$AD)","v":0},null,null,null,null,null,null,null,null,null,null,null,null,null,null,null,"1320","CE"]
["Social Housing",null,{"$f":"SUMIFS(Sheet1!S71_OriginalBudget,Sheet1!S71_SA34eCode,$AC:$AC,Sheet1!S71_A5CapexCode,$AD:$AD)","v":0},{"$f":"SUMIFS(Sheet1!S71_SpecialAdjustedBudget,Sheet1!S71_SA34eCode,$AC:$AC,Sheet1!S71_A5CapexCode,$AD:$AD)","v":0},null,null,null,null,{"$f":"SUMIFS(Sheet1!S71_AdjustmentAmount,Sheet1!S71_SA34eCode,$AC:$AC,Sheet1!S71_A5CapexCode,$AD:$AD)","v":0},0,0,{"$f":"SUMIFS(Sheet1!S71_OY1AdjustedBudget,Sheet1!S71_SA34eCode,$AC:$AC,Sheet1!S71_A5CapexCode,$AD:$AD)","v":0},{"$f":"SUMIFS(Sheet1!S71_OY2AdjustedBudget,Sheet1!S71_SA34eCode,$AC:$AC,Sheet1!S71_A5CapexCode,$AD:$AD)","v":0},null,null,null,null,null,null,null,null,null,null,null,null,null,null,null,"1330","CE"]
["Capital Spares",null,{"$f":"SUMIFS(Sheet1!S71_OriginalBudget,Sheet1!S71_SA34eCode,$AC:$AC,Sheet1!S71_A5CapexCode,$AD:$AD)","v":0},{"$f":"SUMIFS(Sheet1!S71_SpecialAdjustedBudget,Sheet1!S71_SA34eCode,$AC:$AC,Sheet1!S71_A5CapexCode,$AD:$AD)","v":0},null,null,null,null,{"$f":"SUMIFS(Sheet1!S71_AdjustmentAmount,Sheet1!S71_SA34eCode,$AC:$AC,Sheet1!S71_A5CapexCode,$AD:$AD)","v":0},0,0,{"$f":"SUMIFS(Sheet1!S71_OY1AdjustedBudget,Sheet1!S71_SA34eCode,$AC:$AC,Sheet1!S71_A5CapexCode,$AD:$AD)","v":0},{"$f":"SUMIFS(Sheet1!S71_OY2AdjustedBudget,Sheet1!S71_SA34eCode,$AC:$AC,Sheet1!S71_A5CapexCode,$AD:$AD)","v":0},null,null,null,null,null,null,null,null,null,null,null,null,null,null,null,"1340","CE"]
[]
["Biological or Cultivated Assets",null,{"$f":"SUM(C139:C139)","v":0},0,0,0,0,0,0,{"$f":"SUM(E138:I138)","v":0},{"$f":"IF(D138=0,C138+J138,D138+J138)","v":0},0,0]
["Biological or Cultivated Assets",null,{"$f":"SUMIFS(Sheet1!S71_OriginalBudget,Sheet1!S71_SA34eCode,$AC:$AC,Sheet1!S71_A5CapexCode,$AD:$AD)","v":0},{"$f":"SUMIFS(Sheet1!S71_SpecialAdjustedBudget,Sheet1!S71_SA34eCode,$AC:$AC,Sheet1!S71_A5CapexCode,$AD:$AD)","v":0},null,null,null,null,{"$f":"SUMIFS(Sheet1!S71_AdjustmentAmount,Sheet1!S71_SA34eCode,$AC:$AC,Sheet1!S71_A5CapexCode,$AD:$AD)","v":0},0,0,{"$f":"SUMIFS(Sheet1!S71_OY1AdjustedBudget,Sheet1!S71_SA34eCode,$AC:$AC,Sheet1!S71_A5CapexCode,$AD:$AD)","v":0},{"$f":"SUMIFS(Sheet1!S71_OY2AdjustedBudget,Sheet1!S71_SA34eCode,$AC:$AC,Sheet1!S71_A5CapexCode,$AD:$AD)","v":0},null,null,null,null,null,null,null,null,null,null,null,null,null,null,null,"1360","CE"]
[]
["Intangible Assets",null,{"$f":"SUM(C142:C143)","v":0},{"$f":"SUM(D142:D143)","v":0},{"$f":"SUM(E142:E143)","v":0},0,0,0,0,0,0,0,0]
["Servitudes",null,{"$f":"SUMIFS(Sheet1!S71_OriginalBudget,Sheet1!S71_SA34eCode,$AC:$AC,Sheet1!S71_A5CapexCode,$AD:$AD)","v":0},{"$f":"SUMIFS(Sheet1!S71_SpecialAdjustedBudget,Sheet1!S71_SA34eCode,$AC:$AC,Sheet1!S71_A5CapexCode,$AD:$AD)","v":0},null,null,null,null,{"$f":"SUMIFS(Sheet1!S71_AdjustmentAmount,Sheet1!S71_SA34eCode,$AC:$AC,Sheet1!S71_A5CapexCode,$AD:$AD)","v":0},0,0,{"$f":"SUMIFS(Sheet1!S71_OY1AdjustedBudget,Sheet1!S71_SA34eCode,$AC:$AC,Sheet1!S71_A5CapexCode,$AD:$AD)","v":0},{"$f":"SUMIFS(Sheet1!S71_OY2AdjustedBudget,Sheet1!S71_SA34eCode,$AC:$AC,Sheet1!S71_A5CapexCode,$AD:$AD)","v":0},null,null,null,null,null,null,null,null,null,null,null,null,null,null,null,"1380","CE"]
["Licences and Rights",null,{"$f":"SUM(C144:C149)","v":0},{"$f":"SUM(D144:D149)","v":0},{"$f":"SUM(E144:E149)","v":0},0,0,0,0,0,0,0,0]
["Water Rights",null,{"$f":"SUMIFS(Sheet1!S71_OriginalBudget,Sheet1!S71_SA34eCode,$AC:$AC,Sheet1!S71_A5CapexCode,$AD:$AD)","v":0},{"$f":"SUMIFS(Sheet1!S71_SpecialAdjustedBudget,Sheet1!S71_SA34eCode,$AC:$AC,Sheet1!S71_A5CapexCode,$AD:$AD)","v":0},null,null,null,null,{"$f":"SUMIFS(Sheet1!S71_AdjustmentAmount,Sheet1!S71_SA34eCode,$AC:$AC,Sheet1!S71_A5CapexCode,$AD:$AD)","v":0},0,0,{"$f":"SUMIFS(Sheet1!S71_OY1AdjustedBudget,Sheet1!S71_SA34eCode,$AC:$AC,Sheet1!S71_A5CapexCode,$AD:$AD)","v":0},{"$f":"SUMIFS(Sheet1!S71_OY2AdjustedBudget,Sheet1!S71_SA34eCode,$AC:$AC,Sheet1!S71_A5CapexCode,$AD:$AD)","v":0},null,null,null,null,null,null,null,null,null,null,null,null,null,null,null,"1400","CE"]
["Effluent Licenses",null,{"$f":"SUMIFS(Sheet1!S71_OriginalBudget,Sheet1!S71_SA34eCode,$AC:$AC,Sheet1!S71_A5CapexCode,$AD:$AD)","v":0},{"$f":"SUMIFS(Sheet1!S71_SpecialAdjustedBudget,Sheet1!S71_SA34eCode,$AC:$AC,Sheet1!S71_A5CapexCode,$AD:$AD)","v":0},null,null,null,null,{"$f":"SUMIFS(Sheet1!S71_AdjustmentAmount,Sheet1!S71_SA34eCode,$AC:$AC,Sheet1!S71_A5CapexCode,$AD:$AD)","v":0},0,0,{"$f":"SUMIFS(Sheet1!S71_OY1AdjustedBudget,Sheet1!S71_SA34eCode,$AC:$AC,Sheet1!S71_A5CapexCode,$AD:$AD)","v":0},{"$f":"SUMIFS(Sheet1!S71_OY2AdjustedBudget,Sheet1!S71_SA34eCode,$AC:$AC,Sheet1!S71_A5CapexCode,$AD:$AD)","v":0},null,null,null,null,null,null,null,null,null,null,null,null,null,null,null,"1410","CE"]
["Solid Waste Licenses",null,{"$f":"SUMIFS(Sheet1!S71_OriginalBudget,Sheet1!S71_SA34eCode,$AC:$AC,Sheet1!S71_A5CapexCode,$AD:$AD)","v":0},{"$f":"SUMIFS(Sheet1!S71_SpecialAdjustedBudget,Sheet1!S71_SA34eCode,$AC:$AC,Sheet1!S71_A5CapexCode,$AD:$AD)","v":0},null,null,null,null,{"$f":"SUMIFS(Sheet1!S71_AdjustmentAmount,Sheet1!S71_SA34eCode,$AC:$AC,Sheet1!S71_A5CapexCode,$AD:$AD)","v":0},0,0,{"$f":"SUMIFS(Sheet1!S71_OY1AdjustedBudget,Sheet1!S71_SA34eCode,$AC:$AC,Sheet1!S71_A5CapexCode,$AD:$AD)","v":0},{"$f":"SUMIFS(Sheet1!S71_OY2AdjustedBudget,Sheet1!S71_SA34eCode,$AC:$AC,Sheet1!S71_A5CapexCode,$AD:$AD)","v":0},null,null,null,null,null,null,null,null,null,null,null,null,null,null,null,"1420","CE"]
["Computer Software and Applications",null,{"$f":"SUMIFS(Sheet1!S71_OriginalBudget,Sheet1!S71_SA34eCode,$AC:$AC,Sheet1!S71_A5CapexCode,$AD:$AD)","v":0},{"$f":"SUMIFS(Sheet1!S71_SpecialAdjustedBudget,Sheet1!S71_SA34eCode,$AC:$AC,Sheet1!S71_A5CapexCode,$AD:$AD)","v":0},null,null,null,null,{"$f":"SUMIFS(Sheet1!S71_AdjustmentAmount,Sheet1!S71_SA34eCode,$AC:$AC,Sheet1!S71_A5CapexCode,$AD:$AD)","v":0},0,0,{"$f":"SUMIFS(Sheet1!S71_OY1AdjustedBudget,Sheet1!S71_SA34eCode,$AC:$AC,Sheet1!S71_A5CapexCode,$AD:$AD)","v":0},{"$f":"SUMIFS(Sheet1!S71_OY2AdjustedBudget,Sheet1!S71_SA34eCode,$AC:$AC,Sheet1!S71_A5CapexCode,$AD:$AD)","v":0},null,null,null,null,null,null,null,null,null,null,null,null,null,null,null,"1430","CE"]
["Load Settlement Software Applications",null,{"$f":"SUMIFS(Sheet1!S71_OriginalBudget,Sheet1!S71_SA34eCode,$AC:$AC,Sheet1!S71_A5CapexCode,$AD:$AD)","v":0},{"$f":"SUMIFS(Sheet1!S71_SpecialAdjustedBudget,Sheet1!S71_SA34eCode,$AC:$AC,Sheet1!S71_A5CapexCode,$AD:$AD)","v":0},null,null,null,null,{"$f":"SUMIFS(Sheet1!S71_AdjustmentAmount,Sheet1!S71_SA34eCode,$AC:$AC,Sheet1!S71_A5CapexCode,$AD:$AD)","v":0},0,0,{"$f":"SUMIFS(Sheet1!S71_OY1AdjustedBudget,Sheet1!S71_SA34eCode,$AC:$AC,Sheet1!S71_A5CapexCode,$AD:$AD)","v":0},{"$f":"SUMIFS(Sheet1!S71_OY2AdjustedBudget,Sheet1!S71_SA34eCode,$AC:$AC,Sheet1!S71_A5CapexCode,$AD:$AD)","v":0},null,null,null,null,null,null,null,null,null,null,null,null,null,null,null,"1440","CE"]
["Unspecified",null,{"$f":"SUMIFS(Sheet1!S71_OriginalBudget,Sheet1!S71_SA34eCode,$AC:$AC,Sheet1!S71_A5CapexCode,$AD:$AD)","v":0},{"$f":"SUMIFS(Sheet1!S71_SpecialAdjustedBudget,Sheet1!S71_SA34eCode,$AC:$AC,Sheet1!S71_A5CapexCode,$AD:$AD)","v":0},null,null,null,null,{"$f":"SUMIFS(Sheet1!S71_AdjustmentAmount,Sheet1!S71_SA34eCode,$AC:$AC,Sheet1!S71_A5CapexCode,$AD:$AD)","v":0},0,0,{"$f":"SUMIFS(Sheet1!S71_OY1AdjustedBudget,Sheet1!S71_SA34eCode,$AC:$AC,Sheet1!S71_A5CapexCode,$AD:$AD)","v":0},{"$f":"SUMIFS(Sheet1!S71_OY2AdjustedBudget,Sheet1!S71_SA34eCode,$AC:$AC,Sheet1!S71_A5CapexCode,$AD:$AD)","v":0},null,null,null,null,null,null,null,null,null,null,null,null,null,null,null,"1450","CE"]
[]
["Computer Equipment",null,{"$f":"SUM(C152:C152)","v":0},0,0,0,0,0,0,0,0,0,0]
["Computer Equipment",null,{"$f":"SUMIFS(Sheet1!S71_OriginalBudget,Sheet1!S71_SA34eCode,$AC:$AC,Sheet1!S71_A5CapexCode,$AD:$AD)","v":0},{"$f":"SUMIFS(Sheet1!S71_SpecialAdjustedBudget,Sheet1!S71_SA34eCode,$AC:$AC,Sheet1!S71_A5CapexCode,$AD:$AD)","v":0},null,null,null,null,{"$f":"SUMIFS(Sheet1!S71_AdjustmentAmount,Sheet1!S71_SA34eCode,$AC:$AC,Sheet1!S71_A5CapexCode,$AD:$AD)","v":0},0,0,{"$f":"SUMIFS(Sheet1!S71_OY1AdjustedBudget,Sheet1!S71_SA34eCode,$AC:$AC,Sheet1!S71_A5CapexCode,$AD:$AD)","v":0},{"$f":"SUMIFS(Sheet1!S71_OY2AdjustedBudget,Sheet1!S71_SA34eCode,$AC:$AC,Sheet1!S71_A5CapexCode,$AD:$AD)","v":0},null,null,null,null,null,null,null,null,null,null,null,null,null,null,null,"1470","CE"]
[]
["Furniture and Office Equipment",null,{"$f":"SUM(C155:C155)","v":0},0,0,0,0,0,0,0,0,0,0]
["Furniture and Office Equipment",null,{"$f":"SUMIFS(Sheet1!S71_OriginalBudget,Sheet1!S71_SA34eCode,$AC:$AC,Sheet1!S71_A5CapexCode,$AD:$AD)","v":0},{"$f":"SUMIFS(Sheet1!S71_SpecialAdjustedBudget,Sheet1!S71_SA34eCode,$AC:$AC,Sheet1!S71_A5CapexCode,$AD:$AD)","v":0},null,null,null,null,{"$f":"SUMIFS(Sheet1!S71_AdjustmentAmount,Sheet1!S71_SA34eCode,$AC:$AC,Sheet1!S71_A5CapexCode,$AD:$AD)","v":0},0,0,{"$f":"SUMIFS(Sheet1!S71_OY1AdjustedBudget,Sheet1!S71_SA34eCode,$AC:$AC,Sheet1!S71_A5CapexCode,$AD:$AD)","v":0},{"$f":"SUMIFS(Sheet1!S71_OY2AdjustedBudget,Sheet1!S71_SA34eCode,$AC:$AC,Sheet1!S71_A5CapexCode,$AD:$AD)","v":0},null,null,null,null,null,null,null,null,null,null,null,null,null,null,null,"1490","CE"]
[]
["Machinery and Equipment",null,{"$f":"SUM(C158:C158)","v":0},0,0,0,0,0,0,0,0,0,0]
["Machinery and Equipment",null,{"$f":"SUMIFS(Sheet1!S71_OriginalBudget,Sheet1!S71_SA34eCode,$AC:$AC,Sheet1!S71_A5CapexCode,$AD:$AD)","v":0},{"$f":"SUMIFS(Sheet1!S71_SpecialAdjustedBudget,Sheet1!S71_SA34eCode,$AC:$AC,Sheet1!S71_A5CapexCode,$AD:$AD)","v":0},null,null,null,null,{"$f":"SUMIFS(Sheet1!S71_AdjustmentAmount,Sheet1!S71_SA34eCode,$AC:$AC,Sheet1!S71_A5CapexCode,$AD:$AD)","v":0},0,0,{"$f":"SUMIFS(Sheet1!S71_OY1AdjustedBudget,Sheet1!S71_SA34eCode,$AC:$AC,Sheet1!S71_A5CapexCode,$AD:$AD)","v":0},{"$f":"SUMIFS(Sheet1!S71_OY2AdjustedBudget,Sheet1!S71_SA34eCode,$AC:$AC,Sheet1!S71_A5CapexCode,$AD:$AD)","v":0},null,null,null,null,null,null,null,null,null,null,null,null,null,null,null,"1510","CE"]
[]
["Transport Assets",null,{"$f":"SUM(C161:C161)","v":0},0,0,0,0,0,0,0,0,0,0]
["Transport Assets",null,{"$f":"SUMIFS(Sheet1!S71_OriginalBudget,Sheet1!S71_SA34eCode,$AC:$AC,Sheet1!S71_A5CapexCode,$AD:$AD)","v":0},{"$f":"SUMIFS(Sheet1!S71_SpecialAdjustedBudget,Sheet1!S71_SA34eCode,$AC:$AC,Sheet1!S71_A5CapexCode,$AD:$AD)","v":0},null,null,null,null,{"$f":"SUMIFS(Sheet1!S71_AdjustmentAmount,Sheet1!S71_SA34eCode,$AC:$AC,Sheet1!S71_A5CapexCode,$AD:$AD)","v":0},0,0,{"$f":"SUMIFS(Sheet1!S71_OY1AdjustedBudget,Sheet1!S71_SA34eCode,$AC:$AC,Sheet1!S71_A5CapexCode,$AD:$AD)","v":0},{"$f":"SUMIFS(Sheet1!S71_OY2AdjustedBudget,Sheet1!S71_SA34eCode,$AC:$AC,Sheet1!S71_A5CapexCode,$AD:$AD)","v":0},null,null,null,null,null,null,null,null,null,null,null,null,null,null,null,"1530","CE"]
[]
["Land",null,{"$f":"SUM(C164:C164)","v":0},0,0,0,0,0,0,0,0,0,0]
["Land",null,{"$f":"SUMIFS(Sheet1!S71_OriginalBudget,Sheet1!S71_SA34eCode,$AC:$AC,Sheet1!S71_A5CapexCode,$AD:$AD)","v":0},{"$f":"SUMIFS(Sheet1!S71_SpecialAdjustedBudget,Sheet1!S71_SA34eCode,$AC:$AC,Sheet1!S71_A5CapexCode,$AD:$AD)","v":0},null,null,null,null,{"$f":"SUMIFS(Sheet1!S71_AdjustmentAmount,Sheet1!S71_SA34eCode,$AC:$AC,Sheet1!S71_A5CapexCode,$AD:$AD)","v":0},0,0,{"$f":"SUMIFS(Sheet1!S71_OY1AdjustedBudget,Sheet1!S71_SA34eCode,$AC:$AC,Sheet1!S71_A5CapexCode,$AD:$AD)","v":0},{"$f":"SUMIFS(Sheet1!S71_OY2AdjustedBudget,Sheet1!S71_SA34eCode,$AC:$AC,Sheet1!S71_A5CapexCode,$AD:$AD)","v":0},null,null,null,null,null,null,null,null,null,null,null,null,null,null,null,"1550","CE"]
[]
["Zoo's, Marine and Non-biological Animals",null,{"$f":"SUM(C167:C167)","v":0},0,0,0,0,0,0,0,0,0,0]
["Zoo's, Marine and Non-biological Animals",null,{"$f":"SUMIFS(Sheet1!S71_OriginalBudget,Sheet1!S71_SA34eCode,$AC:$AC,Sheet1!S71_A5CapexCode,$AD:$AD)","v":0},{"$f":"SUMIFS(Sheet1!S71_SpecialAdjustedBudget,Sheet1!S71_SA34eCode,$AC:$AC,Sheet1!S71_A5CapexCode,$AD:$AD)","v":0},null,null,null,null,{"$f":"SUMIFS(Sheet1!S71_AdjustmentAmount,Sheet1!S71_SA34eCode,$AC:$AC,Sheet1!S71_A5CapexCode,$AD:$AD)","v":0},0,0,{"$f":"SUMIFS(Sheet1!S71_OY1AdjustedBudget,Sheet1!S71_SA34eCode,$AC:$AC,Sheet1!S71_A5CapexCode,$AD:$AD)","v":0},{"$f":"SUMIFS(Sheet1!S71_OY2AdjustedBudget,Sheet1!S71_SA34eCode,$AC:$AC,Sheet1!S71_A5CapexCode,$AD:$AD)","v":0},null,null,null,null,null,null,null,null,null,null,null,null,null,null,null,"1570","CE"]
[]
["Total Capital Expenditure on upgrading of existing assets to be adjusted",1,{"$f":"C8+C76+C105+C112+C120+C151+C138+C141+C154+C157+C160+C163+C166","v":0},{"$f":"D8+D76+D105+D112+D120+D151+D138+D141+D154+D157+D160+D163+D166","v":0},0,0,0,0,0,0,0,0,0]
[]
[{"$f":"head27a","v":"References"}]
["1. Total Capital Expenditure  on renewal of existing assets (SB18b) plus Total Capital Expenditure on new assets (SB18a) plus Total Capital Expenditure on upgrading of existing assets (SB18e) must reconcile to total capital expenditure in Budgeted Capital Expenditure"]
["7. Only complete if a previous adjusted budget has been approved in the same financial year. Reflect most recent adjusted budget."]
["8. Additional cash-backed accumulated funds/unspent funds (section 18(1)(b) and section 28(2)(e) MFMA) identified after Original Budget approved and after annual financial statements audited (note: only where underspending could not reasonably be have for"]
["9. Increases of funds approved under section 31 MFMA"]
["10. Adjustments approved in accordance with section 29 MFMA"]
["11. Adjustments to funding allocations from National or Provincial Government"]
["12. Adjusts. = 'Other' Adjustments proposed to be approved; including revenue under-collection (MFMA section 28(2)(a)); additional revenue appropriation on existing programmes (section 28(2))(b); projected savings (section 28(2)(d)); error correction (sec"]
["13. G = B + C + D + E + F"]
["14. Adjusted Budget H = (A or A1) + G"]
[]
[]
["check balance",null,{"$f":"(C169+SB18a!C169+SB18b!C169)-'B5-Capex'!C65","v":0},null,null,null,null,null,null,null,null,{"$f":"(L169+SB18a!L169+SB18b!L169)-'B5-Capex'!L65","v":-16720000},{"$f":"(M169+SB18a!M169+SB18b!M169)-'B5-Capex'!M65","v":-17472400}]

{"sheet":"SB19","index":61,"n_rows":59,"n_cols":18,"rows_kept":59,"cut":false,"hidden":false,"merged":[[1,12,1,17],[2,12,2,13],[2,14,2,15],[2,16,2,17]]}
[{"$f":"muni&\" - \"&ADJB19&\" - \"&Date","v":"EC139 Enoch Mgijima - Supporting Table SB19 List of capital programmes and projects affected by Adjustments Budget - "}]
["Function","Project Description","Project Number","Type","MTSF Service Outcome","IUDF","Own Strategic Objectives","Asset Class","Asset Sub-Class ","Ward Location","GPS Longitude","GPS Lattitude",{"$f":"Head3a","v":"Medium Term Revenue and Expenditure Framework"}]
[null,null,null,null,null,null,null,null,null,null,null,null,{"$f":"Head9","v":"Budget Year 2021/22"},null,{"$f":"Head10","v":"Budget Year +1 2022/23"},null,{"$f":"Head11","v":"Budget Year +2 2023/24"}]
["R thousands",null,null,null,null,null,null,null,null,null,null,null,{"$f":"Head6","v":"Original Budget"},{"$f":"Head7","v":"Adjusted Budget"},{"$f":"Head6","v":"Original Budget"},{"$f":"Head7","v":"Adjusted Budget"},{"$f":"Head6","v":"Original Budget"},{"$f":"Head7","v":"Adjusted Budget"}]
["Parent municipality:"]
["List all capital projects grouped by Function"]
["0e51e5d3-5805-402b-a5dc-3b94852c29c0","Take on","PC002002001003001001000000000000000000_00003","_","An efficient, effective and development-oriented public service","Governance","Comply with financial reporting as outlined in the MFMA","Operational Buildings","Municipal Offices","4d0b14f1-65a9-4c59-b08d-9b23b7f96001",1,1,616390,616390,0,0,0,0]
["0e51e5d3-5805-402b-a5dc-3b94852c29c0","Take on","PC002003005000000000000000000000000000_00003","_","An efficient, effective and development-oriented public service","Growth","Comply with financial reporting as outlined in the MFMA","Furniture and Office Equipment","Furniture and Office Equipment","4d0b14f1-65a9-4c59-b08d-9b23b7f96001",1,1,600000,600000,1045000,1045000,1092026,1092026]
["0e51e5d3-5805-402b-a5dc-3b94852c29c0","Take on","PC002003007002004000000000000000000000_00001","_","An efficient, effective and development-oriented public service","Growth","Comply with financial reporting as outlined in the MFMA","Licences and Rights","Computer Software and Applications","db24da82-fec4-4890-9764-e40d385ba41f",1,1,1175600,1175600,1045000,1045000,1092026,1092026]
["0e51e5d3-5805-402b-a5dc-3b94852c29c0","Take on","PC002003010000000000000000000000000000_00001","_","An efficient, effective and development-oriented public service","Growth","Comply with financial reporting as outlined in the MFMA","Transport Assets","Transport Assets","4d0b14f1-65a9-4c59-b08d-9b23b7f96001",1,1,2805000,2805000,1045000,1045000,1092026,1092026]
["24184d52-b9a8-4cef-83da-d1d50994250d","Take on","PC002003004000000000000000000000000000_00002","_","An efficient, effective and development-oriented public service","Growth","Comply with financial reporting as outlined in the MFMA","Computer Equipment","Computer Equipment","db24da82-fec4-4890-9764-e40d385ba41f",1,1,300000,300000,418000,418000,436810,436810]
["24184d52-b9a8-4cef-83da-d1d50994250d","Take on","PC002003009000000000000000000000000000_00001","_","An efficient, effective and development-oriented public service","Growth","Comply with financial reporting as outlined in the MFMA","Machinery and Equipment","Machinery and Equipment","db24da82-fec4-4890-9764-e40d385ba41f",1,1,3580000,3580000,3135000,3135000,3276076,3276076]
["315a0f4d-28ad-4cd2-a4a5-afb34a6a8e1f","Mvelabusha Community hall","PC002003002001002000000000000000000000_00002","_","An efficient, effective and development-oriented public service","Growth","To provide and improve access to community/public facilities to minimum standards","Community Facilities","Centres","18d3daa3-2b72-4674-a97c-e51f094b3b26",1,1,8000000,8000000,0,0,0,0]
["6fa14a15-a164-42cb-a263-a0b007852bc5","Kosi Bay Fish Market","PC002003002001017000000000000000000000_00002","_","An efficient, effective and development-oriented public service","Growth","To provide and improve access to community/public facilities to minimum standards","Community Facilities","Markets","0e364662-43b4-49bf-bf31-db50b979bae5",1,1,3440000,3440000,0,0,0,0]
["6fa14a15-a164-42cb-a263-a0b007852bc5","Manguzi Multi Purpose centre","PC002003002001001000000000000000000000_00006","_","An efficient, effective and development-oriented public service","Growth","To provide and improve access to community/public facilities to minimum standards","Community Facilities","Halls","7e864812-36a2-4f83-9457-5300f078fe49",1,1,10000000,10000000,18810000,18810000,19656450,19656450]
["6fa14a15-a164-42cb-a263-a0b007852bc5","OPEX - TECH","PC002003002001017000000000000000000000_00001","_","An efficient, effective and development-oriented public service","Growth","To enhance effective internal control and standard operating","Community Facilities","Markets","ac829b4e-5122-49f2-adbc-00b49ee429d7",2464686800896,528582541312,6000000,6000000,0,0,0,0]
["81039af3-bf16-404d-8908-6abf7eaa337a","Jikijela Electrification","PC001002001008000000000000000000000000_00013","_","An efficient, competitive and responsive economic infrastructure network","Growth","To develop long term infrastructure development plans","Electrical Infrastructure","LV Networks","f5fe2e5c-37d8-4178-bcbb-845cd012603c",1,1,6000000,6000000,8360000,8360000,8736200,8736200]
["81039af3-bf16-404d-8908-6abf7eaa337a","Jikijela Electrification","PD000000000000000000000000000000000000","_","Responsive, accountable, effective and efficient local government","Governance","To develop long term infrastructure development plans",null,null,"8b933617-88a7-4241-a453-db545788e8f6",1,1,4575000,4575000,10039866,10039866,10491660,10491660]
["81039af3-bf16-404d-8908-6abf7eaa337a","Kwasonto Electrification","PD000000000000000000000000000000000000","_","Responsive, accountable, effective and efficient local government","Governance","To develop long term infrastructure development plans",null,null,"14e8b541-26ab-4bf5-adc7-7721b8e3f1a7",1,1,5837143,5837143,0,0,0,0]
["81039af3-bf16-404d-8908-6abf7eaa337a","Mahlungulu Electrification","PD000000000000000000000000000000000000","_","Responsive, accountable, effective and efficient local government","Governance","To develop long term infrastructure development plans",null,null,"0e364662-43b4-49bf-bf31-db50b979bae5",1,1,0,0,5225000,5225000,5460125,5460125]
["81039af3-bf16-404d-8908-6abf7eaa337a","Update Supplier Database","PD000000000000000000000000000000000000","_","Responsive, accountable, effective and efficient local government","Governance","Comply with MFMA, SCM regulations and related legislations",null,null,"7e864812-36a2-4f83-9457-5300f078fe49",10000000,10000000,2087857,2087857,1455134,1455134,1520615,1520615]
["84c380c3-3b7f-4f6e-b3e1-ca680365dc85","Take on","PC001001001002001000000000000000000000_00002","_","An efficient, competitive and responsive economic infrastructure network","Inclusion and access","Comply with financial reporting as outlined in the MFMA","Solid Waste Infrastructure","Landfill Sites","4d0b14f1-65a9-4c59-b08d-9b23b7f96001",1,1,0,0,418000,418000,436810,436810]
["be26bea6-58e3-4497-b52c-0bf597208207","Internal Roads","PC001002006001000000000000000000000000_00040","_","An efficient, competitive and responsive economic infrastructure network","Growth","To provide and improve access to community/public facilities to minimum standards","Roads Infrastructure","Roads","80aeec6d-8b40-4f3f-8201-2be4c8c23cc4",0,0,10720244,10720244,0,0,0,0]
["be26bea6-58e3-4497-b52c-0bf597208207","Internal Roads","PC001002006001000000000000000000000000_00041","_","An efficient, competitive and responsive economic infrastructure network","Growth","To provide and improve access to community/public facilities to minimum standards","Roads Infrastructure","Roads","f5fe2e5c-37d8-4178-bcbb-845cd012603c",0,0,1914382,1914382,7315000,7315000,7644176,7644176]
["be26bea6-58e3-4497-b52c-0bf597208207","Internal Roads","PC001002006001000000000000000000000000_00042","_","An efficient, competitive and responsive economic infrastructure network","Growth","To provide and improve access to community/public facilities to minimum standards","Roads Infrastructure","Roads","f5fe2e5c-37d8-4178-bcbb-845cd012603c",0,0,925736,925736,0,0,0,0]
["be26bea6-58e3-4497-b52c-0bf597208207","Internal Roads","PC001002006001000000000000000000000000_00043","_","An efficient, competitive and responsive economic infrastructure network","Growth","To provide and improve access to community/public facilities to minimum standards","Roads Infrastructure","Roads","80aeec6d-8b40-4f3f-8201-2be4c8c23cc4",0,0,220500,220500,0,0,0,0]
["be26bea6-58e3-4497-b52c-0bf597208207","Internal Roads","PC001002006001000000000000000000000000_00044","_","An efficient, competitive and responsive economic infrastructure network","Growth","To provide and improve access to community/public facilities to minimum standards","Roads Infrastructure","Roads","0050f5e8-4683-4240-a3a7-9d3b86aaf151",0,0,187650,187650,0,0,0,0]
["be26bea6-58e3-4497-b52c-0bf597208207","Internal Roads","PC001002006001000000000000000000000000_00045","_","An efficient, competitive and responsive economic infrastructure network","Growth","To provide and improve access to community/public facilities to minimum standards","Roads Infrastructure","Roads","18d3daa3-2b72-4674-a97c-e51f094b3b26",0,0,9668458,9668458,12540000,12540000,13104300,13104300]
["be26bea6-58e3-4497-b52c-0bf597208207","Manzengwenya Access Road","PC001002006001000000000000000000000000_00006","_","An efficient, competitive and responsive economic infrastructure network","Growth","To provide access and facilitate vehicular movement in Umhlabuyalingana","Roads Infrastructure","Roads","0050f5e8-4683-4240-a3a7-9d3b86aaf151",1,1,377938,377938,10450000,10450000,10920250,10920250]
["be26bea6-58e3-4497-b52c-0bf597208207","Masakeni Access roads","PC001002006001000000000000000000000000_00035","_","An efficient, competitive and responsive economic infrastructure network","Growth","To provide access and facilitate vehicular movement in Umhlabuyalingana","Roads Infrastructure","Roads","f42ea6fa-a83e-4a3a-89b1-ca0bdab820ab",1,1,9821304,9821304,0,0,0,0]
["be26bea6-58e3-4497-b52c-0bf597208207","Masakeni Access roads","PC001002006001000000000000000000000000_00036","_","An efficient, competitive and responsive economic infrastructure network","Growth","To provide access and facilitate vehicular movement in Umhlabuyalingana","Roads Infrastructure","Roads","7e864812-36a2-4f83-9457-5300f078fe49",1,1,5400000,5400000,0,0,0,0]
["be26bea6-58e3-4497-b52c-0bf597208207","Masakeni Access roads","PC001002006001000000000000000000000000_00037","_","An efficient, competitive and responsive economic infrastructure network","Growth","To provide access and facilitate vehicular movement in Umhlabuyalingana","Roads Infrastructure","Roads","14e8b541-26ab-4bf5-adc7-7721b8e3f1a7",1,1,10860038,10860038,0,0,0,0]
["be26bea6-58e3-4497-b52c-0bf597208207","Update Supplier Database","PC001002006001000000000000000000000000_00022","_","An efficient, competitive and responsive economic infrastructure network","Growth","Comply with MFMA, SCM regulations and related legislations","Roads Infrastructure","Roads","da95d68a-30f4-472a-9194-058a87c5e6c5",10000000,10000000,1754918,1754918,0,0,0,0]
["be26bea6-58e3-4497-b52c-0bf597208207","Update Supplier Database","PC001002006001000000000000000000000000_00023","_","An efficient, competitive and responsive economic infrastructure network","Growth","Comply with MFMA, SCM regulations and related legislations","Roads Infrastructure","Roads","f42ea6fa-a83e-4a3a-89b1-ca0bdab820ab",10000000,10000000,11397202,11397202,12540000,12540000,13104300,13104300]
["be26bea6-58e3-4497-b52c-0bf597208207","Update Supplier Database","PC001002006001000000000000000000000000_00024","_","An efficient, competitive and responsive economic infrastructure network","Growth","Comply with MFMA, SCM regulations and related legislations","Roads Infrastructure","Roads","e80c49f5-3393-435e-94f8-5013e8b5d48d",10000000,10000000,264136,264136,14630000,14630000,15288350,15288350]
["be26bea6-58e3-4497-b52c-0bf597208207","Update Supplier Database","PC001002006001000000000000000000000000_00025","_","An efficient, competitive and responsive economic infrastructure network","Growth","Comply with MFMA, SCM regulations and related legislations","Roads Infrastructure","Roads","7e864812-36a2-4f83-9457-5300f078fe49",10000000,10000000,649998,649998,12540000,12540000,13104300,13104300]
["d322a6d8-8a77-4f3e-b409-e49df0b85989","Take on","PC002003009000000000000000000000000000_00011","_","An efficient, effective and development-oriented public service","Growth","Comply with financial reporting as outlined in the MFMA","Machinery and Equipment","Machinery and Equipment","80aeec6d-8b40-4f3f-8201-2be4c8c23cc4",1,1,300000,300000,418000,418000,436810,436810]
["e63908e9-4e7e-4455-ad95-2721683b34a9","Ngutshana sportfield","PC002003002002002000000000000000000000_00003","_","A long and healthy life for all South Africans","Growth","To provide and improve access to community/public facilities to minimum standards","Sport and Recreation Facilities","Outdoor Facilities","420d5704-0872-496a-ab68-bbf1fecda195",1,1,0,0,4180000,4180000,4368100,4368100]
[]
[]
[]
[]
[]
["Entities:"]
["List all capital projects grouped by Municipal Entity"]
[]
["Entity Name"]
["Project name"]
[]
[]
[]
[]
["References"]
["List all projects where approved budgets have been adjusted"]
["Refer MFMA s30"]
["Asset class as per table B9 and asset sub-class as per table SB18"]
["GPS coordinates correct to seconds. Provide a logical starting point on networked infrastructure."]
["Distinguish projects approved in terms of MFMA section 19(1)(b) and MRRR Regulation 13"]
["Project Number consists of MSCOA Project Longcode and seq No (sample PC001002006002_00002)"]

{"sheet":"SB20","index":62,"n_rows":55,"n_cols":13,"rows_kept":55,"cut":false,"hidden":false,"merged":[[0,0,0,12],[1,0,3,0],[1,1,3,1],[1,2,1,10],[52,0,52,12],[48,0,48,12],[49,0,49,12],[46,0,46,12],[47,0,47,12]]}
[{"$f":"muni&\" - \"&ADJB20&\" - \"&Date","v":"EC139 Enoch Mgijima - Supporting Table SB20 Not required - "}]
[{"$f":"desc","v":"Description"},{"$f":"head27","v":"Ref"},{"$f":"Head2","v":"Budget Year 2021/22"},null,null,null,null,null,null,null,null,{"$f":"Head10","v":"Budget Year +1 2022/23"},{"$f":"Head11","v":"Budget Year +2 2023/24"}]
[null,null,{"$f":"Head6","v":"Original Budget"},{"$f":"Head54","v":"Prior Adjusted"},{"$f":"Head51","v":"Accum. Funds"},{"$f":"Head52","v":"Multi-year capital"},{"$f":"Head53","v":"Unfore. Unavoid."},{"$f":"Head55","v":"Nat. or Prov. Govt"},{"$f":"Head50","v":"Other Adjusts."},{"$f":"Head56","v":"Total Adjusts."},{"$f":"Head7","v":"Adjusted Budget"},{"$f":"Head7","v":"Adjusted Budget"},{"$f":"Head7","v":"Adjusted Budget"}]
[null,null,null,3,4,5,6,8,9,10,11]
["R thousands",null,"A","A1","B","C","D","E","F","G","H"]
["Revenue By Municipal Entity"]
["Entity 1 total revenue",null,null,null,null,null,null,null,null,{"$f":"SUM(E7:I7)","v":0},{"$f":"IF(D7=0,C7+J7,D7+J7)","v":0}]
["Entity 2 total revenue",null,null,null,null,null,null,null,null,0,0]
["Entity 3 (etc) total revenue",null,null,null,null,null,null,null,null,0,0]
[null,null,null,null,null,null,null,null,null,0,0]
[null,null,null,null,null,null,null,null,null,0,0]
[null,null,null,null,null,null,null,null,null,0,0]
[null,null,null,null,null,null,null,null,null,0,0]
[null,null,null,null,null,null,null,null,null,0,0]
[null,null,null,null,null,null,null,null,null,0,0]
[null,null,null,null,null,null,null,null,null,0,0]
["Total Operating Revenue",1,{"$f":"SUM(C7:C16)","v":0},0,0,0,0,0,0,0,0,0,0]
[]
["Expenditure By Municipal Entity"]
["Entity 1 total operating expenditure",null,null,null,null,null,null,null,null,{"$f":"SUM(E20:I20)","v":0},{"$f":"IF(D20=0,C20+J20,D20+J20)","v":0}]
["Entity 2 total operating expenditure",null,null,null,null,null,null,null,null,0,0]
["Entity 3 etc. total operating expenditure",null,null,null,null,null,null,null,null,0,0]
[null,null,null,null,null,null,null,null,null,0,0]
[null,null,null,null,null,null,null,null,null,0,0]
[null,null,null,null,null,null,null,null,null,0,0]
[null,null,null,null,null,null,null,null,null,0,0]
[null,null,null,null,null,null,null,null,null,0,0]
[null,null,null,null,null,null,null,null,null,0,0]
[null,null,null,null,null,null,null,null,null,0,0]
["Total Operating Expenditure",2,{"$f":"SUM(C20:C29)","v":0},0,0,0,0,0,0,0,0,0,0]
[]
["Capital Expenditure By Municipal Entity"]
["Entity 1 total capital expenditure",null,null,null,null,null,null,null,null,{"$f":"SUM(E33:I33)","v":0},{"$f":"IF(D33=0,C33+J33,D33+J33)","v":0}]
["Entity 2 total capital expenditure",null,null,null,null,null,null,null,null,0,0]
["Entity 3 etc. total capital expenditure",null,null,null,null,null,null,null,null,0,0]
[null,null,null,null,null,null,null,null,null,0,0]
[null,null,null,null,null,null,null,null,null,0,0]
[null,null,null,null,null,null,null,null,null,0,0]
[null,null,null,null,null,null,null,null,null,0,0]
[null,null,null,null,null,null,null,null,null,0,0]
[null,null,null,null,null,null,null,null,null,0,0]
[null,null,null,null,null,null,null,null,null,0,0]
["Total Capital Expenditure",2,{"$f":"SUM(C32:C42)","v":0},0,0,0,0,0,0,0,0,0,0]
[{"$f":"head27a","v":"References"}]
["1. Must reconcile to the sum of all municipal entity monthly revenue reports"]
["2. Must reconcile to the sum of all municipal entity monthly expenditure reports"]
["3. Only complete if a previous adjusted budget has been approved in the same financial year. Reflect most recent adjusted budget."]
["4. Additional cash-backed accumulated funds/unspent funds identified after Original Budget approved and after annual financial statements audited (note: only where underspending could not reasonably be have foreseen)"]
["5. Increases of funds approved under section 87 MFMA"]
["6. Adjustments approved in accordance with section 87 MFMA"]
["7. Adjustments made under delegation by the AO since the budget was approved or since a previously 'approved' Adjustments Budget in the same financial year"]
["8. Adjustments to funding allocations by National or Provincial Government"]
["9. Adjusts. = 'Other' Adjustments approved by entity Board; including revenue under-collection ; additional revenue appropriation on existing programmes; projected savings; error correction"]
["10. H = B + C + D + E + F + G"]
["11. Adjusted Budget (H) = (A or A1) + G"]